{"text_format":"2","workbook":"xlsx","n_sheets":28,"sheets":["12-21-2011","12-2-2011","11-25-2011","11-11-2011","11-8-2011","LOC CENSUS FINAL 10-2011","LOC FINAL 10-2011","FINAL by Agency","FINAL by Agency summary","FINAL by Theme","FINAL by Theme summary","LOC FINAL with new Themes","FGDC FINAL with new Themes","2-16-2012","1-23-2012","6-5-2012","5-15-2012","5-9-2012","5-7-2012","5-4-2012","4-30-2012","4-18-2012","2-29-2012","4-16-2012","4-20-2012","4-23-2012","Changes","11-18-2011"],"not_rendered":{"charts":0,"images":1,"macros":0,"external_links":4,"defined_names":63,"comments":26,"pivot_tables":0},"unopened":[],"bounds":{"document_bytes":16777216,"sheet_cells":100000,"run_cost":"one","rows_first":2000,"rows_last":500,"rows_between":2000,"halvings":0,"cell_chars":16384,"cell_head_chars":4096},"cells_cut":0,"cells_raw":0,"read":"whole","date_system":"1900"}

{"sheet":"12-21-2011","index":0,"n_rows":266,"n_cols":15,"rows_kept":266,"cut":false,"hidden":true,"merged":[]}
["ORIGINAL (beginning of 2011)","LOC FINAL (October 2011)","NGDA List (October 2011)","FINAL List (November 2011)","Theme","Agency","Dataset Manager","Email","Q1 How many data set(s) do you have? It is a single set or multiple sets? ","Q2 Are you a data set manager?","Q3 Are you the POC for transferring the data set and/or for information about the data set?","Q4 How often is the data set updated?","Q5 Is there an archive/backup of the data set or do you maintain an archived copy of it? If yes, how far back do you maintain a copy? Is it easily accessible?","Q6 Does the data set go by a different name or is it referred to internally by another descriptive name?","M\nP\nS"]
[null,null,"Critical Habitat ",{"$f":"IF(C2=0,B2,C2)","v":"Critical Habitat "},"Biota","DOI-FWS"]
[null,null,"Current Range for listed species ","Current Range for listed species ","Biota","DOI-FWS"]
["ECOMAP Data Sets (Ecological Subregions: Sections and Subsections for the Conterminous United States ) ","ECOMAP Datasets (Ecological Subregions: Sections and Subsections for the Conterminous United States ) ","ECOMAP Datasets (Ecological Subregions: Sections and Subsections for the Conterminous United States ) ","ECOMAP Datasets (Ecological Subregions: Sections and Subsections for the Conterminous United States ) ","Biota","USDA-FS","David T. Cleland","dcleland@fs.fed.us",{"$f":"VLOOKUP(B4,'LOC FINAL with new Themes'!A:M,7,0)","v":"One, single set"},{"$f":"VLOOKUP(B4,'LOC FINAL with new Themes'!A:M,8,0)","v":"Yes"},{"$f":"VLOOKUP(B4,'LOC FINAL with new Themes'!A:M,9,0)","v":"Yes"},{"$f":"VLOOKUP(B4,'LOC FINAL with new Themes'!A:M,10,0)","v":"Maps are updated on a 10-year cycle"},{"$f":"VLOOKUP(B4,'LOC FINAL with new Themes'!A:M,11,0)","v":"The data is housed at and served by the Forest Service geodata portal, and is easily accessible.  The web address is: http://fsgeodata.fs.fed.us/other_resources/ecosubregions.html "},{"$f":"VLOOKUP(B4,'LOC FINAL with new Themes'!A:M,12,0)","v":"?   Internally, the data is named ECOMAP or the National Hierarchy of Ecological Units. "},{"$f":"VLOOKUP(B4,'LOC FINAL with new Themes'!A:M,13,0)","v":"S"}]
[null,null,"Endangered Species (Threatened and Endangered Species System)","Endangered Species (Threatened and Endangered Species System)","Biota","DOI-FWS"]
["Env Sens Index Maps - classified shoreline","Env Sens Index Maps - classified shoreline","Environmental Sensitivity Index (ESI) Data and Maps","Environmental Sensitivity Index (ESI) Data and Maps","Biota","DOC-NOAA","Jill Petersen","jill.petersen@noaa.gov",{"$f":"VLOOKUP(B6,'LOC FINAL with new Themes'!A:M,7,0)","v":"There are approximately 70 different atlases. There are a few that are still not available in a GIS format, (approx 7 of the approx 70!) - these are available as the hard copy product and as PDFs (scanned). The remaining atlases are available in multiple GIS formats - Arc Export files, Geodatabase with an ArcMap map document complete with all relates established and properly symbolized, Shape files with an ArcView 3.x project, a free ESI viewer that allows viewing, queries and printing (in house mapping program and filemaker pro) as well as PDF format and the hard copy product. These can be downloaded from http://response.restoration.noaa.gov/esi_download This page is in progress, but should be complete fairly quickly.\n\n"},{"$f":"VLOOKUP(B6,'LOC FINAL with new Themes'!A:M,8,0)","v":"Yes"},{"$f":"VLOOKUP(B6,'LOC FINAL with new Themes'!A:M,9,0)","v":"Yes "},{"$f":"VLOOKUP(B6,'LOC FINAL with new Themes'!A:M,10,0)","v":"- High resolution products have no defined update schedule.  TBD by geog/project."},{"$f":"VLOOKUP(B6,'LOC FINAL with new Themes'!A:M,11,0)","v":"Yes and no. We have archives of all the digital data as well as all the PDFs (scanned or produced with the digital data map comps). Many of the hard copy atlases from the first round of ESI maps were sent to the Library of Commerce. Others I have kept, but no very organized situation. However, we have all of the historic PDFs which are an exact duplicate of the hard copy atlas, so that is something. Historic data is going to be served from the above link as well. That will be added as the current data sets are completed."},{"$f":"VLOOKUP(B6,'LOC FINAL with new Themes'!A:M,12,0)","v":"ESI is the common abbreviation for these maps. Other than that, Environmental Sensitivity Index Maps, Shoreline Sensitivity maps, Environmental Sensitivity maps..... These maps have the classified shoreline, as well as summaries of biological and human use resource particularly sensitive to oiling. "},{"$f":"VLOOKUP(B6,'LOC FINAL with new Themes'!A:M,13,0)","v":"M "}]
["GAP Program Dataset","GAP Program Dataset","GAP Program Dataset","GAP Program Dataset","Biota","DOI-USGS","Kevin Gergely","gergely@usgs.gov",{"$f":"VLOOKUP(B7,'LOC FINAL with new Themes'!A:M,7,0)","v":"POC; multiple data sets in single location, building three fundamental data layers, two are national (protected areas, land cover dataset); backup; six months, annually)"},{"$f":"VLOOKUP(B7,'LOC FINAL with new Themes'!A:M,8,0)","v":0},{"$f":"VLOOKUP(B7,'LOC FINAL with new Themes'!A:M,9,0)","v":0},{"$f":"VLOOKUP(B7,'LOC FINAL with new Themes'!A:M,10,0)","v":0},{"$f":"VLOOKUP(B7,'LOC FINAL with new Themes'!A:M,11,0)","v":0},{"$f":"VLOOKUP(B7,'LOC FINAL with new Themes'!A:M,12,0)","v":0},{"$f":"VLOOKUP(B7,'LOC FINAL with new Themes'!A:M,13,0)","v":"P"}]
["National Standardized Ecosystems Dataset","National Standardized Ecosystems Dataset","National Standardized Ecosystems Dataset","National Standardized Ecosystems Dataset","Biota","DOI-USGS","Roger Sayre","rsayre@usgs.gov",{"$f":"VLOOKUP(B8,'LOC FINAL with new Themes'!A:M,7,0)","v":0},{"$f":"VLOOKUP(B8,'LOC FINAL with new Themes'!A:M,8,0)","v":0},{"$f":"VLOOKUP(B8,'LOC FINAL with new Themes'!A:M,9,0)","v":0},{"$f":"VLOOKUP(B8,'LOC FINAL with new Themes'!A:M,10,0)","v":0},{"$f":"VLOOKUP(B8,'LOC FINAL with new Themes'!A:M,11,0)","v":0},{"$f":"VLOOKUP(B8,'LOC FINAL with new Themes'!A:M,12,0)","v":0},{"$f":"VLOOKUP(B8,'LOC FINAL with new Themes'!A:M,13,0)","v":0}]
[null,null,"Recovery Range for listed species ","Recovery Range for listed species ","Biota","DOI-FWS"]
[null,null,"Section 7 Range for listed species ","Section 7 Range for listed species ","Biota","DOI-FWS"]
["Biomes, Ecoregions","Biomes, Ecoregions",null,"Biomes, Ecoregions","Biota ","DOI-USGS","Dan Phillips ","dphillips@usgs.gov",{"$f":"VLOOKUP(B11,'LOC FINAL with new Themes'!A:M,7,0)","v":0},{"$f":"VLOOKUP(B11,'LOC FINAL with new Themes'!A:M,8,0)","v":0},{"$f":"VLOOKUP(B11,'LOC FINAL with new Themes'!A:M,9,0)","v":0},{"$f":"VLOOKUP(B11,'LOC FINAL with new Themes'!A:M,10,0)","v":0},{"$f":"VLOOKUP(B11,'LOC FINAL with new Themes'!A:M,11,0)","v":0},{"$f":"VLOOKUP(B11,'LOC FINAL with new Themes'!A:M,12,0)","v":0},{"$f":"VLOOKUP(B11,'LOC FINAL with new Themes'!A:M,13,0)","v":0}]
["Ecological Services","Ecological Services",null,"Ecological Services","Biota ","DOI-USGS","Dan Phillips ","dphillips@usgs.gov",{"$f":"VLOOKUP(B12,'LOC FINAL with new Themes'!A:M,7,0)","v":0},{"$f":"VLOOKUP(B12,'LOC FINAL with new Themes'!A:M,8,0)","v":0},{"$f":"VLOOKUP(B12,'LOC FINAL with new Themes'!A:M,9,0)","v":0},{"$f":"VLOOKUP(B12,'LOC FINAL with new Themes'!A:M,10,0)","v":0},{"$f":"VLOOKUP(B12,'LOC FINAL with new Themes'!A:M,11,0)","v":0},{"$f":"VLOOKUP(B12,'LOC FINAL with new Themes'!A:M,12,0)","v":0},{"$f":"VLOOKUP(B12,'LOC FINAL with new Themes'!A:M,13,0)","v":0}]
["Habitats","Habitats",null,"Habitats","Biota ","DOI-USGS","Dan Phillips ","dphillips@usgs.gov",{"$f":"VLOOKUP(B13,'LOC FINAL with new Themes'!A:M,7,0)","v":"see protected areas and land cover set; vertebrae species of US being developed (not complete for all species they want to include in it."},{"$f":"VLOOKUP(B13,'LOC FINAL with new Themes'!A:M,8,0)","v":0},{"$f":"VLOOKUP(B13,'LOC FINAL with new Themes'!A:M,9,0)","v":0},{"$f":"VLOOKUP(B13,'LOC FINAL with new Themes'!A:M,10,0)","v":0},{"$f":"VLOOKUP(B13,'LOC FINAL with new Themes'!A:M,11,0)","v":0},{"$f":"VLOOKUP(B13,'LOC FINAL with new Themes'!A:M,12,0)","v":0},{"$f":"VLOOKUP(B13,'LOC FINAL with new Themes'!A:M,13,0)","v":"M"}]
["Invasive Species","Invasive Species",null,"Invasive Species","Biota ","DOI-USGS","Dan Phillips ","dphillips@usgs.gov",{"$f":"VLOOKUP(B14,'LOC FINAL with new Themes'!A:M,7,0)","v":"There are hundreds of datasets that are produced and maintained by the GAP program. Dan is not the data set manager, but I work with the people that maintain and update the datasets and maintains metadata.The data are updated at different intervals, especially now that they have moved more to a regional and national based approach. GAPS data sets presumably archived since 1990s."},{"$f":"VLOOKUP(B14,'LOC FINAL with new Themes'!A:M,8,0)","v":0},{"$f":"VLOOKUP(B14,'LOC FINAL with new Themes'!A:M,9,0)","v":0},{"$f":"VLOOKUP(B14,'LOC FINAL with new Themes'!A:M,10,0)","v":0},{"$f":"VLOOKUP(B14,'LOC FINAL with new Themes'!A:M,11,0)","v":0},{"$f":"VLOOKUP(B14,'LOC FINAL with new Themes'!A:M,12,0)","v":0},{"$f":"VLOOKUP(B14,'LOC FINAL with new Themes'!A:M,13,0)","v":"M"}]
["Species Distribution(amphibians, birds, reptiles, mammals, fishes, plants, etc)","Species Distribution (amphibians, birds, reptiles, mammals, fishes, plants, etc)",null,"Species Distribution (amphibians, birds, reptiles, mammals, fishes, plants, etc)","Biota ","DOI-USGS","Dan Phillips ","dphillips@usgs.gov",{"$f":"VLOOKUP(B15,'LOC FINAL with new Themes'!A:M,7,0)","v":"There are hundreds of datasets that are produced and maintained by the GAP program. Dan is not the data set manager, but I work with the people that maintain and update the datasets and maintains metadata. The data are updated at different intervals, especially now that they have moved more to a regional and national based approach. GAPS data sets presumably archived since 1990s."},{"$f":"VLOOKUP(B15,'LOC FINAL with new Themes'!A:M,8,0)","v":0},{"$f":"VLOOKUP(B15,'LOC FINAL with new Themes'!A:M,9,0)","v":0},{"$f":"VLOOKUP(B15,'LOC FINAL with new Themes'!A:M,10,0)","v":0},{"$f":"VLOOKUP(B15,'LOC FINAL with new Themes'!A:M,11,0)","v":0},{"$f":"VLOOKUP(B15,'LOC FINAL with new Themes'!A:M,12,0)","v":0},{"$f":"VLOOKUP(B15,'LOC FINAL with new Themes'!A:M,13,0)","v":"M"}]
[null,null,null,{"$f":"SUBTOTAL(3,D2:D15)","v":14},"Biota Count"]
["General Land Office","General Land Office","General Land Office",{"$f":"IF(C17=0,B17,C17)","v":"General Land Office"},"Cadastre","DOI-BLM","Juan Palma","juan_palma@blm.gov",{"$f":"VLOOKUP(B17,'LOC FINAL with new Themes'!A:M,7,0)","v":0},{"$f":"VLOOKUP(B17,'LOC FINAL with new Themes'!A:M,8,0)","v":0},{"$f":"VLOOKUP(B17,'LOC FINAL with new Themes'!A:M,9,0)","v":0},{"$f":"VLOOKUP(B17,'LOC FINAL with new Themes'!A:M,10,0)","v":0},{"$f":"VLOOKUP(B17,'LOC FINAL with new Themes'!A:M,11,0)","v":0},{"$f":"VLOOKUP(B17,'LOC FINAL with new Themes'!A:M,12,0)","v":0},{"$f":"VLOOKUP(B17,'LOC FINAL with new Themes'!A:M,13,0)","v":0}]
["Geographic Coordinate Data Base (GCDB)","Geographic Coordinate Data Base (GCDB)",null,"Geographic Coordinate Data Base (GCDB)","Cadastre","DOI-BLM","Don Buhler","don_buhler@blm.gov",{"$f":"VLOOKUP(B18,'LOC FINAL with new Themes'!A:M,7,0)","v":"every agency has its own database; multiple data sets; standard being advanced and put into practice; federal interest is managed with BLM; state and local are authoritative sets for other lands; "},{"$f":"VLOOKUP(B18,'LOC FINAL with new Themes'!A:M,8,0)","v":0},{"$f":"VLOOKUP(B18,'LOC FINAL with new Themes'!A:M,9,0)","v":0},{"$f":"VLOOKUP(B18,'LOC FINAL with new Themes'!A:M,10,0)","v":0},{"$f":"VLOOKUP(B18,'LOC FINAL with new Themes'!A:M,11,0)","v":0},{"$f":"VLOOKUP(B18,'LOC FINAL with new Themes'!A:M,12,0)","v":0},{"$f":"VLOOKUP(B18,'LOC FINAL with new Themes'!A:M,13,0)","v":"M "}]
["LR 2000 - Master Title Plats ","LR 2000 - Master Title Plats ","LR 2000 - Attribute Information","LR 2000 - Attribute Information","Cadastre","DOI-BLM","Jeff Holdren","jeff_holdren@blm.gov",{"$f":"VLOOKUP(B19,'LOC FINAL with new Themes'!A:M,7,0)","v":"listing of sales, rents, agricultural disposal and rights of way cases, group of data sets in one system; Kim Burns, division chief; not archived, there is a backup; Denver office handles"},{"$f":"VLOOKUP(B19,'LOC FINAL with new Themes'!A:M,8,0)","v":0},{"$f":"VLOOKUP(B19,'LOC FINAL with new Themes'!A:M,9,0)","v":0},{"$f":"VLOOKUP(B19,'LOC FINAL with new Themes'!A:M,10,0)","v":0},{"$f":"VLOOKUP(B19,'LOC FINAL with new Themes'!A:M,11,0)","v":0},{"$f":"VLOOKUP(B19,'LOC FINAL with new Themes'!A:M,12,0)","v":0},{"$f":"VLOOKUP(B19,'LOC FINAL with new Themes'!A:M,13,0)","v":"P"}]
["Manual of Surveying Instructions, Data Standards","Manual of Surveying Instructions, Data Standards",null,"Manual of Surveying Instructions, Data Standards","Cadastre","DOI-BLM","Don Buhler","don_buhler@blm.gov",{"$f":"VLOOKUP(B20,'LOC FINAL with new Themes'!A:M,7,0)","v":0},{"$f":"VLOOKUP(B20,'LOC FINAL with new Themes'!A:M,8,0)","v":0},{"$f":"VLOOKUP(B20,'LOC FINAL with new Themes'!A:M,9,0)","v":0},{"$f":"VLOOKUP(B20,'LOC FINAL with new Themes'!A:M,10,0)","v":0},{"$f":"VLOOKUP(B20,'LOC FINAL with new Themes'!A:M,11,0)","v":0},{"$f":"VLOOKUP(B20,'LOC FINAL with new Themes'!A:M,12,0)","v":0},{"$f":"VLOOKUP(B20,'LOC FINAL with new Themes'!A:M,13,0)","v":0}]
["Mineral Estate - Fluids","Mineral Estate - Fluids",null,"Mineral Estate - Fluids","Cadastre","DOI-BLM","Tim Spisak ","tim_spisak@blm.gov",{"$f":"VLOOKUP(B21,'LOC FINAL with new Themes'!A:M,7,0)","v":"mineral leasess, mining claims, rights of way, gases (single data set); BLM-managed lands but managed all federal mineral estate (comprehensive for mineraal estate) some electronic and some not"},{"$f":"VLOOKUP(B21,'LOC FINAL with new Themes'!A:M,8,0)","v":0},{"$f":"VLOOKUP(B21,'LOC FINAL with new Themes'!A:M,9,0)","v":0},{"$f":"VLOOKUP(B21,'LOC FINAL with new Themes'!A:M,10,0)","v":0},{"$f":"VLOOKUP(B21,'LOC FINAL with new Themes'!A:M,11,0)","v":0},{"$f":"VLOOKUP(B21,'LOC FINAL with new Themes'!A:M,12,0)","v":0},{"$f":"VLOOKUP(B21,'LOC FINAL with new Themes'!A:M,13,0)","v":"P"}]
["Mineral Estate - Solids","Mineral Estate - Solids",null,"Mineral Estate - Solids","Cadastre","DOI-BLM","Mitchell Leverette","mitchell_leverette@blm.gov",{"$f":"VLOOKUP(B22,'LOC FINAL with new Themes'!A:M,7,0)","v":"mineral leasess, mining claims, rights of way, gases (single data set); BLM-managed lands but managed all federal mineral estate (comprehensive for mineral estate) some electronic and some not"},{"$f":"VLOOKUP(B22,'LOC FINAL with new Themes'!A:M,8,0)","v":0},{"$f":"VLOOKUP(B22,'LOC FINAL with new Themes'!A:M,9,0)","v":0},{"$f":"VLOOKUP(B22,'LOC FINAL with new Themes'!A:M,10,0)","v":0},{"$f":"VLOOKUP(B22,'LOC FINAL with new Themes'!A:M,11,0)","v":0},{"$f":"VLOOKUP(B22,'LOC FINAL with new Themes'!A:M,12,0)","v":0},{"$f":"VLOOKUP(B22,'LOC FINAL with new Themes'!A:M,13,0)","v":"P"}]
["Multipurpose Marine Cadastre","Multipurpose Marine Cadastre","Multipurpose Marine Cadastre","Multipurpose Marine Cadastre","Cadastre","DOI-BOEM","Doug Vandegraft","douglas.vandegraft@boemre.gov",{"$f":"VLOOKUP(B23,'LOC FINAL with new Themes'!A:M,7,0)","v":"undeliverable email- neeed to identify new contact"},{"$f":"VLOOKUP(B23,'LOC FINAL with new Themes'!A:M,8,0)","v":0},{"$f":"VLOOKUP(B23,'LOC FINAL with new Themes'!A:M,9,0)","v":0},{"$f":"VLOOKUP(B23,'LOC FINAL with new Themes'!A:M,10,0)","v":0},{"$f":"VLOOKUP(B23,'LOC FINAL with new Themes'!A:M,11,0)","v":0},{"$f":"VLOOKUP(B23,'LOC FINAL with new Themes'!A:M,12,0)","v":0},{"$f":"VLOOKUP(B23,'LOC FINAL with new Themes'!A:M,13,0)","v":0}]
[null,null,"PADUS (Protected Areas Database of the US)","PADUS (Protected Areas Database of the US)","Cadastre","DOI-USGS"]
["Parcels","Parcels","Parcels","Parcels","Cadastre","DOI-BLM","Bob Ader","bob_ader@blm.gov",{"$f":"VLOOKUP(B25,'LOC FINAL with new Themes'!A:M,7,0)","v":"every agency has its own database; multiple data sets; standard being advanced and put into practice; federal interest is managed with BLM; state and local are authoritative sets for other lands; current effort of federal inventory "},{"$f":"VLOOKUP(B25,'LOC FINAL with new Themes'!A:M,8,0)","v":0},{"$f":"VLOOKUP(B25,'LOC FINAL with new Themes'!A:M,9,0)","v":0},{"$f":"VLOOKUP(B25,'LOC FINAL with new Themes'!A:M,10,0)","v":0},{"$f":"VLOOKUP(B25,'LOC FINAL with new Themes'!A:M,11,0)","v":0},{"$f":"VLOOKUP(B25,'LOC FINAL with new Themes'!A:M,12,0)","v":0},{"$f":"VLOOKUP(B25,'LOC FINAL with new Themes'!A:M,13,0)","v":"M "}]
[null,null,"Protractions","Protractions","Cadastre","DOI-MMS"]
["Surface Estate","Surface Estate",null,"Surface Estate","Cadastre","DOI-BLM","Kim Burns","kim_m_burns@blm.gov",{"$f":"VLOOKUP(B27,'LOC FINAL with new Themes'!A:M,7,0)","v":"lands administered by BLM; other agencies have own system; ownership of lands;  Tim Spisak, division chief; not archived, there is a backup; Denver office handles"},{"$f":"VLOOKUP(B27,'LOC FINAL with new Themes'!A:M,8,0)","v":0},{"$f":"VLOOKUP(B27,'LOC FINAL with new Themes'!A:M,9,0)","v":0},{"$f":"VLOOKUP(B27,'LOC FINAL with new Themes'!A:M,10,0)","v":0},{"$f":"VLOOKUP(B27,'LOC FINAL with new Themes'!A:M,11,0)","v":0},{"$f":"VLOOKUP(B27,'LOC FINAL with new Themes'!A:M,12,0)","v":0},{"$f":"VLOOKUP(B27,'LOC FINAL with new Themes'!A:M,13,0)","v":0}]
["U.S. Official Cadastral Survey Records","U.S. Official Cadastral Survey Records","U.S. Official Cadastral Survey Records","U.S. Official Cadastral Survey Records","Cadastre","DOI-BLM","Don Buhler","don_buhler@blm.gov",{"$f":"VLOOKUP(B28,'LOC FINAL with new Themes'!A:M,7,0)","v":"every agency has its own database; multiple data sets; standard being advanced and put into practice; federal interest is managed with BLM; state and local are authoritative sets for other lands; state offices are scanning these records (survey plats and field notes); CDI (conveyence cards)"},{"$f":"VLOOKUP(B28,'LOC FINAL with new Themes'!A:M,8,0)","v":0},{"$f":"VLOOKUP(B28,'LOC FINAL with new Themes'!A:M,9,0)","v":0},{"$f":"VLOOKUP(B28,'LOC FINAL with new Themes'!A:M,10,0)","v":0},{"$f":"VLOOKUP(B28,'LOC FINAL with new Themes'!A:M,11,0)","v":0},{"$f":"VLOOKUP(B28,'LOC FINAL with new Themes'!A:M,12,0)","v":0},{"$f":"VLOOKUP(B28,'LOC FINAL with new Themes'!A:M,13,0)","v":"M "}]
["U.S. Public Land Survey System","U.S. Public Land Survey System","U.S. Public Land Survey System","U.S. Public Land Survey System","Cadastre","DOI-BLM","Don Buhler","don_buhler@blm.gov",{"$f":"VLOOKUP(B29,'LOC FINAL with new Themes'!A:M,7,0)","v":"only federal agency that administers the PLSS; trying to get it to be logically one data set with different regions. (working copies for nine states in West); keep historical record in data base; schema 2 is the version to look at for archiving some time March 2012"},{"$f":"VLOOKUP(B29,'LOC FINAL with new Themes'!A:M,8,0)","v":0},{"$f":"VLOOKUP(B29,'LOC FINAL with new Themes'!A:M,9,0)","v":0},{"$f":"VLOOKUP(B29,'LOC FINAL with new Themes'!A:M,10,0)","v":0},{"$f":"VLOOKUP(B29,'LOC FINAL with new Themes'!A:M,11,0)","v":0},{"$f":"VLOOKUP(B29,'LOC FINAL with new Themes'!A:M,12,0)","v":0},{"$f":"VLOOKUP(B29,'LOC FINAL with new Themes'!A:M,13,0)","v":"P"}]
[null,null,null,{"$f":"SUBTOTAL(3,D17:D29)","v":13},"Cadastre Count"]
["Blended Sea Surface Temperature","Blended Sea Surface Temperature","Blended Sea Surface Temperature",{"$f":"IF(C31=0,B31,C31)","v":"Blended Sea Surface Temperature"},"Climate and Weather ","DOC-NOAA","Viva Banzon","Viva.Banzon@noaa.gov",{"$f":"VLOOKUP(B31,'LOC FINAL with new Themes'!A:M,7,0)","v":0},{"$f":"VLOOKUP(B31,'LOC FINAL with new Themes'!A:M,8,0)","v":0},{"$f":"VLOOKUP(B31,'LOC FINAL with new Themes'!A:M,9,0)","v":0},{"$f":"VLOOKUP(B31,'LOC FINAL with new Themes'!A:M,10,0)","v":0},{"$f":"VLOOKUP(B31,'LOC FINAL with new Themes'!A:M,11,0)","v":0},{"$f":"VLOOKUP(B31,'LOC FINAL with new Themes'!A:M,12,0)","v":0},{"$f":"VLOOKUP(B31,'LOC FINAL with new Themes'!A:M,13,0)","v":0}]
["Climate Data Sets ","Climate Datasets ",null,"Climate Datasets ","Climate and Weather ","USDA-NRCS","Jan Curtis","jan.curtis@por.usda.gov",{"$f":"VLOOKUP(B32,'LOC FINAL with new Themes'!A:M,7,0)","v":"Other climate data acquired from our SNOTEL and SCAN observation networks can be accessed from these links."},{"$f":"VLOOKUP(B32,'LOC FINAL with new Themes'!A:M,8,0)","v":0},{"$f":"VLOOKUP(B32,'LOC FINAL with new Themes'!A:M,9,0)","v":0},{"$f":"VLOOKUP(B32,'LOC FINAL with new Themes'!A:M,10,0)","v":0},{"$f":"VLOOKUP(B32,'LOC FINAL with new Themes'!A:M,11,0)","v":0},{"$f":"VLOOKUP(B32,'LOC FINAL with new Themes'!A:M,12,0)","v":0},{"$f":"VLOOKUP(B32,'LOC FINAL with new Themes'!A:M,13,0)","v":"M"}]
["Geostationary Operational Environmental Satellite (GOES) data (NCDC)","Geostationary Operational Environmental Satellite (GOES) data (NCDC)","Geostationary Operational Environmental Satellite (GOES) data (NCDC)","Geostationary Operational Environmental Satellite (GOES) data (NCDC)","Climate and Weather ","DOC-NOAA","Nancy Ritchey","Nancy.Ritchey@noaa.gov",{"$f":"VLOOKUP(B33,'LOC FINAL with new Themes'!A:M,7,0)","v":"Define 'data set'.  Each spacecraft continuously produces a data stream.  There are multiple sets and the total going back to the late 70s or early 80s numbers in the millions"},{"$f":"VLOOKUP(B33,'LOC FINAL with new Themes'!A:M,8,0)","v":"Yes"},{"$f":"VLOOKUP(B33,'LOC FINAL with new Themes'!A:M,9,0)","v":"Yes"},{"$f":"VLOOKUP(B33,'LOC FINAL with new Themes'!A:M,10,0)","v":"Continuously"},{"$f":"VLOOKUP(B33,'LOC FINAL with new Themes'!A:M,11,0)","v":"There are two active archive centers for these data; one here in Asheville, NC and one in Boulder, CO.  These data go back to the late 70s and all data are on line wither on disc or robotic tape storage"},{"$f":"VLOOKUP(B33,'LOC FINAL with new Themes'!A:M,12,0)","v":"Again, define your terms.  For examples see www.class.noaa.gov - Raw data are listed by satellite (GOES or POES) and then be instrument.  Geophysical products are listed by product name."},{"$f":"VLOOKUP(B33,'LOC FINAL with new Themes'!A:M,13,0)","v":0}]
[null,null,"MODIS-based Atmospheric Products","MODIS-based Atmospheric Products","Climate and Weather ","USDA -FS (Along with USGS)"]
["National Climate Data Center","National Climate Data Center",null,"National Climate Data Center","Climate and Weather ","USDA-NRCS","Jan Curtis","jan.curtis@por.usda.gov",{"$f":"VLOOKUP(B35,'LOC FINAL with new Themes'!A:M,7,0)","v":"administered by NOAA - is there a contact there?"},{"$f":"VLOOKUP(B35,'LOC FINAL with new Themes'!A:M,8,0)","v":0},{"$f":"VLOOKUP(B35,'LOC FINAL with new Themes'!A:M,9,0)","v":0},{"$f":"VLOOKUP(B35,'LOC FINAL with new Themes'!A:M,10,0)","v":0},{"$f":"VLOOKUP(B35,'LOC FINAL with new Themes'!A:M,11,0)","v":0},{"$f":"VLOOKUP(B35,'LOC FINAL with new Themes'!A:M,12,0)","v":0},{"$f":"VLOOKUP(B35,'LOC FINAL with new Themes'!A:M,13,0)","v":0}]
[null,null,"National Doplar Radar Data (NEXRAD)","National Doplar Radar Data (NEXRAD)","Climate and Weather ","DOC-NOAA"]
[null,null,"NOAA National Weather Service GIS Data",{"$f":"IF(C37=0,B37,C37)","v":"NOAA National Weather Service GIS Data"},"Climate and Weather ","DOC-NOAA"]
["Parameter-elevation Regressions on Independent Slopes Model (PRISM) Data Sets","Parameter-elevation Regressions on Independent Slopes Model (PRISM) Datasets","Parameter-elevation Regressions on Independent Slopes Model (PRISM) Datasets",{"$f":"IF(C38=0,B38,C38)","v":"Parameter-elevation Regressions on Independent Slopes Model (PRISM) Datasets"},"Climate and Weather ","USDA-NRCS","Jan Curtis","jan.curtis@por.usda.gov",{"$f":"VLOOKUP(B38,'LOC FINAL with new Themes'!A:M,7,0)","v":"info provided via http://www.prism.oregonstate.edu/ and \nhttp://www.nrcs.usda.gov/wps/portal/nrcs/main/?ss=16&navtype=SubNavigation&cid=null&navid=850130000000000&pnavid=850000000000000&position=SubNavigation&ttype=main&pname=USDA%2520NRCS%2520-%2520Natural%2520Resources%2520Conservation%2520Service\n"},{"$f":"VLOOKUP(B38,'LOC FINAL with new Themes'!A:M,8,0)","v":0},{"$f":"VLOOKUP(B38,'LOC FINAL with new Themes'!A:M,9,0)","v":0},{"$f":"VLOOKUP(B38,'LOC FINAL with new Themes'!A:M,10,0)","v":0},{"$f":"VLOOKUP(B38,'LOC FINAL with new Themes'!A:M,11,0)","v":0},{"$f":"VLOOKUP(B38,'LOC FINAL with new Themes'!A:M,12,0)","v":0},{"$f":"VLOOKUP(B38,'LOC FINAL with new Themes'!A:M,13,0)","v":"M"}]
["Polar Operational Environmental Satellite (POES) data (NCDC)","Polar Operational Environmental Satellite (POES) data","Polar Operational Environmental Satellite (POES) data",{"$f":"IF(C39=0,B39,C39)","v":"Polar Operational Environmental Satellite (POES) data"},"Climate and Weather ","DOC-NOAA","John Bates","john.j.bates@noaa.gov",{"$f":"VLOOKUP(B39,'LOC FINAL with new Themes'!A:M,7,0)","v":0},{"$f":"VLOOKUP(B39,'LOC FINAL with new Themes'!A:M,8,0)","v":0},{"$f":"VLOOKUP(B39,'LOC FINAL with new Themes'!A:M,9,0)","v":0},{"$f":"VLOOKUP(B39,'LOC FINAL with new Themes'!A:M,10,0)","v":0},{"$f":"VLOOKUP(B39,'LOC FINAL with new Themes'!A:M,11,0)","v":0},{"$f":"VLOOKUP(B39,'LOC FINAL with new Themes'!A:M,12,0)","v":0},{"$f":"VLOOKUP(B39,'LOC FINAL with new Themes'!A:M,13,0)","v":0}]
[null,null,null,{"$f":"SUBTOTAL(3,D31:D39)","v":9},"Climate and Weather  Count"]
[null,"5-digit ZIP Code Tabulation Area (Census 2000)","5-digit ZIP Code Tabulation Area (Census 2000)",{"$f":"IF(C41=0,B41,C41)","v":"5-digit ZIP Code Tabulation Area (Census 2000)"},"Cultural & Demographic Statistics ","DOC-Census","Jennifer Holland","Jennifer.L.Holland@census.gov",{"$f":"VLOOKUP(B41,'LOC FINAL with new Themes'!A:M,7,0)","v":0},{"$f":"VLOOKUP(B41,'LOC FINAL with new Themes'!A:M,8,0)","v":0},{"$f":"VLOOKUP(B41,'LOC FINAL with new Themes'!A:M,9,0)","v":0},{"$f":"VLOOKUP(B41,'LOC FINAL with new Themes'!A:M,10,0)","v":0},{"$f":"VLOOKUP(B41,'LOC FINAL with new Themes'!A:M,11,0)","v":0},{"$f":"VLOOKUP(B41,'LOC FINAL with new Themes'!A:M,12,0)","v":0},{"$f":"VLOOKUP(B41,'LOC FINAL with new Themes'!A:M,13,0)","v":0}]
["AIR, ANVSA, Hawaiian Homelands Boundaries","AIR, ANVSA, Hawaiian Homelands Boundaries",null,"AIR, ANVSA, Hawaiian Homelands Boundaries","Cultural & Demographic Statistics ","DOC-Census","Randy Fusaro","randy.j.fusaro@census.gov",{"$f":"VLOOKUP(B42,'LOC FINAL with new Themes'!A:M,7,0)","v":0},{"$f":"VLOOKUP(B42,'LOC FINAL with new Themes'!A:M,8,0)","v":0},{"$f":"VLOOKUP(B42,'LOC FINAL with new Themes'!A:M,9,0)","v":0},{"$f":"VLOOKUP(B42,'LOC FINAL with new Themes'!A:M,10,0)","v":0},{"$f":"VLOOKUP(B42,'LOC FINAL with new Themes'!A:M,11,0)","v":0},{"$f":"VLOOKUP(B42,'LOC FINAL with new Themes'!A:M,12,0)","v":0},{"$f":"VLOOKUP(B42,'LOC FINAL with new Themes'!A:M,13,0)","v":0}]
[null,"All Lines (2010 Census)","All Lines (2010 Census)","All Lines (2010 Census)","Cultural & Demographic Statistics ","DOC-Census","Jennifer Holland","Jennifer.L.Holland@census.gov",{"$f":"VLOOKUP(B43,'LOC FINAL with new Themes'!A:M,7,0)","v":0},{"$f":"VLOOKUP(B43,'LOC FINAL with new Themes'!A:M,8,0)","v":0},{"$f":"VLOOKUP(B43,'LOC FINAL with new Themes'!A:M,9,0)","v":0},{"$f":"VLOOKUP(B43,'LOC FINAL with new Themes'!A:M,10,0)","v":0},{"$f":"VLOOKUP(B43,'LOC FINAL with new Themes'!A:M,11,0)","v":0},{"$f":"VLOOKUP(B43,'LOC FINAL with new Themes'!A:M,12,0)","v":0},{"$f":"VLOOKUP(B43,'LOC FINAL with new Themes'!A:M,13,0)","v":0}]
[null,"ANSI codes for  metro/micropolitan areas","ANSI codes for  metro/micropolitan areas","ANSI codes for  metro/micropolitan areas","Cultural & Demographic Statistics ","DOC-Census","Jennifer Holland","Jennifer.L.Holland@census.gov",{"$f":"VLOOKUP(B44,'LOC FINAL with new Themes'!A:M,7,0)","v":0},{"$f":"VLOOKUP(B44,'LOC FINAL with new Themes'!A:M,8,0)","v":0},{"$f":"VLOOKUP(B44,'LOC FINAL with new Themes'!A:M,9,0)","v":0},{"$f":"VLOOKUP(B44,'LOC FINAL with new Themes'!A:M,10,0)","v":0},{"$f":"VLOOKUP(B44,'LOC FINAL with new Themes'!A:M,11,0)","v":0},{"$f":"VLOOKUP(B44,'LOC FINAL with new Themes'!A:M,12,0)","v":0},{"$f":"VLOOKUP(B44,'LOC FINAL with new Themes'!A:M,13,0)","v":0}]
[null,"ANSI codes for congressional districts","ANSI codes for congressional districts","ANSI codes for congressional districts","Cultural & Demographic Statistics ","DOC-Census","Jennifer Holland","Jennifer.L.Holland@census.gov",{"$f":"VLOOKUP(B45,'LOC FINAL with new Themes'!A:M,7,0)","v":0},{"$f":"VLOOKUP(B45,'LOC FINAL with new Themes'!A:M,8,0)","v":0},{"$f":"VLOOKUP(B45,'LOC FINAL with new Themes'!A:M,9,0)","v":0},{"$f":"VLOOKUP(B45,'LOC FINAL with new Themes'!A:M,10,0)","v":0},{"$f":"VLOOKUP(B45,'LOC FINAL with new Themes'!A:M,11,0)","v":0},{"$f":"VLOOKUP(B45,'LOC FINAL with new Themes'!A:M,12,0)","v":0},{"$f":"VLOOKUP(B45,'LOC FINAL with new Themes'!A:M,13,0)","v":0}]
[null,"ANSI codes for counties","ANSI codes for counties","ANSI codes for counties","Cultural & Demographic Statistics ","DOC-Census","Jennifer Holland","Jennifer.L.Holland@census.gov",{"$f":"VLOOKUP(B46,'LOC FINAL with new Themes'!A:M,7,0)","v":0},{"$f":"VLOOKUP(B46,'LOC FINAL with new Themes'!A:M,8,0)","v":0},{"$f":"VLOOKUP(B46,'LOC FINAL with new Themes'!A:M,9,0)","v":0},{"$f":"VLOOKUP(B46,'LOC FINAL with new Themes'!A:M,10,0)","v":0},{"$f":"VLOOKUP(B46,'LOC FINAL with new Themes'!A:M,11,0)","v":0},{"$f":"VLOOKUP(B46,'LOC FINAL with new Themes'!A:M,12,0)","v":0},{"$f":"VLOOKUP(B46,'LOC FINAL with new Themes'!A:M,13,0)","v":0}]
[null,"ANSI codes for states","ANSI codes for states","ANSI codes for states","Cultural & Demographic Statistics ","DOC-Census","Jennifer Holland","Jennifer.L.Holland@census.gov",{"$f":"VLOOKUP(B47,'LOC FINAL with new Themes'!A:M,7,0)","v":0},{"$f":"VLOOKUP(B47,'LOC FINAL with new Themes'!A:M,8,0)","v":0},{"$f":"VLOOKUP(B47,'LOC FINAL with new Themes'!A:M,9,0)","v":0},{"$f":"VLOOKUP(B47,'LOC FINAL with new Themes'!A:M,10,0)","v":0},{"$f":"VLOOKUP(B47,'LOC FINAL with new Themes'!A:M,11,0)","v":0},{"$f":"VLOOKUP(B47,'LOC FINAL with new Themes'!A:M,12,0)","v":0},{"$f":"VLOOKUP(B47,'LOC FINAL with new Themes'!A:M,13,0)","v":0}]
[null,"Block (2010 Census)","Block (2010 Census)","Block (2010 Census)","Cultural & Demographic Statistics ","DOC-Census","Jennifer Holland","Jennifer.L.Holland@census.gov",{"$f":"VLOOKUP(B48,'LOC FINAL with new Themes'!A:M,7,0)","v":0},{"$f":"VLOOKUP(B48,'LOC FINAL with new Themes'!A:M,8,0)","v":0},{"$f":"VLOOKUP(B48,'LOC FINAL with new Themes'!A:M,9,0)","v":0},{"$f":"VLOOKUP(B48,'LOC FINAL with new Themes'!A:M,10,0)","v":0},{"$f":"VLOOKUP(B48,'LOC FINAL with new Themes'!A:M,11,0)","v":0},{"$f":"VLOOKUP(B48,'LOC FINAL with new Themes'!A:M,12,0)","v":0},{"$f":"VLOOKUP(B48,'LOC FINAL with new Themes'!A:M,13,0)","v":0}]
[null,"Block (Census 2000)","Block (Census 2000)","Block (Census 2000)","Cultural & Demographic Statistics ","DOC-Census","Jennifer Holland","Jennifer.L.Holland@census.gov",{"$f":"VLOOKUP(B49,'LOC FINAL with new Themes'!A:M,7,0)","v":0},{"$f":"VLOOKUP(B49,'LOC FINAL with new Themes'!A:M,8,0)","v":0},{"$f":"VLOOKUP(B49,'LOC FINAL with new Themes'!A:M,9,0)","v":0},{"$f":"VLOOKUP(B49,'LOC FINAL with new Themes'!A:M,10,0)","v":0},{"$f":"VLOOKUP(B49,'LOC FINAL with new Themes'!A:M,11,0)","v":0},{"$f":"VLOOKUP(B49,'LOC FINAL with new Themes'!A:M,12,0)","v":0},{"$f":"VLOOKUP(B49,'LOC FINAL with new Themes'!A:M,13,0)","v":0}]
[null,"Block Group (Census 2000)","Block Group (Census 2000)","Block Group (Census 2000)","Cultural & Demographic Statistics ","DOC-Census","Jennifer Holland","Jennifer.L.Holland@census.gov",{"$f":"VLOOKUP(B50,'LOC FINAL with new Themes'!A:M,7,0)","v":0},{"$f":"VLOOKUP(B50,'LOC FINAL with new Themes'!A:M,8,0)","v":0},{"$f":"VLOOKUP(B50,'LOC FINAL with new Themes'!A:M,9,0)","v":0},{"$f":"VLOOKUP(B50,'LOC FINAL with new Themes'!A:M,10,0)","v":0},{"$f":"VLOOKUP(B50,'LOC FINAL with new Themes'!A:M,11,0)","v":0},{"$f":"VLOOKUP(B50,'LOC FINAL with new Themes'!A:M,12,0)","v":0},{"$f":"VLOOKUP(B50,'LOC FINAL with new Themes'!A:M,13,0)","v":0}]
[null,"Block Group (Census 2010)","Block Group (Census 2010)","Block Group (Census 2010)","Cultural & Demographic Statistics ","DOC-Census","Jennifer Holland","Jennifer.L.Holland@census.gov",{"$f":"VLOOKUP(B51,'LOC FINAL with new Themes'!A:M,7,0)","v":0},{"$f":"VLOOKUP(B51,'LOC FINAL with new Themes'!A:M,8,0)","v":0},{"$f":"VLOOKUP(B51,'LOC FINAL with new Themes'!A:M,9,0)","v":0},{"$f":"VLOOKUP(B51,'LOC FINAL with new Themes'!A:M,10,0)","v":0},{"$f":"VLOOKUP(B51,'LOC FINAL with new Themes'!A:M,11,0)","v":0},{"$f":"VLOOKUP(B51,'LOC FINAL with new Themes'!A:M,12,0)","v":0},{"$f":"VLOOKUP(B51,'LOC FINAL with new Themes'!A:M,13,0)","v":0}]
[null,"Census 2000 FIPS 55 Codes","Census 2000 FIPS 55 Codes","Census 2000 FIPS 55 Codes","Cultural & Demographic Statistics ","DOC-Census","Jennifer Holland","Jennifer.L.Holland@census.gov",{"$f":"VLOOKUP(B52,'LOC FINAL with new Themes'!A:M,7,0)","v":0},{"$f":"VLOOKUP(B52,'LOC FINAL with new Themes'!A:M,8,0)","v":0},{"$f":"VLOOKUP(B52,'LOC FINAL with new Themes'!A:M,9,0)","v":0},{"$f":"VLOOKUP(B52,'LOC FINAL with new Themes'!A:M,10,0)","v":0},{"$f":"VLOOKUP(B52,'LOC FINAL with new Themes'!A:M,11,0)","v":0},{"$f":"VLOOKUP(B52,'LOC FINAL with new Themes'!A:M,12,0)","v":0},{"$f":"VLOOKUP(B52,'LOC FINAL with new Themes'!A:M,13,0)","v":0}]
[null,"Census Tract (2010 Census)","Census Tract (2010 Census)","Census Tract (2010 Census)","Cultural & Demographic Statistics ","DOC-Census","Jennifer Holland","Jennifer.L.Holland@census.gov",{"$f":"VLOOKUP(B53,'LOC FINAL with new Themes'!A:M,7,0)","v":0},{"$f":"VLOOKUP(B53,'LOC FINAL with new Themes'!A:M,8,0)","v":0},{"$f":"VLOOKUP(B53,'LOC FINAL with new Themes'!A:M,9,0)","v":0},{"$f":"VLOOKUP(B53,'LOC FINAL with new Themes'!A:M,10,0)","v":0},{"$f":"VLOOKUP(B53,'LOC FINAL with new Themes'!A:M,11,0)","v":0},{"$f":"VLOOKUP(B53,'LOC FINAL with new Themes'!A:M,12,0)","v":0},{"$f":"VLOOKUP(B53,'LOC FINAL with new Themes'!A:M,13,0)","v":0}]
[null,"Census Tract (Census 2000)","Census Tract (Census 2000)","Census Tract (Census 2000)","Cultural & Demographic Statistics ","DOC-Census","Jennifer Holland","Jennifer.L.Holland@census.gov",{"$f":"VLOOKUP(B54,'LOC FINAL with new Themes'!A:M,7,0)","v":0},{"$f":"VLOOKUP(B54,'LOC FINAL with new Themes'!A:M,8,0)","v":0},{"$f":"VLOOKUP(B54,'LOC FINAL with new Themes'!A:M,9,0)","v":0},{"$f":"VLOOKUP(B54,'LOC FINAL with new Themes'!A:M,10,0)","v":0},{"$f":"VLOOKUP(B54,'LOC FINAL with new Themes'!A:M,11,0)","v":0},{"$f":"VLOOKUP(B54,'LOC FINAL with new Themes'!A:M,12,0)","v":0},{"$f":"VLOOKUP(B54,'LOC FINAL with new Themes'!A:M,13,0)","v":0}]
[null,"Combined Statistical Area (2010 Census)","Combined Statistical Area (2010 Census)","Combined Statistical Area (2010 Census)","Cultural & Demographic Statistics ","DOC-Census","Jennifer Holland","Jennifer.L.Holland@census.gov",{"$f":"VLOOKUP(B55,'LOC FINAL with new Themes'!A:M,7,0)","v":0},{"$f":"VLOOKUP(B55,'LOC FINAL with new Themes'!A:M,8,0)","v":0},{"$f":"VLOOKUP(B55,'LOC FINAL with new Themes'!A:M,9,0)","v":0},{"$f":"VLOOKUP(B55,'LOC FINAL with new Themes'!A:M,10,0)","v":0},{"$f":"VLOOKUP(B55,'LOC FINAL with new Themes'!A:M,11,0)","v":0},{"$f":"VLOOKUP(B55,'LOC FINAL with new Themes'!A:M,12,0)","v":0},{"$f":"VLOOKUP(B55,'LOC FINAL with new Themes'!A:M,13,0)","v":0}]
[null,"Congressional District Boundaries",null,"Congressional District Boundaries","Cultural & Demographic Statistics ","DOC-Census","Randy Fusaro","randy.j.fusaro@census.gov",{"$f":"VLOOKUP(B56,'LOC FINAL with new Themes'!A:M,7,0)","v":0},{"$f":"VLOOKUP(B56,'LOC FINAL with new Themes'!A:M,8,0)","v":0},{"$f":"VLOOKUP(B56,'LOC FINAL with new Themes'!A:M,9,0)","v":0},{"$f":"VLOOKUP(B56,'LOC FINAL with new Themes'!A:M,10,0)","v":0},{"$f":"VLOOKUP(B56,'LOC FINAL with new Themes'!A:M,11,0)","v":0},{"$f":"VLOOKUP(B56,'LOC FINAL with new Themes'!A:M,12,0)","v":0},{"$f":"VLOOKUP(B56,'LOC FINAL with new Themes'!A:M,13,0)","v":0}]
["County, place, MCD Boundaries","County, place, MCD Boundaries",null,"County, place, MCD Boundaries","Cultural & Demographic Statistics ","DOC-Census","Randy Fusaro","randy.j.fusaro@census.gov",{"$f":"VLOOKUP(B57,'LOC FINAL with new Themes'!A:M,7,0)","v":0},{"$f":"VLOOKUP(B57,'LOC FINAL with new Themes'!A:M,8,0)","v":0},{"$f":"VLOOKUP(B57,'LOC FINAL with new Themes'!A:M,9,0)","v":0},{"$f":"VLOOKUP(B57,'LOC FINAL with new Themes'!A:M,10,0)","v":0},{"$f":"VLOOKUP(B57,'LOC FINAL with new Themes'!A:M,11,0)","v":0},{"$f":"VLOOKUP(B57,'LOC FINAL with new Themes'!A:M,12,0)","v":0},{"$f":"VLOOKUP(B57,'LOC FINAL with new Themes'!A:M,13,0)","v":0}]
[null,"Elementary School District (2010 Census)","Elementary School District (2010 Census)","Elementary School District (2010 Census)","Cultural & Demographic Statistics ","DOC-Census","Jennifer Holland","Jennifer.L.Holland@census.gov",{"$f":"VLOOKUP(B58,'LOC FINAL with new Themes'!A:M,7,0)","v":0},{"$f":"VLOOKUP(B58,'LOC FINAL with new Themes'!A:M,8,0)","v":0},{"$f":"VLOOKUP(B58,'LOC FINAL with new Themes'!A:M,9,0)","v":0},{"$f":"VLOOKUP(B58,'LOC FINAL with new Themes'!A:M,10,0)","v":0},{"$f":"VLOOKUP(B58,'LOC FINAL with new Themes'!A:M,11,0)","v":0},{"$f":"VLOOKUP(B58,'LOC FINAL with new Themes'!A:M,12,0)","v":0},{"$f":"VLOOKUP(B58,'LOC FINAL with new Themes'!A:M,13,0)","v":0}]
[null,"Elementary School District (Census 2000)","Elementary School District (Census 2000)","Elementary School District (Census 2000)","Cultural & Demographic Statistics ","DOC-Census","Jennifer Holland","Jennifer.L.Holland@census.gov",{"$f":"VLOOKUP(B59,'LOC FINAL with new Themes'!A:M,7,0)","v":0},{"$f":"VLOOKUP(B59,'LOC FINAL with new Themes'!A:M,8,0)","v":0},{"$f":"VLOOKUP(B59,'LOC FINAL with new Themes'!A:M,9,0)","v":0},{"$f":"VLOOKUP(B59,'LOC FINAL with new Themes'!A:M,10,0)","v":0},{"$f":"VLOOKUP(B59,'LOC FINAL with new Themes'!A:M,11,0)","v":0},{"$f":"VLOOKUP(B59,'LOC FINAL with new Themes'!A:M,12,0)","v":0},{"$f":"VLOOKUP(B59,'LOC FINAL with new Themes'!A:M,13,0)","v":0}]
["FIPS/ANSI codes for states, counties, congressional districts & metro/micropolitan areas","FIPS/ANSI codes for states, counties, congressional districts & metro/micropolitan areas",null,"FIPS/ANSI codes for states, counties, congressional districts & metro/micropolitan areas","Cultural & Demographic Statistics ","DOC-Census","Randy Fusaro","randy.j.fusaro@census.gov",{"$f":"VLOOKUP(B60,'LOC FINAL with new Themes'!A:M,7,0)","v":0},{"$f":"VLOOKUP(B60,'LOC FINAL with new Themes'!A:M,8,0)","v":0},{"$f":"VLOOKUP(B60,'LOC FINAL with new Themes'!A:M,9,0)","v":0},{"$f":"VLOOKUP(B60,'LOC FINAL with new Themes'!A:M,10,0)","v":0},{"$f":"VLOOKUP(B60,'LOC FINAL with new Themes'!A:M,11,0)","v":0},{"$f":"VLOOKUP(B60,'LOC FINAL with new Themes'!A:M,12,0)","v":0},{"$f":"VLOOKUP(B60,'LOC FINAL with new Themes'!A:M,13,0)","v":0}]
["Metropolitan/micropolitan area boundaries","Metropolitan/micropolitan area boundaries",null,"Metropolitan/micropolitan area boundaries","Cultural & Demographic Statistics ","DOC-Census","Randy Fusaro","randy.j.fusaro@census.gov",{"$f":"VLOOKUP(B61,'LOC FINAL with new Themes'!A:M,7,0)","v":0},{"$f":"VLOOKUP(B61,'LOC FINAL with new Themes'!A:M,8,0)","v":0},{"$f":"VLOOKUP(B61,'LOC FINAL with new Themes'!A:M,9,0)","v":0},{"$f":"VLOOKUP(B61,'LOC FINAL with new Themes'!A:M,10,0)","v":0},{"$f":"VLOOKUP(B61,'LOC FINAL with new Themes'!A:M,11,0)","v":0},{"$f":"VLOOKUP(B61,'LOC FINAL with new Themes'!A:M,12,0)","v":0},{"$f":"VLOOKUP(B61,'LOC FINAL with new Themes'!A:M,13,0)","v":0}]
[null,"Metropolitan/micropolitan Statistical Area (2010 Census)","Metropolitan/micropolitan Statistical Area (2010 Census)","Metropolitan/micropolitan Statistical Area (2010 Census)","Cultural & Demographic Statistics ","DOC-Census","Jennifer Holland","Jennifer.L.Holland@census.gov",{"$f":"VLOOKUP(B62,'LOC FINAL with new Themes'!A:M,7,0)","v":0},{"$f":"VLOOKUP(B62,'LOC FINAL with new Themes'!A:M,8,0)","v":0},{"$f":"VLOOKUP(B62,'LOC FINAL with new Themes'!A:M,9,0)","v":0},{"$f":"VLOOKUP(B62,'LOC FINAL with new Themes'!A:M,10,0)","v":0},{"$f":"VLOOKUP(B62,'LOC FINAL with new Themes'!A:M,11,0)","v":0},{"$f":"VLOOKUP(B62,'LOC FINAL with new Themes'!A:M,12,0)","v":0},{"$f":"VLOOKUP(B62,'LOC FINAL with new Themes'!A:M,13,0)","v":0}]
["National Center for Health Statistics (Atlas of US Mortality)","National Center for Health Statistics (Atlas of US Mortality)",null,"National Center for Health Statistics (Atlas of US Mortality)","Cultural & Demographic Statistics ","HHS","Gary Anderson","gary.anderson@hhs.gov",{"$f":"VLOOKUP(B63,'LOC FINAL with new Themes'!A:M,7,0)","v":0},{"$f":"VLOOKUP(B63,'LOC FINAL with new Themes'!A:M,8,0)","v":0},{"$f":"VLOOKUP(B63,'LOC FINAL with new Themes'!A:M,9,0)","v":0},{"$f":"VLOOKUP(B63,'LOC FINAL with new Themes'!A:M,10,0)","v":0},{"$f":"VLOOKUP(B63,'LOC FINAL with new Themes'!A:M,11,0)","v":0},{"$f":"VLOOKUP(B63,'LOC FINAL with new Themes'!A:M,12,0)","v":0},{"$f":"VLOOKUP(B63,'LOC FINAL with new Themes'!A:M,13,0)","v":0}]
[null,null,"Oklahoma Tribal Joint Use Areas","Oklahoma Tribal Joint Use Areas","Cultural & Demographic Statistics ","DOC-Census"]
[null,null,"Oklahoma Tribal Statistical Areas","Oklahoma Tribal Statistical Areas","Cultural & Demographic Statistics ","DOC-Census"]
[null,"Public Use Microdata Area (Census 2000)","Public Use Microdata Area (Census 2000)","Public Use Microdata Area (Census 2000)","Cultural & Demographic Statistics ","DOC-Census","Jennifer Holland","Jennifer.L.Holland@census.gov",{"$f":"VLOOKUP(B66,'LOC FINAL with new Themes'!A:M,7,0)","v":0},{"$f":"VLOOKUP(B66,'LOC FINAL with new Themes'!A:M,8,0)","v":0},{"$f":"VLOOKUP(B66,'LOC FINAL with new Themes'!A:M,9,0)","v":0},{"$f":"VLOOKUP(B66,'LOC FINAL with new Themes'!A:M,10,0)","v":0},{"$f":"VLOOKUP(B66,'LOC FINAL with new Themes'!A:M,11,0)","v":0},{"$f":"VLOOKUP(B66,'LOC FINAL with new Themes'!A:M,12,0)","v":0},{"$f":"VLOOKUP(B66,'LOC FINAL with new Themes'!A:M,13,0)","v":0}]
["School District Boundaries","School District Boundaries",null,"School District Boundaries","Cultural & Demographic Statistics ","DOC-Census","Randy Fusaro","randy.j.fusaro@census.gov",{"$f":"VLOOKUP(B67,'LOC FINAL with new Themes'!A:M,7,0)","v":0},{"$f":"VLOOKUP(B67,'LOC FINAL with new Themes'!A:M,8,0)","v":0},{"$f":"VLOOKUP(B67,'LOC FINAL with new Themes'!A:M,9,0)","v":0},{"$f":"VLOOKUP(B67,'LOC FINAL with new Themes'!A:M,10,0)","v":0},{"$f":"VLOOKUP(B67,'LOC FINAL with new Themes'!A:M,11,0)","v":0},{"$f":"VLOOKUP(B67,'LOC FINAL with new Themes'!A:M,12,0)","v":0},{"$f":"VLOOKUP(B67,'LOC FINAL with new Themes'!A:M,13,0)","v":0}]
[null,"Secondary School District (2010 Census)","Secondary School District (2010 Census)","Secondary School District (2010 Census)","Cultural & Demographic Statistics ","DOC-Census","Jennifer Holland","Jennifer.L.Holland@census.gov",{"$f":"VLOOKUP(B68,'LOC FINAL with new Themes'!A:M,7,0)","v":0},{"$f":"VLOOKUP(B68,'LOC FINAL with new Themes'!A:M,8,0)","v":0},{"$f":"VLOOKUP(B68,'LOC FINAL with new Themes'!A:M,9,0)","v":0},{"$f":"VLOOKUP(B68,'LOC FINAL with new Themes'!A:M,10,0)","v":0},{"$f":"VLOOKUP(B68,'LOC FINAL with new Themes'!A:M,11,0)","v":0},{"$f":"VLOOKUP(B68,'LOC FINAL with new Themes'!A:M,12,0)","v":0},{"$f":"VLOOKUP(B68,'LOC FINAL with new Themes'!A:M,13,0)","v":0}]
[null,"Secondary School District (Census 2000)","Secondary School District (Census 2000)","Secondary School District (Census 2000)","Cultural & Demographic Statistics ","DOC-Census","Jennifer Holland","Jennifer.L.Holland@census.gov",{"$f":"VLOOKUP(B69,'LOC FINAL with new Themes'!A:M,7,0)","v":0},{"$f":"VLOOKUP(B69,'LOC FINAL with new Themes'!A:M,8,0)","v":0},{"$f":"VLOOKUP(B69,'LOC FINAL with new Themes'!A:M,9,0)","v":0},{"$f":"VLOOKUP(B69,'LOC FINAL with new Themes'!A:M,10,0)","v":0},{"$f":"VLOOKUP(B69,'LOC FINAL with new Themes'!A:M,11,0)","v":0},{"$f":"VLOOKUP(B69,'LOC FINAL with new Themes'!A:M,12,0)","v":0},{"$f":"VLOOKUP(B69,'LOC FINAL with new Themes'!A:M,13,0)","v":0}]
["State (+ Territories) Boundaries","State (+ Territories) Boundaries",null,"State (+ Territories) Boundaries","Cultural & Demographic Statistics ","DOC-Census","Randy Fusaro","randy.j.fusaro@census.gov",{"$f":"VLOOKUP(B70,'LOC FINAL with new Themes'!A:M,7,0)","v":0},{"$f":"VLOOKUP(B70,'LOC FINAL with new Themes'!A:M,8,0)","v":0},{"$f":"VLOOKUP(B70,'LOC FINAL with new Themes'!A:M,9,0)","v":0},{"$f":"VLOOKUP(B70,'LOC FINAL with new Themes'!A:M,10,0)","v":0},{"$f":"VLOOKUP(B70,'LOC FINAL with new Themes'!A:M,11,0)","v":0},{"$f":"VLOOKUP(B70,'LOC FINAL with new Themes'!A:M,12,0)","v":0},{"$f":"VLOOKUP(B70,'LOC FINAL with new Themes'!A:M,13,0)","v":0}]
["Statistical Area Boundaries (tracts, blocks, UAs, CDPs, etc)","Statistical Area Boundaries (tracts, blocks, UAs, CDPs, etc)",null,"Statistical Area Boundaries (tracts, blocks, UAs, CDPs, etc)","Cultural & Demographic Statistics ","DOC-Census","Randy Fusaro","randy.j.fusaro@census.gov",{"$f":"VLOOKUP(B71,'LOC FINAL with new Themes'!A:M,7,0)","v":0},{"$f":"VLOOKUP(B71,'LOC FINAL with new Themes'!A:M,8,0)","v":0},{"$f":"VLOOKUP(B71,'LOC FINAL with new Themes'!A:M,9,0)","v":0},{"$f":"VLOOKUP(B71,'LOC FINAL with new Themes'!A:M,10,0)","v":0},{"$f":"VLOOKUP(B71,'LOC FINAL with new Themes'!A:M,11,0)","v":0},{"$f":"VLOOKUP(B71,'LOC FINAL with new Themes'!A:M,12,0)","v":0},{"$f":"VLOOKUP(B71,'LOC FINAL with new Themes'!A:M,13,0)","v":0}]
[null,"Super Public Use Microdata Area (Census 2000)","Super Public Use Microdata Area (Census 2000)","Super Public Use Microdata Area (Census 2000)","Cultural & Demographic Statistics ","DOC-Census","Jennifer Holland","Jennifer.L.Holland@census.gov",{"$f":"VLOOKUP(B72,'LOC FINAL with new Themes'!A:M,7,0)","v":0},{"$f":"VLOOKUP(B72,'LOC FINAL with new Themes'!A:M,8,0)","v":0},{"$f":"VLOOKUP(B72,'LOC FINAL with new Themes'!A:M,9,0)","v":0},{"$f":"VLOOKUP(B72,'LOC FINAL with new Themes'!A:M,10,0)","v":0},{"$f":"VLOOKUP(B72,'LOC FINAL with new Themes'!A:M,11,0)","v":0},{"$f":"VLOOKUP(B72,'LOC FINAL with new Themes'!A:M,12,0)","v":0},{"$f":"VLOOKUP(B72,'LOC FINAL with new Themes'!A:M,13,0)","v":0}]
["TIGER* (many statistical boundaries)","TIGER (many statistical boundaries)",null,"TIGER (many statistical boundaries)","Cultural & Demographic Statistics ","DOC-Census","Randy Fusaro","randy.j.fusaro@census.gov",{"$f":"VLOOKUP(B73,'LOC FINAL with new Themes'!A:M,7,0)","v":0},{"$f":"VLOOKUP(B73,'LOC FINAL with new Themes'!A:M,8,0)","v":0},{"$f":"VLOOKUP(B73,'LOC FINAL with new Themes'!A:M,9,0)","v":0},{"$f":"VLOOKUP(B73,'LOC FINAL with new Themes'!A:M,10,0)","v":0},{"$f":"VLOOKUP(B73,'LOC FINAL with new Themes'!A:M,11,0)","v":0},{"$f":"VLOOKUP(B73,'LOC FINAL with new Themes'!A:M,12,0)","v":0},{"$f":"VLOOKUP(B73,'LOC FINAL with new Themes'!A:M,13,0)","v":0}]
[null,"Topological Faces (2010 Census)","Topological Faces (2010 Census)","Topological Faces (2010 Census)","Cultural & Demographic Statistics ","DOC-Census","Jennifer Holland","Jennifer.L.Holland@census.gov",{"$f":"VLOOKUP(B74,'LOC FINAL with new Themes'!A:M,7,0)","v":0},{"$f":"VLOOKUP(B74,'LOC FINAL with new Themes'!A:M,8,0)","v":0},{"$f":"VLOOKUP(B74,'LOC FINAL with new Themes'!A:M,9,0)","v":0},{"$f":"VLOOKUP(B74,'LOC FINAL with new Themes'!A:M,10,0)","v":0},{"$f":"VLOOKUP(B74,'LOC FINAL with new Themes'!A:M,11,0)","v":0},{"$f":"VLOOKUP(B74,'LOC FINAL with new Themes'!A:M,12,0)","v":0},{"$f":"VLOOKUP(B74,'LOC FINAL with new Themes'!A:M,13,0)","v":0}]
[null,"Unified School District (2010 Census)","Unified School District (2010 Census)","Unified School District (2010 Census)","Cultural & Demographic Statistics ","DOC-Census","Jennifer Holland","Jennifer.L.Holland@census.gov",{"$f":"VLOOKUP(B75,'LOC FINAL with new Themes'!A:M,7,0)","v":0},{"$f":"VLOOKUP(B75,'LOC FINAL with new Themes'!A:M,8,0)","v":0},{"$f":"VLOOKUP(B75,'LOC FINAL with new Themes'!A:M,9,0)","v":0},{"$f":"VLOOKUP(B75,'LOC FINAL with new Themes'!A:M,10,0)","v":0},{"$f":"VLOOKUP(B75,'LOC FINAL with new Themes'!A:M,11,0)","v":0},{"$f":"VLOOKUP(B75,'LOC FINAL with new Themes'!A:M,12,0)","v":0},{"$f":"VLOOKUP(B75,'LOC FINAL with new Themes'!A:M,13,0)","v":0}]
[null,"Unified School District (Census 2000)","Unified School District (Census 2000)","Unified School District (Census 2000)","Cultural & Demographic Statistics ","DOC-Census","Jennifer Holland","Jennifer.L.Holland@census.gov",{"$f":"VLOOKUP(B76,'LOC FINAL with new Themes'!A:M,7,0)","v":0},{"$f":"VLOOKUP(B76,'LOC FINAL with new Themes'!A:M,8,0)","v":0},{"$f":"VLOOKUP(B76,'LOC FINAL with new Themes'!A:M,9,0)","v":0},{"$f":"VLOOKUP(B76,'LOC FINAL with new Themes'!A:M,10,0)","v":0},{"$f":"VLOOKUP(B76,'LOC FINAL with new Themes'!A:M,11,0)","v":0},{"$f":"VLOOKUP(B76,'LOC FINAL with new Themes'!A:M,12,0)","v":0},{"$f":"VLOOKUP(B76,'LOC FINAL with new Themes'!A:M,13,0)","v":0}]
[null,"Urban Growth Area (2010 Census)","Urban Growth Area (2010 Census)","Urban Growth Area (2010 Census)","Cultural & Demographic Statistics ","DOC-Census","Jennifer Holland","Jennifer.L.Holland@census.gov",{"$f":"VLOOKUP(B77,'LOC FINAL with new Themes'!A:M,7,0)","v":0},{"$f":"VLOOKUP(B77,'LOC FINAL with new Themes'!A:M,8,0)","v":0},{"$f":"VLOOKUP(B77,'LOC FINAL with new Themes'!A:M,9,0)","v":0},{"$f":"VLOOKUP(B77,'LOC FINAL with new Themes'!A:M,10,0)","v":0},{"$f":"VLOOKUP(B77,'LOC FINAL with new Themes'!A:M,11,0)","v":0},{"$f":"VLOOKUP(B77,'LOC FINAL with new Themes'!A:M,12,0)","v":0},{"$f":"VLOOKUP(B77,'LOC FINAL with new Themes'!A:M,13,0)","v":0}]
[null,"Urban Growth Area (Census 2000)","Urban Growth Area (Census 2000)","Urban Growth Area (Census 2000)","Cultural & Demographic Statistics ","DOC-Census","Jennifer Holland","Jennifer.L.Holland@census.gov",{"$f":"VLOOKUP(B78,'LOC FINAL with new Themes'!A:M,7,0)","v":0},{"$f":"VLOOKUP(B78,'LOC FINAL with new Themes'!A:M,8,0)","v":0},{"$f":"VLOOKUP(B78,'LOC FINAL with new Themes'!A:M,9,0)","v":0},{"$f":"VLOOKUP(B78,'LOC FINAL with new Themes'!A:M,10,0)","v":0},{"$f":"VLOOKUP(B78,'LOC FINAL with new Themes'!A:M,11,0)","v":0},{"$f":"VLOOKUP(B78,'LOC FINAL with new Themes'!A:M,12,0)","v":0},{"$f":"VLOOKUP(B78,'LOC FINAL with new Themes'!A:M,13,0)","v":0}]
[null,"Voting District (2010 Census)","Voting District (2010 Census)","Voting District (2010 Census)","Cultural & Demographic Statistics ","DOC-Census","Jennifer Holland","Jennifer.L.Holland@census.gov",{"$f":"VLOOKUP(B79,'LOC FINAL with new Themes'!A:M,7,0)","v":0},{"$f":"VLOOKUP(B79,'LOC FINAL with new Themes'!A:M,8,0)","v":0},{"$f":"VLOOKUP(B79,'LOC FINAL with new Themes'!A:M,9,0)","v":0},{"$f":"VLOOKUP(B79,'LOC FINAL with new Themes'!A:M,10,0)","v":0},{"$f":"VLOOKUP(B79,'LOC FINAL with new Themes'!A:M,11,0)","v":0},{"$f":"VLOOKUP(B79,'LOC FINAL with new Themes'!A:M,12,0)","v":0},{"$f":"VLOOKUP(B79,'LOC FINAL with new Themes'!A:M,13,0)","v":0}]
[null,"Voting District (Census 2000)","Voting District (Census 2000)","Voting District (Census 2000)","Cultural & Demographic Statistics ","DOC-Census","Jennifer Holland","Jennifer.L.Holland@census.gov",{"$f":"VLOOKUP(B80,'LOC FINAL with new Themes'!A:M,7,0)","v":0},{"$f":"VLOOKUP(B80,'LOC FINAL with new Themes'!A:M,8,0)","v":0},{"$f":"VLOOKUP(B80,'LOC FINAL with new Themes'!A:M,9,0)","v":0},{"$f":"VLOOKUP(B80,'LOC FINAL with new Themes'!A:M,10,0)","v":0},{"$f":"VLOOKUP(B80,'LOC FINAL with new Themes'!A:M,11,0)","v":0},{"$f":"VLOOKUP(B80,'LOC FINAL with new Themes'!A:M,12,0)","v":0},{"$f":"VLOOKUP(B80,'LOC FINAL with new Themes'!A:M,13,0)","v":0}]
["Voting District Boundaries","Voting District Boundaries",null,"Voting District Boundaries","Cultural & Demographic Statistics ","DOC-Census","Randy Fusaro","randy.j.fusaro@census.gov",{"$f":"VLOOKUP(B81,'LOC FINAL with new Themes'!A:M,7,0)","v":0},{"$f":"VLOOKUP(B81,'LOC FINAL with new Themes'!A:M,8,0)","v":0},{"$f":"VLOOKUP(B81,'LOC FINAL with new Themes'!A:M,9,0)","v":0},{"$f":"VLOOKUP(B81,'LOC FINAL with new Themes'!A:M,10,0)","v":0},{"$f":"VLOOKUP(B81,'LOC FINAL with new Themes'!A:M,11,0)","v":0},{"$f":"VLOOKUP(B81,'LOC FINAL with new Themes'!A:M,12,0)","v":0},{"$f":"VLOOKUP(B81,'LOC FINAL with new Themes'!A:M,13,0)","v":0}]
[null,null,null,{"$f":"SUBTOTAL(3,D41:D81)","v":41},"Cultural & Demographic Statistics  Count"]
["Cultural Landscape Boundaries","Cultural Landscape Boundaries","Cultural Landscape Boundaries",{"$f":"IF(C83=0,B83,C83)","v":"Cultural Landscape Boundaries"},"Cultural & Demographic Statistics \nCultural Resources","DOI-NPS","John Knoerl","john_knoerl@nps.gov",{"$f":"VLOOKUP(B83,'LOC FINAL with new Themes'!A:M,7,0)","v":"Feature classes of the cultural resource data model (NPS only, other federal agencies handle it as they decide)"},{"$f":"VLOOKUP(B83,'LOC FINAL with new Themes'!A:M,8,0)","v":"don't want a single centralized data set but focusing on standard approach"},{"$f":"VLOOKUP(B83,'LOC FINAL with new Themes'!A:M,9,0)","v":0},{"$f":"VLOOKUP(B83,'LOC FINAL with new Themes'!A:M,10,0)","v":0},{"$f":"VLOOKUP(B83,'LOC FINAL with new Themes'!A:M,11,0)","v":0},{"$f":"VLOOKUP(B83,'LOC FINAL with new Themes'!A:M,12,0)","v":0},{"$f":"VLOOKUP(B83,'LOC FINAL with new Themes'!A:M,13,0)","v":0}]
["Cultural Resource Survey Boundaries","Cultural Resource Survey Boundaries","Cultural Resource Survey Boundaries","Cultural Resource Survey Boundaries","Cultural & Demographic Statistics \nCultural Resources","DOI-NPS","John Knoerl","john_knoerl@nps.gov",{"$f":"VLOOKUP(B84,'LOC FINAL with new Themes'!A:M,7,0)","v":"Feature classes of the cultural resource data model (NPS only, other federal agencies handle it as they decide)"},{"$f":"VLOOKUP(B84,'LOC FINAL with new Themes'!A:M,8,0)","v":"don't want a single centralized data set but focusing on standard approach"},{"$f":"VLOOKUP(B84,'LOC FINAL with new Themes'!A:M,9,0)","v":0},{"$f":"VLOOKUP(B84,'LOC FINAL with new Themes'!A:M,10,0)","v":0},{"$f":"VLOOKUP(B84,'LOC FINAL with new Themes'!A:M,11,0)","v":0},{"$f":"VLOOKUP(B84,'LOC FINAL with new Themes'!A:M,12,0)","v":0},{"$f":"VLOOKUP(B84,'LOC FINAL with new Themes'!A:M,13,0)","v":0}]
["Ethnographic Resource Boundaries","Ethnographic Resource Boundaries","Ethnographic Resource Boundaries","Ethnographic Resource Boundaries","Cultural & Demographic Statistics \nCultural Resources","DOI-NPS","John Knoerl","john_knoerl@nps.gov",{"$f":"VLOOKUP(B85,'LOC FINAL with new Themes'!A:M,7,0)","v":"Feature classes of the cultural resource data model (NPS only, other federal agencies handle it as they decide)"},{"$f":"VLOOKUP(B85,'LOC FINAL with new Themes'!A:M,8,0)","v":"don't want a single centralized data set but focusing on standard approach"},{"$f":"VLOOKUP(B85,'LOC FINAL with new Themes'!A:M,9,0)","v":0},{"$f":"VLOOKUP(B85,'LOC FINAL with new Themes'!A:M,10,0)","v":0},{"$f":"VLOOKUP(B85,'LOC FINAL with new Themes'!A:M,11,0)","v":0},{"$f":"VLOOKUP(B85,'LOC FINAL with new Themes'!A:M,12,0)","v":0},{"$f":"VLOOKUP(B85,'LOC FINAL with new Themes'!A:M,13,0)","v":0}]
["Historic Buildings Boundaries","Historic Buildings Boundaries","Historic Buildings Boundaries","Historic Buildings Boundaries","Cultural & Demographic Statistics \nCultural Resources","DOI-NPS","John Knoerl","john_knoerl@nps.gov",{"$f":"VLOOKUP(B86,'LOC FINAL with new Themes'!A:M,7,0)","v":"Feature classes of the cultural resource data model (NPS only, other federal agencies handle it as they decide)"},{"$f":"VLOOKUP(B86,'LOC FINAL with new Themes'!A:M,8,0)","v":"don't want a single centralized data set but focusing on standard approach"},{"$f":"VLOOKUP(B86,'LOC FINAL with new Themes'!A:M,9,0)","v":0},{"$f":"VLOOKUP(B86,'LOC FINAL with new Themes'!A:M,10,0)","v":0},{"$f":"VLOOKUP(B86,'LOC FINAL with new Themes'!A:M,11,0)","v":0},{"$f":"VLOOKUP(B86,'LOC FINAL with new Themes'!A:M,12,0)","v":0},{"$f":"VLOOKUP(B86,'LOC FINAL with new Themes'!A:M,13,0)","v":0}]
["Historic Districts Boundaries","Historic Districts Boundaries","Historic Districts Boundaries","Historic Districts Boundaries","Cultural & Demographic Statistics \nCultural Resources","DOI-NPS","John Knoerl","john_knoerl@nps.gov",{"$f":"VLOOKUP(B87,'LOC FINAL with new Themes'!A:M,7,0)","v":"Feature classes of the cultural resource data model (NPS only, other federal agencies handle it as they decide)"},{"$f":"VLOOKUP(B87,'LOC FINAL with new Themes'!A:M,8,0)","v":"don't want a single centralized data set but focusing on standard approach"},{"$f":"VLOOKUP(B87,'LOC FINAL with new Themes'!A:M,9,0)","v":0},{"$f":"VLOOKUP(B87,'LOC FINAL with new Themes'!A:M,10,0)","v":0},{"$f":"VLOOKUP(B87,'LOC FINAL with new Themes'!A:M,11,0)","v":0},{"$f":"VLOOKUP(B87,'LOC FINAL with new Themes'!A:M,12,0)","v":0},{"$f":"VLOOKUP(B87,'LOC FINAL with new Themes'!A:M,13,0)","v":0}]
["Historic Objects Boundaries","Historic Objects Boundaries","Historic Objects Boundaries","Historic Objects Boundaries","Cultural & Demographic Statistics \nCultural Resources","DOI-NPS","John Knoerl","john_knoerl@nps.gov",{"$f":"VLOOKUP(B88,'LOC FINAL with new Themes'!A:M,7,0)","v":"Feature classes of the cultural resource data model (NPS only, other federal agencies handle it as they decide)"},{"$f":"VLOOKUP(B88,'LOC FINAL with new Themes'!A:M,8,0)","v":"don't want a single centralized data set but focusing on standard approach"},{"$f":"VLOOKUP(B88,'LOC FINAL with new Themes'!A:M,9,0)","v":0},{"$f":"VLOOKUP(B88,'LOC FINAL with new Themes'!A:M,10,0)","v":0},{"$f":"VLOOKUP(B88,'LOC FINAL with new Themes'!A:M,11,0)","v":0},{"$f":"VLOOKUP(B88,'LOC FINAL with new Themes'!A:M,12,0)","v":0},{"$f":"VLOOKUP(B88,'LOC FINAL with new Themes'!A:M,13,0)","v":0}]
["Historic Structures Boundaries","Historic Structures Boundaries","Historic Structures Boundaries","Historic Structures Boundaries","Cultural & Demographic Statistics \nCultural Resources","DOI-NPS","John Knoerl","john_knoerl@nps.gov",{"$f":"VLOOKUP(B89,'LOC FINAL with new Themes'!A:M,7,0)","v":"Feature classes of the cultural resource data model (NPS only, other federal agencies handle it as they decide)"},{"$f":"VLOOKUP(B89,'LOC FINAL with new Themes'!A:M,8,0)","v":"don't want a single centralized data set but focusing on standard approach"},{"$f":"VLOOKUP(B89,'LOC FINAL with new Themes'!A:M,9,0)","v":0},{"$f":"VLOOKUP(B89,'LOC FINAL with new Themes'!A:M,10,0)","v":0},{"$f":"VLOOKUP(B89,'LOC FINAL with new Themes'!A:M,11,0)","v":0},{"$f":"VLOOKUP(B89,'LOC FINAL with new Themes'!A:M,12,0)","v":0},{"$f":"VLOOKUP(B89,'LOC FINAL with new Themes'!A:M,13,0)","v":"M "}]
[null,null,"Other Cultural Resource Boundaries","Other Cultural Resource Boundaries","Cultural & Demographic Statistics \nCultural Resources","DOI-NPS"]
[null,null,null,{"$f":"SUBTOTAL(3,D83:D90)","v":8},"Cultural & Demographic Statistics \nCultural Resources Count"]
[null,"Point Landmark (2010 Census)","Point of Landmark (2010 Census)",{"$f":"IF(C92=0,B92,C92)","v":"Point of Landmark (2010 Census)"},"Cultural Resources","DOC-Census","Jennifer Holland","Jennifer.L.Holland@census.gov",{"$f":"VLOOKUP(B92,'LOC FINAL with new Themes'!A:M,7,0)","v":0},{"$f":"VLOOKUP(B92,'LOC FINAL with new Themes'!A:M,8,0)","v":0},{"$f":"VLOOKUP(B92,'LOC FINAL with new Themes'!A:M,9,0)","v":0},{"$f":"VLOOKUP(B92,'LOC FINAL with new Themes'!A:M,10,0)","v":0},{"$f":"VLOOKUP(B92,'LOC FINAL with new Themes'!A:M,11,0)","v":0},{"$f":"VLOOKUP(B92,'LOC FINAL with new Themes'!A:M,12,0)","v":0},{"$f":"VLOOKUP(B92,'LOC FINAL with new Themes'!A:M,13,0)","v":0}]
["Archeological Sites","Archeological Sites","Archeological Sites","Archeological Sites","Cultural Resources ","DOI-NPS","John Knoerl","john_knoerl@nps.gov",{"$f":"VLOOKUP(B93,'LOC FINAL with new Themes'!A:M,7,0)","v":"Feature classes of the cultural resource data model (NPS only, other federal agencies handle it as they decide)"},{"$f":"VLOOKUP(B93,'LOC FINAL with new Themes'!A:M,8,0)","v":"don't want a single centralized data set but focusing on standard approach"},{"$f":"VLOOKUP(B93,'LOC FINAL with new Themes'!A:M,9,0)","v":"National Historic Presrevation Act says state historic preservation office has primary oversight (section 110)"},{"$f":"VLOOKUP(B93,'LOC FINAL with new Themes'!A:M,10,0)","v":0},{"$f":"VLOOKUP(B93,'LOC FINAL with new Themes'!A:M,11,0)","v":0},{"$f":"VLOOKUP(B93,'LOC FINAL with new Themes'!A:M,12,0)","v":0},{"$f":"VLOOKUP(B93,'LOC FINAL with new Themes'!A:M,13,0)","v":0}]
[null,"Area Landmark (2010 Census)","Area Landmark (2010 Census)","Area Landmark (2010 Census)","Cultural Resources ","DOC-Census","Jennifer Holland","Jennifer.L.Holland@census.gov",{"$f":"VLOOKUP(B94,'LOC FINAL with new Themes'!A:M,7,0)","v":0},{"$f":"VLOOKUP(B94,'LOC FINAL with new Themes'!A:M,8,0)","v":0},{"$f":"VLOOKUP(B94,'LOC FINAL with new Themes'!A:M,9,0)","v":0},{"$f":"VLOOKUP(B94,'LOC FINAL with new Themes'!A:M,10,0)","v":0},{"$f":"VLOOKUP(B94,'LOC FINAL with new Themes'!A:M,11,0)","v":0},{"$f":"VLOOKUP(B94,'LOC FINAL with new Themes'!A:M,12,0)","v":0},{"$f":"VLOOKUP(B94,'LOC FINAL with new Themes'!A:M,13,0)","v":0}]
[null,null,"Geographic Names Dataset - National Map","Geographic Names Dataset - National Map","Cultural Resources ","DOI-USGS"]
["National Map - Geographic Names Information System (GNIS)","National Map - Geographic Names Information System (GNIS)",null,"National Map - Geographic Names Information System (GNIS)","Cultural Resources ","DOI-USGS","Lou Yost","lyost@usgs.gov",{"$f":"VLOOKUP(B96,'LOC FINAL with new Themes'!A:M,7,0)","v":"single data set; poc, data managers; daily updated; Denver systems people backup and archive; transfer to NARA also; Gaz vector (internal)"},{"$f":"VLOOKUP(B96,'LOC FINAL with new Themes'!A:M,8,0)","v":0},{"$f":"VLOOKUP(B96,'LOC FINAL with new Themes'!A:M,9,0)","v":0},{"$f":"VLOOKUP(B96,'LOC FINAL with new Themes'!A:M,10,0)","v":0},{"$f":"VLOOKUP(B96,'LOC FINAL with new Themes'!A:M,11,0)","v":0},{"$f":"VLOOKUP(B96,'LOC FINAL with new Themes'!A:M,12,0)","v":0},{"$f":"VLOOKUP(B96,'LOC FINAL with new Themes'!A:M,13,0)","v":"S"}]
[null,"Topological Faces-Area Landmark Relationship File","Topological Faces-Area Landmark Relationship File","Topological Faces-Area Landmark Relationship File","Cultural Resources ","DOC-Census","Jennifer Holland","Jennifer.L.Holland@census.gov",{"$f":"VLOOKUP(B97,'LOC FINAL with new Themes'!A:M,7,0)","v":0},{"$f":"VLOOKUP(B97,'LOC FINAL with new Themes'!A:M,8,0)","v":0},{"$f":"VLOOKUP(B97,'LOC FINAL with new Themes'!A:M,9,0)","v":0},{"$f":"VLOOKUP(B97,'LOC FINAL with new Themes'!A:M,10,0)","v":0},{"$f":"VLOOKUP(B97,'LOC FINAL with new Themes'!A:M,11,0)","v":0},{"$f":"VLOOKUP(B97,'LOC FINAL with new Themes'!A:M,12,0)","v":0},{"$f":"VLOOKUP(B97,'LOC FINAL with new Themes'!A:M,13,0)","v":0}]
[null,null,null,{"$f":"SUBTOTAL(3,D92:D97)","v":6},"Cultural Resources Count"]
["133 UA Elevation Data (lidar)","133 UA Elevation Data (lidar)",null,{"$f":"IF(C99=0,B99,C99)","v":"133 UA Elevation Data (lidar)"},"Elevation","DOD-NGA","Ron Power, NGA","ronald.k.power@nga.mil",{"$f":"VLOOKUP(B99,'LOC FINAL with new Themes'!A:M,7,0)","v":0},{"$f":"VLOOKUP(B99,'LOC FINAL with new Themes'!A:M,8,0)","v":0},{"$f":"VLOOKUP(B99,'LOC FINAL with new Themes'!A:M,9,0)","v":0},{"$f":"VLOOKUP(B99,'LOC FINAL with new Themes'!A:M,10,0)","v":0},{"$f":"VLOOKUP(B99,'LOC FINAL with new Themes'!A:M,11,0)","v":0},{"$f":"VLOOKUP(B99,'LOC FINAL with new Themes'!A:M,12,0)","v":0},{"$f":"VLOOKUP(B99,'LOC FINAL with new Themes'!A:M,13,0)","v":0}]
["DEMs - Archive","DEMs - Archive",null,"DEMs - Archive","Elevation","DOI-USGS","Gayla Evans","gevans@usgs.gov",{"$f":"VLOOKUP(B100,'LOC FINAL with new Themes'!A:M,7,0)","v":"DEMS update at variable nature; are four data sets based on resolution; this is the POC and data manager; this is the name and maintain three complete with two physically separate on-site and one off-site"},{"$f":"VLOOKUP(B100,'LOC FINAL with new Themes'!A:M,8,0)","v":0},{"$f":"VLOOKUP(B100,'LOC FINAL with new Themes'!A:M,9,0)","v":0},{"$f":"VLOOKUP(B100,'LOC FINAL with new Themes'!A:M,10,0)","v":0},{"$f":"VLOOKUP(B100,'LOC FINAL with new Themes'!A:M,11,0)","v":0},{"$f":"VLOOKUP(B100,'LOC FINAL with new Themes'!A:M,12,0)","v":0},{"$f":"VLOOKUP(B100,'LOC FINAL with new Themes'!A:M,13,0)","v":"S"}]
["GTOPO30","GTOPO30",null,"GTOPO30","Elevation","DOI-USGS","Jeff Danielson"," daniels@usgs.gov",{"$f":"VLOOKUP(B101,'LOC FINAL with new Themes'!A:M,7,0)","v":"GTOPO30 is static; one data set; this is the POC and data manager; this is the name and maintain three complete with two physically separate on-site and one off-site"},{"$f":"VLOOKUP(B101,'LOC FINAL with new Themes'!A:M,8,0)","v":0},{"$f":"VLOOKUP(B101,'LOC FINAL with new Themes'!A:M,9,0)","v":0},{"$f":"VLOOKUP(B101,'LOC FINAL with new Themes'!A:M,10,0)","v":0},{"$f":"VLOOKUP(B101,'LOC FINAL with new Themes'!A:M,11,0)","v":0},{"$f":"VLOOKUP(B101,'LOC FINAL with new Themes'!A:M,12,0)","v":0},{"$f":"VLOOKUP(B101,'LOC FINAL with new Themes'!A:M,13,0)","v":0}]
["National Map National Elevation Data Set (NED)","National Map  - National Elevation Dataset (NED)",null,"National Map  - National Elevation Dataset (NED)","Elevation","DOI-USGS","Jim Mauck","lyost@usgs.gov",{"$f":"VLOOKUP(B102,'LOC FINAL with new Themes'!A:M,7,0)","v":0},{"$f":"VLOOKUP(B102,'LOC FINAL with new Themes'!A:M,8,0)","v":0},{"$f":"VLOOKUP(B102,'LOC FINAL with new Themes'!A:M,9,0)","v":0},{"$f":"VLOOKUP(B102,'LOC FINAL with new Themes'!A:M,10,0)","v":0},{"$f":"VLOOKUP(B102,'LOC FINAL with new Themes'!A:M,11,0)","v":0},{"$f":"VLOOKUP(B102,'LOC FINAL with new Themes'!A:M,12,0)","v":0},{"$f":"VLOOKUP(B102,'LOC FINAL with new Themes'!A:M,13,0)","v":0}]
["SRTM (3-arc second DTEDS)","SRTM (3-arc second DTEDS)",null,"SRTM (3-arc second DTEDS)","Elevation","DOI-USGS","Dean Gesch, USGS","gesch@usgs.gov",{"$f":"VLOOKUP(B103,'LOC FINAL with new Themes'!A:M,7,0)","v":"SRTM is static; one data set; this is the POC and data manager; this is the name and maintain three complete with two physically separate on-site and one off-site"},{"$f":"VLOOKUP(B103,'LOC FINAL with new Themes'!A:M,8,0)","v":0},{"$f":"VLOOKUP(B103,'LOC FINAL with new Themes'!A:M,9,0)","v":0},{"$f":"VLOOKUP(B103,'LOC FINAL with new Themes'!A:M,10,0)","v":0},{"$f":"VLOOKUP(B103,'LOC FINAL with new Themes'!A:M,11,0)","v":0},{"$f":"VLOOKUP(B103,'LOC FINAL with new Themes'!A:M,12,0)","v":0},{"$f":"VLOOKUP(B103,'LOC FINAL with new Themes'!A:M,13,0)","v":"S"}]
["Digital Flood Insurance Rate Maps (D-FIRM)","Digital Flood Insurance Rate Maps (D-FIRM)","Digital Flood Insurance Rate Maps (DFIRM)","Digital Flood Insurance Rate Maps (DFIRM)","Elevation ","DHS-FEMA","Scott McAfee","scott.mcaffee@dhs.gov",{"$f":"VLOOKUP(B104,'LOC FINAL with new Themes'!A:M,7,0)","v":0},{"$f":"VLOOKUP(B104,'LOC FINAL with new Themes'!A:M,8,0)","v":0},{"$f":"VLOOKUP(B104,'LOC FINAL with new Themes'!A:M,9,0)","v":0},{"$f":"VLOOKUP(B104,'LOC FINAL with new Themes'!A:M,10,0)","v":0},{"$f":"VLOOKUP(B104,'LOC FINAL with new Themes'!A:M,11,0)","v":0},{"$f":"VLOOKUP(B104,'LOC FINAL with new Themes'!A:M,12,0)","v":0},{"$f":"VLOOKUP(B104,'LOC FINAL with new Themes'!A:M,13,0)","v":0}]
[null,null,"Elevation Bathymetric - Ocean, Coastal, and Great Lakes Bathymetry ","Elevation Bathymetric - Ocean, Coastal, and Great Lakes Bathymetry ","Elevation ","DOC-NOAA"]
[null,null,"National Elevation Dataset  - National Map","National Elevation Dataset  - National Map","Elevation ","DOI-USGS"]
["National Flood Hazard Layer (NFHL)","National Flood Hazard Layer (NFHL)","National Flood Hazard Layer (NFHL)","National Flood Hazard Layer (NFHL)","Elevation ","DHS-FEMA","Scott McAfee","scott.mcaffee@dhs.gov",{"$f":"VLOOKUP(B107,'LOC FINAL with new Themes'!A:M,7,0)","v":0},{"$f":"VLOOKUP(B107,'LOC FINAL with new Themes'!A:M,8,0)","v":0},{"$f":"VLOOKUP(B107,'LOC FINAL with new Themes'!A:M,9,0)","v":0},{"$f":"VLOOKUP(B107,'LOC FINAL with new Themes'!A:M,10,0)","v":0},{"$f":"VLOOKUP(B107,'LOC FINAL with new Themes'!A:M,11,0)","v":0},{"$f":"VLOOKUP(B107,'LOC FINAL with new Themes'!A:M,12,0)","v":0},{"$f":"VLOOKUP(B107,'LOC FINAL with new Themes'!A:M,13,0)","v":0}]
[null,null,null,{"$f":"SUBTOTAL(3,D99:D107)","v":9},"Elevation Count"]
[null,null,"Airborne Gravity",{"$f":"IF(C109=0,B109,C109)","v":"Airborne Gravity"},"Geodetic Control ","DOC-NOAA","Dr. Theresa Diehl","theresa.diehl@noaa.gov"]
[null,null,"Continuously Operating Reference Stations (CORS)","Continuously Operating Reference Stations (CORS)","Geodetic Control ","DOC-NOAA","Dr. Giovanni Sella","giovanni.sella@noaa.gov"]
[null,null,"Geoid Models","Geoid Models","Geodetic Control ","DOC-NOAA","Dr. Dan Roman","dan.roman@noaa.gov"]
["National Geologic Data Base","National Geologic Data Base","National Geodetic Survey (NGS) Datasheets","National Geodetic Survey (NGS) Datasheets","Geodetic Control ","DOC-NOAA","Jim Tomlin","jim.tomlin@noaa.gov",{"$f":"VLOOKUP(B112,'LOC FINAL with new Themes'!A:M,7,0)","v":0},{"$f":"VLOOKUP(B112,'LOC FINAL with new Themes'!A:M,8,0)","v":0},{"$f":"VLOOKUP(B112,'LOC FINAL with new Themes'!A:M,9,0)","v":0},{"$f":"VLOOKUP(B112,'LOC FINAL with new Themes'!A:M,10,0)","v":0},{"$f":"VLOOKUP(B112,'LOC FINAL with new Themes'!A:M,11,0)","v":0},{"$f":"VLOOKUP(B112,'LOC FINAL with new Themes'!A:M,12,0)","v":0},{"$f":"VLOOKUP(B112,'LOC FINAL with new Themes'!A:M,13,0)","v":0}]
[null,null,"Precise Global Navigation Satellite System (GNSS) Orbits",{"$f":"IF(C113=0,B218,C113)","v":"Precise Global Navigation Satellite System (GNSS) Orbits"},"Geodetic Control ","DOC-NOAA","Dr. Jake Griffiths","jake.griffiths@noaa.gov"]
[null,null,null,{"$f":"SUBTOTAL(3,D109:D113)","v":5},"Geodetic Control  Count"]
[null,null,"Coal assessment and mapping",{"$f":"IF(C115=0,B115,C115)","v":"Coal assessment and mapping"},"Geology","DOI-USGS"]
["Coastline Data","Coastline Data","Coastline Data","Coastline Data","Geology","DOI-BOEM","Doug Vandegraft","douglas.vandegraft@boemre.gov",{"$f":"VLOOKUP(B116,'LOC FINAL with new Themes'!A:M,7,0)","v":"undeliverable email- neeed to identify new contact"},{"$f":"VLOOKUP(B116,'LOC FINAL with new Themes'!A:M,8,0)","v":0},{"$f":"VLOOKUP(B116,'LOC FINAL with new Themes'!A:M,9,0)","v":0},{"$f":"VLOOKUP(B116,'LOC FINAL with new Themes'!A:M,10,0)","v":0},{"$f":"VLOOKUP(B116,'LOC FINAL with new Themes'!A:M,11,0)","v":0},{"$f":"VLOOKUP(B116,'LOC FINAL with new Themes'!A:M,12,0)","v":0},{"$f":"VLOOKUP(B116,'LOC FINAL with new Themes'!A:M,13,0)","v":0}]
[null,null,"Earthquake monitoring, research, and mapping","Earthquake monitoring, research, and mapping","Geology","DOI-USGS"]
[null,null,"Geochemistry","Geochemistry","Geology","DOI-USGS"]
[null,null,"Geochronology","Geochronology","Geology","DOI-USGS"]
[null,null,"Geologic mapping","Geologic mapping","Geology","DOI-USGS"]
[null,null,"Geomagnetism","Geomagnetism","Geology","DOI-USGS"]
[null,null,"Geophysics","Geophysics","Geology","DOI-USGS"]
[null,null,"Landslide monitoring, research, and mapping","Landslide monitoring, research, and mapping","Geology","DOI-USGS"]
[null,null,"Marine geology","Marine geology","Geology","DOI-USGS"]
[null,null,"Metallic mineral assessment and mapping","Metallic mineral assessment and mapping","Geology","DOI-USGS"]
[null,null,"MMS Baseline","MMS Baseline","Geology","DOI-MMS"]
[null,null,"Non-metallic mineral assessment and mapping, onshore",{"$f":"IF(C127=0,B126,C127)","v":"Non-metallic mineral assessment and mapping, onshore"},"Geology","DOI-USGS"]
["OCS BLOCK LEASE DATA (OCS)","OCS BLOCK LEASE DATA ","OCS Lease Blocks",{"$f":"IF(C128=0,#REF!,C128)","v":"OCS Lease Blocks"},"Geology","DOI-BOEM","Doug Vandegraft","douglas.vandegraft@boemre.gov",{"$f":"VLOOKUP(B128,'LOC FINAL with new Themes'!A:M,7,0)","v":"undeliverable email- neeed to identify new contact"},{"$f":"VLOOKUP(B128,'LOC FINAL with new Themes'!A:M,8,0)","v":0},{"$f":"VLOOKUP(B128,'LOC FINAL with new Themes'!A:M,9,0)","v":0},{"$f":"VLOOKUP(B128,'LOC FINAL with new Themes'!A:M,10,0)","v":0},{"$f":"VLOOKUP(B128,'LOC FINAL with new Themes'!A:M,11,0)","v":0},{"$f":"VLOOKUP(B128,'LOC FINAL with new Themes'!A:M,12,0)","v":0},{"$f":"VLOOKUP(B128,'LOC FINAL with new Themes'!A:M,13,0)","v":0}]
[null,null,"OCS Active Leases",{"$f":"IF(C129=0,B128,C129)","v":"OCS Active Leases"},"Geology","DOI-BOEM","Doug Vandegraft","douglas.vandegraft@boemre.gov"]
[null,null,"Oil and gas assessment and mapping, onshore",{"$f":"IF(C130=0,B130,C130)","v":"Oil and gas assessment and mapping, onshore"},"Geology","DOI-USGS"]
[null,null,"Paleontology","Paleontology","Geology","DOI-USGS"]
[null,null,"Sand and Gravel","Sand and Gravel","Geology","DOI-MMS"]
[null,null,"Volcano monitoring, research, and mapping","Volcano monitoring, research, and mapping","Geology","DOI-USGS"]
[null,null,"Wells","Wells","Geology","DOI-MMS"]
[null,null,null,{"$f":"SUBTOTAL(3,D115:D134)","v":20},"Geology Count"]
["County Boundaries","County Boundaries",null,{"$f":"IF(C136=0,B136,C136)","v":"County Boundaries"},"Governmental Units",null,null,null,{"$f":"VLOOKUP(B136,'LOC FINAL with new Themes'!A:M,7,0)","v":0},{"$f":"VLOOKUP(B136,'LOC FINAL with new Themes'!A:M,8,0)","v":0},{"$f":"VLOOKUP(B136,'LOC FINAL with new Themes'!A:M,9,0)","v":0},{"$f":"VLOOKUP(B136,'LOC FINAL with new Themes'!A:M,10,0)","v":0},{"$f":"VLOOKUP(B136,'LOC FINAL with new Themes'!A:M,11,0)","v":0},{"$f":"VLOOKUP(B136,'LOC FINAL with new Themes'!A:M,12,0)","v":0},{"$f":"VLOOKUP(B136,'LOC FINAL with new Themes'!A:M,13,0)","v":0}]
[null,"Place and MCD Boundaries",null,"Place and MCD Boundaries","Governmental Units",null,null,null,{"$f":"VLOOKUP(B137,'LOC FINAL with new Themes'!A:M,7,0)","v":0},{"$f":"VLOOKUP(B137,'LOC FINAL with new Themes'!A:M,8,0)","v":0},{"$f":"VLOOKUP(B137,'LOC FINAL with new Themes'!A:M,9,0)","v":0},{"$f":"VLOOKUP(B137,'LOC FINAL with new Themes'!A:M,10,0)","v":0},{"$f":"VLOOKUP(B137,'LOC FINAL with new Themes'!A:M,11,0)","v":0},{"$f":"VLOOKUP(B137,'LOC FINAL with new Themes'!A:M,12,0)","v":0},{"$f":"VLOOKUP(B137,'LOC FINAL with new Themes'!A:M,13,0)","v":0}]
[null,"Alaska Native Regional Corporation (2010 Census)","Alaska Native Regional Corporation (2010 Census)","Alaska Native Regional Corporation (2010 Census)","Governmental Units ","DOC-Census","Jennifer Holland","Jennifer.L.Holland@census.gov",{"$f":"VLOOKUP(B138,'LOC FINAL with new Themes'!A:M,7,0)","v":0},{"$f":"VLOOKUP(B138,'LOC FINAL with new Themes'!A:M,8,0)","v":0},{"$f":"VLOOKUP(B138,'LOC FINAL with new Themes'!A:M,9,0)","v":0},{"$f":"VLOOKUP(B138,'LOC FINAL with new Themes'!A:M,10,0)","v":0},{"$f":"VLOOKUP(B138,'LOC FINAL with new Themes'!A:M,11,0)","v":0},{"$f":"VLOOKUP(B138,'LOC FINAL with new Themes'!A:M,12,0)","v":0},{"$f":"VLOOKUP(B138,'LOC FINAL with new Themes'!A:M,13,0)","v":0}]
[null,"Alaska Native Regional Corporation (Census 2000)","Alaska Native Regional Corporation (Census 2000)","Alaska Native Regional Corporation (Census 2000)","Governmental Units ","DOC-Census","Jennifer Holland","Jennifer.L.Holland@census.gov",{"$f":"VLOOKUP(B139,'LOC FINAL with new Themes'!A:M,7,0)","v":0},{"$f":"VLOOKUP(B139,'LOC FINAL with new Themes'!A:M,8,0)","v":0},{"$f":"VLOOKUP(B139,'LOC FINAL with new Themes'!A:M,9,0)","v":0},{"$f":"VLOOKUP(B139,'LOC FINAL with new Themes'!A:M,10,0)","v":0},{"$f":"VLOOKUP(B139,'LOC FINAL with new Themes'!A:M,11,0)","v":0},{"$f":"VLOOKUP(B139,'LOC FINAL with new Themes'!A:M,12,0)","v":0},{"$f":"VLOOKUP(B139,'LOC FINAL with new Themes'!A:M,13,0)","v":0}]
[null,"American Indian Tribal Subdivision (2010 Census)","American Indian Tribal Subdivision (2010 Census)","American Indian Tribal Subdivision (2010 Census)","Governmental Units ","DOC-Census","Jennifer Holland","Jennifer.L.Holland@census.gov",{"$f":"VLOOKUP(B140,'LOC FINAL with new Themes'!A:M,7,0)","v":0},{"$f":"VLOOKUP(B140,'LOC FINAL with new Themes'!A:M,8,0)","v":0},{"$f":"VLOOKUP(B140,'LOC FINAL with new Themes'!A:M,9,0)","v":0},{"$f":"VLOOKUP(B140,'LOC FINAL with new Themes'!A:M,10,0)","v":0},{"$f":"VLOOKUP(B140,'LOC FINAL with new Themes'!A:M,11,0)","v":0},{"$f":"VLOOKUP(B140,'LOC FINAL with new Themes'!A:M,12,0)","v":0},{"$f":"VLOOKUP(B140,'LOC FINAL with new Themes'!A:M,13,0)","v":0}]
[null,"American Indian Tribal Subdivision (Census 2000)","American Indian Tribal Subdivision (Census 2000)","American Indian Tribal Subdivision (Census 2000)","Governmental Units ","DOC-Census","Jennifer Holland","Jennifer.L.Holland@census.gov",{"$f":"VLOOKUP(B141,'LOC FINAL with new Themes'!A:M,7,0)","v":0},{"$f":"VLOOKUP(B141,'LOC FINAL with new Themes'!A:M,8,0)","v":0},{"$f":"VLOOKUP(B141,'LOC FINAL with new Themes'!A:M,9,0)","v":0},{"$f":"VLOOKUP(B141,'LOC FINAL with new Themes'!A:M,10,0)","v":0},{"$f":"VLOOKUP(B141,'LOC FINAL with new Themes'!A:M,11,0)","v":0},{"$f":"VLOOKUP(B141,'LOC FINAL with new Themes'!A:M,12,0)","v":0},{"$f":"VLOOKUP(B141,'LOC FINAL with new Themes'!A:M,13,0)","v":0}]
[null,"American Indian/Alaska Native/Native Hawaiian Area (2000 Census)","American Indian/Alaska Native/Native Hawaiian Area (2000 Census)","American Indian/Alaska Native/Native Hawaiian Area (2000 Census)","Governmental Units ","DOC-Census","Jennifer Holland","Jennifer.L.Holland@census.gov",{"$f":"VLOOKUP(B142,'LOC FINAL with new Themes'!A:M,7,0)","v":0},{"$f":"VLOOKUP(B142,'LOC FINAL with new Themes'!A:M,8,0)","v":0},{"$f":"VLOOKUP(B142,'LOC FINAL with new Themes'!A:M,9,0)","v":0},{"$f":"VLOOKUP(B142,'LOC FINAL with new Themes'!A:M,10,0)","v":0},{"$f":"VLOOKUP(B142,'LOC FINAL with new Themes'!A:M,11,0)","v":0},{"$f":"VLOOKUP(B142,'LOC FINAL with new Themes'!A:M,12,0)","v":0},{"$f":"VLOOKUP(B142,'LOC FINAL with new Themes'!A:M,13,0)","v":0}]
[null,"American Indian/Alaska Native/Native Hawaiian Area (2010 Census)","American Indian/Alaska Native/Native Hawaiian Area (2010 Census)","American Indian/Alaska Native/Native Hawaiian Area (2010 Census)","Governmental Units ","DOC-Census","Jennifer Holland","Jennifer.L.Holland@census.gov",{"$f":"VLOOKUP(B143,'LOC FINAL with new Themes'!A:M,7,0)","v":0},{"$f":"VLOOKUP(B143,'LOC FINAL with new Themes'!A:M,8,0)","v":0},{"$f":"VLOOKUP(B143,'LOC FINAL with new Themes'!A:M,9,0)","v":0},{"$f":"VLOOKUP(B143,'LOC FINAL with new Themes'!A:M,10,0)","v":0},{"$f":"VLOOKUP(B143,'LOC FINAL with new Themes'!A:M,11,0)","v":0},{"$f":"VLOOKUP(B143,'LOC FINAL with new Themes'!A:M,12,0)","v":0},{"$f":"VLOOKUP(B143,'LOC FINAL with new Themes'!A:M,13,0)","v":0}]
[null,"Combined New England City and Town Area (2010 Census)","Combined New England City and Town Area (2010 Census)","Combined New England City and Town Area (2010 Census)","Governmental Units ","DOC-Census","Jennifer Holland","Jennifer.L.Holland@census.gov",{"$f":"VLOOKUP(B144,'LOC FINAL with new Themes'!A:M,7,0)","v":0},{"$f":"VLOOKUP(B144,'LOC FINAL with new Themes'!A:M,8,0)","v":0},{"$f":"VLOOKUP(B144,'LOC FINAL with new Themes'!A:M,9,0)","v":0},{"$f":"VLOOKUP(B144,'LOC FINAL with new Themes'!A:M,10,0)","v":0},{"$f":"VLOOKUP(B144,'LOC FINAL with new Themes'!A:M,11,0)","v":0},{"$f":"VLOOKUP(B144,'LOC FINAL with new Themes'!A:M,12,0)","v":0},{"$f":"VLOOKUP(B144,'LOC FINAL with new Themes'!A:M,13,0)","v":0}]
["Congressional District Boundaries","Congressional District (108th)","Congressional District (108th)","Congressional District (108th)","Governmental Units ","DOC-Census","Jennifer Holland","Jennifer.L.Holland@census.gov",{"$f":"VLOOKUP(B145,'LOC FINAL with new Themes'!A:M,7,0)","v":0},{"$f":"VLOOKUP(B145,'LOC FINAL with new Themes'!A:M,8,0)","v":0},{"$f":"VLOOKUP(B145,'LOC FINAL with new Themes'!A:M,9,0)","v":0},{"$f":"VLOOKUP(B145,'LOC FINAL with new Themes'!A:M,10,0)","v":0},{"$f":"VLOOKUP(B145,'LOC FINAL with new Themes'!A:M,11,0)","v":0},{"$f":"VLOOKUP(B145,'LOC FINAL with new Themes'!A:M,12,0)","v":0},{"$f":"VLOOKUP(B145,'LOC FINAL with new Themes'!A:M,13,0)","v":0}]
[null,"Congressional District (111th)","Congressional District (111th)","Congressional District (111th)","Governmental Units ","DOC-Census","Jennifer Holland","Jennifer.L.Holland@census.gov",{"$f":"VLOOKUP(B146,'LOC FINAL with new Themes'!A:M,7,0)","v":0},{"$f":"VLOOKUP(B146,'LOC FINAL with new Themes'!A:M,8,0)","v":0},{"$f":"VLOOKUP(B146,'LOC FINAL with new Themes'!A:M,9,0)","v":0},{"$f":"VLOOKUP(B146,'LOC FINAL with new Themes'!A:M,10,0)","v":0},{"$f":"VLOOKUP(B146,'LOC FINAL with new Themes'!A:M,11,0)","v":0},{"$f":"VLOOKUP(B146,'LOC FINAL with new Themes'!A:M,12,0)","v":0},{"$f":"VLOOKUP(B146,'LOC FINAL with new Themes'!A:M,13,0)","v":0}]
[null,"Consolidated City (2010 Census)","Consolidated City (2010 Census)","Consolidated City (2010 Census)","Governmental Units ","DOC-Census","Jennifer Holland","Jennifer.L.Holland@census.gov",{"$f":"VLOOKUP(B147,'LOC FINAL with new Themes'!A:M,7,0)","v":0},{"$f":"VLOOKUP(B147,'LOC FINAL with new Themes'!A:M,8,0)","v":0},{"$f":"VLOOKUP(B147,'LOC FINAL with new Themes'!A:M,9,0)","v":0},{"$f":"VLOOKUP(B147,'LOC FINAL with new Themes'!A:M,10,0)","v":0},{"$f":"VLOOKUP(B147,'LOC FINAL with new Themes'!A:M,11,0)","v":0},{"$f":"VLOOKUP(B147,'LOC FINAL with new Themes'!A:M,12,0)","v":0},{"$f":"VLOOKUP(B147,'LOC FINAL with new Themes'!A:M,13,0)","v":0}]
[null,"Consolidated City (Census 2000)","Consolidated City (Census 2000)","Consolidated City (Census 2000)","Governmental Units ","DOC-Census","Jennifer Holland","Jennifer.L.Holland@census.gov",{"$f":"VLOOKUP(B148,'LOC FINAL with new Themes'!A:M,7,0)","v":0},{"$f":"VLOOKUP(B148,'LOC FINAL with new Themes'!A:M,8,0)","v":0},{"$f":"VLOOKUP(B148,'LOC FINAL with new Themes'!A:M,9,0)","v":0},{"$f":"VLOOKUP(B148,'LOC FINAL with new Themes'!A:M,10,0)","v":0},{"$f":"VLOOKUP(B148,'LOC FINAL with new Themes'!A:M,11,0)","v":0},{"$f":"VLOOKUP(B148,'LOC FINAL with new Themes'!A:M,12,0)","v":0},{"$f":"VLOOKUP(B148,'LOC FINAL with new Themes'!A:M,13,0)","v":0}]
[null,"County and Equivalent (2010 Census)","County and Equivalent (2010 Census)","County and Equivalent (2010 Census)","Governmental Units ","DOC-Census","Jennifer Holland","Jennifer.L.Holland@census.gov",{"$f":"VLOOKUP(B149,'LOC FINAL with new Themes'!A:M,7,0)","v":0},{"$f":"VLOOKUP(B149,'LOC FINAL with new Themes'!A:M,8,0)","v":0},{"$f":"VLOOKUP(B149,'LOC FINAL with new Themes'!A:M,9,0)","v":0},{"$f":"VLOOKUP(B149,'LOC FINAL with new Themes'!A:M,10,0)","v":0},{"$f":"VLOOKUP(B149,'LOC FINAL with new Themes'!A:M,11,0)","v":0},{"$f":"VLOOKUP(B149,'LOC FINAL with new Themes'!A:M,12,0)","v":0},{"$f":"VLOOKUP(B149,'LOC FINAL with new Themes'!A:M,13,0)","v":0}]
[null,"County and Equivalent (Census 2000)","County and Equivalent (Census 2000)","County and Equivalent (Census 2000)","Governmental Units ","DOC-Census","Jennifer Holland","Jennifer.L.Holland@census.gov",{"$f":"VLOOKUP(B150,'LOC FINAL with new Themes'!A:M,7,0)","v":0},{"$f":"VLOOKUP(B150,'LOC FINAL with new Themes'!A:M,8,0)","v":0},{"$f":"VLOOKUP(B150,'LOC FINAL with new Themes'!A:M,9,0)","v":0},{"$f":"VLOOKUP(B150,'LOC FINAL with new Themes'!A:M,10,0)","v":0},{"$f":"VLOOKUP(B150,'LOC FINAL with new Themes'!A:M,11,0)","v":0},{"$f":"VLOOKUP(B150,'LOC FINAL with new Themes'!A:M,12,0)","v":0},{"$f":"VLOOKUP(B150,'LOC FINAL with new Themes'!A:M,13,0)","v":0}]
[null,"County Subdivision (2010 Census)","County Subdivision (2010 Census)","County Subdivision (2010 Census)","Governmental Units ","DOC-Census","Jennifer Holland","Jennifer.L.Holland@census.gov",{"$f":"VLOOKUP(B151,'LOC FINAL with new Themes'!A:M,7,0)","v":0},{"$f":"VLOOKUP(B151,'LOC FINAL with new Themes'!A:M,8,0)","v":0},{"$f":"VLOOKUP(B151,'LOC FINAL with new Themes'!A:M,9,0)","v":0},{"$f":"VLOOKUP(B151,'LOC FINAL with new Themes'!A:M,10,0)","v":0},{"$f":"VLOOKUP(B151,'LOC FINAL with new Themes'!A:M,11,0)","v":0},{"$f":"VLOOKUP(B151,'LOC FINAL with new Themes'!A:M,12,0)","v":0},{"$f":"VLOOKUP(B151,'LOC FINAL with new Themes'!A:M,13,0)","v":0}]
[null,"County Subdivision (Census 2000)","County Subdivision (Census 2000)","County Subdivision (Census 2000)","Governmental Units ","DOC-Census","Jennifer Holland","Jennifer.L.Holland@census.gov",{"$f":"VLOOKUP(B152,'LOC FINAL with new Themes'!A:M,7,0)","v":0},{"$f":"VLOOKUP(B152,'LOC FINAL with new Themes'!A:M,8,0)","v":0},{"$f":"VLOOKUP(B152,'LOC FINAL with new Themes'!A:M,9,0)","v":0},{"$f":"VLOOKUP(B152,'LOC FINAL with new Themes'!A:M,10,0)","v":0},{"$f":"VLOOKUP(B152,'LOC FINAL with new Themes'!A:M,11,0)","v":0},{"$f":"VLOOKUP(B152,'LOC FINAL with new Themes'!A:M,12,0)","v":0},{"$f":"VLOOKUP(B152,'LOC FINAL with new Themes'!A:M,13,0)","v":0}]
[null,"Metropolitan Division (2010 Census)","Metropolitan Division (2010 Census)","Metropolitan Division (2010 Census)","Governmental Units ","DOC-Census","Jennifer Holland","Jennifer.L.Holland@census.gov",{"$f":"VLOOKUP(B153,'LOC FINAL with new Themes'!A:M,7,0)","v":0},{"$f":"VLOOKUP(B153,'LOC FINAL with new Themes'!A:M,8,0)","v":0},{"$f":"VLOOKUP(B153,'LOC FINAL with new Themes'!A:M,9,0)","v":0},{"$f":"VLOOKUP(B153,'LOC FINAL with new Themes'!A:M,10,0)","v":0},{"$f":"VLOOKUP(B153,'LOC FINAL with new Themes'!A:M,11,0)","v":0},{"$f":"VLOOKUP(B153,'LOC FINAL with new Themes'!A:M,12,0)","v":0},{"$f":"VLOOKUP(B153,'LOC FINAL with new Themes'!A:M,13,0)","v":0}]
[null,"Metropolitan Division (2010 Census)","Metropolitan Division (2010 Census)","Metropolitan Division (2010 Census)","Governmental Units ","DOC-Census","Jennifer Holland","Jennifer.L.Holland@census.gov",{"$f":"VLOOKUP(B154,'LOC FINAL with new Themes'!A:M,7,0)","v":0},{"$f":"VLOOKUP(B154,'LOC FINAL with new Themes'!A:M,8,0)","v":0},{"$f":"VLOOKUP(B154,'LOC FINAL with new Themes'!A:M,9,0)","v":0},{"$f":"VLOOKUP(B154,'LOC FINAL with new Themes'!A:M,10,0)","v":0},{"$f":"VLOOKUP(B154,'LOC FINAL with new Themes'!A:M,11,0)","v":0},{"$f":"VLOOKUP(B154,'LOC FINAL with new Themes'!A:M,12,0)","v":0},{"$f":"VLOOKUP(B154,'LOC FINAL with new Themes'!A:M,13,0)","v":0}]
[null,"New England City and Town Area (2010 Census)","New England City and Town Area (2010 Census)","New England City and Town Area (2010 Census)","Governmental Units ","DOC-Census","Jennifer Holland","Jennifer.L.Holland@census.gov",{"$f":"VLOOKUP(B155,'LOC FINAL with new Themes'!A:M,7,0)","v":0},{"$f":"VLOOKUP(B155,'LOC FINAL with new Themes'!A:M,8,0)","v":0},{"$f":"VLOOKUP(B155,'LOC FINAL with new Themes'!A:M,9,0)","v":0},{"$f":"VLOOKUP(B155,'LOC FINAL with new Themes'!A:M,10,0)","v":0},{"$f":"VLOOKUP(B155,'LOC FINAL with new Themes'!A:M,11,0)","v":0},{"$f":"VLOOKUP(B155,'LOC FINAL with new Themes'!A:M,12,0)","v":0},{"$f":"VLOOKUP(B155,'LOC FINAL with new Themes'!A:M,13,0)","v":0}]
[null,"New England City and Town Area Division (2010 Census)","New England City and Town Area Division (2010 Census)","New England City and Town Area Division (2010 Census)","Governmental Units ","DOC-Census","Jennifer Holland","Jennifer.L.Holland@census.gov",{"$f":"VLOOKUP(B156,'LOC FINAL with new Themes'!A:M,7,0)","v":0},{"$f":"VLOOKUP(B156,'LOC FINAL with new Themes'!A:M,8,0)","v":0},{"$f":"VLOOKUP(B156,'LOC FINAL with new Themes'!A:M,9,0)","v":0},{"$f":"VLOOKUP(B156,'LOC FINAL with new Themes'!A:M,10,0)","v":0},{"$f":"VLOOKUP(B156,'LOC FINAL with new Themes'!A:M,11,0)","v":0},{"$f":"VLOOKUP(B156,'LOC FINAL with new Themes'!A:M,12,0)","v":0},{"$f":"VLOOKUP(B156,'LOC FINAL with new Themes'!A:M,13,0)","v":0}]
["Place and MCD Boundaries","Place (2010 Census)","Place (2010 Census)","Place (2010 Census)","Governmental Units ","DOC-Census","Jennifer Holland","Jennifer.L.Holland@census.gov",{"$f":"VLOOKUP(B157,'LOC FINAL with new Themes'!A:M,7,0)","v":0},{"$f":"VLOOKUP(B157,'LOC FINAL with new Themes'!A:M,8,0)","v":0},{"$f":"VLOOKUP(B157,'LOC FINAL with new Themes'!A:M,9,0)","v":0},{"$f":"VLOOKUP(B157,'LOC FINAL with new Themes'!A:M,10,0)","v":0},{"$f":"VLOOKUP(B157,'LOC FINAL with new Themes'!A:M,11,0)","v":0},{"$f":"VLOOKUP(B157,'LOC FINAL with new Themes'!A:M,12,0)","v":0},{"$f":"VLOOKUP(B157,'LOC FINAL with new Themes'!A:M,13,0)","v":0}]
[null,"Place (Census 2000)","Place (Census 2000)","Place (Census 2000)","Governmental Units ","DOC-Census","Jennifer Holland","Jennifer.L.Holland@census.gov",{"$f":"VLOOKUP(B158,'LOC FINAL with new Themes'!A:M,7,0)","v":0},{"$f":"VLOOKUP(B158,'LOC FINAL with new Themes'!A:M,8,0)","v":0},{"$f":"VLOOKUP(B158,'LOC FINAL with new Themes'!A:M,9,0)","v":0},{"$f":"VLOOKUP(B158,'LOC FINAL with new Themes'!A:M,10,0)","v":0},{"$f":"VLOOKUP(B158,'LOC FINAL with new Themes'!A:M,11,0)","v":0},{"$f":"VLOOKUP(B158,'LOC FINAL with new Themes'!A:M,12,0)","v":0},{"$f":"VLOOKUP(B158,'LOC FINAL with new Themes'!A:M,13,0)","v":0}]
["State(+ Territories) Boundaries","State and Equivalent  (2010 Census)","State and Equivalent  (2010 Census)","State and Equivalent  (2010 Census)","Governmental Units ","DOC-Census","Jennifer Holland","Jennifer.L.Holland@census.gov",{"$f":"VLOOKUP(B159,'LOC FINAL with new Themes'!A:M,7,0)","v":0},{"$f":"VLOOKUP(B159,'LOC FINAL with new Themes'!A:M,8,0)","v":0},{"$f":"VLOOKUP(B159,'LOC FINAL with new Themes'!A:M,9,0)","v":0},{"$f":"VLOOKUP(B159,'LOC FINAL with new Themes'!A:M,10,0)","v":0},{"$f":"VLOOKUP(B159,'LOC FINAL with new Themes'!A:M,11,0)","v":0},{"$f":"VLOOKUP(B159,'LOC FINAL with new Themes'!A:M,12,0)","v":0},{"$f":"VLOOKUP(B159,'LOC FINAL with new Themes'!A:M,13,0)","v":0}]
[null,"State and Equivalent  (Census 2000)","State and Equivalent  (Census 2000)","State and Equivalent  (Census 2000)","Governmental Units ","DOC-Census","Jennifer Holland","Jennifer.L.Holland@census.gov",{"$f":"VLOOKUP(B160,'LOC FINAL with new Themes'!A:M,7,0)","v":0},{"$f":"VLOOKUP(B160,'LOC FINAL with new Themes'!A:M,8,0)","v":0},{"$f":"VLOOKUP(B160,'LOC FINAL with new Themes'!A:M,9,0)","v":0},{"$f":"VLOOKUP(B160,'LOC FINAL with new Themes'!A:M,10,0)","v":0},{"$f":"VLOOKUP(B160,'LOC FINAL with new Themes'!A:M,11,0)","v":0},{"$f":"VLOOKUP(B160,'LOC FINAL with new Themes'!A:M,12,0)","v":0},{"$f":"VLOOKUP(B160,'LOC FINAL with new Themes'!A:M,13,0)","v":0}]
[null,"State Legislative District (Lower Chamber) (2010 Census)","State Legislative District (Lower Chamber) (2010 Census)","State Legislative District (Lower Chamber) (2010 Census)","Governmental Units ","DOC-Census","Jennifer Holland","Jennifer.L.Holland@census.gov",{"$f":"VLOOKUP(B161,'LOC FINAL with new Themes'!A:M,7,0)","v":0},{"$f":"VLOOKUP(B161,'LOC FINAL with new Themes'!A:M,8,0)","v":0},{"$f":"VLOOKUP(B161,'LOC FINAL with new Themes'!A:M,9,0)","v":0},{"$f":"VLOOKUP(B161,'LOC FINAL with new Themes'!A:M,10,0)","v":0},{"$f":"VLOOKUP(B161,'LOC FINAL with new Themes'!A:M,11,0)","v":0},{"$f":"VLOOKUP(B161,'LOC FINAL with new Themes'!A:M,12,0)","v":0},{"$f":"VLOOKUP(B161,'LOC FINAL with new Themes'!A:M,13,0)","v":0}]
[null,"State Legislative District (Lower Chamber) (Census 2000)","State Legislative District (Lower Chamber) (Census 2000)","State Legislative District (Lower Chamber) (Census 2000)","Governmental Units ","DOC-Census","Jennifer Holland","Jennifer.L.Holland@census.gov",{"$f":"VLOOKUP(B162,'LOC FINAL with new Themes'!A:M,7,0)","v":0},{"$f":"VLOOKUP(B162,'LOC FINAL with new Themes'!A:M,8,0)","v":0},{"$f":"VLOOKUP(B162,'LOC FINAL with new Themes'!A:M,9,0)","v":0},{"$f":"VLOOKUP(B162,'LOC FINAL with new Themes'!A:M,10,0)","v":0},{"$f":"VLOOKUP(B162,'LOC FINAL with new Themes'!A:M,11,0)","v":0},{"$f":"VLOOKUP(B162,'LOC FINAL with new Themes'!A:M,12,0)","v":0},{"$f":"VLOOKUP(B162,'LOC FINAL with new Themes'!A:M,13,0)","v":0}]
[null,"State Legislative District (Upper Chamber) (2010 Census)","State Legislative District (Upper Chamber) (2010 Census)","State Legislative District (Upper Chamber) (2010 Census)","Governmental Units ","DOC-Census","Jennifer Holland","Jennifer.L.Holland@census.gov",{"$f":"VLOOKUP(B163,'LOC FINAL with new Themes'!A:M,7,0)","v":0},{"$f":"VLOOKUP(B163,'LOC FINAL with new Themes'!A:M,8,0)","v":0},{"$f":"VLOOKUP(B163,'LOC FINAL with new Themes'!A:M,9,0)","v":0},{"$f":"VLOOKUP(B163,'LOC FINAL with new Themes'!A:M,10,0)","v":0},{"$f":"VLOOKUP(B163,'LOC FINAL with new Themes'!A:M,11,0)","v":0},{"$f":"VLOOKUP(B163,'LOC FINAL with new Themes'!A:M,12,0)","v":0},{"$f":"VLOOKUP(B163,'LOC FINAL with new Themes'!A:M,13,0)","v":0}]
[null,"State Legislative District (Upper Chamber) (Census 2000)","State Legislative District (Upper Chamber) (Census 2000)","State Legislative District (Upper Chamber) (Census 2000)","Governmental Units ","DOC-Census","Jennifer Holland","Jennifer.L.Holland@census.gov",{"$f":"VLOOKUP(B164,'LOC FINAL with new Themes'!A:M,7,0)","v":0},{"$f":"VLOOKUP(B164,'LOC FINAL with new Themes'!A:M,8,0)","v":0},{"$f":"VLOOKUP(B164,'LOC FINAL with new Themes'!A:M,9,0)","v":0},{"$f":"VLOOKUP(B164,'LOC FINAL with new Themes'!A:M,10,0)","v":0},{"$f":"VLOOKUP(B164,'LOC FINAL with new Themes'!A:M,11,0)","v":0},{"$f":"VLOOKUP(B164,'LOC FINAL with new Themes'!A:M,12,0)","v":0},{"$f":"VLOOKUP(B164,'LOC FINAL with new Themes'!A:M,13,0)","v":0}]
[null,"Subbarrio (2010 Census)","Subbarrio (2010 Census)","Subbarrio (2010 Census)","Governmental Units ","DOC-Census","Jennifer Holland","Jennifer.L.Holland@census.gov",{"$f":"VLOOKUP(B165,'LOC FINAL with new Themes'!A:M,7,0)","v":0},{"$f":"VLOOKUP(B165,'LOC FINAL with new Themes'!A:M,8,0)","v":0},{"$f":"VLOOKUP(B165,'LOC FINAL with new Themes'!A:M,9,0)","v":0},{"$f":"VLOOKUP(B165,'LOC FINAL with new Themes'!A:M,10,0)","v":0},{"$f":"VLOOKUP(B165,'LOC FINAL with new Themes'!A:M,11,0)","v":0},{"$f":"VLOOKUP(B165,'LOC FINAL with new Themes'!A:M,12,0)","v":0},{"$f":"VLOOKUP(B165,'LOC FINAL with new Themes'!A:M,13,0)","v":0}]
[null,"Subbarrio (Census 2000)","Subbarrio (Census 2000)","Subbarrio (Census 2000)","Governmental Units ","DOC-Census","Jennifer Holland","Jennifer.L.Holland@census.gov",{"$f":"VLOOKUP(B166,'LOC FINAL with new Themes'!A:M,7,0)","v":0},{"$f":"VLOOKUP(B166,'LOC FINAL with new Themes'!A:M,8,0)","v":0},{"$f":"VLOOKUP(B166,'LOC FINAL with new Themes'!A:M,9,0)","v":0},{"$f":"VLOOKUP(B166,'LOC FINAL with new Themes'!A:M,10,0)","v":0},{"$f":"VLOOKUP(B166,'LOC FINAL with new Themes'!A:M,11,0)","v":0},{"$f":"VLOOKUP(B166,'LOC FINAL with new Themes'!A:M,12,0)","v":0},{"$f":"VLOOKUP(B166,'LOC FINAL with new Themes'!A:M,13,0)","v":0}]
[null,"Urban Area (Corrected Census 2000)","Urban Area (Corrected Census 2000)","Urban Area (Corrected Census 2000)","Governmental Units ","DOC-Census","Jennifer Holland","Jennifer.L.Holland@census.gov",{"$f":"VLOOKUP(B167,'LOC FINAL with new Themes'!A:M,7,0)","v":0},{"$f":"VLOOKUP(B167,'LOC FINAL with new Themes'!A:M,8,0)","v":0},{"$f":"VLOOKUP(B167,'LOC FINAL with new Themes'!A:M,9,0)","v":0},{"$f":"VLOOKUP(B167,'LOC FINAL with new Themes'!A:M,10,0)","v":0},{"$f":"VLOOKUP(B167,'LOC FINAL with new Themes'!A:M,11,0)","v":0},{"$f":"VLOOKUP(B167,'LOC FINAL with new Themes'!A:M,12,0)","v":0},{"$f":"VLOOKUP(B167,'LOC FINAL with new Themes'!A:M,13,0)","v":0}]
[null,null,null,{"$f":"SUBTOTAL(3,D136:D167)","v":32},"Governmental Units Count"]
["133 Urban Areas imagery program data","133 Urban Areas imagery program data",null,{"$f":"IF(C169=0,B169,C169)","v":"133 Urban Areas imagery program data"},"Imagery ","DOD-NGA","William Nellist","William.E.Nellist@nga.mil",{"$f":"VLOOKUP(B169,'LOC FINAL with new Themes'!A:M,7,0)","v":0},{"$f":"VLOOKUP(B169,'LOC FINAL with new Themes'!A:M,8,0)","v":0},{"$f":"VLOOKUP(B169,'LOC FINAL with new Themes'!A:M,9,0)","v":0},{"$f":"VLOOKUP(B169,'LOC FINAL with new Themes'!A:M,10,0)","v":0},{"$f":"VLOOKUP(B169,'LOC FINAL with new Themes'!A:M,11,0)","v":0},{"$f":"VLOOKUP(B169,'LOC FINAL with new Themes'!A:M,12,0)","v":0},{"$f":"VLOOKUP(B169,'LOC FINAL with new Themes'!A:M,13,0)","v":0}]
[null,"134 Urban Areas imagery program data",null,"134 Urban Areas imagery program data","Imagery ","DOI-USGS","George Lee","gylee@usgs.gov",{"$f":"VLOOKUP(B170,'LOC FINAL with new Themes'!A:M,7,0)","v":0},{"$f":"VLOOKUP(B170,'LOC FINAL with new Themes'!A:M,8,0)","v":0},{"$f":"VLOOKUP(B170,'LOC FINAL with new Themes'!A:M,9,0)","v":0},{"$f":"VLOOKUP(B170,'LOC FINAL with new Themes'!A:M,10,0)","v":0},{"$f":"VLOOKUP(B170,'LOC FINAL with new Themes'!A:M,11,0)","v":0},{"$f":"VLOOKUP(B170,'LOC FINAL with new Themes'!A:M,12,0)","v":0},{"$f":"VLOOKUP(B170,'LOC FINAL with new Themes'!A:M,13,0)","v":0}]
["ADS40 Hurricane Response 7.5' Quadrangle Mosaics","ADS40 Hurricane Response 7.5' Quadrangle Mosaics",null,"ADS40 Hurricane Response 7.5' Quadrangle Mosaics","Imagery ","DOI-USGS","Jim Mauck","jmauck@usgs.gov",{"$f":"VLOOKUP(B171,'LOC FINAL with new Themes'!A:M,7,0)","v":0},{"$f":"VLOOKUP(B171,'LOC FINAL with new Themes'!A:M,8,0)","v":0},{"$f":"VLOOKUP(B171,'LOC FINAL with new Themes'!A:M,9,0)","v":0},{"$f":"VLOOKUP(B171,'LOC FINAL with new Themes'!A:M,10,0)","v":0},{"$f":"VLOOKUP(B171,'LOC FINAL with new Themes'!A:M,11,0)","v":0},{"$f":"VLOOKUP(B171,'LOC FINAL with new Themes'!A:M,12,0)","v":0},{"$f":"VLOOKUP(B171,'LOC FINAL with new Themes'!A:M,13,0)","v":0}]
["Digital Orthoimage Quarter Quadrangle (DOQQ) Archive","Digital Orthoimage Quarter Quadrangle (DOQQ) Archive",null,"Digital Orthoimage Quarter Quadrangle (DOQQ) Archive","Imagery ","DOI-USGS",null,null,{"$f":"VLOOKUP(B172,'LOC FINAL with new Themes'!A:M,7,0)","v":"DOQQ is static; one data set; this is the POC and data manager. this is the name and maintain three complete with two physically separate on-site and one off-site"},{"$f":"VLOOKUP(B172,'LOC FINAL with new Themes'!A:M,8,0)","v":0},{"$f":"VLOOKUP(B172,'LOC FINAL with new Themes'!A:M,9,0)","v":0},{"$f":"VLOOKUP(B172,'LOC FINAL with new Themes'!A:M,10,0)","v":0},{"$f":"VLOOKUP(B172,'LOC FINAL with new Themes'!A:M,11,0)","v":0},{"$f":"VLOOKUP(B172,'LOC FINAL with new Themes'!A:M,12,0)","v":0},{"$f":"VLOOKUP(B172,'LOC FINAL with new Themes'!A:M,13,0)","v":"S"}]
["Emergency Response Imagery","Emergency Response Imagery","Emergency Response Imagery","Emergency Response Imagery","Imagery ","DOC-NOAA","Mike Aslaksen","mike.Aslaksen@noaa.gov",{"$f":"VLOOKUP(B173,'LOC FINAL with new Themes'!A:M,7,0)","v":"20-Multiple      "},{"$f":"VLOOKUP(B173,'LOC FINAL with new Themes'!A:M,8,0)","v":"No"},{"$f":"VLOOKUP(B173,'LOC FINAL with new Themes'!A:M,9,0)","v":"Yes - email reply from Jon Sellars Jon.Sellars@noaa.gov"},{"$f":"VLOOKUP(B173,'LOC FINAL with new Themes'!A:M,10,0)","v":"- Same for the forest frag."},{"$f":"VLOOKUP(B173,'LOC FINAL with new Themes'!A:M,11,0)","v":"Our data can be accessed through the following links: http://storms.ngs.noaagov/eri_page/index.html Gulf Oil Spill:\nhttp://hdds.usgs.gov/hdds2/pub/data/disaster/201004_Oilspill_GulfOfMexico/data/AERIAL_NOAA\nhttp://hdds.usgs.gov/hdds2/pub/data/disaster/201004_Oilspill_GulfOfMexico/data/AERIAL_NOAA_MOSAIC  Haiti Earthquake:\nhttp://hdds.usgs.gov/hdds2/pub/data/disaster/201001_Earthquake_Haiti/data/AERIAL_NOAA\nhttp://hdds.usgs.gov/hdds2/pub/data/disaster/201001_Earthquake_Haiti/data/AERIAL_NOAA_ORTHO\nMexico Earthquake:\nhttp://hdds.usgs.gov/hdds2/pub/data/disaster/201004_Earthquake_Mexico/data/AERIAL_NOAA_MOSAIC \n\n"},{"$f":"VLOOKUP(B173,'LOC FINAL with new Themes'!A:M,12,0)","v":"Described by storm name, event or location."},{"$f":"VLOOKUP(B173,'LOC FINAL with new Themes'!A:M,13,0)","v":"M "}]
[null,null,"Fire, Detection: AVHRR FIMMA , GOES WF-ABBA","Fire, Detection: AVHRR FIMMA , GOES WF-ABBA","Imagery ","USDA"]
["Landsat geometric/terrain corrected level 1T","Landsat geometric/terrain corrected level 1T","Landsat Terrain Corrected Scenes","Landsat Terrain Corrected Scenes","Imagery ","DOI-USGS","Kristi Kline","kkline@usgs.gov",{"$f":"VLOOKUP(B175,'LOC FINAL with new Themes'!A:M,7,0)","v":"Landsat updates daily; a series of data sets; this is the POC and data manager; this is the name and maintain three complete with two physically separate on-site and one off-site"},{"$f":"VLOOKUP(B175,'LOC FINAL with new Themes'!A:M,8,0)","v":0},{"$f":"VLOOKUP(B175,'LOC FINAL with new Themes'!A:M,9,0)","v":0},{"$f":"VLOOKUP(B175,'LOC FINAL with new Themes'!A:M,10,0)","v":0},{"$f":"VLOOKUP(B175,'LOC FINAL with new Themes'!A:M,11,0)","v":0},{"$f":"VLOOKUP(B175,'LOC FINAL with new Themes'!A:M,12,0)","v":0},{"$f":"VLOOKUP(B175,'LOC FINAL with new Themes'!A:M,13,0)","v":"S"}]
[null,null,"National  Orthoimagery Dataset - National Map","National  Orthoimagery Dataset - National Map","Imagery ","DOI-USGS"]
["National Aerial Photography Program (NAPP) Data Archive","National Aerial Photography Program (NAPP) Data Archive",null,"National Aerial Photography Program (NAPP) Data Archive","Imagery ","DOI-USGS","Wayne Miller","wamiller@usgs.gov",{"$f":"VLOOKUP(B177,'LOC FINAL with new Themes'!A:M,7,0)","v":"NAPP is static; one data set; this is the POC and data manager; this is the name and maintain three complete with two physically separate on-site and one off-site "},{"$f":"VLOOKUP(B177,'LOC FINAL with new Themes'!A:M,8,0)","v":0},{"$f":"VLOOKUP(B177,'LOC FINAL with new Themes'!A:M,9,0)","v":0},{"$f":"VLOOKUP(B177,'LOC FINAL with new Themes'!A:M,10,0)","v":0},{"$f":"VLOOKUP(B177,'LOC FINAL with new Themes'!A:M,11,0)","v":0},{"$f":"VLOOKUP(B177,'LOC FINAL with new Themes'!A:M,12,0)","v":0},{"$f":"VLOOKUP(B177,'LOC FINAL with new Themes'!A:M,13,0)","v":"S"}]
["National Agriculture Imagery Program Data","National Agriculture Imagery Program Data","National Agriculture Imagery Program (NAIP) Archive","National Agriculture Imagery Program (NAIP) Archive","Imagery ","DOI-USGS","Shirley Hall","shirley.hall@wdc.usda.gov",{"$f":"VLOOKUP(B178,'LOC FINAL with new Themes'!A:M,7,0)","v":"Shirley identified Dan Good as new contact 'daniel.good@wdc.usda.gov' - need to follow up with either or both"},{"$f":"VLOOKUP(B178,'LOC FINAL with new Themes'!A:M,8,0)","v":0},{"$f":"VLOOKUP(B178,'LOC FINAL with new Themes'!A:M,9,0)","v":0},{"$f":"VLOOKUP(B178,'LOC FINAL with new Themes'!A:M,10,0)","v":0},{"$f":"VLOOKUP(B178,'LOC FINAL with new Themes'!A:M,11,0)","v":0},{"$f":"VLOOKUP(B178,'LOC FINAL with new Themes'!A:M,12,0)","v":0},{"$f":"VLOOKUP(B178,'LOC FINAL with new Themes'!A:M,13,0)","v":0}]
["National Map Orthoimagery Database (TNM Seamless Server) ","National Map Orthoimagery Database (TNM Seamless Server) ",null,"National Map Orthoimagery Database (TNM Seamless Server) ","Imagery ","DOI-USGS","George Lee","gylee@usgs.gov",{"$f":"VLOOKUP(B179,'LOC FINAL with new Themes'!A:M,7,0)","v":0},{"$f":"VLOOKUP(B179,'LOC FINAL with new Themes'!A:M,8,0)","v":0},{"$f":"VLOOKUP(B179,'LOC FINAL with new Themes'!A:M,9,0)","v":0},{"$f":"VLOOKUP(B179,'LOC FINAL with new Themes'!A:M,10,0)","v":0},{"$f":"VLOOKUP(B179,'LOC FINAL with new Themes'!A:M,11,0)","v":0},{"$f":"VLOOKUP(B179,'LOC FINAL with new Themes'!A:M,12,0)","v":0},{"$f":"VLOOKUP(B179,'LOC FINAL with new Themes'!A:M,13,0)","v":0}]
["National Resource Inventory Imagery","National Resource Inventory Imagery",null,"National Resource Inventory Imagery","Imagery ","USDA-WDC","Jerry Harlow","jerry.harlow@wdc.usda.gov",{"$f":"VLOOKUP(B180,'LOC FINAL with new Themes'!A:M,7,0)","v":"Shirley identified Dan Good as new contact 'daniel.good@wdc.usda.gov' - need to follow up with either or both"},{"$f":"VLOOKUP(B180,'LOC FINAL with new Themes'!A:M,8,0)","v":0},{"$f":"VLOOKUP(B180,'LOC FINAL with new Themes'!A:M,9,0)","v":0},{"$f":"VLOOKUP(B180,'LOC FINAL with new Themes'!A:M,10,0)","v":0},{"$f":"VLOOKUP(B180,'LOC FINAL with new Themes'!A:M,11,0)","v":0},{"$f":"VLOOKUP(B180,'LOC FINAL with new Themes'!A:M,12,0)","v":0},{"$f":"VLOOKUP(B180,'LOC FINAL with new Themes'!A:M,13,0)","v":0}]
[null,null,"Satellite Imagery Archive","Satellite Imagery Archive","Imagery ","USDA-FSA"]
[null,null,null,{"$f":"SUBTOTAL(3,D169:D181)","v":13},"Imagery  Count"]
[null,null,"Crops: Cropland Data Layer",{"$f":"IF(C183=0,B183,C183)","v":"Crops: Cropland Data Layer"},"Land Use-Land Cover ","USDA-NASS"]
[null,null,"Earth Cover, Land: MODIS-based Land Products","Earth Cover, Land: MODIS-based Land Products","Land Use-Land Cover ","USDA -FS (Along with USGS)"]
[null,null,"Earth Cover, Vegetation, Forest: Forest Biomass, Types, Type Groups","Earth Cover, Vegetation, Forest: Forest Biomass, Types, Type Groups","Land Use-Land Cover ","USDA-FS"]
[null,null,"Earth Cover, Vegetation: Percent Forest Canopy","Earth Cover, Vegetation: Percent Forest Canopy","Land Use-Land Cover ","USDA-FS"]
[null,null,"Fire Severity: Monitoring Trends in Burn Severity (MTBS)","Fire Severity: Monitoring Trends in Burn Severity (MTBS)","Land Use-Land Cover ","USDA -FS (Along with USGS)"]
[null,null,"Fire, Detection: Daily Active Fire Mapping","Fire, Detection: Daily Active Fire Mapping","Land Use-Land Cover ","USDA"]
[null,null,"Land Cover Strata Dataset","Land Cover Strata Dataset","Land Use-Land Cover ","USDA-NASS"]
["LANDFIRE Dataset","LANDFIRE Dataset","Land Fire Dataset","Land Fire Dataset","Land Use-Land Cover ",null,null,0,{"$f":"VLOOKUP(B190,'LOC FINAL with new Themes'!A:M,7,0)","v":0},{"$f":"VLOOKUP(B190,'LOC FINAL with new Themes'!A:M,8,0)","v":0},{"$f":"VLOOKUP(B190,'LOC FINAL with new Themes'!A:M,9,0)","v":0},{"$f":"VLOOKUP(B190,'LOC FINAL with new Themes'!A:M,10,0)","v":0},{"$f":"VLOOKUP(B190,'LOC FINAL with new Themes'!A:M,11,0)","v":0},{"$f":"VLOOKUP(B190,'LOC FINAL with new Themes'!A:M,12,0)","v":0},{"$f":"VLOOKUP(B190,'LOC FINAL with new Themes'!A:M,13,0)","v":0}]
["National Land Cover Dataset (NLCD)","National Land Cover Dataset (NLCD)","National Land Cover Dataset - GIRAS - 1975","National Land Cover Dataset - GIRAS - 1975","Land Use-Land Cover ","DOI-USGS","Colin Homer","homer@usgs.gov",{"$f":"VLOOKUP(B191,'LOC FINAL with new Themes'!A:M,7,0)","v":"The table below summarizes NLCD products available for download from the MRLC website http://www.mrlc.gov/ "},{"$f":"VLOOKUP(B191,'LOC FINAL with new Themes'!A:M,8,0)","v":"No.  The \"manager\" of the data is Jon Dewitz. \nContact Information -   \nJon Dewitz\ndewitz@usgs.gov\n605-594-2715\nNLCD Quality Supervisor\nUSGS Earth Resources Observation and Science Center (EROS)\nMundt Federal Building\n47914 252nd St.\nSioux Falls, SD 57198\nfax 605-594-6529\n"},{"$f":"VLOOKUP(B191,'LOC FINAL with new Themes'!A:M,9,0)","v":"Joyce Fry is the POC. \nContact information - \nJoyce Fry, Geographer\nUnited States Geological Survey (USGS)\nEarth Resources Observation and  Science (EROS) Center\nMundt Federal Building\n47914 252nd Street\nSioux Falls, South Dakota 57198\n(P)  605.594.2739\n(F)  605.594.6529\n(e)  jfry@usgs.gov \n"},{"$f":"VLOOKUP(B191,'LOC FINAL with new Themes'!A:M,10,0)","v":"Every 5 years"},{"$f":"VLOOKUP(B191,'LOC FINAL with new Themes'!A:M,11,0)","v":"Yes, there is an archive/backup of the dataset through the EROS Long Term Archive (LTA) group.  I will need to get back to if you need additional information regarding the archive process. "},{"$f":"VLOOKUP(B191,'LOC FINAL with new Themes'!A:M,12,0)","v":"National Land Cover Database or NLCD along with the era number, either 1992 or 2001, or 2006. "},{"$f":"VLOOKUP(B191,'LOC FINAL with new Themes'!A:M,13,0)","v":"S"}]
[null,null,"National Land Cover Dataset - National Map","National Land Cover Dataset - National Map","Land Use-Land Cover ","DOI-USGS"]
[null,null,"National Land Cover Dataset - National Map - 1991","National Land Cover Dataset - National Map - 1991","Land Use-Land Cover ","DOI-USGS"]
[null,null,"National Land Cover Dataset - National Map - 2001","National Land Cover Dataset - National Map - 2001","Land Use-Land Cover ","DOI-USGS"]
[null,null,"National Land Cover Dataset - National Map 2006","National Land Cover Dataset - National Map 2006","Land Use-Land Cover ","DOI-USGS"]
["National Land Cover Dataset (NLCD)","National Land Cover Dataset (NLCD)","National Land Cover Dataset (NLCD)","National Land Cover Dataset (NLCD)","Land Use-Land Cover ","DOI-USGS","Colin Homer","homer@usgs.gov",{"$f":"VLOOKUP(B196,'LOC FINAL with new Themes'!A:M,7,0)","v":"The table below summarizes NLCD products available for download from the MRLC website http://www.mrlc.gov/ "},{"$f":"VLOOKUP(B196,'LOC FINAL with new Themes'!A:M,8,0)","v":"No.  The \"manager\" of the data is Jon Dewitz. \nContact Information -   \nJon Dewitz\ndewitz@usgs.gov\n605-594-2715\nNLCD Quality Supervisor\nUSGS Earth Resources Observation and Science Center (EROS)\nMundt Federal Building\n47914 252nd St.\nSioux Falls, SD 57198\nfax 605-594-6529\n"},{"$f":"VLOOKUP(B196,'LOC FINAL with new Themes'!A:M,9,0)","v":"Joyce Fry is the POC. \nContact information - \nJoyce Fry, Geographer\nUnited States Geological Survey (USGS)\nEarth Resources Observation and  Science (EROS) Center\nMundt Federal Building\n47914 252nd Street\nSioux Falls, South Dakota 57198\n(P)  605.594.2739\n(F)  605.594.6529\n(e)  jfry@usgs.gov \n"},{"$f":"VLOOKUP(B196,'LOC FINAL with new Themes'!A:M,10,0)","v":"Every 5 years"},{"$f":"VLOOKUP(B196,'LOC FINAL with new Themes'!A:M,11,0)","v":"Yes, there is an archive/backup of the dataset through the EROS Long Term Archive (LTA) group.  I will need to get back to if you need additional information regarding the archive process. "},{"$f":"VLOOKUP(B196,'LOC FINAL with new Themes'!A:M,12,0)","v":"National Land Cover Database or NLCD along with the era number, either 1992 or 2001, or 2006. "},{"$f":"VLOOKUP(B196,'LOC FINAL with new Themes'!A:M,13,0)","v":"S"}]
[null,null,"National Land Cover Percent Canopy - National Map - 1991","National Land Cover Percent Canopy - National Map - 1991","Land Use-Land Cover ","DOI-USGS"]
[null,null,"National Land Cover Percent Imperviousness - National Map - 2001","National Land Cover Percent Imperviousness - National Map - 2001","Land Use-Land Cover ","DOI-USGS"]
[null,null,"National Land Cover Percent Imperviousness - National Map - 2006","National Land Cover Percent Imperviousness - National Map - 2006","Land Use-Land Cover ","DOI-USGS"]
["National Parks Data","National Parks Data","National Parks Data","National Parks Data","Land Use-Land Cover ","DOI-NPS","Roger Johnson ","Roger_M_Johnson@nps.gov",{"$f":"VLOOKUP(B200,'LOC FINAL with new Themes'!A:M,7,0)","v":"undeliverable email- neeed to identify new contact"},{"$f":"VLOOKUP(B200,'LOC FINAL with new Themes'!A:M,8,0)","v":0},{"$f":"VLOOKUP(B200,'LOC FINAL with new Themes'!A:M,9,0)","v":0},{"$f":"VLOOKUP(B200,'LOC FINAL with new Themes'!A:M,10,0)","v":0},{"$f":"VLOOKUP(B200,'LOC FINAL with new Themes'!A:M,11,0)","v":0},{"$f":"VLOOKUP(B200,'LOC FINAL with new Themes'!A:M,12,0)","v":0},{"$f":"VLOOKUP(B200,'LOC FINAL with new Themes'!A:M,13,0)","v":0}]
[null,null,null,{"$f":"SUBTOTAL(3,D183:D200)","v":18},"Land Use-Land Cover  Count"]
["Assisted Housing (census geography or point-based) see http://www.huduser.org/picture2000/","Assisted Housing (census geography or point-based)",null,{"$f":"IF(C202=0,B202,C202)","v":"Assisted Housing (census geography or point-based)"},"Real Property","HUD","Jon Sperling","jon.sperling@hud.gov",{"$f":"VLOOKUP(B202,'LOC FINAL with new Themes'!A:M,7,0)","v":0},{"$f":"VLOOKUP(B202,'LOC FINAL with new Themes'!A:M,8,0)","v":0},{"$f":"VLOOKUP(B202,'LOC FINAL with new Themes'!A:M,9,0)","v":0},{"$f":"VLOOKUP(B202,'LOC FINAL with new Themes'!A:M,10,0)","v":0},{"$f":"VLOOKUP(B202,'LOC FINAL with new Themes'!A:M,11,0)","v":0},{"$f":"VLOOKUP(B202,'LOC FINAL with new Themes'!A:M,12,0)","v":0},{"$f":"VLOOKUP(B202,'LOC FINAL with new Themes'!A:M,13,0)","v":0}]
["Enterprise Zones, Empowerment Communities, Revitalization Areas, Qualified Census Tracts, etc.  (census geography based)","Enterprise Zones, Empowerment Communities, Revitalization Areas, Qualified Census Tracts, etc.  (census geography based)",null,"Enterprise Zones, Empowerment Communities, Revitalization Areas, Qualified Census Tracts, etc.  (census geography based)","Real Property","HUD","Jon Sperling","jon.sperling@hud.gov",{"$f":"VLOOKUP(B203,'LOC FINAL with new Themes'!A:M,7,0)","v":0},{"$f":"VLOOKUP(B203,'LOC FINAL with new Themes'!A:M,8,0)","v":0},{"$f":"VLOOKUP(B203,'LOC FINAL with new Themes'!A:M,9,0)","v":0},{"$f":"VLOOKUP(B203,'LOC FINAL with new Themes'!A:M,10,0)","v":0},{"$f":"VLOOKUP(B203,'LOC FINAL with new Themes'!A:M,11,0)","v":0},{"$f":"VLOOKUP(B203,'LOC FINAL with new Themes'!A:M,12,0)","v":0},{"$f":"VLOOKUP(B203,'LOC FINAL with new Themes'!A:M,13,0)","v":0}]
["Federal building location point ","Federal building location point ","Federal building location point ","Federal building location point ","Real Property ","GSA","Sandra Downie","sandra.downie@gsa.gov",{"$f":"VLOOKUP(B204,'LOC FINAL with new Themes'!A:M,7,0)","v":0},{"$f":"VLOOKUP(B204,'LOC FINAL with new Themes'!A:M,8,0)","v":0},{"$f":"VLOOKUP(B204,'LOC FINAL with new Themes'!A:M,9,0)","v":0},{"$f":"VLOOKUP(B204,'LOC FINAL with new Themes'!A:M,10,0)","v":0},{"$f":"VLOOKUP(B204,'LOC FINAL with new Themes'!A:M,11,0)","v":0},{"$f":"VLOOKUP(B204,'LOC FINAL with new Themes'!A:M,12,0)","v":0},{"$f":"VLOOKUP(B204,'LOC FINAL with new Themes'!A:M,13,0)","v":0}]
["Federal building location polygon","Federal building location polygon","Federal building location polygon","Federal building location polygon","Real Property ","GSA","Sandra Downie","sandra.downie@gsa.gov",{"$f":"VLOOKUP(B205,'LOC FINAL with new Themes'!A:M,7,0)","v":0},{"$f":"VLOOKUP(B205,'LOC FINAL with new Themes'!A:M,8,0)","v":0},{"$f":"VLOOKUP(B205,'LOC FINAL with new Themes'!A:M,9,0)","v":0},{"$f":"VLOOKUP(B205,'LOC FINAL with new Themes'!A:M,10,0)","v":0},{"$f":"VLOOKUP(B205,'LOC FINAL with new Themes'!A:M,11,0)","v":0},{"$f":"VLOOKUP(B205,'LOC FINAL with new Themes'!A:M,12,0)","v":0},{"$f":"VLOOKUP(B205,'LOC FINAL with new Themes'!A:M,13,0)","v":0}]
["Federal land area facility location point","Federal land area facility location point","Federal land area facility location point","Federal land area facility location point","Real Property ","GSA","Sandra Downie","sandra.downie@gsa.gov",{"$f":"VLOOKUP(B206,'LOC FINAL with new Themes'!A:M,7,0)","v":0},{"$f":"VLOOKUP(B206,'LOC FINAL with new Themes'!A:M,8,0)","v":0},{"$f":"VLOOKUP(B206,'LOC FINAL with new Themes'!A:M,9,0)","v":0},{"$f":"VLOOKUP(B206,'LOC FINAL with new Themes'!A:M,10,0)","v":0},{"$f":"VLOOKUP(B206,'LOC FINAL with new Themes'!A:M,11,0)","v":0},{"$f":"VLOOKUP(B206,'LOC FINAL with new Themes'!A:M,12,0)","v":0},{"$f":"VLOOKUP(B206,'LOC FINAL with new Themes'!A:M,13,0)","v":0}]
["Federal land area facility location polygon","Federal land area facility location polygon","Federal land area facility location polygon","Federal land area facility location polygon","Real Property ","GSA","Sandra Downie","sandra.downie@gsa.gov",{"$f":"VLOOKUP(B207,'LOC FINAL with new Themes'!A:M,7,0)","v":0},{"$f":"VLOOKUP(B207,'LOC FINAL with new Themes'!A:M,8,0)","v":0},{"$f":"VLOOKUP(B207,'LOC FINAL with new Themes'!A:M,9,0)","v":0},{"$f":"VLOOKUP(B207,'LOC FINAL with new Themes'!A:M,10,0)","v":0},{"$f":"VLOOKUP(B207,'LOC FINAL with new Themes'!A:M,11,0)","v":0},{"$f":"VLOOKUP(B207,'LOC FINAL with new Themes'!A:M,12,0)","v":0},{"$f":"VLOOKUP(B207,'LOC FINAL with new Themes'!A:M,13,0)","v":0}]
["National Map - Structures Dataset","National Map - Structures Dataset","National Structures Dataset - National Map","National Structures Dataset - National Map","Real Property ","DOI-USGS","Paul Wiese","pmwiese@usgs.gov",{"$f":"VLOOKUP(B208,'LOC FINAL with new Themes'!A:M,7,0)","v":"National Map updates monthly; a series of data sets; this is the POC and data manager; this is the name and maintain three complete with two physically separate on-site and one off-site"},{"$f":"VLOOKUP(B208,'LOC FINAL with new Themes'!A:M,8,0)","v":0},{"$f":"VLOOKUP(B208,'LOC FINAL with new Themes'!A:M,9,0)","v":0},{"$f":"VLOOKUP(B208,'LOC FINAL with new Themes'!A:M,10,0)","v":0},{"$f":"VLOOKUP(B208,'LOC FINAL with new Themes'!A:M,11,0)","v":0},{"$f":"VLOOKUP(B208,'LOC FINAL with new Themes'!A:M,12,0)","v":0},{"$f":"VLOOKUP(B208,'LOC FINAL with new Themes'!A:M,13,0)","v":"S"}]
[null,null,null,{"$f":"SUBTOTAL(3,D202:D208)","v":7},"Real Property Count"]
[null,"Military Installation","Military Installation",{"$f":"IF(C210=0,B210,C210)","v":"Military Installation"},"Real Property\nCultural & Demographic Statistics","DOC-Census","Jennifer Holland","Jennifer.L.Holland@census.gov",{"$f":"VLOOKUP(B210,'LOC FINAL with new Themes'!A:M,7,0)","v":0},{"$f":"VLOOKUP(B210,'LOC FINAL with new Themes'!A:M,8,0)","v":0},{"$f":"VLOOKUP(B210,'LOC FINAL with new Themes'!A:M,9,0)","v":0},{"$f":"VLOOKUP(B210,'LOC FINAL with new Themes'!A:M,10,0)","v":0},{"$f":"VLOOKUP(B210,'LOC FINAL with new Themes'!A:M,11,0)","v":0},{"$f":"VLOOKUP(B210,'LOC FINAL with new Themes'!A:M,12,0)","v":0},{"$f":"VLOOKUP(B210,'LOC FINAL with new Themes'!A:M,13,0)","v":0}]
[null,null,null,{"$f":"SUBTOTAL(3,D210:D210)","v":1},"Real Property\nCultural & Demographic Statistics Count"]
["Common Resource Area (CRA)","Common Resource Area (CRA)","Common Resource Area (CRA)",{"$f":"IF(C212=0,B212,C212)","v":"Common Resource Area (CRA)"},"Soils ","USDA","Chris W. Smith","Christopherw.Smith@wdc.usda.gov",{"$f":"VLOOKUP(B212,'LOC FINAL with new Themes'!A:M,7,0)","v":0},{"$f":"VLOOKUP(B212,'LOC FINAL with new Themes'!A:M,8,0)","v":0},{"$f":"VLOOKUP(B212,'LOC FINAL with new Themes'!A:M,9,0)","v":0},{"$f":"VLOOKUP(B212,'LOC FINAL with new Themes'!A:M,10,0)","v":0},{"$f":"VLOOKUP(B212,'LOC FINAL with new Themes'!A:M,11,0)","v":0},{"$f":"VLOOKUP(B212,'LOC FINAL with new Themes'!A:M,12,0)","v":0},{"$f":"VLOOKUP(B212,'LOC FINAL with new Themes'!A:M,13,0)","v":0}]
["Hydric Soils","Hydric Soils",null,"Hydric Soils","Soils ","USDA","Chris W. Smith","Christopherw.Smith@wdc.usda.gov",{"$f":"VLOOKUP(B213,'LOC FINAL with new Themes'!A:M,7,0)","v":0},{"$f":"VLOOKUP(B213,'LOC FINAL with new Themes'!A:M,8,0)","v":0},{"$f":"VLOOKUP(B213,'LOC FINAL with new Themes'!A:M,9,0)","v":0},{"$f":"VLOOKUP(B213,'LOC FINAL with new Themes'!A:M,10,0)","v":0},{"$f":"VLOOKUP(B213,'LOC FINAL with new Themes'!A:M,11,0)","v":0},{"$f":"VLOOKUP(B213,'LOC FINAL with new Themes'!A:M,12,0)","v":0},{"$f":"VLOOKUP(B213,'LOC FINAL with new Themes'!A:M,13,0)","v":0}]
["Location of Arable Lands","Location of Arable Lands",null,"Location of Arable Lands","Soils ","USDA","Karl Hipple","karl.hipple@lin.usda.gov",{"$f":"VLOOKUP(B214,'LOC FINAL with new Themes'!A:M,7,0)","v":"undeliverable email- neeed to identify new contact"},{"$f":"VLOOKUP(B214,'LOC FINAL with new Themes'!A:M,8,0)","v":0},{"$f":"VLOOKUP(B214,'LOC FINAL with new Themes'!A:M,9,0)","v":0},{"$f":"VLOOKUP(B214,'LOC FINAL with new Themes'!A:M,10,0)","v":0},{"$f":"VLOOKUP(B214,'LOC FINAL with new Themes'!A:M,11,0)","v":0},{"$f":"VLOOKUP(B214,'LOC FINAL with new Themes'!A:M,12,0)","v":0},{"$f":"VLOOKUP(B214,'LOC FINAL with new Themes'!A:M,13,0)","v":0}]
["Major Land Resource Area (MLRA)","Major Land Resource Area (MLRA)","Major Land Resource Area (MLRA)","Major Land Resource Area (MLRA)","Soils ","USDA","Karl Hipple","karl.hipple@lin.usda.gov",{"$f":"VLOOKUP(B215,'LOC FINAL with new Themes'!A:M,7,0)","v":"undeliverable email- neeed to identify new contact"},{"$f":"VLOOKUP(B215,'LOC FINAL with new Themes'!A:M,8,0)","v":0},{"$f":"VLOOKUP(B215,'LOC FINAL with new Themes'!A:M,9,0)","v":0},{"$f":"VLOOKUP(B215,'LOC FINAL with new Themes'!A:M,10,0)","v":0},{"$f":"VLOOKUP(B215,'LOC FINAL with new Themes'!A:M,11,0)","v":0},{"$f":"VLOOKUP(B215,'LOC FINAL with new Themes'!A:M,12,0)","v":0},{"$f":"VLOOKUP(B215,'LOC FINAL with new Themes'!A:M,13,0)","v":0}]
["National Cooperative Soil Survey (NCSS)","National Cooperative Soil Survey (NCSS)","National Cooperative Soil Characterization Database","National Cooperative Soil Characterization Database","Soils ","USDA","Paul Benedict","paul.benedict@wdc.usda.gov",{"$f":"VLOOKUP(B216,'LOC FINAL with new Themes'!A:M,7,0)","v":"We have our Soil Survey Geographic database called SSURGO which is made available through the following sites:\nWeb Soil Survey:    http://websoilsurvey.nrcs.usda.gov/app/\nSoil Data Mart:     http://soildatamart.nrcs.usda.gov/\nSoil Data Access:   http://sdmdataaccess.nrcs.usda.gov\n\nWe also have: \nLab Soil Survey Lab Characterization Data (Point data): http://ssldata.nrcs.usda.gov/ aka NCSS Characterization Database\nSoil Series Classification Database http://soils.usda.gov/technical/classification/scfile/index.html\nU.S. General Soil Map (STATSGO2)\nMajor Land Resource Area (MLRA) http://soils.usda.gov/survey/geography/mlra/\n             Common Resource Areas (CRA) \n\n"},{"$f":"VLOOKUP(B216,'LOC FINAL with new Themes'!A:M,8,0)","v":"? No, I am a Program Manager. Various other people have roles of maintaining the data. "},{"$f":"VLOOKUP(B216,'LOC FINAL with new Themes'!A:M,9,0)","v":"I am a general information POC for all things soil survey related. For more technical aspects on our data sets a good POC would be David Hoover, National Leader for Soil Business Systems or someone on his staff. His contact number is 402-437-4013 or email at david.hoover@lin.usda.gov. "},{"$f":"VLOOKUP(B216,'LOC FINAL with new Themes'!A:M,10,0)","v":"Our data sets are constantly being updated by about 1000 soil and plant scientists in several agencies. "},{"$f":"VLOOKUP(B216,'LOC FINAL with new Themes'!A:M,11,0)","v":"Our data sets are archived, but I don’t know how far back. I will have to get back to you on that. It is my understanding that archived sets are not easily accessible.  We have archive data for SSURGO (Soil Data Warehouse from mid 2000’s or earlier – Jim Fortner or Jennifer Sweet may be able to confirm or provide more detail; We also have archive data for STATSGO (circa 1994;1996) and for MLRA (1978; 2001; 2006) in local holdings.  Not sure about lab data archives, Henry Ferguson or Larry West can confirm.  "},{"$f":"VLOOKUP(B216,'LOC FINAL with new Themes'!A:M,12,0)","v":"? the Lab Characterization Data is also known as the “NCSS Characterization Database”\nAdded Common Resource Area geographic database (CRA)."},{"$f":"VLOOKUP(B216,'LOC FINAL with new Themes'!A:M,13,0)","v":"P"}]
["Prime and Statewide Important Farmlands","Prime and Statewide Important Farmlands",null,"Prime and Statewide Important Farmlands","Soils ","USDA","Chris W. Smith","Christopherw.Smith@wdc.usda.gov",{"$f":"VLOOKUP(B217,'LOC FINAL with new Themes'!A:M,7,0)","v":0},{"$f":"VLOOKUP(B217,'LOC FINAL with new Themes'!A:M,8,0)","v":0},{"$f":"VLOOKUP(B217,'LOC FINAL with new Themes'!A:M,9,0)","v":0},{"$f":"VLOOKUP(B217,'LOC FINAL with new Themes'!A:M,10,0)","v":0},{"$f":"VLOOKUP(B217,'LOC FINAL with new Themes'!A:M,11,0)","v":0},{"$f":"VLOOKUP(B217,'LOC FINAL with new Themes'!A:M,12,0)","v":0},{"$f":"VLOOKUP(B217,'LOC FINAL with new Themes'!A:M,13,0)","v":0}]
["Soil Suitability for Disposal of Contaminated Crops ","Soil Suitability for Disposal of Contaminated Crops ",null,"Soil Suitability for Disposal of Contaminated Crops ","Soils ","USDA","Karl Hipple; Sharon Waltman","karl.hipple@lin.usda.gov; sharon.waltman@wv.usda.gov ",{"$f":"VLOOKUP(B218,'LOC FINAL with new Themes'!A:M,7,0)","v":"undeliverable email- neeed to identify new contact"},{"$f":"VLOOKUP(B218,'LOC FINAL with new Themes'!A:M,8,0)","v":0},{"$f":"VLOOKUP(B218,'LOC FINAL with new Themes'!A:M,9,0)","v":0},{"$f":"VLOOKUP(B218,'LOC FINAL with new Themes'!A:M,10,0)","v":0},{"$f":"VLOOKUP(B218,'LOC FINAL with new Themes'!A:M,11,0)","v":0},{"$f":"VLOOKUP(B218,'LOC FINAL with new Themes'!A:M,12,0)","v":0},{"$f":"VLOOKUP(B218,'LOC FINAL with new Themes'!A:M,13,0)","v":0}]
["Soil Suitability for Large Animal Disposal","Soil Suitability for Large Animal Disposal",null,"Soil Suitability for Large Animal Disposal","Soils ","USDA","Chris W. Smith","Christopherw.Smith@wdc.usda.gov",{"$f":"VLOOKUP(B219,'LOC FINAL with new Themes'!A:M,7,0)","v":0},{"$f":"VLOOKUP(B219,'LOC FINAL with new Themes'!A:M,8,0)","v":0},{"$f":"VLOOKUP(B219,'LOC FINAL with new Themes'!A:M,9,0)","v":0},{"$f":"VLOOKUP(B219,'LOC FINAL with new Themes'!A:M,10,0)","v":0},{"$f":"VLOOKUP(B219,'LOC FINAL with new Themes'!A:M,11,0)","v":0},{"$f":"VLOOKUP(B219,'LOC FINAL with new Themes'!A:M,12,0)","v":0},{"$f":"VLOOKUP(B219,'LOC FINAL with new Themes'!A:M,13,0)","v":0}]
["Soil Survey Geographic Database (SSURGO)","Soil Survey Geographic Database (SSURGO)","Soil Survey Geographic Database (SSURGO)","Soil Survey Geographic Database (SSURGO)","Soils ","USDA","Karl Hipple","karl.hipple@lin.usda.gov",{"$f":"VLOOKUP(B220,'LOC FINAL with new Themes'!A:M,7,0)","v":"undeliverable email- neeed to identify new contact"},{"$f":"VLOOKUP(B220,'LOC FINAL with new Themes'!A:M,8,0)","v":0},{"$f":"VLOOKUP(B220,'LOC FINAL with new Themes'!A:M,9,0)","v":0},{"$f":"VLOOKUP(B220,'LOC FINAL with new Themes'!A:M,10,0)","v":0},{"$f":"VLOOKUP(B220,'LOC FINAL with new Themes'!A:M,11,0)","v":0},{"$f":"VLOOKUP(B220,'LOC FINAL with new Themes'!A:M,12,0)","v":0},{"$f":"VLOOKUP(B220,'LOC FINAL with new Themes'!A:M,13,0)","v":0}]
["U.S. General Soil Map (STATSGO2)","U.S. General Soil Map (STATSGO2)","U.S. General Soil Map (STATSGO2)","U.S. General Soil Map (STATSGO2)","Soils ","USDA","Karl Hipple","karl.hipple@lin.usda.gov",{"$f":"VLOOKUP(B221,'LOC FINAL with new Themes'!A:M,7,0)","v":"undeliverable email- neeed to identify new contact"},{"$f":"VLOOKUP(B221,'LOC FINAL with new Themes'!A:M,8,0)","v":0},{"$f":"VLOOKUP(B221,'LOC FINAL with new Themes'!A:M,9,0)","v":0},{"$f":"VLOOKUP(B221,'LOC FINAL with new Themes'!A:M,10,0)","v":0},{"$f":"VLOOKUP(B221,'LOC FINAL with new Themes'!A:M,11,0)","v":0},{"$f":"VLOOKUP(B221,'LOC FINAL with new Themes'!A:M,12,0)","v":0},{"$f":"VLOOKUP(B221,'LOC FINAL with new Themes'!A:M,13,0)","v":0}]
[null,null,null,{"$f":"SUBTOTAL(3,D212:D221)","v":10},"Soils  Count"]
[null,"Address Range-Feature Name Relationship File","Address Range-Feature Name Relationship File",{"$f":"IF(C223=0,B223,C223)","v":"Address Range-Feature Name Relationship File"},"Transportation ","DOC-Census","Jennifer Holland","Jennifer.L.Holland@census.gov",{"$f":"VLOOKUP(B223,'LOC FINAL with new Themes'!A:M,7,0)","v":0},{"$f":"VLOOKUP(B223,'LOC FINAL with new Themes'!A:M,8,0)","v":0},{"$f":"VLOOKUP(B223,'LOC FINAL with new Themes'!A:M,9,0)","v":0},{"$f":"VLOOKUP(B223,'LOC FINAL with new Themes'!A:M,10,0)","v":0},{"$f":"VLOOKUP(B223,'LOC FINAL with new Themes'!A:M,11,0)","v":0},{"$f":"VLOOKUP(B223,'LOC FINAL with new Themes'!A:M,12,0)","v":0},{"$f":"VLOOKUP(B223,'LOC FINAL with new Themes'!A:M,13,0)","v":0}]
[null,"Address Ranges Relationship File","Address Ranges Relationship File","Address Ranges Relationship File","Transportation ","DOC-Census","Jennifer Holland","Jennifer.L.Holland@census.gov",{"$f":"VLOOKUP(B224,'LOC FINAL with new Themes'!A:M,7,0)","v":0},{"$f":"VLOOKUP(B224,'LOC FINAL with new Themes'!A:M,8,0)","v":0},{"$f":"VLOOKUP(B224,'LOC FINAL with new Themes'!A:M,9,0)","v":0},{"$f":"VLOOKUP(B224,'LOC FINAL with new Themes'!A:M,10,0)","v":0},{"$f":"VLOOKUP(B224,'LOC FINAL with new Themes'!A:M,11,0)","v":0},{"$f":"VLOOKUP(B224,'LOC FINAL with new Themes'!A:M,12,0)","v":0},{"$f":"VLOOKUP(B224,'LOC FINAL with new Themes'!A:M,13,0)","v":0}]
[null,"All Roads","All Roads","All Roads","Transportation ","DOC-Census","Jennifer Holland","Jennifer.L.Holland@census.gov",{"$f":"VLOOKUP(B225,'LOC FINAL with new Themes'!A:M,7,0)","v":0},{"$f":"VLOOKUP(B225,'LOC FINAL with new Themes'!A:M,8,0)","v":0},{"$f":"VLOOKUP(B225,'LOC FINAL with new Themes'!A:M,9,0)","v":0},{"$f":"VLOOKUP(B225,'LOC FINAL with new Themes'!A:M,10,0)","v":0},{"$f":"VLOOKUP(B225,'LOC FINAL with new Themes'!A:M,11,0)","v":0},{"$f":"VLOOKUP(B225,'LOC FINAL with new Themes'!A:M,12,0)","v":0},{"$f":"VLOOKUP(B225,'LOC FINAL with new Themes'!A:M,13,0)","v":0}]
["Inland Electronic Navigation Charts (IENC)","Inland Electronic Navigation Charts (IENC)","Inland Electronic Navigation Charts (IENC)","Inland Electronic Navigation Charts (IENC)","Transportation ","DOD-USACE","Joel Schlagel","Joel.D.Schlagel@erdc.usace.army.mil ",{"$f":"VLOOKUP(B226,'LOC FINAL with new Themes'!A:M,7,0)","v":0},{"$f":"VLOOKUP(B226,'LOC FINAL with new Themes'!A:M,8,0)","v":0},{"$f":"VLOOKUP(B226,'LOC FINAL with new Themes'!A:M,9,0)","v":0},{"$f":"VLOOKUP(B226,'LOC FINAL with new Themes'!A:M,10,0)","v":0},{"$f":"VLOOKUP(B226,'LOC FINAL with new Themes'!A:M,11,0)","v":0},{"$f":"VLOOKUP(B226,'LOC FINAL with new Themes'!A:M,12,0)","v":0},{"$f":"VLOOKUP(B226,'LOC FINAL with new Themes'!A:M,13,0)","v":0}]
[null,null,"National Interagency Trails Dataset","National Interagency Trails Dataset","Transportation ","USDA"]
["National Map - Transportation Dataset","National Map - Transportation Dataset","National Transportation Dataset - National Map","National Transportation Dataset - National Map","Transportation ","DOI-USGS","Paul Wiese","pmwiese@usgs.gov",{"$f":"VLOOKUP(B228,'LOC FINAL with new Themes'!A:M,7,0)","v":0},{"$f":"VLOOKUP(B228,'LOC FINAL with new Themes'!A:M,8,0)","v":0},{"$f":"VLOOKUP(B228,'LOC FINAL with new Themes'!A:M,9,0)","v":0},{"$f":"VLOOKUP(B228,'LOC FINAL with new Themes'!A:M,10,0)","v":0},{"$f":"VLOOKUP(B228,'LOC FINAL with new Themes'!A:M,11,0)","v":0},{"$f":"VLOOKUP(B228,'LOC FINAL with new Themes'!A:M,12,0)","v":0},{"$f":"VLOOKUP(B228,'LOC FINAL with new Themes'!A:M,13,0)","v":0}]
["NTAD","NTAD","NTAD","NTAD","Transportation ","DOT-BTS","Robert Monniere","robert.monniere@dot.gov",{"$f":"VLOOKUP(B229,'LOC FINAL with new Themes'!A:M,7,0)","v":0},{"$f":"VLOOKUP(B229,'LOC FINAL with new Themes'!A:M,8,0)","v":0},{"$f":"VLOOKUP(B229,'LOC FINAL with new Themes'!A:M,9,0)","v":0},{"$f":"VLOOKUP(B229,'LOC FINAL with new Themes'!A:M,10,0)","v":0},{"$f":"VLOOKUP(B229,'LOC FINAL with new Themes'!A:M,11,0)","v":0},{"$f":"VLOOKUP(B229,'LOC FINAL with new Themes'!A:M,12,0)","v":0},{"$f":"VLOOKUP(B229,'LOC FINAL with new Themes'!A:M,13,0)","v":0}]
[null,null,"NTAD (airports)","NTAD (airports)","Transportation ","DOT-BTS"]
[null,null,"NTAD (Rail)","NTAD (Rail)","Transportation ","DOT-BTS"]
["NTAD (TransitLines) ","NTAD (TransitLines) ","NTAD (TransitLines) ","NTAD (TransitLines) ","Transportation ","DOT-BTS","Robert Monniere ","robert.monniere@dot.gov \n",{"$f":"VLOOKUP(B232,'LOC FINAL with new Themes'!A:M,7,0)","v":0},{"$f":"VLOOKUP(B232,'LOC FINAL with new Themes'!A:M,8,0)","v":0},{"$f":"VLOOKUP(B232,'LOC FINAL with new Themes'!A:M,9,0)","v":0},{"$f":"VLOOKUP(B232,'LOC FINAL with new Themes'!A:M,10,0)","v":0},{"$f":"VLOOKUP(B232,'LOC FINAL with new Themes'!A:M,11,0)","v":0},{"$f":"VLOOKUP(B232,'LOC FINAL with new Themes'!A:M,12,0)","v":0},{"$f":"VLOOKUP(B232,'LOC FINAL with new Themes'!A:M,13,0)","v":0}]
["NTAD (TransitStation) ","NTAD (TransitStation) ","NTAD (TransitStation) ","NTAD (TransitStation) ","Transportation ","DOT-BTS","Robert Monniere ","robert.monniere@dot.gov ",{"$f":"VLOOKUP(B233,'LOC FINAL with new Themes'!A:M,7,0)","v":0},{"$f":"VLOOKUP(B233,'LOC FINAL with new Themes'!A:M,8,0)","v":0},{"$f":"VLOOKUP(B233,'LOC FINAL with new Themes'!A:M,9,0)","v":0},{"$f":"VLOOKUP(B233,'LOC FINAL with new Themes'!A:M,10,0)","v":0},{"$f":"VLOOKUP(B233,'LOC FINAL with new Themes'!A:M,11,0)","v":0},{"$f":"VLOOKUP(B233,'LOC FINAL with new Themes'!A:M,12,0)","v":0},{"$f":"VLOOKUP(B233,'LOC FINAL with new Themes'!A:M,13,0)","v":0}]
[null,"Primary and Secondary Roads","Primary and Secondary Roads",{"$f":"IF(C234=0,#REF!,C234)","v":"Primary and Secondary Roads"},"Transportation ","DOC-Census","Jennifer Holland","Jennifer.L.Holland@census.gov",{"$f":"VLOOKUP(B234,'LOC FINAL with new Themes'!A:M,7,0)","v":0},{"$f":"VLOOKUP(B234,'LOC FINAL with new Themes'!A:M,8,0)","v":0},{"$f":"VLOOKUP(B234,'LOC FINAL with new Themes'!A:M,9,0)","v":0},{"$f":"VLOOKUP(B234,'LOC FINAL with new Themes'!A:M,10,0)","v":0},{"$f":"VLOOKUP(B234,'LOC FINAL with new Themes'!A:M,11,0)","v":0},{"$f":"VLOOKUP(B234,'LOC FINAL with new Themes'!A:M,12,0)","v":0},{"$f":"VLOOKUP(B234,'LOC FINAL with new Themes'!A:M,13,0)","v":0}]
[null,"Primary Roads","Primary Roads",{"$f":"IF(C235=0,B235,C235)","v":"Primary Roads"},"Transportation ","DOC-Census","Jennifer Holland","Jennifer.L.Holland@census.gov",{"$f":"VLOOKUP(B235,'LOC FINAL with new Themes'!A:M,7,0)","v":0},{"$f":"VLOOKUP(B235,'LOC FINAL with new Themes'!A:M,8,0)","v":0},{"$f":"VLOOKUP(B235,'LOC FINAL with new Themes'!A:M,9,0)","v":0},{"$f":"VLOOKUP(B235,'LOC FINAL with new Themes'!A:M,10,0)","v":0},{"$f":"VLOOKUP(B235,'LOC FINAL with new Themes'!A:M,11,0)","v":0},{"$f":"VLOOKUP(B235,'LOC FINAL with new Themes'!A:M,12,0)","v":0},{"$f":"VLOOKUP(B235,'LOC FINAL with new Themes'!A:M,13,0)","v":0}]
["TIGER (Roads/Rail)","TIGER (Roads/Rail)",null,{"$f":"IF(C236=0,B236,C236)","v":"TIGER (Roads/Rail)"},"Transportation ","DOC-Census","Randy Fusaro","randy.j.fusaro@census.gov",{"$f":"VLOOKUP(B236,'LOC FINAL with new Themes'!A:M,7,0)","v":0},{"$f":"VLOOKUP(B236,'LOC FINAL with new Themes'!A:M,8,0)","v":0},{"$f":"VLOOKUP(B236,'LOC FINAL with new Themes'!A:M,9,0)","v":0},{"$f":"VLOOKUP(B236,'LOC FINAL with new Themes'!A:M,10,0)","v":0},{"$f":"VLOOKUP(B236,'LOC FINAL with new Themes'!A:M,11,0)","v":0},{"$f":"VLOOKUP(B236,'LOC FINAL with new Themes'!A:M,12,0)","v":0},{"$f":"VLOOKUP(B236,'LOC FINAL with new Themes'!A:M,13,0)","v":0}]
[null,"Traffic Analysis Zone (Census 2000)","Traffic Analysis Zone (Census 2000)",{"$f":"IF(C237=0,B237,C237)","v":"Traffic Analysis Zone (Census 2000)"},"Transportation ","DOC-Census","Jennifer Holland","Jennifer.L.Holland@census.gov",{"$f":"VLOOKUP(B237,'LOC FINAL with new Themes'!A:M,7,0)","v":0},{"$f":"VLOOKUP(B237,'LOC FINAL with new Themes'!A:M,8,0)","v":0},{"$f":"VLOOKUP(B237,'LOC FINAL with new Themes'!A:M,9,0)","v":0},{"$f":"VLOOKUP(B237,'LOC FINAL with new Themes'!A:M,10,0)","v":0},{"$f":"VLOOKUP(B237,'LOC FINAL with new Themes'!A:M,11,0)","v":0},{"$f":"VLOOKUP(B237,'LOC FINAL with new Themes'!A:M,12,0)","v":0},{"$f":"VLOOKUP(B237,'LOC FINAL with new Themes'!A:M,13,0)","v":0}]
[null,null,null,{"$f":"SUBTOTAL(3,D223:D237)","v":15},"Transportation  Count"]
[null,null,"Pipelines",{"$f":"IF(C239=0,B239,C239)","v":"Pipelines"},"Utilities ","DOI-MMS"]
[null,null,"Platforms",{"$f":"IF(C240=0,B240,C240)","v":"Platforms"},"Utilities ","DOI-MMS"]
[null,null,null,{"$f":"SUBTOTAL(3,D239:D240)","v":2},"Utilities  Count"]
[null,"Area Hydrography (2010 Census)","Area Hydrography (2010 Census)",{"$f":"IF(C242=0,B242,C242)","v":"Area Hydrography (2010 Census)"},"Water -- Inland","DOC-Census","Jennifer Holland","Jennifer.L.Holland@census.gov",{"$f":"VLOOKUP(B242,'LOC FINAL with new Themes'!A:M,7,0)","v":0},{"$f":"VLOOKUP(B242,'LOC FINAL with new Themes'!A:M,8,0)","v":0},{"$f":"VLOOKUP(B242,'LOC FINAL with new Themes'!A:M,9,0)","v":0},{"$f":"VLOOKUP(B242,'LOC FINAL with new Themes'!A:M,10,0)","v":0},{"$f":"VLOOKUP(B242,'LOC FINAL with new Themes'!A:M,11,0)","v":0},{"$f":"VLOOKUP(B242,'LOC FINAL with new Themes'!A:M,12,0)","v":0},{"$f":"VLOOKUP(B242,'LOC FINAL with new Themes'!A:M,13,0)","v":0}]
[null,"Linear Water Features","Linear Water Features","Linear Water Features","Water -- Inland","DOC-Census","Jennifer Holland","Jennifer.L.Holland@census.gov",{"$f":"VLOOKUP(B243,'LOC FINAL with new Themes'!A:M,7,0)","v":0},{"$f":"VLOOKUP(B243,'LOC FINAL with new Themes'!A:M,8,0)","v":0},{"$f":"VLOOKUP(B243,'LOC FINAL with new Themes'!A:M,9,0)","v":0},{"$f":"VLOOKUP(B243,'LOC FINAL with new Themes'!A:M,10,0)","v":0},{"$f":"VLOOKUP(B243,'LOC FINAL with new Themes'!A:M,11,0)","v":0},{"$f":"VLOOKUP(B243,'LOC FINAL with new Themes'!A:M,12,0)","v":0},{"$f":"VLOOKUP(B243,'LOC FINAL with new Themes'!A:M,13,0)","v":0}]
["National Hydrography Data Set","National Hydrography Dataset","National Hydrography Dataset - National Map","National Hydrography Dataset - National Map","Water -- Inland","DOI-USGS","Jeff Simley","jdsimley@usgs.gov",{"$f":"VLOOKUP(B244,'LOC FINAL with new Themes'!A:M,7,0)","v":0},{"$f":"VLOOKUP(B244,'LOC FINAL with new Themes'!A:M,8,0)","v":0},{"$f":"VLOOKUP(B244,'LOC FINAL with new Themes'!A:M,9,0)","v":0},{"$f":"VLOOKUP(B244,'LOC FINAL with new Themes'!A:M,10,0)","v":0},{"$f":"VLOOKUP(B244,'LOC FINAL with new Themes'!A:M,11,0)","v":0},{"$f":"VLOOKUP(B244,'LOC FINAL with new Themes'!A:M,12,0)","v":0},{"$f":"VLOOKUP(B244,'LOC FINAL with new Themes'!A:M,13,0)","v":0}]
["National Inventory of Dams (NID)","National Inventory of Dams (NID)","National Inventory of Dams (NID)","National Inventory of Dams (NID)","Water -- Inland","DOD-USACE","Rebecca Ragon","Rebecca.Ragon@usace.army.mil ",{"$f":"VLOOKUP(B245,'LOC FINAL with new Themes'!A:M,7,0)","v":"One single data set"},{"$f":"VLOOKUP(B245,'LOC FINAL with new Themes'!A:M,8,0)","v":"Yes"},{"$f":"VLOOKUP(B245,'LOC FINAL with new Themes'!A:M,9,0)","v":"Yes"},{"$f":"VLOOKUP(B245,'LOC FINAL with new Themes'!A:M,10,0)","v":"Usually every 2 years"},{"$f":"VLOOKUP(B245,'LOC FINAL with new Themes'!A:M,11,0)","v":"Because the NID is updated every 2 years, we do have archived databased datig back to 1994."},{"$f":"VLOOKUP(B245,'LOC FINAL with new Themes'!A:M,12,0)","v":"The official name is National Inventory of Dams (NID) but I have seen the database referenced as the National Dam Inventory"},{"$f":"VLOOKUP(B245,'LOC FINAL with new Themes'!A:M,13,0)","v":"S"}]
["National Levee Database (NLD)","National Levee Database (NLD)","National Levee Database (NLD)","National Levee Database (NLD)","Water -- Inland","DOD-USACE","Bryan Baker","Bryan.E.Baker@usace.army.mil",{"$f":"VLOOKUP(B246,'LOC FINAL with new Themes'!A:M,7,0)","v":0},{"$f":"VLOOKUP(B246,'LOC FINAL with new Themes'!A:M,8,0)","v":0},{"$f":"VLOOKUP(B246,'LOC FINAL with new Themes'!A:M,9,0)","v":0},{"$f":"VLOOKUP(B246,'LOC FINAL with new Themes'!A:M,10,0)","v":0},{"$f":"VLOOKUP(B246,'LOC FINAL with new Themes'!A:M,11,0)","v":0},{"$f":"VLOOKUP(B246,'LOC FINAL with new Themes'!A:M,12,0)","v":0},{"$f":"VLOOKUP(B246,'LOC FINAL with new Themes'!A:M,13,0)","v":0}]
[null,null,"National Water Information System (NWIS)- Stream Gage Network","National Water Information System (NWIS)- Stream Gage Network","Water -- Inland","DOI-USGS"]
[null,null,"National Water Information System (NWIS)- Water Quality Monitoring Stations","National Water Information System (NWIS)- Water Quality Monitoring Stations","Water -- Inland","DOI-USGS"]
["National Wetlands Inventory (NWI) ","National Wetlands Inventory (NWI) ","National Wetlands Inventory (NWI) ","National Wetlands Inventory (NWI) ","Water -- Inland","DOI-FWS","Tom Dahl  ","tom_dahl@fws.gov\n",{"$f":"VLOOKUP(B249,'LOC FINAL with new Themes'!A:M,7,0)","v":0},{"$f":"VLOOKUP(B249,'LOC FINAL with new Themes'!A:M,8,0)","v":0},{"$f":"VLOOKUP(B249,'LOC FINAL with new Themes'!A:M,9,0)","v":0},{"$f":"VLOOKUP(B249,'LOC FINAL with new Themes'!A:M,10,0)","v":0},{"$f":"VLOOKUP(B249,'LOC FINAL with new Themes'!A:M,11,0)","v":0},{"$f":"VLOOKUP(B249,'LOC FINAL with new Themes'!A:M,12,0)","v":0},{"$f":"VLOOKUP(B249,'LOC FINAL with new Themes'!A:M,13,0)","v":0}]
["NWIS & STORET","NWIS & STORET",null,"NWIS & STORET","Water -- Inland",null,"EGIM",null,{"$f":"VLOOKUP(B250,'LOC FINAL with new Themes'!A:M,7,0)","v":0},{"$f":"VLOOKUP(B250,'LOC FINAL with new Themes'!A:M,8,0)","v":0},{"$f":"VLOOKUP(B250,'LOC FINAL with new Themes'!A:M,9,0)","v":0},{"$f":"VLOOKUP(B250,'LOC FINAL with new Themes'!A:M,10,0)","v":0},{"$f":"VLOOKUP(B250,'LOC FINAL with new Themes'!A:M,11,0)","v":0},{"$f":"VLOOKUP(B250,'LOC FINAL with new Themes'!A:M,12,0)","v":0},{"$f":"VLOOKUP(B250,'LOC FINAL with new Themes'!A:M,13,0)","v":0}]
[null,"Topological Faces-Area Hydrography Relationship File","Topological Faces-Area Hydrography Relationship File","Topological Faces-Area Hydrography Relationship File","Water -- Inland","DOC-Census","Jennifer Holland","Jennifer.L.Holland@census.gov",{"$f":"VLOOKUP(B251,'LOC FINAL with new Themes'!A:M,7,0)","v":0},{"$f":"VLOOKUP(B251,'LOC FINAL with new Themes'!A:M,8,0)","v":0},{"$f":"VLOOKUP(B251,'LOC FINAL with new Themes'!A:M,9,0)","v":0},{"$f":"VLOOKUP(B251,'LOC FINAL with new Themes'!A:M,10,0)","v":0},{"$f":"VLOOKUP(B251,'LOC FINAL with new Themes'!A:M,11,0)","v":0},{"$f":"VLOOKUP(B251,'LOC FINAL with new Themes'!A:M,12,0)","v":0},{"$f":"VLOOKUP(B251,'LOC FINAL with new Themes'!A:M,13,0)","v":0}]
["Watershed Boundary Data Set (WBD)  ","Watershed Boundary Dataset (WBD)  ","Watershed Boundary Dataset (WBD)  ","Watershed Boundary Dataset (WBD)  ","Water -- Inland","DOI-USGS","Karen Hanson","khanson@usgs.gov",{"$f":"VLOOKUP(B252,'LOC FINAL with new Themes'!A:M,7,0)","v":"one set with nested hierarchy of six different levels within it (regions, subdivided into four, six and twelve digits), POC and data manager; continually updated; co-managed with NRCS and they archive it; USGS in Denver will serve it; All transactions are archived in versions in the database as they happen. Data from any moment in time can be captured with a simple query. The database is replicated daily to Rolla, MO servers. The database is stored on a SAN with three tier redundancy.All changes to the database are stored on separate disks and once they reach a certain size, they are copied over to a server to be written to tape. Weekly, the entire database (NHD, with WBD) is written to tape.Monthly, the tapes are taken off site for storage."},{"$f":"VLOOKUP(B252,'LOC FINAL with new Themes'!A:M,8,0)","v":0},{"$f":"VLOOKUP(B252,'LOC FINAL with new Themes'!A:M,9,0)","v":0},{"$f":"VLOOKUP(B252,'LOC FINAL with new Themes'!A:M,10,0)","v":0},{"$f":"VLOOKUP(B252,'LOC FINAL with new Themes'!A:M,11,0)","v":0},{"$f":"VLOOKUP(B252,'LOC FINAL with new Themes'!A:M,12,0)","v":0},{"$f":"VLOOKUP(B252,'LOC FINAL with new Themes'!A:M,13,0)","v":"S"}]
["Watershed Boundary Data Set (WBD)  ","Watershed Boundary Dataset (WBD)  ","Watershed Boundary Dataset (WBD)  ","Watershed Boundary Dataset (WBD)  ","Water -- Inland","DOI-USGS","Karen Hanson","khanson@usgs.gov",{"$f":"VLOOKUP(B253,'LOC FINAL with new Themes'!A:M,7,0)","v":"one set with nested hierarchy of six different levels within it (regions, subdivided into four, six and twelve digits), POC and data manager; continually updated; co-managed with NRCS and they archive it; USGS in Denver will serve it; All transactions are archived in versions in the database as they happen. Data from any moment in time can be captured with a simple query. The database is replicated daily to Rolla, MO servers. The database is stored on a SAN with three tier redundancy.All changes to the database are stored on separate disks and once they reach a certain size, they are copied over to a server to be written to tape. Weekly, the entire database (NHD, with WBD) is written to tape.Monthly, the tapes are taken off site for storage."},{"$f":"VLOOKUP(B253,'LOC FINAL with new Themes'!A:M,8,0)","v":0},{"$f":"VLOOKUP(B253,'LOC FINAL with new Themes'!A:M,9,0)","v":0},{"$f":"VLOOKUP(B253,'LOC FINAL with new Themes'!A:M,10,0)","v":0},{"$f":"VLOOKUP(B253,'LOC FINAL with new Themes'!A:M,11,0)","v":0},{"$f":"VLOOKUP(B253,'LOC FINAL with new Themes'!A:M,12,0)","v":0},{"$f":"VLOOKUP(B253,'LOC FINAL with new Themes'!A:M,13,0)","v":"S"}]
[null,null,null,{"$f":"SUBTOTAL(3,D242:D253)","v":12},"Water -- Inland Count"]
[null,null,"Coastal Barrier Resource System",{"$f":"IF(C255=0,B255,C255)","v":"Coastal Barrier Resource System"},"Water -- Oceans and Coasts ","DOI-FWS"]
[null,null,"Coastal Change Analysis Program (C-CAP) Land Cover and Land Change Imagery","Coastal Change Analysis Program (C-CAP) Land Cover and Land Change Imagery","Water -- Oceans and Coasts ","DOC-NOAA","Nate Herold","nate.herold@noaa.gov"]
["Continental Shelf Boundary Data","Continental Shelf Boundary Data","Continental Shelf Boundary Data","Continental Shelf Boundary Data","Water -- Oceans and Coasts ","DOI-BOEM","Doug Vandegraft","douglas.vandegraft@boemre.gov",{"$f":"VLOOKUP(B257,'LOC FINAL with new Themes'!A:M,7,0)","v":"undeliverable email- neeed to identify new contact"},{"$f":"VLOOKUP(B257,'LOC FINAL with new Themes'!A:M,8,0)","v":0},{"$f":"VLOOKUP(B257,'LOC FINAL with new Themes'!A:M,9,0)","v":0},{"$f":"VLOOKUP(B257,'LOC FINAL with new Themes'!A:M,10,0)","v":0},{"$f":"VLOOKUP(B257,'LOC FINAL with new Themes'!A:M,11,0)","v":0},{"$f":"VLOOKUP(B257,'LOC FINAL with new Themes'!A:M,12,0)","v":0},{"$f":"VLOOKUP(B257,'LOC FINAL with new Themes'!A:M,13,0)","v":0}]
[null,null,"National Data Buoy Center (NDBC) Recent and Historical Data","National Data Buoy Center (NDBC) Recent and Historical Data","Water -- Oceans and Coasts ","DOC-NOAA"]
[null,null,"NOAA National Shoreline","NOAA National Shoreline","Water -- Oceans and Coasts ","DOC-NOAA","Doug Graham","Doug.Graham@noaa.gov"]
["NOAA Nautical Charts","NOAA Nautical Charts","NOAA's Nautical Chart Products","NOAA's Nautical Chart Products","Water -- Oceans and Coasts ","DOC-NOAA","John Lowell","John.Lowell@noaa.gov",{"$f":"VLOOKUP(B260,'LOC FINAL with new Themes'!A:M,7,0)","v":0},{"$f":"VLOOKUP(B260,'LOC FINAL with new Themes'!A:M,8,0)","v":0},{"$f":"VLOOKUP(B260,'LOC FINAL with new Themes'!A:M,9,0)","v":0},{"$f":"VLOOKUP(B260,'LOC FINAL with new Themes'!A:M,10,0)","v":0},{"$f":"VLOOKUP(B260,'LOC FINAL with new Themes'!A:M,11,0)","v":0},{"$f":"VLOOKUP(B260,'LOC FINAL with new Themes'!A:M,12,0)","v":0},{"$f":"VLOOKUP(B260,'LOC FINAL with new Themes'!A:M,13,0)","v":0}]
[null,null,"Non-Projected Boundaries","Non-Projected Boundaries","Water -- Oceans and Coasts ","DOI-MMS"]
[null,null,"Projected Boundaries","Projected Boundaries","Water -- Oceans and Coasts ","DOI-MMS"]
[null,null,"U.S. Marine Protected Areas Boundaries","U.S. Marine Protected Areas Boundaries","Water -- Oceans and Coasts ","DOC-NOAA"]
[null,null,"U.S. Maritime Zones/Boundaries","U.S. Maritime Zones/Boundaries","Water -- Oceans and Coasts ","DOC-NOAA","Meredith Westington","meredith.westington@noaa.gov"]
[null,null,null,{"$f":"SUBTOTAL(3,D255:D264)","v":10},"Water -- Oceans and Coasts  Count"]
[null,null,null,{"$f":"SUBTOTAL(3,D2:D264)","v":245},"Grand Count"]

{"sheet":"12-2-2011","index":1,"n_rows":292,"n_cols":15,"rows_kept":292,"cut":false,"hidden":true,"merged":[]}
["ORIGINAL (beginning of 2011)","LOC FINAL (October 2011)","NGDA List (October 2011)","FINAL List (November 2011)","Theme","Agency","Dataset Manager","Email","Q1 How many data set(s) do you have? It is a single set or multiple sets? ","Q2 Are you a data set manager?","Q3 Are you the POC for transferring the data set and/or for information about the data set?","Q4 How often is the data set updated?","Q5 Is there an archive/backup of the data set or do you maintain an archived copy of it? If yes, how far back do you maintain a copy? Is it easily accessible?","Q6 Does the data set go by a different name or is it referred to internally by another descriptive name?","M\nP\nS"]
[null,null,"Critical Habitat ",{"$f":"IF(C2=0,B2,C2)","v":"Critical Habitat "},"Biota","DOI-FWS"]
[null,null,"Current Range for listed species ","Current Range for listed species ","Biota","DOI-FWS"]
["ECOMAP Data Sets (Ecological Subregions: Sections and Subsections for the Conterminous United States ) ","ECOMAP Datasets (Ecological Subregions: Sections and Subsections for the Conterminous United States ) ","ECOMAP Datasets (Ecological Subregions: Sections and Subsections for the Conterminous United States ) ","ECOMAP Datasets (Ecological Subregions: Sections and Subsections for the Conterminous United States ) ","Biota","USDA-FS","David T. Cleland","dcleland@fs.fed.us",{"$f":"VLOOKUP(B4,'LOC FINAL with new Themes'!A:M,7,0)","v":"One, single set"},{"$f":"VLOOKUP(B4,'LOC FINAL with new Themes'!A:M,8,0)","v":"Yes"},{"$f":"VLOOKUP(B4,'LOC FINAL with new Themes'!A:M,9,0)","v":"Yes"},{"$f":"VLOOKUP(B4,'LOC FINAL with new Themes'!A:M,10,0)","v":"Maps are updated on a 10-year cycle"},{"$f":"VLOOKUP(B4,'LOC FINAL with new Themes'!A:M,11,0)","v":"The data is housed at and served by the Forest Service geodata portal, and is easily accessible.  The web address is: http://fsgeodata.fs.fed.us/other_resources/ecosubregions.html "},{"$f":"VLOOKUP(B4,'LOC FINAL with new Themes'!A:M,12,0)","v":"?   Internally, the data is named ECOMAP or the National Hierarchy of Ecological Units. "},{"$f":"VLOOKUP(B4,'LOC FINAL with new Themes'!A:M,13,0)","v":"S"}]
[null,null,"Endangered Species (Threatened and Endangered Species System)","Endangered Species (Threatened and Endangered Species System)","Biota","DOI-FWS"]
["Env Sens Index Maps - classified shoreline","Env Sens Index Maps - classified shoreline","Environmental Sensitivity Index (ESI) Data and Maps","Environmental Sensitivity Index (ESI) Data and Maps","Biota","DOC-NOAA","Jill Petersen","jill.petersen@noaa.gov",{"$f":"VLOOKUP(B6,'LOC FINAL with new Themes'!A:M,7,0)","v":"There are approximately 70 different atlases. There are a few that are still not available in a GIS format, (approx 7 of the approx 70!) - these are available as the hard copy product and as PDFs (scanned). The remaining atlases are available in multiple GIS formats - Arc Export files, Geodatabase with an ArcMap map document complete with all relates established and properly symbolized, Shape files with an ArcView 3.x project, a free ESI viewer that allows viewing, queries and printing (in house mapping program and filemaker pro) as well as PDF format and the hard copy product. These can be downloaded from http://response.restoration.noaa.gov/esi_download This page is in progress, but should be complete fairly quickly.\n\n"},{"$f":"VLOOKUP(B6,'LOC FINAL with new Themes'!A:M,8,0)","v":"Yes"},{"$f":"VLOOKUP(B6,'LOC FINAL with new Themes'!A:M,9,0)","v":"Yes "},{"$f":"VLOOKUP(B6,'LOC FINAL with new Themes'!A:M,10,0)","v":"- High resolution products have no defined update schedule.  TBD by geog/project."},{"$f":"VLOOKUP(B6,'LOC FINAL with new Themes'!A:M,11,0)","v":"Yes and no. We have archives of all the digital data as well as all the PDFs (scanned or produced with the digital data map comps). Many of the hard copy atlases from the first round of ESI maps were sent to the Library of Commerce. Others I have kept, but no very organized situation. However, we have all of the historic PDFs which are an exact duplicate of the hard copy atlas, so that is something. Historic data is going to be served from the above link as well. That will be added as the current data sets are completed."},{"$f":"VLOOKUP(B6,'LOC FINAL with new Themes'!A:M,12,0)","v":"ESI is the common abbreviation for these maps. Other than that, Environmental Sensitivity Index Maps, Shoreline Sensitivity maps, Environmental Sensitivity maps..... These maps have the classified shoreline, as well as summaries of biological and human use resource particularly sensitive to oiling. "},{"$f":"VLOOKUP(B6,'LOC FINAL with new Themes'!A:M,13,0)","v":"M "}]
["Environmental Sensitivity Index Maps","Environmental Sensitivity Index Maps","Environmental Sensitivity Index (ESI) Data and Maps","Environmental Sensitivity Index (ESI) Data and Maps","Biota","DOC-NOAA","Jill Petersen","jill.petersen@noaa.gov",{"$f":"VLOOKUP(B7,'LOC FINAL with new Themes'!A:M,7,0)","v":"Same as Env Sens Index Maps - classified shoreline"},{"$f":"VLOOKUP(B7,'LOC FINAL with new Themes'!A:M,8,0)","v":0},{"$f":"VLOOKUP(B7,'LOC FINAL with new Themes'!A:M,9,0)","v":0},{"$f":"VLOOKUP(B7,'LOC FINAL with new Themes'!A:M,10,0)","v":"- Hawaii is TBD, but most likely will end up being a 10 year update cycle."},{"$f":"VLOOKUP(B7,'LOC FINAL with new Themes'!A:M,11,0)","v":0},{"$f":"VLOOKUP(B7,'LOC FINAL with new Themes'!A:M,12,0)","v":0},{"$f":"VLOOKUP(B7,'LOC FINAL with new Themes'!A:M,13,0)","v":0}]
["GAP Program Dataset","GAP Program Dataset","GAP Program Dataset","GAP Program Dataset","Biota","DOI-USGS","Kevin Gergely","gergely@usgs.gov",{"$f":"VLOOKUP(B8,'LOC FINAL with new Themes'!A:M,7,0)","v":"POC; multiple data sets in single location, building three fundamental data layers, two are national (protected areas, land cover dataset); backup; six months, annually)"},{"$f":"VLOOKUP(B8,'LOC FINAL with new Themes'!A:M,8,0)","v":0},{"$f":"VLOOKUP(B8,'LOC FINAL with new Themes'!A:M,9,0)","v":0},{"$f":"VLOOKUP(B8,'LOC FINAL with new Themes'!A:M,10,0)","v":0},{"$f":"VLOOKUP(B8,'LOC FINAL with new Themes'!A:M,11,0)","v":0},{"$f":"VLOOKUP(B8,'LOC FINAL with new Themes'!A:M,12,0)","v":0},{"$f":"VLOOKUP(B8,'LOC FINAL with new Themes'!A:M,13,0)","v":"P"}]
["National Standardized Ecosystems Dataset","National Standardized Ecosystems Dataset","National Standardized Ecosystems Dataset","National Standardized Ecosystems Dataset","Biota","DOI-USGS","Roger Sayre","rsayre@usgs.gov",{"$f":"VLOOKUP(B9,'LOC FINAL with new Themes'!A:M,7,0)","v":0},{"$f":"VLOOKUP(B9,'LOC FINAL with new Themes'!A:M,8,0)","v":0},{"$f":"VLOOKUP(B9,'LOC FINAL with new Themes'!A:M,9,0)","v":0},{"$f":"VLOOKUP(B9,'LOC FINAL with new Themes'!A:M,10,0)","v":0},{"$f":"VLOOKUP(B9,'LOC FINAL with new Themes'!A:M,11,0)","v":0},{"$f":"VLOOKUP(B9,'LOC FINAL with new Themes'!A:M,12,0)","v":0},{"$f":"VLOOKUP(B9,'LOC FINAL with new Themes'!A:M,13,0)","v":0}]
[null,null,"Recovery Range for listed species ","Recovery Range for listed species ","Biota","DOI-FWS"]
[null,null,"Section 7 Range for listed species ","Section 7 Range for listed species ","Biota","DOI-FWS"]
["Biomes, Ecoregions","Biomes, Ecoregions",null,"Biomes, Ecoregions","Biota ","DOI-USGS","Dan Phillips ","dphillips@usgs.gov",{"$f":"VLOOKUP(B12,'LOC FINAL with new Themes'!A:M,7,0)","v":0},{"$f":"VLOOKUP(B12,'LOC FINAL with new Themes'!A:M,8,0)","v":0},{"$f":"VLOOKUP(B12,'LOC FINAL with new Themes'!A:M,9,0)","v":0},{"$f":"VLOOKUP(B12,'LOC FINAL with new Themes'!A:M,10,0)","v":0},{"$f":"VLOOKUP(B12,'LOC FINAL with new Themes'!A:M,11,0)","v":0},{"$f":"VLOOKUP(B12,'LOC FINAL with new Themes'!A:M,12,0)","v":0},{"$f":"VLOOKUP(B12,'LOC FINAL with new Themes'!A:M,13,0)","v":0}]
["Ecological Services","Ecological Services",null,"Ecological Services","Biota ","DOI-USGS","Dan Phillips ","dphillips@usgs.gov",{"$f":"VLOOKUP(B13,'LOC FINAL with new Themes'!A:M,7,0)","v":0},{"$f":"VLOOKUP(B13,'LOC FINAL with new Themes'!A:M,8,0)","v":0},{"$f":"VLOOKUP(B13,'LOC FINAL with new Themes'!A:M,9,0)","v":0},{"$f":"VLOOKUP(B13,'LOC FINAL with new Themes'!A:M,10,0)","v":0},{"$f":"VLOOKUP(B13,'LOC FINAL with new Themes'!A:M,11,0)","v":0},{"$f":"VLOOKUP(B13,'LOC FINAL with new Themes'!A:M,12,0)","v":0},{"$f":"VLOOKUP(B13,'LOC FINAL with new Themes'!A:M,13,0)","v":0}]
["Habitats","Habitats",null,"Habitats","Biota ","DOI-USGS","Dan Phillips ","dphillips@usgs.gov",{"$f":"VLOOKUP(B14,'LOC FINAL with new Themes'!A:M,7,0)","v":"see protected areas and land cover set; vertebrae species of US being developed (not complete for all species they want to include in it."},{"$f":"VLOOKUP(B14,'LOC FINAL with new Themes'!A:M,8,0)","v":0},{"$f":"VLOOKUP(B14,'LOC FINAL with new Themes'!A:M,9,0)","v":0},{"$f":"VLOOKUP(B14,'LOC FINAL with new Themes'!A:M,10,0)","v":0},{"$f":"VLOOKUP(B14,'LOC FINAL with new Themes'!A:M,11,0)","v":0},{"$f":"VLOOKUP(B14,'LOC FINAL with new Themes'!A:M,12,0)","v":0},{"$f":"VLOOKUP(B14,'LOC FINAL with new Themes'!A:M,13,0)","v":"M"}]
["Invasive Species","Invasive Species",null,"Invasive Species","Biota ","DOI-USGS","Dan Phillips ","dphillips@usgs.gov",{"$f":"VLOOKUP(B15,'LOC FINAL with new Themes'!A:M,7,0)","v":"There are hundreds of datasets that are produced and maintained by the GAP program. Dan is not the data set manager, but I work with the people that maintain and update the datasets and maintains metadata.The data are updated at different intervals, especially now that they have moved more to a regional and national based approach. GAPS data sets presumably archived since 1990s."},{"$f":"VLOOKUP(B15,'LOC FINAL with new Themes'!A:M,8,0)","v":0},{"$f":"VLOOKUP(B15,'LOC FINAL with new Themes'!A:M,9,0)","v":0},{"$f":"VLOOKUP(B15,'LOC FINAL with new Themes'!A:M,10,0)","v":0},{"$f":"VLOOKUP(B15,'LOC FINAL with new Themes'!A:M,11,0)","v":0},{"$f":"VLOOKUP(B15,'LOC FINAL with new Themes'!A:M,12,0)","v":0},{"$f":"VLOOKUP(B15,'LOC FINAL with new Themes'!A:M,13,0)","v":"M"}]
["Species Distribution(amphibians, birds, reptiles, mammals, fishes, plants, etc)","Species Distribution (amphibians, birds, reptiles, mammals, fishes, plants, etc)",null,"Species Distribution (amphibians, birds, reptiles, mammals, fishes, plants, etc)","Biota ","DOI-USGS","Dan Phillips ","dphillips@usgs.gov",{"$f":"VLOOKUP(B16,'LOC FINAL with new Themes'!A:M,7,0)","v":"There are hundreds of datasets that are produced and maintained by the GAP program. Dan is not the data set manager, but I work with the people that maintain and update the datasets and maintains metadata. The data are updated at different intervals, especially now that they have moved more to a regional and national based approach. GAPS data sets presumably archived since 1990s."},{"$f":"VLOOKUP(B16,'LOC FINAL with new Themes'!A:M,8,0)","v":0},{"$f":"VLOOKUP(B16,'LOC FINAL with new Themes'!A:M,9,0)","v":0},{"$f":"VLOOKUP(B16,'LOC FINAL with new Themes'!A:M,10,0)","v":0},{"$f":"VLOOKUP(B16,'LOC FINAL with new Themes'!A:M,11,0)","v":0},{"$f":"VLOOKUP(B16,'LOC FINAL with new Themes'!A:M,12,0)","v":0},{"$f":"VLOOKUP(B16,'LOC FINAL with new Themes'!A:M,13,0)","v":"M"}]
[{"$f":"SUBTOTAL(3,A2:A16)","v":10},{"$f":"SUBTOTAL(3,B2:B16)","v":10},{"$f":"SUBTOTAL(3,C2:C16)","v":10},{"$f":"SUBTOTAL(3,D2:D16)","v":15},"Biota Count"]
["General Land Office","General Land Office","General Land Office",{"$f":"IF(C18=0,B18,C18)","v":"General Land Office"},"Cadastre","DOI-BLM","Juan Palma","juan_palma@blm.gov",{"$f":"VLOOKUP(B18,'LOC FINAL with new Themes'!A:M,7,0)","v":0},{"$f":"VLOOKUP(B18,'LOC FINAL with new Themes'!A:M,8,0)","v":0},{"$f":"VLOOKUP(B18,'LOC FINAL with new Themes'!A:M,9,0)","v":0},{"$f":"VLOOKUP(B18,'LOC FINAL with new Themes'!A:M,10,0)","v":0},{"$f":"VLOOKUP(B18,'LOC FINAL with new Themes'!A:M,11,0)","v":0},{"$f":"VLOOKUP(B18,'LOC FINAL with new Themes'!A:M,12,0)","v":0},{"$f":"VLOOKUP(B18,'LOC FINAL with new Themes'!A:M,13,0)","v":0}]
["Geographic Coordinate Data Base (GCDB)","Geographic Coordinate Data Base (GCDB)",null,"Geographic Coordinate Data Base (GCDB)","Cadastre","DOI-BLM","Don Buhler","don_buhler@blm.gov",{"$f":"VLOOKUP(B19,'LOC FINAL with new Themes'!A:M,7,0)","v":"every agency has its own database; multiple data sets; standard being advanced and put into practice; federal interest is managed with BLM; state and local are authoritative sets for other lands; "},{"$f":"VLOOKUP(B19,'LOC FINAL with new Themes'!A:M,8,0)","v":0},{"$f":"VLOOKUP(B19,'LOC FINAL with new Themes'!A:M,9,0)","v":0},{"$f":"VLOOKUP(B19,'LOC FINAL with new Themes'!A:M,10,0)","v":0},{"$f":"VLOOKUP(B19,'LOC FINAL with new Themes'!A:M,11,0)","v":0},{"$f":"VLOOKUP(B19,'LOC FINAL with new Themes'!A:M,12,0)","v":0},{"$f":"VLOOKUP(B19,'LOC FINAL with new Themes'!A:M,13,0)","v":"M "}]
["LR 2000 - Master Title Plats ","LR 2000 - Master Title Plats ","LR 2000 - Attribute Information","LR 2000 - Attribute Information","Cadastre","DOI-BLM","Jeff Holdren","jeff_holdren@blm.gov",{"$f":"VLOOKUP(B20,'LOC FINAL with new Themes'!A:M,7,0)","v":"listing of sales, rents, agricultural disposal and rights of way cases, group of data sets in one system; Kim Burns, division chief; not archived, there is a backup; Denver office handles"},{"$f":"VLOOKUP(B20,'LOC FINAL with new Themes'!A:M,8,0)","v":0},{"$f":"VLOOKUP(B20,'LOC FINAL with new Themes'!A:M,9,0)","v":0},{"$f":"VLOOKUP(B20,'LOC FINAL with new Themes'!A:M,10,0)","v":0},{"$f":"VLOOKUP(B20,'LOC FINAL with new Themes'!A:M,11,0)","v":0},{"$f":"VLOOKUP(B20,'LOC FINAL with new Themes'!A:M,12,0)","v":0},{"$f":"VLOOKUP(B20,'LOC FINAL with new Themes'!A:M,13,0)","v":"P"}]
["Manual of Surveying Instructions, Data Standards","Manual of Surveying Instructions, Data Standards",null,"Manual of Surveying Instructions, Data Standards","Cadastre","DOI-BLM","Don Buhler","don_buhler@blm.gov",{"$f":"VLOOKUP(B21,'LOC FINAL with new Themes'!A:M,7,0)","v":0},{"$f":"VLOOKUP(B21,'LOC FINAL with new Themes'!A:M,8,0)","v":0},{"$f":"VLOOKUP(B21,'LOC FINAL with new Themes'!A:M,9,0)","v":0},{"$f":"VLOOKUP(B21,'LOC FINAL with new Themes'!A:M,10,0)","v":0},{"$f":"VLOOKUP(B21,'LOC FINAL with new Themes'!A:M,11,0)","v":0},{"$f":"VLOOKUP(B21,'LOC FINAL with new Themes'!A:M,12,0)","v":0},{"$f":"VLOOKUP(B21,'LOC FINAL with new Themes'!A:M,13,0)","v":0}]
["Mineral Estate - Fluids","Mineral Estate - Fluids",null,"Mineral Estate - Fluids","Cadastre","DOI-BLM","Tim Spisak ","tim_spisak@blm.gov",{"$f":"VLOOKUP(B22,'LOC FINAL with new Themes'!A:M,7,0)","v":"mineral leasess, mining claims, rights of way, gases (single data set); BLM-managed lands but managed all federal mineral estate (comprehensive for mineraal estate) some electronic and some not"},{"$f":"VLOOKUP(B22,'LOC FINAL with new Themes'!A:M,8,0)","v":0},{"$f":"VLOOKUP(B22,'LOC FINAL with new Themes'!A:M,9,0)","v":0},{"$f":"VLOOKUP(B22,'LOC FINAL with new Themes'!A:M,10,0)","v":0},{"$f":"VLOOKUP(B22,'LOC FINAL with new Themes'!A:M,11,0)","v":0},{"$f":"VLOOKUP(B22,'LOC FINAL with new Themes'!A:M,12,0)","v":0},{"$f":"VLOOKUP(B22,'LOC FINAL with new Themes'!A:M,13,0)","v":"P"}]
["Mineral Estate - Solids","Mineral Estate - Solids",null,"Mineral Estate - Solids","Cadastre","DOI-BLM","Mitchell Leverette","mitchell_leverette@blm.gov",{"$f":"VLOOKUP(B23,'LOC FINAL with new Themes'!A:M,7,0)","v":"mineral leasess, mining claims, rights of way, gases (single data set); BLM-managed lands but managed all federal mineral estate (comprehensive for mineral estate) some electronic and some not"},{"$f":"VLOOKUP(B23,'LOC FINAL with new Themes'!A:M,8,0)","v":0},{"$f":"VLOOKUP(B23,'LOC FINAL with new Themes'!A:M,9,0)","v":0},{"$f":"VLOOKUP(B23,'LOC FINAL with new Themes'!A:M,10,0)","v":0},{"$f":"VLOOKUP(B23,'LOC FINAL with new Themes'!A:M,11,0)","v":0},{"$f":"VLOOKUP(B23,'LOC FINAL with new Themes'!A:M,12,0)","v":0},{"$f":"VLOOKUP(B23,'LOC FINAL with new Themes'!A:M,13,0)","v":"P"}]
["Multipurpose Marine Cadastre","Multipurpose Marine Cadastre","Multipurpose Marine Cadastre","Multipurpose Marine Cadastre","Cadastre","DOI-BOEM","Doug Vandegraft","douglas.vandegraft@boemre.gov",{"$f":"VLOOKUP(B24,'LOC FINAL with new Themes'!A:M,7,0)","v":"undeliverable email- neeed to identify new contact"},{"$f":"VLOOKUP(B24,'LOC FINAL with new Themes'!A:M,8,0)","v":0},{"$f":"VLOOKUP(B24,'LOC FINAL with new Themes'!A:M,9,0)","v":0},{"$f":"VLOOKUP(B24,'LOC FINAL with new Themes'!A:M,10,0)","v":0},{"$f":"VLOOKUP(B24,'LOC FINAL with new Themes'!A:M,11,0)","v":0},{"$f":"VLOOKUP(B24,'LOC FINAL with new Themes'!A:M,12,0)","v":0},{"$f":"VLOOKUP(B24,'LOC FINAL with new Themes'!A:M,13,0)","v":0}]
[null,null,"PADUS (Protected Areas Database of the US)","PADUS (Protected Areas Database of the US)","Cadastre","DOI-USGS"]
["Parcels","Parcels","Parcels","Parcels","Cadastre","DOI-BLM","Bob Ader","bob_ader@blm.gov",{"$f":"VLOOKUP(B26,'LOC FINAL with new Themes'!A:M,7,0)","v":"every agency has its own database; multiple data sets; standard being advanced and put into practice; federal interest is managed with BLM; state and local are authoritative sets for other lands; current effort of federal inventory "},{"$f":"VLOOKUP(B26,'LOC FINAL with new Themes'!A:M,8,0)","v":0},{"$f":"VLOOKUP(B26,'LOC FINAL with new Themes'!A:M,9,0)","v":0},{"$f":"VLOOKUP(B26,'LOC FINAL with new Themes'!A:M,10,0)","v":0},{"$f":"VLOOKUP(B26,'LOC FINAL with new Themes'!A:M,11,0)","v":0},{"$f":"VLOOKUP(B26,'LOC FINAL with new Themes'!A:M,12,0)","v":0},{"$f":"VLOOKUP(B26,'LOC FINAL with new Themes'!A:M,13,0)","v":"M "}]
[null,null,"Protractions","Protractions","Cadastre","DOI-MMS"]
["Surface Estate","Surface Estate",null,"Surface Estate","Cadastre","DOI-BLM","Kim Burns","kim_m_burns@blm.gov",{"$f":"VLOOKUP(B28,'LOC FINAL with new Themes'!A:M,7,0)","v":"lands administered by BLM; other agencies have own system; ownership of lands;  Tim Spisak, division chief; not archived, there is a backup; Denver office handles"},{"$f":"VLOOKUP(B28,'LOC FINAL with new Themes'!A:M,8,0)","v":0},{"$f":"VLOOKUP(B28,'LOC FINAL with new Themes'!A:M,9,0)","v":0},{"$f":"VLOOKUP(B28,'LOC FINAL with new Themes'!A:M,10,0)","v":0},{"$f":"VLOOKUP(B28,'LOC FINAL with new Themes'!A:M,11,0)","v":0},{"$f":"VLOOKUP(B28,'LOC FINAL with new Themes'!A:M,12,0)","v":0},{"$f":"VLOOKUP(B28,'LOC FINAL with new Themes'!A:M,13,0)","v":0}]
["U.S. Official Cadastral Survey Records","U.S. Official Cadastral Survey Records","U.S. Official Cadastral Survey Records","U.S. Official Cadastral Survey Records","Cadastre","DOI-BLM","Don Buhler","don_buhler@blm.gov",{"$f":"VLOOKUP(B29,'LOC FINAL with new Themes'!A:M,7,0)","v":"every agency has its own database; multiple data sets; standard being advanced and put into practice; federal interest is managed with BLM; state and local are authoritative sets for other lands; state offices are scanning these records (survey plats and field notes); CDI (conveyence cards)"},{"$f":"VLOOKUP(B29,'LOC FINAL with new Themes'!A:M,8,0)","v":0},{"$f":"VLOOKUP(B29,'LOC FINAL with new Themes'!A:M,9,0)","v":0},{"$f":"VLOOKUP(B29,'LOC FINAL with new Themes'!A:M,10,0)","v":0},{"$f":"VLOOKUP(B29,'LOC FINAL with new Themes'!A:M,11,0)","v":0},{"$f":"VLOOKUP(B29,'LOC FINAL with new Themes'!A:M,12,0)","v":0},{"$f":"VLOOKUP(B29,'LOC FINAL with new Themes'!A:M,13,0)","v":"M "}]
["U.S. Public Land Survey System","U.S. Public Land Survey System","U.S. Public Land Survey System","U.S. Public Land Survey System","Cadastre","DOI-BLM","Don Buhler","don_buhler@blm.gov",{"$f":"VLOOKUP(B30,'LOC FINAL with new Themes'!A:M,7,0)","v":"only federal agency that administers the PLSS; trying to get it to be logically one data set with different regions. (working copies for nine states in West); keep historical record in data base; schema 2 is the version to look at for archiving some time March 2012"},{"$f":"VLOOKUP(B30,'LOC FINAL with new Themes'!A:M,8,0)","v":0},{"$f":"VLOOKUP(B30,'LOC FINAL with new Themes'!A:M,9,0)","v":0},{"$f":"VLOOKUP(B30,'LOC FINAL with new Themes'!A:M,10,0)","v":0},{"$f":"VLOOKUP(B30,'LOC FINAL with new Themes'!A:M,11,0)","v":0},{"$f":"VLOOKUP(B30,'LOC FINAL with new Themes'!A:M,12,0)","v":0},{"$f":"VLOOKUP(B30,'LOC FINAL with new Themes'!A:M,13,0)","v":"P"}]
[{"$f":"SUBTOTAL(3,A18:A30)","v":11},{"$f":"SUBTOTAL(3,B18:B30)","v":11},{"$f":"SUBTOTAL(3,C18:C30)","v":8},{"$f":"SUBTOTAL(3,D18:D30)","v":13},"Cadastre Count"]
["Blended Sea Surface Temperature","Blended Sea Surface Temperature","Blended Sea Surface Temperature",{"$f":"IF(C32=0,B32,C32)","v":"Blended Sea Surface Temperature"},"Climate and Weather ","DOC-NOAA","Viva Banzon","Viva.Banzon@noaa.gov",{"$f":"VLOOKUP(B32,'LOC FINAL with new Themes'!A:M,7,0)","v":0},{"$f":"VLOOKUP(B32,'LOC FINAL with new Themes'!A:M,8,0)","v":0},{"$f":"VLOOKUP(B32,'LOC FINAL with new Themes'!A:M,9,0)","v":0},{"$f":"VLOOKUP(B32,'LOC FINAL with new Themes'!A:M,10,0)","v":0},{"$f":"VLOOKUP(B32,'LOC FINAL with new Themes'!A:M,11,0)","v":0},{"$f":"VLOOKUP(B32,'LOC FINAL with new Themes'!A:M,12,0)","v":0},{"$f":"VLOOKUP(B32,'LOC FINAL with new Themes'!A:M,13,0)","v":0}]
["Climate Data Sets ","Climate Datasets ",null,"Climate Datasets ","Climate and Weather ","USDA-NRCS","Jan Curtis","jan.curtis@por.usda.gov",{"$f":"VLOOKUP(B33,'LOC FINAL with new Themes'!A:M,7,0)","v":"Other climate data acquired from our SNOTEL and SCAN observation networks can be accessed from these links."},{"$f":"VLOOKUP(B33,'LOC FINAL with new Themes'!A:M,8,0)","v":0},{"$f":"VLOOKUP(B33,'LOC FINAL with new Themes'!A:M,9,0)","v":0},{"$f":"VLOOKUP(B33,'LOC FINAL with new Themes'!A:M,10,0)","v":0},{"$f":"VLOOKUP(B33,'LOC FINAL with new Themes'!A:M,11,0)","v":0},{"$f":"VLOOKUP(B33,'LOC FINAL with new Themes'!A:M,12,0)","v":0},{"$f":"VLOOKUP(B33,'LOC FINAL with new Themes'!A:M,13,0)","v":"M"}]
["Geostationary Operational Environmental Satellite (GOES) data (NCDC)","Geostationary Operational Environmental Satellite (GOES) data (NCDC)","Geostationary Operational Environmental Satellite (GOES) data (NCDC)","Geostationary Operational Environmental Satellite (GOES) data (NCDC)","Climate and Weather ","DOC-NOAA","Nancy Ritchey","Nancy.Ritchey@noaa.gov",{"$f":"VLOOKUP(B34,'LOC FINAL with new Themes'!A:M,7,0)","v":"Define 'data set'.  Each spacecraft continuously produces a data stream.  There are multiple sets and the total going back to the late 70s or early 80s numbers in the millions"},{"$f":"VLOOKUP(B34,'LOC FINAL with new Themes'!A:M,8,0)","v":"Yes"},{"$f":"VLOOKUP(B34,'LOC FINAL with new Themes'!A:M,9,0)","v":"Yes"},{"$f":"VLOOKUP(B34,'LOC FINAL with new Themes'!A:M,10,0)","v":"Continuously"},{"$f":"VLOOKUP(B34,'LOC FINAL with new Themes'!A:M,11,0)","v":"There are two active archive centers for these data; one here in Asheville, NC and one in Boulder, CO.  These data go back to the late 70s and all data are on line wither on disc or robotic tape storage"},{"$f":"VLOOKUP(B34,'LOC FINAL with new Themes'!A:M,12,0)","v":"Again, define your terms.  For examples see www.class.noaa.gov - Raw data are listed by satellite (GOES or POES) and then be instrument.  Geophysical products are listed by product name."},{"$f":"VLOOKUP(B34,'LOC FINAL with new Themes'!A:M,13,0)","v":0}]
["Global Historical Climate Network (GHCN) daily data (NCDC)","Global Historical Climate Network (GHCN) daily data (NCDC)",null,"Global Historical Climate Network (GHCN) daily data (NCDC)","Climate and Weather ","DOC-NOAA","Matt Menne","matthew.menne@noaa.gov",{"$f":"VLOOKUP(B35,'LOC FINAL with new Themes'!A:M,7,0)","v":0},{"$f":"VLOOKUP(B35,'LOC FINAL with new Themes'!A:M,8,0)","v":0},{"$f":"VLOOKUP(B35,'LOC FINAL with new Themes'!A:M,9,0)","v":0},{"$f":"VLOOKUP(B35,'LOC FINAL with new Themes'!A:M,10,0)","v":0},{"$f":"VLOOKUP(B35,'LOC FINAL with new Themes'!A:M,11,0)","v":0},{"$f":"VLOOKUP(B35,'LOC FINAL with new Themes'!A:M,12,0)","v":0},{"$f":"VLOOKUP(B35,'LOC FINAL with new Themes'!A:M,13,0)","v":0}]
["Global Historical Climate Network (GHCN) monthly data (NCDC)","Global Historical Climate Network (GHCN) monthly data (NCDC)",null,"Global Historical Climate Network (GHCN) monthly data (NCDC)","Climate and Weather ","DOC-NOAA","Jay Lawrimore","Jay.Lawrimore@noaa.gov",{"$f":"VLOOKUP(B36,'LOC FINAL with new Themes'!A:M,7,0)","v":"It is a single dataset consisting of multiple files. 6 total. 2 for monthly mean temperature (uncorrected and corrected), 2 for monthly maximum temperature, and 2 for monthly minimum temperature. available at http://www.ncdc.noaa.gov/ghcnm/v3.php ."},{"$f":"VLOOKUP(B36,'LOC FINAL with new Themes'!A:M,8,0)","v":"I am head of the branch that developed and updates the dataset."},{"$f":"VLOOKUP(B36,'LOC FINAL with new Themes'!A:M,9,0)","v":"Byron Gleason (Byron.Gleason@noaa.gov) is the appropriate contact.  "},{"$f":"VLOOKUP(B36,'LOC FINAL with new Themes'!A:M,10,0)","v":"Daily"},{"$f":"VLOOKUP(B36,'LOC FINAL with new Themes'!A:M,11,0)","v":"The files are time stamped each day they are produced and then stored when the next days run is made. The archived copies are not publicly available but can be retrieved by NCDC staff as needed."},{"$f":"VLOOKUP(B36,'LOC FINAL with new Themes'!A:M,12,0)","v":"It goes by GHCN-M."},{"$f":"VLOOKUP(B36,'LOC FINAL with new Themes'!A:M,13,0)","v":0}]
["Hurricane Satellite","Hurricane Satellite",null,"Hurricane Satellite","Climate and Weather ","DOC-NOAA","Ken Knapp","ken.knapp@noaa.gov",{"$f":"VLOOKUP(B37,'LOC FINAL with new Themes'!A:M,7,0)","v":0},{"$f":"VLOOKUP(B37,'LOC FINAL with new Themes'!A:M,8,0)","v":0},{"$f":"VLOOKUP(B37,'LOC FINAL with new Themes'!A:M,9,0)","v":0},{"$f":"VLOOKUP(B37,'LOC FINAL with new Themes'!A:M,10,0)","v":0},{"$f":"VLOOKUP(B37,'LOC FINAL with new Themes'!A:M,11,0)","v":0},{"$f":"VLOOKUP(B37,'LOC FINAL with new Themes'!A:M,12,0)","v":0},{"$f":"VLOOKUP(B37,'LOC FINAL with new Themes'!A:M,13,0)","v":0}]
["Integrated Global Radiosonde Archive (IGRA) upper air data (NCDC)","Integrated Global Radiosonde Archive (IGRA) upper air data (NCDC)",null,"Integrated Global Radiosonde Archive (IGRA) upper air data (NCDC)","Climate and Weather ","DOC-NOAA","Imke Durre","imke.durre@noaa.gov",{"$f":"VLOOKUP(B38,'LOC FINAL with new Themes'!A:M,7,0)","v":0},{"$f":"VLOOKUP(B38,'LOC FINAL with new Themes'!A:M,8,0)","v":0},{"$f":"VLOOKUP(B38,'LOC FINAL with new Themes'!A:M,9,0)","v":0},{"$f":"VLOOKUP(B38,'LOC FINAL with new Themes'!A:M,10,0)","v":0},{"$f":"VLOOKUP(B38,'LOC FINAL with new Themes'!A:M,11,0)","v":0},{"$f":"VLOOKUP(B38,'LOC FINAL with new Themes'!A:M,12,0)","v":0},{"$f":"VLOOKUP(B38,'LOC FINAL with new Themes'!A:M,13,0)","v":0}]
["Integrated Surface Data (ISD) at National Climate Data Center (NCDC) ","Integrated Surface Data (ISD) at National Climate Data Center (NCDC) ",null,"Integrated Surface Data (ISD) at National Climate Data Center (NCDC) ","Climate and Weather ","DOC-NOAA","Neal Lott","neal.lott@noaa.gov",{"$f":"VLOOKUP(B39,'LOC FINAL with new Themes'!A:M,7,0)","v":"This is a single data set, developed as an integration of multiple data sets and sources."},{"$f":"VLOOKUP(B39,'LOC FINAL with new Themes'!A:M,8,0)","v":"I am currently the data set manager jointly with Russel Vose, cc'ed here Russell.Vose@noaa.gov"},{"$f":"VLOOKUP(B39,'LOC FINAL with new Themes'!A:M,9,0)","v":"I am one of the POC's here at NCDC.  We have a User Engagement and Services Branch which handles user inquiries, etc."},{"$f":"VLOOKUP(B39,'LOC FINAL with new Themes'!A:M,10,0)","v":"It's updated once per day with the most recent data (ie, yesterday's observations)."},{"$f":"VLOOKUP(B39,'LOC FINAL with new Themes'!A:M,11,0)","v":"We have an archive copy and a backup copy.  The period of record of the data is 1900 to present.  It's very easily accessible via multiple services (FTP, GIS, Web Services, etc)."},{"$f":"VLOOKUP(B39,'LOC FINAL with new Themes'!A:M,12,0)","v":"Integrated Surface Data is its name, but is sometimes referred to generically as global hourly surface data."},{"$f":"VLOOKUP(B39,'LOC FINAL with new Themes'!A:M,13,0)","v":0}]
[null,null,"MODIS-based Atmospheric Products","MODIS-based Atmospheric Products","Climate and Weather ","USDA -FS (Along with USGS)"]
["National Climate Data Center","National Climate Data Center",null,"National Climate Data Center","Climate and Weather ","USDA-NRCS","Jan Curtis","jan.curtis@por.usda.gov",{"$f":"VLOOKUP(B41,'LOC FINAL with new Themes'!A:M,7,0)","v":"administered by NOAA - is there a contact there?"},{"$f":"VLOOKUP(B41,'LOC FINAL with new Themes'!A:M,8,0)","v":0},{"$f":"VLOOKUP(B41,'LOC FINAL with new Themes'!A:M,9,0)","v":0},{"$f":"VLOOKUP(B41,'LOC FINAL with new Themes'!A:M,10,0)","v":0},{"$f":"VLOOKUP(B41,'LOC FINAL with new Themes'!A:M,11,0)","v":0},{"$f":"VLOOKUP(B41,'LOC FINAL with new Themes'!A:M,12,0)","v":0},{"$f":"VLOOKUP(B41,'LOC FINAL with new Themes'!A:M,13,0)","v":0}]
[null,null,"National Doplar Radar Data (NEXRAD)","National Doplar Radar Data (NEXRAD)","Climate and Weather ","DOC-NOAA"]
["NEXRAD Level II and III radar data (NCDC)","NEXRAD Level II and III radar data (NCDC)",null,"NEXRAD Level II and III radar data (NCDC)","Climate and Weather ","DOC-NOAA","Steve Del Greco","stephen.a.delgreco@noaa.gov",{"$f":"VLOOKUP(B43,'LOC FINAL with new Themes'!A:M,7,0)","v":"The NEXRAD datasets for level II and Level III are archived by site.  There are 158 NEXRAD sites with data that goes back to ~ 1994.  See URL http://www.ncdc.noaa.gov/nexradinv/ for NEXRAD web services for ordering data."},{"$f":"VLOOKUP(B43,'LOC FINAL with new Themes'!A:M,8,0)","v":"I'm the NEXRAD program manager for NCDC.  This also includes other radar networks for example the FAA Terminal Doppler Weather Radar (45 sites)."},{"$f":"VLOOKUP(B43,'LOC FINAL with new Themes'!A:M,9,0)","v":"Yes"},{"$f":"VLOOKUP(B43,'LOC FINAL with new Themes'!A:M,10,0)","v":"NEXRAD Level II and Level III data are ingested at NCDC in near real time (~ 10 second latency).  We make the data available via the web ~ 24 hours after receipt.  The NEXRAD/TDWR data is also available in near real time through data feeds supported by partnerships we have with the University of Oklahoma, Purdue and Education and Research Consortium of the Western Carolinas. "},{"$f":"VLOOKUP(B43,'LOC FINAL with new Themes'!A:M,11,0)","v":"NEXRAD data is archived and backed up and goes back to ~ 1994 (depends on station).  Data is free of charge and accessible via the URL above"},{"$f":"VLOOKUP(B43,'LOC FINAL with new Themes'!A:M,12,0)","v":"The data set is from the Weather Surveillance Radar 1988 Doppler, but most commonly  know as \"NEXRAD\"  Level II for the base or raw data and Level III for derived products"},{"$f":"VLOOKUP(B43,'LOC FINAL with new Themes'!A:M,13,0)","v":0}]
[null,null,"NOAA National Weather Service GIS Data",{"$f":"IF(C44=0,B44,C44)","v":"NOAA National Weather Service GIS Data"},"Climate and Weather ","DOC-NOAA"]
["North American Regional Reanalysis (NARR) model data (NCDC)","North American Regional Reanalysis (NARR) model data (NCDC)",null,{"$f":"IF(C45=0,B45,C45)","v":"North American Regional Reanalysis (NARR) model data (NCDC)"},"Climate and Weather ","DOC-NOAA","Dan Swank","Dan.Swank@noaa.gov",{"$f":"VLOOKUP(B45,'LOC FINAL with new Themes'!A:M,7,0)","v":"The NARR natively contains 2x sub sets) 3 hr time series / monthly averages."},{"$f":"VLOOKUP(B45,'LOC FINAL with new Themes'!A:M,8,0)","v":"Depends on the exact definition: there is no one with that exact job title at NCDC-NOMADS"},{"$f":"VLOOKUP(B45,'LOC FINAL with new Themes'!A:M,9,0)","v":"Yes"},{"$f":"VLOOKUP(B45,'LOC FINAL with new Themes'!A:M,10,0)","v":"NARR is updated on a daily basis, typically arriving 1-3 days from real-time.  Serial integrity is not guaranteed until 1 month has passed."},{"$f":"VLOOKUP(B45,'LOC FINAL with new Themes'!A:M,11,0)","v":"Multiple copies exist, including HPSS, off-site HPSS, TSM, and mirrored spinning disk copies.  Backups are for the entire set.  While the backups are not public accessible, the disk mirror can be put in place in minutes and the tape copies may take a day or two"},{"$f":"VLOOKUP(B45,'LOC FINAL with new Themes'!A:M,12,0)","v":"Besides the acronym NARR -- no"},{"$f":"VLOOKUP(B45,'LOC FINAL with new Themes'!A:M,13,0)","v":0}]
["Parameter-elevation Regressions on Independent Slopes Model (PRISM) Data Sets","Parameter-elevation Regressions on Independent Slopes Model (PRISM) Datasets","Parameter-elevation Regressions on Independent Slopes Model (PRISM) Datasets",{"$f":"IF(C46=0,B46,C46)","v":"Parameter-elevation Regressions on Independent Slopes Model (PRISM) Datasets"},"Climate and Weather ","USDA-NRCS","Jan Curtis","jan.curtis@por.usda.gov",{"$f":"VLOOKUP(B46,'LOC FINAL with new Themes'!A:M,7,0)","v":"info provided via http://www.prism.oregonstate.edu/ and \nhttp://www.nrcs.usda.gov/wps/portal/nrcs/main/?ss=16&navtype=SubNavigation&cid=null&navid=850130000000000&pnavid=850000000000000&position=SubNavigation&ttype=main&pname=USDA%2520NRCS%2520-%2520Natural%2520Resources%2520Conservation%2520Service\n"},{"$f":"VLOOKUP(B46,'LOC FINAL with new Themes'!A:M,8,0)","v":0},{"$f":"VLOOKUP(B46,'LOC FINAL with new Themes'!A:M,9,0)","v":0},{"$f":"VLOOKUP(B46,'LOC FINAL with new Themes'!A:M,10,0)","v":0},{"$f":"VLOOKUP(B46,'LOC FINAL with new Themes'!A:M,11,0)","v":0},{"$f":"VLOOKUP(B46,'LOC FINAL with new Themes'!A:M,12,0)","v":0},{"$f":"VLOOKUP(B46,'LOC FINAL with new Themes'!A:M,13,0)","v":"M"}]
["Polar Operational Environmental Satellite (POES) data (NCDC)","Polar Operational Environmental Satellite (POES) data","Polar Operational Environmental Satellite (POES) data",{"$f":"IF(C47=0,B47,C47)","v":"Polar Operational Environmental Satellite (POES) data"},"Climate and Weather ","DOC-NOAA","John Bates","john.j.bates@noaa.gov",{"$f":"VLOOKUP(B47,'LOC FINAL with new Themes'!A:M,7,0)","v":0},{"$f":"VLOOKUP(B47,'LOC FINAL with new Themes'!A:M,8,0)","v":0},{"$f":"VLOOKUP(B47,'LOC FINAL with new Themes'!A:M,9,0)","v":0},{"$f":"VLOOKUP(B47,'LOC FINAL with new Themes'!A:M,10,0)","v":0},{"$f":"VLOOKUP(B47,'LOC FINAL with new Themes'!A:M,11,0)","v":0},{"$f":"VLOOKUP(B47,'LOC FINAL with new Themes'!A:M,12,0)","v":0},{"$f":"VLOOKUP(B47,'LOC FINAL with new Themes'!A:M,13,0)","v":0}]
[{"$f":"SUBTOTAL(3,A32:A47)","v":13},{"$f":"SUBTOTAL(3,B32:B47)","v":13},{"$f":"SUBTOTAL(3,C32:C47)","v":7},{"$f":"SUBTOTAL(3,D32:D47)","v":16},"Climate and Weather  Count"]
[null,"5-digit ZIP Code Tabulation Area (Census 2000)","5-digit ZIP Code Tabulation Area (Census 2000)",{"$f":"IF(C49=0,B49,C49)","v":"5-digit ZIP Code Tabulation Area (Census 2000)"},"Cultural & Demographic Statistics ","DOC-Census","Jennifer Holland","Jennifer.L.Holland@census.gov",{"$f":"VLOOKUP(B49,'LOC FINAL with new Themes'!A:M,7,0)","v":0},{"$f":"VLOOKUP(B49,'LOC FINAL with new Themes'!A:M,8,0)","v":0},{"$f":"VLOOKUP(B49,'LOC FINAL with new Themes'!A:M,9,0)","v":0},{"$f":"VLOOKUP(B49,'LOC FINAL with new Themes'!A:M,10,0)","v":0},{"$f":"VLOOKUP(B49,'LOC FINAL with new Themes'!A:M,11,0)","v":0},{"$f":"VLOOKUP(B49,'LOC FINAL with new Themes'!A:M,12,0)","v":0},{"$f":"VLOOKUP(B49,'LOC FINAL with new Themes'!A:M,13,0)","v":0}]
["AIR, ANVSA, Hawaiian Homelands Boundaries","AIR, ANVSA, Hawaiian Homelands Boundaries",null,"AIR, ANVSA, Hawaiian Homelands Boundaries","Cultural & Demographic Statistics ","DOC-Census","Randy Fusaro","randy.j.fusaro@census.gov",{"$f":"VLOOKUP(B50,'LOC FINAL with new Themes'!A:M,7,0)","v":0},{"$f":"VLOOKUP(B50,'LOC FINAL with new Themes'!A:M,8,0)","v":0},{"$f":"VLOOKUP(B50,'LOC FINAL with new Themes'!A:M,9,0)","v":0},{"$f":"VLOOKUP(B50,'LOC FINAL with new Themes'!A:M,10,0)","v":0},{"$f":"VLOOKUP(B50,'LOC FINAL with new Themes'!A:M,11,0)","v":0},{"$f":"VLOOKUP(B50,'LOC FINAL with new Themes'!A:M,12,0)","v":0},{"$f":"VLOOKUP(B50,'LOC FINAL with new Themes'!A:M,13,0)","v":0}]
[null,"All Lines (2010 Census)","All Lines (2010 Census)","All Lines (2010 Census)","Cultural & Demographic Statistics ","DOC-Census","Jennifer Holland","Jennifer.L.Holland@census.gov",{"$f":"VLOOKUP(B51,'LOC FINAL with new Themes'!A:M,7,0)","v":0},{"$f":"VLOOKUP(B51,'LOC FINAL with new Themes'!A:M,8,0)","v":0},{"$f":"VLOOKUP(B51,'LOC FINAL with new Themes'!A:M,9,0)","v":0},{"$f":"VLOOKUP(B51,'LOC FINAL with new Themes'!A:M,10,0)","v":0},{"$f":"VLOOKUP(B51,'LOC FINAL with new Themes'!A:M,11,0)","v":0},{"$f":"VLOOKUP(B51,'LOC FINAL with new Themes'!A:M,12,0)","v":0},{"$f":"VLOOKUP(B51,'LOC FINAL with new Themes'!A:M,13,0)","v":0}]
[null,"ANSI codes for  metro/micropolitan areas","ANSI codes for  metro/micropolitan areas","ANSI codes for  metro/micropolitan areas","Cultural & Demographic Statistics ","DOC-Census","Jennifer Holland","Jennifer.L.Holland@census.gov",{"$f":"VLOOKUP(B52,'LOC FINAL with new Themes'!A:M,7,0)","v":0},{"$f":"VLOOKUP(B52,'LOC FINAL with new Themes'!A:M,8,0)","v":0},{"$f":"VLOOKUP(B52,'LOC FINAL with new Themes'!A:M,9,0)","v":0},{"$f":"VLOOKUP(B52,'LOC FINAL with new Themes'!A:M,10,0)","v":0},{"$f":"VLOOKUP(B52,'LOC FINAL with new Themes'!A:M,11,0)","v":0},{"$f":"VLOOKUP(B52,'LOC FINAL with new Themes'!A:M,12,0)","v":0},{"$f":"VLOOKUP(B52,'LOC FINAL with new Themes'!A:M,13,0)","v":0}]
[null,"ANSI codes for congressional districts","ANSI codes for congressional districts","ANSI codes for congressional districts","Cultural & Demographic Statistics ","DOC-Census","Jennifer Holland","Jennifer.L.Holland@census.gov",{"$f":"VLOOKUP(B53,'LOC FINAL with new Themes'!A:M,7,0)","v":0},{"$f":"VLOOKUP(B53,'LOC FINAL with new Themes'!A:M,8,0)","v":0},{"$f":"VLOOKUP(B53,'LOC FINAL with new Themes'!A:M,9,0)","v":0},{"$f":"VLOOKUP(B53,'LOC FINAL with new Themes'!A:M,10,0)","v":0},{"$f":"VLOOKUP(B53,'LOC FINAL with new Themes'!A:M,11,0)","v":0},{"$f":"VLOOKUP(B53,'LOC FINAL with new Themes'!A:M,12,0)","v":0},{"$f":"VLOOKUP(B53,'LOC FINAL with new Themes'!A:M,13,0)","v":0}]
[null,"ANSI codes for counties","ANSI codes for counties","ANSI codes for counties","Cultural & Demographic Statistics ","DOC-Census","Jennifer Holland","Jennifer.L.Holland@census.gov",{"$f":"VLOOKUP(B54,'LOC FINAL with new Themes'!A:M,7,0)","v":0},{"$f":"VLOOKUP(B54,'LOC FINAL with new Themes'!A:M,8,0)","v":0},{"$f":"VLOOKUP(B54,'LOC FINAL with new Themes'!A:M,9,0)","v":0},{"$f":"VLOOKUP(B54,'LOC FINAL with new Themes'!A:M,10,0)","v":0},{"$f":"VLOOKUP(B54,'LOC FINAL with new Themes'!A:M,11,0)","v":0},{"$f":"VLOOKUP(B54,'LOC FINAL with new Themes'!A:M,12,0)","v":0},{"$f":"VLOOKUP(B54,'LOC FINAL with new Themes'!A:M,13,0)","v":0}]
[null,"ANSI codes for states","ANSI codes for states","ANSI codes for states","Cultural & Demographic Statistics ","DOC-Census","Jennifer Holland","Jennifer.L.Holland@census.gov",{"$f":"VLOOKUP(B55,'LOC FINAL with new Themes'!A:M,7,0)","v":0},{"$f":"VLOOKUP(B55,'LOC FINAL with new Themes'!A:M,8,0)","v":0},{"$f":"VLOOKUP(B55,'LOC FINAL with new Themes'!A:M,9,0)","v":0},{"$f":"VLOOKUP(B55,'LOC FINAL with new Themes'!A:M,10,0)","v":0},{"$f":"VLOOKUP(B55,'LOC FINAL with new Themes'!A:M,11,0)","v":0},{"$f":"VLOOKUP(B55,'LOC FINAL with new Themes'!A:M,12,0)","v":0},{"$f":"VLOOKUP(B55,'LOC FINAL with new Themes'!A:M,13,0)","v":0}]
[null,"Block (2010 Census)","Block (2010 Census)","Block (2010 Census)","Cultural & Demographic Statistics ","DOC-Census","Jennifer Holland","Jennifer.L.Holland@census.gov",{"$f":"VLOOKUP(B56,'LOC FINAL with new Themes'!A:M,7,0)","v":0},{"$f":"VLOOKUP(B56,'LOC FINAL with new Themes'!A:M,8,0)","v":0},{"$f":"VLOOKUP(B56,'LOC FINAL with new Themes'!A:M,9,0)","v":0},{"$f":"VLOOKUP(B56,'LOC FINAL with new Themes'!A:M,10,0)","v":0},{"$f":"VLOOKUP(B56,'LOC FINAL with new Themes'!A:M,11,0)","v":0},{"$f":"VLOOKUP(B56,'LOC FINAL with new Themes'!A:M,12,0)","v":0},{"$f":"VLOOKUP(B56,'LOC FINAL with new Themes'!A:M,13,0)","v":0}]
[null,"Block (Census 2000)","Block (Census 2000)","Block (Census 2000)","Cultural & Demographic Statistics ","DOC-Census","Jennifer Holland","Jennifer.L.Holland@census.gov",{"$f":"VLOOKUP(B57,'LOC FINAL with new Themes'!A:M,7,0)","v":0},{"$f":"VLOOKUP(B57,'LOC FINAL with new Themes'!A:M,8,0)","v":0},{"$f":"VLOOKUP(B57,'LOC FINAL with new Themes'!A:M,9,0)","v":0},{"$f":"VLOOKUP(B57,'LOC FINAL with new Themes'!A:M,10,0)","v":0},{"$f":"VLOOKUP(B57,'LOC FINAL with new Themes'!A:M,11,0)","v":0},{"$f":"VLOOKUP(B57,'LOC FINAL with new Themes'!A:M,12,0)","v":0},{"$f":"VLOOKUP(B57,'LOC FINAL with new Themes'!A:M,13,0)","v":0}]
[null,"Block Group (Census 2000)","Block Group (Census 2000)","Block Group (Census 2000)","Cultural & Demographic Statistics ","DOC-Census","Jennifer Holland","Jennifer.L.Holland@census.gov",{"$f":"VLOOKUP(B58,'LOC FINAL with new Themes'!A:M,7,0)","v":0},{"$f":"VLOOKUP(B58,'LOC FINAL with new Themes'!A:M,8,0)","v":0},{"$f":"VLOOKUP(B58,'LOC FINAL with new Themes'!A:M,9,0)","v":0},{"$f":"VLOOKUP(B58,'LOC FINAL with new Themes'!A:M,10,0)","v":0},{"$f":"VLOOKUP(B58,'LOC FINAL with new Themes'!A:M,11,0)","v":0},{"$f":"VLOOKUP(B58,'LOC FINAL with new Themes'!A:M,12,0)","v":0},{"$f":"VLOOKUP(B58,'LOC FINAL with new Themes'!A:M,13,0)","v":0}]
[null,"Block Group (Census 2010)","Block Group (Census 2010)","Block Group (Census 2010)","Cultural & Demographic Statistics ","DOC-Census","Jennifer Holland","Jennifer.L.Holland@census.gov",{"$f":"VLOOKUP(B59,'LOC FINAL with new Themes'!A:M,7,0)","v":0},{"$f":"VLOOKUP(B59,'LOC FINAL with new Themes'!A:M,8,0)","v":0},{"$f":"VLOOKUP(B59,'LOC FINAL with new Themes'!A:M,9,0)","v":0},{"$f":"VLOOKUP(B59,'LOC FINAL with new Themes'!A:M,10,0)","v":0},{"$f":"VLOOKUP(B59,'LOC FINAL with new Themes'!A:M,11,0)","v":0},{"$f":"VLOOKUP(B59,'LOC FINAL with new Themes'!A:M,12,0)","v":0},{"$f":"VLOOKUP(B59,'LOC FINAL with new Themes'!A:M,13,0)","v":0}]
[null,"Census 2000 FIPS 55 Codes","Census 2000 FIPS 55 Codes","Census 2000 FIPS 55 Codes","Cultural & Demographic Statistics ","DOC-Census","Jennifer Holland","Jennifer.L.Holland@census.gov",{"$f":"VLOOKUP(B60,'LOC FINAL with new Themes'!A:M,7,0)","v":0},{"$f":"VLOOKUP(B60,'LOC FINAL with new Themes'!A:M,8,0)","v":0},{"$f":"VLOOKUP(B60,'LOC FINAL with new Themes'!A:M,9,0)","v":0},{"$f":"VLOOKUP(B60,'LOC FINAL with new Themes'!A:M,10,0)","v":0},{"$f":"VLOOKUP(B60,'LOC FINAL with new Themes'!A:M,11,0)","v":0},{"$f":"VLOOKUP(B60,'LOC FINAL with new Themes'!A:M,12,0)","v":0},{"$f":"VLOOKUP(B60,'LOC FINAL with new Themes'!A:M,13,0)","v":0}]
[null,"Census Tract (2010 Census)","Census Tract (2010 Census)","Census Tract (2010 Census)","Cultural & Demographic Statistics ","DOC-Census","Jennifer Holland","Jennifer.L.Holland@census.gov",{"$f":"VLOOKUP(B61,'LOC FINAL with new Themes'!A:M,7,0)","v":0},{"$f":"VLOOKUP(B61,'LOC FINAL with new Themes'!A:M,8,0)","v":0},{"$f":"VLOOKUP(B61,'LOC FINAL with new Themes'!A:M,9,0)","v":0},{"$f":"VLOOKUP(B61,'LOC FINAL with new Themes'!A:M,10,0)","v":0},{"$f":"VLOOKUP(B61,'LOC FINAL with new Themes'!A:M,11,0)","v":0},{"$f":"VLOOKUP(B61,'LOC FINAL with new Themes'!A:M,12,0)","v":0},{"$f":"VLOOKUP(B61,'LOC FINAL with new Themes'!A:M,13,0)","v":0}]
[null,"Census Tract (Census 2000)","Census Tract (Census 2000)","Census Tract (Census 2000)","Cultural & Demographic Statistics ","DOC-Census","Jennifer Holland","Jennifer.L.Holland@census.gov",{"$f":"VLOOKUP(B62,'LOC FINAL with new Themes'!A:M,7,0)","v":0},{"$f":"VLOOKUP(B62,'LOC FINAL with new Themes'!A:M,8,0)","v":0},{"$f":"VLOOKUP(B62,'LOC FINAL with new Themes'!A:M,9,0)","v":0},{"$f":"VLOOKUP(B62,'LOC FINAL with new Themes'!A:M,10,0)","v":0},{"$f":"VLOOKUP(B62,'LOC FINAL with new Themes'!A:M,11,0)","v":0},{"$f":"VLOOKUP(B62,'LOC FINAL with new Themes'!A:M,12,0)","v":0},{"$f":"VLOOKUP(B62,'LOC FINAL with new Themes'!A:M,13,0)","v":0}]
[null,"Combined Statistical Area (2010 Census)","Combined Statistical Area (2010 Census)","Combined Statistical Area (2010 Census)","Cultural & Demographic Statistics ","DOC-Census","Jennifer Holland","Jennifer.L.Holland@census.gov",{"$f":"VLOOKUP(B63,'LOC FINAL with new Themes'!A:M,7,0)","v":0},{"$f":"VLOOKUP(B63,'LOC FINAL with new Themes'!A:M,8,0)","v":0},{"$f":"VLOOKUP(B63,'LOC FINAL with new Themes'!A:M,9,0)","v":0},{"$f":"VLOOKUP(B63,'LOC FINAL with new Themes'!A:M,10,0)","v":0},{"$f":"VLOOKUP(B63,'LOC FINAL with new Themes'!A:M,11,0)","v":0},{"$f":"VLOOKUP(B63,'LOC FINAL with new Themes'!A:M,12,0)","v":0},{"$f":"VLOOKUP(B63,'LOC FINAL with new Themes'!A:M,13,0)","v":0}]
[null,"Congressional District Boundaries",null,"Congressional District Boundaries","Cultural & Demographic Statistics ","DOC-Census","Randy Fusaro","randy.j.fusaro@census.gov",{"$f":"VLOOKUP(B64,'LOC FINAL with new Themes'!A:M,7,0)","v":0},{"$f":"VLOOKUP(B64,'LOC FINAL with new Themes'!A:M,8,0)","v":0},{"$f":"VLOOKUP(B64,'LOC FINAL with new Themes'!A:M,9,0)","v":0},{"$f":"VLOOKUP(B64,'LOC FINAL with new Themes'!A:M,10,0)","v":0},{"$f":"VLOOKUP(B64,'LOC FINAL with new Themes'!A:M,11,0)","v":0},{"$f":"VLOOKUP(B64,'LOC FINAL with new Themes'!A:M,12,0)","v":0},{"$f":"VLOOKUP(B64,'LOC FINAL with new Themes'!A:M,13,0)","v":0}]
["County, place, MCD Boundaries","County, place, MCD Boundaries",null,"County, place, MCD Boundaries","Cultural & Demographic Statistics ","DOC-Census","Randy Fusaro","randy.j.fusaro@census.gov",{"$f":"VLOOKUP(B65,'LOC FINAL with new Themes'!A:M,7,0)","v":0},{"$f":"VLOOKUP(B65,'LOC FINAL with new Themes'!A:M,8,0)","v":0},{"$f":"VLOOKUP(B65,'LOC FINAL with new Themes'!A:M,9,0)","v":0},{"$f":"VLOOKUP(B65,'LOC FINAL with new Themes'!A:M,10,0)","v":0},{"$f":"VLOOKUP(B65,'LOC FINAL with new Themes'!A:M,11,0)","v":0},{"$f":"VLOOKUP(B65,'LOC FINAL with new Themes'!A:M,12,0)","v":0},{"$f":"VLOOKUP(B65,'LOC FINAL with new Themes'!A:M,13,0)","v":0}]
[null,"Elementary School District (2010 Census)","Elementary School District (2010 Census)","Elementary School District (2010 Census)","Cultural & Demographic Statistics ","DOC-Census","Jennifer Holland","Jennifer.L.Holland@census.gov",{"$f":"VLOOKUP(B66,'LOC FINAL with new Themes'!A:M,7,0)","v":0},{"$f":"VLOOKUP(B66,'LOC FINAL with new Themes'!A:M,8,0)","v":0},{"$f":"VLOOKUP(B66,'LOC FINAL with new Themes'!A:M,9,0)","v":0},{"$f":"VLOOKUP(B66,'LOC FINAL with new Themes'!A:M,10,0)","v":0},{"$f":"VLOOKUP(B66,'LOC FINAL with new Themes'!A:M,11,0)","v":0},{"$f":"VLOOKUP(B66,'LOC FINAL with new Themes'!A:M,12,0)","v":0},{"$f":"VLOOKUP(B66,'LOC FINAL with new Themes'!A:M,13,0)","v":0}]
[null,"Elementary School District (Census 2000)","Elementary School District (Census 2000)","Elementary School District (Census 2000)","Cultural & Demographic Statistics ","DOC-Census","Jennifer Holland","Jennifer.L.Holland@census.gov",{"$f":"VLOOKUP(B67,'LOC FINAL with new Themes'!A:M,7,0)","v":0},{"$f":"VLOOKUP(B67,'LOC FINAL with new Themes'!A:M,8,0)","v":0},{"$f":"VLOOKUP(B67,'LOC FINAL with new Themes'!A:M,9,0)","v":0},{"$f":"VLOOKUP(B67,'LOC FINAL with new Themes'!A:M,10,0)","v":0},{"$f":"VLOOKUP(B67,'LOC FINAL with new Themes'!A:M,11,0)","v":0},{"$f":"VLOOKUP(B67,'LOC FINAL with new Themes'!A:M,12,0)","v":0},{"$f":"VLOOKUP(B67,'LOC FINAL with new Themes'!A:M,13,0)","v":0}]
["FIPS/ANSI codes for states, counties, congressional districts & metro/micropolitan areas","FIPS/ANSI codes for states, counties, congressional districts & metro/micropolitan areas",null,"FIPS/ANSI codes for states, counties, congressional districts & metro/micropolitan areas","Cultural & Demographic Statistics ","DOC-Census","Randy Fusaro","randy.j.fusaro@census.gov",{"$f":"VLOOKUP(B68,'LOC FINAL with new Themes'!A:M,7,0)","v":0},{"$f":"VLOOKUP(B68,'LOC FINAL with new Themes'!A:M,8,0)","v":0},{"$f":"VLOOKUP(B68,'LOC FINAL with new Themes'!A:M,9,0)","v":0},{"$f":"VLOOKUP(B68,'LOC FINAL with new Themes'!A:M,10,0)","v":0},{"$f":"VLOOKUP(B68,'LOC FINAL with new Themes'!A:M,11,0)","v":0},{"$f":"VLOOKUP(B68,'LOC FINAL with new Themes'!A:M,12,0)","v":0},{"$f":"VLOOKUP(B68,'LOC FINAL with new Themes'!A:M,13,0)","v":0}]
["Metropolitan/micropolitan area boundaries","Metropolitan/micropolitan area boundaries",null,"Metropolitan/micropolitan area boundaries","Cultural & Demographic Statistics ","DOC-Census","Randy Fusaro","randy.j.fusaro@census.gov",{"$f":"VLOOKUP(B69,'LOC FINAL with new Themes'!A:M,7,0)","v":0},{"$f":"VLOOKUP(B69,'LOC FINAL with new Themes'!A:M,8,0)","v":0},{"$f":"VLOOKUP(B69,'LOC FINAL with new Themes'!A:M,9,0)","v":0},{"$f":"VLOOKUP(B69,'LOC FINAL with new Themes'!A:M,10,0)","v":0},{"$f":"VLOOKUP(B69,'LOC FINAL with new Themes'!A:M,11,0)","v":0},{"$f":"VLOOKUP(B69,'LOC FINAL with new Themes'!A:M,12,0)","v":0},{"$f":"VLOOKUP(B69,'LOC FINAL with new Themes'!A:M,13,0)","v":0}]
[null,"Metropolitan/micropolitan Statistical Area (2010 Census)","Metropolitan/micropolitan Statistical Area (2010 Census)","Metropolitan/micropolitan Statistical Area (2010 Census)","Cultural & Demographic Statistics ","DOC-Census","Jennifer Holland","Jennifer.L.Holland@census.gov",{"$f":"VLOOKUP(B70,'LOC FINAL with new Themes'!A:M,7,0)","v":0},{"$f":"VLOOKUP(B70,'LOC FINAL with new Themes'!A:M,8,0)","v":0},{"$f":"VLOOKUP(B70,'LOC FINAL with new Themes'!A:M,9,0)","v":0},{"$f":"VLOOKUP(B70,'LOC FINAL with new Themes'!A:M,10,0)","v":0},{"$f":"VLOOKUP(B70,'LOC FINAL with new Themes'!A:M,11,0)","v":0},{"$f":"VLOOKUP(B70,'LOC FINAL with new Themes'!A:M,12,0)","v":0},{"$f":"VLOOKUP(B70,'LOC FINAL with new Themes'!A:M,13,0)","v":0}]
["National Center for Health Statistics (Atlas of US Mortality)","National Center for Health Statistics (Atlas of US Mortality)",null,"National Center for Health Statistics (Atlas of US Mortality)","Cultural & Demographic Statistics ","HHS","Gary Anderson","gary.anderson@hhs.gov",{"$f":"VLOOKUP(B71,'LOC FINAL with new Themes'!A:M,7,0)","v":0},{"$f":"VLOOKUP(B71,'LOC FINAL with new Themes'!A:M,8,0)","v":0},{"$f":"VLOOKUP(B71,'LOC FINAL with new Themes'!A:M,9,0)","v":0},{"$f":"VLOOKUP(B71,'LOC FINAL with new Themes'!A:M,10,0)","v":0},{"$f":"VLOOKUP(B71,'LOC FINAL with new Themes'!A:M,11,0)","v":0},{"$f":"VLOOKUP(B71,'LOC FINAL with new Themes'!A:M,12,0)","v":0},{"$f":"VLOOKUP(B71,'LOC FINAL with new Themes'!A:M,13,0)","v":0}]
[null,null,"Oklahoma Tribal Joint Use Areas","Oklahoma Tribal Joint Use Areas","Cultural & Demographic Statistics ","DOC-Census"]
[null,null,"Oklahoma Tribal Statistical Areas","Oklahoma Tribal Statistical Areas","Cultural & Demographic Statistics ","DOC-Census"]
[null,"Public Use Microdata Area (Census 2000)","Public Use Microdata Area (Census 2000)","Public Use Microdata Area (Census 2000)","Cultural & Demographic Statistics ","DOC-Census","Jennifer Holland","Jennifer.L.Holland@census.gov",{"$f":"VLOOKUP(B74,'LOC FINAL with new Themes'!A:M,7,0)","v":0},{"$f":"VLOOKUP(B74,'LOC FINAL with new Themes'!A:M,8,0)","v":0},{"$f":"VLOOKUP(B74,'LOC FINAL with new Themes'!A:M,9,0)","v":0},{"$f":"VLOOKUP(B74,'LOC FINAL with new Themes'!A:M,10,0)","v":0},{"$f":"VLOOKUP(B74,'LOC FINAL with new Themes'!A:M,11,0)","v":0},{"$f":"VLOOKUP(B74,'LOC FINAL with new Themes'!A:M,12,0)","v":0},{"$f":"VLOOKUP(B74,'LOC FINAL with new Themes'!A:M,13,0)","v":0}]
["School District Boundaries","School District Boundaries",null,"School District Boundaries","Cultural & Demographic Statistics ","DOC-Census","Randy Fusaro","randy.j.fusaro@census.gov",{"$f":"VLOOKUP(B75,'LOC FINAL with new Themes'!A:M,7,0)","v":0},{"$f":"VLOOKUP(B75,'LOC FINAL with new Themes'!A:M,8,0)","v":0},{"$f":"VLOOKUP(B75,'LOC FINAL with new Themes'!A:M,9,0)","v":0},{"$f":"VLOOKUP(B75,'LOC FINAL with new Themes'!A:M,10,0)","v":0},{"$f":"VLOOKUP(B75,'LOC FINAL with new Themes'!A:M,11,0)","v":0},{"$f":"VLOOKUP(B75,'LOC FINAL with new Themes'!A:M,12,0)","v":0},{"$f":"VLOOKUP(B75,'LOC FINAL with new Themes'!A:M,13,0)","v":0}]
[null,"Secondary School District (2010 Census)","Secondary School District (2010 Census)","Secondary School District (2010 Census)","Cultural & Demographic Statistics ","DOC-Census","Jennifer Holland","Jennifer.L.Holland@census.gov",{"$f":"VLOOKUP(B76,'LOC FINAL with new Themes'!A:M,7,0)","v":0},{"$f":"VLOOKUP(B76,'LOC FINAL with new Themes'!A:M,8,0)","v":0},{"$f":"VLOOKUP(B76,'LOC FINAL with new Themes'!A:M,9,0)","v":0},{"$f":"VLOOKUP(B76,'LOC FINAL with new Themes'!A:M,10,0)","v":0},{"$f":"VLOOKUP(B76,'LOC FINAL with new Themes'!A:M,11,0)","v":0},{"$f":"VLOOKUP(B76,'LOC FINAL with new Themes'!A:M,12,0)","v":0},{"$f":"VLOOKUP(B76,'LOC FINAL with new Themes'!A:M,13,0)","v":0}]
[null,"Secondary School District (Census 2000)","Secondary School District (Census 2000)","Secondary School District (Census 2000)","Cultural & Demographic Statistics ","DOC-Census","Jennifer Holland","Jennifer.L.Holland@census.gov",{"$f":"VLOOKUP(B77,'LOC FINAL with new Themes'!A:M,7,0)","v":0},{"$f":"VLOOKUP(B77,'LOC FINAL with new Themes'!A:M,8,0)","v":0},{"$f":"VLOOKUP(B77,'LOC FINAL with new Themes'!A:M,9,0)","v":0},{"$f":"VLOOKUP(B77,'LOC FINAL with new Themes'!A:M,10,0)","v":0},{"$f":"VLOOKUP(B77,'LOC FINAL with new Themes'!A:M,11,0)","v":0},{"$f":"VLOOKUP(B77,'LOC FINAL with new Themes'!A:M,12,0)","v":0},{"$f":"VLOOKUP(B77,'LOC FINAL with new Themes'!A:M,13,0)","v":0}]
["State (+ Territories) Boundaries","State (+ Territories) Boundaries",null,"State (+ Territories) Boundaries","Cultural & Demographic Statistics ","DOC-Census","Randy Fusaro","randy.j.fusaro@census.gov",{"$f":"VLOOKUP(B78,'LOC FINAL with new Themes'!A:M,7,0)","v":0},{"$f":"VLOOKUP(B78,'LOC FINAL with new Themes'!A:M,8,0)","v":0},{"$f":"VLOOKUP(B78,'LOC FINAL with new Themes'!A:M,9,0)","v":0},{"$f":"VLOOKUP(B78,'LOC FINAL with new Themes'!A:M,10,0)","v":0},{"$f":"VLOOKUP(B78,'LOC FINAL with new Themes'!A:M,11,0)","v":0},{"$f":"VLOOKUP(B78,'LOC FINAL with new Themes'!A:M,12,0)","v":0},{"$f":"VLOOKUP(B78,'LOC FINAL with new Themes'!A:M,13,0)","v":0}]
["Statistical Area Boundaries (tracts, blocks, UAs, CDPs, etc)","Statistical Area Boundaries (tracts, blocks, UAs, CDPs, etc)",null,"Statistical Area Boundaries (tracts, blocks, UAs, CDPs, etc)","Cultural & Demographic Statistics ","DOC-Census","Randy Fusaro","randy.j.fusaro@census.gov",{"$f":"VLOOKUP(B79,'LOC FINAL with new Themes'!A:M,7,0)","v":0},{"$f":"VLOOKUP(B79,'LOC FINAL with new Themes'!A:M,8,0)","v":0},{"$f":"VLOOKUP(B79,'LOC FINAL with new Themes'!A:M,9,0)","v":0},{"$f":"VLOOKUP(B79,'LOC FINAL with new Themes'!A:M,10,0)","v":0},{"$f":"VLOOKUP(B79,'LOC FINAL with new Themes'!A:M,11,0)","v":0},{"$f":"VLOOKUP(B79,'LOC FINAL with new Themes'!A:M,12,0)","v":0},{"$f":"VLOOKUP(B79,'LOC FINAL with new Themes'!A:M,13,0)","v":0}]
[null,"Super Public Use Microdata Area (Census 2000)","Super Public Use Microdata Area (Census 2000)","Super Public Use Microdata Area (Census 2000)","Cultural & Demographic Statistics ","DOC-Census","Jennifer Holland","Jennifer.L.Holland@census.gov",{"$f":"VLOOKUP(B80,'LOC FINAL with new Themes'!A:M,7,0)","v":0},{"$f":"VLOOKUP(B80,'LOC FINAL with new Themes'!A:M,8,0)","v":0},{"$f":"VLOOKUP(B80,'LOC FINAL with new Themes'!A:M,9,0)","v":0},{"$f":"VLOOKUP(B80,'LOC FINAL with new Themes'!A:M,10,0)","v":0},{"$f":"VLOOKUP(B80,'LOC FINAL with new Themes'!A:M,11,0)","v":0},{"$f":"VLOOKUP(B80,'LOC FINAL with new Themes'!A:M,12,0)","v":0},{"$f":"VLOOKUP(B80,'LOC FINAL with new Themes'!A:M,13,0)","v":0}]
["TIGER* (many statistical boundaries)","TIGER (many statistical boundaries)",null,"TIGER (many statistical boundaries)","Cultural & Demographic Statistics ","DOC-Census","Randy Fusaro","randy.j.fusaro@census.gov",{"$f":"VLOOKUP(B81,'LOC FINAL with new Themes'!A:M,7,0)","v":0},{"$f":"VLOOKUP(B81,'LOC FINAL with new Themes'!A:M,8,0)","v":0},{"$f":"VLOOKUP(B81,'LOC FINAL with new Themes'!A:M,9,0)","v":0},{"$f":"VLOOKUP(B81,'LOC FINAL with new Themes'!A:M,10,0)","v":0},{"$f":"VLOOKUP(B81,'LOC FINAL with new Themes'!A:M,11,0)","v":0},{"$f":"VLOOKUP(B81,'LOC FINAL with new Themes'!A:M,12,0)","v":0},{"$f":"VLOOKUP(B81,'LOC FINAL with new Themes'!A:M,13,0)","v":0}]
[null,"Topological Faces (2010 Census)","Topological Faces (2010 Census)","Topological Faces (2010 Census)","Cultural & Demographic Statistics ","DOC-Census","Jennifer Holland","Jennifer.L.Holland@census.gov",{"$f":"VLOOKUP(B82,'LOC FINAL with new Themes'!A:M,7,0)","v":0},{"$f":"VLOOKUP(B82,'LOC FINAL with new Themes'!A:M,8,0)","v":0},{"$f":"VLOOKUP(B82,'LOC FINAL with new Themes'!A:M,9,0)","v":0},{"$f":"VLOOKUP(B82,'LOC FINAL with new Themes'!A:M,10,0)","v":0},{"$f":"VLOOKUP(B82,'LOC FINAL with new Themes'!A:M,11,0)","v":0},{"$f":"VLOOKUP(B82,'LOC FINAL with new Themes'!A:M,12,0)","v":0},{"$f":"VLOOKUP(B82,'LOC FINAL with new Themes'!A:M,13,0)","v":0}]
[null,"Unified School District (2010 Census)","Unified School District (2010 Census)","Unified School District (2010 Census)","Cultural & Demographic Statistics ","DOC-Census","Jennifer Holland","Jennifer.L.Holland@census.gov",{"$f":"VLOOKUP(B83,'LOC FINAL with new Themes'!A:M,7,0)","v":0},{"$f":"VLOOKUP(B83,'LOC FINAL with new Themes'!A:M,8,0)","v":0},{"$f":"VLOOKUP(B83,'LOC FINAL with new Themes'!A:M,9,0)","v":0},{"$f":"VLOOKUP(B83,'LOC FINAL with new Themes'!A:M,10,0)","v":0},{"$f":"VLOOKUP(B83,'LOC FINAL with new Themes'!A:M,11,0)","v":0},{"$f":"VLOOKUP(B83,'LOC FINAL with new Themes'!A:M,12,0)","v":0},{"$f":"VLOOKUP(B83,'LOC FINAL with new Themes'!A:M,13,0)","v":0}]
[null,"Unified School District (Census 2000)","Unified School District (Census 2000)","Unified School District (Census 2000)","Cultural & Demographic Statistics ","DOC-Census","Jennifer Holland","Jennifer.L.Holland@census.gov",{"$f":"VLOOKUP(B84,'LOC FINAL with new Themes'!A:M,7,0)","v":0},{"$f":"VLOOKUP(B84,'LOC FINAL with new Themes'!A:M,8,0)","v":0},{"$f":"VLOOKUP(B84,'LOC FINAL with new Themes'!A:M,9,0)","v":0},{"$f":"VLOOKUP(B84,'LOC FINAL with new Themes'!A:M,10,0)","v":0},{"$f":"VLOOKUP(B84,'LOC FINAL with new Themes'!A:M,11,0)","v":0},{"$f":"VLOOKUP(B84,'LOC FINAL with new Themes'!A:M,12,0)","v":0},{"$f":"VLOOKUP(B84,'LOC FINAL with new Themes'!A:M,13,0)","v":0}]
[null,"Urban Growth Area (2010 Census)","Urban Growth Area (2010 Census)","Urban Growth Area (2010 Census)","Cultural & Demographic Statistics ","DOC-Census","Jennifer Holland","Jennifer.L.Holland@census.gov",{"$f":"VLOOKUP(B85,'LOC FINAL with new Themes'!A:M,7,0)","v":0},{"$f":"VLOOKUP(B85,'LOC FINAL with new Themes'!A:M,8,0)","v":0},{"$f":"VLOOKUP(B85,'LOC FINAL with new Themes'!A:M,9,0)","v":0},{"$f":"VLOOKUP(B85,'LOC FINAL with new Themes'!A:M,10,0)","v":0},{"$f":"VLOOKUP(B85,'LOC FINAL with new Themes'!A:M,11,0)","v":0},{"$f":"VLOOKUP(B85,'LOC FINAL with new Themes'!A:M,12,0)","v":0},{"$f":"VLOOKUP(B85,'LOC FINAL with new Themes'!A:M,13,0)","v":0}]
[null,"Urban Growth Area (Census 2000)","Urban Growth Area (Census 2000)","Urban Growth Area (Census 2000)","Cultural & Demographic Statistics ","DOC-Census","Jennifer Holland","Jennifer.L.Holland@census.gov",{"$f":"VLOOKUP(B86,'LOC FINAL with new Themes'!A:M,7,0)","v":0},{"$f":"VLOOKUP(B86,'LOC FINAL with new Themes'!A:M,8,0)","v":0},{"$f":"VLOOKUP(B86,'LOC FINAL with new Themes'!A:M,9,0)","v":0},{"$f":"VLOOKUP(B86,'LOC FINAL with new Themes'!A:M,10,0)","v":0},{"$f":"VLOOKUP(B86,'LOC FINAL with new Themes'!A:M,11,0)","v":0},{"$f":"VLOOKUP(B86,'LOC FINAL with new Themes'!A:M,12,0)","v":0},{"$f":"VLOOKUP(B86,'LOC FINAL with new Themes'!A:M,13,0)","v":0}]
[null,"Voting District (2010 Census)","Voting District (2010 Census)","Voting District (2010 Census)","Cultural & Demographic Statistics ","DOC-Census","Jennifer Holland","Jennifer.L.Holland@census.gov",{"$f":"VLOOKUP(B87,'LOC FINAL with new Themes'!A:M,7,0)","v":0},{"$f":"VLOOKUP(B87,'LOC FINAL with new Themes'!A:M,8,0)","v":0},{"$f":"VLOOKUP(B87,'LOC FINAL with new Themes'!A:M,9,0)","v":0},{"$f":"VLOOKUP(B87,'LOC FINAL with new Themes'!A:M,10,0)","v":0},{"$f":"VLOOKUP(B87,'LOC FINAL with new Themes'!A:M,11,0)","v":0},{"$f":"VLOOKUP(B87,'LOC FINAL with new Themes'!A:M,12,0)","v":0},{"$f":"VLOOKUP(B87,'LOC FINAL with new Themes'!A:M,13,0)","v":0}]
[null,"Voting District (Census 2000)","Voting District (Census 2000)","Voting District (Census 2000)","Cultural & Demographic Statistics ","DOC-Census","Jennifer Holland","Jennifer.L.Holland@census.gov",{"$f":"VLOOKUP(B88,'LOC FINAL with new Themes'!A:M,7,0)","v":0},{"$f":"VLOOKUP(B88,'LOC FINAL with new Themes'!A:M,8,0)","v":0},{"$f":"VLOOKUP(B88,'LOC FINAL with new Themes'!A:M,9,0)","v":0},{"$f":"VLOOKUP(B88,'LOC FINAL with new Themes'!A:M,10,0)","v":0},{"$f":"VLOOKUP(B88,'LOC FINAL with new Themes'!A:M,11,0)","v":0},{"$f":"VLOOKUP(B88,'LOC FINAL with new Themes'!A:M,12,0)","v":0},{"$f":"VLOOKUP(B88,'LOC FINAL with new Themes'!A:M,13,0)","v":0}]
["Voting District Boundaries","Voting District Boundaries",null,"Voting District Boundaries","Cultural & Demographic Statistics ","DOC-Census","Randy Fusaro","randy.j.fusaro@census.gov",{"$f":"VLOOKUP(B89,'LOC FINAL with new Themes'!A:M,7,0)","v":0},{"$f":"VLOOKUP(B89,'LOC FINAL with new Themes'!A:M,8,0)","v":0},{"$f":"VLOOKUP(B89,'LOC FINAL with new Themes'!A:M,9,0)","v":0},{"$f":"VLOOKUP(B89,'LOC FINAL with new Themes'!A:M,10,0)","v":0},{"$f":"VLOOKUP(B89,'LOC FINAL with new Themes'!A:M,11,0)","v":0},{"$f":"VLOOKUP(B89,'LOC FINAL with new Themes'!A:M,12,0)","v":0},{"$f":"VLOOKUP(B89,'LOC FINAL with new Themes'!A:M,13,0)","v":0}]
[{"$f":"SUBTOTAL(3,A49:A89)","v":10},{"$f":"SUBTOTAL(3,B49:B89)","v":39},{"$f":"SUBTOTAL(3,C49:C89)","v":30},{"$f":"SUBTOTAL(3,D49:D89)","v":41},"Cultural & Demographic Statistics  Count"]
["Cultural Landscape Boundaries","Cultural Landscape Boundaries","Cultural Landscape Boundaries",{"$f":"IF(C91=0,B91,C91)","v":"Cultural Landscape Boundaries"},"Cultural & Demographic Statistics \nCultural Resources","DOI-NPS","John Knoerl","john_knoerl@nps.gov",{"$f":"VLOOKUP(B91,'LOC FINAL with new Themes'!A:M,7,0)","v":"Feature classes of the cultural resource data model (NPS only, other federal agencies handle it as they decide)"},{"$f":"VLOOKUP(B91,'LOC FINAL with new Themes'!A:M,8,0)","v":"don't want a single centralized data set but focusing on standard approach"},{"$f":"VLOOKUP(B91,'LOC FINAL with new Themes'!A:M,9,0)","v":0},{"$f":"VLOOKUP(B91,'LOC FINAL with new Themes'!A:M,10,0)","v":0},{"$f":"VLOOKUP(B91,'LOC FINAL with new Themes'!A:M,11,0)","v":0},{"$f":"VLOOKUP(B91,'LOC FINAL with new Themes'!A:M,12,0)","v":0},{"$f":"VLOOKUP(B91,'LOC FINAL with new Themes'!A:M,13,0)","v":0}]
["Cultural Resource Survey Boundaries","Cultural Resource Survey Boundaries","Cultural Resource Survey Boundaries","Cultural Resource Survey Boundaries","Cultural & Demographic Statistics \nCultural Resources","DOI-NPS","John Knoerl","john_knoerl@nps.gov",{"$f":"VLOOKUP(B92,'LOC FINAL with new Themes'!A:M,7,0)","v":"Feature classes of the cultural resource data model (NPS only, other federal agencies handle it as they decide)"},{"$f":"VLOOKUP(B92,'LOC FINAL with new Themes'!A:M,8,0)","v":"don't want a single centralized data set but focusing on standard approach"},{"$f":"VLOOKUP(B92,'LOC FINAL with new Themes'!A:M,9,0)","v":0},{"$f":"VLOOKUP(B92,'LOC FINAL with new Themes'!A:M,10,0)","v":0},{"$f":"VLOOKUP(B92,'LOC FINAL with new Themes'!A:M,11,0)","v":0},{"$f":"VLOOKUP(B92,'LOC FINAL with new Themes'!A:M,12,0)","v":0},{"$f":"VLOOKUP(B92,'LOC FINAL with new Themes'!A:M,13,0)","v":0}]
["Ethnographic Resource Boundaries","Ethnographic Resource Boundaries","Ethnographic Resource Boundaries","Ethnographic Resource Boundaries","Cultural & Demographic Statistics \nCultural Resources","DOI-NPS","John Knoerl","john_knoerl@nps.gov",{"$f":"VLOOKUP(B93,'LOC FINAL with new Themes'!A:M,7,0)","v":"Feature classes of the cultural resource data model (NPS only, other federal agencies handle it as they decide)"},{"$f":"VLOOKUP(B93,'LOC FINAL with new Themes'!A:M,8,0)","v":"don't want a single centralized data set but focusing on standard approach"},{"$f":"VLOOKUP(B93,'LOC FINAL with new Themes'!A:M,9,0)","v":0},{"$f":"VLOOKUP(B93,'LOC FINAL with new Themes'!A:M,10,0)","v":0},{"$f":"VLOOKUP(B93,'LOC FINAL with new Themes'!A:M,11,0)","v":0},{"$f":"VLOOKUP(B93,'LOC FINAL with new Themes'!A:M,12,0)","v":0},{"$f":"VLOOKUP(B93,'LOC FINAL with new Themes'!A:M,13,0)","v":0}]
["Historic Buildings Boundaries","Historic Buildings Boundaries","Historic Buildings Boundaries","Historic Buildings Boundaries","Cultural & Demographic Statistics \nCultural Resources","DOI-NPS","John Knoerl","john_knoerl@nps.gov",{"$f":"VLOOKUP(B94,'LOC FINAL with new Themes'!A:M,7,0)","v":"Feature classes of the cultural resource data model (NPS only, other federal agencies handle it as they decide)"},{"$f":"VLOOKUP(B94,'LOC FINAL with new Themes'!A:M,8,0)","v":"don't want a single centralized data set but focusing on standard approach"},{"$f":"VLOOKUP(B94,'LOC FINAL with new Themes'!A:M,9,0)","v":0},{"$f":"VLOOKUP(B94,'LOC FINAL with new Themes'!A:M,10,0)","v":0},{"$f":"VLOOKUP(B94,'LOC FINAL with new Themes'!A:M,11,0)","v":0},{"$f":"VLOOKUP(B94,'LOC FINAL with new Themes'!A:M,12,0)","v":0},{"$f":"VLOOKUP(B94,'LOC FINAL with new Themes'!A:M,13,0)","v":0}]
["Historic Districts Boundaries","Historic Districts Boundaries","Historic Districts Boundaries","Historic Districts Boundaries","Cultural & Demographic Statistics \nCultural Resources","DOI-NPS","John Knoerl","john_knoerl@nps.gov",{"$f":"VLOOKUP(B95,'LOC FINAL with new Themes'!A:M,7,0)","v":"Feature classes of the cultural resource data model (NPS only, other federal agencies handle it as they decide)"},{"$f":"VLOOKUP(B95,'LOC FINAL with new Themes'!A:M,8,0)","v":"don't want a single centralized data set but focusing on standard approach"},{"$f":"VLOOKUP(B95,'LOC FINAL with new Themes'!A:M,9,0)","v":0},{"$f":"VLOOKUP(B95,'LOC FINAL with new Themes'!A:M,10,0)","v":0},{"$f":"VLOOKUP(B95,'LOC FINAL with new Themes'!A:M,11,0)","v":0},{"$f":"VLOOKUP(B95,'LOC FINAL with new Themes'!A:M,12,0)","v":0},{"$f":"VLOOKUP(B95,'LOC FINAL with new Themes'!A:M,13,0)","v":0}]
["Historic Objects Boundaries","Historic Objects Boundaries","Historic Objects Boundaries","Historic Objects Boundaries","Cultural & Demographic Statistics \nCultural Resources","DOI-NPS","John Knoerl","john_knoerl@nps.gov",{"$f":"VLOOKUP(B96,'LOC FINAL with new Themes'!A:M,7,0)","v":"Feature classes of the cultural resource data model (NPS only, other federal agencies handle it as they decide)"},{"$f":"VLOOKUP(B96,'LOC FINAL with new Themes'!A:M,8,0)","v":"don't want a single centralized data set but focusing on standard approach"},{"$f":"VLOOKUP(B96,'LOC FINAL with new Themes'!A:M,9,0)","v":0},{"$f":"VLOOKUP(B96,'LOC FINAL with new Themes'!A:M,10,0)","v":0},{"$f":"VLOOKUP(B96,'LOC FINAL with new Themes'!A:M,11,0)","v":0},{"$f":"VLOOKUP(B96,'LOC FINAL with new Themes'!A:M,12,0)","v":0},{"$f":"VLOOKUP(B96,'LOC FINAL with new Themes'!A:M,13,0)","v":0}]
["Historic Structures Boundaries","Historic Structures Boundaries","Historic Structures Boundaries","Historic Structures Boundaries","Cultural & Demographic Statistics \nCultural Resources","DOI-NPS","John Knoerl","john_knoerl@nps.gov",{"$f":"VLOOKUP(B97,'LOC FINAL with new Themes'!A:M,7,0)","v":"Feature classes of the cultural resource data model (NPS only, other federal agencies handle it as they decide)"},{"$f":"VLOOKUP(B97,'LOC FINAL with new Themes'!A:M,8,0)","v":"don't want a single centralized data set but focusing on standard approach"},{"$f":"VLOOKUP(B97,'LOC FINAL with new Themes'!A:M,9,0)","v":0},{"$f":"VLOOKUP(B97,'LOC FINAL with new Themes'!A:M,10,0)","v":0},{"$f":"VLOOKUP(B97,'LOC FINAL with new Themes'!A:M,11,0)","v":0},{"$f":"VLOOKUP(B97,'LOC FINAL with new Themes'!A:M,12,0)","v":0},{"$f":"VLOOKUP(B97,'LOC FINAL with new Themes'!A:M,13,0)","v":"M "}]
[null,null,"Other Cultural Resource Boundaries","Other Cultural Resource Boundaries","Cultural & Demographic Statistics \nCultural Resources","DOI-NPS"]
[{"$f":"SUBTOTAL(3,A91:A98)","v":7},{"$f":"SUBTOTAL(3,B91:B98)","v":7},{"$f":"SUBTOTAL(3,C91:C98)","v":8},{"$f":"SUBTOTAL(3,D91:D98)","v":8},"Cultural & Demographic Statistics \nCultural Resources Count"]
[null,"Point Landmark (2010 Census)","Point of Landmark (2010 Census)",{"$f":"IF(C100=0,B100,C100)","v":"Point of Landmark (2010 Census)"},"Cultural Resources","DOC-Census","Jennifer Holland","Jennifer.L.Holland@census.gov",{"$f":"VLOOKUP(B100,'LOC FINAL with new Themes'!A:M,7,0)","v":0},{"$f":"VLOOKUP(B100,'LOC FINAL with new Themes'!A:M,8,0)","v":0},{"$f":"VLOOKUP(B100,'LOC FINAL with new Themes'!A:M,9,0)","v":0},{"$f":"VLOOKUP(B100,'LOC FINAL with new Themes'!A:M,10,0)","v":0},{"$f":"VLOOKUP(B100,'LOC FINAL with new Themes'!A:M,11,0)","v":0},{"$f":"VLOOKUP(B100,'LOC FINAL with new Themes'!A:M,12,0)","v":0},{"$f":"VLOOKUP(B100,'LOC FINAL with new Themes'!A:M,13,0)","v":0}]
["Archeological Sites","Archeological Sites","Archeological Sites","Archeological Sites","Cultural Resources ","DOI-NPS","John Knoerl","john_knoerl@nps.gov",{"$f":"VLOOKUP(B101,'LOC FINAL with new Themes'!A:M,7,0)","v":"Feature classes of the cultural resource data model (NPS only, other federal agencies handle it as they decide)"},{"$f":"VLOOKUP(B101,'LOC FINAL with new Themes'!A:M,8,0)","v":"don't want a single centralized data set but focusing on standard approach"},{"$f":"VLOOKUP(B101,'LOC FINAL with new Themes'!A:M,9,0)","v":"National Historic Presrevation Act says state historic preservation office has primary oversight (section 110)"},{"$f":"VLOOKUP(B101,'LOC FINAL with new Themes'!A:M,10,0)","v":0},{"$f":"VLOOKUP(B101,'LOC FINAL with new Themes'!A:M,11,0)","v":0},{"$f":"VLOOKUP(B101,'LOC FINAL with new Themes'!A:M,12,0)","v":0},{"$f":"VLOOKUP(B101,'LOC FINAL with new Themes'!A:M,13,0)","v":0}]
[null,"Area Landmark (2010 Census)","Area Landmark (2010 Census)","Area Landmark (2010 Census)","Cultural Resources ","DOC-Census","Jennifer Holland","Jennifer.L.Holland@census.gov",{"$f":"VLOOKUP(B102,'LOC FINAL with new Themes'!A:M,7,0)","v":0},{"$f":"VLOOKUP(B102,'LOC FINAL with new Themes'!A:M,8,0)","v":0},{"$f":"VLOOKUP(B102,'LOC FINAL with new Themes'!A:M,9,0)","v":0},{"$f":"VLOOKUP(B102,'LOC FINAL with new Themes'!A:M,10,0)","v":0},{"$f":"VLOOKUP(B102,'LOC FINAL with new Themes'!A:M,11,0)","v":0},{"$f":"VLOOKUP(B102,'LOC FINAL with new Themes'!A:M,12,0)","v":0},{"$f":"VLOOKUP(B102,'LOC FINAL with new Themes'!A:M,13,0)","v":0}]
[null,null,"Geographic Names Dataset - National Map","Geographic Names Dataset - National Map","Cultural Resources ","DOI-USGS"]
["National Map - Geographic Names Information System (GNIS)","National Map - Geographic Names Information System (GNIS)",null,"National Map - Geographic Names Information System (GNIS)","Cultural Resources ","DOI-USGS","Lou Yost","lyost@usgs.gov",{"$f":"VLOOKUP(B104,'LOC FINAL with new Themes'!A:M,7,0)","v":"single data set; poc, data managers; daily updated; Denver systems people backup and archive; transfer to NARA also; Gaz vector (internal)"},{"$f":"VLOOKUP(B104,'LOC FINAL with new Themes'!A:M,8,0)","v":0},{"$f":"VLOOKUP(B104,'LOC FINAL with new Themes'!A:M,9,0)","v":0},{"$f":"VLOOKUP(B104,'LOC FINAL with new Themes'!A:M,10,0)","v":0},{"$f":"VLOOKUP(B104,'LOC FINAL with new Themes'!A:M,11,0)","v":0},{"$f":"VLOOKUP(B104,'LOC FINAL with new Themes'!A:M,12,0)","v":0},{"$f":"VLOOKUP(B104,'LOC FINAL with new Themes'!A:M,13,0)","v":"S"}]
[null,"Topological Faces-Area Landmark Relationship File","Topological Faces-Area Landmark Relationship File","Topological Faces-Area Landmark Relationship File","Cultural Resources ","DOC-Census","Jennifer Holland","Jennifer.L.Holland@census.gov",{"$f":"VLOOKUP(B105,'LOC FINAL with new Themes'!A:M,7,0)","v":0},{"$f":"VLOOKUP(B105,'LOC FINAL with new Themes'!A:M,8,0)","v":0},{"$f":"VLOOKUP(B105,'LOC FINAL with new Themes'!A:M,9,0)","v":0},{"$f":"VLOOKUP(B105,'LOC FINAL with new Themes'!A:M,10,0)","v":0},{"$f":"VLOOKUP(B105,'LOC FINAL with new Themes'!A:M,11,0)","v":0},{"$f":"VLOOKUP(B105,'LOC FINAL with new Themes'!A:M,12,0)","v":0},{"$f":"VLOOKUP(B105,'LOC FINAL with new Themes'!A:M,13,0)","v":0}]
[{"$f":"SUBTOTAL(3,A100:A105)","v":2},{"$f":"SUBTOTAL(3,B100:B105)","v":5},{"$f":"SUBTOTAL(3,C100:C105)","v":5},{"$f":"SUBTOTAL(3,D100:D105)","v":6},"Cultural Resources Count"]
["133 UA Elevation Data (lidar)","133 UA Elevation Data (lidar)",null,{"$f":"IF(C107=0,B107,C107)","v":"133 UA Elevation Data (lidar)"},"Elevation","DOD-NGA","Ron Power, NGA","ronald.k.power@nga.mil",{"$f":"VLOOKUP(B107,'LOC FINAL with new Themes'!A:M,7,0)","v":0},{"$f":"VLOOKUP(B107,'LOC FINAL with new Themes'!A:M,8,0)","v":0},{"$f":"VLOOKUP(B107,'LOC FINAL with new Themes'!A:M,9,0)","v":0},{"$f":"VLOOKUP(B107,'LOC FINAL with new Themes'!A:M,10,0)","v":0},{"$f":"VLOOKUP(B107,'LOC FINAL with new Themes'!A:M,11,0)","v":0},{"$f":"VLOOKUP(B107,'LOC FINAL with new Themes'!A:M,12,0)","v":0},{"$f":"VLOOKUP(B107,'LOC FINAL with new Themes'!A:M,13,0)","v":0}]
["DEMs - Archive","DEMs - Archive",null,"DEMs - Archive","Elevation","DOI-USGS","Gayla Evans","gevans@usgs.gov",{"$f":"VLOOKUP(B108,'LOC FINAL with new Themes'!A:M,7,0)","v":"DEMS update at variable nature; are four data sets based on resolution; this is the POC and data manager; this is the name and maintain three complete with two physically separate on-site and one off-site"},{"$f":"VLOOKUP(B108,'LOC FINAL with new Themes'!A:M,8,0)","v":0},{"$f":"VLOOKUP(B108,'LOC FINAL with new Themes'!A:M,9,0)","v":0},{"$f":"VLOOKUP(B108,'LOC FINAL with new Themes'!A:M,10,0)","v":0},{"$f":"VLOOKUP(B108,'LOC FINAL with new Themes'!A:M,11,0)","v":0},{"$f":"VLOOKUP(B108,'LOC FINAL with new Themes'!A:M,12,0)","v":0},{"$f":"VLOOKUP(B108,'LOC FINAL with new Themes'!A:M,13,0)","v":"S"}]
["GTOPO30","GTOPO30",null,"GTOPO30","Elevation","DOI-USGS","Jeff Danielson"," daniels@usgs.gov",{"$f":"VLOOKUP(B109,'LOC FINAL with new Themes'!A:M,7,0)","v":"GTOPO30 is static; one data set; this is the POC and data manager; this is the name and maintain three complete with two physically separate on-site and one off-site"},{"$f":"VLOOKUP(B109,'LOC FINAL with new Themes'!A:M,8,0)","v":0},{"$f":"VLOOKUP(B109,'LOC FINAL with new Themes'!A:M,9,0)","v":0},{"$f":"VLOOKUP(B109,'LOC FINAL with new Themes'!A:M,10,0)","v":0},{"$f":"VLOOKUP(B109,'LOC FINAL with new Themes'!A:M,11,0)","v":0},{"$f":"VLOOKUP(B109,'LOC FINAL with new Themes'!A:M,12,0)","v":0},{"$f":"VLOOKUP(B109,'LOC FINAL with new Themes'!A:M,13,0)","v":0}]
["National Map National Elevation Data Set (NED)","National Map  - National Elevation Dataset (NED)",null,"National Map  - National Elevation Dataset (NED)","Elevation","DOI-USGS","Jim Mauck","lyost@usgs.gov",{"$f":"VLOOKUP(B110,'LOC FINAL with new Themes'!A:M,7,0)","v":0},{"$f":"VLOOKUP(B110,'LOC FINAL with new Themes'!A:M,8,0)","v":0},{"$f":"VLOOKUP(B110,'LOC FINAL with new Themes'!A:M,9,0)","v":0},{"$f":"VLOOKUP(B110,'LOC FINAL with new Themes'!A:M,10,0)","v":0},{"$f":"VLOOKUP(B110,'LOC FINAL with new Themes'!A:M,11,0)","v":0},{"$f":"VLOOKUP(B110,'LOC FINAL with new Themes'!A:M,12,0)","v":0},{"$f":"VLOOKUP(B110,'LOC FINAL with new Themes'!A:M,13,0)","v":0}]
["National Ocean Service (NOS) Bathymetry Warehouse (name subject to change)","National Ocean Service (NOS) Bathymetry Warehouse (name subject to change)",null,"National Ocean Service (NOS) Bathymetry Warehouse (name subject to change)","Elevation","DOC-NOAA",null,null,{"$f":"VLOOKUP(B111,'LOC FINAL with new Themes'!A:M,7,0)","v":0},{"$f":"VLOOKUP(B111,'LOC FINAL with new Themes'!A:M,8,0)","v":0},{"$f":"VLOOKUP(B111,'LOC FINAL with new Themes'!A:M,9,0)","v":0},{"$f":"VLOOKUP(B111,'LOC FINAL with new Themes'!A:M,10,0)","v":0},{"$f":"VLOOKUP(B111,'LOC FINAL with new Themes'!A:M,11,0)","v":0},{"$f":"VLOOKUP(B111,'LOC FINAL with new Themes'!A:M,12,0)","v":0},{"$f":"VLOOKUP(B111,'LOC FINAL with new Themes'!A:M,13,0)","v":"P"}]
["National Ocean Service (NOS) Hydrographic Data Base (NOSHDB)","National Ocean Service (NOS) Hydrographic Data Base (NOSHDB)",null,"National Ocean Service (NOS) Hydrographic Data Base (NOSHDB)","Elevation","DOC-NOAA","Brian Mohr","Brian.Mohr@noaa.gov",{"$f":"VLOOKUP(B112,'LOC FINAL with new Themes'!A:M,7,0)","v":"I manage several datadatabases/datasets.  They include SURDEX, our database of hydrographic survey outlines(polygons) in a MapInfo platform and  the Bathydatabase which is a collection of our BAGs or Bathymetric Attribution Grid files. "},{"$f":"VLOOKUP(B112,'LOC FINAL with new Themes'!A:M,8,0)","v":"Yes"},{"$f":"VLOOKUP(B112,'LOC FINAL with new Themes'!A:M,9,0)","v":"Yes"},{"$f":"VLOOKUP(B112,'LOC FINAL with new Themes'!A:M,10,0)","v":"archived at NGDC"},{"$f":"VLOOKUP(B112,'LOC FINAL with new Themes'!A:M,11,0)","v":"Currently these files are being prepped to be pushed into either  a Caris or ESRI database platform.  I also have a shared role in managing our Survey Tracking database called Survey Tracker.  Each is updated weekly, they are backed up by our internal IT staff"},{"$f":"VLOOKUP(B112,'LOC FINAL with new Themes'!A:M,12,0)","v":0},{"$f":"VLOOKUP(B112,'LOC FINAL with new Themes'!A:M,13,0)","v":"M "}]
["NOAA Estuarine Bathymetry","NOAA Estuarine Bathymetry",null,"NOAA Estuarine Bathymetry","Elevation","DOC-NOAA",null,null,{"$f":"VLOOKUP(B113,'LOC FINAL with new Themes'!A:M,7,0)","v":0},{"$f":"VLOOKUP(B113,'LOC FINAL with new Themes'!A:M,8,0)","v":0},{"$f":"VLOOKUP(B113,'LOC FINAL with new Themes'!A:M,9,0)","v":0},{"$f":"VLOOKUP(B113,'LOC FINAL with new Themes'!A:M,10,0)","v":0},{"$f":"VLOOKUP(B113,'LOC FINAL with new Themes'!A:M,11,0)","v":0},{"$f":"VLOOKUP(B113,'LOC FINAL with new Themes'!A:M,12,0)","v":0},{"$f":"VLOOKUP(B113,'LOC FINAL with new Themes'!A:M,13,0)","v":0}]
["SRTM (3-arc second DTEDS)","SRTM (3-arc second DTEDS)",null,"SRTM (3-arc second DTEDS)","Elevation","DOI-USGS","Dean Gesch, USGS","gesch@usgs.gov",{"$f":"VLOOKUP(B114,'LOC FINAL with new Themes'!A:M,7,0)","v":"SRTM is static; one data set; this is the POC and data manager; this is the name and maintain three complete with two physically separate on-site and one off-site"},{"$f":"VLOOKUP(B114,'LOC FINAL with new Themes'!A:M,8,0)","v":0},{"$f":"VLOOKUP(B114,'LOC FINAL with new Themes'!A:M,9,0)","v":0},{"$f":"VLOOKUP(B114,'LOC FINAL with new Themes'!A:M,10,0)","v":0},{"$f":"VLOOKUP(B114,'LOC FINAL with new Themes'!A:M,11,0)","v":0},{"$f":"VLOOKUP(B114,'LOC FINAL with new Themes'!A:M,12,0)","v":0},{"$f":"VLOOKUP(B114,'LOC FINAL with new Themes'!A:M,13,0)","v":"S"}]
["Digital Flood Insurance Rate Maps (D-FIRM)","Digital Flood Insurance Rate Maps (D-FIRM)","Digital Flood Insurance Rate Maps (DFIRM)","Digital Flood Insurance Rate Maps (DFIRM)","Elevation ","DHS-FEMA","Scott McAfee","scott.mcaffee@dhs.gov",{"$f":"VLOOKUP(B115,'LOC FINAL with new Themes'!A:M,7,0)","v":0},{"$f":"VLOOKUP(B115,'LOC FINAL with new Themes'!A:M,8,0)","v":0},{"$f":"VLOOKUP(B115,'LOC FINAL with new Themes'!A:M,9,0)","v":0},{"$f":"VLOOKUP(B115,'LOC FINAL with new Themes'!A:M,10,0)","v":0},{"$f":"VLOOKUP(B115,'LOC FINAL with new Themes'!A:M,11,0)","v":0},{"$f":"VLOOKUP(B115,'LOC FINAL with new Themes'!A:M,12,0)","v":0},{"$f":"VLOOKUP(B115,'LOC FINAL with new Themes'!A:M,13,0)","v":0}]
[null,null,"Elevation Bathymetric - Ocean, Coastal, and Great Lakes Bathymetry ","Elevation Bathymetric - Ocean, Coastal, and Great Lakes Bathymetry ","Elevation ","DOC-NOAA"]
[null,null,"National Elevation Dataset  - National Map","National Elevation Dataset  - National Map","Elevation ","DOI-USGS"]
["National Flood Hazard Layer (NFHL)","National Flood Hazard Layer (NFHL)","National Flood Hazard Layer (NFHL)","National Flood Hazard Layer (NFHL)","Elevation ","DHS-FEMA","Scott McAfee","scott.mcaffee@dhs.gov",{"$f":"VLOOKUP(B118,'LOC FINAL with new Themes'!A:M,7,0)","v":0},{"$f":"VLOOKUP(B118,'LOC FINAL with new Themes'!A:M,8,0)","v":0},{"$f":"VLOOKUP(B118,'LOC FINAL with new Themes'!A:M,9,0)","v":0},{"$f":"VLOOKUP(B118,'LOC FINAL with new Themes'!A:M,10,0)","v":0},{"$f":"VLOOKUP(B118,'LOC FINAL with new Themes'!A:M,11,0)","v":0},{"$f":"VLOOKUP(B118,'LOC FINAL with new Themes'!A:M,12,0)","v":0},{"$f":"VLOOKUP(B118,'LOC FINAL with new Themes'!A:M,13,0)","v":0}]
[{"$f":"SUBTOTAL(3,A107:A118)","v":10},{"$f":"SUBTOTAL(3,B107:B118)","v":10},{"$f":"SUBTOTAL(3,C107:C118)","v":4},{"$f":"SUBTOTAL(3,D107:D118)","v":12},"Elevation Count"]
[null,null,"Airborne Gravity",{"$f":"IF(C120=0,B120,C120)","v":"Airborne Gravity"},"Geodetic Control ","DOC-NOAA","Dr. Theresa Diehl","theresa.diehl@noaa.gov"]
[null,null,"Continuously Operating Reference Stations (CORS)","Continuously Operating Reference Stations (CORS)","Geodetic Control ","DOC-NOAA","Dr. Giovanni Sella","giovanni.sella@noaa.gov"]
[null,null,"Geoid Models","Geoid Models","Geodetic Control ","DOC-NOAA","Dr. Dan Roman","dan.roman@noaa.gov"]
["National Geologic Data Base","National Geologic Data Base","National Geodetic Survey (NGS) Datasheets","National Geodetic Survey (NGS) Datasheets","Geodetic Control ","DOI-USGS","Jim Tomlin","jim.tomlin@noaa.gov",{"$f":"VLOOKUP(B123,'LOC FINAL with new Themes'!A:M,7,0)","v":0},{"$f":"VLOOKUP(B123,'LOC FINAL with new Themes'!A:M,8,0)","v":0},{"$f":"VLOOKUP(B123,'LOC FINAL with new Themes'!A:M,9,0)","v":0},{"$f":"VLOOKUP(B123,'LOC FINAL with new Themes'!A:M,10,0)","v":0},{"$f":"VLOOKUP(B123,'LOC FINAL with new Themes'!A:M,11,0)","v":0},{"$f":"VLOOKUP(B123,'LOC FINAL with new Themes'!A:M,12,0)","v":0},{"$f":"VLOOKUP(B123,'LOC FINAL with new Themes'!A:M,13,0)","v":0}]
[null,null,"Precise Global Navigation Satellite System (GNSS) Orbits",{"$f":"IF(C124=0,B234,C124)","v":"Precise Global Navigation Satellite System (GNSS) Orbits"},"Geodetic Control ","DOC-NOAA","Dr. Jake Griffiths","jake.griffiths@noaa.gov"]
[null,null,"Terrestrial Gravity",{"$f":"IF(C125=0,B125,C125)","v":"Terrestrial Gravity"},"Geodetic Control ","DOC-NOAA"]
[{"$f":"SUBTOTAL(3,A120:A125)","v":1},{"$f":"SUBTOTAL(3,B120:B125)","v":1},{"$f":"SUBTOTAL(3,C120:C125)","v":6},{"$f":"SUBTOTAL(3,D120:D125)","v":6},"Geodetic Control  Count"]
[null,null,"Coal assessment and mapping",{"$f":"IF(C127=0,B127,C127)","v":"Coal assessment and mapping"},"Geology","DOI-USGS"]
["Coastline Data","Coastline Data","Coastline Data","Coastline Data","Geology","DOI-BOEM","Doug Vandegraft","douglas.vandegraft@boemre.gov",{"$f":"VLOOKUP(B128,'LOC FINAL with new Themes'!A:M,7,0)","v":"undeliverable email- neeed to identify new contact"},{"$f":"VLOOKUP(B128,'LOC FINAL with new Themes'!A:M,8,0)","v":0},{"$f":"VLOOKUP(B128,'LOC FINAL with new Themes'!A:M,9,0)","v":0},{"$f":"VLOOKUP(B128,'LOC FINAL with new Themes'!A:M,10,0)","v":0},{"$f":"VLOOKUP(B128,'LOC FINAL with new Themes'!A:M,11,0)","v":0},{"$f":"VLOOKUP(B128,'LOC FINAL with new Themes'!A:M,12,0)","v":0},{"$f":"VLOOKUP(B128,'LOC FINAL with new Themes'!A:M,13,0)","v":0}]
[null,null,"Earthquake monitoring, research, and mapping","Earthquake monitoring, research, and mapping","Geology","DOI-USGS"]
[null,null,"Geochemistry","Geochemistry","Geology","DOI-USGS"]
[null,null,"Geochronology","Geochronology","Geology","DOI-USGS"]
[null,null,"Geologic mapping","Geologic mapping","Geology","DOI-USGS"]
[null,null,"Geomagnetism","Geomagnetism","Geology","DOI-USGS"]
[null,null,"Geophysics","Geophysics","Geology","DOI-USGS"]
[null,null,"Landslide monitoring, research, and mapping","Landslide monitoring, research, and mapping","Geology","DOI-USGS"]
[null,null,"Marine geology","Marine geology","Geology","DOI-USGS"]
[null,null,"Metallic mineral assessment and mapping","Metallic mineral assessment and mapping","Geology","DOI-USGS"]
[null,null,"MMS Baseline","MMS Baseline","Geology","DOI-MMS"]
[null,null,"Non-metallic mineral assessment and mapping, onshore",{"$f":"IF(C139=0,B138,C139)","v":"Non-metallic mineral assessment and mapping, onshore"},"Geology","DOI-USGS"]
["OCS BLOCK LEASE DATA (OCS)","OCS BLOCK LEASE DATA ","OCS Lease Blocks",{"$f":"IF(C140=0,#REF!,C140)","v":"OCS Lease Blocks"},"Geology","DOI-BOEM","Doug Vandegraft","douglas.vandegraft@boemre.gov",{"$f":"VLOOKUP(B140,'LOC FINAL with new Themes'!A:M,7,0)","v":"undeliverable email- neeed to identify new contact"},{"$f":"VLOOKUP(B140,'LOC FINAL with new Themes'!A:M,8,0)","v":0},{"$f":"VLOOKUP(B140,'LOC FINAL with new Themes'!A:M,9,0)","v":0},{"$f":"VLOOKUP(B140,'LOC FINAL with new Themes'!A:M,10,0)","v":0},{"$f":"VLOOKUP(B140,'LOC FINAL with new Themes'!A:M,11,0)","v":0},{"$f":"VLOOKUP(B140,'LOC FINAL with new Themes'!A:M,12,0)","v":0},{"$f":"VLOOKUP(B140,'LOC FINAL with new Themes'!A:M,13,0)","v":0}]
[null,null,"OCS Active Leases",{"$f":"IF(C141=0,B140,C141)","v":"OCS Active Leases"},"Geology","DOI-BOEM","Doug Vandegraft","douglas.vandegraft@boemre.gov"]
[null,null,"Oil and gas assessment and mapping, onshore",{"$f":"IF(C142=0,B142,C142)","v":"Oil and gas assessment and mapping, onshore"},"Geology","DOI-USGS"]
[null,null,"Paleontology","Paleontology","Geology","DOI-USGS"]
[null,null,"Sand and Gravel","Sand and Gravel","Geology","DOI-MMS"]
[null,null,"Volcano monitoring, research, and mapping","Volcano monitoring, research, and mapping","Geology","DOI-USGS"]
[null,null,"Wells","Wells","Geology","DOI-MMS"]
[{"$f":"SUBTOTAL(3,A127:A146)","v":2},{"$f":"SUBTOTAL(3,B127:B146)","v":2},{"$f":"SUBTOTAL(3,C127:C146)","v":20},{"$f":"SUBTOTAL(3,D127:D146)","v":20},"Geology Count"]
["County Boundaries","County Boundaries",null,{"$f":"IF(C148=0,B148,C148)","v":"County Boundaries"},"Governmental Units",null,null,null,{"$f":"VLOOKUP(B148,'LOC FINAL with new Themes'!A:M,7,0)","v":0},{"$f":"VLOOKUP(B148,'LOC FINAL with new Themes'!A:M,8,0)","v":0},{"$f":"VLOOKUP(B148,'LOC FINAL with new Themes'!A:M,9,0)","v":0},{"$f":"VLOOKUP(B148,'LOC FINAL with new Themes'!A:M,10,0)","v":0},{"$f":"VLOOKUP(B148,'LOC FINAL with new Themes'!A:M,11,0)","v":0},{"$f":"VLOOKUP(B148,'LOC FINAL with new Themes'!A:M,12,0)","v":0},{"$f":"VLOOKUP(B148,'LOC FINAL with new Themes'!A:M,13,0)","v":0}]
[null,"Place and MCD Boundaries",null,"Place and MCD Boundaries","Governmental Units",null,null,null,{"$f":"VLOOKUP(B149,'LOC FINAL with new Themes'!A:M,7,0)","v":0},{"$f":"VLOOKUP(B149,'LOC FINAL with new Themes'!A:M,8,0)","v":0},{"$f":"VLOOKUP(B149,'LOC FINAL with new Themes'!A:M,9,0)","v":0},{"$f":"VLOOKUP(B149,'LOC FINAL with new Themes'!A:M,10,0)","v":0},{"$f":"VLOOKUP(B149,'LOC FINAL with new Themes'!A:M,11,0)","v":0},{"$f":"VLOOKUP(B149,'LOC FINAL with new Themes'!A:M,12,0)","v":0},{"$f":"VLOOKUP(B149,'LOC FINAL with new Themes'!A:M,13,0)","v":0}]
[null,"Alaska Native Regional Corporation (2010 Census)","Alaska Native Regional Corporation (2010 Census)","Alaska Native Regional Corporation (2010 Census)","Governmental Units ","DOC-Census","Jennifer Holland","Jennifer.L.Holland@census.gov",{"$f":"VLOOKUP(B150,'LOC FINAL with new Themes'!A:M,7,0)","v":0},{"$f":"VLOOKUP(B150,'LOC FINAL with new Themes'!A:M,8,0)","v":0},{"$f":"VLOOKUP(B150,'LOC FINAL with new Themes'!A:M,9,0)","v":0},{"$f":"VLOOKUP(B150,'LOC FINAL with new Themes'!A:M,10,0)","v":0},{"$f":"VLOOKUP(B150,'LOC FINAL with new Themes'!A:M,11,0)","v":0},{"$f":"VLOOKUP(B150,'LOC FINAL with new Themes'!A:M,12,0)","v":0},{"$f":"VLOOKUP(B150,'LOC FINAL with new Themes'!A:M,13,0)","v":0}]
[null,"Alaska Native Regional Corporation (Census 2000)","Alaska Native Regional Corporation (Census 2000)","Alaska Native Regional Corporation (Census 2000)","Governmental Units ","DOC-Census","Jennifer Holland","Jennifer.L.Holland@census.gov",{"$f":"VLOOKUP(B151,'LOC FINAL with new Themes'!A:M,7,0)","v":0},{"$f":"VLOOKUP(B151,'LOC FINAL with new Themes'!A:M,8,0)","v":0},{"$f":"VLOOKUP(B151,'LOC FINAL with new Themes'!A:M,9,0)","v":0},{"$f":"VLOOKUP(B151,'LOC FINAL with new Themes'!A:M,10,0)","v":0},{"$f":"VLOOKUP(B151,'LOC FINAL with new Themes'!A:M,11,0)","v":0},{"$f":"VLOOKUP(B151,'LOC FINAL with new Themes'!A:M,12,0)","v":0},{"$f":"VLOOKUP(B151,'LOC FINAL with new Themes'!A:M,13,0)","v":0}]
[null,"American Indian Tribal Subdivision (2010 Census)","American Indian Tribal Subdivision (2010 Census)","American Indian Tribal Subdivision (2010 Census)","Governmental Units ","DOC-Census","Jennifer Holland","Jennifer.L.Holland@census.gov",{"$f":"VLOOKUP(B152,'LOC FINAL with new Themes'!A:M,7,0)","v":0},{"$f":"VLOOKUP(B152,'LOC FINAL with new Themes'!A:M,8,0)","v":0},{"$f":"VLOOKUP(B152,'LOC FINAL with new Themes'!A:M,9,0)","v":0},{"$f":"VLOOKUP(B152,'LOC FINAL with new Themes'!A:M,10,0)","v":0},{"$f":"VLOOKUP(B152,'LOC FINAL with new Themes'!A:M,11,0)","v":0},{"$f":"VLOOKUP(B152,'LOC FINAL with new Themes'!A:M,12,0)","v":0},{"$f":"VLOOKUP(B152,'LOC FINAL with new Themes'!A:M,13,0)","v":0}]
[null,"American Indian Tribal Subdivision (Census 2000)","American Indian Tribal Subdivision (Census 2000)","American Indian Tribal Subdivision (Census 2000)","Governmental Units ","DOC-Census","Jennifer Holland","Jennifer.L.Holland@census.gov",{"$f":"VLOOKUP(B153,'LOC FINAL with new Themes'!A:M,7,0)","v":0},{"$f":"VLOOKUP(B153,'LOC FINAL with new Themes'!A:M,8,0)","v":0},{"$f":"VLOOKUP(B153,'LOC FINAL with new Themes'!A:M,9,0)","v":0},{"$f":"VLOOKUP(B153,'LOC FINAL with new Themes'!A:M,10,0)","v":0},{"$f":"VLOOKUP(B153,'LOC FINAL with new Themes'!A:M,11,0)","v":0},{"$f":"VLOOKUP(B153,'LOC FINAL with new Themes'!A:M,12,0)","v":0},{"$f":"VLOOKUP(B153,'LOC FINAL with new Themes'!A:M,13,0)","v":0}]
[null,"American Indian/Alaska Native/Native Hawaiian Area (2000 Census)","American Indian/Alaska Native/Native Hawaiian Area (2000 Census)","American Indian/Alaska Native/Native Hawaiian Area (2000 Census)","Governmental Units ","DOC-Census","Jennifer Holland","Jennifer.L.Holland@census.gov",{"$f":"VLOOKUP(B154,'LOC FINAL with new Themes'!A:M,7,0)","v":0},{"$f":"VLOOKUP(B154,'LOC FINAL with new Themes'!A:M,8,0)","v":0},{"$f":"VLOOKUP(B154,'LOC FINAL with new Themes'!A:M,9,0)","v":0},{"$f":"VLOOKUP(B154,'LOC FINAL with new Themes'!A:M,10,0)","v":0},{"$f":"VLOOKUP(B154,'LOC FINAL with new Themes'!A:M,11,0)","v":0},{"$f":"VLOOKUP(B154,'LOC FINAL with new Themes'!A:M,12,0)","v":0},{"$f":"VLOOKUP(B154,'LOC FINAL with new Themes'!A:M,13,0)","v":0}]
[null,"American Indian/Alaska Native/Native Hawaiian Area (2010 Census)","American Indian/Alaska Native/Native Hawaiian Area (2010 Census)","American Indian/Alaska Native/Native Hawaiian Area (2010 Census)","Governmental Units ","DOC-Census","Jennifer Holland","Jennifer.L.Holland@census.gov",{"$f":"VLOOKUP(B155,'LOC FINAL with new Themes'!A:M,7,0)","v":0},{"$f":"VLOOKUP(B155,'LOC FINAL with new Themes'!A:M,8,0)","v":0},{"$f":"VLOOKUP(B155,'LOC FINAL with new Themes'!A:M,9,0)","v":0},{"$f":"VLOOKUP(B155,'LOC FINAL with new Themes'!A:M,10,0)","v":0},{"$f":"VLOOKUP(B155,'LOC FINAL with new Themes'!A:M,11,0)","v":0},{"$f":"VLOOKUP(B155,'LOC FINAL with new Themes'!A:M,12,0)","v":0},{"$f":"VLOOKUP(B155,'LOC FINAL with new Themes'!A:M,13,0)","v":0}]
[null,"Combined New England City and Town Area (2010 Census)","Combined New England City and Town Area (2010 Census)","Combined New England City and Town Area (2010 Census)","Governmental Units ","DOC-Census","Jennifer Holland","Jennifer.L.Holland@census.gov",{"$f":"VLOOKUP(B156,'LOC FINAL with new Themes'!A:M,7,0)","v":0},{"$f":"VLOOKUP(B156,'LOC FINAL with new Themes'!A:M,8,0)","v":0},{"$f":"VLOOKUP(B156,'LOC FINAL with new Themes'!A:M,9,0)","v":0},{"$f":"VLOOKUP(B156,'LOC FINAL with new Themes'!A:M,10,0)","v":0},{"$f":"VLOOKUP(B156,'LOC FINAL with new Themes'!A:M,11,0)","v":0},{"$f":"VLOOKUP(B156,'LOC FINAL with new Themes'!A:M,12,0)","v":0},{"$f":"VLOOKUP(B156,'LOC FINAL with new Themes'!A:M,13,0)","v":0}]
["Congressional District Boundaries","Congressional District (108th)","Congressional District (108th)","Congressional District (108th)","Governmental Units ","DOC-Census","Jennifer Holland","Jennifer.L.Holland@census.gov",{"$f":"VLOOKUP(B157,'LOC FINAL with new Themes'!A:M,7,0)","v":0},{"$f":"VLOOKUP(B157,'LOC FINAL with new Themes'!A:M,8,0)","v":0},{"$f":"VLOOKUP(B157,'LOC FINAL with new Themes'!A:M,9,0)","v":0},{"$f":"VLOOKUP(B157,'LOC FINAL with new Themes'!A:M,10,0)","v":0},{"$f":"VLOOKUP(B157,'LOC FINAL with new Themes'!A:M,11,0)","v":0},{"$f":"VLOOKUP(B157,'LOC FINAL with new Themes'!A:M,12,0)","v":0},{"$f":"VLOOKUP(B157,'LOC FINAL with new Themes'!A:M,13,0)","v":0}]
[null,"Congressional District (111th)","Congressional District (111th)","Congressional District (111th)","Governmental Units ","DOC-Census","Jennifer Holland","Jennifer.L.Holland@census.gov",{"$f":"VLOOKUP(B158,'LOC FINAL with new Themes'!A:M,7,0)","v":0},{"$f":"VLOOKUP(B158,'LOC FINAL with new Themes'!A:M,8,0)","v":0},{"$f":"VLOOKUP(B158,'LOC FINAL with new Themes'!A:M,9,0)","v":0},{"$f":"VLOOKUP(B158,'LOC FINAL with new Themes'!A:M,10,0)","v":0},{"$f":"VLOOKUP(B158,'LOC FINAL with new Themes'!A:M,11,0)","v":0},{"$f":"VLOOKUP(B158,'LOC FINAL with new Themes'!A:M,12,0)","v":0},{"$f":"VLOOKUP(B158,'LOC FINAL with new Themes'!A:M,13,0)","v":0}]
[null,"Consolidated City (2010 Census)","Consolidated City (2010 Census)","Consolidated City (2010 Census)","Governmental Units ","DOC-Census","Jennifer Holland","Jennifer.L.Holland@census.gov",{"$f":"VLOOKUP(B159,'LOC FINAL with new Themes'!A:M,7,0)","v":0},{"$f":"VLOOKUP(B159,'LOC FINAL with new Themes'!A:M,8,0)","v":0},{"$f":"VLOOKUP(B159,'LOC FINAL with new Themes'!A:M,9,0)","v":0},{"$f":"VLOOKUP(B159,'LOC FINAL with new Themes'!A:M,10,0)","v":0},{"$f":"VLOOKUP(B159,'LOC FINAL with new Themes'!A:M,11,0)","v":0},{"$f":"VLOOKUP(B159,'LOC FINAL with new Themes'!A:M,12,0)","v":0},{"$f":"VLOOKUP(B159,'LOC FINAL with new Themes'!A:M,13,0)","v":0}]
[null,"Consolidated City (Census 2000)","Consolidated City (Census 2000)","Consolidated City (Census 2000)","Governmental Units ","DOC-Census","Jennifer Holland","Jennifer.L.Holland@census.gov",{"$f":"VLOOKUP(B160,'LOC FINAL with new Themes'!A:M,7,0)","v":0},{"$f":"VLOOKUP(B160,'LOC FINAL with new Themes'!A:M,8,0)","v":0},{"$f":"VLOOKUP(B160,'LOC FINAL with new Themes'!A:M,9,0)","v":0},{"$f":"VLOOKUP(B160,'LOC FINAL with new Themes'!A:M,10,0)","v":0},{"$f":"VLOOKUP(B160,'LOC FINAL with new Themes'!A:M,11,0)","v":0},{"$f":"VLOOKUP(B160,'LOC FINAL with new Themes'!A:M,12,0)","v":0},{"$f":"VLOOKUP(B160,'LOC FINAL with new Themes'!A:M,13,0)","v":0}]
[null,"County and Equivalent (2010 Census)","County and Equivalent (2010 Census)","County and Equivalent (2010 Census)","Governmental Units ","DOC-Census","Jennifer Holland","Jennifer.L.Holland@census.gov",{"$f":"VLOOKUP(B161,'LOC FINAL with new Themes'!A:M,7,0)","v":0},{"$f":"VLOOKUP(B161,'LOC FINAL with new Themes'!A:M,8,0)","v":0},{"$f":"VLOOKUP(B161,'LOC FINAL with new Themes'!A:M,9,0)","v":0},{"$f":"VLOOKUP(B161,'LOC FINAL with new Themes'!A:M,10,0)","v":0},{"$f":"VLOOKUP(B161,'LOC FINAL with new Themes'!A:M,11,0)","v":0},{"$f":"VLOOKUP(B161,'LOC FINAL with new Themes'!A:M,12,0)","v":0},{"$f":"VLOOKUP(B161,'LOC FINAL with new Themes'!A:M,13,0)","v":0}]
[null,"County and Equivalent (Census 2000)","County and Equivalent (Census 2000)","County and Equivalent (Census 2000)","Governmental Units ","DOC-Census","Jennifer Holland","Jennifer.L.Holland@census.gov",{"$f":"VLOOKUP(B162,'LOC FINAL with new Themes'!A:M,7,0)","v":0},{"$f":"VLOOKUP(B162,'LOC FINAL with new Themes'!A:M,8,0)","v":0},{"$f":"VLOOKUP(B162,'LOC FINAL with new Themes'!A:M,9,0)","v":0},{"$f":"VLOOKUP(B162,'LOC FINAL with new Themes'!A:M,10,0)","v":0},{"$f":"VLOOKUP(B162,'LOC FINAL with new Themes'!A:M,11,0)","v":0},{"$f":"VLOOKUP(B162,'LOC FINAL with new Themes'!A:M,12,0)","v":0},{"$f":"VLOOKUP(B162,'LOC FINAL with new Themes'!A:M,13,0)","v":0}]
[null,"County Subdivision (2010 Census)","County Subdivision (2010 Census)","County Subdivision (2010 Census)","Governmental Units ","DOC-Census","Jennifer Holland","Jennifer.L.Holland@census.gov",{"$f":"VLOOKUP(B163,'LOC FINAL with new Themes'!A:M,7,0)","v":0},{"$f":"VLOOKUP(B163,'LOC FINAL with new Themes'!A:M,8,0)","v":0},{"$f":"VLOOKUP(B163,'LOC FINAL with new Themes'!A:M,9,0)","v":0},{"$f":"VLOOKUP(B163,'LOC FINAL with new Themes'!A:M,10,0)","v":0},{"$f":"VLOOKUP(B163,'LOC FINAL with new Themes'!A:M,11,0)","v":0},{"$f":"VLOOKUP(B163,'LOC FINAL with new Themes'!A:M,12,0)","v":0},{"$f":"VLOOKUP(B163,'LOC FINAL with new Themes'!A:M,13,0)","v":0}]
[null,"County Subdivision (Census 2000)","County Subdivision (Census 2000)","County Subdivision (Census 2000)","Governmental Units ","DOC-Census","Jennifer Holland","Jennifer.L.Holland@census.gov",{"$f":"VLOOKUP(B164,'LOC FINAL with new Themes'!A:M,7,0)","v":0},{"$f":"VLOOKUP(B164,'LOC FINAL with new Themes'!A:M,8,0)","v":0},{"$f":"VLOOKUP(B164,'LOC FINAL with new Themes'!A:M,9,0)","v":0},{"$f":"VLOOKUP(B164,'LOC FINAL with new Themes'!A:M,10,0)","v":0},{"$f":"VLOOKUP(B164,'LOC FINAL with new Themes'!A:M,11,0)","v":0},{"$f":"VLOOKUP(B164,'LOC FINAL with new Themes'!A:M,12,0)","v":0},{"$f":"VLOOKUP(B164,'LOC FINAL with new Themes'!A:M,13,0)","v":0}]
["Estuarine and Marine Reserves","Estuarine and Marine Reserves",null,"Estuarine and Marine Reserves","Governmental Units ","DOC-NOAA","Heather Sagar","Heather.Sagar@noaa.gov",{"$f":"VLOOKUP(B165,'LOC FINAL with new Themes'!A:M,7,0)","v":0},{"$f":"VLOOKUP(B165,'LOC FINAL with new Themes'!A:M,8,0)","v":0},{"$f":"VLOOKUP(B165,'LOC FINAL with new Themes'!A:M,9,0)","v":0},{"$f":"VLOOKUP(B165,'LOC FINAL with new Themes'!A:M,10,0)","v":0},{"$f":"VLOOKUP(B165,'LOC FINAL with new Themes'!A:M,11,0)","v":0},{"$f":"VLOOKUP(B165,'LOC FINAL with new Themes'!A:M,12,0)","v":0},{"$f":"VLOOKUP(B165,'LOC FINAL with new Themes'!A:M,13,0)","v":0}]
["Fisheries Closure and Habitat Areas","Fisheries Closure and Habitat Areas",null,"Fisheries Closure and Habitat Areas","Governmental Units ","DOC-NOAA","Heather Sagar","Heather.Sagar@noaa.gov",{"$f":"VLOOKUP(B166,'LOC FINAL with new Themes'!A:M,7,0)","v":0},{"$f":"VLOOKUP(B166,'LOC FINAL with new Themes'!A:M,8,0)","v":0},{"$f":"VLOOKUP(B166,'LOC FINAL with new Themes'!A:M,9,0)","v":0},{"$f":"VLOOKUP(B166,'LOC FINAL with new Themes'!A:M,10,0)","v":0},{"$f":"VLOOKUP(B166,'LOC FINAL with new Themes'!A:M,11,0)","v":0},{"$f":"VLOOKUP(B166,'LOC FINAL with new Themes'!A:M,12,0)","v":0},{"$f":"VLOOKUP(B166,'LOC FINAL with new Themes'!A:M,13,0)","v":0}]
[null,"Metropolitan Division (2010 Census)","Metropolitan Division (2010 Census)","Metropolitan Division (2010 Census)","Governmental Units ","DOC-Census","Jennifer Holland","Jennifer.L.Holland@census.gov",{"$f":"VLOOKUP(B167,'LOC FINAL with new Themes'!A:M,7,0)","v":0},{"$f":"VLOOKUP(B167,'LOC FINAL with new Themes'!A:M,8,0)","v":0},{"$f":"VLOOKUP(B167,'LOC FINAL with new Themes'!A:M,9,0)","v":0},{"$f":"VLOOKUP(B167,'LOC FINAL with new Themes'!A:M,10,0)","v":0},{"$f":"VLOOKUP(B167,'LOC FINAL with new Themes'!A:M,11,0)","v":0},{"$f":"VLOOKUP(B167,'LOC FINAL with new Themes'!A:M,12,0)","v":0},{"$f":"VLOOKUP(B167,'LOC FINAL with new Themes'!A:M,13,0)","v":0}]
[null,"Metropolitan Division (2010 Census)","Metropolitan Division (2010 Census)","Metropolitan Division (2010 Census)","Governmental Units ","DOC-Census","Jennifer Holland","Jennifer.L.Holland@census.gov",{"$f":"VLOOKUP(B168,'LOC FINAL with new Themes'!A:M,7,0)","v":0},{"$f":"VLOOKUP(B168,'LOC FINAL with new Themes'!A:M,8,0)","v":0},{"$f":"VLOOKUP(B168,'LOC FINAL with new Themes'!A:M,9,0)","v":0},{"$f":"VLOOKUP(B168,'LOC FINAL with new Themes'!A:M,10,0)","v":0},{"$f":"VLOOKUP(B168,'LOC FINAL with new Themes'!A:M,11,0)","v":0},{"$f":"VLOOKUP(B168,'LOC FINAL with new Themes'!A:M,12,0)","v":0},{"$f":"VLOOKUP(B168,'LOC FINAL with new Themes'!A:M,13,0)","v":0}]
[null,"New England City and Town Area (2010 Census)","New England City and Town Area (2010 Census)","New England City and Town Area (2010 Census)","Governmental Units ","DOC-Census","Jennifer Holland","Jennifer.L.Holland@census.gov",{"$f":"VLOOKUP(B169,'LOC FINAL with new Themes'!A:M,7,0)","v":0},{"$f":"VLOOKUP(B169,'LOC FINAL with new Themes'!A:M,8,0)","v":0},{"$f":"VLOOKUP(B169,'LOC FINAL with new Themes'!A:M,9,0)","v":0},{"$f":"VLOOKUP(B169,'LOC FINAL with new Themes'!A:M,10,0)","v":0},{"$f":"VLOOKUP(B169,'LOC FINAL with new Themes'!A:M,11,0)","v":0},{"$f":"VLOOKUP(B169,'LOC FINAL with new Themes'!A:M,12,0)","v":0},{"$f":"VLOOKUP(B169,'LOC FINAL with new Themes'!A:M,13,0)","v":0}]
[null,"New England City and Town Area Division (2010 Census)","New England City and Town Area Division (2010 Census)","New England City and Town Area Division (2010 Census)","Governmental Units ","DOC-Census","Jennifer Holland","Jennifer.L.Holland@census.gov",{"$f":"VLOOKUP(B170,'LOC FINAL with new Themes'!A:M,7,0)","v":0},{"$f":"VLOOKUP(B170,'LOC FINAL with new Themes'!A:M,8,0)","v":0},{"$f":"VLOOKUP(B170,'LOC FINAL with new Themes'!A:M,9,0)","v":0},{"$f":"VLOOKUP(B170,'LOC FINAL with new Themes'!A:M,10,0)","v":0},{"$f":"VLOOKUP(B170,'LOC FINAL with new Themes'!A:M,11,0)","v":0},{"$f":"VLOOKUP(B170,'LOC FINAL with new Themes'!A:M,12,0)","v":0},{"$f":"VLOOKUP(B170,'LOC FINAL with new Themes'!A:M,13,0)","v":0}]
["Place and MCD Boundaries","Place (2010 Census)","Place (2010 Census)","Place (2010 Census)","Governmental Units ","DOC-Census","Jennifer Holland","Jennifer.L.Holland@census.gov",{"$f":"VLOOKUP(B171,'LOC FINAL with new Themes'!A:M,7,0)","v":0},{"$f":"VLOOKUP(B171,'LOC FINAL with new Themes'!A:M,8,0)","v":0},{"$f":"VLOOKUP(B171,'LOC FINAL with new Themes'!A:M,9,0)","v":0},{"$f":"VLOOKUP(B171,'LOC FINAL with new Themes'!A:M,10,0)","v":0},{"$f":"VLOOKUP(B171,'LOC FINAL with new Themes'!A:M,11,0)","v":0},{"$f":"VLOOKUP(B171,'LOC FINAL with new Themes'!A:M,12,0)","v":0},{"$f":"VLOOKUP(B171,'LOC FINAL with new Themes'!A:M,13,0)","v":0}]
[null,"Place (Census 2000)","Place (Census 2000)","Place (Census 2000)","Governmental Units ","DOC-Census","Jennifer Holland","Jennifer.L.Holland@census.gov",{"$f":"VLOOKUP(B172,'LOC FINAL with new Themes'!A:M,7,0)","v":0},{"$f":"VLOOKUP(B172,'LOC FINAL with new Themes'!A:M,8,0)","v":0},{"$f":"VLOOKUP(B172,'LOC FINAL with new Themes'!A:M,9,0)","v":0},{"$f":"VLOOKUP(B172,'LOC FINAL with new Themes'!A:M,10,0)","v":0},{"$f":"VLOOKUP(B172,'LOC FINAL with new Themes'!A:M,11,0)","v":0},{"$f":"VLOOKUP(B172,'LOC FINAL with new Themes'!A:M,12,0)","v":0},{"$f":"VLOOKUP(B172,'LOC FINAL with new Themes'!A:M,13,0)","v":0}]
["Sanctuaries","Sanctuaries",null,"Sanctuaries","Governmental Units ","DOC-NOAA","Christine Taylor","Christine.Taylor@noaa.gov",{"$f":"VLOOKUP(B173,'LOC FINAL with new Themes'!A:M,7,0)","v":0},{"$f":"VLOOKUP(B173,'LOC FINAL with new Themes'!A:M,8,0)","v":0},{"$f":"VLOOKUP(B173,'LOC FINAL with new Themes'!A:M,9,0)","v":0},{"$f":"VLOOKUP(B173,'LOC FINAL with new Themes'!A:M,10,0)","v":0},{"$f":"VLOOKUP(B173,'LOC FINAL with new Themes'!A:M,11,0)","v":0},{"$f":"VLOOKUP(B173,'LOC FINAL with new Themes'!A:M,12,0)","v":0},{"$f":"VLOOKUP(B173,'LOC FINAL with new Themes'!A:M,13,0)","v":0}]
["State(+ Territories) Boundaries","State and Equivalent  (2010 Census)","State and Equivalent  (2010 Census)","State and Equivalent  (2010 Census)","Governmental Units ","DOC-Census","Jennifer Holland","Jennifer.L.Holland@census.gov",{"$f":"VLOOKUP(B174,'LOC FINAL with new Themes'!A:M,7,0)","v":0},{"$f":"VLOOKUP(B174,'LOC FINAL with new Themes'!A:M,8,0)","v":0},{"$f":"VLOOKUP(B174,'LOC FINAL with new Themes'!A:M,9,0)","v":0},{"$f":"VLOOKUP(B174,'LOC FINAL with new Themes'!A:M,10,0)","v":0},{"$f":"VLOOKUP(B174,'LOC FINAL with new Themes'!A:M,11,0)","v":0},{"$f":"VLOOKUP(B174,'LOC FINAL with new Themes'!A:M,12,0)","v":0},{"$f":"VLOOKUP(B174,'LOC FINAL with new Themes'!A:M,13,0)","v":0}]
[null,"State and Equivalent  (Census 2000)","State and Equivalent  (Census 2000)","State and Equivalent  (Census 2000)","Governmental Units ","DOC-Census","Jennifer Holland","Jennifer.L.Holland@census.gov",{"$f":"VLOOKUP(B175,'LOC FINAL with new Themes'!A:M,7,0)","v":0},{"$f":"VLOOKUP(B175,'LOC FINAL with new Themes'!A:M,8,0)","v":0},{"$f":"VLOOKUP(B175,'LOC FINAL with new Themes'!A:M,9,0)","v":0},{"$f":"VLOOKUP(B175,'LOC FINAL with new Themes'!A:M,10,0)","v":0},{"$f":"VLOOKUP(B175,'LOC FINAL with new Themes'!A:M,11,0)","v":0},{"$f":"VLOOKUP(B175,'LOC FINAL with new Themes'!A:M,12,0)","v":0},{"$f":"VLOOKUP(B175,'LOC FINAL with new Themes'!A:M,13,0)","v":0}]
[null,"State Legislative District (Lower Chamber) (2010 Census)","State Legislative District (Lower Chamber) (2010 Census)","State Legislative District (Lower Chamber) (2010 Census)","Governmental Units ","DOC-Census","Jennifer Holland","Jennifer.L.Holland@census.gov",{"$f":"VLOOKUP(B176,'LOC FINAL with new Themes'!A:M,7,0)","v":0},{"$f":"VLOOKUP(B176,'LOC FINAL with new Themes'!A:M,8,0)","v":0},{"$f":"VLOOKUP(B176,'LOC FINAL with new Themes'!A:M,9,0)","v":0},{"$f":"VLOOKUP(B176,'LOC FINAL with new Themes'!A:M,10,0)","v":0},{"$f":"VLOOKUP(B176,'LOC FINAL with new Themes'!A:M,11,0)","v":0},{"$f":"VLOOKUP(B176,'LOC FINAL with new Themes'!A:M,12,0)","v":0},{"$f":"VLOOKUP(B176,'LOC FINAL with new Themes'!A:M,13,0)","v":0}]
[null,"State Legislative District (Lower Chamber) (Census 2000)","State Legislative District (Lower Chamber) (Census 2000)","State Legislative District (Lower Chamber) (Census 2000)","Governmental Units ","DOC-Census","Jennifer Holland","Jennifer.L.Holland@census.gov",{"$f":"VLOOKUP(B177,'LOC FINAL with new Themes'!A:M,7,0)","v":0},{"$f":"VLOOKUP(B177,'LOC FINAL with new Themes'!A:M,8,0)","v":0},{"$f":"VLOOKUP(B177,'LOC FINAL with new Themes'!A:M,9,0)","v":0},{"$f":"VLOOKUP(B177,'LOC FINAL with new Themes'!A:M,10,0)","v":0},{"$f":"VLOOKUP(B177,'LOC FINAL with new Themes'!A:M,11,0)","v":0},{"$f":"VLOOKUP(B177,'LOC FINAL with new Themes'!A:M,12,0)","v":0},{"$f":"VLOOKUP(B177,'LOC FINAL with new Themes'!A:M,13,0)","v":0}]
[null,"State Legislative District (Upper Chamber) (2010 Census)","State Legislative District (Upper Chamber) (2010 Census)","State Legislative District (Upper Chamber) (2010 Census)","Governmental Units ","DOC-Census","Jennifer Holland","Jennifer.L.Holland@census.gov",{"$f":"VLOOKUP(B178,'LOC FINAL with new Themes'!A:M,7,0)","v":0},{"$f":"VLOOKUP(B178,'LOC FINAL with new Themes'!A:M,8,0)","v":0},{"$f":"VLOOKUP(B178,'LOC FINAL with new Themes'!A:M,9,0)","v":0},{"$f":"VLOOKUP(B178,'LOC FINAL with new Themes'!A:M,10,0)","v":0},{"$f":"VLOOKUP(B178,'LOC FINAL with new Themes'!A:M,11,0)","v":0},{"$f":"VLOOKUP(B178,'LOC FINAL with new Themes'!A:M,12,0)","v":0},{"$f":"VLOOKUP(B178,'LOC FINAL with new Themes'!A:M,13,0)","v":0}]
[null,"State Legislative District (Upper Chamber) (Census 2000)","State Legislative District (Upper Chamber) (Census 2000)","State Legislative District (Upper Chamber) (Census 2000)","Governmental Units ","DOC-Census","Jennifer Holland","Jennifer.L.Holland@census.gov",{"$f":"VLOOKUP(B179,'LOC FINAL with new Themes'!A:M,7,0)","v":0},{"$f":"VLOOKUP(B179,'LOC FINAL with new Themes'!A:M,8,0)","v":0},{"$f":"VLOOKUP(B179,'LOC FINAL with new Themes'!A:M,9,0)","v":0},{"$f":"VLOOKUP(B179,'LOC FINAL with new Themes'!A:M,10,0)","v":0},{"$f":"VLOOKUP(B179,'LOC FINAL with new Themes'!A:M,11,0)","v":0},{"$f":"VLOOKUP(B179,'LOC FINAL with new Themes'!A:M,12,0)","v":0},{"$f":"VLOOKUP(B179,'LOC FINAL with new Themes'!A:M,13,0)","v":0}]
[null,"Subbarrio (2010 Census)","Subbarrio (2010 Census)","Subbarrio (2010 Census)","Governmental Units ","DOC-Census","Jennifer Holland","Jennifer.L.Holland@census.gov",{"$f":"VLOOKUP(B180,'LOC FINAL with new Themes'!A:M,7,0)","v":0},{"$f":"VLOOKUP(B180,'LOC FINAL with new Themes'!A:M,8,0)","v":0},{"$f":"VLOOKUP(B180,'LOC FINAL with new Themes'!A:M,9,0)","v":0},{"$f":"VLOOKUP(B180,'LOC FINAL with new Themes'!A:M,10,0)","v":0},{"$f":"VLOOKUP(B180,'LOC FINAL with new Themes'!A:M,11,0)","v":0},{"$f":"VLOOKUP(B180,'LOC FINAL with new Themes'!A:M,12,0)","v":0},{"$f":"VLOOKUP(B180,'LOC FINAL with new Themes'!A:M,13,0)","v":0}]
[null,"Subbarrio (Census 2000)","Subbarrio (Census 2000)","Subbarrio (Census 2000)","Governmental Units ","DOC-Census","Jennifer Holland","Jennifer.L.Holland@census.gov",{"$f":"VLOOKUP(B181,'LOC FINAL with new Themes'!A:M,7,0)","v":0},{"$f":"VLOOKUP(B181,'LOC FINAL with new Themes'!A:M,8,0)","v":0},{"$f":"VLOOKUP(B181,'LOC FINAL with new Themes'!A:M,9,0)","v":0},{"$f":"VLOOKUP(B181,'LOC FINAL with new Themes'!A:M,10,0)","v":0},{"$f":"VLOOKUP(B181,'LOC FINAL with new Themes'!A:M,11,0)","v":0},{"$f":"VLOOKUP(B181,'LOC FINAL with new Themes'!A:M,12,0)","v":0},{"$f":"VLOOKUP(B181,'LOC FINAL with new Themes'!A:M,13,0)","v":0}]
[null,"Urban Area (Corrected Census 2000)","Urban Area (Corrected Census 2000)","Urban Area (Corrected Census 2000)","Governmental Units ","DOC-Census","Jennifer Holland","Jennifer.L.Holland@census.gov",{"$f":"VLOOKUP(B182,'LOC FINAL with new Themes'!A:M,7,0)","v":0},{"$f":"VLOOKUP(B182,'LOC FINAL with new Themes'!A:M,8,0)","v":0},{"$f":"VLOOKUP(B182,'LOC FINAL with new Themes'!A:M,9,0)","v":0},{"$f":"VLOOKUP(B182,'LOC FINAL with new Themes'!A:M,10,0)","v":0},{"$f":"VLOOKUP(B182,'LOC FINAL with new Themes'!A:M,11,0)","v":0},{"$f":"VLOOKUP(B182,'LOC FINAL with new Themes'!A:M,12,0)","v":0},{"$f":"VLOOKUP(B182,'LOC FINAL with new Themes'!A:M,13,0)","v":0}]
[{"$f":"SUBTOTAL(3,A148:A182)","v":7},{"$f":"SUBTOTAL(3,B148:B182)","v":35},{"$f":"SUBTOTAL(3,C148:C182)","v":30},{"$f":"SUBTOTAL(3,D148:D182)","v":35},"Governmental Units Count"]
["133 Urban Areas imagery program data","133 Urban Areas imagery program data",null,{"$f":"IF(C184=0,B184,C184)","v":"133 Urban Areas imagery program data"},"Imagery ","DOD-NGA","William Nellist","William.E.Nellist@nga.mil",{"$f":"VLOOKUP(B184,'LOC FINAL with new Themes'!A:M,7,0)","v":0},{"$f":"VLOOKUP(B184,'LOC FINAL with new Themes'!A:M,8,0)","v":0},{"$f":"VLOOKUP(B184,'LOC FINAL with new Themes'!A:M,9,0)","v":0},{"$f":"VLOOKUP(B184,'LOC FINAL with new Themes'!A:M,10,0)","v":0},{"$f":"VLOOKUP(B184,'LOC FINAL with new Themes'!A:M,11,0)","v":0},{"$f":"VLOOKUP(B184,'LOC FINAL with new Themes'!A:M,12,0)","v":0},{"$f":"VLOOKUP(B184,'LOC FINAL with new Themes'!A:M,13,0)","v":0}]
[null,"134 Urban Areas imagery program data",null,"134 Urban Areas imagery program data","Imagery ","DOI-USGS","George Lee","gylee@usgs.gov",{"$f":"VLOOKUP(B185,'LOC FINAL with new Themes'!A:M,7,0)","v":0},{"$f":"VLOOKUP(B185,'LOC FINAL with new Themes'!A:M,8,0)","v":0},{"$f":"VLOOKUP(B185,'LOC FINAL with new Themes'!A:M,9,0)","v":0},{"$f":"VLOOKUP(B185,'LOC FINAL with new Themes'!A:M,10,0)","v":0},{"$f":"VLOOKUP(B185,'LOC FINAL with new Themes'!A:M,11,0)","v":0},{"$f":"VLOOKUP(B185,'LOC FINAL with new Themes'!A:M,12,0)","v":0},{"$f":"VLOOKUP(B185,'LOC FINAL with new Themes'!A:M,13,0)","v":0}]
["ADS40 Hurricane Response 7.5' Quadrangle Mosaics","ADS40 Hurricane Response 7.5' Quadrangle Mosaics",null,"ADS40 Hurricane Response 7.5' Quadrangle Mosaics","Imagery ","DOI-USGS","Jim Mauck","jmauck@usgs.gov",{"$f":"VLOOKUP(B186,'LOC FINAL with new Themes'!A:M,7,0)","v":0},{"$f":"VLOOKUP(B186,'LOC FINAL with new Themes'!A:M,8,0)","v":0},{"$f":"VLOOKUP(B186,'LOC FINAL with new Themes'!A:M,9,0)","v":0},{"$f":"VLOOKUP(B186,'LOC FINAL with new Themes'!A:M,10,0)","v":0},{"$f":"VLOOKUP(B186,'LOC FINAL with new Themes'!A:M,11,0)","v":0},{"$f":"VLOOKUP(B186,'LOC FINAL with new Themes'!A:M,12,0)","v":0},{"$f":"VLOOKUP(B186,'LOC FINAL with new Themes'!A:M,13,0)","v":0}]
["Digital Orthoimage Quarter Quadrangle (DOQQ) Archive","Digital Orthoimage Quarter Quadrangle (DOQQ) Archive",null,"Digital Orthoimage Quarter Quadrangle (DOQQ) Archive","Imagery ","DOI-USGS",null,null,{"$f":"VLOOKUP(B187,'LOC FINAL with new Themes'!A:M,7,0)","v":"DOQQ is static; one data set; this is the POC and data manager. this is the name and maintain three complete with two physically separate on-site and one off-site"},{"$f":"VLOOKUP(B187,'LOC FINAL with new Themes'!A:M,8,0)","v":0},{"$f":"VLOOKUP(B187,'LOC FINAL with new Themes'!A:M,9,0)","v":0},{"$f":"VLOOKUP(B187,'LOC FINAL with new Themes'!A:M,10,0)","v":0},{"$f":"VLOOKUP(B187,'LOC FINAL with new Themes'!A:M,11,0)","v":0},{"$f":"VLOOKUP(B187,'LOC FINAL with new Themes'!A:M,12,0)","v":0},{"$f":"VLOOKUP(B187,'LOC FINAL with new Themes'!A:M,13,0)","v":"S"}]
["Emergency Response Imagery","Emergency Response Imagery","Emergency Response Imagery","Emergency Response Imagery","Imagery ","DOC-NOAA","Mike Aslaksen","mike.Aslaksen@noaa.gov",{"$f":"VLOOKUP(B188,'LOC FINAL with new Themes'!A:M,7,0)","v":"20-Multiple      "},{"$f":"VLOOKUP(B188,'LOC FINAL with new Themes'!A:M,8,0)","v":"No"},{"$f":"VLOOKUP(B188,'LOC FINAL with new Themes'!A:M,9,0)","v":"Yes - email reply from Jon Sellars Jon.Sellars@noaa.gov"},{"$f":"VLOOKUP(B188,'LOC FINAL with new Themes'!A:M,10,0)","v":"- Same for the forest frag."},{"$f":"VLOOKUP(B188,'LOC FINAL with new Themes'!A:M,11,0)","v":"Our data can be accessed through the following links: http://storms.ngs.noaagov/eri_page/index.html Gulf Oil Spill:\nhttp://hdds.usgs.gov/hdds2/pub/data/disaster/201004_Oilspill_GulfOfMexico/data/AERIAL_NOAA\nhttp://hdds.usgs.gov/hdds2/pub/data/disaster/201004_Oilspill_GulfOfMexico/data/AERIAL_NOAA_MOSAIC  Haiti Earthquake:\nhttp://hdds.usgs.gov/hdds2/pub/data/disaster/201001_Earthquake_Haiti/data/AERIAL_NOAA\nhttp://hdds.usgs.gov/hdds2/pub/data/disaster/201001_Earthquake_Haiti/data/AERIAL_NOAA_ORTHO\nMexico Earthquake:\nhttp://hdds.usgs.gov/hdds2/pub/data/disaster/201004_Earthquake_Mexico/data/AERIAL_NOAA_MOSAIC \n\n"},{"$f":"VLOOKUP(B188,'LOC FINAL with new Themes'!A:M,12,0)","v":"Described by storm name, event or location."},{"$f":"VLOOKUP(B188,'LOC FINAL with new Themes'!A:M,13,0)","v":"M "}]
[null,null,"Fire, Detection: AVHRR FIMMA , GOES WF-ABBA","Fire, Detection: AVHRR FIMMA , GOES WF-ABBA","Imagery ","USDA"]
["Landsat geometric/terrain corrected level 1T","Landsat geometric/terrain corrected level 1T","Landsat Terrain Corrected Scenes","Landsat Terrain Corrected Scenes","Imagery ","DOI-USGS","Kristi Kline","kkline@usgs.gov",{"$f":"VLOOKUP(B190,'LOC FINAL with new Themes'!A:M,7,0)","v":"Landsat updates daily; a series of data sets; this is the POC and data manager; this is the name and maintain three complete with two physically separate on-site and one off-site"},{"$f":"VLOOKUP(B190,'LOC FINAL with new Themes'!A:M,8,0)","v":0},{"$f":"VLOOKUP(B190,'LOC FINAL with new Themes'!A:M,9,0)","v":0},{"$f":"VLOOKUP(B190,'LOC FINAL with new Themes'!A:M,10,0)","v":0},{"$f":"VLOOKUP(B190,'LOC FINAL with new Themes'!A:M,11,0)","v":0},{"$f":"VLOOKUP(B190,'LOC FINAL with new Themes'!A:M,12,0)","v":0},{"$f":"VLOOKUP(B190,'LOC FINAL with new Themes'!A:M,13,0)","v":"S"}]
[null,null,"National  Orthoimagery Dataset - National Map","National  Orthoimagery Dataset - National Map","Imagery ","DOI-USGS"]
["National Aerial Photography Program (NAPP) Data Archive","National Aerial Photography Program (NAPP) Data Archive",null,"National Aerial Photography Program (NAPP) Data Archive","Imagery ","DOI-USGS","Wayne Miller","wamiller@usgs.gov",{"$f":"VLOOKUP(B192,'LOC FINAL with new Themes'!A:M,7,0)","v":"NAPP is static; one data set; this is the POC and data manager; this is the name and maintain three complete with two physically separate on-site and one off-site "},{"$f":"VLOOKUP(B192,'LOC FINAL with new Themes'!A:M,8,0)","v":0},{"$f":"VLOOKUP(B192,'LOC FINAL with new Themes'!A:M,9,0)","v":0},{"$f":"VLOOKUP(B192,'LOC FINAL with new Themes'!A:M,10,0)","v":0},{"$f":"VLOOKUP(B192,'LOC FINAL with new Themes'!A:M,11,0)","v":0},{"$f":"VLOOKUP(B192,'LOC FINAL with new Themes'!A:M,12,0)","v":0},{"$f":"VLOOKUP(B192,'LOC FINAL with new Themes'!A:M,13,0)","v":"S"}]
["National Agriculture Imagery Program Data","National Agriculture Imagery Program Data","National Agriculture Imagery Program (NAIP) Archive","National Agriculture Imagery Program (NAIP) Archive","Imagery ","DOI-USGS","Shirley Hall","shirley.hall@wdc.usda.gov",{"$f":"VLOOKUP(B193,'LOC FINAL with new Themes'!A:M,7,0)","v":"Shirley identified Dan Good as new contact 'daniel.good@wdc.usda.gov' - need to follow up with either or both"},{"$f":"VLOOKUP(B193,'LOC FINAL with new Themes'!A:M,8,0)","v":0},{"$f":"VLOOKUP(B193,'LOC FINAL with new Themes'!A:M,9,0)","v":0},{"$f":"VLOOKUP(B193,'LOC FINAL with new Themes'!A:M,10,0)","v":0},{"$f":"VLOOKUP(B193,'LOC FINAL with new Themes'!A:M,11,0)","v":0},{"$f":"VLOOKUP(B193,'LOC FINAL with new Themes'!A:M,12,0)","v":0},{"$f":"VLOOKUP(B193,'LOC FINAL with new Themes'!A:M,13,0)","v":0}]
["National Map Orthoimagery Database (TNM Seamless Server) ","National Map Orthoimagery Database (TNM Seamless Server) ",null,"National Map Orthoimagery Database (TNM Seamless Server) ","Imagery ","DOI-USGS","George Lee","gylee@usgs.gov",{"$f":"VLOOKUP(B194,'LOC FINAL with new Themes'!A:M,7,0)","v":0},{"$f":"VLOOKUP(B194,'LOC FINAL with new Themes'!A:M,8,0)","v":0},{"$f":"VLOOKUP(B194,'LOC FINAL with new Themes'!A:M,9,0)","v":0},{"$f":"VLOOKUP(B194,'LOC FINAL with new Themes'!A:M,10,0)","v":0},{"$f":"VLOOKUP(B194,'LOC FINAL with new Themes'!A:M,11,0)","v":0},{"$f":"VLOOKUP(B194,'LOC FINAL with new Themes'!A:M,12,0)","v":0},{"$f":"VLOOKUP(B194,'LOC FINAL with new Themes'!A:M,13,0)","v":0}]
["National Resource Inventory Imagery","National Resource Inventory Imagery",null,"National Resource Inventory Imagery","Imagery ","USDA-WDC","Jerry Harlow","jerry.harlow@wdc.usda.gov",{"$f":"VLOOKUP(B195,'LOC FINAL with new Themes'!A:M,7,0)","v":"Shirley identified Dan Good as new contact 'daniel.good@wdc.usda.gov' - need to follow up with either or both"},{"$f":"VLOOKUP(B195,'LOC FINAL with new Themes'!A:M,8,0)","v":0},{"$f":"VLOOKUP(B195,'LOC FINAL with new Themes'!A:M,9,0)","v":0},{"$f":"VLOOKUP(B195,'LOC FINAL with new Themes'!A:M,10,0)","v":0},{"$f":"VLOOKUP(B195,'LOC FINAL with new Themes'!A:M,11,0)","v":0},{"$f":"VLOOKUP(B195,'LOC FINAL with new Themes'!A:M,12,0)","v":0},{"$f":"VLOOKUP(B195,'LOC FINAL with new Themes'!A:M,13,0)","v":0}]
[null,null,"Satellite Imagery Archive","Satellite Imagery Archive","Imagery ","USDA-FSA"]
[{"$f":"SUBTOTAL(3,A184:A196)","v":9},{"$f":"SUBTOTAL(3,B184:B196)","v":10},{"$f":"SUBTOTAL(3,C184:C196)","v":6},{"$f":"SUBTOTAL(3,D184:D196)","v":13},"Imagery  Count"]
["Coastal Change Analysis Program (C-CAP)","Coastal Change Analysis Program (C-CAP)",null,{"$f":"IF(C198=0,B198,C198)","v":"Coastal Change Analysis Program (C-CAP)"},"Land Use-Land Cover ","DOC-NOAA","Nate Herold","Nate.Herold@noaa.gov",{"$f":"VLOOKUP(B198,'LOC FINAL with new Themes'!A:M,7,0)","v":"Answer might depend on how we slice and dice it...  C-CAP has up to three separate product lines (regional, high resolution, and a derived forest fragmentation classified data set).  We also have multiple dates of land cover for each of these (which I guess you would probably count).  See the following links (and bullets summarizing) on each.http://www.csc.noaa.gov/landcover\n- Covers CONUS coastal areas.  All areas for 1996, 2001, and 2006.\n- Some select CONUS geographies (WA, DE, MD, and VA) also have a 1992 date.\n- Covers state of Hawaii for 1992, 2001, and 2006.\n- includes individual dates and files highlighting changes between dates.\n\nhttp://www.csc.noaa.gov/digitalcoast/data/forestfrag/index.html\n- Covers CONUS coastal areas.  All areas for 1996, 2001, and 2006.\n- Other dates and geographies not currently included.\n\nhttp://www.csc.noaa.gov/digitalcoast/data/ccaphighres/index.html\n- Covers project level areas (year depends on geography, etc.)\n- Primarily data in the pacific (Hawaii and territories of American Samoa, Guam, and CNMI), as well as the USVIs, Jobos Bay Puerto Rico, and Santa Cruz area in CA.\n \n"},{"$f":"VLOOKUP(B198,'LOC FINAL with new Themes'!A:M,8,0)","v":"Yes"},{"$f":"VLOOKUP(B198,'LOC FINAL with new Themes'!A:M,9,0)","v":"Yes"},{"$f":"VLOOKUP(B198,'LOC FINAL with new Themes'!A:M,10,0)","v":"- The CONUS products are updated approximately every five years (we are currently working on a 2010/2011 data set, to add to the above time series)."},{"$f":"VLOOKUP(B198,'LOC FINAL with new Themes'!A:M,11,0)","v":"Yes.  We maintain and serve all of our data (at above addresses), and archive with NOAA's National Oceanic Data Center (NODC).  We consider the dates listed above as current data sets, as part of the data we produce is tracking and providing change data as well."},{"$f":"VLOOKUP(B198,'LOC FINAL with new Themes'!A:M,12,0)","v":"Not really...  Maybe the generic coastal land cover.  It is also very closely related and feeds into the National Land Cover Database (NLCD), which is a national land cover product developed by the Multi-Resolution Land Characteristics (MRLC) consortium.  this is an effort lead by the USGS."},{"$f":"VLOOKUP(B198,'LOC FINAL with new Themes'!A:M,13,0)","v":"M "}]
[null,null,"Crops: Cropland Data Layer","Crops: Cropland Data Layer","Land Use-Land Cover ","USDA-NASS"]
[null,null,"Earth Cover, Land: MODIS-based Land Products","Earth Cover, Land: MODIS-based Land Products","Land Use-Land Cover ","USDA -FS (Along with USGS)"]
[null,null,"Earth Cover, Vegetation, Forest: Forest Biomass, Types, Type Groups","Earth Cover, Vegetation, Forest: Forest Biomass, Types, Type Groups","Land Use-Land Cover ","USDA-FS"]
[null,null,"Earth Cover, Vegetation: Percent Forest Canopy","Earth Cover, Vegetation: Percent Forest Canopy","Land Use-Land Cover ","USDA-FS"]
[null,null,"Fire Severity: Monitoring Trends in Burn Severity (MTBS)","Fire Severity: Monitoring Trends in Burn Severity (MTBS)","Land Use-Land Cover ","USDA -FS (Along with USGS)"]
[null,null,"Fire, Detection: Daily Active Fire Mapping","Fire, Detection: Daily Active Fire Mapping","Land Use-Land Cover ","USDA"]
[null,null,"Land Cover Strata Dataset","Land Cover Strata Dataset","Land Use-Land Cover ","USDA-NASS"]
["LANDFIRE Dataset","LANDFIRE Dataset","Land Fire Dataset","Land Fire Dataset","Land Use-Land Cover ",null,null,0,{"$f":"VLOOKUP(B206,'LOC FINAL with new Themes'!A:M,7,0)","v":0},{"$f":"VLOOKUP(B206,'LOC FINAL with new Themes'!A:M,8,0)","v":0},{"$f":"VLOOKUP(B206,'LOC FINAL with new Themes'!A:M,9,0)","v":0},{"$f":"VLOOKUP(B206,'LOC FINAL with new Themes'!A:M,10,0)","v":0},{"$f":"VLOOKUP(B206,'LOC FINAL with new Themes'!A:M,11,0)","v":0},{"$f":"VLOOKUP(B206,'LOC FINAL with new Themes'!A:M,12,0)","v":0},{"$f":"VLOOKUP(B206,'LOC FINAL with new Themes'!A:M,13,0)","v":0}]
["National Land Cover Dataset (NLCD)","National Land Cover Dataset (NLCD)","National Land Cover Dataset - GIRAS - 1975","National Land Cover Dataset - GIRAS - 1975","Land Use-Land Cover ","DOI-USGS","Colin Homer","homer@usgs.gov",{"$f":"VLOOKUP(B207,'LOC FINAL with new Themes'!A:M,7,0)","v":"The table below summarizes NLCD products available for download from the MRLC website http://www.mrlc.gov/ "},{"$f":"VLOOKUP(B207,'LOC FINAL with new Themes'!A:M,8,0)","v":"No.  The \"manager\" of the data is Jon Dewitz. \nContact Information -   \nJon Dewitz\ndewitz@usgs.gov\n605-594-2715\nNLCD Quality Supervisor\nUSGS Earth Resources Observation and Science Center (EROS)\nMundt Federal Building\n47914 252nd St.\nSioux Falls, SD 57198\nfax 605-594-6529\n"},{"$f":"VLOOKUP(B207,'LOC FINAL with new Themes'!A:M,9,0)","v":"Joyce Fry is the POC. \nContact information - \nJoyce Fry, Geographer\nUnited States Geological Survey (USGS)\nEarth Resources Observation and  Science (EROS) Center\nMundt Federal Building\n47914 252nd Street\nSioux Falls, South Dakota 57198\n(P)  605.594.2739\n(F)  605.594.6529\n(e)  jfry@usgs.gov \n"},{"$f":"VLOOKUP(B207,'LOC FINAL with new Themes'!A:M,10,0)","v":"Every 5 years"},{"$f":"VLOOKUP(B207,'LOC FINAL with new Themes'!A:M,11,0)","v":"Yes, there is an archive/backup of the dataset through the EROS Long Term Archive (LTA) group.  I will need to get back to if you need additional information regarding the archive process. "},{"$f":"VLOOKUP(B207,'LOC FINAL with new Themes'!A:M,12,0)","v":"National Land Cover Database or NLCD along with the era number, either 1992 or 2001, or 2006. "},{"$f":"VLOOKUP(B207,'LOC FINAL with new Themes'!A:M,13,0)","v":"S"}]
[null,null,"National Land Cover Dataset - National Map","National Land Cover Dataset - National Map","Land Use-Land Cover ","DOI-USGS"]
[null,null,"National Land Cover Dataset - National Map - 1991","National Land Cover Dataset - National Map - 1991","Land Use-Land Cover ","DOI-USGS"]
[null,null,"National Land Cover Dataset - National Map - 2001","National Land Cover Dataset - National Map - 2001","Land Use-Land Cover ","DOI-USGS"]
[null,null,"National Land Cover Dataset - National Map 2006","National Land Cover Dataset - National Map 2006","Land Use-Land Cover ","DOI-USGS"]
["National Land Cover Dataset (NLCD)","National Land Cover Dataset (NLCD)","National Land Cover Dataset (NLCD)","National Land Cover Dataset (NLCD)","Land Use-Land Cover ","DOI-USGS","Colin Homer","homer@usgs.gov",{"$f":"VLOOKUP(B212,'LOC FINAL with new Themes'!A:M,7,0)","v":"The table below summarizes NLCD products available for download from the MRLC website http://www.mrlc.gov/ "},{"$f":"VLOOKUP(B212,'LOC FINAL with new Themes'!A:M,8,0)","v":"No.  The \"manager\" of the data is Jon Dewitz. \nContact Information -   \nJon Dewitz\ndewitz@usgs.gov\n605-594-2715\nNLCD Quality Supervisor\nUSGS Earth Resources Observation and Science Center (EROS)\nMundt Federal Building\n47914 252nd St.\nSioux Falls, SD 57198\nfax 605-594-6529\n"},{"$f":"VLOOKUP(B212,'LOC FINAL with new Themes'!A:M,9,0)","v":"Joyce Fry is the POC. \nContact information - \nJoyce Fry, Geographer\nUnited States Geological Survey (USGS)\nEarth Resources Observation and  Science (EROS) Center\nMundt Federal Building\n47914 252nd Street\nSioux Falls, South Dakota 57198\n(P)  605.594.2739\n(F)  605.594.6529\n(e)  jfry@usgs.gov \n"},{"$f":"VLOOKUP(B212,'LOC FINAL with new Themes'!A:M,10,0)","v":"Every 5 years"},{"$f":"VLOOKUP(B212,'LOC FINAL with new Themes'!A:M,11,0)","v":"Yes, there is an archive/backup of the dataset through the EROS Long Term Archive (LTA) group.  I will need to get back to if you need additional information regarding the archive process. "},{"$f":"VLOOKUP(B212,'LOC FINAL with new Themes'!A:M,12,0)","v":"National Land Cover Database or NLCD along with the era number, either 1992 or 2001, or 2006. "},{"$f":"VLOOKUP(B212,'LOC FINAL with new Themes'!A:M,13,0)","v":"S"}]
[null,null,"National Land Cover Percent Canopy - National Map - 1991","National Land Cover Percent Canopy - National Map - 1991","Land Use-Land Cover ","DOI-USGS"]
[null,null,"National Land Cover Percent Imperviousness - National Map - 2001","National Land Cover Percent Imperviousness - National Map - 2001","Land Use-Land Cover ","DOI-USGS"]
[null,null,"National Land Cover Percent Imperviousness - National Map - 2006","National Land Cover Percent Imperviousness - National Map - 2006","Land Use-Land Cover ","DOI-USGS"]
["National Parks Data","National Parks Data","National Parks Data","National Parks Data","Land Use-Land Cover ","DOI-NPS","Roger Johnson ","Roger_M_Johnson@nps.gov",{"$f":"VLOOKUP(B216,'LOC FINAL with new Themes'!A:M,7,0)","v":"undeliverable email- neeed to identify new contact"},{"$f":"VLOOKUP(B216,'LOC FINAL with new Themes'!A:M,8,0)","v":0},{"$f":"VLOOKUP(B216,'LOC FINAL with new Themes'!A:M,9,0)","v":0},{"$f":"VLOOKUP(B216,'LOC FINAL with new Themes'!A:M,10,0)","v":0},{"$f":"VLOOKUP(B216,'LOC FINAL with new Themes'!A:M,11,0)","v":0},{"$f":"VLOOKUP(B216,'LOC FINAL with new Themes'!A:M,12,0)","v":0},{"$f":"VLOOKUP(B216,'LOC FINAL with new Themes'!A:M,13,0)","v":0}]
[{"$f":"SUBTOTAL(3,A198:A216)","v":5},{"$f":"SUBTOTAL(3,B198:B216)","v":5},{"$f":"SUBTOTAL(3,C198:C216)","v":18},{"$f":"SUBTOTAL(3,D198:D216)","v":19},"Land Use-Land Cover  Count"]
["Assisted Housing (census geography or point-based) see http://www.huduser.org/picture2000/","Assisted Housing (census geography or point-based)",null,{"$f":"IF(C218=0,B218,C218)","v":"Assisted Housing (census geography or point-based)"},"Real Property","HUD","Jon Sperling","jon.sperling@hud.gov",{"$f":"VLOOKUP(B218,'LOC FINAL with new Themes'!A:M,7,0)","v":0},{"$f":"VLOOKUP(B218,'LOC FINAL with new Themes'!A:M,8,0)","v":0},{"$f":"VLOOKUP(B218,'LOC FINAL with new Themes'!A:M,9,0)","v":0},{"$f":"VLOOKUP(B218,'LOC FINAL with new Themes'!A:M,10,0)","v":0},{"$f":"VLOOKUP(B218,'LOC FINAL with new Themes'!A:M,11,0)","v":0},{"$f":"VLOOKUP(B218,'LOC FINAL with new Themes'!A:M,12,0)","v":0},{"$f":"VLOOKUP(B218,'LOC FINAL with new Themes'!A:M,13,0)","v":0}]
["Enterprise Zones, Empowerment Communities, Revitalization Areas, Qualified Census Tracts, etc.  (census geography based)","Enterprise Zones, Empowerment Communities, Revitalization Areas, Qualified Census Tracts, etc.  (census geography based)",null,"Enterprise Zones, Empowerment Communities, Revitalization Areas, Qualified Census Tracts, etc.  (census geography based)","Real Property","HUD","Jon Sperling","jon.sperling@hud.gov",{"$f":"VLOOKUP(B219,'LOC FINAL with new Themes'!A:M,7,0)","v":0},{"$f":"VLOOKUP(B219,'LOC FINAL with new Themes'!A:M,8,0)","v":0},{"$f":"VLOOKUP(B219,'LOC FINAL with new Themes'!A:M,9,0)","v":0},{"$f":"VLOOKUP(B219,'LOC FINAL with new Themes'!A:M,10,0)","v":0},{"$f":"VLOOKUP(B219,'LOC FINAL with new Themes'!A:M,11,0)","v":0},{"$f":"VLOOKUP(B219,'LOC FINAL with new Themes'!A:M,12,0)","v":0},{"$f":"VLOOKUP(B219,'LOC FINAL with new Themes'!A:M,13,0)","v":0}]
["Federal building location point ","Federal building location point ","Federal building location point ","Federal building location point ","Real Property ","GSA","Sandra Downie","sandra.downie@gsa.gov",{"$f":"VLOOKUP(B220,'LOC FINAL with new Themes'!A:M,7,0)","v":0},{"$f":"VLOOKUP(B220,'LOC FINAL with new Themes'!A:M,8,0)","v":0},{"$f":"VLOOKUP(B220,'LOC FINAL with new Themes'!A:M,9,0)","v":0},{"$f":"VLOOKUP(B220,'LOC FINAL with new Themes'!A:M,10,0)","v":0},{"$f":"VLOOKUP(B220,'LOC FINAL with new Themes'!A:M,11,0)","v":0},{"$f":"VLOOKUP(B220,'LOC FINAL with new Themes'!A:M,12,0)","v":0},{"$f":"VLOOKUP(B220,'LOC FINAL with new Themes'!A:M,13,0)","v":0}]
["Federal building location polygon","Federal building location polygon","Federal building location polygon","Federal building location polygon","Real Property ","GSA","Sandra Downie","sandra.downie@gsa.gov",{"$f":"VLOOKUP(B221,'LOC FINAL with new Themes'!A:M,7,0)","v":0},{"$f":"VLOOKUP(B221,'LOC FINAL with new Themes'!A:M,8,0)","v":0},{"$f":"VLOOKUP(B221,'LOC FINAL with new Themes'!A:M,9,0)","v":0},{"$f":"VLOOKUP(B221,'LOC FINAL with new Themes'!A:M,10,0)","v":0},{"$f":"VLOOKUP(B221,'LOC FINAL with new Themes'!A:M,11,0)","v":0},{"$f":"VLOOKUP(B221,'LOC FINAL with new Themes'!A:M,12,0)","v":0},{"$f":"VLOOKUP(B221,'LOC FINAL with new Themes'!A:M,13,0)","v":0}]
["Federal land area facility location point","Federal land area facility location point","Federal land area facility location point","Federal land area facility location point","Real Property ","GSA","Sandra Downie","sandra.downie@gsa.gov",{"$f":"VLOOKUP(B222,'LOC FINAL with new Themes'!A:M,7,0)","v":0},{"$f":"VLOOKUP(B222,'LOC FINAL with new Themes'!A:M,8,0)","v":0},{"$f":"VLOOKUP(B222,'LOC FINAL with new Themes'!A:M,9,0)","v":0},{"$f":"VLOOKUP(B222,'LOC FINAL with new Themes'!A:M,10,0)","v":0},{"$f":"VLOOKUP(B222,'LOC FINAL with new Themes'!A:M,11,0)","v":0},{"$f":"VLOOKUP(B222,'LOC FINAL with new Themes'!A:M,12,0)","v":0},{"$f":"VLOOKUP(B222,'LOC FINAL with new Themes'!A:M,13,0)","v":0}]
["Federal land area facility location polygon","Federal land area facility location polygon","Federal land area facility location polygon","Federal land area facility location polygon","Real Property ","GSA","Sandra Downie","sandra.downie@gsa.gov",{"$f":"VLOOKUP(B223,'LOC FINAL with new Themes'!A:M,7,0)","v":0},{"$f":"VLOOKUP(B223,'LOC FINAL with new Themes'!A:M,8,0)","v":0},{"$f":"VLOOKUP(B223,'LOC FINAL with new Themes'!A:M,9,0)","v":0},{"$f":"VLOOKUP(B223,'LOC FINAL with new Themes'!A:M,10,0)","v":0},{"$f":"VLOOKUP(B223,'LOC FINAL with new Themes'!A:M,11,0)","v":0},{"$f":"VLOOKUP(B223,'LOC FINAL with new Themes'!A:M,12,0)","v":0},{"$f":"VLOOKUP(B223,'LOC FINAL with new Themes'!A:M,13,0)","v":0}]
["National Map - Structures Dataset","National Map - Structures Dataset","National Structures Dataset - National Map","National Structures Dataset - National Map","Real Property ","DOI-USGS","Paul Wiese","pmwiese@usgs.gov",{"$f":"VLOOKUP(B224,'LOC FINAL with new Themes'!A:M,7,0)","v":"National Map updates monthly; a series of data sets; this is the POC and data manager; this is the name and maintain three complete with two physically separate on-site and one off-site"},{"$f":"VLOOKUP(B224,'LOC FINAL with new Themes'!A:M,8,0)","v":0},{"$f":"VLOOKUP(B224,'LOC FINAL with new Themes'!A:M,9,0)","v":0},{"$f":"VLOOKUP(B224,'LOC FINAL with new Themes'!A:M,10,0)","v":0},{"$f":"VLOOKUP(B224,'LOC FINAL with new Themes'!A:M,11,0)","v":0},{"$f":"VLOOKUP(B224,'LOC FINAL with new Themes'!A:M,12,0)","v":0},{"$f":"VLOOKUP(B224,'LOC FINAL with new Themes'!A:M,13,0)","v":"S"}]
[{"$f":"SUBTOTAL(3,A218:A224)","v":7},{"$f":"SUBTOTAL(3,B218:B224)","v":7},{"$f":"SUBTOTAL(3,C218:C224)","v":5},{"$f":"SUBTOTAL(3,D218:D224)","v":7},"Real Property Count"]
[null,"Military Installation","Military Installation",{"$f":"IF(C226=0,B226,C226)","v":"Military Installation"},"Real Property\nCultural & Demographic Statistics","DOC-Census","Jennifer Holland","Jennifer.L.Holland@census.gov",{"$f":"VLOOKUP(B226,'LOC FINAL with new Themes'!A:M,7,0)","v":0},{"$f":"VLOOKUP(B226,'LOC FINAL with new Themes'!A:M,8,0)","v":0},{"$f":"VLOOKUP(B226,'LOC FINAL with new Themes'!A:M,9,0)","v":0},{"$f":"VLOOKUP(B226,'LOC FINAL with new Themes'!A:M,10,0)","v":0},{"$f":"VLOOKUP(B226,'LOC FINAL with new Themes'!A:M,11,0)","v":0},{"$f":"VLOOKUP(B226,'LOC FINAL with new Themes'!A:M,12,0)","v":0},{"$f":"VLOOKUP(B226,'LOC FINAL with new Themes'!A:M,13,0)","v":0}]
[{"$f":"SUBTOTAL(3,A226:A226)","v":0},{"$f":"SUBTOTAL(3,B226:B226)","v":1},{"$f":"SUBTOTAL(3,C226:C226)","v":1},{"$f":"SUBTOTAL(3,D226:D226)","v":1},"Real Property\nCultural & Demographic Statistics Count"]
["Common Resource Area (CRA)","Common Resource Area (CRA)","Common Resource Area (CRA)",{"$f":"IF(C228=0,B228,C228)","v":"Common Resource Area (CRA)"},"Soils ","USDA","Chris W. Smith","Christopherw.Smith@wdc.usda.gov",{"$f":"VLOOKUP(B228,'LOC FINAL with new Themes'!A:M,7,0)","v":0},{"$f":"VLOOKUP(B228,'LOC FINAL with new Themes'!A:M,8,0)","v":0},{"$f":"VLOOKUP(B228,'LOC FINAL with new Themes'!A:M,9,0)","v":0},{"$f":"VLOOKUP(B228,'LOC FINAL with new Themes'!A:M,10,0)","v":0},{"$f":"VLOOKUP(B228,'LOC FINAL with new Themes'!A:M,11,0)","v":0},{"$f":"VLOOKUP(B228,'LOC FINAL with new Themes'!A:M,12,0)","v":0},{"$f":"VLOOKUP(B228,'LOC FINAL with new Themes'!A:M,13,0)","v":0}]
["Hydric Soils","Hydric Soils",null,"Hydric Soils","Soils ","USDA","Chris W. Smith","Christopherw.Smith@wdc.usda.gov",{"$f":"VLOOKUP(B229,'LOC FINAL with new Themes'!A:M,7,0)","v":0},{"$f":"VLOOKUP(B229,'LOC FINAL with new Themes'!A:M,8,0)","v":0},{"$f":"VLOOKUP(B229,'LOC FINAL with new Themes'!A:M,9,0)","v":0},{"$f":"VLOOKUP(B229,'LOC FINAL with new Themes'!A:M,10,0)","v":0},{"$f":"VLOOKUP(B229,'LOC FINAL with new Themes'!A:M,11,0)","v":0},{"$f":"VLOOKUP(B229,'LOC FINAL with new Themes'!A:M,12,0)","v":0},{"$f":"VLOOKUP(B229,'LOC FINAL with new Themes'!A:M,13,0)","v":0}]
["Location of Arable Lands","Location of Arable Lands",null,"Location of Arable Lands","Soils ","USDA","Karl Hipple","karl.hipple@lin.usda.gov",{"$f":"VLOOKUP(B230,'LOC FINAL with new Themes'!A:M,7,0)","v":"undeliverable email- neeed to identify new contact"},{"$f":"VLOOKUP(B230,'LOC FINAL with new Themes'!A:M,8,0)","v":0},{"$f":"VLOOKUP(B230,'LOC FINAL with new Themes'!A:M,9,0)","v":0},{"$f":"VLOOKUP(B230,'LOC FINAL with new Themes'!A:M,10,0)","v":0},{"$f":"VLOOKUP(B230,'LOC FINAL with new Themes'!A:M,11,0)","v":0},{"$f":"VLOOKUP(B230,'LOC FINAL with new Themes'!A:M,12,0)","v":0},{"$f":"VLOOKUP(B230,'LOC FINAL with new Themes'!A:M,13,0)","v":0}]
["Major Land Resource Area (MLRA)","Major Land Resource Area (MLRA)","Major Land Resource Area (MLRA)","Major Land Resource Area (MLRA)","Soils ","USDA","Karl Hipple","karl.hipple@lin.usda.gov",{"$f":"VLOOKUP(B231,'LOC FINAL with new Themes'!A:M,7,0)","v":"undeliverable email- neeed to identify new contact"},{"$f":"VLOOKUP(B231,'LOC FINAL with new Themes'!A:M,8,0)","v":0},{"$f":"VLOOKUP(B231,'LOC FINAL with new Themes'!A:M,9,0)","v":0},{"$f":"VLOOKUP(B231,'LOC FINAL with new Themes'!A:M,10,0)","v":0},{"$f":"VLOOKUP(B231,'LOC FINAL with new Themes'!A:M,11,0)","v":0},{"$f":"VLOOKUP(B231,'LOC FINAL with new Themes'!A:M,12,0)","v":0},{"$f":"VLOOKUP(B231,'LOC FINAL with new Themes'!A:M,13,0)","v":0}]
["National Cooperative Soil Survey (NCSS)","National Cooperative Soil Survey (NCSS)","National Cooperative Soil Characterization Database","National Cooperative Soil Characterization Database","Soils ","USDA","Paul Benedict","paul.benedict@wdc.usda.gov",{"$f":"VLOOKUP(B232,'LOC FINAL with new Themes'!A:M,7,0)","v":"We have our Soil Survey Geographic database called SSURGO which is made available through the following sites:\nWeb Soil Survey:    http://websoilsurvey.nrcs.usda.gov/app/\nSoil Data Mart:     http://soildatamart.nrcs.usda.gov/\nSoil Data Access:   http://sdmdataaccess.nrcs.usda.gov\n\nWe also have: \nLab Soil Survey Lab Characterization Data (Point data): http://ssldata.nrcs.usda.gov/ aka NCSS Characterization Database\nSoil Series Classification Database http://soils.usda.gov/technical/classification/scfile/index.html\nU.S. General Soil Map (STATSGO2)\nMajor Land Resource Area (MLRA) http://soils.usda.gov/survey/geography/mlra/\n             Common Resource Areas (CRA) \n\n"},{"$f":"VLOOKUP(B232,'LOC FINAL with new Themes'!A:M,8,0)","v":"? No, I am a Program Manager. Various other people have roles of maintaining the data. "},{"$f":"VLOOKUP(B232,'LOC FINAL with new Themes'!A:M,9,0)","v":"I am a general information POC for all things soil survey related. For more technical aspects on our data sets a good POC would be David Hoover, National Leader for Soil Business Systems or someone on his staff. His contact number is 402-437-4013 or email at david.hoover@lin.usda.gov. "},{"$f":"VLOOKUP(B232,'LOC FINAL with new Themes'!A:M,10,0)","v":"Our data sets are constantly being updated by about 1000 soil and plant scientists in several agencies. "},{"$f":"VLOOKUP(B232,'LOC FINAL with new Themes'!A:M,11,0)","v":"Our data sets are archived, but I don’t know how far back. I will have to get back to you on that. It is my understanding that archived sets are not easily accessible.  We have archive data for SSURGO (Soil Data Warehouse from mid 2000’s or earlier – Jim Fortner or Jennifer Sweet may be able to confirm or provide more detail; We also have archive data for STATSGO (circa 1994;1996) and for MLRA (1978; 2001; 2006) in local holdings.  Not sure about lab data archives, Henry Ferguson or Larry West can confirm.  "},{"$f":"VLOOKUP(B232,'LOC FINAL with new Themes'!A:M,12,0)","v":"? the Lab Characterization Data is also known as the “NCSS Characterization Database”\nAdded Common Resource Area geographic database (CRA)."},{"$f":"VLOOKUP(B232,'LOC FINAL with new Themes'!A:M,13,0)","v":"P"}]
["Prime and Statewide Important Farmlands","Prime and Statewide Important Farmlands",null,"Prime and Statewide Important Farmlands","Soils ","USDA","Chris W. Smith","Christopherw.Smith@wdc.usda.gov",{"$f":"VLOOKUP(B233,'LOC FINAL with new Themes'!A:M,7,0)","v":0},{"$f":"VLOOKUP(B233,'LOC FINAL with new Themes'!A:M,8,0)","v":0},{"$f":"VLOOKUP(B233,'LOC FINAL with new Themes'!A:M,9,0)","v":0},{"$f":"VLOOKUP(B233,'LOC FINAL with new Themes'!A:M,10,0)","v":0},{"$f":"VLOOKUP(B233,'LOC FINAL with new Themes'!A:M,11,0)","v":0},{"$f":"VLOOKUP(B233,'LOC FINAL with new Themes'!A:M,12,0)","v":0},{"$f":"VLOOKUP(B233,'LOC FINAL with new Themes'!A:M,13,0)","v":0}]
["Soil Suitability for Disposal of Contaminated Crops ","Soil Suitability for Disposal of Contaminated Crops ",null,"Soil Suitability for Disposal of Contaminated Crops ","Soils ","USDA","Karl Hipple; Sharon Waltman","karl.hipple@lin.usda.gov; sharon.waltman@wv.usda.gov ",{"$f":"VLOOKUP(B234,'LOC FINAL with new Themes'!A:M,7,0)","v":"undeliverable email- neeed to identify new contact"},{"$f":"VLOOKUP(B234,'LOC FINAL with new Themes'!A:M,8,0)","v":0},{"$f":"VLOOKUP(B234,'LOC FINAL with new Themes'!A:M,9,0)","v":0},{"$f":"VLOOKUP(B234,'LOC FINAL with new Themes'!A:M,10,0)","v":0},{"$f":"VLOOKUP(B234,'LOC FINAL with new Themes'!A:M,11,0)","v":0},{"$f":"VLOOKUP(B234,'LOC FINAL with new Themes'!A:M,12,0)","v":0},{"$f":"VLOOKUP(B234,'LOC FINAL with new Themes'!A:M,13,0)","v":0}]
["Soil Suitability for Large Animal Disposal","Soil Suitability for Large Animal Disposal",null,"Soil Suitability for Large Animal Disposal","Soils ","USDA","Chris W. Smith","Christopherw.Smith@wdc.usda.gov",{"$f":"VLOOKUP(B235,'LOC FINAL with new Themes'!A:M,7,0)","v":0},{"$f":"VLOOKUP(B235,'LOC FINAL with new Themes'!A:M,8,0)","v":0},{"$f":"VLOOKUP(B235,'LOC FINAL with new Themes'!A:M,9,0)","v":0},{"$f":"VLOOKUP(B235,'LOC FINAL with new Themes'!A:M,10,0)","v":0},{"$f":"VLOOKUP(B235,'LOC FINAL with new Themes'!A:M,11,0)","v":0},{"$f":"VLOOKUP(B235,'LOC FINAL with new Themes'!A:M,12,0)","v":0},{"$f":"VLOOKUP(B235,'LOC FINAL with new Themes'!A:M,13,0)","v":0}]
["Soil Survey Geographic Database (SSURGO)","Soil Survey Geographic Database (SSURGO)","Soil Survey Geographic Database (SSURGO)","Soil Survey Geographic Database (SSURGO)","Soils ","USDA","Karl Hipple","karl.hipple@lin.usda.gov",{"$f":"VLOOKUP(B236,'LOC FINAL with new Themes'!A:M,7,0)","v":"undeliverable email- neeed to identify new contact"},{"$f":"VLOOKUP(B236,'LOC FINAL with new Themes'!A:M,8,0)","v":0},{"$f":"VLOOKUP(B236,'LOC FINAL with new Themes'!A:M,9,0)","v":0},{"$f":"VLOOKUP(B236,'LOC FINAL with new Themes'!A:M,10,0)","v":0},{"$f":"VLOOKUP(B236,'LOC FINAL with new Themes'!A:M,11,0)","v":0},{"$f":"VLOOKUP(B236,'LOC FINAL with new Themes'!A:M,12,0)","v":0},{"$f":"VLOOKUP(B236,'LOC FINAL with new Themes'!A:M,13,0)","v":0}]
["U.S. General Soil Map (STATSGO2)","U.S. General Soil Map (STATSGO2)","U.S. General Soil Map (STATSGO2)","U.S. General Soil Map (STATSGO2)","Soils ","USDA","Karl Hipple","karl.hipple@lin.usda.gov",{"$f":"VLOOKUP(B237,'LOC FINAL with new Themes'!A:M,7,0)","v":"undeliverable email- neeed to identify new contact"},{"$f":"VLOOKUP(B237,'LOC FINAL with new Themes'!A:M,8,0)","v":0},{"$f":"VLOOKUP(B237,'LOC FINAL with new Themes'!A:M,9,0)","v":0},{"$f":"VLOOKUP(B237,'LOC FINAL with new Themes'!A:M,10,0)","v":0},{"$f":"VLOOKUP(B237,'LOC FINAL with new Themes'!A:M,11,0)","v":0},{"$f":"VLOOKUP(B237,'LOC FINAL with new Themes'!A:M,12,0)","v":0},{"$f":"VLOOKUP(B237,'LOC FINAL with new Themes'!A:M,13,0)","v":0}]
[{"$f":"SUBTOTAL(3,A228:A237)","v":10},{"$f":"SUBTOTAL(3,B228:B237)","v":10},{"$f":"SUBTOTAL(3,C228:C237)","v":5},{"$f":"SUBTOTAL(3,D228:D237)","v":10},"Soils  Count"]
[null,"Address Range-Feature Name Relationship File","Address Range-Feature Name Relationship File",{"$f":"IF(C239=0,B239,C239)","v":"Address Range-Feature Name Relationship File"},"Transportation ","DOC-Census","Jennifer Holland","Jennifer.L.Holland@census.gov",{"$f":"VLOOKUP(B239,'LOC FINAL with new Themes'!A:M,7,0)","v":0},{"$f":"VLOOKUP(B239,'LOC FINAL with new Themes'!A:M,8,0)","v":0},{"$f":"VLOOKUP(B239,'LOC FINAL with new Themes'!A:M,9,0)","v":0},{"$f":"VLOOKUP(B239,'LOC FINAL with new Themes'!A:M,10,0)","v":0},{"$f":"VLOOKUP(B239,'LOC FINAL with new Themes'!A:M,11,0)","v":0},{"$f":"VLOOKUP(B239,'LOC FINAL with new Themes'!A:M,12,0)","v":0},{"$f":"VLOOKUP(B239,'LOC FINAL with new Themes'!A:M,13,0)","v":0}]
[null,"Address Ranges Relationship File","Address Ranges Relationship File","Address Ranges Relationship File","Transportation ","DOC-Census","Jennifer Holland","Jennifer.L.Holland@census.gov",{"$f":"VLOOKUP(B240,'LOC FINAL with new Themes'!A:M,7,0)","v":0},{"$f":"VLOOKUP(B240,'LOC FINAL with new Themes'!A:M,8,0)","v":0},{"$f":"VLOOKUP(B240,'LOC FINAL with new Themes'!A:M,9,0)","v":0},{"$f":"VLOOKUP(B240,'LOC FINAL with new Themes'!A:M,10,0)","v":0},{"$f":"VLOOKUP(B240,'LOC FINAL with new Themes'!A:M,11,0)","v":0},{"$f":"VLOOKUP(B240,'LOC FINAL with new Themes'!A:M,12,0)","v":0},{"$f":"VLOOKUP(B240,'LOC FINAL with new Themes'!A:M,13,0)","v":0}]
[null,"All Roads","All Roads","All Roads","Transportation ","DOC-Census","Jennifer Holland","Jennifer.L.Holland@census.gov",{"$f":"VLOOKUP(B241,'LOC FINAL with new Themes'!A:M,7,0)","v":0},{"$f":"VLOOKUP(B241,'LOC FINAL with new Themes'!A:M,8,0)","v":0},{"$f":"VLOOKUP(B241,'LOC FINAL with new Themes'!A:M,9,0)","v":0},{"$f":"VLOOKUP(B241,'LOC FINAL with new Themes'!A:M,10,0)","v":0},{"$f":"VLOOKUP(B241,'LOC FINAL with new Themes'!A:M,11,0)","v":0},{"$f":"VLOOKUP(B241,'LOC FINAL with new Themes'!A:M,12,0)","v":0},{"$f":"VLOOKUP(B241,'LOC FINAL with new Themes'!A:M,13,0)","v":0}]
["Inland Electronic Navigation Charts (IENC)","Inland Electronic Navigation Charts (IENC)","Inland Electronic Navigation Charts (IENC)","Inland Electronic Navigation Charts (IENC)","Transportation ","DOD-USACE","Joel Schlagel","Joel.D.Schlagel@erdc.usace.army.mil ",{"$f":"VLOOKUP(B242,'LOC FINAL with new Themes'!A:M,7,0)","v":0},{"$f":"VLOOKUP(B242,'LOC FINAL with new Themes'!A:M,8,0)","v":0},{"$f":"VLOOKUP(B242,'LOC FINAL with new Themes'!A:M,9,0)","v":0},{"$f":"VLOOKUP(B242,'LOC FINAL with new Themes'!A:M,10,0)","v":0},{"$f":"VLOOKUP(B242,'LOC FINAL with new Themes'!A:M,11,0)","v":0},{"$f":"VLOOKUP(B242,'LOC FINAL with new Themes'!A:M,12,0)","v":0},{"$f":"VLOOKUP(B242,'LOC FINAL with new Themes'!A:M,13,0)","v":0}]
[null,null,"National Interagency Trails Dataset","National Interagency Trails Dataset","Transportation ","USDA"]
["National Map - Transportation Dataset","National Map - Transportation Dataset","National Transportation Dataset - National Map","National Transportation Dataset - National Map","Transportation ","DOI-USGS","Paul Wiese","pmwiese@usgs.gov",{"$f":"VLOOKUP(B244,'LOC FINAL with new Themes'!A:M,7,0)","v":0},{"$f":"VLOOKUP(B244,'LOC FINAL with new Themes'!A:M,8,0)","v":0},{"$f":"VLOOKUP(B244,'LOC FINAL with new Themes'!A:M,9,0)","v":0},{"$f":"VLOOKUP(B244,'LOC FINAL with new Themes'!A:M,10,0)","v":0},{"$f":"VLOOKUP(B244,'LOC FINAL with new Themes'!A:M,11,0)","v":0},{"$f":"VLOOKUP(B244,'LOC FINAL with new Themes'!A:M,12,0)","v":0},{"$f":"VLOOKUP(B244,'LOC FINAL with new Themes'!A:M,13,0)","v":0}]
["NOAA Aeronautical Survey","NOAA Aeronautical Survey",null,"NOAA Aeronautical Survey","Transportation ","DOC-NOAA","Mark Howard","Mark.Howard@noaa.gov",{"$f":"VLOOKUP(B245,'LOC FINAL with new Themes'!A:M,7,0)","v":"The NOAA/NGS Aeronautical Survey Program (ASP) provides products and services to the FAA in accordance with an interagency agreement.  The ASP is a reimbursable program that performs work as requested by the Aeronautical Information Services Office (AIS).  The aeronautical surveys we conduct and review provide airport geodetic control, runway, navigational aid, obstruction, an other aeronautical data that is critical to the operation of the National Airspace System. Recently our role, in support of the FAA, has migrated from primarily being a data provider to reviewing survey data collected by third party commerical surveyors. The survey data (collected by NGS or submitted by 3rd party) is considered good as of the date collected.  The surveys are forwarded to the FAA.  The data supports FAA Instrument Approach Procedure development and is also ingested into databases used to update FAA publications. The NGS has been conducting aeronautical surveys for over 7 decades. We have conducted surveys at over 1200 airports.  Each survey is a single data set.  We began storing the survey data (electronically) in a database around 1990 (prior to that it was all paper).  Note that many of these surveys we conducted are not current. The FAA does obtain aeronautical survey data from many different sources. The 3rd party surveys we review is submitted to the FAA. We retreive a copy of the survey data from an FAA portal to perform our reveiw.       "},{"$f":"VLOOKUP(B245,'LOC FINAL with new Themes'!A:M,8,0)","v":"No, I'm the Program Manager serving as the NGS liason with FAA offices that leverage NGS expertise and capabilities.    "},{"$f":"VLOOKUP(B245,'LOC FINAL with new Themes'!A:M,9,0)","v":"I could be. We don't have a designated person that performs that function. Being a reimbursable program our tasks are limited to those specified in our interagency agreement, which is limited to providing (transfering) the data sets to the FAA.  We are not involved in the dissemenation or distribution of the product.  In the past, when we were conducting more surveys, we would post the survey data (in UDDF format) to our web site (http://www.ngs.noaa.gov/AERO/UDDFdat.htm).  These survey data sets are still available on our site but we no longer post new surveys to the site.  The data is now either submitted to the FAA Third Party Survey Site (TPSS) or the FAA Airports Surveying GIS (AGIS) Program web site (https://airports-gis.faa.gov/public/index.html).  Both sites require registration.  The data uploaded to the TPSS site is assessable via a public site (https://tpss.faa.gov/tpss/uddfList.jsp).    "},{"$f":"VLOOKUP(B245,'LOC FINAL with new Themes'!A:M,10,0)","v":"Updates are contigent on NGS receiving a request from the FAA to conduct another survey.  We do not survey airports on a regular cylce.   We use to survey the larger airports (FAA Part 139) every 3-5 years.  With advances in use of GPS naviagtion the FAA's need for aeronautical survey data increased significantly.  They are now developing Approach procedures for many smaller airports (no need to purchase or maintain ground based ILS equipment).    "},{"$f":"VLOOKUP(B245,'LOC FINAL with new Themes'!A:M,11,0)","v":"Yes, we do have an archive and backup of the surveys we conducted.  Internally we transfer our survey data from our database to differnet environments (photogrammetric workstation, field data logger) via a custom designed ascii text based \"exchange file format\" (EXG). I don't know how easily it would be to make this accessible. I would need to discuss with our database manager.  When ever I ask him a single question he usualy turns around and asks me 10 questions.  The scope of the request would need to be defined. A word of caution.... there is more recent survey data available (from other sources) at many of the airports we have surveyed.  "},{"$f":"VLOOKUP(B245,'LOC FINAL with new Themes'!A:M,12,0)","v":"The aeronautical data set we forward to the FAA is referred to as a UDDF.... which is really the format of the file the data is transferred in.  The documentation for this file format is available on our web site (http://www.ngs.noaa.gov/AERO/annof_7.htm).  Internally it is the \"exchange file format\" (EXG), but of course our workfoce access the information our database via interactive software.  NGS has also established Primary and Secondary Airport Control Stations at many airports across the country.  This control is tied directly to the National Spatial Reference System (NSRS) and available via the NGS IDB (web site).  They are permanent marks with precisly determined positions and elevations that must meet specific siting, construction, and accuracy requirements. The control stations can be retrieved in a variety of formats.  "},{"$f":"VLOOKUP(B245,'LOC FINAL with new Themes'!A:M,13,0)","v":"M "}]
["NTAD","NTAD","NTAD","NTAD","Transportation ","DOT-BTS","Robert Monniere","robert.monniere@dot.gov",{"$f":"VLOOKUP(B246,'LOC FINAL with new Themes'!A:M,7,0)","v":0},{"$f":"VLOOKUP(B246,'LOC FINAL with new Themes'!A:M,8,0)","v":0},{"$f":"VLOOKUP(B246,'LOC FINAL with new Themes'!A:M,9,0)","v":0},{"$f":"VLOOKUP(B246,'LOC FINAL with new Themes'!A:M,10,0)","v":0},{"$f":"VLOOKUP(B246,'LOC FINAL with new Themes'!A:M,11,0)","v":0},{"$f":"VLOOKUP(B246,'LOC FINAL with new Themes'!A:M,12,0)","v":0},{"$f":"VLOOKUP(B246,'LOC FINAL with new Themes'!A:M,13,0)","v":0}]
[null,null,"NTAD (airports)","NTAD (airports)","Transportation ","DOT-BTS"]
[null,null,"NTAD (Rail)","NTAD (Rail)","Transportation ","DOT-BTS"]
["NTAD (TransitLines) ","NTAD (TransitLines) ","NTAD (TransitLines) ","NTAD (TransitLines) ","Transportation ","DOT-BTS","Robert Monniere ","robert.monniere@dot.gov \n",{"$f":"VLOOKUP(B249,'LOC FINAL with new Themes'!A:M,7,0)","v":0},{"$f":"VLOOKUP(B249,'LOC FINAL with new Themes'!A:M,8,0)","v":0},{"$f":"VLOOKUP(B249,'LOC FINAL with new Themes'!A:M,9,0)","v":0},{"$f":"VLOOKUP(B249,'LOC FINAL with new Themes'!A:M,10,0)","v":0},{"$f":"VLOOKUP(B249,'LOC FINAL with new Themes'!A:M,11,0)","v":0},{"$f":"VLOOKUP(B249,'LOC FINAL with new Themes'!A:M,12,0)","v":0},{"$f":"VLOOKUP(B249,'LOC FINAL with new Themes'!A:M,13,0)","v":0}]
["NTAD (TransitStation) ","NTAD (TransitStation) ","NTAD (TransitStation) ","NTAD (TransitStation) ","Transportation ","DOT-BTS","Robert Monniere ","robert.monniere@dot.gov ",{"$f":"VLOOKUP(B250,'LOC FINAL with new Themes'!A:M,7,0)","v":0},{"$f":"VLOOKUP(B250,'LOC FINAL with new Themes'!A:M,8,0)","v":0},{"$f":"VLOOKUP(B250,'LOC FINAL with new Themes'!A:M,9,0)","v":0},{"$f":"VLOOKUP(B250,'LOC FINAL with new Themes'!A:M,10,0)","v":0},{"$f":"VLOOKUP(B250,'LOC FINAL with new Themes'!A:M,11,0)","v":0},{"$f":"VLOOKUP(B250,'LOC FINAL with new Themes'!A:M,12,0)","v":0},{"$f":"VLOOKUP(B250,'LOC FINAL with new Themes'!A:M,13,0)","v":0}]
[null,"Primary and Secondary Roads","Primary and Secondary Roads",{"$f":"IF(C251=0,#REF!,C251)","v":"Primary and Secondary Roads"},"Transportation ","DOC-Census","Jennifer Holland","Jennifer.L.Holland@census.gov",{"$f":"VLOOKUP(B251,'LOC FINAL with new Themes'!A:M,7,0)","v":0},{"$f":"VLOOKUP(B251,'LOC FINAL with new Themes'!A:M,8,0)","v":0},{"$f":"VLOOKUP(B251,'LOC FINAL with new Themes'!A:M,9,0)","v":0},{"$f":"VLOOKUP(B251,'LOC FINAL with new Themes'!A:M,10,0)","v":0},{"$f":"VLOOKUP(B251,'LOC FINAL with new Themes'!A:M,11,0)","v":0},{"$f":"VLOOKUP(B251,'LOC FINAL with new Themes'!A:M,12,0)","v":0},{"$f":"VLOOKUP(B251,'LOC FINAL with new Themes'!A:M,13,0)","v":0}]
[null,"Primary Roads","Primary Roads",{"$f":"IF(C252=0,B252,C252)","v":"Primary Roads"},"Transportation ","DOC-Census","Jennifer Holland","Jennifer.L.Holland@census.gov",{"$f":"VLOOKUP(B252,'LOC FINAL with new Themes'!A:M,7,0)","v":0},{"$f":"VLOOKUP(B252,'LOC FINAL with new Themes'!A:M,8,0)","v":0},{"$f":"VLOOKUP(B252,'LOC FINAL with new Themes'!A:M,9,0)","v":0},{"$f":"VLOOKUP(B252,'LOC FINAL with new Themes'!A:M,10,0)","v":0},{"$f":"VLOOKUP(B252,'LOC FINAL with new Themes'!A:M,11,0)","v":0},{"$f":"VLOOKUP(B252,'LOC FINAL with new Themes'!A:M,12,0)","v":0},{"$f":"VLOOKUP(B252,'LOC FINAL with new Themes'!A:M,13,0)","v":0}]
["TIGER (Roads/Rail)","TIGER (Roads/Rail)",null,{"$f":"IF(C253=0,B253,C253)","v":"TIGER (Roads/Rail)"},"Transportation ","DOC-Census","Randy Fusaro","randy.j.fusaro@census.gov",{"$f":"VLOOKUP(B253,'LOC FINAL with new Themes'!A:M,7,0)","v":0},{"$f":"VLOOKUP(B253,'LOC FINAL with new Themes'!A:M,8,0)","v":0},{"$f":"VLOOKUP(B253,'LOC FINAL with new Themes'!A:M,9,0)","v":0},{"$f":"VLOOKUP(B253,'LOC FINAL with new Themes'!A:M,10,0)","v":0},{"$f":"VLOOKUP(B253,'LOC FINAL with new Themes'!A:M,11,0)","v":0},{"$f":"VLOOKUP(B253,'LOC FINAL with new Themes'!A:M,12,0)","v":0},{"$f":"VLOOKUP(B253,'LOC FINAL with new Themes'!A:M,13,0)","v":0}]
[null,"Traffic Analysis Zone (Census 2000)","Traffic Analysis Zone (Census 2000)",{"$f":"IF(C254=0,B254,C254)","v":"Traffic Analysis Zone (Census 2000)"},"Transportation ","DOC-Census","Jennifer Holland","Jennifer.L.Holland@census.gov",{"$f":"VLOOKUP(B254,'LOC FINAL with new Themes'!A:M,7,0)","v":0},{"$f":"VLOOKUP(B254,'LOC FINAL with new Themes'!A:M,8,0)","v":0},{"$f":"VLOOKUP(B254,'LOC FINAL with new Themes'!A:M,9,0)","v":0},{"$f":"VLOOKUP(B254,'LOC FINAL with new Themes'!A:M,10,0)","v":0},{"$f":"VLOOKUP(B254,'LOC FINAL with new Themes'!A:M,11,0)","v":0},{"$f":"VLOOKUP(B254,'LOC FINAL with new Themes'!A:M,12,0)","v":0},{"$f":"VLOOKUP(B254,'LOC FINAL with new Themes'!A:M,13,0)","v":0}]
[{"$f":"SUBTOTAL(3,A239:A254)","v":7},{"$f":"SUBTOTAL(3,B239:B254)","v":13},{"$f":"SUBTOTAL(3,C239:C254)","v":14},{"$f":"SUBTOTAL(3,D239:D254)","v":16},"Transportation  Count"]
[null,null,"Pipelines",{"$f":"IF(C256=0,B256,C256)","v":"Pipelines"},"Utilities ","DOI-MMS"]
[null,null,"Platforms",{"$f":"IF(C257=0,B257,C257)","v":"Platforms"},"Utilities ","DOI-MMS"]
[{"$f":"SUBTOTAL(3,A256:A257)","v":0},{"$f":"SUBTOTAL(3,B256:B257)","v":0},{"$f":"SUBTOTAL(3,C256:C257)","v":2},{"$f":"SUBTOTAL(3,D256:D257)","v":2},"Utilities  Count"]
[null,"Area Hydrography (2010 Census)","Area Hydrography (2010 Census)",{"$f":"IF(C259=0,B259,C259)","v":"Area Hydrography (2010 Census)"},"Water -- Inland","DOC-Census","Jennifer Holland","Jennifer.L.Holland@census.gov",{"$f":"VLOOKUP(B259,'LOC FINAL with new Themes'!A:M,7,0)","v":0},{"$f":"VLOOKUP(B259,'LOC FINAL with new Themes'!A:M,8,0)","v":0},{"$f":"VLOOKUP(B259,'LOC FINAL with new Themes'!A:M,9,0)","v":0},{"$f":"VLOOKUP(B259,'LOC FINAL with new Themes'!A:M,10,0)","v":0},{"$f":"VLOOKUP(B259,'LOC FINAL with new Themes'!A:M,11,0)","v":0},{"$f":"VLOOKUP(B259,'LOC FINAL with new Themes'!A:M,12,0)","v":0},{"$f":"VLOOKUP(B259,'LOC FINAL with new Themes'!A:M,13,0)","v":0}]
[null,"Linear Water Features","Linear Water Features","Linear Water Features","Water -- Inland","DOC-Census","Jennifer Holland","Jennifer.L.Holland@census.gov",{"$f":"VLOOKUP(B260,'LOC FINAL with new Themes'!A:M,7,0)","v":0},{"$f":"VLOOKUP(B260,'LOC FINAL with new Themes'!A:M,8,0)","v":0},{"$f":"VLOOKUP(B260,'LOC FINAL with new Themes'!A:M,9,0)","v":0},{"$f":"VLOOKUP(B260,'LOC FINAL with new Themes'!A:M,10,0)","v":0},{"$f":"VLOOKUP(B260,'LOC FINAL with new Themes'!A:M,11,0)","v":0},{"$f":"VLOOKUP(B260,'LOC FINAL with new Themes'!A:M,12,0)","v":0},{"$f":"VLOOKUP(B260,'LOC FINAL with new Themes'!A:M,13,0)","v":0}]
["National Hydrography Data Set","National Hydrography Dataset","National Hydrography Dataset - National Map","National Hydrography Dataset - National Map","Water -- Inland","DOI-USGS","Jeff Simley","jdsimley@usgs.gov",{"$f":"VLOOKUP(B261,'LOC FINAL with new Themes'!A:M,7,0)","v":0},{"$f":"VLOOKUP(B261,'LOC FINAL with new Themes'!A:M,8,0)","v":0},{"$f":"VLOOKUP(B261,'LOC FINAL with new Themes'!A:M,9,0)","v":0},{"$f":"VLOOKUP(B261,'LOC FINAL with new Themes'!A:M,10,0)","v":0},{"$f":"VLOOKUP(B261,'LOC FINAL with new Themes'!A:M,11,0)","v":0},{"$f":"VLOOKUP(B261,'LOC FINAL with new Themes'!A:M,12,0)","v":0},{"$f":"VLOOKUP(B261,'LOC FINAL with new Themes'!A:M,13,0)","v":0}]
["National Inventory of Dams (NID)","National Inventory of Dams (NID)","National Inventory of Dams (NID)","National Inventory of Dams (NID)","Water -- Inland","DOD-USACE","Rebecca Ragon","Rebecca.Ragon@usace.army.mil ",{"$f":"VLOOKUP(B262,'LOC FINAL with new Themes'!A:M,7,0)","v":"One single data set"},{"$f":"VLOOKUP(B262,'LOC FINAL with new Themes'!A:M,8,0)","v":"Yes"},{"$f":"VLOOKUP(B262,'LOC FINAL with new Themes'!A:M,9,0)","v":"Yes"},{"$f":"VLOOKUP(B262,'LOC FINAL with new Themes'!A:M,10,0)","v":"Usually every 2 years"},{"$f":"VLOOKUP(B262,'LOC FINAL with new Themes'!A:M,11,0)","v":"Because the NID is updated every 2 years, we do have archived databased datig back to 1994."},{"$f":"VLOOKUP(B262,'LOC FINAL with new Themes'!A:M,12,0)","v":"The official name is National Inventory of Dams (NID) but I have seen the database referenced as the National Dam Inventory"},{"$f":"VLOOKUP(B262,'LOC FINAL with new Themes'!A:M,13,0)","v":"S"}]
["National Levee Database (NLD)","National Levee Database (NLD)","National Levee Database (NLD)","National Levee Database (NLD)","Water -- Inland","DOD-USACE","Bryan Baker","Bryan.E.Baker@usace.army.mil",{"$f":"VLOOKUP(B263,'LOC FINAL with new Themes'!A:M,7,0)","v":0},{"$f":"VLOOKUP(B263,'LOC FINAL with new Themes'!A:M,8,0)","v":0},{"$f":"VLOOKUP(B263,'LOC FINAL with new Themes'!A:M,9,0)","v":0},{"$f":"VLOOKUP(B263,'LOC FINAL with new Themes'!A:M,10,0)","v":0},{"$f":"VLOOKUP(B263,'LOC FINAL with new Themes'!A:M,11,0)","v":0},{"$f":"VLOOKUP(B263,'LOC FINAL with new Themes'!A:M,12,0)","v":0},{"$f":"VLOOKUP(B263,'LOC FINAL with new Themes'!A:M,13,0)","v":0}]
[null,null,"National Water Information System (NWIS)- Stream Gage Network","National Water Information System (NWIS)- Stream Gage Network","Water -- Inland","DOI-USGS"]
[null,null,"National Water Information System (NWIS)- Water Quality Monitoring Stations","National Water Information System (NWIS)- Water Quality Monitoring Stations","Water -- Inland","DOI-USGS"]
["National Wetlands Inventory (NWI) ","National Wetlands Inventory (NWI) ","National Wetlands Inventory (NWI) ","National Wetlands Inventory (NWI) ","Water -- Inland","DOI-FWS","Tom Dahl  ","tom_dahl@fws.gov\n",{"$f":"VLOOKUP(B266,'LOC FINAL with new Themes'!A:M,7,0)","v":0},{"$f":"VLOOKUP(B266,'LOC FINAL with new Themes'!A:M,8,0)","v":0},{"$f":"VLOOKUP(B266,'LOC FINAL with new Themes'!A:M,9,0)","v":0},{"$f":"VLOOKUP(B266,'LOC FINAL with new Themes'!A:M,10,0)","v":0},{"$f":"VLOOKUP(B266,'LOC FINAL with new Themes'!A:M,11,0)","v":0},{"$f":"VLOOKUP(B266,'LOC FINAL with new Themes'!A:M,12,0)","v":0},{"$f":"VLOOKUP(B266,'LOC FINAL with new Themes'!A:M,13,0)","v":0}]
["Nautical charts","Nautical Charts",null,"Nautical Charts","Water -- Inland",null,null,null,{"$f":"VLOOKUP(B267,'LOC FINAL with new Themes'!A:M,7,0)","v":0},{"$f":"VLOOKUP(B267,'LOC FINAL with new Themes'!A:M,8,0)","v":0},{"$f":"VLOOKUP(B267,'LOC FINAL with new Themes'!A:M,9,0)","v":0},{"$f":"VLOOKUP(B267,'LOC FINAL with new Themes'!A:M,10,0)","v":0},{"$f":"VLOOKUP(B267,'LOC FINAL with new Themes'!A:M,11,0)","v":0},{"$f":"VLOOKUP(B267,'LOC FINAL with new Themes'!A:M,12,0)","v":0},{"$f":"VLOOKUP(B267,'LOC FINAL with new Themes'!A:M,13,0)","v":0}]
["NWIS & STORET","NWIS & STORET",null,"NWIS & STORET","Water -- Inland",null,"EGIM",null,{"$f":"VLOOKUP(B268,'LOC FINAL with new Themes'!A:M,7,0)","v":0},{"$f":"VLOOKUP(B268,'LOC FINAL with new Themes'!A:M,8,0)","v":0},{"$f":"VLOOKUP(B268,'LOC FINAL with new Themes'!A:M,9,0)","v":0},{"$f":"VLOOKUP(B268,'LOC FINAL with new Themes'!A:M,10,0)","v":0},{"$f":"VLOOKUP(B268,'LOC FINAL with new Themes'!A:M,11,0)","v":0},{"$f":"VLOOKUP(B268,'LOC FINAL with new Themes'!A:M,12,0)","v":0},{"$f":"VLOOKUP(B268,'LOC FINAL with new Themes'!A:M,13,0)","v":0}]
["Shore and sea boundaries","Shore and sea boundaries",null,"Shore and sea boundaries","Water -- Inland",null,"EGIM",null,{"$f":"VLOOKUP(B269,'LOC FINAL with new Themes'!A:M,7,0)","v":0},{"$f":"VLOOKUP(B269,'LOC FINAL with new Themes'!A:M,8,0)","v":0},{"$f":"VLOOKUP(B269,'LOC FINAL with new Themes'!A:M,9,0)","v":0},{"$f":"VLOOKUP(B269,'LOC FINAL with new Themes'!A:M,10,0)","v":0},{"$f":"VLOOKUP(B269,'LOC FINAL with new Themes'!A:M,11,0)","v":0},{"$f":"VLOOKUP(B269,'LOC FINAL with new Themes'!A:M,12,0)","v":0},{"$f":"VLOOKUP(B269,'LOC FINAL with new Themes'!A:M,13,0)","v":0}]
[null,"Topological Faces-Area Hydrography Relationship File","Topological Faces-Area Hydrography Relationship File","Topological Faces-Area Hydrography Relationship File","Water -- Inland","DOC-Census","Jennifer Holland","Jennifer.L.Holland@census.gov",{"$f":"VLOOKUP(B270,'LOC FINAL with new Themes'!A:M,7,0)","v":0},{"$f":"VLOOKUP(B270,'LOC FINAL with new Themes'!A:M,8,0)","v":0},{"$f":"VLOOKUP(B270,'LOC FINAL with new Themes'!A:M,9,0)","v":0},{"$f":"VLOOKUP(B270,'LOC FINAL with new Themes'!A:M,10,0)","v":0},{"$f":"VLOOKUP(B270,'LOC FINAL with new Themes'!A:M,11,0)","v":0},{"$f":"VLOOKUP(B270,'LOC FINAL with new Themes'!A:M,12,0)","v":0},{"$f":"VLOOKUP(B270,'LOC FINAL with new Themes'!A:M,13,0)","v":0}]
["Watershed Boundary Data Set (WBD)  ","Watershed Boundary Dataset (WBD)  ","Watershed Boundary Dataset (WBD)  ","Watershed Boundary Dataset (WBD)  ","Water -- Inland","DOI-USGS","Karen Hanson","khanson@usgs.gov",{"$f":"VLOOKUP(B271,'LOC FINAL with new Themes'!A:M,7,0)","v":"one set with nested hierarchy of six different levels within it (regions, subdivided into four, six and twelve digits), POC and data manager; continually updated; co-managed with NRCS and they archive it; USGS in Denver will serve it; All transactions are archived in versions in the database as they happen. Data from any moment in time can be captured with a simple query. The database is replicated daily to Rolla, MO servers. The database is stored on a SAN with three tier redundancy.All changes to the database are stored on separate disks and once they reach a certain size, they are copied over to a server to be written to tape. Weekly, the entire database (NHD, with WBD) is written to tape.Monthly, the tapes are taken off site for storage."},{"$f":"VLOOKUP(B271,'LOC FINAL with new Themes'!A:M,8,0)","v":0},{"$f":"VLOOKUP(B271,'LOC FINAL with new Themes'!A:M,9,0)","v":0},{"$f":"VLOOKUP(B271,'LOC FINAL with new Themes'!A:M,10,0)","v":0},{"$f":"VLOOKUP(B271,'LOC FINAL with new Themes'!A:M,11,0)","v":0},{"$f":"VLOOKUP(B271,'LOC FINAL with new Themes'!A:M,12,0)","v":0},{"$f":"VLOOKUP(B271,'LOC FINAL with new Themes'!A:M,13,0)","v":"S"}]
["Watershed Boundary Data Set (WBD)  ","Watershed Boundary Dataset (WBD)  ","Watershed Boundary Dataset (WBD)  ","Watershed Boundary Dataset (WBD)  ","Water -- Inland","DOI-USGS","Karen Hanson","khanson@usgs.gov",{"$f":"VLOOKUP(B272,'LOC FINAL with new Themes'!A:M,7,0)","v":"one set with nested hierarchy of six different levels within it (regions, subdivided into four, six and twelve digits), POC and data manager; continually updated; co-managed with NRCS and they archive it; USGS in Denver will serve it; All transactions are archived in versions in the database as they happen. Data from any moment in time can be captured with a simple query. The database is replicated daily to Rolla, MO servers. The database is stored on a SAN with three tier redundancy.All changes to the database are stored on separate disks and once they reach a certain size, they are copied over to a server to be written to tape. Weekly, the entire database (NHD, with WBD) is written to tape.Monthly, the tapes are taken off site for storage."},{"$f":"VLOOKUP(B272,'LOC FINAL with new Themes'!A:M,8,0)","v":0},{"$f":"VLOOKUP(B272,'LOC FINAL with new Themes'!A:M,9,0)","v":0},{"$f":"VLOOKUP(B272,'LOC FINAL with new Themes'!A:M,10,0)","v":0},{"$f":"VLOOKUP(B272,'LOC FINAL with new Themes'!A:M,11,0)","v":0},{"$f":"VLOOKUP(B272,'LOC FINAL with new Themes'!A:M,12,0)","v":0},{"$f":"VLOOKUP(B272,'LOC FINAL with new Themes'!A:M,13,0)","v":"S"}]
[{"$f":"SUBTOTAL(3,A259:A272)","v":9},{"$f":"SUBTOTAL(3,B259:B272)","v":12},{"$f":"SUBTOTAL(3,C259:C272)","v":11},{"$f":"SUBTOTAL(3,D259:D272)","v":14},"Water -- Inland Count"]
[null,null,"Coastal Barrier Resource System",{"$f":"IF(C274=0,B274,C274)","v":"Coastal Barrier Resource System"},"Water -- Oceans and Coasts ","DOI-FWS"]
[null,null,"Coastal Change Analysis Program (C-CAP) Land Cover and Land Change Imagery","Coastal Change Analysis Program (C-CAP) Land Cover and Land Change Imagery","Water -- Oceans and Coasts ","DOC-NOAA"]
["Contiguous Zone","Contiguous Zone",null,"Contiguous Zone","Water -- Oceans and Coasts ","DOC-NOAA","Meredith Westington","meredith.westington@noaa.gov",{"$f":"VLOOKUP(B276,'LOC FINAL with new Themes'!A:M,7,0)","v":0},{"$f":"VLOOKUP(B276,'LOC FINAL with new Themes'!A:M,8,0)","v":0},{"$f":"VLOOKUP(B276,'LOC FINAL with new Themes'!A:M,9,0)","v":0},{"$f":"VLOOKUP(B276,'LOC FINAL with new Themes'!A:M,10,0)","v":"- We do also add historical dates, if that is of interest."},{"$f":"VLOOKUP(B276,'LOC FINAL with new Themes'!A:M,11,0)","v":0},{"$f":"VLOOKUP(B276,'LOC FINAL with new Themes'!A:M,12,0)","v":0},{"$f":"VLOOKUP(B276,'LOC FINAL with new Themes'!A:M,13,0)","v":0}]
["Continental Shelf Boundary Data","Continental Shelf Boundary Data","Continental Shelf Boundary Data","Continental Shelf Boundary Data","Water -- Oceans and Coasts ","DOI-BOEM","Doug Vandegraft","douglas.vandegraft@boemre.gov",{"$f":"VLOOKUP(B277,'LOC FINAL with new Themes'!A:M,7,0)","v":"undeliverable email- neeed to identify new contact"},{"$f":"VLOOKUP(B277,'LOC FINAL with new Themes'!A:M,8,0)","v":0},{"$f":"VLOOKUP(B277,'LOC FINAL with new Themes'!A:M,9,0)","v":0},{"$f":"VLOOKUP(B277,'LOC FINAL with new Themes'!A:M,10,0)","v":0},{"$f":"VLOOKUP(B277,'LOC FINAL with new Themes'!A:M,11,0)","v":0},{"$f":"VLOOKUP(B277,'LOC FINAL with new Themes'!A:M,12,0)","v":0},{"$f":"VLOOKUP(B277,'LOC FINAL with new Themes'!A:M,13,0)","v":0}]
["Exclusive Economic Zone","Exclusive Economic Zone",null,"Exclusive Economic Zone","Water -- Oceans and Coasts ","DOC-NOAA","Meredith Westington","meredith.westington@noaa.gov",{"$f":"VLOOKUP(B278,'LOC FINAL with new Themes'!A:M,7,0)","v":0},{"$f":"VLOOKUP(B278,'LOC FINAL with new Themes'!A:M,8,0)","v":0},{"$f":"VLOOKUP(B278,'LOC FINAL with new Themes'!A:M,9,0)","v":0},{"$f":"VLOOKUP(B278,'LOC FINAL with new Themes'!A:M,10,0)","v":0},{"$f":"VLOOKUP(B278,'LOC FINAL with new Themes'!A:M,11,0)","v":0},{"$f":"VLOOKUP(B278,'LOC FINAL with new Themes'!A:M,12,0)","v":0},{"$f":"VLOOKUP(B278,'LOC FINAL with new Themes'!A:M,13,0)","v":0}]
[null,null,"National Data Buoy Center (NDBC) Recent and Historical Data","National Data Buoy Center (NDBC) Recent and Historical Data","Water -- Oceans and Coasts ","DOC-NOAA"]
["NOAA Composite Shoreline","NOAA Composite Shoreline",null,"NOAA Composite Shoreline","Water -- Oceans and Coasts ","DOC-NOAA","Tara Miller","Tara.Miller@noaa.gov",{"$f":"VLOOKUP(B280,'LOC FINAL with new Themes'!A:M,7,0)","v":0},{"$f":"VLOOKUP(B280,'LOC FINAL with new Themes'!A:M,8,0)","v":0},{"$f":"VLOOKUP(B280,'LOC FINAL with new Themes'!A:M,9,0)","v":0},{"$f":"VLOOKUP(B280,'LOC FINAL with new Themes'!A:M,10,0)","v":0},{"$f":"VLOOKUP(B280,'LOC FINAL with new Themes'!A:M,11,0)","v":0},{"$f":"VLOOKUP(B280,'LOC FINAL with new Themes'!A:M,12,0)","v":0},{"$f":"VLOOKUP(B280,'LOC FINAL with new Themes'!A:M,13,0)","v":0}]
["NOAA Extracted Vector Shoreline","NOAA Extracted Vector Shoreline",null,"NOAA Extracted Vector Shoreline","Water -- Oceans and Coasts ","DOC-NOAA","Matt Austin","Matthew.Austin@noaa.gov",{"$f":"VLOOKUP(B281,'LOC FINAL with new Themes'!A:M,7,0)","v":0},{"$f":"VLOOKUP(B281,'LOC FINAL with new Themes'!A:M,8,0)","v":0},{"$f":"VLOOKUP(B281,'LOC FINAL with new Themes'!A:M,9,0)","v":0},{"$f":"VLOOKUP(B281,'LOC FINAL with new Themes'!A:M,10,0)","v":0},{"$f":"VLOOKUP(B281,'LOC FINAL with new Themes'!A:M,11,0)","v":0},{"$f":"VLOOKUP(B281,'LOC FINAL with new Themes'!A:M,12,0)","v":0},{"$f":"VLOOKUP(B281,'LOC FINAL with new Themes'!A:M,13,0)","v":0}]
["NOAA Medium Resolution Shoreline","NOAA Medium Resolution Shoreline",null,"NOAA Medium Resolution Shoreline","Water -- Oceans and Coasts ","DOC-NOAA","Robert Wilson","Robert.Wilson@noaa.gov",{"$f":"VLOOKUP(B282,'LOC FINAL with new Themes'!A:M,7,0)","v":0},{"$f":"VLOOKUP(B282,'LOC FINAL with new Themes'!A:M,8,0)","v":0},{"$f":"VLOOKUP(B282,'LOC FINAL with new Themes'!A:M,9,0)","v":0},{"$f":"VLOOKUP(B282,'LOC FINAL with new Themes'!A:M,10,0)","v":0},{"$f":"VLOOKUP(B282,'LOC FINAL with new Themes'!A:M,11,0)","v":0},{"$f":"VLOOKUP(B282,'LOC FINAL with new Themes'!A:M,12,0)","v":0},{"$f":"VLOOKUP(B282,'LOC FINAL with new Themes'!A:M,13,0)","v":0}]
[null,null,"NOAA National Shoreline","NOAA National Shoreline","Water -- Oceans and Coasts ","DOC-NOAA","Doug Graham","Doug.Graham@noaa.gov"]
["NOAA National Shoreline","NOAA National Shoreline",null,"NOAA National Shoreline","Water -- Oceans and Coasts ","DOC-NOAA","Doug Graham","Doug.Graham@noaa.gov",{"$f":"VLOOKUP(B284,'LOC FINAL with new Themes'!A:M,7,0)","v":"1,665 shoreline projects (data sets)"},{"$f":"VLOOKUP(B284,'LOC FINAL with new Themes'!A:M,8,0)","v":"Yes"},{"$f":"VLOOKUP(B284,'LOC FINAL with new Themes'!A:M,9,0)","v":"Yes"},{"$f":"VLOOKUP(B284,'LOC FINAL with new Themes'!A:M,10,0)","v":"    There are historical and contemporary data set updates to the NOAA Shoreline Data Explorer application.  The historical data sets are from a data rescue project called Climate Data Modernization Program.  These projects would be loaded in bulk batches every few months.  The funding for this program was recently terminated.  The contemporary data sets are our current shoreline updates to the NOAA National Shoreline.  These projects are uploaded when completed which vary in numbers but within the last twelve months there were over 30 contemporary shoreline survey projects loaded."},{"$f":"VLOOKUP(B284,'LOC FINAL with new Themes'!A:M,11,0)","v":"The National Geodetic Survey performs data base backs ups including the NGS Shoreline Data Base.  Currently there is no archived copy of the NGS Shoreline Data Base.   I believe the backups occur every couple weeks and these backups are not easily accessible."},{"$f":"VLOOKUP(B284,'LOC FINAL with new Themes'!A:M,12,0)","v":"The data set as a whole is referenced as the \"National Shoreline\".  This is composed of individual contemporary or historical data sets including GCs, DMs, TP-Sheets, and T-Sheets."},{"$f":"VLOOKUP(B284,'LOC FINAL with new Themes'!A:M,13,0)","v":"M "}]
["NOAA Nautical Charts","NOAA Nautical Charts","NOAA's Nautical Chart Products","NOAA's Nautical Chart Products","Water -- Oceans and Coasts ","DOC-NOAA","John Lowell","John.Lowell@noaa.gov",{"$f":"VLOOKUP(B285,'LOC FINAL with new Themes'!A:M,7,0)","v":0},{"$f":"VLOOKUP(B285,'LOC FINAL with new Themes'!A:M,8,0)","v":0},{"$f":"VLOOKUP(B285,'LOC FINAL with new Themes'!A:M,9,0)","v":0},{"$f":"VLOOKUP(B285,'LOC FINAL with new Themes'!A:M,10,0)","v":0},{"$f":"VLOOKUP(B285,'LOC FINAL with new Themes'!A:M,11,0)","v":0},{"$f":"VLOOKUP(B285,'LOC FINAL with new Themes'!A:M,12,0)","v":0},{"$f":"VLOOKUP(B285,'LOC FINAL with new Themes'!A:M,13,0)","v":0}]
[null,null,"Non-Projected Boundaries","Non-Projected Boundaries","Water -- Oceans and Coasts ","DOI-MMS"]
[null,null,"Projected Boundaries","Projected Boundaries","Water -- Oceans and Coasts ","DOI-MMS"]
["Territorial Sea","Territorial Sea",null,"Territorial Sea","Water -- Oceans and Coasts ","DOC-NOAA","Meredith Westington","meredith.westington@noaa.gov",{"$f":"VLOOKUP(B288,'LOC FINAL with new Themes'!A:M,7,0)","v":"    National-scale maritime limits/boundaries are available as separate data layers or as a packaged bundle."},{"$f":"VLOOKUP(B288,'LOC FINAL with new Themes'!A:M,8,0)","v":0},{"$f":"VLOOKUP(B288,'LOC FINAL with new Themes'!A:M,9,0)","v":0},{"$f":"VLOOKUP(B288,'LOC FINAL with new Themes'!A:M,10,0)","v":0},{"$f":"VLOOKUP(B288,'LOC FINAL with new Themes'!A:M,11,0)","v":0},{"$f":"VLOOKUP(B288,'LOC FINAL with new Themes'!A:M,12,0)","v":0},{"$f":"VLOOKUP(B288,'LOC FINAL with new Themes'!A:M,13,0)","v":0}]
[null,null,"U.S. Marine Protected Areas Boundaries","U.S. Marine Protected Areas Boundaries","Water -- Oceans and Coasts ","DOC-NOAA"]
[null,null,"U.S. Maritime Zones/Boundaries","U.S. Maritime Zones/Boundaries","Water -- Oceans and Coasts ","DOC-NOAA"]
[{"$f":"SUBTOTAL(3,A274:A290)","v":9},{"$f":"SUBTOTAL(3,B274:B290)","v":9},{"$f":"SUBTOTAL(3,C274:C290)","v":10},{"$f":"SUBTOTAL(3,D274:D290)","v":17},"Water -- Oceans and Coasts  Count"]
[{"$f":"SUBTOTAL(3,A2:A290)","v":129},{"$f":"SUBTOTAL(3,B2:B290)","v":200},{"$f":"SUBTOTAL(3,C2:C290)","v":200},{"$f":"SUBTOTAL(3,D2:D290)","v":271},"Grand Count"]

{"sheet":"11-25-2011","index":2,"n_rows":292,"n_cols":15,"rows_kept":292,"cut":false,"hidden":true,"merged":[]}
["ORIGINAL (beginning of 2011)","LOC FINAL (October 2011)","NGDA List (October 2011)","FINAL List (November 2011)","Theme","Agency","Dataset Manager","Email","Q1 How many data set(s) do you have? It is a single set or multiple sets? ","Q2 Are you a data set manager?","Q3 Are you the POC for transferring the data set and/or for information about the data set?","Q4 How often is the data set updated?","Q5 Is there an archive/backup of the data set or do you maintain an archived copy of it? If yes, how far back do you maintain a copy? Is it easily accessible?","Q6 Does the data set go by a different name or is it referred to internally by another descriptive name?","M\nP\nS"]
[null,null,"Critical Habitat ",{"$f":"IF(C2=0,B2,C2)","v":"Critical Habitat "},"Biota","DOI-FWS"]
[null,null,"Current Range for listed species ","Current Range for listed species ","Biota","DOI-FWS"]
["ECOMAP Data Sets (Ecological Subregions: Sections and Subsections for the Conterminous United States ) ","ECOMAP Datasets (Ecological Subregions: Sections and Subsections for the Conterminous United States ) ","ECOMAP Datasets (Ecological Subregions: Sections and Subsections for the Conterminous United States ) ","ECOMAP Datasets (Ecological Subregions: Sections and Subsections for the Conterminous United States ) ","Biota","USDA-FS","David T. Cleland","dcleland@fs.fed.us",{"$f":"VLOOKUP(B4,'LOC FINAL with new Themes'!A:M,7,0)","v":"One, single set"},{"$f":"VLOOKUP(B4,'LOC FINAL with new Themes'!A:M,8,0)","v":"Yes"},{"$f":"VLOOKUP(B4,'LOC FINAL with new Themes'!A:M,9,0)","v":"Yes"},{"$f":"VLOOKUP(B4,'LOC FINAL with new Themes'!A:M,10,0)","v":"Maps are updated on a 10-year cycle"},{"$f":"VLOOKUP(B4,'LOC FINAL with new Themes'!A:M,11,0)","v":"The data is housed at and served by the Forest Service geodata portal, and is easily accessible.  The web address is: http://fsgeodata.fs.fed.us/other_resources/ecosubregions.html "},{"$f":"VLOOKUP(B4,'LOC FINAL with new Themes'!A:M,12,0)","v":"?   Internally, the data is named ECOMAP or the National Hierarchy of Ecological Units. "},{"$f":"VLOOKUP(B4,'LOC FINAL with new Themes'!A:M,13,0)","v":"S"}]
[null,null,"Endangered Species (Threatened and Endangered Species System)","Endangered Species (Threatened and Endangered Species System)","Biota","DOI-FWS"]
["Env Sens Index Maps - classified shoreline","Env Sens Index Maps - classified shoreline","Environmental Sensitivity Index (ESI) Data and Maps","Environmental Sensitivity Index (ESI) Data and Maps","Biota","DOC-NOAA","Jill Petersen","jill.petersen@noaa.gov",{"$f":"VLOOKUP(B6,'LOC FINAL with new Themes'!A:M,7,0)","v":"There are approximately 70 different atlases. There are a few that are still not available in a GIS format, (approx 7 of the approx 70!) - these are available as the hard copy product and as PDFs (scanned). The remaining atlases are available in multiple GIS formats - Arc Export files, Geodatabase with an ArcMap map document complete with all relates established and properly symbolized, Shape files with an ArcView 3.x project, a free ESI viewer that allows viewing, queries and printing (in house mapping program and filemaker pro) as well as PDF format and the hard copy product. These can be downloaded from http://response.restoration.noaa.gov/esi_download This page is in progress, but should be complete fairly quickly.\n\n"},{"$f":"VLOOKUP(B6,'LOC FINAL with new Themes'!A:M,8,0)","v":"Yes"},{"$f":"VLOOKUP(B6,'LOC FINAL with new Themes'!A:M,9,0)","v":"Yes "},{"$f":"VLOOKUP(B6,'LOC FINAL with new Themes'!A:M,10,0)","v":"- High resolution products have no defined update schedule.  TBD by geog/project."},{"$f":"VLOOKUP(B6,'LOC FINAL with new Themes'!A:M,11,0)","v":"Yes and no. We have archives of all the digital data as well as all the PDFs (scanned or produced with the digital data map comps). Many of the hard copy atlases from the first round of ESI maps were sent to the Library of Commerce. Others I have kept, but no very organized situation. However, we have all of the historic PDFs which are an exact duplicate of the hard copy atlas, so that is something. Historic data is going to be served from the above link as well. That will be added as the current data sets are completed."},{"$f":"VLOOKUP(B6,'LOC FINAL with new Themes'!A:M,12,0)","v":"ESI is the common abbreviation for these maps. Other than that, Environmental Sensitivity Index Maps, Shoreline Sensitivity maps, Environmental Sensitivity maps..... These maps have the classified shoreline, as well as summaries of biological and human use resource particularly sensitive to oiling. "},{"$f":"VLOOKUP(B6,'LOC FINAL with new Themes'!A:M,13,0)","v":"M "}]
["Environmental Sensitivity Index Maps","Environmental Sensitivity Index Maps","Environmental Sensitivity Index (ESI) Data and Maps","Environmental Sensitivity Index (ESI) Data and Maps","Biota","DOC-NOAA","Jill Petersen","jill.petersen@noaa.gov",{"$f":"VLOOKUP(B7,'LOC FINAL with new Themes'!A:M,7,0)","v":"Same as Env Sens Index Maps - classified shoreline"},{"$f":"VLOOKUP(B7,'LOC FINAL with new Themes'!A:M,8,0)","v":0},{"$f":"VLOOKUP(B7,'LOC FINAL with new Themes'!A:M,9,0)","v":0},{"$f":"VLOOKUP(B7,'LOC FINAL with new Themes'!A:M,10,0)","v":"- Hawaii is TBD, but most likely will end up being a 10 year update cycle."},{"$f":"VLOOKUP(B7,'LOC FINAL with new Themes'!A:M,11,0)","v":0},{"$f":"VLOOKUP(B7,'LOC FINAL with new Themes'!A:M,12,0)","v":0},{"$f":"VLOOKUP(B7,'LOC FINAL with new Themes'!A:M,13,0)","v":0}]
["GAP Program Dataset","GAP Program Dataset","GAP Program Dataset","GAP Program Dataset","Biota","DOI-USGS","Kevin Gergely","gergely@usgs.gov",{"$f":"VLOOKUP(B8,'LOC FINAL with new Themes'!A:M,7,0)","v":"POC; multiple data sets in single location, building three fundamental data layers, two are national (protected areas, land cover dataset); backup; six months, annually)"},{"$f":"VLOOKUP(B8,'LOC FINAL with new Themes'!A:M,8,0)","v":0},{"$f":"VLOOKUP(B8,'LOC FINAL with new Themes'!A:M,9,0)","v":0},{"$f":"VLOOKUP(B8,'LOC FINAL with new Themes'!A:M,10,0)","v":0},{"$f":"VLOOKUP(B8,'LOC FINAL with new Themes'!A:M,11,0)","v":0},{"$f":"VLOOKUP(B8,'LOC FINAL with new Themes'!A:M,12,0)","v":0},{"$f":"VLOOKUP(B8,'LOC FINAL with new Themes'!A:M,13,0)","v":"P"}]
["National Standardized Ecosystems Dataset","National Standardized Ecosystems Dataset","National Standardized Ecosystems Dataset","National Standardized Ecosystems Dataset","Biota","DOI-USGS","Roger Sayre","rsayre@usgs.gov",{"$f":"VLOOKUP(B9,'LOC FINAL with new Themes'!A:M,7,0)","v":0},{"$f":"VLOOKUP(B9,'LOC FINAL with new Themes'!A:M,8,0)","v":0},{"$f":"VLOOKUP(B9,'LOC FINAL with new Themes'!A:M,9,0)","v":0},{"$f":"VLOOKUP(B9,'LOC FINAL with new Themes'!A:M,10,0)","v":0},{"$f":"VLOOKUP(B9,'LOC FINAL with new Themes'!A:M,11,0)","v":0},{"$f":"VLOOKUP(B9,'LOC FINAL with new Themes'!A:M,12,0)","v":0},{"$f":"VLOOKUP(B9,'LOC FINAL with new Themes'!A:M,13,0)","v":0}]
[null,null,"Recovery Range for listed species ","Recovery Range for listed species ","Biota","DOI-FWS"]
[null,null,"Section 7 Range for listed species ","Section 7 Range for listed species ","Biota","DOI-FWS"]
["Biomes, Ecoregions","Biomes, Ecoregions",null,"Biomes, Ecoregions","Biota ","DOI-USGS","Dan Phillips ","dphillips@usgs.gov",{"$f":"VLOOKUP(B12,'LOC FINAL with new Themes'!A:M,7,0)","v":0},{"$f":"VLOOKUP(B12,'LOC FINAL with new Themes'!A:M,8,0)","v":0},{"$f":"VLOOKUP(B12,'LOC FINAL with new Themes'!A:M,9,0)","v":0},{"$f":"VLOOKUP(B12,'LOC FINAL with new Themes'!A:M,10,0)","v":0},{"$f":"VLOOKUP(B12,'LOC FINAL with new Themes'!A:M,11,0)","v":0},{"$f":"VLOOKUP(B12,'LOC FINAL with new Themes'!A:M,12,0)","v":0},{"$f":"VLOOKUP(B12,'LOC FINAL with new Themes'!A:M,13,0)","v":0}]
["Ecological Services","Ecological Services",null,"Ecological Services","Biota ","DOI-USGS","Dan Phillips ","dphillips@usgs.gov",{"$f":"VLOOKUP(B13,'LOC FINAL with new Themes'!A:M,7,0)","v":0},{"$f":"VLOOKUP(B13,'LOC FINAL with new Themes'!A:M,8,0)","v":0},{"$f":"VLOOKUP(B13,'LOC FINAL with new Themes'!A:M,9,0)","v":0},{"$f":"VLOOKUP(B13,'LOC FINAL with new Themes'!A:M,10,0)","v":0},{"$f":"VLOOKUP(B13,'LOC FINAL with new Themes'!A:M,11,0)","v":0},{"$f":"VLOOKUP(B13,'LOC FINAL with new Themes'!A:M,12,0)","v":0},{"$f":"VLOOKUP(B13,'LOC FINAL with new Themes'!A:M,13,0)","v":0}]
["Habitats","Habitats",null,"Habitats","Biota ","DOI-USGS","Dan Phillips ","dphillips@usgs.gov",{"$f":"VLOOKUP(B14,'LOC FINAL with new Themes'!A:M,7,0)","v":"see protected areas and land cover set; vertebrae species of US being developed (not complete for all species they want to include in it."},{"$f":"VLOOKUP(B14,'LOC FINAL with new Themes'!A:M,8,0)","v":0},{"$f":"VLOOKUP(B14,'LOC FINAL with new Themes'!A:M,9,0)","v":0},{"$f":"VLOOKUP(B14,'LOC FINAL with new Themes'!A:M,10,0)","v":0},{"$f":"VLOOKUP(B14,'LOC FINAL with new Themes'!A:M,11,0)","v":0},{"$f":"VLOOKUP(B14,'LOC FINAL with new Themes'!A:M,12,0)","v":0},{"$f":"VLOOKUP(B14,'LOC FINAL with new Themes'!A:M,13,0)","v":"M"}]
["Invasive Species","Invasive Species",null,"Invasive Species","Biota ","DOI-USGS","Dan Phillips ","dphillips@usgs.gov",{"$f":"VLOOKUP(B15,'LOC FINAL with new Themes'!A:M,7,0)","v":"There are hundreds of datasets that are produced and maintained by the GAP program. Dan is not the data set manager, but I work with the people that maintain and update the datasets and maintains metadata.The data are updated at different intervals, especially now that they have moved more to a regional and national based approach. GAPS data sets presumably archived since 1990s."},{"$f":"VLOOKUP(B15,'LOC FINAL with new Themes'!A:M,8,0)","v":0},{"$f":"VLOOKUP(B15,'LOC FINAL with new Themes'!A:M,9,0)","v":0},{"$f":"VLOOKUP(B15,'LOC FINAL with new Themes'!A:M,10,0)","v":0},{"$f":"VLOOKUP(B15,'LOC FINAL with new Themes'!A:M,11,0)","v":0},{"$f":"VLOOKUP(B15,'LOC FINAL with new Themes'!A:M,12,0)","v":0},{"$f":"VLOOKUP(B15,'LOC FINAL with new Themes'!A:M,13,0)","v":"M"}]
["Species Distribution(amphibians, birds, reptiles, mammals, fishes, plants, etc)","Species Distribution (amphibians, birds, reptiles, mammals, fishes, plants, etc)",null,"Species Distribution (amphibians, birds, reptiles, mammals, fishes, plants, etc)","Biota ","DOI-USGS","Dan Phillips ","dphillips@usgs.gov",{"$f":"VLOOKUP(B16,'LOC FINAL with new Themes'!A:M,7,0)","v":"There are hundreds of datasets that are produced and maintained by the GAP program. Dan is not the data set manager, but I work with the people that maintain and update the datasets and maintains metadata. The data are updated at different intervals, especially now that they have moved more to a regional and national based approach. GAPS data sets presumably archived since 1990s."},{"$f":"VLOOKUP(B16,'LOC FINAL with new Themes'!A:M,8,0)","v":0},{"$f":"VLOOKUP(B16,'LOC FINAL with new Themes'!A:M,9,0)","v":0},{"$f":"VLOOKUP(B16,'LOC FINAL with new Themes'!A:M,10,0)","v":0},{"$f":"VLOOKUP(B16,'LOC FINAL with new Themes'!A:M,11,0)","v":0},{"$f":"VLOOKUP(B16,'LOC FINAL with new Themes'!A:M,12,0)","v":0},{"$f":"VLOOKUP(B16,'LOC FINAL with new Themes'!A:M,13,0)","v":"M"}]
[{"$f":"SUBTOTAL(3,A2:A16)","v":10},{"$f":"SUBTOTAL(3,B2:B16)","v":10},{"$f":"SUBTOTAL(3,C2:C16)","v":10},{"$f":"SUBTOTAL(3,D2:D16)","v":15},"Biota Count"]
["General Land Office","General Land Office","General Land Office",{"$f":"IF(C18=0,B18,C18)","v":"General Land Office"},"Cadastre","DOI-BLM","Juan Palma","juan_palma@blm.gov",{"$f":"VLOOKUP(B18,'LOC FINAL with new Themes'!A:M,7,0)","v":0},{"$f":"VLOOKUP(B18,'LOC FINAL with new Themes'!A:M,8,0)","v":0},{"$f":"VLOOKUP(B18,'LOC FINAL with new Themes'!A:M,9,0)","v":0},{"$f":"VLOOKUP(B18,'LOC FINAL with new Themes'!A:M,10,0)","v":0},{"$f":"VLOOKUP(B18,'LOC FINAL with new Themes'!A:M,11,0)","v":0},{"$f":"VLOOKUP(B18,'LOC FINAL with new Themes'!A:M,12,0)","v":0},{"$f":"VLOOKUP(B18,'LOC FINAL with new Themes'!A:M,13,0)","v":0}]
["Geographic Coordinate Data Base (GCDB)","Geographic Coordinate Data Base (GCDB)",null,"Geographic Coordinate Data Base (GCDB)","Cadastre","DOI-BLM","Don Buhler","don_buhler@blm.gov",{"$f":"VLOOKUP(B19,'LOC FINAL with new Themes'!A:M,7,0)","v":"every agency has its own database; multiple data sets; standard being advanced and put into practice; federal interest is managed with BLM; state and local are authoritative sets for other lands; "},{"$f":"VLOOKUP(B19,'LOC FINAL with new Themes'!A:M,8,0)","v":0},{"$f":"VLOOKUP(B19,'LOC FINAL with new Themes'!A:M,9,0)","v":0},{"$f":"VLOOKUP(B19,'LOC FINAL with new Themes'!A:M,10,0)","v":0},{"$f":"VLOOKUP(B19,'LOC FINAL with new Themes'!A:M,11,0)","v":0},{"$f":"VLOOKUP(B19,'LOC FINAL with new Themes'!A:M,12,0)","v":0},{"$f":"VLOOKUP(B19,'LOC FINAL with new Themes'!A:M,13,0)","v":"M "}]
["LR 2000 - Master Title Plats ","LR 2000 - Master Title Plats ","LR 2000 - Attribute Information","LR 2000 - Attribute Information","Cadastre","DOI-BLM","Jeff Holdren","jeff_holdren@blm.gov",{"$f":"VLOOKUP(B20,'LOC FINAL with new Themes'!A:M,7,0)","v":"listing of sales, rents, agricultural disposal and rights of way cases, group of data sets in one system; Kim Burns, division chief; not archived, there is a backup; Denver office handles"},{"$f":"VLOOKUP(B20,'LOC FINAL with new Themes'!A:M,8,0)","v":0},{"$f":"VLOOKUP(B20,'LOC FINAL with new Themes'!A:M,9,0)","v":0},{"$f":"VLOOKUP(B20,'LOC FINAL with new Themes'!A:M,10,0)","v":0},{"$f":"VLOOKUP(B20,'LOC FINAL with new Themes'!A:M,11,0)","v":0},{"$f":"VLOOKUP(B20,'LOC FINAL with new Themes'!A:M,12,0)","v":0},{"$f":"VLOOKUP(B20,'LOC FINAL with new Themes'!A:M,13,0)","v":"P"}]
["Manual of Surveying Instructions, Data Standards","Manual of Surveying Instructions, Data Standards",null,"Manual of Surveying Instructions, Data Standards","Cadastre","DOI-BLM","Don Buhler","don_buhler@blm.gov",{"$f":"VLOOKUP(B21,'LOC FINAL with new Themes'!A:M,7,0)","v":0},{"$f":"VLOOKUP(B21,'LOC FINAL with new Themes'!A:M,8,0)","v":0},{"$f":"VLOOKUP(B21,'LOC FINAL with new Themes'!A:M,9,0)","v":0},{"$f":"VLOOKUP(B21,'LOC FINAL with new Themes'!A:M,10,0)","v":0},{"$f":"VLOOKUP(B21,'LOC FINAL with new Themes'!A:M,11,0)","v":0},{"$f":"VLOOKUP(B21,'LOC FINAL with new Themes'!A:M,12,0)","v":0},{"$f":"VLOOKUP(B21,'LOC FINAL with new Themes'!A:M,13,0)","v":0}]
["Mineral Estate - Fluids","Mineral Estate - Fluids",null,"Mineral Estate - Fluids","Cadastre","DOI-BLM","Tim Spisak ","tim_spisak@blm.gov",{"$f":"VLOOKUP(B22,'LOC FINAL with new Themes'!A:M,7,0)","v":"mineral leasess, mining claims, rights of way, gases (single data set); BLM-managed lands but managed all federal mineral estate (comprehensive for mineraal estate) some electronic and some not"},{"$f":"VLOOKUP(B22,'LOC FINAL with new Themes'!A:M,8,0)","v":0},{"$f":"VLOOKUP(B22,'LOC FINAL with new Themes'!A:M,9,0)","v":0},{"$f":"VLOOKUP(B22,'LOC FINAL with new Themes'!A:M,10,0)","v":0},{"$f":"VLOOKUP(B22,'LOC FINAL with new Themes'!A:M,11,0)","v":0},{"$f":"VLOOKUP(B22,'LOC FINAL with new Themes'!A:M,12,0)","v":0},{"$f":"VLOOKUP(B22,'LOC FINAL with new Themes'!A:M,13,0)","v":"P"}]
["Mineral Estate - Solids","Mineral Estate - Solids",null,"Mineral Estate - Solids","Cadastre","DOI-BLM","Mitchell Leverette","mitchell_leverette@blm.gov",{"$f":"VLOOKUP(B23,'LOC FINAL with new Themes'!A:M,7,0)","v":"mineral leasess, mining claims, rights of way, gases (single data set); BLM-managed lands but managed all federal mineral estate (comprehensive for mineral estate) some electronic and some not"},{"$f":"VLOOKUP(B23,'LOC FINAL with new Themes'!A:M,8,0)","v":0},{"$f":"VLOOKUP(B23,'LOC FINAL with new Themes'!A:M,9,0)","v":0},{"$f":"VLOOKUP(B23,'LOC FINAL with new Themes'!A:M,10,0)","v":0},{"$f":"VLOOKUP(B23,'LOC FINAL with new Themes'!A:M,11,0)","v":0},{"$f":"VLOOKUP(B23,'LOC FINAL with new Themes'!A:M,12,0)","v":0},{"$f":"VLOOKUP(B23,'LOC FINAL with new Themes'!A:M,13,0)","v":"P"}]
["Multipurpose Marine Cadastre","Multipurpose Marine Cadastre","Multipurpose Marine Cadastre","Multipurpose Marine Cadastre","Cadastre","DOI-BOEM","Doug Vandegraft","douglas.vandegraft@boemre.gov",{"$f":"VLOOKUP(B24,'LOC FINAL with new Themes'!A:M,7,0)","v":"undeliverable email- neeed to identify new contact"},{"$f":"VLOOKUP(B24,'LOC FINAL with new Themes'!A:M,8,0)","v":0},{"$f":"VLOOKUP(B24,'LOC FINAL with new Themes'!A:M,9,0)","v":0},{"$f":"VLOOKUP(B24,'LOC FINAL with new Themes'!A:M,10,0)","v":0},{"$f":"VLOOKUP(B24,'LOC FINAL with new Themes'!A:M,11,0)","v":0},{"$f":"VLOOKUP(B24,'LOC FINAL with new Themes'!A:M,12,0)","v":0},{"$f":"VLOOKUP(B24,'LOC FINAL with new Themes'!A:M,13,0)","v":0}]
[null,null,"PADUS (Protected Areas Database of the US)","PADUS (Protected Areas Database of the US)","Cadastre","DOI-USGS"]
["Parcels","Parcels","Parcels","Parcels","Cadastre","DOI-BLM","Bob Ader","bob_ader@blm.gov",{"$f":"VLOOKUP(B26,'LOC FINAL with new Themes'!A:M,7,0)","v":"every agency has its own database; multiple data sets; standard being advanced and put into practice; federal interest is managed with BLM; state and local are authoritative sets for other lands; current effort of federal inventory "},{"$f":"VLOOKUP(B26,'LOC FINAL with new Themes'!A:M,8,0)","v":0},{"$f":"VLOOKUP(B26,'LOC FINAL with new Themes'!A:M,9,0)","v":0},{"$f":"VLOOKUP(B26,'LOC FINAL with new Themes'!A:M,10,0)","v":0},{"$f":"VLOOKUP(B26,'LOC FINAL with new Themes'!A:M,11,0)","v":0},{"$f":"VLOOKUP(B26,'LOC FINAL with new Themes'!A:M,12,0)","v":0},{"$f":"VLOOKUP(B26,'LOC FINAL with new Themes'!A:M,13,0)","v":"M "}]
[null,null,"Protractions","Protractions","Cadastre","DOI-MMS"]
["Surface Estate","Surface Estate",null,"Surface Estate","Cadastre","DOI-BLM","Kim Burns","kim_m_burns@blm.gov",{"$f":"VLOOKUP(B28,'LOC FINAL with new Themes'!A:M,7,0)","v":"lands administered by BLM; other agencies have own system; ownership of lands;  Tim Spisak, division chief; not archived, there is a backup; Denver office handles"},{"$f":"VLOOKUP(B28,'LOC FINAL with new Themes'!A:M,8,0)","v":0},{"$f":"VLOOKUP(B28,'LOC FINAL with new Themes'!A:M,9,0)","v":0},{"$f":"VLOOKUP(B28,'LOC FINAL with new Themes'!A:M,10,0)","v":0},{"$f":"VLOOKUP(B28,'LOC FINAL with new Themes'!A:M,11,0)","v":0},{"$f":"VLOOKUP(B28,'LOC FINAL with new Themes'!A:M,12,0)","v":0},{"$f":"VLOOKUP(B28,'LOC FINAL with new Themes'!A:M,13,0)","v":0}]
["U.S. Official Cadastral Survey Records","U.S. Official Cadastral Survey Records","U.S. Official Cadastral Survey Records","U.S. Official Cadastral Survey Records","Cadastre","DOI-BLM","Don Buhler","don_buhler@blm.gov",{"$f":"VLOOKUP(B29,'LOC FINAL with new Themes'!A:M,7,0)","v":"every agency has its own database; multiple data sets; standard being advanced and put into practice; federal interest is managed with BLM; state and local are authoritative sets for other lands; state offices are scanning these records (survey plats and field notes); CDI (conveyence cards)"},{"$f":"VLOOKUP(B29,'LOC FINAL with new Themes'!A:M,8,0)","v":0},{"$f":"VLOOKUP(B29,'LOC FINAL with new Themes'!A:M,9,0)","v":0},{"$f":"VLOOKUP(B29,'LOC FINAL with new Themes'!A:M,10,0)","v":0},{"$f":"VLOOKUP(B29,'LOC FINAL with new Themes'!A:M,11,0)","v":0},{"$f":"VLOOKUP(B29,'LOC FINAL with new Themes'!A:M,12,0)","v":0},{"$f":"VLOOKUP(B29,'LOC FINAL with new Themes'!A:M,13,0)","v":"M "}]
["U.S. Public Land Survey System","U.S. Public Land Survey System","U.S. Public Land Survey System","U.S. Public Land Survey System","Cadastre","DOI-BLM","Don Buhler","don_buhler@blm.gov",{"$f":"VLOOKUP(B30,'LOC FINAL with new Themes'!A:M,7,0)","v":"only federal agency that administers the PLSS; trying to get it to be logically one data set with different regions. (working copies for nine states in West); keep historical record in data base; schema 2 is the version to look at for archiving some time March 2012"},{"$f":"VLOOKUP(B30,'LOC FINAL with new Themes'!A:M,8,0)","v":0},{"$f":"VLOOKUP(B30,'LOC FINAL with new Themes'!A:M,9,0)","v":0},{"$f":"VLOOKUP(B30,'LOC FINAL with new Themes'!A:M,10,0)","v":0},{"$f":"VLOOKUP(B30,'LOC FINAL with new Themes'!A:M,11,0)","v":0},{"$f":"VLOOKUP(B30,'LOC FINAL with new Themes'!A:M,12,0)","v":0},{"$f":"VLOOKUP(B30,'LOC FINAL with new Themes'!A:M,13,0)","v":"P"}]
[{"$f":"SUBTOTAL(3,A18:A30)","v":11},{"$f":"SUBTOTAL(3,B18:B30)","v":11},{"$f":"SUBTOTAL(3,C18:C30)","v":8},{"$f":"SUBTOTAL(3,D18:D30)","v":13},"Cadastre Count"]
["Blended Sea Surface Temperature","Blended Sea Surface Temperature","Blended Sea Surface Temperature",{"$f":"IF(C32=0,B32,C32)","v":"Blended Sea Surface Temperature"},"Climate and Weather ","DOC-NOAA","Viva Banzon","Viva.Banzon@noaa.gov",{"$f":"VLOOKUP(B32,'LOC FINAL with new Themes'!A:M,7,0)","v":0},{"$f":"VLOOKUP(B32,'LOC FINAL with new Themes'!A:M,8,0)","v":0},{"$f":"VLOOKUP(B32,'LOC FINAL with new Themes'!A:M,9,0)","v":0},{"$f":"VLOOKUP(B32,'LOC FINAL with new Themes'!A:M,10,0)","v":0},{"$f":"VLOOKUP(B32,'LOC FINAL with new Themes'!A:M,11,0)","v":0},{"$f":"VLOOKUP(B32,'LOC FINAL with new Themes'!A:M,12,0)","v":0},{"$f":"VLOOKUP(B32,'LOC FINAL with new Themes'!A:M,13,0)","v":0}]
["Climate Data Sets ","Climate Datasets ",null,"Climate Datasets ","Climate and Weather ","USDA-NRCS","Jan Curtis","jan.curtis@por.usda.gov",{"$f":"VLOOKUP(B33,'LOC FINAL with new Themes'!A:M,7,0)","v":"Other climate data acquired from our SNOTEL and SCAN observation networks can be accessed from these links."},{"$f":"VLOOKUP(B33,'LOC FINAL with new Themes'!A:M,8,0)","v":0},{"$f":"VLOOKUP(B33,'LOC FINAL with new Themes'!A:M,9,0)","v":0},{"$f":"VLOOKUP(B33,'LOC FINAL with new Themes'!A:M,10,0)","v":0},{"$f":"VLOOKUP(B33,'LOC FINAL with new Themes'!A:M,11,0)","v":0},{"$f":"VLOOKUP(B33,'LOC FINAL with new Themes'!A:M,12,0)","v":0},{"$f":"VLOOKUP(B33,'LOC FINAL with new Themes'!A:M,13,0)","v":"M"}]
["Geostationary Operational Environmental Satellite (GOES) data (NCDC)","Geostationary Operational Environmental Satellite (GOES) data (NCDC)","Geostationary Operational Environmental Satellite (GOES) data (NCDC)","Geostationary Operational Environmental Satellite (GOES) data (NCDC)","Climate and Weather ","DOC-NOAA","Nancy Ritchey","Nancy.Ritchey@noaa.gov",{"$f":"VLOOKUP(B34,'LOC FINAL with new Themes'!A:M,7,0)","v":"Define 'data set'.  Each spacecraft continuously produces a data stream.  There are multiple sets and the total going back to the late 70s or early 80s numbers in the millions"},{"$f":"VLOOKUP(B34,'LOC FINAL with new Themes'!A:M,8,0)","v":"Yes"},{"$f":"VLOOKUP(B34,'LOC FINAL with new Themes'!A:M,9,0)","v":"Yes"},{"$f":"VLOOKUP(B34,'LOC FINAL with new Themes'!A:M,10,0)","v":"Continuously"},{"$f":"VLOOKUP(B34,'LOC FINAL with new Themes'!A:M,11,0)","v":"There are two active archive centers for these data; one here in Asheville, NC and one in Boulder, CO.  These data go back to the late 70s and all data are on line wither on disc or robotic tape storage"},{"$f":"VLOOKUP(B34,'LOC FINAL with new Themes'!A:M,12,0)","v":"Again, define your terms.  For examples see www.class.noaa.gov - Raw data are listed by satellite (GOES or POES) and then be instrument.  Geophysical products are listed by product name."},{"$f":"VLOOKUP(B34,'LOC FINAL with new Themes'!A:M,13,0)","v":0}]
["Global Historical Climate Network (GHCN) daily data (NCDC)","Global Historical Climate Network (GHCN) daily data (NCDC)",null,"Global Historical Climate Network (GHCN) daily data (NCDC)","Climate and Weather ","DOC-NOAA","Matt Menne","matthew.menne@noaa.gov",{"$f":"VLOOKUP(B35,'LOC FINAL with new Themes'!A:M,7,0)","v":0},{"$f":"VLOOKUP(B35,'LOC FINAL with new Themes'!A:M,8,0)","v":0},{"$f":"VLOOKUP(B35,'LOC FINAL with new Themes'!A:M,9,0)","v":0},{"$f":"VLOOKUP(B35,'LOC FINAL with new Themes'!A:M,10,0)","v":0},{"$f":"VLOOKUP(B35,'LOC FINAL with new Themes'!A:M,11,0)","v":0},{"$f":"VLOOKUP(B35,'LOC FINAL with new Themes'!A:M,12,0)","v":0},{"$f":"VLOOKUP(B35,'LOC FINAL with new Themes'!A:M,13,0)","v":0}]
["Global Historical Climate Network (GHCN) monthly data (NCDC)","Global Historical Climate Network (GHCN) monthly data (NCDC)",null,"Global Historical Climate Network (GHCN) monthly data (NCDC)","Climate and Weather ","DOC-NOAA","Jay Lawrimore","Jay.Lawrimore@noaa.gov",{"$f":"VLOOKUP(B36,'LOC FINAL with new Themes'!A:M,7,0)","v":"It is a single dataset consisting of multiple files. 6 total. 2 for monthly mean temperature (uncorrected and corrected), 2 for monthly maximum temperature, and 2 for monthly minimum temperature. available at http://www.ncdc.noaa.gov/ghcnm/v3.php ."},{"$f":"VLOOKUP(B36,'LOC FINAL with new Themes'!A:M,8,0)","v":"I am head of the branch that developed and updates the dataset."},{"$f":"VLOOKUP(B36,'LOC FINAL with new Themes'!A:M,9,0)","v":"Byron Gleason (Byron.Gleason@noaa.gov) is the appropriate contact.  "},{"$f":"VLOOKUP(B36,'LOC FINAL with new Themes'!A:M,10,0)","v":"Daily"},{"$f":"VLOOKUP(B36,'LOC FINAL with new Themes'!A:M,11,0)","v":"The files are time stamped each day they are produced and then stored when the next days run is made. The archived copies are not publicly available but can be retrieved by NCDC staff as needed."},{"$f":"VLOOKUP(B36,'LOC FINAL with new Themes'!A:M,12,0)","v":"It goes by GHCN-M."},{"$f":"VLOOKUP(B36,'LOC FINAL with new Themes'!A:M,13,0)","v":0}]
["Hurricane Satellite","Hurricane Satellite",null,"Hurricane Satellite","Climate and Weather ","DOC-NOAA","Ken Knapp","ken.knapp@noaa.gov",{"$f":"VLOOKUP(B37,'LOC FINAL with new Themes'!A:M,7,0)","v":0},{"$f":"VLOOKUP(B37,'LOC FINAL with new Themes'!A:M,8,0)","v":0},{"$f":"VLOOKUP(B37,'LOC FINAL with new Themes'!A:M,9,0)","v":0},{"$f":"VLOOKUP(B37,'LOC FINAL with new Themes'!A:M,10,0)","v":0},{"$f":"VLOOKUP(B37,'LOC FINAL with new Themes'!A:M,11,0)","v":0},{"$f":"VLOOKUP(B37,'LOC FINAL with new Themes'!A:M,12,0)","v":0},{"$f":"VLOOKUP(B37,'LOC FINAL with new Themes'!A:M,13,0)","v":0}]
["Integrated Global Radiosonde Archive (IGRA) upper air data (NCDC)","Integrated Global Radiosonde Archive (IGRA) upper air data (NCDC)",null,"Integrated Global Radiosonde Archive (IGRA) upper air data (NCDC)","Climate and Weather ","DOC-NOAA","Imke Durre","imke.durre@noaa.gov",{"$f":"VLOOKUP(B38,'LOC FINAL with new Themes'!A:M,7,0)","v":0},{"$f":"VLOOKUP(B38,'LOC FINAL with new Themes'!A:M,8,0)","v":0},{"$f":"VLOOKUP(B38,'LOC FINAL with new Themes'!A:M,9,0)","v":0},{"$f":"VLOOKUP(B38,'LOC FINAL with new Themes'!A:M,10,0)","v":0},{"$f":"VLOOKUP(B38,'LOC FINAL with new Themes'!A:M,11,0)","v":0},{"$f":"VLOOKUP(B38,'LOC FINAL with new Themes'!A:M,12,0)","v":0},{"$f":"VLOOKUP(B38,'LOC FINAL with new Themes'!A:M,13,0)","v":0}]
["Integrated Surface Data (ISD) at National Climate Data Center (NCDC) ","Integrated Surface Data (ISD) at National Climate Data Center (NCDC) ",null,"Integrated Surface Data (ISD) at National Climate Data Center (NCDC) ","Climate and Weather ","DOC-NOAA","Neal Lott","neal.lott@noaa.gov",{"$f":"VLOOKUP(B39,'LOC FINAL with new Themes'!A:M,7,0)","v":"This is a single data set, developed as an integration of multiple data sets and sources."},{"$f":"VLOOKUP(B39,'LOC FINAL with new Themes'!A:M,8,0)","v":"I am currently the data set manager jointly with Russel Vose, cc'ed here Russell.Vose@noaa.gov"},{"$f":"VLOOKUP(B39,'LOC FINAL with new Themes'!A:M,9,0)","v":"I am one of the POC's here at NCDC.  We have a User Engagement and Services Branch which handles user inquiries, etc."},{"$f":"VLOOKUP(B39,'LOC FINAL with new Themes'!A:M,10,0)","v":"It's updated once per day with the most recent data (ie, yesterday's observations)."},{"$f":"VLOOKUP(B39,'LOC FINAL with new Themes'!A:M,11,0)","v":"We have an archive copy and a backup copy.  The period of record of the data is 1900 to present.  It's very easily accessible via multiple services (FTP, GIS, Web Services, etc)."},{"$f":"VLOOKUP(B39,'LOC FINAL with new Themes'!A:M,12,0)","v":"Integrated Surface Data is its name, but is sometimes referred to generically as global hourly surface data."},{"$f":"VLOOKUP(B39,'LOC FINAL with new Themes'!A:M,13,0)","v":0}]
[null,null,"MODIS-based Atmospheric Products","MODIS-based Atmospheric Products","Climate and Weather ","USDA -FS (Along with USGS)"]
["National Climate Data Center","National Climate Data Center",null,"National Climate Data Center","Climate and Weather ","USDA-NRCS","Jan Curtis","jan.curtis@por.usda.gov",{"$f":"VLOOKUP(B41,'LOC FINAL with new Themes'!A:M,7,0)","v":"administered by NOAA - is there a contact there?"},{"$f":"VLOOKUP(B41,'LOC FINAL with new Themes'!A:M,8,0)","v":0},{"$f":"VLOOKUP(B41,'LOC FINAL with new Themes'!A:M,9,0)","v":0},{"$f":"VLOOKUP(B41,'LOC FINAL with new Themes'!A:M,10,0)","v":0},{"$f":"VLOOKUP(B41,'LOC FINAL with new Themes'!A:M,11,0)","v":0},{"$f":"VLOOKUP(B41,'LOC FINAL with new Themes'!A:M,12,0)","v":0},{"$f":"VLOOKUP(B41,'LOC FINAL with new Themes'!A:M,13,0)","v":0}]
[null,null,"National Doplar Radar Data (NEXRAD)","National Doplar Radar Data (NEXRAD)","Climate and Weather ","DOC-NOAA"]
["NEXRAD Level II and III radar data (NCDC)","NEXRAD Level II and III radar data (NCDC)",null,"NEXRAD Level II and III radar data (NCDC)","Climate and Weather ","DOC-NOAA","Steve Del Greco","stephen.a.delgreco@noaa.gov",{"$f":"VLOOKUP(B43,'LOC FINAL with new Themes'!A:M,7,0)","v":"The NEXRAD datasets for level II and Level III are archived by site.  There are 158 NEXRAD sites with data that goes back to ~ 1994.  See URL http://www.ncdc.noaa.gov/nexradinv/ for NEXRAD web services for ordering data."},{"$f":"VLOOKUP(B43,'LOC FINAL with new Themes'!A:M,8,0)","v":"I'm the NEXRAD program manager for NCDC.  This also includes other radar networks for example the FAA Terminal Doppler Weather Radar (45 sites)."},{"$f":"VLOOKUP(B43,'LOC FINAL with new Themes'!A:M,9,0)","v":"Yes"},{"$f":"VLOOKUP(B43,'LOC FINAL with new Themes'!A:M,10,0)","v":"NEXRAD Level II and Level III data are ingested at NCDC in near real time (~ 10 second latency).  We make the data available via the web ~ 24 hours after receipt.  The NEXRAD/TDWR data is also available in near real time through data feeds supported by partnerships we have with the University of Oklahoma, Purdue and Education and Research Consortium of the Western Carolinas. "},{"$f":"VLOOKUP(B43,'LOC FINAL with new Themes'!A:M,11,0)","v":"NEXRAD data is archived and backed up and goes back to ~ 1994 (depends on station).  Data is free of charge and accessible via the URL above"},{"$f":"VLOOKUP(B43,'LOC FINAL with new Themes'!A:M,12,0)","v":"The data set is from the Weather Surveillance Radar 1988 Doppler, but most commonly  know as \"NEXRAD\"  Level II for the base or raw data and Level III for derived products"},{"$f":"VLOOKUP(B43,'LOC FINAL with new Themes'!A:M,13,0)","v":0}]
[null,null,"NOAA National Weather Service GIS Data",{"$f":"IF(C44=0,B44,C44)","v":"NOAA National Weather Service GIS Data"},"Climate and Weather ","DOC-NOAA"]
["North American Regional Reanalysis (NARR) model data (NCDC)","North American Regional Reanalysis (NARR) model data (NCDC)",null,{"$f":"IF(C45=0,B45,C45)","v":"North American Regional Reanalysis (NARR) model data (NCDC)"},"Climate and Weather ","DOC-NOAA","Dan Swank","Dan.Swank@noaa.gov",{"$f":"VLOOKUP(B45,'LOC FINAL with new Themes'!A:M,7,0)","v":"The NARR natively contains 2x sub sets) 3 hr time series / monthly averages."},{"$f":"VLOOKUP(B45,'LOC FINAL with new Themes'!A:M,8,0)","v":"Depends on the exact definition: there is no one with that exact job title at NCDC-NOMADS"},{"$f":"VLOOKUP(B45,'LOC FINAL with new Themes'!A:M,9,0)","v":"Yes"},{"$f":"VLOOKUP(B45,'LOC FINAL with new Themes'!A:M,10,0)","v":"NARR is updated on a daily basis, typically arriving 1-3 days from real-time.  Serial integrity is not guaranteed until 1 month has passed."},{"$f":"VLOOKUP(B45,'LOC FINAL with new Themes'!A:M,11,0)","v":"Multiple copies exist, including HPSS, off-site HPSS, TSM, and mirrored spinning disk copies.  Backups are for the entire set.  While the backups are not public accessible, the disk mirror can be put in place in minutes and the tape copies may take a day or two"},{"$f":"VLOOKUP(B45,'LOC FINAL with new Themes'!A:M,12,0)","v":"Besides the acronym NARR -- no"},{"$f":"VLOOKUP(B45,'LOC FINAL with new Themes'!A:M,13,0)","v":0}]
["Parameter-elevation Regressions on Independent Slopes Model (PRISM) Data Sets","Parameter-elevation Regressions on Independent Slopes Model (PRISM) Datasets","Parameter-elevation Regressions on Independent Slopes Model (PRISM) Datasets",{"$f":"IF(C46=0,B46,C46)","v":"Parameter-elevation Regressions on Independent Slopes Model (PRISM) Datasets"},"Climate and Weather ","USDA-NRCS","Jan Curtis","jan.curtis@por.usda.gov",{"$f":"VLOOKUP(B46,'LOC FINAL with new Themes'!A:M,7,0)","v":"info provided via http://www.prism.oregonstate.edu/ and \nhttp://www.nrcs.usda.gov/wps/portal/nrcs/main/?ss=16&navtype=SubNavigation&cid=null&navid=850130000000000&pnavid=850000000000000&position=SubNavigation&ttype=main&pname=USDA%2520NRCS%2520-%2520Natural%2520Resources%2520Conservation%2520Service\n"},{"$f":"VLOOKUP(B46,'LOC FINAL with new Themes'!A:M,8,0)","v":0},{"$f":"VLOOKUP(B46,'LOC FINAL with new Themes'!A:M,9,0)","v":0},{"$f":"VLOOKUP(B46,'LOC FINAL with new Themes'!A:M,10,0)","v":0},{"$f":"VLOOKUP(B46,'LOC FINAL with new Themes'!A:M,11,0)","v":0},{"$f":"VLOOKUP(B46,'LOC FINAL with new Themes'!A:M,12,0)","v":0},{"$f":"VLOOKUP(B46,'LOC FINAL with new Themes'!A:M,13,0)","v":"M"}]
["Polar Operational Environmental Satellite (POES) data (NCDC)","Polar Operational Environmental Satellite (POES) data","Polar Operational Environmental Satellite (POES) data",{"$f":"IF(C47=0,B47,C47)","v":"Polar Operational Environmental Satellite (POES) data"},"Climate and Weather ","DOC-NOAA","John Bates","john.j.bates@noaa.gov",{"$f":"VLOOKUP(B47,'LOC FINAL with new Themes'!A:M,7,0)","v":0},{"$f":"VLOOKUP(B47,'LOC FINAL with new Themes'!A:M,8,0)","v":0},{"$f":"VLOOKUP(B47,'LOC FINAL with new Themes'!A:M,9,0)","v":0},{"$f":"VLOOKUP(B47,'LOC FINAL with new Themes'!A:M,10,0)","v":0},{"$f":"VLOOKUP(B47,'LOC FINAL with new Themes'!A:M,11,0)","v":0},{"$f":"VLOOKUP(B47,'LOC FINAL with new Themes'!A:M,12,0)","v":0},{"$f":"VLOOKUP(B47,'LOC FINAL with new Themes'!A:M,13,0)","v":0}]
[{"$f":"SUBTOTAL(3,A32:A47)","v":13},{"$f":"SUBTOTAL(3,B32:B47)","v":13},{"$f":"SUBTOTAL(3,C32:C47)","v":7},{"$f":"SUBTOTAL(3,D32:D47)","v":16},"Climate and Weather  Count"]
[null,"5-digit ZIP Code Tabulation Area (Census 2000)","5-digit ZIP Code Tabulation Area (Census 2000)",{"$f":"IF(C49=0,B49,C49)","v":"5-digit ZIP Code Tabulation Area (Census 2000)"},"Cultural & Demographic Statistics ","DOC-Census","Jennifer Holland","Jennifer.L.Holland@census.gov",{"$f":"VLOOKUP(B49,'LOC FINAL with new Themes'!A:M,7,0)","v":0},{"$f":"VLOOKUP(B49,'LOC FINAL with new Themes'!A:M,8,0)","v":0},{"$f":"VLOOKUP(B49,'LOC FINAL with new Themes'!A:M,9,0)","v":0},{"$f":"VLOOKUP(B49,'LOC FINAL with new Themes'!A:M,10,0)","v":0},{"$f":"VLOOKUP(B49,'LOC FINAL with new Themes'!A:M,11,0)","v":0},{"$f":"VLOOKUP(B49,'LOC FINAL with new Themes'!A:M,12,0)","v":0},{"$f":"VLOOKUP(B49,'LOC FINAL with new Themes'!A:M,13,0)","v":0}]
["AIR, ANVSA, Hawaiian Homelands Boundaries","AIR, ANVSA, Hawaiian Homelands Boundaries",null,"AIR, ANVSA, Hawaiian Homelands Boundaries","Cultural & Demographic Statistics ","DOC-Census","Randy Fusaro","randy.j.fusaro@census.gov",{"$f":"VLOOKUP(B50,'LOC FINAL with new Themes'!A:M,7,0)","v":0},{"$f":"VLOOKUP(B50,'LOC FINAL with new Themes'!A:M,8,0)","v":0},{"$f":"VLOOKUP(B50,'LOC FINAL with new Themes'!A:M,9,0)","v":0},{"$f":"VLOOKUP(B50,'LOC FINAL with new Themes'!A:M,10,0)","v":0},{"$f":"VLOOKUP(B50,'LOC FINAL with new Themes'!A:M,11,0)","v":0},{"$f":"VLOOKUP(B50,'LOC FINAL with new Themes'!A:M,12,0)","v":0},{"$f":"VLOOKUP(B50,'LOC FINAL with new Themes'!A:M,13,0)","v":0}]
[null,"All Lines (2010 Census)","All Lines (2010 Census)","All Lines (2010 Census)","Cultural & Demographic Statistics ","DOC-Census","Jennifer Holland","Jennifer.L.Holland@census.gov",{"$f":"VLOOKUP(B51,'LOC FINAL with new Themes'!A:M,7,0)","v":0},{"$f":"VLOOKUP(B51,'LOC FINAL with new Themes'!A:M,8,0)","v":0},{"$f":"VLOOKUP(B51,'LOC FINAL with new Themes'!A:M,9,0)","v":0},{"$f":"VLOOKUP(B51,'LOC FINAL with new Themes'!A:M,10,0)","v":0},{"$f":"VLOOKUP(B51,'LOC FINAL with new Themes'!A:M,11,0)","v":0},{"$f":"VLOOKUP(B51,'LOC FINAL with new Themes'!A:M,12,0)","v":0},{"$f":"VLOOKUP(B51,'LOC FINAL with new Themes'!A:M,13,0)","v":0}]
[null,"ANSI codes for  metro/micropolitan areas","ANSI codes for  metro/micropolitan areas","ANSI codes for  metro/micropolitan areas","Cultural & Demographic Statistics ","DOC-Census","Jennifer Holland","Jennifer.L.Holland@census.gov",{"$f":"VLOOKUP(B52,'LOC FINAL with new Themes'!A:M,7,0)","v":0},{"$f":"VLOOKUP(B52,'LOC FINAL with new Themes'!A:M,8,0)","v":0},{"$f":"VLOOKUP(B52,'LOC FINAL with new Themes'!A:M,9,0)","v":0},{"$f":"VLOOKUP(B52,'LOC FINAL with new Themes'!A:M,10,0)","v":0},{"$f":"VLOOKUP(B52,'LOC FINAL with new Themes'!A:M,11,0)","v":0},{"$f":"VLOOKUP(B52,'LOC FINAL with new Themes'!A:M,12,0)","v":0},{"$f":"VLOOKUP(B52,'LOC FINAL with new Themes'!A:M,13,0)","v":0}]
[null,"ANSI codes for congressional districts","ANSI codes for congressional districts","ANSI codes for congressional districts","Cultural & Demographic Statistics ","DOC-Census","Jennifer Holland","Jennifer.L.Holland@census.gov",{"$f":"VLOOKUP(B53,'LOC FINAL with new Themes'!A:M,7,0)","v":0},{"$f":"VLOOKUP(B53,'LOC FINAL with new Themes'!A:M,8,0)","v":0},{"$f":"VLOOKUP(B53,'LOC FINAL with new Themes'!A:M,9,0)","v":0},{"$f":"VLOOKUP(B53,'LOC FINAL with new Themes'!A:M,10,0)","v":0},{"$f":"VLOOKUP(B53,'LOC FINAL with new Themes'!A:M,11,0)","v":0},{"$f":"VLOOKUP(B53,'LOC FINAL with new Themes'!A:M,12,0)","v":0},{"$f":"VLOOKUP(B53,'LOC FINAL with new Themes'!A:M,13,0)","v":0}]
[null,"ANSI codes for counties","ANSI codes for counties","ANSI codes for counties","Cultural & Demographic Statistics ","DOC-Census","Jennifer Holland","Jennifer.L.Holland@census.gov",{"$f":"VLOOKUP(B54,'LOC FINAL with new Themes'!A:M,7,0)","v":0},{"$f":"VLOOKUP(B54,'LOC FINAL with new Themes'!A:M,8,0)","v":0},{"$f":"VLOOKUP(B54,'LOC FINAL with new Themes'!A:M,9,0)","v":0},{"$f":"VLOOKUP(B54,'LOC FINAL with new Themes'!A:M,10,0)","v":0},{"$f":"VLOOKUP(B54,'LOC FINAL with new Themes'!A:M,11,0)","v":0},{"$f":"VLOOKUP(B54,'LOC FINAL with new Themes'!A:M,12,0)","v":0},{"$f":"VLOOKUP(B54,'LOC FINAL with new Themes'!A:M,13,0)","v":0}]
[null,"ANSI codes for states","ANSI codes for states","ANSI codes for states","Cultural & Demographic Statistics ","DOC-Census","Jennifer Holland","Jennifer.L.Holland@census.gov",{"$f":"VLOOKUP(B55,'LOC FINAL with new Themes'!A:M,7,0)","v":0},{"$f":"VLOOKUP(B55,'LOC FINAL with new Themes'!A:M,8,0)","v":0},{"$f":"VLOOKUP(B55,'LOC FINAL with new Themes'!A:M,9,0)","v":0},{"$f":"VLOOKUP(B55,'LOC FINAL with new Themes'!A:M,10,0)","v":0},{"$f":"VLOOKUP(B55,'LOC FINAL with new Themes'!A:M,11,0)","v":0},{"$f":"VLOOKUP(B55,'LOC FINAL with new Themes'!A:M,12,0)","v":0},{"$f":"VLOOKUP(B55,'LOC FINAL with new Themes'!A:M,13,0)","v":0}]
[null,"Block (2010 Census)","Block (2010 Census)","Block (2010 Census)","Cultural & Demographic Statistics ","DOC-Census","Jennifer Holland","Jennifer.L.Holland@census.gov",{"$f":"VLOOKUP(B56,'LOC FINAL with new Themes'!A:M,7,0)","v":0},{"$f":"VLOOKUP(B56,'LOC FINAL with new Themes'!A:M,8,0)","v":0},{"$f":"VLOOKUP(B56,'LOC FINAL with new Themes'!A:M,9,0)","v":0},{"$f":"VLOOKUP(B56,'LOC FINAL with new Themes'!A:M,10,0)","v":0},{"$f":"VLOOKUP(B56,'LOC FINAL with new Themes'!A:M,11,0)","v":0},{"$f":"VLOOKUP(B56,'LOC FINAL with new Themes'!A:M,12,0)","v":0},{"$f":"VLOOKUP(B56,'LOC FINAL with new Themes'!A:M,13,0)","v":0}]
[null,"Block (Census 2000)","Block (Census 2000)","Block (Census 2000)","Cultural & Demographic Statistics ","DOC-Census","Jennifer Holland","Jennifer.L.Holland@census.gov",{"$f":"VLOOKUP(B57,'LOC FINAL with new Themes'!A:M,7,0)","v":0},{"$f":"VLOOKUP(B57,'LOC FINAL with new Themes'!A:M,8,0)","v":0},{"$f":"VLOOKUP(B57,'LOC FINAL with new Themes'!A:M,9,0)","v":0},{"$f":"VLOOKUP(B57,'LOC FINAL with new Themes'!A:M,10,0)","v":0},{"$f":"VLOOKUP(B57,'LOC FINAL with new Themes'!A:M,11,0)","v":0},{"$f":"VLOOKUP(B57,'LOC FINAL with new Themes'!A:M,12,0)","v":0},{"$f":"VLOOKUP(B57,'LOC FINAL with new Themes'!A:M,13,0)","v":0}]
[null,"Block Group (Census 2000)","Block Group (Census 2000)","Block Group (Census 2000)","Cultural & Demographic Statistics ","DOC-Census","Jennifer Holland","Jennifer.L.Holland@census.gov",{"$f":"VLOOKUP(B58,'LOC FINAL with new Themes'!A:M,7,0)","v":0},{"$f":"VLOOKUP(B58,'LOC FINAL with new Themes'!A:M,8,0)","v":0},{"$f":"VLOOKUP(B58,'LOC FINAL with new Themes'!A:M,9,0)","v":0},{"$f":"VLOOKUP(B58,'LOC FINAL with new Themes'!A:M,10,0)","v":0},{"$f":"VLOOKUP(B58,'LOC FINAL with new Themes'!A:M,11,0)","v":0},{"$f":"VLOOKUP(B58,'LOC FINAL with new Themes'!A:M,12,0)","v":0},{"$f":"VLOOKUP(B58,'LOC FINAL with new Themes'!A:M,13,0)","v":0}]
[null,"Block Group (Census 2010)","Block Group (Census 2010)","Block Group (Census 2010)","Cultural & Demographic Statistics ","DOC-Census","Jennifer Holland","Jennifer.L.Holland@census.gov",{"$f":"VLOOKUP(B59,'LOC FINAL with new Themes'!A:M,7,0)","v":0},{"$f":"VLOOKUP(B59,'LOC FINAL with new Themes'!A:M,8,0)","v":0},{"$f":"VLOOKUP(B59,'LOC FINAL with new Themes'!A:M,9,0)","v":0},{"$f":"VLOOKUP(B59,'LOC FINAL with new Themes'!A:M,10,0)","v":0},{"$f":"VLOOKUP(B59,'LOC FINAL with new Themes'!A:M,11,0)","v":0},{"$f":"VLOOKUP(B59,'LOC FINAL with new Themes'!A:M,12,0)","v":0},{"$f":"VLOOKUP(B59,'LOC FINAL with new Themes'!A:M,13,0)","v":0}]
[null,"Census 2000 FIPS 55 Codes","Census 2000 FIPS 55 Codes","Census 2000 FIPS 55 Codes","Cultural & Demographic Statistics ","DOC-Census","Jennifer Holland","Jennifer.L.Holland@census.gov",{"$f":"VLOOKUP(B60,'LOC FINAL with new Themes'!A:M,7,0)","v":0},{"$f":"VLOOKUP(B60,'LOC FINAL with new Themes'!A:M,8,0)","v":0},{"$f":"VLOOKUP(B60,'LOC FINAL with new Themes'!A:M,9,0)","v":0},{"$f":"VLOOKUP(B60,'LOC FINAL with new Themes'!A:M,10,0)","v":0},{"$f":"VLOOKUP(B60,'LOC FINAL with new Themes'!A:M,11,0)","v":0},{"$f":"VLOOKUP(B60,'LOC FINAL with new Themes'!A:M,12,0)","v":0},{"$f":"VLOOKUP(B60,'LOC FINAL with new Themes'!A:M,13,0)","v":0}]
[null,"Census Tract (2010 Census)","Census Tract (2010 Census)","Census Tract (2010 Census)","Cultural & Demographic Statistics ","DOC-Census","Jennifer Holland","Jennifer.L.Holland@census.gov",{"$f":"VLOOKUP(B61,'LOC FINAL with new Themes'!A:M,7,0)","v":0},{"$f":"VLOOKUP(B61,'LOC FINAL with new Themes'!A:M,8,0)","v":0},{"$f":"VLOOKUP(B61,'LOC FINAL with new Themes'!A:M,9,0)","v":0},{"$f":"VLOOKUP(B61,'LOC FINAL with new Themes'!A:M,10,0)","v":0},{"$f":"VLOOKUP(B61,'LOC FINAL with new Themes'!A:M,11,0)","v":0},{"$f":"VLOOKUP(B61,'LOC FINAL with new Themes'!A:M,12,0)","v":0},{"$f":"VLOOKUP(B61,'LOC FINAL with new Themes'!A:M,13,0)","v":0}]
[null,"Census Tract (Census 2000)","Census Tract (Census 2000)","Census Tract (Census 2000)","Cultural & Demographic Statistics ","DOC-Census","Jennifer Holland","Jennifer.L.Holland@census.gov",{"$f":"VLOOKUP(B62,'LOC FINAL with new Themes'!A:M,7,0)","v":0},{"$f":"VLOOKUP(B62,'LOC FINAL with new Themes'!A:M,8,0)","v":0},{"$f":"VLOOKUP(B62,'LOC FINAL with new Themes'!A:M,9,0)","v":0},{"$f":"VLOOKUP(B62,'LOC FINAL with new Themes'!A:M,10,0)","v":0},{"$f":"VLOOKUP(B62,'LOC FINAL with new Themes'!A:M,11,0)","v":0},{"$f":"VLOOKUP(B62,'LOC FINAL with new Themes'!A:M,12,0)","v":0},{"$f":"VLOOKUP(B62,'LOC FINAL with new Themes'!A:M,13,0)","v":0}]
[null,"Combined Statistical Area (2010 Census)","Combined Statistical Area (2010 Census)","Combined Statistical Area (2010 Census)","Cultural & Demographic Statistics ","DOC-Census","Jennifer Holland","Jennifer.L.Holland@census.gov",{"$f":"VLOOKUP(B63,'LOC FINAL with new Themes'!A:M,7,0)","v":0},{"$f":"VLOOKUP(B63,'LOC FINAL with new Themes'!A:M,8,0)","v":0},{"$f":"VLOOKUP(B63,'LOC FINAL with new Themes'!A:M,9,0)","v":0},{"$f":"VLOOKUP(B63,'LOC FINAL with new Themes'!A:M,10,0)","v":0},{"$f":"VLOOKUP(B63,'LOC FINAL with new Themes'!A:M,11,0)","v":0},{"$f":"VLOOKUP(B63,'LOC FINAL with new Themes'!A:M,12,0)","v":0},{"$f":"VLOOKUP(B63,'LOC FINAL with new Themes'!A:M,13,0)","v":0}]
[null,"Congressional District Boundaries",null,"Congressional District Boundaries","Cultural & Demographic Statistics ","DOC-Census","Randy Fusaro","randy.j.fusaro@census.gov",{"$f":"VLOOKUP(B64,'LOC FINAL with new Themes'!A:M,7,0)","v":0},{"$f":"VLOOKUP(B64,'LOC FINAL with new Themes'!A:M,8,0)","v":0},{"$f":"VLOOKUP(B64,'LOC FINAL with new Themes'!A:M,9,0)","v":0},{"$f":"VLOOKUP(B64,'LOC FINAL with new Themes'!A:M,10,0)","v":0},{"$f":"VLOOKUP(B64,'LOC FINAL with new Themes'!A:M,11,0)","v":0},{"$f":"VLOOKUP(B64,'LOC FINAL with new Themes'!A:M,12,0)","v":0},{"$f":"VLOOKUP(B64,'LOC FINAL with new Themes'!A:M,13,0)","v":0}]
["County, place, MCD Boundaries","County, place, MCD Boundaries",null,"County, place, MCD Boundaries","Cultural & Demographic Statistics ","DOC-Census","Randy Fusaro","randy.j.fusaro@census.gov",{"$f":"VLOOKUP(B65,'LOC FINAL with new Themes'!A:M,7,0)","v":0},{"$f":"VLOOKUP(B65,'LOC FINAL with new Themes'!A:M,8,0)","v":0},{"$f":"VLOOKUP(B65,'LOC FINAL with new Themes'!A:M,9,0)","v":0},{"$f":"VLOOKUP(B65,'LOC FINAL with new Themes'!A:M,10,0)","v":0},{"$f":"VLOOKUP(B65,'LOC FINAL with new Themes'!A:M,11,0)","v":0},{"$f":"VLOOKUP(B65,'LOC FINAL with new Themes'!A:M,12,0)","v":0},{"$f":"VLOOKUP(B65,'LOC FINAL with new Themes'!A:M,13,0)","v":0}]
[null,"Elementary School District (2010 Census)","Elementary School District (2010 Census)","Elementary School District (2010 Census)","Cultural & Demographic Statistics ","DOC-Census","Jennifer Holland","Jennifer.L.Holland@census.gov",{"$f":"VLOOKUP(B66,'LOC FINAL with new Themes'!A:M,7,0)","v":0},{"$f":"VLOOKUP(B66,'LOC FINAL with new Themes'!A:M,8,0)","v":0},{"$f":"VLOOKUP(B66,'LOC FINAL with new Themes'!A:M,9,0)","v":0},{"$f":"VLOOKUP(B66,'LOC FINAL with new Themes'!A:M,10,0)","v":0},{"$f":"VLOOKUP(B66,'LOC FINAL with new Themes'!A:M,11,0)","v":0},{"$f":"VLOOKUP(B66,'LOC FINAL with new Themes'!A:M,12,0)","v":0},{"$f":"VLOOKUP(B66,'LOC FINAL with new Themes'!A:M,13,0)","v":0}]
[null,"Elementary School District (Census 2000)","Elementary School District (Census 2000)","Elementary School District (Census 2000)","Cultural & Demographic Statistics ","DOC-Census","Jennifer Holland","Jennifer.L.Holland@census.gov",{"$f":"VLOOKUP(B67,'LOC FINAL with new Themes'!A:M,7,0)","v":0},{"$f":"VLOOKUP(B67,'LOC FINAL with new Themes'!A:M,8,0)","v":0},{"$f":"VLOOKUP(B67,'LOC FINAL with new Themes'!A:M,9,0)","v":0},{"$f":"VLOOKUP(B67,'LOC FINAL with new Themes'!A:M,10,0)","v":0},{"$f":"VLOOKUP(B67,'LOC FINAL with new Themes'!A:M,11,0)","v":0},{"$f":"VLOOKUP(B67,'LOC FINAL with new Themes'!A:M,12,0)","v":0},{"$f":"VLOOKUP(B67,'LOC FINAL with new Themes'!A:M,13,0)","v":0}]
["FIPS/ANSI codes for states, counties, congressional districts & metro/micropolitan areas","FIPS/ANSI codes for states, counties, congressional districts & metro/micropolitan areas",null,"FIPS/ANSI codes for states, counties, congressional districts & metro/micropolitan areas","Cultural & Demographic Statistics ","DOC-Census","Randy Fusaro","randy.j.fusaro@census.gov",{"$f":"VLOOKUP(B68,'LOC FINAL with new Themes'!A:M,7,0)","v":0},{"$f":"VLOOKUP(B68,'LOC FINAL with new Themes'!A:M,8,0)","v":0},{"$f":"VLOOKUP(B68,'LOC FINAL with new Themes'!A:M,9,0)","v":0},{"$f":"VLOOKUP(B68,'LOC FINAL with new Themes'!A:M,10,0)","v":0},{"$f":"VLOOKUP(B68,'LOC FINAL with new Themes'!A:M,11,0)","v":0},{"$f":"VLOOKUP(B68,'LOC FINAL with new Themes'!A:M,12,0)","v":0},{"$f":"VLOOKUP(B68,'LOC FINAL with new Themes'!A:M,13,0)","v":0}]
["Metropolitan/micropolitan area boundaries","Metropolitan/micropolitan area boundaries",null,"Metropolitan/micropolitan area boundaries","Cultural & Demographic Statistics ","DOC-Census","Randy Fusaro","randy.j.fusaro@census.gov",{"$f":"VLOOKUP(B69,'LOC FINAL with new Themes'!A:M,7,0)","v":0},{"$f":"VLOOKUP(B69,'LOC FINAL with new Themes'!A:M,8,0)","v":0},{"$f":"VLOOKUP(B69,'LOC FINAL with new Themes'!A:M,9,0)","v":0},{"$f":"VLOOKUP(B69,'LOC FINAL with new Themes'!A:M,10,0)","v":0},{"$f":"VLOOKUP(B69,'LOC FINAL with new Themes'!A:M,11,0)","v":0},{"$f":"VLOOKUP(B69,'LOC FINAL with new Themes'!A:M,12,0)","v":0},{"$f":"VLOOKUP(B69,'LOC FINAL with new Themes'!A:M,13,0)","v":0}]
[null,"Metropolitan/micropolitan Statistical Area (2010 Census)","Metropolitan/micropolitan Statistical Area (2010 Census)","Metropolitan/micropolitan Statistical Area (2010 Census)","Cultural & Demographic Statistics ","DOC-Census","Jennifer Holland","Jennifer.L.Holland@census.gov",{"$f":"VLOOKUP(B70,'LOC FINAL with new Themes'!A:M,7,0)","v":0},{"$f":"VLOOKUP(B70,'LOC FINAL with new Themes'!A:M,8,0)","v":0},{"$f":"VLOOKUP(B70,'LOC FINAL with new Themes'!A:M,9,0)","v":0},{"$f":"VLOOKUP(B70,'LOC FINAL with new Themes'!A:M,10,0)","v":0},{"$f":"VLOOKUP(B70,'LOC FINAL with new Themes'!A:M,11,0)","v":0},{"$f":"VLOOKUP(B70,'LOC FINAL with new Themes'!A:M,12,0)","v":0},{"$f":"VLOOKUP(B70,'LOC FINAL with new Themes'!A:M,13,0)","v":0}]
["National Center for Health Statistics (Atlas of US Mortality)","National Center for Health Statistics (Atlas of US Mortality)",null,"National Center for Health Statistics (Atlas of US Mortality)","Cultural & Demographic Statistics ","HHS","Gary Anderson","gary.anderson@hhs.gov",{"$f":"VLOOKUP(B71,'LOC FINAL with new Themes'!A:M,7,0)","v":0},{"$f":"VLOOKUP(B71,'LOC FINAL with new Themes'!A:M,8,0)","v":0},{"$f":"VLOOKUP(B71,'LOC FINAL with new Themes'!A:M,9,0)","v":0},{"$f":"VLOOKUP(B71,'LOC FINAL with new Themes'!A:M,10,0)","v":0},{"$f":"VLOOKUP(B71,'LOC FINAL with new Themes'!A:M,11,0)","v":0},{"$f":"VLOOKUP(B71,'LOC FINAL with new Themes'!A:M,12,0)","v":0},{"$f":"VLOOKUP(B71,'LOC FINAL with new Themes'!A:M,13,0)","v":0}]
[null,null,"Oklahoma Tribal Joint Use Areas","Oklahoma Tribal Joint Use Areas","Cultural & Demographic Statistics ","DOC-Census"]
[null,null,"Oklahoma Tribal Statistical Areas","Oklahoma Tribal Statistical Areas","Cultural & Demographic Statistics ","DOC-Census"]
[null,"Public Use Microdata Area (Census 2000)","Public Use Microdata Area (Census 2000)","Public Use Microdata Area (Census 2000)","Cultural & Demographic Statistics ","DOC-Census","Jennifer Holland","Jennifer.L.Holland@census.gov",{"$f":"VLOOKUP(B74,'LOC FINAL with new Themes'!A:M,7,0)","v":0},{"$f":"VLOOKUP(B74,'LOC FINAL with new Themes'!A:M,8,0)","v":0},{"$f":"VLOOKUP(B74,'LOC FINAL with new Themes'!A:M,9,0)","v":0},{"$f":"VLOOKUP(B74,'LOC FINAL with new Themes'!A:M,10,0)","v":0},{"$f":"VLOOKUP(B74,'LOC FINAL with new Themes'!A:M,11,0)","v":0},{"$f":"VLOOKUP(B74,'LOC FINAL with new Themes'!A:M,12,0)","v":0},{"$f":"VLOOKUP(B74,'LOC FINAL with new Themes'!A:M,13,0)","v":0}]
["School District Boundaries","School District Boundaries",null,"School District Boundaries","Cultural & Demographic Statistics ","DOC-Census","Randy Fusaro","randy.j.fusaro@census.gov",{"$f":"VLOOKUP(B75,'LOC FINAL with new Themes'!A:M,7,0)","v":0},{"$f":"VLOOKUP(B75,'LOC FINAL with new Themes'!A:M,8,0)","v":0},{"$f":"VLOOKUP(B75,'LOC FINAL with new Themes'!A:M,9,0)","v":0},{"$f":"VLOOKUP(B75,'LOC FINAL with new Themes'!A:M,10,0)","v":0},{"$f":"VLOOKUP(B75,'LOC FINAL with new Themes'!A:M,11,0)","v":0},{"$f":"VLOOKUP(B75,'LOC FINAL with new Themes'!A:M,12,0)","v":0},{"$f":"VLOOKUP(B75,'LOC FINAL with new Themes'!A:M,13,0)","v":0}]
[null,"Secondary School District (2010 Census)","Secondary School District (2010 Census)","Secondary School District (2010 Census)","Cultural & Demographic Statistics ","DOC-Census","Jennifer Holland","Jennifer.L.Holland@census.gov",{"$f":"VLOOKUP(B76,'LOC FINAL with new Themes'!A:M,7,0)","v":0},{"$f":"VLOOKUP(B76,'LOC FINAL with new Themes'!A:M,8,0)","v":0},{"$f":"VLOOKUP(B76,'LOC FINAL with new Themes'!A:M,9,0)","v":0},{"$f":"VLOOKUP(B76,'LOC FINAL with new Themes'!A:M,10,0)","v":0},{"$f":"VLOOKUP(B76,'LOC FINAL with new Themes'!A:M,11,0)","v":0},{"$f":"VLOOKUP(B76,'LOC FINAL with new Themes'!A:M,12,0)","v":0},{"$f":"VLOOKUP(B76,'LOC FINAL with new Themes'!A:M,13,0)","v":0}]
[null,"Secondary School District (Census 2000)","Secondary School District (Census 2000)","Secondary School District (Census 2000)","Cultural & Demographic Statistics ","DOC-Census","Jennifer Holland","Jennifer.L.Holland@census.gov",{"$f":"VLOOKUP(B77,'LOC FINAL with new Themes'!A:M,7,0)","v":0},{"$f":"VLOOKUP(B77,'LOC FINAL with new Themes'!A:M,8,0)","v":0},{"$f":"VLOOKUP(B77,'LOC FINAL with new Themes'!A:M,9,0)","v":0},{"$f":"VLOOKUP(B77,'LOC FINAL with new Themes'!A:M,10,0)","v":0},{"$f":"VLOOKUP(B77,'LOC FINAL with new Themes'!A:M,11,0)","v":0},{"$f":"VLOOKUP(B77,'LOC FINAL with new Themes'!A:M,12,0)","v":0},{"$f":"VLOOKUP(B77,'LOC FINAL with new Themes'!A:M,13,0)","v":0}]
["State (+ Territories) Boundaries","State (+ Territories) Boundaries",null,"State (+ Territories) Boundaries","Cultural & Demographic Statistics ","DOC-Census","Randy Fusaro","randy.j.fusaro@census.gov",{"$f":"VLOOKUP(B78,'LOC FINAL with new Themes'!A:M,7,0)","v":0},{"$f":"VLOOKUP(B78,'LOC FINAL with new Themes'!A:M,8,0)","v":0},{"$f":"VLOOKUP(B78,'LOC FINAL with new Themes'!A:M,9,0)","v":0},{"$f":"VLOOKUP(B78,'LOC FINAL with new Themes'!A:M,10,0)","v":0},{"$f":"VLOOKUP(B78,'LOC FINAL with new Themes'!A:M,11,0)","v":0},{"$f":"VLOOKUP(B78,'LOC FINAL with new Themes'!A:M,12,0)","v":0},{"$f":"VLOOKUP(B78,'LOC FINAL with new Themes'!A:M,13,0)","v":0}]
["Statistical Area Boundaries (tracts, blocks, UAs, CDPs, etc)","Statistical Area Boundaries (tracts, blocks, UAs, CDPs, etc)",null,"Statistical Area Boundaries (tracts, blocks, UAs, CDPs, etc)","Cultural & Demographic Statistics ","DOC-Census","Randy Fusaro","randy.j.fusaro@census.gov",{"$f":"VLOOKUP(B79,'LOC FINAL with new Themes'!A:M,7,0)","v":0},{"$f":"VLOOKUP(B79,'LOC FINAL with new Themes'!A:M,8,0)","v":0},{"$f":"VLOOKUP(B79,'LOC FINAL with new Themes'!A:M,9,0)","v":0},{"$f":"VLOOKUP(B79,'LOC FINAL with new Themes'!A:M,10,0)","v":0},{"$f":"VLOOKUP(B79,'LOC FINAL with new Themes'!A:M,11,0)","v":0},{"$f":"VLOOKUP(B79,'LOC FINAL with new Themes'!A:M,12,0)","v":0},{"$f":"VLOOKUP(B79,'LOC FINAL with new Themes'!A:M,13,0)","v":0}]
[null,"Super Public Use Microdata Area (Census 2000)","Super Public Use Microdata Area (Census 2000)","Super Public Use Microdata Area (Census 2000)","Cultural & Demographic Statistics ","DOC-Census","Jennifer Holland","Jennifer.L.Holland@census.gov",{"$f":"VLOOKUP(B80,'LOC FINAL with new Themes'!A:M,7,0)","v":0},{"$f":"VLOOKUP(B80,'LOC FINAL with new Themes'!A:M,8,0)","v":0},{"$f":"VLOOKUP(B80,'LOC FINAL with new Themes'!A:M,9,0)","v":0},{"$f":"VLOOKUP(B80,'LOC FINAL with new Themes'!A:M,10,0)","v":0},{"$f":"VLOOKUP(B80,'LOC FINAL with new Themes'!A:M,11,0)","v":0},{"$f":"VLOOKUP(B80,'LOC FINAL with new Themes'!A:M,12,0)","v":0},{"$f":"VLOOKUP(B80,'LOC FINAL with new Themes'!A:M,13,0)","v":0}]
["TIGER* (many statistical boundaries)","TIGER (many statistical boundaries)",null,"TIGER (many statistical boundaries)","Cultural & Demographic Statistics ","DOC-Census","Randy Fusaro","randy.j.fusaro@census.gov",{"$f":"VLOOKUP(B81,'LOC FINAL with new Themes'!A:M,7,0)","v":0},{"$f":"VLOOKUP(B81,'LOC FINAL with new Themes'!A:M,8,0)","v":0},{"$f":"VLOOKUP(B81,'LOC FINAL with new Themes'!A:M,9,0)","v":0},{"$f":"VLOOKUP(B81,'LOC FINAL with new Themes'!A:M,10,0)","v":0},{"$f":"VLOOKUP(B81,'LOC FINAL with new Themes'!A:M,11,0)","v":0},{"$f":"VLOOKUP(B81,'LOC FINAL with new Themes'!A:M,12,0)","v":0},{"$f":"VLOOKUP(B81,'LOC FINAL with new Themes'!A:M,13,0)","v":0}]
[null,"Topological Faces (2010 Census)","Topological Faces (2010 Census)","Topological Faces (2010 Census)","Cultural & Demographic Statistics ","DOC-Census","Jennifer Holland","Jennifer.L.Holland@census.gov",{"$f":"VLOOKUP(B82,'LOC FINAL with new Themes'!A:M,7,0)","v":0},{"$f":"VLOOKUP(B82,'LOC FINAL with new Themes'!A:M,8,0)","v":0},{"$f":"VLOOKUP(B82,'LOC FINAL with new Themes'!A:M,9,0)","v":0},{"$f":"VLOOKUP(B82,'LOC FINAL with new Themes'!A:M,10,0)","v":0},{"$f":"VLOOKUP(B82,'LOC FINAL with new Themes'!A:M,11,0)","v":0},{"$f":"VLOOKUP(B82,'LOC FINAL with new Themes'!A:M,12,0)","v":0},{"$f":"VLOOKUP(B82,'LOC FINAL with new Themes'!A:M,13,0)","v":0}]
[null,"Unified School District (2010 Census)","Unified School District (2010 Census)","Unified School District (2010 Census)","Cultural & Demographic Statistics ","DOC-Census","Jennifer Holland","Jennifer.L.Holland@census.gov",{"$f":"VLOOKUP(B83,'LOC FINAL with new Themes'!A:M,7,0)","v":0},{"$f":"VLOOKUP(B83,'LOC FINAL with new Themes'!A:M,8,0)","v":0},{"$f":"VLOOKUP(B83,'LOC FINAL with new Themes'!A:M,9,0)","v":0},{"$f":"VLOOKUP(B83,'LOC FINAL with new Themes'!A:M,10,0)","v":0},{"$f":"VLOOKUP(B83,'LOC FINAL with new Themes'!A:M,11,0)","v":0},{"$f":"VLOOKUP(B83,'LOC FINAL with new Themes'!A:M,12,0)","v":0},{"$f":"VLOOKUP(B83,'LOC FINAL with new Themes'!A:M,13,0)","v":0}]
[null,"Unified School District (Census 2000)","Unified School District (Census 2000)","Unified School District (Census 2000)","Cultural & Demographic Statistics ","DOC-Census","Jennifer Holland","Jennifer.L.Holland@census.gov",{"$f":"VLOOKUP(B84,'LOC FINAL with new Themes'!A:M,7,0)","v":0},{"$f":"VLOOKUP(B84,'LOC FINAL with new Themes'!A:M,8,0)","v":0},{"$f":"VLOOKUP(B84,'LOC FINAL with new Themes'!A:M,9,0)","v":0},{"$f":"VLOOKUP(B84,'LOC FINAL with new Themes'!A:M,10,0)","v":0},{"$f":"VLOOKUP(B84,'LOC FINAL with new Themes'!A:M,11,0)","v":0},{"$f":"VLOOKUP(B84,'LOC FINAL with new Themes'!A:M,12,0)","v":0},{"$f":"VLOOKUP(B84,'LOC FINAL with new Themes'!A:M,13,0)","v":0}]
[null,"Urban Growth Area (2010 Census)","Urban Growth Area (2010 Census)","Urban Growth Area (2010 Census)","Cultural & Demographic Statistics ","DOC-Census","Jennifer Holland","Jennifer.L.Holland@census.gov",{"$f":"VLOOKUP(B85,'LOC FINAL with new Themes'!A:M,7,0)","v":0},{"$f":"VLOOKUP(B85,'LOC FINAL with new Themes'!A:M,8,0)","v":0},{"$f":"VLOOKUP(B85,'LOC FINAL with new Themes'!A:M,9,0)","v":0},{"$f":"VLOOKUP(B85,'LOC FINAL with new Themes'!A:M,10,0)","v":0},{"$f":"VLOOKUP(B85,'LOC FINAL with new Themes'!A:M,11,0)","v":0},{"$f":"VLOOKUP(B85,'LOC FINAL with new Themes'!A:M,12,0)","v":0},{"$f":"VLOOKUP(B85,'LOC FINAL with new Themes'!A:M,13,0)","v":0}]
[null,"Urban Growth Area (Census 2000)","Urban Growth Area (Census 2000)","Urban Growth Area (Census 2000)","Cultural & Demographic Statistics ","DOC-Census","Jennifer Holland","Jennifer.L.Holland@census.gov",{"$f":"VLOOKUP(B86,'LOC FINAL with new Themes'!A:M,7,0)","v":0},{"$f":"VLOOKUP(B86,'LOC FINAL with new Themes'!A:M,8,0)","v":0},{"$f":"VLOOKUP(B86,'LOC FINAL with new Themes'!A:M,9,0)","v":0},{"$f":"VLOOKUP(B86,'LOC FINAL with new Themes'!A:M,10,0)","v":0},{"$f":"VLOOKUP(B86,'LOC FINAL with new Themes'!A:M,11,0)","v":0},{"$f":"VLOOKUP(B86,'LOC FINAL with new Themes'!A:M,12,0)","v":0},{"$f":"VLOOKUP(B86,'LOC FINAL with new Themes'!A:M,13,0)","v":0}]
[null,"Voting District (2010 Census)","Voting District (2010 Census)","Voting District (2010 Census)","Cultural & Demographic Statistics ","DOC-Census","Jennifer Holland","Jennifer.L.Holland@census.gov",{"$f":"VLOOKUP(B87,'LOC FINAL with new Themes'!A:M,7,0)","v":0},{"$f":"VLOOKUP(B87,'LOC FINAL with new Themes'!A:M,8,0)","v":0},{"$f":"VLOOKUP(B87,'LOC FINAL with new Themes'!A:M,9,0)","v":0},{"$f":"VLOOKUP(B87,'LOC FINAL with new Themes'!A:M,10,0)","v":0},{"$f":"VLOOKUP(B87,'LOC FINAL with new Themes'!A:M,11,0)","v":0},{"$f":"VLOOKUP(B87,'LOC FINAL with new Themes'!A:M,12,0)","v":0},{"$f":"VLOOKUP(B87,'LOC FINAL with new Themes'!A:M,13,0)","v":0}]
[null,"Voting District (Census 2000)","Voting District (Census 2000)","Voting District (Census 2000)","Cultural & Demographic Statistics ","DOC-Census","Jennifer Holland","Jennifer.L.Holland@census.gov",{"$f":"VLOOKUP(B88,'LOC FINAL with new Themes'!A:M,7,0)","v":0},{"$f":"VLOOKUP(B88,'LOC FINAL with new Themes'!A:M,8,0)","v":0},{"$f":"VLOOKUP(B88,'LOC FINAL with new Themes'!A:M,9,0)","v":0},{"$f":"VLOOKUP(B88,'LOC FINAL with new Themes'!A:M,10,0)","v":0},{"$f":"VLOOKUP(B88,'LOC FINAL with new Themes'!A:M,11,0)","v":0},{"$f":"VLOOKUP(B88,'LOC FINAL with new Themes'!A:M,12,0)","v":0},{"$f":"VLOOKUP(B88,'LOC FINAL with new Themes'!A:M,13,0)","v":0}]
["Voting District Boundaries","Voting District Boundaries",null,"Voting District Boundaries","Cultural & Demographic Statistics ","DOC-Census","Randy Fusaro","randy.j.fusaro@census.gov",{"$f":"VLOOKUP(B89,'LOC FINAL with new Themes'!A:M,7,0)","v":0},{"$f":"VLOOKUP(B89,'LOC FINAL with new Themes'!A:M,8,0)","v":0},{"$f":"VLOOKUP(B89,'LOC FINAL with new Themes'!A:M,9,0)","v":0},{"$f":"VLOOKUP(B89,'LOC FINAL with new Themes'!A:M,10,0)","v":0},{"$f":"VLOOKUP(B89,'LOC FINAL with new Themes'!A:M,11,0)","v":0},{"$f":"VLOOKUP(B89,'LOC FINAL with new Themes'!A:M,12,0)","v":0},{"$f":"VLOOKUP(B89,'LOC FINAL with new Themes'!A:M,13,0)","v":0}]
[{"$f":"SUBTOTAL(3,A49:A89)","v":10},{"$f":"SUBTOTAL(3,B49:B89)","v":39},{"$f":"SUBTOTAL(3,C49:C89)","v":30},{"$f":"SUBTOTAL(3,D49:D89)","v":41},"Cultural & Demographic Statistics  Count"]
["Cultural Landscape Boundaries","Cultural Landscape Boundaries","Cultural Landscape Boundaries",{"$f":"IF(C91=0,B91,C91)","v":"Cultural Landscape Boundaries"},"Cultural & Demographic Statistics \nCultural Resources","DOI-NPS","John Knoerl","john_knoerl@nps.gov",{"$f":"VLOOKUP(B91,'LOC FINAL with new Themes'!A:M,7,0)","v":"Feature classes of the cultural resource data model (NPS only, other federal agencies handle it as they decide)"},{"$f":"VLOOKUP(B91,'LOC FINAL with new Themes'!A:M,8,0)","v":"don't want a single centralized data set but focusing on standard approach"},{"$f":"VLOOKUP(B91,'LOC FINAL with new Themes'!A:M,9,0)","v":0},{"$f":"VLOOKUP(B91,'LOC FINAL with new Themes'!A:M,10,0)","v":0},{"$f":"VLOOKUP(B91,'LOC FINAL with new Themes'!A:M,11,0)","v":0},{"$f":"VLOOKUP(B91,'LOC FINAL with new Themes'!A:M,12,0)","v":0},{"$f":"VLOOKUP(B91,'LOC FINAL with new Themes'!A:M,13,0)","v":0}]
["Cultural Resource Survey Boundaries","Cultural Resource Survey Boundaries","Cultural Resource Survey Boundaries","Cultural Resource Survey Boundaries","Cultural & Demographic Statistics \nCultural Resources","DOI-NPS","John Knoerl","john_knoerl@nps.gov",{"$f":"VLOOKUP(B92,'LOC FINAL with new Themes'!A:M,7,0)","v":"Feature classes of the cultural resource data model (NPS only, other federal agencies handle it as they decide)"},{"$f":"VLOOKUP(B92,'LOC FINAL with new Themes'!A:M,8,0)","v":"don't want a single centralized data set but focusing on standard approach"},{"$f":"VLOOKUP(B92,'LOC FINAL with new Themes'!A:M,9,0)","v":0},{"$f":"VLOOKUP(B92,'LOC FINAL with new Themes'!A:M,10,0)","v":0},{"$f":"VLOOKUP(B92,'LOC FINAL with new Themes'!A:M,11,0)","v":0},{"$f":"VLOOKUP(B92,'LOC FINAL with new Themes'!A:M,12,0)","v":0},{"$f":"VLOOKUP(B92,'LOC FINAL with new Themes'!A:M,13,0)","v":0}]
["Ethnographic Resource Boundaries","Ethnographic Resource Boundaries","Ethnographic Resource Boundaries","Ethnographic Resource Boundaries","Cultural & Demographic Statistics \nCultural Resources","DOI-NPS","John Knoerl","john_knoerl@nps.gov",{"$f":"VLOOKUP(B93,'LOC FINAL with new Themes'!A:M,7,0)","v":"Feature classes of the cultural resource data model (NPS only, other federal agencies handle it as they decide)"},{"$f":"VLOOKUP(B93,'LOC FINAL with new Themes'!A:M,8,0)","v":"don't want a single centralized data set but focusing on standard approach"},{"$f":"VLOOKUP(B93,'LOC FINAL with new Themes'!A:M,9,0)","v":0},{"$f":"VLOOKUP(B93,'LOC FINAL with new Themes'!A:M,10,0)","v":0},{"$f":"VLOOKUP(B93,'LOC FINAL with new Themes'!A:M,11,0)","v":0},{"$f":"VLOOKUP(B93,'LOC FINAL with new Themes'!A:M,12,0)","v":0},{"$f":"VLOOKUP(B93,'LOC FINAL with new Themes'!A:M,13,0)","v":0}]
["Historic Buildings Boundaries","Historic Buildings Boundaries","Historic Buildings Boundaries","Historic Buildings Boundaries","Cultural & Demographic Statistics \nCultural Resources","DOI-NPS","John Knoerl","john_knoerl@nps.gov",{"$f":"VLOOKUP(B94,'LOC FINAL with new Themes'!A:M,7,0)","v":"Feature classes of the cultural resource data model (NPS only, other federal agencies handle it as they decide)"},{"$f":"VLOOKUP(B94,'LOC FINAL with new Themes'!A:M,8,0)","v":"don't want a single centralized data set but focusing on standard approach"},{"$f":"VLOOKUP(B94,'LOC FINAL with new Themes'!A:M,9,0)","v":0},{"$f":"VLOOKUP(B94,'LOC FINAL with new Themes'!A:M,10,0)","v":0},{"$f":"VLOOKUP(B94,'LOC FINAL with new Themes'!A:M,11,0)","v":0},{"$f":"VLOOKUP(B94,'LOC FINAL with new Themes'!A:M,12,0)","v":0},{"$f":"VLOOKUP(B94,'LOC FINAL with new Themes'!A:M,13,0)","v":0}]
["Historic Districts Boundaries","Historic Districts Boundaries","Historic Districts Boundaries","Historic Districts Boundaries","Cultural & Demographic Statistics \nCultural Resources","DOI-NPS","John Knoerl","john_knoerl@nps.gov",{"$f":"VLOOKUP(B95,'LOC FINAL with new Themes'!A:M,7,0)","v":"Feature classes of the cultural resource data model (NPS only, other federal agencies handle it as they decide)"},{"$f":"VLOOKUP(B95,'LOC FINAL with new Themes'!A:M,8,0)","v":"don't want a single centralized data set but focusing on standard approach"},{"$f":"VLOOKUP(B95,'LOC FINAL with new Themes'!A:M,9,0)","v":0},{"$f":"VLOOKUP(B95,'LOC FINAL with new Themes'!A:M,10,0)","v":0},{"$f":"VLOOKUP(B95,'LOC FINAL with new Themes'!A:M,11,0)","v":0},{"$f":"VLOOKUP(B95,'LOC FINAL with new Themes'!A:M,12,0)","v":0},{"$f":"VLOOKUP(B95,'LOC FINAL with new Themes'!A:M,13,0)","v":0}]
["Historic Objects Boundaries","Historic Objects Boundaries","Historic Objects Boundaries","Historic Objects Boundaries","Cultural & Demographic Statistics \nCultural Resources","DOI-NPS","John Knoerl","john_knoerl@nps.gov",{"$f":"VLOOKUP(B96,'LOC FINAL with new Themes'!A:M,7,0)","v":"Feature classes of the cultural resource data model (NPS only, other federal agencies handle it as they decide)"},{"$f":"VLOOKUP(B96,'LOC FINAL with new Themes'!A:M,8,0)","v":"don't want a single centralized data set but focusing on standard approach"},{"$f":"VLOOKUP(B96,'LOC FINAL with new Themes'!A:M,9,0)","v":0},{"$f":"VLOOKUP(B96,'LOC FINAL with new Themes'!A:M,10,0)","v":0},{"$f":"VLOOKUP(B96,'LOC FINAL with new Themes'!A:M,11,0)","v":0},{"$f":"VLOOKUP(B96,'LOC FINAL with new Themes'!A:M,12,0)","v":0},{"$f":"VLOOKUP(B96,'LOC FINAL with new Themes'!A:M,13,0)","v":0}]
["Historic Structures Boundaries","Historic Structures Boundaries","Historic Structures Boundaries","Historic Structures Boundaries","Cultural & Demographic Statistics \nCultural Resources","DOI-NPS","John Knoerl","john_knoerl@nps.gov",{"$f":"VLOOKUP(B97,'LOC FINAL with new Themes'!A:M,7,0)","v":"Feature classes of the cultural resource data model (NPS only, other federal agencies handle it as they decide)"},{"$f":"VLOOKUP(B97,'LOC FINAL with new Themes'!A:M,8,0)","v":"don't want a single centralized data set but focusing on standard approach"},{"$f":"VLOOKUP(B97,'LOC FINAL with new Themes'!A:M,9,0)","v":0},{"$f":"VLOOKUP(B97,'LOC FINAL with new Themes'!A:M,10,0)","v":0},{"$f":"VLOOKUP(B97,'LOC FINAL with new Themes'!A:M,11,0)","v":0},{"$f":"VLOOKUP(B97,'LOC FINAL with new Themes'!A:M,12,0)","v":0},{"$f":"VLOOKUP(B97,'LOC FINAL with new Themes'!A:M,13,0)","v":"M "}]
[null,null,"Other Cultural Resource Boundaries","Other Cultural Resource Boundaries","Cultural & Demographic Statistics \nCultural Resources","DOI-NPS"]
[{"$f":"SUBTOTAL(3,A91:A98)","v":7},{"$f":"SUBTOTAL(3,B91:B98)","v":7},{"$f":"SUBTOTAL(3,C91:C98)","v":8},{"$f":"SUBTOTAL(3,D91:D98)","v":8},"Cultural & Demographic Statistics \nCultural Resources Count"]
[null,"Point Landmark (2010 Census)","Point of Landmark (2010 Census)",{"$f":"IF(C100=0,B100,C100)","v":"Point of Landmark (2010 Census)"},"Cultural Resources","DOC-Census","Jennifer Holland","Jennifer.L.Holland@census.gov",{"$f":"VLOOKUP(B100,'LOC FINAL with new Themes'!A:M,7,0)","v":0},{"$f":"VLOOKUP(B100,'LOC FINAL with new Themes'!A:M,8,0)","v":0},{"$f":"VLOOKUP(B100,'LOC FINAL with new Themes'!A:M,9,0)","v":0},{"$f":"VLOOKUP(B100,'LOC FINAL with new Themes'!A:M,10,0)","v":0},{"$f":"VLOOKUP(B100,'LOC FINAL with new Themes'!A:M,11,0)","v":0},{"$f":"VLOOKUP(B100,'LOC FINAL with new Themes'!A:M,12,0)","v":0},{"$f":"VLOOKUP(B100,'LOC FINAL with new Themes'!A:M,13,0)","v":0}]
["Archeological Sites","Archeological Sites","Archeological Sites","Archeological Sites","Cultural Resources ","DOI-NPS","John Knoerl","john_knoerl@nps.gov",{"$f":"VLOOKUP(B101,'LOC FINAL with new Themes'!A:M,7,0)","v":"Feature classes of the cultural resource data model (NPS only, other federal agencies handle it as they decide)"},{"$f":"VLOOKUP(B101,'LOC FINAL with new Themes'!A:M,8,0)","v":"don't want a single centralized data set but focusing on standard approach"},{"$f":"VLOOKUP(B101,'LOC FINAL with new Themes'!A:M,9,0)","v":"National Historic Presrevation Act says state historic preservation office has primary oversight (section 110)"},{"$f":"VLOOKUP(B101,'LOC FINAL with new Themes'!A:M,10,0)","v":0},{"$f":"VLOOKUP(B101,'LOC FINAL with new Themes'!A:M,11,0)","v":0},{"$f":"VLOOKUP(B101,'LOC FINAL with new Themes'!A:M,12,0)","v":0},{"$f":"VLOOKUP(B101,'LOC FINAL with new Themes'!A:M,13,0)","v":0}]
[null,"Area Landmark (2010 Census)","Area Landmark (2010 Census)","Area Landmark (2010 Census)","Cultural Resources ","DOC-Census","Jennifer Holland","Jennifer.L.Holland@census.gov",{"$f":"VLOOKUP(B102,'LOC FINAL with new Themes'!A:M,7,0)","v":0},{"$f":"VLOOKUP(B102,'LOC FINAL with new Themes'!A:M,8,0)","v":0},{"$f":"VLOOKUP(B102,'LOC FINAL with new Themes'!A:M,9,0)","v":0},{"$f":"VLOOKUP(B102,'LOC FINAL with new Themes'!A:M,10,0)","v":0},{"$f":"VLOOKUP(B102,'LOC FINAL with new Themes'!A:M,11,0)","v":0},{"$f":"VLOOKUP(B102,'LOC FINAL with new Themes'!A:M,12,0)","v":0},{"$f":"VLOOKUP(B102,'LOC FINAL with new Themes'!A:M,13,0)","v":0}]
[null,null,"Geographic Names Dataset - National Map","Geographic Names Dataset - National Map","Cultural Resources ","DOI-USGS"]
["National Map - Geographic Names Information System (GNIS)","National Map - Geographic Names Information System (GNIS)",null,"National Map - Geographic Names Information System (GNIS)","Cultural Resources ","DOI-USGS","Lou Yost","lyost@usgs.gov",{"$f":"VLOOKUP(B104,'LOC FINAL with new Themes'!A:M,7,0)","v":"single data set; poc, data managers; daily updated; Denver systems people backup and archive; transfer to NARA also; Gaz vector (internal)"},{"$f":"VLOOKUP(B104,'LOC FINAL with new Themes'!A:M,8,0)","v":0},{"$f":"VLOOKUP(B104,'LOC FINAL with new Themes'!A:M,9,0)","v":0},{"$f":"VLOOKUP(B104,'LOC FINAL with new Themes'!A:M,10,0)","v":0},{"$f":"VLOOKUP(B104,'LOC FINAL with new Themes'!A:M,11,0)","v":0},{"$f":"VLOOKUP(B104,'LOC FINAL with new Themes'!A:M,12,0)","v":0},{"$f":"VLOOKUP(B104,'LOC FINAL with new Themes'!A:M,13,0)","v":"S"}]
[null,"Topological Faces-Area Landmark Relationship File","Topological Faces-Area Landmark Relationship File","Topological Faces-Area Landmark Relationship File","Cultural Resources ","DOC-Census","Jennifer Holland","Jennifer.L.Holland@census.gov",{"$f":"VLOOKUP(B105,'LOC FINAL with new Themes'!A:M,7,0)","v":0},{"$f":"VLOOKUP(B105,'LOC FINAL with new Themes'!A:M,8,0)","v":0},{"$f":"VLOOKUP(B105,'LOC FINAL with new Themes'!A:M,9,0)","v":0},{"$f":"VLOOKUP(B105,'LOC FINAL with new Themes'!A:M,10,0)","v":0},{"$f":"VLOOKUP(B105,'LOC FINAL with new Themes'!A:M,11,0)","v":0},{"$f":"VLOOKUP(B105,'LOC FINAL with new Themes'!A:M,12,0)","v":0},{"$f":"VLOOKUP(B105,'LOC FINAL with new Themes'!A:M,13,0)","v":0}]
[{"$f":"SUBTOTAL(3,A100:A105)","v":2},{"$f":"SUBTOTAL(3,B100:B105)","v":5},{"$f":"SUBTOTAL(3,C100:C105)","v":5},{"$f":"SUBTOTAL(3,D100:D105)","v":6},"Cultural Resources Count"]
["133 UA Elevation Data (lidar)","133 UA Elevation Data (lidar)",null,{"$f":"IF(C107=0,B107,C107)","v":"133 UA Elevation Data (lidar)"},"Elevation","DOD-NGA","Ron Power, NGA","ronald.k.power@nga.mil",{"$f":"VLOOKUP(B107,'LOC FINAL with new Themes'!A:M,7,0)","v":0},{"$f":"VLOOKUP(B107,'LOC FINAL with new Themes'!A:M,8,0)","v":0},{"$f":"VLOOKUP(B107,'LOC FINAL with new Themes'!A:M,9,0)","v":0},{"$f":"VLOOKUP(B107,'LOC FINAL with new Themes'!A:M,10,0)","v":0},{"$f":"VLOOKUP(B107,'LOC FINAL with new Themes'!A:M,11,0)","v":0},{"$f":"VLOOKUP(B107,'LOC FINAL with new Themes'!A:M,12,0)","v":0},{"$f":"VLOOKUP(B107,'LOC FINAL with new Themes'!A:M,13,0)","v":0}]
["DEMs - Archive","DEMs - Archive",null,"DEMs - Archive","Elevation","DOI-USGS","Gayla Evans","gevans@usgs.gov",{"$f":"VLOOKUP(B108,'LOC FINAL with new Themes'!A:M,7,0)","v":"DEMS update at variable nature; are four data sets based on resolution; this is the POC and data manager; this is the name and maintain three complete with two physically separate on-site and one off-site"},{"$f":"VLOOKUP(B108,'LOC FINAL with new Themes'!A:M,8,0)","v":0},{"$f":"VLOOKUP(B108,'LOC FINAL with new Themes'!A:M,9,0)","v":0},{"$f":"VLOOKUP(B108,'LOC FINAL with new Themes'!A:M,10,0)","v":0},{"$f":"VLOOKUP(B108,'LOC FINAL with new Themes'!A:M,11,0)","v":0},{"$f":"VLOOKUP(B108,'LOC FINAL with new Themes'!A:M,12,0)","v":0},{"$f":"VLOOKUP(B108,'LOC FINAL with new Themes'!A:M,13,0)","v":"S"}]
["GTOPO30","GTOPO30",null,"GTOPO30","Elevation","DOI-USGS","Jeff Danielson"," daniels@usgs.gov",{"$f":"VLOOKUP(B109,'LOC FINAL with new Themes'!A:M,7,0)","v":"GTOPO30 is static; one data set; this is the POC and data manager; this is the name and maintain three complete with two physically separate on-site and one off-site"},{"$f":"VLOOKUP(B109,'LOC FINAL with new Themes'!A:M,8,0)","v":0},{"$f":"VLOOKUP(B109,'LOC FINAL with new Themes'!A:M,9,0)","v":0},{"$f":"VLOOKUP(B109,'LOC FINAL with new Themes'!A:M,10,0)","v":0},{"$f":"VLOOKUP(B109,'LOC FINAL with new Themes'!A:M,11,0)","v":0},{"$f":"VLOOKUP(B109,'LOC FINAL with new Themes'!A:M,12,0)","v":0},{"$f":"VLOOKUP(B109,'LOC FINAL with new Themes'!A:M,13,0)","v":0}]
["National Map National Elevation Data Set (NED)","National Map  - National Elevation Dataset (NED)",null,"National Map  - National Elevation Dataset (NED)","Elevation","DOI-USGS","Jim Mauck","lyost@usgs.gov",{"$f":"VLOOKUP(B110,'LOC FINAL with new Themes'!A:M,7,0)","v":0},{"$f":"VLOOKUP(B110,'LOC FINAL with new Themes'!A:M,8,0)","v":0},{"$f":"VLOOKUP(B110,'LOC FINAL with new Themes'!A:M,9,0)","v":0},{"$f":"VLOOKUP(B110,'LOC FINAL with new Themes'!A:M,10,0)","v":0},{"$f":"VLOOKUP(B110,'LOC FINAL with new Themes'!A:M,11,0)","v":0},{"$f":"VLOOKUP(B110,'LOC FINAL with new Themes'!A:M,12,0)","v":0},{"$f":"VLOOKUP(B110,'LOC FINAL with new Themes'!A:M,13,0)","v":0}]
["National Ocean Service (NOS) Bathymetry Warehouse (name subject to change)","National Ocean Service (NOS) Bathymetry Warehouse (name subject to change)",null,"National Ocean Service (NOS) Bathymetry Warehouse (name subject to change)","Elevation","DOC-NOAA",null,null,{"$f":"VLOOKUP(B111,'LOC FINAL with new Themes'!A:M,7,0)","v":0},{"$f":"VLOOKUP(B111,'LOC FINAL with new Themes'!A:M,8,0)","v":0},{"$f":"VLOOKUP(B111,'LOC FINAL with new Themes'!A:M,9,0)","v":0},{"$f":"VLOOKUP(B111,'LOC FINAL with new Themes'!A:M,10,0)","v":0},{"$f":"VLOOKUP(B111,'LOC FINAL with new Themes'!A:M,11,0)","v":0},{"$f":"VLOOKUP(B111,'LOC FINAL with new Themes'!A:M,12,0)","v":0},{"$f":"VLOOKUP(B111,'LOC FINAL with new Themes'!A:M,13,0)","v":"P"}]
["National Ocean Service (NOS) Hydrographic Data Base (NOSHDB)","National Ocean Service (NOS) Hydrographic Data Base (NOSHDB)",null,"National Ocean Service (NOS) Hydrographic Data Base (NOSHDB)","Elevation","DOC-NOAA","Brian Mohr","Brian.Mohr@noaa.gov",{"$f":"VLOOKUP(B112,'LOC FINAL with new Themes'!A:M,7,0)","v":"I manage several datadatabases/datasets.  They include SURDEX, our database of hydrographic survey outlines(polygons) in a MapInfo platform and  the Bathydatabase which is a collection of our BAGs or Bathymetric Attribution Grid files. "},{"$f":"VLOOKUP(B112,'LOC FINAL with new Themes'!A:M,8,0)","v":"Yes"},{"$f":"VLOOKUP(B112,'LOC FINAL with new Themes'!A:M,9,0)","v":"Yes"},{"$f":"VLOOKUP(B112,'LOC FINAL with new Themes'!A:M,10,0)","v":"archived at NGDC"},{"$f":"VLOOKUP(B112,'LOC FINAL with new Themes'!A:M,11,0)","v":"Currently these files are being prepped to be pushed into either  a Caris or ESRI database platform.  I also have a shared role in managing our Survey Tracking database called Survey Tracker.  Each is updated weekly, they are backed up by our internal IT staff"},{"$f":"VLOOKUP(B112,'LOC FINAL with new Themes'!A:M,12,0)","v":0},{"$f":"VLOOKUP(B112,'LOC FINAL with new Themes'!A:M,13,0)","v":"M "}]
["NOAA Estuarine Bathymetry","NOAA Estuarine Bathymetry",null,"NOAA Estuarine Bathymetry","Elevation","DOC-NOAA",null,null,{"$f":"VLOOKUP(B113,'LOC FINAL with new Themes'!A:M,7,0)","v":0},{"$f":"VLOOKUP(B113,'LOC FINAL with new Themes'!A:M,8,0)","v":0},{"$f":"VLOOKUP(B113,'LOC FINAL with new Themes'!A:M,9,0)","v":0},{"$f":"VLOOKUP(B113,'LOC FINAL with new Themes'!A:M,10,0)","v":0},{"$f":"VLOOKUP(B113,'LOC FINAL with new Themes'!A:M,11,0)","v":0},{"$f":"VLOOKUP(B113,'LOC FINAL with new Themes'!A:M,12,0)","v":0},{"$f":"VLOOKUP(B113,'LOC FINAL with new Themes'!A:M,13,0)","v":0}]
["SRTM (3-arc second DTEDS)","SRTM (3-arc second DTEDS)",null,"SRTM (3-arc second DTEDS)","Elevation","DOI-USGS","Dean Gesch, USGS","gesch@usgs.gov",{"$f":"VLOOKUP(B114,'LOC FINAL with new Themes'!A:M,7,0)","v":"SRTM is static; one data set; this is the POC and data manager; this is the name and maintain three complete with two physically separate on-site and one off-site"},{"$f":"VLOOKUP(B114,'LOC FINAL with new Themes'!A:M,8,0)","v":0},{"$f":"VLOOKUP(B114,'LOC FINAL with new Themes'!A:M,9,0)","v":0},{"$f":"VLOOKUP(B114,'LOC FINAL with new Themes'!A:M,10,0)","v":0},{"$f":"VLOOKUP(B114,'LOC FINAL with new Themes'!A:M,11,0)","v":0},{"$f":"VLOOKUP(B114,'LOC FINAL with new Themes'!A:M,12,0)","v":0},{"$f":"VLOOKUP(B114,'LOC FINAL with new Themes'!A:M,13,0)","v":"S"}]
["Digital Flood Insurance Rate Maps (D-FIRM)","Digital Flood Insurance Rate Maps (D-FIRM)","Digital Flood Insurance Rate Maps (DFIRM)","Digital Flood Insurance Rate Maps (DFIRM)","Elevation ","DHS-FEMA","Scott McAfee","scott.mcaffee@dhs.gov",{"$f":"VLOOKUP(B115,'LOC FINAL with new Themes'!A:M,7,0)","v":0},{"$f":"VLOOKUP(B115,'LOC FINAL with new Themes'!A:M,8,0)","v":0},{"$f":"VLOOKUP(B115,'LOC FINAL with new Themes'!A:M,9,0)","v":0},{"$f":"VLOOKUP(B115,'LOC FINAL with new Themes'!A:M,10,0)","v":0},{"$f":"VLOOKUP(B115,'LOC FINAL with new Themes'!A:M,11,0)","v":0},{"$f":"VLOOKUP(B115,'LOC FINAL with new Themes'!A:M,12,0)","v":0},{"$f":"VLOOKUP(B115,'LOC FINAL with new Themes'!A:M,13,0)","v":0}]
[null,null,"Elevation Bathymetric - Ocean, Coastal, and Great Lakes Bathymetry ","Elevation Bathymetric - Ocean, Coastal, and Great Lakes Bathymetry ","Elevation ","DOC-NOAA"]
[null,null,"National Elevation Dataset  - National Map","National Elevation Dataset  - National Map","Elevation ","DOI-USGS"]
["National Flood Hazard Layer (NFHL)","National Flood Hazard Layer (NFHL)","National Flood Hazard Layer (NFHL)","National Flood Hazard Layer (NFHL)","Elevation ","DHS-FEMA","Scott McAfee","scott.mcaffee@dhs.gov",{"$f":"VLOOKUP(B118,'LOC FINAL with new Themes'!A:M,7,0)","v":0},{"$f":"VLOOKUP(B118,'LOC FINAL with new Themes'!A:M,8,0)","v":0},{"$f":"VLOOKUP(B118,'LOC FINAL with new Themes'!A:M,9,0)","v":0},{"$f":"VLOOKUP(B118,'LOC FINAL with new Themes'!A:M,10,0)","v":0},{"$f":"VLOOKUP(B118,'LOC FINAL with new Themes'!A:M,11,0)","v":0},{"$f":"VLOOKUP(B118,'LOC FINAL with new Themes'!A:M,12,0)","v":0},{"$f":"VLOOKUP(B118,'LOC FINAL with new Themes'!A:M,13,0)","v":0}]
[{"$f":"SUBTOTAL(3,A107:A118)","v":10},{"$f":"SUBTOTAL(3,B107:B118)","v":10},{"$f":"SUBTOTAL(3,C107:C118)","v":4},{"$f":"SUBTOTAL(3,D107:D118)","v":12},"Elevation Count"]
[null,null,"Airborne Gravity",{"$f":"IF(C120=0,B120,C120)","v":"Airborne Gravity"},"Geodetic Control ","DOC-NOAA","Dr. Theresa Diehl","theresa.diehl@noaa.gov"]
[null,null,"Continuously Operating Reference Stations (CORS)","Continuously Operating Reference Stations (CORS)","Geodetic Control ","DOC-NOAA","Dr. Giovanni Sella","giovanni.sella@noaa.gov"]
[null,null,"Geoid Models","Geoid Models","Geodetic Control ","DOC-NOAA","Dr. Dan Roman","dan.roman@noaa.gov"]
["National Geologic Data Base","National Geologic Data Base","National Geodetic Survey (NGS) Datasheets","National Geodetic Survey (NGS) Datasheets","Geodetic Control ","DOI-USGS","Jim Tomlin","jim.tomlin@noaa.gov",{"$f":"VLOOKUP(B123,'LOC FINAL with new Themes'!A:M,7,0)","v":0},{"$f":"VLOOKUP(B123,'LOC FINAL with new Themes'!A:M,8,0)","v":0},{"$f":"VLOOKUP(B123,'LOC FINAL with new Themes'!A:M,9,0)","v":0},{"$f":"VLOOKUP(B123,'LOC FINAL with new Themes'!A:M,10,0)","v":0},{"$f":"VLOOKUP(B123,'LOC FINAL with new Themes'!A:M,11,0)","v":0},{"$f":"VLOOKUP(B123,'LOC FINAL with new Themes'!A:M,12,0)","v":0},{"$f":"VLOOKUP(B123,'LOC FINAL with new Themes'!A:M,13,0)","v":0}]
[null,null,"Precise Global Navigation Satellite System (GNSS) Orbits",{"$f":"IF(C124=0,B234,C124)","v":"Precise Global Navigation Satellite System (GNSS) Orbits"},"Geodetic Control ","DOC-NOAA","Dr. Jake Griffiths","jake.griffiths@noaa.gov"]
[null,null,"Terrestrial Gravity",{"$f":"IF(C125=0,B125,C125)","v":"Terrestrial Gravity"},"Geodetic Control ","DOC-NOAA"]
[{"$f":"SUBTOTAL(3,A120:A125)","v":1},{"$f":"SUBTOTAL(3,B120:B125)","v":1},{"$f":"SUBTOTAL(3,C120:C125)","v":6},{"$f":"SUBTOTAL(3,D120:D125)","v":6},"Geodetic Control  Count"]
[null,null,"Coal assessment and mapping",{"$f":"IF(C127=0,B127,C127)","v":"Coal assessment and mapping"},"Geology","DOI-USGS"]
["Coastline Data","Coastline Data","Coastline Data","Coastline Data","Geology","DOI-BOEM","Doug Vandegraft","douglas.vandegraft@boemre.gov",{"$f":"VLOOKUP(B128,'LOC FINAL with new Themes'!A:M,7,0)","v":"undeliverable email- neeed to identify new contact"},{"$f":"VLOOKUP(B128,'LOC FINAL with new Themes'!A:M,8,0)","v":0},{"$f":"VLOOKUP(B128,'LOC FINAL with new Themes'!A:M,9,0)","v":0},{"$f":"VLOOKUP(B128,'LOC FINAL with new Themes'!A:M,10,0)","v":0},{"$f":"VLOOKUP(B128,'LOC FINAL with new Themes'!A:M,11,0)","v":0},{"$f":"VLOOKUP(B128,'LOC FINAL with new Themes'!A:M,12,0)","v":0},{"$f":"VLOOKUP(B128,'LOC FINAL with new Themes'!A:M,13,0)","v":0}]
[null,null,"Earthquake monitoring, research, and mapping","Earthquake monitoring, research, and mapping","Geology","DOI-USGS"]
[null,null,"Geochemistry","Geochemistry","Geology","DOI-USGS"]
[null,null,"Geochronology","Geochronology","Geology","DOI-USGS"]
[null,null,"Geologic mapping","Geologic mapping","Geology","DOI-USGS"]
[null,null,"Geomagnetism","Geomagnetism","Geology","DOI-USGS"]
[null,null,"Geophysics","Geophysics","Geology","DOI-USGS"]
[null,null,"Landslide monitoring, research, and mapping","Landslide monitoring, research, and mapping","Geology","DOI-USGS"]
[null,null,"Marine geology","Marine geology","Geology","DOI-USGS"]
[null,null,"Metallic mineral assessment and mapping","Metallic mineral assessment and mapping","Geology","DOI-USGS"]
[null,null,"MMS Baseline","MMS Baseline","Geology","DOI-MMS"]
[null,null,"Non-metallic mineral assessment and mapping, onshore",{"$f":"IF(C139=0,B138,C139)","v":"Non-metallic mineral assessment and mapping, onshore"},"Geology","DOI-USGS"]
["OCS BLOCK LEASE DATA (OCS)","OCS BLOCK LEASE DATA ","OCS Lease Blocks",{"$f":"IF(C140=0,#REF!,C140)","v":"OCS Lease Blocks"},"Geology","DOI-BOEM","Doug Vandegraft","douglas.vandegraft@boemre.gov",{"$f":"VLOOKUP(B140,'LOC FINAL with new Themes'!A:M,7,0)","v":"undeliverable email- neeed to identify new contact"},{"$f":"VLOOKUP(B140,'LOC FINAL with new Themes'!A:M,8,0)","v":0},{"$f":"VLOOKUP(B140,'LOC FINAL with new Themes'!A:M,9,0)","v":0},{"$f":"VLOOKUP(B140,'LOC FINAL with new Themes'!A:M,10,0)","v":0},{"$f":"VLOOKUP(B140,'LOC FINAL with new Themes'!A:M,11,0)","v":0},{"$f":"VLOOKUP(B140,'LOC FINAL with new Themes'!A:M,12,0)","v":0},{"$f":"VLOOKUP(B140,'LOC FINAL with new Themes'!A:M,13,0)","v":0}]
[null,null,"OCS Active Leases",{"$f":"IF(C141=0,B140,C141)","v":"OCS Active Leases"},"Geology","DOI-BOEM","Doug Vandegraft","douglas.vandegraft@boemre.gov"]
[null,null,"Oil and gas assessment and mapping, onshore",{"$f":"IF(C142=0,B142,C142)","v":"Oil and gas assessment and mapping, onshore"},"Geology","DOI-USGS"]
[null,null,"Paleontology","Paleontology","Geology","DOI-USGS"]
[null,null,"Sand and Gravel","Sand and Gravel","Geology","DOI-MMS"]
[null,null,"Volcano monitoring, research, and mapping","Volcano monitoring, research, and mapping","Geology","DOI-USGS"]
[null,null,"Wells","Wells","Geology","DOI-MMS"]
[{"$f":"SUBTOTAL(3,A127:A146)","v":2},{"$f":"SUBTOTAL(3,B127:B146)","v":2},{"$f":"SUBTOTAL(3,C127:C146)","v":20},{"$f":"SUBTOTAL(3,D127:D146)","v":20},"Geology Count"]
["County Boundaries","County Boundaries",null,{"$f":"IF(C148=0,B148,C148)","v":"County Boundaries"},"Governmental Units",null,null,null,{"$f":"VLOOKUP(B148,'LOC FINAL with new Themes'!A:M,7,0)","v":0},{"$f":"VLOOKUP(B148,'LOC FINAL with new Themes'!A:M,8,0)","v":0},{"$f":"VLOOKUP(B148,'LOC FINAL with new Themes'!A:M,9,0)","v":0},{"$f":"VLOOKUP(B148,'LOC FINAL with new Themes'!A:M,10,0)","v":0},{"$f":"VLOOKUP(B148,'LOC FINAL with new Themes'!A:M,11,0)","v":0},{"$f":"VLOOKUP(B148,'LOC FINAL with new Themes'!A:M,12,0)","v":0},{"$f":"VLOOKUP(B148,'LOC FINAL with new Themes'!A:M,13,0)","v":0}]
[null,"Place and MCD Boundaries",null,"Place and MCD Boundaries","Governmental Units",null,null,null,{"$f":"VLOOKUP(B149,'LOC FINAL with new Themes'!A:M,7,0)","v":0},{"$f":"VLOOKUP(B149,'LOC FINAL with new Themes'!A:M,8,0)","v":0},{"$f":"VLOOKUP(B149,'LOC FINAL with new Themes'!A:M,9,0)","v":0},{"$f":"VLOOKUP(B149,'LOC FINAL with new Themes'!A:M,10,0)","v":0},{"$f":"VLOOKUP(B149,'LOC FINAL with new Themes'!A:M,11,0)","v":0},{"$f":"VLOOKUP(B149,'LOC FINAL with new Themes'!A:M,12,0)","v":0},{"$f":"VLOOKUP(B149,'LOC FINAL with new Themes'!A:M,13,0)","v":0}]
[null,"Alaska Native Regional Corporation (2010 Census)","Alaska Native Regional Corporation (2010 Census)","Alaska Native Regional Corporation (2010 Census)","Governmental Units ","DOC-Census","Jennifer Holland","Jennifer.L.Holland@census.gov",{"$f":"VLOOKUP(B150,'LOC FINAL with new Themes'!A:M,7,0)","v":0},{"$f":"VLOOKUP(B150,'LOC FINAL with new Themes'!A:M,8,0)","v":0},{"$f":"VLOOKUP(B150,'LOC FINAL with new Themes'!A:M,9,0)","v":0},{"$f":"VLOOKUP(B150,'LOC FINAL with new Themes'!A:M,10,0)","v":0},{"$f":"VLOOKUP(B150,'LOC FINAL with new Themes'!A:M,11,0)","v":0},{"$f":"VLOOKUP(B150,'LOC FINAL with new Themes'!A:M,12,0)","v":0},{"$f":"VLOOKUP(B150,'LOC FINAL with new Themes'!A:M,13,0)","v":0}]
[null,"Alaska Native Regional Corporation (Census 2000)","Alaska Native Regional Corporation (Census 2000)","Alaska Native Regional Corporation (Census 2000)","Governmental Units ","DOC-Census","Jennifer Holland","Jennifer.L.Holland@census.gov",{"$f":"VLOOKUP(B151,'LOC FINAL with new Themes'!A:M,7,0)","v":0},{"$f":"VLOOKUP(B151,'LOC FINAL with new Themes'!A:M,8,0)","v":0},{"$f":"VLOOKUP(B151,'LOC FINAL with new Themes'!A:M,9,0)","v":0},{"$f":"VLOOKUP(B151,'LOC FINAL with new Themes'!A:M,10,0)","v":0},{"$f":"VLOOKUP(B151,'LOC FINAL with new Themes'!A:M,11,0)","v":0},{"$f":"VLOOKUP(B151,'LOC FINAL with new Themes'!A:M,12,0)","v":0},{"$f":"VLOOKUP(B151,'LOC FINAL with new Themes'!A:M,13,0)","v":0}]
[null,"American Indian Tribal Subdivision (2010 Census)","American Indian Tribal Subdivision (2010 Census)","American Indian Tribal Subdivision (2010 Census)","Governmental Units ","DOC-Census","Jennifer Holland","Jennifer.L.Holland@census.gov",{"$f":"VLOOKUP(B152,'LOC FINAL with new Themes'!A:M,7,0)","v":0},{"$f":"VLOOKUP(B152,'LOC FINAL with new Themes'!A:M,8,0)","v":0},{"$f":"VLOOKUP(B152,'LOC FINAL with new Themes'!A:M,9,0)","v":0},{"$f":"VLOOKUP(B152,'LOC FINAL with new Themes'!A:M,10,0)","v":0},{"$f":"VLOOKUP(B152,'LOC FINAL with new Themes'!A:M,11,0)","v":0},{"$f":"VLOOKUP(B152,'LOC FINAL with new Themes'!A:M,12,0)","v":0},{"$f":"VLOOKUP(B152,'LOC FINAL with new Themes'!A:M,13,0)","v":0}]
[null,"American Indian Tribal Subdivision (Census 2000)","American Indian Tribal Subdivision (Census 2000)","American Indian Tribal Subdivision (Census 2000)","Governmental Units ","DOC-Census","Jennifer Holland","Jennifer.L.Holland@census.gov",{"$f":"VLOOKUP(B153,'LOC FINAL with new Themes'!A:M,7,0)","v":0},{"$f":"VLOOKUP(B153,'LOC FINAL with new Themes'!A:M,8,0)","v":0},{"$f":"VLOOKUP(B153,'LOC FINAL with new Themes'!A:M,9,0)","v":0},{"$f":"VLOOKUP(B153,'LOC FINAL with new Themes'!A:M,10,0)","v":0},{"$f":"VLOOKUP(B153,'LOC FINAL with new Themes'!A:M,11,0)","v":0},{"$f":"VLOOKUP(B153,'LOC FINAL with new Themes'!A:M,12,0)","v":0},{"$f":"VLOOKUP(B153,'LOC FINAL with new Themes'!A:M,13,0)","v":0}]
[null,"American Indian/Alaska Native/Native Hawaiian Area (2000 Census)","American Indian/Alaska Native/Native Hawaiian Area (2000 Census)","American Indian/Alaska Native/Native Hawaiian Area (2000 Census)","Governmental Units ","DOC-Census","Jennifer Holland","Jennifer.L.Holland@census.gov",{"$f":"VLOOKUP(B154,'LOC FINAL with new Themes'!A:M,7,0)","v":0},{"$f":"VLOOKUP(B154,'LOC FINAL with new Themes'!A:M,8,0)","v":0},{"$f":"VLOOKUP(B154,'LOC FINAL with new Themes'!A:M,9,0)","v":0},{"$f":"VLOOKUP(B154,'LOC FINAL with new Themes'!A:M,10,0)","v":0},{"$f":"VLOOKUP(B154,'LOC FINAL with new Themes'!A:M,11,0)","v":0},{"$f":"VLOOKUP(B154,'LOC FINAL with new Themes'!A:M,12,0)","v":0},{"$f":"VLOOKUP(B154,'LOC FINAL with new Themes'!A:M,13,0)","v":0}]
[null,"American Indian/Alaska Native/Native Hawaiian Area (2010 Census)","American Indian/Alaska Native/Native Hawaiian Area (2010 Census)","American Indian/Alaska Native/Native Hawaiian Area (2010 Census)","Governmental Units ","DOC-Census","Jennifer Holland","Jennifer.L.Holland@census.gov",{"$f":"VLOOKUP(B155,'LOC FINAL with new Themes'!A:M,7,0)","v":0},{"$f":"VLOOKUP(B155,'LOC FINAL with new Themes'!A:M,8,0)","v":0},{"$f":"VLOOKUP(B155,'LOC FINAL with new Themes'!A:M,9,0)","v":0},{"$f":"VLOOKUP(B155,'LOC FINAL with new Themes'!A:M,10,0)","v":0},{"$f":"VLOOKUP(B155,'LOC FINAL with new Themes'!A:M,11,0)","v":0},{"$f":"VLOOKUP(B155,'LOC FINAL with new Themes'!A:M,12,0)","v":0},{"$f":"VLOOKUP(B155,'LOC FINAL with new Themes'!A:M,13,0)","v":0}]
[null,"Combined New England City and Town Area (2010 Census)","Combined New England City and Town Area (2010 Census)","Combined New England City and Town Area (2010 Census)","Governmental Units ","DOC-Census","Jennifer Holland","Jennifer.L.Holland@census.gov",{"$f":"VLOOKUP(B156,'LOC FINAL with new Themes'!A:M,7,0)","v":0},{"$f":"VLOOKUP(B156,'LOC FINAL with new Themes'!A:M,8,0)","v":0},{"$f":"VLOOKUP(B156,'LOC FINAL with new Themes'!A:M,9,0)","v":0},{"$f":"VLOOKUP(B156,'LOC FINAL with new Themes'!A:M,10,0)","v":0},{"$f":"VLOOKUP(B156,'LOC FINAL with new Themes'!A:M,11,0)","v":0},{"$f":"VLOOKUP(B156,'LOC FINAL with new Themes'!A:M,12,0)","v":0},{"$f":"VLOOKUP(B156,'LOC FINAL with new Themes'!A:M,13,0)","v":0}]
["Congressional District Boundaries","Congressional District (108th)","Congressional District (108th)","Congressional District (108th)","Governmental Units ","DOC-Census","Jennifer Holland","Jennifer.L.Holland@census.gov",{"$f":"VLOOKUP(B157,'LOC FINAL with new Themes'!A:M,7,0)","v":0},{"$f":"VLOOKUP(B157,'LOC FINAL with new Themes'!A:M,8,0)","v":0},{"$f":"VLOOKUP(B157,'LOC FINAL with new Themes'!A:M,9,0)","v":0},{"$f":"VLOOKUP(B157,'LOC FINAL with new Themes'!A:M,10,0)","v":0},{"$f":"VLOOKUP(B157,'LOC FINAL with new Themes'!A:M,11,0)","v":0},{"$f":"VLOOKUP(B157,'LOC FINAL with new Themes'!A:M,12,0)","v":0},{"$f":"VLOOKUP(B157,'LOC FINAL with new Themes'!A:M,13,0)","v":0}]
[null,"Congressional District (111th)","Congressional District (111th)","Congressional District (111th)","Governmental Units ","DOC-Census","Jennifer Holland","Jennifer.L.Holland@census.gov",{"$f":"VLOOKUP(B158,'LOC FINAL with new Themes'!A:M,7,0)","v":0},{"$f":"VLOOKUP(B158,'LOC FINAL with new Themes'!A:M,8,0)","v":0},{"$f":"VLOOKUP(B158,'LOC FINAL with new Themes'!A:M,9,0)","v":0},{"$f":"VLOOKUP(B158,'LOC FINAL with new Themes'!A:M,10,0)","v":0},{"$f":"VLOOKUP(B158,'LOC FINAL with new Themes'!A:M,11,0)","v":0},{"$f":"VLOOKUP(B158,'LOC FINAL with new Themes'!A:M,12,0)","v":0},{"$f":"VLOOKUP(B158,'LOC FINAL with new Themes'!A:M,13,0)","v":0}]
[null,"Consolidated City (2010 Census)","Consolidated City (2010 Census)","Consolidated City (2010 Census)","Governmental Units ","DOC-Census","Jennifer Holland","Jennifer.L.Holland@census.gov",{"$f":"VLOOKUP(B159,'LOC FINAL with new Themes'!A:M,7,0)","v":0},{"$f":"VLOOKUP(B159,'LOC FINAL with new Themes'!A:M,8,0)","v":0},{"$f":"VLOOKUP(B159,'LOC FINAL with new Themes'!A:M,9,0)","v":0},{"$f":"VLOOKUP(B159,'LOC FINAL with new Themes'!A:M,10,0)","v":0},{"$f":"VLOOKUP(B159,'LOC FINAL with new Themes'!A:M,11,0)","v":0},{"$f":"VLOOKUP(B159,'LOC FINAL with new Themes'!A:M,12,0)","v":0},{"$f":"VLOOKUP(B159,'LOC FINAL with new Themes'!A:M,13,0)","v":0}]
[null,"Consolidated City (Census 2000)","Consolidated City (Census 2000)","Consolidated City (Census 2000)","Governmental Units ","DOC-Census","Jennifer Holland","Jennifer.L.Holland@census.gov",{"$f":"VLOOKUP(B160,'LOC FINAL with new Themes'!A:M,7,0)","v":0},{"$f":"VLOOKUP(B160,'LOC FINAL with new Themes'!A:M,8,0)","v":0},{"$f":"VLOOKUP(B160,'LOC FINAL with new Themes'!A:M,9,0)","v":0},{"$f":"VLOOKUP(B160,'LOC FINAL with new Themes'!A:M,10,0)","v":0},{"$f":"VLOOKUP(B160,'LOC FINAL with new Themes'!A:M,11,0)","v":0},{"$f":"VLOOKUP(B160,'LOC FINAL with new Themes'!A:M,12,0)","v":0},{"$f":"VLOOKUP(B160,'LOC FINAL with new Themes'!A:M,13,0)","v":0}]
[null,"County and Equivalent (2010 Census)","County and Equivalent (2010 Census)","County and Equivalent (2010 Census)","Governmental Units ","DOC-Census","Jennifer Holland","Jennifer.L.Holland@census.gov",{"$f":"VLOOKUP(B161,'LOC FINAL with new Themes'!A:M,7,0)","v":0},{"$f":"VLOOKUP(B161,'LOC FINAL with new Themes'!A:M,8,0)","v":0},{"$f":"VLOOKUP(B161,'LOC FINAL with new Themes'!A:M,9,0)","v":0},{"$f":"VLOOKUP(B161,'LOC FINAL with new Themes'!A:M,10,0)","v":0},{"$f":"VLOOKUP(B161,'LOC FINAL with new Themes'!A:M,11,0)","v":0},{"$f":"VLOOKUP(B161,'LOC FINAL with new Themes'!A:M,12,0)","v":0},{"$f":"VLOOKUP(B161,'LOC FINAL with new Themes'!A:M,13,0)","v":0}]
[null,"County and Equivalent (Census 2000)","County and Equivalent (Census 2000)","County and Equivalent (Census 2000)","Governmental Units ","DOC-Census","Jennifer Holland","Jennifer.L.Holland@census.gov",{"$f":"VLOOKUP(B162,'LOC FINAL with new Themes'!A:M,7,0)","v":0},{"$f":"VLOOKUP(B162,'LOC FINAL with new Themes'!A:M,8,0)","v":0},{"$f":"VLOOKUP(B162,'LOC FINAL with new Themes'!A:M,9,0)","v":0},{"$f":"VLOOKUP(B162,'LOC FINAL with new Themes'!A:M,10,0)","v":0},{"$f":"VLOOKUP(B162,'LOC FINAL with new Themes'!A:M,11,0)","v":0},{"$f":"VLOOKUP(B162,'LOC FINAL with new Themes'!A:M,12,0)","v":0},{"$f":"VLOOKUP(B162,'LOC FINAL with new Themes'!A:M,13,0)","v":0}]
[null,"County Subdivision (2010 Census)","County Subdivision (2010 Census)","County Subdivision (2010 Census)","Governmental Units ","DOC-Census","Jennifer Holland","Jennifer.L.Holland@census.gov",{"$f":"VLOOKUP(B163,'LOC FINAL with new Themes'!A:M,7,0)","v":0},{"$f":"VLOOKUP(B163,'LOC FINAL with new Themes'!A:M,8,0)","v":0},{"$f":"VLOOKUP(B163,'LOC FINAL with new Themes'!A:M,9,0)","v":0},{"$f":"VLOOKUP(B163,'LOC FINAL with new Themes'!A:M,10,0)","v":0},{"$f":"VLOOKUP(B163,'LOC FINAL with new Themes'!A:M,11,0)","v":0},{"$f":"VLOOKUP(B163,'LOC FINAL with new Themes'!A:M,12,0)","v":0},{"$f":"VLOOKUP(B163,'LOC FINAL with new Themes'!A:M,13,0)","v":0}]
[null,"County Subdivision (Census 2000)","County Subdivision (Census 2000)","County Subdivision (Census 2000)","Governmental Units ","DOC-Census","Jennifer Holland","Jennifer.L.Holland@census.gov",{"$f":"VLOOKUP(B164,'LOC FINAL with new Themes'!A:M,7,0)","v":0},{"$f":"VLOOKUP(B164,'LOC FINAL with new Themes'!A:M,8,0)","v":0},{"$f":"VLOOKUP(B164,'LOC FINAL with new Themes'!A:M,9,0)","v":0},{"$f":"VLOOKUP(B164,'LOC FINAL with new Themes'!A:M,10,0)","v":0},{"$f":"VLOOKUP(B164,'LOC FINAL with new Themes'!A:M,11,0)","v":0},{"$f":"VLOOKUP(B164,'LOC FINAL with new Themes'!A:M,12,0)","v":0},{"$f":"VLOOKUP(B164,'LOC FINAL with new Themes'!A:M,13,0)","v":0}]
["Estuarine and Marine Reserves","Estuarine and Marine Reserves",null,"Estuarine and Marine Reserves","Governmental Units ","DOC-NOAA","Heather Sagar","Heather.Sagar@noaa.gov",{"$f":"VLOOKUP(B165,'LOC FINAL with new Themes'!A:M,7,0)","v":0},{"$f":"VLOOKUP(B165,'LOC FINAL with new Themes'!A:M,8,0)","v":0},{"$f":"VLOOKUP(B165,'LOC FINAL with new Themes'!A:M,9,0)","v":0},{"$f":"VLOOKUP(B165,'LOC FINAL with new Themes'!A:M,10,0)","v":0},{"$f":"VLOOKUP(B165,'LOC FINAL with new Themes'!A:M,11,0)","v":0},{"$f":"VLOOKUP(B165,'LOC FINAL with new Themes'!A:M,12,0)","v":0},{"$f":"VLOOKUP(B165,'LOC FINAL with new Themes'!A:M,13,0)","v":0}]
["Fisheries Closure and Habitat Areas","Fisheries Closure and Habitat Areas",null,"Fisheries Closure and Habitat Areas","Governmental Units ","DOC-NOAA","Heather Sagar","Heather.Sagar@noaa.gov",{"$f":"VLOOKUP(B166,'LOC FINAL with new Themes'!A:M,7,0)","v":0},{"$f":"VLOOKUP(B166,'LOC FINAL with new Themes'!A:M,8,0)","v":0},{"$f":"VLOOKUP(B166,'LOC FINAL with new Themes'!A:M,9,0)","v":0},{"$f":"VLOOKUP(B166,'LOC FINAL with new Themes'!A:M,10,0)","v":0},{"$f":"VLOOKUP(B166,'LOC FINAL with new Themes'!A:M,11,0)","v":0},{"$f":"VLOOKUP(B166,'LOC FINAL with new Themes'!A:M,12,0)","v":0},{"$f":"VLOOKUP(B166,'LOC FINAL with new Themes'!A:M,13,0)","v":0}]
[null,"Metropolitan Division (2010 Census)","Metropolitan Division (2010 Census)","Metropolitan Division (2010 Census)","Governmental Units ","DOC-Census","Jennifer Holland","Jennifer.L.Holland@census.gov",{"$f":"VLOOKUP(B167,'LOC FINAL with new Themes'!A:M,7,0)","v":0},{"$f":"VLOOKUP(B167,'LOC FINAL with new Themes'!A:M,8,0)","v":0},{"$f":"VLOOKUP(B167,'LOC FINAL with new Themes'!A:M,9,0)","v":0},{"$f":"VLOOKUP(B167,'LOC FINAL with new Themes'!A:M,10,0)","v":0},{"$f":"VLOOKUP(B167,'LOC FINAL with new Themes'!A:M,11,0)","v":0},{"$f":"VLOOKUP(B167,'LOC FINAL with new Themes'!A:M,12,0)","v":0},{"$f":"VLOOKUP(B167,'LOC FINAL with new Themes'!A:M,13,0)","v":0}]
[null,"Metropolitan Division (2010 Census)","Metropolitan Division (2010 Census)","Metropolitan Division (2010 Census)","Governmental Units ","DOC-Census","Jennifer Holland","Jennifer.L.Holland@census.gov",{"$f":"VLOOKUP(B168,'LOC FINAL with new Themes'!A:M,7,0)","v":0},{"$f":"VLOOKUP(B168,'LOC FINAL with new Themes'!A:M,8,0)","v":0},{"$f":"VLOOKUP(B168,'LOC FINAL with new Themes'!A:M,9,0)","v":0},{"$f":"VLOOKUP(B168,'LOC FINAL with new Themes'!A:M,10,0)","v":0},{"$f":"VLOOKUP(B168,'LOC FINAL with new Themes'!A:M,11,0)","v":0},{"$f":"VLOOKUP(B168,'LOC FINAL with new Themes'!A:M,12,0)","v":0},{"$f":"VLOOKUP(B168,'LOC FINAL with new Themes'!A:M,13,0)","v":0}]
[null,"New England City and Town Area (2010 Census)","New England City and Town Area (2010 Census)","New England City and Town Area (2010 Census)","Governmental Units ","DOC-Census","Jennifer Holland","Jennifer.L.Holland@census.gov",{"$f":"VLOOKUP(B169,'LOC FINAL with new Themes'!A:M,7,0)","v":0},{"$f":"VLOOKUP(B169,'LOC FINAL with new Themes'!A:M,8,0)","v":0},{"$f":"VLOOKUP(B169,'LOC FINAL with new Themes'!A:M,9,0)","v":0},{"$f":"VLOOKUP(B169,'LOC FINAL with new Themes'!A:M,10,0)","v":0},{"$f":"VLOOKUP(B169,'LOC FINAL with new Themes'!A:M,11,0)","v":0},{"$f":"VLOOKUP(B169,'LOC FINAL with new Themes'!A:M,12,0)","v":0},{"$f":"VLOOKUP(B169,'LOC FINAL with new Themes'!A:M,13,0)","v":0}]
[null,"New England City and Town Area Division (2010 Census)","New England City and Town Area Division (2010 Census)","New England City and Town Area Division (2010 Census)","Governmental Units ","DOC-Census","Jennifer Holland","Jennifer.L.Holland@census.gov",{"$f":"VLOOKUP(B170,'LOC FINAL with new Themes'!A:M,7,0)","v":0},{"$f":"VLOOKUP(B170,'LOC FINAL with new Themes'!A:M,8,0)","v":0},{"$f":"VLOOKUP(B170,'LOC FINAL with new Themes'!A:M,9,0)","v":0},{"$f":"VLOOKUP(B170,'LOC FINAL with new Themes'!A:M,10,0)","v":0},{"$f":"VLOOKUP(B170,'LOC FINAL with new Themes'!A:M,11,0)","v":0},{"$f":"VLOOKUP(B170,'LOC FINAL with new Themes'!A:M,12,0)","v":0},{"$f":"VLOOKUP(B170,'LOC FINAL with new Themes'!A:M,13,0)","v":0}]
["Place and MCD Boundaries","Place (2010 Census)","Place (2010 Census)","Place (2010 Census)","Governmental Units ","DOC-Census","Jennifer Holland","Jennifer.L.Holland@census.gov",{"$f":"VLOOKUP(B171,'LOC FINAL with new Themes'!A:M,7,0)","v":0},{"$f":"VLOOKUP(B171,'LOC FINAL with new Themes'!A:M,8,0)","v":0},{"$f":"VLOOKUP(B171,'LOC FINAL with new Themes'!A:M,9,0)","v":0},{"$f":"VLOOKUP(B171,'LOC FINAL with new Themes'!A:M,10,0)","v":0},{"$f":"VLOOKUP(B171,'LOC FINAL with new Themes'!A:M,11,0)","v":0},{"$f":"VLOOKUP(B171,'LOC FINAL with new Themes'!A:M,12,0)","v":0},{"$f":"VLOOKUP(B171,'LOC FINAL with new Themes'!A:M,13,0)","v":0}]
[null,"Place (Census 2000)","Place (Census 2000)","Place (Census 2000)","Governmental Units ","DOC-Census","Jennifer Holland","Jennifer.L.Holland@census.gov",{"$f":"VLOOKUP(B172,'LOC FINAL with new Themes'!A:M,7,0)","v":0},{"$f":"VLOOKUP(B172,'LOC FINAL with new Themes'!A:M,8,0)","v":0},{"$f":"VLOOKUP(B172,'LOC FINAL with new Themes'!A:M,9,0)","v":0},{"$f":"VLOOKUP(B172,'LOC FINAL with new Themes'!A:M,10,0)","v":0},{"$f":"VLOOKUP(B172,'LOC FINAL with new Themes'!A:M,11,0)","v":0},{"$f":"VLOOKUP(B172,'LOC FINAL with new Themes'!A:M,12,0)","v":0},{"$f":"VLOOKUP(B172,'LOC FINAL with new Themes'!A:M,13,0)","v":0}]
["Sanctuaries","Sanctuaries",null,"Sanctuaries","Governmental Units ","DOC-NOAA","Christine Taylor","Christine.Taylor@noaa.gov",{"$f":"VLOOKUP(B173,'LOC FINAL with new Themes'!A:M,7,0)","v":0},{"$f":"VLOOKUP(B173,'LOC FINAL with new Themes'!A:M,8,0)","v":0},{"$f":"VLOOKUP(B173,'LOC FINAL with new Themes'!A:M,9,0)","v":0},{"$f":"VLOOKUP(B173,'LOC FINAL with new Themes'!A:M,10,0)","v":0},{"$f":"VLOOKUP(B173,'LOC FINAL with new Themes'!A:M,11,0)","v":0},{"$f":"VLOOKUP(B173,'LOC FINAL with new Themes'!A:M,12,0)","v":0},{"$f":"VLOOKUP(B173,'LOC FINAL with new Themes'!A:M,13,0)","v":0}]
["State(+ Territories) Boundaries","State and Equivalent  (2010 Census)","State and Equivalent  (2010 Census)","State and Equivalent  (2010 Census)","Governmental Units ","DOC-Census","Jennifer Holland","Jennifer.L.Holland@census.gov",{"$f":"VLOOKUP(B174,'LOC FINAL with new Themes'!A:M,7,0)","v":0},{"$f":"VLOOKUP(B174,'LOC FINAL with new Themes'!A:M,8,0)","v":0},{"$f":"VLOOKUP(B174,'LOC FINAL with new Themes'!A:M,9,0)","v":0},{"$f":"VLOOKUP(B174,'LOC FINAL with new Themes'!A:M,10,0)","v":0},{"$f":"VLOOKUP(B174,'LOC FINAL with new Themes'!A:M,11,0)","v":0},{"$f":"VLOOKUP(B174,'LOC FINAL with new Themes'!A:M,12,0)","v":0},{"$f":"VLOOKUP(B174,'LOC FINAL with new Themes'!A:M,13,0)","v":0}]
[null,"State and Equivalent  (Census 2000)","State and Equivalent  (Census 2000)","State and Equivalent  (Census 2000)","Governmental Units ","DOC-Census","Jennifer Holland","Jennifer.L.Holland@census.gov",{"$f":"VLOOKUP(B175,'LOC FINAL with new Themes'!A:M,7,0)","v":0},{"$f":"VLOOKUP(B175,'LOC FINAL with new Themes'!A:M,8,0)","v":0},{"$f":"VLOOKUP(B175,'LOC FINAL with new Themes'!A:M,9,0)","v":0},{"$f":"VLOOKUP(B175,'LOC FINAL with new Themes'!A:M,10,0)","v":0},{"$f":"VLOOKUP(B175,'LOC FINAL with new Themes'!A:M,11,0)","v":0},{"$f":"VLOOKUP(B175,'LOC FINAL with new Themes'!A:M,12,0)","v":0},{"$f":"VLOOKUP(B175,'LOC FINAL with new Themes'!A:M,13,0)","v":0}]
[null,"State Legislative District (Lower Chamber) (2010 Census)","State Legislative District (Lower Chamber) (2010 Census)","State Legislative District (Lower Chamber) (2010 Census)","Governmental Units ","DOC-Census","Jennifer Holland","Jennifer.L.Holland@census.gov",{"$f":"VLOOKUP(B176,'LOC FINAL with new Themes'!A:M,7,0)","v":0},{"$f":"VLOOKUP(B176,'LOC FINAL with new Themes'!A:M,8,0)","v":0},{"$f":"VLOOKUP(B176,'LOC FINAL with new Themes'!A:M,9,0)","v":0},{"$f":"VLOOKUP(B176,'LOC FINAL with new Themes'!A:M,10,0)","v":0},{"$f":"VLOOKUP(B176,'LOC FINAL with new Themes'!A:M,11,0)","v":0},{"$f":"VLOOKUP(B176,'LOC FINAL with new Themes'!A:M,12,0)","v":0},{"$f":"VLOOKUP(B176,'LOC FINAL with new Themes'!A:M,13,0)","v":0}]
[null,"State Legislative District (Lower Chamber) (Census 2000)","State Legislative District (Lower Chamber) (Census 2000)","State Legislative District (Lower Chamber) (Census 2000)","Governmental Units ","DOC-Census","Jennifer Holland","Jennifer.L.Holland@census.gov",{"$f":"VLOOKUP(B177,'LOC FINAL with new Themes'!A:M,7,0)","v":0},{"$f":"VLOOKUP(B177,'LOC FINAL with new Themes'!A:M,8,0)","v":0},{"$f":"VLOOKUP(B177,'LOC FINAL with new Themes'!A:M,9,0)","v":0},{"$f":"VLOOKUP(B177,'LOC FINAL with new Themes'!A:M,10,0)","v":0},{"$f":"VLOOKUP(B177,'LOC FINAL with new Themes'!A:M,11,0)","v":0},{"$f":"VLOOKUP(B177,'LOC FINAL with new Themes'!A:M,12,0)","v":0},{"$f":"VLOOKUP(B177,'LOC FINAL with new Themes'!A:M,13,0)","v":0}]
[null,"State Legislative District (Upper Chamber) (2010 Census)","State Legislative District (Upper Chamber) (2010 Census)","State Legislative District (Upper Chamber) (2010 Census)","Governmental Units ","DOC-Census","Jennifer Holland","Jennifer.L.Holland@census.gov",{"$f":"VLOOKUP(B178,'LOC FINAL with new Themes'!A:M,7,0)","v":0},{"$f":"VLOOKUP(B178,'LOC FINAL with new Themes'!A:M,8,0)","v":0},{"$f":"VLOOKUP(B178,'LOC FINAL with new Themes'!A:M,9,0)","v":0},{"$f":"VLOOKUP(B178,'LOC FINAL with new Themes'!A:M,10,0)","v":0},{"$f":"VLOOKUP(B178,'LOC FINAL with new Themes'!A:M,11,0)","v":0},{"$f":"VLOOKUP(B178,'LOC FINAL with new Themes'!A:M,12,0)","v":0},{"$f":"VLOOKUP(B178,'LOC FINAL with new Themes'!A:M,13,0)","v":0}]
[null,"State Legislative District (Upper Chamber) (Census 2000)","State Legislative District (Upper Chamber) (Census 2000)","State Legislative District (Upper Chamber) (Census 2000)","Governmental Units ","DOC-Census","Jennifer Holland","Jennifer.L.Holland@census.gov",{"$f":"VLOOKUP(B179,'LOC FINAL with new Themes'!A:M,7,0)","v":0},{"$f":"VLOOKUP(B179,'LOC FINAL with new Themes'!A:M,8,0)","v":0},{"$f":"VLOOKUP(B179,'LOC FINAL with new Themes'!A:M,9,0)","v":0},{"$f":"VLOOKUP(B179,'LOC FINAL with new Themes'!A:M,10,0)","v":0},{"$f":"VLOOKUP(B179,'LOC FINAL with new Themes'!A:M,11,0)","v":0},{"$f":"VLOOKUP(B179,'LOC FINAL with new Themes'!A:M,12,0)","v":0},{"$f":"VLOOKUP(B179,'LOC FINAL with new Themes'!A:M,13,0)","v":0}]
[null,"Subbarrio (2010 Census)","Subbarrio (2010 Census)","Subbarrio (2010 Census)","Governmental Units ","DOC-Census","Jennifer Holland","Jennifer.L.Holland@census.gov",{"$f":"VLOOKUP(B180,'LOC FINAL with new Themes'!A:M,7,0)","v":0},{"$f":"VLOOKUP(B180,'LOC FINAL with new Themes'!A:M,8,0)","v":0},{"$f":"VLOOKUP(B180,'LOC FINAL with new Themes'!A:M,9,0)","v":0},{"$f":"VLOOKUP(B180,'LOC FINAL with new Themes'!A:M,10,0)","v":0},{"$f":"VLOOKUP(B180,'LOC FINAL with new Themes'!A:M,11,0)","v":0},{"$f":"VLOOKUP(B180,'LOC FINAL with new Themes'!A:M,12,0)","v":0},{"$f":"VLOOKUP(B180,'LOC FINAL with new Themes'!A:M,13,0)","v":0}]
[null,"Subbarrio (Census 2000)","Subbarrio (Census 2000)","Subbarrio (Census 2000)","Governmental Units ","DOC-Census","Jennifer Holland","Jennifer.L.Holland@census.gov",{"$f":"VLOOKUP(B181,'LOC FINAL with new Themes'!A:M,7,0)","v":0},{"$f":"VLOOKUP(B181,'LOC FINAL with new Themes'!A:M,8,0)","v":0},{"$f":"VLOOKUP(B181,'LOC FINAL with new Themes'!A:M,9,0)","v":0},{"$f":"VLOOKUP(B181,'LOC FINAL with new Themes'!A:M,10,0)","v":0},{"$f":"VLOOKUP(B181,'LOC FINAL with new Themes'!A:M,11,0)","v":0},{"$f":"VLOOKUP(B181,'LOC FINAL with new Themes'!A:M,12,0)","v":0},{"$f":"VLOOKUP(B181,'LOC FINAL with new Themes'!A:M,13,0)","v":0}]
[null,"Urban Area (Corrected Census 2000)","Urban Area (Corrected Census 2000)","Urban Area (Corrected Census 2000)","Governmental Units ","DOC-Census","Jennifer Holland","Jennifer.L.Holland@census.gov",{"$f":"VLOOKUP(B182,'LOC FINAL with new Themes'!A:M,7,0)","v":0},{"$f":"VLOOKUP(B182,'LOC FINAL with new Themes'!A:M,8,0)","v":0},{"$f":"VLOOKUP(B182,'LOC FINAL with new Themes'!A:M,9,0)","v":0},{"$f":"VLOOKUP(B182,'LOC FINAL with new Themes'!A:M,10,0)","v":0},{"$f":"VLOOKUP(B182,'LOC FINAL with new Themes'!A:M,11,0)","v":0},{"$f":"VLOOKUP(B182,'LOC FINAL with new Themes'!A:M,12,0)","v":0},{"$f":"VLOOKUP(B182,'LOC FINAL with new Themes'!A:M,13,0)","v":0}]
[{"$f":"SUBTOTAL(3,A148:A182)","v":7},{"$f":"SUBTOTAL(3,B148:B182)","v":35},{"$f":"SUBTOTAL(3,C148:C182)","v":30},{"$f":"SUBTOTAL(3,D148:D182)","v":35},"Governmental Units Count"]
["133 Urban Areas imagery program data","133 Urban Areas imagery program data",null,{"$f":"IF(C184=0,B184,C184)","v":"133 Urban Areas imagery program data"},"Imagery ","DOD-NGA","William Nellist","William.E.Nellist@nga.mil",{"$f":"VLOOKUP(B184,'LOC FINAL with new Themes'!A:M,7,0)","v":0},{"$f":"VLOOKUP(B184,'LOC FINAL with new Themes'!A:M,8,0)","v":0},{"$f":"VLOOKUP(B184,'LOC FINAL with new Themes'!A:M,9,0)","v":0},{"$f":"VLOOKUP(B184,'LOC FINAL with new Themes'!A:M,10,0)","v":0},{"$f":"VLOOKUP(B184,'LOC FINAL with new Themes'!A:M,11,0)","v":0},{"$f":"VLOOKUP(B184,'LOC FINAL with new Themes'!A:M,12,0)","v":0},{"$f":"VLOOKUP(B184,'LOC FINAL with new Themes'!A:M,13,0)","v":0}]
[null,"134 Urban Areas imagery program data",null,"134 Urban Areas imagery program data","Imagery ","DOI-USGS","George Lee","gylee@usgs.gov",{"$f":"VLOOKUP(B185,'LOC FINAL with new Themes'!A:M,7,0)","v":0},{"$f":"VLOOKUP(B185,'LOC FINAL with new Themes'!A:M,8,0)","v":0},{"$f":"VLOOKUP(B185,'LOC FINAL with new Themes'!A:M,9,0)","v":0},{"$f":"VLOOKUP(B185,'LOC FINAL with new Themes'!A:M,10,0)","v":0},{"$f":"VLOOKUP(B185,'LOC FINAL with new Themes'!A:M,11,0)","v":0},{"$f":"VLOOKUP(B185,'LOC FINAL with new Themes'!A:M,12,0)","v":0},{"$f":"VLOOKUP(B185,'LOC FINAL with new Themes'!A:M,13,0)","v":0}]
["ADS40 Hurricane Response 7.5' Quadrangle Mosaics","ADS40 Hurricane Response 7.5' Quadrangle Mosaics",null,"ADS40 Hurricane Response 7.5' Quadrangle Mosaics","Imagery ","DOI-USGS","Jim Mauck","jmauck@usgs.gov",{"$f":"VLOOKUP(B186,'LOC FINAL with new Themes'!A:M,7,0)","v":0},{"$f":"VLOOKUP(B186,'LOC FINAL with new Themes'!A:M,8,0)","v":0},{"$f":"VLOOKUP(B186,'LOC FINAL with new Themes'!A:M,9,0)","v":0},{"$f":"VLOOKUP(B186,'LOC FINAL with new Themes'!A:M,10,0)","v":0},{"$f":"VLOOKUP(B186,'LOC FINAL with new Themes'!A:M,11,0)","v":0},{"$f":"VLOOKUP(B186,'LOC FINAL with new Themes'!A:M,12,0)","v":0},{"$f":"VLOOKUP(B186,'LOC FINAL with new Themes'!A:M,13,0)","v":0}]
["Digital Orthoimage Quarter Quadrangle (DOQQ) Archive","Digital Orthoimage Quarter Quadrangle (DOQQ) Archive",null,"Digital Orthoimage Quarter Quadrangle (DOQQ) Archive","Imagery ","DOI-USGS",null,null,{"$f":"VLOOKUP(B187,'LOC FINAL with new Themes'!A:M,7,0)","v":"DOQQ is static; one data set; this is the POC and data manager. this is the name and maintain three complete with two physically separate on-site and one off-site"},{"$f":"VLOOKUP(B187,'LOC FINAL with new Themes'!A:M,8,0)","v":0},{"$f":"VLOOKUP(B187,'LOC FINAL with new Themes'!A:M,9,0)","v":0},{"$f":"VLOOKUP(B187,'LOC FINAL with new Themes'!A:M,10,0)","v":0},{"$f":"VLOOKUP(B187,'LOC FINAL with new Themes'!A:M,11,0)","v":0},{"$f":"VLOOKUP(B187,'LOC FINAL with new Themes'!A:M,12,0)","v":0},{"$f":"VLOOKUP(B187,'LOC FINAL with new Themes'!A:M,13,0)","v":"S"}]
["Emergency Response Imagery","Emergency Response Imagery","Emergency Response Imagery","Emergency Response Imagery","Imagery ","DOC-NOAA","Mike Aslaksen","mike.Aslaksen@noaa.gov",{"$f":"VLOOKUP(B188,'LOC FINAL with new Themes'!A:M,7,0)","v":"20-Multiple      "},{"$f":"VLOOKUP(B188,'LOC FINAL with new Themes'!A:M,8,0)","v":"No"},{"$f":"VLOOKUP(B188,'LOC FINAL with new Themes'!A:M,9,0)","v":"Yes - email reply from Jon Sellars Jon.Sellars@noaa.gov"},{"$f":"VLOOKUP(B188,'LOC FINAL with new Themes'!A:M,10,0)","v":"- Same for the forest frag."},{"$f":"VLOOKUP(B188,'LOC FINAL with new Themes'!A:M,11,0)","v":"Our data can be accessed through the following links: http://storms.ngs.noaagov/eri_page/index.html Gulf Oil Spill:\nhttp://hdds.usgs.gov/hdds2/pub/data/disaster/201004_Oilspill_GulfOfMexico/data/AERIAL_NOAA\nhttp://hdds.usgs.gov/hdds2/pub/data/disaster/201004_Oilspill_GulfOfMexico/data/AERIAL_NOAA_MOSAIC  Haiti Earthquake:\nhttp://hdds.usgs.gov/hdds2/pub/data/disaster/201001_Earthquake_Haiti/data/AERIAL_NOAA\nhttp://hdds.usgs.gov/hdds2/pub/data/disaster/201001_Earthquake_Haiti/data/AERIAL_NOAA_ORTHO\nMexico Earthquake:\nhttp://hdds.usgs.gov/hdds2/pub/data/disaster/201004_Earthquake_Mexico/data/AERIAL_NOAA_MOSAIC \n\n"},{"$f":"VLOOKUP(B188,'LOC FINAL with new Themes'!A:M,12,0)","v":"Described by storm name, event or location."},{"$f":"VLOOKUP(B188,'LOC FINAL with new Themes'!A:M,13,0)","v":"M "}]
[null,null,"Fire, Detection: AVHRR FIMMA , GOES WF-ABBA","Fire, Detection: AVHRR FIMMA , GOES WF-ABBA","Imagery ","USDA"]
["Landsat geometric/terrain corrected level 1T","Landsat geometric/terrain corrected level 1T","Landsat Terrain Corrected Scenes","Landsat Terrain Corrected Scenes","Imagery ","DOI-USGS","Kristi Kline","kkline@usgs.gov",{"$f":"VLOOKUP(B190,'LOC FINAL with new Themes'!A:M,7,0)","v":"Landsat updates daily; a series of data sets; this is the POC and data manager; this is the name and maintain three complete with two physically separate on-site and one off-site"},{"$f":"VLOOKUP(B190,'LOC FINAL with new Themes'!A:M,8,0)","v":0},{"$f":"VLOOKUP(B190,'LOC FINAL with new Themes'!A:M,9,0)","v":0},{"$f":"VLOOKUP(B190,'LOC FINAL with new Themes'!A:M,10,0)","v":0},{"$f":"VLOOKUP(B190,'LOC FINAL with new Themes'!A:M,11,0)","v":0},{"$f":"VLOOKUP(B190,'LOC FINAL with new Themes'!A:M,12,0)","v":0},{"$f":"VLOOKUP(B190,'LOC FINAL with new Themes'!A:M,13,0)","v":"S"}]
[null,null,"National  Orthoimagery Dataset - National Map","National  Orthoimagery Dataset - National Map","Imagery ","DOI-USGS"]
["National Aerial Photography Program (NAPP) Data Archive","National Aerial Photography Program (NAPP) Data Archive",null,"National Aerial Photography Program (NAPP) Data Archive","Imagery ","DOI-USGS","Wayne Miller","wamiller@usgs.gov",{"$f":"VLOOKUP(B192,'LOC FINAL with new Themes'!A:M,7,0)","v":"NAPP is static; one data set; this is the POC and data manager; this is the name and maintain three complete with two physically separate on-site and one off-site "},{"$f":"VLOOKUP(B192,'LOC FINAL with new Themes'!A:M,8,0)","v":0},{"$f":"VLOOKUP(B192,'LOC FINAL with new Themes'!A:M,9,0)","v":0},{"$f":"VLOOKUP(B192,'LOC FINAL with new Themes'!A:M,10,0)","v":0},{"$f":"VLOOKUP(B192,'LOC FINAL with new Themes'!A:M,11,0)","v":0},{"$f":"VLOOKUP(B192,'LOC FINAL with new Themes'!A:M,12,0)","v":0},{"$f":"VLOOKUP(B192,'LOC FINAL with new Themes'!A:M,13,0)","v":"S"}]
["National Agriculture Imagery Program Data","National Agriculture Imagery Program Data","National Agriculture Imagery Program (NAIP) Archive","National Agriculture Imagery Program (NAIP) Archive","Imagery ","DOI-USGS","Shirley Hall","shirley.hall@wdc.usda.gov",{"$f":"VLOOKUP(B193,'LOC FINAL with new Themes'!A:M,7,0)","v":"Shirley identified Dan Good as new contact 'daniel.good@wdc.usda.gov' - need to follow up with either or both"},{"$f":"VLOOKUP(B193,'LOC FINAL with new Themes'!A:M,8,0)","v":0},{"$f":"VLOOKUP(B193,'LOC FINAL with new Themes'!A:M,9,0)","v":0},{"$f":"VLOOKUP(B193,'LOC FINAL with new Themes'!A:M,10,0)","v":0},{"$f":"VLOOKUP(B193,'LOC FINAL with new Themes'!A:M,11,0)","v":0},{"$f":"VLOOKUP(B193,'LOC FINAL with new Themes'!A:M,12,0)","v":0},{"$f":"VLOOKUP(B193,'LOC FINAL with new Themes'!A:M,13,0)","v":0}]
["National Map Orthoimagery Database (TNM Seamless Server) ","National Map Orthoimagery Database (TNM Seamless Server) ",null,"National Map Orthoimagery Database (TNM Seamless Server) ","Imagery ","DOI-USGS","George Lee","gylee@usgs.gov",{"$f":"VLOOKUP(B194,'LOC FINAL with new Themes'!A:M,7,0)","v":0},{"$f":"VLOOKUP(B194,'LOC FINAL with new Themes'!A:M,8,0)","v":0},{"$f":"VLOOKUP(B194,'LOC FINAL with new Themes'!A:M,9,0)","v":0},{"$f":"VLOOKUP(B194,'LOC FINAL with new Themes'!A:M,10,0)","v":0},{"$f":"VLOOKUP(B194,'LOC FINAL with new Themes'!A:M,11,0)","v":0},{"$f":"VLOOKUP(B194,'LOC FINAL with new Themes'!A:M,12,0)","v":0},{"$f":"VLOOKUP(B194,'LOC FINAL with new Themes'!A:M,13,0)","v":0}]
["National Resource Inventory Imagery","National Resource Inventory Imagery",null,"National Resource Inventory Imagery","Imagery ","USDA-WDC","Jerry Harlow","jerry.harlow@wdc.usda.gov",{"$f":"VLOOKUP(B195,'LOC FINAL with new Themes'!A:M,7,0)","v":"Shirley identified Dan Good as new contact 'daniel.good@wdc.usda.gov' - need to follow up with either or both"},{"$f":"VLOOKUP(B195,'LOC FINAL with new Themes'!A:M,8,0)","v":0},{"$f":"VLOOKUP(B195,'LOC FINAL with new Themes'!A:M,9,0)","v":0},{"$f":"VLOOKUP(B195,'LOC FINAL with new Themes'!A:M,10,0)","v":0},{"$f":"VLOOKUP(B195,'LOC FINAL with new Themes'!A:M,11,0)","v":0},{"$f":"VLOOKUP(B195,'LOC FINAL with new Themes'!A:M,12,0)","v":0},{"$f":"VLOOKUP(B195,'LOC FINAL with new Themes'!A:M,13,0)","v":0}]
[null,null,"Satellite Imagery Archive","Satellite Imagery Archive","Imagery ","USDA-FSA"]
[{"$f":"SUBTOTAL(3,A184:A196)","v":9},{"$f":"SUBTOTAL(3,B184:B196)","v":10},{"$f":"SUBTOTAL(3,C184:C196)","v":6},{"$f":"SUBTOTAL(3,D184:D196)","v":13},"Imagery  Count"]
["Coastal Change Analysis Program (C-CAP)","Coastal Change Analysis Program (C-CAP)",null,{"$f":"IF(C198=0,B198,C198)","v":"Coastal Change Analysis Program (C-CAP)"},"Land Use-Land Cover ","DOC-NOAA","Nate Herold","Nate.Herold@noaa.gov",{"$f":"VLOOKUP(B198,'LOC FINAL with new Themes'!A:M,7,0)","v":"Answer might depend on how we slice and dice it...  C-CAP has up to three separate product lines (regional, high resolution, and a derived forest fragmentation classified data set).  We also have multiple dates of land cover for each of these (which I guess you would probably count).  See the following links (and bullets summarizing) on each.http://www.csc.noaa.gov/landcover\n- Covers CONUS coastal areas.  All areas for 1996, 2001, and 2006.\n- Some select CONUS geographies (WA, DE, MD, and VA) also have a 1992 date.\n- Covers state of Hawaii for 1992, 2001, and 2006.\n- includes individual dates and files highlighting changes between dates.\n\nhttp://www.csc.noaa.gov/digitalcoast/data/forestfrag/index.html\n- Covers CONUS coastal areas.  All areas for 1996, 2001, and 2006.\n- Other dates and geographies not currently included.\n\nhttp://www.csc.noaa.gov/digitalcoast/data/ccaphighres/index.html\n- Covers project level areas (year depends on geography, etc.)\n- Primarily data in the pacific (Hawaii and territories of American Samoa, Guam, and CNMI), as well as the USVIs, Jobos Bay Puerto Rico, and Santa Cruz area in CA.\n \n"},{"$f":"VLOOKUP(B198,'LOC FINAL with new Themes'!A:M,8,0)","v":"Yes"},{"$f":"VLOOKUP(B198,'LOC FINAL with new Themes'!A:M,9,0)","v":"Yes"},{"$f":"VLOOKUP(B198,'LOC FINAL with new Themes'!A:M,10,0)","v":"- The CONUS products are updated approximately every five years (we are currently working on a 2010/2011 data set, to add to the above time series)."},{"$f":"VLOOKUP(B198,'LOC FINAL with new Themes'!A:M,11,0)","v":"Yes.  We maintain and serve all of our data (at above addresses), and archive with NOAA's National Oceanic Data Center (NODC).  We consider the dates listed above as current data sets, as part of the data we produce is tracking and providing change data as well."},{"$f":"VLOOKUP(B198,'LOC FINAL with new Themes'!A:M,12,0)","v":"Not really...  Maybe the generic coastal land cover.  It is also very closely related and feeds into the National Land Cover Database (NLCD), which is a national land cover product developed by the Multi-Resolution Land Characteristics (MRLC) consortium.  this is an effort lead by the USGS."},{"$f":"VLOOKUP(B198,'LOC FINAL with new Themes'!A:M,13,0)","v":"M "}]
[null,null,"Crops: Cropland Data Layer","Crops: Cropland Data Layer","Land Use-Land Cover ","USDA-NASS"]
[null,null,"Earth Cover, Land: MODIS-based Land Products","Earth Cover, Land: MODIS-based Land Products","Land Use-Land Cover ","USDA -FS (Along with USGS)"]
[null,null,"Earth Cover, Vegetation, Forest: Forest Biomass, Types, Type Groups","Earth Cover, Vegetation, Forest: Forest Biomass, Types, Type Groups","Land Use-Land Cover ","USDA-FS"]
[null,null,"Earth Cover, Vegetation: Percent Forest Canopy","Earth Cover, Vegetation: Percent Forest Canopy","Land Use-Land Cover ","USDA-FS"]
[null,null,"Fire Severity: Monitoring Trends in Burn Severity (MTBS)","Fire Severity: Monitoring Trends in Burn Severity (MTBS)","Land Use-Land Cover ","USDA -FS (Along with USGS)"]
[null,null,"Fire, Detection: Daily Active Fire Mapping","Fire, Detection: Daily Active Fire Mapping","Land Use-Land Cover ","USDA"]
[null,null,"Land Cover Strata Dataset","Land Cover Strata Dataset","Land Use-Land Cover ","USDA-NASS"]
["LANDFIRE Dataset","LANDFIRE Dataset","Land Fire Dataset","Land Fire Dataset","Land Use-Land Cover ",null,null,0,{"$f":"VLOOKUP(B206,'LOC FINAL with new Themes'!A:M,7,0)","v":0},{"$f":"VLOOKUP(B206,'LOC FINAL with new Themes'!A:M,8,0)","v":0},{"$f":"VLOOKUP(B206,'LOC FINAL with new Themes'!A:M,9,0)","v":0},{"$f":"VLOOKUP(B206,'LOC FINAL with new Themes'!A:M,10,0)","v":0},{"$f":"VLOOKUP(B206,'LOC FINAL with new Themes'!A:M,11,0)","v":0},{"$f":"VLOOKUP(B206,'LOC FINAL with new Themes'!A:M,12,0)","v":0},{"$f":"VLOOKUP(B206,'LOC FINAL with new Themes'!A:M,13,0)","v":0}]
["National Land Cover Dataset (NLCD)","National Land Cover Dataset (NLCD)","National Land Cover Dataset - GIRAS - 1975","National Land Cover Dataset - GIRAS - 1975","Land Use-Land Cover ","DOI-USGS","Colin Homer","homer@usgs.gov",{"$f":"VLOOKUP(B207,'LOC FINAL with new Themes'!A:M,7,0)","v":"The table below summarizes NLCD products available for download from the MRLC website http://www.mrlc.gov/ "},{"$f":"VLOOKUP(B207,'LOC FINAL with new Themes'!A:M,8,0)","v":"No.  The \"manager\" of the data is Jon Dewitz. \nContact Information -   \nJon Dewitz\ndewitz@usgs.gov\n605-594-2715\nNLCD Quality Supervisor\nUSGS Earth Resources Observation and Science Center (EROS)\nMundt Federal Building\n47914 252nd St.\nSioux Falls, SD 57198\nfax 605-594-6529\n"},{"$f":"VLOOKUP(B207,'LOC FINAL with new Themes'!A:M,9,0)","v":"Joyce Fry is the POC. \nContact information - \nJoyce Fry, Geographer\nUnited States Geological Survey (USGS)\nEarth Resources Observation and  Science (EROS) Center\nMundt Federal Building\n47914 252nd Street\nSioux Falls, South Dakota 57198\n(P)  605.594.2739\n(F)  605.594.6529\n(e)  jfry@usgs.gov \n"},{"$f":"VLOOKUP(B207,'LOC FINAL with new Themes'!A:M,10,0)","v":"Every 5 years"},{"$f":"VLOOKUP(B207,'LOC FINAL with new Themes'!A:M,11,0)","v":"Yes, there is an archive/backup of the dataset through the EROS Long Term Archive (LTA) group.  I will need to get back to if you need additional information regarding the archive process. "},{"$f":"VLOOKUP(B207,'LOC FINAL with new Themes'!A:M,12,0)","v":"National Land Cover Database or NLCD along with the era number, either 1992 or 2001, or 2006. "},{"$f":"VLOOKUP(B207,'LOC FINAL with new Themes'!A:M,13,0)","v":"S"}]
[null,null,"National Land Cover Dataset - National Map","National Land Cover Dataset - National Map","Land Use-Land Cover ","DOI-USGS"]
[null,null,"National Land Cover Dataset - National Map - 1991","National Land Cover Dataset - National Map - 1991","Land Use-Land Cover ","DOI-USGS"]
[null,null,"National Land Cover Dataset - National Map - 2001","National Land Cover Dataset - National Map - 2001","Land Use-Land Cover ","DOI-USGS"]
[null,null,"National Land Cover Dataset - National Map 2006","National Land Cover Dataset - National Map 2006","Land Use-Land Cover ","DOI-USGS"]
["National Land Cover Dataset (NLCD)","National Land Cover Dataset (NLCD)","National Land Cover Dataset (NLCD)","National Land Cover Dataset (NLCD)","Land Use-Land Cover ","DOI-USGS","Colin Homer","homer@usgs.gov",{"$f":"VLOOKUP(B212,'LOC FINAL with new Themes'!A:M,7,0)","v":"The table below summarizes NLCD products available for download from the MRLC website http://www.mrlc.gov/ "},{"$f":"VLOOKUP(B212,'LOC FINAL with new Themes'!A:M,8,0)","v":"No.  The \"manager\" of the data is Jon Dewitz. \nContact Information -   \nJon Dewitz\ndewitz@usgs.gov\n605-594-2715\nNLCD Quality Supervisor\nUSGS Earth Resources Observation and Science Center (EROS)\nMundt Federal Building\n47914 252nd St.\nSioux Falls, SD 57198\nfax 605-594-6529\n"},{"$f":"VLOOKUP(B212,'LOC FINAL with new Themes'!A:M,9,0)","v":"Joyce Fry is the POC. \nContact information - \nJoyce Fry, Geographer\nUnited States Geological Survey (USGS)\nEarth Resources Observation and  Science (EROS) Center\nMundt Federal Building\n47914 252nd Street\nSioux Falls, South Dakota 57198\n(P)  605.594.2739\n(F)  605.594.6529\n(e)  jfry@usgs.gov \n"},{"$f":"VLOOKUP(B212,'LOC FINAL with new Themes'!A:M,10,0)","v":"Every 5 years"},{"$f":"VLOOKUP(B212,'LOC FINAL with new Themes'!A:M,11,0)","v":"Yes, there is an archive/backup of the dataset through the EROS Long Term Archive (LTA) group.  I will need to get back to if you need additional information regarding the archive process. "},{"$f":"VLOOKUP(B212,'LOC FINAL with new Themes'!A:M,12,0)","v":"National Land Cover Database or NLCD along with the era number, either 1992 or 2001, or 2006. "},{"$f":"VLOOKUP(B212,'LOC FINAL with new Themes'!A:M,13,0)","v":"S"}]
[null,null,"National Land Cover Percent Canopy - National Map - 1991","National Land Cover Percent Canopy - National Map - 1991","Land Use-Land Cover ","DOI-USGS"]
[null,null,"National Land Cover Percent Imperviousness - National Map - 2001","National Land Cover Percent Imperviousness - National Map - 2001","Land Use-Land Cover ","DOI-USGS"]
[null,null,"National Land Cover Percent Imperviousness - National Map - 2006","National Land Cover Percent Imperviousness - National Map - 2006","Land Use-Land Cover ","DOI-USGS"]
["National Parks Data","National Parks Data","National Parks Data","National Parks Data","Land Use-Land Cover ","DOI-BOEM","Doug Vandegraft","douglas.vandegraft@boemre.gov",{"$f":"VLOOKUP(B216,'LOC FINAL with new Themes'!A:M,7,0)","v":"undeliverable email- neeed to identify new contact"},{"$f":"VLOOKUP(B216,'LOC FINAL with new Themes'!A:M,8,0)","v":0},{"$f":"VLOOKUP(B216,'LOC FINAL with new Themes'!A:M,9,0)","v":0},{"$f":"VLOOKUP(B216,'LOC FINAL with new Themes'!A:M,10,0)","v":0},{"$f":"VLOOKUP(B216,'LOC FINAL with new Themes'!A:M,11,0)","v":0},{"$f":"VLOOKUP(B216,'LOC FINAL with new Themes'!A:M,12,0)","v":0},{"$f":"VLOOKUP(B216,'LOC FINAL with new Themes'!A:M,13,0)","v":0}]
[{"$f":"SUBTOTAL(3,A198:A216)","v":5},{"$f":"SUBTOTAL(3,B198:B216)","v":5},{"$f":"SUBTOTAL(3,C198:C216)","v":18},{"$f":"SUBTOTAL(3,D198:D216)","v":19},"Land Use-Land Cover  Count"]
["Assisted Housing (census geography or point-based) see http://www.huduser.org/picture2000/","Assisted Housing (census geography or point-based)",null,{"$f":"IF(C218=0,B218,C218)","v":"Assisted Housing (census geography or point-based)"},"Real Property","HUD","Jon Sperling","jon.sperling@hud.gov",{"$f":"VLOOKUP(B218,'LOC FINAL with new Themes'!A:M,7,0)","v":0},{"$f":"VLOOKUP(B218,'LOC FINAL with new Themes'!A:M,8,0)","v":0},{"$f":"VLOOKUP(B218,'LOC FINAL with new Themes'!A:M,9,0)","v":0},{"$f":"VLOOKUP(B218,'LOC FINAL with new Themes'!A:M,10,0)","v":0},{"$f":"VLOOKUP(B218,'LOC FINAL with new Themes'!A:M,11,0)","v":0},{"$f":"VLOOKUP(B218,'LOC FINAL with new Themes'!A:M,12,0)","v":0},{"$f":"VLOOKUP(B218,'LOC FINAL with new Themes'!A:M,13,0)","v":0}]
["Enterprise Zones, Empowerment Communities, Revitalization Areas, Qualified Census Tracts, etc.  (census geography based)","Enterprise Zones, Empowerment Communities, Revitalization Areas, Qualified Census Tracts, etc.  (census geography based)",null,"Enterprise Zones, Empowerment Communities, Revitalization Areas, Qualified Census Tracts, etc.  (census geography based)","Real Property","HUD","Jon Sperling","jon.sperling@hud.gov",{"$f":"VLOOKUP(B219,'LOC FINAL with new Themes'!A:M,7,0)","v":0},{"$f":"VLOOKUP(B219,'LOC FINAL with new Themes'!A:M,8,0)","v":0},{"$f":"VLOOKUP(B219,'LOC FINAL with new Themes'!A:M,9,0)","v":0},{"$f":"VLOOKUP(B219,'LOC FINAL with new Themes'!A:M,10,0)","v":0},{"$f":"VLOOKUP(B219,'LOC FINAL with new Themes'!A:M,11,0)","v":0},{"$f":"VLOOKUP(B219,'LOC FINAL with new Themes'!A:M,12,0)","v":0},{"$f":"VLOOKUP(B219,'LOC FINAL with new Themes'!A:M,13,0)","v":0}]
["Federal building location point ","Federal building location point ","Federal building location point ","Federal building location point ","Real Property ","GSA","Sandra Downie","sandra.downie@gsa.gov",{"$f":"VLOOKUP(B220,'LOC FINAL with new Themes'!A:M,7,0)","v":0},{"$f":"VLOOKUP(B220,'LOC FINAL with new Themes'!A:M,8,0)","v":0},{"$f":"VLOOKUP(B220,'LOC FINAL with new Themes'!A:M,9,0)","v":0},{"$f":"VLOOKUP(B220,'LOC FINAL with new Themes'!A:M,10,0)","v":0},{"$f":"VLOOKUP(B220,'LOC FINAL with new Themes'!A:M,11,0)","v":0},{"$f":"VLOOKUP(B220,'LOC FINAL with new Themes'!A:M,12,0)","v":0},{"$f":"VLOOKUP(B220,'LOC FINAL with new Themes'!A:M,13,0)","v":0}]
["Federal building location polygon","Federal building location polygon","Federal building location polygon","Federal building location polygon","Real Property ","GSA","Sandra Downie","sandra.downie@gsa.gov",{"$f":"VLOOKUP(B221,'LOC FINAL with new Themes'!A:M,7,0)","v":0},{"$f":"VLOOKUP(B221,'LOC FINAL with new Themes'!A:M,8,0)","v":0},{"$f":"VLOOKUP(B221,'LOC FINAL with new Themes'!A:M,9,0)","v":0},{"$f":"VLOOKUP(B221,'LOC FINAL with new Themes'!A:M,10,0)","v":0},{"$f":"VLOOKUP(B221,'LOC FINAL with new Themes'!A:M,11,0)","v":0},{"$f":"VLOOKUP(B221,'LOC FINAL with new Themes'!A:M,12,0)","v":0},{"$f":"VLOOKUP(B221,'LOC FINAL with new Themes'!A:M,13,0)","v":0}]
["Federal land area facility location point","Federal land area facility location point","Federal land area facility location point","Federal land area facility location point","Real Property ","GSA","Sandra Downie","sandra.downie@gsa.gov",{"$f":"VLOOKUP(B222,'LOC FINAL with new Themes'!A:M,7,0)","v":0},{"$f":"VLOOKUP(B222,'LOC FINAL with new Themes'!A:M,8,0)","v":0},{"$f":"VLOOKUP(B222,'LOC FINAL with new Themes'!A:M,9,0)","v":0},{"$f":"VLOOKUP(B222,'LOC FINAL with new Themes'!A:M,10,0)","v":0},{"$f":"VLOOKUP(B222,'LOC FINAL with new Themes'!A:M,11,0)","v":0},{"$f":"VLOOKUP(B222,'LOC FINAL with new Themes'!A:M,12,0)","v":0},{"$f":"VLOOKUP(B222,'LOC FINAL with new Themes'!A:M,13,0)","v":0}]
["Federal land area facility location polygon","Federal land area facility location polygon","Federal land area facility location polygon","Federal land area facility location polygon","Real Property ","GSA","Sandra Downie","sandra.downie@gsa.gov",{"$f":"VLOOKUP(B223,'LOC FINAL with new Themes'!A:M,7,0)","v":0},{"$f":"VLOOKUP(B223,'LOC FINAL with new Themes'!A:M,8,0)","v":0},{"$f":"VLOOKUP(B223,'LOC FINAL with new Themes'!A:M,9,0)","v":0},{"$f":"VLOOKUP(B223,'LOC FINAL with new Themes'!A:M,10,0)","v":0},{"$f":"VLOOKUP(B223,'LOC FINAL with new Themes'!A:M,11,0)","v":0},{"$f":"VLOOKUP(B223,'LOC FINAL with new Themes'!A:M,12,0)","v":0},{"$f":"VLOOKUP(B223,'LOC FINAL with new Themes'!A:M,13,0)","v":0}]
["National Map - Structures Dataset","National Map - Structures Dataset","National Structures Dataset - National Map","National Structures Dataset - National Map","Real Property ","DOI-USGS","Paul Wiese","pmwiese@usgs.gov",{"$f":"VLOOKUP(B224,'LOC FINAL with new Themes'!A:M,7,0)","v":"National Map updates monthly; a series of data sets; this is the POC and data manager; this is the name and maintain three complete with two physically separate on-site and one off-site"},{"$f":"VLOOKUP(B224,'LOC FINAL with new Themes'!A:M,8,0)","v":0},{"$f":"VLOOKUP(B224,'LOC FINAL with new Themes'!A:M,9,0)","v":0},{"$f":"VLOOKUP(B224,'LOC FINAL with new Themes'!A:M,10,0)","v":0},{"$f":"VLOOKUP(B224,'LOC FINAL with new Themes'!A:M,11,0)","v":0},{"$f":"VLOOKUP(B224,'LOC FINAL with new Themes'!A:M,12,0)","v":0},{"$f":"VLOOKUP(B224,'LOC FINAL with new Themes'!A:M,13,0)","v":"S"}]
[{"$f":"SUBTOTAL(3,A218:A224)","v":7},{"$f":"SUBTOTAL(3,B218:B224)","v":7},{"$f":"SUBTOTAL(3,C218:C224)","v":5},{"$f":"SUBTOTAL(3,D218:D224)","v":7},"Real Property Count"]
[null,"Military Installation","Military Installation",{"$f":"IF(C226=0,B226,C226)","v":"Military Installation"},"Real Property\nCultural & Demographic Statistics","DOC-Census","Jennifer Holland","Jennifer.L.Holland@census.gov",{"$f":"VLOOKUP(B226,'LOC FINAL with new Themes'!A:M,7,0)","v":0},{"$f":"VLOOKUP(B226,'LOC FINAL with new Themes'!A:M,8,0)","v":0},{"$f":"VLOOKUP(B226,'LOC FINAL with new Themes'!A:M,9,0)","v":0},{"$f":"VLOOKUP(B226,'LOC FINAL with new Themes'!A:M,10,0)","v":0},{"$f":"VLOOKUP(B226,'LOC FINAL with new Themes'!A:M,11,0)","v":0},{"$f":"VLOOKUP(B226,'LOC FINAL with new Themes'!A:M,12,0)","v":0},{"$f":"VLOOKUP(B226,'LOC FINAL with new Themes'!A:M,13,0)","v":0}]
[{"$f":"SUBTOTAL(3,A226:A226)","v":0},{"$f":"SUBTOTAL(3,B226:B226)","v":1},{"$f":"SUBTOTAL(3,C226:C226)","v":1},{"$f":"SUBTOTAL(3,D226:D226)","v":1},"Real Property\nCultural & Demographic Statistics Count"]
["Common Resource Area (CRA)","Common Resource Area (CRA)","Common Resource Area (CRA)",{"$f":"IF(C228=0,B228,C228)","v":"Common Resource Area (CRA)"},"Soils ","USDA","Chris W. Smith","Christopherw.Smith@wdc.usda.gov",{"$f":"VLOOKUP(B228,'LOC FINAL with new Themes'!A:M,7,0)","v":0},{"$f":"VLOOKUP(B228,'LOC FINAL with new Themes'!A:M,8,0)","v":0},{"$f":"VLOOKUP(B228,'LOC FINAL with new Themes'!A:M,9,0)","v":0},{"$f":"VLOOKUP(B228,'LOC FINAL with new Themes'!A:M,10,0)","v":0},{"$f":"VLOOKUP(B228,'LOC FINAL with new Themes'!A:M,11,0)","v":0},{"$f":"VLOOKUP(B228,'LOC FINAL with new Themes'!A:M,12,0)","v":0},{"$f":"VLOOKUP(B228,'LOC FINAL with new Themes'!A:M,13,0)","v":0}]
["Hydric Soils","Hydric Soils",null,"Hydric Soils","Soils ","USDA","Chris W. Smith","Christopherw.Smith@wdc.usda.gov",{"$f":"VLOOKUP(B229,'LOC FINAL with new Themes'!A:M,7,0)","v":0},{"$f":"VLOOKUP(B229,'LOC FINAL with new Themes'!A:M,8,0)","v":0},{"$f":"VLOOKUP(B229,'LOC FINAL with new Themes'!A:M,9,0)","v":0},{"$f":"VLOOKUP(B229,'LOC FINAL with new Themes'!A:M,10,0)","v":0},{"$f":"VLOOKUP(B229,'LOC FINAL with new Themes'!A:M,11,0)","v":0},{"$f":"VLOOKUP(B229,'LOC FINAL with new Themes'!A:M,12,0)","v":0},{"$f":"VLOOKUP(B229,'LOC FINAL with new Themes'!A:M,13,0)","v":0}]
["Location of Arable Lands","Location of Arable Lands",null,"Location of Arable Lands","Soils ","USDA","Karl Hipple","karl.hipple@lin.usda.gov",{"$f":"VLOOKUP(B230,'LOC FINAL with new Themes'!A:M,7,0)","v":"undeliverable email- neeed to identify new contact"},{"$f":"VLOOKUP(B230,'LOC FINAL with new Themes'!A:M,8,0)","v":0},{"$f":"VLOOKUP(B230,'LOC FINAL with new Themes'!A:M,9,0)","v":0},{"$f":"VLOOKUP(B230,'LOC FINAL with new Themes'!A:M,10,0)","v":0},{"$f":"VLOOKUP(B230,'LOC FINAL with new Themes'!A:M,11,0)","v":0},{"$f":"VLOOKUP(B230,'LOC FINAL with new Themes'!A:M,12,0)","v":0},{"$f":"VLOOKUP(B230,'LOC FINAL with new Themes'!A:M,13,0)","v":0}]
["Major Land Resource Area (MLRA)","Major Land Resource Area (MLRA)","Major Land Resource Area (MLRA)","Major Land Resource Area (MLRA)","Soils ","USDA","Karl Hipple","karl.hipple@lin.usda.gov",{"$f":"VLOOKUP(B231,'LOC FINAL with new Themes'!A:M,7,0)","v":"undeliverable email- neeed to identify new contact"},{"$f":"VLOOKUP(B231,'LOC FINAL with new Themes'!A:M,8,0)","v":0},{"$f":"VLOOKUP(B231,'LOC FINAL with new Themes'!A:M,9,0)","v":0},{"$f":"VLOOKUP(B231,'LOC FINAL with new Themes'!A:M,10,0)","v":0},{"$f":"VLOOKUP(B231,'LOC FINAL with new Themes'!A:M,11,0)","v":0},{"$f":"VLOOKUP(B231,'LOC FINAL with new Themes'!A:M,12,0)","v":0},{"$f":"VLOOKUP(B231,'LOC FINAL with new Themes'!A:M,13,0)","v":0}]
["National Cooperative Soil Survey (NCSS)","National Cooperative Soil Survey (NCSS)","National Cooperative Soil Characterization Database","National Cooperative Soil Characterization Database","Soils ","USDA","Paul Benedict","paul.benedict@wdc.usda.gov",{"$f":"VLOOKUP(B232,'LOC FINAL with new Themes'!A:M,7,0)","v":"We have our Soil Survey Geographic database called SSURGO which is made available through the following sites:\nWeb Soil Survey:    http://websoilsurvey.nrcs.usda.gov/app/\nSoil Data Mart:     http://soildatamart.nrcs.usda.gov/\nSoil Data Access:   http://sdmdataaccess.nrcs.usda.gov\n\nWe also have: \nLab Soil Survey Lab Characterization Data (Point data): http://ssldata.nrcs.usda.gov/ aka NCSS Characterization Database\nSoil Series Classification Database http://soils.usda.gov/technical/classification/scfile/index.html\nU.S. General Soil Map (STATSGO2)\nMajor Land Resource Area (MLRA) http://soils.usda.gov/survey/geography/mlra/\n             Common Resource Areas (CRA) \n\n"},{"$f":"VLOOKUP(B232,'LOC FINAL with new Themes'!A:M,8,0)","v":"? No, I am a Program Manager. Various other people have roles of maintaining the data. "},{"$f":"VLOOKUP(B232,'LOC FINAL with new Themes'!A:M,9,0)","v":"I am a general information POC for all things soil survey related. For more technical aspects on our data sets a good POC would be David Hoover, National Leader for Soil Business Systems or someone on his staff. His contact number is 402-437-4013 or email at david.hoover@lin.usda.gov. "},{"$f":"VLOOKUP(B232,'LOC FINAL with new Themes'!A:M,10,0)","v":"Our data sets are constantly being updated by about 1000 soil and plant scientists in several agencies. "},{"$f":"VLOOKUP(B232,'LOC FINAL with new Themes'!A:M,11,0)","v":"Our data sets are archived, but I don’t know how far back. I will have to get back to you on that. It is my understanding that archived sets are not easily accessible.  We have archive data for SSURGO (Soil Data Warehouse from mid 2000’s or earlier – Jim Fortner or Jennifer Sweet may be able to confirm or provide more detail; We also have archive data for STATSGO (circa 1994;1996) and for MLRA (1978; 2001; 2006) in local holdings.  Not sure about lab data archives, Henry Ferguson or Larry West can confirm.  "},{"$f":"VLOOKUP(B232,'LOC FINAL with new Themes'!A:M,12,0)","v":"? the Lab Characterization Data is also known as the “NCSS Characterization Database”\nAdded Common Resource Area geographic database (CRA)."},{"$f":"VLOOKUP(B232,'LOC FINAL with new Themes'!A:M,13,0)","v":"P"}]
["Prime and Statewide Important Farmlands","Prime and Statewide Important Farmlands",null,"Prime and Statewide Important Farmlands","Soils ","USDA","Chris W. Smith","Christopherw.Smith@wdc.usda.gov",{"$f":"VLOOKUP(B233,'LOC FINAL with new Themes'!A:M,7,0)","v":0},{"$f":"VLOOKUP(B233,'LOC FINAL with new Themes'!A:M,8,0)","v":0},{"$f":"VLOOKUP(B233,'LOC FINAL with new Themes'!A:M,9,0)","v":0},{"$f":"VLOOKUP(B233,'LOC FINAL with new Themes'!A:M,10,0)","v":0},{"$f":"VLOOKUP(B233,'LOC FINAL with new Themes'!A:M,11,0)","v":0},{"$f":"VLOOKUP(B233,'LOC FINAL with new Themes'!A:M,12,0)","v":0},{"$f":"VLOOKUP(B233,'LOC FINAL with new Themes'!A:M,13,0)","v":0}]
["Soil Suitability for Disposal of Contaminated Crops ","Soil Suitability for Disposal of Contaminated Crops ",null,"Soil Suitability for Disposal of Contaminated Crops ","Soils ","USDA","Karl Hipple; Sharon Waltman","karl.hipple@lin.usda.gov; sharon.waltman@wv.usda.gov ",{"$f":"VLOOKUP(B234,'LOC FINAL with new Themes'!A:M,7,0)","v":"undeliverable email- neeed to identify new contact"},{"$f":"VLOOKUP(B234,'LOC FINAL with new Themes'!A:M,8,0)","v":0},{"$f":"VLOOKUP(B234,'LOC FINAL with new Themes'!A:M,9,0)","v":0},{"$f":"VLOOKUP(B234,'LOC FINAL with new Themes'!A:M,10,0)","v":0},{"$f":"VLOOKUP(B234,'LOC FINAL with new Themes'!A:M,11,0)","v":0},{"$f":"VLOOKUP(B234,'LOC FINAL with new Themes'!A:M,12,0)","v":0},{"$f":"VLOOKUP(B234,'LOC FINAL with new Themes'!A:M,13,0)","v":0}]
["Soil Suitability for Large Animal Disposal","Soil Suitability for Large Animal Disposal",null,"Soil Suitability for Large Animal Disposal","Soils ","USDA","Chris W. Smith","Christopherw.Smith@wdc.usda.gov",{"$f":"VLOOKUP(B235,'LOC FINAL with new Themes'!A:M,7,0)","v":0},{"$f":"VLOOKUP(B235,'LOC FINAL with new Themes'!A:M,8,0)","v":0},{"$f":"VLOOKUP(B235,'LOC FINAL with new Themes'!A:M,9,0)","v":0},{"$f":"VLOOKUP(B235,'LOC FINAL with new Themes'!A:M,10,0)","v":0},{"$f":"VLOOKUP(B235,'LOC FINAL with new Themes'!A:M,11,0)","v":0},{"$f":"VLOOKUP(B235,'LOC FINAL with new Themes'!A:M,12,0)","v":0},{"$f":"VLOOKUP(B235,'LOC FINAL with new Themes'!A:M,13,0)","v":0}]
["Soil Survey Geographic Database (SSURGO)","Soil Survey Geographic Database (SSURGO)","Soil Survey Geographic Database (SSURGO)","Soil Survey Geographic Database (SSURGO)","Soils ","USDA","Karl Hipple","karl.hipple@lin.usda.gov",{"$f":"VLOOKUP(B236,'LOC FINAL with new Themes'!A:M,7,0)","v":"undeliverable email- neeed to identify new contact"},{"$f":"VLOOKUP(B236,'LOC FINAL with new Themes'!A:M,8,0)","v":0},{"$f":"VLOOKUP(B236,'LOC FINAL with new Themes'!A:M,9,0)","v":0},{"$f":"VLOOKUP(B236,'LOC FINAL with new Themes'!A:M,10,0)","v":0},{"$f":"VLOOKUP(B236,'LOC FINAL with new Themes'!A:M,11,0)","v":0},{"$f":"VLOOKUP(B236,'LOC FINAL with new Themes'!A:M,12,0)","v":0},{"$f":"VLOOKUP(B236,'LOC FINAL with new Themes'!A:M,13,0)","v":0}]
["U.S. General Soil Map (STATSGO2)","U.S. General Soil Map (STATSGO2)","U.S. General Soil Map (STATSGO2)","U.S. General Soil Map (STATSGO2)","Soils ","USDA","Karl Hipple","karl.hipple@lin.usda.gov",{"$f":"VLOOKUP(B237,'LOC FINAL with new Themes'!A:M,7,0)","v":"undeliverable email- neeed to identify new contact"},{"$f":"VLOOKUP(B237,'LOC FINAL with new Themes'!A:M,8,0)","v":0},{"$f":"VLOOKUP(B237,'LOC FINAL with new Themes'!A:M,9,0)","v":0},{"$f":"VLOOKUP(B237,'LOC FINAL with new Themes'!A:M,10,0)","v":0},{"$f":"VLOOKUP(B237,'LOC FINAL with new Themes'!A:M,11,0)","v":0},{"$f":"VLOOKUP(B237,'LOC FINAL with new Themes'!A:M,12,0)","v":0},{"$f":"VLOOKUP(B237,'LOC FINAL with new Themes'!A:M,13,0)","v":0}]
[{"$f":"SUBTOTAL(3,A228:A237)","v":10},{"$f":"SUBTOTAL(3,B228:B237)","v":10},{"$f":"SUBTOTAL(3,C228:C237)","v":5},{"$f":"SUBTOTAL(3,D228:D237)","v":10},"Soils  Count"]
[null,"Address Range-Feature Name Relationship File","Address Range-Feature Name Relationship File",{"$f":"IF(C239=0,B239,C239)","v":"Address Range-Feature Name Relationship File"},"Transportation ","DOC-Census","Jennifer Holland","Jennifer.L.Holland@census.gov",{"$f":"VLOOKUP(B239,'LOC FINAL with new Themes'!A:M,7,0)","v":0},{"$f":"VLOOKUP(B239,'LOC FINAL with new Themes'!A:M,8,0)","v":0},{"$f":"VLOOKUP(B239,'LOC FINAL with new Themes'!A:M,9,0)","v":0},{"$f":"VLOOKUP(B239,'LOC FINAL with new Themes'!A:M,10,0)","v":0},{"$f":"VLOOKUP(B239,'LOC FINAL with new Themes'!A:M,11,0)","v":0},{"$f":"VLOOKUP(B239,'LOC FINAL with new Themes'!A:M,12,0)","v":0},{"$f":"VLOOKUP(B239,'LOC FINAL with new Themes'!A:M,13,0)","v":0}]
[null,"Address Ranges Relationship File","Address Ranges Relationship File","Address Ranges Relationship File","Transportation ","DOC-Census","Jennifer Holland","Jennifer.L.Holland@census.gov",{"$f":"VLOOKUP(B240,'LOC FINAL with new Themes'!A:M,7,0)","v":0},{"$f":"VLOOKUP(B240,'LOC FINAL with new Themes'!A:M,8,0)","v":0},{"$f":"VLOOKUP(B240,'LOC FINAL with new Themes'!A:M,9,0)","v":0},{"$f":"VLOOKUP(B240,'LOC FINAL with new Themes'!A:M,10,0)","v":0},{"$f":"VLOOKUP(B240,'LOC FINAL with new Themes'!A:M,11,0)","v":0},{"$f":"VLOOKUP(B240,'LOC FINAL with new Themes'!A:M,12,0)","v":0},{"$f":"VLOOKUP(B240,'LOC FINAL with new Themes'!A:M,13,0)","v":0}]
[null,"All Roads","All Roads","All Roads","Transportation ","DOC-Census","Jennifer Holland","Jennifer.L.Holland@census.gov",{"$f":"VLOOKUP(B241,'LOC FINAL with new Themes'!A:M,7,0)","v":0},{"$f":"VLOOKUP(B241,'LOC FINAL with new Themes'!A:M,8,0)","v":0},{"$f":"VLOOKUP(B241,'LOC FINAL with new Themes'!A:M,9,0)","v":0},{"$f":"VLOOKUP(B241,'LOC FINAL with new Themes'!A:M,10,0)","v":0},{"$f":"VLOOKUP(B241,'LOC FINAL with new Themes'!A:M,11,0)","v":0},{"$f":"VLOOKUP(B241,'LOC FINAL with new Themes'!A:M,12,0)","v":0},{"$f":"VLOOKUP(B241,'LOC FINAL with new Themes'!A:M,13,0)","v":0}]
["Inland Electronic Navigation Charts (IENC)","Inland Electronic Navigation Charts (IENC)","Inland Electronic Navigation Charts (IENC)","Inland Electronic Navigation Charts (IENC)","Transportation ","DOD-USACE","Joel Schlagel","Joel.D.Schlagel@erdc.usace.army.mil ",{"$f":"VLOOKUP(B242,'LOC FINAL with new Themes'!A:M,7,0)","v":0},{"$f":"VLOOKUP(B242,'LOC FINAL with new Themes'!A:M,8,0)","v":0},{"$f":"VLOOKUP(B242,'LOC FINAL with new Themes'!A:M,9,0)","v":0},{"$f":"VLOOKUP(B242,'LOC FINAL with new Themes'!A:M,10,0)","v":0},{"$f":"VLOOKUP(B242,'LOC FINAL with new Themes'!A:M,11,0)","v":0},{"$f":"VLOOKUP(B242,'LOC FINAL with new Themes'!A:M,12,0)","v":0},{"$f":"VLOOKUP(B242,'LOC FINAL with new Themes'!A:M,13,0)","v":0}]
[null,null,"National Interagency Trails Dataset","National Interagency Trails Dataset","Transportation ","USDA"]
["National Map - Transportation Dataset","National Map - Transportation Dataset","National Transportation Dataset - National Map","National Transportation Dataset - National Map","Transportation ","DOI-USGS","Paul Wiese","pmwiese@usgs.gov",{"$f":"VLOOKUP(B244,'LOC FINAL with new Themes'!A:M,7,0)","v":0},{"$f":"VLOOKUP(B244,'LOC FINAL with new Themes'!A:M,8,0)","v":0},{"$f":"VLOOKUP(B244,'LOC FINAL with new Themes'!A:M,9,0)","v":0},{"$f":"VLOOKUP(B244,'LOC FINAL with new Themes'!A:M,10,0)","v":0},{"$f":"VLOOKUP(B244,'LOC FINAL with new Themes'!A:M,11,0)","v":0},{"$f":"VLOOKUP(B244,'LOC FINAL with new Themes'!A:M,12,0)","v":0},{"$f":"VLOOKUP(B244,'LOC FINAL with new Themes'!A:M,13,0)","v":0}]
["NOAA Aeronautical Survey","NOAA Aeronautical Survey",null,"NOAA Aeronautical Survey","Transportation ","DOC-NOAA","Mark Howard","Mark.Howard@noaa.gov",{"$f":"VLOOKUP(B245,'LOC FINAL with new Themes'!A:M,7,0)","v":"The NOAA/NGS Aeronautical Survey Program (ASP) provides products and services to the FAA in accordance with an interagency agreement.  The ASP is a reimbursable program that performs work as requested by the Aeronautical Information Services Office (AIS).  The aeronautical surveys we conduct and review provide airport geodetic control, runway, navigational aid, obstruction, an other aeronautical data that is critical to the operation of the National Airspace System. Recently our role, in support of the FAA, has migrated from primarily being a data provider to reviewing survey data collected by third party commerical surveyors. The survey data (collected by NGS or submitted by 3rd party) is considered good as of the date collected.  The surveys are forwarded to the FAA.  The data supports FAA Instrument Approach Procedure development and is also ingested into databases used to update FAA publications. The NGS has been conducting aeronautical surveys for over 7 decades. We have conducted surveys at over 1200 airports.  Each survey is a single data set.  We began storing the survey data (electronically) in a database around 1990 (prior to that it was all paper).  Note that many of these surveys we conducted are not current. The FAA does obtain aeronautical survey data from many different sources. The 3rd party surveys we review is submitted to the FAA. We retreive a copy of the survey data from an FAA portal to perform our reveiw.       "},{"$f":"VLOOKUP(B245,'LOC FINAL with new Themes'!A:M,8,0)","v":"No, I'm the Program Manager serving as the NGS liason with FAA offices that leverage NGS expertise and capabilities.    "},{"$f":"VLOOKUP(B245,'LOC FINAL with new Themes'!A:M,9,0)","v":"I could be. We don't have a designated person that performs that function. Being a reimbursable program our tasks are limited to those specified in our interagency agreement, which is limited to providing (transfering) the data sets to the FAA.  We are not involved in the dissemenation or distribution of the product.  In the past, when we were conducting more surveys, we would post the survey data (in UDDF format) to our web site (http://www.ngs.noaa.gov/AERO/UDDFdat.htm).  These survey data sets are still available on our site but we no longer post new surveys to the site.  The data is now either submitted to the FAA Third Party Survey Site (TPSS) or the FAA Airports Surveying GIS (AGIS) Program web site (https://airports-gis.faa.gov/public/index.html).  Both sites require registration.  The data uploaded to the TPSS site is assessable via a public site (https://tpss.faa.gov/tpss/uddfList.jsp).    "},{"$f":"VLOOKUP(B245,'LOC FINAL with new Themes'!A:M,10,0)","v":"Updates are contigent on NGS receiving a request from the FAA to conduct another survey.  We do not survey airports on a regular cylce.   We use to survey the larger airports (FAA Part 139) every 3-5 years.  With advances in use of GPS naviagtion the FAA's need for aeronautical survey data increased significantly.  They are now developing Approach procedures for many smaller airports (no need to purchase or maintain ground based ILS equipment).    "},{"$f":"VLOOKUP(B245,'LOC FINAL with new Themes'!A:M,11,0)","v":"Yes, we do have an archive and backup of the surveys we conducted.  Internally we transfer our survey data from our database to differnet environments (photogrammetric workstation, field data logger) via a custom designed ascii text based \"exchange file format\" (EXG). I don't know how easily it would be to make this accessible. I would need to discuss with our database manager.  When ever I ask him a single question he usualy turns around and asks me 10 questions.  The scope of the request would need to be defined. A word of caution.... there is more recent survey data available (from other sources) at many of the airports we have surveyed.  "},{"$f":"VLOOKUP(B245,'LOC FINAL with new Themes'!A:M,12,0)","v":"The aeronautical data set we forward to the FAA is referred to as a UDDF.... which is really the format of the file the data is transferred in.  The documentation for this file format is available on our web site (http://www.ngs.noaa.gov/AERO/annof_7.htm).  Internally it is the \"exchange file format\" (EXG), but of course our workfoce access the information our database via interactive software.  NGS has also established Primary and Secondary Airport Control Stations at many airports across the country.  This control is tied directly to the National Spatial Reference System (NSRS) and available via the NGS IDB (web site).  They are permanent marks with precisly determined positions and elevations that must meet specific siting, construction, and accuracy requirements. The control stations can be retrieved in a variety of formats.  "},{"$f":"VLOOKUP(B245,'LOC FINAL with new Themes'!A:M,13,0)","v":"M "}]
["NTAD","NTAD","NTAD","NTAD","Transportation ","DOT-BTS","Robert Monniere","robert.monniere@dot.gov",{"$f":"VLOOKUP(B246,'LOC FINAL with new Themes'!A:M,7,0)","v":0},{"$f":"VLOOKUP(B246,'LOC FINAL with new Themes'!A:M,8,0)","v":0},{"$f":"VLOOKUP(B246,'LOC FINAL with new Themes'!A:M,9,0)","v":0},{"$f":"VLOOKUP(B246,'LOC FINAL with new Themes'!A:M,10,0)","v":0},{"$f":"VLOOKUP(B246,'LOC FINAL with new Themes'!A:M,11,0)","v":0},{"$f":"VLOOKUP(B246,'LOC FINAL with new Themes'!A:M,12,0)","v":0},{"$f":"VLOOKUP(B246,'LOC FINAL with new Themes'!A:M,13,0)","v":0}]
[null,null,"NTAD (airports)","NTAD (airports)","Transportation ","DOT-BTS"]
[null,null,"NTAD (Rail)","NTAD (Rail)","Transportation ","DOT-BTS"]
["NTAD (TransitLines) ","NTAD (TransitLines) ","NTAD (TransitLines) ","NTAD (TransitLines) ","Transportation ","DOT-BTS","Robert Monniere ","robert.monniere@dot.gov \n",{"$f":"VLOOKUP(B249,'LOC FINAL with new Themes'!A:M,7,0)","v":0},{"$f":"VLOOKUP(B249,'LOC FINAL with new Themes'!A:M,8,0)","v":0},{"$f":"VLOOKUP(B249,'LOC FINAL with new Themes'!A:M,9,0)","v":0},{"$f":"VLOOKUP(B249,'LOC FINAL with new Themes'!A:M,10,0)","v":0},{"$f":"VLOOKUP(B249,'LOC FINAL with new Themes'!A:M,11,0)","v":0},{"$f":"VLOOKUP(B249,'LOC FINAL with new Themes'!A:M,12,0)","v":0},{"$f":"VLOOKUP(B249,'LOC FINAL with new Themes'!A:M,13,0)","v":0}]
["NTAD (TransitStation) ","NTAD (TransitStation) ","NTAD (TransitStation) ","NTAD (TransitStation) ","Transportation ","DOT-BTS","Robert Monniere ","robert.monniere@dot.gov ",{"$f":"VLOOKUP(B250,'LOC FINAL with new Themes'!A:M,7,0)","v":0},{"$f":"VLOOKUP(B250,'LOC FINAL with new Themes'!A:M,8,0)","v":0},{"$f":"VLOOKUP(B250,'LOC FINAL with new Themes'!A:M,9,0)","v":0},{"$f":"VLOOKUP(B250,'LOC FINAL with new Themes'!A:M,10,0)","v":0},{"$f":"VLOOKUP(B250,'LOC FINAL with new Themes'!A:M,11,0)","v":0},{"$f":"VLOOKUP(B250,'LOC FINAL with new Themes'!A:M,12,0)","v":0},{"$f":"VLOOKUP(B250,'LOC FINAL with new Themes'!A:M,13,0)","v":0}]
[null,"Primary and Secondary Roads","Primary and Secondary Roads",{"$f":"IF(C251=0,#REF!,C251)","v":"Primary and Secondary Roads"},"Transportation ","DOC-Census","Jennifer Holland","Jennifer.L.Holland@census.gov",{"$f":"VLOOKUP(B251,'LOC FINAL with new Themes'!A:M,7,0)","v":0},{"$f":"VLOOKUP(B251,'LOC FINAL with new Themes'!A:M,8,0)","v":0},{"$f":"VLOOKUP(B251,'LOC FINAL with new Themes'!A:M,9,0)","v":0},{"$f":"VLOOKUP(B251,'LOC FINAL with new Themes'!A:M,10,0)","v":0},{"$f":"VLOOKUP(B251,'LOC FINAL with new Themes'!A:M,11,0)","v":0},{"$f":"VLOOKUP(B251,'LOC FINAL with new Themes'!A:M,12,0)","v":0},{"$f":"VLOOKUP(B251,'LOC FINAL with new Themes'!A:M,13,0)","v":0}]
[null,"Primary Roads","Primary Roads",{"$f":"IF(C252=0,B252,C252)","v":"Primary Roads"},"Transportation ","DOC-Census","Jennifer Holland","Jennifer.L.Holland@census.gov",{"$f":"VLOOKUP(B252,'LOC FINAL with new Themes'!A:M,7,0)","v":0},{"$f":"VLOOKUP(B252,'LOC FINAL with new Themes'!A:M,8,0)","v":0},{"$f":"VLOOKUP(B252,'LOC FINAL with new Themes'!A:M,9,0)","v":0},{"$f":"VLOOKUP(B252,'LOC FINAL with new Themes'!A:M,10,0)","v":0},{"$f":"VLOOKUP(B252,'LOC FINAL with new Themes'!A:M,11,0)","v":0},{"$f":"VLOOKUP(B252,'LOC FINAL with new Themes'!A:M,12,0)","v":0},{"$f":"VLOOKUP(B252,'LOC FINAL with new Themes'!A:M,13,0)","v":0}]
["TIGER (Roads/Rail)","TIGER (Roads/Rail)",null,{"$f":"IF(C253=0,B253,C253)","v":"TIGER (Roads/Rail)"},"Transportation ","DOC-Census","Randy Fusaro","randy.j.fusaro@census.gov",{"$f":"VLOOKUP(B253,'LOC FINAL with new Themes'!A:M,7,0)","v":0},{"$f":"VLOOKUP(B253,'LOC FINAL with new Themes'!A:M,8,0)","v":0},{"$f":"VLOOKUP(B253,'LOC FINAL with new Themes'!A:M,9,0)","v":0},{"$f":"VLOOKUP(B253,'LOC FINAL with new Themes'!A:M,10,0)","v":0},{"$f":"VLOOKUP(B253,'LOC FINAL with new Themes'!A:M,11,0)","v":0},{"$f":"VLOOKUP(B253,'LOC FINAL with new Themes'!A:M,12,0)","v":0},{"$f":"VLOOKUP(B253,'LOC FINAL with new Themes'!A:M,13,0)","v":0}]
[null,"Traffic Analysis Zone (Census 2000)","Traffic Analysis Zone (Census 2000)",{"$f":"IF(C254=0,B254,C254)","v":"Traffic Analysis Zone (Census 2000)"},"Transportation ","DOC-Census","Jennifer Holland","Jennifer.L.Holland@census.gov",{"$f":"VLOOKUP(B254,'LOC FINAL with new Themes'!A:M,7,0)","v":0},{"$f":"VLOOKUP(B254,'LOC FINAL with new Themes'!A:M,8,0)","v":0},{"$f":"VLOOKUP(B254,'LOC FINAL with new Themes'!A:M,9,0)","v":0},{"$f":"VLOOKUP(B254,'LOC FINAL with new Themes'!A:M,10,0)","v":0},{"$f":"VLOOKUP(B254,'LOC FINAL with new Themes'!A:M,11,0)","v":0},{"$f":"VLOOKUP(B254,'LOC FINAL with new Themes'!A:M,12,0)","v":0},{"$f":"VLOOKUP(B254,'LOC FINAL with new Themes'!A:M,13,0)","v":0}]
[{"$f":"SUBTOTAL(3,A239:A254)","v":7},{"$f":"SUBTOTAL(3,B239:B254)","v":13},{"$f":"SUBTOTAL(3,C239:C254)","v":14},{"$f":"SUBTOTAL(3,D239:D254)","v":16},"Transportation  Count"]
[null,null,"Pipelines",{"$f":"IF(C256=0,B256,C256)","v":"Pipelines"},"Utilities ","DOI-MMS"]
[null,null,"Platforms",{"$f":"IF(C257=0,B257,C257)","v":"Platforms"},"Utilities ","DOI-MMS"]
[{"$f":"SUBTOTAL(3,A256:A257)","v":0},{"$f":"SUBTOTAL(3,B256:B257)","v":0},{"$f":"SUBTOTAL(3,C256:C257)","v":2},{"$f":"SUBTOTAL(3,D256:D257)","v":2},"Utilities  Count"]
[null,"Area Hydrography (2010 Census)","Area Hydrography (2010 Census)",{"$f":"IF(C259=0,B259,C259)","v":"Area Hydrography (2010 Census)"},"Water -- Inland","DOC-Census","Jennifer Holland","Jennifer.L.Holland@census.gov",{"$f":"VLOOKUP(B259,'LOC FINAL with new Themes'!A:M,7,0)","v":0},{"$f":"VLOOKUP(B259,'LOC FINAL with new Themes'!A:M,8,0)","v":0},{"$f":"VLOOKUP(B259,'LOC FINAL with new Themes'!A:M,9,0)","v":0},{"$f":"VLOOKUP(B259,'LOC FINAL with new Themes'!A:M,10,0)","v":0},{"$f":"VLOOKUP(B259,'LOC FINAL with new Themes'!A:M,11,0)","v":0},{"$f":"VLOOKUP(B259,'LOC FINAL with new Themes'!A:M,12,0)","v":0},{"$f":"VLOOKUP(B259,'LOC FINAL with new Themes'!A:M,13,0)","v":0}]
[null,"Linear Water Features","Linear Water Features","Linear Water Features","Water -- Inland","DOC-Census","Jennifer Holland","Jennifer.L.Holland@census.gov",{"$f":"VLOOKUP(B260,'LOC FINAL with new Themes'!A:M,7,0)","v":0},{"$f":"VLOOKUP(B260,'LOC FINAL with new Themes'!A:M,8,0)","v":0},{"$f":"VLOOKUP(B260,'LOC FINAL with new Themes'!A:M,9,0)","v":0},{"$f":"VLOOKUP(B260,'LOC FINAL with new Themes'!A:M,10,0)","v":0},{"$f":"VLOOKUP(B260,'LOC FINAL with new Themes'!A:M,11,0)","v":0},{"$f":"VLOOKUP(B260,'LOC FINAL with new Themes'!A:M,12,0)","v":0},{"$f":"VLOOKUP(B260,'LOC FINAL with new Themes'!A:M,13,0)","v":0}]
["National Hydrography Data Set","National Hydrography Dataset","National Hydrography Dataset - National Map","National Hydrography Dataset - National Map","Water -- Inland","DOI-USGS","Jeff Simley","jdsimley@usgs.gov",{"$f":"VLOOKUP(B261,'LOC FINAL with new Themes'!A:M,7,0)","v":0},{"$f":"VLOOKUP(B261,'LOC FINAL with new Themes'!A:M,8,0)","v":0},{"$f":"VLOOKUP(B261,'LOC FINAL with new Themes'!A:M,9,0)","v":0},{"$f":"VLOOKUP(B261,'LOC FINAL with new Themes'!A:M,10,0)","v":0},{"$f":"VLOOKUP(B261,'LOC FINAL with new Themes'!A:M,11,0)","v":0},{"$f":"VLOOKUP(B261,'LOC FINAL with new Themes'!A:M,12,0)","v":0},{"$f":"VLOOKUP(B261,'LOC FINAL with new Themes'!A:M,13,0)","v":0}]
["National Inventory of Dams (NID)","National Inventory of Dams (NID)","National Inventory of Dams (NID)","National Inventory of Dams (NID)","Water -- Inland","DOD-USACE","Rebecca Ragon","Rebecca.Ragon@usace.army.mil ",{"$f":"VLOOKUP(B262,'LOC FINAL with new Themes'!A:M,7,0)","v":"One single data set"},{"$f":"VLOOKUP(B262,'LOC FINAL with new Themes'!A:M,8,0)","v":"Yes"},{"$f":"VLOOKUP(B262,'LOC FINAL with new Themes'!A:M,9,0)","v":"Yes"},{"$f":"VLOOKUP(B262,'LOC FINAL with new Themes'!A:M,10,0)","v":"Usually every 2 years"},{"$f":"VLOOKUP(B262,'LOC FINAL with new Themes'!A:M,11,0)","v":"Because the NID is updated every 2 years, we do have archived databased datig back to 1994."},{"$f":"VLOOKUP(B262,'LOC FINAL with new Themes'!A:M,12,0)","v":"The official name is National Inventory of Dams (NID) but I have seen the database referenced as the National Dam Inventory"},{"$f":"VLOOKUP(B262,'LOC FINAL with new Themes'!A:M,13,0)","v":"S"}]
["National Levee Database (NLD)","National Levee Database (NLD)","National Levee Database (NLD)","National Levee Database (NLD)","Water -- Inland","DOD-USACE","Bryan Baker","Bryan.E.Baker@usace.army.mil",{"$f":"VLOOKUP(B263,'LOC FINAL with new Themes'!A:M,7,0)","v":0},{"$f":"VLOOKUP(B263,'LOC FINAL with new Themes'!A:M,8,0)","v":0},{"$f":"VLOOKUP(B263,'LOC FINAL with new Themes'!A:M,9,0)","v":0},{"$f":"VLOOKUP(B263,'LOC FINAL with new Themes'!A:M,10,0)","v":0},{"$f":"VLOOKUP(B263,'LOC FINAL with new Themes'!A:M,11,0)","v":0},{"$f":"VLOOKUP(B263,'LOC FINAL with new Themes'!A:M,12,0)","v":0},{"$f":"VLOOKUP(B263,'LOC FINAL with new Themes'!A:M,13,0)","v":0}]
[null,null,"National Water Information System (NWIS)- Stream Gage Network","National Water Information System (NWIS)- Stream Gage Network","Water -- Inland","DOI-USGS"]
[null,null,"National Water Information System (NWIS)- Water Quality Monitoring Stations","National Water Information System (NWIS)- Water Quality Monitoring Stations","Water -- Inland","DOI-USGS"]
["National Wetlands Inventory (NWI) ","National Wetlands Inventory (NWI) ","National Wetlands Inventory (NWI) ","National Wetlands Inventory (NWI) ","Water -- Inland","DOI-FWS","Tom Dahl  ","tom_dahl@fws.gov\n",{"$f":"VLOOKUP(B266,'LOC FINAL with new Themes'!A:M,7,0)","v":0},{"$f":"VLOOKUP(B266,'LOC FINAL with new Themes'!A:M,8,0)","v":0},{"$f":"VLOOKUP(B266,'LOC FINAL with new Themes'!A:M,9,0)","v":0},{"$f":"VLOOKUP(B266,'LOC FINAL with new Themes'!A:M,10,0)","v":0},{"$f":"VLOOKUP(B266,'LOC FINAL with new Themes'!A:M,11,0)","v":0},{"$f":"VLOOKUP(B266,'LOC FINAL with new Themes'!A:M,12,0)","v":0},{"$f":"VLOOKUP(B266,'LOC FINAL with new Themes'!A:M,13,0)","v":0}]
["Nautical charts","Nautical Charts",null,"Nautical Charts","Water -- Inland",null,null,null,{"$f":"VLOOKUP(B267,'LOC FINAL with new Themes'!A:M,7,0)","v":0},{"$f":"VLOOKUP(B267,'LOC FINAL with new Themes'!A:M,8,0)","v":0},{"$f":"VLOOKUP(B267,'LOC FINAL with new Themes'!A:M,9,0)","v":0},{"$f":"VLOOKUP(B267,'LOC FINAL with new Themes'!A:M,10,0)","v":0},{"$f":"VLOOKUP(B267,'LOC FINAL with new Themes'!A:M,11,0)","v":0},{"$f":"VLOOKUP(B267,'LOC FINAL with new Themes'!A:M,12,0)","v":0},{"$f":"VLOOKUP(B267,'LOC FINAL with new Themes'!A:M,13,0)","v":0}]
["NWIS & STORET","NWIS & STORET",null,"NWIS & STORET","Water -- Inland",null,"EGIM",null,{"$f":"VLOOKUP(B268,'LOC FINAL with new Themes'!A:M,7,0)","v":0},{"$f":"VLOOKUP(B268,'LOC FINAL with new Themes'!A:M,8,0)","v":0},{"$f":"VLOOKUP(B268,'LOC FINAL with new Themes'!A:M,9,0)","v":0},{"$f":"VLOOKUP(B268,'LOC FINAL with new Themes'!A:M,10,0)","v":0},{"$f":"VLOOKUP(B268,'LOC FINAL with new Themes'!A:M,11,0)","v":0},{"$f":"VLOOKUP(B268,'LOC FINAL with new Themes'!A:M,12,0)","v":0},{"$f":"VLOOKUP(B268,'LOC FINAL with new Themes'!A:M,13,0)","v":0}]
["Shore and sea boundaries","Shore and sea boundaries",null,"Shore and sea boundaries","Water -- Inland",null,"EGIM",null,{"$f":"VLOOKUP(B269,'LOC FINAL with new Themes'!A:M,7,0)","v":0},{"$f":"VLOOKUP(B269,'LOC FINAL with new Themes'!A:M,8,0)","v":0},{"$f":"VLOOKUP(B269,'LOC FINAL with new Themes'!A:M,9,0)","v":0},{"$f":"VLOOKUP(B269,'LOC FINAL with new Themes'!A:M,10,0)","v":0},{"$f":"VLOOKUP(B269,'LOC FINAL with new Themes'!A:M,11,0)","v":0},{"$f":"VLOOKUP(B269,'LOC FINAL with new Themes'!A:M,12,0)","v":0},{"$f":"VLOOKUP(B269,'LOC FINAL with new Themes'!A:M,13,0)","v":0}]
[null,"Topological Faces-Area Hydrography Relationship File","Topological Faces-Area Hydrography Relationship File","Topological Faces-Area Hydrography Relationship File","Water -- Inland","DOC-Census","Jennifer Holland","Jennifer.L.Holland@census.gov",{"$f":"VLOOKUP(B270,'LOC FINAL with new Themes'!A:M,7,0)","v":0},{"$f":"VLOOKUP(B270,'LOC FINAL with new Themes'!A:M,8,0)","v":0},{"$f":"VLOOKUP(B270,'LOC FINAL with new Themes'!A:M,9,0)","v":0},{"$f":"VLOOKUP(B270,'LOC FINAL with new Themes'!A:M,10,0)","v":0},{"$f":"VLOOKUP(B270,'LOC FINAL with new Themes'!A:M,11,0)","v":0},{"$f":"VLOOKUP(B270,'LOC FINAL with new Themes'!A:M,12,0)","v":0},{"$f":"VLOOKUP(B270,'LOC FINAL with new Themes'!A:M,13,0)","v":0}]
["Watershed Boundary Data Set (WBD)  ","Watershed Boundary Dataset (WBD)  ","Watershed Boundary Dataset (WBD)  ","Watershed Boundary Dataset (WBD)  ","Water -- Inland","DOI-USGS","Karen Hanson","khanson@usgs.gov",{"$f":"VLOOKUP(B271,'LOC FINAL with new Themes'!A:M,7,0)","v":"one set with nested hierarchy of six different levels within it (regions, subdivided into four, six and twelve digits), POC and data manager; continually updated; co-managed with NRCS and they archive it; USGS in Denver will serve it; All transactions are archived in versions in the database as they happen. Data from any moment in time can be captured with a simple query. The database is replicated daily to Rolla, MO servers. The database is stored on a SAN with three tier redundancy.All changes to the database are stored on separate disks and once they reach a certain size, they are copied over to a server to be written to tape. Weekly, the entire database (NHD, with WBD) is written to tape.Monthly, the tapes are taken off site for storage."},{"$f":"VLOOKUP(B271,'LOC FINAL with new Themes'!A:M,8,0)","v":0},{"$f":"VLOOKUP(B271,'LOC FINAL with new Themes'!A:M,9,0)","v":0},{"$f":"VLOOKUP(B271,'LOC FINAL with new Themes'!A:M,10,0)","v":0},{"$f":"VLOOKUP(B271,'LOC FINAL with new Themes'!A:M,11,0)","v":0},{"$f":"VLOOKUP(B271,'LOC FINAL with new Themes'!A:M,12,0)","v":0},{"$f":"VLOOKUP(B271,'LOC FINAL with new Themes'!A:M,13,0)","v":"S"}]
["Watershed Boundary Data Set (WBD)  ","Watershed Boundary Dataset (WBD)  ","Watershed Boundary Dataset (WBD)  ","Watershed Boundary Dataset (WBD)  ","Water -- Inland","DOI-USGS","Karen Hanson","khanson@usgs.gov",{"$f":"VLOOKUP(B272,'LOC FINAL with new Themes'!A:M,7,0)","v":"one set with nested hierarchy of six different levels within it (regions, subdivided into four, six and twelve digits), POC and data manager; continually updated; co-managed with NRCS and they archive it; USGS in Denver will serve it; All transactions are archived in versions in the database as they happen. Data from any moment in time can be captured with a simple query. The database is replicated daily to Rolla, MO servers. The database is stored on a SAN with three tier redundancy.All changes to the database are stored on separate disks and once they reach a certain size, they are copied over to a server to be written to tape. Weekly, the entire database (NHD, with WBD) is written to tape.Monthly, the tapes are taken off site for storage."},{"$f":"VLOOKUP(B272,'LOC FINAL with new Themes'!A:M,8,0)","v":0},{"$f":"VLOOKUP(B272,'LOC FINAL with new Themes'!A:M,9,0)","v":0},{"$f":"VLOOKUP(B272,'LOC FINAL with new Themes'!A:M,10,0)","v":0},{"$f":"VLOOKUP(B272,'LOC FINAL with new Themes'!A:M,11,0)","v":0},{"$f":"VLOOKUP(B272,'LOC FINAL with new Themes'!A:M,12,0)","v":0},{"$f":"VLOOKUP(B272,'LOC FINAL with new Themes'!A:M,13,0)","v":"S"}]
[{"$f":"SUBTOTAL(3,A259:A272)","v":9},{"$f":"SUBTOTAL(3,B259:B272)","v":12},{"$f":"SUBTOTAL(3,C259:C272)","v":11},{"$f":"SUBTOTAL(3,D259:D272)","v":14},"Water -- Inland Count"]
[null,null,"Coastal Barrier Resource System",{"$f":"IF(C274=0,B274,C274)","v":"Coastal Barrier Resource System"},"Water -- Oceans and Coasts ","DOI-FWS"]
[null,null,"Coastal Change Analysis Program (C-CAP) Land Cover and Land Change Imagery","Coastal Change Analysis Program (C-CAP) Land Cover and Land Change Imagery","Water -- Oceans and Coasts ","DOC-NOAA"]
["Contiguous Zone","Contiguous Zone",null,"Contiguous Zone","Water -- Oceans and Coasts ","DOC-NOAA","Meredith Westington","meredith.westington@noaa.gov",{"$f":"VLOOKUP(B276,'LOC FINAL with new Themes'!A:M,7,0)","v":0},{"$f":"VLOOKUP(B276,'LOC FINAL with new Themes'!A:M,8,0)","v":0},{"$f":"VLOOKUP(B276,'LOC FINAL with new Themes'!A:M,9,0)","v":0},{"$f":"VLOOKUP(B276,'LOC FINAL with new Themes'!A:M,10,0)","v":"- We do also add historical dates, if that is of interest."},{"$f":"VLOOKUP(B276,'LOC FINAL with new Themes'!A:M,11,0)","v":0},{"$f":"VLOOKUP(B276,'LOC FINAL with new Themes'!A:M,12,0)","v":0},{"$f":"VLOOKUP(B276,'LOC FINAL with new Themes'!A:M,13,0)","v":0}]
["Continental Shelf Boundary Data","Continental Shelf Boundary Data","Continental Shelf Boundary Data","Continental Shelf Boundary Data","Water -- Oceans and Coasts ","DOI-BOEM","Doug Vandegraft","douglas.vandegraft@boemre.gov",{"$f":"VLOOKUP(B277,'LOC FINAL with new Themes'!A:M,7,0)","v":"undeliverable email- neeed to identify new contact"},{"$f":"VLOOKUP(B277,'LOC FINAL with new Themes'!A:M,8,0)","v":0},{"$f":"VLOOKUP(B277,'LOC FINAL with new Themes'!A:M,9,0)","v":0},{"$f":"VLOOKUP(B277,'LOC FINAL with new Themes'!A:M,10,0)","v":0},{"$f":"VLOOKUP(B277,'LOC FINAL with new Themes'!A:M,11,0)","v":0},{"$f":"VLOOKUP(B277,'LOC FINAL with new Themes'!A:M,12,0)","v":0},{"$f":"VLOOKUP(B277,'LOC FINAL with new Themes'!A:M,13,0)","v":0}]
["Exclusive Economic Zone","Exclusive Economic Zone",null,"Exclusive Economic Zone","Water -- Oceans and Coasts ","DOC-NOAA","Meredith Westington","meredith.westington@noaa.gov",{"$f":"VLOOKUP(B278,'LOC FINAL with new Themes'!A:M,7,0)","v":0},{"$f":"VLOOKUP(B278,'LOC FINAL with new Themes'!A:M,8,0)","v":0},{"$f":"VLOOKUP(B278,'LOC FINAL with new Themes'!A:M,9,0)","v":0},{"$f":"VLOOKUP(B278,'LOC FINAL with new Themes'!A:M,10,0)","v":0},{"$f":"VLOOKUP(B278,'LOC FINAL with new Themes'!A:M,11,0)","v":0},{"$f":"VLOOKUP(B278,'LOC FINAL with new Themes'!A:M,12,0)","v":0},{"$f":"VLOOKUP(B278,'LOC FINAL with new Themes'!A:M,13,0)","v":0}]
[null,null,"National Data Buoy Center (NDBC) Recent and Historical Data","National Data Buoy Center (NDBC) Recent and Historical Data","Water -- Oceans and Coasts ","DOC-NOAA"]
["NOAA Composite Shoreline","NOAA Composite Shoreline",null,"NOAA Composite Shoreline","Water -- Oceans and Coasts ","DOC-NOAA","Tara Miller","Tara.Miller@noaa.gov",{"$f":"VLOOKUP(B280,'LOC FINAL with new Themes'!A:M,7,0)","v":0},{"$f":"VLOOKUP(B280,'LOC FINAL with new Themes'!A:M,8,0)","v":0},{"$f":"VLOOKUP(B280,'LOC FINAL with new Themes'!A:M,9,0)","v":0},{"$f":"VLOOKUP(B280,'LOC FINAL with new Themes'!A:M,10,0)","v":0},{"$f":"VLOOKUP(B280,'LOC FINAL with new Themes'!A:M,11,0)","v":0},{"$f":"VLOOKUP(B280,'LOC FINAL with new Themes'!A:M,12,0)","v":0},{"$f":"VLOOKUP(B280,'LOC FINAL with new Themes'!A:M,13,0)","v":0}]
["NOAA Extracted Vector Shoreline","NOAA Extracted Vector Shoreline",null,"NOAA Extracted Vector Shoreline","Water -- Oceans and Coasts ","DOC-NOAA","Matt Austin","Matthew.Austin@noaa.gov",{"$f":"VLOOKUP(B281,'LOC FINAL with new Themes'!A:M,7,0)","v":0},{"$f":"VLOOKUP(B281,'LOC FINAL with new Themes'!A:M,8,0)","v":0},{"$f":"VLOOKUP(B281,'LOC FINAL with new Themes'!A:M,9,0)","v":0},{"$f":"VLOOKUP(B281,'LOC FINAL with new Themes'!A:M,10,0)","v":0},{"$f":"VLOOKUP(B281,'LOC FINAL with new Themes'!A:M,11,0)","v":0},{"$f":"VLOOKUP(B281,'LOC FINAL with new Themes'!A:M,12,0)","v":0},{"$f":"VLOOKUP(B281,'LOC FINAL with new Themes'!A:M,13,0)","v":0}]
["NOAA Medium Resolution Shoreline","NOAA Medium Resolution Shoreline",null,"NOAA Medium Resolution Shoreline","Water -- Oceans and Coasts ","DOC-NOAA","Robert Wilson","Robert.Wilson@noaa.gov",{"$f":"VLOOKUP(B282,'LOC FINAL with new Themes'!A:M,7,0)","v":0},{"$f":"VLOOKUP(B282,'LOC FINAL with new Themes'!A:M,8,0)","v":0},{"$f":"VLOOKUP(B282,'LOC FINAL with new Themes'!A:M,9,0)","v":0},{"$f":"VLOOKUP(B282,'LOC FINAL with new Themes'!A:M,10,0)","v":0},{"$f":"VLOOKUP(B282,'LOC FINAL with new Themes'!A:M,11,0)","v":0},{"$f":"VLOOKUP(B282,'LOC FINAL with new Themes'!A:M,12,0)","v":0},{"$f":"VLOOKUP(B282,'LOC FINAL with new Themes'!A:M,13,0)","v":0}]
[null,null,"NOAA National Shoreline","NOAA National Shoreline","Water -- Oceans and Coasts ","DOC-NOAA","Doug Graham","Doug.Graham@noaa.gov"]
["NOAA National Shoreline","NOAA National Shoreline",null,"NOAA National Shoreline","Water -- Oceans and Coasts ","DOC-NOAA","Doug Graham","Doug.Graham@noaa.gov",{"$f":"VLOOKUP(B284,'LOC FINAL with new Themes'!A:M,7,0)","v":"1,665 shoreline projects (data sets)"},{"$f":"VLOOKUP(B284,'LOC FINAL with new Themes'!A:M,8,0)","v":"Yes"},{"$f":"VLOOKUP(B284,'LOC FINAL with new Themes'!A:M,9,0)","v":"Yes"},{"$f":"VLOOKUP(B284,'LOC FINAL with new Themes'!A:M,10,0)","v":"    There are historical and contemporary data set updates to the NOAA Shoreline Data Explorer application.  The historical data sets are from a data rescue project called Climate Data Modernization Program.  These projects would be loaded in bulk batches every few months.  The funding for this program was recently terminated.  The contemporary data sets are our current shoreline updates to the NOAA National Shoreline.  These projects are uploaded when completed which vary in numbers but within the last twelve months there were over 30 contemporary shoreline survey projects loaded."},{"$f":"VLOOKUP(B284,'LOC FINAL with new Themes'!A:M,11,0)","v":"The National Geodetic Survey performs data base backs ups including the NGS Shoreline Data Base.  Currently there is no archived copy of the NGS Shoreline Data Base.   I believe the backups occur every couple weeks and these backups are not easily accessible."},{"$f":"VLOOKUP(B284,'LOC FINAL with new Themes'!A:M,12,0)","v":"The data set as a whole is referenced as the \"National Shoreline\".  This is composed of individual contemporary or historical data sets including GCs, DMs, TP-Sheets, and T-Sheets."},{"$f":"VLOOKUP(B284,'LOC FINAL with new Themes'!A:M,13,0)","v":"M "}]
["NOAA Nautical Charts","NOAA Nautical Charts","NOAA's Nautical Chart Products","NOAA's Nautical Chart Products","Water -- Oceans and Coasts ","DOC-NOAA","John Lowell","John.Lowell@noaa.gov",{"$f":"VLOOKUP(B285,'LOC FINAL with new Themes'!A:M,7,0)","v":0},{"$f":"VLOOKUP(B285,'LOC FINAL with new Themes'!A:M,8,0)","v":0},{"$f":"VLOOKUP(B285,'LOC FINAL with new Themes'!A:M,9,0)","v":0},{"$f":"VLOOKUP(B285,'LOC FINAL with new Themes'!A:M,10,0)","v":0},{"$f":"VLOOKUP(B285,'LOC FINAL with new Themes'!A:M,11,0)","v":0},{"$f":"VLOOKUP(B285,'LOC FINAL with new Themes'!A:M,12,0)","v":0},{"$f":"VLOOKUP(B285,'LOC FINAL with new Themes'!A:M,13,0)","v":0}]
[null,null,"Non-Projected Boundaries","Non-Projected Boundaries","Water -- Oceans and Coasts ","DOI-MMS"]
[null,null,"Projected Boundaries","Projected Boundaries","Water -- Oceans and Coasts ","DOI-MMS"]
["Territorial Sea","Territorial Sea",null,"Territorial Sea","Water -- Oceans and Coasts ","DOC-NOAA","Meredith Westington","meredith.westington@noaa.gov",{"$f":"VLOOKUP(B288,'LOC FINAL with new Themes'!A:M,7,0)","v":"    National-scale maritime limits/boundaries are available as separate data layers or as a packaged bundle."},{"$f":"VLOOKUP(B288,'LOC FINAL with new Themes'!A:M,8,0)","v":0},{"$f":"VLOOKUP(B288,'LOC FINAL with new Themes'!A:M,9,0)","v":0},{"$f":"VLOOKUP(B288,'LOC FINAL with new Themes'!A:M,10,0)","v":0},{"$f":"VLOOKUP(B288,'LOC FINAL with new Themes'!A:M,11,0)","v":0},{"$f":"VLOOKUP(B288,'LOC FINAL with new Themes'!A:M,12,0)","v":0},{"$f":"VLOOKUP(B288,'LOC FINAL with new Themes'!A:M,13,0)","v":0}]
[null,null,"U.S. Marine Protected Areas Boundaries","U.S. Marine Protected Areas Boundaries","Water -- Oceans and Coasts ","DOC-NOAA"]
[null,null,"U.S. Maritime Zones/Boundaries","U.S. Maritime Zones/Boundaries","Water -- Oceans and Coasts ","DOC-NOAA"]
[{"$f":"SUBTOTAL(3,A274:A290)","v":9},{"$f":"SUBTOTAL(3,B274:B290)","v":9},{"$f":"SUBTOTAL(3,C274:C290)","v":10},{"$f":"SUBTOTAL(3,D274:D290)","v":17},"Water -- Oceans and Coasts  Count"]
[{"$f":"SUBTOTAL(3,A2:A290)","v":129},{"$f":"SUBTOTAL(3,B2:B290)","v":200},{"$f":"SUBTOTAL(3,C2:C290)","v":200},{"$f":"SUBTOTAL(3,D2:D290)","v":271},"Grand Count"]

{"sheet":"11-11-2011","index":3,"n_rows":292,"n_cols":15,"rows_kept":292,"cut":false,"hidden":true,"merged":[]}
["ORIGINAL (beginning of 2011)","LOC FINAL (October 2011)","NGDA List (October 2011)","FINAL List (November 2011)","Theme","Agency","Dataset Manager","Email","Q1 How many data set(s) do you have? It is a single set or multiple sets? ","Q2 Are you a data set manager?","Q3 Are you the POC for transferring the data set and/or for information about the data set?","Q4 How often is the data set updated?","Q5 Is there an archive/backup of the data set or do you maintain an archived copy of it? If yes, how far back do you maintain a copy? Is it easily accessible?","Q6 Does the data set go by a different name or is it referred to internally by another descriptive name?","M\nP\nS"]
[null,null,"Critical Habitat ",{"$f":"IF(C2=0,B2,C2)","v":"Critical Habitat "},"Biota","DOI-FWS"]
[null,null,"Current Range for listed species ","Current Range for listed species ","Biota","DOI-FWS"]
["ECOMAP Data Sets (Ecological Subregions: Sections and Subsections for the Conterminous United States ) ","ECOMAP Datasets (Ecological Subregions: Sections and Subsections for the Conterminous United States ) ","ECOMAP Datasets (Ecological Subregions: Sections and Subsections for the Conterminous United States ) ","ECOMAP Datasets (Ecological Subregions: Sections and Subsections for the Conterminous United States ) ","Biota","USDA-FS","David T. Cleland","dcleland@fs.fed.us",{"$f":"VLOOKUP(B4,'LOC FINAL with new Themes'!A:M,7,0)","v":"One, single set"},{"$f":"VLOOKUP(B4,'LOC FINAL with new Themes'!A:M,8,0)","v":"Yes"},{"$f":"VLOOKUP(B4,'LOC FINAL with new Themes'!A:M,9,0)","v":"Yes"},{"$f":"VLOOKUP(B4,'LOC FINAL with new Themes'!A:M,10,0)","v":"Maps are updated on a 10-year cycle"},{"$f":"VLOOKUP(B4,'LOC FINAL with new Themes'!A:M,11,0)","v":"The data is housed at and served by the Forest Service geodata portal, and is easily accessible.  The web address is: http://fsgeodata.fs.fed.us/other_resources/ecosubregions.html "},{"$f":"VLOOKUP(B4,'LOC FINAL with new Themes'!A:M,12,0)","v":"?   Internally, the data is named ECOMAP or the National Hierarchy of Ecological Units. "},{"$f":"VLOOKUP(B4,'LOC FINAL with new Themes'!A:M,13,0)","v":"S"}]
[null,null,"Endangered Species (Threatened and Endangered Species System)","Endangered Species (Threatened and Endangered Species System)","Biota","DOI-FWS"]
["Env Sens Index Maps - classified shoreline","Env Sens Index Maps - classified shoreline","Environmental Sensitivity Index (ESI) Data and Maps","Environmental Sensitivity Index (ESI) Data and Maps","Biota","DOC-NOAA","Jill Petersen","jill.petersen@noaa.gov",{"$f":"VLOOKUP(B6,'LOC FINAL with new Themes'!A:M,7,0)","v":"There are approximately 70 different atlases. There are a few that are still not available in a GIS format, (approx 7 of the approx 70!) - these are available as the hard copy product and as PDFs (scanned). The remaining atlases are available in multiple GIS formats - Arc Export files, Geodatabase with an ArcMap map document complete with all relates established and properly symbolized, Shape files with an ArcView 3.x project, a free ESI viewer that allows viewing, queries and printing (in house mapping program and filemaker pro) as well as PDF format and the hard copy product. These can be downloaded from http://response.restoration.noaa.gov/esi_download This page is in progress, but should be complete fairly quickly.\n\n"},{"$f":"VLOOKUP(B6,'LOC FINAL with new Themes'!A:M,8,0)","v":"Yes"},{"$f":"VLOOKUP(B6,'LOC FINAL with new Themes'!A:M,9,0)","v":"Yes "},{"$f":"VLOOKUP(B6,'LOC FINAL with new Themes'!A:M,10,0)","v":"- High resolution products have no defined update schedule.  TBD by geog/project."},{"$f":"VLOOKUP(B6,'LOC FINAL with new Themes'!A:M,11,0)","v":"Yes and no. We have archives of all the digital data as well as all the PDFs (scanned or produced with the digital data map comps). Many of the hard copy atlases from the first round of ESI maps were sent to the Library of Commerce. Others I have kept, but no very organized situation. However, we have all of the historic PDFs which are an exact duplicate of the hard copy atlas, so that is something. Historic data is going to be served from the above link as well. That will be added as the current data sets are completed."},{"$f":"VLOOKUP(B6,'LOC FINAL with new Themes'!A:M,12,0)","v":"ESI is the common abbreviation for these maps. Other than that, Environmental Sensitivity Index Maps, Shoreline Sensitivity maps, Environmental Sensitivity maps..... These maps have the classified shoreline, as well as summaries of biological and human use resource particularly sensitive to oiling. "},{"$f":"VLOOKUP(B6,'LOC FINAL with new Themes'!A:M,13,0)","v":"M "}]
["Environmental Sensitivity Index Maps","Environmental Sensitivity Index Maps","Environmental Sensitivity Index (ESI) Data and Maps","Environmental Sensitivity Index (ESI) Data and Maps","Biota","DOC-NOAA","Jill Petersen","jill.petersen@noaa.gov",{"$f":"VLOOKUP(B7,'LOC FINAL with new Themes'!A:M,7,0)","v":"Same as Env Sens Index Maps - classified shoreline"},{"$f":"VLOOKUP(B7,'LOC FINAL with new Themes'!A:M,8,0)","v":0},{"$f":"VLOOKUP(B7,'LOC FINAL with new Themes'!A:M,9,0)","v":0},{"$f":"VLOOKUP(B7,'LOC FINAL with new Themes'!A:M,10,0)","v":"- Hawaii is TBD, but most likely will end up being a 10 year update cycle."},{"$f":"VLOOKUP(B7,'LOC FINAL with new Themes'!A:M,11,0)","v":0},{"$f":"VLOOKUP(B7,'LOC FINAL with new Themes'!A:M,12,0)","v":0},{"$f":"VLOOKUP(B7,'LOC FINAL with new Themes'!A:M,13,0)","v":0}]
["GAP Program Dataset","GAP Program Dataset","GAP Program Dataset","GAP Program Dataset","Biota","DOI-USGS","Kevin Gergely","gergely@usgs.gov",{"$f":"VLOOKUP(B8,'LOC FINAL with new Themes'!A:M,7,0)","v":"POC; multiple data sets in single location, building three fundamental data layers, two are national (protected areas, land cover dataset); backup; six months, annually)"},{"$f":"VLOOKUP(B8,'LOC FINAL with new Themes'!A:M,8,0)","v":0},{"$f":"VLOOKUP(B8,'LOC FINAL with new Themes'!A:M,9,0)","v":0},{"$f":"VLOOKUP(B8,'LOC FINAL with new Themes'!A:M,10,0)","v":0},{"$f":"VLOOKUP(B8,'LOC FINAL with new Themes'!A:M,11,0)","v":0},{"$f":"VLOOKUP(B8,'LOC FINAL with new Themes'!A:M,12,0)","v":0},{"$f":"VLOOKUP(B8,'LOC FINAL with new Themes'!A:M,13,0)","v":"P"}]
["National Standardized Ecosystems Dataset","National Standardized Ecosystems Dataset","National Standardized Ecosystems Dataset","National Standardized Ecosystems Dataset","Biota","DOI-USGS","Roger Sayre","rsayre@usgs.gov",{"$f":"VLOOKUP(B9,'LOC FINAL with new Themes'!A:M,7,0)","v":0},{"$f":"VLOOKUP(B9,'LOC FINAL with new Themes'!A:M,8,0)","v":0},{"$f":"VLOOKUP(B9,'LOC FINAL with new Themes'!A:M,9,0)","v":0},{"$f":"VLOOKUP(B9,'LOC FINAL with new Themes'!A:M,10,0)","v":0},{"$f":"VLOOKUP(B9,'LOC FINAL with new Themes'!A:M,11,0)","v":0},{"$f":"VLOOKUP(B9,'LOC FINAL with new Themes'!A:M,12,0)","v":0},{"$f":"VLOOKUP(B9,'LOC FINAL with new Themes'!A:M,13,0)","v":0}]
[null,null,"Recovery Range for listed species ","Recovery Range for listed species ","Biota","DOI-FWS"]
[null,null,"Section 7 Range for listed species ","Section 7 Range for listed species ","Biota","DOI-FWS"]
["Biomes, Ecoregions","Biomes, Ecoregions",null,"Biomes, Ecoregions","Biota ","DOI-USGS","Dan Phillips ","dphillips@usgs.gov",{"$f":"VLOOKUP(B12,'LOC FINAL with new Themes'!A:M,7,0)","v":0},{"$f":"VLOOKUP(B12,'LOC FINAL with new Themes'!A:M,8,0)","v":0},{"$f":"VLOOKUP(B12,'LOC FINAL with new Themes'!A:M,9,0)","v":0},{"$f":"VLOOKUP(B12,'LOC FINAL with new Themes'!A:M,10,0)","v":0},{"$f":"VLOOKUP(B12,'LOC FINAL with new Themes'!A:M,11,0)","v":0},{"$f":"VLOOKUP(B12,'LOC FINAL with new Themes'!A:M,12,0)","v":0},{"$f":"VLOOKUP(B12,'LOC FINAL with new Themes'!A:M,13,0)","v":0}]
["Ecological Services","Ecological Services",null,"Ecological Services","Biota ","DOI-USGS","Dan Phillips ","dphillips@usgs.gov",{"$f":"VLOOKUP(B13,'LOC FINAL with new Themes'!A:M,7,0)","v":0},{"$f":"VLOOKUP(B13,'LOC FINAL with new Themes'!A:M,8,0)","v":0},{"$f":"VLOOKUP(B13,'LOC FINAL with new Themes'!A:M,9,0)","v":0},{"$f":"VLOOKUP(B13,'LOC FINAL with new Themes'!A:M,10,0)","v":0},{"$f":"VLOOKUP(B13,'LOC FINAL with new Themes'!A:M,11,0)","v":0},{"$f":"VLOOKUP(B13,'LOC FINAL with new Themes'!A:M,12,0)","v":0},{"$f":"VLOOKUP(B13,'LOC FINAL with new Themes'!A:M,13,0)","v":0}]
["Habitats","Habitats",null,"Habitats","Biota ","DOI-USGS","Dan Phillips ","dphillips@usgs.gov",{"$f":"VLOOKUP(B14,'LOC FINAL with new Themes'!A:M,7,0)","v":"see protected areas and land cover set; vertebrae species of US being developed (not complete for all species they want to include in it."},{"$f":"VLOOKUP(B14,'LOC FINAL with new Themes'!A:M,8,0)","v":0},{"$f":"VLOOKUP(B14,'LOC FINAL with new Themes'!A:M,9,0)","v":0},{"$f":"VLOOKUP(B14,'LOC FINAL with new Themes'!A:M,10,0)","v":0},{"$f":"VLOOKUP(B14,'LOC FINAL with new Themes'!A:M,11,0)","v":0},{"$f":"VLOOKUP(B14,'LOC FINAL with new Themes'!A:M,12,0)","v":0},{"$f":"VLOOKUP(B14,'LOC FINAL with new Themes'!A:M,13,0)","v":"M"}]
["Invasive Species","Invasive Species",null,"Invasive Species","Biota ","DOI-USGS","Dan Phillips ","dphillips@usgs.gov",{"$f":"VLOOKUP(B15,'LOC FINAL with new Themes'!A:M,7,0)","v":"There are hundreds of datasets that are produced and maintained by the GAP program. Dan is not the data set manager, but I work with the people that maintain and update the datasets and maintains metadata.The data are updated at different intervals, especially now that they have moved more to a regional and national based approach. GAPS data sets presumably archived since 1990s."},{"$f":"VLOOKUP(B15,'LOC FINAL with new Themes'!A:M,8,0)","v":0},{"$f":"VLOOKUP(B15,'LOC FINAL with new Themes'!A:M,9,0)","v":0},{"$f":"VLOOKUP(B15,'LOC FINAL with new Themes'!A:M,10,0)","v":0},{"$f":"VLOOKUP(B15,'LOC FINAL with new Themes'!A:M,11,0)","v":0},{"$f":"VLOOKUP(B15,'LOC FINAL with new Themes'!A:M,12,0)","v":0},{"$f":"VLOOKUP(B15,'LOC FINAL with new Themes'!A:M,13,0)","v":"M"}]
["Species Distribution(amphibians, birds, reptiles, mammals, fishes, plants, etc)","Species Distribution (amphibians, birds, reptiles, mammals, fishes, plants, etc)",null,"Species Distribution (amphibians, birds, reptiles, mammals, fishes, plants, etc)","Biota ","DOI-USGS","Dan Phillips ","dphillips@usgs.gov",{"$f":"VLOOKUP(B16,'LOC FINAL with new Themes'!A:M,7,0)","v":"There are hundreds of datasets that are produced and maintained by the GAP program. Dan is not the data set manager, but I work with the people that maintain and update the datasets and maintains metadata. The data are updated at different intervals, especially now that they have moved more to a regional and national based approach. GAPS data sets presumably archived since 1990s."},{"$f":"VLOOKUP(B16,'LOC FINAL with new Themes'!A:M,8,0)","v":0},{"$f":"VLOOKUP(B16,'LOC FINAL with new Themes'!A:M,9,0)","v":0},{"$f":"VLOOKUP(B16,'LOC FINAL with new Themes'!A:M,10,0)","v":0},{"$f":"VLOOKUP(B16,'LOC FINAL with new Themes'!A:M,11,0)","v":0},{"$f":"VLOOKUP(B16,'LOC FINAL with new Themes'!A:M,12,0)","v":0},{"$f":"VLOOKUP(B16,'LOC FINAL with new Themes'!A:M,13,0)","v":"M"}]
[{"$f":"SUBTOTAL(3,A2:A16)","v":10},{"$f":"SUBTOTAL(3,B2:B16)","v":10},{"$f":"SUBTOTAL(3,C2:C16)","v":10},{"$f":"SUBTOTAL(3,D2:D16)","v":15},"Biota Count"]
["General Land Office","General Land Office","General Land Office",{"$f":"IF(C18=0,B18,C18)","v":"General Land Office"},"Cadastre","DOI-BLM","Juan Palma","juan_palma@blm.gov",{"$f":"VLOOKUP(B18,'LOC FINAL with new Themes'!A:M,7,0)","v":0},{"$f":"VLOOKUP(B18,'LOC FINAL with new Themes'!A:M,8,0)","v":0},{"$f":"VLOOKUP(B18,'LOC FINAL with new Themes'!A:M,9,0)","v":0},{"$f":"VLOOKUP(B18,'LOC FINAL with new Themes'!A:M,10,0)","v":0},{"$f":"VLOOKUP(B18,'LOC FINAL with new Themes'!A:M,11,0)","v":0},{"$f":"VLOOKUP(B18,'LOC FINAL with new Themes'!A:M,12,0)","v":0},{"$f":"VLOOKUP(B18,'LOC FINAL with new Themes'!A:M,13,0)","v":0}]
["Geographic Coordinate Data Base (GCDB)","Geographic Coordinate Data Base (GCDB)",null,"Geographic Coordinate Data Base (GCDB)","Cadastre","DOI-BLM","Don Buhler","don_buhler@blm.gov",{"$f":"VLOOKUP(B19,'LOC FINAL with new Themes'!A:M,7,0)","v":"every agency has its own database; multiple data sets; standard being advanced and put into practice; federal interest is managed with BLM; state and local are authoritative sets for other lands; "},{"$f":"VLOOKUP(B19,'LOC FINAL with new Themes'!A:M,8,0)","v":0},{"$f":"VLOOKUP(B19,'LOC FINAL with new Themes'!A:M,9,0)","v":0},{"$f":"VLOOKUP(B19,'LOC FINAL with new Themes'!A:M,10,0)","v":0},{"$f":"VLOOKUP(B19,'LOC FINAL with new Themes'!A:M,11,0)","v":0},{"$f":"VLOOKUP(B19,'LOC FINAL with new Themes'!A:M,12,0)","v":0},{"$f":"VLOOKUP(B19,'LOC FINAL with new Themes'!A:M,13,0)","v":"M "}]
["LR 2000 - Master Title Plats ","LR 2000 - Master Title Plats ","LR 2000 - Attribute Information","LR 2000 - Attribute Information","Cadastre","DOI-BLM","Jeff Holdren","jeff_holdren@blm.gov",{"$f":"VLOOKUP(B20,'LOC FINAL with new Themes'!A:M,7,0)","v":"listing of sales, rents, agricultural disposal and rights of way cases, group of data sets in one system; Kim Burns, division chief; not archived, there is a backup; Denver office handles"},{"$f":"VLOOKUP(B20,'LOC FINAL with new Themes'!A:M,8,0)","v":0},{"$f":"VLOOKUP(B20,'LOC FINAL with new Themes'!A:M,9,0)","v":0},{"$f":"VLOOKUP(B20,'LOC FINAL with new Themes'!A:M,10,0)","v":0},{"$f":"VLOOKUP(B20,'LOC FINAL with new Themes'!A:M,11,0)","v":0},{"$f":"VLOOKUP(B20,'LOC FINAL with new Themes'!A:M,12,0)","v":0},{"$f":"VLOOKUP(B20,'LOC FINAL with new Themes'!A:M,13,0)","v":"P"}]
["Manual of Surveying Instructions, Data Standards","Manual of Surveying Instructions, Data Standards",null,"Manual of Surveying Instructions, Data Standards","Cadastre","DOI-BLM","Don Buhler","don_buhler@blm.gov",{"$f":"VLOOKUP(B21,'LOC FINAL with new Themes'!A:M,7,0)","v":0},{"$f":"VLOOKUP(B21,'LOC FINAL with new Themes'!A:M,8,0)","v":0},{"$f":"VLOOKUP(B21,'LOC FINAL with new Themes'!A:M,9,0)","v":0},{"$f":"VLOOKUP(B21,'LOC FINAL with new Themes'!A:M,10,0)","v":0},{"$f":"VLOOKUP(B21,'LOC FINAL with new Themes'!A:M,11,0)","v":0},{"$f":"VLOOKUP(B21,'LOC FINAL with new Themes'!A:M,12,0)","v":0},{"$f":"VLOOKUP(B21,'LOC FINAL with new Themes'!A:M,13,0)","v":0}]
["Mineral Estate - Fluids","Mineral Estate - Fluids",null,"Mineral Estate - Fluids","Cadastre","DOI-BLM","Tim Spisak ","tim_spisak@blm.gov",{"$f":"VLOOKUP(B22,'LOC FINAL with new Themes'!A:M,7,0)","v":"mineral leasess, mining claims, rights of way, gases (single data set); BLM-managed lands but managed all federal mineral estate (comprehensive for mineraal estate) some electronic and some not"},{"$f":"VLOOKUP(B22,'LOC FINAL with new Themes'!A:M,8,0)","v":0},{"$f":"VLOOKUP(B22,'LOC FINAL with new Themes'!A:M,9,0)","v":0},{"$f":"VLOOKUP(B22,'LOC FINAL with new Themes'!A:M,10,0)","v":0},{"$f":"VLOOKUP(B22,'LOC FINAL with new Themes'!A:M,11,0)","v":0},{"$f":"VLOOKUP(B22,'LOC FINAL with new Themes'!A:M,12,0)","v":0},{"$f":"VLOOKUP(B22,'LOC FINAL with new Themes'!A:M,13,0)","v":"P"}]
["Mineral Estate - Solids","Mineral Estate - Solids",null,"Mineral Estate - Solids","Cadastre","DOI-BLM","Mitchell Leverette","mitchell_leverette@blm.gov",{"$f":"VLOOKUP(B23,'LOC FINAL with new Themes'!A:M,7,0)","v":"mineral leasess, mining claims, rights of way, gases (single data set); BLM-managed lands but managed all federal mineral estate (comprehensive for mineral estate) some electronic and some not"},{"$f":"VLOOKUP(B23,'LOC FINAL with new Themes'!A:M,8,0)","v":0},{"$f":"VLOOKUP(B23,'LOC FINAL with new Themes'!A:M,9,0)","v":0},{"$f":"VLOOKUP(B23,'LOC FINAL with new Themes'!A:M,10,0)","v":0},{"$f":"VLOOKUP(B23,'LOC FINAL with new Themes'!A:M,11,0)","v":0},{"$f":"VLOOKUP(B23,'LOC FINAL with new Themes'!A:M,12,0)","v":0},{"$f":"VLOOKUP(B23,'LOC FINAL with new Themes'!A:M,13,0)","v":"P"}]
["Multipurpose Marine Cadastre","Multipurpose Marine Cadastre","Multipurpose Marine Cadastre","Multipurpose Marine Cadastre","Cadastre","DOI-MMS","James Fulmer","james.s.fulmer@mms.gov",{"$f":"VLOOKUP(B24,'LOC FINAL with new Themes'!A:M,7,0)","v":"undeliverable email- neeed to identify new contact"},{"$f":"VLOOKUP(B24,'LOC FINAL with new Themes'!A:M,8,0)","v":0},{"$f":"VLOOKUP(B24,'LOC FINAL with new Themes'!A:M,9,0)","v":0},{"$f":"VLOOKUP(B24,'LOC FINAL with new Themes'!A:M,10,0)","v":0},{"$f":"VLOOKUP(B24,'LOC FINAL with new Themes'!A:M,11,0)","v":0},{"$f":"VLOOKUP(B24,'LOC FINAL with new Themes'!A:M,12,0)","v":0},{"$f":"VLOOKUP(B24,'LOC FINAL with new Themes'!A:M,13,0)","v":0}]
[null,null,"OCS Lease Blocks","OCS Lease Blocks","Cadastre","DOI-MMS"]
[null,null,"PADUS (Protected Areas Database of the US)","PADUS (Protected Areas Database of the US)","Cadastre","DOI-USGS"]
["Parcels","Parcels","Parcels","Parcels","Cadastre","DOI-BLM","Bob Ader","bob_ader@blm.gov",{"$f":"VLOOKUP(B27,'LOC FINAL with new Themes'!A:M,7,0)","v":"every agency has its own database; multiple data sets; standard being advanced and put into practice; federal interest is managed with BLM; state and local are authoritative sets for other lands; current effort of federal inventory "},{"$f":"VLOOKUP(B27,'LOC FINAL with new Themes'!A:M,8,0)","v":0},{"$f":"VLOOKUP(B27,'LOC FINAL with new Themes'!A:M,9,0)","v":0},{"$f":"VLOOKUP(B27,'LOC FINAL with new Themes'!A:M,10,0)","v":0},{"$f":"VLOOKUP(B27,'LOC FINAL with new Themes'!A:M,11,0)","v":0},{"$f":"VLOOKUP(B27,'LOC FINAL with new Themes'!A:M,12,0)","v":0},{"$f":"VLOOKUP(B27,'LOC FINAL with new Themes'!A:M,13,0)","v":"M "}]
[null,null,"Protractions","Protractions","Cadastre","DOI-MMS"]
["Surface Estate","Surface Estate",null,"Surface Estate","Cadastre","DOI-BLM","Kim Burns","kim_m_burns@blm.gov",{"$f":"VLOOKUP(B29,'LOC FINAL with new Themes'!A:M,7,0)","v":"lands administered by BLM; other agencies have own system; ownership of lands;  Tim Spisak, division chief; not archived, there is a backup; Denver office handles"},{"$f":"VLOOKUP(B29,'LOC FINAL with new Themes'!A:M,8,0)","v":0},{"$f":"VLOOKUP(B29,'LOC FINAL with new Themes'!A:M,9,0)","v":0},{"$f":"VLOOKUP(B29,'LOC FINAL with new Themes'!A:M,10,0)","v":0},{"$f":"VLOOKUP(B29,'LOC FINAL with new Themes'!A:M,11,0)","v":0},{"$f":"VLOOKUP(B29,'LOC FINAL with new Themes'!A:M,12,0)","v":0},{"$f":"VLOOKUP(B29,'LOC FINAL with new Themes'!A:M,13,0)","v":0}]
["U.S. Official Cadastral Survey Records","U.S. Official Cadastral Survey Records","U.S. Official Cadastral Survey Records","U.S. Official Cadastral Survey Records","Cadastre","DOI-BLM","Don Buhler","don_buhler@blm.gov",{"$f":"VLOOKUP(B30,'LOC FINAL with new Themes'!A:M,7,0)","v":"every agency has its own database; multiple data sets; standard being advanced and put into practice; federal interest is managed with BLM; state and local are authoritative sets for other lands; state offices are scanning these records (survey plats and field notes); CDI (conveyence cards)"},{"$f":"VLOOKUP(B30,'LOC FINAL with new Themes'!A:M,8,0)","v":0},{"$f":"VLOOKUP(B30,'LOC FINAL with new Themes'!A:M,9,0)","v":0},{"$f":"VLOOKUP(B30,'LOC FINAL with new Themes'!A:M,10,0)","v":0},{"$f":"VLOOKUP(B30,'LOC FINAL with new Themes'!A:M,11,0)","v":0},{"$f":"VLOOKUP(B30,'LOC FINAL with new Themes'!A:M,12,0)","v":0},{"$f":"VLOOKUP(B30,'LOC FINAL with new Themes'!A:M,13,0)","v":"M "}]
["U.S. Public Land Survey System","U.S. Public Land Survey System","U.S. Public Land Survey System","U.S. Public Land Survey System","Cadastre","DOI-BLM","Don Buhler","don_buhler@blm.gov",{"$f":"VLOOKUP(B31,'LOC FINAL with new Themes'!A:M,7,0)","v":"only federal agency that administers the PLSS; trying to get it to be logically one data set with different regions. (working copies for nine states in West); keep historical record in data base; schema 2 is the version to look at for archiving some time March 2012"},{"$f":"VLOOKUP(B31,'LOC FINAL with new Themes'!A:M,8,0)","v":0},{"$f":"VLOOKUP(B31,'LOC FINAL with new Themes'!A:M,9,0)","v":0},{"$f":"VLOOKUP(B31,'LOC FINAL with new Themes'!A:M,10,0)","v":0},{"$f":"VLOOKUP(B31,'LOC FINAL with new Themes'!A:M,11,0)","v":0},{"$f":"VLOOKUP(B31,'LOC FINAL with new Themes'!A:M,12,0)","v":0},{"$f":"VLOOKUP(B31,'LOC FINAL with new Themes'!A:M,13,0)","v":"P"}]
[{"$f":"SUBTOTAL(3,A18:A31)","v":11},{"$f":"SUBTOTAL(3,B18:B31)","v":11},{"$f":"SUBTOTAL(3,C18:C31)","v":9},{"$f":"SUBTOTAL(3,D18:D31)","v":14},"Cadastre Count"]
["Blended Sea Surface Temperature","Blended Sea Surface Temperature","Blended Sea Surface Temperature",{"$f":"IF(C33=0,B33,C33)","v":"Blended Sea Surface Temperature"},"Climate and Weather ","DOC-NOAA","Viva Banzon","Viva.Banzon@noaa.gov",{"$f":"VLOOKUP(B33,'LOC FINAL with new Themes'!A:M,7,0)","v":0},{"$f":"VLOOKUP(B33,'LOC FINAL with new Themes'!A:M,8,0)","v":0},{"$f":"VLOOKUP(B33,'LOC FINAL with new Themes'!A:M,9,0)","v":0},{"$f":"VLOOKUP(B33,'LOC FINAL with new Themes'!A:M,10,0)","v":0},{"$f":"VLOOKUP(B33,'LOC FINAL with new Themes'!A:M,11,0)","v":0},{"$f":"VLOOKUP(B33,'LOC FINAL with new Themes'!A:M,12,0)","v":0},{"$f":"VLOOKUP(B33,'LOC FINAL with new Themes'!A:M,13,0)","v":0}]
["Climate Data Sets ","Climate Datasets ",null,"Climate Datasets ","Climate and Weather ","USDA-NRCS","Jan Curtis","jan.curtis@por.usda.gov",{"$f":"VLOOKUP(B34,'LOC FINAL with new Themes'!A:M,7,0)","v":"Other climate data acquired from our SNOTEL and SCAN observation networks can be accessed from these links."},{"$f":"VLOOKUP(B34,'LOC FINAL with new Themes'!A:M,8,0)","v":0},{"$f":"VLOOKUP(B34,'LOC FINAL with new Themes'!A:M,9,0)","v":0},{"$f":"VLOOKUP(B34,'LOC FINAL with new Themes'!A:M,10,0)","v":0},{"$f":"VLOOKUP(B34,'LOC FINAL with new Themes'!A:M,11,0)","v":0},{"$f":"VLOOKUP(B34,'LOC FINAL with new Themes'!A:M,12,0)","v":0},{"$f":"VLOOKUP(B34,'LOC FINAL with new Themes'!A:M,13,0)","v":"M"}]
["Geostationary Operational Environmental Satellite (GOES) data (NCDC)","Geostationary Operational Environmental Satellite (GOES) data (NCDC)","Geostationary Operational Environmental Satellite (GOES) data (NCDC)","Geostationary Operational Environmental Satellite (GOES) data (NCDC)","Climate and Weather ","DOC-NOAA","Nancy Ritchey","Nancy.Ritchey@noaa.gov",{"$f":"VLOOKUP(B35,'LOC FINAL with new Themes'!A:M,7,0)","v":"Define 'data set'.  Each spacecraft continuously produces a data stream.  There are multiple sets and the total going back to the late 70s or early 80s numbers in the millions"},{"$f":"VLOOKUP(B35,'LOC FINAL with new Themes'!A:M,8,0)","v":"Yes"},{"$f":"VLOOKUP(B35,'LOC FINAL with new Themes'!A:M,9,0)","v":"Yes"},{"$f":"VLOOKUP(B35,'LOC FINAL with new Themes'!A:M,10,0)","v":"Continuously"},{"$f":"VLOOKUP(B35,'LOC FINAL with new Themes'!A:M,11,0)","v":"There are two active archive centers for these data; one here in Asheville, NC and one in Boulder, CO.  These data go back to the late 70s and all data are on line wither on disc or robotic tape storage"},{"$f":"VLOOKUP(B35,'LOC FINAL with new Themes'!A:M,12,0)","v":"Again, define your terms.  For examples see www.class.noaa.gov - Raw data are listed by satellite (GOES or POES) and then be instrument.  Geophysical products are listed by product name."},{"$f":"VLOOKUP(B35,'LOC FINAL with new Themes'!A:M,13,0)","v":0}]
["Global Historical Climate Network (GHCN) daily data (NCDC)","Global Historical Climate Network (GHCN) daily data (NCDC)",null,"Global Historical Climate Network (GHCN) daily data (NCDC)","Climate and Weather ","DOC-NOAA","Matt Menne","matthew.menne@noaa.gov",{"$f":"VLOOKUP(B36,'LOC FINAL with new Themes'!A:M,7,0)","v":0},{"$f":"VLOOKUP(B36,'LOC FINAL with new Themes'!A:M,8,0)","v":0},{"$f":"VLOOKUP(B36,'LOC FINAL with new Themes'!A:M,9,0)","v":0},{"$f":"VLOOKUP(B36,'LOC FINAL with new Themes'!A:M,10,0)","v":0},{"$f":"VLOOKUP(B36,'LOC FINAL with new Themes'!A:M,11,0)","v":0},{"$f":"VLOOKUP(B36,'LOC FINAL with new Themes'!A:M,12,0)","v":0},{"$f":"VLOOKUP(B36,'LOC FINAL with new Themes'!A:M,13,0)","v":0}]
["Global Historical Climate Network (GHCN) monthly data (NCDC)","Global Historical Climate Network (GHCN) monthly data (NCDC)",null,"Global Historical Climate Network (GHCN) monthly data (NCDC)","Climate and Weather ","DOC-NOAA","Jay Lawrimore","Jay.Lawrimore@noaa.gov",{"$f":"VLOOKUP(B37,'LOC FINAL with new Themes'!A:M,7,0)","v":"It is a single dataset consisting of multiple files. 6 total. 2 for monthly mean temperature (uncorrected and corrected), 2 for monthly maximum temperature, and 2 for monthly minimum temperature. available at http://www.ncdc.noaa.gov/ghcnm/v3.php ."},{"$f":"VLOOKUP(B37,'LOC FINAL with new Themes'!A:M,8,0)","v":"I am head of the branch that developed and updates the dataset."},{"$f":"VLOOKUP(B37,'LOC FINAL with new Themes'!A:M,9,0)","v":"Byron Gleason (Byron.Gleason@noaa.gov) is the appropriate contact.  "},{"$f":"VLOOKUP(B37,'LOC FINAL with new Themes'!A:M,10,0)","v":"Daily"},{"$f":"VLOOKUP(B37,'LOC FINAL with new Themes'!A:M,11,0)","v":"The files are time stamped each day they are produced and then stored when the next days run is made. The archived copies are not publicly available but can be retrieved by NCDC staff as needed."},{"$f":"VLOOKUP(B37,'LOC FINAL with new Themes'!A:M,12,0)","v":"It goes by GHCN-M."},{"$f":"VLOOKUP(B37,'LOC FINAL with new Themes'!A:M,13,0)","v":0}]
["Hurricane Satellite","Hurricane Satellite",null,"Hurricane Satellite","Climate and Weather ","DOC-NOAA","Ken Knapp","ken.knapp@noaa.gov",{"$f":"VLOOKUP(B38,'LOC FINAL with new Themes'!A:M,7,0)","v":0},{"$f":"VLOOKUP(B38,'LOC FINAL with new Themes'!A:M,8,0)","v":0},{"$f":"VLOOKUP(B38,'LOC FINAL with new Themes'!A:M,9,0)","v":0},{"$f":"VLOOKUP(B38,'LOC FINAL with new Themes'!A:M,10,0)","v":0},{"$f":"VLOOKUP(B38,'LOC FINAL with new Themes'!A:M,11,0)","v":0},{"$f":"VLOOKUP(B38,'LOC FINAL with new Themes'!A:M,12,0)","v":0},{"$f":"VLOOKUP(B38,'LOC FINAL with new Themes'!A:M,13,0)","v":0}]
["Integrated Global Radiosonde Archive (IGRA) upper air data (NCDC)","Integrated Global Radiosonde Archive (IGRA) upper air data (NCDC)",null,"Integrated Global Radiosonde Archive (IGRA) upper air data (NCDC)","Climate and Weather ","DOC-NOAA","Imke Durre","imke.durre@noaa.gov",{"$f":"VLOOKUP(B39,'LOC FINAL with new Themes'!A:M,7,0)","v":0},{"$f":"VLOOKUP(B39,'LOC FINAL with new Themes'!A:M,8,0)","v":0},{"$f":"VLOOKUP(B39,'LOC FINAL with new Themes'!A:M,9,0)","v":0},{"$f":"VLOOKUP(B39,'LOC FINAL with new Themes'!A:M,10,0)","v":0},{"$f":"VLOOKUP(B39,'LOC FINAL with new Themes'!A:M,11,0)","v":0},{"$f":"VLOOKUP(B39,'LOC FINAL with new Themes'!A:M,12,0)","v":0},{"$f":"VLOOKUP(B39,'LOC FINAL with new Themes'!A:M,13,0)","v":0}]
["Integrated Surface Data (ISD) at National Climate Data Center (NCDC) ","Integrated Surface Data (ISD) at National Climate Data Center (NCDC) ",null,"Integrated Surface Data (ISD) at National Climate Data Center (NCDC) ","Climate and Weather ","DOC-NOAA","Neal Lott","neal.lott@noaa.gov",{"$f":"VLOOKUP(B40,'LOC FINAL with new Themes'!A:M,7,0)","v":"This is a single data set, developed as an integration of multiple data sets and sources."},{"$f":"VLOOKUP(B40,'LOC FINAL with new Themes'!A:M,8,0)","v":"I am currently the data set manager jointly with Russel Vose, cc'ed here Russell.Vose@noaa.gov"},{"$f":"VLOOKUP(B40,'LOC FINAL with new Themes'!A:M,9,0)","v":"I am one of the POC's here at NCDC.  We have a User Engagement and Services Branch which handles user inquiries, etc."},{"$f":"VLOOKUP(B40,'LOC FINAL with new Themes'!A:M,10,0)","v":"It's updated once per day with the most recent data (ie, yesterday's observations)."},{"$f":"VLOOKUP(B40,'LOC FINAL with new Themes'!A:M,11,0)","v":"We have an archive copy and a backup copy.  The period of record of the data is 1900 to present.  It's very easily accessible via multiple services (FTP, GIS, Web Services, etc)."},{"$f":"VLOOKUP(B40,'LOC FINAL with new Themes'!A:M,12,0)","v":"Integrated Surface Data is its name, but is sometimes referred to generically as global hourly surface data."},{"$f":"VLOOKUP(B40,'LOC FINAL with new Themes'!A:M,13,0)","v":0}]
[null,null,"MODIS-based Atmospheric Products","MODIS-based Atmospheric Products","Climate and Weather ","USDA -FS (Along with USGS)"]
["National Climate Data Center","National Climate Data Center",null,"National Climate Data Center","Climate and Weather ","USDA-NRCS","Jan Curtis","jan.curtis@por.usda.gov",{"$f":"VLOOKUP(B42,'LOC FINAL with new Themes'!A:M,7,0)","v":"administered by NOAA - is there a contact there?"},{"$f":"VLOOKUP(B42,'LOC FINAL with new Themes'!A:M,8,0)","v":0},{"$f":"VLOOKUP(B42,'LOC FINAL with new Themes'!A:M,9,0)","v":0},{"$f":"VLOOKUP(B42,'LOC FINAL with new Themes'!A:M,10,0)","v":0},{"$f":"VLOOKUP(B42,'LOC FINAL with new Themes'!A:M,11,0)","v":0},{"$f":"VLOOKUP(B42,'LOC FINAL with new Themes'!A:M,12,0)","v":0},{"$f":"VLOOKUP(B42,'LOC FINAL with new Themes'!A:M,13,0)","v":0}]
[null,null,"National Doplar Radar Data (NEXRAD)","National Doplar Radar Data (NEXRAD)","Climate and Weather ","DOC-NOAA"]
["NEXRAD Level II and III radar data (NCDC)","NEXRAD Level II and III radar data (NCDC)",null,"NEXRAD Level II and III radar data (NCDC)","Climate and Weather ","DOC-NOAA","Steve Del Greco","stephen.a.delgreco@noaa.gov",{"$f":"VLOOKUP(B44,'LOC FINAL with new Themes'!A:M,7,0)","v":"The NEXRAD datasets for level II and Level III are archived by site.  There are 158 NEXRAD sites with data that goes back to ~ 1994.  See URL http://www.ncdc.noaa.gov/nexradinv/ for NEXRAD web services for ordering data."},{"$f":"VLOOKUP(B44,'LOC FINAL with new Themes'!A:M,8,0)","v":"I'm the NEXRAD program manager for NCDC.  This also includes other radar networks for example the FAA Terminal Doppler Weather Radar (45 sites)."},{"$f":"VLOOKUP(B44,'LOC FINAL with new Themes'!A:M,9,0)","v":"Yes"},{"$f":"VLOOKUP(B44,'LOC FINAL with new Themes'!A:M,10,0)","v":"NEXRAD Level II and Level III data are ingested at NCDC in near real time (~ 10 second latency).  We make the data available via the web ~ 24 hours after receipt.  The NEXRAD/TDWR data is also available in near real time through data feeds supported by partnerships we have with the University of Oklahoma, Purdue and Education and Research Consortium of the Western Carolinas. "},{"$f":"VLOOKUP(B44,'LOC FINAL with new Themes'!A:M,11,0)","v":"NEXRAD data is archived and backed up and goes back to ~ 1994 (depends on station).  Data is free of charge and accessible via the URL above"},{"$f":"VLOOKUP(B44,'LOC FINAL with new Themes'!A:M,12,0)","v":"The data set is from the Weather Surveillance Radar 1988 Doppler, but most commonly  know as \"NEXRAD\"  Level II for the base or raw data and Level III for derived products"},{"$f":"VLOOKUP(B44,'LOC FINAL with new Themes'!A:M,13,0)","v":0}]
[null,null,"NOAA National Weather Service GIS Data",{"$f":"IF(C45=0,B45,C45)","v":"NOAA National Weather Service GIS Data"},"Climate and Weather ","DOC-NOAA"]
["North American Regional Reanalysis (NARR) model data (NCDC)","North American Regional Reanalysis (NARR) model data (NCDC)",null,{"$f":"IF(C46=0,B46,C46)","v":"North American Regional Reanalysis (NARR) model data (NCDC)"},"Climate and Weather ","DOC-NOAA","Dan Swank","Dan.Swank@noaa.gov",{"$f":"VLOOKUP(B46,'LOC FINAL with new Themes'!A:M,7,0)","v":"The NARR natively contains 2x sub sets) 3 hr time series / monthly averages."},{"$f":"VLOOKUP(B46,'LOC FINAL with new Themes'!A:M,8,0)","v":"Depends on the exact definition: there is no one with that exact job title at NCDC-NOMADS"},{"$f":"VLOOKUP(B46,'LOC FINAL with new Themes'!A:M,9,0)","v":"Yes"},{"$f":"VLOOKUP(B46,'LOC FINAL with new Themes'!A:M,10,0)","v":"NARR is updated on a daily basis, typically arriving 1-3 days from real-time.  Serial integrity is not guaranteed until 1 month has passed."},{"$f":"VLOOKUP(B46,'LOC FINAL with new Themes'!A:M,11,0)","v":"Multiple copies exist, including HPSS, off-site HPSS, TSM, and mirrored spinning disk copies.  Backups are for the entire set.  While the backups are not public accessible, the disk mirror can be put in place in minutes and the tape copies may take a day or two"},{"$f":"VLOOKUP(B46,'LOC FINAL with new Themes'!A:M,12,0)","v":"Besides the acronym NARR -- no"},{"$f":"VLOOKUP(B46,'LOC FINAL with new Themes'!A:M,13,0)","v":0}]
["Parameter-elevation Regressions on Independent Slopes Model (PRISM) Data Sets","Parameter-elevation Regressions on Independent Slopes Model (PRISM) Datasets","Parameter-elevation Regressions on Independent Slopes Model (PRISM) Datasets",{"$f":"IF(C47=0,B47,C47)","v":"Parameter-elevation Regressions on Independent Slopes Model (PRISM) Datasets"},"Climate and Weather ","USDA-NRCS","Jan Curtis","jan.curtis@por.usda.gov",{"$f":"VLOOKUP(B47,'LOC FINAL with new Themes'!A:M,7,0)","v":"info provided via http://www.prism.oregonstate.edu/ and \nhttp://www.nrcs.usda.gov/wps/portal/nrcs/main/?ss=16&navtype=SubNavigation&cid=null&navid=850130000000000&pnavid=850000000000000&position=SubNavigation&ttype=main&pname=USDA%2520NRCS%2520-%2520Natural%2520Resources%2520Conservation%2520Service\n"},{"$f":"VLOOKUP(B47,'LOC FINAL with new Themes'!A:M,8,0)","v":0},{"$f":"VLOOKUP(B47,'LOC FINAL with new Themes'!A:M,9,0)","v":0},{"$f":"VLOOKUP(B47,'LOC FINAL with new Themes'!A:M,10,0)","v":0},{"$f":"VLOOKUP(B47,'LOC FINAL with new Themes'!A:M,11,0)","v":0},{"$f":"VLOOKUP(B47,'LOC FINAL with new Themes'!A:M,12,0)","v":0},{"$f":"VLOOKUP(B47,'LOC FINAL with new Themes'!A:M,13,0)","v":"M"}]
["Polar Operational Environmental Satellite (POES) data (NCDC)","Polar Operational Environmental Satellite (POES) data","Polar Operational Environmental Satellite (POES) data",{"$f":"IF(C48=0,B48,C48)","v":"Polar Operational Environmental Satellite (POES) data"},"Climate and Weather ","DOC-NOAA","John Bates","john.j.bates@noaa.gov",{"$f":"VLOOKUP(B48,'LOC FINAL with new Themes'!A:M,7,0)","v":0},{"$f":"VLOOKUP(B48,'LOC FINAL with new Themes'!A:M,8,0)","v":0},{"$f":"VLOOKUP(B48,'LOC FINAL with new Themes'!A:M,9,0)","v":0},{"$f":"VLOOKUP(B48,'LOC FINAL with new Themes'!A:M,10,0)","v":0},{"$f":"VLOOKUP(B48,'LOC FINAL with new Themes'!A:M,11,0)","v":0},{"$f":"VLOOKUP(B48,'LOC FINAL with new Themes'!A:M,12,0)","v":0},{"$f":"VLOOKUP(B48,'LOC FINAL with new Themes'!A:M,13,0)","v":0}]
[{"$f":"SUBTOTAL(3,A33:A48)","v":13},{"$f":"SUBTOTAL(3,B33:B48)","v":13},{"$f":"SUBTOTAL(3,C33:C48)","v":7},{"$f":"SUBTOTAL(3,D33:D48)","v":16},"Climate and Weather  Count"]
[null,"5-digit ZIP Code Tabulation Area (Census 2000)","5-digit ZIP Code Tabulation Area (Census 2000)",{"$f":"IF(C50=0,B50,C50)","v":"5-digit ZIP Code Tabulation Area (Census 2000)"},"Cultural & Demographic Statistics ","DOC-Census","Jennifer Holland","Jennifer.L.Holland@census.gov",{"$f":"VLOOKUP(B50,'LOC FINAL with new Themes'!A:M,7,0)","v":0},{"$f":"VLOOKUP(B50,'LOC FINAL with new Themes'!A:M,8,0)","v":0},{"$f":"VLOOKUP(B50,'LOC FINAL with new Themes'!A:M,9,0)","v":0},{"$f":"VLOOKUP(B50,'LOC FINAL with new Themes'!A:M,10,0)","v":0},{"$f":"VLOOKUP(B50,'LOC FINAL with new Themes'!A:M,11,0)","v":0},{"$f":"VLOOKUP(B50,'LOC FINAL with new Themes'!A:M,12,0)","v":0},{"$f":"VLOOKUP(B50,'LOC FINAL with new Themes'!A:M,13,0)","v":0}]
["AIR, ANVSA, Hawaiian Homelands Boundaries","AIR, ANVSA, Hawaiian Homelands Boundaries",null,"AIR, ANVSA, Hawaiian Homelands Boundaries","Cultural & Demographic Statistics ","DOC-Census","Randy Fusaro","randy.j.fusaro@census.gov",{"$f":"VLOOKUP(B51,'LOC FINAL with new Themes'!A:M,7,0)","v":0},{"$f":"VLOOKUP(B51,'LOC FINAL with new Themes'!A:M,8,0)","v":0},{"$f":"VLOOKUP(B51,'LOC FINAL with new Themes'!A:M,9,0)","v":0},{"$f":"VLOOKUP(B51,'LOC FINAL with new Themes'!A:M,10,0)","v":0},{"$f":"VLOOKUP(B51,'LOC FINAL with new Themes'!A:M,11,0)","v":0},{"$f":"VLOOKUP(B51,'LOC FINAL with new Themes'!A:M,12,0)","v":0},{"$f":"VLOOKUP(B51,'LOC FINAL with new Themes'!A:M,13,0)","v":0}]
[null,"All Lines (2010 Census)","All Lines (2010 Census)","All Lines (2010 Census)","Cultural & Demographic Statistics ","DOC-Census","Jennifer Holland","Jennifer.L.Holland@census.gov",{"$f":"VLOOKUP(B52,'LOC FINAL with new Themes'!A:M,7,0)","v":0},{"$f":"VLOOKUP(B52,'LOC FINAL with new Themes'!A:M,8,0)","v":0},{"$f":"VLOOKUP(B52,'LOC FINAL with new Themes'!A:M,9,0)","v":0},{"$f":"VLOOKUP(B52,'LOC FINAL with new Themes'!A:M,10,0)","v":0},{"$f":"VLOOKUP(B52,'LOC FINAL with new Themes'!A:M,11,0)","v":0},{"$f":"VLOOKUP(B52,'LOC FINAL with new Themes'!A:M,12,0)","v":0},{"$f":"VLOOKUP(B52,'LOC FINAL with new Themes'!A:M,13,0)","v":0}]
[null,"ANSI codes for  metro/micropolitan areas","ANSI codes for  metro/micropolitan areas","ANSI codes for  metro/micropolitan areas","Cultural & Demographic Statistics ","DOC-Census","Jennifer Holland","Jennifer.L.Holland@census.gov",{"$f":"VLOOKUP(B53,'LOC FINAL with new Themes'!A:M,7,0)","v":0},{"$f":"VLOOKUP(B53,'LOC FINAL with new Themes'!A:M,8,0)","v":0},{"$f":"VLOOKUP(B53,'LOC FINAL with new Themes'!A:M,9,0)","v":0},{"$f":"VLOOKUP(B53,'LOC FINAL with new Themes'!A:M,10,0)","v":0},{"$f":"VLOOKUP(B53,'LOC FINAL with new Themes'!A:M,11,0)","v":0},{"$f":"VLOOKUP(B53,'LOC FINAL with new Themes'!A:M,12,0)","v":0},{"$f":"VLOOKUP(B53,'LOC FINAL with new Themes'!A:M,13,0)","v":0}]
[null,"ANSI codes for congressional districts","ANSI codes for congressional districts","ANSI codes for congressional districts","Cultural & Demographic Statistics ","DOC-Census","Jennifer Holland","Jennifer.L.Holland@census.gov",{"$f":"VLOOKUP(B54,'LOC FINAL with new Themes'!A:M,7,0)","v":0},{"$f":"VLOOKUP(B54,'LOC FINAL with new Themes'!A:M,8,0)","v":0},{"$f":"VLOOKUP(B54,'LOC FINAL with new Themes'!A:M,9,0)","v":0},{"$f":"VLOOKUP(B54,'LOC FINAL with new Themes'!A:M,10,0)","v":0},{"$f":"VLOOKUP(B54,'LOC FINAL with new Themes'!A:M,11,0)","v":0},{"$f":"VLOOKUP(B54,'LOC FINAL with new Themes'!A:M,12,0)","v":0},{"$f":"VLOOKUP(B54,'LOC FINAL with new Themes'!A:M,13,0)","v":0}]
[null,"ANSI codes for counties","ANSI codes for counties","ANSI codes for counties","Cultural & Demographic Statistics ","DOC-Census","Jennifer Holland","Jennifer.L.Holland@census.gov",{"$f":"VLOOKUP(B55,'LOC FINAL with new Themes'!A:M,7,0)","v":0},{"$f":"VLOOKUP(B55,'LOC FINAL with new Themes'!A:M,8,0)","v":0},{"$f":"VLOOKUP(B55,'LOC FINAL with new Themes'!A:M,9,0)","v":0},{"$f":"VLOOKUP(B55,'LOC FINAL with new Themes'!A:M,10,0)","v":0},{"$f":"VLOOKUP(B55,'LOC FINAL with new Themes'!A:M,11,0)","v":0},{"$f":"VLOOKUP(B55,'LOC FINAL with new Themes'!A:M,12,0)","v":0},{"$f":"VLOOKUP(B55,'LOC FINAL with new Themes'!A:M,13,0)","v":0}]
[null,"ANSI codes for states","ANSI codes for states","ANSI codes for states","Cultural & Demographic Statistics ","DOC-Census","Jennifer Holland","Jennifer.L.Holland@census.gov",{"$f":"VLOOKUP(B56,'LOC FINAL with new Themes'!A:M,7,0)","v":0},{"$f":"VLOOKUP(B56,'LOC FINAL with new Themes'!A:M,8,0)","v":0},{"$f":"VLOOKUP(B56,'LOC FINAL with new Themes'!A:M,9,0)","v":0},{"$f":"VLOOKUP(B56,'LOC FINAL with new Themes'!A:M,10,0)","v":0},{"$f":"VLOOKUP(B56,'LOC FINAL with new Themes'!A:M,11,0)","v":0},{"$f":"VLOOKUP(B56,'LOC FINAL with new Themes'!A:M,12,0)","v":0},{"$f":"VLOOKUP(B56,'LOC FINAL with new Themes'!A:M,13,0)","v":0}]
[null,"Block (2010 Census)","Block (2010 Census)","Block (2010 Census)","Cultural & Demographic Statistics ","DOC-Census","Jennifer Holland","Jennifer.L.Holland@census.gov",{"$f":"VLOOKUP(B57,'LOC FINAL with new Themes'!A:M,7,0)","v":0},{"$f":"VLOOKUP(B57,'LOC FINAL with new Themes'!A:M,8,0)","v":0},{"$f":"VLOOKUP(B57,'LOC FINAL with new Themes'!A:M,9,0)","v":0},{"$f":"VLOOKUP(B57,'LOC FINAL with new Themes'!A:M,10,0)","v":0},{"$f":"VLOOKUP(B57,'LOC FINAL with new Themes'!A:M,11,0)","v":0},{"$f":"VLOOKUP(B57,'LOC FINAL with new Themes'!A:M,12,0)","v":0},{"$f":"VLOOKUP(B57,'LOC FINAL with new Themes'!A:M,13,0)","v":0}]
[null,"Block (Census 2000)","Block (Census 2000)","Block (Census 2000)","Cultural & Demographic Statistics ","DOC-Census","Jennifer Holland","Jennifer.L.Holland@census.gov",{"$f":"VLOOKUP(B58,'LOC FINAL with new Themes'!A:M,7,0)","v":0},{"$f":"VLOOKUP(B58,'LOC FINAL with new Themes'!A:M,8,0)","v":0},{"$f":"VLOOKUP(B58,'LOC FINAL with new Themes'!A:M,9,0)","v":0},{"$f":"VLOOKUP(B58,'LOC FINAL with new Themes'!A:M,10,0)","v":0},{"$f":"VLOOKUP(B58,'LOC FINAL with new Themes'!A:M,11,0)","v":0},{"$f":"VLOOKUP(B58,'LOC FINAL with new Themes'!A:M,12,0)","v":0},{"$f":"VLOOKUP(B58,'LOC FINAL with new Themes'!A:M,13,0)","v":0}]
[null,"Block Group (Census 2000)","Block Group (Census 2000)","Block Group (Census 2000)","Cultural & Demographic Statistics ","DOC-Census","Jennifer Holland","Jennifer.L.Holland@census.gov",{"$f":"VLOOKUP(B59,'LOC FINAL with new Themes'!A:M,7,0)","v":0},{"$f":"VLOOKUP(B59,'LOC FINAL with new Themes'!A:M,8,0)","v":0},{"$f":"VLOOKUP(B59,'LOC FINAL with new Themes'!A:M,9,0)","v":0},{"$f":"VLOOKUP(B59,'LOC FINAL with new Themes'!A:M,10,0)","v":0},{"$f":"VLOOKUP(B59,'LOC FINAL with new Themes'!A:M,11,0)","v":0},{"$f":"VLOOKUP(B59,'LOC FINAL with new Themes'!A:M,12,0)","v":0},{"$f":"VLOOKUP(B59,'LOC FINAL with new Themes'!A:M,13,0)","v":0}]
[null,"Block Group (Census 2010)","Block Group (Census 2010)","Block Group (Census 2010)","Cultural & Demographic Statistics ","DOC-Census","Jennifer Holland","Jennifer.L.Holland@census.gov",{"$f":"VLOOKUP(B60,'LOC FINAL with new Themes'!A:M,7,0)","v":0},{"$f":"VLOOKUP(B60,'LOC FINAL with new Themes'!A:M,8,0)","v":0},{"$f":"VLOOKUP(B60,'LOC FINAL with new Themes'!A:M,9,0)","v":0},{"$f":"VLOOKUP(B60,'LOC FINAL with new Themes'!A:M,10,0)","v":0},{"$f":"VLOOKUP(B60,'LOC FINAL with new Themes'!A:M,11,0)","v":0},{"$f":"VLOOKUP(B60,'LOC FINAL with new Themes'!A:M,12,0)","v":0},{"$f":"VLOOKUP(B60,'LOC FINAL with new Themes'!A:M,13,0)","v":0}]
[null,"Census 2000 FIPS 55 Codes","Census 2000 FIPS 55 Codes","Census 2000 FIPS 55 Codes","Cultural & Demographic Statistics ","DOC-Census","Jennifer Holland","Jennifer.L.Holland@census.gov",{"$f":"VLOOKUP(B61,'LOC FINAL with new Themes'!A:M,7,0)","v":0},{"$f":"VLOOKUP(B61,'LOC FINAL with new Themes'!A:M,8,0)","v":0},{"$f":"VLOOKUP(B61,'LOC FINAL with new Themes'!A:M,9,0)","v":0},{"$f":"VLOOKUP(B61,'LOC FINAL with new Themes'!A:M,10,0)","v":0},{"$f":"VLOOKUP(B61,'LOC FINAL with new Themes'!A:M,11,0)","v":0},{"$f":"VLOOKUP(B61,'LOC FINAL with new Themes'!A:M,12,0)","v":0},{"$f":"VLOOKUP(B61,'LOC FINAL with new Themes'!A:M,13,0)","v":0}]
[null,"Census Tract (2010 Census)","Census Tract (2010 Census)","Census Tract (2010 Census)","Cultural & Demographic Statistics ","DOC-Census","Jennifer Holland","Jennifer.L.Holland@census.gov",{"$f":"VLOOKUP(B62,'LOC FINAL with new Themes'!A:M,7,0)","v":0},{"$f":"VLOOKUP(B62,'LOC FINAL with new Themes'!A:M,8,0)","v":0},{"$f":"VLOOKUP(B62,'LOC FINAL with new Themes'!A:M,9,0)","v":0},{"$f":"VLOOKUP(B62,'LOC FINAL with new Themes'!A:M,10,0)","v":0},{"$f":"VLOOKUP(B62,'LOC FINAL with new Themes'!A:M,11,0)","v":0},{"$f":"VLOOKUP(B62,'LOC FINAL with new Themes'!A:M,12,0)","v":0},{"$f":"VLOOKUP(B62,'LOC FINAL with new Themes'!A:M,13,0)","v":0}]
[null,"Census Tract (Census 2000)","Census Tract (Census 2000)","Census Tract (Census 2000)","Cultural & Demographic Statistics ","DOC-Census","Jennifer Holland","Jennifer.L.Holland@census.gov",{"$f":"VLOOKUP(B63,'LOC FINAL with new Themes'!A:M,7,0)","v":0},{"$f":"VLOOKUP(B63,'LOC FINAL with new Themes'!A:M,8,0)","v":0},{"$f":"VLOOKUP(B63,'LOC FINAL with new Themes'!A:M,9,0)","v":0},{"$f":"VLOOKUP(B63,'LOC FINAL with new Themes'!A:M,10,0)","v":0},{"$f":"VLOOKUP(B63,'LOC FINAL with new Themes'!A:M,11,0)","v":0},{"$f":"VLOOKUP(B63,'LOC FINAL with new Themes'!A:M,12,0)","v":0},{"$f":"VLOOKUP(B63,'LOC FINAL with new Themes'!A:M,13,0)","v":0}]
[null,"Combined Statistical Area (2010 Census)","Combined Statistical Area (2010 Census)","Combined Statistical Area (2010 Census)","Cultural & Demographic Statistics ","DOC-Census","Jennifer Holland","Jennifer.L.Holland@census.gov",{"$f":"VLOOKUP(B64,'LOC FINAL with new Themes'!A:M,7,0)","v":0},{"$f":"VLOOKUP(B64,'LOC FINAL with new Themes'!A:M,8,0)","v":0},{"$f":"VLOOKUP(B64,'LOC FINAL with new Themes'!A:M,9,0)","v":0},{"$f":"VLOOKUP(B64,'LOC FINAL with new Themes'!A:M,10,0)","v":0},{"$f":"VLOOKUP(B64,'LOC FINAL with new Themes'!A:M,11,0)","v":0},{"$f":"VLOOKUP(B64,'LOC FINAL with new Themes'!A:M,12,0)","v":0},{"$f":"VLOOKUP(B64,'LOC FINAL with new Themes'!A:M,13,0)","v":0}]
[null,"Congressional District Boundaries",null,"Congressional District Boundaries","Cultural & Demographic Statistics ","DOC-Census","Randy Fusaro","randy.j.fusaro@census.gov",{"$f":"VLOOKUP(B65,'LOC FINAL with new Themes'!A:M,7,0)","v":0},{"$f":"VLOOKUP(B65,'LOC FINAL with new Themes'!A:M,8,0)","v":0},{"$f":"VLOOKUP(B65,'LOC FINAL with new Themes'!A:M,9,0)","v":0},{"$f":"VLOOKUP(B65,'LOC FINAL with new Themes'!A:M,10,0)","v":0},{"$f":"VLOOKUP(B65,'LOC FINAL with new Themes'!A:M,11,0)","v":0},{"$f":"VLOOKUP(B65,'LOC FINAL with new Themes'!A:M,12,0)","v":0},{"$f":"VLOOKUP(B65,'LOC FINAL with new Themes'!A:M,13,0)","v":0}]
["County, place, MCD Boundaries","County, place, MCD Boundaries",null,"County, place, MCD Boundaries","Cultural & Demographic Statistics ","DOC-Census","Randy Fusaro","randy.j.fusaro@census.gov",{"$f":"VLOOKUP(B66,'LOC FINAL with new Themes'!A:M,7,0)","v":0},{"$f":"VLOOKUP(B66,'LOC FINAL with new Themes'!A:M,8,0)","v":0},{"$f":"VLOOKUP(B66,'LOC FINAL with new Themes'!A:M,9,0)","v":0},{"$f":"VLOOKUP(B66,'LOC FINAL with new Themes'!A:M,10,0)","v":0},{"$f":"VLOOKUP(B66,'LOC FINAL with new Themes'!A:M,11,0)","v":0},{"$f":"VLOOKUP(B66,'LOC FINAL with new Themes'!A:M,12,0)","v":0},{"$f":"VLOOKUP(B66,'LOC FINAL with new Themes'!A:M,13,0)","v":0}]
[null,"Elementary School District (2010 Census)","Elementary School District (2010 Census)","Elementary School District (2010 Census)","Cultural & Demographic Statistics ","DOC-Census","Jennifer Holland","Jennifer.L.Holland@census.gov",{"$f":"VLOOKUP(B67,'LOC FINAL with new Themes'!A:M,7,0)","v":0},{"$f":"VLOOKUP(B67,'LOC FINAL with new Themes'!A:M,8,0)","v":0},{"$f":"VLOOKUP(B67,'LOC FINAL with new Themes'!A:M,9,0)","v":0},{"$f":"VLOOKUP(B67,'LOC FINAL with new Themes'!A:M,10,0)","v":0},{"$f":"VLOOKUP(B67,'LOC FINAL with new Themes'!A:M,11,0)","v":0},{"$f":"VLOOKUP(B67,'LOC FINAL with new Themes'!A:M,12,0)","v":0},{"$f":"VLOOKUP(B67,'LOC FINAL with new Themes'!A:M,13,0)","v":0}]
[null,"Elementary School District (Census 2000)","Elementary School District (Census 2000)","Elementary School District (Census 2000)","Cultural & Demographic Statistics ","DOC-Census","Jennifer Holland","Jennifer.L.Holland@census.gov",{"$f":"VLOOKUP(B68,'LOC FINAL with new Themes'!A:M,7,0)","v":0},{"$f":"VLOOKUP(B68,'LOC FINAL with new Themes'!A:M,8,0)","v":0},{"$f":"VLOOKUP(B68,'LOC FINAL with new Themes'!A:M,9,0)","v":0},{"$f":"VLOOKUP(B68,'LOC FINAL with new Themes'!A:M,10,0)","v":0},{"$f":"VLOOKUP(B68,'LOC FINAL with new Themes'!A:M,11,0)","v":0},{"$f":"VLOOKUP(B68,'LOC FINAL with new Themes'!A:M,12,0)","v":0},{"$f":"VLOOKUP(B68,'LOC FINAL with new Themes'!A:M,13,0)","v":0}]
["FIPS/ANSI codes for states, counties, congressional districts & metro/micropolitan areas","FIPS/ANSI codes for states, counties, congressional districts & metro/micropolitan areas",null,"FIPS/ANSI codes for states, counties, congressional districts & metro/micropolitan areas","Cultural & Demographic Statistics ","DOC-Census","Randy Fusaro","randy.j.fusaro@census.gov",{"$f":"VLOOKUP(B69,'LOC FINAL with new Themes'!A:M,7,0)","v":0},{"$f":"VLOOKUP(B69,'LOC FINAL with new Themes'!A:M,8,0)","v":0},{"$f":"VLOOKUP(B69,'LOC FINAL with new Themes'!A:M,9,0)","v":0},{"$f":"VLOOKUP(B69,'LOC FINAL with new Themes'!A:M,10,0)","v":0},{"$f":"VLOOKUP(B69,'LOC FINAL with new Themes'!A:M,11,0)","v":0},{"$f":"VLOOKUP(B69,'LOC FINAL with new Themes'!A:M,12,0)","v":0},{"$f":"VLOOKUP(B69,'LOC FINAL with new Themes'!A:M,13,0)","v":0}]
["Metropolitan/micropolitan area boundaries","Metropolitan/micropolitan area boundaries",null,"Metropolitan/micropolitan area boundaries","Cultural & Demographic Statistics ","DOC-Census","Randy Fusaro","randy.j.fusaro@census.gov",{"$f":"VLOOKUP(B70,'LOC FINAL with new Themes'!A:M,7,0)","v":0},{"$f":"VLOOKUP(B70,'LOC FINAL with new Themes'!A:M,8,0)","v":0},{"$f":"VLOOKUP(B70,'LOC FINAL with new Themes'!A:M,9,0)","v":0},{"$f":"VLOOKUP(B70,'LOC FINAL with new Themes'!A:M,10,0)","v":0},{"$f":"VLOOKUP(B70,'LOC FINAL with new Themes'!A:M,11,0)","v":0},{"$f":"VLOOKUP(B70,'LOC FINAL with new Themes'!A:M,12,0)","v":0},{"$f":"VLOOKUP(B70,'LOC FINAL with new Themes'!A:M,13,0)","v":0}]
[null,"Metropolitan/micropolitan Statistical Area (2010 Census)","Metropolitan/micropolitan Statistical Area (2010 Census)","Metropolitan/micropolitan Statistical Area (2010 Census)","Cultural & Demographic Statistics ","DOC-Census","Jennifer Holland","Jennifer.L.Holland@census.gov",{"$f":"VLOOKUP(B71,'LOC FINAL with new Themes'!A:M,7,0)","v":0},{"$f":"VLOOKUP(B71,'LOC FINAL with new Themes'!A:M,8,0)","v":0},{"$f":"VLOOKUP(B71,'LOC FINAL with new Themes'!A:M,9,0)","v":0},{"$f":"VLOOKUP(B71,'LOC FINAL with new Themes'!A:M,10,0)","v":0},{"$f":"VLOOKUP(B71,'LOC FINAL with new Themes'!A:M,11,0)","v":0},{"$f":"VLOOKUP(B71,'LOC FINAL with new Themes'!A:M,12,0)","v":0},{"$f":"VLOOKUP(B71,'LOC FINAL with new Themes'!A:M,13,0)","v":0}]
["National Center for Health Statistics (Atlas of US Mortality)","National Center for Health Statistics (Atlas of US Mortality)",null,"National Center for Health Statistics (Atlas of US Mortality)","Cultural & Demographic Statistics ","HHS","Gary Anderson","gary.anderson@hhs.gov",{"$f":"VLOOKUP(B72,'LOC FINAL with new Themes'!A:M,7,0)","v":0},{"$f":"VLOOKUP(B72,'LOC FINAL with new Themes'!A:M,8,0)","v":0},{"$f":"VLOOKUP(B72,'LOC FINAL with new Themes'!A:M,9,0)","v":0},{"$f":"VLOOKUP(B72,'LOC FINAL with new Themes'!A:M,10,0)","v":0},{"$f":"VLOOKUP(B72,'LOC FINAL with new Themes'!A:M,11,0)","v":0},{"$f":"VLOOKUP(B72,'LOC FINAL with new Themes'!A:M,12,0)","v":0},{"$f":"VLOOKUP(B72,'LOC FINAL with new Themes'!A:M,13,0)","v":0}]
[null,null,"Oklahoma Tribal Joint Use Areas","Oklahoma Tribal Joint Use Areas","Cultural & Demographic Statistics ","DOC-Census"]
[null,null,"Oklahoma Tribal Statistical Areas","Oklahoma Tribal Statistical Areas","Cultural & Demographic Statistics ","DOC-Census"]
[null,"Public Use Microdata Area (Census 2000)","Public Use Microdata Area (Census 2000)","Public Use Microdata Area (Census 2000)","Cultural & Demographic Statistics ","DOC-Census","Jennifer Holland","Jennifer.L.Holland@census.gov",{"$f":"VLOOKUP(B75,'LOC FINAL with new Themes'!A:M,7,0)","v":0},{"$f":"VLOOKUP(B75,'LOC FINAL with new Themes'!A:M,8,0)","v":0},{"$f":"VLOOKUP(B75,'LOC FINAL with new Themes'!A:M,9,0)","v":0},{"$f":"VLOOKUP(B75,'LOC FINAL with new Themes'!A:M,10,0)","v":0},{"$f":"VLOOKUP(B75,'LOC FINAL with new Themes'!A:M,11,0)","v":0},{"$f":"VLOOKUP(B75,'LOC FINAL with new Themes'!A:M,12,0)","v":0},{"$f":"VLOOKUP(B75,'LOC FINAL with new Themes'!A:M,13,0)","v":0}]
["School District Boundaries","School District Boundaries",null,"School District Boundaries","Cultural & Demographic Statistics ","DOC-Census","Randy Fusaro","randy.j.fusaro@census.gov",{"$f":"VLOOKUP(B76,'LOC FINAL with new Themes'!A:M,7,0)","v":0},{"$f":"VLOOKUP(B76,'LOC FINAL with new Themes'!A:M,8,0)","v":0},{"$f":"VLOOKUP(B76,'LOC FINAL with new Themes'!A:M,9,0)","v":0},{"$f":"VLOOKUP(B76,'LOC FINAL with new Themes'!A:M,10,0)","v":0},{"$f":"VLOOKUP(B76,'LOC FINAL with new Themes'!A:M,11,0)","v":0},{"$f":"VLOOKUP(B76,'LOC FINAL with new Themes'!A:M,12,0)","v":0},{"$f":"VLOOKUP(B76,'LOC FINAL with new Themes'!A:M,13,0)","v":0}]
[null,"Secondary School District (2010 Census)","Secondary School District (2010 Census)","Secondary School District (2010 Census)","Cultural & Demographic Statistics ","DOC-Census","Jennifer Holland","Jennifer.L.Holland@census.gov",{"$f":"VLOOKUP(B77,'LOC FINAL with new Themes'!A:M,7,0)","v":0},{"$f":"VLOOKUP(B77,'LOC FINAL with new Themes'!A:M,8,0)","v":0},{"$f":"VLOOKUP(B77,'LOC FINAL with new Themes'!A:M,9,0)","v":0},{"$f":"VLOOKUP(B77,'LOC FINAL with new Themes'!A:M,10,0)","v":0},{"$f":"VLOOKUP(B77,'LOC FINAL with new Themes'!A:M,11,0)","v":0},{"$f":"VLOOKUP(B77,'LOC FINAL with new Themes'!A:M,12,0)","v":0},{"$f":"VLOOKUP(B77,'LOC FINAL with new Themes'!A:M,13,0)","v":0}]
[null,"Secondary School District (Census 2000)","Secondary School District (Census 2000)","Secondary School District (Census 2000)","Cultural & Demographic Statistics ","DOC-Census","Jennifer Holland","Jennifer.L.Holland@census.gov",{"$f":"VLOOKUP(B78,'LOC FINAL with new Themes'!A:M,7,0)","v":0},{"$f":"VLOOKUP(B78,'LOC FINAL with new Themes'!A:M,8,0)","v":0},{"$f":"VLOOKUP(B78,'LOC FINAL with new Themes'!A:M,9,0)","v":0},{"$f":"VLOOKUP(B78,'LOC FINAL with new Themes'!A:M,10,0)","v":0},{"$f":"VLOOKUP(B78,'LOC FINAL with new Themes'!A:M,11,0)","v":0},{"$f":"VLOOKUP(B78,'LOC FINAL with new Themes'!A:M,12,0)","v":0},{"$f":"VLOOKUP(B78,'LOC FINAL with new Themes'!A:M,13,0)","v":0}]
["State (+ Territories) Boundaries","State (+ Territories) Boundaries",null,"State (+ Territories) Boundaries","Cultural & Demographic Statistics ","DOC-Census","Randy Fusaro","randy.j.fusaro@census.gov",{"$f":"VLOOKUP(B79,'LOC FINAL with new Themes'!A:M,7,0)","v":0},{"$f":"VLOOKUP(B79,'LOC FINAL with new Themes'!A:M,8,0)","v":0},{"$f":"VLOOKUP(B79,'LOC FINAL with new Themes'!A:M,9,0)","v":0},{"$f":"VLOOKUP(B79,'LOC FINAL with new Themes'!A:M,10,0)","v":0},{"$f":"VLOOKUP(B79,'LOC FINAL with new Themes'!A:M,11,0)","v":0},{"$f":"VLOOKUP(B79,'LOC FINAL with new Themes'!A:M,12,0)","v":0},{"$f":"VLOOKUP(B79,'LOC FINAL with new Themes'!A:M,13,0)","v":0}]
["Statistical Area Boundaries (tracts, blocks, UAs, CDPs, etc)","Statistical Area Boundaries (tracts, blocks, UAs, CDPs, etc)",null,"Statistical Area Boundaries (tracts, blocks, UAs, CDPs, etc)","Cultural & Demographic Statistics ","DOC-Census","Randy Fusaro","randy.j.fusaro@census.gov",{"$f":"VLOOKUP(B80,'LOC FINAL with new Themes'!A:M,7,0)","v":0},{"$f":"VLOOKUP(B80,'LOC FINAL with new Themes'!A:M,8,0)","v":0},{"$f":"VLOOKUP(B80,'LOC FINAL with new Themes'!A:M,9,0)","v":0},{"$f":"VLOOKUP(B80,'LOC FINAL with new Themes'!A:M,10,0)","v":0},{"$f":"VLOOKUP(B80,'LOC FINAL with new Themes'!A:M,11,0)","v":0},{"$f":"VLOOKUP(B80,'LOC FINAL with new Themes'!A:M,12,0)","v":0},{"$f":"VLOOKUP(B80,'LOC FINAL with new Themes'!A:M,13,0)","v":0}]
[null,"Super Public Use Microdata Area (Census 2000)","Super Public Use Microdata Area (Census 2000)","Super Public Use Microdata Area (Census 2000)","Cultural & Demographic Statistics ","DOC-Census","Jennifer Holland","Jennifer.L.Holland@census.gov",{"$f":"VLOOKUP(B81,'LOC FINAL with new Themes'!A:M,7,0)","v":0},{"$f":"VLOOKUP(B81,'LOC FINAL with new Themes'!A:M,8,0)","v":0},{"$f":"VLOOKUP(B81,'LOC FINAL with new Themes'!A:M,9,0)","v":0},{"$f":"VLOOKUP(B81,'LOC FINAL with new Themes'!A:M,10,0)","v":0},{"$f":"VLOOKUP(B81,'LOC FINAL with new Themes'!A:M,11,0)","v":0},{"$f":"VLOOKUP(B81,'LOC FINAL with new Themes'!A:M,12,0)","v":0},{"$f":"VLOOKUP(B81,'LOC FINAL with new Themes'!A:M,13,0)","v":0}]
["TIGER* (many statistical boundaries)","TIGER (many statistical boundaries)",null,"TIGER (many statistical boundaries)","Cultural & Demographic Statistics ","DOC-Census","Randy Fusaro","randy.j.fusaro@census.gov",{"$f":"VLOOKUP(B82,'LOC FINAL with new Themes'!A:M,7,0)","v":0},{"$f":"VLOOKUP(B82,'LOC FINAL with new Themes'!A:M,8,0)","v":0},{"$f":"VLOOKUP(B82,'LOC FINAL with new Themes'!A:M,9,0)","v":0},{"$f":"VLOOKUP(B82,'LOC FINAL with new Themes'!A:M,10,0)","v":0},{"$f":"VLOOKUP(B82,'LOC FINAL with new Themes'!A:M,11,0)","v":0},{"$f":"VLOOKUP(B82,'LOC FINAL with new Themes'!A:M,12,0)","v":0},{"$f":"VLOOKUP(B82,'LOC FINAL with new Themes'!A:M,13,0)","v":0}]
[null,"Topological Faces (2010 Census)","Topological Faces (2010 Census)","Topological Faces (2010 Census)","Cultural & Demographic Statistics ","DOC-Census","Jennifer Holland","Jennifer.L.Holland@census.gov",{"$f":"VLOOKUP(B83,'LOC FINAL with new Themes'!A:M,7,0)","v":0},{"$f":"VLOOKUP(B83,'LOC FINAL with new Themes'!A:M,8,0)","v":0},{"$f":"VLOOKUP(B83,'LOC FINAL with new Themes'!A:M,9,0)","v":0},{"$f":"VLOOKUP(B83,'LOC FINAL with new Themes'!A:M,10,0)","v":0},{"$f":"VLOOKUP(B83,'LOC FINAL with new Themes'!A:M,11,0)","v":0},{"$f":"VLOOKUP(B83,'LOC FINAL with new Themes'!A:M,12,0)","v":0},{"$f":"VLOOKUP(B83,'LOC FINAL with new Themes'!A:M,13,0)","v":0}]
[null,"Unified School District (2010 Census)","Unified School District (2010 Census)","Unified School District (2010 Census)","Cultural & Demographic Statistics ","DOC-Census","Jennifer Holland","Jennifer.L.Holland@census.gov",{"$f":"VLOOKUP(B84,'LOC FINAL with new Themes'!A:M,7,0)","v":0},{"$f":"VLOOKUP(B84,'LOC FINAL with new Themes'!A:M,8,0)","v":0},{"$f":"VLOOKUP(B84,'LOC FINAL with new Themes'!A:M,9,0)","v":0},{"$f":"VLOOKUP(B84,'LOC FINAL with new Themes'!A:M,10,0)","v":0},{"$f":"VLOOKUP(B84,'LOC FINAL with new Themes'!A:M,11,0)","v":0},{"$f":"VLOOKUP(B84,'LOC FINAL with new Themes'!A:M,12,0)","v":0},{"$f":"VLOOKUP(B84,'LOC FINAL with new Themes'!A:M,13,0)","v":0}]
[null,"Unified School District (Census 2000)","Unified School District (Census 2000)","Unified School District (Census 2000)","Cultural & Demographic Statistics ","DOC-Census","Jennifer Holland","Jennifer.L.Holland@census.gov",{"$f":"VLOOKUP(B85,'LOC FINAL with new Themes'!A:M,7,0)","v":0},{"$f":"VLOOKUP(B85,'LOC FINAL with new Themes'!A:M,8,0)","v":0},{"$f":"VLOOKUP(B85,'LOC FINAL with new Themes'!A:M,9,0)","v":0},{"$f":"VLOOKUP(B85,'LOC FINAL with new Themes'!A:M,10,0)","v":0},{"$f":"VLOOKUP(B85,'LOC FINAL with new Themes'!A:M,11,0)","v":0},{"$f":"VLOOKUP(B85,'LOC FINAL with new Themes'!A:M,12,0)","v":0},{"$f":"VLOOKUP(B85,'LOC FINAL with new Themes'!A:M,13,0)","v":0}]
[null,"Urban Growth Area (2010 Census)","Urban Growth Area (2010 Census)","Urban Growth Area (2010 Census)","Cultural & Demographic Statistics ","DOC-Census","Jennifer Holland","Jennifer.L.Holland@census.gov",{"$f":"VLOOKUP(B86,'LOC FINAL with new Themes'!A:M,7,0)","v":0},{"$f":"VLOOKUP(B86,'LOC FINAL with new Themes'!A:M,8,0)","v":0},{"$f":"VLOOKUP(B86,'LOC FINAL with new Themes'!A:M,9,0)","v":0},{"$f":"VLOOKUP(B86,'LOC FINAL with new Themes'!A:M,10,0)","v":0},{"$f":"VLOOKUP(B86,'LOC FINAL with new Themes'!A:M,11,0)","v":0},{"$f":"VLOOKUP(B86,'LOC FINAL with new Themes'!A:M,12,0)","v":0},{"$f":"VLOOKUP(B86,'LOC FINAL with new Themes'!A:M,13,0)","v":0}]
[null,"Urban Growth Area (Census 2000)","Urban Growth Area (Census 2000)","Urban Growth Area (Census 2000)","Cultural & Demographic Statistics ","DOC-Census","Jennifer Holland","Jennifer.L.Holland@census.gov",{"$f":"VLOOKUP(B87,'LOC FINAL with new Themes'!A:M,7,0)","v":0},{"$f":"VLOOKUP(B87,'LOC FINAL with new Themes'!A:M,8,0)","v":0},{"$f":"VLOOKUP(B87,'LOC FINAL with new Themes'!A:M,9,0)","v":0},{"$f":"VLOOKUP(B87,'LOC FINAL with new Themes'!A:M,10,0)","v":0},{"$f":"VLOOKUP(B87,'LOC FINAL with new Themes'!A:M,11,0)","v":0},{"$f":"VLOOKUP(B87,'LOC FINAL with new Themes'!A:M,12,0)","v":0},{"$f":"VLOOKUP(B87,'LOC FINAL with new Themes'!A:M,13,0)","v":0}]
[null,"Voting District (2010 Census)","Voting District (2010 Census)","Voting District (2010 Census)","Cultural & Demographic Statistics ","DOC-Census","Jennifer Holland","Jennifer.L.Holland@census.gov",{"$f":"VLOOKUP(B88,'LOC FINAL with new Themes'!A:M,7,0)","v":0},{"$f":"VLOOKUP(B88,'LOC FINAL with new Themes'!A:M,8,0)","v":0},{"$f":"VLOOKUP(B88,'LOC FINAL with new Themes'!A:M,9,0)","v":0},{"$f":"VLOOKUP(B88,'LOC FINAL with new Themes'!A:M,10,0)","v":0},{"$f":"VLOOKUP(B88,'LOC FINAL with new Themes'!A:M,11,0)","v":0},{"$f":"VLOOKUP(B88,'LOC FINAL with new Themes'!A:M,12,0)","v":0},{"$f":"VLOOKUP(B88,'LOC FINAL with new Themes'!A:M,13,0)","v":0}]
[null,"Voting District (Census 2000)","Voting District (Census 2000)","Voting District (Census 2000)","Cultural & Demographic Statistics ","DOC-Census","Jennifer Holland","Jennifer.L.Holland@census.gov",{"$f":"VLOOKUP(B89,'LOC FINAL with new Themes'!A:M,7,0)","v":0},{"$f":"VLOOKUP(B89,'LOC FINAL with new Themes'!A:M,8,0)","v":0},{"$f":"VLOOKUP(B89,'LOC FINAL with new Themes'!A:M,9,0)","v":0},{"$f":"VLOOKUP(B89,'LOC FINAL with new Themes'!A:M,10,0)","v":0},{"$f":"VLOOKUP(B89,'LOC FINAL with new Themes'!A:M,11,0)","v":0},{"$f":"VLOOKUP(B89,'LOC FINAL with new Themes'!A:M,12,0)","v":0},{"$f":"VLOOKUP(B89,'LOC FINAL with new Themes'!A:M,13,0)","v":0}]
["Voting District Boundaries","Voting District Boundaries",null,"Voting District Boundaries","Cultural & Demographic Statistics ","DOC-Census","Randy Fusaro","randy.j.fusaro@census.gov",{"$f":"VLOOKUP(B90,'LOC FINAL with new Themes'!A:M,7,0)","v":0},{"$f":"VLOOKUP(B90,'LOC FINAL with new Themes'!A:M,8,0)","v":0},{"$f":"VLOOKUP(B90,'LOC FINAL with new Themes'!A:M,9,0)","v":0},{"$f":"VLOOKUP(B90,'LOC FINAL with new Themes'!A:M,10,0)","v":0},{"$f":"VLOOKUP(B90,'LOC FINAL with new Themes'!A:M,11,0)","v":0},{"$f":"VLOOKUP(B90,'LOC FINAL with new Themes'!A:M,12,0)","v":0},{"$f":"VLOOKUP(B90,'LOC FINAL with new Themes'!A:M,13,0)","v":0}]
[{"$f":"SUBTOTAL(3,A50:A90)","v":10},{"$f":"SUBTOTAL(3,B50:B90)","v":39},{"$f":"SUBTOTAL(3,C50:C90)","v":30},{"$f":"SUBTOTAL(3,D50:D90)","v":41},"Cultural & Demographic Statistics  Count"]
["Cultural Landscape Boundaries","Cultural Landscape Boundaries","Cultural Landscape Boundaries",{"$f":"IF(C92=0,B92,C92)","v":"Cultural Landscape Boundaries"},"Cultural & Demographic Statistics \nCultural Resources","DOI-NPS","John Knoerl","john_knoerl@nps.gov",{"$f":"VLOOKUP(B92,'LOC FINAL with new Themes'!A:M,7,0)","v":"Feature classes of the cultural resource data model (NPS only, other federal agencies handle it as they decide)"},{"$f":"VLOOKUP(B92,'LOC FINAL with new Themes'!A:M,8,0)","v":"don't want a single centralized data set but focusing on standard approach"},{"$f":"VLOOKUP(B92,'LOC FINAL with new Themes'!A:M,9,0)","v":0},{"$f":"VLOOKUP(B92,'LOC FINAL with new Themes'!A:M,10,0)","v":0},{"$f":"VLOOKUP(B92,'LOC FINAL with new Themes'!A:M,11,0)","v":0},{"$f":"VLOOKUP(B92,'LOC FINAL with new Themes'!A:M,12,0)","v":0},{"$f":"VLOOKUP(B92,'LOC FINAL with new Themes'!A:M,13,0)","v":0}]
["Cultural Resource Survey Boundaries","Cultural Resource Survey Boundaries","Cultural Resource Survey Boundaries","Cultural Resource Survey Boundaries","Cultural & Demographic Statistics \nCultural Resources","DOI-NPS","John Knoerl","john_knoerl@nps.gov",{"$f":"VLOOKUP(B93,'LOC FINAL with new Themes'!A:M,7,0)","v":"Feature classes of the cultural resource data model (NPS only, other federal agencies handle it as they decide)"},{"$f":"VLOOKUP(B93,'LOC FINAL with new Themes'!A:M,8,0)","v":"don't want a single centralized data set but focusing on standard approach"},{"$f":"VLOOKUP(B93,'LOC FINAL with new Themes'!A:M,9,0)","v":0},{"$f":"VLOOKUP(B93,'LOC FINAL with new Themes'!A:M,10,0)","v":0},{"$f":"VLOOKUP(B93,'LOC FINAL with new Themes'!A:M,11,0)","v":0},{"$f":"VLOOKUP(B93,'LOC FINAL with new Themes'!A:M,12,0)","v":0},{"$f":"VLOOKUP(B93,'LOC FINAL with new Themes'!A:M,13,0)","v":0}]
["Ethnographic Resource Boundaries","Ethnographic Resource Boundaries","Ethnographic Resource Boundaries","Ethnographic Resource Boundaries","Cultural & Demographic Statistics \nCultural Resources","DOI-NPS","John Knoerl","john_knoerl@nps.gov",{"$f":"VLOOKUP(B94,'LOC FINAL with new Themes'!A:M,7,0)","v":"Feature classes of the cultural resource data model (NPS only, other federal agencies handle it as they decide)"},{"$f":"VLOOKUP(B94,'LOC FINAL with new Themes'!A:M,8,0)","v":"don't want a single centralized data set but focusing on standard approach"},{"$f":"VLOOKUP(B94,'LOC FINAL with new Themes'!A:M,9,0)","v":0},{"$f":"VLOOKUP(B94,'LOC FINAL with new Themes'!A:M,10,0)","v":0},{"$f":"VLOOKUP(B94,'LOC FINAL with new Themes'!A:M,11,0)","v":0},{"$f":"VLOOKUP(B94,'LOC FINAL with new Themes'!A:M,12,0)","v":0},{"$f":"VLOOKUP(B94,'LOC FINAL with new Themes'!A:M,13,0)","v":0}]
["Historic Buildings Boundaries","Historic Buildings Boundaries","Historic Buildings Boundaries","Historic Buildings Boundaries","Cultural & Demographic Statistics \nCultural Resources","DOI-NPS","John Knoerl","john_knoerl@nps.gov",{"$f":"VLOOKUP(B95,'LOC FINAL with new Themes'!A:M,7,0)","v":"Feature classes of the cultural resource data model (NPS only, other federal agencies handle it as they decide)"},{"$f":"VLOOKUP(B95,'LOC FINAL with new Themes'!A:M,8,0)","v":"don't want a single centralized data set but focusing on standard approach"},{"$f":"VLOOKUP(B95,'LOC FINAL with new Themes'!A:M,9,0)","v":0},{"$f":"VLOOKUP(B95,'LOC FINAL with new Themes'!A:M,10,0)","v":0},{"$f":"VLOOKUP(B95,'LOC FINAL with new Themes'!A:M,11,0)","v":0},{"$f":"VLOOKUP(B95,'LOC FINAL with new Themes'!A:M,12,0)","v":0},{"$f":"VLOOKUP(B95,'LOC FINAL with new Themes'!A:M,13,0)","v":0}]
["Historic Districts Boundaries","Historic Districts Boundaries","Historic Districts Boundaries","Historic Districts Boundaries","Cultural & Demographic Statistics \nCultural Resources","DOI-NPS","John Knoerl","john_knoerl@nps.gov",{"$f":"VLOOKUP(B96,'LOC FINAL with new Themes'!A:M,7,0)","v":"Feature classes of the cultural resource data model (NPS only, other federal agencies handle it as they decide)"},{"$f":"VLOOKUP(B96,'LOC FINAL with new Themes'!A:M,8,0)","v":"don't want a single centralized data set but focusing on standard approach"},{"$f":"VLOOKUP(B96,'LOC FINAL with new Themes'!A:M,9,0)","v":0},{"$f":"VLOOKUP(B96,'LOC FINAL with new Themes'!A:M,10,0)","v":0},{"$f":"VLOOKUP(B96,'LOC FINAL with new Themes'!A:M,11,0)","v":0},{"$f":"VLOOKUP(B96,'LOC FINAL with new Themes'!A:M,12,0)","v":0},{"$f":"VLOOKUP(B96,'LOC FINAL with new Themes'!A:M,13,0)","v":0}]
["Historic Objects Boundaries","Historic Objects Boundaries","Historic Objects Boundaries","Historic Objects Boundaries","Cultural & Demographic Statistics \nCultural Resources","DOI-NPS","John Knoerl","john_knoerl@nps.gov",{"$f":"VLOOKUP(B97,'LOC FINAL with new Themes'!A:M,7,0)","v":"Feature classes of the cultural resource data model (NPS only, other federal agencies handle it as they decide)"},{"$f":"VLOOKUP(B97,'LOC FINAL with new Themes'!A:M,8,0)","v":"don't want a single centralized data set but focusing on standard approach"},{"$f":"VLOOKUP(B97,'LOC FINAL with new Themes'!A:M,9,0)","v":0},{"$f":"VLOOKUP(B97,'LOC FINAL with new Themes'!A:M,10,0)","v":0},{"$f":"VLOOKUP(B97,'LOC FINAL with new Themes'!A:M,11,0)","v":0},{"$f":"VLOOKUP(B97,'LOC FINAL with new Themes'!A:M,12,0)","v":0},{"$f":"VLOOKUP(B97,'LOC FINAL with new Themes'!A:M,13,0)","v":0}]
["Historic Structures Boundaries","Historic Structures Boundaries","Historic Structures Boundaries","Historic Structures Boundaries","Cultural & Demographic Statistics \nCultural Resources","DOI-NPS","John Knoerl","john_knoerl@nps.gov",{"$f":"VLOOKUP(B98,'LOC FINAL with new Themes'!A:M,7,0)","v":"Feature classes of the cultural resource data model (NPS only, other federal agencies handle it as they decide)"},{"$f":"VLOOKUP(B98,'LOC FINAL with new Themes'!A:M,8,0)","v":"don't want a single centralized data set but focusing on standard approach"},{"$f":"VLOOKUP(B98,'LOC FINAL with new Themes'!A:M,9,0)","v":0},{"$f":"VLOOKUP(B98,'LOC FINAL with new Themes'!A:M,10,0)","v":0},{"$f":"VLOOKUP(B98,'LOC FINAL with new Themes'!A:M,11,0)","v":0},{"$f":"VLOOKUP(B98,'LOC FINAL with new Themes'!A:M,12,0)","v":0},{"$f":"VLOOKUP(B98,'LOC FINAL with new Themes'!A:M,13,0)","v":"M "}]
[null,null,"Other Cultural Resource Boundaries","Other Cultural Resource Boundaries","Cultural & Demographic Statistics \nCultural Resources","DOI-NPS"]
[{"$f":"SUBTOTAL(3,A92:A99)","v":7},{"$f":"SUBTOTAL(3,B92:B99)","v":7},{"$f":"SUBTOTAL(3,C92:C99)","v":8},{"$f":"SUBTOTAL(3,D92:D99)","v":8},"Cultural & Demographic Statistics \nCultural Resources Count"]
[null,"Point Landmark (2010 Census)","Point of Landmark (2010 Census)",{"$f":"IF(C101=0,B101,C101)","v":"Point of Landmark (2010 Census)"},"Cultural Resources","DOC-Census","Jennifer Holland","Jennifer.L.Holland@census.gov",{"$f":"VLOOKUP(B101,'LOC FINAL with new Themes'!A:M,7,0)","v":0},{"$f":"VLOOKUP(B101,'LOC FINAL with new Themes'!A:M,8,0)","v":0},{"$f":"VLOOKUP(B101,'LOC FINAL with new Themes'!A:M,9,0)","v":0},{"$f":"VLOOKUP(B101,'LOC FINAL with new Themes'!A:M,10,0)","v":0},{"$f":"VLOOKUP(B101,'LOC FINAL with new Themes'!A:M,11,0)","v":0},{"$f":"VLOOKUP(B101,'LOC FINAL with new Themes'!A:M,12,0)","v":0},{"$f":"VLOOKUP(B101,'LOC FINAL with new Themes'!A:M,13,0)","v":0}]
["Archeological Sites","Archeological Sites","Archeological Sites","Archeological Sites","Cultural Resources ","DOI-NPS","John Knoerl","john_knoerl@nps.gov",{"$f":"VLOOKUP(B102,'LOC FINAL with new Themes'!A:M,7,0)","v":"Feature classes of the cultural resource data model (NPS only, other federal agencies handle it as they decide)"},{"$f":"VLOOKUP(B102,'LOC FINAL with new Themes'!A:M,8,0)","v":"don't want a single centralized data set but focusing on standard approach"},{"$f":"VLOOKUP(B102,'LOC FINAL with new Themes'!A:M,9,0)","v":"National Historic Presrevation Act says state historic preservation office has primary oversight (section 110)"},{"$f":"VLOOKUP(B102,'LOC FINAL with new Themes'!A:M,10,0)","v":0},{"$f":"VLOOKUP(B102,'LOC FINAL with new Themes'!A:M,11,0)","v":0},{"$f":"VLOOKUP(B102,'LOC FINAL with new Themes'!A:M,12,0)","v":0},{"$f":"VLOOKUP(B102,'LOC FINAL with new Themes'!A:M,13,0)","v":0}]
[null,"Area Landmark (2010 Census)","Area Landmark (2010 Census)","Area Landmark (2010 Census)","Cultural Resources ","DOC-Census","Jennifer Holland","Jennifer.L.Holland@census.gov",{"$f":"VLOOKUP(B103,'LOC FINAL with new Themes'!A:M,7,0)","v":0},{"$f":"VLOOKUP(B103,'LOC FINAL with new Themes'!A:M,8,0)","v":0},{"$f":"VLOOKUP(B103,'LOC FINAL with new Themes'!A:M,9,0)","v":0},{"$f":"VLOOKUP(B103,'LOC FINAL with new Themes'!A:M,10,0)","v":0},{"$f":"VLOOKUP(B103,'LOC FINAL with new Themes'!A:M,11,0)","v":0},{"$f":"VLOOKUP(B103,'LOC FINAL with new Themes'!A:M,12,0)","v":0},{"$f":"VLOOKUP(B103,'LOC FINAL with new Themes'!A:M,13,0)","v":0}]
[null,null,"Geographic Names Dataset - National Map","Geographic Names Dataset - National Map","Cultural Resources ","DOI-USGS"]
["National Map - Geographic Names Information System (GNIS)","National Map - Geographic Names Information System (GNIS)",null,"National Map - Geographic Names Information System (GNIS)","Cultural Resources ","DOI-USGS","Lou Yost","lyost@usgs.gov",{"$f":"VLOOKUP(B105,'LOC FINAL with new Themes'!A:M,7,0)","v":"single data set; poc, data managers; daily updated; Denver systems people backup and archive; transfer to NARA also; Gaz vector (internal)"},{"$f":"VLOOKUP(B105,'LOC FINAL with new Themes'!A:M,8,0)","v":0},{"$f":"VLOOKUP(B105,'LOC FINAL with new Themes'!A:M,9,0)","v":0},{"$f":"VLOOKUP(B105,'LOC FINAL with new Themes'!A:M,10,0)","v":0},{"$f":"VLOOKUP(B105,'LOC FINAL with new Themes'!A:M,11,0)","v":0},{"$f":"VLOOKUP(B105,'LOC FINAL with new Themes'!A:M,12,0)","v":0},{"$f":"VLOOKUP(B105,'LOC FINAL with new Themes'!A:M,13,0)","v":"S"}]
[null,"Topological Faces-Area Landmark Relationship File","Topological Faces-Area Landmark Relationship File","Topological Faces-Area Landmark Relationship File","Cultural Resources ","DOC-Census","Jennifer Holland","Jennifer.L.Holland@census.gov",{"$f":"VLOOKUP(B106,'LOC FINAL with new Themes'!A:M,7,0)","v":0},{"$f":"VLOOKUP(B106,'LOC FINAL with new Themes'!A:M,8,0)","v":0},{"$f":"VLOOKUP(B106,'LOC FINAL with new Themes'!A:M,9,0)","v":0},{"$f":"VLOOKUP(B106,'LOC FINAL with new Themes'!A:M,10,0)","v":0},{"$f":"VLOOKUP(B106,'LOC FINAL with new Themes'!A:M,11,0)","v":0},{"$f":"VLOOKUP(B106,'LOC FINAL with new Themes'!A:M,12,0)","v":0},{"$f":"VLOOKUP(B106,'LOC FINAL with new Themes'!A:M,13,0)","v":0}]
[{"$f":"SUBTOTAL(3,A101:A106)","v":2},{"$f":"SUBTOTAL(3,B101:B106)","v":5},{"$f":"SUBTOTAL(3,C101:C106)","v":5},{"$f":"SUBTOTAL(3,D101:D106)","v":6},"Cultural Resources Count"]
["133 UA Elevation Data (lidar)","133 UA Elevation Data (lidar)",null,{"$f":"IF(C108=0,B108,C108)","v":"133 UA Elevation Data (lidar)"},"Elevation","DOD-NGA","Ron Power, NGA","ronald.k.power@nga.mil",{"$f":"VLOOKUP(B108,'LOC FINAL with new Themes'!A:M,7,0)","v":0},{"$f":"VLOOKUP(B108,'LOC FINAL with new Themes'!A:M,8,0)","v":0},{"$f":"VLOOKUP(B108,'LOC FINAL with new Themes'!A:M,9,0)","v":0},{"$f":"VLOOKUP(B108,'LOC FINAL with new Themes'!A:M,10,0)","v":0},{"$f":"VLOOKUP(B108,'LOC FINAL with new Themes'!A:M,11,0)","v":0},{"$f":"VLOOKUP(B108,'LOC FINAL with new Themes'!A:M,12,0)","v":0},{"$f":"VLOOKUP(B108,'LOC FINAL with new Themes'!A:M,13,0)","v":0}]
["DEMs - Archive","DEMs - Archive",null,"DEMs - Archive","Elevation","DOI-USGS","Gayla Evans","gevans@usgs.gov",{"$f":"VLOOKUP(B109,'LOC FINAL with new Themes'!A:M,7,0)","v":"DEMS update at variable nature; are four data sets based on resolution; this is the POC and data manager; this is the name and maintain three complete with two physically separate on-site and one off-site"},{"$f":"VLOOKUP(B109,'LOC FINAL with new Themes'!A:M,8,0)","v":0},{"$f":"VLOOKUP(B109,'LOC FINAL with new Themes'!A:M,9,0)","v":0},{"$f":"VLOOKUP(B109,'LOC FINAL with new Themes'!A:M,10,0)","v":0},{"$f":"VLOOKUP(B109,'LOC FINAL with new Themes'!A:M,11,0)","v":0},{"$f":"VLOOKUP(B109,'LOC FINAL with new Themes'!A:M,12,0)","v":0},{"$f":"VLOOKUP(B109,'LOC FINAL with new Themes'!A:M,13,0)","v":"S"}]
["GTOPO30","GTOPO30",null,"GTOPO30","Elevation","DOI-USGS","Jeff Danielson"," daniels@usgs.gov",{"$f":"VLOOKUP(B110,'LOC FINAL with new Themes'!A:M,7,0)","v":"GTOPO30 is static; one data set; this is the POC and data manager; this is the name and maintain three complete with two physically separate on-site and one off-site"},{"$f":"VLOOKUP(B110,'LOC FINAL with new Themes'!A:M,8,0)","v":0},{"$f":"VLOOKUP(B110,'LOC FINAL with new Themes'!A:M,9,0)","v":0},{"$f":"VLOOKUP(B110,'LOC FINAL with new Themes'!A:M,10,0)","v":0},{"$f":"VLOOKUP(B110,'LOC FINAL with new Themes'!A:M,11,0)","v":0},{"$f":"VLOOKUP(B110,'LOC FINAL with new Themes'!A:M,12,0)","v":0},{"$f":"VLOOKUP(B110,'LOC FINAL with new Themes'!A:M,13,0)","v":0}]
["National Map National Elevation Data Set (NED)","National Map  - National Elevation Dataset (NED)",null,"National Map  - National Elevation Dataset (NED)","Elevation","DOI-USGS","Jim Mauck","lyost@usgs.gov",{"$f":"VLOOKUP(B111,'LOC FINAL with new Themes'!A:M,7,0)","v":0},{"$f":"VLOOKUP(B111,'LOC FINAL with new Themes'!A:M,8,0)","v":0},{"$f":"VLOOKUP(B111,'LOC FINAL with new Themes'!A:M,9,0)","v":0},{"$f":"VLOOKUP(B111,'LOC FINAL with new Themes'!A:M,10,0)","v":0},{"$f":"VLOOKUP(B111,'LOC FINAL with new Themes'!A:M,11,0)","v":0},{"$f":"VLOOKUP(B111,'LOC FINAL with new Themes'!A:M,12,0)","v":0},{"$f":"VLOOKUP(B111,'LOC FINAL with new Themes'!A:M,13,0)","v":0}]
["National Ocean Service (NOS) Bathymetry Warehouse (name subject to change)","National Ocean Service (NOS) Bathymetry Warehouse (name subject to change)",null,"National Ocean Service (NOS) Bathymetry Warehouse (name subject to change)","Elevation","DOC-NOAA",null,null,{"$f":"VLOOKUP(B112,'LOC FINAL with new Themes'!A:M,7,0)","v":0},{"$f":"VLOOKUP(B112,'LOC FINAL with new Themes'!A:M,8,0)","v":0},{"$f":"VLOOKUP(B112,'LOC FINAL with new Themes'!A:M,9,0)","v":0},{"$f":"VLOOKUP(B112,'LOC FINAL with new Themes'!A:M,10,0)","v":0},{"$f":"VLOOKUP(B112,'LOC FINAL with new Themes'!A:M,11,0)","v":0},{"$f":"VLOOKUP(B112,'LOC FINAL with new Themes'!A:M,12,0)","v":0},{"$f":"VLOOKUP(B112,'LOC FINAL with new Themes'!A:M,13,0)","v":"P"}]
["National Ocean Service (NOS) Hydrographic Data Base (NOSHDB)","National Ocean Service (NOS) Hydrographic Data Base (NOSHDB)",null,"National Ocean Service (NOS) Hydrographic Data Base (NOSHDB)","Elevation","DOC-NOAA","Brian Mohr","Brian.Mohr@noaa.gov",{"$f":"VLOOKUP(B113,'LOC FINAL with new Themes'!A:M,7,0)","v":"I manage several datadatabases/datasets.  They include SURDEX, our database of hydrographic survey outlines(polygons) in a MapInfo platform and  the Bathydatabase which is a collection of our BAGs or Bathymetric Attribution Grid files. "},{"$f":"VLOOKUP(B113,'LOC FINAL with new Themes'!A:M,8,0)","v":"Yes"},{"$f":"VLOOKUP(B113,'LOC FINAL with new Themes'!A:M,9,0)","v":"Yes"},{"$f":"VLOOKUP(B113,'LOC FINAL with new Themes'!A:M,10,0)","v":"archived at NGDC"},{"$f":"VLOOKUP(B113,'LOC FINAL with new Themes'!A:M,11,0)","v":"Currently these files are being prepped to be pushed into either  a Caris or ESRI database platform.  I also have a shared role in managing our Survey Tracking database called Survey Tracker.  Each is updated weekly, they are backed up by our internal IT staff"},{"$f":"VLOOKUP(B113,'LOC FINAL with new Themes'!A:M,12,0)","v":0},{"$f":"VLOOKUP(B113,'LOC FINAL with new Themes'!A:M,13,0)","v":"M "}]
["NOAA Estuarine Bathymetry","NOAA Estuarine Bathymetry",null,"NOAA Estuarine Bathymetry","Elevation","DOC-NOAA",null,null,{"$f":"VLOOKUP(B114,'LOC FINAL with new Themes'!A:M,7,0)","v":0},{"$f":"VLOOKUP(B114,'LOC FINAL with new Themes'!A:M,8,0)","v":0},{"$f":"VLOOKUP(B114,'LOC FINAL with new Themes'!A:M,9,0)","v":0},{"$f":"VLOOKUP(B114,'LOC FINAL with new Themes'!A:M,10,0)","v":0},{"$f":"VLOOKUP(B114,'LOC FINAL with new Themes'!A:M,11,0)","v":0},{"$f":"VLOOKUP(B114,'LOC FINAL with new Themes'!A:M,12,0)","v":0},{"$f":"VLOOKUP(B114,'LOC FINAL with new Themes'!A:M,13,0)","v":0}]
["SRTM (3-arc second DTEDS)","SRTM (3-arc second DTEDS)",null,"SRTM (3-arc second DTEDS)","Elevation","DOI-USGS","Dean Gesch, USGS","gesch@usgs.gov",{"$f":"VLOOKUP(B115,'LOC FINAL with new Themes'!A:M,7,0)","v":"SRTM is static; one data set; this is the POC and data manager; this is the name and maintain three complete with two physically separate on-site and one off-site"},{"$f":"VLOOKUP(B115,'LOC FINAL with new Themes'!A:M,8,0)","v":0},{"$f":"VLOOKUP(B115,'LOC FINAL with new Themes'!A:M,9,0)","v":0},{"$f":"VLOOKUP(B115,'LOC FINAL with new Themes'!A:M,10,0)","v":0},{"$f":"VLOOKUP(B115,'LOC FINAL with new Themes'!A:M,11,0)","v":0},{"$f":"VLOOKUP(B115,'LOC FINAL with new Themes'!A:M,12,0)","v":0},{"$f":"VLOOKUP(B115,'LOC FINAL with new Themes'!A:M,13,0)","v":"S"}]
["Digital Flood Insurance Rate Maps (D-FIRM)","Digital Flood Insurance Rate Maps (D-FIRM)","Digital Flood Insurance Rate Maps (DFIRM)","Digital Flood Insurance Rate Maps (DFIRM)","Elevation ","DHS-FEMA","Scott McAfee","scott.mcaffee@dhs.gov",{"$f":"VLOOKUP(B116,'LOC FINAL with new Themes'!A:M,7,0)","v":0},{"$f":"VLOOKUP(B116,'LOC FINAL with new Themes'!A:M,8,0)","v":0},{"$f":"VLOOKUP(B116,'LOC FINAL with new Themes'!A:M,9,0)","v":0},{"$f":"VLOOKUP(B116,'LOC FINAL with new Themes'!A:M,10,0)","v":0},{"$f":"VLOOKUP(B116,'LOC FINAL with new Themes'!A:M,11,0)","v":0},{"$f":"VLOOKUP(B116,'LOC FINAL with new Themes'!A:M,12,0)","v":0},{"$f":"VLOOKUP(B116,'LOC FINAL with new Themes'!A:M,13,0)","v":0}]
[null,null,"Elevation Bathymetric - Ocean, Coastal, and Great Lakes Bathymetry ","Elevation Bathymetric - Ocean, Coastal, and Great Lakes Bathymetry ","Elevation ","DOC-NOAA"]
[null,null,"National Elevation Dataset  - National Map","National Elevation Dataset  - National Map","Elevation ","DOI-USGS"]
["National Flood Hazard Layer (NFHL)","National Flood Hazard Layer (NFHL)","National Flood Hazard Layer (NFHL)","National Flood Hazard Layer (NFHL)","Elevation ","DHS-FEMA","Scott McAfee","scott.mcaffee@dhs.gov",{"$f":"VLOOKUP(B119,'LOC FINAL with new Themes'!A:M,7,0)","v":0},{"$f":"VLOOKUP(B119,'LOC FINAL with new Themes'!A:M,8,0)","v":0},{"$f":"VLOOKUP(B119,'LOC FINAL with new Themes'!A:M,9,0)","v":0},{"$f":"VLOOKUP(B119,'LOC FINAL with new Themes'!A:M,10,0)","v":0},{"$f":"VLOOKUP(B119,'LOC FINAL with new Themes'!A:M,11,0)","v":0},{"$f":"VLOOKUP(B119,'LOC FINAL with new Themes'!A:M,12,0)","v":0},{"$f":"VLOOKUP(B119,'LOC FINAL with new Themes'!A:M,13,0)","v":0}]
[{"$f":"SUBTOTAL(3,A108:A119)","v":10},{"$f":"SUBTOTAL(3,B108:B119)","v":10},{"$f":"SUBTOTAL(3,C108:C119)","v":4},{"$f":"SUBTOTAL(3,D108:D119)","v":12},"Elevation Count"]
[null,null,"Airborne Gravity",{"$f":"IF(C121=0,B121,C121)","v":"Airborne Gravity"},"Geodetic Control ","DOC-NOAA"]
[null,null,"Continuously Operating Reference Stations (CORS)","Continuously Operating Reference Stations (CORS)","Geodetic Control ","DOC-NOAA"]
[null,null,"Geoid Models","Geoid Models","Geodetic Control ","DOC-NOAA"]
["National Geologic Data Base","National Geologic Data Base","National Geodetic Survey (NGS) Datasheets","National Geodetic Survey (NGS) Datasheets","Geodetic Control ","DOI-USGS",null,null,{"$f":"VLOOKUP(B124,'LOC FINAL with new Themes'!A:M,7,0)","v":0},{"$f":"VLOOKUP(B124,'LOC FINAL with new Themes'!A:M,8,0)","v":0},{"$f":"VLOOKUP(B124,'LOC FINAL with new Themes'!A:M,9,0)","v":0},{"$f":"VLOOKUP(B124,'LOC FINAL with new Themes'!A:M,10,0)","v":0},{"$f":"VLOOKUP(B124,'LOC FINAL with new Themes'!A:M,11,0)","v":0},{"$f":"VLOOKUP(B124,'LOC FINAL with new Themes'!A:M,12,0)","v":0},{"$f":"VLOOKUP(B124,'LOC FINAL with new Themes'!A:M,13,0)","v":0}]
[null,null,"Precise Global Navigation Satellite System (GNSS) Orbits",{"$f":"IF(C125=0,B234,C125)","v":"Precise Global Navigation Satellite System (GNSS) Orbits"},"Geodetic Control ","DOC-NOAA"]
[null,null,"Terrestrial Gravity",{"$f":"IF(C126=0,B126,C126)","v":"Terrestrial Gravity"},"Geodetic Control ","DOC-NOAA"]
[{"$f":"SUBTOTAL(3,A121:A126)","v":1},{"$f":"SUBTOTAL(3,B121:B126)","v":1},{"$f":"SUBTOTAL(3,C121:C126)","v":6},{"$f":"SUBTOTAL(3,D121:D126)","v":6},"Geodetic Control  Count"]
[null,null,"Coal assessment and mapping",{"$f":"IF(C128=0,B128,C128)","v":"Coal assessment and mapping"},"Geology","DOI-USGS"]
["Coastline Data","Coastline Data","Coastline Data","Coastline Data","Geology","DOI-MMS","James Fulmer","james.s.fulmer@mms.gov",{"$f":"VLOOKUP(B129,'LOC FINAL with new Themes'!A:M,7,0)","v":"undeliverable email- neeed to identify new contact"},{"$f":"VLOOKUP(B129,'LOC FINAL with new Themes'!A:M,8,0)","v":0},{"$f":"VLOOKUP(B129,'LOC FINAL with new Themes'!A:M,9,0)","v":0},{"$f":"VLOOKUP(B129,'LOC FINAL with new Themes'!A:M,10,0)","v":0},{"$f":"VLOOKUP(B129,'LOC FINAL with new Themes'!A:M,11,0)","v":0},{"$f":"VLOOKUP(B129,'LOC FINAL with new Themes'!A:M,12,0)","v":0},{"$f":"VLOOKUP(B129,'LOC FINAL with new Themes'!A:M,13,0)","v":0}]
[null,null,"Earthquake monitoring, research, and mapping","Earthquake monitoring, research, and mapping","Geology","DOI-USGS"]
[null,null,"Geochemistry","Geochemistry","Geology","DOI-USGS"]
[null,null,"Geochronology","Geochronology","Geology","DOI-USGS"]
[null,null,"Geologic mapping","Geologic mapping","Geology","DOI-USGS"]
[null,null,"Geomagnetism","Geomagnetism","Geology","DOI-USGS"]
[null,null,"Geophysics","Geophysics","Geology","DOI-USGS"]
[null,null,"Landslide monitoring, research, and mapping","Landslide monitoring, research, and mapping","Geology","DOI-USGS"]
[null,null,"Marine geology","Marine geology","Geology","DOI-USGS"]
[null,null,"Metallic mineral assessment and mapping","Metallic mineral assessment and mapping","Geology","DOI-USGS"]
[null,null,"MMS Baseline","MMS Baseline","Geology","DOI-MMS"]
[null,null,"Non-metallic mineral assessment and mapping, onshore",{"$f":"IF(C140=0,B139,C140)","v":"Non-metallic mineral assessment and mapping, onshore"},"Geology","DOI-USGS"]
["OCS BLOCK LEASE DATA (OCS)","OCS BLOCK LEASE DATA ","OCS Active Leases",{"$f":"IF(C141=0,B141,C141)","v":"OCS Active Leases"},"Geology","DOI-MMS","James Fulmer","james.s.fulmer@mms.gov",{"$f":"VLOOKUP(B141,'LOC FINAL with new Themes'!A:M,7,0)","v":"undeliverable email- neeed to identify new contact"},{"$f":"VLOOKUP(B141,'LOC FINAL with new Themes'!A:M,8,0)","v":0},{"$f":"VLOOKUP(B141,'LOC FINAL with new Themes'!A:M,9,0)","v":0},{"$f":"VLOOKUP(B141,'LOC FINAL with new Themes'!A:M,10,0)","v":0},{"$f":"VLOOKUP(B141,'LOC FINAL with new Themes'!A:M,11,0)","v":0},{"$f":"VLOOKUP(B141,'LOC FINAL with new Themes'!A:M,12,0)","v":0},{"$f":"VLOOKUP(B141,'LOC FINAL with new Themes'!A:M,13,0)","v":0}]
[null,null,"Oil and gas assessment and mapping, onshore","Oil and gas assessment and mapping, onshore","Geology","DOI-USGS"]
[null,null,"Paleontology","Paleontology","Geology","DOI-USGS"]
[null,null,"Sand and Gravel","Sand and Gravel","Geology","DOI-MMS"]
[null,null,"Volcano monitoring, research, and mapping","Volcano monitoring, research, and mapping","Geology","DOI-USGS"]
[null,null,"Wells","Wells","Geology","DOI-MMS"]
[{"$f":"SUBTOTAL(3,A128:A146)","v":2},{"$f":"SUBTOTAL(3,B128:B146)","v":2},{"$f":"SUBTOTAL(3,C128:C146)","v":19},{"$f":"SUBTOTAL(3,D128:D146)","v":19},"Geology Count"]
["County Boundaries","County Boundaries",null,{"$f":"IF(C148=0,B148,C148)","v":"County Boundaries"},"Governmental Units",null,null,null,{"$f":"VLOOKUP(B148,'LOC FINAL with new Themes'!A:M,7,0)","v":0},{"$f":"VLOOKUP(B148,'LOC FINAL with new Themes'!A:M,8,0)","v":0},{"$f":"VLOOKUP(B148,'LOC FINAL with new Themes'!A:M,9,0)","v":0},{"$f":"VLOOKUP(B148,'LOC FINAL with new Themes'!A:M,10,0)","v":0},{"$f":"VLOOKUP(B148,'LOC FINAL with new Themes'!A:M,11,0)","v":0},{"$f":"VLOOKUP(B148,'LOC FINAL with new Themes'!A:M,12,0)","v":0},{"$f":"VLOOKUP(B148,'LOC FINAL with new Themes'!A:M,13,0)","v":0}]
[null,"Place and MCD Boundaries",null,"Place and MCD Boundaries","Governmental Units",null,null,null,{"$f":"VLOOKUP(B149,'LOC FINAL with new Themes'!A:M,7,0)","v":0},{"$f":"VLOOKUP(B149,'LOC FINAL with new Themes'!A:M,8,0)","v":0},{"$f":"VLOOKUP(B149,'LOC FINAL with new Themes'!A:M,9,0)","v":0},{"$f":"VLOOKUP(B149,'LOC FINAL with new Themes'!A:M,10,0)","v":0},{"$f":"VLOOKUP(B149,'LOC FINAL with new Themes'!A:M,11,0)","v":0},{"$f":"VLOOKUP(B149,'LOC FINAL with new Themes'!A:M,12,0)","v":0},{"$f":"VLOOKUP(B149,'LOC FINAL with new Themes'!A:M,13,0)","v":0}]
[null,"Alaska Native Regional Corporation (2010 Census)","Alaska Native Regional Corporation (2010 Census)","Alaska Native Regional Corporation (2010 Census)","Governmental Units ","DOC-Census","Jennifer Holland","Jennifer.L.Holland@census.gov",{"$f":"VLOOKUP(B150,'LOC FINAL with new Themes'!A:M,7,0)","v":0},{"$f":"VLOOKUP(B150,'LOC FINAL with new Themes'!A:M,8,0)","v":0},{"$f":"VLOOKUP(B150,'LOC FINAL with new Themes'!A:M,9,0)","v":0},{"$f":"VLOOKUP(B150,'LOC FINAL with new Themes'!A:M,10,0)","v":0},{"$f":"VLOOKUP(B150,'LOC FINAL with new Themes'!A:M,11,0)","v":0},{"$f":"VLOOKUP(B150,'LOC FINAL with new Themes'!A:M,12,0)","v":0},{"$f":"VLOOKUP(B150,'LOC FINAL with new Themes'!A:M,13,0)","v":0}]
[null,"Alaska Native Regional Corporation (Census 2000)","Alaska Native Regional Corporation (Census 2000)","Alaska Native Regional Corporation (Census 2000)","Governmental Units ","DOC-Census","Jennifer Holland","Jennifer.L.Holland@census.gov",{"$f":"VLOOKUP(B151,'LOC FINAL with new Themes'!A:M,7,0)","v":0},{"$f":"VLOOKUP(B151,'LOC FINAL with new Themes'!A:M,8,0)","v":0},{"$f":"VLOOKUP(B151,'LOC FINAL with new Themes'!A:M,9,0)","v":0},{"$f":"VLOOKUP(B151,'LOC FINAL with new Themes'!A:M,10,0)","v":0},{"$f":"VLOOKUP(B151,'LOC FINAL with new Themes'!A:M,11,0)","v":0},{"$f":"VLOOKUP(B151,'LOC FINAL with new Themes'!A:M,12,0)","v":0},{"$f":"VLOOKUP(B151,'LOC FINAL with new Themes'!A:M,13,0)","v":0}]
[null,"American Indian Tribal Subdivision (2010 Census)","American Indian Tribal Subdivision (2010 Census)","American Indian Tribal Subdivision (2010 Census)","Governmental Units ","DOC-Census","Jennifer Holland","Jennifer.L.Holland@census.gov",{"$f":"VLOOKUP(B152,'LOC FINAL with new Themes'!A:M,7,0)","v":0},{"$f":"VLOOKUP(B152,'LOC FINAL with new Themes'!A:M,8,0)","v":0},{"$f":"VLOOKUP(B152,'LOC FINAL with new Themes'!A:M,9,0)","v":0},{"$f":"VLOOKUP(B152,'LOC FINAL with new Themes'!A:M,10,0)","v":0},{"$f":"VLOOKUP(B152,'LOC FINAL with new Themes'!A:M,11,0)","v":0},{"$f":"VLOOKUP(B152,'LOC FINAL with new Themes'!A:M,12,0)","v":0},{"$f":"VLOOKUP(B152,'LOC FINAL with new Themes'!A:M,13,0)","v":0}]
[null,"American Indian Tribal Subdivision (Census 2000)","American Indian Tribal Subdivision (Census 2000)","American Indian Tribal Subdivision (Census 2000)","Governmental Units ","DOC-Census","Jennifer Holland","Jennifer.L.Holland@census.gov",{"$f":"VLOOKUP(B153,'LOC FINAL with new Themes'!A:M,7,0)","v":0},{"$f":"VLOOKUP(B153,'LOC FINAL with new Themes'!A:M,8,0)","v":0},{"$f":"VLOOKUP(B153,'LOC FINAL with new Themes'!A:M,9,0)","v":0},{"$f":"VLOOKUP(B153,'LOC FINAL with new Themes'!A:M,10,0)","v":0},{"$f":"VLOOKUP(B153,'LOC FINAL with new Themes'!A:M,11,0)","v":0},{"$f":"VLOOKUP(B153,'LOC FINAL with new Themes'!A:M,12,0)","v":0},{"$f":"VLOOKUP(B153,'LOC FINAL with new Themes'!A:M,13,0)","v":0}]
[null,"American Indian/Alaska Native/Native Hawaiian Area (2000 Census)","American Indian/Alaska Native/Native Hawaiian Area (2000 Census)","American Indian/Alaska Native/Native Hawaiian Area (2000 Census)","Governmental Units ","DOC-Census","Jennifer Holland","Jennifer.L.Holland@census.gov",{"$f":"VLOOKUP(B154,'LOC FINAL with new Themes'!A:M,7,0)","v":0},{"$f":"VLOOKUP(B154,'LOC FINAL with new Themes'!A:M,8,0)","v":0},{"$f":"VLOOKUP(B154,'LOC FINAL with new Themes'!A:M,9,0)","v":0},{"$f":"VLOOKUP(B154,'LOC FINAL with new Themes'!A:M,10,0)","v":0},{"$f":"VLOOKUP(B154,'LOC FINAL with new Themes'!A:M,11,0)","v":0},{"$f":"VLOOKUP(B154,'LOC FINAL with new Themes'!A:M,12,0)","v":0},{"$f":"VLOOKUP(B154,'LOC FINAL with new Themes'!A:M,13,0)","v":0}]
[null,"American Indian/Alaska Native/Native Hawaiian Area (2010 Census)","American Indian/Alaska Native/Native Hawaiian Area (2010 Census)","American Indian/Alaska Native/Native Hawaiian Area (2010 Census)","Governmental Units ","DOC-Census","Jennifer Holland","Jennifer.L.Holland@census.gov",{"$f":"VLOOKUP(B155,'LOC FINAL with new Themes'!A:M,7,0)","v":0},{"$f":"VLOOKUP(B155,'LOC FINAL with new Themes'!A:M,8,0)","v":0},{"$f":"VLOOKUP(B155,'LOC FINAL with new Themes'!A:M,9,0)","v":0},{"$f":"VLOOKUP(B155,'LOC FINAL with new Themes'!A:M,10,0)","v":0},{"$f":"VLOOKUP(B155,'LOC FINAL with new Themes'!A:M,11,0)","v":0},{"$f":"VLOOKUP(B155,'LOC FINAL with new Themes'!A:M,12,0)","v":0},{"$f":"VLOOKUP(B155,'LOC FINAL with new Themes'!A:M,13,0)","v":0}]
[null,"Combined New England City and Town Area (2010 Census)","Combined New England City and Town Area (2010 Census)","Combined New England City and Town Area (2010 Census)","Governmental Units ","DOC-Census","Jennifer Holland","Jennifer.L.Holland@census.gov",{"$f":"VLOOKUP(B156,'LOC FINAL with new Themes'!A:M,7,0)","v":0},{"$f":"VLOOKUP(B156,'LOC FINAL with new Themes'!A:M,8,0)","v":0},{"$f":"VLOOKUP(B156,'LOC FINAL with new Themes'!A:M,9,0)","v":0},{"$f":"VLOOKUP(B156,'LOC FINAL with new Themes'!A:M,10,0)","v":0},{"$f":"VLOOKUP(B156,'LOC FINAL with new Themes'!A:M,11,0)","v":0},{"$f":"VLOOKUP(B156,'LOC FINAL with new Themes'!A:M,12,0)","v":0},{"$f":"VLOOKUP(B156,'LOC FINAL with new Themes'!A:M,13,0)","v":0}]
["Congressional District Boundaries","Congressional District (108th)","Congressional District (108th)","Congressional District (108th)","Governmental Units ","DOC-Census","Jennifer Holland","Jennifer.L.Holland@census.gov",{"$f":"VLOOKUP(B157,'LOC FINAL with new Themes'!A:M,7,0)","v":0},{"$f":"VLOOKUP(B157,'LOC FINAL with new Themes'!A:M,8,0)","v":0},{"$f":"VLOOKUP(B157,'LOC FINAL with new Themes'!A:M,9,0)","v":0},{"$f":"VLOOKUP(B157,'LOC FINAL with new Themes'!A:M,10,0)","v":0},{"$f":"VLOOKUP(B157,'LOC FINAL with new Themes'!A:M,11,0)","v":0},{"$f":"VLOOKUP(B157,'LOC FINAL with new Themes'!A:M,12,0)","v":0},{"$f":"VLOOKUP(B157,'LOC FINAL with new Themes'!A:M,13,0)","v":0}]
[null,"Congressional District (111th)","Congressional District (111th)","Congressional District (111th)","Governmental Units ","DOC-Census","Jennifer Holland","Jennifer.L.Holland@census.gov",{"$f":"VLOOKUP(B158,'LOC FINAL with new Themes'!A:M,7,0)","v":0},{"$f":"VLOOKUP(B158,'LOC FINAL with new Themes'!A:M,8,0)","v":0},{"$f":"VLOOKUP(B158,'LOC FINAL with new Themes'!A:M,9,0)","v":0},{"$f":"VLOOKUP(B158,'LOC FINAL with new Themes'!A:M,10,0)","v":0},{"$f":"VLOOKUP(B158,'LOC FINAL with new Themes'!A:M,11,0)","v":0},{"$f":"VLOOKUP(B158,'LOC FINAL with new Themes'!A:M,12,0)","v":0},{"$f":"VLOOKUP(B158,'LOC FINAL with new Themes'!A:M,13,0)","v":0}]
[null,"Consolidated City (2010 Census)","Consolidated City (2010 Census)","Consolidated City (2010 Census)","Governmental Units ","DOC-Census","Jennifer Holland","Jennifer.L.Holland@census.gov",{"$f":"VLOOKUP(B159,'LOC FINAL with new Themes'!A:M,7,0)","v":0},{"$f":"VLOOKUP(B159,'LOC FINAL with new Themes'!A:M,8,0)","v":0},{"$f":"VLOOKUP(B159,'LOC FINAL with new Themes'!A:M,9,0)","v":0},{"$f":"VLOOKUP(B159,'LOC FINAL with new Themes'!A:M,10,0)","v":0},{"$f":"VLOOKUP(B159,'LOC FINAL with new Themes'!A:M,11,0)","v":0},{"$f":"VLOOKUP(B159,'LOC FINAL with new Themes'!A:M,12,0)","v":0},{"$f":"VLOOKUP(B159,'LOC FINAL with new Themes'!A:M,13,0)","v":0}]
[null,"Consolidated City (Census 2000)","Consolidated City (Census 2000)","Consolidated City (Census 2000)","Governmental Units ","DOC-Census","Jennifer Holland","Jennifer.L.Holland@census.gov",{"$f":"VLOOKUP(B160,'LOC FINAL with new Themes'!A:M,7,0)","v":0},{"$f":"VLOOKUP(B160,'LOC FINAL with new Themes'!A:M,8,0)","v":0},{"$f":"VLOOKUP(B160,'LOC FINAL with new Themes'!A:M,9,0)","v":0},{"$f":"VLOOKUP(B160,'LOC FINAL with new Themes'!A:M,10,0)","v":0},{"$f":"VLOOKUP(B160,'LOC FINAL with new Themes'!A:M,11,0)","v":0},{"$f":"VLOOKUP(B160,'LOC FINAL with new Themes'!A:M,12,0)","v":0},{"$f":"VLOOKUP(B160,'LOC FINAL with new Themes'!A:M,13,0)","v":0}]
[null,"County and Equivalent (2010 Census)","County and Equivalent (2010 Census)","County and Equivalent (2010 Census)","Governmental Units ","DOC-Census","Jennifer Holland","Jennifer.L.Holland@census.gov",{"$f":"VLOOKUP(B161,'LOC FINAL with new Themes'!A:M,7,0)","v":0},{"$f":"VLOOKUP(B161,'LOC FINAL with new Themes'!A:M,8,0)","v":0},{"$f":"VLOOKUP(B161,'LOC FINAL with new Themes'!A:M,9,0)","v":0},{"$f":"VLOOKUP(B161,'LOC FINAL with new Themes'!A:M,10,0)","v":0},{"$f":"VLOOKUP(B161,'LOC FINAL with new Themes'!A:M,11,0)","v":0},{"$f":"VLOOKUP(B161,'LOC FINAL with new Themes'!A:M,12,0)","v":0},{"$f":"VLOOKUP(B161,'LOC FINAL with new Themes'!A:M,13,0)","v":0}]
[null,"County and Equivalent (Census 2000)","County and Equivalent (Census 2000)","County and Equivalent (Census 2000)","Governmental Units ","DOC-Census","Jennifer Holland","Jennifer.L.Holland@census.gov",{"$f":"VLOOKUP(B162,'LOC FINAL with new Themes'!A:M,7,0)","v":0},{"$f":"VLOOKUP(B162,'LOC FINAL with new Themes'!A:M,8,0)","v":0},{"$f":"VLOOKUP(B162,'LOC FINAL with new Themes'!A:M,9,0)","v":0},{"$f":"VLOOKUP(B162,'LOC FINAL with new Themes'!A:M,10,0)","v":0},{"$f":"VLOOKUP(B162,'LOC FINAL with new Themes'!A:M,11,0)","v":0},{"$f":"VLOOKUP(B162,'LOC FINAL with new Themes'!A:M,12,0)","v":0},{"$f":"VLOOKUP(B162,'LOC FINAL with new Themes'!A:M,13,0)","v":0}]
[null,"County Subdivision (2010 Census)","County Subdivision (2010 Census)","County Subdivision (2010 Census)","Governmental Units ","DOC-Census","Jennifer Holland","Jennifer.L.Holland@census.gov",{"$f":"VLOOKUP(B163,'LOC FINAL with new Themes'!A:M,7,0)","v":0},{"$f":"VLOOKUP(B163,'LOC FINAL with new Themes'!A:M,8,0)","v":0},{"$f":"VLOOKUP(B163,'LOC FINAL with new Themes'!A:M,9,0)","v":0},{"$f":"VLOOKUP(B163,'LOC FINAL with new Themes'!A:M,10,0)","v":0},{"$f":"VLOOKUP(B163,'LOC FINAL with new Themes'!A:M,11,0)","v":0},{"$f":"VLOOKUP(B163,'LOC FINAL with new Themes'!A:M,12,0)","v":0},{"$f":"VLOOKUP(B163,'LOC FINAL with new Themes'!A:M,13,0)","v":0}]
[null,"County Subdivision (Census 2000)","County Subdivision (Census 2000)","County Subdivision (Census 2000)","Governmental Units ","DOC-Census","Jennifer Holland","Jennifer.L.Holland@census.gov",{"$f":"VLOOKUP(B164,'LOC FINAL with new Themes'!A:M,7,0)","v":0},{"$f":"VLOOKUP(B164,'LOC FINAL with new Themes'!A:M,8,0)","v":0},{"$f":"VLOOKUP(B164,'LOC FINAL with new Themes'!A:M,9,0)","v":0},{"$f":"VLOOKUP(B164,'LOC FINAL with new Themes'!A:M,10,0)","v":0},{"$f":"VLOOKUP(B164,'LOC FINAL with new Themes'!A:M,11,0)","v":0},{"$f":"VLOOKUP(B164,'LOC FINAL with new Themes'!A:M,12,0)","v":0},{"$f":"VLOOKUP(B164,'LOC FINAL with new Themes'!A:M,13,0)","v":0}]
["Estuarine and Marine Reserves","Estuarine and Marine Reserves",null,"Estuarine and Marine Reserves","Governmental Units ","DOC-NOAA","Heather Sagar","Heather.Sagar@noaa.gov",{"$f":"VLOOKUP(B165,'LOC FINAL with new Themes'!A:M,7,0)","v":0},{"$f":"VLOOKUP(B165,'LOC FINAL with new Themes'!A:M,8,0)","v":0},{"$f":"VLOOKUP(B165,'LOC FINAL with new Themes'!A:M,9,0)","v":0},{"$f":"VLOOKUP(B165,'LOC FINAL with new Themes'!A:M,10,0)","v":0},{"$f":"VLOOKUP(B165,'LOC FINAL with new Themes'!A:M,11,0)","v":0},{"$f":"VLOOKUP(B165,'LOC FINAL with new Themes'!A:M,12,0)","v":0},{"$f":"VLOOKUP(B165,'LOC FINAL with new Themes'!A:M,13,0)","v":0}]
["Fisheries Closure and Habitat Areas","Fisheries Closure and Habitat Areas",null,"Fisheries Closure and Habitat Areas","Governmental Units ","DOC-NOAA","Heather Sagar","Heather.Sagar@noaa.gov",{"$f":"VLOOKUP(B166,'LOC FINAL with new Themes'!A:M,7,0)","v":0},{"$f":"VLOOKUP(B166,'LOC FINAL with new Themes'!A:M,8,0)","v":0},{"$f":"VLOOKUP(B166,'LOC FINAL with new Themes'!A:M,9,0)","v":0},{"$f":"VLOOKUP(B166,'LOC FINAL with new Themes'!A:M,10,0)","v":0},{"$f":"VLOOKUP(B166,'LOC FINAL with new Themes'!A:M,11,0)","v":0},{"$f":"VLOOKUP(B166,'LOC FINAL with new Themes'!A:M,12,0)","v":0},{"$f":"VLOOKUP(B166,'LOC FINAL with new Themes'!A:M,13,0)","v":0}]
[null,"Metropolitan Division (2010 Census)","Metropolitan Division (2010 Census)","Metropolitan Division (2010 Census)","Governmental Units ","DOC-Census","Jennifer Holland","Jennifer.L.Holland@census.gov",{"$f":"VLOOKUP(B167,'LOC FINAL with new Themes'!A:M,7,0)","v":0},{"$f":"VLOOKUP(B167,'LOC FINAL with new Themes'!A:M,8,0)","v":0},{"$f":"VLOOKUP(B167,'LOC FINAL with new Themes'!A:M,9,0)","v":0},{"$f":"VLOOKUP(B167,'LOC FINAL with new Themes'!A:M,10,0)","v":0},{"$f":"VLOOKUP(B167,'LOC FINAL with new Themes'!A:M,11,0)","v":0},{"$f":"VLOOKUP(B167,'LOC FINAL with new Themes'!A:M,12,0)","v":0},{"$f":"VLOOKUP(B167,'LOC FINAL with new Themes'!A:M,13,0)","v":0}]
[null,"Metropolitan Division (2010 Census)","Metropolitan Division (2010 Census)","Metropolitan Division (2010 Census)","Governmental Units ","DOC-Census","Jennifer Holland","Jennifer.L.Holland@census.gov",{"$f":"VLOOKUP(B168,'LOC FINAL with new Themes'!A:M,7,0)","v":0},{"$f":"VLOOKUP(B168,'LOC FINAL with new Themes'!A:M,8,0)","v":0},{"$f":"VLOOKUP(B168,'LOC FINAL with new Themes'!A:M,9,0)","v":0},{"$f":"VLOOKUP(B168,'LOC FINAL with new Themes'!A:M,10,0)","v":0},{"$f":"VLOOKUP(B168,'LOC FINAL with new Themes'!A:M,11,0)","v":0},{"$f":"VLOOKUP(B168,'LOC FINAL with new Themes'!A:M,12,0)","v":0},{"$f":"VLOOKUP(B168,'LOC FINAL with new Themes'!A:M,13,0)","v":0}]
[null,"New England City and Town Area (2010 Census)","New England City and Town Area (2010 Census)","New England City and Town Area (2010 Census)","Governmental Units ","DOC-Census","Jennifer Holland","Jennifer.L.Holland@census.gov",{"$f":"VLOOKUP(B169,'LOC FINAL with new Themes'!A:M,7,0)","v":0},{"$f":"VLOOKUP(B169,'LOC FINAL with new Themes'!A:M,8,0)","v":0},{"$f":"VLOOKUP(B169,'LOC FINAL with new Themes'!A:M,9,0)","v":0},{"$f":"VLOOKUP(B169,'LOC FINAL with new Themes'!A:M,10,0)","v":0},{"$f":"VLOOKUP(B169,'LOC FINAL with new Themes'!A:M,11,0)","v":0},{"$f":"VLOOKUP(B169,'LOC FINAL with new Themes'!A:M,12,0)","v":0},{"$f":"VLOOKUP(B169,'LOC FINAL with new Themes'!A:M,13,0)","v":0}]
[null,"New England City and Town Area Division (2010 Census)","New England City and Town Area Division (2010 Census)","New England City and Town Area Division (2010 Census)","Governmental Units ","DOC-Census","Jennifer Holland","Jennifer.L.Holland@census.gov",{"$f":"VLOOKUP(B170,'LOC FINAL with new Themes'!A:M,7,0)","v":0},{"$f":"VLOOKUP(B170,'LOC FINAL with new Themes'!A:M,8,0)","v":0},{"$f":"VLOOKUP(B170,'LOC FINAL with new Themes'!A:M,9,0)","v":0},{"$f":"VLOOKUP(B170,'LOC FINAL with new Themes'!A:M,10,0)","v":0},{"$f":"VLOOKUP(B170,'LOC FINAL with new Themes'!A:M,11,0)","v":0},{"$f":"VLOOKUP(B170,'LOC FINAL with new Themes'!A:M,12,0)","v":0},{"$f":"VLOOKUP(B170,'LOC FINAL with new Themes'!A:M,13,0)","v":0}]
["Place and MCD Boundaries","Place (2010 Census)","Place (2010 Census)","Place (2010 Census)","Governmental Units ","DOC-Census","Jennifer Holland","Jennifer.L.Holland@census.gov",{"$f":"VLOOKUP(B171,'LOC FINAL with new Themes'!A:M,7,0)","v":0},{"$f":"VLOOKUP(B171,'LOC FINAL with new Themes'!A:M,8,0)","v":0},{"$f":"VLOOKUP(B171,'LOC FINAL with new Themes'!A:M,9,0)","v":0},{"$f":"VLOOKUP(B171,'LOC FINAL with new Themes'!A:M,10,0)","v":0},{"$f":"VLOOKUP(B171,'LOC FINAL with new Themes'!A:M,11,0)","v":0},{"$f":"VLOOKUP(B171,'LOC FINAL with new Themes'!A:M,12,0)","v":0},{"$f":"VLOOKUP(B171,'LOC FINAL with new Themes'!A:M,13,0)","v":0}]
[null,"Place (Census 2000)","Place (Census 2000)","Place (Census 2000)","Governmental Units ","DOC-Census","Jennifer Holland","Jennifer.L.Holland@census.gov",{"$f":"VLOOKUP(B172,'LOC FINAL with new Themes'!A:M,7,0)","v":0},{"$f":"VLOOKUP(B172,'LOC FINAL with new Themes'!A:M,8,0)","v":0},{"$f":"VLOOKUP(B172,'LOC FINAL with new Themes'!A:M,9,0)","v":0},{"$f":"VLOOKUP(B172,'LOC FINAL with new Themes'!A:M,10,0)","v":0},{"$f":"VLOOKUP(B172,'LOC FINAL with new Themes'!A:M,11,0)","v":0},{"$f":"VLOOKUP(B172,'LOC FINAL with new Themes'!A:M,12,0)","v":0},{"$f":"VLOOKUP(B172,'LOC FINAL with new Themes'!A:M,13,0)","v":0}]
["Sanctuaries","Sanctuaries",null,"Sanctuaries","Governmental Units ","DOC-NOAA","Christine Taylor","Christine.Taylor@noaa.gov",{"$f":"VLOOKUP(B173,'LOC FINAL with new Themes'!A:M,7,0)","v":0},{"$f":"VLOOKUP(B173,'LOC FINAL with new Themes'!A:M,8,0)","v":0},{"$f":"VLOOKUP(B173,'LOC FINAL with new Themes'!A:M,9,0)","v":0},{"$f":"VLOOKUP(B173,'LOC FINAL with new Themes'!A:M,10,0)","v":0},{"$f":"VLOOKUP(B173,'LOC FINAL with new Themes'!A:M,11,0)","v":0},{"$f":"VLOOKUP(B173,'LOC FINAL with new Themes'!A:M,12,0)","v":0},{"$f":"VLOOKUP(B173,'LOC FINAL with new Themes'!A:M,13,0)","v":0}]
["State(+ Territories) Boundaries","State and Equivalent  (2010 Census)","State and Equivalent  (2010 Census)","State and Equivalent  (2010 Census)","Governmental Units ","DOC-Census","Jennifer Holland","Jennifer.L.Holland@census.gov",{"$f":"VLOOKUP(B174,'LOC FINAL with new Themes'!A:M,7,0)","v":0},{"$f":"VLOOKUP(B174,'LOC FINAL with new Themes'!A:M,8,0)","v":0},{"$f":"VLOOKUP(B174,'LOC FINAL with new Themes'!A:M,9,0)","v":0},{"$f":"VLOOKUP(B174,'LOC FINAL with new Themes'!A:M,10,0)","v":0},{"$f":"VLOOKUP(B174,'LOC FINAL with new Themes'!A:M,11,0)","v":0},{"$f":"VLOOKUP(B174,'LOC FINAL with new Themes'!A:M,12,0)","v":0},{"$f":"VLOOKUP(B174,'LOC FINAL with new Themes'!A:M,13,0)","v":0}]
[null,"State and Equivalent  (Census 2000)","State and Equivalent  (Census 2000)","State and Equivalent  (Census 2000)","Governmental Units ","DOC-Census","Jennifer Holland","Jennifer.L.Holland@census.gov",{"$f":"VLOOKUP(B175,'LOC FINAL with new Themes'!A:M,7,0)","v":0},{"$f":"VLOOKUP(B175,'LOC FINAL with new Themes'!A:M,8,0)","v":0},{"$f":"VLOOKUP(B175,'LOC FINAL with new Themes'!A:M,9,0)","v":0},{"$f":"VLOOKUP(B175,'LOC FINAL with new Themes'!A:M,10,0)","v":0},{"$f":"VLOOKUP(B175,'LOC FINAL with new Themes'!A:M,11,0)","v":0},{"$f":"VLOOKUP(B175,'LOC FINAL with new Themes'!A:M,12,0)","v":0},{"$f":"VLOOKUP(B175,'LOC FINAL with new Themes'!A:M,13,0)","v":0}]
[null,"State Legislative District (Lower Chamber) (2010 Census)","State Legislative District (Lower Chamber) (2010 Census)","State Legislative District (Lower Chamber) (2010 Census)","Governmental Units ","DOC-Census","Jennifer Holland","Jennifer.L.Holland@census.gov",{"$f":"VLOOKUP(B176,'LOC FINAL with new Themes'!A:M,7,0)","v":0},{"$f":"VLOOKUP(B176,'LOC FINAL with new Themes'!A:M,8,0)","v":0},{"$f":"VLOOKUP(B176,'LOC FINAL with new Themes'!A:M,9,0)","v":0},{"$f":"VLOOKUP(B176,'LOC FINAL with new Themes'!A:M,10,0)","v":0},{"$f":"VLOOKUP(B176,'LOC FINAL with new Themes'!A:M,11,0)","v":0},{"$f":"VLOOKUP(B176,'LOC FINAL with new Themes'!A:M,12,0)","v":0},{"$f":"VLOOKUP(B176,'LOC FINAL with new Themes'!A:M,13,0)","v":0}]
[null,"State Legislative District (Lower Chamber) (Census 2000)","State Legislative District (Lower Chamber) (Census 2000)","State Legislative District (Lower Chamber) (Census 2000)","Governmental Units ","DOC-Census","Jennifer Holland","Jennifer.L.Holland@census.gov",{"$f":"VLOOKUP(B177,'LOC FINAL with new Themes'!A:M,7,0)","v":0},{"$f":"VLOOKUP(B177,'LOC FINAL with new Themes'!A:M,8,0)","v":0},{"$f":"VLOOKUP(B177,'LOC FINAL with new Themes'!A:M,9,0)","v":0},{"$f":"VLOOKUP(B177,'LOC FINAL with new Themes'!A:M,10,0)","v":0},{"$f":"VLOOKUP(B177,'LOC FINAL with new Themes'!A:M,11,0)","v":0},{"$f":"VLOOKUP(B177,'LOC FINAL with new Themes'!A:M,12,0)","v":0},{"$f":"VLOOKUP(B177,'LOC FINAL with new Themes'!A:M,13,0)","v":0}]
[null,"State Legislative District (Upper Chamber) (2010 Census)","State Legislative District (Upper Chamber) (2010 Census)","State Legislative District (Upper Chamber) (2010 Census)","Governmental Units ","DOC-Census","Jennifer Holland","Jennifer.L.Holland@census.gov",{"$f":"VLOOKUP(B178,'LOC FINAL with new Themes'!A:M,7,0)","v":0},{"$f":"VLOOKUP(B178,'LOC FINAL with new Themes'!A:M,8,0)","v":0},{"$f":"VLOOKUP(B178,'LOC FINAL with new Themes'!A:M,9,0)","v":0},{"$f":"VLOOKUP(B178,'LOC FINAL with new Themes'!A:M,10,0)","v":0},{"$f":"VLOOKUP(B178,'LOC FINAL with new Themes'!A:M,11,0)","v":0},{"$f":"VLOOKUP(B178,'LOC FINAL with new Themes'!A:M,12,0)","v":0},{"$f":"VLOOKUP(B178,'LOC FINAL with new Themes'!A:M,13,0)","v":0}]
[null,"State Legislative District (Upper Chamber) (Census 2000)","State Legislative District (Upper Chamber) (Census 2000)","State Legislative District (Upper Chamber) (Census 2000)","Governmental Units ","DOC-Census","Jennifer Holland","Jennifer.L.Holland@census.gov",{"$f":"VLOOKUP(B179,'LOC FINAL with new Themes'!A:M,7,0)","v":0},{"$f":"VLOOKUP(B179,'LOC FINAL with new Themes'!A:M,8,0)","v":0},{"$f":"VLOOKUP(B179,'LOC FINAL with new Themes'!A:M,9,0)","v":0},{"$f":"VLOOKUP(B179,'LOC FINAL with new Themes'!A:M,10,0)","v":0},{"$f":"VLOOKUP(B179,'LOC FINAL with new Themes'!A:M,11,0)","v":0},{"$f":"VLOOKUP(B179,'LOC FINAL with new Themes'!A:M,12,0)","v":0},{"$f":"VLOOKUP(B179,'LOC FINAL with new Themes'!A:M,13,0)","v":0}]
[null,"Subbarrio (2010 Census)","Subbarrio (2010 Census)","Subbarrio (2010 Census)","Governmental Units ","DOC-Census","Jennifer Holland","Jennifer.L.Holland@census.gov",{"$f":"VLOOKUP(B180,'LOC FINAL with new Themes'!A:M,7,0)","v":0},{"$f":"VLOOKUP(B180,'LOC FINAL with new Themes'!A:M,8,0)","v":0},{"$f":"VLOOKUP(B180,'LOC FINAL with new Themes'!A:M,9,0)","v":0},{"$f":"VLOOKUP(B180,'LOC FINAL with new Themes'!A:M,10,0)","v":0},{"$f":"VLOOKUP(B180,'LOC FINAL with new Themes'!A:M,11,0)","v":0},{"$f":"VLOOKUP(B180,'LOC FINAL with new Themes'!A:M,12,0)","v":0},{"$f":"VLOOKUP(B180,'LOC FINAL with new Themes'!A:M,13,0)","v":0}]
[null,"Subbarrio (Census 2000)","Subbarrio (Census 2000)","Subbarrio (Census 2000)","Governmental Units ","DOC-Census","Jennifer Holland","Jennifer.L.Holland@census.gov",{"$f":"VLOOKUP(B181,'LOC FINAL with new Themes'!A:M,7,0)","v":0},{"$f":"VLOOKUP(B181,'LOC FINAL with new Themes'!A:M,8,0)","v":0},{"$f":"VLOOKUP(B181,'LOC FINAL with new Themes'!A:M,9,0)","v":0},{"$f":"VLOOKUP(B181,'LOC FINAL with new Themes'!A:M,10,0)","v":0},{"$f":"VLOOKUP(B181,'LOC FINAL with new Themes'!A:M,11,0)","v":0},{"$f":"VLOOKUP(B181,'LOC FINAL with new Themes'!A:M,12,0)","v":0},{"$f":"VLOOKUP(B181,'LOC FINAL with new Themes'!A:M,13,0)","v":0}]
[null,"Urban Area (Corrected Census 2000)","Urban Area (Corrected Census 2000)","Urban Area (Corrected Census 2000)","Governmental Units ","DOC-Census","Jennifer Holland","Jennifer.L.Holland@census.gov",{"$f":"VLOOKUP(B182,'LOC FINAL with new Themes'!A:M,7,0)","v":0},{"$f":"VLOOKUP(B182,'LOC FINAL with new Themes'!A:M,8,0)","v":0},{"$f":"VLOOKUP(B182,'LOC FINAL with new Themes'!A:M,9,0)","v":0},{"$f":"VLOOKUP(B182,'LOC FINAL with new Themes'!A:M,10,0)","v":0},{"$f":"VLOOKUP(B182,'LOC FINAL with new Themes'!A:M,11,0)","v":0},{"$f":"VLOOKUP(B182,'LOC FINAL with new Themes'!A:M,12,0)","v":0},{"$f":"VLOOKUP(B182,'LOC FINAL with new Themes'!A:M,13,0)","v":0}]
[{"$f":"SUBTOTAL(3,A148:A182)","v":7},{"$f":"SUBTOTAL(3,B148:B182)","v":35},{"$f":"SUBTOTAL(3,C148:C182)","v":30},{"$f":"SUBTOTAL(3,D148:D182)","v":35},"Governmental Units Count"]
["133 Urban Areas imagery program data","133 Urban Areas imagery program data",null,{"$f":"IF(C184=0,B184,C184)","v":"133 Urban Areas imagery program data"},"Imagery ","DOD-NGA","William Nellist","William.E.Nellist@nga.mil",{"$f":"VLOOKUP(B184,'LOC FINAL with new Themes'!A:M,7,0)","v":0},{"$f":"VLOOKUP(B184,'LOC FINAL with new Themes'!A:M,8,0)","v":0},{"$f":"VLOOKUP(B184,'LOC FINAL with new Themes'!A:M,9,0)","v":0},{"$f":"VLOOKUP(B184,'LOC FINAL with new Themes'!A:M,10,0)","v":0},{"$f":"VLOOKUP(B184,'LOC FINAL with new Themes'!A:M,11,0)","v":0},{"$f":"VLOOKUP(B184,'LOC FINAL with new Themes'!A:M,12,0)","v":0},{"$f":"VLOOKUP(B184,'LOC FINAL with new Themes'!A:M,13,0)","v":0}]
[null,"134 Urban Areas imagery program data",null,"134 Urban Areas imagery program data","Imagery ","DOI-USGS","George Lee","gylee@usgs.gov",{"$f":"VLOOKUP(B185,'LOC FINAL with new Themes'!A:M,7,0)","v":0},{"$f":"VLOOKUP(B185,'LOC FINAL with new Themes'!A:M,8,0)","v":0},{"$f":"VLOOKUP(B185,'LOC FINAL with new Themes'!A:M,9,0)","v":0},{"$f":"VLOOKUP(B185,'LOC FINAL with new Themes'!A:M,10,0)","v":0},{"$f":"VLOOKUP(B185,'LOC FINAL with new Themes'!A:M,11,0)","v":0},{"$f":"VLOOKUP(B185,'LOC FINAL with new Themes'!A:M,12,0)","v":0},{"$f":"VLOOKUP(B185,'LOC FINAL with new Themes'!A:M,13,0)","v":0}]
["ADS40 Hurricane Response 7.5' Quadrangle Mosaics","ADS40 Hurricane Response 7.5' Quadrangle Mosaics",null,"ADS40 Hurricane Response 7.5' Quadrangle Mosaics","Imagery ","DOI-USGS","Jim Mauck","jmauck@usgs.gov",{"$f":"VLOOKUP(B186,'LOC FINAL with new Themes'!A:M,7,0)","v":0},{"$f":"VLOOKUP(B186,'LOC FINAL with new Themes'!A:M,8,0)","v":0},{"$f":"VLOOKUP(B186,'LOC FINAL with new Themes'!A:M,9,0)","v":0},{"$f":"VLOOKUP(B186,'LOC FINAL with new Themes'!A:M,10,0)","v":0},{"$f":"VLOOKUP(B186,'LOC FINAL with new Themes'!A:M,11,0)","v":0},{"$f":"VLOOKUP(B186,'LOC FINAL with new Themes'!A:M,12,0)","v":0},{"$f":"VLOOKUP(B186,'LOC FINAL with new Themes'!A:M,13,0)","v":0}]
["Digital Orthoimage Quarter Quadrangle (DOQQ) Archive","Digital Orthoimage Quarter Quadrangle (DOQQ) Archive",null,"Digital Orthoimage Quarter Quadrangle (DOQQ) Archive","Imagery ","DOI-USGS",null,null,{"$f":"VLOOKUP(B187,'LOC FINAL with new Themes'!A:M,7,0)","v":"DOQQ is static; one data set; this is the POC and data manager. this is the name and maintain three complete with two physically separate on-site and one off-site"},{"$f":"VLOOKUP(B187,'LOC FINAL with new Themes'!A:M,8,0)","v":0},{"$f":"VLOOKUP(B187,'LOC FINAL with new Themes'!A:M,9,0)","v":0},{"$f":"VLOOKUP(B187,'LOC FINAL with new Themes'!A:M,10,0)","v":0},{"$f":"VLOOKUP(B187,'LOC FINAL with new Themes'!A:M,11,0)","v":0},{"$f":"VLOOKUP(B187,'LOC FINAL with new Themes'!A:M,12,0)","v":0},{"$f":"VLOOKUP(B187,'LOC FINAL with new Themes'!A:M,13,0)","v":"S"}]
["Emergency Response Imagery","Emergency Response Imagery","Emergency Response Imagery","Emergency Response Imagery","Imagery ","DOC-NOAA","Mike Aslaksen","mike.Aslaksen@noaa.gov",{"$f":"VLOOKUP(B188,'LOC FINAL with new Themes'!A:M,7,0)","v":"20-Multiple      "},{"$f":"VLOOKUP(B188,'LOC FINAL with new Themes'!A:M,8,0)","v":"No"},{"$f":"VLOOKUP(B188,'LOC FINAL with new Themes'!A:M,9,0)","v":"Yes - email reply from Jon Sellars Jon.Sellars@noaa.gov"},{"$f":"VLOOKUP(B188,'LOC FINAL with new Themes'!A:M,10,0)","v":"- Same for the forest frag."},{"$f":"VLOOKUP(B188,'LOC FINAL with new Themes'!A:M,11,0)","v":"Our data can be accessed through the following links: http://storms.ngs.noaagov/eri_page/index.html Gulf Oil Spill:\nhttp://hdds.usgs.gov/hdds2/pub/data/disaster/201004_Oilspill_GulfOfMexico/data/AERIAL_NOAA\nhttp://hdds.usgs.gov/hdds2/pub/data/disaster/201004_Oilspill_GulfOfMexico/data/AERIAL_NOAA_MOSAIC  Haiti Earthquake:\nhttp://hdds.usgs.gov/hdds2/pub/data/disaster/201001_Earthquake_Haiti/data/AERIAL_NOAA\nhttp://hdds.usgs.gov/hdds2/pub/data/disaster/201001_Earthquake_Haiti/data/AERIAL_NOAA_ORTHO\nMexico Earthquake:\nhttp://hdds.usgs.gov/hdds2/pub/data/disaster/201004_Earthquake_Mexico/data/AERIAL_NOAA_MOSAIC \n\n"},{"$f":"VLOOKUP(B188,'LOC FINAL with new Themes'!A:M,12,0)","v":"Described by storm name, event or location."},{"$f":"VLOOKUP(B188,'LOC FINAL with new Themes'!A:M,13,0)","v":"M "}]
[null,null,"Fire, Detection: AVHRR FIMMA , GOES WF-ABBA","Fire, Detection: AVHRR FIMMA , GOES WF-ABBA","Imagery ","USDA"]
["Landsat geometric/terrain corrected level 1T","Landsat geometric/terrain corrected level 1T","Landsat Terrain Corrected Scenes","Landsat Terrain Corrected Scenes","Imagery ","DOI-USGS","Kristi Kline","kkline@usgs.gov",{"$f":"VLOOKUP(B190,'LOC FINAL with new Themes'!A:M,7,0)","v":"Landsat updates daily; a series of data sets; this is the POC and data manager; this is the name and maintain three complete with two physically separate on-site and one off-site"},{"$f":"VLOOKUP(B190,'LOC FINAL with new Themes'!A:M,8,0)","v":0},{"$f":"VLOOKUP(B190,'LOC FINAL with new Themes'!A:M,9,0)","v":0},{"$f":"VLOOKUP(B190,'LOC FINAL with new Themes'!A:M,10,0)","v":0},{"$f":"VLOOKUP(B190,'LOC FINAL with new Themes'!A:M,11,0)","v":0},{"$f":"VLOOKUP(B190,'LOC FINAL with new Themes'!A:M,12,0)","v":0},{"$f":"VLOOKUP(B190,'LOC FINAL with new Themes'!A:M,13,0)","v":"S"}]
[null,null,"National  Orthoimagery Dataset - National Map","National  Orthoimagery Dataset - National Map","Imagery ","DOI-USGS"]
["National Aerial Photography Program (NAPP) Data Archive","National Aerial Photography Program (NAPP) Data Archive",null,"National Aerial Photography Program (NAPP) Data Archive","Imagery ","DOI-USGS","Wayne Miller","wamiller@usgs.gov",{"$f":"VLOOKUP(B192,'LOC FINAL with new Themes'!A:M,7,0)","v":"NAPP is static; one data set; this is the POC and data manager; this is the name and maintain three complete with two physically separate on-site and one off-site "},{"$f":"VLOOKUP(B192,'LOC FINAL with new Themes'!A:M,8,0)","v":0},{"$f":"VLOOKUP(B192,'LOC FINAL with new Themes'!A:M,9,0)","v":0},{"$f":"VLOOKUP(B192,'LOC FINAL with new Themes'!A:M,10,0)","v":0},{"$f":"VLOOKUP(B192,'LOC FINAL with new Themes'!A:M,11,0)","v":0},{"$f":"VLOOKUP(B192,'LOC FINAL with new Themes'!A:M,12,0)","v":0},{"$f":"VLOOKUP(B192,'LOC FINAL with new Themes'!A:M,13,0)","v":"S"}]
["National Agriculture Imagery Program Data","National Agriculture Imagery Program Data","National Agriculture Imagery Program (NAIP) Archive","National Agriculture Imagery Program (NAIP) Archive","Imagery ","DOI-USGS","Shirley Hall","shirley.hall@wdc.usda.gov",{"$f":"VLOOKUP(B193,'LOC FINAL with new Themes'!A:M,7,0)","v":"Shirley identified Dan Good as new contact 'daniel.good@wdc.usda.gov' - need to follow up with either or both"},{"$f":"VLOOKUP(B193,'LOC FINAL with new Themes'!A:M,8,0)","v":0},{"$f":"VLOOKUP(B193,'LOC FINAL with new Themes'!A:M,9,0)","v":0},{"$f":"VLOOKUP(B193,'LOC FINAL with new Themes'!A:M,10,0)","v":0},{"$f":"VLOOKUP(B193,'LOC FINAL with new Themes'!A:M,11,0)","v":0},{"$f":"VLOOKUP(B193,'LOC FINAL with new Themes'!A:M,12,0)","v":0},{"$f":"VLOOKUP(B193,'LOC FINAL with new Themes'!A:M,13,0)","v":0}]
["National Map Orthoimagery Database (TNM Seamless Server) ","National Map Orthoimagery Database (TNM Seamless Server) ",null,"National Map Orthoimagery Database (TNM Seamless Server) ","Imagery ","DOI-USGS","George Lee","gylee@usgs.gov",{"$f":"VLOOKUP(B194,'LOC FINAL with new Themes'!A:M,7,0)","v":0},{"$f":"VLOOKUP(B194,'LOC FINAL with new Themes'!A:M,8,0)","v":0},{"$f":"VLOOKUP(B194,'LOC FINAL with new Themes'!A:M,9,0)","v":0},{"$f":"VLOOKUP(B194,'LOC FINAL with new Themes'!A:M,10,0)","v":0},{"$f":"VLOOKUP(B194,'LOC FINAL with new Themes'!A:M,11,0)","v":0},{"$f":"VLOOKUP(B194,'LOC FINAL with new Themes'!A:M,12,0)","v":0},{"$f":"VLOOKUP(B194,'LOC FINAL with new Themes'!A:M,13,0)","v":0}]
["National Resource Inventory Imagery","National Resource Inventory Imagery",null,"National Resource Inventory Imagery","Imagery ","USDA-WDC","Jerry Harlow","jerry.harlow@wdc.usda.gov",{"$f":"VLOOKUP(B195,'LOC FINAL with new Themes'!A:M,7,0)","v":"Shirley identified Dan Good as new contact 'daniel.good@wdc.usda.gov' - need to follow up with either or both"},{"$f":"VLOOKUP(B195,'LOC FINAL with new Themes'!A:M,8,0)","v":0},{"$f":"VLOOKUP(B195,'LOC FINAL with new Themes'!A:M,9,0)","v":0},{"$f":"VLOOKUP(B195,'LOC FINAL with new Themes'!A:M,10,0)","v":0},{"$f":"VLOOKUP(B195,'LOC FINAL with new Themes'!A:M,11,0)","v":0},{"$f":"VLOOKUP(B195,'LOC FINAL with new Themes'!A:M,12,0)","v":0},{"$f":"VLOOKUP(B195,'LOC FINAL with new Themes'!A:M,13,0)","v":0}]
[null,null,"Satellite Imagery Archive","Satellite Imagery Archive","Imagery ","USDA-FSA"]
[{"$f":"SUBTOTAL(3,A184:A196)","v":9},{"$f":"SUBTOTAL(3,B184:B196)","v":10},{"$f":"SUBTOTAL(3,C184:C196)","v":6},{"$f":"SUBTOTAL(3,D184:D196)","v":13},"Imagery  Count"]
["Coastal Change Analysis Program (C-CAP)","Coastal Change Analysis Program (C-CAP)",null,{"$f":"IF(C198=0,B198,C198)","v":"Coastal Change Analysis Program (C-CAP)"},"Land Use-Land Cover ","DOC-NOAA","Nate Herold","Nate.Herold@noaa.gov",{"$f":"VLOOKUP(B198,'LOC FINAL with new Themes'!A:M,7,0)","v":"Answer might depend on how we slice and dice it...  C-CAP has up to three separate product lines (regional, high resolution, and a derived forest fragmentation classified data set).  We also have multiple dates of land cover for each of these (which I guess you would probably count).  See the following links (and bullets summarizing) on each.http://www.csc.noaa.gov/landcover\n- Covers CONUS coastal areas.  All areas for 1996, 2001, and 2006.\n- Some select CONUS geographies (WA, DE, MD, and VA) also have a 1992 date.\n- Covers state of Hawaii for 1992, 2001, and 2006.\n- includes individual dates and files highlighting changes between dates.\n\nhttp://www.csc.noaa.gov/digitalcoast/data/forestfrag/index.html\n- Covers CONUS coastal areas.  All areas for 1996, 2001, and 2006.\n- Other dates and geographies not currently included.\n\nhttp://www.csc.noaa.gov/digitalcoast/data/ccaphighres/index.html\n- Covers project level areas (year depends on geography, etc.)\n- Primarily data in the pacific (Hawaii and territories of American Samoa, Guam, and CNMI), as well as the USVIs, Jobos Bay Puerto Rico, and Santa Cruz area in CA.\n \n"},{"$f":"VLOOKUP(B198,'LOC FINAL with new Themes'!A:M,8,0)","v":"Yes"},{"$f":"VLOOKUP(B198,'LOC FINAL with new Themes'!A:M,9,0)","v":"Yes"},{"$f":"VLOOKUP(B198,'LOC FINAL with new Themes'!A:M,10,0)","v":"- The CONUS products are updated approximately every five years (we are currently working on a 2010/2011 data set, to add to the above time series)."},{"$f":"VLOOKUP(B198,'LOC FINAL with new Themes'!A:M,11,0)","v":"Yes.  We maintain and serve all of our data (at above addresses), and archive with NOAA's National Oceanic Data Center (NODC).  We consider the dates listed above as current data sets, as part of the data we produce is tracking and providing change data as well."},{"$f":"VLOOKUP(B198,'LOC FINAL with new Themes'!A:M,12,0)","v":"Not really...  Maybe the generic coastal land cover.  It is also very closely related and feeds into the National Land Cover Database (NLCD), which is a national land cover product developed by the Multi-Resolution Land Characteristics (MRLC) consortium.  this is an effort lead by the USGS."},{"$f":"VLOOKUP(B198,'LOC FINAL with new Themes'!A:M,13,0)","v":"M "}]
[null,null,"Crops: Cropland Data Layer","Crops: Cropland Data Layer","Land Use-Land Cover ","USDA-NASS"]
[null,null,"Earth Cover, Land: MODIS-based Land Products","Earth Cover, Land: MODIS-based Land Products","Land Use-Land Cover ","USDA -FS (Along with USGS)"]
[null,null,"Earth Cover, Vegetation, Forest: Forest Biomass, Types, Type Groups","Earth Cover, Vegetation, Forest: Forest Biomass, Types, Type Groups","Land Use-Land Cover ","USDA-FS"]
[null,null,"Earth Cover, Vegetation: Percent Forest Canopy","Earth Cover, Vegetation: Percent Forest Canopy","Land Use-Land Cover ","USDA-FS"]
[null,null,"Fire Severity: Monitoring Trends in Burn Severity (MTBS)","Fire Severity: Monitoring Trends in Burn Severity (MTBS)","Land Use-Land Cover ","USDA -FS (Along with USGS)"]
[null,null,"Fire, Detection: Daily Active Fire Mapping","Fire, Detection: Daily Active Fire Mapping","Land Use-Land Cover ","USDA"]
[null,null,"Land Cover Strata Dataset","Land Cover Strata Dataset","Land Use-Land Cover ","USDA-NASS"]
["LANDFIRE Dataset","LANDFIRE Dataset","Land Fire Dataset","Land Fire Dataset","Land Use-Land Cover ",null,null,0,{"$f":"VLOOKUP(B206,'LOC FINAL with new Themes'!A:M,7,0)","v":0},{"$f":"VLOOKUP(B206,'LOC FINAL with new Themes'!A:M,8,0)","v":0},{"$f":"VLOOKUP(B206,'LOC FINAL with new Themes'!A:M,9,0)","v":0},{"$f":"VLOOKUP(B206,'LOC FINAL with new Themes'!A:M,10,0)","v":0},{"$f":"VLOOKUP(B206,'LOC FINAL with new Themes'!A:M,11,0)","v":0},{"$f":"VLOOKUP(B206,'LOC FINAL with new Themes'!A:M,12,0)","v":0},{"$f":"VLOOKUP(B206,'LOC FINAL with new Themes'!A:M,13,0)","v":0}]
["National Land Cover Dataset (NLCD)","National Land Cover Dataset (NLCD)","National Land Cover Dataset - GIRAS - 1975","National Land Cover Dataset - GIRAS - 1975","Land Use-Land Cover ","DOI-USGS","Colin Homer","homer@usgs.gov",{"$f":"VLOOKUP(B207,'LOC FINAL with new Themes'!A:M,7,0)","v":"The table below summarizes NLCD products available for download from the MRLC website http://www.mrlc.gov/ "},{"$f":"VLOOKUP(B207,'LOC FINAL with new Themes'!A:M,8,0)","v":"No.  The \"manager\" of the data is Jon Dewitz. \nContact Information -   \nJon Dewitz\ndewitz@usgs.gov\n605-594-2715\nNLCD Quality Supervisor\nUSGS Earth Resources Observation and Science Center (EROS)\nMundt Federal Building\n47914 252nd St.\nSioux Falls, SD 57198\nfax 605-594-6529\n"},{"$f":"VLOOKUP(B207,'LOC FINAL with new Themes'!A:M,9,0)","v":"Joyce Fry is the POC. \nContact information - \nJoyce Fry, Geographer\nUnited States Geological Survey (USGS)\nEarth Resources Observation and  Science (EROS) Center\nMundt Federal Building\n47914 252nd Street\nSioux Falls, South Dakota 57198\n(P)  605.594.2739\n(F)  605.594.6529\n(e)  jfry@usgs.gov \n"},{"$f":"VLOOKUP(B207,'LOC FINAL with new Themes'!A:M,10,0)","v":"Every 5 years"},{"$f":"VLOOKUP(B207,'LOC FINAL with new Themes'!A:M,11,0)","v":"Yes, there is an archive/backup of the dataset through the EROS Long Term Archive (LTA) group.  I will need to get back to if you need additional information regarding the archive process. "},{"$f":"VLOOKUP(B207,'LOC FINAL with new Themes'!A:M,12,0)","v":"National Land Cover Database or NLCD along with the era number, either 1992 or 2001, or 2006. "},{"$f":"VLOOKUP(B207,'LOC FINAL with new Themes'!A:M,13,0)","v":"S"}]
[null,null,"National Land Cover Dataset - National Map","National Land Cover Dataset - National Map","Land Use-Land Cover ","DOI-USGS"]
[null,null,"National Land Cover Dataset - National Map - 1991","National Land Cover Dataset - National Map - 1991","Land Use-Land Cover ","DOI-USGS"]
[null,null,"National Land Cover Dataset - National Map - 2001","National Land Cover Dataset - National Map - 2001","Land Use-Land Cover ","DOI-USGS"]
[null,null,"National Land Cover Dataset - National Map 2006","National Land Cover Dataset - National Map 2006","Land Use-Land Cover ","DOI-USGS"]
["National Land Cover Dataset (NLCD)","National Land Cover Dataset (NLCD)","National Land Cover Dataset (NLCD)","National Land Cover Dataset (NLCD)","Land Use-Land Cover ","DOI-USGS","Colin Homer","homer@usgs.gov",{"$f":"VLOOKUP(B212,'LOC FINAL with new Themes'!A:M,7,0)","v":"The table below summarizes NLCD products available for download from the MRLC website http://www.mrlc.gov/ "},{"$f":"VLOOKUP(B212,'LOC FINAL with new Themes'!A:M,8,0)","v":"No.  The \"manager\" of the data is Jon Dewitz. \nContact Information -   \nJon Dewitz\ndewitz@usgs.gov\n605-594-2715\nNLCD Quality Supervisor\nUSGS Earth Resources Observation and Science Center (EROS)\nMundt Federal Building\n47914 252nd St.\nSioux Falls, SD 57198\nfax 605-594-6529\n"},{"$f":"VLOOKUP(B212,'LOC FINAL with new Themes'!A:M,9,0)","v":"Joyce Fry is the POC. \nContact information - \nJoyce Fry, Geographer\nUnited States Geological Survey (USGS)\nEarth Resources Observation and  Science (EROS) Center\nMundt Federal Building\n47914 252nd Street\nSioux Falls, South Dakota 57198\n(P)  605.594.2739\n(F)  605.594.6529\n(e)  jfry@usgs.gov \n"},{"$f":"VLOOKUP(B212,'LOC FINAL with new Themes'!A:M,10,0)","v":"Every 5 years"},{"$f":"VLOOKUP(B212,'LOC FINAL with new Themes'!A:M,11,0)","v":"Yes, there is an archive/backup of the dataset through the EROS Long Term Archive (LTA) group.  I will need to get back to if you need additional information regarding the archive process. "},{"$f":"VLOOKUP(B212,'LOC FINAL with new Themes'!A:M,12,0)","v":"National Land Cover Database or NLCD along with the era number, either 1992 or 2001, or 2006. "},{"$f":"VLOOKUP(B212,'LOC FINAL with new Themes'!A:M,13,0)","v":"S"}]
[null,null,"National Land Cover Percent Canopy - National Map - 1991","National Land Cover Percent Canopy - National Map - 1991","Land Use-Land Cover ","DOI-USGS"]
[null,null,"National Land Cover Percent Imperviousness - National Map - 2001","National Land Cover Percent Imperviousness - National Map - 2001","Land Use-Land Cover ","DOI-USGS"]
[null,null,"National Land Cover Percent Imperviousness - National Map - 2006","National Land Cover Percent Imperviousness - National Map - 2006","Land Use-Land Cover ","DOI-USGS"]
["National Parks Data","National Parks Data","National Parks Data","National Parks Data","Land Use-Land Cover ","DOI-MMS","James Fulmer","james.s.fulmer@mms.gov",{"$f":"VLOOKUP(B216,'LOC FINAL with new Themes'!A:M,7,0)","v":"undeliverable email- neeed to identify new contact"},{"$f":"VLOOKUP(B216,'LOC FINAL with new Themes'!A:M,8,0)","v":0},{"$f":"VLOOKUP(B216,'LOC FINAL with new Themes'!A:M,9,0)","v":0},{"$f":"VLOOKUP(B216,'LOC FINAL with new Themes'!A:M,10,0)","v":0},{"$f":"VLOOKUP(B216,'LOC FINAL with new Themes'!A:M,11,0)","v":0},{"$f":"VLOOKUP(B216,'LOC FINAL with new Themes'!A:M,12,0)","v":0},{"$f":"VLOOKUP(B216,'LOC FINAL with new Themes'!A:M,13,0)","v":0}]
[{"$f":"SUBTOTAL(3,A198:A216)","v":5},{"$f":"SUBTOTAL(3,B198:B216)","v":5},{"$f":"SUBTOTAL(3,C198:C216)","v":18},{"$f":"SUBTOTAL(3,D198:D216)","v":19},"Land Use-Land Cover  Count"]
["Assisted Housing (census geography or point-based) see http://www.huduser.org/picture2000/","Assisted Housing (census geography or point-based)",null,{"$f":"IF(C218=0,B218,C218)","v":"Assisted Housing (census geography or point-based)"},"Real Property","HUD","Jon Sperling","jon.sperling@hud.gov",{"$f":"VLOOKUP(B218,'LOC FINAL with new Themes'!A:M,7,0)","v":0},{"$f":"VLOOKUP(B218,'LOC FINAL with new Themes'!A:M,8,0)","v":0},{"$f":"VLOOKUP(B218,'LOC FINAL with new Themes'!A:M,9,0)","v":0},{"$f":"VLOOKUP(B218,'LOC FINAL with new Themes'!A:M,10,0)","v":0},{"$f":"VLOOKUP(B218,'LOC FINAL with new Themes'!A:M,11,0)","v":0},{"$f":"VLOOKUP(B218,'LOC FINAL with new Themes'!A:M,12,0)","v":0},{"$f":"VLOOKUP(B218,'LOC FINAL with new Themes'!A:M,13,0)","v":0}]
["Enterprise Zones, Empowerment Communities, Revitalization Areas, Qualified Census Tracts, etc.  (census geography based)","Enterprise Zones, Empowerment Communities, Revitalization Areas, Qualified Census Tracts, etc.  (census geography based)",null,"Enterprise Zones, Empowerment Communities, Revitalization Areas, Qualified Census Tracts, etc.  (census geography based)","Real Property","HUD","Jon Sperling","jon.sperling@hud.gov",{"$f":"VLOOKUP(B219,'LOC FINAL with new Themes'!A:M,7,0)","v":0},{"$f":"VLOOKUP(B219,'LOC FINAL with new Themes'!A:M,8,0)","v":0},{"$f":"VLOOKUP(B219,'LOC FINAL with new Themes'!A:M,9,0)","v":0},{"$f":"VLOOKUP(B219,'LOC FINAL with new Themes'!A:M,10,0)","v":0},{"$f":"VLOOKUP(B219,'LOC FINAL with new Themes'!A:M,11,0)","v":0},{"$f":"VLOOKUP(B219,'LOC FINAL with new Themes'!A:M,12,0)","v":0},{"$f":"VLOOKUP(B219,'LOC FINAL with new Themes'!A:M,13,0)","v":0}]
["Federal building location point ","Federal building location point ","Federal building location point ","Federal building location point ","Real Property ","GSA","Sandra Downie","sandra.downie@gsa.gov",{"$f":"VLOOKUP(B220,'LOC FINAL with new Themes'!A:M,7,0)","v":0},{"$f":"VLOOKUP(B220,'LOC FINAL with new Themes'!A:M,8,0)","v":0},{"$f":"VLOOKUP(B220,'LOC FINAL with new Themes'!A:M,9,0)","v":0},{"$f":"VLOOKUP(B220,'LOC FINAL with new Themes'!A:M,10,0)","v":0},{"$f":"VLOOKUP(B220,'LOC FINAL with new Themes'!A:M,11,0)","v":0},{"$f":"VLOOKUP(B220,'LOC FINAL with new Themes'!A:M,12,0)","v":0},{"$f":"VLOOKUP(B220,'LOC FINAL with new Themes'!A:M,13,0)","v":0}]
["Federal building location polygon","Federal building location polygon","Federal building location polygon","Federal building location polygon","Real Property ","GSA","Sandra Downie","sandra.downie@gsa.gov",{"$f":"VLOOKUP(B221,'LOC FINAL with new Themes'!A:M,7,0)","v":0},{"$f":"VLOOKUP(B221,'LOC FINAL with new Themes'!A:M,8,0)","v":0},{"$f":"VLOOKUP(B221,'LOC FINAL with new Themes'!A:M,9,0)","v":0},{"$f":"VLOOKUP(B221,'LOC FINAL with new Themes'!A:M,10,0)","v":0},{"$f":"VLOOKUP(B221,'LOC FINAL with new Themes'!A:M,11,0)","v":0},{"$f":"VLOOKUP(B221,'LOC FINAL with new Themes'!A:M,12,0)","v":0},{"$f":"VLOOKUP(B221,'LOC FINAL with new Themes'!A:M,13,0)","v":0}]
["Federal land area facility location point","Federal land area facility location point","Federal land area facility location point","Federal land area facility location point","Real Property ","GSA","Sandra Downie","sandra.downie@gsa.gov",{"$f":"VLOOKUP(B222,'LOC FINAL with new Themes'!A:M,7,0)","v":0},{"$f":"VLOOKUP(B222,'LOC FINAL with new Themes'!A:M,8,0)","v":0},{"$f":"VLOOKUP(B222,'LOC FINAL with new Themes'!A:M,9,0)","v":0},{"$f":"VLOOKUP(B222,'LOC FINAL with new Themes'!A:M,10,0)","v":0},{"$f":"VLOOKUP(B222,'LOC FINAL with new Themes'!A:M,11,0)","v":0},{"$f":"VLOOKUP(B222,'LOC FINAL with new Themes'!A:M,12,0)","v":0},{"$f":"VLOOKUP(B222,'LOC FINAL with new Themes'!A:M,13,0)","v":0}]
["Federal land area facility location polygon","Federal land area facility location polygon","Federal land area facility location polygon","Federal land area facility location polygon","Real Property ","GSA","Sandra Downie","sandra.downie@gsa.gov",{"$f":"VLOOKUP(B223,'LOC FINAL with new Themes'!A:M,7,0)","v":0},{"$f":"VLOOKUP(B223,'LOC FINAL with new Themes'!A:M,8,0)","v":0},{"$f":"VLOOKUP(B223,'LOC FINAL with new Themes'!A:M,9,0)","v":0},{"$f":"VLOOKUP(B223,'LOC FINAL with new Themes'!A:M,10,0)","v":0},{"$f":"VLOOKUP(B223,'LOC FINAL with new Themes'!A:M,11,0)","v":0},{"$f":"VLOOKUP(B223,'LOC FINAL with new Themes'!A:M,12,0)","v":0},{"$f":"VLOOKUP(B223,'LOC FINAL with new Themes'!A:M,13,0)","v":0}]
["National Map - Structures Dataset","National Map - Structures Dataset","National Structures Dataset - National Map","National Structures Dataset - National Map","Real Property ","DOI-USGS","Paul Wiese","pmwiese@usgs.gov",{"$f":"VLOOKUP(B224,'LOC FINAL with new Themes'!A:M,7,0)","v":"National Map updates monthly; a series of data sets; this is the POC and data manager; this is the name and maintain three complete with two physically separate on-site and one off-site"},{"$f":"VLOOKUP(B224,'LOC FINAL with new Themes'!A:M,8,0)","v":0},{"$f":"VLOOKUP(B224,'LOC FINAL with new Themes'!A:M,9,0)","v":0},{"$f":"VLOOKUP(B224,'LOC FINAL with new Themes'!A:M,10,0)","v":0},{"$f":"VLOOKUP(B224,'LOC FINAL with new Themes'!A:M,11,0)","v":0},{"$f":"VLOOKUP(B224,'LOC FINAL with new Themes'!A:M,12,0)","v":0},{"$f":"VLOOKUP(B224,'LOC FINAL with new Themes'!A:M,13,0)","v":"S"}]
[{"$f":"SUBTOTAL(3,A218:A224)","v":7},{"$f":"SUBTOTAL(3,B218:B224)","v":7},{"$f":"SUBTOTAL(3,C218:C224)","v":5},{"$f":"SUBTOTAL(3,D218:D224)","v":7},"Real Property Count"]
[null,"Military Installation","Military Installation",{"$f":"IF(C226=0,B226,C226)","v":"Military Installation"},"Real Property\nCultural & Demographic Statistics","DOC-Census","Jennifer Holland","Jennifer.L.Holland@census.gov",{"$f":"VLOOKUP(B226,'LOC FINAL with new Themes'!A:M,7,0)","v":0},{"$f":"VLOOKUP(B226,'LOC FINAL with new Themes'!A:M,8,0)","v":0},{"$f":"VLOOKUP(B226,'LOC FINAL with new Themes'!A:M,9,0)","v":0},{"$f":"VLOOKUP(B226,'LOC FINAL with new Themes'!A:M,10,0)","v":0},{"$f":"VLOOKUP(B226,'LOC FINAL with new Themes'!A:M,11,0)","v":0},{"$f":"VLOOKUP(B226,'LOC FINAL with new Themes'!A:M,12,0)","v":0},{"$f":"VLOOKUP(B226,'LOC FINAL with new Themes'!A:M,13,0)","v":0}]
[{"$f":"SUBTOTAL(3,A226:A226)","v":0},{"$f":"SUBTOTAL(3,B226:B226)","v":1},{"$f":"SUBTOTAL(3,C226:C226)","v":1},{"$f":"SUBTOTAL(3,D226:D226)","v":1},"Real Property\nCultural & Demographic Statistics Count"]
["Common Resource Area (CRA)","Common Resource Area (CRA)","Common Resource Area (CRA)",{"$f":"IF(C228=0,B228,C228)","v":"Common Resource Area (CRA)"},"Soils ","USDA","Chris W. Smith","Christopherw.Smith@wdc.usda.gov",{"$f":"VLOOKUP(B228,'LOC FINAL with new Themes'!A:M,7,0)","v":0},{"$f":"VLOOKUP(B228,'LOC FINAL with new Themes'!A:M,8,0)","v":0},{"$f":"VLOOKUP(B228,'LOC FINAL with new Themes'!A:M,9,0)","v":0},{"$f":"VLOOKUP(B228,'LOC FINAL with new Themes'!A:M,10,0)","v":0},{"$f":"VLOOKUP(B228,'LOC FINAL with new Themes'!A:M,11,0)","v":0},{"$f":"VLOOKUP(B228,'LOC FINAL with new Themes'!A:M,12,0)","v":0},{"$f":"VLOOKUP(B228,'LOC FINAL with new Themes'!A:M,13,0)","v":0}]
["Hydric Soils","Hydric Soils",null,"Hydric Soils","Soils ","USDA","Chris W. Smith","Christopherw.Smith@wdc.usda.gov",{"$f":"VLOOKUP(B229,'LOC FINAL with new Themes'!A:M,7,0)","v":0},{"$f":"VLOOKUP(B229,'LOC FINAL with new Themes'!A:M,8,0)","v":0},{"$f":"VLOOKUP(B229,'LOC FINAL with new Themes'!A:M,9,0)","v":0},{"$f":"VLOOKUP(B229,'LOC FINAL with new Themes'!A:M,10,0)","v":0},{"$f":"VLOOKUP(B229,'LOC FINAL with new Themes'!A:M,11,0)","v":0},{"$f":"VLOOKUP(B229,'LOC FINAL with new Themes'!A:M,12,0)","v":0},{"$f":"VLOOKUP(B229,'LOC FINAL with new Themes'!A:M,13,0)","v":0}]
["Location of Arable Lands","Location of Arable Lands",null,"Location of Arable Lands","Soils ","USDA","Karl Hipple","karl.hipple@lin.usda.gov",{"$f":"VLOOKUP(B230,'LOC FINAL with new Themes'!A:M,7,0)","v":"undeliverable email- neeed to identify new contact"},{"$f":"VLOOKUP(B230,'LOC FINAL with new Themes'!A:M,8,0)","v":0},{"$f":"VLOOKUP(B230,'LOC FINAL with new Themes'!A:M,9,0)","v":0},{"$f":"VLOOKUP(B230,'LOC FINAL with new Themes'!A:M,10,0)","v":0},{"$f":"VLOOKUP(B230,'LOC FINAL with new Themes'!A:M,11,0)","v":0},{"$f":"VLOOKUP(B230,'LOC FINAL with new Themes'!A:M,12,0)","v":0},{"$f":"VLOOKUP(B230,'LOC FINAL with new Themes'!A:M,13,0)","v":0}]
["Major Land Resource Area (MLRA)","Major Land Resource Area (MLRA)","Major Land Resource Area (MLRA)","Major Land Resource Area (MLRA)","Soils ","USDA","Karl Hipple","karl.hipple@lin.usda.gov",{"$f":"VLOOKUP(B231,'LOC FINAL with new Themes'!A:M,7,0)","v":"undeliverable email- neeed to identify new contact"},{"$f":"VLOOKUP(B231,'LOC FINAL with new Themes'!A:M,8,0)","v":0},{"$f":"VLOOKUP(B231,'LOC FINAL with new Themes'!A:M,9,0)","v":0},{"$f":"VLOOKUP(B231,'LOC FINAL with new Themes'!A:M,10,0)","v":0},{"$f":"VLOOKUP(B231,'LOC FINAL with new Themes'!A:M,11,0)","v":0},{"$f":"VLOOKUP(B231,'LOC FINAL with new Themes'!A:M,12,0)","v":0},{"$f":"VLOOKUP(B231,'LOC FINAL with new Themes'!A:M,13,0)","v":0}]
["National Cooperative Soil Survey (NCSS)","National Cooperative Soil Survey (NCSS)","National Cooperative Soil Characterization Database","National Cooperative Soil Characterization Database","Soils ","USDA","Paul Benedict","paul.benedict@wdc.usda.gov",{"$f":"VLOOKUP(B232,'LOC FINAL with new Themes'!A:M,7,0)","v":"We have our Soil Survey Geographic database called SSURGO which is made available through the following sites:\nWeb Soil Survey:    http://websoilsurvey.nrcs.usda.gov/app/\nSoil Data Mart:     http://soildatamart.nrcs.usda.gov/\nSoil Data Access:   http://sdmdataaccess.nrcs.usda.gov\n\nWe also have: \nLab Soil Survey Lab Characterization Data (Point data): http://ssldata.nrcs.usda.gov/ aka NCSS Characterization Database\nSoil Series Classification Database http://soils.usda.gov/technical/classification/scfile/index.html\nU.S. General Soil Map (STATSGO2)\nMajor Land Resource Area (MLRA) http://soils.usda.gov/survey/geography/mlra/\n             Common Resource Areas (CRA) \n\n"},{"$f":"VLOOKUP(B232,'LOC FINAL with new Themes'!A:M,8,0)","v":"? No, I am a Program Manager. Various other people have roles of maintaining the data. "},{"$f":"VLOOKUP(B232,'LOC FINAL with new Themes'!A:M,9,0)","v":"I am a general information POC for all things soil survey related. For more technical aspects on our data sets a good POC would be David Hoover, National Leader for Soil Business Systems or someone on his staff. His contact number is 402-437-4013 or email at david.hoover@lin.usda.gov. "},{"$f":"VLOOKUP(B232,'LOC FINAL with new Themes'!A:M,10,0)","v":"Our data sets are constantly being updated by about 1000 soil and plant scientists in several agencies. "},{"$f":"VLOOKUP(B232,'LOC FINAL with new Themes'!A:M,11,0)","v":"Our data sets are archived, but I don’t know how far back. I will have to get back to you on that. It is my understanding that archived sets are not easily accessible.  We have archive data for SSURGO (Soil Data Warehouse from mid 2000’s or earlier – Jim Fortner or Jennifer Sweet may be able to confirm or provide more detail; We also have archive data for STATSGO (circa 1994;1996) and for MLRA (1978; 2001; 2006) in local holdings.  Not sure about lab data archives, Henry Ferguson or Larry West can confirm.  "},{"$f":"VLOOKUP(B232,'LOC FINAL with new Themes'!A:M,12,0)","v":"? the Lab Characterization Data is also known as the “NCSS Characterization Database”\nAdded Common Resource Area geographic database (CRA)."},{"$f":"VLOOKUP(B232,'LOC FINAL with new Themes'!A:M,13,0)","v":"P"}]
["Prime and Statewide Important Farmlands","Prime and Statewide Important Farmlands",null,"Prime and Statewide Important Farmlands","Soils ","USDA","Chris W. Smith","Christopherw.Smith@wdc.usda.gov",{"$f":"VLOOKUP(B233,'LOC FINAL with new Themes'!A:M,7,0)","v":0},{"$f":"VLOOKUP(B233,'LOC FINAL with new Themes'!A:M,8,0)","v":0},{"$f":"VLOOKUP(B233,'LOC FINAL with new Themes'!A:M,9,0)","v":0},{"$f":"VLOOKUP(B233,'LOC FINAL with new Themes'!A:M,10,0)","v":0},{"$f":"VLOOKUP(B233,'LOC FINAL with new Themes'!A:M,11,0)","v":0},{"$f":"VLOOKUP(B233,'LOC FINAL with new Themes'!A:M,12,0)","v":0},{"$f":"VLOOKUP(B233,'LOC FINAL with new Themes'!A:M,13,0)","v":0}]
["Soil Suitability for Disposal of Contaminated Crops ","Soil Suitability for Disposal of Contaminated Crops ",null,"Soil Suitability for Disposal of Contaminated Crops ","Soils ","USDA","Karl Hipple; Sharon Waltman","karl.hipple@lin.usda.gov; sharon.waltman@wv.usda.gov ",{"$f":"VLOOKUP(B234,'LOC FINAL with new Themes'!A:M,7,0)","v":"undeliverable email- neeed to identify new contact"},{"$f":"VLOOKUP(B234,'LOC FINAL with new Themes'!A:M,8,0)","v":0},{"$f":"VLOOKUP(B234,'LOC FINAL with new Themes'!A:M,9,0)","v":0},{"$f":"VLOOKUP(B234,'LOC FINAL with new Themes'!A:M,10,0)","v":0},{"$f":"VLOOKUP(B234,'LOC FINAL with new Themes'!A:M,11,0)","v":0},{"$f":"VLOOKUP(B234,'LOC FINAL with new Themes'!A:M,12,0)","v":0},{"$f":"VLOOKUP(B234,'LOC FINAL with new Themes'!A:M,13,0)","v":0}]
["Soil Suitability for Large Animal Disposal","Soil Suitability for Large Animal Disposal",null,"Soil Suitability for Large Animal Disposal","Soils ","USDA","Chris W. Smith","Christopherw.Smith@wdc.usda.gov",{"$f":"VLOOKUP(B235,'LOC FINAL with new Themes'!A:M,7,0)","v":0},{"$f":"VLOOKUP(B235,'LOC FINAL with new Themes'!A:M,8,0)","v":0},{"$f":"VLOOKUP(B235,'LOC FINAL with new Themes'!A:M,9,0)","v":0},{"$f":"VLOOKUP(B235,'LOC FINAL with new Themes'!A:M,10,0)","v":0},{"$f":"VLOOKUP(B235,'LOC FINAL with new Themes'!A:M,11,0)","v":0},{"$f":"VLOOKUP(B235,'LOC FINAL with new Themes'!A:M,12,0)","v":0},{"$f":"VLOOKUP(B235,'LOC FINAL with new Themes'!A:M,13,0)","v":0}]
["Soil Survey Geographic Database (SSURGO)","Soil Survey Geographic Database (SSURGO)","Soil Survey Geographic Database (SSURGO)","Soil Survey Geographic Database (SSURGO)","Soils ","USDA","Karl Hipple","karl.hipple@lin.usda.gov",{"$f":"VLOOKUP(B236,'LOC FINAL with new Themes'!A:M,7,0)","v":"undeliverable email- neeed to identify new contact"},{"$f":"VLOOKUP(B236,'LOC FINAL with new Themes'!A:M,8,0)","v":0},{"$f":"VLOOKUP(B236,'LOC FINAL with new Themes'!A:M,9,0)","v":0},{"$f":"VLOOKUP(B236,'LOC FINAL with new Themes'!A:M,10,0)","v":0},{"$f":"VLOOKUP(B236,'LOC FINAL with new Themes'!A:M,11,0)","v":0},{"$f":"VLOOKUP(B236,'LOC FINAL with new Themes'!A:M,12,0)","v":0},{"$f":"VLOOKUP(B236,'LOC FINAL with new Themes'!A:M,13,0)","v":0}]
["U.S. General Soil Map (STATSGO2)","U.S. General Soil Map (STATSGO2)","U.S. General Soil Map (STATSGO2)","U.S. General Soil Map (STATSGO2)","Soils ","USDA","Karl Hipple","karl.hipple@lin.usda.gov",{"$f":"VLOOKUP(B237,'LOC FINAL with new Themes'!A:M,7,0)","v":"undeliverable email- neeed to identify new contact"},{"$f":"VLOOKUP(B237,'LOC FINAL with new Themes'!A:M,8,0)","v":0},{"$f":"VLOOKUP(B237,'LOC FINAL with new Themes'!A:M,9,0)","v":0},{"$f":"VLOOKUP(B237,'LOC FINAL with new Themes'!A:M,10,0)","v":0},{"$f":"VLOOKUP(B237,'LOC FINAL with new Themes'!A:M,11,0)","v":0},{"$f":"VLOOKUP(B237,'LOC FINAL with new Themes'!A:M,12,0)","v":0},{"$f":"VLOOKUP(B237,'LOC FINAL with new Themes'!A:M,13,0)","v":0}]
[{"$f":"SUBTOTAL(3,A228:A237)","v":10},{"$f":"SUBTOTAL(3,B228:B237)","v":10},{"$f":"SUBTOTAL(3,C228:C237)","v":5},{"$f":"SUBTOTAL(3,D228:D237)","v":10},"Soils  Count"]
[null,"Address Range-Feature Name Relationship File","Address Range-Feature Name Relationship File",{"$f":"IF(C239=0,B239,C239)","v":"Address Range-Feature Name Relationship File"},"Transportation ","DOC-Census","Jennifer Holland","Jennifer.L.Holland@census.gov",{"$f":"VLOOKUP(B239,'LOC FINAL with new Themes'!A:M,7,0)","v":0},{"$f":"VLOOKUP(B239,'LOC FINAL with new Themes'!A:M,8,0)","v":0},{"$f":"VLOOKUP(B239,'LOC FINAL with new Themes'!A:M,9,0)","v":0},{"$f":"VLOOKUP(B239,'LOC FINAL with new Themes'!A:M,10,0)","v":0},{"$f":"VLOOKUP(B239,'LOC FINAL with new Themes'!A:M,11,0)","v":0},{"$f":"VLOOKUP(B239,'LOC FINAL with new Themes'!A:M,12,0)","v":0},{"$f":"VLOOKUP(B239,'LOC FINAL with new Themes'!A:M,13,0)","v":0}]
[null,"Address Ranges Relationship File","Address Ranges Relationship File","Address Ranges Relationship File","Transportation ","DOC-Census","Jennifer Holland","Jennifer.L.Holland@census.gov",{"$f":"VLOOKUP(B240,'LOC FINAL with new Themes'!A:M,7,0)","v":0},{"$f":"VLOOKUP(B240,'LOC FINAL with new Themes'!A:M,8,0)","v":0},{"$f":"VLOOKUP(B240,'LOC FINAL with new Themes'!A:M,9,0)","v":0},{"$f":"VLOOKUP(B240,'LOC FINAL with new Themes'!A:M,10,0)","v":0},{"$f":"VLOOKUP(B240,'LOC FINAL with new Themes'!A:M,11,0)","v":0},{"$f":"VLOOKUP(B240,'LOC FINAL with new Themes'!A:M,12,0)","v":0},{"$f":"VLOOKUP(B240,'LOC FINAL with new Themes'!A:M,13,0)","v":0}]
[null,"All Roads","All Roads","All Roads","Transportation ","DOC-Census","Jennifer Holland","Jennifer.L.Holland@census.gov",{"$f":"VLOOKUP(B241,'LOC FINAL with new Themes'!A:M,7,0)","v":0},{"$f":"VLOOKUP(B241,'LOC FINAL with new Themes'!A:M,8,0)","v":0},{"$f":"VLOOKUP(B241,'LOC FINAL with new Themes'!A:M,9,0)","v":0},{"$f":"VLOOKUP(B241,'LOC FINAL with new Themes'!A:M,10,0)","v":0},{"$f":"VLOOKUP(B241,'LOC FINAL with new Themes'!A:M,11,0)","v":0},{"$f":"VLOOKUP(B241,'LOC FINAL with new Themes'!A:M,12,0)","v":0},{"$f":"VLOOKUP(B241,'LOC FINAL with new Themes'!A:M,13,0)","v":0}]
["Inland Electronic Navigation Charts (IENC)","Inland Electronic Navigation Charts (IENC)","Inland Electronic Navigation Charts (IENC)","Inland Electronic Navigation Charts (IENC)","Transportation ","DOD-USACE","Joel Schlagel","Joel.D.Schlagel@erdc.usace.army.mil ",{"$f":"VLOOKUP(B242,'LOC FINAL with new Themes'!A:M,7,0)","v":0},{"$f":"VLOOKUP(B242,'LOC FINAL with new Themes'!A:M,8,0)","v":0},{"$f":"VLOOKUP(B242,'LOC FINAL with new Themes'!A:M,9,0)","v":0},{"$f":"VLOOKUP(B242,'LOC FINAL with new Themes'!A:M,10,0)","v":0},{"$f":"VLOOKUP(B242,'LOC FINAL with new Themes'!A:M,11,0)","v":0},{"$f":"VLOOKUP(B242,'LOC FINAL with new Themes'!A:M,12,0)","v":0},{"$f":"VLOOKUP(B242,'LOC FINAL with new Themes'!A:M,13,0)","v":0}]
[null,null,"National Interagency Trails Dataset","National Interagency Trails Dataset","Transportation ","USDA"]
["National Map - Transportation Dataset","National Map - Transportation Dataset","National Transportation Dataset - National Map","National Transportation Dataset - National Map","Transportation ","DOI-USGS","Paul Wiese","pmwiese@usgs.gov",{"$f":"VLOOKUP(B244,'LOC FINAL with new Themes'!A:M,7,0)","v":0},{"$f":"VLOOKUP(B244,'LOC FINAL with new Themes'!A:M,8,0)","v":0},{"$f":"VLOOKUP(B244,'LOC FINAL with new Themes'!A:M,9,0)","v":0},{"$f":"VLOOKUP(B244,'LOC FINAL with new Themes'!A:M,10,0)","v":0},{"$f":"VLOOKUP(B244,'LOC FINAL with new Themes'!A:M,11,0)","v":0},{"$f":"VLOOKUP(B244,'LOC FINAL with new Themes'!A:M,12,0)","v":0},{"$f":"VLOOKUP(B244,'LOC FINAL with new Themes'!A:M,13,0)","v":0}]
["NOAA Aeronautical Survey","NOAA Aeronautical Survey",null,"NOAA Aeronautical Survey","Transportation ","DOC-NOAA","Mark Howard","Mark.Howard@noaa.gov",{"$f":"VLOOKUP(B245,'LOC FINAL with new Themes'!A:M,7,0)","v":"The NOAA/NGS Aeronautical Survey Program (ASP) provides products and services to the FAA in accordance with an interagency agreement.  The ASP is a reimbursable program that performs work as requested by the Aeronautical Information Services Office (AIS).  The aeronautical surveys we conduct and review provide airport geodetic control, runway, navigational aid, obstruction, an other aeronautical data that is critical to the operation of the National Airspace System. Recently our role, in support of the FAA, has migrated from primarily being a data provider to reviewing survey data collected by third party commerical surveyors. The survey data (collected by NGS or submitted by 3rd party) is considered good as of the date collected.  The surveys are forwarded to the FAA.  The data supports FAA Instrument Approach Procedure development and is also ingested into databases used to update FAA publications. The NGS has been conducting aeronautical surveys for over 7 decades. We have conducted surveys at over 1200 airports.  Each survey is a single data set.  We began storing the survey data (electronically) in a database around 1990 (prior to that it was all paper).  Note that many of these surveys we conducted are not current. The FAA does obtain aeronautical survey data from many different sources. The 3rd party surveys we review is submitted to the FAA. We retreive a copy of the survey data from an FAA portal to perform our reveiw.       "},{"$f":"VLOOKUP(B245,'LOC FINAL with new Themes'!A:M,8,0)","v":"No, I'm the Program Manager serving as the NGS liason with FAA offices that leverage NGS expertise and capabilities.    "},{"$f":"VLOOKUP(B245,'LOC FINAL with new Themes'!A:M,9,0)","v":"I could be. We don't have a designated person that performs that function. Being a reimbursable program our tasks are limited to those specified in our interagency agreement, which is limited to providing (transfering) the data sets to the FAA.  We are not involved in the dissemenation or distribution of the product.  In the past, when we were conducting more surveys, we would post the survey data (in UDDF format) to our web site (http://www.ngs.noaa.gov/AERO/UDDFdat.htm).  These survey data sets are still available on our site but we no longer post new surveys to the site.  The data is now either submitted to the FAA Third Party Survey Site (TPSS) or the FAA Airports Surveying GIS (AGIS) Program web site (https://airports-gis.faa.gov/public/index.html).  Both sites require registration.  The data uploaded to the TPSS site is assessable via a public site (https://tpss.faa.gov/tpss/uddfList.jsp).    "},{"$f":"VLOOKUP(B245,'LOC FINAL with new Themes'!A:M,10,0)","v":"Updates are contigent on NGS receiving a request from the FAA to conduct another survey.  We do not survey airports on a regular cylce.   We use to survey the larger airports (FAA Part 139) every 3-5 years.  With advances in use of GPS naviagtion the FAA's need for aeronautical survey data increased significantly.  They are now developing Approach procedures for many smaller airports (no need to purchase or maintain ground based ILS equipment).    "},{"$f":"VLOOKUP(B245,'LOC FINAL with new Themes'!A:M,11,0)","v":"Yes, we do have an archive and backup of the surveys we conducted.  Internally we transfer our survey data from our database to differnet environments (photogrammetric workstation, field data logger) via a custom designed ascii text based \"exchange file format\" (EXG). I don't know how easily it would be to make this accessible. I would need to discuss with our database manager.  When ever I ask him a single question he usualy turns around and asks me 10 questions.  The scope of the request would need to be defined. A word of caution.... there is more recent survey data available (from other sources) at many of the airports we have surveyed.  "},{"$f":"VLOOKUP(B245,'LOC FINAL with new Themes'!A:M,12,0)","v":"The aeronautical data set we forward to the FAA is referred to as a UDDF.... which is really the format of the file the data is transferred in.  The documentation for this file format is available on our web site (http://www.ngs.noaa.gov/AERO/annof_7.htm).  Internally it is the \"exchange file format\" (EXG), but of course our workfoce access the information our database via interactive software.  NGS has also established Primary and Secondary Airport Control Stations at many airports across the country.  This control is tied directly to the National Spatial Reference System (NSRS) and available via the NGS IDB (web site).  They are permanent marks with precisly determined positions and elevations that must meet specific siting, construction, and accuracy requirements. The control stations can be retrieved in a variety of formats.  "},{"$f":"VLOOKUP(B245,'LOC FINAL with new Themes'!A:M,13,0)","v":"M "}]
["NTAD","NTAD","NTAD","NTAD","Transportation ","DOT-BTS","Robert Monniere","robert.monniere@dot.gov",{"$f":"VLOOKUP(B246,'LOC FINAL with new Themes'!A:M,7,0)","v":0},{"$f":"VLOOKUP(B246,'LOC FINAL with new Themes'!A:M,8,0)","v":0},{"$f":"VLOOKUP(B246,'LOC FINAL with new Themes'!A:M,9,0)","v":0},{"$f":"VLOOKUP(B246,'LOC FINAL with new Themes'!A:M,10,0)","v":0},{"$f":"VLOOKUP(B246,'LOC FINAL with new Themes'!A:M,11,0)","v":0},{"$f":"VLOOKUP(B246,'LOC FINAL with new Themes'!A:M,12,0)","v":0},{"$f":"VLOOKUP(B246,'LOC FINAL with new Themes'!A:M,13,0)","v":0}]
[null,null,"NTAD (airports)","NTAD (airports)","Transportation ","DOT-BTS"]
[null,null,"NTAD (Rail)","NTAD (Rail)","Transportation ","DOT-BTS"]
["NTAD (TransitLines) ","NTAD (TransitLines) ","NTAD (TransitLines) ","NTAD (TransitLines) ","Transportation ","DOT-BTS","Robert Monniere ","robert.monniere@dot.gov \n",{"$f":"VLOOKUP(B249,'LOC FINAL with new Themes'!A:M,7,0)","v":0},{"$f":"VLOOKUP(B249,'LOC FINAL with new Themes'!A:M,8,0)","v":0},{"$f":"VLOOKUP(B249,'LOC FINAL with new Themes'!A:M,9,0)","v":0},{"$f":"VLOOKUP(B249,'LOC FINAL with new Themes'!A:M,10,0)","v":0},{"$f":"VLOOKUP(B249,'LOC FINAL with new Themes'!A:M,11,0)","v":0},{"$f":"VLOOKUP(B249,'LOC FINAL with new Themes'!A:M,12,0)","v":0},{"$f":"VLOOKUP(B249,'LOC FINAL with new Themes'!A:M,13,0)","v":0}]
["NTAD (TransitStation) ","NTAD (TransitStation) ","NTAD (TransitStation) ","NTAD (TransitStation) ","Transportation ","DOT-BTS","Robert Monniere ","robert.monniere@dot.gov ",{"$f":"VLOOKUP(B250,'LOC FINAL with new Themes'!A:M,7,0)","v":0},{"$f":"VLOOKUP(B250,'LOC FINAL with new Themes'!A:M,8,0)","v":0},{"$f":"VLOOKUP(B250,'LOC FINAL with new Themes'!A:M,9,0)","v":0},{"$f":"VLOOKUP(B250,'LOC FINAL with new Themes'!A:M,10,0)","v":0},{"$f":"VLOOKUP(B250,'LOC FINAL with new Themes'!A:M,11,0)","v":0},{"$f":"VLOOKUP(B250,'LOC FINAL with new Themes'!A:M,12,0)","v":0},{"$f":"VLOOKUP(B250,'LOC FINAL with new Themes'!A:M,13,0)","v":0}]
[null,"Primary and Secondary Roads","Primary and Secondary Roads",{"$f":"IF(C251=0,#REF!,C251)","v":"Primary and Secondary Roads"},"Transportation ","DOC-Census","Jennifer Holland","Jennifer.L.Holland@census.gov",{"$f":"VLOOKUP(B251,'LOC FINAL with new Themes'!A:M,7,0)","v":0},{"$f":"VLOOKUP(B251,'LOC FINAL with new Themes'!A:M,8,0)","v":0},{"$f":"VLOOKUP(B251,'LOC FINAL with new Themes'!A:M,9,0)","v":0},{"$f":"VLOOKUP(B251,'LOC FINAL with new Themes'!A:M,10,0)","v":0},{"$f":"VLOOKUP(B251,'LOC FINAL with new Themes'!A:M,11,0)","v":0},{"$f":"VLOOKUP(B251,'LOC FINAL with new Themes'!A:M,12,0)","v":0},{"$f":"VLOOKUP(B251,'LOC FINAL with new Themes'!A:M,13,0)","v":0}]
[null,"Primary Roads","Primary Roads",{"$f":"IF(C252=0,B252,C252)","v":"Primary Roads"},"Transportation ","DOC-Census","Jennifer Holland","Jennifer.L.Holland@census.gov",{"$f":"VLOOKUP(B252,'LOC FINAL with new Themes'!A:M,7,0)","v":0},{"$f":"VLOOKUP(B252,'LOC FINAL with new Themes'!A:M,8,0)","v":0},{"$f":"VLOOKUP(B252,'LOC FINAL with new Themes'!A:M,9,0)","v":0},{"$f":"VLOOKUP(B252,'LOC FINAL with new Themes'!A:M,10,0)","v":0},{"$f":"VLOOKUP(B252,'LOC FINAL with new Themes'!A:M,11,0)","v":0},{"$f":"VLOOKUP(B252,'LOC FINAL with new Themes'!A:M,12,0)","v":0},{"$f":"VLOOKUP(B252,'LOC FINAL with new Themes'!A:M,13,0)","v":0}]
["TIGER (Roads/Rail)","TIGER (Roads/Rail)",null,{"$f":"IF(C253=0,B253,C253)","v":"TIGER (Roads/Rail)"},"Transportation ","DOC-Census","Randy Fusaro","randy.j.fusaro@census.gov",{"$f":"VLOOKUP(B253,'LOC FINAL with new Themes'!A:M,7,0)","v":0},{"$f":"VLOOKUP(B253,'LOC FINAL with new Themes'!A:M,8,0)","v":0},{"$f":"VLOOKUP(B253,'LOC FINAL with new Themes'!A:M,9,0)","v":0},{"$f":"VLOOKUP(B253,'LOC FINAL with new Themes'!A:M,10,0)","v":0},{"$f":"VLOOKUP(B253,'LOC FINAL with new Themes'!A:M,11,0)","v":0},{"$f":"VLOOKUP(B253,'LOC FINAL with new Themes'!A:M,12,0)","v":0},{"$f":"VLOOKUP(B253,'LOC FINAL with new Themes'!A:M,13,0)","v":0}]
[null,"Traffic Analysis Zone (Census 2000)","Traffic Analysis Zone (Census 2000)",{"$f":"IF(C254=0,B254,C254)","v":"Traffic Analysis Zone (Census 2000)"},"Transportation ","DOC-Census","Jennifer Holland","Jennifer.L.Holland@census.gov",{"$f":"VLOOKUP(B254,'LOC FINAL with new Themes'!A:M,7,0)","v":0},{"$f":"VLOOKUP(B254,'LOC FINAL with new Themes'!A:M,8,0)","v":0},{"$f":"VLOOKUP(B254,'LOC FINAL with new Themes'!A:M,9,0)","v":0},{"$f":"VLOOKUP(B254,'LOC FINAL with new Themes'!A:M,10,0)","v":0},{"$f":"VLOOKUP(B254,'LOC FINAL with new Themes'!A:M,11,0)","v":0},{"$f":"VLOOKUP(B254,'LOC FINAL with new Themes'!A:M,12,0)","v":0},{"$f":"VLOOKUP(B254,'LOC FINAL with new Themes'!A:M,13,0)","v":0}]
[{"$f":"SUBTOTAL(3,A239:A254)","v":7},{"$f":"SUBTOTAL(3,B239:B254)","v":13},{"$f":"SUBTOTAL(3,C239:C254)","v":14},{"$f":"SUBTOTAL(3,D239:D254)","v":16},"Transportation  Count"]
[null,null,"Pipelines",{"$f":"IF(C256=0,B256,C256)","v":"Pipelines"},"Utilities ","DOI-MMS"]
[null,null,"Platforms",{"$f":"IF(C257=0,B257,C257)","v":"Platforms"},"Utilities ","DOI-MMS"]
[{"$f":"SUBTOTAL(3,A256:A257)","v":0},{"$f":"SUBTOTAL(3,B256:B257)","v":0},{"$f":"SUBTOTAL(3,C256:C257)","v":2},{"$f":"SUBTOTAL(3,D256:D257)","v":2},"Utilities  Count"]
[null,"Area Hydrography (2010 Census)","Area Hydrography (2010 Census)",{"$f":"IF(C259=0,B259,C259)","v":"Area Hydrography (2010 Census)"},"Water -- Inland","DOC-Census","Jennifer Holland","Jennifer.L.Holland@census.gov",{"$f":"VLOOKUP(B259,'LOC FINAL with new Themes'!A:M,7,0)","v":0},{"$f":"VLOOKUP(B259,'LOC FINAL with new Themes'!A:M,8,0)","v":0},{"$f":"VLOOKUP(B259,'LOC FINAL with new Themes'!A:M,9,0)","v":0},{"$f":"VLOOKUP(B259,'LOC FINAL with new Themes'!A:M,10,0)","v":0},{"$f":"VLOOKUP(B259,'LOC FINAL with new Themes'!A:M,11,0)","v":0},{"$f":"VLOOKUP(B259,'LOC FINAL with new Themes'!A:M,12,0)","v":0},{"$f":"VLOOKUP(B259,'LOC FINAL with new Themes'!A:M,13,0)","v":0}]
[null,"Linear Water Features","Linear Water Features","Linear Water Features","Water -- Inland","DOC-Census","Jennifer Holland","Jennifer.L.Holland@census.gov",{"$f":"VLOOKUP(B260,'LOC FINAL with new Themes'!A:M,7,0)","v":0},{"$f":"VLOOKUP(B260,'LOC FINAL with new Themes'!A:M,8,0)","v":0},{"$f":"VLOOKUP(B260,'LOC FINAL with new Themes'!A:M,9,0)","v":0},{"$f":"VLOOKUP(B260,'LOC FINAL with new Themes'!A:M,10,0)","v":0},{"$f":"VLOOKUP(B260,'LOC FINAL with new Themes'!A:M,11,0)","v":0},{"$f":"VLOOKUP(B260,'LOC FINAL with new Themes'!A:M,12,0)","v":0},{"$f":"VLOOKUP(B260,'LOC FINAL with new Themes'!A:M,13,0)","v":0}]
["National Hydrography Data Set","National Hydrography Dataset","National Hydrography Dataset - National Map","National Hydrography Dataset - National Map","Water -- Inland","DOI-USGS","Jeff Simley","jdsimley@usgs.gov",{"$f":"VLOOKUP(B261,'LOC FINAL with new Themes'!A:M,7,0)","v":0},{"$f":"VLOOKUP(B261,'LOC FINAL with new Themes'!A:M,8,0)","v":0},{"$f":"VLOOKUP(B261,'LOC FINAL with new Themes'!A:M,9,0)","v":0},{"$f":"VLOOKUP(B261,'LOC FINAL with new Themes'!A:M,10,0)","v":0},{"$f":"VLOOKUP(B261,'LOC FINAL with new Themes'!A:M,11,0)","v":0},{"$f":"VLOOKUP(B261,'LOC FINAL with new Themes'!A:M,12,0)","v":0},{"$f":"VLOOKUP(B261,'LOC FINAL with new Themes'!A:M,13,0)","v":0}]
["National Inventory of Dams (NID)","National Inventory of Dams (NID)","National Inventory of Dams (NID)","National Inventory of Dams (NID)","Water -- Inland","DOD-USACE","Rebecca Ragon","Rebecca.Ragon@usace.army.mil ",{"$f":"VLOOKUP(B262,'LOC FINAL with new Themes'!A:M,7,0)","v":"One single data set"},{"$f":"VLOOKUP(B262,'LOC FINAL with new Themes'!A:M,8,0)","v":"Yes"},{"$f":"VLOOKUP(B262,'LOC FINAL with new Themes'!A:M,9,0)","v":"Yes"},{"$f":"VLOOKUP(B262,'LOC FINAL with new Themes'!A:M,10,0)","v":"Usually every 2 years"},{"$f":"VLOOKUP(B262,'LOC FINAL with new Themes'!A:M,11,0)","v":"Because the NID is updated every 2 years, we do have archived databased datig back to 1994."},{"$f":"VLOOKUP(B262,'LOC FINAL with new Themes'!A:M,12,0)","v":"The official name is National Inventory of Dams (NID) but I have seen the database referenced as the National Dam Inventory"},{"$f":"VLOOKUP(B262,'LOC FINAL with new Themes'!A:M,13,0)","v":"S"}]
["National Levee Database (NLD)","National Levee Database (NLD)","National Levee Database (NLD)","National Levee Database (NLD)","Water -- Inland","DOD-USACE","Bryan Baker","Bryan.E.Baker@usace.army.mil",{"$f":"VLOOKUP(B263,'LOC FINAL with new Themes'!A:M,7,0)","v":0},{"$f":"VLOOKUP(B263,'LOC FINAL with new Themes'!A:M,8,0)","v":0},{"$f":"VLOOKUP(B263,'LOC FINAL with new Themes'!A:M,9,0)","v":0},{"$f":"VLOOKUP(B263,'LOC FINAL with new Themes'!A:M,10,0)","v":0},{"$f":"VLOOKUP(B263,'LOC FINAL with new Themes'!A:M,11,0)","v":0},{"$f":"VLOOKUP(B263,'LOC FINAL with new Themes'!A:M,12,0)","v":0},{"$f":"VLOOKUP(B263,'LOC FINAL with new Themes'!A:M,13,0)","v":0}]
[null,null,"National Water Information System (NWIS)- Stream Gage Network","National Water Information System (NWIS)- Stream Gage Network","Water -- Inland","DOI-USGS"]
[null,null,"National Water Information System (NWIS)- Water Quality Monitoring Stations","National Water Information System (NWIS)- Water Quality Monitoring Stations","Water -- Inland","DOI-USGS"]
["National Wetlands Inventory (NWI) ","National Wetlands Inventory (NWI) ","National Wetlands Inventory (NWI) ","National Wetlands Inventory (NWI) ","Water -- Inland","DOI-FWS","Tom Dahl  ","tom_dahl@fws.gov\n",{"$f":"VLOOKUP(B266,'LOC FINAL with new Themes'!A:M,7,0)","v":0},{"$f":"VLOOKUP(B266,'LOC FINAL with new Themes'!A:M,8,0)","v":0},{"$f":"VLOOKUP(B266,'LOC FINAL with new Themes'!A:M,9,0)","v":0},{"$f":"VLOOKUP(B266,'LOC FINAL with new Themes'!A:M,10,0)","v":0},{"$f":"VLOOKUP(B266,'LOC FINAL with new Themes'!A:M,11,0)","v":0},{"$f":"VLOOKUP(B266,'LOC FINAL with new Themes'!A:M,12,0)","v":0},{"$f":"VLOOKUP(B266,'LOC FINAL with new Themes'!A:M,13,0)","v":0}]
["Nautical charts","Nautical Charts",null,"Nautical Charts","Water -- Inland",null,null,null,{"$f":"VLOOKUP(B267,'LOC FINAL with new Themes'!A:M,7,0)","v":0},{"$f":"VLOOKUP(B267,'LOC FINAL with new Themes'!A:M,8,0)","v":0},{"$f":"VLOOKUP(B267,'LOC FINAL with new Themes'!A:M,9,0)","v":0},{"$f":"VLOOKUP(B267,'LOC FINAL with new Themes'!A:M,10,0)","v":0},{"$f":"VLOOKUP(B267,'LOC FINAL with new Themes'!A:M,11,0)","v":0},{"$f":"VLOOKUP(B267,'LOC FINAL with new Themes'!A:M,12,0)","v":0},{"$f":"VLOOKUP(B267,'LOC FINAL with new Themes'!A:M,13,0)","v":0}]
["NWIS & STORET","NWIS & STORET",null,"NWIS & STORET","Water -- Inland",null,"EGIM",null,{"$f":"VLOOKUP(B268,'LOC FINAL with new Themes'!A:M,7,0)","v":0},{"$f":"VLOOKUP(B268,'LOC FINAL with new Themes'!A:M,8,0)","v":0},{"$f":"VLOOKUP(B268,'LOC FINAL with new Themes'!A:M,9,0)","v":0},{"$f":"VLOOKUP(B268,'LOC FINAL with new Themes'!A:M,10,0)","v":0},{"$f":"VLOOKUP(B268,'LOC FINAL with new Themes'!A:M,11,0)","v":0},{"$f":"VLOOKUP(B268,'LOC FINAL with new Themes'!A:M,12,0)","v":0},{"$f":"VLOOKUP(B268,'LOC FINAL with new Themes'!A:M,13,0)","v":0}]
["Shore and sea boundaries","Shore and sea boundaries",null,"Shore and sea boundaries","Water -- Inland",null,"EGIM",null,{"$f":"VLOOKUP(B269,'LOC FINAL with new Themes'!A:M,7,0)","v":0},{"$f":"VLOOKUP(B269,'LOC FINAL with new Themes'!A:M,8,0)","v":0},{"$f":"VLOOKUP(B269,'LOC FINAL with new Themes'!A:M,9,0)","v":0},{"$f":"VLOOKUP(B269,'LOC FINAL with new Themes'!A:M,10,0)","v":0},{"$f":"VLOOKUP(B269,'LOC FINAL with new Themes'!A:M,11,0)","v":0},{"$f":"VLOOKUP(B269,'LOC FINAL with new Themes'!A:M,12,0)","v":0},{"$f":"VLOOKUP(B269,'LOC FINAL with new Themes'!A:M,13,0)","v":0}]
[null,"Topological Faces-Area Hydrography Relationship File","Topological Faces-Area Hydrography Relationship File","Topological Faces-Area Hydrography Relationship File","Water -- Inland","DOC-Census","Jennifer Holland","Jennifer.L.Holland@census.gov",{"$f":"VLOOKUP(B270,'LOC FINAL with new Themes'!A:M,7,0)","v":0},{"$f":"VLOOKUP(B270,'LOC FINAL with new Themes'!A:M,8,0)","v":0},{"$f":"VLOOKUP(B270,'LOC FINAL with new Themes'!A:M,9,0)","v":0},{"$f":"VLOOKUP(B270,'LOC FINAL with new Themes'!A:M,10,0)","v":0},{"$f":"VLOOKUP(B270,'LOC FINAL with new Themes'!A:M,11,0)","v":0},{"$f":"VLOOKUP(B270,'LOC FINAL with new Themes'!A:M,12,0)","v":0},{"$f":"VLOOKUP(B270,'LOC FINAL with new Themes'!A:M,13,0)","v":0}]
["Watershed Boundary Data Set (WBD)  ","Watershed Boundary Dataset (WBD)  ","Watershed Boundary Dataset (WBD)  ","Watershed Boundary Dataset (WBD)  ","Water -- Inland","DOI-USGS","Karen Hanson","khanson@usgs.gov",{"$f":"VLOOKUP(B271,'LOC FINAL with new Themes'!A:M,7,0)","v":"one set with nested hierarchy of six different levels within it (regions, subdivided into four, six and twelve digits), POC and data manager; continually updated; co-managed with NRCS and they archive it; USGS in Denver will serve it; All transactions are archived in versions in the database as they happen. Data from any moment in time can be captured with a simple query. The database is replicated daily to Rolla, MO servers. The database is stored on a SAN with three tier redundancy.All changes to the database are stored on separate disks and once they reach a certain size, they are copied over to a server to be written to tape. Weekly, the entire database (NHD, with WBD) is written to tape.Monthly, the tapes are taken off site for storage."},{"$f":"VLOOKUP(B271,'LOC FINAL with new Themes'!A:M,8,0)","v":0},{"$f":"VLOOKUP(B271,'LOC FINAL with new Themes'!A:M,9,0)","v":0},{"$f":"VLOOKUP(B271,'LOC FINAL with new Themes'!A:M,10,0)","v":0},{"$f":"VLOOKUP(B271,'LOC FINAL with new Themes'!A:M,11,0)","v":0},{"$f":"VLOOKUP(B271,'LOC FINAL with new Themes'!A:M,12,0)","v":0},{"$f":"VLOOKUP(B271,'LOC FINAL with new Themes'!A:M,13,0)","v":"S"}]
["Watershed Boundary Data Set (WBD)  ","Watershed Boundary Dataset (WBD)  ","Watershed Boundary Dataset (WBD)  ","Watershed Boundary Dataset (WBD)  ","Water -- Inland","DOI-USGS","Karen Hanson","khanson@usgs.gov",{"$f":"VLOOKUP(B272,'LOC FINAL with new Themes'!A:M,7,0)","v":"one set with nested hierarchy of six different levels within it (regions, subdivided into four, six and twelve digits), POC and data manager; continually updated; co-managed with NRCS and they archive it; USGS in Denver will serve it; All transactions are archived in versions in the database as they happen. Data from any moment in time can be captured with a simple query. The database is replicated daily to Rolla, MO servers. The database is stored on a SAN with three tier redundancy.All changes to the database are stored on separate disks and once they reach a certain size, they are copied over to a server to be written to tape. Weekly, the entire database (NHD, with WBD) is written to tape.Monthly, the tapes are taken off site for storage."},{"$f":"VLOOKUP(B272,'LOC FINAL with new Themes'!A:M,8,0)","v":0},{"$f":"VLOOKUP(B272,'LOC FINAL with new Themes'!A:M,9,0)","v":0},{"$f":"VLOOKUP(B272,'LOC FINAL with new Themes'!A:M,10,0)","v":0},{"$f":"VLOOKUP(B272,'LOC FINAL with new Themes'!A:M,11,0)","v":0},{"$f":"VLOOKUP(B272,'LOC FINAL with new Themes'!A:M,12,0)","v":0},{"$f":"VLOOKUP(B272,'LOC FINAL with new Themes'!A:M,13,0)","v":"S"}]
[{"$f":"SUBTOTAL(3,A259:A272)","v":9},{"$f":"SUBTOTAL(3,B259:B272)","v":12},{"$f":"SUBTOTAL(3,C259:C272)","v":11},{"$f":"SUBTOTAL(3,D259:D272)","v":14},"Water -- Inland Count"]
[null,null,"Coastal Barrier Resource System",{"$f":"IF(C274=0,B274,C274)","v":"Coastal Barrier Resource System"},"Water -- Oceans and Coasts ","DOI-FWS"]
[null,null,"Coastal Change Analysis Program (C-CAP) Land Cover and Land Change Imagery","Coastal Change Analysis Program (C-CAP) Land Cover and Land Change Imagery","Water -- Oceans and Coasts ","DOC-NOAA"]
["Contiguous Zone","Contiguous Zone",null,"Contiguous Zone","Water -- Oceans and Coasts ","DOC-NOAA","Meredith Westington","meredith.westington@noaa.gov",{"$f":"VLOOKUP(B276,'LOC FINAL with new Themes'!A:M,7,0)","v":0},{"$f":"VLOOKUP(B276,'LOC FINAL with new Themes'!A:M,8,0)","v":0},{"$f":"VLOOKUP(B276,'LOC FINAL with new Themes'!A:M,9,0)","v":0},{"$f":"VLOOKUP(B276,'LOC FINAL with new Themes'!A:M,10,0)","v":"- We do also add historical dates, if that is of interest."},{"$f":"VLOOKUP(B276,'LOC FINAL with new Themes'!A:M,11,0)","v":0},{"$f":"VLOOKUP(B276,'LOC FINAL with new Themes'!A:M,12,0)","v":0},{"$f":"VLOOKUP(B276,'LOC FINAL with new Themes'!A:M,13,0)","v":0}]
["Continental Shelf Boundary Data","Continental Shelf Boundary Data","Continental Shelf Boundary Data","Continental Shelf Boundary Data","Water -- Oceans and Coasts ","DOI-MMS","James Fulmer","james.s.fulmer@mms.gov",{"$f":"VLOOKUP(B277,'LOC FINAL with new Themes'!A:M,7,0)","v":"undeliverable email- neeed to identify new contact"},{"$f":"VLOOKUP(B277,'LOC FINAL with new Themes'!A:M,8,0)","v":0},{"$f":"VLOOKUP(B277,'LOC FINAL with new Themes'!A:M,9,0)","v":0},{"$f":"VLOOKUP(B277,'LOC FINAL with new Themes'!A:M,10,0)","v":0},{"$f":"VLOOKUP(B277,'LOC FINAL with new Themes'!A:M,11,0)","v":0},{"$f":"VLOOKUP(B277,'LOC FINAL with new Themes'!A:M,12,0)","v":0},{"$f":"VLOOKUP(B277,'LOC FINAL with new Themes'!A:M,13,0)","v":0}]
["Exclusive Economic Zone","Exclusive Economic Zone",null,"Exclusive Economic Zone","Water -- Oceans and Coasts ","DOC-NOAA","Meredith Westington","meredith.westington@noaa.gov",{"$f":"VLOOKUP(B278,'LOC FINAL with new Themes'!A:M,7,0)","v":0},{"$f":"VLOOKUP(B278,'LOC FINAL with new Themes'!A:M,8,0)","v":0},{"$f":"VLOOKUP(B278,'LOC FINAL with new Themes'!A:M,9,0)","v":0},{"$f":"VLOOKUP(B278,'LOC FINAL with new Themes'!A:M,10,0)","v":0},{"$f":"VLOOKUP(B278,'LOC FINAL with new Themes'!A:M,11,0)","v":0},{"$f":"VLOOKUP(B278,'LOC FINAL with new Themes'!A:M,12,0)","v":0},{"$f":"VLOOKUP(B278,'LOC FINAL with new Themes'!A:M,13,0)","v":0}]
[null,null,"National Data Buoy Center (NDBC) Recent and Historical Data","National Data Buoy Center (NDBC) Recent and Historical Data","Water -- Oceans and Coasts ","DOC-NOAA"]
["NOAA Composite Shoreline","NOAA Composite Shoreline",null,"NOAA Composite Shoreline","Water -- Oceans and Coasts ","DOC-NOAA","Tara Miller","Tara.Miller@noaa.gov",{"$f":"VLOOKUP(B280,'LOC FINAL with new Themes'!A:M,7,0)","v":0},{"$f":"VLOOKUP(B280,'LOC FINAL with new Themes'!A:M,8,0)","v":0},{"$f":"VLOOKUP(B280,'LOC FINAL with new Themes'!A:M,9,0)","v":0},{"$f":"VLOOKUP(B280,'LOC FINAL with new Themes'!A:M,10,0)","v":0},{"$f":"VLOOKUP(B280,'LOC FINAL with new Themes'!A:M,11,0)","v":0},{"$f":"VLOOKUP(B280,'LOC FINAL with new Themes'!A:M,12,0)","v":0},{"$f":"VLOOKUP(B280,'LOC FINAL with new Themes'!A:M,13,0)","v":0}]
["NOAA Extracted Vector Shoreline","NOAA Extracted Vector Shoreline",null,"NOAA Extracted Vector Shoreline","Water -- Oceans and Coasts ","DOC-NOAA","Matt Austin","Matthew.Austin@noaa.gov",{"$f":"VLOOKUP(B281,'LOC FINAL with new Themes'!A:M,7,0)","v":0},{"$f":"VLOOKUP(B281,'LOC FINAL with new Themes'!A:M,8,0)","v":0},{"$f":"VLOOKUP(B281,'LOC FINAL with new Themes'!A:M,9,0)","v":0},{"$f":"VLOOKUP(B281,'LOC FINAL with new Themes'!A:M,10,0)","v":0},{"$f":"VLOOKUP(B281,'LOC FINAL with new Themes'!A:M,11,0)","v":0},{"$f":"VLOOKUP(B281,'LOC FINAL with new Themes'!A:M,12,0)","v":0},{"$f":"VLOOKUP(B281,'LOC FINAL with new Themes'!A:M,13,0)","v":0}]
["NOAA Medium Resolution Shoreline","NOAA Medium Resolution Shoreline",null,"NOAA Medium Resolution Shoreline","Water -- Oceans and Coasts ","DOC-NOAA","Robert Wilson","Robert.Wilson@noaa.gov",{"$f":"VLOOKUP(B282,'LOC FINAL with new Themes'!A:M,7,0)","v":0},{"$f":"VLOOKUP(B282,'LOC FINAL with new Themes'!A:M,8,0)","v":0},{"$f":"VLOOKUP(B282,'LOC FINAL with new Themes'!A:M,9,0)","v":0},{"$f":"VLOOKUP(B282,'LOC FINAL with new Themes'!A:M,10,0)","v":0},{"$f":"VLOOKUP(B282,'LOC FINAL with new Themes'!A:M,11,0)","v":0},{"$f":"VLOOKUP(B282,'LOC FINAL with new Themes'!A:M,12,0)","v":0},{"$f":"VLOOKUP(B282,'LOC FINAL with new Themes'!A:M,13,0)","v":0}]
[null,null,"NOAA National Shoreline","NOAA National Shoreline","Water -- Oceans and Coasts ","DOC-NOAA","Doug Graham","Doug.Graham@noaa.gov"]
["NOAA National Shoreline","NOAA National Shoreline",null,"NOAA National Shoreline","Water -- Oceans and Coasts ","DOC-NOAA","Doug Graham","Doug.Graham@noaa.gov",{"$f":"VLOOKUP(B284,'LOC FINAL with new Themes'!A:M,7,0)","v":"1,665 shoreline projects (data sets)"},{"$f":"VLOOKUP(B284,'LOC FINAL with new Themes'!A:M,8,0)","v":"Yes"},{"$f":"VLOOKUP(B284,'LOC FINAL with new Themes'!A:M,9,0)","v":"Yes"},{"$f":"VLOOKUP(B284,'LOC FINAL with new Themes'!A:M,10,0)","v":"    There are historical and contemporary data set updates to the NOAA Shoreline Data Explorer application.  The historical data sets are from a data rescue project called Climate Data Modernization Program.  These projects would be loaded in bulk batches every few months.  The funding for this program was recently terminated.  The contemporary data sets are our current shoreline updates to the NOAA National Shoreline.  These projects are uploaded when completed which vary in numbers but within the last twelve months there were over 30 contemporary shoreline survey projects loaded."},{"$f":"VLOOKUP(B284,'LOC FINAL with new Themes'!A:M,11,0)","v":"The National Geodetic Survey performs data base backs ups including the NGS Shoreline Data Base.  Currently there is no archived copy of the NGS Shoreline Data Base.   I believe the backups occur every couple weeks and these backups are not easily accessible."},{"$f":"VLOOKUP(B284,'LOC FINAL with new Themes'!A:M,12,0)","v":"The data set as a whole is referenced as the \"National Shoreline\".  This is composed of individual contemporary or historical data sets including GCs, DMs, TP-Sheets, and T-Sheets."},{"$f":"VLOOKUP(B284,'LOC FINAL with new Themes'!A:M,13,0)","v":"M "}]
["NOAA Nautical Charts","NOAA Nautical Charts","NOAA's Nautical Chart Products","NOAA's Nautical Chart Products","Water -- Oceans and Coasts ","DOC-NOAA","John Lowell","John.Lowell@noaa.gov",{"$f":"VLOOKUP(B285,'LOC FINAL with new Themes'!A:M,7,0)","v":0},{"$f":"VLOOKUP(B285,'LOC FINAL with new Themes'!A:M,8,0)","v":0},{"$f":"VLOOKUP(B285,'LOC FINAL with new Themes'!A:M,9,0)","v":0},{"$f":"VLOOKUP(B285,'LOC FINAL with new Themes'!A:M,10,0)","v":0},{"$f":"VLOOKUP(B285,'LOC FINAL with new Themes'!A:M,11,0)","v":0},{"$f":"VLOOKUP(B285,'LOC FINAL with new Themes'!A:M,12,0)","v":0},{"$f":"VLOOKUP(B285,'LOC FINAL with new Themes'!A:M,13,0)","v":0}]
[null,null,"Non-Projected Boundaries","Non-Projected Boundaries","Water -- Oceans and Coasts ","DOI-MMS"]
[null,null,"Projected Boundaries","Projected Boundaries","Water -- Oceans and Coasts ","DOI-MMS"]
["Territorial Sea","Territorial Sea",null,"Territorial Sea","Water -- Oceans and Coasts ","DOC-NOAA","Meredith Westington","meredith.westington@noaa.gov",{"$f":"VLOOKUP(B288,'LOC FINAL with new Themes'!A:M,7,0)","v":"    National-scale maritime limits/boundaries are available as separate data layers or as a packaged bundle."},{"$f":"VLOOKUP(B288,'LOC FINAL with new Themes'!A:M,8,0)","v":0},{"$f":"VLOOKUP(B288,'LOC FINAL with new Themes'!A:M,9,0)","v":0},{"$f":"VLOOKUP(B288,'LOC FINAL with new Themes'!A:M,10,0)","v":0},{"$f":"VLOOKUP(B288,'LOC FINAL with new Themes'!A:M,11,0)","v":0},{"$f":"VLOOKUP(B288,'LOC FINAL with new Themes'!A:M,12,0)","v":0},{"$f":"VLOOKUP(B288,'LOC FINAL with new Themes'!A:M,13,0)","v":0}]
[null,null,"U.S. Marine Protected Areas Boundaries","U.S. Marine Protected Areas Boundaries","Water -- Oceans and Coasts ","DOC-NOAA"]
[null,null,"U.S. Maritime Zones/Boundaries","U.S. Maritime Zones/Boundaries","Water -- Oceans and Coasts ","DOC-NOAA"]
[{"$f":"SUBTOTAL(3,A274:A290)","v":9},{"$f":"SUBTOTAL(3,B274:B290)","v":9},{"$f":"SUBTOTAL(3,C274:C290)","v":10},{"$f":"SUBTOTAL(3,D274:D290)","v":17},"Water -- Oceans and Coasts  Count"]
[{"$f":"SUBTOTAL(3,A2:A290)","v":129},{"$f":"SUBTOTAL(3,B2:B290)","v":200},{"$f":"SUBTOTAL(3,C2:C290)","v":200},{"$f":"SUBTOTAL(3,D2:D290)","v":271},"Grand Count"]

{"sheet":"11-8-2011","index":4,"n_rows":297,"n_cols":15,"rows_kept":297,"cut":false,"hidden":true,"merged":[]}
["ORIGINAL (beginning of 2011)","LOC FINAL (October 2011)","NGDA List (October 2011)","FINAL List (November 2011)","Theme","Agency","Dataset Manager","Email","Q1 How many data set(s) do you have? It is a single set or multiple sets? ","Q2 Are you a data set manager?","Q3 Are you the POC for transferring the data set and/or for information about the data set?","Q4 How often is the data set updated?","Q5 Is there an archive/backup of the data set or do you maintain an archived copy of it? If yes, how far back do you maintain a copy? Is it easily accessible?","Q6 Does the data set go by a different name or is it referred to internally by another descriptive name?","M\nP\nS"]
[null,null,"Critical Habitat ",{"$f":"IF(C2=0,B2,C2)","v":"Critical Habitat "},"Biota","DOI-FWS"]
[null,null,"Current Range for listed species ","Current Range for listed species ","Biota","DOI-FWS"]
["ECOMAP Data Sets (Ecological Subregions: Sections and Subsections for the Conterminous United States ) ","ECOMAP Datasets (Ecological Subregions: Sections and Subsections for the Conterminous United States ) ","ECOMAP Datasets (Ecological Subregions: Sections and Subsections for the Conterminous United States ) ","ECOMAP Datasets (Ecological Subregions: Sections and Subsections for the Conterminous United States ) ","Biota","USDA-FS","David T. Cleland","dcleland@fs.fed.us",{"$f":"VLOOKUP(B4,'LOC FINAL with new Themes'!A:M,7,0)","v":"One, single set"},{"$f":"VLOOKUP(B4,'LOC FINAL with new Themes'!A:M,8,0)","v":"Yes"},{"$f":"VLOOKUP(B4,'LOC FINAL with new Themes'!A:M,9,0)","v":"Yes"},{"$f":"VLOOKUP(B4,'LOC FINAL with new Themes'!A:M,10,0)","v":"Maps are updated on a 10-year cycle"},{"$f":"VLOOKUP(B4,'LOC FINAL with new Themes'!A:M,11,0)","v":"The data is housed at and served by the Forest Service geodata portal, and is easily accessible.  The web address is: http://fsgeodata.fs.fed.us/other_resources/ecosubregions.html "},{"$f":"VLOOKUP(B4,'LOC FINAL with new Themes'!A:M,12,0)","v":"?   Internally, the data is named ECOMAP or the National Hierarchy of Ecological Units. "},{"$f":"VLOOKUP(B4,'LOC FINAL with new Themes'!A:M,13,0)","v":"S"}]
[null,null,"Endangered Species (Threatened and Endangered Species System)","Endangered Species (Threatened and Endangered Species System)","Biota","DOI-FWS"]
["Env Sens Index Maps - classified shoreline","Env Sens Index Maps - classified shoreline","Environmental Sensitivity Index (ESI) Data and Maps","Environmental Sensitivity Index (ESI) Data and Maps","Biota","DOC-NOAA","Jill Petersen","jill.petersen@noaa.gov",{"$f":"VLOOKUP(B6,'LOC FINAL with new Themes'!A:M,7,0)","v":"There are approximately 70 different atlases. There are a few that are still not available in a GIS format, (approx 7 of the approx 70!) - these are available as the hard copy product and as PDFs (scanned). The remaining atlases are available in multiple GIS formats - Arc Export files, Geodatabase with an ArcMap map document complete with all relates established and properly symbolized, Shape files with an ArcView 3.x project, a free ESI viewer that allows viewing, queries and printing (in house mapping program and filemaker pro) as well as PDF format and the hard copy product. These can be downloaded from http://response.restoration.noaa.gov/esi_download This page is in progress, but should be complete fairly quickly.\n\n"},{"$f":"VLOOKUP(B6,'LOC FINAL with new Themes'!A:M,8,0)","v":"Yes"},{"$f":"VLOOKUP(B6,'LOC FINAL with new Themes'!A:M,9,0)","v":"Yes "},{"$f":"VLOOKUP(B6,'LOC FINAL with new Themes'!A:M,10,0)","v":"- High resolution products have no defined update schedule.  TBD by geog/project."},{"$f":"VLOOKUP(B6,'LOC FINAL with new Themes'!A:M,11,0)","v":"Yes and no. We have archives of all the digital data as well as all the PDFs (scanned or produced with the digital data map comps). Many of the hard copy atlases from the first round of ESI maps were sent to the Library of Commerce. Others I have kept, but no very organized situation. However, we have all of the historic PDFs which are an exact duplicate of the hard copy atlas, so that is something. Historic data is going to be served from the above link as well. That will be added as the current data sets are completed."},{"$f":"VLOOKUP(B6,'LOC FINAL with new Themes'!A:M,12,0)","v":"ESI is the common abbreviation for these maps. Other than that, Environmental Sensitivity Index Maps, Shoreline Sensitivity maps, Environmental Sensitivity maps..... These maps have the classified shoreline, as well as summaries of biological and human use resource particularly sensitive to oiling. "},{"$f":"VLOOKUP(B6,'LOC FINAL with new Themes'!A:M,13,0)","v":"M "}]
["Environmental Sensitivity Index Maps","Environmental Sensitivity Index Maps","Environmental Sensitivity Index (ESI) Data and Maps","Environmental Sensitivity Index (ESI) Data and Maps","Biota","DOC-NOAA","Jill Petersen","jill.petersen@noaa.gov",{"$f":"VLOOKUP(B7,'LOC FINAL with new Themes'!A:M,7,0)","v":"Same as Env Sens Index Maps - classified shoreline"},{"$f":"VLOOKUP(B7,'LOC FINAL with new Themes'!A:M,8,0)","v":0},{"$f":"VLOOKUP(B7,'LOC FINAL with new Themes'!A:M,9,0)","v":0},{"$f":"VLOOKUP(B7,'LOC FINAL with new Themes'!A:M,10,0)","v":"- Hawaii is TBD, but most likely will end up being a 10 year update cycle."},{"$f":"VLOOKUP(B7,'LOC FINAL with new Themes'!A:M,11,0)","v":0},{"$f":"VLOOKUP(B7,'LOC FINAL with new Themes'!A:M,12,0)","v":0},{"$f":"VLOOKUP(B7,'LOC FINAL with new Themes'!A:M,13,0)","v":0}]
["GAP Program Dataset","GAP Program Dataset","GAP Program Dataset","GAP Program Dataset","Biota","DOI-USGS","Kevin Gergely","gergely@usgs.gov",{"$f":"VLOOKUP(B8,'LOC FINAL with new Themes'!A:M,7,0)","v":"POC; multiple data sets in single location, building three fundamental data layers, two are national (protected areas, land cover dataset); backup; six months, annually)"},{"$f":"VLOOKUP(B8,'LOC FINAL with new Themes'!A:M,8,0)","v":0},{"$f":"VLOOKUP(B8,'LOC FINAL with new Themes'!A:M,9,0)","v":0},{"$f":"VLOOKUP(B8,'LOC FINAL with new Themes'!A:M,10,0)","v":0},{"$f":"VLOOKUP(B8,'LOC FINAL with new Themes'!A:M,11,0)","v":0},{"$f":"VLOOKUP(B8,'LOC FINAL with new Themes'!A:M,12,0)","v":0},{"$f":"VLOOKUP(B8,'LOC FINAL with new Themes'!A:M,13,0)","v":"P"}]
["National Standardized Ecosystems Dataset","National Standardized Ecosystems Dataset","National Standardized Ecosystems Dataset","National Standardized Ecosystems Dataset","Biota","DOI-USGS","Roger Sayre","rsayre@usgs.gov",{"$f":"VLOOKUP(B9,'LOC FINAL with new Themes'!A:M,7,0)","v":0},{"$f":"VLOOKUP(B9,'LOC FINAL with new Themes'!A:M,8,0)","v":0},{"$f":"VLOOKUP(B9,'LOC FINAL with new Themes'!A:M,9,0)","v":0},{"$f":"VLOOKUP(B9,'LOC FINAL with new Themes'!A:M,10,0)","v":0},{"$f":"VLOOKUP(B9,'LOC FINAL with new Themes'!A:M,11,0)","v":0},{"$f":"VLOOKUP(B9,'LOC FINAL with new Themes'!A:M,12,0)","v":0},{"$f":"VLOOKUP(B9,'LOC FINAL with new Themes'!A:M,13,0)","v":0}]
[null,null,"Recovery Range for listed species ","Recovery Range for listed species ","Biota","DOI-FWS"]
[null,null,"Section 7 Range for listed species ","Section 7 Range for listed species ","Biota","DOI-FWS"]
["Biomes, Ecoregions","Biomes, Ecoregions",null,"Biomes, Ecoregions","Biota ","DOI-USGS","Dan Phillips ","dphillips@usgs.gov",{"$f":"VLOOKUP(B12,'LOC FINAL with new Themes'!A:M,7,0)","v":0},{"$f":"VLOOKUP(B12,'LOC FINAL with new Themes'!A:M,8,0)","v":0},{"$f":"VLOOKUP(B12,'LOC FINAL with new Themes'!A:M,9,0)","v":0},{"$f":"VLOOKUP(B12,'LOC FINAL with new Themes'!A:M,10,0)","v":0},{"$f":"VLOOKUP(B12,'LOC FINAL with new Themes'!A:M,11,0)","v":0},{"$f":"VLOOKUP(B12,'LOC FINAL with new Themes'!A:M,12,0)","v":0},{"$f":"VLOOKUP(B12,'LOC FINAL with new Themes'!A:M,13,0)","v":0}]
["Ecological Services","Ecological Services",null,"Ecological Services","Biota ","DOI-USGS","Dan Phillips ","dphillips@usgs.gov",{"$f":"VLOOKUP(B13,'LOC FINAL with new Themes'!A:M,7,0)","v":0},{"$f":"VLOOKUP(B13,'LOC FINAL with new Themes'!A:M,8,0)","v":0},{"$f":"VLOOKUP(B13,'LOC FINAL with new Themes'!A:M,9,0)","v":0},{"$f":"VLOOKUP(B13,'LOC FINAL with new Themes'!A:M,10,0)","v":0},{"$f":"VLOOKUP(B13,'LOC FINAL with new Themes'!A:M,11,0)","v":0},{"$f":"VLOOKUP(B13,'LOC FINAL with new Themes'!A:M,12,0)","v":0},{"$f":"VLOOKUP(B13,'LOC FINAL with new Themes'!A:M,13,0)","v":0}]
["Habitats","Habitats",null,"Habitats","Biota ","DOI-USGS","Dan Phillips ","dphillips@usgs.gov",{"$f":"VLOOKUP(B14,'LOC FINAL with new Themes'!A:M,7,0)","v":"see protected areas and land cover set; vertebrae species of US being developed (not complete for all species they want to include in it."},{"$f":"VLOOKUP(B14,'LOC FINAL with new Themes'!A:M,8,0)","v":0},{"$f":"VLOOKUP(B14,'LOC FINAL with new Themes'!A:M,9,0)","v":0},{"$f":"VLOOKUP(B14,'LOC FINAL with new Themes'!A:M,10,0)","v":0},{"$f":"VLOOKUP(B14,'LOC FINAL with new Themes'!A:M,11,0)","v":0},{"$f":"VLOOKUP(B14,'LOC FINAL with new Themes'!A:M,12,0)","v":0},{"$f":"VLOOKUP(B14,'LOC FINAL with new Themes'!A:M,13,0)","v":"M"}]
["Invasive Species","Invasive Species",null,"Invasive Species","Biota ","DOI-USGS","Dan Phillips ","dphillips@usgs.gov",{"$f":"VLOOKUP(B15,'LOC FINAL with new Themes'!A:M,7,0)","v":"There are hundreds of datasets that are produced and maintained by the GAP program. Dan is not the data set manager, but I work with the people that maintain and update the datasets and maintains metadata.The data are updated at different intervals, especially now that they have moved more to a regional and national based approach. GAPS data sets presumably archived since 1990s."},{"$f":"VLOOKUP(B15,'LOC FINAL with new Themes'!A:M,8,0)","v":0},{"$f":"VLOOKUP(B15,'LOC FINAL with new Themes'!A:M,9,0)","v":0},{"$f":"VLOOKUP(B15,'LOC FINAL with new Themes'!A:M,10,0)","v":0},{"$f":"VLOOKUP(B15,'LOC FINAL with new Themes'!A:M,11,0)","v":0},{"$f":"VLOOKUP(B15,'LOC FINAL with new Themes'!A:M,12,0)","v":0},{"$f":"VLOOKUP(B15,'LOC FINAL with new Themes'!A:M,13,0)","v":"M"}]
["Species Distribution(amphibians, birds, reptiles, mammals, fishes, plants, etc)","Species Distribution (amphibians, birds, reptiles, mammals, fishes, plants, etc)",null,"Species Distribution (amphibians, birds, reptiles, mammals, fishes, plants, etc)","Biota ","DOI-USGS","Dan Phillips ","dphillips@usgs.gov",{"$f":"VLOOKUP(B16,'LOC FINAL with new Themes'!A:M,7,0)","v":"There are hundreds of datasets that are produced and maintained by the GAP program. Dan is not the data set manager, but I work with the people that maintain and update the datasets and maintains metadata. The data are updated at different intervals, especially now that they have moved more to a regional and national based approach. GAPS data sets presumably archived since 1990s."},{"$f":"VLOOKUP(B16,'LOC FINAL with new Themes'!A:M,8,0)","v":0},{"$f":"VLOOKUP(B16,'LOC FINAL with new Themes'!A:M,9,0)","v":0},{"$f":"VLOOKUP(B16,'LOC FINAL with new Themes'!A:M,10,0)","v":0},{"$f":"VLOOKUP(B16,'LOC FINAL with new Themes'!A:M,11,0)","v":0},{"$f":"VLOOKUP(B16,'LOC FINAL with new Themes'!A:M,12,0)","v":0},{"$f":"VLOOKUP(B16,'LOC FINAL with new Themes'!A:M,13,0)","v":"M"}]
[{"$f":"SUBTOTAL(3,A2:A16)","v":10},{"$f":"SUBTOTAL(3,B2:B16)","v":10},{"$f":"SUBTOTAL(3,C2:C16)","v":10},{"$f":"SUBTOTAL(3,D2:D16)","v":15},"Biota Count"]
["General Land Office","General Land Office","General Land Office",{"$f":"IF(C18=0,B18,C18)","v":"General Land Office"},"Cadastre","DOI-BLM","Juan Palma","juan_palma@blm.gov",{"$f":"VLOOKUP(B18,'LOC FINAL with new Themes'!A:M,7,0)","v":0},{"$f":"VLOOKUP(B18,'LOC FINAL with new Themes'!A:M,8,0)","v":0},{"$f":"VLOOKUP(B18,'LOC FINAL with new Themes'!A:M,9,0)","v":0},{"$f":"VLOOKUP(B18,'LOC FINAL with new Themes'!A:M,10,0)","v":0},{"$f":"VLOOKUP(B18,'LOC FINAL with new Themes'!A:M,11,0)","v":0},{"$f":"VLOOKUP(B18,'LOC FINAL with new Themes'!A:M,12,0)","v":0},{"$f":"VLOOKUP(B18,'LOC FINAL with new Themes'!A:M,13,0)","v":0}]
["Geographic Coordinate Data Base (GCDB)","Geographic Coordinate Data Base (GCDB)",null,"Geographic Coordinate Data Base (GCDB)","Cadastre","DOI-BLM","Don Buhler","don_buhler@blm.gov",{"$f":"VLOOKUP(B19,'LOC FINAL with new Themes'!A:M,7,0)","v":"every agency has its own database; multiple data sets; standard being advanced and put into practice; federal interest is managed with BLM; state and local are authoritative sets for other lands; "},{"$f":"VLOOKUP(B19,'LOC FINAL with new Themes'!A:M,8,0)","v":0},{"$f":"VLOOKUP(B19,'LOC FINAL with new Themes'!A:M,9,0)","v":0},{"$f":"VLOOKUP(B19,'LOC FINAL with new Themes'!A:M,10,0)","v":0},{"$f":"VLOOKUP(B19,'LOC FINAL with new Themes'!A:M,11,0)","v":0},{"$f":"VLOOKUP(B19,'LOC FINAL with new Themes'!A:M,12,0)","v":0},{"$f":"VLOOKUP(B19,'LOC FINAL with new Themes'!A:M,13,0)","v":"M "}]
["LR 2000 - Master Title Plats ","LR 2000 - Master Title Plats ","LR 2000 - Attribute Information","LR 2000 - Attribute Information","Cadastre","DOI-BLM","Jeff Holdren","jeff_holdren@blm.gov",{"$f":"VLOOKUP(B20,'LOC FINAL with new Themes'!A:M,7,0)","v":"listing of sales, rents, agricultural disposal and rights of way cases, group of data sets in one system; Kim Burns, division chief; not archived, there is a backup; Denver office handles"},{"$f":"VLOOKUP(B20,'LOC FINAL with new Themes'!A:M,8,0)","v":0},{"$f":"VLOOKUP(B20,'LOC FINAL with new Themes'!A:M,9,0)","v":0},{"$f":"VLOOKUP(B20,'LOC FINAL with new Themes'!A:M,10,0)","v":0},{"$f":"VLOOKUP(B20,'LOC FINAL with new Themes'!A:M,11,0)","v":0},{"$f":"VLOOKUP(B20,'LOC FINAL with new Themes'!A:M,12,0)","v":0},{"$f":"VLOOKUP(B20,'LOC FINAL with new Themes'!A:M,13,0)","v":"P"}]
["Manual of Surveying Instructions, Data Standards","Manual of Surveying Instructions, Data Standards",null,"Manual of Surveying Instructions, Data Standards","Cadastre","DOI-BLM","Don Buhler","don_buhler@blm.gov",{"$f":"VLOOKUP(B21,'LOC FINAL with new Themes'!A:M,7,0)","v":0},{"$f":"VLOOKUP(B21,'LOC FINAL with new Themes'!A:M,8,0)","v":0},{"$f":"VLOOKUP(B21,'LOC FINAL with new Themes'!A:M,9,0)","v":0},{"$f":"VLOOKUP(B21,'LOC FINAL with new Themes'!A:M,10,0)","v":0},{"$f":"VLOOKUP(B21,'LOC FINAL with new Themes'!A:M,11,0)","v":0},{"$f":"VLOOKUP(B21,'LOC FINAL with new Themes'!A:M,12,0)","v":0},{"$f":"VLOOKUP(B21,'LOC FINAL with new Themes'!A:M,13,0)","v":0}]
["Mineral Estate - Fluids","Mineral Estate - Fluids",null,"Mineral Estate - Fluids","Cadastre","DOI-BLM","Tim Spisak ","tim_spisak@blm.gov",{"$f":"VLOOKUP(B22,'LOC FINAL with new Themes'!A:M,7,0)","v":"mineral leasess, mining claims, rights of way, gases (single data set); BLM-managed lands but managed all federal mineral estate (comprehensive for mineraal estate) some electronic and some not"},{"$f":"VLOOKUP(B22,'LOC FINAL with new Themes'!A:M,8,0)","v":0},{"$f":"VLOOKUP(B22,'LOC FINAL with new Themes'!A:M,9,0)","v":0},{"$f":"VLOOKUP(B22,'LOC FINAL with new Themes'!A:M,10,0)","v":0},{"$f":"VLOOKUP(B22,'LOC FINAL with new Themes'!A:M,11,0)","v":0},{"$f":"VLOOKUP(B22,'LOC FINAL with new Themes'!A:M,12,0)","v":0},{"$f":"VLOOKUP(B22,'LOC FINAL with new Themes'!A:M,13,0)","v":"P"}]
["Mineral Estate - Solids","Mineral Estate - Solids",null,"Mineral Estate - Solids","Cadastre","DOI-BLM","Mitchell Leverette","mitchell_leverette@blm.gov",{"$f":"VLOOKUP(B23,'LOC FINAL with new Themes'!A:M,7,0)","v":"mineral leasess, mining claims, rights of way, gases (single data set); BLM-managed lands but managed all federal mineral estate (comprehensive for mineral estate) some electronic and some not"},{"$f":"VLOOKUP(B23,'LOC FINAL with new Themes'!A:M,8,0)","v":0},{"$f":"VLOOKUP(B23,'LOC FINAL with new Themes'!A:M,9,0)","v":0},{"$f":"VLOOKUP(B23,'LOC FINAL with new Themes'!A:M,10,0)","v":0},{"$f":"VLOOKUP(B23,'LOC FINAL with new Themes'!A:M,11,0)","v":0},{"$f":"VLOOKUP(B23,'LOC FINAL with new Themes'!A:M,12,0)","v":0},{"$f":"VLOOKUP(B23,'LOC FINAL with new Themes'!A:M,13,0)","v":"P"}]
["Multipurpose Marine Cadastre","Multipurpose Marine Cadastre","Multipurpose Marine Cadastre","Multipurpose Marine Cadastre","Cadastre","DOI-MMS","James Fulmer","james.s.fulmer@mms.gov",{"$f":"VLOOKUP(B24,'LOC FINAL with new Themes'!A:M,7,0)","v":"undeliverable email- neeed to identify new contact"},{"$f":"VLOOKUP(B24,'LOC FINAL with new Themes'!A:M,8,0)","v":0},{"$f":"VLOOKUP(B24,'LOC FINAL with new Themes'!A:M,9,0)","v":0},{"$f":"VLOOKUP(B24,'LOC FINAL with new Themes'!A:M,10,0)","v":0},{"$f":"VLOOKUP(B24,'LOC FINAL with new Themes'!A:M,11,0)","v":0},{"$f":"VLOOKUP(B24,'LOC FINAL with new Themes'!A:M,12,0)","v":0},{"$f":"VLOOKUP(B24,'LOC FINAL with new Themes'!A:M,13,0)","v":0}]
[null,null,"OCS Lease Blocks","OCS Lease Blocks","Cadastre","DOI-MMS"]
[null,null,"PADUS (Protected Areas Database of the US)","PADUS (Protected Areas Database of the US)","Cadastre","DOI-USGS"]
["Parcels","Parcels","Parcels","Parcels","Cadastre","DOI-BLM","Bob Ader","bob_ader@blm.gov",{"$f":"VLOOKUP(B27,'LOC FINAL with new Themes'!A:M,7,0)","v":"every agency has its own database; multiple data sets; standard being advanced and put into practice; federal interest is managed with BLM; state and local are authoritative sets for other lands; current effort of federal inventory "},{"$f":"VLOOKUP(B27,'LOC FINAL with new Themes'!A:M,8,0)","v":0},{"$f":"VLOOKUP(B27,'LOC FINAL with new Themes'!A:M,9,0)","v":0},{"$f":"VLOOKUP(B27,'LOC FINAL with new Themes'!A:M,10,0)","v":0},{"$f":"VLOOKUP(B27,'LOC FINAL with new Themes'!A:M,11,0)","v":0},{"$f":"VLOOKUP(B27,'LOC FINAL with new Themes'!A:M,12,0)","v":0},{"$f":"VLOOKUP(B27,'LOC FINAL with new Themes'!A:M,13,0)","v":"M "}]
[null,null,"Protractions","Protractions","Cadastre","DOI-MMS"]
["Surface Estate","Surface Estate",null,"Surface Estate","Cadastre","DOI-BLM","Kim Burns","kim_m_burns@blm.gov",{"$f":"VLOOKUP(B29,'LOC FINAL with new Themes'!A:M,7,0)","v":"lands administered by BLM; other agencies have own system; ownership of lands;  Tim Spisak, division chief; not archived, there is a backup; Denver office handles"},{"$f":"VLOOKUP(B29,'LOC FINAL with new Themes'!A:M,8,0)","v":0},{"$f":"VLOOKUP(B29,'LOC FINAL with new Themes'!A:M,9,0)","v":0},{"$f":"VLOOKUP(B29,'LOC FINAL with new Themes'!A:M,10,0)","v":0},{"$f":"VLOOKUP(B29,'LOC FINAL with new Themes'!A:M,11,0)","v":0},{"$f":"VLOOKUP(B29,'LOC FINAL with new Themes'!A:M,12,0)","v":0},{"$f":"VLOOKUP(B29,'LOC FINAL with new Themes'!A:M,13,0)","v":0}]
["U.S. Official Cadastral Survey Records","U.S. Official Cadastral Survey Records","U.S. Official Cadastral Survey Records","U.S. Official Cadastral Survey Records","Cadastre","DOI-BLM","Don Buhler","don_buhler@blm.gov",{"$f":"VLOOKUP(B30,'LOC FINAL with new Themes'!A:M,7,0)","v":"every agency has its own database; multiple data sets; standard being advanced and put into practice; federal interest is managed with BLM; state and local are authoritative sets for other lands; state offices are scanning these records (survey plats and field notes); CDI (conveyence cards)"},{"$f":"VLOOKUP(B30,'LOC FINAL with new Themes'!A:M,8,0)","v":0},{"$f":"VLOOKUP(B30,'LOC FINAL with new Themes'!A:M,9,0)","v":0},{"$f":"VLOOKUP(B30,'LOC FINAL with new Themes'!A:M,10,0)","v":0},{"$f":"VLOOKUP(B30,'LOC FINAL with new Themes'!A:M,11,0)","v":0},{"$f":"VLOOKUP(B30,'LOC FINAL with new Themes'!A:M,12,0)","v":0},{"$f":"VLOOKUP(B30,'LOC FINAL with new Themes'!A:M,13,0)","v":"M "}]
["U.S. Public Land Survey System","U.S. Public Land Survey System","U.S. Public Land Survey System","U.S. Public Land Survey System","Cadastre","DOI-BLM","Don Buhler","don_buhler@blm.gov",{"$f":"VLOOKUP(B31,'LOC FINAL with new Themes'!A:M,7,0)","v":"only federal agency that administers the PLSS; trying to get it to be logically one data set with different regions. (working copies for nine states in West); keep historical record in data base; schema 2 is the version to look at for archiving some time March 2012"},{"$f":"VLOOKUP(B31,'LOC FINAL with new Themes'!A:M,8,0)","v":0},{"$f":"VLOOKUP(B31,'LOC FINAL with new Themes'!A:M,9,0)","v":0},{"$f":"VLOOKUP(B31,'LOC FINAL with new Themes'!A:M,10,0)","v":0},{"$f":"VLOOKUP(B31,'LOC FINAL with new Themes'!A:M,11,0)","v":0},{"$f":"VLOOKUP(B31,'LOC FINAL with new Themes'!A:M,12,0)","v":0},{"$f":"VLOOKUP(B31,'LOC FINAL with new Themes'!A:M,13,0)","v":"P"}]
[{"$f":"SUBTOTAL(3,A18:A31)","v":11},{"$f":"SUBTOTAL(3,B18:B31)","v":11},{"$f":"SUBTOTAL(3,C18:C31)","v":9},{"$f":"SUBTOTAL(3,D18:D31)","v":14},"Cadastre Count"]
["Blended Sea Surface Temperature","Blended Sea Surface Temperature","Blended Sea Surface Temperature",{"$f":"IF(C33=0,B33,C33)","v":"Blended Sea Surface Temperature"},"Climate and Weather ","DOC-NOAA","Viva Banzon","Viva.Banzon@noaa.gov",{"$f":"VLOOKUP(B33,'LOC FINAL with new Themes'!A:M,7,0)","v":0},{"$f":"VLOOKUP(B33,'LOC FINAL with new Themes'!A:M,8,0)","v":0},{"$f":"VLOOKUP(B33,'LOC FINAL with new Themes'!A:M,9,0)","v":0},{"$f":"VLOOKUP(B33,'LOC FINAL with new Themes'!A:M,10,0)","v":0},{"$f":"VLOOKUP(B33,'LOC FINAL with new Themes'!A:M,11,0)","v":0},{"$f":"VLOOKUP(B33,'LOC FINAL with new Themes'!A:M,12,0)","v":0},{"$f":"VLOOKUP(B33,'LOC FINAL with new Themes'!A:M,13,0)","v":0}]
["Climate Data Sets ","Climate Datasets ",null,"Climate Datasets ","Climate and Weather ","USDA-NRCS","Jan Curtis","jan.curtis@por.usda.gov",{"$f":"VLOOKUP(B34,'LOC FINAL with new Themes'!A:M,7,0)","v":"Other climate data acquired from our SNOTEL and SCAN observation networks can be accessed from these links."},{"$f":"VLOOKUP(B34,'LOC FINAL with new Themes'!A:M,8,0)","v":0},{"$f":"VLOOKUP(B34,'LOC FINAL with new Themes'!A:M,9,0)","v":0},{"$f":"VLOOKUP(B34,'LOC FINAL with new Themes'!A:M,10,0)","v":0},{"$f":"VLOOKUP(B34,'LOC FINAL with new Themes'!A:M,11,0)","v":0},{"$f":"VLOOKUP(B34,'LOC FINAL with new Themes'!A:M,12,0)","v":0},{"$f":"VLOOKUP(B34,'LOC FINAL with new Themes'!A:M,13,0)","v":"M"}]
["Geostationary Operational Environmental Satellite (GOES) data (NCDC)","Geostationary Operational Environmental Satellite (GOES) data (NCDC)","Geostationary Operational Environmental Satellite (GOES) data (NCDC)","Geostationary Operational Environmental Satellite (GOES) data (NCDC)","Climate and Weather ","DOC-NOAA","Nancy Ritchey","Nancy.Ritchey@noaa.gov",{"$f":"VLOOKUP(B35,'LOC FINAL with new Themes'!A:M,7,0)","v":"Define 'data set'.  Each spacecraft continuously produces a data stream.  There are multiple sets and the total going back to the late 70s or early 80s numbers in the millions"},{"$f":"VLOOKUP(B35,'LOC FINAL with new Themes'!A:M,8,0)","v":"Yes"},{"$f":"VLOOKUP(B35,'LOC FINAL with new Themes'!A:M,9,0)","v":"Yes"},{"$f":"VLOOKUP(B35,'LOC FINAL with new Themes'!A:M,10,0)","v":"Continuously"},{"$f":"VLOOKUP(B35,'LOC FINAL with new Themes'!A:M,11,0)","v":"There are two active archive centers for these data; one here in Asheville, NC and one in Boulder, CO.  These data go back to the late 70s and all data are on line wither on disc or robotic tape storage"},{"$f":"VLOOKUP(B35,'LOC FINAL with new Themes'!A:M,12,0)","v":"Again, define your terms.  For examples see www.class.noaa.gov - Raw data are listed by satellite (GOES or POES) and then be instrument.  Geophysical products are listed by product name."},{"$f":"VLOOKUP(B35,'LOC FINAL with new Themes'!A:M,13,0)","v":0}]
["Global Historical Climate Network (GHCN) daily data (NCDC)","Global Historical Climate Network (GHCN) daily data (NCDC)",null,"Global Historical Climate Network (GHCN) daily data (NCDC)","Climate and Weather ","DOC-NOAA","Matt Menne","matthew.menne@noaa.gov",{"$f":"VLOOKUP(B36,'LOC FINAL with new Themes'!A:M,7,0)","v":0},{"$f":"VLOOKUP(B36,'LOC FINAL with new Themes'!A:M,8,0)","v":0},{"$f":"VLOOKUP(B36,'LOC FINAL with new Themes'!A:M,9,0)","v":0},{"$f":"VLOOKUP(B36,'LOC FINAL with new Themes'!A:M,10,0)","v":0},{"$f":"VLOOKUP(B36,'LOC FINAL with new Themes'!A:M,11,0)","v":0},{"$f":"VLOOKUP(B36,'LOC FINAL with new Themes'!A:M,12,0)","v":0},{"$f":"VLOOKUP(B36,'LOC FINAL with new Themes'!A:M,13,0)","v":0}]
["Global Historical Climate Network (GHCN) monthly data (NCDC)","Global Historical Climate Network (GHCN) monthly data (NCDC)",null,"Global Historical Climate Network (GHCN) monthly data (NCDC)","Climate and Weather ","DOC-NOAA","Jay Lawrimore","Jay.Lawrimore@noaa.gov",{"$f":"VLOOKUP(B37,'LOC FINAL with new Themes'!A:M,7,0)","v":"It is a single dataset consisting of multiple files. 6 total. 2 for monthly mean temperature (uncorrected and corrected), 2 for monthly maximum temperature, and 2 for monthly minimum temperature. available at http://www.ncdc.noaa.gov/ghcnm/v3.php ."},{"$f":"VLOOKUP(B37,'LOC FINAL with new Themes'!A:M,8,0)","v":"I am head of the branch that developed and updates the dataset."},{"$f":"VLOOKUP(B37,'LOC FINAL with new Themes'!A:M,9,0)","v":"Byron Gleason (Byron.Gleason@noaa.gov) is the appropriate contact.  "},{"$f":"VLOOKUP(B37,'LOC FINAL with new Themes'!A:M,10,0)","v":"Daily"},{"$f":"VLOOKUP(B37,'LOC FINAL with new Themes'!A:M,11,0)","v":"The files are time stamped each day they are produced and then stored when the next days run is made. The archived copies are not publicly available but can be retrieved by NCDC staff as needed."},{"$f":"VLOOKUP(B37,'LOC FINAL with new Themes'!A:M,12,0)","v":"It goes by GHCN-M."},{"$f":"VLOOKUP(B37,'LOC FINAL with new Themes'!A:M,13,0)","v":0}]
["Hurricane Satellite","Hurricane Satellite",null,"Hurricane Satellite","Climate and Weather ","DOC-NOAA","Ken Knapp","ken.knapp@noaa.gov",{"$f":"VLOOKUP(B38,'LOC FINAL with new Themes'!A:M,7,0)","v":0},{"$f":"VLOOKUP(B38,'LOC FINAL with new Themes'!A:M,8,0)","v":0},{"$f":"VLOOKUP(B38,'LOC FINAL with new Themes'!A:M,9,0)","v":0},{"$f":"VLOOKUP(B38,'LOC FINAL with new Themes'!A:M,10,0)","v":0},{"$f":"VLOOKUP(B38,'LOC FINAL with new Themes'!A:M,11,0)","v":0},{"$f":"VLOOKUP(B38,'LOC FINAL with new Themes'!A:M,12,0)","v":0},{"$f":"VLOOKUP(B38,'LOC FINAL with new Themes'!A:M,13,0)","v":0}]
["Integrated Global Radiosonde Archive (IGRA) upper air data (NCDC)","Integrated Global Radiosonde Archive (IGRA) upper air data (NCDC)",null,"Integrated Global Radiosonde Archive (IGRA) upper air data (NCDC)","Climate and Weather ","DOC-NOAA","Imke Durre","imke.durre@noaa.gov",{"$f":"VLOOKUP(B39,'LOC FINAL with new Themes'!A:M,7,0)","v":0},{"$f":"VLOOKUP(B39,'LOC FINAL with new Themes'!A:M,8,0)","v":0},{"$f":"VLOOKUP(B39,'LOC FINAL with new Themes'!A:M,9,0)","v":0},{"$f":"VLOOKUP(B39,'LOC FINAL with new Themes'!A:M,10,0)","v":0},{"$f":"VLOOKUP(B39,'LOC FINAL with new Themes'!A:M,11,0)","v":0},{"$f":"VLOOKUP(B39,'LOC FINAL with new Themes'!A:M,12,0)","v":0},{"$f":"VLOOKUP(B39,'LOC FINAL with new Themes'!A:M,13,0)","v":0}]
["Integrated Surface Data (ISD) at National Climate Data Center (NCDC) ","Integrated Surface Data (ISD) at National Climate Data Center (NCDC) ",null,"Integrated Surface Data (ISD) at National Climate Data Center (NCDC) ","Climate and Weather ","DOC-NOAA","Neal Lott","neal.lott@noaa.gov",{"$f":"VLOOKUP(B40,'LOC FINAL with new Themes'!A:M,7,0)","v":"This is a single data set, developed as an integration of multiple data sets and sources."},{"$f":"VLOOKUP(B40,'LOC FINAL with new Themes'!A:M,8,0)","v":"I am currently the data set manager jointly with Russel Vose, cc'ed here Russell.Vose@noaa.gov"},{"$f":"VLOOKUP(B40,'LOC FINAL with new Themes'!A:M,9,0)","v":"I am one of the POC's here at NCDC.  We have a User Engagement and Services Branch which handles user inquiries, etc."},{"$f":"VLOOKUP(B40,'LOC FINAL with new Themes'!A:M,10,0)","v":"It's updated once per day with the most recent data (ie, yesterday's observations)."},{"$f":"VLOOKUP(B40,'LOC FINAL with new Themes'!A:M,11,0)","v":"We have an archive copy and a backup copy.  The period of record of the data is 1900 to present.  It's very easily accessible via multiple services (FTP, GIS, Web Services, etc)."},{"$f":"VLOOKUP(B40,'LOC FINAL with new Themes'!A:M,12,0)","v":"Integrated Surface Data is its name, but is sometimes referred to generically as global hourly surface data."},{"$f":"VLOOKUP(B40,'LOC FINAL with new Themes'!A:M,13,0)","v":0}]
[null,null,"MODIS-based Atmospheric Products","MODIS-based Atmospheric Products","Climate and Weather ","USDA -FS (Along with USGS)"]
["National Climate Data Center","National Climate Data Center",null,"National Climate Data Center","Climate and Weather ","USDA-NRCS","Jan Curtis","jan.curtis@por.usda.gov",{"$f":"VLOOKUP(B42,'LOC FINAL with new Themes'!A:M,7,0)","v":"administered by NOAA - is there a contact there?"},{"$f":"VLOOKUP(B42,'LOC FINAL with new Themes'!A:M,8,0)","v":0},{"$f":"VLOOKUP(B42,'LOC FINAL with new Themes'!A:M,9,0)","v":0},{"$f":"VLOOKUP(B42,'LOC FINAL with new Themes'!A:M,10,0)","v":0},{"$f":"VLOOKUP(B42,'LOC FINAL with new Themes'!A:M,11,0)","v":0},{"$f":"VLOOKUP(B42,'LOC FINAL with new Themes'!A:M,12,0)","v":0},{"$f":"VLOOKUP(B42,'LOC FINAL with new Themes'!A:M,13,0)","v":0}]
[null,null,"National Doplar Radar Data (NEXRAD)","National Doplar Radar Data (NEXRAD)","Climate and Weather ","DOC-NOAA"]
["NEXRAD Level II and III radar data (NCDC)","NEXRAD Level II and III radar data (NCDC)",null,"NEXRAD Level II and III radar data (NCDC)","Climate and Weather ","DOC-NOAA","Steve Del Greco","stephen.a.delgreco@noaa.gov",{"$f":"VLOOKUP(B44,'LOC FINAL with new Themes'!A:M,7,0)","v":"The NEXRAD datasets for level II and Level III are archived by site.  There are 158 NEXRAD sites with data that goes back to ~ 1994.  See URL http://www.ncdc.noaa.gov/nexradinv/ for NEXRAD web services for ordering data."},{"$f":"VLOOKUP(B44,'LOC FINAL with new Themes'!A:M,8,0)","v":"I'm the NEXRAD program manager for NCDC.  This also includes other radar networks for example the FAA Terminal Doppler Weather Radar (45 sites)."},{"$f":"VLOOKUP(B44,'LOC FINAL with new Themes'!A:M,9,0)","v":"Yes"},{"$f":"VLOOKUP(B44,'LOC FINAL with new Themes'!A:M,10,0)","v":"NEXRAD Level II and Level III data are ingested at NCDC in near real time (~ 10 second latency).  We make the data available via the web ~ 24 hours after receipt.  The NEXRAD/TDWR data is also available in near real time through data feeds supported by partnerships we have with the University of Oklahoma, Purdue and Education and Research Consortium of the Western Carolinas. "},{"$f":"VLOOKUP(B44,'LOC FINAL with new Themes'!A:M,11,0)","v":"NEXRAD data is archived and backed up and goes back to ~ 1994 (depends on station).  Data is free of charge and accessible via the URL above"},{"$f":"VLOOKUP(B44,'LOC FINAL with new Themes'!A:M,12,0)","v":"The data set is from the Weather Surveillance Radar 1988 Doppler, but most commonly  know as \"NEXRAD\"  Level II for the base or raw data and Level III for derived products"},{"$f":"VLOOKUP(B44,'LOC FINAL with new Themes'!A:M,13,0)","v":0}]
[null,null,"NOAA National Weather Service GIS Data",{"$f":"IF(C45=0,B45,C45)","v":"NOAA National Weather Service GIS Data"},"Climate and Weather ","DOC-NOAA"]
["North American Regional Reanalysis (NARR) model data (NCDC)","North American Regional Reanalysis (NARR) model data (NCDC)",null,{"$f":"IF(C46=0,B46,C46)","v":"North American Regional Reanalysis (NARR) model data (NCDC)"},"Climate and Weather ","DOC-NOAA","Dan Swank","Dan.Swank@noaa.gov",{"$f":"VLOOKUP(B46,'LOC FINAL with new Themes'!A:M,7,0)","v":"The NARR natively contains 2x sub sets) 3 hr time series / monthly averages."},{"$f":"VLOOKUP(B46,'LOC FINAL with new Themes'!A:M,8,0)","v":"Depends on the exact definition: there is no one with that exact job title at NCDC-NOMADS"},{"$f":"VLOOKUP(B46,'LOC FINAL with new Themes'!A:M,9,0)","v":"Yes"},{"$f":"VLOOKUP(B46,'LOC FINAL with new Themes'!A:M,10,0)","v":"NARR is updated on a daily basis, typically arriving 1-3 days from real-time.  Serial integrity is not guaranteed until 1 month has passed."},{"$f":"VLOOKUP(B46,'LOC FINAL with new Themes'!A:M,11,0)","v":"Multiple copies exist, including HPSS, off-site HPSS, TSM, and mirrored spinning disk copies.  Backups are for the entire set.  While the backups are not public accessible, the disk mirror can be put in place in minutes and the tape copies may take a day or two"},{"$f":"VLOOKUP(B46,'LOC FINAL with new Themes'!A:M,12,0)","v":"Besides the acronym NARR -- no"},{"$f":"VLOOKUP(B46,'LOC FINAL with new Themes'!A:M,13,0)","v":0}]
["Parameter-elevation Regressions on Independent Slopes Model (PRISM) Data Sets","Parameter-elevation Regressions on Independent Slopes Model (PRISM) Datasets","Parameter-elevation Regressions on Independent Slopes Model (PRISM) Datasets",{"$f":"IF(C47=0,B47,C47)","v":"Parameter-elevation Regressions on Independent Slopes Model (PRISM) Datasets"},"Climate and Weather ","USDA-NRCS","Jan Curtis","jan.curtis@por.usda.gov",{"$f":"VLOOKUP(B47,'LOC FINAL with new Themes'!A:M,7,0)","v":"info provided via http://www.prism.oregonstate.edu/ and \nhttp://www.nrcs.usda.gov/wps/portal/nrcs/main/?ss=16&navtype=SubNavigation&cid=null&navid=850130000000000&pnavid=850000000000000&position=SubNavigation&ttype=main&pname=USDA%2520NRCS%2520-%2520Natural%2520Resources%2520Conservation%2520Service\n"},{"$f":"VLOOKUP(B47,'LOC FINAL with new Themes'!A:M,8,0)","v":0},{"$f":"VLOOKUP(B47,'LOC FINAL with new Themes'!A:M,9,0)","v":0},{"$f":"VLOOKUP(B47,'LOC FINAL with new Themes'!A:M,10,0)","v":0},{"$f":"VLOOKUP(B47,'LOC FINAL with new Themes'!A:M,11,0)","v":0},{"$f":"VLOOKUP(B47,'LOC FINAL with new Themes'!A:M,12,0)","v":0},{"$f":"VLOOKUP(B47,'LOC FINAL with new Themes'!A:M,13,0)","v":"M"}]
["Polar Operational Environmental Satellite (POES) data (NCDC)","Polar Operational Environmental Satellite (POES) data","Polar Operational Environmental Satellite (POES) data",{"$f":"IF(C48=0,B48,C48)","v":"Polar Operational Environmental Satellite (POES) data"},"Climate and Weather ","DOC-NOAA","John Bates","john.j.bates@noaa.gov",{"$f":"VLOOKUP(B48,'LOC FINAL with new Themes'!A:M,7,0)","v":0},{"$f":"VLOOKUP(B48,'LOC FINAL with new Themes'!A:M,8,0)","v":0},{"$f":"VLOOKUP(B48,'LOC FINAL with new Themes'!A:M,9,0)","v":0},{"$f":"VLOOKUP(B48,'LOC FINAL with new Themes'!A:M,10,0)","v":0},{"$f":"VLOOKUP(B48,'LOC FINAL with new Themes'!A:M,11,0)","v":0},{"$f":"VLOOKUP(B48,'LOC FINAL with new Themes'!A:M,12,0)","v":0},{"$f":"VLOOKUP(B48,'LOC FINAL with new Themes'!A:M,13,0)","v":0}]
[{"$f":"SUBTOTAL(3,A33:A48)","v":13},{"$f":"SUBTOTAL(3,B33:B48)","v":13},{"$f":"SUBTOTAL(3,C33:C48)","v":7},{"$f":"SUBTOTAL(3,D33:D48)","v":16},"Climate and Weather  Count"]
[null,"5-digit ZIP Code Tabulation Area (Census 2000)","5-digit ZIP Code Tabulation Area (Census 2000)",{"$f":"IF(C50=0,B50,C50)","v":"5-digit ZIP Code Tabulation Area (Census 2000)"},"Cultural & Demographic Statistics ","DOC-Census","Jennifer Holland","Jennifer.L.Holland@census.gov",{"$f":"VLOOKUP(B50,'LOC FINAL with new Themes'!A:M,7,0)","v":0},{"$f":"VLOOKUP(B50,'LOC FINAL with new Themes'!A:M,8,0)","v":0},{"$f":"VLOOKUP(B50,'LOC FINAL with new Themes'!A:M,9,0)","v":0},{"$f":"VLOOKUP(B50,'LOC FINAL with new Themes'!A:M,10,0)","v":0},{"$f":"VLOOKUP(B50,'LOC FINAL with new Themes'!A:M,11,0)","v":0},{"$f":"VLOOKUP(B50,'LOC FINAL with new Themes'!A:M,12,0)","v":0},{"$f":"VLOOKUP(B50,'LOC FINAL with new Themes'!A:M,13,0)","v":0}]
["AIR, ANVSA, Hawaiian Homelands Boundaries","AIR, ANVSA, Hawaiian Homelands Boundaries",null,"AIR, ANVSA, Hawaiian Homelands Boundaries","Cultural & Demographic Statistics ","DOC-Census","Randy Fusaro","randy.j.fusaro@census.gov",{"$f":"VLOOKUP(B51,'LOC FINAL with new Themes'!A:M,7,0)","v":0},{"$f":"VLOOKUP(B51,'LOC FINAL with new Themes'!A:M,8,0)","v":0},{"$f":"VLOOKUP(B51,'LOC FINAL with new Themes'!A:M,9,0)","v":0},{"$f":"VLOOKUP(B51,'LOC FINAL with new Themes'!A:M,10,0)","v":0},{"$f":"VLOOKUP(B51,'LOC FINAL with new Themes'!A:M,11,0)","v":0},{"$f":"VLOOKUP(B51,'LOC FINAL with new Themes'!A:M,12,0)","v":0},{"$f":"VLOOKUP(B51,'LOC FINAL with new Themes'!A:M,13,0)","v":0}]
[null,"All Lines (2010 Census)","All Lines (2010 Census)","All Lines (2010 Census)","Cultural & Demographic Statistics ","DOC-Census","Jennifer Holland","Jennifer.L.Holland@census.gov",{"$f":"VLOOKUP(B52,'LOC FINAL with new Themes'!A:M,7,0)","v":0},{"$f":"VLOOKUP(B52,'LOC FINAL with new Themes'!A:M,8,0)","v":0},{"$f":"VLOOKUP(B52,'LOC FINAL with new Themes'!A:M,9,0)","v":0},{"$f":"VLOOKUP(B52,'LOC FINAL with new Themes'!A:M,10,0)","v":0},{"$f":"VLOOKUP(B52,'LOC FINAL with new Themes'!A:M,11,0)","v":0},{"$f":"VLOOKUP(B52,'LOC FINAL with new Themes'!A:M,12,0)","v":0},{"$f":"VLOOKUP(B52,'LOC FINAL with new Themes'!A:M,13,0)","v":0}]
[null,"ANSI codes for  metro/micropolitan areas","ANSI codes for  metro/micropolitan areas","ANSI codes for  metro/micropolitan areas","Cultural & Demographic Statistics ","DOC-Census","Jennifer Holland","Jennifer.L.Holland@census.gov",{"$f":"VLOOKUP(B53,'LOC FINAL with new Themes'!A:M,7,0)","v":0},{"$f":"VLOOKUP(B53,'LOC FINAL with new Themes'!A:M,8,0)","v":0},{"$f":"VLOOKUP(B53,'LOC FINAL with new Themes'!A:M,9,0)","v":0},{"$f":"VLOOKUP(B53,'LOC FINAL with new Themes'!A:M,10,0)","v":0},{"$f":"VLOOKUP(B53,'LOC FINAL with new Themes'!A:M,11,0)","v":0},{"$f":"VLOOKUP(B53,'LOC FINAL with new Themes'!A:M,12,0)","v":0},{"$f":"VLOOKUP(B53,'LOC FINAL with new Themes'!A:M,13,0)","v":0}]
[null,"ANSI codes for congressional districts","ANSI codes for congressional districts","ANSI codes for congressional districts","Cultural & Demographic Statistics ","DOC-Census","Jennifer Holland","Jennifer.L.Holland@census.gov",{"$f":"VLOOKUP(B54,'LOC FINAL with new Themes'!A:M,7,0)","v":0},{"$f":"VLOOKUP(B54,'LOC FINAL with new Themes'!A:M,8,0)","v":0},{"$f":"VLOOKUP(B54,'LOC FINAL with new Themes'!A:M,9,0)","v":0},{"$f":"VLOOKUP(B54,'LOC FINAL with new Themes'!A:M,10,0)","v":0},{"$f":"VLOOKUP(B54,'LOC FINAL with new Themes'!A:M,11,0)","v":0},{"$f":"VLOOKUP(B54,'LOC FINAL with new Themes'!A:M,12,0)","v":0},{"$f":"VLOOKUP(B54,'LOC FINAL with new Themes'!A:M,13,0)","v":0}]
[null,"ANSI codes for counties","ANSI codes for counties","ANSI codes for counties","Cultural & Demographic Statistics ","DOC-Census","Jennifer Holland","Jennifer.L.Holland@census.gov",{"$f":"VLOOKUP(B55,'LOC FINAL with new Themes'!A:M,7,0)","v":0},{"$f":"VLOOKUP(B55,'LOC FINAL with new Themes'!A:M,8,0)","v":0},{"$f":"VLOOKUP(B55,'LOC FINAL with new Themes'!A:M,9,0)","v":0},{"$f":"VLOOKUP(B55,'LOC FINAL with new Themes'!A:M,10,0)","v":0},{"$f":"VLOOKUP(B55,'LOC FINAL with new Themes'!A:M,11,0)","v":0},{"$f":"VLOOKUP(B55,'LOC FINAL with new Themes'!A:M,12,0)","v":0},{"$f":"VLOOKUP(B55,'LOC FINAL with new Themes'!A:M,13,0)","v":0}]
[null,"ANSI codes for states","ANSI codes for states","ANSI codes for states","Cultural & Demographic Statistics ","DOC-Census","Jennifer Holland","Jennifer.L.Holland@census.gov",{"$f":"VLOOKUP(B56,'LOC FINAL with new Themes'!A:M,7,0)","v":0},{"$f":"VLOOKUP(B56,'LOC FINAL with new Themes'!A:M,8,0)","v":0},{"$f":"VLOOKUP(B56,'LOC FINAL with new Themes'!A:M,9,0)","v":0},{"$f":"VLOOKUP(B56,'LOC FINAL with new Themes'!A:M,10,0)","v":0},{"$f":"VLOOKUP(B56,'LOC FINAL with new Themes'!A:M,11,0)","v":0},{"$f":"VLOOKUP(B56,'LOC FINAL with new Themes'!A:M,12,0)","v":0},{"$f":"VLOOKUP(B56,'LOC FINAL with new Themes'!A:M,13,0)","v":0}]
[null,"Block (2010 Census)","Block (2010 Census)","Block (2010 Census)","Cultural & Demographic Statistics ","DOC-Census","Jennifer Holland","Jennifer.L.Holland@census.gov",{"$f":"VLOOKUP(B57,'LOC FINAL with new Themes'!A:M,7,0)","v":0},{"$f":"VLOOKUP(B57,'LOC FINAL with new Themes'!A:M,8,0)","v":0},{"$f":"VLOOKUP(B57,'LOC FINAL with new Themes'!A:M,9,0)","v":0},{"$f":"VLOOKUP(B57,'LOC FINAL with new Themes'!A:M,10,0)","v":0},{"$f":"VLOOKUP(B57,'LOC FINAL with new Themes'!A:M,11,0)","v":0},{"$f":"VLOOKUP(B57,'LOC FINAL with new Themes'!A:M,12,0)","v":0},{"$f":"VLOOKUP(B57,'LOC FINAL with new Themes'!A:M,13,0)","v":0}]
[null,"Block (Census 2000)","Block (Census 2000)","Block (Census 2000)","Cultural & Demographic Statistics ","DOC-Census","Jennifer Holland","Jennifer.L.Holland@census.gov",{"$f":"VLOOKUP(B58,'LOC FINAL with new Themes'!A:M,7,0)","v":0},{"$f":"VLOOKUP(B58,'LOC FINAL with new Themes'!A:M,8,0)","v":0},{"$f":"VLOOKUP(B58,'LOC FINAL with new Themes'!A:M,9,0)","v":0},{"$f":"VLOOKUP(B58,'LOC FINAL with new Themes'!A:M,10,0)","v":0},{"$f":"VLOOKUP(B58,'LOC FINAL with new Themes'!A:M,11,0)","v":0},{"$f":"VLOOKUP(B58,'LOC FINAL with new Themes'!A:M,12,0)","v":0},{"$f":"VLOOKUP(B58,'LOC FINAL with new Themes'!A:M,13,0)","v":0}]
[null,"Block Group (Census 2000)","Block Group (Census 2000)","Block Group (Census 2000)","Cultural & Demographic Statistics ","DOC-Census","Jennifer Holland","Jennifer.L.Holland@census.gov",{"$f":"VLOOKUP(B59,'LOC FINAL with new Themes'!A:M,7,0)","v":0},{"$f":"VLOOKUP(B59,'LOC FINAL with new Themes'!A:M,8,0)","v":0},{"$f":"VLOOKUP(B59,'LOC FINAL with new Themes'!A:M,9,0)","v":0},{"$f":"VLOOKUP(B59,'LOC FINAL with new Themes'!A:M,10,0)","v":0},{"$f":"VLOOKUP(B59,'LOC FINAL with new Themes'!A:M,11,0)","v":0},{"$f":"VLOOKUP(B59,'LOC FINAL with new Themes'!A:M,12,0)","v":0},{"$f":"VLOOKUP(B59,'LOC FINAL with new Themes'!A:M,13,0)","v":0}]
[null,"Block Group (Census 2010)","Block Group (Census 2010)","Block Group (Census 2010)","Cultural & Demographic Statistics ","DOC-Census","Jennifer Holland","Jennifer.L.Holland@census.gov",{"$f":"VLOOKUP(B60,'LOC FINAL with new Themes'!A:M,7,0)","v":0},{"$f":"VLOOKUP(B60,'LOC FINAL with new Themes'!A:M,8,0)","v":0},{"$f":"VLOOKUP(B60,'LOC FINAL with new Themes'!A:M,9,0)","v":0},{"$f":"VLOOKUP(B60,'LOC FINAL with new Themes'!A:M,10,0)","v":0},{"$f":"VLOOKUP(B60,'LOC FINAL with new Themes'!A:M,11,0)","v":0},{"$f":"VLOOKUP(B60,'LOC FINAL with new Themes'!A:M,12,0)","v":0},{"$f":"VLOOKUP(B60,'LOC FINAL with new Themes'!A:M,13,0)","v":0}]
[null,"Census 2000 FIPS 55 Codes","Census 2000 FIPS 55 Codes","Census 2000 FIPS 55 Codes","Cultural & Demographic Statistics ","DOC-Census","Jennifer Holland","Jennifer.L.Holland@census.gov",{"$f":"VLOOKUP(B61,'LOC FINAL with new Themes'!A:M,7,0)","v":0},{"$f":"VLOOKUP(B61,'LOC FINAL with new Themes'!A:M,8,0)","v":0},{"$f":"VLOOKUP(B61,'LOC FINAL with new Themes'!A:M,9,0)","v":0},{"$f":"VLOOKUP(B61,'LOC FINAL with new Themes'!A:M,10,0)","v":0},{"$f":"VLOOKUP(B61,'LOC FINAL with new Themes'!A:M,11,0)","v":0},{"$f":"VLOOKUP(B61,'LOC FINAL with new Themes'!A:M,12,0)","v":0},{"$f":"VLOOKUP(B61,'LOC FINAL with new Themes'!A:M,13,0)","v":0}]
[null,"Census Tract (2010 Census)","Census Tract (2010 Census)","Census Tract (2010 Census)","Cultural & Demographic Statistics ","DOC-Census","Jennifer Holland","Jennifer.L.Holland@census.gov",{"$f":"VLOOKUP(B62,'LOC FINAL with new Themes'!A:M,7,0)","v":0},{"$f":"VLOOKUP(B62,'LOC FINAL with new Themes'!A:M,8,0)","v":0},{"$f":"VLOOKUP(B62,'LOC FINAL with new Themes'!A:M,9,0)","v":0},{"$f":"VLOOKUP(B62,'LOC FINAL with new Themes'!A:M,10,0)","v":0},{"$f":"VLOOKUP(B62,'LOC FINAL with new Themes'!A:M,11,0)","v":0},{"$f":"VLOOKUP(B62,'LOC FINAL with new Themes'!A:M,12,0)","v":0},{"$f":"VLOOKUP(B62,'LOC FINAL with new Themes'!A:M,13,0)","v":0}]
[null,"Census Tract (Census 2000)","Census Tract (Census 2000)","Census Tract (Census 2000)","Cultural & Demographic Statistics ","DOC-Census","Jennifer Holland","Jennifer.L.Holland@census.gov",{"$f":"VLOOKUP(B63,'LOC FINAL with new Themes'!A:M,7,0)","v":0},{"$f":"VLOOKUP(B63,'LOC FINAL with new Themes'!A:M,8,0)","v":0},{"$f":"VLOOKUP(B63,'LOC FINAL with new Themes'!A:M,9,0)","v":0},{"$f":"VLOOKUP(B63,'LOC FINAL with new Themes'!A:M,10,0)","v":0},{"$f":"VLOOKUP(B63,'LOC FINAL with new Themes'!A:M,11,0)","v":0},{"$f":"VLOOKUP(B63,'LOC FINAL with new Themes'!A:M,12,0)","v":0},{"$f":"VLOOKUP(B63,'LOC FINAL with new Themes'!A:M,13,0)","v":0}]
[null,"Combined Statistical Area (2010 Census)","Combined Statistical Area (2010 Census)","Combined Statistical Area (2010 Census)","Cultural & Demographic Statistics ","DOC-Census","Jennifer Holland","Jennifer.L.Holland@census.gov",{"$f":"VLOOKUP(B64,'LOC FINAL with new Themes'!A:M,7,0)","v":0},{"$f":"VLOOKUP(B64,'LOC FINAL with new Themes'!A:M,8,0)","v":0},{"$f":"VLOOKUP(B64,'LOC FINAL with new Themes'!A:M,9,0)","v":0},{"$f":"VLOOKUP(B64,'LOC FINAL with new Themes'!A:M,10,0)","v":0},{"$f":"VLOOKUP(B64,'LOC FINAL with new Themes'!A:M,11,0)","v":0},{"$f":"VLOOKUP(B64,'LOC FINAL with new Themes'!A:M,12,0)","v":0},{"$f":"VLOOKUP(B64,'LOC FINAL with new Themes'!A:M,13,0)","v":0}]
[null,"Congressional District Boundaries",null,"Congressional District Boundaries","Cultural & Demographic Statistics ","DOC-Census","Randy Fusaro","randy.j.fusaro@census.gov",{"$f":"VLOOKUP(B65,'LOC FINAL with new Themes'!A:M,7,0)","v":0},{"$f":"VLOOKUP(B65,'LOC FINAL with new Themes'!A:M,8,0)","v":0},{"$f":"VLOOKUP(B65,'LOC FINAL with new Themes'!A:M,9,0)","v":0},{"$f":"VLOOKUP(B65,'LOC FINAL with new Themes'!A:M,10,0)","v":0},{"$f":"VLOOKUP(B65,'LOC FINAL with new Themes'!A:M,11,0)","v":0},{"$f":"VLOOKUP(B65,'LOC FINAL with new Themes'!A:M,12,0)","v":0},{"$f":"VLOOKUP(B65,'LOC FINAL with new Themes'!A:M,13,0)","v":0}]
["County, place, MCD Boundaries","County, place, MCD Boundaries",null,"County, place, MCD Boundaries","Cultural & Demographic Statistics ","DOC-Census","Randy Fusaro","randy.j.fusaro@census.gov",{"$f":"VLOOKUP(B66,'LOC FINAL with new Themes'!A:M,7,0)","v":0},{"$f":"VLOOKUP(B66,'LOC FINAL with new Themes'!A:M,8,0)","v":0},{"$f":"VLOOKUP(B66,'LOC FINAL with new Themes'!A:M,9,0)","v":0},{"$f":"VLOOKUP(B66,'LOC FINAL with new Themes'!A:M,10,0)","v":0},{"$f":"VLOOKUP(B66,'LOC FINAL with new Themes'!A:M,11,0)","v":0},{"$f":"VLOOKUP(B66,'LOC FINAL with new Themes'!A:M,12,0)","v":0},{"$f":"VLOOKUP(B66,'LOC FINAL with new Themes'!A:M,13,0)","v":0}]
[null,"Elementary School District (2010 Census)","Elementary School District (2010 Census)","Elementary School District (2010 Census)","Cultural & Demographic Statistics ","DOC-Census","Jennifer Holland","Jennifer.L.Holland@census.gov",{"$f":"VLOOKUP(B67,'LOC FINAL with new Themes'!A:M,7,0)","v":0},{"$f":"VLOOKUP(B67,'LOC FINAL with new Themes'!A:M,8,0)","v":0},{"$f":"VLOOKUP(B67,'LOC FINAL with new Themes'!A:M,9,0)","v":0},{"$f":"VLOOKUP(B67,'LOC FINAL with new Themes'!A:M,10,0)","v":0},{"$f":"VLOOKUP(B67,'LOC FINAL with new Themes'!A:M,11,0)","v":0},{"$f":"VLOOKUP(B67,'LOC FINAL with new Themes'!A:M,12,0)","v":0},{"$f":"VLOOKUP(B67,'LOC FINAL with new Themes'!A:M,13,0)","v":0}]
[null,"Elementary School District (Census 2000)","Elementary School District (Census 2000)","Elementary School District (Census 2000)","Cultural & Demographic Statistics ","DOC-Census","Jennifer Holland","Jennifer.L.Holland@census.gov",{"$f":"VLOOKUP(B68,'LOC FINAL with new Themes'!A:M,7,0)","v":0},{"$f":"VLOOKUP(B68,'LOC FINAL with new Themes'!A:M,8,0)","v":0},{"$f":"VLOOKUP(B68,'LOC FINAL with new Themes'!A:M,9,0)","v":0},{"$f":"VLOOKUP(B68,'LOC FINAL with new Themes'!A:M,10,0)","v":0},{"$f":"VLOOKUP(B68,'LOC FINAL with new Themes'!A:M,11,0)","v":0},{"$f":"VLOOKUP(B68,'LOC FINAL with new Themes'!A:M,12,0)","v":0},{"$f":"VLOOKUP(B68,'LOC FINAL with new Themes'!A:M,13,0)","v":0}]
["FIPS/ANSI codes for states, counties, congressional districts & metro/micropolitan areas","FIPS/ANSI codes for states, counties, congressional districts & metro/micropolitan areas",null,"FIPS/ANSI codes for states, counties, congressional districts & metro/micropolitan areas","Cultural & Demographic Statistics ","DOC-Census","Randy Fusaro","randy.j.fusaro@census.gov",{"$f":"VLOOKUP(B69,'LOC FINAL with new Themes'!A:M,7,0)","v":0},{"$f":"VLOOKUP(B69,'LOC FINAL with new Themes'!A:M,8,0)","v":0},{"$f":"VLOOKUP(B69,'LOC FINAL with new Themes'!A:M,9,0)","v":0},{"$f":"VLOOKUP(B69,'LOC FINAL with new Themes'!A:M,10,0)","v":0},{"$f":"VLOOKUP(B69,'LOC FINAL with new Themes'!A:M,11,0)","v":0},{"$f":"VLOOKUP(B69,'LOC FINAL with new Themes'!A:M,12,0)","v":0},{"$f":"VLOOKUP(B69,'LOC FINAL with new Themes'!A:M,13,0)","v":0}]
["Metropolitan/micropolitan area boundaries","Metropolitan/micropolitan area boundaries",null,"Metropolitan/micropolitan area boundaries","Cultural & Demographic Statistics ","DOC-Census","Randy Fusaro","randy.j.fusaro@census.gov",{"$f":"VLOOKUP(B70,'LOC FINAL with new Themes'!A:M,7,0)","v":0},{"$f":"VLOOKUP(B70,'LOC FINAL with new Themes'!A:M,8,0)","v":0},{"$f":"VLOOKUP(B70,'LOC FINAL with new Themes'!A:M,9,0)","v":0},{"$f":"VLOOKUP(B70,'LOC FINAL with new Themes'!A:M,10,0)","v":0},{"$f":"VLOOKUP(B70,'LOC FINAL with new Themes'!A:M,11,0)","v":0},{"$f":"VLOOKUP(B70,'LOC FINAL with new Themes'!A:M,12,0)","v":0},{"$f":"VLOOKUP(B70,'LOC FINAL with new Themes'!A:M,13,0)","v":0}]
[null,"Metropolitan/micropolitan Statistical Area (2010 Census)","Metropolitan/micropolitan Statistical Area (2010 Census)","Metropolitan/micropolitan Statistical Area (2010 Census)","Cultural & Demographic Statistics ","DOC-Census","Jennifer Holland","Jennifer.L.Holland@census.gov",{"$f":"VLOOKUP(B71,'LOC FINAL with new Themes'!A:M,7,0)","v":0},{"$f":"VLOOKUP(B71,'LOC FINAL with new Themes'!A:M,8,0)","v":0},{"$f":"VLOOKUP(B71,'LOC FINAL with new Themes'!A:M,9,0)","v":0},{"$f":"VLOOKUP(B71,'LOC FINAL with new Themes'!A:M,10,0)","v":0},{"$f":"VLOOKUP(B71,'LOC FINAL with new Themes'!A:M,11,0)","v":0},{"$f":"VLOOKUP(B71,'LOC FINAL with new Themes'!A:M,12,0)","v":0},{"$f":"VLOOKUP(B71,'LOC FINAL with new Themes'!A:M,13,0)","v":0}]
["National Center for Health Statistics (Atlas of US Mortality)","National Center for Health Statistics (Atlas of US Mortality)",null,"National Center for Health Statistics (Atlas of US Mortality)","Cultural & Demographic Statistics ","HHS","Gary Anderson","gary.anderson@hhs.gov",{"$f":"VLOOKUP(B72,'LOC FINAL with new Themes'!A:M,7,0)","v":0},{"$f":"VLOOKUP(B72,'LOC FINAL with new Themes'!A:M,8,0)","v":0},{"$f":"VLOOKUP(B72,'LOC FINAL with new Themes'!A:M,9,0)","v":0},{"$f":"VLOOKUP(B72,'LOC FINAL with new Themes'!A:M,10,0)","v":0},{"$f":"VLOOKUP(B72,'LOC FINAL with new Themes'!A:M,11,0)","v":0},{"$f":"VLOOKUP(B72,'LOC FINAL with new Themes'!A:M,12,0)","v":0},{"$f":"VLOOKUP(B72,'LOC FINAL with new Themes'!A:M,13,0)","v":0}]
[null,null,"Oklahoma Tribal Joint Use Areas","Oklahoma Tribal Joint Use Areas","Cultural & Demographic Statistics ","DOC-Census"]
[null,null,"Oklahoma Tribal Statistical Areas","Oklahoma Tribal Statistical Areas","Cultural & Demographic Statistics ","DOC-Census"]
[null,"Public Use Microdata Area (Census 2000)","Public Use Microdata Area (Census 2000)","Public Use Microdata Area (Census 2000)","Cultural & Demographic Statistics ","DOC-Census","Jennifer Holland","Jennifer.L.Holland@census.gov",{"$f":"VLOOKUP(B75,'LOC FINAL with new Themes'!A:M,7,0)","v":0},{"$f":"VLOOKUP(B75,'LOC FINAL with new Themes'!A:M,8,0)","v":0},{"$f":"VLOOKUP(B75,'LOC FINAL with new Themes'!A:M,9,0)","v":0},{"$f":"VLOOKUP(B75,'LOC FINAL with new Themes'!A:M,10,0)","v":0},{"$f":"VLOOKUP(B75,'LOC FINAL with new Themes'!A:M,11,0)","v":0},{"$f":"VLOOKUP(B75,'LOC FINAL with new Themes'!A:M,12,0)","v":0},{"$f":"VLOOKUP(B75,'LOC FINAL with new Themes'!A:M,13,0)","v":0}]
["School District Boundaries","School District Boundaries",null,"School District Boundaries","Cultural & Demographic Statistics ","DOC-Census","Randy Fusaro","randy.j.fusaro@census.gov",{"$f":"VLOOKUP(B76,'LOC FINAL with new Themes'!A:M,7,0)","v":0},{"$f":"VLOOKUP(B76,'LOC FINAL with new Themes'!A:M,8,0)","v":0},{"$f":"VLOOKUP(B76,'LOC FINAL with new Themes'!A:M,9,0)","v":0},{"$f":"VLOOKUP(B76,'LOC FINAL with new Themes'!A:M,10,0)","v":0},{"$f":"VLOOKUP(B76,'LOC FINAL with new Themes'!A:M,11,0)","v":0},{"$f":"VLOOKUP(B76,'LOC FINAL with new Themes'!A:M,12,0)","v":0},{"$f":"VLOOKUP(B76,'LOC FINAL with new Themes'!A:M,13,0)","v":0}]
[null,"Secondary School District (2010 Census)","Secondary School District (2010 Census)","Secondary School District (2010 Census)","Cultural & Demographic Statistics ","DOC-Census","Jennifer Holland","Jennifer.L.Holland@census.gov",{"$f":"VLOOKUP(B77,'LOC FINAL with new Themes'!A:M,7,0)","v":0},{"$f":"VLOOKUP(B77,'LOC FINAL with new Themes'!A:M,8,0)","v":0},{"$f":"VLOOKUP(B77,'LOC FINAL with new Themes'!A:M,9,0)","v":0},{"$f":"VLOOKUP(B77,'LOC FINAL with new Themes'!A:M,10,0)","v":0},{"$f":"VLOOKUP(B77,'LOC FINAL with new Themes'!A:M,11,0)","v":0},{"$f":"VLOOKUP(B77,'LOC FINAL with new Themes'!A:M,12,0)","v":0},{"$f":"VLOOKUP(B77,'LOC FINAL with new Themes'!A:M,13,0)","v":0}]
[null,"Secondary School District (Census 2000)","Secondary School District (Census 2000)","Secondary School District (Census 2000)","Cultural & Demographic Statistics ","DOC-Census","Jennifer Holland","Jennifer.L.Holland@census.gov",{"$f":"VLOOKUP(B78,'LOC FINAL with new Themes'!A:M,7,0)","v":0},{"$f":"VLOOKUP(B78,'LOC FINAL with new Themes'!A:M,8,0)","v":0},{"$f":"VLOOKUP(B78,'LOC FINAL with new Themes'!A:M,9,0)","v":0},{"$f":"VLOOKUP(B78,'LOC FINAL with new Themes'!A:M,10,0)","v":0},{"$f":"VLOOKUP(B78,'LOC FINAL with new Themes'!A:M,11,0)","v":0},{"$f":"VLOOKUP(B78,'LOC FINAL with new Themes'!A:M,12,0)","v":0},{"$f":"VLOOKUP(B78,'LOC FINAL with new Themes'!A:M,13,0)","v":0}]
["State (+ Territories) Boundaries","State (+ Territories) Boundaries",null,"State (+ Territories) Boundaries","Cultural & Demographic Statistics ","DOC-Census","Randy Fusaro","randy.j.fusaro@census.gov",{"$f":"VLOOKUP(B79,'LOC FINAL with new Themes'!A:M,7,0)","v":0},{"$f":"VLOOKUP(B79,'LOC FINAL with new Themes'!A:M,8,0)","v":0},{"$f":"VLOOKUP(B79,'LOC FINAL with new Themes'!A:M,9,0)","v":0},{"$f":"VLOOKUP(B79,'LOC FINAL with new Themes'!A:M,10,0)","v":0},{"$f":"VLOOKUP(B79,'LOC FINAL with new Themes'!A:M,11,0)","v":0},{"$f":"VLOOKUP(B79,'LOC FINAL with new Themes'!A:M,12,0)","v":0},{"$f":"VLOOKUP(B79,'LOC FINAL with new Themes'!A:M,13,0)","v":0}]
["Statistical Area Boundaries (tracts, blocks, UAs, CDPs, etc)","Statistical Area Boundaries (tracts, blocks, UAs, CDPs, etc)",null,"Statistical Area Boundaries (tracts, blocks, UAs, CDPs, etc)","Cultural & Demographic Statistics ","DOC-Census","Randy Fusaro","randy.j.fusaro@census.gov",{"$f":"VLOOKUP(B80,'LOC FINAL with new Themes'!A:M,7,0)","v":0},{"$f":"VLOOKUP(B80,'LOC FINAL with new Themes'!A:M,8,0)","v":0},{"$f":"VLOOKUP(B80,'LOC FINAL with new Themes'!A:M,9,0)","v":0},{"$f":"VLOOKUP(B80,'LOC FINAL with new Themes'!A:M,10,0)","v":0},{"$f":"VLOOKUP(B80,'LOC FINAL with new Themes'!A:M,11,0)","v":0},{"$f":"VLOOKUP(B80,'LOC FINAL with new Themes'!A:M,12,0)","v":0},{"$f":"VLOOKUP(B80,'LOC FINAL with new Themes'!A:M,13,0)","v":0}]
[null,"Super Public Use Microdata Area (Census 2000)","Super Public Use Microdata Area (Census 2000)","Super Public Use Microdata Area (Census 2000)","Cultural & Demographic Statistics ","DOC-Census","Jennifer Holland","Jennifer.L.Holland@census.gov",{"$f":"VLOOKUP(B81,'LOC FINAL with new Themes'!A:M,7,0)","v":0},{"$f":"VLOOKUP(B81,'LOC FINAL with new Themes'!A:M,8,0)","v":0},{"$f":"VLOOKUP(B81,'LOC FINAL with new Themes'!A:M,9,0)","v":0},{"$f":"VLOOKUP(B81,'LOC FINAL with new Themes'!A:M,10,0)","v":0},{"$f":"VLOOKUP(B81,'LOC FINAL with new Themes'!A:M,11,0)","v":0},{"$f":"VLOOKUP(B81,'LOC FINAL with new Themes'!A:M,12,0)","v":0},{"$f":"VLOOKUP(B81,'LOC FINAL with new Themes'!A:M,13,0)","v":0}]
["TIGER* (many statistical boundaries)","TIGER (many statistical boundaries)",null,"TIGER (many statistical boundaries)","Cultural & Demographic Statistics ","DOC-Census","Randy Fusaro","randy.j.fusaro@census.gov",{"$f":"VLOOKUP(B82,'LOC FINAL with new Themes'!A:M,7,0)","v":0},{"$f":"VLOOKUP(B82,'LOC FINAL with new Themes'!A:M,8,0)","v":0},{"$f":"VLOOKUP(B82,'LOC FINAL with new Themes'!A:M,9,0)","v":0},{"$f":"VLOOKUP(B82,'LOC FINAL with new Themes'!A:M,10,0)","v":0},{"$f":"VLOOKUP(B82,'LOC FINAL with new Themes'!A:M,11,0)","v":0},{"$f":"VLOOKUP(B82,'LOC FINAL with new Themes'!A:M,12,0)","v":0},{"$f":"VLOOKUP(B82,'LOC FINAL with new Themes'!A:M,13,0)","v":0}]
[null,"Topological Faces (2010 Census)","Topological Faces (2010 Census)","Topological Faces (2010 Census)","Cultural & Demographic Statistics ","DOC-Census","Jennifer Holland","Jennifer.L.Holland@census.gov",{"$f":"VLOOKUP(B83,'LOC FINAL with new Themes'!A:M,7,0)","v":0},{"$f":"VLOOKUP(B83,'LOC FINAL with new Themes'!A:M,8,0)","v":0},{"$f":"VLOOKUP(B83,'LOC FINAL with new Themes'!A:M,9,0)","v":0},{"$f":"VLOOKUP(B83,'LOC FINAL with new Themes'!A:M,10,0)","v":0},{"$f":"VLOOKUP(B83,'LOC FINAL with new Themes'!A:M,11,0)","v":0},{"$f":"VLOOKUP(B83,'LOC FINAL with new Themes'!A:M,12,0)","v":0},{"$f":"VLOOKUP(B83,'LOC FINAL with new Themes'!A:M,13,0)","v":0}]
[null,"Unified School District (2010 Census)","Unified School District (2010 Census)","Unified School District (2010 Census)","Cultural & Demographic Statistics ","DOC-Census","Jennifer Holland","Jennifer.L.Holland@census.gov",{"$f":"VLOOKUP(B84,'LOC FINAL with new Themes'!A:M,7,0)","v":0},{"$f":"VLOOKUP(B84,'LOC FINAL with new Themes'!A:M,8,0)","v":0},{"$f":"VLOOKUP(B84,'LOC FINAL with new Themes'!A:M,9,0)","v":0},{"$f":"VLOOKUP(B84,'LOC FINAL with new Themes'!A:M,10,0)","v":0},{"$f":"VLOOKUP(B84,'LOC FINAL with new Themes'!A:M,11,0)","v":0},{"$f":"VLOOKUP(B84,'LOC FINAL with new Themes'!A:M,12,0)","v":0},{"$f":"VLOOKUP(B84,'LOC FINAL with new Themes'!A:M,13,0)","v":0}]
[null,"Unified School District (Census 2000)","Unified School District (Census 2000)","Unified School District (Census 2000)","Cultural & Demographic Statistics ","DOC-Census","Jennifer Holland","Jennifer.L.Holland@census.gov",{"$f":"VLOOKUP(B85,'LOC FINAL with new Themes'!A:M,7,0)","v":0},{"$f":"VLOOKUP(B85,'LOC FINAL with new Themes'!A:M,8,0)","v":0},{"$f":"VLOOKUP(B85,'LOC FINAL with new Themes'!A:M,9,0)","v":0},{"$f":"VLOOKUP(B85,'LOC FINAL with new Themes'!A:M,10,0)","v":0},{"$f":"VLOOKUP(B85,'LOC FINAL with new Themes'!A:M,11,0)","v":0},{"$f":"VLOOKUP(B85,'LOC FINAL with new Themes'!A:M,12,0)","v":0},{"$f":"VLOOKUP(B85,'LOC FINAL with new Themes'!A:M,13,0)","v":0}]
[null,"Urban Growth Area (2010 Census)","Urban Growth Area (2010 Census)","Urban Growth Area (2010 Census)","Cultural & Demographic Statistics ","DOC-Census","Jennifer Holland","Jennifer.L.Holland@census.gov",{"$f":"VLOOKUP(B86,'LOC FINAL with new Themes'!A:M,7,0)","v":0},{"$f":"VLOOKUP(B86,'LOC FINAL with new Themes'!A:M,8,0)","v":0},{"$f":"VLOOKUP(B86,'LOC FINAL with new Themes'!A:M,9,0)","v":0},{"$f":"VLOOKUP(B86,'LOC FINAL with new Themes'!A:M,10,0)","v":0},{"$f":"VLOOKUP(B86,'LOC FINAL with new Themes'!A:M,11,0)","v":0},{"$f":"VLOOKUP(B86,'LOC FINAL with new Themes'!A:M,12,0)","v":0},{"$f":"VLOOKUP(B86,'LOC FINAL with new Themes'!A:M,13,0)","v":0}]
[null,"Urban Growth Area (Census 2000)","Urban Growth Area (Census 2000)","Urban Growth Area (Census 2000)","Cultural & Demographic Statistics ","DOC-Census","Jennifer Holland","Jennifer.L.Holland@census.gov",{"$f":"VLOOKUP(B87,'LOC FINAL with new Themes'!A:M,7,0)","v":0},{"$f":"VLOOKUP(B87,'LOC FINAL with new Themes'!A:M,8,0)","v":0},{"$f":"VLOOKUP(B87,'LOC FINAL with new Themes'!A:M,9,0)","v":0},{"$f":"VLOOKUP(B87,'LOC FINAL with new Themes'!A:M,10,0)","v":0},{"$f":"VLOOKUP(B87,'LOC FINAL with new Themes'!A:M,11,0)","v":0},{"$f":"VLOOKUP(B87,'LOC FINAL with new Themes'!A:M,12,0)","v":0},{"$f":"VLOOKUP(B87,'LOC FINAL with new Themes'!A:M,13,0)","v":0}]
[null,"Voting District (2010 Census)","Voting District (2010 Census)","Voting District (2010 Census)","Cultural & Demographic Statistics ","DOC-Census","Jennifer Holland","Jennifer.L.Holland@census.gov",{"$f":"VLOOKUP(B88,'LOC FINAL with new Themes'!A:M,7,0)","v":0},{"$f":"VLOOKUP(B88,'LOC FINAL with new Themes'!A:M,8,0)","v":0},{"$f":"VLOOKUP(B88,'LOC FINAL with new Themes'!A:M,9,0)","v":0},{"$f":"VLOOKUP(B88,'LOC FINAL with new Themes'!A:M,10,0)","v":0},{"$f":"VLOOKUP(B88,'LOC FINAL with new Themes'!A:M,11,0)","v":0},{"$f":"VLOOKUP(B88,'LOC FINAL with new Themes'!A:M,12,0)","v":0},{"$f":"VLOOKUP(B88,'LOC FINAL with new Themes'!A:M,13,0)","v":0}]
[null,"Voting District (Census 2000)","Voting District (Census 2000)","Voting District (Census 2000)","Cultural & Demographic Statistics ","DOC-Census","Jennifer Holland","Jennifer.L.Holland@census.gov",{"$f":"VLOOKUP(B89,'LOC FINAL with new Themes'!A:M,7,0)","v":0},{"$f":"VLOOKUP(B89,'LOC FINAL with new Themes'!A:M,8,0)","v":0},{"$f":"VLOOKUP(B89,'LOC FINAL with new Themes'!A:M,9,0)","v":0},{"$f":"VLOOKUP(B89,'LOC FINAL with new Themes'!A:M,10,0)","v":0},{"$f":"VLOOKUP(B89,'LOC FINAL with new Themes'!A:M,11,0)","v":0},{"$f":"VLOOKUP(B89,'LOC FINAL with new Themes'!A:M,12,0)","v":0},{"$f":"VLOOKUP(B89,'LOC FINAL with new Themes'!A:M,13,0)","v":0}]
["Voting District Boundaries","Voting District Boundaries",null,"Voting District Boundaries","Cultural & Demographic Statistics ","DOC-Census","Randy Fusaro","randy.j.fusaro@census.gov",{"$f":"VLOOKUP(B90,'LOC FINAL with new Themes'!A:M,7,0)","v":0},{"$f":"VLOOKUP(B90,'LOC FINAL with new Themes'!A:M,8,0)","v":0},{"$f":"VLOOKUP(B90,'LOC FINAL with new Themes'!A:M,9,0)","v":0},{"$f":"VLOOKUP(B90,'LOC FINAL with new Themes'!A:M,10,0)","v":0},{"$f":"VLOOKUP(B90,'LOC FINAL with new Themes'!A:M,11,0)","v":0},{"$f":"VLOOKUP(B90,'LOC FINAL with new Themes'!A:M,12,0)","v":0},{"$f":"VLOOKUP(B90,'LOC FINAL with new Themes'!A:M,13,0)","v":0}]
[{"$f":"SUBTOTAL(3,A50:A90)","v":10},{"$f":"SUBTOTAL(3,B50:B90)","v":39},{"$f":"SUBTOTAL(3,C50:C90)","v":30},{"$f":"SUBTOTAL(3,D50:D90)","v":41},"Cultural & Demographic Statistics  Count"]
["Cultural Landscape Boundaries","Cultural Landscape Boundaries","Cultural Landscape Boundaries",{"$f":"IF(C92=0,B92,C92)","v":"Cultural Landscape Boundaries"},"Cultural & Demographic Statistics \nCultural Resources","DOI-NPS","John Knoerl","john_knoerl@nps.gov",{"$f":"VLOOKUP(B92,'LOC FINAL with new Themes'!A:M,7,0)","v":"Feature classes of the cultural resource data model (NPS only, other federal agencies handle it as they decide)"},{"$f":"VLOOKUP(B92,'LOC FINAL with new Themes'!A:M,8,0)","v":"don't want a single centralized data set but focusing on standard approach"},{"$f":"VLOOKUP(B92,'LOC FINAL with new Themes'!A:M,9,0)","v":0},{"$f":"VLOOKUP(B92,'LOC FINAL with new Themes'!A:M,10,0)","v":0},{"$f":"VLOOKUP(B92,'LOC FINAL with new Themes'!A:M,11,0)","v":0},{"$f":"VLOOKUP(B92,'LOC FINAL with new Themes'!A:M,12,0)","v":0},{"$f":"VLOOKUP(B92,'LOC FINAL with new Themes'!A:M,13,0)","v":0}]
["Cultural Resource Survey Boundaries","Cultural Resource Survey Boundaries","Cultural Resource Survey Boundaries","Cultural Resource Survey Boundaries","Cultural & Demographic Statistics \nCultural Resources","DOI-NPS","John Knoerl","john_knoerl@nps.gov",{"$f":"VLOOKUP(B93,'LOC FINAL with new Themes'!A:M,7,0)","v":"Feature classes of the cultural resource data model (NPS only, other federal agencies handle it as they decide)"},{"$f":"VLOOKUP(B93,'LOC FINAL with new Themes'!A:M,8,0)","v":"don't want a single centralized data set but focusing on standard approach"},{"$f":"VLOOKUP(B93,'LOC FINAL with new Themes'!A:M,9,0)","v":0},{"$f":"VLOOKUP(B93,'LOC FINAL with new Themes'!A:M,10,0)","v":0},{"$f":"VLOOKUP(B93,'LOC FINAL with new Themes'!A:M,11,0)","v":0},{"$f":"VLOOKUP(B93,'LOC FINAL with new Themes'!A:M,12,0)","v":0},{"$f":"VLOOKUP(B93,'LOC FINAL with new Themes'!A:M,13,0)","v":0}]
["Ethnographic Resource Boundaries","Ethnographic Resource Boundaries","Ethnographic Resource Boundaries","Ethnographic Resource Boundaries","Cultural & Demographic Statistics \nCultural Resources","DOI-NPS","John Knoerl","john_knoerl@nps.gov",{"$f":"VLOOKUP(B94,'LOC FINAL with new Themes'!A:M,7,0)","v":"Feature classes of the cultural resource data model (NPS only, other federal agencies handle it as they decide)"},{"$f":"VLOOKUP(B94,'LOC FINAL with new Themes'!A:M,8,0)","v":"don't want a single centralized data set but focusing on standard approach"},{"$f":"VLOOKUP(B94,'LOC FINAL with new Themes'!A:M,9,0)","v":0},{"$f":"VLOOKUP(B94,'LOC FINAL with new Themes'!A:M,10,0)","v":0},{"$f":"VLOOKUP(B94,'LOC FINAL with new Themes'!A:M,11,0)","v":0},{"$f":"VLOOKUP(B94,'LOC FINAL with new Themes'!A:M,12,0)","v":0},{"$f":"VLOOKUP(B94,'LOC FINAL with new Themes'!A:M,13,0)","v":0}]
["Historic Buildings Boundaries","Historic Buildings Boundaries","Historic Buildings Boundaries","Historic Buildings Boundaries","Cultural & Demographic Statistics \nCultural Resources","DOI-NPS","John Knoerl","john_knoerl@nps.gov",{"$f":"VLOOKUP(B95,'LOC FINAL with new Themes'!A:M,7,0)","v":"Feature classes of the cultural resource data model (NPS only, other federal agencies handle it as they decide)"},{"$f":"VLOOKUP(B95,'LOC FINAL with new Themes'!A:M,8,0)","v":"don't want a single centralized data set but focusing on standard approach"},{"$f":"VLOOKUP(B95,'LOC FINAL with new Themes'!A:M,9,0)","v":0},{"$f":"VLOOKUP(B95,'LOC FINAL with new Themes'!A:M,10,0)","v":0},{"$f":"VLOOKUP(B95,'LOC FINAL with new Themes'!A:M,11,0)","v":0},{"$f":"VLOOKUP(B95,'LOC FINAL with new Themes'!A:M,12,0)","v":0},{"$f":"VLOOKUP(B95,'LOC FINAL with new Themes'!A:M,13,0)","v":0}]
["Historic Districts Boundaries","Historic Districts Boundaries","Historic Districts Boundaries","Historic Districts Boundaries","Cultural & Demographic Statistics \nCultural Resources","DOI-NPS","John Knoerl","john_knoerl@nps.gov",{"$f":"VLOOKUP(B96,'LOC FINAL with new Themes'!A:M,7,0)","v":"Feature classes of the cultural resource data model (NPS only, other federal agencies handle it as they decide)"},{"$f":"VLOOKUP(B96,'LOC FINAL with new Themes'!A:M,8,0)","v":"don't want a single centralized data set but focusing on standard approach"},{"$f":"VLOOKUP(B96,'LOC FINAL with new Themes'!A:M,9,0)","v":0},{"$f":"VLOOKUP(B96,'LOC FINAL with new Themes'!A:M,10,0)","v":0},{"$f":"VLOOKUP(B96,'LOC FINAL with new Themes'!A:M,11,0)","v":0},{"$f":"VLOOKUP(B96,'LOC FINAL with new Themes'!A:M,12,0)","v":0},{"$f":"VLOOKUP(B96,'LOC FINAL with new Themes'!A:M,13,0)","v":0}]
["Historic Objects Boundaries","Historic Objects Boundaries","Historic Objects Boundaries","Historic Objects Boundaries","Cultural & Demographic Statistics \nCultural Resources","DOI-NPS","John Knoerl","john_knoerl@nps.gov",{"$f":"VLOOKUP(B97,'LOC FINAL with new Themes'!A:M,7,0)","v":"Feature classes of the cultural resource data model (NPS only, other federal agencies handle it as they decide)"},{"$f":"VLOOKUP(B97,'LOC FINAL with new Themes'!A:M,8,0)","v":"don't want a single centralized data set but focusing on standard approach"},{"$f":"VLOOKUP(B97,'LOC FINAL with new Themes'!A:M,9,0)","v":0},{"$f":"VLOOKUP(B97,'LOC FINAL with new Themes'!A:M,10,0)","v":0},{"$f":"VLOOKUP(B97,'LOC FINAL with new Themes'!A:M,11,0)","v":0},{"$f":"VLOOKUP(B97,'LOC FINAL with new Themes'!A:M,12,0)","v":0},{"$f":"VLOOKUP(B97,'LOC FINAL with new Themes'!A:M,13,0)","v":0}]
["Historic Structures Boundaries","Historic Structures Boundaries","Historic Structures Boundaries","Historic Structures Boundaries","Cultural & Demographic Statistics \nCultural Resources","DOI-NPS","John Knoerl","john_knoerl@nps.gov",{"$f":"VLOOKUP(B98,'LOC FINAL with new Themes'!A:M,7,0)","v":"Feature classes of the cultural resource data model (NPS only, other federal agencies handle it as they decide)"},{"$f":"VLOOKUP(B98,'LOC FINAL with new Themes'!A:M,8,0)","v":"don't want a single centralized data set but focusing on standard approach"},{"$f":"VLOOKUP(B98,'LOC FINAL with new Themes'!A:M,9,0)","v":0},{"$f":"VLOOKUP(B98,'LOC FINAL with new Themes'!A:M,10,0)","v":0},{"$f":"VLOOKUP(B98,'LOC FINAL with new Themes'!A:M,11,0)","v":0},{"$f":"VLOOKUP(B98,'LOC FINAL with new Themes'!A:M,12,0)","v":0},{"$f":"VLOOKUP(B98,'LOC FINAL with new Themes'!A:M,13,0)","v":"M "}]
[null,null,"Other Cultural Resource Boundaries","Other Cultural Resource Boundaries","Cultural & Demographic Statistics \nCultural Resources","DOI-NPS"]
[{"$f":"SUBTOTAL(3,A92:A99)","v":7},{"$f":"SUBTOTAL(3,B92:B99)","v":7},{"$f":"SUBTOTAL(3,C92:C99)","v":8},{"$f":"SUBTOTAL(3,D92:D99)","v":8},"Cultural & Demographic Statistics \nCultural Resources Count"]
[null,"Point Landmark (2010 Census)","Point of Landmark (2010 Census)",{"$f":"IF(C101=0,B101,C101)","v":"Point of Landmark (2010 Census)"},"Cultural Resources","DOC-Census","Jennifer Holland","Jennifer.L.Holland@census.gov",{"$f":"VLOOKUP(B101,'LOC FINAL with new Themes'!A:M,7,0)","v":0},{"$f":"VLOOKUP(B101,'LOC FINAL with new Themes'!A:M,8,0)","v":0},{"$f":"VLOOKUP(B101,'LOC FINAL with new Themes'!A:M,9,0)","v":0},{"$f":"VLOOKUP(B101,'LOC FINAL with new Themes'!A:M,10,0)","v":0},{"$f":"VLOOKUP(B101,'LOC FINAL with new Themes'!A:M,11,0)","v":0},{"$f":"VLOOKUP(B101,'LOC FINAL with new Themes'!A:M,12,0)","v":0},{"$f":"VLOOKUP(B101,'LOC FINAL with new Themes'!A:M,13,0)","v":0}]
["Archeological Sites","Archeological Sites","Archeological Sites","Archeological Sites","Cultural Resources ","DOI-NPS","John Knoerl","john_knoerl@nps.gov",{"$f":"VLOOKUP(B102,'LOC FINAL with new Themes'!A:M,7,0)","v":"Feature classes of the cultural resource data model (NPS only, other federal agencies handle it as they decide)"},{"$f":"VLOOKUP(B102,'LOC FINAL with new Themes'!A:M,8,0)","v":"don't want a single centralized data set but focusing on standard approach"},{"$f":"VLOOKUP(B102,'LOC FINAL with new Themes'!A:M,9,0)","v":"National Historic Presrevation Act says state historic preservation office has primary oversight (section 110)"},{"$f":"VLOOKUP(B102,'LOC FINAL with new Themes'!A:M,10,0)","v":0},{"$f":"VLOOKUP(B102,'LOC FINAL with new Themes'!A:M,11,0)","v":0},{"$f":"VLOOKUP(B102,'LOC FINAL with new Themes'!A:M,12,0)","v":0},{"$f":"VLOOKUP(B102,'LOC FINAL with new Themes'!A:M,13,0)","v":0}]
[null,"Area Landmark (2010 Census)","Area Landmark (2010 Census)","Area Landmark (2010 Census)","Cultural Resources ","DOC-Census","Jennifer Holland","Jennifer.L.Holland@census.gov",{"$f":"VLOOKUP(B103,'LOC FINAL with new Themes'!A:M,7,0)","v":0},{"$f":"VLOOKUP(B103,'LOC FINAL with new Themes'!A:M,8,0)","v":0},{"$f":"VLOOKUP(B103,'LOC FINAL with new Themes'!A:M,9,0)","v":0},{"$f":"VLOOKUP(B103,'LOC FINAL with new Themes'!A:M,10,0)","v":0},{"$f":"VLOOKUP(B103,'LOC FINAL with new Themes'!A:M,11,0)","v":0},{"$f":"VLOOKUP(B103,'LOC FINAL with new Themes'!A:M,12,0)","v":0},{"$f":"VLOOKUP(B103,'LOC FINAL with new Themes'!A:M,13,0)","v":0}]
[null,null,"Geographic Names Dataset - National Map","Geographic Names Dataset - National Map","Cultural Resources ","DOI-USGS"]
["National Map - Geographic Names Information System (GNIS)","National Map - Geographic Names Information System (GNIS)",null,"National Map - Geographic Names Information System (GNIS)","Cultural Resources ","DOI-USGS","Lou Yost","lyost@usgs.gov",{"$f":"VLOOKUP(B105,'LOC FINAL with new Themes'!A:M,7,0)","v":"single data set; poc, data managers; daily updated; Denver systems people backup and archive; transfer to NARA also; Gaz vector (internal)"},{"$f":"VLOOKUP(B105,'LOC FINAL with new Themes'!A:M,8,0)","v":0},{"$f":"VLOOKUP(B105,'LOC FINAL with new Themes'!A:M,9,0)","v":0},{"$f":"VLOOKUP(B105,'LOC FINAL with new Themes'!A:M,10,0)","v":0},{"$f":"VLOOKUP(B105,'LOC FINAL with new Themes'!A:M,11,0)","v":0},{"$f":"VLOOKUP(B105,'LOC FINAL with new Themes'!A:M,12,0)","v":0},{"$f":"VLOOKUP(B105,'LOC FINAL with new Themes'!A:M,13,0)","v":"S"}]
[null,"Topological Faces-Area Landmark Relationship File","Topological Faces-Area Landmark Relationship File","Topological Faces-Area Landmark Relationship File","Cultural Resources ","DOC-Census","Jennifer Holland","Jennifer.L.Holland@census.gov",{"$f":"VLOOKUP(B106,'LOC FINAL with new Themes'!A:M,7,0)","v":0},{"$f":"VLOOKUP(B106,'LOC FINAL with new Themes'!A:M,8,0)","v":0},{"$f":"VLOOKUP(B106,'LOC FINAL with new Themes'!A:M,9,0)","v":0},{"$f":"VLOOKUP(B106,'LOC FINAL with new Themes'!A:M,10,0)","v":0},{"$f":"VLOOKUP(B106,'LOC FINAL with new Themes'!A:M,11,0)","v":0},{"$f":"VLOOKUP(B106,'LOC FINAL with new Themes'!A:M,12,0)","v":0},{"$f":"VLOOKUP(B106,'LOC FINAL with new Themes'!A:M,13,0)","v":0}]
[{"$f":"SUBTOTAL(3,A101:A106)","v":2},{"$f":"SUBTOTAL(3,B101:B106)","v":5},{"$f":"SUBTOTAL(3,C101:C106)","v":5},{"$f":"SUBTOTAL(3,D101:D106)","v":6},"Cultural Resources Count"]
["133 UA Elevation Data (lidar)","133 UA Elevation Data (lidar)",null,{"$f":"IF(C108=0,B108,C108)","v":"133 UA Elevation Data (lidar)"},"Elevation","DOD-NGA","Ron Power, NGA","ronald.k.power@nga.mil",{"$f":"VLOOKUP(B108,'LOC FINAL with new Themes'!A:M,7,0)","v":0},{"$f":"VLOOKUP(B108,'LOC FINAL with new Themes'!A:M,8,0)","v":0},{"$f":"VLOOKUP(B108,'LOC FINAL with new Themes'!A:M,9,0)","v":0},{"$f":"VLOOKUP(B108,'LOC FINAL with new Themes'!A:M,10,0)","v":0},{"$f":"VLOOKUP(B108,'LOC FINAL with new Themes'!A:M,11,0)","v":0},{"$f":"VLOOKUP(B108,'LOC FINAL with new Themes'!A:M,12,0)","v":0},{"$f":"VLOOKUP(B108,'LOC FINAL with new Themes'!A:M,13,0)","v":0}]
["DEMs - Archive","DEMs - Archive",null,"DEMs - Archive","Elevation","DOI-USGS","Gayla Evans","gevans@usgs.gov",{"$f":"VLOOKUP(B109,'LOC FINAL with new Themes'!A:M,7,0)","v":"DEMS update at variable nature; are four data sets based on resolution; this is the POC and data manager; this is the name and maintain three complete with two physically separate on-site and one off-site"},{"$f":"VLOOKUP(B109,'LOC FINAL with new Themes'!A:M,8,0)","v":0},{"$f":"VLOOKUP(B109,'LOC FINAL with new Themes'!A:M,9,0)","v":0},{"$f":"VLOOKUP(B109,'LOC FINAL with new Themes'!A:M,10,0)","v":0},{"$f":"VLOOKUP(B109,'LOC FINAL with new Themes'!A:M,11,0)","v":0},{"$f":"VLOOKUP(B109,'LOC FINAL with new Themes'!A:M,12,0)","v":0},{"$f":"VLOOKUP(B109,'LOC FINAL with new Themes'!A:M,13,0)","v":"S"}]
["GTOPO30","GTOPO30",null,"GTOPO30","Elevation","DOI-USGS","Jeff Danielson"," daniels@usgs.gov",{"$f":"VLOOKUP(B110,'LOC FINAL with new Themes'!A:M,7,0)","v":"GTOPO30 is static; one data set; this is the POC and data manager; this is the name and maintain three complete with two physically separate on-site and one off-site"},{"$f":"VLOOKUP(B110,'LOC FINAL with new Themes'!A:M,8,0)","v":0},{"$f":"VLOOKUP(B110,'LOC FINAL with new Themes'!A:M,9,0)","v":0},{"$f":"VLOOKUP(B110,'LOC FINAL with new Themes'!A:M,10,0)","v":0},{"$f":"VLOOKUP(B110,'LOC FINAL with new Themes'!A:M,11,0)","v":0},{"$f":"VLOOKUP(B110,'LOC FINAL with new Themes'!A:M,12,0)","v":0},{"$f":"VLOOKUP(B110,'LOC FINAL with new Themes'!A:M,13,0)","v":0}]
["National Map National Elevation Data Set (NED)","National Map  - National Elevation Dataset (NED)",null,"National Map  - National Elevation Dataset (NED)","Elevation","DOI-USGS","Jim Mauck","lyost@usgs.gov",{"$f":"VLOOKUP(B111,'LOC FINAL with new Themes'!A:M,7,0)","v":0},{"$f":"VLOOKUP(B111,'LOC FINAL with new Themes'!A:M,8,0)","v":0},{"$f":"VLOOKUP(B111,'LOC FINAL with new Themes'!A:M,9,0)","v":0},{"$f":"VLOOKUP(B111,'LOC FINAL with new Themes'!A:M,10,0)","v":0},{"$f":"VLOOKUP(B111,'LOC FINAL with new Themes'!A:M,11,0)","v":0},{"$f":"VLOOKUP(B111,'LOC FINAL with new Themes'!A:M,12,0)","v":0},{"$f":"VLOOKUP(B111,'LOC FINAL with new Themes'!A:M,13,0)","v":0}]
["National Ocean Service (NOS) Bathymetry Warehouse (name subject to change)","National Ocean Service (NOS) Bathymetry Warehouse (name subject to change)",null,"National Ocean Service (NOS) Bathymetry Warehouse (name subject to change)","Elevation","DOC-NOAA",null,null,{"$f":"VLOOKUP(B112,'LOC FINAL with new Themes'!A:M,7,0)","v":0},{"$f":"VLOOKUP(B112,'LOC FINAL with new Themes'!A:M,8,0)","v":0},{"$f":"VLOOKUP(B112,'LOC FINAL with new Themes'!A:M,9,0)","v":0},{"$f":"VLOOKUP(B112,'LOC FINAL with new Themes'!A:M,10,0)","v":0},{"$f":"VLOOKUP(B112,'LOC FINAL with new Themes'!A:M,11,0)","v":0},{"$f":"VLOOKUP(B112,'LOC FINAL with new Themes'!A:M,12,0)","v":0},{"$f":"VLOOKUP(B112,'LOC FINAL with new Themes'!A:M,13,0)","v":"P"}]
["National Ocean Service (NOS) Hydrographic Data Base (NOSHDB)","National Ocean Service (NOS) Hydrographic Data Base (NOSHDB)",null,"National Ocean Service (NOS) Hydrographic Data Base (NOSHDB)","Elevation","DOC-NOAA","Brian Mohr","Brian.Mohr@noaa.gov",{"$f":"VLOOKUP(B113,'LOC FINAL with new Themes'!A:M,7,0)","v":"I manage several datadatabases/datasets.  They include SURDEX, our database of hydrographic survey outlines(polygons) in a MapInfo platform and  the Bathydatabase which is a collection of our BAGs or Bathymetric Attribution Grid files. "},{"$f":"VLOOKUP(B113,'LOC FINAL with new Themes'!A:M,8,0)","v":"Yes"},{"$f":"VLOOKUP(B113,'LOC FINAL with new Themes'!A:M,9,0)","v":"Yes"},{"$f":"VLOOKUP(B113,'LOC FINAL with new Themes'!A:M,10,0)","v":"archived at NGDC"},{"$f":"VLOOKUP(B113,'LOC FINAL with new Themes'!A:M,11,0)","v":"Currently these files are being prepped to be pushed into either  a Caris or ESRI database platform.  I also have a shared role in managing our Survey Tracking database called Survey Tracker.  Each is updated weekly, they are backed up by our internal IT staff"},{"$f":"VLOOKUP(B113,'LOC FINAL with new Themes'!A:M,12,0)","v":0},{"$f":"VLOOKUP(B113,'LOC FINAL with new Themes'!A:M,13,0)","v":"M "}]
["NOAA Estuarine Bathymetry","NOAA Estuarine Bathymetry",null,"NOAA Estuarine Bathymetry","Elevation","DOC-NOAA",null,null,{"$f":"VLOOKUP(B114,'LOC FINAL with new Themes'!A:M,7,0)","v":0},{"$f":"VLOOKUP(B114,'LOC FINAL with new Themes'!A:M,8,0)","v":0},{"$f":"VLOOKUP(B114,'LOC FINAL with new Themes'!A:M,9,0)","v":0},{"$f":"VLOOKUP(B114,'LOC FINAL with new Themes'!A:M,10,0)","v":0},{"$f":"VLOOKUP(B114,'LOC FINAL with new Themes'!A:M,11,0)","v":0},{"$f":"VLOOKUP(B114,'LOC FINAL with new Themes'!A:M,12,0)","v":0},{"$f":"VLOOKUP(B114,'LOC FINAL with new Themes'!A:M,13,0)","v":0}]
["SRTM (3-arc second DTEDS)","SRTM (3-arc second DTEDS)",null,"SRTM (3-arc second DTEDS)","Elevation","DOI-USGS","Dean Gesch, USGS","gesch@usgs.gov",{"$f":"VLOOKUP(B115,'LOC FINAL with new Themes'!A:M,7,0)","v":"SRTM is static; one data set; this is the POC and data manager; this is the name and maintain three complete with two physically separate on-site and one off-site"},{"$f":"VLOOKUP(B115,'LOC FINAL with new Themes'!A:M,8,0)","v":0},{"$f":"VLOOKUP(B115,'LOC FINAL with new Themes'!A:M,9,0)","v":0},{"$f":"VLOOKUP(B115,'LOC FINAL with new Themes'!A:M,10,0)","v":0},{"$f":"VLOOKUP(B115,'LOC FINAL with new Themes'!A:M,11,0)","v":0},{"$f":"VLOOKUP(B115,'LOC FINAL with new Themes'!A:M,12,0)","v":0},{"$f":"VLOOKUP(B115,'LOC FINAL with new Themes'!A:M,13,0)","v":"S"}]
["Digital Flood Insurance Rate Maps (D-FIRM)","Digital Flood Insurance Rate Maps (D-FIRM)","Digital Flood Insurance Rate Maps (DFIRM)","Digital Flood Insurance Rate Maps (DFIRM)","Elevation ","DHS-FEMA","Scott McAfee","scott.mcaffee@dhs.gov",{"$f":"VLOOKUP(B116,'LOC FINAL with new Themes'!A:M,7,0)","v":0},{"$f":"VLOOKUP(B116,'LOC FINAL with new Themes'!A:M,8,0)","v":0},{"$f":"VLOOKUP(B116,'LOC FINAL with new Themes'!A:M,9,0)","v":0},{"$f":"VLOOKUP(B116,'LOC FINAL with new Themes'!A:M,10,0)","v":0},{"$f":"VLOOKUP(B116,'LOC FINAL with new Themes'!A:M,11,0)","v":0},{"$f":"VLOOKUP(B116,'LOC FINAL with new Themes'!A:M,12,0)","v":0},{"$f":"VLOOKUP(B116,'LOC FINAL with new Themes'!A:M,13,0)","v":0}]
[null,null,"Elevation Bathymetric - Ocean, Coastal, and Great Lakes Bathymetry ","Elevation Bathymetric - Ocean, Coastal, and Great Lakes Bathymetry ","Elevation ","DOC-NOAA"]
[null,null,"National Elevation Dataset  - National Map","National Elevation Dataset  - National Map","Elevation ","DOI-USGS"]
["National Flood Hazard Layer (NFHL)","National Flood Hazard Layer (NFHL)","National Flood Hazard Layer (NFHL)","National Flood Hazard Layer (NFHL)","Elevation ","DHS-FEMA","Scott McAfee","scott.mcaffee@dhs.gov",{"$f":"VLOOKUP(B119,'LOC FINAL with new Themes'!A:M,7,0)","v":0},{"$f":"VLOOKUP(B119,'LOC FINAL with new Themes'!A:M,8,0)","v":0},{"$f":"VLOOKUP(B119,'LOC FINAL with new Themes'!A:M,9,0)","v":0},{"$f":"VLOOKUP(B119,'LOC FINAL with new Themes'!A:M,10,0)","v":0},{"$f":"VLOOKUP(B119,'LOC FINAL with new Themes'!A:M,11,0)","v":0},{"$f":"VLOOKUP(B119,'LOC FINAL with new Themes'!A:M,12,0)","v":0},{"$f":"VLOOKUP(B119,'LOC FINAL with new Themes'!A:M,13,0)","v":0}]
[{"$f":"SUBTOTAL(3,A108:A119)","v":10},{"$f":"SUBTOTAL(3,B108:B119)","v":10},{"$f":"SUBTOTAL(3,C108:C119)","v":4},{"$f":"SUBTOTAL(3,D108:D119)","v":12},"Elevation Count"]
["GNSS Continuously Operating Reference Stations","GNSS Continuously Operating Reference Stations",null,{"$f":"IF(C121=0,B121,C121)","v":"GNSS Continuously Operating Reference Stations"},"Geodetic Control","DOC-NOAA","Giovanni Sella","giovanni.sella@noaa.gov",{"$f":"VLOOKUP(B121,'LOC FINAL with new Themes'!A:M,7,0)","v":0},{"$f":"VLOOKUP(B121,'LOC FINAL with new Themes'!A:M,8,0)","v":0},{"$f":"VLOOKUP(B121,'LOC FINAL with new Themes'!A:M,9,0)","v":0},{"$f":"VLOOKUP(B121,'LOC FINAL with new Themes'!A:M,10,0)","v":0},{"$f":"VLOOKUP(B121,'LOC FINAL with new Themes'!A:M,11,0)","v":0},{"$f":"VLOOKUP(B121,'LOC FINAL with new Themes'!A:M,12,0)","v":0},{"$f":"VLOOKUP(B121,'LOC FINAL with new Themes'!A:M,13,0)","v":0}]
["GNSS Orbits","GNSS Orbits",null,"GNSS Orbits","Geodetic Control","DOC-NOAA","Bill Kass","bill.kass@noaa.gov",{"$f":"VLOOKUP(B122,'LOC FINAL with new Themes'!A:M,7,0)","v":0},{"$f":"VLOOKUP(B122,'LOC FINAL with new Themes'!A:M,8,0)","v":0},{"$f":"VLOOKUP(B122,'LOC FINAL with new Themes'!A:M,9,0)","v":0},{"$f":"VLOOKUP(B122,'LOC FINAL with new Themes'!A:M,10,0)","v":0},{"$f":"VLOOKUP(B122,'LOC FINAL with new Themes'!A:M,11,0)","v":0},{"$f":"VLOOKUP(B122,'LOC FINAL with new Themes'!A:M,12,0)","v":0},{"$f":"VLOOKUP(B122,'LOC FINAL with new Themes'!A:M,13,0)","v":0}]
["Gravity and Geoid Data sets","Gravity and Geoid Datasets",null,"Gravity and Geoid Datasets","Geodetic Control","DOC-NOAA","Dan Roman","dan.roman@noaa.gov",{"$f":"VLOOKUP(B123,'LOC FINAL with new Themes'!A:M,7,0)","v":"Multiple data sets. Most can be located at: http://www.ngs.noaa.gov/GEOID/"},{"$f":"VLOOKUP(B123,'LOC FINAL with new Themes'!A:M,8,0)","v":"Yes -Geoid Team Lead"},{"$f":"VLOOKUP(B123,'LOC FINAL with new Themes'!A:M,9,0)","v":"Definitely POC regarding questions about the dataset. The data are freely available for download on the through the above website. If there are problems, then I also answer questions. We do also have a IT specialist to help with debugging and website maintenance"},{"$f":"VLOOKUP(B123,'LOC FINAL with new Themes'!A:M,10,0)","v":"Models a re*generally* produced every three years. However, it has more to do with when the underlying data change. the hybrid geoids we create draw from leveling and GPS data in the NGS database. Once that has been updated sufficiently, we produce new models. The National Adjustment of 2011 will alter ellipsoidal coordinates for bench marks, hence, there will be a GEOID12."},{"$f":"VLOOKUP(B123,'LOC FINAL with new Themes'!A:M,11,0)","v":"Most of the files used to make the various models are backed up on our Unix systems. The idea being that we should be able to replicate the models from the same starting data. The final models themselves are backed up in a separate directory. I believe that much of the data posted for use in online servers is also backed up at the NOAA mirror site in Boulder. This last is more a function of the Systems Development Division that maintains our webpages and access to the data."},{"$f":"VLOOKUP(B123,'LOC FINAL with new Themes'!A:M,12,0)","v":"Pretty much the naming convention has been standardized, and we use it internally and externally the same way."},{"$f":"VLOOKUP(B123,'LOC FINAL with new Themes'!A:M,13,0)","v":"M "}]
["NGS Geodetic Monumented Control ","NGS Geodetic Monumented Control ",null,"NGS Geodetic Monumented Control ","Geodetic Control","DOC-NOAA","Jim Tomlin","jim.tomlin@noaa.gov",{"$f":"VLOOKUP(B124,'LOC FINAL with new Themes'!A:M,7,0)","v":"One set."},{"$f":"VLOOKUP(B124,'LOC FINAL with new Themes'!A:M,8,0)","v":"Yes"},{"$f":"VLOOKUP(B124,'LOC FINAL with new Themes'!A:M,9,0)","v":"yes"},{"$f":"VLOOKUP(B124,'LOC FINAL with new Themes'!A:M,10,0)","v":"?"},{"$f":"VLOOKUP(B124,'LOC FINAL with new Themes'!A:M,11,0)","v":"The NGS database isn't something that NGS makes available en masse (that would kind of defeat the purpose of having a database), but rather we provide online tools for the public to access the subset of data that they are interested in."},{"$f":"VLOOKUP(B124,'LOC FINAL with new Themes'!A:M,12,0)","v":0},{"$f":"VLOOKUP(B124,'LOC FINAL with new Themes'!A:M,13,0)","v":0}]
["Tidal Benchmarks","Tidal Benchmarks",null,"Tidal Benchmarks","Geodetic Control","DOC-NOAA","Tom Landon ","thomas.landon@noaa.gov",{"$f":"VLOOKUP(B125,'LOC FINAL with new Themes'!A:M,7,0)","v":0},{"$f":"VLOOKUP(B125,'LOC FINAL with new Themes'!A:M,8,0)","v":0},{"$f":"VLOOKUP(B125,'LOC FINAL with new Themes'!A:M,9,0)","v":0},{"$f":"VLOOKUP(B125,'LOC FINAL with new Themes'!A:M,10,0)","v":0},{"$f":"VLOOKUP(B125,'LOC FINAL with new Themes'!A:M,11,0)","v":0},{"$f":"VLOOKUP(B125,'LOC FINAL with new Themes'!A:M,12,0)","v":0},{"$f":"VLOOKUP(B125,'LOC FINAL with new Themes'!A:M,13,0)","v":0}]
[null,null,"Airborne Gravity","Airborne Gravity","Geodetic Control ","DOC-NOAA"]
[null,null,"Continuously Operating Reference Stations (CORS)","Continuously Operating Reference Stations (CORS)","Geodetic Control ","DOC-NOAA"]
[null,null,"Geoid Models","Geoid Models","Geodetic Control ","DOC-NOAA"]
["National Geologic Data Base","National Geologic Data Base","National Geodetic Survey (NGS) Datasheets","National Geodetic Survey (NGS) Datasheets","Geodetic Control ","DOI-USGS","David R. Soller","drsoller@usgs.gov",{"$f":"VLOOKUP(B129,'LOC FINAL with new Themes'!A:M,7,0)","v":0},{"$f":"VLOOKUP(B129,'LOC FINAL with new Themes'!A:M,8,0)","v":0},{"$f":"VLOOKUP(B129,'LOC FINAL with new Themes'!A:M,9,0)","v":0},{"$f":"VLOOKUP(B129,'LOC FINAL with new Themes'!A:M,10,0)","v":0},{"$f":"VLOOKUP(B129,'LOC FINAL with new Themes'!A:M,11,0)","v":0},{"$f":"VLOOKUP(B129,'LOC FINAL with new Themes'!A:M,12,0)","v":0},{"$f":"VLOOKUP(B129,'LOC FINAL with new Themes'!A:M,13,0)","v":0}]
[null,null,"Precise Global Navigation Satellite System (GNSS) Orbits",{"$f":"IF(C130=0,B239,C130)","v":"Precise Global Navigation Satellite System (GNSS) Orbits"},"Geodetic Control ","DOC-NOAA"]
[null,null,"Terrestrial Gravity",{"$f":"IF(C131=0,B131,C131)","v":"Terrestrial Gravity"},"Geodetic Control ","DOC-NOAA"]
[{"$f":"SUBTOTAL(3,A121:A131)","v":6},{"$f":"SUBTOTAL(3,B121:B131)","v":6},{"$f":"SUBTOTAL(3,C121:C131)","v":6},{"$f":"SUBTOTAL(3,D121:D131)","v":11},"Geodetic Control Count"]
[null,null,"Coal assessment and mapping",{"$f":"IF(C133=0,B133,C133)","v":"Coal assessment and mapping"},"Geology","DOI-USGS"]
["Coastline Data","Coastline Data","Coastline Data","Coastline Data","Geology","DOI-MMS","James Fulmer","james.s.fulmer@mms.gov",{"$f":"VLOOKUP(B134,'LOC FINAL with new Themes'!A:M,7,0)","v":"undeliverable email- neeed to identify new contact"},{"$f":"VLOOKUP(B134,'LOC FINAL with new Themes'!A:M,8,0)","v":0},{"$f":"VLOOKUP(B134,'LOC FINAL with new Themes'!A:M,9,0)","v":0},{"$f":"VLOOKUP(B134,'LOC FINAL with new Themes'!A:M,10,0)","v":0},{"$f":"VLOOKUP(B134,'LOC FINAL with new Themes'!A:M,11,0)","v":0},{"$f":"VLOOKUP(B134,'LOC FINAL with new Themes'!A:M,12,0)","v":0},{"$f":"VLOOKUP(B134,'LOC FINAL with new Themes'!A:M,13,0)","v":0}]
[null,null,"Earthquake monitoring, research, and mapping","Earthquake monitoring, research, and mapping","Geology","DOI-USGS"]
[null,null,"Geochemistry","Geochemistry","Geology","DOI-USGS"]
[null,null,"Geochronology","Geochronology","Geology","DOI-USGS"]
[null,null,"Geologic mapping","Geologic mapping","Geology","DOI-USGS"]
[null,null,"Geomagnetism","Geomagnetism","Geology","DOI-USGS"]
[null,null,"Geophysics","Geophysics","Geology","DOI-USGS"]
[null,null,"Landslide monitoring, research, and mapping","Landslide monitoring, research, and mapping","Geology","DOI-USGS"]
[null,null,"Marine geology","Marine geology","Geology","DOI-USGS"]
[null,null,"Metallic mineral assessment and mapping","Metallic mineral assessment and mapping","Geology","DOI-USGS"]
[null,null,"MMS Baseline","MMS Baseline","Geology","DOI-MMS"]
[null,null,"Non-metallic mineral assessment and mapping, onshore",{"$f":"IF(C145=0,B144,C145)","v":"Non-metallic mineral assessment and mapping, onshore"},"Geology","DOI-USGS"]
["OCS BLOCK LEASE DATA (OCS)","OCS BLOCK LEASE DATA ","OCS Active Leases",{"$f":"IF(C146=0,B146,C146)","v":"OCS Active Leases"},"Geology","DOI-MMS","James Fulmer","james.s.fulmer@mms.gov",{"$f":"VLOOKUP(B146,'LOC FINAL with new Themes'!A:M,7,0)","v":"undeliverable email- neeed to identify new contact"},{"$f":"VLOOKUP(B146,'LOC FINAL with new Themes'!A:M,8,0)","v":0},{"$f":"VLOOKUP(B146,'LOC FINAL with new Themes'!A:M,9,0)","v":0},{"$f":"VLOOKUP(B146,'LOC FINAL with new Themes'!A:M,10,0)","v":0},{"$f":"VLOOKUP(B146,'LOC FINAL with new Themes'!A:M,11,0)","v":0},{"$f":"VLOOKUP(B146,'LOC FINAL with new Themes'!A:M,12,0)","v":0},{"$f":"VLOOKUP(B146,'LOC FINAL with new Themes'!A:M,13,0)","v":0}]
[null,null,"Oil and gas assessment and mapping, onshore","Oil and gas assessment and mapping, onshore","Geology","DOI-USGS"]
[null,null,"Paleontology","Paleontology","Geology","DOI-USGS"]
[null,null,"Sand and Gravel","Sand and Gravel","Geology","DOI-MMS"]
[null,null,"Volcano monitoring, research, and mapping","Volcano monitoring, research, and mapping","Geology","DOI-USGS"]
[null,null,"Wells","Wells","Geology","DOI-MMS"]
[{"$f":"SUBTOTAL(3,A133:A151)","v":2},{"$f":"SUBTOTAL(3,B133:B151)","v":2},{"$f":"SUBTOTAL(3,C133:C151)","v":19},{"$f":"SUBTOTAL(3,D133:D151)","v":19},"Geology Count"]
["County Boundaries","County Boundaries",null,{"$f":"IF(C153=0,B153,C153)","v":"County Boundaries"},"Governmental Units",null,null,null,{"$f":"VLOOKUP(B153,'LOC FINAL with new Themes'!A:M,7,0)","v":0},{"$f":"VLOOKUP(B153,'LOC FINAL with new Themes'!A:M,8,0)","v":0},{"$f":"VLOOKUP(B153,'LOC FINAL with new Themes'!A:M,9,0)","v":0},{"$f":"VLOOKUP(B153,'LOC FINAL with new Themes'!A:M,10,0)","v":0},{"$f":"VLOOKUP(B153,'LOC FINAL with new Themes'!A:M,11,0)","v":0},{"$f":"VLOOKUP(B153,'LOC FINAL with new Themes'!A:M,12,0)","v":0},{"$f":"VLOOKUP(B153,'LOC FINAL with new Themes'!A:M,13,0)","v":0}]
[null,"Place and MCD Boundaries",null,"Place and MCD Boundaries","Governmental Units",null,null,null,{"$f":"VLOOKUP(B154,'LOC FINAL with new Themes'!A:M,7,0)","v":0},{"$f":"VLOOKUP(B154,'LOC FINAL with new Themes'!A:M,8,0)","v":0},{"$f":"VLOOKUP(B154,'LOC FINAL with new Themes'!A:M,9,0)","v":0},{"$f":"VLOOKUP(B154,'LOC FINAL with new Themes'!A:M,10,0)","v":0},{"$f":"VLOOKUP(B154,'LOC FINAL with new Themes'!A:M,11,0)","v":0},{"$f":"VLOOKUP(B154,'LOC FINAL with new Themes'!A:M,12,0)","v":0},{"$f":"VLOOKUP(B154,'LOC FINAL with new Themes'!A:M,13,0)","v":0}]
[null,"Alaska Native Regional Corporation (2010 Census)","Alaska Native Regional Corporation (2010 Census)","Alaska Native Regional Corporation (2010 Census)","Governmental Units ","DOC-Census","Jennifer Holland","Jennifer.L.Holland@census.gov",{"$f":"VLOOKUP(B155,'LOC FINAL with new Themes'!A:M,7,0)","v":0},{"$f":"VLOOKUP(B155,'LOC FINAL with new Themes'!A:M,8,0)","v":0},{"$f":"VLOOKUP(B155,'LOC FINAL with new Themes'!A:M,9,0)","v":0},{"$f":"VLOOKUP(B155,'LOC FINAL with new Themes'!A:M,10,0)","v":0},{"$f":"VLOOKUP(B155,'LOC FINAL with new Themes'!A:M,11,0)","v":0},{"$f":"VLOOKUP(B155,'LOC FINAL with new Themes'!A:M,12,0)","v":0},{"$f":"VLOOKUP(B155,'LOC FINAL with new Themes'!A:M,13,0)","v":0}]
[null,"Alaska Native Regional Corporation (Census 2000)","Alaska Native Regional Corporation (Census 2000)","Alaska Native Regional Corporation (Census 2000)","Governmental Units ","DOC-Census","Jennifer Holland","Jennifer.L.Holland@census.gov",{"$f":"VLOOKUP(B156,'LOC FINAL with new Themes'!A:M,7,0)","v":0},{"$f":"VLOOKUP(B156,'LOC FINAL with new Themes'!A:M,8,0)","v":0},{"$f":"VLOOKUP(B156,'LOC FINAL with new Themes'!A:M,9,0)","v":0},{"$f":"VLOOKUP(B156,'LOC FINAL with new Themes'!A:M,10,0)","v":0},{"$f":"VLOOKUP(B156,'LOC FINAL with new Themes'!A:M,11,0)","v":0},{"$f":"VLOOKUP(B156,'LOC FINAL with new Themes'!A:M,12,0)","v":0},{"$f":"VLOOKUP(B156,'LOC FINAL with new Themes'!A:M,13,0)","v":0}]
[null,"American Indian Tribal Subdivision (2010 Census)","American Indian Tribal Subdivision (2010 Census)","American Indian Tribal Subdivision (2010 Census)","Governmental Units ","DOC-Census","Jennifer Holland","Jennifer.L.Holland@census.gov",{"$f":"VLOOKUP(B157,'LOC FINAL with new Themes'!A:M,7,0)","v":0},{"$f":"VLOOKUP(B157,'LOC FINAL with new Themes'!A:M,8,0)","v":0},{"$f":"VLOOKUP(B157,'LOC FINAL with new Themes'!A:M,9,0)","v":0},{"$f":"VLOOKUP(B157,'LOC FINAL with new Themes'!A:M,10,0)","v":0},{"$f":"VLOOKUP(B157,'LOC FINAL with new Themes'!A:M,11,0)","v":0},{"$f":"VLOOKUP(B157,'LOC FINAL with new Themes'!A:M,12,0)","v":0},{"$f":"VLOOKUP(B157,'LOC FINAL with new Themes'!A:M,13,0)","v":0}]
[null,"American Indian Tribal Subdivision (Census 2000)","American Indian Tribal Subdivision (Census 2000)","American Indian Tribal Subdivision (Census 2000)","Governmental Units ","DOC-Census","Jennifer Holland","Jennifer.L.Holland@census.gov",{"$f":"VLOOKUP(B158,'LOC FINAL with new Themes'!A:M,7,0)","v":0},{"$f":"VLOOKUP(B158,'LOC FINAL with new Themes'!A:M,8,0)","v":0},{"$f":"VLOOKUP(B158,'LOC FINAL with new Themes'!A:M,9,0)","v":0},{"$f":"VLOOKUP(B158,'LOC FINAL with new Themes'!A:M,10,0)","v":0},{"$f":"VLOOKUP(B158,'LOC FINAL with new Themes'!A:M,11,0)","v":0},{"$f":"VLOOKUP(B158,'LOC FINAL with new Themes'!A:M,12,0)","v":0},{"$f":"VLOOKUP(B158,'LOC FINAL with new Themes'!A:M,13,0)","v":0}]
[null,"American Indian/Alaska Native/Native Hawaiian Area (2000 Census)","American Indian/Alaska Native/Native Hawaiian Area (2000 Census)","American Indian/Alaska Native/Native Hawaiian Area (2000 Census)","Governmental Units ","DOC-Census","Jennifer Holland","Jennifer.L.Holland@census.gov",{"$f":"VLOOKUP(B159,'LOC FINAL with new Themes'!A:M,7,0)","v":0},{"$f":"VLOOKUP(B159,'LOC FINAL with new Themes'!A:M,8,0)","v":0},{"$f":"VLOOKUP(B159,'LOC FINAL with new Themes'!A:M,9,0)","v":0},{"$f":"VLOOKUP(B159,'LOC FINAL with new Themes'!A:M,10,0)","v":0},{"$f":"VLOOKUP(B159,'LOC FINAL with new Themes'!A:M,11,0)","v":0},{"$f":"VLOOKUP(B159,'LOC FINAL with new Themes'!A:M,12,0)","v":0},{"$f":"VLOOKUP(B159,'LOC FINAL with new Themes'!A:M,13,0)","v":0}]
[null,"American Indian/Alaska Native/Native Hawaiian Area (2010 Census)","American Indian/Alaska Native/Native Hawaiian Area (2010 Census)","American Indian/Alaska Native/Native Hawaiian Area (2010 Census)","Governmental Units ","DOC-Census","Jennifer Holland","Jennifer.L.Holland@census.gov",{"$f":"VLOOKUP(B160,'LOC FINAL with new Themes'!A:M,7,0)","v":0},{"$f":"VLOOKUP(B160,'LOC FINAL with new Themes'!A:M,8,0)","v":0},{"$f":"VLOOKUP(B160,'LOC FINAL with new Themes'!A:M,9,0)","v":0},{"$f":"VLOOKUP(B160,'LOC FINAL with new Themes'!A:M,10,0)","v":0},{"$f":"VLOOKUP(B160,'LOC FINAL with new Themes'!A:M,11,0)","v":0},{"$f":"VLOOKUP(B160,'LOC FINAL with new Themes'!A:M,12,0)","v":0},{"$f":"VLOOKUP(B160,'LOC FINAL with new Themes'!A:M,13,0)","v":0}]
[null,"Combined New England City and Town Area (2010 Census)","Combined New England City and Town Area (2010 Census)","Combined New England City and Town Area (2010 Census)","Governmental Units ","DOC-Census","Jennifer Holland","Jennifer.L.Holland@census.gov",{"$f":"VLOOKUP(B161,'LOC FINAL with new Themes'!A:M,7,0)","v":0},{"$f":"VLOOKUP(B161,'LOC FINAL with new Themes'!A:M,8,0)","v":0},{"$f":"VLOOKUP(B161,'LOC FINAL with new Themes'!A:M,9,0)","v":0},{"$f":"VLOOKUP(B161,'LOC FINAL with new Themes'!A:M,10,0)","v":0},{"$f":"VLOOKUP(B161,'LOC FINAL with new Themes'!A:M,11,0)","v":0},{"$f":"VLOOKUP(B161,'LOC FINAL with new Themes'!A:M,12,0)","v":0},{"$f":"VLOOKUP(B161,'LOC FINAL with new Themes'!A:M,13,0)","v":0}]
["Congressional District Boundaries","Congressional District (108th)","Congressional District (108th)","Congressional District (108th)","Governmental Units ","DOC-Census","Jennifer Holland","Jennifer.L.Holland@census.gov",{"$f":"VLOOKUP(B162,'LOC FINAL with new Themes'!A:M,7,0)","v":0},{"$f":"VLOOKUP(B162,'LOC FINAL with new Themes'!A:M,8,0)","v":0},{"$f":"VLOOKUP(B162,'LOC FINAL with new Themes'!A:M,9,0)","v":0},{"$f":"VLOOKUP(B162,'LOC FINAL with new Themes'!A:M,10,0)","v":0},{"$f":"VLOOKUP(B162,'LOC FINAL with new Themes'!A:M,11,0)","v":0},{"$f":"VLOOKUP(B162,'LOC FINAL with new Themes'!A:M,12,0)","v":0},{"$f":"VLOOKUP(B162,'LOC FINAL with new Themes'!A:M,13,0)","v":0}]
[null,"Congressional District (111th)","Congressional District (111th)","Congressional District (111th)","Governmental Units ","DOC-Census","Jennifer Holland","Jennifer.L.Holland@census.gov",{"$f":"VLOOKUP(B163,'LOC FINAL with new Themes'!A:M,7,0)","v":0},{"$f":"VLOOKUP(B163,'LOC FINAL with new Themes'!A:M,8,0)","v":0},{"$f":"VLOOKUP(B163,'LOC FINAL with new Themes'!A:M,9,0)","v":0},{"$f":"VLOOKUP(B163,'LOC FINAL with new Themes'!A:M,10,0)","v":0},{"$f":"VLOOKUP(B163,'LOC FINAL with new Themes'!A:M,11,0)","v":0},{"$f":"VLOOKUP(B163,'LOC FINAL with new Themes'!A:M,12,0)","v":0},{"$f":"VLOOKUP(B163,'LOC FINAL with new Themes'!A:M,13,0)","v":0}]
[null,"Consolidated City (2010 Census)","Consolidated City (2010 Census)","Consolidated City (2010 Census)","Governmental Units ","DOC-Census","Jennifer Holland","Jennifer.L.Holland@census.gov",{"$f":"VLOOKUP(B164,'LOC FINAL with new Themes'!A:M,7,0)","v":0},{"$f":"VLOOKUP(B164,'LOC FINAL with new Themes'!A:M,8,0)","v":0},{"$f":"VLOOKUP(B164,'LOC FINAL with new Themes'!A:M,9,0)","v":0},{"$f":"VLOOKUP(B164,'LOC FINAL with new Themes'!A:M,10,0)","v":0},{"$f":"VLOOKUP(B164,'LOC FINAL with new Themes'!A:M,11,0)","v":0},{"$f":"VLOOKUP(B164,'LOC FINAL with new Themes'!A:M,12,0)","v":0},{"$f":"VLOOKUP(B164,'LOC FINAL with new Themes'!A:M,13,0)","v":0}]
[null,"Consolidated City (Census 2000)","Consolidated City (Census 2000)","Consolidated City (Census 2000)","Governmental Units ","DOC-Census","Jennifer Holland","Jennifer.L.Holland@census.gov",{"$f":"VLOOKUP(B165,'LOC FINAL with new Themes'!A:M,7,0)","v":0},{"$f":"VLOOKUP(B165,'LOC FINAL with new Themes'!A:M,8,0)","v":0},{"$f":"VLOOKUP(B165,'LOC FINAL with new Themes'!A:M,9,0)","v":0},{"$f":"VLOOKUP(B165,'LOC FINAL with new Themes'!A:M,10,0)","v":0},{"$f":"VLOOKUP(B165,'LOC FINAL with new Themes'!A:M,11,0)","v":0},{"$f":"VLOOKUP(B165,'LOC FINAL with new Themes'!A:M,12,0)","v":0},{"$f":"VLOOKUP(B165,'LOC FINAL with new Themes'!A:M,13,0)","v":0}]
[null,"County and Equivalent (2010 Census)","County and Equivalent (2010 Census)","County and Equivalent (2010 Census)","Governmental Units ","DOC-Census","Jennifer Holland","Jennifer.L.Holland@census.gov",{"$f":"VLOOKUP(B166,'LOC FINAL with new Themes'!A:M,7,0)","v":0},{"$f":"VLOOKUP(B166,'LOC FINAL with new Themes'!A:M,8,0)","v":0},{"$f":"VLOOKUP(B166,'LOC FINAL with new Themes'!A:M,9,0)","v":0},{"$f":"VLOOKUP(B166,'LOC FINAL with new Themes'!A:M,10,0)","v":0},{"$f":"VLOOKUP(B166,'LOC FINAL with new Themes'!A:M,11,0)","v":0},{"$f":"VLOOKUP(B166,'LOC FINAL with new Themes'!A:M,12,0)","v":0},{"$f":"VLOOKUP(B166,'LOC FINAL with new Themes'!A:M,13,0)","v":0}]
[null,"County and Equivalent (Census 2000)","County and Equivalent (Census 2000)","County and Equivalent (Census 2000)","Governmental Units ","DOC-Census","Jennifer Holland","Jennifer.L.Holland@census.gov",{"$f":"VLOOKUP(B167,'LOC FINAL with new Themes'!A:M,7,0)","v":0},{"$f":"VLOOKUP(B167,'LOC FINAL with new Themes'!A:M,8,0)","v":0},{"$f":"VLOOKUP(B167,'LOC FINAL with new Themes'!A:M,9,0)","v":0},{"$f":"VLOOKUP(B167,'LOC FINAL with new Themes'!A:M,10,0)","v":0},{"$f":"VLOOKUP(B167,'LOC FINAL with new Themes'!A:M,11,0)","v":0},{"$f":"VLOOKUP(B167,'LOC FINAL with new Themes'!A:M,12,0)","v":0},{"$f":"VLOOKUP(B167,'LOC FINAL with new Themes'!A:M,13,0)","v":0}]
[null,"County Subdivision (2010 Census)","County Subdivision (2010 Census)","County Subdivision (2010 Census)","Governmental Units ","DOC-Census","Jennifer Holland","Jennifer.L.Holland@census.gov",{"$f":"VLOOKUP(B168,'LOC FINAL with new Themes'!A:M,7,0)","v":0},{"$f":"VLOOKUP(B168,'LOC FINAL with new Themes'!A:M,8,0)","v":0},{"$f":"VLOOKUP(B168,'LOC FINAL with new Themes'!A:M,9,0)","v":0},{"$f":"VLOOKUP(B168,'LOC FINAL with new Themes'!A:M,10,0)","v":0},{"$f":"VLOOKUP(B168,'LOC FINAL with new Themes'!A:M,11,0)","v":0},{"$f":"VLOOKUP(B168,'LOC FINAL with new Themes'!A:M,12,0)","v":0},{"$f":"VLOOKUP(B168,'LOC FINAL with new Themes'!A:M,13,0)","v":0}]
[null,"County Subdivision (Census 2000)","County Subdivision (Census 2000)","County Subdivision (Census 2000)","Governmental Units ","DOC-Census","Jennifer Holland","Jennifer.L.Holland@census.gov",{"$f":"VLOOKUP(B169,'LOC FINAL with new Themes'!A:M,7,0)","v":0},{"$f":"VLOOKUP(B169,'LOC FINAL with new Themes'!A:M,8,0)","v":0},{"$f":"VLOOKUP(B169,'LOC FINAL with new Themes'!A:M,9,0)","v":0},{"$f":"VLOOKUP(B169,'LOC FINAL with new Themes'!A:M,10,0)","v":0},{"$f":"VLOOKUP(B169,'LOC FINAL with new Themes'!A:M,11,0)","v":0},{"$f":"VLOOKUP(B169,'LOC FINAL with new Themes'!A:M,12,0)","v":0},{"$f":"VLOOKUP(B169,'LOC FINAL with new Themes'!A:M,13,0)","v":0}]
["Estuarine and Marine Reserves","Estuarine and Marine Reserves",null,"Estuarine and Marine Reserves","Governmental Units ","DOC-NOAA","Heather Sagar","Heather.Sagar@noaa.gov",{"$f":"VLOOKUP(B170,'LOC FINAL with new Themes'!A:M,7,0)","v":0},{"$f":"VLOOKUP(B170,'LOC FINAL with new Themes'!A:M,8,0)","v":0},{"$f":"VLOOKUP(B170,'LOC FINAL with new Themes'!A:M,9,0)","v":0},{"$f":"VLOOKUP(B170,'LOC FINAL with new Themes'!A:M,10,0)","v":0},{"$f":"VLOOKUP(B170,'LOC FINAL with new Themes'!A:M,11,0)","v":0},{"$f":"VLOOKUP(B170,'LOC FINAL with new Themes'!A:M,12,0)","v":0},{"$f":"VLOOKUP(B170,'LOC FINAL with new Themes'!A:M,13,0)","v":0}]
["Fisheries Closure and Habitat Areas","Fisheries Closure and Habitat Areas",null,"Fisheries Closure and Habitat Areas","Governmental Units ","DOC-NOAA","Heather Sagar","Heather.Sagar@noaa.gov",{"$f":"VLOOKUP(B171,'LOC FINAL with new Themes'!A:M,7,0)","v":0},{"$f":"VLOOKUP(B171,'LOC FINAL with new Themes'!A:M,8,0)","v":0},{"$f":"VLOOKUP(B171,'LOC FINAL with new Themes'!A:M,9,0)","v":0},{"$f":"VLOOKUP(B171,'LOC FINAL with new Themes'!A:M,10,0)","v":0},{"$f":"VLOOKUP(B171,'LOC FINAL with new Themes'!A:M,11,0)","v":0},{"$f":"VLOOKUP(B171,'LOC FINAL with new Themes'!A:M,12,0)","v":0},{"$f":"VLOOKUP(B171,'LOC FINAL with new Themes'!A:M,13,0)","v":0}]
[null,"Metropolitan Division (2010 Census)","Metropolitan Division (2010 Census)","Metropolitan Division (2010 Census)","Governmental Units ","DOC-Census","Jennifer Holland","Jennifer.L.Holland@census.gov",{"$f":"VLOOKUP(B172,'LOC FINAL with new Themes'!A:M,7,0)","v":0},{"$f":"VLOOKUP(B172,'LOC FINAL with new Themes'!A:M,8,0)","v":0},{"$f":"VLOOKUP(B172,'LOC FINAL with new Themes'!A:M,9,0)","v":0},{"$f":"VLOOKUP(B172,'LOC FINAL with new Themes'!A:M,10,0)","v":0},{"$f":"VLOOKUP(B172,'LOC FINAL with new Themes'!A:M,11,0)","v":0},{"$f":"VLOOKUP(B172,'LOC FINAL with new Themes'!A:M,12,0)","v":0},{"$f":"VLOOKUP(B172,'LOC FINAL with new Themes'!A:M,13,0)","v":0}]
[null,"Metropolitan Division (2010 Census)","Metropolitan Division (2010 Census)","Metropolitan Division (2010 Census)","Governmental Units ","DOC-Census","Jennifer Holland","Jennifer.L.Holland@census.gov",{"$f":"VLOOKUP(B173,'LOC FINAL with new Themes'!A:M,7,0)","v":0},{"$f":"VLOOKUP(B173,'LOC FINAL with new Themes'!A:M,8,0)","v":0},{"$f":"VLOOKUP(B173,'LOC FINAL with new Themes'!A:M,9,0)","v":0},{"$f":"VLOOKUP(B173,'LOC FINAL with new Themes'!A:M,10,0)","v":0},{"$f":"VLOOKUP(B173,'LOC FINAL with new Themes'!A:M,11,0)","v":0},{"$f":"VLOOKUP(B173,'LOC FINAL with new Themes'!A:M,12,0)","v":0},{"$f":"VLOOKUP(B173,'LOC FINAL with new Themes'!A:M,13,0)","v":0}]
[null,"New England City and Town Area (2010 Census)","New England City and Town Area (2010 Census)","New England City and Town Area (2010 Census)","Governmental Units ","DOC-Census","Jennifer Holland","Jennifer.L.Holland@census.gov",{"$f":"VLOOKUP(B174,'LOC FINAL with new Themes'!A:M,7,0)","v":0},{"$f":"VLOOKUP(B174,'LOC FINAL with new Themes'!A:M,8,0)","v":0},{"$f":"VLOOKUP(B174,'LOC FINAL with new Themes'!A:M,9,0)","v":0},{"$f":"VLOOKUP(B174,'LOC FINAL with new Themes'!A:M,10,0)","v":0},{"$f":"VLOOKUP(B174,'LOC FINAL with new Themes'!A:M,11,0)","v":0},{"$f":"VLOOKUP(B174,'LOC FINAL with new Themes'!A:M,12,0)","v":0},{"$f":"VLOOKUP(B174,'LOC FINAL with new Themes'!A:M,13,0)","v":0}]
[null,"New England City and Town Area Division (2010 Census)","New England City and Town Area Division (2010 Census)","New England City and Town Area Division (2010 Census)","Governmental Units ","DOC-Census","Jennifer Holland","Jennifer.L.Holland@census.gov",{"$f":"VLOOKUP(B175,'LOC FINAL with new Themes'!A:M,7,0)","v":0},{"$f":"VLOOKUP(B175,'LOC FINAL with new Themes'!A:M,8,0)","v":0},{"$f":"VLOOKUP(B175,'LOC FINAL with new Themes'!A:M,9,0)","v":0},{"$f":"VLOOKUP(B175,'LOC FINAL with new Themes'!A:M,10,0)","v":0},{"$f":"VLOOKUP(B175,'LOC FINAL with new Themes'!A:M,11,0)","v":0},{"$f":"VLOOKUP(B175,'LOC FINAL with new Themes'!A:M,12,0)","v":0},{"$f":"VLOOKUP(B175,'LOC FINAL with new Themes'!A:M,13,0)","v":0}]
["Place and MCD Boundaries","Place (2010 Census)","Place (2010 Census)","Place (2010 Census)","Governmental Units ","DOC-Census","Jennifer Holland","Jennifer.L.Holland@census.gov",{"$f":"VLOOKUP(B176,'LOC FINAL with new Themes'!A:M,7,0)","v":0},{"$f":"VLOOKUP(B176,'LOC FINAL with new Themes'!A:M,8,0)","v":0},{"$f":"VLOOKUP(B176,'LOC FINAL with new Themes'!A:M,9,0)","v":0},{"$f":"VLOOKUP(B176,'LOC FINAL with new Themes'!A:M,10,0)","v":0},{"$f":"VLOOKUP(B176,'LOC FINAL with new Themes'!A:M,11,0)","v":0},{"$f":"VLOOKUP(B176,'LOC FINAL with new Themes'!A:M,12,0)","v":0},{"$f":"VLOOKUP(B176,'LOC FINAL with new Themes'!A:M,13,0)","v":0}]
[null,"Place (Census 2000)","Place (Census 2000)","Place (Census 2000)","Governmental Units ","DOC-Census","Jennifer Holland","Jennifer.L.Holland@census.gov",{"$f":"VLOOKUP(B177,'LOC FINAL with new Themes'!A:M,7,0)","v":0},{"$f":"VLOOKUP(B177,'LOC FINAL with new Themes'!A:M,8,0)","v":0},{"$f":"VLOOKUP(B177,'LOC FINAL with new Themes'!A:M,9,0)","v":0},{"$f":"VLOOKUP(B177,'LOC FINAL with new Themes'!A:M,10,0)","v":0},{"$f":"VLOOKUP(B177,'LOC FINAL with new Themes'!A:M,11,0)","v":0},{"$f":"VLOOKUP(B177,'LOC FINAL with new Themes'!A:M,12,0)","v":0},{"$f":"VLOOKUP(B177,'LOC FINAL with new Themes'!A:M,13,0)","v":0}]
["Sanctuaries","Sanctuaries",null,"Sanctuaries","Governmental Units ","DOC-NOAA","Christine Taylor","Christine.Taylor@noaa.gov",{"$f":"VLOOKUP(B178,'LOC FINAL with new Themes'!A:M,7,0)","v":0},{"$f":"VLOOKUP(B178,'LOC FINAL with new Themes'!A:M,8,0)","v":0},{"$f":"VLOOKUP(B178,'LOC FINAL with new Themes'!A:M,9,0)","v":0},{"$f":"VLOOKUP(B178,'LOC FINAL with new Themes'!A:M,10,0)","v":0},{"$f":"VLOOKUP(B178,'LOC FINAL with new Themes'!A:M,11,0)","v":0},{"$f":"VLOOKUP(B178,'LOC FINAL with new Themes'!A:M,12,0)","v":0},{"$f":"VLOOKUP(B178,'LOC FINAL with new Themes'!A:M,13,0)","v":0}]
["State(+ Territories) Boundaries","State and Equivalent  (2010 Census)","State and Equivalent  (2010 Census)","State and Equivalent  (2010 Census)","Governmental Units ","DOC-Census","Jennifer Holland","Jennifer.L.Holland@census.gov",{"$f":"VLOOKUP(B179,'LOC FINAL with new Themes'!A:M,7,0)","v":0},{"$f":"VLOOKUP(B179,'LOC FINAL with new Themes'!A:M,8,0)","v":0},{"$f":"VLOOKUP(B179,'LOC FINAL with new Themes'!A:M,9,0)","v":0},{"$f":"VLOOKUP(B179,'LOC FINAL with new Themes'!A:M,10,0)","v":0},{"$f":"VLOOKUP(B179,'LOC FINAL with new Themes'!A:M,11,0)","v":0},{"$f":"VLOOKUP(B179,'LOC FINAL with new Themes'!A:M,12,0)","v":0},{"$f":"VLOOKUP(B179,'LOC FINAL with new Themes'!A:M,13,0)","v":0}]
[null,"State and Equivalent  (Census 2000)","State and Equivalent  (Census 2000)","State and Equivalent  (Census 2000)","Governmental Units ","DOC-Census","Jennifer Holland","Jennifer.L.Holland@census.gov",{"$f":"VLOOKUP(B180,'LOC FINAL with new Themes'!A:M,7,0)","v":0},{"$f":"VLOOKUP(B180,'LOC FINAL with new Themes'!A:M,8,0)","v":0},{"$f":"VLOOKUP(B180,'LOC FINAL with new Themes'!A:M,9,0)","v":0},{"$f":"VLOOKUP(B180,'LOC FINAL with new Themes'!A:M,10,0)","v":0},{"$f":"VLOOKUP(B180,'LOC FINAL with new Themes'!A:M,11,0)","v":0},{"$f":"VLOOKUP(B180,'LOC FINAL with new Themes'!A:M,12,0)","v":0},{"$f":"VLOOKUP(B180,'LOC FINAL with new Themes'!A:M,13,0)","v":0}]
[null,"State Legislative District (Lower Chamber) (2010 Census)","State Legislative District (Lower Chamber) (2010 Census)","State Legislative District (Lower Chamber) (2010 Census)","Governmental Units ","DOC-Census","Jennifer Holland","Jennifer.L.Holland@census.gov",{"$f":"VLOOKUP(B181,'LOC FINAL with new Themes'!A:M,7,0)","v":0},{"$f":"VLOOKUP(B181,'LOC FINAL with new Themes'!A:M,8,0)","v":0},{"$f":"VLOOKUP(B181,'LOC FINAL with new Themes'!A:M,9,0)","v":0},{"$f":"VLOOKUP(B181,'LOC FINAL with new Themes'!A:M,10,0)","v":0},{"$f":"VLOOKUP(B181,'LOC FINAL with new Themes'!A:M,11,0)","v":0},{"$f":"VLOOKUP(B181,'LOC FINAL with new Themes'!A:M,12,0)","v":0},{"$f":"VLOOKUP(B181,'LOC FINAL with new Themes'!A:M,13,0)","v":0}]
[null,"State Legislative District (Lower Chamber) (Census 2000)","State Legislative District (Lower Chamber) (Census 2000)","State Legislative District (Lower Chamber) (Census 2000)","Governmental Units ","DOC-Census","Jennifer Holland","Jennifer.L.Holland@census.gov",{"$f":"VLOOKUP(B182,'LOC FINAL with new Themes'!A:M,7,0)","v":0},{"$f":"VLOOKUP(B182,'LOC FINAL with new Themes'!A:M,8,0)","v":0},{"$f":"VLOOKUP(B182,'LOC FINAL with new Themes'!A:M,9,0)","v":0},{"$f":"VLOOKUP(B182,'LOC FINAL with new Themes'!A:M,10,0)","v":0},{"$f":"VLOOKUP(B182,'LOC FINAL with new Themes'!A:M,11,0)","v":0},{"$f":"VLOOKUP(B182,'LOC FINAL with new Themes'!A:M,12,0)","v":0},{"$f":"VLOOKUP(B182,'LOC FINAL with new Themes'!A:M,13,0)","v":0}]
[null,"State Legislative District (Upper Chamber) (2010 Census)","State Legislative District (Upper Chamber) (2010 Census)","State Legislative District (Upper Chamber) (2010 Census)","Governmental Units ","DOC-Census","Jennifer Holland","Jennifer.L.Holland@census.gov",{"$f":"VLOOKUP(B183,'LOC FINAL with new Themes'!A:M,7,0)","v":0},{"$f":"VLOOKUP(B183,'LOC FINAL with new Themes'!A:M,8,0)","v":0},{"$f":"VLOOKUP(B183,'LOC FINAL with new Themes'!A:M,9,0)","v":0},{"$f":"VLOOKUP(B183,'LOC FINAL with new Themes'!A:M,10,0)","v":0},{"$f":"VLOOKUP(B183,'LOC FINAL with new Themes'!A:M,11,0)","v":0},{"$f":"VLOOKUP(B183,'LOC FINAL with new Themes'!A:M,12,0)","v":0},{"$f":"VLOOKUP(B183,'LOC FINAL with new Themes'!A:M,13,0)","v":0}]
[null,"State Legislative District (Upper Chamber) (Census 2000)","State Legislative District (Upper Chamber) (Census 2000)","State Legislative District (Upper Chamber) (Census 2000)","Governmental Units ","DOC-Census","Jennifer Holland","Jennifer.L.Holland@census.gov",{"$f":"VLOOKUP(B184,'LOC FINAL with new Themes'!A:M,7,0)","v":0},{"$f":"VLOOKUP(B184,'LOC FINAL with new Themes'!A:M,8,0)","v":0},{"$f":"VLOOKUP(B184,'LOC FINAL with new Themes'!A:M,9,0)","v":0},{"$f":"VLOOKUP(B184,'LOC FINAL with new Themes'!A:M,10,0)","v":0},{"$f":"VLOOKUP(B184,'LOC FINAL with new Themes'!A:M,11,0)","v":0},{"$f":"VLOOKUP(B184,'LOC FINAL with new Themes'!A:M,12,0)","v":0},{"$f":"VLOOKUP(B184,'LOC FINAL with new Themes'!A:M,13,0)","v":0}]
[null,"Subbarrio (2010 Census)","Subbarrio (2010 Census)","Subbarrio (2010 Census)","Governmental Units ","DOC-Census","Jennifer Holland","Jennifer.L.Holland@census.gov",{"$f":"VLOOKUP(B185,'LOC FINAL with new Themes'!A:M,7,0)","v":0},{"$f":"VLOOKUP(B185,'LOC FINAL with new Themes'!A:M,8,0)","v":0},{"$f":"VLOOKUP(B185,'LOC FINAL with new Themes'!A:M,9,0)","v":0},{"$f":"VLOOKUP(B185,'LOC FINAL with new Themes'!A:M,10,0)","v":0},{"$f":"VLOOKUP(B185,'LOC FINAL with new Themes'!A:M,11,0)","v":0},{"$f":"VLOOKUP(B185,'LOC FINAL with new Themes'!A:M,12,0)","v":0},{"$f":"VLOOKUP(B185,'LOC FINAL with new Themes'!A:M,13,0)","v":0}]
[null,"Subbarrio (Census 2000)","Subbarrio (Census 2000)","Subbarrio (Census 2000)","Governmental Units ","DOC-Census","Jennifer Holland","Jennifer.L.Holland@census.gov",{"$f":"VLOOKUP(B186,'LOC FINAL with new Themes'!A:M,7,0)","v":0},{"$f":"VLOOKUP(B186,'LOC FINAL with new Themes'!A:M,8,0)","v":0},{"$f":"VLOOKUP(B186,'LOC FINAL with new Themes'!A:M,9,0)","v":0},{"$f":"VLOOKUP(B186,'LOC FINAL with new Themes'!A:M,10,0)","v":0},{"$f":"VLOOKUP(B186,'LOC FINAL with new Themes'!A:M,11,0)","v":0},{"$f":"VLOOKUP(B186,'LOC FINAL with new Themes'!A:M,12,0)","v":0},{"$f":"VLOOKUP(B186,'LOC FINAL with new Themes'!A:M,13,0)","v":0}]
[null,"Urban Area (Corrected Census 2000)","Urban Area (Corrected Census 2000)","Urban Area (Corrected Census 2000)","Governmental Units ","DOC-Census","Jennifer Holland","Jennifer.L.Holland@census.gov",{"$f":"VLOOKUP(B187,'LOC FINAL with new Themes'!A:M,7,0)","v":0},{"$f":"VLOOKUP(B187,'LOC FINAL with new Themes'!A:M,8,0)","v":0},{"$f":"VLOOKUP(B187,'LOC FINAL with new Themes'!A:M,9,0)","v":0},{"$f":"VLOOKUP(B187,'LOC FINAL with new Themes'!A:M,10,0)","v":0},{"$f":"VLOOKUP(B187,'LOC FINAL with new Themes'!A:M,11,0)","v":0},{"$f":"VLOOKUP(B187,'LOC FINAL with new Themes'!A:M,12,0)","v":0},{"$f":"VLOOKUP(B187,'LOC FINAL with new Themes'!A:M,13,0)","v":0}]
[{"$f":"SUBTOTAL(3,A153:A187)","v":7},{"$f":"SUBTOTAL(3,B153:B187)","v":35},{"$f":"SUBTOTAL(3,C153:C187)","v":30},{"$f":"SUBTOTAL(3,D153:D187)","v":35},"Governmental Units Count"]
["133 Urban Areas imagery program data","133 Urban Areas imagery program data",null,{"$f":"IF(C189=0,B189,C189)","v":"133 Urban Areas imagery program data"},"Imagery ","DOD-NGA","William Nellist","William.E.Nellist@nga.mil",{"$f":"VLOOKUP(B189,'LOC FINAL with new Themes'!A:M,7,0)","v":0},{"$f":"VLOOKUP(B189,'LOC FINAL with new Themes'!A:M,8,0)","v":0},{"$f":"VLOOKUP(B189,'LOC FINAL with new Themes'!A:M,9,0)","v":0},{"$f":"VLOOKUP(B189,'LOC FINAL with new Themes'!A:M,10,0)","v":0},{"$f":"VLOOKUP(B189,'LOC FINAL with new Themes'!A:M,11,0)","v":0},{"$f":"VLOOKUP(B189,'LOC FINAL with new Themes'!A:M,12,0)","v":0},{"$f":"VLOOKUP(B189,'LOC FINAL with new Themes'!A:M,13,0)","v":0}]
[null,"134 Urban Areas imagery program data",null,"134 Urban Areas imagery program data","Imagery ","DOI-USGS","George Lee","gylee@usgs.gov",{"$f":"VLOOKUP(B190,'LOC FINAL with new Themes'!A:M,7,0)","v":0},{"$f":"VLOOKUP(B190,'LOC FINAL with new Themes'!A:M,8,0)","v":0},{"$f":"VLOOKUP(B190,'LOC FINAL with new Themes'!A:M,9,0)","v":0},{"$f":"VLOOKUP(B190,'LOC FINAL with new Themes'!A:M,10,0)","v":0},{"$f":"VLOOKUP(B190,'LOC FINAL with new Themes'!A:M,11,0)","v":0},{"$f":"VLOOKUP(B190,'LOC FINAL with new Themes'!A:M,12,0)","v":0},{"$f":"VLOOKUP(B190,'LOC FINAL with new Themes'!A:M,13,0)","v":0}]
["ADS40 Hurricane Response 7.5' Quadrangle Mosaics","ADS40 Hurricane Response 7.5' Quadrangle Mosaics",null,"ADS40 Hurricane Response 7.5' Quadrangle Mosaics","Imagery ","DOI-USGS","Jim Mauck","jmauck@usgs.gov",{"$f":"VLOOKUP(B191,'LOC FINAL with new Themes'!A:M,7,0)","v":0},{"$f":"VLOOKUP(B191,'LOC FINAL with new Themes'!A:M,8,0)","v":0},{"$f":"VLOOKUP(B191,'LOC FINAL with new Themes'!A:M,9,0)","v":0},{"$f":"VLOOKUP(B191,'LOC FINAL with new Themes'!A:M,10,0)","v":0},{"$f":"VLOOKUP(B191,'LOC FINAL with new Themes'!A:M,11,0)","v":0},{"$f":"VLOOKUP(B191,'LOC FINAL with new Themes'!A:M,12,0)","v":0},{"$f":"VLOOKUP(B191,'LOC FINAL with new Themes'!A:M,13,0)","v":0}]
["Digital Orthoimage Quarter Quadrangle (DOQQ) Archive","Digital Orthoimage Quarter Quadrangle (DOQQ) Archive",null,"Digital Orthoimage Quarter Quadrangle (DOQQ) Archive","Imagery ","DOI-USGS",null,null,{"$f":"VLOOKUP(B192,'LOC FINAL with new Themes'!A:M,7,0)","v":"DOQQ is static; one data set; this is the POC and data manager. this is the name and maintain three complete with two physically separate on-site and one off-site"},{"$f":"VLOOKUP(B192,'LOC FINAL with new Themes'!A:M,8,0)","v":0},{"$f":"VLOOKUP(B192,'LOC FINAL with new Themes'!A:M,9,0)","v":0},{"$f":"VLOOKUP(B192,'LOC FINAL with new Themes'!A:M,10,0)","v":0},{"$f":"VLOOKUP(B192,'LOC FINAL with new Themes'!A:M,11,0)","v":0},{"$f":"VLOOKUP(B192,'LOC FINAL with new Themes'!A:M,12,0)","v":0},{"$f":"VLOOKUP(B192,'LOC FINAL with new Themes'!A:M,13,0)","v":"S"}]
["Emergency Response Imagery","Emergency Response Imagery","Emergency Response Imagery","Emergency Response Imagery","Imagery ","DOC-NOAA","Mike Aslaksen","mike.Aslaksen@noaa.gov",{"$f":"VLOOKUP(B193,'LOC FINAL with new Themes'!A:M,7,0)","v":"20-Multiple      "},{"$f":"VLOOKUP(B193,'LOC FINAL with new Themes'!A:M,8,0)","v":"No"},{"$f":"VLOOKUP(B193,'LOC FINAL with new Themes'!A:M,9,0)","v":"Yes - email reply from Jon Sellars Jon.Sellars@noaa.gov"},{"$f":"VLOOKUP(B193,'LOC FINAL with new Themes'!A:M,10,0)","v":"- Same for the forest frag."},{"$f":"VLOOKUP(B193,'LOC FINAL with new Themes'!A:M,11,0)","v":"Our data can be accessed through the following links: http://storms.ngs.noaagov/eri_page/index.html Gulf Oil Spill:\nhttp://hdds.usgs.gov/hdds2/pub/data/disaster/201004_Oilspill_GulfOfMexico/data/AERIAL_NOAA\nhttp://hdds.usgs.gov/hdds2/pub/data/disaster/201004_Oilspill_GulfOfMexico/data/AERIAL_NOAA_MOSAIC  Haiti Earthquake:\nhttp://hdds.usgs.gov/hdds2/pub/data/disaster/201001_Earthquake_Haiti/data/AERIAL_NOAA\nhttp://hdds.usgs.gov/hdds2/pub/data/disaster/201001_Earthquake_Haiti/data/AERIAL_NOAA_ORTHO\nMexico Earthquake:\nhttp://hdds.usgs.gov/hdds2/pub/data/disaster/201004_Earthquake_Mexico/data/AERIAL_NOAA_MOSAIC \n\n"},{"$f":"VLOOKUP(B193,'LOC FINAL with new Themes'!A:M,12,0)","v":"Described by storm name, event or location."},{"$f":"VLOOKUP(B193,'LOC FINAL with new Themes'!A:M,13,0)","v":"M "}]
[null,null,"Fire, Detection: AVHRR FIMMA , GOES WF-ABBA","Fire, Detection: AVHRR FIMMA , GOES WF-ABBA","Imagery ","USDA"]
["Landsat geometric/terrain corrected level 1T","Landsat geometric/terrain corrected level 1T","Landsat Terrain Corrected Scenes","Landsat Terrain Corrected Scenes","Imagery ","DOI-USGS","Kristi Kline","kkline@usgs.gov",{"$f":"VLOOKUP(B195,'LOC FINAL with new Themes'!A:M,7,0)","v":"Landsat updates daily; a series of data sets; this is the POC and data manager; this is the name and maintain three complete with two physically separate on-site and one off-site"},{"$f":"VLOOKUP(B195,'LOC FINAL with new Themes'!A:M,8,0)","v":0},{"$f":"VLOOKUP(B195,'LOC FINAL with new Themes'!A:M,9,0)","v":0},{"$f":"VLOOKUP(B195,'LOC FINAL with new Themes'!A:M,10,0)","v":0},{"$f":"VLOOKUP(B195,'LOC FINAL with new Themes'!A:M,11,0)","v":0},{"$f":"VLOOKUP(B195,'LOC FINAL with new Themes'!A:M,12,0)","v":0},{"$f":"VLOOKUP(B195,'LOC FINAL with new Themes'!A:M,13,0)","v":"S"}]
[null,null,"National  Orthoimagery Dataset - National Map","National  Orthoimagery Dataset - National Map","Imagery ","DOI-USGS"]
["National Aerial Photography Program (NAPP) Data Archive","National Aerial Photography Program (NAPP) Data Archive",null,"National Aerial Photography Program (NAPP) Data Archive","Imagery ","DOI-USGS","Wayne Miller","wamiller@usgs.gov",{"$f":"VLOOKUP(B197,'LOC FINAL with new Themes'!A:M,7,0)","v":"NAPP is static; one data set; this is the POC and data manager; this is the name and maintain three complete with two physically separate on-site and one off-site "},{"$f":"VLOOKUP(B197,'LOC FINAL with new Themes'!A:M,8,0)","v":0},{"$f":"VLOOKUP(B197,'LOC FINAL with new Themes'!A:M,9,0)","v":0},{"$f":"VLOOKUP(B197,'LOC FINAL with new Themes'!A:M,10,0)","v":0},{"$f":"VLOOKUP(B197,'LOC FINAL with new Themes'!A:M,11,0)","v":0},{"$f":"VLOOKUP(B197,'LOC FINAL with new Themes'!A:M,12,0)","v":0},{"$f":"VLOOKUP(B197,'LOC FINAL with new Themes'!A:M,13,0)","v":"S"}]
["National Agriculture Imagery Program Data","National Agriculture Imagery Program Data","National Agriculture Imagery Program (NAIP) Archive","National Agriculture Imagery Program (NAIP) Archive","Imagery ","DOI-USGS","Shirley Hall","shirley.hall@wdc.usda.gov",{"$f":"VLOOKUP(B198,'LOC FINAL with new Themes'!A:M,7,0)","v":"Shirley identified Dan Good as new contact 'daniel.good@wdc.usda.gov' - need to follow up with either or both"},{"$f":"VLOOKUP(B198,'LOC FINAL with new Themes'!A:M,8,0)","v":0},{"$f":"VLOOKUP(B198,'LOC FINAL with new Themes'!A:M,9,0)","v":0},{"$f":"VLOOKUP(B198,'LOC FINAL with new Themes'!A:M,10,0)","v":0},{"$f":"VLOOKUP(B198,'LOC FINAL with new Themes'!A:M,11,0)","v":0},{"$f":"VLOOKUP(B198,'LOC FINAL with new Themes'!A:M,12,0)","v":0},{"$f":"VLOOKUP(B198,'LOC FINAL with new Themes'!A:M,13,0)","v":0}]
["National Map Orthoimagery Database (TNM Seamless Server) ","National Map Orthoimagery Database (TNM Seamless Server) ",null,"National Map Orthoimagery Database (TNM Seamless Server) ","Imagery ","DOI-USGS","George Lee","gylee@usgs.gov",{"$f":"VLOOKUP(B199,'LOC FINAL with new Themes'!A:M,7,0)","v":0},{"$f":"VLOOKUP(B199,'LOC FINAL with new Themes'!A:M,8,0)","v":0},{"$f":"VLOOKUP(B199,'LOC FINAL with new Themes'!A:M,9,0)","v":0},{"$f":"VLOOKUP(B199,'LOC FINAL with new Themes'!A:M,10,0)","v":0},{"$f":"VLOOKUP(B199,'LOC FINAL with new Themes'!A:M,11,0)","v":0},{"$f":"VLOOKUP(B199,'LOC FINAL with new Themes'!A:M,12,0)","v":0},{"$f":"VLOOKUP(B199,'LOC FINAL with new Themes'!A:M,13,0)","v":0}]
["National Resource Inventory Imagery","National Resource Inventory Imagery",null,"National Resource Inventory Imagery","Imagery ","USDA-WDC","Jerry Harlow","jerry.harlow@wdc.usda.gov",{"$f":"VLOOKUP(B200,'LOC FINAL with new Themes'!A:M,7,0)","v":"Shirley identified Dan Good as new contact 'daniel.good@wdc.usda.gov' - need to follow up with either or both"},{"$f":"VLOOKUP(B200,'LOC FINAL with new Themes'!A:M,8,0)","v":0},{"$f":"VLOOKUP(B200,'LOC FINAL with new Themes'!A:M,9,0)","v":0},{"$f":"VLOOKUP(B200,'LOC FINAL with new Themes'!A:M,10,0)","v":0},{"$f":"VLOOKUP(B200,'LOC FINAL with new Themes'!A:M,11,0)","v":0},{"$f":"VLOOKUP(B200,'LOC FINAL with new Themes'!A:M,12,0)","v":0},{"$f":"VLOOKUP(B200,'LOC FINAL with new Themes'!A:M,13,0)","v":0}]
[null,null,"Satellite Imagery Archive","Satellite Imagery Archive","Imagery ","USDA-FSA"]
[{"$f":"SUBTOTAL(3,A189:A201)","v":9},{"$f":"SUBTOTAL(3,B189:B201)","v":10},{"$f":"SUBTOTAL(3,C189:C201)","v":6},{"$f":"SUBTOTAL(3,D189:D201)","v":13},"Imagery  Count"]
["Coastal Change Analysis Program (C-CAP)","Coastal Change Analysis Program (C-CAP)",null,{"$f":"IF(C203=0,B203,C203)","v":"Coastal Change Analysis Program (C-CAP)"},"Land Use-Land Cover ","DOC-NOAA","Nate Herold","Nate.Herold@noaa.gov",{"$f":"VLOOKUP(B203,'LOC FINAL with new Themes'!A:M,7,0)","v":"Answer might depend on how we slice and dice it...  C-CAP has up to three separate product lines (regional, high resolution, and a derived forest fragmentation classified data set).  We also have multiple dates of land cover for each of these (which I guess you would probably count).  See the following links (and bullets summarizing) on each.http://www.csc.noaa.gov/landcover\n- Covers CONUS coastal areas.  All areas for 1996, 2001, and 2006.\n- Some select CONUS geographies (WA, DE, MD, and VA) also have a 1992 date.\n- Covers state of Hawaii for 1992, 2001, and 2006.\n- includes individual dates and files highlighting changes between dates.\n\nhttp://www.csc.noaa.gov/digitalcoast/data/forestfrag/index.html\n- Covers CONUS coastal areas.  All areas for 1996, 2001, and 2006.\n- Other dates and geographies not currently included.\n\nhttp://www.csc.noaa.gov/digitalcoast/data/ccaphighres/index.html\n- Covers project level areas (year depends on geography, etc.)\n- Primarily data in the pacific (Hawaii and territories of American Samoa, Guam, and CNMI), as well as the USVIs, Jobos Bay Puerto Rico, and Santa Cruz area in CA.\n \n"},{"$f":"VLOOKUP(B203,'LOC FINAL with new Themes'!A:M,8,0)","v":"Yes"},{"$f":"VLOOKUP(B203,'LOC FINAL with new Themes'!A:M,9,0)","v":"Yes"},{"$f":"VLOOKUP(B203,'LOC FINAL with new Themes'!A:M,10,0)","v":"- The CONUS products are updated approximately every five years (we are currently working on a 2010/2011 data set, to add to the above time series)."},{"$f":"VLOOKUP(B203,'LOC FINAL with new Themes'!A:M,11,0)","v":"Yes.  We maintain and serve all of our data (at above addresses), and archive with NOAA's National Oceanic Data Center (NODC).  We consider the dates listed above as current data sets, as part of the data we produce is tracking and providing change data as well."},{"$f":"VLOOKUP(B203,'LOC FINAL with new Themes'!A:M,12,0)","v":"Not really...  Maybe the generic coastal land cover.  It is also very closely related and feeds into the National Land Cover Database (NLCD), which is a national land cover product developed by the Multi-Resolution Land Characteristics (MRLC) consortium.  this is an effort lead by the USGS."},{"$f":"VLOOKUP(B203,'LOC FINAL with new Themes'!A:M,13,0)","v":"M "}]
[null,null,"Crops: Cropland Data Layer","Crops: Cropland Data Layer","Land Use-Land Cover ","USDA-NASS"]
[null,null,"Earth Cover, Land: MODIS-based Land Products","Earth Cover, Land: MODIS-based Land Products","Land Use-Land Cover ","USDA -FS (Along with USGS)"]
[null,null,"Earth Cover, Vegetation, Forest: Forest Biomass, Types, Type Groups","Earth Cover, Vegetation, Forest: Forest Biomass, Types, Type Groups","Land Use-Land Cover ","USDA-FS"]
[null,null,"Earth Cover, Vegetation: Percent Forest Canopy","Earth Cover, Vegetation: Percent Forest Canopy","Land Use-Land Cover ","USDA-FS"]
[null,null,"Fire Severity: Monitoring Trends in Burn Severity (MTBS)","Fire Severity: Monitoring Trends in Burn Severity (MTBS)","Land Use-Land Cover ","USDA -FS (Along with USGS)"]
[null,null,"Fire, Detection: Daily Active Fire Mapping","Fire, Detection: Daily Active Fire Mapping","Land Use-Land Cover ","USDA"]
[null,null,"Land Cover Strata Dataset","Land Cover Strata Dataset","Land Use-Land Cover ","USDA-NASS"]
["LANDFIRE Dataset","LANDFIRE Dataset","Land Fire Dataset","Land Fire Dataset","Land Use-Land Cover ",null,null,0,{"$f":"VLOOKUP(B211,'LOC FINAL with new Themes'!A:M,7,0)","v":0},{"$f":"VLOOKUP(B211,'LOC FINAL with new Themes'!A:M,8,0)","v":0},{"$f":"VLOOKUP(B211,'LOC FINAL with new Themes'!A:M,9,0)","v":0},{"$f":"VLOOKUP(B211,'LOC FINAL with new Themes'!A:M,10,0)","v":0},{"$f":"VLOOKUP(B211,'LOC FINAL with new Themes'!A:M,11,0)","v":0},{"$f":"VLOOKUP(B211,'LOC FINAL with new Themes'!A:M,12,0)","v":0},{"$f":"VLOOKUP(B211,'LOC FINAL with new Themes'!A:M,13,0)","v":0}]
["National Land Cover Dataset (NLCD)","National Land Cover Dataset (NLCD)","National Land Cover Dataset - GIRAS - 1975","National Land Cover Dataset - GIRAS - 1975","Land Use-Land Cover ","DOI-USGS","Colin Homer","homer@usgs.gov",{"$f":"VLOOKUP(B212,'LOC FINAL with new Themes'!A:M,7,0)","v":"The table below summarizes NLCD products available for download from the MRLC website http://www.mrlc.gov/ "},{"$f":"VLOOKUP(B212,'LOC FINAL with new Themes'!A:M,8,0)","v":"No.  The \"manager\" of the data is Jon Dewitz. \nContact Information -   \nJon Dewitz\ndewitz@usgs.gov\n605-594-2715\nNLCD Quality Supervisor\nUSGS Earth Resources Observation and Science Center (EROS)\nMundt Federal Building\n47914 252nd St.\nSioux Falls, SD 57198\nfax 605-594-6529\n"},{"$f":"VLOOKUP(B212,'LOC FINAL with new Themes'!A:M,9,0)","v":"Joyce Fry is the POC. \nContact information - \nJoyce Fry, Geographer\nUnited States Geological Survey (USGS)\nEarth Resources Observation and  Science (EROS) Center\nMundt Federal Building\n47914 252nd Street\nSioux Falls, South Dakota 57198\n(P)  605.594.2739\n(F)  605.594.6529\n(e)  jfry@usgs.gov \n"},{"$f":"VLOOKUP(B212,'LOC FINAL with new Themes'!A:M,10,0)","v":"Every 5 years"},{"$f":"VLOOKUP(B212,'LOC FINAL with new Themes'!A:M,11,0)","v":"Yes, there is an archive/backup of the dataset through the EROS Long Term Archive (LTA) group.  I will need to get back to if you need additional information regarding the archive process. "},{"$f":"VLOOKUP(B212,'LOC FINAL with new Themes'!A:M,12,0)","v":"National Land Cover Database or NLCD along with the era number, either 1992 or 2001, or 2006. "},{"$f":"VLOOKUP(B212,'LOC FINAL with new Themes'!A:M,13,0)","v":"S"}]
[null,null,"National Land Cover Dataset - National Map","National Land Cover Dataset - National Map","Land Use-Land Cover ","DOI-USGS"]
[null,null,"National Land Cover Dataset - National Map - 1991","National Land Cover Dataset - National Map - 1991","Land Use-Land Cover ","DOI-USGS"]
[null,null,"National Land Cover Dataset - National Map - 2001","National Land Cover Dataset - National Map - 2001","Land Use-Land Cover ","DOI-USGS"]
[null,null,"National Land Cover Dataset - National Map 2006","National Land Cover Dataset - National Map 2006","Land Use-Land Cover ","DOI-USGS"]
["National Land Cover Dataset (NLCD)","National Land Cover Dataset (NLCD)","National Land Cover Dataset (NLCD)","National Land Cover Dataset (NLCD)","Land Use-Land Cover ","DOI-USGS","Colin Homer","homer@usgs.gov",{"$f":"VLOOKUP(B217,'LOC FINAL with new Themes'!A:M,7,0)","v":"The table below summarizes NLCD products available for download from the MRLC website http://www.mrlc.gov/ "},{"$f":"VLOOKUP(B217,'LOC FINAL with new Themes'!A:M,8,0)","v":"No.  The \"manager\" of the data is Jon Dewitz. \nContact Information -   \nJon Dewitz\ndewitz@usgs.gov\n605-594-2715\nNLCD Quality Supervisor\nUSGS Earth Resources Observation and Science Center (EROS)\nMundt Federal Building\n47914 252nd St.\nSioux Falls, SD 57198\nfax 605-594-6529\n"},{"$f":"VLOOKUP(B217,'LOC FINAL with new Themes'!A:M,9,0)","v":"Joyce Fry is the POC. \nContact information - \nJoyce Fry, Geographer\nUnited States Geological Survey (USGS)\nEarth Resources Observation and  Science (EROS) Center\nMundt Federal Building\n47914 252nd Street\nSioux Falls, South Dakota 57198\n(P)  605.594.2739\n(F)  605.594.6529\n(e)  jfry@usgs.gov \n"},{"$f":"VLOOKUP(B217,'LOC FINAL with new Themes'!A:M,10,0)","v":"Every 5 years"},{"$f":"VLOOKUP(B217,'LOC FINAL with new Themes'!A:M,11,0)","v":"Yes, there is an archive/backup of the dataset through the EROS Long Term Archive (LTA) group.  I will need to get back to if you need additional information regarding the archive process. "},{"$f":"VLOOKUP(B217,'LOC FINAL with new Themes'!A:M,12,0)","v":"National Land Cover Database or NLCD along with the era number, either 1992 or 2001, or 2006. "},{"$f":"VLOOKUP(B217,'LOC FINAL with new Themes'!A:M,13,0)","v":"S"}]
[null,null,"National Land Cover Percent Canopy - National Map - 1991","National Land Cover Percent Canopy - National Map - 1991","Land Use-Land Cover ","DOI-USGS"]
[null,null,"National Land Cover Percent Imperviousness - National Map - 2001","National Land Cover Percent Imperviousness - National Map - 2001","Land Use-Land Cover ","DOI-USGS"]
[null,null,"National Land Cover Percent Imperviousness - National Map - 2006","National Land Cover Percent Imperviousness - National Map - 2006","Land Use-Land Cover ","DOI-USGS"]
["National Parks Data","National Parks Data","National Parks Data","National Parks Data","Land Use-Land Cover ","DOI-MMS","James Fulmer","james.s.fulmer@mms.gov",{"$f":"VLOOKUP(B221,'LOC FINAL with new Themes'!A:M,7,0)","v":"undeliverable email- neeed to identify new contact"},{"$f":"VLOOKUP(B221,'LOC FINAL with new Themes'!A:M,8,0)","v":0},{"$f":"VLOOKUP(B221,'LOC FINAL with new Themes'!A:M,9,0)","v":0},{"$f":"VLOOKUP(B221,'LOC FINAL with new Themes'!A:M,10,0)","v":0},{"$f":"VLOOKUP(B221,'LOC FINAL with new Themes'!A:M,11,0)","v":0},{"$f":"VLOOKUP(B221,'LOC FINAL with new Themes'!A:M,12,0)","v":0},{"$f":"VLOOKUP(B221,'LOC FINAL with new Themes'!A:M,13,0)","v":0}]
[{"$f":"SUBTOTAL(3,A203:A221)","v":5},{"$f":"SUBTOTAL(3,B203:B221)","v":5},{"$f":"SUBTOTAL(3,C203:C221)","v":18},{"$f":"SUBTOTAL(3,D203:D221)","v":19},"Land Use-Land Cover  Count"]
["Assisted Housing (census geography or point-based) see http://www.huduser.org/picture2000/","Assisted Housing (census geography or point-based)",null,{"$f":"IF(C223=0,B223,C223)","v":"Assisted Housing (census geography or point-based)"},"Real Property","HUD","Jon Sperling","jon.sperling@hud.gov",{"$f":"VLOOKUP(B223,'LOC FINAL with new Themes'!A:M,7,0)","v":0},{"$f":"VLOOKUP(B223,'LOC FINAL with new Themes'!A:M,8,0)","v":0},{"$f":"VLOOKUP(B223,'LOC FINAL with new Themes'!A:M,9,0)","v":0},{"$f":"VLOOKUP(B223,'LOC FINAL with new Themes'!A:M,10,0)","v":0},{"$f":"VLOOKUP(B223,'LOC FINAL with new Themes'!A:M,11,0)","v":0},{"$f":"VLOOKUP(B223,'LOC FINAL with new Themes'!A:M,12,0)","v":0},{"$f":"VLOOKUP(B223,'LOC FINAL with new Themes'!A:M,13,0)","v":0}]
["Enterprise Zones, Empowerment Communities, Revitalization Areas, Qualified Census Tracts, etc.  (census geography based)","Enterprise Zones, Empowerment Communities, Revitalization Areas, Qualified Census Tracts, etc.  (census geography based)",null,"Enterprise Zones, Empowerment Communities, Revitalization Areas, Qualified Census Tracts, etc.  (census geography based)","Real Property","HUD","Jon Sperling","jon.sperling@hud.gov",{"$f":"VLOOKUP(B224,'LOC FINAL with new Themes'!A:M,7,0)","v":0},{"$f":"VLOOKUP(B224,'LOC FINAL with new Themes'!A:M,8,0)","v":0},{"$f":"VLOOKUP(B224,'LOC FINAL with new Themes'!A:M,9,0)","v":0},{"$f":"VLOOKUP(B224,'LOC FINAL with new Themes'!A:M,10,0)","v":0},{"$f":"VLOOKUP(B224,'LOC FINAL with new Themes'!A:M,11,0)","v":0},{"$f":"VLOOKUP(B224,'LOC FINAL with new Themes'!A:M,12,0)","v":0},{"$f":"VLOOKUP(B224,'LOC FINAL with new Themes'!A:M,13,0)","v":0}]
["Federal building location point ","Federal building location point ","Federal building location point ","Federal building location point ","Real Property ","GSA","Sandra Downie","sandra.downie@gsa.gov",{"$f":"VLOOKUP(B225,'LOC FINAL with new Themes'!A:M,7,0)","v":0},{"$f":"VLOOKUP(B225,'LOC FINAL with new Themes'!A:M,8,0)","v":0},{"$f":"VLOOKUP(B225,'LOC FINAL with new Themes'!A:M,9,0)","v":0},{"$f":"VLOOKUP(B225,'LOC FINAL with new Themes'!A:M,10,0)","v":0},{"$f":"VLOOKUP(B225,'LOC FINAL with new Themes'!A:M,11,0)","v":0},{"$f":"VLOOKUP(B225,'LOC FINAL with new Themes'!A:M,12,0)","v":0},{"$f":"VLOOKUP(B225,'LOC FINAL with new Themes'!A:M,13,0)","v":0}]
["Federal building location polygon","Federal building location polygon","Federal building location polygon","Federal building location polygon","Real Property ","GSA","Sandra Downie","sandra.downie@gsa.gov",{"$f":"VLOOKUP(B226,'LOC FINAL with new Themes'!A:M,7,0)","v":0},{"$f":"VLOOKUP(B226,'LOC FINAL with new Themes'!A:M,8,0)","v":0},{"$f":"VLOOKUP(B226,'LOC FINAL with new Themes'!A:M,9,0)","v":0},{"$f":"VLOOKUP(B226,'LOC FINAL with new Themes'!A:M,10,0)","v":0},{"$f":"VLOOKUP(B226,'LOC FINAL with new Themes'!A:M,11,0)","v":0},{"$f":"VLOOKUP(B226,'LOC FINAL with new Themes'!A:M,12,0)","v":0},{"$f":"VLOOKUP(B226,'LOC FINAL with new Themes'!A:M,13,0)","v":0}]
["Federal land area facility location point","Federal land area facility location point","Federal land area facility location point","Federal land area facility location point","Real Property ","GSA","Sandra Downie","sandra.downie@gsa.gov",{"$f":"VLOOKUP(B227,'LOC FINAL with new Themes'!A:M,7,0)","v":0},{"$f":"VLOOKUP(B227,'LOC FINAL with new Themes'!A:M,8,0)","v":0},{"$f":"VLOOKUP(B227,'LOC FINAL with new Themes'!A:M,9,0)","v":0},{"$f":"VLOOKUP(B227,'LOC FINAL with new Themes'!A:M,10,0)","v":0},{"$f":"VLOOKUP(B227,'LOC FINAL with new Themes'!A:M,11,0)","v":0},{"$f":"VLOOKUP(B227,'LOC FINAL with new Themes'!A:M,12,0)","v":0},{"$f":"VLOOKUP(B227,'LOC FINAL with new Themes'!A:M,13,0)","v":0}]
["Federal land area facility location polygon","Federal land area facility location polygon","Federal land area facility location polygon","Federal land area facility location polygon","Real Property ","GSA","Sandra Downie","sandra.downie@gsa.gov",{"$f":"VLOOKUP(B228,'LOC FINAL with new Themes'!A:M,7,0)","v":0},{"$f":"VLOOKUP(B228,'LOC FINAL with new Themes'!A:M,8,0)","v":0},{"$f":"VLOOKUP(B228,'LOC FINAL with new Themes'!A:M,9,0)","v":0},{"$f":"VLOOKUP(B228,'LOC FINAL with new Themes'!A:M,10,0)","v":0},{"$f":"VLOOKUP(B228,'LOC FINAL with new Themes'!A:M,11,0)","v":0},{"$f":"VLOOKUP(B228,'LOC FINAL with new Themes'!A:M,12,0)","v":0},{"$f":"VLOOKUP(B228,'LOC FINAL with new Themes'!A:M,13,0)","v":0}]
["National Map - Structures Dataset","National Map - Structures Dataset","National Structures Dataset - National Map","National Structures Dataset - National Map","Real Property ","DOI-USGS","Paul Wiese","pmwiese@usgs.gov",{"$f":"VLOOKUP(B229,'LOC FINAL with new Themes'!A:M,7,0)","v":"National Map updates monthly; a series of data sets; this is the POC and data manager; this is the name and maintain three complete with two physically separate on-site and one off-site"},{"$f":"VLOOKUP(B229,'LOC FINAL with new Themes'!A:M,8,0)","v":0},{"$f":"VLOOKUP(B229,'LOC FINAL with new Themes'!A:M,9,0)","v":0},{"$f":"VLOOKUP(B229,'LOC FINAL with new Themes'!A:M,10,0)","v":0},{"$f":"VLOOKUP(B229,'LOC FINAL with new Themes'!A:M,11,0)","v":0},{"$f":"VLOOKUP(B229,'LOC FINAL with new Themes'!A:M,12,0)","v":0},{"$f":"VLOOKUP(B229,'LOC FINAL with new Themes'!A:M,13,0)","v":"S"}]
[{"$f":"SUBTOTAL(3,A223:A229)","v":7},{"$f":"SUBTOTAL(3,B223:B229)","v":7},{"$f":"SUBTOTAL(3,C223:C229)","v":5},{"$f":"SUBTOTAL(3,D223:D229)","v":7},"Real Property Count"]
[null,"Military Installation","Military Installation",{"$f":"IF(C231=0,B231,C231)","v":"Military Installation"},"Real Property\nCultural & Demographic Statistics","DOC-Census","Jennifer Holland","Jennifer.L.Holland@census.gov",{"$f":"VLOOKUP(B231,'LOC FINAL with new Themes'!A:M,7,0)","v":0},{"$f":"VLOOKUP(B231,'LOC FINAL with new Themes'!A:M,8,0)","v":0},{"$f":"VLOOKUP(B231,'LOC FINAL with new Themes'!A:M,9,0)","v":0},{"$f":"VLOOKUP(B231,'LOC FINAL with new Themes'!A:M,10,0)","v":0},{"$f":"VLOOKUP(B231,'LOC FINAL with new Themes'!A:M,11,0)","v":0},{"$f":"VLOOKUP(B231,'LOC FINAL with new Themes'!A:M,12,0)","v":0},{"$f":"VLOOKUP(B231,'LOC FINAL with new Themes'!A:M,13,0)","v":0}]
[{"$f":"SUBTOTAL(3,A231:A231)","v":0},{"$f":"SUBTOTAL(3,B231:B231)","v":1},{"$f":"SUBTOTAL(3,C231:C231)","v":1},{"$f":"SUBTOTAL(3,D231:D231)","v":1},"Real Property\nCultural & Demographic Statistics Count"]
["Common Resource Area (CRA)","Common Resource Area (CRA)","Common Resource Area (CRA)",{"$f":"IF(C233=0,B233,C233)","v":"Common Resource Area (CRA)"},"Soils ","USDA","Chris W. Smith","Christopherw.Smith@wdc.usda.gov",{"$f":"VLOOKUP(B233,'LOC FINAL with new Themes'!A:M,7,0)","v":0},{"$f":"VLOOKUP(B233,'LOC FINAL with new Themes'!A:M,8,0)","v":0},{"$f":"VLOOKUP(B233,'LOC FINAL with new Themes'!A:M,9,0)","v":0},{"$f":"VLOOKUP(B233,'LOC FINAL with new Themes'!A:M,10,0)","v":0},{"$f":"VLOOKUP(B233,'LOC FINAL with new Themes'!A:M,11,0)","v":0},{"$f":"VLOOKUP(B233,'LOC FINAL with new Themes'!A:M,12,0)","v":0},{"$f":"VLOOKUP(B233,'LOC FINAL with new Themes'!A:M,13,0)","v":0}]
["Hydric Soils","Hydric Soils",null,"Hydric Soils","Soils ","USDA","Chris W. Smith","Christopherw.Smith@wdc.usda.gov",{"$f":"VLOOKUP(B234,'LOC FINAL with new Themes'!A:M,7,0)","v":0},{"$f":"VLOOKUP(B234,'LOC FINAL with new Themes'!A:M,8,0)","v":0},{"$f":"VLOOKUP(B234,'LOC FINAL with new Themes'!A:M,9,0)","v":0},{"$f":"VLOOKUP(B234,'LOC FINAL with new Themes'!A:M,10,0)","v":0},{"$f":"VLOOKUP(B234,'LOC FINAL with new Themes'!A:M,11,0)","v":0},{"$f":"VLOOKUP(B234,'LOC FINAL with new Themes'!A:M,12,0)","v":0},{"$f":"VLOOKUP(B234,'LOC FINAL with new Themes'!A:M,13,0)","v":0}]
["Location of Arable Lands","Location of Arable Lands",null,"Location of Arable Lands","Soils ","USDA","Karl Hipple","karl.hipple@lin.usda.gov",{"$f":"VLOOKUP(B235,'LOC FINAL with new Themes'!A:M,7,0)","v":"undeliverable email- neeed to identify new contact"},{"$f":"VLOOKUP(B235,'LOC FINAL with new Themes'!A:M,8,0)","v":0},{"$f":"VLOOKUP(B235,'LOC FINAL with new Themes'!A:M,9,0)","v":0},{"$f":"VLOOKUP(B235,'LOC FINAL with new Themes'!A:M,10,0)","v":0},{"$f":"VLOOKUP(B235,'LOC FINAL with new Themes'!A:M,11,0)","v":0},{"$f":"VLOOKUP(B235,'LOC FINAL with new Themes'!A:M,12,0)","v":0},{"$f":"VLOOKUP(B235,'LOC FINAL with new Themes'!A:M,13,0)","v":0}]
["Major Land Resource Area (MLRA)","Major Land Resource Area (MLRA)","Major Land Resource Area (MLRA)","Major Land Resource Area (MLRA)","Soils ","USDA","Karl Hipple","karl.hipple@lin.usda.gov",{"$f":"VLOOKUP(B236,'LOC FINAL with new Themes'!A:M,7,0)","v":"undeliverable email- neeed to identify new contact"},{"$f":"VLOOKUP(B236,'LOC FINAL with new Themes'!A:M,8,0)","v":0},{"$f":"VLOOKUP(B236,'LOC FINAL with new Themes'!A:M,9,0)","v":0},{"$f":"VLOOKUP(B236,'LOC FINAL with new Themes'!A:M,10,0)","v":0},{"$f":"VLOOKUP(B236,'LOC FINAL with new Themes'!A:M,11,0)","v":0},{"$f":"VLOOKUP(B236,'LOC FINAL with new Themes'!A:M,12,0)","v":0},{"$f":"VLOOKUP(B236,'LOC FINAL with new Themes'!A:M,13,0)","v":0}]
["National Cooperative Soil Survey (NCSS)","National Cooperative Soil Survey (NCSS)","National Cooperative Soil Characterization Database","National Cooperative Soil Characterization Database","Soils ","USDA","Paul Benedict","paul.benedict@wdc.usda.gov",{"$f":"VLOOKUP(B237,'LOC FINAL with new Themes'!A:M,7,0)","v":"We have our Soil Survey Geographic database called SSURGO which is made available through the following sites:\nWeb Soil Survey:    http://websoilsurvey.nrcs.usda.gov/app/\nSoil Data Mart:     http://soildatamart.nrcs.usda.gov/\nSoil Data Access:   http://sdmdataaccess.nrcs.usda.gov\n\nWe also have: \nLab Soil Survey Lab Characterization Data (Point data): http://ssldata.nrcs.usda.gov/ aka NCSS Characterization Database\nSoil Series Classification Database http://soils.usda.gov/technical/classification/scfile/index.html\nU.S. General Soil Map (STATSGO2)\nMajor Land Resource Area (MLRA) http://soils.usda.gov/survey/geography/mlra/\n             Common Resource Areas (CRA) \n\n"},{"$f":"VLOOKUP(B237,'LOC FINAL with new Themes'!A:M,8,0)","v":"? No, I am a Program Manager. Various other people have roles of maintaining the data. "},{"$f":"VLOOKUP(B237,'LOC FINAL with new Themes'!A:M,9,0)","v":"I am a general information POC for all things soil survey related. For more technical aspects on our data sets a good POC would be David Hoover, National Leader for Soil Business Systems or someone on his staff. His contact number is 402-437-4013 or email at david.hoover@lin.usda.gov. "},{"$f":"VLOOKUP(B237,'LOC FINAL with new Themes'!A:M,10,0)","v":"Our data sets are constantly being updated by about 1000 soil and plant scientists in several agencies. "},{"$f":"VLOOKUP(B237,'LOC FINAL with new Themes'!A:M,11,0)","v":"Our data sets are archived, but I don’t know how far back. I will have to get back to you on that. It is my understanding that archived sets are not easily accessible.  We have archive data for SSURGO (Soil Data Warehouse from mid 2000’s or earlier – Jim Fortner or Jennifer Sweet may be able to confirm or provide more detail; We also have archive data for STATSGO (circa 1994;1996) and for MLRA (1978; 2001; 2006) in local holdings.  Not sure about lab data archives, Henry Ferguson or Larry West can confirm.  "},{"$f":"VLOOKUP(B237,'LOC FINAL with new Themes'!A:M,12,0)","v":"? the Lab Characterization Data is also known as the “NCSS Characterization Database”\nAdded Common Resource Area geographic database (CRA)."},{"$f":"VLOOKUP(B237,'LOC FINAL with new Themes'!A:M,13,0)","v":"P"}]
["Prime and Statewide Important Farmlands","Prime and Statewide Important Farmlands",null,"Prime and Statewide Important Farmlands","Soils ","USDA","Chris W. Smith","Christopherw.Smith@wdc.usda.gov",{"$f":"VLOOKUP(B238,'LOC FINAL with new Themes'!A:M,7,0)","v":0},{"$f":"VLOOKUP(B238,'LOC FINAL with new Themes'!A:M,8,0)","v":0},{"$f":"VLOOKUP(B238,'LOC FINAL with new Themes'!A:M,9,0)","v":0},{"$f":"VLOOKUP(B238,'LOC FINAL with new Themes'!A:M,10,0)","v":0},{"$f":"VLOOKUP(B238,'LOC FINAL with new Themes'!A:M,11,0)","v":0},{"$f":"VLOOKUP(B238,'LOC FINAL with new Themes'!A:M,12,0)","v":0},{"$f":"VLOOKUP(B238,'LOC FINAL with new Themes'!A:M,13,0)","v":0}]
["Soil Suitability for Disposal of Contaminated Crops ","Soil Suitability for Disposal of Contaminated Crops ",null,"Soil Suitability for Disposal of Contaminated Crops ","Soils ","USDA","Karl Hipple; Sharon Waltman","karl.hipple@lin.usda.gov; sharon.waltman@wv.usda.gov ",{"$f":"VLOOKUP(B239,'LOC FINAL with new Themes'!A:M,7,0)","v":"undeliverable email- neeed to identify new contact"},{"$f":"VLOOKUP(B239,'LOC FINAL with new Themes'!A:M,8,0)","v":0},{"$f":"VLOOKUP(B239,'LOC FINAL with new Themes'!A:M,9,0)","v":0},{"$f":"VLOOKUP(B239,'LOC FINAL with new Themes'!A:M,10,0)","v":0},{"$f":"VLOOKUP(B239,'LOC FINAL with new Themes'!A:M,11,0)","v":0},{"$f":"VLOOKUP(B239,'LOC FINAL with new Themes'!A:M,12,0)","v":0},{"$f":"VLOOKUP(B239,'LOC FINAL with new Themes'!A:M,13,0)","v":0}]
["Soil Suitability for Large Animal Disposal","Soil Suitability for Large Animal Disposal",null,"Soil Suitability for Large Animal Disposal","Soils ","USDA","Chris W. Smith","Christopherw.Smith@wdc.usda.gov",{"$f":"VLOOKUP(B240,'LOC FINAL with new Themes'!A:M,7,0)","v":0},{"$f":"VLOOKUP(B240,'LOC FINAL with new Themes'!A:M,8,0)","v":0},{"$f":"VLOOKUP(B240,'LOC FINAL with new Themes'!A:M,9,0)","v":0},{"$f":"VLOOKUP(B240,'LOC FINAL with new Themes'!A:M,10,0)","v":0},{"$f":"VLOOKUP(B240,'LOC FINAL with new Themes'!A:M,11,0)","v":0},{"$f":"VLOOKUP(B240,'LOC FINAL with new Themes'!A:M,12,0)","v":0},{"$f":"VLOOKUP(B240,'LOC FINAL with new Themes'!A:M,13,0)","v":0}]
["Soil Survey Geographic Database (SSURGO)","Soil Survey Geographic Database (SSURGO)","Soil Survey Geographic Database (SSURGO)","Soil Survey Geographic Database (SSURGO)","Soils ","USDA","Karl Hipple","karl.hipple@lin.usda.gov",{"$f":"VLOOKUP(B241,'LOC FINAL with new Themes'!A:M,7,0)","v":"undeliverable email- neeed to identify new contact"},{"$f":"VLOOKUP(B241,'LOC FINAL with new Themes'!A:M,8,0)","v":0},{"$f":"VLOOKUP(B241,'LOC FINAL with new Themes'!A:M,9,0)","v":0},{"$f":"VLOOKUP(B241,'LOC FINAL with new Themes'!A:M,10,0)","v":0},{"$f":"VLOOKUP(B241,'LOC FINAL with new Themes'!A:M,11,0)","v":0},{"$f":"VLOOKUP(B241,'LOC FINAL with new Themes'!A:M,12,0)","v":0},{"$f":"VLOOKUP(B241,'LOC FINAL with new Themes'!A:M,13,0)","v":0}]
["U.S. General Soil Map (STATSGO2)","U.S. General Soil Map (STATSGO2)","U.S. General Soil Map (STATSGO2)","U.S. General Soil Map (STATSGO2)","Soils ","USDA","Karl Hipple","karl.hipple@lin.usda.gov",{"$f":"VLOOKUP(B242,'LOC FINAL with new Themes'!A:M,7,0)","v":"undeliverable email- neeed to identify new contact"},{"$f":"VLOOKUP(B242,'LOC FINAL with new Themes'!A:M,8,0)","v":0},{"$f":"VLOOKUP(B242,'LOC FINAL with new Themes'!A:M,9,0)","v":0},{"$f":"VLOOKUP(B242,'LOC FINAL with new Themes'!A:M,10,0)","v":0},{"$f":"VLOOKUP(B242,'LOC FINAL with new Themes'!A:M,11,0)","v":0},{"$f":"VLOOKUP(B242,'LOC FINAL with new Themes'!A:M,12,0)","v":0},{"$f":"VLOOKUP(B242,'LOC FINAL with new Themes'!A:M,13,0)","v":0}]
[{"$f":"SUBTOTAL(3,A233:A242)","v":10},{"$f":"SUBTOTAL(3,B233:B242)","v":10},{"$f":"SUBTOTAL(3,C233:C242)","v":5},{"$f":"SUBTOTAL(3,D233:D242)","v":10},"Soils  Count"]
[null,"Address Range-Feature Name Relationship File","Address Range-Feature Name Relationship File",{"$f":"IF(C244=0,B244,C244)","v":"Address Range-Feature Name Relationship File"},"Transportation ","DOC-Census","Jennifer Holland","Jennifer.L.Holland@census.gov",{"$f":"VLOOKUP(B244,'LOC FINAL with new Themes'!A:M,7,0)","v":0},{"$f":"VLOOKUP(B244,'LOC FINAL with new Themes'!A:M,8,0)","v":0},{"$f":"VLOOKUP(B244,'LOC FINAL with new Themes'!A:M,9,0)","v":0},{"$f":"VLOOKUP(B244,'LOC FINAL with new Themes'!A:M,10,0)","v":0},{"$f":"VLOOKUP(B244,'LOC FINAL with new Themes'!A:M,11,0)","v":0},{"$f":"VLOOKUP(B244,'LOC FINAL with new Themes'!A:M,12,0)","v":0},{"$f":"VLOOKUP(B244,'LOC FINAL with new Themes'!A:M,13,0)","v":0}]
[null,"Address Ranges Relationship File","Address Ranges Relationship File","Address Ranges Relationship File","Transportation ","DOC-Census","Jennifer Holland","Jennifer.L.Holland@census.gov",{"$f":"VLOOKUP(B245,'LOC FINAL with new Themes'!A:M,7,0)","v":0},{"$f":"VLOOKUP(B245,'LOC FINAL with new Themes'!A:M,8,0)","v":0},{"$f":"VLOOKUP(B245,'LOC FINAL with new Themes'!A:M,9,0)","v":0},{"$f":"VLOOKUP(B245,'LOC FINAL with new Themes'!A:M,10,0)","v":0},{"$f":"VLOOKUP(B245,'LOC FINAL with new Themes'!A:M,11,0)","v":0},{"$f":"VLOOKUP(B245,'LOC FINAL with new Themes'!A:M,12,0)","v":0},{"$f":"VLOOKUP(B245,'LOC FINAL with new Themes'!A:M,13,0)","v":0}]
[null,"All Roads","All Roads","All Roads","Transportation ","DOC-Census","Jennifer Holland","Jennifer.L.Holland@census.gov",{"$f":"VLOOKUP(B246,'LOC FINAL with new Themes'!A:M,7,0)","v":0},{"$f":"VLOOKUP(B246,'LOC FINAL with new Themes'!A:M,8,0)","v":0},{"$f":"VLOOKUP(B246,'LOC FINAL with new Themes'!A:M,9,0)","v":0},{"$f":"VLOOKUP(B246,'LOC FINAL with new Themes'!A:M,10,0)","v":0},{"$f":"VLOOKUP(B246,'LOC FINAL with new Themes'!A:M,11,0)","v":0},{"$f":"VLOOKUP(B246,'LOC FINAL with new Themes'!A:M,12,0)","v":0},{"$f":"VLOOKUP(B246,'LOC FINAL with new Themes'!A:M,13,0)","v":0}]
["Inland Electronic Navigation Charts (IENC)","Inland Electronic Navigation Charts (IENC)","Inland Electronic Navigation Charts (IENC)","Inland Electronic Navigation Charts (IENC)","Transportation ","DOD-USACE","Joel Schlagel","Joel.D.Schlagel@erdc.usace.army.mil ",{"$f":"VLOOKUP(B247,'LOC FINAL with new Themes'!A:M,7,0)","v":0},{"$f":"VLOOKUP(B247,'LOC FINAL with new Themes'!A:M,8,0)","v":0},{"$f":"VLOOKUP(B247,'LOC FINAL with new Themes'!A:M,9,0)","v":0},{"$f":"VLOOKUP(B247,'LOC FINAL with new Themes'!A:M,10,0)","v":0},{"$f":"VLOOKUP(B247,'LOC FINAL with new Themes'!A:M,11,0)","v":0},{"$f":"VLOOKUP(B247,'LOC FINAL with new Themes'!A:M,12,0)","v":0},{"$f":"VLOOKUP(B247,'LOC FINAL with new Themes'!A:M,13,0)","v":0}]
[null,null,"National Interagency Trails Dataset","National Interagency Trails Dataset","Transportation ","USDA"]
["National Map - Transportation Dataset","National Map - Transportation Dataset","National Transportation Dataset - National Map","National Transportation Dataset - National Map","Transportation ","DOI-USGS","Paul Wiese","pmwiese@usgs.gov",{"$f":"VLOOKUP(B249,'LOC FINAL with new Themes'!A:M,7,0)","v":0},{"$f":"VLOOKUP(B249,'LOC FINAL with new Themes'!A:M,8,0)","v":0},{"$f":"VLOOKUP(B249,'LOC FINAL with new Themes'!A:M,9,0)","v":0},{"$f":"VLOOKUP(B249,'LOC FINAL with new Themes'!A:M,10,0)","v":0},{"$f":"VLOOKUP(B249,'LOC FINAL with new Themes'!A:M,11,0)","v":0},{"$f":"VLOOKUP(B249,'LOC FINAL with new Themes'!A:M,12,0)","v":0},{"$f":"VLOOKUP(B249,'LOC FINAL with new Themes'!A:M,13,0)","v":0}]
["NOAA Aeronautical Survey","NOAA Aeronautical Survey",null,"NOAA Aeronautical Survey","Transportation ","DOC-NOAA","Mark Howard","Mark.Howard@noaa.gov",{"$f":"VLOOKUP(B250,'LOC FINAL with new Themes'!A:M,7,0)","v":"The NOAA/NGS Aeronautical Survey Program (ASP) provides products and services to the FAA in accordance with an interagency agreement.  The ASP is a reimbursable program that performs work as requested by the Aeronautical Information Services Office (AIS).  The aeronautical surveys we conduct and review provide airport geodetic control, runway, navigational aid, obstruction, an other aeronautical data that is critical to the operation of the National Airspace System. Recently our role, in support of the FAA, has migrated from primarily being a data provider to reviewing survey data collected by third party commerical surveyors. The survey data (collected by NGS or submitted by 3rd party) is considered good as of the date collected.  The surveys are forwarded to the FAA.  The data supports FAA Instrument Approach Procedure development and is also ingested into databases used to update FAA publications. The NGS has been conducting aeronautical surveys for over 7 decades. We have conducted surveys at over 1200 airports.  Each survey is a single data set.  We began storing the survey data (electronically) in a database around 1990 (prior to that it was all paper).  Note that many of these surveys we conducted are not current. The FAA does obtain aeronautical survey data from many different sources. The 3rd party surveys we review is submitted to the FAA. We retreive a copy of the survey data from an FAA portal to perform our reveiw.       "},{"$f":"VLOOKUP(B250,'LOC FINAL with new Themes'!A:M,8,0)","v":"No, I'm the Program Manager serving as the NGS liason with FAA offices that leverage NGS expertise and capabilities.    "},{"$f":"VLOOKUP(B250,'LOC FINAL with new Themes'!A:M,9,0)","v":"I could be. We don't have a designated person that performs that function. Being a reimbursable program our tasks are limited to those specified in our interagency agreement, which is limited to providing (transfering) the data sets to the FAA.  We are not involved in the dissemenation or distribution of the product.  In the past, when we were conducting more surveys, we would post the survey data (in UDDF format) to our web site (http://www.ngs.noaa.gov/AERO/UDDFdat.htm).  These survey data sets are still available on our site but we no longer post new surveys to the site.  The data is now either submitted to the FAA Third Party Survey Site (TPSS) or the FAA Airports Surveying GIS (AGIS) Program web site (https://airports-gis.faa.gov/public/index.html).  Both sites require registration.  The data uploaded to the TPSS site is assessable via a public site (https://tpss.faa.gov/tpss/uddfList.jsp).    "},{"$f":"VLOOKUP(B250,'LOC FINAL with new Themes'!A:M,10,0)","v":"Updates are contigent on NGS receiving a request from the FAA to conduct another survey.  We do not survey airports on a regular cylce.   We use to survey the larger airports (FAA Part 139) every 3-5 years.  With advances in use of GPS naviagtion the FAA's need for aeronautical survey data increased significantly.  They are now developing Approach procedures for many smaller airports (no need to purchase or maintain ground based ILS equipment).    "},{"$f":"VLOOKUP(B250,'LOC FINAL with new Themes'!A:M,11,0)","v":"Yes, we do have an archive and backup of the surveys we conducted.  Internally we transfer our survey data from our database to differnet environments (photogrammetric workstation, field data logger) via a custom designed ascii text based \"exchange file format\" (EXG). I don't know how easily it would be to make this accessible. I would need to discuss with our database manager.  When ever I ask him a single question he usualy turns around and asks me 10 questions.  The scope of the request would need to be defined. A word of caution.... there is more recent survey data available (from other sources) at many of the airports we have surveyed.  "},{"$f":"VLOOKUP(B250,'LOC FINAL with new Themes'!A:M,12,0)","v":"The aeronautical data set we forward to the FAA is referred to as a UDDF.... which is really the format of the file the data is transferred in.  The documentation for this file format is available on our web site (http://www.ngs.noaa.gov/AERO/annof_7.htm).  Internally it is the \"exchange file format\" (EXG), but of course our workfoce access the information our database via interactive software.  NGS has also established Primary and Secondary Airport Control Stations at many airports across the country.  This control is tied directly to the National Spatial Reference System (NSRS) and available via the NGS IDB (web site).  They are permanent marks with precisly determined positions and elevations that must meet specific siting, construction, and accuracy requirements. The control stations can be retrieved in a variety of formats.  "},{"$f":"VLOOKUP(B250,'LOC FINAL with new Themes'!A:M,13,0)","v":"M "}]
["NTAD","NTAD","NTAD","NTAD","Transportation ","DOT-BTS","Robert Monniere","robert.monniere@dot.gov",{"$f":"VLOOKUP(B251,'LOC FINAL with new Themes'!A:M,7,0)","v":0},{"$f":"VLOOKUP(B251,'LOC FINAL with new Themes'!A:M,8,0)","v":0},{"$f":"VLOOKUP(B251,'LOC FINAL with new Themes'!A:M,9,0)","v":0},{"$f":"VLOOKUP(B251,'LOC FINAL with new Themes'!A:M,10,0)","v":0},{"$f":"VLOOKUP(B251,'LOC FINAL with new Themes'!A:M,11,0)","v":0},{"$f":"VLOOKUP(B251,'LOC FINAL with new Themes'!A:M,12,0)","v":0},{"$f":"VLOOKUP(B251,'LOC FINAL with new Themes'!A:M,13,0)","v":0}]
[null,null,"NTAD (airports)","NTAD (airports)","Transportation ","DOT-BTS"]
[null,null,"NTAD (Rail)","NTAD (Rail)","Transportation ","DOT-BTS"]
["NTAD (TransitLines) ","NTAD (TransitLines) ","NTAD (TransitLines) ","NTAD (TransitLines) ","Transportation ","DOT-BTS","Robert Monniere ","robert.monniere@dot.gov \n",{"$f":"VLOOKUP(B254,'LOC FINAL with new Themes'!A:M,7,0)","v":0},{"$f":"VLOOKUP(B254,'LOC FINAL with new Themes'!A:M,8,0)","v":0},{"$f":"VLOOKUP(B254,'LOC FINAL with new Themes'!A:M,9,0)","v":0},{"$f":"VLOOKUP(B254,'LOC FINAL with new Themes'!A:M,10,0)","v":0},{"$f":"VLOOKUP(B254,'LOC FINAL with new Themes'!A:M,11,0)","v":0},{"$f":"VLOOKUP(B254,'LOC FINAL with new Themes'!A:M,12,0)","v":0},{"$f":"VLOOKUP(B254,'LOC FINAL with new Themes'!A:M,13,0)","v":0}]
["NTAD (TransitStation) ","NTAD (TransitStation) ","NTAD (TransitStation) ","NTAD (TransitStation) ","Transportation ","DOT-BTS","Robert Monniere ","robert.monniere@dot.gov ",{"$f":"VLOOKUP(B255,'LOC FINAL with new Themes'!A:M,7,0)","v":0},{"$f":"VLOOKUP(B255,'LOC FINAL with new Themes'!A:M,8,0)","v":0},{"$f":"VLOOKUP(B255,'LOC FINAL with new Themes'!A:M,9,0)","v":0},{"$f":"VLOOKUP(B255,'LOC FINAL with new Themes'!A:M,10,0)","v":0},{"$f":"VLOOKUP(B255,'LOC FINAL with new Themes'!A:M,11,0)","v":0},{"$f":"VLOOKUP(B255,'LOC FINAL with new Themes'!A:M,12,0)","v":0},{"$f":"VLOOKUP(B255,'LOC FINAL with new Themes'!A:M,13,0)","v":0}]
[null,"Primary and Secondary Roads","Primary and Secondary Roads",{"$f":"IF(C256=0,#REF!,C256)","v":"Primary and Secondary Roads"},"Transportation ","DOC-Census","Jennifer Holland","Jennifer.L.Holland@census.gov",{"$f":"VLOOKUP(B256,'LOC FINAL with new Themes'!A:M,7,0)","v":0},{"$f":"VLOOKUP(B256,'LOC FINAL with new Themes'!A:M,8,0)","v":0},{"$f":"VLOOKUP(B256,'LOC FINAL with new Themes'!A:M,9,0)","v":0},{"$f":"VLOOKUP(B256,'LOC FINAL with new Themes'!A:M,10,0)","v":0},{"$f":"VLOOKUP(B256,'LOC FINAL with new Themes'!A:M,11,0)","v":0},{"$f":"VLOOKUP(B256,'LOC FINAL with new Themes'!A:M,12,0)","v":0},{"$f":"VLOOKUP(B256,'LOC FINAL with new Themes'!A:M,13,0)","v":0}]
[null,"Primary Roads","Primary Roads",{"$f":"IF(C257=0,B257,C257)","v":"Primary Roads"},"Transportation ","DOC-Census","Jennifer Holland","Jennifer.L.Holland@census.gov",{"$f":"VLOOKUP(B257,'LOC FINAL with new Themes'!A:M,7,0)","v":0},{"$f":"VLOOKUP(B257,'LOC FINAL with new Themes'!A:M,8,0)","v":0},{"$f":"VLOOKUP(B257,'LOC FINAL with new Themes'!A:M,9,0)","v":0},{"$f":"VLOOKUP(B257,'LOC FINAL with new Themes'!A:M,10,0)","v":0},{"$f":"VLOOKUP(B257,'LOC FINAL with new Themes'!A:M,11,0)","v":0},{"$f":"VLOOKUP(B257,'LOC FINAL with new Themes'!A:M,12,0)","v":0},{"$f":"VLOOKUP(B257,'LOC FINAL with new Themes'!A:M,13,0)","v":0}]
["TIGER (Roads/Rail)","TIGER (Roads/Rail)",null,{"$f":"IF(C258=0,B258,C258)","v":"TIGER (Roads/Rail)"},"Transportation ","DOC-Census","Randy Fusaro","randy.j.fusaro@census.gov",{"$f":"VLOOKUP(B258,'LOC FINAL with new Themes'!A:M,7,0)","v":0},{"$f":"VLOOKUP(B258,'LOC FINAL with new Themes'!A:M,8,0)","v":0},{"$f":"VLOOKUP(B258,'LOC FINAL with new Themes'!A:M,9,0)","v":0},{"$f":"VLOOKUP(B258,'LOC FINAL with new Themes'!A:M,10,0)","v":0},{"$f":"VLOOKUP(B258,'LOC FINAL with new Themes'!A:M,11,0)","v":0},{"$f":"VLOOKUP(B258,'LOC FINAL with new Themes'!A:M,12,0)","v":0},{"$f":"VLOOKUP(B258,'LOC FINAL with new Themes'!A:M,13,0)","v":0}]
[null,"Traffic Analysis Zone (Census 2000)","Traffic Analysis Zone (Census 2000)",{"$f":"IF(C259=0,B259,C259)","v":"Traffic Analysis Zone (Census 2000)"},"Transportation ","DOC-Census","Jennifer Holland","Jennifer.L.Holland@census.gov",{"$f":"VLOOKUP(B259,'LOC FINAL with new Themes'!A:M,7,0)","v":0},{"$f":"VLOOKUP(B259,'LOC FINAL with new Themes'!A:M,8,0)","v":0},{"$f":"VLOOKUP(B259,'LOC FINAL with new Themes'!A:M,9,0)","v":0},{"$f":"VLOOKUP(B259,'LOC FINAL with new Themes'!A:M,10,0)","v":0},{"$f":"VLOOKUP(B259,'LOC FINAL with new Themes'!A:M,11,0)","v":0},{"$f":"VLOOKUP(B259,'LOC FINAL with new Themes'!A:M,12,0)","v":0},{"$f":"VLOOKUP(B259,'LOC FINAL with new Themes'!A:M,13,0)","v":0}]
[{"$f":"SUBTOTAL(3,A244:A259)","v":7},{"$f":"SUBTOTAL(3,B244:B259)","v":13},{"$f":"SUBTOTAL(3,C244:C259)","v":14},{"$f":"SUBTOTAL(3,D244:D259)","v":16},"Transportation  Count"]
[null,null,"Pipelines",{"$f":"IF(C261=0,B261,C261)","v":"Pipelines"},"Utilities ","DOI-MMS"]
[null,null,"Platforms",{"$f":"IF(C262=0,B262,C262)","v":"Platforms"},"Utilities ","DOI-MMS"]
[{"$f":"SUBTOTAL(3,A261:A262)","v":0},{"$f":"SUBTOTAL(3,B261:B262)","v":0},{"$f":"SUBTOTAL(3,C261:C262)","v":2},{"$f":"SUBTOTAL(3,D261:D262)","v":2},"Utilities  Count"]
[null,"Area Hydrography (2010 Census)","Area Hydrography (2010 Census)",{"$f":"IF(C264=0,B264,C264)","v":"Area Hydrography (2010 Census)"},"Water -- Inland","DOC-Census","Jennifer Holland","Jennifer.L.Holland@census.gov",{"$f":"VLOOKUP(B264,'LOC FINAL with new Themes'!A:M,7,0)","v":0},{"$f":"VLOOKUP(B264,'LOC FINAL with new Themes'!A:M,8,0)","v":0},{"$f":"VLOOKUP(B264,'LOC FINAL with new Themes'!A:M,9,0)","v":0},{"$f":"VLOOKUP(B264,'LOC FINAL with new Themes'!A:M,10,0)","v":0},{"$f":"VLOOKUP(B264,'LOC FINAL with new Themes'!A:M,11,0)","v":0},{"$f":"VLOOKUP(B264,'LOC FINAL with new Themes'!A:M,12,0)","v":0},{"$f":"VLOOKUP(B264,'LOC FINAL with new Themes'!A:M,13,0)","v":0}]
[null,"Linear Water Features","Linear Water Features","Linear Water Features","Water -- Inland","DOC-Census","Jennifer Holland","Jennifer.L.Holland@census.gov",{"$f":"VLOOKUP(B265,'LOC FINAL with new Themes'!A:M,7,0)","v":0},{"$f":"VLOOKUP(B265,'LOC FINAL with new Themes'!A:M,8,0)","v":0},{"$f":"VLOOKUP(B265,'LOC FINAL with new Themes'!A:M,9,0)","v":0},{"$f":"VLOOKUP(B265,'LOC FINAL with new Themes'!A:M,10,0)","v":0},{"$f":"VLOOKUP(B265,'LOC FINAL with new Themes'!A:M,11,0)","v":0},{"$f":"VLOOKUP(B265,'LOC FINAL with new Themes'!A:M,12,0)","v":0},{"$f":"VLOOKUP(B265,'LOC FINAL with new Themes'!A:M,13,0)","v":0}]
["National Hydrography Data Set","National Hydrography Dataset","National Hydrography Dataset - National Map","National Hydrography Dataset - National Map","Water -- Inland","DOI-USGS","Jeff Simley","jdsimley@usgs.gov",{"$f":"VLOOKUP(B266,'LOC FINAL with new Themes'!A:M,7,0)","v":0},{"$f":"VLOOKUP(B266,'LOC FINAL with new Themes'!A:M,8,0)","v":0},{"$f":"VLOOKUP(B266,'LOC FINAL with new Themes'!A:M,9,0)","v":0},{"$f":"VLOOKUP(B266,'LOC FINAL with new Themes'!A:M,10,0)","v":0},{"$f":"VLOOKUP(B266,'LOC FINAL with new Themes'!A:M,11,0)","v":0},{"$f":"VLOOKUP(B266,'LOC FINAL with new Themes'!A:M,12,0)","v":0},{"$f":"VLOOKUP(B266,'LOC FINAL with new Themes'!A:M,13,0)","v":0}]
["National Inventory of Dams (NID)","National Inventory of Dams (NID)","National Inventory of Dams (NID)","National Inventory of Dams (NID)","Water -- Inland","DOD-USACE","Rebecca Ragon","Rebecca.Ragon@usace.army.mil ",{"$f":"VLOOKUP(B267,'LOC FINAL with new Themes'!A:M,7,0)","v":"One single data set"},{"$f":"VLOOKUP(B267,'LOC FINAL with new Themes'!A:M,8,0)","v":"Yes"},{"$f":"VLOOKUP(B267,'LOC FINAL with new Themes'!A:M,9,0)","v":"Yes"},{"$f":"VLOOKUP(B267,'LOC FINAL with new Themes'!A:M,10,0)","v":"Usually every 2 years"},{"$f":"VLOOKUP(B267,'LOC FINAL with new Themes'!A:M,11,0)","v":"Because the NID is updated every 2 years, we do have archived databased datig back to 1994."},{"$f":"VLOOKUP(B267,'LOC FINAL with new Themes'!A:M,12,0)","v":"The official name is National Inventory of Dams (NID) but I have seen the database referenced as the National Dam Inventory"},{"$f":"VLOOKUP(B267,'LOC FINAL with new Themes'!A:M,13,0)","v":"S"}]
["National Levee Database (NLD)","National Levee Database (NLD)","National Levee Database (NLD)","National Levee Database (NLD)","Water -- Inland","DOD-USACE","Bryan Baker","Bryan.E.Baker@usace.army.mil",{"$f":"VLOOKUP(B268,'LOC FINAL with new Themes'!A:M,7,0)","v":0},{"$f":"VLOOKUP(B268,'LOC FINAL with new Themes'!A:M,8,0)","v":0},{"$f":"VLOOKUP(B268,'LOC FINAL with new Themes'!A:M,9,0)","v":0},{"$f":"VLOOKUP(B268,'LOC FINAL with new Themes'!A:M,10,0)","v":0},{"$f":"VLOOKUP(B268,'LOC FINAL with new Themes'!A:M,11,0)","v":0},{"$f":"VLOOKUP(B268,'LOC FINAL with new Themes'!A:M,12,0)","v":0},{"$f":"VLOOKUP(B268,'LOC FINAL with new Themes'!A:M,13,0)","v":0}]
[null,null,"National Water Information System (NWIS)- Stream Gage Network","National Water Information System (NWIS)- Stream Gage Network","Water -- Inland","DOI-USGS"]
[null,null,"National Water Information System (NWIS)- Water Quality Monitoring Stations","National Water Information System (NWIS)- Water Quality Monitoring Stations","Water -- Inland","DOI-USGS"]
["National Wetlands Inventory (NWI) ","National Wetlands Inventory (NWI) ","National Wetlands Inventory (NWI) ","National Wetlands Inventory (NWI) ","Water -- Inland","DOI-FWS","Tom Dahl  ","tom_dahl@fws.gov\n",{"$f":"VLOOKUP(B271,'LOC FINAL with new Themes'!A:M,7,0)","v":0},{"$f":"VLOOKUP(B271,'LOC FINAL with new Themes'!A:M,8,0)","v":0},{"$f":"VLOOKUP(B271,'LOC FINAL with new Themes'!A:M,9,0)","v":0},{"$f":"VLOOKUP(B271,'LOC FINAL with new Themes'!A:M,10,0)","v":0},{"$f":"VLOOKUP(B271,'LOC FINAL with new Themes'!A:M,11,0)","v":0},{"$f":"VLOOKUP(B271,'LOC FINAL with new Themes'!A:M,12,0)","v":0},{"$f":"VLOOKUP(B271,'LOC FINAL with new Themes'!A:M,13,0)","v":0}]
["Nautical charts","Nautical Charts",null,"Nautical Charts","Water -- Inland",null,null,null,{"$f":"VLOOKUP(B272,'LOC FINAL with new Themes'!A:M,7,0)","v":0},{"$f":"VLOOKUP(B272,'LOC FINAL with new Themes'!A:M,8,0)","v":0},{"$f":"VLOOKUP(B272,'LOC FINAL with new Themes'!A:M,9,0)","v":0},{"$f":"VLOOKUP(B272,'LOC FINAL with new Themes'!A:M,10,0)","v":0},{"$f":"VLOOKUP(B272,'LOC FINAL with new Themes'!A:M,11,0)","v":0},{"$f":"VLOOKUP(B272,'LOC FINAL with new Themes'!A:M,12,0)","v":0},{"$f":"VLOOKUP(B272,'LOC FINAL with new Themes'!A:M,13,0)","v":0}]
["NWIS & STORET","NWIS & STORET",null,"NWIS & STORET","Water -- Inland",null,"EGIM",null,{"$f":"VLOOKUP(B273,'LOC FINAL with new Themes'!A:M,7,0)","v":0},{"$f":"VLOOKUP(B273,'LOC FINAL with new Themes'!A:M,8,0)","v":0},{"$f":"VLOOKUP(B273,'LOC FINAL with new Themes'!A:M,9,0)","v":0},{"$f":"VLOOKUP(B273,'LOC FINAL with new Themes'!A:M,10,0)","v":0},{"$f":"VLOOKUP(B273,'LOC FINAL with new Themes'!A:M,11,0)","v":0},{"$f":"VLOOKUP(B273,'LOC FINAL with new Themes'!A:M,12,0)","v":0},{"$f":"VLOOKUP(B273,'LOC FINAL with new Themes'!A:M,13,0)","v":0}]
["Shore and sea boundaries","Shore and sea boundaries",null,"Shore and sea boundaries","Water -- Inland",null,"EGIM",null,{"$f":"VLOOKUP(B274,'LOC FINAL with new Themes'!A:M,7,0)","v":0},{"$f":"VLOOKUP(B274,'LOC FINAL with new Themes'!A:M,8,0)","v":0},{"$f":"VLOOKUP(B274,'LOC FINAL with new Themes'!A:M,9,0)","v":0},{"$f":"VLOOKUP(B274,'LOC FINAL with new Themes'!A:M,10,0)","v":0},{"$f":"VLOOKUP(B274,'LOC FINAL with new Themes'!A:M,11,0)","v":0},{"$f":"VLOOKUP(B274,'LOC FINAL with new Themes'!A:M,12,0)","v":0},{"$f":"VLOOKUP(B274,'LOC FINAL with new Themes'!A:M,13,0)","v":0}]
[null,"Topological Faces-Area Hydrography Relationship File","Topological Faces-Area Hydrography Relationship File","Topological Faces-Area Hydrography Relationship File","Water -- Inland","DOC-Census","Jennifer Holland","Jennifer.L.Holland@census.gov",{"$f":"VLOOKUP(B275,'LOC FINAL with new Themes'!A:M,7,0)","v":0},{"$f":"VLOOKUP(B275,'LOC FINAL with new Themes'!A:M,8,0)","v":0},{"$f":"VLOOKUP(B275,'LOC FINAL with new Themes'!A:M,9,0)","v":0},{"$f":"VLOOKUP(B275,'LOC FINAL with new Themes'!A:M,10,0)","v":0},{"$f":"VLOOKUP(B275,'LOC FINAL with new Themes'!A:M,11,0)","v":0},{"$f":"VLOOKUP(B275,'LOC FINAL with new Themes'!A:M,12,0)","v":0},{"$f":"VLOOKUP(B275,'LOC FINAL with new Themes'!A:M,13,0)","v":0}]
["Watershed Boundary Data Set (WBD)  ","Watershed Boundary Dataset (WBD)  ","Watershed Boundary Dataset (WBD)  ","Watershed Boundary Dataset (WBD)  ","Water -- Inland","DOI-USGS","Karen Hanson","khanson@usgs.gov",{"$f":"VLOOKUP(B276,'LOC FINAL with new Themes'!A:M,7,0)","v":"one set with nested hierarchy of six different levels within it (regions, subdivided into four, six and twelve digits), POC and data manager; continually updated; co-managed with NRCS and they archive it; USGS in Denver will serve it; All transactions are archived in versions in the database as they happen. Data from any moment in time can be captured with a simple query. The database is replicated daily to Rolla, MO servers. The database is stored on a SAN with three tier redundancy.All changes to the database are stored on separate disks and once they reach a certain size, they are copied over to a server to be written to tape. Weekly, the entire database (NHD, with WBD) is written to tape.Monthly, the tapes are taken off site for storage."},{"$f":"VLOOKUP(B276,'LOC FINAL with new Themes'!A:M,8,0)","v":0},{"$f":"VLOOKUP(B276,'LOC FINAL with new Themes'!A:M,9,0)","v":0},{"$f":"VLOOKUP(B276,'LOC FINAL with new Themes'!A:M,10,0)","v":0},{"$f":"VLOOKUP(B276,'LOC FINAL with new Themes'!A:M,11,0)","v":0},{"$f":"VLOOKUP(B276,'LOC FINAL with new Themes'!A:M,12,0)","v":0},{"$f":"VLOOKUP(B276,'LOC FINAL with new Themes'!A:M,13,0)","v":"S"}]
["Watershed Boundary Data Set (WBD)  ","Watershed Boundary Dataset (WBD)  ","Watershed Boundary Dataset (WBD)  ","Watershed Boundary Dataset (WBD)  ","Water -- Inland","DOI-USGS","Karen Hanson","khanson@usgs.gov",{"$f":"VLOOKUP(B277,'LOC FINAL with new Themes'!A:M,7,0)","v":"one set with nested hierarchy of six different levels within it (regions, subdivided into four, six and twelve digits), POC and data manager; continually updated; co-managed with NRCS and they archive it; USGS in Denver will serve it; All transactions are archived in versions in the database as they happen. Data from any moment in time can be captured with a simple query. The database is replicated daily to Rolla, MO servers. The database is stored on a SAN with three tier redundancy.All changes to the database are stored on separate disks and once they reach a certain size, they are copied over to a server to be written to tape. Weekly, the entire database (NHD, with WBD) is written to tape.Monthly, the tapes are taken off site for storage."},{"$f":"VLOOKUP(B277,'LOC FINAL with new Themes'!A:M,8,0)","v":0},{"$f":"VLOOKUP(B277,'LOC FINAL with new Themes'!A:M,9,0)","v":0},{"$f":"VLOOKUP(B277,'LOC FINAL with new Themes'!A:M,10,0)","v":0},{"$f":"VLOOKUP(B277,'LOC FINAL with new Themes'!A:M,11,0)","v":0},{"$f":"VLOOKUP(B277,'LOC FINAL with new Themes'!A:M,12,0)","v":0},{"$f":"VLOOKUP(B277,'LOC FINAL with new Themes'!A:M,13,0)","v":"S"}]
[{"$f":"SUBTOTAL(3,A264:A277)","v":9},{"$f":"SUBTOTAL(3,B264:B277)","v":12},{"$f":"SUBTOTAL(3,C264:C277)","v":11},{"$f":"SUBTOTAL(3,D264:D277)","v":14},"Water -- Inland Count"]
[null,null,"Coastal Barrier Resource System",{"$f":"IF(C279=0,B279,C279)","v":"Coastal Barrier Resource System"},"Water -- Oceans and Coasts ","DOI-FWS"]
[null,null,"Coastal Change Analysis Program (C-CAP) Land Cover and Land Change Imagery","Coastal Change Analysis Program (C-CAP) Land Cover and Land Change Imagery","Water -- Oceans and Coasts ","DOC-NOAA"]
["Contiguous Zone","Contiguous Zone",null,"Contiguous Zone","Water -- Oceans and Coasts ","DOC-NOAA","Meredith Westington","meredith.westington@noaa.gov",{"$f":"VLOOKUP(B281,'LOC FINAL with new Themes'!A:M,7,0)","v":0},{"$f":"VLOOKUP(B281,'LOC FINAL with new Themes'!A:M,8,0)","v":0},{"$f":"VLOOKUP(B281,'LOC FINAL with new Themes'!A:M,9,0)","v":0},{"$f":"VLOOKUP(B281,'LOC FINAL with new Themes'!A:M,10,0)","v":"- We do also add historical dates, if that is of interest."},{"$f":"VLOOKUP(B281,'LOC FINAL with new Themes'!A:M,11,0)","v":0},{"$f":"VLOOKUP(B281,'LOC FINAL with new Themes'!A:M,12,0)","v":0},{"$f":"VLOOKUP(B281,'LOC FINAL with new Themes'!A:M,13,0)","v":0}]
["Continental Shelf Boundary Data","Continental Shelf Boundary Data","Continental Shelf Boundary Data","Continental Shelf Boundary Data","Water -- Oceans and Coasts ","DOI-MMS","James Fulmer","james.s.fulmer@mms.gov",{"$f":"VLOOKUP(B282,'LOC FINAL with new Themes'!A:M,7,0)","v":"undeliverable email- neeed to identify new contact"},{"$f":"VLOOKUP(B282,'LOC FINAL with new Themes'!A:M,8,0)","v":0},{"$f":"VLOOKUP(B282,'LOC FINAL with new Themes'!A:M,9,0)","v":0},{"$f":"VLOOKUP(B282,'LOC FINAL with new Themes'!A:M,10,0)","v":0},{"$f":"VLOOKUP(B282,'LOC FINAL with new Themes'!A:M,11,0)","v":0},{"$f":"VLOOKUP(B282,'LOC FINAL with new Themes'!A:M,12,0)","v":0},{"$f":"VLOOKUP(B282,'LOC FINAL with new Themes'!A:M,13,0)","v":0}]
["Exclusive Economic Zone","Exclusive Economic Zone",null,"Exclusive Economic Zone","Water -- Oceans and Coasts ","DOC-NOAA","Meredith Westington","meredith.westington@noaa.gov",{"$f":"VLOOKUP(B283,'LOC FINAL with new Themes'!A:M,7,0)","v":0},{"$f":"VLOOKUP(B283,'LOC FINAL with new Themes'!A:M,8,0)","v":0},{"$f":"VLOOKUP(B283,'LOC FINAL with new Themes'!A:M,9,0)","v":0},{"$f":"VLOOKUP(B283,'LOC FINAL with new Themes'!A:M,10,0)","v":0},{"$f":"VLOOKUP(B283,'LOC FINAL with new Themes'!A:M,11,0)","v":0},{"$f":"VLOOKUP(B283,'LOC FINAL with new Themes'!A:M,12,0)","v":0},{"$f":"VLOOKUP(B283,'LOC FINAL with new Themes'!A:M,13,0)","v":0}]
[null,null,"National Data Buoy Center (NDBC) Recent and Historical Data","National Data Buoy Center (NDBC) Recent and Historical Data","Water -- Oceans and Coasts ","DOC-NOAA"]
["NOAA Composite Shoreline","NOAA Composite Shoreline",null,"NOAA Composite Shoreline","Water -- Oceans and Coasts ","DOC-NOAA","Tara Miller","Tara.Miller@noaa.gov",{"$f":"VLOOKUP(B285,'LOC FINAL with new Themes'!A:M,7,0)","v":0},{"$f":"VLOOKUP(B285,'LOC FINAL with new Themes'!A:M,8,0)","v":0},{"$f":"VLOOKUP(B285,'LOC FINAL with new Themes'!A:M,9,0)","v":0},{"$f":"VLOOKUP(B285,'LOC FINAL with new Themes'!A:M,10,0)","v":0},{"$f":"VLOOKUP(B285,'LOC FINAL with new Themes'!A:M,11,0)","v":0},{"$f":"VLOOKUP(B285,'LOC FINAL with new Themes'!A:M,12,0)","v":0},{"$f":"VLOOKUP(B285,'LOC FINAL with new Themes'!A:M,13,0)","v":0}]
["NOAA Extracted Vector Shoreline","NOAA Extracted Vector Shoreline",null,"NOAA Extracted Vector Shoreline","Water -- Oceans and Coasts ","DOC-NOAA","Matt Austin","Matthew.Austin@noaa.gov",{"$f":"VLOOKUP(B286,'LOC FINAL with new Themes'!A:M,7,0)","v":0},{"$f":"VLOOKUP(B286,'LOC FINAL with new Themes'!A:M,8,0)","v":0},{"$f":"VLOOKUP(B286,'LOC FINAL with new Themes'!A:M,9,0)","v":0},{"$f":"VLOOKUP(B286,'LOC FINAL with new Themes'!A:M,10,0)","v":0},{"$f":"VLOOKUP(B286,'LOC FINAL with new Themes'!A:M,11,0)","v":0},{"$f":"VLOOKUP(B286,'LOC FINAL with new Themes'!A:M,12,0)","v":0},{"$f":"VLOOKUP(B286,'LOC FINAL with new Themes'!A:M,13,0)","v":0}]
["NOAA Medium Resolution Shoreline","NOAA Medium Resolution Shoreline",null,"NOAA Medium Resolution Shoreline","Water -- Oceans and Coasts ","DOC-NOAA","Robert Wilson","Robert.Wilson@noaa.gov",{"$f":"VLOOKUP(B287,'LOC FINAL with new Themes'!A:M,7,0)","v":0},{"$f":"VLOOKUP(B287,'LOC FINAL with new Themes'!A:M,8,0)","v":0},{"$f":"VLOOKUP(B287,'LOC FINAL with new Themes'!A:M,9,0)","v":0},{"$f":"VLOOKUP(B287,'LOC FINAL with new Themes'!A:M,10,0)","v":0},{"$f":"VLOOKUP(B287,'LOC FINAL with new Themes'!A:M,11,0)","v":0},{"$f":"VLOOKUP(B287,'LOC FINAL with new Themes'!A:M,12,0)","v":0},{"$f":"VLOOKUP(B287,'LOC FINAL with new Themes'!A:M,13,0)","v":0}]
[null,null,"NOAA National Shoreline","NOAA National Shoreline","Water -- Oceans and Coasts ","DOC-NOAA","Doug Graham","Doug.Graham@noaa.gov"]
["NOAA National Shoreline","NOAA National Shoreline",null,"NOAA National Shoreline","Water -- Oceans and Coasts ","DOC-NOAA","Doug Graham","Doug.Graham@noaa.gov",{"$f":"VLOOKUP(B289,'LOC FINAL with new Themes'!A:M,7,0)","v":"1,665 shoreline projects (data sets)"},{"$f":"VLOOKUP(B289,'LOC FINAL with new Themes'!A:M,8,0)","v":"Yes"},{"$f":"VLOOKUP(B289,'LOC FINAL with new Themes'!A:M,9,0)","v":"Yes"},{"$f":"VLOOKUP(B289,'LOC FINAL with new Themes'!A:M,10,0)","v":"    There are historical and contemporary data set updates to the NOAA Shoreline Data Explorer application.  The historical data sets are from a data rescue project called Climate Data Modernization Program.  These projects would be loaded in bulk batches every few months.  The funding for this program was recently terminated.  The contemporary data sets are our current shoreline updates to the NOAA National Shoreline.  These projects are uploaded when completed which vary in numbers but within the last twelve months there were over 30 contemporary shoreline survey projects loaded."},{"$f":"VLOOKUP(B289,'LOC FINAL with new Themes'!A:M,11,0)","v":"The National Geodetic Survey performs data base backs ups including the NGS Shoreline Data Base.  Currently there is no archived copy of the NGS Shoreline Data Base.   I believe the backups occur every couple weeks and these backups are not easily accessible."},{"$f":"VLOOKUP(B289,'LOC FINAL with new Themes'!A:M,12,0)","v":"The data set as a whole is referenced as the \"National Shoreline\".  This is composed of individual contemporary or historical data sets including GCs, DMs, TP-Sheets, and T-Sheets."},{"$f":"VLOOKUP(B289,'LOC FINAL with new Themes'!A:M,13,0)","v":"M "}]
["NOAA Nautical Charts","NOAA Nautical Charts","NOAA's Nautical Chart Products","NOAA's Nautical Chart Products","Water -- Oceans and Coasts ","DOC-NOAA","John Lowell","John.Lowell@noaa.gov",{"$f":"VLOOKUP(B290,'LOC FINAL with new Themes'!A:M,7,0)","v":0},{"$f":"VLOOKUP(B290,'LOC FINAL with new Themes'!A:M,8,0)","v":0},{"$f":"VLOOKUP(B290,'LOC FINAL with new Themes'!A:M,9,0)","v":0},{"$f":"VLOOKUP(B290,'LOC FINAL with new Themes'!A:M,10,0)","v":0},{"$f":"VLOOKUP(B290,'LOC FINAL with new Themes'!A:M,11,0)","v":0},{"$f":"VLOOKUP(B290,'LOC FINAL with new Themes'!A:M,12,0)","v":0},{"$f":"VLOOKUP(B290,'LOC FINAL with new Themes'!A:M,13,0)","v":0}]
[null,null,"Non-Projected Boundaries","Non-Projected Boundaries","Water -- Oceans and Coasts ","DOI-MMS"]
[null,null,"Projected Boundaries","Projected Boundaries","Water -- Oceans and Coasts ","DOI-MMS"]
["Territorial Sea","Territorial Sea",null,"Territorial Sea","Water -- Oceans and Coasts ","DOC-NOAA","Meredith Westington","meredith.westington@noaa.gov",{"$f":"VLOOKUP(B293,'LOC FINAL with new Themes'!A:M,7,0)","v":"    National-scale maritime limits/boundaries are available as separate data layers or as a packaged bundle."},{"$f":"VLOOKUP(B293,'LOC FINAL with new Themes'!A:M,8,0)","v":0},{"$f":"VLOOKUP(B293,'LOC FINAL with new Themes'!A:M,9,0)","v":0},{"$f":"VLOOKUP(B293,'LOC FINAL with new Themes'!A:M,10,0)","v":0},{"$f":"VLOOKUP(B293,'LOC FINAL with new Themes'!A:M,11,0)","v":0},{"$f":"VLOOKUP(B293,'LOC FINAL with new Themes'!A:M,12,0)","v":0},{"$f":"VLOOKUP(B293,'LOC FINAL with new Themes'!A:M,13,0)","v":0}]
[null,null,"U.S. Marine Protected Areas Boundaries","U.S. Marine Protected Areas Boundaries","Water -- Oceans and Coasts ","DOC-NOAA"]
[null,null,"U.S. Maritime Zones/Boundaries","U.S. Maritime Zones/Boundaries","Water -- Oceans and Coasts ","DOC-NOAA"]
[{"$f":"SUBTOTAL(3,A279:A295)","v":9},{"$f":"SUBTOTAL(3,B279:B295)","v":9},{"$f":"SUBTOTAL(3,C279:C295)","v":10},{"$f":"SUBTOTAL(3,D279:D295)","v":17},"Water -- Oceans and Coasts  Count"]
[{"$f":"SUBTOTAL(3,A2:A295)","v":134},{"$f":"SUBTOTAL(3,B2:B295)","v":205},{"$f":"SUBTOTAL(3,C2:C295)","v":200},{"$f":"SUBTOTAL(3,D2:D295)","v":276},"Grand Count"]

{"sheet":"LOC CENSUS FINAL 10-2011","index":5,"n_rows":76,"n_cols":13,"rows_kept":76,"cut":false,"hidden":true,"merged":[[3,0,3,2],[3,6,3,8]]}
[null,null,null,"RESPONDING AGENCY: US Census Bureau",{"$nulls":8},"Baseline/Maritime Zones"]
[{"$nulls":7},"Key",{"$nulls":4},"Biological Resources"]
[{"$nulls":8},"missing information",null,null,null,"Buildings & Facilities"]
["Edited by",{"$nulls":5},"Dataset Manager(s)\n",{"$nulls":5},"Cadastral"]
["Agency","Name ","Email Address","Current A-16 Theme","Dataset(s) (Full dataset description can be viewed by mousing over the cell)","Is this dataset available at Geosptial One Stop (geodata.gov)?","Agency (Taken from dataset manager email)","Name (Submitter can be viewed by mousing over the cell)","Email","Comments",null,null,"Cadastral - Offshore"]
["US Census Bureau","Anne O'Connor","anne.v.o.connor@census.gov","Cultural Demographic Statistics, Governmental Units","American Indian/Alaska Native/Native Hawaiian Area (2010 Census)","Yes","DOC-Census","Jennifer Holland","Jennifer.L.Holland@census.gov",null,null,null,"Climate"]
["US Census Bureau","Anne O'Connor","anne.v.o.connor@census.gov","Cultural Demographic Statistics, Governmental Units","American Indian/Alaska Native/Native Hawaiian Area (2000 Census)","Yes","DOC-Census","Jennifer Holland","Jennifer.L.Holland@census.gov"]
["US Census Bureau","Anne O'Connor","anne.v.o.connor@census.gov","Cultural Demographic Statistics, Governmental Units","American Indian Tribal Subdivision (2010 Census)","Yes","DOC-Census","Jennifer Holland","Jennifer.L.Holland@census.gov"]
["US Census Bureau","Anne O'Connor","anne.v.o.connor@census.gov","Cultural Demographic Statistics, Governmental Units","American Indian Tribal Subdivision (Census 2000)","Yes","DOC-Census","Jennifer Holland","Jennifer.L.Holland@census.gov"]
["US Census Bureau","Anne O'Connor","anne.v.o.connor@census.gov","Cultural Demographic Statistics, Governmental Units","Alaska Native Regional Corporation (2010 Census)","Yes","DOC-Census","Jennifer Holland","Jennifer.L.Holland@census.gov"]
["US Census Bureau","Anne O'Connor","anne.v.o.connor@census.gov","Cultural Demographic Statistics, Governmental Units","Alaska Native Regional Corporation (Census 2000)","Yes","DOC-Census","Jennifer Holland","Jennifer.L.Holland@census.gov"]
["US Census Bureau","Anne O'Connor","anne.v.o.connor@census.gov","Cultural Demographic Statistics","Congressional District (108th)","Yes","DOC-Census","Jennifer Holland","Jennifer.L.Holland@census.gov",null,null,null,"Cultural Demographic Statistics"]
["US Census Bureau","Anne O'Connor","anne.v.o.connor@census.gov","Cultural Demographic Statistics","Congressional District (111th)","Yes","DOC-Census","Jennifer Holland","Jennifer.L.Holland@census.gov"]
["US Census Bureau","Anne O'Connor","anne.v.o.connor@census.gov","Cultural Demographic Statistics, Governmental Units","County and Equivalent (2010 Census)","Yes","DOC-Census","Jennifer Holland","Jennifer.L.Holland@census.gov",null,null,null,"Cultural Resources"]
["US Census Bureau","Anne O'Connor","anne.v.o.connor@census.gov","Cultural Demographic Statistics, Governmental Units","County and Equivalent (Census 2000)","Yes","DOC-Census","Jennifer Holland","Jennifer.L.Holland@census.gov"]
["US Census Bureau","Anne O'Connor","anne.v.o.connor@census.gov","Cultural Demographic Statistics","County Subdivision (2010 Census)","Yes","DOC-Census","Jennifer Holland","Jennifer.L.Holland@census.gov"]
["US Census Bureau","Anne O'Connor","anne.v.o.connor@census.gov","Cultural Demographic Statistics","County Subdivision (Census 2000)","Yes","DOC-Census","Jennifer Holland","Jennifer.L.Holland@census.gov"]
["US Census Bureau","Anne O'Connor","anne.v.o.connor@census.gov","Cultural Demographic Statistics, Governmental Units","Place (2010 Census)","Yes","DOC-Census","Jennifer Holland","Jennifer.L.Holland@census.gov"]
["US Census Bureau","Anne O'Connor","anne.v.o.connor@census.gov","Cultural Demographic Statistics, Governmental Units","Place (Census 2000)","Yes","DOC-Census","Jennifer Holland","Jennifer.L.Holland@census.gov"]
["US Census Bureau","Anne O'Connor","anne.v.o.connor@census.gov","Cultural Demographic Statistics, Governmental Units","Metropolitan Division (2010 Census)","Yes","DOC-Census","Jennifer Holland","Jennifer.L.Holland@census.gov"]
["US Census Bureau","Anne O'Connor","anne.v.o.connor@census.gov","Cultural Demographic Statistics, Governmental Units","Combined New England City and Town Area (2010 Census)","Yes","DOC-Census","Jennifer Holland","Jennifer.L.Holland@census.gov",null,null,null,"Digital Orthoimagery"]
["US Census Bureau","Anne O'Connor","anne.v.o.connor@census.gov","Cultural Demographic Statistics, Governmental Units","New England City and Town Area (2010 Census)","Yes","DOC-Census","Jennifer Holland","Jennifer.L.Holland@census.gov"]
["US Census Bureau","Anne O'Connor","anne.v.o.connor@census.gov","Cultural Demographic Statistics, Governmental Units","New England City and Town Area Division (2010 Census)","Yes","DOC-Census","Jennifer Holland","Jennifer.L.Holland@census.gov"]
["US Census Bureau","Anne O'Connor","anne.v.o.connor@census.gov","Cultural Demographic Statistics, Governmental Units","Consolidated City (2010 Census)","Yes","DOC-Census","Jennifer Holland","Jennifer.L.Holland@census.gov"]
["US Census Bureau","Anne O'Connor","anne.v.o.connor@census.gov","Cultural Demographic Statistics, Governmental Units","Consolidated City (Census 2000)","Yes","DOC-Census","Jennifer Holland","Jennifer.L.Holland@census.gov"]
["US Census Bureau","Anne O'Connor","anne.v.o.connor@census.gov","Cultural Demographic Statistics","Combined Statistical Area (2010 Census)","Yes","DOC-Census","Jennifer Holland","Jennifer.L.Holland@census.gov"]
["US Census Bureau","Anne O'Connor","anne.v.o.connor@census.gov","Cultural Demographic Statistics","Urban Area (Corrected Census 2000)","Yes","DOC-Census","Jennifer Holland","Jennifer.L.Holland@census.gov"]
["US Census Bureau","Anne O'Connor","anne.v.o.connor@census.gov","Cultural Demographic Statistics","Urban Growth Area (2010 Census)","Yes","DOC-Census","Jennifer Holland","Jennifer.L.Holland@census.gov"]
["US Census Bureau","Anne O'Connor","anne.v.o.connor@census.gov","Cultural Demographic Statistics","Urban Growth Area (Census 2000)","Yes","DOC-Census","Jennifer Holland","Jennifer.L.Holland@census.gov"]
["US Census Bureau","Anne O'Connor","anne.v.o.connor@census.gov","Cultural Demographic Statistics","Metropolitan/micropolitan Statistical Area (2010 Census)","Yes","DOC-Census","Jennifer Holland","Jennifer.L.Holland@census.gov",null,null,null,"Earth Cover"]
["US Census Bureau","Anne O'Connor","anne.v.o.connor@census.gov","Cultural Demographic Statistics","Metropolitan Division (2010 Census)","Yes","DOC-Census","Jennifer Holland","Jennifer.L.Holland@census.gov"]
["US Census Bureau","Anne O'Connor","anne.v.o.connor@census.gov","Cultural Demographic Statistics","Elementary School District (2010 Census)","Yes","DOC-Census","Jennifer Holland","Jennifer.L.Holland@census.gov",null,null,null,"Elevation Bathymetric"]
["US Census Bureau","Anne O'Connor","anne.v.o.connor@census.gov","Cultural Demographic Statistics","Elementary School District (Census 2000)","Yes","DOC-Census","Jennifer Holland","Jennifer.L.Holland@census.gov"]
["US Census Bureau","Anne O'Connor","anne.v.o.connor@census.gov","Cultural Demographic Statistics","Secondary School District (2010 Census)","Yes","DOC-Census","Jennifer Holland","Jennifer.L.Holland@census.gov"]
["US Census Bureau","Anne O'Connor","anne.v.o.connor@census.gov","Cultural Demographic Statistics","Secondary School District (Census 2000)","Yes","DOC-Census","Jennifer Holland","Jennifer.L.Holland@census.gov"]
["US Census Bureau","Anne O'Connor","anne.v.o.connor@census.gov","Cultural Demographic Statistics","Unified School District (2010 Census)","Yes","DOC-Census","Jennifer Holland","Jennifer.L.Holland@census.gov"]
["US Census Bureau","Anne O'Connor","anne.v.o.connor@census.gov","Cultural Demographic Statistics","Unified School District (Census 2000)","Yes","DOC-Census","Jennifer Holland","Jennifer.L.Holland@census.gov"]
["US Census Bureau","Anne O'Connor","anne.v.o.connor@census.gov","Cultural Demographic Statistics, Governmental Units","State and Equivalent  (2010 Census)","Yes","DOC-Census","Jennifer Holland","Jennifer.L.Holland@census.gov",null,null,null,"Elevation Terrestrial"]
["US Census Bureau","Anne O'Connor","anne.v.o.connor@census.gov","Cultural Demographic Statistics, Governmental Units","State and Equivalent  (Census 2000)","Yes","DOC-Census","Jennifer Holland","Jennifer.L.Holland@census.gov"]
["US Census Bureau","Anne O'Connor","anne.v.o.connor@census.gov","Cultural Demographic Statistics","State Legislative District (Upper Chamber) (2010 Census)","Yes","DOC-Census","Jennifer Holland","Jennifer.L.Holland@census.gov"]
["US Census Bureau","Anne O'Connor","anne.v.o.connor@census.gov","Cultural Demographic Statistics","State Legislative District (Upper Chamber) (Census 2000)","Yes","DOC-Census","Jennifer Holland","Jennifer.L.Holland@census.gov"]
["US Census Bureau","Anne O'Connor","anne.v.o.connor@census.gov","Cultural Demographic Statistics","State Legislative District (Lower Chamber) (2010 Census)","Yes","DOC-Census","Jennifer Holland","Jennifer.L.Holland@census.gov"]
["US Census Bureau","Anne O'Connor","anne.v.o.connor@census.gov","Cultural Demographic Statistics","State Legislative District (Lower Chamber) (Census 2000)","Yes","DOC-Census","Jennifer Holland","Jennifer.L.Holland@census.gov"]
["US Census Bureau","Anne O'Connor","anne.v.o.connor@census.gov","Cultural Demographic Statistics","Voting District (2010 Census)","Yes","DOC-Census","Jennifer Holland","Jennifer.L.Holland@census.gov",null,null,null,"Geographic Names"]
["US Census Bureau","Anne O'Connor","anne.v.o.connor@census.gov","Cultural Demographic Statistics","Voting District (Census 2000)","Yes","DOC-Census","Jennifer Holland","Jennifer.L.Holland@census.gov"]
["US Census Bureau","Anne O'Connor","anne.v.o.connor@census.gov","Cultural Demographic Statistics","Super Public Use Microdata Area (Census 2000)","Yes","DOC-Census","Jennifer Holland","Jennifer.L.Holland@census.gov"]
["US Census Bureau","Anne O'Connor","anne.v.o.connor@census.gov","Cultural Demographic Statistics","Public Use Microdata Area (Census 2000)","Yes","DOC-Census","Jennifer Holland","Jennifer.L.Holland@census.gov"]
["US Census Bureau","Anne O'Connor","anne.v.o.connor@census.gov","Cultural Demographic Statistics","5-digit ZIP Code Tabulation Area (Census 2000)","Yes","DOC-Census","Jennifer Holland","Jennifer.L.Holland@census.gov"]
["US Census Bureau","Anne O'Connor","anne.v.o.connor@census.gov","Cultural Demographic Statistics","Military Installation","Yes","DOC-Census","Jennifer Holland","Jennifer.L.Holland@census.gov"]
["US Census Bureau","Anne O'Connor","anne.v.o.connor@census.gov","Cultural Demographic Statistics","Block (2010 Census)","Yes","DOC-Census","Jennifer Holland","Jennifer.L.Holland@census.gov"]
["US Census Bureau","Anne O'Connor","anne.v.o.connor@census.gov","Cultural Demographic Statistics","Block (Census 2000)","Yes","DOC-Census","Jennifer Holland","Jennifer.L.Holland@census.gov"]
["US Census Bureau","Anne O'Connor","anne.v.o.connor@census.gov","Cultural Demographic Statistics","Block Group (Census 2000)","Yes","DOC-Census","Jennifer Holland","Jennifer.L.Holland@census.gov"]
[{"$nulls":4},"Block Group (Census 2010)","yes","DOC-Census","Jennifer Holland","Jennifer.L.Holland@census.gov"]
["US Census Bureau","Anne O'Connor","anne.v.o.connor@census.gov","Cultural Demographic Statistics","Census Tract (2010 Census)","Yes","DOC-Census","Jennifer Holland","Jennifer.L.Holland@census.gov"]
["US Census Bureau","Anne O'Connor","anne.v.o.connor@census.gov","Cultural Demographic Statistics","Census Tract (Census 2000)","Yes","DOC-Census","Jennifer Holland","Jennifer.L.Holland@census.gov"]
["US Census Bureau","Anne O'Connor","anne.v.o.connor@census.gov","Cultural Demographic Statistics","Subbarrio (2010 Census)","Yes","DOC-Census","Jennifer Holland","Jennifer.L.Holland@census.gov"]
["US Census Bureau","Anne O'Connor","anne.v.o.connor@census.gov","Cultural Demographic Statistics","Subbarrio (Census 2000)","Yes","DOC-Census","Jennifer Holland","Jennifer.L.Holland@census.gov"]
["US Census Bureau","Anne O'Connor","anne.v.o.connor@census.gov","Transportation","Traffic Analysis Zone (Census 2000)","Yes","DOC-Census","Jennifer Holland","Jennifer.L.Holland@census.gov"]
["US Census Bureau","Anne O'Connor","anne.v.o.connor@census.gov","Cultural Demographic Statistics","ANSI codes for states","Yes","DOC-Census","Jennifer Holland","Jennifer.L.Holland@census.gov"]
["US Census Bureau","Anne O'Connor","anne.v.o.connor@census.gov","Cultural Demographic Statistics","ANSI codes for counties","Yes","DOC-Census","Jennifer Holland","Jennifer.L.Holland@census.gov",null,null,null,"Geologic"]
["US Census Bureau","Anne O'Connor","anne.v.o.connor@census.gov","Cultural Demographic Statistics","ANSI codes for congressional districts","Yes","DOC-Census","Jennifer Holland","Jennifer.L.Holland@census.gov","Comments",null,null,"Governmental Units"]
["US Census Bureau","Anne O'Connor","anne.v.o.connor@census.gov","Cultural Demographic Statistics","ANSI codes for  metro/micropolitan areas","Yes","DOC-Census","Jennifer Holland","Jennifer.L.Holland@census.gov",null,null,null,"Housing"]
["US Census Bureau","Anne O'Connor","anne.v.o.connor@census.gov","Cultural Demographic Statistics","Census 2000 FIPS 55 Codes","Yes","DOC-Census","Jennifer Holland","Jennifer.L.Holland@census.gov"]
["US Census Bureau","Anne O'Connor","anne.v.o.connor@census.gov","Transportation","Primary Roads","Yes","DOC-Census","Jennifer Holland","Jennifer.L.Holland@census.gov",null,null,null,"Offshore Minerals"]
["US Census Bureau","Anne O'Connor","anne.v.o.connor@census.gov","Transportation","Primary and Secondary Roads","Yes","DOC-Census","Jennifer Holland","Jennifer.L.Holland@census.gov",null,null,null,"Outer Continental Shelf"]
["US Census Bureau","Anne O'Connor","anne.v.o.connor@census.gov","Transportation","All Roads","Yes","DOC-Census","Jennifer Holland","Jennifer.L.Holland@census.gov"]
["US Census Bureau","Anne O'Connor","anne.v.o.connor@census.gov","Cultural Demographic Statistics, Governmental Units, Transportation","All Lines (2010 Census)","Yes","DOC-Census","Jennifer Holland","Jennifer.L.Holland@census.gov",null,null,null,"Public Health"]
["US Census Bureau","Anne O'Connor","anne.v.o.connor@census.gov","Hydrography","Area Hydrography (2010 Census)","Yes","DOC-Census","Jennifer Holland","Jennifer.L.Holland@census.gov",null,null,null,"Public Land Conveyance"]
["US Census Bureau","Anne O'Connor","anne.v.o.connor@census.gov","Cultural Resources","Area Landmark (2010 Census)","Yes","DOC-Census","Jennifer Holland","Jennifer.L.Holland@census.gov",null,null,null,"Shoreline"]
["US Census Bureau","Anne O'Connor","anne.v.o.connor@census.gov","Cultural Resources","Point Landmark (2010 Census)","Yes","DOC-Census","Jennifer Holland","Jennifer.L.Holland@census.gov",null,null,null,"Soils "]
["US Census Bureau","Anne O'Connor","anne.v.o.connor@census.gov","Cultural Demographic Statistics","Topological Faces (2010 Census)","Yes","DOC-Census","Jennifer Holland","Jennifer.L.Holland@census.gov",null,null,null,"Transportation"]
["US Census Bureau","Anne O'Connor","anne.v.o.connor@census.gov","Cultural Demographic Statistics","Address Range-Feature Name Relationship File","Yes","DOC-Census","Jennifer Holland","Jennifer.L.Holland@census.gov"]
["US Census Bureau","Anne O'Connor","anne.v.o.connor@census.gov","Cultural Demographic Statistics","Address Ranges Relationship File","Yes","DOC-Census","Jennifer Holland","Jennifer.L.Holland@census.gov"]
["US Census Bureau","Anne O'Connor","anne.v.o.connor@census.gov","Cultural Demographic Statistics","Topological Faces-Area Hydrography Relationship File","Yes","DOC-Census","Jennifer Holland","Jennifer.L.Holland@census.gov"]
["US Census Bureau","Anne O'Connor","anne.v.o.connor@census.gov","Cultural Demographic Statistics","Topological Faces-Area Landmark Relationship File","Yes","DOC-Census","Jennifer Holland","Jennifer.L.Holland@census.gov"]
["US Census Bureau","Anne O'Connor","anne.v.o.connor@census.gov","Hydrography","Linear Water Features","Yes","DOC-Census","Jennifer Holland","Jennifer.L.Holland@census.gov"]

{"sheet":"LOC FINAL 10-2011","index":6,"n_rows":136,"n_cols":12,"rows_kept":136,"cut":false,"hidden":true,"merged":[[0,2,0,4],[0,5,0,10]]}
[null,null,"Dataset Manager(s)\n",null,null,"Dataset Manager(s)\n",{"$nulls":5},"Key"]
["Current A-16 Theme","Dataset(s) (Full dataset description can be viewed by mousing over the cell)","Agency (Taken from dataset manager email)","Name (Submitter can be viewed by mousing over the cell)","Email","Q1 How many data set(s) do you have? It is a single set or multiple sets? ","Q2 Are you a data set manager?","Q3 Are you the POC for transferring the data set and/or for information about the data set?","Q4 How often is the data set updated?","Q5 Is there an archive/backup of the data set or do you maintain an archived copy of it? If yes, how far back do you maintain a copy? Is it easily accessible?","Q6 Does the data set go by a different name or is it referred to internally by another descriptive name?","M\nP\nS"]
["Elevation Terrestrial","133 UA Elevation Data (lidar)","DOD-NGA","Ron Power, NGA","ronald.k.power@nga.mil"]
["Digital Orthoimagery","133 Urban Areas imagery program data","DOD-NGA","William Nellist","William.E.Nellist@nga.mil"]
["Digital Orthoimagery","134 Urban Areas imagery program data","DOI-USGS","George Lee","gylee@usgs.gov"]
["Digital Orthoimagery","ADS40 Hurricane Response 7.5' Quadrangle Mosaics","DOI-USGS","Jim Mauck","jmauck@usgs.gov"]
["Cultural Demographic Statistics, Governmental Units","AIR, ANVSA, Hawaiian Homelands Boundaries","DOC-Census","Randy Fusaro","randy.j.fusaro@census.gov"]
["Cultural Resources","Archeological Sites","DOI-NPS","John Knoerl","john_knoerl@nps.gov","Feature classes of the cultural resource data model (NPS only, other federal agencies handle it as they decide)","don't want a single centralized data set but focusing on standard approach","National Historic Presrevation Act says state historic preservation office has primary oversight (section 110)"]
["Housing","Assisted Housing (census geography or point-based)","HUD","Jon Sperling","jon.sperling@hud.gov"]
["Biological Resources","Biomes, Ecoregions","DOI-USGS","Dan Phillips ","dphillips@usgs.gov"]
["Climate","Blended Sea Surface Temperature","DOC-NOAA","Viva Banzon","Viva.Banzon@noaa.gov"]
["Climate","Climate Datasets ","USDA-NRCS","Jan Curtis","jan.curtis@por.usda.gov","Other climate data acquired from our SNOTEL and SCAN observation networks can be accessed from these links.",{"$nulls":5},"M"]
["Earth Cover","Coastal Change Analysis Program (C-CAP)","DOC-NOAA","Nate Herold","Nate.Herold@noaa.gov","Answer might depend on how we slice and dice it...  C-CAP has up to three separate product lines (regional, high resolution, and a derived forest fragmentation classified data set).  We also have multiple dates of land cover for each of these (which I guess you would probably count).  See the following links (and bullets summarizing) on each.http://www.csc.noaa.gov/landcover\n- Covers CONUS coastal areas.  All areas for 1996, 2001, and 2006.\n- Some select CONUS geographies (WA, DE, MD, and VA) also have a 1992 date.\n- Covers state of Hawaii for 1992, 2001, and 2006.\n- includes individual dates and files highlighting changes between dates.\n\nhttp://www.csc.noaa.gov/digitalcoast/data/forestfrag/index.html\n- Covers CONUS coastal areas.  All areas for 1996, 2001, and 2006.\n- Other dates and geographies not currently included.\n\nhttp://www.csc.noaa.gov/digitalcoast/data/ccaphighres/index.html\n- Covers project level areas (year depends on geography, etc.)\n- Primarily data in the pacific (Hawaii and territories of American Samoa, Guam, and CNMI), as well as the USVIs, Jobos Bay Puerto Rico, and Santa Cruz area in CA.\n \n","Yes","Yes","- The CONUS products are updated approximately every five years (we are currently working on a 2010/2011 data set, to add to the above time series).","Yes.  We maintain and serve all of our data (at above addresses), and archive with NOAA's National Oceanic Data Center (NODC).  We consider the dates listed above as current data sets, as part of the data we produce is tracking and providing change data as well.","Not really...  Maybe the generic coastal land cover.  It is also very closely related and feeds into the National Land Cover Database (NLCD), which is a national land cover product developed by the Multi-Resolution Land Characteristics (MRLC) consortium.  this is an effort lead by the USGS.","M "]
["Offshore Minerals","Coastline Data","DOI-MMS","James Fulmer","james.s.fulmer@mms.gov","undeliverable email- neeed to identify new contact"]
["Soils ","Common Resource Area (CRA)","USDA","Chris W. Smith","Christopherw.Smith@wdc.usda.gov"]
["Cultural Demographic Statistics","Congressional District Boundaries","DOC-Census","Randy Fusaro","randy.j.fusaro@census.gov"]
["Baseline/Maritime Zones","Contiguous Zone","DOC-NOAA","Meredith Westington","meredith.westington@noaa.gov",null,null,null,"- We do also add historical dates, if that is of interest."]
["Offshore Minerals, Outer Continental Shelf","Continental Shelf Boundary Data","DOI-MMS","James Fulmer","james.s.fulmer@mms.gov","undeliverable email- neeed to identify new contact"]
["Governmental Units","County Boundaries"]
["Cultural Demographic Statistics","County, place, MCD Boundaries","DOC-Census","Randy Fusaro","randy.j.fusaro@census.gov"]
["Cultural Resources","Cultural Landscape Boundaries","DOI-NPS","John Knoerl","john_knoerl@nps.gov","Feature classes of the cultural resource data model (NPS only, other federal agencies handle it as they decide)","don't want a single centralized data set but focusing on standard approach"]
["Cultural Resources","Cultural Resource Survey Boundaries","DOI-NPS","John Knoerl","john_knoerl@nps.gov","Feature classes of the cultural resource data model (NPS only, other federal agencies handle it as they decide)","don't want a single centralized data set but focusing on standard approach"]
["Elevation Terrestrial","DEMs - Archive","DOI-USGS","Gayla Evans","gevans@usgs.gov","DEMS update at variable nature; are four data sets based on resolution; this is the POC and data manager; this is the name and maintain three complete with two physically separate on-site and one off-site",{"$nulls":5},"S"]
["Flood Hazard / Floodplain","Digital Flood Insurance Rate Maps (D-FIRM)","DHS-FEMA","Scott McAfee","scott.mcaffee@dhs.gov"]
["Digital Orthoimagery","Digital Orthoimage Quarter Quadrangle (DOQQ) Archive","DOI-USGS",null,null,"DOQQ is static; one data set; this is the POC and data manager. this is the name and maintain three complete with two physically separate on-site and one off-site",{"$nulls":5},"S"]
["Biological Resources","Ecological Services","DOI-USGS","Dan Phillips ","dphillips@usgs.gov"]
["Vegetation","ECOMAP Datasets (Ecological Subregions: Sections and Subsections for the Conterminous United States ) ","USDA-FS","David T. Cleland","dcleland@fs.fed.us","One, single set","Yes","Yes","Maps are updated on a 10-year cycle","The data is housed at and served by the Forest Service geodata portal, and is easily accessible.  The web address is: http://fsgeodata.fs.fed.us/other_resources/ecosubregions.html ","?   Internally, the data is named ECOMAP or the National Hierarchy of Ecological Units. ","S"]
["Digital Orthoimagery","Emergency Response Imagery","DOC-NOAA","Mike Aslaksen","mike.Aslaksen@noaa.gov","20-Multiple      ","No","Yes - email reply from Jon Sellars Jon.Sellars@noaa.gov","- Same for the forest frag.","Our data can be accessed through the following links: http://storms.ngs.noaagov/eri_page/index.html Gulf Oil Spill:\nhttp://hdds.usgs.gov/hdds2/pub/data/disaster/201004_Oilspill_GulfOfMexico/data/AERIAL_NOAA\nhttp://hdds.usgs.gov/hdds2/pub/data/disaster/201004_Oilspill_GulfOfMexico/data/AERIAL_NOAA_MOSAIC  Haiti Earthquake:\nhttp://hdds.usgs.gov/hdds2/pub/data/disaster/201001_Earthquake_Haiti/data/AERIAL_NOAA\nhttp://hdds.usgs.gov/hdds2/pub/data/disaster/201001_Earthquake_Haiti/data/AERIAL_NOAA_ORTHO\nMexico Earthquake:\nhttp://hdds.usgs.gov/hdds2/pub/data/disaster/201004_Earthquake_Mexico/data/AERIAL_NOAA_MOSAIC \n\n","Described by storm name, event or location.","M "]
["Housing","Enterprise Zones, Empowerment Communities, Revitalization Areas, Qualified Census Tracts, etc.  (census geography based)","HUD","Jon Sperling","jon.sperling@hud.gov"]
["Shoreline","Env Sens Index Maps - classified shoreline","DOC-NOAA","Jill Petersen","jill.petersen@noaa.gov","There are approximately 70 different atlases. There are a few that are still not available in a GIS format, (approx 7 of the approx 70!) - these are available as the hard copy product and as PDFs (scanned). The remaining atlases are available in multiple GIS formats - Arc Export files, Geodatabase with an ArcMap map document complete with all relates established and properly symbolized, Shape files with an ArcView 3.x project, a free ESI viewer that allows viewing, queries and printing (in house mapping program and filemaker pro) as well as PDF format and the hard copy product. These can be downloaded from http://response.restoration.noaa.gov/esi_download This page is in progress, but should be complete fairly quickly.\n\n","Yes","Yes ","- High resolution products have no defined update schedule.  TBD by geog/project.","Yes and no. We have archives of all the digital data as well as all the PDFs (scanned or produced with the digital data map comps). Many of the hard copy atlases from the first round of ESI maps were sent to the Library of Commerce. Others I have kept, but no very organized situation. However, we have all of the historic PDFs which are an exact duplicate of the hard copy atlas, so that is something. Historic data is going to be served from the above link as well. That will be added as the current data sets are completed.","ESI is the common abbreviation for these maps. Other than that, Environmental Sensitivity Index Maps, Shoreline Sensitivity maps, Environmental Sensitivity maps..... These maps have the classified shoreline, as well as summaries of biological and human use resource particularly sensitive to oiling. ","M "]
["Biological Resources, Cultural Resources","Environmental Sensitivity Index Maps","DOC-NOAA","Jill Petersen","jill.petersen@noaa.gov","Same as Env Sens Index Maps - classified shoreline",null,null,"- Hawaii is TBD, but most likely will end up being a 10 year update cycle."]
["Marine Boundaries","Estuarine and Marine Reserves","DOC-NOAA","Heather Sagar","Heather.Sagar@noaa.gov"]
["Cultural Resources","Ethnographic Resource Boundaries","DOI-NPS","John Knoerl","john_knoerl@nps.gov","Feature classes of the cultural resource data model (NPS only, other federal agencies handle it as they decide)","don't want a single centralized data set but focusing on standard approach"]
["Baseline/Maritime Zones, Cadastral - Offshore","Exclusive Economic Zone","DOC-NOAA","Meredith Westington","meredith.westington@noaa.gov"]
["Buildings & Facilities","Federal building location point ","GSA","Sandra Downie","sandra.downie@gsa.gov"]
["Buildings & Facilities","Federal building location polygon","GSA","Sandra Downie","sandra.downie@gsa.gov"]
["Buildings & Facilities","Federal land area facility location point","GSA","Sandra Downie","sandra.downie@gsa.gov"]
["Buildings & Facilities","Federal land area facility location polygon","GSA","Sandra Downie","sandra.downie@gsa.gov"]
["Cultural Demographic Statistics","FIPS/ANSI codes for states, counties, congressional districts & metro/micropolitan areas","DOC-Census","Randy Fusaro","randy.j.fusaro@census.gov"]
["Marine Boundaries","Fisheries Closure and Habitat Areas","DOC-NOAA","Heather Sagar","Heather.Sagar@noaa.gov"]
["Earth Cover","GAP Program Dataset","DOI-USGS","Kevin Gergely","gergely@usgs.gov","POC; multiple data sets in single location, building three fundamental data layers, two are national (protected areas, land cover dataset); backup; six months, annually)",{"$nulls":5},"P"]
["Public Land Conveyance","General Land Office","DOI-BLM","Juan Palma","juan_palma@blm.gov"]
["Cadastral","Geographic Coordinate Data Base (GCDB)","DOI-BLM","Don Buhler","don_buhler@blm.gov","every agency has its own database; multiple data sets; standard being advanced and put into practice; federal interest is managed with BLM; state and local are authoritative sets for other lands; ",{"$nulls":5},"M "]
["Climate","Geostationary Operational Environmental Satellite (GOES) data (NCDC)","DOC-NOAA","Nancy Ritchey","Nancy.Ritchey@noaa.gov","Define 'data set'.  Each spacecraft continuously produces a data stream.  There are multiple sets and the total going back to the late 70s or early 80s numbers in the millions","Yes","Yes","Continuously","There are two active archive centers for these data; one here in Asheville, NC and one in Boulder, CO.  These data go back to the late 70s and all data are on line wither on disc or robotic tape storage","Again, define your terms.  For examples see www.class.noaa.gov - Raw data are listed by satellite (GOES or POES) and then be instrument.  Geophysical products are listed by product name."]
["Climate","Global Historical Climate Network (GHCN) daily data (NCDC)","DOC-NOAA","Matt Menne","matthew.menne@noaa.gov"]
["Climate","Global Historical Climate Network (GHCN) monthly data (NCDC)","DOC-NOAA","Jay Lawrimore","Jay.Lawrimore@noaa.gov","It is a single dataset consisting of multiple files. 6 total. 2 for monthly mean temperature (uncorrected and corrected), 2 for monthly maximum temperature, and 2 for monthly minimum temperature. available at http://www.ncdc.noaa.gov/ghcnm/v3.php .","I am head of the branch that developed and updates the dataset.","Byron Gleason (Byron.Gleason@noaa.gov) is the appropriate contact.  ","Daily","The files are time stamped each day they are produced and then stored when the next days run is made. The archived copies are not publicly available but can be retrieved by NCDC staff as needed.","It goes by GHCN-M."]
["Geodetic Control","GNSS Continuously Operating Reference Stations","DOC-NOAA","Giovanni Sella","giovanni.sella@noaa.gov"]
["Geodetic Control","GNSS Orbits","DOC-NOAA","Bill Kass","bill.kass@noaa.gov"]
["Geodetic Control","Gravity and Geoid Datasets","DOC-NOAA","Dan Roman","dan.roman@noaa.gov","Multiple data sets. Most can be located at: http://www.ngs.noaa.gov/GEOID/","Yes -Geoid Team Lead","Definitely POC regarding questions about the dataset. The data are freely available for download on the through the above website. If there are problems, then I also answer questions. We do also have a IT specialist to help with debugging and website maintenance","Models a re*generally* produced every three years. However, it has more to do with when the underlying data change. the hybrid geoids we create draw from leveling and GPS data in the NGS database. Once that has been updated sufficiently, we produce new models. The National Adjustment of 2011 will alter ellipsoidal coordinates for bench marks, hence, there will be a GEOID12.","Most of the files used to make the various models are backed up on our Unix systems. The idea being that we should be able to replicate the models from the same starting data. The final models themselves are backed up in a separate directory. I believe that much of the data posted for use in online servers is also backed up at the NOAA mirror site in Boulder. This last is more a function of the Systems Development Division that maintains our webpages and access to the data.","Pretty much the naming convention has been standardized, and we use it internally and externally the same way.","M "]
["Elevation Terrestrial","GTOPO30","DOI-USGS","Jeff Danielson"," daniels@usgs.gov","GTOPO30 is static; one data set; this is the POC and data manager; this is the name and maintain three complete with two physically separate on-site and one off-site"]
["Biological Resources","Habitats","DOI-USGS","Dan Phillips ","dphillips@usgs.gov","see protected areas and land cover set; vertebrae species of US being developed (not complete for all species they want to include in it.",{"$nulls":5},"M"]
["Cultural Resources","Historic Buildings Boundaries","DOI-NPS","John Knoerl","john_knoerl@nps.gov","Feature classes of the cultural resource data model (NPS only, other federal agencies handle it as they decide)","don't want a single centralized data set but focusing on standard approach"]
["Cultural Resources","Historic Districts Boundaries","DOI-NPS","John Knoerl","john_knoerl@nps.gov","Feature classes of the cultural resource data model (NPS only, other federal agencies handle it as they decide)","don't want a single centralized data set but focusing on standard approach"]
["Cultural Resources","Historic Objects Boundaries","DOI-NPS","John Knoerl","john_knoerl@nps.gov","Feature classes of the cultural resource data model (NPS only, other federal agencies handle it as they decide)","don't want a single centralized data set but focusing on standard approach"]
["Cultural Resources","Historic Structures Boundaries","DOI-NPS","John Knoerl","john_knoerl@nps.gov","Feature classes of the cultural resource data model (NPS only, other federal agencies handle it as they decide)","don't want a single centralized data set but focusing on standard approach",{"$nulls":4},"M "]
["Climate","Hurricane Satellite","DOC-NOAA","Ken Knapp","ken.knapp@noaa.gov"]
["Soils ","Hydric Soils","USDA","Chris W. Smith","Christopherw.Smith@wdc.usda.gov"]
["Elevation Bathymetric, Transportation - Marine","Inland Electronic Navigation Charts (IENC)","DOD-USACE","Joel Schlagel","Joel.D.Schlagel@erdc.usace.army.mil "]
["Climate","Integrated Global Radiosonde Archive (IGRA) upper air data (NCDC)","DOC-NOAA","Imke Durre","imke.durre@noaa.gov"]
["Climate","Integrated Surface Data (ISD) at National Climate Data Center (NCDC) ","DOC-NOAA","Neal Lott","neal.lott@noaa.gov","This is a single data set, developed as an integration of multiple data sets and sources.","I am currently the data set manager jointly with Russel Vose, cc'ed here Russell.Vose@noaa.gov","I am one of the POC's here at NCDC.  We have a User Engagement and Services Branch which handles user inquiries, etc.","It's updated once per day with the most recent data (ie, yesterday's observations).","We have an archive copy and a backup copy.  The period of record of the data is 1900 to present.  It's very easily accessible via multiple services (FTP, GIS, Web Services, etc).","Integrated Surface Data is its name, but is sometimes referred to generically as global hourly surface data."]
["Biological Resources","Invasive Species","DOI-USGS","Dan Phillips ","dphillips@usgs.gov","There are hundreds of datasets that are produced and maintained by the GAP program. Dan is not the data set manager, but I work with the people that maintain and update the datasets and maintains metadata.The data are updated at different intervals, especially now that they have moved more to a regional and national based approach. GAPS data sets presumably archived since 1990s.",{"$nulls":5},"M"]
["Earth Cover","LANDFIRE Dataset"]
["Digital Orthoimagery","Landsat geometric/terrain corrected level 1T","DOI-USGS","Kristi Kline","kkline@usgs.gov","Landsat updates daily; a series of data sets; this is the POC and data manager; this is the name and maintain three complete with two physically separate on-site and one off-site",{"$nulls":5},"S"]
["Soils ","Location of Arable Lands","USDA","Karl Hipple","karl.hipple@lin.usda.gov","undeliverable email- neeed to identify new contact"]
["Federal Land Ownership","LR 2000 - Master Title Plats ","DOI-BLM","Jeff Holdren","jeff_holdren@blm.gov","listing of sales, rents, agricultural disposal and rights of way cases, group of data sets in one system; Kim Burns, division chief; not archived, there is a backup; Denver office handles",{"$nulls":5},"P"]
["Soils ","Major Land Resource Area (MLRA)","USDA","Karl Hipple","karl.hipple@lin.usda.gov","undeliverable email- neeed to identify new contact"]
["Cadastral","Manual of Surveying Instructions, Data Standards","DOI-BLM","Don Buhler","don_buhler@blm.gov"]
["Cultural Demographic Statistics","Metropolitan/micropolitan area boundaries","DOC-Census","Randy Fusaro","randy.j.fusaro@census.gov"]
["Public Land Conveyance","Mineral Estate - Fluids","DOI-BLM","Tim Spisak ","tim_spisak@blm.gov","mineral leasess, mining claims, rights of way, gases (single data set); BLM-managed lands but managed all federal mineral estate (comprehensive for mineraal estate) some electronic and some not",{"$nulls":5},"P"]
["Public Land Conveyance","Mineral Estate - Solids","DOI-BLM","Mitchell Leverette","mitchell_leverette@blm.gov","mineral leasess, mining claims, rights of way, gases (single data set); BLM-managed lands but managed all federal mineral estate (comprehensive for mineral estate) some electronic and some not",{"$nulls":5},"P"]
["Cadastral - Offshore","Multipurpose Marine Cadastre","DOI-MMS","James Fulmer","james.s.fulmer@mms.gov","undeliverable email- neeed to identify new contact"]
["Digital Orthoimagery","National Aerial Photography Program (NAPP) Data Archive","DOI-USGS","Wayne Miller","wamiller@usgs.gov","NAPP is static; one data set; this is the POC and data manager; this is the name and maintain three complete with two physically separate on-site and one off-site ",{"$nulls":5},"S"]
["Digital Orthoimagery","National Agriculture Imagery Program Data","DOI-USGS","Shirley Hall","shirley.hall@wdc.usda.gov","Shirley identified Dan Good as new contact 'daniel.good@wdc.usda.gov' - need to follow up with either or both"]
["Public Health","National Center for Health Statistics (Atlas of US Mortality)","HHS","Gary Anderson","gary.anderson@hhs.gov"]
["Climate","National Climate Data Center","USDA-NRCS","Jan Curtis","jan.curtis@por.usda.gov","administered by NOAA - is there a contact there?"]
["Soils ","National Cooperative Soil Survey (NCSS)","USDA","Paul Benedict","paul.benedict@wdc.usda.gov","We have our Soil Survey Geographic database called SSURGO which is made available through the following sites:\nWeb Soil Survey:    http://websoilsurvey.nrcs.usda.gov/app/\nSoil Data Mart:     http://soildatamart.nrcs.usda.gov/\nSoil Data Access:   http://sdmdataaccess.nrcs.usda.gov\n\nWe also have: \nLab Soil Survey Lab Characterization Data (Point data): http://ssldata.nrcs.usda.gov/ aka NCSS Characterization Database\nSoil Series Classification Database http://soils.usda.gov/technical/classification/scfile/index.html\nU.S. General Soil Map (STATSGO2)\nMajor Land Resource Area (MLRA) http://soils.usda.gov/survey/geography/mlra/\n             Common Resource Areas (CRA) \n\n","? No, I am a Program Manager. Various other people have roles of maintaining the data. ","I am a general information POC for all things soil survey related. For more technical aspects on our data sets a good POC would be David Hoover, National Leader for Soil Business Systems or someone on his staff. His contact number is 402-437-4013 or email at david.hoover@lin.usda.gov. ","Our data sets are constantly being updated by about 1000 soil and plant scientists in several agencies. ","Our data sets are archived, but I don’t know how far back. I will have to get back to you on that. It is my understanding that archived sets are not easily accessible.  We have archive data for SSURGO (Soil Data Warehouse from mid 2000’s or earlier – Jim Fortner or Jennifer Sweet may be able to confirm or provide more detail; We also have archive data for STATSGO (circa 1994;1996) and for MLRA (1978; 2001; 2006) in local holdings.  Not sure about lab data archives, Henry Ferguson or Larry West can confirm.  ","? the Lab Characterization Data is also known as the “NCSS Characterization Database”\nAdded Common Resource Area geographic database (CRA).","P"]
["Flood Hazard / Floodplain","National Flood Hazard Layer (NFHL)","DHS-FEMA","Scott McAfee","scott.mcaffee@dhs.gov"]
["Geologic","National Geologic Data Base","DOI-USGS","David R. Soller","drsoller@usgs.gov"]
["Hydrography","National Hydrography Dataset","DOI-USGS","Jeff Simley","jdsimley@usgs.gov"]
["Hydrography","National Inventory of Dams (NID)","DOD-USACE","Rebecca Ragon","Rebecca.Ragon@usace.army.mil ","One single data set","Yes","Yes","Usually every 2 years","Because the NID is updated every 2 years, we do have archived databased datig back to 1994.","The official name is National Inventory of Dams (NID) but I have seen the database referenced as the National Dam Inventory","S"]
["Earth Cover, Vegetation","National Land Cover Dataset (NLCD)","DOI-USGS","Colin Homer","homer@usgs.gov","The table below summarizes NLCD products available for download from the MRLC website http://www.mrlc.gov/ ","No.  The \"manager\" of the data is Jon Dewitz. \nContact Information -   \nJon Dewitz\ndewitz@usgs.gov\n605-594-2715\nNLCD Quality Supervisor\nUSGS Earth Resources Observation and Science Center (EROS)\nMundt Federal Building\n47914 252nd St.\nSioux Falls, SD 57198\nfax 605-594-6529\n","Joyce Fry is the POC. \nContact information - \nJoyce Fry, Geographer\nUnited States Geological Survey (USGS)\nEarth Resources Observation and  Science (EROS) Center\nMundt Federal Building\n47914 252nd Street\nSioux Falls, South Dakota 57198\n(P)  605.594.2739\n(F)  605.594.6529\n(e)  jfry@usgs.gov \n","Every 5 years","Yes, there is an archive/backup of the dataset through the EROS Long Term Archive (LTA) group.  I will need to get back to if you need additional information regarding the archive process. ","National Land Cover Database or NLCD along with the era number, either 1992 or 2001, or 2006. ","S"]
["Earth Cover, Vegetation","National Land Cover Dataset (NLCD)","USDA-FS","David T. Cleland; Colin Homer","homer@usgs.gov","The table below summarizes NLCD products available for download from the MRLC website http://www.mrlc.gov/ ","No.  The \"manager\" of the data is Jon Dewitz. \nContact Information -   \nJon Dewitz\ndewitz@usgs.gov\n605-594-2715\nNLCD Quality Supervisor\nUSGS Earth Resources Observation and Science Center (EROS)\nMundt Federal Building\n47914 252nd St.\nSioux Falls, SD 57198\nfax 605-594-6529\n","Joyce Fry is the POC. \nContact information - \nJoyce Fry, Geographer\nUnited States Geological Survey (USGS)\nEarth Resources Observation and  Science (EROS) Center\nMundt Federal Building\n47914 252nd Street\nSioux Falls, South Dakota 57198\n(P)  605.594.2739\n(F)  605.594.6529\n(e)  jfry@usgs.gov \n","Every 5 years","Yes, there is an archive/backup of the dataset through the EROS Long Term Archive (LTA) group.  I will need to get back to if you need additional information regarding the archive process. ","National Land Cover Database or NLCD along with the era number, either 1992 or 2001, or 2006. ","S"]
["Hydrography","National Levee Database (NLD)","DOD-USACE","Bryan Baker","Bryan.E.Baker@usace.army.mil"]
["Elevation Terrestrial","National Map  - National Elevation Dataset (NED)","DOI-USGS","Jim Mauck","lyost@usgs.gov"]
["Geographic Names","National Map - Geographic Names Information System (GNIS)","DOI-USGS","Lou Yost","lyost@usgs.gov","single data set; poc, data managers; daily updated; Denver systems people backup and archive; transfer to NARA also; Gaz vector (internal)",{"$nulls":5},"S"]
["Buildings & Facilities","National Map - Structures Dataset","DOI-USGS","Paul Wiese","pmwiese@usgs.gov","National Map updates monthly; a series of data sets; this is the POC and data manager; this is the name and maintain three complete with two physically separate on-site and one off-site",{"$nulls":5},"S"]
["Transportation","National Map - Transportation Dataset","DOI-USGS","Paul Wiese","pmwiese@usgs.gov"]
["Digital Orthoimagery","National Map Orthoimagery Database (TNM Seamless Server) ","DOI-USGS","George Lee","gylee@usgs.gov"]
["Elevation Bathymetric","National Ocean Service (NOS) Bathymetry Warehouse (name subject to change)","DOC-NOAA",{"$nulls":8},"P"]
["Elevation Bathymetric","National Ocean Service (NOS) Hydrographic Data Base (NOSHDB)","DOC-NOAA","Brian Mohr","Brian.Mohr@noaa.gov","I manage several datadatabases/datasets.  They include SURDEX, our database of hydrographic survey outlines(polygons) in a MapInfo platform and  the Bathydatabase which is a collection of our BAGs or Bathymetric Attribution Grid files. ","Yes","Yes","archived at NGDC","Currently these files are being prepped to be pushed into either  a Caris or ESRI database platform.  I also have a shared role in managing our Survey Tracking database called Survey Tracker.  Each is updated weekly, they are backed up by our internal IT staff",null,"M "]
["Offshore Minerals","National Parks Data","DOI-MMS","James Fulmer","james.s.fulmer@mms.gov","undeliverable email- neeed to identify new contact"]
["Digital Orthoimagery","National Resource Inventory Imagery","USDA-WDC","Jerry Harlow","jerry.harlow@wdc.usda.gov","Shirley identified Dan Good as new contact 'daniel.good@wdc.usda.gov' - need to follow up with either or both"]
["Earth Cover","National Standardized Ecosystems Dataset","DOI-USGS","Roger Sayre","rsayre@usgs.gov"]
["Wetlands","National Wetlands Inventory (NWI) ","DOI-FWS","Tom Dahl  ","tom_dahl@fws.gov\n"]
["Hydrography","Nautical Charts"]
["Climate","NEXRAD Level II and III radar data (NCDC)","DOC-NOAA","Steve Del Greco","stephen.a.delgreco@noaa.gov","The NEXRAD datasets for level II and Level III are archived by site.  There are 158 NEXRAD sites with data that goes back to ~ 1994.  See URL http://www.ncdc.noaa.gov/nexradinv/ for NEXRAD web services for ordering data.","I'm the NEXRAD program manager for NCDC.  This also includes other radar networks for example the FAA Terminal Doppler Weather Radar (45 sites).","Yes","NEXRAD Level II and Level III data are ingested at NCDC in near real time (~ 10 second latency).  We make the data available via the web ~ 24 hours after receipt.  The NEXRAD/TDWR data is also available in near real time through data feeds supported by partnerships we have with the University of Oklahoma, Purdue and Education and Research Consortium of the Western Carolinas. ","NEXRAD data is archived and backed up and goes back to ~ 1994 (depends on station).  Data is free of charge and accessible via the URL above","The data set is from the Weather Surveillance Radar 1988 Doppler, but most commonly  know as \"NEXRAD\"  Level II for the base or raw data and Level III for derived products"]
["Geodetic Control","NGS Geodetic Monumented Control ","DOC-NOAA","Jim Tomlin","jim.tomlin@noaa.gov","One set.","Yes","yes","?","The NGS database isn't something that NGS makes available en masse (that would kind of defeat the purpose of having a database), but rather we provide online tools for the public to access the subset of data that they are interested in."]
["Transportation, Transportation - Marine","NOAA Aeronautical Survey","DOC-NOAA","Mark Howard","Mark.Howard@noaa.gov","The NOAA/NGS Aeronautical Survey Program (ASP) provides products and services to the FAA in accordance with an interagency agreement.  The ASP is a reimbursable program that performs work as requested by the Aeronautical Information Services Office (AIS).  The aeronautical surveys we conduct and review provide airport geodetic control, runway, navigational aid, obstruction, an other aeronautical data that is critical to the operation of the National Airspace System. Recently our role, in support of the FAA, has migrated from primarily being a data provider to reviewing survey data collected by third party commerical surveyors. The survey data (collected by NGS or submitted by 3rd party) is considered good as of the date collected.  The surveys are forwarded to the FAA.  The data supports FAA Instrument Approach Procedure development and is also ingested into databases used to update FAA publications. The NGS has been conducting aeronautical surveys for over 7 decades. We have conducted surveys at over 1200 airports.  Each survey is a single data set.  We began storing the survey data (electronically) in a database around 1990 (prior to that it was all paper).  Note that many of these surveys we conducted are not current. The FAA does obtain aeronautical survey data from many different sources. The 3rd party surveys we review is submitted to the FAA. We retreive a copy of the survey data from an FAA portal to perform our reveiw.       ","No, I'm the Program Manager serving as the NGS liason with FAA offices that leverage NGS expertise and capabilities.    ","I could be. We don't have a designated person that performs that function. Being a reimbursable program our tasks are limited to those specified in our interagency agreement, which is limited to providing (transfering) the data sets to the FAA.  We are not involved in the dissemenation or distribution of the product.  In the past, when we were conducting more surveys, we would post the survey data (in UDDF format) to our web site (http://www.ngs.noaa.gov/AERO/UDDFdat.htm).  These survey data sets are still available on our site but we no longer post new surveys to the site.  The data is now either submitted to the FAA Third Party Survey Site (TPSS) or the FAA Airports Surveying GIS (AGIS) Program web site (https://airports-gis.faa.gov/public/index.html).  Both sites require registration.  The data uploaded to the TPSS site is assessable via a public site (https://tpss.faa.gov/tpss/uddfList.jsp).    ","Updates are contigent on NGS receiving a request from the FAA to conduct another survey.  We do not survey airports on a regular cylce.   We use to survey the larger airports (FAA Part 139) every 3-5 years.  With advances in use of GPS naviagtion the FAA's need for aeronautical survey data increased significantly.  They are now developing Approach procedures for many smaller airports (no need to purchase or maintain ground based ILS equipment).    ","Yes, we do have an archive and backup of the surveys we conducted.  Internally we transfer our survey data from our database to differnet environments (photogrammetric workstation, field data logger) via a custom designed ascii text based \"exchange file format\" (EXG). I don't know how easily it would be to make this accessible. I would need to discuss with our database manager.  When ever I ask him a single question he usualy turns around and asks me 10 questions.  The scope of the request would need to be defined. A word of caution.... there is more recent survey data available (from other sources) at many of the airports we have surveyed.  ","The aeronautical data set we forward to the FAA is referred to as a UDDF.... which is really the format of the file the data is transferred in.  The documentation for this file format is available on our web site (http://www.ngs.noaa.gov/AERO/annof_7.htm).  Internally it is the \"exchange file format\" (EXG), but of course our workfoce access the information our database via interactive software.  NGS has also established Primary and Secondary Airport Control Stations at many airports across the country.  This control is tied directly to the National Spatial Reference System (NSRS) and available via the NGS IDB (web site).  They are permanent marks with precisly determined positions and elevations that must meet specific siting, construction, and accuracy requirements. The control stations can be retrieved in a variety of formats.  ","M "]
["Shoreline","NOAA Composite Shoreline","DOC-NOAA","Tara Miller","Tara.Miller@noaa.gov"]
["Elevation Bathymetric","NOAA Estuarine Bathymetry","DOC-NOAA"]
["Shoreline","NOAA Extracted Vector Shoreline","DOC-NOAA","Matt Austin","Matthew.Austin@noaa.gov"]
["Shoreline","NOAA Medium Resolution Shoreline","DOC-NOAA","Robert Wilson","Robert.Wilson@noaa.gov"]
["Shoreline","NOAA National Shoreline","DOC-NOAA","Doug Graham","Doug.Graham@noaa.gov","1,665 shoreline projects (data sets)","Yes","Yes","    There are historical and contemporary data set updates to the NOAA Shoreline Data Explorer application.  The historical data sets are from a data rescue project called Climate Data Modernization Program.  These projects would be loaded in bulk batches every few months.  The funding for this program was recently terminated.  The contemporary data sets are our current shoreline updates to the NOAA National Shoreline.  These projects are uploaded when completed which vary in numbers but within the last twelve months there were over 30 contemporary shoreline survey projects loaded.","The National Geodetic Survey performs data base backs ups including the NGS Shoreline Data Base.  Currently there is no archived copy of the NGS Shoreline Data Base.   I believe the backups occur every couple weeks and these backups are not easily accessible.","The data set as a whole is referenced as the \"National Shoreline\".  This is composed of individual contemporary or historical data sets including GCs, DMs, TP-Sheets, and T-Sheets.","M "]
["Baseline/Maritime Zones, International Boundaries, Shoreline, Transportation - Marine","NOAA Nautical Charts","DOC-NOAA","John Lowell","John.Lowell@noaa.gov"]
["Climate","North American Regional Reanalysis (NARR) model data (NCDC)","DOC-NOAA","Dan Swank","Dan.Swank@noaa.gov","The NARR natively contains 2x sub sets) 3 hr time series / monthly averages.","Depends on the exact definition: there is no one with that exact job title at NCDC-NOMADS","Yes","NARR is updated on a daily basis, typically arriving 1-3 days from real-time.  Serial integrity is not guaranteed until 1 month has passed.","Multiple copies exist, including HPSS, off-site HPSS, TSM, and mirrored spinning disk copies.  Backups are for the entire set.  While the backups are not public accessible, the disk mirror can be put in place in minutes and the tape copies may take a day or two","Besides the acronym NARR -- no"]
["Transportation - Marine","NTAD","DOT-BTS","Robert Monniere","robert.monniere@dot.gov"]
["Transportation","NTAD (TransitLines) ","DOT-BTS","Robert Monniere ","robert.monniere@dot.gov \n"]
["Transportation","NTAD (TransitStation) ","DOT-BTS","Robert Monniere ","robert.monniere@dot.gov "]
["Hydrography","NWIS & STORET",null,"EGIM"]
["Offshore Minerals","OCS BLOCK LEASE DATA ","DOI-MMS","James Fulmer","james.s.fulmer@mms.gov","undeliverable email- neeed to identify new contact"]
["Climate","Parameter-elevation Regressions on Independent Slopes Model (PRISM) Datasets","USDA-NRCS","Jan Curtis","jan.curtis@por.usda.gov","info provided via http://www.prism.oregonstate.edu/ and \nhttp://www.nrcs.usda.gov/wps/portal/nrcs/main/?ss=16&navtype=SubNavigation&cid=null&navid=850130000000000&pnavid=850000000000000&position=SubNavigation&ttype=main&pname=USDA%2520NRCS%2520-%2520Natural%2520Resources%2520Conservation%2520Service\n",{"$nulls":5},"M"]
["Cadastral","Parcels","DOI-BLM","Bob Ader","bob_ader@blm.gov","every agency has its own database; multiple data sets; standard being advanced and put into practice; federal interest is managed with BLM; state and local are authoritative sets for other lands; current effort of federal inventory ",{"$nulls":5},"M "]
["Governmental Units","Place and MCD Boundaries"]
["Climate","Polar Operational Environmental Satellite (POES) data","DOC-NOAA","John Bates","john.j.bates@noaa.gov"]
["Soils ","Prime and Statewide Important Farmlands","USDA","Chris W. Smith","Christopherw.Smith@wdc.usda.gov"]
["Marine Boundaries","Sanctuaries","DOC-NOAA","Christine Taylor","Christine.Taylor@noaa.gov"]
["Cultural Demographic Statistics","School District Boundaries","DOC-Census","Randy Fusaro","randy.j.fusaro@census.gov"]
["Hydrography","Shore and sea boundaries",null,"EGIM"]
["Soils ","Soil Suitability for Disposal of Contaminated Crops ","USDA","Karl Hipple; Sharon Waltman","karl.hipple@lin.usda.gov; sharon.waltman@wv.usda.gov ","undeliverable email- neeed to identify new contact"]
["Soils ","Soil Suitability for Large Animal Disposal","USDA","Chris W. Smith","Christopherw.Smith@wdc.usda.gov"]
["Soils ","Soil Survey Geographic Database (SSURGO)","USDA","Karl Hipple","karl.hipple@lin.usda.gov","undeliverable email- neeed to identify new contact"]
["Biological Resources","Species Distribution (amphibians, birds, reptiles, mammals, fishes, plants, etc)","DOI-USGS","Dan Phillips ","dphillips@usgs.gov","There are hundreds of datasets that are produced and maintained by the GAP program. Dan is not the data set manager, but I work with the people that maintain and update the datasets and maintains metadata. The data are updated at different intervals, especially now that they have moved more to a regional and national based approach. GAPS data sets presumably archived since 1990s.",{"$nulls":5},"M"]
["Elevation Terrestrial","SRTM (3-arc second DTEDS)","DOI-USGS","Dean Gesch, USGS","gesch@usgs.gov","SRTM is static; one data set; this is the POC and data manager; this is the name and maintain three complete with two physically separate on-site and one off-site",{"$nulls":5},"S"]
["Cultural Demographic Statistics, Governmental Units","State (+ Territories) Boundaries","DOC-Census","Randy Fusaro","randy.j.fusaro@census.gov"]
["Cultural Demographic Statistics","Statistical Area Boundaries (tracts, blocks, UAs, CDPs, etc)","DOC-Census","Randy Fusaro","randy.j.fusaro@census.gov"]
["Public Land Conveyance","Surface Estate","DOI-BLM","Kim Burns","kim_m_burns@blm.gov","lands administered by BLM; other agencies have own system; ownership of lands;  Tim Spisak, division chief; not archived, there is a backup; Denver office handles"]
["Baseline/Maritime Zones","Territorial Sea","DOC-NOAA","Meredith Westington","meredith.westington@noaa.gov","    National-scale maritime limits/boundaries are available as separate data layers or as a packaged bundle."]
["Geodetic Control","Tidal Benchmarks","DOC-NOAA","Tom Landon ","thomas.landon@noaa.gov"]
["Cultural Demographic Statistics","TIGER (many statistical boundaries)","DOC-Census","Randy Fusaro","randy.j.fusaro@census.gov"]
["Transportation","TIGER (Roads/Rail)","DOC-Census","Randy Fusaro","randy.j.fusaro@census.gov"]
["Soils ","U.S. General Soil Map (STATSGO2)","USDA","Karl Hipple","karl.hipple@lin.usda.gov","undeliverable email- neeed to identify new contact"]
["Cadastral","U.S. Official Cadastral Survey Records","DOI-BLM","Don Buhler","don_buhler@blm.gov","every agency has its own database; multiple data sets; standard being advanced and put into practice; federal interest is managed with BLM; state and local are authoritative sets for other lands; state offices are scanning these records (survey plats and field notes); CDI (conveyence cards)",{"$nulls":5},"M "]
["Cadastral","U.S. Public Land Survey System","DOI-BLM","Don Buhler","don_buhler@blm.gov","only federal agency that administers the PLSS; trying to get it to be logically one data set with different regions. (working copies for nine states in West); keep historical record in data base; schema 2 is the version to look at for archiving some time March 2012",{"$nulls":5},"P"]
["Cultural Demographic Statistics","Voting District Boundaries","DOC-Census","Randy Fusaro","randy.j.fusaro@census.gov"]
["Watersheds","Watershed Boundary Dataset (WBD)  ","DOI-USGS","Karen Hanson","khanson@usgs.gov","one set with nested hierarchy of six different levels within it (regions, subdivided into four, six and twelve digits), POC and data manager; continually updated; co-managed with NRCS and they archive it; USGS in Denver will serve it; All transactions are archived in versions in the database as they happen. Data from any moment in time can be captured with a simple query. The database is replicated daily to Rolla, MO servers. The database is stored on a SAN with three tier redundancy.All changes to the database are stored on separate disks and once they reach a certain size, they are copied over to a server to be written to tape. Weekly, the entire database (NHD, with WBD) is written to tape.Monthly, the tapes are taken off site for storage.",{"$nulls":5},"S"]
["Watersheds","Watershed Boundary Dataset (WBD)  ","USDA","Steve Nechero","steven.nechero@ftw.usda.gov;\n laura.davenport@ftw.usda.gov","Currently, there are three depicted below, but the model will be changing in Fiscal Year 2012 when the\nUSGS takes over maintenance, likely by the Spring of 2012.  If you need that person’s contact information, I can give it to you. \n","Laura Davenport serves as the Watershed Boundary Dataset National Technical Coordinator. Currently, all data edits come through Me, but that will also change when the USGS takes over maintenance of the data.\n","Laura Davenport is one of three technical coordinators, 1 at NRCS and 2 at the USGS.  Karen Hanson, with the USGS, is the\nproject manager.\n","There is no set update timeframe.  It simply depends how often data stewards find edits that need to be made.  Currently, it gets updated at least 1 to 3 times per month on average.","Yes, we archive with every update.  Readily\nAccessible archives date back to February of 2009.  Older archives can be obtained within an hour or two and date back to \n","Sometimes the data is referred to as “HUCs”, which stand for Hydrologic Unit Code, or HU (Hydrologic Unit).  Other names: Watersheds, Subwatersheds, 12-digit HUCs.","M"]

{"sheet":"FINAL by Agency","index":7,"n_rows":299,"n_cols":8,"rows_kept":299,"cut":false,"hidden":true,"merged":[]}
["LOC ORIGINAL (beginning of 2011)","LOC FINAL (October 2011)","NGDA List (October 2011)","FINAL List (November 2011)","Theme","Agency","Dataset Manager","Email"]
["Digital Flood Insurance Rate Maps (D-FIRM)","Digital Flood Insurance Rate Maps (D-FIRM)","Digital Flood Insurance Rate Maps (DFIRM)",{"$f":"IF(C2=0,B2,C2)","v":"Digital Flood Insurance Rate Maps (DFIRM)"},"Elevation ","DHS-FEMA","Scott McAfee","scott.mcaffee@dhs.gov"]
["National Flood Hazard Layer (NFHL)","National Flood Hazard Layer (NFHL)","National Flood Hazard Layer (NFHL)",{"$f":"IF(C3=0,B3,C3)","v":"National Flood Hazard Layer (NFHL)"},"Elevation ","DHS-FEMA","Scott McAfee","scott.mcaffee@dhs.gov"]
[{"$f":"SUBTOTAL(3,A2:A3)","v":2},{"$f":"SUBTOTAL(3,B2:B3)","v":2},{"$f":"SUBTOTAL(3,C2:C3)","v":2},{"$f":"SUBTOTAL(3,D2:D3)","v":2},null,"DHS-FEMA Count"]
[null,"5-digit ZIP Code Tabulation Area (Census 2000)","5-digit ZIP Code Tabulation Area (Census 2000)",{"$f":"IF(C5=0,B5,C5)","v":"5-digit ZIP Code Tabulation Area (Census 2000)"},"Cultural & Demographic Statistics ","DOC-Census","Jennifer Holland","Jennifer.L.Holland@census.gov"]
["AIR, ANVSA, Hawaiian Homelands Boundaries","AIR, ANVSA, Hawaiian Homelands Boundaries",null,"AIR, ANVSA, Hawaiian Homelands Boundaries","Cultural & Demographic Statistics ","DOC-Census","Randy Fusaro","randy.j.fusaro@census.gov"]
[null,"All Lines (2010 Census)","All Lines (2010 Census)","All Lines (2010 Census)","Cultural & Demographic Statistics ","DOC-Census","Jennifer Holland","Jennifer.L.Holland@census.gov"]
[null,"ANSI codes for  metro/micropolitan areas","ANSI codes for  metro/micropolitan areas","ANSI codes for  metro/micropolitan areas","Cultural & Demographic Statistics ","DOC-Census","Jennifer Holland","Jennifer.L.Holland@census.gov"]
[null,"ANSI codes for congressional districts","ANSI codes for congressional districts","ANSI codes for congressional districts","Cultural & Demographic Statistics ","DOC-Census","Jennifer Holland","Jennifer.L.Holland@census.gov"]
[null,"ANSI codes for counties","ANSI codes for counties","ANSI codes for counties","Cultural & Demographic Statistics ","DOC-Census","Jennifer Holland","Jennifer.L.Holland@census.gov"]
[null,"ANSI codes for states","ANSI codes for states","ANSI codes for states","Cultural & Demographic Statistics ","DOC-Census","Jennifer Holland","Jennifer.L.Holland@census.gov"]
[null,"Block (2010 Census)","Block (2010 Census)","Block (2010 Census)","Cultural & Demographic Statistics ","DOC-Census","Jennifer Holland","Jennifer.L.Holland@census.gov"]
[null,"Block (Census 2000)","Block (Census 2000)","Block (Census 2000)","Cultural & Demographic Statistics ","DOC-Census","Jennifer Holland","Jennifer.L.Holland@census.gov"]
[null,"Block Group (Census 2000)","Block Group (Census 2000)","Block Group (Census 2000)","Cultural & Demographic Statistics ","DOC-Census","Jennifer Holland","Jennifer.L.Holland@census.gov"]
[null,"Block Group (Census 2010)","Block Group (Census 2010)","Block Group (Census 2010)","Cultural & Demographic Statistics ","DOC-Census","Jennifer Holland","Jennifer.L.Holland@census.gov"]
[null,"Census 2000 FIPS 55 Codes","Census 2000 FIPS 55 Codes","Census 2000 FIPS 55 Codes","Cultural & Demographic Statistics ","DOC-Census","Jennifer Holland","Jennifer.L.Holland@census.gov"]
[null,"Census Tract (2010 Census)","Census Tract (2010 Census)","Census Tract (2010 Census)","Cultural & Demographic Statistics ","DOC-Census","Jennifer Holland","Jennifer.L.Holland@census.gov"]
[null,"Census Tract (Census 2000)","Census Tract (Census 2000)","Census Tract (Census 2000)","Cultural & Demographic Statistics ","DOC-Census","Jennifer Holland","Jennifer.L.Holland@census.gov"]
[null,"Combined Statistical Area (2010 Census)","Combined Statistical Area (2010 Census)","Combined Statistical Area (2010 Census)","Cultural & Demographic Statistics ","DOC-Census","Jennifer Holland","Jennifer.L.Holland@census.gov"]
[null,"Congressional District Boundaries",null,"Congressional District Boundaries","Cultural & Demographic Statistics ","DOC-Census","Randy Fusaro","randy.j.fusaro@census.gov"]
["County, place, MCD Boundaries","County, place, MCD Boundaries",null,"County, place, MCD Boundaries","Cultural & Demographic Statistics ","DOC-Census","Randy Fusaro","randy.j.fusaro@census.gov"]
[null,"Elementary School District (2010 Census)","Elementary School District (2010 Census)","Elementary School District (2010 Census)","Cultural & Demographic Statistics ","DOC-Census","Jennifer Holland","Jennifer.L.Holland@census.gov"]
[null,"Elementary School District (Census 2000)","Elementary School District (Census 2000)","Elementary School District (Census 2000)","Cultural & Demographic Statistics ","DOC-Census","Jennifer Holland","Jennifer.L.Holland@census.gov"]
["FIPS/ANSI codes for states, counties, congressional districts & metro/micropolitan areas","FIPS/ANSI codes for states, counties, congressional districts & metro/micropolitan areas",null,"FIPS/ANSI codes for states, counties, congressional districts & metro/micropolitan areas","Cultural & Demographic Statistics ","DOC-Census","Randy Fusaro","randy.j.fusaro@census.gov"]
["Metropolitan/micropolitan area boundaries","Metropolitan/micropolitan area boundaries",null,"Metropolitan/micropolitan area boundaries","Cultural & Demographic Statistics ","DOC-Census","Randy Fusaro","randy.j.fusaro@census.gov"]
[null,"Metropolitan/micropolitan Statistical Area (2010 Census)","Metropolitan/micropolitan Statistical Area (2010 Census)","Metropolitan/micropolitan Statistical Area (2010 Census)","Cultural & Demographic Statistics ","DOC-Census","Jennifer Holland","Jennifer.L.Holland@census.gov"]
[null,"Public Use Microdata Area (Census 2000)","Public Use Microdata Area (Census 2000)","Public Use Microdata Area (Census 2000)","Cultural & Demographic Statistics ","DOC-Census","Jennifer Holland","Jennifer.L.Holland@census.gov"]
["School District Boundaries","School District Boundaries",null,"School District Boundaries","Cultural & Demographic Statistics ","DOC-Census","Randy Fusaro","randy.j.fusaro@census.gov"]
[null,"Secondary School District (2010 Census)","Secondary School District (2010 Census)","Secondary School District (2010 Census)","Cultural & Demographic Statistics ","DOC-Census","Jennifer Holland","Jennifer.L.Holland@census.gov"]
[null,"Secondary School District (Census 2000)","Secondary School District (Census 2000)","Secondary School District (Census 2000)","Cultural & Demographic Statistics ","DOC-Census","Jennifer Holland","Jennifer.L.Holland@census.gov"]
["State (+ Territories) Boundaries","State (+ Territories) Boundaries",null,"State (+ Territories) Boundaries","Cultural & Demographic Statistics ","DOC-Census","Randy Fusaro","randy.j.fusaro@census.gov"]
["Statistical Area Boundaries (tracts, blocks, UAs, CDPs, etc)","Statistical Area Boundaries (tracts, blocks, UAs, CDPs, etc)",null,"Statistical Area Boundaries (tracts, blocks, UAs, CDPs, etc)","Cultural & Demographic Statistics ","DOC-Census","Randy Fusaro","randy.j.fusaro@census.gov"]
[null,"Super Public Use Microdata Area (Census 2000)","Super Public Use Microdata Area (Census 2000)","Super Public Use Microdata Area (Census 2000)","Cultural & Demographic Statistics ","DOC-Census","Jennifer Holland","Jennifer.L.Holland@census.gov"]
["TIGER* (many statistical boundaries)","TIGER (many statistical boundaries)",null,"TIGER (many statistical boundaries)","Cultural & Demographic Statistics ","DOC-Census","Randy Fusaro","randy.j.fusaro@census.gov"]
[null,"Topological Faces (2010 Census)","Topological Faces (2010 Census)","Topological Faces (2010 Census)","Cultural & Demographic Statistics ","DOC-Census","Jennifer Holland","Jennifer.L.Holland@census.gov"]
[null,"Unified School District (2010 Census)","Unified School District (2010 Census)","Unified School District (2010 Census)","Cultural & Demographic Statistics ","DOC-Census","Jennifer Holland","Jennifer.L.Holland@census.gov"]
[null,"Unified School District (Census 2000)","Unified School District (Census 2000)",{"$f":"IF(C37=0,B37,C37)","v":"Unified School District (Census 2000)"},"Cultural & Demographic Statistics ","DOC-Census","Jennifer Holland","Jennifer.L.Holland@census.gov"]
[null,"Urban Growth Area (2010 Census)","Urban Growth Area (2010 Census)","Urban Growth Area (2010 Census)","Cultural & Demographic Statistics ","DOC-Census","Jennifer Holland","Jennifer.L.Holland@census.gov"]
[null,"Urban Growth Area (Census 2000)","Urban Growth Area (Census 2000)","Urban Growth Area (Census 2000)","Cultural & Demographic Statistics ","DOC-Census","Jennifer Holland","Jennifer.L.Holland@census.gov"]
[null,"Voting District (2010 Census)","Voting District (2010 Census)","Voting District (2010 Census)","Cultural & Demographic Statistics ","DOC-Census","Jennifer Holland","Jennifer.L.Holland@census.gov"]
[null,"Voting District (Census 2000)","Voting District (Census 2000)","Voting District (Census 2000)","Cultural & Demographic Statistics ","DOC-Census","Jennifer Holland","Jennifer.L.Holland@census.gov"]
["Voting District Boundaries","Voting District Boundaries",null,"Voting District Boundaries","Cultural & Demographic Statistics ","DOC-Census","Randy Fusaro","randy.j.fusaro@census.gov"]
[null,null,"Oklahoma Tribal Joint Use Areas","Oklahoma Tribal Joint Use Areas","Cultural & Demographic Statistics ","DOC-Census"]
[null,null,"Oklahoma Tribal Statistical Areas","Oklahoma Tribal Statistical Areas","Cultural & Demographic Statistics ","DOC-Census"]
[null,"Point Landmark (2010 Census)","Point of Landmark (2010 Census)","Point of Landmark (2010 Census)","Cultural Resources","DOC-Census","Jennifer Holland","Jennifer.L.Holland@census.gov"]
[null,"Area Landmark (2010 Census)","Area Landmark (2010 Census)","Area Landmark (2010 Census)","Cultural Resources ","DOC-Census","Jennifer Holland","Jennifer.L.Holland@census.gov"]
[null,"Topological Faces-Area Landmark Relationship File","Topological Faces-Area Landmark Relationship File","Topological Faces-Area Landmark Relationship File","Cultural Resources ","DOC-Census","Jennifer Holland","Jennifer.L.Holland@census.gov"]
[null,"Primary and Secondary Roads","Precise Global Navigation Satellite System (GNSS) Orbits","Precise Global Navigation Satellite System (GNSS) Orbits","Geodetic Control ","DOC-Census","Jennifer Holland","Jennifer.L.Holland@census.gov"]
[null,"Alaska Native Regional Corporation (2010 Census)","Alaska Native Regional Corporation (2010 Census)","Alaska Native Regional Corporation (2010 Census)","Governmental Units ","DOC-Census","Jennifer Holland","Jennifer.L.Holland@census.gov"]
[null,"Alaska Native Regional Corporation (Census 2000)","Alaska Native Regional Corporation (Census 2000)","Alaska Native Regional Corporation (Census 2000)","Governmental Units ","DOC-Census","Jennifer Holland","Jennifer.L.Holland@census.gov"]
[null,"American Indian Tribal Subdivision (2010 Census)","American Indian Tribal Subdivision (2010 Census)","American Indian Tribal Subdivision (2010 Census)","Governmental Units ","DOC-Census","Jennifer Holland","Jennifer.L.Holland@census.gov"]
[null,"American Indian Tribal Subdivision (Census 2000)","American Indian Tribal Subdivision (Census 2000)","American Indian Tribal Subdivision (Census 2000)","Governmental Units ","DOC-Census","Jennifer Holland","Jennifer.L.Holland@census.gov"]
[null,"American Indian/Alaska Native/Native Hawaiian Area (2000 Census)","American Indian/Alaska Native/Native Hawaiian Area (2000 Census)","American Indian/Alaska Native/Native Hawaiian Area (2000 Census)","Governmental Units ","DOC-Census","Jennifer Holland","Jennifer.L.Holland@census.gov"]
[null,"American Indian/Alaska Native/Native Hawaiian Area (2010 Census)","American Indian/Alaska Native/Native Hawaiian Area (2010 Census)","American Indian/Alaska Native/Native Hawaiian Area (2010 Census)","Governmental Units ","DOC-Census","Jennifer Holland","Jennifer.L.Holland@census.gov"]
[null,"Combined New England City and Town Area (2010 Census)","Combined New England City and Town Area (2010 Census)","Combined New England City and Town Area (2010 Census)","Governmental Units ","DOC-Census","Jennifer Holland","Jennifer.L.Holland@census.gov"]
["Congressional District Boundaries","Congressional District (108th)","Congressional District (108th)","Congressional District (108th)","Governmental Units ","DOC-Census","Jennifer Holland","Jennifer.L.Holland@census.gov"]
[null,"Congressional District (111th)","Congressional District (111th)","Congressional District (111th)","Governmental Units ","DOC-Census","Jennifer Holland","Jennifer.L.Holland@census.gov"]
[null,"Consolidated City (2010 Census)","Consolidated City (2010 Census)","Consolidated City (2010 Census)","Governmental Units ","DOC-Census","Jennifer Holland","Jennifer.L.Holland@census.gov"]
[null,"Consolidated City (Census 2000)","Consolidated City (Census 2000)","Consolidated City (Census 2000)","Governmental Units ","DOC-Census","Jennifer Holland","Jennifer.L.Holland@census.gov"]
[null,"County and Equivalent (2010 Census)","County and Equivalent (2010 Census)","County and Equivalent (2010 Census)","Governmental Units ","DOC-Census","Jennifer Holland","Jennifer.L.Holland@census.gov"]
[null,"County and Equivalent (Census 2000)","County and Equivalent (Census 2000)","County and Equivalent (Census 2000)","Governmental Units ","DOC-Census","Jennifer Holland","Jennifer.L.Holland@census.gov"]
[null,"County Subdivision (2010 Census)","County Subdivision (2010 Census)","County Subdivision (2010 Census)","Governmental Units ","DOC-Census","Jennifer Holland","Jennifer.L.Holland@census.gov"]
[null,"County Subdivision (Census 2000)","County Subdivision (Census 2000)","County Subdivision (Census 2000)","Governmental Units ","DOC-Census","Jennifer Holland","Jennifer.L.Holland@census.gov"]
[null,"Metropolitan Division (2010 Census)","Metropolitan Division (2010 Census)","Metropolitan Division (2010 Census)","Governmental Units ","DOC-Census","Jennifer Holland","Jennifer.L.Holland@census.gov"]
[null,"Metropolitan Division (2010 Census)","Metropolitan Division (2010 Census)","Metropolitan Division (2010 Census)","Governmental Units ","DOC-Census","Jennifer Holland","Jennifer.L.Holland@census.gov"]
[null,"New England City and Town Area (2010 Census)","New England City and Town Area (2010 Census)","New England City and Town Area (2010 Census)","Governmental Units ","DOC-Census","Jennifer Holland","Jennifer.L.Holland@census.gov"]
[null,"New England City and Town Area Division (2010 Census)","New England City and Town Area Division (2010 Census)","New England City and Town Area Division (2010 Census)","Governmental Units ","DOC-Census","Jennifer Holland","Jennifer.L.Holland@census.gov"]
["Place and MCD Boundaries","Place (2010 Census)","Place (2010 Census)","Place (2010 Census)","Governmental Units ","DOC-Census","Jennifer Holland","Jennifer.L.Holland@census.gov"]
[null,"Place (Census 2000)","Place (Census 2000)",{"$f":"IF(C69=0,B69,C69)","v":"Place (Census 2000)"},"Governmental Units ","DOC-Census","Jennifer Holland","Jennifer.L.Holland@census.gov"]
["State(+ Territories) Boundaries","State and Equivalent  (2010 Census)","State and Equivalent  (2010 Census)","State and Equivalent  (2010 Census)","Governmental Units ","DOC-Census","Jennifer Holland","Jennifer.L.Holland@census.gov"]
[null,"State and Equivalent  (Census 2000)","State and Equivalent  (Census 2000)","State and Equivalent  (Census 2000)","Governmental Units ","DOC-Census","Jennifer Holland","Jennifer.L.Holland@census.gov"]
[null,"State Legislative District (Lower Chamber) (2010 Census)","State Legislative District (Lower Chamber) (2010 Census)","State Legislative District (Lower Chamber) (2010 Census)","Governmental Units ","DOC-Census","Jennifer Holland","Jennifer.L.Holland@census.gov"]
[null,"State Legislative District (Lower Chamber) (Census 2000)","State Legislative District (Lower Chamber) (Census 2000)","State Legislative District (Lower Chamber) (Census 2000)","Governmental Units ","DOC-Census","Jennifer Holland","Jennifer.L.Holland@census.gov"]
[null,"State Legislative District (Upper Chamber) (2010 Census)","State Legislative District (Upper Chamber) (2010 Census)","State Legislative District (Upper Chamber) (2010 Census)","Governmental Units ","DOC-Census","Jennifer Holland","Jennifer.L.Holland@census.gov"]
[null,"State Legislative District (Upper Chamber) (Census 2000)","State Legislative District (Upper Chamber) (Census 2000)","State Legislative District (Upper Chamber) (Census 2000)","Governmental Units ","DOC-Census","Jennifer Holland","Jennifer.L.Holland@census.gov"]
[null,"Subbarrio (2010 Census)","Subbarrio (2010 Census)","Subbarrio (2010 Census)","Governmental Units ","DOC-Census","Jennifer Holland","Jennifer.L.Holland@census.gov"]
[null,"Subbarrio (Census 2000)","Subbarrio (Census 2000)","Subbarrio (Census 2000)","Governmental Units ","DOC-Census","Jennifer Holland","Jennifer.L.Holland@census.gov"]
[null,"Urban Area (Corrected Census 2000)","Urban Area (Corrected Census 2000)","Urban Area (Corrected Census 2000)","Governmental Units ","DOC-Census","Jennifer Holland","Jennifer.L.Holland@census.gov"]
[null,"Military Installation","Military Installation","Military Installation","Real Property ","DOC-Census","Jennifer Holland","Jennifer.L.Holland@census.gov"]
[null,"Address Range-Feature Name Relationship File","Address Range-Feature Name Relationship File","Address Range-Feature Name Relationship File","Transportation ","DOC-Census","Jennifer Holland","Jennifer.L.Holland@census.gov"]
[null,"Address Ranges Relationship File","Address Ranges Relationship File","Address Ranges Relationship File","Transportation ","DOC-Census","Jennifer Holland","Jennifer.L.Holland@census.gov"]
[null,"All Roads","All Roads","All Roads","Transportation ","DOC-Census","Jennifer Holland","Jennifer.L.Holland@census.gov"]
[null,"Primary Roads","Primary Roads","Primary Roads","Transportation ","DOC-Census","Jennifer Holland","Jennifer.L.Holland@census.gov"]
["TIGER (Roads/Rail)","TIGER (Roads/Rail)",null,"TIGER (Roads/Rail)","Transportation ","DOC-Census","Randy Fusaro","randy.j.fusaro@census.gov"]
[null,"Traffic Analysis Zone (Census 2000)","Traffic Analysis Zone (Census 2000)","Traffic Analysis Zone (Census 2000)","Transportation ","DOC-Census","Jennifer Holland","Jennifer.L.Holland@census.gov"]
[null,null,"Primary and Secondary Roads","Primary and Secondary Roads","Transportation ","DOC-Census","Jennifer Holland","Jennifer.L.Holland@census.gov"]
[null,"Area Hydrography (2010 Census)","Area Hydrography (2010 Census)","Area Hydrography (2010 Census)","Water -- Inland","DOC-Census","Jennifer Holland","Jennifer.L.Holland@census.gov"]
[null,"Linear Water Features","Linear Water Features","Linear Water Features","Water -- Inland","DOC-Census","Jennifer Holland","Jennifer.L.Holland@census.gov"]
[null,"Topological Faces-Area Hydrography Relationship File","Topological Faces-Area Hydrography Relationship File","Topological Faces-Area Hydrography Relationship File","Water -- Inland","DOC-Census","Jennifer Holland","Jennifer.L.Holland@census.gov"]
[{"$f":"SUBTOTAL(3,A5:A89)","v":13},{"$f":"SUBTOTAL(3,B5:B89)","v":82},{"$f":"SUBTOTAL(3,C5:C89)","v":74},{"$f":"SUBTOTAL(3,D5:D89)","v":85},null,"DOC-Census Count"]
["Env Sens Index Maps - classified shoreline","Env Sens Index Maps - classified shoreline","Environmental Sensitivity Index (ESI) Data and Maps",{"$f":"IF(C91=0,B91,C91)","v":"Environmental Sensitivity Index (ESI) Data and Maps"},"Biota","DOC-NOAA","Jill Petersen","jill.petersen@noaa.gov"]
["Environmental Sensitivity Index Maps","Environmental Sensitivity Index Maps","Environmental Sensitivity Index (ESI) Data and Maps","Environmental Sensitivity Index (ESI) Data and Maps","Biota","DOC-NOAA","Jill Petersen","jill.petersen@noaa.gov"]
["Blended Sea Surface Temperature","Blended Sea Surface Temperature","Blended Sea Surface Temperature","Blended Sea Surface Temperature","Climate and Weather ","DOC-NOAA","Viva Banzon","Viva.Banzon@noaa.gov"]
["Geostationary Operational Environmental Satellite (GOES) data (NCDC)","Geostationary Operational Environmental Satellite (GOES) data (NCDC)","Geostationary Operational Environmental Satellite (GOES) data (NCDC)","Geostationary Operational Environmental Satellite (GOES) data (NCDC)","Climate and Weather ","DOC-NOAA","Nancy Ritchey","Nancy.Ritchey@noaa.gov"]
["Global Historical Climate Network (GHCN) daily data (NCDC)","Global Historical Climate Network (GHCN) daily data (NCDC)",null,"Global Historical Climate Network (GHCN) daily data (NCDC)","Climate and Weather ","DOC-NOAA","Matt Menne","matthew.menne@noaa.gov"]
["Global Historical Climate Network (GHCN) monthly data (NCDC)","Global Historical Climate Network (GHCN) monthly data (NCDC)",null,"Global Historical Climate Network (GHCN) monthly data (NCDC)","Climate and Weather ","DOC-NOAA","Jay Lawrimore","Jay.Lawrimore@noaa.gov"]
["Hurricane Satellite","Hurricane Satellite",null,"Hurricane Satellite","Climate and Weather ","DOC-NOAA","Ken Knapp","ken.knapp@noaa.gov"]
["Integrated Global Radiosonde Archive (IGRA) upper air data (NCDC)","Integrated Global Radiosonde Archive (IGRA) upper air data (NCDC)",null,"Integrated Global Radiosonde Archive (IGRA) upper air data (NCDC)","Climate and Weather ","DOC-NOAA","Imke Durre","imke.durre@noaa.gov"]
["Integrated Surface Data (ISD) at National Climate Data Center (NCDC) ","Integrated Surface Data (ISD) at National Climate Data Center (NCDC) ",null,"Integrated Surface Data (ISD) at National Climate Data Center (NCDC) ","Climate and Weather ","DOC-NOAA","Neal Lott","neal.lott@noaa.gov"]
["NEXRAD Level II and III radar data (NCDC)","NEXRAD Level II and III radar data (NCDC)",null,"NEXRAD Level II and III radar data (NCDC)","Climate and Weather ","DOC-NOAA","Steve Del Greco","stephen.a.delgreco@noaa.gov"]
["North American Regional Reanalysis (NARR) model data (NCDC)","North American Regional Reanalysis (NARR) model data (NCDC)",null,{"$f":"IF(C101=0,B101,C101)","v":"North American Regional Reanalysis (NARR) model data (NCDC)"},"Climate and Weather ","DOC-NOAA","Dan Swank","Dan.Swank@noaa.gov"]
["Polar Operational Environmental Satellite (POES) data (NCDC)","Polar Operational Environmental Satellite (POES) data","Polar Operational Environmental Satellite (POES) data","Polar Operational Environmental Satellite (POES) data","Climate and Weather ","DOC-NOAA","John Bates","john.j.bates@noaa.gov"]
[null,null,"National Doplar Radar Data (NEXRAD)","National Doplar Radar Data (NEXRAD)","Climate and Weather ","DOC-NOAA"]
[null,null,"NOAA National Weather Service GIS Data","NOAA National Weather Service GIS Data","Climate and Weather ","DOC-NOAA"]
["National Ocean Service (NOS) Bathymetry Warehouse (name subject to change)","National Ocean Service (NOS) Bathymetry Warehouse (name subject to change)",null,"National Ocean Service (NOS) Bathymetry Warehouse (name subject to change)","Elevation","DOC-NOAA"]
["National Ocean Service (NOS) Hydrographic Data Base (NOSHDB)","National Ocean Service (NOS) Hydrographic Data Base (NOSHDB)",null,"National Ocean Service (NOS) Hydrographic Data Base (NOSHDB)","Elevation","DOC-NOAA","Brian Mohr","Brian.Mohr@noaa.gov"]
["NOAA Estuarine Bathymetry","NOAA Estuarine Bathymetry",null,"NOAA Estuarine Bathymetry","Elevation","DOC-NOAA"]
[null,null,"Elevation Bathymetric - Ocean, Coastal, and Great Lakes Bathymetry ","Elevation Bathymetric - Ocean, Coastal, and Great Lakes Bathymetry ","Elevation ","DOC-NOAA"]
["GNSS Continuously Operating Reference Stations","GNSS Continuously Operating Reference Stations",null,"GNSS Continuously Operating Reference Stations","Geodetic Control","DOC-NOAA","Giovanni Sella","giovanni.sella@noaa.gov"]
["GNSS Orbits","GNSS Orbits",null,"GNSS Orbits","Geodetic Control","DOC-NOAA","Bill Kass","bill.kass@noaa.gov"]
["Gravity and Geoid Data sets","Gravity and Geoid Datasets",null,"Gravity and Geoid Datasets","Geodetic Control","DOC-NOAA","Dan Roman","dan.roman@noaa.gov"]
["NGS Geodetic Monumented Control ","NGS Geodetic Monumented Control ",null,"NGS Geodetic Monumented Control ","Geodetic Control","DOC-NOAA","Jim Tomlin","jim.tomlin@noaa.gov"]
["Tidal Benchmarks","Tidal Benchmarks",null,"Tidal Benchmarks","Geodetic Control","DOC-NOAA","Tom Landon ","thomas.landon@noaa.gov"]
[null,null,"Airborne Gravity","Airborne Gravity","Geodetic Control ","DOC-NOAA"]
[null,null,"Continuously Operating Reference Stations (CORS)","Continuously Operating Reference Stations (CORS)","Geodetic Control ","DOC-NOAA"]
[null,null,"Geoid Models","Geoid Models","Geodetic Control ","DOC-NOAA"]
[null,null,"Terrestrial Gravity","Terrestrial Gravity","Geodetic Control ","DOC-NOAA"]
["Estuarine and Marine Reserves","Estuarine and Marine Reserves",null,"Estuarine and Marine Reserves","Governmental Units ","DOC-NOAA","Heather Sagar","Heather.Sagar@noaa.gov"]
["Fisheries Closure and Habitat Areas","Fisheries Closure and Habitat Areas",null,"Fisheries Closure and Habitat Areas","Governmental Units ","DOC-NOAA","Heather Sagar","Heather.Sagar@noaa.gov"]
["Sanctuaries","Sanctuaries",null,"Sanctuaries","Governmental Units ","DOC-NOAA","Christine Taylor","Christine.Taylor@noaa.gov"]
["Emergency Response Imagery","Emergency Response Imagery","Emergency Response Imagery","Emergency Response Imagery","Imagery ","DOC-NOAA","Mike Aslaksen","mike.Aslaksen@noaa.gov"]
["Coastal Change Analysis Program (C-CAP)","Coastal Change Analysis Program (C-CAP)",null,"Coastal Change Analysis Program (C-CAP)","Land Use-Land Cover ","DOC-NOAA","Nate Herold","Nate.Herold@noaa.gov"]
["NOAA Aeronautical Survey","NOAA Aeronautical Survey",null,"NOAA Aeronautical Survey","Transportation ","DOC-NOAA","Mark Howard","Mark.Howard@noaa.gov"]
["NOAA Nautical Charts","NOAA Nautical Charts","NOAA's Nautical Chart Products","NOAA's Nautical Chart Products","Water -- Oceans and Coasts ","DOC-NOAA","John Lowell","John.Lowell@noaa.gov"]
[null,null,"Coastal Change Analysis Program (C-CAP) Land Cover and Land Change Imagery","Coastal Change Analysis Program (C-CAP) Land Cover and Land Change Imagery","Water -- Oceans and Coasts ","DOC-NOAA"]
[null,null,"National Data Buoy Center (NDBC) Recent and Historical Data","National Data Buoy Center (NDBC) Recent and Historical Data","Water -- Oceans and Coasts ","DOC-NOAA"]
[null,null,"U.S. Marine Protected Areas Boundaries","U.S. Marine Protected Areas Boundaries","Water -- Oceans and Coasts ","DOC-NOAA"]
[null,null,"U.S. Maritime Zones/Boundaries","U.S. Maritime Zones/Boundaries","Water -- Oceans and Coasts ","DOC-NOAA"]
[null,null,"NOAA National Shoreline","NOAA National Shoreline","Water -- Oceans and Coasts ","DOC-NOAA","Doug Graham","Doug.Graham@noaa.gov"]
["Contiguous Zone","Contiguous Zone",null,"Contiguous Zone","Water – Oceans and Coasts ","DOC-NOAA","Meredith Westington","meredith.westington@noaa.gov"]
["Exclusive Economic Zone","Exclusive Economic Zone",null,"Exclusive Economic Zone","Water – Oceans and Coasts ","DOC-NOAA","Meredith Westington","meredith.westington@noaa.gov"]
["NOAA Composite Shoreline","NOAA Composite Shoreline",null,"NOAA Composite Shoreline","Water – Oceans and Coasts ","DOC-NOAA","Tara Miller","Tara.Miller@noaa.gov"]
["NOAA Extracted Vector Shoreline","NOAA Extracted Vector Shoreline",null,"NOAA Extracted Vector Shoreline","Water – Oceans and Coasts ","DOC-NOAA","Matt Austin","Matthew.Austin@noaa.gov"]
["NOAA Medium Resolution Shoreline","NOAA Medium Resolution Shoreline",null,"NOAA Medium Resolution Shoreline","Water – Oceans and Coasts ","DOC-NOAA","Robert Wilson","Robert.Wilson@noaa.gov"]
["NOAA National Shoreline","NOAA National Shoreline",null,"NOAA National Shoreline","Water – Oceans and Coasts ","DOC-NOAA","Doug Graham","Doug.Graham@noaa.gov"]
["Territorial Sea","Territorial Sea",null,"Territorial Sea","Water – Oceans and Coasts ","DOC-NOAA","Meredith Westington","meredith.westington@noaa.gov"]
[{"$f":"SUBTOTAL(3,A91:A136)","v":34},{"$f":"SUBTOTAL(3,B91:B136)","v":34},{"$f":"SUBTOTAL(3,C91:C136)","v":19},{"$f":"SUBTOTAL(3,D91:D136)","v":46},null,"DOC-NOAA Count"]
["133 UA Elevation Data (lidar)","133 UA Elevation Data (lidar)",null,{"$f":"IF(C138=0,B138,C138)","v":"133 UA Elevation Data (lidar)"},"Elevation","DOD-NGA","Ron Power, NGA","ronald.k.power@nga.mil"]
["133 Urban Areas imagery program data","133 Urban Areas imagery program data",null,{"$f":"IF(C139=0,B139,C139)","v":"133 Urban Areas imagery program data"},"Imagery ","DOD-NGA","William Nellist","William.E.Nellist@nga.mil"]
[{"$f":"SUBTOTAL(3,A138:A139)","v":2},{"$f":"SUBTOTAL(3,B138:B139)","v":2},{"$f":"SUBTOTAL(3,C138:C139)","v":0},{"$f":"SUBTOTAL(3,D138:D139)","v":2},null,"DOD-NGA Count"]
["Inland Electronic Navigation Charts (IENC)","Inland Electronic Navigation Charts (IENC)","Inland Electronic Navigation Charts (IENC)",{"$f":"IF(C141=0,B141,C141)","v":"Inland Electronic Navigation Charts (IENC)"},"Transportation ","DOD-USACE","Joel Schlagel","Joel.D.Schlagel@erdc.usace.army.mil "]
["National Inventory of Dams (NID)","National Inventory of Dams (NID)","National Inventory of Dams (NID)",{"$f":"IF(C142=0,B142,C142)","v":"National Inventory of Dams (NID)"},"Water -- Inland","DOD-USACE","Rebecca Ragon","Rebecca.Ragon@usace.army.mil "]
["National Levee Database (NLD)","National Levee Database (NLD)","National Levee Database (NLD)",{"$f":"IF(C143=0,B143,C143)","v":"National Levee Database (NLD)"},"Water -- Inland","DOD-USACE","Bryan Baker","Bryan.E.Baker@usace.army.mil"]
[{"$f":"SUBTOTAL(3,A141:A143)","v":3},{"$f":"SUBTOTAL(3,B141:B143)","v":3},{"$f":"SUBTOTAL(3,C141:C143)","v":3},{"$f":"SUBTOTAL(3,D141:D143)","v":3},null,"DOD-USACE Count"]
["General Land Office","General Land Office","General Land Office",{"$f":"IF(C145=0,B145,C145)","v":"General Land Office"},"Cadastre","DOI-BLM","Juan Palma","juan_palma@blm.gov"]
["Geographic Coordinate Data Base (GCDB)","Geographic Coordinate Data Base (GCDB)",null,"Geographic Coordinate Data Base (GCDB)","Cadastre","DOI-BLM","Don Buhler","don_buhler@blm.gov"]
["LR 2000 - Master Title Plats ","LR 2000 - Master Title Plats ","LR 2000 - Attribute Information","LR 2000 - Attribute Information","Cadastre","DOI-BLM","Jeff Holdren","jeff_holdren@blm.gov"]
["Manual of Surveying Instructions, Data Standards","Manual of Surveying Instructions, Data Standards",null,"Manual of Surveying Instructions, Data Standards","Cadastre","DOI-BLM","Don Buhler","don_buhler@blm.gov"]
["Mineral Estate - Fluids","Mineral Estate - Fluids",null,"Mineral Estate - Fluids","Cadastre","DOI-BLM","Tim Spisak ","tim_spisak@blm.gov"]
["Mineral Estate - Solids","Mineral Estate - Solids",null,"Mineral Estate - Solids","Cadastre","DOI-BLM","Mitchell Leverette","mitchell_leverette@blm.gov"]
["Parcels","Parcels","Parcels","Parcels","Cadastre","DOI-BLM","Bob Ader","bob_ader@blm.gov"]
["Surface Estate","Surface Estate",null,"Surface Estate","Cadastre","DOI-BLM","Kim Burns","kim_m_burns@blm.gov"]
["U.S. Official Cadastral Survey Records","U.S. Official Cadastral Survey Records","U.S. Official Cadastral Survey Records","U.S. Official Cadastral Survey Records","Cadastre","DOI-BLM","Don Buhler","don_buhler@blm.gov"]
["U.S. Public Land Survey System","U.S. Public Land Survey System","U.S. Public Land Survey System","U.S. Public Land Survey System","Cadastre","DOI-BLM","Don Buhler","don_buhler@blm.gov"]
[{"$f":"SUBTOTAL(3,A145:A154)","v":10},{"$f":"SUBTOTAL(3,B145:B154)","v":10},{"$f":"SUBTOTAL(3,C145:C154)","v":5},{"$f":"SUBTOTAL(3,D145:D154)","v":10},null,"DOI-BLM Count"]
[null,null,"Critical Habitat ",{"$f":"IF(C156=0,B156,C156)","v":"Critical Habitat "},"Biota","DOI-FWS"]
[null,null,"Current Range for listed species ","Current Range for listed species ","Biota","DOI-FWS"]
[null,null,"Endangered Species (Threatened and Endangered Species System)","Endangered Species (Threatened and Endangered Species System)","Biota","DOI-FWS"]
[null,null,"Recovery Range for listed species ","Recovery Range for listed species ","Biota","DOI-FWS"]
[null,null,"Section 7 Range for listed species ","Section 7 Range for listed species ","Biota","DOI-FWS"]
["National Wetlands Inventory (NWI) ","National Wetlands Inventory (NWI) ","National Wetlands Inventory (NWI) ","National Wetlands Inventory (NWI) ","Water -- Inland","DOI-FWS","Tom Dahl  ","tom_dahl@fws.gov\n"]
[null,null,"Coastal Barrier Resource System","Coastal Barrier Resource System","Water -- Oceans and Coasts ","DOI-FWS"]
[{"$f":"SUBTOTAL(3,A156:A162)","v":1},{"$f":"SUBTOTAL(3,B156:B162)","v":1},{"$f":"SUBTOTAL(3,C156:C162)","v":7},{"$f":"SUBTOTAL(3,D156:D162)","v":7},null,"DOI-FWS Count"]
["Multipurpose Marine Cadastre","Multipurpose Marine Cadastre","Multipurpose Marine Cadastre",{"$f":"IF(C164=0,B164,C164)","v":"Multipurpose Marine Cadastre"},"Cadastre","DOI-MMS","James Fulmer","james.s.fulmer@mms.gov"]
[null,null,"OCS Lease Blocks","OCS Lease Blocks","Cadastre","DOI-MMS"]
[null,null,"Protractions","Protractions","Cadastre","DOI-MMS"]
["Coastline Data","Coastline Data","Coastline Data","Coastline Data","Geology","DOI-MMS","James Fulmer","james.s.fulmer@mms.gov"]
["OCS BLOCK LEASE DATA (OCS)","OCS BLOCK LEASE DATA ","OCS Active Leases","OCS Active Leases","Geology","DOI-MMS","James Fulmer","james.s.fulmer@mms.gov"]
[null,null,"MMS Baseline","MMS Baseline","Geology","DOI-MMS"]
[null,null,"Sand and Gravel","Sand and Gravel","Geology","DOI-MMS"]
[null,null,"Wells","Wells","Geology","DOI-MMS"]
["National Parks Data","National Parks Data","National Parks Data","National Parks Data","Land Use-Land Cover ","DOI-MMS","James Fulmer","james.s.fulmer@mms.gov"]
[null,null,"Pipelines","Pipelines","Utilities ","DOI-MMS"]
[null,null,"Platforms","Platforms","Utilities ","DOI-MMS"]
["Continental Shelf Boundary Data","Continental Shelf Boundary Data","Continental Shelf Boundary Data","Continental Shelf Boundary Data","Water -- Oceans and Coasts ","DOI-MMS","James Fulmer","james.s.fulmer@mms.gov"]
[null,null,"Non-Projected Boundaries","Non-Projected Boundaries","Water -- Oceans and Coasts ","DOI-MMS"]
[null,null,"Projected Boundaries","Projected Boundaries","Water -- Oceans and Coasts ","DOI-MMS"]
[{"$f":"SUBTOTAL(3,A164:A177)","v":5},{"$f":"SUBTOTAL(3,B164:B177)","v":5},{"$f":"SUBTOTAL(3,C164:C177)","v":14},{"$f":"SUBTOTAL(3,D164:D177)","v":14},null,"DOI-MMS Count"]
["Cultural Landscape Boundaries","Cultural Landscape Boundaries","Cultural Landscape Boundaries",{"$f":"IF(C179=0,B179,C179)","v":"Cultural Landscape Boundaries"},"Cultural & Demographic Statistics \nCultural Resources","DOI-NPS","John Knoerl","john_knoerl@nps.gov"]
["Cultural Resource Survey Boundaries","Cultural Resource Survey Boundaries","Cultural Resource Survey Boundaries","Cultural Resource Survey Boundaries","Cultural & Demographic Statistics \nCultural Resources","DOI-NPS","John Knoerl","john_knoerl@nps.gov"]
["Ethnographic Resource Boundaries","Ethnographic Resource Boundaries","Ethnographic Resource Boundaries","Ethnographic Resource Boundaries","Cultural & Demographic Statistics \nCultural Resources","DOI-NPS","John Knoerl","john_knoerl@nps.gov"]
["Historic Buildings Boundaries","Historic Buildings Boundaries","Historic Buildings Boundaries","Historic Buildings Boundaries","Cultural & Demographic Statistics \nCultural Resources","DOI-NPS","John Knoerl","john_knoerl@nps.gov"]
["Historic Districts Boundaries","Historic Districts Boundaries","Historic Districts Boundaries","Historic Districts Boundaries","Cultural & Demographic Statistics \nCultural Resources","DOI-NPS","John Knoerl","john_knoerl@nps.gov"]
["Historic Objects Boundaries","Historic Objects Boundaries","Historic Objects Boundaries","Historic Objects Boundaries","Cultural & Demographic Statistics \nCultural Resources","DOI-NPS","John Knoerl","john_knoerl@nps.gov"]
["Historic Structures Boundaries","Historic Structures Boundaries","Historic Structures Boundaries","Historic Structures Boundaries","Cultural & Demographic Statistics \nCultural Resources","DOI-NPS","John Knoerl","john_knoerl@nps.gov"]
[null,null,"Other Cultural Resource Boundaries","Other Cultural Resource Boundaries","Cultural & Demographic Statistics \nCultural Resources","DOI-NPS"]
["Archeological Sites","Archeological Sites","Archeological Sites","Archeological Sites","Cultural Resources ","DOI-NPS","John Knoerl","john_knoerl@nps.gov"]
[{"$f":"SUBTOTAL(3,A179:A187)","v":8},{"$f":"SUBTOTAL(3,B179:B187)","v":8},{"$f":"SUBTOTAL(3,C179:C187)","v":9},{"$f":"SUBTOTAL(3,D179:D187)","v":9},null,"DOI-NPS Count"]
["GAP Program Dataset","GAP Program Dataset","GAP Program Dataset",{"$f":"IF(C189=0,B189,C189)","v":"GAP Program Dataset"},"Biota","DOI-USGS","Kevin Gergely","gergely@usgs.gov"]
["National Standardized Ecosystems Dataset","National Standardized Ecosystems Dataset","National Standardized Ecosystems Dataset","National Standardized Ecosystems Dataset","Biota","DOI-USGS","Roger Sayre","rsayre@usgs.gov"]
["Biomes, Ecoregions","Biomes, Ecoregions",null,"Biomes, Ecoregions","Biota ","DOI-USGS","Dan Phillips ","dphillips@usgs.gov"]
["Ecological Services","Ecological Services",null,"Ecological Services","Biota ","DOI-USGS","Dan Phillips ","dphillips@usgs.gov"]
["Habitats","Habitats",null,"Habitats","Biota ","DOI-USGS","Dan Phillips ","dphillips@usgs.gov"]
["Invasive Species","Invasive Species",null,"Invasive Species","Biota ","DOI-USGS","Dan Phillips ","dphillips@usgs.gov"]
["Species Distribution(amphibians, birds, reptiles, mammals, fishes, plants, etc)","Species Distribution (amphibians, birds, reptiles, mammals, fishes, plants, etc)",null,"Species Distribution (amphibians, birds, reptiles, mammals, fishes, plants, etc)","Biota ","DOI-USGS","Dan Phillips ","dphillips@usgs.gov"]
[null,null,"PADUS (Protected Areas Database of the US)","PADUS (Protected Areas Database of the US)","Cadastre","DOI-USGS"]
["National Map - Geographic Names Information System (GNIS)","National Map - Geographic Names Information System (GNIS)",null,"National Map - Geographic Names Information System (GNIS)","Cultural Resources ","DOI-USGS","Lou Yost","lyost@usgs.gov"]
[null,null,"Geographic Names Dataset - National Map","Geographic Names Dataset - National Map","Cultural Resources ","DOI-USGS"]
["DEMs - Archive","DEMs - Archive",null,"DEMs - Archive","Elevation","DOI-USGS","Gayla Evans","gevans@usgs.gov"]
["GTOPO30","GTOPO30",null,"GTOPO30","Elevation","DOI-USGS","Jeff Danielson"," daniels@usgs.gov"]
["National Map National Elevation Data Set (NED)","National Map  - National Elevation Dataset (NED)",null,"National Map  - National Elevation Dataset (NED)","Elevation","DOI-USGS","Jim Mauck","lyost@usgs.gov"]
["SRTM (3-arc second DTEDS)","SRTM (3-arc second DTEDS)",null,"SRTM (3-arc second DTEDS)","Elevation","DOI-USGS","Dean Gesch, USGS","gesch@usgs.gov"]
[null,null,"National Elevation Dataset  - National Map","National Elevation Dataset  - National Map","Elevation ","DOI-USGS"]
["National Geologic Data Base","National Geologic Data Base","National Geodetic Survey (NGS) Datasheets","National Geodetic Survey (NGS) Datasheets","Geodetic Control ","DOI-USGS","David R. Soller","drsoller@usgs.gov"]
[null,null,"Coal assessment and mapping","Coal assessment and mapping","Geology","DOI-USGS"]
[null,null,"Earthquake monitoring, research, and mapping","Earthquake monitoring, research, and mapping","Geology","DOI-USGS"]
[null,null,"Geochemistry","Geochemistry","Geology","DOI-USGS"]
[null,null,"Geochronology","Geochronology","Geology","DOI-USGS"]
[null,null,"Geologic mapping","Geologic mapping","Geology","DOI-USGS"]
[null,null,"Geomagnetism","Geomagnetism","Geology","DOI-USGS"]
[null,null,"Geophysics","Geophysics","Geology","DOI-USGS"]
[null,null,"Landslide monitoring, research, and mapping","Landslide monitoring, research, and mapping","Geology","DOI-USGS"]
[null,null,"Marine geology","Marine geology","Geology","DOI-USGS"]
[null,null,"Metallic mineral assessment and mapping","Metallic mineral assessment and mapping","Geology","DOI-USGS"]
[null,null,"Oil and gas assessment and mapping, onshore","Oil and gas assessment and mapping, onshore","Geology","DOI-USGS"]
[null,null,"Paleontology","Paleontology","Geology","DOI-USGS"]
[null,null,"Volcano monitoring, research, and mapping","Volcano monitoring, research, and mapping","Geology","DOI-USGS"]
[null,null,"Non-metallic mineral assessment and mapping, onshore",{"$f":"IF(C218=0,B217,C218)","v":"Non-metallic mineral assessment and mapping, onshore"},"Geology","DOI-USGS"]
[null,"134 Urban Areas imagery program data",null,{"$f":"IF(C219=0,B219,C219)","v":"134 Urban Areas imagery program data"},"Imagery ","DOI-USGS","George Lee","gylee@usgs.gov"]
["ADS40 Hurricane Response 7.5' Quadrangle Mosaics","ADS40 Hurricane Response 7.5' Quadrangle Mosaics",null,"ADS40 Hurricane Response 7.5' Quadrangle Mosaics","Imagery ","DOI-USGS","Jim Mauck","jmauck@usgs.gov"]
["Digital Orthoimage Quarter Quadrangle (DOQQ) Archive","Digital Orthoimage Quarter Quadrangle (DOQQ) Archive",null,"Digital Orthoimage Quarter Quadrangle (DOQQ) Archive","Imagery ","DOI-USGS"]
["Landsat geometric/terrain corrected level 1T","Landsat geometric/terrain corrected level 1T","Landsat Terrain Corrected Scenes","Landsat Terrain Corrected Scenes","Imagery ","DOI-USGS","Kristi Kline","kkline@usgs.gov"]
["National Aerial Photography Program (NAPP) Data Archive","National Aerial Photography Program (NAPP) Data Archive",null,"National Aerial Photography Program (NAPP) Data Archive","Imagery ","DOI-USGS","Wayne Miller","wamiller@usgs.gov"]
["National Agriculture Imagery Program Data","National Agriculture Imagery Program Data","National Agriculture Imagery Program (NAIP) Archive","National Agriculture Imagery Program (NAIP) Archive","Imagery ","DOI-USGS","Shirley Hall","shirley.hall@wdc.usda.gov"]
["National Map Orthoimagery Database (TNM Seamless Server) ","National Map Orthoimagery Database (TNM Seamless Server) ",null,"National Map Orthoimagery Database (TNM Seamless Server) ","Imagery ","DOI-USGS","George Lee","gylee@usgs.gov"]
[null,null,"National  Orthoimagery Dataset - National Map","National  Orthoimagery Dataset - National Map","Imagery ","DOI-USGS"]
["National Land Cover Dataset (NLCD)","National Land Cover Dataset (NLCD)","National Land Cover Dataset - GIRAS - 1975","National Land Cover Dataset - GIRAS - 1975","Land Use-Land Cover ","DOI-USGS","Colin Homer","homer@usgs.gov"]
["National Land Cover Dataset (NLCD)","National Land Cover Dataset (NLCD)","National Land Cover Dataset (NLCD)","National Land Cover Dataset (NLCD)","Land Use-Land Cover ","DOI-USGS","Colin Homer","homer@usgs.gov"]
[null,null,"National Land Cover Dataset - National Map","National Land Cover Dataset - National Map","Land Use-Land Cover ","DOI-USGS"]
[null,null,"National Land Cover Dataset - National Map - 1991","National Land Cover Dataset - National Map - 1991","Land Use-Land Cover ","DOI-USGS"]
[null,null,"National Land Cover Dataset - National Map - 2001","National Land Cover Dataset - National Map - 2001","Land Use-Land Cover ","DOI-USGS"]
[null,null,"National Land Cover Dataset - National Map 2006","National Land Cover Dataset - National Map 2006","Land Use-Land Cover ","DOI-USGS"]
[null,null,"National Land Cover Percent Canopy - National Map - 1991","National Land Cover Percent Canopy - National Map - 1991","Land Use-Land Cover ","DOI-USGS"]
[null,null,"National Land Cover Percent Imperviousness - National Map - 2001","National Land Cover Percent Imperviousness - National Map - 2001","Land Use-Land Cover ","DOI-USGS"]
[null,null,"National Land Cover Percent Imperviousness - National Map - 2006","National Land Cover Percent Imperviousness - National Map - 2006","Land Use-Land Cover ","DOI-USGS"]
["National Map - Structures Dataset","National Map - Structures Dataset","National Structures Dataset - National Map","National Structures Dataset - National Map","Real Property ","DOI-USGS","Paul Wiese","pmwiese@usgs.gov"]
["National Map - Transportation Dataset","National Map - Transportation Dataset","National Transportation Dataset - National Map","National Transportation Dataset - National Map","Transportation ","DOI-USGS","Paul Wiese","pmwiese@usgs.gov"]
["National Hydrography Data Set","National Hydrography Dataset","National Hydrography Dataset - National Map","National Hydrography Dataset - National Map","Water -- Inland","DOI-USGS","Jeff Simley","jdsimley@usgs.gov"]
["Watershed Boundary Data Set (WBD)  ","Watershed Boundary Dataset (WBD)  ","Watershed Boundary Dataset (WBD)  ","Watershed Boundary Dataset (WBD)  ","Water -- Inland","DOI-USGS","Karen Hanson","khanson@usgs.gov"]
["Watershed Boundary Data Set (WBD)  ","Watershed Boundary Dataset (WBD)  ","Watershed Boundary Dataset (WBD)  ","Watershed Boundary Dataset (WBD)  ","Water -- Inland","DOI-USGS","Karen Hanson","khanson@usgs.gov"]
[null,null,"National Water Information System (NWIS)- Stream Gage Network","National Water Information System (NWIS)- Stream Gage Network","Water -- Inland","DOI-USGS"]
[null,null,"National Water Information System (NWIS)- Water Quality Monitoring Stations","National Water Information System (NWIS)- Water Quality Monitoring Stations","Water -- Inland","DOI-USGS"]
[{"$f":"SUBTOTAL(3,A189:A242)","v":26},{"$f":"SUBTOTAL(3,B189:B242)","v":27},{"$f":"SUBTOTAL(3,C189:C242)","v":39},{"$f":"SUBTOTAL(3,D189:D242)","v":54},null,"DOI-USGS Count"]
["NTAD","NTAD","NTAD",{"$f":"IF(C244=0,B244,C244)","v":"NTAD"},"Transportation ","DOT-BTS","Robert Monniere","robert.monniere@dot.gov"]
["NTAD (TransitLines) ","NTAD (TransitLines) ","NTAD (TransitLines) ",{"$f":"IF(C245=0,B245,C245)","v":"NTAD (TransitLines) "},"Transportation ","DOT-BTS","Robert Monniere ","robert.monniere@dot.gov \n"]
["NTAD (TransitStation) ","NTAD (TransitStation) ","NTAD (TransitStation) ",{"$f":"IF(C246=0,B246,C246)","v":"NTAD (TransitStation) "},"Transportation ","DOT-BTS","Robert Monniere ","robert.monniere@dot.gov "]
[null,null,"NTAD (airports)",{"$f":"IF(C247=0,B247,C247)","v":"NTAD (airports)"},"Transportation ","DOT-BTS"]
[null,null,"NTAD (Rail)",{"$f":"IF(C248=0,B248,C248)","v":"NTAD (Rail)"},"Transportation ","DOT-BTS"]
[{"$f":"SUBTOTAL(3,A244:A248)","v":3},{"$f":"SUBTOTAL(3,B244:B248)","v":3},{"$f":"SUBTOTAL(3,C244:C248)","v":5},{"$f":"SUBTOTAL(3,D244:D248)","v":5},null,"DOT-BTS Count"]
["Federal building location point ","Federal building location point ","Federal building location point ",{"$f":"IF(C250=0,B250,C250)","v":"Federal building location point "},"Real Property ","GSA","Sandra Downie","sandra.downie@gsa.gov"]
["Federal building location polygon","Federal building location polygon","Federal building location polygon",{"$f":"IF(C251=0,B251,C251)","v":"Federal building location polygon"},"Real Property ","GSA","Sandra Downie","sandra.downie@gsa.gov"]
["Federal land area facility location point","Federal land area facility location point","Federal land area facility location point",{"$f":"IF(C252=0,B252,C252)","v":"Federal land area facility location point"},"Real Property ","GSA","Sandra Downie","sandra.downie@gsa.gov"]
["Federal land area facility location polygon","Federal land area facility location polygon","Federal land area facility location polygon",{"$f":"IF(C253=0,B253,C253)","v":"Federal land area facility location polygon"},"Real Property ","GSA","Sandra Downie","sandra.downie@gsa.gov"]
[{"$f":"SUBTOTAL(3,A250:A253)","v":4},{"$f":"SUBTOTAL(3,B250:B253)","v":4},{"$f":"SUBTOTAL(3,C250:C253)","v":4},{"$f":"SUBTOTAL(3,D250:D253)","v":4},null,"GSA Count"]
["National Center for Health Statistics (Atlas of US Mortality)","National Center for Health Statistics (Atlas of US Mortality)",null,{"$f":"IF(C255=0,B255,C255)","v":"National Center for Health Statistics (Atlas of US Mortality)"},"Cultural & Demographic Statistics ","HHS","Gary Anderson","gary.anderson@hhs.gov"]
[{"$f":"SUBTOTAL(3,A255:A255)","v":1},{"$f":"SUBTOTAL(3,B255:B255)","v":1},{"$f":"SUBTOTAL(3,C255:C255)","v":0},{"$f":"SUBTOTAL(3,D255:D255)","v":1},null,"HHS Count"]
["Assisted Housing (census geography or point-based) see http://www.huduser.org/picture2000/","Assisted Housing (census geography or point-based)",null,{"$f":"IF(C257=0,B257,C257)","v":"Assisted Housing (census geography or point-based)"},"Real Property","HUD","Jon Sperling","jon.sperling@hud.gov"]
["Enterprise Zones, Empowerment Communities, Revitalization Areas, Qualified Census Tracts, etc.  (census geography based)","Enterprise Zones, Empowerment Communities, Revitalization Areas, Qualified Census Tracts, etc.  (census geography based)",null,{"$f":"IF(C258=0,B258,C258)","v":"Enterprise Zones, Empowerment Communities, Revitalization Areas, Qualified Census Tracts, etc.  (census geography based)"},"Real Property","HUD","Jon Sperling","jon.sperling@hud.gov"]
[{"$f":"SUBTOTAL(3,A257:A258)","v":2},{"$f":"SUBTOTAL(3,B257:B258)","v":2},{"$f":"SUBTOTAL(3,C257:C258)","v":0},{"$f":"SUBTOTAL(3,D257:D258)","v":2},null,"HUD Count"]
[null,null,"Fire, Detection: AVHRR FIMMA , GOES WF-ABBA",{"$f":"IF(C260=0,B260,C260)","v":"Fire, Detection: AVHRR FIMMA , GOES WF-ABBA"},"Imagery ","USDA"]
[null,null,"Fire, Detection: Daily Active Fire Mapping","Fire, Detection: Daily Active Fire Mapping","Land Use-Land Cover ","USDA"]
["Common Resource Area (CRA)","Common Resource Area (CRA)","Common Resource Area (CRA)","Common Resource Area (CRA)","Soils ","USDA","Chris W. Smith","Christopherw.Smith@wdc.usda.gov"]
["Hydric Soils","Hydric Soils",null,"Hydric Soils","Soils ","USDA","Chris W. Smith","Christopherw.Smith@wdc.usda.gov"]
["Location of Arable Lands","Location of Arable Lands",null,"Location of Arable Lands","Soils ","USDA","Karl Hipple","karl.hipple@lin.usda.gov"]
["Major Land Resource Area (MLRA)","Major Land Resource Area (MLRA)","Major Land Resource Area (MLRA)","Major Land Resource Area (MLRA)","Soils ","USDA","Karl Hipple","karl.hipple@lin.usda.gov"]
["National Cooperative Soil Survey (NCSS)","National Cooperative Soil Survey (NCSS)","National Cooperative Soil Characterization Database","National Cooperative Soil Characterization Database","Soils ","USDA","Paul Benedict","paul.benedict@wdc.usda.gov"]
["Prime and Statewide Important Farmlands","Prime and Statewide Important Farmlands",null,"Prime and Statewide Important Farmlands","Soils ","USDA","Chris W. Smith","Christopherw.Smith@wdc.usda.gov"]
["Soil Suitability for Disposal of Contaminated Crops ","Soil Suitability for Disposal of Contaminated Crops ",null,"Soil Suitability for Disposal of Contaminated Crops ","Soils ","USDA","Karl Hipple; Sharon Waltman","karl.hipple@lin.usda.gov; sharon.waltman@wv.usda.gov "]
["Soil Suitability for Large Animal Disposal","Soil Suitability for Large Animal Disposal",null,"Soil Suitability for Large Animal Disposal","Soils ","USDA","Chris W. Smith","Christopherw.Smith@wdc.usda.gov"]
["Soil Survey Geographic Database (SSURGO)","Soil Survey Geographic Database (SSURGO)","Soil Survey Geographic Database (SSURGO)","Soil Survey Geographic Database (SSURGO)","Soils ","USDA","Karl Hipple","karl.hipple@lin.usda.gov"]
["U.S. General Soil Map (STATSGO2)","U.S. General Soil Map (STATSGO2)","U.S. General Soil Map (STATSGO2)","U.S. General Soil Map (STATSGO2)","Soils ","USDA","Karl Hipple","karl.hipple@lin.usda.gov"]
[null,null,"National Interagency Trails Dataset","National Interagency Trails Dataset","Transportation ","USDA"]
[{"$f":"SUBTOTAL(3,A260:A272)","v":10},{"$f":"SUBTOTAL(3,B260:B272)","v":10},{"$f":"SUBTOTAL(3,C260:C272)","v":8},{"$f":"SUBTOTAL(3,D260:D272)","v":13},null,"USDA Count"]
[null,null,"MODIS-based Atmospheric Products",{"$f":"IF(C274=0,B274,C274)","v":"MODIS-based Atmospheric Products"},"Climate and Weather ","USDA -FS (Along with USGS)"]
[null,null,"Fire Severity: Monitoring Trends in Burn Severity (MTBS)",{"$f":"IF(C275=0,B275,C275)","v":"Fire Severity: Monitoring Trends in Burn Severity (MTBS)"},"Land Use-Land Cover ","USDA -FS (Along with USGS)"]
[null,null,"Earth Cover, Land: MODIS-based Land Products",{"$f":"IF(C276=0,B276,C276)","v":"Earth Cover, Land: MODIS-based Land Products"},"Land Use-Land Cover ","USDA -FS (Along with USGS)"]
[{"$f":"SUBTOTAL(3,A274:A276)","v":0},{"$f":"SUBTOTAL(3,B274:B276)","v":0},{"$f":"SUBTOTAL(3,C274:C276)","v":3},{"$f":"SUBTOTAL(3,D274:D276)","v":3},null,"USDA -FS (Along with USGS) Count"]
["ECOMAP Data Sets (Ecological Subregions: Sections and Subsections for the Conterminous United States ) ","ECOMAP Datasets (Ecological Subregions: Sections and Subsections for the Conterminous United States ) ","ECOMAP Datasets (Ecological Subregions: Sections and Subsections for the Conterminous United States ) ",{"$f":"IF(C278=0,B278,C278)","v":"ECOMAP Datasets (Ecological Subregions: Sections and Subsections for the Conterminous United States ) "},"Biota","USDA-FS","David T. Cleland","dcleland@fs.fed.us"]
[null,null,"Earth Cover, Vegetation, Forest: Forest Biomass, Types, Type Groups",{"$f":"IF(C279=0,B279,C279)","v":"Earth Cover, Vegetation, Forest: Forest Biomass, Types, Type Groups"},"Land Use-Land Cover ","USDA-FS"]
[null,null,"Earth Cover, Vegetation: Percent Forest Canopy",{"$f":"IF(C280=0,B280,C280)","v":"Earth Cover, Vegetation: Percent Forest Canopy"},"Land Use-Land Cover ","USDA-FS"]
[{"$f":"SUBTOTAL(3,A278:A280)","v":1},{"$f":"SUBTOTAL(3,B278:B280)","v":1},{"$f":"SUBTOTAL(3,C278:C280)","v":3},{"$f":"SUBTOTAL(3,D278:D280)","v":3},null,"USDA-FS Count"]
[null,null,"Satellite Imagery Archive",{"$f":"IF(C282=0,B282,C282)","v":"Satellite Imagery Archive"},"Imagery ","USDA-FSA"]
[{"$f":"SUBTOTAL(3,A282:A282)","v":0},{"$f":"SUBTOTAL(3,B282:B282)","v":0},{"$f":"SUBTOTAL(3,C282:C282)","v":1},{"$f":"SUBTOTAL(3,D282:D282)","v":1},null,"USDA-FSA Count"]
[null,null,"Crops: Cropland Data Layer",{"$f":"IF(C284=0,B284,C284)","v":"Crops: Cropland Data Layer"},"Land Use-Land Cover ","USDA-NASS"]
[null,null,"Land Cover Strata Dataset",{"$f":"IF(C285=0,B285,C285)","v":"Land Cover Strata Dataset"},"Land Use-Land Cover ","USDA-NASS"]
[{"$f":"SUBTOTAL(3,A284:A285)","v":0},{"$f":"SUBTOTAL(3,B284:B285)","v":0},{"$f":"SUBTOTAL(3,C284:C285)","v":2},{"$f":"SUBTOTAL(3,D284:D285)","v":2},null,"USDA-NASS Count"]
["Climate Data Sets ","Climate Datasets ",null,{"$f":"IF(C287=0,B287,C287)","v":"Climate Datasets "},"Climate and Weather ","USDA-NRCS","Jan Curtis","jan.curtis@por.usda.gov"]
["National Climate Data Center","National Climate Data Center",null,{"$f":"IF(C288=0,B288,C288)","v":"National Climate Data Center"},"Climate and Weather ","USDA-NRCS","Jan Curtis","jan.curtis@por.usda.gov"]
["Parameter-elevation Regressions on Independent Slopes Model (PRISM) Data Sets","Parameter-elevation Regressions on Independent Slopes Model (PRISM) Datasets","Parameter-elevation Regressions on Independent Slopes Model (PRISM) Datasets",{"$f":"IF(C289=0,B289,C289)","v":"Parameter-elevation Regressions on Independent Slopes Model (PRISM) Datasets"},"Climate and Weather ","USDA-NRCS","Jan Curtis","jan.curtis@por.usda.gov"]
[{"$f":"SUBTOTAL(3,A287:A289)","v":3},{"$f":"SUBTOTAL(3,B287:B289)","v":3},{"$f":"SUBTOTAL(3,C287:C289)","v":1},{"$f":"SUBTOTAL(3,D287:D289)","v":3},null,"USDA-NRCS Count"]
["National Resource Inventory Imagery","National Resource Inventory Imagery",null,{"$f":"IF(C291=0,B291,C291)","v":"National Resource Inventory Imagery"},"Imagery ","USDA-WDC","Jerry Harlow","jerry.harlow@wdc.usda.gov"]
[{"$f":"SUBTOTAL(3,A291:A291)","v":1},{"$f":"SUBTOTAL(3,B291:B291)","v":1},{"$f":"SUBTOTAL(3,C291:C291)","v":0},{"$f":"SUBTOTAL(3,D291:D291)","v":1},null,"USDA-WDC Count"]
["County Boundaries","County Boundaries",null,{"$f":"IF(C293=0,B293,C293)","v":"County Boundaries"},"Governmental Units"]
[null,"Place and MCD Boundaries",null,"Place and MCD Boundaries","Governmental Units"]
["LANDFIRE Dataset","LANDFIRE Dataset","Land Fire Dataset","Land Fire Dataset","Land Use-Land Cover ",null,null,0]
["Nautical charts","Nautical Charts",null,"Nautical Charts","Water – Inland "]
["NWIS & STORET","NWIS & STORET",null,"NWIS & STORET","Water – Inland ",null,"EGIM"]
["Shore and sea boundaries","Shore and sea boundaries",null,"Shore and sea boundaries","Water – Inland ",null,"EGIM"]
[{"$f":"SUBTOTAL(3,A2:A298)","v":134},{"$f":"SUBTOTAL(3,B2:B298)","v":205},{"$f":"SUBTOTAL(3,C2:C298)","v":200},{"$f":"SUBTOTAL(3,D2:D298)","v":276},null,"Grand Count"]

{"sheet":"FINAL by Agency summary","index":8,"n_rows":24,"n_cols":5,"rows_kept":24,"cut":false,"hidden":true,"merged":[]}
["Agency","LOC ORIGINAL (beginning of 2011)","LOC FINAL (October 2011)","NGDA List (October 2011)","FINAL List (November 2011)"]
["DHS-FEMA Count",2,2,2,2]
["DOC-Census Count",13,82,74,85]
["DOC-NOAA Count",34,34,19,46]
["DOD-NGA Count",2,2,0,2]
["DOD-USACE Count",3,3,3,3]
["DOI-BLM Count",10,10,5,10]
["DOI-FWS Count",1,1,7,7]
["DOI-MMS Count",5,5,14,14]
["DOI-NPS Count",8,8,9,9]
["DOI-USGS Count",26,27,39,54]
["DOT-BTS Count",3,3,5,5]
["GSA Count",4,4,4,4]
["HHS Count",1,1,0,1]
["HUD Count",2,2,0,2]
["USDA Count",10,10,8,13]
["USDA -FS (Along with USGS) Count",0,0,3,3]
["USDA-FS Count",1,1,3,3]
["USDA-FSA Count",0,0,1,1]
["USDA-NASS Count",0,0,2,2]
["USDA-NRCS Count",3,3,1,3]
["USDA-WDC Count",1,1,0,1]
["None Listed",5,6,1,6]
["TOTAL",{"$f":"SUM(B2:B23)","v":134},{"$f":"SUM(C2:C23)","v":205},200,276]

{"sheet":"FINAL by Theme","index":9,"n_rows":296,"n_cols":8,"rows_kept":296,"cut":false,"hidden":true,"merged":[]}
["LOC ORIGINAL (beginning of 2011)","LOC FINAL (October 2011)","NGDA List (October 2011)","FINAL List (November 2011)","Theme","Agency","Dataset Manager","Email"]
["Env Sens Index Maps - classified shoreline","Env Sens Index Maps - classified shoreline","Environmental Sensitivity Index (ESI) Data and Maps",{"$f":"IF(C2=0,B2,C2)","v":"Environmental Sensitivity Index (ESI) Data and Maps"},"Biota","DOC-NOAA","Jill Petersen","jill.petersen@noaa.gov"]
["Environmental Sensitivity Index Maps","Environmental Sensitivity Index Maps","Environmental Sensitivity Index (ESI) Data and Maps","Environmental Sensitivity Index (ESI) Data and Maps","Biota","DOC-NOAA","Jill Petersen","jill.petersen@noaa.gov"]
[null,null,"Critical Habitat ","Critical Habitat ","Biota","DOI-FWS"]
[null,null,"Current Range for listed species ","Current Range for listed species ","Biota","DOI-FWS"]
[null,null,"Endangered Species (Threatened and Endangered Species System)","Endangered Species (Threatened and Endangered Species System)","Biota","DOI-FWS"]
[null,null,"Recovery Range for listed species ","Recovery Range for listed species ","Biota","DOI-FWS"]
[null,null,"Section 7 Range for listed species ","Section 7 Range for listed species ","Biota","DOI-FWS"]
["GAP Program Dataset","GAP Program Dataset","GAP Program Dataset","GAP Program Dataset","Biota","DOI-USGS","Kevin Gergely","gergely@usgs.gov"]
["National Standardized Ecosystems Dataset","National Standardized Ecosystems Dataset","National Standardized Ecosystems Dataset","National Standardized Ecosystems Dataset","Biota","DOI-USGS","Roger Sayre","rsayre@usgs.gov"]
["ECOMAP Data Sets (Ecological Subregions: Sections and Subsections for the Conterminous United States ) ","ECOMAP Datasets (Ecological Subregions: Sections and Subsections for the Conterminous United States ) ","ECOMAP Datasets (Ecological Subregions: Sections and Subsections for the Conterminous United States ) ","ECOMAP Datasets (Ecological Subregions: Sections and Subsections for the Conterminous United States ) ","Biota","USDA-FS","David T. Cleland","dcleland@fs.fed.us"]
["Biomes, Ecoregions","Biomes, Ecoregions",null,"Biomes, Ecoregions","Biota ","DOI-USGS","Dan Phillips ","dphillips@usgs.gov"]
["Ecological Services","Ecological Services",null,"Ecological Services","Biota ","DOI-USGS","Dan Phillips ","dphillips@usgs.gov"]
["Habitats","Habitats",null,"Habitats","Biota ","DOI-USGS","Dan Phillips ","dphillips@usgs.gov"]
["Invasive Species","Invasive Species",null,"Invasive Species","Biota ","DOI-USGS","Dan Phillips ","dphillips@usgs.gov"]
["Species Distribution(amphibians, birds, reptiles, mammals, fishes, plants, etc)","Species Distribution (amphibians, birds, reptiles, mammals, fishes, plants, etc)",null,"Species Distribution (amphibians, birds, reptiles, mammals, fishes, plants, etc)","Biota ","DOI-USGS","Dan Phillips ","dphillips@usgs.gov"]
[{"$f":"SUBTOTAL(3,A2:A16)","v":10},{"$f":"SUBTOTAL(3,B2:B16)","v":10},{"$f":"SUBTOTAL(3,C2:C16)","v":10},{"$f":"SUBTOTAL(3,D2:D16)","v":15},"Biota Count"]
["General Land Office","General Land Office","General Land Office",{"$f":"IF(C18=0,B18,C18)","v":"General Land Office"},"Cadastre","DOI-BLM","Juan Palma","juan_palma@blm.gov"]
["Geographic Coordinate Data Base (GCDB)","Geographic Coordinate Data Base (GCDB)",null,"Geographic Coordinate Data Base (GCDB)","Cadastre","DOI-BLM","Don Buhler","don_buhler@blm.gov"]
["LR 2000 - Master Title Plats ","LR 2000 - Master Title Plats ","LR 2000 - Attribute Information","LR 2000 - Attribute Information","Cadastre","DOI-BLM","Jeff Holdren","jeff_holdren@blm.gov"]
["Manual of Surveying Instructions, Data Standards","Manual of Surveying Instructions, Data Standards",null,"Manual of Surveying Instructions, Data Standards","Cadastre","DOI-BLM","Don Buhler","don_buhler@blm.gov"]
["Mineral Estate - Fluids","Mineral Estate - Fluids",null,"Mineral Estate - Fluids","Cadastre","DOI-BLM","Tim Spisak ","tim_spisak@blm.gov"]
["Mineral Estate - Solids","Mineral Estate - Solids",null,"Mineral Estate - Solids","Cadastre","DOI-BLM","Mitchell Leverette","mitchell_leverette@blm.gov"]
["Parcels","Parcels","Parcels","Parcels","Cadastre","DOI-BLM","Bob Ader","bob_ader@blm.gov"]
["Surface Estate","Surface Estate",null,"Surface Estate","Cadastre","DOI-BLM","Kim Burns","kim_m_burns@blm.gov"]
["U.S. Official Cadastral Survey Records","U.S. Official Cadastral Survey Records","U.S. Official Cadastral Survey Records","U.S. Official Cadastral Survey Records","Cadastre","DOI-BLM","Don Buhler","don_buhler@blm.gov"]
["U.S. Public Land Survey System","U.S. Public Land Survey System","U.S. Public Land Survey System","U.S. Public Land Survey System","Cadastre","DOI-BLM","Don Buhler","don_buhler@blm.gov"]
["Multipurpose Marine Cadastre","Multipurpose Marine Cadastre","Multipurpose Marine Cadastre","Multipurpose Marine Cadastre","Cadastre","DOI-MMS","James Fulmer","james.s.fulmer@mms.gov"]
[null,null,"OCS Lease Blocks","OCS Lease Blocks","Cadastre","DOI-MMS"]
[null,null,"Protractions","Protractions","Cadastre","DOI-MMS"]
[null,null,"PADUS (Protected Areas Database of the US)","PADUS (Protected Areas Database of the US)","Cadastre","DOI-USGS"]
[{"$f":"SUBTOTAL(3,A18:A31)","v":11},{"$f":"SUBTOTAL(3,B18:B31)","v":11},{"$f":"SUBTOTAL(3,C18:C31)","v":9},{"$f":"SUBTOTAL(3,D18:D31)","v":14},"Cadastre Count"]
["Blended Sea Surface Temperature","Blended Sea Surface Temperature","Blended Sea Surface Temperature",{"$f":"IF(C33=0,B33,C33)","v":"Blended Sea Surface Temperature"},"Climate and Weather ","DOC-NOAA","Viva Banzon","Viva.Banzon@noaa.gov"]
["Geostationary Operational Environmental Satellite (GOES) data (NCDC)","Geostationary Operational Environmental Satellite (GOES) data (NCDC)","Geostationary Operational Environmental Satellite (GOES) data (NCDC)","Geostationary Operational Environmental Satellite (GOES) data (NCDC)","Climate and Weather ","DOC-NOAA","Nancy Ritchey","Nancy.Ritchey@noaa.gov"]
["Global Historical Climate Network (GHCN) daily data (NCDC)","Global Historical Climate Network (GHCN) daily data (NCDC)",null,"Global Historical Climate Network (GHCN) daily data (NCDC)","Climate and Weather ","DOC-NOAA","Matt Menne","matthew.menne@noaa.gov"]
["Global Historical Climate Network (GHCN) monthly data (NCDC)","Global Historical Climate Network (GHCN) monthly data (NCDC)",null,"Global Historical Climate Network (GHCN) monthly data (NCDC)","Climate and Weather ","DOC-NOAA","Jay Lawrimore","Jay.Lawrimore@noaa.gov"]
["Hurricane Satellite","Hurricane Satellite",null,"Hurricane Satellite","Climate and Weather ","DOC-NOAA","Ken Knapp","ken.knapp@noaa.gov"]
["Integrated Global Radiosonde Archive (IGRA) upper air data (NCDC)","Integrated Global Radiosonde Archive (IGRA) upper air data (NCDC)",null,"Integrated Global Radiosonde Archive (IGRA) upper air data (NCDC)","Climate and Weather ","DOC-NOAA","Imke Durre","imke.durre@noaa.gov"]
["Integrated Surface Data (ISD) at National Climate Data Center (NCDC) ","Integrated Surface Data (ISD) at National Climate Data Center (NCDC) ",null,"Integrated Surface Data (ISD) at National Climate Data Center (NCDC) ","Climate and Weather ","DOC-NOAA","Neal Lott","neal.lott@noaa.gov"]
["NEXRAD Level II and III radar data (NCDC)","NEXRAD Level II and III radar data (NCDC)",null,"NEXRAD Level II and III radar data (NCDC)","Climate and Weather ","DOC-NOAA","Steve Del Greco","stephen.a.delgreco@noaa.gov"]
["North American Regional Reanalysis (NARR) model data (NCDC)","North American Regional Reanalysis (NARR) model data (NCDC)",null,{"$f":"IF(C41=0,B41,C41)","v":"North American Regional Reanalysis (NARR) model data (NCDC)"},"Climate and Weather ","DOC-NOAA","Dan Swank","Dan.Swank@noaa.gov"]
["Polar Operational Environmental Satellite (POES) data (NCDC)","Polar Operational Environmental Satellite (POES) data","Polar Operational Environmental Satellite (POES) data","Polar Operational Environmental Satellite (POES) data","Climate and Weather ","DOC-NOAA","John Bates","john.j.bates@noaa.gov"]
[null,null,"National Doplar Radar Data (NEXRAD)","National Doplar Radar Data (NEXRAD)","Climate and Weather ","DOC-NOAA"]
[null,null,"NOAA National Weather Service GIS Data","NOAA National Weather Service GIS Data","Climate and Weather ","DOC-NOAA"]
[null,null,"MODIS-based Atmospheric Products","MODIS-based Atmospheric Products","Climate and Weather ","USDA -FS (Along with USGS)"]
["Climate Data Sets ","Climate Datasets ",null,"Climate Datasets ","Climate and Weather ","USDA-NRCS","Jan Curtis","jan.curtis@por.usda.gov"]
["National Climate Data Center","National Climate Data Center",null,"National Climate Data Center","Climate and Weather ","USDA-NRCS","Jan Curtis","jan.curtis@por.usda.gov"]
["Parameter-elevation Regressions on Independent Slopes Model (PRISM) Data Sets","Parameter-elevation Regressions on Independent Slopes Model (PRISM) Datasets","Parameter-elevation Regressions on Independent Slopes Model (PRISM) Datasets","Parameter-elevation Regressions on Independent Slopes Model (PRISM) Datasets","Climate and Weather ","USDA-NRCS","Jan Curtis","jan.curtis@por.usda.gov"]
[{"$f":"SUBTOTAL(3,A33:A48)","v":13},{"$f":"SUBTOTAL(3,B33:B48)","v":13},{"$f":"SUBTOTAL(3,C33:C48)","v":7},{"$f":"SUBTOTAL(3,D33:D48)","v":16},"Climate and Weather  Count"]
[null,"5-digit ZIP Code Tabulation Area (Census 2000)","5-digit ZIP Code Tabulation Area (Census 2000)",{"$f":"IF(C50=0,B50,C50)","v":"5-digit ZIP Code Tabulation Area (Census 2000)"},"Cultural & Demographic Statistics ","DOC-Census","Jennifer Holland","Jennifer.L.Holland@census.gov"]
["AIR, ANVSA, Hawaiian Homelands Boundaries","AIR, ANVSA, Hawaiian Homelands Boundaries",null,"AIR, ANVSA, Hawaiian Homelands Boundaries","Cultural & Demographic Statistics ","DOC-Census","Randy Fusaro","randy.j.fusaro@census.gov"]
[null,"All Lines (2010 Census)","All Lines (2010 Census)","All Lines (2010 Census)","Cultural & Demographic Statistics ","DOC-Census","Jennifer Holland","Jennifer.L.Holland@census.gov"]
[null,"ANSI codes for  metro/micropolitan areas","ANSI codes for  metro/micropolitan areas","ANSI codes for  metro/micropolitan areas","Cultural & Demographic Statistics ","DOC-Census","Jennifer Holland","Jennifer.L.Holland@census.gov"]
[null,"ANSI codes for congressional districts","ANSI codes for congressional districts","ANSI codes for congressional districts","Cultural & Demographic Statistics ","DOC-Census","Jennifer Holland","Jennifer.L.Holland@census.gov"]
[null,"ANSI codes for counties","ANSI codes for counties","ANSI codes for counties","Cultural & Demographic Statistics ","DOC-Census","Jennifer Holland","Jennifer.L.Holland@census.gov"]
[null,"ANSI codes for states","ANSI codes for states","ANSI codes for states","Cultural & Demographic Statistics ","DOC-Census","Jennifer Holland","Jennifer.L.Holland@census.gov"]
[null,"Block (2010 Census)","Block (2010 Census)","Block (2010 Census)","Cultural & Demographic Statistics ","DOC-Census","Jennifer Holland","Jennifer.L.Holland@census.gov"]
[null,"Block (Census 2000)","Block (Census 2000)","Block (Census 2000)","Cultural & Demographic Statistics ","DOC-Census","Jennifer Holland","Jennifer.L.Holland@census.gov"]
[null,"Block Group (Census 2000)","Block Group (Census 2000)","Block Group (Census 2000)","Cultural & Demographic Statistics ","DOC-Census","Jennifer Holland","Jennifer.L.Holland@census.gov"]
[null,"Block Group (Census 2010)","Block Group (Census 2010)","Block Group (Census 2010)","Cultural & Demographic Statistics ","DOC-Census","Jennifer Holland","Jennifer.L.Holland@census.gov"]
[null,"Census 2000 FIPS 55 Codes","Census 2000 FIPS 55 Codes","Census 2000 FIPS 55 Codes","Cultural & Demographic Statistics ","DOC-Census","Jennifer Holland","Jennifer.L.Holland@census.gov"]
[null,"Census Tract (2010 Census)","Census Tract (2010 Census)","Census Tract (2010 Census)","Cultural & Demographic Statistics ","DOC-Census","Jennifer Holland","Jennifer.L.Holland@census.gov"]
[null,"Census Tract (Census 2000)","Census Tract (Census 2000)","Census Tract (Census 2000)","Cultural & Demographic Statistics ","DOC-Census","Jennifer Holland","Jennifer.L.Holland@census.gov"]
[null,"Combined Statistical Area (2010 Census)","Combined Statistical Area (2010 Census)","Combined Statistical Area (2010 Census)","Cultural & Demographic Statistics ","DOC-Census","Jennifer Holland","Jennifer.L.Holland@census.gov"]
[null,"Congressional District Boundaries",null,"Congressional District Boundaries","Cultural & Demographic Statistics ","DOC-Census","Randy Fusaro","randy.j.fusaro@census.gov"]
["County, place, MCD Boundaries","County, place, MCD Boundaries",null,"County, place, MCD Boundaries","Cultural & Demographic Statistics ","DOC-Census","Randy Fusaro","randy.j.fusaro@census.gov"]
[null,"Elementary School District (2010 Census)","Elementary School District (2010 Census)","Elementary School District (2010 Census)","Cultural & Demographic Statistics ","DOC-Census","Jennifer Holland","Jennifer.L.Holland@census.gov"]
[null,"Elementary School District (Census 2000)","Elementary School District (Census 2000)","Elementary School District (Census 2000)","Cultural & Demographic Statistics ","DOC-Census","Jennifer Holland","Jennifer.L.Holland@census.gov"]
["FIPS/ANSI codes for states, counties, congressional districts & metro/micropolitan areas","FIPS/ANSI codes for states, counties, congressional districts & metro/micropolitan areas",null,"FIPS/ANSI codes for states, counties, congressional districts & metro/micropolitan areas","Cultural & Demographic Statistics ","DOC-Census","Randy Fusaro","randy.j.fusaro@census.gov"]
["Metropolitan/micropolitan area boundaries","Metropolitan/micropolitan area boundaries",null,"Metropolitan/micropolitan area boundaries","Cultural & Demographic Statistics ","DOC-Census","Randy Fusaro","randy.j.fusaro@census.gov"]
[null,"Metropolitan/micropolitan Statistical Area (2010 Census)","Metropolitan/micropolitan Statistical Area (2010 Census)","Metropolitan/micropolitan Statistical Area (2010 Census)","Cultural & Demographic Statistics ","DOC-Census","Jennifer Holland","Jennifer.L.Holland@census.gov"]
[null,"Public Use Microdata Area (Census 2000)","Public Use Microdata Area (Census 2000)","Public Use Microdata Area (Census 2000)","Cultural & Demographic Statistics ","DOC-Census","Jennifer Holland","Jennifer.L.Holland@census.gov"]
["School District Boundaries","School District Boundaries",null,"School District Boundaries","Cultural & Demographic Statistics ","DOC-Census","Randy Fusaro","randy.j.fusaro@census.gov"]
[null,"Secondary School District (2010 Census)","Secondary School District (2010 Census)","Secondary School District (2010 Census)","Cultural & Demographic Statistics ","DOC-Census","Jennifer Holland","Jennifer.L.Holland@census.gov"]
[null,"Secondary School District (Census 2000)","Secondary School District (Census 2000)","Secondary School District (Census 2000)","Cultural & Demographic Statistics ","DOC-Census","Jennifer Holland","Jennifer.L.Holland@census.gov"]
["State (+ Territories) Boundaries","State (+ Territories) Boundaries",null,"State (+ Territories) Boundaries","Cultural & Demographic Statistics ","DOC-Census","Randy Fusaro","randy.j.fusaro@census.gov"]
["Statistical Area Boundaries (tracts, blocks, UAs, CDPs, etc)","Statistical Area Boundaries (tracts, blocks, UAs, CDPs, etc)",null,"Statistical Area Boundaries (tracts, blocks, UAs, CDPs, etc)","Cultural & Demographic Statistics ","DOC-Census","Randy Fusaro","randy.j.fusaro@census.gov"]
[null,"Super Public Use Microdata Area (Census 2000)","Super Public Use Microdata Area (Census 2000)","Super Public Use Microdata Area (Census 2000)","Cultural & Demographic Statistics ","DOC-Census","Jennifer Holland","Jennifer.L.Holland@census.gov"]
["TIGER* (many statistical boundaries)","TIGER (many statistical boundaries)",null,"TIGER (many statistical boundaries)","Cultural & Demographic Statistics ","DOC-Census","Randy Fusaro","randy.j.fusaro@census.gov"]
[null,"Topological Faces (2010 Census)","Topological Faces (2010 Census)","Topological Faces (2010 Census)","Cultural & Demographic Statistics ","DOC-Census","Jennifer Holland","Jennifer.L.Holland@census.gov"]
[null,"Unified School District (2010 Census)","Unified School District (2010 Census)","Unified School District (2010 Census)","Cultural & Demographic Statistics ","DOC-Census","Jennifer Holland","Jennifer.L.Holland@census.gov"]
[null,"Unified School District (Census 2000)","Unified School District (Census 2000)","Unified School District (Census 2000)","Cultural & Demographic Statistics ","DOC-Census","Jennifer Holland","Jennifer.L.Holland@census.gov"]
[null,"Urban Growth Area (2010 Census)","Urban Growth Area (2010 Census)","Urban Growth Area (2010 Census)","Cultural & Demographic Statistics ","DOC-Census","Jennifer Holland","Jennifer.L.Holland@census.gov"]
[null,"Urban Growth Area (Census 2000)","Urban Growth Area (Census 2000)","Urban Growth Area (Census 2000)","Cultural & Demographic Statistics ","DOC-Census","Jennifer Holland","Jennifer.L.Holland@census.gov"]
[null,"Voting District (2010 Census)","Voting District (2010 Census)","Voting District (2010 Census)","Cultural & Demographic Statistics ","DOC-Census","Jennifer Holland","Jennifer.L.Holland@census.gov"]
[null,"Voting District (Census 2000)","Voting District (Census 2000)","Voting District (Census 2000)","Cultural & Demographic Statistics ","DOC-Census","Jennifer Holland","Jennifer.L.Holland@census.gov"]
["Voting District Boundaries","Voting District Boundaries",null,"Voting District Boundaries","Cultural & Demographic Statistics ","DOC-Census","Randy Fusaro","randy.j.fusaro@census.gov"]
[null,null,"Oklahoma Tribal Joint Use Areas","Oklahoma Tribal Joint Use Areas","Cultural & Demographic Statistics ","DOC-Census"]
[null,null,"Oklahoma Tribal Statistical Areas","Oklahoma Tribal Statistical Areas","Cultural & Demographic Statistics ","DOC-Census"]
["National Center for Health Statistics (Atlas of US Mortality)","National Center for Health Statistics (Atlas of US Mortality)",null,"National Center for Health Statistics (Atlas of US Mortality)","Cultural & Demographic Statistics ","HHS","Gary Anderson","gary.anderson@hhs.gov"]
[{"$f":"SUBTOTAL(3,A50:A90)","v":10},{"$f":"SUBTOTAL(3,B50:B90)","v":39},{"$f":"SUBTOTAL(3,C50:C90)","v":30},{"$f":"SUBTOTAL(3,D50:D90)","v":41},"Cultural & Demographic Statistics  Count"]
["Cultural Landscape Boundaries","Cultural Landscape Boundaries","Cultural Landscape Boundaries",{"$f":"IF(C92=0,B92,C92)","v":"Cultural Landscape Boundaries"},"Cultural & Demographic Statistics \nCultural Resources","DOI-NPS","John Knoerl","john_knoerl@nps.gov"]
["Cultural Resource Survey Boundaries","Cultural Resource Survey Boundaries","Cultural Resource Survey Boundaries","Cultural Resource Survey Boundaries","Cultural & Demographic Statistics \nCultural Resources","DOI-NPS","John Knoerl","john_knoerl@nps.gov"]
["Ethnographic Resource Boundaries","Ethnographic Resource Boundaries","Ethnographic Resource Boundaries","Ethnographic Resource Boundaries","Cultural & Demographic Statistics \nCultural Resources","DOI-NPS","John Knoerl","john_knoerl@nps.gov"]
["Historic Buildings Boundaries","Historic Buildings Boundaries","Historic Buildings Boundaries","Historic Buildings Boundaries","Cultural & Demographic Statistics \nCultural Resources","DOI-NPS","John Knoerl","john_knoerl@nps.gov"]
["Historic Districts Boundaries","Historic Districts Boundaries","Historic Districts Boundaries","Historic Districts Boundaries","Cultural & Demographic Statistics \nCultural Resources","DOI-NPS","John Knoerl","john_knoerl@nps.gov"]
["Historic Objects Boundaries","Historic Objects Boundaries","Historic Objects Boundaries","Historic Objects Boundaries","Cultural & Demographic Statistics \nCultural Resources","DOI-NPS","John Knoerl","john_knoerl@nps.gov"]
["Historic Structures Boundaries","Historic Structures Boundaries","Historic Structures Boundaries","Historic Structures Boundaries","Cultural & Demographic Statistics \nCultural Resources","DOI-NPS","John Knoerl","john_knoerl@nps.gov"]
[null,null,"Other Cultural Resource Boundaries","Other Cultural Resource Boundaries","Cultural & Demographic Statistics \nCultural Resources","DOI-NPS"]
[{"$f":"SUBTOTAL(3,A92:A99)","v":7},{"$f":"SUBTOTAL(3,B92:B99)","v":7},{"$f":"SUBTOTAL(3,C92:C99)","v":8},{"$f":"SUBTOTAL(3,D92:D99)","v":8},"Cultural & Demographic Statistics \nCultural Resources Count"]
[null,"Point Landmark (2010 Census)","Point of Landmark (2010 Census)",{"$f":"IF(C101=0,B101,C101)","v":"Point of Landmark (2010 Census)"},"Cultural Resources","DOC-Census","Jennifer Holland","Jennifer.L.Holland@census.gov"]
[null,"Area Landmark (2010 Census)","Area Landmark (2010 Census)","Area Landmark (2010 Census)","Cultural Resources ","DOC-Census","Jennifer Holland","Jennifer.L.Holland@census.gov"]
[null,"Topological Faces-Area Landmark Relationship File","Topological Faces-Area Landmark Relationship File","Topological Faces-Area Landmark Relationship File","Cultural Resources ","DOC-Census","Jennifer Holland","Jennifer.L.Holland@census.gov"]
["Archeological Sites","Archeological Sites","Archeological Sites","Archeological Sites","Cultural Resources ","DOI-NPS","John Knoerl","john_knoerl@nps.gov"]
["National Map - Geographic Names Information System (GNIS)","National Map - Geographic Names Information System (GNIS)",null,"National Map - Geographic Names Information System (GNIS)","Cultural Resources ","DOI-USGS","Lou Yost","lyost@usgs.gov"]
[null,null,"Geographic Names Dataset - National Map","Geographic Names Dataset - National Map","Cultural Resources ","DOI-USGS"]
[{"$f":"SUBTOTAL(3,A101:A106)","v":2},{"$f":"SUBTOTAL(3,B101:B106)","v":5},{"$f":"SUBTOTAL(3,C101:C106)","v":5},{"$f":"SUBTOTAL(3,D101:D106)","v":6},"Cultural Resources Count"]
["National Ocean Service (NOS) Bathymetry Warehouse (name subject to change)","National Ocean Service (NOS) Bathymetry Warehouse (name subject to change)",null,{"$f":"IF(C108=0,B108,C108)","v":"National Ocean Service (NOS) Bathymetry Warehouse (name subject to change)"},"Elevation","DOC-NOAA"]
["National Ocean Service (NOS) Hydrographic Data Base (NOSHDB)","National Ocean Service (NOS) Hydrographic Data Base (NOSHDB)",null,"National Ocean Service (NOS) Hydrographic Data Base (NOSHDB)","Elevation","DOC-NOAA","Brian Mohr","Brian.Mohr@noaa.gov"]
["NOAA Estuarine Bathymetry","NOAA Estuarine Bathymetry",null,"NOAA Estuarine Bathymetry","Elevation","DOC-NOAA"]
["133 UA Elevation Data (lidar)","133 UA Elevation Data (lidar)",null,"133 UA Elevation Data (lidar)","Elevation","DOD-NGA","Ron Power, NGA","ronald.k.power@nga.mil"]
["DEMs - Archive","DEMs - Archive",null,"DEMs - Archive","Elevation","DOI-USGS","Gayla Evans","gevans@usgs.gov"]
["GTOPO30","GTOPO30",null,"GTOPO30","Elevation","DOI-USGS","Jeff Danielson"," daniels@usgs.gov"]
["National Map National Elevation Data Set (NED)","National Map  - National Elevation Dataset (NED)",null,"National Map  - National Elevation Dataset (NED)","Elevation","DOI-USGS","Jim Mauck","lyost@usgs.gov"]
["SRTM (3-arc second DTEDS)","SRTM (3-arc second DTEDS)",null,"SRTM (3-arc second DTEDS)","Elevation","DOI-USGS","Dean Gesch, USGS","gesch@usgs.gov"]
["Digital Flood Insurance Rate Maps (D-FIRM)","Digital Flood Insurance Rate Maps (D-FIRM)","Digital Flood Insurance Rate Maps (DFIRM)","Digital Flood Insurance Rate Maps (DFIRM)","Elevation ","DHS-FEMA","Scott McAfee","scott.mcaffee@dhs.gov"]
["National Flood Hazard Layer (NFHL)","National Flood Hazard Layer (NFHL)","National Flood Hazard Layer (NFHL)","National Flood Hazard Layer (NFHL)","Elevation ","DHS-FEMA","Scott McAfee","scott.mcaffee@dhs.gov"]
[null,null,"Elevation Bathymetric - Ocean, Coastal, and Great Lakes Bathymetry ","Elevation Bathymetric - Ocean, Coastal, and Great Lakes Bathymetry ","Elevation ","DOC-NOAA"]
[null,null,"National Elevation Dataset  - National Map","National Elevation Dataset  - National Map","Elevation ","DOI-USGS"]
[{"$f":"SUBTOTAL(3,A108:A119)","v":10},{"$f":"SUBTOTAL(3,B108:B119)","v":10},{"$f":"SUBTOTAL(3,C108:C119)","v":4},{"$f":"SUBTOTAL(3,D108:D119)","v":12},"Elevation Count"]
["GNSS Continuously Operating Reference Stations","GNSS Continuously Operating Reference Stations",null,{"$f":"IF(C121=0,B121,C121)","v":"GNSS Continuously Operating Reference Stations"},"Geodetic Control","DOC-NOAA","Giovanni Sella","giovanni.sella@noaa.gov"]
["GNSS Orbits","GNSS Orbits",null,"GNSS Orbits","Geodetic Control","DOC-NOAA","Bill Kass","bill.kass@noaa.gov"]
["Gravity and Geoid Data sets","Gravity and Geoid Datasets",null,"Gravity and Geoid Datasets","Geodetic Control","DOC-NOAA","Dan Roman","dan.roman@noaa.gov"]
["NGS Geodetic Monumented Control ","NGS Geodetic Monumented Control ",null,"NGS Geodetic Monumented Control ","Geodetic Control","DOC-NOAA","Jim Tomlin","jim.tomlin@noaa.gov"]
["Tidal Benchmarks","Tidal Benchmarks",null,"Tidal Benchmarks","Geodetic Control","DOC-NOAA","Tom Landon ","thomas.landon@noaa.gov"]
[null,"Primary and Secondary Roads","Precise Global Navigation Satellite System (GNSS) Orbits","Precise Global Navigation Satellite System (GNSS) Orbits","Geodetic Control ","DOC-Census","Jennifer Holland","Jennifer.L.Holland@census.gov"]
[null,null,"Airborne Gravity","Airborne Gravity","Geodetic Control ","DOC-NOAA"]
[null,null,"Continuously Operating Reference Stations (CORS)","Continuously Operating Reference Stations (CORS)","Geodetic Control ","DOC-NOAA"]
[null,null,"Geoid Models","Geoid Models","Geodetic Control ","DOC-NOAA"]
[null,null,"Terrestrial Gravity","Terrestrial Gravity","Geodetic Control ","DOC-NOAA"]
["National Geologic Data Base","National Geologic Data Base","National Geodetic Survey (NGS) Datasheets","National Geodetic Survey (NGS) Datasheets","Geodetic Control ","DOI-USGS","David R. Soller","drsoller@usgs.gov"]
[{"$f":"SUBTOTAL(3,A121:A131)","v":6},{"$f":"SUBTOTAL(3,B121:B131)","v":7},{"$f":"SUBTOTAL(3,C121:C131)","v":6},{"$f":"SUBTOTAL(3,D121:D131)","v":11},"Geodetic Control Count"]
["Coastline Data","Coastline Data","Coastline Data",{"$f":"IF(C133=0,B133,C133)","v":"Coastline Data"},"Geology","DOI-MMS","James Fulmer","james.s.fulmer@mms.gov"]
["OCS BLOCK LEASE DATA (OCS)","OCS BLOCK LEASE DATA ","OCS Active Leases","OCS Active Leases","Geology","DOI-MMS","James Fulmer","james.s.fulmer@mms.gov"]
[null,null,"MMS Baseline","MMS Baseline","Geology","DOI-MMS"]
[null,null,"Sand and Gravel","Sand and Gravel","Geology","DOI-MMS"]
[null,null,"Wells","Wells","Geology","DOI-MMS"]
[null,null,"Coal assessment and mapping","Coal assessment and mapping","Geology","DOI-USGS"]
[null,null,"Earthquake monitoring, research, and mapping","Earthquake monitoring, research, and mapping","Geology","DOI-USGS"]
[null,null,"Geochemistry","Geochemistry","Geology","DOI-USGS"]
[null,null,"Geochronology","Geochronology","Geology","DOI-USGS"]
[null,null,"Geologic mapping","Geologic mapping","Geology","DOI-USGS"]
[null,null,"Geomagnetism","Geomagnetism","Geology","DOI-USGS"]
[null,null,"Geophysics","Geophysics","Geology","DOI-USGS"]
[null,null,"Landslide monitoring, research, and mapping","Landslide monitoring, research, and mapping","Geology","DOI-USGS"]
[null,null,"Marine geology","Marine geology","Geology","DOI-USGS"]
[null,null,"Metallic mineral assessment and mapping","Metallic mineral assessment and mapping","Geology","DOI-USGS"]
[null,null,"Oil and gas assessment and mapping, onshore","Oil and gas assessment and mapping, onshore","Geology","DOI-USGS"]
[null,null,"Paleontology","Paleontology","Geology","DOI-USGS"]
[null,null,"Volcano monitoring, research, and mapping","Volcano monitoring, research, and mapping","Geology","DOI-USGS"]
[null,null,"Non-metallic mineral assessment and mapping, onshore",{"$f":"IF(C151=0,B150,C151)","v":"Non-metallic mineral assessment and mapping, onshore"},"Geology","DOI-USGS"]
[{"$f":"SUBTOTAL(3,A133:A151)","v":2},{"$f":"SUBTOTAL(3,B133:B151)","v":2},{"$f":"SUBTOTAL(3,C133:C151)","v":19},{"$f":"SUBTOTAL(3,D133:D151)","v":19},"Geology Count"]
["County Boundaries","County Boundaries",null,{"$f":"IF(C153=0,B153,C153)","v":"County Boundaries"},"Governmental Units"]
[null,"Place and MCD Boundaries",null,"Place and MCD Boundaries","Governmental Units"]
[null,"Alaska Native Regional Corporation (2010 Census)","Alaska Native Regional Corporation (2010 Census)","Alaska Native Regional Corporation (2010 Census)","Governmental Units ","DOC-Census","Jennifer Holland","Jennifer.L.Holland@census.gov"]
[null,"Alaska Native Regional Corporation (Census 2000)","Alaska Native Regional Corporation (Census 2000)","Alaska Native Regional Corporation (Census 2000)","Governmental Units ","DOC-Census","Jennifer Holland","Jennifer.L.Holland@census.gov"]
[null,"American Indian Tribal Subdivision (2010 Census)","American Indian Tribal Subdivision (2010 Census)","American Indian Tribal Subdivision (2010 Census)","Governmental Units ","DOC-Census","Jennifer Holland","Jennifer.L.Holland@census.gov"]
[null,"American Indian Tribal Subdivision (Census 2000)","American Indian Tribal Subdivision (Census 2000)","American Indian Tribal Subdivision (Census 2000)","Governmental Units ","DOC-Census","Jennifer Holland","Jennifer.L.Holland@census.gov"]
[null,"American Indian/Alaska Native/Native Hawaiian Area (2000 Census)","American Indian/Alaska Native/Native Hawaiian Area (2000 Census)","American Indian/Alaska Native/Native Hawaiian Area (2000 Census)","Governmental Units ","DOC-Census","Jennifer Holland","Jennifer.L.Holland@census.gov"]
[null,"American Indian/Alaska Native/Native Hawaiian Area (2010 Census)","American Indian/Alaska Native/Native Hawaiian Area (2010 Census)","American Indian/Alaska Native/Native Hawaiian Area (2010 Census)","Governmental Units ","DOC-Census","Jennifer Holland","Jennifer.L.Holland@census.gov"]
[null,"Combined New England City and Town Area (2010 Census)","Combined New England City and Town Area (2010 Census)","Combined New England City and Town Area (2010 Census)","Governmental Units ","DOC-Census","Jennifer Holland","Jennifer.L.Holland@census.gov"]
["Congressional District Boundaries","Congressional District (108th)","Congressional District (108th)","Congressional District (108th)","Governmental Units ","DOC-Census","Jennifer Holland","Jennifer.L.Holland@census.gov"]
[null,"Congressional District (111th)","Congressional District (111th)","Congressional District (111th)","Governmental Units ","DOC-Census","Jennifer Holland","Jennifer.L.Holland@census.gov"]
[null,"Consolidated City (2010 Census)","Consolidated City (2010 Census)","Consolidated City (2010 Census)","Governmental Units ","DOC-Census","Jennifer Holland","Jennifer.L.Holland@census.gov"]
[null,"Consolidated City (Census 2000)","Consolidated City (Census 2000)","Consolidated City (Census 2000)","Governmental Units ","DOC-Census","Jennifer Holland","Jennifer.L.Holland@census.gov"]
[null,"County and Equivalent (2010 Census)","County and Equivalent (2010 Census)","County and Equivalent (2010 Census)","Governmental Units ","DOC-Census","Jennifer Holland","Jennifer.L.Holland@census.gov"]
[null,"County and Equivalent (Census 2000)","County and Equivalent (Census 2000)","County and Equivalent (Census 2000)","Governmental Units ","DOC-Census","Jennifer Holland","Jennifer.L.Holland@census.gov"]
[null,"County Subdivision (2010 Census)","County Subdivision (2010 Census)","County Subdivision (2010 Census)","Governmental Units ","DOC-Census","Jennifer Holland","Jennifer.L.Holland@census.gov"]
[null,"County Subdivision (Census 2000)","County Subdivision (Census 2000)","County Subdivision (Census 2000)","Governmental Units ","DOC-Census","Jennifer Holland","Jennifer.L.Holland@census.gov"]
[null,"Metropolitan Division (2010 Census)","Metropolitan Division (2010 Census)","Metropolitan Division (2010 Census)","Governmental Units ","DOC-Census","Jennifer Holland","Jennifer.L.Holland@census.gov"]
[null,"Metropolitan Division (2010 Census)","Metropolitan Division (2010 Census)","Metropolitan Division (2010 Census)","Governmental Units ","DOC-Census","Jennifer Holland","Jennifer.L.Holland@census.gov"]
[null,"New England City and Town Area (2010 Census)","New England City and Town Area (2010 Census)","New England City and Town Area (2010 Census)","Governmental Units ","DOC-Census","Jennifer Holland","Jennifer.L.Holland@census.gov"]
[null,"New England City and Town Area Division (2010 Census)","New England City and Town Area Division (2010 Census)","New England City and Town Area Division (2010 Census)","Governmental Units ","DOC-Census","Jennifer Holland","Jennifer.L.Holland@census.gov"]
["Place and MCD Boundaries","Place (2010 Census)","Place (2010 Census)","Place (2010 Census)","Governmental Units ","DOC-Census","Jennifer Holland","Jennifer.L.Holland@census.gov"]
[null,"Place (Census 2000)","Place (Census 2000)","Place (Census 2000)","Governmental Units ","DOC-Census","Jennifer Holland","Jennifer.L.Holland@census.gov"]
["State(+ Territories) Boundaries","State and Equivalent  (2010 Census)","State and Equivalent  (2010 Census)","State and Equivalent  (2010 Census)","Governmental Units ","DOC-Census","Jennifer Holland","Jennifer.L.Holland@census.gov"]
[null,"State and Equivalent  (Census 2000)","State and Equivalent  (Census 2000)","State and Equivalent  (Census 2000)","Governmental Units ","DOC-Census","Jennifer Holland","Jennifer.L.Holland@census.gov"]
[null,"State Legislative District (Lower Chamber) (2010 Census)","State Legislative District (Lower Chamber) (2010 Census)","State Legislative District (Lower Chamber) (2010 Census)","Governmental Units ","DOC-Census","Jennifer Holland","Jennifer.L.Holland@census.gov"]
[null,"State Legislative District (Lower Chamber) (Census 2000)","State Legislative District (Lower Chamber) (Census 2000)","State Legislative District (Lower Chamber) (Census 2000)","Governmental Units ","DOC-Census","Jennifer Holland","Jennifer.L.Holland@census.gov"]
[null,"State Legislative District (Upper Chamber) (2010 Census)","State Legislative District (Upper Chamber) (2010 Census)","State Legislative District (Upper Chamber) (2010 Census)","Governmental Units ","DOC-Census","Jennifer Holland","Jennifer.L.Holland@census.gov"]
[null,"State Legislative District (Upper Chamber) (Census 2000)","State Legislative District (Upper Chamber) (Census 2000)","State Legislative District (Upper Chamber) (Census 2000)","Governmental Units ","DOC-Census","Jennifer Holland","Jennifer.L.Holland@census.gov"]
[null,"Subbarrio (2010 Census)","Subbarrio (2010 Census)","Subbarrio (2010 Census)","Governmental Units ","DOC-Census","Jennifer Holland","Jennifer.L.Holland@census.gov"]
[null,"Subbarrio (Census 2000)","Subbarrio (Census 2000)","Subbarrio (Census 2000)","Governmental Units ","DOC-Census","Jennifer Holland","Jennifer.L.Holland@census.gov"]
[null,"Urban Area (Corrected Census 2000)","Urban Area (Corrected Census 2000)","Urban Area (Corrected Census 2000)","Governmental Units ","DOC-Census","Jennifer Holland","Jennifer.L.Holland@census.gov"]
["Estuarine and Marine Reserves","Estuarine and Marine Reserves",null,"Estuarine and Marine Reserves","Governmental Units ","DOC-NOAA","Heather Sagar","Heather.Sagar@noaa.gov"]
["Fisheries Closure and Habitat Areas","Fisheries Closure and Habitat Areas",null,"Fisheries Closure and Habitat Areas","Governmental Units ","DOC-NOAA","Heather Sagar","Heather.Sagar@noaa.gov"]
["Sanctuaries","Sanctuaries",null,"Sanctuaries","Governmental Units ","DOC-NOAA","Christine Taylor","Christine.Taylor@noaa.gov"]
[{"$f":"SUBTOTAL(3,A153:A187)","v":7},{"$f":"SUBTOTAL(3,B153:B187)","v":35},{"$f":"SUBTOTAL(3,C153:C187)","v":30},{"$f":"SUBTOTAL(3,D153:D187)","v":35},"Governmental Units Count"]
["Emergency Response Imagery","Emergency Response Imagery","Emergency Response Imagery",{"$f":"IF(C189=0,B189,C189)","v":"Emergency Response Imagery"},"Imagery ","DOC-NOAA","Mike Aslaksen","mike.Aslaksen@noaa.gov"]
["133 Urban Areas imagery program data","133 Urban Areas imagery program data",null,"133 Urban Areas imagery program data","Imagery ","DOD-NGA","William Nellist","William.E.Nellist@nga.mil"]
[null,"134 Urban Areas imagery program data",null,"134 Urban Areas imagery program data","Imagery ","DOI-USGS","George Lee","gylee@usgs.gov"]
["ADS40 Hurricane Response 7.5' Quadrangle Mosaics","ADS40 Hurricane Response 7.5' Quadrangle Mosaics",null,"ADS40 Hurricane Response 7.5' Quadrangle Mosaics","Imagery ","DOI-USGS","Jim Mauck","jmauck@usgs.gov"]
["Digital Orthoimage Quarter Quadrangle (DOQQ) Archive","Digital Orthoimage Quarter Quadrangle (DOQQ) Archive",null,"Digital Orthoimage Quarter Quadrangle (DOQQ) Archive","Imagery ","DOI-USGS"]
["Landsat geometric/terrain corrected level 1T","Landsat geometric/terrain corrected level 1T","Landsat Terrain Corrected Scenes","Landsat Terrain Corrected Scenes","Imagery ","DOI-USGS","Kristi Kline","kkline@usgs.gov"]
["National Aerial Photography Program (NAPP) Data Archive","National Aerial Photography Program (NAPP) Data Archive",null,"National Aerial Photography Program (NAPP) Data Archive","Imagery ","DOI-USGS","Wayne Miller","wamiller@usgs.gov"]
["National Agriculture Imagery Program Data","National Agriculture Imagery Program Data","National Agriculture Imagery Program (NAIP) Archive","National Agriculture Imagery Program (NAIP) Archive","Imagery ","DOI-USGS","Shirley Hall","shirley.hall@wdc.usda.gov"]
["National Map Orthoimagery Database (TNM Seamless Server) ","National Map Orthoimagery Database (TNM Seamless Server) ",null,"National Map Orthoimagery Database (TNM Seamless Server) ","Imagery ","DOI-USGS","George Lee","gylee@usgs.gov"]
[null,null,"National  Orthoimagery Dataset - National Map","National  Orthoimagery Dataset - National Map","Imagery ","DOI-USGS"]
[null,null,"Fire, Detection: AVHRR FIMMA , GOES WF-ABBA","Fire, Detection: AVHRR FIMMA , GOES WF-ABBA","Imagery ","USDA"]
[null,null,"Satellite Imagery Archive","Satellite Imagery Archive","Imagery ","USDA-FSA"]
["National Resource Inventory Imagery","National Resource Inventory Imagery",null,"National Resource Inventory Imagery","Imagery ","USDA-WDC","Jerry Harlow","jerry.harlow@wdc.usda.gov"]
[{"$f":"SUBTOTAL(3,A189:A201)","v":9},{"$f":"SUBTOTAL(3,B189:B201)","v":10},{"$f":"SUBTOTAL(3,C189:C201)","v":6},{"$f":"SUBTOTAL(3,D189:D201)","v":13},"Imagery  Count"]
["Coastal Change Analysis Program (C-CAP)","Coastal Change Analysis Program (C-CAP)",null,{"$f":"IF(C203=0,B203,C203)","v":"Coastal Change Analysis Program (C-CAP)"},"Land Use-Land Cover ","DOC-NOAA","Nate Herold","Nate.Herold@noaa.gov"]
["National Parks Data","National Parks Data","National Parks Data","National Parks Data","Land Use-Land Cover ","DOI-MMS","James Fulmer","james.s.fulmer@mms.gov"]
["National Land Cover Dataset (NLCD)","National Land Cover Dataset (NLCD)","National Land Cover Dataset - GIRAS - 1975","National Land Cover Dataset - GIRAS - 1975","Land Use-Land Cover ","DOI-USGS","Colin Homer","homer@usgs.gov"]
["National Land Cover Dataset (NLCD)","National Land Cover Dataset (NLCD)","National Land Cover Dataset (NLCD)","National Land Cover Dataset (NLCD)","Land Use-Land Cover ","DOI-USGS","Colin Homer","homer@usgs.gov"]
[null,null,"National Land Cover Dataset - National Map","National Land Cover Dataset - National Map","Land Use-Land Cover ","DOI-USGS"]
[null,null,"National Land Cover Dataset - National Map - 1991","National Land Cover Dataset - National Map - 1991","Land Use-Land Cover ","DOI-USGS"]
[null,null,"National Land Cover Dataset - National Map - 2001","National Land Cover Dataset - National Map - 2001","Land Use-Land Cover ","DOI-USGS"]
[null,null,"National Land Cover Dataset - National Map 2006","National Land Cover Dataset - National Map 2006","Land Use-Land Cover ","DOI-USGS"]
[null,null,"National Land Cover Percent Canopy - National Map - 1991","National Land Cover Percent Canopy - National Map - 1991","Land Use-Land Cover ","DOI-USGS"]
[null,null,"National Land Cover Percent Imperviousness - National Map - 2001","National Land Cover Percent Imperviousness - National Map - 2001","Land Use-Land Cover ","DOI-USGS"]
[null,null,"National Land Cover Percent Imperviousness - National Map - 2006","National Land Cover Percent Imperviousness - National Map - 2006","Land Use-Land Cover ","DOI-USGS"]
[null,null,"Fire, Detection: Daily Active Fire Mapping","Fire, Detection: Daily Active Fire Mapping","Land Use-Land Cover ","USDA"]
[null,null,"Fire Severity: Monitoring Trends in Burn Severity (MTBS)","Fire Severity: Monitoring Trends in Burn Severity (MTBS)","Land Use-Land Cover ","USDA -FS (Along with USGS)"]
[null,null,"Earth Cover, Land: MODIS-based Land Products","Earth Cover, Land: MODIS-based Land Products","Land Use-Land Cover ","USDA -FS (Along with USGS)"]
[null,null,"Earth Cover, Vegetation, Forest: Forest Biomass, Types, Type Groups","Earth Cover, Vegetation, Forest: Forest Biomass, Types, Type Groups","Land Use-Land Cover ","USDA-FS"]
[null,null,"Earth Cover, Vegetation: Percent Forest Canopy","Earth Cover, Vegetation: Percent Forest Canopy","Land Use-Land Cover ","USDA-FS"]
[null,null,"Crops: Cropland Data Layer","Crops: Cropland Data Layer","Land Use-Land Cover ","USDA-NASS"]
[null,null,"Land Cover Strata Dataset","Land Cover Strata Dataset","Land Use-Land Cover ","USDA-NASS"]
["LANDFIRE Dataset","LANDFIRE Dataset","Land Fire Dataset","Land Fire Dataset","Land Use-Land Cover ",null,null,0]
[{"$f":"SUBTOTAL(3,A203:A221)","v":5},{"$f":"SUBTOTAL(3,B203:B221)","v":5},{"$f":"SUBTOTAL(3,C203:C221)","v":18},{"$f":"SUBTOTAL(3,D203:D221)","v":19},"Land Use-Land Cover  Count"]
["Assisted Housing (census geography or point-based) see http://www.huduser.org/picture2000/","Assisted Housing (census geography or point-based)",null,{"$f":"IF(C223=0,B223,C223)","v":"Assisted Housing (census geography or point-based)"},"Real Property","HUD","Jon Sperling","jon.sperling@hud.gov"]
["Enterprise Zones, Empowerment Communities, Revitalization Areas, Qualified Census Tracts, etc.  (census geography based)","Enterprise Zones, Empowerment Communities, Revitalization Areas, Qualified Census Tracts, etc.  (census geography based)",null,"Enterprise Zones, Empowerment Communities, Revitalization Areas, Qualified Census Tracts, etc.  (census geography based)","Real Property","HUD","Jon Sperling","jon.sperling@hud.gov"]
["National Map - Structures Dataset","National Map - Structures Dataset","National Structures Dataset - National Map","National Structures Dataset - National Map","Real Property ","DOI-USGS","Paul Wiese","pmwiese@usgs.gov"]
["Federal building location point ","Federal building location point ","Federal building location point ","Federal building location point ","Real Property ","GSA","Sandra Downie","sandra.downie@gsa.gov"]
["Federal building location polygon","Federal building location polygon","Federal building location polygon","Federal building location polygon","Real Property ","GSA","Sandra Downie","sandra.downie@gsa.gov"]
["Federal land area facility location point","Federal land area facility location point","Federal land area facility location point","Federal land area facility location point","Real Property ","GSA","Sandra Downie","sandra.downie@gsa.gov"]
["Federal land area facility location polygon","Federal land area facility location polygon","Federal land area facility location polygon","Federal land area facility location polygon","Real Property ","GSA","Sandra Downie","sandra.downie@gsa.gov"]
[null,"Military Installation","Military Installation","Military Installation","Real Property ","DOC-Census","Jennifer Holland","Jennifer.L.Holland@census.gov"]
[{"$f":"SUBTOTAL(3,A223:A230)","v":7},{"$f":"SUBTOTAL(3,B223:B230)","v":8},{"$f":"SUBTOTAL(3,C223:C230)","v":6},{"$f":"SUBTOTAL(3,D223:D230)","v":8},"Real Property Count"]
["Common Resource Area (CRA)","Common Resource Area (CRA)","Common Resource Area (CRA)",{"$f":"IF(C232=0,B232,C232)","v":"Common Resource Area (CRA)"},"Soils ","USDA","Chris W. Smith","Christopherw.Smith@wdc.usda.gov"]
["Hydric Soils","Hydric Soils",null,"Hydric Soils","Soils ","USDA","Chris W. Smith","Christopherw.Smith@wdc.usda.gov"]
["Location of Arable Lands","Location of Arable Lands",null,"Location of Arable Lands","Soils ","USDA","Karl Hipple","karl.hipple@lin.usda.gov"]
["Major Land Resource Area (MLRA)","Major Land Resource Area (MLRA)","Major Land Resource Area (MLRA)","Major Land Resource Area (MLRA)","Soils ","USDA","Karl Hipple","karl.hipple@lin.usda.gov"]
["National Cooperative Soil Survey (NCSS)","National Cooperative Soil Survey (NCSS)","National Cooperative Soil Characterization Database","National Cooperative Soil Characterization Database","Soils ","USDA","Paul Benedict","paul.benedict@wdc.usda.gov"]
["Prime and Statewide Important Farmlands","Prime and Statewide Important Farmlands",null,"Prime and Statewide Important Farmlands","Soils ","USDA","Chris W. Smith","Christopherw.Smith@wdc.usda.gov"]
["Soil Suitability for Disposal of Contaminated Crops ","Soil Suitability for Disposal of Contaminated Crops ",null,"Soil Suitability for Disposal of Contaminated Crops ","Soils ","USDA","Karl Hipple; Sharon Waltman","karl.hipple@lin.usda.gov; sharon.waltman@wv.usda.gov "]
["Soil Suitability for Large Animal Disposal","Soil Suitability for Large Animal Disposal",null,"Soil Suitability for Large Animal Disposal","Soils ","USDA","Chris W. Smith","Christopherw.Smith@wdc.usda.gov"]
["Soil Survey Geographic Database (SSURGO)","Soil Survey Geographic Database (SSURGO)","Soil Survey Geographic Database (SSURGO)","Soil Survey Geographic Database (SSURGO)","Soils ","USDA","Karl Hipple","karl.hipple@lin.usda.gov"]
["U.S. General Soil Map (STATSGO2)","U.S. General Soil Map (STATSGO2)","U.S. General Soil Map (STATSGO2)","U.S. General Soil Map (STATSGO2)","Soils ","USDA","Karl Hipple","karl.hipple@lin.usda.gov"]
[{"$f":"SUBTOTAL(3,A232:A241)","v":10},{"$f":"SUBTOTAL(3,B232:B241)","v":10},{"$f":"SUBTOTAL(3,C232:C241)","v":5},{"$f":"SUBTOTAL(3,D232:D241)","v":10},"Soils  Count"]
[null,"Address Range-Feature Name Relationship File","Address Range-Feature Name Relationship File",{"$f":"IF(C243=0,B243,C243)","v":"Address Range-Feature Name Relationship File"},"Transportation ","DOC-Census","Jennifer Holland","Jennifer.L.Holland@census.gov"]
[null,"Address Ranges Relationship File","Address Ranges Relationship File","Address Ranges Relationship File","Transportation ","DOC-Census","Jennifer Holland","Jennifer.L.Holland@census.gov"]
[null,"All Roads","All Roads","All Roads","Transportation ","DOC-Census","Jennifer Holland","Jennifer.L.Holland@census.gov"]
[null,"Primary Roads","Primary Roads","Primary Roads","Transportation ","DOC-Census","Jennifer Holland","Jennifer.L.Holland@census.gov"]
["TIGER (Roads/Rail)","TIGER (Roads/Rail)",null,"TIGER (Roads/Rail)","Transportation ","DOC-Census","Randy Fusaro","randy.j.fusaro@census.gov"]
[null,"Traffic Analysis Zone (Census 2000)","Traffic Analysis Zone (Census 2000)","Traffic Analysis Zone (Census 2000)","Transportation ","DOC-Census","Jennifer Holland","Jennifer.L.Holland@census.gov"]
[null,null,"Primary and Secondary Roads","Primary and Secondary Roads","Transportation ","DOC-Census","Jennifer Holland","Jennifer.L.Holland@census.gov"]
["NOAA Aeronautical Survey","NOAA Aeronautical Survey",null,"NOAA Aeronautical Survey","Transportation ","DOC-NOAA","Mark Howard","Mark.Howard@noaa.gov"]
["Inland Electronic Navigation Charts (IENC)","Inland Electronic Navigation Charts (IENC)","Inland Electronic Navigation Charts (IENC)","Inland Electronic Navigation Charts (IENC)","Transportation ","DOD-USACE","Joel Schlagel","Joel.D.Schlagel@erdc.usace.army.mil "]
["National Map - Transportation Dataset","National Map - Transportation Dataset","National Transportation Dataset - National Map","National Transportation Dataset - National Map","Transportation ","DOI-USGS","Paul Wiese","pmwiese@usgs.gov"]
["NTAD","NTAD","NTAD","NTAD","Transportation ","DOT-BTS","Robert Monniere","robert.monniere@dot.gov"]
["NTAD (TransitLines) ","NTAD (TransitLines) ","NTAD (TransitLines) ","NTAD (TransitLines) ","Transportation ","DOT-BTS","Robert Monniere ","robert.monniere@dot.gov \n"]
["NTAD (TransitStation) ","NTAD (TransitStation) ","NTAD (TransitStation) ","NTAD (TransitStation) ","Transportation ","DOT-BTS","Robert Monniere ","robert.monniere@dot.gov "]
[null,null,"NTAD (airports)","NTAD (airports)","Transportation ","DOT-BTS"]
[null,null,"NTAD (Rail)","NTAD (Rail)","Transportation ","DOT-BTS"]
[null,null,"National Interagency Trails Dataset","National Interagency Trails Dataset","Transportation ","USDA"]
[{"$f":"SUBTOTAL(3,A243:A258)","v":7},{"$f":"SUBTOTAL(3,B243:B258)","v":12},{"$f":"SUBTOTAL(3,C243:C258)","v":14},{"$f":"SUBTOTAL(3,D243:D258)","v":16},"Transportation  Count"]
[null,null,"Pipelines",{"$f":"IF(C260=0,B260,C260)","v":"Pipelines"},"Utilities ","DOI-MMS"]
[null,null,"Platforms",{"$f":"IF(C261=0,B261,C261)","v":"Platforms"},"Utilities ","DOI-MMS"]
[{"$f":"SUBTOTAL(3,A260:A261)","v":0},{"$f":"SUBTOTAL(3,B260:B261)","v":0},{"$f":"SUBTOTAL(3,C260:C261)","v":2},{"$f":"SUBTOTAL(3,D260:D261)","v":2},"Utilities  Count"]
[null,"Area Hydrography (2010 Census)","Area Hydrography (2010 Census)",{"$f":"IF(C263=0,B263,C263)","v":"Area Hydrography (2010 Census)"},"Water -Inland","DOC-Census","Jennifer Holland","Jennifer.L.Holland@census.gov"]
[null,"Linear Water Features","Linear Water Features","Linear Water Features","Water -Inland","DOC-Census","Jennifer Holland","Jennifer.L.Holland@census.gov"]
[null,"Topological Faces-Area Hydrography Relationship File","Topological Faces-Area Hydrography Relationship File","Topological Faces-Area Hydrography Relationship File","Water -Inland","DOC-Census","Jennifer Holland","Jennifer.L.Holland@census.gov"]
["National Inventory of Dams (NID)","National Inventory of Dams (NID)","National Inventory of Dams (NID)","National Inventory of Dams (NID)","Water -Inland","DOD-USACE","Rebecca Ragon","Rebecca.Ragon@usace.army.mil "]
["National Levee Database (NLD)","National Levee Database (NLD)","National Levee Database (NLD)","National Levee Database (NLD)","Water -Inland","DOD-USACE","Bryan Baker","Bryan.E.Baker@usace.army.mil"]
["National Wetlands Inventory (NWI) ","National Wetlands Inventory (NWI) ","National Wetlands Inventory (NWI) ","National Wetlands Inventory (NWI) ","Water -Inland","DOI-FWS","Tom Dahl  ","tom_dahl@fws.gov\n"]
["National Hydrography Data Set","National Hydrography Dataset","National Hydrography Dataset - National Map","National Hydrography Dataset - National Map","Water -Inland","DOI-USGS","Jeff Simley","jdsimley@usgs.gov"]
["Watershed Boundary Data Set (WBD)  ","Watershed Boundary Dataset (WBD)  ","Watershed Boundary Dataset (WBD)  ","Watershed Boundary Dataset (WBD)  ","Water -Inland","DOI-USGS","Karen Hanson","khanson@usgs.gov"]
["Watershed Boundary Data Set (WBD)  ","Watershed Boundary Dataset (WBD)  ","Watershed Boundary Dataset (WBD)  ","Watershed Boundary Dataset (WBD)  ","Water -Inland","DOI-USGS","Karen Hanson","khanson@usgs.gov"]
[null,null,"National Water Information System (NWIS)- Stream Gage Network","National Water Information System (NWIS)- Stream Gage Network","Water -Inland","DOI-USGS"]
[null,null,"National Water Information System (NWIS)- Water Quality Monitoring Stations","National Water Information System (NWIS)- Water Quality Monitoring Stations","Water -Inland","DOI-USGS"]
["Nautical charts","Nautical Charts",null,"Nautical Charts","Water -Inland"]
["NWIS & STORET","NWIS & STORET",null,"NWIS & STORET","Water -Inland",null,"EGIM"]
["Shore and sea boundaries","Shore and sea boundaries",null,"Shore and sea boundaries","Water -Inland",null,"EGIM"]
[{"$f":"SUBTOTAL(3,A263:A276)","v":9},{"$f":"SUBTOTAL(3,B263:B276)","v":12},{"$f":"SUBTOTAL(3,C263:C276)","v":11},{"$f":"SUBTOTAL(3,D263:D276)","v":14},"Water -Inland Count"]
["NOAA Nautical Charts","NOAA Nautical Charts","NOAA's Nautical Chart Products",{"$f":"IF(C278=0,B278,C278)","v":"NOAA's Nautical Chart Products"},"Water -Oceans and Coasts","DOC-NOAA","John Lowell","John.Lowell@noaa.gov"]
[null,null,"Coastal Change Analysis Program (C-CAP) Land Cover and Land Change Imagery","Coastal Change Analysis Program (C-CAP) Land Cover and Land Change Imagery","Water -Oceans and Coasts","DOC-NOAA"]
[null,null,"National Data Buoy Center (NDBC) Recent and Historical Data","National Data Buoy Center (NDBC) Recent and Historical Data","Water -Oceans and Coasts","DOC-NOAA"]
[null,null,"U.S. Marine Protected Areas Boundaries","U.S. Marine Protected Areas Boundaries","Water -Oceans and Coasts","DOC-NOAA"]
[null,null,"U.S. Maritime Zones/Boundaries","U.S. Maritime Zones/Boundaries","Water -Oceans and Coasts","DOC-NOAA"]
[null,null,"NOAA National Shoreline","NOAA National Shoreline","Water -Oceans and Coasts","DOC-NOAA","Doug Graham","Doug.Graham@noaa.gov"]
[null,null,"Coastal Barrier Resource System","Coastal Barrier Resource System","Water -Oceans and Coasts","DOI-FWS"]
["Continental Shelf Boundary Data","Continental Shelf Boundary Data","Continental Shelf Boundary Data","Continental Shelf Boundary Data","Water -Oceans and Coasts","DOI-MMS","James Fulmer","james.s.fulmer@mms.gov"]
[null,null,"Non-Projected Boundaries","Non-Projected Boundaries","Water -Oceans and Coasts","DOI-MMS"]
[null,null,"Projected Boundaries","Projected Boundaries","Water -Oceans and Coasts","DOI-MMS"]
["Contiguous Zone","Contiguous Zone",null,"Contiguous Zone","Water -Oceans and Coasts","DOC-NOAA","Meredith Westington","meredith.westington@noaa.gov"]
["Exclusive Economic Zone","Exclusive Economic Zone",null,"Exclusive Economic Zone","Water -Oceans and Coasts","DOC-NOAA","Meredith Westington","meredith.westington@noaa.gov"]
["NOAA Composite Shoreline","NOAA Composite Shoreline",null,"NOAA Composite Shoreline","Water -Oceans and Coasts","DOC-NOAA","Tara Miller","Tara.Miller@noaa.gov"]
["NOAA Extracted Vector Shoreline","NOAA Extracted Vector Shoreline",null,"NOAA Extracted Vector Shoreline","Water -Oceans and Coasts","DOC-NOAA","Matt Austin","Matthew.Austin@noaa.gov"]
["NOAA Medium Resolution Shoreline","NOAA Medium Resolution Shoreline",null,"NOAA Medium Resolution Shoreline","Water -Oceans and Coasts","DOC-NOAA","Robert Wilson","Robert.Wilson@noaa.gov"]
["NOAA National Shoreline","NOAA National Shoreline",null,"NOAA National Shoreline","Water -Oceans and Coasts","DOC-NOAA","Doug Graham","Doug.Graham@noaa.gov"]
["Territorial Sea","Territorial Sea",null,"Territorial Sea","Water -Oceans and Coasts","DOC-NOAA","Meredith Westington","meredith.westington@noaa.gov"]
[{"$f":"SUBTOTAL(3,A278:A294)","v":9},{"$f":"SUBTOTAL(3,B278:B294)","v":9},{"$f":"SUBTOTAL(3,C278:C294)","v":10},{"$f":"SUBTOTAL(3,D278:D294)","v":17},"Water -Oceans and Coasts Count"]
[{"$f":"SUBTOTAL(3,A2:A294)","v":134},{"$f":"SUBTOTAL(3,B2:B294)","v":205},{"$f":"SUBTOTAL(3,C2:C294)","v":200},{"$f":"SUBTOTAL(3,D2:D294)","v":276},"Grand Count"]

{"sheet":"FINAL by Theme summary","index":10,"n_rows":19,"n_cols":5,"rows_kept":19,"cut":false,"hidden":true,"merged":[]}
["Theme","LOC ORIGINAL (beginning of 2011)","LOC FINAL (October 2011)","NGDA List (October 2011)","FINAL List (November 2011)"]
["Biota Count",10,10,10,15]
["Cadastre Count",11,11,9,14]
["Climate and Weather  Count",13,13,7,16]
["Cultural & Demographic Statistics Count",17,46,38,49]
["Cultural Resources Count",2,5,5,6]
["Elevation Count",10,10,4,12]
["Geodetic Control Count",6,7,6,11]
["Geology Count",2,2,19,19]
["Governmental Units Count",7,35,30,35]
["Imagery  Count",9,10,6,13]
["Land Use-Land Cover  Count",5,5,18,19]
["Real Property Count",7,8,6,8]
["Soils  Count",10,10,5,10]
["Transportation  Count",7,12,14,16]
["Utilities  Count",0,0,2,2]
["Water -Inland Count",9,12,11,14]
["Water -Oceans and Coasts Count",9,9,10,17]
["TOTAL",{"$f":"SUM(B2:B18)","v":134},{"$f":"SUM(C2:C18)","v":205},{"$f":"SUM(D2:D18)","v":200},{"$f":"SUM(E2:E18)","v":276}]

{"sheet":"LOC FINAL with new Themes","index":11,"n_rows":206,"n_cols":13,"rows_kept":206,"cut":false,"hidden":true,"merged":[]}
["Dataset(s) (Full dataset description can be viewed by mousing over the cell)","OLD A-16 Theme","NEW A-16 Theme (NGDA Theme)","Agency (Taken from dataset manager email)","Name (Submitter can be viewed by mousing over the cell)","Email","Q1 How many data set(s) do you have? It is a single set or multiple sets? ","Q2 Are you a data set manager?","Q3 Are you the POC for transferring the data set and/or for information about the data set?","Q4 How often is the data set updated?","Q5 Is there an archive/backup of the data set or do you maintain an archived copy of it? If yes, how far back do you maintain a copy? Is it easily accessible?","Q6 Does the data set go by a different name or is it referred to internally by another descriptive name?","M\nP\nS"]
["133 UA Elevation Data (lidar)","Elevation Terrestrial","Elevation","DOD-NGA","Ron Power, NGA","ronald.k.power@nga.mil"]
["133 Urban Areas imagery program data","Digital Orthoimagery","Imagery ","DOD-NGA","William Nellist","William.E.Nellist@nga.mil"]
["134 Urban Areas imagery program data","Digital Orthoimagery","Imagery ","DOI-USGS","George Lee","gylee@usgs.gov"]
["5-digit ZIP Code Tabulation Area (Census 2000)","N/A","Cultural Demographic Statistics","DOC-Census","Jennifer Holland","Jennifer.L.Holland@census.gov"]
["Address Range-Feature Name Relationship File","N/A","Cultural Demographic Statistics","DOC-Census","Jennifer Holland","Jennifer.L.Holland@census.gov"]
["Address Ranges Relationship File","N/A","Cultural Demographic Statistics","DOC-Census","Jennifer Holland","Jennifer.L.Holland@census.gov"]
["ADS40 Hurricane Response 7.5' Quadrangle Mosaics","Digital Orthoimagery","Imagery ","DOI-USGS","Jim Mauck","jmauck@usgs.gov"]
["AIR, ANVSA, Hawaiian Homelands Boundaries","Cultural Demographic Statistics, Governmental Units","Cultural & Demographic Statistics ","DOC-Census","Randy Fusaro","randy.j.fusaro@census.gov"]
["Alaska Native Regional Corporation (2010 Census)","N/A","Cultural Demographic Statistics, Governmental Units","DOC-Census","Jennifer Holland","Jennifer.L.Holland@census.gov"]
["Alaska Native Regional Corporation (Census 2000)","N/A","Cultural Demographic Statistics, Governmental Units","DOC-Census","Jennifer Holland","Jennifer.L.Holland@census.gov"]
["All Lines (2010 Census)","N/A","Cultural Demographic Statistics, Governmental Units, Transportation","DOC-Census","Jennifer Holland","Jennifer.L.Holland@census.gov"]
["All Roads","N/A","Transportation","DOC-Census","Jennifer Holland","Jennifer.L.Holland@census.gov"]
["American Indian Tribal Subdivision (2010 Census)","N/A","Cultural Demographic Statistics, Governmental Units","DOC-Census","Jennifer Holland","Jennifer.L.Holland@census.gov"]
["American Indian Tribal Subdivision (Census 2000)","N/A","Cultural Demographic Statistics, Governmental Units","DOC-Census","Jennifer Holland","Jennifer.L.Holland@census.gov"]
["American Indian/Alaska Native/Native Hawaiian Area (2000 Census)","N/A","Cultural Demographic Statistics, Governmental Units","DOC-Census","Jennifer Holland","Jennifer.L.Holland@census.gov"]
["American Indian/Alaska Native/Native Hawaiian Area (2010 Census)","N/A","Cultural Demographic Statistics, Governmental Units","DOC-Census","Jennifer Holland","Jennifer.L.Holland@census.gov"]
["ANSI codes for  metro/micropolitan areas","N/A","Cultural Demographic Statistics","DOC-Census","Jennifer Holland","Jennifer.L.Holland@census.gov"]
["ANSI codes for congressional districts","N/A","Cultural Demographic Statistics","DOC-Census","Jennifer Holland","Jennifer.L.Holland@census.gov"]
["ANSI codes for counties","N/A","Cultural Demographic Statistics","DOC-Census","Jennifer Holland","Jennifer.L.Holland@census.gov"]
["ANSI codes for states","N/A","Cultural Demographic Statistics","DOC-Census","Jennifer Holland","Jennifer.L.Holland@census.gov"]
["Archeological Sites","Cultural Resources","Cultural Resources","DOI-NPS","John Knoerl","john_knoerl@nps.gov","Feature classes of the cultural resource data model (NPS only, other federal agencies handle it as they decide)","don't want a single centralized data set but focusing on standard approach","National Historic Presrevation Act says state historic preservation office has primary oversight (section 110)"]
["Area Hydrography (2010 Census)","N/A","Hydrography","DOC-Census","Jennifer Holland","Jennifer.L.Holland@census.gov"]
["Area Landmark (2010 Census)","N/A","Cultural Resources","DOC-Census","Jennifer Holland","Jennifer.L.Holland@census.gov"]
["Assisted Housing (census geography or point-based)","Housing","Real Property","HUD","Jon Sperling","jon.sperling@hud.gov"]
["Biomes, Ecoregions","Biological Resources","Biota ","DOI-USGS","Dan Phillips ","dphillips@usgs.gov"]
["Blended Sea Surface Temperature","Climate","Climate and Weather ","DOC-NOAA","Viva Banzon","Viva.Banzon@noaa.gov"]
["Block (2010 Census)","N/A","Cultural Demographic Statistics","DOC-Census","Jennifer Holland","Jennifer.L.Holland@census.gov"]
["Block (Census 2000)","N/A","Cultural Demographic Statistics","DOC-Census","Jennifer Holland","Jennifer.L.Holland@census.gov"]
["Block Group (Census 2000)","N/A","Cultural Demographic Statistics","DOC-Census","Jennifer Holland","Jennifer.L.Holland@census.gov"]
["Block Group (Census 2010)","N/A",null,"DOC-Census","Jennifer Holland","Jennifer.L.Holland@census.gov"]
["Census 2000 FIPS 55 Codes","N/A","Cultural Demographic Statistics","DOC-Census","Jennifer Holland","Jennifer.L.Holland@census.gov"]
["Census Tract (2010 Census)","N/A","Cultural Demographic Statistics","DOC-Census","Jennifer Holland","Jennifer.L.Holland@census.gov"]
["Census Tract (Census 2000)","N/A","Cultural Demographic Statistics","DOC-Census","Jennifer Holland","Jennifer.L.Holland@census.gov"]
["Climate Datasets ","Climate","Climate and Weather ","USDA-NRCS","Jan Curtis","jan.curtis@por.usda.gov","Other climate data acquired from our SNOTEL and SCAN observation networks can be accessed from these links.",{"$nulls":5},"M"]
["Coastal Change Analysis Program (C-CAP)","Earth Cover","Land Use-Land Cover ","DOC-NOAA","Nate Herold","Nate.Herold@noaa.gov","Answer might depend on how we slice and dice it...  C-CAP has up to three separate product lines (regional, high resolution, and a derived forest fragmentation classified data set).  We also have multiple dates of land cover for each of these (which I guess you would probably count).  See the following links (and bullets summarizing) on each.http://www.csc.noaa.gov/landcover\n- Covers CONUS coastal areas.  All areas for 1996, 2001, and 2006.\n- Some select CONUS geographies (WA, DE, MD, and VA) also have a 1992 date.\n- Covers state of Hawaii for 1992, 2001, and 2006.\n- includes individual dates and files highlighting changes between dates.\n\nhttp://www.csc.noaa.gov/digitalcoast/data/forestfrag/index.html\n- Covers CONUS coastal areas.  All areas for 1996, 2001, and 2006.\n- Other dates and geographies not currently included.\n\nhttp://www.csc.noaa.gov/digitalcoast/data/ccaphighres/index.html\n- Covers project level areas (year depends on geography, etc.)\n- Primarily data in the pacific (Hawaii and territories of American Samoa, Guam, and CNMI), as well as the USVIs, Jobos Bay Puerto Rico, and Santa Cruz area in CA.\n \n","Yes","Yes","- The CONUS products are updated approximately every five years (we are currently working on a 2010/2011 data set, to add to the above time series).","Yes.  We maintain and serve all of our data (at above addresses), and archive with NOAA's National Oceanic Data Center (NODC).  We consider the dates listed above as current data sets, as part of the data we produce is tracking and providing change data as well.","Not really...  Maybe the generic coastal land cover.  It is also very closely related and feeds into the National Land Cover Database (NLCD), which is a national land cover product developed by the Multi-Resolution Land Characteristics (MRLC) consortium.  this is an effort lead by the USGS.","M "]
["Coastline Data","Offshore Minerals","Geology ","DOI-MMS","James Fulmer","james.s.fulmer@mms.gov","undeliverable email- neeed to identify new contact"]
["Combined New England City and Town Area (2010 Census)","N/A","Cultural Demographic Statistics, Governmental Units","DOC-Census","Jennifer Holland","Jennifer.L.Holland@census.gov"]
["Combined Statistical Area (2010 Census)","N/A","Cultural Demographic Statistics","DOC-Census","Jennifer Holland","Jennifer.L.Holland@census.gov"]
["Common Resource Area (CRA)","Soils ","Soils ","USDA","Chris W. Smith","Christopherw.Smith@wdc.usda.gov"]
["Congressional District (108th)","N/A","Cultural Demographic Statistics","DOC-Census","Jennifer Holland","Jennifer.L.Holland@census.gov"]
["Congressional District (111th)","N/A","Cultural Demographic Statistics","DOC-Census","Jennifer Holland","Jennifer.L.Holland@census.gov"]
["Congressional District Boundaries","Cultural Demographic Statistics","Cultural & Demographic Statistics ","DOC-Census","Randy Fusaro","randy.j.fusaro@census.gov"]
["Consolidated City (2010 Census)","N/A","Cultural Demographic Statistics, Governmental Units","DOC-Census","Jennifer Holland","Jennifer.L.Holland@census.gov"]
["Consolidated City (Census 2000)","N/A","Cultural Demographic Statistics, Governmental Units","DOC-Census","Jennifer Holland","Jennifer.L.Holland@census.gov"]
["Contiguous Zone","Baseline/Maritime Zones","Water – Oceans and Coasts ","DOC-NOAA","Meredith Westington","meredith.westington@noaa.gov",null,null,null,"- We do also add historical dates, if that is of interest."]
["Continental Shelf Boundary Data","Offshore Minerals, Outer Continental Shelf","Geology ","DOI-MMS","James Fulmer","james.s.fulmer@mms.gov","undeliverable email- neeed to identify new contact"]
["County and Equivalent (2010 Census)","N/A","Cultural Demographic Statistics, Governmental Units","DOC-Census","Jennifer Holland","Jennifer.L.Holland@census.gov"]
["County and Equivalent (Census 2000)","N/A","Cultural Demographic Statistics, Governmental Units","DOC-Census","Jennifer Holland","Jennifer.L.Holland@census.gov"]
["County Boundaries","Governmental Units","Governmental Units"]
["County Subdivision (2010 Census)","N/A","Cultural Demographic Statistics","DOC-Census","Jennifer Holland","Jennifer.L.Holland@census.gov"]
["County Subdivision (Census 2000)","N/A","Cultural Demographic Statistics","DOC-Census","Jennifer Holland","Jennifer.L.Holland@census.gov"]
["County, place, MCD Boundaries","Cultural Demographic Statistics","Cultural & Demographic Statistics ","DOC-Census","Randy Fusaro","randy.j.fusaro@census.gov"]
["Cultural Landscape Boundaries","Cultural Resources","Cultural Resources","DOI-NPS","John Knoerl","john_knoerl@nps.gov","Feature classes of the cultural resource data model (NPS only, other federal agencies handle it as they decide)","don't want a single centralized data set but focusing on standard approach"]
["Cultural Resource Survey Boundaries","Cultural Resources","Cultural Resources","DOI-NPS","John Knoerl","john_knoerl@nps.gov","Feature classes of the cultural resource data model (NPS only, other federal agencies handle it as they decide)","don't want a single centralized data set but focusing on standard approach"]
["DEMs - Archive","Elevation Terrestrial","Elevation","DOI-USGS","Gayla Evans","gevans@usgs.gov","DEMS update at variable nature; are four data sets based on resolution; this is the POC and data manager; this is the name and maintain three complete with two physically separate on-site and one off-site",{"$nulls":5},"S"]
["Digital Flood Insurance Rate Maps (D-FIRM)","Flood Hazard / Floodplain","Water – Inland ","DHS-FEMA","Scott McAfee","scott.mcaffee@dhs.gov"]
["Digital Orthoimage Quarter Quadrangle (DOQQ) Archive","Digital Orthoimagery","Imagery ","DOI-USGS",null,null,"DOQQ is static; one data set; this is the POC and data manager. this is the name and maintain three complete with two physically separate on-site and one off-site",{"$nulls":5},"S"]
["Ecological Services","Biological Resources","Biota ","DOI-USGS","Dan Phillips ","dphillips@usgs.gov"]
["ECOMAP Datasets (Ecological Subregions: Sections and Subsections for the Conterminous United States ) ","Vegetation","Biota ","USDA-FS","David T. Cleland","dcleland@fs.fed.us","One, single set","Yes","Yes","Maps are updated on a 10-year cycle","The data is housed at and served by the Forest Service geodata portal, and is easily accessible.  The web address is: http://fsgeodata.fs.fed.us/other_resources/ecosubregions.html ","?   Internally, the data is named ECOMAP or the National Hierarchy of Ecological Units. ","S"]
["Elementary School District (2010 Census)","N/A","Cultural Demographic Statistics","DOC-Census","Jennifer Holland","Jennifer.L.Holland@census.gov"]
["Elementary School District (Census 2000)","N/A","Cultural Demographic Statistics","DOC-Census","Jennifer Holland","Jennifer.L.Holland@census.gov"]
["Emergency Response Imagery","Digital Orthoimagery","Imagery ","DOC-NOAA","Mike Aslaksen","mike.Aslaksen@noaa.gov","20-Multiple      ","No","Yes - email reply from Jon Sellars Jon.Sellars@noaa.gov","- Same for the forest frag.","Our data can be accessed through the following links: http://storms.ngs.noaagov/eri_page/index.html Gulf Oil Spill:\nhttp://hdds.usgs.gov/hdds2/pub/data/disaster/201004_Oilspill_GulfOfMexico/data/AERIAL_NOAA\nhttp://hdds.usgs.gov/hdds2/pub/data/disaster/201004_Oilspill_GulfOfMexico/data/AERIAL_NOAA_MOSAIC  Haiti Earthquake:\nhttp://hdds.usgs.gov/hdds2/pub/data/disaster/201001_Earthquake_Haiti/data/AERIAL_NOAA\nhttp://hdds.usgs.gov/hdds2/pub/data/disaster/201001_Earthquake_Haiti/data/AERIAL_NOAA_ORTHO\nMexico Earthquake:\nhttp://hdds.usgs.gov/hdds2/pub/data/disaster/201004_Earthquake_Mexico/data/AERIAL_NOAA_MOSAIC \n\n","Described by storm name, event or location.","M "]
["Enterprise Zones, Empowerment Communities, Revitalization Areas, Qualified Census Tracts, etc.  (census geography based)","Housing","Real Property","HUD","Jon Sperling","jon.sperling@hud.gov"]
["Env Sens Index Maps - classified shoreline","Shoreline","Water – Oceans and Coasts ","DOC-NOAA","Jill Petersen","jill.petersen@noaa.gov","There are approximately 70 different atlases. There are a few that are still not available in a GIS format, (approx 7 of the approx 70!) - these are available as the hard copy product and as PDFs (scanned). The remaining atlases are available in multiple GIS formats - Arc Export files, Geodatabase with an ArcMap map document complete with all relates established and properly symbolized, Shape files with an ArcView 3.x project, a free ESI viewer that allows viewing, queries and printing (in house mapping program and filemaker pro) as well as PDF format and the hard copy product. These can be downloaded from http://response.restoration.noaa.gov/esi_download This page is in progress, but should be complete fairly quickly.\n\n","Yes","Yes ","- High resolution products have no defined update schedule.  TBD by geog/project.","Yes and no. We have archives of all the digital data as well as all the PDFs (scanned or produced with the digital data map comps). Many of the hard copy atlases from the first round of ESI maps were sent to the Library of Commerce. Others I have kept, but no very organized situation. However, we have all of the historic PDFs which are an exact duplicate of the hard copy atlas, so that is something. Historic data is going to be served from the above link as well. That will be added as the current data sets are completed.","ESI is the common abbreviation for these maps. Other than that, Environmental Sensitivity Index Maps, Shoreline Sensitivity maps, Environmental Sensitivity maps..... These maps have the classified shoreline, as well as summaries of biological and human use resource particularly sensitive to oiling. ","M "]
["Environmental Sensitivity Index Maps","Biological Resources, Cultural Resources","Biota ","DOC-NOAA","Jill Petersen","jill.petersen@noaa.gov","Same as Env Sens Index Maps - classified shoreline",null,null,"- Hawaii is TBD, but most likely will end up being a 10 year update cycle."]
["Estuarine and Marine Reserves","Marine Boundaries","Governmental Units ","DOC-NOAA","Heather Sagar","Heather.Sagar@noaa.gov"]
["Ethnographic Resource Boundaries","Cultural Resources","Cultural Resources","DOI-NPS","John Knoerl","john_knoerl@nps.gov","Feature classes of the cultural resource data model (NPS only, other federal agencies handle it as they decide)","don't want a single centralized data set but focusing on standard approach"]
["Exclusive Economic Zone","Baseline/Maritime Zones, Cadastral - Offshore","Water – Oceans and Coasts ","DOC-NOAA","Meredith Westington","meredith.westington@noaa.gov"]
["Federal building location point ","Buildings & Facilities","Real Property","GSA","Sandra Downie","sandra.downie@gsa.gov"]
["Federal building location polygon","Buildings & Facilities","Real Property","GSA","Sandra Downie","sandra.downie@gsa.gov"]
["Federal land area facility location point","Buildings & Facilities","Real Property","GSA","Sandra Downie","sandra.downie@gsa.gov"]
["Federal land area facility location polygon","Buildings & Facilities","Real Property","GSA","Sandra Downie","sandra.downie@gsa.gov"]
["FIPS/ANSI codes for states, counties, congressional districts & metro/micropolitan areas","Cultural Demographic Statistics","Cultural & Demographic Statistics ","DOC-Census","Randy Fusaro","randy.j.fusaro@census.gov"]
["Fisheries Closure and Habitat Areas","Marine Boundaries","Governmental Units ","DOC-NOAA","Heather Sagar","Heather.Sagar@noaa.gov"]
["GAP Program Dataset","Earth Cover","Land Use-Land Cover ","DOI-USGS","Kevin Gergely","gergely@usgs.gov","POC; multiple data sets in single location, building three fundamental data layers, two are national (protected areas, land cover dataset); backup; six months, annually)",{"$nulls":5},"P"]
["General Land Office","Public Land Conveyance","Cadastre","DOI-BLM","Juan Palma","juan_palma@blm.gov"]
["Geographic Coordinate Data Base (GCDB)","Cadastral","Cadastre","DOI-BLM","Don Buhler","don_buhler@blm.gov","every agency has its own database; multiple data sets; standard being advanced and put into practice; federal interest is managed with BLM; state and local are authoritative sets for other lands; ",{"$nulls":5},"M "]
["Geostationary Operational Environmental Satellite (GOES) data (NCDC)","Climate","Climate and Weather ","DOC-NOAA","Nancy Ritchey","Nancy.Ritchey@noaa.gov","Define 'data set'.  Each spacecraft continuously produces a data stream.  There are multiple sets and the total going back to the late 70s or early 80s numbers in the millions","Yes","Yes","Continuously","There are two active archive centers for these data; one here in Asheville, NC and one in Boulder, CO.  These data go back to the late 70s and all data are on line wither on disc or robotic tape storage","Again, define your terms.  For examples see www.class.noaa.gov - Raw data are listed by satellite (GOES or POES) and then be instrument.  Geophysical products are listed by product name."]
["Global Historical Climate Network (GHCN) daily data (NCDC)","Climate","Climate and Weather ","DOC-NOAA","Matt Menne","matthew.menne@noaa.gov"]
["Global Historical Climate Network (GHCN) monthly data (NCDC)","Climate","Climate and Weather ","DOC-NOAA","Jay Lawrimore","Jay.Lawrimore@noaa.gov","It is a single dataset consisting of multiple files. 6 total. 2 for monthly mean temperature (uncorrected and corrected), 2 for monthly maximum temperature, and 2 for monthly minimum temperature. available at http://www.ncdc.noaa.gov/ghcnm/v3.php .","I am head of the branch that developed and updates the dataset.","Byron Gleason (Byron.Gleason@noaa.gov) is the appropriate contact.  ","Daily","The files are time stamped each day they are produced and then stored when the next days run is made. The archived copies are not publicly available but can be retrieved by NCDC staff as needed.","It goes by GHCN-M."]
["GNSS Continuously Operating Reference Stations","Geodetic Control","Geodetic Control","DOC-NOAA","Giovanni Sella","giovanni.sella@noaa.gov"]
["GNSS Orbits","Geodetic Control","Geodetic Control","DOC-NOAA","Bill Kass","bill.kass@noaa.gov"]
["Gravity and Geoid Datasets","Geodetic Control","Geodetic Control","DOC-NOAA","Dan Roman","dan.roman@noaa.gov","Multiple data sets. Most can be located at: http://www.ngs.noaa.gov/GEOID/","Yes -Geoid Team Lead","Definitely POC regarding questions about the dataset. The data are freely available for download on the through the above website. If there are problems, then I also answer questions. We do also have a IT specialist to help with debugging and website maintenance","Models a re*generally* produced every three years. However, it has more to do with when the underlying data change. the hybrid geoids we create draw from leveling and GPS data in the NGS database. Once that has been updated sufficiently, we produce new models. The National Adjustment of 2011 will alter ellipsoidal coordinates for bench marks, hence, there will be a GEOID12.","Most of the files used to make the various models are backed up on our Unix systems. The idea being that we should be able to replicate the models from the same starting data. The final models themselves are backed up in a separate directory. I believe that much of the data posted for use in online servers is also backed up at the NOAA mirror site in Boulder. This last is more a function of the Systems Development Division that maintains our webpages and access to the data.","Pretty much the naming convention has been standardized, and we use it internally and externally the same way.","M "]
["GTOPO30","Elevation Terrestrial","Elevation","DOI-USGS","Jeff Danielson"," daniels@usgs.gov","GTOPO30 is static; one data set; this is the POC and data manager; this is the name and maintain three complete with two physically separate on-site and one off-site"]
["Habitats","Biological Resources","Biota ","DOI-USGS","Dan Phillips ","dphillips@usgs.gov","see protected areas and land cover set; vertebrae species of US being developed (not complete for all species they want to include in it.",{"$nulls":5},"M"]
["Historic Buildings Boundaries","Cultural Resources","Cultural Resources","DOI-NPS","John Knoerl","john_knoerl@nps.gov","Feature classes of the cultural resource data model (NPS only, other federal agencies handle it as they decide)","don't want a single centralized data set but focusing on standard approach"]
["Historic Districts Boundaries","Cultural Resources","Cultural Resources","DOI-NPS","John Knoerl","john_knoerl@nps.gov","Feature classes of the cultural resource data model (NPS only, other federal agencies handle it as they decide)","don't want a single centralized data set but focusing on standard approach"]
["Historic Objects Boundaries","Cultural Resources","Cultural Resources","DOI-NPS","John Knoerl","john_knoerl@nps.gov","Feature classes of the cultural resource data model (NPS only, other federal agencies handle it as they decide)","don't want a single centralized data set but focusing on standard approach"]
["Historic Structures Boundaries","Cultural Resources","Cultural Resources","DOI-NPS","John Knoerl","john_knoerl@nps.gov","Feature classes of the cultural resource data model (NPS only, other federal agencies handle it as they decide)","don't want a single centralized data set but focusing on standard approach",{"$nulls":4},"M "]
["Hurricane Satellite","Climate","Climate and Weather ","DOC-NOAA","Ken Knapp","ken.knapp@noaa.gov"]
["Hydric Soils","Soils ","Soils ","USDA","Chris W. Smith","Christopherw.Smith@wdc.usda.gov"]
["Inland Electronic Navigation Charts (IENC)","Elevation Bathymetric, Transportation - Marine","Elevation","DOD-USACE","Joel Schlagel","Joel.D.Schlagel@erdc.usace.army.mil "]
["Integrated Global Radiosonde Archive (IGRA) upper air data (NCDC)","Climate","Climate and Weather ","DOC-NOAA","Imke Durre","imke.durre@noaa.gov"]
["Integrated Surface Data (ISD) at National Climate Data Center (NCDC) ","Climate","Climate and Weather ","DOC-NOAA","Neal Lott","neal.lott@noaa.gov","This is a single data set, developed as an integration of multiple data sets and sources.","I am currently the data set manager jointly with Russel Vose, cc'ed here Russell.Vose@noaa.gov","I am one of the POC's here at NCDC.  We have a User Engagement and Services Branch which handles user inquiries, etc.","It's updated once per day with the most recent data (ie, yesterday's observations).","We have an archive copy and a backup copy.  The period of record of the data is 1900 to present.  It's very easily accessible via multiple services (FTP, GIS, Web Services, etc).","Integrated Surface Data is its name, but is sometimes referred to generically as global hourly surface data."]
["Invasive Species","Biological Resources","Biota ","DOI-USGS","Dan Phillips ","dphillips@usgs.gov","There are hundreds of datasets that are produced and maintained by the GAP program. Dan is not the data set manager, but I work with the people that maintain and update the datasets and maintains metadata.The data are updated at different intervals, especially now that they have moved more to a regional and national based approach. GAPS data sets presumably archived since 1990s.",{"$nulls":5},"M"]
["LANDFIRE Dataset","Earth Cover","Land Use-Land Cover "]
["Landsat geometric/terrain corrected level 1T","Digital Orthoimagery","Imagery ","DOI-USGS","Kristi Kline","kkline@usgs.gov","Landsat updates daily; a series of data sets; this is the POC and data manager; this is the name and maintain three complete with two physically separate on-site and one off-site",{"$nulls":5},"S"]
["Linear Water Features","N/A","Hydrography","DOC-Census","Jennifer Holland","Jennifer.L.Holland@census.gov"]
["Location of Arable Lands","Soils ","Soils ","USDA","Karl Hipple","karl.hipple@lin.usda.gov","undeliverable email- neeed to identify new contact"]
["LR 2000 - Master Title Plats ","Federal Land Ownership","Cadastre","DOI-BLM","Jeff Holdren","jeff_holdren@blm.gov","listing of sales, rents, agricultural disposal and rights of way cases, group of data sets in one system; Kim Burns, division chief; not archived, there is a backup; Denver office handles",{"$nulls":5},"P"]
["Major Land Resource Area (MLRA)","Soils ","Soils ","USDA","Karl Hipple","karl.hipple@lin.usda.gov","undeliverable email- neeed to identify new contact"]
["Manual of Surveying Instructions, Data Standards","Cadastral","Cadastre","DOI-BLM","Don Buhler","don_buhler@blm.gov"]
["Metropolitan Division (2010 Census)","N/A","Cultural Demographic Statistics, Governmental Units","DOC-Census","Jennifer Holland","Jennifer.L.Holland@census.gov"]
["Metropolitan Division (2010 Census)","N/A","Cultural Demographic Statistics","DOC-Census","Jennifer Holland","Jennifer.L.Holland@census.gov"]
["Metropolitan/micropolitan area boundaries","Cultural Demographic Statistics","Cultural & Demographic Statistics ","DOC-Census","Randy Fusaro","randy.j.fusaro@census.gov"]
["Metropolitan/micropolitan Statistical Area (2010 Census)","N/A","Cultural Demographic Statistics","DOC-Census","Jennifer Holland","Jennifer.L.Holland@census.gov"]
["Military Installation","N/A","Cultural Demographic Statistics","DOC-Census","Jennifer Holland","Jennifer.L.Holland@census.gov"]
["Mineral Estate - Fluids","Public Land Conveyance","Cadastre","DOI-BLM","Tim Spisak ","tim_spisak@blm.gov","mineral leasess, mining claims, rights of way, gases (single data set); BLM-managed lands but managed all federal mineral estate (comprehensive for mineraal estate) some electronic and some not",{"$nulls":5},"P"]
["Mineral Estate - Solids","Public Land Conveyance","Cadastre","DOI-BLM","Mitchell Leverette","mitchell_leverette@blm.gov","mineral leasess, mining claims, rights of way, gases (single data set); BLM-managed lands but managed all federal mineral estate (comprehensive for mineral estate) some electronic and some not",{"$nulls":5},"P"]
["Multipurpose Marine Cadastre","Cadastral - Offshore","Cadastre","DOI-MMS","James Fulmer","james.s.fulmer@mms.gov","undeliverable email- neeed to identify new contact"]
["National Aerial Photography Program (NAPP) Data Archive","Digital Orthoimagery","Imagery ","DOI-USGS","Wayne Miller","wamiller@usgs.gov","NAPP is static; one data set; this is the POC and data manager; this is the name and maintain three complete with two physically separate on-site and one off-site ",{"$nulls":5},"S"]
["National Agriculture Imagery Program Data","Digital Orthoimagery","Imagery ","DOI-USGS","Shirley Hall","shirley.hall@wdc.usda.gov","Shirley identified Dan Good as new contact 'daniel.good@wdc.usda.gov' - need to follow up with either or both"]
["National Center for Health Statistics (Atlas of US Mortality)","Public Health","Cultural & Demographic Statistics ","HHS","Gary Anderson","gary.anderson@hhs.gov"]
["National Climate Data Center","Climate","Climate and Weather ","USDA-NRCS","Jan Curtis","jan.curtis@por.usda.gov","administered by NOAA - is there a contact there?"]
["National Cooperative Soil Survey (NCSS)","Soils ","Soils ","USDA","Paul Benedict","paul.benedict@wdc.usda.gov","We have our Soil Survey Geographic database called SSURGO which is made available through the following sites:\nWeb Soil Survey:    http://websoilsurvey.nrcs.usda.gov/app/\nSoil Data Mart:     http://soildatamart.nrcs.usda.gov/\nSoil Data Access:   http://sdmdataaccess.nrcs.usda.gov\n\nWe also have: \nLab Soil Survey Lab Characterization Data (Point data): http://ssldata.nrcs.usda.gov/ aka NCSS Characterization Database\nSoil Series Classification Database http://soils.usda.gov/technical/classification/scfile/index.html\nU.S. General Soil Map (STATSGO2)\nMajor Land Resource Area (MLRA) http://soils.usda.gov/survey/geography/mlra/\n             Common Resource Areas (CRA) \n\n","? No, I am a Program Manager. Various other people have roles of maintaining the data. ","I am a general information POC for all things soil survey related. For more technical aspects on our data sets a good POC would be David Hoover, National Leader for Soil Business Systems or someone on his staff. His contact number is 402-437-4013 or email at david.hoover@lin.usda.gov. ","Our data sets are constantly being updated by about 1000 soil and plant scientists in several agencies. ","Our data sets are archived, but I don’t know how far back. I will have to get back to you on that. It is my understanding that archived sets are not easily accessible.  We have archive data for SSURGO (Soil Data Warehouse from mid 2000’s or earlier – Jim Fortner or Jennifer Sweet may be able to confirm or provide more detail; We also have archive data for STATSGO (circa 1994;1996) and for MLRA (1978; 2001; 2006) in local holdings.  Not sure about lab data archives, Henry Ferguson or Larry West can confirm.  ","? the Lab Characterization Data is also known as the “NCSS Characterization Database”\nAdded Common Resource Area geographic database (CRA).","P"]
["National Flood Hazard Layer (NFHL)","Flood Hazard / Floodplain","Water – Inland ","DHS-FEMA","Scott McAfee","scott.mcaffee@dhs.gov"]
["National Geologic Data Base","Geologic","Geology ","DOI-USGS","David R. Soller","drsoller@usgs.gov"]
["National Hydrography Dataset","Hydrography","Water – Inland ","DOI-USGS","Jeff Simley","jdsimley@usgs.gov"]
["National Inventory of Dams (NID)","Hydrography","Water – Inland ","DOD-USACE","Rebecca Ragon","Rebecca.Ragon@usace.army.mil ","One single data set","Yes","Yes","Usually every 2 years","Because the NID is updated every 2 years, we do have archived databased datig back to 1994.","The official name is National Inventory of Dams (NID) but I have seen the database referenced as the National Dam Inventory","S"]
["National Land Cover Dataset (NLCD)","Earth Cover, Vegetation","Land Use-Land Cover ","DOI-USGS","Colin Homer","homer@usgs.gov","The table below summarizes NLCD products available for download from the MRLC website http://www.mrlc.gov/ ","No.  The \"manager\" of the data is Jon Dewitz. \nContact Information -   \nJon Dewitz\ndewitz@usgs.gov\n605-594-2715\nNLCD Quality Supervisor\nUSGS Earth Resources Observation and Science Center (EROS)\nMundt Federal Building\n47914 252nd St.\nSioux Falls, SD 57198\nfax 605-594-6529\n","Joyce Fry is the POC. \nContact information - \nJoyce Fry, Geographer\nUnited States Geological Survey (USGS)\nEarth Resources Observation and  Science (EROS) Center\nMundt Federal Building\n47914 252nd Street\nSioux Falls, South Dakota 57198\n(P)  605.594.2739\n(F)  605.594.6529\n(e)  jfry@usgs.gov \n","Every 5 years","Yes, there is an archive/backup of the dataset through the EROS Long Term Archive (LTA) group.  I will need to get back to if you need additional information regarding the archive process. ","National Land Cover Database or NLCD along with the era number, either 1992 or 2001, or 2006. ","S"]
["National Land Cover Dataset (NLCD)","Earth Cover, Vegetation","Land Use-Land Cover ","USDA-FS","David T. Cleland; Colin Homer","homer@usgs.gov","The table below summarizes NLCD products available for download from the MRLC website http://www.mrlc.gov/ ","No.  The \"manager\" of the data is Jon Dewitz. \nContact Information -   \nJon Dewitz\ndewitz@usgs.gov\n605-594-2715\nNLCD Quality Supervisor\nUSGS Earth Resources Observation and Science Center (EROS)\nMundt Federal Building\n47914 252nd St.\nSioux Falls, SD 57198\nfax 605-594-6529\n","Joyce Fry is the POC. \nContact information - \nJoyce Fry, Geographer\nUnited States Geological Survey (USGS)\nEarth Resources Observation and  Science (EROS) Center\nMundt Federal Building\n47914 252nd Street\nSioux Falls, South Dakota 57198\n(P)  605.594.2739\n(F)  605.594.6529\n(e)  jfry@usgs.gov \n","Every 5 years","Yes, there is an archive/backup of the dataset through the EROS Long Term Archive (LTA) group.  I will need to get back to if you need additional information regarding the archive process. ","National Land Cover Database or NLCD along with the era number, either 1992 or 2001, or 2006. ","S"]
["National Levee Database (NLD)","Hydrography","Water – Inland ","DOD-USACE","Bryan Baker","Bryan.E.Baker@usace.army.mil"]
["National Map  - National Elevation Dataset (NED)","Elevation Terrestrial","Elevation","DOI-USGS","Jim Mauck","lyost@usgs.gov"]
["National Map - Geographic Names Information System (GNIS)","Geographic Names","Cultural Resources ","DOI-USGS","Lou Yost","lyost@usgs.gov","single data set; poc, data managers; daily updated; Denver systems people backup and archive; transfer to NARA also; Gaz vector (internal)",{"$nulls":5},"S"]
["National Map - Structures Dataset","Buildings & Facilities","Real Property","DOI-USGS","Paul Wiese","pmwiese@usgs.gov","National Map updates monthly; a series of data sets; this is the POC and data manager; this is the name and maintain three complete with two physically separate on-site and one off-site",{"$nulls":5},"S"]
["National Map - Transportation Dataset","Transportation","Transportation ","DOI-USGS","Paul Wiese","pmwiese@usgs.gov"]
["National Map Orthoimagery Database (TNM Seamless Server) ","Digital Orthoimagery","Imagery ","DOI-USGS","George Lee","gylee@usgs.gov"]
["National Ocean Service (NOS) Bathymetry Warehouse (name subject to change)","Elevation Bathymetric","Elevation","DOC-NOAA",{"$nulls":8},"P"]
["National Ocean Service (NOS) Hydrographic Data Base (NOSHDB)","Elevation Bathymetric","Elevation","DOC-NOAA","Brian Mohr","Brian.Mohr@noaa.gov","I manage several datadatabases/datasets.  They include SURDEX, our database of hydrographic survey outlines(polygons) in a MapInfo platform and  the Bathydatabase which is a collection of our BAGs or Bathymetric Attribution Grid files. ","Yes","Yes","archived at NGDC","Currently these files are being prepped to be pushed into either  a Caris or ESRI database platform.  I also have a shared role in managing our Survey Tracking database called Survey Tracker.  Each is updated weekly, they are backed up by our internal IT staff",null,"M "]
["National Parks Data","Offshore Minerals","Geology ","DOI-MMS","James Fulmer","james.s.fulmer@mms.gov","undeliverable email- neeed to identify new contact"]
["National Resource Inventory Imagery","Digital Orthoimagery","Imagery ","USDA-WDC","Jerry Harlow","jerry.harlow@wdc.usda.gov","Shirley identified Dan Good as new contact 'daniel.good@wdc.usda.gov' - need to follow up with either or both"]
["National Standardized Ecosystems Dataset","Earth Cover","Land Use-Land Cover ","DOI-USGS","Roger Sayre","rsayre@usgs.gov"]
["National Wetlands Inventory (NWI) ","Wetlands","Water – Inland ","DOI-FWS","Tom Dahl  ","tom_dahl@fws.gov\n"]
["Nautical Charts","Hydrography","Water – Inland "]
["New England City and Town Area (2010 Census)","N/A","Cultural Demographic Statistics, Governmental Units","DOC-Census","Jennifer Holland","Jennifer.L.Holland@census.gov"]
["New England City and Town Area Division (2010 Census)","N/A","Cultural Demographic Statistics, Governmental Units","DOC-Census","Jennifer Holland","Jennifer.L.Holland@census.gov"]
["NEXRAD Level II and III radar data (NCDC)","Climate","Climate and Weather ","DOC-NOAA","Steve Del Greco","stephen.a.delgreco@noaa.gov","The NEXRAD datasets for level II and Level III are archived by site.  There are 158 NEXRAD sites with data that goes back to ~ 1994.  See URL http://www.ncdc.noaa.gov/nexradinv/ for NEXRAD web services for ordering data.","I'm the NEXRAD program manager for NCDC.  This also includes other radar networks for example the FAA Terminal Doppler Weather Radar (45 sites).","Yes","NEXRAD Level II and Level III data are ingested at NCDC in near real time (~ 10 second latency).  We make the data available via the web ~ 24 hours after receipt.  The NEXRAD/TDWR data is also available in near real time through data feeds supported by partnerships we have with the University of Oklahoma, Purdue and Education and Research Consortium of the Western Carolinas. ","NEXRAD data is archived and backed up and goes back to ~ 1994 (depends on station).  Data is free of charge and accessible via the URL above","The data set is from the Weather Surveillance Radar 1988 Doppler, but most commonly  know as \"NEXRAD\"  Level II for the base or raw data and Level III for derived products"]
["NGS Geodetic Monumented Control ","Geodetic Control","Geodetic Control","DOC-NOAA","Jim Tomlin","jim.tomlin@noaa.gov","One set.","Yes","yes","?","The NGS database isn't something that NGS makes available en masse (that would kind of defeat the purpose of having a database), but rather we provide online tools for the public to access the subset of data that they are interested in."]
["NOAA Aeronautical Survey","Transportation, Transportation - Marine","Transportation ","DOC-NOAA","Mark Howard","Mark.Howard@noaa.gov","The NOAA/NGS Aeronautical Survey Program (ASP) provides products and services to the FAA in accordance with an interagency agreement.  The ASP is a reimbursable program that performs work as requested by the Aeronautical Information Services Office (AIS).  The aeronautical surveys we conduct and review provide airport geodetic control, runway, navigational aid, obstruction, an other aeronautical data that is critical to the operation of the National Airspace System. Recently our role, in support of the FAA, has migrated from primarily being a data provider to reviewing survey data collected by third party commerical surveyors. The survey data (collected by NGS or submitted by 3rd party) is considered good as of the date collected.  The surveys are forwarded to the FAA.  The data supports FAA Instrument Approach Procedure development and is also ingested into databases used to update FAA publications. The NGS has been conducting aeronautical surveys for over 7 decades. We have conducted surveys at over 1200 airports.  Each survey is a single data set.  We began storing the survey data (electronically) in a database around 1990 (prior to that it was all paper).  Note that many of these surveys we conducted are not current. The FAA does obtain aeronautical survey data from many different sources. The 3rd party surveys we review is submitted to the FAA. We retreive a copy of the survey data from an FAA portal to perform our reveiw.       ","No, I'm the Program Manager serving as the NGS liason with FAA offices that leverage NGS expertise and capabilities.    ","I could be. We don't have a designated person that performs that function. Being a reimbursable program our tasks are limited to those specified in our interagency agreement, which is limited to providing (transfering) the data sets to the FAA.  We are not involved in the dissemenation or distribution of the product.  In the past, when we were conducting more surveys, we would post the survey data (in UDDF format) to our web site (http://www.ngs.noaa.gov/AERO/UDDFdat.htm).  These survey data sets are still available on our site but we no longer post new surveys to the site.  The data is now either submitted to the FAA Third Party Survey Site (TPSS) or the FAA Airports Surveying GIS (AGIS) Program web site (https://airports-gis.faa.gov/public/index.html).  Both sites require registration.  The data uploaded to the TPSS site is assessable via a public site (https://tpss.faa.gov/tpss/uddfList.jsp).    ","Updates are contigent on NGS receiving a request from the FAA to conduct another survey.  We do not survey airports on a regular cylce.   We use to survey the larger airports (FAA Part 139) every 3-5 years.  With advances in use of GPS naviagtion the FAA's need for aeronautical survey data increased significantly.  They are now developing Approach procedures for many smaller airports (no need to purchase or maintain ground based ILS equipment).    ","Yes, we do have an archive and backup of the surveys we conducted.  Internally we transfer our survey data from our database to differnet environments (photogrammetric workstation, field data logger) via a custom designed ascii text based \"exchange file format\" (EXG). I don't know how easily it would be to make this accessible. I would need to discuss with our database manager.  When ever I ask him a single question he usualy turns around and asks me 10 questions.  The scope of the request would need to be defined. A word of caution.... there is more recent survey data available (from other sources) at many of the airports we have surveyed.  ","The aeronautical data set we forward to the FAA is referred to as a UDDF.... which is really the format of the file the data is transferred in.  The documentation for this file format is available on our web site (http://www.ngs.noaa.gov/AERO/annof_7.htm).  Internally it is the \"exchange file format\" (EXG), but of course our workfoce access the information our database via interactive software.  NGS has also established Primary and Secondary Airport Control Stations at many airports across the country.  This control is tied directly to the National Spatial Reference System (NSRS) and available via the NGS IDB (web site).  They are permanent marks with precisly determined positions and elevations that must meet specific siting, construction, and accuracy requirements. The control stations can be retrieved in a variety of formats.  ","M "]
["NOAA Composite Shoreline","Shoreline","Water – Oceans and Coasts ","DOC-NOAA","Tara Miller","Tara.Miller@noaa.gov"]
["NOAA Estuarine Bathymetry","Elevation Bathymetric","Elevation","DOC-NOAA"]
["NOAA Extracted Vector Shoreline","Shoreline","Water – Oceans and Coasts ","DOC-NOAA","Matt Austin","Matthew.Austin@noaa.gov"]
["NOAA Medium Resolution Shoreline","Shoreline","Water – Oceans and Coasts ","DOC-NOAA","Robert Wilson","Robert.Wilson@noaa.gov"]
["NOAA National Shoreline","Shoreline","Water – Oceans and Coasts ","DOC-NOAA","Doug Graham","Doug.Graham@noaa.gov","1,665 shoreline projects (data sets)","Yes","Yes","    There are historical and contemporary data set updates to the NOAA Shoreline Data Explorer application.  The historical data sets are from a data rescue project called Climate Data Modernization Program.  These projects would be loaded in bulk batches every few months.  The funding for this program was recently terminated.  The contemporary data sets are our current shoreline updates to the NOAA National Shoreline.  These projects are uploaded when completed which vary in numbers but within the last twelve months there were over 30 contemporary shoreline survey projects loaded.","The National Geodetic Survey performs data base backs ups including the NGS Shoreline Data Base.  Currently there is no archived copy of the NGS Shoreline Data Base.   I believe the backups occur every couple weeks and these backups are not easily accessible.","The data set as a whole is referenced as the \"National Shoreline\".  This is composed of individual contemporary or historical data sets including GCs, DMs, TP-Sheets, and T-Sheets.","M "]
["NOAA Nautical Charts","Baseline/Maritime Zones, International Boundaries, Shoreline, Transportation - Marine","Water – Oceans and Coasts ","DOC-NOAA","John Lowell","John.Lowell@noaa.gov"]
["North American Regional Reanalysis (NARR) model data (NCDC)","Climate","Climate and Weather ","DOC-NOAA","Dan Swank","Dan.Swank@noaa.gov","The NARR natively contains 2x sub sets) 3 hr time series / monthly averages.","Depends on the exact definition: there is no one with that exact job title at NCDC-NOMADS","Yes","NARR is updated on a daily basis, typically arriving 1-3 days from real-time.  Serial integrity is not guaranteed until 1 month has passed.","Multiple copies exist, including HPSS, off-site HPSS, TSM, and mirrored spinning disk copies.  Backups are for the entire set.  While the backups are not public accessible, the disk mirror can be put in place in minutes and the tape copies may take a day or two","Besides the acronym NARR -- no"]
["NTAD","Transportation - Marine","Transportation ","DOT-BTS","Robert Monniere","robert.monniere@dot.gov"]
["NTAD (TransitLines) ","Transportation","Transportation ","DOT-BTS","Robert Monniere ","robert.monniere@dot.gov \n"]
["NTAD (TransitStation) ","Transportation","Transportation ","DOT-BTS","Robert Monniere ","robert.monniere@dot.gov "]
["NWIS & STORET","Hydrography","Water – Inland ",null,"EGIM"]
["OCS BLOCK LEASE DATA ","Offshore Minerals","Geology ","DOI-MMS","James Fulmer","james.s.fulmer@mms.gov","undeliverable email- neeed to identify new contact"]
["Parameter-elevation Regressions on Independent Slopes Model (PRISM) Datasets","Climate","Climate and Weather ","USDA-NRCS","Jan Curtis","jan.curtis@por.usda.gov","info provided via http://www.prism.oregonstate.edu/ and \nhttp://www.nrcs.usda.gov/wps/portal/nrcs/main/?ss=16&navtype=SubNavigation&cid=null&navid=850130000000000&pnavid=850000000000000&position=SubNavigation&ttype=main&pname=USDA%2520NRCS%2520-%2520Natural%2520Resources%2520Conservation%2520Service\n",{"$nulls":5},"M"]
["Parcels","Cadastral","Cadastre","DOI-BLM","Bob Ader","bob_ader@blm.gov","every agency has its own database; multiple data sets; standard being advanced and put into practice; federal interest is managed with BLM; state and local are authoritative sets for other lands; current effort of federal inventory ",{"$nulls":5},"M "]
["Place (2010 Census)","N/A","Cultural Demographic Statistics, Governmental Units","DOC-Census","Jennifer Holland","Jennifer.L.Holland@census.gov"]
["Place (Census 2000)","N/A","Cultural Demographic Statistics, Governmental Units","DOC-Census","Jennifer Holland","Jennifer.L.Holland@census.gov"]
["Place and MCD Boundaries","Governmental Units","Governmental Units"]
["Point Landmark (2010 Census)","N/A","Cultural Resources","DOC-Census","Jennifer Holland","Jennifer.L.Holland@census.gov"]
["Polar Operational Environmental Satellite (POES) data","Climate","Climate and Weather ","DOC-NOAA","John Bates","john.j.bates@noaa.gov"]
["Primary and Secondary Roads","N/A","Transportation","DOC-Census","Jennifer Holland","Jennifer.L.Holland@census.gov"]
["Primary Roads","N/A","Transportation","DOC-Census","Jennifer Holland","Jennifer.L.Holland@census.gov"]
["Prime and Statewide Important Farmlands","Soils ","Soils ","USDA","Chris W. Smith","Christopherw.Smith@wdc.usda.gov"]
["Public Use Microdata Area (Census 2000)","N/A","Cultural Demographic Statistics","DOC-Census","Jennifer Holland","Jennifer.L.Holland@census.gov"]
["Sanctuaries","Marine Boundaries","Governmental Units ","DOC-NOAA","Christine Taylor","Christine.Taylor@noaa.gov"]
["School District Boundaries","Cultural Demographic Statistics","Cultural & Demographic Statistics ","DOC-Census","Randy Fusaro","randy.j.fusaro@census.gov"]
["Secondary School District (2010 Census)","N/A","Cultural Demographic Statistics","DOC-Census","Jennifer Holland","Jennifer.L.Holland@census.gov"]
["Secondary School District (Census 2000)","N/A","Cultural Demographic Statistics","DOC-Census","Jennifer Holland","Jennifer.L.Holland@census.gov"]
["Shore and sea boundaries","Hydrography","Water – Inland ",null,"EGIM"]
["Soil Suitability for Disposal of Contaminated Crops ","Soils ","Soils ","USDA","Karl Hipple; Sharon Waltman","karl.hipple@lin.usda.gov; sharon.waltman@wv.usda.gov ","undeliverable email- neeed to identify new contact"]
["Soil Suitability for Large Animal Disposal","Soils ","Soils ","USDA","Chris W. Smith","Christopherw.Smith@wdc.usda.gov"]
["Soil Survey Geographic Database (SSURGO)","Soils ","Soils ","USDA","Karl Hipple","karl.hipple@lin.usda.gov","undeliverable email- neeed to identify new contact"]
["Species Distribution (amphibians, birds, reptiles, mammals, fishes, plants, etc)","Biological Resources","Biota ","DOI-USGS","Dan Phillips ","dphillips@usgs.gov","There are hundreds of datasets that are produced and maintained by the GAP program. Dan is not the data set manager, but I work with the people that maintain and update the datasets and maintains metadata. The data are updated at different intervals, especially now that they have moved more to a regional and national based approach. GAPS data sets presumably archived since 1990s.",{"$nulls":5},"M"]
["SRTM (3-arc second DTEDS)","Elevation Terrestrial","Elevation","DOI-USGS","Dean Gesch, USGS","gesch@usgs.gov","SRTM is static; one data set; this is the POC and data manager; this is the name and maintain three complete with two physically separate on-site and one off-site",{"$nulls":5},"S"]
["State (+ Territories) Boundaries","Cultural Demographic Statistics, Governmental Units","Cultural & Demographic Statistics ","DOC-Census","Randy Fusaro","randy.j.fusaro@census.gov"]
["State and Equivalent  (2010 Census)","N/A","Cultural Demographic Statistics, Governmental Units","DOC-Census","Jennifer Holland","Jennifer.L.Holland@census.gov"]
["State and Equivalent  (Census 2000)","N/A","Cultural Demographic Statistics, Governmental Units","DOC-Census","Jennifer Holland","Jennifer.L.Holland@census.gov"]
["State Legislative District (Lower Chamber) (2010 Census)","N/A","Cultural Demographic Statistics","DOC-Census","Jennifer Holland","Jennifer.L.Holland@census.gov"]
["State Legislative District (Lower Chamber) (Census 2000)","N/A","Cultural Demographic Statistics","DOC-Census","Jennifer Holland","Jennifer.L.Holland@census.gov"]
["State Legislative District (Upper Chamber) (2010 Census)","N/A","Cultural Demographic Statistics","DOC-Census","Jennifer Holland","Jennifer.L.Holland@census.gov"]
["State Legislative District (Upper Chamber) (Census 2000)","N/A","Cultural Demographic Statistics","DOC-Census","Jennifer Holland","Jennifer.L.Holland@census.gov"]
["Statistical Area Boundaries (tracts, blocks, UAs, CDPs, etc)","Cultural Demographic Statistics","Cultural & Demographic Statistics ","DOC-Census","Randy Fusaro","randy.j.fusaro@census.gov"]
["Subbarrio (2010 Census)","N/A","Cultural Demographic Statistics","DOC-Census","Jennifer Holland","Jennifer.L.Holland@census.gov"]
["Subbarrio (Census 2000)","N/A","Cultural Demographic Statistics","DOC-Census","Jennifer Holland","Jennifer.L.Holland@census.gov"]
["Super Public Use Microdata Area (Census 2000)","N/A","Cultural Demographic Statistics","DOC-Census","Jennifer Holland","Jennifer.L.Holland@census.gov"]
["Surface Estate","Public Land Conveyance","Cadastre","DOI-BLM","Kim Burns","kim_m_burns@blm.gov","lands administered by BLM; other agencies have own system; ownership of lands;  Tim Spisak, division chief; not archived, there is a backup; Denver office handles"]
["Territorial Sea","Baseline/Maritime Zones","Water – Oceans and Coasts ","DOC-NOAA","Meredith Westington","meredith.westington@noaa.gov","    National-scale maritime limits/boundaries are available as separate data layers or as a packaged bundle."]
["Tidal Benchmarks","Geodetic Control","Geodetic Control","DOC-NOAA","Tom Landon ","thomas.landon@noaa.gov"]
["TIGER (many statistical boundaries)","Cultural Demographic Statistics","Cultural & Demographic Statistics ","DOC-Census","Randy Fusaro","randy.j.fusaro@census.gov"]
["TIGER (Roads/Rail)","Transportation","Transportation ","DOC-Census","Randy Fusaro","randy.j.fusaro@census.gov"]
["Topological Faces (2010 Census)","N/A","Cultural Demographic Statistics","DOC-Census","Jennifer Holland","Jennifer.L.Holland@census.gov"]
["Topological Faces-Area Hydrography Relationship File","N/A","Cultural Demographic Statistics","DOC-Census","Jennifer Holland","Jennifer.L.Holland@census.gov"]
["Topological Faces-Area Landmark Relationship File","N/A","Cultural Demographic Statistics","DOC-Census","Jennifer Holland","Jennifer.L.Holland@census.gov"]
["Traffic Analysis Zone (Census 2000)","N/A","Transportation","DOC-Census","Jennifer Holland","Jennifer.L.Holland@census.gov"]
["U.S. General Soil Map (STATSGO2)","Soils ","Soils ","USDA","Karl Hipple","karl.hipple@lin.usda.gov","undeliverable email- neeed to identify new contact"]
["U.S. Official Cadastral Survey Records","Cadastral","Cadastre","DOI-BLM","Don Buhler","don_buhler@blm.gov","every agency has its own database; multiple data sets; standard being advanced and put into practice; federal interest is managed with BLM; state and local are authoritative sets for other lands; state offices are scanning these records (survey plats and field notes); CDI (conveyence cards)",{"$nulls":5},"M "]
["U.S. Public Land Survey System","Cadastral","Cadastre","DOI-BLM","Don Buhler","don_buhler@blm.gov","only federal agency that administers the PLSS; trying to get it to be logically one data set with different regions. (working copies for nine states in West); keep historical record in data base; schema 2 is the version to look at for archiving some time March 2012",{"$nulls":5},"P"]
["Unified School District (2010 Census)","N/A","Cultural Demographic Statistics","DOC-Census","Jennifer Holland","Jennifer.L.Holland@census.gov"]
["Unified School District (Census 2000)","N/A","Cultural Demographic Statistics","DOC-Census","Jennifer Holland","Jennifer.L.Holland@census.gov"]
["Urban Area (Corrected Census 2000)","N/A","Cultural Demographic Statistics","DOC-Census","Jennifer Holland","Jennifer.L.Holland@census.gov"]
["Urban Growth Area (2010 Census)","N/A","Cultural Demographic Statistics","DOC-Census","Jennifer Holland","Jennifer.L.Holland@census.gov"]
["Urban Growth Area (Census 2000)","N/A","Cultural Demographic Statistics","DOC-Census","Jennifer Holland","Jennifer.L.Holland@census.gov"]
["Voting District (2010 Census)","N/A","Cultural Demographic Statistics","DOC-Census","Jennifer Holland","Jennifer.L.Holland@census.gov"]
["Voting District (Census 2000)","N/A","Cultural Demographic Statistics","DOC-Census","Jennifer Holland","Jennifer.L.Holland@census.gov"]
["Voting District Boundaries","Cultural Demographic Statistics","Cultural & Demographic Statistics ","DOC-Census","Randy Fusaro","randy.j.fusaro@census.gov"]
["Watershed Boundary Dataset (WBD)  ","Watersheds","Water – Inland ","DOI-USGS","Karen Hanson","khanson@usgs.gov","one set with nested hierarchy of six different levels within it (regions, subdivided into four, six and twelve digits), POC and data manager; continually updated; co-managed with NRCS and they archive it; USGS in Denver will serve it; All transactions are archived in versions in the database as they happen. Data from any moment in time can be captured with a simple query. The database is replicated daily to Rolla, MO servers. The database is stored on a SAN with three tier redundancy.All changes to the database are stored on separate disks and once they reach a certain size, they are copied over to a server to be written to tape. Weekly, the entire database (NHD, with WBD) is written to tape.Monthly, the tapes are taken off site for storage.",{"$nulls":5},"S"]
["Watershed Boundary Dataset (WBD)  ","Watersheds","Water – Inland ","USDA","Steve Nechero","steven.nechero@ftw.usda.gov;\n laura.davenport@ftw.usda.gov","Currently, there are three depicted below, but the model will be changing in Fiscal Year 2012 when the\nUSGS takes over maintenance, likely by the Spring of 2012.  If you need that person’s contact information, I can give it to you. \n","Laura Davenport serves as the Watershed Boundary Dataset National Technical Coordinator. Currently, all data edits come through Me, but that will also change when the USGS takes over maintenance of the data.\n","Laura Davenport is one of three technical coordinators, 1 at NRCS and 2 at the USGS.  Karen Hanson, with the USGS, is the\nproject manager.\n","There is no set update timeframe.  It simply depends how often data stewards find edits that need to be made.  Currently, it gets updated at least 1 to 3 times per month on average.","Yes, we archive with every update.  Readily\nAccessible archives date back to February of 2009.  Older archives can be obtained within an hour or two and date back to \n","Sometimes the data is referred to as “HUCs”, which stand for Hydrologic Unit Code, or HU (Hydrologic Unit).  Other names: Watersheds, Subwatersheds, 12-digit HUCs.","M"]

{"sheet":"FGDC FINAL with new Themes","index":12,"n_rows":202,"n_cols":7,"rows_kept":202,"cut":false,"hidden":true,"merged":[]}
["NGDA Dataset","NGDA Theme \n(list endorsed by the FGDC Coordination Group June 2011)","Lead Agency "]
["5-digit ZIP Code Tabulation Area (Census 2000)","Cultural & Demographic Statistics ","DOC-CENSUS"]
["Address Range-Feature Name Relationship File","Transportation ","DOC-CENSUS"]
["Address Ranges Relationship File","Transportation ","DOC-CENSUS"]
["Airborne Gravity","Geodetic Control ","DOC-NOAA"]
["Alaska Native Regional Corporation (2010 Census)","Governmental Units ","DOC-CENSUS"]
["Alaska Native Regional Corporation (Census 2000)","Governmental Units ","DOC-CENSUS"]
["All Lines (2010 Census)","Cultural & Demographic Statistics ","DOC-CENSUS"]
["All Roads","Transportation ","DOC-CENSUS"]
["American Indian Tribal Subdivision (2010 Census)","Governmental Units ","DOC-CENSUS"]
["American Indian Tribal Subdivision (Census 2000)","Governmental Units ","DOC-CENSUS"]
["American Indian/Alaska Native/Native Hawaiian Area (2000 Census)","Governmental Units ","DOC-CENSUS"]
["American Indian/Alaska Native/Native Hawaiian Area (2010 Census)","Governmental Units ","DOC-CENSUS"]
["ANSI codes for  metro/micropolitan areas","Cultural & Demographic Statistics ","DOC-CENSUS"]
["ANSI codes for congressional districts","Cultural & Demographic Statistics ","DOC-CENSUS"]
["ANSI codes for counties","Cultural & Demographic Statistics ","DOC-CENSUS"]
["ANSI codes for states","Cultural & Demographic Statistics ","DOC-CENSUS"]
["Archeological Sites","Cultural Resources ","DOI-NPS"]
["Area Hydrography (2010 Census)","Water -- Inland","DOC-CENSUS"]
["Area Landmark (2010 Census)","Cultural Resources ","DOC-CENSUS"]
["Blended Sea Surface Temperature","Climate and Weather ","DOC-NOAA"]
["Block (2010 Census)","Cultural & Demographic Statistics ","DOC-CENSUS"]
["Block (Census 2000)","Cultural & Demographic Statistics ","DOC-CENSUS"]
["Block Group (Census 2000)","Cultural & Demographic Statistics ","DOC-CENSUS"]
["Block Group (Census 2010)","Cultural & Demographic Statistics ","DOC-CENSUS"]
["Census 2000 FIPS 55 Codes","Cultural & Demographic Statistics ","DOC-CENSUS"]
["Census Tract (2010 Census)","Cultural & Demographic Statistics ","DOC-CENSUS"]
["Census Tract (Census 2000)","Cultural & Demographic Statistics ","DOC-CENSUS"]
["Coal assessment and mapping","Geology","DOI-USGS"]
["Coastal Barrier Resource System","Water -- Oceans and Coasts ","DOI-FWS"]
["Coastal Change Analysis Program (C-CAP) Land Cover and Land Change Imagery","Water -- Oceans and Coasts ","DOC-NOAA"]
["Coastline Data","Geology","DOI-MMS"]
["Combined New England City and Town Area (2010 Census)","Governmental Units ","DOC-CENSUS"]
["Combined Statistical Area (2010 Census)","Cultural & Demographic Statistics ","DOC-CENSUS"]
["Common Resource Area (CRA)","Soils ","USDA - NRCS"]
["Congressional District (108th)","Governmental Units ","DOC-CENSUS"]
["Congressional District (111th)","Governmental Units ","DOC-CENSUS"]
["Consolidated City (2010 Census)","Governmental Units ","DOC-CENSUS"]
["Consolidated City (Census 2000)","Governmental Units ","DOC-CENSUS"]
["Continental Shelf Boundary Data","Water -- Oceans and Coasts ","DOI-MMS"]
["Continuously Operating Reference Stations (CORS)","Geodetic Control ","DOC-NOAA"]
["County and Equivalent (2010 Census)","Governmental Units ","DOC-CENSUS"]
["County and Equivalent (Census 2000)","Governmental Units ","DOC-CENSUS"]
["County Subdivision (2010 Census)","Governmental Units ","DOC-CENSUS"]
["County Subdivision (Census 2000)","Governmental Units ","DOC-CENSUS"]
["Critical Habitat ","Biota","DOI-FWS"]
["Crops: Cropland Data Layer","Land Use-Land Cover ","USDA-NASS"]
["Cultural Landscape Boundaries","Cultural & Demographic Statistics \nCultural Resources","DOI-NPS"]
["Cultural Resource Survey Boundaries","Cultural & Demographic Statistics \nCultural Resources","DOI-NPS"]
["Current Range for listed species ","Biota","DOI-FWS"]
["Digital Flood Insurance Rate Maps (DFIRM)","Elevation ","DHS-FEMA"]
["Earth Cover, Land: MODIS-based Land Products","Land Use-Land Cover ","USDA-FS (Along with NASA)",null,null,null,"Move this to Cadastral"]
["Earth Cover, Vegetation, Forest: Forest Biomass, Types, Type Groups","Land Use-Land Cover ","USDA-FS"]
["Earth Cover, Vegetation: Percent Forest Canopy","Land Use-Land Cover ","USDA-FS"]
["Earthquake monitoring, research, and mapping","Geology","DOI-USGS"]
["ECOMAP Datasets (Ecological Subregions: Sections and Subsections for the Conterminous United States ) ","Biota","USDA-FS"]
["Elementary School District (2010 Census)","Cultural & Demographic Statistics ","DOC-CENSUS"]
["Elementary School District (Census 2000)","Cultural & Demographic Statistics ","DOC-CENSUS"]
["Elevation Bathymetric - Ocean, Coastal, and Great Lakes Bathymetry ","Elevation ","DOC-NOAA"]
["Emergency Response Imagery","Imagery ","DOC-NOAA"]
["Endangered Species (Threatened and Endangered Species System)","Biota","DOI-FWS"]
["Environmental Sensitivity Index (ESI) Data and Maps","Biota","DOC-NOAA"]
["Ethnographic Resource Boundaries","Cultural & Demographic Statistics \nCultural Resources","DOI-NPS"]
["Federal building location point ","Real Property ","GSA"]
["Federal building location polygon","Real Property ","GSA"]
["Federal land area facility location point","Real Property ","GSA"]
["Federal land area facility location polygon","Real Property ","GSA"]
["Fire Severity: Monitoring Trends in Burn Severity (MTBS)","Land Use-Land Cover ","USDA -FS (Along with USGS)"]
["Fire, Detection: AVHRR FIMMA , GOES WF-ABBA","Imagery ","USDA"]
["Fire, Detection: Daily Active Fire Mapping","Land Use-Land Cover ","USDA"]
["GAP Program Dataset","Biota","DOI-USGS"]
["General Land Office","Cadastre","DOI-BLM"]
["Geochemistry","Geology","DOI-USGS"]
["Geochronology","Geology","DOI-USGS"]
["Geographic Names Dataset - National Map","Cultural Resources ","DOI-USGS"]
["Geoid Models","Geodetic Control ","DOC-NOAA"]
["Geologic mapping","Geology","DOI-USGS"]
["Geomagnetism","Geology","DOI-USGS"]
["Geophysics","Geology","DOI-USGS"]
["Geostationary Operational Environmental Satellite (GOES) data (NCDC)","Climate and Weather ","DOC-NOAA"]
["Historic Buildings Boundaries","Cultural & Demographic Statistics \nCultural Resources","DOI-NPS"]
["Historic Districts Boundaries","Cultural & Demographic Statistics \nCultural Resources","DOI-NPS"]
["Historic Objects Boundaries","Cultural & Demographic Statistics \nCultural Resources","DOI-NPS"]
["Historic Structures Boundaries","Cultural & Demographic Statistics \nCultural Resources","DOI-NPS"]
["Inland Electronic Navigation Charts (IENC)","Transportation ","USACE"]
["Land Cover Strata Dataset","Land Use-Land Cover ","USDA-NASS"]
["Land Fire Dataset","Land Use-Land Cover ","USDA-FS (Along with USDOI-USGS)"]
["Landsat Terrain Corrected Scenes","Imagery ","DOI-USGS"]
["Landslide monitoring, research, and mapping","Geology","DOI-USGS"]
["Linear Water Features","Water -- Inland","DOC-CENSUS"]
["LR 2000 - Attribute Information","Cadastre","DOI-BLM"]
["Major Land Resource Area (MLRA)","Soils ","USDA - NRCS","Perhaps the name should be clarified"]
["Marine geology","Geology","DOI-USGS"]
["Metallic mineral assessment and mapping","Geology","DOI-USGS"]
["Metropolitan Division (2010 Census)","Governmental Units ","DOC-CENSUS"]
["Metropolitan Division (2010 Census)","Governmental Units ","DOC-CENSUS"]
["Metropolitan/micropolitan Statistical Area (2010 Census)","Cultural & Demographic Statistics ","DOC-CENSUS"]
["Military Installation","Real Property\nCultural & Demographic Statistics","DOC-CENSUS","TIGER boundary is not a Real Property boundary"]
["MMS Baseline","Geology","DOI-MMS"]
["MODIS-based Atmospheric Products","Climate and Weather ","USDA-FS (Along with NASA)"]
["Multipurpose Marine Cadastre","Cadastre","DOI-MMS"]
["National  Orthoimagery Dataset - National Map","Imagery ","DOI-USGS"]
["National Agriculture Imagery Program (NAIP) Archive","Imagery ","USDA-FSA"]
["National Cooperative Soil Characterization Database","Soils ","USDA-NRCS","Perhaps TIGER"]
["National Data Buoy Center (NDBC) Recent and Historical Data","Water -- Oceans and Coasts ","DOC-NOAA"]
["National Doplar Radar Data (NEXRAD)","Climate and Weather ","DOC-NOAA"]
["National Elevation Dataset  - National Map","Elevation ","DOI-USGS"]
["National Flood Hazard Layer (NFHL)","Elevation ","DHS-FEMA"]
["National Geodetic Survey (NGS) Datasheets","Geodetic Control ","DOC-NOAA"]
["National Hydrography Dataset - National Map","Water -- Inland","DOI-USGS"]
["National Interagency Trails Dataset","Transportation ","USDA"]
["National Inventory of Dams (NID)","Water -- Inland","USACE"]
["National Land Cover Dataset - GIRAS - 1975","Land Use-Land Cover ","DOI-USGS"]
["National Land Cover Dataset - National Map","Land Use-Land Cover ","DOI-USGS"]
["National Land Cover Dataset - National Map - 1991","Land Use-Land Cover ","DOI-USGS"]
["National Land Cover Dataset - National Map - 2001","Land Use-Land Cover ","DOI-USGS"]
["National Land Cover Dataset - National Map 2006","Land Use-Land Cover ","DOI-USGS"]
["National Land Cover Dataset (NLCD)","Land Use-Land Cover ","USDA-FS"]
["National Land Cover Percent Canopy - National Map - 1991","Land Use-Land Cover ","DOI-USGS"]
["National Land Cover Percent Imperviousness - National Map - 2001","Land Use-Land Cover ","DOI-USGS"]
["National Land Cover Percent Imperviousness - National Map - 2006","Land Use-Land Cover ","DOI-USGS"]
["National Levee Database (NLD)","Water -- Inland","USACE"]
["National Parks Data","Land Use-Land Cover ","DOI-MMS","BOEM says this is what they do"]
["National Parks Data (moved from Land Use Land Cover)","Cadastre","DOI-MMS"]
["National Spatial Reference System (NSRS)","Geodetic Control ","DOC-NOAA"]
["National Standardized Ecosystems Dataset","Biota","DOI-USGS"]
["National Structures Dataset - National Map","Real Property ","DOI-USGS"]
["National Transportation Dataset - National Map","Transportation ","DOI-USGS"]
["National Water Information System (NWIS)- Stream Gage Network","Water -- Inland","DOI-USGS"]
["National Water Information System (NWIS)- Water Quality Monitoring Stations","Water -- Inland","DOI-USGS"]
["National Wetlands Inventory (NWI) ","Water -- Inland","DOI-FWS"]
["New England City and Town Area (2010 Census)","Governmental Units ","DOC-CENSUS"]
["New England City and Town Area Division (2010 Census)","Governmental Units ","DOC-CENSUS"]
["NOAA National Shoreline","Water -- Oceans and Coasts ","DOC-NOAA"]
["NOAA National Weather Service GIS Data","Climate and Weather ","DOC-NOAA"]
["NOAA's Nautical Chart Products","Water -- Oceans and Coasts ","DOC-NOAA","[follow up with NOAA?]"]
["Non-metallic mineral assessment and mapping, onshore","Geology","DOI-USGS"]
["Non-Projected Boundaries","Water -- Oceans and Coasts ","DOI-MMS"]
["NTAD","Transportation ","DOT-BTS"]
["NTAD (airports)","Transportation ","DOT-BTS"]
["NTAD (Rail)","Transportation ","DOT-BTS"]
["NTAD (TransitLines) ","Transportation ","DOT-BTS"]
["NTAD (TransitStation) ","Transportation ","DOT-BTS"]
["OCS Active Leases","Geology","DOI-MMS"]
["OCS Lease Blocks","Cadastre","DOI-MMS"]
["Oil and gas assessment and mapping, onshore","Geology","DOI-USGS"]
["Oklahoma Tribal Joint Use Areas","Cultural & Demographic Statistics ","DOC-CENSUS"]
["Oklahoma Tribal Statistical Areas","Cultural & Demographic Statistics ","DOC-CENSUS"]
["Other Cultural Resource Boundaries","Cultural & Demographic Statistics \nCultural Resources","DOI-NPS"]
["PADUS (Protected Areas Database of the US)","Cadastre","DOI-USGS"]
["Paleontology","Geology","DOI-USGS"]
["Parameter-elevation Regressions on Independent Slopes Model (PRISM) Datasets","Climate and Weather ","USDA - NRCS"]
["Parcels","Cadastre","DOI-BLM"]
["Pipelines","Utilities ","DOI-MMS"]
["Place (2010 Census)","Governmental Units ","DOC-CENSUS"]
["Place (Census 2000)","Governmental Units ","DOC-CENSUS"]
["Platforms","Utilities ","DOI-MMS"]
["Point Landmark (2010 Census)","Cultural Resources ","DOC-CENSUS"]
["Polar Operational Environmental Satellite (POES) data","Climate and Weather ","DOC-NOAA"]
["Precise Global Navigation Satellite System (GNSS) Orbits","Geodetic Control ","DOC-NOAA"]
["Primary and Secondary Roads","Transportation ","DOC-CENSUS"]
["Primary Roads","Transportation ","DOC-CENSUS"]
["Projected Boundaries","Water -- Oceans and Coasts ","DOI-MMS"]
["Protractions","Cadastre","DOI-MMS"]
["Public Use Microdata Area (Census 2000)","Cultural & Demographic Statistics ","DOC-CENSUS"]
["Recovery Range for listed species ","Biota","DOI-FWS"]
["Sand and Gravel","Geology","DOI-MMS"]
["Satellite Imagery Archive","Imagery ","USDA-FSA\nUSDA-FAS"]
["Secondary School District (2010 Census)","Cultural & Demographic Statistics ","DOC-CENSUS"]
["Secondary School District (Census 2000)","Cultural & Demographic Statistics ","DOC-CENSUS"]
["Section 7 Range for listed species ","Biota","DOI-FWS"]
["Soil Survey Geographic Database (SSURGO)","Soils ","USDA - NRCS"]
["State and Equivalent  (2010 Census)","Governmental Units ","DOC-CENSUS"]
["State and Equivalent  (Census 2000)","Governmental Units ","DOC-CENSUS"]
["State Legislative District (Lower Chamber) (2010 Census)","Governmental Units ","DOC-CENSUS"]
["State Legislative District (Lower Chamber) (Census 2000)","Governmental Units ","DOC-CENSUS"]
["State Legislative District (Upper Chamber) (2010 Census)","Governmental Units ","DOC-CENSUS"]
["State Legislative District (Upper Chamber) (Census 2000)","Governmental Units ","DOC-CENSUS"]
["Subbarrio (2010 Census)","Governmental Units ","DOC-CENSUS"]
["Subbarrio (Census 2000)","Governmental Units ","DOC-CENSUS"]
["Super Public Use Microdata Area (Census 2000)","Cultural & Demographic Statistics ","DOC-CENSUS"]
["Terrestrial Gravity","Geodetic Control ","DOC-NOAA"]
["Topological Faces (2010 Census)","Cultural & Demographic Statistics ","DOC-CENSUS"]
["Topological Faces-Area Hydrography Relationship File","Water -- Inland","DOC-CENSUS"]
["Topological Faces-Area Landmark Relationship File","Cultural Resources ","DOC-CENSUS"]
["Traffic Analysis Zone (Census 2000)","Transportation ","DOC-CENSUS"]
["U.S. General Soil Map (STATSGO2)","Soils ","USDA - NRCS"]
["U.S. Marine Protected Areas Boundaries","Water -- Oceans and Coasts ","DOC-NOAA"]
["U.S. Maritime Zones/Boundaries","Water -- Oceans and Coasts ","DOC-NOAA"]
["U.S. Official Cadastral Survey Records","Cadastre","DOI-BLM"]
["U.S. Public Land Survey System","Cadastre","DOI-BLM"]
["Unified School District (2010 Census)","Cultural & Demographic Statistics ","DOC-CENSUS"]
["Unified School District (Census 2000)","Cultural & Demographic Statistics ","DOC-CENSUS"]
["Urban Area (Corrected Census 2000)","Governmental Units ","DOC-CENSUS"]
["Urban Growth Area (2010 Census)","Cultural & Demographic Statistics ","DOC-CENSUS"]
["Urban Growth Area (Census 2000)","Cultural & Demographic Statistics ","DOC-CENSUS"]
["Volcano monitoring, research, and mapping","Geology","DOI-USGS"]
["Voting District (2010 Census)","Cultural & Demographic Statistics ","DOC-CENSUS"]
["Voting District (Census 2000)","Cultural & Demographic Statistics ","DOC-CENSUS"]
["Watershed Boundary Dataset (WBD)  ","Water -- Inland","DOI-USGS"]
["Watershed Boundary Dataset (WBD)  ","Water -- Inland","USDA - NRCS"]
["Wells","Geology","DOI-MMS"]

{"sheet":"2-16-2012","index":13,"n_rows":259,"n_cols":15,"rows_kept":259,"cut":false,"hidden":true,"merged":[]}
["ORIGINAL (beginning of 2011)","LOC FINAL (October 2011)","NGDA List (October 2011)","FINAL List (November 2011)","Theme","Agency","Dataset Manager","Email","Q1 How many data set(s) do you have? It is a single set or multiple sets? ","Q2 Are you a data set manager?","Q3 Are you the POC for transferring the data set and/or for information about the data set?","Q4 How often is the data set updated?","Q5 Is there an archive/backup of the data set or do you maintain an archived copy of it? If yes, how far back do you maintain a copy? Is it easily accessible?","Q6 Does the data set go by a different name or is it referred to internally by another descriptive name?","M\nP\nS"]
[null,null,"Critical Habitat ",{"$f":"IF(C2=0,B2,C2)","v":"Critical Habitat "},"Biota","DOI-FWS"]
[null,null,"Current Range for listed species ","Current Range for listed species ","Biota","DOI-FWS"]
["ECOMAP Data Sets (Ecological Subregions: Sections and Subsections for the Conterminous United States ) ","ECOMAP Datasets (Ecological Subregions: Sections and Subsections for the Conterminous United States ) ","ECOMAP Datasets (Ecological Subregions: Sections and Subsections for the Conterminous United States ) ","ECOMAP Datasets (Ecological Subregions: Sections and Subsections for the Conterminous United States ) ","Biota","USDA-FS","David T. Cleland","dcleland@fs.fed.us",{"$f":"VLOOKUP(B4,'LOC FINAL with new Themes'!A:M,7,0)","v":"One, single set"},{"$f":"VLOOKUP(B4,'LOC FINAL with new Themes'!A:M,8,0)","v":"Yes"},{"$f":"VLOOKUP(B4,'LOC FINAL with new Themes'!A:M,9,0)","v":"Yes"},{"$f":"VLOOKUP(B4,'LOC FINAL with new Themes'!A:M,10,0)","v":"Maps are updated on a 10-year cycle"},{"$f":"VLOOKUP(B4,'LOC FINAL with new Themes'!A:M,11,0)","v":"The data is housed at and served by the Forest Service geodata portal, and is easily accessible.  The web address is: http://fsgeodata.fs.fed.us/other_resources/ecosubregions.html "},{"$f":"VLOOKUP(B4,'LOC FINAL with new Themes'!A:M,12,0)","v":"?   Internally, the data is named ECOMAP or the National Hierarchy of Ecological Units. "},{"$f":"VLOOKUP(B4,'LOC FINAL with new Themes'!A:M,13,0)","v":"S"}]
[null,null,"Endangered Species (Threatened and Endangered Species System)","Endangered Species (Threatened and Endangered Species System)","Biota","DOI-FWS"]
["Env Sens Index Maps - classified shoreline","Env Sens Index Maps - classified shoreline","Environmental Sensitivity Index (ESI) Data and Maps","Environmental Sensitivity Index (ESI) Data and Maps","Biota","DOC-NOAA","Jill Petersen","jill.petersen@noaa.gov",{"$f":"VLOOKUP(B6,'LOC FINAL with new Themes'!A:M,7,0)","v":"There are approximately 70 different atlases. There are a few that are still not available in a GIS format, (approx 7 of the approx 70!) - these are available as the hard copy product and as PDFs (scanned). The remaining atlases are available in multiple GIS formats - Arc Export files, Geodatabase with an ArcMap map document complete with all relates established and properly symbolized, Shape files with an ArcView 3.x project, a free ESI viewer that allows viewing, queries and printing (in house mapping program and filemaker pro) as well as PDF format and the hard copy product. These can be downloaded from http://response.restoration.noaa.gov/esi_download This page is in progress, but should be complete fairly quickly.\n\n"},{"$f":"VLOOKUP(B6,'LOC FINAL with new Themes'!A:M,8,0)","v":"Yes"},{"$f":"VLOOKUP(B6,'LOC FINAL with new Themes'!A:M,9,0)","v":"Yes "},{"$f":"VLOOKUP(B6,'LOC FINAL with new Themes'!A:M,10,0)","v":"- High resolution products have no defined update schedule.  TBD by geog/project."},{"$f":"VLOOKUP(B6,'LOC FINAL with new Themes'!A:M,11,0)","v":"Yes and no. We have archives of all the digital data as well as all the PDFs (scanned or produced with the digital data map comps). Many of the hard copy atlases from the first round of ESI maps were sent to the Library of Commerce. Others I have kept, but no very organized situation. However, we have all of the historic PDFs which are an exact duplicate of the hard copy atlas, so that is something. Historic data is going to be served from the above link as well. That will be added as the current data sets are completed."},{"$f":"VLOOKUP(B6,'LOC FINAL with new Themes'!A:M,12,0)","v":"ESI is the common abbreviation for these maps. Other than that, Environmental Sensitivity Index Maps, Shoreline Sensitivity maps, Environmental Sensitivity maps..... These maps have the classified shoreline, as well as summaries of biological and human use resource particularly sensitive to oiling. "},{"$f":"VLOOKUP(B6,'LOC FINAL with new Themes'!A:M,13,0)","v":"M "}]
["GAP Program Dataset","GAP Program Dataset","GAP Program Dataset","GAP Program Dataset","Biota","DOI-USGS","Kevin Gergely","gergely@usgs.gov",{"$f":"VLOOKUP(B7,'LOC FINAL with new Themes'!A:M,7,0)","v":"POC; multiple data sets in single location, building three fundamental data layers, two are national (protected areas, land cover dataset); backup; six months, annually)"},{"$f":"VLOOKUP(B7,'LOC FINAL with new Themes'!A:M,8,0)","v":0},{"$f":"VLOOKUP(B7,'LOC FINAL with new Themes'!A:M,9,0)","v":0},{"$f":"VLOOKUP(B7,'LOC FINAL with new Themes'!A:M,10,0)","v":0},{"$f":"VLOOKUP(B7,'LOC FINAL with new Themes'!A:M,11,0)","v":0},{"$f":"VLOOKUP(B7,'LOC FINAL with new Themes'!A:M,12,0)","v":0},{"$f":"VLOOKUP(B7,'LOC FINAL with new Themes'!A:M,13,0)","v":"P"}]
["National Standardized Ecosystems Dataset","National Standardized Ecosystems Dataset","National Standardized Ecosystems Dataset","National Standardized Ecosystems Dataset","Biota","DOI-USGS","Roger Sayre","rsayre@usgs.gov",{"$f":"VLOOKUP(B8,'LOC FINAL with new Themes'!A:M,7,0)","v":0},{"$f":"VLOOKUP(B8,'LOC FINAL with new Themes'!A:M,8,0)","v":0},{"$f":"VLOOKUP(B8,'LOC FINAL with new Themes'!A:M,9,0)","v":0},{"$f":"VLOOKUP(B8,'LOC FINAL with new Themes'!A:M,10,0)","v":0},{"$f":"VLOOKUP(B8,'LOC FINAL with new Themes'!A:M,11,0)","v":0},{"$f":"VLOOKUP(B8,'LOC FINAL with new Themes'!A:M,12,0)","v":0},{"$f":"VLOOKUP(B8,'LOC FINAL with new Themes'!A:M,13,0)","v":0}]
[null,null,"Recovery Range for listed species ","Recovery Range for listed species ","Biota","DOI-FWS"]
[null,null,"Section 7 Range for listed species ","Section 7 Range for listed species ","Biota","DOI-FWS"]
["Biomes, Ecoregions","Biomes, Ecoregions",null,"Biomes, Ecoregions","Biota ","DOI-USGS","Dan Phillips ","dphillips@usgs.gov",{"$f":"VLOOKUP(B11,'LOC FINAL with new Themes'!A:M,7,0)","v":0},{"$f":"VLOOKUP(B11,'LOC FINAL with new Themes'!A:M,8,0)","v":0},{"$f":"VLOOKUP(B11,'LOC FINAL with new Themes'!A:M,9,0)","v":0},{"$f":"VLOOKUP(B11,'LOC FINAL with new Themes'!A:M,10,0)","v":0},{"$f":"VLOOKUP(B11,'LOC FINAL with new Themes'!A:M,11,0)","v":0},{"$f":"VLOOKUP(B11,'LOC FINAL with new Themes'!A:M,12,0)","v":0},{"$f":"VLOOKUP(B11,'LOC FINAL with new Themes'!A:M,13,0)","v":0}]
["Ecological Services","Ecological Services",null,"Ecological Services","Biota ","DOI-USGS","Dan Phillips ","dphillips@usgs.gov",{"$f":"VLOOKUP(B12,'LOC FINAL with new Themes'!A:M,7,0)","v":0},{"$f":"VLOOKUP(B12,'LOC FINAL with new Themes'!A:M,8,0)","v":0},{"$f":"VLOOKUP(B12,'LOC FINAL with new Themes'!A:M,9,0)","v":0},{"$f":"VLOOKUP(B12,'LOC FINAL with new Themes'!A:M,10,0)","v":0},{"$f":"VLOOKUP(B12,'LOC FINAL with new Themes'!A:M,11,0)","v":0},{"$f":"VLOOKUP(B12,'LOC FINAL with new Themes'!A:M,12,0)","v":0},{"$f":"VLOOKUP(B12,'LOC FINAL with new Themes'!A:M,13,0)","v":0}]
["Habitats","Habitats",null,"Habitats","Biota ","DOI-USGS","Dan Phillips ","dphillips@usgs.gov",{"$f":"VLOOKUP(B13,'LOC FINAL with new Themes'!A:M,7,0)","v":"see protected areas and land cover set; vertebrae species of US being developed (not complete for all species they want to include in it."},{"$f":"VLOOKUP(B13,'LOC FINAL with new Themes'!A:M,8,0)","v":0},{"$f":"VLOOKUP(B13,'LOC FINAL with new Themes'!A:M,9,0)","v":0},{"$f":"VLOOKUP(B13,'LOC FINAL with new Themes'!A:M,10,0)","v":0},{"$f":"VLOOKUP(B13,'LOC FINAL with new Themes'!A:M,11,0)","v":0},{"$f":"VLOOKUP(B13,'LOC FINAL with new Themes'!A:M,12,0)","v":0},{"$f":"VLOOKUP(B13,'LOC FINAL with new Themes'!A:M,13,0)","v":"M"}]
["Invasive Species","Invasive Species",null,"Invasive Species","Biota ","DOI-USGS","Dan Phillips ","dphillips@usgs.gov",{"$f":"VLOOKUP(B14,'LOC FINAL with new Themes'!A:M,7,0)","v":"There are hundreds of datasets that are produced and maintained by the GAP program. Dan is not the data set manager, but I work with the people that maintain and update the datasets and maintains metadata.The data are updated at different intervals, especially now that they have moved more to a regional and national based approach. GAPS data sets presumably archived since 1990s."},{"$f":"VLOOKUP(B14,'LOC FINAL with new Themes'!A:M,8,0)","v":0},{"$f":"VLOOKUP(B14,'LOC FINAL with new Themes'!A:M,9,0)","v":0},{"$f":"VLOOKUP(B14,'LOC FINAL with new Themes'!A:M,10,0)","v":0},{"$f":"VLOOKUP(B14,'LOC FINAL with new Themes'!A:M,11,0)","v":0},{"$f":"VLOOKUP(B14,'LOC FINAL with new Themes'!A:M,12,0)","v":0},{"$f":"VLOOKUP(B14,'LOC FINAL with new Themes'!A:M,13,0)","v":"M"}]
["Species Distribution(amphibians, birds, reptiles, mammals, fishes, plants, etc)","Species Distribution (amphibians, birds, reptiles, mammals, fishes, plants, etc)",null,"Species Distribution (amphibians, birds, reptiles, mammals, fishes, plants, etc)","Biota ","DOI-USGS","Dan Phillips ","dphillips@usgs.gov",{"$f":"VLOOKUP(B15,'LOC FINAL with new Themes'!A:M,7,0)","v":"There are hundreds of datasets that are produced and maintained by the GAP program. Dan is not the data set manager, but I work with the people that maintain and update the datasets and maintains metadata. The data are updated at different intervals, especially now that they have moved more to a regional and national based approach. GAPS data sets presumably archived since 1990s."},{"$f":"VLOOKUP(B15,'LOC FINAL with new Themes'!A:M,8,0)","v":0},{"$f":"VLOOKUP(B15,'LOC FINAL with new Themes'!A:M,9,0)","v":0},{"$f":"VLOOKUP(B15,'LOC FINAL with new Themes'!A:M,10,0)","v":0},{"$f":"VLOOKUP(B15,'LOC FINAL with new Themes'!A:M,11,0)","v":0},{"$f":"VLOOKUP(B15,'LOC FINAL with new Themes'!A:M,12,0)","v":0},{"$f":"VLOOKUP(B15,'LOC FINAL with new Themes'!A:M,13,0)","v":"M"}]
[null,null,null,{"$f":"SUBTOTAL(3,D2:D15)","v":14},"Biota Count"]
["General Land Office","General Land Office","General Land Office",{"$f":"IF(C17=0,B17,C17)","v":"General Land Office"},"Cadastre","DOI-BLM","Juan Palma","juan_palma@blm.gov",{"$f":"VLOOKUP(B17,'LOC FINAL with new Themes'!A:M,7,0)","v":0},{"$f":"VLOOKUP(B17,'LOC FINAL with new Themes'!A:M,8,0)","v":0},{"$f":"VLOOKUP(B17,'LOC FINAL with new Themes'!A:M,9,0)","v":0},{"$f":"VLOOKUP(B17,'LOC FINAL with new Themes'!A:M,10,0)","v":0},{"$f":"VLOOKUP(B17,'LOC FINAL with new Themes'!A:M,11,0)","v":0},{"$f":"VLOOKUP(B17,'LOC FINAL with new Themes'!A:M,12,0)","v":0},{"$f":"VLOOKUP(B17,'LOC FINAL with new Themes'!A:M,13,0)","v":0}]
["Geographic Coordinate Data Base (GCDB)","Geographic Coordinate Data Base (GCDB)",null,"Geographic Coordinate Data Base (GCDB)","Cadastre","DOI-BLM","Don Buhler","don_buhler@blm.gov",{"$f":"VLOOKUP(B18,'LOC FINAL with new Themes'!A:M,7,0)","v":"every agency has its own database; multiple data sets; standard being advanced and put into practice; federal interest is managed with BLM; state and local are authoritative sets for other lands; "},{"$f":"VLOOKUP(B18,'LOC FINAL with new Themes'!A:M,8,0)","v":0},{"$f":"VLOOKUP(B18,'LOC FINAL with new Themes'!A:M,9,0)","v":0},{"$f":"VLOOKUP(B18,'LOC FINAL with new Themes'!A:M,10,0)","v":0},{"$f":"VLOOKUP(B18,'LOC FINAL with new Themes'!A:M,11,0)","v":0},{"$f":"VLOOKUP(B18,'LOC FINAL with new Themes'!A:M,12,0)","v":0},{"$f":"VLOOKUP(B18,'LOC FINAL with new Themes'!A:M,13,0)","v":"M "}]
["LR 2000 - Master Title Plats ","LR 2000 - Master Title Plats ","LR 2000 - Attribute Information","LR 2000 - Attribute Information","Cadastre","DOI-BLM","Jeff Holdren","jeff_holdren@blm.gov",{"$f":"VLOOKUP(B19,'LOC FINAL with new Themes'!A:M,7,0)","v":"listing of sales, rents, agricultural disposal and rights of way cases, group of data sets in one system; Kim Burns, division chief; not archived, there is a backup; Denver office handles"},{"$f":"VLOOKUP(B19,'LOC FINAL with new Themes'!A:M,8,0)","v":0},{"$f":"VLOOKUP(B19,'LOC FINAL with new Themes'!A:M,9,0)","v":0},{"$f":"VLOOKUP(B19,'LOC FINAL with new Themes'!A:M,10,0)","v":0},{"$f":"VLOOKUP(B19,'LOC FINAL with new Themes'!A:M,11,0)","v":0},{"$f":"VLOOKUP(B19,'LOC FINAL with new Themes'!A:M,12,0)","v":0},{"$f":"VLOOKUP(B19,'LOC FINAL with new Themes'!A:M,13,0)","v":"P"}]
["Manual of Surveying Instructions, Data Standards","Manual of Surveying Instructions, Data Standards",null,"Manual of Surveying Instructions, Data Standards","Cadastre","DOI-BLM","Don Buhler","don_buhler@blm.gov",{"$f":"VLOOKUP(B20,'LOC FINAL with new Themes'!A:M,7,0)","v":0},{"$f":"VLOOKUP(B20,'LOC FINAL with new Themes'!A:M,8,0)","v":0},{"$f":"VLOOKUP(B20,'LOC FINAL with new Themes'!A:M,9,0)","v":0},{"$f":"VLOOKUP(B20,'LOC FINAL with new Themes'!A:M,10,0)","v":0},{"$f":"VLOOKUP(B20,'LOC FINAL with new Themes'!A:M,11,0)","v":0},{"$f":"VLOOKUP(B20,'LOC FINAL with new Themes'!A:M,12,0)","v":0},{"$f":"VLOOKUP(B20,'LOC FINAL with new Themes'!A:M,13,0)","v":0}]
["Mineral Estate - Fluids","Mineral Estate - Fluids",null,"Mineral Estate - Fluids","Cadastre","DOI-BLM","Tim Spisak ","tim_spisak@blm.gov",{"$f":"VLOOKUP(B21,'LOC FINAL with new Themes'!A:M,7,0)","v":"mineral leasess, mining claims, rights of way, gases (single data set); BLM-managed lands but managed all federal mineral estate (comprehensive for mineraal estate) some electronic and some not"},{"$f":"VLOOKUP(B21,'LOC FINAL with new Themes'!A:M,8,0)","v":0},{"$f":"VLOOKUP(B21,'LOC FINAL with new Themes'!A:M,9,0)","v":0},{"$f":"VLOOKUP(B21,'LOC FINAL with new Themes'!A:M,10,0)","v":0},{"$f":"VLOOKUP(B21,'LOC FINAL with new Themes'!A:M,11,0)","v":0},{"$f":"VLOOKUP(B21,'LOC FINAL with new Themes'!A:M,12,0)","v":0},{"$f":"VLOOKUP(B21,'LOC FINAL with new Themes'!A:M,13,0)","v":"P"}]
["Mineral Estate - Solids","Mineral Estate - Solids",null,"Mineral Estate - Solids","Cadastre","DOI-BLM","Mitchell Leverette","mitchell_leverette@blm.gov",{"$f":"VLOOKUP(B22,'LOC FINAL with new Themes'!A:M,7,0)","v":"mineral leasess, mining claims, rights of way, gases (single data set); BLM-managed lands but managed all federal mineral estate (comprehensive for mineral estate) some electronic and some not"},{"$f":"VLOOKUP(B22,'LOC FINAL with new Themes'!A:M,8,0)","v":0},{"$f":"VLOOKUP(B22,'LOC FINAL with new Themes'!A:M,9,0)","v":0},{"$f":"VLOOKUP(B22,'LOC FINAL with new Themes'!A:M,10,0)","v":0},{"$f":"VLOOKUP(B22,'LOC FINAL with new Themes'!A:M,11,0)","v":0},{"$f":"VLOOKUP(B22,'LOC FINAL with new Themes'!A:M,12,0)","v":0},{"$f":"VLOOKUP(B22,'LOC FINAL with new Themes'!A:M,13,0)","v":"P"}]
["Multipurpose Marine Cadastre","Multipurpose Marine Cadastre","Multipurpose Marine Cadastre","Multipurpose Marine Cadastre","Cadastre","DOI-BOEM","Doug Vandegraft","douglas.vandegraft@boemre.gov",{"$f":"VLOOKUP(B23,'LOC FINAL with new Themes'!A:M,7,0)","v":"undeliverable email- neeed to identify new contact"},{"$f":"VLOOKUP(B23,'LOC FINAL with new Themes'!A:M,8,0)","v":0},{"$f":"VLOOKUP(B23,'LOC FINAL with new Themes'!A:M,9,0)","v":0},{"$f":"VLOOKUP(B23,'LOC FINAL with new Themes'!A:M,10,0)","v":0},{"$f":"VLOOKUP(B23,'LOC FINAL with new Themes'!A:M,11,0)","v":0},{"$f":"VLOOKUP(B23,'LOC FINAL with new Themes'!A:M,12,0)","v":0},{"$f":"VLOOKUP(B23,'LOC FINAL with new Themes'!A:M,13,0)","v":0}]
[null,null,"PADUS (Protected Areas Database of the US)","PADUS (Protected Areas Database of the US)","Cadastre","DOI-USGS"]
["Parcels","Parcels","Parcels","Parcels","Cadastre","DOI-BLM","Bob Ader","bob_ader@blm.gov",{"$f":"VLOOKUP(B25,'LOC FINAL with new Themes'!A:M,7,0)","v":"every agency has its own database; multiple data sets; standard being advanced and put into practice; federal interest is managed with BLM; state and local are authoritative sets for other lands; current effort of federal inventory "},{"$f":"VLOOKUP(B25,'LOC FINAL with new Themes'!A:M,8,0)","v":0},{"$f":"VLOOKUP(B25,'LOC FINAL with new Themes'!A:M,9,0)","v":0},{"$f":"VLOOKUP(B25,'LOC FINAL with new Themes'!A:M,10,0)","v":0},{"$f":"VLOOKUP(B25,'LOC FINAL with new Themes'!A:M,11,0)","v":0},{"$f":"VLOOKUP(B25,'LOC FINAL with new Themes'!A:M,12,0)","v":0},{"$f":"VLOOKUP(B25,'LOC FINAL with new Themes'!A:M,13,0)","v":"M "}]
[null,null,"Protractions","Protractions","Cadastre","DOI-MMS"]
["Surface Estate","Surface Estate",null,"Surface Estate","Cadastre","DOI-BLM","Kim Burns","kim_m_burns@blm.gov",{"$f":"VLOOKUP(B27,'LOC FINAL with new Themes'!A:M,7,0)","v":"lands administered by BLM; other agencies have own system; ownership of lands;  Tim Spisak, division chief; not archived, there is a backup; Denver office handles"},{"$f":"VLOOKUP(B27,'LOC FINAL with new Themes'!A:M,8,0)","v":0},{"$f":"VLOOKUP(B27,'LOC FINAL with new Themes'!A:M,9,0)","v":0},{"$f":"VLOOKUP(B27,'LOC FINAL with new Themes'!A:M,10,0)","v":0},{"$f":"VLOOKUP(B27,'LOC FINAL with new Themes'!A:M,11,0)","v":0},{"$f":"VLOOKUP(B27,'LOC FINAL with new Themes'!A:M,12,0)","v":0},{"$f":"VLOOKUP(B27,'LOC FINAL with new Themes'!A:M,13,0)","v":0}]
["U.S. Official Cadastral Survey Records","U.S. Official Cadastral Survey Records","U.S. Official Cadastral Survey Records","U.S. Official Cadastral Survey Records","Cadastre","DOI-BLM","Don Buhler","don_buhler@blm.gov",{"$f":"VLOOKUP(B28,'LOC FINAL with new Themes'!A:M,7,0)","v":"every agency has its own database; multiple data sets; standard being advanced and put into practice; federal interest is managed with BLM; state and local are authoritative sets for other lands; state offices are scanning these records (survey plats and field notes); CDI (conveyence cards)"},{"$f":"VLOOKUP(B28,'LOC FINAL with new Themes'!A:M,8,0)","v":0},{"$f":"VLOOKUP(B28,'LOC FINAL with new Themes'!A:M,9,0)","v":0},{"$f":"VLOOKUP(B28,'LOC FINAL with new Themes'!A:M,10,0)","v":0},{"$f":"VLOOKUP(B28,'LOC FINAL with new Themes'!A:M,11,0)","v":0},{"$f":"VLOOKUP(B28,'LOC FINAL with new Themes'!A:M,12,0)","v":0},{"$f":"VLOOKUP(B28,'LOC FINAL with new Themes'!A:M,13,0)","v":"M "}]
["U.S. Public Land Survey System","U.S. Public Land Survey System","U.S. Public Land Survey System","U.S. Public Land Survey System","Cadastre","DOI-BLM","Don Buhler","don_buhler@blm.gov",{"$f":"VLOOKUP(B29,'LOC FINAL with new Themes'!A:M,7,0)","v":"only federal agency that administers the PLSS; trying to get it to be logically one data set with different regions. (working copies for nine states in West); keep historical record in data base; schema 2 is the version to look at for archiving some time March 2012"},{"$f":"VLOOKUP(B29,'LOC FINAL with new Themes'!A:M,8,0)","v":0},{"$f":"VLOOKUP(B29,'LOC FINAL with new Themes'!A:M,9,0)","v":0},{"$f":"VLOOKUP(B29,'LOC FINAL with new Themes'!A:M,10,0)","v":0},{"$f":"VLOOKUP(B29,'LOC FINAL with new Themes'!A:M,11,0)","v":0},{"$f":"VLOOKUP(B29,'LOC FINAL with new Themes'!A:M,12,0)","v":0},{"$f":"VLOOKUP(B29,'LOC FINAL with new Themes'!A:M,13,0)","v":"P"}]
[null,null,null,{"$f":"SUBTOTAL(3,D17:D29)","v":13},"Cadastre Count"]
["Blended Sea Surface Temperature","Blended Sea Surface Temperature","Blended Sea Surface Temperature",{"$f":"IF(C31=0,B31,C31)","v":"Blended Sea Surface Temperature"},"Climate and Weather ","DOC-NOAA","Viva Banzon","Viva.Banzon@noaa.gov",{"$f":"VLOOKUP(B31,'LOC FINAL with new Themes'!A:M,7,0)","v":0},{"$f":"VLOOKUP(B31,'LOC FINAL with new Themes'!A:M,8,0)","v":0},{"$f":"VLOOKUP(B31,'LOC FINAL with new Themes'!A:M,9,0)","v":0},{"$f":"VLOOKUP(B31,'LOC FINAL with new Themes'!A:M,10,0)","v":0},{"$f":"VLOOKUP(B31,'LOC FINAL with new Themes'!A:M,11,0)","v":0},{"$f":"VLOOKUP(B31,'LOC FINAL with new Themes'!A:M,12,0)","v":0},{"$f":"VLOOKUP(B31,'LOC FINAL with new Themes'!A:M,13,0)","v":0}]
["Geostationary Operational Environmental Satellite (GOES) data (NCDC)","Geostationary Operational Environmental Satellite (GOES) data (NCDC)","Geostationary Operational Environmental Satellite (GOES) data (NCDC)","Geostationary Operational Environmental Satellite (GOES) data (NCDC)","Climate and Weather ","DOC-NOAA","Nancy Ritchey","Nancy.Ritchey@noaa.gov",{"$f":"VLOOKUP(B32,'LOC FINAL with new Themes'!A:M,7,0)","v":"Define 'data set'.  Each spacecraft continuously produces a data stream.  There are multiple sets and the total going back to the late 70s or early 80s numbers in the millions"},{"$f":"VLOOKUP(B32,'LOC FINAL with new Themes'!A:M,8,0)","v":"Yes"},{"$f":"VLOOKUP(B32,'LOC FINAL with new Themes'!A:M,9,0)","v":"Yes"},{"$f":"VLOOKUP(B32,'LOC FINAL with new Themes'!A:M,10,0)","v":"Continuously"},{"$f":"VLOOKUP(B32,'LOC FINAL with new Themes'!A:M,11,0)","v":"There are two active archive centers for these data; one here in Asheville, NC and one in Boulder, CO.  These data go back to the late 70s and all data are on line wither on disc or robotic tape storage"},{"$f":"VLOOKUP(B32,'LOC FINAL with new Themes'!A:M,12,0)","v":"Again, define your terms.  For examples see www.class.noaa.gov - Raw data are listed by satellite (GOES or POES) and then be instrument.  Geophysical products are listed by product name."},{"$f":"VLOOKUP(B32,'LOC FINAL with new Themes'!A:M,13,0)","v":0}]
[null,null,"MODIS-based Atmospheric Products","MODIS-based Atmospheric Products","Climate and Weather ","USDA -FS (Along with USGS)"]
[null,null,"National Doplar Radar Data (NEXRAD)","National Doplar Radar Data (NEXRAD)","Climate and Weather ","DOC-NOAA"]
[null,null,"NOAA National Weather Service GIS Data",{"$f":"IF(C35=0,B35,C35)","v":"NOAA National Weather Service GIS Data"},"Climate and Weather ","DOC-NOAA"]
["Parameter-elevation Regressions on Independent Slopes Model (PRISM) Data Sets","Parameter-elevation Regressions on Independent Slopes Model (PRISM) Datasets","Parameter-elevation Regressions on Independent Slopes Model (PRISM) Datasets",{"$f":"IF(C36=0,B36,C36)","v":"Parameter-elevation Regressions on Independent Slopes Model (PRISM) Datasets"},"Climate and Weather ","USDA-NRCS","Jan Curtis","jan.curtis@por.usda.gov",{"$f":"VLOOKUP(B36,'LOC FINAL with new Themes'!A:M,7,0)","v":"info provided via http://www.prism.oregonstate.edu/ and \nhttp://www.nrcs.usda.gov/wps/portal/nrcs/main/?ss=16&navtype=SubNavigation&cid=null&navid=850130000000000&pnavid=850000000000000&position=SubNavigation&ttype=main&pname=USDA%2520NRCS%2520-%2520Natural%2520Resources%2520Conservation%2520Service\n"},{"$f":"VLOOKUP(B36,'LOC FINAL with new Themes'!A:M,8,0)","v":0},{"$f":"VLOOKUP(B36,'LOC FINAL with new Themes'!A:M,9,0)","v":0},{"$f":"VLOOKUP(B36,'LOC FINAL with new Themes'!A:M,10,0)","v":0},{"$f":"VLOOKUP(B36,'LOC FINAL with new Themes'!A:M,11,0)","v":0},{"$f":"VLOOKUP(B36,'LOC FINAL with new Themes'!A:M,12,0)","v":0},{"$f":"VLOOKUP(B36,'LOC FINAL with new Themes'!A:M,13,0)","v":"M"}]
["Polar Operational Environmental Satellite (POES) data (NCDC)","Polar Operational Environmental Satellite (POES) data","Polar Operational Environmental Satellite (POES) data",{"$f":"IF(C37=0,B37,C37)","v":"Polar Operational Environmental Satellite (POES) data"},"Climate and Weather ","DOC-NOAA","John Bates","john.j.bates@noaa.gov",{"$f":"VLOOKUP(B37,'LOC FINAL with new Themes'!A:M,7,0)","v":0},{"$f":"VLOOKUP(B37,'LOC FINAL with new Themes'!A:M,8,0)","v":0},{"$f":"VLOOKUP(B37,'LOC FINAL with new Themes'!A:M,9,0)","v":0},{"$f":"VLOOKUP(B37,'LOC FINAL with new Themes'!A:M,10,0)","v":0},{"$f":"VLOOKUP(B37,'LOC FINAL with new Themes'!A:M,11,0)","v":0},{"$f":"VLOOKUP(B37,'LOC FINAL with new Themes'!A:M,12,0)","v":0},{"$f":"VLOOKUP(B37,'LOC FINAL with new Themes'!A:M,13,0)","v":0}]
[null,null,null,{"$f":"SUBTOTAL(3,D31:D37)","v":7},"Climate and Weather  Count"]
[null,"5-digit ZIP Code Tabulation Area (Census 2000)","5-digit ZIP Code Tabulation Area (Census 2000)",{"$f":"IF(C39=0,B39,C39)","v":"5-digit ZIP Code Tabulation Area (Census 2000)"},"Cultural & Demographic Statistics ","DOC-Census","Jennifer Holland","Jennifer.L.Holland@census.gov",{"$f":"VLOOKUP(B39,'LOC FINAL with new Themes'!A:M,7,0)","v":0},{"$f":"VLOOKUP(B39,'LOC FINAL with new Themes'!A:M,8,0)","v":0},{"$f":"VLOOKUP(B39,'LOC FINAL with new Themes'!A:M,9,0)","v":0},{"$f":"VLOOKUP(B39,'LOC FINAL with new Themes'!A:M,10,0)","v":0},{"$f":"VLOOKUP(B39,'LOC FINAL with new Themes'!A:M,11,0)","v":0},{"$f":"VLOOKUP(B39,'LOC FINAL with new Themes'!A:M,12,0)","v":0},{"$f":"VLOOKUP(B39,'LOC FINAL with new Themes'!A:M,13,0)","v":0}]
["AIR, ANVSA, Hawaiian Homelands Boundaries","AIR, ANVSA, Hawaiian Homelands Boundaries",null,"AIR, ANVSA, Hawaiian Homelands Boundaries","Cultural & Demographic Statistics ","DOC-Census","Randy Fusaro","randy.j.fusaro@census.gov",{"$f":"VLOOKUP(B40,'LOC FINAL with new Themes'!A:M,7,0)","v":0},{"$f":"VLOOKUP(B40,'LOC FINAL with new Themes'!A:M,8,0)","v":0},{"$f":"VLOOKUP(B40,'LOC FINAL with new Themes'!A:M,9,0)","v":0},{"$f":"VLOOKUP(B40,'LOC FINAL with new Themes'!A:M,10,0)","v":0},{"$f":"VLOOKUP(B40,'LOC FINAL with new Themes'!A:M,11,0)","v":0},{"$f":"VLOOKUP(B40,'LOC FINAL with new Themes'!A:M,12,0)","v":0},{"$f":"VLOOKUP(B40,'LOC FINAL with new Themes'!A:M,13,0)","v":0}]
[null,"All Lines (2010 Census)","All Lines (2010 Census)","All Lines (2010 Census)","Cultural & Demographic Statistics ","DOC-Census","Jennifer Holland","Jennifer.L.Holland@census.gov",{"$f":"VLOOKUP(B41,'LOC FINAL with new Themes'!A:M,7,0)","v":0},{"$f":"VLOOKUP(B41,'LOC FINAL with new Themes'!A:M,8,0)","v":0},{"$f":"VLOOKUP(B41,'LOC FINAL with new Themes'!A:M,9,0)","v":0},{"$f":"VLOOKUP(B41,'LOC FINAL with new Themes'!A:M,10,0)","v":0},{"$f":"VLOOKUP(B41,'LOC FINAL with new Themes'!A:M,11,0)","v":0},{"$f":"VLOOKUP(B41,'LOC FINAL with new Themes'!A:M,12,0)","v":0},{"$f":"VLOOKUP(B41,'LOC FINAL with new Themes'!A:M,13,0)","v":0}]
[null,"ANSI codes for  metro/micropolitan areas","ANSI codes for  metro/micropolitan areas","ANSI codes for  metro/micropolitan areas","Cultural & Demographic Statistics ","DOC-Census","Jennifer Holland","Jennifer.L.Holland@census.gov",{"$f":"VLOOKUP(B42,'LOC FINAL with new Themes'!A:M,7,0)","v":0},{"$f":"VLOOKUP(B42,'LOC FINAL with new Themes'!A:M,8,0)","v":0},{"$f":"VLOOKUP(B42,'LOC FINAL with new Themes'!A:M,9,0)","v":0},{"$f":"VLOOKUP(B42,'LOC FINAL with new Themes'!A:M,10,0)","v":0},{"$f":"VLOOKUP(B42,'LOC FINAL with new Themes'!A:M,11,0)","v":0},{"$f":"VLOOKUP(B42,'LOC FINAL with new Themes'!A:M,12,0)","v":0},{"$f":"VLOOKUP(B42,'LOC FINAL with new Themes'!A:M,13,0)","v":0}]
[null,"ANSI codes for congressional districts","ANSI codes for congressional districts","ANSI codes for congressional districts","Cultural & Demographic Statistics ","DOC-Census","Jennifer Holland","Jennifer.L.Holland@census.gov",{"$f":"VLOOKUP(B43,'LOC FINAL with new Themes'!A:M,7,0)","v":0},{"$f":"VLOOKUP(B43,'LOC FINAL with new Themes'!A:M,8,0)","v":0},{"$f":"VLOOKUP(B43,'LOC FINAL with new Themes'!A:M,9,0)","v":0},{"$f":"VLOOKUP(B43,'LOC FINAL with new Themes'!A:M,10,0)","v":0},{"$f":"VLOOKUP(B43,'LOC FINAL with new Themes'!A:M,11,0)","v":0},{"$f":"VLOOKUP(B43,'LOC FINAL with new Themes'!A:M,12,0)","v":0},{"$f":"VLOOKUP(B43,'LOC FINAL with new Themes'!A:M,13,0)","v":0}]
[null,"ANSI codes for counties","ANSI codes for counties","ANSI codes for counties","Cultural & Demographic Statistics ","DOC-Census","Jennifer Holland","Jennifer.L.Holland@census.gov",{"$f":"VLOOKUP(B44,'LOC FINAL with new Themes'!A:M,7,0)","v":0},{"$f":"VLOOKUP(B44,'LOC FINAL with new Themes'!A:M,8,0)","v":0},{"$f":"VLOOKUP(B44,'LOC FINAL with new Themes'!A:M,9,0)","v":0},{"$f":"VLOOKUP(B44,'LOC FINAL with new Themes'!A:M,10,0)","v":0},{"$f":"VLOOKUP(B44,'LOC FINAL with new Themes'!A:M,11,0)","v":0},{"$f":"VLOOKUP(B44,'LOC FINAL with new Themes'!A:M,12,0)","v":0},{"$f":"VLOOKUP(B44,'LOC FINAL with new Themes'!A:M,13,0)","v":0}]
[null,"ANSI codes for states","ANSI codes for states","ANSI codes for states","Cultural & Demographic Statistics ","DOC-Census","Jennifer Holland","Jennifer.L.Holland@census.gov",{"$f":"VLOOKUP(B45,'LOC FINAL with new Themes'!A:M,7,0)","v":0},{"$f":"VLOOKUP(B45,'LOC FINAL with new Themes'!A:M,8,0)","v":0},{"$f":"VLOOKUP(B45,'LOC FINAL with new Themes'!A:M,9,0)","v":0},{"$f":"VLOOKUP(B45,'LOC FINAL with new Themes'!A:M,10,0)","v":0},{"$f":"VLOOKUP(B45,'LOC FINAL with new Themes'!A:M,11,0)","v":0},{"$f":"VLOOKUP(B45,'LOC FINAL with new Themes'!A:M,12,0)","v":0},{"$f":"VLOOKUP(B45,'LOC FINAL with new Themes'!A:M,13,0)","v":0}]
[null,"Block (2010 Census)","Block (2010 Census)","Block (2010 Census)","Cultural & Demographic Statistics ","DOC-Census","Jennifer Holland","Jennifer.L.Holland@census.gov",{"$f":"VLOOKUP(B46,'LOC FINAL with new Themes'!A:M,7,0)","v":0},{"$f":"VLOOKUP(B46,'LOC FINAL with new Themes'!A:M,8,0)","v":0},{"$f":"VLOOKUP(B46,'LOC FINAL with new Themes'!A:M,9,0)","v":0},{"$f":"VLOOKUP(B46,'LOC FINAL with new Themes'!A:M,10,0)","v":0},{"$f":"VLOOKUP(B46,'LOC FINAL with new Themes'!A:M,11,0)","v":0},{"$f":"VLOOKUP(B46,'LOC FINAL with new Themes'!A:M,12,0)","v":0},{"$f":"VLOOKUP(B46,'LOC FINAL with new Themes'!A:M,13,0)","v":0}]
[null,"Block (Census 2000)","Block (Census 2000)","Block (Census 2000)","Cultural & Demographic Statistics ","DOC-Census","Jennifer Holland","Jennifer.L.Holland@census.gov",{"$f":"VLOOKUP(B47,'LOC FINAL with new Themes'!A:M,7,0)","v":0},{"$f":"VLOOKUP(B47,'LOC FINAL with new Themes'!A:M,8,0)","v":0},{"$f":"VLOOKUP(B47,'LOC FINAL with new Themes'!A:M,9,0)","v":0},{"$f":"VLOOKUP(B47,'LOC FINAL with new Themes'!A:M,10,0)","v":0},{"$f":"VLOOKUP(B47,'LOC FINAL with new Themes'!A:M,11,0)","v":0},{"$f":"VLOOKUP(B47,'LOC FINAL with new Themes'!A:M,12,0)","v":0},{"$f":"VLOOKUP(B47,'LOC FINAL with new Themes'!A:M,13,0)","v":0}]
[null,"Block Group (Census 2000)","Block Group (Census 2000)","Block Group (Census 2000)","Cultural & Demographic Statistics ","DOC-Census","Jennifer Holland","Jennifer.L.Holland@census.gov",{"$f":"VLOOKUP(B48,'LOC FINAL with new Themes'!A:M,7,0)","v":0},{"$f":"VLOOKUP(B48,'LOC FINAL with new Themes'!A:M,8,0)","v":0},{"$f":"VLOOKUP(B48,'LOC FINAL with new Themes'!A:M,9,0)","v":0},{"$f":"VLOOKUP(B48,'LOC FINAL with new Themes'!A:M,10,0)","v":0},{"$f":"VLOOKUP(B48,'LOC FINAL with new Themes'!A:M,11,0)","v":0},{"$f":"VLOOKUP(B48,'LOC FINAL with new Themes'!A:M,12,0)","v":0},{"$f":"VLOOKUP(B48,'LOC FINAL with new Themes'!A:M,13,0)","v":0}]
[null,"Block Group (Census 2010)","Block Group (Census 2010)","Block Group (Census 2010)","Cultural & Demographic Statistics ","DOC-Census","Jennifer Holland","Jennifer.L.Holland@census.gov",{"$f":"VLOOKUP(B49,'LOC FINAL with new Themes'!A:M,7,0)","v":0},{"$f":"VLOOKUP(B49,'LOC FINAL with new Themes'!A:M,8,0)","v":0},{"$f":"VLOOKUP(B49,'LOC FINAL with new Themes'!A:M,9,0)","v":0},{"$f":"VLOOKUP(B49,'LOC FINAL with new Themes'!A:M,10,0)","v":0},{"$f":"VLOOKUP(B49,'LOC FINAL with new Themes'!A:M,11,0)","v":0},{"$f":"VLOOKUP(B49,'LOC FINAL with new Themes'!A:M,12,0)","v":0},{"$f":"VLOOKUP(B49,'LOC FINAL with new Themes'!A:M,13,0)","v":0}]
[null,"Census 2000 FIPS 55 Codes","Census 2000 FIPS 55 Codes","Census 2000 FIPS 55 Codes","Cultural & Demographic Statistics ","DOC-Census","Jennifer Holland","Jennifer.L.Holland@census.gov",{"$f":"VLOOKUP(B50,'LOC FINAL with new Themes'!A:M,7,0)","v":0},{"$f":"VLOOKUP(B50,'LOC FINAL with new Themes'!A:M,8,0)","v":0},{"$f":"VLOOKUP(B50,'LOC FINAL with new Themes'!A:M,9,0)","v":0},{"$f":"VLOOKUP(B50,'LOC FINAL with new Themes'!A:M,10,0)","v":0},{"$f":"VLOOKUP(B50,'LOC FINAL with new Themes'!A:M,11,0)","v":0},{"$f":"VLOOKUP(B50,'LOC FINAL with new Themes'!A:M,12,0)","v":0},{"$f":"VLOOKUP(B50,'LOC FINAL with new Themes'!A:M,13,0)","v":0}]
[null,"Census Tract (2010 Census)","Census Tract (2010 Census)","Census Tract (2010 Census)","Cultural & Demographic Statistics ","DOC-Census","Jennifer Holland","Jennifer.L.Holland@census.gov",{"$f":"VLOOKUP(B51,'LOC FINAL with new Themes'!A:M,7,0)","v":0},{"$f":"VLOOKUP(B51,'LOC FINAL with new Themes'!A:M,8,0)","v":0},{"$f":"VLOOKUP(B51,'LOC FINAL with new Themes'!A:M,9,0)","v":0},{"$f":"VLOOKUP(B51,'LOC FINAL with new Themes'!A:M,10,0)","v":0},{"$f":"VLOOKUP(B51,'LOC FINAL with new Themes'!A:M,11,0)","v":0},{"$f":"VLOOKUP(B51,'LOC FINAL with new Themes'!A:M,12,0)","v":0},{"$f":"VLOOKUP(B51,'LOC FINAL with new Themes'!A:M,13,0)","v":0}]
[null,"Census Tract (Census 2000)","Census Tract (Census 2000)","Census Tract (Census 2000)","Cultural & Demographic Statistics ","DOC-Census","Jennifer Holland","Jennifer.L.Holland@census.gov",{"$f":"VLOOKUP(B52,'LOC FINAL with new Themes'!A:M,7,0)","v":0},{"$f":"VLOOKUP(B52,'LOC FINAL with new Themes'!A:M,8,0)","v":0},{"$f":"VLOOKUP(B52,'LOC FINAL with new Themes'!A:M,9,0)","v":0},{"$f":"VLOOKUP(B52,'LOC FINAL with new Themes'!A:M,10,0)","v":0},{"$f":"VLOOKUP(B52,'LOC FINAL with new Themes'!A:M,11,0)","v":0},{"$f":"VLOOKUP(B52,'LOC FINAL with new Themes'!A:M,12,0)","v":0},{"$f":"VLOOKUP(B52,'LOC FINAL with new Themes'!A:M,13,0)","v":0}]
[null,"Combined Statistical Area (2010 Census)","Combined Statistical Area (2010 Census)","Combined Statistical Area (2010 Census)","Cultural & Demographic Statistics ","DOC-Census","Jennifer Holland","Jennifer.L.Holland@census.gov",{"$f":"VLOOKUP(B53,'LOC FINAL with new Themes'!A:M,7,0)","v":0},{"$f":"VLOOKUP(B53,'LOC FINAL with new Themes'!A:M,8,0)","v":0},{"$f":"VLOOKUP(B53,'LOC FINAL with new Themes'!A:M,9,0)","v":0},{"$f":"VLOOKUP(B53,'LOC FINAL with new Themes'!A:M,10,0)","v":0},{"$f":"VLOOKUP(B53,'LOC FINAL with new Themes'!A:M,11,0)","v":0},{"$f":"VLOOKUP(B53,'LOC FINAL with new Themes'!A:M,12,0)","v":0},{"$f":"VLOOKUP(B53,'LOC FINAL with new Themes'!A:M,13,0)","v":0}]
[null,"Congressional District Boundaries",null,"Congressional District Boundaries","Cultural & Demographic Statistics ","DOC-Census","Randy Fusaro","randy.j.fusaro@census.gov",{"$f":"VLOOKUP(B54,'LOC FINAL with new Themes'!A:M,7,0)","v":0},{"$f":"VLOOKUP(B54,'LOC FINAL with new Themes'!A:M,8,0)","v":0},{"$f":"VLOOKUP(B54,'LOC FINAL with new Themes'!A:M,9,0)","v":0},{"$f":"VLOOKUP(B54,'LOC FINAL with new Themes'!A:M,10,0)","v":0},{"$f":"VLOOKUP(B54,'LOC FINAL with new Themes'!A:M,11,0)","v":0},{"$f":"VLOOKUP(B54,'LOC FINAL with new Themes'!A:M,12,0)","v":0},{"$f":"VLOOKUP(B54,'LOC FINAL with new Themes'!A:M,13,0)","v":0}]
["County, place, MCD Boundaries","County, place, MCD Boundaries",null,"County, place, MCD Boundaries","Cultural & Demographic Statistics ","DOC-Census","Randy Fusaro","randy.j.fusaro@census.gov",{"$f":"VLOOKUP(B55,'LOC FINAL with new Themes'!A:M,7,0)","v":0},{"$f":"VLOOKUP(B55,'LOC FINAL with new Themes'!A:M,8,0)","v":0},{"$f":"VLOOKUP(B55,'LOC FINAL with new Themes'!A:M,9,0)","v":0},{"$f":"VLOOKUP(B55,'LOC FINAL with new Themes'!A:M,10,0)","v":0},{"$f":"VLOOKUP(B55,'LOC FINAL with new Themes'!A:M,11,0)","v":0},{"$f":"VLOOKUP(B55,'LOC FINAL with new Themes'!A:M,12,0)","v":0},{"$f":"VLOOKUP(B55,'LOC FINAL with new Themes'!A:M,13,0)","v":0}]
[null,"Elementary School District (2010 Census)","Elementary School District (2010 Census)","Elementary School District (2010 Census)","Cultural & Demographic Statistics ","DOC-Census","Jennifer Holland","Jennifer.L.Holland@census.gov",{"$f":"VLOOKUP(B56,'LOC FINAL with new Themes'!A:M,7,0)","v":0},{"$f":"VLOOKUP(B56,'LOC FINAL with new Themes'!A:M,8,0)","v":0},{"$f":"VLOOKUP(B56,'LOC FINAL with new Themes'!A:M,9,0)","v":0},{"$f":"VLOOKUP(B56,'LOC FINAL with new Themes'!A:M,10,0)","v":0},{"$f":"VLOOKUP(B56,'LOC FINAL with new Themes'!A:M,11,0)","v":0},{"$f":"VLOOKUP(B56,'LOC FINAL with new Themes'!A:M,12,0)","v":0},{"$f":"VLOOKUP(B56,'LOC FINAL with new Themes'!A:M,13,0)","v":0}]
[null,"Elementary School District (Census 2000)","Elementary School District (Census 2000)","Elementary School District (Census 2000)","Cultural & Demographic Statistics ","DOC-Census","Jennifer Holland","Jennifer.L.Holland@census.gov",{"$f":"VLOOKUP(B57,'LOC FINAL with new Themes'!A:M,7,0)","v":0},{"$f":"VLOOKUP(B57,'LOC FINAL with new Themes'!A:M,8,0)","v":0},{"$f":"VLOOKUP(B57,'LOC FINAL with new Themes'!A:M,9,0)","v":0},{"$f":"VLOOKUP(B57,'LOC FINAL with new Themes'!A:M,10,0)","v":0},{"$f":"VLOOKUP(B57,'LOC FINAL with new Themes'!A:M,11,0)","v":0},{"$f":"VLOOKUP(B57,'LOC FINAL with new Themes'!A:M,12,0)","v":0},{"$f":"VLOOKUP(B57,'LOC FINAL with new Themes'!A:M,13,0)","v":0}]
["FIPS/ANSI codes for states, counties, congressional districts & metro/micropolitan areas","FIPS/ANSI codes for states, counties, congressional districts & metro/micropolitan areas",null,"FIPS/ANSI codes for states, counties, congressional districts & metro/micropolitan areas","Cultural & Demographic Statistics ","DOC-Census","Randy Fusaro","randy.j.fusaro@census.gov",{"$f":"VLOOKUP(B58,'LOC FINAL with new Themes'!A:M,7,0)","v":0},{"$f":"VLOOKUP(B58,'LOC FINAL with new Themes'!A:M,8,0)","v":0},{"$f":"VLOOKUP(B58,'LOC FINAL with new Themes'!A:M,9,0)","v":0},{"$f":"VLOOKUP(B58,'LOC FINAL with new Themes'!A:M,10,0)","v":0},{"$f":"VLOOKUP(B58,'LOC FINAL with new Themes'!A:M,11,0)","v":0},{"$f":"VLOOKUP(B58,'LOC FINAL with new Themes'!A:M,12,0)","v":0},{"$f":"VLOOKUP(B58,'LOC FINAL with new Themes'!A:M,13,0)","v":0}]
["Metropolitan/micropolitan area boundaries","Metropolitan/micropolitan area boundaries",null,"Metropolitan/micropolitan area boundaries","Cultural & Demographic Statistics ","DOC-Census","Randy Fusaro","randy.j.fusaro@census.gov",{"$f":"VLOOKUP(B59,'LOC FINAL with new Themes'!A:M,7,0)","v":0},{"$f":"VLOOKUP(B59,'LOC FINAL with new Themes'!A:M,8,0)","v":0},{"$f":"VLOOKUP(B59,'LOC FINAL with new Themes'!A:M,9,0)","v":0},{"$f":"VLOOKUP(B59,'LOC FINAL with new Themes'!A:M,10,0)","v":0},{"$f":"VLOOKUP(B59,'LOC FINAL with new Themes'!A:M,11,0)","v":0},{"$f":"VLOOKUP(B59,'LOC FINAL with new Themes'!A:M,12,0)","v":0},{"$f":"VLOOKUP(B59,'LOC FINAL with new Themes'!A:M,13,0)","v":0}]
[null,"Metropolitan/micropolitan Statistical Area (2010 Census)","Metropolitan/micropolitan Statistical Area (2010 Census)","Metropolitan/micropolitan Statistical Area (2010 Census)","Cultural & Demographic Statistics ","DOC-Census","Jennifer Holland","Jennifer.L.Holland@census.gov",{"$f":"VLOOKUP(B60,'LOC FINAL with new Themes'!A:M,7,0)","v":0},{"$f":"VLOOKUP(B60,'LOC FINAL with new Themes'!A:M,8,0)","v":0},{"$f":"VLOOKUP(B60,'LOC FINAL with new Themes'!A:M,9,0)","v":0},{"$f":"VLOOKUP(B60,'LOC FINAL with new Themes'!A:M,10,0)","v":0},{"$f":"VLOOKUP(B60,'LOC FINAL with new Themes'!A:M,11,0)","v":0},{"$f":"VLOOKUP(B60,'LOC FINAL with new Themes'!A:M,12,0)","v":0},{"$f":"VLOOKUP(B60,'LOC FINAL with new Themes'!A:M,13,0)","v":0}]
["National Center for Health Statistics (Atlas of US Mortality)","National Center for Health Statistics (Atlas of US Mortality)",null,"National Center for Health Statistics (Atlas of US Mortality)","Cultural & Demographic Statistics ","HHS","Gary Anderson","gary.anderson@hhs.gov",{"$f":"VLOOKUP(B61,'LOC FINAL with new Themes'!A:M,7,0)","v":0},{"$f":"VLOOKUP(B61,'LOC FINAL with new Themes'!A:M,8,0)","v":0},{"$f":"VLOOKUP(B61,'LOC FINAL with new Themes'!A:M,9,0)","v":0},{"$f":"VLOOKUP(B61,'LOC FINAL with new Themes'!A:M,10,0)","v":0},{"$f":"VLOOKUP(B61,'LOC FINAL with new Themes'!A:M,11,0)","v":0},{"$f":"VLOOKUP(B61,'LOC FINAL with new Themes'!A:M,12,0)","v":0},{"$f":"VLOOKUP(B61,'LOC FINAL with new Themes'!A:M,13,0)","v":0}]
[null,null,"Oklahoma Tribal Joint Use Areas","Oklahoma Tribal Joint Use Areas","Cultural & Demographic Statistics ","DOC-Census"]
[null,null,"Oklahoma Tribal Statistical Areas","Oklahoma Tribal Statistical Areas","Cultural & Demographic Statistics ","DOC-Census"]
[null,"Public Use Microdata Area (Census 2000)","Public Use Microdata Area (Census 2000)","Public Use Microdata Area (Census 2000)","Cultural & Demographic Statistics ","DOC-Census","Jennifer Holland","Jennifer.L.Holland@census.gov",{"$f":"VLOOKUP(B64,'LOC FINAL with new Themes'!A:M,7,0)","v":0},{"$f":"VLOOKUP(B64,'LOC FINAL with new Themes'!A:M,8,0)","v":0},{"$f":"VLOOKUP(B64,'LOC FINAL with new Themes'!A:M,9,0)","v":0},{"$f":"VLOOKUP(B64,'LOC FINAL with new Themes'!A:M,10,0)","v":0},{"$f":"VLOOKUP(B64,'LOC FINAL with new Themes'!A:M,11,0)","v":0},{"$f":"VLOOKUP(B64,'LOC FINAL with new Themes'!A:M,12,0)","v":0},{"$f":"VLOOKUP(B64,'LOC FINAL with new Themes'!A:M,13,0)","v":0}]
["School District Boundaries","School District Boundaries",null,"School District Boundaries","Cultural & Demographic Statistics ","DOC-Census","Randy Fusaro","randy.j.fusaro@census.gov",{"$f":"VLOOKUP(B65,'LOC FINAL with new Themes'!A:M,7,0)","v":0},{"$f":"VLOOKUP(B65,'LOC FINAL with new Themes'!A:M,8,0)","v":0},{"$f":"VLOOKUP(B65,'LOC FINAL with new Themes'!A:M,9,0)","v":0},{"$f":"VLOOKUP(B65,'LOC FINAL with new Themes'!A:M,10,0)","v":0},{"$f":"VLOOKUP(B65,'LOC FINAL with new Themes'!A:M,11,0)","v":0},{"$f":"VLOOKUP(B65,'LOC FINAL with new Themes'!A:M,12,0)","v":0},{"$f":"VLOOKUP(B65,'LOC FINAL with new Themes'!A:M,13,0)","v":0}]
[null,"Secondary School District (2010 Census)","Secondary School District (2010 Census)","Secondary School District (2010 Census)","Cultural & Demographic Statistics ","DOC-Census","Jennifer Holland","Jennifer.L.Holland@census.gov",{"$f":"VLOOKUP(B66,'LOC FINAL with new Themes'!A:M,7,0)","v":0},{"$f":"VLOOKUP(B66,'LOC FINAL with new Themes'!A:M,8,0)","v":0},{"$f":"VLOOKUP(B66,'LOC FINAL with new Themes'!A:M,9,0)","v":0},{"$f":"VLOOKUP(B66,'LOC FINAL with new Themes'!A:M,10,0)","v":0},{"$f":"VLOOKUP(B66,'LOC FINAL with new Themes'!A:M,11,0)","v":0},{"$f":"VLOOKUP(B66,'LOC FINAL with new Themes'!A:M,12,0)","v":0},{"$f":"VLOOKUP(B66,'LOC FINAL with new Themes'!A:M,13,0)","v":0}]
[null,"Secondary School District (Census 2000)","Secondary School District (Census 2000)","Secondary School District (Census 2000)","Cultural & Demographic Statistics ","DOC-Census","Jennifer Holland","Jennifer.L.Holland@census.gov",{"$f":"VLOOKUP(B67,'LOC FINAL with new Themes'!A:M,7,0)","v":0},{"$f":"VLOOKUP(B67,'LOC FINAL with new Themes'!A:M,8,0)","v":0},{"$f":"VLOOKUP(B67,'LOC FINAL with new Themes'!A:M,9,0)","v":0},{"$f":"VLOOKUP(B67,'LOC FINAL with new Themes'!A:M,10,0)","v":0},{"$f":"VLOOKUP(B67,'LOC FINAL with new Themes'!A:M,11,0)","v":0},{"$f":"VLOOKUP(B67,'LOC FINAL with new Themes'!A:M,12,0)","v":0},{"$f":"VLOOKUP(B67,'LOC FINAL with new Themes'!A:M,13,0)","v":0}]
["State (+ Territories) Boundaries","State (+ Territories) Boundaries",null,"State (+ Territories) Boundaries","Cultural & Demographic Statistics ","DOC-Census","Randy Fusaro","randy.j.fusaro@census.gov",{"$f":"VLOOKUP(B68,'LOC FINAL with new Themes'!A:M,7,0)","v":0},{"$f":"VLOOKUP(B68,'LOC FINAL with new Themes'!A:M,8,0)","v":0},{"$f":"VLOOKUP(B68,'LOC FINAL with new Themes'!A:M,9,0)","v":0},{"$f":"VLOOKUP(B68,'LOC FINAL with new Themes'!A:M,10,0)","v":0},{"$f":"VLOOKUP(B68,'LOC FINAL with new Themes'!A:M,11,0)","v":0},{"$f":"VLOOKUP(B68,'LOC FINAL with new Themes'!A:M,12,0)","v":0},{"$f":"VLOOKUP(B68,'LOC FINAL with new Themes'!A:M,13,0)","v":0}]
["Statistical Area Boundaries (tracts, blocks, UAs, CDPs, etc)","Statistical Area Boundaries (tracts, blocks, UAs, CDPs, etc)",null,"Statistical Area Boundaries (tracts, blocks, UAs, CDPs, etc)","Cultural & Demographic Statistics ","DOC-Census","Randy Fusaro","randy.j.fusaro@census.gov",{"$f":"VLOOKUP(B69,'LOC FINAL with new Themes'!A:M,7,0)","v":0},{"$f":"VLOOKUP(B69,'LOC FINAL with new Themes'!A:M,8,0)","v":0},{"$f":"VLOOKUP(B69,'LOC FINAL with new Themes'!A:M,9,0)","v":0},{"$f":"VLOOKUP(B69,'LOC FINAL with new Themes'!A:M,10,0)","v":0},{"$f":"VLOOKUP(B69,'LOC FINAL with new Themes'!A:M,11,0)","v":0},{"$f":"VLOOKUP(B69,'LOC FINAL with new Themes'!A:M,12,0)","v":0},{"$f":"VLOOKUP(B69,'LOC FINAL with new Themes'!A:M,13,0)","v":0}]
[null,"Super Public Use Microdata Area (Census 2000)","Super Public Use Microdata Area (Census 2000)","Super Public Use Microdata Area (Census 2000)","Cultural & Demographic Statistics ","DOC-Census","Jennifer Holland","Jennifer.L.Holland@census.gov",{"$f":"VLOOKUP(B70,'LOC FINAL with new Themes'!A:M,7,0)","v":0},{"$f":"VLOOKUP(B70,'LOC FINAL with new Themes'!A:M,8,0)","v":0},{"$f":"VLOOKUP(B70,'LOC FINAL with new Themes'!A:M,9,0)","v":0},{"$f":"VLOOKUP(B70,'LOC FINAL with new Themes'!A:M,10,0)","v":0},{"$f":"VLOOKUP(B70,'LOC FINAL with new Themes'!A:M,11,0)","v":0},{"$f":"VLOOKUP(B70,'LOC FINAL with new Themes'!A:M,12,0)","v":0},{"$f":"VLOOKUP(B70,'LOC FINAL with new Themes'!A:M,13,0)","v":0}]
["TIGER* (many statistical boundaries)","TIGER (many statistical boundaries)",null,"TIGER (many statistical boundaries)","Cultural & Demographic Statistics ","DOC-Census","Randy Fusaro","randy.j.fusaro@census.gov",{"$f":"VLOOKUP(B71,'LOC FINAL with new Themes'!A:M,7,0)","v":0},{"$f":"VLOOKUP(B71,'LOC FINAL with new Themes'!A:M,8,0)","v":0},{"$f":"VLOOKUP(B71,'LOC FINAL with new Themes'!A:M,9,0)","v":0},{"$f":"VLOOKUP(B71,'LOC FINAL with new Themes'!A:M,10,0)","v":0},{"$f":"VLOOKUP(B71,'LOC FINAL with new Themes'!A:M,11,0)","v":0},{"$f":"VLOOKUP(B71,'LOC FINAL with new Themes'!A:M,12,0)","v":0},{"$f":"VLOOKUP(B71,'LOC FINAL with new Themes'!A:M,13,0)","v":0}]
[null,"Topological Faces (2010 Census)","Topological Faces (2010 Census)","Topological Faces (2010 Census)","Cultural & Demographic Statistics ","DOC-Census","Jennifer Holland","Jennifer.L.Holland@census.gov",{"$f":"VLOOKUP(B72,'LOC FINAL with new Themes'!A:M,7,0)","v":0},{"$f":"VLOOKUP(B72,'LOC FINAL with new Themes'!A:M,8,0)","v":0},{"$f":"VLOOKUP(B72,'LOC FINAL with new Themes'!A:M,9,0)","v":0},{"$f":"VLOOKUP(B72,'LOC FINAL with new Themes'!A:M,10,0)","v":0},{"$f":"VLOOKUP(B72,'LOC FINAL with new Themes'!A:M,11,0)","v":0},{"$f":"VLOOKUP(B72,'LOC FINAL with new Themes'!A:M,12,0)","v":0},{"$f":"VLOOKUP(B72,'LOC FINAL with new Themes'!A:M,13,0)","v":0}]
[null,"Unified School District (2010 Census)","Unified School District (2010 Census)","Unified School District (2010 Census)","Cultural & Demographic Statistics ","DOC-Census","Jennifer Holland","Jennifer.L.Holland@census.gov",{"$f":"VLOOKUP(B73,'LOC FINAL with new Themes'!A:M,7,0)","v":0},{"$f":"VLOOKUP(B73,'LOC FINAL with new Themes'!A:M,8,0)","v":0},{"$f":"VLOOKUP(B73,'LOC FINAL with new Themes'!A:M,9,0)","v":0},{"$f":"VLOOKUP(B73,'LOC FINAL with new Themes'!A:M,10,0)","v":0},{"$f":"VLOOKUP(B73,'LOC FINAL with new Themes'!A:M,11,0)","v":0},{"$f":"VLOOKUP(B73,'LOC FINAL with new Themes'!A:M,12,0)","v":0},{"$f":"VLOOKUP(B73,'LOC FINAL with new Themes'!A:M,13,0)","v":0}]
[null,"Unified School District (Census 2000)","Unified School District (Census 2000)","Unified School District (Census 2000)","Cultural & Demographic Statistics ","DOC-Census","Jennifer Holland","Jennifer.L.Holland@census.gov",{"$f":"VLOOKUP(B74,'LOC FINAL with new Themes'!A:M,7,0)","v":0},{"$f":"VLOOKUP(B74,'LOC FINAL with new Themes'!A:M,8,0)","v":0},{"$f":"VLOOKUP(B74,'LOC FINAL with new Themes'!A:M,9,0)","v":0},{"$f":"VLOOKUP(B74,'LOC FINAL with new Themes'!A:M,10,0)","v":0},{"$f":"VLOOKUP(B74,'LOC FINAL with new Themes'!A:M,11,0)","v":0},{"$f":"VLOOKUP(B74,'LOC FINAL with new Themes'!A:M,12,0)","v":0},{"$f":"VLOOKUP(B74,'LOC FINAL with new Themes'!A:M,13,0)","v":0}]
[null,"Urban Growth Area (2010 Census)","Urban Growth Area (2010 Census)","Urban Growth Area (2010 Census)","Cultural & Demographic Statistics ","DOC-Census","Jennifer Holland","Jennifer.L.Holland@census.gov",{"$f":"VLOOKUP(B75,'LOC FINAL with new Themes'!A:M,7,0)","v":0},{"$f":"VLOOKUP(B75,'LOC FINAL with new Themes'!A:M,8,0)","v":0},{"$f":"VLOOKUP(B75,'LOC FINAL with new Themes'!A:M,9,0)","v":0},{"$f":"VLOOKUP(B75,'LOC FINAL with new Themes'!A:M,10,0)","v":0},{"$f":"VLOOKUP(B75,'LOC FINAL with new Themes'!A:M,11,0)","v":0},{"$f":"VLOOKUP(B75,'LOC FINAL with new Themes'!A:M,12,0)","v":0},{"$f":"VLOOKUP(B75,'LOC FINAL with new Themes'!A:M,13,0)","v":0}]
[null,"Urban Growth Area (Census 2000)","Urban Growth Area (Census 2000)","Urban Growth Area (Census 2000)","Cultural & Demographic Statistics ","DOC-Census","Jennifer Holland","Jennifer.L.Holland@census.gov",{"$f":"VLOOKUP(B76,'LOC FINAL with new Themes'!A:M,7,0)","v":0},{"$f":"VLOOKUP(B76,'LOC FINAL with new Themes'!A:M,8,0)","v":0},{"$f":"VLOOKUP(B76,'LOC FINAL with new Themes'!A:M,9,0)","v":0},{"$f":"VLOOKUP(B76,'LOC FINAL with new Themes'!A:M,10,0)","v":0},{"$f":"VLOOKUP(B76,'LOC FINAL with new Themes'!A:M,11,0)","v":0},{"$f":"VLOOKUP(B76,'LOC FINAL with new Themes'!A:M,12,0)","v":0},{"$f":"VLOOKUP(B76,'LOC FINAL with new Themes'!A:M,13,0)","v":0}]
[null,"Voting District (2010 Census)","Voting District (2010 Census)","Voting District (2010 Census)","Cultural & Demographic Statistics ","DOC-Census","Jennifer Holland","Jennifer.L.Holland@census.gov",{"$f":"VLOOKUP(B77,'LOC FINAL with new Themes'!A:M,7,0)","v":0},{"$f":"VLOOKUP(B77,'LOC FINAL with new Themes'!A:M,8,0)","v":0},{"$f":"VLOOKUP(B77,'LOC FINAL with new Themes'!A:M,9,0)","v":0},{"$f":"VLOOKUP(B77,'LOC FINAL with new Themes'!A:M,10,0)","v":0},{"$f":"VLOOKUP(B77,'LOC FINAL with new Themes'!A:M,11,0)","v":0},{"$f":"VLOOKUP(B77,'LOC FINAL with new Themes'!A:M,12,0)","v":0},{"$f":"VLOOKUP(B77,'LOC FINAL with new Themes'!A:M,13,0)","v":0}]
[null,"Voting District (Census 2000)","Voting District (Census 2000)","Voting District (Census 2000)","Cultural & Demographic Statistics ","DOC-Census","Jennifer Holland","Jennifer.L.Holland@census.gov",{"$f":"VLOOKUP(B78,'LOC FINAL with new Themes'!A:M,7,0)","v":0},{"$f":"VLOOKUP(B78,'LOC FINAL with new Themes'!A:M,8,0)","v":0},{"$f":"VLOOKUP(B78,'LOC FINAL with new Themes'!A:M,9,0)","v":0},{"$f":"VLOOKUP(B78,'LOC FINAL with new Themes'!A:M,10,0)","v":0},{"$f":"VLOOKUP(B78,'LOC FINAL with new Themes'!A:M,11,0)","v":0},{"$f":"VLOOKUP(B78,'LOC FINAL with new Themes'!A:M,12,0)","v":0},{"$f":"VLOOKUP(B78,'LOC FINAL with new Themes'!A:M,13,0)","v":0}]
["Voting District Boundaries","Voting District Boundaries",null,"Voting District Boundaries","Cultural & Demographic Statistics ","DOC-Census","Randy Fusaro","randy.j.fusaro@census.gov",{"$f":"VLOOKUP(B79,'LOC FINAL with new Themes'!A:M,7,0)","v":0},{"$f":"VLOOKUP(B79,'LOC FINAL with new Themes'!A:M,8,0)","v":0},{"$f":"VLOOKUP(B79,'LOC FINAL with new Themes'!A:M,9,0)","v":0},{"$f":"VLOOKUP(B79,'LOC FINAL with new Themes'!A:M,10,0)","v":0},{"$f":"VLOOKUP(B79,'LOC FINAL with new Themes'!A:M,11,0)","v":0},{"$f":"VLOOKUP(B79,'LOC FINAL with new Themes'!A:M,12,0)","v":0},{"$f":"VLOOKUP(B79,'LOC FINAL with new Themes'!A:M,13,0)","v":0}]
[null,null,null,{"$f":"SUBTOTAL(3,D39:D79)","v":41},"Cultural & Demographic Statistics  Count"]
["Cultural Landscape Boundaries","Cultural Landscape Boundaries","Cultural Landscape Boundaries",{"$f":"IF(C81=0,B81,C81)","v":"Cultural Landscape Boundaries"},"Cultural & Demographic Statistics \nCultural Resources","DOI-NPS","John Knoerl","john_knoerl@nps.gov",{"$f":"VLOOKUP(B81,'LOC FINAL with new Themes'!A:M,7,0)","v":"Feature classes of the cultural resource data model (NPS only, other federal agencies handle it as they decide)"},{"$f":"VLOOKUP(B81,'LOC FINAL with new Themes'!A:M,8,0)","v":"don't want a single centralized data set but focusing on standard approach"},{"$f":"VLOOKUP(B81,'LOC FINAL with new Themes'!A:M,9,0)","v":0},{"$f":"VLOOKUP(B81,'LOC FINAL with new Themes'!A:M,10,0)","v":0},{"$f":"VLOOKUP(B81,'LOC FINAL with new Themes'!A:M,11,0)","v":0},{"$f":"VLOOKUP(B81,'LOC FINAL with new Themes'!A:M,12,0)","v":0},{"$f":"VLOOKUP(B81,'LOC FINAL with new Themes'!A:M,13,0)","v":0}]
["Cultural Resource Survey Boundaries","Cultural Resource Survey Boundaries","Cultural Resource Survey Boundaries","Cultural Resource Survey Boundaries","Cultural & Demographic Statistics \nCultural Resources","DOI-NPS","John Knoerl","john_knoerl@nps.gov",{"$f":"VLOOKUP(B82,'LOC FINAL with new Themes'!A:M,7,0)","v":"Feature classes of the cultural resource data model (NPS only, other federal agencies handle it as they decide)"},{"$f":"VLOOKUP(B82,'LOC FINAL with new Themes'!A:M,8,0)","v":"don't want a single centralized data set but focusing on standard approach"},{"$f":"VLOOKUP(B82,'LOC FINAL with new Themes'!A:M,9,0)","v":0},{"$f":"VLOOKUP(B82,'LOC FINAL with new Themes'!A:M,10,0)","v":0},{"$f":"VLOOKUP(B82,'LOC FINAL with new Themes'!A:M,11,0)","v":0},{"$f":"VLOOKUP(B82,'LOC FINAL with new Themes'!A:M,12,0)","v":0},{"$f":"VLOOKUP(B82,'LOC FINAL with new Themes'!A:M,13,0)","v":0}]
["Ethnographic Resource Boundaries","Ethnographic Resource Boundaries","Ethnographic Resource Boundaries","Ethnographic Resource Boundaries","Cultural & Demographic Statistics \nCultural Resources","DOI-NPS","John Knoerl","john_knoerl@nps.gov",{"$f":"VLOOKUP(B83,'LOC FINAL with new Themes'!A:M,7,0)","v":"Feature classes of the cultural resource data model (NPS only, other federal agencies handle it as they decide)"},{"$f":"VLOOKUP(B83,'LOC FINAL with new Themes'!A:M,8,0)","v":"don't want a single centralized data set but focusing on standard approach"},{"$f":"VLOOKUP(B83,'LOC FINAL with new Themes'!A:M,9,0)","v":0},{"$f":"VLOOKUP(B83,'LOC FINAL with new Themes'!A:M,10,0)","v":0},{"$f":"VLOOKUP(B83,'LOC FINAL with new Themes'!A:M,11,0)","v":0},{"$f":"VLOOKUP(B83,'LOC FINAL with new Themes'!A:M,12,0)","v":0},{"$f":"VLOOKUP(B83,'LOC FINAL with new Themes'!A:M,13,0)","v":0}]
["Historic Buildings Boundaries","Historic Buildings Boundaries","Historic Buildings Boundaries","Historic Buildings Boundaries","Cultural & Demographic Statistics \nCultural Resources","DOI-NPS","John Knoerl","john_knoerl@nps.gov",{"$f":"VLOOKUP(B84,'LOC FINAL with new Themes'!A:M,7,0)","v":"Feature classes of the cultural resource data model (NPS only, other federal agencies handle it as they decide)"},{"$f":"VLOOKUP(B84,'LOC FINAL with new Themes'!A:M,8,0)","v":"don't want a single centralized data set but focusing on standard approach"},{"$f":"VLOOKUP(B84,'LOC FINAL with new Themes'!A:M,9,0)","v":0},{"$f":"VLOOKUP(B84,'LOC FINAL with new Themes'!A:M,10,0)","v":0},{"$f":"VLOOKUP(B84,'LOC FINAL with new Themes'!A:M,11,0)","v":0},{"$f":"VLOOKUP(B84,'LOC FINAL with new Themes'!A:M,12,0)","v":0},{"$f":"VLOOKUP(B84,'LOC FINAL with new Themes'!A:M,13,0)","v":0}]
["Historic Districts Boundaries","Historic Districts Boundaries","Historic Districts Boundaries","Historic Districts Boundaries","Cultural & Demographic Statistics \nCultural Resources","DOI-NPS","John Knoerl","john_knoerl@nps.gov",{"$f":"VLOOKUP(B85,'LOC FINAL with new Themes'!A:M,7,0)","v":"Feature classes of the cultural resource data model (NPS only, other federal agencies handle it as they decide)"},{"$f":"VLOOKUP(B85,'LOC FINAL with new Themes'!A:M,8,0)","v":"don't want a single centralized data set but focusing on standard approach"},{"$f":"VLOOKUP(B85,'LOC FINAL with new Themes'!A:M,9,0)","v":0},{"$f":"VLOOKUP(B85,'LOC FINAL with new Themes'!A:M,10,0)","v":0},{"$f":"VLOOKUP(B85,'LOC FINAL with new Themes'!A:M,11,0)","v":0},{"$f":"VLOOKUP(B85,'LOC FINAL with new Themes'!A:M,12,0)","v":0},{"$f":"VLOOKUP(B85,'LOC FINAL with new Themes'!A:M,13,0)","v":0}]
["Historic Objects Boundaries","Historic Objects Boundaries","Historic Objects Boundaries","Historic Objects Boundaries","Cultural & Demographic Statistics \nCultural Resources","DOI-NPS","John Knoerl","john_knoerl@nps.gov",{"$f":"VLOOKUP(B86,'LOC FINAL with new Themes'!A:M,7,0)","v":"Feature classes of the cultural resource data model (NPS only, other federal agencies handle it as they decide)"},{"$f":"VLOOKUP(B86,'LOC FINAL with new Themes'!A:M,8,0)","v":"don't want a single centralized data set but focusing on standard approach"},{"$f":"VLOOKUP(B86,'LOC FINAL with new Themes'!A:M,9,0)","v":0},{"$f":"VLOOKUP(B86,'LOC FINAL with new Themes'!A:M,10,0)","v":0},{"$f":"VLOOKUP(B86,'LOC FINAL with new Themes'!A:M,11,0)","v":0},{"$f":"VLOOKUP(B86,'LOC FINAL with new Themes'!A:M,12,0)","v":0},{"$f":"VLOOKUP(B86,'LOC FINAL with new Themes'!A:M,13,0)","v":0}]
["Historic Structures Boundaries","Historic Structures Boundaries","Historic Structures Boundaries","Historic Structures Boundaries","Cultural & Demographic Statistics \nCultural Resources","DOI-NPS","John Knoerl","john_knoerl@nps.gov",{"$f":"VLOOKUP(B87,'LOC FINAL with new Themes'!A:M,7,0)","v":"Feature classes of the cultural resource data model (NPS only, other federal agencies handle it as they decide)"},{"$f":"VLOOKUP(B87,'LOC FINAL with new Themes'!A:M,8,0)","v":"don't want a single centralized data set but focusing on standard approach"},{"$f":"VLOOKUP(B87,'LOC FINAL with new Themes'!A:M,9,0)","v":0},{"$f":"VLOOKUP(B87,'LOC FINAL with new Themes'!A:M,10,0)","v":0},{"$f":"VLOOKUP(B87,'LOC FINAL with new Themes'!A:M,11,0)","v":0},{"$f":"VLOOKUP(B87,'LOC FINAL with new Themes'!A:M,12,0)","v":0},{"$f":"VLOOKUP(B87,'LOC FINAL with new Themes'!A:M,13,0)","v":"M "}]
[null,null,"Other Cultural Resource Boundaries","Other Cultural Resource Boundaries","Cultural & Demographic Statistics \nCultural Resources","DOI-NPS"]
[null,null,null,{"$f":"SUBTOTAL(3,D81:D88)","v":8},"Cultural & Demographic Statistics \nCultural Resources Count"]
[null,"Point Landmark (2010 Census)","Point of Landmark (2010 Census)",{"$f":"IF(C90=0,B90,C90)","v":"Point of Landmark (2010 Census)"},"Cultural Resources","DOC-Census","Jennifer Holland","Jennifer.L.Holland@census.gov",{"$f":"VLOOKUP(B90,'LOC FINAL with new Themes'!A:M,7,0)","v":0},{"$f":"VLOOKUP(B90,'LOC FINAL with new Themes'!A:M,8,0)","v":0},{"$f":"VLOOKUP(B90,'LOC FINAL with new Themes'!A:M,9,0)","v":0},{"$f":"VLOOKUP(B90,'LOC FINAL with new Themes'!A:M,10,0)","v":0},{"$f":"VLOOKUP(B90,'LOC FINAL with new Themes'!A:M,11,0)","v":0},{"$f":"VLOOKUP(B90,'LOC FINAL with new Themes'!A:M,12,0)","v":0},{"$f":"VLOOKUP(B90,'LOC FINAL with new Themes'!A:M,13,0)","v":0}]
["Archeological Sites","Archeological Sites","Archeological Sites","Archeological Sites","Cultural Resources ","DOI-NPS","John Knoerl","john_knoerl@nps.gov",{"$f":"VLOOKUP(B91,'LOC FINAL with new Themes'!A:M,7,0)","v":"Feature classes of the cultural resource data model (NPS only, other federal agencies handle it as they decide)"},{"$f":"VLOOKUP(B91,'LOC FINAL with new Themes'!A:M,8,0)","v":"don't want a single centralized data set but focusing on standard approach"},{"$f":"VLOOKUP(B91,'LOC FINAL with new Themes'!A:M,9,0)","v":"National Historic Presrevation Act says state historic preservation office has primary oversight (section 110)"},{"$f":"VLOOKUP(B91,'LOC FINAL with new Themes'!A:M,10,0)","v":0},{"$f":"VLOOKUP(B91,'LOC FINAL with new Themes'!A:M,11,0)","v":0},{"$f":"VLOOKUP(B91,'LOC FINAL with new Themes'!A:M,12,0)","v":0},{"$f":"VLOOKUP(B91,'LOC FINAL with new Themes'!A:M,13,0)","v":0}]
[null,"Area Landmark (2010 Census)","Area Landmark (2010 Census)","Area Landmark (2010 Census)","Cultural Resources ","DOC-Census","Jennifer Holland","Jennifer.L.Holland@census.gov",{"$f":"VLOOKUP(B92,'LOC FINAL with new Themes'!A:M,7,0)","v":0},{"$f":"VLOOKUP(B92,'LOC FINAL with new Themes'!A:M,8,0)","v":0},{"$f":"VLOOKUP(B92,'LOC FINAL with new Themes'!A:M,9,0)","v":0},{"$f":"VLOOKUP(B92,'LOC FINAL with new Themes'!A:M,10,0)","v":0},{"$f":"VLOOKUP(B92,'LOC FINAL with new Themes'!A:M,11,0)","v":0},{"$f":"VLOOKUP(B92,'LOC FINAL with new Themes'!A:M,12,0)","v":0},{"$f":"VLOOKUP(B92,'LOC FINAL with new Themes'!A:M,13,0)","v":0}]
[null,null,"Geographic Names Dataset - National Map","Geographic Names Dataset - National Map","Cultural Resources ","DOI-USGS"]
["National Map - Geographic Names Information System (GNIS)","National Map - Geographic Names Information System (GNIS)",null,"National Map - Geographic Names Information System (GNIS)","Cultural Resources ","DOI-USGS","Lou Yost","lyost@usgs.gov",{"$f":"VLOOKUP(B94,'LOC FINAL with new Themes'!A:M,7,0)","v":"single data set; poc, data managers; daily updated; Denver systems people backup and archive; transfer to NARA also; Gaz vector (internal)"},{"$f":"VLOOKUP(B94,'LOC FINAL with new Themes'!A:M,8,0)","v":0},{"$f":"VLOOKUP(B94,'LOC FINAL with new Themes'!A:M,9,0)","v":0},{"$f":"VLOOKUP(B94,'LOC FINAL with new Themes'!A:M,10,0)","v":0},{"$f":"VLOOKUP(B94,'LOC FINAL with new Themes'!A:M,11,0)","v":0},{"$f":"VLOOKUP(B94,'LOC FINAL with new Themes'!A:M,12,0)","v":0},{"$f":"VLOOKUP(B94,'LOC FINAL with new Themes'!A:M,13,0)","v":"S"}]
[null,"Topological Faces-Area Landmark Relationship File","Topological Faces-Area Landmark Relationship File","Topological Faces-Area Landmark Relationship File","Cultural Resources ","DOC-Census","Jennifer Holland","Jennifer.L.Holland@census.gov",{"$f":"VLOOKUP(B95,'LOC FINAL with new Themes'!A:M,7,0)","v":0},{"$f":"VLOOKUP(B95,'LOC FINAL with new Themes'!A:M,8,0)","v":0},{"$f":"VLOOKUP(B95,'LOC FINAL with new Themes'!A:M,9,0)","v":0},{"$f":"VLOOKUP(B95,'LOC FINAL with new Themes'!A:M,10,0)","v":0},{"$f":"VLOOKUP(B95,'LOC FINAL with new Themes'!A:M,11,0)","v":0},{"$f":"VLOOKUP(B95,'LOC FINAL with new Themes'!A:M,12,0)","v":0},{"$f":"VLOOKUP(B95,'LOC FINAL with new Themes'!A:M,13,0)","v":0}]
[null,null,null,{"$f":"SUBTOTAL(3,D90:D95)","v":6},"Cultural Resources Count"]
["133 UA Elevation Data (lidar)","133 UA Elevation Data (lidar)",null,{"$f":"IF(C97=0,B97,C97)","v":"133 UA Elevation Data (lidar)"},"Elevation","DOD-NGA","Ron Power, NGA","ronald.k.power@nga.mil",{"$f":"VLOOKUP(B97,'LOC FINAL with new Themes'!A:M,7,0)","v":0},{"$f":"VLOOKUP(B97,'LOC FINAL with new Themes'!A:M,8,0)","v":0},{"$f":"VLOOKUP(B97,'LOC FINAL with new Themes'!A:M,9,0)","v":0},{"$f":"VLOOKUP(B97,'LOC FINAL with new Themes'!A:M,10,0)","v":0},{"$f":"VLOOKUP(B97,'LOC FINAL with new Themes'!A:M,11,0)","v":0},{"$f":"VLOOKUP(B97,'LOC FINAL with new Themes'!A:M,12,0)","v":0},{"$f":"VLOOKUP(B97,'LOC FINAL with new Themes'!A:M,13,0)","v":0}]
["DEMs - Archive","DEMs - Archive",null,"DEMs - Archive","Elevation","DOI-USGS","Gayla Evans","gevans@usgs.gov",{"$f":"VLOOKUP(B98,'LOC FINAL with new Themes'!A:M,7,0)","v":"DEMS update at variable nature; are four data sets based on resolution; this is the POC and data manager; this is the name and maintain three complete with two physically separate on-site and one off-site"},{"$f":"VLOOKUP(B98,'LOC FINAL with new Themes'!A:M,8,0)","v":0},{"$f":"VLOOKUP(B98,'LOC FINAL with new Themes'!A:M,9,0)","v":0},{"$f":"VLOOKUP(B98,'LOC FINAL with new Themes'!A:M,10,0)","v":0},{"$f":"VLOOKUP(B98,'LOC FINAL with new Themes'!A:M,11,0)","v":0},{"$f":"VLOOKUP(B98,'LOC FINAL with new Themes'!A:M,12,0)","v":0},{"$f":"VLOOKUP(B98,'LOC FINAL with new Themes'!A:M,13,0)","v":"S"}]
["GTOPO30","GTOPO30",null,"GTOPO30","Elevation","DOI-USGS","Jeff Danielson"," daniels@usgs.gov",{"$f":"VLOOKUP(B99,'LOC FINAL with new Themes'!A:M,7,0)","v":"GTOPO30 is static; one data set; this is the POC and data manager; this is the name and maintain three complete with two physically separate on-site and one off-site"},{"$f":"VLOOKUP(B99,'LOC FINAL with new Themes'!A:M,8,0)","v":0},{"$f":"VLOOKUP(B99,'LOC FINAL with new Themes'!A:M,9,0)","v":0},{"$f":"VLOOKUP(B99,'LOC FINAL with new Themes'!A:M,10,0)","v":0},{"$f":"VLOOKUP(B99,'LOC FINAL with new Themes'!A:M,11,0)","v":0},{"$f":"VLOOKUP(B99,'LOC FINAL with new Themes'!A:M,12,0)","v":0},{"$f":"VLOOKUP(B99,'LOC FINAL with new Themes'!A:M,13,0)","v":0}]
["National Map National Elevation Data Set (NED)","National Map  - National Elevation Dataset (NED)",null,"National Map  - National Elevation Dataset (NED)","Elevation","DOI-USGS","Jim Mauck","lyost@usgs.gov",{"$f":"VLOOKUP(B100,'LOC FINAL with new Themes'!A:M,7,0)","v":0},{"$f":"VLOOKUP(B100,'LOC FINAL with new Themes'!A:M,8,0)","v":0},{"$f":"VLOOKUP(B100,'LOC FINAL with new Themes'!A:M,9,0)","v":0},{"$f":"VLOOKUP(B100,'LOC FINAL with new Themes'!A:M,10,0)","v":0},{"$f":"VLOOKUP(B100,'LOC FINAL with new Themes'!A:M,11,0)","v":0},{"$f":"VLOOKUP(B100,'LOC FINAL with new Themes'!A:M,12,0)","v":0},{"$f":"VLOOKUP(B100,'LOC FINAL with new Themes'!A:M,13,0)","v":0}]
["SRTM (3-arc second DTEDS)","SRTM (3-arc second DTEDS)",null,"SRTM (3-arc second DTEDS)","Elevation","DOI-USGS","Dean Gesch, USGS","gesch@usgs.gov",{"$f":"VLOOKUP(B101,'LOC FINAL with new Themes'!A:M,7,0)","v":"SRTM is static; one data set; this is the POC and data manager; this is the name and maintain three complete with two physically separate on-site and one off-site"},{"$f":"VLOOKUP(B101,'LOC FINAL with new Themes'!A:M,8,0)","v":0},{"$f":"VLOOKUP(B101,'LOC FINAL with new Themes'!A:M,9,0)","v":0},{"$f":"VLOOKUP(B101,'LOC FINAL with new Themes'!A:M,10,0)","v":0},{"$f":"VLOOKUP(B101,'LOC FINAL with new Themes'!A:M,11,0)","v":0},{"$f":"VLOOKUP(B101,'LOC FINAL with new Themes'!A:M,12,0)","v":0},{"$f":"VLOOKUP(B101,'LOC FINAL with new Themes'!A:M,13,0)","v":"S"}]
["Digital Flood Insurance Rate Maps (D-FIRM)","Digital Flood Insurance Rate Maps (D-FIRM)","Digital Flood Insurance Rate Maps (DFIRM)","Digital Flood Insurance Rate Maps (DFIRM)","Elevation ","DHS-FEMA","Scott McAfee","scott.mcaffee@dhs.gov",{"$f":"VLOOKUP(B102,'LOC FINAL with new Themes'!A:M,7,0)","v":0},{"$f":"VLOOKUP(B102,'LOC FINAL with new Themes'!A:M,8,0)","v":0},{"$f":"VLOOKUP(B102,'LOC FINAL with new Themes'!A:M,9,0)","v":0},{"$f":"VLOOKUP(B102,'LOC FINAL with new Themes'!A:M,10,0)","v":0},{"$f":"VLOOKUP(B102,'LOC FINAL with new Themes'!A:M,11,0)","v":0},{"$f":"VLOOKUP(B102,'LOC FINAL with new Themes'!A:M,12,0)","v":0},{"$f":"VLOOKUP(B102,'LOC FINAL with new Themes'!A:M,13,0)","v":0}]
[null,null,"Elevation Bathymetric - Ocean, Coastal, and Great Lakes Bathymetry ","Elevation Bathymetric - Ocean, Coastal, and Great Lakes Bathymetry ","Elevation ","DOC-NOAA"]
[null,null,"National Elevation Dataset  - National Map","National Elevation Dataset  - National Map","Elevation ","DOI-USGS"]
["National Flood Hazard Layer (NFHL)","National Flood Hazard Layer (NFHL)","National Flood Hazard Layer (NFHL)","National Flood Hazard Layer (NFHL)","Elevation ","DHS-FEMA","Scott McAfee","scott.mcaffee@dhs.gov",{"$f":"VLOOKUP(B105,'LOC FINAL with new Themes'!A:M,7,0)","v":0},{"$f":"VLOOKUP(B105,'LOC FINAL with new Themes'!A:M,8,0)","v":0},{"$f":"VLOOKUP(B105,'LOC FINAL with new Themes'!A:M,9,0)","v":0},{"$f":"VLOOKUP(B105,'LOC FINAL with new Themes'!A:M,10,0)","v":0},{"$f":"VLOOKUP(B105,'LOC FINAL with new Themes'!A:M,11,0)","v":0},{"$f":"VLOOKUP(B105,'LOC FINAL with new Themes'!A:M,12,0)","v":0},{"$f":"VLOOKUP(B105,'LOC FINAL with new Themes'!A:M,13,0)","v":0}]
[null,null,null,{"$f":"SUBTOTAL(3,D97:D105)","v":9},"Elevation Count"]
[null,null,"Airborne Gravity",{"$f":"IF(C107=0,B107,C107)","v":"Airborne Gravity"},"Geodetic Control ","DOC-NOAA","Dr. Theresa Diehl","theresa.diehl@noaa.gov"]
[null,null,"Terrestrial Gravity",{"$f":"IF(C108=0,B108,C108)","v":"Terrestrial Gravity"},"Geodetic Control ","DOC-NOAA","Bill Waickman ","bill.waickman@noaa.gov"]
[null,null,"Continuously Operating Reference Stations (CORS)","Continuously Operating Reference Stations (CORS)","Geodetic Control ","DOC-NOAA","Dr. Giovanni Sella","giovanni.sella@noaa.gov"]
[null,null,"Geoid Models","Geoid Models","Geodetic Control ","DOC-NOAA","Dr. Dan Roman","dan.roman@noaa.gov"]
["National Geologic Data Base","National Geologic Data Base","National Geodetic Survey (NGS) Datasheets","National Geodetic Survey (NGS) Datasheets","Geodetic Control ","DOC-NOAA","Jim Tomlin","jim.tomlin@noaa.gov",{"$f":"VLOOKUP(B111,'LOC FINAL with new Themes'!A:M,7,0)","v":0},{"$f":"VLOOKUP(B111,'LOC FINAL with new Themes'!A:M,8,0)","v":0},{"$f":"VLOOKUP(B111,'LOC FINAL with new Themes'!A:M,9,0)","v":0},{"$f":"VLOOKUP(B111,'LOC FINAL with new Themes'!A:M,10,0)","v":0},{"$f":"VLOOKUP(B111,'LOC FINAL with new Themes'!A:M,11,0)","v":0},{"$f":"VLOOKUP(B111,'LOC FINAL with new Themes'!A:M,12,0)","v":0},{"$f":"VLOOKUP(B111,'LOC FINAL with new Themes'!A:M,13,0)","v":0}]
[null,null,"Precise Global Navigation Satellite System (GNSS) Orbits",{"$f":"IF(C112=0,#REF!,C112)","v":"Precise Global Navigation Satellite System (GNSS) Orbits"},"Geodetic Control ","DOC-NOAA","Dr. Jake Griffiths","jake.griffiths@noaa.gov"]
[null,null,null,{"$f":"SUBTOTAL(3,D107:D112)","v":6},"Geodetic Control  Count"]
[null,null,"Coal assessment and mapping",{"$f":"IF(C114=0,B114,C114)","v":"Coal assessment and mapping"},"Geology","DOI-USGS"]
["Coastline Data","Coastline Data","Coastline Data","Coastline Data","Geology","DOI-BOEM","Doug Vandegraft","douglas.vandegraft@boemre.gov",{"$f":"VLOOKUP(B115,'LOC FINAL with new Themes'!A:M,7,0)","v":"undeliverable email- neeed to identify new contact"},{"$f":"VLOOKUP(B115,'LOC FINAL with new Themes'!A:M,8,0)","v":0},{"$f":"VLOOKUP(B115,'LOC FINAL with new Themes'!A:M,9,0)","v":0},{"$f":"VLOOKUP(B115,'LOC FINAL with new Themes'!A:M,10,0)","v":0},{"$f":"VLOOKUP(B115,'LOC FINAL with new Themes'!A:M,11,0)","v":0},{"$f":"VLOOKUP(B115,'LOC FINAL with new Themes'!A:M,12,0)","v":0},{"$f":"VLOOKUP(B115,'LOC FINAL with new Themes'!A:M,13,0)","v":0}]
[null,null,"Earthquake monitoring, research, and mapping","Earthquake monitoring, research, and mapping","Geology","DOI-USGS"]
[null,null,"Geochemistry","Geochemistry","Geology","DOI-USGS"]
[null,null,"Geochronology","Geochronology","Geology","DOI-USGS"]
[null,null,"Geologic mapping","Geologic mapping","Geology","DOI-USGS"]
[null,null,"Geomagnetism","Geomagnetism","Geology","DOI-USGS"]
[null,null,"Geophysics","Geophysics","Geology","DOI-USGS"]
[null,null,"Landslide monitoring, research, and mapping","Landslide monitoring, research, and mapping","Geology","DOI-USGS"]
[null,null,"Marine geology","Marine geology","Geology","DOI-USGS"]
[null,null,"Metallic mineral assessment and mapping","Metallic mineral assessment and mapping","Geology","DOI-USGS"]
[null,null,"MMS Baseline","MMS Baseline","Geology","DOI-MMS"]
[null,null,"Non-metallic mineral assessment and mapping, onshore",{"$f":"IF(C126=0,B125,C126)","v":"Non-metallic mineral assessment and mapping, onshore"},"Geology","DOI-USGS"]
["OCS BLOCK LEASE DATA (OCS)","OCS BLOCK LEASE DATA ","OCS Lease Blocks",{"$f":"IF(C127=0,#REF!,C127)","v":"OCS Lease Blocks"},"Geology","DOI-BOEM","Doug Vandegraft","douglas.vandegraft@boemre.gov",{"$f":"VLOOKUP(B127,'LOC FINAL with new Themes'!A:M,7,0)","v":"undeliverable email- neeed to identify new contact"},{"$f":"VLOOKUP(B127,'LOC FINAL with new Themes'!A:M,8,0)","v":0},{"$f":"VLOOKUP(B127,'LOC FINAL with new Themes'!A:M,9,0)","v":0},{"$f":"VLOOKUP(B127,'LOC FINAL with new Themes'!A:M,10,0)","v":0},{"$f":"VLOOKUP(B127,'LOC FINAL with new Themes'!A:M,11,0)","v":0},{"$f":"VLOOKUP(B127,'LOC FINAL with new Themes'!A:M,12,0)","v":0},{"$f":"VLOOKUP(B127,'LOC FINAL with new Themes'!A:M,13,0)","v":0}]
[null,null,"OCS Active Leases",{"$f":"IF(C128=0,B127,C128)","v":"OCS Active Leases"},"Geology","DOI-BOEM","Doug Vandegraft","douglas.vandegraft@boemre.gov"]
[null,null,"Oil and gas assessment and mapping, onshore",{"$f":"IF(C129=0,B129,C129)","v":"Oil and gas assessment and mapping, onshore"},"Geology","DOI-USGS"]
[null,null,"Paleontology","Paleontology","Geology","DOI-USGS"]
[null,null,"Sand and Gravel","Sand and Gravel","Geology","DOI-MMS"]
[null,null,"Volcano monitoring, research, and mapping","Volcano monitoring, research, and mapping","Geology","DOI-USGS"]
[null,null,"Wells","Wells","Geology","DOI-MMS"]
[null,null,null,{"$f":"SUBTOTAL(3,D114:D133)","v":20},"Geology Count"]
["County Boundaries","County Boundaries",null,{"$f":"IF(C135=0,B135,C135)","v":"County Boundaries"},"Governmental Units",null,null,null,{"$f":"VLOOKUP(B135,'LOC FINAL with new Themes'!A:M,7,0)","v":0},{"$f":"VLOOKUP(B135,'LOC FINAL with new Themes'!A:M,8,0)","v":0},{"$f":"VLOOKUP(B135,'LOC FINAL with new Themes'!A:M,9,0)","v":0},{"$f":"VLOOKUP(B135,'LOC FINAL with new Themes'!A:M,10,0)","v":0},{"$f":"VLOOKUP(B135,'LOC FINAL with new Themes'!A:M,11,0)","v":0},{"$f":"VLOOKUP(B135,'LOC FINAL with new Themes'!A:M,12,0)","v":0},{"$f":"VLOOKUP(B135,'LOC FINAL with new Themes'!A:M,13,0)","v":0}]
[null,"Place and MCD Boundaries",null,"Place and MCD Boundaries","Governmental Units",null,null,null,{"$f":"VLOOKUP(B136,'LOC FINAL with new Themes'!A:M,7,0)","v":0},{"$f":"VLOOKUP(B136,'LOC FINAL with new Themes'!A:M,8,0)","v":0},{"$f":"VLOOKUP(B136,'LOC FINAL with new Themes'!A:M,9,0)","v":0},{"$f":"VLOOKUP(B136,'LOC FINAL with new Themes'!A:M,10,0)","v":0},{"$f":"VLOOKUP(B136,'LOC FINAL with new Themes'!A:M,11,0)","v":0},{"$f":"VLOOKUP(B136,'LOC FINAL with new Themes'!A:M,12,0)","v":0},{"$f":"VLOOKUP(B136,'LOC FINAL with new Themes'!A:M,13,0)","v":0}]
[null,"Alaska Native Regional Corporation (2010 Census)","Alaska Native Regional Corporation (2010 Census)","Alaska Native Regional Corporation (2010 Census)","Governmental Units ","DOC-Census","Jennifer Holland","Jennifer.L.Holland@census.gov",{"$f":"VLOOKUP(B137,'LOC FINAL with new Themes'!A:M,7,0)","v":0},{"$f":"VLOOKUP(B137,'LOC FINAL with new Themes'!A:M,8,0)","v":0},{"$f":"VLOOKUP(B137,'LOC FINAL with new Themes'!A:M,9,0)","v":0},{"$f":"VLOOKUP(B137,'LOC FINAL with new Themes'!A:M,10,0)","v":0},{"$f":"VLOOKUP(B137,'LOC FINAL with new Themes'!A:M,11,0)","v":0},{"$f":"VLOOKUP(B137,'LOC FINAL with new Themes'!A:M,12,0)","v":0},{"$f":"VLOOKUP(B137,'LOC FINAL with new Themes'!A:M,13,0)","v":0}]
[null,"Alaska Native Regional Corporation (Census 2000)","Alaska Native Regional Corporation (Census 2000)","Alaska Native Regional Corporation (Census 2000)","Governmental Units ","DOC-Census","Jennifer Holland","Jennifer.L.Holland@census.gov",{"$f":"VLOOKUP(B138,'LOC FINAL with new Themes'!A:M,7,0)","v":0},{"$f":"VLOOKUP(B138,'LOC FINAL with new Themes'!A:M,8,0)","v":0},{"$f":"VLOOKUP(B138,'LOC FINAL with new Themes'!A:M,9,0)","v":0},{"$f":"VLOOKUP(B138,'LOC FINAL with new Themes'!A:M,10,0)","v":0},{"$f":"VLOOKUP(B138,'LOC FINAL with new Themes'!A:M,11,0)","v":0},{"$f":"VLOOKUP(B138,'LOC FINAL with new Themes'!A:M,12,0)","v":0},{"$f":"VLOOKUP(B138,'LOC FINAL with new Themes'!A:M,13,0)","v":0}]
[null,"American Indian Tribal Subdivision (2010 Census)","American Indian Tribal Subdivision (2010 Census)","American Indian Tribal Subdivision (2010 Census)","Governmental Units ","DOC-Census","Jennifer Holland","Jennifer.L.Holland@census.gov",{"$f":"VLOOKUP(B139,'LOC FINAL with new Themes'!A:M,7,0)","v":0},{"$f":"VLOOKUP(B139,'LOC FINAL with new Themes'!A:M,8,0)","v":0},{"$f":"VLOOKUP(B139,'LOC FINAL with new Themes'!A:M,9,0)","v":0},{"$f":"VLOOKUP(B139,'LOC FINAL with new Themes'!A:M,10,0)","v":0},{"$f":"VLOOKUP(B139,'LOC FINAL with new Themes'!A:M,11,0)","v":0},{"$f":"VLOOKUP(B139,'LOC FINAL with new Themes'!A:M,12,0)","v":0},{"$f":"VLOOKUP(B139,'LOC FINAL with new Themes'!A:M,13,0)","v":0}]
[null,"American Indian Tribal Subdivision (Census 2000)","American Indian Tribal Subdivision (Census 2000)","American Indian Tribal Subdivision (Census 2000)","Governmental Units ","DOC-Census","Jennifer Holland","Jennifer.L.Holland@census.gov",{"$f":"VLOOKUP(B140,'LOC FINAL with new Themes'!A:M,7,0)","v":0},{"$f":"VLOOKUP(B140,'LOC FINAL with new Themes'!A:M,8,0)","v":0},{"$f":"VLOOKUP(B140,'LOC FINAL with new Themes'!A:M,9,0)","v":0},{"$f":"VLOOKUP(B140,'LOC FINAL with new Themes'!A:M,10,0)","v":0},{"$f":"VLOOKUP(B140,'LOC FINAL with new Themes'!A:M,11,0)","v":0},{"$f":"VLOOKUP(B140,'LOC FINAL with new Themes'!A:M,12,0)","v":0},{"$f":"VLOOKUP(B140,'LOC FINAL with new Themes'!A:M,13,0)","v":0}]
[null,"American Indian/Alaska Native/Native Hawaiian Area (2000 Census)","American Indian/Alaska Native/Native Hawaiian Area (2000 Census)","American Indian/Alaska Native/Native Hawaiian Area (2000 Census)","Governmental Units ","DOC-Census","Jennifer Holland","Jennifer.L.Holland@census.gov",{"$f":"VLOOKUP(B141,'LOC FINAL with new Themes'!A:M,7,0)","v":0},{"$f":"VLOOKUP(B141,'LOC FINAL with new Themes'!A:M,8,0)","v":0},{"$f":"VLOOKUP(B141,'LOC FINAL with new Themes'!A:M,9,0)","v":0},{"$f":"VLOOKUP(B141,'LOC FINAL with new Themes'!A:M,10,0)","v":0},{"$f":"VLOOKUP(B141,'LOC FINAL with new Themes'!A:M,11,0)","v":0},{"$f":"VLOOKUP(B141,'LOC FINAL with new Themes'!A:M,12,0)","v":0},{"$f":"VLOOKUP(B141,'LOC FINAL with new Themes'!A:M,13,0)","v":0}]
[null,"American Indian/Alaska Native/Native Hawaiian Area (2010 Census)","American Indian/Alaska Native/Native Hawaiian Area (2010 Census)","American Indian/Alaska Native/Native Hawaiian Area (2010 Census)","Governmental Units ","DOC-Census","Jennifer Holland","Jennifer.L.Holland@census.gov",{"$f":"VLOOKUP(B142,'LOC FINAL with new Themes'!A:M,7,0)","v":0},{"$f":"VLOOKUP(B142,'LOC FINAL with new Themes'!A:M,8,0)","v":0},{"$f":"VLOOKUP(B142,'LOC FINAL with new Themes'!A:M,9,0)","v":0},{"$f":"VLOOKUP(B142,'LOC FINAL with new Themes'!A:M,10,0)","v":0},{"$f":"VLOOKUP(B142,'LOC FINAL with new Themes'!A:M,11,0)","v":0},{"$f":"VLOOKUP(B142,'LOC FINAL with new Themes'!A:M,12,0)","v":0},{"$f":"VLOOKUP(B142,'LOC FINAL with new Themes'!A:M,13,0)","v":0}]
[null,"Combined New England City and Town Area (2010 Census)","Combined New England City and Town Area (2010 Census)","Combined New England City and Town Area (2010 Census)","Governmental Units ","DOC-Census","Jennifer Holland","Jennifer.L.Holland@census.gov",{"$f":"VLOOKUP(B143,'LOC FINAL with new Themes'!A:M,7,0)","v":0},{"$f":"VLOOKUP(B143,'LOC FINAL with new Themes'!A:M,8,0)","v":0},{"$f":"VLOOKUP(B143,'LOC FINAL with new Themes'!A:M,9,0)","v":0},{"$f":"VLOOKUP(B143,'LOC FINAL with new Themes'!A:M,10,0)","v":0},{"$f":"VLOOKUP(B143,'LOC FINAL with new Themes'!A:M,11,0)","v":0},{"$f":"VLOOKUP(B143,'LOC FINAL with new Themes'!A:M,12,0)","v":0},{"$f":"VLOOKUP(B143,'LOC FINAL with new Themes'!A:M,13,0)","v":0}]
["Congressional District Boundaries","Congressional District (108th)","Congressional District (108th)","Congressional District (108th)","Governmental Units ","DOC-Census","Jennifer Holland","Jennifer.L.Holland@census.gov",{"$f":"VLOOKUP(B144,'LOC FINAL with new Themes'!A:M,7,0)","v":0},{"$f":"VLOOKUP(B144,'LOC FINAL with new Themes'!A:M,8,0)","v":0},{"$f":"VLOOKUP(B144,'LOC FINAL with new Themes'!A:M,9,0)","v":0},{"$f":"VLOOKUP(B144,'LOC FINAL with new Themes'!A:M,10,0)","v":0},{"$f":"VLOOKUP(B144,'LOC FINAL with new Themes'!A:M,11,0)","v":0},{"$f":"VLOOKUP(B144,'LOC FINAL with new Themes'!A:M,12,0)","v":0},{"$f":"VLOOKUP(B144,'LOC FINAL with new Themes'!A:M,13,0)","v":0}]
[null,"Congressional District (111th)","Congressional District (111th)","Congressional District (111th)","Governmental Units ","DOC-Census","Jennifer Holland","Jennifer.L.Holland@census.gov",{"$f":"VLOOKUP(B145,'LOC FINAL with new Themes'!A:M,7,0)","v":0},{"$f":"VLOOKUP(B145,'LOC FINAL with new Themes'!A:M,8,0)","v":0},{"$f":"VLOOKUP(B145,'LOC FINAL with new Themes'!A:M,9,0)","v":0},{"$f":"VLOOKUP(B145,'LOC FINAL with new Themes'!A:M,10,0)","v":0},{"$f":"VLOOKUP(B145,'LOC FINAL with new Themes'!A:M,11,0)","v":0},{"$f":"VLOOKUP(B145,'LOC FINAL with new Themes'!A:M,12,0)","v":0},{"$f":"VLOOKUP(B145,'LOC FINAL with new Themes'!A:M,13,0)","v":0}]
[null,"Consolidated City (2010 Census)","Consolidated City (2010 Census)","Consolidated City (2010 Census)","Governmental Units ","DOC-Census","Jennifer Holland","Jennifer.L.Holland@census.gov",{"$f":"VLOOKUP(B146,'LOC FINAL with new Themes'!A:M,7,0)","v":0},{"$f":"VLOOKUP(B146,'LOC FINAL with new Themes'!A:M,8,0)","v":0},{"$f":"VLOOKUP(B146,'LOC FINAL with new Themes'!A:M,9,0)","v":0},{"$f":"VLOOKUP(B146,'LOC FINAL with new Themes'!A:M,10,0)","v":0},{"$f":"VLOOKUP(B146,'LOC FINAL with new Themes'!A:M,11,0)","v":0},{"$f":"VLOOKUP(B146,'LOC FINAL with new Themes'!A:M,12,0)","v":0},{"$f":"VLOOKUP(B146,'LOC FINAL with new Themes'!A:M,13,0)","v":0}]
[null,"Consolidated City (Census 2000)","Consolidated City (Census 2000)","Consolidated City (Census 2000)","Governmental Units ","DOC-Census","Jennifer Holland","Jennifer.L.Holland@census.gov",{"$f":"VLOOKUP(B147,'LOC FINAL with new Themes'!A:M,7,0)","v":0},{"$f":"VLOOKUP(B147,'LOC FINAL with new Themes'!A:M,8,0)","v":0},{"$f":"VLOOKUP(B147,'LOC FINAL with new Themes'!A:M,9,0)","v":0},{"$f":"VLOOKUP(B147,'LOC FINAL with new Themes'!A:M,10,0)","v":0},{"$f":"VLOOKUP(B147,'LOC FINAL with new Themes'!A:M,11,0)","v":0},{"$f":"VLOOKUP(B147,'LOC FINAL with new Themes'!A:M,12,0)","v":0},{"$f":"VLOOKUP(B147,'LOC FINAL with new Themes'!A:M,13,0)","v":0}]
[null,"County and Equivalent (2010 Census)","County and Equivalent (2010 Census)","County and Equivalent (2010 Census)","Governmental Units ","DOC-Census","Jennifer Holland","Jennifer.L.Holland@census.gov",{"$f":"VLOOKUP(B148,'LOC FINAL with new Themes'!A:M,7,0)","v":0},{"$f":"VLOOKUP(B148,'LOC FINAL with new Themes'!A:M,8,0)","v":0},{"$f":"VLOOKUP(B148,'LOC FINAL with new Themes'!A:M,9,0)","v":0},{"$f":"VLOOKUP(B148,'LOC FINAL with new Themes'!A:M,10,0)","v":0},{"$f":"VLOOKUP(B148,'LOC FINAL with new Themes'!A:M,11,0)","v":0},{"$f":"VLOOKUP(B148,'LOC FINAL with new Themes'!A:M,12,0)","v":0},{"$f":"VLOOKUP(B148,'LOC FINAL with new Themes'!A:M,13,0)","v":0}]
[null,"County and Equivalent (Census 2000)","County and Equivalent (Census 2000)","County and Equivalent (Census 2000)","Governmental Units ","DOC-Census","Jennifer Holland","Jennifer.L.Holland@census.gov",{"$f":"VLOOKUP(B149,'LOC FINAL with new Themes'!A:M,7,0)","v":0},{"$f":"VLOOKUP(B149,'LOC FINAL with new Themes'!A:M,8,0)","v":0},{"$f":"VLOOKUP(B149,'LOC FINAL with new Themes'!A:M,9,0)","v":0},{"$f":"VLOOKUP(B149,'LOC FINAL with new Themes'!A:M,10,0)","v":0},{"$f":"VLOOKUP(B149,'LOC FINAL with new Themes'!A:M,11,0)","v":0},{"$f":"VLOOKUP(B149,'LOC FINAL with new Themes'!A:M,12,0)","v":0},{"$f":"VLOOKUP(B149,'LOC FINAL with new Themes'!A:M,13,0)","v":0}]
[null,"County Subdivision (2010 Census)","County Subdivision (2010 Census)","County Subdivision (2010 Census)","Governmental Units ","DOC-Census","Jennifer Holland","Jennifer.L.Holland@census.gov",{"$f":"VLOOKUP(B150,'LOC FINAL with new Themes'!A:M,7,0)","v":0},{"$f":"VLOOKUP(B150,'LOC FINAL with new Themes'!A:M,8,0)","v":0},{"$f":"VLOOKUP(B150,'LOC FINAL with new Themes'!A:M,9,0)","v":0},{"$f":"VLOOKUP(B150,'LOC FINAL with new Themes'!A:M,10,0)","v":0},{"$f":"VLOOKUP(B150,'LOC FINAL with new Themes'!A:M,11,0)","v":0},{"$f":"VLOOKUP(B150,'LOC FINAL with new Themes'!A:M,12,0)","v":0},{"$f":"VLOOKUP(B150,'LOC FINAL with new Themes'!A:M,13,0)","v":0}]
[null,"County Subdivision (Census 2000)","County Subdivision (Census 2000)","County Subdivision (Census 2000)","Governmental Units ","DOC-Census","Jennifer Holland","Jennifer.L.Holland@census.gov",{"$f":"VLOOKUP(B151,'LOC FINAL with new Themes'!A:M,7,0)","v":0},{"$f":"VLOOKUP(B151,'LOC FINAL with new Themes'!A:M,8,0)","v":0},{"$f":"VLOOKUP(B151,'LOC FINAL with new Themes'!A:M,9,0)","v":0},{"$f":"VLOOKUP(B151,'LOC FINAL with new Themes'!A:M,10,0)","v":0},{"$f":"VLOOKUP(B151,'LOC FINAL with new Themes'!A:M,11,0)","v":0},{"$f":"VLOOKUP(B151,'LOC FINAL with new Themes'!A:M,12,0)","v":0},{"$f":"VLOOKUP(B151,'LOC FINAL with new Themes'!A:M,13,0)","v":0}]
[null,"Metropolitan Division (2010 Census)","Metropolitan Division (2010 Census)","Metropolitan Division (2010 Census)","Governmental Units ","DOC-Census","Jennifer Holland","Jennifer.L.Holland@census.gov",{"$f":"VLOOKUP(B152,'LOC FINAL with new Themes'!A:M,7,0)","v":0},{"$f":"VLOOKUP(B152,'LOC FINAL with new Themes'!A:M,8,0)","v":0},{"$f":"VLOOKUP(B152,'LOC FINAL with new Themes'!A:M,9,0)","v":0},{"$f":"VLOOKUP(B152,'LOC FINAL with new Themes'!A:M,10,0)","v":0},{"$f":"VLOOKUP(B152,'LOC FINAL with new Themes'!A:M,11,0)","v":0},{"$f":"VLOOKUP(B152,'LOC FINAL with new Themes'!A:M,12,0)","v":0},{"$f":"VLOOKUP(B152,'LOC FINAL with new Themes'!A:M,13,0)","v":0}]
[null,"Metropolitan Division (2010 Census)","Metropolitan Division (2010 Census)","Metropolitan Division (2010 Census)","Governmental Units ","DOC-Census","Jennifer Holland","Jennifer.L.Holland@census.gov",{"$f":"VLOOKUP(B153,'LOC FINAL with new Themes'!A:M,7,0)","v":0},{"$f":"VLOOKUP(B153,'LOC FINAL with new Themes'!A:M,8,0)","v":0},{"$f":"VLOOKUP(B153,'LOC FINAL with new Themes'!A:M,9,0)","v":0},{"$f":"VLOOKUP(B153,'LOC FINAL with new Themes'!A:M,10,0)","v":0},{"$f":"VLOOKUP(B153,'LOC FINAL with new Themes'!A:M,11,0)","v":0},{"$f":"VLOOKUP(B153,'LOC FINAL with new Themes'!A:M,12,0)","v":0},{"$f":"VLOOKUP(B153,'LOC FINAL with new Themes'!A:M,13,0)","v":0}]
[null,"New England City and Town Area (2010 Census)","New England City and Town Area (2010 Census)","New England City and Town Area (2010 Census)","Governmental Units ","DOC-Census","Jennifer Holland","Jennifer.L.Holland@census.gov",{"$f":"VLOOKUP(B154,'LOC FINAL with new Themes'!A:M,7,0)","v":0},{"$f":"VLOOKUP(B154,'LOC FINAL with new Themes'!A:M,8,0)","v":0},{"$f":"VLOOKUP(B154,'LOC FINAL with new Themes'!A:M,9,0)","v":0},{"$f":"VLOOKUP(B154,'LOC FINAL with new Themes'!A:M,10,0)","v":0},{"$f":"VLOOKUP(B154,'LOC FINAL with new Themes'!A:M,11,0)","v":0},{"$f":"VLOOKUP(B154,'LOC FINAL with new Themes'!A:M,12,0)","v":0},{"$f":"VLOOKUP(B154,'LOC FINAL with new Themes'!A:M,13,0)","v":0}]
[null,"New England City and Town Area Division (2010 Census)","New England City and Town Area Division (2010 Census)","New England City and Town Area Division (2010 Census)","Governmental Units ","DOC-Census","Jennifer Holland","Jennifer.L.Holland@census.gov",{"$f":"VLOOKUP(B155,'LOC FINAL with new Themes'!A:M,7,0)","v":0},{"$f":"VLOOKUP(B155,'LOC FINAL with new Themes'!A:M,8,0)","v":0},{"$f":"VLOOKUP(B155,'LOC FINAL with new Themes'!A:M,9,0)","v":0},{"$f":"VLOOKUP(B155,'LOC FINAL with new Themes'!A:M,10,0)","v":0},{"$f":"VLOOKUP(B155,'LOC FINAL with new Themes'!A:M,11,0)","v":0},{"$f":"VLOOKUP(B155,'LOC FINAL with new Themes'!A:M,12,0)","v":0},{"$f":"VLOOKUP(B155,'LOC FINAL with new Themes'!A:M,13,0)","v":0}]
["Place and MCD Boundaries","Place (2010 Census)","Place (2010 Census)","Place (2010 Census)","Governmental Units ","DOC-Census","Jennifer Holland","Jennifer.L.Holland@census.gov",{"$f":"VLOOKUP(B156,'LOC FINAL with new Themes'!A:M,7,0)","v":0},{"$f":"VLOOKUP(B156,'LOC FINAL with new Themes'!A:M,8,0)","v":0},{"$f":"VLOOKUP(B156,'LOC FINAL with new Themes'!A:M,9,0)","v":0},{"$f":"VLOOKUP(B156,'LOC FINAL with new Themes'!A:M,10,0)","v":0},{"$f":"VLOOKUP(B156,'LOC FINAL with new Themes'!A:M,11,0)","v":0},{"$f":"VLOOKUP(B156,'LOC FINAL with new Themes'!A:M,12,0)","v":0},{"$f":"VLOOKUP(B156,'LOC FINAL with new Themes'!A:M,13,0)","v":0}]
[null,"Place (Census 2000)","Place (Census 2000)","Place (Census 2000)","Governmental Units ","DOC-Census","Jennifer Holland","Jennifer.L.Holland@census.gov",{"$f":"VLOOKUP(B157,'LOC FINAL with new Themes'!A:M,7,0)","v":0},{"$f":"VLOOKUP(B157,'LOC FINAL with new Themes'!A:M,8,0)","v":0},{"$f":"VLOOKUP(B157,'LOC FINAL with new Themes'!A:M,9,0)","v":0},{"$f":"VLOOKUP(B157,'LOC FINAL with new Themes'!A:M,10,0)","v":0},{"$f":"VLOOKUP(B157,'LOC FINAL with new Themes'!A:M,11,0)","v":0},{"$f":"VLOOKUP(B157,'LOC FINAL with new Themes'!A:M,12,0)","v":0},{"$f":"VLOOKUP(B157,'LOC FINAL with new Themes'!A:M,13,0)","v":0}]
["State(+ Territories) Boundaries","State and Equivalent  (2010 Census)","State and Equivalent  (2010 Census)","State and Equivalent  (2010 Census)","Governmental Units ","DOC-Census","Jennifer Holland","Jennifer.L.Holland@census.gov",{"$f":"VLOOKUP(B158,'LOC FINAL with new Themes'!A:M,7,0)","v":0},{"$f":"VLOOKUP(B158,'LOC FINAL with new Themes'!A:M,8,0)","v":0},{"$f":"VLOOKUP(B158,'LOC FINAL with new Themes'!A:M,9,0)","v":0},{"$f":"VLOOKUP(B158,'LOC FINAL with new Themes'!A:M,10,0)","v":0},{"$f":"VLOOKUP(B158,'LOC FINAL with new Themes'!A:M,11,0)","v":0},{"$f":"VLOOKUP(B158,'LOC FINAL with new Themes'!A:M,12,0)","v":0},{"$f":"VLOOKUP(B158,'LOC FINAL with new Themes'!A:M,13,0)","v":0}]
[null,"State and Equivalent  (Census 2000)","State and Equivalent  (Census 2000)","State and Equivalent  (Census 2000)","Governmental Units ","DOC-Census","Jennifer Holland","Jennifer.L.Holland@census.gov",{"$f":"VLOOKUP(B159,'LOC FINAL with new Themes'!A:M,7,0)","v":0},{"$f":"VLOOKUP(B159,'LOC FINAL with new Themes'!A:M,8,0)","v":0},{"$f":"VLOOKUP(B159,'LOC FINAL with new Themes'!A:M,9,0)","v":0},{"$f":"VLOOKUP(B159,'LOC FINAL with new Themes'!A:M,10,0)","v":0},{"$f":"VLOOKUP(B159,'LOC FINAL with new Themes'!A:M,11,0)","v":0},{"$f":"VLOOKUP(B159,'LOC FINAL with new Themes'!A:M,12,0)","v":0},{"$f":"VLOOKUP(B159,'LOC FINAL with new Themes'!A:M,13,0)","v":0}]
[null,"State Legislative District (Lower Chamber) (2010 Census)","State Legislative District (Lower Chamber) (2010 Census)","State Legislative District (Lower Chamber) (2010 Census)","Governmental Units ","DOC-Census","Jennifer Holland","Jennifer.L.Holland@census.gov",{"$f":"VLOOKUP(B160,'LOC FINAL with new Themes'!A:M,7,0)","v":0},{"$f":"VLOOKUP(B160,'LOC FINAL with new Themes'!A:M,8,0)","v":0},{"$f":"VLOOKUP(B160,'LOC FINAL with new Themes'!A:M,9,0)","v":0},{"$f":"VLOOKUP(B160,'LOC FINAL with new Themes'!A:M,10,0)","v":0},{"$f":"VLOOKUP(B160,'LOC FINAL with new Themes'!A:M,11,0)","v":0},{"$f":"VLOOKUP(B160,'LOC FINAL with new Themes'!A:M,12,0)","v":0},{"$f":"VLOOKUP(B160,'LOC FINAL with new Themes'!A:M,13,0)","v":0}]
[null,"State Legislative District (Lower Chamber) (Census 2000)","State Legislative District (Lower Chamber) (Census 2000)","State Legislative District (Lower Chamber) (Census 2000)","Governmental Units ","DOC-Census","Jennifer Holland","Jennifer.L.Holland@census.gov",{"$f":"VLOOKUP(B161,'LOC FINAL with new Themes'!A:M,7,0)","v":0},{"$f":"VLOOKUP(B161,'LOC FINAL with new Themes'!A:M,8,0)","v":0},{"$f":"VLOOKUP(B161,'LOC FINAL with new Themes'!A:M,9,0)","v":0},{"$f":"VLOOKUP(B161,'LOC FINAL with new Themes'!A:M,10,0)","v":0},{"$f":"VLOOKUP(B161,'LOC FINAL with new Themes'!A:M,11,0)","v":0},{"$f":"VLOOKUP(B161,'LOC FINAL with new Themes'!A:M,12,0)","v":0},{"$f":"VLOOKUP(B161,'LOC FINAL with new Themes'!A:M,13,0)","v":0}]
[null,"State Legislative District (Upper Chamber) (2010 Census)","State Legislative District (Upper Chamber) (2010 Census)","State Legislative District (Upper Chamber) (2010 Census)","Governmental Units ","DOC-Census","Jennifer Holland","Jennifer.L.Holland@census.gov",{"$f":"VLOOKUP(B162,'LOC FINAL with new Themes'!A:M,7,0)","v":0},{"$f":"VLOOKUP(B162,'LOC FINAL with new Themes'!A:M,8,0)","v":0},{"$f":"VLOOKUP(B162,'LOC FINAL with new Themes'!A:M,9,0)","v":0},{"$f":"VLOOKUP(B162,'LOC FINAL with new Themes'!A:M,10,0)","v":0},{"$f":"VLOOKUP(B162,'LOC FINAL with new Themes'!A:M,11,0)","v":0},{"$f":"VLOOKUP(B162,'LOC FINAL with new Themes'!A:M,12,0)","v":0},{"$f":"VLOOKUP(B162,'LOC FINAL with new Themes'!A:M,13,0)","v":0}]
[null,"State Legislative District (Upper Chamber) (Census 2000)","State Legislative District (Upper Chamber) (Census 2000)","State Legislative District (Upper Chamber) (Census 2000)","Governmental Units ","DOC-Census","Jennifer Holland","Jennifer.L.Holland@census.gov",{"$f":"VLOOKUP(B163,'LOC FINAL with new Themes'!A:M,7,0)","v":0},{"$f":"VLOOKUP(B163,'LOC FINAL with new Themes'!A:M,8,0)","v":0},{"$f":"VLOOKUP(B163,'LOC FINAL with new Themes'!A:M,9,0)","v":0},{"$f":"VLOOKUP(B163,'LOC FINAL with new Themes'!A:M,10,0)","v":0},{"$f":"VLOOKUP(B163,'LOC FINAL with new Themes'!A:M,11,0)","v":0},{"$f":"VLOOKUP(B163,'LOC FINAL with new Themes'!A:M,12,0)","v":0},{"$f":"VLOOKUP(B163,'LOC FINAL with new Themes'!A:M,13,0)","v":0}]
[null,"Subbarrio (2010 Census)","Subbarrio (2010 Census)","Subbarrio (2010 Census)","Governmental Units ","DOC-Census","Jennifer Holland","Jennifer.L.Holland@census.gov",{"$f":"VLOOKUP(B164,'LOC FINAL with new Themes'!A:M,7,0)","v":0},{"$f":"VLOOKUP(B164,'LOC FINAL with new Themes'!A:M,8,0)","v":0},{"$f":"VLOOKUP(B164,'LOC FINAL with new Themes'!A:M,9,0)","v":0},{"$f":"VLOOKUP(B164,'LOC FINAL with new Themes'!A:M,10,0)","v":0},{"$f":"VLOOKUP(B164,'LOC FINAL with new Themes'!A:M,11,0)","v":0},{"$f":"VLOOKUP(B164,'LOC FINAL with new Themes'!A:M,12,0)","v":0},{"$f":"VLOOKUP(B164,'LOC FINAL with new Themes'!A:M,13,0)","v":0}]
[null,"Subbarrio (Census 2000)","Subbarrio (Census 2000)","Subbarrio (Census 2000)","Governmental Units ","DOC-Census","Jennifer Holland","Jennifer.L.Holland@census.gov",{"$f":"VLOOKUP(B165,'LOC FINAL with new Themes'!A:M,7,0)","v":0},{"$f":"VLOOKUP(B165,'LOC FINAL with new Themes'!A:M,8,0)","v":0},{"$f":"VLOOKUP(B165,'LOC FINAL with new Themes'!A:M,9,0)","v":0},{"$f":"VLOOKUP(B165,'LOC FINAL with new Themes'!A:M,10,0)","v":0},{"$f":"VLOOKUP(B165,'LOC FINAL with new Themes'!A:M,11,0)","v":0},{"$f":"VLOOKUP(B165,'LOC FINAL with new Themes'!A:M,12,0)","v":0},{"$f":"VLOOKUP(B165,'LOC FINAL with new Themes'!A:M,13,0)","v":0}]
[null,"Urban Area (Corrected Census 2000)","Urban Area (Corrected Census 2000)","Urban Area (Corrected Census 2000)","Governmental Units ","DOC-Census","Jennifer Holland","Jennifer.L.Holland@census.gov",{"$f":"VLOOKUP(B166,'LOC FINAL with new Themes'!A:M,7,0)","v":0},{"$f":"VLOOKUP(B166,'LOC FINAL with new Themes'!A:M,8,0)","v":0},{"$f":"VLOOKUP(B166,'LOC FINAL with new Themes'!A:M,9,0)","v":0},{"$f":"VLOOKUP(B166,'LOC FINAL with new Themes'!A:M,10,0)","v":0},{"$f":"VLOOKUP(B166,'LOC FINAL with new Themes'!A:M,11,0)","v":0},{"$f":"VLOOKUP(B166,'LOC FINAL with new Themes'!A:M,12,0)","v":0},{"$f":"VLOOKUP(B166,'LOC FINAL with new Themes'!A:M,13,0)","v":0}]
[null,null,null,{"$f":"SUBTOTAL(3,D135:D166)","v":32},"Governmental Units Count"]
["133 Urban Areas imagery program data","133 Urban Areas imagery program data",null,{"$f":"IF(C168=0,B168,C168)","v":"133 Urban Areas imagery program data"},"Imagery ","DOD-NGA","William Nellist","William.E.Nellist@nga.mil",{"$f":"VLOOKUP(B168,'LOC FINAL with new Themes'!A:M,7,0)","v":0},{"$f":"VLOOKUP(B168,'LOC FINAL with new Themes'!A:M,8,0)","v":0},{"$f":"VLOOKUP(B168,'LOC FINAL with new Themes'!A:M,9,0)","v":0},{"$f":"VLOOKUP(B168,'LOC FINAL with new Themes'!A:M,10,0)","v":0},{"$f":"VLOOKUP(B168,'LOC FINAL with new Themes'!A:M,11,0)","v":0},{"$f":"VLOOKUP(B168,'LOC FINAL with new Themes'!A:M,12,0)","v":0},{"$f":"VLOOKUP(B168,'LOC FINAL with new Themes'!A:M,13,0)","v":0}]
[null,"134 Urban Areas imagery program data",null,"134 Urban Areas imagery program data","Imagery ","DOI-USGS","George Lee","gylee@usgs.gov",{"$f":"VLOOKUP(B169,'LOC FINAL with new Themes'!A:M,7,0)","v":0},{"$f":"VLOOKUP(B169,'LOC FINAL with new Themes'!A:M,8,0)","v":0},{"$f":"VLOOKUP(B169,'LOC FINAL with new Themes'!A:M,9,0)","v":0},{"$f":"VLOOKUP(B169,'LOC FINAL with new Themes'!A:M,10,0)","v":0},{"$f":"VLOOKUP(B169,'LOC FINAL with new Themes'!A:M,11,0)","v":0},{"$f":"VLOOKUP(B169,'LOC FINAL with new Themes'!A:M,12,0)","v":0},{"$f":"VLOOKUP(B169,'LOC FINAL with new Themes'!A:M,13,0)","v":0}]
["ADS40 Hurricane Response 7.5' Quadrangle Mosaics","ADS40 Hurricane Response 7.5' Quadrangle Mosaics",null,"ADS40 Hurricane Response 7.5' Quadrangle Mosaics","Imagery ","DOI-USGS","Jim Mauck","jmauck@usgs.gov",{"$f":"VLOOKUP(B170,'LOC FINAL with new Themes'!A:M,7,0)","v":0},{"$f":"VLOOKUP(B170,'LOC FINAL with new Themes'!A:M,8,0)","v":0},{"$f":"VLOOKUP(B170,'LOC FINAL with new Themes'!A:M,9,0)","v":0},{"$f":"VLOOKUP(B170,'LOC FINAL with new Themes'!A:M,10,0)","v":0},{"$f":"VLOOKUP(B170,'LOC FINAL with new Themes'!A:M,11,0)","v":0},{"$f":"VLOOKUP(B170,'LOC FINAL with new Themes'!A:M,12,0)","v":0},{"$f":"VLOOKUP(B170,'LOC FINAL with new Themes'!A:M,13,0)","v":0}]
["Digital Orthoimage Quarter Quadrangle (DOQQ) Archive","Digital Orthoimage Quarter Quadrangle (DOQQ) Archive",null,"Digital Orthoimage Quarter Quadrangle (DOQQ) Archive","Imagery ","DOI-USGS",null,null,{"$f":"VLOOKUP(B171,'LOC FINAL with new Themes'!A:M,7,0)","v":"DOQQ is static; one data set; this is the POC and data manager. this is the name and maintain three complete with two physically separate on-site and one off-site"},{"$f":"VLOOKUP(B171,'LOC FINAL with new Themes'!A:M,8,0)","v":0},{"$f":"VLOOKUP(B171,'LOC FINAL with new Themes'!A:M,9,0)","v":0},{"$f":"VLOOKUP(B171,'LOC FINAL with new Themes'!A:M,10,0)","v":0},{"$f":"VLOOKUP(B171,'LOC FINAL with new Themes'!A:M,11,0)","v":0},{"$f":"VLOOKUP(B171,'LOC FINAL with new Themes'!A:M,12,0)","v":0},{"$f":"VLOOKUP(B171,'LOC FINAL with new Themes'!A:M,13,0)","v":"S"}]
["Emergency Response Imagery","Emergency Response Imagery","Emergency Response Imagery","Emergency Response Imagery","Imagery ","DOC-NOAA","Mike Aslaksen","mike.Aslaksen@noaa.gov",{"$f":"VLOOKUP(B172,'LOC FINAL with new Themes'!A:M,7,0)","v":"20-Multiple      "},{"$f":"VLOOKUP(B172,'LOC FINAL with new Themes'!A:M,8,0)","v":"No"},{"$f":"VLOOKUP(B172,'LOC FINAL with new Themes'!A:M,9,0)","v":"Yes - email reply from Jon Sellars Jon.Sellars@noaa.gov"},{"$f":"VLOOKUP(B172,'LOC FINAL with new Themes'!A:M,10,0)","v":"- Same for the forest frag."},{"$f":"VLOOKUP(B172,'LOC FINAL with new Themes'!A:M,11,0)","v":"Our data can be accessed through the following links: http://storms.ngs.noaagov/eri_page/index.html Gulf Oil Spill:\nhttp://hdds.usgs.gov/hdds2/pub/data/disaster/201004_Oilspill_GulfOfMexico/data/AERIAL_NOAA\nhttp://hdds.usgs.gov/hdds2/pub/data/disaster/201004_Oilspill_GulfOfMexico/data/AERIAL_NOAA_MOSAIC  Haiti Earthquake:\nhttp://hdds.usgs.gov/hdds2/pub/data/disaster/201001_Earthquake_Haiti/data/AERIAL_NOAA\nhttp://hdds.usgs.gov/hdds2/pub/data/disaster/201001_Earthquake_Haiti/data/AERIAL_NOAA_ORTHO\nMexico Earthquake:\nhttp://hdds.usgs.gov/hdds2/pub/data/disaster/201004_Earthquake_Mexico/data/AERIAL_NOAA_MOSAIC \n\n"},{"$f":"VLOOKUP(B172,'LOC FINAL with new Themes'!A:M,12,0)","v":"Described by storm name, event or location."},{"$f":"VLOOKUP(B172,'LOC FINAL with new Themes'!A:M,13,0)","v":"M "}]
[null,null,"Fire, Detection: AVHRR FIMMA , GOES WF-ABBA","Fire, Detection: AVHRR FIMMA , GOES WF-ABBA","Imagery ","USDA"]
["Landsat geometric/terrain corrected level 1T","Landsat geometric/terrain corrected level 1T","Landsat Terrain Corrected Scenes","Landsat Terrain Corrected Scenes","Imagery ","DOI-USGS","Kristi Kline","kkline@usgs.gov",{"$f":"VLOOKUP(B174,'LOC FINAL with new Themes'!A:M,7,0)","v":"Landsat updates daily; a series of data sets; this is the POC and data manager; this is the name and maintain three complete with two physically separate on-site and one off-site"},{"$f":"VLOOKUP(B174,'LOC FINAL with new Themes'!A:M,8,0)","v":0},{"$f":"VLOOKUP(B174,'LOC FINAL with new Themes'!A:M,9,0)","v":0},{"$f":"VLOOKUP(B174,'LOC FINAL with new Themes'!A:M,10,0)","v":0},{"$f":"VLOOKUP(B174,'LOC FINAL with new Themes'!A:M,11,0)","v":0},{"$f":"VLOOKUP(B174,'LOC FINAL with new Themes'!A:M,12,0)","v":0},{"$f":"VLOOKUP(B174,'LOC FINAL with new Themes'!A:M,13,0)","v":"S"}]
[null,null,"National  Orthoimagery Dataset - National Map","National  Orthoimagery Dataset - National Map","Imagery ","DOI-USGS"]
["National Aerial Photography Program (NAPP) Data Archive","National Aerial Photography Program (NAPP) Data Archive",null,"National Aerial Photography Program (NAPP) Data Archive","Imagery ","DOI-USGS","Wayne Miller","wamiller@usgs.gov",{"$f":"VLOOKUP(B176,'LOC FINAL with new Themes'!A:M,7,0)","v":"NAPP is static; one data set; this is the POC and data manager; this is the name and maintain three complete with two physically separate on-site and one off-site "},{"$f":"VLOOKUP(B176,'LOC FINAL with new Themes'!A:M,8,0)","v":0},{"$f":"VLOOKUP(B176,'LOC FINAL with new Themes'!A:M,9,0)","v":0},{"$f":"VLOOKUP(B176,'LOC FINAL with new Themes'!A:M,10,0)","v":0},{"$f":"VLOOKUP(B176,'LOC FINAL with new Themes'!A:M,11,0)","v":0},{"$f":"VLOOKUP(B176,'LOC FINAL with new Themes'!A:M,12,0)","v":0},{"$f":"VLOOKUP(B176,'LOC FINAL with new Themes'!A:M,13,0)","v":"S"}]
["National Agriculture Imagery Program Data","National Agriculture Imagery Program Data","National Agriculture Imagery Program (NAIP) Archive","National Agriculture Imagery Program (NAIP) Archive","Imagery ","DOI-USGS","Shirley Hall","shirley.hall@wdc.usda.gov",{"$f":"VLOOKUP(B177,'LOC FINAL with new Themes'!A:M,7,0)","v":"Shirley identified Dan Good as new contact 'daniel.good@wdc.usda.gov' - need to follow up with either or both"},{"$f":"VLOOKUP(B177,'LOC FINAL with new Themes'!A:M,8,0)","v":0},{"$f":"VLOOKUP(B177,'LOC FINAL with new Themes'!A:M,9,0)","v":0},{"$f":"VLOOKUP(B177,'LOC FINAL with new Themes'!A:M,10,0)","v":0},{"$f":"VLOOKUP(B177,'LOC FINAL with new Themes'!A:M,11,0)","v":0},{"$f":"VLOOKUP(B177,'LOC FINAL with new Themes'!A:M,12,0)","v":0},{"$f":"VLOOKUP(B177,'LOC FINAL with new Themes'!A:M,13,0)","v":0}]
["National Map Orthoimagery Database (TNM Seamless Server) ","National Map Orthoimagery Database (TNM Seamless Server) ",null,"National Map Orthoimagery Database (TNM Seamless Server) ","Imagery ","DOI-USGS","George Lee","gylee@usgs.gov",{"$f":"VLOOKUP(B178,'LOC FINAL with new Themes'!A:M,7,0)","v":0},{"$f":"VLOOKUP(B178,'LOC FINAL with new Themes'!A:M,8,0)","v":0},{"$f":"VLOOKUP(B178,'LOC FINAL with new Themes'!A:M,9,0)","v":0},{"$f":"VLOOKUP(B178,'LOC FINAL with new Themes'!A:M,10,0)","v":0},{"$f":"VLOOKUP(B178,'LOC FINAL with new Themes'!A:M,11,0)","v":0},{"$f":"VLOOKUP(B178,'LOC FINAL with new Themes'!A:M,12,0)","v":0},{"$f":"VLOOKUP(B178,'LOC FINAL with new Themes'!A:M,13,0)","v":0}]
[null,null,"Satellite Imagery Archive","Satellite Imagery Archive","Imagery ","USDA-FSA"]
[null,null,null,{"$f":"SUBTOTAL(3,D168:D179)","v":12},"Imagery  Count"]
[null,null,"Crops: Cropland Data Layer",{"$f":"IF(C181=0,B181,C181)","v":"Crops: Cropland Data Layer"},"Land Use-Land Cover ","USDA-NASS"]
[null,null,"Earth Cover, Land: MODIS-based Land Products","Earth Cover, Land: MODIS-based Land Products","Land Use-Land Cover ","USDA -FS (Along with USGS)"]
[null,null,"Earth Cover, Vegetation, Forest: Forest Biomass, Types, Type Groups","Earth Cover, Vegetation, Forest: Forest Biomass, Types, Type Groups","Land Use-Land Cover ","USDA-FS"]
[null,null,"Earth Cover, Vegetation: Percent Forest Canopy","Earth Cover, Vegetation: Percent Forest Canopy","Land Use-Land Cover ","USDA-FS"]
[null,null,"Fire Severity: Monitoring Trends in Burn Severity (MTBS)","Fire Severity: Monitoring Trends in Burn Severity (MTBS)","Land Use-Land Cover ","USDA -FS (Along with USGS)"]
[null,null,"Fire, Detection: Daily Active Fire Mapping","Fire, Detection: Daily Active Fire Mapping","Land Use-Land Cover ","USDA"]
[null,null,"Land Cover Strata Dataset","Land Cover Strata Dataset","Land Use-Land Cover ","USDA-NASS"]
["LANDFIRE Dataset","LANDFIRE Dataset","Land Fire Dataset","Land Fire Dataset","Land Use-Land Cover ",null,null,0,{"$f":"VLOOKUP(B188,'LOC FINAL with new Themes'!A:M,7,0)","v":0},{"$f":"VLOOKUP(B188,'LOC FINAL with new Themes'!A:M,8,0)","v":0},{"$f":"VLOOKUP(B188,'LOC FINAL with new Themes'!A:M,9,0)","v":0},{"$f":"VLOOKUP(B188,'LOC FINAL with new Themes'!A:M,10,0)","v":0},{"$f":"VLOOKUP(B188,'LOC FINAL with new Themes'!A:M,11,0)","v":0},{"$f":"VLOOKUP(B188,'LOC FINAL with new Themes'!A:M,12,0)","v":0},{"$f":"VLOOKUP(B188,'LOC FINAL with new Themes'!A:M,13,0)","v":0}]
["National Land Cover Dataset (NLCD)","National Land Cover Dataset (NLCD)","National Land Cover Dataset - GIRAS - 1975","National Land Cover Dataset - GIRAS - 1975","Land Use-Land Cover ","DOI-USGS","Colin Homer","homer@usgs.gov",{"$f":"VLOOKUP(B189,'LOC FINAL with new Themes'!A:M,7,0)","v":"The table below summarizes NLCD products available for download from the MRLC website http://www.mrlc.gov/ "},{"$f":"VLOOKUP(B189,'LOC FINAL with new Themes'!A:M,8,0)","v":"No.  The \"manager\" of the data is Jon Dewitz. \nContact Information -   \nJon Dewitz\ndewitz@usgs.gov\n605-594-2715\nNLCD Quality Supervisor\nUSGS Earth Resources Observation and Science Center (EROS)\nMundt Federal Building\n47914 252nd St.\nSioux Falls, SD 57198\nfax 605-594-6529\n"},{"$f":"VLOOKUP(B189,'LOC FINAL with new Themes'!A:M,9,0)","v":"Joyce Fry is the POC. \nContact information - \nJoyce Fry, Geographer\nUnited States Geological Survey (USGS)\nEarth Resources Observation and  Science (EROS) Center\nMundt Federal Building\n47914 252nd Street\nSioux Falls, South Dakota 57198\n(P)  605.594.2739\n(F)  605.594.6529\n(e)  jfry@usgs.gov \n"},{"$f":"VLOOKUP(B189,'LOC FINAL with new Themes'!A:M,10,0)","v":"Every 5 years"},{"$f":"VLOOKUP(B189,'LOC FINAL with new Themes'!A:M,11,0)","v":"Yes, there is an archive/backup of the dataset through the EROS Long Term Archive (LTA) group.  I will need to get back to if you need additional information regarding the archive process. "},{"$f":"VLOOKUP(B189,'LOC FINAL with new Themes'!A:M,12,0)","v":"National Land Cover Database or NLCD along with the era number, either 1992 or 2001, or 2006. "},{"$f":"VLOOKUP(B189,'LOC FINAL with new Themes'!A:M,13,0)","v":"S"}]
[null,null,"National Land Cover Dataset - National Map","National Land Cover Dataset - National Map","Land Use-Land Cover ","DOI-USGS"]
[null,null,"National Land Cover Dataset - National Map - 1991","National Land Cover Dataset - National Map - 1991","Land Use-Land Cover ","DOI-USGS"]
[null,null,"National Land Cover Dataset - National Map - 2001","National Land Cover Dataset - National Map - 2001","Land Use-Land Cover ","DOI-USGS"]
[null,null,"National Land Cover Dataset - National Map 2006","National Land Cover Dataset - National Map 2006","Land Use-Land Cover ","DOI-USGS"]
["National Land Cover Dataset (NLCD)","National Land Cover Dataset (NLCD)","National Land Cover Dataset (NLCD)","National Land Cover Dataset (NLCD)","Land Use-Land Cover ","DOI-USGS","Colin Homer","homer@usgs.gov",{"$f":"VLOOKUP(B194,'LOC FINAL with new Themes'!A:M,7,0)","v":"The table below summarizes NLCD products available for download from the MRLC website http://www.mrlc.gov/ "},{"$f":"VLOOKUP(B194,'LOC FINAL with new Themes'!A:M,8,0)","v":"No.  The \"manager\" of the data is Jon Dewitz. \nContact Information -   \nJon Dewitz\ndewitz@usgs.gov\n605-594-2715\nNLCD Quality Supervisor\nUSGS Earth Resources Observation and Science Center (EROS)\nMundt Federal Building\n47914 252nd St.\nSioux Falls, SD 57198\nfax 605-594-6529\n"},{"$f":"VLOOKUP(B194,'LOC FINAL with new Themes'!A:M,9,0)","v":"Joyce Fry is the POC. \nContact information - \nJoyce Fry, Geographer\nUnited States Geological Survey (USGS)\nEarth Resources Observation and  Science (EROS) Center\nMundt Federal Building\n47914 252nd Street\nSioux Falls, South Dakota 57198\n(P)  605.594.2739\n(F)  605.594.6529\n(e)  jfry@usgs.gov \n"},{"$f":"VLOOKUP(B194,'LOC FINAL with new Themes'!A:M,10,0)","v":"Every 5 years"},{"$f":"VLOOKUP(B194,'LOC FINAL with new Themes'!A:M,11,0)","v":"Yes, there is an archive/backup of the dataset through the EROS Long Term Archive (LTA) group.  I will need to get back to if you need additional information regarding the archive process. "},{"$f":"VLOOKUP(B194,'LOC FINAL with new Themes'!A:M,12,0)","v":"National Land Cover Database or NLCD along with the era number, either 1992 or 2001, or 2006. "},{"$f":"VLOOKUP(B194,'LOC FINAL with new Themes'!A:M,13,0)","v":"S"}]
[null,null,"National Land Cover Percent Canopy - National Map - 1991","National Land Cover Percent Canopy - National Map - 1991","Land Use-Land Cover ","DOI-USGS"]
[null,null,"National Land Cover Percent Imperviousness - National Map - 2001","National Land Cover Percent Imperviousness - National Map - 2001","Land Use-Land Cover ","DOI-USGS"]
[null,null,"National Land Cover Percent Imperviousness - National Map - 2006","National Land Cover Percent Imperviousness - National Map - 2006","Land Use-Land Cover ","DOI-USGS"]
["National Parks Data","National Parks Data","National Parks Data","National Parks Data","Land Use-Land Cover ","DOI-NPS","Roger Johnson ","Roger_M_Johnson@nps.gov",{"$f":"VLOOKUP(B198,'LOC FINAL with new Themes'!A:M,7,0)","v":"undeliverable email- neeed to identify new contact"},{"$f":"VLOOKUP(B198,'LOC FINAL with new Themes'!A:M,8,0)","v":0},{"$f":"VLOOKUP(B198,'LOC FINAL with new Themes'!A:M,9,0)","v":0},{"$f":"VLOOKUP(B198,'LOC FINAL with new Themes'!A:M,10,0)","v":0},{"$f":"VLOOKUP(B198,'LOC FINAL with new Themes'!A:M,11,0)","v":0},{"$f":"VLOOKUP(B198,'LOC FINAL with new Themes'!A:M,12,0)","v":0},{"$f":"VLOOKUP(B198,'LOC FINAL with new Themes'!A:M,13,0)","v":0}]
[null,null,null,{"$f":"SUBTOTAL(3,D181:D198)","v":18},"Land Use-Land Cover  Count"]
["Assisted Housing (census geography or point-based) see http://www.huduser.org/picture2000/","Assisted Housing (census geography or point-based)",null,{"$f":"IF(C200=0,B200,C200)","v":"Assisted Housing (census geography or point-based)"},"Real Property","HUD","Jon Sperling","jon.sperling@hud.gov",{"$f":"VLOOKUP(B200,'LOC FINAL with new Themes'!A:M,7,0)","v":0},{"$f":"VLOOKUP(B200,'LOC FINAL with new Themes'!A:M,8,0)","v":0},{"$f":"VLOOKUP(B200,'LOC FINAL with new Themes'!A:M,9,0)","v":0},{"$f":"VLOOKUP(B200,'LOC FINAL with new Themes'!A:M,10,0)","v":0},{"$f":"VLOOKUP(B200,'LOC FINAL with new Themes'!A:M,11,0)","v":0},{"$f":"VLOOKUP(B200,'LOC FINAL with new Themes'!A:M,12,0)","v":0},{"$f":"VLOOKUP(B200,'LOC FINAL with new Themes'!A:M,13,0)","v":0}]
["Enterprise Zones, Empowerment Communities, Revitalization Areas, Qualified Census Tracts, etc.  (census geography based)","Enterprise Zones, Empowerment Communities, Revitalization Areas, Qualified Census Tracts, etc.  (census geography based)",null,"Enterprise Zones, Empowerment Communities, Revitalization Areas, Qualified Census Tracts, etc.  (census geography based)","Real Property","HUD","Jon Sperling","jon.sperling@hud.gov",{"$f":"VLOOKUP(B201,'LOC FINAL with new Themes'!A:M,7,0)","v":0},{"$f":"VLOOKUP(B201,'LOC FINAL with new Themes'!A:M,8,0)","v":0},{"$f":"VLOOKUP(B201,'LOC FINAL with new Themes'!A:M,9,0)","v":0},{"$f":"VLOOKUP(B201,'LOC FINAL with new Themes'!A:M,10,0)","v":0},{"$f":"VLOOKUP(B201,'LOC FINAL with new Themes'!A:M,11,0)","v":0},{"$f":"VLOOKUP(B201,'LOC FINAL with new Themes'!A:M,12,0)","v":0},{"$f":"VLOOKUP(B201,'LOC FINAL with new Themes'!A:M,13,0)","v":0}]
["Federal building location point ","Federal building location point ","Federal building location point ","Federal building location point ","Real Property ","GSA","Sandra Downie","sandra.downie@gsa.gov",{"$f":"VLOOKUP(B202,'LOC FINAL with new Themes'!A:M,7,0)","v":0},{"$f":"VLOOKUP(B202,'LOC FINAL with new Themes'!A:M,8,0)","v":0},{"$f":"VLOOKUP(B202,'LOC FINAL with new Themes'!A:M,9,0)","v":0},{"$f":"VLOOKUP(B202,'LOC FINAL with new Themes'!A:M,10,0)","v":0},{"$f":"VLOOKUP(B202,'LOC FINAL with new Themes'!A:M,11,0)","v":0},{"$f":"VLOOKUP(B202,'LOC FINAL with new Themes'!A:M,12,0)","v":0},{"$f":"VLOOKUP(B202,'LOC FINAL with new Themes'!A:M,13,0)","v":0}]
["Federal building location polygon","Federal building location polygon","Federal building location polygon","Federal building location polygon","Real Property ","GSA","Sandra Downie","sandra.downie@gsa.gov",{"$f":"VLOOKUP(B203,'LOC FINAL with new Themes'!A:M,7,0)","v":0},{"$f":"VLOOKUP(B203,'LOC FINAL with new Themes'!A:M,8,0)","v":0},{"$f":"VLOOKUP(B203,'LOC FINAL with new Themes'!A:M,9,0)","v":0},{"$f":"VLOOKUP(B203,'LOC FINAL with new Themes'!A:M,10,0)","v":0},{"$f":"VLOOKUP(B203,'LOC FINAL with new Themes'!A:M,11,0)","v":0},{"$f":"VLOOKUP(B203,'LOC FINAL with new Themes'!A:M,12,0)","v":0},{"$f":"VLOOKUP(B203,'LOC FINAL with new Themes'!A:M,13,0)","v":0}]
["Federal land area facility location point","Federal land area facility location point","Federal land area facility location point","Federal land area facility location point","Real Property ","GSA","Sandra Downie","sandra.downie@gsa.gov",{"$f":"VLOOKUP(B204,'LOC FINAL with new Themes'!A:M,7,0)","v":0},{"$f":"VLOOKUP(B204,'LOC FINAL with new Themes'!A:M,8,0)","v":0},{"$f":"VLOOKUP(B204,'LOC FINAL with new Themes'!A:M,9,0)","v":0},{"$f":"VLOOKUP(B204,'LOC FINAL with new Themes'!A:M,10,0)","v":0},{"$f":"VLOOKUP(B204,'LOC FINAL with new Themes'!A:M,11,0)","v":0},{"$f":"VLOOKUP(B204,'LOC FINAL with new Themes'!A:M,12,0)","v":0},{"$f":"VLOOKUP(B204,'LOC FINAL with new Themes'!A:M,13,0)","v":0}]
["Federal land area facility location polygon","Federal land area facility location polygon","Federal land area facility location polygon","Federal land area facility location polygon","Real Property ","GSA","Sandra Downie","sandra.downie@gsa.gov",{"$f":"VLOOKUP(B205,'LOC FINAL with new Themes'!A:M,7,0)","v":0},{"$f":"VLOOKUP(B205,'LOC FINAL with new Themes'!A:M,8,0)","v":0},{"$f":"VLOOKUP(B205,'LOC FINAL with new Themes'!A:M,9,0)","v":0},{"$f":"VLOOKUP(B205,'LOC FINAL with new Themes'!A:M,10,0)","v":0},{"$f":"VLOOKUP(B205,'LOC FINAL with new Themes'!A:M,11,0)","v":0},{"$f":"VLOOKUP(B205,'LOC FINAL with new Themes'!A:M,12,0)","v":0},{"$f":"VLOOKUP(B205,'LOC FINAL with new Themes'!A:M,13,0)","v":0}]
["National Map - Structures Dataset","National Map - Structures Dataset","National Structures Dataset - National Map","National Structures Dataset - National Map","Real Property ","DOI-USGS","Paul Wiese","pmwiese@usgs.gov",{"$f":"VLOOKUP(B206,'LOC FINAL with new Themes'!A:M,7,0)","v":"National Map updates monthly; a series of data sets; this is the POC and data manager; this is the name and maintain three complete with two physically separate on-site and one off-site"},{"$f":"VLOOKUP(B206,'LOC FINAL with new Themes'!A:M,8,0)","v":0},{"$f":"VLOOKUP(B206,'LOC FINAL with new Themes'!A:M,9,0)","v":0},{"$f":"VLOOKUP(B206,'LOC FINAL with new Themes'!A:M,10,0)","v":0},{"$f":"VLOOKUP(B206,'LOC FINAL with new Themes'!A:M,11,0)","v":0},{"$f":"VLOOKUP(B206,'LOC FINAL with new Themes'!A:M,12,0)","v":0},{"$f":"VLOOKUP(B206,'LOC FINAL with new Themes'!A:M,13,0)","v":"S"}]
[null,null,null,{"$f":"SUBTOTAL(3,D200:D206)","v":7},"Real Property Count"]
[null,"Military Installation","Military Installation",{"$f":"IF(C208=0,B208,C208)","v":"Military Installation"},"Real Property\nCultural & Demographic Statistics","DOC-Census","Jennifer Holland","Jennifer.L.Holland@census.gov",{"$f":"VLOOKUP(B208,'LOC FINAL with new Themes'!A:M,7,0)","v":0},{"$f":"VLOOKUP(B208,'LOC FINAL with new Themes'!A:M,8,0)","v":0},{"$f":"VLOOKUP(B208,'LOC FINAL with new Themes'!A:M,9,0)","v":0},{"$f":"VLOOKUP(B208,'LOC FINAL with new Themes'!A:M,10,0)","v":0},{"$f":"VLOOKUP(B208,'LOC FINAL with new Themes'!A:M,11,0)","v":0},{"$f":"VLOOKUP(B208,'LOC FINAL with new Themes'!A:M,12,0)","v":0},{"$f":"VLOOKUP(B208,'LOC FINAL with new Themes'!A:M,13,0)","v":0}]
[null,null,null,{"$f":"SUBTOTAL(3,D208:D208)","v":1},"Real Property\nCultural & Demographic Statistics Count"]
["Common Resource Area (CRA)","Common Resource Area (CRA)","Common Resource Area (CRA)",{"$f":"IF(C210=0,B210,C210)","v":"Common Resource Area (CRA)"},"Soils ","USDA-NRCS","David Hoover","David.Hoover@wdc.usda.gov",{"$f":"VLOOKUP(B210,'LOC FINAL with new Themes'!A:M,7,0)","v":0},{"$f":"VLOOKUP(B210,'LOC FINAL with new Themes'!A:M,8,0)","v":0},{"$f":"VLOOKUP(B210,'LOC FINAL with new Themes'!A:M,9,0)","v":0},{"$f":"VLOOKUP(B210,'LOC FINAL with new Themes'!A:M,10,0)","v":0},{"$f":"VLOOKUP(B210,'LOC FINAL with new Themes'!A:M,11,0)","v":0},{"$f":"VLOOKUP(B210,'LOC FINAL with new Themes'!A:M,12,0)","v":0},{"$f":"VLOOKUP(B210,'LOC FINAL with new Themes'!A:M,13,0)","v":0}]
["Major Land Resource Area (MLRA)","Major Land Resource Area (MLRA)","Major Land Resource Area (MLRA)","Major Land Resource Area (MLRA)","Soils ","USDA-NRCS","David Hoover","David.Hoover@wdc.usda.gov",{"$f":"VLOOKUP(B211,'LOC FINAL with new Themes'!A:M,7,0)","v":"undeliverable email- neeed to identify new contact"},{"$f":"VLOOKUP(B211,'LOC FINAL with new Themes'!A:M,8,0)","v":0},{"$f":"VLOOKUP(B211,'LOC FINAL with new Themes'!A:M,9,0)","v":0},{"$f":"VLOOKUP(B211,'LOC FINAL with new Themes'!A:M,10,0)","v":0},{"$f":"VLOOKUP(B211,'LOC FINAL with new Themes'!A:M,11,0)","v":0},{"$f":"VLOOKUP(B211,'LOC FINAL with new Themes'!A:M,12,0)","v":0},{"$f":"VLOOKUP(B211,'LOC FINAL with new Themes'!A:M,13,0)","v":0}]
["National Cooperative Soil Survey (NCSS)","National Cooperative Soil Survey (NCSS)","National Cooperative Soil Characterization Database","National Cooperative Soil Characterization Database","Soils ","USDA-NRCS","Larry West","Larry.West@lin.usda.gov",{"$f":"VLOOKUP(B212,'LOC FINAL with new Themes'!A:M,7,0)","v":"We have our Soil Survey Geographic database called SSURGO which is made available through the following sites:\nWeb Soil Survey:    http://websoilsurvey.nrcs.usda.gov/app/\nSoil Data Mart:     http://soildatamart.nrcs.usda.gov/\nSoil Data Access:   http://sdmdataaccess.nrcs.usda.gov\n\nWe also have: \nLab Soil Survey Lab Characterization Data (Point data): http://ssldata.nrcs.usda.gov/ aka NCSS Characterization Database\nSoil Series Classification Database http://soils.usda.gov/technical/classification/scfile/index.html\nU.S. General Soil Map (STATSGO2)\nMajor Land Resource Area (MLRA) http://soils.usda.gov/survey/geography/mlra/\n             Common Resource Areas (CRA) \n\n"},{"$f":"VLOOKUP(B212,'LOC FINAL with new Themes'!A:M,8,0)","v":"? No, I am a Program Manager. Various other people have roles of maintaining the data. "},{"$f":"VLOOKUP(B212,'LOC FINAL with new Themes'!A:M,9,0)","v":"I am a general information POC for all things soil survey related. For more technical aspects on our data sets a good POC would be David Hoover, National Leader for Soil Business Systems or someone on his staff. His contact number is 402-437-4013 or email at david.hoover@lin.usda.gov. "},{"$f":"VLOOKUP(B212,'LOC FINAL with new Themes'!A:M,10,0)","v":"Our data sets are constantly being updated by about 1000 soil and plant scientists in several agencies. "},{"$f":"VLOOKUP(B212,'LOC FINAL with new Themes'!A:M,11,0)","v":"Our data sets are archived, but I don’t know how far back. I will have to get back to you on that. It is my understanding that archived sets are not easily accessible.  We have archive data for SSURGO (Soil Data Warehouse from mid 2000’s or earlier – Jim Fortner or Jennifer Sweet may be able to confirm or provide more detail; We also have archive data for STATSGO (circa 1994;1996) and for MLRA (1978; 2001; 2006) in local holdings.  Not sure about lab data archives, Henry Ferguson or Larry West can confirm.  "},{"$f":"VLOOKUP(B212,'LOC FINAL with new Themes'!A:M,12,0)","v":"? the Lab Characterization Data is also known as the “NCSS Characterization Database”\nAdded Common Resource Area geographic database (CRA)."},{"$f":"VLOOKUP(B212,'LOC FINAL with new Themes'!A:M,13,0)","v":"P"}]
["Soil Survey Geographic Database (SSURGO)","Soil Survey Geographic Database (SSURGO)","Soil Survey Geographic Database (SSURGO)","Soil Survey Geographic Database (SSURGO)","Soils ","USDA-NRCS","David Hoover","David.Hoover@wdc.usda.gov",{"$f":"VLOOKUP(B213,'LOC FINAL with new Themes'!A:M,7,0)","v":"undeliverable email- neeed to identify new contact"},{"$f":"VLOOKUP(B213,'LOC FINAL with new Themes'!A:M,8,0)","v":0},{"$f":"VLOOKUP(B213,'LOC FINAL with new Themes'!A:M,9,0)","v":0},{"$f":"VLOOKUP(B213,'LOC FINAL with new Themes'!A:M,10,0)","v":0},{"$f":"VLOOKUP(B213,'LOC FINAL with new Themes'!A:M,11,0)","v":0},{"$f":"VLOOKUP(B213,'LOC FINAL with new Themes'!A:M,12,0)","v":0},{"$f":"VLOOKUP(B213,'LOC FINAL with new Themes'!A:M,13,0)","v":0}]
["U.S. General Soil Map (STATSGO2)","U.S. General Soil Map (STATSGO2)","U.S. General Soil Map (STATSGO2)","U.S. General Soil Map (STATSGO2)","Soils ","USDA-NRCS","David Hoover","David.Hoover@wdc.usda.gov",{"$f":"VLOOKUP(B214,'LOC FINAL with new Themes'!A:M,7,0)","v":"undeliverable email- neeed to identify new contact"},{"$f":"VLOOKUP(B214,'LOC FINAL with new Themes'!A:M,8,0)","v":0},{"$f":"VLOOKUP(B214,'LOC FINAL with new Themes'!A:M,9,0)","v":0},{"$f":"VLOOKUP(B214,'LOC FINAL with new Themes'!A:M,10,0)","v":0},{"$f":"VLOOKUP(B214,'LOC FINAL with new Themes'!A:M,11,0)","v":0},{"$f":"VLOOKUP(B214,'LOC FINAL with new Themes'!A:M,12,0)","v":0},{"$f":"VLOOKUP(B214,'LOC FINAL with new Themes'!A:M,13,0)","v":0}]
[null,null,null,{"$f":"SUBTOTAL(3,D210:D214)","v":5},"Soils  Count"]
[null,"Address Range-Feature Name Relationship File","Address Range-Feature Name Relationship File",{"$f":"IF(C216=0,B216,C216)","v":"Address Range-Feature Name Relationship File"},"Transportation ","DOC-Census","Jennifer Holland","Jennifer.L.Holland@census.gov",{"$f":"VLOOKUP(B216,'LOC FINAL with new Themes'!A:M,7,0)","v":0},{"$f":"VLOOKUP(B216,'LOC FINAL with new Themes'!A:M,8,0)","v":0},{"$f":"VLOOKUP(B216,'LOC FINAL with new Themes'!A:M,9,0)","v":0},{"$f":"VLOOKUP(B216,'LOC FINAL with new Themes'!A:M,10,0)","v":0},{"$f":"VLOOKUP(B216,'LOC FINAL with new Themes'!A:M,11,0)","v":0},{"$f":"VLOOKUP(B216,'LOC FINAL with new Themes'!A:M,12,0)","v":0},{"$f":"VLOOKUP(B216,'LOC FINAL with new Themes'!A:M,13,0)","v":0}]
[null,"Address Ranges Relationship File","Address Ranges Relationship File","Address Ranges Relationship File","Transportation ","DOC-Census","Jennifer Holland","Jennifer.L.Holland@census.gov",{"$f":"VLOOKUP(B217,'LOC FINAL with new Themes'!A:M,7,0)","v":0},{"$f":"VLOOKUP(B217,'LOC FINAL with new Themes'!A:M,8,0)","v":0},{"$f":"VLOOKUP(B217,'LOC FINAL with new Themes'!A:M,9,0)","v":0},{"$f":"VLOOKUP(B217,'LOC FINAL with new Themes'!A:M,10,0)","v":0},{"$f":"VLOOKUP(B217,'LOC FINAL with new Themes'!A:M,11,0)","v":0},{"$f":"VLOOKUP(B217,'LOC FINAL with new Themes'!A:M,12,0)","v":0},{"$f":"VLOOKUP(B217,'LOC FINAL with new Themes'!A:M,13,0)","v":0}]
[null,"All Roads","All Roads","All Roads","Transportation ","DOC-Census","Jennifer Holland","Jennifer.L.Holland@census.gov",{"$f":"VLOOKUP(B218,'LOC FINAL with new Themes'!A:M,7,0)","v":0},{"$f":"VLOOKUP(B218,'LOC FINAL with new Themes'!A:M,8,0)","v":0},{"$f":"VLOOKUP(B218,'LOC FINAL with new Themes'!A:M,9,0)","v":0},{"$f":"VLOOKUP(B218,'LOC FINAL with new Themes'!A:M,10,0)","v":0},{"$f":"VLOOKUP(B218,'LOC FINAL with new Themes'!A:M,11,0)","v":0},{"$f":"VLOOKUP(B218,'LOC FINAL with new Themes'!A:M,12,0)","v":0},{"$f":"VLOOKUP(B218,'LOC FINAL with new Themes'!A:M,13,0)","v":0}]
["Inland Electronic Navigation Charts (IENC)","Inland Electronic Navigation Charts (IENC)","Inland Electronic Navigation Charts (IENC)","Inland Electronic Navigation Charts (IENC)","Transportation ","DOD-USACE","Joel Schlagel","Joel.D.Schlagel@erdc.usace.army.mil ",{"$f":"VLOOKUP(B219,'LOC FINAL with new Themes'!A:M,7,0)","v":0},{"$f":"VLOOKUP(B219,'LOC FINAL with new Themes'!A:M,8,0)","v":0},{"$f":"VLOOKUP(B219,'LOC FINAL with new Themes'!A:M,9,0)","v":0},{"$f":"VLOOKUP(B219,'LOC FINAL with new Themes'!A:M,10,0)","v":0},{"$f":"VLOOKUP(B219,'LOC FINAL with new Themes'!A:M,11,0)","v":0},{"$f":"VLOOKUP(B219,'LOC FINAL with new Themes'!A:M,12,0)","v":0},{"$f":"VLOOKUP(B219,'LOC FINAL with new Themes'!A:M,13,0)","v":0}]
[null,null,"National Interagency Trails Dataset","National Interagency Trails Dataset","Transportation ","USDA"]
["National Map - Transportation Dataset","National Map - Transportation Dataset","National Transportation Dataset - National Map","National Transportation Dataset - National Map","Transportation ","DOI-USGS","Paul Wiese","pmwiese@usgs.gov",{"$f":"VLOOKUP(B221,'LOC FINAL with new Themes'!A:M,7,0)","v":0},{"$f":"VLOOKUP(B221,'LOC FINAL with new Themes'!A:M,8,0)","v":0},{"$f":"VLOOKUP(B221,'LOC FINAL with new Themes'!A:M,9,0)","v":0},{"$f":"VLOOKUP(B221,'LOC FINAL with new Themes'!A:M,10,0)","v":0},{"$f":"VLOOKUP(B221,'LOC FINAL with new Themes'!A:M,11,0)","v":0},{"$f":"VLOOKUP(B221,'LOC FINAL with new Themes'!A:M,12,0)","v":0},{"$f":"VLOOKUP(B221,'LOC FINAL with new Themes'!A:M,13,0)","v":0}]
["NTAD","NTAD","NTAD","NTAD","Transportation ","DOT-BTS","Robert Monniere","robert.monniere@dot.gov",{"$f":"VLOOKUP(B222,'LOC FINAL with new Themes'!A:M,7,0)","v":0},{"$f":"VLOOKUP(B222,'LOC FINAL with new Themes'!A:M,8,0)","v":0},{"$f":"VLOOKUP(B222,'LOC FINAL with new Themes'!A:M,9,0)","v":0},{"$f":"VLOOKUP(B222,'LOC FINAL with new Themes'!A:M,10,0)","v":0},{"$f":"VLOOKUP(B222,'LOC FINAL with new Themes'!A:M,11,0)","v":0},{"$f":"VLOOKUP(B222,'LOC FINAL with new Themes'!A:M,12,0)","v":0},{"$f":"VLOOKUP(B222,'LOC FINAL with new Themes'!A:M,13,0)","v":0}]
[null,null,"NTAD (airports)","NTAD (airports)","Transportation ","DOT-BTS"]
[null,null,"NTAD (Rail)","NTAD (Rail)","Transportation ","DOT-BTS"]
["NTAD (TransitLines) ","NTAD (TransitLines) ","NTAD (TransitLines) ","NTAD (TransitLines) ","Transportation ","DOT-BTS","Robert Monniere ","robert.monniere@dot.gov \n",{"$f":"VLOOKUP(B225,'LOC FINAL with new Themes'!A:M,7,0)","v":0},{"$f":"VLOOKUP(B225,'LOC FINAL with new Themes'!A:M,8,0)","v":0},{"$f":"VLOOKUP(B225,'LOC FINAL with new Themes'!A:M,9,0)","v":0},{"$f":"VLOOKUP(B225,'LOC FINAL with new Themes'!A:M,10,0)","v":0},{"$f":"VLOOKUP(B225,'LOC FINAL with new Themes'!A:M,11,0)","v":0},{"$f":"VLOOKUP(B225,'LOC FINAL with new Themes'!A:M,12,0)","v":0},{"$f":"VLOOKUP(B225,'LOC FINAL with new Themes'!A:M,13,0)","v":0}]
["NTAD (TransitStation) ","NTAD (TransitStation) ","NTAD (TransitStation) ","NTAD (TransitStation) ","Transportation ","DOT-BTS","Robert Monniere ","robert.monniere@dot.gov ",{"$f":"VLOOKUP(B226,'LOC FINAL with new Themes'!A:M,7,0)","v":0},{"$f":"VLOOKUP(B226,'LOC FINAL with new Themes'!A:M,8,0)","v":0},{"$f":"VLOOKUP(B226,'LOC FINAL with new Themes'!A:M,9,0)","v":0},{"$f":"VLOOKUP(B226,'LOC FINAL with new Themes'!A:M,10,0)","v":0},{"$f":"VLOOKUP(B226,'LOC FINAL with new Themes'!A:M,11,0)","v":0},{"$f":"VLOOKUP(B226,'LOC FINAL with new Themes'!A:M,12,0)","v":0},{"$f":"VLOOKUP(B226,'LOC FINAL with new Themes'!A:M,13,0)","v":0}]
[null,"Primary and Secondary Roads","Primary and Secondary Roads",{"$f":"IF(C227=0,#REF!,C227)","v":"Primary and Secondary Roads"},"Transportation ","DOC-Census","Jennifer Holland","Jennifer.L.Holland@census.gov",{"$f":"VLOOKUP(B227,'LOC FINAL with new Themes'!A:M,7,0)","v":0},{"$f":"VLOOKUP(B227,'LOC FINAL with new Themes'!A:M,8,0)","v":0},{"$f":"VLOOKUP(B227,'LOC FINAL with new Themes'!A:M,9,0)","v":0},{"$f":"VLOOKUP(B227,'LOC FINAL with new Themes'!A:M,10,0)","v":0},{"$f":"VLOOKUP(B227,'LOC FINAL with new Themes'!A:M,11,0)","v":0},{"$f":"VLOOKUP(B227,'LOC FINAL with new Themes'!A:M,12,0)","v":0},{"$f":"VLOOKUP(B227,'LOC FINAL with new Themes'!A:M,13,0)","v":0}]
[null,"Primary Roads","Primary Roads",{"$f":"IF(C228=0,B228,C228)","v":"Primary Roads"},"Transportation ","DOC-Census","Jennifer Holland","Jennifer.L.Holland@census.gov",{"$f":"VLOOKUP(B228,'LOC FINAL with new Themes'!A:M,7,0)","v":0},{"$f":"VLOOKUP(B228,'LOC FINAL with new Themes'!A:M,8,0)","v":0},{"$f":"VLOOKUP(B228,'LOC FINAL with new Themes'!A:M,9,0)","v":0},{"$f":"VLOOKUP(B228,'LOC FINAL with new Themes'!A:M,10,0)","v":0},{"$f":"VLOOKUP(B228,'LOC FINAL with new Themes'!A:M,11,0)","v":0},{"$f":"VLOOKUP(B228,'LOC FINAL with new Themes'!A:M,12,0)","v":0},{"$f":"VLOOKUP(B228,'LOC FINAL with new Themes'!A:M,13,0)","v":0}]
["TIGER (Roads/Rail)","TIGER (Roads/Rail)",null,{"$f":"IF(C229=0,B229,C229)","v":"TIGER (Roads/Rail)"},"Transportation ","DOC-Census","Randy Fusaro","randy.j.fusaro@census.gov",{"$f":"VLOOKUP(B229,'LOC FINAL with new Themes'!A:M,7,0)","v":0},{"$f":"VLOOKUP(B229,'LOC FINAL with new Themes'!A:M,8,0)","v":0},{"$f":"VLOOKUP(B229,'LOC FINAL with new Themes'!A:M,9,0)","v":0},{"$f":"VLOOKUP(B229,'LOC FINAL with new Themes'!A:M,10,0)","v":0},{"$f":"VLOOKUP(B229,'LOC FINAL with new Themes'!A:M,11,0)","v":0},{"$f":"VLOOKUP(B229,'LOC FINAL with new Themes'!A:M,12,0)","v":0},{"$f":"VLOOKUP(B229,'LOC FINAL with new Themes'!A:M,13,0)","v":0}]
[null,"Traffic Analysis Zone (Census 2000)","Traffic Analysis Zone (Census 2000)",{"$f":"IF(C230=0,B230,C230)","v":"Traffic Analysis Zone (Census 2000)"},"Transportation ","DOC-Census","Jennifer Holland","Jennifer.L.Holland@census.gov",{"$f":"VLOOKUP(B230,'LOC FINAL with new Themes'!A:M,7,0)","v":0},{"$f":"VLOOKUP(B230,'LOC FINAL with new Themes'!A:M,8,0)","v":0},{"$f":"VLOOKUP(B230,'LOC FINAL with new Themes'!A:M,9,0)","v":0},{"$f":"VLOOKUP(B230,'LOC FINAL with new Themes'!A:M,10,0)","v":0},{"$f":"VLOOKUP(B230,'LOC FINAL with new Themes'!A:M,11,0)","v":0},{"$f":"VLOOKUP(B230,'LOC FINAL with new Themes'!A:M,12,0)","v":0},{"$f":"VLOOKUP(B230,'LOC FINAL with new Themes'!A:M,13,0)","v":0}]
[null,null,null,{"$f":"SUBTOTAL(3,D216:D230)","v":15},"Transportation  Count"]
[null,null,"Pipelines",{"$f":"IF(C232=0,B232,C232)","v":"Pipelines"},"Utilities ","DOI-MMS"]
[null,null,"Platforms",{"$f":"IF(C233=0,B233,C233)","v":"Platforms"},"Utilities ","DOI-MMS"]
[null,null,null,{"$f":"SUBTOTAL(3,D232:D233)","v":2},"Utilities  Count"]
[null,"Area Hydrography (2010 Census)","Area Hydrography (2010 Census)",{"$f":"IF(C235=0,B235,C235)","v":"Area Hydrography (2010 Census)"},"Water -- Inland","DOC-Census","Jennifer Holland","Jennifer.L.Holland@census.gov",{"$f":"VLOOKUP(B235,'LOC FINAL with new Themes'!A:M,7,0)","v":0},{"$f":"VLOOKUP(B235,'LOC FINAL with new Themes'!A:M,8,0)","v":0},{"$f":"VLOOKUP(B235,'LOC FINAL with new Themes'!A:M,9,0)","v":0},{"$f":"VLOOKUP(B235,'LOC FINAL with new Themes'!A:M,10,0)","v":0},{"$f":"VLOOKUP(B235,'LOC FINAL with new Themes'!A:M,11,0)","v":0},{"$f":"VLOOKUP(B235,'LOC FINAL with new Themes'!A:M,12,0)","v":0},{"$f":"VLOOKUP(B235,'LOC FINAL with new Themes'!A:M,13,0)","v":0}]
[null,"Linear Water Features","Linear Water Features","Linear Water Features","Water -- Inland","DOC-Census","Jennifer Holland","Jennifer.L.Holland@census.gov",{"$f":"VLOOKUP(B236,'LOC FINAL with new Themes'!A:M,7,0)","v":0},{"$f":"VLOOKUP(B236,'LOC FINAL with new Themes'!A:M,8,0)","v":0},{"$f":"VLOOKUP(B236,'LOC FINAL with new Themes'!A:M,9,0)","v":0},{"$f":"VLOOKUP(B236,'LOC FINAL with new Themes'!A:M,10,0)","v":0},{"$f":"VLOOKUP(B236,'LOC FINAL with new Themes'!A:M,11,0)","v":0},{"$f":"VLOOKUP(B236,'LOC FINAL with new Themes'!A:M,12,0)","v":0},{"$f":"VLOOKUP(B236,'LOC FINAL with new Themes'!A:M,13,0)","v":0}]
["National Hydrography Data Set","National Hydrography Dataset","National Hydrography Dataset - National Map","National Hydrography Dataset - National Map","Water -- Inland","DOI-USGS","Jeff Simley","jdsimley@usgs.gov",{"$f":"VLOOKUP(B237,'LOC FINAL with new Themes'!A:M,7,0)","v":0},{"$f":"VLOOKUP(B237,'LOC FINAL with new Themes'!A:M,8,0)","v":0},{"$f":"VLOOKUP(B237,'LOC FINAL with new Themes'!A:M,9,0)","v":0},{"$f":"VLOOKUP(B237,'LOC FINAL with new Themes'!A:M,10,0)","v":0},{"$f":"VLOOKUP(B237,'LOC FINAL with new Themes'!A:M,11,0)","v":0},{"$f":"VLOOKUP(B237,'LOC FINAL with new Themes'!A:M,12,0)","v":0},{"$f":"VLOOKUP(B237,'LOC FINAL with new Themes'!A:M,13,0)","v":0}]
["National Inventory of Dams (NID)","National Inventory of Dams (NID)","National Inventory of Dams (NID)","National Inventory of Dams (NID)","Water -- Inland","DOD-USACE","Rebecca Ragon","Rebecca.Ragon@usace.army.mil ",{"$f":"VLOOKUP(B238,'LOC FINAL with new Themes'!A:M,7,0)","v":"One single data set"},{"$f":"VLOOKUP(B238,'LOC FINAL with new Themes'!A:M,8,0)","v":"Yes"},{"$f":"VLOOKUP(B238,'LOC FINAL with new Themes'!A:M,9,0)","v":"Yes"},{"$f":"VLOOKUP(B238,'LOC FINAL with new Themes'!A:M,10,0)","v":"Usually every 2 years"},{"$f":"VLOOKUP(B238,'LOC FINAL with new Themes'!A:M,11,0)","v":"Because the NID is updated every 2 years, we do have archived databased datig back to 1994."},{"$f":"VLOOKUP(B238,'LOC FINAL with new Themes'!A:M,12,0)","v":"The official name is National Inventory of Dams (NID) but I have seen the database referenced as the National Dam Inventory"},{"$f":"VLOOKUP(B238,'LOC FINAL with new Themes'!A:M,13,0)","v":"S"}]
["National Levee Database (NLD)","National Levee Database (NLD)","National Levee Database (NLD)","National Levee Database (NLD)","Water -- Inland","DOD-USACE","Bryan Baker","Bryan.E.Baker@usace.army.mil",{"$f":"VLOOKUP(B239,'LOC FINAL with new Themes'!A:M,7,0)","v":0},{"$f":"VLOOKUP(B239,'LOC FINAL with new Themes'!A:M,8,0)","v":0},{"$f":"VLOOKUP(B239,'LOC FINAL with new Themes'!A:M,9,0)","v":0},{"$f":"VLOOKUP(B239,'LOC FINAL with new Themes'!A:M,10,0)","v":0},{"$f":"VLOOKUP(B239,'LOC FINAL with new Themes'!A:M,11,0)","v":0},{"$f":"VLOOKUP(B239,'LOC FINAL with new Themes'!A:M,12,0)","v":0},{"$f":"VLOOKUP(B239,'LOC FINAL with new Themes'!A:M,13,0)","v":0}]
[null,null,"National Water Information System (NWIS)- Stream Gage Network","National Water Information System (NWIS)- Stream Gage Network","Water -- Inland","DOI-USGS"]
[null,null,"National Water Information System (NWIS)- Water Quality Monitoring Stations","National Water Information System (NWIS)- Water Quality Monitoring Stations","Water -- Inland","DOI-USGS"]
["National Wetlands Inventory (NWI) ","National Wetlands Inventory (NWI) ","National Wetlands Inventory (NWI) ","National Wetlands Inventory (NWI) ","Water -- Inland","DOI-FWS","Tom Dahl  ","tom_dahl@fws.gov\n",{"$f":"VLOOKUP(B242,'LOC FINAL with new Themes'!A:M,7,0)","v":0},{"$f":"VLOOKUP(B242,'LOC FINAL with new Themes'!A:M,8,0)","v":0},{"$f":"VLOOKUP(B242,'LOC FINAL with new Themes'!A:M,9,0)","v":0},{"$f":"VLOOKUP(B242,'LOC FINAL with new Themes'!A:M,10,0)","v":0},{"$f":"VLOOKUP(B242,'LOC FINAL with new Themes'!A:M,11,0)","v":0},{"$f":"VLOOKUP(B242,'LOC FINAL with new Themes'!A:M,12,0)","v":0},{"$f":"VLOOKUP(B242,'LOC FINAL with new Themes'!A:M,13,0)","v":0}]
["NWIS & STORET","NWIS & STORET",null,"NWIS & STORET","Water -- Inland",null,"EGIM",null,{"$f":"VLOOKUP(B243,'LOC FINAL with new Themes'!A:M,7,0)","v":0},{"$f":"VLOOKUP(B243,'LOC FINAL with new Themes'!A:M,8,0)","v":0},{"$f":"VLOOKUP(B243,'LOC FINAL with new Themes'!A:M,9,0)","v":0},{"$f":"VLOOKUP(B243,'LOC FINAL with new Themes'!A:M,10,0)","v":0},{"$f":"VLOOKUP(B243,'LOC FINAL with new Themes'!A:M,11,0)","v":0},{"$f":"VLOOKUP(B243,'LOC FINAL with new Themes'!A:M,12,0)","v":0},{"$f":"VLOOKUP(B243,'LOC FINAL with new Themes'!A:M,13,0)","v":0}]
[null,"Topological Faces-Area Hydrography Relationship File","Topological Faces-Area Hydrography Relationship File","Topological Faces-Area Hydrography Relationship File","Water -- Inland","DOC-Census","Jennifer Holland","Jennifer.L.Holland@census.gov",{"$f":"VLOOKUP(B244,'LOC FINAL with new Themes'!A:M,7,0)","v":0},{"$f":"VLOOKUP(B244,'LOC FINAL with new Themes'!A:M,8,0)","v":0},{"$f":"VLOOKUP(B244,'LOC FINAL with new Themes'!A:M,9,0)","v":0},{"$f":"VLOOKUP(B244,'LOC FINAL with new Themes'!A:M,10,0)","v":0},{"$f":"VLOOKUP(B244,'LOC FINAL with new Themes'!A:M,11,0)","v":0},{"$f":"VLOOKUP(B244,'LOC FINAL with new Themes'!A:M,12,0)","v":0},{"$f":"VLOOKUP(B244,'LOC FINAL with new Themes'!A:M,13,0)","v":0}]
["Watershed Boundary Data Set (WBD)  ","Watershed Boundary Dataset (WBD)  ","Watershed Boundary Dataset (WBD)  ","Watershed Boundary Dataset (WBD)  ","Water -- Inland","DOI-USGS","Karen Hanson","khanson@usgs.gov",{"$f":"VLOOKUP(B245,'LOC FINAL with new Themes'!A:M,7,0)","v":"one set with nested hierarchy of six different levels within it (regions, subdivided into four, six and twelve digits), POC and data manager; continually updated; co-managed with NRCS and they archive it; USGS in Denver will serve it; All transactions are archived in versions in the database as they happen. Data from any moment in time can be captured with a simple query. The database is replicated daily to Rolla, MO servers. The database is stored on a SAN with three tier redundancy.All changes to the database are stored on separate disks and once they reach a certain size, they are copied over to a server to be written to tape. Weekly, the entire database (NHD, with WBD) is written to tape.Monthly, the tapes are taken off site for storage."},{"$f":"VLOOKUP(B245,'LOC FINAL with new Themes'!A:M,8,0)","v":0},{"$f":"VLOOKUP(B245,'LOC FINAL with new Themes'!A:M,9,0)","v":0},{"$f":"VLOOKUP(B245,'LOC FINAL with new Themes'!A:M,10,0)","v":0},{"$f":"VLOOKUP(B245,'LOC FINAL with new Themes'!A:M,11,0)","v":0},{"$f":"VLOOKUP(B245,'LOC FINAL with new Themes'!A:M,12,0)","v":0},{"$f":"VLOOKUP(B245,'LOC FINAL with new Themes'!A:M,13,0)","v":"S"}]
["Watershed Boundary Data Set (WBD)  ","Watershed Boundary Dataset (WBD)  ","Watershed Boundary Dataset (WBD)  ","Watershed Boundary Dataset (WBD)  ","Water -- Inland","DOI-USGS","Karen Hanson","khanson@usgs.gov",{"$f":"VLOOKUP(B246,'LOC FINAL with new Themes'!A:M,7,0)","v":"one set with nested hierarchy of six different levels within it (regions, subdivided into four, six and twelve digits), POC and data manager; continually updated; co-managed with NRCS and they archive it; USGS in Denver will serve it; All transactions are archived in versions in the database as they happen. Data from any moment in time can be captured with a simple query. The database is replicated daily to Rolla, MO servers. The database is stored on a SAN with three tier redundancy.All changes to the database are stored on separate disks and once they reach a certain size, they are copied over to a server to be written to tape. Weekly, the entire database (NHD, with WBD) is written to tape.Monthly, the tapes are taken off site for storage."},{"$f":"VLOOKUP(B246,'LOC FINAL with new Themes'!A:M,8,0)","v":0},{"$f":"VLOOKUP(B246,'LOC FINAL with new Themes'!A:M,9,0)","v":0},{"$f":"VLOOKUP(B246,'LOC FINAL with new Themes'!A:M,10,0)","v":0},{"$f":"VLOOKUP(B246,'LOC FINAL with new Themes'!A:M,11,0)","v":0},{"$f":"VLOOKUP(B246,'LOC FINAL with new Themes'!A:M,12,0)","v":0},{"$f":"VLOOKUP(B246,'LOC FINAL with new Themes'!A:M,13,0)","v":"S"}]
[null,null,null,{"$f":"SUBTOTAL(3,D235:D246)","v":12},"Water -- Inland Count"]
[null,null,"Coastal Barrier Resource System",{"$f":"IF(C248=0,B248,C248)","v":"Coastal Barrier Resource System"},"Water -- Oceans and Coasts ","DOI-FWS"]
[null,null,"Coastal Change Analysis Program (C-CAP) Land Cover and Land Change Imagery","Coastal Change Analysis Program (C-CAP) Land Cover and Land Change Imagery","Water -- Oceans and Coasts ","DOC-NOAA","Nate Herold","nate.herold@noaa.gov"]
["Continental Shelf Boundary Data","Continental Shelf Boundary Data","Continental Shelf Boundary Data","Continental Shelf Boundary Data","Water -- Oceans and Coasts ","DOI-BOEM","Doug Vandegraft","douglas.vandegraft@boemre.gov",{"$f":"VLOOKUP(B250,'LOC FINAL with new Themes'!A:M,7,0)","v":"undeliverable email- neeed to identify new contact"},{"$f":"VLOOKUP(B250,'LOC FINAL with new Themes'!A:M,8,0)","v":0},{"$f":"VLOOKUP(B250,'LOC FINAL with new Themes'!A:M,9,0)","v":0},{"$f":"VLOOKUP(B250,'LOC FINAL with new Themes'!A:M,10,0)","v":0},{"$f":"VLOOKUP(B250,'LOC FINAL with new Themes'!A:M,11,0)","v":0},{"$f":"VLOOKUP(B250,'LOC FINAL with new Themes'!A:M,12,0)","v":0},{"$f":"VLOOKUP(B250,'LOC FINAL with new Themes'!A:M,13,0)","v":0}]
[null,null,"National Data Buoy Center (NDBC) Recent and Historical Data","National Data Buoy Center (NDBC) Recent and Historical Data","Water -- Oceans and Coasts ","DOC-NOAA"]
[null,null,"NOAA National Shoreline","NOAA National Shoreline","Water -- Oceans and Coasts ","DOC-NOAA","Doug Graham","Doug.Graham@noaa.gov"]
["NOAA Nautical Charts","NOAA Nautical Charts","NOAA's Nautical Chart Products","NOAA's Nautical Chart Products","Water -- Oceans and Coasts ","DOC-NOAA","John Lowell","John.Lowell@noaa.gov",{"$f":"VLOOKUP(B253,'LOC FINAL with new Themes'!A:M,7,0)","v":0},{"$f":"VLOOKUP(B253,'LOC FINAL with new Themes'!A:M,8,0)","v":0},{"$f":"VLOOKUP(B253,'LOC FINAL with new Themes'!A:M,9,0)","v":0},{"$f":"VLOOKUP(B253,'LOC FINAL with new Themes'!A:M,10,0)","v":0},{"$f":"VLOOKUP(B253,'LOC FINAL with new Themes'!A:M,11,0)","v":0},{"$f":"VLOOKUP(B253,'LOC FINAL with new Themes'!A:M,12,0)","v":0},{"$f":"VLOOKUP(B253,'LOC FINAL with new Themes'!A:M,13,0)","v":0}]
[null,null,"Non-Projected Boundaries","Non-Projected Boundaries","Water -- Oceans and Coasts ","DOI-MMS"]
[null,null,"Projected Boundaries","Projected Boundaries","Water -- Oceans and Coasts ","DOI-MMS"]
[null,null,"U.S. Marine Protected Areas Boundaries","U.S. Marine Protected Areas Boundaries","Water -- Oceans and Coasts ","DOC-NOAA"]
[null,null,"U.S. Maritime Zones/Boundaries","U.S. Maritime Zones/Boundaries","Water -- Oceans and Coasts ","DOC-NOAA","Meredith Westington","meredith.westington@noaa.gov"]
[null,null,null,{"$f":"SUBTOTAL(3,D248:D257)","v":10},"Water -- Oceans and Coasts  Count"]
[null,null,null,{"$f":"SUBTOTAL(3,D2:D257)","v":238},"Grand Count"]

{"sheet":"1-23-2012","index":14,"n_rows":267,"n_cols":15,"rows_kept":267,"cut":false,"hidden":true,"merged":[]}
["ORIGINAL (beginning of 2011)","LOC FINAL (October 2011)","NGDA List (October 2011)","FINAL List (November 2011)","Theme","Agency","Dataset Manager","Email","Q1 How many data set(s) do you have? It is a single set or multiple sets? ","Q2 Are you a data set manager?","Q3 Are you the POC for transferring the data set and/or for information about the data set?","Q4 How often is the data set updated?","Q5 Is there an archive/backup of the data set or do you maintain an archived copy of it? If yes, how far back do you maintain a copy? Is it easily accessible?","Q6 Does the data set go by a different name or is it referred to internally by another descriptive name?","M\nP\nS"]
[null,null,"Critical Habitat ",{"$f":"IF(C2=0,B2,C2)","v":"Critical Habitat "},"Biota","DOI-FWS"]
[null,null,"Current Range for listed species ","Current Range for listed species ","Biota","DOI-FWS"]
["ECOMAP Data Sets (Ecological Subregions: Sections and Subsections for the Conterminous United States ) ","ECOMAP Datasets (Ecological Subregions: Sections and Subsections for the Conterminous United States ) ","ECOMAP Datasets (Ecological Subregions: Sections and Subsections for the Conterminous United States ) ","ECOMAP Datasets (Ecological Subregions: Sections and Subsections for the Conterminous United States ) ","Biota","USDA-FS","David T. Cleland","dcleland@fs.fed.us",{"$f":"VLOOKUP(B4,'LOC FINAL with new Themes'!A:M,7,0)","v":"One, single set"},{"$f":"VLOOKUP(B4,'LOC FINAL with new Themes'!A:M,8,0)","v":"Yes"},{"$f":"VLOOKUP(B4,'LOC FINAL with new Themes'!A:M,9,0)","v":"Yes"},{"$f":"VLOOKUP(B4,'LOC FINAL with new Themes'!A:M,10,0)","v":"Maps are updated on a 10-year cycle"},{"$f":"VLOOKUP(B4,'LOC FINAL with new Themes'!A:M,11,0)","v":"The data is housed at and served by the Forest Service geodata portal, and is easily accessible.  The web address is: http://fsgeodata.fs.fed.us/other_resources/ecosubregions.html "},{"$f":"VLOOKUP(B4,'LOC FINAL with new Themes'!A:M,12,0)","v":"?   Internally, the data is named ECOMAP or the National Hierarchy of Ecological Units. "},{"$f":"VLOOKUP(B4,'LOC FINAL with new Themes'!A:M,13,0)","v":"S"}]
[null,null,"Endangered Species (Threatened and Endangered Species System)","Endangered Species (Threatened and Endangered Species System)","Biota","DOI-FWS"]
["Env Sens Index Maps - classified shoreline","Env Sens Index Maps - classified shoreline","Environmental Sensitivity Index (ESI) Data and Maps","Environmental Sensitivity Index (ESI) Data and Maps","Biota","DOC-NOAA","Jill Petersen","jill.petersen@noaa.gov",{"$f":"VLOOKUP(B6,'LOC FINAL with new Themes'!A:M,7,0)","v":"There are approximately 70 different atlases. There are a few that are still not available in a GIS format, (approx 7 of the approx 70!) - these are available as the hard copy product and as PDFs (scanned). The remaining atlases are available in multiple GIS formats - Arc Export files, Geodatabase with an ArcMap map document complete with all relates established and properly symbolized, Shape files with an ArcView 3.x project, a free ESI viewer that allows viewing, queries and printing (in house mapping program and filemaker pro) as well as PDF format and the hard copy product. These can be downloaded from http://response.restoration.noaa.gov/esi_download This page is in progress, but should be complete fairly quickly.\n\n"},{"$f":"VLOOKUP(B6,'LOC FINAL with new Themes'!A:M,8,0)","v":"Yes"},{"$f":"VLOOKUP(B6,'LOC FINAL with new Themes'!A:M,9,0)","v":"Yes "},{"$f":"VLOOKUP(B6,'LOC FINAL with new Themes'!A:M,10,0)","v":"- High resolution products have no defined update schedule.  TBD by geog/project."},{"$f":"VLOOKUP(B6,'LOC FINAL with new Themes'!A:M,11,0)","v":"Yes and no. We have archives of all the digital data as well as all the PDFs (scanned or produced with the digital data map comps). Many of the hard copy atlases from the first round of ESI maps were sent to the Library of Commerce. Others I have kept, but no very organized situation. However, we have all of the historic PDFs which are an exact duplicate of the hard copy atlas, so that is something. Historic data is going to be served from the above link as well. That will be added as the current data sets are completed."},{"$f":"VLOOKUP(B6,'LOC FINAL with new Themes'!A:M,12,0)","v":"ESI is the common abbreviation for these maps. Other than that, Environmental Sensitivity Index Maps, Shoreline Sensitivity maps, Environmental Sensitivity maps..... These maps have the classified shoreline, as well as summaries of biological and human use resource particularly sensitive to oiling. "},{"$f":"VLOOKUP(B6,'LOC FINAL with new Themes'!A:M,13,0)","v":"M "}]
["GAP Program Dataset","GAP Program Dataset","GAP Program Dataset","GAP Program Dataset","Biota","DOI-USGS","Kevin Gergely","gergely@usgs.gov",{"$f":"VLOOKUP(B7,'LOC FINAL with new Themes'!A:M,7,0)","v":"POC; multiple data sets in single location, building three fundamental data layers, two are national (protected areas, land cover dataset); backup; six months, annually)"},{"$f":"VLOOKUP(B7,'LOC FINAL with new Themes'!A:M,8,0)","v":0},{"$f":"VLOOKUP(B7,'LOC FINAL with new Themes'!A:M,9,0)","v":0},{"$f":"VLOOKUP(B7,'LOC FINAL with new Themes'!A:M,10,0)","v":0},{"$f":"VLOOKUP(B7,'LOC FINAL with new Themes'!A:M,11,0)","v":0},{"$f":"VLOOKUP(B7,'LOC FINAL with new Themes'!A:M,12,0)","v":0},{"$f":"VLOOKUP(B7,'LOC FINAL with new Themes'!A:M,13,0)","v":"P"}]
["National Standardized Ecosystems Dataset","National Standardized Ecosystems Dataset","National Standardized Ecosystems Dataset","National Standardized Ecosystems Dataset","Biota","DOI-USGS","Roger Sayre","rsayre@usgs.gov",{"$f":"VLOOKUP(B8,'LOC FINAL with new Themes'!A:M,7,0)","v":0},{"$f":"VLOOKUP(B8,'LOC FINAL with new Themes'!A:M,8,0)","v":0},{"$f":"VLOOKUP(B8,'LOC FINAL with new Themes'!A:M,9,0)","v":0},{"$f":"VLOOKUP(B8,'LOC FINAL with new Themes'!A:M,10,0)","v":0},{"$f":"VLOOKUP(B8,'LOC FINAL with new Themes'!A:M,11,0)","v":0},{"$f":"VLOOKUP(B8,'LOC FINAL with new Themes'!A:M,12,0)","v":0},{"$f":"VLOOKUP(B8,'LOC FINAL with new Themes'!A:M,13,0)","v":0}]
[null,null,"Recovery Range for listed species ","Recovery Range for listed species ","Biota","DOI-FWS"]
[null,null,"Section 7 Range for listed species ","Section 7 Range for listed species ","Biota","DOI-FWS"]
["Biomes, Ecoregions","Biomes, Ecoregions",null,"Biomes, Ecoregions","Biota ","DOI-USGS","Dan Phillips ","dphillips@usgs.gov",{"$f":"VLOOKUP(B11,'LOC FINAL with new Themes'!A:M,7,0)","v":0},{"$f":"VLOOKUP(B11,'LOC FINAL with new Themes'!A:M,8,0)","v":0},{"$f":"VLOOKUP(B11,'LOC FINAL with new Themes'!A:M,9,0)","v":0},{"$f":"VLOOKUP(B11,'LOC FINAL with new Themes'!A:M,10,0)","v":0},{"$f":"VLOOKUP(B11,'LOC FINAL with new Themes'!A:M,11,0)","v":0},{"$f":"VLOOKUP(B11,'LOC FINAL with new Themes'!A:M,12,0)","v":0},{"$f":"VLOOKUP(B11,'LOC FINAL with new Themes'!A:M,13,0)","v":0}]
["Ecological Services","Ecological Services",null,"Ecological Services","Biota ","DOI-USGS","Dan Phillips ","dphillips@usgs.gov",{"$f":"VLOOKUP(B12,'LOC FINAL with new Themes'!A:M,7,0)","v":0},{"$f":"VLOOKUP(B12,'LOC FINAL with new Themes'!A:M,8,0)","v":0},{"$f":"VLOOKUP(B12,'LOC FINAL with new Themes'!A:M,9,0)","v":0},{"$f":"VLOOKUP(B12,'LOC FINAL with new Themes'!A:M,10,0)","v":0},{"$f":"VLOOKUP(B12,'LOC FINAL with new Themes'!A:M,11,0)","v":0},{"$f":"VLOOKUP(B12,'LOC FINAL with new Themes'!A:M,12,0)","v":0},{"$f":"VLOOKUP(B12,'LOC FINAL with new Themes'!A:M,13,0)","v":0}]
["Habitats","Habitats",null,"Habitats","Biota ","DOI-USGS","Dan Phillips ","dphillips@usgs.gov",{"$f":"VLOOKUP(B13,'LOC FINAL with new Themes'!A:M,7,0)","v":"see protected areas and land cover set; vertebrae species of US being developed (not complete for all species they want to include in it."},{"$f":"VLOOKUP(B13,'LOC FINAL with new Themes'!A:M,8,0)","v":0},{"$f":"VLOOKUP(B13,'LOC FINAL with new Themes'!A:M,9,0)","v":0},{"$f":"VLOOKUP(B13,'LOC FINAL with new Themes'!A:M,10,0)","v":0},{"$f":"VLOOKUP(B13,'LOC FINAL with new Themes'!A:M,11,0)","v":0},{"$f":"VLOOKUP(B13,'LOC FINAL with new Themes'!A:M,12,0)","v":0},{"$f":"VLOOKUP(B13,'LOC FINAL with new Themes'!A:M,13,0)","v":"M"}]
["Invasive Species","Invasive Species",null,"Invasive Species","Biota ","DOI-USGS","Dan Phillips ","dphillips@usgs.gov",{"$f":"VLOOKUP(B14,'LOC FINAL with new Themes'!A:M,7,0)","v":"There are hundreds of datasets that are produced and maintained by the GAP program. Dan is not the data set manager, but I work with the people that maintain and update the datasets and maintains metadata.The data are updated at different intervals, especially now that they have moved more to a regional and national based approach. GAPS data sets presumably archived since 1990s."},{"$f":"VLOOKUP(B14,'LOC FINAL with new Themes'!A:M,8,0)","v":0},{"$f":"VLOOKUP(B14,'LOC FINAL with new Themes'!A:M,9,0)","v":0},{"$f":"VLOOKUP(B14,'LOC FINAL with new Themes'!A:M,10,0)","v":0},{"$f":"VLOOKUP(B14,'LOC FINAL with new Themes'!A:M,11,0)","v":0},{"$f":"VLOOKUP(B14,'LOC FINAL with new Themes'!A:M,12,0)","v":0},{"$f":"VLOOKUP(B14,'LOC FINAL with new Themes'!A:M,13,0)","v":"M"}]
["Species Distribution(amphibians, birds, reptiles, mammals, fishes, plants, etc)","Species Distribution (amphibians, birds, reptiles, mammals, fishes, plants, etc)",null,"Species Distribution (amphibians, birds, reptiles, mammals, fishes, plants, etc)","Biota ","DOI-USGS","Dan Phillips ","dphillips@usgs.gov",{"$f":"VLOOKUP(B15,'LOC FINAL with new Themes'!A:M,7,0)","v":"There are hundreds of datasets that are produced and maintained by the GAP program. Dan is not the data set manager, but I work with the people that maintain and update the datasets and maintains metadata. The data are updated at different intervals, especially now that they have moved more to a regional and national based approach. GAPS data sets presumably archived since 1990s."},{"$f":"VLOOKUP(B15,'LOC FINAL with new Themes'!A:M,8,0)","v":0},{"$f":"VLOOKUP(B15,'LOC FINAL with new Themes'!A:M,9,0)","v":0},{"$f":"VLOOKUP(B15,'LOC FINAL with new Themes'!A:M,10,0)","v":0},{"$f":"VLOOKUP(B15,'LOC FINAL with new Themes'!A:M,11,0)","v":0},{"$f":"VLOOKUP(B15,'LOC FINAL with new Themes'!A:M,12,0)","v":0},{"$f":"VLOOKUP(B15,'LOC FINAL with new Themes'!A:M,13,0)","v":"M"}]
[null,null,null,{"$f":"SUBTOTAL(3,D2:D15)","v":14},"Biota Count"]
["General Land Office","General Land Office","General Land Office",{"$f":"IF(C17=0,B17,C17)","v":"General Land Office"},"Cadastre","DOI-BLM","Juan Palma","juan_palma@blm.gov",{"$f":"VLOOKUP(B17,'LOC FINAL with new Themes'!A:M,7,0)","v":0},{"$f":"VLOOKUP(B17,'LOC FINAL with new Themes'!A:M,8,0)","v":0},{"$f":"VLOOKUP(B17,'LOC FINAL with new Themes'!A:M,9,0)","v":0},{"$f":"VLOOKUP(B17,'LOC FINAL with new Themes'!A:M,10,0)","v":0},{"$f":"VLOOKUP(B17,'LOC FINAL with new Themes'!A:M,11,0)","v":0},{"$f":"VLOOKUP(B17,'LOC FINAL with new Themes'!A:M,12,0)","v":0},{"$f":"VLOOKUP(B17,'LOC FINAL with new Themes'!A:M,13,0)","v":0}]
["Geographic Coordinate Data Base (GCDB)","Geographic Coordinate Data Base (GCDB)",null,"Geographic Coordinate Data Base (GCDB)","Cadastre","DOI-BLM","Don Buhler","don_buhler@blm.gov",{"$f":"VLOOKUP(B18,'LOC FINAL with new Themes'!A:M,7,0)","v":"every agency has its own database; multiple data sets; standard being advanced and put into practice; federal interest is managed with BLM; state and local are authoritative sets for other lands; "},{"$f":"VLOOKUP(B18,'LOC FINAL with new Themes'!A:M,8,0)","v":0},{"$f":"VLOOKUP(B18,'LOC FINAL with new Themes'!A:M,9,0)","v":0},{"$f":"VLOOKUP(B18,'LOC FINAL with new Themes'!A:M,10,0)","v":0},{"$f":"VLOOKUP(B18,'LOC FINAL with new Themes'!A:M,11,0)","v":0},{"$f":"VLOOKUP(B18,'LOC FINAL with new Themes'!A:M,12,0)","v":0},{"$f":"VLOOKUP(B18,'LOC FINAL with new Themes'!A:M,13,0)","v":"M "}]
["LR 2000 - Master Title Plats ","LR 2000 - Master Title Plats ","LR 2000 - Attribute Information","LR 2000 - Attribute Information","Cadastre","DOI-BLM","Jeff Holdren","jeff_holdren@blm.gov",{"$f":"VLOOKUP(B19,'LOC FINAL with new Themes'!A:M,7,0)","v":"listing of sales, rents, agricultural disposal and rights of way cases, group of data sets in one system; Kim Burns, division chief; not archived, there is a backup; Denver office handles"},{"$f":"VLOOKUP(B19,'LOC FINAL with new Themes'!A:M,8,0)","v":0},{"$f":"VLOOKUP(B19,'LOC FINAL with new Themes'!A:M,9,0)","v":0},{"$f":"VLOOKUP(B19,'LOC FINAL with new Themes'!A:M,10,0)","v":0},{"$f":"VLOOKUP(B19,'LOC FINAL with new Themes'!A:M,11,0)","v":0},{"$f":"VLOOKUP(B19,'LOC FINAL with new Themes'!A:M,12,0)","v":0},{"$f":"VLOOKUP(B19,'LOC FINAL with new Themes'!A:M,13,0)","v":"P"}]
["Manual of Surveying Instructions, Data Standards","Manual of Surveying Instructions, Data Standards",null,"Manual of Surveying Instructions, Data Standards","Cadastre","DOI-BLM","Don Buhler","don_buhler@blm.gov",{"$f":"VLOOKUP(B20,'LOC FINAL with new Themes'!A:M,7,0)","v":0},{"$f":"VLOOKUP(B20,'LOC FINAL with new Themes'!A:M,8,0)","v":0},{"$f":"VLOOKUP(B20,'LOC FINAL with new Themes'!A:M,9,0)","v":0},{"$f":"VLOOKUP(B20,'LOC FINAL with new Themes'!A:M,10,0)","v":0},{"$f":"VLOOKUP(B20,'LOC FINAL with new Themes'!A:M,11,0)","v":0},{"$f":"VLOOKUP(B20,'LOC FINAL with new Themes'!A:M,12,0)","v":0},{"$f":"VLOOKUP(B20,'LOC FINAL with new Themes'!A:M,13,0)","v":0}]
["Mineral Estate - Fluids","Mineral Estate - Fluids",null,"Mineral Estate - Fluids","Cadastre","DOI-BLM","Tim Spisak ","tim_spisak@blm.gov",{"$f":"VLOOKUP(B21,'LOC FINAL with new Themes'!A:M,7,0)","v":"mineral leasess, mining claims, rights of way, gases (single data set); BLM-managed lands but managed all federal mineral estate (comprehensive for mineraal estate) some electronic and some not"},{"$f":"VLOOKUP(B21,'LOC FINAL with new Themes'!A:M,8,0)","v":0},{"$f":"VLOOKUP(B21,'LOC FINAL with new Themes'!A:M,9,0)","v":0},{"$f":"VLOOKUP(B21,'LOC FINAL with new Themes'!A:M,10,0)","v":0},{"$f":"VLOOKUP(B21,'LOC FINAL with new Themes'!A:M,11,0)","v":0},{"$f":"VLOOKUP(B21,'LOC FINAL with new Themes'!A:M,12,0)","v":0},{"$f":"VLOOKUP(B21,'LOC FINAL with new Themes'!A:M,13,0)","v":"P"}]
["Mineral Estate - Solids","Mineral Estate - Solids",null,"Mineral Estate - Solids","Cadastre","DOI-BLM","Mitchell Leverette","mitchell_leverette@blm.gov",{"$f":"VLOOKUP(B22,'LOC FINAL with new Themes'!A:M,7,0)","v":"mineral leasess, mining claims, rights of way, gases (single data set); BLM-managed lands but managed all federal mineral estate (comprehensive for mineral estate) some electronic and some not"},{"$f":"VLOOKUP(B22,'LOC FINAL with new Themes'!A:M,8,0)","v":0},{"$f":"VLOOKUP(B22,'LOC FINAL with new Themes'!A:M,9,0)","v":0},{"$f":"VLOOKUP(B22,'LOC FINAL with new Themes'!A:M,10,0)","v":0},{"$f":"VLOOKUP(B22,'LOC FINAL with new Themes'!A:M,11,0)","v":0},{"$f":"VLOOKUP(B22,'LOC FINAL with new Themes'!A:M,12,0)","v":0},{"$f":"VLOOKUP(B22,'LOC FINAL with new Themes'!A:M,13,0)","v":"P"}]
["Multipurpose Marine Cadastre","Multipurpose Marine Cadastre","Multipurpose Marine Cadastre","Multipurpose Marine Cadastre","Cadastre","DOI-BOEM","Doug Vandegraft","douglas.vandegraft@boemre.gov",{"$f":"VLOOKUP(B23,'LOC FINAL with new Themes'!A:M,7,0)","v":"undeliverable email- neeed to identify new contact"},{"$f":"VLOOKUP(B23,'LOC FINAL with new Themes'!A:M,8,0)","v":0},{"$f":"VLOOKUP(B23,'LOC FINAL with new Themes'!A:M,9,0)","v":0},{"$f":"VLOOKUP(B23,'LOC FINAL with new Themes'!A:M,10,0)","v":0},{"$f":"VLOOKUP(B23,'LOC FINAL with new Themes'!A:M,11,0)","v":0},{"$f":"VLOOKUP(B23,'LOC FINAL with new Themes'!A:M,12,0)","v":0},{"$f":"VLOOKUP(B23,'LOC FINAL with new Themes'!A:M,13,0)","v":0}]
[null,null,"PADUS (Protected Areas Database of the US)","PADUS (Protected Areas Database of the US)","Cadastre","DOI-USGS"]
["Parcels","Parcels","Parcels","Parcels","Cadastre","DOI-BLM","Bob Ader","bob_ader@blm.gov",{"$f":"VLOOKUP(B25,'LOC FINAL with new Themes'!A:M,7,0)","v":"every agency has its own database; multiple data sets; standard being advanced and put into practice; federal interest is managed with BLM; state and local are authoritative sets for other lands; current effort of federal inventory "},{"$f":"VLOOKUP(B25,'LOC FINAL with new Themes'!A:M,8,0)","v":0},{"$f":"VLOOKUP(B25,'LOC FINAL with new Themes'!A:M,9,0)","v":0},{"$f":"VLOOKUP(B25,'LOC FINAL with new Themes'!A:M,10,0)","v":0},{"$f":"VLOOKUP(B25,'LOC FINAL with new Themes'!A:M,11,0)","v":0},{"$f":"VLOOKUP(B25,'LOC FINAL with new Themes'!A:M,12,0)","v":0},{"$f":"VLOOKUP(B25,'LOC FINAL with new Themes'!A:M,13,0)","v":"M "}]
[null,null,"Protractions","Protractions","Cadastre","DOI-MMS"]
["Surface Estate","Surface Estate",null,"Surface Estate","Cadastre","DOI-BLM","Kim Burns","kim_m_burns@blm.gov",{"$f":"VLOOKUP(B27,'LOC FINAL with new Themes'!A:M,7,0)","v":"lands administered by BLM; other agencies have own system; ownership of lands;  Tim Spisak, division chief; not archived, there is a backup; Denver office handles"},{"$f":"VLOOKUP(B27,'LOC FINAL with new Themes'!A:M,8,0)","v":0},{"$f":"VLOOKUP(B27,'LOC FINAL with new Themes'!A:M,9,0)","v":0},{"$f":"VLOOKUP(B27,'LOC FINAL with new Themes'!A:M,10,0)","v":0},{"$f":"VLOOKUP(B27,'LOC FINAL with new Themes'!A:M,11,0)","v":0},{"$f":"VLOOKUP(B27,'LOC FINAL with new Themes'!A:M,12,0)","v":0},{"$f":"VLOOKUP(B27,'LOC FINAL with new Themes'!A:M,13,0)","v":0}]
["U.S. Official Cadastral Survey Records","U.S. Official Cadastral Survey Records","U.S. Official Cadastral Survey Records","U.S. Official Cadastral Survey Records","Cadastre","DOI-BLM","Don Buhler","don_buhler@blm.gov",{"$f":"VLOOKUP(B28,'LOC FINAL with new Themes'!A:M,7,0)","v":"every agency has its own database; multiple data sets; standard being advanced and put into practice; federal interest is managed with BLM; state and local are authoritative sets for other lands; state offices are scanning these records (survey plats and field notes); CDI (conveyence cards)"},{"$f":"VLOOKUP(B28,'LOC FINAL with new Themes'!A:M,8,0)","v":0},{"$f":"VLOOKUP(B28,'LOC FINAL with new Themes'!A:M,9,0)","v":0},{"$f":"VLOOKUP(B28,'LOC FINAL with new Themes'!A:M,10,0)","v":0},{"$f":"VLOOKUP(B28,'LOC FINAL with new Themes'!A:M,11,0)","v":0},{"$f":"VLOOKUP(B28,'LOC FINAL with new Themes'!A:M,12,0)","v":0},{"$f":"VLOOKUP(B28,'LOC FINAL with new Themes'!A:M,13,0)","v":"M "}]
["U.S. Public Land Survey System","U.S. Public Land Survey System","U.S. Public Land Survey System","U.S. Public Land Survey System","Cadastre","DOI-BLM","Don Buhler","don_buhler@blm.gov",{"$f":"VLOOKUP(B29,'LOC FINAL with new Themes'!A:M,7,0)","v":"only federal agency that administers the PLSS; trying to get it to be logically one data set with different regions. (working copies for nine states in West); keep historical record in data base; schema 2 is the version to look at for archiving some time March 2012"},{"$f":"VLOOKUP(B29,'LOC FINAL with new Themes'!A:M,8,0)","v":0},{"$f":"VLOOKUP(B29,'LOC FINAL with new Themes'!A:M,9,0)","v":0},{"$f":"VLOOKUP(B29,'LOC FINAL with new Themes'!A:M,10,0)","v":0},{"$f":"VLOOKUP(B29,'LOC FINAL with new Themes'!A:M,11,0)","v":0},{"$f":"VLOOKUP(B29,'LOC FINAL with new Themes'!A:M,12,0)","v":0},{"$f":"VLOOKUP(B29,'LOC FINAL with new Themes'!A:M,13,0)","v":"P"}]
[null,null,null,{"$f":"SUBTOTAL(3,D17:D29)","v":13},"Cadastre Count"]
["Blended Sea Surface Temperature","Blended Sea Surface Temperature","Blended Sea Surface Temperature",{"$f":"IF(C31=0,B31,C31)","v":"Blended Sea Surface Temperature"},"Climate and Weather ","DOC-NOAA","Viva Banzon","Viva.Banzon@noaa.gov",{"$f":"VLOOKUP(B31,'LOC FINAL with new Themes'!A:M,7,0)","v":0},{"$f":"VLOOKUP(B31,'LOC FINAL with new Themes'!A:M,8,0)","v":0},{"$f":"VLOOKUP(B31,'LOC FINAL with new Themes'!A:M,9,0)","v":0},{"$f":"VLOOKUP(B31,'LOC FINAL with new Themes'!A:M,10,0)","v":0},{"$f":"VLOOKUP(B31,'LOC FINAL with new Themes'!A:M,11,0)","v":0},{"$f":"VLOOKUP(B31,'LOC FINAL with new Themes'!A:M,12,0)","v":0},{"$f":"VLOOKUP(B31,'LOC FINAL with new Themes'!A:M,13,0)","v":0}]
["Climate Data Sets ","Climate Datasets ",null,"Climate Datasets ","Climate and Weather ","USDA-NRCS","Jan Curtis","jan.curtis@por.usda.gov",{"$f":"VLOOKUP(B32,'LOC FINAL with new Themes'!A:M,7,0)","v":"Other climate data acquired from our SNOTEL and SCAN observation networks can be accessed from these links."},{"$f":"VLOOKUP(B32,'LOC FINAL with new Themes'!A:M,8,0)","v":0},{"$f":"VLOOKUP(B32,'LOC FINAL with new Themes'!A:M,9,0)","v":0},{"$f":"VLOOKUP(B32,'LOC FINAL with new Themes'!A:M,10,0)","v":0},{"$f":"VLOOKUP(B32,'LOC FINAL with new Themes'!A:M,11,0)","v":0},{"$f":"VLOOKUP(B32,'LOC FINAL with new Themes'!A:M,12,0)","v":0},{"$f":"VLOOKUP(B32,'LOC FINAL with new Themes'!A:M,13,0)","v":"M"}]
["Geostationary Operational Environmental Satellite (GOES) data (NCDC)","Geostationary Operational Environmental Satellite (GOES) data (NCDC)","Geostationary Operational Environmental Satellite (GOES) data (NCDC)","Geostationary Operational Environmental Satellite (GOES) data (NCDC)","Climate and Weather ","DOC-NOAA","Nancy Ritchey","Nancy.Ritchey@noaa.gov",{"$f":"VLOOKUP(B33,'LOC FINAL with new Themes'!A:M,7,0)","v":"Define 'data set'.  Each spacecraft continuously produces a data stream.  There are multiple sets and the total going back to the late 70s or early 80s numbers in the millions"},{"$f":"VLOOKUP(B33,'LOC FINAL with new Themes'!A:M,8,0)","v":"Yes"},{"$f":"VLOOKUP(B33,'LOC FINAL with new Themes'!A:M,9,0)","v":"Yes"},{"$f":"VLOOKUP(B33,'LOC FINAL with new Themes'!A:M,10,0)","v":"Continuously"},{"$f":"VLOOKUP(B33,'LOC FINAL with new Themes'!A:M,11,0)","v":"There are two active archive centers for these data; one here in Asheville, NC and one in Boulder, CO.  These data go back to the late 70s and all data are on line wither on disc or robotic tape storage"},{"$f":"VLOOKUP(B33,'LOC FINAL with new Themes'!A:M,12,0)","v":"Again, define your terms.  For examples see www.class.noaa.gov - Raw data are listed by satellite (GOES or POES) and then be instrument.  Geophysical products are listed by product name."},{"$f":"VLOOKUP(B33,'LOC FINAL with new Themes'!A:M,13,0)","v":0}]
[null,null,"MODIS-based Atmospheric Products","MODIS-based Atmospheric Products","Climate and Weather ","USDA -FS (Along with USGS)"]
["National Climate Data Center","National Climate Data Center",null,"National Climate Data Center","Climate and Weather ","USDA-NRCS","Jan Curtis","jan.curtis@por.usda.gov",{"$f":"VLOOKUP(B35,'LOC FINAL with new Themes'!A:M,7,0)","v":"administered by NOAA - is there a contact there?"},{"$f":"VLOOKUP(B35,'LOC FINAL with new Themes'!A:M,8,0)","v":0},{"$f":"VLOOKUP(B35,'LOC FINAL with new Themes'!A:M,9,0)","v":0},{"$f":"VLOOKUP(B35,'LOC FINAL with new Themes'!A:M,10,0)","v":0},{"$f":"VLOOKUP(B35,'LOC FINAL with new Themes'!A:M,11,0)","v":0},{"$f":"VLOOKUP(B35,'LOC FINAL with new Themes'!A:M,12,0)","v":0},{"$f":"VLOOKUP(B35,'LOC FINAL with new Themes'!A:M,13,0)","v":0}]
[null,null,"National Doplar Radar Data (NEXRAD)","National Doplar Radar Data (NEXRAD)","Climate and Weather ","DOC-NOAA"]
[null,null,"NOAA National Weather Service GIS Data",{"$f":"IF(C37=0,B37,C37)","v":"NOAA National Weather Service GIS Data"},"Climate and Weather ","DOC-NOAA"]
["Parameter-elevation Regressions on Independent Slopes Model (PRISM) Data Sets","Parameter-elevation Regressions on Independent Slopes Model (PRISM) Datasets","Parameter-elevation Regressions on Independent Slopes Model (PRISM) Datasets",{"$f":"IF(C38=0,B38,C38)","v":"Parameter-elevation Regressions on Independent Slopes Model (PRISM) Datasets"},"Climate and Weather ","USDA-NRCS","Jan Curtis","jan.curtis@por.usda.gov",{"$f":"VLOOKUP(B38,'LOC FINAL with new Themes'!A:M,7,0)","v":"info provided via http://www.prism.oregonstate.edu/ and \nhttp://www.nrcs.usda.gov/wps/portal/nrcs/main/?ss=16&navtype=SubNavigation&cid=null&navid=850130000000000&pnavid=850000000000000&position=SubNavigation&ttype=main&pname=USDA%2520NRCS%2520-%2520Natural%2520Resources%2520Conservation%2520Service\n"},{"$f":"VLOOKUP(B38,'LOC FINAL with new Themes'!A:M,8,0)","v":0},{"$f":"VLOOKUP(B38,'LOC FINAL with new Themes'!A:M,9,0)","v":0},{"$f":"VLOOKUP(B38,'LOC FINAL with new Themes'!A:M,10,0)","v":0},{"$f":"VLOOKUP(B38,'LOC FINAL with new Themes'!A:M,11,0)","v":0},{"$f":"VLOOKUP(B38,'LOC FINAL with new Themes'!A:M,12,0)","v":0},{"$f":"VLOOKUP(B38,'LOC FINAL with new Themes'!A:M,13,0)","v":"M"}]
["Polar Operational Environmental Satellite (POES) data (NCDC)","Polar Operational Environmental Satellite (POES) data","Polar Operational Environmental Satellite (POES) data",{"$f":"IF(C39=0,B39,C39)","v":"Polar Operational Environmental Satellite (POES) data"},"Climate and Weather ","DOC-NOAA","John Bates","john.j.bates@noaa.gov",{"$f":"VLOOKUP(B39,'LOC FINAL with new Themes'!A:M,7,0)","v":0},{"$f":"VLOOKUP(B39,'LOC FINAL with new Themes'!A:M,8,0)","v":0},{"$f":"VLOOKUP(B39,'LOC FINAL with new Themes'!A:M,9,0)","v":0},{"$f":"VLOOKUP(B39,'LOC FINAL with new Themes'!A:M,10,0)","v":0},{"$f":"VLOOKUP(B39,'LOC FINAL with new Themes'!A:M,11,0)","v":0},{"$f":"VLOOKUP(B39,'LOC FINAL with new Themes'!A:M,12,0)","v":0},{"$f":"VLOOKUP(B39,'LOC FINAL with new Themes'!A:M,13,0)","v":0}]
[null,null,null,{"$f":"SUBTOTAL(3,D31:D39)","v":9},"Climate and Weather  Count"]
[null,"5-digit ZIP Code Tabulation Area (Census 2000)","5-digit ZIP Code Tabulation Area (Census 2000)",{"$f":"IF(C41=0,B41,C41)","v":"5-digit ZIP Code Tabulation Area (Census 2000)"},"Cultural & Demographic Statistics ","DOC-Census","Jennifer Holland","Jennifer.L.Holland@census.gov",{"$f":"VLOOKUP(B41,'LOC FINAL with new Themes'!A:M,7,0)","v":0},{"$f":"VLOOKUP(B41,'LOC FINAL with new Themes'!A:M,8,0)","v":0},{"$f":"VLOOKUP(B41,'LOC FINAL with new Themes'!A:M,9,0)","v":0},{"$f":"VLOOKUP(B41,'LOC FINAL with new Themes'!A:M,10,0)","v":0},{"$f":"VLOOKUP(B41,'LOC FINAL with new Themes'!A:M,11,0)","v":0},{"$f":"VLOOKUP(B41,'LOC FINAL with new Themes'!A:M,12,0)","v":0},{"$f":"VLOOKUP(B41,'LOC FINAL with new Themes'!A:M,13,0)","v":0}]
["AIR, ANVSA, Hawaiian Homelands Boundaries","AIR, ANVSA, Hawaiian Homelands Boundaries",null,"AIR, ANVSA, Hawaiian Homelands Boundaries","Cultural & Demographic Statistics ","DOC-Census","Randy Fusaro","randy.j.fusaro@census.gov",{"$f":"VLOOKUP(B42,'LOC FINAL with new Themes'!A:M,7,0)","v":0},{"$f":"VLOOKUP(B42,'LOC FINAL with new Themes'!A:M,8,0)","v":0},{"$f":"VLOOKUP(B42,'LOC FINAL with new Themes'!A:M,9,0)","v":0},{"$f":"VLOOKUP(B42,'LOC FINAL with new Themes'!A:M,10,0)","v":0},{"$f":"VLOOKUP(B42,'LOC FINAL with new Themes'!A:M,11,0)","v":0},{"$f":"VLOOKUP(B42,'LOC FINAL with new Themes'!A:M,12,0)","v":0},{"$f":"VLOOKUP(B42,'LOC FINAL with new Themes'!A:M,13,0)","v":0}]
[null,"All Lines (2010 Census)","All Lines (2010 Census)","All Lines (2010 Census)","Cultural & Demographic Statistics ","DOC-Census","Jennifer Holland","Jennifer.L.Holland@census.gov",{"$f":"VLOOKUP(B43,'LOC FINAL with new Themes'!A:M,7,0)","v":0},{"$f":"VLOOKUP(B43,'LOC FINAL with new Themes'!A:M,8,0)","v":0},{"$f":"VLOOKUP(B43,'LOC FINAL with new Themes'!A:M,9,0)","v":0},{"$f":"VLOOKUP(B43,'LOC FINAL with new Themes'!A:M,10,0)","v":0},{"$f":"VLOOKUP(B43,'LOC FINAL with new Themes'!A:M,11,0)","v":0},{"$f":"VLOOKUP(B43,'LOC FINAL with new Themes'!A:M,12,0)","v":0},{"$f":"VLOOKUP(B43,'LOC FINAL with new Themes'!A:M,13,0)","v":0}]
[null,"ANSI codes for  metro/micropolitan areas","ANSI codes for  metro/micropolitan areas","ANSI codes for  metro/micropolitan areas","Cultural & Demographic Statistics ","DOC-Census","Jennifer Holland","Jennifer.L.Holland@census.gov",{"$f":"VLOOKUP(B44,'LOC FINAL with new Themes'!A:M,7,0)","v":0},{"$f":"VLOOKUP(B44,'LOC FINAL with new Themes'!A:M,8,0)","v":0},{"$f":"VLOOKUP(B44,'LOC FINAL with new Themes'!A:M,9,0)","v":0},{"$f":"VLOOKUP(B44,'LOC FINAL with new Themes'!A:M,10,0)","v":0},{"$f":"VLOOKUP(B44,'LOC FINAL with new Themes'!A:M,11,0)","v":0},{"$f":"VLOOKUP(B44,'LOC FINAL with new Themes'!A:M,12,0)","v":0},{"$f":"VLOOKUP(B44,'LOC FINAL with new Themes'!A:M,13,0)","v":0}]
[null,"ANSI codes for congressional districts","ANSI codes for congressional districts","ANSI codes for congressional districts","Cultural & Demographic Statistics ","DOC-Census","Jennifer Holland","Jennifer.L.Holland@census.gov",{"$f":"VLOOKUP(B45,'LOC FINAL with new Themes'!A:M,7,0)","v":0},{"$f":"VLOOKUP(B45,'LOC FINAL with new Themes'!A:M,8,0)","v":0},{"$f":"VLOOKUP(B45,'LOC FINAL with new Themes'!A:M,9,0)","v":0},{"$f":"VLOOKUP(B45,'LOC FINAL with new Themes'!A:M,10,0)","v":0},{"$f":"VLOOKUP(B45,'LOC FINAL with new Themes'!A:M,11,0)","v":0},{"$f":"VLOOKUP(B45,'LOC FINAL with new Themes'!A:M,12,0)","v":0},{"$f":"VLOOKUP(B45,'LOC FINAL with new Themes'!A:M,13,0)","v":0}]
[null,"ANSI codes for counties","ANSI codes for counties","ANSI codes for counties","Cultural & Demographic Statistics ","DOC-Census","Jennifer Holland","Jennifer.L.Holland@census.gov",{"$f":"VLOOKUP(B46,'LOC FINAL with new Themes'!A:M,7,0)","v":0},{"$f":"VLOOKUP(B46,'LOC FINAL with new Themes'!A:M,8,0)","v":0},{"$f":"VLOOKUP(B46,'LOC FINAL with new Themes'!A:M,9,0)","v":0},{"$f":"VLOOKUP(B46,'LOC FINAL with new Themes'!A:M,10,0)","v":0},{"$f":"VLOOKUP(B46,'LOC FINAL with new Themes'!A:M,11,0)","v":0},{"$f":"VLOOKUP(B46,'LOC FINAL with new Themes'!A:M,12,0)","v":0},{"$f":"VLOOKUP(B46,'LOC FINAL with new Themes'!A:M,13,0)","v":0}]
[null,"ANSI codes for states","ANSI codes for states","ANSI codes for states","Cultural & Demographic Statistics ","DOC-Census","Jennifer Holland","Jennifer.L.Holland@census.gov",{"$f":"VLOOKUP(B47,'LOC FINAL with new Themes'!A:M,7,0)","v":0},{"$f":"VLOOKUP(B47,'LOC FINAL with new Themes'!A:M,8,0)","v":0},{"$f":"VLOOKUP(B47,'LOC FINAL with new Themes'!A:M,9,0)","v":0},{"$f":"VLOOKUP(B47,'LOC FINAL with new Themes'!A:M,10,0)","v":0},{"$f":"VLOOKUP(B47,'LOC FINAL with new Themes'!A:M,11,0)","v":0},{"$f":"VLOOKUP(B47,'LOC FINAL with new Themes'!A:M,12,0)","v":0},{"$f":"VLOOKUP(B47,'LOC FINAL with new Themes'!A:M,13,0)","v":0}]
[null,"Block (2010 Census)","Block (2010 Census)","Block (2010 Census)","Cultural & Demographic Statistics ","DOC-Census","Jennifer Holland","Jennifer.L.Holland@census.gov",{"$f":"VLOOKUP(B48,'LOC FINAL with new Themes'!A:M,7,0)","v":0},{"$f":"VLOOKUP(B48,'LOC FINAL with new Themes'!A:M,8,0)","v":0},{"$f":"VLOOKUP(B48,'LOC FINAL with new Themes'!A:M,9,0)","v":0},{"$f":"VLOOKUP(B48,'LOC FINAL with new Themes'!A:M,10,0)","v":0},{"$f":"VLOOKUP(B48,'LOC FINAL with new Themes'!A:M,11,0)","v":0},{"$f":"VLOOKUP(B48,'LOC FINAL with new Themes'!A:M,12,0)","v":0},{"$f":"VLOOKUP(B48,'LOC FINAL with new Themes'!A:M,13,0)","v":0}]
[null,"Block (Census 2000)","Block (Census 2000)","Block (Census 2000)","Cultural & Demographic Statistics ","DOC-Census","Jennifer Holland","Jennifer.L.Holland@census.gov",{"$f":"VLOOKUP(B49,'LOC FINAL with new Themes'!A:M,7,0)","v":0},{"$f":"VLOOKUP(B49,'LOC FINAL with new Themes'!A:M,8,0)","v":0},{"$f":"VLOOKUP(B49,'LOC FINAL with new Themes'!A:M,9,0)","v":0},{"$f":"VLOOKUP(B49,'LOC FINAL with new Themes'!A:M,10,0)","v":0},{"$f":"VLOOKUP(B49,'LOC FINAL with new Themes'!A:M,11,0)","v":0},{"$f":"VLOOKUP(B49,'LOC FINAL with new Themes'!A:M,12,0)","v":0},{"$f":"VLOOKUP(B49,'LOC FINAL with new Themes'!A:M,13,0)","v":0}]
[null,"Block Group (Census 2000)","Block Group (Census 2000)","Block Group (Census 2000)","Cultural & Demographic Statistics ","DOC-Census","Jennifer Holland","Jennifer.L.Holland@census.gov",{"$f":"VLOOKUP(B50,'LOC FINAL with new Themes'!A:M,7,0)","v":0},{"$f":"VLOOKUP(B50,'LOC FINAL with new Themes'!A:M,8,0)","v":0},{"$f":"VLOOKUP(B50,'LOC FINAL with new Themes'!A:M,9,0)","v":0},{"$f":"VLOOKUP(B50,'LOC FINAL with new Themes'!A:M,10,0)","v":0},{"$f":"VLOOKUP(B50,'LOC FINAL with new Themes'!A:M,11,0)","v":0},{"$f":"VLOOKUP(B50,'LOC FINAL with new Themes'!A:M,12,0)","v":0},{"$f":"VLOOKUP(B50,'LOC FINAL with new Themes'!A:M,13,0)","v":0}]
[null,"Block Group (Census 2010)","Block Group (Census 2010)","Block Group (Census 2010)","Cultural & Demographic Statistics ","DOC-Census","Jennifer Holland","Jennifer.L.Holland@census.gov",{"$f":"VLOOKUP(B51,'LOC FINAL with new Themes'!A:M,7,0)","v":0},{"$f":"VLOOKUP(B51,'LOC FINAL with new Themes'!A:M,8,0)","v":0},{"$f":"VLOOKUP(B51,'LOC FINAL with new Themes'!A:M,9,0)","v":0},{"$f":"VLOOKUP(B51,'LOC FINAL with new Themes'!A:M,10,0)","v":0},{"$f":"VLOOKUP(B51,'LOC FINAL with new Themes'!A:M,11,0)","v":0},{"$f":"VLOOKUP(B51,'LOC FINAL with new Themes'!A:M,12,0)","v":0},{"$f":"VLOOKUP(B51,'LOC FINAL with new Themes'!A:M,13,0)","v":0}]
[null,"Census 2000 FIPS 55 Codes","Census 2000 FIPS 55 Codes","Census 2000 FIPS 55 Codes","Cultural & Demographic Statistics ","DOC-Census","Jennifer Holland","Jennifer.L.Holland@census.gov",{"$f":"VLOOKUP(B52,'LOC FINAL with new Themes'!A:M,7,0)","v":0},{"$f":"VLOOKUP(B52,'LOC FINAL with new Themes'!A:M,8,0)","v":0},{"$f":"VLOOKUP(B52,'LOC FINAL with new Themes'!A:M,9,0)","v":0},{"$f":"VLOOKUP(B52,'LOC FINAL with new Themes'!A:M,10,0)","v":0},{"$f":"VLOOKUP(B52,'LOC FINAL with new Themes'!A:M,11,0)","v":0},{"$f":"VLOOKUP(B52,'LOC FINAL with new Themes'!A:M,12,0)","v":0},{"$f":"VLOOKUP(B52,'LOC FINAL with new Themes'!A:M,13,0)","v":0}]
[null,"Census Tract (2010 Census)","Census Tract (2010 Census)","Census Tract (2010 Census)","Cultural & Demographic Statistics ","DOC-Census","Jennifer Holland","Jennifer.L.Holland@census.gov",{"$f":"VLOOKUP(B53,'LOC FINAL with new Themes'!A:M,7,0)","v":0},{"$f":"VLOOKUP(B53,'LOC FINAL with new Themes'!A:M,8,0)","v":0},{"$f":"VLOOKUP(B53,'LOC FINAL with new Themes'!A:M,9,0)","v":0},{"$f":"VLOOKUP(B53,'LOC FINAL with new Themes'!A:M,10,0)","v":0},{"$f":"VLOOKUP(B53,'LOC FINAL with new Themes'!A:M,11,0)","v":0},{"$f":"VLOOKUP(B53,'LOC FINAL with new Themes'!A:M,12,0)","v":0},{"$f":"VLOOKUP(B53,'LOC FINAL with new Themes'!A:M,13,0)","v":0}]
[null,"Census Tract (Census 2000)","Census Tract (Census 2000)","Census Tract (Census 2000)","Cultural & Demographic Statistics ","DOC-Census","Jennifer Holland","Jennifer.L.Holland@census.gov",{"$f":"VLOOKUP(B54,'LOC FINAL with new Themes'!A:M,7,0)","v":0},{"$f":"VLOOKUP(B54,'LOC FINAL with new Themes'!A:M,8,0)","v":0},{"$f":"VLOOKUP(B54,'LOC FINAL with new Themes'!A:M,9,0)","v":0},{"$f":"VLOOKUP(B54,'LOC FINAL with new Themes'!A:M,10,0)","v":0},{"$f":"VLOOKUP(B54,'LOC FINAL with new Themes'!A:M,11,0)","v":0},{"$f":"VLOOKUP(B54,'LOC FINAL with new Themes'!A:M,12,0)","v":0},{"$f":"VLOOKUP(B54,'LOC FINAL with new Themes'!A:M,13,0)","v":0}]
[null,"Combined Statistical Area (2010 Census)","Combined Statistical Area (2010 Census)","Combined Statistical Area (2010 Census)","Cultural & Demographic Statistics ","DOC-Census","Jennifer Holland","Jennifer.L.Holland@census.gov",{"$f":"VLOOKUP(B55,'LOC FINAL with new Themes'!A:M,7,0)","v":0},{"$f":"VLOOKUP(B55,'LOC FINAL with new Themes'!A:M,8,0)","v":0},{"$f":"VLOOKUP(B55,'LOC FINAL with new Themes'!A:M,9,0)","v":0},{"$f":"VLOOKUP(B55,'LOC FINAL with new Themes'!A:M,10,0)","v":0},{"$f":"VLOOKUP(B55,'LOC FINAL with new Themes'!A:M,11,0)","v":0},{"$f":"VLOOKUP(B55,'LOC FINAL with new Themes'!A:M,12,0)","v":0},{"$f":"VLOOKUP(B55,'LOC FINAL with new Themes'!A:M,13,0)","v":0}]
[null,"Congressional District Boundaries",null,"Congressional District Boundaries","Cultural & Demographic Statistics ","DOC-Census","Randy Fusaro","randy.j.fusaro@census.gov",{"$f":"VLOOKUP(B56,'LOC FINAL with new Themes'!A:M,7,0)","v":0},{"$f":"VLOOKUP(B56,'LOC FINAL with new Themes'!A:M,8,0)","v":0},{"$f":"VLOOKUP(B56,'LOC FINAL with new Themes'!A:M,9,0)","v":0},{"$f":"VLOOKUP(B56,'LOC FINAL with new Themes'!A:M,10,0)","v":0},{"$f":"VLOOKUP(B56,'LOC FINAL with new Themes'!A:M,11,0)","v":0},{"$f":"VLOOKUP(B56,'LOC FINAL with new Themes'!A:M,12,0)","v":0},{"$f":"VLOOKUP(B56,'LOC FINAL with new Themes'!A:M,13,0)","v":0}]
["County, place, MCD Boundaries","County, place, MCD Boundaries",null,"County, place, MCD Boundaries","Cultural & Demographic Statistics ","DOC-Census","Randy Fusaro","randy.j.fusaro@census.gov",{"$f":"VLOOKUP(B57,'LOC FINAL with new Themes'!A:M,7,0)","v":0},{"$f":"VLOOKUP(B57,'LOC FINAL with new Themes'!A:M,8,0)","v":0},{"$f":"VLOOKUP(B57,'LOC FINAL with new Themes'!A:M,9,0)","v":0},{"$f":"VLOOKUP(B57,'LOC FINAL with new Themes'!A:M,10,0)","v":0},{"$f":"VLOOKUP(B57,'LOC FINAL with new Themes'!A:M,11,0)","v":0},{"$f":"VLOOKUP(B57,'LOC FINAL with new Themes'!A:M,12,0)","v":0},{"$f":"VLOOKUP(B57,'LOC FINAL with new Themes'!A:M,13,0)","v":0}]
[null,"Elementary School District (2010 Census)","Elementary School District (2010 Census)","Elementary School District (2010 Census)","Cultural & Demographic Statistics ","DOC-Census","Jennifer Holland","Jennifer.L.Holland@census.gov",{"$f":"VLOOKUP(B58,'LOC FINAL with new Themes'!A:M,7,0)","v":0},{"$f":"VLOOKUP(B58,'LOC FINAL with new Themes'!A:M,8,0)","v":0},{"$f":"VLOOKUP(B58,'LOC FINAL with new Themes'!A:M,9,0)","v":0},{"$f":"VLOOKUP(B58,'LOC FINAL with new Themes'!A:M,10,0)","v":0},{"$f":"VLOOKUP(B58,'LOC FINAL with new Themes'!A:M,11,0)","v":0},{"$f":"VLOOKUP(B58,'LOC FINAL with new Themes'!A:M,12,0)","v":0},{"$f":"VLOOKUP(B58,'LOC FINAL with new Themes'!A:M,13,0)","v":0}]
[null,"Elementary School District (Census 2000)","Elementary School District (Census 2000)","Elementary School District (Census 2000)","Cultural & Demographic Statistics ","DOC-Census","Jennifer Holland","Jennifer.L.Holland@census.gov",{"$f":"VLOOKUP(B59,'LOC FINAL with new Themes'!A:M,7,0)","v":0},{"$f":"VLOOKUP(B59,'LOC FINAL with new Themes'!A:M,8,0)","v":0},{"$f":"VLOOKUP(B59,'LOC FINAL with new Themes'!A:M,9,0)","v":0},{"$f":"VLOOKUP(B59,'LOC FINAL with new Themes'!A:M,10,0)","v":0},{"$f":"VLOOKUP(B59,'LOC FINAL with new Themes'!A:M,11,0)","v":0},{"$f":"VLOOKUP(B59,'LOC FINAL with new Themes'!A:M,12,0)","v":0},{"$f":"VLOOKUP(B59,'LOC FINAL with new Themes'!A:M,13,0)","v":0}]
["FIPS/ANSI codes for states, counties, congressional districts & metro/micropolitan areas","FIPS/ANSI codes for states, counties, congressional districts & metro/micropolitan areas",null,"FIPS/ANSI codes for states, counties, congressional districts & metro/micropolitan areas","Cultural & Demographic Statistics ","DOC-Census","Randy Fusaro","randy.j.fusaro@census.gov",{"$f":"VLOOKUP(B60,'LOC FINAL with new Themes'!A:M,7,0)","v":0},{"$f":"VLOOKUP(B60,'LOC FINAL with new Themes'!A:M,8,0)","v":0},{"$f":"VLOOKUP(B60,'LOC FINAL with new Themes'!A:M,9,0)","v":0},{"$f":"VLOOKUP(B60,'LOC FINAL with new Themes'!A:M,10,0)","v":0},{"$f":"VLOOKUP(B60,'LOC FINAL with new Themes'!A:M,11,0)","v":0},{"$f":"VLOOKUP(B60,'LOC FINAL with new Themes'!A:M,12,0)","v":0},{"$f":"VLOOKUP(B60,'LOC FINAL with new Themes'!A:M,13,0)","v":0}]
["Metropolitan/micropolitan area boundaries","Metropolitan/micropolitan area boundaries",null,"Metropolitan/micropolitan area boundaries","Cultural & Demographic Statistics ","DOC-Census","Randy Fusaro","randy.j.fusaro@census.gov",{"$f":"VLOOKUP(B61,'LOC FINAL with new Themes'!A:M,7,0)","v":0},{"$f":"VLOOKUP(B61,'LOC FINAL with new Themes'!A:M,8,0)","v":0},{"$f":"VLOOKUP(B61,'LOC FINAL with new Themes'!A:M,9,0)","v":0},{"$f":"VLOOKUP(B61,'LOC FINAL with new Themes'!A:M,10,0)","v":0},{"$f":"VLOOKUP(B61,'LOC FINAL with new Themes'!A:M,11,0)","v":0},{"$f":"VLOOKUP(B61,'LOC FINAL with new Themes'!A:M,12,0)","v":0},{"$f":"VLOOKUP(B61,'LOC FINAL with new Themes'!A:M,13,0)","v":0}]
[null,"Metropolitan/micropolitan Statistical Area (2010 Census)","Metropolitan/micropolitan Statistical Area (2010 Census)","Metropolitan/micropolitan Statistical Area (2010 Census)","Cultural & Demographic Statistics ","DOC-Census","Jennifer Holland","Jennifer.L.Holland@census.gov",{"$f":"VLOOKUP(B62,'LOC FINAL with new Themes'!A:M,7,0)","v":0},{"$f":"VLOOKUP(B62,'LOC FINAL with new Themes'!A:M,8,0)","v":0},{"$f":"VLOOKUP(B62,'LOC FINAL with new Themes'!A:M,9,0)","v":0},{"$f":"VLOOKUP(B62,'LOC FINAL with new Themes'!A:M,10,0)","v":0},{"$f":"VLOOKUP(B62,'LOC FINAL with new Themes'!A:M,11,0)","v":0},{"$f":"VLOOKUP(B62,'LOC FINAL with new Themes'!A:M,12,0)","v":0},{"$f":"VLOOKUP(B62,'LOC FINAL with new Themes'!A:M,13,0)","v":0}]
["National Center for Health Statistics (Atlas of US Mortality)","National Center for Health Statistics (Atlas of US Mortality)",null,"National Center for Health Statistics (Atlas of US Mortality)","Cultural & Demographic Statistics ","HHS","Gary Anderson","gary.anderson@hhs.gov",{"$f":"VLOOKUP(B63,'LOC FINAL with new Themes'!A:M,7,0)","v":0},{"$f":"VLOOKUP(B63,'LOC FINAL with new Themes'!A:M,8,0)","v":0},{"$f":"VLOOKUP(B63,'LOC FINAL with new Themes'!A:M,9,0)","v":0},{"$f":"VLOOKUP(B63,'LOC FINAL with new Themes'!A:M,10,0)","v":0},{"$f":"VLOOKUP(B63,'LOC FINAL with new Themes'!A:M,11,0)","v":0},{"$f":"VLOOKUP(B63,'LOC FINAL with new Themes'!A:M,12,0)","v":0},{"$f":"VLOOKUP(B63,'LOC FINAL with new Themes'!A:M,13,0)","v":0}]
[null,null,"Oklahoma Tribal Joint Use Areas","Oklahoma Tribal Joint Use Areas","Cultural & Demographic Statistics ","DOC-Census"]
[null,null,"Oklahoma Tribal Statistical Areas","Oklahoma Tribal Statistical Areas","Cultural & Demographic Statistics ","DOC-Census"]
[null,"Public Use Microdata Area (Census 2000)","Public Use Microdata Area (Census 2000)","Public Use Microdata Area (Census 2000)","Cultural & Demographic Statistics ","DOC-Census","Jennifer Holland","Jennifer.L.Holland@census.gov",{"$f":"VLOOKUP(B66,'LOC FINAL with new Themes'!A:M,7,0)","v":0},{"$f":"VLOOKUP(B66,'LOC FINAL with new Themes'!A:M,8,0)","v":0},{"$f":"VLOOKUP(B66,'LOC FINAL with new Themes'!A:M,9,0)","v":0},{"$f":"VLOOKUP(B66,'LOC FINAL with new Themes'!A:M,10,0)","v":0},{"$f":"VLOOKUP(B66,'LOC FINAL with new Themes'!A:M,11,0)","v":0},{"$f":"VLOOKUP(B66,'LOC FINAL with new Themes'!A:M,12,0)","v":0},{"$f":"VLOOKUP(B66,'LOC FINAL with new Themes'!A:M,13,0)","v":0}]
["School District Boundaries","School District Boundaries",null,"School District Boundaries","Cultural & Demographic Statistics ","DOC-Census","Randy Fusaro","randy.j.fusaro@census.gov",{"$f":"VLOOKUP(B67,'LOC FINAL with new Themes'!A:M,7,0)","v":0},{"$f":"VLOOKUP(B67,'LOC FINAL with new Themes'!A:M,8,0)","v":0},{"$f":"VLOOKUP(B67,'LOC FINAL with new Themes'!A:M,9,0)","v":0},{"$f":"VLOOKUP(B67,'LOC FINAL with new Themes'!A:M,10,0)","v":0},{"$f":"VLOOKUP(B67,'LOC FINAL with new Themes'!A:M,11,0)","v":0},{"$f":"VLOOKUP(B67,'LOC FINAL with new Themes'!A:M,12,0)","v":0},{"$f":"VLOOKUP(B67,'LOC FINAL with new Themes'!A:M,13,0)","v":0}]
[null,"Secondary School District (2010 Census)","Secondary School District (2010 Census)","Secondary School District (2010 Census)","Cultural & Demographic Statistics ","DOC-Census","Jennifer Holland","Jennifer.L.Holland@census.gov",{"$f":"VLOOKUP(B68,'LOC FINAL with new Themes'!A:M,7,0)","v":0},{"$f":"VLOOKUP(B68,'LOC FINAL with new Themes'!A:M,8,0)","v":0},{"$f":"VLOOKUP(B68,'LOC FINAL with new Themes'!A:M,9,0)","v":0},{"$f":"VLOOKUP(B68,'LOC FINAL with new Themes'!A:M,10,0)","v":0},{"$f":"VLOOKUP(B68,'LOC FINAL with new Themes'!A:M,11,0)","v":0},{"$f":"VLOOKUP(B68,'LOC FINAL with new Themes'!A:M,12,0)","v":0},{"$f":"VLOOKUP(B68,'LOC FINAL with new Themes'!A:M,13,0)","v":0}]
[null,"Secondary School District (Census 2000)","Secondary School District (Census 2000)","Secondary School District (Census 2000)","Cultural & Demographic Statistics ","DOC-Census","Jennifer Holland","Jennifer.L.Holland@census.gov",{"$f":"VLOOKUP(B69,'LOC FINAL with new Themes'!A:M,7,0)","v":0},{"$f":"VLOOKUP(B69,'LOC FINAL with new Themes'!A:M,8,0)","v":0},{"$f":"VLOOKUP(B69,'LOC FINAL with new Themes'!A:M,9,0)","v":0},{"$f":"VLOOKUP(B69,'LOC FINAL with new Themes'!A:M,10,0)","v":0},{"$f":"VLOOKUP(B69,'LOC FINAL with new Themes'!A:M,11,0)","v":0},{"$f":"VLOOKUP(B69,'LOC FINAL with new Themes'!A:M,12,0)","v":0},{"$f":"VLOOKUP(B69,'LOC FINAL with new Themes'!A:M,13,0)","v":0}]
["State (+ Territories) Boundaries","State (+ Territories) Boundaries",null,"State (+ Territories) Boundaries","Cultural & Demographic Statistics ","DOC-Census","Randy Fusaro","randy.j.fusaro@census.gov",{"$f":"VLOOKUP(B70,'LOC FINAL with new Themes'!A:M,7,0)","v":0},{"$f":"VLOOKUP(B70,'LOC FINAL with new Themes'!A:M,8,0)","v":0},{"$f":"VLOOKUP(B70,'LOC FINAL with new Themes'!A:M,9,0)","v":0},{"$f":"VLOOKUP(B70,'LOC FINAL with new Themes'!A:M,10,0)","v":0},{"$f":"VLOOKUP(B70,'LOC FINAL with new Themes'!A:M,11,0)","v":0},{"$f":"VLOOKUP(B70,'LOC FINAL with new Themes'!A:M,12,0)","v":0},{"$f":"VLOOKUP(B70,'LOC FINAL with new Themes'!A:M,13,0)","v":0}]
["Statistical Area Boundaries (tracts, blocks, UAs, CDPs, etc)","Statistical Area Boundaries (tracts, blocks, UAs, CDPs, etc)",null,"Statistical Area Boundaries (tracts, blocks, UAs, CDPs, etc)","Cultural & Demographic Statistics ","DOC-Census","Randy Fusaro","randy.j.fusaro@census.gov",{"$f":"VLOOKUP(B71,'LOC FINAL with new Themes'!A:M,7,0)","v":0},{"$f":"VLOOKUP(B71,'LOC FINAL with new Themes'!A:M,8,0)","v":0},{"$f":"VLOOKUP(B71,'LOC FINAL with new Themes'!A:M,9,0)","v":0},{"$f":"VLOOKUP(B71,'LOC FINAL with new Themes'!A:M,10,0)","v":0},{"$f":"VLOOKUP(B71,'LOC FINAL with new Themes'!A:M,11,0)","v":0},{"$f":"VLOOKUP(B71,'LOC FINAL with new Themes'!A:M,12,0)","v":0},{"$f":"VLOOKUP(B71,'LOC FINAL with new Themes'!A:M,13,0)","v":0}]
[null,"Super Public Use Microdata Area (Census 2000)","Super Public Use Microdata Area (Census 2000)","Super Public Use Microdata Area (Census 2000)","Cultural & Demographic Statistics ","DOC-Census","Jennifer Holland","Jennifer.L.Holland@census.gov",{"$f":"VLOOKUP(B72,'LOC FINAL with new Themes'!A:M,7,0)","v":0},{"$f":"VLOOKUP(B72,'LOC FINAL with new Themes'!A:M,8,0)","v":0},{"$f":"VLOOKUP(B72,'LOC FINAL with new Themes'!A:M,9,0)","v":0},{"$f":"VLOOKUP(B72,'LOC FINAL with new Themes'!A:M,10,0)","v":0},{"$f":"VLOOKUP(B72,'LOC FINAL with new Themes'!A:M,11,0)","v":0},{"$f":"VLOOKUP(B72,'LOC FINAL with new Themes'!A:M,12,0)","v":0},{"$f":"VLOOKUP(B72,'LOC FINAL with new Themes'!A:M,13,0)","v":0}]
["TIGER* (many statistical boundaries)","TIGER (many statistical boundaries)",null,"TIGER (many statistical boundaries)","Cultural & Demographic Statistics ","DOC-Census","Randy Fusaro","randy.j.fusaro@census.gov",{"$f":"VLOOKUP(B73,'LOC FINAL with new Themes'!A:M,7,0)","v":0},{"$f":"VLOOKUP(B73,'LOC FINAL with new Themes'!A:M,8,0)","v":0},{"$f":"VLOOKUP(B73,'LOC FINAL with new Themes'!A:M,9,0)","v":0},{"$f":"VLOOKUP(B73,'LOC FINAL with new Themes'!A:M,10,0)","v":0},{"$f":"VLOOKUP(B73,'LOC FINAL with new Themes'!A:M,11,0)","v":0},{"$f":"VLOOKUP(B73,'LOC FINAL with new Themes'!A:M,12,0)","v":0},{"$f":"VLOOKUP(B73,'LOC FINAL with new Themes'!A:M,13,0)","v":0}]
[null,"Topological Faces (2010 Census)","Topological Faces (2010 Census)","Topological Faces (2010 Census)","Cultural & Demographic Statistics ","DOC-Census","Jennifer Holland","Jennifer.L.Holland@census.gov",{"$f":"VLOOKUP(B74,'LOC FINAL with new Themes'!A:M,7,0)","v":0},{"$f":"VLOOKUP(B74,'LOC FINAL with new Themes'!A:M,8,0)","v":0},{"$f":"VLOOKUP(B74,'LOC FINAL with new Themes'!A:M,9,0)","v":0},{"$f":"VLOOKUP(B74,'LOC FINAL with new Themes'!A:M,10,0)","v":0},{"$f":"VLOOKUP(B74,'LOC FINAL with new Themes'!A:M,11,0)","v":0},{"$f":"VLOOKUP(B74,'LOC FINAL with new Themes'!A:M,12,0)","v":0},{"$f":"VLOOKUP(B74,'LOC FINAL with new Themes'!A:M,13,0)","v":0}]
[null,"Unified School District (2010 Census)","Unified School District (2010 Census)","Unified School District (2010 Census)","Cultural & Demographic Statistics ","DOC-Census","Jennifer Holland","Jennifer.L.Holland@census.gov",{"$f":"VLOOKUP(B75,'LOC FINAL with new Themes'!A:M,7,0)","v":0},{"$f":"VLOOKUP(B75,'LOC FINAL with new Themes'!A:M,8,0)","v":0},{"$f":"VLOOKUP(B75,'LOC FINAL with new Themes'!A:M,9,0)","v":0},{"$f":"VLOOKUP(B75,'LOC FINAL with new Themes'!A:M,10,0)","v":0},{"$f":"VLOOKUP(B75,'LOC FINAL with new Themes'!A:M,11,0)","v":0},{"$f":"VLOOKUP(B75,'LOC FINAL with new Themes'!A:M,12,0)","v":0},{"$f":"VLOOKUP(B75,'LOC FINAL with new Themes'!A:M,13,0)","v":0}]
[null,"Unified School District (Census 2000)","Unified School District (Census 2000)","Unified School District (Census 2000)","Cultural & Demographic Statistics ","DOC-Census","Jennifer Holland","Jennifer.L.Holland@census.gov",{"$f":"VLOOKUP(B76,'LOC FINAL with new Themes'!A:M,7,0)","v":0},{"$f":"VLOOKUP(B76,'LOC FINAL with new Themes'!A:M,8,0)","v":0},{"$f":"VLOOKUP(B76,'LOC FINAL with new Themes'!A:M,9,0)","v":0},{"$f":"VLOOKUP(B76,'LOC FINAL with new Themes'!A:M,10,0)","v":0},{"$f":"VLOOKUP(B76,'LOC FINAL with new Themes'!A:M,11,0)","v":0},{"$f":"VLOOKUP(B76,'LOC FINAL with new Themes'!A:M,12,0)","v":0},{"$f":"VLOOKUP(B76,'LOC FINAL with new Themes'!A:M,13,0)","v":0}]
[null,"Urban Growth Area (2010 Census)","Urban Growth Area (2010 Census)","Urban Growth Area (2010 Census)","Cultural & Demographic Statistics ","DOC-Census","Jennifer Holland","Jennifer.L.Holland@census.gov",{"$f":"VLOOKUP(B77,'LOC FINAL with new Themes'!A:M,7,0)","v":0},{"$f":"VLOOKUP(B77,'LOC FINAL with new Themes'!A:M,8,0)","v":0},{"$f":"VLOOKUP(B77,'LOC FINAL with new Themes'!A:M,9,0)","v":0},{"$f":"VLOOKUP(B77,'LOC FINAL with new Themes'!A:M,10,0)","v":0},{"$f":"VLOOKUP(B77,'LOC FINAL with new Themes'!A:M,11,0)","v":0},{"$f":"VLOOKUP(B77,'LOC FINAL with new Themes'!A:M,12,0)","v":0},{"$f":"VLOOKUP(B77,'LOC FINAL with new Themes'!A:M,13,0)","v":0}]
[null,"Urban Growth Area (Census 2000)","Urban Growth Area (Census 2000)","Urban Growth Area (Census 2000)","Cultural & Demographic Statistics ","DOC-Census","Jennifer Holland","Jennifer.L.Holland@census.gov",{"$f":"VLOOKUP(B78,'LOC FINAL with new Themes'!A:M,7,0)","v":0},{"$f":"VLOOKUP(B78,'LOC FINAL with new Themes'!A:M,8,0)","v":0},{"$f":"VLOOKUP(B78,'LOC FINAL with new Themes'!A:M,9,0)","v":0},{"$f":"VLOOKUP(B78,'LOC FINAL with new Themes'!A:M,10,0)","v":0},{"$f":"VLOOKUP(B78,'LOC FINAL with new Themes'!A:M,11,0)","v":0},{"$f":"VLOOKUP(B78,'LOC FINAL with new Themes'!A:M,12,0)","v":0},{"$f":"VLOOKUP(B78,'LOC FINAL with new Themes'!A:M,13,0)","v":0}]
[null,"Voting District (2010 Census)","Voting District (2010 Census)","Voting District (2010 Census)","Cultural & Demographic Statistics ","DOC-Census","Jennifer Holland","Jennifer.L.Holland@census.gov",{"$f":"VLOOKUP(B79,'LOC FINAL with new Themes'!A:M,7,0)","v":0},{"$f":"VLOOKUP(B79,'LOC FINAL with new Themes'!A:M,8,0)","v":0},{"$f":"VLOOKUP(B79,'LOC FINAL with new Themes'!A:M,9,0)","v":0},{"$f":"VLOOKUP(B79,'LOC FINAL with new Themes'!A:M,10,0)","v":0},{"$f":"VLOOKUP(B79,'LOC FINAL with new Themes'!A:M,11,0)","v":0},{"$f":"VLOOKUP(B79,'LOC FINAL with new Themes'!A:M,12,0)","v":0},{"$f":"VLOOKUP(B79,'LOC FINAL with new Themes'!A:M,13,0)","v":0}]
[null,"Voting District (Census 2000)","Voting District (Census 2000)","Voting District (Census 2000)","Cultural & Demographic Statistics ","DOC-Census","Jennifer Holland","Jennifer.L.Holland@census.gov",{"$f":"VLOOKUP(B80,'LOC FINAL with new Themes'!A:M,7,0)","v":0},{"$f":"VLOOKUP(B80,'LOC FINAL with new Themes'!A:M,8,0)","v":0},{"$f":"VLOOKUP(B80,'LOC FINAL with new Themes'!A:M,9,0)","v":0},{"$f":"VLOOKUP(B80,'LOC FINAL with new Themes'!A:M,10,0)","v":0},{"$f":"VLOOKUP(B80,'LOC FINAL with new Themes'!A:M,11,0)","v":0},{"$f":"VLOOKUP(B80,'LOC FINAL with new Themes'!A:M,12,0)","v":0},{"$f":"VLOOKUP(B80,'LOC FINAL with new Themes'!A:M,13,0)","v":0}]
["Voting District Boundaries","Voting District Boundaries",null,"Voting District Boundaries","Cultural & Demographic Statistics ","DOC-Census","Randy Fusaro","randy.j.fusaro@census.gov",{"$f":"VLOOKUP(B81,'LOC FINAL with new Themes'!A:M,7,0)","v":0},{"$f":"VLOOKUP(B81,'LOC FINAL with new Themes'!A:M,8,0)","v":0},{"$f":"VLOOKUP(B81,'LOC FINAL with new Themes'!A:M,9,0)","v":0},{"$f":"VLOOKUP(B81,'LOC FINAL with new Themes'!A:M,10,0)","v":0},{"$f":"VLOOKUP(B81,'LOC FINAL with new Themes'!A:M,11,0)","v":0},{"$f":"VLOOKUP(B81,'LOC FINAL with new Themes'!A:M,12,0)","v":0},{"$f":"VLOOKUP(B81,'LOC FINAL with new Themes'!A:M,13,0)","v":0}]
[null,null,null,{"$f":"SUBTOTAL(3,D41:D81)","v":41},"Cultural & Demographic Statistics  Count"]
["Cultural Landscape Boundaries","Cultural Landscape Boundaries","Cultural Landscape Boundaries",{"$f":"IF(C83=0,B83,C83)","v":"Cultural Landscape Boundaries"},"Cultural & Demographic Statistics \nCultural Resources","DOI-NPS","John Knoerl","john_knoerl@nps.gov",{"$f":"VLOOKUP(B83,'LOC FINAL with new Themes'!A:M,7,0)","v":"Feature classes of the cultural resource data model (NPS only, other federal agencies handle it as they decide)"},{"$f":"VLOOKUP(B83,'LOC FINAL with new Themes'!A:M,8,0)","v":"don't want a single centralized data set but focusing on standard approach"},{"$f":"VLOOKUP(B83,'LOC FINAL with new Themes'!A:M,9,0)","v":0},{"$f":"VLOOKUP(B83,'LOC FINAL with new Themes'!A:M,10,0)","v":0},{"$f":"VLOOKUP(B83,'LOC FINAL with new Themes'!A:M,11,0)","v":0},{"$f":"VLOOKUP(B83,'LOC FINAL with new Themes'!A:M,12,0)","v":0},{"$f":"VLOOKUP(B83,'LOC FINAL with new Themes'!A:M,13,0)","v":0}]
["Cultural Resource Survey Boundaries","Cultural Resource Survey Boundaries","Cultural Resource Survey Boundaries","Cultural Resource Survey Boundaries","Cultural & Demographic Statistics \nCultural Resources","DOI-NPS","John Knoerl","john_knoerl@nps.gov",{"$f":"VLOOKUP(B84,'LOC FINAL with new Themes'!A:M,7,0)","v":"Feature classes of the cultural resource data model (NPS only, other federal agencies handle it as they decide)"},{"$f":"VLOOKUP(B84,'LOC FINAL with new Themes'!A:M,8,0)","v":"don't want a single centralized data set but focusing on standard approach"},{"$f":"VLOOKUP(B84,'LOC FINAL with new Themes'!A:M,9,0)","v":0},{"$f":"VLOOKUP(B84,'LOC FINAL with new Themes'!A:M,10,0)","v":0},{"$f":"VLOOKUP(B84,'LOC FINAL with new Themes'!A:M,11,0)","v":0},{"$f":"VLOOKUP(B84,'LOC FINAL with new Themes'!A:M,12,0)","v":0},{"$f":"VLOOKUP(B84,'LOC FINAL with new Themes'!A:M,13,0)","v":0}]
["Ethnographic Resource Boundaries","Ethnographic Resource Boundaries","Ethnographic Resource Boundaries","Ethnographic Resource Boundaries","Cultural & Demographic Statistics \nCultural Resources","DOI-NPS","John Knoerl","john_knoerl@nps.gov",{"$f":"VLOOKUP(B85,'LOC FINAL with new Themes'!A:M,7,0)","v":"Feature classes of the cultural resource data model (NPS only, other federal agencies handle it as they decide)"},{"$f":"VLOOKUP(B85,'LOC FINAL with new Themes'!A:M,8,0)","v":"don't want a single centralized data set but focusing on standard approach"},{"$f":"VLOOKUP(B85,'LOC FINAL with new Themes'!A:M,9,0)","v":0},{"$f":"VLOOKUP(B85,'LOC FINAL with new Themes'!A:M,10,0)","v":0},{"$f":"VLOOKUP(B85,'LOC FINAL with new Themes'!A:M,11,0)","v":0},{"$f":"VLOOKUP(B85,'LOC FINAL with new Themes'!A:M,12,0)","v":0},{"$f":"VLOOKUP(B85,'LOC FINAL with new Themes'!A:M,13,0)","v":0}]
["Historic Buildings Boundaries","Historic Buildings Boundaries","Historic Buildings Boundaries","Historic Buildings Boundaries","Cultural & Demographic Statistics \nCultural Resources","DOI-NPS","John Knoerl","john_knoerl@nps.gov",{"$f":"VLOOKUP(B86,'LOC FINAL with new Themes'!A:M,7,0)","v":"Feature classes of the cultural resource data model (NPS only, other federal agencies handle it as they decide)"},{"$f":"VLOOKUP(B86,'LOC FINAL with new Themes'!A:M,8,0)","v":"don't want a single centralized data set but focusing on standard approach"},{"$f":"VLOOKUP(B86,'LOC FINAL with new Themes'!A:M,9,0)","v":0},{"$f":"VLOOKUP(B86,'LOC FINAL with new Themes'!A:M,10,0)","v":0},{"$f":"VLOOKUP(B86,'LOC FINAL with new Themes'!A:M,11,0)","v":0},{"$f":"VLOOKUP(B86,'LOC FINAL with new Themes'!A:M,12,0)","v":0},{"$f":"VLOOKUP(B86,'LOC FINAL with new Themes'!A:M,13,0)","v":0}]
["Historic Districts Boundaries","Historic Districts Boundaries","Historic Districts Boundaries","Historic Districts Boundaries","Cultural & Demographic Statistics \nCultural Resources","DOI-NPS","John Knoerl","john_knoerl@nps.gov",{"$f":"VLOOKUP(B87,'LOC FINAL with new Themes'!A:M,7,0)","v":"Feature classes of the cultural resource data model (NPS only, other federal agencies handle it as they decide)"},{"$f":"VLOOKUP(B87,'LOC FINAL with new Themes'!A:M,8,0)","v":"don't want a single centralized data set but focusing on standard approach"},{"$f":"VLOOKUP(B87,'LOC FINAL with new Themes'!A:M,9,0)","v":0},{"$f":"VLOOKUP(B87,'LOC FINAL with new Themes'!A:M,10,0)","v":0},{"$f":"VLOOKUP(B87,'LOC FINAL with new Themes'!A:M,11,0)","v":0},{"$f":"VLOOKUP(B87,'LOC FINAL with new Themes'!A:M,12,0)","v":0},{"$f":"VLOOKUP(B87,'LOC FINAL with new Themes'!A:M,13,0)","v":0}]
["Historic Objects Boundaries","Historic Objects Boundaries","Historic Objects Boundaries","Historic Objects Boundaries","Cultural & Demographic Statistics \nCultural Resources","DOI-NPS","John Knoerl","john_knoerl@nps.gov",{"$f":"VLOOKUP(B88,'LOC FINAL with new Themes'!A:M,7,0)","v":"Feature classes of the cultural resource data model (NPS only, other federal agencies handle it as they decide)"},{"$f":"VLOOKUP(B88,'LOC FINAL with new Themes'!A:M,8,0)","v":"don't want a single centralized data set but focusing on standard approach"},{"$f":"VLOOKUP(B88,'LOC FINAL with new Themes'!A:M,9,0)","v":0},{"$f":"VLOOKUP(B88,'LOC FINAL with new Themes'!A:M,10,0)","v":0},{"$f":"VLOOKUP(B88,'LOC FINAL with new Themes'!A:M,11,0)","v":0},{"$f":"VLOOKUP(B88,'LOC FINAL with new Themes'!A:M,12,0)","v":0},{"$f":"VLOOKUP(B88,'LOC FINAL with new Themes'!A:M,13,0)","v":0}]
["Historic Structures Boundaries","Historic Structures Boundaries","Historic Structures Boundaries","Historic Structures Boundaries","Cultural & Demographic Statistics \nCultural Resources","DOI-NPS","John Knoerl","john_knoerl@nps.gov",{"$f":"VLOOKUP(B89,'LOC FINAL with new Themes'!A:M,7,0)","v":"Feature classes of the cultural resource data model (NPS only, other federal agencies handle it as they decide)"},{"$f":"VLOOKUP(B89,'LOC FINAL with new Themes'!A:M,8,0)","v":"don't want a single centralized data set but focusing on standard approach"},{"$f":"VLOOKUP(B89,'LOC FINAL with new Themes'!A:M,9,0)","v":0},{"$f":"VLOOKUP(B89,'LOC FINAL with new Themes'!A:M,10,0)","v":0},{"$f":"VLOOKUP(B89,'LOC FINAL with new Themes'!A:M,11,0)","v":0},{"$f":"VLOOKUP(B89,'LOC FINAL with new Themes'!A:M,12,0)","v":0},{"$f":"VLOOKUP(B89,'LOC FINAL with new Themes'!A:M,13,0)","v":"M "}]
[null,null,"Other Cultural Resource Boundaries","Other Cultural Resource Boundaries","Cultural & Demographic Statistics \nCultural Resources","DOI-NPS"]
[null,null,null,{"$f":"SUBTOTAL(3,D83:D90)","v":8},"Cultural & Demographic Statistics \nCultural Resources Count"]
[null,"Point Landmark (2010 Census)","Point of Landmark (2010 Census)",{"$f":"IF(C92=0,B92,C92)","v":"Point of Landmark (2010 Census)"},"Cultural Resources","DOC-Census","Jennifer Holland","Jennifer.L.Holland@census.gov",{"$f":"VLOOKUP(B92,'LOC FINAL with new Themes'!A:M,7,0)","v":0},{"$f":"VLOOKUP(B92,'LOC FINAL with new Themes'!A:M,8,0)","v":0},{"$f":"VLOOKUP(B92,'LOC FINAL with new Themes'!A:M,9,0)","v":0},{"$f":"VLOOKUP(B92,'LOC FINAL with new Themes'!A:M,10,0)","v":0},{"$f":"VLOOKUP(B92,'LOC FINAL with new Themes'!A:M,11,0)","v":0},{"$f":"VLOOKUP(B92,'LOC FINAL with new Themes'!A:M,12,0)","v":0},{"$f":"VLOOKUP(B92,'LOC FINAL with new Themes'!A:M,13,0)","v":0}]
["Archeological Sites","Archeological Sites","Archeological Sites","Archeological Sites","Cultural Resources ","DOI-NPS","John Knoerl","john_knoerl@nps.gov",{"$f":"VLOOKUP(B93,'LOC FINAL with new Themes'!A:M,7,0)","v":"Feature classes of the cultural resource data model (NPS only, other federal agencies handle it as they decide)"},{"$f":"VLOOKUP(B93,'LOC FINAL with new Themes'!A:M,8,0)","v":"don't want a single centralized data set but focusing on standard approach"},{"$f":"VLOOKUP(B93,'LOC FINAL with new Themes'!A:M,9,0)","v":"National Historic Presrevation Act says state historic preservation office has primary oversight (section 110)"},{"$f":"VLOOKUP(B93,'LOC FINAL with new Themes'!A:M,10,0)","v":0},{"$f":"VLOOKUP(B93,'LOC FINAL with new Themes'!A:M,11,0)","v":0},{"$f":"VLOOKUP(B93,'LOC FINAL with new Themes'!A:M,12,0)","v":0},{"$f":"VLOOKUP(B93,'LOC FINAL with new Themes'!A:M,13,0)","v":0}]
[null,"Area Landmark (2010 Census)","Area Landmark (2010 Census)","Area Landmark (2010 Census)","Cultural Resources ","DOC-Census","Jennifer Holland","Jennifer.L.Holland@census.gov",{"$f":"VLOOKUP(B94,'LOC FINAL with new Themes'!A:M,7,0)","v":0},{"$f":"VLOOKUP(B94,'LOC FINAL with new Themes'!A:M,8,0)","v":0},{"$f":"VLOOKUP(B94,'LOC FINAL with new Themes'!A:M,9,0)","v":0},{"$f":"VLOOKUP(B94,'LOC FINAL with new Themes'!A:M,10,0)","v":0},{"$f":"VLOOKUP(B94,'LOC FINAL with new Themes'!A:M,11,0)","v":0},{"$f":"VLOOKUP(B94,'LOC FINAL with new Themes'!A:M,12,0)","v":0},{"$f":"VLOOKUP(B94,'LOC FINAL with new Themes'!A:M,13,0)","v":0}]
[null,null,"Geographic Names Dataset - National Map","Geographic Names Dataset - National Map","Cultural Resources ","DOI-USGS"]
["National Map - Geographic Names Information System (GNIS)","National Map - Geographic Names Information System (GNIS)",null,"National Map - Geographic Names Information System (GNIS)","Cultural Resources ","DOI-USGS","Lou Yost","lyost@usgs.gov",{"$f":"VLOOKUP(B96,'LOC FINAL with new Themes'!A:M,7,0)","v":"single data set; poc, data managers; daily updated; Denver systems people backup and archive; transfer to NARA also; Gaz vector (internal)"},{"$f":"VLOOKUP(B96,'LOC FINAL with new Themes'!A:M,8,0)","v":0},{"$f":"VLOOKUP(B96,'LOC FINAL with new Themes'!A:M,9,0)","v":0},{"$f":"VLOOKUP(B96,'LOC FINAL with new Themes'!A:M,10,0)","v":0},{"$f":"VLOOKUP(B96,'LOC FINAL with new Themes'!A:M,11,0)","v":0},{"$f":"VLOOKUP(B96,'LOC FINAL with new Themes'!A:M,12,0)","v":0},{"$f":"VLOOKUP(B96,'LOC FINAL with new Themes'!A:M,13,0)","v":"S"}]
[null,"Topological Faces-Area Landmark Relationship File","Topological Faces-Area Landmark Relationship File","Topological Faces-Area Landmark Relationship File","Cultural Resources ","DOC-Census","Jennifer Holland","Jennifer.L.Holland@census.gov",{"$f":"VLOOKUP(B97,'LOC FINAL with new Themes'!A:M,7,0)","v":0},{"$f":"VLOOKUP(B97,'LOC FINAL with new Themes'!A:M,8,0)","v":0},{"$f":"VLOOKUP(B97,'LOC FINAL with new Themes'!A:M,9,0)","v":0},{"$f":"VLOOKUP(B97,'LOC FINAL with new Themes'!A:M,10,0)","v":0},{"$f":"VLOOKUP(B97,'LOC FINAL with new Themes'!A:M,11,0)","v":0},{"$f":"VLOOKUP(B97,'LOC FINAL with new Themes'!A:M,12,0)","v":0},{"$f":"VLOOKUP(B97,'LOC FINAL with new Themes'!A:M,13,0)","v":0}]
[null,null,null,{"$f":"SUBTOTAL(3,D92:D97)","v":6},"Cultural Resources Count"]
["133 UA Elevation Data (lidar)","133 UA Elevation Data (lidar)",null,{"$f":"IF(C99=0,B99,C99)","v":"133 UA Elevation Data (lidar)"},"Elevation","DOD-NGA","Ron Power, NGA","ronald.k.power@nga.mil",{"$f":"VLOOKUP(B99,'LOC FINAL with new Themes'!A:M,7,0)","v":0},{"$f":"VLOOKUP(B99,'LOC FINAL with new Themes'!A:M,8,0)","v":0},{"$f":"VLOOKUP(B99,'LOC FINAL with new Themes'!A:M,9,0)","v":0},{"$f":"VLOOKUP(B99,'LOC FINAL with new Themes'!A:M,10,0)","v":0},{"$f":"VLOOKUP(B99,'LOC FINAL with new Themes'!A:M,11,0)","v":0},{"$f":"VLOOKUP(B99,'LOC FINAL with new Themes'!A:M,12,0)","v":0},{"$f":"VLOOKUP(B99,'LOC FINAL with new Themes'!A:M,13,0)","v":0}]
["DEMs - Archive","DEMs - Archive",null,"DEMs - Archive","Elevation","DOI-USGS","Gayla Evans","gevans@usgs.gov",{"$f":"VLOOKUP(B100,'LOC FINAL with new Themes'!A:M,7,0)","v":"DEMS update at variable nature; are four data sets based on resolution; this is the POC and data manager; this is the name and maintain three complete with two physically separate on-site and one off-site"},{"$f":"VLOOKUP(B100,'LOC FINAL with new Themes'!A:M,8,0)","v":0},{"$f":"VLOOKUP(B100,'LOC FINAL with new Themes'!A:M,9,0)","v":0},{"$f":"VLOOKUP(B100,'LOC FINAL with new Themes'!A:M,10,0)","v":0},{"$f":"VLOOKUP(B100,'LOC FINAL with new Themes'!A:M,11,0)","v":0},{"$f":"VLOOKUP(B100,'LOC FINAL with new Themes'!A:M,12,0)","v":0},{"$f":"VLOOKUP(B100,'LOC FINAL with new Themes'!A:M,13,0)","v":"S"}]
["GTOPO30","GTOPO30",null,"GTOPO30","Elevation","DOI-USGS","Jeff Danielson"," daniels@usgs.gov",{"$f":"VLOOKUP(B101,'LOC FINAL with new Themes'!A:M,7,0)","v":"GTOPO30 is static; one data set; this is the POC and data manager; this is the name and maintain three complete with two physically separate on-site and one off-site"},{"$f":"VLOOKUP(B101,'LOC FINAL with new Themes'!A:M,8,0)","v":0},{"$f":"VLOOKUP(B101,'LOC FINAL with new Themes'!A:M,9,0)","v":0},{"$f":"VLOOKUP(B101,'LOC FINAL with new Themes'!A:M,10,0)","v":0},{"$f":"VLOOKUP(B101,'LOC FINAL with new Themes'!A:M,11,0)","v":0},{"$f":"VLOOKUP(B101,'LOC FINAL with new Themes'!A:M,12,0)","v":0},{"$f":"VLOOKUP(B101,'LOC FINAL with new Themes'!A:M,13,0)","v":0}]
["National Map National Elevation Data Set (NED)","National Map  - National Elevation Dataset (NED)",null,"National Map  - National Elevation Dataset (NED)","Elevation","DOI-USGS","Jim Mauck","lyost@usgs.gov",{"$f":"VLOOKUP(B102,'LOC FINAL with new Themes'!A:M,7,0)","v":0},{"$f":"VLOOKUP(B102,'LOC FINAL with new Themes'!A:M,8,0)","v":0},{"$f":"VLOOKUP(B102,'LOC FINAL with new Themes'!A:M,9,0)","v":0},{"$f":"VLOOKUP(B102,'LOC FINAL with new Themes'!A:M,10,0)","v":0},{"$f":"VLOOKUP(B102,'LOC FINAL with new Themes'!A:M,11,0)","v":0},{"$f":"VLOOKUP(B102,'LOC FINAL with new Themes'!A:M,12,0)","v":0},{"$f":"VLOOKUP(B102,'LOC FINAL with new Themes'!A:M,13,0)","v":0}]
["SRTM (3-arc second DTEDS)","SRTM (3-arc second DTEDS)",null,"SRTM (3-arc second DTEDS)","Elevation","DOI-USGS","Dean Gesch, USGS","gesch@usgs.gov",{"$f":"VLOOKUP(B103,'LOC FINAL with new Themes'!A:M,7,0)","v":"SRTM is static; one data set; this is the POC and data manager; this is the name and maintain three complete with two physically separate on-site and one off-site"},{"$f":"VLOOKUP(B103,'LOC FINAL with new Themes'!A:M,8,0)","v":0},{"$f":"VLOOKUP(B103,'LOC FINAL with new Themes'!A:M,9,0)","v":0},{"$f":"VLOOKUP(B103,'LOC FINAL with new Themes'!A:M,10,0)","v":0},{"$f":"VLOOKUP(B103,'LOC FINAL with new Themes'!A:M,11,0)","v":0},{"$f":"VLOOKUP(B103,'LOC FINAL with new Themes'!A:M,12,0)","v":0},{"$f":"VLOOKUP(B103,'LOC FINAL with new Themes'!A:M,13,0)","v":"S"}]
["Digital Flood Insurance Rate Maps (D-FIRM)","Digital Flood Insurance Rate Maps (D-FIRM)","Digital Flood Insurance Rate Maps (DFIRM)","Digital Flood Insurance Rate Maps (DFIRM)","Elevation ","DHS-FEMA","Scott McAfee","scott.mcaffee@dhs.gov",{"$f":"VLOOKUP(B104,'LOC FINAL with new Themes'!A:M,7,0)","v":0},{"$f":"VLOOKUP(B104,'LOC FINAL with new Themes'!A:M,8,0)","v":0},{"$f":"VLOOKUP(B104,'LOC FINAL with new Themes'!A:M,9,0)","v":0},{"$f":"VLOOKUP(B104,'LOC FINAL with new Themes'!A:M,10,0)","v":0},{"$f":"VLOOKUP(B104,'LOC FINAL with new Themes'!A:M,11,0)","v":0},{"$f":"VLOOKUP(B104,'LOC FINAL with new Themes'!A:M,12,0)","v":0},{"$f":"VLOOKUP(B104,'LOC FINAL with new Themes'!A:M,13,0)","v":0}]
[null,null,"Elevation Bathymetric - Ocean, Coastal, and Great Lakes Bathymetry ","Elevation Bathymetric - Ocean, Coastal, and Great Lakes Bathymetry ","Elevation ","DOC-NOAA"]
[null,null,"National Elevation Dataset  - National Map","National Elevation Dataset  - National Map","Elevation ","DOI-USGS"]
["National Flood Hazard Layer (NFHL)","National Flood Hazard Layer (NFHL)","National Flood Hazard Layer (NFHL)","National Flood Hazard Layer (NFHL)","Elevation ","DHS-FEMA","Scott McAfee","scott.mcaffee@dhs.gov",{"$f":"VLOOKUP(B107,'LOC FINAL with new Themes'!A:M,7,0)","v":0},{"$f":"VLOOKUP(B107,'LOC FINAL with new Themes'!A:M,8,0)","v":0},{"$f":"VLOOKUP(B107,'LOC FINAL with new Themes'!A:M,9,0)","v":0},{"$f":"VLOOKUP(B107,'LOC FINAL with new Themes'!A:M,10,0)","v":0},{"$f":"VLOOKUP(B107,'LOC FINAL with new Themes'!A:M,11,0)","v":0},{"$f":"VLOOKUP(B107,'LOC FINAL with new Themes'!A:M,12,0)","v":0},{"$f":"VLOOKUP(B107,'LOC FINAL with new Themes'!A:M,13,0)","v":0}]
[null,null,null,{"$f":"SUBTOTAL(3,D99:D107)","v":9},"Elevation Count"]
[null,null,"Airborne Gravity",{"$f":"IF(C109=0,B109,C109)","v":"Airborne Gravity"},"Geodetic Control ","DOC-NOAA","Dr. Theresa Diehl","theresa.diehl@noaa.gov"]
[null,null,"Terrestrial Gravity",{"$f":"IF(C110=0,B110,C110)","v":"Terrestrial Gravity"},"Geodetic Control ","DOC-NOAA","Bill Waickman ","bill.waickman@noaa.gov"]
[null,null,"Continuously Operating Reference Stations (CORS)","Continuously Operating Reference Stations (CORS)","Geodetic Control ","DOC-NOAA","Dr. Giovanni Sella","giovanni.sella@noaa.gov"]
[null,null,"Geoid Models","Geoid Models","Geodetic Control ","DOC-NOAA","Dr. Dan Roman","dan.roman@noaa.gov"]
["National Geologic Data Base","National Geologic Data Base","National Geodetic Survey (NGS) Datasheets","National Geodetic Survey (NGS) Datasheets","Geodetic Control ","DOC-NOAA","Jim Tomlin","jim.tomlin@noaa.gov",{"$f":"VLOOKUP(B113,'LOC FINAL with new Themes'!A:M,7,0)","v":0},{"$f":"VLOOKUP(B113,'LOC FINAL with new Themes'!A:M,8,0)","v":0},{"$f":"VLOOKUP(B113,'LOC FINAL with new Themes'!A:M,9,0)","v":0},{"$f":"VLOOKUP(B113,'LOC FINAL with new Themes'!A:M,10,0)","v":0},{"$f":"VLOOKUP(B113,'LOC FINAL with new Themes'!A:M,11,0)","v":0},{"$f":"VLOOKUP(B113,'LOC FINAL with new Themes'!A:M,12,0)","v":0},{"$f":"VLOOKUP(B113,'LOC FINAL with new Themes'!A:M,13,0)","v":0}]
[null,null,"Precise Global Navigation Satellite System (GNSS) Orbits",{"$f":"IF(C114=0,B219,C114)","v":"Precise Global Navigation Satellite System (GNSS) Orbits"},"Geodetic Control ","DOC-NOAA","Dr. Jake Griffiths","jake.griffiths@noaa.gov"]
[null,null,null,{"$f":"SUBTOTAL(3,D109:D114)","v":6},"Geodetic Control  Count"]
[null,null,"Coal assessment and mapping",{"$f":"IF(C116=0,B116,C116)","v":"Coal assessment and mapping"},"Geology","DOI-USGS"]
["Coastline Data","Coastline Data","Coastline Data","Coastline Data","Geology","DOI-BOEM","Doug Vandegraft","douglas.vandegraft@boemre.gov",{"$f":"VLOOKUP(B117,'LOC FINAL with new Themes'!A:M,7,0)","v":"undeliverable email- neeed to identify new contact"},{"$f":"VLOOKUP(B117,'LOC FINAL with new Themes'!A:M,8,0)","v":0},{"$f":"VLOOKUP(B117,'LOC FINAL with new Themes'!A:M,9,0)","v":0},{"$f":"VLOOKUP(B117,'LOC FINAL with new Themes'!A:M,10,0)","v":0},{"$f":"VLOOKUP(B117,'LOC FINAL with new Themes'!A:M,11,0)","v":0},{"$f":"VLOOKUP(B117,'LOC FINAL with new Themes'!A:M,12,0)","v":0},{"$f":"VLOOKUP(B117,'LOC FINAL with new Themes'!A:M,13,0)","v":0}]
[null,null,"Earthquake monitoring, research, and mapping","Earthquake monitoring, research, and mapping","Geology","DOI-USGS"]
[null,null,"Geochemistry","Geochemistry","Geology","DOI-USGS"]
[null,null,"Geochronology","Geochronology","Geology","DOI-USGS"]
[null,null,"Geologic mapping","Geologic mapping","Geology","DOI-USGS"]
[null,null,"Geomagnetism","Geomagnetism","Geology","DOI-USGS"]
[null,null,"Geophysics","Geophysics","Geology","DOI-USGS"]
[null,null,"Landslide monitoring, research, and mapping","Landslide monitoring, research, and mapping","Geology","DOI-USGS"]
[null,null,"Marine geology","Marine geology","Geology","DOI-USGS"]
[null,null,"Metallic mineral assessment and mapping","Metallic mineral assessment and mapping","Geology","DOI-USGS"]
[null,null,"MMS Baseline","MMS Baseline","Geology","DOI-MMS"]
[null,null,"Non-metallic mineral assessment and mapping, onshore",{"$f":"IF(C128=0,B127,C128)","v":"Non-metallic mineral assessment and mapping, onshore"},"Geology","DOI-USGS"]
["OCS BLOCK LEASE DATA (OCS)","OCS BLOCK LEASE DATA ","OCS Lease Blocks",{"$f":"IF(C129=0,#REF!,C129)","v":"OCS Lease Blocks"},"Geology","DOI-BOEM","Doug Vandegraft","douglas.vandegraft@boemre.gov",{"$f":"VLOOKUP(B129,'LOC FINAL with new Themes'!A:M,7,0)","v":"undeliverable email- neeed to identify new contact"},{"$f":"VLOOKUP(B129,'LOC FINAL with new Themes'!A:M,8,0)","v":0},{"$f":"VLOOKUP(B129,'LOC FINAL with new Themes'!A:M,9,0)","v":0},{"$f":"VLOOKUP(B129,'LOC FINAL with new Themes'!A:M,10,0)","v":0},{"$f":"VLOOKUP(B129,'LOC FINAL with new Themes'!A:M,11,0)","v":0},{"$f":"VLOOKUP(B129,'LOC FINAL with new Themes'!A:M,12,0)","v":0},{"$f":"VLOOKUP(B129,'LOC FINAL with new Themes'!A:M,13,0)","v":0}]
[null,null,"OCS Active Leases",{"$f":"IF(C130=0,B129,C130)","v":"OCS Active Leases"},"Geology","DOI-BOEM","Doug Vandegraft","douglas.vandegraft@boemre.gov"]
[null,null,"Oil and gas assessment and mapping, onshore",{"$f":"IF(C131=0,B131,C131)","v":"Oil and gas assessment and mapping, onshore"},"Geology","DOI-USGS"]
[null,null,"Paleontology","Paleontology","Geology","DOI-USGS"]
[null,null,"Sand and Gravel","Sand and Gravel","Geology","DOI-MMS"]
[null,null,"Volcano monitoring, research, and mapping","Volcano monitoring, research, and mapping","Geology","DOI-USGS"]
[null,null,"Wells","Wells","Geology","DOI-MMS"]
[null,null,null,{"$f":"SUBTOTAL(3,D116:D135)","v":20},"Geology Count"]
["County Boundaries","County Boundaries",null,{"$f":"IF(C137=0,B137,C137)","v":"County Boundaries"},"Governmental Units",null,null,null,{"$f":"VLOOKUP(B137,'LOC FINAL with new Themes'!A:M,7,0)","v":0},{"$f":"VLOOKUP(B137,'LOC FINAL with new Themes'!A:M,8,0)","v":0},{"$f":"VLOOKUP(B137,'LOC FINAL with new Themes'!A:M,9,0)","v":0},{"$f":"VLOOKUP(B137,'LOC FINAL with new Themes'!A:M,10,0)","v":0},{"$f":"VLOOKUP(B137,'LOC FINAL with new Themes'!A:M,11,0)","v":0},{"$f":"VLOOKUP(B137,'LOC FINAL with new Themes'!A:M,12,0)","v":0},{"$f":"VLOOKUP(B137,'LOC FINAL with new Themes'!A:M,13,0)","v":0}]
[null,"Place and MCD Boundaries",null,"Place and MCD Boundaries","Governmental Units",null,null,null,{"$f":"VLOOKUP(B138,'LOC FINAL with new Themes'!A:M,7,0)","v":0},{"$f":"VLOOKUP(B138,'LOC FINAL with new Themes'!A:M,8,0)","v":0},{"$f":"VLOOKUP(B138,'LOC FINAL with new Themes'!A:M,9,0)","v":0},{"$f":"VLOOKUP(B138,'LOC FINAL with new Themes'!A:M,10,0)","v":0},{"$f":"VLOOKUP(B138,'LOC FINAL with new Themes'!A:M,11,0)","v":0},{"$f":"VLOOKUP(B138,'LOC FINAL with new Themes'!A:M,12,0)","v":0},{"$f":"VLOOKUP(B138,'LOC FINAL with new Themes'!A:M,13,0)","v":0}]
[null,"Alaska Native Regional Corporation (2010 Census)","Alaska Native Regional Corporation (2010 Census)","Alaska Native Regional Corporation (2010 Census)","Governmental Units ","DOC-Census","Jennifer Holland","Jennifer.L.Holland@census.gov",{"$f":"VLOOKUP(B139,'LOC FINAL with new Themes'!A:M,7,0)","v":0},{"$f":"VLOOKUP(B139,'LOC FINAL with new Themes'!A:M,8,0)","v":0},{"$f":"VLOOKUP(B139,'LOC FINAL with new Themes'!A:M,9,0)","v":0},{"$f":"VLOOKUP(B139,'LOC FINAL with new Themes'!A:M,10,0)","v":0},{"$f":"VLOOKUP(B139,'LOC FINAL with new Themes'!A:M,11,0)","v":0},{"$f":"VLOOKUP(B139,'LOC FINAL with new Themes'!A:M,12,0)","v":0},{"$f":"VLOOKUP(B139,'LOC FINAL with new Themes'!A:M,13,0)","v":0}]
[null,"Alaska Native Regional Corporation (Census 2000)","Alaska Native Regional Corporation (Census 2000)","Alaska Native Regional Corporation (Census 2000)","Governmental Units ","DOC-Census","Jennifer Holland","Jennifer.L.Holland@census.gov",{"$f":"VLOOKUP(B140,'LOC FINAL with new Themes'!A:M,7,0)","v":0},{"$f":"VLOOKUP(B140,'LOC FINAL with new Themes'!A:M,8,0)","v":0},{"$f":"VLOOKUP(B140,'LOC FINAL with new Themes'!A:M,9,0)","v":0},{"$f":"VLOOKUP(B140,'LOC FINAL with new Themes'!A:M,10,0)","v":0},{"$f":"VLOOKUP(B140,'LOC FINAL with new Themes'!A:M,11,0)","v":0},{"$f":"VLOOKUP(B140,'LOC FINAL with new Themes'!A:M,12,0)","v":0},{"$f":"VLOOKUP(B140,'LOC FINAL with new Themes'!A:M,13,0)","v":0}]
[null,"American Indian Tribal Subdivision (2010 Census)","American Indian Tribal Subdivision (2010 Census)","American Indian Tribal Subdivision (2010 Census)","Governmental Units ","DOC-Census","Jennifer Holland","Jennifer.L.Holland@census.gov",{"$f":"VLOOKUP(B141,'LOC FINAL with new Themes'!A:M,7,0)","v":0},{"$f":"VLOOKUP(B141,'LOC FINAL with new Themes'!A:M,8,0)","v":0},{"$f":"VLOOKUP(B141,'LOC FINAL with new Themes'!A:M,9,0)","v":0},{"$f":"VLOOKUP(B141,'LOC FINAL with new Themes'!A:M,10,0)","v":0},{"$f":"VLOOKUP(B141,'LOC FINAL with new Themes'!A:M,11,0)","v":0},{"$f":"VLOOKUP(B141,'LOC FINAL with new Themes'!A:M,12,0)","v":0},{"$f":"VLOOKUP(B141,'LOC FINAL with new Themes'!A:M,13,0)","v":0}]
[null,"American Indian Tribal Subdivision (Census 2000)","American Indian Tribal Subdivision (Census 2000)","American Indian Tribal Subdivision (Census 2000)","Governmental Units ","DOC-Census","Jennifer Holland","Jennifer.L.Holland@census.gov",{"$f":"VLOOKUP(B142,'LOC FINAL with new Themes'!A:M,7,0)","v":0},{"$f":"VLOOKUP(B142,'LOC FINAL with new Themes'!A:M,8,0)","v":0},{"$f":"VLOOKUP(B142,'LOC FINAL with new Themes'!A:M,9,0)","v":0},{"$f":"VLOOKUP(B142,'LOC FINAL with new Themes'!A:M,10,0)","v":0},{"$f":"VLOOKUP(B142,'LOC FINAL with new Themes'!A:M,11,0)","v":0},{"$f":"VLOOKUP(B142,'LOC FINAL with new Themes'!A:M,12,0)","v":0},{"$f":"VLOOKUP(B142,'LOC FINAL with new Themes'!A:M,13,0)","v":0}]
[null,"American Indian/Alaska Native/Native Hawaiian Area (2000 Census)","American Indian/Alaska Native/Native Hawaiian Area (2000 Census)","American Indian/Alaska Native/Native Hawaiian Area (2000 Census)","Governmental Units ","DOC-Census","Jennifer Holland","Jennifer.L.Holland@census.gov",{"$f":"VLOOKUP(B143,'LOC FINAL with new Themes'!A:M,7,0)","v":0},{"$f":"VLOOKUP(B143,'LOC FINAL with new Themes'!A:M,8,0)","v":0},{"$f":"VLOOKUP(B143,'LOC FINAL with new Themes'!A:M,9,0)","v":0},{"$f":"VLOOKUP(B143,'LOC FINAL with new Themes'!A:M,10,0)","v":0},{"$f":"VLOOKUP(B143,'LOC FINAL with new Themes'!A:M,11,0)","v":0},{"$f":"VLOOKUP(B143,'LOC FINAL with new Themes'!A:M,12,0)","v":0},{"$f":"VLOOKUP(B143,'LOC FINAL with new Themes'!A:M,13,0)","v":0}]
[null,"American Indian/Alaska Native/Native Hawaiian Area (2010 Census)","American Indian/Alaska Native/Native Hawaiian Area (2010 Census)","American Indian/Alaska Native/Native Hawaiian Area (2010 Census)","Governmental Units ","DOC-Census","Jennifer Holland","Jennifer.L.Holland@census.gov",{"$f":"VLOOKUP(B144,'LOC FINAL with new Themes'!A:M,7,0)","v":0},{"$f":"VLOOKUP(B144,'LOC FINAL with new Themes'!A:M,8,0)","v":0},{"$f":"VLOOKUP(B144,'LOC FINAL with new Themes'!A:M,9,0)","v":0},{"$f":"VLOOKUP(B144,'LOC FINAL with new Themes'!A:M,10,0)","v":0},{"$f":"VLOOKUP(B144,'LOC FINAL with new Themes'!A:M,11,0)","v":0},{"$f":"VLOOKUP(B144,'LOC FINAL with new Themes'!A:M,12,0)","v":0},{"$f":"VLOOKUP(B144,'LOC FINAL with new Themes'!A:M,13,0)","v":0}]
[null,"Combined New England City and Town Area (2010 Census)","Combined New England City and Town Area (2010 Census)","Combined New England City and Town Area (2010 Census)","Governmental Units ","DOC-Census","Jennifer Holland","Jennifer.L.Holland@census.gov",{"$f":"VLOOKUP(B145,'LOC FINAL with new Themes'!A:M,7,0)","v":0},{"$f":"VLOOKUP(B145,'LOC FINAL with new Themes'!A:M,8,0)","v":0},{"$f":"VLOOKUP(B145,'LOC FINAL with new Themes'!A:M,9,0)","v":0},{"$f":"VLOOKUP(B145,'LOC FINAL with new Themes'!A:M,10,0)","v":0},{"$f":"VLOOKUP(B145,'LOC FINAL with new Themes'!A:M,11,0)","v":0},{"$f":"VLOOKUP(B145,'LOC FINAL with new Themes'!A:M,12,0)","v":0},{"$f":"VLOOKUP(B145,'LOC FINAL with new Themes'!A:M,13,0)","v":0}]
["Congressional District Boundaries","Congressional District (108th)","Congressional District (108th)","Congressional District (108th)","Governmental Units ","DOC-Census","Jennifer Holland","Jennifer.L.Holland@census.gov",{"$f":"VLOOKUP(B146,'LOC FINAL with new Themes'!A:M,7,0)","v":0},{"$f":"VLOOKUP(B146,'LOC FINAL with new Themes'!A:M,8,0)","v":0},{"$f":"VLOOKUP(B146,'LOC FINAL with new Themes'!A:M,9,0)","v":0},{"$f":"VLOOKUP(B146,'LOC FINAL with new Themes'!A:M,10,0)","v":0},{"$f":"VLOOKUP(B146,'LOC FINAL with new Themes'!A:M,11,0)","v":0},{"$f":"VLOOKUP(B146,'LOC FINAL with new Themes'!A:M,12,0)","v":0},{"$f":"VLOOKUP(B146,'LOC FINAL with new Themes'!A:M,13,0)","v":0}]
[null,"Congressional District (111th)","Congressional District (111th)","Congressional District (111th)","Governmental Units ","DOC-Census","Jennifer Holland","Jennifer.L.Holland@census.gov",{"$f":"VLOOKUP(B147,'LOC FINAL with new Themes'!A:M,7,0)","v":0},{"$f":"VLOOKUP(B147,'LOC FINAL with new Themes'!A:M,8,0)","v":0},{"$f":"VLOOKUP(B147,'LOC FINAL with new Themes'!A:M,9,0)","v":0},{"$f":"VLOOKUP(B147,'LOC FINAL with new Themes'!A:M,10,0)","v":0},{"$f":"VLOOKUP(B147,'LOC FINAL with new Themes'!A:M,11,0)","v":0},{"$f":"VLOOKUP(B147,'LOC FINAL with new Themes'!A:M,12,0)","v":0},{"$f":"VLOOKUP(B147,'LOC FINAL with new Themes'!A:M,13,0)","v":0}]
[null,"Consolidated City (2010 Census)","Consolidated City (2010 Census)","Consolidated City (2010 Census)","Governmental Units ","DOC-Census","Jennifer Holland","Jennifer.L.Holland@census.gov",{"$f":"VLOOKUP(B148,'LOC FINAL with new Themes'!A:M,7,0)","v":0},{"$f":"VLOOKUP(B148,'LOC FINAL with new Themes'!A:M,8,0)","v":0},{"$f":"VLOOKUP(B148,'LOC FINAL with new Themes'!A:M,9,0)","v":0},{"$f":"VLOOKUP(B148,'LOC FINAL with new Themes'!A:M,10,0)","v":0},{"$f":"VLOOKUP(B148,'LOC FINAL with new Themes'!A:M,11,0)","v":0},{"$f":"VLOOKUP(B148,'LOC FINAL with new Themes'!A:M,12,0)","v":0},{"$f":"VLOOKUP(B148,'LOC FINAL with new Themes'!A:M,13,0)","v":0}]
[null,"Consolidated City (Census 2000)","Consolidated City (Census 2000)","Consolidated City (Census 2000)","Governmental Units ","DOC-Census","Jennifer Holland","Jennifer.L.Holland@census.gov",{"$f":"VLOOKUP(B149,'LOC FINAL with new Themes'!A:M,7,0)","v":0},{"$f":"VLOOKUP(B149,'LOC FINAL with new Themes'!A:M,8,0)","v":0},{"$f":"VLOOKUP(B149,'LOC FINAL with new Themes'!A:M,9,0)","v":0},{"$f":"VLOOKUP(B149,'LOC FINAL with new Themes'!A:M,10,0)","v":0},{"$f":"VLOOKUP(B149,'LOC FINAL with new Themes'!A:M,11,0)","v":0},{"$f":"VLOOKUP(B149,'LOC FINAL with new Themes'!A:M,12,0)","v":0},{"$f":"VLOOKUP(B149,'LOC FINAL with new Themes'!A:M,13,0)","v":0}]
[null,"County and Equivalent (2010 Census)","County and Equivalent (2010 Census)","County and Equivalent (2010 Census)","Governmental Units ","DOC-Census","Jennifer Holland","Jennifer.L.Holland@census.gov",{"$f":"VLOOKUP(B150,'LOC FINAL with new Themes'!A:M,7,0)","v":0},{"$f":"VLOOKUP(B150,'LOC FINAL with new Themes'!A:M,8,0)","v":0},{"$f":"VLOOKUP(B150,'LOC FINAL with new Themes'!A:M,9,0)","v":0},{"$f":"VLOOKUP(B150,'LOC FINAL with new Themes'!A:M,10,0)","v":0},{"$f":"VLOOKUP(B150,'LOC FINAL with new Themes'!A:M,11,0)","v":0},{"$f":"VLOOKUP(B150,'LOC FINAL with new Themes'!A:M,12,0)","v":0},{"$f":"VLOOKUP(B150,'LOC FINAL with new Themes'!A:M,13,0)","v":0}]
[null,"County and Equivalent (Census 2000)","County and Equivalent (Census 2000)","County and Equivalent (Census 2000)","Governmental Units ","DOC-Census","Jennifer Holland","Jennifer.L.Holland@census.gov",{"$f":"VLOOKUP(B151,'LOC FINAL with new Themes'!A:M,7,0)","v":0},{"$f":"VLOOKUP(B151,'LOC FINAL with new Themes'!A:M,8,0)","v":0},{"$f":"VLOOKUP(B151,'LOC FINAL with new Themes'!A:M,9,0)","v":0},{"$f":"VLOOKUP(B151,'LOC FINAL with new Themes'!A:M,10,0)","v":0},{"$f":"VLOOKUP(B151,'LOC FINAL with new Themes'!A:M,11,0)","v":0},{"$f":"VLOOKUP(B151,'LOC FINAL with new Themes'!A:M,12,0)","v":0},{"$f":"VLOOKUP(B151,'LOC FINAL with new Themes'!A:M,13,0)","v":0}]
[null,"County Subdivision (2010 Census)","County Subdivision (2010 Census)","County Subdivision (2010 Census)","Governmental Units ","DOC-Census","Jennifer Holland","Jennifer.L.Holland@census.gov",{"$f":"VLOOKUP(B152,'LOC FINAL with new Themes'!A:M,7,0)","v":0},{"$f":"VLOOKUP(B152,'LOC FINAL with new Themes'!A:M,8,0)","v":0},{"$f":"VLOOKUP(B152,'LOC FINAL with new Themes'!A:M,9,0)","v":0},{"$f":"VLOOKUP(B152,'LOC FINAL with new Themes'!A:M,10,0)","v":0},{"$f":"VLOOKUP(B152,'LOC FINAL with new Themes'!A:M,11,0)","v":0},{"$f":"VLOOKUP(B152,'LOC FINAL with new Themes'!A:M,12,0)","v":0},{"$f":"VLOOKUP(B152,'LOC FINAL with new Themes'!A:M,13,0)","v":0}]
[null,"County Subdivision (Census 2000)","County Subdivision (Census 2000)","County Subdivision (Census 2000)","Governmental Units ","DOC-Census","Jennifer Holland","Jennifer.L.Holland@census.gov",{"$f":"VLOOKUP(B153,'LOC FINAL with new Themes'!A:M,7,0)","v":0},{"$f":"VLOOKUP(B153,'LOC FINAL with new Themes'!A:M,8,0)","v":0},{"$f":"VLOOKUP(B153,'LOC FINAL with new Themes'!A:M,9,0)","v":0},{"$f":"VLOOKUP(B153,'LOC FINAL with new Themes'!A:M,10,0)","v":0},{"$f":"VLOOKUP(B153,'LOC FINAL with new Themes'!A:M,11,0)","v":0},{"$f":"VLOOKUP(B153,'LOC FINAL with new Themes'!A:M,12,0)","v":0},{"$f":"VLOOKUP(B153,'LOC FINAL with new Themes'!A:M,13,0)","v":0}]
[null,"Metropolitan Division (2010 Census)","Metropolitan Division (2010 Census)","Metropolitan Division (2010 Census)","Governmental Units ","DOC-Census","Jennifer Holland","Jennifer.L.Holland@census.gov",{"$f":"VLOOKUP(B154,'LOC FINAL with new Themes'!A:M,7,0)","v":0},{"$f":"VLOOKUP(B154,'LOC FINAL with new Themes'!A:M,8,0)","v":0},{"$f":"VLOOKUP(B154,'LOC FINAL with new Themes'!A:M,9,0)","v":0},{"$f":"VLOOKUP(B154,'LOC FINAL with new Themes'!A:M,10,0)","v":0},{"$f":"VLOOKUP(B154,'LOC FINAL with new Themes'!A:M,11,0)","v":0},{"$f":"VLOOKUP(B154,'LOC FINAL with new Themes'!A:M,12,0)","v":0},{"$f":"VLOOKUP(B154,'LOC FINAL with new Themes'!A:M,13,0)","v":0}]
[null,"Metropolitan Division (2010 Census)","Metropolitan Division (2010 Census)","Metropolitan Division (2010 Census)","Governmental Units ","DOC-Census","Jennifer Holland","Jennifer.L.Holland@census.gov",{"$f":"VLOOKUP(B155,'LOC FINAL with new Themes'!A:M,7,0)","v":0},{"$f":"VLOOKUP(B155,'LOC FINAL with new Themes'!A:M,8,0)","v":0},{"$f":"VLOOKUP(B155,'LOC FINAL with new Themes'!A:M,9,0)","v":0},{"$f":"VLOOKUP(B155,'LOC FINAL with new Themes'!A:M,10,0)","v":0},{"$f":"VLOOKUP(B155,'LOC FINAL with new Themes'!A:M,11,0)","v":0},{"$f":"VLOOKUP(B155,'LOC FINAL with new Themes'!A:M,12,0)","v":0},{"$f":"VLOOKUP(B155,'LOC FINAL with new Themes'!A:M,13,0)","v":0}]
[null,"New England City and Town Area (2010 Census)","New England City and Town Area (2010 Census)","New England City and Town Area (2010 Census)","Governmental Units ","DOC-Census","Jennifer Holland","Jennifer.L.Holland@census.gov",{"$f":"VLOOKUP(B156,'LOC FINAL with new Themes'!A:M,7,0)","v":0},{"$f":"VLOOKUP(B156,'LOC FINAL with new Themes'!A:M,8,0)","v":0},{"$f":"VLOOKUP(B156,'LOC FINAL with new Themes'!A:M,9,0)","v":0},{"$f":"VLOOKUP(B156,'LOC FINAL with new Themes'!A:M,10,0)","v":0},{"$f":"VLOOKUP(B156,'LOC FINAL with new Themes'!A:M,11,0)","v":0},{"$f":"VLOOKUP(B156,'LOC FINAL with new Themes'!A:M,12,0)","v":0},{"$f":"VLOOKUP(B156,'LOC FINAL with new Themes'!A:M,13,0)","v":0}]
[null,"New England City and Town Area Division (2010 Census)","New England City and Town Area Division (2010 Census)","New England City and Town Area Division (2010 Census)","Governmental Units ","DOC-Census","Jennifer Holland","Jennifer.L.Holland@census.gov",{"$f":"VLOOKUP(B157,'LOC FINAL with new Themes'!A:M,7,0)","v":0},{"$f":"VLOOKUP(B157,'LOC FINAL with new Themes'!A:M,8,0)","v":0},{"$f":"VLOOKUP(B157,'LOC FINAL with new Themes'!A:M,9,0)","v":0},{"$f":"VLOOKUP(B157,'LOC FINAL with new Themes'!A:M,10,0)","v":0},{"$f":"VLOOKUP(B157,'LOC FINAL with new Themes'!A:M,11,0)","v":0},{"$f":"VLOOKUP(B157,'LOC FINAL with new Themes'!A:M,12,0)","v":0},{"$f":"VLOOKUP(B157,'LOC FINAL with new Themes'!A:M,13,0)","v":0}]
["Place and MCD Boundaries","Place (2010 Census)","Place (2010 Census)","Place (2010 Census)","Governmental Units ","DOC-Census","Jennifer Holland","Jennifer.L.Holland@census.gov",{"$f":"VLOOKUP(B158,'LOC FINAL with new Themes'!A:M,7,0)","v":0},{"$f":"VLOOKUP(B158,'LOC FINAL with new Themes'!A:M,8,0)","v":0},{"$f":"VLOOKUP(B158,'LOC FINAL with new Themes'!A:M,9,0)","v":0},{"$f":"VLOOKUP(B158,'LOC FINAL with new Themes'!A:M,10,0)","v":0},{"$f":"VLOOKUP(B158,'LOC FINAL with new Themes'!A:M,11,0)","v":0},{"$f":"VLOOKUP(B158,'LOC FINAL with new Themes'!A:M,12,0)","v":0},{"$f":"VLOOKUP(B158,'LOC FINAL with new Themes'!A:M,13,0)","v":0}]
[null,"Place (Census 2000)","Place (Census 2000)","Place (Census 2000)","Governmental Units ","DOC-Census","Jennifer Holland","Jennifer.L.Holland@census.gov",{"$f":"VLOOKUP(B159,'LOC FINAL with new Themes'!A:M,7,0)","v":0},{"$f":"VLOOKUP(B159,'LOC FINAL with new Themes'!A:M,8,0)","v":0},{"$f":"VLOOKUP(B159,'LOC FINAL with new Themes'!A:M,9,0)","v":0},{"$f":"VLOOKUP(B159,'LOC FINAL with new Themes'!A:M,10,0)","v":0},{"$f":"VLOOKUP(B159,'LOC FINAL with new Themes'!A:M,11,0)","v":0},{"$f":"VLOOKUP(B159,'LOC FINAL with new Themes'!A:M,12,0)","v":0},{"$f":"VLOOKUP(B159,'LOC FINAL with new Themes'!A:M,13,0)","v":0}]
["State(+ Territories) Boundaries","State and Equivalent  (2010 Census)","State and Equivalent  (2010 Census)","State and Equivalent  (2010 Census)","Governmental Units ","DOC-Census","Jennifer Holland","Jennifer.L.Holland@census.gov",{"$f":"VLOOKUP(B160,'LOC FINAL with new Themes'!A:M,7,0)","v":0},{"$f":"VLOOKUP(B160,'LOC FINAL with new Themes'!A:M,8,0)","v":0},{"$f":"VLOOKUP(B160,'LOC FINAL with new Themes'!A:M,9,0)","v":0},{"$f":"VLOOKUP(B160,'LOC FINAL with new Themes'!A:M,10,0)","v":0},{"$f":"VLOOKUP(B160,'LOC FINAL with new Themes'!A:M,11,0)","v":0},{"$f":"VLOOKUP(B160,'LOC FINAL with new Themes'!A:M,12,0)","v":0},{"$f":"VLOOKUP(B160,'LOC FINAL with new Themes'!A:M,13,0)","v":0}]
[null,"State and Equivalent  (Census 2000)","State and Equivalent  (Census 2000)","State and Equivalent  (Census 2000)","Governmental Units ","DOC-Census","Jennifer Holland","Jennifer.L.Holland@census.gov",{"$f":"VLOOKUP(B161,'LOC FINAL with new Themes'!A:M,7,0)","v":0},{"$f":"VLOOKUP(B161,'LOC FINAL with new Themes'!A:M,8,0)","v":0},{"$f":"VLOOKUP(B161,'LOC FINAL with new Themes'!A:M,9,0)","v":0},{"$f":"VLOOKUP(B161,'LOC FINAL with new Themes'!A:M,10,0)","v":0},{"$f":"VLOOKUP(B161,'LOC FINAL with new Themes'!A:M,11,0)","v":0},{"$f":"VLOOKUP(B161,'LOC FINAL with new Themes'!A:M,12,0)","v":0},{"$f":"VLOOKUP(B161,'LOC FINAL with new Themes'!A:M,13,0)","v":0}]
[null,"State Legislative District (Lower Chamber) (2010 Census)","State Legislative District (Lower Chamber) (2010 Census)","State Legislative District (Lower Chamber) (2010 Census)","Governmental Units ","DOC-Census","Jennifer Holland","Jennifer.L.Holland@census.gov",{"$f":"VLOOKUP(B162,'LOC FINAL with new Themes'!A:M,7,0)","v":0},{"$f":"VLOOKUP(B162,'LOC FINAL with new Themes'!A:M,8,0)","v":0},{"$f":"VLOOKUP(B162,'LOC FINAL with new Themes'!A:M,9,0)","v":0},{"$f":"VLOOKUP(B162,'LOC FINAL with new Themes'!A:M,10,0)","v":0},{"$f":"VLOOKUP(B162,'LOC FINAL with new Themes'!A:M,11,0)","v":0},{"$f":"VLOOKUP(B162,'LOC FINAL with new Themes'!A:M,12,0)","v":0},{"$f":"VLOOKUP(B162,'LOC FINAL with new Themes'!A:M,13,0)","v":0}]
[null,"State Legislative District (Lower Chamber) (Census 2000)","State Legislative District (Lower Chamber) (Census 2000)","State Legislative District (Lower Chamber) (Census 2000)","Governmental Units ","DOC-Census","Jennifer Holland","Jennifer.L.Holland@census.gov",{"$f":"VLOOKUP(B163,'LOC FINAL with new Themes'!A:M,7,0)","v":0},{"$f":"VLOOKUP(B163,'LOC FINAL with new Themes'!A:M,8,0)","v":0},{"$f":"VLOOKUP(B163,'LOC FINAL with new Themes'!A:M,9,0)","v":0},{"$f":"VLOOKUP(B163,'LOC FINAL with new Themes'!A:M,10,0)","v":0},{"$f":"VLOOKUP(B163,'LOC FINAL with new Themes'!A:M,11,0)","v":0},{"$f":"VLOOKUP(B163,'LOC FINAL with new Themes'!A:M,12,0)","v":0},{"$f":"VLOOKUP(B163,'LOC FINAL with new Themes'!A:M,13,0)","v":0}]
[null,"State Legislative District (Upper Chamber) (2010 Census)","State Legislative District (Upper Chamber) (2010 Census)","State Legislative District (Upper Chamber) (2010 Census)","Governmental Units ","DOC-Census","Jennifer Holland","Jennifer.L.Holland@census.gov",{"$f":"VLOOKUP(B164,'LOC FINAL with new Themes'!A:M,7,0)","v":0},{"$f":"VLOOKUP(B164,'LOC FINAL with new Themes'!A:M,8,0)","v":0},{"$f":"VLOOKUP(B164,'LOC FINAL with new Themes'!A:M,9,0)","v":0},{"$f":"VLOOKUP(B164,'LOC FINAL with new Themes'!A:M,10,0)","v":0},{"$f":"VLOOKUP(B164,'LOC FINAL with new Themes'!A:M,11,0)","v":0},{"$f":"VLOOKUP(B164,'LOC FINAL with new Themes'!A:M,12,0)","v":0},{"$f":"VLOOKUP(B164,'LOC FINAL with new Themes'!A:M,13,0)","v":0}]
[null,"State Legislative District (Upper Chamber) (Census 2000)","State Legislative District (Upper Chamber) (Census 2000)","State Legislative District (Upper Chamber) (Census 2000)","Governmental Units ","DOC-Census","Jennifer Holland","Jennifer.L.Holland@census.gov",{"$f":"VLOOKUP(B165,'LOC FINAL with new Themes'!A:M,7,0)","v":0},{"$f":"VLOOKUP(B165,'LOC FINAL with new Themes'!A:M,8,0)","v":0},{"$f":"VLOOKUP(B165,'LOC FINAL with new Themes'!A:M,9,0)","v":0},{"$f":"VLOOKUP(B165,'LOC FINAL with new Themes'!A:M,10,0)","v":0},{"$f":"VLOOKUP(B165,'LOC FINAL with new Themes'!A:M,11,0)","v":0},{"$f":"VLOOKUP(B165,'LOC FINAL with new Themes'!A:M,12,0)","v":0},{"$f":"VLOOKUP(B165,'LOC FINAL with new Themes'!A:M,13,0)","v":0}]
[null,"Subbarrio (2010 Census)","Subbarrio (2010 Census)","Subbarrio (2010 Census)","Governmental Units ","DOC-Census","Jennifer Holland","Jennifer.L.Holland@census.gov",{"$f":"VLOOKUP(B166,'LOC FINAL with new Themes'!A:M,7,0)","v":0},{"$f":"VLOOKUP(B166,'LOC FINAL with new Themes'!A:M,8,0)","v":0},{"$f":"VLOOKUP(B166,'LOC FINAL with new Themes'!A:M,9,0)","v":0},{"$f":"VLOOKUP(B166,'LOC FINAL with new Themes'!A:M,10,0)","v":0},{"$f":"VLOOKUP(B166,'LOC FINAL with new Themes'!A:M,11,0)","v":0},{"$f":"VLOOKUP(B166,'LOC FINAL with new Themes'!A:M,12,0)","v":0},{"$f":"VLOOKUP(B166,'LOC FINAL with new Themes'!A:M,13,0)","v":0}]
[null,"Subbarrio (Census 2000)","Subbarrio (Census 2000)","Subbarrio (Census 2000)","Governmental Units ","DOC-Census","Jennifer Holland","Jennifer.L.Holland@census.gov",{"$f":"VLOOKUP(B167,'LOC FINAL with new Themes'!A:M,7,0)","v":0},{"$f":"VLOOKUP(B167,'LOC FINAL with new Themes'!A:M,8,0)","v":0},{"$f":"VLOOKUP(B167,'LOC FINAL with new Themes'!A:M,9,0)","v":0},{"$f":"VLOOKUP(B167,'LOC FINAL with new Themes'!A:M,10,0)","v":0},{"$f":"VLOOKUP(B167,'LOC FINAL with new Themes'!A:M,11,0)","v":0},{"$f":"VLOOKUP(B167,'LOC FINAL with new Themes'!A:M,12,0)","v":0},{"$f":"VLOOKUP(B167,'LOC FINAL with new Themes'!A:M,13,0)","v":0}]
[null,"Urban Area (Corrected Census 2000)","Urban Area (Corrected Census 2000)","Urban Area (Corrected Census 2000)","Governmental Units ","DOC-Census","Jennifer Holland","Jennifer.L.Holland@census.gov",{"$f":"VLOOKUP(B168,'LOC FINAL with new Themes'!A:M,7,0)","v":0},{"$f":"VLOOKUP(B168,'LOC FINAL with new Themes'!A:M,8,0)","v":0},{"$f":"VLOOKUP(B168,'LOC FINAL with new Themes'!A:M,9,0)","v":0},{"$f":"VLOOKUP(B168,'LOC FINAL with new Themes'!A:M,10,0)","v":0},{"$f":"VLOOKUP(B168,'LOC FINAL with new Themes'!A:M,11,0)","v":0},{"$f":"VLOOKUP(B168,'LOC FINAL with new Themes'!A:M,12,0)","v":0},{"$f":"VLOOKUP(B168,'LOC FINAL with new Themes'!A:M,13,0)","v":0}]
[null,null,null,{"$f":"SUBTOTAL(3,D137:D168)","v":32},"Governmental Units Count"]
["133 Urban Areas imagery program data","133 Urban Areas imagery program data",null,{"$f":"IF(C170=0,B170,C170)","v":"133 Urban Areas imagery program data"},"Imagery ","DOD-NGA","William Nellist","William.E.Nellist@nga.mil",{"$f":"VLOOKUP(B170,'LOC FINAL with new Themes'!A:M,7,0)","v":0},{"$f":"VLOOKUP(B170,'LOC FINAL with new Themes'!A:M,8,0)","v":0},{"$f":"VLOOKUP(B170,'LOC FINAL with new Themes'!A:M,9,0)","v":0},{"$f":"VLOOKUP(B170,'LOC FINAL with new Themes'!A:M,10,0)","v":0},{"$f":"VLOOKUP(B170,'LOC FINAL with new Themes'!A:M,11,0)","v":0},{"$f":"VLOOKUP(B170,'LOC FINAL with new Themes'!A:M,12,0)","v":0},{"$f":"VLOOKUP(B170,'LOC FINAL with new Themes'!A:M,13,0)","v":0}]
[null,"134 Urban Areas imagery program data",null,"134 Urban Areas imagery program data","Imagery ","DOI-USGS","George Lee","gylee@usgs.gov",{"$f":"VLOOKUP(B171,'LOC FINAL with new Themes'!A:M,7,0)","v":0},{"$f":"VLOOKUP(B171,'LOC FINAL with new Themes'!A:M,8,0)","v":0},{"$f":"VLOOKUP(B171,'LOC FINAL with new Themes'!A:M,9,0)","v":0},{"$f":"VLOOKUP(B171,'LOC FINAL with new Themes'!A:M,10,0)","v":0},{"$f":"VLOOKUP(B171,'LOC FINAL with new Themes'!A:M,11,0)","v":0},{"$f":"VLOOKUP(B171,'LOC FINAL with new Themes'!A:M,12,0)","v":0},{"$f":"VLOOKUP(B171,'LOC FINAL with new Themes'!A:M,13,0)","v":0}]
["ADS40 Hurricane Response 7.5' Quadrangle Mosaics","ADS40 Hurricane Response 7.5' Quadrangle Mosaics",null,"ADS40 Hurricane Response 7.5' Quadrangle Mosaics","Imagery ","DOI-USGS","Jim Mauck","jmauck@usgs.gov",{"$f":"VLOOKUP(B172,'LOC FINAL with new Themes'!A:M,7,0)","v":0},{"$f":"VLOOKUP(B172,'LOC FINAL with new Themes'!A:M,8,0)","v":0},{"$f":"VLOOKUP(B172,'LOC FINAL with new Themes'!A:M,9,0)","v":0},{"$f":"VLOOKUP(B172,'LOC FINAL with new Themes'!A:M,10,0)","v":0},{"$f":"VLOOKUP(B172,'LOC FINAL with new Themes'!A:M,11,0)","v":0},{"$f":"VLOOKUP(B172,'LOC FINAL with new Themes'!A:M,12,0)","v":0},{"$f":"VLOOKUP(B172,'LOC FINAL with new Themes'!A:M,13,0)","v":0}]
["Digital Orthoimage Quarter Quadrangle (DOQQ) Archive","Digital Orthoimage Quarter Quadrangle (DOQQ) Archive",null,"Digital Orthoimage Quarter Quadrangle (DOQQ) Archive","Imagery ","DOI-USGS",null,null,{"$f":"VLOOKUP(B173,'LOC FINAL with new Themes'!A:M,7,0)","v":"DOQQ is static; one data set; this is the POC and data manager. this is the name and maintain three complete with two physically separate on-site and one off-site"},{"$f":"VLOOKUP(B173,'LOC FINAL with new Themes'!A:M,8,0)","v":0},{"$f":"VLOOKUP(B173,'LOC FINAL with new Themes'!A:M,9,0)","v":0},{"$f":"VLOOKUP(B173,'LOC FINAL with new Themes'!A:M,10,0)","v":0},{"$f":"VLOOKUP(B173,'LOC FINAL with new Themes'!A:M,11,0)","v":0},{"$f":"VLOOKUP(B173,'LOC FINAL with new Themes'!A:M,12,0)","v":0},{"$f":"VLOOKUP(B173,'LOC FINAL with new Themes'!A:M,13,0)","v":"S"}]
["Emergency Response Imagery","Emergency Response Imagery","Emergency Response Imagery","Emergency Response Imagery","Imagery ","DOC-NOAA","Mike Aslaksen","mike.Aslaksen@noaa.gov",{"$f":"VLOOKUP(B174,'LOC FINAL with new Themes'!A:M,7,0)","v":"20-Multiple      "},{"$f":"VLOOKUP(B174,'LOC FINAL with new Themes'!A:M,8,0)","v":"No"},{"$f":"VLOOKUP(B174,'LOC FINAL with new Themes'!A:M,9,0)","v":"Yes - email reply from Jon Sellars Jon.Sellars@noaa.gov"},{"$f":"VLOOKUP(B174,'LOC FINAL with new Themes'!A:M,10,0)","v":"- Same for the forest frag."},{"$f":"VLOOKUP(B174,'LOC FINAL with new Themes'!A:M,11,0)","v":"Our data can be accessed through the following links: http://storms.ngs.noaagov/eri_page/index.html Gulf Oil Spill:\nhttp://hdds.usgs.gov/hdds2/pub/data/disaster/201004_Oilspill_GulfOfMexico/data/AERIAL_NOAA\nhttp://hdds.usgs.gov/hdds2/pub/data/disaster/201004_Oilspill_GulfOfMexico/data/AERIAL_NOAA_MOSAIC  Haiti Earthquake:\nhttp://hdds.usgs.gov/hdds2/pub/data/disaster/201001_Earthquake_Haiti/data/AERIAL_NOAA\nhttp://hdds.usgs.gov/hdds2/pub/data/disaster/201001_Earthquake_Haiti/data/AERIAL_NOAA_ORTHO\nMexico Earthquake:\nhttp://hdds.usgs.gov/hdds2/pub/data/disaster/201004_Earthquake_Mexico/data/AERIAL_NOAA_MOSAIC \n\n"},{"$f":"VLOOKUP(B174,'LOC FINAL with new Themes'!A:M,12,0)","v":"Described by storm name, event or location."},{"$f":"VLOOKUP(B174,'LOC FINAL with new Themes'!A:M,13,0)","v":"M "}]
[null,null,"Fire, Detection: AVHRR FIMMA , GOES WF-ABBA","Fire, Detection: AVHRR FIMMA , GOES WF-ABBA","Imagery ","USDA"]
["Landsat geometric/terrain corrected level 1T","Landsat geometric/terrain corrected level 1T","Landsat Terrain Corrected Scenes","Landsat Terrain Corrected Scenes","Imagery ","DOI-USGS","Kristi Kline","kkline@usgs.gov",{"$f":"VLOOKUP(B176,'LOC FINAL with new Themes'!A:M,7,0)","v":"Landsat updates daily; a series of data sets; this is the POC and data manager; this is the name and maintain three complete with two physically separate on-site and one off-site"},{"$f":"VLOOKUP(B176,'LOC FINAL with new Themes'!A:M,8,0)","v":0},{"$f":"VLOOKUP(B176,'LOC FINAL with new Themes'!A:M,9,0)","v":0},{"$f":"VLOOKUP(B176,'LOC FINAL with new Themes'!A:M,10,0)","v":0},{"$f":"VLOOKUP(B176,'LOC FINAL with new Themes'!A:M,11,0)","v":0},{"$f":"VLOOKUP(B176,'LOC FINAL with new Themes'!A:M,12,0)","v":0},{"$f":"VLOOKUP(B176,'LOC FINAL with new Themes'!A:M,13,0)","v":"S"}]
[null,null,"National  Orthoimagery Dataset - National Map","National  Orthoimagery Dataset - National Map","Imagery ","DOI-USGS"]
["National Aerial Photography Program (NAPP) Data Archive","National Aerial Photography Program (NAPP) Data Archive",null,"National Aerial Photography Program (NAPP) Data Archive","Imagery ","DOI-USGS","Wayne Miller","wamiller@usgs.gov",{"$f":"VLOOKUP(B178,'LOC FINAL with new Themes'!A:M,7,0)","v":"NAPP is static; one data set; this is the POC and data manager; this is the name and maintain three complete with two physically separate on-site and one off-site "},{"$f":"VLOOKUP(B178,'LOC FINAL with new Themes'!A:M,8,0)","v":0},{"$f":"VLOOKUP(B178,'LOC FINAL with new Themes'!A:M,9,0)","v":0},{"$f":"VLOOKUP(B178,'LOC FINAL with new Themes'!A:M,10,0)","v":0},{"$f":"VLOOKUP(B178,'LOC FINAL with new Themes'!A:M,11,0)","v":0},{"$f":"VLOOKUP(B178,'LOC FINAL with new Themes'!A:M,12,0)","v":0},{"$f":"VLOOKUP(B178,'LOC FINAL with new Themes'!A:M,13,0)","v":"S"}]
["National Agriculture Imagery Program Data","National Agriculture Imagery Program Data","National Agriculture Imagery Program (NAIP) Archive","National Agriculture Imagery Program (NAIP) Archive","Imagery ","DOI-USGS","Shirley Hall","shirley.hall@wdc.usda.gov",{"$f":"VLOOKUP(B179,'LOC FINAL with new Themes'!A:M,7,0)","v":"Shirley identified Dan Good as new contact 'daniel.good@wdc.usda.gov' - need to follow up with either or both"},{"$f":"VLOOKUP(B179,'LOC FINAL with new Themes'!A:M,8,0)","v":0},{"$f":"VLOOKUP(B179,'LOC FINAL with new Themes'!A:M,9,0)","v":0},{"$f":"VLOOKUP(B179,'LOC FINAL with new Themes'!A:M,10,0)","v":0},{"$f":"VLOOKUP(B179,'LOC FINAL with new Themes'!A:M,11,0)","v":0},{"$f":"VLOOKUP(B179,'LOC FINAL with new Themes'!A:M,12,0)","v":0},{"$f":"VLOOKUP(B179,'LOC FINAL with new Themes'!A:M,13,0)","v":0}]
["National Map Orthoimagery Database (TNM Seamless Server) ","National Map Orthoimagery Database (TNM Seamless Server) ",null,"National Map Orthoimagery Database (TNM Seamless Server) ","Imagery ","DOI-USGS","George Lee","gylee@usgs.gov",{"$f":"VLOOKUP(B180,'LOC FINAL with new Themes'!A:M,7,0)","v":0},{"$f":"VLOOKUP(B180,'LOC FINAL with new Themes'!A:M,8,0)","v":0},{"$f":"VLOOKUP(B180,'LOC FINAL with new Themes'!A:M,9,0)","v":0},{"$f":"VLOOKUP(B180,'LOC FINAL with new Themes'!A:M,10,0)","v":0},{"$f":"VLOOKUP(B180,'LOC FINAL with new Themes'!A:M,11,0)","v":0},{"$f":"VLOOKUP(B180,'LOC FINAL with new Themes'!A:M,12,0)","v":0},{"$f":"VLOOKUP(B180,'LOC FINAL with new Themes'!A:M,13,0)","v":0}]
["National Resource Inventory Imagery","National Resource Inventory Imagery",null,"National Resource Inventory Imagery","Imagery ","USDA-WDC","Jerry Harlow","jerry.harlow@wdc.usda.gov",{"$f":"VLOOKUP(B181,'LOC FINAL with new Themes'!A:M,7,0)","v":"Shirley identified Dan Good as new contact 'daniel.good@wdc.usda.gov' - need to follow up with either or both"},{"$f":"VLOOKUP(B181,'LOC FINAL with new Themes'!A:M,8,0)","v":0},{"$f":"VLOOKUP(B181,'LOC FINAL with new Themes'!A:M,9,0)","v":0},{"$f":"VLOOKUP(B181,'LOC FINAL with new Themes'!A:M,10,0)","v":0},{"$f":"VLOOKUP(B181,'LOC FINAL with new Themes'!A:M,11,0)","v":0},{"$f":"VLOOKUP(B181,'LOC FINAL with new Themes'!A:M,12,0)","v":0},{"$f":"VLOOKUP(B181,'LOC FINAL with new Themes'!A:M,13,0)","v":0}]
[null,null,"Satellite Imagery Archive","Satellite Imagery Archive","Imagery ","USDA-FSA"]
[null,null,null,{"$f":"SUBTOTAL(3,D170:D182)","v":13},"Imagery  Count"]
[null,null,"Crops: Cropland Data Layer",{"$f":"IF(C184=0,B184,C184)","v":"Crops: Cropland Data Layer"},"Land Use-Land Cover ","USDA-NASS"]
[null,null,"Earth Cover, Land: MODIS-based Land Products","Earth Cover, Land: MODIS-based Land Products","Land Use-Land Cover ","USDA -FS (Along with USGS)"]
[null,null,"Earth Cover, Vegetation, Forest: Forest Biomass, Types, Type Groups","Earth Cover, Vegetation, Forest: Forest Biomass, Types, Type Groups","Land Use-Land Cover ","USDA-FS"]
[null,null,"Earth Cover, Vegetation: Percent Forest Canopy","Earth Cover, Vegetation: Percent Forest Canopy","Land Use-Land Cover ","USDA-FS"]
[null,null,"Fire Severity: Monitoring Trends in Burn Severity (MTBS)","Fire Severity: Monitoring Trends in Burn Severity (MTBS)","Land Use-Land Cover ","USDA -FS (Along with USGS)"]
[null,null,"Fire, Detection: Daily Active Fire Mapping","Fire, Detection: Daily Active Fire Mapping","Land Use-Land Cover ","USDA"]
[null,null,"Land Cover Strata Dataset","Land Cover Strata Dataset","Land Use-Land Cover ","USDA-NASS"]
["LANDFIRE Dataset","LANDFIRE Dataset","Land Fire Dataset","Land Fire Dataset","Land Use-Land Cover ",null,null,0,{"$f":"VLOOKUP(B191,'LOC FINAL with new Themes'!A:M,7,0)","v":0},{"$f":"VLOOKUP(B191,'LOC FINAL with new Themes'!A:M,8,0)","v":0},{"$f":"VLOOKUP(B191,'LOC FINAL with new Themes'!A:M,9,0)","v":0},{"$f":"VLOOKUP(B191,'LOC FINAL with new Themes'!A:M,10,0)","v":0},{"$f":"VLOOKUP(B191,'LOC FINAL with new Themes'!A:M,11,0)","v":0},{"$f":"VLOOKUP(B191,'LOC FINAL with new Themes'!A:M,12,0)","v":0},{"$f":"VLOOKUP(B191,'LOC FINAL with new Themes'!A:M,13,0)","v":0}]
["National Land Cover Dataset (NLCD)","National Land Cover Dataset (NLCD)","National Land Cover Dataset - GIRAS - 1975","National Land Cover Dataset - GIRAS - 1975","Land Use-Land Cover ","DOI-USGS","Colin Homer","homer@usgs.gov",{"$f":"VLOOKUP(B192,'LOC FINAL with new Themes'!A:M,7,0)","v":"The table below summarizes NLCD products available for download from the MRLC website http://www.mrlc.gov/ "},{"$f":"VLOOKUP(B192,'LOC FINAL with new Themes'!A:M,8,0)","v":"No.  The \"manager\" of the data is Jon Dewitz. \nContact Information -   \nJon Dewitz\ndewitz@usgs.gov\n605-594-2715\nNLCD Quality Supervisor\nUSGS Earth Resources Observation and Science Center (EROS)\nMundt Federal Building\n47914 252nd St.\nSioux Falls, SD 57198\nfax 605-594-6529\n"},{"$f":"VLOOKUP(B192,'LOC FINAL with new Themes'!A:M,9,0)","v":"Joyce Fry is the POC. \nContact information - \nJoyce Fry, Geographer\nUnited States Geological Survey (USGS)\nEarth Resources Observation and  Science (EROS) Center\nMundt Federal Building\n47914 252nd Street\nSioux Falls, South Dakota 57198\n(P)  605.594.2739\n(F)  605.594.6529\n(e)  jfry@usgs.gov \n"},{"$f":"VLOOKUP(B192,'LOC FINAL with new Themes'!A:M,10,0)","v":"Every 5 years"},{"$f":"VLOOKUP(B192,'LOC FINAL with new Themes'!A:M,11,0)","v":"Yes, there is an archive/backup of the dataset through the EROS Long Term Archive (LTA) group.  I will need to get back to if you need additional information regarding the archive process. "},{"$f":"VLOOKUP(B192,'LOC FINAL with new Themes'!A:M,12,0)","v":"National Land Cover Database or NLCD along with the era number, either 1992 or 2001, or 2006. "},{"$f":"VLOOKUP(B192,'LOC FINAL with new Themes'!A:M,13,0)","v":"S"}]
[null,null,"National Land Cover Dataset - National Map","National Land Cover Dataset - National Map","Land Use-Land Cover ","DOI-USGS"]
[null,null,"National Land Cover Dataset - National Map - 1991","National Land Cover Dataset - National Map - 1991","Land Use-Land Cover ","DOI-USGS"]
[null,null,"National Land Cover Dataset - National Map - 2001","National Land Cover Dataset - National Map - 2001","Land Use-Land Cover ","DOI-USGS"]
[null,null,"National Land Cover Dataset - National Map 2006","National Land Cover Dataset - National Map 2006","Land Use-Land Cover ","DOI-USGS"]
["National Land Cover Dataset (NLCD)","National Land Cover Dataset (NLCD)","National Land Cover Dataset (NLCD)","National Land Cover Dataset (NLCD)","Land Use-Land Cover ","DOI-USGS","Colin Homer","homer@usgs.gov",{"$f":"VLOOKUP(B197,'LOC FINAL with new Themes'!A:M,7,0)","v":"The table below summarizes NLCD products available for download from the MRLC website http://www.mrlc.gov/ "},{"$f":"VLOOKUP(B197,'LOC FINAL with new Themes'!A:M,8,0)","v":"No.  The \"manager\" of the data is Jon Dewitz. \nContact Information -   \nJon Dewitz\ndewitz@usgs.gov\n605-594-2715\nNLCD Quality Supervisor\nUSGS Earth Resources Observation and Science Center (EROS)\nMundt Federal Building\n47914 252nd St.\nSioux Falls, SD 57198\nfax 605-594-6529\n"},{"$f":"VLOOKUP(B197,'LOC FINAL with new Themes'!A:M,9,0)","v":"Joyce Fry is the POC. \nContact information - \nJoyce Fry, Geographer\nUnited States Geological Survey (USGS)\nEarth Resources Observation and  Science (EROS) Center\nMundt Federal Building\n47914 252nd Street\nSioux Falls, South Dakota 57198\n(P)  605.594.2739\n(F)  605.594.6529\n(e)  jfry@usgs.gov \n"},{"$f":"VLOOKUP(B197,'LOC FINAL with new Themes'!A:M,10,0)","v":"Every 5 years"},{"$f":"VLOOKUP(B197,'LOC FINAL with new Themes'!A:M,11,0)","v":"Yes, there is an archive/backup of the dataset through the EROS Long Term Archive (LTA) group.  I will need to get back to if you need additional information regarding the archive process. "},{"$f":"VLOOKUP(B197,'LOC FINAL with new Themes'!A:M,12,0)","v":"National Land Cover Database or NLCD along with the era number, either 1992 or 2001, or 2006. "},{"$f":"VLOOKUP(B197,'LOC FINAL with new Themes'!A:M,13,0)","v":"S"}]
[null,null,"National Land Cover Percent Canopy - National Map - 1991","National Land Cover Percent Canopy - National Map - 1991","Land Use-Land Cover ","DOI-USGS"]
[null,null,"National Land Cover Percent Imperviousness - National Map - 2001","National Land Cover Percent Imperviousness - National Map - 2001","Land Use-Land Cover ","DOI-USGS"]
[null,null,"National Land Cover Percent Imperviousness - National Map - 2006","National Land Cover Percent Imperviousness - National Map - 2006","Land Use-Land Cover ","DOI-USGS"]
["National Parks Data","National Parks Data","National Parks Data","National Parks Data","Land Use-Land Cover ","DOI-NPS","Roger Johnson ","Roger_M_Johnson@nps.gov",{"$f":"VLOOKUP(B201,'LOC FINAL with new Themes'!A:M,7,0)","v":"undeliverable email- neeed to identify new contact"},{"$f":"VLOOKUP(B201,'LOC FINAL with new Themes'!A:M,8,0)","v":0},{"$f":"VLOOKUP(B201,'LOC FINAL with new Themes'!A:M,9,0)","v":0},{"$f":"VLOOKUP(B201,'LOC FINAL with new Themes'!A:M,10,0)","v":0},{"$f":"VLOOKUP(B201,'LOC FINAL with new Themes'!A:M,11,0)","v":0},{"$f":"VLOOKUP(B201,'LOC FINAL with new Themes'!A:M,12,0)","v":0},{"$f":"VLOOKUP(B201,'LOC FINAL with new Themes'!A:M,13,0)","v":0}]
[null,null,null,{"$f":"SUBTOTAL(3,D184:D201)","v":18},"Land Use-Land Cover  Count"]
["Assisted Housing (census geography or point-based) see http://www.huduser.org/picture2000/","Assisted Housing (census geography or point-based)",null,{"$f":"IF(C203=0,B203,C203)","v":"Assisted Housing (census geography or point-based)"},"Real Property","HUD","Jon Sperling","jon.sperling@hud.gov",{"$f":"VLOOKUP(B203,'LOC FINAL with new Themes'!A:M,7,0)","v":0},{"$f":"VLOOKUP(B203,'LOC FINAL with new Themes'!A:M,8,0)","v":0},{"$f":"VLOOKUP(B203,'LOC FINAL with new Themes'!A:M,9,0)","v":0},{"$f":"VLOOKUP(B203,'LOC FINAL with new Themes'!A:M,10,0)","v":0},{"$f":"VLOOKUP(B203,'LOC FINAL with new Themes'!A:M,11,0)","v":0},{"$f":"VLOOKUP(B203,'LOC FINAL with new Themes'!A:M,12,0)","v":0},{"$f":"VLOOKUP(B203,'LOC FINAL with new Themes'!A:M,13,0)","v":0}]
["Enterprise Zones, Empowerment Communities, Revitalization Areas, Qualified Census Tracts, etc.  (census geography based)","Enterprise Zones, Empowerment Communities, Revitalization Areas, Qualified Census Tracts, etc.  (census geography based)",null,"Enterprise Zones, Empowerment Communities, Revitalization Areas, Qualified Census Tracts, etc.  (census geography based)","Real Property","HUD","Jon Sperling","jon.sperling@hud.gov",{"$f":"VLOOKUP(B204,'LOC FINAL with new Themes'!A:M,7,0)","v":0},{"$f":"VLOOKUP(B204,'LOC FINAL with new Themes'!A:M,8,0)","v":0},{"$f":"VLOOKUP(B204,'LOC FINAL with new Themes'!A:M,9,0)","v":0},{"$f":"VLOOKUP(B204,'LOC FINAL with new Themes'!A:M,10,0)","v":0},{"$f":"VLOOKUP(B204,'LOC FINAL with new Themes'!A:M,11,0)","v":0},{"$f":"VLOOKUP(B204,'LOC FINAL with new Themes'!A:M,12,0)","v":0},{"$f":"VLOOKUP(B204,'LOC FINAL with new Themes'!A:M,13,0)","v":0}]
["Federal building location point ","Federal building location point ","Federal building location point ","Federal building location point ","Real Property ","GSA","Sandra Downie","sandra.downie@gsa.gov",{"$f":"VLOOKUP(B205,'LOC FINAL with new Themes'!A:M,7,0)","v":0},{"$f":"VLOOKUP(B205,'LOC FINAL with new Themes'!A:M,8,0)","v":0},{"$f":"VLOOKUP(B205,'LOC FINAL with new Themes'!A:M,9,0)","v":0},{"$f":"VLOOKUP(B205,'LOC FINAL with new Themes'!A:M,10,0)","v":0},{"$f":"VLOOKUP(B205,'LOC FINAL with new Themes'!A:M,11,0)","v":0},{"$f":"VLOOKUP(B205,'LOC FINAL with new Themes'!A:M,12,0)","v":0},{"$f":"VLOOKUP(B205,'LOC FINAL with new Themes'!A:M,13,0)","v":0}]
["Federal building location polygon","Federal building location polygon","Federal building location polygon","Federal building location polygon","Real Property ","GSA","Sandra Downie","sandra.downie@gsa.gov",{"$f":"VLOOKUP(B206,'LOC FINAL with new Themes'!A:M,7,0)","v":0},{"$f":"VLOOKUP(B206,'LOC FINAL with new Themes'!A:M,8,0)","v":0},{"$f":"VLOOKUP(B206,'LOC FINAL with new Themes'!A:M,9,0)","v":0},{"$f":"VLOOKUP(B206,'LOC FINAL with new Themes'!A:M,10,0)","v":0},{"$f":"VLOOKUP(B206,'LOC FINAL with new Themes'!A:M,11,0)","v":0},{"$f":"VLOOKUP(B206,'LOC FINAL with new Themes'!A:M,12,0)","v":0},{"$f":"VLOOKUP(B206,'LOC FINAL with new Themes'!A:M,13,0)","v":0}]
["Federal land area facility location point","Federal land area facility location point","Federal land area facility location point","Federal land area facility location point","Real Property ","GSA","Sandra Downie","sandra.downie@gsa.gov",{"$f":"VLOOKUP(B207,'LOC FINAL with new Themes'!A:M,7,0)","v":0},{"$f":"VLOOKUP(B207,'LOC FINAL with new Themes'!A:M,8,0)","v":0},{"$f":"VLOOKUP(B207,'LOC FINAL with new Themes'!A:M,9,0)","v":0},{"$f":"VLOOKUP(B207,'LOC FINAL with new Themes'!A:M,10,0)","v":0},{"$f":"VLOOKUP(B207,'LOC FINAL with new Themes'!A:M,11,0)","v":0},{"$f":"VLOOKUP(B207,'LOC FINAL with new Themes'!A:M,12,0)","v":0},{"$f":"VLOOKUP(B207,'LOC FINAL with new Themes'!A:M,13,0)","v":0}]
["Federal land area facility location polygon","Federal land area facility location polygon","Federal land area facility location polygon","Federal land area facility location polygon","Real Property ","GSA","Sandra Downie","sandra.downie@gsa.gov",{"$f":"VLOOKUP(B208,'LOC FINAL with new Themes'!A:M,7,0)","v":0},{"$f":"VLOOKUP(B208,'LOC FINAL with new Themes'!A:M,8,0)","v":0},{"$f":"VLOOKUP(B208,'LOC FINAL with new Themes'!A:M,9,0)","v":0},{"$f":"VLOOKUP(B208,'LOC FINAL with new Themes'!A:M,10,0)","v":0},{"$f":"VLOOKUP(B208,'LOC FINAL with new Themes'!A:M,11,0)","v":0},{"$f":"VLOOKUP(B208,'LOC FINAL with new Themes'!A:M,12,0)","v":0},{"$f":"VLOOKUP(B208,'LOC FINAL with new Themes'!A:M,13,0)","v":0}]
["National Map - Structures Dataset","National Map - Structures Dataset","National Structures Dataset - National Map","National Structures Dataset - National Map","Real Property ","DOI-USGS","Paul Wiese","pmwiese@usgs.gov",{"$f":"VLOOKUP(B209,'LOC FINAL with new Themes'!A:M,7,0)","v":"National Map updates monthly; a series of data sets; this is the POC and data manager; this is the name and maintain three complete with two physically separate on-site and one off-site"},{"$f":"VLOOKUP(B209,'LOC FINAL with new Themes'!A:M,8,0)","v":0},{"$f":"VLOOKUP(B209,'LOC FINAL with new Themes'!A:M,9,0)","v":0},{"$f":"VLOOKUP(B209,'LOC FINAL with new Themes'!A:M,10,0)","v":0},{"$f":"VLOOKUP(B209,'LOC FINAL with new Themes'!A:M,11,0)","v":0},{"$f":"VLOOKUP(B209,'LOC FINAL with new Themes'!A:M,12,0)","v":0},{"$f":"VLOOKUP(B209,'LOC FINAL with new Themes'!A:M,13,0)","v":"S"}]
[null,null,null,{"$f":"SUBTOTAL(3,D203:D209)","v":7},"Real Property Count"]
[null,"Military Installation","Military Installation",{"$f":"IF(C211=0,B211,C211)","v":"Military Installation"},"Real Property\nCultural & Demographic Statistics","DOC-Census","Jennifer Holland","Jennifer.L.Holland@census.gov",{"$f":"VLOOKUP(B211,'LOC FINAL with new Themes'!A:M,7,0)","v":0},{"$f":"VLOOKUP(B211,'LOC FINAL with new Themes'!A:M,8,0)","v":0},{"$f":"VLOOKUP(B211,'LOC FINAL with new Themes'!A:M,9,0)","v":0},{"$f":"VLOOKUP(B211,'LOC FINAL with new Themes'!A:M,10,0)","v":0},{"$f":"VLOOKUP(B211,'LOC FINAL with new Themes'!A:M,11,0)","v":0},{"$f":"VLOOKUP(B211,'LOC FINAL with new Themes'!A:M,12,0)","v":0},{"$f":"VLOOKUP(B211,'LOC FINAL with new Themes'!A:M,13,0)","v":0}]
[null,null,null,{"$f":"SUBTOTAL(3,D211:D211)","v":1},"Real Property\nCultural & Demographic Statistics Count"]
["Common Resource Area (CRA)","Common Resource Area (CRA)","Common Resource Area (CRA)",{"$f":"IF(C213=0,B213,C213)","v":"Common Resource Area (CRA)"},"Soils ","USDA","Chris W. Smith","Christopherw.Smith@wdc.usda.gov",{"$f":"VLOOKUP(B213,'LOC FINAL with new Themes'!A:M,7,0)","v":0},{"$f":"VLOOKUP(B213,'LOC FINAL with new Themes'!A:M,8,0)","v":0},{"$f":"VLOOKUP(B213,'LOC FINAL with new Themes'!A:M,9,0)","v":0},{"$f":"VLOOKUP(B213,'LOC FINAL with new Themes'!A:M,10,0)","v":0},{"$f":"VLOOKUP(B213,'LOC FINAL with new Themes'!A:M,11,0)","v":0},{"$f":"VLOOKUP(B213,'LOC FINAL with new Themes'!A:M,12,0)","v":0},{"$f":"VLOOKUP(B213,'LOC FINAL with new Themes'!A:M,13,0)","v":0}]
["Hydric Soils","Hydric Soils",null,"Hydric Soils","Soils ","USDA","Chris W. Smith","Christopherw.Smith@wdc.usda.gov",{"$f":"VLOOKUP(B214,'LOC FINAL with new Themes'!A:M,7,0)","v":0},{"$f":"VLOOKUP(B214,'LOC FINAL with new Themes'!A:M,8,0)","v":0},{"$f":"VLOOKUP(B214,'LOC FINAL with new Themes'!A:M,9,0)","v":0},{"$f":"VLOOKUP(B214,'LOC FINAL with new Themes'!A:M,10,0)","v":0},{"$f":"VLOOKUP(B214,'LOC FINAL with new Themes'!A:M,11,0)","v":0},{"$f":"VLOOKUP(B214,'LOC FINAL with new Themes'!A:M,12,0)","v":0},{"$f":"VLOOKUP(B214,'LOC FINAL with new Themes'!A:M,13,0)","v":0}]
["Location of Arable Lands","Location of Arable Lands",null,"Location of Arable Lands","Soils ","USDA","Karl Hipple","karl.hipple@lin.usda.gov",{"$f":"VLOOKUP(B215,'LOC FINAL with new Themes'!A:M,7,0)","v":"undeliverable email- neeed to identify new contact"},{"$f":"VLOOKUP(B215,'LOC FINAL with new Themes'!A:M,8,0)","v":0},{"$f":"VLOOKUP(B215,'LOC FINAL with new Themes'!A:M,9,0)","v":0},{"$f":"VLOOKUP(B215,'LOC FINAL with new Themes'!A:M,10,0)","v":0},{"$f":"VLOOKUP(B215,'LOC FINAL with new Themes'!A:M,11,0)","v":0},{"$f":"VLOOKUP(B215,'LOC FINAL with new Themes'!A:M,12,0)","v":0},{"$f":"VLOOKUP(B215,'LOC FINAL with new Themes'!A:M,13,0)","v":0}]
["Major Land Resource Area (MLRA)","Major Land Resource Area (MLRA)","Major Land Resource Area (MLRA)","Major Land Resource Area (MLRA)","Soils ","USDA","Karl Hipple","karl.hipple@lin.usda.gov",{"$f":"VLOOKUP(B216,'LOC FINAL with new Themes'!A:M,7,0)","v":"undeliverable email- neeed to identify new contact"},{"$f":"VLOOKUP(B216,'LOC FINAL with new Themes'!A:M,8,0)","v":0},{"$f":"VLOOKUP(B216,'LOC FINAL with new Themes'!A:M,9,0)","v":0},{"$f":"VLOOKUP(B216,'LOC FINAL with new Themes'!A:M,10,0)","v":0},{"$f":"VLOOKUP(B216,'LOC FINAL with new Themes'!A:M,11,0)","v":0},{"$f":"VLOOKUP(B216,'LOC FINAL with new Themes'!A:M,12,0)","v":0},{"$f":"VLOOKUP(B216,'LOC FINAL with new Themes'!A:M,13,0)","v":0}]
["National Cooperative Soil Survey (NCSS)","National Cooperative Soil Survey (NCSS)","National Cooperative Soil Characterization Database","National Cooperative Soil Characterization Database","Soils ","USDA","Paul Benedict","paul.benedict@wdc.usda.gov",{"$f":"VLOOKUP(B217,'LOC FINAL with new Themes'!A:M,7,0)","v":"We have our Soil Survey Geographic database called SSURGO which is made available through the following sites:\nWeb Soil Survey:    http://websoilsurvey.nrcs.usda.gov/app/\nSoil Data Mart:     http://soildatamart.nrcs.usda.gov/\nSoil Data Access:   http://sdmdataaccess.nrcs.usda.gov\n\nWe also have: \nLab Soil Survey Lab Characterization Data (Point data): http://ssldata.nrcs.usda.gov/ aka NCSS Characterization Database\nSoil Series Classification Database http://soils.usda.gov/technical/classification/scfile/index.html\nU.S. General Soil Map (STATSGO2)\nMajor Land Resource Area (MLRA) http://soils.usda.gov/survey/geography/mlra/\n             Common Resource Areas (CRA) \n\n"},{"$f":"VLOOKUP(B217,'LOC FINAL with new Themes'!A:M,8,0)","v":"? No, I am a Program Manager. Various other people have roles of maintaining the data. "},{"$f":"VLOOKUP(B217,'LOC FINAL with new Themes'!A:M,9,0)","v":"I am a general information POC for all things soil survey related. For more technical aspects on our data sets a good POC would be David Hoover, National Leader for Soil Business Systems or someone on his staff. His contact number is 402-437-4013 or email at david.hoover@lin.usda.gov. "},{"$f":"VLOOKUP(B217,'LOC FINAL with new Themes'!A:M,10,0)","v":"Our data sets are constantly being updated by about 1000 soil and plant scientists in several agencies. "},{"$f":"VLOOKUP(B217,'LOC FINAL with new Themes'!A:M,11,0)","v":"Our data sets are archived, but I don’t know how far back. I will have to get back to you on that. It is my understanding that archived sets are not easily accessible.  We have archive data for SSURGO (Soil Data Warehouse from mid 2000’s or earlier – Jim Fortner or Jennifer Sweet may be able to confirm or provide more detail; We also have archive data for STATSGO (circa 1994;1996) and for MLRA (1978; 2001; 2006) in local holdings.  Not sure about lab data archives, Henry Ferguson or Larry West can confirm.  "},{"$f":"VLOOKUP(B217,'LOC FINAL with new Themes'!A:M,12,0)","v":"? the Lab Characterization Data is also known as the “NCSS Characterization Database”\nAdded Common Resource Area geographic database (CRA)."},{"$f":"VLOOKUP(B217,'LOC FINAL with new Themes'!A:M,13,0)","v":"P"}]
["Prime and Statewide Important Farmlands","Prime and Statewide Important Farmlands",null,"Prime and Statewide Important Farmlands","Soils ","USDA","Chris W. Smith","Christopherw.Smith@wdc.usda.gov",{"$f":"VLOOKUP(B218,'LOC FINAL with new Themes'!A:M,7,0)","v":0},{"$f":"VLOOKUP(B218,'LOC FINAL with new Themes'!A:M,8,0)","v":0},{"$f":"VLOOKUP(B218,'LOC FINAL with new Themes'!A:M,9,0)","v":0},{"$f":"VLOOKUP(B218,'LOC FINAL with new Themes'!A:M,10,0)","v":0},{"$f":"VLOOKUP(B218,'LOC FINAL with new Themes'!A:M,11,0)","v":0},{"$f":"VLOOKUP(B218,'LOC FINAL with new Themes'!A:M,12,0)","v":0},{"$f":"VLOOKUP(B218,'LOC FINAL with new Themes'!A:M,13,0)","v":0}]
["Soil Suitability for Disposal of Contaminated Crops ","Soil Suitability for Disposal of Contaminated Crops ",null,"Soil Suitability for Disposal of Contaminated Crops ","Soils ","USDA","Karl Hipple; Sharon Waltman","karl.hipple@lin.usda.gov; sharon.waltman@wv.usda.gov ",{"$f":"VLOOKUP(B219,'LOC FINAL with new Themes'!A:M,7,0)","v":"undeliverable email- neeed to identify new contact"},{"$f":"VLOOKUP(B219,'LOC FINAL with new Themes'!A:M,8,0)","v":0},{"$f":"VLOOKUP(B219,'LOC FINAL with new Themes'!A:M,9,0)","v":0},{"$f":"VLOOKUP(B219,'LOC FINAL with new Themes'!A:M,10,0)","v":0},{"$f":"VLOOKUP(B219,'LOC FINAL with new Themes'!A:M,11,0)","v":0},{"$f":"VLOOKUP(B219,'LOC FINAL with new Themes'!A:M,12,0)","v":0},{"$f":"VLOOKUP(B219,'LOC FINAL with new Themes'!A:M,13,0)","v":0}]
["Soil Suitability for Large Animal Disposal","Soil Suitability for Large Animal Disposal",null,"Soil Suitability for Large Animal Disposal","Soils ","USDA","Chris W. Smith","Christopherw.Smith@wdc.usda.gov",{"$f":"VLOOKUP(B220,'LOC FINAL with new Themes'!A:M,7,0)","v":0},{"$f":"VLOOKUP(B220,'LOC FINAL with new Themes'!A:M,8,0)","v":0},{"$f":"VLOOKUP(B220,'LOC FINAL with new Themes'!A:M,9,0)","v":0},{"$f":"VLOOKUP(B220,'LOC FINAL with new Themes'!A:M,10,0)","v":0},{"$f":"VLOOKUP(B220,'LOC FINAL with new Themes'!A:M,11,0)","v":0},{"$f":"VLOOKUP(B220,'LOC FINAL with new Themes'!A:M,12,0)","v":0},{"$f":"VLOOKUP(B220,'LOC FINAL with new Themes'!A:M,13,0)","v":0}]
["Soil Survey Geographic Database (SSURGO)","Soil Survey Geographic Database (SSURGO)","Soil Survey Geographic Database (SSURGO)","Soil Survey Geographic Database (SSURGO)","Soils ","USDA","Karl Hipple","karl.hipple@lin.usda.gov",{"$f":"VLOOKUP(B221,'LOC FINAL with new Themes'!A:M,7,0)","v":"undeliverable email- neeed to identify new contact"},{"$f":"VLOOKUP(B221,'LOC FINAL with new Themes'!A:M,8,0)","v":0},{"$f":"VLOOKUP(B221,'LOC FINAL with new Themes'!A:M,9,0)","v":0},{"$f":"VLOOKUP(B221,'LOC FINAL with new Themes'!A:M,10,0)","v":0},{"$f":"VLOOKUP(B221,'LOC FINAL with new Themes'!A:M,11,0)","v":0},{"$f":"VLOOKUP(B221,'LOC FINAL with new Themes'!A:M,12,0)","v":0},{"$f":"VLOOKUP(B221,'LOC FINAL with new Themes'!A:M,13,0)","v":0}]
["U.S. General Soil Map (STATSGO2)","U.S. General Soil Map (STATSGO2)","U.S. General Soil Map (STATSGO2)","U.S. General Soil Map (STATSGO2)","Soils ","USDA","Karl Hipple","karl.hipple@lin.usda.gov",{"$f":"VLOOKUP(B222,'LOC FINAL with new Themes'!A:M,7,0)","v":"undeliverable email- neeed to identify new contact"},{"$f":"VLOOKUP(B222,'LOC FINAL with new Themes'!A:M,8,0)","v":0},{"$f":"VLOOKUP(B222,'LOC FINAL with new Themes'!A:M,9,0)","v":0},{"$f":"VLOOKUP(B222,'LOC FINAL with new Themes'!A:M,10,0)","v":0},{"$f":"VLOOKUP(B222,'LOC FINAL with new Themes'!A:M,11,0)","v":0},{"$f":"VLOOKUP(B222,'LOC FINAL with new Themes'!A:M,12,0)","v":0},{"$f":"VLOOKUP(B222,'LOC FINAL with new Themes'!A:M,13,0)","v":0}]
[null,null,null,{"$f":"SUBTOTAL(3,D213:D222)","v":10},"Soils  Count"]
[null,"Address Range-Feature Name Relationship File","Address Range-Feature Name Relationship File",{"$f":"IF(C224=0,B224,C224)","v":"Address Range-Feature Name Relationship File"},"Transportation ","DOC-Census","Jennifer Holland","Jennifer.L.Holland@census.gov",{"$f":"VLOOKUP(B224,'LOC FINAL with new Themes'!A:M,7,0)","v":0},{"$f":"VLOOKUP(B224,'LOC FINAL with new Themes'!A:M,8,0)","v":0},{"$f":"VLOOKUP(B224,'LOC FINAL with new Themes'!A:M,9,0)","v":0},{"$f":"VLOOKUP(B224,'LOC FINAL with new Themes'!A:M,10,0)","v":0},{"$f":"VLOOKUP(B224,'LOC FINAL with new Themes'!A:M,11,0)","v":0},{"$f":"VLOOKUP(B224,'LOC FINAL with new Themes'!A:M,12,0)","v":0},{"$f":"VLOOKUP(B224,'LOC FINAL with new Themes'!A:M,13,0)","v":0}]
[null,"Address Ranges Relationship File","Address Ranges Relationship File","Address Ranges Relationship File","Transportation ","DOC-Census","Jennifer Holland","Jennifer.L.Holland@census.gov",{"$f":"VLOOKUP(B225,'LOC FINAL with new Themes'!A:M,7,0)","v":0},{"$f":"VLOOKUP(B225,'LOC FINAL with new Themes'!A:M,8,0)","v":0},{"$f":"VLOOKUP(B225,'LOC FINAL with new Themes'!A:M,9,0)","v":0},{"$f":"VLOOKUP(B225,'LOC FINAL with new Themes'!A:M,10,0)","v":0},{"$f":"VLOOKUP(B225,'LOC FINAL with new Themes'!A:M,11,0)","v":0},{"$f":"VLOOKUP(B225,'LOC FINAL with new Themes'!A:M,12,0)","v":0},{"$f":"VLOOKUP(B225,'LOC FINAL with new Themes'!A:M,13,0)","v":0}]
[null,"All Roads","All Roads","All Roads","Transportation ","DOC-Census","Jennifer Holland","Jennifer.L.Holland@census.gov",{"$f":"VLOOKUP(B226,'LOC FINAL with new Themes'!A:M,7,0)","v":0},{"$f":"VLOOKUP(B226,'LOC FINAL with new Themes'!A:M,8,0)","v":0},{"$f":"VLOOKUP(B226,'LOC FINAL with new Themes'!A:M,9,0)","v":0},{"$f":"VLOOKUP(B226,'LOC FINAL with new Themes'!A:M,10,0)","v":0},{"$f":"VLOOKUP(B226,'LOC FINAL with new Themes'!A:M,11,0)","v":0},{"$f":"VLOOKUP(B226,'LOC FINAL with new Themes'!A:M,12,0)","v":0},{"$f":"VLOOKUP(B226,'LOC FINAL with new Themes'!A:M,13,0)","v":0}]
["Inland Electronic Navigation Charts (IENC)","Inland Electronic Navigation Charts (IENC)","Inland Electronic Navigation Charts (IENC)","Inland Electronic Navigation Charts (IENC)","Transportation ","DOD-USACE","Joel Schlagel","Joel.D.Schlagel@erdc.usace.army.mil ",{"$f":"VLOOKUP(B227,'LOC FINAL with new Themes'!A:M,7,0)","v":0},{"$f":"VLOOKUP(B227,'LOC FINAL with new Themes'!A:M,8,0)","v":0},{"$f":"VLOOKUP(B227,'LOC FINAL with new Themes'!A:M,9,0)","v":0},{"$f":"VLOOKUP(B227,'LOC FINAL with new Themes'!A:M,10,0)","v":0},{"$f":"VLOOKUP(B227,'LOC FINAL with new Themes'!A:M,11,0)","v":0},{"$f":"VLOOKUP(B227,'LOC FINAL with new Themes'!A:M,12,0)","v":0},{"$f":"VLOOKUP(B227,'LOC FINAL with new Themes'!A:M,13,0)","v":0}]
[null,null,"National Interagency Trails Dataset","National Interagency Trails Dataset","Transportation ","USDA"]
["National Map - Transportation Dataset","National Map - Transportation Dataset","National Transportation Dataset - National Map","National Transportation Dataset - National Map","Transportation ","DOI-USGS","Paul Wiese","pmwiese@usgs.gov",{"$f":"VLOOKUP(B229,'LOC FINAL with new Themes'!A:M,7,0)","v":0},{"$f":"VLOOKUP(B229,'LOC FINAL with new Themes'!A:M,8,0)","v":0},{"$f":"VLOOKUP(B229,'LOC FINAL with new Themes'!A:M,9,0)","v":0},{"$f":"VLOOKUP(B229,'LOC FINAL with new Themes'!A:M,10,0)","v":0},{"$f":"VLOOKUP(B229,'LOC FINAL with new Themes'!A:M,11,0)","v":0},{"$f":"VLOOKUP(B229,'LOC FINAL with new Themes'!A:M,12,0)","v":0},{"$f":"VLOOKUP(B229,'LOC FINAL with new Themes'!A:M,13,0)","v":0}]
["NTAD","NTAD","NTAD","NTAD","Transportation ","DOT-BTS","Robert Monniere","robert.monniere@dot.gov",{"$f":"VLOOKUP(B230,'LOC FINAL with new Themes'!A:M,7,0)","v":0},{"$f":"VLOOKUP(B230,'LOC FINAL with new Themes'!A:M,8,0)","v":0},{"$f":"VLOOKUP(B230,'LOC FINAL with new Themes'!A:M,9,0)","v":0},{"$f":"VLOOKUP(B230,'LOC FINAL with new Themes'!A:M,10,0)","v":0},{"$f":"VLOOKUP(B230,'LOC FINAL with new Themes'!A:M,11,0)","v":0},{"$f":"VLOOKUP(B230,'LOC FINAL with new Themes'!A:M,12,0)","v":0},{"$f":"VLOOKUP(B230,'LOC FINAL with new Themes'!A:M,13,0)","v":0}]
[null,null,"NTAD (airports)","NTAD (airports)","Transportation ","DOT-BTS"]
[null,null,"NTAD (Rail)","NTAD (Rail)","Transportation ","DOT-BTS"]
["NTAD (TransitLines) ","NTAD (TransitLines) ","NTAD (TransitLines) ","NTAD (TransitLines) ","Transportation ","DOT-BTS","Robert Monniere ","robert.monniere@dot.gov \n",{"$f":"VLOOKUP(B233,'LOC FINAL with new Themes'!A:M,7,0)","v":0},{"$f":"VLOOKUP(B233,'LOC FINAL with new Themes'!A:M,8,0)","v":0},{"$f":"VLOOKUP(B233,'LOC FINAL with new Themes'!A:M,9,0)","v":0},{"$f":"VLOOKUP(B233,'LOC FINAL with new Themes'!A:M,10,0)","v":0},{"$f":"VLOOKUP(B233,'LOC FINAL with new Themes'!A:M,11,0)","v":0},{"$f":"VLOOKUP(B233,'LOC FINAL with new Themes'!A:M,12,0)","v":0},{"$f":"VLOOKUP(B233,'LOC FINAL with new Themes'!A:M,13,0)","v":0}]
["NTAD (TransitStation) ","NTAD (TransitStation) ","NTAD (TransitStation) ","NTAD (TransitStation) ","Transportation ","DOT-BTS","Robert Monniere ","robert.monniere@dot.gov ",{"$f":"VLOOKUP(B234,'LOC FINAL with new Themes'!A:M,7,0)","v":0},{"$f":"VLOOKUP(B234,'LOC FINAL with new Themes'!A:M,8,0)","v":0},{"$f":"VLOOKUP(B234,'LOC FINAL with new Themes'!A:M,9,0)","v":0},{"$f":"VLOOKUP(B234,'LOC FINAL with new Themes'!A:M,10,0)","v":0},{"$f":"VLOOKUP(B234,'LOC FINAL with new Themes'!A:M,11,0)","v":0},{"$f":"VLOOKUP(B234,'LOC FINAL with new Themes'!A:M,12,0)","v":0},{"$f":"VLOOKUP(B234,'LOC FINAL with new Themes'!A:M,13,0)","v":0}]
[null,"Primary and Secondary Roads","Primary and Secondary Roads",{"$f":"IF(C235=0,#REF!,C235)","v":"Primary and Secondary Roads"},"Transportation ","DOC-Census","Jennifer Holland","Jennifer.L.Holland@census.gov",{"$f":"VLOOKUP(B235,'LOC FINAL with new Themes'!A:M,7,0)","v":0},{"$f":"VLOOKUP(B235,'LOC FINAL with new Themes'!A:M,8,0)","v":0},{"$f":"VLOOKUP(B235,'LOC FINAL with new Themes'!A:M,9,0)","v":0},{"$f":"VLOOKUP(B235,'LOC FINAL with new Themes'!A:M,10,0)","v":0},{"$f":"VLOOKUP(B235,'LOC FINAL with new Themes'!A:M,11,0)","v":0},{"$f":"VLOOKUP(B235,'LOC FINAL with new Themes'!A:M,12,0)","v":0},{"$f":"VLOOKUP(B235,'LOC FINAL with new Themes'!A:M,13,0)","v":0}]
[null,"Primary Roads","Primary Roads",{"$f":"IF(C236=0,B236,C236)","v":"Primary Roads"},"Transportation ","DOC-Census","Jennifer Holland","Jennifer.L.Holland@census.gov",{"$f":"VLOOKUP(B236,'LOC FINAL with new Themes'!A:M,7,0)","v":0},{"$f":"VLOOKUP(B236,'LOC FINAL with new Themes'!A:M,8,0)","v":0},{"$f":"VLOOKUP(B236,'LOC FINAL with new Themes'!A:M,9,0)","v":0},{"$f":"VLOOKUP(B236,'LOC FINAL with new Themes'!A:M,10,0)","v":0},{"$f":"VLOOKUP(B236,'LOC FINAL with new Themes'!A:M,11,0)","v":0},{"$f":"VLOOKUP(B236,'LOC FINAL with new Themes'!A:M,12,0)","v":0},{"$f":"VLOOKUP(B236,'LOC FINAL with new Themes'!A:M,13,0)","v":0}]
["TIGER (Roads/Rail)","TIGER (Roads/Rail)",null,{"$f":"IF(C237=0,B237,C237)","v":"TIGER (Roads/Rail)"},"Transportation ","DOC-Census","Randy Fusaro","randy.j.fusaro@census.gov",{"$f":"VLOOKUP(B237,'LOC FINAL with new Themes'!A:M,7,0)","v":0},{"$f":"VLOOKUP(B237,'LOC FINAL with new Themes'!A:M,8,0)","v":0},{"$f":"VLOOKUP(B237,'LOC FINAL with new Themes'!A:M,9,0)","v":0},{"$f":"VLOOKUP(B237,'LOC FINAL with new Themes'!A:M,10,0)","v":0},{"$f":"VLOOKUP(B237,'LOC FINAL with new Themes'!A:M,11,0)","v":0},{"$f":"VLOOKUP(B237,'LOC FINAL with new Themes'!A:M,12,0)","v":0},{"$f":"VLOOKUP(B237,'LOC FINAL with new Themes'!A:M,13,0)","v":0}]
[null,"Traffic Analysis Zone (Census 2000)","Traffic Analysis Zone (Census 2000)",{"$f":"IF(C238=0,B238,C238)","v":"Traffic Analysis Zone (Census 2000)"},"Transportation ","DOC-Census","Jennifer Holland","Jennifer.L.Holland@census.gov",{"$f":"VLOOKUP(B238,'LOC FINAL with new Themes'!A:M,7,0)","v":0},{"$f":"VLOOKUP(B238,'LOC FINAL with new Themes'!A:M,8,0)","v":0},{"$f":"VLOOKUP(B238,'LOC FINAL with new Themes'!A:M,9,0)","v":0},{"$f":"VLOOKUP(B238,'LOC FINAL with new Themes'!A:M,10,0)","v":0},{"$f":"VLOOKUP(B238,'LOC FINAL with new Themes'!A:M,11,0)","v":0},{"$f":"VLOOKUP(B238,'LOC FINAL with new Themes'!A:M,12,0)","v":0},{"$f":"VLOOKUP(B238,'LOC FINAL with new Themes'!A:M,13,0)","v":0}]
[null,null,null,{"$f":"SUBTOTAL(3,D224:D238)","v":15},"Transportation  Count"]
[null,null,"Pipelines",{"$f":"IF(C240=0,B240,C240)","v":"Pipelines"},"Utilities ","DOI-MMS"]
[null,null,"Platforms",{"$f":"IF(C241=0,B241,C241)","v":"Platforms"},"Utilities ","DOI-MMS"]
[null,null,null,{"$f":"SUBTOTAL(3,D240:D241)","v":2},"Utilities  Count"]
[null,"Area Hydrography (2010 Census)","Area Hydrography (2010 Census)",{"$f":"IF(C243=0,B243,C243)","v":"Area Hydrography (2010 Census)"},"Water -- Inland","DOC-Census","Jennifer Holland","Jennifer.L.Holland@census.gov",{"$f":"VLOOKUP(B243,'LOC FINAL with new Themes'!A:M,7,0)","v":0},{"$f":"VLOOKUP(B243,'LOC FINAL with new Themes'!A:M,8,0)","v":0},{"$f":"VLOOKUP(B243,'LOC FINAL with new Themes'!A:M,9,0)","v":0},{"$f":"VLOOKUP(B243,'LOC FINAL with new Themes'!A:M,10,0)","v":0},{"$f":"VLOOKUP(B243,'LOC FINAL with new Themes'!A:M,11,0)","v":0},{"$f":"VLOOKUP(B243,'LOC FINAL with new Themes'!A:M,12,0)","v":0},{"$f":"VLOOKUP(B243,'LOC FINAL with new Themes'!A:M,13,0)","v":0}]
[null,"Linear Water Features","Linear Water Features","Linear Water Features","Water -- Inland","DOC-Census","Jennifer Holland","Jennifer.L.Holland@census.gov",{"$f":"VLOOKUP(B244,'LOC FINAL with new Themes'!A:M,7,0)","v":0},{"$f":"VLOOKUP(B244,'LOC FINAL with new Themes'!A:M,8,0)","v":0},{"$f":"VLOOKUP(B244,'LOC FINAL with new Themes'!A:M,9,0)","v":0},{"$f":"VLOOKUP(B244,'LOC FINAL with new Themes'!A:M,10,0)","v":0},{"$f":"VLOOKUP(B244,'LOC FINAL with new Themes'!A:M,11,0)","v":0},{"$f":"VLOOKUP(B244,'LOC FINAL with new Themes'!A:M,12,0)","v":0},{"$f":"VLOOKUP(B244,'LOC FINAL with new Themes'!A:M,13,0)","v":0}]
["National Hydrography Data Set","National Hydrography Dataset","National Hydrography Dataset - National Map","National Hydrography Dataset - National Map","Water -- Inland","DOI-USGS","Jeff Simley","jdsimley@usgs.gov",{"$f":"VLOOKUP(B245,'LOC FINAL with new Themes'!A:M,7,0)","v":0},{"$f":"VLOOKUP(B245,'LOC FINAL with new Themes'!A:M,8,0)","v":0},{"$f":"VLOOKUP(B245,'LOC FINAL with new Themes'!A:M,9,0)","v":0},{"$f":"VLOOKUP(B245,'LOC FINAL with new Themes'!A:M,10,0)","v":0},{"$f":"VLOOKUP(B245,'LOC FINAL with new Themes'!A:M,11,0)","v":0},{"$f":"VLOOKUP(B245,'LOC FINAL with new Themes'!A:M,12,0)","v":0},{"$f":"VLOOKUP(B245,'LOC FINAL with new Themes'!A:M,13,0)","v":0}]
["National Inventory of Dams (NID)","National Inventory of Dams (NID)","National Inventory of Dams (NID)","National Inventory of Dams (NID)","Water -- Inland","DOD-USACE","Rebecca Ragon","Rebecca.Ragon@usace.army.mil ",{"$f":"VLOOKUP(B246,'LOC FINAL with new Themes'!A:M,7,0)","v":"One single data set"},{"$f":"VLOOKUP(B246,'LOC FINAL with new Themes'!A:M,8,0)","v":"Yes"},{"$f":"VLOOKUP(B246,'LOC FINAL with new Themes'!A:M,9,0)","v":"Yes"},{"$f":"VLOOKUP(B246,'LOC FINAL with new Themes'!A:M,10,0)","v":"Usually every 2 years"},{"$f":"VLOOKUP(B246,'LOC FINAL with new Themes'!A:M,11,0)","v":"Because the NID is updated every 2 years, we do have archived databased datig back to 1994."},{"$f":"VLOOKUP(B246,'LOC FINAL with new Themes'!A:M,12,0)","v":"The official name is National Inventory of Dams (NID) but I have seen the database referenced as the National Dam Inventory"},{"$f":"VLOOKUP(B246,'LOC FINAL with new Themes'!A:M,13,0)","v":"S"}]
["National Levee Database (NLD)","National Levee Database (NLD)","National Levee Database (NLD)","National Levee Database (NLD)","Water -- Inland","DOD-USACE","Bryan Baker","Bryan.E.Baker@usace.army.mil",{"$f":"VLOOKUP(B247,'LOC FINAL with new Themes'!A:M,7,0)","v":0},{"$f":"VLOOKUP(B247,'LOC FINAL with new Themes'!A:M,8,0)","v":0},{"$f":"VLOOKUP(B247,'LOC FINAL with new Themes'!A:M,9,0)","v":0},{"$f":"VLOOKUP(B247,'LOC FINAL with new Themes'!A:M,10,0)","v":0},{"$f":"VLOOKUP(B247,'LOC FINAL with new Themes'!A:M,11,0)","v":0},{"$f":"VLOOKUP(B247,'LOC FINAL with new Themes'!A:M,12,0)","v":0},{"$f":"VLOOKUP(B247,'LOC FINAL with new Themes'!A:M,13,0)","v":0}]
[null,null,"National Water Information System (NWIS)- Stream Gage Network","National Water Information System (NWIS)- Stream Gage Network","Water -- Inland","DOI-USGS"]
[null,null,"National Water Information System (NWIS)- Water Quality Monitoring Stations","National Water Information System (NWIS)- Water Quality Monitoring Stations","Water -- Inland","DOI-USGS"]
["National Wetlands Inventory (NWI) ","National Wetlands Inventory (NWI) ","National Wetlands Inventory (NWI) ","National Wetlands Inventory (NWI) ","Water -- Inland","DOI-FWS","Tom Dahl  ","tom_dahl@fws.gov\n",{"$f":"VLOOKUP(B250,'LOC FINAL with new Themes'!A:M,7,0)","v":0},{"$f":"VLOOKUP(B250,'LOC FINAL with new Themes'!A:M,8,0)","v":0},{"$f":"VLOOKUP(B250,'LOC FINAL with new Themes'!A:M,9,0)","v":0},{"$f":"VLOOKUP(B250,'LOC FINAL with new Themes'!A:M,10,0)","v":0},{"$f":"VLOOKUP(B250,'LOC FINAL with new Themes'!A:M,11,0)","v":0},{"$f":"VLOOKUP(B250,'LOC FINAL with new Themes'!A:M,12,0)","v":0},{"$f":"VLOOKUP(B250,'LOC FINAL with new Themes'!A:M,13,0)","v":0}]
["NWIS & STORET","NWIS & STORET",null,"NWIS & STORET","Water -- Inland",null,"EGIM",null,{"$f":"VLOOKUP(B251,'LOC FINAL with new Themes'!A:M,7,0)","v":0},{"$f":"VLOOKUP(B251,'LOC FINAL with new Themes'!A:M,8,0)","v":0},{"$f":"VLOOKUP(B251,'LOC FINAL with new Themes'!A:M,9,0)","v":0},{"$f":"VLOOKUP(B251,'LOC FINAL with new Themes'!A:M,10,0)","v":0},{"$f":"VLOOKUP(B251,'LOC FINAL with new Themes'!A:M,11,0)","v":0},{"$f":"VLOOKUP(B251,'LOC FINAL with new Themes'!A:M,12,0)","v":0},{"$f":"VLOOKUP(B251,'LOC FINAL with new Themes'!A:M,13,0)","v":0}]
[null,"Topological Faces-Area Hydrography Relationship File","Topological Faces-Area Hydrography Relationship File","Topological Faces-Area Hydrography Relationship File","Water -- Inland","DOC-Census","Jennifer Holland","Jennifer.L.Holland@census.gov",{"$f":"VLOOKUP(B252,'LOC FINAL with new Themes'!A:M,7,0)","v":0},{"$f":"VLOOKUP(B252,'LOC FINAL with new Themes'!A:M,8,0)","v":0},{"$f":"VLOOKUP(B252,'LOC FINAL with new Themes'!A:M,9,0)","v":0},{"$f":"VLOOKUP(B252,'LOC FINAL with new Themes'!A:M,10,0)","v":0},{"$f":"VLOOKUP(B252,'LOC FINAL with new Themes'!A:M,11,0)","v":0},{"$f":"VLOOKUP(B252,'LOC FINAL with new Themes'!A:M,12,0)","v":0},{"$f":"VLOOKUP(B252,'LOC FINAL with new Themes'!A:M,13,0)","v":0}]
["Watershed Boundary Data Set (WBD)  ","Watershed Boundary Dataset (WBD)  ","Watershed Boundary Dataset (WBD)  ","Watershed Boundary Dataset (WBD)  ","Water -- Inland","DOI-USGS","Karen Hanson","khanson@usgs.gov",{"$f":"VLOOKUP(B253,'LOC FINAL with new Themes'!A:M,7,0)","v":"one set with nested hierarchy of six different levels within it (regions, subdivided into four, six and twelve digits), POC and data manager; continually updated; co-managed with NRCS and they archive it; USGS in Denver will serve it; All transactions are archived in versions in the database as they happen. Data from any moment in time can be captured with a simple query. The database is replicated daily to Rolla, MO servers. The database is stored on a SAN with three tier redundancy.All changes to the database are stored on separate disks and once they reach a certain size, they are copied over to a server to be written to tape. Weekly, the entire database (NHD, with WBD) is written to tape.Monthly, the tapes are taken off site for storage."},{"$f":"VLOOKUP(B253,'LOC FINAL with new Themes'!A:M,8,0)","v":0},{"$f":"VLOOKUP(B253,'LOC FINAL with new Themes'!A:M,9,0)","v":0},{"$f":"VLOOKUP(B253,'LOC FINAL with new Themes'!A:M,10,0)","v":0},{"$f":"VLOOKUP(B253,'LOC FINAL with new Themes'!A:M,11,0)","v":0},{"$f":"VLOOKUP(B253,'LOC FINAL with new Themes'!A:M,12,0)","v":0},{"$f":"VLOOKUP(B253,'LOC FINAL with new Themes'!A:M,13,0)","v":"S"}]
["Watershed Boundary Data Set (WBD)  ","Watershed Boundary Dataset (WBD)  ","Watershed Boundary Dataset (WBD)  ","Watershed Boundary Dataset (WBD)  ","Water -- Inland","DOI-USGS","Karen Hanson","khanson@usgs.gov",{"$f":"VLOOKUP(B254,'LOC FINAL with new Themes'!A:M,7,0)","v":"one set with nested hierarchy of six different levels within it (regions, subdivided into four, six and twelve digits), POC and data manager; continually updated; co-managed with NRCS and they archive it; USGS in Denver will serve it; All transactions are archived in versions in the database as they happen. Data from any moment in time can be captured with a simple query. The database is replicated daily to Rolla, MO servers. The database is stored on a SAN with three tier redundancy.All changes to the database are stored on separate disks and once they reach a certain size, they are copied over to a server to be written to tape. Weekly, the entire database (NHD, with WBD) is written to tape.Monthly, the tapes are taken off site for storage."},{"$f":"VLOOKUP(B254,'LOC FINAL with new Themes'!A:M,8,0)","v":0},{"$f":"VLOOKUP(B254,'LOC FINAL with new Themes'!A:M,9,0)","v":0},{"$f":"VLOOKUP(B254,'LOC FINAL with new Themes'!A:M,10,0)","v":0},{"$f":"VLOOKUP(B254,'LOC FINAL with new Themes'!A:M,11,0)","v":0},{"$f":"VLOOKUP(B254,'LOC FINAL with new Themes'!A:M,12,0)","v":0},{"$f":"VLOOKUP(B254,'LOC FINAL with new Themes'!A:M,13,0)","v":"S"}]
[null,null,null,{"$f":"SUBTOTAL(3,D243:D254)","v":12},"Water -- Inland Count"]
[null,null,"Coastal Barrier Resource System",{"$f":"IF(C256=0,B256,C256)","v":"Coastal Barrier Resource System"},"Water -- Oceans and Coasts ","DOI-FWS"]
[null,null,"Coastal Change Analysis Program (C-CAP) Land Cover and Land Change Imagery","Coastal Change Analysis Program (C-CAP) Land Cover and Land Change Imagery","Water -- Oceans and Coasts ","DOC-NOAA","Nate Herold","nate.herold@noaa.gov"]
["Continental Shelf Boundary Data","Continental Shelf Boundary Data","Continental Shelf Boundary Data","Continental Shelf Boundary Data","Water -- Oceans and Coasts ","DOI-BOEM","Doug Vandegraft","douglas.vandegraft@boemre.gov",{"$f":"VLOOKUP(B258,'LOC FINAL with new Themes'!A:M,7,0)","v":"undeliverable email- neeed to identify new contact"},{"$f":"VLOOKUP(B258,'LOC FINAL with new Themes'!A:M,8,0)","v":0},{"$f":"VLOOKUP(B258,'LOC FINAL with new Themes'!A:M,9,0)","v":0},{"$f":"VLOOKUP(B258,'LOC FINAL with new Themes'!A:M,10,0)","v":0},{"$f":"VLOOKUP(B258,'LOC FINAL with new Themes'!A:M,11,0)","v":0},{"$f":"VLOOKUP(B258,'LOC FINAL with new Themes'!A:M,12,0)","v":0},{"$f":"VLOOKUP(B258,'LOC FINAL with new Themes'!A:M,13,0)","v":0}]
[null,null,"National Data Buoy Center (NDBC) Recent and Historical Data","National Data Buoy Center (NDBC) Recent and Historical Data","Water -- Oceans and Coasts ","DOC-NOAA"]
[null,null,"NOAA National Shoreline","NOAA National Shoreline","Water -- Oceans and Coasts ","DOC-NOAA","Doug Graham","Doug.Graham@noaa.gov"]
["NOAA Nautical Charts","NOAA Nautical Charts","NOAA's Nautical Chart Products","NOAA's Nautical Chart Products","Water -- Oceans and Coasts ","DOC-NOAA","John Lowell","John.Lowell@noaa.gov",{"$f":"VLOOKUP(B261,'LOC FINAL with new Themes'!A:M,7,0)","v":0},{"$f":"VLOOKUP(B261,'LOC FINAL with new Themes'!A:M,8,0)","v":0},{"$f":"VLOOKUP(B261,'LOC FINAL with new Themes'!A:M,9,0)","v":0},{"$f":"VLOOKUP(B261,'LOC FINAL with new Themes'!A:M,10,0)","v":0},{"$f":"VLOOKUP(B261,'LOC FINAL with new Themes'!A:M,11,0)","v":0},{"$f":"VLOOKUP(B261,'LOC FINAL with new Themes'!A:M,12,0)","v":0},{"$f":"VLOOKUP(B261,'LOC FINAL with new Themes'!A:M,13,0)","v":0}]
[null,null,"Non-Projected Boundaries","Non-Projected Boundaries","Water -- Oceans and Coasts ","DOI-MMS"]
[null,null,"Projected Boundaries","Projected Boundaries","Water -- Oceans and Coasts ","DOI-MMS"]
[null,null,"U.S. Marine Protected Areas Boundaries","U.S. Marine Protected Areas Boundaries","Water -- Oceans and Coasts ","DOC-NOAA"]
[null,null,"U.S. Maritime Zones/Boundaries","U.S. Maritime Zones/Boundaries","Water -- Oceans and Coasts ","DOC-NOAA","Meredith Westington","meredith.westington@noaa.gov"]
[null,null,null,{"$f":"SUBTOTAL(3,D256:D265)","v":10},"Water -- Oceans and Coasts  Count"]
[null,null,null,{"$f":"SUBTOTAL(3,D2:D265)","v":246},"Grand Count"]

{"sheet":"6-5-2012","index":15,"n_rows":244,"n_cols":16,"rows_kept":244,"cut":false,"hidden":false,"merged":[]}
["ORIGINAL (beginning of 2011)","LOC FINAL (October 2011)","NGDA List (October 2011)","Dataset Name","Theme","Agency","Dataset Manager","Email","Phone Number","Q1 How many data set(s) do you have? It is a single set or multiple sets? ","Q2 Are you a data set manager?","Q3 Are you the POC for transferring the data set and/or for information about the data set?","Q4 How often is the data set updated?","Q5 Is there an archive/backup of the data set or do you maintain an archived copy of it? If yes, how far back do you maintain a copy? Is it easily accessible?","Q6 Does the data set go by a different name or is it referred to internally by another descriptive name?","M\nP\nS"]
[null,null,"Critical Habitat ","Critical Habitat for Threatened and Endangered Species Dataset","Biota","DOI-FWS","Chris Lett","chris_lett@fws.gov","303-275-2348"]
[null,null,"Section 7 Range for listed species ","Section 7 Range for Listed Species Dataset","Biota","DOI-FWS","Chris Lett","chris_lett@fws.gov","303-275-2348"]
["ECOMAP Data Sets (Ecological Subregions: Sections and Subsections for the Conterminous United States ) ","ECOMAP Datasets (Ecological Subregions: Sections and Subsections for the Conterminous United States ) ","ECOMAP Datasets (Ecological Subregions: Sections and Subsections for the Conterminous United States ) ",{"$f":"IF(C4=0,B4,C4)","v":"ECOMAP Datasets (Ecological Subregions: Sections and Subsections for the Conterminous United States ) "},"Biota","USDA-FS","David T. Cleland","dcleland@fs.fed.us",null,{"$f":"VLOOKUP(B4,'LOC FINAL with new Themes'!A:M,7,0)","v":"One, single set"},{"$f":"VLOOKUP(B4,'LOC FINAL with new Themes'!A:M,8,0)","v":"Yes"},{"$f":"VLOOKUP(B4,'LOC FINAL with new Themes'!A:M,9,0)","v":"Yes"},{"$f":"VLOOKUP(B4,'LOC FINAL with new Themes'!A:M,10,0)","v":"Maps are updated on a 10-year cycle"},{"$f":"VLOOKUP(B4,'LOC FINAL with new Themes'!A:M,11,0)","v":"The data is housed at and served by the Forest Service geodata portal, and is easily accessible.  The web address is: http://fsgeodata.fs.fed.us/other_resources/ecosubregions.html "},{"$f":"VLOOKUP(B4,'LOC FINAL with new Themes'!A:M,12,0)","v":"?   Internally, the data is named ECOMAP or the National Hierarchy of Ecological Units. "},{"$f":"VLOOKUP(B4,'LOC FINAL with new Themes'!A:M,13,0)","v":"S"}]
["Env Sens Index Maps - classified shoreline","Env Sens Index Maps - classified shoreline","Environmental Sensitivity Index (ESI) Data and Maps","Environmental Sensitivity Index (ESI) Data and Maps","Biota","DOC-NOAA","Jill Petersen","jill.petersen@noaa.gov",null,{"$f":"VLOOKUP(B5,'LOC FINAL with new Themes'!A:M,7,0)","v":"There are approximately 70 different atlases. There are a few that are still not available in a GIS format, (approx 7 of the approx 70!) - these are available as the hard copy product and as PDFs (scanned). The remaining atlases are available in multiple GIS formats - Arc Export files, Geodatabase with an ArcMap map document complete with all relates established and properly symbolized, Shape files with an ArcView 3.x project, a free ESI viewer that allows viewing, queries and printing (in house mapping program and filemaker pro) as well as PDF format and the hard copy product. These can be downloaded from http://response.restoration.noaa.gov/esi_download This page is in progress, but should be complete fairly quickly.\n\n"},{"$f":"VLOOKUP(B5,'LOC FINAL with new Themes'!A:M,8,0)","v":"Yes"},{"$f":"VLOOKUP(B5,'LOC FINAL with new Themes'!A:M,9,0)","v":"Yes "},{"$f":"VLOOKUP(B5,'LOC FINAL with new Themes'!A:M,10,0)","v":"- High resolution products have no defined update schedule.  TBD by geog/project."},{"$f":"VLOOKUP(B5,'LOC FINAL with new Themes'!A:M,11,0)","v":"Yes and no. We have archives of all the digital data as well as all the PDFs (scanned or produced with the digital data map comps). Many of the hard copy atlases from the first round of ESI maps were sent to the Library of Commerce. Others I have kept, but no very organized situation. However, we have all of the historic PDFs which are an exact duplicate of the hard copy atlas, so that is something. Historic data is going to be served from the above link as well. That will be added as the current data sets are completed."},{"$f":"VLOOKUP(B5,'LOC FINAL with new Themes'!A:M,12,0)","v":"ESI is the common abbreviation for these maps. Other than that, Environmental Sensitivity Index Maps, Shoreline Sensitivity maps, Environmental Sensitivity maps..... These maps have the classified shoreline, as well as summaries of biological and human use resource particularly sensitive to oiling. "},{"$f":"VLOOKUP(B5,'LOC FINAL with new Themes'!A:M,13,0)","v":"M "}]
["GAP Program Dataset","GAP Program Dataset","GAP Program Dataset","GAP Program Dataset","Biota","DOI-USGS","Kevin Gergely","gergely@usgs.gov",null,{"$f":"VLOOKUP(B6,'LOC FINAL with new Themes'!A:M,7,0)","v":"POC; multiple data sets in single location, building three fundamental data layers, two are national (protected areas, land cover dataset); backup; six months, annually)"},{"$f":"VLOOKUP(B6,'LOC FINAL with new Themes'!A:M,8,0)","v":0},{"$f":"VLOOKUP(B6,'LOC FINAL with new Themes'!A:M,9,0)","v":0},{"$f":"VLOOKUP(B6,'LOC FINAL with new Themes'!A:M,10,0)","v":0},{"$f":"VLOOKUP(B6,'LOC FINAL with new Themes'!A:M,11,0)","v":0},{"$f":"VLOOKUP(B6,'LOC FINAL with new Themes'!A:M,12,0)","v":0},{"$f":"VLOOKUP(B6,'LOC FINAL with new Themes'!A:M,13,0)","v":"P"}]
["National Standardized Ecosystems Dataset","National Standardized Ecosystems Dataset","National Standardized Ecosystems Dataset","National Standardized Ecosystems Dataset","Biota","DOI-USGS","Roger Sayre","rsayre@usgs.gov",null,{"$f":"VLOOKUP(B7,'LOC FINAL with new Themes'!A:M,7,0)","v":0},{"$f":"VLOOKUP(B7,'LOC FINAL with new Themes'!A:M,8,0)","v":0},{"$f":"VLOOKUP(B7,'LOC FINAL with new Themes'!A:M,9,0)","v":0},{"$f":"VLOOKUP(B7,'LOC FINAL with new Themes'!A:M,10,0)","v":0},{"$f":"VLOOKUP(B7,'LOC FINAL with new Themes'!A:M,11,0)","v":0},{"$f":"VLOOKUP(B7,'LOC FINAL with new Themes'!A:M,12,0)","v":0},{"$f":"VLOOKUP(B7,'LOC FINAL with new Themes'!A:M,13,0)","v":0}]
["Biomes, Ecoregions","Biomes, Ecoregions",null,"Biomes, Ecoregions","Biota ","DOI-USGS","Dan Phillips ","dphillips@usgs.gov",null,{"$f":"VLOOKUP(B8,'LOC FINAL with new Themes'!A:M,7,0)","v":0},{"$f":"VLOOKUP(B8,'LOC FINAL with new Themes'!A:M,8,0)","v":0},{"$f":"VLOOKUP(B8,'LOC FINAL with new Themes'!A:M,9,0)","v":0},{"$f":"VLOOKUP(B8,'LOC FINAL with new Themes'!A:M,10,0)","v":0},{"$f":"VLOOKUP(B8,'LOC FINAL with new Themes'!A:M,11,0)","v":0},{"$f":"VLOOKUP(B8,'LOC FINAL with new Themes'!A:M,12,0)","v":0},{"$f":"VLOOKUP(B8,'LOC FINAL with new Themes'!A:M,13,0)","v":0}]
["Ecological Services","Ecological Services",null,"Ecological Services","Biota ","DOI-USGS","Dan Phillips ","dphillips@usgs.gov",null,{"$f":"VLOOKUP(B9,'LOC FINAL with new Themes'!A:M,7,0)","v":0},{"$f":"VLOOKUP(B9,'LOC FINAL with new Themes'!A:M,8,0)","v":0},{"$f":"VLOOKUP(B9,'LOC FINAL with new Themes'!A:M,9,0)","v":0},{"$f":"VLOOKUP(B9,'LOC FINAL with new Themes'!A:M,10,0)","v":0},{"$f":"VLOOKUP(B9,'LOC FINAL with new Themes'!A:M,11,0)","v":0},{"$f":"VLOOKUP(B9,'LOC FINAL with new Themes'!A:M,12,0)","v":0},{"$f":"VLOOKUP(B9,'LOC FINAL with new Themes'!A:M,13,0)","v":0}]
["Habitats","Habitats",null,"Habitats","Biota ","DOI-USGS","Dan Phillips ","dphillips@usgs.gov",null,{"$f":"VLOOKUP(B10,'LOC FINAL with new Themes'!A:M,7,0)","v":"see protected areas and land cover set; vertebrae species of US being developed (not complete for all species they want to include in it."},{"$f":"VLOOKUP(B10,'LOC FINAL with new Themes'!A:M,8,0)","v":0},{"$f":"VLOOKUP(B10,'LOC FINAL with new Themes'!A:M,9,0)","v":0},{"$f":"VLOOKUP(B10,'LOC FINAL with new Themes'!A:M,10,0)","v":0},{"$f":"VLOOKUP(B10,'LOC FINAL with new Themes'!A:M,11,0)","v":0},{"$f":"VLOOKUP(B10,'LOC FINAL with new Themes'!A:M,12,0)","v":0},{"$f":"VLOOKUP(B10,'LOC FINAL with new Themes'!A:M,13,0)","v":"M"}]
["Invasive Species","Invasive Species",null,"Invasive Species","Biota ","DOI-USGS","Dan Phillips ","dphillips@usgs.gov",null,{"$f":"VLOOKUP(B11,'LOC FINAL with new Themes'!A:M,7,0)","v":"There are hundreds of datasets that are produced and maintained by the GAP program. Dan is not the data set manager, but I work with the people that maintain and update the datasets and maintains metadata.The data are updated at different intervals, especially now that they have moved more to a regional and national based approach. GAPS data sets presumably archived since 1990s."},{"$f":"VLOOKUP(B11,'LOC FINAL with new Themes'!A:M,8,0)","v":0},{"$f":"VLOOKUP(B11,'LOC FINAL with new Themes'!A:M,9,0)","v":0},{"$f":"VLOOKUP(B11,'LOC FINAL with new Themes'!A:M,10,0)","v":0},{"$f":"VLOOKUP(B11,'LOC FINAL with new Themes'!A:M,11,0)","v":0},{"$f":"VLOOKUP(B11,'LOC FINAL with new Themes'!A:M,12,0)","v":0},{"$f":"VLOOKUP(B11,'LOC FINAL with new Themes'!A:M,13,0)","v":"M"}]
["Species Distribution(amphibians, birds, reptiles, mammals, fishes, plants, etc)","Species Distribution (amphibians, birds, reptiles, mammals, fishes, plants, etc)",null,"Species Distribution (amphibians, birds, reptiles, mammals, fishes, plants, etc)","Biota ","DOI-USGS","Dan Phillips ","dphillips@usgs.gov",null,{"$f":"VLOOKUP(B12,'LOC FINAL with new Themes'!A:M,7,0)","v":"There are hundreds of datasets that are produced and maintained by the GAP program. Dan is not the data set manager, but I work with the people that maintain and update the datasets and maintains metadata. The data are updated at different intervals, especially now that they have moved more to a regional and national based approach. GAPS data sets presumably archived since 1990s."},{"$f":"VLOOKUP(B12,'LOC FINAL with new Themes'!A:M,8,0)","v":0},{"$f":"VLOOKUP(B12,'LOC FINAL with new Themes'!A:M,9,0)","v":0},{"$f":"VLOOKUP(B12,'LOC FINAL with new Themes'!A:M,10,0)","v":0},{"$f":"VLOOKUP(B12,'LOC FINAL with new Themes'!A:M,11,0)","v":0},{"$f":"VLOOKUP(B12,'LOC FINAL with new Themes'!A:M,12,0)","v":0},{"$f":"VLOOKUP(B12,'LOC FINAL with new Themes'!A:M,13,0)","v":"M"}]
[null,null,null,"Biota Count",{"$f":"SUBTOTAL(3,E2:E12)","v":11}]
["Parcels","Parcels","Parcels",{"$f":"IF(C14=0,B14,C14)","v":"Parcels"},"Cadastre","DOI-BLM","Bob Ader","bob_ader@blm.gov",null,{"$f":"VLOOKUP(B14,'LOC FINAL with new Themes'!A:M,7,0)","v":"every agency has its own database; multiple data sets; standard being advanced and put into practice; federal interest is managed with BLM; state and local are authoritative sets for other lands; current effort of federal inventory "},{"$f":"VLOOKUP(B14,'LOC FINAL with new Themes'!A:M,8,0)","v":0},{"$f":"VLOOKUP(B14,'LOC FINAL with new Themes'!A:M,9,0)","v":0},{"$f":"VLOOKUP(B14,'LOC FINAL with new Themes'!A:M,10,0)","v":0},{"$f":"VLOOKUP(B14,'LOC FINAL with new Themes'!A:M,11,0)","v":0},{"$f":"VLOOKUP(B14,'LOC FINAL with new Themes'!A:M,12,0)","v":0},{"$f":"VLOOKUP(B14,'LOC FINAL with new Themes'!A:M,13,0)","v":"M "}]
["Geographic Coordinate Data Base (GCDB)","Geographic Coordinate Data Base (GCDB)",null,"Geographic Coordinate Data Base (GCDB)","Cadastre","DOI-BLM","Don Buhler","don_buhler@blm.gov",null,{"$f":"VLOOKUP(B15,'LOC FINAL with new Themes'!A:M,7,0)","v":"every agency has its own database; multiple data sets; standard being advanced and put into practice; federal interest is managed with BLM; state and local are authoritative sets for other lands; "},{"$f":"VLOOKUP(B15,'LOC FINAL with new Themes'!A:M,8,0)","v":0},{"$f":"VLOOKUP(B15,'LOC FINAL with new Themes'!A:M,9,0)","v":0},{"$f":"VLOOKUP(B15,'LOC FINAL with new Themes'!A:M,10,0)","v":0},{"$f":"VLOOKUP(B15,'LOC FINAL with new Themes'!A:M,11,0)","v":0},{"$f":"VLOOKUP(B15,'LOC FINAL with new Themes'!A:M,12,0)","v":0},{"$f":"VLOOKUP(B15,'LOC FINAL with new Themes'!A:M,13,0)","v":"M "}]
["Manual of Surveying Instructions, Data Standards","Manual of Surveying Instructions, Data Standards",null,"Manual of Surveying Instructions, Data Standards","Cadastre","DOI-BLM","Don Buhler","don_buhler@blm.gov",null,{"$f":"VLOOKUP(B16,'LOC FINAL with new Themes'!A:M,7,0)","v":0},{"$f":"VLOOKUP(B16,'LOC FINAL with new Themes'!A:M,8,0)","v":0},{"$f":"VLOOKUP(B16,'LOC FINAL with new Themes'!A:M,9,0)","v":0},{"$f":"VLOOKUP(B16,'LOC FINAL with new Themes'!A:M,10,0)","v":0},{"$f":"VLOOKUP(B16,'LOC FINAL with new Themes'!A:M,11,0)","v":0},{"$f":"VLOOKUP(B16,'LOC FINAL with new Themes'!A:M,12,0)","v":0},{"$f":"VLOOKUP(B16,'LOC FINAL with new Themes'!A:M,13,0)","v":0}]
["U.S. Official Cadastral Survey Records","U.S. Official Cadastral Survey Records","U.S. Official Cadastral Survey Records","U.S. Official Cadastral Survey Records","Cadastre","DOI-BLM","Don Buhler","don_buhler@blm.gov",null,{"$f":"VLOOKUP(B17,'LOC FINAL with new Themes'!A:M,7,0)","v":"every agency has its own database; multiple data sets; standard being advanced and put into practice; federal interest is managed with BLM; state and local are authoritative sets for other lands; state offices are scanning these records (survey plats and field notes); CDI (conveyence cards)"},{"$f":"VLOOKUP(B17,'LOC FINAL with new Themes'!A:M,8,0)","v":0},{"$f":"VLOOKUP(B17,'LOC FINAL with new Themes'!A:M,9,0)","v":0},{"$f":"VLOOKUP(B17,'LOC FINAL with new Themes'!A:M,10,0)","v":0},{"$f":"VLOOKUP(B17,'LOC FINAL with new Themes'!A:M,11,0)","v":0},{"$f":"VLOOKUP(B17,'LOC FINAL with new Themes'!A:M,12,0)","v":0},{"$f":"VLOOKUP(B17,'LOC FINAL with new Themes'!A:M,13,0)","v":"M "}]
["U.S. Public Land Survey System","U.S. Public Land Survey System","U.S. Public Land Survey System","U.S. Public Land Survey System","Cadastre","DOI-BLM","Don Buhler","don_buhler@blm.gov",null,{"$f":"VLOOKUP(B18,'LOC FINAL with new Themes'!A:M,7,0)","v":"only federal agency that administers the PLSS; trying to get it to be logically one data set with different regions. (working copies for nine states in West); keep historical record in data base; schema 2 is the version to look at for archiving some time March 2012"},{"$f":"VLOOKUP(B18,'LOC FINAL with new Themes'!A:M,8,0)","v":0},{"$f":"VLOOKUP(B18,'LOC FINAL with new Themes'!A:M,9,0)","v":0},{"$f":"VLOOKUP(B18,'LOC FINAL with new Themes'!A:M,10,0)","v":0},{"$f":"VLOOKUP(B18,'LOC FINAL with new Themes'!A:M,11,0)","v":0},{"$f":"VLOOKUP(B18,'LOC FINAL with new Themes'!A:M,12,0)","v":0},{"$f":"VLOOKUP(B18,'LOC FINAL with new Themes'!A:M,13,0)","v":"P"}]
[null,null,"Protractions","Protractions","Cadastre","DOI-BOEM","Doug Vandegraft","Doug.Vandegraft@boem.gov"]
[null,null,null,"Outer Continental Shelf Lease Blocks","Cadastre","DOI - BOEM","Doug Vandegraft","Doug.Vandegraft@boem.gov"]
[null,null,null,"BOEM Active Oil and Gas Leases","Cadastre","DOI - BOEM","Doug Vandegraft","Doug.Vandegraft@boem.gov"]
["LR 2000 - Master Title Plats ","LR 2000 - Master Title Plats ","LR 2000 - Attribute Information",{"$f":"IF(C22=0,B22,C22)","v":"LR 2000 - Attribute Information"},"Cadastre","DOI-BLM","Jeff Holdren","jeff_holdren@blm.gov",null,{"$f":"VLOOKUP(B22,'LOC FINAL with new Themes'!A:M,7,0)","v":"listing of sales, rents, agricultural disposal and rights of way cases, group of data sets in one system; Kim Burns, division chief; not archived, there is a backup; Denver office handles"},{"$f":"VLOOKUP(B22,'LOC FINAL with new Themes'!A:M,8,0)","v":0},{"$f":"VLOOKUP(B22,'LOC FINAL with new Themes'!A:M,9,0)","v":0},{"$f":"VLOOKUP(B22,'LOC FINAL with new Themes'!A:M,10,0)","v":0},{"$f":"VLOOKUP(B22,'LOC FINAL with new Themes'!A:M,11,0)","v":0},{"$f":"VLOOKUP(B22,'LOC FINAL with new Themes'!A:M,12,0)","v":0},{"$f":"VLOOKUP(B22,'LOC FINAL with new Themes'!A:M,13,0)","v":"P"}]
["General Land Office","General Land Office","General Land Office",{"$f":"IF(C23=0,B23,C23)","v":"General Land Office"},"Cadastre","DOI-BLM","Juan Palma","juan_palma@blm.gov",null,{"$f":"VLOOKUP(B23,'LOC FINAL with new Themes'!A:M,7,0)","v":0},{"$f":"VLOOKUP(B23,'LOC FINAL with new Themes'!A:M,8,0)","v":0},{"$f":"VLOOKUP(B23,'LOC FINAL with new Themes'!A:M,9,0)","v":0},{"$f":"VLOOKUP(B23,'LOC FINAL with new Themes'!A:M,10,0)","v":0},{"$f":"VLOOKUP(B23,'LOC FINAL with new Themes'!A:M,11,0)","v":0},{"$f":"VLOOKUP(B23,'LOC FINAL with new Themes'!A:M,12,0)","v":0},{"$f":"VLOOKUP(B23,'LOC FINAL with new Themes'!A:M,13,0)","v":0}]
["Surface Estate","Surface Estate",null,{"$f":"IF(C24=0,B24,C24)","v":"Surface Estate"},"Cadastre","DOI-BLM","Kim Burns","kim_m_burns@blm.gov",null,{"$f":"VLOOKUP(B24,'LOC FINAL with new Themes'!A:M,7,0)","v":"lands administered by BLM; other agencies have own system; ownership of lands;  Tim Spisak, division chief; not archived, there is a backup; Denver office handles"},{"$f":"VLOOKUP(B24,'LOC FINAL with new Themes'!A:M,8,0)","v":0},{"$f":"VLOOKUP(B24,'LOC FINAL with new Themes'!A:M,9,0)","v":0},{"$f":"VLOOKUP(B24,'LOC FINAL with new Themes'!A:M,10,0)","v":0},{"$f":"VLOOKUP(B24,'LOC FINAL with new Themes'!A:M,11,0)","v":0},{"$f":"VLOOKUP(B24,'LOC FINAL with new Themes'!A:M,12,0)","v":0},{"$f":"VLOOKUP(B24,'LOC FINAL with new Themes'!A:M,13,0)","v":0}]
["Mineral Estate - Solids","Mineral Estate - Solids",null,{"$f":"IF(C25=0,B25,C25)","v":"Mineral Estate - Solids"},"Cadastre","DOI-BLM","Mitchell Leverette","mitchell_leverette@blm.gov",null,{"$f":"VLOOKUP(B25,'LOC FINAL with new Themes'!A:M,7,0)","v":"mineral leasess, mining claims, rights of way, gases (single data set); BLM-managed lands but managed all federal mineral estate (comprehensive for mineral estate) some electronic and some not"},{"$f":"VLOOKUP(B25,'LOC FINAL with new Themes'!A:M,8,0)","v":0},{"$f":"VLOOKUP(B25,'LOC FINAL with new Themes'!A:M,9,0)","v":0},{"$f":"VLOOKUP(B25,'LOC FINAL with new Themes'!A:M,10,0)","v":0},{"$f":"VLOOKUP(B25,'LOC FINAL with new Themes'!A:M,11,0)","v":0},{"$f":"VLOOKUP(B25,'LOC FINAL with new Themes'!A:M,12,0)","v":0},{"$f":"VLOOKUP(B25,'LOC FINAL with new Themes'!A:M,13,0)","v":"P"}]
[null,null,null,"Coastal Indian Lands","Cadastre","DOI - BIA","Richard Moore","Richard.Moore@bia.gov"]
[null,null,null,"Coastal National Parks","Cadastre","DOI - NPS","Roger Johnson ","Roger_M_Johnson@nps.gov"]
[null,null,null,"Coastal National Wildlife Refuges","Cadastre","DOI - NPS","Sean Killen","Sean_Killen@fws.gov"]
["Mineral Estate - Fluids","Mineral Estate - Fluids",null,{"$f":"IF(C29=0,B29,C29)","v":"Mineral Estate - Fluids"},"Cadastre","DOI-BLM","Tim Spisak ","tim_spisak@blm.gov",null,{"$f":"VLOOKUP(B29,'LOC FINAL with new Themes'!A:M,7,0)","v":"mineral leasess, mining claims, rights of way, gases (single data set); BLM-managed lands but managed all federal mineral estate (comprehensive for mineraal estate) some electronic and some not"},{"$f":"VLOOKUP(B29,'LOC FINAL with new Themes'!A:M,8,0)","v":0},{"$f":"VLOOKUP(B29,'LOC FINAL with new Themes'!A:M,9,0)","v":0},{"$f":"VLOOKUP(B29,'LOC FINAL with new Themes'!A:M,10,0)","v":0},{"$f":"VLOOKUP(B29,'LOC FINAL with new Themes'!A:M,11,0)","v":0},{"$f":"VLOOKUP(B29,'LOC FINAL with new Themes'!A:M,12,0)","v":0},{"$f":"VLOOKUP(B29,'LOC FINAL with new Themes'!A:M,13,0)","v":"P"}]
[null,null,"PADUS (Protected Areas Database of the US)",{"$f":"IF(C30=0,B30,C30)","v":"PADUS (Protected Areas Database of the US)"},"Cadastre","DOI-USGS"]
[null,null,null,"Cadastre Count",{"$f":"SUBTOTAL(3,E14:E30)","v":17}]
[null,null,"NOAA National Weather Service GIS Data",{"$f":"IF(C32=0,B32,C32)","v":"NOAA National Weather Service GIS Data"},"Climate and Weather ","DOC-NOAA","Anne Ball","anne.ball@noaa.gov","843-740-1229"]
["Parameter-elevation Regressions on Independent Slopes Model (PRISM) Data Sets","Parameter-elevation Regressions on Independent Slopes Model (PRISM) Datasets","Parameter-elevation Regressions on Independent Slopes Model (PRISM) Datasets","Parameter-elevation Regressions on Independent Slopes Model (PRISM) Datasets","Climate and Weather ","USDA-NRCS","Jan Curtis","jan.curtis@por.usda.gov",null,{"$f":"VLOOKUP(B33,'LOC FINAL with new Themes'!A:M,7,0)","v":"info provided via http://www.prism.oregonstate.edu/ and \nhttp://www.nrcs.usda.gov/wps/portal/nrcs/main/?ss=16&navtype=SubNavigation&cid=null&navid=850130000000000&pnavid=850000000000000&position=SubNavigation&ttype=main&pname=USDA%2520NRCS%2520-%2520Natural%2520Resources%2520Conservation%2520Service\n"},{"$f":"VLOOKUP(B33,'LOC FINAL with new Themes'!A:M,8,0)","v":0},{"$f":"VLOOKUP(B33,'LOC FINAL with new Themes'!A:M,9,0)","v":0},{"$f":"VLOOKUP(B33,'LOC FINAL with new Themes'!A:M,10,0)","v":0},{"$f":"VLOOKUP(B33,'LOC FINAL with new Themes'!A:M,11,0)","v":0},{"$f":"VLOOKUP(B33,'LOC FINAL with new Themes'!A:M,12,0)","v":0},{"$f":"VLOOKUP(B33,'LOC FINAL with new Themes'!A:M,13,0)","v":"M"}]
["Polar Operational Environmental Satellite (POES) data (NCDC)","Polar Operational Environmental Satellite (POES) data","Polar Operational Environmental Satellite (POES) data","Polar Operational Environmental Satellite (POES) data","Climate and Weather ","DOC-NOAA","John Bates","john.j.bates@noaa.gov",null,{"$f":"VLOOKUP(B34,'LOC FINAL with new Themes'!A:M,7,0)","v":0},{"$f":"VLOOKUP(B34,'LOC FINAL with new Themes'!A:M,8,0)","v":0},{"$f":"VLOOKUP(B34,'LOC FINAL with new Themes'!A:M,9,0)","v":0},{"$f":"VLOOKUP(B34,'LOC FINAL with new Themes'!A:M,10,0)","v":0},{"$f":"VLOOKUP(B34,'LOC FINAL with new Themes'!A:M,11,0)","v":0},{"$f":"VLOOKUP(B34,'LOC FINAL with new Themes'!A:M,12,0)","v":0},{"$f":"VLOOKUP(B34,'LOC FINAL with new Themes'!A:M,13,0)","v":0}]
["Geostationary Operational Environmental Satellite (GOES) data (NCDC)","Geostationary Operational Environmental Satellite (GOES) data (NCDC)","Geostationary Operational Environmental Satellite (GOES) data (NCDC)","Geostationary Operational Environmental Satellite (GOES) data (NCDC)","Climate and Weather ","DOC-NOAA","Nancy Ritchey","Nancy.Ritchey@noaa.gov",null,{"$f":"VLOOKUP(B35,'LOC FINAL with new Themes'!A:M,7,0)","v":"Define 'data set'.  Each spacecraft continuously produces a data stream.  There are multiple sets and the total going back to the late 70s or early 80s numbers in the millions"},{"$f":"VLOOKUP(B35,'LOC FINAL with new Themes'!A:M,8,0)","v":"Yes"},{"$f":"VLOOKUP(B35,'LOC FINAL with new Themes'!A:M,9,0)","v":"Yes"},{"$f":"VLOOKUP(B35,'LOC FINAL with new Themes'!A:M,10,0)","v":"Continuously"},{"$f":"VLOOKUP(B35,'LOC FINAL with new Themes'!A:M,11,0)","v":"There are two active archive centers for these data; one here in Asheville, NC and one in Boulder, CO.  These data go back to the late 70s and all data are on line wither on disc or robotic tape storage"},{"$f":"VLOOKUP(B35,'LOC FINAL with new Themes'!A:M,12,0)","v":"Again, define your terms.  For examples see www.class.noaa.gov - Raw data are listed by satellite (GOES or POES) and then be instrument.  Geophysical products are listed by product name."},{"$f":"VLOOKUP(B35,'LOC FINAL with new Themes'!A:M,13,0)","v":0}]
[null,null,"National Doplar Radar Data (NEXRAD)","National Doplar Radar Data (NEXRAD)","Climate and Weather ","DOC-NOAA","Steve DelGreco","stephen.a.delgreco"]
["Blended Sea Surface Temperature","Blended Sea Surface Temperature","Blended Sea Surface Temperature","Blended Sea Surface Temperature","Climate and Weather ","DOC-NOAA","Viva Banzon","Viva.Banzon@noaa.gov",null,{"$f":"VLOOKUP(B37,'LOC FINAL with new Themes'!A:M,7,0)","v":0},{"$f":"VLOOKUP(B37,'LOC FINAL with new Themes'!A:M,8,0)","v":0},{"$f":"VLOOKUP(B37,'LOC FINAL with new Themes'!A:M,9,0)","v":0},{"$f":"VLOOKUP(B37,'LOC FINAL with new Themes'!A:M,10,0)","v":0},{"$f":"VLOOKUP(B37,'LOC FINAL with new Themes'!A:M,11,0)","v":0},{"$f":"VLOOKUP(B37,'LOC FINAL with new Themes'!A:M,12,0)","v":0},{"$f":"VLOOKUP(B37,'LOC FINAL with new Themes'!A:M,13,0)","v":0}]
[null,null,"MODIS-based Atmospheric Products","MODIS-based Atmospheric Products","Climate and Weather ","USDA -FS (Along with USGS)"]
[null,null,null,"Climate and Weather  Count",{"$f":"SUBTOTAL(3,E32:E38)","v":7}]
[null,null,null,"Cultural & Demographic Statistics  Count",0]
["Cultural Landscape Boundaries","Cultural Landscape Boundaries","Cultural Landscape Boundaries",{"$f":"IF(C41=0,B41,C41)","v":"Cultural Landscape Boundaries"},"Cultural & Demographic Statistics \nCultural Resources","DOI-NPS","John Knoerl","john_knoerl@nps.gov",null,{"$f":"VLOOKUP(B41,'LOC FINAL with new Themes'!A:M,7,0)","v":"Feature classes of the cultural resource data model (NPS only, other federal agencies handle it as they decide)"},{"$f":"VLOOKUP(B41,'LOC FINAL with new Themes'!A:M,8,0)","v":"don't want a single centralized data set but focusing on standard approach"},{"$f":"VLOOKUP(B41,'LOC FINAL with new Themes'!A:M,9,0)","v":0},{"$f":"VLOOKUP(B41,'LOC FINAL with new Themes'!A:M,10,0)","v":0},{"$f":"VLOOKUP(B41,'LOC FINAL with new Themes'!A:M,11,0)","v":0},{"$f":"VLOOKUP(B41,'LOC FINAL with new Themes'!A:M,12,0)","v":0},{"$f":"VLOOKUP(B41,'LOC FINAL with new Themes'!A:M,13,0)","v":0}]
["Cultural Resource Survey Boundaries","Cultural Resource Survey Boundaries","Cultural Resource Survey Boundaries","Cultural Resource Survey Boundaries","Cultural & Demographic Statistics \nCultural Resources","DOI-NPS","John Knoerl","john_knoerl@nps.gov",null,{"$f":"VLOOKUP(B42,'LOC FINAL with new Themes'!A:M,7,0)","v":"Feature classes of the cultural resource data model (NPS only, other federal agencies handle it as they decide)"},{"$f":"VLOOKUP(B42,'LOC FINAL with new Themes'!A:M,8,0)","v":"don't want a single centralized data set but focusing on standard approach"},{"$f":"VLOOKUP(B42,'LOC FINAL with new Themes'!A:M,9,0)","v":0},{"$f":"VLOOKUP(B42,'LOC FINAL with new Themes'!A:M,10,0)","v":0},{"$f":"VLOOKUP(B42,'LOC FINAL with new Themes'!A:M,11,0)","v":0},{"$f":"VLOOKUP(B42,'LOC FINAL with new Themes'!A:M,12,0)","v":0},{"$f":"VLOOKUP(B42,'LOC FINAL with new Themes'!A:M,13,0)","v":0}]
["Ethnographic Resource Boundaries","Ethnographic Resource Boundaries","Ethnographic Resource Boundaries","Ethnographic Resource Boundaries","Cultural & Demographic Statistics \nCultural Resources","DOI-NPS","John Knoerl","john_knoerl@nps.gov",null,{"$f":"VLOOKUP(B43,'LOC FINAL with new Themes'!A:M,7,0)","v":"Feature classes of the cultural resource data model (NPS only, other federal agencies handle it as they decide)"},{"$f":"VLOOKUP(B43,'LOC FINAL with new Themes'!A:M,8,0)","v":"don't want a single centralized data set but focusing on standard approach"},{"$f":"VLOOKUP(B43,'LOC FINAL with new Themes'!A:M,9,0)","v":0},{"$f":"VLOOKUP(B43,'LOC FINAL with new Themes'!A:M,10,0)","v":0},{"$f":"VLOOKUP(B43,'LOC FINAL with new Themes'!A:M,11,0)","v":0},{"$f":"VLOOKUP(B43,'LOC FINAL with new Themes'!A:M,12,0)","v":0},{"$f":"VLOOKUP(B43,'LOC FINAL with new Themes'!A:M,13,0)","v":0}]
["Historic Buildings Boundaries","Historic Buildings Boundaries","Historic Buildings Boundaries","Historic Buildings Boundaries","Cultural & Demographic Statistics \nCultural Resources","DOI-NPS","John Knoerl","john_knoerl@nps.gov",null,{"$f":"VLOOKUP(B44,'LOC FINAL with new Themes'!A:M,7,0)","v":"Feature classes of the cultural resource data model (NPS only, other federal agencies handle it as they decide)"},{"$f":"VLOOKUP(B44,'LOC FINAL with new Themes'!A:M,8,0)","v":"don't want a single centralized data set but focusing on standard approach"},{"$f":"VLOOKUP(B44,'LOC FINAL with new Themes'!A:M,9,0)","v":0},{"$f":"VLOOKUP(B44,'LOC FINAL with new Themes'!A:M,10,0)","v":0},{"$f":"VLOOKUP(B44,'LOC FINAL with new Themes'!A:M,11,0)","v":0},{"$f":"VLOOKUP(B44,'LOC FINAL with new Themes'!A:M,12,0)","v":0},{"$f":"VLOOKUP(B44,'LOC FINAL with new Themes'!A:M,13,0)","v":0}]
["Historic Districts Boundaries","Historic Districts Boundaries","Historic Districts Boundaries","Historic Districts Boundaries","Cultural & Demographic Statistics \nCultural Resources","DOI-NPS","John Knoerl","john_knoerl@nps.gov",null,{"$f":"VLOOKUP(B45,'LOC FINAL with new Themes'!A:M,7,0)","v":"Feature classes of the cultural resource data model (NPS only, other federal agencies handle it as they decide)"},{"$f":"VLOOKUP(B45,'LOC FINAL with new Themes'!A:M,8,0)","v":"don't want a single centralized data set but focusing on standard approach"},{"$f":"VLOOKUP(B45,'LOC FINAL with new Themes'!A:M,9,0)","v":0},{"$f":"VLOOKUP(B45,'LOC FINAL with new Themes'!A:M,10,0)","v":0},{"$f":"VLOOKUP(B45,'LOC FINAL with new Themes'!A:M,11,0)","v":0},{"$f":"VLOOKUP(B45,'LOC FINAL with new Themes'!A:M,12,0)","v":0},{"$f":"VLOOKUP(B45,'LOC FINAL with new Themes'!A:M,13,0)","v":0}]
["Historic Objects Boundaries","Historic Objects Boundaries","Historic Objects Boundaries","Historic Objects Boundaries","Cultural & Demographic Statistics \nCultural Resources","DOI-NPS","John Knoerl","john_knoerl@nps.gov",null,{"$f":"VLOOKUP(B46,'LOC FINAL with new Themes'!A:M,7,0)","v":"Feature classes of the cultural resource data model (NPS only, other federal agencies handle it as they decide)"},{"$f":"VLOOKUP(B46,'LOC FINAL with new Themes'!A:M,8,0)","v":"don't want a single centralized data set but focusing on standard approach"},{"$f":"VLOOKUP(B46,'LOC FINAL with new Themes'!A:M,9,0)","v":0},{"$f":"VLOOKUP(B46,'LOC FINAL with new Themes'!A:M,10,0)","v":0},{"$f":"VLOOKUP(B46,'LOC FINAL with new Themes'!A:M,11,0)","v":0},{"$f":"VLOOKUP(B46,'LOC FINAL with new Themes'!A:M,12,0)","v":0},{"$f":"VLOOKUP(B46,'LOC FINAL with new Themes'!A:M,13,0)","v":0}]
["Historic Structures Boundaries","Historic Structures Boundaries","Historic Structures Boundaries","Historic Structures Boundaries","Cultural & Demographic Statistics \nCultural Resources","DOI-NPS","John Knoerl","john_knoerl@nps.gov",null,{"$f":"VLOOKUP(B47,'LOC FINAL with new Themes'!A:M,7,0)","v":"Feature classes of the cultural resource data model (NPS only, other federal agencies handle it as they decide)"},{"$f":"VLOOKUP(B47,'LOC FINAL with new Themes'!A:M,8,0)","v":"don't want a single centralized data set but focusing on standard approach"},{"$f":"VLOOKUP(B47,'LOC FINAL with new Themes'!A:M,9,0)","v":0},{"$f":"VLOOKUP(B47,'LOC FINAL with new Themes'!A:M,10,0)","v":0},{"$f":"VLOOKUP(B47,'LOC FINAL with new Themes'!A:M,11,0)","v":0},{"$f":"VLOOKUP(B47,'LOC FINAL with new Themes'!A:M,12,0)","v":0},{"$f":"VLOOKUP(B47,'LOC FINAL with new Themes'!A:M,13,0)","v":"M "}]
[null,null,"Other Cultural Resource Boundaries","Other Cultural Resource Boundaries","Cultural & Demographic Statistics \nCultural Resources","DOI-NPS"]
[null,null,null,"Cultural & Demographic Statistics \nCultural Resources Count",{"$f":"SUBTOTAL(3,E41:E48)","v":8}]
[null,"Point Landmark (2010 Census)","Point of Landmark (2010 Census)","Point Landmark (2010 Census)","Cultural Resources","DOC-Census","Jennifer Holland","Jennifer.L.Holland@census.gov","(301) 763-2751",{"$f":"VLOOKUP(B50,'LOC FINAL with new Themes'!A:M,7,0)","v":0},{"$f":"VLOOKUP(B50,'LOC FINAL with new Themes'!A:M,8,0)","v":0},{"$f":"VLOOKUP(B50,'LOC FINAL with new Themes'!A:M,9,0)","v":0},{"$f":"VLOOKUP(B50,'LOC FINAL with new Themes'!A:M,10,0)","v":0},{"$f":"VLOOKUP(B50,'LOC FINAL with new Themes'!A:M,11,0)","v":0},{"$f":"VLOOKUP(B50,'LOC FINAL with new Themes'!A:M,12,0)","v":0},{"$f":"VLOOKUP(B50,'LOC FINAL with new Themes'!A:M,13,0)","v":0}]
[null,"Area Landmark (2010 Census)","Area Landmark (2010 Census)",{"$f":"IF(C51=0,B51,C51)","v":"Area Landmark (2010 Census)"},"Cultural Resources ","DOC-Census","Jennifer Holland","Jennifer.L.Holland@census.gov","(301) 763-2751",{"$f":"VLOOKUP(B51,'LOC FINAL with new Themes'!A:M,7,0)","v":0},{"$f":"VLOOKUP(B51,'LOC FINAL with new Themes'!A:M,8,0)","v":0},{"$f":"VLOOKUP(B51,'LOC FINAL with new Themes'!A:M,9,0)","v":0},{"$f":"VLOOKUP(B51,'LOC FINAL with new Themes'!A:M,10,0)","v":0},{"$f":"VLOOKUP(B51,'LOC FINAL with new Themes'!A:M,11,0)","v":0},{"$f":"VLOOKUP(B51,'LOC FINAL with new Themes'!A:M,12,0)","v":0},{"$f":"VLOOKUP(B51,'LOC FINAL with new Themes'!A:M,13,0)","v":0}]
[null,"Topological Faces-Area Landmark Relationship File","Topological Faces-Area Landmark Relationship File",{"$f":"IF(C52=0,B52,C52)","v":"Topological Faces-Area Landmark Relationship File"},"Cultural Resources ","DOC-Census","Jennifer Holland","Jennifer.L.Holland@census.gov","(301) 763-2751",{"$f":"VLOOKUP(B52,'LOC FINAL with new Themes'!A:M,7,0)","v":0},{"$f":"VLOOKUP(B52,'LOC FINAL with new Themes'!A:M,8,0)","v":0},{"$f":"VLOOKUP(B52,'LOC FINAL with new Themes'!A:M,9,0)","v":0},{"$f":"VLOOKUP(B52,'LOC FINAL with new Themes'!A:M,10,0)","v":0},{"$f":"VLOOKUP(B52,'LOC FINAL with new Themes'!A:M,11,0)","v":0},{"$f":"VLOOKUP(B52,'LOC FINAL with new Themes'!A:M,12,0)","v":0},{"$f":"VLOOKUP(B52,'LOC FINAL with new Themes'!A:M,13,0)","v":0}]
["Archeological Sites","Archeological Sites","Archeological Sites",{"$f":"IF(C53=0,B53,C53)","v":"Archeological Sites"},"Cultural Resources ","DOI-NPS","John Knoerl","john_knoerl@nps.gov",null,{"$f":"VLOOKUP(B53,'LOC FINAL with new Themes'!A:M,7,0)","v":"Feature classes of the cultural resource data model (NPS only, other federal agencies handle it as they decide)"},{"$f":"VLOOKUP(B53,'LOC FINAL with new Themes'!A:M,8,0)","v":"don't want a single centralized data set but focusing on standard approach"},{"$f":"VLOOKUP(B53,'LOC FINAL with new Themes'!A:M,9,0)","v":"National Historic Presrevation Act says state historic preservation office has primary oversight (section 110)"},{"$f":"VLOOKUP(B53,'LOC FINAL with new Themes'!A:M,10,0)","v":0},{"$f":"VLOOKUP(B53,'LOC FINAL with new Themes'!A:M,11,0)","v":0},{"$f":"VLOOKUP(B53,'LOC FINAL with new Themes'!A:M,12,0)","v":0},{"$f":"VLOOKUP(B53,'LOC FINAL with new Themes'!A:M,13,0)","v":0}]
["National Map - Geographic Names Information System (GNIS)","National Map - Geographic Names Information System (GNIS)",null,{"$f":"IF(C54=0,B54,C54)","v":"National Map - Geographic Names Information System (GNIS)"},"Cultural Resources ","DOI-USGS","Lou Yost","lyost@usgs.gov",null,{"$f":"VLOOKUP(B54,'LOC FINAL with new Themes'!A:M,7,0)","v":"single data set; poc, data managers; daily updated; Denver systems people backup and archive; transfer to NARA also; Gaz vector (internal)"},{"$f":"VLOOKUP(B54,'LOC FINAL with new Themes'!A:M,8,0)","v":0},{"$f":"VLOOKUP(B54,'LOC FINAL with new Themes'!A:M,9,0)","v":0},{"$f":"VLOOKUP(B54,'LOC FINAL with new Themes'!A:M,10,0)","v":0},{"$f":"VLOOKUP(B54,'LOC FINAL with new Themes'!A:M,11,0)","v":0},{"$f":"VLOOKUP(B54,'LOC FINAL with new Themes'!A:M,12,0)","v":0},{"$f":"VLOOKUP(B54,'LOC FINAL with new Themes'!A:M,13,0)","v":"S"}]
[null,null,"Geographic Names Dataset - National Map",{"$f":"IF(C55=0,B55,C55)","v":"Geographic Names Dataset - National Map"},"Cultural Resources ","DOI-USGS"]
[null,null,null,"Cultural Resources Count",{"$f":"SUBTOTAL(3,E50:E55)","v":6}]
["SRTM (3-arc second DTEDS)","SRTM (3-arc second DTEDS)",null,{"$f":"IF(C57=0,B57,C57)","v":"SRTM (3-arc second DTEDS)"},"Elevation","DOI-USGS","Dean Gesch, USGS","gesch@usgs.gov",null,{"$f":"VLOOKUP(B57,'LOC FINAL with new Themes'!A:M,7,0)","v":"SRTM is static; one data set; this is the POC and data manager; this is the name and maintain three complete with two physically separate on-site and one off-site"},{"$f":"VLOOKUP(B57,'LOC FINAL with new Themes'!A:M,8,0)","v":0},{"$f":"VLOOKUP(B57,'LOC FINAL with new Themes'!A:M,9,0)","v":0},{"$f":"VLOOKUP(B57,'LOC FINAL with new Themes'!A:M,10,0)","v":0},{"$f":"VLOOKUP(B57,'LOC FINAL with new Themes'!A:M,11,0)","v":0},{"$f":"VLOOKUP(B57,'LOC FINAL with new Themes'!A:M,12,0)","v":0},{"$f":"VLOOKUP(B57,'LOC FINAL with new Themes'!A:M,13,0)","v":"S"}]
["DEMs - Archive","DEMs - Archive",null,"DEMs - Archive","Elevation","DOI-USGS","Gayla Evans","gevans@usgs.gov",null,{"$f":"VLOOKUP(B58,'LOC FINAL with new Themes'!A:M,7,0)","v":"DEMS update at variable nature; are four data sets based on resolution; this is the POC and data manager; this is the name and maintain three complete with two physically separate on-site and one off-site"},{"$f":"VLOOKUP(B58,'LOC FINAL with new Themes'!A:M,8,0)","v":0},{"$f":"VLOOKUP(B58,'LOC FINAL with new Themes'!A:M,9,0)","v":0},{"$f":"VLOOKUP(B58,'LOC FINAL with new Themes'!A:M,10,0)","v":0},{"$f":"VLOOKUP(B58,'LOC FINAL with new Themes'!A:M,11,0)","v":0},{"$f":"VLOOKUP(B58,'LOC FINAL with new Themes'!A:M,12,0)","v":0},{"$f":"VLOOKUP(B58,'LOC FINAL with new Themes'!A:M,13,0)","v":"S"}]
["GTOPO30","GTOPO30",null,"GTOPO30","Elevation","DOI-USGS","Jeff Danielson"," daniels@usgs.gov",null,{"$f":"VLOOKUP(B59,'LOC FINAL with new Themes'!A:M,7,0)","v":"GTOPO30 is static; one data set; this is the POC and data manager; this is the name and maintain three complete with two physically separate on-site and one off-site"},{"$f":"VLOOKUP(B59,'LOC FINAL with new Themes'!A:M,8,0)","v":0},{"$f":"VLOOKUP(B59,'LOC FINAL with new Themes'!A:M,9,0)","v":0},{"$f":"VLOOKUP(B59,'LOC FINAL with new Themes'!A:M,10,0)","v":0},{"$f":"VLOOKUP(B59,'LOC FINAL with new Themes'!A:M,11,0)","v":0},{"$f":"VLOOKUP(B59,'LOC FINAL with new Themes'!A:M,12,0)","v":0},{"$f":"VLOOKUP(B59,'LOC FINAL with new Themes'!A:M,13,0)","v":0}]
["National Map National Elevation Data Set (NED)","National Map  - National Elevation Dataset (NED)",null,"National Map  - National Elevation Dataset (NED)","Elevation","DOI-USGS","Jim Mauck","lyost@usgs.gov",null,{"$f":"VLOOKUP(B60,'LOC FINAL with new Themes'!A:M,7,0)","v":0},{"$f":"VLOOKUP(B60,'LOC FINAL with new Themes'!A:M,8,0)","v":0},{"$f":"VLOOKUP(B60,'LOC FINAL with new Themes'!A:M,9,0)","v":0},{"$f":"VLOOKUP(B60,'LOC FINAL with new Themes'!A:M,10,0)","v":0},{"$f":"VLOOKUP(B60,'LOC FINAL with new Themes'!A:M,11,0)","v":0},{"$f":"VLOOKUP(B60,'LOC FINAL with new Themes'!A:M,12,0)","v":0},{"$f":"VLOOKUP(B60,'LOC FINAL with new Themes'!A:M,13,0)","v":0}]
["133 UA Elevation Data (lidar)","133 UA Elevation Data (lidar)",null,"133 UA Elevation Data (lidar)","Elevation","DOD-NGA","Ron Power, NGA","ronald.k.power@nga.mil",null,{"$f":"VLOOKUP(B61,'LOC FINAL with new Themes'!A:M,7,0)","v":0},{"$f":"VLOOKUP(B61,'LOC FINAL with new Themes'!A:M,8,0)","v":0},{"$f":"VLOOKUP(B61,'LOC FINAL with new Themes'!A:M,9,0)","v":0},{"$f":"VLOOKUP(B61,'LOC FINAL with new Themes'!A:M,10,0)","v":0},{"$f":"VLOOKUP(B61,'LOC FINAL with new Themes'!A:M,11,0)","v":0},{"$f":"VLOOKUP(B61,'LOC FINAL with new Themes'!A:M,12,0)","v":0},{"$f":"VLOOKUP(B61,'LOC FINAL with new Themes'!A:M,13,0)","v":0}]
[null,null,"Elevation Bathymetric - Ocean, Coastal, and Great Lakes Bathymetry ","Elevation Bathymetric - Ocean, Coastal, and Great Lakes Bathymetry ","Elevation ","DOC-NOAA","Anne Ball","anne.ball@noaa.gov","843-740-1229"]
["Digital Flood Insurance Rate Maps (D-FIRM)","Digital Flood Insurance Rate Maps (D-FIRM)","Digital Flood Insurance Rate Maps (DFIRM)","Digital Flood Insurance Rate Maps (DFIRM)","Elevation ","DHS-FEMA","Scott McAfee","scott.mcaffee@dhs.gov",null,{"$f":"VLOOKUP(B63,'LOC FINAL with new Themes'!A:M,7,0)","v":0},{"$f":"VLOOKUP(B63,'LOC FINAL with new Themes'!A:M,8,0)","v":0},{"$f":"VLOOKUP(B63,'LOC FINAL with new Themes'!A:M,9,0)","v":0},{"$f":"VLOOKUP(B63,'LOC FINAL with new Themes'!A:M,10,0)","v":0},{"$f":"VLOOKUP(B63,'LOC FINAL with new Themes'!A:M,11,0)","v":0},{"$f":"VLOOKUP(B63,'LOC FINAL with new Themes'!A:M,12,0)","v":0},{"$f":"VLOOKUP(B63,'LOC FINAL with new Themes'!A:M,13,0)","v":0}]
["National Flood Hazard Layer (NFHL)","National Flood Hazard Layer (NFHL)","National Flood Hazard Layer (NFHL)","National Flood Hazard Layer (NFHL)","Elevation ","DHS-FEMA","Scott McAfee","scott.mcaffee@dhs.gov",null,{"$f":"VLOOKUP(B64,'LOC FINAL with new Themes'!A:M,7,0)","v":0},{"$f":"VLOOKUP(B64,'LOC FINAL with new Themes'!A:M,8,0)","v":0},{"$f":"VLOOKUP(B64,'LOC FINAL with new Themes'!A:M,9,0)","v":0},{"$f":"VLOOKUP(B64,'LOC FINAL with new Themes'!A:M,10,0)","v":0},{"$f":"VLOOKUP(B64,'LOC FINAL with new Themes'!A:M,11,0)","v":0},{"$f":"VLOOKUP(B64,'LOC FINAL with new Themes'!A:M,12,0)","v":0},{"$f":"VLOOKUP(B64,'LOC FINAL with new Themes'!A:M,13,0)","v":0}]
[null,null,"National Elevation Dataset  - National Map","National Elevation Dataset  - National Map","Elevation ","DOI-USGS"]
[null,null,null,"Elevation Count",{"$f":"SUBTOTAL(3,E57:E65)","v":9}]
[null,null,"Terrestrial Gravity",{"$f":"IF(C67=0,B67,C67)","v":"Terrestrial Gravity"},"Geodetic Control ","DOC-NOAA","Bill Waickman ","bill.waickman@noaa.gov"]
[null,null,"Geoid Models",{"$f":"IF(C68=0,B68,C68)","v":"Geoid Models"},"Geodetic Control ","DOC-NOAA","Dr. Dan Roman","dan.roman@noaa.gov"]
[null,null,"Continuously Operating Reference Stations (CORS)",{"$f":"IF(C69=0,B69,C69)","v":"Continuously Operating Reference Stations (CORS)"},"Geodetic Control ","DOC-NOAA","Dr. Giovanni Sella","giovanni.sella@noaa.gov"]
[null,null,"Precise Global Navigation Satellite System (GNSS) Orbits",{"$f":"IF(C70=0,#REF!,C70)","v":"Precise Global Navigation Satellite System (GNSS) Orbits"},"Geodetic Control ","DOC-NOAA","Dr. Jake Griffiths","jake.griffiths@noaa.gov"]
[null,null,"Airborne Gravity",{"$f":"IF(C71=0,B71,C71)","v":"Airborne Gravity"},"Geodetic Control ","DOC-NOAA","Dr. Theresa Diehl","theresa.diehl@noaa.gov"]
["National Geologic Data Base","National Geologic Data Base","National Geodetic Survey (NGS) Datasheets",{"$f":"IF(C72=0,B72,C72)","v":"National Geodetic Survey (NGS) Datasheets"},"Geodetic Control ","DOC-NOAA","Jim Tomlin","jim.tomlin@noaa.gov",null,{"$f":"VLOOKUP(B72,'LOC FINAL with new Themes'!A:M,7,0)","v":0},{"$f":"VLOOKUP(B72,'LOC FINAL with new Themes'!A:M,8,0)","v":0},{"$f":"VLOOKUP(B72,'LOC FINAL with new Themes'!A:M,9,0)","v":0},{"$f":"VLOOKUP(B72,'LOC FINAL with new Themes'!A:M,10,0)","v":0},{"$f":"VLOOKUP(B72,'LOC FINAL with new Themes'!A:M,11,0)","v":0},{"$f":"VLOOKUP(B72,'LOC FINAL with new Themes'!A:M,12,0)","v":0},{"$f":"VLOOKUP(B72,'LOC FINAL with new Themes'!A:M,13,0)","v":0}]
[null,null,null,"Geodetic Control  Count",{"$f":"SUBTOTAL(3,E67:E72)","v":6}]
["Coastline Data","Coastline Data","Coastline Data",{"$f":"IF(C74=0,B74,C74)","v":"Coastline Data"},"Geology","DOI-BOEM","Doug Vandegraft","Doug.Vandegraft@boem.gov",null,{"$f":"VLOOKUP(B74,'LOC FINAL with new Themes'!A:M,7,0)","v":"undeliverable email- neeed to identify new contact"},{"$f":"VLOOKUP(B74,'LOC FINAL with new Themes'!A:M,8,0)","v":0},{"$f":"VLOOKUP(B74,'LOC FINAL with new Themes'!A:M,9,0)","v":0},{"$f":"VLOOKUP(B74,'LOC FINAL with new Themes'!A:M,10,0)","v":0},{"$f":"VLOOKUP(B74,'LOC FINAL with new Themes'!A:M,11,0)","v":0},{"$f":"VLOOKUP(B74,'LOC FINAL with new Themes'!A:M,12,0)","v":0},{"$f":"VLOOKUP(B74,'LOC FINAL with new Themes'!A:M,13,0)","v":0}]
[null,null,"BOEM Baseline","BOEM Baseline","Geology","DOI-BOEM","Doug Vandegraft","Doug.Vandegraft@boem.gov"]
[null,null,"Sand and Gravel","Sand and Gravel","Geology","DOI-BOEM","Doug Vandegraft","Doug.Vandegraft@boem.gov"]
[null,null,"Wells","Wells","Geology","DOI-BOEM","Doug Vandegraft","Doug.Vandegraft@boem.gov"]
[null,null,"Coal assessment and mapping","Coal assessment and mapping","Geology","DOI-USGS"]
[null,null,"Earthquake monitoring, research, and mapping","Earthquake monitoring, research, and mapping","Geology","DOI-USGS"]
[null,null,"Geochemistry","Geochemistry","Geology","DOI-USGS"]
[null,null,"Geochronology","Geochronology","Geology","DOI-USGS"]
[null,null,"Geologic mapping","Geologic mapping","Geology","DOI-USGS"]
[null,null,"Geomagnetism","Geomagnetism","Geology","DOI-USGS"]
[null,null,"Geophysics","Geophysics","Geology","DOI-USGS"]
[null,null,"Landslide monitoring, research, and mapping","Landslide monitoring, research, and mapping","Geology","DOI-USGS"]
[null,null,"Marine geology","Marine geology","Geology","DOI-USGS"]
[null,null,"Metallic mineral assessment and mapping","Metallic mineral assessment and mapping","Geology","DOI-USGS"]
[null,null,"Non-metallic mineral assessment and mapping, onshore",{"$f":"IF(C88=0,B87,C88)","v":"Non-metallic mineral assessment and mapping, onshore"},"Geology","DOI-USGS"]
[null,null,"Oil and gas assessment and mapping, onshore",{"$f":"IF(C89=0,B89,C89)","v":"Oil and gas assessment and mapping, onshore"},"Geology","DOI-USGS"]
[null,null,"Paleontology",{"$f":"IF(C90=0,B90,C90)","v":"Paleontology"},"Geology","DOI-USGS"]
[null,null,"Volcano monitoring, research, and mapping",{"$f":"IF(C91=0,B91,C91)","v":"Volcano monitoring, research, and mapping"},"Geology","DOI-USGS"]
[null,null,null,"Geology Count",{"$f":"SUBTOTAL(3,E74:E91)","v":18}]
[null,"5-digit ZIP Code Tabulation Area (Census 2000)","5-digit ZIP Code Tabulation Area (Census 2000)",{"$f":"IF(C93=0,B93,C93)","v":"5-digit ZIP Code Tabulation Area (Census 2000)"},"Governmental Units","DOC-Census","Jennifer Holland","Jennifer.L.Holland@census.gov","(301) 763-2751",{"$f":"VLOOKUP(B93,'LOC FINAL with new Themes'!A:M,7,0)","v":0},{"$f":"VLOOKUP(B93,'LOC FINAL with new Themes'!A:M,8,0)","v":0},{"$f":"VLOOKUP(B93,'LOC FINAL with new Themes'!A:M,9,0)","v":0},{"$f":"VLOOKUP(B93,'LOC FINAL with new Themes'!A:M,10,0)","v":0},{"$f":"VLOOKUP(B93,'LOC FINAL with new Themes'!A:M,11,0)","v":0},{"$f":"VLOOKUP(B93,'LOC FINAL with new Themes'!A:M,12,0)","v":0},{"$f":"VLOOKUP(B93,'LOC FINAL with new Themes'!A:M,13,0)","v":0}]
[null,null,null,"Block Shapefiles with Population and Housing Unit Data","Governmental Units","DOC-Census","Jennifer Holland","Jennifer.L.Holland@census.gov","(301) 763-2751"]
[null,"ANSI codes for  metro/micropolitan areas","ANSI codes for  metro/micropolitan areas",{"$f":"IF(C95=0,B95,C95)","v":"ANSI codes for  metro/micropolitan areas"},"Governmental Units","DOC-Census","Jennifer Holland","Jennifer.L.Holland@census.gov","(301) 763-2751",{"$f":"VLOOKUP(B95,'LOC FINAL with new Themes'!A:M,7,0)","v":0},{"$f":"VLOOKUP(B95,'LOC FINAL with new Themes'!A:M,8,0)","v":0},{"$f":"VLOOKUP(B95,'LOC FINAL with new Themes'!A:M,9,0)","v":0},{"$f":"VLOOKUP(B95,'LOC FINAL with new Themes'!A:M,10,0)","v":0},{"$f":"VLOOKUP(B95,'LOC FINAL with new Themes'!A:M,11,0)","v":0},{"$f":"VLOOKUP(B95,'LOC FINAL with new Themes'!A:M,12,0)","v":0},{"$f":"VLOOKUP(B95,'LOC FINAL with new Themes'!A:M,13,0)","v":0}]
[null,"ANSI codes for congressional districts","ANSI codes for congressional districts","ANSI codes for congressional districts","Governmental Units","DOC-Census","Jennifer Holland","Jennifer.L.Holland@census.gov","(301) 763-2751",{"$f":"VLOOKUP(B96,'LOC FINAL with new Themes'!A:M,7,0)","v":0},{"$f":"VLOOKUP(B96,'LOC FINAL with new Themes'!A:M,8,0)","v":0},{"$f":"VLOOKUP(B96,'LOC FINAL with new Themes'!A:M,9,0)","v":0},{"$f":"VLOOKUP(B96,'LOC FINAL with new Themes'!A:M,10,0)","v":0},{"$f":"VLOOKUP(B96,'LOC FINAL with new Themes'!A:M,11,0)","v":0},{"$f":"VLOOKUP(B96,'LOC FINAL with new Themes'!A:M,12,0)","v":0},{"$f":"VLOOKUP(B96,'LOC FINAL with new Themes'!A:M,13,0)","v":0}]
[null,"ANSI codes for counties","ANSI codes for counties","ANSI codes for counties","Governmental Units","DOC-Census","Jennifer Holland","Jennifer.L.Holland@census.gov","(301) 763-2751",{"$f":"VLOOKUP(B97,'LOC FINAL with new Themes'!A:M,7,0)","v":0},{"$f":"VLOOKUP(B97,'LOC FINAL with new Themes'!A:M,8,0)","v":0},{"$f":"VLOOKUP(B97,'LOC FINAL with new Themes'!A:M,9,0)","v":0},{"$f":"VLOOKUP(B97,'LOC FINAL with new Themes'!A:M,10,0)","v":0},{"$f":"VLOOKUP(B97,'LOC FINAL with new Themes'!A:M,11,0)","v":0},{"$f":"VLOOKUP(B97,'LOC FINAL with new Themes'!A:M,12,0)","v":0},{"$f":"VLOOKUP(B97,'LOC FINAL with new Themes'!A:M,13,0)","v":0}]
[null,"ANSI codes for states","ANSI codes for states","ANSI codes for states","Governmental Units","DOC-Census","Jennifer Holland","Jennifer.L.Holland@census.gov","(301) 763-2751",{"$f":"VLOOKUP(B98,'LOC FINAL with new Themes'!A:M,7,0)","v":0},{"$f":"VLOOKUP(B98,'LOC FINAL with new Themes'!A:M,8,0)","v":0},{"$f":"VLOOKUP(B98,'LOC FINAL with new Themes'!A:M,9,0)","v":0},{"$f":"VLOOKUP(B98,'LOC FINAL with new Themes'!A:M,10,0)","v":0},{"$f":"VLOOKUP(B98,'LOC FINAL with new Themes'!A:M,11,0)","v":0},{"$f":"VLOOKUP(B98,'LOC FINAL with new Themes'!A:M,12,0)","v":0},{"$f":"VLOOKUP(B98,'LOC FINAL with new Themes'!A:M,13,0)","v":0}]
[null,"Block (2010 Census)","Block (2010 Census)","Block (2010 Census)","Governmental Units","DOC-Census","Jennifer Holland","Jennifer.L.Holland@census.gov","(301) 763-2751",{"$f":"VLOOKUP(B99,'LOC FINAL with new Themes'!A:M,7,0)","v":0},{"$f":"VLOOKUP(B99,'LOC FINAL with new Themes'!A:M,8,0)","v":0},{"$f":"VLOOKUP(B99,'LOC FINAL with new Themes'!A:M,9,0)","v":0},{"$f":"VLOOKUP(B99,'LOC FINAL with new Themes'!A:M,10,0)","v":0},{"$f":"VLOOKUP(B99,'LOC FINAL with new Themes'!A:M,11,0)","v":0},{"$f":"VLOOKUP(B99,'LOC FINAL with new Themes'!A:M,12,0)","v":0},{"$f":"VLOOKUP(B99,'LOC FINAL with new Themes'!A:M,13,0)","v":0}]
[null,"Block (Census 2000)","Block (Census 2000)","Block (Census 2000)","Governmental Units","DOC-Census","Jennifer Holland","Jennifer.L.Holland@census.gov","(301) 763-2751",{"$f":"VLOOKUP(B100,'LOC FINAL with new Themes'!A:M,7,0)","v":0},{"$f":"VLOOKUP(B100,'LOC FINAL with new Themes'!A:M,8,0)","v":0},{"$f":"VLOOKUP(B100,'LOC FINAL with new Themes'!A:M,9,0)","v":0},{"$f":"VLOOKUP(B100,'LOC FINAL with new Themes'!A:M,10,0)","v":0},{"$f":"VLOOKUP(B100,'LOC FINAL with new Themes'!A:M,11,0)","v":0},{"$f":"VLOOKUP(B100,'LOC FINAL with new Themes'!A:M,12,0)","v":0},{"$f":"VLOOKUP(B100,'LOC FINAL with new Themes'!A:M,13,0)","v":0}]
[null,"Block Group (Census 2000)","Block Group (Census 2000)","Block Group (Census 2000)","Governmental Units","DOC-Census","Jennifer Holland","Jennifer.L.Holland@census.gov","(301) 763-2751",{"$f":"VLOOKUP(B101,'LOC FINAL with new Themes'!A:M,7,0)","v":0},{"$f":"VLOOKUP(B101,'LOC FINAL with new Themes'!A:M,8,0)","v":0},{"$f":"VLOOKUP(B101,'LOC FINAL with new Themes'!A:M,9,0)","v":0},{"$f":"VLOOKUP(B101,'LOC FINAL with new Themes'!A:M,10,0)","v":0},{"$f":"VLOOKUP(B101,'LOC FINAL with new Themes'!A:M,11,0)","v":0},{"$f":"VLOOKUP(B101,'LOC FINAL with new Themes'!A:M,12,0)","v":0},{"$f":"VLOOKUP(B101,'LOC FINAL with new Themes'!A:M,13,0)","v":0}]
[null,"Block Group (Census 2010)","Block Group (Census 2010)","Block Group (2010 Census)","Governmental Units","DOC-Census","Jennifer Holland","Jennifer.L.Holland@census.gov","(301) 763-2751",{"$f":"VLOOKUP(B102,'LOC FINAL with new Themes'!A:M,7,0)","v":0},{"$f":"VLOOKUP(B102,'LOC FINAL with new Themes'!A:M,8,0)","v":0},{"$f":"VLOOKUP(B102,'LOC FINAL with new Themes'!A:M,9,0)","v":0},{"$f":"VLOOKUP(B102,'LOC FINAL with new Themes'!A:M,10,0)","v":0},{"$f":"VLOOKUP(B102,'LOC FINAL with new Themes'!A:M,11,0)","v":0},{"$f":"VLOOKUP(B102,'LOC FINAL with new Themes'!A:M,12,0)","v":0},{"$f":"VLOOKUP(B102,'LOC FINAL with new Themes'!A:M,13,0)","v":0}]
[null,"Census 2000 FIPS 55 Codes","Census 2000 FIPS 55 Codes",{"$f":"IF(C103=0,B103,C103)","v":"Census 2000 FIPS 55 Codes"},"Governmental Units","DOC-Census","Jennifer Holland","Jennifer.L.Holland@census.gov","(301) 763-2751",{"$f":"VLOOKUP(B103,'LOC FINAL with new Themes'!A:M,7,0)","v":0},{"$f":"VLOOKUP(B103,'LOC FINAL with new Themes'!A:M,8,0)","v":0},{"$f":"VLOOKUP(B103,'LOC FINAL with new Themes'!A:M,9,0)","v":0},{"$f":"VLOOKUP(B103,'LOC FINAL with new Themes'!A:M,10,0)","v":0},{"$f":"VLOOKUP(B103,'LOC FINAL with new Themes'!A:M,11,0)","v":0},{"$f":"VLOOKUP(B103,'LOC FINAL with new Themes'!A:M,12,0)","v":0},{"$f":"VLOOKUP(B103,'LOC FINAL with new Themes'!A:M,13,0)","v":0}]
[null,"Census Tract (2010 Census)","Census Tract (2010 Census)",{"$f":"IF(C104=0,B104,C104)","v":"Census Tract (2010 Census)"},"Governmental Units","DOC-Census","Jennifer Holland","Jennifer.L.Holland@census.gov","(301) 763-2751",{"$f":"VLOOKUP(B104,'LOC FINAL with new Themes'!A:M,7,0)","v":0},{"$f":"VLOOKUP(B104,'LOC FINAL with new Themes'!A:M,8,0)","v":0},{"$f":"VLOOKUP(B104,'LOC FINAL with new Themes'!A:M,9,0)","v":0},{"$f":"VLOOKUP(B104,'LOC FINAL with new Themes'!A:M,10,0)","v":0},{"$f":"VLOOKUP(B104,'LOC FINAL with new Themes'!A:M,11,0)","v":0},{"$f":"VLOOKUP(B104,'LOC FINAL with new Themes'!A:M,12,0)","v":0},{"$f":"VLOOKUP(B104,'LOC FINAL with new Themes'!A:M,13,0)","v":0}]
[null,"Census Tract (Census 2000)","Census Tract (Census 2000)",{"$f":"IF(C105=0,B105,C105)","v":"Census Tract (Census 2000)"},"Governmental Units","DOC-Census","Jennifer Holland","Jennifer.L.Holland@census.gov","(301) 763-2751",{"$f":"VLOOKUP(B105,'LOC FINAL with new Themes'!A:M,7,0)","v":0},{"$f":"VLOOKUP(B105,'LOC FINAL with new Themes'!A:M,8,0)","v":0},{"$f":"VLOOKUP(B105,'LOC FINAL with new Themes'!A:M,9,0)","v":0},{"$f":"VLOOKUP(B105,'LOC FINAL with new Themes'!A:M,10,0)","v":0},{"$f":"VLOOKUP(B105,'LOC FINAL with new Themes'!A:M,11,0)","v":0},{"$f":"VLOOKUP(B105,'LOC FINAL with new Themes'!A:M,12,0)","v":0},{"$f":"VLOOKUP(B105,'LOC FINAL with new Themes'!A:M,13,0)","v":0}]
[null,"Combined Statistical Area (2010 Census)","Combined Statistical Area (2010 Census)",{"$f":"IF(C106=0,B106,C106)","v":"Combined Statistical Area (2010 Census)"},"Governmental Units","DOC-Census","Jennifer Holland","Jennifer.L.Holland@census.gov","(301) 763-2751",{"$f":"VLOOKUP(B106,'LOC FINAL with new Themes'!A:M,7,0)","v":0},{"$f":"VLOOKUP(B106,'LOC FINAL with new Themes'!A:M,8,0)","v":0},{"$f":"VLOOKUP(B106,'LOC FINAL with new Themes'!A:M,9,0)","v":0},{"$f":"VLOOKUP(B106,'LOC FINAL with new Themes'!A:M,10,0)","v":0},{"$f":"VLOOKUP(B106,'LOC FINAL with new Themes'!A:M,11,0)","v":0},{"$f":"VLOOKUP(B106,'LOC FINAL with new Themes'!A:M,12,0)","v":0},{"$f":"VLOOKUP(B106,'LOC FINAL with new Themes'!A:M,13,0)","v":0}]
[null,"Elementary School District (2010 Census)","Elementary School District (2010 Census)","School District - Elementary (2010 Census)","Governmental Units","DOC-Census","Jennifer Holland","Jennifer.L.Holland@census.gov","(301) 763-2751",{"$f":"VLOOKUP(B107,'LOC FINAL with new Themes'!A:M,7,0)","v":0},{"$f":"VLOOKUP(B107,'LOC FINAL with new Themes'!A:M,8,0)","v":0},{"$f":"VLOOKUP(B107,'LOC FINAL with new Themes'!A:M,9,0)","v":0},{"$f":"VLOOKUP(B107,'LOC FINAL with new Themes'!A:M,10,0)","v":0},{"$f":"VLOOKUP(B107,'LOC FINAL with new Themes'!A:M,11,0)","v":0},{"$f":"VLOOKUP(B107,'LOC FINAL with new Themes'!A:M,12,0)","v":0},{"$f":"VLOOKUP(B107,'LOC FINAL with new Themes'!A:M,13,0)","v":0}]
[null,"Elementary School District (Census 2000)","Elementary School District (Census 2000)","School District - Elementary (Census 2000)","Governmental Units","DOC-Census","Jennifer Holland","Jennifer.L.Holland@census.gov","(301) 763-2751",{"$f":"VLOOKUP(B108,'LOC FINAL with new Themes'!A:M,7,0)","v":0},{"$f":"VLOOKUP(B108,'LOC FINAL with new Themes'!A:M,8,0)","v":0},{"$f":"VLOOKUP(B108,'LOC FINAL with new Themes'!A:M,9,0)","v":0},{"$f":"VLOOKUP(B108,'LOC FINAL with new Themes'!A:M,10,0)","v":0},{"$f":"VLOOKUP(B108,'LOC FINAL with new Themes'!A:M,11,0)","v":0},{"$f":"VLOOKUP(B108,'LOC FINAL with new Themes'!A:M,12,0)","v":0},{"$f":"VLOOKUP(B108,'LOC FINAL with new Themes'!A:M,13,0)","v":0}]
[null,"Metropolitan/micropolitan Statistical Area (2010 Census)","Metropolitan/micropolitan Statistical Area (2010 Census)",{"$f":"IF(C109=0,B109,C109)","v":"Metropolitan/micropolitan Statistical Area (2010 Census)"},"Governmental Units","DOC-Census","Jennifer Holland","Jennifer.L.Holland@census.gov","(301) 763-2751",{"$f":"VLOOKUP(B109,'LOC FINAL with new Themes'!A:M,7,0)","v":0},{"$f":"VLOOKUP(B109,'LOC FINAL with new Themes'!A:M,8,0)","v":0},{"$f":"VLOOKUP(B109,'LOC FINAL with new Themes'!A:M,9,0)","v":0},{"$f":"VLOOKUP(B109,'LOC FINAL with new Themes'!A:M,10,0)","v":0},{"$f":"VLOOKUP(B109,'LOC FINAL with new Themes'!A:M,11,0)","v":0},{"$f":"VLOOKUP(B109,'LOC FINAL with new Themes'!A:M,12,0)","v":0},{"$f":"VLOOKUP(B109,'LOC FINAL with new Themes'!A:M,13,0)","v":0}]
[null,null,"Oklahoma Tribal Statistical Areas",{"$f":"IF(C110=0,B110,C110)","v":"Oklahoma Tribal Statistical Areas"},"Governmental Units","DOC-Census","Jennifer Holland","Jennifer.L.Holland@census.gov","(301) 763-2751"]
[null,"Public Use Microdata Area (Census 2000)","Public Use Microdata Area (Census 2000)",{"$f":"IF(C111=0,B111,C111)","v":"Public Use Microdata Area (Census 2000)"},"Governmental Units","DOC-Census","Jennifer Holland","Jennifer.L.Holland@census.gov","(301) 763-2751",{"$f":"VLOOKUP(B111,'LOC FINAL with new Themes'!A:M,7,0)","v":0},{"$f":"VLOOKUP(B111,'LOC FINAL with new Themes'!A:M,8,0)","v":0},{"$f":"VLOOKUP(B111,'LOC FINAL with new Themes'!A:M,9,0)","v":0},{"$f":"VLOOKUP(B111,'LOC FINAL with new Themes'!A:M,10,0)","v":0},{"$f":"VLOOKUP(B111,'LOC FINAL with new Themes'!A:M,11,0)","v":0},{"$f":"VLOOKUP(B111,'LOC FINAL with new Themes'!A:M,12,0)","v":0},{"$f":"VLOOKUP(B111,'LOC FINAL with new Themes'!A:M,13,0)","v":0}]
[null,"Secondary School District (2010 Census)","Secondary School District (2010 Census)","School District - Secondary (2010 Census)","Governmental Units","DOC-Census","Jennifer Holland","Jennifer.L.Holland@census.gov","(301) 763-2751",{"$f":"VLOOKUP(B112,'LOC FINAL with new Themes'!A:M,7,0)","v":0},{"$f":"VLOOKUP(B112,'LOC FINAL with new Themes'!A:M,8,0)","v":0},{"$f":"VLOOKUP(B112,'LOC FINAL with new Themes'!A:M,9,0)","v":0},{"$f":"VLOOKUP(B112,'LOC FINAL with new Themes'!A:M,10,0)","v":0},{"$f":"VLOOKUP(B112,'LOC FINAL with new Themes'!A:M,11,0)","v":0},{"$f":"VLOOKUP(B112,'LOC FINAL with new Themes'!A:M,12,0)","v":0},{"$f":"VLOOKUP(B112,'LOC FINAL with new Themes'!A:M,13,0)","v":0}]
[null,"Secondary School District (Census 2000)","Secondary School District (Census 2000)","School District - Secondary (Census 2000)","Governmental Units","DOC-Census","Jennifer Holland","Jennifer.L.Holland@census.gov","(301) 763-2751",{"$f":"VLOOKUP(B113,'LOC FINAL with new Themes'!A:M,7,0)","v":0},{"$f":"VLOOKUP(B113,'LOC FINAL with new Themes'!A:M,8,0)","v":0},{"$f":"VLOOKUP(B113,'LOC FINAL with new Themes'!A:M,9,0)","v":0},{"$f":"VLOOKUP(B113,'LOC FINAL with new Themes'!A:M,10,0)","v":0},{"$f":"VLOOKUP(B113,'LOC FINAL with new Themes'!A:M,11,0)","v":0},{"$f":"VLOOKUP(B113,'LOC FINAL with new Themes'!A:M,12,0)","v":0},{"$f":"VLOOKUP(B113,'LOC FINAL with new Themes'!A:M,13,0)","v":0}]
[null,"Super Public Use Microdata Area (Census 2000)","Super Public Use Microdata Area (Census 2000)",{"$f":"IF(C114=0,B114,C114)","v":"Super Public Use Microdata Area (Census 2000)"},"Governmental Units","DOC-Census","Jennifer Holland","Jennifer.L.Holland@census.gov","(301) 763-2751",{"$f":"VLOOKUP(B114,'LOC FINAL with new Themes'!A:M,7,0)","v":0},{"$f":"VLOOKUP(B114,'LOC FINAL with new Themes'!A:M,8,0)","v":0},{"$f":"VLOOKUP(B114,'LOC FINAL with new Themes'!A:M,9,0)","v":0},{"$f":"VLOOKUP(B114,'LOC FINAL with new Themes'!A:M,10,0)","v":0},{"$f":"VLOOKUP(B114,'LOC FINAL with new Themes'!A:M,11,0)","v":0},{"$f":"VLOOKUP(B114,'LOC FINAL with new Themes'!A:M,12,0)","v":0},{"$f":"VLOOKUP(B114,'LOC FINAL with new Themes'!A:M,13,0)","v":0}]
[null,"Topological Faces (2010 Census)","Topological Faces (2010 Census)","Topological Faces (2010 Census)","Governmental Units","DOC-Census","Jennifer Holland","Jennifer.L.Holland@census.gov","(301) 763-2751",{"$f":"VLOOKUP(B115,'LOC FINAL with new Themes'!A:M,7,0)","v":0},{"$f":"VLOOKUP(B115,'LOC FINAL with new Themes'!A:M,8,0)","v":0},{"$f":"VLOOKUP(B115,'LOC FINAL with new Themes'!A:M,9,0)","v":0},{"$f":"VLOOKUP(B115,'LOC FINAL with new Themes'!A:M,10,0)","v":0},{"$f":"VLOOKUP(B115,'LOC FINAL with new Themes'!A:M,11,0)","v":0},{"$f":"VLOOKUP(B115,'LOC FINAL with new Themes'!A:M,12,0)","v":0},{"$f":"VLOOKUP(B115,'LOC FINAL with new Themes'!A:M,13,0)","v":0}]
[null,"Unified School District (2010 Census)","Unified School District (2010 Census)","Unified School District (2010 Census)","Governmental Units","DOC-Census","Jennifer Holland","Jennifer.L.Holland@census.gov","(301) 763-2751",{"$f":"VLOOKUP(B116,'LOC FINAL with new Themes'!A:M,7,0)","v":0},{"$f":"VLOOKUP(B116,'LOC FINAL with new Themes'!A:M,8,0)","v":0},{"$f":"VLOOKUP(B116,'LOC FINAL with new Themes'!A:M,9,0)","v":0},{"$f":"VLOOKUP(B116,'LOC FINAL with new Themes'!A:M,10,0)","v":0},{"$f":"VLOOKUP(B116,'LOC FINAL with new Themes'!A:M,11,0)","v":0},{"$f":"VLOOKUP(B116,'LOC FINAL with new Themes'!A:M,12,0)","v":0},{"$f":"VLOOKUP(B116,'LOC FINAL with new Themes'!A:M,13,0)","v":0}]
[null,"Unified School District (Census 2000)","Unified School District (Census 2000)","Unified School District (Census 2000)","Governmental Units","DOC-Census","Jennifer Holland","Jennifer.L.Holland@census.gov","(301) 763-2751",{"$f":"VLOOKUP(B117,'LOC FINAL with new Themes'!A:M,7,0)","v":0},{"$f":"VLOOKUP(B117,'LOC FINAL with new Themes'!A:M,8,0)","v":0},{"$f":"VLOOKUP(B117,'LOC FINAL with new Themes'!A:M,9,0)","v":0},{"$f":"VLOOKUP(B117,'LOC FINAL with new Themes'!A:M,10,0)","v":0},{"$f":"VLOOKUP(B117,'LOC FINAL with new Themes'!A:M,11,0)","v":0},{"$f":"VLOOKUP(B117,'LOC FINAL with new Themes'!A:M,12,0)","v":0},{"$f":"VLOOKUP(B117,'LOC FINAL with new Themes'!A:M,13,0)","v":0}]
[null,"Urban Growth Area (2010 Census)","Urban Growth Area (2010 Census)","Urban Growth Area (2010 Census)","Governmental Units","DOC-Census","Jennifer Holland","Jennifer.L.Holland@census.gov","(301) 763-2751",{"$f":"VLOOKUP(B118,'LOC FINAL with new Themes'!A:M,7,0)","v":0},{"$f":"VLOOKUP(B118,'LOC FINAL with new Themes'!A:M,8,0)","v":0},{"$f":"VLOOKUP(B118,'LOC FINAL with new Themes'!A:M,9,0)","v":0},{"$f":"VLOOKUP(B118,'LOC FINAL with new Themes'!A:M,10,0)","v":0},{"$f":"VLOOKUP(B118,'LOC FINAL with new Themes'!A:M,11,0)","v":0},{"$f":"VLOOKUP(B118,'LOC FINAL with new Themes'!A:M,12,0)","v":0},{"$f":"VLOOKUP(B118,'LOC FINAL with new Themes'!A:M,13,0)","v":0}]
[null,"Urban Growth Area (Census 2000)","Urban Growth Area (Census 2000)","Urban Growth Area (Census 2000)","Governmental Units","DOC-Census","Jennifer Holland","Jennifer.L.Holland@census.gov","(301) 763-2751",{"$f":"VLOOKUP(B119,'LOC FINAL with new Themes'!A:M,7,0)","v":0},{"$f":"VLOOKUP(B119,'LOC FINAL with new Themes'!A:M,8,0)","v":0},{"$f":"VLOOKUP(B119,'LOC FINAL with new Themes'!A:M,9,0)","v":0},{"$f":"VLOOKUP(B119,'LOC FINAL with new Themes'!A:M,10,0)","v":0},{"$f":"VLOOKUP(B119,'LOC FINAL with new Themes'!A:M,11,0)","v":0},{"$f":"VLOOKUP(B119,'LOC FINAL with new Themes'!A:M,12,0)","v":0},{"$f":"VLOOKUP(B119,'LOC FINAL with new Themes'!A:M,13,0)","v":0}]
[null,"Voting District (2010 Census)","Voting District (2010 Census)","Voting District (2010 Census)","Governmental Units","DOC-Census","Jennifer Holland","Jennifer.L.Holland@census.gov","(301) 763-2751",{"$f":"VLOOKUP(B120,'LOC FINAL with new Themes'!A:M,7,0)","v":0},{"$f":"VLOOKUP(B120,'LOC FINAL with new Themes'!A:M,8,0)","v":0},{"$f":"VLOOKUP(B120,'LOC FINAL with new Themes'!A:M,9,0)","v":0},{"$f":"VLOOKUP(B120,'LOC FINAL with new Themes'!A:M,10,0)","v":0},{"$f":"VLOOKUP(B120,'LOC FINAL with new Themes'!A:M,11,0)","v":0},{"$f":"VLOOKUP(B120,'LOC FINAL with new Themes'!A:M,12,0)","v":0},{"$f":"VLOOKUP(B120,'LOC FINAL with new Themes'!A:M,13,0)","v":0}]
[null,"Voting District (Census 2000)","Voting District (Census 2000)","Voting District (Census 2000)","Governmental Units","DOC-Census","Jennifer Holland","Jennifer.L.Holland@census.gov","(301) 763-2751",{"$f":"VLOOKUP(B121,'LOC FINAL with new Themes'!A:M,7,0)","v":0},{"$f":"VLOOKUP(B121,'LOC FINAL with new Themes'!A:M,8,0)","v":0},{"$f":"VLOOKUP(B121,'LOC FINAL with new Themes'!A:M,9,0)","v":0},{"$f":"VLOOKUP(B121,'LOC FINAL with new Themes'!A:M,10,0)","v":0},{"$f":"VLOOKUP(B121,'LOC FINAL with new Themes'!A:M,11,0)","v":0},{"$f":"VLOOKUP(B121,'LOC FINAL with new Themes'!A:M,12,0)","v":0},{"$f":"VLOOKUP(B121,'LOC FINAL with new Themes'!A:M,13,0)","v":0}]
[null,"Alaska Native Regional Corporation (2010 Census)","Alaska Native Regional Corporation (2010 Census)","Alaska Native Regional Corporation (2010 Census)","Governmental Units","DOC-Census","Jennifer Holland","Jennifer.L.Holland@census.gov","(301) 763-2751",{"$f":"VLOOKUP(B122,'LOC FINAL with new Themes'!A:M,7,0)","v":0},{"$f":"VLOOKUP(B122,'LOC FINAL with new Themes'!A:M,8,0)","v":0},{"$f":"VLOOKUP(B122,'LOC FINAL with new Themes'!A:M,9,0)","v":0},{"$f":"VLOOKUP(B122,'LOC FINAL with new Themes'!A:M,10,0)","v":0},{"$f":"VLOOKUP(B122,'LOC FINAL with new Themes'!A:M,11,0)","v":0},{"$f":"VLOOKUP(B122,'LOC FINAL with new Themes'!A:M,12,0)","v":0},{"$f":"VLOOKUP(B122,'LOC FINAL with new Themes'!A:M,13,0)","v":0}]
[null,"Alaska Native Regional Corporation (Census 2000)","Alaska Native Regional Corporation (Census 2000)","Alaska Native Regional Corporation (Census 2000)","Governmental Units","DOC-Census","Jennifer Holland","Jennifer.L.Holland@census.gov","(301) 763-2751",{"$f":"VLOOKUP(B123,'LOC FINAL with new Themes'!A:M,7,0)","v":0},{"$f":"VLOOKUP(B123,'LOC FINAL with new Themes'!A:M,8,0)","v":0},{"$f":"VLOOKUP(B123,'LOC FINAL with new Themes'!A:M,9,0)","v":0},{"$f":"VLOOKUP(B123,'LOC FINAL with new Themes'!A:M,10,0)","v":0},{"$f":"VLOOKUP(B123,'LOC FINAL with new Themes'!A:M,11,0)","v":0},{"$f":"VLOOKUP(B123,'LOC FINAL with new Themes'!A:M,12,0)","v":0},{"$f":"VLOOKUP(B123,'LOC FINAL with new Themes'!A:M,13,0)","v":0}]
[null,"American Indian Tribal Subdivision (2010 Census)","American Indian Tribal Subdivision (2010 Census)","American Indian Tribal Subdivision (2010 Census)","Governmental Units","DOC-Census","Jennifer Holland","Jennifer.L.Holland@census.gov","(301) 763-2751",{"$f":"VLOOKUP(B124,'LOC FINAL with new Themes'!A:M,7,0)","v":0},{"$f":"VLOOKUP(B124,'LOC FINAL with new Themes'!A:M,8,0)","v":0},{"$f":"VLOOKUP(B124,'LOC FINAL with new Themes'!A:M,9,0)","v":0},{"$f":"VLOOKUP(B124,'LOC FINAL with new Themes'!A:M,10,0)","v":0},{"$f":"VLOOKUP(B124,'LOC FINAL with new Themes'!A:M,11,0)","v":0},{"$f":"VLOOKUP(B124,'LOC FINAL with new Themes'!A:M,12,0)","v":0},{"$f":"VLOOKUP(B124,'LOC FINAL with new Themes'!A:M,13,0)","v":0}]
[null,"American Indian Tribal Subdivision (Census 2000)","American Indian Tribal Subdivision (Census 2000)","American Indian Tribal Subdivision (Census 2000)","Governmental Units","DOC-Census","Jennifer Holland","Jennifer.L.Holland@census.gov","(301) 763-2751",{"$f":"VLOOKUP(B125,'LOC FINAL with new Themes'!A:M,7,0)","v":0},{"$f":"VLOOKUP(B125,'LOC FINAL with new Themes'!A:M,8,0)","v":0},{"$f":"VLOOKUP(B125,'LOC FINAL with new Themes'!A:M,9,0)","v":0},{"$f":"VLOOKUP(B125,'LOC FINAL with new Themes'!A:M,10,0)","v":0},{"$f":"VLOOKUP(B125,'LOC FINAL with new Themes'!A:M,11,0)","v":0},{"$f":"VLOOKUP(B125,'LOC FINAL with new Themes'!A:M,12,0)","v":0},{"$f":"VLOOKUP(B125,'LOC FINAL with new Themes'!A:M,13,0)","v":0}]
[null,"American Indian/Alaska Native/Native Hawaiian Area (2000 Census)","American Indian/Alaska Native/Native Hawaiian Area (2000 Census)","American Indian/Alaska Native/Native Hawaiian Area (2000 Census)","Governmental Units","DOC-Census","Jennifer Holland","Jennifer.L.Holland@census.gov","(301) 763-2751",{"$f":"VLOOKUP(B126,'LOC FINAL with new Themes'!A:M,7,0)","v":0},{"$f":"VLOOKUP(B126,'LOC FINAL with new Themes'!A:M,8,0)","v":0},{"$f":"VLOOKUP(B126,'LOC FINAL with new Themes'!A:M,9,0)","v":0},{"$f":"VLOOKUP(B126,'LOC FINAL with new Themes'!A:M,10,0)","v":0},{"$f":"VLOOKUP(B126,'LOC FINAL with new Themes'!A:M,11,0)","v":0},{"$f":"VLOOKUP(B126,'LOC FINAL with new Themes'!A:M,12,0)","v":0},{"$f":"VLOOKUP(B126,'LOC FINAL with new Themes'!A:M,13,0)","v":0}]
[null,"American Indian/Alaska Native/Native Hawaiian Area (2010 Census)","American Indian/Alaska Native/Native Hawaiian Area (2010 Census)","American Indian/Alaska Native/Native Hawaiian Area (2010 Census)","Governmental Units","DOC-Census","Jennifer Holland","Jennifer.L.Holland@census.gov","(301) 763-2751",{"$f":"VLOOKUP(B127,'LOC FINAL with new Themes'!A:M,7,0)","v":0},{"$f":"VLOOKUP(B127,'LOC FINAL with new Themes'!A:M,8,0)","v":0},{"$f":"VLOOKUP(B127,'LOC FINAL with new Themes'!A:M,9,0)","v":0},{"$f":"VLOOKUP(B127,'LOC FINAL with new Themes'!A:M,10,0)","v":0},{"$f":"VLOOKUP(B127,'LOC FINAL with new Themes'!A:M,11,0)","v":0},{"$f":"VLOOKUP(B127,'LOC FINAL with new Themes'!A:M,12,0)","v":0},{"$f":"VLOOKUP(B127,'LOC FINAL with new Themes'!A:M,13,0)","v":0}]
[null,"Combined New England City and Town Area (2010 Census)","Combined New England City and Town Area (2010 Census)","Combined New England City and Town Area (2010 Census)","Governmental Units","DOC-Census","Jennifer Holland","Jennifer.L.Holland@census.gov","(301) 763-2751",{"$f":"VLOOKUP(B128,'LOC FINAL with new Themes'!A:M,7,0)","v":0},{"$f":"VLOOKUP(B128,'LOC FINAL with new Themes'!A:M,8,0)","v":0},{"$f":"VLOOKUP(B128,'LOC FINAL with new Themes'!A:M,9,0)","v":0},{"$f":"VLOOKUP(B128,'LOC FINAL with new Themes'!A:M,10,0)","v":0},{"$f":"VLOOKUP(B128,'LOC FINAL with new Themes'!A:M,11,0)","v":0},{"$f":"VLOOKUP(B128,'LOC FINAL with new Themes'!A:M,12,0)","v":0},{"$f":"VLOOKUP(B128,'LOC FINAL with new Themes'!A:M,13,0)","v":0}]
["Congressional District Boundaries","Congressional District (108th)","Congressional District (108th)","Congressional District (108th)","Governmental Units","DOC-Census","Jennifer Holland","Jennifer.L.Holland@census.gov","(301) 763-2751",{"$f":"VLOOKUP(B129,'LOC FINAL with new Themes'!A:M,7,0)","v":0},{"$f":"VLOOKUP(B129,'LOC FINAL with new Themes'!A:M,8,0)","v":0},{"$f":"VLOOKUP(B129,'LOC FINAL with new Themes'!A:M,9,0)","v":0},{"$f":"VLOOKUP(B129,'LOC FINAL with new Themes'!A:M,10,0)","v":0},{"$f":"VLOOKUP(B129,'LOC FINAL with new Themes'!A:M,11,0)","v":0},{"$f":"VLOOKUP(B129,'LOC FINAL with new Themes'!A:M,12,0)","v":0},{"$f":"VLOOKUP(B129,'LOC FINAL with new Themes'!A:M,13,0)","v":0}]
[null,"Congressional District (111th)","Congressional District (111th)","Congressional District (111th)","Governmental Units","DOC-Census","Jennifer Holland","Jennifer.L.Holland@census.gov","(301) 763-2751",{"$f":"VLOOKUP(B130,'LOC FINAL with new Themes'!A:M,7,0)","v":0},{"$f":"VLOOKUP(B130,'LOC FINAL with new Themes'!A:M,8,0)","v":0},{"$f":"VLOOKUP(B130,'LOC FINAL with new Themes'!A:M,9,0)","v":0},{"$f":"VLOOKUP(B130,'LOC FINAL with new Themes'!A:M,10,0)","v":0},{"$f":"VLOOKUP(B130,'LOC FINAL with new Themes'!A:M,11,0)","v":0},{"$f":"VLOOKUP(B130,'LOC FINAL with new Themes'!A:M,12,0)","v":0},{"$f":"VLOOKUP(B130,'LOC FINAL with new Themes'!A:M,13,0)","v":0}]
[null,"Consolidated City (2010 Census)","Consolidated City (2010 Census)","Consolidated City (2010 Census)","Governmental Units","DOC-Census","Jennifer Holland","Jennifer.L.Holland@census.gov","(301) 763-2751",{"$f":"VLOOKUP(B131,'LOC FINAL with new Themes'!A:M,7,0)","v":0},{"$f":"VLOOKUP(B131,'LOC FINAL with new Themes'!A:M,8,0)","v":0},{"$f":"VLOOKUP(B131,'LOC FINAL with new Themes'!A:M,9,0)","v":0},{"$f":"VLOOKUP(B131,'LOC FINAL with new Themes'!A:M,10,0)","v":0},{"$f":"VLOOKUP(B131,'LOC FINAL with new Themes'!A:M,11,0)","v":0},{"$f":"VLOOKUP(B131,'LOC FINAL with new Themes'!A:M,12,0)","v":0},{"$f":"VLOOKUP(B131,'LOC FINAL with new Themes'!A:M,13,0)","v":0}]
[null,"Consolidated City (Census 2000)","Consolidated City (Census 2000)","Consolidated City (Census 2000)","Governmental Units","DOC-Census","Jennifer Holland","Jennifer.L.Holland@census.gov","(301) 763-2751",{"$f":"VLOOKUP(B132,'LOC FINAL with new Themes'!A:M,7,0)","v":0},{"$f":"VLOOKUP(B132,'LOC FINAL with new Themes'!A:M,8,0)","v":0},{"$f":"VLOOKUP(B132,'LOC FINAL with new Themes'!A:M,9,0)","v":0},{"$f":"VLOOKUP(B132,'LOC FINAL with new Themes'!A:M,10,0)","v":0},{"$f":"VLOOKUP(B132,'LOC FINAL with new Themes'!A:M,11,0)","v":0},{"$f":"VLOOKUP(B132,'LOC FINAL with new Themes'!A:M,12,0)","v":0},{"$f":"VLOOKUP(B132,'LOC FINAL with new Themes'!A:M,13,0)","v":0}]
[null,"County and Equivalent (2010 Census)","County and Equivalent (2010 Census)","County and Equivalent (2010 Census)","Governmental Units","DOC-Census","Jennifer Holland","Jennifer.L.Holland@census.gov","(301) 763-2751",{"$f":"VLOOKUP(B133,'LOC FINAL with new Themes'!A:M,7,0)","v":0},{"$f":"VLOOKUP(B133,'LOC FINAL with new Themes'!A:M,8,0)","v":0},{"$f":"VLOOKUP(B133,'LOC FINAL with new Themes'!A:M,9,0)","v":0},{"$f":"VLOOKUP(B133,'LOC FINAL with new Themes'!A:M,10,0)","v":0},{"$f":"VLOOKUP(B133,'LOC FINAL with new Themes'!A:M,11,0)","v":0},{"$f":"VLOOKUP(B133,'LOC FINAL with new Themes'!A:M,12,0)","v":0},{"$f":"VLOOKUP(B133,'LOC FINAL with new Themes'!A:M,13,0)","v":0}]
[null,"County and Equivalent (Census 2000)","County and Equivalent (Census 2000)","County and Equivalent (Census 2000)","Governmental Units","DOC-Census","Jennifer Holland","Jennifer.L.Holland@census.gov","(301) 763-2751",{"$f":"VLOOKUP(B134,'LOC FINAL with new Themes'!A:M,7,0)","v":0},{"$f":"VLOOKUP(B134,'LOC FINAL with new Themes'!A:M,8,0)","v":0},{"$f":"VLOOKUP(B134,'LOC FINAL with new Themes'!A:M,9,0)","v":0},{"$f":"VLOOKUP(B134,'LOC FINAL with new Themes'!A:M,10,0)","v":0},{"$f":"VLOOKUP(B134,'LOC FINAL with new Themes'!A:M,11,0)","v":0},{"$f":"VLOOKUP(B134,'LOC FINAL with new Themes'!A:M,12,0)","v":0},{"$f":"VLOOKUP(B134,'LOC FINAL with new Themes'!A:M,13,0)","v":0}]
[null,"County Subdivision (2010 Census)","County Subdivision (2010 Census)","County Subdivision (2010 Census)","Governmental Units","DOC-Census","Jennifer Holland","Jennifer.L.Holland@census.gov","(301) 763-2751",{"$f":"VLOOKUP(B135,'LOC FINAL with new Themes'!A:M,7,0)","v":0},{"$f":"VLOOKUP(B135,'LOC FINAL with new Themes'!A:M,8,0)","v":0},{"$f":"VLOOKUP(B135,'LOC FINAL with new Themes'!A:M,9,0)","v":0},{"$f":"VLOOKUP(B135,'LOC FINAL with new Themes'!A:M,10,0)","v":0},{"$f":"VLOOKUP(B135,'LOC FINAL with new Themes'!A:M,11,0)","v":0},{"$f":"VLOOKUP(B135,'LOC FINAL with new Themes'!A:M,12,0)","v":0},{"$f":"VLOOKUP(B135,'LOC FINAL with new Themes'!A:M,13,0)","v":0}]
[null,"County Subdivision (Census 2000)","County Subdivision (Census 2000)","County Subdivision (Census 2000)","Governmental Units","DOC-Census","Jennifer Holland","Jennifer.L.Holland@census.gov","(301) 763-2751",{"$f":"VLOOKUP(B136,'LOC FINAL with new Themes'!A:M,7,0)","v":0},{"$f":"VLOOKUP(B136,'LOC FINAL with new Themes'!A:M,8,0)","v":0},{"$f":"VLOOKUP(B136,'LOC FINAL with new Themes'!A:M,9,0)","v":0},{"$f":"VLOOKUP(B136,'LOC FINAL with new Themes'!A:M,10,0)","v":0},{"$f":"VLOOKUP(B136,'LOC FINAL with new Themes'!A:M,11,0)","v":0},{"$f":"VLOOKUP(B136,'LOC FINAL with new Themes'!A:M,12,0)","v":0},{"$f":"VLOOKUP(B136,'LOC FINAL with new Themes'!A:M,13,0)","v":0}]
[null,"Metropolitan Division (2010 Census)","Metropolitan Division (2010 Census)","Metropolitan Division (2010 Census)","Governmental Units","DOC-Census","Jennifer Holland","Jennifer.L.Holland@census.gov","(301) 763-2751",{"$f":"VLOOKUP(B137,'LOC FINAL with new Themes'!A:M,7,0)","v":0},{"$f":"VLOOKUP(B137,'LOC FINAL with new Themes'!A:M,8,0)","v":0},{"$f":"VLOOKUP(B137,'LOC FINAL with new Themes'!A:M,9,0)","v":0},{"$f":"VLOOKUP(B137,'LOC FINAL with new Themes'!A:M,10,0)","v":0},{"$f":"VLOOKUP(B137,'LOC FINAL with new Themes'!A:M,11,0)","v":0},{"$f":"VLOOKUP(B137,'LOC FINAL with new Themes'!A:M,12,0)","v":0},{"$f":"VLOOKUP(B137,'LOC FINAL with new Themes'!A:M,13,0)","v":0}]
[null,"New England City and Town Area (2010 Census)","New England City and Town Area (2010 Census)","New England City and Town Area (2010 Census)","Governmental Units","DOC-Census","Jennifer Holland","Jennifer.L.Holland@census.gov","(301) 763-2751",{"$f":"VLOOKUP(B138,'LOC FINAL with new Themes'!A:M,7,0)","v":0},{"$f":"VLOOKUP(B138,'LOC FINAL with new Themes'!A:M,8,0)","v":0},{"$f":"VLOOKUP(B138,'LOC FINAL with new Themes'!A:M,9,0)","v":0},{"$f":"VLOOKUP(B138,'LOC FINAL with new Themes'!A:M,10,0)","v":0},{"$f":"VLOOKUP(B138,'LOC FINAL with new Themes'!A:M,11,0)","v":0},{"$f":"VLOOKUP(B138,'LOC FINAL with new Themes'!A:M,12,0)","v":0},{"$f":"VLOOKUP(B138,'LOC FINAL with new Themes'!A:M,13,0)","v":0}]
[null,"New England City and Town Area Division (2010 Census)","New England City and Town Area Division (2010 Census)","New England City and Town Area Division (2010 Census)","Governmental Units","DOC-Census","Jennifer Holland","Jennifer.L.Holland@census.gov","(301) 763-2751",{"$f":"VLOOKUP(B139,'LOC FINAL with new Themes'!A:M,7,0)","v":0},{"$f":"VLOOKUP(B139,'LOC FINAL with new Themes'!A:M,8,0)","v":0},{"$f":"VLOOKUP(B139,'LOC FINAL with new Themes'!A:M,9,0)","v":0},{"$f":"VLOOKUP(B139,'LOC FINAL with new Themes'!A:M,10,0)","v":0},{"$f":"VLOOKUP(B139,'LOC FINAL with new Themes'!A:M,11,0)","v":0},{"$f":"VLOOKUP(B139,'LOC FINAL with new Themes'!A:M,12,0)","v":0},{"$f":"VLOOKUP(B139,'LOC FINAL with new Themes'!A:M,13,0)","v":0}]
["Place and MCD Boundaries","Place (2010 Census)","Place (2010 Census)","Census Designated Place (2010 Census) ","Governmental Units","DOC-Census","Jennifer Holland","Jennifer.L.Holland@census.gov","(301) 763-2751",{"$f":"VLOOKUP(B140,'LOC FINAL with new Themes'!A:M,7,0)","v":0},{"$f":"VLOOKUP(B140,'LOC FINAL with new Themes'!A:M,8,0)","v":0},{"$f":"VLOOKUP(B140,'LOC FINAL with new Themes'!A:M,9,0)","v":0},{"$f":"VLOOKUP(B140,'LOC FINAL with new Themes'!A:M,10,0)","v":0},{"$f":"VLOOKUP(B140,'LOC FINAL with new Themes'!A:M,11,0)","v":0},{"$f":"VLOOKUP(B140,'LOC FINAL with new Themes'!A:M,12,0)","v":0},{"$f":"VLOOKUP(B140,'LOC FINAL with new Themes'!A:M,13,0)","v":0}]
[null,"Place (Census 2000)","Place (Census 2000)","Census Designated Place (Census 2000)","Governmental Units","DOC-Census","Jennifer Holland","Jennifer.L.Holland@census.gov","(301) 763-2751",{"$f":"VLOOKUP(B141,'LOC FINAL with new Themes'!A:M,7,0)","v":0},{"$f":"VLOOKUP(B141,'LOC FINAL with new Themes'!A:M,8,0)","v":0},{"$f":"VLOOKUP(B141,'LOC FINAL with new Themes'!A:M,9,0)","v":0},{"$f":"VLOOKUP(B141,'LOC FINAL with new Themes'!A:M,10,0)","v":0},{"$f":"VLOOKUP(B141,'LOC FINAL with new Themes'!A:M,11,0)","v":0},{"$f":"VLOOKUP(B141,'LOC FINAL with new Themes'!A:M,12,0)","v":0},{"$f":"VLOOKUP(B141,'LOC FINAL with new Themes'!A:M,13,0)","v":0}]
["State(+ Territories) Boundaries","State and Equivalent  (2010 Census)","State and Equivalent  (2010 Census)",{"$f":"IF(C142=0,B142,C142)","v":"State and Equivalent  (2010 Census)"},"Governmental Units","DOC-Census","Jennifer Holland","Jennifer.L.Holland@census.gov","(301) 763-2751",{"$f":"VLOOKUP(B142,'LOC FINAL with new Themes'!A:M,7,0)","v":0},{"$f":"VLOOKUP(B142,'LOC FINAL with new Themes'!A:M,8,0)","v":0},{"$f":"VLOOKUP(B142,'LOC FINAL with new Themes'!A:M,9,0)","v":0},{"$f":"VLOOKUP(B142,'LOC FINAL with new Themes'!A:M,10,0)","v":0},{"$f":"VLOOKUP(B142,'LOC FINAL with new Themes'!A:M,11,0)","v":0},{"$f":"VLOOKUP(B142,'LOC FINAL with new Themes'!A:M,12,0)","v":0},{"$f":"VLOOKUP(B142,'LOC FINAL with new Themes'!A:M,13,0)","v":0}]
[null,"State and Equivalent  (Census 2000)","State and Equivalent  (Census 2000)","State and Equivalent  (Census 2000)","Governmental Units","DOC-Census","Jennifer Holland","Jennifer.L.Holland@census.gov","(301) 763-2751",{"$f":"VLOOKUP(B143,'LOC FINAL with new Themes'!A:M,7,0)","v":0},{"$f":"VLOOKUP(B143,'LOC FINAL with new Themes'!A:M,8,0)","v":0},{"$f":"VLOOKUP(B143,'LOC FINAL with new Themes'!A:M,9,0)","v":0},{"$f":"VLOOKUP(B143,'LOC FINAL with new Themes'!A:M,10,0)","v":0},{"$f":"VLOOKUP(B143,'LOC FINAL with new Themes'!A:M,11,0)","v":0},{"$f":"VLOOKUP(B143,'LOC FINAL with new Themes'!A:M,12,0)","v":0},{"$f":"VLOOKUP(B143,'LOC FINAL with new Themes'!A:M,13,0)","v":0}]
[null,"State Legislative District (Lower Chamber) (2010 Census)","State Legislative District (Lower Chamber) (2010 Census)","State Legislative District (Lower Chamber) (2010 Census)","Governmental Units","DOC-Census","Jennifer Holland","Jennifer.L.Holland@census.gov","(301) 763-2751",{"$f":"VLOOKUP(B144,'LOC FINAL with new Themes'!A:M,7,0)","v":0},{"$f":"VLOOKUP(B144,'LOC FINAL with new Themes'!A:M,8,0)","v":0},{"$f":"VLOOKUP(B144,'LOC FINAL with new Themes'!A:M,9,0)","v":0},{"$f":"VLOOKUP(B144,'LOC FINAL with new Themes'!A:M,10,0)","v":0},{"$f":"VLOOKUP(B144,'LOC FINAL with new Themes'!A:M,11,0)","v":0},{"$f":"VLOOKUP(B144,'LOC FINAL with new Themes'!A:M,12,0)","v":0},{"$f":"VLOOKUP(B144,'LOC FINAL with new Themes'!A:M,13,0)","v":0}]
[null,"State Legislative District (Lower Chamber) (Census 2000)","State Legislative District (Lower Chamber) (Census 2000)","State Legislative District (Lower Chamber) (Census 2000)","Governmental Units","DOC-Census","Jennifer Holland","Jennifer.L.Holland@census.gov","(301) 763-2751",{"$f":"VLOOKUP(B145,'LOC FINAL with new Themes'!A:M,7,0)","v":0},{"$f":"VLOOKUP(B145,'LOC FINAL with new Themes'!A:M,8,0)","v":0},{"$f":"VLOOKUP(B145,'LOC FINAL with new Themes'!A:M,9,0)","v":0},{"$f":"VLOOKUP(B145,'LOC FINAL with new Themes'!A:M,10,0)","v":0},{"$f":"VLOOKUP(B145,'LOC FINAL with new Themes'!A:M,11,0)","v":0},{"$f":"VLOOKUP(B145,'LOC FINAL with new Themes'!A:M,12,0)","v":0},{"$f":"VLOOKUP(B145,'LOC FINAL with new Themes'!A:M,13,0)","v":0}]
[null,"State Legislative District (Upper Chamber) (2010 Census)","State Legislative District (Upper Chamber) (2010 Census)","State Legislative District (Upper Chamber) (2010 Census)","Governmental Units","DOC-Census","Jennifer Holland","Jennifer.L.Holland@census.gov","(301) 763-2751",{"$f":"VLOOKUP(B146,'LOC FINAL with new Themes'!A:M,7,0)","v":0},{"$f":"VLOOKUP(B146,'LOC FINAL with new Themes'!A:M,8,0)","v":0},{"$f":"VLOOKUP(B146,'LOC FINAL with new Themes'!A:M,9,0)","v":0},{"$f":"VLOOKUP(B146,'LOC FINAL with new Themes'!A:M,10,0)","v":0},{"$f":"VLOOKUP(B146,'LOC FINAL with new Themes'!A:M,11,0)","v":0},{"$f":"VLOOKUP(B146,'LOC FINAL with new Themes'!A:M,12,0)","v":0},{"$f":"VLOOKUP(B146,'LOC FINAL with new Themes'!A:M,13,0)","v":0}]
[null,"State Legislative District (Upper Chamber) (Census 2000)","State Legislative District (Upper Chamber) (Census 2000)","State Legislative District (Upper Chamber) (Census 2000)","Governmental Units","DOC-Census","Jennifer Holland","Jennifer.L.Holland@census.gov","(301) 763-2751",{"$f":"VLOOKUP(B147,'LOC FINAL with new Themes'!A:M,7,0)","v":0},{"$f":"VLOOKUP(B147,'LOC FINAL with new Themes'!A:M,8,0)","v":0},{"$f":"VLOOKUP(B147,'LOC FINAL with new Themes'!A:M,9,0)","v":0},{"$f":"VLOOKUP(B147,'LOC FINAL with new Themes'!A:M,10,0)","v":0},{"$f":"VLOOKUP(B147,'LOC FINAL with new Themes'!A:M,11,0)","v":0},{"$f":"VLOOKUP(B147,'LOC FINAL with new Themes'!A:M,12,0)","v":0},{"$f":"VLOOKUP(B147,'LOC FINAL with new Themes'!A:M,13,0)","v":0}]
[null,"Subbarrio (2010 Census)","Subbarrio (2010 Census)","Subbarrio (2010 Census)","Governmental Units","DOC-Census","Jennifer Holland","Jennifer.L.Holland@census.gov","(301) 763-2751",{"$f":"VLOOKUP(B148,'LOC FINAL with new Themes'!A:M,7,0)","v":0},{"$f":"VLOOKUP(B148,'LOC FINAL with new Themes'!A:M,8,0)","v":0},{"$f":"VLOOKUP(B148,'LOC FINAL with new Themes'!A:M,9,0)","v":0},{"$f":"VLOOKUP(B148,'LOC FINAL with new Themes'!A:M,10,0)","v":0},{"$f":"VLOOKUP(B148,'LOC FINAL with new Themes'!A:M,11,0)","v":0},{"$f":"VLOOKUP(B148,'LOC FINAL with new Themes'!A:M,12,0)","v":0},{"$f":"VLOOKUP(B148,'LOC FINAL with new Themes'!A:M,13,0)","v":0}]
[null,"Subbarrio (Census 2000)","Subbarrio (Census 2000)","Subbarrio (Census 2000)","Governmental Units","DOC-Census","Jennifer Holland","Jennifer.L.Holland@census.gov","(301) 763-2751",{"$f":"VLOOKUP(B149,'LOC FINAL with new Themes'!A:M,7,0)","v":0},{"$f":"VLOOKUP(B149,'LOC FINAL with new Themes'!A:M,8,0)","v":0},{"$f":"VLOOKUP(B149,'LOC FINAL with new Themes'!A:M,9,0)","v":0},{"$f":"VLOOKUP(B149,'LOC FINAL with new Themes'!A:M,10,0)","v":0},{"$f":"VLOOKUP(B149,'LOC FINAL with new Themes'!A:M,11,0)","v":0},{"$f":"VLOOKUP(B149,'LOC FINAL with new Themes'!A:M,12,0)","v":0},{"$f":"VLOOKUP(B149,'LOC FINAL with new Themes'!A:M,13,0)","v":0}]
[null,"Urban Area (Corrected Census 2000)","Urban Area (Corrected Census 2000)","Urban Area (Corrected Census 2000)","Governmental Units","DOC-Census","Jennifer Holland","Jennifer.L.Holland@census.gov","(301) 763-2751",{"$f":"VLOOKUP(B150,'LOC FINAL with new Themes'!A:M,7,0)","v":0},{"$f":"VLOOKUP(B150,'LOC FINAL with new Themes'!A:M,8,0)","v":0},{"$f":"VLOOKUP(B150,'LOC FINAL with new Themes'!A:M,9,0)","v":0},{"$f":"VLOOKUP(B150,'LOC FINAL with new Themes'!A:M,10,0)","v":0},{"$f":"VLOOKUP(B150,'LOC FINAL with new Themes'!A:M,11,0)","v":0},{"$f":"VLOOKUP(B150,'LOC FINAL with new Themes'!A:M,12,0)","v":0},{"$f":"VLOOKUP(B150,'LOC FINAL with new Themes'!A:M,13,0)","v":0}]
[null,null,null,"Tribal Block Group (2010 Census)","Governmental Units","DOC-Census","Jennifer Holland","Jennifer.L.Holland@census.gov","(301) 763-2751"]
[null,null,null,"Tribal Census Tract (2010 Census)","Governmental Units","DOC-Census","Jennifer Holland","Jennifer.L.Holland@census.gov","(301) 763-2751"]
[null,null,null,"Urban Areas (2010 Census)","Governmental Units","DOC-Census","Jennifer Holland","Jennifer.L.Holland@census.gov","(301) 763-2751"]
[null,null,null,"Redistricting Data (2010 Census)","Governmental Units","DOC-Census","Jennifer Holland","Jennifer.L.Holland@census.gov","(301) 763-2751"]
[null,null,null,"Subminor Civil Division (2010 Census)","Governmental Units","DOC-Census","Jennifer Holland","Jennifer.L.Holland@census.gov","(301) 763-2751"]
[null,null,null,"ZIP Code Tabulation Area (2010 Census)","Governmental Units","DOC-Census","Jennifer Holland","Jennifer.L.Holland@census.gov","(301) 763-2751"]
[null,null,null,"Governmental Units",{"$f":"SUBTOTAL(3,E93:E156)","v":64}]
[null,"134 Urban Areas imagery program data",null,{"$f":"IF(C158=0,B158,C158)","v":"134 Urban Areas imagery program data"},"Imagery ","DOI-USGS","George Lee","gylee@usgs.gov",null,{"$f":"VLOOKUP(B158,'LOC FINAL with new Themes'!A:M,7,0)","v":0},{"$f":"VLOOKUP(B158,'LOC FINAL with new Themes'!A:M,8,0)","v":0},{"$f":"VLOOKUP(B158,'LOC FINAL with new Themes'!A:M,9,0)","v":0},{"$f":"VLOOKUP(B158,'LOC FINAL with new Themes'!A:M,10,0)","v":0},{"$f":"VLOOKUP(B158,'LOC FINAL with new Themes'!A:M,11,0)","v":0},{"$f":"VLOOKUP(B158,'LOC FINAL with new Themes'!A:M,12,0)","v":0},{"$f":"VLOOKUP(B158,'LOC FINAL with new Themes'!A:M,13,0)","v":0}]
["National Map Orthoimagery Database (TNM Seamless Server) ","National Map Orthoimagery Database (TNM Seamless Server) ",null,"National Map Orthoimagery Database (TNM Seamless Server) ","Imagery ","DOI-USGS","George Lee","gylee@usgs.gov",null,{"$f":"VLOOKUP(B159,'LOC FINAL with new Themes'!A:M,7,0)","v":0},{"$f":"VLOOKUP(B159,'LOC FINAL with new Themes'!A:M,8,0)","v":0},{"$f":"VLOOKUP(B159,'LOC FINAL with new Themes'!A:M,9,0)","v":0},{"$f":"VLOOKUP(B159,'LOC FINAL with new Themes'!A:M,10,0)","v":0},{"$f":"VLOOKUP(B159,'LOC FINAL with new Themes'!A:M,11,0)","v":0},{"$f":"VLOOKUP(B159,'LOC FINAL with new Themes'!A:M,12,0)","v":0},{"$f":"VLOOKUP(B159,'LOC FINAL with new Themes'!A:M,13,0)","v":0}]
["ADS40 Hurricane Response 7.5' Quadrangle Mosaics","ADS40 Hurricane Response 7.5' Quadrangle Mosaics",null,"ADS40 Hurricane Response 7.5' Quadrangle Mosaics","Imagery ","DOI-USGS","Jim Mauck","jmauck@usgs.gov",null,{"$f":"VLOOKUP(B160,'LOC FINAL with new Themes'!A:M,7,0)","v":0},{"$f":"VLOOKUP(B160,'LOC FINAL with new Themes'!A:M,8,0)","v":0},{"$f":"VLOOKUP(B160,'LOC FINAL with new Themes'!A:M,9,0)","v":0},{"$f":"VLOOKUP(B160,'LOC FINAL with new Themes'!A:M,10,0)","v":0},{"$f":"VLOOKUP(B160,'LOC FINAL with new Themes'!A:M,11,0)","v":0},{"$f":"VLOOKUP(B160,'LOC FINAL with new Themes'!A:M,12,0)","v":0},{"$f":"VLOOKUP(B160,'LOC FINAL with new Themes'!A:M,13,0)","v":0}]
["Landsat geometric/terrain corrected level 1T","Landsat geometric/terrain corrected level 1T","Landsat Terrain Corrected Scenes","Landsat Terrain Corrected Scenes","Imagery ","DOI-USGS","Kristi Kline","kkline@usgs.gov",null,{"$f":"VLOOKUP(B161,'LOC FINAL with new Themes'!A:M,7,0)","v":"Landsat updates daily; a series of data sets; this is the POC and data manager; this is the name and maintain three complete with two physically separate on-site and one off-site"},{"$f":"VLOOKUP(B161,'LOC FINAL with new Themes'!A:M,8,0)","v":0},{"$f":"VLOOKUP(B161,'LOC FINAL with new Themes'!A:M,9,0)","v":0},{"$f":"VLOOKUP(B161,'LOC FINAL with new Themes'!A:M,10,0)","v":0},{"$f":"VLOOKUP(B161,'LOC FINAL with new Themes'!A:M,11,0)","v":0},{"$f":"VLOOKUP(B161,'LOC FINAL with new Themes'!A:M,12,0)","v":0},{"$f":"VLOOKUP(B161,'LOC FINAL with new Themes'!A:M,13,0)","v":"S"}]
["Emergency Response Imagery","Emergency Response Imagery","Emergency Response Imagery","Emergency Response Imagery","Imagery ","DOC-NOAA","Mike Aslaksen","mike.Aslaksen@noaa.gov",null,{"$f":"VLOOKUP(B162,'LOC FINAL with new Themes'!A:M,7,0)","v":"20-Multiple      "},{"$f":"VLOOKUP(B162,'LOC FINAL with new Themes'!A:M,8,0)","v":"No"},{"$f":"VLOOKUP(B162,'LOC FINAL with new Themes'!A:M,9,0)","v":"Yes - email reply from Jon Sellars Jon.Sellars@noaa.gov"},{"$f":"VLOOKUP(B162,'LOC FINAL with new Themes'!A:M,10,0)","v":"- Same for the forest frag."},{"$f":"VLOOKUP(B162,'LOC FINAL with new Themes'!A:M,11,0)","v":"Our data can be accessed through the following links: http://storms.ngs.noaagov/eri_page/index.html Gulf Oil Spill:\nhttp://hdds.usgs.gov/hdds2/pub/data/disaster/201004_Oilspill_GulfOfMexico/data/AERIAL_NOAA\nhttp://hdds.usgs.gov/hdds2/pub/data/disaster/201004_Oilspill_GulfOfMexico/data/AERIAL_NOAA_MOSAIC  Haiti Earthquake:\nhttp://hdds.usgs.gov/hdds2/pub/data/disaster/201001_Earthquake_Haiti/data/AERIAL_NOAA\nhttp://hdds.usgs.gov/hdds2/pub/data/disaster/201001_Earthquake_Haiti/data/AERIAL_NOAA_ORTHO\nMexico Earthquake:\nhttp://hdds.usgs.gov/hdds2/pub/data/disaster/201004_Earthquake_Mexico/data/AERIAL_NOAA_MOSAIC \n\n"},{"$f":"VLOOKUP(B162,'LOC FINAL with new Themes'!A:M,12,0)","v":"Described by storm name, event or location."},{"$f":"VLOOKUP(B162,'LOC FINAL with new Themes'!A:M,13,0)","v":"M "}]
["National Agriculture Imagery Program Data","National Agriculture Imagery Program Data","National Agriculture Imagery Program (NAIP) Archive","National Agriculture Imagery Program (NAIP) Archive","Imagery ","DOI-USGS","Shirley Hall","shirley.hall@wdc.usda.gov",null,{"$f":"VLOOKUP(B163,'LOC FINAL with new Themes'!A:M,7,0)","v":"Shirley identified Dan Good as new contact 'daniel.good@wdc.usda.gov' - need to follow up with either or both"},{"$f":"VLOOKUP(B163,'LOC FINAL with new Themes'!A:M,8,0)","v":0},{"$f":"VLOOKUP(B163,'LOC FINAL with new Themes'!A:M,9,0)","v":0},{"$f":"VLOOKUP(B163,'LOC FINAL with new Themes'!A:M,10,0)","v":0},{"$f":"VLOOKUP(B163,'LOC FINAL with new Themes'!A:M,11,0)","v":0},{"$f":"VLOOKUP(B163,'LOC FINAL with new Themes'!A:M,12,0)","v":0},{"$f":"VLOOKUP(B163,'LOC FINAL with new Themes'!A:M,13,0)","v":0}]
["National Aerial Photography Program (NAPP) Data Archive","National Aerial Photography Program (NAPP) Data Archive",null,"National Aerial Photography Program (NAPP) Data Archive","Imagery ","DOI-USGS","Wayne Miller","wamiller@usgs.gov",null,{"$f":"VLOOKUP(B164,'LOC FINAL with new Themes'!A:M,7,0)","v":"NAPP is static; one data set; this is the POC and data manager; this is the name and maintain three complete with two physically separate on-site and one off-site "},{"$f":"VLOOKUP(B164,'LOC FINAL with new Themes'!A:M,8,0)","v":0},{"$f":"VLOOKUP(B164,'LOC FINAL with new Themes'!A:M,9,0)","v":0},{"$f":"VLOOKUP(B164,'LOC FINAL with new Themes'!A:M,10,0)","v":0},{"$f":"VLOOKUP(B164,'LOC FINAL with new Themes'!A:M,11,0)","v":0},{"$f":"VLOOKUP(B164,'LOC FINAL with new Themes'!A:M,12,0)","v":0},{"$f":"VLOOKUP(B164,'LOC FINAL with new Themes'!A:M,13,0)","v":"S"}]
["133 Urban Areas imagery program data","133 Urban Areas imagery program data",null,"133 Urban Areas imagery program data","Imagery ","DOD-NGA","William Nellist","William.E.Nellist@nga.mil",null,{"$f":"VLOOKUP(B165,'LOC FINAL with new Themes'!A:M,7,0)","v":0},{"$f":"VLOOKUP(B165,'LOC FINAL with new Themes'!A:M,8,0)","v":0},{"$f":"VLOOKUP(B165,'LOC FINAL with new Themes'!A:M,9,0)","v":0},{"$f":"VLOOKUP(B165,'LOC FINAL with new Themes'!A:M,10,0)","v":0},{"$f":"VLOOKUP(B165,'LOC FINAL with new Themes'!A:M,11,0)","v":0},{"$f":"VLOOKUP(B165,'LOC FINAL with new Themes'!A:M,12,0)","v":0},{"$f":"VLOOKUP(B165,'LOC FINAL with new Themes'!A:M,13,0)","v":0}]
["Digital Orthoimage Quarter Quadrangle (DOQQ) Archive","Digital Orthoimage Quarter Quadrangle (DOQQ) Archive",null,"Digital Orthoimage Quarter Quadrangle (DOQQ) Archive","Imagery ","DOI-USGS",null,null,null,{"$f":"VLOOKUP(B166,'LOC FINAL with new Themes'!A:M,7,0)","v":"DOQQ is static; one data set; this is the POC and data manager. this is the name and maintain three complete with two physically separate on-site and one off-site"},{"$f":"VLOOKUP(B166,'LOC FINAL with new Themes'!A:M,8,0)","v":0},{"$f":"VLOOKUP(B166,'LOC FINAL with new Themes'!A:M,9,0)","v":0},{"$f":"VLOOKUP(B166,'LOC FINAL with new Themes'!A:M,10,0)","v":0},{"$f":"VLOOKUP(B166,'LOC FINAL with new Themes'!A:M,11,0)","v":0},{"$f":"VLOOKUP(B166,'LOC FINAL with new Themes'!A:M,12,0)","v":0},{"$f":"VLOOKUP(B166,'LOC FINAL with new Themes'!A:M,13,0)","v":"S"}]
[null,null,"Fire, Detection: AVHRR FIMMA , GOES WF-ABBA","Fire, Detection: AVHRR FIMMA , GOES WF-ABBA","Imagery ","USDA"]
[null,null,"National  Orthoimagery Dataset - National Map","National  Orthoimagery Dataset - National Map","Imagery ","DOI-USGS"]
[null,null,"Satellite Imagery Archive","Satellite Imagery Archive","Imagery ","USDA-FSA"]
[null,null,null,"Imagery  Count",{"$f":"SUBTOTAL(3,E158:E169)","v":12}]
["National Land Cover Dataset (NLCD)","National Land Cover Dataset (NLCD)","National Land Cover Dataset - GIRAS - 1975",{"$f":"IF(C171=0,B171,C171)","v":"National Land Cover Dataset - GIRAS - 1975"},"Land Use-Land Cover ","DOI-USGS","Colin Homer","homer@usgs.gov",null,{"$f":"VLOOKUP(B171,'LOC FINAL with new Themes'!A:M,7,0)","v":"The table below summarizes NLCD products available for download from the MRLC website http://www.mrlc.gov/ "},{"$f":"VLOOKUP(B171,'LOC FINAL with new Themes'!A:M,8,0)","v":"No.  The \"manager\" of the data is Jon Dewitz. \nContact Information -   \nJon Dewitz\ndewitz@usgs.gov\n605-594-2715\nNLCD Quality Supervisor\nUSGS Earth Resources Observation and Science Center (EROS)\nMundt Federal Building\n47914 252nd St.\nSioux Falls, SD 57198\nfax 605-594-6529\n"},{"$f":"VLOOKUP(B171,'LOC FINAL with new Themes'!A:M,9,0)","v":"Joyce Fry is the POC. \nContact information - \nJoyce Fry, Geographer\nUnited States Geological Survey (USGS)\nEarth Resources Observation and  Science (EROS) Center\nMundt Federal Building\n47914 252nd Street\nSioux Falls, South Dakota 57198\n(P)  605.594.2739\n(F)  605.594.6529\n(e)  jfry@usgs.gov \n"},{"$f":"VLOOKUP(B171,'LOC FINAL with new Themes'!A:M,10,0)","v":"Every 5 years"},{"$f":"VLOOKUP(B171,'LOC FINAL with new Themes'!A:M,11,0)","v":"Yes, there is an archive/backup of the dataset through the EROS Long Term Archive (LTA) group.  I will need to get back to if you need additional information regarding the archive process. "},{"$f":"VLOOKUP(B171,'LOC FINAL with new Themes'!A:M,12,0)","v":"National Land Cover Database or NLCD along with the era number, either 1992 or 2001, or 2006. "},{"$f":"VLOOKUP(B171,'LOC FINAL with new Themes'!A:M,13,0)","v":"S"}]
["National Land Cover Dataset (NLCD)","National Land Cover Dataset (NLCD)","National Land Cover Dataset (NLCD)","National Land Cover Dataset (NLCD)","Land Use-Land Cover ","DOI-USGS","Colin Homer","homer@usgs.gov",null,{"$f":"VLOOKUP(B172,'LOC FINAL with new Themes'!A:M,7,0)","v":"The table below summarizes NLCD products available for download from the MRLC website http://www.mrlc.gov/ "},{"$f":"VLOOKUP(B172,'LOC FINAL with new Themes'!A:M,8,0)","v":"No.  The \"manager\" of the data is Jon Dewitz. \nContact Information -   \nJon Dewitz\ndewitz@usgs.gov\n605-594-2715\nNLCD Quality Supervisor\nUSGS Earth Resources Observation and Science Center (EROS)\nMundt Federal Building\n47914 252nd St.\nSioux Falls, SD 57198\nfax 605-594-6529\n"},{"$f":"VLOOKUP(B172,'LOC FINAL with new Themes'!A:M,9,0)","v":"Joyce Fry is the POC. \nContact information - \nJoyce Fry, Geographer\nUnited States Geological Survey (USGS)\nEarth Resources Observation and  Science (EROS) Center\nMundt Federal Building\n47914 252nd Street\nSioux Falls, South Dakota 57198\n(P)  605.594.2739\n(F)  605.594.6529\n(e)  jfry@usgs.gov \n"},{"$f":"VLOOKUP(B172,'LOC FINAL with new Themes'!A:M,10,0)","v":"Every 5 years"},{"$f":"VLOOKUP(B172,'LOC FINAL with new Themes'!A:M,11,0)","v":"Yes, there is an archive/backup of the dataset through the EROS Long Term Archive (LTA) group.  I will need to get back to if you need additional information regarding the archive process. "},{"$f":"VLOOKUP(B172,'LOC FINAL with new Themes'!A:M,12,0)","v":"National Land Cover Database or NLCD along with the era number, either 1992 or 2001, or 2006. "},{"$f":"VLOOKUP(B172,'LOC FINAL with new Themes'!A:M,13,0)","v":"S"}]
["National Parks Data","National Parks Data","National Parks Data","National Parks Data","Land Use-Land Cover ","DOI-NPS","Roger Johnson ","Roger_M_Johnson@nps.gov",null,{"$f":"VLOOKUP(B173,'LOC FINAL with new Themes'!A:M,7,0)","v":"undeliverable email- neeed to identify new contact"},{"$f":"VLOOKUP(B173,'LOC FINAL with new Themes'!A:M,8,0)","v":0},{"$f":"VLOOKUP(B173,'LOC FINAL with new Themes'!A:M,9,0)","v":0},{"$f":"VLOOKUP(B173,'LOC FINAL with new Themes'!A:M,10,0)","v":0},{"$f":"VLOOKUP(B173,'LOC FINAL with new Themes'!A:M,11,0)","v":0},{"$f":"VLOOKUP(B173,'LOC FINAL with new Themes'!A:M,12,0)","v":0},{"$f":"VLOOKUP(B173,'LOC FINAL with new Themes'!A:M,13,0)","v":0}]
[null,null,"Crops: Cropland Data Layer","Crops: Cropland Data Layer","Land Use-Land Cover ","USDA-NASS"]
[null,null,"Earth Cover, Land: MODIS-based Land Products","Earth Cover, Land: MODIS-based Land Products","Land Use-Land Cover ","USDA -FS (Along with USGS)"]
[null,null,"Earth Cover, Vegetation, Forest: Forest Biomass, Types, Type Groups","Earth Cover, Vegetation, Forest: Forest Biomass, Types, Type Groups","Land Use-Land Cover ","USDA-FS"]
[null,null,"Earth Cover, Vegetation: Percent Forest Canopy","Earth Cover, Vegetation: Percent Forest Canopy","Land Use-Land Cover ","USDA-FS"]
[null,null,"Fire Severity: Monitoring Trends in Burn Severity (MTBS)","Fire Severity: Monitoring Trends in Burn Severity (MTBS)","Land Use-Land Cover ","USDA -FS (Along with USGS)"]
[null,null,"Fire, Detection: Daily Active Fire Mapping","Fire, Detection: Daily Active Fire Mapping","Land Use-Land Cover ","USDA"]
[null,null,"Land Cover Strata Dataset","Land Cover Strata Dataset","Land Use-Land Cover ","USDA-NASS"]
["LANDFIRE Dataset","LANDFIRE Dataset","Land Fire Dataset","Land Fire Dataset","Land Use-Land Cover ","USDA-FS",null,null,null,{"$f":"VLOOKUP(B181,'LOC FINAL with new Themes'!A:M,7,0)","v":0},{"$f":"VLOOKUP(B181,'LOC FINAL with new Themes'!A:M,8,0)","v":0},{"$f":"VLOOKUP(B181,'LOC FINAL with new Themes'!A:M,9,0)","v":0},{"$f":"VLOOKUP(B181,'LOC FINAL with new Themes'!A:M,10,0)","v":0},{"$f":"VLOOKUP(B181,'LOC FINAL with new Themes'!A:M,11,0)","v":0},{"$f":"VLOOKUP(B181,'LOC FINAL with new Themes'!A:M,12,0)","v":0},{"$f":"VLOOKUP(B181,'LOC FINAL with new Themes'!A:M,13,0)","v":0}]
[null,null,"National Land Cover Dataset - National Map","National Land Cover Dataset - National Map","Land Use-Land Cover ","DOI-USGS"]
[null,null,"National Land Cover Dataset - National Map - 1991","National Land Cover Dataset - National Map - 1991","Land Use-Land Cover ","DOI-USGS"]
[null,null,"National Land Cover Dataset - National Map - 2001","National Land Cover Dataset - National Map - 2001","Land Use-Land Cover ","DOI-USGS"]
[null,null,"National Land Cover Dataset - National Map 2006","National Land Cover Dataset - National Map 2006","Land Use-Land Cover ","DOI-USGS"]
[null,null,"National Land Cover Percent Canopy - National Map - 1991","National Land Cover Percent Canopy - National Map - 1991","Land Use-Land Cover ","DOI-USGS"]
[null,null,"National Land Cover Percent Imperviousness - National Map - 2001","National Land Cover Percent Imperviousness - National Map - 2001","Land Use-Land Cover ","DOI-USGS"]
[null,null,"National Land Cover Percent Imperviousness - National Map - 2006","National Land Cover Percent Imperviousness - National Map - 2006","Land Use-Land Cover ","DOI-USGS"]
[null,null,null,"Land Use-Land Cover  Count",{"$f":"SUBTOTAL(3,E171:E188)","v":18}]
["Assisted Housing (census geography or point-based) see http://www.huduser.org/picture2000/","Assisted Housing (census geography or point-based)",null,{"$f":"IF(C190=0,B190,C190)","v":"Assisted Housing (census geography or point-based)"},"Real Property","HUD","Jon Sperling","jon.sperling@hud.gov",null,{"$f":"VLOOKUP(B190,'LOC FINAL with new Themes'!A:M,7,0)","v":0},{"$f":"VLOOKUP(B190,'LOC FINAL with new Themes'!A:M,8,0)","v":0},{"$f":"VLOOKUP(B190,'LOC FINAL with new Themes'!A:M,9,0)","v":0},{"$f":"VLOOKUP(B190,'LOC FINAL with new Themes'!A:M,10,0)","v":0},{"$f":"VLOOKUP(B190,'LOC FINAL with new Themes'!A:M,11,0)","v":0},{"$f":"VLOOKUP(B190,'LOC FINAL with new Themes'!A:M,12,0)","v":0},{"$f":"VLOOKUP(B190,'LOC FINAL with new Themes'!A:M,13,0)","v":0}]
["Enterprise Zones, Empowerment Communities, Revitalization Areas, Qualified Census Tracts, etc.  (census geography based)","Enterprise Zones, Empowerment Communities, Revitalization Areas, Qualified Census Tracts, etc.  (census geography based)",null,"Enterprise Zones, Empowerment Communities, Revitalization Areas, Qualified Census Tracts, etc.  (census geography based)","Real Property","HUD","Jon Sperling","jon.sperling@hud.gov",null,{"$f":"VLOOKUP(B191,'LOC FINAL with new Themes'!A:M,7,0)","v":0},{"$f":"VLOOKUP(B191,'LOC FINAL with new Themes'!A:M,8,0)","v":0},{"$f":"VLOOKUP(B191,'LOC FINAL with new Themes'!A:M,9,0)","v":0},{"$f":"VLOOKUP(B191,'LOC FINAL with new Themes'!A:M,10,0)","v":0},{"$f":"VLOOKUP(B191,'LOC FINAL with new Themes'!A:M,11,0)","v":0},{"$f":"VLOOKUP(B191,'LOC FINAL with new Themes'!A:M,12,0)","v":0},{"$f":"VLOOKUP(B191,'LOC FINAL with new Themes'!A:M,13,0)","v":0}]
["National Map - Structures Dataset","National Map - Structures Dataset","National Structures Dataset - National Map","National Structures Dataset - National Map","Real Property ","DOI-USGS","Paul Wiese","pmwiese@usgs.gov",null,{"$f":"VLOOKUP(B192,'LOC FINAL with new Themes'!A:M,7,0)","v":"National Map updates monthly; a series of data sets; this is the POC and data manager; this is the name and maintain three complete with two physically separate on-site and one off-site"},{"$f":"VLOOKUP(B192,'LOC FINAL with new Themes'!A:M,8,0)","v":0},{"$f":"VLOOKUP(B192,'LOC FINAL with new Themes'!A:M,9,0)","v":0},{"$f":"VLOOKUP(B192,'LOC FINAL with new Themes'!A:M,10,0)","v":0},{"$f":"VLOOKUP(B192,'LOC FINAL with new Themes'!A:M,11,0)","v":0},{"$f":"VLOOKUP(B192,'LOC FINAL with new Themes'!A:M,12,0)","v":0},{"$f":"VLOOKUP(B192,'LOC FINAL with new Themes'!A:M,13,0)","v":"S"}]
["Federal building location point ","Federal building location point ","Federal building location point ","Federal building location point ","Real Property ","GSA","Sandra Downie","sandra.downie@gsa.gov",null,{"$f":"VLOOKUP(B193,'LOC FINAL with new Themes'!A:M,7,0)","v":0},{"$f":"VLOOKUP(B193,'LOC FINAL with new Themes'!A:M,8,0)","v":0},{"$f":"VLOOKUP(B193,'LOC FINAL with new Themes'!A:M,9,0)","v":0},{"$f":"VLOOKUP(B193,'LOC FINAL with new Themes'!A:M,10,0)","v":0},{"$f":"VLOOKUP(B193,'LOC FINAL with new Themes'!A:M,11,0)","v":0},{"$f":"VLOOKUP(B193,'LOC FINAL with new Themes'!A:M,12,0)","v":0},{"$f":"VLOOKUP(B193,'LOC FINAL with new Themes'!A:M,13,0)","v":0}]
["Federal building location polygon","Federal building location polygon","Federal building location polygon","Federal building location polygon","Real Property ","GSA","Sandra Downie","sandra.downie@gsa.gov",null,{"$f":"VLOOKUP(B194,'LOC FINAL with new Themes'!A:M,7,0)","v":0},{"$f":"VLOOKUP(B194,'LOC FINAL with new Themes'!A:M,8,0)","v":0},{"$f":"VLOOKUP(B194,'LOC FINAL with new Themes'!A:M,9,0)","v":0},{"$f":"VLOOKUP(B194,'LOC FINAL with new Themes'!A:M,10,0)","v":0},{"$f":"VLOOKUP(B194,'LOC FINAL with new Themes'!A:M,11,0)","v":0},{"$f":"VLOOKUP(B194,'LOC FINAL with new Themes'!A:M,12,0)","v":0},{"$f":"VLOOKUP(B194,'LOC FINAL with new Themes'!A:M,13,0)","v":0}]
["Federal land area facility location point","Federal land area facility location point","Federal land area facility location point","Federal land area facility location point","Real Property ","GSA","Sandra Downie","sandra.downie@gsa.gov",null,{"$f":"VLOOKUP(B195,'LOC FINAL with new Themes'!A:M,7,0)","v":0},{"$f":"VLOOKUP(B195,'LOC FINAL with new Themes'!A:M,8,0)","v":0},{"$f":"VLOOKUP(B195,'LOC FINAL with new Themes'!A:M,9,0)","v":0},{"$f":"VLOOKUP(B195,'LOC FINAL with new Themes'!A:M,10,0)","v":0},{"$f":"VLOOKUP(B195,'LOC FINAL with new Themes'!A:M,11,0)","v":0},{"$f":"VLOOKUP(B195,'LOC FINAL with new Themes'!A:M,12,0)","v":0},{"$f":"VLOOKUP(B195,'LOC FINAL with new Themes'!A:M,13,0)","v":0}]
["Federal land area facility location polygon","Federal land area facility location polygon","Federal land area facility location polygon","Federal land area facility location polygon","Real Property ","GSA","Sandra Downie","sandra.downie@gsa.gov",null,{"$f":"VLOOKUP(B196,'LOC FINAL with new Themes'!A:M,7,0)","v":0},{"$f":"VLOOKUP(B196,'LOC FINAL with new Themes'!A:M,8,0)","v":0},{"$f":"VLOOKUP(B196,'LOC FINAL with new Themes'!A:M,9,0)","v":0},{"$f":"VLOOKUP(B196,'LOC FINAL with new Themes'!A:M,10,0)","v":0},{"$f":"VLOOKUP(B196,'LOC FINAL with new Themes'!A:M,11,0)","v":0},{"$f":"VLOOKUP(B196,'LOC FINAL with new Themes'!A:M,12,0)","v":0},{"$f":"VLOOKUP(B196,'LOC FINAL with new Themes'!A:M,13,0)","v":0}]
[null,null,null,"Real Property Count",{"$f":"SUBTOTAL(3,E190:E196)","v":7}]
[null,"Military Installation","Military Installation",{"$f":"IF(C198=0,B198,C198)","v":"Military Installation"},"Real Property\nCultural & Demographic Statistics","DOC-Census","Jennifer Holland","Jennifer.L.Holland@census.gov","(301) 763-2751",{"$f":"VLOOKUP(B198,'LOC FINAL with new Themes'!A:M,7,0)","v":0},{"$f":"VLOOKUP(B198,'LOC FINAL with new Themes'!A:M,8,0)","v":0},{"$f":"VLOOKUP(B198,'LOC FINAL with new Themes'!A:M,9,0)","v":0},{"$f":"VLOOKUP(B198,'LOC FINAL with new Themes'!A:M,10,0)","v":0},{"$f":"VLOOKUP(B198,'LOC FINAL with new Themes'!A:M,11,0)","v":0},{"$f":"VLOOKUP(B198,'LOC FINAL with new Themes'!A:M,12,0)","v":0},{"$f":"VLOOKUP(B198,'LOC FINAL with new Themes'!A:M,13,0)","v":0}]
[null,null,null,"Topological Faces - Military Installation Relationship File","Real Property\nCultural & Demographic Statistics","DOC-Census","Jennifer Holland","Jennifer.L.Holland@census.gov","(301) 763-2751"]
[null,null,null,"Real Property\nCultural & Demographic Statistics Count",{"$f":"SUBTOTAL(3,E198:E199)","v":2}]
["Common Resource Area (CRA)","Common Resource Area (CRA)","Common Resource Area (CRA)",{"$f":"IF(C201=0,B201,C201)","v":"Common Resource Area (CRA)"},"Soils ","USDA-NRCS","David Hoover","David.Hoover@wdc.usda.gov",null,{"$f":"VLOOKUP(B201,'LOC FINAL with new Themes'!A:M,7,0)","v":0},{"$f":"VLOOKUP(B201,'LOC FINAL with new Themes'!A:M,8,0)","v":0},{"$f":"VLOOKUP(B201,'LOC FINAL with new Themes'!A:M,9,0)","v":0},{"$f":"VLOOKUP(B201,'LOC FINAL with new Themes'!A:M,10,0)","v":0},{"$f":"VLOOKUP(B201,'LOC FINAL with new Themes'!A:M,11,0)","v":0},{"$f":"VLOOKUP(B201,'LOC FINAL with new Themes'!A:M,12,0)","v":0},{"$f":"VLOOKUP(B201,'LOC FINAL with new Themes'!A:M,13,0)","v":0}]
["Major Land Resource Area (MLRA)","Major Land Resource Area (MLRA)","Major Land Resource Area (MLRA)",{"$f":"IF(C202=0,B202,C202)","v":"Major Land Resource Area (MLRA)"},"Soils ","USDA-NRCS","David Hoover","David.Hoover@wdc.usda.gov",null,{"$f":"VLOOKUP(B202,'LOC FINAL with new Themes'!A:M,7,0)","v":"undeliverable email- neeed to identify new contact"},{"$f":"VLOOKUP(B202,'LOC FINAL with new Themes'!A:M,8,0)","v":0},{"$f":"VLOOKUP(B202,'LOC FINAL with new Themes'!A:M,9,0)","v":0},{"$f":"VLOOKUP(B202,'LOC FINAL with new Themes'!A:M,10,0)","v":0},{"$f":"VLOOKUP(B202,'LOC FINAL with new Themes'!A:M,11,0)","v":0},{"$f":"VLOOKUP(B202,'LOC FINAL with new Themes'!A:M,12,0)","v":0},{"$f":"VLOOKUP(B202,'LOC FINAL with new Themes'!A:M,13,0)","v":0}]
["Soil Survey Geographic Database (SSURGO)","Soil Survey Geographic Database (SSURGO)","Soil Survey Geographic Database (SSURGO)",{"$f":"IF(C203=0,B203,C203)","v":"Soil Survey Geographic Database (SSURGO)"},"Soils ","USDA-NRCS","David Hoover","David.Hoover@wdc.usda.gov",null,{"$f":"VLOOKUP(B203,'LOC FINAL with new Themes'!A:M,7,0)","v":"undeliverable email- neeed to identify new contact"},{"$f":"VLOOKUP(B203,'LOC FINAL with new Themes'!A:M,8,0)","v":0},{"$f":"VLOOKUP(B203,'LOC FINAL with new Themes'!A:M,9,0)","v":0},{"$f":"VLOOKUP(B203,'LOC FINAL with new Themes'!A:M,10,0)","v":0},{"$f":"VLOOKUP(B203,'LOC FINAL with new Themes'!A:M,11,0)","v":0},{"$f":"VLOOKUP(B203,'LOC FINAL with new Themes'!A:M,12,0)","v":0},{"$f":"VLOOKUP(B203,'LOC FINAL with new Themes'!A:M,13,0)","v":0}]
["U.S. General Soil Map (STATSGO2)","U.S. General Soil Map (STATSGO2)","U.S. General Soil Map (STATSGO2)",{"$f":"IF(C204=0,B204,C204)","v":"U.S. General Soil Map (STATSGO2)"},"Soils ","USDA-NRCS","David Hoover","David.Hoover@wdc.usda.gov",null,{"$f":"VLOOKUP(B204,'LOC FINAL with new Themes'!A:M,7,0)","v":"undeliverable email- neeed to identify new contact"},{"$f":"VLOOKUP(B204,'LOC FINAL with new Themes'!A:M,8,0)","v":0},{"$f":"VLOOKUP(B204,'LOC FINAL with new Themes'!A:M,9,0)","v":0},{"$f":"VLOOKUP(B204,'LOC FINAL with new Themes'!A:M,10,0)","v":0},{"$f":"VLOOKUP(B204,'LOC FINAL with new Themes'!A:M,11,0)","v":0},{"$f":"VLOOKUP(B204,'LOC FINAL with new Themes'!A:M,12,0)","v":0},{"$f":"VLOOKUP(B204,'LOC FINAL with new Themes'!A:M,13,0)","v":0}]
["National Cooperative Soil Survey (NCSS)","National Cooperative Soil Survey (NCSS)","National Cooperative Soil Characterization Database",{"$f":"IF(C205=0,B205,C205)","v":"National Cooperative Soil Characterization Database"},"Soils ","USDA-NRCS","Larry West","Larry.West@lin.usda.gov",null,{"$f":"VLOOKUP(B205,'LOC FINAL with new Themes'!A:M,7,0)","v":"We have our Soil Survey Geographic database called SSURGO which is made available through the following sites:\nWeb Soil Survey:    http://websoilsurvey.nrcs.usda.gov/app/\nSoil Data Mart:     http://soildatamart.nrcs.usda.gov/\nSoil Data Access:   http://sdmdataaccess.nrcs.usda.gov\n\nWe also have: \nLab Soil Survey Lab Characterization Data (Point data): http://ssldata.nrcs.usda.gov/ aka NCSS Characterization Database\nSoil Series Classification Database http://soils.usda.gov/technical/classification/scfile/index.html\nU.S. General Soil Map (STATSGO2)\nMajor Land Resource Area (MLRA) http://soils.usda.gov/survey/geography/mlra/\n             Common Resource Areas (CRA) \n\n"},{"$f":"VLOOKUP(B205,'LOC FINAL with new Themes'!A:M,8,0)","v":"? No, I am a Program Manager. Various other people have roles of maintaining the data. "},{"$f":"VLOOKUP(B205,'LOC FINAL with new Themes'!A:M,9,0)","v":"I am a general information POC for all things soil survey related. For more technical aspects on our data sets a good POC would be David Hoover, National Leader for Soil Business Systems or someone on his staff. His contact number is 402-437-4013 or email at david.hoover@lin.usda.gov. "},{"$f":"VLOOKUP(B205,'LOC FINAL with new Themes'!A:M,10,0)","v":"Our data sets are constantly being updated by about 1000 soil and plant scientists in several agencies. "},{"$f":"VLOOKUP(B205,'LOC FINAL with new Themes'!A:M,11,0)","v":"Our data sets are archived, but I don’t know how far back. I will have to get back to you on that. It is my understanding that archived sets are not easily accessible.  We have archive data for SSURGO (Soil Data Warehouse from mid 2000’s or earlier – Jim Fortner or Jennifer Sweet may be able to confirm or provide more detail; We also have archive data for STATSGO (circa 1994;1996) and for MLRA (1978; 2001; 2006) in local holdings.  Not sure about lab data archives, Henry Ferguson or Larry West can confirm.  "},{"$f":"VLOOKUP(B205,'LOC FINAL with new Themes'!A:M,12,0)","v":"? the Lab Characterization Data is also known as the “NCSS Characterization Database”\nAdded Common Resource Area geographic database (CRA)."},{"$f":"VLOOKUP(B205,'LOC FINAL with new Themes'!A:M,13,0)","v":"P"}]
[null,null,null,"Soils  Count",{"$f":"SUBTOTAL(3,E201:E205)","v":5}]
[null,"Address Range-Feature Name Relationship File","Address Range-Feature Name Relationship File",{"$f":"IF(C207=0,B207,C207)","v":"Address Range-Feature Name Relationship File"},"Transportation ","DOC-Census","Jennifer Holland","Jennifer.L.Holland@census.gov","(301) 763-2751",{"$f":"VLOOKUP(B207,'LOC FINAL with new Themes'!A:M,7,0)","v":0},{"$f":"VLOOKUP(B207,'LOC FINAL with new Themes'!A:M,8,0)","v":0},{"$f":"VLOOKUP(B207,'LOC FINAL with new Themes'!A:M,9,0)","v":0},{"$f":"VLOOKUP(B207,'LOC FINAL with new Themes'!A:M,10,0)","v":0},{"$f":"VLOOKUP(B207,'LOC FINAL with new Themes'!A:M,11,0)","v":0},{"$f":"VLOOKUP(B207,'LOC FINAL with new Themes'!A:M,12,0)","v":0},{"$f":"VLOOKUP(B207,'LOC FINAL with new Themes'!A:M,13,0)","v":0}]
[null,"Address Ranges Relationship File","Address Ranges Relationship File",{"$f":"IF(C208=0,B208,C208)","v":"Address Ranges Relationship File"},"Transportation ","DOC-Census","Jennifer Holland","Jennifer.L.Holland@census.gov","(301) 763-2751",{"$f":"VLOOKUP(B208,'LOC FINAL with new Themes'!A:M,7,0)","v":0},{"$f":"VLOOKUP(B208,'LOC FINAL with new Themes'!A:M,8,0)","v":0},{"$f":"VLOOKUP(B208,'LOC FINAL with new Themes'!A:M,9,0)","v":0},{"$f":"VLOOKUP(B208,'LOC FINAL with new Themes'!A:M,10,0)","v":0},{"$f":"VLOOKUP(B208,'LOC FINAL with new Themes'!A:M,11,0)","v":0},{"$f":"VLOOKUP(B208,'LOC FINAL with new Themes'!A:M,12,0)","v":0},{"$f":"VLOOKUP(B208,'LOC FINAL with new Themes'!A:M,13,0)","v":0}]
[null,"All Roads","All Roads",{"$f":"IF(C209=0,B209,C209)","v":"All Roads"},"Transportation ","DOC-Census","Jennifer Holland","Jennifer.L.Holland@census.gov","(301) 763-2751",{"$f":"VLOOKUP(B209,'LOC FINAL with new Themes'!A:M,7,0)","v":0},{"$f":"VLOOKUP(B209,'LOC FINAL with new Themes'!A:M,8,0)","v":0},{"$f":"VLOOKUP(B209,'LOC FINAL with new Themes'!A:M,9,0)","v":0},{"$f":"VLOOKUP(B209,'LOC FINAL with new Themes'!A:M,10,0)","v":0},{"$f":"VLOOKUP(B209,'LOC FINAL with new Themes'!A:M,11,0)","v":0},{"$f":"VLOOKUP(B209,'LOC FINAL with new Themes'!A:M,12,0)","v":0},{"$f":"VLOOKUP(B209,'LOC FINAL with new Themes'!A:M,13,0)","v":0}]
[null,"Primary and Secondary Roads","Primary and Secondary Roads",{"$f":"IF(C210=0,#REF!,C210)","v":"Primary and Secondary Roads"},"Transportation ","DOC-Census","Jennifer Holland","Jennifer.L.Holland@census.gov","(301) 763-2751",{"$f":"VLOOKUP(B210,'LOC FINAL with new Themes'!A:M,7,0)","v":0},{"$f":"VLOOKUP(B210,'LOC FINAL with new Themes'!A:M,8,0)","v":0},{"$f":"VLOOKUP(B210,'LOC FINAL with new Themes'!A:M,9,0)","v":0},{"$f":"VLOOKUP(B210,'LOC FINAL with new Themes'!A:M,10,0)","v":0},{"$f":"VLOOKUP(B210,'LOC FINAL with new Themes'!A:M,11,0)","v":0},{"$f":"VLOOKUP(B210,'LOC FINAL with new Themes'!A:M,12,0)","v":0},{"$f":"VLOOKUP(B210,'LOC FINAL with new Themes'!A:M,13,0)","v":0}]
[null,"Primary Roads","Primary Roads",{"$f":"IF(C211=0,B211,C211)","v":"Primary Roads"},"Transportation ","DOC-Census","Jennifer Holland","Jennifer.L.Holland@census.gov","(301) 763-2751",{"$f":"VLOOKUP(B211,'LOC FINAL with new Themes'!A:M,7,0)","v":0},{"$f":"VLOOKUP(B211,'LOC FINAL with new Themes'!A:M,8,0)","v":0},{"$f":"VLOOKUP(B211,'LOC FINAL with new Themes'!A:M,9,0)","v":0},{"$f":"VLOOKUP(B211,'LOC FINAL with new Themes'!A:M,10,0)","v":0},{"$f":"VLOOKUP(B211,'LOC FINAL with new Themes'!A:M,11,0)","v":0},{"$f":"VLOOKUP(B211,'LOC FINAL with new Themes'!A:M,12,0)","v":0},{"$f":"VLOOKUP(B211,'LOC FINAL with new Themes'!A:M,13,0)","v":0}]
[null,"Traffic Analysis Zone (Census 2000)","Traffic Analysis Zone (Census 2000)",{"$f":"IF(C212=0,B212,C212)","v":"Traffic Analysis Zone (Census 2000)"},"Transportation ","DOC-Census","Jennifer Holland","Jennifer.L.Holland@census.gov","(301) 763-2751",{"$f":"VLOOKUP(B212,'LOC FINAL with new Themes'!A:M,7,0)","v":0},{"$f":"VLOOKUP(B212,'LOC FINAL with new Themes'!A:M,8,0)","v":0},{"$f":"VLOOKUP(B212,'LOC FINAL with new Themes'!A:M,9,0)","v":0},{"$f":"VLOOKUP(B212,'LOC FINAL with new Themes'!A:M,10,0)","v":0},{"$f":"VLOOKUP(B212,'LOC FINAL with new Themes'!A:M,11,0)","v":0},{"$f":"VLOOKUP(B212,'LOC FINAL with new Themes'!A:M,12,0)","v":0},{"$f":"VLOOKUP(B212,'LOC FINAL with new Themes'!A:M,13,0)","v":0}]
[null,null,null,"Rails","Transportation ","DOC-Census","Jennifer Holland","Jennifer.L.Holland@census.gov","(301) 763-2751"]
["Inland Electronic Navigation Charts (IENC)","Inland Electronic Navigation Charts (IENC)","Inland Electronic Navigation Charts (IENC)",{"$f":"IF(C214=0,B214,C214)","v":"Inland Electronic Navigation Charts (IENC)"},"Transportation ","DOD-USACE","Joel Schlagel","Joel.D.Schlagel@erdc.usace.army.mil ",null,{"$f":"VLOOKUP(B214,'LOC FINAL with new Themes'!A:M,7,0)","v":0},{"$f":"VLOOKUP(B214,'LOC FINAL with new Themes'!A:M,8,0)","v":0},{"$f":"VLOOKUP(B214,'LOC FINAL with new Themes'!A:M,9,0)","v":0},{"$f":"VLOOKUP(B214,'LOC FINAL with new Themes'!A:M,10,0)","v":0},{"$f":"VLOOKUP(B214,'LOC FINAL with new Themes'!A:M,11,0)","v":0},{"$f":"VLOOKUP(B214,'LOC FINAL with new Themes'!A:M,12,0)","v":0},{"$f":"VLOOKUP(B214,'LOC FINAL with new Themes'!A:M,13,0)","v":0}]
["National Map - Transportation Dataset","National Map - Transportation Dataset","National Transportation Dataset - National Map","National Transportation Dataset - National Map","Transportation ","DOI-USGS","Paul Wiese","pmwiese@usgs.gov",null,{"$f":"VLOOKUP(B215,'LOC FINAL with new Themes'!A:M,7,0)","v":0},{"$f":"VLOOKUP(B215,'LOC FINAL with new Themes'!A:M,8,0)","v":0},{"$f":"VLOOKUP(B215,'LOC FINAL with new Themes'!A:M,9,0)","v":0},{"$f":"VLOOKUP(B215,'LOC FINAL with new Themes'!A:M,10,0)","v":0},{"$f":"VLOOKUP(B215,'LOC FINAL with new Themes'!A:M,11,0)","v":0},{"$f":"VLOOKUP(B215,'LOC FINAL with new Themes'!A:M,12,0)","v":0},{"$f":"VLOOKUP(B215,'LOC FINAL with new Themes'!A:M,13,0)","v":0}]
["NTAD","NTAD","NTAD","NTAD","Transportation ","DOT-BTS","Robert Monniere","robert.monniere@dot.gov",null,{"$f":"VLOOKUP(B216,'LOC FINAL with new Themes'!A:M,7,0)","v":0},{"$f":"VLOOKUP(B216,'LOC FINAL with new Themes'!A:M,8,0)","v":0},{"$f":"VLOOKUP(B216,'LOC FINAL with new Themes'!A:M,9,0)","v":0},{"$f":"VLOOKUP(B216,'LOC FINAL with new Themes'!A:M,10,0)","v":0},{"$f":"VLOOKUP(B216,'LOC FINAL with new Themes'!A:M,11,0)","v":0},{"$f":"VLOOKUP(B216,'LOC FINAL with new Themes'!A:M,12,0)","v":0},{"$f":"VLOOKUP(B216,'LOC FINAL with new Themes'!A:M,13,0)","v":0}]
["NTAD (TransitLines) ","NTAD (TransitLines) ","NTAD (TransitLines) ","NTAD (TransitLines) ","Transportation ","DOT-BTS","Robert Monniere ","robert.monniere@dot.gov \n",null,{"$f":"VLOOKUP(B217,'LOC FINAL with new Themes'!A:M,7,0)","v":0},{"$f":"VLOOKUP(B217,'LOC FINAL with new Themes'!A:M,8,0)","v":0},{"$f":"VLOOKUP(B217,'LOC FINAL with new Themes'!A:M,9,0)","v":0},{"$f":"VLOOKUP(B217,'LOC FINAL with new Themes'!A:M,10,0)","v":0},{"$f":"VLOOKUP(B217,'LOC FINAL with new Themes'!A:M,11,0)","v":0},{"$f":"VLOOKUP(B217,'LOC FINAL with new Themes'!A:M,12,0)","v":0},{"$f":"VLOOKUP(B217,'LOC FINAL with new Themes'!A:M,13,0)","v":0}]
["NTAD (TransitStation) ","NTAD (TransitStation) ","NTAD (TransitStation) ","NTAD (TransitStation) ","Transportation ","DOT-BTS","Robert Monniere ","robert.monniere@dot.gov ",null,{"$f":"VLOOKUP(B218,'LOC FINAL with new Themes'!A:M,7,0)","v":0},{"$f":"VLOOKUP(B218,'LOC FINAL with new Themes'!A:M,8,0)","v":0},{"$f":"VLOOKUP(B218,'LOC FINAL with new Themes'!A:M,9,0)","v":0},{"$f":"VLOOKUP(B218,'LOC FINAL with new Themes'!A:M,10,0)","v":0},{"$f":"VLOOKUP(B218,'LOC FINAL with new Themes'!A:M,11,0)","v":0},{"$f":"VLOOKUP(B218,'LOC FINAL with new Themes'!A:M,12,0)","v":0},{"$f":"VLOOKUP(B218,'LOC FINAL with new Themes'!A:M,13,0)","v":0}]
[null,null,"National Interagency Trails Dataset","National Interagency Trails Dataset","Transportation ","USDA"]
[null,null,"NTAD (airports)","NTAD (airports)","Transportation ","DOT-BTS"]
[null,null,"NTAD (Rail)","NTAD (Rail)","Transportation ","DOT-BTS"]
[null,null,null,"Transportation  Count",{"$f":"SUBTOTAL(3,E207:E221)","v":15}]
[null,null,"Pipelines",{"$f":"IF(C223=0,B223,C223)","v":"Pipelines"},"Utilities ","DOI-BOEM","Doug Vandegraft","Doug.Vandegraft@boem.gov"]
[null,null,"Platforms",{"$f":"IF(C224=0,B224,C224)","v":"Platforms"},"Utilities ","DOI-MMS","Doug Vandegraft","Doug.Vandegraft@boem.gov"]
[null,null,null,"Utilities  Count",{"$f":"SUBTOTAL(3,E223:E224)","v":2}]
["National Levee Database (NLD)","National Levee Database (NLD)","National Levee Database (NLD)",{"$f":"IF(C226=0,B226,C226)","v":"National Levee Database (NLD)"},"Water -- Inland","DOD-USACE","Bryan Baker","Bryan.E.Baker@usace.army.mil",null,{"$f":"VLOOKUP(B226,'LOC FINAL with new Themes'!A:M,7,0)","v":0},{"$f":"VLOOKUP(B226,'LOC FINAL with new Themes'!A:M,8,0)","v":0},{"$f":"VLOOKUP(B226,'LOC FINAL with new Themes'!A:M,9,0)","v":0},{"$f":"VLOOKUP(B226,'LOC FINAL with new Themes'!A:M,10,0)","v":0},{"$f":"VLOOKUP(B226,'LOC FINAL with new Themes'!A:M,11,0)","v":0},{"$f":"VLOOKUP(B226,'LOC FINAL with new Themes'!A:M,12,0)","v":0},{"$f":"VLOOKUP(B226,'LOC FINAL with new Themes'!A:M,13,0)","v":0}]
["National Hydrography Data Set","National Hydrography Dataset","National Hydrography Dataset - National Map",{"$f":"IF(C227=0,B227,C227)","v":"National Hydrography Dataset - National Map"},"Water -- Inland","DOI-USGS","Jeff Simley","jdsimley@usgs.gov",null,{"$f":"VLOOKUP(B227,'LOC FINAL with new Themes'!A:M,7,0)","v":0},{"$f":"VLOOKUP(B227,'LOC FINAL with new Themes'!A:M,8,0)","v":0},{"$f":"VLOOKUP(B227,'LOC FINAL with new Themes'!A:M,9,0)","v":0},{"$f":"VLOOKUP(B227,'LOC FINAL with new Themes'!A:M,10,0)","v":0},{"$f":"VLOOKUP(B227,'LOC FINAL with new Themes'!A:M,11,0)","v":0},{"$f":"VLOOKUP(B227,'LOC FINAL with new Themes'!A:M,12,0)","v":0},{"$f":"VLOOKUP(B227,'LOC FINAL with new Themes'!A:M,13,0)","v":0}]
["Watershed Boundary Data Set (WBD)  ","Watershed Boundary Dataset (WBD)  ","Watershed Boundary Dataset (WBD)  ",{"$f":"IF(C228=0,B228,C228)","v":"Watershed Boundary Dataset (WBD)  "},"Water -- Inland","DOI-USGS","Karen Hanson","khanson@usgs.gov",null,{"$f":"VLOOKUP(B228,'LOC FINAL with new Themes'!A:M,7,0)","v":"one set with nested hierarchy of six different levels within it (regions, subdivided into four, six and twelve digits), POC and data manager; continually updated; co-managed with NRCS and they archive it; USGS in Denver will serve it; All transactions are archived in versions in the database as they happen. Data from any moment in time can be captured with a simple query. The database is replicated daily to Rolla, MO servers. The database is stored on a SAN with three tier redundancy.All changes to the database are stored on separate disks and once they reach a certain size, they are copied over to a server to be written to tape. Weekly, the entire database (NHD, with WBD) is written to tape.Monthly, the tapes are taken off site for storage."},{"$f":"VLOOKUP(B228,'LOC FINAL with new Themes'!A:M,8,0)","v":0},{"$f":"VLOOKUP(B228,'LOC FINAL with new Themes'!A:M,9,0)","v":0},{"$f":"VLOOKUP(B228,'LOC FINAL with new Themes'!A:M,10,0)","v":0},{"$f":"VLOOKUP(B228,'LOC FINAL with new Themes'!A:M,11,0)","v":0},{"$f":"VLOOKUP(B228,'LOC FINAL with new Themes'!A:M,12,0)","v":0},{"$f":"VLOOKUP(B228,'LOC FINAL with new Themes'!A:M,13,0)","v":"S"}]
["National Inventory of Dams (NID)","National Inventory of Dams (NID)","National Inventory of Dams (NID)",{"$f":"IF(C229=0,B229,C229)","v":"National Inventory of Dams (NID)"},"Water -- Inland","DOD-USACE","Rebecca Ragon","Rebecca.Ragon@usace.army.mil ",null,{"$f":"VLOOKUP(B229,'LOC FINAL with new Themes'!A:M,7,0)","v":"One single data set"},{"$f":"VLOOKUP(B229,'LOC FINAL with new Themes'!A:M,8,0)","v":"Yes"},{"$f":"VLOOKUP(B229,'LOC FINAL with new Themes'!A:M,9,0)","v":"Yes"},{"$f":"VLOOKUP(B229,'LOC FINAL with new Themes'!A:M,10,0)","v":"Usually every 2 years"},{"$f":"VLOOKUP(B229,'LOC FINAL with new Themes'!A:M,11,0)","v":"Because the NID is updated every 2 years, we do have archived databased datig back to 1994."},{"$f":"VLOOKUP(B229,'LOC FINAL with new Themes'!A:M,12,0)","v":"The official name is National Inventory of Dams (NID) but I have seen the database referenced as the National Dam Inventory"},{"$f":"VLOOKUP(B229,'LOC FINAL with new Themes'!A:M,13,0)","v":"S"}]
["National Wetlands Inventory (NWI) ","National Wetlands Inventory (NWI) ","National Wetlands Inventory (NWI) ",{"$f":"IF(C230=0,B230,C230)","v":"National Wetlands Inventory (NWI) "},"Water -- Inland","DOI-FWS","Tom Dahl  ","tom_dahl@fws.gov\n",null,{"$f":"VLOOKUP(B230,'LOC FINAL with new Themes'!A:M,7,0)","v":0},{"$f":"VLOOKUP(B230,'LOC FINAL with new Themes'!A:M,8,0)","v":0},{"$f":"VLOOKUP(B230,'LOC FINAL with new Themes'!A:M,9,0)","v":0},{"$f":"VLOOKUP(B230,'LOC FINAL with new Themes'!A:M,10,0)","v":0},{"$f":"VLOOKUP(B230,'LOC FINAL with new Themes'!A:M,11,0)","v":0},{"$f":"VLOOKUP(B230,'LOC FINAL with new Themes'!A:M,12,0)","v":0},{"$f":"VLOOKUP(B230,'LOC FINAL with new Themes'!A:M,13,0)","v":0}]
[null,null,"National Water Information System (NWIS)- Stream Gage Network","National Water Information System (NWIS)- Stream Gage Locations","Water -- Inland","DOI-USGS"]
[null,null,"National Water Information System (NWIS)- Water Quality Monitoring Stations","National Water Information System (NWIS)- Water Quality Monitoring Stations Locations","Water -- Inland","DOI-USGS"]
[null,null,null,"Water -- Inland Count",{"$f":"SUBTOTAL(3,E226:E232)","v":7}]
[null,null,"National Data Buoy Center (NDBC) Recent and Historical Data",{"$f":"IF(C234=0,B234,C234)","v":"National Data Buoy Center (NDBC) Recent and Historical Data"},"Water -- Oceans and Coasts ","DOC-NOAA","Anne Ball","anne.ball@noaa.gov","843-740-1229"]
[null,null,"U.S. Marine Protected Areas Boundaries","U.S. Marine Protected Areas Boundaries","Water -- Oceans and Coasts ","DOC-NOAA","Anne Ball","anne.ball@noaa.gov","843-740-1229"]
[null,null,"NOAA National Shoreline","NOAA National Shoreline","Water -- Oceans and Coasts ","DOC-NOAA","Doug Graham","Doug.Graham@noaa.gov"]
["Continental Shelf Boundary Data","Continental Shelf Boundary Data","Continental Shelf Boundary Data","Continental Shelf Boundary Data","Water -- Oceans and Coasts ","DOI-BOEM","Doug Vandegraft","Doug.Vandegraft@boem.gov",null,{"$f":"VLOOKUP(B237,'LOC FINAL with new Themes'!A:M,7,0)","v":"undeliverable email- neeed to identify new contact"},{"$f":"VLOOKUP(B237,'LOC FINAL with new Themes'!A:M,8,0)","v":0},{"$f":"VLOOKUP(B237,'LOC FINAL with new Themes'!A:M,9,0)","v":0},{"$f":"VLOOKUP(B237,'LOC FINAL with new Themes'!A:M,10,0)","v":0},{"$f":"VLOOKUP(B237,'LOC FINAL with new Themes'!A:M,11,0)","v":0},{"$f":"VLOOKUP(B237,'LOC FINAL with new Themes'!A:M,12,0)","v":0},{"$f":"VLOOKUP(B237,'LOC FINAL with new Themes'!A:M,13,0)","v":0}]
[null,null,"Non-Projected Boundaries","Non-Projected Boundaries","Water -- Oceans and Coasts ","DOI-BOEM","Doug Vandegraft","Doug.Vandegraft@boem.gov"]
[null,null,"Projected Boundaries","Projected Boundaries","Water -- Oceans and Coasts ","DOI-BOEM","Doug Vandegraft","Doug.Vandegraft@boem.gov"]
["NOAA Nautical Charts","NOAA Nautical Charts","NOAA's Nautical Chart Products","NOAA's Nautical Chart Products","Water -- Oceans and Coasts ","DOC-NOAA","Meredith Westington","meredith.westington@noaa.gov",null,{"$f":"VLOOKUP(B240,'LOC FINAL with new Themes'!A:M,7,0)","v":0},{"$f":"VLOOKUP(B240,'LOC FINAL with new Themes'!A:M,8,0)","v":0},{"$f":"VLOOKUP(B240,'LOC FINAL with new Themes'!A:M,9,0)","v":0},{"$f":"VLOOKUP(B240,'LOC FINAL with new Themes'!A:M,10,0)","v":0},{"$f":"VLOOKUP(B240,'LOC FINAL with new Themes'!A:M,11,0)","v":0},{"$f":"VLOOKUP(B240,'LOC FINAL with new Themes'!A:M,12,0)","v":0},{"$f":"VLOOKUP(B240,'LOC FINAL with new Themes'!A:M,13,0)","v":0}]
[null,null,"U.S. Maritime Zones/Boundaries","U.S. Maritime Zones/Boundaries","Water -- Oceans and Coasts ","DOC-NOAA","Meredith Westington","meredith.westington@noaa.gov"]
[null,null,"Coastal Change Analysis Program (C-CAP) Land Cover and Land Change Imagery","Coastal Change Analysis Program (C-CAP) Land Cover and Land Change Imagery","Water -- Oceans and Coasts ","DOC-NOAA","Nate Herold","nate.herold@noaa.gov"]
[null,null,null,"Water -- Oceans and Coasts  Count",{"$f":"SUBTOTAL(3,E234:E242)","v":9}]
[null,null,null,"Grand Count",{"$f":"SUBTOTAL(3,E2:E242)","v":224}]

{"sheet":"5-15-2012","index":16,"n_rows":255,"n_cols":16,"rows_kept":255,"cut":false,"hidden":true,"merged":[]}
["ORIGINAL (beginning of 2011)","LOC FINAL (October 2011)","NGDA List (October 2011)","Dataset Name","Theme","Agency","Dataset Manager","Email","Phone Number","Q1 How many data set(s) do you have? It is a single set or multiple sets? ","Q2 Are you a data set manager?","Q3 Are you the POC for transferring the data set and/or for information about the data set?","Q4 How often is the data set updated?","Q5 Is there an archive/backup of the data set or do you maintain an archived copy of it? If yes, how far back do you maintain a copy? Is it easily accessible?","Q6 Does the data set go by a different name or is it referred to internally by another descriptive name?","M\nP\nS"]
[null,null,"Critical Habitat ","Critical Habitat for Threatened and Endangered Species Dataset","Biota","DOI-FWS","Chris Lett","chris_lett@fws.gov","303-275-2348"]
["ECOMAP Data Sets (Ecological Subregions: Sections and Subsections for the Conterminous United States ) ","ECOMAP Datasets (Ecological Subregions: Sections and Subsections for the Conterminous United States ) ","ECOMAP Datasets (Ecological Subregions: Sections and Subsections for the Conterminous United States ) ",{"$f":"IF(C3=0,B3,C3)","v":"ECOMAP Datasets (Ecological Subregions: Sections and Subsections for the Conterminous United States ) "},"Biota","USDA-FS","David T. Cleland","dcleland@fs.fed.us",null,{"$f":"VLOOKUP(B3,'LOC FINAL with new Themes'!A:M,7,0)","v":"One, single set"},{"$f":"VLOOKUP(B3,'LOC FINAL with new Themes'!A:M,8,0)","v":"Yes"},{"$f":"VLOOKUP(B3,'LOC FINAL with new Themes'!A:M,9,0)","v":"Yes"},{"$f":"VLOOKUP(B3,'LOC FINAL with new Themes'!A:M,10,0)","v":"Maps are updated on a 10-year cycle"},{"$f":"VLOOKUP(B3,'LOC FINAL with new Themes'!A:M,11,0)","v":"The data is housed at and served by the Forest Service geodata portal, and is easily accessible.  The web address is: http://fsgeodata.fs.fed.us/other_resources/ecosubregions.html "},{"$f":"VLOOKUP(B3,'LOC FINAL with new Themes'!A:M,12,0)","v":"?   Internally, the data is named ECOMAP or the National Hierarchy of Ecological Units. "},{"$f":"VLOOKUP(B3,'LOC FINAL with new Themes'!A:M,13,0)","v":"S"}]
["Env Sens Index Maps - classified shoreline","Env Sens Index Maps - classified shoreline","Environmental Sensitivity Index (ESI) Data and Maps","Environmental Sensitivity Index (ESI) Data and Maps","Biota","DOC-NOAA","Jill Petersen","jill.petersen@noaa.gov",null,{"$f":"VLOOKUP(B4,'LOC FINAL with new Themes'!A:M,7,0)","v":"There are approximately 70 different atlases. There are a few that are still not available in a GIS format, (approx 7 of the approx 70!) - these are available as the hard copy product and as PDFs (scanned). The remaining atlases are available in multiple GIS formats - Arc Export files, Geodatabase with an ArcMap map document complete with all relates established and properly symbolized, Shape files with an ArcView 3.x project, a free ESI viewer that allows viewing, queries and printing (in house mapping program and filemaker pro) as well as PDF format and the hard copy product. These can be downloaded from http://response.restoration.noaa.gov/esi_download This page is in progress, but should be complete fairly quickly.\n\n"},{"$f":"VLOOKUP(B4,'LOC FINAL with new Themes'!A:M,8,0)","v":"Yes"},{"$f":"VLOOKUP(B4,'LOC FINAL with new Themes'!A:M,9,0)","v":"Yes "},{"$f":"VLOOKUP(B4,'LOC FINAL with new Themes'!A:M,10,0)","v":"- High resolution products have no defined update schedule.  TBD by geog/project."},{"$f":"VLOOKUP(B4,'LOC FINAL with new Themes'!A:M,11,0)","v":"Yes and no. We have archives of all the digital data as well as all the PDFs (scanned or produced with the digital data map comps). Many of the hard copy atlases from the first round of ESI maps were sent to the Library of Commerce. Others I have kept, but no very organized situation. However, we have all of the historic PDFs which are an exact duplicate of the hard copy atlas, so that is something. Historic data is going to be served from the above link as well. That will be added as the current data sets are completed."},{"$f":"VLOOKUP(B4,'LOC FINAL with new Themes'!A:M,12,0)","v":"ESI is the common abbreviation for these maps. Other than that, Environmental Sensitivity Index Maps, Shoreline Sensitivity maps, Environmental Sensitivity maps..... These maps have the classified shoreline, as well as summaries of biological and human use resource particularly sensitive to oiling. "},{"$f":"VLOOKUP(B4,'LOC FINAL with new Themes'!A:M,13,0)","v":"M "}]
["GAP Program Dataset","GAP Program Dataset","GAP Program Dataset","GAP Program Dataset","Biota","DOI-USGS","Kevin Gergely","gergely@usgs.gov",null,{"$f":"VLOOKUP(B5,'LOC FINAL with new Themes'!A:M,7,0)","v":"POC; multiple data sets in single location, building three fundamental data layers, two are national (protected areas, land cover dataset); backup; six months, annually)"},{"$f":"VLOOKUP(B5,'LOC FINAL with new Themes'!A:M,8,0)","v":0},{"$f":"VLOOKUP(B5,'LOC FINAL with new Themes'!A:M,9,0)","v":0},{"$f":"VLOOKUP(B5,'LOC FINAL with new Themes'!A:M,10,0)","v":0},{"$f":"VLOOKUP(B5,'LOC FINAL with new Themes'!A:M,11,0)","v":0},{"$f":"VLOOKUP(B5,'LOC FINAL with new Themes'!A:M,12,0)","v":0},{"$f":"VLOOKUP(B5,'LOC FINAL with new Themes'!A:M,13,0)","v":"P"}]
["National Standardized Ecosystems Dataset","National Standardized Ecosystems Dataset","National Standardized Ecosystems Dataset","National Standardized Ecosystems Dataset","Biota","DOI-USGS","Roger Sayre","rsayre@usgs.gov",null,{"$f":"VLOOKUP(B6,'LOC FINAL with new Themes'!A:M,7,0)","v":0},{"$f":"VLOOKUP(B6,'LOC FINAL with new Themes'!A:M,8,0)","v":0},{"$f":"VLOOKUP(B6,'LOC FINAL with new Themes'!A:M,9,0)","v":0},{"$f":"VLOOKUP(B6,'LOC FINAL with new Themes'!A:M,10,0)","v":0},{"$f":"VLOOKUP(B6,'LOC FINAL with new Themes'!A:M,11,0)","v":0},{"$f":"VLOOKUP(B6,'LOC FINAL with new Themes'!A:M,12,0)","v":0},{"$f":"VLOOKUP(B6,'LOC FINAL with new Themes'!A:M,13,0)","v":0}]
[null,null,"Section 7 Range for listed species ","Section 7 Range for Listed Species Dataset","Biota","DOI-FWS","Chris Lett","chris_lett@fws.gov","303-275-2348"]
["Biomes, Ecoregions","Biomes, Ecoregions",null,"Biomes, Ecoregions","Biota ","DOI-USGS","Dan Phillips ","dphillips@usgs.gov",null,{"$f":"VLOOKUP(B8,'LOC FINAL with new Themes'!A:M,7,0)","v":0},{"$f":"VLOOKUP(B8,'LOC FINAL with new Themes'!A:M,8,0)","v":0},{"$f":"VLOOKUP(B8,'LOC FINAL with new Themes'!A:M,9,0)","v":0},{"$f":"VLOOKUP(B8,'LOC FINAL with new Themes'!A:M,10,0)","v":0},{"$f":"VLOOKUP(B8,'LOC FINAL with new Themes'!A:M,11,0)","v":0},{"$f":"VLOOKUP(B8,'LOC FINAL with new Themes'!A:M,12,0)","v":0},{"$f":"VLOOKUP(B8,'LOC FINAL with new Themes'!A:M,13,0)","v":0}]
["Ecological Services","Ecological Services",null,"Ecological Services","Biota ","DOI-USGS","Dan Phillips ","dphillips@usgs.gov",null,{"$f":"VLOOKUP(B9,'LOC FINAL with new Themes'!A:M,7,0)","v":0},{"$f":"VLOOKUP(B9,'LOC FINAL with new Themes'!A:M,8,0)","v":0},{"$f":"VLOOKUP(B9,'LOC FINAL with new Themes'!A:M,9,0)","v":0},{"$f":"VLOOKUP(B9,'LOC FINAL with new Themes'!A:M,10,0)","v":0},{"$f":"VLOOKUP(B9,'LOC FINAL with new Themes'!A:M,11,0)","v":0},{"$f":"VLOOKUP(B9,'LOC FINAL with new Themes'!A:M,12,0)","v":0},{"$f":"VLOOKUP(B9,'LOC FINAL with new Themes'!A:M,13,0)","v":0}]
["Habitats","Habitats",null,"Habitats","Biota ","DOI-USGS","Dan Phillips ","dphillips@usgs.gov",null,{"$f":"VLOOKUP(B10,'LOC FINAL with new Themes'!A:M,7,0)","v":"see protected areas and land cover set; vertebrae species of US being developed (not complete for all species they want to include in it."},{"$f":"VLOOKUP(B10,'LOC FINAL with new Themes'!A:M,8,0)","v":0},{"$f":"VLOOKUP(B10,'LOC FINAL with new Themes'!A:M,9,0)","v":0},{"$f":"VLOOKUP(B10,'LOC FINAL with new Themes'!A:M,10,0)","v":0},{"$f":"VLOOKUP(B10,'LOC FINAL with new Themes'!A:M,11,0)","v":0},{"$f":"VLOOKUP(B10,'LOC FINAL with new Themes'!A:M,12,0)","v":0},{"$f":"VLOOKUP(B10,'LOC FINAL with new Themes'!A:M,13,0)","v":"M"}]
["Invasive Species","Invasive Species",null,"Invasive Species","Biota ","DOI-USGS","Dan Phillips ","dphillips@usgs.gov",null,{"$f":"VLOOKUP(B11,'LOC FINAL with new Themes'!A:M,7,0)","v":"There are hundreds of datasets that are produced and maintained by the GAP program. Dan is not the data set manager, but I work with the people that maintain and update the datasets and maintains metadata.The data are updated at different intervals, especially now that they have moved more to a regional and national based approach. GAPS data sets presumably archived since 1990s."},{"$f":"VLOOKUP(B11,'LOC FINAL with new Themes'!A:M,8,0)","v":0},{"$f":"VLOOKUP(B11,'LOC FINAL with new Themes'!A:M,9,0)","v":0},{"$f":"VLOOKUP(B11,'LOC FINAL with new Themes'!A:M,10,0)","v":0},{"$f":"VLOOKUP(B11,'LOC FINAL with new Themes'!A:M,11,0)","v":0},{"$f":"VLOOKUP(B11,'LOC FINAL with new Themes'!A:M,12,0)","v":0},{"$f":"VLOOKUP(B11,'LOC FINAL with new Themes'!A:M,13,0)","v":"M"}]
["Species Distribution(amphibians, birds, reptiles, mammals, fishes, plants, etc)","Species Distribution (amphibians, birds, reptiles, mammals, fishes, plants, etc)",null,"Species Distribution (amphibians, birds, reptiles, mammals, fishes, plants, etc)","Biota ","DOI-USGS","Dan Phillips ","dphillips@usgs.gov",null,{"$f":"VLOOKUP(B12,'LOC FINAL with new Themes'!A:M,7,0)","v":"There are hundreds of datasets that are produced and maintained by the GAP program. Dan is not the data set manager, but I work with the people that maintain and update the datasets and maintains metadata. The data are updated at different intervals, especially now that they have moved more to a regional and national based approach. GAPS data sets presumably archived since 1990s."},{"$f":"VLOOKUP(B12,'LOC FINAL with new Themes'!A:M,8,0)","v":0},{"$f":"VLOOKUP(B12,'LOC FINAL with new Themes'!A:M,9,0)","v":0},{"$f":"VLOOKUP(B12,'LOC FINAL with new Themes'!A:M,10,0)","v":0},{"$f":"VLOOKUP(B12,'LOC FINAL with new Themes'!A:M,11,0)","v":0},{"$f":"VLOOKUP(B12,'LOC FINAL with new Themes'!A:M,12,0)","v":0},{"$f":"VLOOKUP(B12,'LOC FINAL with new Themes'!A:M,13,0)","v":"M"}]
[null,null,null,{"$f":"SUBTOTAL(3,D2:D12)","v":11},"Biota Count"]
["General Land Office","General Land Office","General Land Office",{"$f":"IF(C14=0,B14,C14)","v":"General Land Office"},"Cadastre","DOI-BLM","Juan Palma","juan_palma@blm.gov",null,{"$f":"VLOOKUP(B14,'LOC FINAL with new Themes'!A:M,7,0)","v":0},{"$f":"VLOOKUP(B14,'LOC FINAL with new Themes'!A:M,8,0)","v":0},{"$f":"VLOOKUP(B14,'LOC FINAL with new Themes'!A:M,9,0)","v":0},{"$f":"VLOOKUP(B14,'LOC FINAL with new Themes'!A:M,10,0)","v":0},{"$f":"VLOOKUP(B14,'LOC FINAL with new Themes'!A:M,11,0)","v":0},{"$f":"VLOOKUP(B14,'LOC FINAL with new Themes'!A:M,12,0)","v":0},{"$f":"VLOOKUP(B14,'LOC FINAL with new Themes'!A:M,13,0)","v":0}]
["Geographic Coordinate Data Base (GCDB)","Geographic Coordinate Data Base (GCDB)",null,"Geographic Coordinate Data Base (GCDB)","Cadastre","DOI-BLM","Don Buhler","don_buhler@blm.gov",null,{"$f":"VLOOKUP(B15,'LOC FINAL with new Themes'!A:M,7,0)","v":"every agency has its own database; multiple data sets; standard being advanced and put into practice; federal interest is managed with BLM; state and local are authoritative sets for other lands; "},{"$f":"VLOOKUP(B15,'LOC FINAL with new Themes'!A:M,8,0)","v":0},{"$f":"VLOOKUP(B15,'LOC FINAL with new Themes'!A:M,9,0)","v":0},{"$f":"VLOOKUP(B15,'LOC FINAL with new Themes'!A:M,10,0)","v":0},{"$f":"VLOOKUP(B15,'LOC FINAL with new Themes'!A:M,11,0)","v":0},{"$f":"VLOOKUP(B15,'LOC FINAL with new Themes'!A:M,12,0)","v":0},{"$f":"VLOOKUP(B15,'LOC FINAL with new Themes'!A:M,13,0)","v":"M "}]
["LR 2000 - Master Title Plats ","LR 2000 - Master Title Plats ","LR 2000 - Attribute Information","LR 2000 - Attribute Information","Cadastre","DOI-BLM","Jeff Holdren","jeff_holdren@blm.gov",null,{"$f":"VLOOKUP(B16,'LOC FINAL with new Themes'!A:M,7,0)","v":"listing of sales, rents, agricultural disposal and rights of way cases, group of data sets in one system; Kim Burns, division chief; not archived, there is a backup; Denver office handles"},{"$f":"VLOOKUP(B16,'LOC FINAL with new Themes'!A:M,8,0)","v":0},{"$f":"VLOOKUP(B16,'LOC FINAL with new Themes'!A:M,9,0)","v":0},{"$f":"VLOOKUP(B16,'LOC FINAL with new Themes'!A:M,10,0)","v":0},{"$f":"VLOOKUP(B16,'LOC FINAL with new Themes'!A:M,11,0)","v":0},{"$f":"VLOOKUP(B16,'LOC FINAL with new Themes'!A:M,12,0)","v":0},{"$f":"VLOOKUP(B16,'LOC FINAL with new Themes'!A:M,13,0)","v":"P"}]
["Manual of Surveying Instructions, Data Standards","Manual of Surveying Instructions, Data Standards",null,"Manual of Surveying Instructions, Data Standards","Cadastre","DOI-BLM","Don Buhler","don_buhler@blm.gov",null,{"$f":"VLOOKUP(B17,'LOC FINAL with new Themes'!A:M,7,0)","v":0},{"$f":"VLOOKUP(B17,'LOC FINAL with new Themes'!A:M,8,0)","v":0},{"$f":"VLOOKUP(B17,'LOC FINAL with new Themes'!A:M,9,0)","v":0},{"$f":"VLOOKUP(B17,'LOC FINAL with new Themes'!A:M,10,0)","v":0},{"$f":"VLOOKUP(B17,'LOC FINAL with new Themes'!A:M,11,0)","v":0},{"$f":"VLOOKUP(B17,'LOC FINAL with new Themes'!A:M,12,0)","v":0},{"$f":"VLOOKUP(B17,'LOC FINAL with new Themes'!A:M,13,0)","v":0}]
["Mineral Estate - Fluids","Mineral Estate - Fluids",null,"Mineral Estate - Fluids","Cadastre","DOI-BLM","Tim Spisak ","tim_spisak@blm.gov",null,{"$f":"VLOOKUP(B18,'LOC FINAL with new Themes'!A:M,7,0)","v":"mineral leasess, mining claims, rights of way, gases (single data set); BLM-managed lands but managed all federal mineral estate (comprehensive for mineraal estate) some electronic and some not"},{"$f":"VLOOKUP(B18,'LOC FINAL with new Themes'!A:M,8,0)","v":0},{"$f":"VLOOKUP(B18,'LOC FINAL with new Themes'!A:M,9,0)","v":0},{"$f":"VLOOKUP(B18,'LOC FINAL with new Themes'!A:M,10,0)","v":0},{"$f":"VLOOKUP(B18,'LOC FINAL with new Themes'!A:M,11,0)","v":0},{"$f":"VLOOKUP(B18,'LOC FINAL with new Themes'!A:M,12,0)","v":0},{"$f":"VLOOKUP(B18,'LOC FINAL with new Themes'!A:M,13,0)","v":"P"}]
["Mineral Estate - Solids","Mineral Estate - Solids",null,"Mineral Estate - Solids","Cadastre","DOI-BLM","Mitchell Leverette","mitchell_leverette@blm.gov",null,{"$f":"VLOOKUP(B19,'LOC FINAL with new Themes'!A:M,7,0)","v":"mineral leasess, mining claims, rights of way, gases (single data set); BLM-managed lands but managed all federal mineral estate (comprehensive for mineral estate) some electronic and some not"},{"$f":"VLOOKUP(B19,'LOC FINAL with new Themes'!A:M,8,0)","v":0},{"$f":"VLOOKUP(B19,'LOC FINAL with new Themes'!A:M,9,0)","v":0},{"$f":"VLOOKUP(B19,'LOC FINAL with new Themes'!A:M,10,0)","v":0},{"$f":"VLOOKUP(B19,'LOC FINAL with new Themes'!A:M,11,0)","v":0},{"$f":"VLOOKUP(B19,'LOC FINAL with new Themes'!A:M,12,0)","v":0},{"$f":"VLOOKUP(B19,'LOC FINAL with new Themes'!A:M,13,0)","v":"P"}]
[null,null,"PADUS (Protected Areas Database of the US)","PADUS (Protected Areas Database of the US)","Cadastre","DOI-USGS"]
["Parcels","Parcels","Parcels","Parcels","Cadastre","DOI-BLM","Bob Ader","bob_ader@blm.gov",null,{"$f":"VLOOKUP(B21,'LOC FINAL with new Themes'!A:M,7,0)","v":"every agency has its own database; multiple data sets; standard being advanced and put into practice; federal interest is managed with BLM; state and local are authoritative sets for other lands; current effort of federal inventory "},{"$f":"VLOOKUP(B21,'LOC FINAL with new Themes'!A:M,8,0)","v":0},{"$f":"VLOOKUP(B21,'LOC FINAL with new Themes'!A:M,9,0)","v":0},{"$f":"VLOOKUP(B21,'LOC FINAL with new Themes'!A:M,10,0)","v":0},{"$f":"VLOOKUP(B21,'LOC FINAL with new Themes'!A:M,11,0)","v":0},{"$f":"VLOOKUP(B21,'LOC FINAL with new Themes'!A:M,12,0)","v":0},{"$f":"VLOOKUP(B21,'LOC FINAL with new Themes'!A:M,13,0)","v":"M "}]
[null,null,"Protractions","Protractions","Cadastre","DOI-BOEM","Doug Vandegraft","Doug.Vandegraft@boem.gov"]
["Surface Estate","Surface Estate",null,"Surface Estate","Cadastre","DOI-BLM","Kim Burns","kim_m_burns@blm.gov",null,{"$f":"VLOOKUP(B23,'LOC FINAL with new Themes'!A:M,7,0)","v":"lands administered by BLM; other agencies have own system; ownership of lands;  Tim Spisak, division chief; not archived, there is a backup; Denver office handles"},{"$f":"VLOOKUP(B23,'LOC FINAL with new Themes'!A:M,8,0)","v":0},{"$f":"VLOOKUP(B23,'LOC FINAL with new Themes'!A:M,9,0)","v":0},{"$f":"VLOOKUP(B23,'LOC FINAL with new Themes'!A:M,10,0)","v":0},{"$f":"VLOOKUP(B23,'LOC FINAL with new Themes'!A:M,11,0)","v":0},{"$f":"VLOOKUP(B23,'LOC FINAL with new Themes'!A:M,12,0)","v":0},{"$f":"VLOOKUP(B23,'LOC FINAL with new Themes'!A:M,13,0)","v":0}]
["U.S. Official Cadastral Survey Records","U.S. Official Cadastral Survey Records","U.S. Official Cadastral Survey Records","U.S. Official Cadastral Survey Records","Cadastre","DOI-BLM","Don Buhler","don_buhler@blm.gov",null,{"$f":"VLOOKUP(B24,'LOC FINAL with new Themes'!A:M,7,0)","v":"every agency has its own database; multiple data sets; standard being advanced and put into practice; federal interest is managed with BLM; state and local are authoritative sets for other lands; state offices are scanning these records (survey plats and field notes); CDI (conveyence cards)"},{"$f":"VLOOKUP(B24,'LOC FINAL with new Themes'!A:M,8,0)","v":0},{"$f":"VLOOKUP(B24,'LOC FINAL with new Themes'!A:M,9,0)","v":0},{"$f":"VLOOKUP(B24,'LOC FINAL with new Themes'!A:M,10,0)","v":0},{"$f":"VLOOKUP(B24,'LOC FINAL with new Themes'!A:M,11,0)","v":0},{"$f":"VLOOKUP(B24,'LOC FINAL with new Themes'!A:M,12,0)","v":0},{"$f":"VLOOKUP(B24,'LOC FINAL with new Themes'!A:M,13,0)","v":"M "}]
["U.S. Public Land Survey System","U.S. Public Land Survey System","U.S. Public Land Survey System","U.S. Public Land Survey System","Cadastre","DOI-BLM","Don Buhler","don_buhler@blm.gov",null,{"$f":"VLOOKUP(B25,'LOC FINAL with new Themes'!A:M,7,0)","v":"only federal agency that administers the PLSS; trying to get it to be logically one data set with different regions. (working copies for nine states in West); keep historical record in data base; schema 2 is the version to look at for archiving some time March 2012"},{"$f":"VLOOKUP(B25,'LOC FINAL with new Themes'!A:M,8,0)","v":0},{"$f":"VLOOKUP(B25,'LOC FINAL with new Themes'!A:M,9,0)","v":0},{"$f":"VLOOKUP(B25,'LOC FINAL with new Themes'!A:M,10,0)","v":0},{"$f":"VLOOKUP(B25,'LOC FINAL with new Themes'!A:M,11,0)","v":0},{"$f":"VLOOKUP(B25,'LOC FINAL with new Themes'!A:M,12,0)","v":0},{"$f":"VLOOKUP(B25,'LOC FINAL with new Themes'!A:M,13,0)","v":"P"}]
[null,null,null,"Coastal National Parks","Cadastre","DOI - NPS","Roger Johnson ","Roger_M_Johnson@nps.gov"]
[null,null,null,"Coastal National Wildlife Refuges","Cadastre","DOI - NPS","Sean Killen","Sean_Killen@fws.gov"]
[null,null,null,"Coastal Indian Lands","Cadastre","DOI - BIA","Richard Moore","Richard.Moore@bia.gov"]
[null,null,null,"Outer Continental Shelf Lease Blocks","Cadastre","DOI - BOEM","Doug Vandegraft","Doug.Vandegraft@boem.gov"]
[null,null,null,"BOEM Active Oil and Gas Leases","Cadastre","DOI - BOEM","Doug Vandegraft","Doug.Vandegraft@boem.gov"]
[null,null,null,{"$f":"SUBTOTAL(3,D14:D25)","v":12},"Cadastre Count"]
["Blended Sea Surface Temperature","Blended Sea Surface Temperature","Blended Sea Surface Temperature",{"$f":"IF(C32=0,B32,C32)","v":"Blended Sea Surface Temperature"},"Climate and Weather ","DOC-NOAA","Viva Banzon","Viva.Banzon@noaa.gov",null,{"$f":"VLOOKUP(B32,'LOC FINAL with new Themes'!A:M,7,0)","v":0},{"$f":"VLOOKUP(B32,'LOC FINAL with new Themes'!A:M,8,0)","v":0},{"$f":"VLOOKUP(B32,'LOC FINAL with new Themes'!A:M,9,0)","v":0},{"$f":"VLOOKUP(B32,'LOC FINAL with new Themes'!A:M,10,0)","v":0},{"$f":"VLOOKUP(B32,'LOC FINAL with new Themes'!A:M,11,0)","v":0},{"$f":"VLOOKUP(B32,'LOC FINAL with new Themes'!A:M,12,0)","v":0},{"$f":"VLOOKUP(B32,'LOC FINAL with new Themes'!A:M,13,0)","v":0}]
["Geostationary Operational Environmental Satellite (GOES) data (NCDC)","Geostationary Operational Environmental Satellite (GOES) data (NCDC)","Geostationary Operational Environmental Satellite (GOES) data (NCDC)","Geostationary Operational Environmental Satellite (GOES) data (NCDC)","Climate and Weather ","DOC-NOAA","Nancy Ritchey","Nancy.Ritchey@noaa.gov",null,{"$f":"VLOOKUP(B33,'LOC FINAL with new Themes'!A:M,7,0)","v":"Define 'data set'.  Each spacecraft continuously produces a data stream.  There are multiple sets and the total going back to the late 70s or early 80s numbers in the millions"},{"$f":"VLOOKUP(B33,'LOC FINAL with new Themes'!A:M,8,0)","v":"Yes"},{"$f":"VLOOKUP(B33,'LOC FINAL with new Themes'!A:M,9,0)","v":"Yes"},{"$f":"VLOOKUP(B33,'LOC FINAL with new Themes'!A:M,10,0)","v":"Continuously"},{"$f":"VLOOKUP(B33,'LOC FINAL with new Themes'!A:M,11,0)","v":"There are two active archive centers for these data; one here in Asheville, NC and one in Boulder, CO.  These data go back to the late 70s and all data are on line wither on disc or robotic tape storage"},{"$f":"VLOOKUP(B33,'LOC FINAL with new Themes'!A:M,12,0)","v":"Again, define your terms.  For examples see www.class.noaa.gov - Raw data are listed by satellite (GOES or POES) and then be instrument.  Geophysical products are listed by product name."},{"$f":"VLOOKUP(B33,'LOC FINAL with new Themes'!A:M,13,0)","v":0}]
[null,null,"MODIS-based Atmospheric Products","MODIS-based Atmospheric Products","Climate and Weather ","USDA -FS (Along with USGS)"]
[null,null,"National Doplar Radar Data (NEXRAD)","National Doplar Radar Data (NEXRAD)","Climate and Weather ","DOC-NOAA","Steve DelGreco","stephen.a.delgreco"]
[null,null,"NOAA National Weather Service GIS Data",{"$f":"IF(C36=0,B36,C36)","v":"NOAA National Weather Service GIS Data"},"Climate and Weather ","DOC-NOAA","Anne Ball","anne.ball@noaa.gov","843-740-1229"]
["Parameter-elevation Regressions on Independent Slopes Model (PRISM) Data Sets","Parameter-elevation Regressions on Independent Slopes Model (PRISM) Datasets","Parameter-elevation Regressions on Independent Slopes Model (PRISM) Datasets",{"$f":"IF(C37=0,B37,C37)","v":"Parameter-elevation Regressions on Independent Slopes Model (PRISM) Datasets"},"Climate and Weather ","USDA-NRCS","Jan Curtis","jan.curtis@por.usda.gov",null,{"$f":"VLOOKUP(B37,'LOC FINAL with new Themes'!A:M,7,0)","v":"info provided via http://www.prism.oregonstate.edu/ and \nhttp://www.nrcs.usda.gov/wps/portal/nrcs/main/?ss=16&navtype=SubNavigation&cid=null&navid=850130000000000&pnavid=850000000000000&position=SubNavigation&ttype=main&pname=USDA%2520NRCS%2520-%2520Natural%2520Resources%2520Conservation%2520Service\n"},{"$f":"VLOOKUP(B37,'LOC FINAL with new Themes'!A:M,8,0)","v":0},{"$f":"VLOOKUP(B37,'LOC FINAL with new Themes'!A:M,9,0)","v":0},{"$f":"VLOOKUP(B37,'LOC FINAL with new Themes'!A:M,10,0)","v":0},{"$f":"VLOOKUP(B37,'LOC FINAL with new Themes'!A:M,11,0)","v":0},{"$f":"VLOOKUP(B37,'LOC FINAL with new Themes'!A:M,12,0)","v":0},{"$f":"VLOOKUP(B37,'LOC FINAL with new Themes'!A:M,13,0)","v":"M"}]
["Polar Operational Environmental Satellite (POES) data (NCDC)","Polar Operational Environmental Satellite (POES) data","Polar Operational Environmental Satellite (POES) data",{"$f":"IF(C38=0,B38,C38)","v":"Polar Operational Environmental Satellite (POES) data"},"Climate and Weather ","DOC-NOAA","John Bates","john.j.bates@noaa.gov",null,{"$f":"VLOOKUP(B38,'LOC FINAL with new Themes'!A:M,7,0)","v":0},{"$f":"VLOOKUP(B38,'LOC FINAL with new Themes'!A:M,8,0)","v":0},{"$f":"VLOOKUP(B38,'LOC FINAL with new Themes'!A:M,9,0)","v":0},{"$f":"VLOOKUP(B38,'LOC FINAL with new Themes'!A:M,10,0)","v":0},{"$f":"VLOOKUP(B38,'LOC FINAL with new Themes'!A:M,11,0)","v":0},{"$f":"VLOOKUP(B38,'LOC FINAL with new Themes'!A:M,12,0)","v":0},{"$f":"VLOOKUP(B38,'LOC FINAL with new Themes'!A:M,13,0)","v":0}]
[null,null,null,{"$f":"SUBTOTAL(3,D32:D38)","v":7},"Climate and Weather  Count"]
[null,"5-digit ZIP Code Tabulation Area (Census 2000)","5-digit ZIP Code Tabulation Area (Census 2000)",{"$f":"IF(C40=0,B40,C40)","v":"5-digit ZIP Code Tabulation Area (Census 2000)"},"Cultural & Demographic Statistics ","DOC-Census","Jennifer Holland","Jennifer.L.Holland@census.gov",null,{"$f":"VLOOKUP(B40,'LOC FINAL with new Themes'!A:M,7,0)","v":0},{"$f":"VLOOKUP(B40,'LOC FINAL with new Themes'!A:M,8,0)","v":0},{"$f":"VLOOKUP(B40,'LOC FINAL with new Themes'!A:M,9,0)","v":0},{"$f":"VLOOKUP(B40,'LOC FINAL with new Themes'!A:M,10,0)","v":0},{"$f":"VLOOKUP(B40,'LOC FINAL with new Themes'!A:M,11,0)","v":0},{"$f":"VLOOKUP(B40,'LOC FINAL with new Themes'!A:M,12,0)","v":0},{"$f":"VLOOKUP(B40,'LOC FINAL with new Themes'!A:M,13,0)","v":0}]
["AIR, ANVSA, Hawaiian Homelands Boundaries","AIR, ANVSA, Hawaiian Homelands Boundaries",null,"AIR, ANVSA, Hawaiian Homelands Boundaries","Cultural & Demographic Statistics ","DOC-Census","Randy Fusaro","randy.j.fusaro@census.gov",null,{"$f":"VLOOKUP(B41,'LOC FINAL with new Themes'!A:M,7,0)","v":0},{"$f":"VLOOKUP(B41,'LOC FINAL with new Themes'!A:M,8,0)","v":0},{"$f":"VLOOKUP(B41,'LOC FINAL with new Themes'!A:M,9,0)","v":0},{"$f":"VLOOKUP(B41,'LOC FINAL with new Themes'!A:M,10,0)","v":0},{"$f":"VLOOKUP(B41,'LOC FINAL with new Themes'!A:M,11,0)","v":0},{"$f":"VLOOKUP(B41,'LOC FINAL with new Themes'!A:M,12,0)","v":0},{"$f":"VLOOKUP(B41,'LOC FINAL with new Themes'!A:M,13,0)","v":0}]
[null,"All Lines (2010 Census)","All Lines (2010 Census)","All Lines (2010 Census)","Cultural & Demographic Statistics ","DOC-Census","Jennifer Holland","Jennifer.L.Holland@census.gov",null,{"$f":"VLOOKUP(B42,'LOC FINAL with new Themes'!A:M,7,0)","v":0},{"$f":"VLOOKUP(B42,'LOC FINAL with new Themes'!A:M,8,0)","v":0},{"$f":"VLOOKUP(B42,'LOC FINAL with new Themes'!A:M,9,0)","v":0},{"$f":"VLOOKUP(B42,'LOC FINAL with new Themes'!A:M,10,0)","v":0},{"$f":"VLOOKUP(B42,'LOC FINAL with new Themes'!A:M,11,0)","v":0},{"$f":"VLOOKUP(B42,'LOC FINAL with new Themes'!A:M,12,0)","v":0},{"$f":"VLOOKUP(B42,'LOC FINAL with new Themes'!A:M,13,0)","v":0}]
[null,"ANSI codes for  metro/micropolitan areas","ANSI codes for  metro/micropolitan areas","ANSI codes for  metro/micropolitan areas","Cultural & Demographic Statistics ","DOC-Census","Jennifer Holland","Jennifer.L.Holland@census.gov",null,{"$f":"VLOOKUP(B43,'LOC FINAL with new Themes'!A:M,7,0)","v":0},{"$f":"VLOOKUP(B43,'LOC FINAL with new Themes'!A:M,8,0)","v":0},{"$f":"VLOOKUP(B43,'LOC FINAL with new Themes'!A:M,9,0)","v":0},{"$f":"VLOOKUP(B43,'LOC FINAL with new Themes'!A:M,10,0)","v":0},{"$f":"VLOOKUP(B43,'LOC FINAL with new Themes'!A:M,11,0)","v":0},{"$f":"VLOOKUP(B43,'LOC FINAL with new Themes'!A:M,12,0)","v":0},{"$f":"VLOOKUP(B43,'LOC FINAL with new Themes'!A:M,13,0)","v":0}]
[null,"ANSI codes for congressional districts","ANSI codes for congressional districts","ANSI codes for congressional districts","Cultural & Demographic Statistics ","DOC-Census","Jennifer Holland","Jennifer.L.Holland@census.gov",null,{"$f":"VLOOKUP(B44,'LOC FINAL with new Themes'!A:M,7,0)","v":0},{"$f":"VLOOKUP(B44,'LOC FINAL with new Themes'!A:M,8,0)","v":0},{"$f":"VLOOKUP(B44,'LOC FINAL with new Themes'!A:M,9,0)","v":0},{"$f":"VLOOKUP(B44,'LOC FINAL with new Themes'!A:M,10,0)","v":0},{"$f":"VLOOKUP(B44,'LOC FINAL with new Themes'!A:M,11,0)","v":0},{"$f":"VLOOKUP(B44,'LOC FINAL with new Themes'!A:M,12,0)","v":0},{"$f":"VLOOKUP(B44,'LOC FINAL with new Themes'!A:M,13,0)","v":0}]
[null,"ANSI codes for counties","ANSI codes for counties","ANSI codes for counties","Cultural & Demographic Statistics ","DOC-Census","Jennifer Holland","Jennifer.L.Holland@census.gov",null,{"$f":"VLOOKUP(B45,'LOC FINAL with new Themes'!A:M,7,0)","v":0},{"$f":"VLOOKUP(B45,'LOC FINAL with new Themes'!A:M,8,0)","v":0},{"$f":"VLOOKUP(B45,'LOC FINAL with new Themes'!A:M,9,0)","v":0},{"$f":"VLOOKUP(B45,'LOC FINAL with new Themes'!A:M,10,0)","v":0},{"$f":"VLOOKUP(B45,'LOC FINAL with new Themes'!A:M,11,0)","v":0},{"$f":"VLOOKUP(B45,'LOC FINAL with new Themes'!A:M,12,0)","v":0},{"$f":"VLOOKUP(B45,'LOC FINAL with new Themes'!A:M,13,0)","v":0}]
[null,"ANSI codes for states","ANSI codes for states","ANSI codes for states","Cultural & Demographic Statistics ","DOC-Census","Jennifer Holland","Jennifer.L.Holland@census.gov",null,{"$f":"VLOOKUP(B46,'LOC FINAL with new Themes'!A:M,7,0)","v":0},{"$f":"VLOOKUP(B46,'LOC FINAL with new Themes'!A:M,8,0)","v":0},{"$f":"VLOOKUP(B46,'LOC FINAL with new Themes'!A:M,9,0)","v":0},{"$f":"VLOOKUP(B46,'LOC FINAL with new Themes'!A:M,10,0)","v":0},{"$f":"VLOOKUP(B46,'LOC FINAL with new Themes'!A:M,11,0)","v":0},{"$f":"VLOOKUP(B46,'LOC FINAL with new Themes'!A:M,12,0)","v":0},{"$f":"VLOOKUP(B46,'LOC FINAL with new Themes'!A:M,13,0)","v":0}]
[null,"Block (2010 Census)","Block (2010 Census)","Block (2010 Census)","Cultural & Demographic Statistics ","DOC-Census","Jennifer Holland","Jennifer.L.Holland@census.gov",null,{"$f":"VLOOKUP(B47,'LOC FINAL with new Themes'!A:M,7,0)","v":0},{"$f":"VLOOKUP(B47,'LOC FINAL with new Themes'!A:M,8,0)","v":0},{"$f":"VLOOKUP(B47,'LOC FINAL with new Themes'!A:M,9,0)","v":0},{"$f":"VLOOKUP(B47,'LOC FINAL with new Themes'!A:M,10,0)","v":0},{"$f":"VLOOKUP(B47,'LOC FINAL with new Themes'!A:M,11,0)","v":0},{"$f":"VLOOKUP(B47,'LOC FINAL with new Themes'!A:M,12,0)","v":0},{"$f":"VLOOKUP(B47,'LOC FINAL with new Themes'!A:M,13,0)","v":0}]
[null,"Block (Census 2000)","Block (Census 2000)","Block (Census 2000)","Cultural & Demographic Statistics ","DOC-Census","Jennifer Holland","Jennifer.L.Holland@census.gov",null,{"$f":"VLOOKUP(B48,'LOC FINAL with new Themes'!A:M,7,0)","v":0},{"$f":"VLOOKUP(B48,'LOC FINAL with new Themes'!A:M,8,0)","v":0},{"$f":"VLOOKUP(B48,'LOC FINAL with new Themes'!A:M,9,0)","v":0},{"$f":"VLOOKUP(B48,'LOC FINAL with new Themes'!A:M,10,0)","v":0},{"$f":"VLOOKUP(B48,'LOC FINAL with new Themes'!A:M,11,0)","v":0},{"$f":"VLOOKUP(B48,'LOC FINAL with new Themes'!A:M,12,0)","v":0},{"$f":"VLOOKUP(B48,'LOC FINAL with new Themes'!A:M,13,0)","v":0}]
[null,"Block Group (Census 2000)","Block Group (Census 2000)","Block Group (Census 2000)","Cultural & Demographic Statistics ","DOC-Census","Jennifer Holland","Jennifer.L.Holland@census.gov",null,{"$f":"VLOOKUP(B49,'LOC FINAL with new Themes'!A:M,7,0)","v":0},{"$f":"VLOOKUP(B49,'LOC FINAL with new Themes'!A:M,8,0)","v":0},{"$f":"VLOOKUP(B49,'LOC FINAL with new Themes'!A:M,9,0)","v":0},{"$f":"VLOOKUP(B49,'LOC FINAL with new Themes'!A:M,10,0)","v":0},{"$f":"VLOOKUP(B49,'LOC FINAL with new Themes'!A:M,11,0)","v":0},{"$f":"VLOOKUP(B49,'LOC FINAL with new Themes'!A:M,12,0)","v":0},{"$f":"VLOOKUP(B49,'LOC FINAL with new Themes'!A:M,13,0)","v":0}]
[null,"Block Group (Census 2010)","Block Group (Census 2010)","Block Group (Census 2010)","Cultural & Demographic Statistics ","DOC-Census","Jennifer Holland","Jennifer.L.Holland@census.gov",null,{"$f":"VLOOKUP(B50,'LOC FINAL with new Themes'!A:M,7,0)","v":0},{"$f":"VLOOKUP(B50,'LOC FINAL with new Themes'!A:M,8,0)","v":0},{"$f":"VLOOKUP(B50,'LOC FINAL with new Themes'!A:M,9,0)","v":0},{"$f":"VLOOKUP(B50,'LOC FINAL with new Themes'!A:M,10,0)","v":0},{"$f":"VLOOKUP(B50,'LOC FINAL with new Themes'!A:M,11,0)","v":0},{"$f":"VLOOKUP(B50,'LOC FINAL with new Themes'!A:M,12,0)","v":0},{"$f":"VLOOKUP(B50,'LOC FINAL with new Themes'!A:M,13,0)","v":0}]
[null,"Census 2000 FIPS 55 Codes","Census 2000 FIPS 55 Codes","Census 2000 FIPS 55 Codes","Cultural & Demographic Statistics ","DOC-Census","Jennifer Holland","Jennifer.L.Holland@census.gov",null,{"$f":"VLOOKUP(B51,'LOC FINAL with new Themes'!A:M,7,0)","v":0},{"$f":"VLOOKUP(B51,'LOC FINAL with new Themes'!A:M,8,0)","v":0},{"$f":"VLOOKUP(B51,'LOC FINAL with new Themes'!A:M,9,0)","v":0},{"$f":"VLOOKUP(B51,'LOC FINAL with new Themes'!A:M,10,0)","v":0},{"$f":"VLOOKUP(B51,'LOC FINAL with new Themes'!A:M,11,0)","v":0},{"$f":"VLOOKUP(B51,'LOC FINAL with new Themes'!A:M,12,0)","v":0},{"$f":"VLOOKUP(B51,'LOC FINAL with new Themes'!A:M,13,0)","v":0}]
[null,"Census Tract (2010 Census)","Census Tract (2010 Census)","Census Tract (2010 Census)","Cultural & Demographic Statistics ","DOC-Census","Jennifer Holland","Jennifer.L.Holland@census.gov",null,{"$f":"VLOOKUP(B52,'LOC FINAL with new Themes'!A:M,7,0)","v":0},{"$f":"VLOOKUP(B52,'LOC FINAL with new Themes'!A:M,8,0)","v":0},{"$f":"VLOOKUP(B52,'LOC FINAL with new Themes'!A:M,9,0)","v":0},{"$f":"VLOOKUP(B52,'LOC FINAL with new Themes'!A:M,10,0)","v":0},{"$f":"VLOOKUP(B52,'LOC FINAL with new Themes'!A:M,11,0)","v":0},{"$f":"VLOOKUP(B52,'LOC FINAL with new Themes'!A:M,12,0)","v":0},{"$f":"VLOOKUP(B52,'LOC FINAL with new Themes'!A:M,13,0)","v":0}]
[null,"Census Tract (Census 2000)","Census Tract (Census 2000)","Census Tract (Census 2000)","Cultural & Demographic Statistics ","DOC-Census","Jennifer Holland","Jennifer.L.Holland@census.gov",null,{"$f":"VLOOKUP(B53,'LOC FINAL with new Themes'!A:M,7,0)","v":0},{"$f":"VLOOKUP(B53,'LOC FINAL with new Themes'!A:M,8,0)","v":0},{"$f":"VLOOKUP(B53,'LOC FINAL with new Themes'!A:M,9,0)","v":0},{"$f":"VLOOKUP(B53,'LOC FINAL with new Themes'!A:M,10,0)","v":0},{"$f":"VLOOKUP(B53,'LOC FINAL with new Themes'!A:M,11,0)","v":0},{"$f":"VLOOKUP(B53,'LOC FINAL with new Themes'!A:M,12,0)","v":0},{"$f":"VLOOKUP(B53,'LOC FINAL with new Themes'!A:M,13,0)","v":0}]
[null,"Combined Statistical Area (2010 Census)","Combined Statistical Area (2010 Census)","Combined Statistical Area (2010 Census)","Cultural & Demographic Statistics ","DOC-Census","Jennifer Holland","Jennifer.L.Holland@census.gov",null,{"$f":"VLOOKUP(B54,'LOC FINAL with new Themes'!A:M,7,0)","v":0},{"$f":"VLOOKUP(B54,'LOC FINAL with new Themes'!A:M,8,0)","v":0},{"$f":"VLOOKUP(B54,'LOC FINAL with new Themes'!A:M,9,0)","v":0},{"$f":"VLOOKUP(B54,'LOC FINAL with new Themes'!A:M,10,0)","v":0},{"$f":"VLOOKUP(B54,'LOC FINAL with new Themes'!A:M,11,0)","v":0},{"$f":"VLOOKUP(B54,'LOC FINAL with new Themes'!A:M,12,0)","v":0},{"$f":"VLOOKUP(B54,'LOC FINAL with new Themes'!A:M,13,0)","v":0}]
[null,"Congressional District Boundaries",null,"Congressional District Boundaries","Cultural & Demographic Statistics ","DOC-Census","Randy Fusaro","randy.j.fusaro@census.gov",null,{"$f":"VLOOKUP(B55,'LOC FINAL with new Themes'!A:M,7,0)","v":0},{"$f":"VLOOKUP(B55,'LOC FINAL with new Themes'!A:M,8,0)","v":0},{"$f":"VLOOKUP(B55,'LOC FINAL with new Themes'!A:M,9,0)","v":0},{"$f":"VLOOKUP(B55,'LOC FINAL with new Themes'!A:M,10,0)","v":0},{"$f":"VLOOKUP(B55,'LOC FINAL with new Themes'!A:M,11,0)","v":0},{"$f":"VLOOKUP(B55,'LOC FINAL with new Themes'!A:M,12,0)","v":0},{"$f":"VLOOKUP(B55,'LOC FINAL with new Themes'!A:M,13,0)","v":0}]
["County, place, MCD Boundaries","County, place, MCD Boundaries",null,"County, place, MCD Boundaries","Cultural & Demographic Statistics ","DOC-Census","Randy Fusaro","randy.j.fusaro@census.gov",null,{"$f":"VLOOKUP(B56,'LOC FINAL with new Themes'!A:M,7,0)","v":0},{"$f":"VLOOKUP(B56,'LOC FINAL with new Themes'!A:M,8,0)","v":0},{"$f":"VLOOKUP(B56,'LOC FINAL with new Themes'!A:M,9,0)","v":0},{"$f":"VLOOKUP(B56,'LOC FINAL with new Themes'!A:M,10,0)","v":0},{"$f":"VLOOKUP(B56,'LOC FINAL with new Themes'!A:M,11,0)","v":0},{"$f":"VLOOKUP(B56,'LOC FINAL with new Themes'!A:M,12,0)","v":0},{"$f":"VLOOKUP(B56,'LOC FINAL with new Themes'!A:M,13,0)","v":0}]
[null,"Elementary School District (2010 Census)","Elementary School District (2010 Census)","Elementary School District (2010 Census)","Cultural & Demographic Statistics ","DOC-Census","Jennifer Holland","Jennifer.L.Holland@census.gov",null,{"$f":"VLOOKUP(B57,'LOC FINAL with new Themes'!A:M,7,0)","v":0},{"$f":"VLOOKUP(B57,'LOC FINAL with new Themes'!A:M,8,0)","v":0},{"$f":"VLOOKUP(B57,'LOC FINAL with new Themes'!A:M,9,0)","v":0},{"$f":"VLOOKUP(B57,'LOC FINAL with new Themes'!A:M,10,0)","v":0},{"$f":"VLOOKUP(B57,'LOC FINAL with new Themes'!A:M,11,0)","v":0},{"$f":"VLOOKUP(B57,'LOC FINAL with new Themes'!A:M,12,0)","v":0},{"$f":"VLOOKUP(B57,'LOC FINAL with new Themes'!A:M,13,0)","v":0}]
[null,"Elementary School District (Census 2000)","Elementary School District (Census 2000)","Elementary School District (Census 2000)","Cultural & Demographic Statistics ","DOC-Census","Jennifer Holland","Jennifer.L.Holland@census.gov",null,{"$f":"VLOOKUP(B58,'LOC FINAL with new Themes'!A:M,7,0)","v":0},{"$f":"VLOOKUP(B58,'LOC FINAL with new Themes'!A:M,8,0)","v":0},{"$f":"VLOOKUP(B58,'LOC FINAL with new Themes'!A:M,9,0)","v":0},{"$f":"VLOOKUP(B58,'LOC FINAL with new Themes'!A:M,10,0)","v":0},{"$f":"VLOOKUP(B58,'LOC FINAL with new Themes'!A:M,11,0)","v":0},{"$f":"VLOOKUP(B58,'LOC FINAL with new Themes'!A:M,12,0)","v":0},{"$f":"VLOOKUP(B58,'LOC FINAL with new Themes'!A:M,13,0)","v":0}]
["FIPS/ANSI codes for states, counties, congressional districts & metro/micropolitan areas","FIPS/ANSI codes for states, counties, congressional districts & metro/micropolitan areas",null,"FIPS/ANSI codes for states, counties, congressional districts & metro/micropolitan areas","Cultural & Demographic Statistics ","DOC-Census","Randy Fusaro","randy.j.fusaro@census.gov",null,{"$f":"VLOOKUP(B59,'LOC FINAL with new Themes'!A:M,7,0)","v":0},{"$f":"VLOOKUP(B59,'LOC FINAL with new Themes'!A:M,8,0)","v":0},{"$f":"VLOOKUP(B59,'LOC FINAL with new Themes'!A:M,9,0)","v":0},{"$f":"VLOOKUP(B59,'LOC FINAL with new Themes'!A:M,10,0)","v":0},{"$f":"VLOOKUP(B59,'LOC FINAL with new Themes'!A:M,11,0)","v":0},{"$f":"VLOOKUP(B59,'LOC FINAL with new Themes'!A:M,12,0)","v":0},{"$f":"VLOOKUP(B59,'LOC FINAL with new Themes'!A:M,13,0)","v":0}]
["Metropolitan/micropolitan area boundaries","Metropolitan/micropolitan area boundaries",null,"Metropolitan/micropolitan area boundaries","Cultural & Demographic Statistics ","DOC-Census","Randy Fusaro","randy.j.fusaro@census.gov",null,{"$f":"VLOOKUP(B60,'LOC FINAL with new Themes'!A:M,7,0)","v":0},{"$f":"VLOOKUP(B60,'LOC FINAL with new Themes'!A:M,8,0)","v":0},{"$f":"VLOOKUP(B60,'LOC FINAL with new Themes'!A:M,9,0)","v":0},{"$f":"VLOOKUP(B60,'LOC FINAL with new Themes'!A:M,10,0)","v":0},{"$f":"VLOOKUP(B60,'LOC FINAL with new Themes'!A:M,11,0)","v":0},{"$f":"VLOOKUP(B60,'LOC FINAL with new Themes'!A:M,12,0)","v":0},{"$f":"VLOOKUP(B60,'LOC FINAL with new Themes'!A:M,13,0)","v":0}]
[null,"Metropolitan/micropolitan Statistical Area (2010 Census)","Metropolitan/micropolitan Statistical Area (2010 Census)","Metropolitan/micropolitan Statistical Area (2010 Census)","Cultural & Demographic Statistics ","DOC-Census","Jennifer Holland","Jennifer.L.Holland@census.gov",null,{"$f":"VLOOKUP(B61,'LOC FINAL with new Themes'!A:M,7,0)","v":0},{"$f":"VLOOKUP(B61,'LOC FINAL with new Themes'!A:M,8,0)","v":0},{"$f":"VLOOKUP(B61,'LOC FINAL with new Themes'!A:M,9,0)","v":0},{"$f":"VLOOKUP(B61,'LOC FINAL with new Themes'!A:M,10,0)","v":0},{"$f":"VLOOKUP(B61,'LOC FINAL with new Themes'!A:M,11,0)","v":0},{"$f":"VLOOKUP(B61,'LOC FINAL with new Themes'!A:M,12,0)","v":0},{"$f":"VLOOKUP(B61,'LOC FINAL with new Themes'!A:M,13,0)","v":0}]
["National Center for Health Statistics (Atlas of US Mortality)","National Center for Health Statistics (Atlas of US Mortality)",null,"National Center for Health Statistics (Atlas of US Mortality)","Cultural & Demographic Statistics ","HHS","Gary Anderson","gary.anderson@hhs.gov",null,{"$f":"VLOOKUP(B62,'LOC FINAL with new Themes'!A:M,7,0)","v":0},{"$f":"VLOOKUP(B62,'LOC FINAL with new Themes'!A:M,8,0)","v":0},{"$f":"VLOOKUP(B62,'LOC FINAL with new Themes'!A:M,9,0)","v":0},{"$f":"VLOOKUP(B62,'LOC FINAL with new Themes'!A:M,10,0)","v":0},{"$f":"VLOOKUP(B62,'LOC FINAL with new Themes'!A:M,11,0)","v":0},{"$f":"VLOOKUP(B62,'LOC FINAL with new Themes'!A:M,12,0)","v":0},{"$f":"VLOOKUP(B62,'LOC FINAL with new Themes'!A:M,13,0)","v":0}]
[null,null,"Oklahoma Tribal Joint Use Areas","Oklahoma Tribal Joint Use Areas","Cultural & Demographic Statistics ","DOC-Census"]
[null,null,"Oklahoma Tribal Statistical Areas","Oklahoma Tribal Statistical Areas","Cultural & Demographic Statistics ","DOC-Census"]
[null,"Public Use Microdata Area (Census 2000)","Public Use Microdata Area (Census 2000)","Public Use Microdata Area (Census 2000)","Cultural & Demographic Statistics ","DOC-Census","Jennifer Holland","Jennifer.L.Holland@census.gov",null,{"$f":"VLOOKUP(B65,'LOC FINAL with new Themes'!A:M,7,0)","v":0},{"$f":"VLOOKUP(B65,'LOC FINAL with new Themes'!A:M,8,0)","v":0},{"$f":"VLOOKUP(B65,'LOC FINAL with new Themes'!A:M,9,0)","v":0},{"$f":"VLOOKUP(B65,'LOC FINAL with new Themes'!A:M,10,0)","v":0},{"$f":"VLOOKUP(B65,'LOC FINAL with new Themes'!A:M,11,0)","v":0},{"$f":"VLOOKUP(B65,'LOC FINAL with new Themes'!A:M,12,0)","v":0},{"$f":"VLOOKUP(B65,'LOC FINAL with new Themes'!A:M,13,0)","v":0}]
["School District Boundaries","School District Boundaries",null,"School District Boundaries","Cultural & Demographic Statistics ","DOC-Census","Randy Fusaro","randy.j.fusaro@census.gov",null,{"$f":"VLOOKUP(B66,'LOC FINAL with new Themes'!A:M,7,0)","v":0},{"$f":"VLOOKUP(B66,'LOC FINAL with new Themes'!A:M,8,0)","v":0},{"$f":"VLOOKUP(B66,'LOC FINAL with new Themes'!A:M,9,0)","v":0},{"$f":"VLOOKUP(B66,'LOC FINAL with new Themes'!A:M,10,0)","v":0},{"$f":"VLOOKUP(B66,'LOC FINAL with new Themes'!A:M,11,0)","v":0},{"$f":"VLOOKUP(B66,'LOC FINAL with new Themes'!A:M,12,0)","v":0},{"$f":"VLOOKUP(B66,'LOC FINAL with new Themes'!A:M,13,0)","v":0}]
[null,"Secondary School District (2010 Census)","Secondary School District (2010 Census)","Secondary School District (2010 Census)","Cultural & Demographic Statistics ","DOC-Census","Jennifer Holland","Jennifer.L.Holland@census.gov",null,{"$f":"VLOOKUP(B67,'LOC FINAL with new Themes'!A:M,7,0)","v":0},{"$f":"VLOOKUP(B67,'LOC FINAL with new Themes'!A:M,8,0)","v":0},{"$f":"VLOOKUP(B67,'LOC FINAL with new Themes'!A:M,9,0)","v":0},{"$f":"VLOOKUP(B67,'LOC FINAL with new Themes'!A:M,10,0)","v":0},{"$f":"VLOOKUP(B67,'LOC FINAL with new Themes'!A:M,11,0)","v":0},{"$f":"VLOOKUP(B67,'LOC FINAL with new Themes'!A:M,12,0)","v":0},{"$f":"VLOOKUP(B67,'LOC FINAL with new Themes'!A:M,13,0)","v":0}]
[null,"Secondary School District (Census 2000)","Secondary School District (Census 2000)","Secondary School District (Census 2000)","Cultural & Demographic Statistics ","DOC-Census","Jennifer Holland","Jennifer.L.Holland@census.gov",null,{"$f":"VLOOKUP(B68,'LOC FINAL with new Themes'!A:M,7,0)","v":0},{"$f":"VLOOKUP(B68,'LOC FINAL with new Themes'!A:M,8,0)","v":0},{"$f":"VLOOKUP(B68,'LOC FINAL with new Themes'!A:M,9,0)","v":0},{"$f":"VLOOKUP(B68,'LOC FINAL with new Themes'!A:M,10,0)","v":0},{"$f":"VLOOKUP(B68,'LOC FINAL with new Themes'!A:M,11,0)","v":0},{"$f":"VLOOKUP(B68,'LOC FINAL with new Themes'!A:M,12,0)","v":0},{"$f":"VLOOKUP(B68,'LOC FINAL with new Themes'!A:M,13,0)","v":0}]
["State (+ Territories) Boundaries","State (+ Territories) Boundaries",null,"State (+ Territories) Boundaries","Cultural & Demographic Statistics ","DOC-Census","Randy Fusaro","randy.j.fusaro@census.gov",null,{"$f":"VLOOKUP(B69,'LOC FINAL with new Themes'!A:M,7,0)","v":0},{"$f":"VLOOKUP(B69,'LOC FINAL with new Themes'!A:M,8,0)","v":0},{"$f":"VLOOKUP(B69,'LOC FINAL with new Themes'!A:M,9,0)","v":0},{"$f":"VLOOKUP(B69,'LOC FINAL with new Themes'!A:M,10,0)","v":0},{"$f":"VLOOKUP(B69,'LOC FINAL with new Themes'!A:M,11,0)","v":0},{"$f":"VLOOKUP(B69,'LOC FINAL with new Themes'!A:M,12,0)","v":0},{"$f":"VLOOKUP(B69,'LOC FINAL with new Themes'!A:M,13,0)","v":0}]
["Statistical Area Boundaries (tracts, blocks, UAs, CDPs, etc)","Statistical Area Boundaries (tracts, blocks, UAs, CDPs, etc)",null,"Statistical Area Boundaries (tracts, blocks, UAs, CDPs, etc)","Cultural & Demographic Statistics ","DOC-Census","Randy Fusaro","randy.j.fusaro@census.gov",null,{"$f":"VLOOKUP(B70,'LOC FINAL with new Themes'!A:M,7,0)","v":0},{"$f":"VLOOKUP(B70,'LOC FINAL with new Themes'!A:M,8,0)","v":0},{"$f":"VLOOKUP(B70,'LOC FINAL with new Themes'!A:M,9,0)","v":0},{"$f":"VLOOKUP(B70,'LOC FINAL with new Themes'!A:M,10,0)","v":0},{"$f":"VLOOKUP(B70,'LOC FINAL with new Themes'!A:M,11,0)","v":0},{"$f":"VLOOKUP(B70,'LOC FINAL with new Themes'!A:M,12,0)","v":0},{"$f":"VLOOKUP(B70,'LOC FINAL with new Themes'!A:M,13,0)","v":0}]
[null,"Super Public Use Microdata Area (Census 2000)","Super Public Use Microdata Area (Census 2000)","Super Public Use Microdata Area (Census 2000)","Cultural & Demographic Statistics ","DOC-Census","Jennifer Holland","Jennifer.L.Holland@census.gov",null,{"$f":"VLOOKUP(B71,'LOC FINAL with new Themes'!A:M,7,0)","v":0},{"$f":"VLOOKUP(B71,'LOC FINAL with new Themes'!A:M,8,0)","v":0},{"$f":"VLOOKUP(B71,'LOC FINAL with new Themes'!A:M,9,0)","v":0},{"$f":"VLOOKUP(B71,'LOC FINAL with new Themes'!A:M,10,0)","v":0},{"$f":"VLOOKUP(B71,'LOC FINAL with new Themes'!A:M,11,0)","v":0},{"$f":"VLOOKUP(B71,'LOC FINAL with new Themes'!A:M,12,0)","v":0},{"$f":"VLOOKUP(B71,'LOC FINAL with new Themes'!A:M,13,0)","v":0}]
["TIGER* (many statistical boundaries)","TIGER (many statistical boundaries)",null,"TIGER (many statistical boundaries)","Cultural & Demographic Statistics ","DOC-Census","Randy Fusaro","randy.j.fusaro@census.gov",null,{"$f":"VLOOKUP(B72,'LOC FINAL with new Themes'!A:M,7,0)","v":0},{"$f":"VLOOKUP(B72,'LOC FINAL with new Themes'!A:M,8,0)","v":0},{"$f":"VLOOKUP(B72,'LOC FINAL with new Themes'!A:M,9,0)","v":0},{"$f":"VLOOKUP(B72,'LOC FINAL with new Themes'!A:M,10,0)","v":0},{"$f":"VLOOKUP(B72,'LOC FINAL with new Themes'!A:M,11,0)","v":0},{"$f":"VLOOKUP(B72,'LOC FINAL with new Themes'!A:M,12,0)","v":0},{"$f":"VLOOKUP(B72,'LOC FINAL with new Themes'!A:M,13,0)","v":0}]
[null,"Topological Faces (2010 Census)","Topological Faces (2010 Census)","Topological Faces (2010 Census)","Cultural & Demographic Statistics ","DOC-Census","Jennifer Holland","Jennifer.L.Holland@census.gov",null,{"$f":"VLOOKUP(B73,'LOC FINAL with new Themes'!A:M,7,0)","v":0},{"$f":"VLOOKUP(B73,'LOC FINAL with new Themes'!A:M,8,0)","v":0},{"$f":"VLOOKUP(B73,'LOC FINAL with new Themes'!A:M,9,0)","v":0},{"$f":"VLOOKUP(B73,'LOC FINAL with new Themes'!A:M,10,0)","v":0},{"$f":"VLOOKUP(B73,'LOC FINAL with new Themes'!A:M,11,0)","v":0},{"$f":"VLOOKUP(B73,'LOC FINAL with new Themes'!A:M,12,0)","v":0},{"$f":"VLOOKUP(B73,'LOC FINAL with new Themes'!A:M,13,0)","v":0}]
[null,"Unified School District (2010 Census)","Unified School District (2010 Census)","Unified School District (2010 Census)","Cultural & Demographic Statistics ","DOC-Census","Jennifer Holland","Jennifer.L.Holland@census.gov",null,{"$f":"VLOOKUP(B74,'LOC FINAL with new Themes'!A:M,7,0)","v":0},{"$f":"VLOOKUP(B74,'LOC FINAL with new Themes'!A:M,8,0)","v":0},{"$f":"VLOOKUP(B74,'LOC FINAL with new Themes'!A:M,9,0)","v":0},{"$f":"VLOOKUP(B74,'LOC FINAL with new Themes'!A:M,10,0)","v":0},{"$f":"VLOOKUP(B74,'LOC FINAL with new Themes'!A:M,11,0)","v":0},{"$f":"VLOOKUP(B74,'LOC FINAL with new Themes'!A:M,12,0)","v":0},{"$f":"VLOOKUP(B74,'LOC FINAL with new Themes'!A:M,13,0)","v":0}]
[null,"Unified School District (Census 2000)","Unified School District (Census 2000)","Unified School District (Census 2000)","Cultural & Demographic Statistics ","DOC-Census","Jennifer Holland","Jennifer.L.Holland@census.gov",null,{"$f":"VLOOKUP(B75,'LOC FINAL with new Themes'!A:M,7,0)","v":0},{"$f":"VLOOKUP(B75,'LOC FINAL with new Themes'!A:M,8,0)","v":0},{"$f":"VLOOKUP(B75,'LOC FINAL with new Themes'!A:M,9,0)","v":0},{"$f":"VLOOKUP(B75,'LOC FINAL with new Themes'!A:M,10,0)","v":0},{"$f":"VLOOKUP(B75,'LOC FINAL with new Themes'!A:M,11,0)","v":0},{"$f":"VLOOKUP(B75,'LOC FINAL with new Themes'!A:M,12,0)","v":0},{"$f":"VLOOKUP(B75,'LOC FINAL with new Themes'!A:M,13,0)","v":0}]
[null,"Urban Growth Area (2010 Census)","Urban Growth Area (2010 Census)","Urban Growth Area (2010 Census)","Cultural & Demographic Statistics ","DOC-Census","Jennifer Holland","Jennifer.L.Holland@census.gov",null,{"$f":"VLOOKUP(B76,'LOC FINAL with new Themes'!A:M,7,0)","v":0},{"$f":"VLOOKUP(B76,'LOC FINAL with new Themes'!A:M,8,0)","v":0},{"$f":"VLOOKUP(B76,'LOC FINAL with new Themes'!A:M,9,0)","v":0},{"$f":"VLOOKUP(B76,'LOC FINAL with new Themes'!A:M,10,0)","v":0},{"$f":"VLOOKUP(B76,'LOC FINAL with new Themes'!A:M,11,0)","v":0},{"$f":"VLOOKUP(B76,'LOC FINAL with new Themes'!A:M,12,0)","v":0},{"$f":"VLOOKUP(B76,'LOC FINAL with new Themes'!A:M,13,0)","v":0}]
[null,"Urban Growth Area (Census 2000)","Urban Growth Area (Census 2000)","Urban Growth Area (Census 2000)","Cultural & Demographic Statistics ","DOC-Census","Jennifer Holland","Jennifer.L.Holland@census.gov",null,{"$f":"VLOOKUP(B77,'LOC FINAL with new Themes'!A:M,7,0)","v":0},{"$f":"VLOOKUP(B77,'LOC FINAL with new Themes'!A:M,8,0)","v":0},{"$f":"VLOOKUP(B77,'LOC FINAL with new Themes'!A:M,9,0)","v":0},{"$f":"VLOOKUP(B77,'LOC FINAL with new Themes'!A:M,10,0)","v":0},{"$f":"VLOOKUP(B77,'LOC FINAL with new Themes'!A:M,11,0)","v":0},{"$f":"VLOOKUP(B77,'LOC FINAL with new Themes'!A:M,12,0)","v":0},{"$f":"VLOOKUP(B77,'LOC FINAL with new Themes'!A:M,13,0)","v":0}]
[null,"Voting District (2010 Census)","Voting District (2010 Census)","Voting District (2010 Census)","Cultural & Demographic Statistics ","DOC-Census","Jennifer Holland","Jennifer.L.Holland@census.gov",null,{"$f":"VLOOKUP(B78,'LOC FINAL with new Themes'!A:M,7,0)","v":0},{"$f":"VLOOKUP(B78,'LOC FINAL with new Themes'!A:M,8,0)","v":0},{"$f":"VLOOKUP(B78,'LOC FINAL with new Themes'!A:M,9,0)","v":0},{"$f":"VLOOKUP(B78,'LOC FINAL with new Themes'!A:M,10,0)","v":0},{"$f":"VLOOKUP(B78,'LOC FINAL with new Themes'!A:M,11,0)","v":0},{"$f":"VLOOKUP(B78,'LOC FINAL with new Themes'!A:M,12,0)","v":0},{"$f":"VLOOKUP(B78,'LOC FINAL with new Themes'!A:M,13,0)","v":0}]
[null,"Voting District (Census 2000)","Voting District (Census 2000)","Voting District (Census 2000)","Cultural & Demographic Statistics ","DOC-Census","Jennifer Holland","Jennifer.L.Holland@census.gov",null,{"$f":"VLOOKUP(B79,'LOC FINAL with new Themes'!A:M,7,0)","v":0},{"$f":"VLOOKUP(B79,'LOC FINAL with new Themes'!A:M,8,0)","v":0},{"$f":"VLOOKUP(B79,'LOC FINAL with new Themes'!A:M,9,0)","v":0},{"$f":"VLOOKUP(B79,'LOC FINAL with new Themes'!A:M,10,0)","v":0},{"$f":"VLOOKUP(B79,'LOC FINAL with new Themes'!A:M,11,0)","v":0},{"$f":"VLOOKUP(B79,'LOC FINAL with new Themes'!A:M,12,0)","v":0},{"$f":"VLOOKUP(B79,'LOC FINAL with new Themes'!A:M,13,0)","v":0}]
["Voting District Boundaries","Voting District Boundaries",null,"Voting District Boundaries","Cultural & Demographic Statistics ","DOC-Census","Randy Fusaro","randy.j.fusaro@census.gov",null,{"$f":"VLOOKUP(B80,'LOC FINAL with new Themes'!A:M,7,0)","v":0},{"$f":"VLOOKUP(B80,'LOC FINAL with new Themes'!A:M,8,0)","v":0},{"$f":"VLOOKUP(B80,'LOC FINAL with new Themes'!A:M,9,0)","v":0},{"$f":"VLOOKUP(B80,'LOC FINAL with new Themes'!A:M,10,0)","v":0},{"$f":"VLOOKUP(B80,'LOC FINAL with new Themes'!A:M,11,0)","v":0},{"$f":"VLOOKUP(B80,'LOC FINAL with new Themes'!A:M,12,0)","v":0},{"$f":"VLOOKUP(B80,'LOC FINAL with new Themes'!A:M,13,0)","v":0}]
[null,null,null,{"$f":"SUBTOTAL(3,D40:D80)","v":41},"Cultural & Demographic Statistics  Count"]
["Cultural Landscape Boundaries","Cultural Landscape Boundaries","Cultural Landscape Boundaries",{"$f":"IF(C82=0,B82,C82)","v":"Cultural Landscape Boundaries"},"Cultural & Demographic Statistics \nCultural Resources","DOI-NPS","John Knoerl","john_knoerl@nps.gov",null,{"$f":"VLOOKUP(B82,'LOC FINAL with new Themes'!A:M,7,0)","v":"Feature classes of the cultural resource data model (NPS only, other federal agencies handle it as they decide)"},{"$f":"VLOOKUP(B82,'LOC FINAL with new Themes'!A:M,8,0)","v":"don't want a single centralized data set but focusing on standard approach"},{"$f":"VLOOKUP(B82,'LOC FINAL with new Themes'!A:M,9,0)","v":0},{"$f":"VLOOKUP(B82,'LOC FINAL with new Themes'!A:M,10,0)","v":0},{"$f":"VLOOKUP(B82,'LOC FINAL with new Themes'!A:M,11,0)","v":0},{"$f":"VLOOKUP(B82,'LOC FINAL with new Themes'!A:M,12,0)","v":0},{"$f":"VLOOKUP(B82,'LOC FINAL with new Themes'!A:M,13,0)","v":0}]
["Cultural Resource Survey Boundaries","Cultural Resource Survey Boundaries","Cultural Resource Survey Boundaries","Cultural Resource Survey Boundaries","Cultural & Demographic Statistics \nCultural Resources","DOI-NPS","John Knoerl","john_knoerl@nps.gov",null,{"$f":"VLOOKUP(B83,'LOC FINAL with new Themes'!A:M,7,0)","v":"Feature classes of the cultural resource data model (NPS only, other federal agencies handle it as they decide)"},{"$f":"VLOOKUP(B83,'LOC FINAL with new Themes'!A:M,8,0)","v":"don't want a single centralized data set but focusing on standard approach"},{"$f":"VLOOKUP(B83,'LOC FINAL with new Themes'!A:M,9,0)","v":0},{"$f":"VLOOKUP(B83,'LOC FINAL with new Themes'!A:M,10,0)","v":0},{"$f":"VLOOKUP(B83,'LOC FINAL with new Themes'!A:M,11,0)","v":0},{"$f":"VLOOKUP(B83,'LOC FINAL with new Themes'!A:M,12,0)","v":0},{"$f":"VLOOKUP(B83,'LOC FINAL with new Themes'!A:M,13,0)","v":0}]
["Ethnographic Resource Boundaries","Ethnographic Resource Boundaries","Ethnographic Resource Boundaries","Ethnographic Resource Boundaries","Cultural & Demographic Statistics \nCultural Resources","DOI-NPS","John Knoerl","john_knoerl@nps.gov",null,{"$f":"VLOOKUP(B84,'LOC FINAL with new Themes'!A:M,7,0)","v":"Feature classes of the cultural resource data model (NPS only, other federal agencies handle it as they decide)"},{"$f":"VLOOKUP(B84,'LOC FINAL with new Themes'!A:M,8,0)","v":"don't want a single centralized data set but focusing on standard approach"},{"$f":"VLOOKUP(B84,'LOC FINAL with new Themes'!A:M,9,0)","v":0},{"$f":"VLOOKUP(B84,'LOC FINAL with new Themes'!A:M,10,0)","v":0},{"$f":"VLOOKUP(B84,'LOC FINAL with new Themes'!A:M,11,0)","v":0},{"$f":"VLOOKUP(B84,'LOC FINAL with new Themes'!A:M,12,0)","v":0},{"$f":"VLOOKUP(B84,'LOC FINAL with new Themes'!A:M,13,0)","v":0}]
["Historic Buildings Boundaries","Historic Buildings Boundaries","Historic Buildings Boundaries","Historic Buildings Boundaries","Cultural & Demographic Statistics \nCultural Resources","DOI-NPS","John Knoerl","john_knoerl@nps.gov",null,{"$f":"VLOOKUP(B85,'LOC FINAL with new Themes'!A:M,7,0)","v":"Feature classes of the cultural resource data model (NPS only, other federal agencies handle it as they decide)"},{"$f":"VLOOKUP(B85,'LOC FINAL with new Themes'!A:M,8,0)","v":"don't want a single centralized data set but focusing on standard approach"},{"$f":"VLOOKUP(B85,'LOC FINAL with new Themes'!A:M,9,0)","v":0},{"$f":"VLOOKUP(B85,'LOC FINAL with new Themes'!A:M,10,0)","v":0},{"$f":"VLOOKUP(B85,'LOC FINAL with new Themes'!A:M,11,0)","v":0},{"$f":"VLOOKUP(B85,'LOC FINAL with new Themes'!A:M,12,0)","v":0},{"$f":"VLOOKUP(B85,'LOC FINAL with new Themes'!A:M,13,0)","v":0}]
["Historic Districts Boundaries","Historic Districts Boundaries","Historic Districts Boundaries","Historic Districts Boundaries","Cultural & Demographic Statistics \nCultural Resources","DOI-NPS","John Knoerl","john_knoerl@nps.gov",null,{"$f":"VLOOKUP(B86,'LOC FINAL with new Themes'!A:M,7,0)","v":"Feature classes of the cultural resource data model (NPS only, other federal agencies handle it as they decide)"},{"$f":"VLOOKUP(B86,'LOC FINAL with new Themes'!A:M,8,0)","v":"don't want a single centralized data set but focusing on standard approach"},{"$f":"VLOOKUP(B86,'LOC FINAL with new Themes'!A:M,9,0)","v":0},{"$f":"VLOOKUP(B86,'LOC FINAL with new Themes'!A:M,10,0)","v":0},{"$f":"VLOOKUP(B86,'LOC FINAL with new Themes'!A:M,11,0)","v":0},{"$f":"VLOOKUP(B86,'LOC FINAL with new Themes'!A:M,12,0)","v":0},{"$f":"VLOOKUP(B86,'LOC FINAL with new Themes'!A:M,13,0)","v":0}]
["Historic Objects Boundaries","Historic Objects Boundaries","Historic Objects Boundaries","Historic Objects Boundaries","Cultural & Demographic Statistics \nCultural Resources","DOI-NPS","John Knoerl","john_knoerl@nps.gov",null,{"$f":"VLOOKUP(B87,'LOC FINAL with new Themes'!A:M,7,0)","v":"Feature classes of the cultural resource data model (NPS only, other federal agencies handle it as they decide)"},{"$f":"VLOOKUP(B87,'LOC FINAL with new Themes'!A:M,8,0)","v":"don't want a single centralized data set but focusing on standard approach"},{"$f":"VLOOKUP(B87,'LOC FINAL with new Themes'!A:M,9,0)","v":0},{"$f":"VLOOKUP(B87,'LOC FINAL with new Themes'!A:M,10,0)","v":0},{"$f":"VLOOKUP(B87,'LOC FINAL with new Themes'!A:M,11,0)","v":0},{"$f":"VLOOKUP(B87,'LOC FINAL with new Themes'!A:M,12,0)","v":0},{"$f":"VLOOKUP(B87,'LOC FINAL with new Themes'!A:M,13,0)","v":0}]
["Historic Structures Boundaries","Historic Structures Boundaries","Historic Structures Boundaries","Historic Structures Boundaries","Cultural & Demographic Statistics \nCultural Resources","DOI-NPS","John Knoerl","john_knoerl@nps.gov",null,{"$f":"VLOOKUP(B88,'LOC FINAL with new Themes'!A:M,7,0)","v":"Feature classes of the cultural resource data model (NPS only, other federal agencies handle it as they decide)"},{"$f":"VLOOKUP(B88,'LOC FINAL with new Themes'!A:M,8,0)","v":"don't want a single centralized data set but focusing on standard approach"},{"$f":"VLOOKUP(B88,'LOC FINAL with new Themes'!A:M,9,0)","v":0},{"$f":"VLOOKUP(B88,'LOC FINAL with new Themes'!A:M,10,0)","v":0},{"$f":"VLOOKUP(B88,'LOC FINAL with new Themes'!A:M,11,0)","v":0},{"$f":"VLOOKUP(B88,'LOC FINAL with new Themes'!A:M,12,0)","v":0},{"$f":"VLOOKUP(B88,'LOC FINAL with new Themes'!A:M,13,0)","v":"M "}]
[null,null,"Other Cultural Resource Boundaries","Other Cultural Resource Boundaries","Cultural & Demographic Statistics \nCultural Resources","DOI-NPS"]
[null,null,null,{"$f":"SUBTOTAL(3,D82:D89)","v":8},"Cultural & Demographic Statistics \nCultural Resources Count"]
[null,"Point Landmark (2010 Census)","Point of Landmark (2010 Census)",{"$f":"IF(C91=0,B91,C91)","v":"Point of Landmark (2010 Census)"},"Cultural Resources","DOC-Census","Jennifer Holland","Jennifer.L.Holland@census.gov",null,{"$f":"VLOOKUP(B91,'LOC FINAL with new Themes'!A:M,7,0)","v":0},{"$f":"VLOOKUP(B91,'LOC FINAL with new Themes'!A:M,8,0)","v":0},{"$f":"VLOOKUP(B91,'LOC FINAL with new Themes'!A:M,9,0)","v":0},{"$f":"VLOOKUP(B91,'LOC FINAL with new Themes'!A:M,10,0)","v":0},{"$f":"VLOOKUP(B91,'LOC FINAL with new Themes'!A:M,11,0)","v":0},{"$f":"VLOOKUP(B91,'LOC FINAL with new Themes'!A:M,12,0)","v":0},{"$f":"VLOOKUP(B91,'LOC FINAL with new Themes'!A:M,13,0)","v":0}]
["Archeological Sites","Archeological Sites","Archeological Sites","Archeological Sites","Cultural Resources ","DOI-NPS","John Knoerl","john_knoerl@nps.gov",null,{"$f":"VLOOKUP(B92,'LOC FINAL with new Themes'!A:M,7,0)","v":"Feature classes of the cultural resource data model (NPS only, other federal agencies handle it as they decide)"},{"$f":"VLOOKUP(B92,'LOC FINAL with new Themes'!A:M,8,0)","v":"don't want a single centralized data set but focusing on standard approach"},{"$f":"VLOOKUP(B92,'LOC FINAL with new Themes'!A:M,9,0)","v":"National Historic Presrevation Act says state historic preservation office has primary oversight (section 110)"},{"$f":"VLOOKUP(B92,'LOC FINAL with new Themes'!A:M,10,0)","v":0},{"$f":"VLOOKUP(B92,'LOC FINAL with new Themes'!A:M,11,0)","v":0},{"$f":"VLOOKUP(B92,'LOC FINAL with new Themes'!A:M,12,0)","v":0},{"$f":"VLOOKUP(B92,'LOC FINAL with new Themes'!A:M,13,0)","v":0}]
[null,"Area Landmark (2010 Census)","Area Landmark (2010 Census)","Area Landmark (2010 Census)","Cultural Resources ","DOC-Census","Jennifer Holland","Jennifer.L.Holland@census.gov",null,{"$f":"VLOOKUP(B93,'LOC FINAL with new Themes'!A:M,7,0)","v":0},{"$f":"VLOOKUP(B93,'LOC FINAL with new Themes'!A:M,8,0)","v":0},{"$f":"VLOOKUP(B93,'LOC FINAL with new Themes'!A:M,9,0)","v":0},{"$f":"VLOOKUP(B93,'LOC FINAL with new Themes'!A:M,10,0)","v":0},{"$f":"VLOOKUP(B93,'LOC FINAL with new Themes'!A:M,11,0)","v":0},{"$f":"VLOOKUP(B93,'LOC FINAL with new Themes'!A:M,12,0)","v":0},{"$f":"VLOOKUP(B93,'LOC FINAL with new Themes'!A:M,13,0)","v":0}]
[null,null,"Geographic Names Dataset - National Map","Geographic Names Dataset - National Map","Cultural Resources ","DOI-USGS"]
["National Map - Geographic Names Information System (GNIS)","National Map - Geographic Names Information System (GNIS)",null,"National Map - Geographic Names Information System (GNIS)","Cultural Resources ","DOI-USGS","Lou Yost","lyost@usgs.gov",null,{"$f":"VLOOKUP(B95,'LOC FINAL with new Themes'!A:M,7,0)","v":"single data set; poc, data managers; daily updated; Denver systems people backup and archive; transfer to NARA also; Gaz vector (internal)"},{"$f":"VLOOKUP(B95,'LOC FINAL with new Themes'!A:M,8,0)","v":0},{"$f":"VLOOKUP(B95,'LOC FINAL with new Themes'!A:M,9,0)","v":0},{"$f":"VLOOKUP(B95,'LOC FINAL with new Themes'!A:M,10,0)","v":0},{"$f":"VLOOKUP(B95,'LOC FINAL with new Themes'!A:M,11,0)","v":0},{"$f":"VLOOKUP(B95,'LOC FINAL with new Themes'!A:M,12,0)","v":0},{"$f":"VLOOKUP(B95,'LOC FINAL with new Themes'!A:M,13,0)","v":"S"}]
[null,"Topological Faces-Area Landmark Relationship File","Topological Faces-Area Landmark Relationship File","Topological Faces-Area Landmark Relationship File","Cultural Resources ","DOC-Census","Jennifer Holland","Jennifer.L.Holland@census.gov",null,{"$f":"VLOOKUP(B96,'LOC FINAL with new Themes'!A:M,7,0)","v":0},{"$f":"VLOOKUP(B96,'LOC FINAL with new Themes'!A:M,8,0)","v":0},{"$f":"VLOOKUP(B96,'LOC FINAL with new Themes'!A:M,9,0)","v":0},{"$f":"VLOOKUP(B96,'LOC FINAL with new Themes'!A:M,10,0)","v":0},{"$f":"VLOOKUP(B96,'LOC FINAL with new Themes'!A:M,11,0)","v":0},{"$f":"VLOOKUP(B96,'LOC FINAL with new Themes'!A:M,12,0)","v":0},{"$f":"VLOOKUP(B96,'LOC FINAL with new Themes'!A:M,13,0)","v":0}]
[null,null,null,{"$f":"SUBTOTAL(3,D91:D96)","v":6},"Cultural Resources Count"]
["133 UA Elevation Data (lidar)","133 UA Elevation Data (lidar)",null,{"$f":"IF(C98=0,B98,C98)","v":"133 UA Elevation Data (lidar)"},"Elevation","DOD-NGA","Ron Power, NGA","ronald.k.power@nga.mil",null,{"$f":"VLOOKUP(B98,'LOC FINAL with new Themes'!A:M,7,0)","v":0},{"$f":"VLOOKUP(B98,'LOC FINAL with new Themes'!A:M,8,0)","v":0},{"$f":"VLOOKUP(B98,'LOC FINAL with new Themes'!A:M,9,0)","v":0},{"$f":"VLOOKUP(B98,'LOC FINAL with new Themes'!A:M,10,0)","v":0},{"$f":"VLOOKUP(B98,'LOC FINAL with new Themes'!A:M,11,0)","v":0},{"$f":"VLOOKUP(B98,'LOC FINAL with new Themes'!A:M,12,0)","v":0},{"$f":"VLOOKUP(B98,'LOC FINAL with new Themes'!A:M,13,0)","v":0}]
["DEMs - Archive","DEMs - Archive",null,"DEMs - Archive","Elevation","DOI-USGS","Gayla Evans","gevans@usgs.gov",null,{"$f":"VLOOKUP(B99,'LOC FINAL with new Themes'!A:M,7,0)","v":"DEMS update at variable nature; are four data sets based on resolution; this is the POC and data manager; this is the name and maintain three complete with two physically separate on-site and one off-site"},{"$f":"VLOOKUP(B99,'LOC FINAL with new Themes'!A:M,8,0)","v":0},{"$f":"VLOOKUP(B99,'LOC FINAL with new Themes'!A:M,9,0)","v":0},{"$f":"VLOOKUP(B99,'LOC FINAL with new Themes'!A:M,10,0)","v":0},{"$f":"VLOOKUP(B99,'LOC FINAL with new Themes'!A:M,11,0)","v":0},{"$f":"VLOOKUP(B99,'LOC FINAL with new Themes'!A:M,12,0)","v":0},{"$f":"VLOOKUP(B99,'LOC FINAL with new Themes'!A:M,13,0)","v":"S"}]
["GTOPO30","GTOPO30",null,"GTOPO30","Elevation","DOI-USGS","Jeff Danielson"," daniels@usgs.gov",null,{"$f":"VLOOKUP(B100,'LOC FINAL with new Themes'!A:M,7,0)","v":"GTOPO30 is static; one data set; this is the POC and data manager; this is the name and maintain three complete with two physically separate on-site and one off-site"},{"$f":"VLOOKUP(B100,'LOC FINAL with new Themes'!A:M,8,0)","v":0},{"$f":"VLOOKUP(B100,'LOC FINAL with new Themes'!A:M,9,0)","v":0},{"$f":"VLOOKUP(B100,'LOC FINAL with new Themes'!A:M,10,0)","v":0},{"$f":"VLOOKUP(B100,'LOC FINAL with new Themes'!A:M,11,0)","v":0},{"$f":"VLOOKUP(B100,'LOC FINAL with new Themes'!A:M,12,0)","v":0},{"$f":"VLOOKUP(B100,'LOC FINAL with new Themes'!A:M,13,0)","v":0}]
["National Map National Elevation Data Set (NED)","National Map  - National Elevation Dataset (NED)",null,"National Map  - National Elevation Dataset (NED)","Elevation","DOI-USGS","Jim Mauck","lyost@usgs.gov",null,{"$f":"VLOOKUP(B101,'LOC FINAL with new Themes'!A:M,7,0)","v":0},{"$f":"VLOOKUP(B101,'LOC FINAL with new Themes'!A:M,8,0)","v":0},{"$f":"VLOOKUP(B101,'LOC FINAL with new Themes'!A:M,9,0)","v":0},{"$f":"VLOOKUP(B101,'LOC FINAL with new Themes'!A:M,10,0)","v":0},{"$f":"VLOOKUP(B101,'LOC FINAL with new Themes'!A:M,11,0)","v":0},{"$f":"VLOOKUP(B101,'LOC FINAL with new Themes'!A:M,12,0)","v":0},{"$f":"VLOOKUP(B101,'LOC FINAL with new Themes'!A:M,13,0)","v":0}]
["SRTM (3-arc second DTEDS)","SRTM (3-arc second DTEDS)",null,"SRTM (3-arc second DTEDS)","Elevation","DOI-USGS","Dean Gesch, USGS","gesch@usgs.gov",null,{"$f":"VLOOKUP(B102,'LOC FINAL with new Themes'!A:M,7,0)","v":"SRTM is static; one data set; this is the POC and data manager; this is the name and maintain three complete with two physically separate on-site and one off-site"},{"$f":"VLOOKUP(B102,'LOC FINAL with new Themes'!A:M,8,0)","v":0},{"$f":"VLOOKUP(B102,'LOC FINAL with new Themes'!A:M,9,0)","v":0},{"$f":"VLOOKUP(B102,'LOC FINAL with new Themes'!A:M,10,0)","v":0},{"$f":"VLOOKUP(B102,'LOC FINAL with new Themes'!A:M,11,0)","v":0},{"$f":"VLOOKUP(B102,'LOC FINAL with new Themes'!A:M,12,0)","v":0},{"$f":"VLOOKUP(B102,'LOC FINAL with new Themes'!A:M,13,0)","v":"S"}]
["Digital Flood Insurance Rate Maps (D-FIRM)","Digital Flood Insurance Rate Maps (D-FIRM)","Digital Flood Insurance Rate Maps (DFIRM)","Digital Flood Insurance Rate Maps (DFIRM)","Elevation ","DHS-FEMA","Scott McAfee","scott.mcaffee@dhs.gov",null,{"$f":"VLOOKUP(B103,'LOC FINAL with new Themes'!A:M,7,0)","v":0},{"$f":"VLOOKUP(B103,'LOC FINAL with new Themes'!A:M,8,0)","v":0},{"$f":"VLOOKUP(B103,'LOC FINAL with new Themes'!A:M,9,0)","v":0},{"$f":"VLOOKUP(B103,'LOC FINAL with new Themes'!A:M,10,0)","v":0},{"$f":"VLOOKUP(B103,'LOC FINAL with new Themes'!A:M,11,0)","v":0},{"$f":"VLOOKUP(B103,'LOC FINAL with new Themes'!A:M,12,0)","v":0},{"$f":"VLOOKUP(B103,'LOC FINAL with new Themes'!A:M,13,0)","v":0}]
[null,null,"Elevation Bathymetric - Ocean, Coastal, and Great Lakes Bathymetry ","Elevation Bathymetric - Ocean, Coastal, and Great Lakes Bathymetry ","Elevation ","DOC-NOAA","Anne Ball","anne.ball@noaa.gov","843-740-1229"]
[null,null,"National Elevation Dataset  - National Map","National Elevation Dataset  - National Map","Elevation ","DOI-USGS"]
["National Flood Hazard Layer (NFHL)","National Flood Hazard Layer (NFHL)","National Flood Hazard Layer (NFHL)","National Flood Hazard Layer (NFHL)","Elevation ","DHS-FEMA","Scott McAfee","scott.mcaffee@dhs.gov",null,{"$f":"VLOOKUP(B106,'LOC FINAL with new Themes'!A:M,7,0)","v":0},{"$f":"VLOOKUP(B106,'LOC FINAL with new Themes'!A:M,8,0)","v":0},{"$f":"VLOOKUP(B106,'LOC FINAL with new Themes'!A:M,9,0)","v":0},{"$f":"VLOOKUP(B106,'LOC FINAL with new Themes'!A:M,10,0)","v":0},{"$f":"VLOOKUP(B106,'LOC FINAL with new Themes'!A:M,11,0)","v":0},{"$f":"VLOOKUP(B106,'LOC FINAL with new Themes'!A:M,12,0)","v":0},{"$f":"VLOOKUP(B106,'LOC FINAL with new Themes'!A:M,13,0)","v":0}]
[null,null,null,{"$f":"SUBTOTAL(3,D98:D106)","v":9},"Elevation Count"]
[null,null,"Airborne Gravity",{"$f":"IF(C108=0,B108,C108)","v":"Airborne Gravity"},"Geodetic Control ","DOC-NOAA","Dr. Theresa Diehl","theresa.diehl@noaa.gov"]
[null,null,"Terrestrial Gravity",{"$f":"IF(C109=0,B109,C109)","v":"Terrestrial Gravity"},"Geodetic Control ","DOC-NOAA","Bill Waickman ","bill.waickman@noaa.gov"]
[null,null,"Continuously Operating Reference Stations (CORS)","Continuously Operating Reference Stations (CORS)","Geodetic Control ","DOC-NOAA","Dr. Giovanni Sella","giovanni.sella@noaa.gov"]
[null,null,"Geoid Models","Geoid Models","Geodetic Control ","DOC-NOAA","Dr. Dan Roman","dan.roman@noaa.gov"]
["National Geologic Data Base","National Geologic Data Base","National Geodetic Survey (NGS) Datasheets","National Geodetic Survey (NGS) Datasheets","Geodetic Control ","DOC-NOAA","Jim Tomlin","jim.tomlin@noaa.gov",null,{"$f":"VLOOKUP(B112,'LOC FINAL with new Themes'!A:M,7,0)","v":0},{"$f":"VLOOKUP(B112,'LOC FINAL with new Themes'!A:M,8,0)","v":0},{"$f":"VLOOKUP(B112,'LOC FINAL with new Themes'!A:M,9,0)","v":0},{"$f":"VLOOKUP(B112,'LOC FINAL with new Themes'!A:M,10,0)","v":0},{"$f":"VLOOKUP(B112,'LOC FINAL with new Themes'!A:M,11,0)","v":0},{"$f":"VLOOKUP(B112,'LOC FINAL with new Themes'!A:M,12,0)","v":0},{"$f":"VLOOKUP(B112,'LOC FINAL with new Themes'!A:M,13,0)","v":0}]
[null,null,"Precise Global Navigation Satellite System (GNSS) Orbits",{"$f":"IF(C113=0,#REF!,C113)","v":"Precise Global Navigation Satellite System (GNSS) Orbits"},"Geodetic Control ","DOC-NOAA","Dr. Jake Griffiths","jake.griffiths@noaa.gov"]
[null,null,null,{"$f":"SUBTOTAL(3,D108:D113)","v":6},"Geodetic Control  Count"]
[null,null,"Coal assessment and mapping",{"$f":"IF(C115=0,B115,C115)","v":"Coal assessment and mapping"},"Geology","DOI-USGS"]
["Coastline Data","Coastline Data","Coastline Data","Coastline Data","Geology","DOI-BOEM","Doug Vandegraft","Doug.Vandegraft@boem.gov",null,{"$f":"VLOOKUP(B116,'LOC FINAL with new Themes'!A:M,7,0)","v":"undeliverable email- neeed to identify new contact"},{"$f":"VLOOKUP(B116,'LOC FINAL with new Themes'!A:M,8,0)","v":0},{"$f":"VLOOKUP(B116,'LOC FINAL with new Themes'!A:M,9,0)","v":0},{"$f":"VLOOKUP(B116,'LOC FINAL with new Themes'!A:M,10,0)","v":0},{"$f":"VLOOKUP(B116,'LOC FINAL with new Themes'!A:M,11,0)","v":0},{"$f":"VLOOKUP(B116,'LOC FINAL with new Themes'!A:M,12,0)","v":0},{"$f":"VLOOKUP(B116,'LOC FINAL with new Themes'!A:M,13,0)","v":0}]
[null,null,"Earthquake monitoring, research, and mapping","Earthquake monitoring, research, and mapping","Geology","DOI-USGS"]
[null,null,"Geochemistry","Geochemistry","Geology","DOI-USGS"]
[null,null,"Geochronology","Geochronology","Geology","DOI-USGS"]
[null,null,"Geologic mapping","Geologic mapping","Geology","DOI-USGS"]
[null,null,"Geomagnetism","Geomagnetism","Geology","DOI-USGS"]
[null,null,"Geophysics","Geophysics","Geology","DOI-USGS"]
[null,null,"Landslide monitoring, research, and mapping","Landslide monitoring, research, and mapping","Geology","DOI-USGS"]
[null,null,"Marine geology","Marine geology","Geology","DOI-USGS"]
[null,null,"Metallic mineral assessment and mapping","Metallic mineral assessment and mapping","Geology","DOI-USGS"]
[null,null,"BOEM Baseline","BOEM Baseline","Geology","DOI-BOEM","Doug Vandegraft","Doug.Vandegraft@boem.gov"]
[null,null,"Non-metallic mineral assessment and mapping, onshore",{"$f":"IF(C127=0,B126,C127)","v":"Non-metallic mineral assessment and mapping, onshore"},"Geology","DOI-USGS"]
[null,null,"Oil and gas assessment and mapping, onshore",{"$f":"IF(C128=0,B128,C128)","v":"Oil and gas assessment and mapping, onshore"},"Geology","DOI-USGS"]
[null,null,"Paleontology","Paleontology","Geology","DOI-USGS"]
[null,null,"Sand and Gravel","Sand and Gravel","Geology","DOI-BOEM","Doug Vandegraft","Doug.Vandegraft@boem.gov"]
[null,null,"Volcano monitoring, research, and mapping","Volcano monitoring, research, and mapping","Geology","DOI-USGS"]
[null,null,"Wells","Wells","Geology","DOI-BOEM","Doug Vandegraft","Doug.Vandegraft@boem.gov"]
[null,null,null,{"$f":"SUBTOTAL(3,D115:D132)","v":18},"Geology Count"]
["County Boundaries","County Boundaries",null,{"$f":"IF(C134=0,B134,C134)","v":"County Boundaries"},"Governmental Units",{"$nulls":4},{"$f":"VLOOKUP(B134,'LOC FINAL with new Themes'!A:M,7,0)","v":0},{"$f":"VLOOKUP(B134,'LOC FINAL with new Themes'!A:M,8,0)","v":0},{"$f":"VLOOKUP(B134,'LOC FINAL with new Themes'!A:M,9,0)","v":0},{"$f":"VLOOKUP(B134,'LOC FINAL with new Themes'!A:M,10,0)","v":0},{"$f":"VLOOKUP(B134,'LOC FINAL with new Themes'!A:M,11,0)","v":0},{"$f":"VLOOKUP(B134,'LOC FINAL with new Themes'!A:M,12,0)","v":0},{"$f":"VLOOKUP(B134,'LOC FINAL with new Themes'!A:M,13,0)","v":0}]
[null,"Place and MCD Boundaries",null,"Place and MCD Boundaries","Governmental Units",{"$nulls":4},{"$f":"VLOOKUP(B135,'LOC FINAL with new Themes'!A:M,7,0)","v":0},{"$f":"VLOOKUP(B135,'LOC FINAL with new Themes'!A:M,8,0)","v":0},{"$f":"VLOOKUP(B135,'LOC FINAL with new Themes'!A:M,9,0)","v":0},{"$f":"VLOOKUP(B135,'LOC FINAL with new Themes'!A:M,10,0)","v":0},{"$f":"VLOOKUP(B135,'LOC FINAL with new Themes'!A:M,11,0)","v":0},{"$f":"VLOOKUP(B135,'LOC FINAL with new Themes'!A:M,12,0)","v":0},{"$f":"VLOOKUP(B135,'LOC FINAL with new Themes'!A:M,13,0)","v":0}]
[null,"Alaska Native Regional Corporation (2010 Census)","Alaska Native Regional Corporation (2010 Census)","Alaska Native Regional Corporation (2010 Census)","Governmental Units ","DOC-Census","Jennifer Holland","Jennifer.L.Holland@census.gov",null,{"$f":"VLOOKUP(B136,'LOC FINAL with new Themes'!A:M,7,0)","v":0},{"$f":"VLOOKUP(B136,'LOC FINAL with new Themes'!A:M,8,0)","v":0},{"$f":"VLOOKUP(B136,'LOC FINAL with new Themes'!A:M,9,0)","v":0},{"$f":"VLOOKUP(B136,'LOC FINAL with new Themes'!A:M,10,0)","v":0},{"$f":"VLOOKUP(B136,'LOC FINAL with new Themes'!A:M,11,0)","v":0},{"$f":"VLOOKUP(B136,'LOC FINAL with new Themes'!A:M,12,0)","v":0},{"$f":"VLOOKUP(B136,'LOC FINAL with new Themes'!A:M,13,0)","v":0}]
[null,"Alaska Native Regional Corporation (Census 2000)","Alaska Native Regional Corporation (Census 2000)","Alaska Native Regional Corporation (Census 2000)","Governmental Units ","DOC-Census","Jennifer Holland","Jennifer.L.Holland@census.gov",null,{"$f":"VLOOKUP(B137,'LOC FINAL with new Themes'!A:M,7,0)","v":0},{"$f":"VLOOKUP(B137,'LOC FINAL with new Themes'!A:M,8,0)","v":0},{"$f":"VLOOKUP(B137,'LOC FINAL with new Themes'!A:M,9,0)","v":0},{"$f":"VLOOKUP(B137,'LOC FINAL with new Themes'!A:M,10,0)","v":0},{"$f":"VLOOKUP(B137,'LOC FINAL with new Themes'!A:M,11,0)","v":0},{"$f":"VLOOKUP(B137,'LOC FINAL with new Themes'!A:M,12,0)","v":0},{"$f":"VLOOKUP(B137,'LOC FINAL with new Themes'!A:M,13,0)","v":0}]
[null,"American Indian Tribal Subdivision (2010 Census)","American Indian Tribal Subdivision (2010 Census)","American Indian Tribal Subdivision (2010 Census)","Governmental Units ","DOC-Census","Jennifer Holland","Jennifer.L.Holland@census.gov",null,{"$f":"VLOOKUP(B138,'LOC FINAL with new Themes'!A:M,7,0)","v":0},{"$f":"VLOOKUP(B138,'LOC FINAL with new Themes'!A:M,8,0)","v":0},{"$f":"VLOOKUP(B138,'LOC FINAL with new Themes'!A:M,9,0)","v":0},{"$f":"VLOOKUP(B138,'LOC FINAL with new Themes'!A:M,10,0)","v":0},{"$f":"VLOOKUP(B138,'LOC FINAL with new Themes'!A:M,11,0)","v":0},{"$f":"VLOOKUP(B138,'LOC FINAL with new Themes'!A:M,12,0)","v":0},{"$f":"VLOOKUP(B138,'LOC FINAL with new Themes'!A:M,13,0)","v":0}]
[null,"American Indian Tribal Subdivision (Census 2000)","American Indian Tribal Subdivision (Census 2000)","American Indian Tribal Subdivision (Census 2000)","Governmental Units ","DOC-Census","Jennifer Holland","Jennifer.L.Holland@census.gov",null,{"$f":"VLOOKUP(B139,'LOC FINAL with new Themes'!A:M,7,0)","v":0},{"$f":"VLOOKUP(B139,'LOC FINAL with new Themes'!A:M,8,0)","v":0},{"$f":"VLOOKUP(B139,'LOC FINAL with new Themes'!A:M,9,0)","v":0},{"$f":"VLOOKUP(B139,'LOC FINAL with new Themes'!A:M,10,0)","v":0},{"$f":"VLOOKUP(B139,'LOC FINAL with new Themes'!A:M,11,0)","v":0},{"$f":"VLOOKUP(B139,'LOC FINAL with new Themes'!A:M,12,0)","v":0},{"$f":"VLOOKUP(B139,'LOC FINAL with new Themes'!A:M,13,0)","v":0}]
[null,"American Indian/Alaska Native/Native Hawaiian Area (2000 Census)","American Indian/Alaska Native/Native Hawaiian Area (2000 Census)","American Indian/Alaska Native/Native Hawaiian Area (2000 Census)","Governmental Units ","DOC-Census","Jennifer Holland","Jennifer.L.Holland@census.gov",null,{"$f":"VLOOKUP(B140,'LOC FINAL with new Themes'!A:M,7,0)","v":0},{"$f":"VLOOKUP(B140,'LOC FINAL with new Themes'!A:M,8,0)","v":0},{"$f":"VLOOKUP(B140,'LOC FINAL with new Themes'!A:M,9,0)","v":0},{"$f":"VLOOKUP(B140,'LOC FINAL with new Themes'!A:M,10,0)","v":0},{"$f":"VLOOKUP(B140,'LOC FINAL with new Themes'!A:M,11,0)","v":0},{"$f":"VLOOKUP(B140,'LOC FINAL with new Themes'!A:M,12,0)","v":0},{"$f":"VLOOKUP(B140,'LOC FINAL with new Themes'!A:M,13,0)","v":0}]
[null,"American Indian/Alaska Native/Native Hawaiian Area (2010 Census)","American Indian/Alaska Native/Native Hawaiian Area (2010 Census)","American Indian/Alaska Native/Native Hawaiian Area (2010 Census)","Governmental Units ","DOC-Census","Jennifer Holland","Jennifer.L.Holland@census.gov",null,{"$f":"VLOOKUP(B141,'LOC FINAL with new Themes'!A:M,7,0)","v":0},{"$f":"VLOOKUP(B141,'LOC FINAL with new Themes'!A:M,8,0)","v":0},{"$f":"VLOOKUP(B141,'LOC FINAL with new Themes'!A:M,9,0)","v":0},{"$f":"VLOOKUP(B141,'LOC FINAL with new Themes'!A:M,10,0)","v":0},{"$f":"VLOOKUP(B141,'LOC FINAL with new Themes'!A:M,11,0)","v":0},{"$f":"VLOOKUP(B141,'LOC FINAL with new Themes'!A:M,12,0)","v":0},{"$f":"VLOOKUP(B141,'LOC FINAL with new Themes'!A:M,13,0)","v":0}]
[null,"Combined New England City and Town Area (2010 Census)","Combined New England City and Town Area (2010 Census)","Combined New England City and Town Area (2010 Census)","Governmental Units ","DOC-Census","Jennifer Holland","Jennifer.L.Holland@census.gov",null,{"$f":"VLOOKUP(B142,'LOC FINAL with new Themes'!A:M,7,0)","v":0},{"$f":"VLOOKUP(B142,'LOC FINAL with new Themes'!A:M,8,0)","v":0},{"$f":"VLOOKUP(B142,'LOC FINAL with new Themes'!A:M,9,0)","v":0},{"$f":"VLOOKUP(B142,'LOC FINAL with new Themes'!A:M,10,0)","v":0},{"$f":"VLOOKUP(B142,'LOC FINAL with new Themes'!A:M,11,0)","v":0},{"$f":"VLOOKUP(B142,'LOC FINAL with new Themes'!A:M,12,0)","v":0},{"$f":"VLOOKUP(B142,'LOC FINAL with new Themes'!A:M,13,0)","v":0}]
["Congressional District Boundaries","Congressional District (108th)","Congressional District (108th)","Congressional District (108th)","Governmental Units ","DOC-Census","Jennifer Holland","Jennifer.L.Holland@census.gov",null,{"$f":"VLOOKUP(B143,'LOC FINAL with new Themes'!A:M,7,0)","v":0},{"$f":"VLOOKUP(B143,'LOC FINAL with new Themes'!A:M,8,0)","v":0},{"$f":"VLOOKUP(B143,'LOC FINAL with new Themes'!A:M,9,0)","v":0},{"$f":"VLOOKUP(B143,'LOC FINAL with new Themes'!A:M,10,0)","v":0},{"$f":"VLOOKUP(B143,'LOC FINAL with new Themes'!A:M,11,0)","v":0},{"$f":"VLOOKUP(B143,'LOC FINAL with new Themes'!A:M,12,0)","v":0},{"$f":"VLOOKUP(B143,'LOC FINAL with new Themes'!A:M,13,0)","v":0}]
[null,"Congressional District (111th)","Congressional District (111th)","Congressional District (111th)","Governmental Units ","DOC-Census","Jennifer Holland","Jennifer.L.Holland@census.gov",null,{"$f":"VLOOKUP(B144,'LOC FINAL with new Themes'!A:M,7,0)","v":0},{"$f":"VLOOKUP(B144,'LOC FINAL with new Themes'!A:M,8,0)","v":0},{"$f":"VLOOKUP(B144,'LOC FINAL with new Themes'!A:M,9,0)","v":0},{"$f":"VLOOKUP(B144,'LOC FINAL with new Themes'!A:M,10,0)","v":0},{"$f":"VLOOKUP(B144,'LOC FINAL with new Themes'!A:M,11,0)","v":0},{"$f":"VLOOKUP(B144,'LOC FINAL with new Themes'!A:M,12,0)","v":0},{"$f":"VLOOKUP(B144,'LOC FINAL with new Themes'!A:M,13,0)","v":0}]
[null,"Consolidated City (2010 Census)","Consolidated City (2010 Census)","Consolidated City (2010 Census)","Governmental Units ","DOC-Census","Jennifer Holland","Jennifer.L.Holland@census.gov",null,{"$f":"VLOOKUP(B145,'LOC FINAL with new Themes'!A:M,7,0)","v":0},{"$f":"VLOOKUP(B145,'LOC FINAL with new Themes'!A:M,8,0)","v":0},{"$f":"VLOOKUP(B145,'LOC FINAL with new Themes'!A:M,9,0)","v":0},{"$f":"VLOOKUP(B145,'LOC FINAL with new Themes'!A:M,10,0)","v":0},{"$f":"VLOOKUP(B145,'LOC FINAL with new Themes'!A:M,11,0)","v":0},{"$f":"VLOOKUP(B145,'LOC FINAL with new Themes'!A:M,12,0)","v":0},{"$f":"VLOOKUP(B145,'LOC FINAL with new Themes'!A:M,13,0)","v":0}]
[null,"Consolidated City (Census 2000)","Consolidated City (Census 2000)","Consolidated City (Census 2000)","Governmental Units ","DOC-Census","Jennifer Holland","Jennifer.L.Holland@census.gov",null,{"$f":"VLOOKUP(B146,'LOC FINAL with new Themes'!A:M,7,0)","v":0},{"$f":"VLOOKUP(B146,'LOC FINAL with new Themes'!A:M,8,0)","v":0},{"$f":"VLOOKUP(B146,'LOC FINAL with new Themes'!A:M,9,0)","v":0},{"$f":"VLOOKUP(B146,'LOC FINAL with new Themes'!A:M,10,0)","v":0},{"$f":"VLOOKUP(B146,'LOC FINAL with new Themes'!A:M,11,0)","v":0},{"$f":"VLOOKUP(B146,'LOC FINAL with new Themes'!A:M,12,0)","v":0},{"$f":"VLOOKUP(B146,'LOC FINAL with new Themes'!A:M,13,0)","v":0}]
[null,"County and Equivalent (2010 Census)","County and Equivalent (2010 Census)","County and Equivalent (2010 Census)","Governmental Units ","DOC-Census","Jennifer Holland","Jennifer.L.Holland@census.gov",null,{"$f":"VLOOKUP(B147,'LOC FINAL with new Themes'!A:M,7,0)","v":0},{"$f":"VLOOKUP(B147,'LOC FINAL with new Themes'!A:M,8,0)","v":0},{"$f":"VLOOKUP(B147,'LOC FINAL with new Themes'!A:M,9,0)","v":0},{"$f":"VLOOKUP(B147,'LOC FINAL with new Themes'!A:M,10,0)","v":0},{"$f":"VLOOKUP(B147,'LOC FINAL with new Themes'!A:M,11,0)","v":0},{"$f":"VLOOKUP(B147,'LOC FINAL with new Themes'!A:M,12,0)","v":0},{"$f":"VLOOKUP(B147,'LOC FINAL with new Themes'!A:M,13,0)","v":0}]
[null,"County and Equivalent (Census 2000)","County and Equivalent (Census 2000)","County and Equivalent (Census 2000)","Governmental Units ","DOC-Census","Jennifer Holland","Jennifer.L.Holland@census.gov",null,{"$f":"VLOOKUP(B148,'LOC FINAL with new Themes'!A:M,7,0)","v":0},{"$f":"VLOOKUP(B148,'LOC FINAL with new Themes'!A:M,8,0)","v":0},{"$f":"VLOOKUP(B148,'LOC FINAL with new Themes'!A:M,9,0)","v":0},{"$f":"VLOOKUP(B148,'LOC FINAL with new Themes'!A:M,10,0)","v":0},{"$f":"VLOOKUP(B148,'LOC FINAL with new Themes'!A:M,11,0)","v":0},{"$f":"VLOOKUP(B148,'LOC FINAL with new Themes'!A:M,12,0)","v":0},{"$f":"VLOOKUP(B148,'LOC FINAL with new Themes'!A:M,13,0)","v":0}]
[null,"County Subdivision (2010 Census)","County Subdivision (2010 Census)","County Subdivision (2010 Census)","Governmental Units ","DOC-Census","Jennifer Holland","Jennifer.L.Holland@census.gov",null,{"$f":"VLOOKUP(B149,'LOC FINAL with new Themes'!A:M,7,0)","v":0},{"$f":"VLOOKUP(B149,'LOC FINAL with new Themes'!A:M,8,0)","v":0},{"$f":"VLOOKUP(B149,'LOC FINAL with new Themes'!A:M,9,0)","v":0},{"$f":"VLOOKUP(B149,'LOC FINAL with new Themes'!A:M,10,0)","v":0},{"$f":"VLOOKUP(B149,'LOC FINAL with new Themes'!A:M,11,0)","v":0},{"$f":"VLOOKUP(B149,'LOC FINAL with new Themes'!A:M,12,0)","v":0},{"$f":"VLOOKUP(B149,'LOC FINAL with new Themes'!A:M,13,0)","v":0}]
[null,"County Subdivision (Census 2000)","County Subdivision (Census 2000)","County Subdivision (Census 2000)","Governmental Units ","DOC-Census","Jennifer Holland","Jennifer.L.Holland@census.gov",null,{"$f":"VLOOKUP(B150,'LOC FINAL with new Themes'!A:M,7,0)","v":0},{"$f":"VLOOKUP(B150,'LOC FINAL with new Themes'!A:M,8,0)","v":0},{"$f":"VLOOKUP(B150,'LOC FINAL with new Themes'!A:M,9,0)","v":0},{"$f":"VLOOKUP(B150,'LOC FINAL with new Themes'!A:M,10,0)","v":0},{"$f":"VLOOKUP(B150,'LOC FINAL with new Themes'!A:M,11,0)","v":0},{"$f":"VLOOKUP(B150,'LOC FINAL with new Themes'!A:M,12,0)","v":0},{"$f":"VLOOKUP(B150,'LOC FINAL with new Themes'!A:M,13,0)","v":0}]
[null,"Metropolitan Division (2010 Census)","Metropolitan Division (2010 Census)","Metropolitan Division (2010 Census)","Governmental Units ","DOC-Census","Jennifer Holland","Jennifer.L.Holland@census.gov",null,{"$f":"VLOOKUP(B151,'LOC FINAL with new Themes'!A:M,7,0)","v":0},{"$f":"VLOOKUP(B151,'LOC FINAL with new Themes'!A:M,8,0)","v":0},{"$f":"VLOOKUP(B151,'LOC FINAL with new Themes'!A:M,9,0)","v":0},{"$f":"VLOOKUP(B151,'LOC FINAL with new Themes'!A:M,10,0)","v":0},{"$f":"VLOOKUP(B151,'LOC FINAL with new Themes'!A:M,11,0)","v":0},{"$f":"VLOOKUP(B151,'LOC FINAL with new Themes'!A:M,12,0)","v":0},{"$f":"VLOOKUP(B151,'LOC FINAL with new Themes'!A:M,13,0)","v":0}]
[null,"Metropolitan Division (2010 Census)","Metropolitan Division (2010 Census)","Metropolitan Division (2010 Census)","Governmental Units ","DOC-Census","Jennifer Holland","Jennifer.L.Holland@census.gov",null,{"$f":"VLOOKUP(B152,'LOC FINAL with new Themes'!A:M,7,0)","v":0},{"$f":"VLOOKUP(B152,'LOC FINAL with new Themes'!A:M,8,0)","v":0},{"$f":"VLOOKUP(B152,'LOC FINAL with new Themes'!A:M,9,0)","v":0},{"$f":"VLOOKUP(B152,'LOC FINAL with new Themes'!A:M,10,0)","v":0},{"$f":"VLOOKUP(B152,'LOC FINAL with new Themes'!A:M,11,0)","v":0},{"$f":"VLOOKUP(B152,'LOC FINAL with new Themes'!A:M,12,0)","v":0},{"$f":"VLOOKUP(B152,'LOC FINAL with new Themes'!A:M,13,0)","v":0}]
[null,"New England City and Town Area (2010 Census)","New England City and Town Area (2010 Census)","New England City and Town Area (2010 Census)","Governmental Units ","DOC-Census","Jennifer Holland","Jennifer.L.Holland@census.gov",null,{"$f":"VLOOKUP(B153,'LOC FINAL with new Themes'!A:M,7,0)","v":0},{"$f":"VLOOKUP(B153,'LOC FINAL with new Themes'!A:M,8,0)","v":0},{"$f":"VLOOKUP(B153,'LOC FINAL with new Themes'!A:M,9,0)","v":0},{"$f":"VLOOKUP(B153,'LOC FINAL with new Themes'!A:M,10,0)","v":0},{"$f":"VLOOKUP(B153,'LOC FINAL with new Themes'!A:M,11,0)","v":0},{"$f":"VLOOKUP(B153,'LOC FINAL with new Themes'!A:M,12,0)","v":0},{"$f":"VLOOKUP(B153,'LOC FINAL with new Themes'!A:M,13,0)","v":0}]
[null,"New England City and Town Area Division (2010 Census)","New England City and Town Area Division (2010 Census)","New England City and Town Area Division (2010 Census)","Governmental Units ","DOC-Census","Jennifer Holland","Jennifer.L.Holland@census.gov",null,{"$f":"VLOOKUP(B154,'LOC FINAL with new Themes'!A:M,7,0)","v":0},{"$f":"VLOOKUP(B154,'LOC FINAL with new Themes'!A:M,8,0)","v":0},{"$f":"VLOOKUP(B154,'LOC FINAL with new Themes'!A:M,9,0)","v":0},{"$f":"VLOOKUP(B154,'LOC FINAL with new Themes'!A:M,10,0)","v":0},{"$f":"VLOOKUP(B154,'LOC FINAL with new Themes'!A:M,11,0)","v":0},{"$f":"VLOOKUP(B154,'LOC FINAL with new Themes'!A:M,12,0)","v":0},{"$f":"VLOOKUP(B154,'LOC FINAL with new Themes'!A:M,13,0)","v":0}]
["Place and MCD Boundaries","Place (2010 Census)","Place (2010 Census)","Place (2010 Census)","Governmental Units ","DOC-Census","Jennifer Holland","Jennifer.L.Holland@census.gov",null,{"$f":"VLOOKUP(B155,'LOC FINAL with new Themes'!A:M,7,0)","v":0},{"$f":"VLOOKUP(B155,'LOC FINAL with new Themes'!A:M,8,0)","v":0},{"$f":"VLOOKUP(B155,'LOC FINAL with new Themes'!A:M,9,0)","v":0},{"$f":"VLOOKUP(B155,'LOC FINAL with new Themes'!A:M,10,0)","v":0},{"$f":"VLOOKUP(B155,'LOC FINAL with new Themes'!A:M,11,0)","v":0},{"$f":"VLOOKUP(B155,'LOC FINAL with new Themes'!A:M,12,0)","v":0},{"$f":"VLOOKUP(B155,'LOC FINAL with new Themes'!A:M,13,0)","v":0}]
[null,"Place (Census 2000)","Place (Census 2000)","Place (Census 2000)","Governmental Units ","DOC-Census","Jennifer Holland","Jennifer.L.Holland@census.gov",null,{"$f":"VLOOKUP(B156,'LOC FINAL with new Themes'!A:M,7,0)","v":0},{"$f":"VLOOKUP(B156,'LOC FINAL with new Themes'!A:M,8,0)","v":0},{"$f":"VLOOKUP(B156,'LOC FINAL with new Themes'!A:M,9,0)","v":0},{"$f":"VLOOKUP(B156,'LOC FINAL with new Themes'!A:M,10,0)","v":0},{"$f":"VLOOKUP(B156,'LOC FINAL with new Themes'!A:M,11,0)","v":0},{"$f":"VLOOKUP(B156,'LOC FINAL with new Themes'!A:M,12,0)","v":0},{"$f":"VLOOKUP(B156,'LOC FINAL with new Themes'!A:M,13,0)","v":0}]
["State(+ Territories) Boundaries","State and Equivalent  (2010 Census)","State and Equivalent  (2010 Census)","State and Equivalent  (2010 Census)","Governmental Units ","DOC-Census","Jennifer Holland","Jennifer.L.Holland@census.gov",null,{"$f":"VLOOKUP(B157,'LOC FINAL with new Themes'!A:M,7,0)","v":0},{"$f":"VLOOKUP(B157,'LOC FINAL with new Themes'!A:M,8,0)","v":0},{"$f":"VLOOKUP(B157,'LOC FINAL with new Themes'!A:M,9,0)","v":0},{"$f":"VLOOKUP(B157,'LOC FINAL with new Themes'!A:M,10,0)","v":0},{"$f":"VLOOKUP(B157,'LOC FINAL with new Themes'!A:M,11,0)","v":0},{"$f":"VLOOKUP(B157,'LOC FINAL with new Themes'!A:M,12,0)","v":0},{"$f":"VLOOKUP(B157,'LOC FINAL with new Themes'!A:M,13,0)","v":0}]
[null,"State and Equivalent  (Census 2000)","State and Equivalent  (Census 2000)","State and Equivalent  (Census 2000)","Governmental Units ","DOC-Census","Jennifer Holland","Jennifer.L.Holland@census.gov",null,{"$f":"VLOOKUP(B158,'LOC FINAL with new Themes'!A:M,7,0)","v":0},{"$f":"VLOOKUP(B158,'LOC FINAL with new Themes'!A:M,8,0)","v":0},{"$f":"VLOOKUP(B158,'LOC FINAL with new Themes'!A:M,9,0)","v":0},{"$f":"VLOOKUP(B158,'LOC FINAL with new Themes'!A:M,10,0)","v":0},{"$f":"VLOOKUP(B158,'LOC FINAL with new Themes'!A:M,11,0)","v":0},{"$f":"VLOOKUP(B158,'LOC FINAL with new Themes'!A:M,12,0)","v":0},{"$f":"VLOOKUP(B158,'LOC FINAL with new Themes'!A:M,13,0)","v":0}]
[null,"State Legislative District (Lower Chamber) (2010 Census)","State Legislative District (Lower Chamber) (2010 Census)","State Legislative District (Lower Chamber) (2010 Census)","Governmental Units ","DOC-Census","Jennifer Holland","Jennifer.L.Holland@census.gov",null,{"$f":"VLOOKUP(B159,'LOC FINAL with new Themes'!A:M,7,0)","v":0},{"$f":"VLOOKUP(B159,'LOC FINAL with new Themes'!A:M,8,0)","v":0},{"$f":"VLOOKUP(B159,'LOC FINAL with new Themes'!A:M,9,0)","v":0},{"$f":"VLOOKUP(B159,'LOC FINAL with new Themes'!A:M,10,0)","v":0},{"$f":"VLOOKUP(B159,'LOC FINAL with new Themes'!A:M,11,0)","v":0},{"$f":"VLOOKUP(B159,'LOC FINAL with new Themes'!A:M,12,0)","v":0},{"$f":"VLOOKUP(B159,'LOC FINAL with new Themes'!A:M,13,0)","v":0}]
[null,"State Legislative District (Lower Chamber) (Census 2000)","State Legislative District (Lower Chamber) (Census 2000)","State Legislative District (Lower Chamber) (Census 2000)","Governmental Units ","DOC-Census","Jennifer Holland","Jennifer.L.Holland@census.gov",null,{"$f":"VLOOKUP(B160,'LOC FINAL with new Themes'!A:M,7,0)","v":0},{"$f":"VLOOKUP(B160,'LOC FINAL with new Themes'!A:M,8,0)","v":0},{"$f":"VLOOKUP(B160,'LOC FINAL with new Themes'!A:M,9,0)","v":0},{"$f":"VLOOKUP(B160,'LOC FINAL with new Themes'!A:M,10,0)","v":0},{"$f":"VLOOKUP(B160,'LOC FINAL with new Themes'!A:M,11,0)","v":0},{"$f":"VLOOKUP(B160,'LOC FINAL with new Themes'!A:M,12,0)","v":0},{"$f":"VLOOKUP(B160,'LOC FINAL with new Themes'!A:M,13,0)","v":0}]
[null,"State Legislative District (Upper Chamber) (2010 Census)","State Legislative District (Upper Chamber) (2010 Census)","State Legislative District (Upper Chamber) (2010 Census)","Governmental Units ","DOC-Census","Jennifer Holland","Jennifer.L.Holland@census.gov",null,{"$f":"VLOOKUP(B161,'LOC FINAL with new Themes'!A:M,7,0)","v":0},{"$f":"VLOOKUP(B161,'LOC FINAL with new Themes'!A:M,8,0)","v":0},{"$f":"VLOOKUP(B161,'LOC FINAL with new Themes'!A:M,9,0)","v":0},{"$f":"VLOOKUP(B161,'LOC FINAL with new Themes'!A:M,10,0)","v":0},{"$f":"VLOOKUP(B161,'LOC FINAL with new Themes'!A:M,11,0)","v":0},{"$f":"VLOOKUP(B161,'LOC FINAL with new Themes'!A:M,12,0)","v":0},{"$f":"VLOOKUP(B161,'LOC FINAL with new Themes'!A:M,13,0)","v":0}]
[null,"State Legislative District (Upper Chamber) (Census 2000)","State Legislative District (Upper Chamber) (Census 2000)","State Legislative District (Upper Chamber) (Census 2000)","Governmental Units ","DOC-Census","Jennifer Holland","Jennifer.L.Holland@census.gov",null,{"$f":"VLOOKUP(B162,'LOC FINAL with new Themes'!A:M,7,0)","v":0},{"$f":"VLOOKUP(B162,'LOC FINAL with new Themes'!A:M,8,0)","v":0},{"$f":"VLOOKUP(B162,'LOC FINAL with new Themes'!A:M,9,0)","v":0},{"$f":"VLOOKUP(B162,'LOC FINAL with new Themes'!A:M,10,0)","v":0},{"$f":"VLOOKUP(B162,'LOC FINAL with new Themes'!A:M,11,0)","v":0},{"$f":"VLOOKUP(B162,'LOC FINAL with new Themes'!A:M,12,0)","v":0},{"$f":"VLOOKUP(B162,'LOC FINAL with new Themes'!A:M,13,0)","v":0}]
[null,"Subbarrio (2010 Census)","Subbarrio (2010 Census)","Subbarrio (2010 Census)","Governmental Units ","DOC-Census","Jennifer Holland","Jennifer.L.Holland@census.gov",null,{"$f":"VLOOKUP(B163,'LOC FINAL with new Themes'!A:M,7,0)","v":0},{"$f":"VLOOKUP(B163,'LOC FINAL with new Themes'!A:M,8,0)","v":0},{"$f":"VLOOKUP(B163,'LOC FINAL with new Themes'!A:M,9,0)","v":0},{"$f":"VLOOKUP(B163,'LOC FINAL with new Themes'!A:M,10,0)","v":0},{"$f":"VLOOKUP(B163,'LOC FINAL with new Themes'!A:M,11,0)","v":0},{"$f":"VLOOKUP(B163,'LOC FINAL with new Themes'!A:M,12,0)","v":0},{"$f":"VLOOKUP(B163,'LOC FINAL with new Themes'!A:M,13,0)","v":0}]
[null,"Subbarrio (Census 2000)","Subbarrio (Census 2000)","Subbarrio (Census 2000)","Governmental Units ","DOC-Census","Jennifer Holland","Jennifer.L.Holland@census.gov",null,{"$f":"VLOOKUP(B164,'LOC FINAL with new Themes'!A:M,7,0)","v":0},{"$f":"VLOOKUP(B164,'LOC FINAL with new Themes'!A:M,8,0)","v":0},{"$f":"VLOOKUP(B164,'LOC FINAL with new Themes'!A:M,9,0)","v":0},{"$f":"VLOOKUP(B164,'LOC FINAL with new Themes'!A:M,10,0)","v":0},{"$f":"VLOOKUP(B164,'LOC FINAL with new Themes'!A:M,11,0)","v":0},{"$f":"VLOOKUP(B164,'LOC FINAL with new Themes'!A:M,12,0)","v":0},{"$f":"VLOOKUP(B164,'LOC FINAL with new Themes'!A:M,13,0)","v":0}]
[null,"Urban Area (Corrected Census 2000)","Urban Area (Corrected Census 2000)","Urban Area (Corrected Census 2000)","Governmental Units ","DOC-Census","Jennifer Holland","Jennifer.L.Holland@census.gov",null,{"$f":"VLOOKUP(B165,'LOC FINAL with new Themes'!A:M,7,0)","v":0},{"$f":"VLOOKUP(B165,'LOC FINAL with new Themes'!A:M,8,0)","v":0},{"$f":"VLOOKUP(B165,'LOC FINAL with new Themes'!A:M,9,0)","v":0},{"$f":"VLOOKUP(B165,'LOC FINAL with new Themes'!A:M,10,0)","v":0},{"$f":"VLOOKUP(B165,'LOC FINAL with new Themes'!A:M,11,0)","v":0},{"$f":"VLOOKUP(B165,'LOC FINAL with new Themes'!A:M,12,0)","v":0},{"$f":"VLOOKUP(B165,'LOC FINAL with new Themes'!A:M,13,0)","v":0}]
[null,null,null,{"$f":"SUBTOTAL(3,D134:D165)","v":32},"Governmental Units Count"]
["133 Urban Areas imagery program data","133 Urban Areas imagery program data",null,{"$f":"IF(C167=0,B167,C167)","v":"133 Urban Areas imagery program data"},"Imagery ","DOD-NGA","William Nellist","William.E.Nellist@nga.mil",null,{"$f":"VLOOKUP(B167,'LOC FINAL with new Themes'!A:M,7,0)","v":0},{"$f":"VLOOKUP(B167,'LOC FINAL with new Themes'!A:M,8,0)","v":0},{"$f":"VLOOKUP(B167,'LOC FINAL with new Themes'!A:M,9,0)","v":0},{"$f":"VLOOKUP(B167,'LOC FINAL with new Themes'!A:M,10,0)","v":0},{"$f":"VLOOKUP(B167,'LOC FINAL with new Themes'!A:M,11,0)","v":0},{"$f":"VLOOKUP(B167,'LOC FINAL with new Themes'!A:M,12,0)","v":0},{"$f":"VLOOKUP(B167,'LOC FINAL with new Themes'!A:M,13,0)","v":0}]
[null,"134 Urban Areas imagery program data",null,"134 Urban Areas imagery program data","Imagery ","DOI-USGS","George Lee","gylee@usgs.gov",null,{"$f":"VLOOKUP(B168,'LOC FINAL with new Themes'!A:M,7,0)","v":0},{"$f":"VLOOKUP(B168,'LOC FINAL with new Themes'!A:M,8,0)","v":0},{"$f":"VLOOKUP(B168,'LOC FINAL with new Themes'!A:M,9,0)","v":0},{"$f":"VLOOKUP(B168,'LOC FINAL with new Themes'!A:M,10,0)","v":0},{"$f":"VLOOKUP(B168,'LOC FINAL with new Themes'!A:M,11,0)","v":0},{"$f":"VLOOKUP(B168,'LOC FINAL with new Themes'!A:M,12,0)","v":0},{"$f":"VLOOKUP(B168,'LOC FINAL with new Themes'!A:M,13,0)","v":0}]
["ADS40 Hurricane Response 7.5' Quadrangle Mosaics","ADS40 Hurricane Response 7.5' Quadrangle Mosaics",null,"ADS40 Hurricane Response 7.5' Quadrangle Mosaics","Imagery ","DOI-USGS","Jim Mauck","jmauck@usgs.gov",null,{"$f":"VLOOKUP(B169,'LOC FINAL with new Themes'!A:M,7,0)","v":0},{"$f":"VLOOKUP(B169,'LOC FINAL with new Themes'!A:M,8,0)","v":0},{"$f":"VLOOKUP(B169,'LOC FINAL with new Themes'!A:M,9,0)","v":0},{"$f":"VLOOKUP(B169,'LOC FINAL with new Themes'!A:M,10,0)","v":0},{"$f":"VLOOKUP(B169,'LOC FINAL with new Themes'!A:M,11,0)","v":0},{"$f":"VLOOKUP(B169,'LOC FINAL with new Themes'!A:M,12,0)","v":0},{"$f":"VLOOKUP(B169,'LOC FINAL with new Themes'!A:M,13,0)","v":0}]
["Digital Orthoimage Quarter Quadrangle (DOQQ) Archive","Digital Orthoimage Quarter Quadrangle (DOQQ) Archive",null,"Digital Orthoimage Quarter Quadrangle (DOQQ) Archive","Imagery ","DOI-USGS",null,null,null,{"$f":"VLOOKUP(B170,'LOC FINAL with new Themes'!A:M,7,0)","v":"DOQQ is static; one data set; this is the POC and data manager. this is the name and maintain three complete with two physically separate on-site and one off-site"},{"$f":"VLOOKUP(B170,'LOC FINAL with new Themes'!A:M,8,0)","v":0},{"$f":"VLOOKUP(B170,'LOC FINAL with new Themes'!A:M,9,0)","v":0},{"$f":"VLOOKUP(B170,'LOC FINAL with new Themes'!A:M,10,0)","v":0},{"$f":"VLOOKUP(B170,'LOC FINAL with new Themes'!A:M,11,0)","v":0},{"$f":"VLOOKUP(B170,'LOC FINAL with new Themes'!A:M,12,0)","v":0},{"$f":"VLOOKUP(B170,'LOC FINAL with new Themes'!A:M,13,0)","v":"S"}]
["Emergency Response Imagery","Emergency Response Imagery","Emergency Response Imagery","Emergency Response Imagery","Imagery ","DOC-NOAA","Mike Aslaksen","mike.Aslaksen@noaa.gov",null,{"$f":"VLOOKUP(B171,'LOC FINAL with new Themes'!A:M,7,0)","v":"20-Multiple      "},{"$f":"VLOOKUP(B171,'LOC FINAL with new Themes'!A:M,8,0)","v":"No"},{"$f":"VLOOKUP(B171,'LOC FINAL with new Themes'!A:M,9,0)","v":"Yes - email reply from Jon Sellars Jon.Sellars@noaa.gov"},{"$f":"VLOOKUP(B171,'LOC FINAL with new Themes'!A:M,10,0)","v":"- Same for the forest frag."},{"$f":"VLOOKUP(B171,'LOC FINAL with new Themes'!A:M,11,0)","v":"Our data can be accessed through the following links: http://storms.ngs.noaagov/eri_page/index.html Gulf Oil Spill:\nhttp://hdds.usgs.gov/hdds2/pub/data/disaster/201004_Oilspill_GulfOfMexico/data/AERIAL_NOAA\nhttp://hdds.usgs.gov/hdds2/pub/data/disaster/201004_Oilspill_GulfOfMexico/data/AERIAL_NOAA_MOSAIC  Haiti Earthquake:\nhttp://hdds.usgs.gov/hdds2/pub/data/disaster/201001_Earthquake_Haiti/data/AERIAL_NOAA\nhttp://hdds.usgs.gov/hdds2/pub/data/disaster/201001_Earthquake_Haiti/data/AERIAL_NOAA_ORTHO\nMexico Earthquake:\nhttp://hdds.usgs.gov/hdds2/pub/data/disaster/201004_Earthquake_Mexico/data/AERIAL_NOAA_MOSAIC \n\n"},{"$f":"VLOOKUP(B171,'LOC FINAL with new Themes'!A:M,12,0)","v":"Described by storm name, event or location."},{"$f":"VLOOKUP(B171,'LOC FINAL with new Themes'!A:M,13,0)","v":"M "}]
[null,null,"Fire, Detection: AVHRR FIMMA , GOES WF-ABBA","Fire, Detection: AVHRR FIMMA , GOES WF-ABBA","Imagery ","USDA"]
["Landsat geometric/terrain corrected level 1T","Landsat geometric/terrain corrected level 1T","Landsat Terrain Corrected Scenes","Landsat Terrain Corrected Scenes","Imagery ","DOI-USGS","Kristi Kline","kkline@usgs.gov",null,{"$f":"VLOOKUP(B173,'LOC FINAL with new Themes'!A:M,7,0)","v":"Landsat updates daily; a series of data sets; this is the POC and data manager; this is the name and maintain three complete with two physically separate on-site and one off-site"},{"$f":"VLOOKUP(B173,'LOC FINAL with new Themes'!A:M,8,0)","v":0},{"$f":"VLOOKUP(B173,'LOC FINAL with new Themes'!A:M,9,0)","v":0},{"$f":"VLOOKUP(B173,'LOC FINAL with new Themes'!A:M,10,0)","v":0},{"$f":"VLOOKUP(B173,'LOC FINAL with new Themes'!A:M,11,0)","v":0},{"$f":"VLOOKUP(B173,'LOC FINAL with new Themes'!A:M,12,0)","v":0},{"$f":"VLOOKUP(B173,'LOC FINAL with new Themes'!A:M,13,0)","v":"S"}]
[null,null,"National  Orthoimagery Dataset - National Map","National  Orthoimagery Dataset - National Map","Imagery ","DOI-USGS"]
["National Aerial Photography Program (NAPP) Data Archive","National Aerial Photography Program (NAPP) Data Archive",null,"National Aerial Photography Program (NAPP) Data Archive","Imagery ","DOI-USGS","Wayne Miller","wamiller@usgs.gov",null,{"$f":"VLOOKUP(B175,'LOC FINAL with new Themes'!A:M,7,0)","v":"NAPP is static; one data set; this is the POC and data manager; this is the name and maintain three complete with two physically separate on-site and one off-site "},{"$f":"VLOOKUP(B175,'LOC FINAL with new Themes'!A:M,8,0)","v":0},{"$f":"VLOOKUP(B175,'LOC FINAL with new Themes'!A:M,9,0)","v":0},{"$f":"VLOOKUP(B175,'LOC FINAL with new Themes'!A:M,10,0)","v":0},{"$f":"VLOOKUP(B175,'LOC FINAL with new Themes'!A:M,11,0)","v":0},{"$f":"VLOOKUP(B175,'LOC FINAL with new Themes'!A:M,12,0)","v":0},{"$f":"VLOOKUP(B175,'LOC FINAL with new Themes'!A:M,13,0)","v":"S"}]
["National Agriculture Imagery Program Data","National Agriculture Imagery Program Data","National Agriculture Imagery Program (NAIP) Archive","National Agriculture Imagery Program (NAIP) Archive","Imagery ","DOI-USGS","Shirley Hall","shirley.hall@wdc.usda.gov",null,{"$f":"VLOOKUP(B176,'LOC FINAL with new Themes'!A:M,7,0)","v":"Shirley identified Dan Good as new contact 'daniel.good@wdc.usda.gov' - need to follow up with either or both"},{"$f":"VLOOKUP(B176,'LOC FINAL with new Themes'!A:M,8,0)","v":0},{"$f":"VLOOKUP(B176,'LOC FINAL with new Themes'!A:M,9,0)","v":0},{"$f":"VLOOKUP(B176,'LOC FINAL with new Themes'!A:M,10,0)","v":0},{"$f":"VLOOKUP(B176,'LOC FINAL with new Themes'!A:M,11,0)","v":0},{"$f":"VLOOKUP(B176,'LOC FINAL with new Themes'!A:M,12,0)","v":0},{"$f":"VLOOKUP(B176,'LOC FINAL with new Themes'!A:M,13,0)","v":0}]
["National Map Orthoimagery Database (TNM Seamless Server) ","National Map Orthoimagery Database (TNM Seamless Server) ",null,"National Map Orthoimagery Database (TNM Seamless Server) ","Imagery ","DOI-USGS","George Lee","gylee@usgs.gov",null,{"$f":"VLOOKUP(B177,'LOC FINAL with new Themes'!A:M,7,0)","v":0},{"$f":"VLOOKUP(B177,'LOC FINAL with new Themes'!A:M,8,0)","v":0},{"$f":"VLOOKUP(B177,'LOC FINAL with new Themes'!A:M,9,0)","v":0},{"$f":"VLOOKUP(B177,'LOC FINAL with new Themes'!A:M,10,0)","v":0},{"$f":"VLOOKUP(B177,'LOC FINAL with new Themes'!A:M,11,0)","v":0},{"$f":"VLOOKUP(B177,'LOC FINAL with new Themes'!A:M,12,0)","v":0},{"$f":"VLOOKUP(B177,'LOC FINAL with new Themes'!A:M,13,0)","v":0}]
[null,null,"Satellite Imagery Archive","Satellite Imagery Archive","Imagery ","USDA-FSA"]
[null,null,null,{"$f":"SUBTOTAL(3,D167:D178)","v":12},"Imagery  Count"]
[null,null,"Crops: Cropland Data Layer",{"$f":"IF(C180=0,B180,C180)","v":"Crops: Cropland Data Layer"},"Land Use-Land Cover ","USDA-NASS"]
[null,null,"Earth Cover, Land: MODIS-based Land Products","Earth Cover, Land: MODIS-based Land Products","Land Use-Land Cover ","USDA -FS (Along with USGS)"]
[null,null,"Earth Cover, Vegetation, Forest: Forest Biomass, Types, Type Groups","Earth Cover, Vegetation, Forest: Forest Biomass, Types, Type Groups","Land Use-Land Cover ","USDA-FS"]
[null,null,"Earth Cover, Vegetation: Percent Forest Canopy","Earth Cover, Vegetation: Percent Forest Canopy","Land Use-Land Cover ","USDA-FS"]
[null,null,"Fire Severity: Monitoring Trends in Burn Severity (MTBS)","Fire Severity: Monitoring Trends in Burn Severity (MTBS)","Land Use-Land Cover ","USDA -FS (Along with USGS)"]
[null,null,"Fire, Detection: Daily Active Fire Mapping","Fire, Detection: Daily Active Fire Mapping","Land Use-Land Cover ","USDA"]
[null,null,"Land Cover Strata Dataset","Land Cover Strata Dataset","Land Use-Land Cover ","USDA-NASS"]
["LANDFIRE Dataset","LANDFIRE Dataset","Land Fire Dataset","Land Fire Dataset","Land Use-Land Cover ",null,null,0,null,{"$f":"VLOOKUP(B187,'LOC FINAL with new Themes'!A:M,7,0)","v":0},{"$f":"VLOOKUP(B187,'LOC FINAL with new Themes'!A:M,8,0)","v":0},{"$f":"VLOOKUP(B187,'LOC FINAL with new Themes'!A:M,9,0)","v":0},{"$f":"VLOOKUP(B187,'LOC FINAL with new Themes'!A:M,10,0)","v":0},{"$f":"VLOOKUP(B187,'LOC FINAL with new Themes'!A:M,11,0)","v":0},{"$f":"VLOOKUP(B187,'LOC FINAL with new Themes'!A:M,12,0)","v":0},{"$f":"VLOOKUP(B187,'LOC FINAL with new Themes'!A:M,13,0)","v":0}]
["National Land Cover Dataset (NLCD)","National Land Cover Dataset (NLCD)","National Land Cover Dataset - GIRAS - 1975","National Land Cover Dataset - GIRAS - 1975","Land Use-Land Cover ","DOI-USGS","Colin Homer","homer@usgs.gov",null,{"$f":"VLOOKUP(B188,'LOC FINAL with new Themes'!A:M,7,0)","v":"The table below summarizes NLCD products available for download from the MRLC website http://www.mrlc.gov/ "},{"$f":"VLOOKUP(B188,'LOC FINAL with new Themes'!A:M,8,0)","v":"No.  The \"manager\" of the data is Jon Dewitz. \nContact Information -   \nJon Dewitz\ndewitz@usgs.gov\n605-594-2715\nNLCD Quality Supervisor\nUSGS Earth Resources Observation and Science Center (EROS)\nMundt Federal Building\n47914 252nd St.\nSioux Falls, SD 57198\nfax 605-594-6529\n"},{"$f":"VLOOKUP(B188,'LOC FINAL with new Themes'!A:M,9,0)","v":"Joyce Fry is the POC. \nContact information - \nJoyce Fry, Geographer\nUnited States Geological Survey (USGS)\nEarth Resources Observation and  Science (EROS) Center\nMundt Federal Building\n47914 252nd Street\nSioux Falls, South Dakota 57198\n(P)  605.594.2739\n(F)  605.594.6529\n(e)  jfry@usgs.gov \n"},{"$f":"VLOOKUP(B188,'LOC FINAL with new Themes'!A:M,10,0)","v":"Every 5 years"},{"$f":"VLOOKUP(B188,'LOC FINAL with new Themes'!A:M,11,0)","v":"Yes, there is an archive/backup of the dataset through the EROS Long Term Archive (LTA) group.  I will need to get back to if you need additional information regarding the archive process. "},{"$f":"VLOOKUP(B188,'LOC FINAL with new Themes'!A:M,12,0)","v":"National Land Cover Database or NLCD along with the era number, either 1992 or 2001, or 2006. "},{"$f":"VLOOKUP(B188,'LOC FINAL with new Themes'!A:M,13,0)","v":"S"}]
[null,null,"National Land Cover Dataset - National Map","National Land Cover Dataset - National Map","Land Use-Land Cover ","DOI-USGS"]
[null,null,"National Land Cover Dataset - National Map - 1991","National Land Cover Dataset - National Map - 1991","Land Use-Land Cover ","DOI-USGS"]
[null,null,"National Land Cover Dataset - National Map - 2001","National Land Cover Dataset - National Map - 2001","Land Use-Land Cover ","DOI-USGS"]
[null,null,"National Land Cover Dataset - National Map 2006","National Land Cover Dataset - National Map 2006","Land Use-Land Cover ","DOI-USGS"]
["National Land Cover Dataset (NLCD)","National Land Cover Dataset (NLCD)","National Land Cover Dataset (NLCD)","National Land Cover Dataset (NLCD)","Land Use-Land Cover ","DOI-USGS","Colin Homer","homer@usgs.gov",null,{"$f":"VLOOKUP(B193,'LOC FINAL with new Themes'!A:M,7,0)","v":"The table below summarizes NLCD products available for download from the MRLC website http://www.mrlc.gov/ "},{"$f":"VLOOKUP(B193,'LOC FINAL with new Themes'!A:M,8,0)","v":"No.  The \"manager\" of the data is Jon Dewitz. \nContact Information -   \nJon Dewitz\ndewitz@usgs.gov\n605-594-2715\nNLCD Quality Supervisor\nUSGS Earth Resources Observation and Science Center (EROS)\nMundt Federal Building\n47914 252nd St.\nSioux Falls, SD 57198\nfax 605-594-6529\n"},{"$f":"VLOOKUP(B193,'LOC FINAL with new Themes'!A:M,9,0)","v":"Joyce Fry is the POC. \nContact information - \nJoyce Fry, Geographer\nUnited States Geological Survey (USGS)\nEarth Resources Observation and  Science (EROS) Center\nMundt Federal Building\n47914 252nd Street\nSioux Falls, South Dakota 57198\n(P)  605.594.2739\n(F)  605.594.6529\n(e)  jfry@usgs.gov \n"},{"$f":"VLOOKUP(B193,'LOC FINAL with new Themes'!A:M,10,0)","v":"Every 5 years"},{"$f":"VLOOKUP(B193,'LOC FINAL with new Themes'!A:M,11,0)","v":"Yes, there is an archive/backup of the dataset through the EROS Long Term Archive (LTA) group.  I will need to get back to if you need additional information regarding the archive process. "},{"$f":"VLOOKUP(B193,'LOC FINAL with new Themes'!A:M,12,0)","v":"National Land Cover Database or NLCD along with the era number, either 1992 or 2001, or 2006. "},{"$f":"VLOOKUP(B193,'LOC FINAL with new Themes'!A:M,13,0)","v":"S"}]
[null,null,"National Land Cover Percent Canopy - National Map - 1991","National Land Cover Percent Canopy - National Map - 1991","Land Use-Land Cover ","DOI-USGS"]
[null,null,"National Land Cover Percent Imperviousness - National Map - 2001","National Land Cover Percent Imperviousness - National Map - 2001","Land Use-Land Cover ","DOI-USGS"]
[null,null,"National Land Cover Percent Imperviousness - National Map - 2006","National Land Cover Percent Imperviousness - National Map - 2006","Land Use-Land Cover ","DOI-USGS"]
["National Parks Data","National Parks Data","National Parks Data","National Parks Data","Land Use-Land Cover ","DOI-NPS","Roger Johnson ","Roger_M_Johnson@nps.gov",null,{"$f":"VLOOKUP(B197,'LOC FINAL with new Themes'!A:M,7,0)","v":"undeliverable email- neeed to identify new contact"},{"$f":"VLOOKUP(B197,'LOC FINAL with new Themes'!A:M,8,0)","v":0},{"$f":"VLOOKUP(B197,'LOC FINAL with new Themes'!A:M,9,0)","v":0},{"$f":"VLOOKUP(B197,'LOC FINAL with new Themes'!A:M,10,0)","v":0},{"$f":"VLOOKUP(B197,'LOC FINAL with new Themes'!A:M,11,0)","v":0},{"$f":"VLOOKUP(B197,'LOC FINAL with new Themes'!A:M,12,0)","v":0},{"$f":"VLOOKUP(B197,'LOC FINAL with new Themes'!A:M,13,0)","v":0}]
[null,null,null,{"$f":"SUBTOTAL(3,D180:D197)","v":18},"Land Use-Land Cover  Count"]
["Assisted Housing (census geography or point-based) see http://www.huduser.org/picture2000/","Assisted Housing (census geography or point-based)",null,{"$f":"IF(C199=0,B199,C199)","v":"Assisted Housing (census geography or point-based)"},"Real Property","HUD","Jon Sperling","jon.sperling@hud.gov",null,{"$f":"VLOOKUP(B199,'LOC FINAL with new Themes'!A:M,7,0)","v":0},{"$f":"VLOOKUP(B199,'LOC FINAL with new Themes'!A:M,8,0)","v":0},{"$f":"VLOOKUP(B199,'LOC FINAL with new Themes'!A:M,9,0)","v":0},{"$f":"VLOOKUP(B199,'LOC FINAL with new Themes'!A:M,10,0)","v":0},{"$f":"VLOOKUP(B199,'LOC FINAL with new Themes'!A:M,11,0)","v":0},{"$f":"VLOOKUP(B199,'LOC FINAL with new Themes'!A:M,12,0)","v":0},{"$f":"VLOOKUP(B199,'LOC FINAL with new Themes'!A:M,13,0)","v":0}]
["Enterprise Zones, Empowerment Communities, Revitalization Areas, Qualified Census Tracts, etc.  (census geography based)","Enterprise Zones, Empowerment Communities, Revitalization Areas, Qualified Census Tracts, etc.  (census geography based)",null,"Enterprise Zones, Empowerment Communities, Revitalization Areas, Qualified Census Tracts, etc.  (census geography based)","Real Property","HUD","Jon Sperling","jon.sperling@hud.gov",null,{"$f":"VLOOKUP(B200,'LOC FINAL with new Themes'!A:M,7,0)","v":0},{"$f":"VLOOKUP(B200,'LOC FINAL with new Themes'!A:M,8,0)","v":0},{"$f":"VLOOKUP(B200,'LOC FINAL with new Themes'!A:M,9,0)","v":0},{"$f":"VLOOKUP(B200,'LOC FINAL with new Themes'!A:M,10,0)","v":0},{"$f":"VLOOKUP(B200,'LOC FINAL with new Themes'!A:M,11,0)","v":0},{"$f":"VLOOKUP(B200,'LOC FINAL with new Themes'!A:M,12,0)","v":0},{"$f":"VLOOKUP(B200,'LOC FINAL with new Themes'!A:M,13,0)","v":0}]
["Federal building location point ","Federal building location point ","Federal building location point ","Federal building location point ","Real Property ","GSA","Sandra Downie","sandra.downie@gsa.gov",null,{"$f":"VLOOKUP(B201,'LOC FINAL with new Themes'!A:M,7,0)","v":0},{"$f":"VLOOKUP(B201,'LOC FINAL with new Themes'!A:M,8,0)","v":0},{"$f":"VLOOKUP(B201,'LOC FINAL with new Themes'!A:M,9,0)","v":0},{"$f":"VLOOKUP(B201,'LOC FINAL with new Themes'!A:M,10,0)","v":0},{"$f":"VLOOKUP(B201,'LOC FINAL with new Themes'!A:M,11,0)","v":0},{"$f":"VLOOKUP(B201,'LOC FINAL with new Themes'!A:M,12,0)","v":0},{"$f":"VLOOKUP(B201,'LOC FINAL with new Themes'!A:M,13,0)","v":0}]
["Federal building location polygon","Federal building location polygon","Federal building location polygon","Federal building location polygon","Real Property ","GSA","Sandra Downie","sandra.downie@gsa.gov",null,{"$f":"VLOOKUP(B202,'LOC FINAL with new Themes'!A:M,7,0)","v":0},{"$f":"VLOOKUP(B202,'LOC FINAL with new Themes'!A:M,8,0)","v":0},{"$f":"VLOOKUP(B202,'LOC FINAL with new Themes'!A:M,9,0)","v":0},{"$f":"VLOOKUP(B202,'LOC FINAL with new Themes'!A:M,10,0)","v":0},{"$f":"VLOOKUP(B202,'LOC FINAL with new Themes'!A:M,11,0)","v":0},{"$f":"VLOOKUP(B202,'LOC FINAL with new Themes'!A:M,12,0)","v":0},{"$f":"VLOOKUP(B202,'LOC FINAL with new Themes'!A:M,13,0)","v":0}]
["Federal land area facility location point","Federal land area facility location point","Federal land area facility location point","Federal land area facility location point","Real Property ","GSA","Sandra Downie","sandra.downie@gsa.gov",null,{"$f":"VLOOKUP(B203,'LOC FINAL with new Themes'!A:M,7,0)","v":0},{"$f":"VLOOKUP(B203,'LOC FINAL with new Themes'!A:M,8,0)","v":0},{"$f":"VLOOKUP(B203,'LOC FINAL with new Themes'!A:M,9,0)","v":0},{"$f":"VLOOKUP(B203,'LOC FINAL with new Themes'!A:M,10,0)","v":0},{"$f":"VLOOKUP(B203,'LOC FINAL with new Themes'!A:M,11,0)","v":0},{"$f":"VLOOKUP(B203,'LOC FINAL with new Themes'!A:M,12,0)","v":0},{"$f":"VLOOKUP(B203,'LOC FINAL with new Themes'!A:M,13,0)","v":0}]
["Federal land area facility location polygon","Federal land area facility location polygon","Federal land area facility location polygon","Federal land area facility location polygon","Real Property ","GSA","Sandra Downie","sandra.downie@gsa.gov",null,{"$f":"VLOOKUP(B204,'LOC FINAL with new Themes'!A:M,7,0)","v":0},{"$f":"VLOOKUP(B204,'LOC FINAL with new Themes'!A:M,8,0)","v":0},{"$f":"VLOOKUP(B204,'LOC FINAL with new Themes'!A:M,9,0)","v":0},{"$f":"VLOOKUP(B204,'LOC FINAL with new Themes'!A:M,10,0)","v":0},{"$f":"VLOOKUP(B204,'LOC FINAL with new Themes'!A:M,11,0)","v":0},{"$f":"VLOOKUP(B204,'LOC FINAL with new Themes'!A:M,12,0)","v":0},{"$f":"VLOOKUP(B204,'LOC FINAL with new Themes'!A:M,13,0)","v":0}]
["National Map - Structures Dataset","National Map - Structures Dataset","National Structures Dataset - National Map","National Structures Dataset - National Map","Real Property ","DOI-USGS","Paul Wiese","pmwiese@usgs.gov",null,{"$f":"VLOOKUP(B205,'LOC FINAL with new Themes'!A:M,7,0)","v":"National Map updates monthly; a series of data sets; this is the POC and data manager; this is the name and maintain three complete with two physically separate on-site and one off-site"},{"$f":"VLOOKUP(B205,'LOC FINAL with new Themes'!A:M,8,0)","v":0},{"$f":"VLOOKUP(B205,'LOC FINAL with new Themes'!A:M,9,0)","v":0},{"$f":"VLOOKUP(B205,'LOC FINAL with new Themes'!A:M,10,0)","v":0},{"$f":"VLOOKUP(B205,'LOC FINAL with new Themes'!A:M,11,0)","v":0},{"$f":"VLOOKUP(B205,'LOC FINAL with new Themes'!A:M,12,0)","v":0},{"$f":"VLOOKUP(B205,'LOC FINAL with new Themes'!A:M,13,0)","v":"S"}]
[null,null,null,{"$f":"SUBTOTAL(3,D199:D205)","v":7},"Real Property Count"]
[null,"Military Installation","Military Installation",{"$f":"IF(C207=0,B207,C207)","v":"Military Installation"},"Real Property\nCultural & Demographic Statistics","DOC-Census","Jennifer Holland","Jennifer.L.Holland@census.gov",null,{"$f":"VLOOKUP(B207,'LOC FINAL with new Themes'!A:M,7,0)","v":0},{"$f":"VLOOKUP(B207,'LOC FINAL with new Themes'!A:M,8,0)","v":0},{"$f":"VLOOKUP(B207,'LOC FINAL with new Themes'!A:M,9,0)","v":0},{"$f":"VLOOKUP(B207,'LOC FINAL with new Themes'!A:M,10,0)","v":0},{"$f":"VLOOKUP(B207,'LOC FINAL with new Themes'!A:M,11,0)","v":0},{"$f":"VLOOKUP(B207,'LOC FINAL with new Themes'!A:M,12,0)","v":0},{"$f":"VLOOKUP(B207,'LOC FINAL with new Themes'!A:M,13,0)","v":0}]
[null,null,null,{"$f":"SUBTOTAL(3,D207:D207)","v":1},"Real Property\nCultural & Demographic Statistics Count"]
["Common Resource Area (CRA)","Common Resource Area (CRA)","Common Resource Area (CRA)",{"$f":"IF(C209=0,B209,C209)","v":"Common Resource Area (CRA)"},"Soils ","USDA-NRCS","David Hoover","David.Hoover@wdc.usda.gov",null,{"$f":"VLOOKUP(B209,'LOC FINAL with new Themes'!A:M,7,0)","v":0},{"$f":"VLOOKUP(B209,'LOC FINAL with new Themes'!A:M,8,0)","v":0},{"$f":"VLOOKUP(B209,'LOC FINAL with new Themes'!A:M,9,0)","v":0},{"$f":"VLOOKUP(B209,'LOC FINAL with new Themes'!A:M,10,0)","v":0},{"$f":"VLOOKUP(B209,'LOC FINAL with new Themes'!A:M,11,0)","v":0},{"$f":"VLOOKUP(B209,'LOC FINAL with new Themes'!A:M,12,0)","v":0},{"$f":"VLOOKUP(B209,'LOC FINAL with new Themes'!A:M,13,0)","v":0}]
["Major Land Resource Area (MLRA)","Major Land Resource Area (MLRA)","Major Land Resource Area (MLRA)","Major Land Resource Area (MLRA)","Soils ","USDA-NRCS","David Hoover","David.Hoover@wdc.usda.gov",null,{"$f":"VLOOKUP(B210,'LOC FINAL with new Themes'!A:M,7,0)","v":"undeliverable email- neeed to identify new contact"},{"$f":"VLOOKUP(B210,'LOC FINAL with new Themes'!A:M,8,0)","v":0},{"$f":"VLOOKUP(B210,'LOC FINAL with new Themes'!A:M,9,0)","v":0},{"$f":"VLOOKUP(B210,'LOC FINAL with new Themes'!A:M,10,0)","v":0},{"$f":"VLOOKUP(B210,'LOC FINAL with new Themes'!A:M,11,0)","v":0},{"$f":"VLOOKUP(B210,'LOC FINAL with new Themes'!A:M,12,0)","v":0},{"$f":"VLOOKUP(B210,'LOC FINAL with new Themes'!A:M,13,0)","v":0}]
["National Cooperative Soil Survey (NCSS)","National Cooperative Soil Survey (NCSS)","National Cooperative Soil Characterization Database","National Cooperative Soil Characterization Database","Soils ","USDA-NRCS","Larry West","Larry.West@lin.usda.gov",null,{"$f":"VLOOKUP(B211,'LOC FINAL with new Themes'!A:M,7,0)","v":"We have our Soil Survey Geographic database called SSURGO which is made available through the following sites:\nWeb Soil Survey:    http://websoilsurvey.nrcs.usda.gov/app/\nSoil Data Mart:     http://soildatamart.nrcs.usda.gov/\nSoil Data Access:   http://sdmdataaccess.nrcs.usda.gov\n\nWe also have: \nLab Soil Survey Lab Characterization Data (Point data): http://ssldata.nrcs.usda.gov/ aka NCSS Characterization Database\nSoil Series Classification Database http://soils.usda.gov/technical/classification/scfile/index.html\nU.S. General Soil Map (STATSGO2)\nMajor Land Resource Area (MLRA) http://soils.usda.gov/survey/geography/mlra/\n             Common Resource Areas (CRA) \n\n"},{"$f":"VLOOKUP(B211,'LOC FINAL with new Themes'!A:M,8,0)","v":"? No, I am a Program Manager. Various other people have roles of maintaining the data. "},{"$f":"VLOOKUP(B211,'LOC FINAL with new Themes'!A:M,9,0)","v":"I am a general information POC for all things soil survey related. For more technical aspects on our data sets a good POC would be David Hoover, National Leader for Soil Business Systems or someone on his staff. His contact number is 402-437-4013 or email at david.hoover@lin.usda.gov. "},{"$f":"VLOOKUP(B211,'LOC FINAL with new Themes'!A:M,10,0)","v":"Our data sets are constantly being updated by about 1000 soil and plant scientists in several agencies. "},{"$f":"VLOOKUP(B211,'LOC FINAL with new Themes'!A:M,11,0)","v":"Our data sets are archived, but I don’t know how far back. I will have to get back to you on that. It is my understanding that archived sets are not easily accessible.  We have archive data for SSURGO (Soil Data Warehouse from mid 2000’s or earlier – Jim Fortner or Jennifer Sweet may be able to confirm or provide more detail; We also have archive data for STATSGO (circa 1994;1996) and for MLRA (1978; 2001; 2006) in local holdings.  Not sure about lab data archives, Henry Ferguson or Larry West can confirm.  "},{"$f":"VLOOKUP(B211,'LOC FINAL with new Themes'!A:M,12,0)","v":"? the Lab Characterization Data is also known as the “NCSS Characterization Database”\nAdded Common Resource Area geographic database (CRA)."},{"$f":"VLOOKUP(B211,'LOC FINAL with new Themes'!A:M,13,0)","v":"P"}]
["Soil Survey Geographic Database (SSURGO)","Soil Survey Geographic Database (SSURGO)","Soil Survey Geographic Database (SSURGO)","Soil Survey Geographic Database (SSURGO)","Soils ","USDA-NRCS","David Hoover","David.Hoover@wdc.usda.gov",null,{"$f":"VLOOKUP(B212,'LOC FINAL with new Themes'!A:M,7,0)","v":"undeliverable email- neeed to identify new contact"},{"$f":"VLOOKUP(B212,'LOC FINAL with new Themes'!A:M,8,0)","v":0},{"$f":"VLOOKUP(B212,'LOC FINAL with new Themes'!A:M,9,0)","v":0},{"$f":"VLOOKUP(B212,'LOC FINAL with new Themes'!A:M,10,0)","v":0},{"$f":"VLOOKUP(B212,'LOC FINAL with new Themes'!A:M,11,0)","v":0},{"$f":"VLOOKUP(B212,'LOC FINAL with new Themes'!A:M,12,0)","v":0},{"$f":"VLOOKUP(B212,'LOC FINAL with new Themes'!A:M,13,0)","v":0}]
["U.S. General Soil Map (STATSGO2)","U.S. General Soil Map (STATSGO2)","U.S. General Soil Map (STATSGO2)","U.S. General Soil Map (STATSGO2)","Soils ","USDA-NRCS","David Hoover","David.Hoover@wdc.usda.gov",null,{"$f":"VLOOKUP(B213,'LOC FINAL with new Themes'!A:M,7,0)","v":"undeliverable email- neeed to identify new contact"},{"$f":"VLOOKUP(B213,'LOC FINAL with new Themes'!A:M,8,0)","v":0},{"$f":"VLOOKUP(B213,'LOC FINAL with new Themes'!A:M,9,0)","v":0},{"$f":"VLOOKUP(B213,'LOC FINAL with new Themes'!A:M,10,0)","v":0},{"$f":"VLOOKUP(B213,'LOC FINAL with new Themes'!A:M,11,0)","v":0},{"$f":"VLOOKUP(B213,'LOC FINAL with new Themes'!A:M,12,0)","v":0},{"$f":"VLOOKUP(B213,'LOC FINAL with new Themes'!A:M,13,0)","v":0}]
[null,null,null,{"$f":"SUBTOTAL(3,D209:D213)","v":5},"Soils  Count"]
[null,"Address Range-Feature Name Relationship File","Address Range-Feature Name Relationship File",{"$f":"IF(C215=0,B215,C215)","v":"Address Range-Feature Name Relationship File"},"Transportation ","DOC-Census","Jennifer Holland","Jennifer.L.Holland@census.gov",null,{"$f":"VLOOKUP(B215,'LOC FINAL with new Themes'!A:M,7,0)","v":0},{"$f":"VLOOKUP(B215,'LOC FINAL with new Themes'!A:M,8,0)","v":0},{"$f":"VLOOKUP(B215,'LOC FINAL with new Themes'!A:M,9,0)","v":0},{"$f":"VLOOKUP(B215,'LOC FINAL with new Themes'!A:M,10,0)","v":0},{"$f":"VLOOKUP(B215,'LOC FINAL with new Themes'!A:M,11,0)","v":0},{"$f":"VLOOKUP(B215,'LOC FINAL with new Themes'!A:M,12,0)","v":0},{"$f":"VLOOKUP(B215,'LOC FINAL with new Themes'!A:M,13,0)","v":0}]
[null,"Address Ranges Relationship File","Address Ranges Relationship File","Address Ranges Relationship File","Transportation ","DOC-Census","Jennifer Holland","Jennifer.L.Holland@census.gov",null,{"$f":"VLOOKUP(B216,'LOC FINAL with new Themes'!A:M,7,0)","v":0},{"$f":"VLOOKUP(B216,'LOC FINAL with new Themes'!A:M,8,0)","v":0},{"$f":"VLOOKUP(B216,'LOC FINAL with new Themes'!A:M,9,0)","v":0},{"$f":"VLOOKUP(B216,'LOC FINAL with new Themes'!A:M,10,0)","v":0},{"$f":"VLOOKUP(B216,'LOC FINAL with new Themes'!A:M,11,0)","v":0},{"$f":"VLOOKUP(B216,'LOC FINAL with new Themes'!A:M,12,0)","v":0},{"$f":"VLOOKUP(B216,'LOC FINAL with new Themes'!A:M,13,0)","v":0}]
[null,"All Roads","All Roads","All Roads","Transportation ","DOC-Census","Jennifer Holland","Jennifer.L.Holland@census.gov",null,{"$f":"VLOOKUP(B217,'LOC FINAL with new Themes'!A:M,7,0)","v":0},{"$f":"VLOOKUP(B217,'LOC FINAL with new Themes'!A:M,8,0)","v":0},{"$f":"VLOOKUP(B217,'LOC FINAL with new Themes'!A:M,9,0)","v":0},{"$f":"VLOOKUP(B217,'LOC FINAL with new Themes'!A:M,10,0)","v":0},{"$f":"VLOOKUP(B217,'LOC FINAL with new Themes'!A:M,11,0)","v":0},{"$f":"VLOOKUP(B217,'LOC FINAL with new Themes'!A:M,12,0)","v":0},{"$f":"VLOOKUP(B217,'LOC FINAL with new Themes'!A:M,13,0)","v":0}]
["Inland Electronic Navigation Charts (IENC)","Inland Electronic Navigation Charts (IENC)","Inland Electronic Navigation Charts (IENC)","Inland Electronic Navigation Charts (IENC)","Transportation ","DOD-USACE","Joel Schlagel","Joel.D.Schlagel@erdc.usace.army.mil ",null,{"$f":"VLOOKUP(B218,'LOC FINAL with new Themes'!A:M,7,0)","v":0},{"$f":"VLOOKUP(B218,'LOC FINAL with new Themes'!A:M,8,0)","v":0},{"$f":"VLOOKUP(B218,'LOC FINAL with new Themes'!A:M,9,0)","v":0},{"$f":"VLOOKUP(B218,'LOC FINAL with new Themes'!A:M,10,0)","v":0},{"$f":"VLOOKUP(B218,'LOC FINAL with new Themes'!A:M,11,0)","v":0},{"$f":"VLOOKUP(B218,'LOC FINAL with new Themes'!A:M,12,0)","v":0},{"$f":"VLOOKUP(B218,'LOC FINAL with new Themes'!A:M,13,0)","v":0}]
[null,null,"National Interagency Trails Dataset","National Interagency Trails Dataset","Transportation ","USDA"]
["National Map - Transportation Dataset","National Map - Transportation Dataset","National Transportation Dataset - National Map","National Transportation Dataset - National Map","Transportation ","DOI-USGS","Paul Wiese","pmwiese@usgs.gov",null,{"$f":"VLOOKUP(B220,'LOC FINAL with new Themes'!A:M,7,0)","v":0},{"$f":"VLOOKUP(B220,'LOC FINAL with new Themes'!A:M,8,0)","v":0},{"$f":"VLOOKUP(B220,'LOC FINAL with new Themes'!A:M,9,0)","v":0},{"$f":"VLOOKUP(B220,'LOC FINAL with new Themes'!A:M,10,0)","v":0},{"$f":"VLOOKUP(B220,'LOC FINAL with new Themes'!A:M,11,0)","v":0},{"$f":"VLOOKUP(B220,'LOC FINAL with new Themes'!A:M,12,0)","v":0},{"$f":"VLOOKUP(B220,'LOC FINAL with new Themes'!A:M,13,0)","v":0}]
["NTAD","NTAD","NTAD","NTAD","Transportation ","DOT-BTS","Robert Monniere","robert.monniere@dot.gov",null,{"$f":"VLOOKUP(B221,'LOC FINAL with new Themes'!A:M,7,0)","v":0},{"$f":"VLOOKUP(B221,'LOC FINAL with new Themes'!A:M,8,0)","v":0},{"$f":"VLOOKUP(B221,'LOC FINAL with new Themes'!A:M,9,0)","v":0},{"$f":"VLOOKUP(B221,'LOC FINAL with new Themes'!A:M,10,0)","v":0},{"$f":"VLOOKUP(B221,'LOC FINAL with new Themes'!A:M,11,0)","v":0},{"$f":"VLOOKUP(B221,'LOC FINAL with new Themes'!A:M,12,0)","v":0},{"$f":"VLOOKUP(B221,'LOC FINAL with new Themes'!A:M,13,0)","v":0}]
[null,null,"NTAD (airports)","NTAD (airports)","Transportation ","DOT-BTS"]
[null,null,"NTAD (Rail)","NTAD (Rail)","Transportation ","DOT-BTS"]
["NTAD (TransitLines) ","NTAD (TransitLines) ","NTAD (TransitLines) ","NTAD (TransitLines) ","Transportation ","DOT-BTS","Robert Monniere ","robert.monniere@dot.gov \n",null,{"$f":"VLOOKUP(B224,'LOC FINAL with new Themes'!A:M,7,0)","v":0},{"$f":"VLOOKUP(B224,'LOC FINAL with new Themes'!A:M,8,0)","v":0},{"$f":"VLOOKUP(B224,'LOC FINAL with new Themes'!A:M,9,0)","v":0},{"$f":"VLOOKUP(B224,'LOC FINAL with new Themes'!A:M,10,0)","v":0},{"$f":"VLOOKUP(B224,'LOC FINAL with new Themes'!A:M,11,0)","v":0},{"$f":"VLOOKUP(B224,'LOC FINAL with new Themes'!A:M,12,0)","v":0},{"$f":"VLOOKUP(B224,'LOC FINAL with new Themes'!A:M,13,0)","v":0}]
["NTAD (TransitStation) ","NTAD (TransitStation) ","NTAD (TransitStation) ","NTAD (TransitStation) ","Transportation ","DOT-BTS","Robert Monniere ","robert.monniere@dot.gov ",null,{"$f":"VLOOKUP(B225,'LOC FINAL with new Themes'!A:M,7,0)","v":0},{"$f":"VLOOKUP(B225,'LOC FINAL with new Themes'!A:M,8,0)","v":0},{"$f":"VLOOKUP(B225,'LOC FINAL with new Themes'!A:M,9,0)","v":0},{"$f":"VLOOKUP(B225,'LOC FINAL with new Themes'!A:M,10,0)","v":0},{"$f":"VLOOKUP(B225,'LOC FINAL with new Themes'!A:M,11,0)","v":0},{"$f":"VLOOKUP(B225,'LOC FINAL with new Themes'!A:M,12,0)","v":0},{"$f":"VLOOKUP(B225,'LOC FINAL with new Themes'!A:M,13,0)","v":0}]
[null,"Primary and Secondary Roads","Primary and Secondary Roads",{"$f":"IF(C226=0,#REF!,C226)","v":"Primary and Secondary Roads"},"Transportation ","DOC-Census","Jennifer Holland","Jennifer.L.Holland@census.gov",null,{"$f":"VLOOKUP(B226,'LOC FINAL with new Themes'!A:M,7,0)","v":0},{"$f":"VLOOKUP(B226,'LOC FINAL with new Themes'!A:M,8,0)","v":0},{"$f":"VLOOKUP(B226,'LOC FINAL with new Themes'!A:M,9,0)","v":0},{"$f":"VLOOKUP(B226,'LOC FINAL with new Themes'!A:M,10,0)","v":0},{"$f":"VLOOKUP(B226,'LOC FINAL with new Themes'!A:M,11,0)","v":0},{"$f":"VLOOKUP(B226,'LOC FINAL with new Themes'!A:M,12,0)","v":0},{"$f":"VLOOKUP(B226,'LOC FINAL with new Themes'!A:M,13,0)","v":0}]
[null,"Primary Roads","Primary Roads",{"$f":"IF(C227=0,B227,C227)","v":"Primary Roads"},"Transportation ","DOC-Census","Jennifer Holland","Jennifer.L.Holland@census.gov",null,{"$f":"VLOOKUP(B227,'LOC FINAL with new Themes'!A:M,7,0)","v":0},{"$f":"VLOOKUP(B227,'LOC FINAL with new Themes'!A:M,8,0)","v":0},{"$f":"VLOOKUP(B227,'LOC FINAL with new Themes'!A:M,9,0)","v":0},{"$f":"VLOOKUP(B227,'LOC FINAL with new Themes'!A:M,10,0)","v":0},{"$f":"VLOOKUP(B227,'LOC FINAL with new Themes'!A:M,11,0)","v":0},{"$f":"VLOOKUP(B227,'LOC FINAL with new Themes'!A:M,12,0)","v":0},{"$f":"VLOOKUP(B227,'LOC FINAL with new Themes'!A:M,13,0)","v":0}]
["TIGER (Roads/Rail)","TIGER (Roads/Rail)",null,{"$f":"IF(C228=0,B228,C228)","v":"TIGER (Roads/Rail)"},"Transportation ","DOC-Census","Randy Fusaro","randy.j.fusaro@census.gov",null,{"$f":"VLOOKUP(B228,'LOC FINAL with new Themes'!A:M,7,0)","v":0},{"$f":"VLOOKUP(B228,'LOC FINAL with new Themes'!A:M,8,0)","v":0},{"$f":"VLOOKUP(B228,'LOC FINAL with new Themes'!A:M,9,0)","v":0},{"$f":"VLOOKUP(B228,'LOC FINAL with new Themes'!A:M,10,0)","v":0},{"$f":"VLOOKUP(B228,'LOC FINAL with new Themes'!A:M,11,0)","v":0},{"$f":"VLOOKUP(B228,'LOC FINAL with new Themes'!A:M,12,0)","v":0},{"$f":"VLOOKUP(B228,'LOC FINAL with new Themes'!A:M,13,0)","v":0}]
[null,"Traffic Analysis Zone (Census 2000)","Traffic Analysis Zone (Census 2000)",{"$f":"IF(C229=0,B229,C229)","v":"Traffic Analysis Zone (Census 2000)"},"Transportation ","DOC-Census","Jennifer Holland","Jennifer.L.Holland@census.gov",null,{"$f":"VLOOKUP(B229,'LOC FINAL with new Themes'!A:M,7,0)","v":0},{"$f":"VLOOKUP(B229,'LOC FINAL with new Themes'!A:M,8,0)","v":0},{"$f":"VLOOKUP(B229,'LOC FINAL with new Themes'!A:M,9,0)","v":0},{"$f":"VLOOKUP(B229,'LOC FINAL with new Themes'!A:M,10,0)","v":0},{"$f":"VLOOKUP(B229,'LOC FINAL with new Themes'!A:M,11,0)","v":0},{"$f":"VLOOKUP(B229,'LOC FINAL with new Themes'!A:M,12,0)","v":0},{"$f":"VLOOKUP(B229,'LOC FINAL with new Themes'!A:M,13,0)","v":0}]
[null,null,null,{"$f":"SUBTOTAL(3,D215:D229)","v":15},"Transportation  Count"]
[null,null,"Pipelines",{"$f":"IF(C231=0,B231,C231)","v":"Pipelines"},"Utilities ","DOI-BOEM","Doug Vandegraft","Doug.Vandegraft@boem.gov"]
[null,null,"Platforms",{"$f":"IF(C232=0,B232,C232)","v":"Platforms"},"Utilities ","DOI-MMS","Doug Vandegraft","Doug.Vandegraft@boem.gov"]
[null,null,null,{"$f":"SUBTOTAL(3,D231:D232)","v":2},"Utilities  Count"]
[null,"Area Hydrography (2010 Census)","Area Hydrography (2010 Census)",{"$f":"IF(C234=0,B234,C234)","v":"Area Hydrography (2010 Census)"},"Water -- Inland","DOC-Census","Jennifer Holland","Jennifer.L.Holland@census.gov",null,{"$f":"VLOOKUP(B234,'LOC FINAL with new Themes'!A:M,7,0)","v":0},{"$f":"VLOOKUP(B234,'LOC FINAL with new Themes'!A:M,8,0)","v":0},{"$f":"VLOOKUP(B234,'LOC FINAL with new Themes'!A:M,9,0)","v":0},{"$f":"VLOOKUP(B234,'LOC FINAL with new Themes'!A:M,10,0)","v":0},{"$f":"VLOOKUP(B234,'LOC FINAL with new Themes'!A:M,11,0)","v":0},{"$f":"VLOOKUP(B234,'LOC FINAL with new Themes'!A:M,12,0)","v":0},{"$f":"VLOOKUP(B234,'LOC FINAL with new Themes'!A:M,13,0)","v":0}]
[null,"Linear Water Features","Linear Water Features","Linear Water Features","Water -- Inland","DOC-Census","Jennifer Holland","Jennifer.L.Holland@census.gov",null,{"$f":"VLOOKUP(B235,'LOC FINAL with new Themes'!A:M,7,0)","v":0},{"$f":"VLOOKUP(B235,'LOC FINAL with new Themes'!A:M,8,0)","v":0},{"$f":"VLOOKUP(B235,'LOC FINAL with new Themes'!A:M,9,0)","v":0},{"$f":"VLOOKUP(B235,'LOC FINAL with new Themes'!A:M,10,0)","v":0},{"$f":"VLOOKUP(B235,'LOC FINAL with new Themes'!A:M,11,0)","v":0},{"$f":"VLOOKUP(B235,'LOC FINAL with new Themes'!A:M,12,0)","v":0},{"$f":"VLOOKUP(B235,'LOC FINAL with new Themes'!A:M,13,0)","v":0}]
["National Hydrography Data Set","National Hydrography Dataset","National Hydrography Dataset - National Map","National Hydrography Dataset - National Map","Water -- Inland","DOI-USGS","Jeff Simley","jdsimley@usgs.gov",null,{"$f":"VLOOKUP(B236,'LOC FINAL with new Themes'!A:M,7,0)","v":0},{"$f":"VLOOKUP(B236,'LOC FINAL with new Themes'!A:M,8,0)","v":0},{"$f":"VLOOKUP(B236,'LOC FINAL with new Themes'!A:M,9,0)","v":0},{"$f":"VLOOKUP(B236,'LOC FINAL with new Themes'!A:M,10,0)","v":0},{"$f":"VLOOKUP(B236,'LOC FINAL with new Themes'!A:M,11,0)","v":0},{"$f":"VLOOKUP(B236,'LOC FINAL with new Themes'!A:M,12,0)","v":0},{"$f":"VLOOKUP(B236,'LOC FINAL with new Themes'!A:M,13,0)","v":0}]
["National Inventory of Dams (NID)","National Inventory of Dams (NID)","National Inventory of Dams (NID)","National Inventory of Dams (NID)","Water -- Inland","DOD-USACE","Rebecca Ragon","Rebecca.Ragon@usace.army.mil ",null,{"$f":"VLOOKUP(B237,'LOC FINAL with new Themes'!A:M,7,0)","v":"One single data set"},{"$f":"VLOOKUP(B237,'LOC FINAL with new Themes'!A:M,8,0)","v":"Yes"},{"$f":"VLOOKUP(B237,'LOC FINAL with new Themes'!A:M,9,0)","v":"Yes"},{"$f":"VLOOKUP(B237,'LOC FINAL with new Themes'!A:M,10,0)","v":"Usually every 2 years"},{"$f":"VLOOKUP(B237,'LOC FINAL with new Themes'!A:M,11,0)","v":"Because the NID is updated every 2 years, we do have archived databased datig back to 1994."},{"$f":"VLOOKUP(B237,'LOC FINAL with new Themes'!A:M,12,0)","v":"The official name is National Inventory of Dams (NID) but I have seen the database referenced as the National Dam Inventory"},{"$f":"VLOOKUP(B237,'LOC FINAL with new Themes'!A:M,13,0)","v":"S"}]
["National Levee Database (NLD)","National Levee Database (NLD)","National Levee Database (NLD)","National Levee Database (NLD)","Water -- Inland","DOD-USACE","Bryan Baker","Bryan.E.Baker@usace.army.mil",null,{"$f":"VLOOKUP(B238,'LOC FINAL with new Themes'!A:M,7,0)","v":0},{"$f":"VLOOKUP(B238,'LOC FINAL with new Themes'!A:M,8,0)","v":0},{"$f":"VLOOKUP(B238,'LOC FINAL with new Themes'!A:M,9,0)","v":0},{"$f":"VLOOKUP(B238,'LOC FINAL with new Themes'!A:M,10,0)","v":0},{"$f":"VLOOKUP(B238,'LOC FINAL with new Themes'!A:M,11,0)","v":0},{"$f":"VLOOKUP(B238,'LOC FINAL with new Themes'!A:M,12,0)","v":0},{"$f":"VLOOKUP(B238,'LOC FINAL with new Themes'!A:M,13,0)","v":0}]
[null,null,"National Water Information System (NWIS)- Stream Gage Network","National Water Information System (NWIS)- Stream Gage Locations","Water -- Inland","DOI-USGS"]
[null,null,"National Water Information System (NWIS)- Water Quality Monitoring Stations","National Water Information System (NWIS)- Water Quality Monitoring Stations Locations","Water -- Inland","DOI-USGS"]
["National Wetlands Inventory (NWI) ","National Wetlands Inventory (NWI) ","National Wetlands Inventory (NWI) ","National Wetlands Inventory (NWI) ","Water -- Inland","DOI-FWS","Tom Dahl  ","tom_dahl@fws.gov\n",null,{"$f":"VLOOKUP(B241,'LOC FINAL with new Themes'!A:M,7,0)","v":0},{"$f":"VLOOKUP(B241,'LOC FINAL with new Themes'!A:M,8,0)","v":0},{"$f":"VLOOKUP(B241,'LOC FINAL with new Themes'!A:M,9,0)","v":0},{"$f":"VLOOKUP(B241,'LOC FINAL with new Themes'!A:M,10,0)","v":0},{"$f":"VLOOKUP(B241,'LOC FINAL with new Themes'!A:M,11,0)","v":0},{"$f":"VLOOKUP(B241,'LOC FINAL with new Themes'!A:M,12,0)","v":0},{"$f":"VLOOKUP(B241,'LOC FINAL with new Themes'!A:M,13,0)","v":0}]
[null,"Topological Faces-Area Hydrography Relationship File","Topological Faces-Area Hydrography Relationship File","Topological Faces-Area Hydrography Relationship File","Water -- Inland","DOC-Census","Jennifer Holland","Jennifer.L.Holland@census.gov",null,{"$f":"VLOOKUP(B242,'LOC FINAL with new Themes'!A:M,7,0)","v":0},{"$f":"VLOOKUP(B242,'LOC FINAL with new Themes'!A:M,8,0)","v":0},{"$f":"VLOOKUP(B242,'LOC FINAL with new Themes'!A:M,9,0)","v":0},{"$f":"VLOOKUP(B242,'LOC FINAL with new Themes'!A:M,10,0)","v":0},{"$f":"VLOOKUP(B242,'LOC FINAL with new Themes'!A:M,11,0)","v":0},{"$f":"VLOOKUP(B242,'LOC FINAL with new Themes'!A:M,12,0)","v":0},{"$f":"VLOOKUP(B242,'LOC FINAL with new Themes'!A:M,13,0)","v":0}]
["Watershed Boundary Data Set (WBD)  ","Watershed Boundary Dataset (WBD)  ","Watershed Boundary Dataset (WBD)  ","Watershed Boundary Dataset (WBD)  ","Water -- Inland","DOI-USGS","Karen Hanson","khanson@usgs.gov",null,{"$f":"VLOOKUP(B243,'LOC FINAL with new Themes'!A:M,7,0)","v":"one set with nested hierarchy of six different levels within it (regions, subdivided into four, six and twelve digits), POC and data manager; continually updated; co-managed with NRCS and they archive it; USGS in Denver will serve it; All transactions are archived in versions in the database as they happen. Data from any moment in time can be captured with a simple query. The database is replicated daily to Rolla, MO servers. The database is stored on a SAN with three tier redundancy.All changes to the database are stored on separate disks and once they reach a certain size, they are copied over to a server to be written to tape. Weekly, the entire database (NHD, with WBD) is written to tape.Monthly, the tapes are taken off site for storage."},{"$f":"VLOOKUP(B243,'LOC FINAL with new Themes'!A:M,8,0)","v":0},{"$f":"VLOOKUP(B243,'LOC FINAL with new Themes'!A:M,9,0)","v":0},{"$f":"VLOOKUP(B243,'LOC FINAL with new Themes'!A:M,10,0)","v":0},{"$f":"VLOOKUP(B243,'LOC FINAL with new Themes'!A:M,11,0)","v":0},{"$f":"VLOOKUP(B243,'LOC FINAL with new Themes'!A:M,12,0)","v":0},{"$f":"VLOOKUP(B243,'LOC FINAL with new Themes'!A:M,13,0)","v":"S"}]
[null,null,null,{"$f":"SUBTOTAL(3,D234:D243)","v":10},"Water -- Inland Count"]
[null,null,"Coastal Change Analysis Program (C-CAP) Land Cover and Land Change Imagery",{"$f":"IF(C245=0,B245,C245)","v":"Coastal Change Analysis Program (C-CAP) Land Cover and Land Change Imagery"},"Water -- Oceans and Coasts ","DOC-NOAA","Nate Herold","nate.herold@noaa.gov"]
["Continental Shelf Boundary Data","Continental Shelf Boundary Data","Continental Shelf Boundary Data","Continental Shelf Boundary Data","Water -- Oceans and Coasts ","DOI-BOEM","Doug Vandegraft","Doug.Vandegraft@boem.gov",null,{"$f":"VLOOKUP(B246,'LOC FINAL with new Themes'!A:M,7,0)","v":"undeliverable email- neeed to identify new contact"},{"$f":"VLOOKUP(B246,'LOC FINAL with new Themes'!A:M,8,0)","v":0},{"$f":"VLOOKUP(B246,'LOC FINAL with new Themes'!A:M,9,0)","v":0},{"$f":"VLOOKUP(B246,'LOC FINAL with new Themes'!A:M,10,0)","v":0},{"$f":"VLOOKUP(B246,'LOC FINAL with new Themes'!A:M,11,0)","v":0},{"$f":"VLOOKUP(B246,'LOC FINAL with new Themes'!A:M,12,0)","v":0},{"$f":"VLOOKUP(B246,'LOC FINAL with new Themes'!A:M,13,0)","v":0}]
[null,null,"National Data Buoy Center (NDBC) Recent and Historical Data","National Data Buoy Center (NDBC) Recent and Historical Data","Water -- Oceans and Coasts ","DOC-NOAA","Anne Ball","anne.ball@noaa.gov","843-740-1229"]
[null,null,"NOAA National Shoreline","NOAA National Shoreline","Water -- Oceans and Coasts ","DOC-NOAA","Doug Graham","Doug.Graham@noaa.gov"]
["NOAA Nautical Charts","NOAA Nautical Charts","NOAA's Nautical Chart Products","NOAA's Nautical Chart Products","Water -- Oceans and Coasts ","DOC-NOAA","Meredith Westington","meredith.westington@noaa.gov",null,{"$f":"VLOOKUP(B249,'LOC FINAL with new Themes'!A:M,7,0)","v":0},{"$f":"VLOOKUP(B249,'LOC FINAL with new Themes'!A:M,8,0)","v":0},{"$f":"VLOOKUP(B249,'LOC FINAL with new Themes'!A:M,9,0)","v":0},{"$f":"VLOOKUP(B249,'LOC FINAL with new Themes'!A:M,10,0)","v":0},{"$f":"VLOOKUP(B249,'LOC FINAL with new Themes'!A:M,11,0)","v":0},{"$f":"VLOOKUP(B249,'LOC FINAL with new Themes'!A:M,12,0)","v":0},{"$f":"VLOOKUP(B249,'LOC FINAL with new Themes'!A:M,13,0)","v":0}]
[null,null,"Non-Projected Boundaries","Non-Projected Boundaries","Water -- Oceans and Coasts ","DOI-BOEM","Doug Vandegraft","Doug.Vandegraft@boem.gov"]
[null,null,"Projected Boundaries","Projected Boundaries","Water -- Oceans and Coasts ","DOI-BOEM","Doug Vandegraft","Doug.Vandegraft@boem.gov"]
[null,null,"U.S. Marine Protected Areas Boundaries","U.S. Marine Protected Areas Boundaries","Water -- Oceans and Coasts ","DOC-NOAA","Anne Ball","anne.ball@noaa.gov","843-740-1229"]
[null,null,"U.S. Maritime Zones/Boundaries","U.S. Maritime Zones/Boundaries","Water -- Oceans and Coasts ","DOC-NOAA","Meredith Westington","meredith.westington@noaa.gov"]
[null,null,null,{"$f":"SUBTOTAL(3,D245:D253)","v":9},"Water -- Oceans and Coasts  Count"]
[null,null,null,{"$f":"SUBTOTAL(3,D2:D253)","v":234},"Grand Count"]

{"sheet":"5-9-2012","index":17,"n_rows":255,"n_cols":16,"rows_kept":255,"cut":false,"hidden":true,"merged":[]}
["ORIGINAL (beginning of 2011)","LOC FINAL (October 2011)","NGDA List (October 2011)","Dataset Name","Theme","Agency","Dataset Manager","Email","Phone Number","Q1 How many data set(s) do you have? It is a single set or multiple sets? ","Q2 Are you a data set manager?","Q3 Are you the POC for transferring the data set and/or for information about the data set?","Q4 How often is the data set updated?","Q5 Is there an archive/backup of the data set or do you maintain an archived copy of it? If yes, how far back do you maintain a copy? Is it easily accessible?","Q6 Does the data set go by a different name or is it referred to internally by another descriptive name?","M\nP\nS"]
[null,null,"Critical Habitat ","Critical Habitat for Threatened and Endangered Species Dataset","Biota","DOI-FWS","TBD"]
["ECOMAP Data Sets (Ecological Subregions: Sections and Subsections for the Conterminous United States ) ","ECOMAP Datasets (Ecological Subregions: Sections and Subsections for the Conterminous United States ) ","ECOMAP Datasets (Ecological Subregions: Sections and Subsections for the Conterminous United States ) ",{"$f":"IF(C3=0,B3,C3)","v":"ECOMAP Datasets (Ecological Subregions: Sections and Subsections for the Conterminous United States ) "},"Biota","USDA-FS","David T. Cleland","dcleland@fs.fed.us",null,{"$f":"VLOOKUP(B3,'LOC FINAL with new Themes'!A:M,7,0)","v":"One, single set"},{"$f":"VLOOKUP(B3,'LOC FINAL with new Themes'!A:M,8,0)","v":"Yes"},{"$f":"VLOOKUP(B3,'LOC FINAL with new Themes'!A:M,9,0)","v":"Yes"},{"$f":"VLOOKUP(B3,'LOC FINAL with new Themes'!A:M,10,0)","v":"Maps are updated on a 10-year cycle"},{"$f":"VLOOKUP(B3,'LOC FINAL with new Themes'!A:M,11,0)","v":"The data is housed at and served by the Forest Service geodata portal, and is easily accessible.  The web address is: http://fsgeodata.fs.fed.us/other_resources/ecosubregions.html "},{"$f":"VLOOKUP(B3,'LOC FINAL with new Themes'!A:M,12,0)","v":"?   Internally, the data is named ECOMAP or the National Hierarchy of Ecological Units. "},{"$f":"VLOOKUP(B3,'LOC FINAL with new Themes'!A:M,13,0)","v":"S"}]
["Env Sens Index Maps - classified shoreline","Env Sens Index Maps - classified shoreline","Environmental Sensitivity Index (ESI) Data and Maps","Environmental Sensitivity Index (ESI) Data and Maps","Biota","DOC-NOAA","Jill Petersen","jill.petersen@noaa.gov",null,{"$f":"VLOOKUP(B4,'LOC FINAL with new Themes'!A:M,7,0)","v":"There are approximately 70 different atlases. There are a few that are still not available in a GIS format, (approx 7 of the approx 70!) - these are available as the hard copy product and as PDFs (scanned). The remaining atlases are available in multiple GIS formats - Arc Export files, Geodatabase with an ArcMap map document complete with all relates established and properly symbolized, Shape files with an ArcView 3.x project, a free ESI viewer that allows viewing, queries and printing (in house mapping program and filemaker pro) as well as PDF format and the hard copy product. These can be downloaded from http://response.restoration.noaa.gov/esi_download This page is in progress, but should be complete fairly quickly.\n\n"},{"$f":"VLOOKUP(B4,'LOC FINAL with new Themes'!A:M,8,0)","v":"Yes"},{"$f":"VLOOKUP(B4,'LOC FINAL with new Themes'!A:M,9,0)","v":"Yes "},{"$f":"VLOOKUP(B4,'LOC FINAL with new Themes'!A:M,10,0)","v":"- High resolution products have no defined update schedule.  TBD by geog/project."},{"$f":"VLOOKUP(B4,'LOC FINAL with new Themes'!A:M,11,0)","v":"Yes and no. We have archives of all the digital data as well as all the PDFs (scanned or produced with the digital data map comps). Many of the hard copy atlases from the first round of ESI maps were sent to the Library of Commerce. Others I have kept, but no very organized situation. However, we have all of the historic PDFs which are an exact duplicate of the hard copy atlas, so that is something. Historic data is going to be served from the above link as well. That will be added as the current data sets are completed."},{"$f":"VLOOKUP(B4,'LOC FINAL with new Themes'!A:M,12,0)","v":"ESI is the common abbreviation for these maps. Other than that, Environmental Sensitivity Index Maps, Shoreline Sensitivity maps, Environmental Sensitivity maps..... These maps have the classified shoreline, as well as summaries of biological and human use resource particularly sensitive to oiling. "},{"$f":"VLOOKUP(B4,'LOC FINAL with new Themes'!A:M,13,0)","v":"M "}]
["GAP Program Dataset","GAP Program Dataset","GAP Program Dataset","GAP Program Dataset","Biota","DOI-USGS","Kevin Gergely","gergely@usgs.gov",null,{"$f":"VLOOKUP(B5,'LOC FINAL with new Themes'!A:M,7,0)","v":"POC; multiple data sets in single location, building three fundamental data layers, two are national (protected areas, land cover dataset); backup; six months, annually)"},{"$f":"VLOOKUP(B5,'LOC FINAL with new Themes'!A:M,8,0)","v":0},{"$f":"VLOOKUP(B5,'LOC FINAL with new Themes'!A:M,9,0)","v":0},{"$f":"VLOOKUP(B5,'LOC FINAL with new Themes'!A:M,10,0)","v":0},{"$f":"VLOOKUP(B5,'LOC FINAL with new Themes'!A:M,11,0)","v":0},{"$f":"VLOOKUP(B5,'LOC FINAL with new Themes'!A:M,12,0)","v":0},{"$f":"VLOOKUP(B5,'LOC FINAL with new Themes'!A:M,13,0)","v":"P"}]
["National Standardized Ecosystems Dataset","National Standardized Ecosystems Dataset","National Standardized Ecosystems Dataset","National Standardized Ecosystems Dataset","Biota","DOI-USGS","Roger Sayre","rsayre@usgs.gov",null,{"$f":"VLOOKUP(B6,'LOC FINAL with new Themes'!A:M,7,0)","v":0},{"$f":"VLOOKUP(B6,'LOC FINAL with new Themes'!A:M,8,0)","v":0},{"$f":"VLOOKUP(B6,'LOC FINAL with new Themes'!A:M,9,0)","v":0},{"$f":"VLOOKUP(B6,'LOC FINAL with new Themes'!A:M,10,0)","v":0},{"$f":"VLOOKUP(B6,'LOC FINAL with new Themes'!A:M,11,0)","v":0},{"$f":"VLOOKUP(B6,'LOC FINAL with new Themes'!A:M,12,0)","v":0},{"$f":"VLOOKUP(B6,'LOC FINAL with new Themes'!A:M,13,0)","v":0}]
[null,null,"Section 7 Range for listed species ","Section 7 Range for Listed Species Dataset","Biota","DOI-FWS","TBD"]
["Biomes, Ecoregions","Biomes, Ecoregions",null,"Biomes, Ecoregions","Biota ","DOI-USGS","Dan Phillips ","dphillips@usgs.gov",null,{"$f":"VLOOKUP(B8,'LOC FINAL with new Themes'!A:M,7,0)","v":0},{"$f":"VLOOKUP(B8,'LOC FINAL with new Themes'!A:M,8,0)","v":0},{"$f":"VLOOKUP(B8,'LOC FINAL with new Themes'!A:M,9,0)","v":0},{"$f":"VLOOKUP(B8,'LOC FINAL with new Themes'!A:M,10,0)","v":0},{"$f":"VLOOKUP(B8,'LOC FINAL with new Themes'!A:M,11,0)","v":0},{"$f":"VLOOKUP(B8,'LOC FINAL with new Themes'!A:M,12,0)","v":0},{"$f":"VLOOKUP(B8,'LOC FINAL with new Themes'!A:M,13,0)","v":0}]
["Ecological Services","Ecological Services",null,"Ecological Services","Biota ","DOI-USGS","Dan Phillips ","dphillips@usgs.gov",null,{"$f":"VLOOKUP(B9,'LOC FINAL with new Themes'!A:M,7,0)","v":0},{"$f":"VLOOKUP(B9,'LOC FINAL with new Themes'!A:M,8,0)","v":0},{"$f":"VLOOKUP(B9,'LOC FINAL with new Themes'!A:M,9,0)","v":0},{"$f":"VLOOKUP(B9,'LOC FINAL with new Themes'!A:M,10,0)","v":0},{"$f":"VLOOKUP(B9,'LOC FINAL with new Themes'!A:M,11,0)","v":0},{"$f":"VLOOKUP(B9,'LOC FINAL with new Themes'!A:M,12,0)","v":0},{"$f":"VLOOKUP(B9,'LOC FINAL with new Themes'!A:M,13,0)","v":0}]
["Habitats","Habitats",null,"Habitats","Biota ","DOI-USGS","Dan Phillips ","dphillips@usgs.gov",null,{"$f":"VLOOKUP(B10,'LOC FINAL with new Themes'!A:M,7,0)","v":"see protected areas and land cover set; vertebrae species of US being developed (not complete for all species they want to include in it."},{"$f":"VLOOKUP(B10,'LOC FINAL with new Themes'!A:M,8,0)","v":0},{"$f":"VLOOKUP(B10,'LOC FINAL with new Themes'!A:M,9,0)","v":0},{"$f":"VLOOKUP(B10,'LOC FINAL with new Themes'!A:M,10,0)","v":0},{"$f":"VLOOKUP(B10,'LOC FINAL with new Themes'!A:M,11,0)","v":0},{"$f":"VLOOKUP(B10,'LOC FINAL with new Themes'!A:M,12,0)","v":0},{"$f":"VLOOKUP(B10,'LOC FINAL with new Themes'!A:M,13,0)","v":"M"}]
["Invasive Species","Invasive Species",null,"Invasive Species","Biota ","DOI-USGS","Dan Phillips ","dphillips@usgs.gov",null,{"$f":"VLOOKUP(B11,'LOC FINAL with new Themes'!A:M,7,0)","v":"There are hundreds of datasets that are produced and maintained by the GAP program. Dan is not the data set manager, but I work with the people that maintain and update the datasets and maintains metadata.The data are updated at different intervals, especially now that they have moved more to a regional and national based approach. GAPS data sets presumably archived since 1990s."},{"$f":"VLOOKUP(B11,'LOC FINAL with new Themes'!A:M,8,0)","v":0},{"$f":"VLOOKUP(B11,'LOC FINAL with new Themes'!A:M,9,0)","v":0},{"$f":"VLOOKUP(B11,'LOC FINAL with new Themes'!A:M,10,0)","v":0},{"$f":"VLOOKUP(B11,'LOC FINAL with new Themes'!A:M,11,0)","v":0},{"$f":"VLOOKUP(B11,'LOC FINAL with new Themes'!A:M,12,0)","v":0},{"$f":"VLOOKUP(B11,'LOC FINAL with new Themes'!A:M,13,0)","v":"M"}]
["Species Distribution(amphibians, birds, reptiles, mammals, fishes, plants, etc)","Species Distribution (amphibians, birds, reptiles, mammals, fishes, plants, etc)",null,"Species Distribution (amphibians, birds, reptiles, mammals, fishes, plants, etc)","Biota ","DOI-USGS","Dan Phillips ","dphillips@usgs.gov",null,{"$f":"VLOOKUP(B12,'LOC FINAL with new Themes'!A:M,7,0)","v":"There are hundreds of datasets that are produced and maintained by the GAP program. Dan is not the data set manager, but I work with the people that maintain and update the datasets and maintains metadata. The data are updated at different intervals, especially now that they have moved more to a regional and national based approach. GAPS data sets presumably archived since 1990s."},{"$f":"VLOOKUP(B12,'LOC FINAL with new Themes'!A:M,8,0)","v":0},{"$f":"VLOOKUP(B12,'LOC FINAL with new Themes'!A:M,9,0)","v":0},{"$f":"VLOOKUP(B12,'LOC FINAL with new Themes'!A:M,10,0)","v":0},{"$f":"VLOOKUP(B12,'LOC FINAL with new Themes'!A:M,11,0)","v":0},{"$f":"VLOOKUP(B12,'LOC FINAL with new Themes'!A:M,12,0)","v":0},{"$f":"VLOOKUP(B12,'LOC FINAL with new Themes'!A:M,13,0)","v":"M"}]
[null,null,null,{"$f":"SUBTOTAL(3,D2:D12)","v":11},"Biota Count"]
["General Land Office","General Land Office","General Land Office",{"$f":"IF(C14=0,B14,C14)","v":"General Land Office"},"Cadastre","DOI-BLM","Juan Palma","juan_palma@blm.gov",null,{"$f":"VLOOKUP(B14,'LOC FINAL with new Themes'!A:M,7,0)","v":0},{"$f":"VLOOKUP(B14,'LOC FINAL with new Themes'!A:M,8,0)","v":0},{"$f":"VLOOKUP(B14,'LOC FINAL with new Themes'!A:M,9,0)","v":0},{"$f":"VLOOKUP(B14,'LOC FINAL with new Themes'!A:M,10,0)","v":0},{"$f":"VLOOKUP(B14,'LOC FINAL with new Themes'!A:M,11,0)","v":0},{"$f":"VLOOKUP(B14,'LOC FINAL with new Themes'!A:M,12,0)","v":0},{"$f":"VLOOKUP(B14,'LOC FINAL with new Themes'!A:M,13,0)","v":0}]
["Geographic Coordinate Data Base (GCDB)","Geographic Coordinate Data Base (GCDB)",null,"Geographic Coordinate Data Base (GCDB)","Cadastre","DOI-BLM","Don Buhler","don_buhler@blm.gov",null,{"$f":"VLOOKUP(B15,'LOC FINAL with new Themes'!A:M,7,0)","v":"every agency has its own database; multiple data sets; standard being advanced and put into practice; federal interest is managed with BLM; state and local are authoritative sets for other lands; "},{"$f":"VLOOKUP(B15,'LOC FINAL with new Themes'!A:M,8,0)","v":0},{"$f":"VLOOKUP(B15,'LOC FINAL with new Themes'!A:M,9,0)","v":0},{"$f":"VLOOKUP(B15,'LOC FINAL with new Themes'!A:M,10,0)","v":0},{"$f":"VLOOKUP(B15,'LOC FINAL with new Themes'!A:M,11,0)","v":0},{"$f":"VLOOKUP(B15,'LOC FINAL with new Themes'!A:M,12,0)","v":0},{"$f":"VLOOKUP(B15,'LOC FINAL with new Themes'!A:M,13,0)","v":"M "}]
["LR 2000 - Master Title Plats ","LR 2000 - Master Title Plats ","LR 2000 - Attribute Information","LR 2000 - Attribute Information","Cadastre","DOI-BLM","Jeff Holdren","jeff_holdren@blm.gov",null,{"$f":"VLOOKUP(B16,'LOC FINAL with new Themes'!A:M,7,0)","v":"listing of sales, rents, agricultural disposal and rights of way cases, group of data sets in one system; Kim Burns, division chief; not archived, there is a backup; Denver office handles"},{"$f":"VLOOKUP(B16,'LOC FINAL with new Themes'!A:M,8,0)","v":0},{"$f":"VLOOKUP(B16,'LOC FINAL with new Themes'!A:M,9,0)","v":0},{"$f":"VLOOKUP(B16,'LOC FINAL with new Themes'!A:M,10,0)","v":0},{"$f":"VLOOKUP(B16,'LOC FINAL with new Themes'!A:M,11,0)","v":0},{"$f":"VLOOKUP(B16,'LOC FINAL with new Themes'!A:M,12,0)","v":0},{"$f":"VLOOKUP(B16,'LOC FINAL with new Themes'!A:M,13,0)","v":"P"}]
["Manual of Surveying Instructions, Data Standards","Manual of Surveying Instructions, Data Standards",null,"Manual of Surveying Instructions, Data Standards","Cadastre","DOI-BLM","Don Buhler","don_buhler@blm.gov",null,{"$f":"VLOOKUP(B17,'LOC FINAL with new Themes'!A:M,7,0)","v":0},{"$f":"VLOOKUP(B17,'LOC FINAL with new Themes'!A:M,8,0)","v":0},{"$f":"VLOOKUP(B17,'LOC FINAL with new Themes'!A:M,9,0)","v":0},{"$f":"VLOOKUP(B17,'LOC FINAL with new Themes'!A:M,10,0)","v":0},{"$f":"VLOOKUP(B17,'LOC FINAL with new Themes'!A:M,11,0)","v":0},{"$f":"VLOOKUP(B17,'LOC FINAL with new Themes'!A:M,12,0)","v":0},{"$f":"VLOOKUP(B17,'LOC FINAL with new Themes'!A:M,13,0)","v":0}]
["Mineral Estate - Fluids","Mineral Estate - Fluids",null,"Mineral Estate - Fluids","Cadastre","DOI-BLM","Tim Spisak ","tim_spisak@blm.gov",null,{"$f":"VLOOKUP(B18,'LOC FINAL with new Themes'!A:M,7,0)","v":"mineral leasess, mining claims, rights of way, gases (single data set); BLM-managed lands but managed all federal mineral estate (comprehensive for mineraal estate) some electronic and some not"},{"$f":"VLOOKUP(B18,'LOC FINAL with new Themes'!A:M,8,0)","v":0},{"$f":"VLOOKUP(B18,'LOC FINAL with new Themes'!A:M,9,0)","v":0},{"$f":"VLOOKUP(B18,'LOC FINAL with new Themes'!A:M,10,0)","v":0},{"$f":"VLOOKUP(B18,'LOC FINAL with new Themes'!A:M,11,0)","v":0},{"$f":"VLOOKUP(B18,'LOC FINAL with new Themes'!A:M,12,0)","v":0},{"$f":"VLOOKUP(B18,'LOC FINAL with new Themes'!A:M,13,0)","v":"P"}]
["Mineral Estate - Solids","Mineral Estate - Solids",null,"Mineral Estate - Solids","Cadastre","DOI-BLM","Mitchell Leverette","mitchell_leverette@blm.gov",null,{"$f":"VLOOKUP(B19,'LOC FINAL with new Themes'!A:M,7,0)","v":"mineral leasess, mining claims, rights of way, gases (single data set); BLM-managed lands but managed all federal mineral estate (comprehensive for mineral estate) some electronic and some not"},{"$f":"VLOOKUP(B19,'LOC FINAL with new Themes'!A:M,8,0)","v":0},{"$f":"VLOOKUP(B19,'LOC FINAL with new Themes'!A:M,9,0)","v":0},{"$f":"VLOOKUP(B19,'LOC FINAL with new Themes'!A:M,10,0)","v":0},{"$f":"VLOOKUP(B19,'LOC FINAL with new Themes'!A:M,11,0)","v":0},{"$f":"VLOOKUP(B19,'LOC FINAL with new Themes'!A:M,12,0)","v":0},{"$f":"VLOOKUP(B19,'LOC FINAL with new Themes'!A:M,13,0)","v":"P"}]
[null,null,"PADUS (Protected Areas Database of the US)","PADUS (Protected Areas Database of the US)","Cadastre","DOI-USGS"]
["Parcels","Parcels","Parcels","Parcels","Cadastre","DOI-BLM","Bob Ader","bob_ader@blm.gov",null,{"$f":"VLOOKUP(B21,'LOC FINAL with new Themes'!A:M,7,0)","v":"every agency has its own database; multiple data sets; standard being advanced and put into practice; federal interest is managed with BLM; state and local are authoritative sets for other lands; current effort of federal inventory "},{"$f":"VLOOKUP(B21,'LOC FINAL with new Themes'!A:M,8,0)","v":0},{"$f":"VLOOKUP(B21,'LOC FINAL with new Themes'!A:M,9,0)","v":0},{"$f":"VLOOKUP(B21,'LOC FINAL with new Themes'!A:M,10,0)","v":0},{"$f":"VLOOKUP(B21,'LOC FINAL with new Themes'!A:M,11,0)","v":0},{"$f":"VLOOKUP(B21,'LOC FINAL with new Themes'!A:M,12,0)","v":0},{"$f":"VLOOKUP(B21,'LOC FINAL with new Themes'!A:M,13,0)","v":"M "}]
[null,null,"Protractions","Protractions","Cadastre","DOI-BOEM","Doug Vandegraft","Doug.Vandegraft@boem.gov"]
["Surface Estate","Surface Estate",null,"Surface Estate","Cadastre","DOI-BLM","Kim Burns","kim_m_burns@blm.gov",null,{"$f":"VLOOKUP(B23,'LOC FINAL with new Themes'!A:M,7,0)","v":"lands administered by BLM; other agencies have own system; ownership of lands;  Tim Spisak, division chief; not archived, there is a backup; Denver office handles"},{"$f":"VLOOKUP(B23,'LOC FINAL with new Themes'!A:M,8,0)","v":0},{"$f":"VLOOKUP(B23,'LOC FINAL with new Themes'!A:M,9,0)","v":0},{"$f":"VLOOKUP(B23,'LOC FINAL with new Themes'!A:M,10,0)","v":0},{"$f":"VLOOKUP(B23,'LOC FINAL with new Themes'!A:M,11,0)","v":0},{"$f":"VLOOKUP(B23,'LOC FINAL with new Themes'!A:M,12,0)","v":0},{"$f":"VLOOKUP(B23,'LOC FINAL with new Themes'!A:M,13,0)","v":0}]
["U.S. Official Cadastral Survey Records","U.S. Official Cadastral Survey Records","U.S. Official Cadastral Survey Records","U.S. Official Cadastral Survey Records","Cadastre","DOI-BLM","Don Buhler","don_buhler@blm.gov",null,{"$f":"VLOOKUP(B24,'LOC FINAL with new Themes'!A:M,7,0)","v":"every agency has its own database; multiple data sets; standard being advanced and put into practice; federal interest is managed with BLM; state and local are authoritative sets for other lands; state offices are scanning these records (survey plats and field notes); CDI (conveyence cards)"},{"$f":"VLOOKUP(B24,'LOC FINAL with new Themes'!A:M,8,0)","v":0},{"$f":"VLOOKUP(B24,'LOC FINAL with new Themes'!A:M,9,0)","v":0},{"$f":"VLOOKUP(B24,'LOC FINAL with new Themes'!A:M,10,0)","v":0},{"$f":"VLOOKUP(B24,'LOC FINAL with new Themes'!A:M,11,0)","v":0},{"$f":"VLOOKUP(B24,'LOC FINAL with new Themes'!A:M,12,0)","v":0},{"$f":"VLOOKUP(B24,'LOC FINAL with new Themes'!A:M,13,0)","v":"M "}]
["U.S. Public Land Survey System","U.S. Public Land Survey System","U.S. Public Land Survey System","U.S. Public Land Survey System","Cadastre","DOI-BLM","Don Buhler","don_buhler@blm.gov",null,{"$f":"VLOOKUP(B25,'LOC FINAL with new Themes'!A:M,7,0)","v":"only federal agency that administers the PLSS; trying to get it to be logically one data set with different regions. (working copies for nine states in West); keep historical record in data base; schema 2 is the version to look at for archiving some time March 2012"},{"$f":"VLOOKUP(B25,'LOC FINAL with new Themes'!A:M,8,0)","v":0},{"$f":"VLOOKUP(B25,'LOC FINAL with new Themes'!A:M,9,0)","v":0},{"$f":"VLOOKUP(B25,'LOC FINAL with new Themes'!A:M,10,0)","v":0},{"$f":"VLOOKUP(B25,'LOC FINAL with new Themes'!A:M,11,0)","v":0},{"$f":"VLOOKUP(B25,'LOC FINAL with new Themes'!A:M,12,0)","v":0},{"$f":"VLOOKUP(B25,'LOC FINAL with new Themes'!A:M,13,0)","v":"P"}]
[null,null,null,"Coastal National Parks","Cadastre","DOI - NPS","Roger Johnson ","Roger_M_Johnson@nps.gov"]
[null,null,null,"Coastal National Wildlife Refuges","Cadastre","DOI - NPS","Sean Killen","Sean_Killen@fws.gov"]
[null,null,null,"Coastal Indian Lands","Cadastre","DOI - BIA","Richard Moore","Richard.Moore@bia.gov"]
[null,null,null,"Outer Continental Shelf Lease Blocks","Cadastre","DOI - BOEM","Doug Vandegraft","Doug.Vandegraft@boem.gov"]
[null,null,null,"BOEM Active Oil and Gas Leases","Cadastre","DOI - BOEM","Doug Vandegraft","Doug.Vandegraft@boem.gov"]
[null,null,null,{"$f":"SUBTOTAL(3,D14:D25)","v":12},"Cadastre Count"]
["Blended Sea Surface Temperature","Blended Sea Surface Temperature","Blended Sea Surface Temperature",{"$f":"IF(C32=0,B32,C32)","v":"Blended Sea Surface Temperature"},"Climate and Weather ","DOC-NOAA","Viva Banzon","Viva.Banzon@noaa.gov",null,{"$f":"VLOOKUP(B32,'LOC FINAL with new Themes'!A:M,7,0)","v":0},{"$f":"VLOOKUP(B32,'LOC FINAL with new Themes'!A:M,8,0)","v":0},{"$f":"VLOOKUP(B32,'LOC FINAL with new Themes'!A:M,9,0)","v":0},{"$f":"VLOOKUP(B32,'LOC FINAL with new Themes'!A:M,10,0)","v":0},{"$f":"VLOOKUP(B32,'LOC FINAL with new Themes'!A:M,11,0)","v":0},{"$f":"VLOOKUP(B32,'LOC FINAL with new Themes'!A:M,12,0)","v":0},{"$f":"VLOOKUP(B32,'LOC FINAL with new Themes'!A:M,13,0)","v":0}]
["Geostationary Operational Environmental Satellite (GOES) data (NCDC)","Geostationary Operational Environmental Satellite (GOES) data (NCDC)","Geostationary Operational Environmental Satellite (GOES) data (NCDC)","Geostationary Operational Environmental Satellite (GOES) data (NCDC)","Climate and Weather ","DOC-NOAA","Nancy Ritchey","Nancy.Ritchey@noaa.gov",null,{"$f":"VLOOKUP(B33,'LOC FINAL with new Themes'!A:M,7,0)","v":"Define 'data set'.  Each spacecraft continuously produces a data stream.  There are multiple sets and the total going back to the late 70s or early 80s numbers in the millions"},{"$f":"VLOOKUP(B33,'LOC FINAL with new Themes'!A:M,8,0)","v":"Yes"},{"$f":"VLOOKUP(B33,'LOC FINAL with new Themes'!A:M,9,0)","v":"Yes"},{"$f":"VLOOKUP(B33,'LOC FINAL with new Themes'!A:M,10,0)","v":"Continuously"},{"$f":"VLOOKUP(B33,'LOC FINAL with new Themes'!A:M,11,0)","v":"There are two active archive centers for these data; one here in Asheville, NC and one in Boulder, CO.  These data go back to the late 70s and all data are on line wither on disc or robotic tape storage"},{"$f":"VLOOKUP(B33,'LOC FINAL with new Themes'!A:M,12,0)","v":"Again, define your terms.  For examples see www.class.noaa.gov - Raw data are listed by satellite (GOES or POES) and then be instrument.  Geophysical products are listed by product name."},{"$f":"VLOOKUP(B33,'LOC FINAL with new Themes'!A:M,13,0)","v":0}]
[null,null,"MODIS-based Atmospheric Products","MODIS-based Atmospheric Products","Climate and Weather ","USDA -FS (Along with USGS)"]
[null,null,"National Doplar Radar Data (NEXRAD)","National Doplar Radar Data (NEXRAD)","Climate and Weather ","DOC-NOAA","Steve DelGreco","stephen.a.delgreco"]
[null,null,"NOAA National Weather Service GIS Data",{"$f":"IF(C36=0,B36,C36)","v":"NOAA National Weather Service GIS Data"},"Climate and Weather ","DOC-NOAA","Anne Ball","anne.ball@noaa.gov","843-740-1229"]
["Parameter-elevation Regressions on Independent Slopes Model (PRISM) Data Sets","Parameter-elevation Regressions on Independent Slopes Model (PRISM) Datasets","Parameter-elevation Regressions on Independent Slopes Model (PRISM) Datasets",{"$f":"IF(C37=0,B37,C37)","v":"Parameter-elevation Regressions on Independent Slopes Model (PRISM) Datasets"},"Climate and Weather ","USDA-NRCS","Jan Curtis","jan.curtis@por.usda.gov",null,{"$f":"VLOOKUP(B37,'LOC FINAL with new Themes'!A:M,7,0)","v":"info provided via http://www.prism.oregonstate.edu/ and \nhttp://www.nrcs.usda.gov/wps/portal/nrcs/main/?ss=16&navtype=SubNavigation&cid=null&navid=850130000000000&pnavid=850000000000000&position=SubNavigation&ttype=main&pname=USDA%2520NRCS%2520-%2520Natural%2520Resources%2520Conservation%2520Service\n"},{"$f":"VLOOKUP(B37,'LOC FINAL with new Themes'!A:M,8,0)","v":0},{"$f":"VLOOKUP(B37,'LOC FINAL with new Themes'!A:M,9,0)","v":0},{"$f":"VLOOKUP(B37,'LOC FINAL with new Themes'!A:M,10,0)","v":0},{"$f":"VLOOKUP(B37,'LOC FINAL with new Themes'!A:M,11,0)","v":0},{"$f":"VLOOKUP(B37,'LOC FINAL with new Themes'!A:M,12,0)","v":0},{"$f":"VLOOKUP(B37,'LOC FINAL with new Themes'!A:M,13,0)","v":"M"}]
["Polar Operational Environmental Satellite (POES) data (NCDC)","Polar Operational Environmental Satellite (POES) data","Polar Operational Environmental Satellite (POES) data",{"$f":"IF(C38=0,B38,C38)","v":"Polar Operational Environmental Satellite (POES) data"},"Climate and Weather ","DOC-NOAA","John Bates","john.j.bates@noaa.gov",null,{"$f":"VLOOKUP(B38,'LOC FINAL with new Themes'!A:M,7,0)","v":0},{"$f":"VLOOKUP(B38,'LOC FINAL with new Themes'!A:M,8,0)","v":0},{"$f":"VLOOKUP(B38,'LOC FINAL with new Themes'!A:M,9,0)","v":0},{"$f":"VLOOKUP(B38,'LOC FINAL with new Themes'!A:M,10,0)","v":0},{"$f":"VLOOKUP(B38,'LOC FINAL with new Themes'!A:M,11,0)","v":0},{"$f":"VLOOKUP(B38,'LOC FINAL with new Themes'!A:M,12,0)","v":0},{"$f":"VLOOKUP(B38,'LOC FINAL with new Themes'!A:M,13,0)","v":0}]
[null,null,null,{"$f":"SUBTOTAL(3,D32:D38)","v":7},"Climate and Weather  Count"]
[null,"5-digit ZIP Code Tabulation Area (Census 2000)","5-digit ZIP Code Tabulation Area (Census 2000)",{"$f":"IF(C40=0,B40,C40)","v":"5-digit ZIP Code Tabulation Area (Census 2000)"},"Cultural & Demographic Statistics ","DOC-Census","Jennifer Holland","Jennifer.L.Holland@census.gov",null,{"$f":"VLOOKUP(B40,'LOC FINAL with new Themes'!A:M,7,0)","v":0},{"$f":"VLOOKUP(B40,'LOC FINAL with new Themes'!A:M,8,0)","v":0},{"$f":"VLOOKUP(B40,'LOC FINAL with new Themes'!A:M,9,0)","v":0},{"$f":"VLOOKUP(B40,'LOC FINAL with new Themes'!A:M,10,0)","v":0},{"$f":"VLOOKUP(B40,'LOC FINAL with new Themes'!A:M,11,0)","v":0},{"$f":"VLOOKUP(B40,'LOC FINAL with new Themes'!A:M,12,0)","v":0},{"$f":"VLOOKUP(B40,'LOC FINAL with new Themes'!A:M,13,0)","v":0}]
["AIR, ANVSA, Hawaiian Homelands Boundaries","AIR, ANVSA, Hawaiian Homelands Boundaries",null,"AIR, ANVSA, Hawaiian Homelands Boundaries","Cultural & Demographic Statistics ","DOC-Census","Randy Fusaro","randy.j.fusaro@census.gov",null,{"$f":"VLOOKUP(B41,'LOC FINAL with new Themes'!A:M,7,0)","v":0},{"$f":"VLOOKUP(B41,'LOC FINAL with new Themes'!A:M,8,0)","v":0},{"$f":"VLOOKUP(B41,'LOC FINAL with new Themes'!A:M,9,0)","v":0},{"$f":"VLOOKUP(B41,'LOC FINAL with new Themes'!A:M,10,0)","v":0},{"$f":"VLOOKUP(B41,'LOC FINAL with new Themes'!A:M,11,0)","v":0},{"$f":"VLOOKUP(B41,'LOC FINAL with new Themes'!A:M,12,0)","v":0},{"$f":"VLOOKUP(B41,'LOC FINAL with new Themes'!A:M,13,0)","v":0}]
[null,"All Lines (2010 Census)","All Lines (2010 Census)","All Lines (2010 Census)","Cultural & Demographic Statistics ","DOC-Census","Jennifer Holland","Jennifer.L.Holland@census.gov",null,{"$f":"VLOOKUP(B42,'LOC FINAL with new Themes'!A:M,7,0)","v":0},{"$f":"VLOOKUP(B42,'LOC FINAL with new Themes'!A:M,8,0)","v":0},{"$f":"VLOOKUP(B42,'LOC FINAL with new Themes'!A:M,9,0)","v":0},{"$f":"VLOOKUP(B42,'LOC FINAL with new Themes'!A:M,10,0)","v":0},{"$f":"VLOOKUP(B42,'LOC FINAL with new Themes'!A:M,11,0)","v":0},{"$f":"VLOOKUP(B42,'LOC FINAL with new Themes'!A:M,12,0)","v":0},{"$f":"VLOOKUP(B42,'LOC FINAL with new Themes'!A:M,13,0)","v":0}]
[null,"ANSI codes for  metro/micropolitan areas","ANSI codes for  metro/micropolitan areas","ANSI codes for  metro/micropolitan areas","Cultural & Demographic Statistics ","DOC-Census","Jennifer Holland","Jennifer.L.Holland@census.gov",null,{"$f":"VLOOKUP(B43,'LOC FINAL with new Themes'!A:M,7,0)","v":0},{"$f":"VLOOKUP(B43,'LOC FINAL with new Themes'!A:M,8,0)","v":0},{"$f":"VLOOKUP(B43,'LOC FINAL with new Themes'!A:M,9,0)","v":0},{"$f":"VLOOKUP(B43,'LOC FINAL with new Themes'!A:M,10,0)","v":0},{"$f":"VLOOKUP(B43,'LOC FINAL with new Themes'!A:M,11,0)","v":0},{"$f":"VLOOKUP(B43,'LOC FINAL with new Themes'!A:M,12,0)","v":0},{"$f":"VLOOKUP(B43,'LOC FINAL with new Themes'!A:M,13,0)","v":0}]
[null,"ANSI codes for congressional districts","ANSI codes for congressional districts","ANSI codes for congressional districts","Cultural & Demographic Statistics ","DOC-Census","Jennifer Holland","Jennifer.L.Holland@census.gov",null,{"$f":"VLOOKUP(B44,'LOC FINAL with new Themes'!A:M,7,0)","v":0},{"$f":"VLOOKUP(B44,'LOC FINAL with new Themes'!A:M,8,0)","v":0},{"$f":"VLOOKUP(B44,'LOC FINAL with new Themes'!A:M,9,0)","v":0},{"$f":"VLOOKUP(B44,'LOC FINAL with new Themes'!A:M,10,0)","v":0},{"$f":"VLOOKUP(B44,'LOC FINAL with new Themes'!A:M,11,0)","v":0},{"$f":"VLOOKUP(B44,'LOC FINAL with new Themes'!A:M,12,0)","v":0},{"$f":"VLOOKUP(B44,'LOC FINAL with new Themes'!A:M,13,0)","v":0}]
[null,"ANSI codes for counties","ANSI codes for counties","ANSI codes for counties","Cultural & Demographic Statistics ","DOC-Census","Jennifer Holland","Jennifer.L.Holland@census.gov",null,{"$f":"VLOOKUP(B45,'LOC FINAL with new Themes'!A:M,7,0)","v":0},{"$f":"VLOOKUP(B45,'LOC FINAL with new Themes'!A:M,8,0)","v":0},{"$f":"VLOOKUP(B45,'LOC FINAL with new Themes'!A:M,9,0)","v":0},{"$f":"VLOOKUP(B45,'LOC FINAL with new Themes'!A:M,10,0)","v":0},{"$f":"VLOOKUP(B45,'LOC FINAL with new Themes'!A:M,11,0)","v":0},{"$f":"VLOOKUP(B45,'LOC FINAL with new Themes'!A:M,12,0)","v":0},{"$f":"VLOOKUP(B45,'LOC FINAL with new Themes'!A:M,13,0)","v":0}]
[null,"ANSI codes for states","ANSI codes for states","ANSI codes for states","Cultural & Demographic Statistics ","DOC-Census","Jennifer Holland","Jennifer.L.Holland@census.gov",null,{"$f":"VLOOKUP(B46,'LOC FINAL with new Themes'!A:M,7,0)","v":0},{"$f":"VLOOKUP(B46,'LOC FINAL with new Themes'!A:M,8,0)","v":0},{"$f":"VLOOKUP(B46,'LOC FINAL with new Themes'!A:M,9,0)","v":0},{"$f":"VLOOKUP(B46,'LOC FINAL with new Themes'!A:M,10,0)","v":0},{"$f":"VLOOKUP(B46,'LOC FINAL with new Themes'!A:M,11,0)","v":0},{"$f":"VLOOKUP(B46,'LOC FINAL with new Themes'!A:M,12,0)","v":0},{"$f":"VLOOKUP(B46,'LOC FINAL with new Themes'!A:M,13,0)","v":0}]
[null,"Block (2010 Census)","Block (2010 Census)","Block (2010 Census)","Cultural & Demographic Statistics ","DOC-Census","Jennifer Holland","Jennifer.L.Holland@census.gov",null,{"$f":"VLOOKUP(B47,'LOC FINAL with new Themes'!A:M,7,0)","v":0},{"$f":"VLOOKUP(B47,'LOC FINAL with new Themes'!A:M,8,0)","v":0},{"$f":"VLOOKUP(B47,'LOC FINAL with new Themes'!A:M,9,0)","v":0},{"$f":"VLOOKUP(B47,'LOC FINAL with new Themes'!A:M,10,0)","v":0},{"$f":"VLOOKUP(B47,'LOC FINAL with new Themes'!A:M,11,0)","v":0},{"$f":"VLOOKUP(B47,'LOC FINAL with new Themes'!A:M,12,0)","v":0},{"$f":"VLOOKUP(B47,'LOC FINAL with new Themes'!A:M,13,0)","v":0}]
[null,"Block (Census 2000)","Block (Census 2000)","Block (Census 2000)","Cultural & Demographic Statistics ","DOC-Census","Jennifer Holland","Jennifer.L.Holland@census.gov",null,{"$f":"VLOOKUP(B48,'LOC FINAL with new Themes'!A:M,7,0)","v":0},{"$f":"VLOOKUP(B48,'LOC FINAL with new Themes'!A:M,8,0)","v":0},{"$f":"VLOOKUP(B48,'LOC FINAL with new Themes'!A:M,9,0)","v":0},{"$f":"VLOOKUP(B48,'LOC FINAL with new Themes'!A:M,10,0)","v":0},{"$f":"VLOOKUP(B48,'LOC FINAL with new Themes'!A:M,11,0)","v":0},{"$f":"VLOOKUP(B48,'LOC FINAL with new Themes'!A:M,12,0)","v":0},{"$f":"VLOOKUP(B48,'LOC FINAL with new Themes'!A:M,13,0)","v":0}]
[null,"Block Group (Census 2000)","Block Group (Census 2000)","Block Group (Census 2000)","Cultural & Demographic Statistics ","DOC-Census","Jennifer Holland","Jennifer.L.Holland@census.gov",null,{"$f":"VLOOKUP(B49,'LOC FINAL with new Themes'!A:M,7,0)","v":0},{"$f":"VLOOKUP(B49,'LOC FINAL with new Themes'!A:M,8,0)","v":0},{"$f":"VLOOKUP(B49,'LOC FINAL with new Themes'!A:M,9,0)","v":0},{"$f":"VLOOKUP(B49,'LOC FINAL with new Themes'!A:M,10,0)","v":0},{"$f":"VLOOKUP(B49,'LOC FINAL with new Themes'!A:M,11,0)","v":0},{"$f":"VLOOKUP(B49,'LOC FINAL with new Themes'!A:M,12,0)","v":0},{"$f":"VLOOKUP(B49,'LOC FINAL with new Themes'!A:M,13,0)","v":0}]
[null,"Block Group (Census 2010)","Block Group (Census 2010)","Block Group (Census 2010)","Cultural & Demographic Statistics ","DOC-Census","Jennifer Holland","Jennifer.L.Holland@census.gov",null,{"$f":"VLOOKUP(B50,'LOC FINAL with new Themes'!A:M,7,0)","v":0},{"$f":"VLOOKUP(B50,'LOC FINAL with new Themes'!A:M,8,0)","v":0},{"$f":"VLOOKUP(B50,'LOC FINAL with new Themes'!A:M,9,0)","v":0},{"$f":"VLOOKUP(B50,'LOC FINAL with new Themes'!A:M,10,0)","v":0},{"$f":"VLOOKUP(B50,'LOC FINAL with new Themes'!A:M,11,0)","v":0},{"$f":"VLOOKUP(B50,'LOC FINAL with new Themes'!A:M,12,0)","v":0},{"$f":"VLOOKUP(B50,'LOC FINAL with new Themes'!A:M,13,0)","v":0}]
[null,"Census 2000 FIPS 55 Codes","Census 2000 FIPS 55 Codes","Census 2000 FIPS 55 Codes","Cultural & Demographic Statistics ","DOC-Census","Jennifer Holland","Jennifer.L.Holland@census.gov",null,{"$f":"VLOOKUP(B51,'LOC FINAL with new Themes'!A:M,7,0)","v":0},{"$f":"VLOOKUP(B51,'LOC FINAL with new Themes'!A:M,8,0)","v":0},{"$f":"VLOOKUP(B51,'LOC FINAL with new Themes'!A:M,9,0)","v":0},{"$f":"VLOOKUP(B51,'LOC FINAL with new Themes'!A:M,10,0)","v":0},{"$f":"VLOOKUP(B51,'LOC FINAL with new Themes'!A:M,11,0)","v":0},{"$f":"VLOOKUP(B51,'LOC FINAL with new Themes'!A:M,12,0)","v":0},{"$f":"VLOOKUP(B51,'LOC FINAL with new Themes'!A:M,13,0)","v":0}]
[null,"Census Tract (2010 Census)","Census Tract (2010 Census)","Census Tract (2010 Census)","Cultural & Demographic Statistics ","DOC-Census","Jennifer Holland","Jennifer.L.Holland@census.gov",null,{"$f":"VLOOKUP(B52,'LOC FINAL with new Themes'!A:M,7,0)","v":0},{"$f":"VLOOKUP(B52,'LOC FINAL with new Themes'!A:M,8,0)","v":0},{"$f":"VLOOKUP(B52,'LOC FINAL with new Themes'!A:M,9,0)","v":0},{"$f":"VLOOKUP(B52,'LOC FINAL with new Themes'!A:M,10,0)","v":0},{"$f":"VLOOKUP(B52,'LOC FINAL with new Themes'!A:M,11,0)","v":0},{"$f":"VLOOKUP(B52,'LOC FINAL with new Themes'!A:M,12,0)","v":0},{"$f":"VLOOKUP(B52,'LOC FINAL with new Themes'!A:M,13,0)","v":0}]
[null,"Census Tract (Census 2000)","Census Tract (Census 2000)","Census Tract (Census 2000)","Cultural & Demographic Statistics ","DOC-Census","Jennifer Holland","Jennifer.L.Holland@census.gov",null,{"$f":"VLOOKUP(B53,'LOC FINAL with new Themes'!A:M,7,0)","v":0},{"$f":"VLOOKUP(B53,'LOC FINAL with new Themes'!A:M,8,0)","v":0},{"$f":"VLOOKUP(B53,'LOC FINAL with new Themes'!A:M,9,0)","v":0},{"$f":"VLOOKUP(B53,'LOC FINAL with new Themes'!A:M,10,0)","v":0},{"$f":"VLOOKUP(B53,'LOC FINAL with new Themes'!A:M,11,0)","v":0},{"$f":"VLOOKUP(B53,'LOC FINAL with new Themes'!A:M,12,0)","v":0},{"$f":"VLOOKUP(B53,'LOC FINAL with new Themes'!A:M,13,0)","v":0}]
[null,"Combined Statistical Area (2010 Census)","Combined Statistical Area (2010 Census)","Combined Statistical Area (2010 Census)","Cultural & Demographic Statistics ","DOC-Census","Jennifer Holland","Jennifer.L.Holland@census.gov",null,{"$f":"VLOOKUP(B54,'LOC FINAL with new Themes'!A:M,7,0)","v":0},{"$f":"VLOOKUP(B54,'LOC FINAL with new Themes'!A:M,8,0)","v":0},{"$f":"VLOOKUP(B54,'LOC FINAL with new Themes'!A:M,9,0)","v":0},{"$f":"VLOOKUP(B54,'LOC FINAL with new Themes'!A:M,10,0)","v":0},{"$f":"VLOOKUP(B54,'LOC FINAL with new Themes'!A:M,11,0)","v":0},{"$f":"VLOOKUP(B54,'LOC FINAL with new Themes'!A:M,12,0)","v":0},{"$f":"VLOOKUP(B54,'LOC FINAL with new Themes'!A:M,13,0)","v":0}]
[null,"Congressional District Boundaries",null,"Congressional District Boundaries","Cultural & Demographic Statistics ","DOC-Census","Randy Fusaro","randy.j.fusaro@census.gov",null,{"$f":"VLOOKUP(B55,'LOC FINAL with new Themes'!A:M,7,0)","v":0},{"$f":"VLOOKUP(B55,'LOC FINAL with new Themes'!A:M,8,0)","v":0},{"$f":"VLOOKUP(B55,'LOC FINAL with new Themes'!A:M,9,0)","v":0},{"$f":"VLOOKUP(B55,'LOC FINAL with new Themes'!A:M,10,0)","v":0},{"$f":"VLOOKUP(B55,'LOC FINAL with new Themes'!A:M,11,0)","v":0},{"$f":"VLOOKUP(B55,'LOC FINAL with new Themes'!A:M,12,0)","v":0},{"$f":"VLOOKUP(B55,'LOC FINAL with new Themes'!A:M,13,0)","v":0}]
["County, place, MCD Boundaries","County, place, MCD Boundaries",null,"County, place, MCD Boundaries","Cultural & Demographic Statistics ","DOC-Census","Randy Fusaro","randy.j.fusaro@census.gov",null,{"$f":"VLOOKUP(B56,'LOC FINAL with new Themes'!A:M,7,0)","v":0},{"$f":"VLOOKUP(B56,'LOC FINAL with new Themes'!A:M,8,0)","v":0},{"$f":"VLOOKUP(B56,'LOC FINAL with new Themes'!A:M,9,0)","v":0},{"$f":"VLOOKUP(B56,'LOC FINAL with new Themes'!A:M,10,0)","v":0},{"$f":"VLOOKUP(B56,'LOC FINAL with new Themes'!A:M,11,0)","v":0},{"$f":"VLOOKUP(B56,'LOC FINAL with new Themes'!A:M,12,0)","v":0},{"$f":"VLOOKUP(B56,'LOC FINAL with new Themes'!A:M,13,0)","v":0}]
[null,"Elementary School District (2010 Census)","Elementary School District (2010 Census)","Elementary School District (2010 Census)","Cultural & Demographic Statistics ","DOC-Census","Jennifer Holland","Jennifer.L.Holland@census.gov",null,{"$f":"VLOOKUP(B57,'LOC FINAL with new Themes'!A:M,7,0)","v":0},{"$f":"VLOOKUP(B57,'LOC FINAL with new Themes'!A:M,8,0)","v":0},{"$f":"VLOOKUP(B57,'LOC FINAL with new Themes'!A:M,9,0)","v":0},{"$f":"VLOOKUP(B57,'LOC FINAL with new Themes'!A:M,10,0)","v":0},{"$f":"VLOOKUP(B57,'LOC FINAL with new Themes'!A:M,11,0)","v":0},{"$f":"VLOOKUP(B57,'LOC FINAL with new Themes'!A:M,12,0)","v":0},{"$f":"VLOOKUP(B57,'LOC FINAL with new Themes'!A:M,13,0)","v":0}]
[null,"Elementary School District (Census 2000)","Elementary School District (Census 2000)","Elementary School District (Census 2000)","Cultural & Demographic Statistics ","DOC-Census","Jennifer Holland","Jennifer.L.Holland@census.gov",null,{"$f":"VLOOKUP(B58,'LOC FINAL with new Themes'!A:M,7,0)","v":0},{"$f":"VLOOKUP(B58,'LOC FINAL with new Themes'!A:M,8,0)","v":0},{"$f":"VLOOKUP(B58,'LOC FINAL with new Themes'!A:M,9,0)","v":0},{"$f":"VLOOKUP(B58,'LOC FINAL with new Themes'!A:M,10,0)","v":0},{"$f":"VLOOKUP(B58,'LOC FINAL with new Themes'!A:M,11,0)","v":0},{"$f":"VLOOKUP(B58,'LOC FINAL with new Themes'!A:M,12,0)","v":0},{"$f":"VLOOKUP(B58,'LOC FINAL with new Themes'!A:M,13,0)","v":0}]
["FIPS/ANSI codes for states, counties, congressional districts & metro/micropolitan areas","FIPS/ANSI codes for states, counties, congressional districts & metro/micropolitan areas",null,"FIPS/ANSI codes for states, counties, congressional districts & metro/micropolitan areas","Cultural & Demographic Statistics ","DOC-Census","Randy Fusaro","randy.j.fusaro@census.gov",null,{"$f":"VLOOKUP(B59,'LOC FINAL with new Themes'!A:M,7,0)","v":0},{"$f":"VLOOKUP(B59,'LOC FINAL with new Themes'!A:M,8,0)","v":0},{"$f":"VLOOKUP(B59,'LOC FINAL with new Themes'!A:M,9,0)","v":0},{"$f":"VLOOKUP(B59,'LOC FINAL with new Themes'!A:M,10,0)","v":0},{"$f":"VLOOKUP(B59,'LOC FINAL with new Themes'!A:M,11,0)","v":0},{"$f":"VLOOKUP(B59,'LOC FINAL with new Themes'!A:M,12,0)","v":0},{"$f":"VLOOKUP(B59,'LOC FINAL with new Themes'!A:M,13,0)","v":0}]
["Metropolitan/micropolitan area boundaries","Metropolitan/micropolitan area boundaries",null,"Metropolitan/micropolitan area boundaries","Cultural & Demographic Statistics ","DOC-Census","Randy Fusaro","randy.j.fusaro@census.gov",null,{"$f":"VLOOKUP(B60,'LOC FINAL with new Themes'!A:M,7,0)","v":0},{"$f":"VLOOKUP(B60,'LOC FINAL with new Themes'!A:M,8,0)","v":0},{"$f":"VLOOKUP(B60,'LOC FINAL with new Themes'!A:M,9,0)","v":0},{"$f":"VLOOKUP(B60,'LOC FINAL with new Themes'!A:M,10,0)","v":0},{"$f":"VLOOKUP(B60,'LOC FINAL with new Themes'!A:M,11,0)","v":0},{"$f":"VLOOKUP(B60,'LOC FINAL with new Themes'!A:M,12,0)","v":0},{"$f":"VLOOKUP(B60,'LOC FINAL with new Themes'!A:M,13,0)","v":0}]
[null,"Metropolitan/micropolitan Statistical Area (2010 Census)","Metropolitan/micropolitan Statistical Area (2010 Census)","Metropolitan/micropolitan Statistical Area (2010 Census)","Cultural & Demographic Statistics ","DOC-Census","Jennifer Holland","Jennifer.L.Holland@census.gov",null,{"$f":"VLOOKUP(B61,'LOC FINAL with new Themes'!A:M,7,0)","v":0},{"$f":"VLOOKUP(B61,'LOC FINAL with new Themes'!A:M,8,0)","v":0},{"$f":"VLOOKUP(B61,'LOC FINAL with new Themes'!A:M,9,0)","v":0},{"$f":"VLOOKUP(B61,'LOC FINAL with new Themes'!A:M,10,0)","v":0},{"$f":"VLOOKUP(B61,'LOC FINAL with new Themes'!A:M,11,0)","v":0},{"$f":"VLOOKUP(B61,'LOC FINAL with new Themes'!A:M,12,0)","v":0},{"$f":"VLOOKUP(B61,'LOC FINAL with new Themes'!A:M,13,0)","v":0}]
["National Center for Health Statistics (Atlas of US Mortality)","National Center for Health Statistics (Atlas of US Mortality)",null,"National Center for Health Statistics (Atlas of US Mortality)","Cultural & Demographic Statistics ","HHS","Gary Anderson","gary.anderson@hhs.gov",null,{"$f":"VLOOKUP(B62,'LOC FINAL with new Themes'!A:M,7,0)","v":0},{"$f":"VLOOKUP(B62,'LOC FINAL with new Themes'!A:M,8,0)","v":0},{"$f":"VLOOKUP(B62,'LOC FINAL with new Themes'!A:M,9,0)","v":0},{"$f":"VLOOKUP(B62,'LOC FINAL with new Themes'!A:M,10,0)","v":0},{"$f":"VLOOKUP(B62,'LOC FINAL with new Themes'!A:M,11,0)","v":0},{"$f":"VLOOKUP(B62,'LOC FINAL with new Themes'!A:M,12,0)","v":0},{"$f":"VLOOKUP(B62,'LOC FINAL with new Themes'!A:M,13,0)","v":0}]
[null,null,"Oklahoma Tribal Joint Use Areas","Oklahoma Tribal Joint Use Areas","Cultural & Demographic Statistics ","DOC-Census"]
[null,null,"Oklahoma Tribal Statistical Areas","Oklahoma Tribal Statistical Areas","Cultural & Demographic Statistics ","DOC-Census"]
[null,"Public Use Microdata Area (Census 2000)","Public Use Microdata Area (Census 2000)","Public Use Microdata Area (Census 2000)","Cultural & Demographic Statistics ","DOC-Census","Jennifer Holland","Jennifer.L.Holland@census.gov",null,{"$f":"VLOOKUP(B65,'LOC FINAL with new Themes'!A:M,7,0)","v":0},{"$f":"VLOOKUP(B65,'LOC FINAL with new Themes'!A:M,8,0)","v":0},{"$f":"VLOOKUP(B65,'LOC FINAL with new Themes'!A:M,9,0)","v":0},{"$f":"VLOOKUP(B65,'LOC FINAL with new Themes'!A:M,10,0)","v":0},{"$f":"VLOOKUP(B65,'LOC FINAL with new Themes'!A:M,11,0)","v":0},{"$f":"VLOOKUP(B65,'LOC FINAL with new Themes'!A:M,12,0)","v":0},{"$f":"VLOOKUP(B65,'LOC FINAL with new Themes'!A:M,13,0)","v":0}]
["School District Boundaries","School District Boundaries",null,"School District Boundaries","Cultural & Demographic Statistics ","DOC-Census","Randy Fusaro","randy.j.fusaro@census.gov",null,{"$f":"VLOOKUP(B66,'LOC FINAL with new Themes'!A:M,7,0)","v":0},{"$f":"VLOOKUP(B66,'LOC FINAL with new Themes'!A:M,8,0)","v":0},{"$f":"VLOOKUP(B66,'LOC FINAL with new Themes'!A:M,9,0)","v":0},{"$f":"VLOOKUP(B66,'LOC FINAL with new Themes'!A:M,10,0)","v":0},{"$f":"VLOOKUP(B66,'LOC FINAL with new Themes'!A:M,11,0)","v":0},{"$f":"VLOOKUP(B66,'LOC FINAL with new Themes'!A:M,12,0)","v":0},{"$f":"VLOOKUP(B66,'LOC FINAL with new Themes'!A:M,13,0)","v":0}]
[null,"Secondary School District (2010 Census)","Secondary School District (2010 Census)","Secondary School District (2010 Census)","Cultural & Demographic Statistics ","DOC-Census","Jennifer Holland","Jennifer.L.Holland@census.gov",null,{"$f":"VLOOKUP(B67,'LOC FINAL with new Themes'!A:M,7,0)","v":0},{"$f":"VLOOKUP(B67,'LOC FINAL with new Themes'!A:M,8,0)","v":0},{"$f":"VLOOKUP(B67,'LOC FINAL with new Themes'!A:M,9,0)","v":0},{"$f":"VLOOKUP(B67,'LOC FINAL with new Themes'!A:M,10,0)","v":0},{"$f":"VLOOKUP(B67,'LOC FINAL with new Themes'!A:M,11,0)","v":0},{"$f":"VLOOKUP(B67,'LOC FINAL with new Themes'!A:M,12,0)","v":0},{"$f":"VLOOKUP(B67,'LOC FINAL with new Themes'!A:M,13,0)","v":0}]
[null,"Secondary School District (Census 2000)","Secondary School District (Census 2000)","Secondary School District (Census 2000)","Cultural & Demographic Statistics ","DOC-Census","Jennifer Holland","Jennifer.L.Holland@census.gov",null,{"$f":"VLOOKUP(B68,'LOC FINAL with new Themes'!A:M,7,0)","v":0},{"$f":"VLOOKUP(B68,'LOC FINAL with new Themes'!A:M,8,0)","v":0},{"$f":"VLOOKUP(B68,'LOC FINAL with new Themes'!A:M,9,0)","v":0},{"$f":"VLOOKUP(B68,'LOC FINAL with new Themes'!A:M,10,0)","v":0},{"$f":"VLOOKUP(B68,'LOC FINAL with new Themes'!A:M,11,0)","v":0},{"$f":"VLOOKUP(B68,'LOC FINAL with new Themes'!A:M,12,0)","v":0},{"$f":"VLOOKUP(B68,'LOC FINAL with new Themes'!A:M,13,0)","v":0}]
["State (+ Territories) Boundaries","State (+ Territories) Boundaries",null,"State (+ Territories) Boundaries","Cultural & Demographic Statistics ","DOC-Census","Randy Fusaro","randy.j.fusaro@census.gov",null,{"$f":"VLOOKUP(B69,'LOC FINAL with new Themes'!A:M,7,0)","v":0},{"$f":"VLOOKUP(B69,'LOC FINAL with new Themes'!A:M,8,0)","v":0},{"$f":"VLOOKUP(B69,'LOC FINAL with new Themes'!A:M,9,0)","v":0},{"$f":"VLOOKUP(B69,'LOC FINAL with new Themes'!A:M,10,0)","v":0},{"$f":"VLOOKUP(B69,'LOC FINAL with new Themes'!A:M,11,0)","v":0},{"$f":"VLOOKUP(B69,'LOC FINAL with new Themes'!A:M,12,0)","v":0},{"$f":"VLOOKUP(B69,'LOC FINAL with new Themes'!A:M,13,0)","v":0}]
["Statistical Area Boundaries (tracts, blocks, UAs, CDPs, etc)","Statistical Area Boundaries (tracts, blocks, UAs, CDPs, etc)",null,"Statistical Area Boundaries (tracts, blocks, UAs, CDPs, etc)","Cultural & Demographic Statistics ","DOC-Census","Randy Fusaro","randy.j.fusaro@census.gov",null,{"$f":"VLOOKUP(B70,'LOC FINAL with new Themes'!A:M,7,0)","v":0},{"$f":"VLOOKUP(B70,'LOC FINAL with new Themes'!A:M,8,0)","v":0},{"$f":"VLOOKUP(B70,'LOC FINAL with new Themes'!A:M,9,0)","v":0},{"$f":"VLOOKUP(B70,'LOC FINAL with new Themes'!A:M,10,0)","v":0},{"$f":"VLOOKUP(B70,'LOC FINAL with new Themes'!A:M,11,0)","v":0},{"$f":"VLOOKUP(B70,'LOC FINAL with new Themes'!A:M,12,0)","v":0},{"$f":"VLOOKUP(B70,'LOC FINAL with new Themes'!A:M,13,0)","v":0}]
[null,"Super Public Use Microdata Area (Census 2000)","Super Public Use Microdata Area (Census 2000)","Super Public Use Microdata Area (Census 2000)","Cultural & Demographic Statistics ","DOC-Census","Jennifer Holland","Jennifer.L.Holland@census.gov",null,{"$f":"VLOOKUP(B71,'LOC FINAL with new Themes'!A:M,7,0)","v":0},{"$f":"VLOOKUP(B71,'LOC FINAL with new Themes'!A:M,8,0)","v":0},{"$f":"VLOOKUP(B71,'LOC FINAL with new Themes'!A:M,9,0)","v":0},{"$f":"VLOOKUP(B71,'LOC FINAL with new Themes'!A:M,10,0)","v":0},{"$f":"VLOOKUP(B71,'LOC FINAL with new Themes'!A:M,11,0)","v":0},{"$f":"VLOOKUP(B71,'LOC FINAL with new Themes'!A:M,12,0)","v":0},{"$f":"VLOOKUP(B71,'LOC FINAL with new Themes'!A:M,13,0)","v":0}]
["TIGER* (many statistical boundaries)","TIGER (many statistical boundaries)",null,"TIGER (many statistical boundaries)","Cultural & Demographic Statistics ","DOC-Census","Randy Fusaro","randy.j.fusaro@census.gov",null,{"$f":"VLOOKUP(B72,'LOC FINAL with new Themes'!A:M,7,0)","v":0},{"$f":"VLOOKUP(B72,'LOC FINAL with new Themes'!A:M,8,0)","v":0},{"$f":"VLOOKUP(B72,'LOC FINAL with new Themes'!A:M,9,0)","v":0},{"$f":"VLOOKUP(B72,'LOC FINAL with new Themes'!A:M,10,0)","v":0},{"$f":"VLOOKUP(B72,'LOC FINAL with new Themes'!A:M,11,0)","v":0},{"$f":"VLOOKUP(B72,'LOC FINAL with new Themes'!A:M,12,0)","v":0},{"$f":"VLOOKUP(B72,'LOC FINAL with new Themes'!A:M,13,0)","v":0}]
[null,"Topological Faces (2010 Census)","Topological Faces (2010 Census)","Topological Faces (2010 Census)","Cultural & Demographic Statistics ","DOC-Census","Jennifer Holland","Jennifer.L.Holland@census.gov",null,{"$f":"VLOOKUP(B73,'LOC FINAL with new Themes'!A:M,7,0)","v":0},{"$f":"VLOOKUP(B73,'LOC FINAL with new Themes'!A:M,8,0)","v":0},{"$f":"VLOOKUP(B73,'LOC FINAL with new Themes'!A:M,9,0)","v":0},{"$f":"VLOOKUP(B73,'LOC FINAL with new Themes'!A:M,10,0)","v":0},{"$f":"VLOOKUP(B73,'LOC FINAL with new Themes'!A:M,11,0)","v":0},{"$f":"VLOOKUP(B73,'LOC FINAL with new Themes'!A:M,12,0)","v":0},{"$f":"VLOOKUP(B73,'LOC FINAL with new Themes'!A:M,13,0)","v":0}]
[null,"Unified School District (2010 Census)","Unified School District (2010 Census)","Unified School District (2010 Census)","Cultural & Demographic Statistics ","DOC-Census","Jennifer Holland","Jennifer.L.Holland@census.gov",null,{"$f":"VLOOKUP(B74,'LOC FINAL with new Themes'!A:M,7,0)","v":0},{"$f":"VLOOKUP(B74,'LOC FINAL with new Themes'!A:M,8,0)","v":0},{"$f":"VLOOKUP(B74,'LOC FINAL with new Themes'!A:M,9,0)","v":0},{"$f":"VLOOKUP(B74,'LOC FINAL with new Themes'!A:M,10,0)","v":0},{"$f":"VLOOKUP(B74,'LOC FINAL with new Themes'!A:M,11,0)","v":0},{"$f":"VLOOKUP(B74,'LOC FINAL with new Themes'!A:M,12,0)","v":0},{"$f":"VLOOKUP(B74,'LOC FINAL with new Themes'!A:M,13,0)","v":0}]
[null,"Unified School District (Census 2000)","Unified School District (Census 2000)","Unified School District (Census 2000)","Cultural & Demographic Statistics ","DOC-Census","Jennifer Holland","Jennifer.L.Holland@census.gov",null,{"$f":"VLOOKUP(B75,'LOC FINAL with new Themes'!A:M,7,0)","v":0},{"$f":"VLOOKUP(B75,'LOC FINAL with new Themes'!A:M,8,0)","v":0},{"$f":"VLOOKUP(B75,'LOC FINAL with new Themes'!A:M,9,0)","v":0},{"$f":"VLOOKUP(B75,'LOC FINAL with new Themes'!A:M,10,0)","v":0},{"$f":"VLOOKUP(B75,'LOC FINAL with new Themes'!A:M,11,0)","v":0},{"$f":"VLOOKUP(B75,'LOC FINAL with new Themes'!A:M,12,0)","v":0},{"$f":"VLOOKUP(B75,'LOC FINAL with new Themes'!A:M,13,0)","v":0}]
[null,"Urban Growth Area (2010 Census)","Urban Growth Area (2010 Census)","Urban Growth Area (2010 Census)","Cultural & Demographic Statistics ","DOC-Census","Jennifer Holland","Jennifer.L.Holland@census.gov",null,{"$f":"VLOOKUP(B76,'LOC FINAL with new Themes'!A:M,7,0)","v":0},{"$f":"VLOOKUP(B76,'LOC FINAL with new Themes'!A:M,8,0)","v":0},{"$f":"VLOOKUP(B76,'LOC FINAL with new Themes'!A:M,9,0)","v":0},{"$f":"VLOOKUP(B76,'LOC FINAL with new Themes'!A:M,10,0)","v":0},{"$f":"VLOOKUP(B76,'LOC FINAL with new Themes'!A:M,11,0)","v":0},{"$f":"VLOOKUP(B76,'LOC FINAL with new Themes'!A:M,12,0)","v":0},{"$f":"VLOOKUP(B76,'LOC FINAL with new Themes'!A:M,13,0)","v":0}]
[null,"Urban Growth Area (Census 2000)","Urban Growth Area (Census 2000)","Urban Growth Area (Census 2000)","Cultural & Demographic Statistics ","DOC-Census","Jennifer Holland","Jennifer.L.Holland@census.gov",null,{"$f":"VLOOKUP(B77,'LOC FINAL with new Themes'!A:M,7,0)","v":0},{"$f":"VLOOKUP(B77,'LOC FINAL with new Themes'!A:M,8,0)","v":0},{"$f":"VLOOKUP(B77,'LOC FINAL with new Themes'!A:M,9,0)","v":0},{"$f":"VLOOKUP(B77,'LOC FINAL with new Themes'!A:M,10,0)","v":0},{"$f":"VLOOKUP(B77,'LOC FINAL with new Themes'!A:M,11,0)","v":0},{"$f":"VLOOKUP(B77,'LOC FINAL with new Themes'!A:M,12,0)","v":0},{"$f":"VLOOKUP(B77,'LOC FINAL with new Themes'!A:M,13,0)","v":0}]
[null,"Voting District (2010 Census)","Voting District (2010 Census)","Voting District (2010 Census)","Cultural & Demographic Statistics ","DOC-Census","Jennifer Holland","Jennifer.L.Holland@census.gov",null,{"$f":"VLOOKUP(B78,'LOC FINAL with new Themes'!A:M,7,0)","v":0},{"$f":"VLOOKUP(B78,'LOC FINAL with new Themes'!A:M,8,0)","v":0},{"$f":"VLOOKUP(B78,'LOC FINAL with new Themes'!A:M,9,0)","v":0},{"$f":"VLOOKUP(B78,'LOC FINAL with new Themes'!A:M,10,0)","v":0},{"$f":"VLOOKUP(B78,'LOC FINAL with new Themes'!A:M,11,0)","v":0},{"$f":"VLOOKUP(B78,'LOC FINAL with new Themes'!A:M,12,0)","v":0},{"$f":"VLOOKUP(B78,'LOC FINAL with new Themes'!A:M,13,0)","v":0}]
[null,"Voting District (Census 2000)","Voting District (Census 2000)","Voting District (Census 2000)","Cultural & Demographic Statistics ","DOC-Census","Jennifer Holland","Jennifer.L.Holland@census.gov",null,{"$f":"VLOOKUP(B79,'LOC FINAL with new Themes'!A:M,7,0)","v":0},{"$f":"VLOOKUP(B79,'LOC FINAL with new Themes'!A:M,8,0)","v":0},{"$f":"VLOOKUP(B79,'LOC FINAL with new Themes'!A:M,9,0)","v":0},{"$f":"VLOOKUP(B79,'LOC FINAL with new Themes'!A:M,10,0)","v":0},{"$f":"VLOOKUP(B79,'LOC FINAL with new Themes'!A:M,11,0)","v":0},{"$f":"VLOOKUP(B79,'LOC FINAL with new Themes'!A:M,12,0)","v":0},{"$f":"VLOOKUP(B79,'LOC FINAL with new Themes'!A:M,13,0)","v":0}]
["Voting District Boundaries","Voting District Boundaries",null,"Voting District Boundaries","Cultural & Demographic Statistics ","DOC-Census","Randy Fusaro","randy.j.fusaro@census.gov",null,{"$f":"VLOOKUP(B80,'LOC FINAL with new Themes'!A:M,7,0)","v":0},{"$f":"VLOOKUP(B80,'LOC FINAL with new Themes'!A:M,8,0)","v":0},{"$f":"VLOOKUP(B80,'LOC FINAL with new Themes'!A:M,9,0)","v":0},{"$f":"VLOOKUP(B80,'LOC FINAL with new Themes'!A:M,10,0)","v":0},{"$f":"VLOOKUP(B80,'LOC FINAL with new Themes'!A:M,11,0)","v":0},{"$f":"VLOOKUP(B80,'LOC FINAL with new Themes'!A:M,12,0)","v":0},{"$f":"VLOOKUP(B80,'LOC FINAL with new Themes'!A:M,13,0)","v":0}]
[null,null,null,{"$f":"SUBTOTAL(3,D40:D80)","v":41},"Cultural & Demographic Statistics  Count"]
["Cultural Landscape Boundaries","Cultural Landscape Boundaries","Cultural Landscape Boundaries",{"$f":"IF(C82=0,B82,C82)","v":"Cultural Landscape Boundaries"},"Cultural & Demographic Statistics \nCultural Resources","DOI-NPS","John Knoerl","john_knoerl@nps.gov",null,{"$f":"VLOOKUP(B82,'LOC FINAL with new Themes'!A:M,7,0)","v":"Feature classes of the cultural resource data model (NPS only, other federal agencies handle it as they decide)"},{"$f":"VLOOKUP(B82,'LOC FINAL with new Themes'!A:M,8,0)","v":"don't want a single centralized data set but focusing on standard approach"},{"$f":"VLOOKUP(B82,'LOC FINAL with new Themes'!A:M,9,0)","v":0},{"$f":"VLOOKUP(B82,'LOC FINAL with new Themes'!A:M,10,0)","v":0},{"$f":"VLOOKUP(B82,'LOC FINAL with new Themes'!A:M,11,0)","v":0},{"$f":"VLOOKUP(B82,'LOC FINAL with new Themes'!A:M,12,0)","v":0},{"$f":"VLOOKUP(B82,'LOC FINAL with new Themes'!A:M,13,0)","v":0}]
["Cultural Resource Survey Boundaries","Cultural Resource Survey Boundaries","Cultural Resource Survey Boundaries","Cultural Resource Survey Boundaries","Cultural & Demographic Statistics \nCultural Resources","DOI-NPS","John Knoerl","john_knoerl@nps.gov",null,{"$f":"VLOOKUP(B83,'LOC FINAL with new Themes'!A:M,7,0)","v":"Feature classes of the cultural resource data model (NPS only, other federal agencies handle it as they decide)"},{"$f":"VLOOKUP(B83,'LOC FINAL with new Themes'!A:M,8,0)","v":"don't want a single centralized data set but focusing on standard approach"},{"$f":"VLOOKUP(B83,'LOC FINAL with new Themes'!A:M,9,0)","v":0},{"$f":"VLOOKUP(B83,'LOC FINAL with new Themes'!A:M,10,0)","v":0},{"$f":"VLOOKUP(B83,'LOC FINAL with new Themes'!A:M,11,0)","v":0},{"$f":"VLOOKUP(B83,'LOC FINAL with new Themes'!A:M,12,0)","v":0},{"$f":"VLOOKUP(B83,'LOC FINAL with new Themes'!A:M,13,0)","v":0}]
["Ethnographic Resource Boundaries","Ethnographic Resource Boundaries","Ethnographic Resource Boundaries","Ethnographic Resource Boundaries","Cultural & Demographic Statistics \nCultural Resources","DOI-NPS","John Knoerl","john_knoerl@nps.gov",null,{"$f":"VLOOKUP(B84,'LOC FINAL with new Themes'!A:M,7,0)","v":"Feature classes of the cultural resource data model (NPS only, other federal agencies handle it as they decide)"},{"$f":"VLOOKUP(B84,'LOC FINAL with new Themes'!A:M,8,0)","v":"don't want a single centralized data set but focusing on standard approach"},{"$f":"VLOOKUP(B84,'LOC FINAL with new Themes'!A:M,9,0)","v":0},{"$f":"VLOOKUP(B84,'LOC FINAL with new Themes'!A:M,10,0)","v":0},{"$f":"VLOOKUP(B84,'LOC FINAL with new Themes'!A:M,11,0)","v":0},{"$f":"VLOOKUP(B84,'LOC FINAL with new Themes'!A:M,12,0)","v":0},{"$f":"VLOOKUP(B84,'LOC FINAL with new Themes'!A:M,13,0)","v":0}]
["Historic Buildings Boundaries","Historic Buildings Boundaries","Historic Buildings Boundaries","Historic Buildings Boundaries","Cultural & Demographic Statistics \nCultural Resources","DOI-NPS","John Knoerl","john_knoerl@nps.gov",null,{"$f":"VLOOKUP(B85,'LOC FINAL with new Themes'!A:M,7,0)","v":"Feature classes of the cultural resource data model (NPS only, other federal agencies handle it as they decide)"},{"$f":"VLOOKUP(B85,'LOC FINAL with new Themes'!A:M,8,0)","v":"don't want a single centralized data set but focusing on standard approach"},{"$f":"VLOOKUP(B85,'LOC FINAL with new Themes'!A:M,9,0)","v":0},{"$f":"VLOOKUP(B85,'LOC FINAL with new Themes'!A:M,10,0)","v":0},{"$f":"VLOOKUP(B85,'LOC FINAL with new Themes'!A:M,11,0)","v":0},{"$f":"VLOOKUP(B85,'LOC FINAL with new Themes'!A:M,12,0)","v":0},{"$f":"VLOOKUP(B85,'LOC FINAL with new Themes'!A:M,13,0)","v":0}]
["Historic Districts Boundaries","Historic Districts Boundaries","Historic Districts Boundaries","Historic Districts Boundaries","Cultural & Demographic Statistics \nCultural Resources","DOI-NPS","John Knoerl","john_knoerl@nps.gov",null,{"$f":"VLOOKUP(B86,'LOC FINAL with new Themes'!A:M,7,0)","v":"Feature classes of the cultural resource data model (NPS only, other federal agencies handle it as they decide)"},{"$f":"VLOOKUP(B86,'LOC FINAL with new Themes'!A:M,8,0)","v":"don't want a single centralized data set but focusing on standard approach"},{"$f":"VLOOKUP(B86,'LOC FINAL with new Themes'!A:M,9,0)","v":0},{"$f":"VLOOKUP(B86,'LOC FINAL with new Themes'!A:M,10,0)","v":0},{"$f":"VLOOKUP(B86,'LOC FINAL with new Themes'!A:M,11,0)","v":0},{"$f":"VLOOKUP(B86,'LOC FINAL with new Themes'!A:M,12,0)","v":0},{"$f":"VLOOKUP(B86,'LOC FINAL with new Themes'!A:M,13,0)","v":0}]
["Historic Objects Boundaries","Historic Objects Boundaries","Historic Objects Boundaries","Historic Objects Boundaries","Cultural & Demographic Statistics \nCultural Resources","DOI-NPS","John Knoerl","john_knoerl@nps.gov",null,{"$f":"VLOOKUP(B87,'LOC FINAL with new Themes'!A:M,7,0)","v":"Feature classes of the cultural resource data model (NPS only, other federal agencies handle it as they decide)"},{"$f":"VLOOKUP(B87,'LOC FINAL with new Themes'!A:M,8,0)","v":"don't want a single centralized data set but focusing on standard approach"},{"$f":"VLOOKUP(B87,'LOC FINAL with new Themes'!A:M,9,0)","v":0},{"$f":"VLOOKUP(B87,'LOC FINAL with new Themes'!A:M,10,0)","v":0},{"$f":"VLOOKUP(B87,'LOC FINAL with new Themes'!A:M,11,0)","v":0},{"$f":"VLOOKUP(B87,'LOC FINAL with new Themes'!A:M,12,0)","v":0},{"$f":"VLOOKUP(B87,'LOC FINAL with new Themes'!A:M,13,0)","v":0}]
["Historic Structures Boundaries","Historic Structures Boundaries","Historic Structures Boundaries","Historic Structures Boundaries","Cultural & Demographic Statistics \nCultural Resources","DOI-NPS","John Knoerl","john_knoerl@nps.gov",null,{"$f":"VLOOKUP(B88,'LOC FINAL with new Themes'!A:M,7,0)","v":"Feature classes of the cultural resource data model (NPS only, other federal agencies handle it as they decide)"},{"$f":"VLOOKUP(B88,'LOC FINAL with new Themes'!A:M,8,0)","v":"don't want a single centralized data set but focusing on standard approach"},{"$f":"VLOOKUP(B88,'LOC FINAL with new Themes'!A:M,9,0)","v":0},{"$f":"VLOOKUP(B88,'LOC FINAL with new Themes'!A:M,10,0)","v":0},{"$f":"VLOOKUP(B88,'LOC FINAL with new Themes'!A:M,11,0)","v":0},{"$f":"VLOOKUP(B88,'LOC FINAL with new Themes'!A:M,12,0)","v":0},{"$f":"VLOOKUP(B88,'LOC FINAL with new Themes'!A:M,13,0)","v":"M "}]
[null,null,"Other Cultural Resource Boundaries","Other Cultural Resource Boundaries","Cultural & Demographic Statistics \nCultural Resources","DOI-NPS"]
[null,null,null,{"$f":"SUBTOTAL(3,D82:D89)","v":8},"Cultural & Demographic Statistics \nCultural Resources Count"]
[null,"Point Landmark (2010 Census)","Point of Landmark (2010 Census)",{"$f":"IF(C91=0,B91,C91)","v":"Point of Landmark (2010 Census)"},"Cultural Resources","DOC-Census","Jennifer Holland","Jennifer.L.Holland@census.gov",null,{"$f":"VLOOKUP(B91,'LOC FINAL with new Themes'!A:M,7,0)","v":0},{"$f":"VLOOKUP(B91,'LOC FINAL with new Themes'!A:M,8,0)","v":0},{"$f":"VLOOKUP(B91,'LOC FINAL with new Themes'!A:M,9,0)","v":0},{"$f":"VLOOKUP(B91,'LOC FINAL with new Themes'!A:M,10,0)","v":0},{"$f":"VLOOKUP(B91,'LOC FINAL with new Themes'!A:M,11,0)","v":0},{"$f":"VLOOKUP(B91,'LOC FINAL with new Themes'!A:M,12,0)","v":0},{"$f":"VLOOKUP(B91,'LOC FINAL with new Themes'!A:M,13,0)","v":0}]
["Archeological Sites","Archeological Sites","Archeological Sites","Archeological Sites","Cultural Resources ","DOI-NPS","John Knoerl","john_knoerl@nps.gov",null,{"$f":"VLOOKUP(B92,'LOC FINAL with new Themes'!A:M,7,0)","v":"Feature classes of the cultural resource data model (NPS only, other federal agencies handle it as they decide)"},{"$f":"VLOOKUP(B92,'LOC FINAL with new Themes'!A:M,8,0)","v":"don't want a single centralized data set but focusing on standard approach"},{"$f":"VLOOKUP(B92,'LOC FINAL with new Themes'!A:M,9,0)","v":"National Historic Presrevation Act says state historic preservation office has primary oversight (section 110)"},{"$f":"VLOOKUP(B92,'LOC FINAL with new Themes'!A:M,10,0)","v":0},{"$f":"VLOOKUP(B92,'LOC FINAL with new Themes'!A:M,11,0)","v":0},{"$f":"VLOOKUP(B92,'LOC FINAL with new Themes'!A:M,12,0)","v":0},{"$f":"VLOOKUP(B92,'LOC FINAL with new Themes'!A:M,13,0)","v":0}]
[null,"Area Landmark (2010 Census)","Area Landmark (2010 Census)","Area Landmark (2010 Census)","Cultural Resources ","DOC-Census","Jennifer Holland","Jennifer.L.Holland@census.gov",null,{"$f":"VLOOKUP(B93,'LOC FINAL with new Themes'!A:M,7,0)","v":0},{"$f":"VLOOKUP(B93,'LOC FINAL with new Themes'!A:M,8,0)","v":0},{"$f":"VLOOKUP(B93,'LOC FINAL with new Themes'!A:M,9,0)","v":0},{"$f":"VLOOKUP(B93,'LOC FINAL with new Themes'!A:M,10,0)","v":0},{"$f":"VLOOKUP(B93,'LOC FINAL with new Themes'!A:M,11,0)","v":0},{"$f":"VLOOKUP(B93,'LOC FINAL with new Themes'!A:M,12,0)","v":0},{"$f":"VLOOKUP(B93,'LOC FINAL with new Themes'!A:M,13,0)","v":0}]
[null,null,"Geographic Names Dataset - National Map","Geographic Names Dataset - National Map","Cultural Resources ","DOI-USGS"]
["National Map - Geographic Names Information System (GNIS)","National Map - Geographic Names Information System (GNIS)",null,"National Map - Geographic Names Information System (GNIS)","Cultural Resources ","DOI-USGS","Lou Yost","lyost@usgs.gov",null,{"$f":"VLOOKUP(B95,'LOC FINAL with new Themes'!A:M,7,0)","v":"single data set; poc, data managers; daily updated; Denver systems people backup and archive; transfer to NARA also; Gaz vector (internal)"},{"$f":"VLOOKUP(B95,'LOC FINAL with new Themes'!A:M,8,0)","v":0},{"$f":"VLOOKUP(B95,'LOC FINAL with new Themes'!A:M,9,0)","v":0},{"$f":"VLOOKUP(B95,'LOC FINAL with new Themes'!A:M,10,0)","v":0},{"$f":"VLOOKUP(B95,'LOC FINAL with new Themes'!A:M,11,0)","v":0},{"$f":"VLOOKUP(B95,'LOC FINAL with new Themes'!A:M,12,0)","v":0},{"$f":"VLOOKUP(B95,'LOC FINAL with new Themes'!A:M,13,0)","v":"S"}]
[null,"Topological Faces-Area Landmark Relationship File","Topological Faces-Area Landmark Relationship File","Topological Faces-Area Landmark Relationship File","Cultural Resources ","DOC-Census","Jennifer Holland","Jennifer.L.Holland@census.gov",null,{"$f":"VLOOKUP(B96,'LOC FINAL with new Themes'!A:M,7,0)","v":0},{"$f":"VLOOKUP(B96,'LOC FINAL with new Themes'!A:M,8,0)","v":0},{"$f":"VLOOKUP(B96,'LOC FINAL with new Themes'!A:M,9,0)","v":0},{"$f":"VLOOKUP(B96,'LOC FINAL with new Themes'!A:M,10,0)","v":0},{"$f":"VLOOKUP(B96,'LOC FINAL with new Themes'!A:M,11,0)","v":0},{"$f":"VLOOKUP(B96,'LOC FINAL with new Themes'!A:M,12,0)","v":0},{"$f":"VLOOKUP(B96,'LOC FINAL with new Themes'!A:M,13,0)","v":0}]
[null,null,null,{"$f":"SUBTOTAL(3,D91:D96)","v":6},"Cultural Resources Count"]
["133 UA Elevation Data (lidar)","133 UA Elevation Data (lidar)",null,{"$f":"IF(C98=0,B98,C98)","v":"133 UA Elevation Data (lidar)"},"Elevation","DOD-NGA","Ron Power, NGA","ronald.k.power@nga.mil",null,{"$f":"VLOOKUP(B98,'LOC FINAL with new Themes'!A:M,7,0)","v":0},{"$f":"VLOOKUP(B98,'LOC FINAL with new Themes'!A:M,8,0)","v":0},{"$f":"VLOOKUP(B98,'LOC FINAL with new Themes'!A:M,9,0)","v":0},{"$f":"VLOOKUP(B98,'LOC FINAL with new Themes'!A:M,10,0)","v":0},{"$f":"VLOOKUP(B98,'LOC FINAL with new Themes'!A:M,11,0)","v":0},{"$f":"VLOOKUP(B98,'LOC FINAL with new Themes'!A:M,12,0)","v":0},{"$f":"VLOOKUP(B98,'LOC FINAL with new Themes'!A:M,13,0)","v":0}]
["DEMs - Archive","DEMs - Archive",null,"DEMs - Archive","Elevation","DOI-USGS","Gayla Evans","gevans@usgs.gov",null,{"$f":"VLOOKUP(B99,'LOC FINAL with new Themes'!A:M,7,0)","v":"DEMS update at variable nature; are four data sets based on resolution; this is the POC and data manager; this is the name and maintain three complete with two physically separate on-site and one off-site"},{"$f":"VLOOKUP(B99,'LOC FINAL with new Themes'!A:M,8,0)","v":0},{"$f":"VLOOKUP(B99,'LOC FINAL with new Themes'!A:M,9,0)","v":0},{"$f":"VLOOKUP(B99,'LOC FINAL with new Themes'!A:M,10,0)","v":0},{"$f":"VLOOKUP(B99,'LOC FINAL with new Themes'!A:M,11,0)","v":0},{"$f":"VLOOKUP(B99,'LOC FINAL with new Themes'!A:M,12,0)","v":0},{"$f":"VLOOKUP(B99,'LOC FINAL with new Themes'!A:M,13,0)","v":"S"}]
["GTOPO30","GTOPO30",null,"GTOPO30","Elevation","DOI-USGS","Jeff Danielson"," daniels@usgs.gov",null,{"$f":"VLOOKUP(B100,'LOC FINAL with new Themes'!A:M,7,0)","v":"GTOPO30 is static; one data set; this is the POC and data manager; this is the name and maintain three complete with two physically separate on-site and one off-site"},{"$f":"VLOOKUP(B100,'LOC FINAL with new Themes'!A:M,8,0)","v":0},{"$f":"VLOOKUP(B100,'LOC FINAL with new Themes'!A:M,9,0)","v":0},{"$f":"VLOOKUP(B100,'LOC FINAL with new Themes'!A:M,10,0)","v":0},{"$f":"VLOOKUP(B100,'LOC FINAL with new Themes'!A:M,11,0)","v":0},{"$f":"VLOOKUP(B100,'LOC FINAL with new Themes'!A:M,12,0)","v":0},{"$f":"VLOOKUP(B100,'LOC FINAL with new Themes'!A:M,13,0)","v":0}]
["National Map National Elevation Data Set (NED)","National Map  - National Elevation Dataset (NED)",null,"National Map  - National Elevation Dataset (NED)","Elevation","DOI-USGS","Jim Mauck","lyost@usgs.gov",null,{"$f":"VLOOKUP(B101,'LOC FINAL with new Themes'!A:M,7,0)","v":0},{"$f":"VLOOKUP(B101,'LOC FINAL with new Themes'!A:M,8,0)","v":0},{"$f":"VLOOKUP(B101,'LOC FINAL with new Themes'!A:M,9,0)","v":0},{"$f":"VLOOKUP(B101,'LOC FINAL with new Themes'!A:M,10,0)","v":0},{"$f":"VLOOKUP(B101,'LOC FINAL with new Themes'!A:M,11,0)","v":0},{"$f":"VLOOKUP(B101,'LOC FINAL with new Themes'!A:M,12,0)","v":0},{"$f":"VLOOKUP(B101,'LOC FINAL with new Themes'!A:M,13,0)","v":0}]
["SRTM (3-arc second DTEDS)","SRTM (3-arc second DTEDS)",null,"SRTM (3-arc second DTEDS)","Elevation","DOI-USGS","Dean Gesch, USGS","gesch@usgs.gov",null,{"$f":"VLOOKUP(B102,'LOC FINAL with new Themes'!A:M,7,0)","v":"SRTM is static; one data set; this is the POC and data manager; this is the name and maintain three complete with two physically separate on-site and one off-site"},{"$f":"VLOOKUP(B102,'LOC FINAL with new Themes'!A:M,8,0)","v":0},{"$f":"VLOOKUP(B102,'LOC FINAL with new Themes'!A:M,9,0)","v":0},{"$f":"VLOOKUP(B102,'LOC FINAL with new Themes'!A:M,10,0)","v":0},{"$f":"VLOOKUP(B102,'LOC FINAL with new Themes'!A:M,11,0)","v":0},{"$f":"VLOOKUP(B102,'LOC FINAL with new Themes'!A:M,12,0)","v":0},{"$f":"VLOOKUP(B102,'LOC FINAL with new Themes'!A:M,13,0)","v":"S"}]
["Digital Flood Insurance Rate Maps (D-FIRM)","Digital Flood Insurance Rate Maps (D-FIRM)","Digital Flood Insurance Rate Maps (DFIRM)","Digital Flood Insurance Rate Maps (DFIRM)","Elevation ","DHS-FEMA","Scott McAfee","scott.mcaffee@dhs.gov",null,{"$f":"VLOOKUP(B103,'LOC FINAL with new Themes'!A:M,7,0)","v":0},{"$f":"VLOOKUP(B103,'LOC FINAL with new Themes'!A:M,8,0)","v":0},{"$f":"VLOOKUP(B103,'LOC FINAL with new Themes'!A:M,9,0)","v":0},{"$f":"VLOOKUP(B103,'LOC FINAL with new Themes'!A:M,10,0)","v":0},{"$f":"VLOOKUP(B103,'LOC FINAL with new Themes'!A:M,11,0)","v":0},{"$f":"VLOOKUP(B103,'LOC FINAL with new Themes'!A:M,12,0)","v":0},{"$f":"VLOOKUP(B103,'LOC FINAL with new Themes'!A:M,13,0)","v":0}]
[null,null,"Elevation Bathymetric - Ocean, Coastal, and Great Lakes Bathymetry ","Elevation Bathymetric - Ocean, Coastal, and Great Lakes Bathymetry ","Elevation ","DOC-NOAA","Anne Ball","anne.ball@noaa.gov","843-740-1229"]
[null,null,"National Elevation Dataset  - National Map","National Elevation Dataset  - National Map","Elevation ","DOI-USGS"]
["National Flood Hazard Layer (NFHL)","National Flood Hazard Layer (NFHL)","National Flood Hazard Layer (NFHL)","National Flood Hazard Layer (NFHL)","Elevation ","DHS-FEMA","Scott McAfee","scott.mcaffee@dhs.gov",null,{"$f":"VLOOKUP(B106,'LOC FINAL with new Themes'!A:M,7,0)","v":0},{"$f":"VLOOKUP(B106,'LOC FINAL with new Themes'!A:M,8,0)","v":0},{"$f":"VLOOKUP(B106,'LOC FINAL with new Themes'!A:M,9,0)","v":0},{"$f":"VLOOKUP(B106,'LOC FINAL with new Themes'!A:M,10,0)","v":0},{"$f":"VLOOKUP(B106,'LOC FINAL with new Themes'!A:M,11,0)","v":0},{"$f":"VLOOKUP(B106,'LOC FINAL with new Themes'!A:M,12,0)","v":0},{"$f":"VLOOKUP(B106,'LOC FINAL with new Themes'!A:M,13,0)","v":0}]
[null,null,null,{"$f":"SUBTOTAL(3,D98:D106)","v":9},"Elevation Count"]
[null,null,"Airborne Gravity",{"$f":"IF(C108=0,B108,C108)","v":"Airborne Gravity"},"Geodetic Control ","DOC-NOAA","Dr. Theresa Diehl","theresa.diehl@noaa.gov"]
[null,null,"Terrestrial Gravity",{"$f":"IF(C109=0,B109,C109)","v":"Terrestrial Gravity"},"Geodetic Control ","DOC-NOAA","Bill Waickman ","bill.waickman@noaa.gov"]
[null,null,"Continuously Operating Reference Stations (CORS)","Continuously Operating Reference Stations (CORS)","Geodetic Control ","DOC-NOAA","Dr. Giovanni Sella","giovanni.sella@noaa.gov"]
[null,null,"Geoid Models","Geoid Models","Geodetic Control ","DOC-NOAA","Dr. Dan Roman","dan.roman@noaa.gov"]
["National Geologic Data Base","National Geologic Data Base","National Geodetic Survey (NGS) Datasheets","National Geodetic Survey (NGS) Datasheets","Geodetic Control ","DOC-NOAA","Jim Tomlin","jim.tomlin@noaa.gov",null,{"$f":"VLOOKUP(B112,'LOC FINAL with new Themes'!A:M,7,0)","v":0},{"$f":"VLOOKUP(B112,'LOC FINAL with new Themes'!A:M,8,0)","v":0},{"$f":"VLOOKUP(B112,'LOC FINAL with new Themes'!A:M,9,0)","v":0},{"$f":"VLOOKUP(B112,'LOC FINAL with new Themes'!A:M,10,0)","v":0},{"$f":"VLOOKUP(B112,'LOC FINAL with new Themes'!A:M,11,0)","v":0},{"$f":"VLOOKUP(B112,'LOC FINAL with new Themes'!A:M,12,0)","v":0},{"$f":"VLOOKUP(B112,'LOC FINAL with new Themes'!A:M,13,0)","v":0}]
[null,null,"Precise Global Navigation Satellite System (GNSS) Orbits",{"$f":"IF(C113=0,#REF!,C113)","v":"Precise Global Navigation Satellite System (GNSS) Orbits"},"Geodetic Control ","DOC-NOAA","Dr. Jake Griffiths","jake.griffiths@noaa.gov"]
[null,null,null,{"$f":"SUBTOTAL(3,D108:D113)","v":6},"Geodetic Control  Count"]
[null,null,"Coal assessment and mapping",{"$f":"IF(C115=0,B115,C115)","v":"Coal assessment and mapping"},"Geology","DOI-USGS"]
["Coastline Data","Coastline Data","Coastline Data","Coastline Data","Geology","DOI-BOEM","Doug Vandegraft","Doug.Vandegraft@boem.gov",null,{"$f":"VLOOKUP(B116,'LOC FINAL with new Themes'!A:M,7,0)","v":"undeliverable email- neeed to identify new contact"},{"$f":"VLOOKUP(B116,'LOC FINAL with new Themes'!A:M,8,0)","v":0},{"$f":"VLOOKUP(B116,'LOC FINAL with new Themes'!A:M,9,0)","v":0},{"$f":"VLOOKUP(B116,'LOC FINAL with new Themes'!A:M,10,0)","v":0},{"$f":"VLOOKUP(B116,'LOC FINAL with new Themes'!A:M,11,0)","v":0},{"$f":"VLOOKUP(B116,'LOC FINAL with new Themes'!A:M,12,0)","v":0},{"$f":"VLOOKUP(B116,'LOC FINAL with new Themes'!A:M,13,0)","v":0}]
[null,null,"Earthquake monitoring, research, and mapping","Earthquake monitoring, research, and mapping","Geology","DOI-USGS"]
[null,null,"Geochemistry","Geochemistry","Geology","DOI-USGS"]
[null,null,"Geochronology","Geochronology","Geology","DOI-USGS"]
[null,null,"Geologic mapping","Geologic mapping","Geology","DOI-USGS"]
[null,null,"Geomagnetism","Geomagnetism","Geology","DOI-USGS"]
[null,null,"Geophysics","Geophysics","Geology","DOI-USGS"]
[null,null,"Landslide monitoring, research, and mapping","Landslide monitoring, research, and mapping","Geology","DOI-USGS"]
[null,null,"Marine geology","Marine geology","Geology","DOI-USGS"]
[null,null,"Metallic mineral assessment and mapping","Metallic mineral assessment and mapping","Geology","DOI-USGS"]
[null,null,"BOEM Baseline","BOEM Baseline","Geology","DOI-BOEM","Doug Vandegraft","Doug.Vandegraft@boem.gov"]
[null,null,"Non-metallic mineral assessment and mapping, onshore",{"$f":"IF(C127=0,B126,C127)","v":"Non-metallic mineral assessment and mapping, onshore"},"Geology","DOI-USGS"]
[null,null,"Oil and gas assessment and mapping, onshore",{"$f":"IF(C128=0,B128,C128)","v":"Oil and gas assessment and mapping, onshore"},"Geology","DOI-USGS"]
[null,null,"Paleontology","Paleontology","Geology","DOI-USGS"]
[null,null,"Sand and Gravel","Sand and Gravel","Geology","DOI-BOEM","Doug Vandegraft","Doug.Vandegraft@boem.gov"]
[null,null,"Volcano monitoring, research, and mapping","Volcano monitoring, research, and mapping","Geology","DOI-USGS"]
[null,null,"Wells","Wells","Geology","DOI-BOEM","Doug Vandegraft","Doug.Vandegraft@boem.gov"]
[null,null,null,{"$f":"SUBTOTAL(3,D115:D132)","v":18},"Geology Count"]
["County Boundaries","County Boundaries",null,{"$f":"IF(C134=0,B134,C134)","v":"County Boundaries"},"Governmental Units",{"$nulls":4},{"$f":"VLOOKUP(B134,'LOC FINAL with new Themes'!A:M,7,0)","v":0},{"$f":"VLOOKUP(B134,'LOC FINAL with new Themes'!A:M,8,0)","v":0},{"$f":"VLOOKUP(B134,'LOC FINAL with new Themes'!A:M,9,0)","v":0},{"$f":"VLOOKUP(B134,'LOC FINAL with new Themes'!A:M,10,0)","v":0},{"$f":"VLOOKUP(B134,'LOC FINAL with new Themes'!A:M,11,0)","v":0},{"$f":"VLOOKUP(B134,'LOC FINAL with new Themes'!A:M,12,0)","v":0},{"$f":"VLOOKUP(B134,'LOC FINAL with new Themes'!A:M,13,0)","v":0}]
[null,"Place and MCD Boundaries",null,"Place and MCD Boundaries","Governmental Units",{"$nulls":4},{"$f":"VLOOKUP(B135,'LOC FINAL with new Themes'!A:M,7,0)","v":0},{"$f":"VLOOKUP(B135,'LOC FINAL with new Themes'!A:M,8,0)","v":0},{"$f":"VLOOKUP(B135,'LOC FINAL with new Themes'!A:M,9,0)","v":0},{"$f":"VLOOKUP(B135,'LOC FINAL with new Themes'!A:M,10,0)","v":0},{"$f":"VLOOKUP(B135,'LOC FINAL with new Themes'!A:M,11,0)","v":0},{"$f":"VLOOKUP(B135,'LOC FINAL with new Themes'!A:M,12,0)","v":0},{"$f":"VLOOKUP(B135,'LOC FINAL with new Themes'!A:M,13,0)","v":0}]
[null,"Alaska Native Regional Corporation (2010 Census)","Alaska Native Regional Corporation (2010 Census)","Alaska Native Regional Corporation (2010 Census)","Governmental Units ","DOC-Census","Jennifer Holland","Jennifer.L.Holland@census.gov",null,{"$f":"VLOOKUP(B136,'LOC FINAL with new Themes'!A:M,7,0)","v":0},{"$f":"VLOOKUP(B136,'LOC FINAL with new Themes'!A:M,8,0)","v":0},{"$f":"VLOOKUP(B136,'LOC FINAL with new Themes'!A:M,9,0)","v":0},{"$f":"VLOOKUP(B136,'LOC FINAL with new Themes'!A:M,10,0)","v":0},{"$f":"VLOOKUP(B136,'LOC FINAL with new Themes'!A:M,11,0)","v":0},{"$f":"VLOOKUP(B136,'LOC FINAL with new Themes'!A:M,12,0)","v":0},{"$f":"VLOOKUP(B136,'LOC FINAL with new Themes'!A:M,13,0)","v":0}]
[null,"Alaska Native Regional Corporation (Census 2000)","Alaska Native Regional Corporation (Census 2000)","Alaska Native Regional Corporation (Census 2000)","Governmental Units ","DOC-Census","Jennifer Holland","Jennifer.L.Holland@census.gov",null,{"$f":"VLOOKUP(B137,'LOC FINAL with new Themes'!A:M,7,0)","v":0},{"$f":"VLOOKUP(B137,'LOC FINAL with new Themes'!A:M,8,0)","v":0},{"$f":"VLOOKUP(B137,'LOC FINAL with new Themes'!A:M,9,0)","v":0},{"$f":"VLOOKUP(B137,'LOC FINAL with new Themes'!A:M,10,0)","v":0},{"$f":"VLOOKUP(B137,'LOC FINAL with new Themes'!A:M,11,0)","v":0},{"$f":"VLOOKUP(B137,'LOC FINAL with new Themes'!A:M,12,0)","v":0},{"$f":"VLOOKUP(B137,'LOC FINAL with new Themes'!A:M,13,0)","v":0}]
[null,"American Indian Tribal Subdivision (2010 Census)","American Indian Tribal Subdivision (2010 Census)","American Indian Tribal Subdivision (2010 Census)","Governmental Units ","DOC-Census","Jennifer Holland","Jennifer.L.Holland@census.gov",null,{"$f":"VLOOKUP(B138,'LOC FINAL with new Themes'!A:M,7,0)","v":0},{"$f":"VLOOKUP(B138,'LOC FINAL with new Themes'!A:M,8,0)","v":0},{"$f":"VLOOKUP(B138,'LOC FINAL with new Themes'!A:M,9,0)","v":0},{"$f":"VLOOKUP(B138,'LOC FINAL with new Themes'!A:M,10,0)","v":0},{"$f":"VLOOKUP(B138,'LOC FINAL with new Themes'!A:M,11,0)","v":0},{"$f":"VLOOKUP(B138,'LOC FINAL with new Themes'!A:M,12,0)","v":0},{"$f":"VLOOKUP(B138,'LOC FINAL with new Themes'!A:M,13,0)","v":0}]
[null,"American Indian Tribal Subdivision (Census 2000)","American Indian Tribal Subdivision (Census 2000)","American Indian Tribal Subdivision (Census 2000)","Governmental Units ","DOC-Census","Jennifer Holland","Jennifer.L.Holland@census.gov",null,{"$f":"VLOOKUP(B139,'LOC FINAL with new Themes'!A:M,7,0)","v":0},{"$f":"VLOOKUP(B139,'LOC FINAL with new Themes'!A:M,8,0)","v":0},{"$f":"VLOOKUP(B139,'LOC FINAL with new Themes'!A:M,9,0)","v":0},{"$f":"VLOOKUP(B139,'LOC FINAL with new Themes'!A:M,10,0)","v":0},{"$f":"VLOOKUP(B139,'LOC FINAL with new Themes'!A:M,11,0)","v":0},{"$f":"VLOOKUP(B139,'LOC FINAL with new Themes'!A:M,12,0)","v":0},{"$f":"VLOOKUP(B139,'LOC FINAL with new Themes'!A:M,13,0)","v":0}]
[null,"American Indian/Alaska Native/Native Hawaiian Area (2000 Census)","American Indian/Alaska Native/Native Hawaiian Area (2000 Census)","American Indian/Alaska Native/Native Hawaiian Area (2000 Census)","Governmental Units ","DOC-Census","Jennifer Holland","Jennifer.L.Holland@census.gov",null,{"$f":"VLOOKUP(B140,'LOC FINAL with new Themes'!A:M,7,0)","v":0},{"$f":"VLOOKUP(B140,'LOC FINAL with new Themes'!A:M,8,0)","v":0},{"$f":"VLOOKUP(B140,'LOC FINAL with new Themes'!A:M,9,0)","v":0},{"$f":"VLOOKUP(B140,'LOC FINAL with new Themes'!A:M,10,0)","v":0},{"$f":"VLOOKUP(B140,'LOC FINAL with new Themes'!A:M,11,0)","v":0},{"$f":"VLOOKUP(B140,'LOC FINAL with new Themes'!A:M,12,0)","v":0},{"$f":"VLOOKUP(B140,'LOC FINAL with new Themes'!A:M,13,0)","v":0}]
[null,"American Indian/Alaska Native/Native Hawaiian Area (2010 Census)","American Indian/Alaska Native/Native Hawaiian Area (2010 Census)","American Indian/Alaska Native/Native Hawaiian Area (2010 Census)","Governmental Units ","DOC-Census","Jennifer Holland","Jennifer.L.Holland@census.gov",null,{"$f":"VLOOKUP(B141,'LOC FINAL with new Themes'!A:M,7,0)","v":0},{"$f":"VLOOKUP(B141,'LOC FINAL with new Themes'!A:M,8,0)","v":0},{"$f":"VLOOKUP(B141,'LOC FINAL with new Themes'!A:M,9,0)","v":0},{"$f":"VLOOKUP(B141,'LOC FINAL with new Themes'!A:M,10,0)","v":0},{"$f":"VLOOKUP(B141,'LOC FINAL with new Themes'!A:M,11,0)","v":0},{"$f":"VLOOKUP(B141,'LOC FINAL with new Themes'!A:M,12,0)","v":0},{"$f":"VLOOKUP(B141,'LOC FINAL with new Themes'!A:M,13,0)","v":0}]
[null,"Combined New England City and Town Area (2010 Census)","Combined New England City and Town Area (2010 Census)","Combined New England City and Town Area (2010 Census)","Governmental Units ","DOC-Census","Jennifer Holland","Jennifer.L.Holland@census.gov",null,{"$f":"VLOOKUP(B142,'LOC FINAL with new Themes'!A:M,7,0)","v":0},{"$f":"VLOOKUP(B142,'LOC FINAL with new Themes'!A:M,8,0)","v":0},{"$f":"VLOOKUP(B142,'LOC FINAL with new Themes'!A:M,9,0)","v":0},{"$f":"VLOOKUP(B142,'LOC FINAL with new Themes'!A:M,10,0)","v":0},{"$f":"VLOOKUP(B142,'LOC FINAL with new Themes'!A:M,11,0)","v":0},{"$f":"VLOOKUP(B142,'LOC FINAL with new Themes'!A:M,12,0)","v":0},{"$f":"VLOOKUP(B142,'LOC FINAL with new Themes'!A:M,13,0)","v":0}]
["Congressional District Boundaries","Congressional District (108th)","Congressional District (108th)","Congressional District (108th)","Governmental Units ","DOC-Census","Jennifer Holland","Jennifer.L.Holland@census.gov",null,{"$f":"VLOOKUP(B143,'LOC FINAL with new Themes'!A:M,7,0)","v":0},{"$f":"VLOOKUP(B143,'LOC FINAL with new Themes'!A:M,8,0)","v":0},{"$f":"VLOOKUP(B143,'LOC FINAL with new Themes'!A:M,9,0)","v":0},{"$f":"VLOOKUP(B143,'LOC FINAL with new Themes'!A:M,10,0)","v":0},{"$f":"VLOOKUP(B143,'LOC FINAL with new Themes'!A:M,11,0)","v":0},{"$f":"VLOOKUP(B143,'LOC FINAL with new Themes'!A:M,12,0)","v":0},{"$f":"VLOOKUP(B143,'LOC FINAL with new Themes'!A:M,13,0)","v":0}]
[null,"Congressional District (111th)","Congressional District (111th)","Congressional District (111th)","Governmental Units ","DOC-Census","Jennifer Holland","Jennifer.L.Holland@census.gov",null,{"$f":"VLOOKUP(B144,'LOC FINAL with new Themes'!A:M,7,0)","v":0},{"$f":"VLOOKUP(B144,'LOC FINAL with new Themes'!A:M,8,0)","v":0},{"$f":"VLOOKUP(B144,'LOC FINAL with new Themes'!A:M,9,0)","v":0},{"$f":"VLOOKUP(B144,'LOC FINAL with new Themes'!A:M,10,0)","v":0},{"$f":"VLOOKUP(B144,'LOC FINAL with new Themes'!A:M,11,0)","v":0},{"$f":"VLOOKUP(B144,'LOC FINAL with new Themes'!A:M,12,0)","v":0},{"$f":"VLOOKUP(B144,'LOC FINAL with new Themes'!A:M,13,0)","v":0}]
[null,"Consolidated City (2010 Census)","Consolidated City (2010 Census)","Consolidated City (2010 Census)","Governmental Units ","DOC-Census","Jennifer Holland","Jennifer.L.Holland@census.gov",null,{"$f":"VLOOKUP(B145,'LOC FINAL with new Themes'!A:M,7,0)","v":0},{"$f":"VLOOKUP(B145,'LOC FINAL with new Themes'!A:M,8,0)","v":0},{"$f":"VLOOKUP(B145,'LOC FINAL with new Themes'!A:M,9,0)","v":0},{"$f":"VLOOKUP(B145,'LOC FINAL with new Themes'!A:M,10,0)","v":0},{"$f":"VLOOKUP(B145,'LOC FINAL with new Themes'!A:M,11,0)","v":0},{"$f":"VLOOKUP(B145,'LOC FINAL with new Themes'!A:M,12,0)","v":0},{"$f":"VLOOKUP(B145,'LOC FINAL with new Themes'!A:M,13,0)","v":0}]
[null,"Consolidated City (Census 2000)","Consolidated City (Census 2000)","Consolidated City (Census 2000)","Governmental Units ","DOC-Census","Jennifer Holland","Jennifer.L.Holland@census.gov",null,{"$f":"VLOOKUP(B146,'LOC FINAL with new Themes'!A:M,7,0)","v":0},{"$f":"VLOOKUP(B146,'LOC FINAL with new Themes'!A:M,8,0)","v":0},{"$f":"VLOOKUP(B146,'LOC FINAL with new Themes'!A:M,9,0)","v":0},{"$f":"VLOOKUP(B146,'LOC FINAL with new Themes'!A:M,10,0)","v":0},{"$f":"VLOOKUP(B146,'LOC FINAL with new Themes'!A:M,11,0)","v":0},{"$f":"VLOOKUP(B146,'LOC FINAL with new Themes'!A:M,12,0)","v":0},{"$f":"VLOOKUP(B146,'LOC FINAL with new Themes'!A:M,13,0)","v":0}]
[null,"County and Equivalent (2010 Census)","County and Equivalent (2010 Census)","County and Equivalent (2010 Census)","Governmental Units ","DOC-Census","Jennifer Holland","Jennifer.L.Holland@census.gov",null,{"$f":"VLOOKUP(B147,'LOC FINAL with new Themes'!A:M,7,0)","v":0},{"$f":"VLOOKUP(B147,'LOC FINAL with new Themes'!A:M,8,0)","v":0},{"$f":"VLOOKUP(B147,'LOC FINAL with new Themes'!A:M,9,0)","v":0},{"$f":"VLOOKUP(B147,'LOC FINAL with new Themes'!A:M,10,0)","v":0},{"$f":"VLOOKUP(B147,'LOC FINAL with new Themes'!A:M,11,0)","v":0},{"$f":"VLOOKUP(B147,'LOC FINAL with new Themes'!A:M,12,0)","v":0},{"$f":"VLOOKUP(B147,'LOC FINAL with new Themes'!A:M,13,0)","v":0}]
[null,"County and Equivalent (Census 2000)","County and Equivalent (Census 2000)","County and Equivalent (Census 2000)","Governmental Units ","DOC-Census","Jennifer Holland","Jennifer.L.Holland@census.gov",null,{"$f":"VLOOKUP(B148,'LOC FINAL with new Themes'!A:M,7,0)","v":0},{"$f":"VLOOKUP(B148,'LOC FINAL with new Themes'!A:M,8,0)","v":0},{"$f":"VLOOKUP(B148,'LOC FINAL with new Themes'!A:M,9,0)","v":0},{"$f":"VLOOKUP(B148,'LOC FINAL with new Themes'!A:M,10,0)","v":0},{"$f":"VLOOKUP(B148,'LOC FINAL with new Themes'!A:M,11,0)","v":0},{"$f":"VLOOKUP(B148,'LOC FINAL with new Themes'!A:M,12,0)","v":0},{"$f":"VLOOKUP(B148,'LOC FINAL with new Themes'!A:M,13,0)","v":0}]
[null,"County Subdivision (2010 Census)","County Subdivision (2010 Census)","County Subdivision (2010 Census)","Governmental Units ","DOC-Census","Jennifer Holland","Jennifer.L.Holland@census.gov",null,{"$f":"VLOOKUP(B149,'LOC FINAL with new Themes'!A:M,7,0)","v":0},{"$f":"VLOOKUP(B149,'LOC FINAL with new Themes'!A:M,8,0)","v":0},{"$f":"VLOOKUP(B149,'LOC FINAL with new Themes'!A:M,9,0)","v":0},{"$f":"VLOOKUP(B149,'LOC FINAL with new Themes'!A:M,10,0)","v":0},{"$f":"VLOOKUP(B149,'LOC FINAL with new Themes'!A:M,11,0)","v":0},{"$f":"VLOOKUP(B149,'LOC FINAL with new Themes'!A:M,12,0)","v":0},{"$f":"VLOOKUP(B149,'LOC FINAL with new Themes'!A:M,13,0)","v":0}]
[null,"County Subdivision (Census 2000)","County Subdivision (Census 2000)","County Subdivision (Census 2000)","Governmental Units ","DOC-Census","Jennifer Holland","Jennifer.L.Holland@census.gov",null,{"$f":"VLOOKUP(B150,'LOC FINAL with new Themes'!A:M,7,0)","v":0},{"$f":"VLOOKUP(B150,'LOC FINAL with new Themes'!A:M,8,0)","v":0},{"$f":"VLOOKUP(B150,'LOC FINAL with new Themes'!A:M,9,0)","v":0},{"$f":"VLOOKUP(B150,'LOC FINAL with new Themes'!A:M,10,0)","v":0},{"$f":"VLOOKUP(B150,'LOC FINAL with new Themes'!A:M,11,0)","v":0},{"$f":"VLOOKUP(B150,'LOC FINAL with new Themes'!A:M,12,0)","v":0},{"$f":"VLOOKUP(B150,'LOC FINAL with new Themes'!A:M,13,0)","v":0}]
[null,"Metropolitan Division (2010 Census)","Metropolitan Division (2010 Census)","Metropolitan Division (2010 Census)","Governmental Units ","DOC-Census","Jennifer Holland","Jennifer.L.Holland@census.gov",null,{"$f":"VLOOKUP(B151,'LOC FINAL with new Themes'!A:M,7,0)","v":0},{"$f":"VLOOKUP(B151,'LOC FINAL with new Themes'!A:M,8,0)","v":0},{"$f":"VLOOKUP(B151,'LOC FINAL with new Themes'!A:M,9,0)","v":0},{"$f":"VLOOKUP(B151,'LOC FINAL with new Themes'!A:M,10,0)","v":0},{"$f":"VLOOKUP(B151,'LOC FINAL with new Themes'!A:M,11,0)","v":0},{"$f":"VLOOKUP(B151,'LOC FINAL with new Themes'!A:M,12,0)","v":0},{"$f":"VLOOKUP(B151,'LOC FINAL with new Themes'!A:M,13,0)","v":0}]
[null,"Metropolitan Division (2010 Census)","Metropolitan Division (2010 Census)","Metropolitan Division (2010 Census)","Governmental Units ","DOC-Census","Jennifer Holland","Jennifer.L.Holland@census.gov",null,{"$f":"VLOOKUP(B152,'LOC FINAL with new Themes'!A:M,7,0)","v":0},{"$f":"VLOOKUP(B152,'LOC FINAL with new Themes'!A:M,8,0)","v":0},{"$f":"VLOOKUP(B152,'LOC FINAL with new Themes'!A:M,9,0)","v":0},{"$f":"VLOOKUP(B152,'LOC FINAL with new Themes'!A:M,10,0)","v":0},{"$f":"VLOOKUP(B152,'LOC FINAL with new Themes'!A:M,11,0)","v":0},{"$f":"VLOOKUP(B152,'LOC FINAL with new Themes'!A:M,12,0)","v":0},{"$f":"VLOOKUP(B152,'LOC FINAL with new Themes'!A:M,13,0)","v":0}]
[null,"New England City and Town Area (2010 Census)","New England City and Town Area (2010 Census)","New England City and Town Area (2010 Census)","Governmental Units ","DOC-Census","Jennifer Holland","Jennifer.L.Holland@census.gov",null,{"$f":"VLOOKUP(B153,'LOC FINAL with new Themes'!A:M,7,0)","v":0},{"$f":"VLOOKUP(B153,'LOC FINAL with new Themes'!A:M,8,0)","v":0},{"$f":"VLOOKUP(B153,'LOC FINAL with new Themes'!A:M,9,0)","v":0},{"$f":"VLOOKUP(B153,'LOC FINAL with new Themes'!A:M,10,0)","v":0},{"$f":"VLOOKUP(B153,'LOC FINAL with new Themes'!A:M,11,0)","v":0},{"$f":"VLOOKUP(B153,'LOC FINAL with new Themes'!A:M,12,0)","v":0},{"$f":"VLOOKUP(B153,'LOC FINAL with new Themes'!A:M,13,0)","v":0}]
[null,"New England City and Town Area Division (2010 Census)","New England City and Town Area Division (2010 Census)","New England City and Town Area Division (2010 Census)","Governmental Units ","DOC-Census","Jennifer Holland","Jennifer.L.Holland@census.gov",null,{"$f":"VLOOKUP(B154,'LOC FINAL with new Themes'!A:M,7,0)","v":0},{"$f":"VLOOKUP(B154,'LOC FINAL with new Themes'!A:M,8,0)","v":0},{"$f":"VLOOKUP(B154,'LOC FINAL with new Themes'!A:M,9,0)","v":0},{"$f":"VLOOKUP(B154,'LOC FINAL with new Themes'!A:M,10,0)","v":0},{"$f":"VLOOKUP(B154,'LOC FINAL with new Themes'!A:M,11,0)","v":0},{"$f":"VLOOKUP(B154,'LOC FINAL with new Themes'!A:M,12,0)","v":0},{"$f":"VLOOKUP(B154,'LOC FINAL with new Themes'!A:M,13,0)","v":0}]
["Place and MCD Boundaries","Place (2010 Census)","Place (2010 Census)","Place (2010 Census)","Governmental Units ","DOC-Census","Jennifer Holland","Jennifer.L.Holland@census.gov",null,{"$f":"VLOOKUP(B155,'LOC FINAL with new Themes'!A:M,7,0)","v":0},{"$f":"VLOOKUP(B155,'LOC FINAL with new Themes'!A:M,8,0)","v":0},{"$f":"VLOOKUP(B155,'LOC FINAL with new Themes'!A:M,9,0)","v":0},{"$f":"VLOOKUP(B155,'LOC FINAL with new Themes'!A:M,10,0)","v":0},{"$f":"VLOOKUP(B155,'LOC FINAL with new Themes'!A:M,11,0)","v":0},{"$f":"VLOOKUP(B155,'LOC FINAL with new Themes'!A:M,12,0)","v":0},{"$f":"VLOOKUP(B155,'LOC FINAL with new Themes'!A:M,13,0)","v":0}]
[null,"Place (Census 2000)","Place (Census 2000)","Place (Census 2000)","Governmental Units ","DOC-Census","Jennifer Holland","Jennifer.L.Holland@census.gov",null,{"$f":"VLOOKUP(B156,'LOC FINAL with new Themes'!A:M,7,0)","v":0},{"$f":"VLOOKUP(B156,'LOC FINAL with new Themes'!A:M,8,0)","v":0},{"$f":"VLOOKUP(B156,'LOC FINAL with new Themes'!A:M,9,0)","v":0},{"$f":"VLOOKUP(B156,'LOC FINAL with new Themes'!A:M,10,0)","v":0},{"$f":"VLOOKUP(B156,'LOC FINAL with new Themes'!A:M,11,0)","v":0},{"$f":"VLOOKUP(B156,'LOC FINAL with new Themes'!A:M,12,0)","v":0},{"$f":"VLOOKUP(B156,'LOC FINAL with new Themes'!A:M,13,0)","v":0}]
["State(+ Territories) Boundaries","State and Equivalent  (2010 Census)","State and Equivalent  (2010 Census)","State and Equivalent  (2010 Census)","Governmental Units ","DOC-Census","Jennifer Holland","Jennifer.L.Holland@census.gov",null,{"$f":"VLOOKUP(B157,'LOC FINAL with new Themes'!A:M,7,0)","v":0},{"$f":"VLOOKUP(B157,'LOC FINAL with new Themes'!A:M,8,0)","v":0},{"$f":"VLOOKUP(B157,'LOC FINAL with new Themes'!A:M,9,0)","v":0},{"$f":"VLOOKUP(B157,'LOC FINAL with new Themes'!A:M,10,0)","v":0},{"$f":"VLOOKUP(B157,'LOC FINAL with new Themes'!A:M,11,0)","v":0},{"$f":"VLOOKUP(B157,'LOC FINAL with new Themes'!A:M,12,0)","v":0},{"$f":"VLOOKUP(B157,'LOC FINAL with new Themes'!A:M,13,0)","v":0}]
[null,"State and Equivalent  (Census 2000)","State and Equivalent  (Census 2000)","State and Equivalent  (Census 2000)","Governmental Units ","DOC-Census","Jennifer Holland","Jennifer.L.Holland@census.gov",null,{"$f":"VLOOKUP(B158,'LOC FINAL with new Themes'!A:M,7,0)","v":0},{"$f":"VLOOKUP(B158,'LOC FINAL with new Themes'!A:M,8,0)","v":0},{"$f":"VLOOKUP(B158,'LOC FINAL with new Themes'!A:M,9,0)","v":0},{"$f":"VLOOKUP(B158,'LOC FINAL with new Themes'!A:M,10,0)","v":0},{"$f":"VLOOKUP(B158,'LOC FINAL with new Themes'!A:M,11,0)","v":0},{"$f":"VLOOKUP(B158,'LOC FINAL with new Themes'!A:M,12,0)","v":0},{"$f":"VLOOKUP(B158,'LOC FINAL with new Themes'!A:M,13,0)","v":0}]
[null,"State Legislative District (Lower Chamber) (2010 Census)","State Legislative District (Lower Chamber) (2010 Census)","State Legislative District (Lower Chamber) (2010 Census)","Governmental Units ","DOC-Census","Jennifer Holland","Jennifer.L.Holland@census.gov",null,{"$f":"VLOOKUP(B159,'LOC FINAL with new Themes'!A:M,7,0)","v":0},{"$f":"VLOOKUP(B159,'LOC FINAL with new Themes'!A:M,8,0)","v":0},{"$f":"VLOOKUP(B159,'LOC FINAL with new Themes'!A:M,9,0)","v":0},{"$f":"VLOOKUP(B159,'LOC FINAL with new Themes'!A:M,10,0)","v":0},{"$f":"VLOOKUP(B159,'LOC FINAL with new Themes'!A:M,11,0)","v":0},{"$f":"VLOOKUP(B159,'LOC FINAL with new Themes'!A:M,12,0)","v":0},{"$f":"VLOOKUP(B159,'LOC FINAL with new Themes'!A:M,13,0)","v":0}]
[null,"State Legislative District (Lower Chamber) (Census 2000)","State Legislative District (Lower Chamber) (Census 2000)","State Legislative District (Lower Chamber) (Census 2000)","Governmental Units ","DOC-Census","Jennifer Holland","Jennifer.L.Holland@census.gov",null,{"$f":"VLOOKUP(B160,'LOC FINAL with new Themes'!A:M,7,0)","v":0},{"$f":"VLOOKUP(B160,'LOC FINAL with new Themes'!A:M,8,0)","v":0},{"$f":"VLOOKUP(B160,'LOC FINAL with new Themes'!A:M,9,0)","v":0},{"$f":"VLOOKUP(B160,'LOC FINAL with new Themes'!A:M,10,0)","v":0},{"$f":"VLOOKUP(B160,'LOC FINAL with new Themes'!A:M,11,0)","v":0},{"$f":"VLOOKUP(B160,'LOC FINAL with new Themes'!A:M,12,0)","v":0},{"$f":"VLOOKUP(B160,'LOC FINAL with new Themes'!A:M,13,0)","v":0}]
[null,"State Legislative District (Upper Chamber) (2010 Census)","State Legislative District (Upper Chamber) (2010 Census)","State Legislative District (Upper Chamber) (2010 Census)","Governmental Units ","DOC-Census","Jennifer Holland","Jennifer.L.Holland@census.gov",null,{"$f":"VLOOKUP(B161,'LOC FINAL with new Themes'!A:M,7,0)","v":0},{"$f":"VLOOKUP(B161,'LOC FINAL with new Themes'!A:M,8,0)","v":0},{"$f":"VLOOKUP(B161,'LOC FINAL with new Themes'!A:M,9,0)","v":0},{"$f":"VLOOKUP(B161,'LOC FINAL with new Themes'!A:M,10,0)","v":0},{"$f":"VLOOKUP(B161,'LOC FINAL with new Themes'!A:M,11,0)","v":0},{"$f":"VLOOKUP(B161,'LOC FINAL with new Themes'!A:M,12,0)","v":0},{"$f":"VLOOKUP(B161,'LOC FINAL with new Themes'!A:M,13,0)","v":0}]
[null,"State Legislative District (Upper Chamber) (Census 2000)","State Legislative District (Upper Chamber) (Census 2000)","State Legislative District (Upper Chamber) (Census 2000)","Governmental Units ","DOC-Census","Jennifer Holland","Jennifer.L.Holland@census.gov",null,{"$f":"VLOOKUP(B162,'LOC FINAL with new Themes'!A:M,7,0)","v":0},{"$f":"VLOOKUP(B162,'LOC FINAL with new Themes'!A:M,8,0)","v":0},{"$f":"VLOOKUP(B162,'LOC FINAL with new Themes'!A:M,9,0)","v":0},{"$f":"VLOOKUP(B162,'LOC FINAL with new Themes'!A:M,10,0)","v":0},{"$f":"VLOOKUP(B162,'LOC FINAL with new Themes'!A:M,11,0)","v":0},{"$f":"VLOOKUP(B162,'LOC FINAL with new Themes'!A:M,12,0)","v":0},{"$f":"VLOOKUP(B162,'LOC FINAL with new Themes'!A:M,13,0)","v":0}]
[null,"Subbarrio (2010 Census)","Subbarrio (2010 Census)","Subbarrio (2010 Census)","Governmental Units ","DOC-Census","Jennifer Holland","Jennifer.L.Holland@census.gov",null,{"$f":"VLOOKUP(B163,'LOC FINAL with new Themes'!A:M,7,0)","v":0},{"$f":"VLOOKUP(B163,'LOC FINAL with new Themes'!A:M,8,0)","v":0},{"$f":"VLOOKUP(B163,'LOC FINAL with new Themes'!A:M,9,0)","v":0},{"$f":"VLOOKUP(B163,'LOC FINAL with new Themes'!A:M,10,0)","v":0},{"$f":"VLOOKUP(B163,'LOC FINAL with new Themes'!A:M,11,0)","v":0},{"$f":"VLOOKUP(B163,'LOC FINAL with new Themes'!A:M,12,0)","v":0},{"$f":"VLOOKUP(B163,'LOC FINAL with new Themes'!A:M,13,0)","v":0}]
[null,"Subbarrio (Census 2000)","Subbarrio (Census 2000)","Subbarrio (Census 2000)","Governmental Units ","DOC-Census","Jennifer Holland","Jennifer.L.Holland@census.gov",null,{"$f":"VLOOKUP(B164,'LOC FINAL with new Themes'!A:M,7,0)","v":0},{"$f":"VLOOKUP(B164,'LOC FINAL with new Themes'!A:M,8,0)","v":0},{"$f":"VLOOKUP(B164,'LOC FINAL with new Themes'!A:M,9,0)","v":0},{"$f":"VLOOKUP(B164,'LOC FINAL with new Themes'!A:M,10,0)","v":0},{"$f":"VLOOKUP(B164,'LOC FINAL with new Themes'!A:M,11,0)","v":0},{"$f":"VLOOKUP(B164,'LOC FINAL with new Themes'!A:M,12,0)","v":0},{"$f":"VLOOKUP(B164,'LOC FINAL with new Themes'!A:M,13,0)","v":0}]
[null,"Urban Area (Corrected Census 2000)","Urban Area (Corrected Census 2000)","Urban Area (Corrected Census 2000)","Governmental Units ","DOC-Census","Jennifer Holland","Jennifer.L.Holland@census.gov",null,{"$f":"VLOOKUP(B165,'LOC FINAL with new Themes'!A:M,7,0)","v":0},{"$f":"VLOOKUP(B165,'LOC FINAL with new Themes'!A:M,8,0)","v":0},{"$f":"VLOOKUP(B165,'LOC FINAL with new Themes'!A:M,9,0)","v":0},{"$f":"VLOOKUP(B165,'LOC FINAL with new Themes'!A:M,10,0)","v":0},{"$f":"VLOOKUP(B165,'LOC FINAL with new Themes'!A:M,11,0)","v":0},{"$f":"VLOOKUP(B165,'LOC FINAL with new Themes'!A:M,12,0)","v":0},{"$f":"VLOOKUP(B165,'LOC FINAL with new Themes'!A:M,13,0)","v":0}]
[null,null,null,{"$f":"SUBTOTAL(3,D134:D165)","v":32},"Governmental Units Count"]
["133 Urban Areas imagery program data","133 Urban Areas imagery program data",null,{"$f":"IF(C167=0,B167,C167)","v":"133 Urban Areas imagery program data"},"Imagery ","DOD-NGA","William Nellist","William.E.Nellist@nga.mil",null,{"$f":"VLOOKUP(B167,'LOC FINAL with new Themes'!A:M,7,0)","v":0},{"$f":"VLOOKUP(B167,'LOC FINAL with new Themes'!A:M,8,0)","v":0},{"$f":"VLOOKUP(B167,'LOC FINAL with new Themes'!A:M,9,0)","v":0},{"$f":"VLOOKUP(B167,'LOC FINAL with new Themes'!A:M,10,0)","v":0},{"$f":"VLOOKUP(B167,'LOC FINAL with new Themes'!A:M,11,0)","v":0},{"$f":"VLOOKUP(B167,'LOC FINAL with new Themes'!A:M,12,0)","v":0},{"$f":"VLOOKUP(B167,'LOC FINAL with new Themes'!A:M,13,0)","v":0}]
[null,"134 Urban Areas imagery program data",null,"134 Urban Areas imagery program data","Imagery ","DOI-USGS","George Lee","gylee@usgs.gov",null,{"$f":"VLOOKUP(B168,'LOC FINAL with new Themes'!A:M,7,0)","v":0},{"$f":"VLOOKUP(B168,'LOC FINAL with new Themes'!A:M,8,0)","v":0},{"$f":"VLOOKUP(B168,'LOC FINAL with new Themes'!A:M,9,0)","v":0},{"$f":"VLOOKUP(B168,'LOC FINAL with new Themes'!A:M,10,0)","v":0},{"$f":"VLOOKUP(B168,'LOC FINAL with new Themes'!A:M,11,0)","v":0},{"$f":"VLOOKUP(B168,'LOC FINAL with new Themes'!A:M,12,0)","v":0},{"$f":"VLOOKUP(B168,'LOC FINAL with new Themes'!A:M,13,0)","v":0}]
["ADS40 Hurricane Response 7.5' Quadrangle Mosaics","ADS40 Hurricane Response 7.5' Quadrangle Mosaics",null,"ADS40 Hurricane Response 7.5' Quadrangle Mosaics","Imagery ","DOI-USGS","Jim Mauck","jmauck@usgs.gov",null,{"$f":"VLOOKUP(B169,'LOC FINAL with new Themes'!A:M,7,0)","v":0},{"$f":"VLOOKUP(B169,'LOC FINAL with new Themes'!A:M,8,0)","v":0},{"$f":"VLOOKUP(B169,'LOC FINAL with new Themes'!A:M,9,0)","v":0},{"$f":"VLOOKUP(B169,'LOC FINAL with new Themes'!A:M,10,0)","v":0},{"$f":"VLOOKUP(B169,'LOC FINAL with new Themes'!A:M,11,0)","v":0},{"$f":"VLOOKUP(B169,'LOC FINAL with new Themes'!A:M,12,0)","v":0},{"$f":"VLOOKUP(B169,'LOC FINAL with new Themes'!A:M,13,0)","v":0}]
["Digital Orthoimage Quarter Quadrangle (DOQQ) Archive","Digital Orthoimage Quarter Quadrangle (DOQQ) Archive",null,"Digital Orthoimage Quarter Quadrangle (DOQQ) Archive","Imagery ","DOI-USGS",null,null,null,{"$f":"VLOOKUP(B170,'LOC FINAL with new Themes'!A:M,7,0)","v":"DOQQ is static; one data set; this is the POC and data manager. this is the name and maintain three complete with two physically separate on-site and one off-site"},{"$f":"VLOOKUP(B170,'LOC FINAL with new Themes'!A:M,8,0)","v":0},{"$f":"VLOOKUP(B170,'LOC FINAL with new Themes'!A:M,9,0)","v":0},{"$f":"VLOOKUP(B170,'LOC FINAL with new Themes'!A:M,10,0)","v":0},{"$f":"VLOOKUP(B170,'LOC FINAL with new Themes'!A:M,11,0)","v":0},{"$f":"VLOOKUP(B170,'LOC FINAL with new Themes'!A:M,12,0)","v":0},{"$f":"VLOOKUP(B170,'LOC FINAL with new Themes'!A:M,13,0)","v":"S"}]
["Emergency Response Imagery","Emergency Response Imagery","Emergency Response Imagery","Emergency Response Imagery","Imagery ","DOC-NOAA","Mike Aslaksen","mike.Aslaksen@noaa.gov",null,{"$f":"VLOOKUP(B171,'LOC FINAL with new Themes'!A:M,7,0)","v":"20-Multiple      "},{"$f":"VLOOKUP(B171,'LOC FINAL with new Themes'!A:M,8,0)","v":"No"},{"$f":"VLOOKUP(B171,'LOC FINAL with new Themes'!A:M,9,0)","v":"Yes - email reply from Jon Sellars Jon.Sellars@noaa.gov"},{"$f":"VLOOKUP(B171,'LOC FINAL with new Themes'!A:M,10,0)","v":"- Same for the forest frag."},{"$f":"VLOOKUP(B171,'LOC FINAL with new Themes'!A:M,11,0)","v":"Our data can be accessed through the following links: http://storms.ngs.noaagov/eri_page/index.html Gulf Oil Spill:\nhttp://hdds.usgs.gov/hdds2/pub/data/disaster/201004_Oilspill_GulfOfMexico/data/AERIAL_NOAA\nhttp://hdds.usgs.gov/hdds2/pub/data/disaster/201004_Oilspill_GulfOfMexico/data/AERIAL_NOAA_MOSAIC  Haiti Earthquake:\nhttp://hdds.usgs.gov/hdds2/pub/data/disaster/201001_Earthquake_Haiti/data/AERIAL_NOAA\nhttp://hdds.usgs.gov/hdds2/pub/data/disaster/201001_Earthquake_Haiti/data/AERIAL_NOAA_ORTHO\nMexico Earthquake:\nhttp://hdds.usgs.gov/hdds2/pub/data/disaster/201004_Earthquake_Mexico/data/AERIAL_NOAA_MOSAIC \n\n"},{"$f":"VLOOKUP(B171,'LOC FINAL with new Themes'!A:M,12,0)","v":"Described by storm name, event or location."},{"$f":"VLOOKUP(B171,'LOC FINAL with new Themes'!A:M,13,0)","v":"M "}]
[null,null,"Fire, Detection: AVHRR FIMMA , GOES WF-ABBA","Fire, Detection: AVHRR FIMMA , GOES WF-ABBA","Imagery ","USDA"]
["Landsat geometric/terrain corrected level 1T","Landsat geometric/terrain corrected level 1T","Landsat Terrain Corrected Scenes","Landsat Terrain Corrected Scenes","Imagery ","DOI-USGS","Kristi Kline","kkline@usgs.gov",null,{"$f":"VLOOKUP(B173,'LOC FINAL with new Themes'!A:M,7,0)","v":"Landsat updates daily; a series of data sets; this is the POC and data manager; this is the name and maintain three complete with two physically separate on-site and one off-site"},{"$f":"VLOOKUP(B173,'LOC FINAL with new Themes'!A:M,8,0)","v":0},{"$f":"VLOOKUP(B173,'LOC FINAL with new Themes'!A:M,9,0)","v":0},{"$f":"VLOOKUP(B173,'LOC FINAL with new Themes'!A:M,10,0)","v":0},{"$f":"VLOOKUP(B173,'LOC FINAL with new Themes'!A:M,11,0)","v":0},{"$f":"VLOOKUP(B173,'LOC FINAL with new Themes'!A:M,12,0)","v":0},{"$f":"VLOOKUP(B173,'LOC FINAL with new Themes'!A:M,13,0)","v":"S"}]
[null,null,"National  Orthoimagery Dataset - National Map","National  Orthoimagery Dataset - National Map","Imagery ","DOI-USGS"]
["National Aerial Photography Program (NAPP) Data Archive","National Aerial Photography Program (NAPP) Data Archive",null,"National Aerial Photography Program (NAPP) Data Archive","Imagery ","DOI-USGS","Wayne Miller","wamiller@usgs.gov",null,{"$f":"VLOOKUP(B175,'LOC FINAL with new Themes'!A:M,7,0)","v":"NAPP is static; one data set; this is the POC and data manager; this is the name and maintain three complete with two physically separate on-site and one off-site "},{"$f":"VLOOKUP(B175,'LOC FINAL with new Themes'!A:M,8,0)","v":0},{"$f":"VLOOKUP(B175,'LOC FINAL with new Themes'!A:M,9,0)","v":0},{"$f":"VLOOKUP(B175,'LOC FINAL with new Themes'!A:M,10,0)","v":0},{"$f":"VLOOKUP(B175,'LOC FINAL with new Themes'!A:M,11,0)","v":0},{"$f":"VLOOKUP(B175,'LOC FINAL with new Themes'!A:M,12,0)","v":0},{"$f":"VLOOKUP(B175,'LOC FINAL with new Themes'!A:M,13,0)","v":"S"}]
["National Agriculture Imagery Program Data","National Agriculture Imagery Program Data","National Agriculture Imagery Program (NAIP) Archive","National Agriculture Imagery Program (NAIP) Archive","Imagery ","DOI-USGS","Shirley Hall","shirley.hall@wdc.usda.gov",null,{"$f":"VLOOKUP(B176,'LOC FINAL with new Themes'!A:M,7,0)","v":"Shirley identified Dan Good as new contact 'daniel.good@wdc.usda.gov' - need to follow up with either or both"},{"$f":"VLOOKUP(B176,'LOC FINAL with new Themes'!A:M,8,0)","v":0},{"$f":"VLOOKUP(B176,'LOC FINAL with new Themes'!A:M,9,0)","v":0},{"$f":"VLOOKUP(B176,'LOC FINAL with new Themes'!A:M,10,0)","v":0},{"$f":"VLOOKUP(B176,'LOC FINAL with new Themes'!A:M,11,0)","v":0},{"$f":"VLOOKUP(B176,'LOC FINAL with new Themes'!A:M,12,0)","v":0},{"$f":"VLOOKUP(B176,'LOC FINAL with new Themes'!A:M,13,0)","v":0}]
["National Map Orthoimagery Database (TNM Seamless Server) ","National Map Orthoimagery Database (TNM Seamless Server) ",null,"National Map Orthoimagery Database (TNM Seamless Server) ","Imagery ","DOI-USGS","George Lee","gylee@usgs.gov",null,{"$f":"VLOOKUP(B177,'LOC FINAL with new Themes'!A:M,7,0)","v":0},{"$f":"VLOOKUP(B177,'LOC FINAL with new Themes'!A:M,8,0)","v":0},{"$f":"VLOOKUP(B177,'LOC FINAL with new Themes'!A:M,9,0)","v":0},{"$f":"VLOOKUP(B177,'LOC FINAL with new Themes'!A:M,10,0)","v":0},{"$f":"VLOOKUP(B177,'LOC FINAL with new Themes'!A:M,11,0)","v":0},{"$f":"VLOOKUP(B177,'LOC FINAL with new Themes'!A:M,12,0)","v":0},{"$f":"VLOOKUP(B177,'LOC FINAL with new Themes'!A:M,13,0)","v":0}]
[null,null,"Satellite Imagery Archive","Satellite Imagery Archive","Imagery ","USDA-FSA"]
[null,null,null,{"$f":"SUBTOTAL(3,D167:D178)","v":12},"Imagery  Count"]
[null,null,"Crops: Cropland Data Layer",{"$f":"IF(C180=0,B180,C180)","v":"Crops: Cropland Data Layer"},"Land Use-Land Cover ","USDA-NASS"]
[null,null,"Earth Cover, Land: MODIS-based Land Products","Earth Cover, Land: MODIS-based Land Products","Land Use-Land Cover ","USDA -FS (Along with USGS)"]
[null,null,"Earth Cover, Vegetation, Forest: Forest Biomass, Types, Type Groups","Earth Cover, Vegetation, Forest: Forest Biomass, Types, Type Groups","Land Use-Land Cover ","USDA-FS"]
[null,null,"Earth Cover, Vegetation: Percent Forest Canopy","Earth Cover, Vegetation: Percent Forest Canopy","Land Use-Land Cover ","USDA-FS"]
[null,null,"Fire Severity: Monitoring Trends in Burn Severity (MTBS)","Fire Severity: Monitoring Trends in Burn Severity (MTBS)","Land Use-Land Cover ","USDA -FS (Along with USGS)"]
[null,null,"Fire, Detection: Daily Active Fire Mapping","Fire, Detection: Daily Active Fire Mapping","Land Use-Land Cover ","USDA"]
[null,null,"Land Cover Strata Dataset","Land Cover Strata Dataset","Land Use-Land Cover ","USDA-NASS"]
["LANDFIRE Dataset","LANDFIRE Dataset","Land Fire Dataset","Land Fire Dataset","Land Use-Land Cover ",null,null,0,null,{"$f":"VLOOKUP(B187,'LOC FINAL with new Themes'!A:M,7,0)","v":0},{"$f":"VLOOKUP(B187,'LOC FINAL with new Themes'!A:M,8,0)","v":0},{"$f":"VLOOKUP(B187,'LOC FINAL with new Themes'!A:M,9,0)","v":0},{"$f":"VLOOKUP(B187,'LOC FINAL with new Themes'!A:M,10,0)","v":0},{"$f":"VLOOKUP(B187,'LOC FINAL with new Themes'!A:M,11,0)","v":0},{"$f":"VLOOKUP(B187,'LOC FINAL with new Themes'!A:M,12,0)","v":0},{"$f":"VLOOKUP(B187,'LOC FINAL with new Themes'!A:M,13,0)","v":0}]
["National Land Cover Dataset (NLCD)","National Land Cover Dataset (NLCD)","National Land Cover Dataset - GIRAS - 1975","National Land Cover Dataset - GIRAS - 1975","Land Use-Land Cover ","DOI-USGS","Colin Homer","homer@usgs.gov",null,{"$f":"VLOOKUP(B188,'LOC FINAL with new Themes'!A:M,7,0)","v":"The table below summarizes NLCD products available for download from the MRLC website http://www.mrlc.gov/ "},{"$f":"VLOOKUP(B188,'LOC FINAL with new Themes'!A:M,8,0)","v":"No.  The \"manager\" of the data is Jon Dewitz. \nContact Information -   \nJon Dewitz\ndewitz@usgs.gov\n605-594-2715\nNLCD Quality Supervisor\nUSGS Earth Resources Observation and Science Center (EROS)\nMundt Federal Building\n47914 252nd St.\nSioux Falls, SD 57198\nfax 605-594-6529\n"},{"$f":"VLOOKUP(B188,'LOC FINAL with new Themes'!A:M,9,0)","v":"Joyce Fry is the POC. \nContact information - \nJoyce Fry, Geographer\nUnited States Geological Survey (USGS)\nEarth Resources Observation and  Science (EROS) Center\nMundt Federal Building\n47914 252nd Street\nSioux Falls, South Dakota 57198\n(P)  605.594.2739\n(F)  605.594.6529\n(e)  jfry@usgs.gov \n"},{"$f":"VLOOKUP(B188,'LOC FINAL with new Themes'!A:M,10,0)","v":"Every 5 years"},{"$f":"VLOOKUP(B188,'LOC FINAL with new Themes'!A:M,11,0)","v":"Yes, there is an archive/backup of the dataset through the EROS Long Term Archive (LTA) group.  I will need to get back to if you need additional information regarding the archive process. "},{"$f":"VLOOKUP(B188,'LOC FINAL with new Themes'!A:M,12,0)","v":"National Land Cover Database or NLCD along with the era number, either 1992 or 2001, or 2006. "},{"$f":"VLOOKUP(B188,'LOC FINAL with new Themes'!A:M,13,0)","v":"S"}]
[null,null,"National Land Cover Dataset - National Map","National Land Cover Dataset - National Map","Land Use-Land Cover ","DOI-USGS"]
[null,null,"National Land Cover Dataset - National Map - 1991","National Land Cover Dataset - National Map - 1991","Land Use-Land Cover ","DOI-USGS"]
[null,null,"National Land Cover Dataset - National Map - 2001","National Land Cover Dataset - National Map - 2001","Land Use-Land Cover ","DOI-USGS"]
[null,null,"National Land Cover Dataset - National Map 2006","National Land Cover Dataset - National Map 2006","Land Use-Land Cover ","DOI-USGS"]
["National Land Cover Dataset (NLCD)","National Land Cover Dataset (NLCD)","National Land Cover Dataset (NLCD)","National Land Cover Dataset (NLCD)","Land Use-Land Cover ","DOI-USGS","Colin Homer","homer@usgs.gov",null,{"$f":"VLOOKUP(B193,'LOC FINAL with new Themes'!A:M,7,0)","v":"The table below summarizes NLCD products available for download from the MRLC website http://www.mrlc.gov/ "},{"$f":"VLOOKUP(B193,'LOC FINAL with new Themes'!A:M,8,0)","v":"No.  The \"manager\" of the data is Jon Dewitz. \nContact Information -   \nJon Dewitz\ndewitz@usgs.gov\n605-594-2715\nNLCD Quality Supervisor\nUSGS Earth Resources Observation and Science Center (EROS)\nMundt Federal Building\n47914 252nd St.\nSioux Falls, SD 57198\nfax 605-594-6529\n"},{"$f":"VLOOKUP(B193,'LOC FINAL with new Themes'!A:M,9,0)","v":"Joyce Fry is the POC. \nContact information - \nJoyce Fry, Geographer\nUnited States Geological Survey (USGS)\nEarth Resources Observation and  Science (EROS) Center\nMundt Federal Building\n47914 252nd Street\nSioux Falls, South Dakota 57198\n(P)  605.594.2739\n(F)  605.594.6529\n(e)  jfry@usgs.gov \n"},{"$f":"VLOOKUP(B193,'LOC FINAL with new Themes'!A:M,10,0)","v":"Every 5 years"},{"$f":"VLOOKUP(B193,'LOC FINAL with new Themes'!A:M,11,0)","v":"Yes, there is an archive/backup of the dataset through the EROS Long Term Archive (LTA) group.  I will need to get back to if you need additional information regarding the archive process. "},{"$f":"VLOOKUP(B193,'LOC FINAL with new Themes'!A:M,12,0)","v":"National Land Cover Database or NLCD along with the era number, either 1992 or 2001, or 2006. "},{"$f":"VLOOKUP(B193,'LOC FINAL with new Themes'!A:M,13,0)","v":"S"}]
[null,null,"National Land Cover Percent Canopy - National Map - 1991","National Land Cover Percent Canopy - National Map - 1991","Land Use-Land Cover ","DOI-USGS"]
[null,null,"National Land Cover Percent Imperviousness - National Map - 2001","National Land Cover Percent Imperviousness - National Map - 2001","Land Use-Land Cover ","DOI-USGS"]
[null,null,"National Land Cover Percent Imperviousness - National Map - 2006","National Land Cover Percent Imperviousness - National Map - 2006","Land Use-Land Cover ","DOI-USGS"]
["National Parks Data","National Parks Data","National Parks Data","National Parks Data","Land Use-Land Cover ","DOI-NPS","Roger Johnson ","Roger_M_Johnson@nps.gov",null,{"$f":"VLOOKUP(B197,'LOC FINAL with new Themes'!A:M,7,0)","v":"undeliverable email- neeed to identify new contact"},{"$f":"VLOOKUP(B197,'LOC FINAL with new Themes'!A:M,8,0)","v":0},{"$f":"VLOOKUP(B197,'LOC FINAL with new Themes'!A:M,9,0)","v":0},{"$f":"VLOOKUP(B197,'LOC FINAL with new Themes'!A:M,10,0)","v":0},{"$f":"VLOOKUP(B197,'LOC FINAL with new Themes'!A:M,11,0)","v":0},{"$f":"VLOOKUP(B197,'LOC FINAL with new Themes'!A:M,12,0)","v":0},{"$f":"VLOOKUP(B197,'LOC FINAL with new Themes'!A:M,13,0)","v":0}]
[null,null,null,{"$f":"SUBTOTAL(3,D180:D197)","v":18},"Land Use-Land Cover  Count"]
["Assisted Housing (census geography or point-based) see http://www.huduser.org/picture2000/","Assisted Housing (census geography or point-based)",null,{"$f":"IF(C199=0,B199,C199)","v":"Assisted Housing (census geography or point-based)"},"Real Property","HUD","Jon Sperling","jon.sperling@hud.gov",null,{"$f":"VLOOKUP(B199,'LOC FINAL with new Themes'!A:M,7,0)","v":0},{"$f":"VLOOKUP(B199,'LOC FINAL with new Themes'!A:M,8,0)","v":0},{"$f":"VLOOKUP(B199,'LOC FINAL with new Themes'!A:M,9,0)","v":0},{"$f":"VLOOKUP(B199,'LOC FINAL with new Themes'!A:M,10,0)","v":0},{"$f":"VLOOKUP(B199,'LOC FINAL with new Themes'!A:M,11,0)","v":0},{"$f":"VLOOKUP(B199,'LOC FINAL with new Themes'!A:M,12,0)","v":0},{"$f":"VLOOKUP(B199,'LOC FINAL with new Themes'!A:M,13,0)","v":0}]
["Enterprise Zones, Empowerment Communities, Revitalization Areas, Qualified Census Tracts, etc.  (census geography based)","Enterprise Zones, Empowerment Communities, Revitalization Areas, Qualified Census Tracts, etc.  (census geography based)",null,"Enterprise Zones, Empowerment Communities, Revitalization Areas, Qualified Census Tracts, etc.  (census geography based)","Real Property","HUD","Jon Sperling","jon.sperling@hud.gov",null,{"$f":"VLOOKUP(B200,'LOC FINAL with new Themes'!A:M,7,0)","v":0},{"$f":"VLOOKUP(B200,'LOC FINAL with new Themes'!A:M,8,0)","v":0},{"$f":"VLOOKUP(B200,'LOC FINAL with new Themes'!A:M,9,0)","v":0},{"$f":"VLOOKUP(B200,'LOC FINAL with new Themes'!A:M,10,0)","v":0},{"$f":"VLOOKUP(B200,'LOC FINAL with new Themes'!A:M,11,0)","v":0},{"$f":"VLOOKUP(B200,'LOC FINAL with new Themes'!A:M,12,0)","v":0},{"$f":"VLOOKUP(B200,'LOC FINAL with new Themes'!A:M,13,0)","v":0}]
["Federal building location point ","Federal building location point ","Federal building location point ","Federal building location point ","Real Property ","GSA","Sandra Downie","sandra.downie@gsa.gov",null,{"$f":"VLOOKUP(B201,'LOC FINAL with new Themes'!A:M,7,0)","v":0},{"$f":"VLOOKUP(B201,'LOC FINAL with new Themes'!A:M,8,0)","v":0},{"$f":"VLOOKUP(B201,'LOC FINAL with new Themes'!A:M,9,0)","v":0},{"$f":"VLOOKUP(B201,'LOC FINAL with new Themes'!A:M,10,0)","v":0},{"$f":"VLOOKUP(B201,'LOC FINAL with new Themes'!A:M,11,0)","v":0},{"$f":"VLOOKUP(B201,'LOC FINAL with new Themes'!A:M,12,0)","v":0},{"$f":"VLOOKUP(B201,'LOC FINAL with new Themes'!A:M,13,0)","v":0}]
["Federal building location polygon","Federal building location polygon","Federal building location polygon","Federal building location polygon","Real Property ","GSA","Sandra Downie","sandra.downie@gsa.gov",null,{"$f":"VLOOKUP(B202,'LOC FINAL with new Themes'!A:M,7,0)","v":0},{"$f":"VLOOKUP(B202,'LOC FINAL with new Themes'!A:M,8,0)","v":0},{"$f":"VLOOKUP(B202,'LOC FINAL with new Themes'!A:M,9,0)","v":0},{"$f":"VLOOKUP(B202,'LOC FINAL with new Themes'!A:M,10,0)","v":0},{"$f":"VLOOKUP(B202,'LOC FINAL with new Themes'!A:M,11,0)","v":0},{"$f":"VLOOKUP(B202,'LOC FINAL with new Themes'!A:M,12,0)","v":0},{"$f":"VLOOKUP(B202,'LOC FINAL with new Themes'!A:M,13,0)","v":0}]
["Federal land area facility location point","Federal land area facility location point","Federal land area facility location point","Federal land area facility location point","Real Property ","GSA","Sandra Downie","sandra.downie@gsa.gov",null,{"$f":"VLOOKUP(B203,'LOC FINAL with new Themes'!A:M,7,0)","v":0},{"$f":"VLOOKUP(B203,'LOC FINAL with new Themes'!A:M,8,0)","v":0},{"$f":"VLOOKUP(B203,'LOC FINAL with new Themes'!A:M,9,0)","v":0},{"$f":"VLOOKUP(B203,'LOC FINAL with new Themes'!A:M,10,0)","v":0},{"$f":"VLOOKUP(B203,'LOC FINAL with new Themes'!A:M,11,0)","v":0},{"$f":"VLOOKUP(B203,'LOC FINAL with new Themes'!A:M,12,0)","v":0},{"$f":"VLOOKUP(B203,'LOC FINAL with new Themes'!A:M,13,0)","v":0}]
["Federal land area facility location polygon","Federal land area facility location polygon","Federal land area facility location polygon","Federal land area facility location polygon","Real Property ","GSA","Sandra Downie","sandra.downie@gsa.gov",null,{"$f":"VLOOKUP(B204,'LOC FINAL with new Themes'!A:M,7,0)","v":0},{"$f":"VLOOKUP(B204,'LOC FINAL with new Themes'!A:M,8,0)","v":0},{"$f":"VLOOKUP(B204,'LOC FINAL with new Themes'!A:M,9,0)","v":0},{"$f":"VLOOKUP(B204,'LOC FINAL with new Themes'!A:M,10,0)","v":0},{"$f":"VLOOKUP(B204,'LOC FINAL with new Themes'!A:M,11,0)","v":0},{"$f":"VLOOKUP(B204,'LOC FINAL with new Themes'!A:M,12,0)","v":0},{"$f":"VLOOKUP(B204,'LOC FINAL with new Themes'!A:M,13,0)","v":0}]
["National Map - Structures Dataset","National Map - Structures Dataset","National Structures Dataset - National Map","National Structures Dataset - National Map","Real Property ","DOI-USGS","Paul Wiese","pmwiese@usgs.gov",null,{"$f":"VLOOKUP(B205,'LOC FINAL with new Themes'!A:M,7,0)","v":"National Map updates monthly; a series of data sets; this is the POC and data manager; this is the name and maintain three complete with two physically separate on-site and one off-site"},{"$f":"VLOOKUP(B205,'LOC FINAL with new Themes'!A:M,8,0)","v":0},{"$f":"VLOOKUP(B205,'LOC FINAL with new Themes'!A:M,9,0)","v":0},{"$f":"VLOOKUP(B205,'LOC FINAL with new Themes'!A:M,10,0)","v":0},{"$f":"VLOOKUP(B205,'LOC FINAL with new Themes'!A:M,11,0)","v":0},{"$f":"VLOOKUP(B205,'LOC FINAL with new Themes'!A:M,12,0)","v":0},{"$f":"VLOOKUP(B205,'LOC FINAL with new Themes'!A:M,13,0)","v":"S"}]
[null,null,null,{"$f":"SUBTOTAL(3,D199:D205)","v":7},"Real Property Count"]
[null,"Military Installation","Military Installation",{"$f":"IF(C207=0,B207,C207)","v":"Military Installation"},"Real Property\nCultural & Demographic Statistics","DOC-Census","Jennifer Holland","Jennifer.L.Holland@census.gov",null,{"$f":"VLOOKUP(B207,'LOC FINAL with new Themes'!A:M,7,0)","v":0},{"$f":"VLOOKUP(B207,'LOC FINAL with new Themes'!A:M,8,0)","v":0},{"$f":"VLOOKUP(B207,'LOC FINAL with new Themes'!A:M,9,0)","v":0},{"$f":"VLOOKUP(B207,'LOC FINAL with new Themes'!A:M,10,0)","v":0},{"$f":"VLOOKUP(B207,'LOC FINAL with new Themes'!A:M,11,0)","v":0},{"$f":"VLOOKUP(B207,'LOC FINAL with new Themes'!A:M,12,0)","v":0},{"$f":"VLOOKUP(B207,'LOC FINAL with new Themes'!A:M,13,0)","v":0}]
[null,null,null,{"$f":"SUBTOTAL(3,D207:D207)","v":1},"Real Property\nCultural & Demographic Statistics Count"]
["Common Resource Area (CRA)","Common Resource Area (CRA)","Common Resource Area (CRA)",{"$f":"IF(C209=0,B209,C209)","v":"Common Resource Area (CRA)"},"Soils ","USDA-NRCS","David Hoover","David.Hoover@wdc.usda.gov",null,{"$f":"VLOOKUP(B209,'LOC FINAL with new Themes'!A:M,7,0)","v":0},{"$f":"VLOOKUP(B209,'LOC FINAL with new Themes'!A:M,8,0)","v":0},{"$f":"VLOOKUP(B209,'LOC FINAL with new Themes'!A:M,9,0)","v":0},{"$f":"VLOOKUP(B209,'LOC FINAL with new Themes'!A:M,10,0)","v":0},{"$f":"VLOOKUP(B209,'LOC FINAL with new Themes'!A:M,11,0)","v":0},{"$f":"VLOOKUP(B209,'LOC FINAL with new Themes'!A:M,12,0)","v":0},{"$f":"VLOOKUP(B209,'LOC FINAL with new Themes'!A:M,13,0)","v":0}]
["Major Land Resource Area (MLRA)","Major Land Resource Area (MLRA)","Major Land Resource Area (MLRA)","Major Land Resource Area (MLRA)","Soils ","USDA-NRCS","David Hoover","David.Hoover@wdc.usda.gov",null,{"$f":"VLOOKUP(B210,'LOC FINAL with new Themes'!A:M,7,0)","v":"undeliverable email- neeed to identify new contact"},{"$f":"VLOOKUP(B210,'LOC FINAL with new Themes'!A:M,8,0)","v":0},{"$f":"VLOOKUP(B210,'LOC FINAL with new Themes'!A:M,9,0)","v":0},{"$f":"VLOOKUP(B210,'LOC FINAL with new Themes'!A:M,10,0)","v":0},{"$f":"VLOOKUP(B210,'LOC FINAL with new Themes'!A:M,11,0)","v":0},{"$f":"VLOOKUP(B210,'LOC FINAL with new Themes'!A:M,12,0)","v":0},{"$f":"VLOOKUP(B210,'LOC FINAL with new Themes'!A:M,13,0)","v":0}]
["National Cooperative Soil Survey (NCSS)","National Cooperative Soil Survey (NCSS)","National Cooperative Soil Characterization Database","National Cooperative Soil Characterization Database","Soils ","USDA-NRCS","Larry West","Larry.West@lin.usda.gov",null,{"$f":"VLOOKUP(B211,'LOC FINAL with new Themes'!A:M,7,0)","v":"We have our Soil Survey Geographic database called SSURGO which is made available through the following sites:\nWeb Soil Survey:    http://websoilsurvey.nrcs.usda.gov/app/\nSoil Data Mart:     http://soildatamart.nrcs.usda.gov/\nSoil Data Access:   http://sdmdataaccess.nrcs.usda.gov\n\nWe also have: \nLab Soil Survey Lab Characterization Data (Point data): http://ssldata.nrcs.usda.gov/ aka NCSS Characterization Database\nSoil Series Classification Database http://soils.usda.gov/technical/classification/scfile/index.html\nU.S. General Soil Map (STATSGO2)\nMajor Land Resource Area (MLRA) http://soils.usda.gov/survey/geography/mlra/\n             Common Resource Areas (CRA) \n\n"},{"$f":"VLOOKUP(B211,'LOC FINAL with new Themes'!A:M,8,0)","v":"? No, I am a Program Manager. Various other people have roles of maintaining the data. "},{"$f":"VLOOKUP(B211,'LOC FINAL with new Themes'!A:M,9,0)","v":"I am a general information POC for all things soil survey related. For more technical aspects on our data sets a good POC would be David Hoover, National Leader for Soil Business Systems or someone on his staff. His contact number is 402-437-4013 or email at david.hoover@lin.usda.gov. "},{"$f":"VLOOKUP(B211,'LOC FINAL with new Themes'!A:M,10,0)","v":"Our data sets are constantly being updated by about 1000 soil and plant scientists in several agencies. "},{"$f":"VLOOKUP(B211,'LOC FINAL with new Themes'!A:M,11,0)","v":"Our data sets are archived, but I don’t know how far back. I will have to get back to you on that. It is my understanding that archived sets are not easily accessible.  We have archive data for SSURGO (Soil Data Warehouse from mid 2000’s or earlier – Jim Fortner or Jennifer Sweet may be able to confirm or provide more detail; We also have archive data for STATSGO (circa 1994;1996) and for MLRA (1978; 2001; 2006) in local holdings.  Not sure about lab data archives, Henry Ferguson or Larry West can confirm.  "},{"$f":"VLOOKUP(B211,'LOC FINAL with new Themes'!A:M,12,0)","v":"? the Lab Characterization Data is also known as the “NCSS Characterization Database”\nAdded Common Resource Area geographic database (CRA)."},{"$f":"VLOOKUP(B211,'LOC FINAL with new Themes'!A:M,13,0)","v":"P"}]
["Soil Survey Geographic Database (SSURGO)","Soil Survey Geographic Database (SSURGO)","Soil Survey Geographic Database (SSURGO)","Soil Survey Geographic Database (SSURGO)","Soils ","USDA-NRCS","David Hoover","David.Hoover@wdc.usda.gov",null,{"$f":"VLOOKUP(B212,'LOC FINAL with new Themes'!A:M,7,0)","v":"undeliverable email- neeed to identify new contact"},{"$f":"VLOOKUP(B212,'LOC FINAL with new Themes'!A:M,8,0)","v":0},{"$f":"VLOOKUP(B212,'LOC FINAL with new Themes'!A:M,9,0)","v":0},{"$f":"VLOOKUP(B212,'LOC FINAL with new Themes'!A:M,10,0)","v":0},{"$f":"VLOOKUP(B212,'LOC FINAL with new Themes'!A:M,11,0)","v":0},{"$f":"VLOOKUP(B212,'LOC FINAL with new Themes'!A:M,12,0)","v":0},{"$f":"VLOOKUP(B212,'LOC FINAL with new Themes'!A:M,13,0)","v":0}]
["U.S. General Soil Map (STATSGO2)","U.S. General Soil Map (STATSGO2)","U.S. General Soil Map (STATSGO2)","U.S. General Soil Map (STATSGO2)","Soils ","USDA-NRCS","David Hoover","David.Hoover@wdc.usda.gov",null,{"$f":"VLOOKUP(B213,'LOC FINAL with new Themes'!A:M,7,0)","v":"undeliverable email- neeed to identify new contact"},{"$f":"VLOOKUP(B213,'LOC FINAL with new Themes'!A:M,8,0)","v":0},{"$f":"VLOOKUP(B213,'LOC FINAL with new Themes'!A:M,9,0)","v":0},{"$f":"VLOOKUP(B213,'LOC FINAL with new Themes'!A:M,10,0)","v":0},{"$f":"VLOOKUP(B213,'LOC FINAL with new Themes'!A:M,11,0)","v":0},{"$f":"VLOOKUP(B213,'LOC FINAL with new Themes'!A:M,12,0)","v":0},{"$f":"VLOOKUP(B213,'LOC FINAL with new Themes'!A:M,13,0)","v":0}]
[null,null,null,{"$f":"SUBTOTAL(3,D209:D213)","v":5},"Soils  Count"]
[null,"Address Range-Feature Name Relationship File","Address Range-Feature Name Relationship File",{"$f":"IF(C215=0,B215,C215)","v":"Address Range-Feature Name Relationship File"},"Transportation ","DOC-Census","Jennifer Holland","Jennifer.L.Holland@census.gov",null,{"$f":"VLOOKUP(B215,'LOC FINAL with new Themes'!A:M,7,0)","v":0},{"$f":"VLOOKUP(B215,'LOC FINAL with new Themes'!A:M,8,0)","v":0},{"$f":"VLOOKUP(B215,'LOC FINAL with new Themes'!A:M,9,0)","v":0},{"$f":"VLOOKUP(B215,'LOC FINAL with new Themes'!A:M,10,0)","v":0},{"$f":"VLOOKUP(B215,'LOC FINAL with new Themes'!A:M,11,0)","v":0},{"$f":"VLOOKUP(B215,'LOC FINAL with new Themes'!A:M,12,0)","v":0},{"$f":"VLOOKUP(B215,'LOC FINAL with new Themes'!A:M,13,0)","v":0}]
[null,"Address Ranges Relationship File","Address Ranges Relationship File","Address Ranges Relationship File","Transportation ","DOC-Census","Jennifer Holland","Jennifer.L.Holland@census.gov",null,{"$f":"VLOOKUP(B216,'LOC FINAL with new Themes'!A:M,7,0)","v":0},{"$f":"VLOOKUP(B216,'LOC FINAL with new Themes'!A:M,8,0)","v":0},{"$f":"VLOOKUP(B216,'LOC FINAL with new Themes'!A:M,9,0)","v":0},{"$f":"VLOOKUP(B216,'LOC FINAL with new Themes'!A:M,10,0)","v":0},{"$f":"VLOOKUP(B216,'LOC FINAL with new Themes'!A:M,11,0)","v":0},{"$f":"VLOOKUP(B216,'LOC FINAL with new Themes'!A:M,12,0)","v":0},{"$f":"VLOOKUP(B216,'LOC FINAL with new Themes'!A:M,13,0)","v":0}]
[null,"All Roads","All Roads","All Roads","Transportation ","DOC-Census","Jennifer Holland","Jennifer.L.Holland@census.gov",null,{"$f":"VLOOKUP(B217,'LOC FINAL with new Themes'!A:M,7,0)","v":0},{"$f":"VLOOKUP(B217,'LOC FINAL with new Themes'!A:M,8,0)","v":0},{"$f":"VLOOKUP(B217,'LOC FINAL with new Themes'!A:M,9,0)","v":0},{"$f":"VLOOKUP(B217,'LOC FINAL with new Themes'!A:M,10,0)","v":0},{"$f":"VLOOKUP(B217,'LOC FINAL with new Themes'!A:M,11,0)","v":0},{"$f":"VLOOKUP(B217,'LOC FINAL with new Themes'!A:M,12,0)","v":0},{"$f":"VLOOKUP(B217,'LOC FINAL with new Themes'!A:M,13,0)","v":0}]
["Inland Electronic Navigation Charts (IENC)","Inland Electronic Navigation Charts (IENC)","Inland Electronic Navigation Charts (IENC)","Inland Electronic Navigation Charts (IENC)","Transportation ","DOD-USACE","Joel Schlagel","Joel.D.Schlagel@erdc.usace.army.mil ",null,{"$f":"VLOOKUP(B218,'LOC FINAL with new Themes'!A:M,7,0)","v":0},{"$f":"VLOOKUP(B218,'LOC FINAL with new Themes'!A:M,8,0)","v":0},{"$f":"VLOOKUP(B218,'LOC FINAL with new Themes'!A:M,9,0)","v":0},{"$f":"VLOOKUP(B218,'LOC FINAL with new Themes'!A:M,10,0)","v":0},{"$f":"VLOOKUP(B218,'LOC FINAL with new Themes'!A:M,11,0)","v":0},{"$f":"VLOOKUP(B218,'LOC FINAL with new Themes'!A:M,12,0)","v":0},{"$f":"VLOOKUP(B218,'LOC FINAL with new Themes'!A:M,13,0)","v":0}]
[null,null,"National Interagency Trails Dataset","National Interagency Trails Dataset","Transportation ","USDA"]
["National Map - Transportation Dataset","National Map - Transportation Dataset","National Transportation Dataset - National Map","National Transportation Dataset - National Map","Transportation ","DOI-USGS","Paul Wiese","pmwiese@usgs.gov",null,{"$f":"VLOOKUP(B220,'LOC FINAL with new Themes'!A:M,7,0)","v":0},{"$f":"VLOOKUP(B220,'LOC FINAL with new Themes'!A:M,8,0)","v":0},{"$f":"VLOOKUP(B220,'LOC FINAL with new Themes'!A:M,9,0)","v":0},{"$f":"VLOOKUP(B220,'LOC FINAL with new Themes'!A:M,10,0)","v":0},{"$f":"VLOOKUP(B220,'LOC FINAL with new Themes'!A:M,11,0)","v":0},{"$f":"VLOOKUP(B220,'LOC FINAL with new Themes'!A:M,12,0)","v":0},{"$f":"VLOOKUP(B220,'LOC FINAL with new Themes'!A:M,13,0)","v":0}]
["NTAD","NTAD","NTAD","NTAD","Transportation ","DOT-BTS","Robert Monniere","robert.monniere@dot.gov",null,{"$f":"VLOOKUP(B221,'LOC FINAL with new Themes'!A:M,7,0)","v":0},{"$f":"VLOOKUP(B221,'LOC FINAL with new Themes'!A:M,8,0)","v":0},{"$f":"VLOOKUP(B221,'LOC FINAL with new Themes'!A:M,9,0)","v":0},{"$f":"VLOOKUP(B221,'LOC FINAL with new Themes'!A:M,10,0)","v":0},{"$f":"VLOOKUP(B221,'LOC FINAL with new Themes'!A:M,11,0)","v":0},{"$f":"VLOOKUP(B221,'LOC FINAL with new Themes'!A:M,12,0)","v":0},{"$f":"VLOOKUP(B221,'LOC FINAL with new Themes'!A:M,13,0)","v":0}]
[null,null,"NTAD (airports)","NTAD (airports)","Transportation ","DOT-BTS"]
[null,null,"NTAD (Rail)","NTAD (Rail)","Transportation ","DOT-BTS"]
["NTAD (TransitLines) ","NTAD (TransitLines) ","NTAD (TransitLines) ","NTAD (TransitLines) ","Transportation ","DOT-BTS","Robert Monniere ","robert.monniere@dot.gov \n",null,{"$f":"VLOOKUP(B224,'LOC FINAL with new Themes'!A:M,7,0)","v":0},{"$f":"VLOOKUP(B224,'LOC FINAL with new Themes'!A:M,8,0)","v":0},{"$f":"VLOOKUP(B224,'LOC FINAL with new Themes'!A:M,9,0)","v":0},{"$f":"VLOOKUP(B224,'LOC FINAL with new Themes'!A:M,10,0)","v":0},{"$f":"VLOOKUP(B224,'LOC FINAL with new Themes'!A:M,11,0)","v":0},{"$f":"VLOOKUP(B224,'LOC FINAL with new Themes'!A:M,12,0)","v":0},{"$f":"VLOOKUP(B224,'LOC FINAL with new Themes'!A:M,13,0)","v":0}]
["NTAD (TransitStation) ","NTAD (TransitStation) ","NTAD (TransitStation) ","NTAD (TransitStation) ","Transportation ","DOT-BTS","Robert Monniere ","robert.monniere@dot.gov ",null,{"$f":"VLOOKUP(B225,'LOC FINAL with new Themes'!A:M,7,0)","v":0},{"$f":"VLOOKUP(B225,'LOC FINAL with new Themes'!A:M,8,0)","v":0},{"$f":"VLOOKUP(B225,'LOC FINAL with new Themes'!A:M,9,0)","v":0},{"$f":"VLOOKUP(B225,'LOC FINAL with new Themes'!A:M,10,0)","v":0},{"$f":"VLOOKUP(B225,'LOC FINAL with new Themes'!A:M,11,0)","v":0},{"$f":"VLOOKUP(B225,'LOC FINAL with new Themes'!A:M,12,0)","v":0},{"$f":"VLOOKUP(B225,'LOC FINAL with new Themes'!A:M,13,0)","v":0}]
[null,"Primary and Secondary Roads","Primary and Secondary Roads",{"$f":"IF(C226=0,#REF!,C226)","v":"Primary and Secondary Roads"},"Transportation ","DOC-Census","Jennifer Holland","Jennifer.L.Holland@census.gov",null,{"$f":"VLOOKUP(B226,'LOC FINAL with new Themes'!A:M,7,0)","v":0},{"$f":"VLOOKUP(B226,'LOC FINAL with new Themes'!A:M,8,0)","v":0},{"$f":"VLOOKUP(B226,'LOC FINAL with new Themes'!A:M,9,0)","v":0},{"$f":"VLOOKUP(B226,'LOC FINAL with new Themes'!A:M,10,0)","v":0},{"$f":"VLOOKUP(B226,'LOC FINAL with new Themes'!A:M,11,0)","v":0},{"$f":"VLOOKUP(B226,'LOC FINAL with new Themes'!A:M,12,0)","v":0},{"$f":"VLOOKUP(B226,'LOC FINAL with new Themes'!A:M,13,0)","v":0}]
[null,"Primary Roads","Primary Roads",{"$f":"IF(C227=0,B227,C227)","v":"Primary Roads"},"Transportation ","DOC-Census","Jennifer Holland","Jennifer.L.Holland@census.gov",null,{"$f":"VLOOKUP(B227,'LOC FINAL with new Themes'!A:M,7,0)","v":0},{"$f":"VLOOKUP(B227,'LOC FINAL with new Themes'!A:M,8,0)","v":0},{"$f":"VLOOKUP(B227,'LOC FINAL with new Themes'!A:M,9,0)","v":0},{"$f":"VLOOKUP(B227,'LOC FINAL with new Themes'!A:M,10,0)","v":0},{"$f":"VLOOKUP(B227,'LOC FINAL with new Themes'!A:M,11,0)","v":0},{"$f":"VLOOKUP(B227,'LOC FINAL with new Themes'!A:M,12,0)","v":0},{"$f":"VLOOKUP(B227,'LOC FINAL with new Themes'!A:M,13,0)","v":0}]
["TIGER (Roads/Rail)","TIGER (Roads/Rail)",null,{"$f":"IF(C228=0,B228,C228)","v":"TIGER (Roads/Rail)"},"Transportation ","DOC-Census","Randy Fusaro","randy.j.fusaro@census.gov",null,{"$f":"VLOOKUP(B228,'LOC FINAL with new Themes'!A:M,7,0)","v":0},{"$f":"VLOOKUP(B228,'LOC FINAL with new Themes'!A:M,8,0)","v":0},{"$f":"VLOOKUP(B228,'LOC FINAL with new Themes'!A:M,9,0)","v":0},{"$f":"VLOOKUP(B228,'LOC FINAL with new Themes'!A:M,10,0)","v":0},{"$f":"VLOOKUP(B228,'LOC FINAL with new Themes'!A:M,11,0)","v":0},{"$f":"VLOOKUP(B228,'LOC FINAL with new Themes'!A:M,12,0)","v":0},{"$f":"VLOOKUP(B228,'LOC FINAL with new Themes'!A:M,13,0)","v":0}]
[null,"Traffic Analysis Zone (Census 2000)","Traffic Analysis Zone (Census 2000)",{"$f":"IF(C229=0,B229,C229)","v":"Traffic Analysis Zone (Census 2000)"},"Transportation ","DOC-Census","Jennifer Holland","Jennifer.L.Holland@census.gov",null,{"$f":"VLOOKUP(B229,'LOC FINAL with new Themes'!A:M,7,0)","v":0},{"$f":"VLOOKUP(B229,'LOC FINAL with new Themes'!A:M,8,0)","v":0},{"$f":"VLOOKUP(B229,'LOC FINAL with new Themes'!A:M,9,0)","v":0},{"$f":"VLOOKUP(B229,'LOC FINAL with new Themes'!A:M,10,0)","v":0},{"$f":"VLOOKUP(B229,'LOC FINAL with new Themes'!A:M,11,0)","v":0},{"$f":"VLOOKUP(B229,'LOC FINAL with new Themes'!A:M,12,0)","v":0},{"$f":"VLOOKUP(B229,'LOC FINAL with new Themes'!A:M,13,0)","v":0}]
[null,null,null,{"$f":"SUBTOTAL(3,D215:D229)","v":15},"Transportation  Count"]
[null,null,"Pipelines",{"$f":"IF(C231=0,B231,C231)","v":"Pipelines"},"Utilities ","DOI-BOEM","Doug Vandegraft","Doug.Vandegraft@boem.gov"]
[null,null,"Platforms",{"$f":"IF(C232=0,B232,C232)","v":"Platforms"},"Utilities ","DOI-MMS","Doug Vandegraft","Doug.Vandegraft@boem.gov"]
[null,null,null,{"$f":"SUBTOTAL(3,D231:D232)","v":2},"Utilities  Count"]
[null,"Area Hydrography (2010 Census)","Area Hydrography (2010 Census)",{"$f":"IF(C234=0,B234,C234)","v":"Area Hydrography (2010 Census)"},"Water -- Inland","DOC-Census","Jennifer Holland","Jennifer.L.Holland@census.gov",null,{"$f":"VLOOKUP(B234,'LOC FINAL with new Themes'!A:M,7,0)","v":0},{"$f":"VLOOKUP(B234,'LOC FINAL with new Themes'!A:M,8,0)","v":0},{"$f":"VLOOKUP(B234,'LOC FINAL with new Themes'!A:M,9,0)","v":0},{"$f":"VLOOKUP(B234,'LOC FINAL with new Themes'!A:M,10,0)","v":0},{"$f":"VLOOKUP(B234,'LOC FINAL with new Themes'!A:M,11,0)","v":0},{"$f":"VLOOKUP(B234,'LOC FINAL with new Themes'!A:M,12,0)","v":0},{"$f":"VLOOKUP(B234,'LOC FINAL with new Themes'!A:M,13,0)","v":0}]
[null,"Linear Water Features","Linear Water Features","Linear Water Features","Water -- Inland","DOC-Census","Jennifer Holland","Jennifer.L.Holland@census.gov",null,{"$f":"VLOOKUP(B235,'LOC FINAL with new Themes'!A:M,7,0)","v":0},{"$f":"VLOOKUP(B235,'LOC FINAL with new Themes'!A:M,8,0)","v":0},{"$f":"VLOOKUP(B235,'LOC FINAL with new Themes'!A:M,9,0)","v":0},{"$f":"VLOOKUP(B235,'LOC FINAL with new Themes'!A:M,10,0)","v":0},{"$f":"VLOOKUP(B235,'LOC FINAL with new Themes'!A:M,11,0)","v":0},{"$f":"VLOOKUP(B235,'LOC FINAL with new Themes'!A:M,12,0)","v":0},{"$f":"VLOOKUP(B235,'LOC FINAL with new Themes'!A:M,13,0)","v":0}]
["National Hydrography Data Set","National Hydrography Dataset","National Hydrography Dataset - National Map","National Hydrography Dataset - National Map","Water -- Inland","DOI-USGS","Jeff Simley","jdsimley@usgs.gov",null,{"$f":"VLOOKUP(B236,'LOC FINAL with new Themes'!A:M,7,0)","v":0},{"$f":"VLOOKUP(B236,'LOC FINAL with new Themes'!A:M,8,0)","v":0},{"$f":"VLOOKUP(B236,'LOC FINAL with new Themes'!A:M,9,0)","v":0},{"$f":"VLOOKUP(B236,'LOC FINAL with new Themes'!A:M,10,0)","v":0},{"$f":"VLOOKUP(B236,'LOC FINAL with new Themes'!A:M,11,0)","v":0},{"$f":"VLOOKUP(B236,'LOC FINAL with new Themes'!A:M,12,0)","v":0},{"$f":"VLOOKUP(B236,'LOC FINAL with new Themes'!A:M,13,0)","v":0}]
["National Inventory of Dams (NID)","National Inventory of Dams (NID)","National Inventory of Dams (NID)","National Inventory of Dams (NID)","Water -- Inland","DOD-USACE","Rebecca Ragon","Rebecca.Ragon@usace.army.mil ",null,{"$f":"VLOOKUP(B237,'LOC FINAL with new Themes'!A:M,7,0)","v":"One single data set"},{"$f":"VLOOKUP(B237,'LOC FINAL with new Themes'!A:M,8,0)","v":"Yes"},{"$f":"VLOOKUP(B237,'LOC FINAL with new Themes'!A:M,9,0)","v":"Yes"},{"$f":"VLOOKUP(B237,'LOC FINAL with new Themes'!A:M,10,0)","v":"Usually every 2 years"},{"$f":"VLOOKUP(B237,'LOC FINAL with new Themes'!A:M,11,0)","v":"Because the NID is updated every 2 years, we do have archived databased datig back to 1994."},{"$f":"VLOOKUP(B237,'LOC FINAL with new Themes'!A:M,12,0)","v":"The official name is National Inventory of Dams (NID) but I have seen the database referenced as the National Dam Inventory"},{"$f":"VLOOKUP(B237,'LOC FINAL with new Themes'!A:M,13,0)","v":"S"}]
["National Levee Database (NLD)","National Levee Database (NLD)","National Levee Database (NLD)","National Levee Database (NLD)","Water -- Inland","DOD-USACE","Bryan Baker","Bryan.E.Baker@usace.army.mil",null,{"$f":"VLOOKUP(B238,'LOC FINAL with new Themes'!A:M,7,0)","v":0},{"$f":"VLOOKUP(B238,'LOC FINAL with new Themes'!A:M,8,0)","v":0},{"$f":"VLOOKUP(B238,'LOC FINAL with new Themes'!A:M,9,0)","v":0},{"$f":"VLOOKUP(B238,'LOC FINAL with new Themes'!A:M,10,0)","v":0},{"$f":"VLOOKUP(B238,'LOC FINAL with new Themes'!A:M,11,0)","v":0},{"$f":"VLOOKUP(B238,'LOC FINAL with new Themes'!A:M,12,0)","v":0},{"$f":"VLOOKUP(B238,'LOC FINAL with new Themes'!A:M,13,0)","v":0}]
[null,null,"National Water Information System (NWIS)- Stream Gage Network","National Water Information System (NWIS)- Stream Gage Locations","Water -- Inland","DOI-USGS"]
[null,null,"National Water Information System (NWIS)- Water Quality Monitoring Stations","National Water Information System (NWIS)- Water Quality Monitoring Stations Locations","Water -- Inland","DOI-USGS"]
["National Wetlands Inventory (NWI) ","National Wetlands Inventory (NWI) ","National Wetlands Inventory (NWI) ","National Wetlands Inventory (NWI) ","Water -- Inland","DOI-FWS","Tom Dahl  ","tom_dahl@fws.gov\n",null,{"$f":"VLOOKUP(B241,'LOC FINAL with new Themes'!A:M,7,0)","v":0},{"$f":"VLOOKUP(B241,'LOC FINAL with new Themes'!A:M,8,0)","v":0},{"$f":"VLOOKUP(B241,'LOC FINAL with new Themes'!A:M,9,0)","v":0},{"$f":"VLOOKUP(B241,'LOC FINAL with new Themes'!A:M,10,0)","v":0},{"$f":"VLOOKUP(B241,'LOC FINAL with new Themes'!A:M,11,0)","v":0},{"$f":"VLOOKUP(B241,'LOC FINAL with new Themes'!A:M,12,0)","v":0},{"$f":"VLOOKUP(B241,'LOC FINAL with new Themes'!A:M,13,0)","v":0}]
[null,"Topological Faces-Area Hydrography Relationship File","Topological Faces-Area Hydrography Relationship File","Topological Faces-Area Hydrography Relationship File","Water -- Inland","DOC-Census","Jennifer Holland","Jennifer.L.Holland@census.gov",null,{"$f":"VLOOKUP(B242,'LOC FINAL with new Themes'!A:M,7,0)","v":0},{"$f":"VLOOKUP(B242,'LOC FINAL with new Themes'!A:M,8,0)","v":0},{"$f":"VLOOKUP(B242,'LOC FINAL with new Themes'!A:M,9,0)","v":0},{"$f":"VLOOKUP(B242,'LOC FINAL with new Themes'!A:M,10,0)","v":0},{"$f":"VLOOKUP(B242,'LOC FINAL with new Themes'!A:M,11,0)","v":0},{"$f":"VLOOKUP(B242,'LOC FINAL with new Themes'!A:M,12,0)","v":0},{"$f":"VLOOKUP(B242,'LOC FINAL with new Themes'!A:M,13,0)","v":0}]
["Watershed Boundary Data Set (WBD)  ","Watershed Boundary Dataset (WBD)  ","Watershed Boundary Dataset (WBD)  ","Watershed Boundary Dataset (WBD)  ","Water -- Inland","DOI-USGS","Karen Hanson","khanson@usgs.gov",null,{"$f":"VLOOKUP(B243,'LOC FINAL with new Themes'!A:M,7,0)","v":"one set with nested hierarchy of six different levels within it (regions, subdivided into four, six and twelve digits), POC and data manager; continually updated; co-managed with NRCS and they archive it; USGS in Denver will serve it; All transactions are archived in versions in the database as they happen. Data from any moment in time can be captured with a simple query. The database is replicated daily to Rolla, MO servers. The database is stored on a SAN with three tier redundancy.All changes to the database are stored on separate disks and once they reach a certain size, they are copied over to a server to be written to tape. Weekly, the entire database (NHD, with WBD) is written to tape.Monthly, the tapes are taken off site for storage."},{"$f":"VLOOKUP(B243,'LOC FINAL with new Themes'!A:M,8,0)","v":0},{"$f":"VLOOKUP(B243,'LOC FINAL with new Themes'!A:M,9,0)","v":0},{"$f":"VLOOKUP(B243,'LOC FINAL with new Themes'!A:M,10,0)","v":0},{"$f":"VLOOKUP(B243,'LOC FINAL with new Themes'!A:M,11,0)","v":0},{"$f":"VLOOKUP(B243,'LOC FINAL with new Themes'!A:M,12,0)","v":0},{"$f":"VLOOKUP(B243,'LOC FINAL with new Themes'!A:M,13,0)","v":"S"}]
[null,null,null,{"$f":"SUBTOTAL(3,D234:D243)","v":10},"Water -- Inland Count"]
[null,null,"Coastal Change Analysis Program (C-CAP) Land Cover and Land Change Imagery",{"$f":"IF(C245=0,B245,C245)","v":"Coastal Change Analysis Program (C-CAP) Land Cover and Land Change Imagery"},"Water -- Oceans and Coasts ","DOC-NOAA","Nate Herold","nate.herold@noaa.gov"]
["Continental Shelf Boundary Data","Continental Shelf Boundary Data","Continental Shelf Boundary Data","Continental Shelf Boundary Data","Water -- Oceans and Coasts ","DOI-BOEM","Doug Vandegraft","Doug.Vandegraft@boem.gov",null,{"$f":"VLOOKUP(B246,'LOC FINAL with new Themes'!A:M,7,0)","v":"undeliverable email- neeed to identify new contact"},{"$f":"VLOOKUP(B246,'LOC FINAL with new Themes'!A:M,8,0)","v":0},{"$f":"VLOOKUP(B246,'LOC FINAL with new Themes'!A:M,9,0)","v":0},{"$f":"VLOOKUP(B246,'LOC FINAL with new Themes'!A:M,10,0)","v":0},{"$f":"VLOOKUP(B246,'LOC FINAL with new Themes'!A:M,11,0)","v":0},{"$f":"VLOOKUP(B246,'LOC FINAL with new Themes'!A:M,12,0)","v":0},{"$f":"VLOOKUP(B246,'LOC FINAL with new Themes'!A:M,13,0)","v":0}]
[null,null,"National Data Buoy Center (NDBC) Recent and Historical Data","National Data Buoy Center (NDBC) Recent and Historical Data","Water -- Oceans and Coasts ","DOC-NOAA","Anne Ball","anne.ball@noaa.gov","843-740-1229"]
[null,null,"NOAA National Shoreline","NOAA National Shoreline","Water -- Oceans and Coasts ","DOC-NOAA","Doug Graham","Doug.Graham@noaa.gov"]
["NOAA Nautical Charts","NOAA Nautical Charts","NOAA's Nautical Chart Products","NOAA's Nautical Chart Products","Water -- Oceans and Coasts ","DOC-NOAA","Meredith Westington","meredith.westington@noaa.gov",null,{"$f":"VLOOKUP(B249,'LOC FINAL with new Themes'!A:M,7,0)","v":0},{"$f":"VLOOKUP(B249,'LOC FINAL with new Themes'!A:M,8,0)","v":0},{"$f":"VLOOKUP(B249,'LOC FINAL with new Themes'!A:M,9,0)","v":0},{"$f":"VLOOKUP(B249,'LOC FINAL with new Themes'!A:M,10,0)","v":0},{"$f":"VLOOKUP(B249,'LOC FINAL with new Themes'!A:M,11,0)","v":0},{"$f":"VLOOKUP(B249,'LOC FINAL with new Themes'!A:M,12,0)","v":0},{"$f":"VLOOKUP(B249,'LOC FINAL with new Themes'!A:M,13,0)","v":0}]
[null,null,"Non-Projected Boundaries","Non-Projected Boundaries","Water -- Oceans and Coasts ","DOI-BOEM","Doug Vandegraft","Doug.Vandegraft@boem.gov"]
[null,null,"Projected Boundaries","Projected Boundaries","Water -- Oceans and Coasts ","DOI-BOEM","Doug Vandegraft","Doug.Vandegraft@boem.gov"]
[null,null,"U.S. Marine Protected Areas Boundaries","U.S. Marine Protected Areas Boundaries","Water -- Oceans and Coasts ","DOC-NOAA","Anne Ball","anne.ball@noaa.gov","843-740-1229"]
[null,null,"U.S. Maritime Zones/Boundaries","U.S. Maritime Zones/Boundaries","Water -- Oceans and Coasts ","DOC-NOAA","Meredith Westington","meredith.westington@noaa.gov"]
[null,null,null,{"$f":"SUBTOTAL(3,D245:D253)","v":9},"Water -- Oceans and Coasts  Count"]
[null,null,null,{"$f":"SUBTOTAL(3,D2:D253)","v":234},"Grand Count"]

{"sheet":"5-7-2012","index":18,"n_rows":258,"n_cols":16,"rows_kept":258,"cut":false,"hidden":true,"merged":[]}
["ORIGINAL (beginning of 2011)","LOC FINAL (October 2011)","NGDA List (October 2011)","Dataset Name","Theme","Agency","Dataset Manager","Email","Phone Number","Q1 How many data set(s) do you have? It is a single set or multiple sets? ","Q2 Are you a data set manager?","Q3 Are you the POC for transferring the data set and/or for information about the data set?","Q4 How often is the data set updated?","Q5 Is there an archive/backup of the data set or do you maintain an archived copy of it? If yes, how far back do you maintain a copy? Is it easily accessible?","Q6 Does the data set go by a different name or is it referred to internally by another descriptive name?","M\nP\nS"]
[null,null,"Critical Habitat ",{"$f":"IF(C2=0,B2,C2)","v":"Critical Habitat "},"Biota","DOI-FWS","Mike Horton","michael_horton@fws.gov","703-358-2371"]
[null,null,"Current Range for listed species ","Current Range for listed species ","Biota","DOI-FWS","Mike Horton","michael_horton@fws.gov","703-358-2371"]
["ECOMAP Data Sets (Ecological Subregions: Sections and Subsections for the Conterminous United States ) ","ECOMAP Datasets (Ecological Subregions: Sections and Subsections for the Conterminous United States ) ","ECOMAP Datasets (Ecological Subregions: Sections and Subsections for the Conterminous United States ) ","ECOMAP Datasets (Ecological Subregions: Sections and Subsections for the Conterminous United States ) ","Biota","USDA-FS","David T. Cleland","dcleland@fs.fed.us",null,{"$f":"VLOOKUP(B4,'LOC FINAL with new Themes'!A:M,7,0)","v":"One, single set"},{"$f":"VLOOKUP(B4,'LOC FINAL with new Themes'!A:M,8,0)","v":"Yes"},{"$f":"VLOOKUP(B4,'LOC FINAL with new Themes'!A:M,9,0)","v":"Yes"},{"$f":"VLOOKUP(B4,'LOC FINAL with new Themes'!A:M,10,0)","v":"Maps are updated on a 10-year cycle"},{"$f":"VLOOKUP(B4,'LOC FINAL with new Themes'!A:M,11,0)","v":"The data is housed at and served by the Forest Service geodata portal, and is easily accessible.  The web address is: http://fsgeodata.fs.fed.us/other_resources/ecosubregions.html "},{"$f":"VLOOKUP(B4,'LOC FINAL with new Themes'!A:M,12,0)","v":"?   Internally, the data is named ECOMAP or the National Hierarchy of Ecological Units. "},{"$f":"VLOOKUP(B4,'LOC FINAL with new Themes'!A:M,13,0)","v":"S"}]
[null,null,"Endangered Species (Threatened and Endangered Species System)","Endangered Species (Threatened and Endangered Species System)","Biota","DOI-FWS","Mike Horton","michael_horton@fws.gov","703-358-2371"]
["Env Sens Index Maps - classified shoreline","Env Sens Index Maps - classified shoreline","Environmental Sensitivity Index (ESI) Data and Maps","Environmental Sensitivity Index (ESI) Data and Maps","Biota","DOC-NOAA","Jill Petersen","jill.petersen@noaa.gov",null,{"$f":"VLOOKUP(B6,'LOC FINAL with new Themes'!A:M,7,0)","v":"There are approximately 70 different atlases. There are a few that are still not available in a GIS format, (approx 7 of the approx 70!) - these are available as the hard copy product and as PDFs (scanned). The remaining atlases are available in multiple GIS formats - Arc Export files, Geodatabase with an ArcMap map document complete with all relates established and properly symbolized, Shape files with an ArcView 3.x project, a free ESI viewer that allows viewing, queries and printing (in house mapping program and filemaker pro) as well as PDF format and the hard copy product. These can be downloaded from http://response.restoration.noaa.gov/esi_download This page is in progress, but should be complete fairly quickly.\n\n"},{"$f":"VLOOKUP(B6,'LOC FINAL with new Themes'!A:M,8,0)","v":"Yes"},{"$f":"VLOOKUP(B6,'LOC FINAL with new Themes'!A:M,9,0)","v":"Yes "},{"$f":"VLOOKUP(B6,'LOC FINAL with new Themes'!A:M,10,0)","v":"- High resolution products have no defined update schedule.  TBD by geog/project."},{"$f":"VLOOKUP(B6,'LOC FINAL with new Themes'!A:M,11,0)","v":"Yes and no. We have archives of all the digital data as well as all the PDFs (scanned or produced with the digital data map comps). Many of the hard copy atlases from the first round of ESI maps were sent to the Library of Commerce. Others I have kept, but no very organized situation. However, we have all of the historic PDFs which are an exact duplicate of the hard copy atlas, so that is something. Historic data is going to be served from the above link as well. That will be added as the current data sets are completed."},{"$f":"VLOOKUP(B6,'LOC FINAL with new Themes'!A:M,12,0)","v":"ESI is the common abbreviation for these maps. Other than that, Environmental Sensitivity Index Maps, Shoreline Sensitivity maps, Environmental Sensitivity maps..... These maps have the classified shoreline, as well as summaries of biological and human use resource particularly sensitive to oiling. "},{"$f":"VLOOKUP(B6,'LOC FINAL with new Themes'!A:M,13,0)","v":"M "}]
["GAP Program Dataset","GAP Program Dataset","GAP Program Dataset","GAP Program Dataset","Biota","DOI-USGS","Kevin Gergely","gergely@usgs.gov",null,{"$f":"VLOOKUP(B7,'LOC FINAL with new Themes'!A:M,7,0)","v":"POC; multiple data sets in single location, building three fundamental data layers, two are national (protected areas, land cover dataset); backup; six months, annually)"},{"$f":"VLOOKUP(B7,'LOC FINAL with new Themes'!A:M,8,0)","v":0},{"$f":"VLOOKUP(B7,'LOC FINAL with new Themes'!A:M,9,0)","v":0},{"$f":"VLOOKUP(B7,'LOC FINAL with new Themes'!A:M,10,0)","v":0},{"$f":"VLOOKUP(B7,'LOC FINAL with new Themes'!A:M,11,0)","v":0},{"$f":"VLOOKUP(B7,'LOC FINAL with new Themes'!A:M,12,0)","v":0},{"$f":"VLOOKUP(B7,'LOC FINAL with new Themes'!A:M,13,0)","v":"P"}]
["National Standardized Ecosystems Dataset","National Standardized Ecosystems Dataset","National Standardized Ecosystems Dataset","National Standardized Ecosystems Dataset","Biota","DOI-USGS","Roger Sayre","rsayre@usgs.gov",null,{"$f":"VLOOKUP(B8,'LOC FINAL with new Themes'!A:M,7,0)","v":0},{"$f":"VLOOKUP(B8,'LOC FINAL with new Themes'!A:M,8,0)","v":0},{"$f":"VLOOKUP(B8,'LOC FINAL with new Themes'!A:M,9,0)","v":0},{"$f":"VLOOKUP(B8,'LOC FINAL with new Themes'!A:M,10,0)","v":0},{"$f":"VLOOKUP(B8,'LOC FINAL with new Themes'!A:M,11,0)","v":0},{"$f":"VLOOKUP(B8,'LOC FINAL with new Themes'!A:M,12,0)","v":0},{"$f":"VLOOKUP(B8,'LOC FINAL with new Themes'!A:M,13,0)","v":0}]
[null,null,"Recovery Range for listed species ","Recovery Range for listed species ","Biota","DOI-FWS","Mike Horton","michael_horton@fws.gov","703-358-2371"]
[null,null,"Section 7 Range for listed species ","Section 7 Range for listed species ","Biota","DOI-FWS","Mike Horton","michael_horton@fws.gov","703-358-2371"]
["Biomes, Ecoregions","Biomes, Ecoregions",null,"Biomes, Ecoregions","Biota ","DOI-USGS","Dan Phillips ","dphillips@usgs.gov",null,{"$f":"VLOOKUP(B11,'LOC FINAL with new Themes'!A:M,7,0)","v":0},{"$f":"VLOOKUP(B11,'LOC FINAL with new Themes'!A:M,8,0)","v":0},{"$f":"VLOOKUP(B11,'LOC FINAL with new Themes'!A:M,9,0)","v":0},{"$f":"VLOOKUP(B11,'LOC FINAL with new Themes'!A:M,10,0)","v":0},{"$f":"VLOOKUP(B11,'LOC FINAL with new Themes'!A:M,11,0)","v":0},{"$f":"VLOOKUP(B11,'LOC FINAL with new Themes'!A:M,12,0)","v":0},{"$f":"VLOOKUP(B11,'LOC FINAL with new Themes'!A:M,13,0)","v":0}]
["Ecological Services","Ecological Services",null,"Ecological Services","Biota ","DOI-USGS","Dan Phillips ","dphillips@usgs.gov",null,{"$f":"VLOOKUP(B12,'LOC FINAL with new Themes'!A:M,7,0)","v":0},{"$f":"VLOOKUP(B12,'LOC FINAL with new Themes'!A:M,8,0)","v":0},{"$f":"VLOOKUP(B12,'LOC FINAL with new Themes'!A:M,9,0)","v":0},{"$f":"VLOOKUP(B12,'LOC FINAL with new Themes'!A:M,10,0)","v":0},{"$f":"VLOOKUP(B12,'LOC FINAL with new Themes'!A:M,11,0)","v":0},{"$f":"VLOOKUP(B12,'LOC FINAL with new Themes'!A:M,12,0)","v":0},{"$f":"VLOOKUP(B12,'LOC FINAL with new Themes'!A:M,13,0)","v":0}]
["Habitats","Habitats",null,"Habitats","Biota ","DOI-USGS","Dan Phillips ","dphillips@usgs.gov",null,{"$f":"VLOOKUP(B13,'LOC FINAL with new Themes'!A:M,7,0)","v":"see protected areas and land cover set; vertebrae species of US being developed (not complete for all species they want to include in it."},{"$f":"VLOOKUP(B13,'LOC FINAL with new Themes'!A:M,8,0)","v":0},{"$f":"VLOOKUP(B13,'LOC FINAL with new Themes'!A:M,9,0)","v":0},{"$f":"VLOOKUP(B13,'LOC FINAL with new Themes'!A:M,10,0)","v":0},{"$f":"VLOOKUP(B13,'LOC FINAL with new Themes'!A:M,11,0)","v":0},{"$f":"VLOOKUP(B13,'LOC FINAL with new Themes'!A:M,12,0)","v":0},{"$f":"VLOOKUP(B13,'LOC FINAL with new Themes'!A:M,13,0)","v":"M"}]
["Invasive Species","Invasive Species",null,"Invasive Species","Biota ","DOI-USGS","Dan Phillips ","dphillips@usgs.gov",null,{"$f":"VLOOKUP(B14,'LOC FINAL with new Themes'!A:M,7,0)","v":"There are hundreds of datasets that are produced and maintained by the GAP program. Dan is not the data set manager, but I work with the people that maintain and update the datasets and maintains metadata.The data are updated at different intervals, especially now that they have moved more to a regional and national based approach. GAPS data sets presumably archived since 1990s."},{"$f":"VLOOKUP(B14,'LOC FINAL with new Themes'!A:M,8,0)","v":0},{"$f":"VLOOKUP(B14,'LOC FINAL with new Themes'!A:M,9,0)","v":0},{"$f":"VLOOKUP(B14,'LOC FINAL with new Themes'!A:M,10,0)","v":0},{"$f":"VLOOKUP(B14,'LOC FINAL with new Themes'!A:M,11,0)","v":0},{"$f":"VLOOKUP(B14,'LOC FINAL with new Themes'!A:M,12,0)","v":0},{"$f":"VLOOKUP(B14,'LOC FINAL with new Themes'!A:M,13,0)","v":"M"}]
["Species Distribution(amphibians, birds, reptiles, mammals, fishes, plants, etc)","Species Distribution (amphibians, birds, reptiles, mammals, fishes, plants, etc)",null,"Species Distribution (amphibians, birds, reptiles, mammals, fishes, plants, etc)","Biota ","DOI-USGS","Dan Phillips ","dphillips@usgs.gov",null,{"$f":"VLOOKUP(B15,'LOC FINAL with new Themes'!A:M,7,0)","v":"There are hundreds of datasets that are produced and maintained by the GAP program. Dan is not the data set manager, but I work with the people that maintain and update the datasets and maintains metadata. The data are updated at different intervals, especially now that they have moved more to a regional and national based approach. GAPS data sets presumably archived since 1990s."},{"$f":"VLOOKUP(B15,'LOC FINAL with new Themes'!A:M,8,0)","v":0},{"$f":"VLOOKUP(B15,'LOC FINAL with new Themes'!A:M,9,0)","v":0},{"$f":"VLOOKUP(B15,'LOC FINAL with new Themes'!A:M,10,0)","v":0},{"$f":"VLOOKUP(B15,'LOC FINAL with new Themes'!A:M,11,0)","v":0},{"$f":"VLOOKUP(B15,'LOC FINAL with new Themes'!A:M,12,0)","v":0},{"$f":"VLOOKUP(B15,'LOC FINAL with new Themes'!A:M,13,0)","v":"M"}]
[null,null,null,{"$f":"SUBTOTAL(3,D2:D15)","v":14},"Biota Count"]
["General Land Office","General Land Office","General Land Office",{"$f":"IF(C17=0,B17,C17)","v":"General Land Office"},"Cadastre","DOI-BLM","Juan Palma","juan_palma@blm.gov",null,{"$f":"VLOOKUP(B17,'LOC FINAL with new Themes'!A:M,7,0)","v":0},{"$f":"VLOOKUP(B17,'LOC FINAL with new Themes'!A:M,8,0)","v":0},{"$f":"VLOOKUP(B17,'LOC FINAL with new Themes'!A:M,9,0)","v":0},{"$f":"VLOOKUP(B17,'LOC FINAL with new Themes'!A:M,10,0)","v":0},{"$f":"VLOOKUP(B17,'LOC FINAL with new Themes'!A:M,11,0)","v":0},{"$f":"VLOOKUP(B17,'LOC FINAL with new Themes'!A:M,12,0)","v":0},{"$f":"VLOOKUP(B17,'LOC FINAL with new Themes'!A:M,13,0)","v":0}]
["Geographic Coordinate Data Base (GCDB)","Geographic Coordinate Data Base (GCDB)",null,"Geographic Coordinate Data Base (GCDB)","Cadastre","DOI-BLM","Don Buhler","don_buhler@blm.gov",null,{"$f":"VLOOKUP(B18,'LOC FINAL with new Themes'!A:M,7,0)","v":"every agency has its own database; multiple data sets; standard being advanced and put into practice; federal interest is managed with BLM; state and local are authoritative sets for other lands; "},{"$f":"VLOOKUP(B18,'LOC FINAL with new Themes'!A:M,8,0)","v":0},{"$f":"VLOOKUP(B18,'LOC FINAL with new Themes'!A:M,9,0)","v":0},{"$f":"VLOOKUP(B18,'LOC FINAL with new Themes'!A:M,10,0)","v":0},{"$f":"VLOOKUP(B18,'LOC FINAL with new Themes'!A:M,11,0)","v":0},{"$f":"VLOOKUP(B18,'LOC FINAL with new Themes'!A:M,12,0)","v":0},{"$f":"VLOOKUP(B18,'LOC FINAL with new Themes'!A:M,13,0)","v":"M "}]
["LR 2000 - Master Title Plats ","LR 2000 - Master Title Plats ","LR 2000 - Attribute Information","LR 2000 - Attribute Information","Cadastre","DOI-BLM","Jeff Holdren","jeff_holdren@blm.gov",null,{"$f":"VLOOKUP(B19,'LOC FINAL with new Themes'!A:M,7,0)","v":"listing of sales, rents, agricultural disposal and rights of way cases, group of data sets in one system; Kim Burns, division chief; not archived, there is a backup; Denver office handles"},{"$f":"VLOOKUP(B19,'LOC FINAL with new Themes'!A:M,8,0)","v":0},{"$f":"VLOOKUP(B19,'LOC FINAL with new Themes'!A:M,9,0)","v":0},{"$f":"VLOOKUP(B19,'LOC FINAL with new Themes'!A:M,10,0)","v":0},{"$f":"VLOOKUP(B19,'LOC FINAL with new Themes'!A:M,11,0)","v":0},{"$f":"VLOOKUP(B19,'LOC FINAL with new Themes'!A:M,12,0)","v":0},{"$f":"VLOOKUP(B19,'LOC FINAL with new Themes'!A:M,13,0)","v":"P"}]
["Manual of Surveying Instructions, Data Standards","Manual of Surveying Instructions, Data Standards",null,"Manual of Surveying Instructions, Data Standards","Cadastre","DOI-BLM","Don Buhler","don_buhler@blm.gov",null,{"$f":"VLOOKUP(B20,'LOC FINAL with new Themes'!A:M,7,0)","v":0},{"$f":"VLOOKUP(B20,'LOC FINAL with new Themes'!A:M,8,0)","v":0},{"$f":"VLOOKUP(B20,'LOC FINAL with new Themes'!A:M,9,0)","v":0},{"$f":"VLOOKUP(B20,'LOC FINAL with new Themes'!A:M,10,0)","v":0},{"$f":"VLOOKUP(B20,'LOC FINAL with new Themes'!A:M,11,0)","v":0},{"$f":"VLOOKUP(B20,'LOC FINAL with new Themes'!A:M,12,0)","v":0},{"$f":"VLOOKUP(B20,'LOC FINAL with new Themes'!A:M,13,0)","v":0}]
["Mineral Estate - Fluids","Mineral Estate - Fluids",null,"Mineral Estate - Fluids","Cadastre","DOI-BLM","Tim Spisak ","tim_spisak@blm.gov",null,{"$f":"VLOOKUP(B21,'LOC FINAL with new Themes'!A:M,7,0)","v":"mineral leasess, mining claims, rights of way, gases (single data set); BLM-managed lands but managed all federal mineral estate (comprehensive for mineraal estate) some electronic and some not"},{"$f":"VLOOKUP(B21,'LOC FINAL with new Themes'!A:M,8,0)","v":0},{"$f":"VLOOKUP(B21,'LOC FINAL with new Themes'!A:M,9,0)","v":0},{"$f":"VLOOKUP(B21,'LOC FINAL with new Themes'!A:M,10,0)","v":0},{"$f":"VLOOKUP(B21,'LOC FINAL with new Themes'!A:M,11,0)","v":0},{"$f":"VLOOKUP(B21,'LOC FINAL with new Themes'!A:M,12,0)","v":0},{"$f":"VLOOKUP(B21,'LOC FINAL with new Themes'!A:M,13,0)","v":"P"}]
["Mineral Estate - Solids","Mineral Estate - Solids",null,"Mineral Estate - Solids","Cadastre","DOI-BLM","Mitchell Leverette","mitchell_leverette@blm.gov",null,{"$f":"VLOOKUP(B22,'LOC FINAL with new Themes'!A:M,7,0)","v":"mineral leasess, mining claims, rights of way, gases (single data set); BLM-managed lands but managed all federal mineral estate (comprehensive for mineral estate) some electronic and some not"},{"$f":"VLOOKUP(B22,'LOC FINAL with new Themes'!A:M,8,0)","v":0},{"$f":"VLOOKUP(B22,'LOC FINAL with new Themes'!A:M,9,0)","v":0},{"$f":"VLOOKUP(B22,'LOC FINAL with new Themes'!A:M,10,0)","v":0},{"$f":"VLOOKUP(B22,'LOC FINAL with new Themes'!A:M,11,0)","v":0},{"$f":"VLOOKUP(B22,'LOC FINAL with new Themes'!A:M,12,0)","v":0},{"$f":"VLOOKUP(B22,'LOC FINAL with new Themes'!A:M,13,0)","v":"P"}]
[null,null,"PADUS (Protected Areas Database of the US)","PADUS (Protected Areas Database of the US)","Cadastre","DOI-USGS"]
["Parcels","Parcels","Parcels","Parcels","Cadastre","DOI-BLM","Bob Ader","bob_ader@blm.gov",null,{"$f":"VLOOKUP(B24,'LOC FINAL with new Themes'!A:M,7,0)","v":"every agency has its own database; multiple data sets; standard being advanced and put into practice; federal interest is managed with BLM; state and local are authoritative sets for other lands; current effort of federal inventory "},{"$f":"VLOOKUP(B24,'LOC FINAL with new Themes'!A:M,8,0)","v":0},{"$f":"VLOOKUP(B24,'LOC FINAL with new Themes'!A:M,9,0)","v":0},{"$f":"VLOOKUP(B24,'LOC FINAL with new Themes'!A:M,10,0)","v":0},{"$f":"VLOOKUP(B24,'LOC FINAL with new Themes'!A:M,11,0)","v":0},{"$f":"VLOOKUP(B24,'LOC FINAL with new Themes'!A:M,12,0)","v":0},{"$f":"VLOOKUP(B24,'LOC FINAL with new Themes'!A:M,13,0)","v":"M "}]
[null,null,"Protractions","Protractions","Cadastre","DOI-BOEM","Doug Vandegraft","Doug.Vandegraft@boem.gov"]
["Surface Estate","Surface Estate",null,"Surface Estate","Cadastre","DOI-BLM","Kim Burns","kim_m_burns@blm.gov",null,{"$f":"VLOOKUP(B26,'LOC FINAL with new Themes'!A:M,7,0)","v":"lands administered by BLM; other agencies have own system; ownership of lands;  Tim Spisak, division chief; not archived, there is a backup; Denver office handles"},{"$f":"VLOOKUP(B26,'LOC FINAL with new Themes'!A:M,8,0)","v":0},{"$f":"VLOOKUP(B26,'LOC FINAL with new Themes'!A:M,9,0)","v":0},{"$f":"VLOOKUP(B26,'LOC FINAL with new Themes'!A:M,10,0)","v":0},{"$f":"VLOOKUP(B26,'LOC FINAL with new Themes'!A:M,11,0)","v":0},{"$f":"VLOOKUP(B26,'LOC FINAL with new Themes'!A:M,12,0)","v":0},{"$f":"VLOOKUP(B26,'LOC FINAL with new Themes'!A:M,13,0)","v":0}]
["U.S. Official Cadastral Survey Records","U.S. Official Cadastral Survey Records","U.S. Official Cadastral Survey Records","U.S. Official Cadastral Survey Records","Cadastre","DOI-BLM","Don Buhler","don_buhler@blm.gov",null,{"$f":"VLOOKUP(B27,'LOC FINAL with new Themes'!A:M,7,0)","v":"every agency has its own database; multiple data sets; standard being advanced and put into practice; federal interest is managed with BLM; state and local are authoritative sets for other lands; state offices are scanning these records (survey plats and field notes); CDI (conveyence cards)"},{"$f":"VLOOKUP(B27,'LOC FINAL with new Themes'!A:M,8,0)","v":0},{"$f":"VLOOKUP(B27,'LOC FINAL with new Themes'!A:M,9,0)","v":0},{"$f":"VLOOKUP(B27,'LOC FINAL with new Themes'!A:M,10,0)","v":0},{"$f":"VLOOKUP(B27,'LOC FINAL with new Themes'!A:M,11,0)","v":0},{"$f":"VLOOKUP(B27,'LOC FINAL with new Themes'!A:M,12,0)","v":0},{"$f":"VLOOKUP(B27,'LOC FINAL with new Themes'!A:M,13,0)","v":"M "}]
["U.S. Public Land Survey System","U.S. Public Land Survey System","U.S. Public Land Survey System","U.S. Public Land Survey System","Cadastre","DOI-BLM","Don Buhler","don_buhler@blm.gov",null,{"$f":"VLOOKUP(B28,'LOC FINAL with new Themes'!A:M,7,0)","v":"only federal agency that administers the PLSS; trying to get it to be logically one data set with different regions. (working copies for nine states in West); keep historical record in data base; schema 2 is the version to look at for archiving some time March 2012"},{"$f":"VLOOKUP(B28,'LOC FINAL with new Themes'!A:M,8,0)","v":0},{"$f":"VLOOKUP(B28,'LOC FINAL with new Themes'!A:M,9,0)","v":0},{"$f":"VLOOKUP(B28,'LOC FINAL with new Themes'!A:M,10,0)","v":0},{"$f":"VLOOKUP(B28,'LOC FINAL with new Themes'!A:M,11,0)","v":0},{"$f":"VLOOKUP(B28,'LOC FINAL with new Themes'!A:M,12,0)","v":0},{"$f":"VLOOKUP(B28,'LOC FINAL with new Themes'!A:M,13,0)","v":"P"}]
[null,null,null,"Coastal National Parks","Cadastre","DOI - NPS","Roger Johnson ","Roger_M_Johnson@nps.gov"]
[null,null,null,"Coastal National Wildlife Refuges","Cadastre","DOI - NPS","Sean Killen","Sean_Killen@fws.gov"]
[null,null,null,"Coastal Indian Lands","Cadastre","DOI - BIA","Richard Moore","Richard.Moore@bia.gov"]
[null,null,null,"Outer Continental Shelf Lease Blocks","Cadastre","DOI - BOEM","Doug Vandegraft","Doug.Vandegraft@boem.gov"]
[null,null,null,"BOEM Active Oil and Gas Leases","Cadastre","DOI - BOEM","Doug Vandegraft","Doug.Vandegraft@boem.gov"]
[null,null,null,{"$f":"SUBTOTAL(3,D17:D28)","v":12},"Cadastre Count"]
["Blended Sea Surface Temperature","Blended Sea Surface Temperature","Blended Sea Surface Temperature",{"$f":"IF(C35=0,B35,C35)","v":"Blended Sea Surface Temperature"},"Climate and Weather ","DOC-NOAA","Viva Banzon","Viva.Banzon@noaa.gov",null,{"$f":"VLOOKUP(B35,'LOC FINAL with new Themes'!A:M,7,0)","v":0},{"$f":"VLOOKUP(B35,'LOC FINAL with new Themes'!A:M,8,0)","v":0},{"$f":"VLOOKUP(B35,'LOC FINAL with new Themes'!A:M,9,0)","v":0},{"$f":"VLOOKUP(B35,'LOC FINAL with new Themes'!A:M,10,0)","v":0},{"$f":"VLOOKUP(B35,'LOC FINAL with new Themes'!A:M,11,0)","v":0},{"$f":"VLOOKUP(B35,'LOC FINAL with new Themes'!A:M,12,0)","v":0},{"$f":"VLOOKUP(B35,'LOC FINAL with new Themes'!A:M,13,0)","v":0}]
["Geostationary Operational Environmental Satellite (GOES) data (NCDC)","Geostationary Operational Environmental Satellite (GOES) data (NCDC)","Geostationary Operational Environmental Satellite (GOES) data (NCDC)","Geostationary Operational Environmental Satellite (GOES) data (NCDC)","Climate and Weather ","DOC-NOAA","Nancy Ritchey","Nancy.Ritchey@noaa.gov",null,{"$f":"VLOOKUP(B36,'LOC FINAL with new Themes'!A:M,7,0)","v":"Define 'data set'.  Each spacecraft continuously produces a data stream.  There are multiple sets and the total going back to the late 70s or early 80s numbers in the millions"},{"$f":"VLOOKUP(B36,'LOC FINAL with new Themes'!A:M,8,0)","v":"Yes"},{"$f":"VLOOKUP(B36,'LOC FINAL with new Themes'!A:M,9,0)","v":"Yes"},{"$f":"VLOOKUP(B36,'LOC FINAL with new Themes'!A:M,10,0)","v":"Continuously"},{"$f":"VLOOKUP(B36,'LOC FINAL with new Themes'!A:M,11,0)","v":"There are two active archive centers for these data; one here in Asheville, NC and one in Boulder, CO.  These data go back to the late 70s and all data are on line wither on disc or robotic tape storage"},{"$f":"VLOOKUP(B36,'LOC FINAL with new Themes'!A:M,12,0)","v":"Again, define your terms.  For examples see www.class.noaa.gov - Raw data are listed by satellite (GOES or POES) and then be instrument.  Geophysical products are listed by product name."},{"$f":"VLOOKUP(B36,'LOC FINAL with new Themes'!A:M,13,0)","v":0}]
[null,null,"MODIS-based Atmospheric Products","MODIS-based Atmospheric Products","Climate and Weather ","USDA -FS (Along with USGS)"]
[null,null,"National Doplar Radar Data (NEXRAD)","National Doplar Radar Data (NEXRAD)","Climate and Weather ","DOC-NOAA","Steve DelGreco","stephen.a.delgreco"]
[null,null,"NOAA National Weather Service GIS Data",{"$f":"IF(C39=0,B39,C39)","v":"NOAA National Weather Service GIS Data"},"Climate and Weather ","DOC-NOAA","Anne Ball","anne.ball@noaa.gov","843-740-1229"]
["Parameter-elevation Regressions on Independent Slopes Model (PRISM) Data Sets","Parameter-elevation Regressions on Independent Slopes Model (PRISM) Datasets","Parameter-elevation Regressions on Independent Slopes Model (PRISM) Datasets",{"$f":"IF(C40=0,B40,C40)","v":"Parameter-elevation Regressions on Independent Slopes Model (PRISM) Datasets"},"Climate and Weather ","USDA-NRCS","Jan Curtis","jan.curtis@por.usda.gov",null,{"$f":"VLOOKUP(B40,'LOC FINAL with new Themes'!A:M,7,0)","v":"info provided via http://www.prism.oregonstate.edu/ and \nhttp://www.nrcs.usda.gov/wps/portal/nrcs/main/?ss=16&navtype=SubNavigation&cid=null&navid=850130000000000&pnavid=850000000000000&position=SubNavigation&ttype=main&pname=USDA%2520NRCS%2520-%2520Natural%2520Resources%2520Conservation%2520Service\n"},{"$f":"VLOOKUP(B40,'LOC FINAL with new Themes'!A:M,8,0)","v":0},{"$f":"VLOOKUP(B40,'LOC FINAL with new Themes'!A:M,9,0)","v":0},{"$f":"VLOOKUP(B40,'LOC FINAL with new Themes'!A:M,10,0)","v":0},{"$f":"VLOOKUP(B40,'LOC FINAL with new Themes'!A:M,11,0)","v":0},{"$f":"VLOOKUP(B40,'LOC FINAL with new Themes'!A:M,12,0)","v":0},{"$f":"VLOOKUP(B40,'LOC FINAL with new Themes'!A:M,13,0)","v":"M"}]
["Polar Operational Environmental Satellite (POES) data (NCDC)","Polar Operational Environmental Satellite (POES) data","Polar Operational Environmental Satellite (POES) data",{"$f":"IF(C41=0,B41,C41)","v":"Polar Operational Environmental Satellite (POES) data"},"Climate and Weather ","DOC-NOAA","John Bates","john.j.bates@noaa.gov",null,{"$f":"VLOOKUP(B41,'LOC FINAL with new Themes'!A:M,7,0)","v":0},{"$f":"VLOOKUP(B41,'LOC FINAL with new Themes'!A:M,8,0)","v":0},{"$f":"VLOOKUP(B41,'LOC FINAL with new Themes'!A:M,9,0)","v":0},{"$f":"VLOOKUP(B41,'LOC FINAL with new Themes'!A:M,10,0)","v":0},{"$f":"VLOOKUP(B41,'LOC FINAL with new Themes'!A:M,11,0)","v":0},{"$f":"VLOOKUP(B41,'LOC FINAL with new Themes'!A:M,12,0)","v":0},{"$f":"VLOOKUP(B41,'LOC FINAL with new Themes'!A:M,13,0)","v":0}]
[null,null,null,{"$f":"SUBTOTAL(3,D35:D41)","v":7},"Climate and Weather  Count"]
[null,"5-digit ZIP Code Tabulation Area (Census 2000)","5-digit ZIP Code Tabulation Area (Census 2000)",{"$f":"IF(C43=0,B43,C43)","v":"5-digit ZIP Code Tabulation Area (Census 2000)"},"Cultural & Demographic Statistics ","DOC-Census","Jennifer Holland","Jennifer.L.Holland@census.gov",null,{"$f":"VLOOKUP(B43,'LOC FINAL with new Themes'!A:M,7,0)","v":0},{"$f":"VLOOKUP(B43,'LOC FINAL with new Themes'!A:M,8,0)","v":0},{"$f":"VLOOKUP(B43,'LOC FINAL with new Themes'!A:M,9,0)","v":0},{"$f":"VLOOKUP(B43,'LOC FINAL with new Themes'!A:M,10,0)","v":0},{"$f":"VLOOKUP(B43,'LOC FINAL with new Themes'!A:M,11,0)","v":0},{"$f":"VLOOKUP(B43,'LOC FINAL with new Themes'!A:M,12,0)","v":0},{"$f":"VLOOKUP(B43,'LOC FINAL with new Themes'!A:M,13,0)","v":0}]
["AIR, ANVSA, Hawaiian Homelands Boundaries","AIR, ANVSA, Hawaiian Homelands Boundaries",null,"AIR, ANVSA, Hawaiian Homelands Boundaries","Cultural & Demographic Statistics ","DOC-Census","Randy Fusaro","randy.j.fusaro@census.gov",null,{"$f":"VLOOKUP(B44,'LOC FINAL with new Themes'!A:M,7,0)","v":0},{"$f":"VLOOKUP(B44,'LOC FINAL with new Themes'!A:M,8,0)","v":0},{"$f":"VLOOKUP(B44,'LOC FINAL with new Themes'!A:M,9,0)","v":0},{"$f":"VLOOKUP(B44,'LOC FINAL with new Themes'!A:M,10,0)","v":0},{"$f":"VLOOKUP(B44,'LOC FINAL with new Themes'!A:M,11,0)","v":0},{"$f":"VLOOKUP(B44,'LOC FINAL with new Themes'!A:M,12,0)","v":0},{"$f":"VLOOKUP(B44,'LOC FINAL with new Themes'!A:M,13,0)","v":0}]
[null,"All Lines (2010 Census)","All Lines (2010 Census)","All Lines (2010 Census)","Cultural & Demographic Statistics ","DOC-Census","Jennifer Holland","Jennifer.L.Holland@census.gov",null,{"$f":"VLOOKUP(B45,'LOC FINAL with new Themes'!A:M,7,0)","v":0},{"$f":"VLOOKUP(B45,'LOC FINAL with new Themes'!A:M,8,0)","v":0},{"$f":"VLOOKUP(B45,'LOC FINAL with new Themes'!A:M,9,0)","v":0},{"$f":"VLOOKUP(B45,'LOC FINAL with new Themes'!A:M,10,0)","v":0},{"$f":"VLOOKUP(B45,'LOC FINAL with new Themes'!A:M,11,0)","v":0},{"$f":"VLOOKUP(B45,'LOC FINAL with new Themes'!A:M,12,0)","v":0},{"$f":"VLOOKUP(B45,'LOC FINAL with new Themes'!A:M,13,0)","v":0}]
[null,"ANSI codes for  metro/micropolitan areas","ANSI codes for  metro/micropolitan areas","ANSI codes for  metro/micropolitan areas","Cultural & Demographic Statistics ","DOC-Census","Jennifer Holland","Jennifer.L.Holland@census.gov",null,{"$f":"VLOOKUP(B46,'LOC FINAL with new Themes'!A:M,7,0)","v":0},{"$f":"VLOOKUP(B46,'LOC FINAL with new Themes'!A:M,8,0)","v":0},{"$f":"VLOOKUP(B46,'LOC FINAL with new Themes'!A:M,9,0)","v":0},{"$f":"VLOOKUP(B46,'LOC FINAL with new Themes'!A:M,10,0)","v":0},{"$f":"VLOOKUP(B46,'LOC FINAL with new Themes'!A:M,11,0)","v":0},{"$f":"VLOOKUP(B46,'LOC FINAL with new Themes'!A:M,12,0)","v":0},{"$f":"VLOOKUP(B46,'LOC FINAL with new Themes'!A:M,13,0)","v":0}]
[null,"ANSI codes for congressional districts","ANSI codes for congressional districts","ANSI codes for congressional districts","Cultural & Demographic Statistics ","DOC-Census","Jennifer Holland","Jennifer.L.Holland@census.gov",null,{"$f":"VLOOKUP(B47,'LOC FINAL with new Themes'!A:M,7,0)","v":0},{"$f":"VLOOKUP(B47,'LOC FINAL with new Themes'!A:M,8,0)","v":0},{"$f":"VLOOKUP(B47,'LOC FINAL with new Themes'!A:M,9,0)","v":0},{"$f":"VLOOKUP(B47,'LOC FINAL with new Themes'!A:M,10,0)","v":0},{"$f":"VLOOKUP(B47,'LOC FINAL with new Themes'!A:M,11,0)","v":0},{"$f":"VLOOKUP(B47,'LOC FINAL with new Themes'!A:M,12,0)","v":0},{"$f":"VLOOKUP(B47,'LOC FINAL with new Themes'!A:M,13,0)","v":0}]
[null,"ANSI codes for counties","ANSI codes for counties","ANSI codes for counties","Cultural & Demographic Statistics ","DOC-Census","Jennifer Holland","Jennifer.L.Holland@census.gov",null,{"$f":"VLOOKUP(B48,'LOC FINAL with new Themes'!A:M,7,0)","v":0},{"$f":"VLOOKUP(B48,'LOC FINAL with new Themes'!A:M,8,0)","v":0},{"$f":"VLOOKUP(B48,'LOC FINAL with new Themes'!A:M,9,0)","v":0},{"$f":"VLOOKUP(B48,'LOC FINAL with new Themes'!A:M,10,0)","v":0},{"$f":"VLOOKUP(B48,'LOC FINAL with new Themes'!A:M,11,0)","v":0},{"$f":"VLOOKUP(B48,'LOC FINAL with new Themes'!A:M,12,0)","v":0},{"$f":"VLOOKUP(B48,'LOC FINAL with new Themes'!A:M,13,0)","v":0}]
[null,"ANSI codes for states","ANSI codes for states","ANSI codes for states","Cultural & Demographic Statistics ","DOC-Census","Jennifer Holland","Jennifer.L.Holland@census.gov",null,{"$f":"VLOOKUP(B49,'LOC FINAL with new Themes'!A:M,7,0)","v":0},{"$f":"VLOOKUP(B49,'LOC FINAL with new Themes'!A:M,8,0)","v":0},{"$f":"VLOOKUP(B49,'LOC FINAL with new Themes'!A:M,9,0)","v":0},{"$f":"VLOOKUP(B49,'LOC FINAL with new Themes'!A:M,10,0)","v":0},{"$f":"VLOOKUP(B49,'LOC FINAL with new Themes'!A:M,11,0)","v":0},{"$f":"VLOOKUP(B49,'LOC FINAL with new Themes'!A:M,12,0)","v":0},{"$f":"VLOOKUP(B49,'LOC FINAL with new Themes'!A:M,13,0)","v":0}]
[null,"Block (2010 Census)","Block (2010 Census)","Block (2010 Census)","Cultural & Demographic Statistics ","DOC-Census","Jennifer Holland","Jennifer.L.Holland@census.gov",null,{"$f":"VLOOKUP(B50,'LOC FINAL with new Themes'!A:M,7,0)","v":0},{"$f":"VLOOKUP(B50,'LOC FINAL with new Themes'!A:M,8,0)","v":0},{"$f":"VLOOKUP(B50,'LOC FINAL with new Themes'!A:M,9,0)","v":0},{"$f":"VLOOKUP(B50,'LOC FINAL with new Themes'!A:M,10,0)","v":0},{"$f":"VLOOKUP(B50,'LOC FINAL with new Themes'!A:M,11,0)","v":0},{"$f":"VLOOKUP(B50,'LOC FINAL with new Themes'!A:M,12,0)","v":0},{"$f":"VLOOKUP(B50,'LOC FINAL with new Themes'!A:M,13,0)","v":0}]
[null,"Block (Census 2000)","Block (Census 2000)","Block (Census 2000)","Cultural & Demographic Statistics ","DOC-Census","Jennifer Holland","Jennifer.L.Holland@census.gov",null,{"$f":"VLOOKUP(B51,'LOC FINAL with new Themes'!A:M,7,0)","v":0},{"$f":"VLOOKUP(B51,'LOC FINAL with new Themes'!A:M,8,0)","v":0},{"$f":"VLOOKUP(B51,'LOC FINAL with new Themes'!A:M,9,0)","v":0},{"$f":"VLOOKUP(B51,'LOC FINAL with new Themes'!A:M,10,0)","v":0},{"$f":"VLOOKUP(B51,'LOC FINAL with new Themes'!A:M,11,0)","v":0},{"$f":"VLOOKUP(B51,'LOC FINAL with new Themes'!A:M,12,0)","v":0},{"$f":"VLOOKUP(B51,'LOC FINAL with new Themes'!A:M,13,0)","v":0}]
[null,"Block Group (Census 2000)","Block Group (Census 2000)","Block Group (Census 2000)","Cultural & Demographic Statistics ","DOC-Census","Jennifer Holland","Jennifer.L.Holland@census.gov",null,{"$f":"VLOOKUP(B52,'LOC FINAL with new Themes'!A:M,7,0)","v":0},{"$f":"VLOOKUP(B52,'LOC FINAL with new Themes'!A:M,8,0)","v":0},{"$f":"VLOOKUP(B52,'LOC FINAL with new Themes'!A:M,9,0)","v":0},{"$f":"VLOOKUP(B52,'LOC FINAL with new Themes'!A:M,10,0)","v":0},{"$f":"VLOOKUP(B52,'LOC FINAL with new Themes'!A:M,11,0)","v":0},{"$f":"VLOOKUP(B52,'LOC FINAL with new Themes'!A:M,12,0)","v":0},{"$f":"VLOOKUP(B52,'LOC FINAL with new Themes'!A:M,13,0)","v":0}]
[null,"Block Group (Census 2010)","Block Group (Census 2010)","Block Group (Census 2010)","Cultural & Demographic Statistics ","DOC-Census","Jennifer Holland","Jennifer.L.Holland@census.gov",null,{"$f":"VLOOKUP(B53,'LOC FINAL with new Themes'!A:M,7,0)","v":0},{"$f":"VLOOKUP(B53,'LOC FINAL with new Themes'!A:M,8,0)","v":0},{"$f":"VLOOKUP(B53,'LOC FINAL with new Themes'!A:M,9,0)","v":0},{"$f":"VLOOKUP(B53,'LOC FINAL with new Themes'!A:M,10,0)","v":0},{"$f":"VLOOKUP(B53,'LOC FINAL with new Themes'!A:M,11,0)","v":0},{"$f":"VLOOKUP(B53,'LOC FINAL with new Themes'!A:M,12,0)","v":0},{"$f":"VLOOKUP(B53,'LOC FINAL with new Themes'!A:M,13,0)","v":0}]
[null,"Census 2000 FIPS 55 Codes","Census 2000 FIPS 55 Codes","Census 2000 FIPS 55 Codes","Cultural & Demographic Statistics ","DOC-Census","Jennifer Holland","Jennifer.L.Holland@census.gov",null,{"$f":"VLOOKUP(B54,'LOC FINAL with new Themes'!A:M,7,0)","v":0},{"$f":"VLOOKUP(B54,'LOC FINAL with new Themes'!A:M,8,0)","v":0},{"$f":"VLOOKUP(B54,'LOC FINAL with new Themes'!A:M,9,0)","v":0},{"$f":"VLOOKUP(B54,'LOC FINAL with new Themes'!A:M,10,0)","v":0},{"$f":"VLOOKUP(B54,'LOC FINAL with new Themes'!A:M,11,0)","v":0},{"$f":"VLOOKUP(B54,'LOC FINAL with new Themes'!A:M,12,0)","v":0},{"$f":"VLOOKUP(B54,'LOC FINAL with new Themes'!A:M,13,0)","v":0}]
[null,"Census Tract (2010 Census)","Census Tract (2010 Census)","Census Tract (2010 Census)","Cultural & Demographic Statistics ","DOC-Census","Jennifer Holland","Jennifer.L.Holland@census.gov",null,{"$f":"VLOOKUP(B55,'LOC FINAL with new Themes'!A:M,7,0)","v":0},{"$f":"VLOOKUP(B55,'LOC FINAL with new Themes'!A:M,8,0)","v":0},{"$f":"VLOOKUP(B55,'LOC FINAL with new Themes'!A:M,9,0)","v":0},{"$f":"VLOOKUP(B55,'LOC FINAL with new Themes'!A:M,10,0)","v":0},{"$f":"VLOOKUP(B55,'LOC FINAL with new Themes'!A:M,11,0)","v":0},{"$f":"VLOOKUP(B55,'LOC FINAL with new Themes'!A:M,12,0)","v":0},{"$f":"VLOOKUP(B55,'LOC FINAL with new Themes'!A:M,13,0)","v":0}]
[null,"Census Tract (Census 2000)","Census Tract (Census 2000)","Census Tract (Census 2000)","Cultural & Demographic Statistics ","DOC-Census","Jennifer Holland","Jennifer.L.Holland@census.gov",null,{"$f":"VLOOKUP(B56,'LOC FINAL with new Themes'!A:M,7,0)","v":0},{"$f":"VLOOKUP(B56,'LOC FINAL with new Themes'!A:M,8,0)","v":0},{"$f":"VLOOKUP(B56,'LOC FINAL with new Themes'!A:M,9,0)","v":0},{"$f":"VLOOKUP(B56,'LOC FINAL with new Themes'!A:M,10,0)","v":0},{"$f":"VLOOKUP(B56,'LOC FINAL with new Themes'!A:M,11,0)","v":0},{"$f":"VLOOKUP(B56,'LOC FINAL with new Themes'!A:M,12,0)","v":0},{"$f":"VLOOKUP(B56,'LOC FINAL with new Themes'!A:M,13,0)","v":0}]
[null,"Combined Statistical Area (2010 Census)","Combined Statistical Area (2010 Census)","Combined Statistical Area (2010 Census)","Cultural & Demographic Statistics ","DOC-Census","Jennifer Holland","Jennifer.L.Holland@census.gov",null,{"$f":"VLOOKUP(B57,'LOC FINAL with new Themes'!A:M,7,0)","v":0},{"$f":"VLOOKUP(B57,'LOC FINAL with new Themes'!A:M,8,0)","v":0},{"$f":"VLOOKUP(B57,'LOC FINAL with new Themes'!A:M,9,0)","v":0},{"$f":"VLOOKUP(B57,'LOC FINAL with new Themes'!A:M,10,0)","v":0},{"$f":"VLOOKUP(B57,'LOC FINAL with new Themes'!A:M,11,0)","v":0},{"$f":"VLOOKUP(B57,'LOC FINAL with new Themes'!A:M,12,0)","v":0},{"$f":"VLOOKUP(B57,'LOC FINAL with new Themes'!A:M,13,0)","v":0}]
[null,"Congressional District Boundaries",null,"Congressional District Boundaries","Cultural & Demographic Statistics ","DOC-Census","Randy Fusaro","randy.j.fusaro@census.gov",null,{"$f":"VLOOKUP(B58,'LOC FINAL with new Themes'!A:M,7,0)","v":0},{"$f":"VLOOKUP(B58,'LOC FINAL with new Themes'!A:M,8,0)","v":0},{"$f":"VLOOKUP(B58,'LOC FINAL with new Themes'!A:M,9,0)","v":0},{"$f":"VLOOKUP(B58,'LOC FINAL with new Themes'!A:M,10,0)","v":0},{"$f":"VLOOKUP(B58,'LOC FINAL with new Themes'!A:M,11,0)","v":0},{"$f":"VLOOKUP(B58,'LOC FINAL with new Themes'!A:M,12,0)","v":0},{"$f":"VLOOKUP(B58,'LOC FINAL with new Themes'!A:M,13,0)","v":0}]
["County, place, MCD Boundaries","County, place, MCD Boundaries",null,"County, place, MCD Boundaries","Cultural & Demographic Statistics ","DOC-Census","Randy Fusaro","randy.j.fusaro@census.gov",null,{"$f":"VLOOKUP(B59,'LOC FINAL with new Themes'!A:M,7,0)","v":0},{"$f":"VLOOKUP(B59,'LOC FINAL with new Themes'!A:M,8,0)","v":0},{"$f":"VLOOKUP(B59,'LOC FINAL with new Themes'!A:M,9,0)","v":0},{"$f":"VLOOKUP(B59,'LOC FINAL with new Themes'!A:M,10,0)","v":0},{"$f":"VLOOKUP(B59,'LOC FINAL with new Themes'!A:M,11,0)","v":0},{"$f":"VLOOKUP(B59,'LOC FINAL with new Themes'!A:M,12,0)","v":0},{"$f":"VLOOKUP(B59,'LOC FINAL with new Themes'!A:M,13,0)","v":0}]
[null,"Elementary School District (2010 Census)","Elementary School District (2010 Census)","Elementary School District (2010 Census)","Cultural & Demographic Statistics ","DOC-Census","Jennifer Holland","Jennifer.L.Holland@census.gov",null,{"$f":"VLOOKUP(B60,'LOC FINAL with new Themes'!A:M,7,0)","v":0},{"$f":"VLOOKUP(B60,'LOC FINAL with new Themes'!A:M,8,0)","v":0},{"$f":"VLOOKUP(B60,'LOC FINAL with new Themes'!A:M,9,0)","v":0},{"$f":"VLOOKUP(B60,'LOC FINAL with new Themes'!A:M,10,0)","v":0},{"$f":"VLOOKUP(B60,'LOC FINAL with new Themes'!A:M,11,0)","v":0},{"$f":"VLOOKUP(B60,'LOC FINAL with new Themes'!A:M,12,0)","v":0},{"$f":"VLOOKUP(B60,'LOC FINAL with new Themes'!A:M,13,0)","v":0}]
[null,"Elementary School District (Census 2000)","Elementary School District (Census 2000)","Elementary School District (Census 2000)","Cultural & Demographic Statistics ","DOC-Census","Jennifer Holland","Jennifer.L.Holland@census.gov",null,{"$f":"VLOOKUP(B61,'LOC FINAL with new Themes'!A:M,7,0)","v":0},{"$f":"VLOOKUP(B61,'LOC FINAL with new Themes'!A:M,8,0)","v":0},{"$f":"VLOOKUP(B61,'LOC FINAL with new Themes'!A:M,9,0)","v":0},{"$f":"VLOOKUP(B61,'LOC FINAL with new Themes'!A:M,10,0)","v":0},{"$f":"VLOOKUP(B61,'LOC FINAL with new Themes'!A:M,11,0)","v":0},{"$f":"VLOOKUP(B61,'LOC FINAL with new Themes'!A:M,12,0)","v":0},{"$f":"VLOOKUP(B61,'LOC FINAL with new Themes'!A:M,13,0)","v":0}]
["FIPS/ANSI codes for states, counties, congressional districts & metro/micropolitan areas","FIPS/ANSI codes for states, counties, congressional districts & metro/micropolitan areas",null,"FIPS/ANSI codes for states, counties, congressional districts & metro/micropolitan areas","Cultural & Demographic Statistics ","DOC-Census","Randy Fusaro","randy.j.fusaro@census.gov",null,{"$f":"VLOOKUP(B62,'LOC FINAL with new Themes'!A:M,7,0)","v":0},{"$f":"VLOOKUP(B62,'LOC FINAL with new Themes'!A:M,8,0)","v":0},{"$f":"VLOOKUP(B62,'LOC FINAL with new Themes'!A:M,9,0)","v":0},{"$f":"VLOOKUP(B62,'LOC FINAL with new Themes'!A:M,10,0)","v":0},{"$f":"VLOOKUP(B62,'LOC FINAL with new Themes'!A:M,11,0)","v":0},{"$f":"VLOOKUP(B62,'LOC FINAL with new Themes'!A:M,12,0)","v":0},{"$f":"VLOOKUP(B62,'LOC FINAL with new Themes'!A:M,13,0)","v":0}]
["Metropolitan/micropolitan area boundaries","Metropolitan/micropolitan area boundaries",null,"Metropolitan/micropolitan area boundaries","Cultural & Demographic Statistics ","DOC-Census","Randy Fusaro","randy.j.fusaro@census.gov",null,{"$f":"VLOOKUP(B63,'LOC FINAL with new Themes'!A:M,7,0)","v":0},{"$f":"VLOOKUP(B63,'LOC FINAL with new Themes'!A:M,8,0)","v":0},{"$f":"VLOOKUP(B63,'LOC FINAL with new Themes'!A:M,9,0)","v":0},{"$f":"VLOOKUP(B63,'LOC FINAL with new Themes'!A:M,10,0)","v":0},{"$f":"VLOOKUP(B63,'LOC FINAL with new Themes'!A:M,11,0)","v":0},{"$f":"VLOOKUP(B63,'LOC FINAL with new Themes'!A:M,12,0)","v":0},{"$f":"VLOOKUP(B63,'LOC FINAL with new Themes'!A:M,13,0)","v":0}]
[null,"Metropolitan/micropolitan Statistical Area (2010 Census)","Metropolitan/micropolitan Statistical Area (2010 Census)","Metropolitan/micropolitan Statistical Area (2010 Census)","Cultural & Demographic Statistics ","DOC-Census","Jennifer Holland","Jennifer.L.Holland@census.gov",null,{"$f":"VLOOKUP(B64,'LOC FINAL with new Themes'!A:M,7,0)","v":0},{"$f":"VLOOKUP(B64,'LOC FINAL with new Themes'!A:M,8,0)","v":0},{"$f":"VLOOKUP(B64,'LOC FINAL with new Themes'!A:M,9,0)","v":0},{"$f":"VLOOKUP(B64,'LOC FINAL with new Themes'!A:M,10,0)","v":0},{"$f":"VLOOKUP(B64,'LOC FINAL with new Themes'!A:M,11,0)","v":0},{"$f":"VLOOKUP(B64,'LOC FINAL with new Themes'!A:M,12,0)","v":0},{"$f":"VLOOKUP(B64,'LOC FINAL with new Themes'!A:M,13,0)","v":0}]
["National Center for Health Statistics (Atlas of US Mortality)","National Center for Health Statistics (Atlas of US Mortality)",null,"National Center for Health Statistics (Atlas of US Mortality)","Cultural & Demographic Statistics ","HHS","Gary Anderson","gary.anderson@hhs.gov",null,{"$f":"VLOOKUP(B65,'LOC FINAL with new Themes'!A:M,7,0)","v":0},{"$f":"VLOOKUP(B65,'LOC FINAL with new Themes'!A:M,8,0)","v":0},{"$f":"VLOOKUP(B65,'LOC FINAL with new Themes'!A:M,9,0)","v":0},{"$f":"VLOOKUP(B65,'LOC FINAL with new Themes'!A:M,10,0)","v":0},{"$f":"VLOOKUP(B65,'LOC FINAL with new Themes'!A:M,11,0)","v":0},{"$f":"VLOOKUP(B65,'LOC FINAL with new Themes'!A:M,12,0)","v":0},{"$f":"VLOOKUP(B65,'LOC FINAL with new Themes'!A:M,13,0)","v":0}]
[null,null,"Oklahoma Tribal Joint Use Areas","Oklahoma Tribal Joint Use Areas","Cultural & Demographic Statistics ","DOC-Census"]
[null,null,"Oklahoma Tribal Statistical Areas","Oklahoma Tribal Statistical Areas","Cultural & Demographic Statistics ","DOC-Census"]
[null,"Public Use Microdata Area (Census 2000)","Public Use Microdata Area (Census 2000)","Public Use Microdata Area (Census 2000)","Cultural & Demographic Statistics ","DOC-Census","Jennifer Holland","Jennifer.L.Holland@census.gov",null,{"$f":"VLOOKUP(B68,'LOC FINAL with new Themes'!A:M,7,0)","v":0},{"$f":"VLOOKUP(B68,'LOC FINAL with new Themes'!A:M,8,0)","v":0},{"$f":"VLOOKUP(B68,'LOC FINAL with new Themes'!A:M,9,0)","v":0},{"$f":"VLOOKUP(B68,'LOC FINAL with new Themes'!A:M,10,0)","v":0},{"$f":"VLOOKUP(B68,'LOC FINAL with new Themes'!A:M,11,0)","v":0},{"$f":"VLOOKUP(B68,'LOC FINAL with new Themes'!A:M,12,0)","v":0},{"$f":"VLOOKUP(B68,'LOC FINAL with new Themes'!A:M,13,0)","v":0}]
["School District Boundaries","School District Boundaries",null,"School District Boundaries","Cultural & Demographic Statistics ","DOC-Census","Randy Fusaro","randy.j.fusaro@census.gov",null,{"$f":"VLOOKUP(B69,'LOC FINAL with new Themes'!A:M,7,0)","v":0},{"$f":"VLOOKUP(B69,'LOC FINAL with new Themes'!A:M,8,0)","v":0},{"$f":"VLOOKUP(B69,'LOC FINAL with new Themes'!A:M,9,0)","v":0},{"$f":"VLOOKUP(B69,'LOC FINAL with new Themes'!A:M,10,0)","v":0},{"$f":"VLOOKUP(B69,'LOC FINAL with new Themes'!A:M,11,0)","v":0},{"$f":"VLOOKUP(B69,'LOC FINAL with new Themes'!A:M,12,0)","v":0},{"$f":"VLOOKUP(B69,'LOC FINAL with new Themes'!A:M,13,0)","v":0}]
[null,"Secondary School District (2010 Census)","Secondary School District (2010 Census)","Secondary School District (2010 Census)","Cultural & Demographic Statistics ","DOC-Census","Jennifer Holland","Jennifer.L.Holland@census.gov",null,{"$f":"VLOOKUP(B70,'LOC FINAL with new Themes'!A:M,7,0)","v":0},{"$f":"VLOOKUP(B70,'LOC FINAL with new Themes'!A:M,8,0)","v":0},{"$f":"VLOOKUP(B70,'LOC FINAL with new Themes'!A:M,9,0)","v":0},{"$f":"VLOOKUP(B70,'LOC FINAL with new Themes'!A:M,10,0)","v":0},{"$f":"VLOOKUP(B70,'LOC FINAL with new Themes'!A:M,11,0)","v":0},{"$f":"VLOOKUP(B70,'LOC FINAL with new Themes'!A:M,12,0)","v":0},{"$f":"VLOOKUP(B70,'LOC FINAL with new Themes'!A:M,13,0)","v":0}]
[null,"Secondary School District (Census 2000)","Secondary School District (Census 2000)","Secondary School District (Census 2000)","Cultural & Demographic Statistics ","DOC-Census","Jennifer Holland","Jennifer.L.Holland@census.gov",null,{"$f":"VLOOKUP(B71,'LOC FINAL with new Themes'!A:M,7,0)","v":0},{"$f":"VLOOKUP(B71,'LOC FINAL with new Themes'!A:M,8,0)","v":0},{"$f":"VLOOKUP(B71,'LOC FINAL with new Themes'!A:M,9,0)","v":0},{"$f":"VLOOKUP(B71,'LOC FINAL with new Themes'!A:M,10,0)","v":0},{"$f":"VLOOKUP(B71,'LOC FINAL with new Themes'!A:M,11,0)","v":0},{"$f":"VLOOKUP(B71,'LOC FINAL with new Themes'!A:M,12,0)","v":0},{"$f":"VLOOKUP(B71,'LOC FINAL with new Themes'!A:M,13,0)","v":0}]
["State (+ Territories) Boundaries","State (+ Territories) Boundaries",null,"State (+ Territories) Boundaries","Cultural & Demographic Statistics ","DOC-Census","Randy Fusaro","randy.j.fusaro@census.gov",null,{"$f":"VLOOKUP(B72,'LOC FINAL with new Themes'!A:M,7,0)","v":0},{"$f":"VLOOKUP(B72,'LOC FINAL with new Themes'!A:M,8,0)","v":0},{"$f":"VLOOKUP(B72,'LOC FINAL with new Themes'!A:M,9,0)","v":0},{"$f":"VLOOKUP(B72,'LOC FINAL with new Themes'!A:M,10,0)","v":0},{"$f":"VLOOKUP(B72,'LOC FINAL with new Themes'!A:M,11,0)","v":0},{"$f":"VLOOKUP(B72,'LOC FINAL with new Themes'!A:M,12,0)","v":0},{"$f":"VLOOKUP(B72,'LOC FINAL with new Themes'!A:M,13,0)","v":0}]
["Statistical Area Boundaries (tracts, blocks, UAs, CDPs, etc)","Statistical Area Boundaries (tracts, blocks, UAs, CDPs, etc)",null,"Statistical Area Boundaries (tracts, blocks, UAs, CDPs, etc)","Cultural & Demographic Statistics ","DOC-Census","Randy Fusaro","randy.j.fusaro@census.gov",null,{"$f":"VLOOKUP(B73,'LOC FINAL with new Themes'!A:M,7,0)","v":0},{"$f":"VLOOKUP(B73,'LOC FINAL with new Themes'!A:M,8,0)","v":0},{"$f":"VLOOKUP(B73,'LOC FINAL with new Themes'!A:M,9,0)","v":0},{"$f":"VLOOKUP(B73,'LOC FINAL with new Themes'!A:M,10,0)","v":0},{"$f":"VLOOKUP(B73,'LOC FINAL with new Themes'!A:M,11,0)","v":0},{"$f":"VLOOKUP(B73,'LOC FINAL with new Themes'!A:M,12,0)","v":0},{"$f":"VLOOKUP(B73,'LOC FINAL with new Themes'!A:M,13,0)","v":0}]
[null,"Super Public Use Microdata Area (Census 2000)","Super Public Use Microdata Area (Census 2000)","Super Public Use Microdata Area (Census 2000)","Cultural & Demographic Statistics ","DOC-Census","Jennifer Holland","Jennifer.L.Holland@census.gov",null,{"$f":"VLOOKUP(B74,'LOC FINAL with new Themes'!A:M,7,0)","v":0},{"$f":"VLOOKUP(B74,'LOC FINAL with new Themes'!A:M,8,0)","v":0},{"$f":"VLOOKUP(B74,'LOC FINAL with new Themes'!A:M,9,0)","v":0},{"$f":"VLOOKUP(B74,'LOC FINAL with new Themes'!A:M,10,0)","v":0},{"$f":"VLOOKUP(B74,'LOC FINAL with new Themes'!A:M,11,0)","v":0},{"$f":"VLOOKUP(B74,'LOC FINAL with new Themes'!A:M,12,0)","v":0},{"$f":"VLOOKUP(B74,'LOC FINAL with new Themes'!A:M,13,0)","v":0}]
["TIGER* (many statistical boundaries)","TIGER (many statistical boundaries)",null,"TIGER (many statistical boundaries)","Cultural & Demographic Statistics ","DOC-Census","Randy Fusaro","randy.j.fusaro@census.gov",null,{"$f":"VLOOKUP(B75,'LOC FINAL with new Themes'!A:M,7,0)","v":0},{"$f":"VLOOKUP(B75,'LOC FINAL with new Themes'!A:M,8,0)","v":0},{"$f":"VLOOKUP(B75,'LOC FINAL with new Themes'!A:M,9,0)","v":0},{"$f":"VLOOKUP(B75,'LOC FINAL with new Themes'!A:M,10,0)","v":0},{"$f":"VLOOKUP(B75,'LOC FINAL with new Themes'!A:M,11,0)","v":0},{"$f":"VLOOKUP(B75,'LOC FINAL with new Themes'!A:M,12,0)","v":0},{"$f":"VLOOKUP(B75,'LOC FINAL with new Themes'!A:M,13,0)","v":0}]
[null,"Topological Faces (2010 Census)","Topological Faces (2010 Census)","Topological Faces (2010 Census)","Cultural & Demographic Statistics ","DOC-Census","Jennifer Holland","Jennifer.L.Holland@census.gov",null,{"$f":"VLOOKUP(B76,'LOC FINAL with new Themes'!A:M,7,0)","v":0},{"$f":"VLOOKUP(B76,'LOC FINAL with new Themes'!A:M,8,0)","v":0},{"$f":"VLOOKUP(B76,'LOC FINAL with new Themes'!A:M,9,0)","v":0},{"$f":"VLOOKUP(B76,'LOC FINAL with new Themes'!A:M,10,0)","v":0},{"$f":"VLOOKUP(B76,'LOC FINAL with new Themes'!A:M,11,0)","v":0},{"$f":"VLOOKUP(B76,'LOC FINAL with new Themes'!A:M,12,0)","v":0},{"$f":"VLOOKUP(B76,'LOC FINAL with new Themes'!A:M,13,0)","v":0}]
[null,"Unified School District (2010 Census)","Unified School District (2010 Census)","Unified School District (2010 Census)","Cultural & Demographic Statistics ","DOC-Census","Jennifer Holland","Jennifer.L.Holland@census.gov",null,{"$f":"VLOOKUP(B77,'LOC FINAL with new Themes'!A:M,7,0)","v":0},{"$f":"VLOOKUP(B77,'LOC FINAL with new Themes'!A:M,8,0)","v":0},{"$f":"VLOOKUP(B77,'LOC FINAL with new Themes'!A:M,9,0)","v":0},{"$f":"VLOOKUP(B77,'LOC FINAL with new Themes'!A:M,10,0)","v":0},{"$f":"VLOOKUP(B77,'LOC FINAL with new Themes'!A:M,11,0)","v":0},{"$f":"VLOOKUP(B77,'LOC FINAL with new Themes'!A:M,12,0)","v":0},{"$f":"VLOOKUP(B77,'LOC FINAL with new Themes'!A:M,13,0)","v":0}]
[null,"Unified School District (Census 2000)","Unified School District (Census 2000)","Unified School District (Census 2000)","Cultural & Demographic Statistics ","DOC-Census","Jennifer Holland","Jennifer.L.Holland@census.gov",null,{"$f":"VLOOKUP(B78,'LOC FINAL with new Themes'!A:M,7,0)","v":0},{"$f":"VLOOKUP(B78,'LOC FINAL with new Themes'!A:M,8,0)","v":0},{"$f":"VLOOKUP(B78,'LOC FINAL with new Themes'!A:M,9,0)","v":0},{"$f":"VLOOKUP(B78,'LOC FINAL with new Themes'!A:M,10,0)","v":0},{"$f":"VLOOKUP(B78,'LOC FINAL with new Themes'!A:M,11,0)","v":0},{"$f":"VLOOKUP(B78,'LOC FINAL with new Themes'!A:M,12,0)","v":0},{"$f":"VLOOKUP(B78,'LOC FINAL with new Themes'!A:M,13,0)","v":0}]
[null,"Urban Growth Area (2010 Census)","Urban Growth Area (2010 Census)","Urban Growth Area (2010 Census)","Cultural & Demographic Statistics ","DOC-Census","Jennifer Holland","Jennifer.L.Holland@census.gov",null,{"$f":"VLOOKUP(B79,'LOC FINAL with new Themes'!A:M,7,0)","v":0},{"$f":"VLOOKUP(B79,'LOC FINAL with new Themes'!A:M,8,0)","v":0},{"$f":"VLOOKUP(B79,'LOC FINAL with new Themes'!A:M,9,0)","v":0},{"$f":"VLOOKUP(B79,'LOC FINAL with new Themes'!A:M,10,0)","v":0},{"$f":"VLOOKUP(B79,'LOC FINAL with new Themes'!A:M,11,0)","v":0},{"$f":"VLOOKUP(B79,'LOC FINAL with new Themes'!A:M,12,0)","v":0},{"$f":"VLOOKUP(B79,'LOC FINAL with new Themes'!A:M,13,0)","v":0}]
[null,"Urban Growth Area (Census 2000)","Urban Growth Area (Census 2000)","Urban Growth Area (Census 2000)","Cultural & Demographic Statistics ","DOC-Census","Jennifer Holland","Jennifer.L.Holland@census.gov",null,{"$f":"VLOOKUP(B80,'LOC FINAL with new Themes'!A:M,7,0)","v":0},{"$f":"VLOOKUP(B80,'LOC FINAL with new Themes'!A:M,8,0)","v":0},{"$f":"VLOOKUP(B80,'LOC FINAL with new Themes'!A:M,9,0)","v":0},{"$f":"VLOOKUP(B80,'LOC FINAL with new Themes'!A:M,10,0)","v":0},{"$f":"VLOOKUP(B80,'LOC FINAL with new Themes'!A:M,11,0)","v":0},{"$f":"VLOOKUP(B80,'LOC FINAL with new Themes'!A:M,12,0)","v":0},{"$f":"VLOOKUP(B80,'LOC FINAL with new Themes'!A:M,13,0)","v":0}]
[null,"Voting District (2010 Census)","Voting District (2010 Census)","Voting District (2010 Census)","Cultural & Demographic Statistics ","DOC-Census","Jennifer Holland","Jennifer.L.Holland@census.gov",null,{"$f":"VLOOKUP(B81,'LOC FINAL with new Themes'!A:M,7,0)","v":0},{"$f":"VLOOKUP(B81,'LOC FINAL with new Themes'!A:M,8,0)","v":0},{"$f":"VLOOKUP(B81,'LOC FINAL with new Themes'!A:M,9,0)","v":0},{"$f":"VLOOKUP(B81,'LOC FINAL with new Themes'!A:M,10,0)","v":0},{"$f":"VLOOKUP(B81,'LOC FINAL with new Themes'!A:M,11,0)","v":0},{"$f":"VLOOKUP(B81,'LOC FINAL with new Themes'!A:M,12,0)","v":0},{"$f":"VLOOKUP(B81,'LOC FINAL with new Themes'!A:M,13,0)","v":0}]
[null,"Voting District (Census 2000)","Voting District (Census 2000)","Voting District (Census 2000)","Cultural & Demographic Statistics ","DOC-Census","Jennifer Holland","Jennifer.L.Holland@census.gov",null,{"$f":"VLOOKUP(B82,'LOC FINAL with new Themes'!A:M,7,0)","v":0},{"$f":"VLOOKUP(B82,'LOC FINAL with new Themes'!A:M,8,0)","v":0},{"$f":"VLOOKUP(B82,'LOC FINAL with new Themes'!A:M,9,0)","v":0},{"$f":"VLOOKUP(B82,'LOC FINAL with new Themes'!A:M,10,0)","v":0},{"$f":"VLOOKUP(B82,'LOC FINAL with new Themes'!A:M,11,0)","v":0},{"$f":"VLOOKUP(B82,'LOC FINAL with new Themes'!A:M,12,0)","v":0},{"$f":"VLOOKUP(B82,'LOC FINAL with new Themes'!A:M,13,0)","v":0}]
["Voting District Boundaries","Voting District Boundaries",null,"Voting District Boundaries","Cultural & Demographic Statistics ","DOC-Census","Randy Fusaro","randy.j.fusaro@census.gov",null,{"$f":"VLOOKUP(B83,'LOC FINAL with new Themes'!A:M,7,0)","v":0},{"$f":"VLOOKUP(B83,'LOC FINAL with new Themes'!A:M,8,0)","v":0},{"$f":"VLOOKUP(B83,'LOC FINAL with new Themes'!A:M,9,0)","v":0},{"$f":"VLOOKUP(B83,'LOC FINAL with new Themes'!A:M,10,0)","v":0},{"$f":"VLOOKUP(B83,'LOC FINAL with new Themes'!A:M,11,0)","v":0},{"$f":"VLOOKUP(B83,'LOC FINAL with new Themes'!A:M,12,0)","v":0},{"$f":"VLOOKUP(B83,'LOC FINAL with new Themes'!A:M,13,0)","v":0}]
[null,null,null,{"$f":"SUBTOTAL(3,D43:D83)","v":41},"Cultural & Demographic Statistics  Count"]
["Cultural Landscape Boundaries","Cultural Landscape Boundaries","Cultural Landscape Boundaries",{"$f":"IF(C85=0,B85,C85)","v":"Cultural Landscape Boundaries"},"Cultural & Demographic Statistics \nCultural Resources","DOI-NPS","John Knoerl","john_knoerl@nps.gov",null,{"$f":"VLOOKUP(B85,'LOC FINAL with new Themes'!A:M,7,0)","v":"Feature classes of the cultural resource data model (NPS only, other federal agencies handle it as they decide)"},{"$f":"VLOOKUP(B85,'LOC FINAL with new Themes'!A:M,8,0)","v":"don't want a single centralized data set but focusing on standard approach"},{"$f":"VLOOKUP(B85,'LOC FINAL with new Themes'!A:M,9,0)","v":0},{"$f":"VLOOKUP(B85,'LOC FINAL with new Themes'!A:M,10,0)","v":0},{"$f":"VLOOKUP(B85,'LOC FINAL with new Themes'!A:M,11,0)","v":0},{"$f":"VLOOKUP(B85,'LOC FINAL with new Themes'!A:M,12,0)","v":0},{"$f":"VLOOKUP(B85,'LOC FINAL with new Themes'!A:M,13,0)","v":0}]
["Cultural Resource Survey Boundaries","Cultural Resource Survey Boundaries","Cultural Resource Survey Boundaries","Cultural Resource Survey Boundaries","Cultural & Demographic Statistics \nCultural Resources","DOI-NPS","John Knoerl","john_knoerl@nps.gov",null,{"$f":"VLOOKUP(B86,'LOC FINAL with new Themes'!A:M,7,0)","v":"Feature classes of the cultural resource data model (NPS only, other federal agencies handle it as they decide)"},{"$f":"VLOOKUP(B86,'LOC FINAL with new Themes'!A:M,8,0)","v":"don't want a single centralized data set but focusing on standard approach"},{"$f":"VLOOKUP(B86,'LOC FINAL with new Themes'!A:M,9,0)","v":0},{"$f":"VLOOKUP(B86,'LOC FINAL with new Themes'!A:M,10,0)","v":0},{"$f":"VLOOKUP(B86,'LOC FINAL with new Themes'!A:M,11,0)","v":0},{"$f":"VLOOKUP(B86,'LOC FINAL with new Themes'!A:M,12,0)","v":0},{"$f":"VLOOKUP(B86,'LOC FINAL with new Themes'!A:M,13,0)","v":0}]
["Ethnographic Resource Boundaries","Ethnographic Resource Boundaries","Ethnographic Resource Boundaries","Ethnographic Resource Boundaries","Cultural & Demographic Statistics \nCultural Resources","DOI-NPS","John Knoerl","john_knoerl@nps.gov",null,{"$f":"VLOOKUP(B87,'LOC FINAL with new Themes'!A:M,7,0)","v":"Feature classes of the cultural resource data model (NPS only, other federal agencies handle it as they decide)"},{"$f":"VLOOKUP(B87,'LOC FINAL with new Themes'!A:M,8,0)","v":"don't want a single centralized data set but focusing on standard approach"},{"$f":"VLOOKUP(B87,'LOC FINAL with new Themes'!A:M,9,0)","v":0},{"$f":"VLOOKUP(B87,'LOC FINAL with new Themes'!A:M,10,0)","v":0},{"$f":"VLOOKUP(B87,'LOC FINAL with new Themes'!A:M,11,0)","v":0},{"$f":"VLOOKUP(B87,'LOC FINAL with new Themes'!A:M,12,0)","v":0},{"$f":"VLOOKUP(B87,'LOC FINAL with new Themes'!A:M,13,0)","v":0}]
["Historic Buildings Boundaries","Historic Buildings Boundaries","Historic Buildings Boundaries","Historic Buildings Boundaries","Cultural & Demographic Statistics \nCultural Resources","DOI-NPS","John Knoerl","john_knoerl@nps.gov",null,{"$f":"VLOOKUP(B88,'LOC FINAL with new Themes'!A:M,7,0)","v":"Feature classes of the cultural resource data model (NPS only, other federal agencies handle it as they decide)"},{"$f":"VLOOKUP(B88,'LOC FINAL with new Themes'!A:M,8,0)","v":"don't want a single centralized data set but focusing on standard approach"},{"$f":"VLOOKUP(B88,'LOC FINAL with new Themes'!A:M,9,0)","v":0},{"$f":"VLOOKUP(B88,'LOC FINAL with new Themes'!A:M,10,0)","v":0},{"$f":"VLOOKUP(B88,'LOC FINAL with new Themes'!A:M,11,0)","v":0},{"$f":"VLOOKUP(B88,'LOC FINAL with new Themes'!A:M,12,0)","v":0},{"$f":"VLOOKUP(B88,'LOC FINAL with new Themes'!A:M,13,0)","v":0}]
["Historic Districts Boundaries","Historic Districts Boundaries","Historic Districts Boundaries","Historic Districts Boundaries","Cultural & Demographic Statistics \nCultural Resources","DOI-NPS","John Knoerl","john_knoerl@nps.gov",null,{"$f":"VLOOKUP(B89,'LOC FINAL with new Themes'!A:M,7,0)","v":"Feature classes of the cultural resource data model (NPS only, other federal agencies handle it as they decide)"},{"$f":"VLOOKUP(B89,'LOC FINAL with new Themes'!A:M,8,0)","v":"don't want a single centralized data set but focusing on standard approach"},{"$f":"VLOOKUP(B89,'LOC FINAL with new Themes'!A:M,9,0)","v":0},{"$f":"VLOOKUP(B89,'LOC FINAL with new Themes'!A:M,10,0)","v":0},{"$f":"VLOOKUP(B89,'LOC FINAL with new Themes'!A:M,11,0)","v":0},{"$f":"VLOOKUP(B89,'LOC FINAL with new Themes'!A:M,12,0)","v":0},{"$f":"VLOOKUP(B89,'LOC FINAL with new Themes'!A:M,13,0)","v":0}]
["Historic Objects Boundaries","Historic Objects Boundaries","Historic Objects Boundaries","Historic Objects Boundaries","Cultural & Demographic Statistics \nCultural Resources","DOI-NPS","John Knoerl","john_knoerl@nps.gov",null,{"$f":"VLOOKUP(B90,'LOC FINAL with new Themes'!A:M,7,0)","v":"Feature classes of the cultural resource data model (NPS only, other federal agencies handle it as they decide)"},{"$f":"VLOOKUP(B90,'LOC FINAL with new Themes'!A:M,8,0)","v":"don't want a single centralized data set but focusing on standard approach"},{"$f":"VLOOKUP(B90,'LOC FINAL with new Themes'!A:M,9,0)","v":0},{"$f":"VLOOKUP(B90,'LOC FINAL with new Themes'!A:M,10,0)","v":0},{"$f":"VLOOKUP(B90,'LOC FINAL with new Themes'!A:M,11,0)","v":0},{"$f":"VLOOKUP(B90,'LOC FINAL with new Themes'!A:M,12,0)","v":0},{"$f":"VLOOKUP(B90,'LOC FINAL with new Themes'!A:M,13,0)","v":0}]
["Historic Structures Boundaries","Historic Structures Boundaries","Historic Structures Boundaries","Historic Structures Boundaries","Cultural & Demographic Statistics \nCultural Resources","DOI-NPS","John Knoerl","john_knoerl@nps.gov",null,{"$f":"VLOOKUP(B91,'LOC FINAL with new Themes'!A:M,7,0)","v":"Feature classes of the cultural resource data model (NPS only, other federal agencies handle it as they decide)"},{"$f":"VLOOKUP(B91,'LOC FINAL with new Themes'!A:M,8,0)","v":"don't want a single centralized data set but focusing on standard approach"},{"$f":"VLOOKUP(B91,'LOC FINAL with new Themes'!A:M,9,0)","v":0},{"$f":"VLOOKUP(B91,'LOC FINAL with new Themes'!A:M,10,0)","v":0},{"$f":"VLOOKUP(B91,'LOC FINAL with new Themes'!A:M,11,0)","v":0},{"$f":"VLOOKUP(B91,'LOC FINAL with new Themes'!A:M,12,0)","v":0},{"$f":"VLOOKUP(B91,'LOC FINAL with new Themes'!A:M,13,0)","v":"M "}]
[null,null,"Other Cultural Resource Boundaries","Other Cultural Resource Boundaries","Cultural & Demographic Statistics \nCultural Resources","DOI-NPS"]
[null,null,null,{"$f":"SUBTOTAL(3,D85:D92)","v":8},"Cultural & Demographic Statistics \nCultural Resources Count"]
[null,"Point Landmark (2010 Census)","Point of Landmark (2010 Census)",{"$f":"IF(C94=0,B94,C94)","v":"Point of Landmark (2010 Census)"},"Cultural Resources","DOC-Census","Jennifer Holland","Jennifer.L.Holland@census.gov",null,{"$f":"VLOOKUP(B94,'LOC FINAL with new Themes'!A:M,7,0)","v":0},{"$f":"VLOOKUP(B94,'LOC FINAL with new Themes'!A:M,8,0)","v":0},{"$f":"VLOOKUP(B94,'LOC FINAL with new Themes'!A:M,9,0)","v":0},{"$f":"VLOOKUP(B94,'LOC FINAL with new Themes'!A:M,10,0)","v":0},{"$f":"VLOOKUP(B94,'LOC FINAL with new Themes'!A:M,11,0)","v":0},{"$f":"VLOOKUP(B94,'LOC FINAL with new Themes'!A:M,12,0)","v":0},{"$f":"VLOOKUP(B94,'LOC FINAL with new Themes'!A:M,13,0)","v":0}]
["Archeological Sites","Archeological Sites","Archeological Sites","Archeological Sites","Cultural Resources ","DOI-NPS","John Knoerl","john_knoerl@nps.gov",null,{"$f":"VLOOKUP(B95,'LOC FINAL with new Themes'!A:M,7,0)","v":"Feature classes of the cultural resource data model (NPS only, other federal agencies handle it as they decide)"},{"$f":"VLOOKUP(B95,'LOC FINAL with new Themes'!A:M,8,0)","v":"don't want a single centralized data set but focusing on standard approach"},{"$f":"VLOOKUP(B95,'LOC FINAL with new Themes'!A:M,9,0)","v":"National Historic Presrevation Act says state historic preservation office has primary oversight (section 110)"},{"$f":"VLOOKUP(B95,'LOC FINAL with new Themes'!A:M,10,0)","v":0},{"$f":"VLOOKUP(B95,'LOC FINAL with new Themes'!A:M,11,0)","v":0},{"$f":"VLOOKUP(B95,'LOC FINAL with new Themes'!A:M,12,0)","v":0},{"$f":"VLOOKUP(B95,'LOC FINAL with new Themes'!A:M,13,0)","v":0}]
[null,"Area Landmark (2010 Census)","Area Landmark (2010 Census)","Area Landmark (2010 Census)","Cultural Resources ","DOC-Census","Jennifer Holland","Jennifer.L.Holland@census.gov",null,{"$f":"VLOOKUP(B96,'LOC FINAL with new Themes'!A:M,7,0)","v":0},{"$f":"VLOOKUP(B96,'LOC FINAL with new Themes'!A:M,8,0)","v":0},{"$f":"VLOOKUP(B96,'LOC FINAL with new Themes'!A:M,9,0)","v":0},{"$f":"VLOOKUP(B96,'LOC FINAL with new Themes'!A:M,10,0)","v":0},{"$f":"VLOOKUP(B96,'LOC FINAL with new Themes'!A:M,11,0)","v":0},{"$f":"VLOOKUP(B96,'LOC FINAL with new Themes'!A:M,12,0)","v":0},{"$f":"VLOOKUP(B96,'LOC FINAL with new Themes'!A:M,13,0)","v":0}]
[null,null,"Geographic Names Dataset - National Map","Geographic Names Dataset - National Map","Cultural Resources ","DOI-USGS"]
["National Map - Geographic Names Information System (GNIS)","National Map - Geographic Names Information System (GNIS)",null,"National Map - Geographic Names Information System (GNIS)","Cultural Resources ","DOI-USGS","Lou Yost","lyost@usgs.gov",null,{"$f":"VLOOKUP(B98,'LOC FINAL with new Themes'!A:M,7,0)","v":"single data set; poc, data managers; daily updated; Denver systems people backup and archive; transfer to NARA also; Gaz vector (internal)"},{"$f":"VLOOKUP(B98,'LOC FINAL with new Themes'!A:M,8,0)","v":0},{"$f":"VLOOKUP(B98,'LOC FINAL with new Themes'!A:M,9,0)","v":0},{"$f":"VLOOKUP(B98,'LOC FINAL with new Themes'!A:M,10,0)","v":0},{"$f":"VLOOKUP(B98,'LOC FINAL with new Themes'!A:M,11,0)","v":0},{"$f":"VLOOKUP(B98,'LOC FINAL with new Themes'!A:M,12,0)","v":0},{"$f":"VLOOKUP(B98,'LOC FINAL with new Themes'!A:M,13,0)","v":"S"}]
[null,"Topological Faces-Area Landmark Relationship File","Topological Faces-Area Landmark Relationship File","Topological Faces-Area Landmark Relationship File","Cultural Resources ","DOC-Census","Jennifer Holland","Jennifer.L.Holland@census.gov",null,{"$f":"VLOOKUP(B99,'LOC FINAL with new Themes'!A:M,7,0)","v":0},{"$f":"VLOOKUP(B99,'LOC FINAL with new Themes'!A:M,8,0)","v":0},{"$f":"VLOOKUP(B99,'LOC FINAL with new Themes'!A:M,9,0)","v":0},{"$f":"VLOOKUP(B99,'LOC FINAL with new Themes'!A:M,10,0)","v":0},{"$f":"VLOOKUP(B99,'LOC FINAL with new Themes'!A:M,11,0)","v":0},{"$f":"VLOOKUP(B99,'LOC FINAL with new Themes'!A:M,12,0)","v":0},{"$f":"VLOOKUP(B99,'LOC FINAL with new Themes'!A:M,13,0)","v":0}]
[null,null,null,{"$f":"SUBTOTAL(3,D94:D99)","v":6},"Cultural Resources Count"]
["133 UA Elevation Data (lidar)","133 UA Elevation Data (lidar)",null,{"$f":"IF(C101=0,B101,C101)","v":"133 UA Elevation Data (lidar)"},"Elevation","DOD-NGA","Ron Power, NGA","ronald.k.power@nga.mil",null,{"$f":"VLOOKUP(B101,'LOC FINAL with new Themes'!A:M,7,0)","v":0},{"$f":"VLOOKUP(B101,'LOC FINAL with new Themes'!A:M,8,0)","v":0},{"$f":"VLOOKUP(B101,'LOC FINAL with new Themes'!A:M,9,0)","v":0},{"$f":"VLOOKUP(B101,'LOC FINAL with new Themes'!A:M,10,0)","v":0},{"$f":"VLOOKUP(B101,'LOC FINAL with new Themes'!A:M,11,0)","v":0},{"$f":"VLOOKUP(B101,'LOC FINAL with new Themes'!A:M,12,0)","v":0},{"$f":"VLOOKUP(B101,'LOC FINAL with new Themes'!A:M,13,0)","v":0}]
["DEMs - Archive","DEMs - Archive",null,"DEMs - Archive","Elevation","DOI-USGS","Gayla Evans","gevans@usgs.gov",null,{"$f":"VLOOKUP(B102,'LOC FINAL with new Themes'!A:M,7,0)","v":"DEMS update at variable nature; are four data sets based on resolution; this is the POC and data manager; this is the name and maintain three complete with two physically separate on-site and one off-site"},{"$f":"VLOOKUP(B102,'LOC FINAL with new Themes'!A:M,8,0)","v":0},{"$f":"VLOOKUP(B102,'LOC FINAL with new Themes'!A:M,9,0)","v":0},{"$f":"VLOOKUP(B102,'LOC FINAL with new Themes'!A:M,10,0)","v":0},{"$f":"VLOOKUP(B102,'LOC FINAL with new Themes'!A:M,11,0)","v":0},{"$f":"VLOOKUP(B102,'LOC FINAL with new Themes'!A:M,12,0)","v":0},{"$f":"VLOOKUP(B102,'LOC FINAL with new Themes'!A:M,13,0)","v":"S"}]
["GTOPO30","GTOPO30",null,"GTOPO30","Elevation","DOI-USGS","Jeff Danielson"," daniels@usgs.gov",null,{"$f":"VLOOKUP(B103,'LOC FINAL with new Themes'!A:M,7,0)","v":"GTOPO30 is static; one data set; this is the POC and data manager; this is the name and maintain three complete with two physically separate on-site and one off-site"},{"$f":"VLOOKUP(B103,'LOC FINAL with new Themes'!A:M,8,0)","v":0},{"$f":"VLOOKUP(B103,'LOC FINAL with new Themes'!A:M,9,0)","v":0},{"$f":"VLOOKUP(B103,'LOC FINAL with new Themes'!A:M,10,0)","v":0},{"$f":"VLOOKUP(B103,'LOC FINAL with new Themes'!A:M,11,0)","v":0},{"$f":"VLOOKUP(B103,'LOC FINAL with new Themes'!A:M,12,0)","v":0},{"$f":"VLOOKUP(B103,'LOC FINAL with new Themes'!A:M,13,0)","v":0}]
["National Map National Elevation Data Set (NED)","National Map  - National Elevation Dataset (NED)",null,"National Map  - National Elevation Dataset (NED)","Elevation","DOI-USGS","Jim Mauck","lyost@usgs.gov",null,{"$f":"VLOOKUP(B104,'LOC FINAL with new Themes'!A:M,7,0)","v":0},{"$f":"VLOOKUP(B104,'LOC FINAL with new Themes'!A:M,8,0)","v":0},{"$f":"VLOOKUP(B104,'LOC FINAL with new Themes'!A:M,9,0)","v":0},{"$f":"VLOOKUP(B104,'LOC FINAL with new Themes'!A:M,10,0)","v":0},{"$f":"VLOOKUP(B104,'LOC FINAL with new Themes'!A:M,11,0)","v":0},{"$f":"VLOOKUP(B104,'LOC FINAL with new Themes'!A:M,12,0)","v":0},{"$f":"VLOOKUP(B104,'LOC FINAL with new Themes'!A:M,13,0)","v":0}]
["SRTM (3-arc second DTEDS)","SRTM (3-arc second DTEDS)",null,"SRTM (3-arc second DTEDS)","Elevation","DOI-USGS","Dean Gesch, USGS","gesch@usgs.gov",null,{"$f":"VLOOKUP(B105,'LOC FINAL with new Themes'!A:M,7,0)","v":"SRTM is static; one data set; this is the POC and data manager; this is the name and maintain three complete with two physically separate on-site and one off-site"},{"$f":"VLOOKUP(B105,'LOC FINAL with new Themes'!A:M,8,0)","v":0},{"$f":"VLOOKUP(B105,'LOC FINAL with new Themes'!A:M,9,0)","v":0},{"$f":"VLOOKUP(B105,'LOC FINAL with new Themes'!A:M,10,0)","v":0},{"$f":"VLOOKUP(B105,'LOC FINAL with new Themes'!A:M,11,0)","v":0},{"$f":"VLOOKUP(B105,'LOC FINAL with new Themes'!A:M,12,0)","v":0},{"$f":"VLOOKUP(B105,'LOC FINAL with new Themes'!A:M,13,0)","v":"S"}]
["Digital Flood Insurance Rate Maps (D-FIRM)","Digital Flood Insurance Rate Maps (D-FIRM)","Digital Flood Insurance Rate Maps (DFIRM)","Digital Flood Insurance Rate Maps (DFIRM)","Elevation ","DHS-FEMA","Scott McAfee","scott.mcaffee@dhs.gov",null,{"$f":"VLOOKUP(B106,'LOC FINAL with new Themes'!A:M,7,0)","v":0},{"$f":"VLOOKUP(B106,'LOC FINAL with new Themes'!A:M,8,0)","v":0},{"$f":"VLOOKUP(B106,'LOC FINAL with new Themes'!A:M,9,0)","v":0},{"$f":"VLOOKUP(B106,'LOC FINAL with new Themes'!A:M,10,0)","v":0},{"$f":"VLOOKUP(B106,'LOC FINAL with new Themes'!A:M,11,0)","v":0},{"$f":"VLOOKUP(B106,'LOC FINAL with new Themes'!A:M,12,0)","v":0},{"$f":"VLOOKUP(B106,'LOC FINAL with new Themes'!A:M,13,0)","v":0}]
[null,null,"Elevation Bathymetric - Ocean, Coastal, and Great Lakes Bathymetry ","Elevation Bathymetric - Ocean, Coastal, and Great Lakes Bathymetry ","Elevation ","DOC-NOAA","Anne Ball","anne.ball@noaa.gov","843-740-1229"]
[null,null,"National Elevation Dataset  - National Map","National Elevation Dataset  - National Map","Elevation ","DOI-USGS"]
["National Flood Hazard Layer (NFHL)","National Flood Hazard Layer (NFHL)","National Flood Hazard Layer (NFHL)","National Flood Hazard Layer (NFHL)","Elevation ","DHS-FEMA","Scott McAfee","scott.mcaffee@dhs.gov",null,{"$f":"VLOOKUP(B109,'LOC FINAL with new Themes'!A:M,7,0)","v":0},{"$f":"VLOOKUP(B109,'LOC FINAL with new Themes'!A:M,8,0)","v":0},{"$f":"VLOOKUP(B109,'LOC FINAL with new Themes'!A:M,9,0)","v":0},{"$f":"VLOOKUP(B109,'LOC FINAL with new Themes'!A:M,10,0)","v":0},{"$f":"VLOOKUP(B109,'LOC FINAL with new Themes'!A:M,11,0)","v":0},{"$f":"VLOOKUP(B109,'LOC FINAL with new Themes'!A:M,12,0)","v":0},{"$f":"VLOOKUP(B109,'LOC FINAL with new Themes'!A:M,13,0)","v":0}]
[null,null,null,{"$f":"SUBTOTAL(3,D101:D109)","v":9},"Elevation Count"]
[null,null,"Airborne Gravity",{"$f":"IF(C111=0,B111,C111)","v":"Airborne Gravity"},"Geodetic Control ","DOC-NOAA","Dr. Theresa Diehl","theresa.diehl@noaa.gov"]
[null,null,"Terrestrial Gravity",{"$f":"IF(C112=0,B112,C112)","v":"Terrestrial Gravity"},"Geodetic Control ","DOC-NOAA","Bill Waickman ","bill.waickman@noaa.gov"]
[null,null,"Continuously Operating Reference Stations (CORS)","Continuously Operating Reference Stations (CORS)","Geodetic Control ","DOC-NOAA","Dr. Giovanni Sella","giovanni.sella@noaa.gov"]
[null,null,"Geoid Models","Geoid Models","Geodetic Control ","DOC-NOAA","Dr. Dan Roman","dan.roman@noaa.gov"]
["National Geologic Data Base","National Geologic Data Base","National Geodetic Survey (NGS) Datasheets","National Geodetic Survey (NGS) Datasheets","Geodetic Control ","DOC-NOAA","Jim Tomlin","jim.tomlin@noaa.gov",null,{"$f":"VLOOKUP(B115,'LOC FINAL with new Themes'!A:M,7,0)","v":0},{"$f":"VLOOKUP(B115,'LOC FINAL with new Themes'!A:M,8,0)","v":0},{"$f":"VLOOKUP(B115,'LOC FINAL with new Themes'!A:M,9,0)","v":0},{"$f":"VLOOKUP(B115,'LOC FINAL with new Themes'!A:M,10,0)","v":0},{"$f":"VLOOKUP(B115,'LOC FINAL with new Themes'!A:M,11,0)","v":0},{"$f":"VLOOKUP(B115,'LOC FINAL with new Themes'!A:M,12,0)","v":0},{"$f":"VLOOKUP(B115,'LOC FINAL with new Themes'!A:M,13,0)","v":0}]
[null,null,"Precise Global Navigation Satellite System (GNSS) Orbits",{"$f":"IF(C116=0,#REF!,C116)","v":"Precise Global Navigation Satellite System (GNSS) Orbits"},"Geodetic Control ","DOC-NOAA","Dr. Jake Griffiths","jake.griffiths@noaa.gov"]
[null,null,null,{"$f":"SUBTOTAL(3,D111:D116)","v":6},"Geodetic Control  Count"]
[null,null,"Coal assessment and mapping",{"$f":"IF(C118=0,B118,C118)","v":"Coal assessment and mapping"},"Geology","DOI-USGS"]
["Coastline Data","Coastline Data","Coastline Data","Coastline Data","Geology","DOI-BOEM","Doug Vandegraft","Doug.Vandegraft@boem.gov",null,{"$f":"VLOOKUP(B119,'LOC FINAL with new Themes'!A:M,7,0)","v":"undeliverable email- neeed to identify new contact"},{"$f":"VLOOKUP(B119,'LOC FINAL with new Themes'!A:M,8,0)","v":0},{"$f":"VLOOKUP(B119,'LOC FINAL with new Themes'!A:M,9,0)","v":0},{"$f":"VLOOKUP(B119,'LOC FINAL with new Themes'!A:M,10,0)","v":0},{"$f":"VLOOKUP(B119,'LOC FINAL with new Themes'!A:M,11,0)","v":0},{"$f":"VLOOKUP(B119,'LOC FINAL with new Themes'!A:M,12,0)","v":0},{"$f":"VLOOKUP(B119,'LOC FINAL with new Themes'!A:M,13,0)","v":0}]
[null,null,"Earthquake monitoring, research, and mapping","Earthquake monitoring, research, and mapping","Geology","DOI-USGS"]
[null,null,"Geochemistry","Geochemistry","Geology","DOI-USGS"]
[null,null,"Geochronology","Geochronology","Geology","DOI-USGS"]
[null,null,"Geologic mapping","Geologic mapping","Geology","DOI-USGS"]
[null,null,"Geomagnetism","Geomagnetism","Geology","DOI-USGS"]
[null,null,"Geophysics","Geophysics","Geology","DOI-USGS"]
[null,null,"Landslide monitoring, research, and mapping","Landslide monitoring, research, and mapping","Geology","DOI-USGS"]
[null,null,"Marine geology","Marine geology","Geology","DOI-USGS"]
[null,null,"Metallic mineral assessment and mapping","Metallic mineral assessment and mapping","Geology","DOI-USGS"]
[null,null,"BOEM Baseline","BOEM Baseline","Geology","DOI-BOEM","Doug Vandegraft","Doug.Vandegraft@boem.gov"]
[null,null,"Non-metallic mineral assessment and mapping, onshore",{"$f":"IF(C130=0,B129,C130)","v":"Non-metallic mineral assessment and mapping, onshore"},"Geology","DOI-USGS"]
[null,null,"Oil and gas assessment and mapping, onshore",{"$f":"IF(C131=0,B131,C131)","v":"Oil and gas assessment and mapping, onshore"},"Geology","DOI-USGS"]
[null,null,"Paleontology","Paleontology","Geology","DOI-USGS"]
[null,null,"Sand and Gravel","Sand and Gravel","Geology","DOI-BOEM","Doug Vandegraft","Doug.Vandegraft@boem.gov"]
[null,null,"Volcano monitoring, research, and mapping","Volcano monitoring, research, and mapping","Geology","DOI-USGS"]
[null,null,"Wells","Wells","Geology","DOI-BOEM","Doug Vandegraft","Doug.Vandegraft@boem.gov"]
[null,null,null,{"$f":"SUBTOTAL(3,D118:D135)","v":18},"Geology Count"]
["County Boundaries","County Boundaries",null,{"$f":"IF(C137=0,B137,C137)","v":"County Boundaries"},"Governmental Units",{"$nulls":4},{"$f":"VLOOKUP(B137,'LOC FINAL with new Themes'!A:M,7,0)","v":0},{"$f":"VLOOKUP(B137,'LOC FINAL with new Themes'!A:M,8,0)","v":0},{"$f":"VLOOKUP(B137,'LOC FINAL with new Themes'!A:M,9,0)","v":0},{"$f":"VLOOKUP(B137,'LOC FINAL with new Themes'!A:M,10,0)","v":0},{"$f":"VLOOKUP(B137,'LOC FINAL with new Themes'!A:M,11,0)","v":0},{"$f":"VLOOKUP(B137,'LOC FINAL with new Themes'!A:M,12,0)","v":0},{"$f":"VLOOKUP(B137,'LOC FINAL with new Themes'!A:M,13,0)","v":0}]
[null,"Place and MCD Boundaries",null,"Place and MCD Boundaries","Governmental Units",{"$nulls":4},{"$f":"VLOOKUP(B138,'LOC FINAL with new Themes'!A:M,7,0)","v":0},{"$f":"VLOOKUP(B138,'LOC FINAL with new Themes'!A:M,8,0)","v":0},{"$f":"VLOOKUP(B138,'LOC FINAL with new Themes'!A:M,9,0)","v":0},{"$f":"VLOOKUP(B138,'LOC FINAL with new Themes'!A:M,10,0)","v":0},{"$f":"VLOOKUP(B138,'LOC FINAL with new Themes'!A:M,11,0)","v":0},{"$f":"VLOOKUP(B138,'LOC FINAL with new Themes'!A:M,12,0)","v":0},{"$f":"VLOOKUP(B138,'LOC FINAL with new Themes'!A:M,13,0)","v":0}]
[null,"Alaska Native Regional Corporation (2010 Census)","Alaska Native Regional Corporation (2010 Census)","Alaska Native Regional Corporation (2010 Census)","Governmental Units ","DOC-Census","Jennifer Holland","Jennifer.L.Holland@census.gov",null,{"$f":"VLOOKUP(B139,'LOC FINAL with new Themes'!A:M,7,0)","v":0},{"$f":"VLOOKUP(B139,'LOC FINAL with new Themes'!A:M,8,0)","v":0},{"$f":"VLOOKUP(B139,'LOC FINAL with new Themes'!A:M,9,0)","v":0},{"$f":"VLOOKUP(B139,'LOC FINAL with new Themes'!A:M,10,0)","v":0},{"$f":"VLOOKUP(B139,'LOC FINAL with new Themes'!A:M,11,0)","v":0},{"$f":"VLOOKUP(B139,'LOC FINAL with new Themes'!A:M,12,0)","v":0},{"$f":"VLOOKUP(B139,'LOC FINAL with new Themes'!A:M,13,0)","v":0}]
[null,"Alaska Native Regional Corporation (Census 2000)","Alaska Native Regional Corporation (Census 2000)","Alaska Native Regional Corporation (Census 2000)","Governmental Units ","DOC-Census","Jennifer Holland","Jennifer.L.Holland@census.gov",null,{"$f":"VLOOKUP(B140,'LOC FINAL with new Themes'!A:M,7,0)","v":0},{"$f":"VLOOKUP(B140,'LOC FINAL with new Themes'!A:M,8,0)","v":0},{"$f":"VLOOKUP(B140,'LOC FINAL with new Themes'!A:M,9,0)","v":0},{"$f":"VLOOKUP(B140,'LOC FINAL with new Themes'!A:M,10,0)","v":0},{"$f":"VLOOKUP(B140,'LOC FINAL with new Themes'!A:M,11,0)","v":0},{"$f":"VLOOKUP(B140,'LOC FINAL with new Themes'!A:M,12,0)","v":0},{"$f":"VLOOKUP(B140,'LOC FINAL with new Themes'!A:M,13,0)","v":0}]
[null,"American Indian Tribal Subdivision (2010 Census)","American Indian Tribal Subdivision (2010 Census)","American Indian Tribal Subdivision (2010 Census)","Governmental Units ","DOC-Census","Jennifer Holland","Jennifer.L.Holland@census.gov",null,{"$f":"VLOOKUP(B141,'LOC FINAL with new Themes'!A:M,7,0)","v":0},{"$f":"VLOOKUP(B141,'LOC FINAL with new Themes'!A:M,8,0)","v":0},{"$f":"VLOOKUP(B141,'LOC FINAL with new Themes'!A:M,9,0)","v":0},{"$f":"VLOOKUP(B141,'LOC FINAL with new Themes'!A:M,10,0)","v":0},{"$f":"VLOOKUP(B141,'LOC FINAL with new Themes'!A:M,11,0)","v":0},{"$f":"VLOOKUP(B141,'LOC FINAL with new Themes'!A:M,12,0)","v":0},{"$f":"VLOOKUP(B141,'LOC FINAL with new Themes'!A:M,13,0)","v":0}]
[null,"American Indian Tribal Subdivision (Census 2000)","American Indian Tribal Subdivision (Census 2000)","American Indian Tribal Subdivision (Census 2000)","Governmental Units ","DOC-Census","Jennifer Holland","Jennifer.L.Holland@census.gov",null,{"$f":"VLOOKUP(B142,'LOC FINAL with new Themes'!A:M,7,0)","v":0},{"$f":"VLOOKUP(B142,'LOC FINAL with new Themes'!A:M,8,0)","v":0},{"$f":"VLOOKUP(B142,'LOC FINAL with new Themes'!A:M,9,0)","v":0},{"$f":"VLOOKUP(B142,'LOC FINAL with new Themes'!A:M,10,0)","v":0},{"$f":"VLOOKUP(B142,'LOC FINAL with new Themes'!A:M,11,0)","v":0},{"$f":"VLOOKUP(B142,'LOC FINAL with new Themes'!A:M,12,0)","v":0},{"$f":"VLOOKUP(B142,'LOC FINAL with new Themes'!A:M,13,0)","v":0}]
[null,"American Indian/Alaska Native/Native Hawaiian Area (2000 Census)","American Indian/Alaska Native/Native Hawaiian Area (2000 Census)","American Indian/Alaska Native/Native Hawaiian Area (2000 Census)","Governmental Units ","DOC-Census","Jennifer Holland","Jennifer.L.Holland@census.gov",null,{"$f":"VLOOKUP(B143,'LOC FINAL with new Themes'!A:M,7,0)","v":0},{"$f":"VLOOKUP(B143,'LOC FINAL with new Themes'!A:M,8,0)","v":0},{"$f":"VLOOKUP(B143,'LOC FINAL with new Themes'!A:M,9,0)","v":0},{"$f":"VLOOKUP(B143,'LOC FINAL with new Themes'!A:M,10,0)","v":0},{"$f":"VLOOKUP(B143,'LOC FINAL with new Themes'!A:M,11,0)","v":0},{"$f":"VLOOKUP(B143,'LOC FINAL with new Themes'!A:M,12,0)","v":0},{"$f":"VLOOKUP(B143,'LOC FINAL with new Themes'!A:M,13,0)","v":0}]
[null,"American Indian/Alaska Native/Native Hawaiian Area (2010 Census)","American Indian/Alaska Native/Native Hawaiian Area (2010 Census)","American Indian/Alaska Native/Native Hawaiian Area (2010 Census)","Governmental Units ","DOC-Census","Jennifer Holland","Jennifer.L.Holland@census.gov",null,{"$f":"VLOOKUP(B144,'LOC FINAL with new Themes'!A:M,7,0)","v":0},{"$f":"VLOOKUP(B144,'LOC FINAL with new Themes'!A:M,8,0)","v":0},{"$f":"VLOOKUP(B144,'LOC FINAL with new Themes'!A:M,9,0)","v":0},{"$f":"VLOOKUP(B144,'LOC FINAL with new Themes'!A:M,10,0)","v":0},{"$f":"VLOOKUP(B144,'LOC FINAL with new Themes'!A:M,11,0)","v":0},{"$f":"VLOOKUP(B144,'LOC FINAL with new Themes'!A:M,12,0)","v":0},{"$f":"VLOOKUP(B144,'LOC FINAL with new Themes'!A:M,13,0)","v":0}]
[null,"Combined New England City and Town Area (2010 Census)","Combined New England City and Town Area (2010 Census)","Combined New England City and Town Area (2010 Census)","Governmental Units ","DOC-Census","Jennifer Holland","Jennifer.L.Holland@census.gov",null,{"$f":"VLOOKUP(B145,'LOC FINAL with new Themes'!A:M,7,0)","v":0},{"$f":"VLOOKUP(B145,'LOC FINAL with new Themes'!A:M,8,0)","v":0},{"$f":"VLOOKUP(B145,'LOC FINAL with new Themes'!A:M,9,0)","v":0},{"$f":"VLOOKUP(B145,'LOC FINAL with new Themes'!A:M,10,0)","v":0},{"$f":"VLOOKUP(B145,'LOC FINAL with new Themes'!A:M,11,0)","v":0},{"$f":"VLOOKUP(B145,'LOC FINAL with new Themes'!A:M,12,0)","v":0},{"$f":"VLOOKUP(B145,'LOC FINAL with new Themes'!A:M,13,0)","v":0}]
["Congressional District Boundaries","Congressional District (108th)","Congressional District (108th)","Congressional District (108th)","Governmental Units ","DOC-Census","Jennifer Holland","Jennifer.L.Holland@census.gov",null,{"$f":"VLOOKUP(B146,'LOC FINAL with new Themes'!A:M,7,0)","v":0},{"$f":"VLOOKUP(B146,'LOC FINAL with new Themes'!A:M,8,0)","v":0},{"$f":"VLOOKUP(B146,'LOC FINAL with new Themes'!A:M,9,0)","v":0},{"$f":"VLOOKUP(B146,'LOC FINAL with new Themes'!A:M,10,0)","v":0},{"$f":"VLOOKUP(B146,'LOC FINAL with new Themes'!A:M,11,0)","v":0},{"$f":"VLOOKUP(B146,'LOC FINAL with new Themes'!A:M,12,0)","v":0},{"$f":"VLOOKUP(B146,'LOC FINAL with new Themes'!A:M,13,0)","v":0}]
[null,"Congressional District (111th)","Congressional District (111th)","Congressional District (111th)","Governmental Units ","DOC-Census","Jennifer Holland","Jennifer.L.Holland@census.gov",null,{"$f":"VLOOKUP(B147,'LOC FINAL with new Themes'!A:M,7,0)","v":0},{"$f":"VLOOKUP(B147,'LOC FINAL with new Themes'!A:M,8,0)","v":0},{"$f":"VLOOKUP(B147,'LOC FINAL with new Themes'!A:M,9,0)","v":0},{"$f":"VLOOKUP(B147,'LOC FINAL with new Themes'!A:M,10,0)","v":0},{"$f":"VLOOKUP(B147,'LOC FINAL with new Themes'!A:M,11,0)","v":0},{"$f":"VLOOKUP(B147,'LOC FINAL with new Themes'!A:M,12,0)","v":0},{"$f":"VLOOKUP(B147,'LOC FINAL with new Themes'!A:M,13,0)","v":0}]
[null,"Consolidated City (2010 Census)","Consolidated City (2010 Census)","Consolidated City (2010 Census)","Governmental Units ","DOC-Census","Jennifer Holland","Jennifer.L.Holland@census.gov",null,{"$f":"VLOOKUP(B148,'LOC FINAL with new Themes'!A:M,7,0)","v":0},{"$f":"VLOOKUP(B148,'LOC FINAL with new Themes'!A:M,8,0)","v":0},{"$f":"VLOOKUP(B148,'LOC FINAL with new Themes'!A:M,9,0)","v":0},{"$f":"VLOOKUP(B148,'LOC FINAL with new Themes'!A:M,10,0)","v":0},{"$f":"VLOOKUP(B148,'LOC FINAL with new Themes'!A:M,11,0)","v":0},{"$f":"VLOOKUP(B148,'LOC FINAL with new Themes'!A:M,12,0)","v":0},{"$f":"VLOOKUP(B148,'LOC FINAL with new Themes'!A:M,13,0)","v":0}]
[null,"Consolidated City (Census 2000)","Consolidated City (Census 2000)","Consolidated City (Census 2000)","Governmental Units ","DOC-Census","Jennifer Holland","Jennifer.L.Holland@census.gov",null,{"$f":"VLOOKUP(B149,'LOC FINAL with new Themes'!A:M,7,0)","v":0},{"$f":"VLOOKUP(B149,'LOC FINAL with new Themes'!A:M,8,0)","v":0},{"$f":"VLOOKUP(B149,'LOC FINAL with new Themes'!A:M,9,0)","v":0},{"$f":"VLOOKUP(B149,'LOC FINAL with new Themes'!A:M,10,0)","v":0},{"$f":"VLOOKUP(B149,'LOC FINAL with new Themes'!A:M,11,0)","v":0},{"$f":"VLOOKUP(B149,'LOC FINAL with new Themes'!A:M,12,0)","v":0},{"$f":"VLOOKUP(B149,'LOC FINAL with new Themes'!A:M,13,0)","v":0}]
[null,"County and Equivalent (2010 Census)","County and Equivalent (2010 Census)","County and Equivalent (2010 Census)","Governmental Units ","DOC-Census","Jennifer Holland","Jennifer.L.Holland@census.gov",null,{"$f":"VLOOKUP(B150,'LOC FINAL with new Themes'!A:M,7,0)","v":0},{"$f":"VLOOKUP(B150,'LOC FINAL with new Themes'!A:M,8,0)","v":0},{"$f":"VLOOKUP(B150,'LOC FINAL with new Themes'!A:M,9,0)","v":0},{"$f":"VLOOKUP(B150,'LOC FINAL with new Themes'!A:M,10,0)","v":0},{"$f":"VLOOKUP(B150,'LOC FINAL with new Themes'!A:M,11,0)","v":0},{"$f":"VLOOKUP(B150,'LOC FINAL with new Themes'!A:M,12,0)","v":0},{"$f":"VLOOKUP(B150,'LOC FINAL with new Themes'!A:M,13,0)","v":0}]
[null,"County and Equivalent (Census 2000)","County and Equivalent (Census 2000)","County and Equivalent (Census 2000)","Governmental Units ","DOC-Census","Jennifer Holland","Jennifer.L.Holland@census.gov",null,{"$f":"VLOOKUP(B151,'LOC FINAL with new Themes'!A:M,7,0)","v":0},{"$f":"VLOOKUP(B151,'LOC FINAL with new Themes'!A:M,8,0)","v":0},{"$f":"VLOOKUP(B151,'LOC FINAL with new Themes'!A:M,9,0)","v":0},{"$f":"VLOOKUP(B151,'LOC FINAL with new Themes'!A:M,10,0)","v":0},{"$f":"VLOOKUP(B151,'LOC FINAL with new Themes'!A:M,11,0)","v":0},{"$f":"VLOOKUP(B151,'LOC FINAL with new Themes'!A:M,12,0)","v":0},{"$f":"VLOOKUP(B151,'LOC FINAL with new Themes'!A:M,13,0)","v":0}]
[null,"County Subdivision (2010 Census)","County Subdivision (2010 Census)","County Subdivision (2010 Census)","Governmental Units ","DOC-Census","Jennifer Holland","Jennifer.L.Holland@census.gov",null,{"$f":"VLOOKUP(B152,'LOC FINAL with new Themes'!A:M,7,0)","v":0},{"$f":"VLOOKUP(B152,'LOC FINAL with new Themes'!A:M,8,0)","v":0},{"$f":"VLOOKUP(B152,'LOC FINAL with new Themes'!A:M,9,0)","v":0},{"$f":"VLOOKUP(B152,'LOC FINAL with new Themes'!A:M,10,0)","v":0},{"$f":"VLOOKUP(B152,'LOC FINAL with new Themes'!A:M,11,0)","v":0},{"$f":"VLOOKUP(B152,'LOC FINAL with new Themes'!A:M,12,0)","v":0},{"$f":"VLOOKUP(B152,'LOC FINAL with new Themes'!A:M,13,0)","v":0}]
[null,"County Subdivision (Census 2000)","County Subdivision (Census 2000)","County Subdivision (Census 2000)","Governmental Units ","DOC-Census","Jennifer Holland","Jennifer.L.Holland@census.gov",null,{"$f":"VLOOKUP(B153,'LOC FINAL with new Themes'!A:M,7,0)","v":0},{"$f":"VLOOKUP(B153,'LOC FINAL with new Themes'!A:M,8,0)","v":0},{"$f":"VLOOKUP(B153,'LOC FINAL with new Themes'!A:M,9,0)","v":0},{"$f":"VLOOKUP(B153,'LOC FINAL with new Themes'!A:M,10,0)","v":0},{"$f":"VLOOKUP(B153,'LOC FINAL with new Themes'!A:M,11,0)","v":0},{"$f":"VLOOKUP(B153,'LOC FINAL with new Themes'!A:M,12,0)","v":0},{"$f":"VLOOKUP(B153,'LOC FINAL with new Themes'!A:M,13,0)","v":0}]
[null,"Metropolitan Division (2010 Census)","Metropolitan Division (2010 Census)","Metropolitan Division (2010 Census)","Governmental Units ","DOC-Census","Jennifer Holland","Jennifer.L.Holland@census.gov",null,{"$f":"VLOOKUP(B154,'LOC FINAL with new Themes'!A:M,7,0)","v":0},{"$f":"VLOOKUP(B154,'LOC FINAL with new Themes'!A:M,8,0)","v":0},{"$f":"VLOOKUP(B154,'LOC FINAL with new Themes'!A:M,9,0)","v":0},{"$f":"VLOOKUP(B154,'LOC FINAL with new Themes'!A:M,10,0)","v":0},{"$f":"VLOOKUP(B154,'LOC FINAL with new Themes'!A:M,11,0)","v":0},{"$f":"VLOOKUP(B154,'LOC FINAL with new Themes'!A:M,12,0)","v":0},{"$f":"VLOOKUP(B154,'LOC FINAL with new Themes'!A:M,13,0)","v":0}]
[null,"Metropolitan Division (2010 Census)","Metropolitan Division (2010 Census)","Metropolitan Division (2010 Census)","Governmental Units ","DOC-Census","Jennifer Holland","Jennifer.L.Holland@census.gov",null,{"$f":"VLOOKUP(B155,'LOC FINAL with new Themes'!A:M,7,0)","v":0},{"$f":"VLOOKUP(B155,'LOC FINAL with new Themes'!A:M,8,0)","v":0},{"$f":"VLOOKUP(B155,'LOC FINAL with new Themes'!A:M,9,0)","v":0},{"$f":"VLOOKUP(B155,'LOC FINAL with new Themes'!A:M,10,0)","v":0},{"$f":"VLOOKUP(B155,'LOC FINAL with new Themes'!A:M,11,0)","v":0},{"$f":"VLOOKUP(B155,'LOC FINAL with new Themes'!A:M,12,0)","v":0},{"$f":"VLOOKUP(B155,'LOC FINAL with new Themes'!A:M,13,0)","v":0}]
[null,"New England City and Town Area (2010 Census)","New England City and Town Area (2010 Census)","New England City and Town Area (2010 Census)","Governmental Units ","DOC-Census","Jennifer Holland","Jennifer.L.Holland@census.gov",null,{"$f":"VLOOKUP(B156,'LOC FINAL with new Themes'!A:M,7,0)","v":0},{"$f":"VLOOKUP(B156,'LOC FINAL with new Themes'!A:M,8,0)","v":0},{"$f":"VLOOKUP(B156,'LOC FINAL with new Themes'!A:M,9,0)","v":0},{"$f":"VLOOKUP(B156,'LOC FINAL with new Themes'!A:M,10,0)","v":0},{"$f":"VLOOKUP(B156,'LOC FINAL with new Themes'!A:M,11,0)","v":0},{"$f":"VLOOKUP(B156,'LOC FINAL with new Themes'!A:M,12,0)","v":0},{"$f":"VLOOKUP(B156,'LOC FINAL with new Themes'!A:M,13,0)","v":0}]
[null,"New England City and Town Area Division (2010 Census)","New England City and Town Area Division (2010 Census)","New England City and Town Area Division (2010 Census)","Governmental Units ","DOC-Census","Jennifer Holland","Jennifer.L.Holland@census.gov",null,{"$f":"VLOOKUP(B157,'LOC FINAL with new Themes'!A:M,7,0)","v":0},{"$f":"VLOOKUP(B157,'LOC FINAL with new Themes'!A:M,8,0)","v":0},{"$f":"VLOOKUP(B157,'LOC FINAL with new Themes'!A:M,9,0)","v":0},{"$f":"VLOOKUP(B157,'LOC FINAL with new Themes'!A:M,10,0)","v":0},{"$f":"VLOOKUP(B157,'LOC FINAL with new Themes'!A:M,11,0)","v":0},{"$f":"VLOOKUP(B157,'LOC FINAL with new Themes'!A:M,12,0)","v":0},{"$f":"VLOOKUP(B157,'LOC FINAL with new Themes'!A:M,13,0)","v":0}]
["Place and MCD Boundaries","Place (2010 Census)","Place (2010 Census)","Place (2010 Census)","Governmental Units ","DOC-Census","Jennifer Holland","Jennifer.L.Holland@census.gov",null,{"$f":"VLOOKUP(B158,'LOC FINAL with new Themes'!A:M,7,0)","v":0},{"$f":"VLOOKUP(B158,'LOC FINAL with new Themes'!A:M,8,0)","v":0},{"$f":"VLOOKUP(B158,'LOC FINAL with new Themes'!A:M,9,0)","v":0},{"$f":"VLOOKUP(B158,'LOC FINAL with new Themes'!A:M,10,0)","v":0},{"$f":"VLOOKUP(B158,'LOC FINAL with new Themes'!A:M,11,0)","v":0},{"$f":"VLOOKUP(B158,'LOC FINAL with new Themes'!A:M,12,0)","v":0},{"$f":"VLOOKUP(B158,'LOC FINAL with new Themes'!A:M,13,0)","v":0}]
[null,"Place (Census 2000)","Place (Census 2000)","Place (Census 2000)","Governmental Units ","DOC-Census","Jennifer Holland","Jennifer.L.Holland@census.gov",null,{"$f":"VLOOKUP(B159,'LOC FINAL with new Themes'!A:M,7,0)","v":0},{"$f":"VLOOKUP(B159,'LOC FINAL with new Themes'!A:M,8,0)","v":0},{"$f":"VLOOKUP(B159,'LOC FINAL with new Themes'!A:M,9,0)","v":0},{"$f":"VLOOKUP(B159,'LOC FINAL with new Themes'!A:M,10,0)","v":0},{"$f":"VLOOKUP(B159,'LOC FINAL with new Themes'!A:M,11,0)","v":0},{"$f":"VLOOKUP(B159,'LOC FINAL with new Themes'!A:M,12,0)","v":0},{"$f":"VLOOKUP(B159,'LOC FINAL with new Themes'!A:M,13,0)","v":0}]
["State(+ Territories) Boundaries","State and Equivalent  (2010 Census)","State and Equivalent  (2010 Census)","State and Equivalent  (2010 Census)","Governmental Units ","DOC-Census","Jennifer Holland","Jennifer.L.Holland@census.gov",null,{"$f":"VLOOKUP(B160,'LOC FINAL with new Themes'!A:M,7,0)","v":0},{"$f":"VLOOKUP(B160,'LOC FINAL with new Themes'!A:M,8,0)","v":0},{"$f":"VLOOKUP(B160,'LOC FINAL with new Themes'!A:M,9,0)","v":0},{"$f":"VLOOKUP(B160,'LOC FINAL with new Themes'!A:M,10,0)","v":0},{"$f":"VLOOKUP(B160,'LOC FINAL with new Themes'!A:M,11,0)","v":0},{"$f":"VLOOKUP(B160,'LOC FINAL with new Themes'!A:M,12,0)","v":0},{"$f":"VLOOKUP(B160,'LOC FINAL with new Themes'!A:M,13,0)","v":0}]
[null,"State and Equivalent  (Census 2000)","State and Equivalent  (Census 2000)","State and Equivalent  (Census 2000)","Governmental Units ","DOC-Census","Jennifer Holland","Jennifer.L.Holland@census.gov",null,{"$f":"VLOOKUP(B161,'LOC FINAL with new Themes'!A:M,7,0)","v":0},{"$f":"VLOOKUP(B161,'LOC FINAL with new Themes'!A:M,8,0)","v":0},{"$f":"VLOOKUP(B161,'LOC FINAL with new Themes'!A:M,9,0)","v":0},{"$f":"VLOOKUP(B161,'LOC FINAL with new Themes'!A:M,10,0)","v":0},{"$f":"VLOOKUP(B161,'LOC FINAL with new Themes'!A:M,11,0)","v":0},{"$f":"VLOOKUP(B161,'LOC FINAL with new Themes'!A:M,12,0)","v":0},{"$f":"VLOOKUP(B161,'LOC FINAL with new Themes'!A:M,13,0)","v":0}]
[null,"State Legislative District (Lower Chamber) (2010 Census)","State Legislative District (Lower Chamber) (2010 Census)","State Legislative District (Lower Chamber) (2010 Census)","Governmental Units ","DOC-Census","Jennifer Holland","Jennifer.L.Holland@census.gov",null,{"$f":"VLOOKUP(B162,'LOC FINAL with new Themes'!A:M,7,0)","v":0},{"$f":"VLOOKUP(B162,'LOC FINAL with new Themes'!A:M,8,0)","v":0},{"$f":"VLOOKUP(B162,'LOC FINAL with new Themes'!A:M,9,0)","v":0},{"$f":"VLOOKUP(B162,'LOC FINAL with new Themes'!A:M,10,0)","v":0},{"$f":"VLOOKUP(B162,'LOC FINAL with new Themes'!A:M,11,0)","v":0},{"$f":"VLOOKUP(B162,'LOC FINAL with new Themes'!A:M,12,0)","v":0},{"$f":"VLOOKUP(B162,'LOC FINAL with new Themes'!A:M,13,0)","v":0}]
[null,"State Legislative District (Lower Chamber) (Census 2000)","State Legislative District (Lower Chamber) (Census 2000)","State Legislative District (Lower Chamber) (Census 2000)","Governmental Units ","DOC-Census","Jennifer Holland","Jennifer.L.Holland@census.gov",null,{"$f":"VLOOKUP(B163,'LOC FINAL with new Themes'!A:M,7,0)","v":0},{"$f":"VLOOKUP(B163,'LOC FINAL with new Themes'!A:M,8,0)","v":0},{"$f":"VLOOKUP(B163,'LOC FINAL with new Themes'!A:M,9,0)","v":0},{"$f":"VLOOKUP(B163,'LOC FINAL with new Themes'!A:M,10,0)","v":0},{"$f":"VLOOKUP(B163,'LOC FINAL with new Themes'!A:M,11,0)","v":0},{"$f":"VLOOKUP(B163,'LOC FINAL with new Themes'!A:M,12,0)","v":0},{"$f":"VLOOKUP(B163,'LOC FINAL with new Themes'!A:M,13,0)","v":0}]
[null,"State Legislative District (Upper Chamber) (2010 Census)","State Legislative District (Upper Chamber) (2010 Census)","State Legislative District (Upper Chamber) (2010 Census)","Governmental Units ","DOC-Census","Jennifer Holland","Jennifer.L.Holland@census.gov",null,{"$f":"VLOOKUP(B164,'LOC FINAL with new Themes'!A:M,7,0)","v":0},{"$f":"VLOOKUP(B164,'LOC FINAL with new Themes'!A:M,8,0)","v":0},{"$f":"VLOOKUP(B164,'LOC FINAL with new Themes'!A:M,9,0)","v":0},{"$f":"VLOOKUP(B164,'LOC FINAL with new Themes'!A:M,10,0)","v":0},{"$f":"VLOOKUP(B164,'LOC FINAL with new Themes'!A:M,11,0)","v":0},{"$f":"VLOOKUP(B164,'LOC FINAL with new Themes'!A:M,12,0)","v":0},{"$f":"VLOOKUP(B164,'LOC FINAL with new Themes'!A:M,13,0)","v":0}]
[null,"State Legislative District (Upper Chamber) (Census 2000)","State Legislative District (Upper Chamber) (Census 2000)","State Legislative District (Upper Chamber) (Census 2000)","Governmental Units ","DOC-Census","Jennifer Holland","Jennifer.L.Holland@census.gov",null,{"$f":"VLOOKUP(B165,'LOC FINAL with new Themes'!A:M,7,0)","v":0},{"$f":"VLOOKUP(B165,'LOC FINAL with new Themes'!A:M,8,0)","v":0},{"$f":"VLOOKUP(B165,'LOC FINAL with new Themes'!A:M,9,0)","v":0},{"$f":"VLOOKUP(B165,'LOC FINAL with new Themes'!A:M,10,0)","v":0},{"$f":"VLOOKUP(B165,'LOC FINAL with new Themes'!A:M,11,0)","v":0},{"$f":"VLOOKUP(B165,'LOC FINAL with new Themes'!A:M,12,0)","v":0},{"$f":"VLOOKUP(B165,'LOC FINAL with new Themes'!A:M,13,0)","v":0}]
[null,"Subbarrio (2010 Census)","Subbarrio (2010 Census)","Subbarrio (2010 Census)","Governmental Units ","DOC-Census","Jennifer Holland","Jennifer.L.Holland@census.gov",null,{"$f":"VLOOKUP(B166,'LOC FINAL with new Themes'!A:M,7,0)","v":0},{"$f":"VLOOKUP(B166,'LOC FINAL with new Themes'!A:M,8,0)","v":0},{"$f":"VLOOKUP(B166,'LOC FINAL with new Themes'!A:M,9,0)","v":0},{"$f":"VLOOKUP(B166,'LOC FINAL with new Themes'!A:M,10,0)","v":0},{"$f":"VLOOKUP(B166,'LOC FINAL with new Themes'!A:M,11,0)","v":0},{"$f":"VLOOKUP(B166,'LOC FINAL with new Themes'!A:M,12,0)","v":0},{"$f":"VLOOKUP(B166,'LOC FINAL with new Themes'!A:M,13,0)","v":0}]
[null,"Subbarrio (Census 2000)","Subbarrio (Census 2000)","Subbarrio (Census 2000)","Governmental Units ","DOC-Census","Jennifer Holland","Jennifer.L.Holland@census.gov",null,{"$f":"VLOOKUP(B167,'LOC FINAL with new Themes'!A:M,7,0)","v":0},{"$f":"VLOOKUP(B167,'LOC FINAL with new Themes'!A:M,8,0)","v":0},{"$f":"VLOOKUP(B167,'LOC FINAL with new Themes'!A:M,9,0)","v":0},{"$f":"VLOOKUP(B167,'LOC FINAL with new Themes'!A:M,10,0)","v":0},{"$f":"VLOOKUP(B167,'LOC FINAL with new Themes'!A:M,11,0)","v":0},{"$f":"VLOOKUP(B167,'LOC FINAL with new Themes'!A:M,12,0)","v":0},{"$f":"VLOOKUP(B167,'LOC FINAL with new Themes'!A:M,13,0)","v":0}]
[null,"Urban Area (Corrected Census 2000)","Urban Area (Corrected Census 2000)","Urban Area (Corrected Census 2000)","Governmental Units ","DOC-Census","Jennifer Holland","Jennifer.L.Holland@census.gov",null,{"$f":"VLOOKUP(B168,'LOC FINAL with new Themes'!A:M,7,0)","v":0},{"$f":"VLOOKUP(B168,'LOC FINAL with new Themes'!A:M,8,0)","v":0},{"$f":"VLOOKUP(B168,'LOC FINAL with new Themes'!A:M,9,0)","v":0},{"$f":"VLOOKUP(B168,'LOC FINAL with new Themes'!A:M,10,0)","v":0},{"$f":"VLOOKUP(B168,'LOC FINAL with new Themes'!A:M,11,0)","v":0},{"$f":"VLOOKUP(B168,'LOC FINAL with new Themes'!A:M,12,0)","v":0},{"$f":"VLOOKUP(B168,'LOC FINAL with new Themes'!A:M,13,0)","v":0}]
[null,null,null,{"$f":"SUBTOTAL(3,D137:D168)","v":32},"Governmental Units Count"]
["133 Urban Areas imagery program data","133 Urban Areas imagery program data",null,{"$f":"IF(C170=0,B170,C170)","v":"133 Urban Areas imagery program data"},"Imagery ","DOD-NGA","William Nellist","William.E.Nellist@nga.mil",null,{"$f":"VLOOKUP(B170,'LOC FINAL with new Themes'!A:M,7,0)","v":0},{"$f":"VLOOKUP(B170,'LOC FINAL with new Themes'!A:M,8,0)","v":0},{"$f":"VLOOKUP(B170,'LOC FINAL with new Themes'!A:M,9,0)","v":0},{"$f":"VLOOKUP(B170,'LOC FINAL with new Themes'!A:M,10,0)","v":0},{"$f":"VLOOKUP(B170,'LOC FINAL with new Themes'!A:M,11,0)","v":0},{"$f":"VLOOKUP(B170,'LOC FINAL with new Themes'!A:M,12,0)","v":0},{"$f":"VLOOKUP(B170,'LOC FINAL with new Themes'!A:M,13,0)","v":0}]
[null,"134 Urban Areas imagery program data",null,"134 Urban Areas imagery program data","Imagery ","DOI-USGS","George Lee","gylee@usgs.gov",null,{"$f":"VLOOKUP(B171,'LOC FINAL with new Themes'!A:M,7,0)","v":0},{"$f":"VLOOKUP(B171,'LOC FINAL with new Themes'!A:M,8,0)","v":0},{"$f":"VLOOKUP(B171,'LOC FINAL with new Themes'!A:M,9,0)","v":0},{"$f":"VLOOKUP(B171,'LOC FINAL with new Themes'!A:M,10,0)","v":0},{"$f":"VLOOKUP(B171,'LOC FINAL with new Themes'!A:M,11,0)","v":0},{"$f":"VLOOKUP(B171,'LOC FINAL with new Themes'!A:M,12,0)","v":0},{"$f":"VLOOKUP(B171,'LOC FINAL with new Themes'!A:M,13,0)","v":0}]
["ADS40 Hurricane Response 7.5' Quadrangle Mosaics","ADS40 Hurricane Response 7.5' Quadrangle Mosaics",null,"ADS40 Hurricane Response 7.5' Quadrangle Mosaics","Imagery ","DOI-USGS","Jim Mauck","jmauck@usgs.gov",null,{"$f":"VLOOKUP(B172,'LOC FINAL with new Themes'!A:M,7,0)","v":0},{"$f":"VLOOKUP(B172,'LOC FINAL with new Themes'!A:M,8,0)","v":0},{"$f":"VLOOKUP(B172,'LOC FINAL with new Themes'!A:M,9,0)","v":0},{"$f":"VLOOKUP(B172,'LOC FINAL with new Themes'!A:M,10,0)","v":0},{"$f":"VLOOKUP(B172,'LOC FINAL with new Themes'!A:M,11,0)","v":0},{"$f":"VLOOKUP(B172,'LOC FINAL with new Themes'!A:M,12,0)","v":0},{"$f":"VLOOKUP(B172,'LOC FINAL with new Themes'!A:M,13,0)","v":0}]
["Digital Orthoimage Quarter Quadrangle (DOQQ) Archive","Digital Orthoimage Quarter Quadrangle (DOQQ) Archive",null,"Digital Orthoimage Quarter Quadrangle (DOQQ) Archive","Imagery ","DOI-USGS",null,null,null,{"$f":"VLOOKUP(B173,'LOC FINAL with new Themes'!A:M,7,0)","v":"DOQQ is static; one data set; this is the POC and data manager. this is the name and maintain three complete with two physically separate on-site and one off-site"},{"$f":"VLOOKUP(B173,'LOC FINAL with new Themes'!A:M,8,0)","v":0},{"$f":"VLOOKUP(B173,'LOC FINAL with new Themes'!A:M,9,0)","v":0},{"$f":"VLOOKUP(B173,'LOC FINAL with new Themes'!A:M,10,0)","v":0},{"$f":"VLOOKUP(B173,'LOC FINAL with new Themes'!A:M,11,0)","v":0},{"$f":"VLOOKUP(B173,'LOC FINAL with new Themes'!A:M,12,0)","v":0},{"$f":"VLOOKUP(B173,'LOC FINAL with new Themes'!A:M,13,0)","v":"S"}]
["Emergency Response Imagery","Emergency Response Imagery","Emergency Response Imagery","Emergency Response Imagery","Imagery ","DOC-NOAA","Mike Aslaksen","mike.Aslaksen@noaa.gov",null,{"$f":"VLOOKUP(B174,'LOC FINAL with new Themes'!A:M,7,0)","v":"20-Multiple      "},{"$f":"VLOOKUP(B174,'LOC FINAL with new Themes'!A:M,8,0)","v":"No"},{"$f":"VLOOKUP(B174,'LOC FINAL with new Themes'!A:M,9,0)","v":"Yes - email reply from Jon Sellars Jon.Sellars@noaa.gov"},{"$f":"VLOOKUP(B174,'LOC FINAL with new Themes'!A:M,10,0)","v":"- Same for the forest frag."},{"$f":"VLOOKUP(B174,'LOC FINAL with new Themes'!A:M,11,0)","v":"Our data can be accessed through the following links: http://storms.ngs.noaagov/eri_page/index.html Gulf Oil Spill:\nhttp://hdds.usgs.gov/hdds2/pub/data/disaster/201004_Oilspill_GulfOfMexico/data/AERIAL_NOAA\nhttp://hdds.usgs.gov/hdds2/pub/data/disaster/201004_Oilspill_GulfOfMexico/data/AERIAL_NOAA_MOSAIC  Haiti Earthquake:\nhttp://hdds.usgs.gov/hdds2/pub/data/disaster/201001_Earthquake_Haiti/data/AERIAL_NOAA\nhttp://hdds.usgs.gov/hdds2/pub/data/disaster/201001_Earthquake_Haiti/data/AERIAL_NOAA_ORTHO\nMexico Earthquake:\nhttp://hdds.usgs.gov/hdds2/pub/data/disaster/201004_Earthquake_Mexico/data/AERIAL_NOAA_MOSAIC \n\n"},{"$f":"VLOOKUP(B174,'LOC FINAL with new Themes'!A:M,12,0)","v":"Described by storm name, event or location."},{"$f":"VLOOKUP(B174,'LOC FINAL with new Themes'!A:M,13,0)","v":"M "}]
[null,null,"Fire, Detection: AVHRR FIMMA , GOES WF-ABBA","Fire, Detection: AVHRR FIMMA , GOES WF-ABBA","Imagery ","USDA"]
["Landsat geometric/terrain corrected level 1T","Landsat geometric/terrain corrected level 1T","Landsat Terrain Corrected Scenes","Landsat Terrain Corrected Scenes","Imagery ","DOI-USGS","Kristi Kline","kkline@usgs.gov",null,{"$f":"VLOOKUP(B176,'LOC FINAL with new Themes'!A:M,7,0)","v":"Landsat updates daily; a series of data sets; this is the POC and data manager; this is the name and maintain three complete with two physically separate on-site and one off-site"},{"$f":"VLOOKUP(B176,'LOC FINAL with new Themes'!A:M,8,0)","v":0},{"$f":"VLOOKUP(B176,'LOC FINAL with new Themes'!A:M,9,0)","v":0},{"$f":"VLOOKUP(B176,'LOC FINAL with new Themes'!A:M,10,0)","v":0},{"$f":"VLOOKUP(B176,'LOC FINAL with new Themes'!A:M,11,0)","v":0},{"$f":"VLOOKUP(B176,'LOC FINAL with new Themes'!A:M,12,0)","v":0},{"$f":"VLOOKUP(B176,'LOC FINAL with new Themes'!A:M,13,0)","v":"S"}]
[null,null,"National  Orthoimagery Dataset - National Map","National  Orthoimagery Dataset - National Map","Imagery ","DOI-USGS"]
["National Aerial Photography Program (NAPP) Data Archive","National Aerial Photography Program (NAPP) Data Archive",null,"National Aerial Photography Program (NAPP) Data Archive","Imagery ","DOI-USGS","Wayne Miller","wamiller@usgs.gov",null,{"$f":"VLOOKUP(B178,'LOC FINAL with new Themes'!A:M,7,0)","v":"NAPP is static; one data set; this is the POC and data manager; this is the name and maintain three complete with two physically separate on-site and one off-site "},{"$f":"VLOOKUP(B178,'LOC FINAL with new Themes'!A:M,8,0)","v":0},{"$f":"VLOOKUP(B178,'LOC FINAL with new Themes'!A:M,9,0)","v":0},{"$f":"VLOOKUP(B178,'LOC FINAL with new Themes'!A:M,10,0)","v":0},{"$f":"VLOOKUP(B178,'LOC FINAL with new Themes'!A:M,11,0)","v":0},{"$f":"VLOOKUP(B178,'LOC FINAL with new Themes'!A:M,12,0)","v":0},{"$f":"VLOOKUP(B178,'LOC FINAL with new Themes'!A:M,13,0)","v":"S"}]
["National Agriculture Imagery Program Data","National Agriculture Imagery Program Data","National Agriculture Imagery Program (NAIP) Archive","National Agriculture Imagery Program (NAIP) Archive","Imagery ","DOI-USGS","Shirley Hall","shirley.hall@wdc.usda.gov",null,{"$f":"VLOOKUP(B179,'LOC FINAL with new Themes'!A:M,7,0)","v":"Shirley identified Dan Good as new contact 'daniel.good@wdc.usda.gov' - need to follow up with either or both"},{"$f":"VLOOKUP(B179,'LOC FINAL with new Themes'!A:M,8,0)","v":0},{"$f":"VLOOKUP(B179,'LOC FINAL with new Themes'!A:M,9,0)","v":0},{"$f":"VLOOKUP(B179,'LOC FINAL with new Themes'!A:M,10,0)","v":0},{"$f":"VLOOKUP(B179,'LOC FINAL with new Themes'!A:M,11,0)","v":0},{"$f":"VLOOKUP(B179,'LOC FINAL with new Themes'!A:M,12,0)","v":0},{"$f":"VLOOKUP(B179,'LOC FINAL with new Themes'!A:M,13,0)","v":0}]
["National Map Orthoimagery Database (TNM Seamless Server) ","National Map Orthoimagery Database (TNM Seamless Server) ",null,"National Map Orthoimagery Database (TNM Seamless Server) ","Imagery ","DOI-USGS","George Lee","gylee@usgs.gov",null,{"$f":"VLOOKUP(B180,'LOC FINAL with new Themes'!A:M,7,0)","v":0},{"$f":"VLOOKUP(B180,'LOC FINAL with new Themes'!A:M,8,0)","v":0},{"$f":"VLOOKUP(B180,'LOC FINAL with new Themes'!A:M,9,0)","v":0},{"$f":"VLOOKUP(B180,'LOC FINAL with new Themes'!A:M,10,0)","v":0},{"$f":"VLOOKUP(B180,'LOC FINAL with new Themes'!A:M,11,0)","v":0},{"$f":"VLOOKUP(B180,'LOC FINAL with new Themes'!A:M,12,0)","v":0},{"$f":"VLOOKUP(B180,'LOC FINAL with new Themes'!A:M,13,0)","v":0}]
[null,null,"Satellite Imagery Archive","Satellite Imagery Archive","Imagery ","USDA-FSA"]
[null,null,null,{"$f":"SUBTOTAL(3,D170:D181)","v":12},"Imagery  Count"]
[null,null,"Crops: Cropland Data Layer",{"$f":"IF(C183=0,B183,C183)","v":"Crops: Cropland Data Layer"},"Land Use-Land Cover ","USDA-NASS"]
[null,null,"Earth Cover, Land: MODIS-based Land Products","Earth Cover, Land: MODIS-based Land Products","Land Use-Land Cover ","USDA -FS (Along with USGS)"]
[null,null,"Earth Cover, Vegetation, Forest: Forest Biomass, Types, Type Groups","Earth Cover, Vegetation, Forest: Forest Biomass, Types, Type Groups","Land Use-Land Cover ","USDA-FS"]
[null,null,"Earth Cover, Vegetation: Percent Forest Canopy","Earth Cover, Vegetation: Percent Forest Canopy","Land Use-Land Cover ","USDA-FS"]
[null,null,"Fire Severity: Monitoring Trends in Burn Severity (MTBS)","Fire Severity: Monitoring Trends in Burn Severity (MTBS)","Land Use-Land Cover ","USDA -FS (Along with USGS)"]
[null,null,"Fire, Detection: Daily Active Fire Mapping","Fire, Detection: Daily Active Fire Mapping","Land Use-Land Cover ","USDA"]
[null,null,"Land Cover Strata Dataset","Land Cover Strata Dataset","Land Use-Land Cover ","USDA-NASS"]
["LANDFIRE Dataset","LANDFIRE Dataset","Land Fire Dataset","Land Fire Dataset","Land Use-Land Cover ",null,null,0,null,{"$f":"VLOOKUP(B190,'LOC FINAL with new Themes'!A:M,7,0)","v":0},{"$f":"VLOOKUP(B190,'LOC FINAL with new Themes'!A:M,8,0)","v":0},{"$f":"VLOOKUP(B190,'LOC FINAL with new Themes'!A:M,9,0)","v":0},{"$f":"VLOOKUP(B190,'LOC FINAL with new Themes'!A:M,10,0)","v":0},{"$f":"VLOOKUP(B190,'LOC FINAL with new Themes'!A:M,11,0)","v":0},{"$f":"VLOOKUP(B190,'LOC FINAL with new Themes'!A:M,12,0)","v":0},{"$f":"VLOOKUP(B190,'LOC FINAL with new Themes'!A:M,13,0)","v":0}]
["National Land Cover Dataset (NLCD)","National Land Cover Dataset (NLCD)","National Land Cover Dataset - GIRAS - 1975","National Land Cover Dataset - GIRAS - 1975","Land Use-Land Cover ","DOI-USGS","Colin Homer","homer@usgs.gov",null,{"$f":"VLOOKUP(B191,'LOC FINAL with new Themes'!A:M,7,0)","v":"The table below summarizes NLCD products available for download from the MRLC website http://www.mrlc.gov/ "},{"$f":"VLOOKUP(B191,'LOC FINAL with new Themes'!A:M,8,0)","v":"No.  The \"manager\" of the data is Jon Dewitz. \nContact Information -   \nJon Dewitz\ndewitz@usgs.gov\n605-594-2715\nNLCD Quality Supervisor\nUSGS Earth Resources Observation and Science Center (EROS)\nMundt Federal Building\n47914 252nd St.\nSioux Falls, SD 57198\nfax 605-594-6529\n"},{"$f":"VLOOKUP(B191,'LOC FINAL with new Themes'!A:M,9,0)","v":"Joyce Fry is the POC. \nContact information - \nJoyce Fry, Geographer\nUnited States Geological Survey (USGS)\nEarth Resources Observation and  Science (EROS) Center\nMundt Federal Building\n47914 252nd Street\nSioux Falls, South Dakota 57198\n(P)  605.594.2739\n(F)  605.594.6529\n(e)  jfry@usgs.gov \n"},{"$f":"VLOOKUP(B191,'LOC FINAL with new Themes'!A:M,10,0)","v":"Every 5 years"},{"$f":"VLOOKUP(B191,'LOC FINAL with new Themes'!A:M,11,0)","v":"Yes, there is an archive/backup of the dataset through the EROS Long Term Archive (LTA) group.  I will need to get back to if you need additional information regarding the archive process. "},{"$f":"VLOOKUP(B191,'LOC FINAL with new Themes'!A:M,12,0)","v":"National Land Cover Database or NLCD along with the era number, either 1992 or 2001, or 2006. "},{"$f":"VLOOKUP(B191,'LOC FINAL with new Themes'!A:M,13,0)","v":"S"}]
[null,null,"National Land Cover Dataset - National Map","National Land Cover Dataset - National Map","Land Use-Land Cover ","DOI-USGS"]
[null,null,"National Land Cover Dataset - National Map - 1991","National Land Cover Dataset - National Map - 1991","Land Use-Land Cover ","DOI-USGS"]
[null,null,"National Land Cover Dataset - National Map - 2001","National Land Cover Dataset - National Map - 2001","Land Use-Land Cover ","DOI-USGS"]
[null,null,"National Land Cover Dataset - National Map 2006","National Land Cover Dataset - National Map 2006","Land Use-Land Cover ","DOI-USGS"]
["National Land Cover Dataset (NLCD)","National Land Cover Dataset (NLCD)","National Land Cover Dataset (NLCD)","National Land Cover Dataset (NLCD)","Land Use-Land Cover ","DOI-USGS","Colin Homer","homer@usgs.gov",null,{"$f":"VLOOKUP(B196,'LOC FINAL with new Themes'!A:M,7,0)","v":"The table below summarizes NLCD products available for download from the MRLC website http://www.mrlc.gov/ "},{"$f":"VLOOKUP(B196,'LOC FINAL with new Themes'!A:M,8,0)","v":"No.  The \"manager\" of the data is Jon Dewitz. \nContact Information -   \nJon Dewitz\ndewitz@usgs.gov\n605-594-2715\nNLCD Quality Supervisor\nUSGS Earth Resources Observation and Science Center (EROS)\nMundt Federal Building\n47914 252nd St.\nSioux Falls, SD 57198\nfax 605-594-6529\n"},{"$f":"VLOOKUP(B196,'LOC FINAL with new Themes'!A:M,9,0)","v":"Joyce Fry is the POC. \nContact information - \nJoyce Fry, Geographer\nUnited States Geological Survey (USGS)\nEarth Resources Observation and  Science (EROS) Center\nMundt Federal Building\n47914 252nd Street\nSioux Falls, South Dakota 57198\n(P)  605.594.2739\n(F)  605.594.6529\n(e)  jfry@usgs.gov \n"},{"$f":"VLOOKUP(B196,'LOC FINAL with new Themes'!A:M,10,0)","v":"Every 5 years"},{"$f":"VLOOKUP(B196,'LOC FINAL with new Themes'!A:M,11,0)","v":"Yes, there is an archive/backup of the dataset through the EROS Long Term Archive (LTA) group.  I will need to get back to if you need additional information regarding the archive process. "},{"$f":"VLOOKUP(B196,'LOC FINAL with new Themes'!A:M,12,0)","v":"National Land Cover Database or NLCD along with the era number, either 1992 or 2001, or 2006. "},{"$f":"VLOOKUP(B196,'LOC FINAL with new Themes'!A:M,13,0)","v":"S"}]
[null,null,"National Land Cover Percent Canopy - National Map - 1991","National Land Cover Percent Canopy - National Map - 1991","Land Use-Land Cover ","DOI-USGS"]
[null,null,"National Land Cover Percent Imperviousness - National Map - 2001","National Land Cover Percent Imperviousness - National Map - 2001","Land Use-Land Cover ","DOI-USGS"]
[null,null,"National Land Cover Percent Imperviousness - National Map - 2006","National Land Cover Percent Imperviousness - National Map - 2006","Land Use-Land Cover ","DOI-USGS"]
["National Parks Data","National Parks Data","National Parks Data","National Parks Data","Land Use-Land Cover ","DOI-NPS","Roger Johnson ","Roger_M_Johnson@nps.gov",null,{"$f":"VLOOKUP(B200,'LOC FINAL with new Themes'!A:M,7,0)","v":"undeliverable email- neeed to identify new contact"},{"$f":"VLOOKUP(B200,'LOC FINAL with new Themes'!A:M,8,0)","v":0},{"$f":"VLOOKUP(B200,'LOC FINAL with new Themes'!A:M,9,0)","v":0},{"$f":"VLOOKUP(B200,'LOC FINAL with new Themes'!A:M,10,0)","v":0},{"$f":"VLOOKUP(B200,'LOC FINAL with new Themes'!A:M,11,0)","v":0},{"$f":"VLOOKUP(B200,'LOC FINAL with new Themes'!A:M,12,0)","v":0},{"$f":"VLOOKUP(B200,'LOC FINAL with new Themes'!A:M,13,0)","v":0}]
[null,null,null,{"$f":"SUBTOTAL(3,D183:D200)","v":18},"Land Use-Land Cover  Count"]
["Assisted Housing (census geography or point-based) see http://www.huduser.org/picture2000/","Assisted Housing (census geography or point-based)",null,{"$f":"IF(C202=0,B202,C202)","v":"Assisted Housing (census geography or point-based)"},"Real Property","HUD","Jon Sperling","jon.sperling@hud.gov",null,{"$f":"VLOOKUP(B202,'LOC FINAL with new Themes'!A:M,7,0)","v":0},{"$f":"VLOOKUP(B202,'LOC FINAL with new Themes'!A:M,8,0)","v":0},{"$f":"VLOOKUP(B202,'LOC FINAL with new Themes'!A:M,9,0)","v":0},{"$f":"VLOOKUP(B202,'LOC FINAL with new Themes'!A:M,10,0)","v":0},{"$f":"VLOOKUP(B202,'LOC FINAL with new Themes'!A:M,11,0)","v":0},{"$f":"VLOOKUP(B202,'LOC FINAL with new Themes'!A:M,12,0)","v":0},{"$f":"VLOOKUP(B202,'LOC FINAL with new Themes'!A:M,13,0)","v":0}]
["Enterprise Zones, Empowerment Communities, Revitalization Areas, Qualified Census Tracts, etc.  (census geography based)","Enterprise Zones, Empowerment Communities, Revitalization Areas, Qualified Census Tracts, etc.  (census geography based)",null,"Enterprise Zones, Empowerment Communities, Revitalization Areas, Qualified Census Tracts, etc.  (census geography based)","Real Property","HUD","Jon Sperling","jon.sperling@hud.gov",null,{"$f":"VLOOKUP(B203,'LOC FINAL with new Themes'!A:M,7,0)","v":0},{"$f":"VLOOKUP(B203,'LOC FINAL with new Themes'!A:M,8,0)","v":0},{"$f":"VLOOKUP(B203,'LOC FINAL with new Themes'!A:M,9,0)","v":0},{"$f":"VLOOKUP(B203,'LOC FINAL with new Themes'!A:M,10,0)","v":0},{"$f":"VLOOKUP(B203,'LOC FINAL with new Themes'!A:M,11,0)","v":0},{"$f":"VLOOKUP(B203,'LOC FINAL with new Themes'!A:M,12,0)","v":0},{"$f":"VLOOKUP(B203,'LOC FINAL with new Themes'!A:M,13,0)","v":0}]
["Federal building location point ","Federal building location point ","Federal building location point ","Federal building location point ","Real Property ","GSA","Sandra Downie","sandra.downie@gsa.gov",null,{"$f":"VLOOKUP(B204,'LOC FINAL with new Themes'!A:M,7,0)","v":0},{"$f":"VLOOKUP(B204,'LOC FINAL with new Themes'!A:M,8,0)","v":0},{"$f":"VLOOKUP(B204,'LOC FINAL with new Themes'!A:M,9,0)","v":0},{"$f":"VLOOKUP(B204,'LOC FINAL with new Themes'!A:M,10,0)","v":0},{"$f":"VLOOKUP(B204,'LOC FINAL with new Themes'!A:M,11,0)","v":0},{"$f":"VLOOKUP(B204,'LOC FINAL with new Themes'!A:M,12,0)","v":0},{"$f":"VLOOKUP(B204,'LOC FINAL with new Themes'!A:M,13,0)","v":0}]
["Federal building location polygon","Federal building location polygon","Federal building location polygon","Federal building location polygon","Real Property ","GSA","Sandra Downie","sandra.downie@gsa.gov",null,{"$f":"VLOOKUP(B205,'LOC FINAL with new Themes'!A:M,7,0)","v":0},{"$f":"VLOOKUP(B205,'LOC FINAL with new Themes'!A:M,8,0)","v":0},{"$f":"VLOOKUP(B205,'LOC FINAL with new Themes'!A:M,9,0)","v":0},{"$f":"VLOOKUP(B205,'LOC FINAL with new Themes'!A:M,10,0)","v":0},{"$f":"VLOOKUP(B205,'LOC FINAL with new Themes'!A:M,11,0)","v":0},{"$f":"VLOOKUP(B205,'LOC FINAL with new Themes'!A:M,12,0)","v":0},{"$f":"VLOOKUP(B205,'LOC FINAL with new Themes'!A:M,13,0)","v":0}]
["Federal land area facility location point","Federal land area facility location point","Federal land area facility location point","Federal land area facility location point","Real Property ","GSA","Sandra Downie","sandra.downie@gsa.gov",null,{"$f":"VLOOKUP(B206,'LOC FINAL with new Themes'!A:M,7,0)","v":0},{"$f":"VLOOKUP(B206,'LOC FINAL with new Themes'!A:M,8,0)","v":0},{"$f":"VLOOKUP(B206,'LOC FINAL with new Themes'!A:M,9,0)","v":0},{"$f":"VLOOKUP(B206,'LOC FINAL with new Themes'!A:M,10,0)","v":0},{"$f":"VLOOKUP(B206,'LOC FINAL with new Themes'!A:M,11,0)","v":0},{"$f":"VLOOKUP(B206,'LOC FINAL with new Themes'!A:M,12,0)","v":0},{"$f":"VLOOKUP(B206,'LOC FINAL with new Themes'!A:M,13,0)","v":0}]
["Federal land area facility location polygon","Federal land area facility location polygon","Federal land area facility location polygon","Federal land area facility location polygon","Real Property ","GSA","Sandra Downie","sandra.downie@gsa.gov",null,{"$f":"VLOOKUP(B207,'LOC FINAL with new Themes'!A:M,7,0)","v":0},{"$f":"VLOOKUP(B207,'LOC FINAL with new Themes'!A:M,8,0)","v":0},{"$f":"VLOOKUP(B207,'LOC FINAL with new Themes'!A:M,9,0)","v":0},{"$f":"VLOOKUP(B207,'LOC FINAL with new Themes'!A:M,10,0)","v":0},{"$f":"VLOOKUP(B207,'LOC FINAL with new Themes'!A:M,11,0)","v":0},{"$f":"VLOOKUP(B207,'LOC FINAL with new Themes'!A:M,12,0)","v":0},{"$f":"VLOOKUP(B207,'LOC FINAL with new Themes'!A:M,13,0)","v":0}]
["National Map - Structures Dataset","National Map - Structures Dataset","National Structures Dataset - National Map","National Structures Dataset - National Map","Real Property ","DOI-USGS","Paul Wiese","pmwiese@usgs.gov",null,{"$f":"VLOOKUP(B208,'LOC FINAL with new Themes'!A:M,7,0)","v":"National Map updates monthly; a series of data sets; this is the POC and data manager; this is the name and maintain three complete with two physically separate on-site and one off-site"},{"$f":"VLOOKUP(B208,'LOC FINAL with new Themes'!A:M,8,0)","v":0},{"$f":"VLOOKUP(B208,'LOC FINAL with new Themes'!A:M,9,0)","v":0},{"$f":"VLOOKUP(B208,'LOC FINAL with new Themes'!A:M,10,0)","v":0},{"$f":"VLOOKUP(B208,'LOC FINAL with new Themes'!A:M,11,0)","v":0},{"$f":"VLOOKUP(B208,'LOC FINAL with new Themes'!A:M,12,0)","v":0},{"$f":"VLOOKUP(B208,'LOC FINAL with new Themes'!A:M,13,0)","v":"S"}]
[null,null,null,{"$f":"SUBTOTAL(3,D202:D208)","v":7},"Real Property Count"]
[null,"Military Installation","Military Installation",{"$f":"IF(C210=0,B210,C210)","v":"Military Installation"},"Real Property\nCultural & Demographic Statistics","DOC-Census","Jennifer Holland","Jennifer.L.Holland@census.gov",null,{"$f":"VLOOKUP(B210,'LOC FINAL with new Themes'!A:M,7,0)","v":0},{"$f":"VLOOKUP(B210,'LOC FINAL with new Themes'!A:M,8,0)","v":0},{"$f":"VLOOKUP(B210,'LOC FINAL with new Themes'!A:M,9,0)","v":0},{"$f":"VLOOKUP(B210,'LOC FINAL with new Themes'!A:M,10,0)","v":0},{"$f":"VLOOKUP(B210,'LOC FINAL with new Themes'!A:M,11,0)","v":0},{"$f":"VLOOKUP(B210,'LOC FINAL with new Themes'!A:M,12,0)","v":0},{"$f":"VLOOKUP(B210,'LOC FINAL with new Themes'!A:M,13,0)","v":0}]
[null,null,null,{"$f":"SUBTOTAL(3,D210:D210)","v":1},"Real Property\nCultural & Demographic Statistics Count"]
["Common Resource Area (CRA)","Common Resource Area (CRA)","Common Resource Area (CRA)",{"$f":"IF(C212=0,B212,C212)","v":"Common Resource Area (CRA)"},"Soils ","USDA-NRCS","David Hoover","David.Hoover@wdc.usda.gov",null,{"$f":"VLOOKUP(B212,'LOC FINAL with new Themes'!A:M,7,0)","v":0},{"$f":"VLOOKUP(B212,'LOC FINAL with new Themes'!A:M,8,0)","v":0},{"$f":"VLOOKUP(B212,'LOC FINAL with new Themes'!A:M,9,0)","v":0},{"$f":"VLOOKUP(B212,'LOC FINAL with new Themes'!A:M,10,0)","v":0},{"$f":"VLOOKUP(B212,'LOC FINAL with new Themes'!A:M,11,0)","v":0},{"$f":"VLOOKUP(B212,'LOC FINAL with new Themes'!A:M,12,0)","v":0},{"$f":"VLOOKUP(B212,'LOC FINAL with new Themes'!A:M,13,0)","v":0}]
["Major Land Resource Area (MLRA)","Major Land Resource Area (MLRA)","Major Land Resource Area (MLRA)","Major Land Resource Area (MLRA)","Soils ","USDA-NRCS","David Hoover","David.Hoover@wdc.usda.gov",null,{"$f":"VLOOKUP(B213,'LOC FINAL with new Themes'!A:M,7,0)","v":"undeliverable email- neeed to identify new contact"},{"$f":"VLOOKUP(B213,'LOC FINAL with new Themes'!A:M,8,0)","v":0},{"$f":"VLOOKUP(B213,'LOC FINAL with new Themes'!A:M,9,0)","v":0},{"$f":"VLOOKUP(B213,'LOC FINAL with new Themes'!A:M,10,0)","v":0},{"$f":"VLOOKUP(B213,'LOC FINAL with new Themes'!A:M,11,0)","v":0},{"$f":"VLOOKUP(B213,'LOC FINAL with new Themes'!A:M,12,0)","v":0},{"$f":"VLOOKUP(B213,'LOC FINAL with new Themes'!A:M,13,0)","v":0}]
["National Cooperative Soil Survey (NCSS)","National Cooperative Soil Survey (NCSS)","National Cooperative Soil Characterization Database","National Cooperative Soil Characterization Database","Soils ","USDA-NRCS","Larry West","Larry.West@lin.usda.gov",null,{"$f":"VLOOKUP(B214,'LOC FINAL with new Themes'!A:M,7,0)","v":"We have our Soil Survey Geographic database called SSURGO which is made available through the following sites:\nWeb Soil Survey:    http://websoilsurvey.nrcs.usda.gov/app/\nSoil Data Mart:     http://soildatamart.nrcs.usda.gov/\nSoil Data Access:   http://sdmdataaccess.nrcs.usda.gov\n\nWe also have: \nLab Soil Survey Lab Characterization Data (Point data): http://ssldata.nrcs.usda.gov/ aka NCSS Characterization Database\nSoil Series Classification Database http://soils.usda.gov/technical/classification/scfile/index.html\nU.S. General Soil Map (STATSGO2)\nMajor Land Resource Area (MLRA) http://soils.usda.gov/survey/geography/mlra/\n             Common Resource Areas (CRA) \n\n"},{"$f":"VLOOKUP(B214,'LOC FINAL with new Themes'!A:M,8,0)","v":"? No, I am a Program Manager. Various other people have roles of maintaining the data. "},{"$f":"VLOOKUP(B214,'LOC FINAL with new Themes'!A:M,9,0)","v":"I am a general information POC for all things soil survey related. For more technical aspects on our data sets a good POC would be David Hoover, National Leader for Soil Business Systems or someone on his staff. His contact number is 402-437-4013 or email at david.hoover@lin.usda.gov. "},{"$f":"VLOOKUP(B214,'LOC FINAL with new Themes'!A:M,10,0)","v":"Our data sets are constantly being updated by about 1000 soil and plant scientists in several agencies. "},{"$f":"VLOOKUP(B214,'LOC FINAL with new Themes'!A:M,11,0)","v":"Our data sets are archived, but I don’t know how far back. I will have to get back to you on that. It is my understanding that archived sets are not easily accessible.  We have archive data for SSURGO (Soil Data Warehouse from mid 2000’s or earlier – Jim Fortner or Jennifer Sweet may be able to confirm or provide more detail; We also have archive data for STATSGO (circa 1994;1996) and for MLRA (1978; 2001; 2006) in local holdings.  Not sure about lab data archives, Henry Ferguson or Larry West can confirm.  "},{"$f":"VLOOKUP(B214,'LOC FINAL with new Themes'!A:M,12,0)","v":"? the Lab Characterization Data is also known as the “NCSS Characterization Database”\nAdded Common Resource Area geographic database (CRA)."},{"$f":"VLOOKUP(B214,'LOC FINAL with new Themes'!A:M,13,0)","v":"P"}]
["Soil Survey Geographic Database (SSURGO)","Soil Survey Geographic Database (SSURGO)","Soil Survey Geographic Database (SSURGO)","Soil Survey Geographic Database (SSURGO)","Soils ","USDA-NRCS","David Hoover","David.Hoover@wdc.usda.gov",null,{"$f":"VLOOKUP(B215,'LOC FINAL with new Themes'!A:M,7,0)","v":"undeliverable email- neeed to identify new contact"},{"$f":"VLOOKUP(B215,'LOC FINAL with new Themes'!A:M,8,0)","v":0},{"$f":"VLOOKUP(B215,'LOC FINAL with new Themes'!A:M,9,0)","v":0},{"$f":"VLOOKUP(B215,'LOC FINAL with new Themes'!A:M,10,0)","v":0},{"$f":"VLOOKUP(B215,'LOC FINAL with new Themes'!A:M,11,0)","v":0},{"$f":"VLOOKUP(B215,'LOC FINAL with new Themes'!A:M,12,0)","v":0},{"$f":"VLOOKUP(B215,'LOC FINAL with new Themes'!A:M,13,0)","v":0}]
["U.S. General Soil Map (STATSGO2)","U.S. General Soil Map (STATSGO2)","U.S. General Soil Map (STATSGO2)","U.S. General Soil Map (STATSGO2)","Soils ","USDA-NRCS","David Hoover","David.Hoover@wdc.usda.gov",null,{"$f":"VLOOKUP(B216,'LOC FINAL with new Themes'!A:M,7,0)","v":"undeliverable email- neeed to identify new contact"},{"$f":"VLOOKUP(B216,'LOC FINAL with new Themes'!A:M,8,0)","v":0},{"$f":"VLOOKUP(B216,'LOC FINAL with new Themes'!A:M,9,0)","v":0},{"$f":"VLOOKUP(B216,'LOC FINAL with new Themes'!A:M,10,0)","v":0},{"$f":"VLOOKUP(B216,'LOC FINAL with new Themes'!A:M,11,0)","v":0},{"$f":"VLOOKUP(B216,'LOC FINAL with new Themes'!A:M,12,0)","v":0},{"$f":"VLOOKUP(B216,'LOC FINAL with new Themes'!A:M,13,0)","v":0}]
[null,null,null,{"$f":"SUBTOTAL(3,D212:D216)","v":5},"Soils  Count"]
[null,"Address Range-Feature Name Relationship File","Address Range-Feature Name Relationship File",{"$f":"IF(C218=0,B218,C218)","v":"Address Range-Feature Name Relationship File"},"Transportation ","DOC-Census","Jennifer Holland","Jennifer.L.Holland@census.gov",null,{"$f":"VLOOKUP(B218,'LOC FINAL with new Themes'!A:M,7,0)","v":0},{"$f":"VLOOKUP(B218,'LOC FINAL with new Themes'!A:M,8,0)","v":0},{"$f":"VLOOKUP(B218,'LOC FINAL with new Themes'!A:M,9,0)","v":0},{"$f":"VLOOKUP(B218,'LOC FINAL with new Themes'!A:M,10,0)","v":0},{"$f":"VLOOKUP(B218,'LOC FINAL with new Themes'!A:M,11,0)","v":0},{"$f":"VLOOKUP(B218,'LOC FINAL with new Themes'!A:M,12,0)","v":0},{"$f":"VLOOKUP(B218,'LOC FINAL with new Themes'!A:M,13,0)","v":0}]
[null,"Address Ranges Relationship File","Address Ranges Relationship File","Address Ranges Relationship File","Transportation ","DOC-Census","Jennifer Holland","Jennifer.L.Holland@census.gov",null,{"$f":"VLOOKUP(B219,'LOC FINAL with new Themes'!A:M,7,0)","v":0},{"$f":"VLOOKUP(B219,'LOC FINAL with new Themes'!A:M,8,0)","v":0},{"$f":"VLOOKUP(B219,'LOC FINAL with new Themes'!A:M,9,0)","v":0},{"$f":"VLOOKUP(B219,'LOC FINAL with new Themes'!A:M,10,0)","v":0},{"$f":"VLOOKUP(B219,'LOC FINAL with new Themes'!A:M,11,0)","v":0},{"$f":"VLOOKUP(B219,'LOC FINAL with new Themes'!A:M,12,0)","v":0},{"$f":"VLOOKUP(B219,'LOC FINAL with new Themes'!A:M,13,0)","v":0}]
[null,"All Roads","All Roads","All Roads","Transportation ","DOC-Census","Jennifer Holland","Jennifer.L.Holland@census.gov",null,{"$f":"VLOOKUP(B220,'LOC FINAL with new Themes'!A:M,7,0)","v":0},{"$f":"VLOOKUP(B220,'LOC FINAL with new Themes'!A:M,8,0)","v":0},{"$f":"VLOOKUP(B220,'LOC FINAL with new Themes'!A:M,9,0)","v":0},{"$f":"VLOOKUP(B220,'LOC FINAL with new Themes'!A:M,10,0)","v":0},{"$f":"VLOOKUP(B220,'LOC FINAL with new Themes'!A:M,11,0)","v":0},{"$f":"VLOOKUP(B220,'LOC FINAL with new Themes'!A:M,12,0)","v":0},{"$f":"VLOOKUP(B220,'LOC FINAL with new Themes'!A:M,13,0)","v":0}]
["Inland Electronic Navigation Charts (IENC)","Inland Electronic Navigation Charts (IENC)","Inland Electronic Navigation Charts (IENC)","Inland Electronic Navigation Charts (IENC)","Transportation ","DOD-USACE","Joel Schlagel","Joel.D.Schlagel@erdc.usace.army.mil ",null,{"$f":"VLOOKUP(B221,'LOC FINAL with new Themes'!A:M,7,0)","v":0},{"$f":"VLOOKUP(B221,'LOC FINAL with new Themes'!A:M,8,0)","v":0},{"$f":"VLOOKUP(B221,'LOC FINAL with new Themes'!A:M,9,0)","v":0},{"$f":"VLOOKUP(B221,'LOC FINAL with new Themes'!A:M,10,0)","v":0},{"$f":"VLOOKUP(B221,'LOC FINAL with new Themes'!A:M,11,0)","v":0},{"$f":"VLOOKUP(B221,'LOC FINAL with new Themes'!A:M,12,0)","v":0},{"$f":"VLOOKUP(B221,'LOC FINAL with new Themes'!A:M,13,0)","v":0}]
[null,null,"National Interagency Trails Dataset","National Interagency Trails Dataset","Transportation ","USDA"]
["National Map - Transportation Dataset","National Map - Transportation Dataset","National Transportation Dataset - National Map","National Transportation Dataset - National Map","Transportation ","DOI-USGS","Paul Wiese","pmwiese@usgs.gov",null,{"$f":"VLOOKUP(B223,'LOC FINAL with new Themes'!A:M,7,0)","v":0},{"$f":"VLOOKUP(B223,'LOC FINAL with new Themes'!A:M,8,0)","v":0},{"$f":"VLOOKUP(B223,'LOC FINAL with new Themes'!A:M,9,0)","v":0},{"$f":"VLOOKUP(B223,'LOC FINAL with new Themes'!A:M,10,0)","v":0},{"$f":"VLOOKUP(B223,'LOC FINAL with new Themes'!A:M,11,0)","v":0},{"$f":"VLOOKUP(B223,'LOC FINAL with new Themes'!A:M,12,0)","v":0},{"$f":"VLOOKUP(B223,'LOC FINAL with new Themes'!A:M,13,0)","v":0}]
["NTAD","NTAD","NTAD","NTAD","Transportation ","DOT-BTS","Robert Monniere","robert.monniere@dot.gov",null,{"$f":"VLOOKUP(B224,'LOC FINAL with new Themes'!A:M,7,0)","v":0},{"$f":"VLOOKUP(B224,'LOC FINAL with new Themes'!A:M,8,0)","v":0},{"$f":"VLOOKUP(B224,'LOC FINAL with new Themes'!A:M,9,0)","v":0},{"$f":"VLOOKUP(B224,'LOC FINAL with new Themes'!A:M,10,0)","v":0},{"$f":"VLOOKUP(B224,'LOC FINAL with new Themes'!A:M,11,0)","v":0},{"$f":"VLOOKUP(B224,'LOC FINAL with new Themes'!A:M,12,0)","v":0},{"$f":"VLOOKUP(B224,'LOC FINAL with new Themes'!A:M,13,0)","v":0}]
[null,null,"NTAD (airports)","NTAD (airports)","Transportation ","DOT-BTS"]
[null,null,"NTAD (Rail)","NTAD (Rail)","Transportation ","DOT-BTS"]
["NTAD (TransitLines) ","NTAD (TransitLines) ","NTAD (TransitLines) ","NTAD (TransitLines) ","Transportation ","DOT-BTS","Robert Monniere ","robert.monniere@dot.gov \n",null,{"$f":"VLOOKUP(B227,'LOC FINAL with new Themes'!A:M,7,0)","v":0},{"$f":"VLOOKUP(B227,'LOC FINAL with new Themes'!A:M,8,0)","v":0},{"$f":"VLOOKUP(B227,'LOC FINAL with new Themes'!A:M,9,0)","v":0},{"$f":"VLOOKUP(B227,'LOC FINAL with new Themes'!A:M,10,0)","v":0},{"$f":"VLOOKUP(B227,'LOC FINAL with new Themes'!A:M,11,0)","v":0},{"$f":"VLOOKUP(B227,'LOC FINAL with new Themes'!A:M,12,0)","v":0},{"$f":"VLOOKUP(B227,'LOC FINAL with new Themes'!A:M,13,0)","v":0}]
["NTAD (TransitStation) ","NTAD (TransitStation) ","NTAD (TransitStation) ","NTAD (TransitStation) ","Transportation ","DOT-BTS","Robert Monniere ","robert.monniere@dot.gov ",null,{"$f":"VLOOKUP(B228,'LOC FINAL with new Themes'!A:M,7,0)","v":0},{"$f":"VLOOKUP(B228,'LOC FINAL with new Themes'!A:M,8,0)","v":0},{"$f":"VLOOKUP(B228,'LOC FINAL with new Themes'!A:M,9,0)","v":0},{"$f":"VLOOKUP(B228,'LOC FINAL with new Themes'!A:M,10,0)","v":0},{"$f":"VLOOKUP(B228,'LOC FINAL with new Themes'!A:M,11,0)","v":0},{"$f":"VLOOKUP(B228,'LOC FINAL with new Themes'!A:M,12,0)","v":0},{"$f":"VLOOKUP(B228,'LOC FINAL with new Themes'!A:M,13,0)","v":0}]
[null,"Primary and Secondary Roads","Primary and Secondary Roads",{"$f":"IF(C229=0,#REF!,C229)","v":"Primary and Secondary Roads"},"Transportation ","DOC-Census","Jennifer Holland","Jennifer.L.Holland@census.gov",null,{"$f":"VLOOKUP(B229,'LOC FINAL with new Themes'!A:M,7,0)","v":0},{"$f":"VLOOKUP(B229,'LOC FINAL with new Themes'!A:M,8,0)","v":0},{"$f":"VLOOKUP(B229,'LOC FINAL with new Themes'!A:M,9,0)","v":0},{"$f":"VLOOKUP(B229,'LOC FINAL with new Themes'!A:M,10,0)","v":0},{"$f":"VLOOKUP(B229,'LOC FINAL with new Themes'!A:M,11,0)","v":0},{"$f":"VLOOKUP(B229,'LOC FINAL with new Themes'!A:M,12,0)","v":0},{"$f":"VLOOKUP(B229,'LOC FINAL with new Themes'!A:M,13,0)","v":0}]
[null,"Primary Roads","Primary Roads",{"$f":"IF(C230=0,B230,C230)","v":"Primary Roads"},"Transportation ","DOC-Census","Jennifer Holland","Jennifer.L.Holland@census.gov",null,{"$f":"VLOOKUP(B230,'LOC FINAL with new Themes'!A:M,7,0)","v":0},{"$f":"VLOOKUP(B230,'LOC FINAL with new Themes'!A:M,8,0)","v":0},{"$f":"VLOOKUP(B230,'LOC FINAL with new Themes'!A:M,9,0)","v":0},{"$f":"VLOOKUP(B230,'LOC FINAL with new Themes'!A:M,10,0)","v":0},{"$f":"VLOOKUP(B230,'LOC FINAL with new Themes'!A:M,11,0)","v":0},{"$f":"VLOOKUP(B230,'LOC FINAL with new Themes'!A:M,12,0)","v":0},{"$f":"VLOOKUP(B230,'LOC FINAL with new Themes'!A:M,13,0)","v":0}]
["TIGER (Roads/Rail)","TIGER (Roads/Rail)",null,{"$f":"IF(C231=0,B231,C231)","v":"TIGER (Roads/Rail)"},"Transportation ","DOC-Census","Randy Fusaro","randy.j.fusaro@census.gov",null,{"$f":"VLOOKUP(B231,'LOC FINAL with new Themes'!A:M,7,0)","v":0},{"$f":"VLOOKUP(B231,'LOC FINAL with new Themes'!A:M,8,0)","v":0},{"$f":"VLOOKUP(B231,'LOC FINAL with new Themes'!A:M,9,0)","v":0},{"$f":"VLOOKUP(B231,'LOC FINAL with new Themes'!A:M,10,0)","v":0},{"$f":"VLOOKUP(B231,'LOC FINAL with new Themes'!A:M,11,0)","v":0},{"$f":"VLOOKUP(B231,'LOC FINAL with new Themes'!A:M,12,0)","v":0},{"$f":"VLOOKUP(B231,'LOC FINAL with new Themes'!A:M,13,0)","v":0}]
[null,"Traffic Analysis Zone (Census 2000)","Traffic Analysis Zone (Census 2000)",{"$f":"IF(C232=0,B232,C232)","v":"Traffic Analysis Zone (Census 2000)"},"Transportation ","DOC-Census","Jennifer Holland","Jennifer.L.Holland@census.gov",null,{"$f":"VLOOKUP(B232,'LOC FINAL with new Themes'!A:M,7,0)","v":0},{"$f":"VLOOKUP(B232,'LOC FINAL with new Themes'!A:M,8,0)","v":0},{"$f":"VLOOKUP(B232,'LOC FINAL with new Themes'!A:M,9,0)","v":0},{"$f":"VLOOKUP(B232,'LOC FINAL with new Themes'!A:M,10,0)","v":0},{"$f":"VLOOKUP(B232,'LOC FINAL with new Themes'!A:M,11,0)","v":0},{"$f":"VLOOKUP(B232,'LOC FINAL with new Themes'!A:M,12,0)","v":0},{"$f":"VLOOKUP(B232,'LOC FINAL with new Themes'!A:M,13,0)","v":0}]
[null,null,null,{"$f":"SUBTOTAL(3,D218:D232)","v":15},"Transportation  Count"]
[null,null,"Pipelines",{"$f":"IF(C234=0,B234,C234)","v":"Pipelines"},"Utilities ","DOI-BOEM","Doug Vandegraft","Doug.Vandegraft@boem.gov"]
[null,null,"Platforms",{"$f":"IF(C235=0,B235,C235)","v":"Platforms"},"Utilities ","DOI-MMS","Doug Vandegraft","Doug.Vandegraft@boem.gov"]
[null,null,null,{"$f":"SUBTOTAL(3,D234:D235)","v":2},"Utilities  Count"]
[null,"Area Hydrography (2010 Census)","Area Hydrography (2010 Census)",{"$f":"IF(C237=0,B237,C237)","v":"Area Hydrography (2010 Census)"},"Water -- Inland","DOC-Census","Jennifer Holland","Jennifer.L.Holland@census.gov",null,{"$f":"VLOOKUP(B237,'LOC FINAL with new Themes'!A:M,7,0)","v":0},{"$f":"VLOOKUP(B237,'LOC FINAL with new Themes'!A:M,8,0)","v":0},{"$f":"VLOOKUP(B237,'LOC FINAL with new Themes'!A:M,9,0)","v":0},{"$f":"VLOOKUP(B237,'LOC FINAL with new Themes'!A:M,10,0)","v":0},{"$f":"VLOOKUP(B237,'LOC FINAL with new Themes'!A:M,11,0)","v":0},{"$f":"VLOOKUP(B237,'LOC FINAL with new Themes'!A:M,12,0)","v":0},{"$f":"VLOOKUP(B237,'LOC FINAL with new Themes'!A:M,13,0)","v":0}]
[null,"Linear Water Features","Linear Water Features","Linear Water Features","Water -- Inland","DOC-Census","Jennifer Holland","Jennifer.L.Holland@census.gov",null,{"$f":"VLOOKUP(B238,'LOC FINAL with new Themes'!A:M,7,0)","v":0},{"$f":"VLOOKUP(B238,'LOC FINAL with new Themes'!A:M,8,0)","v":0},{"$f":"VLOOKUP(B238,'LOC FINAL with new Themes'!A:M,9,0)","v":0},{"$f":"VLOOKUP(B238,'LOC FINAL with new Themes'!A:M,10,0)","v":0},{"$f":"VLOOKUP(B238,'LOC FINAL with new Themes'!A:M,11,0)","v":0},{"$f":"VLOOKUP(B238,'LOC FINAL with new Themes'!A:M,12,0)","v":0},{"$f":"VLOOKUP(B238,'LOC FINAL with new Themes'!A:M,13,0)","v":0}]
["National Hydrography Data Set","National Hydrography Dataset","National Hydrography Dataset - National Map","National Hydrography Dataset - National Map","Water -- Inland","DOI-USGS","Jeff Simley","jdsimley@usgs.gov",null,{"$f":"VLOOKUP(B239,'LOC FINAL with new Themes'!A:M,7,0)","v":0},{"$f":"VLOOKUP(B239,'LOC FINAL with new Themes'!A:M,8,0)","v":0},{"$f":"VLOOKUP(B239,'LOC FINAL with new Themes'!A:M,9,0)","v":0},{"$f":"VLOOKUP(B239,'LOC FINAL with new Themes'!A:M,10,0)","v":0},{"$f":"VLOOKUP(B239,'LOC FINAL with new Themes'!A:M,11,0)","v":0},{"$f":"VLOOKUP(B239,'LOC FINAL with new Themes'!A:M,12,0)","v":0},{"$f":"VLOOKUP(B239,'LOC FINAL with new Themes'!A:M,13,0)","v":0}]
["National Inventory of Dams (NID)","National Inventory of Dams (NID)","National Inventory of Dams (NID)","National Inventory of Dams (NID)","Water -- Inland","DOD-USACE","Rebecca Ragon","Rebecca.Ragon@usace.army.mil ",null,{"$f":"VLOOKUP(B240,'LOC FINAL with new Themes'!A:M,7,0)","v":"One single data set"},{"$f":"VLOOKUP(B240,'LOC FINAL with new Themes'!A:M,8,0)","v":"Yes"},{"$f":"VLOOKUP(B240,'LOC FINAL with new Themes'!A:M,9,0)","v":"Yes"},{"$f":"VLOOKUP(B240,'LOC FINAL with new Themes'!A:M,10,0)","v":"Usually every 2 years"},{"$f":"VLOOKUP(B240,'LOC FINAL with new Themes'!A:M,11,0)","v":"Because the NID is updated every 2 years, we do have archived databased datig back to 1994."},{"$f":"VLOOKUP(B240,'LOC FINAL with new Themes'!A:M,12,0)","v":"The official name is National Inventory of Dams (NID) but I have seen the database referenced as the National Dam Inventory"},{"$f":"VLOOKUP(B240,'LOC FINAL with new Themes'!A:M,13,0)","v":"S"}]
["National Levee Database (NLD)","National Levee Database (NLD)","National Levee Database (NLD)","National Levee Database (NLD)","Water -- Inland","DOD-USACE","Bryan Baker","Bryan.E.Baker@usace.army.mil",null,{"$f":"VLOOKUP(B241,'LOC FINAL with new Themes'!A:M,7,0)","v":0},{"$f":"VLOOKUP(B241,'LOC FINAL with new Themes'!A:M,8,0)","v":0},{"$f":"VLOOKUP(B241,'LOC FINAL with new Themes'!A:M,9,0)","v":0},{"$f":"VLOOKUP(B241,'LOC FINAL with new Themes'!A:M,10,0)","v":0},{"$f":"VLOOKUP(B241,'LOC FINAL with new Themes'!A:M,11,0)","v":0},{"$f":"VLOOKUP(B241,'LOC FINAL with new Themes'!A:M,12,0)","v":0},{"$f":"VLOOKUP(B241,'LOC FINAL with new Themes'!A:M,13,0)","v":0}]
[null,null,"National Water Information System (NWIS)- Stream Gage Network","National Water Information System (NWIS)- Stream Gage Locations","Water -- Inland","DOI-USGS"]
[null,null,"National Water Information System (NWIS)- Water Quality Monitoring Stations","National Water Information System (NWIS)- Water Quality Monitoring Stations Locations","Water -- Inland","DOI-USGS"]
["National Wetlands Inventory (NWI) ","National Wetlands Inventory (NWI) ","National Wetlands Inventory (NWI) ","National Wetlands Inventory (NWI) ","Water -- Inland","DOI-FWS","Tom Dahl  ","tom_dahl@fws.gov\n",null,{"$f":"VLOOKUP(B244,'LOC FINAL with new Themes'!A:M,7,0)","v":0},{"$f":"VLOOKUP(B244,'LOC FINAL with new Themes'!A:M,8,0)","v":0},{"$f":"VLOOKUP(B244,'LOC FINAL with new Themes'!A:M,9,0)","v":0},{"$f":"VLOOKUP(B244,'LOC FINAL with new Themes'!A:M,10,0)","v":0},{"$f":"VLOOKUP(B244,'LOC FINAL with new Themes'!A:M,11,0)","v":0},{"$f":"VLOOKUP(B244,'LOC FINAL with new Themes'!A:M,12,0)","v":0},{"$f":"VLOOKUP(B244,'LOC FINAL with new Themes'!A:M,13,0)","v":0}]
[null,"Topological Faces-Area Hydrography Relationship File","Topological Faces-Area Hydrography Relationship File","Topological Faces-Area Hydrography Relationship File","Water -- Inland","DOC-Census","Jennifer Holland","Jennifer.L.Holland@census.gov",null,{"$f":"VLOOKUP(B245,'LOC FINAL with new Themes'!A:M,7,0)","v":0},{"$f":"VLOOKUP(B245,'LOC FINAL with new Themes'!A:M,8,0)","v":0},{"$f":"VLOOKUP(B245,'LOC FINAL with new Themes'!A:M,9,0)","v":0},{"$f":"VLOOKUP(B245,'LOC FINAL with new Themes'!A:M,10,0)","v":0},{"$f":"VLOOKUP(B245,'LOC FINAL with new Themes'!A:M,11,0)","v":0},{"$f":"VLOOKUP(B245,'LOC FINAL with new Themes'!A:M,12,0)","v":0},{"$f":"VLOOKUP(B245,'LOC FINAL with new Themes'!A:M,13,0)","v":0}]
["Watershed Boundary Data Set (WBD)  ","Watershed Boundary Dataset (WBD)  ","Watershed Boundary Dataset (WBD)  ","Watershed Boundary Dataset (WBD)  ","Water -- Inland","DOI-USGS","Karen Hanson","khanson@usgs.gov",null,{"$f":"VLOOKUP(B246,'LOC FINAL with new Themes'!A:M,7,0)","v":"one set with nested hierarchy of six different levels within it (regions, subdivided into four, six and twelve digits), POC and data manager; continually updated; co-managed with NRCS and they archive it; USGS in Denver will serve it; All transactions are archived in versions in the database as they happen. Data from any moment in time can be captured with a simple query. The database is replicated daily to Rolla, MO servers. The database is stored on a SAN with three tier redundancy.All changes to the database are stored on separate disks and once they reach a certain size, they are copied over to a server to be written to tape. Weekly, the entire database (NHD, with WBD) is written to tape.Monthly, the tapes are taken off site for storage."},{"$f":"VLOOKUP(B246,'LOC FINAL with new Themes'!A:M,8,0)","v":0},{"$f":"VLOOKUP(B246,'LOC FINAL with new Themes'!A:M,9,0)","v":0},{"$f":"VLOOKUP(B246,'LOC FINAL with new Themes'!A:M,10,0)","v":0},{"$f":"VLOOKUP(B246,'LOC FINAL with new Themes'!A:M,11,0)","v":0},{"$f":"VLOOKUP(B246,'LOC FINAL with new Themes'!A:M,12,0)","v":0},{"$f":"VLOOKUP(B246,'LOC FINAL with new Themes'!A:M,13,0)","v":"S"}]
[null,null,null,{"$f":"SUBTOTAL(3,D237:D246)","v":10},"Water -- Inland Count"]
[null,null,"Coastal Change Analysis Program (C-CAP) Land Cover and Land Change Imagery",{"$f":"IF(C248=0,B248,C248)","v":"Coastal Change Analysis Program (C-CAP) Land Cover and Land Change Imagery"},"Water -- Oceans and Coasts ","DOC-NOAA","Nate Herold","nate.herold@noaa.gov"]
["Continental Shelf Boundary Data","Continental Shelf Boundary Data","Continental Shelf Boundary Data","Continental Shelf Boundary Data","Water -- Oceans and Coasts ","DOI-BOEM","Doug Vandegraft","Doug.Vandegraft@boem.gov",null,{"$f":"VLOOKUP(B249,'LOC FINAL with new Themes'!A:M,7,0)","v":"undeliverable email- neeed to identify new contact"},{"$f":"VLOOKUP(B249,'LOC FINAL with new Themes'!A:M,8,0)","v":0},{"$f":"VLOOKUP(B249,'LOC FINAL with new Themes'!A:M,9,0)","v":0},{"$f":"VLOOKUP(B249,'LOC FINAL with new Themes'!A:M,10,0)","v":0},{"$f":"VLOOKUP(B249,'LOC FINAL with new Themes'!A:M,11,0)","v":0},{"$f":"VLOOKUP(B249,'LOC FINAL with new Themes'!A:M,12,0)","v":0},{"$f":"VLOOKUP(B249,'LOC FINAL with new Themes'!A:M,13,0)","v":0}]
[null,null,"National Data Buoy Center (NDBC) Recent and Historical Data","National Data Buoy Center (NDBC) Recent and Historical Data","Water -- Oceans and Coasts ","DOC-NOAA","Anne Ball","anne.ball@noaa.gov","843-740-1229"]
[null,null,"NOAA National Shoreline","NOAA National Shoreline","Water -- Oceans and Coasts ","DOC-NOAA","Doug Graham","Doug.Graham@noaa.gov"]
["NOAA Nautical Charts","NOAA Nautical Charts","NOAA's Nautical Chart Products","NOAA's Nautical Chart Products","Water -- Oceans and Coasts ","DOC-NOAA","Meredith Westington","meredith.westington@noaa.gov",null,{"$f":"VLOOKUP(B252,'LOC FINAL with new Themes'!A:M,7,0)","v":0},{"$f":"VLOOKUP(B252,'LOC FINAL with new Themes'!A:M,8,0)","v":0},{"$f":"VLOOKUP(B252,'LOC FINAL with new Themes'!A:M,9,0)","v":0},{"$f":"VLOOKUP(B252,'LOC FINAL with new Themes'!A:M,10,0)","v":0},{"$f":"VLOOKUP(B252,'LOC FINAL with new Themes'!A:M,11,0)","v":0},{"$f":"VLOOKUP(B252,'LOC FINAL with new Themes'!A:M,12,0)","v":0},{"$f":"VLOOKUP(B252,'LOC FINAL with new Themes'!A:M,13,0)","v":0}]
[null,null,"Non-Projected Boundaries","Non-Projected Boundaries","Water -- Oceans and Coasts ","DOI-BOEM","Doug Vandegraft","Doug.Vandegraft@boem.gov"]
[null,null,"Projected Boundaries","Projected Boundaries","Water -- Oceans and Coasts ","DOI-BOEM","Doug Vandegraft","Doug.Vandegraft@boem.gov"]
[null,null,"U.S. Marine Protected Areas Boundaries","U.S. Marine Protected Areas Boundaries","Water -- Oceans and Coasts ","DOC-NOAA","Anne Ball","anne.ball@noaa.gov","843-740-1229"]
[null,null,"U.S. Maritime Zones/Boundaries","U.S. Maritime Zones/Boundaries","Water -- Oceans and Coasts ","DOC-NOAA","Meredith Westington","meredith.westington@noaa.gov"]
[null,null,null,{"$f":"SUBTOTAL(3,D248:D256)","v":9},"Water -- Oceans and Coasts  Count"]
[null,null,null,{"$f":"SUBTOTAL(3,D2:D256)","v":237},"Grand Count"]

{"sheet":"5-4-2012","index":19,"n_rows":258,"n_cols":16,"rows_kept":258,"cut":false,"hidden":true,"merged":[]}
["ORIGINAL (beginning of 2011)","LOC FINAL (October 2011)","NGDA List (October 2011)","Dataset Name","Theme","Agency","Dataset Manager","Email","Phone Number","Q1 How many data set(s) do you have? It is a single set or multiple sets? ","Q2 Are you a data set manager?","Q3 Are you the POC for transferring the data set and/or for information about the data set?","Q4 How often is the data set updated?","Q5 Is there an archive/backup of the data set or do you maintain an archived copy of it? If yes, how far back do you maintain a copy? Is it easily accessible?","Q6 Does the data set go by a different name or is it referred to internally by another descriptive name?","M\nP\nS"]
[null,null,"Critical Habitat ",{"$f":"IF(C2=0,B2,C2)","v":"Critical Habitat "},"Biota","DOI-FWS","Mike Horton","michael_horton@fws.gov","703-358-2371"]
[null,null,"Current Range for listed species ","Current Range for listed species ","Biota","DOI-FWS","Mike Horton","michael_horton@fws.gov","703-358-2371"]
["ECOMAP Data Sets (Ecological Subregions: Sections and Subsections for the Conterminous United States ) ","ECOMAP Datasets (Ecological Subregions: Sections and Subsections for the Conterminous United States ) ","ECOMAP Datasets (Ecological Subregions: Sections and Subsections for the Conterminous United States ) ","ECOMAP Datasets (Ecological Subregions: Sections and Subsections for the Conterminous United States ) ","Biota","USDA-FS","David T. Cleland","dcleland@fs.fed.us",null,{"$f":"VLOOKUP(B4,'LOC FINAL with new Themes'!A:M,7,0)","v":"One, single set"},{"$f":"VLOOKUP(B4,'LOC FINAL with new Themes'!A:M,8,0)","v":"Yes"},{"$f":"VLOOKUP(B4,'LOC FINAL with new Themes'!A:M,9,0)","v":"Yes"},{"$f":"VLOOKUP(B4,'LOC FINAL with new Themes'!A:M,10,0)","v":"Maps are updated on a 10-year cycle"},{"$f":"VLOOKUP(B4,'LOC FINAL with new Themes'!A:M,11,0)","v":"The data is housed at and served by the Forest Service geodata portal, and is easily accessible.  The web address is: http://fsgeodata.fs.fed.us/other_resources/ecosubregions.html "},{"$f":"VLOOKUP(B4,'LOC FINAL with new Themes'!A:M,12,0)","v":"?   Internally, the data is named ECOMAP or the National Hierarchy of Ecological Units. "},{"$f":"VLOOKUP(B4,'LOC FINAL with new Themes'!A:M,13,0)","v":"S"}]
[null,null,"Endangered Species (Threatened and Endangered Species System)","Endangered Species (Threatened and Endangered Species System)","Biota","DOI-FWS","Mike Horton","michael_horton@fws.gov","703-358-2371"]
["Env Sens Index Maps - classified shoreline","Env Sens Index Maps - classified shoreline","Environmental Sensitivity Index (ESI) Data and Maps","Environmental Sensitivity Index (ESI) Data and Maps","Biota","DOC-NOAA","Jill Petersen","jill.petersen@noaa.gov",null,{"$f":"VLOOKUP(B6,'LOC FINAL with new Themes'!A:M,7,0)","v":"There are approximately 70 different atlases. There are a few that are still not available in a GIS format, (approx 7 of the approx 70!) - these are available as the hard copy product and as PDFs (scanned). The remaining atlases are available in multiple GIS formats - Arc Export files, Geodatabase with an ArcMap map document complete with all relates established and properly symbolized, Shape files with an ArcView 3.x project, a free ESI viewer that allows viewing, queries and printing (in house mapping program and filemaker pro) as well as PDF format and the hard copy product. These can be downloaded from http://response.restoration.noaa.gov/esi_download This page is in progress, but should be complete fairly quickly.\n\n"},{"$f":"VLOOKUP(B6,'LOC FINAL with new Themes'!A:M,8,0)","v":"Yes"},{"$f":"VLOOKUP(B6,'LOC FINAL with new Themes'!A:M,9,0)","v":"Yes "},{"$f":"VLOOKUP(B6,'LOC FINAL with new Themes'!A:M,10,0)","v":"- High resolution products have no defined update schedule.  TBD by geog/project."},{"$f":"VLOOKUP(B6,'LOC FINAL with new Themes'!A:M,11,0)","v":"Yes and no. We have archives of all the digital data as well as all the PDFs (scanned or produced with the digital data map comps). Many of the hard copy atlases from the first round of ESI maps were sent to the Library of Commerce. Others I have kept, but no very organized situation. However, we have all of the historic PDFs which are an exact duplicate of the hard copy atlas, so that is something. Historic data is going to be served from the above link as well. That will be added as the current data sets are completed."},{"$f":"VLOOKUP(B6,'LOC FINAL with new Themes'!A:M,12,0)","v":"ESI is the common abbreviation for these maps. Other than that, Environmental Sensitivity Index Maps, Shoreline Sensitivity maps, Environmental Sensitivity maps..... These maps have the classified shoreline, as well as summaries of biological and human use resource particularly sensitive to oiling. "},{"$f":"VLOOKUP(B6,'LOC FINAL with new Themes'!A:M,13,0)","v":"M "}]
["GAP Program Dataset","GAP Program Dataset","GAP Program Dataset","GAP Program Dataset","Biota","DOI-USGS","Kevin Gergely","gergely@usgs.gov",null,{"$f":"VLOOKUP(B7,'LOC FINAL with new Themes'!A:M,7,0)","v":"POC; multiple data sets in single location, building three fundamental data layers, two are national (protected areas, land cover dataset); backup; six months, annually)"},{"$f":"VLOOKUP(B7,'LOC FINAL with new Themes'!A:M,8,0)","v":0},{"$f":"VLOOKUP(B7,'LOC FINAL with new Themes'!A:M,9,0)","v":0},{"$f":"VLOOKUP(B7,'LOC FINAL with new Themes'!A:M,10,0)","v":0},{"$f":"VLOOKUP(B7,'LOC FINAL with new Themes'!A:M,11,0)","v":0},{"$f":"VLOOKUP(B7,'LOC FINAL with new Themes'!A:M,12,0)","v":0},{"$f":"VLOOKUP(B7,'LOC FINAL with new Themes'!A:M,13,0)","v":"P"}]
["National Standardized Ecosystems Dataset","National Standardized Ecosystems Dataset","National Standardized Ecosystems Dataset","National Standardized Ecosystems Dataset","Biota","DOI-USGS","Roger Sayre","rsayre@usgs.gov",null,{"$f":"VLOOKUP(B8,'LOC FINAL with new Themes'!A:M,7,0)","v":0},{"$f":"VLOOKUP(B8,'LOC FINAL with new Themes'!A:M,8,0)","v":0},{"$f":"VLOOKUP(B8,'LOC FINAL with new Themes'!A:M,9,0)","v":0},{"$f":"VLOOKUP(B8,'LOC FINAL with new Themes'!A:M,10,0)","v":0},{"$f":"VLOOKUP(B8,'LOC FINAL with new Themes'!A:M,11,0)","v":0},{"$f":"VLOOKUP(B8,'LOC FINAL with new Themes'!A:M,12,0)","v":0},{"$f":"VLOOKUP(B8,'LOC FINAL with new Themes'!A:M,13,0)","v":0}]
[null,null,"Recovery Range for listed species ","Recovery Range for listed species ","Biota","DOI-FWS","Mike Horton","michael_horton@fws.gov","703-358-2371"]
[null,null,"Section 7 Range for listed species ","Section 7 Range for listed species ","Biota","DOI-FWS","Mike Horton","michael_horton@fws.gov","703-358-2371"]
["Biomes, Ecoregions","Biomes, Ecoregions",null,"Biomes, Ecoregions","Biota ","DOI-USGS","Dan Phillips ","dphillips@usgs.gov",null,{"$f":"VLOOKUP(B11,'LOC FINAL with new Themes'!A:M,7,0)","v":0},{"$f":"VLOOKUP(B11,'LOC FINAL with new Themes'!A:M,8,0)","v":0},{"$f":"VLOOKUP(B11,'LOC FINAL with new Themes'!A:M,9,0)","v":0},{"$f":"VLOOKUP(B11,'LOC FINAL with new Themes'!A:M,10,0)","v":0},{"$f":"VLOOKUP(B11,'LOC FINAL with new Themes'!A:M,11,0)","v":0},{"$f":"VLOOKUP(B11,'LOC FINAL with new Themes'!A:M,12,0)","v":0},{"$f":"VLOOKUP(B11,'LOC FINAL with new Themes'!A:M,13,0)","v":0}]
["Ecological Services","Ecological Services",null,"Ecological Services","Biota ","DOI-USGS","Dan Phillips ","dphillips@usgs.gov",null,{"$f":"VLOOKUP(B12,'LOC FINAL with new Themes'!A:M,7,0)","v":0},{"$f":"VLOOKUP(B12,'LOC FINAL with new Themes'!A:M,8,0)","v":0},{"$f":"VLOOKUP(B12,'LOC FINAL with new Themes'!A:M,9,0)","v":0},{"$f":"VLOOKUP(B12,'LOC FINAL with new Themes'!A:M,10,0)","v":0},{"$f":"VLOOKUP(B12,'LOC FINAL with new Themes'!A:M,11,0)","v":0},{"$f":"VLOOKUP(B12,'LOC FINAL with new Themes'!A:M,12,0)","v":0},{"$f":"VLOOKUP(B12,'LOC FINAL with new Themes'!A:M,13,0)","v":0}]
["Habitats","Habitats",null,"Habitats","Biota ","DOI-USGS","Dan Phillips ","dphillips@usgs.gov",null,{"$f":"VLOOKUP(B13,'LOC FINAL with new Themes'!A:M,7,0)","v":"see protected areas and land cover set; vertebrae species of US being developed (not complete for all species they want to include in it."},{"$f":"VLOOKUP(B13,'LOC FINAL with new Themes'!A:M,8,0)","v":0},{"$f":"VLOOKUP(B13,'LOC FINAL with new Themes'!A:M,9,0)","v":0},{"$f":"VLOOKUP(B13,'LOC FINAL with new Themes'!A:M,10,0)","v":0},{"$f":"VLOOKUP(B13,'LOC FINAL with new Themes'!A:M,11,0)","v":0},{"$f":"VLOOKUP(B13,'LOC FINAL with new Themes'!A:M,12,0)","v":0},{"$f":"VLOOKUP(B13,'LOC FINAL with new Themes'!A:M,13,0)","v":"M"}]
["Invasive Species","Invasive Species",null,"Invasive Species","Biota ","DOI-USGS","Dan Phillips ","dphillips@usgs.gov",null,{"$f":"VLOOKUP(B14,'LOC FINAL with new Themes'!A:M,7,0)","v":"There are hundreds of datasets that are produced and maintained by the GAP program. Dan is not the data set manager, but I work with the people that maintain and update the datasets and maintains metadata.The data are updated at different intervals, especially now that they have moved more to a regional and national based approach. GAPS data sets presumably archived since 1990s."},{"$f":"VLOOKUP(B14,'LOC FINAL with new Themes'!A:M,8,0)","v":0},{"$f":"VLOOKUP(B14,'LOC FINAL with new Themes'!A:M,9,0)","v":0},{"$f":"VLOOKUP(B14,'LOC FINAL with new Themes'!A:M,10,0)","v":0},{"$f":"VLOOKUP(B14,'LOC FINAL with new Themes'!A:M,11,0)","v":0},{"$f":"VLOOKUP(B14,'LOC FINAL with new Themes'!A:M,12,0)","v":0},{"$f":"VLOOKUP(B14,'LOC FINAL with new Themes'!A:M,13,0)","v":"M"}]
["Species Distribution(amphibians, birds, reptiles, mammals, fishes, plants, etc)","Species Distribution (amphibians, birds, reptiles, mammals, fishes, plants, etc)",null,"Species Distribution (amphibians, birds, reptiles, mammals, fishes, plants, etc)","Biota ","DOI-USGS","Dan Phillips ","dphillips@usgs.gov",null,{"$f":"VLOOKUP(B15,'LOC FINAL with new Themes'!A:M,7,0)","v":"There are hundreds of datasets that are produced and maintained by the GAP program. Dan is not the data set manager, but I work with the people that maintain and update the datasets and maintains metadata. The data are updated at different intervals, especially now that they have moved more to a regional and national based approach. GAPS data sets presumably archived since 1990s."},{"$f":"VLOOKUP(B15,'LOC FINAL with new Themes'!A:M,8,0)","v":0},{"$f":"VLOOKUP(B15,'LOC FINAL with new Themes'!A:M,9,0)","v":0},{"$f":"VLOOKUP(B15,'LOC FINAL with new Themes'!A:M,10,0)","v":0},{"$f":"VLOOKUP(B15,'LOC FINAL with new Themes'!A:M,11,0)","v":0},{"$f":"VLOOKUP(B15,'LOC FINAL with new Themes'!A:M,12,0)","v":0},{"$f":"VLOOKUP(B15,'LOC FINAL with new Themes'!A:M,13,0)","v":"M"}]
[null,null,null,{"$f":"SUBTOTAL(3,D2:D15)","v":14},"Biota Count"]
["General Land Office","General Land Office","General Land Office",{"$f":"IF(C17=0,B17,C17)","v":"General Land Office"},"Cadastre","DOI-BLM","Juan Palma","juan_palma@blm.gov",null,{"$f":"VLOOKUP(B17,'LOC FINAL with new Themes'!A:M,7,0)","v":0},{"$f":"VLOOKUP(B17,'LOC FINAL with new Themes'!A:M,8,0)","v":0},{"$f":"VLOOKUP(B17,'LOC FINAL with new Themes'!A:M,9,0)","v":0},{"$f":"VLOOKUP(B17,'LOC FINAL with new Themes'!A:M,10,0)","v":0},{"$f":"VLOOKUP(B17,'LOC FINAL with new Themes'!A:M,11,0)","v":0},{"$f":"VLOOKUP(B17,'LOC FINAL with new Themes'!A:M,12,0)","v":0},{"$f":"VLOOKUP(B17,'LOC FINAL with new Themes'!A:M,13,0)","v":0}]
["Geographic Coordinate Data Base (GCDB)","Geographic Coordinate Data Base (GCDB)",null,"Geographic Coordinate Data Base (GCDB)","Cadastre","DOI-BLM","Don Buhler","don_buhler@blm.gov",null,{"$f":"VLOOKUP(B18,'LOC FINAL with new Themes'!A:M,7,0)","v":"every agency has its own database; multiple data sets; standard being advanced and put into practice; federal interest is managed with BLM; state and local are authoritative sets for other lands; "},{"$f":"VLOOKUP(B18,'LOC FINAL with new Themes'!A:M,8,0)","v":0},{"$f":"VLOOKUP(B18,'LOC FINAL with new Themes'!A:M,9,0)","v":0},{"$f":"VLOOKUP(B18,'LOC FINAL with new Themes'!A:M,10,0)","v":0},{"$f":"VLOOKUP(B18,'LOC FINAL with new Themes'!A:M,11,0)","v":0},{"$f":"VLOOKUP(B18,'LOC FINAL with new Themes'!A:M,12,0)","v":0},{"$f":"VLOOKUP(B18,'LOC FINAL with new Themes'!A:M,13,0)","v":"M "}]
["LR 2000 - Master Title Plats ","LR 2000 - Master Title Plats ","LR 2000 - Attribute Information","LR 2000 - Attribute Information","Cadastre","DOI-BLM","Jeff Holdren","jeff_holdren@blm.gov",null,{"$f":"VLOOKUP(B19,'LOC FINAL with new Themes'!A:M,7,0)","v":"listing of sales, rents, agricultural disposal and rights of way cases, group of data sets in one system; Kim Burns, division chief; not archived, there is a backup; Denver office handles"},{"$f":"VLOOKUP(B19,'LOC FINAL with new Themes'!A:M,8,0)","v":0},{"$f":"VLOOKUP(B19,'LOC FINAL with new Themes'!A:M,9,0)","v":0},{"$f":"VLOOKUP(B19,'LOC FINAL with new Themes'!A:M,10,0)","v":0},{"$f":"VLOOKUP(B19,'LOC FINAL with new Themes'!A:M,11,0)","v":0},{"$f":"VLOOKUP(B19,'LOC FINAL with new Themes'!A:M,12,0)","v":0},{"$f":"VLOOKUP(B19,'LOC FINAL with new Themes'!A:M,13,0)","v":"P"}]
["Manual of Surveying Instructions, Data Standards","Manual of Surveying Instructions, Data Standards",null,"Manual of Surveying Instructions, Data Standards","Cadastre","DOI-BLM","Don Buhler","don_buhler@blm.gov",null,{"$f":"VLOOKUP(B20,'LOC FINAL with new Themes'!A:M,7,0)","v":0},{"$f":"VLOOKUP(B20,'LOC FINAL with new Themes'!A:M,8,0)","v":0},{"$f":"VLOOKUP(B20,'LOC FINAL with new Themes'!A:M,9,0)","v":0},{"$f":"VLOOKUP(B20,'LOC FINAL with new Themes'!A:M,10,0)","v":0},{"$f":"VLOOKUP(B20,'LOC FINAL with new Themes'!A:M,11,0)","v":0},{"$f":"VLOOKUP(B20,'LOC FINAL with new Themes'!A:M,12,0)","v":0},{"$f":"VLOOKUP(B20,'LOC FINAL with new Themes'!A:M,13,0)","v":0}]
["Mineral Estate - Fluids","Mineral Estate - Fluids",null,"Mineral Estate - Fluids","Cadastre","DOI-BLM","Tim Spisak ","tim_spisak@blm.gov",null,{"$f":"VLOOKUP(B21,'LOC FINAL with new Themes'!A:M,7,0)","v":"mineral leasess, mining claims, rights of way, gases (single data set); BLM-managed lands but managed all federal mineral estate (comprehensive for mineraal estate) some electronic and some not"},{"$f":"VLOOKUP(B21,'LOC FINAL with new Themes'!A:M,8,0)","v":0},{"$f":"VLOOKUP(B21,'LOC FINAL with new Themes'!A:M,9,0)","v":0},{"$f":"VLOOKUP(B21,'LOC FINAL with new Themes'!A:M,10,0)","v":0},{"$f":"VLOOKUP(B21,'LOC FINAL with new Themes'!A:M,11,0)","v":0},{"$f":"VLOOKUP(B21,'LOC FINAL with new Themes'!A:M,12,0)","v":0},{"$f":"VLOOKUP(B21,'LOC FINAL with new Themes'!A:M,13,0)","v":"P"}]
["Mineral Estate - Solids","Mineral Estate - Solids",null,"Mineral Estate - Solids","Cadastre","DOI-BLM","Mitchell Leverette","mitchell_leverette@blm.gov",null,{"$f":"VLOOKUP(B22,'LOC FINAL with new Themes'!A:M,7,0)","v":"mineral leasess, mining claims, rights of way, gases (single data set); BLM-managed lands but managed all federal mineral estate (comprehensive for mineral estate) some electronic and some not"},{"$f":"VLOOKUP(B22,'LOC FINAL with new Themes'!A:M,8,0)","v":0},{"$f":"VLOOKUP(B22,'LOC FINAL with new Themes'!A:M,9,0)","v":0},{"$f":"VLOOKUP(B22,'LOC FINAL with new Themes'!A:M,10,0)","v":0},{"$f":"VLOOKUP(B22,'LOC FINAL with new Themes'!A:M,11,0)","v":0},{"$f":"VLOOKUP(B22,'LOC FINAL with new Themes'!A:M,12,0)","v":0},{"$f":"VLOOKUP(B22,'LOC FINAL with new Themes'!A:M,13,0)","v":"P"}]
[null,null,"PADUS (Protected Areas Database of the US)","PADUS (Protected Areas Database of the US)","Cadastre","DOI-USGS"]
["Parcels","Parcels","Parcels","Parcels","Cadastre","DOI-BLM","Bob Ader","bob_ader@blm.gov",null,{"$f":"VLOOKUP(B24,'LOC FINAL with new Themes'!A:M,7,0)","v":"every agency has its own database; multiple data sets; standard being advanced and put into practice; federal interest is managed with BLM; state and local are authoritative sets for other lands; current effort of federal inventory "},{"$f":"VLOOKUP(B24,'LOC FINAL with new Themes'!A:M,8,0)","v":0},{"$f":"VLOOKUP(B24,'LOC FINAL with new Themes'!A:M,9,0)","v":0},{"$f":"VLOOKUP(B24,'LOC FINAL with new Themes'!A:M,10,0)","v":0},{"$f":"VLOOKUP(B24,'LOC FINAL with new Themes'!A:M,11,0)","v":0},{"$f":"VLOOKUP(B24,'LOC FINAL with new Themes'!A:M,12,0)","v":0},{"$f":"VLOOKUP(B24,'LOC FINAL with new Themes'!A:M,13,0)","v":"M "}]
[null,null,"Protractions","Protractions","Cadastre","DOI-BOEM","Doug Vandegraft","Doug.Vandegraft@boem.gov"]
["Surface Estate","Surface Estate",null,"Surface Estate","Cadastre","DOI-BLM","Kim Burns","kim_m_burns@blm.gov",null,{"$f":"VLOOKUP(B26,'LOC FINAL with new Themes'!A:M,7,0)","v":"lands administered by BLM; other agencies have own system; ownership of lands;  Tim Spisak, division chief; not archived, there is a backup; Denver office handles"},{"$f":"VLOOKUP(B26,'LOC FINAL with new Themes'!A:M,8,0)","v":0},{"$f":"VLOOKUP(B26,'LOC FINAL with new Themes'!A:M,9,0)","v":0},{"$f":"VLOOKUP(B26,'LOC FINAL with new Themes'!A:M,10,0)","v":0},{"$f":"VLOOKUP(B26,'LOC FINAL with new Themes'!A:M,11,0)","v":0},{"$f":"VLOOKUP(B26,'LOC FINAL with new Themes'!A:M,12,0)","v":0},{"$f":"VLOOKUP(B26,'LOC FINAL with new Themes'!A:M,13,0)","v":0}]
["U.S. Official Cadastral Survey Records","U.S. Official Cadastral Survey Records","U.S. Official Cadastral Survey Records","U.S. Official Cadastral Survey Records","Cadastre","DOI-BLM","Don Buhler","don_buhler@blm.gov",null,{"$f":"VLOOKUP(B27,'LOC FINAL with new Themes'!A:M,7,0)","v":"every agency has its own database; multiple data sets; standard being advanced and put into practice; federal interest is managed with BLM; state and local are authoritative sets for other lands; state offices are scanning these records (survey plats and field notes); CDI (conveyence cards)"},{"$f":"VLOOKUP(B27,'LOC FINAL with new Themes'!A:M,8,0)","v":0},{"$f":"VLOOKUP(B27,'LOC FINAL with new Themes'!A:M,9,0)","v":0},{"$f":"VLOOKUP(B27,'LOC FINAL with new Themes'!A:M,10,0)","v":0},{"$f":"VLOOKUP(B27,'LOC FINAL with new Themes'!A:M,11,0)","v":0},{"$f":"VLOOKUP(B27,'LOC FINAL with new Themes'!A:M,12,0)","v":0},{"$f":"VLOOKUP(B27,'LOC FINAL with new Themes'!A:M,13,0)","v":"M "}]
["U.S. Public Land Survey System","U.S. Public Land Survey System","U.S. Public Land Survey System","U.S. Public Land Survey System","Cadastre","DOI-BLM","Don Buhler","don_buhler@blm.gov",null,{"$f":"VLOOKUP(B28,'LOC FINAL with new Themes'!A:M,7,0)","v":"only federal agency that administers the PLSS; trying to get it to be logically one data set with different regions. (working copies for nine states in West); keep historical record in data base; schema 2 is the version to look at for archiving some time March 2012"},{"$f":"VLOOKUP(B28,'LOC FINAL with new Themes'!A:M,8,0)","v":0},{"$f":"VLOOKUP(B28,'LOC FINAL with new Themes'!A:M,9,0)","v":0},{"$f":"VLOOKUP(B28,'LOC FINAL with new Themes'!A:M,10,0)","v":0},{"$f":"VLOOKUP(B28,'LOC FINAL with new Themes'!A:M,11,0)","v":0},{"$f":"VLOOKUP(B28,'LOC FINAL with new Themes'!A:M,12,0)","v":0},{"$f":"VLOOKUP(B28,'LOC FINAL with new Themes'!A:M,13,0)","v":"P"}]
[null,null,null,"Coastal National Parks","Cadastre","DOI - NPS","Roger Johnson ","Roger_M_Johnson@nps.gov"]
[null,null,null,"Coastal National Wildlife Refuges","Cadastre","DOI - NPS","Sean Killen","Sean_Killen@fws.gov"]
[null,null,null,"Coastal Indian Lands","Cadastre","DOI - BIA","Richard Moore","Richard.Moore@bia.gov"]
[null,null,null,"Outer Continental Shelf Lease Blocks","Cadastre","DOI - BOEM","Doug Vandegraft","Doug.Vandegraft@boem.gov"]
[null,null,null,"BOEM Active Oil and Gas Leases","Cadastre","DOI - BOEM","Doug Vandegraft","Doug.Vandegraft@boem.gov"]
[null,null,null,{"$f":"SUBTOTAL(3,D17:D28)","v":12},"Cadastre Count"]
["Blended Sea Surface Temperature","Blended Sea Surface Temperature","Blended Sea Surface Temperature",{"$f":"IF(C35=0,B35,C35)","v":"Blended Sea Surface Temperature"},"Climate and Weather ","DOC-NOAA","Viva Banzon","Viva.Banzon@noaa.gov",null,{"$f":"VLOOKUP(B35,'LOC FINAL with new Themes'!A:M,7,0)","v":0},{"$f":"VLOOKUP(B35,'LOC FINAL with new Themes'!A:M,8,0)","v":0},{"$f":"VLOOKUP(B35,'LOC FINAL with new Themes'!A:M,9,0)","v":0},{"$f":"VLOOKUP(B35,'LOC FINAL with new Themes'!A:M,10,0)","v":0},{"$f":"VLOOKUP(B35,'LOC FINAL with new Themes'!A:M,11,0)","v":0},{"$f":"VLOOKUP(B35,'LOC FINAL with new Themes'!A:M,12,0)","v":0},{"$f":"VLOOKUP(B35,'LOC FINAL with new Themes'!A:M,13,0)","v":0}]
["Geostationary Operational Environmental Satellite (GOES) data (NCDC)","Geostationary Operational Environmental Satellite (GOES) data (NCDC)","Geostationary Operational Environmental Satellite (GOES) data (NCDC)","Geostationary Operational Environmental Satellite (GOES) data (NCDC)","Climate and Weather ","DOC-NOAA","Nancy Ritchey","Nancy.Ritchey@noaa.gov",null,{"$f":"VLOOKUP(B36,'LOC FINAL with new Themes'!A:M,7,0)","v":"Define 'data set'.  Each spacecraft continuously produces a data stream.  There are multiple sets and the total going back to the late 70s or early 80s numbers in the millions"},{"$f":"VLOOKUP(B36,'LOC FINAL with new Themes'!A:M,8,0)","v":"Yes"},{"$f":"VLOOKUP(B36,'LOC FINAL with new Themes'!A:M,9,0)","v":"Yes"},{"$f":"VLOOKUP(B36,'LOC FINAL with new Themes'!A:M,10,0)","v":"Continuously"},{"$f":"VLOOKUP(B36,'LOC FINAL with new Themes'!A:M,11,0)","v":"There are two active archive centers for these data; one here in Asheville, NC and one in Boulder, CO.  These data go back to the late 70s and all data are on line wither on disc or robotic tape storage"},{"$f":"VLOOKUP(B36,'LOC FINAL with new Themes'!A:M,12,0)","v":"Again, define your terms.  For examples see www.class.noaa.gov - Raw data are listed by satellite (GOES or POES) and then be instrument.  Geophysical products are listed by product name."},{"$f":"VLOOKUP(B36,'LOC FINAL with new Themes'!A:M,13,0)","v":0}]
[null,null,"MODIS-based Atmospheric Products","MODIS-based Atmospheric Products","Climate and Weather ","USDA -FS (Along with USGS)"]
[null,null,"National Doplar Radar Data (NEXRAD)","National Doplar Radar Data (NEXRAD)","Climate and Weather ","DOC-NOAA","Steve DelGreco","stephen.a.delgreco"]
[null,null,"NOAA National Weather Service GIS Data",{"$f":"IF(C39=0,B39,C39)","v":"NOAA National Weather Service GIS Data"},"Climate and Weather ","DOC-NOAA"]
["Parameter-elevation Regressions on Independent Slopes Model (PRISM) Data Sets","Parameter-elevation Regressions on Independent Slopes Model (PRISM) Datasets","Parameter-elevation Regressions on Independent Slopes Model (PRISM) Datasets",{"$f":"IF(C40=0,B40,C40)","v":"Parameter-elevation Regressions on Independent Slopes Model (PRISM) Datasets"},"Climate and Weather ","USDA-NRCS","Jan Curtis","jan.curtis@por.usda.gov",null,{"$f":"VLOOKUP(B40,'LOC FINAL with new Themes'!A:M,7,0)","v":"info provided via http://www.prism.oregonstate.edu/ and \nhttp://www.nrcs.usda.gov/wps/portal/nrcs/main/?ss=16&navtype=SubNavigation&cid=null&navid=850130000000000&pnavid=850000000000000&position=SubNavigation&ttype=main&pname=USDA%2520NRCS%2520-%2520Natural%2520Resources%2520Conservation%2520Service\n"},{"$f":"VLOOKUP(B40,'LOC FINAL with new Themes'!A:M,8,0)","v":0},{"$f":"VLOOKUP(B40,'LOC FINAL with new Themes'!A:M,9,0)","v":0},{"$f":"VLOOKUP(B40,'LOC FINAL with new Themes'!A:M,10,0)","v":0},{"$f":"VLOOKUP(B40,'LOC FINAL with new Themes'!A:M,11,0)","v":0},{"$f":"VLOOKUP(B40,'LOC FINAL with new Themes'!A:M,12,0)","v":0},{"$f":"VLOOKUP(B40,'LOC FINAL with new Themes'!A:M,13,0)","v":"M"}]
["Polar Operational Environmental Satellite (POES) data (NCDC)","Polar Operational Environmental Satellite (POES) data","Polar Operational Environmental Satellite (POES) data",{"$f":"IF(C41=0,B41,C41)","v":"Polar Operational Environmental Satellite (POES) data"},"Climate and Weather ","DOC-NOAA","John Bates","john.j.bates@noaa.gov",null,{"$f":"VLOOKUP(B41,'LOC FINAL with new Themes'!A:M,7,0)","v":0},{"$f":"VLOOKUP(B41,'LOC FINAL with new Themes'!A:M,8,0)","v":0},{"$f":"VLOOKUP(B41,'LOC FINAL with new Themes'!A:M,9,0)","v":0},{"$f":"VLOOKUP(B41,'LOC FINAL with new Themes'!A:M,10,0)","v":0},{"$f":"VLOOKUP(B41,'LOC FINAL with new Themes'!A:M,11,0)","v":0},{"$f":"VLOOKUP(B41,'LOC FINAL with new Themes'!A:M,12,0)","v":0},{"$f":"VLOOKUP(B41,'LOC FINAL with new Themes'!A:M,13,0)","v":0}]
[null,null,null,{"$f":"SUBTOTAL(3,D35:D41)","v":7},"Climate and Weather  Count"]
[null,"5-digit ZIP Code Tabulation Area (Census 2000)","5-digit ZIP Code Tabulation Area (Census 2000)",{"$f":"IF(C43=0,B43,C43)","v":"5-digit ZIP Code Tabulation Area (Census 2000)"},"Cultural & Demographic Statistics ","DOC-Census","Jennifer Holland","Jennifer.L.Holland@census.gov",null,{"$f":"VLOOKUP(B43,'LOC FINAL with new Themes'!A:M,7,0)","v":0},{"$f":"VLOOKUP(B43,'LOC FINAL with new Themes'!A:M,8,0)","v":0},{"$f":"VLOOKUP(B43,'LOC FINAL with new Themes'!A:M,9,0)","v":0},{"$f":"VLOOKUP(B43,'LOC FINAL with new Themes'!A:M,10,0)","v":0},{"$f":"VLOOKUP(B43,'LOC FINAL with new Themes'!A:M,11,0)","v":0},{"$f":"VLOOKUP(B43,'LOC FINAL with new Themes'!A:M,12,0)","v":0},{"$f":"VLOOKUP(B43,'LOC FINAL with new Themes'!A:M,13,0)","v":0}]
["AIR, ANVSA, Hawaiian Homelands Boundaries","AIR, ANVSA, Hawaiian Homelands Boundaries",null,"AIR, ANVSA, Hawaiian Homelands Boundaries","Cultural & Demographic Statistics ","DOC-Census","Randy Fusaro","randy.j.fusaro@census.gov",null,{"$f":"VLOOKUP(B44,'LOC FINAL with new Themes'!A:M,7,0)","v":0},{"$f":"VLOOKUP(B44,'LOC FINAL with new Themes'!A:M,8,0)","v":0},{"$f":"VLOOKUP(B44,'LOC FINAL with new Themes'!A:M,9,0)","v":0},{"$f":"VLOOKUP(B44,'LOC FINAL with new Themes'!A:M,10,0)","v":0},{"$f":"VLOOKUP(B44,'LOC FINAL with new Themes'!A:M,11,0)","v":0},{"$f":"VLOOKUP(B44,'LOC FINAL with new Themes'!A:M,12,0)","v":0},{"$f":"VLOOKUP(B44,'LOC FINAL with new Themes'!A:M,13,0)","v":0}]
[null,"All Lines (2010 Census)","All Lines (2010 Census)","All Lines (2010 Census)","Cultural & Demographic Statistics ","DOC-Census","Jennifer Holland","Jennifer.L.Holland@census.gov",null,{"$f":"VLOOKUP(B45,'LOC FINAL with new Themes'!A:M,7,0)","v":0},{"$f":"VLOOKUP(B45,'LOC FINAL with new Themes'!A:M,8,0)","v":0},{"$f":"VLOOKUP(B45,'LOC FINAL with new Themes'!A:M,9,0)","v":0},{"$f":"VLOOKUP(B45,'LOC FINAL with new Themes'!A:M,10,0)","v":0},{"$f":"VLOOKUP(B45,'LOC FINAL with new Themes'!A:M,11,0)","v":0},{"$f":"VLOOKUP(B45,'LOC FINAL with new Themes'!A:M,12,0)","v":0},{"$f":"VLOOKUP(B45,'LOC FINAL with new Themes'!A:M,13,0)","v":0}]
[null,"ANSI codes for  metro/micropolitan areas","ANSI codes for  metro/micropolitan areas","ANSI codes for  metro/micropolitan areas","Cultural & Demographic Statistics ","DOC-Census","Jennifer Holland","Jennifer.L.Holland@census.gov",null,{"$f":"VLOOKUP(B46,'LOC FINAL with new Themes'!A:M,7,0)","v":0},{"$f":"VLOOKUP(B46,'LOC FINAL with new Themes'!A:M,8,0)","v":0},{"$f":"VLOOKUP(B46,'LOC FINAL with new Themes'!A:M,9,0)","v":0},{"$f":"VLOOKUP(B46,'LOC FINAL with new Themes'!A:M,10,0)","v":0},{"$f":"VLOOKUP(B46,'LOC FINAL with new Themes'!A:M,11,0)","v":0},{"$f":"VLOOKUP(B46,'LOC FINAL with new Themes'!A:M,12,0)","v":0},{"$f":"VLOOKUP(B46,'LOC FINAL with new Themes'!A:M,13,0)","v":0}]
[null,"ANSI codes for congressional districts","ANSI codes for congressional districts","ANSI codes for congressional districts","Cultural & Demographic Statistics ","DOC-Census","Jennifer Holland","Jennifer.L.Holland@census.gov",null,{"$f":"VLOOKUP(B47,'LOC FINAL with new Themes'!A:M,7,0)","v":0},{"$f":"VLOOKUP(B47,'LOC FINAL with new Themes'!A:M,8,0)","v":0},{"$f":"VLOOKUP(B47,'LOC FINAL with new Themes'!A:M,9,0)","v":0},{"$f":"VLOOKUP(B47,'LOC FINAL with new Themes'!A:M,10,0)","v":0},{"$f":"VLOOKUP(B47,'LOC FINAL with new Themes'!A:M,11,0)","v":0},{"$f":"VLOOKUP(B47,'LOC FINAL with new Themes'!A:M,12,0)","v":0},{"$f":"VLOOKUP(B47,'LOC FINAL with new Themes'!A:M,13,0)","v":0}]
[null,"ANSI codes for counties","ANSI codes for counties","ANSI codes for counties","Cultural & Demographic Statistics ","DOC-Census","Jennifer Holland","Jennifer.L.Holland@census.gov",null,{"$f":"VLOOKUP(B48,'LOC FINAL with new Themes'!A:M,7,0)","v":0},{"$f":"VLOOKUP(B48,'LOC FINAL with new Themes'!A:M,8,0)","v":0},{"$f":"VLOOKUP(B48,'LOC FINAL with new Themes'!A:M,9,0)","v":0},{"$f":"VLOOKUP(B48,'LOC FINAL with new Themes'!A:M,10,0)","v":0},{"$f":"VLOOKUP(B48,'LOC FINAL with new Themes'!A:M,11,0)","v":0},{"$f":"VLOOKUP(B48,'LOC FINAL with new Themes'!A:M,12,0)","v":0},{"$f":"VLOOKUP(B48,'LOC FINAL with new Themes'!A:M,13,0)","v":0}]
[null,"ANSI codes for states","ANSI codes for states","ANSI codes for states","Cultural & Demographic Statistics ","DOC-Census","Jennifer Holland","Jennifer.L.Holland@census.gov",null,{"$f":"VLOOKUP(B49,'LOC FINAL with new Themes'!A:M,7,0)","v":0},{"$f":"VLOOKUP(B49,'LOC FINAL with new Themes'!A:M,8,0)","v":0},{"$f":"VLOOKUP(B49,'LOC FINAL with new Themes'!A:M,9,0)","v":0},{"$f":"VLOOKUP(B49,'LOC FINAL with new Themes'!A:M,10,0)","v":0},{"$f":"VLOOKUP(B49,'LOC FINAL with new Themes'!A:M,11,0)","v":0},{"$f":"VLOOKUP(B49,'LOC FINAL with new Themes'!A:M,12,0)","v":0},{"$f":"VLOOKUP(B49,'LOC FINAL with new Themes'!A:M,13,0)","v":0}]
[null,"Block (2010 Census)","Block (2010 Census)","Block (2010 Census)","Cultural & Demographic Statistics ","DOC-Census","Jennifer Holland","Jennifer.L.Holland@census.gov",null,{"$f":"VLOOKUP(B50,'LOC FINAL with new Themes'!A:M,7,0)","v":0},{"$f":"VLOOKUP(B50,'LOC FINAL with new Themes'!A:M,8,0)","v":0},{"$f":"VLOOKUP(B50,'LOC FINAL with new Themes'!A:M,9,0)","v":0},{"$f":"VLOOKUP(B50,'LOC FINAL with new Themes'!A:M,10,0)","v":0},{"$f":"VLOOKUP(B50,'LOC FINAL with new Themes'!A:M,11,0)","v":0},{"$f":"VLOOKUP(B50,'LOC FINAL with new Themes'!A:M,12,0)","v":0},{"$f":"VLOOKUP(B50,'LOC FINAL with new Themes'!A:M,13,0)","v":0}]
[null,"Block (Census 2000)","Block (Census 2000)","Block (Census 2000)","Cultural & Demographic Statistics ","DOC-Census","Jennifer Holland","Jennifer.L.Holland@census.gov",null,{"$f":"VLOOKUP(B51,'LOC FINAL with new Themes'!A:M,7,0)","v":0},{"$f":"VLOOKUP(B51,'LOC FINAL with new Themes'!A:M,8,0)","v":0},{"$f":"VLOOKUP(B51,'LOC FINAL with new Themes'!A:M,9,0)","v":0},{"$f":"VLOOKUP(B51,'LOC FINAL with new Themes'!A:M,10,0)","v":0},{"$f":"VLOOKUP(B51,'LOC FINAL with new Themes'!A:M,11,0)","v":0},{"$f":"VLOOKUP(B51,'LOC FINAL with new Themes'!A:M,12,0)","v":0},{"$f":"VLOOKUP(B51,'LOC FINAL with new Themes'!A:M,13,0)","v":0}]
[null,"Block Group (Census 2000)","Block Group (Census 2000)","Block Group (Census 2000)","Cultural & Demographic Statistics ","DOC-Census","Jennifer Holland","Jennifer.L.Holland@census.gov",null,{"$f":"VLOOKUP(B52,'LOC FINAL with new Themes'!A:M,7,0)","v":0},{"$f":"VLOOKUP(B52,'LOC FINAL with new Themes'!A:M,8,0)","v":0},{"$f":"VLOOKUP(B52,'LOC FINAL with new Themes'!A:M,9,0)","v":0},{"$f":"VLOOKUP(B52,'LOC FINAL with new Themes'!A:M,10,0)","v":0},{"$f":"VLOOKUP(B52,'LOC FINAL with new Themes'!A:M,11,0)","v":0},{"$f":"VLOOKUP(B52,'LOC FINAL with new Themes'!A:M,12,0)","v":0},{"$f":"VLOOKUP(B52,'LOC FINAL with new Themes'!A:M,13,0)","v":0}]
[null,"Block Group (Census 2010)","Block Group (Census 2010)","Block Group (Census 2010)","Cultural & Demographic Statistics ","DOC-Census","Jennifer Holland","Jennifer.L.Holland@census.gov",null,{"$f":"VLOOKUP(B53,'LOC FINAL with new Themes'!A:M,7,0)","v":0},{"$f":"VLOOKUP(B53,'LOC FINAL with new Themes'!A:M,8,0)","v":0},{"$f":"VLOOKUP(B53,'LOC FINAL with new Themes'!A:M,9,0)","v":0},{"$f":"VLOOKUP(B53,'LOC FINAL with new Themes'!A:M,10,0)","v":0},{"$f":"VLOOKUP(B53,'LOC FINAL with new Themes'!A:M,11,0)","v":0},{"$f":"VLOOKUP(B53,'LOC FINAL with new Themes'!A:M,12,0)","v":0},{"$f":"VLOOKUP(B53,'LOC FINAL with new Themes'!A:M,13,0)","v":0}]
[null,"Census 2000 FIPS 55 Codes","Census 2000 FIPS 55 Codes","Census 2000 FIPS 55 Codes","Cultural & Demographic Statistics ","DOC-Census","Jennifer Holland","Jennifer.L.Holland@census.gov",null,{"$f":"VLOOKUP(B54,'LOC FINAL with new Themes'!A:M,7,0)","v":0},{"$f":"VLOOKUP(B54,'LOC FINAL with new Themes'!A:M,8,0)","v":0},{"$f":"VLOOKUP(B54,'LOC FINAL with new Themes'!A:M,9,0)","v":0},{"$f":"VLOOKUP(B54,'LOC FINAL with new Themes'!A:M,10,0)","v":0},{"$f":"VLOOKUP(B54,'LOC FINAL with new Themes'!A:M,11,0)","v":0},{"$f":"VLOOKUP(B54,'LOC FINAL with new Themes'!A:M,12,0)","v":0},{"$f":"VLOOKUP(B54,'LOC FINAL with new Themes'!A:M,13,0)","v":0}]
[null,"Census Tract (2010 Census)","Census Tract (2010 Census)","Census Tract (2010 Census)","Cultural & Demographic Statistics ","DOC-Census","Jennifer Holland","Jennifer.L.Holland@census.gov",null,{"$f":"VLOOKUP(B55,'LOC FINAL with new Themes'!A:M,7,0)","v":0},{"$f":"VLOOKUP(B55,'LOC FINAL with new Themes'!A:M,8,0)","v":0},{"$f":"VLOOKUP(B55,'LOC FINAL with new Themes'!A:M,9,0)","v":0},{"$f":"VLOOKUP(B55,'LOC FINAL with new Themes'!A:M,10,0)","v":0},{"$f":"VLOOKUP(B55,'LOC FINAL with new Themes'!A:M,11,0)","v":0},{"$f":"VLOOKUP(B55,'LOC FINAL with new Themes'!A:M,12,0)","v":0},{"$f":"VLOOKUP(B55,'LOC FINAL with new Themes'!A:M,13,0)","v":0}]
[null,"Census Tract (Census 2000)","Census Tract (Census 2000)","Census Tract (Census 2000)","Cultural & Demographic Statistics ","DOC-Census","Jennifer Holland","Jennifer.L.Holland@census.gov",null,{"$f":"VLOOKUP(B56,'LOC FINAL with new Themes'!A:M,7,0)","v":0},{"$f":"VLOOKUP(B56,'LOC FINAL with new Themes'!A:M,8,0)","v":0},{"$f":"VLOOKUP(B56,'LOC FINAL with new Themes'!A:M,9,0)","v":0},{"$f":"VLOOKUP(B56,'LOC FINAL with new Themes'!A:M,10,0)","v":0},{"$f":"VLOOKUP(B56,'LOC FINAL with new Themes'!A:M,11,0)","v":0},{"$f":"VLOOKUP(B56,'LOC FINAL with new Themes'!A:M,12,0)","v":0},{"$f":"VLOOKUP(B56,'LOC FINAL with new Themes'!A:M,13,0)","v":0}]
[null,"Combined Statistical Area (2010 Census)","Combined Statistical Area (2010 Census)","Combined Statistical Area (2010 Census)","Cultural & Demographic Statistics ","DOC-Census","Jennifer Holland","Jennifer.L.Holland@census.gov",null,{"$f":"VLOOKUP(B57,'LOC FINAL with new Themes'!A:M,7,0)","v":0},{"$f":"VLOOKUP(B57,'LOC FINAL with new Themes'!A:M,8,0)","v":0},{"$f":"VLOOKUP(B57,'LOC FINAL with new Themes'!A:M,9,0)","v":0},{"$f":"VLOOKUP(B57,'LOC FINAL with new Themes'!A:M,10,0)","v":0},{"$f":"VLOOKUP(B57,'LOC FINAL with new Themes'!A:M,11,0)","v":0},{"$f":"VLOOKUP(B57,'LOC FINAL with new Themes'!A:M,12,0)","v":0},{"$f":"VLOOKUP(B57,'LOC FINAL with new Themes'!A:M,13,0)","v":0}]
[null,"Congressional District Boundaries",null,"Congressional District Boundaries","Cultural & Demographic Statistics ","DOC-Census","Randy Fusaro","randy.j.fusaro@census.gov",null,{"$f":"VLOOKUP(B58,'LOC FINAL with new Themes'!A:M,7,0)","v":0},{"$f":"VLOOKUP(B58,'LOC FINAL with new Themes'!A:M,8,0)","v":0},{"$f":"VLOOKUP(B58,'LOC FINAL with new Themes'!A:M,9,0)","v":0},{"$f":"VLOOKUP(B58,'LOC FINAL with new Themes'!A:M,10,0)","v":0},{"$f":"VLOOKUP(B58,'LOC FINAL with new Themes'!A:M,11,0)","v":0},{"$f":"VLOOKUP(B58,'LOC FINAL with new Themes'!A:M,12,0)","v":0},{"$f":"VLOOKUP(B58,'LOC FINAL with new Themes'!A:M,13,0)","v":0}]
["County, place, MCD Boundaries","County, place, MCD Boundaries",null,"County, place, MCD Boundaries","Cultural & Demographic Statistics ","DOC-Census","Randy Fusaro","randy.j.fusaro@census.gov",null,{"$f":"VLOOKUP(B59,'LOC FINAL with new Themes'!A:M,7,0)","v":0},{"$f":"VLOOKUP(B59,'LOC FINAL with new Themes'!A:M,8,0)","v":0},{"$f":"VLOOKUP(B59,'LOC FINAL with new Themes'!A:M,9,0)","v":0},{"$f":"VLOOKUP(B59,'LOC FINAL with new Themes'!A:M,10,0)","v":0},{"$f":"VLOOKUP(B59,'LOC FINAL with new Themes'!A:M,11,0)","v":0},{"$f":"VLOOKUP(B59,'LOC FINAL with new Themes'!A:M,12,0)","v":0},{"$f":"VLOOKUP(B59,'LOC FINAL with new Themes'!A:M,13,0)","v":0}]
[null,"Elementary School District (2010 Census)","Elementary School District (2010 Census)","Elementary School District (2010 Census)","Cultural & Demographic Statistics ","DOC-Census","Jennifer Holland","Jennifer.L.Holland@census.gov",null,{"$f":"VLOOKUP(B60,'LOC FINAL with new Themes'!A:M,7,0)","v":0},{"$f":"VLOOKUP(B60,'LOC FINAL with new Themes'!A:M,8,0)","v":0},{"$f":"VLOOKUP(B60,'LOC FINAL with new Themes'!A:M,9,0)","v":0},{"$f":"VLOOKUP(B60,'LOC FINAL with new Themes'!A:M,10,0)","v":0},{"$f":"VLOOKUP(B60,'LOC FINAL with new Themes'!A:M,11,0)","v":0},{"$f":"VLOOKUP(B60,'LOC FINAL with new Themes'!A:M,12,0)","v":0},{"$f":"VLOOKUP(B60,'LOC FINAL with new Themes'!A:M,13,0)","v":0}]
[null,"Elementary School District (Census 2000)","Elementary School District (Census 2000)","Elementary School District (Census 2000)","Cultural & Demographic Statistics ","DOC-Census","Jennifer Holland","Jennifer.L.Holland@census.gov",null,{"$f":"VLOOKUP(B61,'LOC FINAL with new Themes'!A:M,7,0)","v":0},{"$f":"VLOOKUP(B61,'LOC FINAL with new Themes'!A:M,8,0)","v":0},{"$f":"VLOOKUP(B61,'LOC FINAL with new Themes'!A:M,9,0)","v":0},{"$f":"VLOOKUP(B61,'LOC FINAL with new Themes'!A:M,10,0)","v":0},{"$f":"VLOOKUP(B61,'LOC FINAL with new Themes'!A:M,11,0)","v":0},{"$f":"VLOOKUP(B61,'LOC FINAL with new Themes'!A:M,12,0)","v":0},{"$f":"VLOOKUP(B61,'LOC FINAL with new Themes'!A:M,13,0)","v":0}]
["FIPS/ANSI codes for states, counties, congressional districts & metro/micropolitan areas","FIPS/ANSI codes for states, counties, congressional districts & metro/micropolitan areas",null,"FIPS/ANSI codes for states, counties, congressional districts & metro/micropolitan areas","Cultural & Demographic Statistics ","DOC-Census","Randy Fusaro","randy.j.fusaro@census.gov",null,{"$f":"VLOOKUP(B62,'LOC FINAL with new Themes'!A:M,7,0)","v":0},{"$f":"VLOOKUP(B62,'LOC FINAL with new Themes'!A:M,8,0)","v":0},{"$f":"VLOOKUP(B62,'LOC FINAL with new Themes'!A:M,9,0)","v":0},{"$f":"VLOOKUP(B62,'LOC FINAL with new Themes'!A:M,10,0)","v":0},{"$f":"VLOOKUP(B62,'LOC FINAL with new Themes'!A:M,11,0)","v":0},{"$f":"VLOOKUP(B62,'LOC FINAL with new Themes'!A:M,12,0)","v":0},{"$f":"VLOOKUP(B62,'LOC FINAL with new Themes'!A:M,13,0)","v":0}]
["Metropolitan/micropolitan area boundaries","Metropolitan/micropolitan area boundaries",null,"Metropolitan/micropolitan area boundaries","Cultural & Demographic Statistics ","DOC-Census","Randy Fusaro","randy.j.fusaro@census.gov",null,{"$f":"VLOOKUP(B63,'LOC FINAL with new Themes'!A:M,7,0)","v":0},{"$f":"VLOOKUP(B63,'LOC FINAL with new Themes'!A:M,8,0)","v":0},{"$f":"VLOOKUP(B63,'LOC FINAL with new Themes'!A:M,9,0)","v":0},{"$f":"VLOOKUP(B63,'LOC FINAL with new Themes'!A:M,10,0)","v":0},{"$f":"VLOOKUP(B63,'LOC FINAL with new Themes'!A:M,11,0)","v":0},{"$f":"VLOOKUP(B63,'LOC FINAL with new Themes'!A:M,12,0)","v":0},{"$f":"VLOOKUP(B63,'LOC FINAL with new Themes'!A:M,13,0)","v":0}]
[null,"Metropolitan/micropolitan Statistical Area (2010 Census)","Metropolitan/micropolitan Statistical Area (2010 Census)","Metropolitan/micropolitan Statistical Area (2010 Census)","Cultural & Demographic Statistics ","DOC-Census","Jennifer Holland","Jennifer.L.Holland@census.gov",null,{"$f":"VLOOKUP(B64,'LOC FINAL with new Themes'!A:M,7,0)","v":0},{"$f":"VLOOKUP(B64,'LOC FINAL with new Themes'!A:M,8,0)","v":0},{"$f":"VLOOKUP(B64,'LOC FINAL with new Themes'!A:M,9,0)","v":0},{"$f":"VLOOKUP(B64,'LOC FINAL with new Themes'!A:M,10,0)","v":0},{"$f":"VLOOKUP(B64,'LOC FINAL with new Themes'!A:M,11,0)","v":0},{"$f":"VLOOKUP(B64,'LOC FINAL with new Themes'!A:M,12,0)","v":0},{"$f":"VLOOKUP(B64,'LOC FINAL with new Themes'!A:M,13,0)","v":0}]
["National Center for Health Statistics (Atlas of US Mortality)","National Center for Health Statistics (Atlas of US Mortality)",null,"National Center for Health Statistics (Atlas of US Mortality)","Cultural & Demographic Statistics ","HHS","Gary Anderson","gary.anderson@hhs.gov",null,{"$f":"VLOOKUP(B65,'LOC FINAL with new Themes'!A:M,7,0)","v":0},{"$f":"VLOOKUP(B65,'LOC FINAL with new Themes'!A:M,8,0)","v":0},{"$f":"VLOOKUP(B65,'LOC FINAL with new Themes'!A:M,9,0)","v":0},{"$f":"VLOOKUP(B65,'LOC FINAL with new Themes'!A:M,10,0)","v":0},{"$f":"VLOOKUP(B65,'LOC FINAL with new Themes'!A:M,11,0)","v":0},{"$f":"VLOOKUP(B65,'LOC FINAL with new Themes'!A:M,12,0)","v":0},{"$f":"VLOOKUP(B65,'LOC FINAL with new Themes'!A:M,13,0)","v":0}]
[null,null,"Oklahoma Tribal Joint Use Areas","Oklahoma Tribal Joint Use Areas","Cultural & Demographic Statistics ","DOC-Census"]
[null,null,"Oklahoma Tribal Statistical Areas","Oklahoma Tribal Statistical Areas","Cultural & Demographic Statistics ","DOC-Census"]
[null,"Public Use Microdata Area (Census 2000)","Public Use Microdata Area (Census 2000)","Public Use Microdata Area (Census 2000)","Cultural & Demographic Statistics ","DOC-Census","Jennifer Holland","Jennifer.L.Holland@census.gov",null,{"$f":"VLOOKUP(B68,'LOC FINAL with new Themes'!A:M,7,0)","v":0},{"$f":"VLOOKUP(B68,'LOC FINAL with new Themes'!A:M,8,0)","v":0},{"$f":"VLOOKUP(B68,'LOC FINAL with new Themes'!A:M,9,0)","v":0},{"$f":"VLOOKUP(B68,'LOC FINAL with new Themes'!A:M,10,0)","v":0},{"$f":"VLOOKUP(B68,'LOC FINAL with new Themes'!A:M,11,0)","v":0},{"$f":"VLOOKUP(B68,'LOC FINAL with new Themes'!A:M,12,0)","v":0},{"$f":"VLOOKUP(B68,'LOC FINAL with new Themes'!A:M,13,0)","v":0}]
["School District Boundaries","School District Boundaries",null,"School District Boundaries","Cultural & Demographic Statistics ","DOC-Census","Randy Fusaro","randy.j.fusaro@census.gov",null,{"$f":"VLOOKUP(B69,'LOC FINAL with new Themes'!A:M,7,0)","v":0},{"$f":"VLOOKUP(B69,'LOC FINAL with new Themes'!A:M,8,0)","v":0},{"$f":"VLOOKUP(B69,'LOC FINAL with new Themes'!A:M,9,0)","v":0},{"$f":"VLOOKUP(B69,'LOC FINAL with new Themes'!A:M,10,0)","v":0},{"$f":"VLOOKUP(B69,'LOC FINAL with new Themes'!A:M,11,0)","v":0},{"$f":"VLOOKUP(B69,'LOC FINAL with new Themes'!A:M,12,0)","v":0},{"$f":"VLOOKUP(B69,'LOC FINAL with new Themes'!A:M,13,0)","v":0}]
[null,"Secondary School District (2010 Census)","Secondary School District (2010 Census)","Secondary School District (2010 Census)","Cultural & Demographic Statistics ","DOC-Census","Jennifer Holland","Jennifer.L.Holland@census.gov",null,{"$f":"VLOOKUP(B70,'LOC FINAL with new Themes'!A:M,7,0)","v":0},{"$f":"VLOOKUP(B70,'LOC FINAL with new Themes'!A:M,8,0)","v":0},{"$f":"VLOOKUP(B70,'LOC FINAL with new Themes'!A:M,9,0)","v":0},{"$f":"VLOOKUP(B70,'LOC FINAL with new Themes'!A:M,10,0)","v":0},{"$f":"VLOOKUP(B70,'LOC FINAL with new Themes'!A:M,11,0)","v":0},{"$f":"VLOOKUP(B70,'LOC FINAL with new Themes'!A:M,12,0)","v":0},{"$f":"VLOOKUP(B70,'LOC FINAL with new Themes'!A:M,13,0)","v":0}]
[null,"Secondary School District (Census 2000)","Secondary School District (Census 2000)","Secondary School District (Census 2000)","Cultural & Demographic Statistics ","DOC-Census","Jennifer Holland","Jennifer.L.Holland@census.gov",null,{"$f":"VLOOKUP(B71,'LOC FINAL with new Themes'!A:M,7,0)","v":0},{"$f":"VLOOKUP(B71,'LOC FINAL with new Themes'!A:M,8,0)","v":0},{"$f":"VLOOKUP(B71,'LOC FINAL with new Themes'!A:M,9,0)","v":0},{"$f":"VLOOKUP(B71,'LOC FINAL with new Themes'!A:M,10,0)","v":0},{"$f":"VLOOKUP(B71,'LOC FINAL with new Themes'!A:M,11,0)","v":0},{"$f":"VLOOKUP(B71,'LOC FINAL with new Themes'!A:M,12,0)","v":0},{"$f":"VLOOKUP(B71,'LOC FINAL with new Themes'!A:M,13,0)","v":0}]
["State (+ Territories) Boundaries","State (+ Territories) Boundaries",null,"State (+ Territories) Boundaries","Cultural & Demographic Statistics ","DOC-Census","Randy Fusaro","randy.j.fusaro@census.gov",null,{"$f":"VLOOKUP(B72,'LOC FINAL with new Themes'!A:M,7,0)","v":0},{"$f":"VLOOKUP(B72,'LOC FINAL with new Themes'!A:M,8,0)","v":0},{"$f":"VLOOKUP(B72,'LOC FINAL with new Themes'!A:M,9,0)","v":0},{"$f":"VLOOKUP(B72,'LOC FINAL with new Themes'!A:M,10,0)","v":0},{"$f":"VLOOKUP(B72,'LOC FINAL with new Themes'!A:M,11,0)","v":0},{"$f":"VLOOKUP(B72,'LOC FINAL with new Themes'!A:M,12,0)","v":0},{"$f":"VLOOKUP(B72,'LOC FINAL with new Themes'!A:M,13,0)","v":0}]
["Statistical Area Boundaries (tracts, blocks, UAs, CDPs, etc)","Statistical Area Boundaries (tracts, blocks, UAs, CDPs, etc)",null,"Statistical Area Boundaries (tracts, blocks, UAs, CDPs, etc)","Cultural & Demographic Statistics ","DOC-Census","Randy Fusaro","randy.j.fusaro@census.gov",null,{"$f":"VLOOKUP(B73,'LOC FINAL with new Themes'!A:M,7,0)","v":0},{"$f":"VLOOKUP(B73,'LOC FINAL with new Themes'!A:M,8,0)","v":0},{"$f":"VLOOKUP(B73,'LOC FINAL with new Themes'!A:M,9,0)","v":0},{"$f":"VLOOKUP(B73,'LOC FINAL with new Themes'!A:M,10,0)","v":0},{"$f":"VLOOKUP(B73,'LOC FINAL with new Themes'!A:M,11,0)","v":0},{"$f":"VLOOKUP(B73,'LOC FINAL with new Themes'!A:M,12,0)","v":0},{"$f":"VLOOKUP(B73,'LOC FINAL with new Themes'!A:M,13,0)","v":0}]
[null,"Super Public Use Microdata Area (Census 2000)","Super Public Use Microdata Area (Census 2000)","Super Public Use Microdata Area (Census 2000)","Cultural & Demographic Statistics ","DOC-Census","Jennifer Holland","Jennifer.L.Holland@census.gov",null,{"$f":"VLOOKUP(B74,'LOC FINAL with new Themes'!A:M,7,0)","v":0},{"$f":"VLOOKUP(B74,'LOC FINAL with new Themes'!A:M,8,0)","v":0},{"$f":"VLOOKUP(B74,'LOC FINAL with new Themes'!A:M,9,0)","v":0},{"$f":"VLOOKUP(B74,'LOC FINAL with new Themes'!A:M,10,0)","v":0},{"$f":"VLOOKUP(B74,'LOC FINAL with new Themes'!A:M,11,0)","v":0},{"$f":"VLOOKUP(B74,'LOC FINAL with new Themes'!A:M,12,0)","v":0},{"$f":"VLOOKUP(B74,'LOC FINAL with new Themes'!A:M,13,0)","v":0}]
["TIGER* (many statistical boundaries)","TIGER (many statistical boundaries)",null,"TIGER (many statistical boundaries)","Cultural & Demographic Statistics ","DOC-Census","Randy Fusaro","randy.j.fusaro@census.gov",null,{"$f":"VLOOKUP(B75,'LOC FINAL with new Themes'!A:M,7,0)","v":0},{"$f":"VLOOKUP(B75,'LOC FINAL with new Themes'!A:M,8,0)","v":0},{"$f":"VLOOKUP(B75,'LOC FINAL with new Themes'!A:M,9,0)","v":0},{"$f":"VLOOKUP(B75,'LOC FINAL with new Themes'!A:M,10,0)","v":0},{"$f":"VLOOKUP(B75,'LOC FINAL with new Themes'!A:M,11,0)","v":0},{"$f":"VLOOKUP(B75,'LOC FINAL with new Themes'!A:M,12,0)","v":0},{"$f":"VLOOKUP(B75,'LOC FINAL with new Themes'!A:M,13,0)","v":0}]
[null,"Topological Faces (2010 Census)","Topological Faces (2010 Census)","Topological Faces (2010 Census)","Cultural & Demographic Statistics ","DOC-Census","Jennifer Holland","Jennifer.L.Holland@census.gov",null,{"$f":"VLOOKUP(B76,'LOC FINAL with new Themes'!A:M,7,0)","v":0},{"$f":"VLOOKUP(B76,'LOC FINAL with new Themes'!A:M,8,0)","v":0},{"$f":"VLOOKUP(B76,'LOC FINAL with new Themes'!A:M,9,0)","v":0},{"$f":"VLOOKUP(B76,'LOC FINAL with new Themes'!A:M,10,0)","v":0},{"$f":"VLOOKUP(B76,'LOC FINAL with new Themes'!A:M,11,0)","v":0},{"$f":"VLOOKUP(B76,'LOC FINAL with new Themes'!A:M,12,0)","v":0},{"$f":"VLOOKUP(B76,'LOC FINAL with new Themes'!A:M,13,0)","v":0}]
[null,"Unified School District (2010 Census)","Unified School District (2010 Census)","Unified School District (2010 Census)","Cultural & Demographic Statistics ","DOC-Census","Jennifer Holland","Jennifer.L.Holland@census.gov",null,{"$f":"VLOOKUP(B77,'LOC FINAL with new Themes'!A:M,7,0)","v":0},{"$f":"VLOOKUP(B77,'LOC FINAL with new Themes'!A:M,8,0)","v":0},{"$f":"VLOOKUP(B77,'LOC FINAL with new Themes'!A:M,9,0)","v":0},{"$f":"VLOOKUP(B77,'LOC FINAL with new Themes'!A:M,10,0)","v":0},{"$f":"VLOOKUP(B77,'LOC FINAL with new Themes'!A:M,11,0)","v":0},{"$f":"VLOOKUP(B77,'LOC FINAL with new Themes'!A:M,12,0)","v":0},{"$f":"VLOOKUP(B77,'LOC FINAL with new Themes'!A:M,13,0)","v":0}]
[null,"Unified School District (Census 2000)","Unified School District (Census 2000)","Unified School District (Census 2000)","Cultural & Demographic Statistics ","DOC-Census","Jennifer Holland","Jennifer.L.Holland@census.gov",null,{"$f":"VLOOKUP(B78,'LOC FINAL with new Themes'!A:M,7,0)","v":0},{"$f":"VLOOKUP(B78,'LOC FINAL with new Themes'!A:M,8,0)","v":0},{"$f":"VLOOKUP(B78,'LOC FINAL with new Themes'!A:M,9,0)","v":0},{"$f":"VLOOKUP(B78,'LOC FINAL with new Themes'!A:M,10,0)","v":0},{"$f":"VLOOKUP(B78,'LOC FINAL with new Themes'!A:M,11,0)","v":0},{"$f":"VLOOKUP(B78,'LOC FINAL with new Themes'!A:M,12,0)","v":0},{"$f":"VLOOKUP(B78,'LOC FINAL with new Themes'!A:M,13,0)","v":0}]
[null,"Urban Growth Area (2010 Census)","Urban Growth Area (2010 Census)","Urban Growth Area (2010 Census)","Cultural & Demographic Statistics ","DOC-Census","Jennifer Holland","Jennifer.L.Holland@census.gov",null,{"$f":"VLOOKUP(B79,'LOC FINAL with new Themes'!A:M,7,0)","v":0},{"$f":"VLOOKUP(B79,'LOC FINAL with new Themes'!A:M,8,0)","v":0},{"$f":"VLOOKUP(B79,'LOC FINAL with new Themes'!A:M,9,0)","v":0},{"$f":"VLOOKUP(B79,'LOC FINAL with new Themes'!A:M,10,0)","v":0},{"$f":"VLOOKUP(B79,'LOC FINAL with new Themes'!A:M,11,0)","v":0},{"$f":"VLOOKUP(B79,'LOC FINAL with new Themes'!A:M,12,0)","v":0},{"$f":"VLOOKUP(B79,'LOC FINAL with new Themes'!A:M,13,0)","v":0}]
[null,"Urban Growth Area (Census 2000)","Urban Growth Area (Census 2000)","Urban Growth Area (Census 2000)","Cultural & Demographic Statistics ","DOC-Census","Jennifer Holland","Jennifer.L.Holland@census.gov",null,{"$f":"VLOOKUP(B80,'LOC FINAL with new Themes'!A:M,7,0)","v":0},{"$f":"VLOOKUP(B80,'LOC FINAL with new Themes'!A:M,8,0)","v":0},{"$f":"VLOOKUP(B80,'LOC FINAL with new Themes'!A:M,9,0)","v":0},{"$f":"VLOOKUP(B80,'LOC FINAL with new Themes'!A:M,10,0)","v":0},{"$f":"VLOOKUP(B80,'LOC FINAL with new Themes'!A:M,11,0)","v":0},{"$f":"VLOOKUP(B80,'LOC FINAL with new Themes'!A:M,12,0)","v":0},{"$f":"VLOOKUP(B80,'LOC FINAL with new Themes'!A:M,13,0)","v":0}]
[null,"Voting District (2010 Census)","Voting District (2010 Census)","Voting District (2010 Census)","Cultural & Demographic Statistics ","DOC-Census","Jennifer Holland","Jennifer.L.Holland@census.gov",null,{"$f":"VLOOKUP(B81,'LOC FINAL with new Themes'!A:M,7,0)","v":0},{"$f":"VLOOKUP(B81,'LOC FINAL with new Themes'!A:M,8,0)","v":0},{"$f":"VLOOKUP(B81,'LOC FINAL with new Themes'!A:M,9,0)","v":0},{"$f":"VLOOKUP(B81,'LOC FINAL with new Themes'!A:M,10,0)","v":0},{"$f":"VLOOKUP(B81,'LOC FINAL with new Themes'!A:M,11,0)","v":0},{"$f":"VLOOKUP(B81,'LOC FINAL with new Themes'!A:M,12,0)","v":0},{"$f":"VLOOKUP(B81,'LOC FINAL with new Themes'!A:M,13,0)","v":0}]
[null,"Voting District (Census 2000)","Voting District (Census 2000)","Voting District (Census 2000)","Cultural & Demographic Statistics ","DOC-Census","Jennifer Holland","Jennifer.L.Holland@census.gov",null,{"$f":"VLOOKUP(B82,'LOC FINAL with new Themes'!A:M,7,0)","v":0},{"$f":"VLOOKUP(B82,'LOC FINAL with new Themes'!A:M,8,0)","v":0},{"$f":"VLOOKUP(B82,'LOC FINAL with new Themes'!A:M,9,0)","v":0},{"$f":"VLOOKUP(B82,'LOC FINAL with new Themes'!A:M,10,0)","v":0},{"$f":"VLOOKUP(B82,'LOC FINAL with new Themes'!A:M,11,0)","v":0},{"$f":"VLOOKUP(B82,'LOC FINAL with new Themes'!A:M,12,0)","v":0},{"$f":"VLOOKUP(B82,'LOC FINAL with new Themes'!A:M,13,0)","v":0}]
["Voting District Boundaries","Voting District Boundaries",null,"Voting District Boundaries","Cultural & Demographic Statistics ","DOC-Census","Randy Fusaro","randy.j.fusaro@census.gov",null,{"$f":"VLOOKUP(B83,'LOC FINAL with new Themes'!A:M,7,0)","v":0},{"$f":"VLOOKUP(B83,'LOC FINAL with new Themes'!A:M,8,0)","v":0},{"$f":"VLOOKUP(B83,'LOC FINAL with new Themes'!A:M,9,0)","v":0},{"$f":"VLOOKUP(B83,'LOC FINAL with new Themes'!A:M,10,0)","v":0},{"$f":"VLOOKUP(B83,'LOC FINAL with new Themes'!A:M,11,0)","v":0},{"$f":"VLOOKUP(B83,'LOC FINAL with new Themes'!A:M,12,0)","v":0},{"$f":"VLOOKUP(B83,'LOC FINAL with new Themes'!A:M,13,0)","v":0}]
[null,null,null,{"$f":"SUBTOTAL(3,D43:D83)","v":41},"Cultural & Demographic Statistics  Count"]
["Cultural Landscape Boundaries","Cultural Landscape Boundaries","Cultural Landscape Boundaries",{"$f":"IF(C85=0,B85,C85)","v":"Cultural Landscape Boundaries"},"Cultural & Demographic Statistics \nCultural Resources","DOI-NPS","John Knoerl","john_knoerl@nps.gov",null,{"$f":"VLOOKUP(B85,'LOC FINAL with new Themes'!A:M,7,0)","v":"Feature classes of the cultural resource data model (NPS only, other federal agencies handle it as they decide)"},{"$f":"VLOOKUP(B85,'LOC FINAL with new Themes'!A:M,8,0)","v":"don't want a single centralized data set but focusing on standard approach"},{"$f":"VLOOKUP(B85,'LOC FINAL with new Themes'!A:M,9,0)","v":0},{"$f":"VLOOKUP(B85,'LOC FINAL with new Themes'!A:M,10,0)","v":0},{"$f":"VLOOKUP(B85,'LOC FINAL with new Themes'!A:M,11,0)","v":0},{"$f":"VLOOKUP(B85,'LOC FINAL with new Themes'!A:M,12,0)","v":0},{"$f":"VLOOKUP(B85,'LOC FINAL with new Themes'!A:M,13,0)","v":0}]
["Cultural Resource Survey Boundaries","Cultural Resource Survey Boundaries","Cultural Resource Survey Boundaries","Cultural Resource Survey Boundaries","Cultural & Demographic Statistics \nCultural Resources","DOI-NPS","John Knoerl","john_knoerl@nps.gov",null,{"$f":"VLOOKUP(B86,'LOC FINAL with new Themes'!A:M,7,0)","v":"Feature classes of the cultural resource data model (NPS only, other federal agencies handle it as they decide)"},{"$f":"VLOOKUP(B86,'LOC FINAL with new Themes'!A:M,8,0)","v":"don't want a single centralized data set but focusing on standard approach"},{"$f":"VLOOKUP(B86,'LOC FINAL with new Themes'!A:M,9,0)","v":0},{"$f":"VLOOKUP(B86,'LOC FINAL with new Themes'!A:M,10,0)","v":0},{"$f":"VLOOKUP(B86,'LOC FINAL with new Themes'!A:M,11,0)","v":0},{"$f":"VLOOKUP(B86,'LOC FINAL with new Themes'!A:M,12,0)","v":0},{"$f":"VLOOKUP(B86,'LOC FINAL with new Themes'!A:M,13,0)","v":0}]
["Ethnographic Resource Boundaries","Ethnographic Resource Boundaries","Ethnographic Resource Boundaries","Ethnographic Resource Boundaries","Cultural & Demographic Statistics \nCultural Resources","DOI-NPS","John Knoerl","john_knoerl@nps.gov",null,{"$f":"VLOOKUP(B87,'LOC FINAL with new Themes'!A:M,7,0)","v":"Feature classes of the cultural resource data model (NPS only, other federal agencies handle it as they decide)"},{"$f":"VLOOKUP(B87,'LOC FINAL with new Themes'!A:M,8,0)","v":"don't want a single centralized data set but focusing on standard approach"},{"$f":"VLOOKUP(B87,'LOC FINAL with new Themes'!A:M,9,0)","v":0},{"$f":"VLOOKUP(B87,'LOC FINAL with new Themes'!A:M,10,0)","v":0},{"$f":"VLOOKUP(B87,'LOC FINAL with new Themes'!A:M,11,0)","v":0},{"$f":"VLOOKUP(B87,'LOC FINAL with new Themes'!A:M,12,0)","v":0},{"$f":"VLOOKUP(B87,'LOC FINAL with new Themes'!A:M,13,0)","v":0}]
["Historic Buildings Boundaries","Historic Buildings Boundaries","Historic Buildings Boundaries","Historic Buildings Boundaries","Cultural & Demographic Statistics \nCultural Resources","DOI-NPS","John Knoerl","john_knoerl@nps.gov",null,{"$f":"VLOOKUP(B88,'LOC FINAL with new Themes'!A:M,7,0)","v":"Feature classes of the cultural resource data model (NPS only, other federal agencies handle it as they decide)"},{"$f":"VLOOKUP(B88,'LOC FINAL with new Themes'!A:M,8,0)","v":"don't want a single centralized data set but focusing on standard approach"},{"$f":"VLOOKUP(B88,'LOC FINAL with new Themes'!A:M,9,0)","v":0},{"$f":"VLOOKUP(B88,'LOC FINAL with new Themes'!A:M,10,0)","v":0},{"$f":"VLOOKUP(B88,'LOC FINAL with new Themes'!A:M,11,0)","v":0},{"$f":"VLOOKUP(B88,'LOC FINAL with new Themes'!A:M,12,0)","v":0},{"$f":"VLOOKUP(B88,'LOC FINAL with new Themes'!A:M,13,0)","v":0}]
["Historic Districts Boundaries","Historic Districts Boundaries","Historic Districts Boundaries","Historic Districts Boundaries","Cultural & Demographic Statistics \nCultural Resources","DOI-NPS","John Knoerl","john_knoerl@nps.gov",null,{"$f":"VLOOKUP(B89,'LOC FINAL with new Themes'!A:M,7,0)","v":"Feature classes of the cultural resource data model (NPS only, other federal agencies handle it as they decide)"},{"$f":"VLOOKUP(B89,'LOC FINAL with new Themes'!A:M,8,0)","v":"don't want a single centralized data set but focusing on standard approach"},{"$f":"VLOOKUP(B89,'LOC FINAL with new Themes'!A:M,9,0)","v":0},{"$f":"VLOOKUP(B89,'LOC FINAL with new Themes'!A:M,10,0)","v":0},{"$f":"VLOOKUP(B89,'LOC FINAL with new Themes'!A:M,11,0)","v":0},{"$f":"VLOOKUP(B89,'LOC FINAL with new Themes'!A:M,12,0)","v":0},{"$f":"VLOOKUP(B89,'LOC FINAL with new Themes'!A:M,13,0)","v":0}]
["Historic Objects Boundaries","Historic Objects Boundaries","Historic Objects Boundaries","Historic Objects Boundaries","Cultural & Demographic Statistics \nCultural Resources","DOI-NPS","John Knoerl","john_knoerl@nps.gov",null,{"$f":"VLOOKUP(B90,'LOC FINAL with new Themes'!A:M,7,0)","v":"Feature classes of the cultural resource data model (NPS only, other federal agencies handle it as they decide)"},{"$f":"VLOOKUP(B90,'LOC FINAL with new Themes'!A:M,8,0)","v":"don't want a single centralized data set but focusing on standard approach"},{"$f":"VLOOKUP(B90,'LOC FINAL with new Themes'!A:M,9,0)","v":0},{"$f":"VLOOKUP(B90,'LOC FINAL with new Themes'!A:M,10,0)","v":0},{"$f":"VLOOKUP(B90,'LOC FINAL with new Themes'!A:M,11,0)","v":0},{"$f":"VLOOKUP(B90,'LOC FINAL with new Themes'!A:M,12,0)","v":0},{"$f":"VLOOKUP(B90,'LOC FINAL with new Themes'!A:M,13,0)","v":0}]
["Historic Structures Boundaries","Historic Structures Boundaries","Historic Structures Boundaries","Historic Structures Boundaries","Cultural & Demographic Statistics \nCultural Resources","DOI-NPS","John Knoerl","john_knoerl@nps.gov",null,{"$f":"VLOOKUP(B91,'LOC FINAL with new Themes'!A:M,7,0)","v":"Feature classes of the cultural resource data model (NPS only, other federal agencies handle it as they decide)"},{"$f":"VLOOKUP(B91,'LOC FINAL with new Themes'!A:M,8,0)","v":"don't want a single centralized data set but focusing on standard approach"},{"$f":"VLOOKUP(B91,'LOC FINAL with new Themes'!A:M,9,0)","v":0},{"$f":"VLOOKUP(B91,'LOC FINAL with new Themes'!A:M,10,0)","v":0},{"$f":"VLOOKUP(B91,'LOC FINAL with new Themes'!A:M,11,0)","v":0},{"$f":"VLOOKUP(B91,'LOC FINAL with new Themes'!A:M,12,0)","v":0},{"$f":"VLOOKUP(B91,'LOC FINAL with new Themes'!A:M,13,0)","v":"M "}]
[null,null,"Other Cultural Resource Boundaries","Other Cultural Resource Boundaries","Cultural & Demographic Statistics \nCultural Resources","DOI-NPS"]
[null,null,null,{"$f":"SUBTOTAL(3,D85:D92)","v":8},"Cultural & Demographic Statistics \nCultural Resources Count"]
[null,"Point Landmark (2010 Census)","Point of Landmark (2010 Census)",{"$f":"IF(C94=0,B94,C94)","v":"Point of Landmark (2010 Census)"},"Cultural Resources","DOC-Census","Jennifer Holland","Jennifer.L.Holland@census.gov",null,{"$f":"VLOOKUP(B94,'LOC FINAL with new Themes'!A:M,7,0)","v":0},{"$f":"VLOOKUP(B94,'LOC FINAL with new Themes'!A:M,8,0)","v":0},{"$f":"VLOOKUP(B94,'LOC FINAL with new Themes'!A:M,9,0)","v":0},{"$f":"VLOOKUP(B94,'LOC FINAL with new Themes'!A:M,10,0)","v":0},{"$f":"VLOOKUP(B94,'LOC FINAL with new Themes'!A:M,11,0)","v":0},{"$f":"VLOOKUP(B94,'LOC FINAL with new Themes'!A:M,12,0)","v":0},{"$f":"VLOOKUP(B94,'LOC FINAL with new Themes'!A:M,13,0)","v":0}]
["Archeological Sites","Archeological Sites","Archeological Sites","Archeological Sites","Cultural Resources ","DOI-NPS","John Knoerl","john_knoerl@nps.gov",null,{"$f":"VLOOKUP(B95,'LOC FINAL with new Themes'!A:M,7,0)","v":"Feature classes of the cultural resource data model (NPS only, other federal agencies handle it as they decide)"},{"$f":"VLOOKUP(B95,'LOC FINAL with new Themes'!A:M,8,0)","v":"don't want a single centralized data set but focusing on standard approach"},{"$f":"VLOOKUP(B95,'LOC FINAL with new Themes'!A:M,9,0)","v":"National Historic Presrevation Act says state historic preservation office has primary oversight (section 110)"},{"$f":"VLOOKUP(B95,'LOC FINAL with new Themes'!A:M,10,0)","v":0},{"$f":"VLOOKUP(B95,'LOC FINAL with new Themes'!A:M,11,0)","v":0},{"$f":"VLOOKUP(B95,'LOC FINAL with new Themes'!A:M,12,0)","v":0},{"$f":"VLOOKUP(B95,'LOC FINAL with new Themes'!A:M,13,0)","v":0}]
[null,"Area Landmark (2010 Census)","Area Landmark (2010 Census)","Area Landmark (2010 Census)","Cultural Resources ","DOC-Census","Jennifer Holland","Jennifer.L.Holland@census.gov",null,{"$f":"VLOOKUP(B96,'LOC FINAL with new Themes'!A:M,7,0)","v":0},{"$f":"VLOOKUP(B96,'LOC FINAL with new Themes'!A:M,8,0)","v":0},{"$f":"VLOOKUP(B96,'LOC FINAL with new Themes'!A:M,9,0)","v":0},{"$f":"VLOOKUP(B96,'LOC FINAL with new Themes'!A:M,10,0)","v":0},{"$f":"VLOOKUP(B96,'LOC FINAL with new Themes'!A:M,11,0)","v":0},{"$f":"VLOOKUP(B96,'LOC FINAL with new Themes'!A:M,12,0)","v":0},{"$f":"VLOOKUP(B96,'LOC FINAL with new Themes'!A:M,13,0)","v":0}]
[null,null,"Geographic Names Dataset - National Map","Geographic Names Dataset - National Map","Cultural Resources ","DOI-USGS"]
["National Map - Geographic Names Information System (GNIS)","National Map - Geographic Names Information System (GNIS)",null,"National Map - Geographic Names Information System (GNIS)","Cultural Resources ","DOI-USGS","Lou Yost","lyost@usgs.gov",null,{"$f":"VLOOKUP(B98,'LOC FINAL with new Themes'!A:M,7,0)","v":"single data set; poc, data managers; daily updated; Denver systems people backup and archive; transfer to NARA also; Gaz vector (internal)"},{"$f":"VLOOKUP(B98,'LOC FINAL with new Themes'!A:M,8,0)","v":0},{"$f":"VLOOKUP(B98,'LOC FINAL with new Themes'!A:M,9,0)","v":0},{"$f":"VLOOKUP(B98,'LOC FINAL with new Themes'!A:M,10,0)","v":0},{"$f":"VLOOKUP(B98,'LOC FINAL with new Themes'!A:M,11,0)","v":0},{"$f":"VLOOKUP(B98,'LOC FINAL with new Themes'!A:M,12,0)","v":0},{"$f":"VLOOKUP(B98,'LOC FINAL with new Themes'!A:M,13,0)","v":"S"}]
[null,"Topological Faces-Area Landmark Relationship File","Topological Faces-Area Landmark Relationship File","Topological Faces-Area Landmark Relationship File","Cultural Resources ","DOC-Census","Jennifer Holland","Jennifer.L.Holland@census.gov",null,{"$f":"VLOOKUP(B99,'LOC FINAL with new Themes'!A:M,7,0)","v":0},{"$f":"VLOOKUP(B99,'LOC FINAL with new Themes'!A:M,8,0)","v":0},{"$f":"VLOOKUP(B99,'LOC FINAL with new Themes'!A:M,9,0)","v":0},{"$f":"VLOOKUP(B99,'LOC FINAL with new Themes'!A:M,10,0)","v":0},{"$f":"VLOOKUP(B99,'LOC FINAL with new Themes'!A:M,11,0)","v":0},{"$f":"VLOOKUP(B99,'LOC FINAL with new Themes'!A:M,12,0)","v":0},{"$f":"VLOOKUP(B99,'LOC FINAL with new Themes'!A:M,13,0)","v":0}]
[null,null,null,{"$f":"SUBTOTAL(3,D94:D99)","v":6},"Cultural Resources Count"]
["133 UA Elevation Data (lidar)","133 UA Elevation Data (lidar)",null,{"$f":"IF(C101=0,B101,C101)","v":"133 UA Elevation Data (lidar)"},"Elevation","DOD-NGA","Ron Power, NGA","ronald.k.power@nga.mil",null,{"$f":"VLOOKUP(B101,'LOC FINAL with new Themes'!A:M,7,0)","v":0},{"$f":"VLOOKUP(B101,'LOC FINAL with new Themes'!A:M,8,0)","v":0},{"$f":"VLOOKUP(B101,'LOC FINAL with new Themes'!A:M,9,0)","v":0},{"$f":"VLOOKUP(B101,'LOC FINAL with new Themes'!A:M,10,0)","v":0},{"$f":"VLOOKUP(B101,'LOC FINAL with new Themes'!A:M,11,0)","v":0},{"$f":"VLOOKUP(B101,'LOC FINAL with new Themes'!A:M,12,0)","v":0},{"$f":"VLOOKUP(B101,'LOC FINAL with new Themes'!A:M,13,0)","v":0}]
["DEMs - Archive","DEMs - Archive",null,"DEMs - Archive","Elevation","DOI-USGS","Gayla Evans","gevans@usgs.gov",null,{"$f":"VLOOKUP(B102,'LOC FINAL with new Themes'!A:M,7,0)","v":"DEMS update at variable nature; are four data sets based on resolution; this is the POC and data manager; this is the name and maintain three complete with two physically separate on-site and one off-site"},{"$f":"VLOOKUP(B102,'LOC FINAL with new Themes'!A:M,8,0)","v":0},{"$f":"VLOOKUP(B102,'LOC FINAL with new Themes'!A:M,9,0)","v":0},{"$f":"VLOOKUP(B102,'LOC FINAL with new Themes'!A:M,10,0)","v":0},{"$f":"VLOOKUP(B102,'LOC FINAL with new Themes'!A:M,11,0)","v":0},{"$f":"VLOOKUP(B102,'LOC FINAL with new Themes'!A:M,12,0)","v":0},{"$f":"VLOOKUP(B102,'LOC FINAL with new Themes'!A:M,13,0)","v":"S"}]
["GTOPO30","GTOPO30",null,"GTOPO30","Elevation","DOI-USGS","Jeff Danielson"," daniels@usgs.gov",null,{"$f":"VLOOKUP(B103,'LOC FINAL with new Themes'!A:M,7,0)","v":"GTOPO30 is static; one data set; this is the POC and data manager; this is the name and maintain three complete with two physically separate on-site and one off-site"},{"$f":"VLOOKUP(B103,'LOC FINAL with new Themes'!A:M,8,0)","v":0},{"$f":"VLOOKUP(B103,'LOC FINAL with new Themes'!A:M,9,0)","v":0},{"$f":"VLOOKUP(B103,'LOC FINAL with new Themes'!A:M,10,0)","v":0},{"$f":"VLOOKUP(B103,'LOC FINAL with new Themes'!A:M,11,0)","v":0},{"$f":"VLOOKUP(B103,'LOC FINAL with new Themes'!A:M,12,0)","v":0},{"$f":"VLOOKUP(B103,'LOC FINAL with new Themes'!A:M,13,0)","v":0}]
["National Map National Elevation Data Set (NED)","National Map  - National Elevation Dataset (NED)",null,"National Map  - National Elevation Dataset (NED)","Elevation","DOI-USGS","Jim Mauck","lyost@usgs.gov",null,{"$f":"VLOOKUP(B104,'LOC FINAL with new Themes'!A:M,7,0)","v":0},{"$f":"VLOOKUP(B104,'LOC FINAL with new Themes'!A:M,8,0)","v":0},{"$f":"VLOOKUP(B104,'LOC FINAL with new Themes'!A:M,9,0)","v":0},{"$f":"VLOOKUP(B104,'LOC FINAL with new Themes'!A:M,10,0)","v":0},{"$f":"VLOOKUP(B104,'LOC FINAL with new Themes'!A:M,11,0)","v":0},{"$f":"VLOOKUP(B104,'LOC FINAL with new Themes'!A:M,12,0)","v":0},{"$f":"VLOOKUP(B104,'LOC FINAL with new Themes'!A:M,13,0)","v":0}]
["SRTM (3-arc second DTEDS)","SRTM (3-arc second DTEDS)",null,"SRTM (3-arc second DTEDS)","Elevation","DOI-USGS","Dean Gesch, USGS","gesch@usgs.gov",null,{"$f":"VLOOKUP(B105,'LOC FINAL with new Themes'!A:M,7,0)","v":"SRTM is static; one data set; this is the POC and data manager; this is the name and maintain three complete with two physically separate on-site and one off-site"},{"$f":"VLOOKUP(B105,'LOC FINAL with new Themes'!A:M,8,0)","v":0},{"$f":"VLOOKUP(B105,'LOC FINAL with new Themes'!A:M,9,0)","v":0},{"$f":"VLOOKUP(B105,'LOC FINAL with new Themes'!A:M,10,0)","v":0},{"$f":"VLOOKUP(B105,'LOC FINAL with new Themes'!A:M,11,0)","v":0},{"$f":"VLOOKUP(B105,'LOC FINAL with new Themes'!A:M,12,0)","v":0},{"$f":"VLOOKUP(B105,'LOC FINAL with new Themes'!A:M,13,0)","v":"S"}]
["Digital Flood Insurance Rate Maps (D-FIRM)","Digital Flood Insurance Rate Maps (D-FIRM)","Digital Flood Insurance Rate Maps (DFIRM)","Digital Flood Insurance Rate Maps (DFIRM)","Elevation ","DHS-FEMA","Scott McAfee","scott.mcaffee@dhs.gov",null,{"$f":"VLOOKUP(B106,'LOC FINAL with new Themes'!A:M,7,0)","v":0},{"$f":"VLOOKUP(B106,'LOC FINAL with new Themes'!A:M,8,0)","v":0},{"$f":"VLOOKUP(B106,'LOC FINAL with new Themes'!A:M,9,0)","v":0},{"$f":"VLOOKUP(B106,'LOC FINAL with new Themes'!A:M,10,0)","v":0},{"$f":"VLOOKUP(B106,'LOC FINAL with new Themes'!A:M,11,0)","v":0},{"$f":"VLOOKUP(B106,'LOC FINAL with new Themes'!A:M,12,0)","v":0},{"$f":"VLOOKUP(B106,'LOC FINAL with new Themes'!A:M,13,0)","v":0}]
[null,null,"Elevation Bathymetric - Ocean, Coastal, and Great Lakes Bathymetry ","Elevation Bathymetric - Ocean, Coastal, and Great Lakes Bathymetry ","Elevation ","DOC-NOAA"]
[null,null,"National Elevation Dataset  - National Map","National Elevation Dataset  - National Map","Elevation ","DOI-USGS"]
["National Flood Hazard Layer (NFHL)","National Flood Hazard Layer (NFHL)","National Flood Hazard Layer (NFHL)","National Flood Hazard Layer (NFHL)","Elevation ","DHS-FEMA","Scott McAfee","scott.mcaffee@dhs.gov",null,{"$f":"VLOOKUP(B109,'LOC FINAL with new Themes'!A:M,7,0)","v":0},{"$f":"VLOOKUP(B109,'LOC FINAL with new Themes'!A:M,8,0)","v":0},{"$f":"VLOOKUP(B109,'LOC FINAL with new Themes'!A:M,9,0)","v":0},{"$f":"VLOOKUP(B109,'LOC FINAL with new Themes'!A:M,10,0)","v":0},{"$f":"VLOOKUP(B109,'LOC FINAL with new Themes'!A:M,11,0)","v":0},{"$f":"VLOOKUP(B109,'LOC FINAL with new Themes'!A:M,12,0)","v":0},{"$f":"VLOOKUP(B109,'LOC FINAL with new Themes'!A:M,13,0)","v":0}]
[null,null,null,{"$f":"SUBTOTAL(3,D101:D109)","v":9},"Elevation Count"]
[null,null,"Airborne Gravity",{"$f":"IF(C111=0,B111,C111)","v":"Airborne Gravity"},"Geodetic Control ","DOC-NOAA","Dr. Theresa Diehl","theresa.diehl@noaa.gov"]
[null,null,"Terrestrial Gravity",{"$f":"IF(C112=0,B112,C112)","v":"Terrestrial Gravity"},"Geodetic Control ","DOC-NOAA","Bill Waickman ","bill.waickman@noaa.gov"]
[null,null,"Continuously Operating Reference Stations (CORS)","Continuously Operating Reference Stations (CORS)","Geodetic Control ","DOC-NOAA","Dr. Giovanni Sella","giovanni.sella@noaa.gov"]
[null,null,"Geoid Models","Geoid Models","Geodetic Control ","DOC-NOAA","Dr. Dan Roman","dan.roman@noaa.gov"]
["National Geologic Data Base","National Geologic Data Base","National Geodetic Survey (NGS) Datasheets","National Geodetic Survey (NGS) Datasheets","Geodetic Control ","DOC-NOAA","Jim Tomlin","jim.tomlin@noaa.gov",null,{"$f":"VLOOKUP(B115,'LOC FINAL with new Themes'!A:M,7,0)","v":0},{"$f":"VLOOKUP(B115,'LOC FINAL with new Themes'!A:M,8,0)","v":0},{"$f":"VLOOKUP(B115,'LOC FINAL with new Themes'!A:M,9,0)","v":0},{"$f":"VLOOKUP(B115,'LOC FINAL with new Themes'!A:M,10,0)","v":0},{"$f":"VLOOKUP(B115,'LOC FINAL with new Themes'!A:M,11,0)","v":0},{"$f":"VLOOKUP(B115,'LOC FINAL with new Themes'!A:M,12,0)","v":0},{"$f":"VLOOKUP(B115,'LOC FINAL with new Themes'!A:M,13,0)","v":0}]
[null,null,"Precise Global Navigation Satellite System (GNSS) Orbits",{"$f":"IF(C116=0,#REF!,C116)","v":"Precise Global Navigation Satellite System (GNSS) Orbits"},"Geodetic Control ","DOC-NOAA","Dr. Jake Griffiths","jake.griffiths@noaa.gov"]
[null,null,null,{"$f":"SUBTOTAL(3,D111:D116)","v":6},"Geodetic Control  Count"]
[null,null,"Coal assessment and mapping",{"$f":"IF(C118=0,B118,C118)","v":"Coal assessment and mapping"},"Geology","DOI-USGS"]
["Coastline Data","Coastline Data","Coastline Data","Coastline Data","Geology","DOI-BOEM","Doug Vandegraft","Doug.Vandegraft@boem.gov",null,{"$f":"VLOOKUP(B119,'LOC FINAL with new Themes'!A:M,7,0)","v":"undeliverable email- neeed to identify new contact"},{"$f":"VLOOKUP(B119,'LOC FINAL with new Themes'!A:M,8,0)","v":0},{"$f":"VLOOKUP(B119,'LOC FINAL with new Themes'!A:M,9,0)","v":0},{"$f":"VLOOKUP(B119,'LOC FINAL with new Themes'!A:M,10,0)","v":0},{"$f":"VLOOKUP(B119,'LOC FINAL with new Themes'!A:M,11,0)","v":0},{"$f":"VLOOKUP(B119,'LOC FINAL with new Themes'!A:M,12,0)","v":0},{"$f":"VLOOKUP(B119,'LOC FINAL with new Themes'!A:M,13,0)","v":0}]
[null,null,"Earthquake monitoring, research, and mapping","Earthquake monitoring, research, and mapping","Geology","DOI-USGS"]
[null,null,"Geochemistry","Geochemistry","Geology","DOI-USGS"]
[null,null,"Geochronology","Geochronology","Geology","DOI-USGS"]
[null,null,"Geologic mapping","Geologic mapping","Geology","DOI-USGS"]
[null,null,"Geomagnetism","Geomagnetism","Geology","DOI-USGS"]
[null,null,"Geophysics","Geophysics","Geology","DOI-USGS"]
[null,null,"Landslide monitoring, research, and mapping","Landslide monitoring, research, and mapping","Geology","DOI-USGS"]
[null,null,"Marine geology","Marine geology","Geology","DOI-USGS"]
[null,null,"Metallic mineral assessment and mapping","Metallic mineral assessment and mapping","Geology","DOI-USGS"]
[null,null,"BOEM Baseline","BOEM Baseline","Geology","DOI-BOEM","Doug Vandegraft","Doug.Vandegraft@boem.gov"]
[null,null,"Non-metallic mineral assessment and mapping, onshore",{"$f":"IF(C130=0,B129,C130)","v":"Non-metallic mineral assessment and mapping, onshore"},"Geology","DOI-USGS"]
[null,null,"Oil and gas assessment and mapping, onshore",{"$f":"IF(C131=0,B131,C131)","v":"Oil and gas assessment and mapping, onshore"},"Geology","DOI-USGS"]
[null,null,"Paleontology","Paleontology","Geology","DOI-USGS"]
[null,null,"Sand and Gravel","Sand and Gravel","Geology","DOI-BOEM","Doug Vandegraft","Doug.Vandegraft@boem.gov"]
[null,null,"Volcano monitoring, research, and mapping","Volcano monitoring, research, and mapping","Geology","DOI-USGS"]
[null,null,"Wells","Wells","Geology","DOI-BOEM","Doug Vandegraft","Doug.Vandegraft@boem.gov"]
[null,null,null,{"$f":"SUBTOTAL(3,D118:D135)","v":18},"Geology Count"]
["County Boundaries","County Boundaries",null,{"$f":"IF(C137=0,B137,C137)","v":"County Boundaries"},"Governmental Units",{"$nulls":4},{"$f":"VLOOKUP(B137,'LOC FINAL with new Themes'!A:M,7,0)","v":0},{"$f":"VLOOKUP(B137,'LOC FINAL with new Themes'!A:M,8,0)","v":0},{"$f":"VLOOKUP(B137,'LOC FINAL with new Themes'!A:M,9,0)","v":0},{"$f":"VLOOKUP(B137,'LOC FINAL with new Themes'!A:M,10,0)","v":0},{"$f":"VLOOKUP(B137,'LOC FINAL with new Themes'!A:M,11,0)","v":0},{"$f":"VLOOKUP(B137,'LOC FINAL with new Themes'!A:M,12,0)","v":0},{"$f":"VLOOKUP(B137,'LOC FINAL with new Themes'!A:M,13,0)","v":0}]
[null,"Place and MCD Boundaries",null,"Place and MCD Boundaries","Governmental Units",{"$nulls":4},{"$f":"VLOOKUP(B138,'LOC FINAL with new Themes'!A:M,7,0)","v":0},{"$f":"VLOOKUP(B138,'LOC FINAL with new Themes'!A:M,8,0)","v":0},{"$f":"VLOOKUP(B138,'LOC FINAL with new Themes'!A:M,9,0)","v":0},{"$f":"VLOOKUP(B138,'LOC FINAL with new Themes'!A:M,10,0)","v":0},{"$f":"VLOOKUP(B138,'LOC FINAL with new Themes'!A:M,11,0)","v":0},{"$f":"VLOOKUP(B138,'LOC FINAL with new Themes'!A:M,12,0)","v":0},{"$f":"VLOOKUP(B138,'LOC FINAL with new Themes'!A:M,13,0)","v":0}]
[null,"Alaska Native Regional Corporation (2010 Census)","Alaska Native Regional Corporation (2010 Census)","Alaska Native Regional Corporation (2010 Census)","Governmental Units ","DOC-Census","Jennifer Holland","Jennifer.L.Holland@census.gov",null,{"$f":"VLOOKUP(B139,'LOC FINAL with new Themes'!A:M,7,0)","v":0},{"$f":"VLOOKUP(B139,'LOC FINAL with new Themes'!A:M,8,0)","v":0},{"$f":"VLOOKUP(B139,'LOC FINAL with new Themes'!A:M,9,0)","v":0},{"$f":"VLOOKUP(B139,'LOC FINAL with new Themes'!A:M,10,0)","v":0},{"$f":"VLOOKUP(B139,'LOC FINAL with new Themes'!A:M,11,0)","v":0},{"$f":"VLOOKUP(B139,'LOC FINAL with new Themes'!A:M,12,0)","v":0},{"$f":"VLOOKUP(B139,'LOC FINAL with new Themes'!A:M,13,0)","v":0}]
[null,"Alaska Native Regional Corporation (Census 2000)","Alaska Native Regional Corporation (Census 2000)","Alaska Native Regional Corporation (Census 2000)","Governmental Units ","DOC-Census","Jennifer Holland","Jennifer.L.Holland@census.gov",null,{"$f":"VLOOKUP(B140,'LOC FINAL with new Themes'!A:M,7,0)","v":0},{"$f":"VLOOKUP(B140,'LOC FINAL with new Themes'!A:M,8,0)","v":0},{"$f":"VLOOKUP(B140,'LOC FINAL with new Themes'!A:M,9,0)","v":0},{"$f":"VLOOKUP(B140,'LOC FINAL with new Themes'!A:M,10,0)","v":0},{"$f":"VLOOKUP(B140,'LOC FINAL with new Themes'!A:M,11,0)","v":0},{"$f":"VLOOKUP(B140,'LOC FINAL with new Themes'!A:M,12,0)","v":0},{"$f":"VLOOKUP(B140,'LOC FINAL with new Themes'!A:M,13,0)","v":0}]
[null,"American Indian Tribal Subdivision (2010 Census)","American Indian Tribal Subdivision (2010 Census)","American Indian Tribal Subdivision (2010 Census)","Governmental Units ","DOC-Census","Jennifer Holland","Jennifer.L.Holland@census.gov",null,{"$f":"VLOOKUP(B141,'LOC FINAL with new Themes'!A:M,7,0)","v":0},{"$f":"VLOOKUP(B141,'LOC FINAL with new Themes'!A:M,8,0)","v":0},{"$f":"VLOOKUP(B141,'LOC FINAL with new Themes'!A:M,9,0)","v":0},{"$f":"VLOOKUP(B141,'LOC FINAL with new Themes'!A:M,10,0)","v":0},{"$f":"VLOOKUP(B141,'LOC FINAL with new Themes'!A:M,11,0)","v":0},{"$f":"VLOOKUP(B141,'LOC FINAL with new Themes'!A:M,12,0)","v":0},{"$f":"VLOOKUP(B141,'LOC FINAL with new Themes'!A:M,13,0)","v":0}]
[null,"American Indian Tribal Subdivision (Census 2000)","American Indian Tribal Subdivision (Census 2000)","American Indian Tribal Subdivision (Census 2000)","Governmental Units ","DOC-Census","Jennifer Holland","Jennifer.L.Holland@census.gov",null,{"$f":"VLOOKUP(B142,'LOC FINAL with new Themes'!A:M,7,0)","v":0},{"$f":"VLOOKUP(B142,'LOC FINAL with new Themes'!A:M,8,0)","v":0},{"$f":"VLOOKUP(B142,'LOC FINAL with new Themes'!A:M,9,0)","v":0},{"$f":"VLOOKUP(B142,'LOC FINAL with new Themes'!A:M,10,0)","v":0},{"$f":"VLOOKUP(B142,'LOC FINAL with new Themes'!A:M,11,0)","v":0},{"$f":"VLOOKUP(B142,'LOC FINAL with new Themes'!A:M,12,0)","v":0},{"$f":"VLOOKUP(B142,'LOC FINAL with new Themes'!A:M,13,0)","v":0}]
[null,"American Indian/Alaska Native/Native Hawaiian Area (2000 Census)","American Indian/Alaska Native/Native Hawaiian Area (2000 Census)","American Indian/Alaska Native/Native Hawaiian Area (2000 Census)","Governmental Units ","DOC-Census","Jennifer Holland","Jennifer.L.Holland@census.gov",null,{"$f":"VLOOKUP(B143,'LOC FINAL with new Themes'!A:M,7,0)","v":0},{"$f":"VLOOKUP(B143,'LOC FINAL with new Themes'!A:M,8,0)","v":0},{"$f":"VLOOKUP(B143,'LOC FINAL with new Themes'!A:M,9,0)","v":0},{"$f":"VLOOKUP(B143,'LOC FINAL with new Themes'!A:M,10,0)","v":0},{"$f":"VLOOKUP(B143,'LOC FINAL with new Themes'!A:M,11,0)","v":0},{"$f":"VLOOKUP(B143,'LOC FINAL with new Themes'!A:M,12,0)","v":0},{"$f":"VLOOKUP(B143,'LOC FINAL with new Themes'!A:M,13,0)","v":0}]
[null,"American Indian/Alaska Native/Native Hawaiian Area (2010 Census)","American Indian/Alaska Native/Native Hawaiian Area (2010 Census)","American Indian/Alaska Native/Native Hawaiian Area (2010 Census)","Governmental Units ","DOC-Census","Jennifer Holland","Jennifer.L.Holland@census.gov",null,{"$f":"VLOOKUP(B144,'LOC FINAL with new Themes'!A:M,7,0)","v":0},{"$f":"VLOOKUP(B144,'LOC FINAL with new Themes'!A:M,8,0)","v":0},{"$f":"VLOOKUP(B144,'LOC FINAL with new Themes'!A:M,9,0)","v":0},{"$f":"VLOOKUP(B144,'LOC FINAL with new Themes'!A:M,10,0)","v":0},{"$f":"VLOOKUP(B144,'LOC FINAL with new Themes'!A:M,11,0)","v":0},{"$f":"VLOOKUP(B144,'LOC FINAL with new Themes'!A:M,12,0)","v":0},{"$f":"VLOOKUP(B144,'LOC FINAL with new Themes'!A:M,13,0)","v":0}]
[null,"Combined New England City and Town Area (2010 Census)","Combined New England City and Town Area (2010 Census)","Combined New England City and Town Area (2010 Census)","Governmental Units ","DOC-Census","Jennifer Holland","Jennifer.L.Holland@census.gov",null,{"$f":"VLOOKUP(B145,'LOC FINAL with new Themes'!A:M,7,0)","v":0},{"$f":"VLOOKUP(B145,'LOC FINAL with new Themes'!A:M,8,0)","v":0},{"$f":"VLOOKUP(B145,'LOC FINAL with new Themes'!A:M,9,0)","v":0},{"$f":"VLOOKUP(B145,'LOC FINAL with new Themes'!A:M,10,0)","v":0},{"$f":"VLOOKUP(B145,'LOC FINAL with new Themes'!A:M,11,0)","v":0},{"$f":"VLOOKUP(B145,'LOC FINAL with new Themes'!A:M,12,0)","v":0},{"$f":"VLOOKUP(B145,'LOC FINAL with new Themes'!A:M,13,0)","v":0}]
["Congressional District Boundaries","Congressional District (108th)","Congressional District (108th)","Congressional District (108th)","Governmental Units ","DOC-Census","Jennifer Holland","Jennifer.L.Holland@census.gov",null,{"$f":"VLOOKUP(B146,'LOC FINAL with new Themes'!A:M,7,0)","v":0},{"$f":"VLOOKUP(B146,'LOC FINAL with new Themes'!A:M,8,0)","v":0},{"$f":"VLOOKUP(B146,'LOC FINAL with new Themes'!A:M,9,0)","v":0},{"$f":"VLOOKUP(B146,'LOC FINAL with new Themes'!A:M,10,0)","v":0},{"$f":"VLOOKUP(B146,'LOC FINAL with new Themes'!A:M,11,0)","v":0},{"$f":"VLOOKUP(B146,'LOC FINAL with new Themes'!A:M,12,0)","v":0},{"$f":"VLOOKUP(B146,'LOC FINAL with new Themes'!A:M,13,0)","v":0}]
[null,"Congressional District (111th)","Congressional District (111th)","Congressional District (111th)","Governmental Units ","DOC-Census","Jennifer Holland","Jennifer.L.Holland@census.gov",null,{"$f":"VLOOKUP(B147,'LOC FINAL with new Themes'!A:M,7,0)","v":0},{"$f":"VLOOKUP(B147,'LOC FINAL with new Themes'!A:M,8,0)","v":0},{"$f":"VLOOKUP(B147,'LOC FINAL with new Themes'!A:M,9,0)","v":0},{"$f":"VLOOKUP(B147,'LOC FINAL with new Themes'!A:M,10,0)","v":0},{"$f":"VLOOKUP(B147,'LOC FINAL with new Themes'!A:M,11,0)","v":0},{"$f":"VLOOKUP(B147,'LOC FINAL with new Themes'!A:M,12,0)","v":0},{"$f":"VLOOKUP(B147,'LOC FINAL with new Themes'!A:M,13,0)","v":0}]
[null,"Consolidated City (2010 Census)","Consolidated City (2010 Census)","Consolidated City (2010 Census)","Governmental Units ","DOC-Census","Jennifer Holland","Jennifer.L.Holland@census.gov",null,{"$f":"VLOOKUP(B148,'LOC FINAL with new Themes'!A:M,7,0)","v":0},{"$f":"VLOOKUP(B148,'LOC FINAL with new Themes'!A:M,8,0)","v":0},{"$f":"VLOOKUP(B148,'LOC FINAL with new Themes'!A:M,9,0)","v":0},{"$f":"VLOOKUP(B148,'LOC FINAL with new Themes'!A:M,10,0)","v":0},{"$f":"VLOOKUP(B148,'LOC FINAL with new Themes'!A:M,11,0)","v":0},{"$f":"VLOOKUP(B148,'LOC FINAL with new Themes'!A:M,12,0)","v":0},{"$f":"VLOOKUP(B148,'LOC FINAL with new Themes'!A:M,13,0)","v":0}]
[null,"Consolidated City (Census 2000)","Consolidated City (Census 2000)","Consolidated City (Census 2000)","Governmental Units ","DOC-Census","Jennifer Holland","Jennifer.L.Holland@census.gov",null,{"$f":"VLOOKUP(B149,'LOC FINAL with new Themes'!A:M,7,0)","v":0},{"$f":"VLOOKUP(B149,'LOC FINAL with new Themes'!A:M,8,0)","v":0},{"$f":"VLOOKUP(B149,'LOC FINAL with new Themes'!A:M,9,0)","v":0},{"$f":"VLOOKUP(B149,'LOC FINAL with new Themes'!A:M,10,0)","v":0},{"$f":"VLOOKUP(B149,'LOC FINAL with new Themes'!A:M,11,0)","v":0},{"$f":"VLOOKUP(B149,'LOC FINAL with new Themes'!A:M,12,0)","v":0},{"$f":"VLOOKUP(B149,'LOC FINAL with new Themes'!A:M,13,0)","v":0}]
[null,"County and Equivalent (2010 Census)","County and Equivalent (2010 Census)","County and Equivalent (2010 Census)","Governmental Units ","DOC-Census","Jennifer Holland","Jennifer.L.Holland@census.gov",null,{"$f":"VLOOKUP(B150,'LOC FINAL with new Themes'!A:M,7,0)","v":0},{"$f":"VLOOKUP(B150,'LOC FINAL with new Themes'!A:M,8,0)","v":0},{"$f":"VLOOKUP(B150,'LOC FINAL with new Themes'!A:M,9,0)","v":0},{"$f":"VLOOKUP(B150,'LOC FINAL with new Themes'!A:M,10,0)","v":0},{"$f":"VLOOKUP(B150,'LOC FINAL with new Themes'!A:M,11,0)","v":0},{"$f":"VLOOKUP(B150,'LOC FINAL with new Themes'!A:M,12,0)","v":0},{"$f":"VLOOKUP(B150,'LOC FINAL with new Themes'!A:M,13,0)","v":0}]
[null,"County and Equivalent (Census 2000)","County and Equivalent (Census 2000)","County and Equivalent (Census 2000)","Governmental Units ","DOC-Census","Jennifer Holland","Jennifer.L.Holland@census.gov",null,{"$f":"VLOOKUP(B151,'LOC FINAL with new Themes'!A:M,7,0)","v":0},{"$f":"VLOOKUP(B151,'LOC FINAL with new Themes'!A:M,8,0)","v":0},{"$f":"VLOOKUP(B151,'LOC FINAL with new Themes'!A:M,9,0)","v":0},{"$f":"VLOOKUP(B151,'LOC FINAL with new Themes'!A:M,10,0)","v":0},{"$f":"VLOOKUP(B151,'LOC FINAL with new Themes'!A:M,11,0)","v":0},{"$f":"VLOOKUP(B151,'LOC FINAL with new Themes'!A:M,12,0)","v":0},{"$f":"VLOOKUP(B151,'LOC FINAL with new Themes'!A:M,13,0)","v":0}]
[null,"County Subdivision (2010 Census)","County Subdivision (2010 Census)","County Subdivision (2010 Census)","Governmental Units ","DOC-Census","Jennifer Holland","Jennifer.L.Holland@census.gov",null,{"$f":"VLOOKUP(B152,'LOC FINAL with new Themes'!A:M,7,0)","v":0},{"$f":"VLOOKUP(B152,'LOC FINAL with new Themes'!A:M,8,0)","v":0},{"$f":"VLOOKUP(B152,'LOC FINAL with new Themes'!A:M,9,0)","v":0},{"$f":"VLOOKUP(B152,'LOC FINAL with new Themes'!A:M,10,0)","v":0},{"$f":"VLOOKUP(B152,'LOC FINAL with new Themes'!A:M,11,0)","v":0},{"$f":"VLOOKUP(B152,'LOC FINAL with new Themes'!A:M,12,0)","v":0},{"$f":"VLOOKUP(B152,'LOC FINAL with new Themes'!A:M,13,0)","v":0}]
[null,"County Subdivision (Census 2000)","County Subdivision (Census 2000)","County Subdivision (Census 2000)","Governmental Units ","DOC-Census","Jennifer Holland","Jennifer.L.Holland@census.gov",null,{"$f":"VLOOKUP(B153,'LOC FINAL with new Themes'!A:M,7,0)","v":0},{"$f":"VLOOKUP(B153,'LOC FINAL with new Themes'!A:M,8,0)","v":0},{"$f":"VLOOKUP(B153,'LOC FINAL with new Themes'!A:M,9,0)","v":0},{"$f":"VLOOKUP(B153,'LOC FINAL with new Themes'!A:M,10,0)","v":0},{"$f":"VLOOKUP(B153,'LOC FINAL with new Themes'!A:M,11,0)","v":0},{"$f":"VLOOKUP(B153,'LOC FINAL with new Themes'!A:M,12,0)","v":0},{"$f":"VLOOKUP(B153,'LOC FINAL with new Themes'!A:M,13,0)","v":0}]
[null,"Metropolitan Division (2010 Census)","Metropolitan Division (2010 Census)","Metropolitan Division (2010 Census)","Governmental Units ","DOC-Census","Jennifer Holland","Jennifer.L.Holland@census.gov",null,{"$f":"VLOOKUP(B154,'LOC FINAL with new Themes'!A:M,7,0)","v":0},{"$f":"VLOOKUP(B154,'LOC FINAL with new Themes'!A:M,8,0)","v":0},{"$f":"VLOOKUP(B154,'LOC FINAL with new Themes'!A:M,9,0)","v":0},{"$f":"VLOOKUP(B154,'LOC FINAL with new Themes'!A:M,10,0)","v":0},{"$f":"VLOOKUP(B154,'LOC FINAL with new Themes'!A:M,11,0)","v":0},{"$f":"VLOOKUP(B154,'LOC FINAL with new Themes'!A:M,12,0)","v":0},{"$f":"VLOOKUP(B154,'LOC FINAL with new Themes'!A:M,13,0)","v":0}]
[null,"Metropolitan Division (2010 Census)","Metropolitan Division (2010 Census)","Metropolitan Division (2010 Census)","Governmental Units ","DOC-Census","Jennifer Holland","Jennifer.L.Holland@census.gov",null,{"$f":"VLOOKUP(B155,'LOC FINAL with new Themes'!A:M,7,0)","v":0},{"$f":"VLOOKUP(B155,'LOC FINAL with new Themes'!A:M,8,0)","v":0},{"$f":"VLOOKUP(B155,'LOC FINAL with new Themes'!A:M,9,0)","v":0},{"$f":"VLOOKUP(B155,'LOC FINAL with new Themes'!A:M,10,0)","v":0},{"$f":"VLOOKUP(B155,'LOC FINAL with new Themes'!A:M,11,0)","v":0},{"$f":"VLOOKUP(B155,'LOC FINAL with new Themes'!A:M,12,0)","v":0},{"$f":"VLOOKUP(B155,'LOC FINAL with new Themes'!A:M,13,0)","v":0}]
[null,"New England City and Town Area (2010 Census)","New England City and Town Area (2010 Census)","New England City and Town Area (2010 Census)","Governmental Units ","DOC-Census","Jennifer Holland","Jennifer.L.Holland@census.gov",null,{"$f":"VLOOKUP(B156,'LOC FINAL with new Themes'!A:M,7,0)","v":0},{"$f":"VLOOKUP(B156,'LOC FINAL with new Themes'!A:M,8,0)","v":0},{"$f":"VLOOKUP(B156,'LOC FINAL with new Themes'!A:M,9,0)","v":0},{"$f":"VLOOKUP(B156,'LOC FINAL with new Themes'!A:M,10,0)","v":0},{"$f":"VLOOKUP(B156,'LOC FINAL with new Themes'!A:M,11,0)","v":0},{"$f":"VLOOKUP(B156,'LOC FINAL with new Themes'!A:M,12,0)","v":0},{"$f":"VLOOKUP(B156,'LOC FINAL with new Themes'!A:M,13,0)","v":0}]
[null,"New England City and Town Area Division (2010 Census)","New England City and Town Area Division (2010 Census)","New England City and Town Area Division (2010 Census)","Governmental Units ","DOC-Census","Jennifer Holland","Jennifer.L.Holland@census.gov",null,{"$f":"VLOOKUP(B157,'LOC FINAL with new Themes'!A:M,7,0)","v":0},{"$f":"VLOOKUP(B157,'LOC FINAL with new Themes'!A:M,8,0)","v":0},{"$f":"VLOOKUP(B157,'LOC FINAL with new Themes'!A:M,9,0)","v":0},{"$f":"VLOOKUP(B157,'LOC FINAL with new Themes'!A:M,10,0)","v":0},{"$f":"VLOOKUP(B157,'LOC FINAL with new Themes'!A:M,11,0)","v":0},{"$f":"VLOOKUP(B157,'LOC FINAL with new Themes'!A:M,12,0)","v":0},{"$f":"VLOOKUP(B157,'LOC FINAL with new Themes'!A:M,13,0)","v":0}]
["Place and MCD Boundaries","Place (2010 Census)","Place (2010 Census)","Place (2010 Census)","Governmental Units ","DOC-Census","Jennifer Holland","Jennifer.L.Holland@census.gov",null,{"$f":"VLOOKUP(B158,'LOC FINAL with new Themes'!A:M,7,0)","v":0},{"$f":"VLOOKUP(B158,'LOC FINAL with new Themes'!A:M,8,0)","v":0},{"$f":"VLOOKUP(B158,'LOC FINAL with new Themes'!A:M,9,0)","v":0},{"$f":"VLOOKUP(B158,'LOC FINAL with new Themes'!A:M,10,0)","v":0},{"$f":"VLOOKUP(B158,'LOC FINAL with new Themes'!A:M,11,0)","v":0},{"$f":"VLOOKUP(B158,'LOC FINAL with new Themes'!A:M,12,0)","v":0},{"$f":"VLOOKUP(B158,'LOC FINAL with new Themes'!A:M,13,0)","v":0}]
[null,"Place (Census 2000)","Place (Census 2000)","Place (Census 2000)","Governmental Units ","DOC-Census","Jennifer Holland","Jennifer.L.Holland@census.gov",null,{"$f":"VLOOKUP(B159,'LOC FINAL with new Themes'!A:M,7,0)","v":0},{"$f":"VLOOKUP(B159,'LOC FINAL with new Themes'!A:M,8,0)","v":0},{"$f":"VLOOKUP(B159,'LOC FINAL with new Themes'!A:M,9,0)","v":0},{"$f":"VLOOKUP(B159,'LOC FINAL with new Themes'!A:M,10,0)","v":0},{"$f":"VLOOKUP(B159,'LOC FINAL with new Themes'!A:M,11,0)","v":0},{"$f":"VLOOKUP(B159,'LOC FINAL with new Themes'!A:M,12,0)","v":0},{"$f":"VLOOKUP(B159,'LOC FINAL with new Themes'!A:M,13,0)","v":0}]
["State(+ Territories) Boundaries","State and Equivalent  (2010 Census)","State and Equivalent  (2010 Census)","State and Equivalent  (2010 Census)","Governmental Units ","DOC-Census","Jennifer Holland","Jennifer.L.Holland@census.gov",null,{"$f":"VLOOKUP(B160,'LOC FINAL with new Themes'!A:M,7,0)","v":0},{"$f":"VLOOKUP(B160,'LOC FINAL with new Themes'!A:M,8,0)","v":0},{"$f":"VLOOKUP(B160,'LOC FINAL with new Themes'!A:M,9,0)","v":0},{"$f":"VLOOKUP(B160,'LOC FINAL with new Themes'!A:M,10,0)","v":0},{"$f":"VLOOKUP(B160,'LOC FINAL with new Themes'!A:M,11,0)","v":0},{"$f":"VLOOKUP(B160,'LOC FINAL with new Themes'!A:M,12,0)","v":0},{"$f":"VLOOKUP(B160,'LOC FINAL with new Themes'!A:M,13,0)","v":0}]
[null,"State and Equivalent  (Census 2000)","State and Equivalent  (Census 2000)","State and Equivalent  (Census 2000)","Governmental Units ","DOC-Census","Jennifer Holland","Jennifer.L.Holland@census.gov",null,{"$f":"VLOOKUP(B161,'LOC FINAL with new Themes'!A:M,7,0)","v":0},{"$f":"VLOOKUP(B161,'LOC FINAL with new Themes'!A:M,8,0)","v":0},{"$f":"VLOOKUP(B161,'LOC FINAL with new Themes'!A:M,9,0)","v":0},{"$f":"VLOOKUP(B161,'LOC FINAL with new Themes'!A:M,10,0)","v":0},{"$f":"VLOOKUP(B161,'LOC FINAL with new Themes'!A:M,11,0)","v":0},{"$f":"VLOOKUP(B161,'LOC FINAL with new Themes'!A:M,12,0)","v":0},{"$f":"VLOOKUP(B161,'LOC FINAL with new Themes'!A:M,13,0)","v":0}]
[null,"State Legislative District (Lower Chamber) (2010 Census)","State Legislative District (Lower Chamber) (2010 Census)","State Legislative District (Lower Chamber) (2010 Census)","Governmental Units ","DOC-Census","Jennifer Holland","Jennifer.L.Holland@census.gov",null,{"$f":"VLOOKUP(B162,'LOC FINAL with new Themes'!A:M,7,0)","v":0},{"$f":"VLOOKUP(B162,'LOC FINAL with new Themes'!A:M,8,0)","v":0},{"$f":"VLOOKUP(B162,'LOC FINAL with new Themes'!A:M,9,0)","v":0},{"$f":"VLOOKUP(B162,'LOC FINAL with new Themes'!A:M,10,0)","v":0},{"$f":"VLOOKUP(B162,'LOC FINAL with new Themes'!A:M,11,0)","v":0},{"$f":"VLOOKUP(B162,'LOC FINAL with new Themes'!A:M,12,0)","v":0},{"$f":"VLOOKUP(B162,'LOC FINAL with new Themes'!A:M,13,0)","v":0}]
[null,"State Legislative District (Lower Chamber) (Census 2000)","State Legislative District (Lower Chamber) (Census 2000)","State Legislative District (Lower Chamber) (Census 2000)","Governmental Units ","DOC-Census","Jennifer Holland","Jennifer.L.Holland@census.gov",null,{"$f":"VLOOKUP(B163,'LOC FINAL with new Themes'!A:M,7,0)","v":0},{"$f":"VLOOKUP(B163,'LOC FINAL with new Themes'!A:M,8,0)","v":0},{"$f":"VLOOKUP(B163,'LOC FINAL with new Themes'!A:M,9,0)","v":0},{"$f":"VLOOKUP(B163,'LOC FINAL with new Themes'!A:M,10,0)","v":0},{"$f":"VLOOKUP(B163,'LOC FINAL with new Themes'!A:M,11,0)","v":0},{"$f":"VLOOKUP(B163,'LOC FINAL with new Themes'!A:M,12,0)","v":0},{"$f":"VLOOKUP(B163,'LOC FINAL with new Themes'!A:M,13,0)","v":0}]
[null,"State Legislative District (Upper Chamber) (2010 Census)","State Legislative District (Upper Chamber) (2010 Census)","State Legislative District (Upper Chamber) (2010 Census)","Governmental Units ","DOC-Census","Jennifer Holland","Jennifer.L.Holland@census.gov",null,{"$f":"VLOOKUP(B164,'LOC FINAL with new Themes'!A:M,7,0)","v":0},{"$f":"VLOOKUP(B164,'LOC FINAL with new Themes'!A:M,8,0)","v":0},{"$f":"VLOOKUP(B164,'LOC FINAL with new Themes'!A:M,9,0)","v":0},{"$f":"VLOOKUP(B164,'LOC FINAL with new Themes'!A:M,10,0)","v":0},{"$f":"VLOOKUP(B164,'LOC FINAL with new Themes'!A:M,11,0)","v":0},{"$f":"VLOOKUP(B164,'LOC FINAL with new Themes'!A:M,12,0)","v":0},{"$f":"VLOOKUP(B164,'LOC FINAL with new Themes'!A:M,13,0)","v":0}]
[null,"State Legislative District (Upper Chamber) (Census 2000)","State Legislative District (Upper Chamber) (Census 2000)","State Legislative District (Upper Chamber) (Census 2000)","Governmental Units ","DOC-Census","Jennifer Holland","Jennifer.L.Holland@census.gov",null,{"$f":"VLOOKUP(B165,'LOC FINAL with new Themes'!A:M,7,0)","v":0},{"$f":"VLOOKUP(B165,'LOC FINAL with new Themes'!A:M,8,0)","v":0},{"$f":"VLOOKUP(B165,'LOC FINAL with new Themes'!A:M,9,0)","v":0},{"$f":"VLOOKUP(B165,'LOC FINAL with new Themes'!A:M,10,0)","v":0},{"$f":"VLOOKUP(B165,'LOC FINAL with new Themes'!A:M,11,0)","v":0},{"$f":"VLOOKUP(B165,'LOC FINAL with new Themes'!A:M,12,0)","v":0},{"$f":"VLOOKUP(B165,'LOC FINAL with new Themes'!A:M,13,0)","v":0}]
[null,"Subbarrio (2010 Census)","Subbarrio (2010 Census)","Subbarrio (2010 Census)","Governmental Units ","DOC-Census","Jennifer Holland","Jennifer.L.Holland@census.gov",null,{"$f":"VLOOKUP(B166,'LOC FINAL with new Themes'!A:M,7,0)","v":0},{"$f":"VLOOKUP(B166,'LOC FINAL with new Themes'!A:M,8,0)","v":0},{"$f":"VLOOKUP(B166,'LOC FINAL with new Themes'!A:M,9,0)","v":0},{"$f":"VLOOKUP(B166,'LOC FINAL with new Themes'!A:M,10,0)","v":0},{"$f":"VLOOKUP(B166,'LOC FINAL with new Themes'!A:M,11,0)","v":0},{"$f":"VLOOKUP(B166,'LOC FINAL with new Themes'!A:M,12,0)","v":0},{"$f":"VLOOKUP(B166,'LOC FINAL with new Themes'!A:M,13,0)","v":0}]
[null,"Subbarrio (Census 2000)","Subbarrio (Census 2000)","Subbarrio (Census 2000)","Governmental Units ","DOC-Census","Jennifer Holland","Jennifer.L.Holland@census.gov",null,{"$f":"VLOOKUP(B167,'LOC FINAL with new Themes'!A:M,7,0)","v":0},{"$f":"VLOOKUP(B167,'LOC FINAL with new Themes'!A:M,8,0)","v":0},{"$f":"VLOOKUP(B167,'LOC FINAL with new Themes'!A:M,9,0)","v":0},{"$f":"VLOOKUP(B167,'LOC FINAL with new Themes'!A:M,10,0)","v":0},{"$f":"VLOOKUP(B167,'LOC FINAL with new Themes'!A:M,11,0)","v":0},{"$f":"VLOOKUP(B167,'LOC FINAL with new Themes'!A:M,12,0)","v":0},{"$f":"VLOOKUP(B167,'LOC FINAL with new Themes'!A:M,13,0)","v":0}]
[null,"Urban Area (Corrected Census 2000)","Urban Area (Corrected Census 2000)","Urban Area (Corrected Census 2000)","Governmental Units ","DOC-Census","Jennifer Holland","Jennifer.L.Holland@census.gov",null,{"$f":"VLOOKUP(B168,'LOC FINAL with new Themes'!A:M,7,0)","v":0},{"$f":"VLOOKUP(B168,'LOC FINAL with new Themes'!A:M,8,0)","v":0},{"$f":"VLOOKUP(B168,'LOC FINAL with new Themes'!A:M,9,0)","v":0},{"$f":"VLOOKUP(B168,'LOC FINAL with new Themes'!A:M,10,0)","v":0},{"$f":"VLOOKUP(B168,'LOC FINAL with new Themes'!A:M,11,0)","v":0},{"$f":"VLOOKUP(B168,'LOC FINAL with new Themes'!A:M,12,0)","v":0},{"$f":"VLOOKUP(B168,'LOC FINAL with new Themes'!A:M,13,0)","v":0}]
[null,null,null,{"$f":"SUBTOTAL(3,D137:D168)","v":32},"Governmental Units Count"]
["133 Urban Areas imagery program data","133 Urban Areas imagery program data",null,{"$f":"IF(C170=0,B170,C170)","v":"133 Urban Areas imagery program data"},"Imagery ","DOD-NGA","William Nellist","William.E.Nellist@nga.mil",null,{"$f":"VLOOKUP(B170,'LOC FINAL with new Themes'!A:M,7,0)","v":0},{"$f":"VLOOKUP(B170,'LOC FINAL with new Themes'!A:M,8,0)","v":0},{"$f":"VLOOKUP(B170,'LOC FINAL with new Themes'!A:M,9,0)","v":0},{"$f":"VLOOKUP(B170,'LOC FINAL with new Themes'!A:M,10,0)","v":0},{"$f":"VLOOKUP(B170,'LOC FINAL with new Themes'!A:M,11,0)","v":0},{"$f":"VLOOKUP(B170,'LOC FINAL with new Themes'!A:M,12,0)","v":0},{"$f":"VLOOKUP(B170,'LOC FINAL with new Themes'!A:M,13,0)","v":0}]
[null,"134 Urban Areas imagery program data",null,"134 Urban Areas imagery program data","Imagery ","DOI-USGS","George Lee","gylee@usgs.gov",null,{"$f":"VLOOKUP(B171,'LOC FINAL with new Themes'!A:M,7,0)","v":0},{"$f":"VLOOKUP(B171,'LOC FINAL with new Themes'!A:M,8,0)","v":0},{"$f":"VLOOKUP(B171,'LOC FINAL with new Themes'!A:M,9,0)","v":0},{"$f":"VLOOKUP(B171,'LOC FINAL with new Themes'!A:M,10,0)","v":0},{"$f":"VLOOKUP(B171,'LOC FINAL with new Themes'!A:M,11,0)","v":0},{"$f":"VLOOKUP(B171,'LOC FINAL with new Themes'!A:M,12,0)","v":0},{"$f":"VLOOKUP(B171,'LOC FINAL with new Themes'!A:M,13,0)","v":0}]
["ADS40 Hurricane Response 7.5' Quadrangle Mosaics","ADS40 Hurricane Response 7.5' Quadrangle Mosaics",null,"ADS40 Hurricane Response 7.5' Quadrangle Mosaics","Imagery ","DOI-USGS","Jim Mauck","jmauck@usgs.gov",null,{"$f":"VLOOKUP(B172,'LOC FINAL with new Themes'!A:M,7,0)","v":0},{"$f":"VLOOKUP(B172,'LOC FINAL with new Themes'!A:M,8,0)","v":0},{"$f":"VLOOKUP(B172,'LOC FINAL with new Themes'!A:M,9,0)","v":0},{"$f":"VLOOKUP(B172,'LOC FINAL with new Themes'!A:M,10,0)","v":0},{"$f":"VLOOKUP(B172,'LOC FINAL with new Themes'!A:M,11,0)","v":0},{"$f":"VLOOKUP(B172,'LOC FINAL with new Themes'!A:M,12,0)","v":0},{"$f":"VLOOKUP(B172,'LOC FINAL with new Themes'!A:M,13,0)","v":0}]
["Digital Orthoimage Quarter Quadrangle (DOQQ) Archive","Digital Orthoimage Quarter Quadrangle (DOQQ) Archive",null,"Digital Orthoimage Quarter Quadrangle (DOQQ) Archive","Imagery ","DOI-USGS",null,null,null,{"$f":"VLOOKUP(B173,'LOC FINAL with new Themes'!A:M,7,0)","v":"DOQQ is static; one data set; this is the POC and data manager. this is the name and maintain three complete with two physically separate on-site and one off-site"},{"$f":"VLOOKUP(B173,'LOC FINAL with new Themes'!A:M,8,0)","v":0},{"$f":"VLOOKUP(B173,'LOC FINAL with new Themes'!A:M,9,0)","v":0},{"$f":"VLOOKUP(B173,'LOC FINAL with new Themes'!A:M,10,0)","v":0},{"$f":"VLOOKUP(B173,'LOC FINAL with new Themes'!A:M,11,0)","v":0},{"$f":"VLOOKUP(B173,'LOC FINAL with new Themes'!A:M,12,0)","v":0},{"$f":"VLOOKUP(B173,'LOC FINAL with new Themes'!A:M,13,0)","v":"S"}]
["Emergency Response Imagery","Emergency Response Imagery","Emergency Response Imagery","Emergency Response Imagery","Imagery ","DOC-NOAA","Mike Aslaksen","mike.Aslaksen@noaa.gov",null,{"$f":"VLOOKUP(B174,'LOC FINAL with new Themes'!A:M,7,0)","v":"20-Multiple      "},{"$f":"VLOOKUP(B174,'LOC FINAL with new Themes'!A:M,8,0)","v":"No"},{"$f":"VLOOKUP(B174,'LOC FINAL with new Themes'!A:M,9,0)","v":"Yes - email reply from Jon Sellars Jon.Sellars@noaa.gov"},{"$f":"VLOOKUP(B174,'LOC FINAL with new Themes'!A:M,10,0)","v":"- Same for the forest frag."},{"$f":"VLOOKUP(B174,'LOC FINAL with new Themes'!A:M,11,0)","v":"Our data can be accessed through the following links: http://storms.ngs.noaagov/eri_page/index.html Gulf Oil Spill:\nhttp://hdds.usgs.gov/hdds2/pub/data/disaster/201004_Oilspill_GulfOfMexico/data/AERIAL_NOAA\nhttp://hdds.usgs.gov/hdds2/pub/data/disaster/201004_Oilspill_GulfOfMexico/data/AERIAL_NOAA_MOSAIC  Haiti Earthquake:\nhttp://hdds.usgs.gov/hdds2/pub/data/disaster/201001_Earthquake_Haiti/data/AERIAL_NOAA\nhttp://hdds.usgs.gov/hdds2/pub/data/disaster/201001_Earthquake_Haiti/data/AERIAL_NOAA_ORTHO\nMexico Earthquake:\nhttp://hdds.usgs.gov/hdds2/pub/data/disaster/201004_Earthquake_Mexico/data/AERIAL_NOAA_MOSAIC \n\n"},{"$f":"VLOOKUP(B174,'LOC FINAL with new Themes'!A:M,12,0)","v":"Described by storm name, event or location."},{"$f":"VLOOKUP(B174,'LOC FINAL with new Themes'!A:M,13,0)","v":"M "}]
[null,null,"Fire, Detection: AVHRR FIMMA , GOES WF-ABBA","Fire, Detection: AVHRR FIMMA , GOES WF-ABBA","Imagery ","USDA"]
["Landsat geometric/terrain corrected level 1T","Landsat geometric/terrain corrected level 1T","Landsat Terrain Corrected Scenes","Landsat Terrain Corrected Scenes","Imagery ","DOI-USGS","Kristi Kline","kkline@usgs.gov",null,{"$f":"VLOOKUP(B176,'LOC FINAL with new Themes'!A:M,7,0)","v":"Landsat updates daily; a series of data sets; this is the POC and data manager; this is the name and maintain three complete with two physically separate on-site and one off-site"},{"$f":"VLOOKUP(B176,'LOC FINAL with new Themes'!A:M,8,0)","v":0},{"$f":"VLOOKUP(B176,'LOC FINAL with new Themes'!A:M,9,0)","v":0},{"$f":"VLOOKUP(B176,'LOC FINAL with new Themes'!A:M,10,0)","v":0},{"$f":"VLOOKUP(B176,'LOC FINAL with new Themes'!A:M,11,0)","v":0},{"$f":"VLOOKUP(B176,'LOC FINAL with new Themes'!A:M,12,0)","v":0},{"$f":"VLOOKUP(B176,'LOC FINAL with new Themes'!A:M,13,0)","v":"S"}]
[null,null,"National  Orthoimagery Dataset - National Map","National  Orthoimagery Dataset - National Map","Imagery ","DOI-USGS"]
["National Aerial Photography Program (NAPP) Data Archive","National Aerial Photography Program (NAPP) Data Archive",null,"National Aerial Photography Program (NAPP) Data Archive","Imagery ","DOI-USGS","Wayne Miller","wamiller@usgs.gov",null,{"$f":"VLOOKUP(B178,'LOC FINAL with new Themes'!A:M,7,0)","v":"NAPP is static; one data set; this is the POC and data manager; this is the name and maintain three complete with two physically separate on-site and one off-site "},{"$f":"VLOOKUP(B178,'LOC FINAL with new Themes'!A:M,8,0)","v":0},{"$f":"VLOOKUP(B178,'LOC FINAL with new Themes'!A:M,9,0)","v":0},{"$f":"VLOOKUP(B178,'LOC FINAL with new Themes'!A:M,10,0)","v":0},{"$f":"VLOOKUP(B178,'LOC FINAL with new Themes'!A:M,11,0)","v":0},{"$f":"VLOOKUP(B178,'LOC FINAL with new Themes'!A:M,12,0)","v":0},{"$f":"VLOOKUP(B178,'LOC FINAL with new Themes'!A:M,13,0)","v":"S"}]
["National Agriculture Imagery Program Data","National Agriculture Imagery Program Data","National Agriculture Imagery Program (NAIP) Archive","National Agriculture Imagery Program (NAIP) Archive","Imagery ","DOI-USGS","Shirley Hall","shirley.hall@wdc.usda.gov",null,{"$f":"VLOOKUP(B179,'LOC FINAL with new Themes'!A:M,7,0)","v":"Shirley identified Dan Good as new contact 'daniel.good@wdc.usda.gov' - need to follow up with either or both"},{"$f":"VLOOKUP(B179,'LOC FINAL with new Themes'!A:M,8,0)","v":0},{"$f":"VLOOKUP(B179,'LOC FINAL with new Themes'!A:M,9,0)","v":0},{"$f":"VLOOKUP(B179,'LOC FINAL with new Themes'!A:M,10,0)","v":0},{"$f":"VLOOKUP(B179,'LOC FINAL with new Themes'!A:M,11,0)","v":0},{"$f":"VLOOKUP(B179,'LOC FINAL with new Themes'!A:M,12,0)","v":0},{"$f":"VLOOKUP(B179,'LOC FINAL with new Themes'!A:M,13,0)","v":0}]
["National Map Orthoimagery Database (TNM Seamless Server) ","National Map Orthoimagery Database (TNM Seamless Server) ",null,"National Map Orthoimagery Database (TNM Seamless Server) ","Imagery ","DOI-USGS","George Lee","gylee@usgs.gov",null,{"$f":"VLOOKUP(B180,'LOC FINAL with new Themes'!A:M,7,0)","v":0},{"$f":"VLOOKUP(B180,'LOC FINAL with new Themes'!A:M,8,0)","v":0},{"$f":"VLOOKUP(B180,'LOC FINAL with new Themes'!A:M,9,0)","v":0},{"$f":"VLOOKUP(B180,'LOC FINAL with new Themes'!A:M,10,0)","v":0},{"$f":"VLOOKUP(B180,'LOC FINAL with new Themes'!A:M,11,0)","v":0},{"$f":"VLOOKUP(B180,'LOC FINAL with new Themes'!A:M,12,0)","v":0},{"$f":"VLOOKUP(B180,'LOC FINAL with new Themes'!A:M,13,0)","v":0}]
[null,null,"Satellite Imagery Archive","Satellite Imagery Archive","Imagery ","USDA-FSA"]
[null,null,null,{"$f":"SUBTOTAL(3,D170:D181)","v":12},"Imagery  Count"]
[null,null,"Crops: Cropland Data Layer",{"$f":"IF(C183=0,B183,C183)","v":"Crops: Cropland Data Layer"},"Land Use-Land Cover ","USDA-NASS"]
[null,null,"Earth Cover, Land: MODIS-based Land Products","Earth Cover, Land: MODIS-based Land Products","Land Use-Land Cover ","USDA -FS (Along with USGS)"]
[null,null,"Earth Cover, Vegetation, Forest: Forest Biomass, Types, Type Groups","Earth Cover, Vegetation, Forest: Forest Biomass, Types, Type Groups","Land Use-Land Cover ","USDA-FS"]
[null,null,"Earth Cover, Vegetation: Percent Forest Canopy","Earth Cover, Vegetation: Percent Forest Canopy","Land Use-Land Cover ","USDA-FS"]
[null,null,"Fire Severity: Monitoring Trends in Burn Severity (MTBS)","Fire Severity: Monitoring Trends in Burn Severity (MTBS)","Land Use-Land Cover ","USDA -FS (Along with USGS)"]
[null,null,"Fire, Detection: Daily Active Fire Mapping","Fire, Detection: Daily Active Fire Mapping","Land Use-Land Cover ","USDA"]
[null,null,"Land Cover Strata Dataset","Land Cover Strata Dataset","Land Use-Land Cover ","USDA-NASS"]
["LANDFIRE Dataset","LANDFIRE Dataset","Land Fire Dataset","Land Fire Dataset","Land Use-Land Cover ",null,null,0,null,{"$f":"VLOOKUP(B190,'LOC FINAL with new Themes'!A:M,7,0)","v":0},{"$f":"VLOOKUP(B190,'LOC FINAL with new Themes'!A:M,8,0)","v":0},{"$f":"VLOOKUP(B190,'LOC FINAL with new Themes'!A:M,9,0)","v":0},{"$f":"VLOOKUP(B190,'LOC FINAL with new Themes'!A:M,10,0)","v":0},{"$f":"VLOOKUP(B190,'LOC FINAL with new Themes'!A:M,11,0)","v":0},{"$f":"VLOOKUP(B190,'LOC FINAL with new Themes'!A:M,12,0)","v":0},{"$f":"VLOOKUP(B190,'LOC FINAL with new Themes'!A:M,13,0)","v":0}]
["National Land Cover Dataset (NLCD)","National Land Cover Dataset (NLCD)","National Land Cover Dataset - GIRAS - 1975","National Land Cover Dataset - GIRAS - 1975","Land Use-Land Cover ","DOI-USGS","Colin Homer","homer@usgs.gov",null,{"$f":"VLOOKUP(B191,'LOC FINAL with new Themes'!A:M,7,0)","v":"The table below summarizes NLCD products available for download from the MRLC website http://www.mrlc.gov/ "},{"$f":"VLOOKUP(B191,'LOC FINAL with new Themes'!A:M,8,0)","v":"No.  The \"manager\" of the data is Jon Dewitz. \nContact Information -   \nJon Dewitz\ndewitz@usgs.gov\n605-594-2715\nNLCD Quality Supervisor\nUSGS Earth Resources Observation and Science Center (EROS)\nMundt Federal Building\n47914 252nd St.\nSioux Falls, SD 57198\nfax 605-594-6529\n"},{"$f":"VLOOKUP(B191,'LOC FINAL with new Themes'!A:M,9,0)","v":"Joyce Fry is the POC. \nContact information - \nJoyce Fry, Geographer\nUnited States Geological Survey (USGS)\nEarth Resources Observation and  Science (EROS) Center\nMundt Federal Building\n47914 252nd Street\nSioux Falls, South Dakota 57198\n(P)  605.594.2739\n(F)  605.594.6529\n(e)  jfry@usgs.gov \n"},{"$f":"VLOOKUP(B191,'LOC FINAL with new Themes'!A:M,10,0)","v":"Every 5 years"},{"$f":"VLOOKUP(B191,'LOC FINAL with new Themes'!A:M,11,0)","v":"Yes, there is an archive/backup of the dataset through the EROS Long Term Archive (LTA) group.  I will need to get back to if you need additional information regarding the archive process. "},{"$f":"VLOOKUP(B191,'LOC FINAL with new Themes'!A:M,12,0)","v":"National Land Cover Database or NLCD along with the era number, either 1992 or 2001, or 2006. "},{"$f":"VLOOKUP(B191,'LOC FINAL with new Themes'!A:M,13,0)","v":"S"}]
[null,null,"National Land Cover Dataset - National Map","National Land Cover Dataset - National Map","Land Use-Land Cover ","DOI-USGS"]
[null,null,"National Land Cover Dataset - National Map - 1991","National Land Cover Dataset - National Map - 1991","Land Use-Land Cover ","DOI-USGS"]
[null,null,"National Land Cover Dataset - National Map - 2001","National Land Cover Dataset - National Map - 2001","Land Use-Land Cover ","DOI-USGS"]
[null,null,"National Land Cover Dataset - National Map 2006","National Land Cover Dataset - National Map 2006","Land Use-Land Cover ","DOI-USGS"]
["National Land Cover Dataset (NLCD)","National Land Cover Dataset (NLCD)","National Land Cover Dataset (NLCD)","National Land Cover Dataset (NLCD)","Land Use-Land Cover ","DOI-USGS","Colin Homer","homer@usgs.gov",null,{"$f":"VLOOKUP(B196,'LOC FINAL with new Themes'!A:M,7,0)","v":"The table below summarizes NLCD products available for download from the MRLC website http://www.mrlc.gov/ "},{"$f":"VLOOKUP(B196,'LOC FINAL with new Themes'!A:M,8,0)","v":"No.  The \"manager\" of the data is Jon Dewitz. \nContact Information -   \nJon Dewitz\ndewitz@usgs.gov\n605-594-2715\nNLCD Quality Supervisor\nUSGS Earth Resources Observation and Science Center (EROS)\nMundt Federal Building\n47914 252nd St.\nSioux Falls, SD 57198\nfax 605-594-6529\n"},{"$f":"VLOOKUP(B196,'LOC FINAL with new Themes'!A:M,9,0)","v":"Joyce Fry is the POC. \nContact information - \nJoyce Fry, Geographer\nUnited States Geological Survey (USGS)\nEarth Resources Observation and  Science (EROS) Center\nMundt Federal Building\n47914 252nd Street\nSioux Falls, South Dakota 57198\n(P)  605.594.2739\n(F)  605.594.6529\n(e)  jfry@usgs.gov \n"},{"$f":"VLOOKUP(B196,'LOC FINAL with new Themes'!A:M,10,0)","v":"Every 5 years"},{"$f":"VLOOKUP(B196,'LOC FINAL with new Themes'!A:M,11,0)","v":"Yes, there is an archive/backup of the dataset through the EROS Long Term Archive (LTA) group.  I will need to get back to if you need additional information regarding the archive process. "},{"$f":"VLOOKUP(B196,'LOC FINAL with new Themes'!A:M,12,0)","v":"National Land Cover Database or NLCD along with the era number, either 1992 or 2001, or 2006. "},{"$f":"VLOOKUP(B196,'LOC FINAL with new Themes'!A:M,13,0)","v":"S"}]
[null,null,"National Land Cover Percent Canopy - National Map - 1991","National Land Cover Percent Canopy - National Map - 1991","Land Use-Land Cover ","DOI-USGS"]
[null,null,"National Land Cover Percent Imperviousness - National Map - 2001","National Land Cover Percent Imperviousness - National Map - 2001","Land Use-Land Cover ","DOI-USGS"]
[null,null,"National Land Cover Percent Imperviousness - National Map - 2006","National Land Cover Percent Imperviousness - National Map - 2006","Land Use-Land Cover ","DOI-USGS"]
["National Parks Data","National Parks Data","National Parks Data","National Parks Data","Land Use-Land Cover ","DOI-NPS","Roger Johnson ","Roger_M_Johnson@nps.gov",null,{"$f":"VLOOKUP(B200,'LOC FINAL with new Themes'!A:M,7,0)","v":"undeliverable email- neeed to identify new contact"},{"$f":"VLOOKUP(B200,'LOC FINAL with new Themes'!A:M,8,0)","v":0},{"$f":"VLOOKUP(B200,'LOC FINAL with new Themes'!A:M,9,0)","v":0},{"$f":"VLOOKUP(B200,'LOC FINAL with new Themes'!A:M,10,0)","v":0},{"$f":"VLOOKUP(B200,'LOC FINAL with new Themes'!A:M,11,0)","v":0},{"$f":"VLOOKUP(B200,'LOC FINAL with new Themes'!A:M,12,0)","v":0},{"$f":"VLOOKUP(B200,'LOC FINAL with new Themes'!A:M,13,0)","v":0}]
[null,null,null,{"$f":"SUBTOTAL(3,D183:D200)","v":18},"Land Use-Land Cover  Count"]
["Assisted Housing (census geography or point-based) see http://www.huduser.org/picture2000/","Assisted Housing (census geography or point-based)",null,{"$f":"IF(C202=0,B202,C202)","v":"Assisted Housing (census geography or point-based)"},"Real Property","HUD","Jon Sperling","jon.sperling@hud.gov",null,{"$f":"VLOOKUP(B202,'LOC FINAL with new Themes'!A:M,7,0)","v":0},{"$f":"VLOOKUP(B202,'LOC FINAL with new Themes'!A:M,8,0)","v":0},{"$f":"VLOOKUP(B202,'LOC FINAL with new Themes'!A:M,9,0)","v":0},{"$f":"VLOOKUP(B202,'LOC FINAL with new Themes'!A:M,10,0)","v":0},{"$f":"VLOOKUP(B202,'LOC FINAL with new Themes'!A:M,11,0)","v":0},{"$f":"VLOOKUP(B202,'LOC FINAL with new Themes'!A:M,12,0)","v":0},{"$f":"VLOOKUP(B202,'LOC FINAL with new Themes'!A:M,13,0)","v":0}]
["Enterprise Zones, Empowerment Communities, Revitalization Areas, Qualified Census Tracts, etc.  (census geography based)","Enterprise Zones, Empowerment Communities, Revitalization Areas, Qualified Census Tracts, etc.  (census geography based)",null,"Enterprise Zones, Empowerment Communities, Revitalization Areas, Qualified Census Tracts, etc.  (census geography based)","Real Property","HUD","Jon Sperling","jon.sperling@hud.gov",null,{"$f":"VLOOKUP(B203,'LOC FINAL with new Themes'!A:M,7,0)","v":0},{"$f":"VLOOKUP(B203,'LOC FINAL with new Themes'!A:M,8,0)","v":0},{"$f":"VLOOKUP(B203,'LOC FINAL with new Themes'!A:M,9,0)","v":0},{"$f":"VLOOKUP(B203,'LOC FINAL with new Themes'!A:M,10,0)","v":0},{"$f":"VLOOKUP(B203,'LOC FINAL with new Themes'!A:M,11,0)","v":0},{"$f":"VLOOKUP(B203,'LOC FINAL with new Themes'!A:M,12,0)","v":0},{"$f":"VLOOKUP(B203,'LOC FINAL with new Themes'!A:M,13,0)","v":0}]
["Federal building location point ","Federal building location point ","Federal building location point ","Federal building location point ","Real Property ","GSA","Sandra Downie","sandra.downie@gsa.gov",null,{"$f":"VLOOKUP(B204,'LOC FINAL with new Themes'!A:M,7,0)","v":0},{"$f":"VLOOKUP(B204,'LOC FINAL with new Themes'!A:M,8,0)","v":0},{"$f":"VLOOKUP(B204,'LOC FINAL with new Themes'!A:M,9,0)","v":0},{"$f":"VLOOKUP(B204,'LOC FINAL with new Themes'!A:M,10,0)","v":0},{"$f":"VLOOKUP(B204,'LOC FINAL with new Themes'!A:M,11,0)","v":0},{"$f":"VLOOKUP(B204,'LOC FINAL with new Themes'!A:M,12,0)","v":0},{"$f":"VLOOKUP(B204,'LOC FINAL with new Themes'!A:M,13,0)","v":0}]
["Federal building location polygon","Federal building location polygon","Federal building location polygon","Federal building location polygon","Real Property ","GSA","Sandra Downie","sandra.downie@gsa.gov",null,{"$f":"VLOOKUP(B205,'LOC FINAL with new Themes'!A:M,7,0)","v":0},{"$f":"VLOOKUP(B205,'LOC FINAL with new Themes'!A:M,8,0)","v":0},{"$f":"VLOOKUP(B205,'LOC FINAL with new Themes'!A:M,9,0)","v":0},{"$f":"VLOOKUP(B205,'LOC FINAL with new Themes'!A:M,10,0)","v":0},{"$f":"VLOOKUP(B205,'LOC FINAL with new Themes'!A:M,11,0)","v":0},{"$f":"VLOOKUP(B205,'LOC FINAL with new Themes'!A:M,12,0)","v":0},{"$f":"VLOOKUP(B205,'LOC FINAL with new Themes'!A:M,13,0)","v":0}]
["Federal land area facility location point","Federal land area facility location point","Federal land area facility location point","Federal land area facility location point","Real Property ","GSA","Sandra Downie","sandra.downie@gsa.gov",null,{"$f":"VLOOKUP(B206,'LOC FINAL with new Themes'!A:M,7,0)","v":0},{"$f":"VLOOKUP(B206,'LOC FINAL with new Themes'!A:M,8,0)","v":0},{"$f":"VLOOKUP(B206,'LOC FINAL with new Themes'!A:M,9,0)","v":0},{"$f":"VLOOKUP(B206,'LOC FINAL with new Themes'!A:M,10,0)","v":0},{"$f":"VLOOKUP(B206,'LOC FINAL with new Themes'!A:M,11,0)","v":0},{"$f":"VLOOKUP(B206,'LOC FINAL with new Themes'!A:M,12,0)","v":0},{"$f":"VLOOKUP(B206,'LOC FINAL with new Themes'!A:M,13,0)","v":0}]
["Federal land area facility location polygon","Federal land area facility location polygon","Federal land area facility location polygon","Federal land area facility location polygon","Real Property ","GSA","Sandra Downie","sandra.downie@gsa.gov",null,{"$f":"VLOOKUP(B207,'LOC FINAL with new Themes'!A:M,7,0)","v":0},{"$f":"VLOOKUP(B207,'LOC FINAL with new Themes'!A:M,8,0)","v":0},{"$f":"VLOOKUP(B207,'LOC FINAL with new Themes'!A:M,9,0)","v":0},{"$f":"VLOOKUP(B207,'LOC FINAL with new Themes'!A:M,10,0)","v":0},{"$f":"VLOOKUP(B207,'LOC FINAL with new Themes'!A:M,11,0)","v":0},{"$f":"VLOOKUP(B207,'LOC FINAL with new Themes'!A:M,12,0)","v":0},{"$f":"VLOOKUP(B207,'LOC FINAL with new Themes'!A:M,13,0)","v":0}]
["National Map - Structures Dataset","National Map - Structures Dataset","National Structures Dataset - National Map","National Structures Dataset - National Map","Real Property ","DOI-USGS","Paul Wiese","pmwiese@usgs.gov",null,{"$f":"VLOOKUP(B208,'LOC FINAL with new Themes'!A:M,7,0)","v":"National Map updates monthly; a series of data sets; this is the POC and data manager; this is the name and maintain three complete with two physically separate on-site and one off-site"},{"$f":"VLOOKUP(B208,'LOC FINAL with new Themes'!A:M,8,0)","v":0},{"$f":"VLOOKUP(B208,'LOC FINAL with new Themes'!A:M,9,0)","v":0},{"$f":"VLOOKUP(B208,'LOC FINAL with new Themes'!A:M,10,0)","v":0},{"$f":"VLOOKUP(B208,'LOC FINAL with new Themes'!A:M,11,0)","v":0},{"$f":"VLOOKUP(B208,'LOC FINAL with new Themes'!A:M,12,0)","v":0},{"$f":"VLOOKUP(B208,'LOC FINAL with new Themes'!A:M,13,0)","v":"S"}]
[null,null,null,{"$f":"SUBTOTAL(3,D202:D208)","v":7},"Real Property Count"]
[null,"Military Installation","Military Installation",{"$f":"IF(C210=0,B210,C210)","v":"Military Installation"},"Real Property\nCultural & Demographic Statistics","DOC-Census","Jennifer Holland","Jennifer.L.Holland@census.gov",null,{"$f":"VLOOKUP(B210,'LOC FINAL with new Themes'!A:M,7,0)","v":0},{"$f":"VLOOKUP(B210,'LOC FINAL with new Themes'!A:M,8,0)","v":0},{"$f":"VLOOKUP(B210,'LOC FINAL with new Themes'!A:M,9,0)","v":0},{"$f":"VLOOKUP(B210,'LOC FINAL with new Themes'!A:M,10,0)","v":0},{"$f":"VLOOKUP(B210,'LOC FINAL with new Themes'!A:M,11,0)","v":0},{"$f":"VLOOKUP(B210,'LOC FINAL with new Themes'!A:M,12,0)","v":0},{"$f":"VLOOKUP(B210,'LOC FINAL with new Themes'!A:M,13,0)","v":0}]
[null,null,null,{"$f":"SUBTOTAL(3,D210:D210)","v":1},"Real Property\nCultural & Demographic Statistics Count"]
["Common Resource Area (CRA)","Common Resource Area (CRA)","Common Resource Area (CRA)",{"$f":"IF(C212=0,B212,C212)","v":"Common Resource Area (CRA)"},"Soils ","USDA-NRCS","David Hoover","David.Hoover@wdc.usda.gov",null,{"$f":"VLOOKUP(B212,'LOC FINAL with new Themes'!A:M,7,0)","v":0},{"$f":"VLOOKUP(B212,'LOC FINAL with new Themes'!A:M,8,0)","v":0},{"$f":"VLOOKUP(B212,'LOC FINAL with new Themes'!A:M,9,0)","v":0},{"$f":"VLOOKUP(B212,'LOC FINAL with new Themes'!A:M,10,0)","v":0},{"$f":"VLOOKUP(B212,'LOC FINAL with new Themes'!A:M,11,0)","v":0},{"$f":"VLOOKUP(B212,'LOC FINAL with new Themes'!A:M,12,0)","v":0},{"$f":"VLOOKUP(B212,'LOC FINAL with new Themes'!A:M,13,0)","v":0}]
["Major Land Resource Area (MLRA)","Major Land Resource Area (MLRA)","Major Land Resource Area (MLRA)","Major Land Resource Area (MLRA)","Soils ","USDA-NRCS","David Hoover","David.Hoover@wdc.usda.gov",null,{"$f":"VLOOKUP(B213,'LOC FINAL with new Themes'!A:M,7,0)","v":"undeliverable email- neeed to identify new contact"},{"$f":"VLOOKUP(B213,'LOC FINAL with new Themes'!A:M,8,0)","v":0},{"$f":"VLOOKUP(B213,'LOC FINAL with new Themes'!A:M,9,0)","v":0},{"$f":"VLOOKUP(B213,'LOC FINAL with new Themes'!A:M,10,0)","v":0},{"$f":"VLOOKUP(B213,'LOC FINAL with new Themes'!A:M,11,0)","v":0},{"$f":"VLOOKUP(B213,'LOC FINAL with new Themes'!A:M,12,0)","v":0},{"$f":"VLOOKUP(B213,'LOC FINAL with new Themes'!A:M,13,0)","v":0}]
["National Cooperative Soil Survey (NCSS)","National Cooperative Soil Survey (NCSS)","National Cooperative Soil Characterization Database","National Cooperative Soil Characterization Database","Soils ","USDA-NRCS","Larry West","Larry.West@lin.usda.gov",null,{"$f":"VLOOKUP(B214,'LOC FINAL with new Themes'!A:M,7,0)","v":"We have our Soil Survey Geographic database called SSURGO which is made available through the following sites:\nWeb Soil Survey:    http://websoilsurvey.nrcs.usda.gov/app/\nSoil Data Mart:     http://soildatamart.nrcs.usda.gov/\nSoil Data Access:   http://sdmdataaccess.nrcs.usda.gov\n\nWe also have: \nLab Soil Survey Lab Characterization Data (Point data): http://ssldata.nrcs.usda.gov/ aka NCSS Characterization Database\nSoil Series Classification Database http://soils.usda.gov/technical/classification/scfile/index.html\nU.S. General Soil Map (STATSGO2)\nMajor Land Resource Area (MLRA) http://soils.usda.gov/survey/geography/mlra/\n             Common Resource Areas (CRA) \n\n"},{"$f":"VLOOKUP(B214,'LOC FINAL with new Themes'!A:M,8,0)","v":"? No, I am a Program Manager. Various other people have roles of maintaining the data. "},{"$f":"VLOOKUP(B214,'LOC FINAL with new Themes'!A:M,9,0)","v":"I am a general information POC for all things soil survey related. For more technical aspects on our data sets a good POC would be David Hoover, National Leader for Soil Business Systems or someone on his staff. His contact number is 402-437-4013 or email at david.hoover@lin.usda.gov. "},{"$f":"VLOOKUP(B214,'LOC FINAL with new Themes'!A:M,10,0)","v":"Our data sets are constantly being updated by about 1000 soil and plant scientists in several agencies. "},{"$f":"VLOOKUP(B214,'LOC FINAL with new Themes'!A:M,11,0)","v":"Our data sets are archived, but I don’t know how far back. I will have to get back to you on that. It is my understanding that archived sets are not easily accessible.  We have archive data for SSURGO (Soil Data Warehouse from mid 2000’s or earlier – Jim Fortner or Jennifer Sweet may be able to confirm or provide more detail; We also have archive data for STATSGO (circa 1994;1996) and for MLRA (1978; 2001; 2006) in local holdings.  Not sure about lab data archives, Henry Ferguson or Larry West can confirm.  "},{"$f":"VLOOKUP(B214,'LOC FINAL with new Themes'!A:M,12,0)","v":"? the Lab Characterization Data is also known as the “NCSS Characterization Database”\nAdded Common Resource Area geographic database (CRA)."},{"$f":"VLOOKUP(B214,'LOC FINAL with new Themes'!A:M,13,0)","v":"P"}]
["Soil Survey Geographic Database (SSURGO)","Soil Survey Geographic Database (SSURGO)","Soil Survey Geographic Database (SSURGO)","Soil Survey Geographic Database (SSURGO)","Soils ","USDA-NRCS","David Hoover","David.Hoover@wdc.usda.gov",null,{"$f":"VLOOKUP(B215,'LOC FINAL with new Themes'!A:M,7,0)","v":"undeliverable email- neeed to identify new contact"},{"$f":"VLOOKUP(B215,'LOC FINAL with new Themes'!A:M,8,0)","v":0},{"$f":"VLOOKUP(B215,'LOC FINAL with new Themes'!A:M,9,0)","v":0},{"$f":"VLOOKUP(B215,'LOC FINAL with new Themes'!A:M,10,0)","v":0},{"$f":"VLOOKUP(B215,'LOC FINAL with new Themes'!A:M,11,0)","v":0},{"$f":"VLOOKUP(B215,'LOC FINAL with new Themes'!A:M,12,0)","v":0},{"$f":"VLOOKUP(B215,'LOC FINAL with new Themes'!A:M,13,0)","v":0}]
["U.S. General Soil Map (STATSGO2)","U.S. General Soil Map (STATSGO2)","U.S. General Soil Map (STATSGO2)","U.S. General Soil Map (STATSGO2)","Soils ","USDA-NRCS","David Hoover","David.Hoover@wdc.usda.gov",null,{"$f":"VLOOKUP(B216,'LOC FINAL with new Themes'!A:M,7,0)","v":"undeliverable email- neeed to identify new contact"},{"$f":"VLOOKUP(B216,'LOC FINAL with new Themes'!A:M,8,0)","v":0},{"$f":"VLOOKUP(B216,'LOC FINAL with new Themes'!A:M,9,0)","v":0},{"$f":"VLOOKUP(B216,'LOC FINAL with new Themes'!A:M,10,0)","v":0},{"$f":"VLOOKUP(B216,'LOC FINAL with new Themes'!A:M,11,0)","v":0},{"$f":"VLOOKUP(B216,'LOC FINAL with new Themes'!A:M,12,0)","v":0},{"$f":"VLOOKUP(B216,'LOC FINAL with new Themes'!A:M,13,0)","v":0}]
[null,null,null,{"$f":"SUBTOTAL(3,D212:D216)","v":5},"Soils  Count"]
[null,"Address Range-Feature Name Relationship File","Address Range-Feature Name Relationship File",{"$f":"IF(C218=0,B218,C218)","v":"Address Range-Feature Name Relationship File"},"Transportation ","DOC-Census","Jennifer Holland","Jennifer.L.Holland@census.gov",null,{"$f":"VLOOKUP(B218,'LOC FINAL with new Themes'!A:M,7,0)","v":0},{"$f":"VLOOKUP(B218,'LOC FINAL with new Themes'!A:M,8,0)","v":0},{"$f":"VLOOKUP(B218,'LOC FINAL with new Themes'!A:M,9,0)","v":0},{"$f":"VLOOKUP(B218,'LOC FINAL with new Themes'!A:M,10,0)","v":0},{"$f":"VLOOKUP(B218,'LOC FINAL with new Themes'!A:M,11,0)","v":0},{"$f":"VLOOKUP(B218,'LOC FINAL with new Themes'!A:M,12,0)","v":0},{"$f":"VLOOKUP(B218,'LOC FINAL with new Themes'!A:M,13,0)","v":0}]
[null,"Address Ranges Relationship File","Address Ranges Relationship File","Address Ranges Relationship File","Transportation ","DOC-Census","Jennifer Holland","Jennifer.L.Holland@census.gov",null,{"$f":"VLOOKUP(B219,'LOC FINAL with new Themes'!A:M,7,0)","v":0},{"$f":"VLOOKUP(B219,'LOC FINAL with new Themes'!A:M,8,0)","v":0},{"$f":"VLOOKUP(B219,'LOC FINAL with new Themes'!A:M,9,0)","v":0},{"$f":"VLOOKUP(B219,'LOC FINAL with new Themes'!A:M,10,0)","v":0},{"$f":"VLOOKUP(B219,'LOC FINAL with new Themes'!A:M,11,0)","v":0},{"$f":"VLOOKUP(B219,'LOC FINAL with new Themes'!A:M,12,0)","v":0},{"$f":"VLOOKUP(B219,'LOC FINAL with new Themes'!A:M,13,0)","v":0}]
[null,"All Roads","All Roads","All Roads","Transportation ","DOC-Census","Jennifer Holland","Jennifer.L.Holland@census.gov",null,{"$f":"VLOOKUP(B220,'LOC FINAL with new Themes'!A:M,7,0)","v":0},{"$f":"VLOOKUP(B220,'LOC FINAL with new Themes'!A:M,8,0)","v":0},{"$f":"VLOOKUP(B220,'LOC FINAL with new Themes'!A:M,9,0)","v":0},{"$f":"VLOOKUP(B220,'LOC FINAL with new Themes'!A:M,10,0)","v":0},{"$f":"VLOOKUP(B220,'LOC FINAL with new Themes'!A:M,11,0)","v":0},{"$f":"VLOOKUP(B220,'LOC FINAL with new Themes'!A:M,12,0)","v":0},{"$f":"VLOOKUP(B220,'LOC FINAL with new Themes'!A:M,13,0)","v":0}]
["Inland Electronic Navigation Charts (IENC)","Inland Electronic Navigation Charts (IENC)","Inland Electronic Navigation Charts (IENC)","Inland Electronic Navigation Charts (IENC)","Transportation ","DOD-USACE","Joel Schlagel","Joel.D.Schlagel@erdc.usace.army.mil ",null,{"$f":"VLOOKUP(B221,'LOC FINAL with new Themes'!A:M,7,0)","v":0},{"$f":"VLOOKUP(B221,'LOC FINAL with new Themes'!A:M,8,0)","v":0},{"$f":"VLOOKUP(B221,'LOC FINAL with new Themes'!A:M,9,0)","v":0},{"$f":"VLOOKUP(B221,'LOC FINAL with new Themes'!A:M,10,0)","v":0},{"$f":"VLOOKUP(B221,'LOC FINAL with new Themes'!A:M,11,0)","v":0},{"$f":"VLOOKUP(B221,'LOC FINAL with new Themes'!A:M,12,0)","v":0},{"$f":"VLOOKUP(B221,'LOC FINAL with new Themes'!A:M,13,0)","v":0}]
[null,null,"National Interagency Trails Dataset","National Interagency Trails Dataset","Transportation ","USDA"]
["National Map - Transportation Dataset","National Map - Transportation Dataset","National Transportation Dataset - National Map","National Transportation Dataset - National Map","Transportation ","DOI-USGS","Paul Wiese","pmwiese@usgs.gov",null,{"$f":"VLOOKUP(B223,'LOC FINAL with new Themes'!A:M,7,0)","v":0},{"$f":"VLOOKUP(B223,'LOC FINAL with new Themes'!A:M,8,0)","v":0},{"$f":"VLOOKUP(B223,'LOC FINAL with new Themes'!A:M,9,0)","v":0},{"$f":"VLOOKUP(B223,'LOC FINAL with new Themes'!A:M,10,0)","v":0},{"$f":"VLOOKUP(B223,'LOC FINAL with new Themes'!A:M,11,0)","v":0},{"$f":"VLOOKUP(B223,'LOC FINAL with new Themes'!A:M,12,0)","v":0},{"$f":"VLOOKUP(B223,'LOC FINAL with new Themes'!A:M,13,0)","v":0}]
["NTAD","NTAD","NTAD","NTAD","Transportation ","DOT-BTS","Robert Monniere","robert.monniere@dot.gov",null,{"$f":"VLOOKUP(B224,'LOC FINAL with new Themes'!A:M,7,0)","v":0},{"$f":"VLOOKUP(B224,'LOC FINAL with new Themes'!A:M,8,0)","v":0},{"$f":"VLOOKUP(B224,'LOC FINAL with new Themes'!A:M,9,0)","v":0},{"$f":"VLOOKUP(B224,'LOC FINAL with new Themes'!A:M,10,0)","v":0},{"$f":"VLOOKUP(B224,'LOC FINAL with new Themes'!A:M,11,0)","v":0},{"$f":"VLOOKUP(B224,'LOC FINAL with new Themes'!A:M,12,0)","v":0},{"$f":"VLOOKUP(B224,'LOC FINAL with new Themes'!A:M,13,0)","v":0}]
[null,null,"NTAD (airports)","NTAD (airports)","Transportation ","DOT-BTS"]
[null,null,"NTAD (Rail)","NTAD (Rail)","Transportation ","DOT-BTS"]
["NTAD (TransitLines) ","NTAD (TransitLines) ","NTAD (TransitLines) ","NTAD (TransitLines) ","Transportation ","DOT-BTS","Robert Monniere ","robert.monniere@dot.gov \n",null,{"$f":"VLOOKUP(B227,'LOC FINAL with new Themes'!A:M,7,0)","v":0},{"$f":"VLOOKUP(B227,'LOC FINAL with new Themes'!A:M,8,0)","v":0},{"$f":"VLOOKUP(B227,'LOC FINAL with new Themes'!A:M,9,0)","v":0},{"$f":"VLOOKUP(B227,'LOC FINAL with new Themes'!A:M,10,0)","v":0},{"$f":"VLOOKUP(B227,'LOC FINAL with new Themes'!A:M,11,0)","v":0},{"$f":"VLOOKUP(B227,'LOC FINAL with new Themes'!A:M,12,0)","v":0},{"$f":"VLOOKUP(B227,'LOC FINAL with new Themes'!A:M,13,0)","v":0}]
["NTAD (TransitStation) ","NTAD (TransitStation) ","NTAD (TransitStation) ","NTAD (TransitStation) ","Transportation ","DOT-BTS","Robert Monniere ","robert.monniere@dot.gov ",null,{"$f":"VLOOKUP(B228,'LOC FINAL with new Themes'!A:M,7,0)","v":0},{"$f":"VLOOKUP(B228,'LOC FINAL with new Themes'!A:M,8,0)","v":0},{"$f":"VLOOKUP(B228,'LOC FINAL with new Themes'!A:M,9,0)","v":0},{"$f":"VLOOKUP(B228,'LOC FINAL with new Themes'!A:M,10,0)","v":0},{"$f":"VLOOKUP(B228,'LOC FINAL with new Themes'!A:M,11,0)","v":0},{"$f":"VLOOKUP(B228,'LOC FINAL with new Themes'!A:M,12,0)","v":0},{"$f":"VLOOKUP(B228,'LOC FINAL with new Themes'!A:M,13,0)","v":0}]
[null,"Primary and Secondary Roads","Primary and Secondary Roads",{"$f":"IF(C229=0,#REF!,C229)","v":"Primary and Secondary Roads"},"Transportation ","DOC-Census","Jennifer Holland","Jennifer.L.Holland@census.gov",null,{"$f":"VLOOKUP(B229,'LOC FINAL with new Themes'!A:M,7,0)","v":0},{"$f":"VLOOKUP(B229,'LOC FINAL with new Themes'!A:M,8,0)","v":0},{"$f":"VLOOKUP(B229,'LOC FINAL with new Themes'!A:M,9,0)","v":0},{"$f":"VLOOKUP(B229,'LOC FINAL with new Themes'!A:M,10,0)","v":0},{"$f":"VLOOKUP(B229,'LOC FINAL with new Themes'!A:M,11,0)","v":0},{"$f":"VLOOKUP(B229,'LOC FINAL with new Themes'!A:M,12,0)","v":0},{"$f":"VLOOKUP(B229,'LOC FINAL with new Themes'!A:M,13,0)","v":0}]
[null,"Primary Roads","Primary Roads",{"$f":"IF(C230=0,B230,C230)","v":"Primary Roads"},"Transportation ","DOC-Census","Jennifer Holland","Jennifer.L.Holland@census.gov",null,{"$f":"VLOOKUP(B230,'LOC FINAL with new Themes'!A:M,7,0)","v":0},{"$f":"VLOOKUP(B230,'LOC FINAL with new Themes'!A:M,8,0)","v":0},{"$f":"VLOOKUP(B230,'LOC FINAL with new Themes'!A:M,9,0)","v":0},{"$f":"VLOOKUP(B230,'LOC FINAL with new Themes'!A:M,10,0)","v":0},{"$f":"VLOOKUP(B230,'LOC FINAL with new Themes'!A:M,11,0)","v":0},{"$f":"VLOOKUP(B230,'LOC FINAL with new Themes'!A:M,12,0)","v":0},{"$f":"VLOOKUP(B230,'LOC FINAL with new Themes'!A:M,13,0)","v":0}]
["TIGER (Roads/Rail)","TIGER (Roads/Rail)",null,{"$f":"IF(C231=0,B231,C231)","v":"TIGER (Roads/Rail)"},"Transportation ","DOC-Census","Randy Fusaro","randy.j.fusaro@census.gov",null,{"$f":"VLOOKUP(B231,'LOC FINAL with new Themes'!A:M,7,0)","v":0},{"$f":"VLOOKUP(B231,'LOC FINAL with new Themes'!A:M,8,0)","v":0},{"$f":"VLOOKUP(B231,'LOC FINAL with new Themes'!A:M,9,0)","v":0},{"$f":"VLOOKUP(B231,'LOC FINAL with new Themes'!A:M,10,0)","v":0},{"$f":"VLOOKUP(B231,'LOC FINAL with new Themes'!A:M,11,0)","v":0},{"$f":"VLOOKUP(B231,'LOC FINAL with new Themes'!A:M,12,0)","v":0},{"$f":"VLOOKUP(B231,'LOC FINAL with new Themes'!A:M,13,0)","v":0}]
[null,"Traffic Analysis Zone (Census 2000)","Traffic Analysis Zone (Census 2000)",{"$f":"IF(C232=0,B232,C232)","v":"Traffic Analysis Zone (Census 2000)"},"Transportation ","DOC-Census","Jennifer Holland","Jennifer.L.Holland@census.gov",null,{"$f":"VLOOKUP(B232,'LOC FINAL with new Themes'!A:M,7,0)","v":0},{"$f":"VLOOKUP(B232,'LOC FINAL with new Themes'!A:M,8,0)","v":0},{"$f":"VLOOKUP(B232,'LOC FINAL with new Themes'!A:M,9,0)","v":0},{"$f":"VLOOKUP(B232,'LOC FINAL with new Themes'!A:M,10,0)","v":0},{"$f":"VLOOKUP(B232,'LOC FINAL with new Themes'!A:M,11,0)","v":0},{"$f":"VLOOKUP(B232,'LOC FINAL with new Themes'!A:M,12,0)","v":0},{"$f":"VLOOKUP(B232,'LOC FINAL with new Themes'!A:M,13,0)","v":0}]
[null,null,null,{"$f":"SUBTOTAL(3,D218:D232)","v":15},"Transportation  Count"]
[null,null,"Pipelines",{"$f":"IF(C234=0,B234,C234)","v":"Pipelines"},"Utilities ","DOI-BOEM","Doug Vandegraft","Doug.Vandegraft@boem.gov"]
[null,null,"Platforms",{"$f":"IF(C235=0,B235,C235)","v":"Platforms"},"Utilities ","DOI-MMS","Doug Vandegraft","Doug.Vandegraft@boem.gov"]
[null,null,null,{"$f":"SUBTOTAL(3,D234:D235)","v":2},"Utilities  Count"]
[null,"Area Hydrography (2010 Census)","Area Hydrography (2010 Census)",{"$f":"IF(C237=0,B237,C237)","v":"Area Hydrography (2010 Census)"},"Water -- Inland","DOC-Census","Jennifer Holland","Jennifer.L.Holland@census.gov",null,{"$f":"VLOOKUP(B237,'LOC FINAL with new Themes'!A:M,7,0)","v":0},{"$f":"VLOOKUP(B237,'LOC FINAL with new Themes'!A:M,8,0)","v":0},{"$f":"VLOOKUP(B237,'LOC FINAL with new Themes'!A:M,9,0)","v":0},{"$f":"VLOOKUP(B237,'LOC FINAL with new Themes'!A:M,10,0)","v":0},{"$f":"VLOOKUP(B237,'LOC FINAL with new Themes'!A:M,11,0)","v":0},{"$f":"VLOOKUP(B237,'LOC FINAL with new Themes'!A:M,12,0)","v":0},{"$f":"VLOOKUP(B237,'LOC FINAL with new Themes'!A:M,13,0)","v":0}]
[null,"Linear Water Features","Linear Water Features","Linear Water Features","Water -- Inland","DOC-Census","Jennifer Holland","Jennifer.L.Holland@census.gov",null,{"$f":"VLOOKUP(B238,'LOC FINAL with new Themes'!A:M,7,0)","v":0},{"$f":"VLOOKUP(B238,'LOC FINAL with new Themes'!A:M,8,0)","v":0},{"$f":"VLOOKUP(B238,'LOC FINAL with new Themes'!A:M,9,0)","v":0},{"$f":"VLOOKUP(B238,'LOC FINAL with new Themes'!A:M,10,0)","v":0},{"$f":"VLOOKUP(B238,'LOC FINAL with new Themes'!A:M,11,0)","v":0},{"$f":"VLOOKUP(B238,'LOC FINAL with new Themes'!A:M,12,0)","v":0},{"$f":"VLOOKUP(B238,'LOC FINAL with new Themes'!A:M,13,0)","v":0}]
["National Hydrography Data Set","National Hydrography Dataset","National Hydrography Dataset - National Map","National Hydrography Dataset - National Map","Water -- Inland","DOI-USGS","Jeff Simley","jdsimley@usgs.gov",null,{"$f":"VLOOKUP(B239,'LOC FINAL with new Themes'!A:M,7,0)","v":0},{"$f":"VLOOKUP(B239,'LOC FINAL with new Themes'!A:M,8,0)","v":0},{"$f":"VLOOKUP(B239,'LOC FINAL with new Themes'!A:M,9,0)","v":0},{"$f":"VLOOKUP(B239,'LOC FINAL with new Themes'!A:M,10,0)","v":0},{"$f":"VLOOKUP(B239,'LOC FINAL with new Themes'!A:M,11,0)","v":0},{"$f":"VLOOKUP(B239,'LOC FINAL with new Themes'!A:M,12,0)","v":0},{"$f":"VLOOKUP(B239,'LOC FINAL with new Themes'!A:M,13,0)","v":0}]
["National Inventory of Dams (NID)","National Inventory of Dams (NID)","National Inventory of Dams (NID)","National Inventory of Dams (NID)","Water -- Inland","DOD-USACE","Rebecca Ragon","Rebecca.Ragon@usace.army.mil ",null,{"$f":"VLOOKUP(B240,'LOC FINAL with new Themes'!A:M,7,0)","v":"One single data set"},{"$f":"VLOOKUP(B240,'LOC FINAL with new Themes'!A:M,8,0)","v":"Yes"},{"$f":"VLOOKUP(B240,'LOC FINAL with new Themes'!A:M,9,0)","v":"Yes"},{"$f":"VLOOKUP(B240,'LOC FINAL with new Themes'!A:M,10,0)","v":"Usually every 2 years"},{"$f":"VLOOKUP(B240,'LOC FINAL with new Themes'!A:M,11,0)","v":"Because the NID is updated every 2 years, we do have archived databased datig back to 1994."},{"$f":"VLOOKUP(B240,'LOC FINAL with new Themes'!A:M,12,0)","v":"The official name is National Inventory of Dams (NID) but I have seen the database referenced as the National Dam Inventory"},{"$f":"VLOOKUP(B240,'LOC FINAL with new Themes'!A:M,13,0)","v":"S"}]
["National Levee Database (NLD)","National Levee Database (NLD)","National Levee Database (NLD)","National Levee Database (NLD)","Water -- Inland","DOD-USACE","Bryan Baker","Bryan.E.Baker@usace.army.mil",null,{"$f":"VLOOKUP(B241,'LOC FINAL with new Themes'!A:M,7,0)","v":0},{"$f":"VLOOKUP(B241,'LOC FINAL with new Themes'!A:M,8,0)","v":0},{"$f":"VLOOKUP(B241,'LOC FINAL with new Themes'!A:M,9,0)","v":0},{"$f":"VLOOKUP(B241,'LOC FINAL with new Themes'!A:M,10,0)","v":0},{"$f":"VLOOKUP(B241,'LOC FINAL with new Themes'!A:M,11,0)","v":0},{"$f":"VLOOKUP(B241,'LOC FINAL with new Themes'!A:M,12,0)","v":0},{"$f":"VLOOKUP(B241,'LOC FINAL with new Themes'!A:M,13,0)","v":0}]
[null,null,"National Water Information System (NWIS)- Stream Gage Network","National Water Information System (NWIS)- Stream Gage Locations","Water -- Inland","DOI-USGS"]
[null,null,"National Water Information System (NWIS)- Water Quality Monitoring Stations","National Water Information System (NWIS)- Water Quality Monitoring Stations Locations","Water -- Inland","DOI-USGS"]
["National Wetlands Inventory (NWI) ","National Wetlands Inventory (NWI) ","National Wetlands Inventory (NWI) ","National Wetlands Inventory (NWI) ","Water -- Inland","DOI-FWS","Tom Dahl  ","tom_dahl@fws.gov\n",null,{"$f":"VLOOKUP(B244,'LOC FINAL with new Themes'!A:M,7,0)","v":0},{"$f":"VLOOKUP(B244,'LOC FINAL with new Themes'!A:M,8,0)","v":0},{"$f":"VLOOKUP(B244,'LOC FINAL with new Themes'!A:M,9,0)","v":0},{"$f":"VLOOKUP(B244,'LOC FINAL with new Themes'!A:M,10,0)","v":0},{"$f":"VLOOKUP(B244,'LOC FINAL with new Themes'!A:M,11,0)","v":0},{"$f":"VLOOKUP(B244,'LOC FINAL with new Themes'!A:M,12,0)","v":0},{"$f":"VLOOKUP(B244,'LOC FINAL with new Themes'!A:M,13,0)","v":0}]
[null,"Topological Faces-Area Hydrography Relationship File","Topological Faces-Area Hydrography Relationship File","Topological Faces-Area Hydrography Relationship File","Water -- Inland","DOC-Census","Jennifer Holland","Jennifer.L.Holland@census.gov",null,{"$f":"VLOOKUP(B245,'LOC FINAL with new Themes'!A:M,7,0)","v":0},{"$f":"VLOOKUP(B245,'LOC FINAL with new Themes'!A:M,8,0)","v":0},{"$f":"VLOOKUP(B245,'LOC FINAL with new Themes'!A:M,9,0)","v":0},{"$f":"VLOOKUP(B245,'LOC FINAL with new Themes'!A:M,10,0)","v":0},{"$f":"VLOOKUP(B245,'LOC FINAL with new Themes'!A:M,11,0)","v":0},{"$f":"VLOOKUP(B245,'LOC FINAL with new Themes'!A:M,12,0)","v":0},{"$f":"VLOOKUP(B245,'LOC FINAL with new Themes'!A:M,13,0)","v":0}]
["Watershed Boundary Data Set (WBD)  ","Watershed Boundary Dataset (WBD)  ","Watershed Boundary Dataset (WBD)  ","Watershed Boundary Dataset (WBD)  ","Water -- Inland","DOI-USGS","Karen Hanson","khanson@usgs.gov",null,{"$f":"VLOOKUP(B246,'LOC FINAL with new Themes'!A:M,7,0)","v":"one set with nested hierarchy of six different levels within it (regions, subdivided into four, six and twelve digits), POC and data manager; continually updated; co-managed with NRCS and they archive it; USGS in Denver will serve it; All transactions are archived in versions in the database as they happen. Data from any moment in time can be captured with a simple query. The database is replicated daily to Rolla, MO servers. The database is stored on a SAN with three tier redundancy.All changes to the database are stored on separate disks and once they reach a certain size, they are copied over to a server to be written to tape. Weekly, the entire database (NHD, with WBD) is written to tape.Monthly, the tapes are taken off site for storage."},{"$f":"VLOOKUP(B246,'LOC FINAL with new Themes'!A:M,8,0)","v":0},{"$f":"VLOOKUP(B246,'LOC FINAL with new Themes'!A:M,9,0)","v":0},{"$f":"VLOOKUP(B246,'LOC FINAL with new Themes'!A:M,10,0)","v":0},{"$f":"VLOOKUP(B246,'LOC FINAL with new Themes'!A:M,11,0)","v":0},{"$f":"VLOOKUP(B246,'LOC FINAL with new Themes'!A:M,12,0)","v":0},{"$f":"VLOOKUP(B246,'LOC FINAL with new Themes'!A:M,13,0)","v":"S"}]
[null,null,null,{"$f":"SUBTOTAL(3,D237:D246)","v":10},"Water -- Inland Count"]
[null,null,"Coastal Change Analysis Program (C-CAP) Land Cover and Land Change Imagery",{"$f":"IF(C248=0,B248,C248)","v":"Coastal Change Analysis Program (C-CAP) Land Cover and Land Change Imagery"},"Water -- Oceans and Coasts ","DOC-NOAA","Nate Herold","nate.herold@noaa.gov"]
["Continental Shelf Boundary Data","Continental Shelf Boundary Data","Continental Shelf Boundary Data","Continental Shelf Boundary Data","Water -- Oceans and Coasts ","DOI-BOEM","Doug Vandegraft","Doug.Vandegraft@boem.gov",null,{"$f":"VLOOKUP(B249,'LOC FINAL with new Themes'!A:M,7,0)","v":"undeliverable email- neeed to identify new contact"},{"$f":"VLOOKUP(B249,'LOC FINAL with new Themes'!A:M,8,0)","v":0},{"$f":"VLOOKUP(B249,'LOC FINAL with new Themes'!A:M,9,0)","v":0},{"$f":"VLOOKUP(B249,'LOC FINAL with new Themes'!A:M,10,0)","v":0},{"$f":"VLOOKUP(B249,'LOC FINAL with new Themes'!A:M,11,0)","v":0},{"$f":"VLOOKUP(B249,'LOC FINAL with new Themes'!A:M,12,0)","v":0},{"$f":"VLOOKUP(B249,'LOC FINAL with new Themes'!A:M,13,0)","v":0}]
[null,null,"National Data Buoy Center (NDBC) Recent and Historical Data","National Data Buoy Center (NDBC) Recent and Historical Data","Water -- Oceans and Coasts ","DOC-NOAA"]
[null,null,"NOAA National Shoreline","NOAA National Shoreline","Water -- Oceans and Coasts ","DOC-NOAA","Doug Graham","Doug.Graham@noaa.gov"]
["NOAA Nautical Charts","NOAA Nautical Charts","NOAA's Nautical Chart Products","NOAA's Nautical Chart Products","Water -- Oceans and Coasts ","DOC-NOAA","Meredith Westington","meredith.westington@noaa.gov",null,{"$f":"VLOOKUP(B252,'LOC FINAL with new Themes'!A:M,7,0)","v":0},{"$f":"VLOOKUP(B252,'LOC FINAL with new Themes'!A:M,8,0)","v":0},{"$f":"VLOOKUP(B252,'LOC FINAL with new Themes'!A:M,9,0)","v":0},{"$f":"VLOOKUP(B252,'LOC FINAL with new Themes'!A:M,10,0)","v":0},{"$f":"VLOOKUP(B252,'LOC FINAL with new Themes'!A:M,11,0)","v":0},{"$f":"VLOOKUP(B252,'LOC FINAL with new Themes'!A:M,12,0)","v":0},{"$f":"VLOOKUP(B252,'LOC FINAL with new Themes'!A:M,13,0)","v":0}]
[null,null,"Non-Projected Boundaries","Non-Projected Boundaries","Water -- Oceans and Coasts ","DOI-BOEM","Doug Vandegraft","Doug.Vandegraft@boem.gov"]
[null,null,"Projected Boundaries","Projected Boundaries","Water -- Oceans and Coasts ","DOI-BOEM","Doug Vandegraft","Doug.Vandegraft@boem.gov"]
[null,null,"U.S. Marine Protected Areas Boundaries","U.S. Marine Protected Areas Boundaries","Water -- Oceans and Coasts ","DOC-NOAA"]
[null,null,"U.S. Maritime Zones/Boundaries","U.S. Maritime Zones/Boundaries","Water -- Oceans and Coasts ","DOC-NOAA","Meredith Westington","meredith.westington@noaa.gov"]
[null,null,null,{"$f":"SUBTOTAL(3,D248:D256)","v":9},"Water -- Oceans and Coasts  Count"]
[null,null,null,{"$f":"SUBTOTAL(3,D2:D256)","v":237},"Grand Count"]

{"sheet":"4-30-2012","index":20,"n_rows":259,"n_cols":16,"rows_kept":259,"cut":false,"hidden":true,"merged":[]}
["ORIGINAL (beginning of 2011)","LOC FINAL (October 2011)","NGDA List (October 2011)","Dataset Name","Theme","Agency","Dataset Manager","Email","Phone Number","Q1 How many data set(s) do you have? It is a single set or multiple sets? ","Q2 Are you a data set manager?","Q3 Are you the POC for transferring the data set and/or for information about the data set?","Q4 How often is the data set updated?","Q5 Is there an archive/backup of the data set or do you maintain an archived copy of it? If yes, how far back do you maintain a copy? Is it easily accessible?","Q6 Does the data set go by a different name or is it referred to internally by another descriptive name?","M\nP\nS"]
[null,null,"Critical Habitat ",{"$f":"IF(C2=0,B2,C2)","v":"Critical Habitat "},"Biota","DOI-FWS","Mike Horton","michael_horton@fws.gov","703-358-2371"]
[null,null,"Current Range for listed species ","Current Range for listed species ","Biota","DOI-FWS","Mike Horton","michael_horton@fws.gov","703-358-2371"]
["ECOMAP Data Sets (Ecological Subregions: Sections and Subsections for the Conterminous United States ) ","ECOMAP Datasets (Ecological Subregions: Sections and Subsections for the Conterminous United States ) ","ECOMAP Datasets (Ecological Subregions: Sections and Subsections for the Conterminous United States ) ","ECOMAP Datasets (Ecological Subregions: Sections and Subsections for the Conterminous United States ) ","Biota","USDA-FS","David T. Cleland","dcleland@fs.fed.us",null,{"$f":"VLOOKUP(B4,'LOC FINAL with new Themes'!A:M,7,0)","v":"One, single set"},{"$f":"VLOOKUP(B4,'LOC FINAL with new Themes'!A:M,8,0)","v":"Yes"},{"$f":"VLOOKUP(B4,'LOC FINAL with new Themes'!A:M,9,0)","v":"Yes"},{"$f":"VLOOKUP(B4,'LOC FINAL with new Themes'!A:M,10,0)","v":"Maps are updated on a 10-year cycle"},{"$f":"VLOOKUP(B4,'LOC FINAL with new Themes'!A:M,11,0)","v":"The data is housed at and served by the Forest Service geodata portal, and is easily accessible.  The web address is: http://fsgeodata.fs.fed.us/other_resources/ecosubregions.html "},{"$f":"VLOOKUP(B4,'LOC FINAL with new Themes'!A:M,12,0)","v":"?   Internally, the data is named ECOMAP or the National Hierarchy of Ecological Units. "},{"$f":"VLOOKUP(B4,'LOC FINAL with new Themes'!A:M,13,0)","v":"S"}]
[null,null,"Endangered Species (Threatened and Endangered Species System)","Endangered Species (Threatened and Endangered Species System)","Biota","DOI-FWS","Mike Horton","michael_horton@fws.gov","703-358-2371"]
["Env Sens Index Maps - classified shoreline","Env Sens Index Maps - classified shoreline","Environmental Sensitivity Index (ESI) Data and Maps","Environmental Sensitivity Index (ESI) Data and Maps","Biota","DOC-NOAA","Jill Petersen","jill.petersen@noaa.gov",null,{"$f":"VLOOKUP(B6,'LOC FINAL with new Themes'!A:M,7,0)","v":"There are approximately 70 different atlases. There are a few that are still not available in a GIS format, (approx 7 of the approx 70!) - these are available as the hard copy product and as PDFs (scanned). The remaining atlases are available in multiple GIS formats - Arc Export files, Geodatabase with an ArcMap map document complete with all relates established and properly symbolized, Shape files with an ArcView 3.x project, a free ESI viewer that allows viewing, queries and printing (in house mapping program and filemaker pro) as well as PDF format and the hard copy product. These can be downloaded from http://response.restoration.noaa.gov/esi_download This page is in progress, but should be complete fairly quickly.\n\n"},{"$f":"VLOOKUP(B6,'LOC FINAL with new Themes'!A:M,8,0)","v":"Yes"},{"$f":"VLOOKUP(B6,'LOC FINAL with new Themes'!A:M,9,0)","v":"Yes "},{"$f":"VLOOKUP(B6,'LOC FINAL with new Themes'!A:M,10,0)","v":"- High resolution products have no defined update schedule.  TBD by geog/project."},{"$f":"VLOOKUP(B6,'LOC FINAL with new Themes'!A:M,11,0)","v":"Yes and no. We have archives of all the digital data as well as all the PDFs (scanned or produced with the digital data map comps). Many of the hard copy atlases from the first round of ESI maps were sent to the Library of Commerce. Others I have kept, but no very organized situation. However, we have all of the historic PDFs which are an exact duplicate of the hard copy atlas, so that is something. Historic data is going to be served from the above link as well. That will be added as the current data sets are completed."},{"$f":"VLOOKUP(B6,'LOC FINAL with new Themes'!A:M,12,0)","v":"ESI is the common abbreviation for these maps. Other than that, Environmental Sensitivity Index Maps, Shoreline Sensitivity maps, Environmental Sensitivity maps..... These maps have the classified shoreline, as well as summaries of biological and human use resource particularly sensitive to oiling. "},{"$f":"VLOOKUP(B6,'LOC FINAL with new Themes'!A:M,13,0)","v":"M "}]
["GAP Program Dataset","GAP Program Dataset","GAP Program Dataset","GAP Program Dataset","Biota","DOI-USGS","Kevin Gergely","gergely@usgs.gov",null,{"$f":"VLOOKUP(B7,'LOC FINAL with new Themes'!A:M,7,0)","v":"POC; multiple data sets in single location, building three fundamental data layers, two are national (protected areas, land cover dataset); backup; six months, annually)"},{"$f":"VLOOKUP(B7,'LOC FINAL with new Themes'!A:M,8,0)","v":0},{"$f":"VLOOKUP(B7,'LOC FINAL with new Themes'!A:M,9,0)","v":0},{"$f":"VLOOKUP(B7,'LOC FINAL with new Themes'!A:M,10,0)","v":0},{"$f":"VLOOKUP(B7,'LOC FINAL with new Themes'!A:M,11,0)","v":0},{"$f":"VLOOKUP(B7,'LOC FINAL with new Themes'!A:M,12,0)","v":0},{"$f":"VLOOKUP(B7,'LOC FINAL with new Themes'!A:M,13,0)","v":"P"}]
["National Standardized Ecosystems Dataset","National Standardized Ecosystems Dataset","National Standardized Ecosystems Dataset","National Standardized Ecosystems Dataset","Biota","DOI-USGS","Roger Sayre","rsayre@usgs.gov",null,{"$f":"VLOOKUP(B8,'LOC FINAL with new Themes'!A:M,7,0)","v":0},{"$f":"VLOOKUP(B8,'LOC FINAL with new Themes'!A:M,8,0)","v":0},{"$f":"VLOOKUP(B8,'LOC FINAL with new Themes'!A:M,9,0)","v":0},{"$f":"VLOOKUP(B8,'LOC FINAL with new Themes'!A:M,10,0)","v":0},{"$f":"VLOOKUP(B8,'LOC FINAL with new Themes'!A:M,11,0)","v":0},{"$f":"VLOOKUP(B8,'LOC FINAL with new Themes'!A:M,12,0)","v":0},{"$f":"VLOOKUP(B8,'LOC FINAL with new Themes'!A:M,13,0)","v":0}]
[null,null,"Recovery Range for listed species ","Recovery Range for listed species ","Biota","DOI-FWS","Mike Horton","michael_horton@fws.gov","703-358-2371"]
[null,null,"Section 7 Range for listed species ","Section 7 Range for listed species ","Biota","DOI-FWS","Mike Horton","michael_horton@fws.gov","703-358-2371"]
["Biomes, Ecoregions","Biomes, Ecoregions",null,"Biomes, Ecoregions","Biota ","DOI-USGS","Dan Phillips ","dphillips@usgs.gov",null,{"$f":"VLOOKUP(B11,'LOC FINAL with new Themes'!A:M,7,0)","v":0},{"$f":"VLOOKUP(B11,'LOC FINAL with new Themes'!A:M,8,0)","v":0},{"$f":"VLOOKUP(B11,'LOC FINAL with new Themes'!A:M,9,0)","v":0},{"$f":"VLOOKUP(B11,'LOC FINAL with new Themes'!A:M,10,0)","v":0},{"$f":"VLOOKUP(B11,'LOC FINAL with new Themes'!A:M,11,0)","v":0},{"$f":"VLOOKUP(B11,'LOC FINAL with new Themes'!A:M,12,0)","v":0},{"$f":"VLOOKUP(B11,'LOC FINAL with new Themes'!A:M,13,0)","v":0}]
["Ecological Services","Ecological Services",null,"Ecological Services","Biota ","DOI-USGS","Dan Phillips ","dphillips@usgs.gov",null,{"$f":"VLOOKUP(B12,'LOC FINAL with new Themes'!A:M,7,0)","v":0},{"$f":"VLOOKUP(B12,'LOC FINAL with new Themes'!A:M,8,0)","v":0},{"$f":"VLOOKUP(B12,'LOC FINAL with new Themes'!A:M,9,0)","v":0},{"$f":"VLOOKUP(B12,'LOC FINAL with new Themes'!A:M,10,0)","v":0},{"$f":"VLOOKUP(B12,'LOC FINAL with new Themes'!A:M,11,0)","v":0},{"$f":"VLOOKUP(B12,'LOC FINAL with new Themes'!A:M,12,0)","v":0},{"$f":"VLOOKUP(B12,'LOC FINAL with new Themes'!A:M,13,0)","v":0}]
["Habitats","Habitats",null,"Habitats","Biota ","DOI-USGS","Dan Phillips ","dphillips@usgs.gov",null,{"$f":"VLOOKUP(B13,'LOC FINAL with new Themes'!A:M,7,0)","v":"see protected areas and land cover set; vertebrae species of US being developed (not complete for all species they want to include in it."},{"$f":"VLOOKUP(B13,'LOC FINAL with new Themes'!A:M,8,0)","v":0},{"$f":"VLOOKUP(B13,'LOC FINAL with new Themes'!A:M,9,0)","v":0},{"$f":"VLOOKUP(B13,'LOC FINAL with new Themes'!A:M,10,0)","v":0},{"$f":"VLOOKUP(B13,'LOC FINAL with new Themes'!A:M,11,0)","v":0},{"$f":"VLOOKUP(B13,'LOC FINAL with new Themes'!A:M,12,0)","v":0},{"$f":"VLOOKUP(B13,'LOC FINAL with new Themes'!A:M,13,0)","v":"M"}]
["Invasive Species","Invasive Species",null,"Invasive Species","Biota ","DOI-USGS","Dan Phillips ","dphillips@usgs.gov",null,{"$f":"VLOOKUP(B14,'LOC FINAL with new Themes'!A:M,7,0)","v":"There are hundreds of datasets that are produced and maintained by the GAP program. Dan is not the data set manager, but I work with the people that maintain and update the datasets and maintains metadata.The data are updated at different intervals, especially now that they have moved more to a regional and national based approach. GAPS data sets presumably archived since 1990s."},{"$f":"VLOOKUP(B14,'LOC FINAL with new Themes'!A:M,8,0)","v":0},{"$f":"VLOOKUP(B14,'LOC FINAL with new Themes'!A:M,9,0)","v":0},{"$f":"VLOOKUP(B14,'LOC FINAL with new Themes'!A:M,10,0)","v":0},{"$f":"VLOOKUP(B14,'LOC FINAL with new Themes'!A:M,11,0)","v":0},{"$f":"VLOOKUP(B14,'LOC FINAL with new Themes'!A:M,12,0)","v":0},{"$f":"VLOOKUP(B14,'LOC FINAL with new Themes'!A:M,13,0)","v":"M"}]
["Species Distribution(amphibians, birds, reptiles, mammals, fishes, plants, etc)","Species Distribution (amphibians, birds, reptiles, mammals, fishes, plants, etc)",null,"Species Distribution (amphibians, birds, reptiles, mammals, fishes, plants, etc)","Biota ","DOI-USGS","Dan Phillips ","dphillips@usgs.gov",null,{"$f":"VLOOKUP(B15,'LOC FINAL with new Themes'!A:M,7,0)","v":"There are hundreds of datasets that are produced and maintained by the GAP program. Dan is not the data set manager, but I work with the people that maintain and update the datasets and maintains metadata. The data are updated at different intervals, especially now that they have moved more to a regional and national based approach. GAPS data sets presumably archived since 1990s."},{"$f":"VLOOKUP(B15,'LOC FINAL with new Themes'!A:M,8,0)","v":0},{"$f":"VLOOKUP(B15,'LOC FINAL with new Themes'!A:M,9,0)","v":0},{"$f":"VLOOKUP(B15,'LOC FINAL with new Themes'!A:M,10,0)","v":0},{"$f":"VLOOKUP(B15,'LOC FINAL with new Themes'!A:M,11,0)","v":0},{"$f":"VLOOKUP(B15,'LOC FINAL with new Themes'!A:M,12,0)","v":0},{"$f":"VLOOKUP(B15,'LOC FINAL with new Themes'!A:M,13,0)","v":"M"}]
[null,null,null,{"$f":"SUBTOTAL(3,D2:D15)","v":14},"Biota Count"]
["General Land Office","General Land Office","General Land Office",{"$f":"IF(C17=0,B17,C17)","v":"General Land Office"},"Cadastre","DOI-BLM","Juan Palma","juan_palma@blm.gov",null,{"$f":"VLOOKUP(B17,'LOC FINAL with new Themes'!A:M,7,0)","v":0},{"$f":"VLOOKUP(B17,'LOC FINAL with new Themes'!A:M,8,0)","v":0},{"$f":"VLOOKUP(B17,'LOC FINAL with new Themes'!A:M,9,0)","v":0},{"$f":"VLOOKUP(B17,'LOC FINAL with new Themes'!A:M,10,0)","v":0},{"$f":"VLOOKUP(B17,'LOC FINAL with new Themes'!A:M,11,0)","v":0},{"$f":"VLOOKUP(B17,'LOC FINAL with new Themes'!A:M,12,0)","v":0},{"$f":"VLOOKUP(B17,'LOC FINAL with new Themes'!A:M,13,0)","v":0}]
["Geographic Coordinate Data Base (GCDB)","Geographic Coordinate Data Base (GCDB)",null,"Geographic Coordinate Data Base (GCDB)","Cadastre","DOI-BLM","Don Buhler","don_buhler@blm.gov",null,{"$f":"VLOOKUP(B18,'LOC FINAL with new Themes'!A:M,7,0)","v":"every agency has its own database; multiple data sets; standard being advanced and put into practice; federal interest is managed with BLM; state and local are authoritative sets for other lands; "},{"$f":"VLOOKUP(B18,'LOC FINAL with new Themes'!A:M,8,0)","v":0},{"$f":"VLOOKUP(B18,'LOC FINAL with new Themes'!A:M,9,0)","v":0},{"$f":"VLOOKUP(B18,'LOC FINAL with new Themes'!A:M,10,0)","v":0},{"$f":"VLOOKUP(B18,'LOC FINAL with new Themes'!A:M,11,0)","v":0},{"$f":"VLOOKUP(B18,'LOC FINAL with new Themes'!A:M,12,0)","v":0},{"$f":"VLOOKUP(B18,'LOC FINAL with new Themes'!A:M,13,0)","v":"M "}]
["LR 2000 - Master Title Plats ","LR 2000 - Master Title Plats ","LR 2000 - Attribute Information","LR 2000 - Attribute Information","Cadastre","DOI-BLM","Jeff Holdren","jeff_holdren@blm.gov",null,{"$f":"VLOOKUP(B19,'LOC FINAL with new Themes'!A:M,7,0)","v":"listing of sales, rents, agricultural disposal and rights of way cases, group of data sets in one system; Kim Burns, division chief; not archived, there is a backup; Denver office handles"},{"$f":"VLOOKUP(B19,'LOC FINAL with new Themes'!A:M,8,0)","v":0},{"$f":"VLOOKUP(B19,'LOC FINAL with new Themes'!A:M,9,0)","v":0},{"$f":"VLOOKUP(B19,'LOC FINAL with new Themes'!A:M,10,0)","v":0},{"$f":"VLOOKUP(B19,'LOC FINAL with new Themes'!A:M,11,0)","v":0},{"$f":"VLOOKUP(B19,'LOC FINAL with new Themes'!A:M,12,0)","v":0},{"$f":"VLOOKUP(B19,'LOC FINAL with new Themes'!A:M,13,0)","v":"P"}]
["Manual of Surveying Instructions, Data Standards","Manual of Surveying Instructions, Data Standards",null,"Manual of Surveying Instructions, Data Standards","Cadastre","DOI-BLM","Don Buhler","don_buhler@blm.gov",null,{"$f":"VLOOKUP(B20,'LOC FINAL with new Themes'!A:M,7,0)","v":0},{"$f":"VLOOKUP(B20,'LOC FINAL with new Themes'!A:M,8,0)","v":0},{"$f":"VLOOKUP(B20,'LOC FINAL with new Themes'!A:M,9,0)","v":0},{"$f":"VLOOKUP(B20,'LOC FINAL with new Themes'!A:M,10,0)","v":0},{"$f":"VLOOKUP(B20,'LOC FINAL with new Themes'!A:M,11,0)","v":0},{"$f":"VLOOKUP(B20,'LOC FINAL with new Themes'!A:M,12,0)","v":0},{"$f":"VLOOKUP(B20,'LOC FINAL with new Themes'!A:M,13,0)","v":0}]
["Mineral Estate - Fluids","Mineral Estate - Fluids",null,"Mineral Estate - Fluids","Cadastre","DOI-BLM","Tim Spisak ","tim_spisak@blm.gov",null,{"$f":"VLOOKUP(B21,'LOC FINAL with new Themes'!A:M,7,0)","v":"mineral leasess, mining claims, rights of way, gases (single data set); BLM-managed lands but managed all federal mineral estate (comprehensive for mineraal estate) some electronic and some not"},{"$f":"VLOOKUP(B21,'LOC FINAL with new Themes'!A:M,8,0)","v":0},{"$f":"VLOOKUP(B21,'LOC FINAL with new Themes'!A:M,9,0)","v":0},{"$f":"VLOOKUP(B21,'LOC FINAL with new Themes'!A:M,10,0)","v":0},{"$f":"VLOOKUP(B21,'LOC FINAL with new Themes'!A:M,11,0)","v":0},{"$f":"VLOOKUP(B21,'LOC FINAL with new Themes'!A:M,12,0)","v":0},{"$f":"VLOOKUP(B21,'LOC FINAL with new Themes'!A:M,13,0)","v":"P"}]
["Mineral Estate - Solids","Mineral Estate - Solids",null,"Mineral Estate - Solids","Cadastre","DOI-BLM","Mitchell Leverette","mitchell_leverette@blm.gov",null,{"$f":"VLOOKUP(B22,'LOC FINAL with new Themes'!A:M,7,0)","v":"mineral leasess, mining claims, rights of way, gases (single data set); BLM-managed lands but managed all federal mineral estate (comprehensive for mineral estate) some electronic and some not"},{"$f":"VLOOKUP(B22,'LOC FINAL with new Themes'!A:M,8,0)","v":0},{"$f":"VLOOKUP(B22,'LOC FINAL with new Themes'!A:M,9,0)","v":0},{"$f":"VLOOKUP(B22,'LOC FINAL with new Themes'!A:M,10,0)","v":0},{"$f":"VLOOKUP(B22,'LOC FINAL with new Themes'!A:M,11,0)","v":0},{"$f":"VLOOKUP(B22,'LOC FINAL with new Themes'!A:M,12,0)","v":0},{"$f":"VLOOKUP(B22,'LOC FINAL with new Themes'!A:M,13,0)","v":"P"}]
[null,null,"PADUS (Protected Areas Database of the US)","PADUS (Protected Areas Database of the US)","Cadastre","DOI-USGS"]
["Parcels","Parcels","Parcels","Parcels","Cadastre","DOI-BLM","Bob Ader","bob_ader@blm.gov",null,{"$f":"VLOOKUP(B24,'LOC FINAL with new Themes'!A:M,7,0)","v":"every agency has its own database; multiple data sets; standard being advanced and put into practice; federal interest is managed with BLM; state and local are authoritative sets for other lands; current effort of federal inventory "},{"$f":"VLOOKUP(B24,'LOC FINAL with new Themes'!A:M,8,0)","v":0},{"$f":"VLOOKUP(B24,'LOC FINAL with new Themes'!A:M,9,0)","v":0},{"$f":"VLOOKUP(B24,'LOC FINAL with new Themes'!A:M,10,0)","v":0},{"$f":"VLOOKUP(B24,'LOC FINAL with new Themes'!A:M,11,0)","v":0},{"$f":"VLOOKUP(B24,'LOC FINAL with new Themes'!A:M,12,0)","v":0},{"$f":"VLOOKUP(B24,'LOC FINAL with new Themes'!A:M,13,0)","v":"M "}]
[null,null,"Protractions","Protractions","Cadastre","DOI-BOEM","Doug Vandegraft","Doug.Vandegraft@boem.gov"]
["Surface Estate","Surface Estate",null,"Surface Estate","Cadastre","DOI-BLM","Kim Burns","kim_m_burns@blm.gov",null,{"$f":"VLOOKUP(B26,'LOC FINAL with new Themes'!A:M,7,0)","v":"lands administered by BLM; other agencies have own system; ownership of lands;  Tim Spisak, division chief; not archived, there is a backup; Denver office handles"},{"$f":"VLOOKUP(B26,'LOC FINAL with new Themes'!A:M,8,0)","v":0},{"$f":"VLOOKUP(B26,'LOC FINAL with new Themes'!A:M,9,0)","v":0},{"$f":"VLOOKUP(B26,'LOC FINAL with new Themes'!A:M,10,0)","v":0},{"$f":"VLOOKUP(B26,'LOC FINAL with new Themes'!A:M,11,0)","v":0},{"$f":"VLOOKUP(B26,'LOC FINAL with new Themes'!A:M,12,0)","v":0},{"$f":"VLOOKUP(B26,'LOC FINAL with new Themes'!A:M,13,0)","v":0}]
["U.S. Official Cadastral Survey Records","U.S. Official Cadastral Survey Records","U.S. Official Cadastral Survey Records","U.S. Official Cadastral Survey Records","Cadastre","DOI-BLM","Don Buhler","don_buhler@blm.gov",null,{"$f":"VLOOKUP(B27,'LOC FINAL with new Themes'!A:M,7,0)","v":"every agency has its own database; multiple data sets; standard being advanced and put into practice; federal interest is managed with BLM; state and local are authoritative sets for other lands; state offices are scanning these records (survey plats and field notes); CDI (conveyence cards)"},{"$f":"VLOOKUP(B27,'LOC FINAL with new Themes'!A:M,8,0)","v":0},{"$f":"VLOOKUP(B27,'LOC FINAL with new Themes'!A:M,9,0)","v":0},{"$f":"VLOOKUP(B27,'LOC FINAL with new Themes'!A:M,10,0)","v":0},{"$f":"VLOOKUP(B27,'LOC FINAL with new Themes'!A:M,11,0)","v":0},{"$f":"VLOOKUP(B27,'LOC FINAL with new Themes'!A:M,12,0)","v":0},{"$f":"VLOOKUP(B27,'LOC FINAL with new Themes'!A:M,13,0)","v":"M "}]
["U.S. Public Land Survey System","U.S. Public Land Survey System","U.S. Public Land Survey System","U.S. Public Land Survey System","Cadastre","DOI-BLM","Don Buhler","don_buhler@blm.gov",null,{"$f":"VLOOKUP(B28,'LOC FINAL with new Themes'!A:M,7,0)","v":"only federal agency that administers the PLSS; trying to get it to be logically one data set with different regions. (working copies for nine states in West); keep historical record in data base; schema 2 is the version to look at for archiving some time March 2012"},{"$f":"VLOOKUP(B28,'LOC FINAL with new Themes'!A:M,8,0)","v":0},{"$f":"VLOOKUP(B28,'LOC FINAL with new Themes'!A:M,9,0)","v":0},{"$f":"VLOOKUP(B28,'LOC FINAL with new Themes'!A:M,10,0)","v":0},{"$f":"VLOOKUP(B28,'LOC FINAL with new Themes'!A:M,11,0)","v":0},{"$f":"VLOOKUP(B28,'LOC FINAL with new Themes'!A:M,12,0)","v":0},{"$f":"VLOOKUP(B28,'LOC FINAL with new Themes'!A:M,13,0)","v":"P"}]
[null,null,null,"Coastal National Parks","Cadastre","DOI - NPS","Roger Johnson ","Roger_M_Johnson@nps.gov"]
[null,null,null,"Coastal National Wildlife Refuges","Cadastre","DOI - NPS","Sean Killen","Sean_Killen@fws.gov"]
[null,null,null,"Coastal Indian Lands","Cadastre","DOI - BIA","Richard Moore","Richard.Moore@bia.gov"]
[null,null,null,"Outer Continental Shelf Lease Blocks","Cadastre","DOI - BOEM","Doug Vandegraft","Doug.Vandegraft@boem.gov"]
[null,null,null,"BOEM Active Oil and Gas Leases","Cadastre","DOI - BOEM","Doug Vandegraft","Doug.Vandegraft@boem.gov"]
[null,null,null,{"$f":"SUBTOTAL(3,D17:D28)","v":12},"Cadastre Count"]
["Blended Sea Surface Temperature","Blended Sea Surface Temperature","Blended Sea Surface Temperature",{"$f":"IF(C35=0,B35,C35)","v":"Blended Sea Surface Temperature"},"Climate and Weather ","DOC-NOAA","Viva Banzon","Viva.Banzon@noaa.gov",null,{"$f":"VLOOKUP(B35,'LOC FINAL with new Themes'!A:M,7,0)","v":0},{"$f":"VLOOKUP(B35,'LOC FINAL with new Themes'!A:M,8,0)","v":0},{"$f":"VLOOKUP(B35,'LOC FINAL with new Themes'!A:M,9,0)","v":0},{"$f":"VLOOKUP(B35,'LOC FINAL with new Themes'!A:M,10,0)","v":0},{"$f":"VLOOKUP(B35,'LOC FINAL with new Themes'!A:M,11,0)","v":0},{"$f":"VLOOKUP(B35,'LOC FINAL with new Themes'!A:M,12,0)","v":0},{"$f":"VLOOKUP(B35,'LOC FINAL with new Themes'!A:M,13,0)","v":0}]
["Geostationary Operational Environmental Satellite (GOES) data (NCDC)","Geostationary Operational Environmental Satellite (GOES) data (NCDC)","Geostationary Operational Environmental Satellite (GOES) data (NCDC)","Geostationary Operational Environmental Satellite (GOES) data (NCDC)","Climate and Weather ","DOC-NOAA","Nancy Ritchey","Nancy.Ritchey@noaa.gov",null,{"$f":"VLOOKUP(B36,'LOC FINAL with new Themes'!A:M,7,0)","v":"Define 'data set'.  Each spacecraft continuously produces a data stream.  There are multiple sets and the total going back to the late 70s or early 80s numbers in the millions"},{"$f":"VLOOKUP(B36,'LOC FINAL with new Themes'!A:M,8,0)","v":"Yes"},{"$f":"VLOOKUP(B36,'LOC FINAL with new Themes'!A:M,9,0)","v":"Yes"},{"$f":"VLOOKUP(B36,'LOC FINAL with new Themes'!A:M,10,0)","v":"Continuously"},{"$f":"VLOOKUP(B36,'LOC FINAL with new Themes'!A:M,11,0)","v":"There are two active archive centers for these data; one here in Asheville, NC and one in Boulder, CO.  These data go back to the late 70s and all data are on line wither on disc or robotic tape storage"},{"$f":"VLOOKUP(B36,'LOC FINAL with new Themes'!A:M,12,0)","v":"Again, define your terms.  For examples see www.class.noaa.gov - Raw data are listed by satellite (GOES or POES) and then be instrument.  Geophysical products are listed by product name."},{"$f":"VLOOKUP(B36,'LOC FINAL with new Themes'!A:M,13,0)","v":0}]
[null,null,"MODIS-based Atmospheric Products","MODIS-based Atmospheric Products","Climate and Weather ","USDA -FS (Along with USGS)"]
[null,null,"National Doplar Radar Data (NEXRAD)","National Doplar Radar Data (NEXRAD)","Climate and Weather ","DOC-NOAA","Steve DelGreco","stephen.a.delgreco"]
[null,null,"NOAA National Weather Service GIS Data",{"$f":"IF(C39=0,B39,C39)","v":"NOAA National Weather Service GIS Data"},"Climate and Weather ","DOC-NOAA"]
["Parameter-elevation Regressions on Independent Slopes Model (PRISM) Data Sets","Parameter-elevation Regressions on Independent Slopes Model (PRISM) Datasets","Parameter-elevation Regressions on Independent Slopes Model (PRISM) Datasets",{"$f":"IF(C40=0,B40,C40)","v":"Parameter-elevation Regressions on Independent Slopes Model (PRISM) Datasets"},"Climate and Weather ","USDA-NRCS","Jan Curtis","jan.curtis@por.usda.gov",null,{"$f":"VLOOKUP(B40,'LOC FINAL with new Themes'!A:M,7,0)","v":"info provided via http://www.prism.oregonstate.edu/ and \nhttp://www.nrcs.usda.gov/wps/portal/nrcs/main/?ss=16&navtype=SubNavigation&cid=null&navid=850130000000000&pnavid=850000000000000&position=SubNavigation&ttype=main&pname=USDA%2520NRCS%2520-%2520Natural%2520Resources%2520Conservation%2520Service\n"},{"$f":"VLOOKUP(B40,'LOC FINAL with new Themes'!A:M,8,0)","v":0},{"$f":"VLOOKUP(B40,'LOC FINAL with new Themes'!A:M,9,0)","v":0},{"$f":"VLOOKUP(B40,'LOC FINAL with new Themes'!A:M,10,0)","v":0},{"$f":"VLOOKUP(B40,'LOC FINAL with new Themes'!A:M,11,0)","v":0},{"$f":"VLOOKUP(B40,'LOC FINAL with new Themes'!A:M,12,0)","v":0},{"$f":"VLOOKUP(B40,'LOC FINAL with new Themes'!A:M,13,0)","v":"M"}]
["Polar Operational Environmental Satellite (POES) data (NCDC)","Polar Operational Environmental Satellite (POES) data","Polar Operational Environmental Satellite (POES) data",{"$f":"IF(C41=0,B41,C41)","v":"Polar Operational Environmental Satellite (POES) data"},"Climate and Weather ","DOC-NOAA","John Bates","john.j.bates@noaa.gov",null,{"$f":"VLOOKUP(B41,'LOC FINAL with new Themes'!A:M,7,0)","v":0},{"$f":"VLOOKUP(B41,'LOC FINAL with new Themes'!A:M,8,0)","v":0},{"$f":"VLOOKUP(B41,'LOC FINAL with new Themes'!A:M,9,0)","v":0},{"$f":"VLOOKUP(B41,'LOC FINAL with new Themes'!A:M,10,0)","v":0},{"$f":"VLOOKUP(B41,'LOC FINAL with new Themes'!A:M,11,0)","v":0},{"$f":"VLOOKUP(B41,'LOC FINAL with new Themes'!A:M,12,0)","v":0},{"$f":"VLOOKUP(B41,'LOC FINAL with new Themes'!A:M,13,0)","v":0}]
[null,null,null,{"$f":"SUBTOTAL(3,D35:D41)","v":7},"Climate and Weather  Count"]
[null,"5-digit ZIP Code Tabulation Area (Census 2000)","5-digit ZIP Code Tabulation Area (Census 2000)",{"$f":"IF(C43=0,B43,C43)","v":"5-digit ZIP Code Tabulation Area (Census 2000)"},"Cultural & Demographic Statistics ","DOC-Census","Jennifer Holland","Jennifer.L.Holland@census.gov",null,{"$f":"VLOOKUP(B43,'LOC FINAL with new Themes'!A:M,7,0)","v":0},{"$f":"VLOOKUP(B43,'LOC FINAL with new Themes'!A:M,8,0)","v":0},{"$f":"VLOOKUP(B43,'LOC FINAL with new Themes'!A:M,9,0)","v":0},{"$f":"VLOOKUP(B43,'LOC FINAL with new Themes'!A:M,10,0)","v":0},{"$f":"VLOOKUP(B43,'LOC FINAL with new Themes'!A:M,11,0)","v":0},{"$f":"VLOOKUP(B43,'LOC FINAL with new Themes'!A:M,12,0)","v":0},{"$f":"VLOOKUP(B43,'LOC FINAL with new Themes'!A:M,13,0)","v":0}]
["AIR, ANVSA, Hawaiian Homelands Boundaries","AIR, ANVSA, Hawaiian Homelands Boundaries",null,"AIR, ANVSA, Hawaiian Homelands Boundaries","Cultural & Demographic Statistics ","DOC-Census","Randy Fusaro","randy.j.fusaro@census.gov",null,{"$f":"VLOOKUP(B44,'LOC FINAL with new Themes'!A:M,7,0)","v":0},{"$f":"VLOOKUP(B44,'LOC FINAL with new Themes'!A:M,8,0)","v":0},{"$f":"VLOOKUP(B44,'LOC FINAL with new Themes'!A:M,9,0)","v":0},{"$f":"VLOOKUP(B44,'LOC FINAL with new Themes'!A:M,10,0)","v":0},{"$f":"VLOOKUP(B44,'LOC FINAL with new Themes'!A:M,11,0)","v":0},{"$f":"VLOOKUP(B44,'LOC FINAL with new Themes'!A:M,12,0)","v":0},{"$f":"VLOOKUP(B44,'LOC FINAL with new Themes'!A:M,13,0)","v":0}]
[null,"All Lines (2010 Census)","All Lines (2010 Census)","All Lines (2010 Census)","Cultural & Demographic Statistics ","DOC-Census","Jennifer Holland","Jennifer.L.Holland@census.gov",null,{"$f":"VLOOKUP(B45,'LOC FINAL with new Themes'!A:M,7,0)","v":0},{"$f":"VLOOKUP(B45,'LOC FINAL with new Themes'!A:M,8,0)","v":0},{"$f":"VLOOKUP(B45,'LOC FINAL with new Themes'!A:M,9,0)","v":0},{"$f":"VLOOKUP(B45,'LOC FINAL with new Themes'!A:M,10,0)","v":0},{"$f":"VLOOKUP(B45,'LOC FINAL with new Themes'!A:M,11,0)","v":0},{"$f":"VLOOKUP(B45,'LOC FINAL with new Themes'!A:M,12,0)","v":0},{"$f":"VLOOKUP(B45,'LOC FINAL with new Themes'!A:M,13,0)","v":0}]
[null,"ANSI codes for  metro/micropolitan areas","ANSI codes for  metro/micropolitan areas","ANSI codes for  metro/micropolitan areas","Cultural & Demographic Statistics ","DOC-Census","Jennifer Holland","Jennifer.L.Holland@census.gov",null,{"$f":"VLOOKUP(B46,'LOC FINAL with new Themes'!A:M,7,0)","v":0},{"$f":"VLOOKUP(B46,'LOC FINAL with new Themes'!A:M,8,0)","v":0},{"$f":"VLOOKUP(B46,'LOC FINAL with new Themes'!A:M,9,0)","v":0},{"$f":"VLOOKUP(B46,'LOC FINAL with new Themes'!A:M,10,0)","v":0},{"$f":"VLOOKUP(B46,'LOC FINAL with new Themes'!A:M,11,0)","v":0},{"$f":"VLOOKUP(B46,'LOC FINAL with new Themes'!A:M,12,0)","v":0},{"$f":"VLOOKUP(B46,'LOC FINAL with new Themes'!A:M,13,0)","v":0}]
[null,"ANSI codes for congressional districts","ANSI codes for congressional districts","ANSI codes for congressional districts","Cultural & Demographic Statistics ","DOC-Census","Jennifer Holland","Jennifer.L.Holland@census.gov",null,{"$f":"VLOOKUP(B47,'LOC FINAL with new Themes'!A:M,7,0)","v":0},{"$f":"VLOOKUP(B47,'LOC FINAL with new Themes'!A:M,8,0)","v":0},{"$f":"VLOOKUP(B47,'LOC FINAL with new Themes'!A:M,9,0)","v":0},{"$f":"VLOOKUP(B47,'LOC FINAL with new Themes'!A:M,10,0)","v":0},{"$f":"VLOOKUP(B47,'LOC FINAL with new Themes'!A:M,11,0)","v":0},{"$f":"VLOOKUP(B47,'LOC FINAL with new Themes'!A:M,12,0)","v":0},{"$f":"VLOOKUP(B47,'LOC FINAL with new Themes'!A:M,13,0)","v":0}]
[null,"ANSI codes for counties","ANSI codes for counties","ANSI codes for counties","Cultural & Demographic Statistics ","DOC-Census","Jennifer Holland","Jennifer.L.Holland@census.gov",null,{"$f":"VLOOKUP(B48,'LOC FINAL with new Themes'!A:M,7,0)","v":0},{"$f":"VLOOKUP(B48,'LOC FINAL with new Themes'!A:M,8,0)","v":0},{"$f":"VLOOKUP(B48,'LOC FINAL with new Themes'!A:M,9,0)","v":0},{"$f":"VLOOKUP(B48,'LOC FINAL with new Themes'!A:M,10,0)","v":0},{"$f":"VLOOKUP(B48,'LOC FINAL with new Themes'!A:M,11,0)","v":0},{"$f":"VLOOKUP(B48,'LOC FINAL with new Themes'!A:M,12,0)","v":0},{"$f":"VLOOKUP(B48,'LOC FINAL with new Themes'!A:M,13,0)","v":0}]
[null,"ANSI codes for states","ANSI codes for states","ANSI codes for states","Cultural & Demographic Statistics ","DOC-Census","Jennifer Holland","Jennifer.L.Holland@census.gov",null,{"$f":"VLOOKUP(B49,'LOC FINAL with new Themes'!A:M,7,0)","v":0},{"$f":"VLOOKUP(B49,'LOC FINAL with new Themes'!A:M,8,0)","v":0},{"$f":"VLOOKUP(B49,'LOC FINAL with new Themes'!A:M,9,0)","v":0},{"$f":"VLOOKUP(B49,'LOC FINAL with new Themes'!A:M,10,0)","v":0},{"$f":"VLOOKUP(B49,'LOC FINAL with new Themes'!A:M,11,0)","v":0},{"$f":"VLOOKUP(B49,'LOC FINAL with new Themes'!A:M,12,0)","v":0},{"$f":"VLOOKUP(B49,'LOC FINAL with new Themes'!A:M,13,0)","v":0}]
[null,"Block (2010 Census)","Block (2010 Census)","Block (2010 Census)","Cultural & Demographic Statistics ","DOC-Census","Jennifer Holland","Jennifer.L.Holland@census.gov",null,{"$f":"VLOOKUP(B50,'LOC FINAL with new Themes'!A:M,7,0)","v":0},{"$f":"VLOOKUP(B50,'LOC FINAL with new Themes'!A:M,8,0)","v":0},{"$f":"VLOOKUP(B50,'LOC FINAL with new Themes'!A:M,9,0)","v":0},{"$f":"VLOOKUP(B50,'LOC FINAL with new Themes'!A:M,10,0)","v":0},{"$f":"VLOOKUP(B50,'LOC FINAL with new Themes'!A:M,11,0)","v":0},{"$f":"VLOOKUP(B50,'LOC FINAL with new Themes'!A:M,12,0)","v":0},{"$f":"VLOOKUP(B50,'LOC FINAL with new Themes'!A:M,13,0)","v":0}]
[null,"Block (Census 2000)","Block (Census 2000)","Block (Census 2000)","Cultural & Demographic Statistics ","DOC-Census","Jennifer Holland","Jennifer.L.Holland@census.gov",null,{"$f":"VLOOKUP(B51,'LOC FINAL with new Themes'!A:M,7,0)","v":0},{"$f":"VLOOKUP(B51,'LOC FINAL with new Themes'!A:M,8,0)","v":0},{"$f":"VLOOKUP(B51,'LOC FINAL with new Themes'!A:M,9,0)","v":0},{"$f":"VLOOKUP(B51,'LOC FINAL with new Themes'!A:M,10,0)","v":0},{"$f":"VLOOKUP(B51,'LOC FINAL with new Themes'!A:M,11,0)","v":0},{"$f":"VLOOKUP(B51,'LOC FINAL with new Themes'!A:M,12,0)","v":0},{"$f":"VLOOKUP(B51,'LOC FINAL with new Themes'!A:M,13,0)","v":0}]
[null,"Block Group (Census 2000)","Block Group (Census 2000)","Block Group (Census 2000)","Cultural & Demographic Statistics ","DOC-Census","Jennifer Holland","Jennifer.L.Holland@census.gov",null,{"$f":"VLOOKUP(B52,'LOC FINAL with new Themes'!A:M,7,0)","v":0},{"$f":"VLOOKUP(B52,'LOC FINAL with new Themes'!A:M,8,0)","v":0},{"$f":"VLOOKUP(B52,'LOC FINAL with new Themes'!A:M,9,0)","v":0},{"$f":"VLOOKUP(B52,'LOC FINAL with new Themes'!A:M,10,0)","v":0},{"$f":"VLOOKUP(B52,'LOC FINAL with new Themes'!A:M,11,0)","v":0},{"$f":"VLOOKUP(B52,'LOC FINAL with new Themes'!A:M,12,0)","v":0},{"$f":"VLOOKUP(B52,'LOC FINAL with new Themes'!A:M,13,0)","v":0}]
[null,"Block Group (Census 2010)","Block Group (Census 2010)","Block Group (Census 2010)","Cultural & Demographic Statistics ","DOC-Census","Jennifer Holland","Jennifer.L.Holland@census.gov",null,{"$f":"VLOOKUP(B53,'LOC FINAL with new Themes'!A:M,7,0)","v":0},{"$f":"VLOOKUP(B53,'LOC FINAL with new Themes'!A:M,8,0)","v":0},{"$f":"VLOOKUP(B53,'LOC FINAL with new Themes'!A:M,9,0)","v":0},{"$f":"VLOOKUP(B53,'LOC FINAL with new Themes'!A:M,10,0)","v":0},{"$f":"VLOOKUP(B53,'LOC FINAL with new Themes'!A:M,11,0)","v":0},{"$f":"VLOOKUP(B53,'LOC FINAL with new Themes'!A:M,12,0)","v":0},{"$f":"VLOOKUP(B53,'LOC FINAL with new Themes'!A:M,13,0)","v":0}]
[null,"Census 2000 FIPS 55 Codes","Census 2000 FIPS 55 Codes","Census 2000 FIPS 55 Codes","Cultural & Demographic Statistics ","DOC-Census","Jennifer Holland","Jennifer.L.Holland@census.gov",null,{"$f":"VLOOKUP(B54,'LOC FINAL with new Themes'!A:M,7,0)","v":0},{"$f":"VLOOKUP(B54,'LOC FINAL with new Themes'!A:M,8,0)","v":0},{"$f":"VLOOKUP(B54,'LOC FINAL with new Themes'!A:M,9,0)","v":0},{"$f":"VLOOKUP(B54,'LOC FINAL with new Themes'!A:M,10,0)","v":0},{"$f":"VLOOKUP(B54,'LOC FINAL with new Themes'!A:M,11,0)","v":0},{"$f":"VLOOKUP(B54,'LOC FINAL with new Themes'!A:M,12,0)","v":0},{"$f":"VLOOKUP(B54,'LOC FINAL with new Themes'!A:M,13,0)","v":0}]
[null,"Census Tract (2010 Census)","Census Tract (2010 Census)","Census Tract (2010 Census)","Cultural & Demographic Statistics ","DOC-Census","Jennifer Holland","Jennifer.L.Holland@census.gov",null,{"$f":"VLOOKUP(B55,'LOC FINAL with new Themes'!A:M,7,0)","v":0},{"$f":"VLOOKUP(B55,'LOC FINAL with new Themes'!A:M,8,0)","v":0},{"$f":"VLOOKUP(B55,'LOC FINAL with new Themes'!A:M,9,0)","v":0},{"$f":"VLOOKUP(B55,'LOC FINAL with new Themes'!A:M,10,0)","v":0},{"$f":"VLOOKUP(B55,'LOC FINAL with new Themes'!A:M,11,0)","v":0},{"$f":"VLOOKUP(B55,'LOC FINAL with new Themes'!A:M,12,0)","v":0},{"$f":"VLOOKUP(B55,'LOC FINAL with new Themes'!A:M,13,0)","v":0}]
[null,"Census Tract (Census 2000)","Census Tract (Census 2000)","Census Tract (Census 2000)","Cultural & Demographic Statistics ","DOC-Census","Jennifer Holland","Jennifer.L.Holland@census.gov",null,{"$f":"VLOOKUP(B56,'LOC FINAL with new Themes'!A:M,7,0)","v":0},{"$f":"VLOOKUP(B56,'LOC FINAL with new Themes'!A:M,8,0)","v":0},{"$f":"VLOOKUP(B56,'LOC FINAL with new Themes'!A:M,9,0)","v":0},{"$f":"VLOOKUP(B56,'LOC FINAL with new Themes'!A:M,10,0)","v":0},{"$f":"VLOOKUP(B56,'LOC FINAL with new Themes'!A:M,11,0)","v":0},{"$f":"VLOOKUP(B56,'LOC FINAL with new Themes'!A:M,12,0)","v":0},{"$f":"VLOOKUP(B56,'LOC FINAL with new Themes'!A:M,13,0)","v":0}]
[null,"Combined Statistical Area (2010 Census)","Combined Statistical Area (2010 Census)","Combined Statistical Area (2010 Census)","Cultural & Demographic Statistics ","DOC-Census","Jennifer Holland","Jennifer.L.Holland@census.gov",null,{"$f":"VLOOKUP(B57,'LOC FINAL with new Themes'!A:M,7,0)","v":0},{"$f":"VLOOKUP(B57,'LOC FINAL with new Themes'!A:M,8,0)","v":0},{"$f":"VLOOKUP(B57,'LOC FINAL with new Themes'!A:M,9,0)","v":0},{"$f":"VLOOKUP(B57,'LOC FINAL with new Themes'!A:M,10,0)","v":0},{"$f":"VLOOKUP(B57,'LOC FINAL with new Themes'!A:M,11,0)","v":0},{"$f":"VLOOKUP(B57,'LOC FINAL with new Themes'!A:M,12,0)","v":0},{"$f":"VLOOKUP(B57,'LOC FINAL with new Themes'!A:M,13,0)","v":0}]
[null,"Congressional District Boundaries",null,"Congressional District Boundaries","Cultural & Demographic Statistics ","DOC-Census","Randy Fusaro","randy.j.fusaro@census.gov",null,{"$f":"VLOOKUP(B58,'LOC FINAL with new Themes'!A:M,7,0)","v":0},{"$f":"VLOOKUP(B58,'LOC FINAL with new Themes'!A:M,8,0)","v":0},{"$f":"VLOOKUP(B58,'LOC FINAL with new Themes'!A:M,9,0)","v":0},{"$f":"VLOOKUP(B58,'LOC FINAL with new Themes'!A:M,10,0)","v":0},{"$f":"VLOOKUP(B58,'LOC FINAL with new Themes'!A:M,11,0)","v":0},{"$f":"VLOOKUP(B58,'LOC FINAL with new Themes'!A:M,12,0)","v":0},{"$f":"VLOOKUP(B58,'LOC FINAL with new Themes'!A:M,13,0)","v":0}]
["County, place, MCD Boundaries","County, place, MCD Boundaries",null,"County, place, MCD Boundaries","Cultural & Demographic Statistics ","DOC-Census","Randy Fusaro","randy.j.fusaro@census.gov",null,{"$f":"VLOOKUP(B59,'LOC FINAL with new Themes'!A:M,7,0)","v":0},{"$f":"VLOOKUP(B59,'LOC FINAL with new Themes'!A:M,8,0)","v":0},{"$f":"VLOOKUP(B59,'LOC FINAL with new Themes'!A:M,9,0)","v":0},{"$f":"VLOOKUP(B59,'LOC FINAL with new Themes'!A:M,10,0)","v":0},{"$f":"VLOOKUP(B59,'LOC FINAL with new Themes'!A:M,11,0)","v":0},{"$f":"VLOOKUP(B59,'LOC FINAL with new Themes'!A:M,12,0)","v":0},{"$f":"VLOOKUP(B59,'LOC FINAL with new Themes'!A:M,13,0)","v":0}]
[null,"Elementary School District (2010 Census)","Elementary School District (2010 Census)","Elementary School District (2010 Census)","Cultural & Demographic Statistics ","DOC-Census","Jennifer Holland","Jennifer.L.Holland@census.gov",null,{"$f":"VLOOKUP(B60,'LOC FINAL with new Themes'!A:M,7,0)","v":0},{"$f":"VLOOKUP(B60,'LOC FINAL with new Themes'!A:M,8,0)","v":0},{"$f":"VLOOKUP(B60,'LOC FINAL with new Themes'!A:M,9,0)","v":0},{"$f":"VLOOKUP(B60,'LOC FINAL with new Themes'!A:M,10,0)","v":0},{"$f":"VLOOKUP(B60,'LOC FINAL with new Themes'!A:M,11,0)","v":0},{"$f":"VLOOKUP(B60,'LOC FINAL with new Themes'!A:M,12,0)","v":0},{"$f":"VLOOKUP(B60,'LOC FINAL with new Themes'!A:M,13,0)","v":0}]
[null,"Elementary School District (Census 2000)","Elementary School District (Census 2000)","Elementary School District (Census 2000)","Cultural & Demographic Statistics ","DOC-Census","Jennifer Holland","Jennifer.L.Holland@census.gov",null,{"$f":"VLOOKUP(B61,'LOC FINAL with new Themes'!A:M,7,0)","v":0},{"$f":"VLOOKUP(B61,'LOC FINAL with new Themes'!A:M,8,0)","v":0},{"$f":"VLOOKUP(B61,'LOC FINAL with new Themes'!A:M,9,0)","v":0},{"$f":"VLOOKUP(B61,'LOC FINAL with new Themes'!A:M,10,0)","v":0},{"$f":"VLOOKUP(B61,'LOC FINAL with new Themes'!A:M,11,0)","v":0},{"$f":"VLOOKUP(B61,'LOC FINAL with new Themes'!A:M,12,0)","v":0},{"$f":"VLOOKUP(B61,'LOC FINAL with new Themes'!A:M,13,0)","v":0}]
["FIPS/ANSI codes for states, counties, congressional districts & metro/micropolitan areas","FIPS/ANSI codes for states, counties, congressional districts & metro/micropolitan areas",null,"FIPS/ANSI codes for states, counties, congressional districts & metro/micropolitan areas","Cultural & Demographic Statistics ","DOC-Census","Randy Fusaro","randy.j.fusaro@census.gov",null,{"$f":"VLOOKUP(B62,'LOC FINAL with new Themes'!A:M,7,0)","v":0},{"$f":"VLOOKUP(B62,'LOC FINAL with new Themes'!A:M,8,0)","v":0},{"$f":"VLOOKUP(B62,'LOC FINAL with new Themes'!A:M,9,0)","v":0},{"$f":"VLOOKUP(B62,'LOC FINAL with new Themes'!A:M,10,0)","v":0},{"$f":"VLOOKUP(B62,'LOC FINAL with new Themes'!A:M,11,0)","v":0},{"$f":"VLOOKUP(B62,'LOC FINAL with new Themes'!A:M,12,0)","v":0},{"$f":"VLOOKUP(B62,'LOC FINAL with new Themes'!A:M,13,0)","v":0}]
["Metropolitan/micropolitan area boundaries","Metropolitan/micropolitan area boundaries",null,"Metropolitan/micropolitan area boundaries","Cultural & Demographic Statistics ","DOC-Census","Randy Fusaro","randy.j.fusaro@census.gov",null,{"$f":"VLOOKUP(B63,'LOC FINAL with new Themes'!A:M,7,0)","v":0},{"$f":"VLOOKUP(B63,'LOC FINAL with new Themes'!A:M,8,0)","v":0},{"$f":"VLOOKUP(B63,'LOC FINAL with new Themes'!A:M,9,0)","v":0},{"$f":"VLOOKUP(B63,'LOC FINAL with new Themes'!A:M,10,0)","v":0},{"$f":"VLOOKUP(B63,'LOC FINAL with new Themes'!A:M,11,0)","v":0},{"$f":"VLOOKUP(B63,'LOC FINAL with new Themes'!A:M,12,0)","v":0},{"$f":"VLOOKUP(B63,'LOC FINAL with new Themes'!A:M,13,0)","v":0}]
[null,"Metropolitan/micropolitan Statistical Area (2010 Census)","Metropolitan/micropolitan Statistical Area (2010 Census)","Metropolitan/micropolitan Statistical Area (2010 Census)","Cultural & Demographic Statistics ","DOC-Census","Jennifer Holland","Jennifer.L.Holland@census.gov",null,{"$f":"VLOOKUP(B64,'LOC FINAL with new Themes'!A:M,7,0)","v":0},{"$f":"VLOOKUP(B64,'LOC FINAL with new Themes'!A:M,8,0)","v":0},{"$f":"VLOOKUP(B64,'LOC FINAL with new Themes'!A:M,9,0)","v":0},{"$f":"VLOOKUP(B64,'LOC FINAL with new Themes'!A:M,10,0)","v":0},{"$f":"VLOOKUP(B64,'LOC FINAL with new Themes'!A:M,11,0)","v":0},{"$f":"VLOOKUP(B64,'LOC FINAL with new Themes'!A:M,12,0)","v":0},{"$f":"VLOOKUP(B64,'LOC FINAL with new Themes'!A:M,13,0)","v":0}]
["National Center for Health Statistics (Atlas of US Mortality)","National Center for Health Statistics (Atlas of US Mortality)",null,"National Center for Health Statistics (Atlas of US Mortality)","Cultural & Demographic Statistics ","HHS","Gary Anderson","gary.anderson@hhs.gov",null,{"$f":"VLOOKUP(B65,'LOC FINAL with new Themes'!A:M,7,0)","v":0},{"$f":"VLOOKUP(B65,'LOC FINAL with new Themes'!A:M,8,0)","v":0},{"$f":"VLOOKUP(B65,'LOC FINAL with new Themes'!A:M,9,0)","v":0},{"$f":"VLOOKUP(B65,'LOC FINAL with new Themes'!A:M,10,0)","v":0},{"$f":"VLOOKUP(B65,'LOC FINAL with new Themes'!A:M,11,0)","v":0},{"$f":"VLOOKUP(B65,'LOC FINAL with new Themes'!A:M,12,0)","v":0},{"$f":"VLOOKUP(B65,'LOC FINAL with new Themes'!A:M,13,0)","v":0}]
[null,null,"Oklahoma Tribal Joint Use Areas","Oklahoma Tribal Joint Use Areas","Cultural & Demographic Statistics ","DOC-Census"]
[null,null,"Oklahoma Tribal Statistical Areas","Oklahoma Tribal Statistical Areas","Cultural & Demographic Statistics ","DOC-Census"]
[null,"Public Use Microdata Area (Census 2000)","Public Use Microdata Area (Census 2000)","Public Use Microdata Area (Census 2000)","Cultural & Demographic Statistics ","DOC-Census","Jennifer Holland","Jennifer.L.Holland@census.gov",null,{"$f":"VLOOKUP(B68,'LOC FINAL with new Themes'!A:M,7,0)","v":0},{"$f":"VLOOKUP(B68,'LOC FINAL with new Themes'!A:M,8,0)","v":0},{"$f":"VLOOKUP(B68,'LOC FINAL with new Themes'!A:M,9,0)","v":0},{"$f":"VLOOKUP(B68,'LOC FINAL with new Themes'!A:M,10,0)","v":0},{"$f":"VLOOKUP(B68,'LOC FINAL with new Themes'!A:M,11,0)","v":0},{"$f":"VLOOKUP(B68,'LOC FINAL with new Themes'!A:M,12,0)","v":0},{"$f":"VLOOKUP(B68,'LOC FINAL with new Themes'!A:M,13,0)","v":0}]
["School District Boundaries","School District Boundaries",null,"School District Boundaries","Cultural & Demographic Statistics ","DOC-Census","Randy Fusaro","randy.j.fusaro@census.gov",null,{"$f":"VLOOKUP(B69,'LOC FINAL with new Themes'!A:M,7,0)","v":0},{"$f":"VLOOKUP(B69,'LOC FINAL with new Themes'!A:M,8,0)","v":0},{"$f":"VLOOKUP(B69,'LOC FINAL with new Themes'!A:M,9,0)","v":0},{"$f":"VLOOKUP(B69,'LOC FINAL with new Themes'!A:M,10,0)","v":0},{"$f":"VLOOKUP(B69,'LOC FINAL with new Themes'!A:M,11,0)","v":0},{"$f":"VLOOKUP(B69,'LOC FINAL with new Themes'!A:M,12,0)","v":0},{"$f":"VLOOKUP(B69,'LOC FINAL with new Themes'!A:M,13,0)","v":0}]
[null,"Secondary School District (2010 Census)","Secondary School District (2010 Census)","Secondary School District (2010 Census)","Cultural & Demographic Statistics ","DOC-Census","Jennifer Holland","Jennifer.L.Holland@census.gov",null,{"$f":"VLOOKUP(B70,'LOC FINAL with new Themes'!A:M,7,0)","v":0},{"$f":"VLOOKUP(B70,'LOC FINAL with new Themes'!A:M,8,0)","v":0},{"$f":"VLOOKUP(B70,'LOC FINAL with new Themes'!A:M,9,0)","v":0},{"$f":"VLOOKUP(B70,'LOC FINAL with new Themes'!A:M,10,0)","v":0},{"$f":"VLOOKUP(B70,'LOC FINAL with new Themes'!A:M,11,0)","v":0},{"$f":"VLOOKUP(B70,'LOC FINAL with new Themes'!A:M,12,0)","v":0},{"$f":"VLOOKUP(B70,'LOC FINAL with new Themes'!A:M,13,0)","v":0}]
[null,"Secondary School District (Census 2000)","Secondary School District (Census 2000)","Secondary School District (Census 2000)","Cultural & Demographic Statistics ","DOC-Census","Jennifer Holland","Jennifer.L.Holland@census.gov",null,{"$f":"VLOOKUP(B71,'LOC FINAL with new Themes'!A:M,7,0)","v":0},{"$f":"VLOOKUP(B71,'LOC FINAL with new Themes'!A:M,8,0)","v":0},{"$f":"VLOOKUP(B71,'LOC FINAL with new Themes'!A:M,9,0)","v":0},{"$f":"VLOOKUP(B71,'LOC FINAL with new Themes'!A:M,10,0)","v":0},{"$f":"VLOOKUP(B71,'LOC FINAL with new Themes'!A:M,11,0)","v":0},{"$f":"VLOOKUP(B71,'LOC FINAL with new Themes'!A:M,12,0)","v":0},{"$f":"VLOOKUP(B71,'LOC FINAL with new Themes'!A:M,13,0)","v":0}]
["State (+ Territories) Boundaries","State (+ Territories) Boundaries",null,"State (+ Territories) Boundaries","Cultural & Demographic Statistics ","DOC-Census","Randy Fusaro","randy.j.fusaro@census.gov",null,{"$f":"VLOOKUP(B72,'LOC FINAL with new Themes'!A:M,7,0)","v":0},{"$f":"VLOOKUP(B72,'LOC FINAL with new Themes'!A:M,8,0)","v":0},{"$f":"VLOOKUP(B72,'LOC FINAL with new Themes'!A:M,9,0)","v":0},{"$f":"VLOOKUP(B72,'LOC FINAL with new Themes'!A:M,10,0)","v":0},{"$f":"VLOOKUP(B72,'LOC FINAL with new Themes'!A:M,11,0)","v":0},{"$f":"VLOOKUP(B72,'LOC FINAL with new Themes'!A:M,12,0)","v":0},{"$f":"VLOOKUP(B72,'LOC FINAL with new Themes'!A:M,13,0)","v":0}]
["Statistical Area Boundaries (tracts, blocks, UAs, CDPs, etc)","Statistical Area Boundaries (tracts, blocks, UAs, CDPs, etc)",null,"Statistical Area Boundaries (tracts, blocks, UAs, CDPs, etc)","Cultural & Demographic Statistics ","DOC-Census","Randy Fusaro","randy.j.fusaro@census.gov",null,{"$f":"VLOOKUP(B73,'LOC FINAL with new Themes'!A:M,7,0)","v":0},{"$f":"VLOOKUP(B73,'LOC FINAL with new Themes'!A:M,8,0)","v":0},{"$f":"VLOOKUP(B73,'LOC FINAL with new Themes'!A:M,9,0)","v":0},{"$f":"VLOOKUP(B73,'LOC FINAL with new Themes'!A:M,10,0)","v":0},{"$f":"VLOOKUP(B73,'LOC FINAL with new Themes'!A:M,11,0)","v":0},{"$f":"VLOOKUP(B73,'LOC FINAL with new Themes'!A:M,12,0)","v":0},{"$f":"VLOOKUP(B73,'LOC FINAL with new Themes'!A:M,13,0)","v":0}]
[null,"Super Public Use Microdata Area (Census 2000)","Super Public Use Microdata Area (Census 2000)","Super Public Use Microdata Area (Census 2000)","Cultural & Demographic Statistics ","DOC-Census","Jennifer Holland","Jennifer.L.Holland@census.gov",null,{"$f":"VLOOKUP(B74,'LOC FINAL with new Themes'!A:M,7,0)","v":0},{"$f":"VLOOKUP(B74,'LOC FINAL with new Themes'!A:M,8,0)","v":0},{"$f":"VLOOKUP(B74,'LOC FINAL with new Themes'!A:M,9,0)","v":0},{"$f":"VLOOKUP(B74,'LOC FINAL with new Themes'!A:M,10,0)","v":0},{"$f":"VLOOKUP(B74,'LOC FINAL with new Themes'!A:M,11,0)","v":0},{"$f":"VLOOKUP(B74,'LOC FINAL with new Themes'!A:M,12,0)","v":0},{"$f":"VLOOKUP(B74,'LOC FINAL with new Themes'!A:M,13,0)","v":0}]
["TIGER* (many statistical boundaries)","TIGER (many statistical boundaries)",null,"TIGER (many statistical boundaries)","Cultural & Demographic Statistics ","DOC-Census","Randy Fusaro","randy.j.fusaro@census.gov",null,{"$f":"VLOOKUP(B75,'LOC FINAL with new Themes'!A:M,7,0)","v":0},{"$f":"VLOOKUP(B75,'LOC FINAL with new Themes'!A:M,8,0)","v":0},{"$f":"VLOOKUP(B75,'LOC FINAL with new Themes'!A:M,9,0)","v":0},{"$f":"VLOOKUP(B75,'LOC FINAL with new Themes'!A:M,10,0)","v":0},{"$f":"VLOOKUP(B75,'LOC FINAL with new Themes'!A:M,11,0)","v":0},{"$f":"VLOOKUP(B75,'LOC FINAL with new Themes'!A:M,12,0)","v":0},{"$f":"VLOOKUP(B75,'LOC FINAL with new Themes'!A:M,13,0)","v":0}]
[null,"Topological Faces (2010 Census)","Topological Faces (2010 Census)","Topological Faces (2010 Census)","Cultural & Demographic Statistics ","DOC-Census","Jennifer Holland","Jennifer.L.Holland@census.gov",null,{"$f":"VLOOKUP(B76,'LOC FINAL with new Themes'!A:M,7,0)","v":0},{"$f":"VLOOKUP(B76,'LOC FINAL with new Themes'!A:M,8,0)","v":0},{"$f":"VLOOKUP(B76,'LOC FINAL with new Themes'!A:M,9,0)","v":0},{"$f":"VLOOKUP(B76,'LOC FINAL with new Themes'!A:M,10,0)","v":0},{"$f":"VLOOKUP(B76,'LOC FINAL with new Themes'!A:M,11,0)","v":0},{"$f":"VLOOKUP(B76,'LOC FINAL with new Themes'!A:M,12,0)","v":0},{"$f":"VLOOKUP(B76,'LOC FINAL with new Themes'!A:M,13,0)","v":0}]
[null,"Unified School District (2010 Census)","Unified School District (2010 Census)","Unified School District (2010 Census)","Cultural & Demographic Statistics ","DOC-Census","Jennifer Holland","Jennifer.L.Holland@census.gov",null,{"$f":"VLOOKUP(B77,'LOC FINAL with new Themes'!A:M,7,0)","v":0},{"$f":"VLOOKUP(B77,'LOC FINAL with new Themes'!A:M,8,0)","v":0},{"$f":"VLOOKUP(B77,'LOC FINAL with new Themes'!A:M,9,0)","v":0},{"$f":"VLOOKUP(B77,'LOC FINAL with new Themes'!A:M,10,0)","v":0},{"$f":"VLOOKUP(B77,'LOC FINAL with new Themes'!A:M,11,0)","v":0},{"$f":"VLOOKUP(B77,'LOC FINAL with new Themes'!A:M,12,0)","v":0},{"$f":"VLOOKUP(B77,'LOC FINAL with new Themes'!A:M,13,0)","v":0}]
[null,"Unified School District (Census 2000)","Unified School District (Census 2000)","Unified School District (Census 2000)","Cultural & Demographic Statistics ","DOC-Census","Jennifer Holland","Jennifer.L.Holland@census.gov",null,{"$f":"VLOOKUP(B78,'LOC FINAL with new Themes'!A:M,7,0)","v":0},{"$f":"VLOOKUP(B78,'LOC FINAL with new Themes'!A:M,8,0)","v":0},{"$f":"VLOOKUP(B78,'LOC FINAL with new Themes'!A:M,9,0)","v":0},{"$f":"VLOOKUP(B78,'LOC FINAL with new Themes'!A:M,10,0)","v":0},{"$f":"VLOOKUP(B78,'LOC FINAL with new Themes'!A:M,11,0)","v":0},{"$f":"VLOOKUP(B78,'LOC FINAL with new Themes'!A:M,12,0)","v":0},{"$f":"VLOOKUP(B78,'LOC FINAL with new Themes'!A:M,13,0)","v":0}]
[null,"Urban Growth Area (2010 Census)","Urban Growth Area (2010 Census)","Urban Growth Area (2010 Census)","Cultural & Demographic Statistics ","DOC-Census","Jennifer Holland","Jennifer.L.Holland@census.gov",null,{"$f":"VLOOKUP(B79,'LOC FINAL with new Themes'!A:M,7,0)","v":0},{"$f":"VLOOKUP(B79,'LOC FINAL with new Themes'!A:M,8,0)","v":0},{"$f":"VLOOKUP(B79,'LOC FINAL with new Themes'!A:M,9,0)","v":0},{"$f":"VLOOKUP(B79,'LOC FINAL with new Themes'!A:M,10,0)","v":0},{"$f":"VLOOKUP(B79,'LOC FINAL with new Themes'!A:M,11,0)","v":0},{"$f":"VLOOKUP(B79,'LOC FINAL with new Themes'!A:M,12,0)","v":0},{"$f":"VLOOKUP(B79,'LOC FINAL with new Themes'!A:M,13,0)","v":0}]
[null,"Urban Growth Area (Census 2000)","Urban Growth Area (Census 2000)","Urban Growth Area (Census 2000)","Cultural & Demographic Statistics ","DOC-Census","Jennifer Holland","Jennifer.L.Holland@census.gov",null,{"$f":"VLOOKUP(B80,'LOC FINAL with new Themes'!A:M,7,0)","v":0},{"$f":"VLOOKUP(B80,'LOC FINAL with new Themes'!A:M,8,0)","v":0},{"$f":"VLOOKUP(B80,'LOC FINAL with new Themes'!A:M,9,0)","v":0},{"$f":"VLOOKUP(B80,'LOC FINAL with new Themes'!A:M,10,0)","v":0},{"$f":"VLOOKUP(B80,'LOC FINAL with new Themes'!A:M,11,0)","v":0},{"$f":"VLOOKUP(B80,'LOC FINAL with new Themes'!A:M,12,0)","v":0},{"$f":"VLOOKUP(B80,'LOC FINAL with new Themes'!A:M,13,0)","v":0}]
[null,"Voting District (2010 Census)","Voting District (2010 Census)","Voting District (2010 Census)","Cultural & Demographic Statistics ","DOC-Census","Jennifer Holland","Jennifer.L.Holland@census.gov",null,{"$f":"VLOOKUP(B81,'LOC FINAL with new Themes'!A:M,7,0)","v":0},{"$f":"VLOOKUP(B81,'LOC FINAL with new Themes'!A:M,8,0)","v":0},{"$f":"VLOOKUP(B81,'LOC FINAL with new Themes'!A:M,9,0)","v":0},{"$f":"VLOOKUP(B81,'LOC FINAL with new Themes'!A:M,10,0)","v":0},{"$f":"VLOOKUP(B81,'LOC FINAL with new Themes'!A:M,11,0)","v":0},{"$f":"VLOOKUP(B81,'LOC FINAL with new Themes'!A:M,12,0)","v":0},{"$f":"VLOOKUP(B81,'LOC FINAL with new Themes'!A:M,13,0)","v":0}]
[null,"Voting District (Census 2000)","Voting District (Census 2000)","Voting District (Census 2000)","Cultural & Demographic Statistics ","DOC-Census","Jennifer Holland","Jennifer.L.Holland@census.gov",null,{"$f":"VLOOKUP(B82,'LOC FINAL with new Themes'!A:M,7,0)","v":0},{"$f":"VLOOKUP(B82,'LOC FINAL with new Themes'!A:M,8,0)","v":0},{"$f":"VLOOKUP(B82,'LOC FINAL with new Themes'!A:M,9,0)","v":0},{"$f":"VLOOKUP(B82,'LOC FINAL with new Themes'!A:M,10,0)","v":0},{"$f":"VLOOKUP(B82,'LOC FINAL with new Themes'!A:M,11,0)","v":0},{"$f":"VLOOKUP(B82,'LOC FINAL with new Themes'!A:M,12,0)","v":0},{"$f":"VLOOKUP(B82,'LOC FINAL with new Themes'!A:M,13,0)","v":0}]
["Voting District Boundaries","Voting District Boundaries",null,"Voting District Boundaries","Cultural & Demographic Statistics ","DOC-Census","Randy Fusaro","randy.j.fusaro@census.gov",null,{"$f":"VLOOKUP(B83,'LOC FINAL with new Themes'!A:M,7,0)","v":0},{"$f":"VLOOKUP(B83,'LOC FINAL with new Themes'!A:M,8,0)","v":0},{"$f":"VLOOKUP(B83,'LOC FINAL with new Themes'!A:M,9,0)","v":0},{"$f":"VLOOKUP(B83,'LOC FINAL with new Themes'!A:M,10,0)","v":0},{"$f":"VLOOKUP(B83,'LOC FINAL with new Themes'!A:M,11,0)","v":0},{"$f":"VLOOKUP(B83,'LOC FINAL with new Themes'!A:M,12,0)","v":0},{"$f":"VLOOKUP(B83,'LOC FINAL with new Themes'!A:M,13,0)","v":0}]
[null,null,null,{"$f":"SUBTOTAL(3,D43:D83)","v":41},"Cultural & Demographic Statistics  Count"]
["Cultural Landscape Boundaries","Cultural Landscape Boundaries","Cultural Landscape Boundaries",{"$f":"IF(C85=0,B85,C85)","v":"Cultural Landscape Boundaries"},"Cultural & Demographic Statistics \nCultural Resources","DOI-NPS","John Knoerl","john_knoerl@nps.gov",null,{"$f":"VLOOKUP(B85,'LOC FINAL with new Themes'!A:M,7,0)","v":"Feature classes of the cultural resource data model (NPS only, other federal agencies handle it as they decide)"},{"$f":"VLOOKUP(B85,'LOC FINAL with new Themes'!A:M,8,0)","v":"don't want a single centralized data set but focusing on standard approach"},{"$f":"VLOOKUP(B85,'LOC FINAL with new Themes'!A:M,9,0)","v":0},{"$f":"VLOOKUP(B85,'LOC FINAL with new Themes'!A:M,10,0)","v":0},{"$f":"VLOOKUP(B85,'LOC FINAL with new Themes'!A:M,11,0)","v":0},{"$f":"VLOOKUP(B85,'LOC FINAL with new Themes'!A:M,12,0)","v":0},{"$f":"VLOOKUP(B85,'LOC FINAL with new Themes'!A:M,13,0)","v":0}]
["Cultural Resource Survey Boundaries","Cultural Resource Survey Boundaries","Cultural Resource Survey Boundaries","Cultural Resource Survey Boundaries","Cultural & Demographic Statistics \nCultural Resources","DOI-NPS","John Knoerl","john_knoerl@nps.gov",null,{"$f":"VLOOKUP(B86,'LOC FINAL with new Themes'!A:M,7,0)","v":"Feature classes of the cultural resource data model (NPS only, other federal agencies handle it as they decide)"},{"$f":"VLOOKUP(B86,'LOC FINAL with new Themes'!A:M,8,0)","v":"don't want a single centralized data set but focusing on standard approach"},{"$f":"VLOOKUP(B86,'LOC FINAL with new Themes'!A:M,9,0)","v":0},{"$f":"VLOOKUP(B86,'LOC FINAL with new Themes'!A:M,10,0)","v":0},{"$f":"VLOOKUP(B86,'LOC FINAL with new Themes'!A:M,11,0)","v":0},{"$f":"VLOOKUP(B86,'LOC FINAL with new Themes'!A:M,12,0)","v":0},{"$f":"VLOOKUP(B86,'LOC FINAL with new Themes'!A:M,13,0)","v":0}]
["Ethnographic Resource Boundaries","Ethnographic Resource Boundaries","Ethnographic Resource Boundaries","Ethnographic Resource Boundaries","Cultural & Demographic Statistics \nCultural Resources","DOI-NPS","John Knoerl","john_knoerl@nps.gov",null,{"$f":"VLOOKUP(B87,'LOC FINAL with new Themes'!A:M,7,0)","v":"Feature classes of the cultural resource data model (NPS only, other federal agencies handle it as they decide)"},{"$f":"VLOOKUP(B87,'LOC FINAL with new Themes'!A:M,8,0)","v":"don't want a single centralized data set but focusing on standard approach"},{"$f":"VLOOKUP(B87,'LOC FINAL with new Themes'!A:M,9,0)","v":0},{"$f":"VLOOKUP(B87,'LOC FINAL with new Themes'!A:M,10,0)","v":0},{"$f":"VLOOKUP(B87,'LOC FINAL with new Themes'!A:M,11,0)","v":0},{"$f":"VLOOKUP(B87,'LOC FINAL with new Themes'!A:M,12,0)","v":0},{"$f":"VLOOKUP(B87,'LOC FINAL with new Themes'!A:M,13,0)","v":0}]
["Historic Buildings Boundaries","Historic Buildings Boundaries","Historic Buildings Boundaries","Historic Buildings Boundaries","Cultural & Demographic Statistics \nCultural Resources","DOI-NPS","John Knoerl","john_knoerl@nps.gov",null,{"$f":"VLOOKUP(B88,'LOC FINAL with new Themes'!A:M,7,0)","v":"Feature classes of the cultural resource data model (NPS only, other federal agencies handle it as they decide)"},{"$f":"VLOOKUP(B88,'LOC FINAL with new Themes'!A:M,8,0)","v":"don't want a single centralized data set but focusing on standard approach"},{"$f":"VLOOKUP(B88,'LOC FINAL with new Themes'!A:M,9,0)","v":0},{"$f":"VLOOKUP(B88,'LOC FINAL with new Themes'!A:M,10,0)","v":0},{"$f":"VLOOKUP(B88,'LOC FINAL with new Themes'!A:M,11,0)","v":0},{"$f":"VLOOKUP(B88,'LOC FINAL with new Themes'!A:M,12,0)","v":0},{"$f":"VLOOKUP(B88,'LOC FINAL with new Themes'!A:M,13,0)","v":0}]
["Historic Districts Boundaries","Historic Districts Boundaries","Historic Districts Boundaries","Historic Districts Boundaries","Cultural & Demographic Statistics \nCultural Resources","DOI-NPS","John Knoerl","john_knoerl@nps.gov",null,{"$f":"VLOOKUP(B89,'LOC FINAL with new Themes'!A:M,7,0)","v":"Feature classes of the cultural resource data model (NPS only, other federal agencies handle it as they decide)"},{"$f":"VLOOKUP(B89,'LOC FINAL with new Themes'!A:M,8,0)","v":"don't want a single centralized data set but focusing on standard approach"},{"$f":"VLOOKUP(B89,'LOC FINAL with new Themes'!A:M,9,0)","v":0},{"$f":"VLOOKUP(B89,'LOC FINAL with new Themes'!A:M,10,0)","v":0},{"$f":"VLOOKUP(B89,'LOC FINAL with new Themes'!A:M,11,0)","v":0},{"$f":"VLOOKUP(B89,'LOC FINAL with new Themes'!A:M,12,0)","v":0},{"$f":"VLOOKUP(B89,'LOC FINAL with new Themes'!A:M,13,0)","v":0}]
["Historic Objects Boundaries","Historic Objects Boundaries","Historic Objects Boundaries","Historic Objects Boundaries","Cultural & Demographic Statistics \nCultural Resources","DOI-NPS","John Knoerl","john_knoerl@nps.gov",null,{"$f":"VLOOKUP(B90,'LOC FINAL with new Themes'!A:M,7,0)","v":"Feature classes of the cultural resource data model (NPS only, other federal agencies handle it as they decide)"},{"$f":"VLOOKUP(B90,'LOC FINAL with new Themes'!A:M,8,0)","v":"don't want a single centralized data set but focusing on standard approach"},{"$f":"VLOOKUP(B90,'LOC FINAL with new Themes'!A:M,9,0)","v":0},{"$f":"VLOOKUP(B90,'LOC FINAL with new Themes'!A:M,10,0)","v":0},{"$f":"VLOOKUP(B90,'LOC FINAL with new Themes'!A:M,11,0)","v":0},{"$f":"VLOOKUP(B90,'LOC FINAL with new Themes'!A:M,12,0)","v":0},{"$f":"VLOOKUP(B90,'LOC FINAL with new Themes'!A:M,13,0)","v":0}]
["Historic Structures Boundaries","Historic Structures Boundaries","Historic Structures Boundaries","Historic Structures Boundaries","Cultural & Demographic Statistics \nCultural Resources","DOI-NPS","John Knoerl","john_knoerl@nps.gov",null,{"$f":"VLOOKUP(B91,'LOC FINAL with new Themes'!A:M,7,0)","v":"Feature classes of the cultural resource data model (NPS only, other federal agencies handle it as they decide)"},{"$f":"VLOOKUP(B91,'LOC FINAL with new Themes'!A:M,8,0)","v":"don't want a single centralized data set but focusing on standard approach"},{"$f":"VLOOKUP(B91,'LOC FINAL with new Themes'!A:M,9,0)","v":0},{"$f":"VLOOKUP(B91,'LOC FINAL with new Themes'!A:M,10,0)","v":0},{"$f":"VLOOKUP(B91,'LOC FINAL with new Themes'!A:M,11,0)","v":0},{"$f":"VLOOKUP(B91,'LOC FINAL with new Themes'!A:M,12,0)","v":0},{"$f":"VLOOKUP(B91,'LOC FINAL with new Themes'!A:M,13,0)","v":"M "}]
[null,null,"Other Cultural Resource Boundaries","Other Cultural Resource Boundaries","Cultural & Demographic Statistics \nCultural Resources","DOI-NPS"]
[null,null,null,{"$f":"SUBTOTAL(3,D85:D92)","v":8},"Cultural & Demographic Statistics \nCultural Resources Count"]
[null,"Point Landmark (2010 Census)","Point of Landmark (2010 Census)",{"$f":"IF(C94=0,B94,C94)","v":"Point of Landmark (2010 Census)"},"Cultural Resources","DOC-Census","Jennifer Holland","Jennifer.L.Holland@census.gov",null,{"$f":"VLOOKUP(B94,'LOC FINAL with new Themes'!A:M,7,0)","v":0},{"$f":"VLOOKUP(B94,'LOC FINAL with new Themes'!A:M,8,0)","v":0},{"$f":"VLOOKUP(B94,'LOC FINAL with new Themes'!A:M,9,0)","v":0},{"$f":"VLOOKUP(B94,'LOC FINAL with new Themes'!A:M,10,0)","v":0},{"$f":"VLOOKUP(B94,'LOC FINAL with new Themes'!A:M,11,0)","v":0},{"$f":"VLOOKUP(B94,'LOC FINAL with new Themes'!A:M,12,0)","v":0},{"$f":"VLOOKUP(B94,'LOC FINAL with new Themes'!A:M,13,0)","v":0}]
["Archeological Sites","Archeological Sites","Archeological Sites","Archeological Sites","Cultural Resources ","DOI-NPS","John Knoerl","john_knoerl@nps.gov",null,{"$f":"VLOOKUP(B95,'LOC FINAL with new Themes'!A:M,7,0)","v":"Feature classes of the cultural resource data model (NPS only, other federal agencies handle it as they decide)"},{"$f":"VLOOKUP(B95,'LOC FINAL with new Themes'!A:M,8,0)","v":"don't want a single centralized data set but focusing on standard approach"},{"$f":"VLOOKUP(B95,'LOC FINAL with new Themes'!A:M,9,0)","v":"National Historic Presrevation Act says state historic preservation office has primary oversight (section 110)"},{"$f":"VLOOKUP(B95,'LOC FINAL with new Themes'!A:M,10,0)","v":0},{"$f":"VLOOKUP(B95,'LOC FINAL with new Themes'!A:M,11,0)","v":0},{"$f":"VLOOKUP(B95,'LOC FINAL with new Themes'!A:M,12,0)","v":0},{"$f":"VLOOKUP(B95,'LOC FINAL with new Themes'!A:M,13,0)","v":0}]
[null,"Area Landmark (2010 Census)","Area Landmark (2010 Census)","Area Landmark (2010 Census)","Cultural Resources ","DOC-Census","Jennifer Holland","Jennifer.L.Holland@census.gov",null,{"$f":"VLOOKUP(B96,'LOC FINAL with new Themes'!A:M,7,0)","v":0},{"$f":"VLOOKUP(B96,'LOC FINAL with new Themes'!A:M,8,0)","v":0},{"$f":"VLOOKUP(B96,'LOC FINAL with new Themes'!A:M,9,0)","v":0},{"$f":"VLOOKUP(B96,'LOC FINAL with new Themes'!A:M,10,0)","v":0},{"$f":"VLOOKUP(B96,'LOC FINAL with new Themes'!A:M,11,0)","v":0},{"$f":"VLOOKUP(B96,'LOC FINAL with new Themes'!A:M,12,0)","v":0},{"$f":"VLOOKUP(B96,'LOC FINAL with new Themes'!A:M,13,0)","v":0}]
[null,null,"Geographic Names Dataset - National Map","Geographic Names Dataset - National Map","Cultural Resources ","DOI-USGS"]
["National Map - Geographic Names Information System (GNIS)","National Map - Geographic Names Information System (GNIS)",null,"National Map - Geographic Names Information System (GNIS)","Cultural Resources ","DOI-USGS","Lou Yost","lyost@usgs.gov",null,{"$f":"VLOOKUP(B98,'LOC FINAL with new Themes'!A:M,7,0)","v":"single data set; poc, data managers; daily updated; Denver systems people backup and archive; transfer to NARA also; Gaz vector (internal)"},{"$f":"VLOOKUP(B98,'LOC FINAL with new Themes'!A:M,8,0)","v":0},{"$f":"VLOOKUP(B98,'LOC FINAL with new Themes'!A:M,9,0)","v":0},{"$f":"VLOOKUP(B98,'LOC FINAL with new Themes'!A:M,10,0)","v":0},{"$f":"VLOOKUP(B98,'LOC FINAL with new Themes'!A:M,11,0)","v":0},{"$f":"VLOOKUP(B98,'LOC FINAL with new Themes'!A:M,12,0)","v":0},{"$f":"VLOOKUP(B98,'LOC FINAL with new Themes'!A:M,13,0)","v":"S"}]
[null,"Topological Faces-Area Landmark Relationship File","Topological Faces-Area Landmark Relationship File","Topological Faces-Area Landmark Relationship File","Cultural Resources ","DOC-Census","Jennifer Holland","Jennifer.L.Holland@census.gov",null,{"$f":"VLOOKUP(B99,'LOC FINAL with new Themes'!A:M,7,0)","v":0},{"$f":"VLOOKUP(B99,'LOC FINAL with new Themes'!A:M,8,0)","v":0},{"$f":"VLOOKUP(B99,'LOC FINAL with new Themes'!A:M,9,0)","v":0},{"$f":"VLOOKUP(B99,'LOC FINAL with new Themes'!A:M,10,0)","v":0},{"$f":"VLOOKUP(B99,'LOC FINAL with new Themes'!A:M,11,0)","v":0},{"$f":"VLOOKUP(B99,'LOC FINAL with new Themes'!A:M,12,0)","v":0},{"$f":"VLOOKUP(B99,'LOC FINAL with new Themes'!A:M,13,0)","v":0}]
[null,null,null,{"$f":"SUBTOTAL(3,D94:D99)","v":6},"Cultural Resources Count"]
["133 UA Elevation Data (lidar)","133 UA Elevation Data (lidar)",null,{"$f":"IF(C101=0,B101,C101)","v":"133 UA Elevation Data (lidar)"},"Elevation","DOD-NGA","Ron Power, NGA","ronald.k.power@nga.mil",null,{"$f":"VLOOKUP(B101,'LOC FINAL with new Themes'!A:M,7,0)","v":0},{"$f":"VLOOKUP(B101,'LOC FINAL with new Themes'!A:M,8,0)","v":0},{"$f":"VLOOKUP(B101,'LOC FINAL with new Themes'!A:M,9,0)","v":0},{"$f":"VLOOKUP(B101,'LOC FINAL with new Themes'!A:M,10,0)","v":0},{"$f":"VLOOKUP(B101,'LOC FINAL with new Themes'!A:M,11,0)","v":0},{"$f":"VLOOKUP(B101,'LOC FINAL with new Themes'!A:M,12,0)","v":0},{"$f":"VLOOKUP(B101,'LOC FINAL with new Themes'!A:M,13,0)","v":0}]
["DEMs - Archive","DEMs - Archive",null,"DEMs - Archive","Elevation","DOI-USGS","Gayla Evans","gevans@usgs.gov",null,{"$f":"VLOOKUP(B102,'LOC FINAL with new Themes'!A:M,7,0)","v":"DEMS update at variable nature; are four data sets based on resolution; this is the POC and data manager; this is the name and maintain three complete with two physically separate on-site and one off-site"},{"$f":"VLOOKUP(B102,'LOC FINAL with new Themes'!A:M,8,0)","v":0},{"$f":"VLOOKUP(B102,'LOC FINAL with new Themes'!A:M,9,0)","v":0},{"$f":"VLOOKUP(B102,'LOC FINAL with new Themes'!A:M,10,0)","v":0},{"$f":"VLOOKUP(B102,'LOC FINAL with new Themes'!A:M,11,0)","v":0},{"$f":"VLOOKUP(B102,'LOC FINAL with new Themes'!A:M,12,0)","v":0},{"$f":"VLOOKUP(B102,'LOC FINAL with new Themes'!A:M,13,0)","v":"S"}]
["GTOPO30","GTOPO30",null,"GTOPO30","Elevation","DOI-USGS","Jeff Danielson"," daniels@usgs.gov",null,{"$f":"VLOOKUP(B103,'LOC FINAL with new Themes'!A:M,7,0)","v":"GTOPO30 is static; one data set; this is the POC and data manager; this is the name and maintain three complete with two physically separate on-site and one off-site"},{"$f":"VLOOKUP(B103,'LOC FINAL with new Themes'!A:M,8,0)","v":0},{"$f":"VLOOKUP(B103,'LOC FINAL with new Themes'!A:M,9,0)","v":0},{"$f":"VLOOKUP(B103,'LOC FINAL with new Themes'!A:M,10,0)","v":0},{"$f":"VLOOKUP(B103,'LOC FINAL with new Themes'!A:M,11,0)","v":0},{"$f":"VLOOKUP(B103,'LOC FINAL with new Themes'!A:M,12,0)","v":0},{"$f":"VLOOKUP(B103,'LOC FINAL with new Themes'!A:M,13,0)","v":0}]
["National Map National Elevation Data Set (NED)","National Map  - National Elevation Dataset (NED)",null,"National Map  - National Elevation Dataset (NED)","Elevation","DOI-USGS","Jim Mauck","lyost@usgs.gov",null,{"$f":"VLOOKUP(B104,'LOC FINAL with new Themes'!A:M,7,0)","v":0},{"$f":"VLOOKUP(B104,'LOC FINAL with new Themes'!A:M,8,0)","v":0},{"$f":"VLOOKUP(B104,'LOC FINAL with new Themes'!A:M,9,0)","v":0},{"$f":"VLOOKUP(B104,'LOC FINAL with new Themes'!A:M,10,0)","v":0},{"$f":"VLOOKUP(B104,'LOC FINAL with new Themes'!A:M,11,0)","v":0},{"$f":"VLOOKUP(B104,'LOC FINAL with new Themes'!A:M,12,0)","v":0},{"$f":"VLOOKUP(B104,'LOC FINAL with new Themes'!A:M,13,0)","v":0}]
["SRTM (3-arc second DTEDS)","SRTM (3-arc second DTEDS)",null,"SRTM (3-arc second DTEDS)","Elevation","DOI-USGS","Dean Gesch, USGS","gesch@usgs.gov",null,{"$f":"VLOOKUP(B105,'LOC FINAL with new Themes'!A:M,7,0)","v":"SRTM is static; one data set; this is the POC and data manager; this is the name and maintain three complete with two physically separate on-site and one off-site"},{"$f":"VLOOKUP(B105,'LOC FINAL with new Themes'!A:M,8,0)","v":0},{"$f":"VLOOKUP(B105,'LOC FINAL with new Themes'!A:M,9,0)","v":0},{"$f":"VLOOKUP(B105,'LOC FINAL with new Themes'!A:M,10,0)","v":0},{"$f":"VLOOKUP(B105,'LOC FINAL with new Themes'!A:M,11,0)","v":0},{"$f":"VLOOKUP(B105,'LOC FINAL with new Themes'!A:M,12,0)","v":0},{"$f":"VLOOKUP(B105,'LOC FINAL with new Themes'!A:M,13,0)","v":"S"}]
["Digital Flood Insurance Rate Maps (D-FIRM)","Digital Flood Insurance Rate Maps (D-FIRM)","Digital Flood Insurance Rate Maps (DFIRM)","Digital Flood Insurance Rate Maps (DFIRM)","Elevation ","DHS-FEMA","Scott McAfee","scott.mcaffee@dhs.gov",null,{"$f":"VLOOKUP(B106,'LOC FINAL with new Themes'!A:M,7,0)","v":0},{"$f":"VLOOKUP(B106,'LOC FINAL with new Themes'!A:M,8,0)","v":0},{"$f":"VLOOKUP(B106,'LOC FINAL with new Themes'!A:M,9,0)","v":0},{"$f":"VLOOKUP(B106,'LOC FINAL with new Themes'!A:M,10,0)","v":0},{"$f":"VLOOKUP(B106,'LOC FINAL with new Themes'!A:M,11,0)","v":0},{"$f":"VLOOKUP(B106,'LOC FINAL with new Themes'!A:M,12,0)","v":0},{"$f":"VLOOKUP(B106,'LOC FINAL with new Themes'!A:M,13,0)","v":0}]
[null,null,"Elevation Bathymetric - Ocean, Coastal, and Great Lakes Bathymetry ","Elevation Bathymetric - Ocean, Coastal, and Great Lakes Bathymetry ","Elevation ","DOC-NOAA"]
[null,null,"National Elevation Dataset  - National Map","National Elevation Dataset  - National Map","Elevation ","DOI-USGS"]
["National Flood Hazard Layer (NFHL)","National Flood Hazard Layer (NFHL)","National Flood Hazard Layer (NFHL)","National Flood Hazard Layer (NFHL)","Elevation ","DHS-FEMA","Scott McAfee","scott.mcaffee@dhs.gov",null,{"$f":"VLOOKUP(B109,'LOC FINAL with new Themes'!A:M,7,0)","v":0},{"$f":"VLOOKUP(B109,'LOC FINAL with new Themes'!A:M,8,0)","v":0},{"$f":"VLOOKUP(B109,'LOC FINAL with new Themes'!A:M,9,0)","v":0},{"$f":"VLOOKUP(B109,'LOC FINAL with new Themes'!A:M,10,0)","v":0},{"$f":"VLOOKUP(B109,'LOC FINAL with new Themes'!A:M,11,0)","v":0},{"$f":"VLOOKUP(B109,'LOC FINAL with new Themes'!A:M,12,0)","v":0},{"$f":"VLOOKUP(B109,'LOC FINAL with new Themes'!A:M,13,0)","v":0}]
[null,null,null,{"$f":"SUBTOTAL(3,D101:D109)","v":9},"Elevation Count"]
[null,null,"Airborne Gravity",{"$f":"IF(C111=0,B111,C111)","v":"Airborne Gravity"},"Geodetic Control ","DOC-NOAA","Dr. Theresa Diehl","theresa.diehl@noaa.gov"]
[null,null,"Terrestrial Gravity",{"$f":"IF(C112=0,B112,C112)","v":"Terrestrial Gravity"},"Geodetic Control ","DOC-NOAA","Bill Waickman ","bill.waickman@noaa.gov"]
[null,null,"Continuously Operating Reference Stations (CORS)","Continuously Operating Reference Stations (CORS)","Geodetic Control ","DOC-NOAA","Dr. Giovanni Sella","giovanni.sella@noaa.gov"]
[null,null,"Geoid Models","Geoid Models","Geodetic Control ","DOC-NOAA","Dr. Dan Roman","dan.roman@noaa.gov"]
["National Geologic Data Base","National Geologic Data Base","National Geodetic Survey (NGS) Datasheets","National Geodetic Survey (NGS) Datasheets","Geodetic Control ","DOC-NOAA","Jim Tomlin","jim.tomlin@noaa.gov",null,{"$f":"VLOOKUP(B115,'LOC FINAL with new Themes'!A:M,7,0)","v":0},{"$f":"VLOOKUP(B115,'LOC FINAL with new Themes'!A:M,8,0)","v":0},{"$f":"VLOOKUP(B115,'LOC FINAL with new Themes'!A:M,9,0)","v":0},{"$f":"VLOOKUP(B115,'LOC FINAL with new Themes'!A:M,10,0)","v":0},{"$f":"VLOOKUP(B115,'LOC FINAL with new Themes'!A:M,11,0)","v":0},{"$f":"VLOOKUP(B115,'LOC FINAL with new Themes'!A:M,12,0)","v":0},{"$f":"VLOOKUP(B115,'LOC FINAL with new Themes'!A:M,13,0)","v":0}]
[null,null,"Precise Global Navigation Satellite System (GNSS) Orbits",{"$f":"IF(C116=0,#REF!,C116)","v":"Precise Global Navigation Satellite System (GNSS) Orbits"},"Geodetic Control ","DOC-NOAA","Dr. Jake Griffiths","jake.griffiths@noaa.gov"]
[null,null,null,{"$f":"SUBTOTAL(3,D111:D116)","v":6},"Geodetic Control  Count"]
[null,null,"Coal assessment and mapping",{"$f":"IF(C118=0,B118,C118)","v":"Coal assessment and mapping"},"Geology","DOI-USGS"]
["Coastline Data","Coastline Data","Coastline Data","Coastline Data","Geology","DOI-BOEM","Doug Vandegraft","Doug.Vandegraft@boem.gov",null,{"$f":"VLOOKUP(B119,'LOC FINAL with new Themes'!A:M,7,0)","v":"undeliverable email- neeed to identify new contact"},{"$f":"VLOOKUP(B119,'LOC FINAL with new Themes'!A:M,8,0)","v":0},{"$f":"VLOOKUP(B119,'LOC FINAL with new Themes'!A:M,9,0)","v":0},{"$f":"VLOOKUP(B119,'LOC FINAL with new Themes'!A:M,10,0)","v":0},{"$f":"VLOOKUP(B119,'LOC FINAL with new Themes'!A:M,11,0)","v":0},{"$f":"VLOOKUP(B119,'LOC FINAL with new Themes'!A:M,12,0)","v":0},{"$f":"VLOOKUP(B119,'LOC FINAL with new Themes'!A:M,13,0)","v":0}]
[null,null,"Earthquake monitoring, research, and mapping","Earthquake monitoring, research, and mapping","Geology","DOI-USGS"]
[null,null,"Geochemistry","Geochemistry","Geology","DOI-USGS"]
[null,null,"Geochronology","Geochronology","Geology","DOI-USGS"]
[null,null,"Geologic mapping","Geologic mapping","Geology","DOI-USGS"]
[null,null,"Geomagnetism","Geomagnetism","Geology","DOI-USGS"]
[null,null,"Geophysics","Geophysics","Geology","DOI-USGS"]
[null,null,"Landslide monitoring, research, and mapping","Landslide monitoring, research, and mapping","Geology","DOI-USGS"]
[null,null,"Marine geology","Marine geology","Geology","DOI-USGS"]
[null,null,"Metallic mineral assessment and mapping","Metallic mineral assessment and mapping","Geology","DOI-USGS"]
[null,null,"BOEM Baseline","BOEM Baseline","Geology","DOI-BOEM","Doug Vandegraft","Doug.Vandegraft@boem.gov"]
[null,null,"Non-metallic mineral assessment and mapping, onshore",{"$f":"IF(C130=0,B129,C130)","v":"Non-metallic mineral assessment and mapping, onshore"},"Geology","DOI-USGS"]
[null,null,"Oil and gas assessment and mapping, onshore",{"$f":"IF(C131=0,B131,C131)","v":"Oil and gas assessment and mapping, onshore"},"Geology","DOI-USGS"]
[null,null,"Paleontology","Paleontology","Geology","DOI-USGS"]
[null,null,"Sand and Gravel","Sand and Gravel","Geology","DOI-BOEM","Doug Vandegraft","Doug.Vandegraft@boem.gov"]
[null,null,"Volcano monitoring, research, and mapping","Volcano monitoring, research, and mapping","Geology","DOI-USGS"]
[null,null,"Wells","Wells","Geology","DOI-BOEM","Doug Vandegraft","Doug.Vandegraft@boem.gov"]
[null,null,null,{"$f":"SUBTOTAL(3,D118:D135)","v":18},"Geology Count"]
["County Boundaries","County Boundaries",null,{"$f":"IF(C137=0,B137,C137)","v":"County Boundaries"},"Governmental Units",{"$nulls":4},{"$f":"VLOOKUP(B137,'LOC FINAL with new Themes'!A:M,7,0)","v":0},{"$f":"VLOOKUP(B137,'LOC FINAL with new Themes'!A:M,8,0)","v":0},{"$f":"VLOOKUP(B137,'LOC FINAL with new Themes'!A:M,9,0)","v":0},{"$f":"VLOOKUP(B137,'LOC FINAL with new Themes'!A:M,10,0)","v":0},{"$f":"VLOOKUP(B137,'LOC FINAL with new Themes'!A:M,11,0)","v":0},{"$f":"VLOOKUP(B137,'LOC FINAL with new Themes'!A:M,12,0)","v":0},{"$f":"VLOOKUP(B137,'LOC FINAL with new Themes'!A:M,13,0)","v":0}]
[null,"Place and MCD Boundaries",null,"Place and MCD Boundaries","Governmental Units",{"$nulls":4},{"$f":"VLOOKUP(B138,'LOC FINAL with new Themes'!A:M,7,0)","v":0},{"$f":"VLOOKUP(B138,'LOC FINAL with new Themes'!A:M,8,0)","v":0},{"$f":"VLOOKUP(B138,'LOC FINAL with new Themes'!A:M,9,0)","v":0},{"$f":"VLOOKUP(B138,'LOC FINAL with new Themes'!A:M,10,0)","v":0},{"$f":"VLOOKUP(B138,'LOC FINAL with new Themes'!A:M,11,0)","v":0},{"$f":"VLOOKUP(B138,'LOC FINAL with new Themes'!A:M,12,0)","v":0},{"$f":"VLOOKUP(B138,'LOC FINAL with new Themes'!A:M,13,0)","v":0}]
[null,"Alaska Native Regional Corporation (2010 Census)","Alaska Native Regional Corporation (2010 Census)","Alaska Native Regional Corporation (2010 Census)","Governmental Units ","DOC-Census","Jennifer Holland","Jennifer.L.Holland@census.gov",null,{"$f":"VLOOKUP(B139,'LOC FINAL with new Themes'!A:M,7,0)","v":0},{"$f":"VLOOKUP(B139,'LOC FINAL with new Themes'!A:M,8,0)","v":0},{"$f":"VLOOKUP(B139,'LOC FINAL with new Themes'!A:M,9,0)","v":0},{"$f":"VLOOKUP(B139,'LOC FINAL with new Themes'!A:M,10,0)","v":0},{"$f":"VLOOKUP(B139,'LOC FINAL with new Themes'!A:M,11,0)","v":0},{"$f":"VLOOKUP(B139,'LOC FINAL with new Themes'!A:M,12,0)","v":0},{"$f":"VLOOKUP(B139,'LOC FINAL with new Themes'!A:M,13,0)","v":0}]
[null,"Alaska Native Regional Corporation (Census 2000)","Alaska Native Regional Corporation (Census 2000)","Alaska Native Regional Corporation (Census 2000)","Governmental Units ","DOC-Census","Jennifer Holland","Jennifer.L.Holland@census.gov",null,{"$f":"VLOOKUP(B140,'LOC FINAL with new Themes'!A:M,7,0)","v":0},{"$f":"VLOOKUP(B140,'LOC FINAL with new Themes'!A:M,8,0)","v":0},{"$f":"VLOOKUP(B140,'LOC FINAL with new Themes'!A:M,9,0)","v":0},{"$f":"VLOOKUP(B140,'LOC FINAL with new Themes'!A:M,10,0)","v":0},{"$f":"VLOOKUP(B140,'LOC FINAL with new Themes'!A:M,11,0)","v":0},{"$f":"VLOOKUP(B140,'LOC FINAL with new Themes'!A:M,12,0)","v":0},{"$f":"VLOOKUP(B140,'LOC FINAL with new Themes'!A:M,13,0)","v":0}]
[null,"American Indian Tribal Subdivision (2010 Census)","American Indian Tribal Subdivision (2010 Census)","American Indian Tribal Subdivision (2010 Census)","Governmental Units ","DOC-Census","Jennifer Holland","Jennifer.L.Holland@census.gov",null,{"$f":"VLOOKUP(B141,'LOC FINAL with new Themes'!A:M,7,0)","v":0},{"$f":"VLOOKUP(B141,'LOC FINAL with new Themes'!A:M,8,0)","v":0},{"$f":"VLOOKUP(B141,'LOC FINAL with new Themes'!A:M,9,0)","v":0},{"$f":"VLOOKUP(B141,'LOC FINAL with new Themes'!A:M,10,0)","v":0},{"$f":"VLOOKUP(B141,'LOC FINAL with new Themes'!A:M,11,0)","v":0},{"$f":"VLOOKUP(B141,'LOC FINAL with new Themes'!A:M,12,0)","v":0},{"$f":"VLOOKUP(B141,'LOC FINAL with new Themes'!A:M,13,0)","v":0}]
[null,"American Indian Tribal Subdivision (Census 2000)","American Indian Tribal Subdivision (Census 2000)","American Indian Tribal Subdivision (Census 2000)","Governmental Units ","DOC-Census","Jennifer Holland","Jennifer.L.Holland@census.gov",null,{"$f":"VLOOKUP(B142,'LOC FINAL with new Themes'!A:M,7,0)","v":0},{"$f":"VLOOKUP(B142,'LOC FINAL with new Themes'!A:M,8,0)","v":0},{"$f":"VLOOKUP(B142,'LOC FINAL with new Themes'!A:M,9,0)","v":0},{"$f":"VLOOKUP(B142,'LOC FINAL with new Themes'!A:M,10,0)","v":0},{"$f":"VLOOKUP(B142,'LOC FINAL with new Themes'!A:M,11,0)","v":0},{"$f":"VLOOKUP(B142,'LOC FINAL with new Themes'!A:M,12,0)","v":0},{"$f":"VLOOKUP(B142,'LOC FINAL with new Themes'!A:M,13,0)","v":0}]
[null,"American Indian/Alaska Native/Native Hawaiian Area (2000 Census)","American Indian/Alaska Native/Native Hawaiian Area (2000 Census)","American Indian/Alaska Native/Native Hawaiian Area (2000 Census)","Governmental Units ","DOC-Census","Jennifer Holland","Jennifer.L.Holland@census.gov",null,{"$f":"VLOOKUP(B143,'LOC FINAL with new Themes'!A:M,7,0)","v":0},{"$f":"VLOOKUP(B143,'LOC FINAL with new Themes'!A:M,8,0)","v":0},{"$f":"VLOOKUP(B143,'LOC FINAL with new Themes'!A:M,9,0)","v":0},{"$f":"VLOOKUP(B143,'LOC FINAL with new Themes'!A:M,10,0)","v":0},{"$f":"VLOOKUP(B143,'LOC FINAL with new Themes'!A:M,11,0)","v":0},{"$f":"VLOOKUP(B143,'LOC FINAL with new Themes'!A:M,12,0)","v":0},{"$f":"VLOOKUP(B143,'LOC FINAL with new Themes'!A:M,13,0)","v":0}]
[null,"American Indian/Alaska Native/Native Hawaiian Area (2010 Census)","American Indian/Alaska Native/Native Hawaiian Area (2010 Census)","American Indian/Alaska Native/Native Hawaiian Area (2010 Census)","Governmental Units ","DOC-Census","Jennifer Holland","Jennifer.L.Holland@census.gov",null,{"$f":"VLOOKUP(B144,'LOC FINAL with new Themes'!A:M,7,0)","v":0},{"$f":"VLOOKUP(B144,'LOC FINAL with new Themes'!A:M,8,0)","v":0},{"$f":"VLOOKUP(B144,'LOC FINAL with new Themes'!A:M,9,0)","v":0},{"$f":"VLOOKUP(B144,'LOC FINAL with new Themes'!A:M,10,0)","v":0},{"$f":"VLOOKUP(B144,'LOC FINAL with new Themes'!A:M,11,0)","v":0},{"$f":"VLOOKUP(B144,'LOC FINAL with new Themes'!A:M,12,0)","v":0},{"$f":"VLOOKUP(B144,'LOC FINAL with new Themes'!A:M,13,0)","v":0}]
[null,"Combined New England City and Town Area (2010 Census)","Combined New England City and Town Area (2010 Census)","Combined New England City and Town Area (2010 Census)","Governmental Units ","DOC-Census","Jennifer Holland","Jennifer.L.Holland@census.gov",null,{"$f":"VLOOKUP(B145,'LOC FINAL with new Themes'!A:M,7,0)","v":0},{"$f":"VLOOKUP(B145,'LOC FINAL with new Themes'!A:M,8,0)","v":0},{"$f":"VLOOKUP(B145,'LOC FINAL with new Themes'!A:M,9,0)","v":0},{"$f":"VLOOKUP(B145,'LOC FINAL with new Themes'!A:M,10,0)","v":0},{"$f":"VLOOKUP(B145,'LOC FINAL with new Themes'!A:M,11,0)","v":0},{"$f":"VLOOKUP(B145,'LOC FINAL with new Themes'!A:M,12,0)","v":0},{"$f":"VLOOKUP(B145,'LOC FINAL with new Themes'!A:M,13,0)","v":0}]
["Congressional District Boundaries","Congressional District (108th)","Congressional District (108th)","Congressional District (108th)","Governmental Units ","DOC-Census","Jennifer Holland","Jennifer.L.Holland@census.gov",null,{"$f":"VLOOKUP(B146,'LOC FINAL with new Themes'!A:M,7,0)","v":0},{"$f":"VLOOKUP(B146,'LOC FINAL with new Themes'!A:M,8,0)","v":0},{"$f":"VLOOKUP(B146,'LOC FINAL with new Themes'!A:M,9,0)","v":0},{"$f":"VLOOKUP(B146,'LOC FINAL with new Themes'!A:M,10,0)","v":0},{"$f":"VLOOKUP(B146,'LOC FINAL with new Themes'!A:M,11,0)","v":0},{"$f":"VLOOKUP(B146,'LOC FINAL with new Themes'!A:M,12,0)","v":0},{"$f":"VLOOKUP(B146,'LOC FINAL with new Themes'!A:M,13,0)","v":0}]
[null,"Congressional District (111th)","Congressional District (111th)","Congressional District (111th)","Governmental Units ","DOC-Census","Jennifer Holland","Jennifer.L.Holland@census.gov",null,{"$f":"VLOOKUP(B147,'LOC FINAL with new Themes'!A:M,7,0)","v":0},{"$f":"VLOOKUP(B147,'LOC FINAL with new Themes'!A:M,8,0)","v":0},{"$f":"VLOOKUP(B147,'LOC FINAL with new Themes'!A:M,9,0)","v":0},{"$f":"VLOOKUP(B147,'LOC FINAL with new Themes'!A:M,10,0)","v":0},{"$f":"VLOOKUP(B147,'LOC FINAL with new Themes'!A:M,11,0)","v":0},{"$f":"VLOOKUP(B147,'LOC FINAL with new Themes'!A:M,12,0)","v":0},{"$f":"VLOOKUP(B147,'LOC FINAL with new Themes'!A:M,13,0)","v":0}]
[null,"Consolidated City (2010 Census)","Consolidated City (2010 Census)","Consolidated City (2010 Census)","Governmental Units ","DOC-Census","Jennifer Holland","Jennifer.L.Holland@census.gov",null,{"$f":"VLOOKUP(B148,'LOC FINAL with new Themes'!A:M,7,0)","v":0},{"$f":"VLOOKUP(B148,'LOC FINAL with new Themes'!A:M,8,0)","v":0},{"$f":"VLOOKUP(B148,'LOC FINAL with new Themes'!A:M,9,0)","v":0},{"$f":"VLOOKUP(B148,'LOC FINAL with new Themes'!A:M,10,0)","v":0},{"$f":"VLOOKUP(B148,'LOC FINAL with new Themes'!A:M,11,0)","v":0},{"$f":"VLOOKUP(B148,'LOC FINAL with new Themes'!A:M,12,0)","v":0},{"$f":"VLOOKUP(B148,'LOC FINAL with new Themes'!A:M,13,0)","v":0}]
[null,"Consolidated City (Census 2000)","Consolidated City (Census 2000)","Consolidated City (Census 2000)","Governmental Units ","DOC-Census","Jennifer Holland","Jennifer.L.Holland@census.gov",null,{"$f":"VLOOKUP(B149,'LOC FINAL with new Themes'!A:M,7,0)","v":0},{"$f":"VLOOKUP(B149,'LOC FINAL with new Themes'!A:M,8,0)","v":0},{"$f":"VLOOKUP(B149,'LOC FINAL with new Themes'!A:M,9,0)","v":0},{"$f":"VLOOKUP(B149,'LOC FINAL with new Themes'!A:M,10,0)","v":0},{"$f":"VLOOKUP(B149,'LOC FINAL with new Themes'!A:M,11,0)","v":0},{"$f":"VLOOKUP(B149,'LOC FINAL with new Themes'!A:M,12,0)","v":0},{"$f":"VLOOKUP(B149,'LOC FINAL with new Themes'!A:M,13,0)","v":0}]
[null,"County and Equivalent (2010 Census)","County and Equivalent (2010 Census)","County and Equivalent (2010 Census)","Governmental Units ","DOC-Census","Jennifer Holland","Jennifer.L.Holland@census.gov",null,{"$f":"VLOOKUP(B150,'LOC FINAL with new Themes'!A:M,7,0)","v":0},{"$f":"VLOOKUP(B150,'LOC FINAL with new Themes'!A:M,8,0)","v":0},{"$f":"VLOOKUP(B150,'LOC FINAL with new Themes'!A:M,9,0)","v":0},{"$f":"VLOOKUP(B150,'LOC FINAL with new Themes'!A:M,10,0)","v":0},{"$f":"VLOOKUP(B150,'LOC FINAL with new Themes'!A:M,11,0)","v":0},{"$f":"VLOOKUP(B150,'LOC FINAL with new Themes'!A:M,12,0)","v":0},{"$f":"VLOOKUP(B150,'LOC FINAL with new Themes'!A:M,13,0)","v":0}]
[null,"County and Equivalent (Census 2000)","County and Equivalent (Census 2000)","County and Equivalent (Census 2000)","Governmental Units ","DOC-Census","Jennifer Holland","Jennifer.L.Holland@census.gov",null,{"$f":"VLOOKUP(B151,'LOC FINAL with new Themes'!A:M,7,0)","v":0},{"$f":"VLOOKUP(B151,'LOC FINAL with new Themes'!A:M,8,0)","v":0},{"$f":"VLOOKUP(B151,'LOC FINAL with new Themes'!A:M,9,0)","v":0},{"$f":"VLOOKUP(B151,'LOC FINAL with new Themes'!A:M,10,0)","v":0},{"$f":"VLOOKUP(B151,'LOC FINAL with new Themes'!A:M,11,0)","v":0},{"$f":"VLOOKUP(B151,'LOC FINAL with new Themes'!A:M,12,0)","v":0},{"$f":"VLOOKUP(B151,'LOC FINAL with new Themes'!A:M,13,0)","v":0}]
[null,"County Subdivision (2010 Census)","County Subdivision (2010 Census)","County Subdivision (2010 Census)","Governmental Units ","DOC-Census","Jennifer Holland","Jennifer.L.Holland@census.gov",null,{"$f":"VLOOKUP(B152,'LOC FINAL with new Themes'!A:M,7,0)","v":0},{"$f":"VLOOKUP(B152,'LOC FINAL with new Themes'!A:M,8,0)","v":0},{"$f":"VLOOKUP(B152,'LOC FINAL with new Themes'!A:M,9,0)","v":0},{"$f":"VLOOKUP(B152,'LOC FINAL with new Themes'!A:M,10,0)","v":0},{"$f":"VLOOKUP(B152,'LOC FINAL with new Themes'!A:M,11,0)","v":0},{"$f":"VLOOKUP(B152,'LOC FINAL with new Themes'!A:M,12,0)","v":0},{"$f":"VLOOKUP(B152,'LOC FINAL with new Themes'!A:M,13,0)","v":0}]
[null,"County Subdivision (Census 2000)","County Subdivision (Census 2000)","County Subdivision (Census 2000)","Governmental Units ","DOC-Census","Jennifer Holland","Jennifer.L.Holland@census.gov",null,{"$f":"VLOOKUP(B153,'LOC FINAL with new Themes'!A:M,7,0)","v":0},{"$f":"VLOOKUP(B153,'LOC FINAL with new Themes'!A:M,8,0)","v":0},{"$f":"VLOOKUP(B153,'LOC FINAL with new Themes'!A:M,9,0)","v":0},{"$f":"VLOOKUP(B153,'LOC FINAL with new Themes'!A:M,10,0)","v":0},{"$f":"VLOOKUP(B153,'LOC FINAL with new Themes'!A:M,11,0)","v":0},{"$f":"VLOOKUP(B153,'LOC FINAL with new Themes'!A:M,12,0)","v":0},{"$f":"VLOOKUP(B153,'LOC FINAL with new Themes'!A:M,13,0)","v":0}]
[null,"Metropolitan Division (2010 Census)","Metropolitan Division (2010 Census)","Metropolitan Division (2010 Census)","Governmental Units ","DOC-Census","Jennifer Holland","Jennifer.L.Holland@census.gov",null,{"$f":"VLOOKUP(B154,'LOC FINAL with new Themes'!A:M,7,0)","v":0},{"$f":"VLOOKUP(B154,'LOC FINAL with new Themes'!A:M,8,0)","v":0},{"$f":"VLOOKUP(B154,'LOC FINAL with new Themes'!A:M,9,0)","v":0},{"$f":"VLOOKUP(B154,'LOC FINAL with new Themes'!A:M,10,0)","v":0},{"$f":"VLOOKUP(B154,'LOC FINAL with new Themes'!A:M,11,0)","v":0},{"$f":"VLOOKUP(B154,'LOC FINAL with new Themes'!A:M,12,0)","v":0},{"$f":"VLOOKUP(B154,'LOC FINAL with new Themes'!A:M,13,0)","v":0}]
[null,"Metropolitan Division (2010 Census)","Metropolitan Division (2010 Census)","Metropolitan Division (2010 Census)","Governmental Units ","DOC-Census","Jennifer Holland","Jennifer.L.Holland@census.gov",null,{"$f":"VLOOKUP(B155,'LOC FINAL with new Themes'!A:M,7,0)","v":0},{"$f":"VLOOKUP(B155,'LOC FINAL with new Themes'!A:M,8,0)","v":0},{"$f":"VLOOKUP(B155,'LOC FINAL with new Themes'!A:M,9,0)","v":0},{"$f":"VLOOKUP(B155,'LOC FINAL with new Themes'!A:M,10,0)","v":0},{"$f":"VLOOKUP(B155,'LOC FINAL with new Themes'!A:M,11,0)","v":0},{"$f":"VLOOKUP(B155,'LOC FINAL with new Themes'!A:M,12,0)","v":0},{"$f":"VLOOKUP(B155,'LOC FINAL with new Themes'!A:M,13,0)","v":0}]
[null,"New England City and Town Area (2010 Census)","New England City and Town Area (2010 Census)","New England City and Town Area (2010 Census)","Governmental Units ","DOC-Census","Jennifer Holland","Jennifer.L.Holland@census.gov",null,{"$f":"VLOOKUP(B156,'LOC FINAL with new Themes'!A:M,7,0)","v":0},{"$f":"VLOOKUP(B156,'LOC FINAL with new Themes'!A:M,8,0)","v":0},{"$f":"VLOOKUP(B156,'LOC FINAL with new Themes'!A:M,9,0)","v":0},{"$f":"VLOOKUP(B156,'LOC FINAL with new Themes'!A:M,10,0)","v":0},{"$f":"VLOOKUP(B156,'LOC FINAL with new Themes'!A:M,11,0)","v":0},{"$f":"VLOOKUP(B156,'LOC FINAL with new Themes'!A:M,12,0)","v":0},{"$f":"VLOOKUP(B156,'LOC FINAL with new Themes'!A:M,13,0)","v":0}]
[null,"New England City and Town Area Division (2010 Census)","New England City and Town Area Division (2010 Census)","New England City and Town Area Division (2010 Census)","Governmental Units ","DOC-Census","Jennifer Holland","Jennifer.L.Holland@census.gov",null,{"$f":"VLOOKUP(B157,'LOC FINAL with new Themes'!A:M,7,0)","v":0},{"$f":"VLOOKUP(B157,'LOC FINAL with new Themes'!A:M,8,0)","v":0},{"$f":"VLOOKUP(B157,'LOC FINAL with new Themes'!A:M,9,0)","v":0},{"$f":"VLOOKUP(B157,'LOC FINAL with new Themes'!A:M,10,0)","v":0},{"$f":"VLOOKUP(B157,'LOC FINAL with new Themes'!A:M,11,0)","v":0},{"$f":"VLOOKUP(B157,'LOC FINAL with new Themes'!A:M,12,0)","v":0},{"$f":"VLOOKUP(B157,'LOC FINAL with new Themes'!A:M,13,0)","v":0}]
["Place and MCD Boundaries","Place (2010 Census)","Place (2010 Census)","Place (2010 Census)","Governmental Units ","DOC-Census","Jennifer Holland","Jennifer.L.Holland@census.gov",null,{"$f":"VLOOKUP(B158,'LOC FINAL with new Themes'!A:M,7,0)","v":0},{"$f":"VLOOKUP(B158,'LOC FINAL with new Themes'!A:M,8,0)","v":0},{"$f":"VLOOKUP(B158,'LOC FINAL with new Themes'!A:M,9,0)","v":0},{"$f":"VLOOKUP(B158,'LOC FINAL with new Themes'!A:M,10,0)","v":0},{"$f":"VLOOKUP(B158,'LOC FINAL with new Themes'!A:M,11,0)","v":0},{"$f":"VLOOKUP(B158,'LOC FINAL with new Themes'!A:M,12,0)","v":0},{"$f":"VLOOKUP(B158,'LOC FINAL with new Themes'!A:M,13,0)","v":0}]
[null,"Place (Census 2000)","Place (Census 2000)","Place (Census 2000)","Governmental Units ","DOC-Census","Jennifer Holland","Jennifer.L.Holland@census.gov",null,{"$f":"VLOOKUP(B159,'LOC FINAL with new Themes'!A:M,7,0)","v":0},{"$f":"VLOOKUP(B159,'LOC FINAL with new Themes'!A:M,8,0)","v":0},{"$f":"VLOOKUP(B159,'LOC FINAL with new Themes'!A:M,9,0)","v":0},{"$f":"VLOOKUP(B159,'LOC FINAL with new Themes'!A:M,10,0)","v":0},{"$f":"VLOOKUP(B159,'LOC FINAL with new Themes'!A:M,11,0)","v":0},{"$f":"VLOOKUP(B159,'LOC FINAL with new Themes'!A:M,12,0)","v":0},{"$f":"VLOOKUP(B159,'LOC FINAL with new Themes'!A:M,13,0)","v":0}]
["State(+ Territories) Boundaries","State and Equivalent  (2010 Census)","State and Equivalent  (2010 Census)","State and Equivalent  (2010 Census)","Governmental Units ","DOC-Census","Jennifer Holland","Jennifer.L.Holland@census.gov",null,{"$f":"VLOOKUP(B160,'LOC FINAL with new Themes'!A:M,7,0)","v":0},{"$f":"VLOOKUP(B160,'LOC FINAL with new Themes'!A:M,8,0)","v":0},{"$f":"VLOOKUP(B160,'LOC FINAL with new Themes'!A:M,9,0)","v":0},{"$f":"VLOOKUP(B160,'LOC FINAL with new Themes'!A:M,10,0)","v":0},{"$f":"VLOOKUP(B160,'LOC FINAL with new Themes'!A:M,11,0)","v":0},{"$f":"VLOOKUP(B160,'LOC FINAL with new Themes'!A:M,12,0)","v":0},{"$f":"VLOOKUP(B160,'LOC FINAL with new Themes'!A:M,13,0)","v":0}]
[null,"State and Equivalent  (Census 2000)","State and Equivalent  (Census 2000)","State and Equivalent  (Census 2000)","Governmental Units ","DOC-Census","Jennifer Holland","Jennifer.L.Holland@census.gov",null,{"$f":"VLOOKUP(B161,'LOC FINAL with new Themes'!A:M,7,0)","v":0},{"$f":"VLOOKUP(B161,'LOC FINAL with new Themes'!A:M,8,0)","v":0},{"$f":"VLOOKUP(B161,'LOC FINAL with new Themes'!A:M,9,0)","v":0},{"$f":"VLOOKUP(B161,'LOC FINAL with new Themes'!A:M,10,0)","v":0},{"$f":"VLOOKUP(B161,'LOC FINAL with new Themes'!A:M,11,0)","v":0},{"$f":"VLOOKUP(B161,'LOC FINAL with new Themes'!A:M,12,0)","v":0},{"$f":"VLOOKUP(B161,'LOC FINAL with new Themes'!A:M,13,0)","v":0}]
[null,"State Legislative District (Lower Chamber) (2010 Census)","State Legislative District (Lower Chamber) (2010 Census)","State Legislative District (Lower Chamber) (2010 Census)","Governmental Units ","DOC-Census","Jennifer Holland","Jennifer.L.Holland@census.gov",null,{"$f":"VLOOKUP(B162,'LOC FINAL with new Themes'!A:M,7,0)","v":0},{"$f":"VLOOKUP(B162,'LOC FINAL with new Themes'!A:M,8,0)","v":0},{"$f":"VLOOKUP(B162,'LOC FINAL with new Themes'!A:M,9,0)","v":0},{"$f":"VLOOKUP(B162,'LOC FINAL with new Themes'!A:M,10,0)","v":0},{"$f":"VLOOKUP(B162,'LOC FINAL with new Themes'!A:M,11,0)","v":0},{"$f":"VLOOKUP(B162,'LOC FINAL with new Themes'!A:M,12,0)","v":0},{"$f":"VLOOKUP(B162,'LOC FINAL with new Themes'!A:M,13,0)","v":0}]
[null,"State Legislative District (Lower Chamber) (Census 2000)","State Legislative District (Lower Chamber) (Census 2000)","State Legislative District (Lower Chamber) (Census 2000)","Governmental Units ","DOC-Census","Jennifer Holland","Jennifer.L.Holland@census.gov",null,{"$f":"VLOOKUP(B163,'LOC FINAL with new Themes'!A:M,7,0)","v":0},{"$f":"VLOOKUP(B163,'LOC FINAL with new Themes'!A:M,8,0)","v":0},{"$f":"VLOOKUP(B163,'LOC FINAL with new Themes'!A:M,9,0)","v":0},{"$f":"VLOOKUP(B163,'LOC FINAL with new Themes'!A:M,10,0)","v":0},{"$f":"VLOOKUP(B163,'LOC FINAL with new Themes'!A:M,11,0)","v":0},{"$f":"VLOOKUP(B163,'LOC FINAL with new Themes'!A:M,12,0)","v":0},{"$f":"VLOOKUP(B163,'LOC FINAL with new Themes'!A:M,13,0)","v":0}]
[null,"State Legislative District (Upper Chamber) (2010 Census)","State Legislative District (Upper Chamber) (2010 Census)","State Legislative District (Upper Chamber) (2010 Census)","Governmental Units ","DOC-Census","Jennifer Holland","Jennifer.L.Holland@census.gov",null,{"$f":"VLOOKUP(B164,'LOC FINAL with new Themes'!A:M,7,0)","v":0},{"$f":"VLOOKUP(B164,'LOC FINAL with new Themes'!A:M,8,0)","v":0},{"$f":"VLOOKUP(B164,'LOC FINAL with new Themes'!A:M,9,0)","v":0},{"$f":"VLOOKUP(B164,'LOC FINAL with new Themes'!A:M,10,0)","v":0},{"$f":"VLOOKUP(B164,'LOC FINAL with new Themes'!A:M,11,0)","v":0},{"$f":"VLOOKUP(B164,'LOC FINAL with new Themes'!A:M,12,0)","v":0},{"$f":"VLOOKUP(B164,'LOC FINAL with new Themes'!A:M,13,0)","v":0}]
[null,"State Legislative District (Upper Chamber) (Census 2000)","State Legislative District (Upper Chamber) (Census 2000)","State Legislative District (Upper Chamber) (Census 2000)","Governmental Units ","DOC-Census","Jennifer Holland","Jennifer.L.Holland@census.gov",null,{"$f":"VLOOKUP(B165,'LOC FINAL with new Themes'!A:M,7,0)","v":0},{"$f":"VLOOKUP(B165,'LOC FINAL with new Themes'!A:M,8,0)","v":0},{"$f":"VLOOKUP(B165,'LOC FINAL with new Themes'!A:M,9,0)","v":0},{"$f":"VLOOKUP(B165,'LOC FINAL with new Themes'!A:M,10,0)","v":0},{"$f":"VLOOKUP(B165,'LOC FINAL with new Themes'!A:M,11,0)","v":0},{"$f":"VLOOKUP(B165,'LOC FINAL with new Themes'!A:M,12,0)","v":0},{"$f":"VLOOKUP(B165,'LOC FINAL with new Themes'!A:M,13,0)","v":0}]
[null,"Subbarrio (2010 Census)","Subbarrio (2010 Census)","Subbarrio (2010 Census)","Governmental Units ","DOC-Census","Jennifer Holland","Jennifer.L.Holland@census.gov",null,{"$f":"VLOOKUP(B166,'LOC FINAL with new Themes'!A:M,7,0)","v":0},{"$f":"VLOOKUP(B166,'LOC FINAL with new Themes'!A:M,8,0)","v":0},{"$f":"VLOOKUP(B166,'LOC FINAL with new Themes'!A:M,9,0)","v":0},{"$f":"VLOOKUP(B166,'LOC FINAL with new Themes'!A:M,10,0)","v":0},{"$f":"VLOOKUP(B166,'LOC FINAL with new Themes'!A:M,11,0)","v":0},{"$f":"VLOOKUP(B166,'LOC FINAL with new Themes'!A:M,12,0)","v":0},{"$f":"VLOOKUP(B166,'LOC FINAL with new Themes'!A:M,13,0)","v":0}]
[null,"Subbarrio (Census 2000)","Subbarrio (Census 2000)","Subbarrio (Census 2000)","Governmental Units ","DOC-Census","Jennifer Holland","Jennifer.L.Holland@census.gov",null,{"$f":"VLOOKUP(B167,'LOC FINAL with new Themes'!A:M,7,0)","v":0},{"$f":"VLOOKUP(B167,'LOC FINAL with new Themes'!A:M,8,0)","v":0},{"$f":"VLOOKUP(B167,'LOC FINAL with new Themes'!A:M,9,0)","v":0},{"$f":"VLOOKUP(B167,'LOC FINAL with new Themes'!A:M,10,0)","v":0},{"$f":"VLOOKUP(B167,'LOC FINAL with new Themes'!A:M,11,0)","v":0},{"$f":"VLOOKUP(B167,'LOC FINAL with new Themes'!A:M,12,0)","v":0},{"$f":"VLOOKUP(B167,'LOC FINAL with new Themes'!A:M,13,0)","v":0}]
[null,"Urban Area (Corrected Census 2000)","Urban Area (Corrected Census 2000)","Urban Area (Corrected Census 2000)","Governmental Units ","DOC-Census","Jennifer Holland","Jennifer.L.Holland@census.gov",null,{"$f":"VLOOKUP(B168,'LOC FINAL with new Themes'!A:M,7,0)","v":0},{"$f":"VLOOKUP(B168,'LOC FINAL with new Themes'!A:M,8,0)","v":0},{"$f":"VLOOKUP(B168,'LOC FINAL with new Themes'!A:M,9,0)","v":0},{"$f":"VLOOKUP(B168,'LOC FINAL with new Themes'!A:M,10,0)","v":0},{"$f":"VLOOKUP(B168,'LOC FINAL with new Themes'!A:M,11,0)","v":0},{"$f":"VLOOKUP(B168,'LOC FINAL with new Themes'!A:M,12,0)","v":0},{"$f":"VLOOKUP(B168,'LOC FINAL with new Themes'!A:M,13,0)","v":0}]
[null,null,null,{"$f":"SUBTOTAL(3,D137:D168)","v":32},"Governmental Units Count"]
["133 Urban Areas imagery program data","133 Urban Areas imagery program data",null,{"$f":"IF(C170=0,B170,C170)","v":"133 Urban Areas imagery program data"},"Imagery ","DOD-NGA","William Nellist","William.E.Nellist@nga.mil",null,{"$f":"VLOOKUP(B170,'LOC FINAL with new Themes'!A:M,7,0)","v":0},{"$f":"VLOOKUP(B170,'LOC FINAL with new Themes'!A:M,8,0)","v":0},{"$f":"VLOOKUP(B170,'LOC FINAL with new Themes'!A:M,9,0)","v":0},{"$f":"VLOOKUP(B170,'LOC FINAL with new Themes'!A:M,10,0)","v":0},{"$f":"VLOOKUP(B170,'LOC FINAL with new Themes'!A:M,11,0)","v":0},{"$f":"VLOOKUP(B170,'LOC FINAL with new Themes'!A:M,12,0)","v":0},{"$f":"VLOOKUP(B170,'LOC FINAL with new Themes'!A:M,13,0)","v":0}]
[null,"134 Urban Areas imagery program data",null,"134 Urban Areas imagery program data","Imagery ","DOI-USGS","George Lee","gylee@usgs.gov",null,{"$f":"VLOOKUP(B171,'LOC FINAL with new Themes'!A:M,7,0)","v":0},{"$f":"VLOOKUP(B171,'LOC FINAL with new Themes'!A:M,8,0)","v":0},{"$f":"VLOOKUP(B171,'LOC FINAL with new Themes'!A:M,9,0)","v":0},{"$f":"VLOOKUP(B171,'LOC FINAL with new Themes'!A:M,10,0)","v":0},{"$f":"VLOOKUP(B171,'LOC FINAL with new Themes'!A:M,11,0)","v":0},{"$f":"VLOOKUP(B171,'LOC FINAL with new Themes'!A:M,12,0)","v":0},{"$f":"VLOOKUP(B171,'LOC FINAL with new Themes'!A:M,13,0)","v":0}]
["ADS40 Hurricane Response 7.5' Quadrangle Mosaics","ADS40 Hurricane Response 7.5' Quadrangle Mosaics",null,"ADS40 Hurricane Response 7.5' Quadrangle Mosaics","Imagery ","DOI-USGS","Jim Mauck","jmauck@usgs.gov",null,{"$f":"VLOOKUP(B172,'LOC FINAL with new Themes'!A:M,7,0)","v":0},{"$f":"VLOOKUP(B172,'LOC FINAL with new Themes'!A:M,8,0)","v":0},{"$f":"VLOOKUP(B172,'LOC FINAL with new Themes'!A:M,9,0)","v":0},{"$f":"VLOOKUP(B172,'LOC FINAL with new Themes'!A:M,10,0)","v":0},{"$f":"VLOOKUP(B172,'LOC FINAL with new Themes'!A:M,11,0)","v":0},{"$f":"VLOOKUP(B172,'LOC FINAL with new Themes'!A:M,12,0)","v":0},{"$f":"VLOOKUP(B172,'LOC FINAL with new Themes'!A:M,13,0)","v":0}]
["Digital Orthoimage Quarter Quadrangle (DOQQ) Archive","Digital Orthoimage Quarter Quadrangle (DOQQ) Archive",null,"Digital Orthoimage Quarter Quadrangle (DOQQ) Archive","Imagery ","DOI-USGS",null,null,null,{"$f":"VLOOKUP(B173,'LOC FINAL with new Themes'!A:M,7,0)","v":"DOQQ is static; one data set; this is the POC and data manager. this is the name and maintain three complete with two physically separate on-site and one off-site"},{"$f":"VLOOKUP(B173,'LOC FINAL with new Themes'!A:M,8,0)","v":0},{"$f":"VLOOKUP(B173,'LOC FINAL with new Themes'!A:M,9,0)","v":0},{"$f":"VLOOKUP(B173,'LOC FINAL with new Themes'!A:M,10,0)","v":0},{"$f":"VLOOKUP(B173,'LOC FINAL with new Themes'!A:M,11,0)","v":0},{"$f":"VLOOKUP(B173,'LOC FINAL with new Themes'!A:M,12,0)","v":0},{"$f":"VLOOKUP(B173,'LOC FINAL with new Themes'!A:M,13,0)","v":"S"}]
["Emergency Response Imagery","Emergency Response Imagery","Emergency Response Imagery","Emergency Response Imagery","Imagery ","DOC-NOAA","Mike Aslaksen","mike.Aslaksen@noaa.gov",null,{"$f":"VLOOKUP(B174,'LOC FINAL with new Themes'!A:M,7,0)","v":"20-Multiple      "},{"$f":"VLOOKUP(B174,'LOC FINAL with new Themes'!A:M,8,0)","v":"No"},{"$f":"VLOOKUP(B174,'LOC FINAL with new Themes'!A:M,9,0)","v":"Yes - email reply from Jon Sellars Jon.Sellars@noaa.gov"},{"$f":"VLOOKUP(B174,'LOC FINAL with new Themes'!A:M,10,0)","v":"- Same for the forest frag."},{"$f":"VLOOKUP(B174,'LOC FINAL with new Themes'!A:M,11,0)","v":"Our data can be accessed through the following links: http://storms.ngs.noaagov/eri_page/index.html Gulf Oil Spill:\nhttp://hdds.usgs.gov/hdds2/pub/data/disaster/201004_Oilspill_GulfOfMexico/data/AERIAL_NOAA\nhttp://hdds.usgs.gov/hdds2/pub/data/disaster/201004_Oilspill_GulfOfMexico/data/AERIAL_NOAA_MOSAIC  Haiti Earthquake:\nhttp://hdds.usgs.gov/hdds2/pub/data/disaster/201001_Earthquake_Haiti/data/AERIAL_NOAA\nhttp://hdds.usgs.gov/hdds2/pub/data/disaster/201001_Earthquake_Haiti/data/AERIAL_NOAA_ORTHO\nMexico Earthquake:\nhttp://hdds.usgs.gov/hdds2/pub/data/disaster/201004_Earthquake_Mexico/data/AERIAL_NOAA_MOSAIC \n\n"},{"$f":"VLOOKUP(B174,'LOC FINAL with new Themes'!A:M,12,0)","v":"Described by storm name, event or location."},{"$f":"VLOOKUP(B174,'LOC FINAL with new Themes'!A:M,13,0)","v":"M "}]
[null,null,"Fire, Detection: AVHRR FIMMA , GOES WF-ABBA","Fire, Detection: AVHRR FIMMA , GOES WF-ABBA","Imagery ","USDA"]
["Landsat geometric/terrain corrected level 1T","Landsat geometric/terrain corrected level 1T","Landsat Terrain Corrected Scenes","Landsat Terrain Corrected Scenes","Imagery ","DOI-USGS","Kristi Kline","kkline@usgs.gov",null,{"$f":"VLOOKUP(B176,'LOC FINAL with new Themes'!A:M,7,0)","v":"Landsat updates daily; a series of data sets; this is the POC and data manager; this is the name and maintain three complete with two physically separate on-site and one off-site"},{"$f":"VLOOKUP(B176,'LOC FINAL with new Themes'!A:M,8,0)","v":0},{"$f":"VLOOKUP(B176,'LOC FINAL with new Themes'!A:M,9,0)","v":0},{"$f":"VLOOKUP(B176,'LOC FINAL with new Themes'!A:M,10,0)","v":0},{"$f":"VLOOKUP(B176,'LOC FINAL with new Themes'!A:M,11,0)","v":0},{"$f":"VLOOKUP(B176,'LOC FINAL with new Themes'!A:M,12,0)","v":0},{"$f":"VLOOKUP(B176,'LOC FINAL with new Themes'!A:M,13,0)","v":"S"}]
[null,null,"National  Orthoimagery Dataset - National Map","National  Orthoimagery Dataset - National Map","Imagery ","DOI-USGS"]
["National Aerial Photography Program (NAPP) Data Archive","National Aerial Photography Program (NAPP) Data Archive",null,"National Aerial Photography Program (NAPP) Data Archive","Imagery ","DOI-USGS","Wayne Miller","wamiller@usgs.gov",null,{"$f":"VLOOKUP(B178,'LOC FINAL with new Themes'!A:M,7,0)","v":"NAPP is static; one data set; this is the POC and data manager; this is the name and maintain three complete with two physically separate on-site and one off-site "},{"$f":"VLOOKUP(B178,'LOC FINAL with new Themes'!A:M,8,0)","v":0},{"$f":"VLOOKUP(B178,'LOC FINAL with new Themes'!A:M,9,0)","v":0},{"$f":"VLOOKUP(B178,'LOC FINAL with new Themes'!A:M,10,0)","v":0},{"$f":"VLOOKUP(B178,'LOC FINAL with new Themes'!A:M,11,0)","v":0},{"$f":"VLOOKUP(B178,'LOC FINAL with new Themes'!A:M,12,0)","v":0},{"$f":"VLOOKUP(B178,'LOC FINAL with new Themes'!A:M,13,0)","v":"S"}]
["National Agriculture Imagery Program Data","National Agriculture Imagery Program Data","National Agriculture Imagery Program (NAIP) Archive","National Agriculture Imagery Program (NAIP) Archive","Imagery ","DOI-USGS","Shirley Hall","shirley.hall@wdc.usda.gov",null,{"$f":"VLOOKUP(B179,'LOC FINAL with new Themes'!A:M,7,0)","v":"Shirley identified Dan Good as new contact 'daniel.good@wdc.usda.gov' - need to follow up with either or both"},{"$f":"VLOOKUP(B179,'LOC FINAL with new Themes'!A:M,8,0)","v":0},{"$f":"VLOOKUP(B179,'LOC FINAL with new Themes'!A:M,9,0)","v":0},{"$f":"VLOOKUP(B179,'LOC FINAL with new Themes'!A:M,10,0)","v":0},{"$f":"VLOOKUP(B179,'LOC FINAL with new Themes'!A:M,11,0)","v":0},{"$f":"VLOOKUP(B179,'LOC FINAL with new Themes'!A:M,12,0)","v":0},{"$f":"VLOOKUP(B179,'LOC FINAL with new Themes'!A:M,13,0)","v":0}]
["National Map Orthoimagery Database (TNM Seamless Server) ","National Map Orthoimagery Database (TNM Seamless Server) ",null,"National Map Orthoimagery Database (TNM Seamless Server) ","Imagery ","DOI-USGS","George Lee","gylee@usgs.gov",null,{"$f":"VLOOKUP(B180,'LOC FINAL with new Themes'!A:M,7,0)","v":0},{"$f":"VLOOKUP(B180,'LOC FINAL with new Themes'!A:M,8,0)","v":0},{"$f":"VLOOKUP(B180,'LOC FINAL with new Themes'!A:M,9,0)","v":0},{"$f":"VLOOKUP(B180,'LOC FINAL with new Themes'!A:M,10,0)","v":0},{"$f":"VLOOKUP(B180,'LOC FINAL with new Themes'!A:M,11,0)","v":0},{"$f":"VLOOKUP(B180,'LOC FINAL with new Themes'!A:M,12,0)","v":0},{"$f":"VLOOKUP(B180,'LOC FINAL with new Themes'!A:M,13,0)","v":0}]
[null,null,"Satellite Imagery Archive","Satellite Imagery Archive","Imagery ","USDA-FSA"]
[null,null,null,{"$f":"SUBTOTAL(3,D170:D181)","v":12},"Imagery  Count"]
[null,null,"Crops: Cropland Data Layer",{"$f":"IF(C183=0,B183,C183)","v":"Crops: Cropland Data Layer"},"Land Use-Land Cover ","USDA-NASS"]
[null,null,"Earth Cover, Land: MODIS-based Land Products","Earth Cover, Land: MODIS-based Land Products","Land Use-Land Cover ","USDA -FS (Along with USGS)"]
[null,null,"Earth Cover, Vegetation, Forest: Forest Biomass, Types, Type Groups","Earth Cover, Vegetation, Forest: Forest Biomass, Types, Type Groups","Land Use-Land Cover ","USDA-FS"]
[null,null,"Earth Cover, Vegetation: Percent Forest Canopy","Earth Cover, Vegetation: Percent Forest Canopy","Land Use-Land Cover ","USDA-FS"]
[null,null,"Fire Severity: Monitoring Trends in Burn Severity (MTBS)","Fire Severity: Monitoring Trends in Burn Severity (MTBS)","Land Use-Land Cover ","USDA -FS (Along with USGS)"]
[null,null,"Fire, Detection: Daily Active Fire Mapping","Fire, Detection: Daily Active Fire Mapping","Land Use-Land Cover ","USDA"]
[null,null,"Land Cover Strata Dataset","Land Cover Strata Dataset","Land Use-Land Cover ","USDA-NASS"]
["LANDFIRE Dataset","LANDFIRE Dataset","Land Fire Dataset","Land Fire Dataset","Land Use-Land Cover ",null,null,0,null,{"$f":"VLOOKUP(B190,'LOC FINAL with new Themes'!A:M,7,0)","v":0},{"$f":"VLOOKUP(B190,'LOC FINAL with new Themes'!A:M,8,0)","v":0},{"$f":"VLOOKUP(B190,'LOC FINAL with new Themes'!A:M,9,0)","v":0},{"$f":"VLOOKUP(B190,'LOC FINAL with new Themes'!A:M,10,0)","v":0},{"$f":"VLOOKUP(B190,'LOC FINAL with new Themes'!A:M,11,0)","v":0},{"$f":"VLOOKUP(B190,'LOC FINAL with new Themes'!A:M,12,0)","v":0},{"$f":"VLOOKUP(B190,'LOC FINAL with new Themes'!A:M,13,0)","v":0}]
["National Land Cover Dataset (NLCD)","National Land Cover Dataset (NLCD)","National Land Cover Dataset - GIRAS - 1975","National Land Cover Dataset - GIRAS - 1975","Land Use-Land Cover ","DOI-USGS","Colin Homer","homer@usgs.gov",null,{"$f":"VLOOKUP(B191,'LOC FINAL with new Themes'!A:M,7,0)","v":"The table below summarizes NLCD products available for download from the MRLC website http://www.mrlc.gov/ "},{"$f":"VLOOKUP(B191,'LOC FINAL with new Themes'!A:M,8,0)","v":"No.  The \"manager\" of the data is Jon Dewitz. \nContact Information -   \nJon Dewitz\ndewitz@usgs.gov\n605-594-2715\nNLCD Quality Supervisor\nUSGS Earth Resources Observation and Science Center (EROS)\nMundt Federal Building\n47914 252nd St.\nSioux Falls, SD 57198\nfax 605-594-6529\n"},{"$f":"VLOOKUP(B191,'LOC FINAL with new Themes'!A:M,9,0)","v":"Joyce Fry is the POC. \nContact information - \nJoyce Fry, Geographer\nUnited States Geological Survey (USGS)\nEarth Resources Observation and  Science (EROS) Center\nMundt Federal Building\n47914 252nd Street\nSioux Falls, South Dakota 57198\n(P)  605.594.2739\n(F)  605.594.6529\n(e)  jfry@usgs.gov \n"},{"$f":"VLOOKUP(B191,'LOC FINAL with new Themes'!A:M,10,0)","v":"Every 5 years"},{"$f":"VLOOKUP(B191,'LOC FINAL with new Themes'!A:M,11,0)","v":"Yes, there is an archive/backup of the dataset through the EROS Long Term Archive (LTA) group.  I will need to get back to if you need additional information regarding the archive process. "},{"$f":"VLOOKUP(B191,'LOC FINAL with new Themes'!A:M,12,0)","v":"National Land Cover Database or NLCD along with the era number, either 1992 or 2001, or 2006. "},{"$f":"VLOOKUP(B191,'LOC FINAL with new Themes'!A:M,13,0)","v":"S"}]
[null,null,"National Land Cover Dataset - National Map","National Land Cover Dataset - National Map","Land Use-Land Cover ","DOI-USGS"]
[null,null,"National Land Cover Dataset - National Map - 1991","National Land Cover Dataset - National Map - 1991","Land Use-Land Cover ","DOI-USGS"]
[null,null,"National Land Cover Dataset - National Map - 2001","National Land Cover Dataset - National Map - 2001","Land Use-Land Cover ","DOI-USGS"]
[null,null,"National Land Cover Dataset - National Map 2006","National Land Cover Dataset - National Map 2006","Land Use-Land Cover ","DOI-USGS"]
["National Land Cover Dataset (NLCD)","National Land Cover Dataset (NLCD)","National Land Cover Dataset (NLCD)","National Land Cover Dataset (NLCD)","Land Use-Land Cover ","DOI-USGS","Colin Homer","homer@usgs.gov",null,{"$f":"VLOOKUP(B196,'LOC FINAL with new Themes'!A:M,7,0)","v":"The table below summarizes NLCD products available for download from the MRLC website http://www.mrlc.gov/ "},{"$f":"VLOOKUP(B196,'LOC FINAL with new Themes'!A:M,8,0)","v":"No.  The \"manager\" of the data is Jon Dewitz. \nContact Information -   \nJon Dewitz\ndewitz@usgs.gov\n605-594-2715\nNLCD Quality Supervisor\nUSGS Earth Resources Observation and Science Center (EROS)\nMundt Federal Building\n47914 252nd St.\nSioux Falls, SD 57198\nfax 605-594-6529\n"},{"$f":"VLOOKUP(B196,'LOC FINAL with new Themes'!A:M,9,0)","v":"Joyce Fry is the POC. \nContact information - \nJoyce Fry, Geographer\nUnited States Geological Survey (USGS)\nEarth Resources Observation and  Science (EROS) Center\nMundt Federal Building\n47914 252nd Street\nSioux Falls, South Dakota 57198\n(P)  605.594.2739\n(F)  605.594.6529\n(e)  jfry@usgs.gov \n"},{"$f":"VLOOKUP(B196,'LOC FINAL with new Themes'!A:M,10,0)","v":"Every 5 years"},{"$f":"VLOOKUP(B196,'LOC FINAL with new Themes'!A:M,11,0)","v":"Yes, there is an archive/backup of the dataset through the EROS Long Term Archive (LTA) group.  I will need to get back to if you need additional information regarding the archive process. "},{"$f":"VLOOKUP(B196,'LOC FINAL with new Themes'!A:M,12,0)","v":"National Land Cover Database or NLCD along with the era number, either 1992 or 2001, or 2006. "},{"$f":"VLOOKUP(B196,'LOC FINAL with new Themes'!A:M,13,0)","v":"S"}]
[null,null,"National Land Cover Percent Canopy - National Map - 1991","National Land Cover Percent Canopy - National Map - 1991","Land Use-Land Cover ","DOI-USGS"]
[null,null,"National Land Cover Percent Imperviousness - National Map - 2001","National Land Cover Percent Imperviousness - National Map - 2001","Land Use-Land Cover ","DOI-USGS"]
[null,null,"National Land Cover Percent Imperviousness - National Map - 2006","National Land Cover Percent Imperviousness - National Map - 2006","Land Use-Land Cover ","DOI-USGS"]
["National Parks Data","National Parks Data","National Parks Data","National Parks Data","Land Use-Land Cover ","DOI-NPS","Roger Johnson ","Roger_M_Johnson@nps.gov",null,{"$f":"VLOOKUP(B200,'LOC FINAL with new Themes'!A:M,7,0)","v":"undeliverable email- neeed to identify new contact"},{"$f":"VLOOKUP(B200,'LOC FINAL with new Themes'!A:M,8,0)","v":0},{"$f":"VLOOKUP(B200,'LOC FINAL with new Themes'!A:M,9,0)","v":0},{"$f":"VLOOKUP(B200,'LOC FINAL with new Themes'!A:M,10,0)","v":0},{"$f":"VLOOKUP(B200,'LOC FINAL with new Themes'!A:M,11,0)","v":0},{"$f":"VLOOKUP(B200,'LOC FINAL with new Themes'!A:M,12,0)","v":0},{"$f":"VLOOKUP(B200,'LOC FINAL with new Themes'!A:M,13,0)","v":0}]
[null,null,null,{"$f":"SUBTOTAL(3,D183:D200)","v":18},"Land Use-Land Cover  Count"]
["Assisted Housing (census geography or point-based) see http://www.huduser.org/picture2000/","Assisted Housing (census geography or point-based)",null,{"$f":"IF(C202=0,B202,C202)","v":"Assisted Housing (census geography or point-based)"},"Real Property","HUD","Jon Sperling","jon.sperling@hud.gov",null,{"$f":"VLOOKUP(B202,'LOC FINAL with new Themes'!A:M,7,0)","v":0},{"$f":"VLOOKUP(B202,'LOC FINAL with new Themes'!A:M,8,0)","v":0},{"$f":"VLOOKUP(B202,'LOC FINAL with new Themes'!A:M,9,0)","v":0},{"$f":"VLOOKUP(B202,'LOC FINAL with new Themes'!A:M,10,0)","v":0},{"$f":"VLOOKUP(B202,'LOC FINAL with new Themes'!A:M,11,0)","v":0},{"$f":"VLOOKUP(B202,'LOC FINAL with new Themes'!A:M,12,0)","v":0},{"$f":"VLOOKUP(B202,'LOC FINAL with new Themes'!A:M,13,0)","v":0}]
["Enterprise Zones, Empowerment Communities, Revitalization Areas, Qualified Census Tracts, etc.  (census geography based)","Enterprise Zones, Empowerment Communities, Revitalization Areas, Qualified Census Tracts, etc.  (census geography based)",null,"Enterprise Zones, Empowerment Communities, Revitalization Areas, Qualified Census Tracts, etc.  (census geography based)","Real Property","HUD","Jon Sperling","jon.sperling@hud.gov",null,{"$f":"VLOOKUP(B203,'LOC FINAL with new Themes'!A:M,7,0)","v":0},{"$f":"VLOOKUP(B203,'LOC FINAL with new Themes'!A:M,8,0)","v":0},{"$f":"VLOOKUP(B203,'LOC FINAL with new Themes'!A:M,9,0)","v":0},{"$f":"VLOOKUP(B203,'LOC FINAL with new Themes'!A:M,10,0)","v":0},{"$f":"VLOOKUP(B203,'LOC FINAL with new Themes'!A:M,11,0)","v":0},{"$f":"VLOOKUP(B203,'LOC FINAL with new Themes'!A:M,12,0)","v":0},{"$f":"VLOOKUP(B203,'LOC FINAL with new Themes'!A:M,13,0)","v":0}]
["Federal building location point ","Federal building location point ","Federal building location point ","Federal building location point ","Real Property ","GSA","Sandra Downie","sandra.downie@gsa.gov",null,{"$f":"VLOOKUP(B204,'LOC FINAL with new Themes'!A:M,7,0)","v":0},{"$f":"VLOOKUP(B204,'LOC FINAL with new Themes'!A:M,8,0)","v":0},{"$f":"VLOOKUP(B204,'LOC FINAL with new Themes'!A:M,9,0)","v":0},{"$f":"VLOOKUP(B204,'LOC FINAL with new Themes'!A:M,10,0)","v":0},{"$f":"VLOOKUP(B204,'LOC FINAL with new Themes'!A:M,11,0)","v":0},{"$f":"VLOOKUP(B204,'LOC FINAL with new Themes'!A:M,12,0)","v":0},{"$f":"VLOOKUP(B204,'LOC FINAL with new Themes'!A:M,13,0)","v":0}]
["Federal building location polygon","Federal building location polygon","Federal building location polygon","Federal building location polygon","Real Property ","GSA","Sandra Downie","sandra.downie@gsa.gov",null,{"$f":"VLOOKUP(B205,'LOC FINAL with new Themes'!A:M,7,0)","v":0},{"$f":"VLOOKUP(B205,'LOC FINAL with new Themes'!A:M,8,0)","v":0},{"$f":"VLOOKUP(B205,'LOC FINAL with new Themes'!A:M,9,0)","v":0},{"$f":"VLOOKUP(B205,'LOC FINAL with new Themes'!A:M,10,0)","v":0},{"$f":"VLOOKUP(B205,'LOC FINAL with new Themes'!A:M,11,0)","v":0},{"$f":"VLOOKUP(B205,'LOC FINAL with new Themes'!A:M,12,0)","v":0},{"$f":"VLOOKUP(B205,'LOC FINAL with new Themes'!A:M,13,0)","v":0}]
["Federal land area facility location point","Federal land area facility location point","Federal land area facility location point","Federal land area facility location point","Real Property ","GSA","Sandra Downie","sandra.downie@gsa.gov",null,{"$f":"VLOOKUP(B206,'LOC FINAL with new Themes'!A:M,7,0)","v":0},{"$f":"VLOOKUP(B206,'LOC FINAL with new Themes'!A:M,8,0)","v":0},{"$f":"VLOOKUP(B206,'LOC FINAL with new Themes'!A:M,9,0)","v":0},{"$f":"VLOOKUP(B206,'LOC FINAL with new Themes'!A:M,10,0)","v":0},{"$f":"VLOOKUP(B206,'LOC FINAL with new Themes'!A:M,11,0)","v":0},{"$f":"VLOOKUP(B206,'LOC FINAL with new Themes'!A:M,12,0)","v":0},{"$f":"VLOOKUP(B206,'LOC FINAL with new Themes'!A:M,13,0)","v":0}]
["Federal land area facility location polygon","Federal land area facility location polygon","Federal land area facility location polygon","Federal land area facility location polygon","Real Property ","GSA","Sandra Downie","sandra.downie@gsa.gov",null,{"$f":"VLOOKUP(B207,'LOC FINAL with new Themes'!A:M,7,0)","v":0},{"$f":"VLOOKUP(B207,'LOC FINAL with new Themes'!A:M,8,0)","v":0},{"$f":"VLOOKUP(B207,'LOC FINAL with new Themes'!A:M,9,0)","v":0},{"$f":"VLOOKUP(B207,'LOC FINAL with new Themes'!A:M,10,0)","v":0},{"$f":"VLOOKUP(B207,'LOC FINAL with new Themes'!A:M,11,0)","v":0},{"$f":"VLOOKUP(B207,'LOC FINAL with new Themes'!A:M,12,0)","v":0},{"$f":"VLOOKUP(B207,'LOC FINAL with new Themes'!A:M,13,0)","v":0}]
["National Map - Structures Dataset","National Map - Structures Dataset","National Structures Dataset - National Map","National Structures Dataset - National Map","Real Property ","DOI-USGS","Paul Wiese","pmwiese@usgs.gov",null,{"$f":"VLOOKUP(B208,'LOC FINAL with new Themes'!A:M,7,0)","v":"National Map updates monthly; a series of data sets; this is the POC and data manager; this is the name and maintain three complete with two physically separate on-site and one off-site"},{"$f":"VLOOKUP(B208,'LOC FINAL with new Themes'!A:M,8,0)","v":0},{"$f":"VLOOKUP(B208,'LOC FINAL with new Themes'!A:M,9,0)","v":0},{"$f":"VLOOKUP(B208,'LOC FINAL with new Themes'!A:M,10,0)","v":0},{"$f":"VLOOKUP(B208,'LOC FINAL with new Themes'!A:M,11,0)","v":0},{"$f":"VLOOKUP(B208,'LOC FINAL with new Themes'!A:M,12,0)","v":0},{"$f":"VLOOKUP(B208,'LOC FINAL with new Themes'!A:M,13,0)","v":"S"}]
[null,null,null,{"$f":"SUBTOTAL(3,D202:D208)","v":7},"Real Property Count"]
[null,"Military Installation","Military Installation",{"$f":"IF(C210=0,B210,C210)","v":"Military Installation"},"Real Property\nCultural & Demographic Statistics","DOC-Census","Jennifer Holland","Jennifer.L.Holland@census.gov",null,{"$f":"VLOOKUP(B210,'LOC FINAL with new Themes'!A:M,7,0)","v":0},{"$f":"VLOOKUP(B210,'LOC FINAL with new Themes'!A:M,8,0)","v":0},{"$f":"VLOOKUP(B210,'LOC FINAL with new Themes'!A:M,9,0)","v":0},{"$f":"VLOOKUP(B210,'LOC FINAL with new Themes'!A:M,10,0)","v":0},{"$f":"VLOOKUP(B210,'LOC FINAL with new Themes'!A:M,11,0)","v":0},{"$f":"VLOOKUP(B210,'LOC FINAL with new Themes'!A:M,12,0)","v":0},{"$f":"VLOOKUP(B210,'LOC FINAL with new Themes'!A:M,13,0)","v":0}]
[null,null,null,{"$f":"SUBTOTAL(3,D210:D210)","v":1},"Real Property\nCultural & Demographic Statistics Count"]
["Common Resource Area (CRA)","Common Resource Area (CRA)","Common Resource Area (CRA)",{"$f":"IF(C212=0,B212,C212)","v":"Common Resource Area (CRA)"},"Soils ","USDA-NRCS","David Hoover","David.Hoover@wdc.usda.gov",null,{"$f":"VLOOKUP(B212,'LOC FINAL with new Themes'!A:M,7,0)","v":0},{"$f":"VLOOKUP(B212,'LOC FINAL with new Themes'!A:M,8,0)","v":0},{"$f":"VLOOKUP(B212,'LOC FINAL with new Themes'!A:M,9,0)","v":0},{"$f":"VLOOKUP(B212,'LOC FINAL with new Themes'!A:M,10,0)","v":0},{"$f":"VLOOKUP(B212,'LOC FINAL with new Themes'!A:M,11,0)","v":0},{"$f":"VLOOKUP(B212,'LOC FINAL with new Themes'!A:M,12,0)","v":0},{"$f":"VLOOKUP(B212,'LOC FINAL with new Themes'!A:M,13,0)","v":0}]
["Major Land Resource Area (MLRA)","Major Land Resource Area (MLRA)","Major Land Resource Area (MLRA)","Major Land Resource Area (MLRA)","Soils ","USDA-NRCS","David Hoover","David.Hoover@wdc.usda.gov",null,{"$f":"VLOOKUP(B213,'LOC FINAL with new Themes'!A:M,7,0)","v":"undeliverable email- neeed to identify new contact"},{"$f":"VLOOKUP(B213,'LOC FINAL with new Themes'!A:M,8,0)","v":0},{"$f":"VLOOKUP(B213,'LOC FINAL with new Themes'!A:M,9,0)","v":0},{"$f":"VLOOKUP(B213,'LOC FINAL with new Themes'!A:M,10,0)","v":0},{"$f":"VLOOKUP(B213,'LOC FINAL with new Themes'!A:M,11,0)","v":0},{"$f":"VLOOKUP(B213,'LOC FINAL with new Themes'!A:M,12,0)","v":0},{"$f":"VLOOKUP(B213,'LOC FINAL with new Themes'!A:M,13,0)","v":0}]
["National Cooperative Soil Survey (NCSS)","National Cooperative Soil Survey (NCSS)","National Cooperative Soil Characterization Database","National Cooperative Soil Characterization Database","Soils ","USDA-NRCS","Larry West","Larry.West@lin.usda.gov",null,{"$f":"VLOOKUP(B214,'LOC FINAL with new Themes'!A:M,7,0)","v":"We have our Soil Survey Geographic database called SSURGO which is made available through the following sites:\nWeb Soil Survey:    http://websoilsurvey.nrcs.usda.gov/app/\nSoil Data Mart:     http://soildatamart.nrcs.usda.gov/\nSoil Data Access:   http://sdmdataaccess.nrcs.usda.gov\n\nWe also have: \nLab Soil Survey Lab Characterization Data (Point data): http://ssldata.nrcs.usda.gov/ aka NCSS Characterization Database\nSoil Series Classification Database http://soils.usda.gov/technical/classification/scfile/index.html\nU.S. General Soil Map (STATSGO2)\nMajor Land Resource Area (MLRA) http://soils.usda.gov/survey/geography/mlra/\n             Common Resource Areas (CRA) \n\n"},{"$f":"VLOOKUP(B214,'LOC FINAL with new Themes'!A:M,8,0)","v":"? No, I am a Program Manager. Various other people have roles of maintaining the data. "},{"$f":"VLOOKUP(B214,'LOC FINAL with new Themes'!A:M,9,0)","v":"I am a general information POC for all things soil survey related. For more technical aspects on our data sets a good POC would be David Hoover, National Leader for Soil Business Systems or someone on his staff. His contact number is 402-437-4013 or email at david.hoover@lin.usda.gov. "},{"$f":"VLOOKUP(B214,'LOC FINAL with new Themes'!A:M,10,0)","v":"Our data sets are constantly being updated by about 1000 soil and plant scientists in several agencies. "},{"$f":"VLOOKUP(B214,'LOC FINAL with new Themes'!A:M,11,0)","v":"Our data sets are archived, but I don’t know how far back. I will have to get back to you on that. It is my understanding that archived sets are not easily accessible.  We have archive data for SSURGO (Soil Data Warehouse from mid 2000’s or earlier – Jim Fortner or Jennifer Sweet may be able to confirm or provide more detail; We also have archive data for STATSGO (circa 1994;1996) and for MLRA (1978; 2001; 2006) in local holdings.  Not sure about lab data archives, Henry Ferguson or Larry West can confirm.  "},{"$f":"VLOOKUP(B214,'LOC FINAL with new Themes'!A:M,12,0)","v":"? the Lab Characterization Data is also known as the “NCSS Characterization Database”\nAdded Common Resource Area geographic database (CRA)."},{"$f":"VLOOKUP(B214,'LOC FINAL with new Themes'!A:M,13,0)","v":"P"}]
["Soil Survey Geographic Database (SSURGO)","Soil Survey Geographic Database (SSURGO)","Soil Survey Geographic Database (SSURGO)","Soil Survey Geographic Database (SSURGO)","Soils ","USDA-NRCS","David Hoover","David.Hoover@wdc.usda.gov",null,{"$f":"VLOOKUP(B215,'LOC FINAL with new Themes'!A:M,7,0)","v":"undeliverable email- neeed to identify new contact"},{"$f":"VLOOKUP(B215,'LOC FINAL with new Themes'!A:M,8,0)","v":0},{"$f":"VLOOKUP(B215,'LOC FINAL with new Themes'!A:M,9,0)","v":0},{"$f":"VLOOKUP(B215,'LOC FINAL with new Themes'!A:M,10,0)","v":0},{"$f":"VLOOKUP(B215,'LOC FINAL with new Themes'!A:M,11,0)","v":0},{"$f":"VLOOKUP(B215,'LOC FINAL with new Themes'!A:M,12,0)","v":0},{"$f":"VLOOKUP(B215,'LOC FINAL with new Themes'!A:M,13,0)","v":0}]
["U.S. General Soil Map (STATSGO2)","U.S. General Soil Map (STATSGO2)","U.S. General Soil Map (STATSGO2)","U.S. General Soil Map (STATSGO2)","Soils ","USDA-NRCS","David Hoover","David.Hoover@wdc.usda.gov",null,{"$f":"VLOOKUP(B216,'LOC FINAL with new Themes'!A:M,7,0)","v":"undeliverable email- neeed to identify new contact"},{"$f":"VLOOKUP(B216,'LOC FINAL with new Themes'!A:M,8,0)","v":0},{"$f":"VLOOKUP(B216,'LOC FINAL with new Themes'!A:M,9,0)","v":0},{"$f":"VLOOKUP(B216,'LOC FINAL with new Themes'!A:M,10,0)","v":0},{"$f":"VLOOKUP(B216,'LOC FINAL with new Themes'!A:M,11,0)","v":0},{"$f":"VLOOKUP(B216,'LOC FINAL with new Themes'!A:M,12,0)","v":0},{"$f":"VLOOKUP(B216,'LOC FINAL with new Themes'!A:M,13,0)","v":0}]
[null,null,null,{"$f":"SUBTOTAL(3,D212:D216)","v":5},"Soils  Count"]
[null,"Address Range-Feature Name Relationship File","Address Range-Feature Name Relationship File",{"$f":"IF(C218=0,B218,C218)","v":"Address Range-Feature Name Relationship File"},"Transportation ","DOC-Census","Jennifer Holland","Jennifer.L.Holland@census.gov",null,{"$f":"VLOOKUP(B218,'LOC FINAL with new Themes'!A:M,7,0)","v":0},{"$f":"VLOOKUP(B218,'LOC FINAL with new Themes'!A:M,8,0)","v":0},{"$f":"VLOOKUP(B218,'LOC FINAL with new Themes'!A:M,9,0)","v":0},{"$f":"VLOOKUP(B218,'LOC FINAL with new Themes'!A:M,10,0)","v":0},{"$f":"VLOOKUP(B218,'LOC FINAL with new Themes'!A:M,11,0)","v":0},{"$f":"VLOOKUP(B218,'LOC FINAL with new Themes'!A:M,12,0)","v":0},{"$f":"VLOOKUP(B218,'LOC FINAL with new Themes'!A:M,13,0)","v":0}]
[null,"Address Ranges Relationship File","Address Ranges Relationship File","Address Ranges Relationship File","Transportation ","DOC-Census","Jennifer Holland","Jennifer.L.Holland@census.gov",null,{"$f":"VLOOKUP(B219,'LOC FINAL with new Themes'!A:M,7,0)","v":0},{"$f":"VLOOKUP(B219,'LOC FINAL with new Themes'!A:M,8,0)","v":0},{"$f":"VLOOKUP(B219,'LOC FINAL with new Themes'!A:M,9,0)","v":0},{"$f":"VLOOKUP(B219,'LOC FINAL with new Themes'!A:M,10,0)","v":0},{"$f":"VLOOKUP(B219,'LOC FINAL with new Themes'!A:M,11,0)","v":0},{"$f":"VLOOKUP(B219,'LOC FINAL with new Themes'!A:M,12,0)","v":0},{"$f":"VLOOKUP(B219,'LOC FINAL with new Themes'!A:M,13,0)","v":0}]
[null,"All Roads","All Roads","All Roads","Transportation ","DOC-Census","Jennifer Holland","Jennifer.L.Holland@census.gov",null,{"$f":"VLOOKUP(B220,'LOC FINAL with new Themes'!A:M,7,0)","v":0},{"$f":"VLOOKUP(B220,'LOC FINAL with new Themes'!A:M,8,0)","v":0},{"$f":"VLOOKUP(B220,'LOC FINAL with new Themes'!A:M,9,0)","v":0},{"$f":"VLOOKUP(B220,'LOC FINAL with new Themes'!A:M,10,0)","v":0},{"$f":"VLOOKUP(B220,'LOC FINAL with new Themes'!A:M,11,0)","v":0},{"$f":"VLOOKUP(B220,'LOC FINAL with new Themes'!A:M,12,0)","v":0},{"$f":"VLOOKUP(B220,'LOC FINAL with new Themes'!A:M,13,0)","v":0}]
["Inland Electronic Navigation Charts (IENC)","Inland Electronic Navigation Charts (IENC)","Inland Electronic Navigation Charts (IENC)","Inland Electronic Navigation Charts (IENC)","Transportation ","DOD-USACE","Joel Schlagel","Joel.D.Schlagel@erdc.usace.army.mil ",null,{"$f":"VLOOKUP(B221,'LOC FINAL with new Themes'!A:M,7,0)","v":0},{"$f":"VLOOKUP(B221,'LOC FINAL with new Themes'!A:M,8,0)","v":0},{"$f":"VLOOKUP(B221,'LOC FINAL with new Themes'!A:M,9,0)","v":0},{"$f":"VLOOKUP(B221,'LOC FINAL with new Themes'!A:M,10,0)","v":0},{"$f":"VLOOKUP(B221,'LOC FINAL with new Themes'!A:M,11,0)","v":0},{"$f":"VLOOKUP(B221,'LOC FINAL with new Themes'!A:M,12,0)","v":0},{"$f":"VLOOKUP(B221,'LOC FINAL with new Themes'!A:M,13,0)","v":0}]
[null,null,"National Interagency Trails Dataset","National Interagency Trails Dataset","Transportation ","USDA"]
["National Map - Transportation Dataset","National Map - Transportation Dataset","National Transportation Dataset - National Map","National Transportation Dataset - National Map","Transportation ","DOI-USGS","Paul Wiese","pmwiese@usgs.gov",null,{"$f":"VLOOKUP(B223,'LOC FINAL with new Themes'!A:M,7,0)","v":0},{"$f":"VLOOKUP(B223,'LOC FINAL with new Themes'!A:M,8,0)","v":0},{"$f":"VLOOKUP(B223,'LOC FINAL with new Themes'!A:M,9,0)","v":0},{"$f":"VLOOKUP(B223,'LOC FINAL with new Themes'!A:M,10,0)","v":0},{"$f":"VLOOKUP(B223,'LOC FINAL with new Themes'!A:M,11,0)","v":0},{"$f":"VLOOKUP(B223,'LOC FINAL with new Themes'!A:M,12,0)","v":0},{"$f":"VLOOKUP(B223,'LOC FINAL with new Themes'!A:M,13,0)","v":0}]
["NTAD","NTAD","NTAD","NTAD","Transportation ","DOT-BTS","Robert Monniere","robert.monniere@dot.gov",null,{"$f":"VLOOKUP(B224,'LOC FINAL with new Themes'!A:M,7,0)","v":0},{"$f":"VLOOKUP(B224,'LOC FINAL with new Themes'!A:M,8,0)","v":0},{"$f":"VLOOKUP(B224,'LOC FINAL with new Themes'!A:M,9,0)","v":0},{"$f":"VLOOKUP(B224,'LOC FINAL with new Themes'!A:M,10,0)","v":0},{"$f":"VLOOKUP(B224,'LOC FINAL with new Themes'!A:M,11,0)","v":0},{"$f":"VLOOKUP(B224,'LOC FINAL with new Themes'!A:M,12,0)","v":0},{"$f":"VLOOKUP(B224,'LOC FINAL with new Themes'!A:M,13,0)","v":0}]
[null,null,"NTAD (airports)","NTAD (airports)","Transportation ","DOT-BTS"]
[null,null,"NTAD (Rail)","NTAD (Rail)","Transportation ","DOT-BTS"]
["NTAD (TransitLines) ","NTAD (TransitLines) ","NTAD (TransitLines) ","NTAD (TransitLines) ","Transportation ","DOT-BTS","Robert Monniere ","robert.monniere@dot.gov \n",null,{"$f":"VLOOKUP(B227,'LOC FINAL with new Themes'!A:M,7,0)","v":0},{"$f":"VLOOKUP(B227,'LOC FINAL with new Themes'!A:M,8,0)","v":0},{"$f":"VLOOKUP(B227,'LOC FINAL with new Themes'!A:M,9,0)","v":0},{"$f":"VLOOKUP(B227,'LOC FINAL with new Themes'!A:M,10,0)","v":0},{"$f":"VLOOKUP(B227,'LOC FINAL with new Themes'!A:M,11,0)","v":0},{"$f":"VLOOKUP(B227,'LOC FINAL with new Themes'!A:M,12,0)","v":0},{"$f":"VLOOKUP(B227,'LOC FINAL with new Themes'!A:M,13,0)","v":0}]
["NTAD (TransitStation) ","NTAD (TransitStation) ","NTAD (TransitStation) ","NTAD (TransitStation) ","Transportation ","DOT-BTS","Robert Monniere ","robert.monniere@dot.gov ",null,{"$f":"VLOOKUP(B228,'LOC FINAL with new Themes'!A:M,7,0)","v":0},{"$f":"VLOOKUP(B228,'LOC FINAL with new Themes'!A:M,8,0)","v":0},{"$f":"VLOOKUP(B228,'LOC FINAL with new Themes'!A:M,9,0)","v":0},{"$f":"VLOOKUP(B228,'LOC FINAL with new Themes'!A:M,10,0)","v":0},{"$f":"VLOOKUP(B228,'LOC FINAL with new Themes'!A:M,11,0)","v":0},{"$f":"VLOOKUP(B228,'LOC FINAL with new Themes'!A:M,12,0)","v":0},{"$f":"VLOOKUP(B228,'LOC FINAL with new Themes'!A:M,13,0)","v":0}]
[null,"Primary and Secondary Roads","Primary and Secondary Roads",{"$f":"IF(C229=0,#REF!,C229)","v":"Primary and Secondary Roads"},"Transportation ","DOC-Census","Jennifer Holland","Jennifer.L.Holland@census.gov",null,{"$f":"VLOOKUP(B229,'LOC FINAL with new Themes'!A:M,7,0)","v":0},{"$f":"VLOOKUP(B229,'LOC FINAL with new Themes'!A:M,8,0)","v":0},{"$f":"VLOOKUP(B229,'LOC FINAL with new Themes'!A:M,9,0)","v":0},{"$f":"VLOOKUP(B229,'LOC FINAL with new Themes'!A:M,10,0)","v":0},{"$f":"VLOOKUP(B229,'LOC FINAL with new Themes'!A:M,11,0)","v":0},{"$f":"VLOOKUP(B229,'LOC FINAL with new Themes'!A:M,12,0)","v":0},{"$f":"VLOOKUP(B229,'LOC FINAL with new Themes'!A:M,13,0)","v":0}]
[null,"Primary Roads","Primary Roads",{"$f":"IF(C230=0,B230,C230)","v":"Primary Roads"},"Transportation ","DOC-Census","Jennifer Holland","Jennifer.L.Holland@census.gov",null,{"$f":"VLOOKUP(B230,'LOC FINAL with new Themes'!A:M,7,0)","v":0},{"$f":"VLOOKUP(B230,'LOC FINAL with new Themes'!A:M,8,0)","v":0},{"$f":"VLOOKUP(B230,'LOC FINAL with new Themes'!A:M,9,0)","v":0},{"$f":"VLOOKUP(B230,'LOC FINAL with new Themes'!A:M,10,0)","v":0},{"$f":"VLOOKUP(B230,'LOC FINAL with new Themes'!A:M,11,0)","v":0},{"$f":"VLOOKUP(B230,'LOC FINAL with new Themes'!A:M,12,0)","v":0},{"$f":"VLOOKUP(B230,'LOC FINAL with new Themes'!A:M,13,0)","v":0}]
["TIGER (Roads/Rail)","TIGER (Roads/Rail)",null,{"$f":"IF(C231=0,B231,C231)","v":"TIGER (Roads/Rail)"},"Transportation ","DOC-Census","Randy Fusaro","randy.j.fusaro@census.gov",null,{"$f":"VLOOKUP(B231,'LOC FINAL with new Themes'!A:M,7,0)","v":0},{"$f":"VLOOKUP(B231,'LOC FINAL with new Themes'!A:M,8,0)","v":0},{"$f":"VLOOKUP(B231,'LOC FINAL with new Themes'!A:M,9,0)","v":0},{"$f":"VLOOKUP(B231,'LOC FINAL with new Themes'!A:M,10,0)","v":0},{"$f":"VLOOKUP(B231,'LOC FINAL with new Themes'!A:M,11,0)","v":0},{"$f":"VLOOKUP(B231,'LOC FINAL with new Themes'!A:M,12,0)","v":0},{"$f":"VLOOKUP(B231,'LOC FINAL with new Themes'!A:M,13,0)","v":0}]
[null,"Traffic Analysis Zone (Census 2000)","Traffic Analysis Zone (Census 2000)",{"$f":"IF(C232=0,B232,C232)","v":"Traffic Analysis Zone (Census 2000)"},"Transportation ","DOC-Census","Jennifer Holland","Jennifer.L.Holland@census.gov",null,{"$f":"VLOOKUP(B232,'LOC FINAL with new Themes'!A:M,7,0)","v":0},{"$f":"VLOOKUP(B232,'LOC FINAL with new Themes'!A:M,8,0)","v":0},{"$f":"VLOOKUP(B232,'LOC FINAL with new Themes'!A:M,9,0)","v":0},{"$f":"VLOOKUP(B232,'LOC FINAL with new Themes'!A:M,10,0)","v":0},{"$f":"VLOOKUP(B232,'LOC FINAL with new Themes'!A:M,11,0)","v":0},{"$f":"VLOOKUP(B232,'LOC FINAL with new Themes'!A:M,12,0)","v":0},{"$f":"VLOOKUP(B232,'LOC FINAL with new Themes'!A:M,13,0)","v":0}]
[null,null,null,{"$f":"SUBTOTAL(3,D218:D232)","v":15},"Transportation  Count"]
[null,null,"Pipelines",{"$f":"IF(C234=0,B234,C234)","v":"Pipelines"},"Utilities ","DOI-BOEM","Doug Vandegraft","Doug.Vandegraft@boem.gov"]
[null,null,"Platforms",{"$f":"IF(C235=0,B235,C235)","v":"Platforms"},"Utilities ","DOI-MMS","Doug Vandegraft","Doug.Vandegraft@boem.gov"]
[null,null,null,{"$f":"SUBTOTAL(3,D234:D235)","v":2},"Utilities  Count"]
[null,"Area Hydrography (2010 Census)","Area Hydrography (2010 Census)",{"$f":"IF(C237=0,B237,C237)","v":"Area Hydrography (2010 Census)"},"Water -- Inland","DOC-Census","Jennifer Holland","Jennifer.L.Holland@census.gov",null,{"$f":"VLOOKUP(B237,'LOC FINAL with new Themes'!A:M,7,0)","v":0},{"$f":"VLOOKUP(B237,'LOC FINAL with new Themes'!A:M,8,0)","v":0},{"$f":"VLOOKUP(B237,'LOC FINAL with new Themes'!A:M,9,0)","v":0},{"$f":"VLOOKUP(B237,'LOC FINAL with new Themes'!A:M,10,0)","v":0},{"$f":"VLOOKUP(B237,'LOC FINAL with new Themes'!A:M,11,0)","v":0},{"$f":"VLOOKUP(B237,'LOC FINAL with new Themes'!A:M,12,0)","v":0},{"$f":"VLOOKUP(B237,'LOC FINAL with new Themes'!A:M,13,0)","v":0}]
[null,"Linear Water Features","Linear Water Features","Linear Water Features","Water -- Inland","DOC-Census","Jennifer Holland","Jennifer.L.Holland@census.gov",null,{"$f":"VLOOKUP(B238,'LOC FINAL with new Themes'!A:M,7,0)","v":0},{"$f":"VLOOKUP(B238,'LOC FINAL with new Themes'!A:M,8,0)","v":0},{"$f":"VLOOKUP(B238,'LOC FINAL with new Themes'!A:M,9,0)","v":0},{"$f":"VLOOKUP(B238,'LOC FINAL with new Themes'!A:M,10,0)","v":0},{"$f":"VLOOKUP(B238,'LOC FINAL with new Themes'!A:M,11,0)","v":0},{"$f":"VLOOKUP(B238,'LOC FINAL with new Themes'!A:M,12,0)","v":0},{"$f":"VLOOKUP(B238,'LOC FINAL with new Themes'!A:M,13,0)","v":0}]
["National Hydrography Data Set","National Hydrography Dataset","National Hydrography Dataset - National Map","National Hydrography Dataset - National Map","Water -- Inland","DOI-USGS","Jeff Simley","jdsimley@usgs.gov",null,{"$f":"VLOOKUP(B239,'LOC FINAL with new Themes'!A:M,7,0)","v":0},{"$f":"VLOOKUP(B239,'LOC FINAL with new Themes'!A:M,8,0)","v":0},{"$f":"VLOOKUP(B239,'LOC FINAL with new Themes'!A:M,9,0)","v":0},{"$f":"VLOOKUP(B239,'LOC FINAL with new Themes'!A:M,10,0)","v":0},{"$f":"VLOOKUP(B239,'LOC FINAL with new Themes'!A:M,11,0)","v":0},{"$f":"VLOOKUP(B239,'LOC FINAL with new Themes'!A:M,12,0)","v":0},{"$f":"VLOOKUP(B239,'LOC FINAL with new Themes'!A:M,13,0)","v":0}]
["National Inventory of Dams (NID)","National Inventory of Dams (NID)","National Inventory of Dams (NID)","National Inventory of Dams (NID)","Water -- Inland","DOD-USACE","Rebecca Ragon","Rebecca.Ragon@usace.army.mil ",null,{"$f":"VLOOKUP(B240,'LOC FINAL with new Themes'!A:M,7,0)","v":"One single data set"},{"$f":"VLOOKUP(B240,'LOC FINAL with new Themes'!A:M,8,0)","v":"Yes"},{"$f":"VLOOKUP(B240,'LOC FINAL with new Themes'!A:M,9,0)","v":"Yes"},{"$f":"VLOOKUP(B240,'LOC FINAL with new Themes'!A:M,10,0)","v":"Usually every 2 years"},{"$f":"VLOOKUP(B240,'LOC FINAL with new Themes'!A:M,11,0)","v":"Because the NID is updated every 2 years, we do have archived databased datig back to 1994."},{"$f":"VLOOKUP(B240,'LOC FINAL with new Themes'!A:M,12,0)","v":"The official name is National Inventory of Dams (NID) but I have seen the database referenced as the National Dam Inventory"},{"$f":"VLOOKUP(B240,'LOC FINAL with new Themes'!A:M,13,0)","v":"S"}]
["National Levee Database (NLD)","National Levee Database (NLD)","National Levee Database (NLD)","National Levee Database (NLD)","Water -- Inland","DOD-USACE","Bryan Baker","Bryan.E.Baker@usace.army.mil",null,{"$f":"VLOOKUP(B241,'LOC FINAL with new Themes'!A:M,7,0)","v":0},{"$f":"VLOOKUP(B241,'LOC FINAL with new Themes'!A:M,8,0)","v":0},{"$f":"VLOOKUP(B241,'LOC FINAL with new Themes'!A:M,9,0)","v":0},{"$f":"VLOOKUP(B241,'LOC FINAL with new Themes'!A:M,10,0)","v":0},{"$f":"VLOOKUP(B241,'LOC FINAL with new Themes'!A:M,11,0)","v":0},{"$f":"VLOOKUP(B241,'LOC FINAL with new Themes'!A:M,12,0)","v":0},{"$f":"VLOOKUP(B241,'LOC FINAL with new Themes'!A:M,13,0)","v":0}]
[null,null,"National Water Information System (NWIS)- Stream Gage Network","National Water Information System (NWIS)- Stream Gage Locations","Water -- Inland","DOI-USGS"]
[null,null,"National Water Information System (NWIS)- Water Quality Monitoring Stations","National Water Information System (NWIS)- Water Quality Monitoring Stations Locations","Water -- Inland","DOI-USGS"]
["National Wetlands Inventory (NWI) ","National Wetlands Inventory (NWI) ","National Wetlands Inventory (NWI) ","National Wetlands Inventory (NWI) ","Water -- Inland","DOI-FWS","Tom Dahl  ","tom_dahl@fws.gov\n",null,{"$f":"VLOOKUP(B244,'LOC FINAL with new Themes'!A:M,7,0)","v":0},{"$f":"VLOOKUP(B244,'LOC FINAL with new Themes'!A:M,8,0)","v":0},{"$f":"VLOOKUP(B244,'LOC FINAL with new Themes'!A:M,9,0)","v":0},{"$f":"VLOOKUP(B244,'LOC FINAL with new Themes'!A:M,10,0)","v":0},{"$f":"VLOOKUP(B244,'LOC FINAL with new Themes'!A:M,11,0)","v":0},{"$f":"VLOOKUP(B244,'LOC FINAL with new Themes'!A:M,12,0)","v":0},{"$f":"VLOOKUP(B244,'LOC FINAL with new Themes'!A:M,13,0)","v":0}]
[null,"Topological Faces-Area Hydrography Relationship File","Topological Faces-Area Hydrography Relationship File","Topological Faces-Area Hydrography Relationship File","Water -- Inland","DOC-Census","Jennifer Holland","Jennifer.L.Holland@census.gov",null,{"$f":"VLOOKUP(B245,'LOC FINAL with new Themes'!A:M,7,0)","v":0},{"$f":"VLOOKUP(B245,'LOC FINAL with new Themes'!A:M,8,0)","v":0},{"$f":"VLOOKUP(B245,'LOC FINAL with new Themes'!A:M,9,0)","v":0},{"$f":"VLOOKUP(B245,'LOC FINAL with new Themes'!A:M,10,0)","v":0},{"$f":"VLOOKUP(B245,'LOC FINAL with new Themes'!A:M,11,0)","v":0},{"$f":"VLOOKUP(B245,'LOC FINAL with new Themes'!A:M,12,0)","v":0},{"$f":"VLOOKUP(B245,'LOC FINAL with new Themes'!A:M,13,0)","v":0}]
["Watershed Boundary Data Set (WBD)  ","Watershed Boundary Dataset (WBD)  ","Watershed Boundary Dataset (WBD)  ","Watershed Boundary Dataset (WBD)  ","Water -- Inland","DOI-USGS","Karen Hanson","khanson@usgs.gov",null,{"$f":"VLOOKUP(B246,'LOC FINAL with new Themes'!A:M,7,0)","v":"one set with nested hierarchy of six different levels within it (regions, subdivided into four, six and twelve digits), POC and data manager; continually updated; co-managed with NRCS and they archive it; USGS in Denver will serve it; All transactions are archived in versions in the database as they happen. Data from any moment in time can be captured with a simple query. The database is replicated daily to Rolla, MO servers. The database is stored on a SAN with three tier redundancy.All changes to the database are stored on separate disks and once they reach a certain size, they are copied over to a server to be written to tape. Weekly, the entire database (NHD, with WBD) is written to tape.Monthly, the tapes are taken off site for storage."},{"$f":"VLOOKUP(B246,'LOC FINAL with new Themes'!A:M,8,0)","v":0},{"$f":"VLOOKUP(B246,'LOC FINAL with new Themes'!A:M,9,0)","v":0},{"$f":"VLOOKUP(B246,'LOC FINAL with new Themes'!A:M,10,0)","v":0},{"$f":"VLOOKUP(B246,'LOC FINAL with new Themes'!A:M,11,0)","v":0},{"$f":"VLOOKUP(B246,'LOC FINAL with new Themes'!A:M,12,0)","v":0},{"$f":"VLOOKUP(B246,'LOC FINAL with new Themes'!A:M,13,0)","v":"S"}]
[null,null,null,{"$f":"SUBTOTAL(3,D237:D246)","v":10},"Water -- Inland Count"]
[null,null,"Coastal Barrier Resource System",{"$f":"IF(C248=0,B248,C248)","v":"Coastal Barrier Resource System"},"Water -- Oceans and Coasts ","DOI-FWS"]
[null,null,"Coastal Change Analysis Program (C-CAP) Land Cover and Land Change Imagery","Coastal Change Analysis Program (C-CAP) Land Cover and Land Change Imagery","Water -- Oceans and Coasts ","DOC-NOAA","Nate Herold","nate.herold@noaa.gov"]
["Continental Shelf Boundary Data","Continental Shelf Boundary Data","Continental Shelf Boundary Data","Continental Shelf Boundary Data","Water -- Oceans and Coasts ","DOI-BOEM","Doug Vandegraft","Doug.Vandegraft@boem.gov",null,{"$f":"VLOOKUP(B250,'LOC FINAL with new Themes'!A:M,7,0)","v":"undeliverable email- neeed to identify new contact"},{"$f":"VLOOKUP(B250,'LOC FINAL with new Themes'!A:M,8,0)","v":0},{"$f":"VLOOKUP(B250,'LOC FINAL with new Themes'!A:M,9,0)","v":0},{"$f":"VLOOKUP(B250,'LOC FINAL with new Themes'!A:M,10,0)","v":0},{"$f":"VLOOKUP(B250,'LOC FINAL with new Themes'!A:M,11,0)","v":0},{"$f":"VLOOKUP(B250,'LOC FINAL with new Themes'!A:M,12,0)","v":0},{"$f":"VLOOKUP(B250,'LOC FINAL with new Themes'!A:M,13,0)","v":0}]
[null,null,"National Data Buoy Center (NDBC) Recent and Historical Data","National Data Buoy Center (NDBC) Recent and Historical Data","Water -- Oceans and Coasts ","DOC-NOAA"]
[null,null,"NOAA National Shoreline","NOAA National Shoreline","Water -- Oceans and Coasts ","DOC-NOAA","Doug Graham","Doug.Graham@noaa.gov"]
["NOAA Nautical Charts","NOAA Nautical Charts","NOAA's Nautical Chart Products","NOAA's Nautical Chart Products","Water -- Oceans and Coasts ","DOC-NOAA","Meredith Westington","meredith.westington@noaa.gov",null,{"$f":"VLOOKUP(B253,'LOC FINAL with new Themes'!A:M,7,0)","v":0},{"$f":"VLOOKUP(B253,'LOC FINAL with new Themes'!A:M,8,0)","v":0},{"$f":"VLOOKUP(B253,'LOC FINAL with new Themes'!A:M,9,0)","v":0},{"$f":"VLOOKUP(B253,'LOC FINAL with new Themes'!A:M,10,0)","v":0},{"$f":"VLOOKUP(B253,'LOC FINAL with new Themes'!A:M,11,0)","v":0},{"$f":"VLOOKUP(B253,'LOC FINAL with new Themes'!A:M,12,0)","v":0},{"$f":"VLOOKUP(B253,'LOC FINAL with new Themes'!A:M,13,0)","v":0}]
[null,null,"Non-Projected Boundaries","Non-Projected Boundaries","Water -- Oceans and Coasts ","DOI-BOEM","Doug Vandegraft","Doug.Vandegraft@boem.gov"]
[null,null,"Projected Boundaries","Projected Boundaries","Water -- Oceans and Coasts ","DOI-BOEM","Doug Vandegraft","Doug.Vandegraft@boem.gov"]
[null,null,"U.S. Marine Protected Areas Boundaries","U.S. Marine Protected Areas Boundaries","Water -- Oceans and Coasts ","DOC-NOAA"]
[null,null,"U.S. Maritime Zones/Boundaries","U.S. Maritime Zones/Boundaries","Water -- Oceans and Coasts ","DOC-NOAA","Meredith Westington","meredith.westington@noaa.gov"]
[null,null,null,{"$f":"SUBTOTAL(3,D248:D257)","v":10},"Water -- Oceans and Coasts  Count"]
[null,null,null,{"$f":"SUBTOTAL(3,D2:D257)","v":238},"Grand Count"]

{"sheet":"4-18-2012","index":21,"n_rows":261,"n_cols":15,"rows_kept":261,"cut":false,"hidden":true,"merged":[]}
["ORIGINAL (beginning of 2011)","LOC FINAL (October 2011)","NGDA List (October 2011)","FINAL List (November 2011)","Theme","Agency","Dataset Manager","Email","Q1 How many data set(s) do you have? It is a single set or multiple sets? ","Q2 Are you a data set manager?","Q3 Are you the POC for transferring the data set and/or for information about the data set?","Q4 How often is the data set updated?","Q5 Is there an archive/backup of the data set or do you maintain an archived copy of it? If yes, how far back do you maintain a copy? Is it easily accessible?","Q6 Does the data set go by a different name or is it referred to internally by another descriptive name?","M\nP\nS"]
[null,null,"Critical Habitat ",{"$f":"IF(C2=0,B2,C2)","v":"Critical Habitat "},"Biota","DOI-FWS"]
[null,null,"Current Range for listed species ","Current Range for listed species ","Biota","DOI-FWS"]
["ECOMAP Data Sets (Ecological Subregions: Sections and Subsections for the Conterminous United States ) ","ECOMAP Datasets (Ecological Subregions: Sections and Subsections for the Conterminous United States ) ","ECOMAP Datasets (Ecological Subregions: Sections and Subsections for the Conterminous United States ) ","ECOMAP Datasets (Ecological Subregions: Sections and Subsections for the Conterminous United States ) ","Biota","USDA-FS","David T. Cleland","dcleland@fs.fed.us",{"$f":"VLOOKUP(B4,'LOC FINAL with new Themes'!A:M,7,0)","v":"One, single set"},{"$f":"VLOOKUP(B4,'LOC FINAL with new Themes'!A:M,8,0)","v":"Yes"},{"$f":"VLOOKUP(B4,'LOC FINAL with new Themes'!A:M,9,0)","v":"Yes"},{"$f":"VLOOKUP(B4,'LOC FINAL with new Themes'!A:M,10,0)","v":"Maps are updated on a 10-year cycle"},{"$f":"VLOOKUP(B4,'LOC FINAL with new Themes'!A:M,11,0)","v":"The data is housed at and served by the Forest Service geodata portal, and is easily accessible.  The web address is: http://fsgeodata.fs.fed.us/other_resources/ecosubregions.html "},{"$f":"VLOOKUP(B4,'LOC FINAL with new Themes'!A:M,12,0)","v":"?   Internally, the data is named ECOMAP or the National Hierarchy of Ecological Units. "},{"$f":"VLOOKUP(B4,'LOC FINAL with new Themes'!A:M,13,0)","v":"S"}]
[null,null,"Endangered Species (Threatened and Endangered Species System)","Endangered Species (Threatened and Endangered Species System)","Biota","DOI-FWS"]
["Env Sens Index Maps - classified shoreline","Env Sens Index Maps - classified shoreline","Environmental Sensitivity Index (ESI) Data and Maps","Environmental Sensitivity Index (ESI) Data and Maps","Biota","DOC-NOAA","Jill Petersen","jill.petersen@noaa.gov",{"$f":"VLOOKUP(B6,'LOC FINAL with new Themes'!A:M,7,0)","v":"There are approximately 70 different atlases. There are a few that are still not available in a GIS format, (approx 7 of the approx 70!) - these are available as the hard copy product and as PDFs (scanned). The remaining atlases are available in multiple GIS formats - Arc Export files, Geodatabase with an ArcMap map document complete with all relates established and properly symbolized, Shape files with an ArcView 3.x project, a free ESI viewer that allows viewing, queries and printing (in house mapping program and filemaker pro) as well as PDF format and the hard copy product. These can be downloaded from http://response.restoration.noaa.gov/esi_download This page is in progress, but should be complete fairly quickly.\n\n"},{"$f":"VLOOKUP(B6,'LOC FINAL with new Themes'!A:M,8,0)","v":"Yes"},{"$f":"VLOOKUP(B6,'LOC FINAL with new Themes'!A:M,9,0)","v":"Yes "},{"$f":"VLOOKUP(B6,'LOC FINAL with new Themes'!A:M,10,0)","v":"- High resolution products have no defined update schedule.  TBD by geog/project."},{"$f":"VLOOKUP(B6,'LOC FINAL with new Themes'!A:M,11,0)","v":"Yes and no. We have archives of all the digital data as well as all the PDFs (scanned or produced with the digital data map comps). Many of the hard copy atlases from the first round of ESI maps were sent to the Library of Commerce. Others I have kept, but no very organized situation. However, we have all of the historic PDFs which are an exact duplicate of the hard copy atlas, so that is something. Historic data is going to be served from the above link as well. That will be added as the current data sets are completed."},{"$f":"VLOOKUP(B6,'LOC FINAL with new Themes'!A:M,12,0)","v":"ESI is the common abbreviation for these maps. Other than that, Environmental Sensitivity Index Maps, Shoreline Sensitivity maps, Environmental Sensitivity maps..... These maps have the classified shoreline, as well as summaries of biological and human use resource particularly sensitive to oiling. "},{"$f":"VLOOKUP(B6,'LOC FINAL with new Themes'!A:M,13,0)","v":"M "}]
["GAP Program Dataset","GAP Program Dataset","GAP Program Dataset","GAP Program Dataset","Biota","DOI-USGS","Kevin Gergely","gergely@usgs.gov",{"$f":"VLOOKUP(B7,'LOC FINAL with new Themes'!A:M,7,0)","v":"POC; multiple data sets in single location, building three fundamental data layers, two are national (protected areas, land cover dataset); backup; six months, annually)"},{"$f":"VLOOKUP(B7,'LOC FINAL with new Themes'!A:M,8,0)","v":0},{"$f":"VLOOKUP(B7,'LOC FINAL with new Themes'!A:M,9,0)","v":0},{"$f":"VLOOKUP(B7,'LOC FINAL with new Themes'!A:M,10,0)","v":0},{"$f":"VLOOKUP(B7,'LOC FINAL with new Themes'!A:M,11,0)","v":0},{"$f":"VLOOKUP(B7,'LOC FINAL with new Themes'!A:M,12,0)","v":0},{"$f":"VLOOKUP(B7,'LOC FINAL with new Themes'!A:M,13,0)","v":"P"}]
["National Standardized Ecosystems Dataset","National Standardized Ecosystems Dataset","National Standardized Ecosystems Dataset","National Standardized Ecosystems Dataset","Biota","DOI-USGS","Roger Sayre","rsayre@usgs.gov",{"$f":"VLOOKUP(B8,'LOC FINAL with new Themes'!A:M,7,0)","v":0},{"$f":"VLOOKUP(B8,'LOC FINAL with new Themes'!A:M,8,0)","v":0},{"$f":"VLOOKUP(B8,'LOC FINAL with new Themes'!A:M,9,0)","v":0},{"$f":"VLOOKUP(B8,'LOC FINAL with new Themes'!A:M,10,0)","v":0},{"$f":"VLOOKUP(B8,'LOC FINAL with new Themes'!A:M,11,0)","v":0},{"$f":"VLOOKUP(B8,'LOC FINAL with new Themes'!A:M,12,0)","v":0},{"$f":"VLOOKUP(B8,'LOC FINAL with new Themes'!A:M,13,0)","v":0}]
[null,null,"Recovery Range for listed species ","Recovery Range for listed species ","Biota","DOI-FWS"]
[null,null,"Section 7 Range for listed species ","Section 7 Range for listed species ","Biota","DOI-FWS"]
["Biomes, Ecoregions","Biomes, Ecoregions",null,"Biomes, Ecoregions","Biota ","DOI-USGS","Dan Phillips ","dphillips@usgs.gov",{"$f":"VLOOKUP(B11,'LOC FINAL with new Themes'!A:M,7,0)","v":0},{"$f":"VLOOKUP(B11,'LOC FINAL with new Themes'!A:M,8,0)","v":0},{"$f":"VLOOKUP(B11,'LOC FINAL with new Themes'!A:M,9,0)","v":0},{"$f":"VLOOKUP(B11,'LOC FINAL with new Themes'!A:M,10,0)","v":0},{"$f":"VLOOKUP(B11,'LOC FINAL with new Themes'!A:M,11,0)","v":0},{"$f":"VLOOKUP(B11,'LOC FINAL with new Themes'!A:M,12,0)","v":0},{"$f":"VLOOKUP(B11,'LOC FINAL with new Themes'!A:M,13,0)","v":0}]
["Ecological Services","Ecological Services",null,"Ecological Services","Biota ","DOI-USGS","Dan Phillips ","dphillips@usgs.gov",{"$f":"VLOOKUP(B12,'LOC FINAL with new Themes'!A:M,7,0)","v":0},{"$f":"VLOOKUP(B12,'LOC FINAL with new Themes'!A:M,8,0)","v":0},{"$f":"VLOOKUP(B12,'LOC FINAL with new Themes'!A:M,9,0)","v":0},{"$f":"VLOOKUP(B12,'LOC FINAL with new Themes'!A:M,10,0)","v":0},{"$f":"VLOOKUP(B12,'LOC FINAL with new Themes'!A:M,11,0)","v":0},{"$f":"VLOOKUP(B12,'LOC FINAL with new Themes'!A:M,12,0)","v":0},{"$f":"VLOOKUP(B12,'LOC FINAL with new Themes'!A:M,13,0)","v":0}]
["Habitats","Habitats",null,"Habitats","Biota ","DOI-USGS","Dan Phillips ","dphillips@usgs.gov",{"$f":"VLOOKUP(B13,'LOC FINAL with new Themes'!A:M,7,0)","v":"see protected areas and land cover set; vertebrae species of US being developed (not complete for all species they want to include in it."},{"$f":"VLOOKUP(B13,'LOC FINAL with new Themes'!A:M,8,0)","v":0},{"$f":"VLOOKUP(B13,'LOC FINAL with new Themes'!A:M,9,0)","v":0},{"$f":"VLOOKUP(B13,'LOC FINAL with new Themes'!A:M,10,0)","v":0},{"$f":"VLOOKUP(B13,'LOC FINAL with new Themes'!A:M,11,0)","v":0},{"$f":"VLOOKUP(B13,'LOC FINAL with new Themes'!A:M,12,0)","v":0},{"$f":"VLOOKUP(B13,'LOC FINAL with new Themes'!A:M,13,0)","v":"M"}]
["Invasive Species","Invasive Species",null,"Invasive Species","Biota ","DOI-USGS","Dan Phillips ","dphillips@usgs.gov",{"$f":"VLOOKUP(B14,'LOC FINAL with new Themes'!A:M,7,0)","v":"There are hundreds of datasets that are produced and maintained by the GAP program. Dan is not the data set manager, but I work with the people that maintain and update the datasets and maintains metadata.The data are updated at different intervals, especially now that they have moved more to a regional and national based approach. GAPS data sets presumably archived since 1990s."},{"$f":"VLOOKUP(B14,'LOC FINAL with new Themes'!A:M,8,0)","v":0},{"$f":"VLOOKUP(B14,'LOC FINAL with new Themes'!A:M,9,0)","v":0},{"$f":"VLOOKUP(B14,'LOC FINAL with new Themes'!A:M,10,0)","v":0},{"$f":"VLOOKUP(B14,'LOC FINAL with new Themes'!A:M,11,0)","v":0},{"$f":"VLOOKUP(B14,'LOC FINAL with new Themes'!A:M,12,0)","v":0},{"$f":"VLOOKUP(B14,'LOC FINAL with new Themes'!A:M,13,0)","v":"M"}]
["Species Distribution(amphibians, birds, reptiles, mammals, fishes, plants, etc)","Species Distribution (amphibians, birds, reptiles, mammals, fishes, plants, etc)",null,"Species Distribution (amphibians, birds, reptiles, mammals, fishes, plants, etc)","Biota ","DOI-USGS","Dan Phillips ","dphillips@usgs.gov",{"$f":"VLOOKUP(B15,'LOC FINAL with new Themes'!A:M,7,0)","v":"There are hundreds of datasets that are produced and maintained by the GAP program. Dan is not the data set manager, but I work with the people that maintain and update the datasets and maintains metadata. The data are updated at different intervals, especially now that they have moved more to a regional and national based approach. GAPS data sets presumably archived since 1990s."},{"$f":"VLOOKUP(B15,'LOC FINAL with new Themes'!A:M,8,0)","v":0},{"$f":"VLOOKUP(B15,'LOC FINAL with new Themes'!A:M,9,0)","v":0},{"$f":"VLOOKUP(B15,'LOC FINAL with new Themes'!A:M,10,0)","v":0},{"$f":"VLOOKUP(B15,'LOC FINAL with new Themes'!A:M,11,0)","v":0},{"$f":"VLOOKUP(B15,'LOC FINAL with new Themes'!A:M,12,0)","v":0},{"$f":"VLOOKUP(B15,'LOC FINAL with new Themes'!A:M,13,0)","v":"M"}]
[null,null,null,{"$f":"SUBTOTAL(3,D2:D15)","v":14},"Biota Count"]
["General Land Office","General Land Office","General Land Office",{"$f":"IF(C17=0,B17,C17)","v":"General Land Office"},"Cadastre","DOI-BLM","Juan Palma","juan_palma@blm.gov",{"$f":"VLOOKUP(B17,'LOC FINAL with new Themes'!A:M,7,0)","v":0},{"$f":"VLOOKUP(B17,'LOC FINAL with new Themes'!A:M,8,0)","v":0},{"$f":"VLOOKUP(B17,'LOC FINAL with new Themes'!A:M,9,0)","v":0},{"$f":"VLOOKUP(B17,'LOC FINAL with new Themes'!A:M,10,0)","v":0},{"$f":"VLOOKUP(B17,'LOC FINAL with new Themes'!A:M,11,0)","v":0},{"$f":"VLOOKUP(B17,'LOC FINAL with new Themes'!A:M,12,0)","v":0},{"$f":"VLOOKUP(B17,'LOC FINAL with new Themes'!A:M,13,0)","v":0}]
["Geographic Coordinate Data Base (GCDB)","Geographic Coordinate Data Base (GCDB)",null,"Geographic Coordinate Data Base (GCDB)","Cadastre","DOI-BLM","Don Buhler","don_buhler@blm.gov",{"$f":"VLOOKUP(B18,'LOC FINAL with new Themes'!A:M,7,0)","v":"every agency has its own database; multiple data sets; standard being advanced and put into practice; federal interest is managed with BLM; state and local are authoritative sets for other lands; "},{"$f":"VLOOKUP(B18,'LOC FINAL with new Themes'!A:M,8,0)","v":0},{"$f":"VLOOKUP(B18,'LOC FINAL with new Themes'!A:M,9,0)","v":0},{"$f":"VLOOKUP(B18,'LOC FINAL with new Themes'!A:M,10,0)","v":0},{"$f":"VLOOKUP(B18,'LOC FINAL with new Themes'!A:M,11,0)","v":0},{"$f":"VLOOKUP(B18,'LOC FINAL with new Themes'!A:M,12,0)","v":0},{"$f":"VLOOKUP(B18,'LOC FINAL with new Themes'!A:M,13,0)","v":"M "}]
["LR 2000 - Master Title Plats ","LR 2000 - Master Title Plats ","LR 2000 - Attribute Information","LR 2000 - Attribute Information","Cadastre","DOI-BLM","Jeff Holdren","jeff_holdren@blm.gov",{"$f":"VLOOKUP(B19,'LOC FINAL with new Themes'!A:M,7,0)","v":"listing of sales, rents, agricultural disposal and rights of way cases, group of data sets in one system; Kim Burns, division chief; not archived, there is a backup; Denver office handles"},{"$f":"VLOOKUP(B19,'LOC FINAL with new Themes'!A:M,8,0)","v":0},{"$f":"VLOOKUP(B19,'LOC FINAL with new Themes'!A:M,9,0)","v":0},{"$f":"VLOOKUP(B19,'LOC FINAL with new Themes'!A:M,10,0)","v":0},{"$f":"VLOOKUP(B19,'LOC FINAL with new Themes'!A:M,11,0)","v":0},{"$f":"VLOOKUP(B19,'LOC FINAL with new Themes'!A:M,12,0)","v":0},{"$f":"VLOOKUP(B19,'LOC FINAL with new Themes'!A:M,13,0)","v":"P"}]
["Manual of Surveying Instructions, Data Standards","Manual of Surveying Instructions, Data Standards",null,"Manual of Surveying Instructions, Data Standards","Cadastre","DOI-BLM","Don Buhler","don_buhler@blm.gov",{"$f":"VLOOKUP(B20,'LOC FINAL with new Themes'!A:M,7,0)","v":0},{"$f":"VLOOKUP(B20,'LOC FINAL with new Themes'!A:M,8,0)","v":0},{"$f":"VLOOKUP(B20,'LOC FINAL with new Themes'!A:M,9,0)","v":0},{"$f":"VLOOKUP(B20,'LOC FINAL with new Themes'!A:M,10,0)","v":0},{"$f":"VLOOKUP(B20,'LOC FINAL with new Themes'!A:M,11,0)","v":0},{"$f":"VLOOKUP(B20,'LOC FINAL with new Themes'!A:M,12,0)","v":0},{"$f":"VLOOKUP(B20,'LOC FINAL with new Themes'!A:M,13,0)","v":0}]
["Mineral Estate - Fluids","Mineral Estate - Fluids",null,"Mineral Estate - Fluids","Cadastre","DOI-BLM","Tim Spisak ","tim_spisak@blm.gov",{"$f":"VLOOKUP(B21,'LOC FINAL with new Themes'!A:M,7,0)","v":"mineral leasess, mining claims, rights of way, gases (single data set); BLM-managed lands but managed all federal mineral estate (comprehensive for mineraal estate) some electronic and some not"},{"$f":"VLOOKUP(B21,'LOC FINAL with new Themes'!A:M,8,0)","v":0},{"$f":"VLOOKUP(B21,'LOC FINAL with new Themes'!A:M,9,0)","v":0},{"$f":"VLOOKUP(B21,'LOC FINAL with new Themes'!A:M,10,0)","v":0},{"$f":"VLOOKUP(B21,'LOC FINAL with new Themes'!A:M,11,0)","v":0},{"$f":"VLOOKUP(B21,'LOC FINAL with new Themes'!A:M,12,0)","v":0},{"$f":"VLOOKUP(B21,'LOC FINAL with new Themes'!A:M,13,0)","v":"P"}]
["Mineral Estate - Solids","Mineral Estate - Solids",null,"Mineral Estate - Solids","Cadastre","DOI-BLM","Mitchell Leverette","mitchell_leverette@blm.gov",{"$f":"VLOOKUP(B22,'LOC FINAL with new Themes'!A:M,7,0)","v":"mineral leasess, mining claims, rights of way, gases (single data set); BLM-managed lands but managed all federal mineral estate (comprehensive for mineral estate) some electronic and some not"},{"$f":"VLOOKUP(B22,'LOC FINAL with new Themes'!A:M,8,0)","v":0},{"$f":"VLOOKUP(B22,'LOC FINAL with new Themes'!A:M,9,0)","v":0},{"$f":"VLOOKUP(B22,'LOC FINAL with new Themes'!A:M,10,0)","v":0},{"$f":"VLOOKUP(B22,'LOC FINAL with new Themes'!A:M,11,0)","v":0},{"$f":"VLOOKUP(B22,'LOC FINAL with new Themes'!A:M,12,0)","v":0},{"$f":"VLOOKUP(B22,'LOC FINAL with new Themes'!A:M,13,0)","v":"P"}]
[null,null,"PADUS (Protected Areas Database of the US)","PADUS (Protected Areas Database of the US)","Cadastre","DOI-USGS"]
["Parcels","Parcels","Parcels","Parcels","Cadastre","DOI-BLM","Bob Ader","bob_ader@blm.gov",{"$f":"VLOOKUP(B24,'LOC FINAL with new Themes'!A:M,7,0)","v":"every agency has its own database; multiple data sets; standard being advanced and put into practice; federal interest is managed with BLM; state and local are authoritative sets for other lands; current effort of federal inventory "},{"$f":"VLOOKUP(B24,'LOC FINAL with new Themes'!A:M,8,0)","v":0},{"$f":"VLOOKUP(B24,'LOC FINAL with new Themes'!A:M,9,0)","v":0},{"$f":"VLOOKUP(B24,'LOC FINAL with new Themes'!A:M,10,0)","v":0},{"$f":"VLOOKUP(B24,'LOC FINAL with new Themes'!A:M,11,0)","v":0},{"$f":"VLOOKUP(B24,'LOC FINAL with new Themes'!A:M,12,0)","v":0},{"$f":"VLOOKUP(B24,'LOC FINAL with new Themes'!A:M,13,0)","v":"M "}]
[null,null,"Protractions","Protractions","Cadastre","DOI-BOEM","Doug Vandegraft","Doug.Vandegraft@boem.gov"]
["Surface Estate","Surface Estate",null,"Surface Estate","Cadastre","DOI-BLM","Kim Burns","kim_m_burns@blm.gov",{"$f":"VLOOKUP(B26,'LOC FINAL with new Themes'!A:M,7,0)","v":"lands administered by BLM; other agencies have own system; ownership of lands;  Tim Spisak, division chief; not archived, there is a backup; Denver office handles"},{"$f":"VLOOKUP(B26,'LOC FINAL with new Themes'!A:M,8,0)","v":0},{"$f":"VLOOKUP(B26,'LOC FINAL with new Themes'!A:M,9,0)","v":0},{"$f":"VLOOKUP(B26,'LOC FINAL with new Themes'!A:M,10,0)","v":0},{"$f":"VLOOKUP(B26,'LOC FINAL with new Themes'!A:M,11,0)","v":0},{"$f":"VLOOKUP(B26,'LOC FINAL with new Themes'!A:M,12,0)","v":0},{"$f":"VLOOKUP(B26,'LOC FINAL with new Themes'!A:M,13,0)","v":0}]
["U.S. Official Cadastral Survey Records","U.S. Official Cadastral Survey Records","U.S. Official Cadastral Survey Records","U.S. Official Cadastral Survey Records","Cadastre","DOI-BLM","Don Buhler","don_buhler@blm.gov",{"$f":"VLOOKUP(B27,'LOC FINAL with new Themes'!A:M,7,0)","v":"every agency has its own database; multiple data sets; standard being advanced and put into practice; federal interest is managed with BLM; state and local are authoritative sets for other lands; state offices are scanning these records (survey plats and field notes); CDI (conveyence cards)"},{"$f":"VLOOKUP(B27,'LOC FINAL with new Themes'!A:M,8,0)","v":0},{"$f":"VLOOKUP(B27,'LOC FINAL with new Themes'!A:M,9,0)","v":0},{"$f":"VLOOKUP(B27,'LOC FINAL with new Themes'!A:M,10,0)","v":0},{"$f":"VLOOKUP(B27,'LOC FINAL with new Themes'!A:M,11,0)","v":0},{"$f":"VLOOKUP(B27,'LOC FINAL with new Themes'!A:M,12,0)","v":0},{"$f":"VLOOKUP(B27,'LOC FINAL with new Themes'!A:M,13,0)","v":"M "}]
["U.S. Public Land Survey System","U.S. Public Land Survey System","U.S. Public Land Survey System","U.S. Public Land Survey System","Cadastre","DOI-BLM","Don Buhler","don_buhler@blm.gov",{"$f":"VLOOKUP(B28,'LOC FINAL with new Themes'!A:M,7,0)","v":"only federal agency that administers the PLSS; trying to get it to be logically one data set with different regions. (working copies for nine states in West); keep historical record in data base; schema 2 is the version to look at for archiving some time March 2012"},{"$f":"VLOOKUP(B28,'LOC FINAL with new Themes'!A:M,8,0)","v":0},{"$f":"VLOOKUP(B28,'LOC FINAL with new Themes'!A:M,9,0)","v":0},{"$f":"VLOOKUP(B28,'LOC FINAL with new Themes'!A:M,10,0)","v":0},{"$f":"VLOOKUP(B28,'LOC FINAL with new Themes'!A:M,11,0)","v":0},{"$f":"VLOOKUP(B28,'LOC FINAL with new Themes'!A:M,12,0)","v":0},{"$f":"VLOOKUP(B28,'LOC FINAL with new Themes'!A:M,13,0)","v":"P"}]
[null,null,null,"Coastal National Parks","Cadastre","DOI - NPS","Roger Johnson ","Roger_M_Johnson@nps.gov"]
[null,null,null,"Coastal National Wildlife Refuges","Cadastre","DOI - NPS","Sean Killen","Sean_Killen@fws.gov"]
[null,null,null,"Coastal Indian Lands","Cadastre","DOI - BIA","Richard Moore","Richard.Moore@bia.gov"]
[null,null,null,"Outer Continental Shelf Lease Blocks","Cadastre","DOI - BOEM","Doug Vandegraft","Doug.Vandegraft@boem.gov"]
[null,null,null,"BOEM Active Oil and Gas Leases","Cadastre","DOI - BOEM","Doug Vandegraft","Doug.Vandegraft@boem.gov"]
[null,null,null,{"$f":"SUBTOTAL(3,D17:D28)","v":12},"Cadastre Count"]
["Blended Sea Surface Temperature","Blended Sea Surface Temperature","Blended Sea Surface Temperature",{"$f":"IF(C35=0,B35,C35)","v":"Blended Sea Surface Temperature"},"Climate and Weather ","DOC-NOAA","Viva Banzon","Viva.Banzon@noaa.gov",{"$f":"VLOOKUP(B35,'LOC FINAL with new Themes'!A:M,7,0)","v":0},{"$f":"VLOOKUP(B35,'LOC FINAL with new Themes'!A:M,8,0)","v":0},{"$f":"VLOOKUP(B35,'LOC FINAL with new Themes'!A:M,9,0)","v":0},{"$f":"VLOOKUP(B35,'LOC FINAL with new Themes'!A:M,10,0)","v":0},{"$f":"VLOOKUP(B35,'LOC FINAL with new Themes'!A:M,11,0)","v":0},{"$f":"VLOOKUP(B35,'LOC FINAL with new Themes'!A:M,12,0)","v":0},{"$f":"VLOOKUP(B35,'LOC FINAL with new Themes'!A:M,13,0)","v":0}]
["Geostationary Operational Environmental Satellite (GOES) data (NCDC)","Geostationary Operational Environmental Satellite (GOES) data (NCDC)","Geostationary Operational Environmental Satellite (GOES) data (NCDC)","Geostationary Operational Environmental Satellite (GOES) data (NCDC)","Climate and Weather ","DOC-NOAA","Nancy Ritchey","Nancy.Ritchey@noaa.gov",{"$f":"VLOOKUP(B36,'LOC FINAL with new Themes'!A:M,7,0)","v":"Define 'data set'.  Each spacecraft continuously produces a data stream.  There are multiple sets and the total going back to the late 70s or early 80s numbers in the millions"},{"$f":"VLOOKUP(B36,'LOC FINAL with new Themes'!A:M,8,0)","v":"Yes"},{"$f":"VLOOKUP(B36,'LOC FINAL with new Themes'!A:M,9,0)","v":"Yes"},{"$f":"VLOOKUP(B36,'LOC FINAL with new Themes'!A:M,10,0)","v":"Continuously"},{"$f":"VLOOKUP(B36,'LOC FINAL with new Themes'!A:M,11,0)","v":"There are two active archive centers for these data; one here in Asheville, NC and one in Boulder, CO.  These data go back to the late 70s and all data are on line wither on disc or robotic tape storage"},{"$f":"VLOOKUP(B36,'LOC FINAL with new Themes'!A:M,12,0)","v":"Again, define your terms.  For examples see www.class.noaa.gov - Raw data are listed by satellite (GOES or POES) and then be instrument.  Geophysical products are listed by product name."},{"$f":"VLOOKUP(B36,'LOC FINAL with new Themes'!A:M,13,0)","v":0}]
[null,null,"MODIS-based Atmospheric Products","MODIS-based Atmospheric Products","Climate and Weather ","USDA -FS (Along with USGS)"]
[null,null,"National Doplar Radar Data (NEXRAD)","National Doplar Radar Data (NEXRAD)","Climate and Weather ","DOC-NOAA","Steve DelGreco","stephen.a.delgreco"]
[null,null,"NOAA National Weather Service GIS Data",{"$f":"IF(C39=0,B39,C39)","v":"NOAA National Weather Service GIS Data"},"Climate and Weather ","DOC-NOAA"]
["Parameter-elevation Regressions on Independent Slopes Model (PRISM) Data Sets","Parameter-elevation Regressions on Independent Slopes Model (PRISM) Datasets","Parameter-elevation Regressions on Independent Slopes Model (PRISM) Datasets",{"$f":"IF(C40=0,B40,C40)","v":"Parameter-elevation Regressions on Independent Slopes Model (PRISM) Datasets"},"Climate and Weather ","USDA-NRCS","Jan Curtis","jan.curtis@por.usda.gov",{"$f":"VLOOKUP(B40,'LOC FINAL with new Themes'!A:M,7,0)","v":"info provided via http://www.prism.oregonstate.edu/ and \nhttp://www.nrcs.usda.gov/wps/portal/nrcs/main/?ss=16&navtype=SubNavigation&cid=null&navid=850130000000000&pnavid=850000000000000&position=SubNavigation&ttype=main&pname=USDA%2520NRCS%2520-%2520Natural%2520Resources%2520Conservation%2520Service\n"},{"$f":"VLOOKUP(B40,'LOC FINAL with new Themes'!A:M,8,0)","v":0},{"$f":"VLOOKUP(B40,'LOC FINAL with new Themes'!A:M,9,0)","v":0},{"$f":"VLOOKUP(B40,'LOC FINAL with new Themes'!A:M,10,0)","v":0},{"$f":"VLOOKUP(B40,'LOC FINAL with new Themes'!A:M,11,0)","v":0},{"$f":"VLOOKUP(B40,'LOC FINAL with new Themes'!A:M,12,0)","v":0},{"$f":"VLOOKUP(B40,'LOC FINAL with new Themes'!A:M,13,0)","v":"M"}]
["Polar Operational Environmental Satellite (POES) data (NCDC)","Polar Operational Environmental Satellite (POES) data","Polar Operational Environmental Satellite (POES) data",{"$f":"IF(C41=0,B41,C41)","v":"Polar Operational Environmental Satellite (POES) data"},"Climate and Weather ","DOC-NOAA","John Bates","john.j.bates@noaa.gov",{"$f":"VLOOKUP(B41,'LOC FINAL with new Themes'!A:M,7,0)","v":0},{"$f":"VLOOKUP(B41,'LOC FINAL with new Themes'!A:M,8,0)","v":0},{"$f":"VLOOKUP(B41,'LOC FINAL with new Themes'!A:M,9,0)","v":0},{"$f":"VLOOKUP(B41,'LOC FINAL with new Themes'!A:M,10,0)","v":0},{"$f":"VLOOKUP(B41,'LOC FINAL with new Themes'!A:M,11,0)","v":0},{"$f":"VLOOKUP(B41,'LOC FINAL with new Themes'!A:M,12,0)","v":0},{"$f":"VLOOKUP(B41,'LOC FINAL with new Themes'!A:M,13,0)","v":0}]
[null,null,null,{"$f":"SUBTOTAL(3,D35:D41)","v":7},"Climate and Weather  Count"]
[null,"5-digit ZIP Code Tabulation Area (Census 2000)","5-digit ZIP Code Tabulation Area (Census 2000)",{"$f":"IF(C43=0,B43,C43)","v":"5-digit ZIP Code Tabulation Area (Census 2000)"},"Cultural & Demographic Statistics ","DOC-Census","Jennifer Holland","Jennifer.L.Holland@census.gov",{"$f":"VLOOKUP(B43,'LOC FINAL with new Themes'!A:M,7,0)","v":0},{"$f":"VLOOKUP(B43,'LOC FINAL with new Themes'!A:M,8,0)","v":0},{"$f":"VLOOKUP(B43,'LOC FINAL with new Themes'!A:M,9,0)","v":0},{"$f":"VLOOKUP(B43,'LOC FINAL with new Themes'!A:M,10,0)","v":0},{"$f":"VLOOKUP(B43,'LOC FINAL with new Themes'!A:M,11,0)","v":0},{"$f":"VLOOKUP(B43,'LOC FINAL with new Themes'!A:M,12,0)","v":0},{"$f":"VLOOKUP(B43,'LOC FINAL with new Themes'!A:M,13,0)","v":0}]
["AIR, ANVSA, Hawaiian Homelands Boundaries","AIR, ANVSA, Hawaiian Homelands Boundaries",null,"AIR, ANVSA, Hawaiian Homelands Boundaries","Cultural & Demographic Statistics ","DOC-Census","Randy Fusaro","randy.j.fusaro@census.gov",{"$f":"VLOOKUP(B44,'LOC FINAL with new Themes'!A:M,7,0)","v":0},{"$f":"VLOOKUP(B44,'LOC FINAL with new Themes'!A:M,8,0)","v":0},{"$f":"VLOOKUP(B44,'LOC FINAL with new Themes'!A:M,9,0)","v":0},{"$f":"VLOOKUP(B44,'LOC FINAL with new Themes'!A:M,10,0)","v":0},{"$f":"VLOOKUP(B44,'LOC FINAL with new Themes'!A:M,11,0)","v":0},{"$f":"VLOOKUP(B44,'LOC FINAL with new Themes'!A:M,12,0)","v":0},{"$f":"VLOOKUP(B44,'LOC FINAL with new Themes'!A:M,13,0)","v":0}]
[null,"All Lines (2010 Census)","All Lines (2010 Census)","All Lines (2010 Census)","Cultural & Demographic Statistics ","DOC-Census","Jennifer Holland","Jennifer.L.Holland@census.gov",{"$f":"VLOOKUP(B45,'LOC FINAL with new Themes'!A:M,7,0)","v":0},{"$f":"VLOOKUP(B45,'LOC FINAL with new Themes'!A:M,8,0)","v":0},{"$f":"VLOOKUP(B45,'LOC FINAL with new Themes'!A:M,9,0)","v":0},{"$f":"VLOOKUP(B45,'LOC FINAL with new Themes'!A:M,10,0)","v":0},{"$f":"VLOOKUP(B45,'LOC FINAL with new Themes'!A:M,11,0)","v":0},{"$f":"VLOOKUP(B45,'LOC FINAL with new Themes'!A:M,12,0)","v":0},{"$f":"VLOOKUP(B45,'LOC FINAL with new Themes'!A:M,13,0)","v":0}]
[null,"ANSI codes for  metro/micropolitan areas","ANSI codes for  metro/micropolitan areas","ANSI codes for  metro/micropolitan areas","Cultural & Demographic Statistics ","DOC-Census","Jennifer Holland","Jennifer.L.Holland@census.gov",{"$f":"VLOOKUP(B46,'LOC FINAL with new Themes'!A:M,7,0)","v":0},{"$f":"VLOOKUP(B46,'LOC FINAL with new Themes'!A:M,8,0)","v":0},{"$f":"VLOOKUP(B46,'LOC FINAL with new Themes'!A:M,9,0)","v":0},{"$f":"VLOOKUP(B46,'LOC FINAL with new Themes'!A:M,10,0)","v":0},{"$f":"VLOOKUP(B46,'LOC FINAL with new Themes'!A:M,11,0)","v":0},{"$f":"VLOOKUP(B46,'LOC FINAL with new Themes'!A:M,12,0)","v":0},{"$f":"VLOOKUP(B46,'LOC FINAL with new Themes'!A:M,13,0)","v":0}]
[null,"ANSI codes for congressional districts","ANSI codes for congressional districts","ANSI codes for congressional districts","Cultural & Demographic Statistics ","DOC-Census","Jennifer Holland","Jennifer.L.Holland@census.gov",{"$f":"VLOOKUP(B47,'LOC FINAL with new Themes'!A:M,7,0)","v":0},{"$f":"VLOOKUP(B47,'LOC FINAL with new Themes'!A:M,8,0)","v":0},{"$f":"VLOOKUP(B47,'LOC FINAL with new Themes'!A:M,9,0)","v":0},{"$f":"VLOOKUP(B47,'LOC FINAL with new Themes'!A:M,10,0)","v":0},{"$f":"VLOOKUP(B47,'LOC FINAL with new Themes'!A:M,11,0)","v":0},{"$f":"VLOOKUP(B47,'LOC FINAL with new Themes'!A:M,12,0)","v":0},{"$f":"VLOOKUP(B47,'LOC FINAL with new Themes'!A:M,13,0)","v":0}]
[null,"ANSI codes for counties","ANSI codes for counties","ANSI codes for counties","Cultural & Demographic Statistics ","DOC-Census","Jennifer Holland","Jennifer.L.Holland@census.gov",{"$f":"VLOOKUP(B48,'LOC FINAL with new Themes'!A:M,7,0)","v":0},{"$f":"VLOOKUP(B48,'LOC FINAL with new Themes'!A:M,8,0)","v":0},{"$f":"VLOOKUP(B48,'LOC FINAL with new Themes'!A:M,9,0)","v":0},{"$f":"VLOOKUP(B48,'LOC FINAL with new Themes'!A:M,10,0)","v":0},{"$f":"VLOOKUP(B48,'LOC FINAL with new Themes'!A:M,11,0)","v":0},{"$f":"VLOOKUP(B48,'LOC FINAL with new Themes'!A:M,12,0)","v":0},{"$f":"VLOOKUP(B48,'LOC FINAL with new Themes'!A:M,13,0)","v":0}]
[null,"ANSI codes for states","ANSI codes for states","ANSI codes for states","Cultural & Demographic Statistics ","DOC-Census","Jennifer Holland","Jennifer.L.Holland@census.gov",{"$f":"VLOOKUP(B49,'LOC FINAL with new Themes'!A:M,7,0)","v":0},{"$f":"VLOOKUP(B49,'LOC FINAL with new Themes'!A:M,8,0)","v":0},{"$f":"VLOOKUP(B49,'LOC FINAL with new Themes'!A:M,9,0)","v":0},{"$f":"VLOOKUP(B49,'LOC FINAL with new Themes'!A:M,10,0)","v":0},{"$f":"VLOOKUP(B49,'LOC FINAL with new Themes'!A:M,11,0)","v":0},{"$f":"VLOOKUP(B49,'LOC FINAL with new Themes'!A:M,12,0)","v":0},{"$f":"VLOOKUP(B49,'LOC FINAL with new Themes'!A:M,13,0)","v":0}]
[null,"Block (2010 Census)","Block (2010 Census)","Block (2010 Census)","Cultural & Demographic Statistics ","DOC-Census","Jennifer Holland","Jennifer.L.Holland@census.gov",{"$f":"VLOOKUP(B50,'LOC FINAL with new Themes'!A:M,7,0)","v":0},{"$f":"VLOOKUP(B50,'LOC FINAL with new Themes'!A:M,8,0)","v":0},{"$f":"VLOOKUP(B50,'LOC FINAL with new Themes'!A:M,9,0)","v":0},{"$f":"VLOOKUP(B50,'LOC FINAL with new Themes'!A:M,10,0)","v":0},{"$f":"VLOOKUP(B50,'LOC FINAL with new Themes'!A:M,11,0)","v":0},{"$f":"VLOOKUP(B50,'LOC FINAL with new Themes'!A:M,12,0)","v":0},{"$f":"VLOOKUP(B50,'LOC FINAL with new Themes'!A:M,13,0)","v":0}]
[null,"Block (Census 2000)","Block (Census 2000)","Block (Census 2000)","Cultural & Demographic Statistics ","DOC-Census","Jennifer Holland","Jennifer.L.Holland@census.gov",{"$f":"VLOOKUP(B51,'LOC FINAL with new Themes'!A:M,7,0)","v":0},{"$f":"VLOOKUP(B51,'LOC FINAL with new Themes'!A:M,8,0)","v":0},{"$f":"VLOOKUP(B51,'LOC FINAL with new Themes'!A:M,9,0)","v":0},{"$f":"VLOOKUP(B51,'LOC FINAL with new Themes'!A:M,10,0)","v":0},{"$f":"VLOOKUP(B51,'LOC FINAL with new Themes'!A:M,11,0)","v":0},{"$f":"VLOOKUP(B51,'LOC FINAL with new Themes'!A:M,12,0)","v":0},{"$f":"VLOOKUP(B51,'LOC FINAL with new Themes'!A:M,13,0)","v":0}]
[null,"Block Group (Census 2000)","Block Group (Census 2000)","Block Group (Census 2000)","Cultural & Demographic Statistics ","DOC-Census","Jennifer Holland","Jennifer.L.Holland@census.gov",{"$f":"VLOOKUP(B52,'LOC FINAL with new Themes'!A:M,7,0)","v":0},{"$f":"VLOOKUP(B52,'LOC FINAL with new Themes'!A:M,8,0)","v":0},{"$f":"VLOOKUP(B52,'LOC FINAL with new Themes'!A:M,9,0)","v":0},{"$f":"VLOOKUP(B52,'LOC FINAL with new Themes'!A:M,10,0)","v":0},{"$f":"VLOOKUP(B52,'LOC FINAL with new Themes'!A:M,11,0)","v":0},{"$f":"VLOOKUP(B52,'LOC FINAL with new Themes'!A:M,12,0)","v":0},{"$f":"VLOOKUP(B52,'LOC FINAL with new Themes'!A:M,13,0)","v":0}]
[null,"Block Group (Census 2010)","Block Group (Census 2010)","Block Group (Census 2010)","Cultural & Demographic Statistics ","DOC-Census","Jennifer Holland","Jennifer.L.Holland@census.gov",{"$f":"VLOOKUP(B53,'LOC FINAL with new Themes'!A:M,7,0)","v":0},{"$f":"VLOOKUP(B53,'LOC FINAL with new Themes'!A:M,8,0)","v":0},{"$f":"VLOOKUP(B53,'LOC FINAL with new Themes'!A:M,9,0)","v":0},{"$f":"VLOOKUP(B53,'LOC FINAL with new Themes'!A:M,10,0)","v":0},{"$f":"VLOOKUP(B53,'LOC FINAL with new Themes'!A:M,11,0)","v":0},{"$f":"VLOOKUP(B53,'LOC FINAL with new Themes'!A:M,12,0)","v":0},{"$f":"VLOOKUP(B53,'LOC FINAL with new Themes'!A:M,13,0)","v":0}]
[null,"Census 2000 FIPS 55 Codes","Census 2000 FIPS 55 Codes","Census 2000 FIPS 55 Codes","Cultural & Demographic Statistics ","DOC-Census","Jennifer Holland","Jennifer.L.Holland@census.gov",{"$f":"VLOOKUP(B54,'LOC FINAL with new Themes'!A:M,7,0)","v":0},{"$f":"VLOOKUP(B54,'LOC FINAL with new Themes'!A:M,8,0)","v":0},{"$f":"VLOOKUP(B54,'LOC FINAL with new Themes'!A:M,9,0)","v":0},{"$f":"VLOOKUP(B54,'LOC FINAL with new Themes'!A:M,10,0)","v":0},{"$f":"VLOOKUP(B54,'LOC FINAL with new Themes'!A:M,11,0)","v":0},{"$f":"VLOOKUP(B54,'LOC FINAL with new Themes'!A:M,12,0)","v":0},{"$f":"VLOOKUP(B54,'LOC FINAL with new Themes'!A:M,13,0)","v":0}]
[null,"Census Tract (2010 Census)","Census Tract (2010 Census)","Census Tract (2010 Census)","Cultural & Demographic Statistics ","DOC-Census","Jennifer Holland","Jennifer.L.Holland@census.gov",{"$f":"VLOOKUP(B55,'LOC FINAL with new Themes'!A:M,7,0)","v":0},{"$f":"VLOOKUP(B55,'LOC FINAL with new Themes'!A:M,8,0)","v":0},{"$f":"VLOOKUP(B55,'LOC FINAL with new Themes'!A:M,9,0)","v":0},{"$f":"VLOOKUP(B55,'LOC FINAL with new Themes'!A:M,10,0)","v":0},{"$f":"VLOOKUP(B55,'LOC FINAL with new Themes'!A:M,11,0)","v":0},{"$f":"VLOOKUP(B55,'LOC FINAL with new Themes'!A:M,12,0)","v":0},{"$f":"VLOOKUP(B55,'LOC FINAL with new Themes'!A:M,13,0)","v":0}]
[null,"Census Tract (Census 2000)","Census Tract (Census 2000)","Census Tract (Census 2000)","Cultural & Demographic Statistics ","DOC-Census","Jennifer Holland","Jennifer.L.Holland@census.gov",{"$f":"VLOOKUP(B56,'LOC FINAL with new Themes'!A:M,7,0)","v":0},{"$f":"VLOOKUP(B56,'LOC FINAL with new Themes'!A:M,8,0)","v":0},{"$f":"VLOOKUP(B56,'LOC FINAL with new Themes'!A:M,9,0)","v":0},{"$f":"VLOOKUP(B56,'LOC FINAL with new Themes'!A:M,10,0)","v":0},{"$f":"VLOOKUP(B56,'LOC FINAL with new Themes'!A:M,11,0)","v":0},{"$f":"VLOOKUP(B56,'LOC FINAL with new Themes'!A:M,12,0)","v":0},{"$f":"VLOOKUP(B56,'LOC FINAL with new Themes'!A:M,13,0)","v":0}]
[null,"Combined Statistical Area (2010 Census)","Combined Statistical Area (2010 Census)","Combined Statistical Area (2010 Census)","Cultural & Demographic Statistics ","DOC-Census","Jennifer Holland","Jennifer.L.Holland@census.gov",{"$f":"VLOOKUP(B57,'LOC FINAL with new Themes'!A:M,7,0)","v":0},{"$f":"VLOOKUP(B57,'LOC FINAL with new Themes'!A:M,8,0)","v":0},{"$f":"VLOOKUP(B57,'LOC FINAL with new Themes'!A:M,9,0)","v":0},{"$f":"VLOOKUP(B57,'LOC FINAL with new Themes'!A:M,10,0)","v":0},{"$f":"VLOOKUP(B57,'LOC FINAL with new Themes'!A:M,11,0)","v":0},{"$f":"VLOOKUP(B57,'LOC FINAL with new Themes'!A:M,12,0)","v":0},{"$f":"VLOOKUP(B57,'LOC FINAL with new Themes'!A:M,13,0)","v":0}]
[null,"Congressional District Boundaries",null,"Congressional District Boundaries","Cultural & Demographic Statistics ","DOC-Census","Randy Fusaro","randy.j.fusaro@census.gov",{"$f":"VLOOKUP(B58,'LOC FINAL with new Themes'!A:M,7,0)","v":0},{"$f":"VLOOKUP(B58,'LOC FINAL with new Themes'!A:M,8,0)","v":0},{"$f":"VLOOKUP(B58,'LOC FINAL with new Themes'!A:M,9,0)","v":0},{"$f":"VLOOKUP(B58,'LOC FINAL with new Themes'!A:M,10,0)","v":0},{"$f":"VLOOKUP(B58,'LOC FINAL with new Themes'!A:M,11,0)","v":0},{"$f":"VLOOKUP(B58,'LOC FINAL with new Themes'!A:M,12,0)","v":0},{"$f":"VLOOKUP(B58,'LOC FINAL with new Themes'!A:M,13,0)","v":0}]
["County, place, MCD Boundaries","County, place, MCD Boundaries",null,"County, place, MCD Boundaries","Cultural & Demographic Statistics ","DOC-Census","Randy Fusaro","randy.j.fusaro@census.gov",{"$f":"VLOOKUP(B59,'LOC FINAL with new Themes'!A:M,7,0)","v":0},{"$f":"VLOOKUP(B59,'LOC FINAL with new Themes'!A:M,8,0)","v":0},{"$f":"VLOOKUP(B59,'LOC FINAL with new Themes'!A:M,9,0)","v":0},{"$f":"VLOOKUP(B59,'LOC FINAL with new Themes'!A:M,10,0)","v":0},{"$f":"VLOOKUP(B59,'LOC FINAL with new Themes'!A:M,11,0)","v":0},{"$f":"VLOOKUP(B59,'LOC FINAL with new Themes'!A:M,12,0)","v":0},{"$f":"VLOOKUP(B59,'LOC FINAL with new Themes'!A:M,13,0)","v":0}]
[null,"Elementary School District (2010 Census)","Elementary School District (2010 Census)","Elementary School District (2010 Census)","Cultural & Demographic Statistics ","DOC-Census","Jennifer Holland","Jennifer.L.Holland@census.gov",{"$f":"VLOOKUP(B60,'LOC FINAL with new Themes'!A:M,7,0)","v":0},{"$f":"VLOOKUP(B60,'LOC FINAL with new Themes'!A:M,8,0)","v":0},{"$f":"VLOOKUP(B60,'LOC FINAL with new Themes'!A:M,9,0)","v":0},{"$f":"VLOOKUP(B60,'LOC FINAL with new Themes'!A:M,10,0)","v":0},{"$f":"VLOOKUP(B60,'LOC FINAL with new Themes'!A:M,11,0)","v":0},{"$f":"VLOOKUP(B60,'LOC FINAL with new Themes'!A:M,12,0)","v":0},{"$f":"VLOOKUP(B60,'LOC FINAL with new Themes'!A:M,13,0)","v":0}]
[null,"Elementary School District (Census 2000)","Elementary School District (Census 2000)","Elementary School District (Census 2000)","Cultural & Demographic Statistics ","DOC-Census","Jennifer Holland","Jennifer.L.Holland@census.gov",{"$f":"VLOOKUP(B61,'LOC FINAL with new Themes'!A:M,7,0)","v":0},{"$f":"VLOOKUP(B61,'LOC FINAL with new Themes'!A:M,8,0)","v":0},{"$f":"VLOOKUP(B61,'LOC FINAL with new Themes'!A:M,9,0)","v":0},{"$f":"VLOOKUP(B61,'LOC FINAL with new Themes'!A:M,10,0)","v":0},{"$f":"VLOOKUP(B61,'LOC FINAL with new Themes'!A:M,11,0)","v":0},{"$f":"VLOOKUP(B61,'LOC FINAL with new Themes'!A:M,12,0)","v":0},{"$f":"VLOOKUP(B61,'LOC FINAL with new Themes'!A:M,13,0)","v":0}]
["FIPS/ANSI codes for states, counties, congressional districts & metro/micropolitan areas","FIPS/ANSI codes for states, counties, congressional districts & metro/micropolitan areas",null,"FIPS/ANSI codes for states, counties, congressional districts & metro/micropolitan areas","Cultural & Demographic Statistics ","DOC-Census","Randy Fusaro","randy.j.fusaro@census.gov",{"$f":"VLOOKUP(B62,'LOC FINAL with new Themes'!A:M,7,0)","v":0},{"$f":"VLOOKUP(B62,'LOC FINAL with new Themes'!A:M,8,0)","v":0},{"$f":"VLOOKUP(B62,'LOC FINAL with new Themes'!A:M,9,0)","v":0},{"$f":"VLOOKUP(B62,'LOC FINAL with new Themes'!A:M,10,0)","v":0},{"$f":"VLOOKUP(B62,'LOC FINAL with new Themes'!A:M,11,0)","v":0},{"$f":"VLOOKUP(B62,'LOC FINAL with new Themes'!A:M,12,0)","v":0},{"$f":"VLOOKUP(B62,'LOC FINAL with new Themes'!A:M,13,0)","v":0}]
["Metropolitan/micropolitan area boundaries","Metropolitan/micropolitan area boundaries",null,"Metropolitan/micropolitan area boundaries","Cultural & Demographic Statistics ","DOC-Census","Randy Fusaro","randy.j.fusaro@census.gov",{"$f":"VLOOKUP(B63,'LOC FINAL with new Themes'!A:M,7,0)","v":0},{"$f":"VLOOKUP(B63,'LOC FINAL with new Themes'!A:M,8,0)","v":0},{"$f":"VLOOKUP(B63,'LOC FINAL with new Themes'!A:M,9,0)","v":0},{"$f":"VLOOKUP(B63,'LOC FINAL with new Themes'!A:M,10,0)","v":0},{"$f":"VLOOKUP(B63,'LOC FINAL with new Themes'!A:M,11,0)","v":0},{"$f":"VLOOKUP(B63,'LOC FINAL with new Themes'!A:M,12,0)","v":0},{"$f":"VLOOKUP(B63,'LOC FINAL with new Themes'!A:M,13,0)","v":0}]
[null,"Metropolitan/micropolitan Statistical Area (2010 Census)","Metropolitan/micropolitan Statistical Area (2010 Census)","Metropolitan/micropolitan Statistical Area (2010 Census)","Cultural & Demographic Statistics ","DOC-Census","Jennifer Holland","Jennifer.L.Holland@census.gov",{"$f":"VLOOKUP(B64,'LOC FINAL with new Themes'!A:M,7,0)","v":0},{"$f":"VLOOKUP(B64,'LOC FINAL with new Themes'!A:M,8,0)","v":0},{"$f":"VLOOKUP(B64,'LOC FINAL with new Themes'!A:M,9,0)","v":0},{"$f":"VLOOKUP(B64,'LOC FINAL with new Themes'!A:M,10,0)","v":0},{"$f":"VLOOKUP(B64,'LOC FINAL with new Themes'!A:M,11,0)","v":0},{"$f":"VLOOKUP(B64,'LOC FINAL with new Themes'!A:M,12,0)","v":0},{"$f":"VLOOKUP(B64,'LOC FINAL with new Themes'!A:M,13,0)","v":0}]
["National Center for Health Statistics (Atlas of US Mortality)","National Center for Health Statistics (Atlas of US Mortality)",null,"National Center for Health Statistics (Atlas of US Mortality)","Cultural & Demographic Statistics ","HHS","Gary Anderson","gary.anderson@hhs.gov",{"$f":"VLOOKUP(B65,'LOC FINAL with new Themes'!A:M,7,0)","v":0},{"$f":"VLOOKUP(B65,'LOC FINAL with new Themes'!A:M,8,0)","v":0},{"$f":"VLOOKUP(B65,'LOC FINAL with new Themes'!A:M,9,0)","v":0},{"$f":"VLOOKUP(B65,'LOC FINAL with new Themes'!A:M,10,0)","v":0},{"$f":"VLOOKUP(B65,'LOC FINAL with new Themes'!A:M,11,0)","v":0},{"$f":"VLOOKUP(B65,'LOC FINAL with new Themes'!A:M,12,0)","v":0},{"$f":"VLOOKUP(B65,'LOC FINAL with new Themes'!A:M,13,0)","v":0}]
[null,null,"Oklahoma Tribal Joint Use Areas","Oklahoma Tribal Joint Use Areas","Cultural & Demographic Statistics ","DOC-Census"]
[null,null,"Oklahoma Tribal Statistical Areas","Oklahoma Tribal Statistical Areas","Cultural & Demographic Statistics ","DOC-Census"]
[null,"Public Use Microdata Area (Census 2000)","Public Use Microdata Area (Census 2000)","Public Use Microdata Area (Census 2000)","Cultural & Demographic Statistics ","DOC-Census","Jennifer Holland","Jennifer.L.Holland@census.gov",{"$f":"VLOOKUP(B68,'LOC FINAL with new Themes'!A:M,7,0)","v":0},{"$f":"VLOOKUP(B68,'LOC FINAL with new Themes'!A:M,8,0)","v":0},{"$f":"VLOOKUP(B68,'LOC FINAL with new Themes'!A:M,9,0)","v":0},{"$f":"VLOOKUP(B68,'LOC FINAL with new Themes'!A:M,10,0)","v":0},{"$f":"VLOOKUP(B68,'LOC FINAL with new Themes'!A:M,11,0)","v":0},{"$f":"VLOOKUP(B68,'LOC FINAL with new Themes'!A:M,12,0)","v":0},{"$f":"VLOOKUP(B68,'LOC FINAL with new Themes'!A:M,13,0)","v":0}]
["School District Boundaries","School District Boundaries",null,"School District Boundaries","Cultural & Demographic Statistics ","DOC-Census","Randy Fusaro","randy.j.fusaro@census.gov",{"$f":"VLOOKUP(B69,'LOC FINAL with new Themes'!A:M,7,0)","v":0},{"$f":"VLOOKUP(B69,'LOC FINAL with new Themes'!A:M,8,0)","v":0},{"$f":"VLOOKUP(B69,'LOC FINAL with new Themes'!A:M,9,0)","v":0},{"$f":"VLOOKUP(B69,'LOC FINAL with new Themes'!A:M,10,0)","v":0},{"$f":"VLOOKUP(B69,'LOC FINAL with new Themes'!A:M,11,0)","v":0},{"$f":"VLOOKUP(B69,'LOC FINAL with new Themes'!A:M,12,0)","v":0},{"$f":"VLOOKUP(B69,'LOC FINAL with new Themes'!A:M,13,0)","v":0}]
[null,"Secondary School District (2010 Census)","Secondary School District (2010 Census)","Secondary School District (2010 Census)","Cultural & Demographic Statistics ","DOC-Census","Jennifer Holland","Jennifer.L.Holland@census.gov",{"$f":"VLOOKUP(B70,'LOC FINAL with new Themes'!A:M,7,0)","v":0},{"$f":"VLOOKUP(B70,'LOC FINAL with new Themes'!A:M,8,0)","v":0},{"$f":"VLOOKUP(B70,'LOC FINAL with new Themes'!A:M,9,0)","v":0},{"$f":"VLOOKUP(B70,'LOC FINAL with new Themes'!A:M,10,0)","v":0},{"$f":"VLOOKUP(B70,'LOC FINAL with new Themes'!A:M,11,0)","v":0},{"$f":"VLOOKUP(B70,'LOC FINAL with new Themes'!A:M,12,0)","v":0},{"$f":"VLOOKUP(B70,'LOC FINAL with new Themes'!A:M,13,0)","v":0}]
[null,"Secondary School District (Census 2000)","Secondary School District (Census 2000)","Secondary School District (Census 2000)","Cultural & Demographic Statistics ","DOC-Census","Jennifer Holland","Jennifer.L.Holland@census.gov",{"$f":"VLOOKUP(B71,'LOC FINAL with new Themes'!A:M,7,0)","v":0},{"$f":"VLOOKUP(B71,'LOC FINAL with new Themes'!A:M,8,0)","v":0},{"$f":"VLOOKUP(B71,'LOC FINAL with new Themes'!A:M,9,0)","v":0},{"$f":"VLOOKUP(B71,'LOC FINAL with new Themes'!A:M,10,0)","v":0},{"$f":"VLOOKUP(B71,'LOC FINAL with new Themes'!A:M,11,0)","v":0},{"$f":"VLOOKUP(B71,'LOC FINAL with new Themes'!A:M,12,0)","v":0},{"$f":"VLOOKUP(B71,'LOC FINAL with new Themes'!A:M,13,0)","v":0}]
["State (+ Territories) Boundaries","State (+ Territories) Boundaries",null,"State (+ Territories) Boundaries","Cultural & Demographic Statistics ","DOC-Census","Randy Fusaro","randy.j.fusaro@census.gov",{"$f":"VLOOKUP(B72,'LOC FINAL with new Themes'!A:M,7,0)","v":0},{"$f":"VLOOKUP(B72,'LOC FINAL with new Themes'!A:M,8,0)","v":0},{"$f":"VLOOKUP(B72,'LOC FINAL with new Themes'!A:M,9,0)","v":0},{"$f":"VLOOKUP(B72,'LOC FINAL with new Themes'!A:M,10,0)","v":0},{"$f":"VLOOKUP(B72,'LOC FINAL with new Themes'!A:M,11,0)","v":0},{"$f":"VLOOKUP(B72,'LOC FINAL with new Themes'!A:M,12,0)","v":0},{"$f":"VLOOKUP(B72,'LOC FINAL with new Themes'!A:M,13,0)","v":0}]
["Statistical Area Boundaries (tracts, blocks, UAs, CDPs, etc)","Statistical Area Boundaries (tracts, blocks, UAs, CDPs, etc)",null,"Statistical Area Boundaries (tracts, blocks, UAs, CDPs, etc)","Cultural & Demographic Statistics ","DOC-Census","Randy Fusaro","randy.j.fusaro@census.gov",{"$f":"VLOOKUP(B73,'LOC FINAL with new Themes'!A:M,7,0)","v":0},{"$f":"VLOOKUP(B73,'LOC FINAL with new Themes'!A:M,8,0)","v":0},{"$f":"VLOOKUP(B73,'LOC FINAL with new Themes'!A:M,9,0)","v":0},{"$f":"VLOOKUP(B73,'LOC FINAL with new Themes'!A:M,10,0)","v":0},{"$f":"VLOOKUP(B73,'LOC FINAL with new Themes'!A:M,11,0)","v":0},{"$f":"VLOOKUP(B73,'LOC FINAL with new Themes'!A:M,12,0)","v":0},{"$f":"VLOOKUP(B73,'LOC FINAL with new Themes'!A:M,13,0)","v":0}]
[null,"Super Public Use Microdata Area (Census 2000)","Super Public Use Microdata Area (Census 2000)","Super Public Use Microdata Area (Census 2000)","Cultural & Demographic Statistics ","DOC-Census","Jennifer Holland","Jennifer.L.Holland@census.gov",{"$f":"VLOOKUP(B74,'LOC FINAL with new Themes'!A:M,7,0)","v":0},{"$f":"VLOOKUP(B74,'LOC FINAL with new Themes'!A:M,8,0)","v":0},{"$f":"VLOOKUP(B74,'LOC FINAL with new Themes'!A:M,9,0)","v":0},{"$f":"VLOOKUP(B74,'LOC FINAL with new Themes'!A:M,10,0)","v":0},{"$f":"VLOOKUP(B74,'LOC FINAL with new Themes'!A:M,11,0)","v":0},{"$f":"VLOOKUP(B74,'LOC FINAL with new Themes'!A:M,12,0)","v":0},{"$f":"VLOOKUP(B74,'LOC FINAL with new Themes'!A:M,13,0)","v":0}]
["TIGER* (many statistical boundaries)","TIGER (many statistical boundaries)",null,"TIGER (many statistical boundaries)","Cultural & Demographic Statistics ","DOC-Census","Randy Fusaro","randy.j.fusaro@census.gov",{"$f":"VLOOKUP(B75,'LOC FINAL with new Themes'!A:M,7,0)","v":0},{"$f":"VLOOKUP(B75,'LOC FINAL with new Themes'!A:M,8,0)","v":0},{"$f":"VLOOKUP(B75,'LOC FINAL with new Themes'!A:M,9,0)","v":0},{"$f":"VLOOKUP(B75,'LOC FINAL with new Themes'!A:M,10,0)","v":0},{"$f":"VLOOKUP(B75,'LOC FINAL with new Themes'!A:M,11,0)","v":0},{"$f":"VLOOKUP(B75,'LOC FINAL with new Themes'!A:M,12,0)","v":0},{"$f":"VLOOKUP(B75,'LOC FINAL with new Themes'!A:M,13,0)","v":0}]
[null,"Topological Faces (2010 Census)","Topological Faces (2010 Census)","Topological Faces (2010 Census)","Cultural & Demographic Statistics ","DOC-Census","Jennifer Holland","Jennifer.L.Holland@census.gov",{"$f":"VLOOKUP(B76,'LOC FINAL with new Themes'!A:M,7,0)","v":0},{"$f":"VLOOKUP(B76,'LOC FINAL with new Themes'!A:M,8,0)","v":0},{"$f":"VLOOKUP(B76,'LOC FINAL with new Themes'!A:M,9,0)","v":0},{"$f":"VLOOKUP(B76,'LOC FINAL with new Themes'!A:M,10,0)","v":0},{"$f":"VLOOKUP(B76,'LOC FINAL with new Themes'!A:M,11,0)","v":0},{"$f":"VLOOKUP(B76,'LOC FINAL with new Themes'!A:M,12,0)","v":0},{"$f":"VLOOKUP(B76,'LOC FINAL with new Themes'!A:M,13,0)","v":0}]
[null,"Unified School District (2010 Census)","Unified School District (2010 Census)","Unified School District (2010 Census)","Cultural & Demographic Statistics ","DOC-Census","Jennifer Holland","Jennifer.L.Holland@census.gov",{"$f":"VLOOKUP(B77,'LOC FINAL with new Themes'!A:M,7,0)","v":0},{"$f":"VLOOKUP(B77,'LOC FINAL with new Themes'!A:M,8,0)","v":0},{"$f":"VLOOKUP(B77,'LOC FINAL with new Themes'!A:M,9,0)","v":0},{"$f":"VLOOKUP(B77,'LOC FINAL with new Themes'!A:M,10,0)","v":0},{"$f":"VLOOKUP(B77,'LOC FINAL with new Themes'!A:M,11,0)","v":0},{"$f":"VLOOKUP(B77,'LOC FINAL with new Themes'!A:M,12,0)","v":0},{"$f":"VLOOKUP(B77,'LOC FINAL with new Themes'!A:M,13,0)","v":0}]
[null,"Unified School District (Census 2000)","Unified School District (Census 2000)","Unified School District (Census 2000)","Cultural & Demographic Statistics ","DOC-Census","Jennifer Holland","Jennifer.L.Holland@census.gov",{"$f":"VLOOKUP(B78,'LOC FINAL with new Themes'!A:M,7,0)","v":0},{"$f":"VLOOKUP(B78,'LOC FINAL with new Themes'!A:M,8,0)","v":0},{"$f":"VLOOKUP(B78,'LOC FINAL with new Themes'!A:M,9,0)","v":0},{"$f":"VLOOKUP(B78,'LOC FINAL with new Themes'!A:M,10,0)","v":0},{"$f":"VLOOKUP(B78,'LOC FINAL with new Themes'!A:M,11,0)","v":0},{"$f":"VLOOKUP(B78,'LOC FINAL with new Themes'!A:M,12,0)","v":0},{"$f":"VLOOKUP(B78,'LOC FINAL with new Themes'!A:M,13,0)","v":0}]
[null,"Urban Growth Area (2010 Census)","Urban Growth Area (2010 Census)","Urban Growth Area (2010 Census)","Cultural & Demographic Statistics ","DOC-Census","Jennifer Holland","Jennifer.L.Holland@census.gov",{"$f":"VLOOKUP(B79,'LOC FINAL with new Themes'!A:M,7,0)","v":0},{"$f":"VLOOKUP(B79,'LOC FINAL with new Themes'!A:M,8,0)","v":0},{"$f":"VLOOKUP(B79,'LOC FINAL with new Themes'!A:M,9,0)","v":0},{"$f":"VLOOKUP(B79,'LOC FINAL with new Themes'!A:M,10,0)","v":0},{"$f":"VLOOKUP(B79,'LOC FINAL with new Themes'!A:M,11,0)","v":0},{"$f":"VLOOKUP(B79,'LOC FINAL with new Themes'!A:M,12,0)","v":0},{"$f":"VLOOKUP(B79,'LOC FINAL with new Themes'!A:M,13,0)","v":0}]
[null,"Urban Growth Area (Census 2000)","Urban Growth Area (Census 2000)","Urban Growth Area (Census 2000)","Cultural & Demographic Statistics ","DOC-Census","Jennifer Holland","Jennifer.L.Holland@census.gov",{"$f":"VLOOKUP(B80,'LOC FINAL with new Themes'!A:M,7,0)","v":0},{"$f":"VLOOKUP(B80,'LOC FINAL with new Themes'!A:M,8,0)","v":0},{"$f":"VLOOKUP(B80,'LOC FINAL with new Themes'!A:M,9,0)","v":0},{"$f":"VLOOKUP(B80,'LOC FINAL with new Themes'!A:M,10,0)","v":0},{"$f":"VLOOKUP(B80,'LOC FINAL with new Themes'!A:M,11,0)","v":0},{"$f":"VLOOKUP(B80,'LOC FINAL with new Themes'!A:M,12,0)","v":0},{"$f":"VLOOKUP(B80,'LOC FINAL with new Themes'!A:M,13,0)","v":0}]
[null,"Voting District (2010 Census)","Voting District (2010 Census)","Voting District (2010 Census)","Cultural & Demographic Statistics ","DOC-Census","Jennifer Holland","Jennifer.L.Holland@census.gov",{"$f":"VLOOKUP(B81,'LOC FINAL with new Themes'!A:M,7,0)","v":0},{"$f":"VLOOKUP(B81,'LOC FINAL with new Themes'!A:M,8,0)","v":0},{"$f":"VLOOKUP(B81,'LOC FINAL with new Themes'!A:M,9,0)","v":0},{"$f":"VLOOKUP(B81,'LOC FINAL with new Themes'!A:M,10,0)","v":0},{"$f":"VLOOKUP(B81,'LOC FINAL with new Themes'!A:M,11,0)","v":0},{"$f":"VLOOKUP(B81,'LOC FINAL with new Themes'!A:M,12,0)","v":0},{"$f":"VLOOKUP(B81,'LOC FINAL with new Themes'!A:M,13,0)","v":0}]
[null,"Voting District (Census 2000)","Voting District (Census 2000)","Voting District (Census 2000)","Cultural & Demographic Statistics ","DOC-Census","Jennifer Holland","Jennifer.L.Holland@census.gov",{"$f":"VLOOKUP(B82,'LOC FINAL with new Themes'!A:M,7,0)","v":0},{"$f":"VLOOKUP(B82,'LOC FINAL with new Themes'!A:M,8,0)","v":0},{"$f":"VLOOKUP(B82,'LOC FINAL with new Themes'!A:M,9,0)","v":0},{"$f":"VLOOKUP(B82,'LOC FINAL with new Themes'!A:M,10,0)","v":0},{"$f":"VLOOKUP(B82,'LOC FINAL with new Themes'!A:M,11,0)","v":0},{"$f":"VLOOKUP(B82,'LOC FINAL with new Themes'!A:M,12,0)","v":0},{"$f":"VLOOKUP(B82,'LOC FINAL with new Themes'!A:M,13,0)","v":0}]
["Voting District Boundaries","Voting District Boundaries",null,"Voting District Boundaries","Cultural & Demographic Statistics ","DOC-Census","Randy Fusaro","randy.j.fusaro@census.gov",{"$f":"VLOOKUP(B83,'LOC FINAL with new Themes'!A:M,7,0)","v":0},{"$f":"VLOOKUP(B83,'LOC FINAL with new Themes'!A:M,8,0)","v":0},{"$f":"VLOOKUP(B83,'LOC FINAL with new Themes'!A:M,9,0)","v":0},{"$f":"VLOOKUP(B83,'LOC FINAL with new Themes'!A:M,10,0)","v":0},{"$f":"VLOOKUP(B83,'LOC FINAL with new Themes'!A:M,11,0)","v":0},{"$f":"VLOOKUP(B83,'LOC FINAL with new Themes'!A:M,12,0)","v":0},{"$f":"VLOOKUP(B83,'LOC FINAL with new Themes'!A:M,13,0)","v":0}]
[null,null,null,{"$f":"SUBTOTAL(3,D43:D83)","v":41},"Cultural & Demographic Statistics  Count"]
["Cultural Landscape Boundaries","Cultural Landscape Boundaries","Cultural Landscape Boundaries",{"$f":"IF(C85=0,B85,C85)","v":"Cultural Landscape Boundaries"},"Cultural & Demographic Statistics \nCultural Resources","DOI-NPS","John Knoerl","john_knoerl@nps.gov",{"$f":"VLOOKUP(B85,'LOC FINAL with new Themes'!A:M,7,0)","v":"Feature classes of the cultural resource data model (NPS only, other federal agencies handle it as they decide)"},{"$f":"VLOOKUP(B85,'LOC FINAL with new Themes'!A:M,8,0)","v":"don't want a single centralized data set but focusing on standard approach"},{"$f":"VLOOKUP(B85,'LOC FINAL with new Themes'!A:M,9,0)","v":0},{"$f":"VLOOKUP(B85,'LOC FINAL with new Themes'!A:M,10,0)","v":0},{"$f":"VLOOKUP(B85,'LOC FINAL with new Themes'!A:M,11,0)","v":0},{"$f":"VLOOKUP(B85,'LOC FINAL with new Themes'!A:M,12,0)","v":0},{"$f":"VLOOKUP(B85,'LOC FINAL with new Themes'!A:M,13,0)","v":0}]
["Cultural Resource Survey Boundaries","Cultural Resource Survey Boundaries","Cultural Resource Survey Boundaries","Cultural Resource Survey Boundaries","Cultural & Demographic Statistics \nCultural Resources","DOI-NPS","John Knoerl","john_knoerl@nps.gov",{"$f":"VLOOKUP(B86,'LOC FINAL with new Themes'!A:M,7,0)","v":"Feature classes of the cultural resource data model (NPS only, other federal agencies handle it as they decide)"},{"$f":"VLOOKUP(B86,'LOC FINAL with new Themes'!A:M,8,0)","v":"don't want a single centralized data set but focusing on standard approach"},{"$f":"VLOOKUP(B86,'LOC FINAL with new Themes'!A:M,9,0)","v":0},{"$f":"VLOOKUP(B86,'LOC FINAL with new Themes'!A:M,10,0)","v":0},{"$f":"VLOOKUP(B86,'LOC FINAL with new Themes'!A:M,11,0)","v":0},{"$f":"VLOOKUP(B86,'LOC FINAL with new Themes'!A:M,12,0)","v":0},{"$f":"VLOOKUP(B86,'LOC FINAL with new Themes'!A:M,13,0)","v":0}]
["Ethnographic Resource Boundaries","Ethnographic Resource Boundaries","Ethnographic Resource Boundaries","Ethnographic Resource Boundaries","Cultural & Demographic Statistics \nCultural Resources","DOI-NPS","John Knoerl","john_knoerl@nps.gov",{"$f":"VLOOKUP(B87,'LOC FINAL with new Themes'!A:M,7,0)","v":"Feature classes of the cultural resource data model (NPS only, other federal agencies handle it as they decide)"},{"$f":"VLOOKUP(B87,'LOC FINAL with new Themes'!A:M,8,0)","v":"don't want a single centralized data set but focusing on standard approach"},{"$f":"VLOOKUP(B87,'LOC FINAL with new Themes'!A:M,9,0)","v":0},{"$f":"VLOOKUP(B87,'LOC FINAL with new Themes'!A:M,10,0)","v":0},{"$f":"VLOOKUP(B87,'LOC FINAL with new Themes'!A:M,11,0)","v":0},{"$f":"VLOOKUP(B87,'LOC FINAL with new Themes'!A:M,12,0)","v":0},{"$f":"VLOOKUP(B87,'LOC FINAL with new Themes'!A:M,13,0)","v":0}]
["Historic Buildings Boundaries","Historic Buildings Boundaries","Historic Buildings Boundaries","Historic Buildings Boundaries","Cultural & Demographic Statistics \nCultural Resources","DOI-NPS","John Knoerl","john_knoerl@nps.gov",{"$f":"VLOOKUP(B88,'LOC FINAL with new Themes'!A:M,7,0)","v":"Feature classes of the cultural resource data model (NPS only, other federal agencies handle it as they decide)"},{"$f":"VLOOKUP(B88,'LOC FINAL with new Themes'!A:M,8,0)","v":"don't want a single centralized data set but focusing on standard approach"},{"$f":"VLOOKUP(B88,'LOC FINAL with new Themes'!A:M,9,0)","v":0},{"$f":"VLOOKUP(B88,'LOC FINAL with new Themes'!A:M,10,0)","v":0},{"$f":"VLOOKUP(B88,'LOC FINAL with new Themes'!A:M,11,0)","v":0},{"$f":"VLOOKUP(B88,'LOC FINAL with new Themes'!A:M,12,0)","v":0},{"$f":"VLOOKUP(B88,'LOC FINAL with new Themes'!A:M,13,0)","v":0}]
["Historic Districts Boundaries","Historic Districts Boundaries","Historic Districts Boundaries","Historic Districts Boundaries","Cultural & Demographic Statistics \nCultural Resources","DOI-NPS","John Knoerl","john_knoerl@nps.gov",{"$f":"VLOOKUP(B89,'LOC FINAL with new Themes'!A:M,7,0)","v":"Feature classes of the cultural resource data model (NPS only, other federal agencies handle it as they decide)"},{"$f":"VLOOKUP(B89,'LOC FINAL with new Themes'!A:M,8,0)","v":"don't want a single centralized data set but focusing on standard approach"},{"$f":"VLOOKUP(B89,'LOC FINAL with new Themes'!A:M,9,0)","v":0},{"$f":"VLOOKUP(B89,'LOC FINAL with new Themes'!A:M,10,0)","v":0},{"$f":"VLOOKUP(B89,'LOC FINAL with new Themes'!A:M,11,0)","v":0},{"$f":"VLOOKUP(B89,'LOC FINAL with new Themes'!A:M,12,0)","v":0},{"$f":"VLOOKUP(B89,'LOC FINAL with new Themes'!A:M,13,0)","v":0}]
["Historic Objects Boundaries","Historic Objects Boundaries","Historic Objects Boundaries","Historic Objects Boundaries","Cultural & Demographic Statistics \nCultural Resources","DOI-NPS","John Knoerl","john_knoerl@nps.gov",{"$f":"VLOOKUP(B90,'LOC FINAL with new Themes'!A:M,7,0)","v":"Feature classes of the cultural resource data model (NPS only, other federal agencies handle it as they decide)"},{"$f":"VLOOKUP(B90,'LOC FINAL with new Themes'!A:M,8,0)","v":"don't want a single centralized data set but focusing on standard approach"},{"$f":"VLOOKUP(B90,'LOC FINAL with new Themes'!A:M,9,0)","v":0},{"$f":"VLOOKUP(B90,'LOC FINAL with new Themes'!A:M,10,0)","v":0},{"$f":"VLOOKUP(B90,'LOC FINAL with new Themes'!A:M,11,0)","v":0},{"$f":"VLOOKUP(B90,'LOC FINAL with new Themes'!A:M,12,0)","v":0},{"$f":"VLOOKUP(B90,'LOC FINAL with new Themes'!A:M,13,0)","v":0}]
["Historic Structures Boundaries","Historic Structures Boundaries","Historic Structures Boundaries","Historic Structures Boundaries","Cultural & Demographic Statistics \nCultural Resources","DOI-NPS","John Knoerl","john_knoerl@nps.gov",{"$f":"VLOOKUP(B91,'LOC FINAL with new Themes'!A:M,7,0)","v":"Feature classes of the cultural resource data model (NPS only, other federal agencies handle it as they decide)"},{"$f":"VLOOKUP(B91,'LOC FINAL with new Themes'!A:M,8,0)","v":"don't want a single centralized data set but focusing on standard approach"},{"$f":"VLOOKUP(B91,'LOC FINAL with new Themes'!A:M,9,0)","v":0},{"$f":"VLOOKUP(B91,'LOC FINAL with new Themes'!A:M,10,0)","v":0},{"$f":"VLOOKUP(B91,'LOC FINAL with new Themes'!A:M,11,0)","v":0},{"$f":"VLOOKUP(B91,'LOC FINAL with new Themes'!A:M,12,0)","v":0},{"$f":"VLOOKUP(B91,'LOC FINAL with new Themes'!A:M,13,0)","v":"M "}]
[null,null,"Other Cultural Resource Boundaries","Other Cultural Resource Boundaries","Cultural & Demographic Statistics \nCultural Resources","DOI-NPS"]
[null,null,null,{"$f":"SUBTOTAL(3,D85:D92)","v":8},"Cultural & Demographic Statistics \nCultural Resources Count"]
[null,"Point Landmark (2010 Census)","Point of Landmark (2010 Census)",{"$f":"IF(C94=0,B94,C94)","v":"Point of Landmark (2010 Census)"},"Cultural Resources","DOC-Census","Jennifer Holland","Jennifer.L.Holland@census.gov",{"$f":"VLOOKUP(B94,'LOC FINAL with new Themes'!A:M,7,0)","v":0},{"$f":"VLOOKUP(B94,'LOC FINAL with new Themes'!A:M,8,0)","v":0},{"$f":"VLOOKUP(B94,'LOC FINAL with new Themes'!A:M,9,0)","v":0},{"$f":"VLOOKUP(B94,'LOC FINAL with new Themes'!A:M,10,0)","v":0},{"$f":"VLOOKUP(B94,'LOC FINAL with new Themes'!A:M,11,0)","v":0},{"$f":"VLOOKUP(B94,'LOC FINAL with new Themes'!A:M,12,0)","v":0},{"$f":"VLOOKUP(B94,'LOC FINAL with new Themes'!A:M,13,0)","v":0}]
["Archeological Sites","Archeological Sites","Archeological Sites","Archeological Sites","Cultural Resources ","DOI-NPS","John Knoerl","john_knoerl@nps.gov",{"$f":"VLOOKUP(B95,'LOC FINAL with new Themes'!A:M,7,0)","v":"Feature classes of the cultural resource data model (NPS only, other federal agencies handle it as they decide)"},{"$f":"VLOOKUP(B95,'LOC FINAL with new Themes'!A:M,8,0)","v":"don't want a single centralized data set but focusing on standard approach"},{"$f":"VLOOKUP(B95,'LOC FINAL with new Themes'!A:M,9,0)","v":"National Historic Presrevation Act says state historic preservation office has primary oversight (section 110)"},{"$f":"VLOOKUP(B95,'LOC FINAL with new Themes'!A:M,10,0)","v":0},{"$f":"VLOOKUP(B95,'LOC FINAL with new Themes'!A:M,11,0)","v":0},{"$f":"VLOOKUP(B95,'LOC FINAL with new Themes'!A:M,12,0)","v":0},{"$f":"VLOOKUP(B95,'LOC FINAL with new Themes'!A:M,13,0)","v":0}]
[null,"Area Landmark (2010 Census)","Area Landmark (2010 Census)","Area Landmark (2010 Census)","Cultural Resources ","DOC-Census","Jennifer Holland","Jennifer.L.Holland@census.gov",{"$f":"VLOOKUP(B96,'LOC FINAL with new Themes'!A:M,7,0)","v":0},{"$f":"VLOOKUP(B96,'LOC FINAL with new Themes'!A:M,8,0)","v":0},{"$f":"VLOOKUP(B96,'LOC FINAL with new Themes'!A:M,9,0)","v":0},{"$f":"VLOOKUP(B96,'LOC FINAL with new Themes'!A:M,10,0)","v":0},{"$f":"VLOOKUP(B96,'LOC FINAL with new Themes'!A:M,11,0)","v":0},{"$f":"VLOOKUP(B96,'LOC FINAL with new Themes'!A:M,12,0)","v":0},{"$f":"VLOOKUP(B96,'LOC FINAL with new Themes'!A:M,13,0)","v":0}]
[null,null,"Geographic Names Dataset - National Map","Geographic Names Dataset - National Map","Cultural Resources ","DOI-USGS"]
["National Map - Geographic Names Information System (GNIS)","National Map - Geographic Names Information System (GNIS)",null,"National Map - Geographic Names Information System (GNIS)","Cultural Resources ","DOI-USGS","Lou Yost","lyost@usgs.gov",{"$f":"VLOOKUP(B98,'LOC FINAL with new Themes'!A:M,7,0)","v":"single data set; poc, data managers; daily updated; Denver systems people backup and archive; transfer to NARA also; Gaz vector (internal)"},{"$f":"VLOOKUP(B98,'LOC FINAL with new Themes'!A:M,8,0)","v":0},{"$f":"VLOOKUP(B98,'LOC FINAL with new Themes'!A:M,9,0)","v":0},{"$f":"VLOOKUP(B98,'LOC FINAL with new Themes'!A:M,10,0)","v":0},{"$f":"VLOOKUP(B98,'LOC FINAL with new Themes'!A:M,11,0)","v":0},{"$f":"VLOOKUP(B98,'LOC FINAL with new Themes'!A:M,12,0)","v":0},{"$f":"VLOOKUP(B98,'LOC FINAL with new Themes'!A:M,13,0)","v":"S"}]
[null,"Topological Faces-Area Landmark Relationship File","Topological Faces-Area Landmark Relationship File","Topological Faces-Area Landmark Relationship File","Cultural Resources ","DOC-Census","Jennifer Holland","Jennifer.L.Holland@census.gov",{"$f":"VLOOKUP(B99,'LOC FINAL with new Themes'!A:M,7,0)","v":0},{"$f":"VLOOKUP(B99,'LOC FINAL with new Themes'!A:M,8,0)","v":0},{"$f":"VLOOKUP(B99,'LOC FINAL with new Themes'!A:M,9,0)","v":0},{"$f":"VLOOKUP(B99,'LOC FINAL with new Themes'!A:M,10,0)","v":0},{"$f":"VLOOKUP(B99,'LOC FINAL with new Themes'!A:M,11,0)","v":0},{"$f":"VLOOKUP(B99,'LOC FINAL with new Themes'!A:M,12,0)","v":0},{"$f":"VLOOKUP(B99,'LOC FINAL with new Themes'!A:M,13,0)","v":0}]
[null,null,null,{"$f":"SUBTOTAL(3,D94:D99)","v":6},"Cultural Resources Count"]
["133 UA Elevation Data (lidar)","133 UA Elevation Data (lidar)",null,{"$f":"IF(C101=0,B101,C101)","v":"133 UA Elevation Data (lidar)"},"Elevation","DOD-NGA","Ron Power, NGA","ronald.k.power@nga.mil",{"$f":"VLOOKUP(B101,'LOC FINAL with new Themes'!A:M,7,0)","v":0},{"$f":"VLOOKUP(B101,'LOC FINAL with new Themes'!A:M,8,0)","v":0},{"$f":"VLOOKUP(B101,'LOC FINAL with new Themes'!A:M,9,0)","v":0},{"$f":"VLOOKUP(B101,'LOC FINAL with new Themes'!A:M,10,0)","v":0},{"$f":"VLOOKUP(B101,'LOC FINAL with new Themes'!A:M,11,0)","v":0},{"$f":"VLOOKUP(B101,'LOC FINAL with new Themes'!A:M,12,0)","v":0},{"$f":"VLOOKUP(B101,'LOC FINAL with new Themes'!A:M,13,0)","v":0}]
["DEMs - Archive","DEMs - Archive",null,"DEMs - Archive","Elevation","DOI-USGS","Gayla Evans","gevans@usgs.gov",{"$f":"VLOOKUP(B102,'LOC FINAL with new Themes'!A:M,7,0)","v":"DEMS update at variable nature; are four data sets based on resolution; this is the POC and data manager; this is the name and maintain three complete with two physically separate on-site and one off-site"},{"$f":"VLOOKUP(B102,'LOC FINAL with new Themes'!A:M,8,0)","v":0},{"$f":"VLOOKUP(B102,'LOC FINAL with new Themes'!A:M,9,0)","v":0},{"$f":"VLOOKUP(B102,'LOC FINAL with new Themes'!A:M,10,0)","v":0},{"$f":"VLOOKUP(B102,'LOC FINAL with new Themes'!A:M,11,0)","v":0},{"$f":"VLOOKUP(B102,'LOC FINAL with new Themes'!A:M,12,0)","v":0},{"$f":"VLOOKUP(B102,'LOC FINAL with new Themes'!A:M,13,0)","v":"S"}]
["GTOPO30","GTOPO30",null,"GTOPO30","Elevation","DOI-USGS","Jeff Danielson"," daniels@usgs.gov",{"$f":"VLOOKUP(B103,'LOC FINAL with new Themes'!A:M,7,0)","v":"GTOPO30 is static; one data set; this is the POC and data manager; this is the name and maintain three complete with two physically separate on-site and one off-site"},{"$f":"VLOOKUP(B103,'LOC FINAL with new Themes'!A:M,8,0)","v":0},{"$f":"VLOOKUP(B103,'LOC FINAL with new Themes'!A:M,9,0)","v":0},{"$f":"VLOOKUP(B103,'LOC FINAL with new Themes'!A:M,10,0)","v":0},{"$f":"VLOOKUP(B103,'LOC FINAL with new Themes'!A:M,11,0)","v":0},{"$f":"VLOOKUP(B103,'LOC FINAL with new Themes'!A:M,12,0)","v":0},{"$f":"VLOOKUP(B103,'LOC FINAL with new Themes'!A:M,13,0)","v":0}]
["National Map National Elevation Data Set (NED)","National Map  - National Elevation Dataset (NED)",null,"National Map  - National Elevation Dataset (NED)","Elevation","DOI-USGS","Jim Mauck","lyost@usgs.gov",{"$f":"VLOOKUP(B104,'LOC FINAL with new Themes'!A:M,7,0)","v":0},{"$f":"VLOOKUP(B104,'LOC FINAL with new Themes'!A:M,8,0)","v":0},{"$f":"VLOOKUP(B104,'LOC FINAL with new Themes'!A:M,9,0)","v":0},{"$f":"VLOOKUP(B104,'LOC FINAL with new Themes'!A:M,10,0)","v":0},{"$f":"VLOOKUP(B104,'LOC FINAL with new Themes'!A:M,11,0)","v":0},{"$f":"VLOOKUP(B104,'LOC FINAL with new Themes'!A:M,12,0)","v":0},{"$f":"VLOOKUP(B104,'LOC FINAL with new Themes'!A:M,13,0)","v":0}]
["SRTM (3-arc second DTEDS)","SRTM (3-arc second DTEDS)",null,"SRTM (3-arc second DTEDS)","Elevation","DOI-USGS","Dean Gesch, USGS","gesch@usgs.gov",{"$f":"VLOOKUP(B105,'LOC FINAL with new Themes'!A:M,7,0)","v":"SRTM is static; one data set; this is the POC and data manager; this is the name and maintain three complete with two physically separate on-site and one off-site"},{"$f":"VLOOKUP(B105,'LOC FINAL with new Themes'!A:M,8,0)","v":0},{"$f":"VLOOKUP(B105,'LOC FINAL with new Themes'!A:M,9,0)","v":0},{"$f":"VLOOKUP(B105,'LOC FINAL with new Themes'!A:M,10,0)","v":0},{"$f":"VLOOKUP(B105,'LOC FINAL with new Themes'!A:M,11,0)","v":0},{"$f":"VLOOKUP(B105,'LOC FINAL with new Themes'!A:M,12,0)","v":0},{"$f":"VLOOKUP(B105,'LOC FINAL with new Themes'!A:M,13,0)","v":"S"}]
["Digital Flood Insurance Rate Maps (D-FIRM)","Digital Flood Insurance Rate Maps (D-FIRM)","Digital Flood Insurance Rate Maps (DFIRM)","Digital Flood Insurance Rate Maps (DFIRM)","Elevation ","DHS-FEMA","Scott McAfee","scott.mcaffee@dhs.gov",{"$f":"VLOOKUP(B106,'LOC FINAL with new Themes'!A:M,7,0)","v":0},{"$f":"VLOOKUP(B106,'LOC FINAL with new Themes'!A:M,8,0)","v":0},{"$f":"VLOOKUP(B106,'LOC FINAL with new Themes'!A:M,9,0)","v":0},{"$f":"VLOOKUP(B106,'LOC FINAL with new Themes'!A:M,10,0)","v":0},{"$f":"VLOOKUP(B106,'LOC FINAL with new Themes'!A:M,11,0)","v":0},{"$f":"VLOOKUP(B106,'LOC FINAL with new Themes'!A:M,12,0)","v":0},{"$f":"VLOOKUP(B106,'LOC FINAL with new Themes'!A:M,13,0)","v":0}]
[null,null,"Elevation Bathymetric - Ocean, Coastal, and Great Lakes Bathymetry ","Elevation Bathymetric - Ocean, Coastal, and Great Lakes Bathymetry ","Elevation ","DOC-NOAA"]
[null,null,"National Elevation Dataset  - National Map","National Elevation Dataset  - National Map","Elevation ","DOI-USGS"]
["National Flood Hazard Layer (NFHL)","National Flood Hazard Layer (NFHL)","National Flood Hazard Layer (NFHL)","National Flood Hazard Layer (NFHL)","Elevation ","DHS-FEMA","Scott McAfee","scott.mcaffee@dhs.gov",{"$f":"VLOOKUP(B109,'LOC FINAL with new Themes'!A:M,7,0)","v":0},{"$f":"VLOOKUP(B109,'LOC FINAL with new Themes'!A:M,8,0)","v":0},{"$f":"VLOOKUP(B109,'LOC FINAL with new Themes'!A:M,9,0)","v":0},{"$f":"VLOOKUP(B109,'LOC FINAL with new Themes'!A:M,10,0)","v":0},{"$f":"VLOOKUP(B109,'LOC FINAL with new Themes'!A:M,11,0)","v":0},{"$f":"VLOOKUP(B109,'LOC FINAL with new Themes'!A:M,12,0)","v":0},{"$f":"VLOOKUP(B109,'LOC FINAL with new Themes'!A:M,13,0)","v":0}]
[null,null,null,{"$f":"SUBTOTAL(3,D101:D109)","v":9},"Elevation Count"]
[null,null,"Airborne Gravity",{"$f":"IF(C111=0,B111,C111)","v":"Airborne Gravity"},"Geodetic Control ","DOC-NOAA","Dr. Theresa Diehl","theresa.diehl@noaa.gov"]
[null,null,"Terrestrial Gravity",{"$f":"IF(C112=0,B112,C112)","v":"Terrestrial Gravity"},"Geodetic Control ","DOC-NOAA","Bill Waickman ","bill.waickman@noaa.gov"]
[null,null,"Continuously Operating Reference Stations (CORS)","Continuously Operating Reference Stations (CORS)","Geodetic Control ","DOC-NOAA","Dr. Giovanni Sella","giovanni.sella@noaa.gov"]
[null,null,"Geoid Models","Geoid Models","Geodetic Control ","DOC-NOAA","Dr. Dan Roman","dan.roman@noaa.gov"]
["National Geologic Data Base","National Geologic Data Base","National Geodetic Survey (NGS) Datasheets","National Geodetic Survey (NGS) Datasheets","Geodetic Control ","DOC-NOAA","Jim Tomlin","jim.tomlin@noaa.gov",{"$f":"VLOOKUP(B115,'LOC FINAL with new Themes'!A:M,7,0)","v":0},{"$f":"VLOOKUP(B115,'LOC FINAL with new Themes'!A:M,8,0)","v":0},{"$f":"VLOOKUP(B115,'LOC FINAL with new Themes'!A:M,9,0)","v":0},{"$f":"VLOOKUP(B115,'LOC FINAL with new Themes'!A:M,10,0)","v":0},{"$f":"VLOOKUP(B115,'LOC FINAL with new Themes'!A:M,11,0)","v":0},{"$f":"VLOOKUP(B115,'LOC FINAL with new Themes'!A:M,12,0)","v":0},{"$f":"VLOOKUP(B115,'LOC FINAL with new Themes'!A:M,13,0)","v":0}]
[null,null,"Precise Global Navigation Satellite System (GNSS) Orbits",{"$f":"IF(C116=0,#REF!,C116)","v":"Precise Global Navigation Satellite System (GNSS) Orbits"},"Geodetic Control ","DOC-NOAA","Dr. Jake Griffiths","jake.griffiths@noaa.gov"]
[null,null,null,{"$f":"SUBTOTAL(3,D111:D116)","v":6},"Geodetic Control  Count"]
[null,null,"Coal assessment and mapping",{"$f":"IF(C118=0,B118,C118)","v":"Coal assessment and mapping"},"Geology","DOI-USGS"]
["Coastline Data","Coastline Data","Coastline Data","Coastline Data","Geology","DOI-BOEM","Doug Vandegraft","Doug.Vandegraft@boem.gov",{"$f":"VLOOKUP(B119,'LOC FINAL with new Themes'!A:M,7,0)","v":"undeliverable email- neeed to identify new contact"},{"$f":"VLOOKUP(B119,'LOC FINAL with new Themes'!A:M,8,0)","v":0},{"$f":"VLOOKUP(B119,'LOC FINAL with new Themes'!A:M,9,0)","v":0},{"$f":"VLOOKUP(B119,'LOC FINAL with new Themes'!A:M,10,0)","v":0},{"$f":"VLOOKUP(B119,'LOC FINAL with new Themes'!A:M,11,0)","v":0},{"$f":"VLOOKUP(B119,'LOC FINAL with new Themes'!A:M,12,0)","v":0},{"$f":"VLOOKUP(B119,'LOC FINAL with new Themes'!A:M,13,0)","v":0}]
[null,null,"Earthquake monitoring, research, and mapping","Earthquake monitoring, research, and mapping","Geology","DOI-USGS"]
[null,null,"Geochemistry","Geochemistry","Geology","DOI-USGS"]
[null,null,"Geochronology","Geochronology","Geology","DOI-USGS"]
[null,null,"Geologic mapping","Geologic mapping","Geology","DOI-USGS"]
[null,null,"Geomagnetism","Geomagnetism","Geology","DOI-USGS"]
[null,null,"Geophysics","Geophysics","Geology","DOI-USGS"]
[null,null,"Landslide monitoring, research, and mapping","Landslide monitoring, research, and mapping","Geology","DOI-USGS"]
[null,null,"Marine geology","Marine geology","Geology","DOI-USGS"]
[null,null,"Metallic mineral assessment and mapping","Metallic mineral assessment and mapping","Geology","DOI-USGS"]
[null,null,"BOEM Baseline","BOEM Baseline","Geology","DOI-BOEM","Doug Vandegraft","Doug.Vandegraft@boem.gov"]
[null,null,"Non-metallic mineral assessment and mapping, onshore",{"$f":"IF(C130=0,B129,C130)","v":"Non-metallic mineral assessment and mapping, onshore"},"Geology","DOI-USGS"]
[null,null,"Oil and gas assessment and mapping, onshore",{"$f":"IF(C131=0,B131,C131)","v":"Oil and gas assessment and mapping, onshore"},"Geology","DOI-USGS"]
[null,null,"Paleontology","Paleontology","Geology","DOI-USGS"]
[null,null,"Sand and Gravel","Sand and Gravel","Geology","DOI-BOEM","Doug Vandegraft","Doug.Vandegraft@boem.gov"]
[null,null,"Volcano monitoring, research, and mapping","Volcano monitoring, research, and mapping","Geology","DOI-USGS"]
[null,null,"Wells","Wells","Geology","DOI-BOEM","Doug Vandegraft","Doug.Vandegraft@boem.gov"]
[null,null,null,{"$f":"SUBTOTAL(3,D118:D135)","v":18},"Geology Count"]
["County Boundaries","County Boundaries",null,{"$f":"IF(C137=0,B137,C137)","v":"County Boundaries"},"Governmental Units",null,null,null,{"$f":"VLOOKUP(B137,'LOC FINAL with new Themes'!A:M,7,0)","v":0},{"$f":"VLOOKUP(B137,'LOC FINAL with new Themes'!A:M,8,0)","v":0},{"$f":"VLOOKUP(B137,'LOC FINAL with new Themes'!A:M,9,0)","v":0},{"$f":"VLOOKUP(B137,'LOC FINAL with new Themes'!A:M,10,0)","v":0},{"$f":"VLOOKUP(B137,'LOC FINAL with new Themes'!A:M,11,0)","v":0},{"$f":"VLOOKUP(B137,'LOC FINAL with new Themes'!A:M,12,0)","v":0},{"$f":"VLOOKUP(B137,'LOC FINAL with new Themes'!A:M,13,0)","v":0}]
[null,"Place and MCD Boundaries",null,"Place and MCD Boundaries","Governmental Units",null,null,null,{"$f":"VLOOKUP(B138,'LOC FINAL with new Themes'!A:M,7,0)","v":0},{"$f":"VLOOKUP(B138,'LOC FINAL with new Themes'!A:M,8,0)","v":0},{"$f":"VLOOKUP(B138,'LOC FINAL with new Themes'!A:M,9,0)","v":0},{"$f":"VLOOKUP(B138,'LOC FINAL with new Themes'!A:M,10,0)","v":0},{"$f":"VLOOKUP(B138,'LOC FINAL with new Themes'!A:M,11,0)","v":0},{"$f":"VLOOKUP(B138,'LOC FINAL with new Themes'!A:M,12,0)","v":0},{"$f":"VLOOKUP(B138,'LOC FINAL with new Themes'!A:M,13,0)","v":0}]
[null,"Alaska Native Regional Corporation (2010 Census)","Alaska Native Regional Corporation (2010 Census)","Alaska Native Regional Corporation (2010 Census)","Governmental Units ","DOC-Census","Jennifer Holland","Jennifer.L.Holland@census.gov",{"$f":"VLOOKUP(B139,'LOC FINAL with new Themes'!A:M,7,0)","v":0},{"$f":"VLOOKUP(B139,'LOC FINAL with new Themes'!A:M,8,0)","v":0},{"$f":"VLOOKUP(B139,'LOC FINAL with new Themes'!A:M,9,0)","v":0},{"$f":"VLOOKUP(B139,'LOC FINAL with new Themes'!A:M,10,0)","v":0},{"$f":"VLOOKUP(B139,'LOC FINAL with new Themes'!A:M,11,0)","v":0},{"$f":"VLOOKUP(B139,'LOC FINAL with new Themes'!A:M,12,0)","v":0},{"$f":"VLOOKUP(B139,'LOC FINAL with new Themes'!A:M,13,0)","v":0}]
[null,"Alaska Native Regional Corporation (Census 2000)","Alaska Native Regional Corporation (Census 2000)","Alaska Native Regional Corporation (Census 2000)","Governmental Units ","DOC-Census","Jennifer Holland","Jennifer.L.Holland@census.gov",{"$f":"VLOOKUP(B140,'LOC FINAL with new Themes'!A:M,7,0)","v":0},{"$f":"VLOOKUP(B140,'LOC FINAL with new Themes'!A:M,8,0)","v":0},{"$f":"VLOOKUP(B140,'LOC FINAL with new Themes'!A:M,9,0)","v":0},{"$f":"VLOOKUP(B140,'LOC FINAL with new Themes'!A:M,10,0)","v":0},{"$f":"VLOOKUP(B140,'LOC FINAL with new Themes'!A:M,11,0)","v":0},{"$f":"VLOOKUP(B140,'LOC FINAL with new Themes'!A:M,12,0)","v":0},{"$f":"VLOOKUP(B140,'LOC FINAL with new Themes'!A:M,13,0)","v":0}]
[null,"American Indian Tribal Subdivision (2010 Census)","American Indian Tribal Subdivision (2010 Census)","American Indian Tribal Subdivision (2010 Census)","Governmental Units ","DOC-Census","Jennifer Holland","Jennifer.L.Holland@census.gov",{"$f":"VLOOKUP(B141,'LOC FINAL with new Themes'!A:M,7,0)","v":0},{"$f":"VLOOKUP(B141,'LOC FINAL with new Themes'!A:M,8,0)","v":0},{"$f":"VLOOKUP(B141,'LOC FINAL with new Themes'!A:M,9,0)","v":0},{"$f":"VLOOKUP(B141,'LOC FINAL with new Themes'!A:M,10,0)","v":0},{"$f":"VLOOKUP(B141,'LOC FINAL with new Themes'!A:M,11,0)","v":0},{"$f":"VLOOKUP(B141,'LOC FINAL with new Themes'!A:M,12,0)","v":0},{"$f":"VLOOKUP(B141,'LOC FINAL with new Themes'!A:M,13,0)","v":0}]
[null,"American Indian Tribal Subdivision (Census 2000)","American Indian Tribal Subdivision (Census 2000)","American Indian Tribal Subdivision (Census 2000)","Governmental Units ","DOC-Census","Jennifer Holland","Jennifer.L.Holland@census.gov",{"$f":"VLOOKUP(B142,'LOC FINAL with new Themes'!A:M,7,0)","v":0},{"$f":"VLOOKUP(B142,'LOC FINAL with new Themes'!A:M,8,0)","v":0},{"$f":"VLOOKUP(B142,'LOC FINAL with new Themes'!A:M,9,0)","v":0},{"$f":"VLOOKUP(B142,'LOC FINAL with new Themes'!A:M,10,0)","v":0},{"$f":"VLOOKUP(B142,'LOC FINAL with new Themes'!A:M,11,0)","v":0},{"$f":"VLOOKUP(B142,'LOC FINAL with new Themes'!A:M,12,0)","v":0},{"$f":"VLOOKUP(B142,'LOC FINAL with new Themes'!A:M,13,0)","v":0}]
[null,"American Indian/Alaska Native/Native Hawaiian Area (2000 Census)","American Indian/Alaska Native/Native Hawaiian Area (2000 Census)","American Indian/Alaska Native/Native Hawaiian Area (2000 Census)","Governmental Units ","DOC-Census","Jennifer Holland","Jennifer.L.Holland@census.gov",{"$f":"VLOOKUP(B143,'LOC FINAL with new Themes'!A:M,7,0)","v":0},{"$f":"VLOOKUP(B143,'LOC FINAL with new Themes'!A:M,8,0)","v":0},{"$f":"VLOOKUP(B143,'LOC FINAL with new Themes'!A:M,9,0)","v":0},{"$f":"VLOOKUP(B143,'LOC FINAL with new Themes'!A:M,10,0)","v":0},{"$f":"VLOOKUP(B143,'LOC FINAL with new Themes'!A:M,11,0)","v":0},{"$f":"VLOOKUP(B143,'LOC FINAL with new Themes'!A:M,12,0)","v":0},{"$f":"VLOOKUP(B143,'LOC FINAL with new Themes'!A:M,13,0)","v":0}]
[null,"American Indian/Alaska Native/Native Hawaiian Area (2010 Census)","American Indian/Alaska Native/Native Hawaiian Area (2010 Census)","American Indian/Alaska Native/Native Hawaiian Area (2010 Census)","Governmental Units ","DOC-Census","Jennifer Holland","Jennifer.L.Holland@census.gov",{"$f":"VLOOKUP(B144,'LOC FINAL with new Themes'!A:M,7,0)","v":0},{"$f":"VLOOKUP(B144,'LOC FINAL with new Themes'!A:M,8,0)","v":0},{"$f":"VLOOKUP(B144,'LOC FINAL with new Themes'!A:M,9,0)","v":0},{"$f":"VLOOKUP(B144,'LOC FINAL with new Themes'!A:M,10,0)","v":0},{"$f":"VLOOKUP(B144,'LOC FINAL with new Themes'!A:M,11,0)","v":0},{"$f":"VLOOKUP(B144,'LOC FINAL with new Themes'!A:M,12,0)","v":0},{"$f":"VLOOKUP(B144,'LOC FINAL with new Themes'!A:M,13,0)","v":0}]
[null,"Combined New England City and Town Area (2010 Census)","Combined New England City and Town Area (2010 Census)","Combined New England City and Town Area (2010 Census)","Governmental Units ","DOC-Census","Jennifer Holland","Jennifer.L.Holland@census.gov",{"$f":"VLOOKUP(B145,'LOC FINAL with new Themes'!A:M,7,0)","v":0},{"$f":"VLOOKUP(B145,'LOC FINAL with new Themes'!A:M,8,0)","v":0},{"$f":"VLOOKUP(B145,'LOC FINAL with new Themes'!A:M,9,0)","v":0},{"$f":"VLOOKUP(B145,'LOC FINAL with new Themes'!A:M,10,0)","v":0},{"$f":"VLOOKUP(B145,'LOC FINAL with new Themes'!A:M,11,0)","v":0},{"$f":"VLOOKUP(B145,'LOC FINAL with new Themes'!A:M,12,0)","v":0},{"$f":"VLOOKUP(B145,'LOC FINAL with new Themes'!A:M,13,0)","v":0}]
["Congressional District Boundaries","Congressional District (108th)","Congressional District (108th)","Congressional District (108th)","Governmental Units ","DOC-Census","Jennifer Holland","Jennifer.L.Holland@census.gov",{"$f":"VLOOKUP(B146,'LOC FINAL with new Themes'!A:M,7,0)","v":0},{"$f":"VLOOKUP(B146,'LOC FINAL with new Themes'!A:M,8,0)","v":0},{"$f":"VLOOKUP(B146,'LOC FINAL with new Themes'!A:M,9,0)","v":0},{"$f":"VLOOKUP(B146,'LOC FINAL with new Themes'!A:M,10,0)","v":0},{"$f":"VLOOKUP(B146,'LOC FINAL with new Themes'!A:M,11,0)","v":0},{"$f":"VLOOKUP(B146,'LOC FINAL with new Themes'!A:M,12,0)","v":0},{"$f":"VLOOKUP(B146,'LOC FINAL with new Themes'!A:M,13,0)","v":0}]
[null,"Congressional District (111th)","Congressional District (111th)","Congressional District (111th)","Governmental Units ","DOC-Census","Jennifer Holland","Jennifer.L.Holland@census.gov",{"$f":"VLOOKUP(B147,'LOC FINAL with new Themes'!A:M,7,0)","v":0},{"$f":"VLOOKUP(B147,'LOC FINAL with new Themes'!A:M,8,0)","v":0},{"$f":"VLOOKUP(B147,'LOC FINAL with new Themes'!A:M,9,0)","v":0},{"$f":"VLOOKUP(B147,'LOC FINAL with new Themes'!A:M,10,0)","v":0},{"$f":"VLOOKUP(B147,'LOC FINAL with new Themes'!A:M,11,0)","v":0},{"$f":"VLOOKUP(B147,'LOC FINAL with new Themes'!A:M,12,0)","v":0},{"$f":"VLOOKUP(B147,'LOC FINAL with new Themes'!A:M,13,0)","v":0}]
[null,"Consolidated City (2010 Census)","Consolidated City (2010 Census)","Consolidated City (2010 Census)","Governmental Units ","DOC-Census","Jennifer Holland","Jennifer.L.Holland@census.gov",{"$f":"VLOOKUP(B148,'LOC FINAL with new Themes'!A:M,7,0)","v":0},{"$f":"VLOOKUP(B148,'LOC FINAL with new Themes'!A:M,8,0)","v":0},{"$f":"VLOOKUP(B148,'LOC FINAL with new Themes'!A:M,9,0)","v":0},{"$f":"VLOOKUP(B148,'LOC FINAL with new Themes'!A:M,10,0)","v":0},{"$f":"VLOOKUP(B148,'LOC FINAL with new Themes'!A:M,11,0)","v":0},{"$f":"VLOOKUP(B148,'LOC FINAL with new Themes'!A:M,12,0)","v":0},{"$f":"VLOOKUP(B148,'LOC FINAL with new Themes'!A:M,13,0)","v":0}]
[null,"Consolidated City (Census 2000)","Consolidated City (Census 2000)","Consolidated City (Census 2000)","Governmental Units ","DOC-Census","Jennifer Holland","Jennifer.L.Holland@census.gov",{"$f":"VLOOKUP(B149,'LOC FINAL with new Themes'!A:M,7,0)","v":0},{"$f":"VLOOKUP(B149,'LOC FINAL with new Themes'!A:M,8,0)","v":0},{"$f":"VLOOKUP(B149,'LOC FINAL with new Themes'!A:M,9,0)","v":0},{"$f":"VLOOKUP(B149,'LOC FINAL with new Themes'!A:M,10,0)","v":0},{"$f":"VLOOKUP(B149,'LOC FINAL with new Themes'!A:M,11,0)","v":0},{"$f":"VLOOKUP(B149,'LOC FINAL with new Themes'!A:M,12,0)","v":0},{"$f":"VLOOKUP(B149,'LOC FINAL with new Themes'!A:M,13,0)","v":0}]
[null,"County and Equivalent (2010 Census)","County and Equivalent (2010 Census)","County and Equivalent (2010 Census)","Governmental Units ","DOC-Census","Jennifer Holland","Jennifer.L.Holland@census.gov",{"$f":"VLOOKUP(B150,'LOC FINAL with new Themes'!A:M,7,0)","v":0},{"$f":"VLOOKUP(B150,'LOC FINAL with new Themes'!A:M,8,0)","v":0},{"$f":"VLOOKUP(B150,'LOC FINAL with new Themes'!A:M,9,0)","v":0},{"$f":"VLOOKUP(B150,'LOC FINAL with new Themes'!A:M,10,0)","v":0},{"$f":"VLOOKUP(B150,'LOC FINAL with new Themes'!A:M,11,0)","v":0},{"$f":"VLOOKUP(B150,'LOC FINAL with new Themes'!A:M,12,0)","v":0},{"$f":"VLOOKUP(B150,'LOC FINAL with new Themes'!A:M,13,0)","v":0}]
[null,"County and Equivalent (Census 2000)","County and Equivalent (Census 2000)","County and Equivalent (Census 2000)","Governmental Units ","DOC-Census","Jennifer Holland","Jennifer.L.Holland@census.gov",{"$f":"VLOOKUP(B151,'LOC FINAL with new Themes'!A:M,7,0)","v":0},{"$f":"VLOOKUP(B151,'LOC FINAL with new Themes'!A:M,8,0)","v":0},{"$f":"VLOOKUP(B151,'LOC FINAL with new Themes'!A:M,9,0)","v":0},{"$f":"VLOOKUP(B151,'LOC FINAL with new Themes'!A:M,10,0)","v":0},{"$f":"VLOOKUP(B151,'LOC FINAL with new Themes'!A:M,11,0)","v":0},{"$f":"VLOOKUP(B151,'LOC FINAL with new Themes'!A:M,12,0)","v":0},{"$f":"VLOOKUP(B151,'LOC FINAL with new Themes'!A:M,13,0)","v":0}]
[null,"County Subdivision (2010 Census)","County Subdivision (2010 Census)","County Subdivision (2010 Census)","Governmental Units ","DOC-Census","Jennifer Holland","Jennifer.L.Holland@census.gov",{"$f":"VLOOKUP(B152,'LOC FINAL with new Themes'!A:M,7,0)","v":0},{"$f":"VLOOKUP(B152,'LOC FINAL with new Themes'!A:M,8,0)","v":0},{"$f":"VLOOKUP(B152,'LOC FINAL with new Themes'!A:M,9,0)","v":0},{"$f":"VLOOKUP(B152,'LOC FINAL with new Themes'!A:M,10,0)","v":0},{"$f":"VLOOKUP(B152,'LOC FINAL with new Themes'!A:M,11,0)","v":0},{"$f":"VLOOKUP(B152,'LOC FINAL with new Themes'!A:M,12,0)","v":0},{"$f":"VLOOKUP(B152,'LOC FINAL with new Themes'!A:M,13,0)","v":0}]
[null,"County Subdivision (Census 2000)","County Subdivision (Census 2000)","County Subdivision (Census 2000)","Governmental Units ","DOC-Census","Jennifer Holland","Jennifer.L.Holland@census.gov",{"$f":"VLOOKUP(B153,'LOC FINAL with new Themes'!A:M,7,0)","v":0},{"$f":"VLOOKUP(B153,'LOC FINAL with new Themes'!A:M,8,0)","v":0},{"$f":"VLOOKUP(B153,'LOC FINAL with new Themes'!A:M,9,0)","v":0},{"$f":"VLOOKUP(B153,'LOC FINAL with new Themes'!A:M,10,0)","v":0},{"$f":"VLOOKUP(B153,'LOC FINAL with new Themes'!A:M,11,0)","v":0},{"$f":"VLOOKUP(B153,'LOC FINAL with new Themes'!A:M,12,0)","v":0},{"$f":"VLOOKUP(B153,'LOC FINAL with new Themes'!A:M,13,0)","v":0}]
[null,"Metropolitan Division (2010 Census)","Metropolitan Division (2010 Census)","Metropolitan Division (2010 Census)","Governmental Units ","DOC-Census","Jennifer Holland","Jennifer.L.Holland@census.gov",{"$f":"VLOOKUP(B154,'LOC FINAL with new Themes'!A:M,7,0)","v":0},{"$f":"VLOOKUP(B154,'LOC FINAL with new Themes'!A:M,8,0)","v":0},{"$f":"VLOOKUP(B154,'LOC FINAL with new Themes'!A:M,9,0)","v":0},{"$f":"VLOOKUP(B154,'LOC FINAL with new Themes'!A:M,10,0)","v":0},{"$f":"VLOOKUP(B154,'LOC FINAL with new Themes'!A:M,11,0)","v":0},{"$f":"VLOOKUP(B154,'LOC FINAL with new Themes'!A:M,12,0)","v":0},{"$f":"VLOOKUP(B154,'LOC FINAL with new Themes'!A:M,13,0)","v":0}]
[null,"Metropolitan Division (2010 Census)","Metropolitan Division (2010 Census)","Metropolitan Division (2010 Census)","Governmental Units ","DOC-Census","Jennifer Holland","Jennifer.L.Holland@census.gov",{"$f":"VLOOKUP(B155,'LOC FINAL with new Themes'!A:M,7,0)","v":0},{"$f":"VLOOKUP(B155,'LOC FINAL with new Themes'!A:M,8,0)","v":0},{"$f":"VLOOKUP(B155,'LOC FINAL with new Themes'!A:M,9,0)","v":0},{"$f":"VLOOKUP(B155,'LOC FINAL with new Themes'!A:M,10,0)","v":0},{"$f":"VLOOKUP(B155,'LOC FINAL with new Themes'!A:M,11,0)","v":0},{"$f":"VLOOKUP(B155,'LOC FINAL with new Themes'!A:M,12,0)","v":0},{"$f":"VLOOKUP(B155,'LOC FINAL with new Themes'!A:M,13,0)","v":0}]
[null,"New England City and Town Area (2010 Census)","New England City and Town Area (2010 Census)","New England City and Town Area (2010 Census)","Governmental Units ","DOC-Census","Jennifer Holland","Jennifer.L.Holland@census.gov",{"$f":"VLOOKUP(B156,'LOC FINAL with new Themes'!A:M,7,0)","v":0},{"$f":"VLOOKUP(B156,'LOC FINAL with new Themes'!A:M,8,0)","v":0},{"$f":"VLOOKUP(B156,'LOC FINAL with new Themes'!A:M,9,0)","v":0},{"$f":"VLOOKUP(B156,'LOC FINAL with new Themes'!A:M,10,0)","v":0},{"$f":"VLOOKUP(B156,'LOC FINAL with new Themes'!A:M,11,0)","v":0},{"$f":"VLOOKUP(B156,'LOC FINAL with new Themes'!A:M,12,0)","v":0},{"$f":"VLOOKUP(B156,'LOC FINAL with new Themes'!A:M,13,0)","v":0}]
[null,"New England City and Town Area Division (2010 Census)","New England City and Town Area Division (2010 Census)","New England City and Town Area Division (2010 Census)","Governmental Units ","DOC-Census","Jennifer Holland","Jennifer.L.Holland@census.gov",{"$f":"VLOOKUP(B157,'LOC FINAL with new Themes'!A:M,7,0)","v":0},{"$f":"VLOOKUP(B157,'LOC FINAL with new Themes'!A:M,8,0)","v":0},{"$f":"VLOOKUP(B157,'LOC FINAL with new Themes'!A:M,9,0)","v":0},{"$f":"VLOOKUP(B157,'LOC FINAL with new Themes'!A:M,10,0)","v":0},{"$f":"VLOOKUP(B157,'LOC FINAL with new Themes'!A:M,11,0)","v":0},{"$f":"VLOOKUP(B157,'LOC FINAL with new Themes'!A:M,12,0)","v":0},{"$f":"VLOOKUP(B157,'LOC FINAL with new Themes'!A:M,13,0)","v":0}]
["Place and MCD Boundaries","Place (2010 Census)","Place (2010 Census)","Place (2010 Census)","Governmental Units ","DOC-Census","Jennifer Holland","Jennifer.L.Holland@census.gov",{"$f":"VLOOKUP(B158,'LOC FINAL with new Themes'!A:M,7,0)","v":0},{"$f":"VLOOKUP(B158,'LOC FINAL with new Themes'!A:M,8,0)","v":0},{"$f":"VLOOKUP(B158,'LOC FINAL with new Themes'!A:M,9,0)","v":0},{"$f":"VLOOKUP(B158,'LOC FINAL with new Themes'!A:M,10,0)","v":0},{"$f":"VLOOKUP(B158,'LOC FINAL with new Themes'!A:M,11,0)","v":0},{"$f":"VLOOKUP(B158,'LOC FINAL with new Themes'!A:M,12,0)","v":0},{"$f":"VLOOKUP(B158,'LOC FINAL with new Themes'!A:M,13,0)","v":0}]
[null,"Place (Census 2000)","Place (Census 2000)","Place (Census 2000)","Governmental Units ","DOC-Census","Jennifer Holland","Jennifer.L.Holland@census.gov",{"$f":"VLOOKUP(B159,'LOC FINAL with new Themes'!A:M,7,0)","v":0},{"$f":"VLOOKUP(B159,'LOC FINAL with new Themes'!A:M,8,0)","v":0},{"$f":"VLOOKUP(B159,'LOC FINAL with new Themes'!A:M,9,0)","v":0},{"$f":"VLOOKUP(B159,'LOC FINAL with new Themes'!A:M,10,0)","v":0},{"$f":"VLOOKUP(B159,'LOC FINAL with new Themes'!A:M,11,0)","v":0},{"$f":"VLOOKUP(B159,'LOC FINAL with new Themes'!A:M,12,0)","v":0},{"$f":"VLOOKUP(B159,'LOC FINAL with new Themes'!A:M,13,0)","v":0}]
["State(+ Territories) Boundaries","State and Equivalent  (2010 Census)","State and Equivalent  (2010 Census)","State and Equivalent  (2010 Census)","Governmental Units ","DOC-Census","Jennifer Holland","Jennifer.L.Holland@census.gov",{"$f":"VLOOKUP(B160,'LOC FINAL with new Themes'!A:M,7,0)","v":0},{"$f":"VLOOKUP(B160,'LOC FINAL with new Themes'!A:M,8,0)","v":0},{"$f":"VLOOKUP(B160,'LOC FINAL with new Themes'!A:M,9,0)","v":0},{"$f":"VLOOKUP(B160,'LOC FINAL with new Themes'!A:M,10,0)","v":0},{"$f":"VLOOKUP(B160,'LOC FINAL with new Themes'!A:M,11,0)","v":0},{"$f":"VLOOKUP(B160,'LOC FINAL with new Themes'!A:M,12,0)","v":0},{"$f":"VLOOKUP(B160,'LOC FINAL with new Themes'!A:M,13,0)","v":0}]
[null,"State and Equivalent  (Census 2000)","State and Equivalent  (Census 2000)","State and Equivalent  (Census 2000)","Governmental Units ","DOC-Census","Jennifer Holland","Jennifer.L.Holland@census.gov",{"$f":"VLOOKUP(B161,'LOC FINAL with new Themes'!A:M,7,0)","v":0},{"$f":"VLOOKUP(B161,'LOC FINAL with new Themes'!A:M,8,0)","v":0},{"$f":"VLOOKUP(B161,'LOC FINAL with new Themes'!A:M,9,0)","v":0},{"$f":"VLOOKUP(B161,'LOC FINAL with new Themes'!A:M,10,0)","v":0},{"$f":"VLOOKUP(B161,'LOC FINAL with new Themes'!A:M,11,0)","v":0},{"$f":"VLOOKUP(B161,'LOC FINAL with new Themes'!A:M,12,0)","v":0},{"$f":"VLOOKUP(B161,'LOC FINAL with new Themes'!A:M,13,0)","v":0}]
[null,"State Legislative District (Lower Chamber) (2010 Census)","State Legislative District (Lower Chamber) (2010 Census)","State Legislative District (Lower Chamber) (2010 Census)","Governmental Units ","DOC-Census","Jennifer Holland","Jennifer.L.Holland@census.gov",{"$f":"VLOOKUP(B162,'LOC FINAL with new Themes'!A:M,7,0)","v":0},{"$f":"VLOOKUP(B162,'LOC FINAL with new Themes'!A:M,8,0)","v":0},{"$f":"VLOOKUP(B162,'LOC FINAL with new Themes'!A:M,9,0)","v":0},{"$f":"VLOOKUP(B162,'LOC FINAL with new Themes'!A:M,10,0)","v":0},{"$f":"VLOOKUP(B162,'LOC FINAL with new Themes'!A:M,11,0)","v":0},{"$f":"VLOOKUP(B162,'LOC FINAL with new Themes'!A:M,12,0)","v":0},{"$f":"VLOOKUP(B162,'LOC FINAL with new Themes'!A:M,13,0)","v":0}]
[null,"State Legislative District (Lower Chamber) (Census 2000)","State Legislative District (Lower Chamber) (Census 2000)","State Legislative District (Lower Chamber) (Census 2000)","Governmental Units ","DOC-Census","Jennifer Holland","Jennifer.L.Holland@census.gov",{"$f":"VLOOKUP(B163,'LOC FINAL with new Themes'!A:M,7,0)","v":0},{"$f":"VLOOKUP(B163,'LOC FINAL with new Themes'!A:M,8,0)","v":0},{"$f":"VLOOKUP(B163,'LOC FINAL with new Themes'!A:M,9,0)","v":0},{"$f":"VLOOKUP(B163,'LOC FINAL with new Themes'!A:M,10,0)","v":0},{"$f":"VLOOKUP(B163,'LOC FINAL with new Themes'!A:M,11,0)","v":0},{"$f":"VLOOKUP(B163,'LOC FINAL with new Themes'!A:M,12,0)","v":0},{"$f":"VLOOKUP(B163,'LOC FINAL with new Themes'!A:M,13,0)","v":0}]
[null,"State Legislative District (Upper Chamber) (2010 Census)","State Legislative District (Upper Chamber) (2010 Census)","State Legislative District (Upper Chamber) (2010 Census)","Governmental Units ","DOC-Census","Jennifer Holland","Jennifer.L.Holland@census.gov",{"$f":"VLOOKUP(B164,'LOC FINAL with new Themes'!A:M,7,0)","v":0},{"$f":"VLOOKUP(B164,'LOC FINAL with new Themes'!A:M,8,0)","v":0},{"$f":"VLOOKUP(B164,'LOC FINAL with new Themes'!A:M,9,0)","v":0},{"$f":"VLOOKUP(B164,'LOC FINAL with new Themes'!A:M,10,0)","v":0},{"$f":"VLOOKUP(B164,'LOC FINAL with new Themes'!A:M,11,0)","v":0},{"$f":"VLOOKUP(B164,'LOC FINAL with new Themes'!A:M,12,0)","v":0},{"$f":"VLOOKUP(B164,'LOC FINAL with new Themes'!A:M,13,0)","v":0}]
[null,"State Legislative District (Upper Chamber) (Census 2000)","State Legislative District (Upper Chamber) (Census 2000)","State Legislative District (Upper Chamber) (Census 2000)","Governmental Units ","DOC-Census","Jennifer Holland","Jennifer.L.Holland@census.gov",{"$f":"VLOOKUP(B165,'LOC FINAL with new Themes'!A:M,7,0)","v":0},{"$f":"VLOOKUP(B165,'LOC FINAL with new Themes'!A:M,8,0)","v":0},{"$f":"VLOOKUP(B165,'LOC FINAL with new Themes'!A:M,9,0)","v":0},{"$f":"VLOOKUP(B165,'LOC FINAL with new Themes'!A:M,10,0)","v":0},{"$f":"VLOOKUP(B165,'LOC FINAL with new Themes'!A:M,11,0)","v":0},{"$f":"VLOOKUP(B165,'LOC FINAL with new Themes'!A:M,12,0)","v":0},{"$f":"VLOOKUP(B165,'LOC FINAL with new Themes'!A:M,13,0)","v":0}]
[null,"Subbarrio (2010 Census)","Subbarrio (2010 Census)","Subbarrio (2010 Census)","Governmental Units ","DOC-Census","Jennifer Holland","Jennifer.L.Holland@census.gov",{"$f":"VLOOKUP(B166,'LOC FINAL with new Themes'!A:M,7,0)","v":0},{"$f":"VLOOKUP(B166,'LOC FINAL with new Themes'!A:M,8,0)","v":0},{"$f":"VLOOKUP(B166,'LOC FINAL with new Themes'!A:M,9,0)","v":0},{"$f":"VLOOKUP(B166,'LOC FINAL with new Themes'!A:M,10,0)","v":0},{"$f":"VLOOKUP(B166,'LOC FINAL with new Themes'!A:M,11,0)","v":0},{"$f":"VLOOKUP(B166,'LOC FINAL with new Themes'!A:M,12,0)","v":0},{"$f":"VLOOKUP(B166,'LOC FINAL with new Themes'!A:M,13,0)","v":0}]
[null,"Subbarrio (Census 2000)","Subbarrio (Census 2000)","Subbarrio (Census 2000)","Governmental Units ","DOC-Census","Jennifer Holland","Jennifer.L.Holland@census.gov",{"$f":"VLOOKUP(B167,'LOC FINAL with new Themes'!A:M,7,0)","v":0},{"$f":"VLOOKUP(B167,'LOC FINAL with new Themes'!A:M,8,0)","v":0},{"$f":"VLOOKUP(B167,'LOC FINAL with new Themes'!A:M,9,0)","v":0},{"$f":"VLOOKUP(B167,'LOC FINAL with new Themes'!A:M,10,0)","v":0},{"$f":"VLOOKUP(B167,'LOC FINAL with new Themes'!A:M,11,0)","v":0},{"$f":"VLOOKUP(B167,'LOC FINAL with new Themes'!A:M,12,0)","v":0},{"$f":"VLOOKUP(B167,'LOC FINAL with new Themes'!A:M,13,0)","v":0}]
[null,"Urban Area (Corrected Census 2000)","Urban Area (Corrected Census 2000)","Urban Area (Corrected Census 2000)","Governmental Units ","DOC-Census","Jennifer Holland","Jennifer.L.Holland@census.gov",{"$f":"VLOOKUP(B168,'LOC FINAL with new Themes'!A:M,7,0)","v":0},{"$f":"VLOOKUP(B168,'LOC FINAL with new Themes'!A:M,8,0)","v":0},{"$f":"VLOOKUP(B168,'LOC FINAL with new Themes'!A:M,9,0)","v":0},{"$f":"VLOOKUP(B168,'LOC FINAL with new Themes'!A:M,10,0)","v":0},{"$f":"VLOOKUP(B168,'LOC FINAL with new Themes'!A:M,11,0)","v":0},{"$f":"VLOOKUP(B168,'LOC FINAL with new Themes'!A:M,12,0)","v":0},{"$f":"VLOOKUP(B168,'LOC FINAL with new Themes'!A:M,13,0)","v":0}]
[null,null,null,{"$f":"SUBTOTAL(3,D137:D168)","v":32},"Governmental Units Count"]
["133 Urban Areas imagery program data","133 Urban Areas imagery program data",null,{"$f":"IF(C170=0,B170,C170)","v":"133 Urban Areas imagery program data"},"Imagery ","DOD-NGA","William Nellist","William.E.Nellist@nga.mil",{"$f":"VLOOKUP(B170,'LOC FINAL with new Themes'!A:M,7,0)","v":0},{"$f":"VLOOKUP(B170,'LOC FINAL with new Themes'!A:M,8,0)","v":0},{"$f":"VLOOKUP(B170,'LOC FINAL with new Themes'!A:M,9,0)","v":0},{"$f":"VLOOKUP(B170,'LOC FINAL with new Themes'!A:M,10,0)","v":0},{"$f":"VLOOKUP(B170,'LOC FINAL with new Themes'!A:M,11,0)","v":0},{"$f":"VLOOKUP(B170,'LOC FINAL with new Themes'!A:M,12,0)","v":0},{"$f":"VLOOKUP(B170,'LOC FINAL with new Themes'!A:M,13,0)","v":0}]
[null,"134 Urban Areas imagery program data",null,"134 Urban Areas imagery program data","Imagery ","DOI-USGS","George Lee","gylee@usgs.gov",{"$f":"VLOOKUP(B171,'LOC FINAL with new Themes'!A:M,7,0)","v":0},{"$f":"VLOOKUP(B171,'LOC FINAL with new Themes'!A:M,8,0)","v":0},{"$f":"VLOOKUP(B171,'LOC FINAL with new Themes'!A:M,9,0)","v":0},{"$f":"VLOOKUP(B171,'LOC FINAL with new Themes'!A:M,10,0)","v":0},{"$f":"VLOOKUP(B171,'LOC FINAL with new Themes'!A:M,11,0)","v":0},{"$f":"VLOOKUP(B171,'LOC FINAL with new Themes'!A:M,12,0)","v":0},{"$f":"VLOOKUP(B171,'LOC FINAL with new Themes'!A:M,13,0)","v":0}]
["ADS40 Hurricane Response 7.5' Quadrangle Mosaics","ADS40 Hurricane Response 7.5' Quadrangle Mosaics",null,"ADS40 Hurricane Response 7.5' Quadrangle Mosaics","Imagery ","DOI-USGS","Jim Mauck","jmauck@usgs.gov",{"$f":"VLOOKUP(B172,'LOC FINAL with new Themes'!A:M,7,0)","v":0},{"$f":"VLOOKUP(B172,'LOC FINAL with new Themes'!A:M,8,0)","v":0},{"$f":"VLOOKUP(B172,'LOC FINAL with new Themes'!A:M,9,0)","v":0},{"$f":"VLOOKUP(B172,'LOC FINAL with new Themes'!A:M,10,0)","v":0},{"$f":"VLOOKUP(B172,'LOC FINAL with new Themes'!A:M,11,0)","v":0},{"$f":"VLOOKUP(B172,'LOC FINAL with new Themes'!A:M,12,0)","v":0},{"$f":"VLOOKUP(B172,'LOC FINAL with new Themes'!A:M,13,0)","v":0}]
["Digital Orthoimage Quarter Quadrangle (DOQQ) Archive","Digital Orthoimage Quarter Quadrangle (DOQQ) Archive",null,"Digital Orthoimage Quarter Quadrangle (DOQQ) Archive","Imagery ","DOI-USGS",null,null,{"$f":"VLOOKUP(B173,'LOC FINAL with new Themes'!A:M,7,0)","v":"DOQQ is static; one data set; this is the POC and data manager. this is the name and maintain three complete with two physically separate on-site and one off-site"},{"$f":"VLOOKUP(B173,'LOC FINAL with new Themes'!A:M,8,0)","v":0},{"$f":"VLOOKUP(B173,'LOC FINAL with new Themes'!A:M,9,0)","v":0},{"$f":"VLOOKUP(B173,'LOC FINAL with new Themes'!A:M,10,0)","v":0},{"$f":"VLOOKUP(B173,'LOC FINAL with new Themes'!A:M,11,0)","v":0},{"$f":"VLOOKUP(B173,'LOC FINAL with new Themes'!A:M,12,0)","v":0},{"$f":"VLOOKUP(B173,'LOC FINAL with new Themes'!A:M,13,0)","v":"S"}]
["Emergency Response Imagery","Emergency Response Imagery","Emergency Response Imagery","Emergency Response Imagery","Imagery ","DOC-NOAA","Mike Aslaksen","mike.Aslaksen@noaa.gov",{"$f":"VLOOKUP(B174,'LOC FINAL with new Themes'!A:M,7,0)","v":"20-Multiple      "},{"$f":"VLOOKUP(B174,'LOC FINAL with new Themes'!A:M,8,0)","v":"No"},{"$f":"VLOOKUP(B174,'LOC FINAL with new Themes'!A:M,9,0)","v":"Yes - email reply from Jon Sellars Jon.Sellars@noaa.gov"},{"$f":"VLOOKUP(B174,'LOC FINAL with new Themes'!A:M,10,0)","v":"- Same for the forest frag."},{"$f":"VLOOKUP(B174,'LOC FINAL with new Themes'!A:M,11,0)","v":"Our data can be accessed through the following links: http://storms.ngs.noaagov/eri_page/index.html Gulf Oil Spill:\nhttp://hdds.usgs.gov/hdds2/pub/data/disaster/201004_Oilspill_GulfOfMexico/data/AERIAL_NOAA\nhttp://hdds.usgs.gov/hdds2/pub/data/disaster/201004_Oilspill_GulfOfMexico/data/AERIAL_NOAA_MOSAIC  Haiti Earthquake:\nhttp://hdds.usgs.gov/hdds2/pub/data/disaster/201001_Earthquake_Haiti/data/AERIAL_NOAA\nhttp://hdds.usgs.gov/hdds2/pub/data/disaster/201001_Earthquake_Haiti/data/AERIAL_NOAA_ORTHO\nMexico Earthquake:\nhttp://hdds.usgs.gov/hdds2/pub/data/disaster/201004_Earthquake_Mexico/data/AERIAL_NOAA_MOSAIC \n\n"},{"$f":"VLOOKUP(B174,'LOC FINAL with new Themes'!A:M,12,0)","v":"Described by storm name, event or location."},{"$f":"VLOOKUP(B174,'LOC FINAL with new Themes'!A:M,13,0)","v":"M "}]
[null,null,"Fire, Detection: AVHRR FIMMA , GOES WF-ABBA","Fire, Detection: AVHRR FIMMA , GOES WF-ABBA","Imagery ","USDA"]
["Landsat geometric/terrain corrected level 1T","Landsat geometric/terrain corrected level 1T","Landsat Terrain Corrected Scenes","Landsat Terrain Corrected Scenes","Imagery ","DOI-USGS","Kristi Kline","kkline@usgs.gov",{"$f":"VLOOKUP(B176,'LOC FINAL with new Themes'!A:M,7,0)","v":"Landsat updates daily; a series of data sets; this is the POC and data manager; this is the name and maintain three complete with two physically separate on-site and one off-site"},{"$f":"VLOOKUP(B176,'LOC FINAL with new Themes'!A:M,8,0)","v":0},{"$f":"VLOOKUP(B176,'LOC FINAL with new Themes'!A:M,9,0)","v":0},{"$f":"VLOOKUP(B176,'LOC FINAL with new Themes'!A:M,10,0)","v":0},{"$f":"VLOOKUP(B176,'LOC FINAL with new Themes'!A:M,11,0)","v":0},{"$f":"VLOOKUP(B176,'LOC FINAL with new Themes'!A:M,12,0)","v":0},{"$f":"VLOOKUP(B176,'LOC FINAL with new Themes'!A:M,13,0)","v":"S"}]
[null,null,"National  Orthoimagery Dataset - National Map","National  Orthoimagery Dataset - National Map","Imagery ","DOI-USGS"]
["National Aerial Photography Program (NAPP) Data Archive","National Aerial Photography Program (NAPP) Data Archive",null,"National Aerial Photography Program (NAPP) Data Archive","Imagery ","DOI-USGS","Wayne Miller","wamiller@usgs.gov",{"$f":"VLOOKUP(B178,'LOC FINAL with new Themes'!A:M,7,0)","v":"NAPP is static; one data set; this is the POC and data manager; this is the name and maintain three complete with two physically separate on-site and one off-site "},{"$f":"VLOOKUP(B178,'LOC FINAL with new Themes'!A:M,8,0)","v":0},{"$f":"VLOOKUP(B178,'LOC FINAL with new Themes'!A:M,9,0)","v":0},{"$f":"VLOOKUP(B178,'LOC FINAL with new Themes'!A:M,10,0)","v":0},{"$f":"VLOOKUP(B178,'LOC FINAL with new Themes'!A:M,11,0)","v":0},{"$f":"VLOOKUP(B178,'LOC FINAL with new Themes'!A:M,12,0)","v":0},{"$f":"VLOOKUP(B178,'LOC FINAL with new Themes'!A:M,13,0)","v":"S"}]
["National Agriculture Imagery Program Data","National Agriculture Imagery Program Data","National Agriculture Imagery Program (NAIP) Archive","National Agriculture Imagery Program (NAIP) Archive","Imagery ","DOI-USGS","Shirley Hall","shirley.hall@wdc.usda.gov",{"$f":"VLOOKUP(B179,'LOC FINAL with new Themes'!A:M,7,0)","v":"Shirley identified Dan Good as new contact 'daniel.good@wdc.usda.gov' - need to follow up with either or both"},{"$f":"VLOOKUP(B179,'LOC FINAL with new Themes'!A:M,8,0)","v":0},{"$f":"VLOOKUP(B179,'LOC FINAL with new Themes'!A:M,9,0)","v":0},{"$f":"VLOOKUP(B179,'LOC FINAL with new Themes'!A:M,10,0)","v":0},{"$f":"VLOOKUP(B179,'LOC FINAL with new Themes'!A:M,11,0)","v":0},{"$f":"VLOOKUP(B179,'LOC FINAL with new Themes'!A:M,12,0)","v":0},{"$f":"VLOOKUP(B179,'LOC FINAL with new Themes'!A:M,13,0)","v":0}]
["National Map Orthoimagery Database (TNM Seamless Server) ","National Map Orthoimagery Database (TNM Seamless Server) ",null,"National Map Orthoimagery Database (TNM Seamless Server) ","Imagery ","DOI-USGS","George Lee","gylee@usgs.gov",{"$f":"VLOOKUP(B180,'LOC FINAL with new Themes'!A:M,7,0)","v":0},{"$f":"VLOOKUP(B180,'LOC FINAL with new Themes'!A:M,8,0)","v":0},{"$f":"VLOOKUP(B180,'LOC FINAL with new Themes'!A:M,9,0)","v":0},{"$f":"VLOOKUP(B180,'LOC FINAL with new Themes'!A:M,10,0)","v":0},{"$f":"VLOOKUP(B180,'LOC FINAL with new Themes'!A:M,11,0)","v":0},{"$f":"VLOOKUP(B180,'LOC FINAL with new Themes'!A:M,12,0)","v":0},{"$f":"VLOOKUP(B180,'LOC FINAL with new Themes'!A:M,13,0)","v":0}]
[null,null,"Satellite Imagery Archive","Satellite Imagery Archive","Imagery ","USDA-FSA"]
[null,null,null,{"$f":"SUBTOTAL(3,D170:D181)","v":12},"Imagery  Count"]
[null,null,"Crops: Cropland Data Layer",{"$f":"IF(C183=0,B183,C183)","v":"Crops: Cropland Data Layer"},"Land Use-Land Cover ","USDA-NASS"]
[null,null,"Earth Cover, Land: MODIS-based Land Products","Earth Cover, Land: MODIS-based Land Products","Land Use-Land Cover ","USDA -FS (Along with USGS)"]
[null,null,"Earth Cover, Vegetation, Forest: Forest Biomass, Types, Type Groups","Earth Cover, Vegetation, Forest: Forest Biomass, Types, Type Groups","Land Use-Land Cover ","USDA-FS"]
[null,null,"Earth Cover, Vegetation: Percent Forest Canopy","Earth Cover, Vegetation: Percent Forest Canopy","Land Use-Land Cover ","USDA-FS"]
[null,null,"Fire Severity: Monitoring Trends in Burn Severity (MTBS)","Fire Severity: Monitoring Trends in Burn Severity (MTBS)","Land Use-Land Cover ","USDA -FS (Along with USGS)"]
[null,null,"Fire, Detection: Daily Active Fire Mapping","Fire, Detection: Daily Active Fire Mapping","Land Use-Land Cover ","USDA"]
[null,null,"Land Cover Strata Dataset","Land Cover Strata Dataset","Land Use-Land Cover ","USDA-NASS"]
["LANDFIRE Dataset","LANDFIRE Dataset","Land Fire Dataset","Land Fire Dataset","Land Use-Land Cover ",null,null,0,{"$f":"VLOOKUP(B190,'LOC FINAL with new Themes'!A:M,7,0)","v":0},{"$f":"VLOOKUP(B190,'LOC FINAL with new Themes'!A:M,8,0)","v":0},{"$f":"VLOOKUP(B190,'LOC FINAL with new Themes'!A:M,9,0)","v":0},{"$f":"VLOOKUP(B190,'LOC FINAL with new Themes'!A:M,10,0)","v":0},{"$f":"VLOOKUP(B190,'LOC FINAL with new Themes'!A:M,11,0)","v":0},{"$f":"VLOOKUP(B190,'LOC FINAL with new Themes'!A:M,12,0)","v":0},{"$f":"VLOOKUP(B190,'LOC FINAL with new Themes'!A:M,13,0)","v":0}]
["National Land Cover Dataset (NLCD)","National Land Cover Dataset (NLCD)","National Land Cover Dataset - GIRAS - 1975","National Land Cover Dataset - GIRAS - 1975","Land Use-Land Cover ","DOI-USGS","Colin Homer","homer@usgs.gov",{"$f":"VLOOKUP(B191,'LOC FINAL with new Themes'!A:M,7,0)","v":"The table below summarizes NLCD products available for download from the MRLC website http://www.mrlc.gov/ "},{"$f":"VLOOKUP(B191,'LOC FINAL with new Themes'!A:M,8,0)","v":"No.  The \"manager\" of the data is Jon Dewitz. \nContact Information -   \nJon Dewitz\ndewitz@usgs.gov\n605-594-2715\nNLCD Quality Supervisor\nUSGS Earth Resources Observation and Science Center (EROS)\nMundt Federal Building\n47914 252nd St.\nSioux Falls, SD 57198\nfax 605-594-6529\n"},{"$f":"VLOOKUP(B191,'LOC FINAL with new Themes'!A:M,9,0)","v":"Joyce Fry is the POC. \nContact information - \nJoyce Fry, Geographer\nUnited States Geological Survey (USGS)\nEarth Resources Observation and  Science (EROS) Center\nMundt Federal Building\n47914 252nd Street\nSioux Falls, South Dakota 57198\n(P)  605.594.2739\n(F)  605.594.6529\n(e)  jfry@usgs.gov \n"},{"$f":"VLOOKUP(B191,'LOC FINAL with new Themes'!A:M,10,0)","v":"Every 5 years"},{"$f":"VLOOKUP(B191,'LOC FINAL with new Themes'!A:M,11,0)","v":"Yes, there is an archive/backup of the dataset through the EROS Long Term Archive (LTA) group.  I will need to get back to if you need additional information regarding the archive process. "},{"$f":"VLOOKUP(B191,'LOC FINAL with new Themes'!A:M,12,0)","v":"National Land Cover Database or NLCD along with the era number, either 1992 or 2001, or 2006. "},{"$f":"VLOOKUP(B191,'LOC FINAL with new Themes'!A:M,13,0)","v":"S"}]
[null,null,"National Land Cover Dataset - National Map","National Land Cover Dataset - National Map","Land Use-Land Cover ","DOI-USGS"]
[null,null,"National Land Cover Dataset - National Map - 1991","National Land Cover Dataset - National Map - 1991","Land Use-Land Cover ","DOI-USGS"]
[null,null,"National Land Cover Dataset - National Map - 2001","National Land Cover Dataset - National Map - 2001","Land Use-Land Cover ","DOI-USGS"]
[null,null,"National Land Cover Dataset - National Map 2006","National Land Cover Dataset - National Map 2006","Land Use-Land Cover ","DOI-USGS"]
["National Land Cover Dataset (NLCD)","National Land Cover Dataset (NLCD)","National Land Cover Dataset (NLCD)","National Land Cover Dataset (NLCD)","Land Use-Land Cover ","DOI-USGS","Colin Homer","homer@usgs.gov",{"$f":"VLOOKUP(B196,'LOC FINAL with new Themes'!A:M,7,0)","v":"The table below summarizes NLCD products available for download from the MRLC website http://www.mrlc.gov/ "},{"$f":"VLOOKUP(B196,'LOC FINAL with new Themes'!A:M,8,0)","v":"No.  The \"manager\" of the data is Jon Dewitz. \nContact Information -   \nJon Dewitz\ndewitz@usgs.gov\n605-594-2715\nNLCD Quality Supervisor\nUSGS Earth Resources Observation and Science Center (EROS)\nMundt Federal Building\n47914 252nd St.\nSioux Falls, SD 57198\nfax 605-594-6529\n"},{"$f":"VLOOKUP(B196,'LOC FINAL with new Themes'!A:M,9,0)","v":"Joyce Fry is the POC. \nContact information - \nJoyce Fry, Geographer\nUnited States Geological Survey (USGS)\nEarth Resources Observation and  Science (EROS) Center\nMundt Federal Building\n47914 252nd Street\nSioux Falls, South Dakota 57198\n(P)  605.594.2739\n(F)  605.594.6529\n(e)  jfry@usgs.gov \n"},{"$f":"VLOOKUP(B196,'LOC FINAL with new Themes'!A:M,10,0)","v":"Every 5 years"},{"$f":"VLOOKUP(B196,'LOC FINAL with new Themes'!A:M,11,0)","v":"Yes, there is an archive/backup of the dataset through the EROS Long Term Archive (LTA) group.  I will need to get back to if you need additional information regarding the archive process. "},{"$f":"VLOOKUP(B196,'LOC FINAL with new Themes'!A:M,12,0)","v":"National Land Cover Database or NLCD along with the era number, either 1992 or 2001, or 2006. "},{"$f":"VLOOKUP(B196,'LOC FINAL with new Themes'!A:M,13,0)","v":"S"}]
[null,null,"National Land Cover Percent Canopy - National Map - 1991","National Land Cover Percent Canopy - National Map - 1991","Land Use-Land Cover ","DOI-USGS"]
[null,null,"National Land Cover Percent Imperviousness - National Map - 2001","National Land Cover Percent Imperviousness - National Map - 2001","Land Use-Land Cover ","DOI-USGS"]
[null,null,"National Land Cover Percent Imperviousness - National Map - 2006","National Land Cover Percent Imperviousness - National Map - 2006","Land Use-Land Cover ","DOI-USGS"]
["National Parks Data","National Parks Data","National Parks Data","National Parks Data","Land Use-Land Cover ","DOI-NPS","Roger Johnson ","Roger_M_Johnson@nps.gov",{"$f":"VLOOKUP(B200,'LOC FINAL with new Themes'!A:M,7,0)","v":"undeliverable email- neeed to identify new contact"},{"$f":"VLOOKUP(B200,'LOC FINAL with new Themes'!A:M,8,0)","v":0},{"$f":"VLOOKUP(B200,'LOC FINAL with new Themes'!A:M,9,0)","v":0},{"$f":"VLOOKUP(B200,'LOC FINAL with new Themes'!A:M,10,0)","v":0},{"$f":"VLOOKUP(B200,'LOC FINAL with new Themes'!A:M,11,0)","v":0},{"$f":"VLOOKUP(B200,'LOC FINAL with new Themes'!A:M,12,0)","v":0},{"$f":"VLOOKUP(B200,'LOC FINAL with new Themes'!A:M,13,0)","v":0}]
[null,null,null,{"$f":"SUBTOTAL(3,D183:D200)","v":18},"Land Use-Land Cover  Count"]
["Assisted Housing (census geography or point-based) see http://www.huduser.org/picture2000/","Assisted Housing (census geography or point-based)",null,{"$f":"IF(C202=0,B202,C202)","v":"Assisted Housing (census geography or point-based)"},"Real Property","HUD","Jon Sperling","jon.sperling@hud.gov",{"$f":"VLOOKUP(B202,'LOC FINAL with new Themes'!A:M,7,0)","v":0},{"$f":"VLOOKUP(B202,'LOC FINAL with new Themes'!A:M,8,0)","v":0},{"$f":"VLOOKUP(B202,'LOC FINAL with new Themes'!A:M,9,0)","v":0},{"$f":"VLOOKUP(B202,'LOC FINAL with new Themes'!A:M,10,0)","v":0},{"$f":"VLOOKUP(B202,'LOC FINAL with new Themes'!A:M,11,0)","v":0},{"$f":"VLOOKUP(B202,'LOC FINAL with new Themes'!A:M,12,0)","v":0},{"$f":"VLOOKUP(B202,'LOC FINAL with new Themes'!A:M,13,0)","v":0}]
["Enterprise Zones, Empowerment Communities, Revitalization Areas, Qualified Census Tracts, etc.  (census geography based)","Enterprise Zones, Empowerment Communities, Revitalization Areas, Qualified Census Tracts, etc.  (census geography based)",null,"Enterprise Zones, Empowerment Communities, Revitalization Areas, Qualified Census Tracts, etc.  (census geography based)","Real Property","HUD","Jon Sperling","jon.sperling@hud.gov",{"$f":"VLOOKUP(B203,'LOC FINAL with new Themes'!A:M,7,0)","v":0},{"$f":"VLOOKUP(B203,'LOC FINAL with new Themes'!A:M,8,0)","v":0},{"$f":"VLOOKUP(B203,'LOC FINAL with new Themes'!A:M,9,0)","v":0},{"$f":"VLOOKUP(B203,'LOC FINAL with new Themes'!A:M,10,0)","v":0},{"$f":"VLOOKUP(B203,'LOC FINAL with new Themes'!A:M,11,0)","v":0},{"$f":"VLOOKUP(B203,'LOC FINAL with new Themes'!A:M,12,0)","v":0},{"$f":"VLOOKUP(B203,'LOC FINAL with new Themes'!A:M,13,0)","v":0}]
["Federal building location point ","Federal building location point ","Federal building location point ","Federal building location point ","Real Property ","GSA","Sandra Downie","sandra.downie@gsa.gov",{"$f":"VLOOKUP(B204,'LOC FINAL with new Themes'!A:M,7,0)","v":0},{"$f":"VLOOKUP(B204,'LOC FINAL with new Themes'!A:M,8,0)","v":0},{"$f":"VLOOKUP(B204,'LOC FINAL with new Themes'!A:M,9,0)","v":0},{"$f":"VLOOKUP(B204,'LOC FINAL with new Themes'!A:M,10,0)","v":0},{"$f":"VLOOKUP(B204,'LOC FINAL with new Themes'!A:M,11,0)","v":0},{"$f":"VLOOKUP(B204,'LOC FINAL with new Themes'!A:M,12,0)","v":0},{"$f":"VLOOKUP(B204,'LOC FINAL with new Themes'!A:M,13,0)","v":0}]
["Federal building location polygon","Federal building location polygon","Federal building location polygon","Federal building location polygon","Real Property ","GSA","Sandra Downie","sandra.downie@gsa.gov",{"$f":"VLOOKUP(B205,'LOC FINAL with new Themes'!A:M,7,0)","v":0},{"$f":"VLOOKUP(B205,'LOC FINAL with new Themes'!A:M,8,0)","v":0},{"$f":"VLOOKUP(B205,'LOC FINAL with new Themes'!A:M,9,0)","v":0},{"$f":"VLOOKUP(B205,'LOC FINAL with new Themes'!A:M,10,0)","v":0},{"$f":"VLOOKUP(B205,'LOC FINAL with new Themes'!A:M,11,0)","v":0},{"$f":"VLOOKUP(B205,'LOC FINAL with new Themes'!A:M,12,0)","v":0},{"$f":"VLOOKUP(B205,'LOC FINAL with new Themes'!A:M,13,0)","v":0}]
["Federal land area facility location point","Federal land area facility location point","Federal land area facility location point","Federal land area facility location point","Real Property ","GSA","Sandra Downie","sandra.downie@gsa.gov",{"$f":"VLOOKUP(B206,'LOC FINAL with new Themes'!A:M,7,0)","v":0},{"$f":"VLOOKUP(B206,'LOC FINAL with new Themes'!A:M,8,0)","v":0},{"$f":"VLOOKUP(B206,'LOC FINAL with new Themes'!A:M,9,0)","v":0},{"$f":"VLOOKUP(B206,'LOC FINAL with new Themes'!A:M,10,0)","v":0},{"$f":"VLOOKUP(B206,'LOC FINAL with new Themes'!A:M,11,0)","v":0},{"$f":"VLOOKUP(B206,'LOC FINAL with new Themes'!A:M,12,0)","v":0},{"$f":"VLOOKUP(B206,'LOC FINAL with new Themes'!A:M,13,0)","v":0}]
["Federal land area facility location polygon","Federal land area facility location polygon","Federal land area facility location polygon","Federal land area facility location polygon","Real Property ","GSA","Sandra Downie","sandra.downie@gsa.gov",{"$f":"VLOOKUP(B207,'LOC FINAL with new Themes'!A:M,7,0)","v":0},{"$f":"VLOOKUP(B207,'LOC FINAL with new Themes'!A:M,8,0)","v":0},{"$f":"VLOOKUP(B207,'LOC FINAL with new Themes'!A:M,9,0)","v":0},{"$f":"VLOOKUP(B207,'LOC FINAL with new Themes'!A:M,10,0)","v":0},{"$f":"VLOOKUP(B207,'LOC FINAL with new Themes'!A:M,11,0)","v":0},{"$f":"VLOOKUP(B207,'LOC FINAL with new Themes'!A:M,12,0)","v":0},{"$f":"VLOOKUP(B207,'LOC FINAL with new Themes'!A:M,13,0)","v":0}]
["National Map - Structures Dataset","National Map - Structures Dataset","National Structures Dataset - National Map","National Structures Dataset - National Map","Real Property ","DOI-USGS","Paul Wiese","pmwiese@usgs.gov",{"$f":"VLOOKUP(B208,'LOC FINAL with new Themes'!A:M,7,0)","v":"National Map updates monthly; a series of data sets; this is the POC and data manager; this is the name and maintain three complete with two physically separate on-site and one off-site"},{"$f":"VLOOKUP(B208,'LOC FINAL with new Themes'!A:M,8,0)","v":0},{"$f":"VLOOKUP(B208,'LOC FINAL with new Themes'!A:M,9,0)","v":0},{"$f":"VLOOKUP(B208,'LOC FINAL with new Themes'!A:M,10,0)","v":0},{"$f":"VLOOKUP(B208,'LOC FINAL with new Themes'!A:M,11,0)","v":0},{"$f":"VLOOKUP(B208,'LOC FINAL with new Themes'!A:M,12,0)","v":0},{"$f":"VLOOKUP(B208,'LOC FINAL with new Themes'!A:M,13,0)","v":"S"}]
[null,null,null,{"$f":"SUBTOTAL(3,D202:D208)","v":7},"Real Property Count"]
[null,"Military Installation","Military Installation",{"$f":"IF(C210=0,B210,C210)","v":"Military Installation"},"Real Property\nCultural & Demographic Statistics","DOC-Census","Jennifer Holland","Jennifer.L.Holland@census.gov",{"$f":"VLOOKUP(B210,'LOC FINAL with new Themes'!A:M,7,0)","v":0},{"$f":"VLOOKUP(B210,'LOC FINAL with new Themes'!A:M,8,0)","v":0},{"$f":"VLOOKUP(B210,'LOC FINAL with new Themes'!A:M,9,0)","v":0},{"$f":"VLOOKUP(B210,'LOC FINAL with new Themes'!A:M,10,0)","v":0},{"$f":"VLOOKUP(B210,'LOC FINAL with new Themes'!A:M,11,0)","v":0},{"$f":"VLOOKUP(B210,'LOC FINAL with new Themes'!A:M,12,0)","v":0},{"$f":"VLOOKUP(B210,'LOC FINAL with new Themes'!A:M,13,0)","v":0}]
[null,null,null,{"$f":"SUBTOTAL(3,D210:D210)","v":1},"Real Property\nCultural & Demographic Statistics Count"]
["Common Resource Area (CRA)","Common Resource Area (CRA)","Common Resource Area (CRA)",{"$f":"IF(C212=0,B212,C212)","v":"Common Resource Area (CRA)"},"Soils ","USDA-NRCS","David Hoover","David.Hoover@wdc.usda.gov",{"$f":"VLOOKUP(B212,'LOC FINAL with new Themes'!A:M,7,0)","v":0},{"$f":"VLOOKUP(B212,'LOC FINAL with new Themes'!A:M,8,0)","v":0},{"$f":"VLOOKUP(B212,'LOC FINAL with new Themes'!A:M,9,0)","v":0},{"$f":"VLOOKUP(B212,'LOC FINAL with new Themes'!A:M,10,0)","v":0},{"$f":"VLOOKUP(B212,'LOC FINAL with new Themes'!A:M,11,0)","v":0},{"$f":"VLOOKUP(B212,'LOC FINAL with new Themes'!A:M,12,0)","v":0},{"$f":"VLOOKUP(B212,'LOC FINAL with new Themes'!A:M,13,0)","v":0}]
["Major Land Resource Area (MLRA)","Major Land Resource Area (MLRA)","Major Land Resource Area (MLRA)","Major Land Resource Area (MLRA)","Soils ","USDA-NRCS","David Hoover","David.Hoover@wdc.usda.gov",{"$f":"VLOOKUP(B213,'LOC FINAL with new Themes'!A:M,7,0)","v":"undeliverable email- neeed to identify new contact"},{"$f":"VLOOKUP(B213,'LOC FINAL with new Themes'!A:M,8,0)","v":0},{"$f":"VLOOKUP(B213,'LOC FINAL with new Themes'!A:M,9,0)","v":0},{"$f":"VLOOKUP(B213,'LOC FINAL with new Themes'!A:M,10,0)","v":0},{"$f":"VLOOKUP(B213,'LOC FINAL with new Themes'!A:M,11,0)","v":0},{"$f":"VLOOKUP(B213,'LOC FINAL with new Themes'!A:M,12,0)","v":0},{"$f":"VLOOKUP(B213,'LOC FINAL with new Themes'!A:M,13,0)","v":0}]
["National Cooperative Soil Survey (NCSS)","National Cooperative Soil Survey (NCSS)","National Cooperative Soil Characterization Database","National Cooperative Soil Characterization Database","Soils ","USDA-NRCS","Larry West","Larry.West@lin.usda.gov",{"$f":"VLOOKUP(B214,'LOC FINAL with new Themes'!A:M,7,0)","v":"We have our Soil Survey Geographic database called SSURGO which is made available through the following sites:\nWeb Soil Survey:    http://websoilsurvey.nrcs.usda.gov/app/\nSoil Data Mart:     http://soildatamart.nrcs.usda.gov/\nSoil Data Access:   http://sdmdataaccess.nrcs.usda.gov\n\nWe also have: \nLab Soil Survey Lab Characterization Data (Point data): http://ssldata.nrcs.usda.gov/ aka NCSS Characterization Database\nSoil Series Classification Database http://soils.usda.gov/technical/classification/scfile/index.html\nU.S. General Soil Map (STATSGO2)\nMajor Land Resource Area (MLRA) http://soils.usda.gov/survey/geography/mlra/\n             Common Resource Areas (CRA) \n\n"},{"$f":"VLOOKUP(B214,'LOC FINAL with new Themes'!A:M,8,0)","v":"? No, I am a Program Manager. Various other people have roles of maintaining the data. "},{"$f":"VLOOKUP(B214,'LOC FINAL with new Themes'!A:M,9,0)","v":"I am a general information POC for all things soil survey related. For more technical aspects on our data sets a good POC would be David Hoover, National Leader for Soil Business Systems or someone on his staff. His contact number is 402-437-4013 or email at david.hoover@lin.usda.gov. "},{"$f":"VLOOKUP(B214,'LOC FINAL with new Themes'!A:M,10,0)","v":"Our data sets are constantly being updated by about 1000 soil and plant scientists in several agencies. "},{"$f":"VLOOKUP(B214,'LOC FINAL with new Themes'!A:M,11,0)","v":"Our data sets are archived, but I don’t know how far back. I will have to get back to you on that. It is my understanding that archived sets are not easily accessible.  We have archive data for SSURGO (Soil Data Warehouse from mid 2000’s or earlier – Jim Fortner or Jennifer Sweet may be able to confirm or provide more detail; We also have archive data for STATSGO (circa 1994;1996) and for MLRA (1978; 2001; 2006) in local holdings.  Not sure about lab data archives, Henry Ferguson or Larry West can confirm.  "},{"$f":"VLOOKUP(B214,'LOC FINAL with new Themes'!A:M,12,0)","v":"? the Lab Characterization Data is also known as the “NCSS Characterization Database”\nAdded Common Resource Area geographic database (CRA)."},{"$f":"VLOOKUP(B214,'LOC FINAL with new Themes'!A:M,13,0)","v":"P"}]
["Soil Survey Geographic Database (SSURGO)","Soil Survey Geographic Database (SSURGO)","Soil Survey Geographic Database (SSURGO)","Soil Survey Geographic Database (SSURGO)","Soils ","USDA-NRCS","David Hoover","David.Hoover@wdc.usda.gov",{"$f":"VLOOKUP(B215,'LOC FINAL with new Themes'!A:M,7,0)","v":"undeliverable email- neeed to identify new contact"},{"$f":"VLOOKUP(B215,'LOC FINAL with new Themes'!A:M,8,0)","v":0},{"$f":"VLOOKUP(B215,'LOC FINAL with new Themes'!A:M,9,0)","v":0},{"$f":"VLOOKUP(B215,'LOC FINAL with new Themes'!A:M,10,0)","v":0},{"$f":"VLOOKUP(B215,'LOC FINAL with new Themes'!A:M,11,0)","v":0},{"$f":"VLOOKUP(B215,'LOC FINAL with new Themes'!A:M,12,0)","v":0},{"$f":"VLOOKUP(B215,'LOC FINAL with new Themes'!A:M,13,0)","v":0}]
["U.S. General Soil Map (STATSGO2)","U.S. General Soil Map (STATSGO2)","U.S. General Soil Map (STATSGO2)","U.S. General Soil Map (STATSGO2)","Soils ","USDA-NRCS","David Hoover","David.Hoover@wdc.usda.gov",{"$f":"VLOOKUP(B216,'LOC FINAL with new Themes'!A:M,7,0)","v":"undeliverable email- neeed to identify new contact"},{"$f":"VLOOKUP(B216,'LOC FINAL with new Themes'!A:M,8,0)","v":0},{"$f":"VLOOKUP(B216,'LOC FINAL with new Themes'!A:M,9,0)","v":0},{"$f":"VLOOKUP(B216,'LOC FINAL with new Themes'!A:M,10,0)","v":0},{"$f":"VLOOKUP(B216,'LOC FINAL with new Themes'!A:M,11,0)","v":0},{"$f":"VLOOKUP(B216,'LOC FINAL with new Themes'!A:M,12,0)","v":0},{"$f":"VLOOKUP(B216,'LOC FINAL with new Themes'!A:M,13,0)","v":0}]
[null,null,null,{"$f":"SUBTOTAL(3,D212:D216)","v":5},"Soils  Count"]
[null,"Address Range-Feature Name Relationship File","Address Range-Feature Name Relationship File",{"$f":"IF(C218=0,B218,C218)","v":"Address Range-Feature Name Relationship File"},"Transportation ","DOC-Census","Jennifer Holland","Jennifer.L.Holland@census.gov",{"$f":"VLOOKUP(B218,'LOC FINAL with new Themes'!A:M,7,0)","v":0},{"$f":"VLOOKUP(B218,'LOC FINAL with new Themes'!A:M,8,0)","v":0},{"$f":"VLOOKUP(B218,'LOC FINAL with new Themes'!A:M,9,0)","v":0},{"$f":"VLOOKUP(B218,'LOC FINAL with new Themes'!A:M,10,0)","v":0},{"$f":"VLOOKUP(B218,'LOC FINAL with new Themes'!A:M,11,0)","v":0},{"$f":"VLOOKUP(B218,'LOC FINAL with new Themes'!A:M,12,0)","v":0},{"$f":"VLOOKUP(B218,'LOC FINAL with new Themes'!A:M,13,0)","v":0}]
[null,"Address Ranges Relationship File","Address Ranges Relationship File","Address Ranges Relationship File","Transportation ","DOC-Census","Jennifer Holland","Jennifer.L.Holland@census.gov",{"$f":"VLOOKUP(B219,'LOC FINAL with new Themes'!A:M,7,0)","v":0},{"$f":"VLOOKUP(B219,'LOC FINAL with new Themes'!A:M,8,0)","v":0},{"$f":"VLOOKUP(B219,'LOC FINAL with new Themes'!A:M,9,0)","v":0},{"$f":"VLOOKUP(B219,'LOC FINAL with new Themes'!A:M,10,0)","v":0},{"$f":"VLOOKUP(B219,'LOC FINAL with new Themes'!A:M,11,0)","v":0},{"$f":"VLOOKUP(B219,'LOC FINAL with new Themes'!A:M,12,0)","v":0},{"$f":"VLOOKUP(B219,'LOC FINAL with new Themes'!A:M,13,0)","v":0}]
[null,"All Roads","All Roads","All Roads","Transportation ","DOC-Census","Jennifer Holland","Jennifer.L.Holland@census.gov",{"$f":"VLOOKUP(B220,'LOC FINAL with new Themes'!A:M,7,0)","v":0},{"$f":"VLOOKUP(B220,'LOC FINAL with new Themes'!A:M,8,0)","v":0},{"$f":"VLOOKUP(B220,'LOC FINAL with new Themes'!A:M,9,0)","v":0},{"$f":"VLOOKUP(B220,'LOC FINAL with new Themes'!A:M,10,0)","v":0},{"$f":"VLOOKUP(B220,'LOC FINAL with new Themes'!A:M,11,0)","v":0},{"$f":"VLOOKUP(B220,'LOC FINAL with new Themes'!A:M,12,0)","v":0},{"$f":"VLOOKUP(B220,'LOC FINAL with new Themes'!A:M,13,0)","v":0}]
["Inland Electronic Navigation Charts (IENC)","Inland Electronic Navigation Charts (IENC)","Inland Electronic Navigation Charts (IENC)","Inland Electronic Navigation Charts (IENC)","Transportation ","DOD-USACE","Joel Schlagel","Joel.D.Schlagel@erdc.usace.army.mil ",{"$f":"VLOOKUP(B221,'LOC FINAL with new Themes'!A:M,7,0)","v":0},{"$f":"VLOOKUP(B221,'LOC FINAL with new Themes'!A:M,8,0)","v":0},{"$f":"VLOOKUP(B221,'LOC FINAL with new Themes'!A:M,9,0)","v":0},{"$f":"VLOOKUP(B221,'LOC FINAL with new Themes'!A:M,10,0)","v":0},{"$f":"VLOOKUP(B221,'LOC FINAL with new Themes'!A:M,11,0)","v":0},{"$f":"VLOOKUP(B221,'LOC FINAL with new Themes'!A:M,12,0)","v":0},{"$f":"VLOOKUP(B221,'LOC FINAL with new Themes'!A:M,13,0)","v":0}]
[null,null,"National Interagency Trails Dataset","National Interagency Trails Dataset","Transportation ","USDA"]
["National Map - Transportation Dataset","National Map - Transportation Dataset","National Transportation Dataset - National Map","National Transportation Dataset - National Map","Transportation ","DOI-USGS","Paul Wiese","pmwiese@usgs.gov",{"$f":"VLOOKUP(B223,'LOC FINAL with new Themes'!A:M,7,0)","v":0},{"$f":"VLOOKUP(B223,'LOC FINAL with new Themes'!A:M,8,0)","v":0},{"$f":"VLOOKUP(B223,'LOC FINAL with new Themes'!A:M,9,0)","v":0},{"$f":"VLOOKUP(B223,'LOC FINAL with new Themes'!A:M,10,0)","v":0},{"$f":"VLOOKUP(B223,'LOC FINAL with new Themes'!A:M,11,0)","v":0},{"$f":"VLOOKUP(B223,'LOC FINAL with new Themes'!A:M,12,0)","v":0},{"$f":"VLOOKUP(B223,'LOC FINAL with new Themes'!A:M,13,0)","v":0}]
["NTAD","NTAD","NTAD","NTAD","Transportation ","DOT-BTS","Robert Monniere","robert.monniere@dot.gov",{"$f":"VLOOKUP(B224,'LOC FINAL with new Themes'!A:M,7,0)","v":0},{"$f":"VLOOKUP(B224,'LOC FINAL with new Themes'!A:M,8,0)","v":0},{"$f":"VLOOKUP(B224,'LOC FINAL with new Themes'!A:M,9,0)","v":0},{"$f":"VLOOKUP(B224,'LOC FINAL with new Themes'!A:M,10,0)","v":0},{"$f":"VLOOKUP(B224,'LOC FINAL with new Themes'!A:M,11,0)","v":0},{"$f":"VLOOKUP(B224,'LOC FINAL with new Themes'!A:M,12,0)","v":0},{"$f":"VLOOKUP(B224,'LOC FINAL with new Themes'!A:M,13,0)","v":0}]
[null,null,"NTAD (airports)","NTAD (airports)","Transportation ","DOT-BTS"]
[null,null,"NTAD (Rail)","NTAD (Rail)","Transportation ","DOT-BTS"]
["NTAD (TransitLines) ","NTAD (TransitLines) ","NTAD (TransitLines) ","NTAD (TransitLines) ","Transportation ","DOT-BTS","Robert Monniere ","robert.monniere@dot.gov \n",{"$f":"VLOOKUP(B227,'LOC FINAL with new Themes'!A:M,7,0)","v":0},{"$f":"VLOOKUP(B227,'LOC FINAL with new Themes'!A:M,8,0)","v":0},{"$f":"VLOOKUP(B227,'LOC FINAL with new Themes'!A:M,9,0)","v":0},{"$f":"VLOOKUP(B227,'LOC FINAL with new Themes'!A:M,10,0)","v":0},{"$f":"VLOOKUP(B227,'LOC FINAL with new Themes'!A:M,11,0)","v":0},{"$f":"VLOOKUP(B227,'LOC FINAL with new Themes'!A:M,12,0)","v":0},{"$f":"VLOOKUP(B227,'LOC FINAL with new Themes'!A:M,13,0)","v":0}]
["NTAD (TransitStation) ","NTAD (TransitStation) ","NTAD (TransitStation) ","NTAD (TransitStation) ","Transportation ","DOT-BTS","Robert Monniere ","robert.monniere@dot.gov ",{"$f":"VLOOKUP(B228,'LOC FINAL with new Themes'!A:M,7,0)","v":0},{"$f":"VLOOKUP(B228,'LOC FINAL with new Themes'!A:M,8,0)","v":0},{"$f":"VLOOKUP(B228,'LOC FINAL with new Themes'!A:M,9,0)","v":0},{"$f":"VLOOKUP(B228,'LOC FINAL with new Themes'!A:M,10,0)","v":0},{"$f":"VLOOKUP(B228,'LOC FINAL with new Themes'!A:M,11,0)","v":0},{"$f":"VLOOKUP(B228,'LOC FINAL with new Themes'!A:M,12,0)","v":0},{"$f":"VLOOKUP(B228,'LOC FINAL with new Themes'!A:M,13,0)","v":0}]
[null,"Primary and Secondary Roads","Primary and Secondary Roads",{"$f":"IF(C229=0,#REF!,C229)","v":"Primary and Secondary Roads"},"Transportation ","DOC-Census","Jennifer Holland","Jennifer.L.Holland@census.gov",{"$f":"VLOOKUP(B229,'LOC FINAL with new Themes'!A:M,7,0)","v":0},{"$f":"VLOOKUP(B229,'LOC FINAL with new Themes'!A:M,8,0)","v":0},{"$f":"VLOOKUP(B229,'LOC FINAL with new Themes'!A:M,9,0)","v":0},{"$f":"VLOOKUP(B229,'LOC FINAL with new Themes'!A:M,10,0)","v":0},{"$f":"VLOOKUP(B229,'LOC FINAL with new Themes'!A:M,11,0)","v":0},{"$f":"VLOOKUP(B229,'LOC FINAL with new Themes'!A:M,12,0)","v":0},{"$f":"VLOOKUP(B229,'LOC FINAL with new Themes'!A:M,13,0)","v":0}]
[null,"Primary Roads","Primary Roads",{"$f":"IF(C230=0,B230,C230)","v":"Primary Roads"},"Transportation ","DOC-Census","Jennifer Holland","Jennifer.L.Holland@census.gov",{"$f":"VLOOKUP(B230,'LOC FINAL with new Themes'!A:M,7,0)","v":0},{"$f":"VLOOKUP(B230,'LOC FINAL with new Themes'!A:M,8,0)","v":0},{"$f":"VLOOKUP(B230,'LOC FINAL with new Themes'!A:M,9,0)","v":0},{"$f":"VLOOKUP(B230,'LOC FINAL with new Themes'!A:M,10,0)","v":0},{"$f":"VLOOKUP(B230,'LOC FINAL with new Themes'!A:M,11,0)","v":0},{"$f":"VLOOKUP(B230,'LOC FINAL with new Themes'!A:M,12,0)","v":0},{"$f":"VLOOKUP(B230,'LOC FINAL with new Themes'!A:M,13,0)","v":0}]
["TIGER (Roads/Rail)","TIGER (Roads/Rail)",null,{"$f":"IF(C231=0,B231,C231)","v":"TIGER (Roads/Rail)"},"Transportation ","DOC-Census","Randy Fusaro","randy.j.fusaro@census.gov",{"$f":"VLOOKUP(B231,'LOC FINAL with new Themes'!A:M,7,0)","v":0},{"$f":"VLOOKUP(B231,'LOC FINAL with new Themes'!A:M,8,0)","v":0},{"$f":"VLOOKUP(B231,'LOC FINAL with new Themes'!A:M,9,0)","v":0},{"$f":"VLOOKUP(B231,'LOC FINAL with new Themes'!A:M,10,0)","v":0},{"$f":"VLOOKUP(B231,'LOC FINAL with new Themes'!A:M,11,0)","v":0},{"$f":"VLOOKUP(B231,'LOC FINAL with new Themes'!A:M,12,0)","v":0},{"$f":"VLOOKUP(B231,'LOC FINAL with new Themes'!A:M,13,0)","v":0}]
[null,"Traffic Analysis Zone (Census 2000)","Traffic Analysis Zone (Census 2000)",{"$f":"IF(C232=0,B232,C232)","v":"Traffic Analysis Zone (Census 2000)"},"Transportation ","DOC-Census","Jennifer Holland","Jennifer.L.Holland@census.gov",{"$f":"VLOOKUP(B232,'LOC FINAL with new Themes'!A:M,7,0)","v":0},{"$f":"VLOOKUP(B232,'LOC FINAL with new Themes'!A:M,8,0)","v":0},{"$f":"VLOOKUP(B232,'LOC FINAL with new Themes'!A:M,9,0)","v":0},{"$f":"VLOOKUP(B232,'LOC FINAL with new Themes'!A:M,10,0)","v":0},{"$f":"VLOOKUP(B232,'LOC FINAL with new Themes'!A:M,11,0)","v":0},{"$f":"VLOOKUP(B232,'LOC FINAL with new Themes'!A:M,12,0)","v":0},{"$f":"VLOOKUP(B232,'LOC FINAL with new Themes'!A:M,13,0)","v":0}]
[null,null,null,{"$f":"SUBTOTAL(3,D218:D232)","v":15},"Transportation  Count"]
[null,null,"Pipelines",{"$f":"IF(C234=0,B234,C234)","v":"Pipelines"},"Utilities ","DOI-BOEM","Doug Vandegraft","Doug.Vandegraft@boem.gov"]
[null,null,"Platforms",{"$f":"IF(C235=0,B235,C235)","v":"Platforms"},"Utilities ","DOI-MMS","Doug Vandegraft","Doug.Vandegraft@boem.gov"]
[null,null,null,{"$f":"SUBTOTAL(3,D234:D235)","v":2},"Utilities  Count"]
[null,"Area Hydrography (2010 Census)","Area Hydrography (2010 Census)",{"$f":"IF(C237=0,B237,C237)","v":"Area Hydrography (2010 Census)"},"Water -- Inland","DOC-Census","Jennifer Holland","Jennifer.L.Holland@census.gov",{"$f":"VLOOKUP(B237,'LOC FINAL with new Themes'!A:M,7,0)","v":0},{"$f":"VLOOKUP(B237,'LOC FINAL with new Themes'!A:M,8,0)","v":0},{"$f":"VLOOKUP(B237,'LOC FINAL with new Themes'!A:M,9,0)","v":0},{"$f":"VLOOKUP(B237,'LOC FINAL with new Themes'!A:M,10,0)","v":0},{"$f":"VLOOKUP(B237,'LOC FINAL with new Themes'!A:M,11,0)","v":0},{"$f":"VLOOKUP(B237,'LOC FINAL with new Themes'!A:M,12,0)","v":0},{"$f":"VLOOKUP(B237,'LOC FINAL with new Themes'!A:M,13,0)","v":0}]
[null,"Linear Water Features","Linear Water Features","Linear Water Features","Water -- Inland","DOC-Census","Jennifer Holland","Jennifer.L.Holland@census.gov",{"$f":"VLOOKUP(B238,'LOC FINAL with new Themes'!A:M,7,0)","v":0},{"$f":"VLOOKUP(B238,'LOC FINAL with new Themes'!A:M,8,0)","v":0},{"$f":"VLOOKUP(B238,'LOC FINAL with new Themes'!A:M,9,0)","v":0},{"$f":"VLOOKUP(B238,'LOC FINAL with new Themes'!A:M,10,0)","v":0},{"$f":"VLOOKUP(B238,'LOC FINAL with new Themes'!A:M,11,0)","v":0},{"$f":"VLOOKUP(B238,'LOC FINAL with new Themes'!A:M,12,0)","v":0},{"$f":"VLOOKUP(B238,'LOC FINAL with new Themes'!A:M,13,0)","v":0}]
["National Hydrography Data Set","National Hydrography Dataset","National Hydrography Dataset - National Map","National Hydrography Dataset - National Map","Water -- Inland","DOI-USGS","Jeff Simley","jdsimley@usgs.gov",{"$f":"VLOOKUP(B239,'LOC FINAL with new Themes'!A:M,7,0)","v":0},{"$f":"VLOOKUP(B239,'LOC FINAL with new Themes'!A:M,8,0)","v":0},{"$f":"VLOOKUP(B239,'LOC FINAL with new Themes'!A:M,9,0)","v":0},{"$f":"VLOOKUP(B239,'LOC FINAL with new Themes'!A:M,10,0)","v":0},{"$f":"VLOOKUP(B239,'LOC FINAL with new Themes'!A:M,11,0)","v":0},{"$f":"VLOOKUP(B239,'LOC FINAL with new Themes'!A:M,12,0)","v":0},{"$f":"VLOOKUP(B239,'LOC FINAL with new Themes'!A:M,13,0)","v":0}]
["National Inventory of Dams (NID)","National Inventory of Dams (NID)","National Inventory of Dams (NID)","National Inventory of Dams (NID)","Water -- Inland","DOD-USACE","Rebecca Ragon","Rebecca.Ragon@usace.army.mil ",{"$f":"VLOOKUP(B240,'LOC FINAL with new Themes'!A:M,7,0)","v":"One single data set"},{"$f":"VLOOKUP(B240,'LOC FINAL with new Themes'!A:M,8,0)","v":"Yes"},{"$f":"VLOOKUP(B240,'LOC FINAL with new Themes'!A:M,9,0)","v":"Yes"},{"$f":"VLOOKUP(B240,'LOC FINAL with new Themes'!A:M,10,0)","v":"Usually every 2 years"},{"$f":"VLOOKUP(B240,'LOC FINAL with new Themes'!A:M,11,0)","v":"Because the NID is updated every 2 years, we do have archived databased datig back to 1994."},{"$f":"VLOOKUP(B240,'LOC FINAL with new Themes'!A:M,12,0)","v":"The official name is National Inventory of Dams (NID) but I have seen the database referenced as the National Dam Inventory"},{"$f":"VLOOKUP(B240,'LOC FINAL with new Themes'!A:M,13,0)","v":"S"}]
["National Levee Database (NLD)","National Levee Database (NLD)","National Levee Database (NLD)","National Levee Database (NLD)","Water -- Inland","DOD-USACE","Bryan Baker","Bryan.E.Baker@usace.army.mil",{"$f":"VLOOKUP(B241,'LOC FINAL with new Themes'!A:M,7,0)","v":0},{"$f":"VLOOKUP(B241,'LOC FINAL with new Themes'!A:M,8,0)","v":0},{"$f":"VLOOKUP(B241,'LOC FINAL with new Themes'!A:M,9,0)","v":0},{"$f":"VLOOKUP(B241,'LOC FINAL with new Themes'!A:M,10,0)","v":0},{"$f":"VLOOKUP(B241,'LOC FINAL with new Themes'!A:M,11,0)","v":0},{"$f":"VLOOKUP(B241,'LOC FINAL with new Themes'!A:M,12,0)","v":0},{"$f":"VLOOKUP(B241,'LOC FINAL with new Themes'!A:M,13,0)","v":0}]
[null,null,"National Water Information System (NWIS)- Stream Gage Network","National Water Information System (NWIS)- Stream Gage Network","Water -- Inland","DOI-USGS"]
[null,null,"National Water Information System (NWIS)- Water Quality Monitoring Stations","National Water Information System (NWIS)- Water Quality Monitoring Stations","Water -- Inland","DOI-USGS"]
["National Wetlands Inventory (NWI) ","National Wetlands Inventory (NWI) ","National Wetlands Inventory (NWI) ","National Wetlands Inventory (NWI) ","Water -- Inland","DOI-FWS","Tom Dahl  ","tom_dahl@fws.gov\n",{"$f":"VLOOKUP(B244,'LOC FINAL with new Themes'!A:M,7,0)","v":0},{"$f":"VLOOKUP(B244,'LOC FINAL with new Themes'!A:M,8,0)","v":0},{"$f":"VLOOKUP(B244,'LOC FINAL with new Themes'!A:M,9,0)","v":0},{"$f":"VLOOKUP(B244,'LOC FINAL with new Themes'!A:M,10,0)","v":0},{"$f":"VLOOKUP(B244,'LOC FINAL with new Themes'!A:M,11,0)","v":0},{"$f":"VLOOKUP(B244,'LOC FINAL with new Themes'!A:M,12,0)","v":0},{"$f":"VLOOKUP(B244,'LOC FINAL with new Themes'!A:M,13,0)","v":0}]
["NWIS & STORET","NWIS & STORET",null,"NWIS & STORET","Water -- Inland",null,"EGIM",null,{"$f":"VLOOKUP(B245,'LOC FINAL with new Themes'!A:M,7,0)","v":0},{"$f":"VLOOKUP(B245,'LOC FINAL with new Themes'!A:M,8,0)","v":0},{"$f":"VLOOKUP(B245,'LOC FINAL with new Themes'!A:M,9,0)","v":0},{"$f":"VLOOKUP(B245,'LOC FINAL with new Themes'!A:M,10,0)","v":0},{"$f":"VLOOKUP(B245,'LOC FINAL with new Themes'!A:M,11,0)","v":0},{"$f":"VLOOKUP(B245,'LOC FINAL with new Themes'!A:M,12,0)","v":0},{"$f":"VLOOKUP(B245,'LOC FINAL with new Themes'!A:M,13,0)","v":0}]
[null,"Topological Faces-Area Hydrography Relationship File","Topological Faces-Area Hydrography Relationship File","Topological Faces-Area Hydrography Relationship File","Water -- Inland","DOC-Census","Jennifer Holland","Jennifer.L.Holland@census.gov",{"$f":"VLOOKUP(B246,'LOC FINAL with new Themes'!A:M,7,0)","v":0},{"$f":"VLOOKUP(B246,'LOC FINAL with new Themes'!A:M,8,0)","v":0},{"$f":"VLOOKUP(B246,'LOC FINAL with new Themes'!A:M,9,0)","v":0},{"$f":"VLOOKUP(B246,'LOC FINAL with new Themes'!A:M,10,0)","v":0},{"$f":"VLOOKUP(B246,'LOC FINAL with new Themes'!A:M,11,0)","v":0},{"$f":"VLOOKUP(B246,'LOC FINAL with new Themes'!A:M,12,0)","v":0},{"$f":"VLOOKUP(B246,'LOC FINAL with new Themes'!A:M,13,0)","v":0}]
["Watershed Boundary Data Set (WBD)  ","Watershed Boundary Dataset (WBD)  ","Watershed Boundary Dataset (WBD)  ","Watershed Boundary Dataset (WBD)  ","Water -- Inland","DOI-USGS","Karen Hanson","khanson@usgs.gov",{"$f":"VLOOKUP(B247,'LOC FINAL with new Themes'!A:M,7,0)","v":"one set with nested hierarchy of six different levels within it (regions, subdivided into four, six and twelve digits), POC and data manager; continually updated; co-managed with NRCS and they archive it; USGS in Denver will serve it; All transactions are archived in versions in the database as they happen. Data from any moment in time can be captured with a simple query. The database is replicated daily to Rolla, MO servers. The database is stored on a SAN with three tier redundancy.All changes to the database are stored on separate disks and once they reach a certain size, they are copied over to a server to be written to tape. Weekly, the entire database (NHD, with WBD) is written to tape.Monthly, the tapes are taken off site for storage."},{"$f":"VLOOKUP(B247,'LOC FINAL with new Themes'!A:M,8,0)","v":0},{"$f":"VLOOKUP(B247,'LOC FINAL with new Themes'!A:M,9,0)","v":0},{"$f":"VLOOKUP(B247,'LOC FINAL with new Themes'!A:M,10,0)","v":0},{"$f":"VLOOKUP(B247,'LOC FINAL with new Themes'!A:M,11,0)","v":0},{"$f":"VLOOKUP(B247,'LOC FINAL with new Themes'!A:M,12,0)","v":0},{"$f":"VLOOKUP(B247,'LOC FINAL with new Themes'!A:M,13,0)","v":"S"}]
["Watershed Boundary Data Set (WBD)  ","Watershed Boundary Dataset (WBD)  ","Watershed Boundary Dataset (WBD)  ","Watershed Boundary Dataset (WBD)  ","Water -- Inland","DOI-USGS","Karen Hanson","khanson@usgs.gov",{"$f":"VLOOKUP(B248,'LOC FINAL with new Themes'!A:M,7,0)","v":"one set with nested hierarchy of six different levels within it (regions, subdivided into four, six and twelve digits), POC and data manager; continually updated; co-managed with NRCS and they archive it; USGS in Denver will serve it; All transactions are archived in versions in the database as they happen. Data from any moment in time can be captured with a simple query. The database is replicated daily to Rolla, MO servers. The database is stored on a SAN with three tier redundancy.All changes to the database are stored on separate disks and once they reach a certain size, they are copied over to a server to be written to tape. Weekly, the entire database (NHD, with WBD) is written to tape.Monthly, the tapes are taken off site for storage."},{"$f":"VLOOKUP(B248,'LOC FINAL with new Themes'!A:M,8,0)","v":0},{"$f":"VLOOKUP(B248,'LOC FINAL with new Themes'!A:M,9,0)","v":0},{"$f":"VLOOKUP(B248,'LOC FINAL with new Themes'!A:M,10,0)","v":0},{"$f":"VLOOKUP(B248,'LOC FINAL with new Themes'!A:M,11,0)","v":0},{"$f":"VLOOKUP(B248,'LOC FINAL with new Themes'!A:M,12,0)","v":0},{"$f":"VLOOKUP(B248,'LOC FINAL with new Themes'!A:M,13,0)","v":"S"}]
[null,null,null,{"$f":"SUBTOTAL(3,D237:D248)","v":12},"Water -- Inland Count"]
[null,null,"Coastal Barrier Resource System",{"$f":"IF(C250=0,B250,C250)","v":"Coastal Barrier Resource System"},"Water -- Oceans and Coasts ","DOI-FWS"]
[null,null,"Coastal Change Analysis Program (C-CAP) Land Cover and Land Change Imagery","Coastal Change Analysis Program (C-CAP) Land Cover and Land Change Imagery","Water -- Oceans and Coasts ","DOC-NOAA","Nate Herold","nate.herold@noaa.gov"]
["Continental Shelf Boundary Data","Continental Shelf Boundary Data","Continental Shelf Boundary Data","Continental Shelf Boundary Data","Water -- Oceans and Coasts ","DOI-BOEM","Doug Vandegraft","Doug.Vandegraft@boem.gov",{"$f":"VLOOKUP(B252,'LOC FINAL with new Themes'!A:M,7,0)","v":"undeliverable email- neeed to identify new contact"},{"$f":"VLOOKUP(B252,'LOC FINAL with new Themes'!A:M,8,0)","v":0},{"$f":"VLOOKUP(B252,'LOC FINAL with new Themes'!A:M,9,0)","v":0},{"$f":"VLOOKUP(B252,'LOC FINAL with new Themes'!A:M,10,0)","v":0},{"$f":"VLOOKUP(B252,'LOC FINAL with new Themes'!A:M,11,0)","v":0},{"$f":"VLOOKUP(B252,'LOC FINAL with new Themes'!A:M,12,0)","v":0},{"$f":"VLOOKUP(B252,'LOC FINAL with new Themes'!A:M,13,0)","v":0}]
[null,null,"National Data Buoy Center (NDBC) Recent and Historical Data","National Data Buoy Center (NDBC) Recent and Historical Data","Water -- Oceans and Coasts ","DOC-NOAA"]
[null,null,"NOAA National Shoreline","NOAA National Shoreline","Water -- Oceans and Coasts ","DOC-NOAA","Doug Graham","Doug.Graham@noaa.gov"]
["NOAA Nautical Charts","NOAA Nautical Charts","NOAA's Nautical Chart Products","NOAA's Nautical Chart Products","Water -- Oceans and Coasts ","DOC-NOAA","Meredith Westington","meredith.westington@noaa.gov",{"$f":"VLOOKUP(B255,'LOC FINAL with new Themes'!A:M,7,0)","v":0},{"$f":"VLOOKUP(B255,'LOC FINAL with new Themes'!A:M,8,0)","v":0},{"$f":"VLOOKUP(B255,'LOC FINAL with new Themes'!A:M,9,0)","v":0},{"$f":"VLOOKUP(B255,'LOC FINAL with new Themes'!A:M,10,0)","v":0},{"$f":"VLOOKUP(B255,'LOC FINAL with new Themes'!A:M,11,0)","v":0},{"$f":"VLOOKUP(B255,'LOC FINAL with new Themes'!A:M,12,0)","v":0},{"$f":"VLOOKUP(B255,'LOC FINAL with new Themes'!A:M,13,0)","v":0}]
[null,null,"Non-Projected Boundaries","Non-Projected Boundaries","Water -- Oceans and Coasts ","DOI-BOEM","Doug Vandegraft","Doug.Vandegraft@boem.gov"]
[null,null,"Projected Boundaries","Projected Boundaries","Water -- Oceans and Coasts ","DOI-BOEM","Doug Vandegraft","Doug.Vandegraft@boem.gov"]
[null,null,"U.S. Marine Protected Areas Boundaries","U.S. Marine Protected Areas Boundaries","Water -- Oceans and Coasts ","DOC-NOAA"]
[null,null,"U.S. Maritime Zones/Boundaries","U.S. Maritime Zones/Boundaries","Water -- Oceans and Coasts ","DOC-NOAA","Meredith Westington","meredith.westington@noaa.gov"]
[null,null,null,{"$f":"SUBTOTAL(3,D250:D259)","v":10},"Water -- Oceans and Coasts  Count"]
[null,null,null,{"$f":"SUBTOTAL(3,D2:D259)","v":240},"Grand Count"]

{"sheet":"2-29-2012","index":22,"n_rows":259,"n_cols":15,"rows_kept":259,"cut":false,"hidden":true,"merged":[]}
["ORIGINAL (beginning of 2011)","LOC FINAL (October 2011)","NGDA List (October 2011)","FINAL List (November 2011)","Theme","Agency","Dataset Manager","Email","Q1 How many data set(s) do you have? It is a single set or multiple sets? ","Q2 Are you a data set manager?","Q3 Are you the POC for transferring the data set and/or for information about the data set?","Q4 How often is the data set updated?","Q5 Is there an archive/backup of the data set or do you maintain an archived copy of it? If yes, how far back do you maintain a copy? Is it easily accessible?","Q6 Does the data set go by a different name or is it referred to internally by another descriptive name?","M\nP\nS"]
[null,null,"Critical Habitat ",{"$f":"IF(C2=0,B2,C2)","v":"Critical Habitat "},"Biota","DOI-FWS"]
[null,null,"Current Range for listed species ","Current Range for listed species ","Biota","DOI-FWS"]
["ECOMAP Data Sets (Ecological Subregions: Sections and Subsections for the Conterminous United States ) ","ECOMAP Datasets (Ecological Subregions: Sections and Subsections for the Conterminous United States ) ","ECOMAP Datasets (Ecological Subregions: Sections and Subsections for the Conterminous United States ) ","ECOMAP Datasets (Ecological Subregions: Sections and Subsections for the Conterminous United States ) ","Biota","USDA-FS","David T. Cleland","dcleland@fs.fed.us",{"$f":"VLOOKUP(B4,'LOC FINAL with new Themes'!A:M,7,0)","v":"One, single set"},{"$f":"VLOOKUP(B4,'LOC FINAL with new Themes'!A:M,8,0)","v":"Yes"},{"$f":"VLOOKUP(B4,'LOC FINAL with new Themes'!A:M,9,0)","v":"Yes"},{"$f":"VLOOKUP(B4,'LOC FINAL with new Themes'!A:M,10,0)","v":"Maps are updated on a 10-year cycle"},{"$f":"VLOOKUP(B4,'LOC FINAL with new Themes'!A:M,11,0)","v":"The data is housed at and served by the Forest Service geodata portal, and is easily accessible.  The web address is: http://fsgeodata.fs.fed.us/other_resources/ecosubregions.html "},{"$f":"VLOOKUP(B4,'LOC FINAL with new Themes'!A:M,12,0)","v":"?   Internally, the data is named ECOMAP or the National Hierarchy of Ecological Units. "},{"$f":"VLOOKUP(B4,'LOC FINAL with new Themes'!A:M,13,0)","v":"S"}]
[null,null,"Endangered Species (Threatened and Endangered Species System)","Endangered Species (Threatened and Endangered Species System)","Biota","DOI-FWS"]
["Env Sens Index Maps - classified shoreline","Env Sens Index Maps - classified shoreline","Environmental Sensitivity Index (ESI) Data and Maps","Environmental Sensitivity Index (ESI) Data and Maps","Biota","DOC-NOAA","Jill Petersen","jill.petersen@noaa.gov",{"$f":"VLOOKUP(B6,'LOC FINAL with new Themes'!A:M,7,0)","v":"There are approximately 70 different atlases. There are a few that are still not available in a GIS format, (approx 7 of the approx 70!) - these are available as the hard copy product and as PDFs (scanned). The remaining atlases are available in multiple GIS formats - Arc Export files, Geodatabase with an ArcMap map document complete with all relates established and properly symbolized, Shape files with an ArcView 3.x project, a free ESI viewer that allows viewing, queries and printing (in house mapping program and filemaker pro) as well as PDF format and the hard copy product. These can be downloaded from http://response.restoration.noaa.gov/esi_download This page is in progress, but should be complete fairly quickly.\n\n"},{"$f":"VLOOKUP(B6,'LOC FINAL with new Themes'!A:M,8,0)","v":"Yes"},{"$f":"VLOOKUP(B6,'LOC FINAL with new Themes'!A:M,9,0)","v":"Yes "},{"$f":"VLOOKUP(B6,'LOC FINAL with new Themes'!A:M,10,0)","v":"- High resolution products have no defined update schedule.  TBD by geog/project."},{"$f":"VLOOKUP(B6,'LOC FINAL with new Themes'!A:M,11,0)","v":"Yes and no. We have archives of all the digital data as well as all the PDFs (scanned or produced with the digital data map comps). Many of the hard copy atlases from the first round of ESI maps were sent to the Library of Commerce. Others I have kept, but no very organized situation. However, we have all of the historic PDFs which are an exact duplicate of the hard copy atlas, so that is something. Historic data is going to be served from the above link as well. That will be added as the current data sets are completed."},{"$f":"VLOOKUP(B6,'LOC FINAL with new Themes'!A:M,12,0)","v":"ESI is the common abbreviation for these maps. Other than that, Environmental Sensitivity Index Maps, Shoreline Sensitivity maps, Environmental Sensitivity maps..... These maps have the classified shoreline, as well as summaries of biological and human use resource particularly sensitive to oiling. "},{"$f":"VLOOKUP(B6,'LOC FINAL with new Themes'!A:M,13,0)","v":"M "}]
["GAP Program Dataset","GAP Program Dataset","GAP Program Dataset","GAP Program Dataset","Biota","DOI-USGS","Kevin Gergely","gergely@usgs.gov",{"$f":"VLOOKUP(B7,'LOC FINAL with new Themes'!A:M,7,0)","v":"POC; multiple data sets in single location, building three fundamental data layers, two are national (protected areas, land cover dataset); backup; six months, annually)"},{"$f":"VLOOKUP(B7,'LOC FINAL with new Themes'!A:M,8,0)","v":0},{"$f":"VLOOKUP(B7,'LOC FINAL with new Themes'!A:M,9,0)","v":0},{"$f":"VLOOKUP(B7,'LOC FINAL with new Themes'!A:M,10,0)","v":0},{"$f":"VLOOKUP(B7,'LOC FINAL with new Themes'!A:M,11,0)","v":0},{"$f":"VLOOKUP(B7,'LOC FINAL with new Themes'!A:M,12,0)","v":0},{"$f":"VLOOKUP(B7,'LOC FINAL with new Themes'!A:M,13,0)","v":"P"}]
["National Standardized Ecosystems Dataset","National Standardized Ecosystems Dataset","National Standardized Ecosystems Dataset","National Standardized Ecosystems Dataset","Biota","DOI-USGS","Roger Sayre","rsayre@usgs.gov",{"$f":"VLOOKUP(B8,'LOC FINAL with new Themes'!A:M,7,0)","v":0},{"$f":"VLOOKUP(B8,'LOC FINAL with new Themes'!A:M,8,0)","v":0},{"$f":"VLOOKUP(B8,'LOC FINAL with new Themes'!A:M,9,0)","v":0},{"$f":"VLOOKUP(B8,'LOC FINAL with new Themes'!A:M,10,0)","v":0},{"$f":"VLOOKUP(B8,'LOC FINAL with new Themes'!A:M,11,0)","v":0},{"$f":"VLOOKUP(B8,'LOC FINAL with new Themes'!A:M,12,0)","v":0},{"$f":"VLOOKUP(B8,'LOC FINAL with new Themes'!A:M,13,0)","v":0}]
[null,null,"Recovery Range for listed species ","Recovery Range for listed species ","Biota","DOI-FWS"]
[null,null,"Section 7 Range for listed species ","Section 7 Range for listed species ","Biota","DOI-FWS"]
["Biomes, Ecoregions","Biomes, Ecoregions",null,"Biomes, Ecoregions","Biota ","DOI-USGS","Dan Phillips ","dphillips@usgs.gov",{"$f":"VLOOKUP(B11,'LOC FINAL with new Themes'!A:M,7,0)","v":0},{"$f":"VLOOKUP(B11,'LOC FINAL with new Themes'!A:M,8,0)","v":0},{"$f":"VLOOKUP(B11,'LOC FINAL with new Themes'!A:M,9,0)","v":0},{"$f":"VLOOKUP(B11,'LOC FINAL with new Themes'!A:M,10,0)","v":0},{"$f":"VLOOKUP(B11,'LOC FINAL with new Themes'!A:M,11,0)","v":0},{"$f":"VLOOKUP(B11,'LOC FINAL with new Themes'!A:M,12,0)","v":0},{"$f":"VLOOKUP(B11,'LOC FINAL with new Themes'!A:M,13,0)","v":0}]
["Ecological Services","Ecological Services",null,"Ecological Services","Biota ","DOI-USGS","Dan Phillips ","dphillips@usgs.gov",{"$f":"VLOOKUP(B12,'LOC FINAL with new Themes'!A:M,7,0)","v":0},{"$f":"VLOOKUP(B12,'LOC FINAL with new Themes'!A:M,8,0)","v":0},{"$f":"VLOOKUP(B12,'LOC FINAL with new Themes'!A:M,9,0)","v":0},{"$f":"VLOOKUP(B12,'LOC FINAL with new Themes'!A:M,10,0)","v":0},{"$f":"VLOOKUP(B12,'LOC FINAL with new Themes'!A:M,11,0)","v":0},{"$f":"VLOOKUP(B12,'LOC FINAL with new Themes'!A:M,12,0)","v":0},{"$f":"VLOOKUP(B12,'LOC FINAL with new Themes'!A:M,13,0)","v":0}]
["Habitats","Habitats",null,"Habitats","Biota ","DOI-USGS","Dan Phillips ","dphillips@usgs.gov",{"$f":"VLOOKUP(B13,'LOC FINAL with new Themes'!A:M,7,0)","v":"see protected areas and land cover set; vertebrae species of US being developed (not complete for all species they want to include in it."},{"$f":"VLOOKUP(B13,'LOC FINAL with new Themes'!A:M,8,0)","v":0},{"$f":"VLOOKUP(B13,'LOC FINAL with new Themes'!A:M,9,0)","v":0},{"$f":"VLOOKUP(B13,'LOC FINAL with new Themes'!A:M,10,0)","v":0},{"$f":"VLOOKUP(B13,'LOC FINAL with new Themes'!A:M,11,0)","v":0},{"$f":"VLOOKUP(B13,'LOC FINAL with new Themes'!A:M,12,0)","v":0},{"$f":"VLOOKUP(B13,'LOC FINAL with new Themes'!A:M,13,0)","v":"M"}]
["Invasive Species","Invasive Species",null,"Invasive Species","Biota ","DOI-USGS","Dan Phillips ","dphillips@usgs.gov",{"$f":"VLOOKUP(B14,'LOC FINAL with new Themes'!A:M,7,0)","v":"There are hundreds of datasets that are produced and maintained by the GAP program. Dan is not the data set manager, but I work with the people that maintain and update the datasets and maintains metadata.The data are updated at different intervals, especially now that they have moved more to a regional and national based approach. GAPS data sets presumably archived since 1990s."},{"$f":"VLOOKUP(B14,'LOC FINAL with new Themes'!A:M,8,0)","v":0},{"$f":"VLOOKUP(B14,'LOC FINAL with new Themes'!A:M,9,0)","v":0},{"$f":"VLOOKUP(B14,'LOC FINAL with new Themes'!A:M,10,0)","v":0},{"$f":"VLOOKUP(B14,'LOC FINAL with new Themes'!A:M,11,0)","v":0},{"$f":"VLOOKUP(B14,'LOC FINAL with new Themes'!A:M,12,0)","v":0},{"$f":"VLOOKUP(B14,'LOC FINAL with new Themes'!A:M,13,0)","v":"M"}]
["Species Distribution(amphibians, birds, reptiles, mammals, fishes, plants, etc)","Species Distribution (amphibians, birds, reptiles, mammals, fishes, plants, etc)",null,"Species Distribution (amphibians, birds, reptiles, mammals, fishes, plants, etc)","Biota ","DOI-USGS","Dan Phillips ","dphillips@usgs.gov",{"$f":"VLOOKUP(B15,'LOC FINAL with new Themes'!A:M,7,0)","v":"There are hundreds of datasets that are produced and maintained by the GAP program. Dan is not the data set manager, but I work with the people that maintain and update the datasets and maintains metadata. The data are updated at different intervals, especially now that they have moved more to a regional and national based approach. GAPS data sets presumably archived since 1990s."},{"$f":"VLOOKUP(B15,'LOC FINAL with new Themes'!A:M,8,0)","v":0},{"$f":"VLOOKUP(B15,'LOC FINAL with new Themes'!A:M,9,0)","v":0},{"$f":"VLOOKUP(B15,'LOC FINAL with new Themes'!A:M,10,0)","v":0},{"$f":"VLOOKUP(B15,'LOC FINAL with new Themes'!A:M,11,0)","v":0},{"$f":"VLOOKUP(B15,'LOC FINAL with new Themes'!A:M,12,0)","v":0},{"$f":"VLOOKUP(B15,'LOC FINAL with new Themes'!A:M,13,0)","v":"M"}]
[null,null,null,{"$f":"SUBTOTAL(3,D2:D15)","v":14},"Biota Count"]
["General Land Office","General Land Office","General Land Office",{"$f":"IF(C17=0,B17,C17)","v":"General Land Office"},"Cadastre","DOI-BLM","Juan Palma","juan_palma@blm.gov",{"$f":"VLOOKUP(B17,'LOC FINAL with new Themes'!A:M,7,0)","v":0},{"$f":"VLOOKUP(B17,'LOC FINAL with new Themes'!A:M,8,0)","v":0},{"$f":"VLOOKUP(B17,'LOC FINAL with new Themes'!A:M,9,0)","v":0},{"$f":"VLOOKUP(B17,'LOC FINAL with new Themes'!A:M,10,0)","v":0},{"$f":"VLOOKUP(B17,'LOC FINAL with new Themes'!A:M,11,0)","v":0},{"$f":"VLOOKUP(B17,'LOC FINAL with new Themes'!A:M,12,0)","v":0},{"$f":"VLOOKUP(B17,'LOC FINAL with new Themes'!A:M,13,0)","v":0}]
["Geographic Coordinate Data Base (GCDB)","Geographic Coordinate Data Base (GCDB)",null,"Geographic Coordinate Data Base (GCDB)","Cadastre","DOI-BLM","Don Buhler","don_buhler@blm.gov",{"$f":"VLOOKUP(B18,'LOC FINAL with new Themes'!A:M,7,0)","v":"every agency has its own database; multiple data sets; standard being advanced and put into practice; federal interest is managed with BLM; state and local are authoritative sets for other lands; "},{"$f":"VLOOKUP(B18,'LOC FINAL with new Themes'!A:M,8,0)","v":0},{"$f":"VLOOKUP(B18,'LOC FINAL with new Themes'!A:M,9,0)","v":0},{"$f":"VLOOKUP(B18,'LOC FINAL with new Themes'!A:M,10,0)","v":0},{"$f":"VLOOKUP(B18,'LOC FINAL with new Themes'!A:M,11,0)","v":0},{"$f":"VLOOKUP(B18,'LOC FINAL with new Themes'!A:M,12,0)","v":0},{"$f":"VLOOKUP(B18,'LOC FINAL with new Themes'!A:M,13,0)","v":"M "}]
["LR 2000 - Master Title Plats ","LR 2000 - Master Title Plats ","LR 2000 - Attribute Information","LR 2000 - Attribute Information","Cadastre","DOI-BLM","Jeff Holdren","jeff_holdren@blm.gov",{"$f":"VLOOKUP(B19,'LOC FINAL with new Themes'!A:M,7,0)","v":"listing of sales, rents, agricultural disposal and rights of way cases, group of data sets in one system; Kim Burns, division chief; not archived, there is a backup; Denver office handles"},{"$f":"VLOOKUP(B19,'LOC FINAL with new Themes'!A:M,8,0)","v":0},{"$f":"VLOOKUP(B19,'LOC FINAL with new Themes'!A:M,9,0)","v":0},{"$f":"VLOOKUP(B19,'LOC FINAL with new Themes'!A:M,10,0)","v":0},{"$f":"VLOOKUP(B19,'LOC FINAL with new Themes'!A:M,11,0)","v":0},{"$f":"VLOOKUP(B19,'LOC FINAL with new Themes'!A:M,12,0)","v":0},{"$f":"VLOOKUP(B19,'LOC FINAL with new Themes'!A:M,13,0)","v":"P"}]
["Manual of Surveying Instructions, Data Standards","Manual of Surveying Instructions, Data Standards",null,"Manual of Surveying Instructions, Data Standards","Cadastre","DOI-BLM","Don Buhler","don_buhler@blm.gov",{"$f":"VLOOKUP(B20,'LOC FINAL with new Themes'!A:M,7,0)","v":0},{"$f":"VLOOKUP(B20,'LOC FINAL with new Themes'!A:M,8,0)","v":0},{"$f":"VLOOKUP(B20,'LOC FINAL with new Themes'!A:M,9,0)","v":0},{"$f":"VLOOKUP(B20,'LOC FINAL with new Themes'!A:M,10,0)","v":0},{"$f":"VLOOKUP(B20,'LOC FINAL with new Themes'!A:M,11,0)","v":0},{"$f":"VLOOKUP(B20,'LOC FINAL with new Themes'!A:M,12,0)","v":0},{"$f":"VLOOKUP(B20,'LOC FINAL with new Themes'!A:M,13,0)","v":0}]
["Mineral Estate - Fluids","Mineral Estate - Fluids",null,"Mineral Estate - Fluids","Cadastre","DOI-BLM","Tim Spisak ","tim_spisak@blm.gov",{"$f":"VLOOKUP(B21,'LOC FINAL with new Themes'!A:M,7,0)","v":"mineral leasess, mining claims, rights of way, gases (single data set); BLM-managed lands but managed all federal mineral estate (comprehensive for mineraal estate) some electronic and some not"},{"$f":"VLOOKUP(B21,'LOC FINAL with new Themes'!A:M,8,0)","v":0},{"$f":"VLOOKUP(B21,'LOC FINAL with new Themes'!A:M,9,0)","v":0},{"$f":"VLOOKUP(B21,'LOC FINAL with new Themes'!A:M,10,0)","v":0},{"$f":"VLOOKUP(B21,'LOC FINAL with new Themes'!A:M,11,0)","v":0},{"$f":"VLOOKUP(B21,'LOC FINAL with new Themes'!A:M,12,0)","v":0},{"$f":"VLOOKUP(B21,'LOC FINAL with new Themes'!A:M,13,0)","v":"P"}]
["Mineral Estate - Solids","Mineral Estate - Solids",null,"Mineral Estate - Solids","Cadastre","DOI-BLM","Mitchell Leverette","mitchell_leverette@blm.gov",{"$f":"VLOOKUP(B22,'LOC FINAL with new Themes'!A:M,7,0)","v":"mineral leasess, mining claims, rights of way, gases (single data set); BLM-managed lands but managed all federal mineral estate (comprehensive for mineral estate) some electronic and some not"},{"$f":"VLOOKUP(B22,'LOC FINAL with new Themes'!A:M,8,0)","v":0},{"$f":"VLOOKUP(B22,'LOC FINAL with new Themes'!A:M,9,0)","v":0},{"$f":"VLOOKUP(B22,'LOC FINAL with new Themes'!A:M,10,0)","v":0},{"$f":"VLOOKUP(B22,'LOC FINAL with new Themes'!A:M,11,0)","v":0},{"$f":"VLOOKUP(B22,'LOC FINAL with new Themes'!A:M,12,0)","v":0},{"$f":"VLOOKUP(B22,'LOC FINAL with new Themes'!A:M,13,0)","v":"P"}]
["Multipurpose Marine Cadastre","Multipurpose Marine Cadastre","Multipurpose Marine Cadastre","Multipurpose Marine Cadastre","Cadastre","DOI-BOEM","Doug Vandegraft","douglas.vandegraft@boemre.gov",{"$f":"VLOOKUP(B23,'LOC FINAL with new Themes'!A:M,7,0)","v":"undeliverable email- neeed to identify new contact"},{"$f":"VLOOKUP(B23,'LOC FINAL with new Themes'!A:M,8,0)","v":0},{"$f":"VLOOKUP(B23,'LOC FINAL with new Themes'!A:M,9,0)","v":0},{"$f":"VLOOKUP(B23,'LOC FINAL with new Themes'!A:M,10,0)","v":0},{"$f":"VLOOKUP(B23,'LOC FINAL with new Themes'!A:M,11,0)","v":0},{"$f":"VLOOKUP(B23,'LOC FINAL with new Themes'!A:M,12,0)","v":0},{"$f":"VLOOKUP(B23,'LOC FINAL with new Themes'!A:M,13,0)","v":0}]
[null,null,"PADUS (Protected Areas Database of the US)","PADUS (Protected Areas Database of the US)","Cadastre","DOI-USGS"]
["Parcels","Parcels","Parcels","Parcels","Cadastre","DOI-BLM","Bob Ader","bob_ader@blm.gov",{"$f":"VLOOKUP(B25,'LOC FINAL with new Themes'!A:M,7,0)","v":"every agency has its own database; multiple data sets; standard being advanced and put into practice; federal interest is managed with BLM; state and local are authoritative sets for other lands; current effort of federal inventory "},{"$f":"VLOOKUP(B25,'LOC FINAL with new Themes'!A:M,8,0)","v":0},{"$f":"VLOOKUP(B25,'LOC FINAL with new Themes'!A:M,9,0)","v":0},{"$f":"VLOOKUP(B25,'LOC FINAL with new Themes'!A:M,10,0)","v":0},{"$f":"VLOOKUP(B25,'LOC FINAL with new Themes'!A:M,11,0)","v":0},{"$f":"VLOOKUP(B25,'LOC FINAL with new Themes'!A:M,12,0)","v":0},{"$f":"VLOOKUP(B25,'LOC FINAL with new Themes'!A:M,13,0)","v":"M "}]
[null,null,"Protractions","Protractions","Cadastre","DOI-MMS"]
["Surface Estate","Surface Estate",null,"Surface Estate","Cadastre","DOI-BLM","Kim Burns","kim_m_burns@blm.gov",{"$f":"VLOOKUP(B27,'LOC FINAL with new Themes'!A:M,7,0)","v":"lands administered by BLM; other agencies have own system; ownership of lands;  Tim Spisak, division chief; not archived, there is a backup; Denver office handles"},{"$f":"VLOOKUP(B27,'LOC FINAL with new Themes'!A:M,8,0)","v":0},{"$f":"VLOOKUP(B27,'LOC FINAL with new Themes'!A:M,9,0)","v":0},{"$f":"VLOOKUP(B27,'LOC FINAL with new Themes'!A:M,10,0)","v":0},{"$f":"VLOOKUP(B27,'LOC FINAL with new Themes'!A:M,11,0)","v":0},{"$f":"VLOOKUP(B27,'LOC FINAL with new Themes'!A:M,12,0)","v":0},{"$f":"VLOOKUP(B27,'LOC FINAL with new Themes'!A:M,13,0)","v":0}]
["U.S. Official Cadastral Survey Records","U.S. Official Cadastral Survey Records","U.S. Official Cadastral Survey Records","U.S. Official Cadastral Survey Records","Cadastre","DOI-BLM","Don Buhler","don_buhler@blm.gov",{"$f":"VLOOKUP(B28,'LOC FINAL with new Themes'!A:M,7,0)","v":"every agency has its own database; multiple data sets; standard being advanced and put into practice; federal interest is managed with BLM; state and local are authoritative sets for other lands; state offices are scanning these records (survey plats and field notes); CDI (conveyence cards)"},{"$f":"VLOOKUP(B28,'LOC FINAL with new Themes'!A:M,8,0)","v":0},{"$f":"VLOOKUP(B28,'LOC FINAL with new Themes'!A:M,9,0)","v":0},{"$f":"VLOOKUP(B28,'LOC FINAL with new Themes'!A:M,10,0)","v":0},{"$f":"VLOOKUP(B28,'LOC FINAL with new Themes'!A:M,11,0)","v":0},{"$f":"VLOOKUP(B28,'LOC FINAL with new Themes'!A:M,12,0)","v":0},{"$f":"VLOOKUP(B28,'LOC FINAL with new Themes'!A:M,13,0)","v":"M "}]
["U.S. Public Land Survey System","U.S. Public Land Survey System","U.S. Public Land Survey System","U.S. Public Land Survey System","Cadastre","DOI-BLM","Don Buhler","don_buhler@blm.gov",{"$f":"VLOOKUP(B29,'LOC FINAL with new Themes'!A:M,7,0)","v":"only federal agency that administers the PLSS; trying to get it to be logically one data set with different regions. (working copies for nine states in West); keep historical record in data base; schema 2 is the version to look at for archiving some time March 2012"},{"$f":"VLOOKUP(B29,'LOC FINAL with new Themes'!A:M,8,0)","v":0},{"$f":"VLOOKUP(B29,'LOC FINAL with new Themes'!A:M,9,0)","v":0},{"$f":"VLOOKUP(B29,'LOC FINAL with new Themes'!A:M,10,0)","v":0},{"$f":"VLOOKUP(B29,'LOC FINAL with new Themes'!A:M,11,0)","v":0},{"$f":"VLOOKUP(B29,'LOC FINAL with new Themes'!A:M,12,0)","v":0},{"$f":"VLOOKUP(B29,'LOC FINAL with new Themes'!A:M,13,0)","v":"P"}]
[null,null,null,{"$f":"SUBTOTAL(3,D17:D29)","v":13},"Cadastre Count"]
["Blended Sea Surface Temperature","Blended Sea Surface Temperature","Blended Sea Surface Temperature",{"$f":"IF(C31=0,B31,C31)","v":"Blended Sea Surface Temperature"},"Climate and Weather ","DOC-NOAA","Viva Banzon","Viva.Banzon@noaa.gov",{"$f":"VLOOKUP(B31,'LOC FINAL with new Themes'!A:M,7,0)","v":0},{"$f":"VLOOKUP(B31,'LOC FINAL with new Themes'!A:M,8,0)","v":0},{"$f":"VLOOKUP(B31,'LOC FINAL with new Themes'!A:M,9,0)","v":0},{"$f":"VLOOKUP(B31,'LOC FINAL with new Themes'!A:M,10,0)","v":0},{"$f":"VLOOKUP(B31,'LOC FINAL with new Themes'!A:M,11,0)","v":0},{"$f":"VLOOKUP(B31,'LOC FINAL with new Themes'!A:M,12,0)","v":0},{"$f":"VLOOKUP(B31,'LOC FINAL with new Themes'!A:M,13,0)","v":0}]
["Geostationary Operational Environmental Satellite (GOES) data (NCDC)","Geostationary Operational Environmental Satellite (GOES) data (NCDC)","Geostationary Operational Environmental Satellite (GOES) data (NCDC)","Geostationary Operational Environmental Satellite (GOES) data (NCDC)","Climate and Weather ","DOC-NOAA","Nancy Ritchey","Nancy.Ritchey@noaa.gov",{"$f":"VLOOKUP(B32,'LOC FINAL with new Themes'!A:M,7,0)","v":"Define 'data set'.  Each spacecraft continuously produces a data stream.  There are multiple sets and the total going back to the late 70s or early 80s numbers in the millions"},{"$f":"VLOOKUP(B32,'LOC FINAL with new Themes'!A:M,8,0)","v":"Yes"},{"$f":"VLOOKUP(B32,'LOC FINAL with new Themes'!A:M,9,0)","v":"Yes"},{"$f":"VLOOKUP(B32,'LOC FINAL with new Themes'!A:M,10,0)","v":"Continuously"},{"$f":"VLOOKUP(B32,'LOC FINAL with new Themes'!A:M,11,0)","v":"There are two active archive centers for these data; one here in Asheville, NC and one in Boulder, CO.  These data go back to the late 70s and all data are on line wither on disc or robotic tape storage"},{"$f":"VLOOKUP(B32,'LOC FINAL with new Themes'!A:M,12,0)","v":"Again, define your terms.  For examples see www.class.noaa.gov - Raw data are listed by satellite (GOES or POES) and then be instrument.  Geophysical products are listed by product name."},{"$f":"VLOOKUP(B32,'LOC FINAL with new Themes'!A:M,13,0)","v":0}]
[null,null,"MODIS-based Atmospheric Products","MODIS-based Atmospheric Products","Climate and Weather ","USDA -FS (Along with USGS)"]
[null,null,"National Doplar Radar Data (NEXRAD)","National Doplar Radar Data (NEXRAD)","Climate and Weather ","DOC-NOAA","Steve DelGreco","stephen.a.delgreco"]
[null,null,"NOAA National Weather Service GIS Data",{"$f":"IF(C35=0,B35,C35)","v":"NOAA National Weather Service GIS Data"},"Climate and Weather ","DOC-NOAA"]
["Parameter-elevation Regressions on Independent Slopes Model (PRISM) Data Sets","Parameter-elevation Regressions on Independent Slopes Model (PRISM) Datasets","Parameter-elevation Regressions on Independent Slopes Model (PRISM) Datasets",{"$f":"IF(C36=0,B36,C36)","v":"Parameter-elevation Regressions on Independent Slopes Model (PRISM) Datasets"},"Climate and Weather ","USDA-NRCS","Jan Curtis","jan.curtis@por.usda.gov",{"$f":"VLOOKUP(B36,'LOC FINAL with new Themes'!A:M,7,0)","v":"info provided via http://www.prism.oregonstate.edu/ and \nhttp://www.nrcs.usda.gov/wps/portal/nrcs/main/?ss=16&navtype=SubNavigation&cid=null&navid=850130000000000&pnavid=850000000000000&position=SubNavigation&ttype=main&pname=USDA%2520NRCS%2520-%2520Natural%2520Resources%2520Conservation%2520Service\n"},{"$f":"VLOOKUP(B36,'LOC FINAL with new Themes'!A:M,8,0)","v":0},{"$f":"VLOOKUP(B36,'LOC FINAL with new Themes'!A:M,9,0)","v":0},{"$f":"VLOOKUP(B36,'LOC FINAL with new Themes'!A:M,10,0)","v":0},{"$f":"VLOOKUP(B36,'LOC FINAL with new Themes'!A:M,11,0)","v":0},{"$f":"VLOOKUP(B36,'LOC FINAL with new Themes'!A:M,12,0)","v":0},{"$f":"VLOOKUP(B36,'LOC FINAL with new Themes'!A:M,13,0)","v":"M"}]
["Polar Operational Environmental Satellite (POES) data (NCDC)","Polar Operational Environmental Satellite (POES) data","Polar Operational Environmental Satellite (POES) data",{"$f":"IF(C37=0,B37,C37)","v":"Polar Operational Environmental Satellite (POES) data"},"Climate and Weather ","DOC-NOAA","John Bates","john.j.bates@noaa.gov",{"$f":"VLOOKUP(B37,'LOC FINAL with new Themes'!A:M,7,0)","v":0},{"$f":"VLOOKUP(B37,'LOC FINAL with new Themes'!A:M,8,0)","v":0},{"$f":"VLOOKUP(B37,'LOC FINAL with new Themes'!A:M,9,0)","v":0},{"$f":"VLOOKUP(B37,'LOC FINAL with new Themes'!A:M,10,0)","v":0},{"$f":"VLOOKUP(B37,'LOC FINAL with new Themes'!A:M,11,0)","v":0},{"$f":"VLOOKUP(B37,'LOC FINAL with new Themes'!A:M,12,0)","v":0},{"$f":"VLOOKUP(B37,'LOC FINAL with new Themes'!A:M,13,0)","v":0}]
[null,null,null,{"$f":"SUBTOTAL(3,D31:D37)","v":7},"Climate and Weather  Count"]
[null,"5-digit ZIP Code Tabulation Area (Census 2000)","5-digit ZIP Code Tabulation Area (Census 2000)",{"$f":"IF(C39=0,B39,C39)","v":"5-digit ZIP Code Tabulation Area (Census 2000)"},"Cultural & Demographic Statistics ","DOC-Census","Jennifer Holland","Jennifer.L.Holland@census.gov",{"$f":"VLOOKUP(B39,'LOC FINAL with new Themes'!A:M,7,0)","v":0},{"$f":"VLOOKUP(B39,'LOC FINAL with new Themes'!A:M,8,0)","v":0},{"$f":"VLOOKUP(B39,'LOC FINAL with new Themes'!A:M,9,0)","v":0},{"$f":"VLOOKUP(B39,'LOC FINAL with new Themes'!A:M,10,0)","v":0},{"$f":"VLOOKUP(B39,'LOC FINAL with new Themes'!A:M,11,0)","v":0},{"$f":"VLOOKUP(B39,'LOC FINAL with new Themes'!A:M,12,0)","v":0},{"$f":"VLOOKUP(B39,'LOC FINAL with new Themes'!A:M,13,0)","v":0}]
["AIR, ANVSA, Hawaiian Homelands Boundaries","AIR, ANVSA, Hawaiian Homelands Boundaries",null,"AIR, ANVSA, Hawaiian Homelands Boundaries","Cultural & Demographic Statistics ","DOC-Census","Randy Fusaro","randy.j.fusaro@census.gov",{"$f":"VLOOKUP(B40,'LOC FINAL with new Themes'!A:M,7,0)","v":0},{"$f":"VLOOKUP(B40,'LOC FINAL with new Themes'!A:M,8,0)","v":0},{"$f":"VLOOKUP(B40,'LOC FINAL with new Themes'!A:M,9,0)","v":0},{"$f":"VLOOKUP(B40,'LOC FINAL with new Themes'!A:M,10,0)","v":0},{"$f":"VLOOKUP(B40,'LOC FINAL with new Themes'!A:M,11,0)","v":0},{"$f":"VLOOKUP(B40,'LOC FINAL with new Themes'!A:M,12,0)","v":0},{"$f":"VLOOKUP(B40,'LOC FINAL with new Themes'!A:M,13,0)","v":0}]
[null,"All Lines (2010 Census)","All Lines (2010 Census)","All Lines (2010 Census)","Cultural & Demographic Statistics ","DOC-Census","Jennifer Holland","Jennifer.L.Holland@census.gov",{"$f":"VLOOKUP(B41,'LOC FINAL with new Themes'!A:M,7,0)","v":0},{"$f":"VLOOKUP(B41,'LOC FINAL with new Themes'!A:M,8,0)","v":0},{"$f":"VLOOKUP(B41,'LOC FINAL with new Themes'!A:M,9,0)","v":0},{"$f":"VLOOKUP(B41,'LOC FINAL with new Themes'!A:M,10,0)","v":0},{"$f":"VLOOKUP(B41,'LOC FINAL with new Themes'!A:M,11,0)","v":0},{"$f":"VLOOKUP(B41,'LOC FINAL with new Themes'!A:M,12,0)","v":0},{"$f":"VLOOKUP(B41,'LOC FINAL with new Themes'!A:M,13,0)","v":0}]
[null,"ANSI codes for  metro/micropolitan areas","ANSI codes for  metro/micropolitan areas","ANSI codes for  metro/micropolitan areas","Cultural & Demographic Statistics ","DOC-Census","Jennifer Holland","Jennifer.L.Holland@census.gov",{"$f":"VLOOKUP(B42,'LOC FINAL with new Themes'!A:M,7,0)","v":0},{"$f":"VLOOKUP(B42,'LOC FINAL with new Themes'!A:M,8,0)","v":0},{"$f":"VLOOKUP(B42,'LOC FINAL with new Themes'!A:M,9,0)","v":0},{"$f":"VLOOKUP(B42,'LOC FINAL with new Themes'!A:M,10,0)","v":0},{"$f":"VLOOKUP(B42,'LOC FINAL with new Themes'!A:M,11,0)","v":0},{"$f":"VLOOKUP(B42,'LOC FINAL with new Themes'!A:M,12,0)","v":0},{"$f":"VLOOKUP(B42,'LOC FINAL with new Themes'!A:M,13,0)","v":0}]
[null,"ANSI codes for congressional districts","ANSI codes for congressional districts","ANSI codes for congressional districts","Cultural & Demographic Statistics ","DOC-Census","Jennifer Holland","Jennifer.L.Holland@census.gov",{"$f":"VLOOKUP(B43,'LOC FINAL with new Themes'!A:M,7,0)","v":0},{"$f":"VLOOKUP(B43,'LOC FINAL with new Themes'!A:M,8,0)","v":0},{"$f":"VLOOKUP(B43,'LOC FINAL with new Themes'!A:M,9,0)","v":0},{"$f":"VLOOKUP(B43,'LOC FINAL with new Themes'!A:M,10,0)","v":0},{"$f":"VLOOKUP(B43,'LOC FINAL with new Themes'!A:M,11,0)","v":0},{"$f":"VLOOKUP(B43,'LOC FINAL with new Themes'!A:M,12,0)","v":0},{"$f":"VLOOKUP(B43,'LOC FINAL with new Themes'!A:M,13,0)","v":0}]
[null,"ANSI codes for counties","ANSI codes for counties","ANSI codes for counties","Cultural & Demographic Statistics ","DOC-Census","Jennifer Holland","Jennifer.L.Holland@census.gov",{"$f":"VLOOKUP(B44,'LOC FINAL with new Themes'!A:M,7,0)","v":0},{"$f":"VLOOKUP(B44,'LOC FINAL with new Themes'!A:M,8,0)","v":0},{"$f":"VLOOKUP(B44,'LOC FINAL with new Themes'!A:M,9,0)","v":0},{"$f":"VLOOKUP(B44,'LOC FINAL with new Themes'!A:M,10,0)","v":0},{"$f":"VLOOKUP(B44,'LOC FINAL with new Themes'!A:M,11,0)","v":0},{"$f":"VLOOKUP(B44,'LOC FINAL with new Themes'!A:M,12,0)","v":0},{"$f":"VLOOKUP(B44,'LOC FINAL with new Themes'!A:M,13,0)","v":0}]
[null,"ANSI codes for states","ANSI codes for states","ANSI codes for states","Cultural & Demographic Statistics ","DOC-Census","Jennifer Holland","Jennifer.L.Holland@census.gov",{"$f":"VLOOKUP(B45,'LOC FINAL with new Themes'!A:M,7,0)","v":0},{"$f":"VLOOKUP(B45,'LOC FINAL with new Themes'!A:M,8,0)","v":0},{"$f":"VLOOKUP(B45,'LOC FINAL with new Themes'!A:M,9,0)","v":0},{"$f":"VLOOKUP(B45,'LOC FINAL with new Themes'!A:M,10,0)","v":0},{"$f":"VLOOKUP(B45,'LOC FINAL with new Themes'!A:M,11,0)","v":0},{"$f":"VLOOKUP(B45,'LOC FINAL with new Themes'!A:M,12,0)","v":0},{"$f":"VLOOKUP(B45,'LOC FINAL with new Themes'!A:M,13,0)","v":0}]
[null,"Block (2010 Census)","Block (2010 Census)","Block (2010 Census)","Cultural & Demographic Statistics ","DOC-Census","Jennifer Holland","Jennifer.L.Holland@census.gov",{"$f":"VLOOKUP(B46,'LOC FINAL with new Themes'!A:M,7,0)","v":0},{"$f":"VLOOKUP(B46,'LOC FINAL with new Themes'!A:M,8,0)","v":0},{"$f":"VLOOKUP(B46,'LOC FINAL with new Themes'!A:M,9,0)","v":0},{"$f":"VLOOKUP(B46,'LOC FINAL with new Themes'!A:M,10,0)","v":0},{"$f":"VLOOKUP(B46,'LOC FINAL with new Themes'!A:M,11,0)","v":0},{"$f":"VLOOKUP(B46,'LOC FINAL with new Themes'!A:M,12,0)","v":0},{"$f":"VLOOKUP(B46,'LOC FINAL with new Themes'!A:M,13,0)","v":0}]
[null,"Block (Census 2000)","Block (Census 2000)","Block (Census 2000)","Cultural & Demographic Statistics ","DOC-Census","Jennifer Holland","Jennifer.L.Holland@census.gov",{"$f":"VLOOKUP(B47,'LOC FINAL with new Themes'!A:M,7,0)","v":0},{"$f":"VLOOKUP(B47,'LOC FINAL with new Themes'!A:M,8,0)","v":0},{"$f":"VLOOKUP(B47,'LOC FINAL with new Themes'!A:M,9,0)","v":0},{"$f":"VLOOKUP(B47,'LOC FINAL with new Themes'!A:M,10,0)","v":0},{"$f":"VLOOKUP(B47,'LOC FINAL with new Themes'!A:M,11,0)","v":0},{"$f":"VLOOKUP(B47,'LOC FINAL with new Themes'!A:M,12,0)","v":0},{"$f":"VLOOKUP(B47,'LOC FINAL with new Themes'!A:M,13,0)","v":0}]
[null,"Block Group (Census 2000)","Block Group (Census 2000)","Block Group (Census 2000)","Cultural & Demographic Statistics ","DOC-Census","Jennifer Holland","Jennifer.L.Holland@census.gov",{"$f":"VLOOKUP(B48,'LOC FINAL with new Themes'!A:M,7,0)","v":0},{"$f":"VLOOKUP(B48,'LOC FINAL with new Themes'!A:M,8,0)","v":0},{"$f":"VLOOKUP(B48,'LOC FINAL with new Themes'!A:M,9,0)","v":0},{"$f":"VLOOKUP(B48,'LOC FINAL with new Themes'!A:M,10,0)","v":0},{"$f":"VLOOKUP(B48,'LOC FINAL with new Themes'!A:M,11,0)","v":0},{"$f":"VLOOKUP(B48,'LOC FINAL with new Themes'!A:M,12,0)","v":0},{"$f":"VLOOKUP(B48,'LOC FINAL with new Themes'!A:M,13,0)","v":0}]
[null,"Block Group (Census 2010)","Block Group (Census 2010)","Block Group (Census 2010)","Cultural & Demographic Statistics ","DOC-Census","Jennifer Holland","Jennifer.L.Holland@census.gov",{"$f":"VLOOKUP(B49,'LOC FINAL with new Themes'!A:M,7,0)","v":0},{"$f":"VLOOKUP(B49,'LOC FINAL with new Themes'!A:M,8,0)","v":0},{"$f":"VLOOKUP(B49,'LOC FINAL with new Themes'!A:M,9,0)","v":0},{"$f":"VLOOKUP(B49,'LOC FINAL with new Themes'!A:M,10,0)","v":0},{"$f":"VLOOKUP(B49,'LOC FINAL with new Themes'!A:M,11,0)","v":0},{"$f":"VLOOKUP(B49,'LOC FINAL with new Themes'!A:M,12,0)","v":0},{"$f":"VLOOKUP(B49,'LOC FINAL with new Themes'!A:M,13,0)","v":0}]
[null,"Census 2000 FIPS 55 Codes","Census 2000 FIPS 55 Codes","Census 2000 FIPS 55 Codes","Cultural & Demographic Statistics ","DOC-Census","Jennifer Holland","Jennifer.L.Holland@census.gov",{"$f":"VLOOKUP(B50,'LOC FINAL with new Themes'!A:M,7,0)","v":0},{"$f":"VLOOKUP(B50,'LOC FINAL with new Themes'!A:M,8,0)","v":0},{"$f":"VLOOKUP(B50,'LOC FINAL with new Themes'!A:M,9,0)","v":0},{"$f":"VLOOKUP(B50,'LOC FINAL with new Themes'!A:M,10,0)","v":0},{"$f":"VLOOKUP(B50,'LOC FINAL with new Themes'!A:M,11,0)","v":0},{"$f":"VLOOKUP(B50,'LOC FINAL with new Themes'!A:M,12,0)","v":0},{"$f":"VLOOKUP(B50,'LOC FINAL with new Themes'!A:M,13,0)","v":0}]
[null,"Census Tract (2010 Census)","Census Tract (2010 Census)","Census Tract (2010 Census)","Cultural & Demographic Statistics ","DOC-Census","Jennifer Holland","Jennifer.L.Holland@census.gov",{"$f":"VLOOKUP(B51,'LOC FINAL with new Themes'!A:M,7,0)","v":0},{"$f":"VLOOKUP(B51,'LOC FINAL with new Themes'!A:M,8,0)","v":0},{"$f":"VLOOKUP(B51,'LOC FINAL with new Themes'!A:M,9,0)","v":0},{"$f":"VLOOKUP(B51,'LOC FINAL with new Themes'!A:M,10,0)","v":0},{"$f":"VLOOKUP(B51,'LOC FINAL with new Themes'!A:M,11,0)","v":0},{"$f":"VLOOKUP(B51,'LOC FINAL with new Themes'!A:M,12,0)","v":0},{"$f":"VLOOKUP(B51,'LOC FINAL with new Themes'!A:M,13,0)","v":0}]
[null,"Census Tract (Census 2000)","Census Tract (Census 2000)","Census Tract (Census 2000)","Cultural & Demographic Statistics ","DOC-Census","Jennifer Holland","Jennifer.L.Holland@census.gov",{"$f":"VLOOKUP(B52,'LOC FINAL with new Themes'!A:M,7,0)","v":0},{"$f":"VLOOKUP(B52,'LOC FINAL with new Themes'!A:M,8,0)","v":0},{"$f":"VLOOKUP(B52,'LOC FINAL with new Themes'!A:M,9,0)","v":0},{"$f":"VLOOKUP(B52,'LOC FINAL with new Themes'!A:M,10,0)","v":0},{"$f":"VLOOKUP(B52,'LOC FINAL with new Themes'!A:M,11,0)","v":0},{"$f":"VLOOKUP(B52,'LOC FINAL with new Themes'!A:M,12,0)","v":0},{"$f":"VLOOKUP(B52,'LOC FINAL with new Themes'!A:M,13,0)","v":0}]
[null,"Combined Statistical Area (2010 Census)","Combined Statistical Area (2010 Census)","Combined Statistical Area (2010 Census)","Cultural & Demographic Statistics ","DOC-Census","Jennifer Holland","Jennifer.L.Holland@census.gov",{"$f":"VLOOKUP(B53,'LOC FINAL with new Themes'!A:M,7,0)","v":0},{"$f":"VLOOKUP(B53,'LOC FINAL with new Themes'!A:M,8,0)","v":0},{"$f":"VLOOKUP(B53,'LOC FINAL with new Themes'!A:M,9,0)","v":0},{"$f":"VLOOKUP(B53,'LOC FINAL with new Themes'!A:M,10,0)","v":0},{"$f":"VLOOKUP(B53,'LOC FINAL with new Themes'!A:M,11,0)","v":0},{"$f":"VLOOKUP(B53,'LOC FINAL with new Themes'!A:M,12,0)","v":0},{"$f":"VLOOKUP(B53,'LOC FINAL with new Themes'!A:M,13,0)","v":0}]
[null,"Congressional District Boundaries",null,"Congressional District Boundaries","Cultural & Demographic Statistics ","DOC-Census","Randy Fusaro","randy.j.fusaro@census.gov",{"$f":"VLOOKUP(B54,'LOC FINAL with new Themes'!A:M,7,0)","v":0},{"$f":"VLOOKUP(B54,'LOC FINAL with new Themes'!A:M,8,0)","v":0},{"$f":"VLOOKUP(B54,'LOC FINAL with new Themes'!A:M,9,0)","v":0},{"$f":"VLOOKUP(B54,'LOC FINAL with new Themes'!A:M,10,0)","v":0},{"$f":"VLOOKUP(B54,'LOC FINAL with new Themes'!A:M,11,0)","v":0},{"$f":"VLOOKUP(B54,'LOC FINAL with new Themes'!A:M,12,0)","v":0},{"$f":"VLOOKUP(B54,'LOC FINAL with new Themes'!A:M,13,0)","v":0}]
["County, place, MCD Boundaries","County, place, MCD Boundaries",null,"County, place, MCD Boundaries","Cultural & Demographic Statistics ","DOC-Census","Randy Fusaro","randy.j.fusaro@census.gov",{"$f":"VLOOKUP(B55,'LOC FINAL with new Themes'!A:M,7,0)","v":0},{"$f":"VLOOKUP(B55,'LOC FINAL with new Themes'!A:M,8,0)","v":0},{"$f":"VLOOKUP(B55,'LOC FINAL with new Themes'!A:M,9,0)","v":0},{"$f":"VLOOKUP(B55,'LOC FINAL with new Themes'!A:M,10,0)","v":0},{"$f":"VLOOKUP(B55,'LOC FINAL with new Themes'!A:M,11,0)","v":0},{"$f":"VLOOKUP(B55,'LOC FINAL with new Themes'!A:M,12,0)","v":0},{"$f":"VLOOKUP(B55,'LOC FINAL with new Themes'!A:M,13,0)","v":0}]
[null,"Elementary School District (2010 Census)","Elementary School District (2010 Census)","Elementary School District (2010 Census)","Cultural & Demographic Statistics ","DOC-Census","Jennifer Holland","Jennifer.L.Holland@census.gov",{"$f":"VLOOKUP(B56,'LOC FINAL with new Themes'!A:M,7,0)","v":0},{"$f":"VLOOKUP(B56,'LOC FINAL with new Themes'!A:M,8,0)","v":0},{"$f":"VLOOKUP(B56,'LOC FINAL with new Themes'!A:M,9,0)","v":0},{"$f":"VLOOKUP(B56,'LOC FINAL with new Themes'!A:M,10,0)","v":0},{"$f":"VLOOKUP(B56,'LOC FINAL with new Themes'!A:M,11,0)","v":0},{"$f":"VLOOKUP(B56,'LOC FINAL with new Themes'!A:M,12,0)","v":0},{"$f":"VLOOKUP(B56,'LOC FINAL with new Themes'!A:M,13,0)","v":0}]
[null,"Elementary School District (Census 2000)","Elementary School District (Census 2000)","Elementary School District (Census 2000)","Cultural & Demographic Statistics ","DOC-Census","Jennifer Holland","Jennifer.L.Holland@census.gov",{"$f":"VLOOKUP(B57,'LOC FINAL with new Themes'!A:M,7,0)","v":0},{"$f":"VLOOKUP(B57,'LOC FINAL with new Themes'!A:M,8,0)","v":0},{"$f":"VLOOKUP(B57,'LOC FINAL with new Themes'!A:M,9,0)","v":0},{"$f":"VLOOKUP(B57,'LOC FINAL with new Themes'!A:M,10,0)","v":0},{"$f":"VLOOKUP(B57,'LOC FINAL with new Themes'!A:M,11,0)","v":0},{"$f":"VLOOKUP(B57,'LOC FINAL with new Themes'!A:M,12,0)","v":0},{"$f":"VLOOKUP(B57,'LOC FINAL with new Themes'!A:M,13,0)","v":0}]
["FIPS/ANSI codes for states, counties, congressional districts & metro/micropolitan areas","FIPS/ANSI codes for states, counties, congressional districts & metro/micropolitan areas",null,"FIPS/ANSI codes for states, counties, congressional districts & metro/micropolitan areas","Cultural & Demographic Statistics ","DOC-Census","Randy Fusaro","randy.j.fusaro@census.gov",{"$f":"VLOOKUP(B58,'LOC FINAL with new Themes'!A:M,7,0)","v":0},{"$f":"VLOOKUP(B58,'LOC FINAL with new Themes'!A:M,8,0)","v":0},{"$f":"VLOOKUP(B58,'LOC FINAL with new Themes'!A:M,9,0)","v":0},{"$f":"VLOOKUP(B58,'LOC FINAL with new Themes'!A:M,10,0)","v":0},{"$f":"VLOOKUP(B58,'LOC FINAL with new Themes'!A:M,11,0)","v":0},{"$f":"VLOOKUP(B58,'LOC FINAL with new Themes'!A:M,12,0)","v":0},{"$f":"VLOOKUP(B58,'LOC FINAL with new Themes'!A:M,13,0)","v":0}]
["Metropolitan/micropolitan area boundaries","Metropolitan/micropolitan area boundaries",null,"Metropolitan/micropolitan area boundaries","Cultural & Demographic Statistics ","DOC-Census","Randy Fusaro","randy.j.fusaro@census.gov",{"$f":"VLOOKUP(B59,'LOC FINAL with new Themes'!A:M,7,0)","v":0},{"$f":"VLOOKUP(B59,'LOC FINAL with new Themes'!A:M,8,0)","v":0},{"$f":"VLOOKUP(B59,'LOC FINAL with new Themes'!A:M,9,0)","v":0},{"$f":"VLOOKUP(B59,'LOC FINAL with new Themes'!A:M,10,0)","v":0},{"$f":"VLOOKUP(B59,'LOC FINAL with new Themes'!A:M,11,0)","v":0},{"$f":"VLOOKUP(B59,'LOC FINAL with new Themes'!A:M,12,0)","v":0},{"$f":"VLOOKUP(B59,'LOC FINAL with new Themes'!A:M,13,0)","v":0}]
[null,"Metropolitan/micropolitan Statistical Area (2010 Census)","Metropolitan/micropolitan Statistical Area (2010 Census)","Metropolitan/micropolitan Statistical Area (2010 Census)","Cultural & Demographic Statistics ","DOC-Census","Jennifer Holland","Jennifer.L.Holland@census.gov",{"$f":"VLOOKUP(B60,'LOC FINAL with new Themes'!A:M,7,0)","v":0},{"$f":"VLOOKUP(B60,'LOC FINAL with new Themes'!A:M,8,0)","v":0},{"$f":"VLOOKUP(B60,'LOC FINAL with new Themes'!A:M,9,0)","v":0},{"$f":"VLOOKUP(B60,'LOC FINAL with new Themes'!A:M,10,0)","v":0},{"$f":"VLOOKUP(B60,'LOC FINAL with new Themes'!A:M,11,0)","v":0},{"$f":"VLOOKUP(B60,'LOC FINAL with new Themes'!A:M,12,0)","v":0},{"$f":"VLOOKUP(B60,'LOC FINAL with new Themes'!A:M,13,0)","v":0}]
["National Center for Health Statistics (Atlas of US Mortality)","National Center for Health Statistics (Atlas of US Mortality)",null,"National Center for Health Statistics (Atlas of US Mortality)","Cultural & Demographic Statistics ","HHS","Gary Anderson","gary.anderson@hhs.gov",{"$f":"VLOOKUP(B61,'LOC FINAL with new Themes'!A:M,7,0)","v":0},{"$f":"VLOOKUP(B61,'LOC FINAL with new Themes'!A:M,8,0)","v":0},{"$f":"VLOOKUP(B61,'LOC FINAL with new Themes'!A:M,9,0)","v":0},{"$f":"VLOOKUP(B61,'LOC FINAL with new Themes'!A:M,10,0)","v":0},{"$f":"VLOOKUP(B61,'LOC FINAL with new Themes'!A:M,11,0)","v":0},{"$f":"VLOOKUP(B61,'LOC FINAL with new Themes'!A:M,12,0)","v":0},{"$f":"VLOOKUP(B61,'LOC FINAL with new Themes'!A:M,13,0)","v":0}]
[null,null,"Oklahoma Tribal Joint Use Areas","Oklahoma Tribal Joint Use Areas","Cultural & Demographic Statistics ","DOC-Census"]
[null,null,"Oklahoma Tribal Statistical Areas","Oklahoma Tribal Statistical Areas","Cultural & Demographic Statistics ","DOC-Census"]
[null,"Public Use Microdata Area (Census 2000)","Public Use Microdata Area (Census 2000)","Public Use Microdata Area (Census 2000)","Cultural & Demographic Statistics ","DOC-Census","Jennifer Holland","Jennifer.L.Holland@census.gov",{"$f":"VLOOKUP(B64,'LOC FINAL with new Themes'!A:M,7,0)","v":0},{"$f":"VLOOKUP(B64,'LOC FINAL with new Themes'!A:M,8,0)","v":0},{"$f":"VLOOKUP(B64,'LOC FINAL with new Themes'!A:M,9,0)","v":0},{"$f":"VLOOKUP(B64,'LOC FINAL with new Themes'!A:M,10,0)","v":0},{"$f":"VLOOKUP(B64,'LOC FINAL with new Themes'!A:M,11,0)","v":0},{"$f":"VLOOKUP(B64,'LOC FINAL with new Themes'!A:M,12,0)","v":0},{"$f":"VLOOKUP(B64,'LOC FINAL with new Themes'!A:M,13,0)","v":0}]
["School District Boundaries","School District Boundaries",null,"School District Boundaries","Cultural & Demographic Statistics ","DOC-Census","Randy Fusaro","randy.j.fusaro@census.gov",{"$f":"VLOOKUP(B65,'LOC FINAL with new Themes'!A:M,7,0)","v":0},{"$f":"VLOOKUP(B65,'LOC FINAL with new Themes'!A:M,8,0)","v":0},{"$f":"VLOOKUP(B65,'LOC FINAL with new Themes'!A:M,9,0)","v":0},{"$f":"VLOOKUP(B65,'LOC FINAL with new Themes'!A:M,10,0)","v":0},{"$f":"VLOOKUP(B65,'LOC FINAL with new Themes'!A:M,11,0)","v":0},{"$f":"VLOOKUP(B65,'LOC FINAL with new Themes'!A:M,12,0)","v":0},{"$f":"VLOOKUP(B65,'LOC FINAL with new Themes'!A:M,13,0)","v":0}]
[null,"Secondary School District (2010 Census)","Secondary School District (2010 Census)","Secondary School District (2010 Census)","Cultural & Demographic Statistics ","DOC-Census","Jennifer Holland","Jennifer.L.Holland@census.gov",{"$f":"VLOOKUP(B66,'LOC FINAL with new Themes'!A:M,7,0)","v":0},{"$f":"VLOOKUP(B66,'LOC FINAL with new Themes'!A:M,8,0)","v":0},{"$f":"VLOOKUP(B66,'LOC FINAL with new Themes'!A:M,9,0)","v":0},{"$f":"VLOOKUP(B66,'LOC FINAL with new Themes'!A:M,10,0)","v":0},{"$f":"VLOOKUP(B66,'LOC FINAL with new Themes'!A:M,11,0)","v":0},{"$f":"VLOOKUP(B66,'LOC FINAL with new Themes'!A:M,12,0)","v":0},{"$f":"VLOOKUP(B66,'LOC FINAL with new Themes'!A:M,13,0)","v":0}]
[null,"Secondary School District (Census 2000)","Secondary School District (Census 2000)","Secondary School District (Census 2000)","Cultural & Demographic Statistics ","DOC-Census","Jennifer Holland","Jennifer.L.Holland@census.gov",{"$f":"VLOOKUP(B67,'LOC FINAL with new Themes'!A:M,7,0)","v":0},{"$f":"VLOOKUP(B67,'LOC FINAL with new Themes'!A:M,8,0)","v":0},{"$f":"VLOOKUP(B67,'LOC FINAL with new Themes'!A:M,9,0)","v":0},{"$f":"VLOOKUP(B67,'LOC FINAL with new Themes'!A:M,10,0)","v":0},{"$f":"VLOOKUP(B67,'LOC FINAL with new Themes'!A:M,11,0)","v":0},{"$f":"VLOOKUP(B67,'LOC FINAL with new Themes'!A:M,12,0)","v":0},{"$f":"VLOOKUP(B67,'LOC FINAL with new Themes'!A:M,13,0)","v":0}]
["State (+ Territories) Boundaries","State (+ Territories) Boundaries",null,"State (+ Territories) Boundaries","Cultural & Demographic Statistics ","DOC-Census","Randy Fusaro","randy.j.fusaro@census.gov",{"$f":"VLOOKUP(B68,'LOC FINAL with new Themes'!A:M,7,0)","v":0},{"$f":"VLOOKUP(B68,'LOC FINAL with new Themes'!A:M,8,0)","v":0},{"$f":"VLOOKUP(B68,'LOC FINAL with new Themes'!A:M,9,0)","v":0},{"$f":"VLOOKUP(B68,'LOC FINAL with new Themes'!A:M,10,0)","v":0},{"$f":"VLOOKUP(B68,'LOC FINAL with new Themes'!A:M,11,0)","v":0},{"$f":"VLOOKUP(B68,'LOC FINAL with new Themes'!A:M,12,0)","v":0},{"$f":"VLOOKUP(B68,'LOC FINAL with new Themes'!A:M,13,0)","v":0}]
["Statistical Area Boundaries (tracts, blocks, UAs, CDPs, etc)","Statistical Area Boundaries (tracts, blocks, UAs, CDPs, etc)",null,"Statistical Area Boundaries (tracts, blocks, UAs, CDPs, etc)","Cultural & Demographic Statistics ","DOC-Census","Randy Fusaro","randy.j.fusaro@census.gov",{"$f":"VLOOKUP(B69,'LOC FINAL with new Themes'!A:M,7,0)","v":0},{"$f":"VLOOKUP(B69,'LOC FINAL with new Themes'!A:M,8,0)","v":0},{"$f":"VLOOKUP(B69,'LOC FINAL with new Themes'!A:M,9,0)","v":0},{"$f":"VLOOKUP(B69,'LOC FINAL with new Themes'!A:M,10,0)","v":0},{"$f":"VLOOKUP(B69,'LOC FINAL with new Themes'!A:M,11,0)","v":0},{"$f":"VLOOKUP(B69,'LOC FINAL with new Themes'!A:M,12,0)","v":0},{"$f":"VLOOKUP(B69,'LOC FINAL with new Themes'!A:M,13,0)","v":0}]
[null,"Super Public Use Microdata Area (Census 2000)","Super Public Use Microdata Area (Census 2000)","Super Public Use Microdata Area (Census 2000)","Cultural & Demographic Statistics ","DOC-Census","Jennifer Holland","Jennifer.L.Holland@census.gov",{"$f":"VLOOKUP(B70,'LOC FINAL with new Themes'!A:M,7,0)","v":0},{"$f":"VLOOKUP(B70,'LOC FINAL with new Themes'!A:M,8,0)","v":0},{"$f":"VLOOKUP(B70,'LOC FINAL with new Themes'!A:M,9,0)","v":0},{"$f":"VLOOKUP(B70,'LOC FINAL with new Themes'!A:M,10,0)","v":0},{"$f":"VLOOKUP(B70,'LOC FINAL with new Themes'!A:M,11,0)","v":0},{"$f":"VLOOKUP(B70,'LOC FINAL with new Themes'!A:M,12,0)","v":0},{"$f":"VLOOKUP(B70,'LOC FINAL with new Themes'!A:M,13,0)","v":0}]
["TIGER* (many statistical boundaries)","TIGER (many statistical boundaries)",null,"TIGER (many statistical boundaries)","Cultural & Demographic Statistics ","DOC-Census","Randy Fusaro","randy.j.fusaro@census.gov",{"$f":"VLOOKUP(B71,'LOC FINAL with new Themes'!A:M,7,0)","v":0},{"$f":"VLOOKUP(B71,'LOC FINAL with new Themes'!A:M,8,0)","v":0},{"$f":"VLOOKUP(B71,'LOC FINAL with new Themes'!A:M,9,0)","v":0},{"$f":"VLOOKUP(B71,'LOC FINAL with new Themes'!A:M,10,0)","v":0},{"$f":"VLOOKUP(B71,'LOC FINAL with new Themes'!A:M,11,0)","v":0},{"$f":"VLOOKUP(B71,'LOC FINAL with new Themes'!A:M,12,0)","v":0},{"$f":"VLOOKUP(B71,'LOC FINAL with new Themes'!A:M,13,0)","v":0}]
[null,"Topological Faces (2010 Census)","Topological Faces (2010 Census)","Topological Faces (2010 Census)","Cultural & Demographic Statistics ","DOC-Census","Jennifer Holland","Jennifer.L.Holland@census.gov",{"$f":"VLOOKUP(B72,'LOC FINAL with new Themes'!A:M,7,0)","v":0},{"$f":"VLOOKUP(B72,'LOC FINAL with new Themes'!A:M,8,0)","v":0},{"$f":"VLOOKUP(B72,'LOC FINAL with new Themes'!A:M,9,0)","v":0},{"$f":"VLOOKUP(B72,'LOC FINAL with new Themes'!A:M,10,0)","v":0},{"$f":"VLOOKUP(B72,'LOC FINAL with new Themes'!A:M,11,0)","v":0},{"$f":"VLOOKUP(B72,'LOC FINAL with new Themes'!A:M,12,0)","v":0},{"$f":"VLOOKUP(B72,'LOC FINAL with new Themes'!A:M,13,0)","v":0}]
[null,"Unified School District (2010 Census)","Unified School District (2010 Census)","Unified School District (2010 Census)","Cultural & Demographic Statistics ","DOC-Census","Jennifer Holland","Jennifer.L.Holland@census.gov",{"$f":"VLOOKUP(B73,'LOC FINAL with new Themes'!A:M,7,0)","v":0},{"$f":"VLOOKUP(B73,'LOC FINAL with new Themes'!A:M,8,0)","v":0},{"$f":"VLOOKUP(B73,'LOC FINAL with new Themes'!A:M,9,0)","v":0},{"$f":"VLOOKUP(B73,'LOC FINAL with new Themes'!A:M,10,0)","v":0},{"$f":"VLOOKUP(B73,'LOC FINAL with new Themes'!A:M,11,0)","v":0},{"$f":"VLOOKUP(B73,'LOC FINAL with new Themes'!A:M,12,0)","v":0},{"$f":"VLOOKUP(B73,'LOC FINAL with new Themes'!A:M,13,0)","v":0}]
[null,"Unified School District (Census 2000)","Unified School District (Census 2000)","Unified School District (Census 2000)","Cultural & Demographic Statistics ","DOC-Census","Jennifer Holland","Jennifer.L.Holland@census.gov",{"$f":"VLOOKUP(B74,'LOC FINAL with new Themes'!A:M,7,0)","v":0},{"$f":"VLOOKUP(B74,'LOC FINAL with new Themes'!A:M,8,0)","v":0},{"$f":"VLOOKUP(B74,'LOC FINAL with new Themes'!A:M,9,0)","v":0},{"$f":"VLOOKUP(B74,'LOC FINAL with new Themes'!A:M,10,0)","v":0},{"$f":"VLOOKUP(B74,'LOC FINAL with new Themes'!A:M,11,0)","v":0},{"$f":"VLOOKUP(B74,'LOC FINAL with new Themes'!A:M,12,0)","v":0},{"$f":"VLOOKUP(B74,'LOC FINAL with new Themes'!A:M,13,0)","v":0}]
[null,"Urban Growth Area (2010 Census)","Urban Growth Area (2010 Census)","Urban Growth Area (2010 Census)","Cultural & Demographic Statistics ","DOC-Census","Jennifer Holland","Jennifer.L.Holland@census.gov",{"$f":"VLOOKUP(B75,'LOC FINAL with new Themes'!A:M,7,0)","v":0},{"$f":"VLOOKUP(B75,'LOC FINAL with new Themes'!A:M,8,0)","v":0},{"$f":"VLOOKUP(B75,'LOC FINAL with new Themes'!A:M,9,0)","v":0},{"$f":"VLOOKUP(B75,'LOC FINAL with new Themes'!A:M,10,0)","v":0},{"$f":"VLOOKUP(B75,'LOC FINAL with new Themes'!A:M,11,0)","v":0},{"$f":"VLOOKUP(B75,'LOC FINAL with new Themes'!A:M,12,0)","v":0},{"$f":"VLOOKUP(B75,'LOC FINAL with new Themes'!A:M,13,0)","v":0}]
[null,"Urban Growth Area (Census 2000)","Urban Growth Area (Census 2000)","Urban Growth Area (Census 2000)","Cultural & Demographic Statistics ","DOC-Census","Jennifer Holland","Jennifer.L.Holland@census.gov",{"$f":"VLOOKUP(B76,'LOC FINAL with new Themes'!A:M,7,0)","v":0},{"$f":"VLOOKUP(B76,'LOC FINAL with new Themes'!A:M,8,0)","v":0},{"$f":"VLOOKUP(B76,'LOC FINAL with new Themes'!A:M,9,0)","v":0},{"$f":"VLOOKUP(B76,'LOC FINAL with new Themes'!A:M,10,0)","v":0},{"$f":"VLOOKUP(B76,'LOC FINAL with new Themes'!A:M,11,0)","v":0},{"$f":"VLOOKUP(B76,'LOC FINAL with new Themes'!A:M,12,0)","v":0},{"$f":"VLOOKUP(B76,'LOC FINAL with new Themes'!A:M,13,0)","v":0}]
[null,"Voting District (2010 Census)","Voting District (2010 Census)","Voting District (2010 Census)","Cultural & Demographic Statistics ","DOC-Census","Jennifer Holland","Jennifer.L.Holland@census.gov",{"$f":"VLOOKUP(B77,'LOC FINAL with new Themes'!A:M,7,0)","v":0},{"$f":"VLOOKUP(B77,'LOC FINAL with new Themes'!A:M,8,0)","v":0},{"$f":"VLOOKUP(B77,'LOC FINAL with new Themes'!A:M,9,0)","v":0},{"$f":"VLOOKUP(B77,'LOC FINAL with new Themes'!A:M,10,0)","v":0},{"$f":"VLOOKUP(B77,'LOC FINAL with new Themes'!A:M,11,0)","v":0},{"$f":"VLOOKUP(B77,'LOC FINAL with new Themes'!A:M,12,0)","v":0},{"$f":"VLOOKUP(B77,'LOC FINAL with new Themes'!A:M,13,0)","v":0}]
[null,"Voting District (Census 2000)","Voting District (Census 2000)","Voting District (Census 2000)","Cultural & Demographic Statistics ","DOC-Census","Jennifer Holland","Jennifer.L.Holland@census.gov",{"$f":"VLOOKUP(B78,'LOC FINAL with new Themes'!A:M,7,0)","v":0},{"$f":"VLOOKUP(B78,'LOC FINAL with new Themes'!A:M,8,0)","v":0},{"$f":"VLOOKUP(B78,'LOC FINAL with new Themes'!A:M,9,0)","v":0},{"$f":"VLOOKUP(B78,'LOC FINAL with new Themes'!A:M,10,0)","v":0},{"$f":"VLOOKUP(B78,'LOC FINAL with new Themes'!A:M,11,0)","v":0},{"$f":"VLOOKUP(B78,'LOC FINAL with new Themes'!A:M,12,0)","v":0},{"$f":"VLOOKUP(B78,'LOC FINAL with new Themes'!A:M,13,0)","v":0}]
["Voting District Boundaries","Voting District Boundaries",null,"Voting District Boundaries","Cultural & Demographic Statistics ","DOC-Census","Randy Fusaro","randy.j.fusaro@census.gov",{"$f":"VLOOKUP(B79,'LOC FINAL with new Themes'!A:M,7,0)","v":0},{"$f":"VLOOKUP(B79,'LOC FINAL with new Themes'!A:M,8,0)","v":0},{"$f":"VLOOKUP(B79,'LOC FINAL with new Themes'!A:M,9,0)","v":0},{"$f":"VLOOKUP(B79,'LOC FINAL with new Themes'!A:M,10,0)","v":0},{"$f":"VLOOKUP(B79,'LOC FINAL with new Themes'!A:M,11,0)","v":0},{"$f":"VLOOKUP(B79,'LOC FINAL with new Themes'!A:M,12,0)","v":0},{"$f":"VLOOKUP(B79,'LOC FINAL with new Themes'!A:M,13,0)","v":0}]
[null,null,null,{"$f":"SUBTOTAL(3,D39:D79)","v":41},"Cultural & Demographic Statistics  Count"]
["Cultural Landscape Boundaries","Cultural Landscape Boundaries","Cultural Landscape Boundaries",{"$f":"IF(C81=0,B81,C81)","v":"Cultural Landscape Boundaries"},"Cultural & Demographic Statistics \nCultural Resources","DOI-NPS","John Knoerl","john_knoerl@nps.gov",{"$f":"VLOOKUP(B81,'LOC FINAL with new Themes'!A:M,7,0)","v":"Feature classes of the cultural resource data model (NPS only, other federal agencies handle it as they decide)"},{"$f":"VLOOKUP(B81,'LOC FINAL with new Themes'!A:M,8,0)","v":"don't want a single centralized data set but focusing on standard approach"},{"$f":"VLOOKUP(B81,'LOC FINAL with new Themes'!A:M,9,0)","v":0},{"$f":"VLOOKUP(B81,'LOC FINAL with new Themes'!A:M,10,0)","v":0},{"$f":"VLOOKUP(B81,'LOC FINAL with new Themes'!A:M,11,0)","v":0},{"$f":"VLOOKUP(B81,'LOC FINAL with new Themes'!A:M,12,0)","v":0},{"$f":"VLOOKUP(B81,'LOC FINAL with new Themes'!A:M,13,0)","v":0}]
["Cultural Resource Survey Boundaries","Cultural Resource Survey Boundaries","Cultural Resource Survey Boundaries","Cultural Resource Survey Boundaries","Cultural & Demographic Statistics \nCultural Resources","DOI-NPS","John Knoerl","john_knoerl@nps.gov",{"$f":"VLOOKUP(B82,'LOC FINAL with new Themes'!A:M,7,0)","v":"Feature classes of the cultural resource data model (NPS only, other federal agencies handle it as they decide)"},{"$f":"VLOOKUP(B82,'LOC FINAL with new Themes'!A:M,8,0)","v":"don't want a single centralized data set but focusing on standard approach"},{"$f":"VLOOKUP(B82,'LOC FINAL with new Themes'!A:M,9,0)","v":0},{"$f":"VLOOKUP(B82,'LOC FINAL with new Themes'!A:M,10,0)","v":0},{"$f":"VLOOKUP(B82,'LOC FINAL with new Themes'!A:M,11,0)","v":0},{"$f":"VLOOKUP(B82,'LOC FINAL with new Themes'!A:M,12,0)","v":0},{"$f":"VLOOKUP(B82,'LOC FINAL with new Themes'!A:M,13,0)","v":0}]
["Ethnographic Resource Boundaries","Ethnographic Resource Boundaries","Ethnographic Resource Boundaries","Ethnographic Resource Boundaries","Cultural & Demographic Statistics \nCultural Resources","DOI-NPS","John Knoerl","john_knoerl@nps.gov",{"$f":"VLOOKUP(B83,'LOC FINAL with new Themes'!A:M,7,0)","v":"Feature classes of the cultural resource data model (NPS only, other federal agencies handle it as they decide)"},{"$f":"VLOOKUP(B83,'LOC FINAL with new Themes'!A:M,8,0)","v":"don't want a single centralized data set but focusing on standard approach"},{"$f":"VLOOKUP(B83,'LOC FINAL with new Themes'!A:M,9,0)","v":0},{"$f":"VLOOKUP(B83,'LOC FINAL with new Themes'!A:M,10,0)","v":0},{"$f":"VLOOKUP(B83,'LOC FINAL with new Themes'!A:M,11,0)","v":0},{"$f":"VLOOKUP(B83,'LOC FINAL with new Themes'!A:M,12,0)","v":0},{"$f":"VLOOKUP(B83,'LOC FINAL with new Themes'!A:M,13,0)","v":0}]
["Historic Buildings Boundaries","Historic Buildings Boundaries","Historic Buildings Boundaries","Historic Buildings Boundaries","Cultural & Demographic Statistics \nCultural Resources","DOI-NPS","John Knoerl","john_knoerl@nps.gov",{"$f":"VLOOKUP(B84,'LOC FINAL with new Themes'!A:M,7,0)","v":"Feature classes of the cultural resource data model (NPS only, other federal agencies handle it as they decide)"},{"$f":"VLOOKUP(B84,'LOC FINAL with new Themes'!A:M,8,0)","v":"don't want a single centralized data set but focusing on standard approach"},{"$f":"VLOOKUP(B84,'LOC FINAL with new Themes'!A:M,9,0)","v":0},{"$f":"VLOOKUP(B84,'LOC FINAL with new Themes'!A:M,10,0)","v":0},{"$f":"VLOOKUP(B84,'LOC FINAL with new Themes'!A:M,11,0)","v":0},{"$f":"VLOOKUP(B84,'LOC FINAL with new Themes'!A:M,12,0)","v":0},{"$f":"VLOOKUP(B84,'LOC FINAL with new Themes'!A:M,13,0)","v":0}]
["Historic Districts Boundaries","Historic Districts Boundaries","Historic Districts Boundaries","Historic Districts Boundaries","Cultural & Demographic Statistics \nCultural Resources","DOI-NPS","John Knoerl","john_knoerl@nps.gov",{"$f":"VLOOKUP(B85,'LOC FINAL with new Themes'!A:M,7,0)","v":"Feature classes of the cultural resource data model (NPS only, other federal agencies handle it as they decide)"},{"$f":"VLOOKUP(B85,'LOC FINAL with new Themes'!A:M,8,0)","v":"don't want a single centralized data set but focusing on standard approach"},{"$f":"VLOOKUP(B85,'LOC FINAL with new Themes'!A:M,9,0)","v":0},{"$f":"VLOOKUP(B85,'LOC FINAL with new Themes'!A:M,10,0)","v":0},{"$f":"VLOOKUP(B85,'LOC FINAL with new Themes'!A:M,11,0)","v":0},{"$f":"VLOOKUP(B85,'LOC FINAL with new Themes'!A:M,12,0)","v":0},{"$f":"VLOOKUP(B85,'LOC FINAL with new Themes'!A:M,13,0)","v":0}]
["Historic Objects Boundaries","Historic Objects Boundaries","Historic Objects Boundaries","Historic Objects Boundaries","Cultural & Demographic Statistics \nCultural Resources","DOI-NPS","John Knoerl","john_knoerl@nps.gov",{"$f":"VLOOKUP(B86,'LOC FINAL with new Themes'!A:M,7,0)","v":"Feature classes of the cultural resource data model (NPS only, other federal agencies handle it as they decide)"},{"$f":"VLOOKUP(B86,'LOC FINAL with new Themes'!A:M,8,0)","v":"don't want a single centralized data set but focusing on standard approach"},{"$f":"VLOOKUP(B86,'LOC FINAL with new Themes'!A:M,9,0)","v":0},{"$f":"VLOOKUP(B86,'LOC FINAL with new Themes'!A:M,10,0)","v":0},{"$f":"VLOOKUP(B86,'LOC FINAL with new Themes'!A:M,11,0)","v":0},{"$f":"VLOOKUP(B86,'LOC FINAL with new Themes'!A:M,12,0)","v":0},{"$f":"VLOOKUP(B86,'LOC FINAL with new Themes'!A:M,13,0)","v":0}]
["Historic Structures Boundaries","Historic Structures Boundaries","Historic Structures Boundaries","Historic Structures Boundaries","Cultural & Demographic Statistics \nCultural Resources","DOI-NPS","John Knoerl","john_knoerl@nps.gov",{"$f":"VLOOKUP(B87,'LOC FINAL with new Themes'!A:M,7,0)","v":"Feature classes of the cultural resource data model (NPS only, other federal agencies handle it as they decide)"},{"$f":"VLOOKUP(B87,'LOC FINAL with new Themes'!A:M,8,0)","v":"don't want a single centralized data set but focusing on standard approach"},{"$f":"VLOOKUP(B87,'LOC FINAL with new Themes'!A:M,9,0)","v":0},{"$f":"VLOOKUP(B87,'LOC FINAL with new Themes'!A:M,10,0)","v":0},{"$f":"VLOOKUP(B87,'LOC FINAL with new Themes'!A:M,11,0)","v":0},{"$f":"VLOOKUP(B87,'LOC FINAL with new Themes'!A:M,12,0)","v":0},{"$f":"VLOOKUP(B87,'LOC FINAL with new Themes'!A:M,13,0)","v":"M "}]
[null,null,"Other Cultural Resource Boundaries","Other Cultural Resource Boundaries","Cultural & Demographic Statistics \nCultural Resources","DOI-NPS"]
[null,null,null,{"$f":"SUBTOTAL(3,D81:D88)","v":8},"Cultural & Demographic Statistics \nCultural Resources Count"]
[null,"Point Landmark (2010 Census)","Point of Landmark (2010 Census)",{"$f":"IF(C90=0,B90,C90)","v":"Point of Landmark (2010 Census)"},"Cultural Resources","DOC-Census","Jennifer Holland","Jennifer.L.Holland@census.gov",{"$f":"VLOOKUP(B90,'LOC FINAL with new Themes'!A:M,7,0)","v":0},{"$f":"VLOOKUP(B90,'LOC FINAL with new Themes'!A:M,8,0)","v":0},{"$f":"VLOOKUP(B90,'LOC FINAL with new Themes'!A:M,9,0)","v":0},{"$f":"VLOOKUP(B90,'LOC FINAL with new Themes'!A:M,10,0)","v":0},{"$f":"VLOOKUP(B90,'LOC FINAL with new Themes'!A:M,11,0)","v":0},{"$f":"VLOOKUP(B90,'LOC FINAL with new Themes'!A:M,12,0)","v":0},{"$f":"VLOOKUP(B90,'LOC FINAL with new Themes'!A:M,13,0)","v":0}]
["Archeological Sites","Archeological Sites","Archeological Sites","Archeological Sites","Cultural Resources ","DOI-NPS","John Knoerl","john_knoerl@nps.gov",{"$f":"VLOOKUP(B91,'LOC FINAL with new Themes'!A:M,7,0)","v":"Feature classes of the cultural resource data model (NPS only, other federal agencies handle it as they decide)"},{"$f":"VLOOKUP(B91,'LOC FINAL with new Themes'!A:M,8,0)","v":"don't want a single centralized data set but focusing on standard approach"},{"$f":"VLOOKUP(B91,'LOC FINAL with new Themes'!A:M,9,0)","v":"National Historic Presrevation Act says state historic preservation office has primary oversight (section 110)"},{"$f":"VLOOKUP(B91,'LOC FINAL with new Themes'!A:M,10,0)","v":0},{"$f":"VLOOKUP(B91,'LOC FINAL with new Themes'!A:M,11,0)","v":0},{"$f":"VLOOKUP(B91,'LOC FINAL with new Themes'!A:M,12,0)","v":0},{"$f":"VLOOKUP(B91,'LOC FINAL with new Themes'!A:M,13,0)","v":0}]
[null,"Area Landmark (2010 Census)","Area Landmark (2010 Census)","Area Landmark (2010 Census)","Cultural Resources ","DOC-Census","Jennifer Holland","Jennifer.L.Holland@census.gov",{"$f":"VLOOKUP(B92,'LOC FINAL with new Themes'!A:M,7,0)","v":0},{"$f":"VLOOKUP(B92,'LOC FINAL with new Themes'!A:M,8,0)","v":0},{"$f":"VLOOKUP(B92,'LOC FINAL with new Themes'!A:M,9,0)","v":0},{"$f":"VLOOKUP(B92,'LOC FINAL with new Themes'!A:M,10,0)","v":0},{"$f":"VLOOKUP(B92,'LOC FINAL with new Themes'!A:M,11,0)","v":0},{"$f":"VLOOKUP(B92,'LOC FINAL with new Themes'!A:M,12,0)","v":0},{"$f":"VLOOKUP(B92,'LOC FINAL with new Themes'!A:M,13,0)","v":0}]
[null,null,"Geographic Names Dataset - National Map","Geographic Names Dataset - National Map","Cultural Resources ","DOI-USGS"]
["National Map - Geographic Names Information System (GNIS)","National Map - Geographic Names Information System (GNIS)",null,"National Map - Geographic Names Information System (GNIS)","Cultural Resources ","DOI-USGS","Lou Yost","lyost@usgs.gov",{"$f":"VLOOKUP(B94,'LOC FINAL with new Themes'!A:M,7,0)","v":"single data set; poc, data managers; daily updated; Denver systems people backup and archive; transfer to NARA also; Gaz vector (internal)"},{"$f":"VLOOKUP(B94,'LOC FINAL with new Themes'!A:M,8,0)","v":0},{"$f":"VLOOKUP(B94,'LOC FINAL with new Themes'!A:M,9,0)","v":0},{"$f":"VLOOKUP(B94,'LOC FINAL with new Themes'!A:M,10,0)","v":0},{"$f":"VLOOKUP(B94,'LOC FINAL with new Themes'!A:M,11,0)","v":0},{"$f":"VLOOKUP(B94,'LOC FINAL with new Themes'!A:M,12,0)","v":0},{"$f":"VLOOKUP(B94,'LOC FINAL with new Themes'!A:M,13,0)","v":"S"}]
[null,"Topological Faces-Area Landmark Relationship File","Topological Faces-Area Landmark Relationship File","Topological Faces-Area Landmark Relationship File","Cultural Resources ","DOC-Census","Jennifer Holland","Jennifer.L.Holland@census.gov",{"$f":"VLOOKUP(B95,'LOC FINAL with new Themes'!A:M,7,0)","v":0},{"$f":"VLOOKUP(B95,'LOC FINAL with new Themes'!A:M,8,0)","v":0},{"$f":"VLOOKUP(B95,'LOC FINAL with new Themes'!A:M,9,0)","v":0},{"$f":"VLOOKUP(B95,'LOC FINAL with new Themes'!A:M,10,0)","v":0},{"$f":"VLOOKUP(B95,'LOC FINAL with new Themes'!A:M,11,0)","v":0},{"$f":"VLOOKUP(B95,'LOC FINAL with new Themes'!A:M,12,0)","v":0},{"$f":"VLOOKUP(B95,'LOC FINAL with new Themes'!A:M,13,0)","v":0}]
[null,null,null,{"$f":"SUBTOTAL(3,D90:D95)","v":6},"Cultural Resources Count"]
["133 UA Elevation Data (lidar)","133 UA Elevation Data (lidar)",null,{"$f":"IF(C97=0,B97,C97)","v":"133 UA Elevation Data (lidar)"},"Elevation","DOD-NGA","Ron Power, NGA","ronald.k.power@nga.mil",{"$f":"VLOOKUP(B97,'LOC FINAL with new Themes'!A:M,7,0)","v":0},{"$f":"VLOOKUP(B97,'LOC FINAL with new Themes'!A:M,8,0)","v":0},{"$f":"VLOOKUP(B97,'LOC FINAL with new Themes'!A:M,9,0)","v":0},{"$f":"VLOOKUP(B97,'LOC FINAL with new Themes'!A:M,10,0)","v":0},{"$f":"VLOOKUP(B97,'LOC FINAL with new Themes'!A:M,11,0)","v":0},{"$f":"VLOOKUP(B97,'LOC FINAL with new Themes'!A:M,12,0)","v":0},{"$f":"VLOOKUP(B97,'LOC FINAL with new Themes'!A:M,13,0)","v":0}]
["DEMs - Archive","DEMs - Archive",null,"DEMs - Archive","Elevation","DOI-USGS","Gayla Evans","gevans@usgs.gov",{"$f":"VLOOKUP(B98,'LOC FINAL with new Themes'!A:M,7,0)","v":"DEMS update at variable nature; are four data sets based on resolution; this is the POC and data manager; this is the name and maintain three complete with two physically separate on-site and one off-site"},{"$f":"VLOOKUP(B98,'LOC FINAL with new Themes'!A:M,8,0)","v":0},{"$f":"VLOOKUP(B98,'LOC FINAL with new Themes'!A:M,9,0)","v":0},{"$f":"VLOOKUP(B98,'LOC FINAL with new Themes'!A:M,10,0)","v":0},{"$f":"VLOOKUP(B98,'LOC FINAL with new Themes'!A:M,11,0)","v":0},{"$f":"VLOOKUP(B98,'LOC FINAL with new Themes'!A:M,12,0)","v":0},{"$f":"VLOOKUP(B98,'LOC FINAL with new Themes'!A:M,13,0)","v":"S"}]
["GTOPO30","GTOPO30",null,"GTOPO30","Elevation","DOI-USGS","Jeff Danielson"," daniels@usgs.gov",{"$f":"VLOOKUP(B99,'LOC FINAL with new Themes'!A:M,7,0)","v":"GTOPO30 is static; one data set; this is the POC and data manager; this is the name and maintain three complete with two physically separate on-site and one off-site"},{"$f":"VLOOKUP(B99,'LOC FINAL with new Themes'!A:M,8,0)","v":0},{"$f":"VLOOKUP(B99,'LOC FINAL with new Themes'!A:M,9,0)","v":0},{"$f":"VLOOKUP(B99,'LOC FINAL with new Themes'!A:M,10,0)","v":0},{"$f":"VLOOKUP(B99,'LOC FINAL with new Themes'!A:M,11,0)","v":0},{"$f":"VLOOKUP(B99,'LOC FINAL with new Themes'!A:M,12,0)","v":0},{"$f":"VLOOKUP(B99,'LOC FINAL with new Themes'!A:M,13,0)","v":0}]
["National Map National Elevation Data Set (NED)","National Map  - National Elevation Dataset (NED)",null,"National Map  - National Elevation Dataset (NED)","Elevation","DOI-USGS","Jim Mauck","lyost@usgs.gov",{"$f":"VLOOKUP(B100,'LOC FINAL with new Themes'!A:M,7,0)","v":0},{"$f":"VLOOKUP(B100,'LOC FINAL with new Themes'!A:M,8,0)","v":0},{"$f":"VLOOKUP(B100,'LOC FINAL with new Themes'!A:M,9,0)","v":0},{"$f":"VLOOKUP(B100,'LOC FINAL with new Themes'!A:M,10,0)","v":0},{"$f":"VLOOKUP(B100,'LOC FINAL with new Themes'!A:M,11,0)","v":0},{"$f":"VLOOKUP(B100,'LOC FINAL with new Themes'!A:M,12,0)","v":0},{"$f":"VLOOKUP(B100,'LOC FINAL with new Themes'!A:M,13,0)","v":0}]
["SRTM (3-arc second DTEDS)","SRTM (3-arc second DTEDS)",null,"SRTM (3-arc second DTEDS)","Elevation","DOI-USGS","Dean Gesch, USGS","gesch@usgs.gov",{"$f":"VLOOKUP(B101,'LOC FINAL with new Themes'!A:M,7,0)","v":"SRTM is static; one data set; this is the POC and data manager; this is the name and maintain three complete with two physically separate on-site and one off-site"},{"$f":"VLOOKUP(B101,'LOC FINAL with new Themes'!A:M,8,0)","v":0},{"$f":"VLOOKUP(B101,'LOC FINAL with new Themes'!A:M,9,0)","v":0},{"$f":"VLOOKUP(B101,'LOC FINAL with new Themes'!A:M,10,0)","v":0},{"$f":"VLOOKUP(B101,'LOC FINAL with new Themes'!A:M,11,0)","v":0},{"$f":"VLOOKUP(B101,'LOC FINAL with new Themes'!A:M,12,0)","v":0},{"$f":"VLOOKUP(B101,'LOC FINAL with new Themes'!A:M,13,0)","v":"S"}]
["Digital Flood Insurance Rate Maps (D-FIRM)","Digital Flood Insurance Rate Maps (D-FIRM)","Digital Flood Insurance Rate Maps (DFIRM)","Digital Flood Insurance Rate Maps (DFIRM)","Elevation ","DHS-FEMA","Scott McAfee","scott.mcaffee@dhs.gov",{"$f":"VLOOKUP(B102,'LOC FINAL with new Themes'!A:M,7,0)","v":0},{"$f":"VLOOKUP(B102,'LOC FINAL with new Themes'!A:M,8,0)","v":0},{"$f":"VLOOKUP(B102,'LOC FINAL with new Themes'!A:M,9,0)","v":0},{"$f":"VLOOKUP(B102,'LOC FINAL with new Themes'!A:M,10,0)","v":0},{"$f":"VLOOKUP(B102,'LOC FINAL with new Themes'!A:M,11,0)","v":0},{"$f":"VLOOKUP(B102,'LOC FINAL with new Themes'!A:M,12,0)","v":0},{"$f":"VLOOKUP(B102,'LOC FINAL with new Themes'!A:M,13,0)","v":0}]
[null,null,"Elevation Bathymetric - Ocean, Coastal, and Great Lakes Bathymetry ","Elevation Bathymetric - Ocean, Coastal, and Great Lakes Bathymetry ","Elevation ","DOC-NOAA"]
[null,null,"National Elevation Dataset  - National Map","National Elevation Dataset  - National Map","Elevation ","DOI-USGS"]
["National Flood Hazard Layer (NFHL)","National Flood Hazard Layer (NFHL)","National Flood Hazard Layer (NFHL)","National Flood Hazard Layer (NFHL)","Elevation ","DHS-FEMA","Scott McAfee","scott.mcaffee@dhs.gov",{"$f":"VLOOKUP(B105,'LOC FINAL with new Themes'!A:M,7,0)","v":0},{"$f":"VLOOKUP(B105,'LOC FINAL with new Themes'!A:M,8,0)","v":0},{"$f":"VLOOKUP(B105,'LOC FINAL with new Themes'!A:M,9,0)","v":0},{"$f":"VLOOKUP(B105,'LOC FINAL with new Themes'!A:M,10,0)","v":0},{"$f":"VLOOKUP(B105,'LOC FINAL with new Themes'!A:M,11,0)","v":0},{"$f":"VLOOKUP(B105,'LOC FINAL with new Themes'!A:M,12,0)","v":0},{"$f":"VLOOKUP(B105,'LOC FINAL with new Themes'!A:M,13,0)","v":0}]
[null,null,null,{"$f":"SUBTOTAL(3,D97:D105)","v":9},"Elevation Count"]
[null,null,"Airborne Gravity",{"$f":"IF(C107=0,B107,C107)","v":"Airborne Gravity"},"Geodetic Control ","DOC-NOAA","Dr. Theresa Diehl","theresa.diehl@noaa.gov"]
[null,null,"Terrestrial Gravity",{"$f":"IF(C108=0,B108,C108)","v":"Terrestrial Gravity"},"Geodetic Control ","DOC-NOAA","Bill Waickman ","bill.waickman@noaa.gov"]
[null,null,"Continuously Operating Reference Stations (CORS)","Continuously Operating Reference Stations (CORS)","Geodetic Control ","DOC-NOAA","Dr. Giovanni Sella","giovanni.sella@noaa.gov"]
[null,null,"Geoid Models","Geoid Models","Geodetic Control ","DOC-NOAA","Dr. Dan Roman","dan.roman@noaa.gov"]
["National Geologic Data Base","National Geologic Data Base","National Geodetic Survey (NGS) Datasheets","National Geodetic Survey (NGS) Datasheets","Geodetic Control ","DOC-NOAA","Jim Tomlin","jim.tomlin@noaa.gov",{"$f":"VLOOKUP(B111,'LOC FINAL with new Themes'!A:M,7,0)","v":0},{"$f":"VLOOKUP(B111,'LOC FINAL with new Themes'!A:M,8,0)","v":0},{"$f":"VLOOKUP(B111,'LOC FINAL with new Themes'!A:M,9,0)","v":0},{"$f":"VLOOKUP(B111,'LOC FINAL with new Themes'!A:M,10,0)","v":0},{"$f":"VLOOKUP(B111,'LOC FINAL with new Themes'!A:M,11,0)","v":0},{"$f":"VLOOKUP(B111,'LOC FINAL with new Themes'!A:M,12,0)","v":0},{"$f":"VLOOKUP(B111,'LOC FINAL with new Themes'!A:M,13,0)","v":0}]
[null,null,"Precise Global Navigation Satellite System (GNSS) Orbits",{"$f":"IF(C112=0,#REF!,C112)","v":"Precise Global Navigation Satellite System (GNSS) Orbits"},"Geodetic Control ","DOC-NOAA","Dr. Jake Griffiths","jake.griffiths@noaa.gov"]
[null,null,null,{"$f":"SUBTOTAL(3,D107:D112)","v":6},"Geodetic Control  Count"]
[null,null,"Coal assessment and mapping",{"$f":"IF(C114=0,B114,C114)","v":"Coal assessment and mapping"},"Geology","DOI-USGS"]
["Coastline Data","Coastline Data","Coastline Data","Coastline Data","Geology","DOI-BOEM","Doug Vandegraft","douglas.vandegraft@boemre.gov",{"$f":"VLOOKUP(B115,'LOC FINAL with new Themes'!A:M,7,0)","v":"undeliverable email- neeed to identify new contact"},{"$f":"VLOOKUP(B115,'LOC FINAL with new Themes'!A:M,8,0)","v":0},{"$f":"VLOOKUP(B115,'LOC FINAL with new Themes'!A:M,9,0)","v":0},{"$f":"VLOOKUP(B115,'LOC FINAL with new Themes'!A:M,10,0)","v":0},{"$f":"VLOOKUP(B115,'LOC FINAL with new Themes'!A:M,11,0)","v":0},{"$f":"VLOOKUP(B115,'LOC FINAL with new Themes'!A:M,12,0)","v":0},{"$f":"VLOOKUP(B115,'LOC FINAL with new Themes'!A:M,13,0)","v":0}]
[null,null,"Earthquake monitoring, research, and mapping","Earthquake monitoring, research, and mapping","Geology","DOI-USGS"]
[null,null,"Geochemistry","Geochemistry","Geology","DOI-USGS"]
[null,null,"Geochronology","Geochronology","Geology","DOI-USGS"]
[null,null,"Geologic mapping","Geologic mapping","Geology","DOI-USGS"]
[null,null,"Geomagnetism","Geomagnetism","Geology","DOI-USGS"]
[null,null,"Geophysics","Geophysics","Geology","DOI-USGS"]
[null,null,"Landslide monitoring, research, and mapping","Landslide monitoring, research, and mapping","Geology","DOI-USGS"]
[null,null,"Marine geology","Marine geology","Geology","DOI-USGS"]
[null,null,"Metallic mineral assessment and mapping","Metallic mineral assessment and mapping","Geology","DOI-USGS"]
[null,null,"MMS Baseline","MMS Baseline","Geology","DOI-MMS"]
[null,null,"Non-metallic mineral assessment and mapping, onshore",{"$f":"IF(C126=0,B125,C126)","v":"Non-metallic mineral assessment and mapping, onshore"},"Geology","DOI-USGS"]
["OCS BLOCK LEASE DATA (OCS)","OCS BLOCK LEASE DATA ","OCS Lease Blocks",{"$f":"IF(C127=0,#REF!,C127)","v":"OCS Lease Blocks"},"Geology","DOI-BOEM","Doug Vandegraft","douglas.vandegraft@boemre.gov",{"$f":"VLOOKUP(B127,'LOC FINAL with new Themes'!A:M,7,0)","v":"undeliverable email- neeed to identify new contact"},{"$f":"VLOOKUP(B127,'LOC FINAL with new Themes'!A:M,8,0)","v":0},{"$f":"VLOOKUP(B127,'LOC FINAL with new Themes'!A:M,9,0)","v":0},{"$f":"VLOOKUP(B127,'LOC FINAL with new Themes'!A:M,10,0)","v":0},{"$f":"VLOOKUP(B127,'LOC FINAL with new Themes'!A:M,11,0)","v":0},{"$f":"VLOOKUP(B127,'LOC FINAL with new Themes'!A:M,12,0)","v":0},{"$f":"VLOOKUP(B127,'LOC FINAL with new Themes'!A:M,13,0)","v":0}]
[null,null,"OCS Active Leases",{"$f":"IF(C128=0,B127,C128)","v":"OCS Active Leases"},"Geology","DOI-BOEM","Doug Vandegraft","douglas.vandegraft@boemre.gov"]
[null,null,"Oil and gas assessment and mapping, onshore",{"$f":"IF(C129=0,B129,C129)","v":"Oil and gas assessment and mapping, onshore"},"Geology","DOI-USGS"]
[null,null,"Paleontology","Paleontology","Geology","DOI-USGS"]
[null,null,"Sand and Gravel","Sand and Gravel","Geology","DOI-MMS"]
[null,null,"Volcano monitoring, research, and mapping","Volcano monitoring, research, and mapping","Geology","DOI-USGS"]
[null,null,"Wells","Wells","Geology","DOI-MMS"]
[null,null,null,{"$f":"SUBTOTAL(3,D114:D133)","v":20},"Geology Count"]
["County Boundaries","County Boundaries",null,{"$f":"IF(C135=0,B135,C135)","v":"County Boundaries"},"Governmental Units",null,null,null,{"$f":"VLOOKUP(B135,'LOC FINAL with new Themes'!A:M,7,0)","v":0},{"$f":"VLOOKUP(B135,'LOC FINAL with new Themes'!A:M,8,0)","v":0},{"$f":"VLOOKUP(B135,'LOC FINAL with new Themes'!A:M,9,0)","v":0},{"$f":"VLOOKUP(B135,'LOC FINAL with new Themes'!A:M,10,0)","v":0},{"$f":"VLOOKUP(B135,'LOC FINAL with new Themes'!A:M,11,0)","v":0},{"$f":"VLOOKUP(B135,'LOC FINAL with new Themes'!A:M,12,0)","v":0},{"$f":"VLOOKUP(B135,'LOC FINAL with new Themes'!A:M,13,0)","v":0}]
[null,"Place and MCD Boundaries",null,"Place and MCD Boundaries","Governmental Units",null,null,null,{"$f":"VLOOKUP(B136,'LOC FINAL with new Themes'!A:M,7,0)","v":0},{"$f":"VLOOKUP(B136,'LOC FINAL with new Themes'!A:M,8,0)","v":0},{"$f":"VLOOKUP(B136,'LOC FINAL with new Themes'!A:M,9,0)","v":0},{"$f":"VLOOKUP(B136,'LOC FINAL with new Themes'!A:M,10,0)","v":0},{"$f":"VLOOKUP(B136,'LOC FINAL with new Themes'!A:M,11,0)","v":0},{"$f":"VLOOKUP(B136,'LOC FINAL with new Themes'!A:M,12,0)","v":0},{"$f":"VLOOKUP(B136,'LOC FINAL with new Themes'!A:M,13,0)","v":0}]
[null,"Alaska Native Regional Corporation (2010 Census)","Alaska Native Regional Corporation (2010 Census)","Alaska Native Regional Corporation (2010 Census)","Governmental Units ","DOC-Census","Jennifer Holland","Jennifer.L.Holland@census.gov",{"$f":"VLOOKUP(B137,'LOC FINAL with new Themes'!A:M,7,0)","v":0},{"$f":"VLOOKUP(B137,'LOC FINAL with new Themes'!A:M,8,0)","v":0},{"$f":"VLOOKUP(B137,'LOC FINAL with new Themes'!A:M,9,0)","v":0},{"$f":"VLOOKUP(B137,'LOC FINAL with new Themes'!A:M,10,0)","v":0},{"$f":"VLOOKUP(B137,'LOC FINAL with new Themes'!A:M,11,0)","v":0},{"$f":"VLOOKUP(B137,'LOC FINAL with new Themes'!A:M,12,0)","v":0},{"$f":"VLOOKUP(B137,'LOC FINAL with new Themes'!A:M,13,0)","v":0}]
[null,"Alaska Native Regional Corporation (Census 2000)","Alaska Native Regional Corporation (Census 2000)","Alaska Native Regional Corporation (Census 2000)","Governmental Units ","DOC-Census","Jennifer Holland","Jennifer.L.Holland@census.gov",{"$f":"VLOOKUP(B138,'LOC FINAL with new Themes'!A:M,7,0)","v":0},{"$f":"VLOOKUP(B138,'LOC FINAL with new Themes'!A:M,8,0)","v":0},{"$f":"VLOOKUP(B138,'LOC FINAL with new Themes'!A:M,9,0)","v":0},{"$f":"VLOOKUP(B138,'LOC FINAL with new Themes'!A:M,10,0)","v":0},{"$f":"VLOOKUP(B138,'LOC FINAL with new Themes'!A:M,11,0)","v":0},{"$f":"VLOOKUP(B138,'LOC FINAL with new Themes'!A:M,12,0)","v":0},{"$f":"VLOOKUP(B138,'LOC FINAL with new Themes'!A:M,13,0)","v":0}]
[null,"American Indian Tribal Subdivision (2010 Census)","American Indian Tribal Subdivision (2010 Census)","American Indian Tribal Subdivision (2010 Census)","Governmental Units ","DOC-Census","Jennifer Holland","Jennifer.L.Holland@census.gov",{"$f":"VLOOKUP(B139,'LOC FINAL with new Themes'!A:M,7,0)","v":0},{"$f":"VLOOKUP(B139,'LOC FINAL with new Themes'!A:M,8,0)","v":0},{"$f":"VLOOKUP(B139,'LOC FINAL with new Themes'!A:M,9,0)","v":0},{"$f":"VLOOKUP(B139,'LOC FINAL with new Themes'!A:M,10,0)","v":0},{"$f":"VLOOKUP(B139,'LOC FINAL with new Themes'!A:M,11,0)","v":0},{"$f":"VLOOKUP(B139,'LOC FINAL with new Themes'!A:M,12,0)","v":0},{"$f":"VLOOKUP(B139,'LOC FINAL with new Themes'!A:M,13,0)","v":0}]
[null,"American Indian Tribal Subdivision (Census 2000)","American Indian Tribal Subdivision (Census 2000)","American Indian Tribal Subdivision (Census 2000)","Governmental Units ","DOC-Census","Jennifer Holland","Jennifer.L.Holland@census.gov",{"$f":"VLOOKUP(B140,'LOC FINAL with new Themes'!A:M,7,0)","v":0},{"$f":"VLOOKUP(B140,'LOC FINAL with new Themes'!A:M,8,0)","v":0},{"$f":"VLOOKUP(B140,'LOC FINAL with new Themes'!A:M,9,0)","v":0},{"$f":"VLOOKUP(B140,'LOC FINAL with new Themes'!A:M,10,0)","v":0},{"$f":"VLOOKUP(B140,'LOC FINAL with new Themes'!A:M,11,0)","v":0},{"$f":"VLOOKUP(B140,'LOC FINAL with new Themes'!A:M,12,0)","v":0},{"$f":"VLOOKUP(B140,'LOC FINAL with new Themes'!A:M,13,0)","v":0}]
[null,"American Indian/Alaska Native/Native Hawaiian Area (2000 Census)","American Indian/Alaska Native/Native Hawaiian Area (2000 Census)","American Indian/Alaska Native/Native Hawaiian Area (2000 Census)","Governmental Units ","DOC-Census","Jennifer Holland","Jennifer.L.Holland@census.gov",{"$f":"VLOOKUP(B141,'LOC FINAL with new Themes'!A:M,7,0)","v":0},{"$f":"VLOOKUP(B141,'LOC FINAL with new Themes'!A:M,8,0)","v":0},{"$f":"VLOOKUP(B141,'LOC FINAL with new Themes'!A:M,9,0)","v":0},{"$f":"VLOOKUP(B141,'LOC FINAL with new Themes'!A:M,10,0)","v":0},{"$f":"VLOOKUP(B141,'LOC FINAL with new Themes'!A:M,11,0)","v":0},{"$f":"VLOOKUP(B141,'LOC FINAL with new Themes'!A:M,12,0)","v":0},{"$f":"VLOOKUP(B141,'LOC FINAL with new Themes'!A:M,13,0)","v":0}]
[null,"American Indian/Alaska Native/Native Hawaiian Area (2010 Census)","American Indian/Alaska Native/Native Hawaiian Area (2010 Census)","American Indian/Alaska Native/Native Hawaiian Area (2010 Census)","Governmental Units ","DOC-Census","Jennifer Holland","Jennifer.L.Holland@census.gov",{"$f":"VLOOKUP(B142,'LOC FINAL with new Themes'!A:M,7,0)","v":0},{"$f":"VLOOKUP(B142,'LOC FINAL with new Themes'!A:M,8,0)","v":0},{"$f":"VLOOKUP(B142,'LOC FINAL with new Themes'!A:M,9,0)","v":0},{"$f":"VLOOKUP(B142,'LOC FINAL with new Themes'!A:M,10,0)","v":0},{"$f":"VLOOKUP(B142,'LOC FINAL with new Themes'!A:M,11,0)","v":0},{"$f":"VLOOKUP(B142,'LOC FINAL with new Themes'!A:M,12,0)","v":0},{"$f":"VLOOKUP(B142,'LOC FINAL with new Themes'!A:M,13,0)","v":0}]
[null,"Combined New England City and Town Area (2010 Census)","Combined New England City and Town Area (2010 Census)","Combined New England City and Town Area (2010 Census)","Governmental Units ","DOC-Census","Jennifer Holland","Jennifer.L.Holland@census.gov",{"$f":"VLOOKUP(B143,'LOC FINAL with new Themes'!A:M,7,0)","v":0},{"$f":"VLOOKUP(B143,'LOC FINAL with new Themes'!A:M,8,0)","v":0},{"$f":"VLOOKUP(B143,'LOC FINAL with new Themes'!A:M,9,0)","v":0},{"$f":"VLOOKUP(B143,'LOC FINAL with new Themes'!A:M,10,0)","v":0},{"$f":"VLOOKUP(B143,'LOC FINAL with new Themes'!A:M,11,0)","v":0},{"$f":"VLOOKUP(B143,'LOC FINAL with new Themes'!A:M,12,0)","v":0},{"$f":"VLOOKUP(B143,'LOC FINAL with new Themes'!A:M,13,0)","v":0}]
["Congressional District Boundaries","Congressional District (108th)","Congressional District (108th)","Congressional District (108th)","Governmental Units ","DOC-Census","Jennifer Holland","Jennifer.L.Holland@census.gov",{"$f":"VLOOKUP(B144,'LOC FINAL with new Themes'!A:M,7,0)","v":0},{"$f":"VLOOKUP(B144,'LOC FINAL with new Themes'!A:M,8,0)","v":0},{"$f":"VLOOKUP(B144,'LOC FINAL with new Themes'!A:M,9,0)","v":0},{"$f":"VLOOKUP(B144,'LOC FINAL with new Themes'!A:M,10,0)","v":0},{"$f":"VLOOKUP(B144,'LOC FINAL with new Themes'!A:M,11,0)","v":0},{"$f":"VLOOKUP(B144,'LOC FINAL with new Themes'!A:M,12,0)","v":0},{"$f":"VLOOKUP(B144,'LOC FINAL with new Themes'!A:M,13,0)","v":0}]
[null,"Congressional District (111th)","Congressional District (111th)","Congressional District (111th)","Governmental Units ","DOC-Census","Jennifer Holland","Jennifer.L.Holland@census.gov",{"$f":"VLOOKUP(B145,'LOC FINAL with new Themes'!A:M,7,0)","v":0},{"$f":"VLOOKUP(B145,'LOC FINAL with new Themes'!A:M,8,0)","v":0},{"$f":"VLOOKUP(B145,'LOC FINAL with new Themes'!A:M,9,0)","v":0},{"$f":"VLOOKUP(B145,'LOC FINAL with new Themes'!A:M,10,0)","v":0},{"$f":"VLOOKUP(B145,'LOC FINAL with new Themes'!A:M,11,0)","v":0},{"$f":"VLOOKUP(B145,'LOC FINAL with new Themes'!A:M,12,0)","v":0},{"$f":"VLOOKUP(B145,'LOC FINAL with new Themes'!A:M,13,0)","v":0}]
[null,"Consolidated City (2010 Census)","Consolidated City (2010 Census)","Consolidated City (2010 Census)","Governmental Units ","DOC-Census","Jennifer Holland","Jennifer.L.Holland@census.gov",{"$f":"VLOOKUP(B146,'LOC FINAL with new Themes'!A:M,7,0)","v":0},{"$f":"VLOOKUP(B146,'LOC FINAL with new Themes'!A:M,8,0)","v":0},{"$f":"VLOOKUP(B146,'LOC FINAL with new Themes'!A:M,9,0)","v":0},{"$f":"VLOOKUP(B146,'LOC FINAL with new Themes'!A:M,10,0)","v":0},{"$f":"VLOOKUP(B146,'LOC FINAL with new Themes'!A:M,11,0)","v":0},{"$f":"VLOOKUP(B146,'LOC FINAL with new Themes'!A:M,12,0)","v":0},{"$f":"VLOOKUP(B146,'LOC FINAL with new Themes'!A:M,13,0)","v":0}]
[null,"Consolidated City (Census 2000)","Consolidated City (Census 2000)","Consolidated City (Census 2000)","Governmental Units ","DOC-Census","Jennifer Holland","Jennifer.L.Holland@census.gov",{"$f":"VLOOKUP(B147,'LOC FINAL with new Themes'!A:M,7,0)","v":0},{"$f":"VLOOKUP(B147,'LOC FINAL with new Themes'!A:M,8,0)","v":0},{"$f":"VLOOKUP(B147,'LOC FINAL with new Themes'!A:M,9,0)","v":0},{"$f":"VLOOKUP(B147,'LOC FINAL with new Themes'!A:M,10,0)","v":0},{"$f":"VLOOKUP(B147,'LOC FINAL with new Themes'!A:M,11,0)","v":0},{"$f":"VLOOKUP(B147,'LOC FINAL with new Themes'!A:M,12,0)","v":0},{"$f":"VLOOKUP(B147,'LOC FINAL with new Themes'!A:M,13,0)","v":0}]
[null,"County and Equivalent (2010 Census)","County and Equivalent (2010 Census)","County and Equivalent (2010 Census)","Governmental Units ","DOC-Census","Jennifer Holland","Jennifer.L.Holland@census.gov",{"$f":"VLOOKUP(B148,'LOC FINAL with new Themes'!A:M,7,0)","v":0},{"$f":"VLOOKUP(B148,'LOC FINAL with new Themes'!A:M,8,0)","v":0},{"$f":"VLOOKUP(B148,'LOC FINAL with new Themes'!A:M,9,0)","v":0},{"$f":"VLOOKUP(B148,'LOC FINAL with new Themes'!A:M,10,0)","v":0},{"$f":"VLOOKUP(B148,'LOC FINAL with new Themes'!A:M,11,0)","v":0},{"$f":"VLOOKUP(B148,'LOC FINAL with new Themes'!A:M,12,0)","v":0},{"$f":"VLOOKUP(B148,'LOC FINAL with new Themes'!A:M,13,0)","v":0}]
[null,"County and Equivalent (Census 2000)","County and Equivalent (Census 2000)","County and Equivalent (Census 2000)","Governmental Units ","DOC-Census","Jennifer Holland","Jennifer.L.Holland@census.gov",{"$f":"VLOOKUP(B149,'LOC FINAL with new Themes'!A:M,7,0)","v":0},{"$f":"VLOOKUP(B149,'LOC FINAL with new Themes'!A:M,8,0)","v":0},{"$f":"VLOOKUP(B149,'LOC FINAL with new Themes'!A:M,9,0)","v":0},{"$f":"VLOOKUP(B149,'LOC FINAL with new Themes'!A:M,10,0)","v":0},{"$f":"VLOOKUP(B149,'LOC FINAL with new Themes'!A:M,11,0)","v":0},{"$f":"VLOOKUP(B149,'LOC FINAL with new Themes'!A:M,12,0)","v":0},{"$f":"VLOOKUP(B149,'LOC FINAL with new Themes'!A:M,13,0)","v":0}]
[null,"County Subdivision (2010 Census)","County Subdivision (2010 Census)","County Subdivision (2010 Census)","Governmental Units ","DOC-Census","Jennifer Holland","Jennifer.L.Holland@census.gov",{"$f":"VLOOKUP(B150,'LOC FINAL with new Themes'!A:M,7,0)","v":0},{"$f":"VLOOKUP(B150,'LOC FINAL with new Themes'!A:M,8,0)","v":0},{"$f":"VLOOKUP(B150,'LOC FINAL with new Themes'!A:M,9,0)","v":0},{"$f":"VLOOKUP(B150,'LOC FINAL with new Themes'!A:M,10,0)","v":0},{"$f":"VLOOKUP(B150,'LOC FINAL with new Themes'!A:M,11,0)","v":0},{"$f":"VLOOKUP(B150,'LOC FINAL with new Themes'!A:M,12,0)","v":0},{"$f":"VLOOKUP(B150,'LOC FINAL with new Themes'!A:M,13,0)","v":0}]
[null,"County Subdivision (Census 2000)","County Subdivision (Census 2000)","County Subdivision (Census 2000)","Governmental Units ","DOC-Census","Jennifer Holland","Jennifer.L.Holland@census.gov",{"$f":"VLOOKUP(B151,'LOC FINAL with new Themes'!A:M,7,0)","v":0},{"$f":"VLOOKUP(B151,'LOC FINAL with new Themes'!A:M,8,0)","v":0},{"$f":"VLOOKUP(B151,'LOC FINAL with new Themes'!A:M,9,0)","v":0},{"$f":"VLOOKUP(B151,'LOC FINAL with new Themes'!A:M,10,0)","v":0},{"$f":"VLOOKUP(B151,'LOC FINAL with new Themes'!A:M,11,0)","v":0},{"$f":"VLOOKUP(B151,'LOC FINAL with new Themes'!A:M,12,0)","v":0},{"$f":"VLOOKUP(B151,'LOC FINAL with new Themes'!A:M,13,0)","v":0}]
[null,"Metropolitan Division (2010 Census)","Metropolitan Division (2010 Census)","Metropolitan Division (2010 Census)","Governmental Units ","DOC-Census","Jennifer Holland","Jennifer.L.Holland@census.gov",{"$f":"VLOOKUP(B152,'LOC FINAL with new Themes'!A:M,7,0)","v":0},{"$f":"VLOOKUP(B152,'LOC FINAL with new Themes'!A:M,8,0)","v":0},{"$f":"VLOOKUP(B152,'LOC FINAL with new Themes'!A:M,9,0)","v":0},{"$f":"VLOOKUP(B152,'LOC FINAL with new Themes'!A:M,10,0)","v":0},{"$f":"VLOOKUP(B152,'LOC FINAL with new Themes'!A:M,11,0)","v":0},{"$f":"VLOOKUP(B152,'LOC FINAL with new Themes'!A:M,12,0)","v":0},{"$f":"VLOOKUP(B152,'LOC FINAL with new Themes'!A:M,13,0)","v":0}]
[null,"Metropolitan Division (2010 Census)","Metropolitan Division (2010 Census)","Metropolitan Division (2010 Census)","Governmental Units ","DOC-Census","Jennifer Holland","Jennifer.L.Holland@census.gov",{"$f":"VLOOKUP(B153,'LOC FINAL with new Themes'!A:M,7,0)","v":0},{"$f":"VLOOKUP(B153,'LOC FINAL with new Themes'!A:M,8,0)","v":0},{"$f":"VLOOKUP(B153,'LOC FINAL with new Themes'!A:M,9,0)","v":0},{"$f":"VLOOKUP(B153,'LOC FINAL with new Themes'!A:M,10,0)","v":0},{"$f":"VLOOKUP(B153,'LOC FINAL with new Themes'!A:M,11,0)","v":0},{"$f":"VLOOKUP(B153,'LOC FINAL with new Themes'!A:M,12,0)","v":0},{"$f":"VLOOKUP(B153,'LOC FINAL with new Themes'!A:M,13,0)","v":0}]
[null,"New England City and Town Area (2010 Census)","New England City and Town Area (2010 Census)","New England City and Town Area (2010 Census)","Governmental Units ","DOC-Census","Jennifer Holland","Jennifer.L.Holland@census.gov",{"$f":"VLOOKUP(B154,'LOC FINAL with new Themes'!A:M,7,0)","v":0},{"$f":"VLOOKUP(B154,'LOC FINAL with new Themes'!A:M,8,0)","v":0},{"$f":"VLOOKUP(B154,'LOC FINAL with new Themes'!A:M,9,0)","v":0},{"$f":"VLOOKUP(B154,'LOC FINAL with new Themes'!A:M,10,0)","v":0},{"$f":"VLOOKUP(B154,'LOC FINAL with new Themes'!A:M,11,0)","v":0},{"$f":"VLOOKUP(B154,'LOC FINAL with new Themes'!A:M,12,0)","v":0},{"$f":"VLOOKUP(B154,'LOC FINAL with new Themes'!A:M,13,0)","v":0}]
[null,"New England City and Town Area Division (2010 Census)","New England City and Town Area Division (2010 Census)","New England City and Town Area Division (2010 Census)","Governmental Units ","DOC-Census","Jennifer Holland","Jennifer.L.Holland@census.gov",{"$f":"VLOOKUP(B155,'LOC FINAL with new Themes'!A:M,7,0)","v":0},{"$f":"VLOOKUP(B155,'LOC FINAL with new Themes'!A:M,8,0)","v":0},{"$f":"VLOOKUP(B155,'LOC FINAL with new Themes'!A:M,9,0)","v":0},{"$f":"VLOOKUP(B155,'LOC FINAL with new Themes'!A:M,10,0)","v":0},{"$f":"VLOOKUP(B155,'LOC FINAL with new Themes'!A:M,11,0)","v":0},{"$f":"VLOOKUP(B155,'LOC FINAL with new Themes'!A:M,12,0)","v":0},{"$f":"VLOOKUP(B155,'LOC FINAL with new Themes'!A:M,13,0)","v":0}]
["Place and MCD Boundaries","Place (2010 Census)","Place (2010 Census)","Place (2010 Census)","Governmental Units ","DOC-Census","Jennifer Holland","Jennifer.L.Holland@census.gov",{"$f":"VLOOKUP(B156,'LOC FINAL with new Themes'!A:M,7,0)","v":0},{"$f":"VLOOKUP(B156,'LOC FINAL with new Themes'!A:M,8,0)","v":0},{"$f":"VLOOKUP(B156,'LOC FINAL with new Themes'!A:M,9,0)","v":0},{"$f":"VLOOKUP(B156,'LOC FINAL with new Themes'!A:M,10,0)","v":0},{"$f":"VLOOKUP(B156,'LOC FINAL with new Themes'!A:M,11,0)","v":0},{"$f":"VLOOKUP(B156,'LOC FINAL with new Themes'!A:M,12,0)","v":0},{"$f":"VLOOKUP(B156,'LOC FINAL with new Themes'!A:M,13,0)","v":0}]
[null,"Place (Census 2000)","Place (Census 2000)","Place (Census 2000)","Governmental Units ","DOC-Census","Jennifer Holland","Jennifer.L.Holland@census.gov",{"$f":"VLOOKUP(B157,'LOC FINAL with new Themes'!A:M,7,0)","v":0},{"$f":"VLOOKUP(B157,'LOC FINAL with new Themes'!A:M,8,0)","v":0},{"$f":"VLOOKUP(B157,'LOC FINAL with new Themes'!A:M,9,0)","v":0},{"$f":"VLOOKUP(B157,'LOC FINAL with new Themes'!A:M,10,0)","v":0},{"$f":"VLOOKUP(B157,'LOC FINAL with new Themes'!A:M,11,0)","v":0},{"$f":"VLOOKUP(B157,'LOC FINAL with new Themes'!A:M,12,0)","v":0},{"$f":"VLOOKUP(B157,'LOC FINAL with new Themes'!A:M,13,0)","v":0}]
["State(+ Territories) Boundaries","State and Equivalent  (2010 Census)","State and Equivalent  (2010 Census)","State and Equivalent  (2010 Census)","Governmental Units ","DOC-Census","Jennifer Holland","Jennifer.L.Holland@census.gov",{"$f":"VLOOKUP(B158,'LOC FINAL with new Themes'!A:M,7,0)","v":0},{"$f":"VLOOKUP(B158,'LOC FINAL with new Themes'!A:M,8,0)","v":0},{"$f":"VLOOKUP(B158,'LOC FINAL with new Themes'!A:M,9,0)","v":0},{"$f":"VLOOKUP(B158,'LOC FINAL with new Themes'!A:M,10,0)","v":0},{"$f":"VLOOKUP(B158,'LOC FINAL with new Themes'!A:M,11,0)","v":0},{"$f":"VLOOKUP(B158,'LOC FINAL with new Themes'!A:M,12,0)","v":0},{"$f":"VLOOKUP(B158,'LOC FINAL with new Themes'!A:M,13,0)","v":0}]
[null,"State and Equivalent  (Census 2000)","State and Equivalent  (Census 2000)","State and Equivalent  (Census 2000)","Governmental Units ","DOC-Census","Jennifer Holland","Jennifer.L.Holland@census.gov",{"$f":"VLOOKUP(B159,'LOC FINAL with new Themes'!A:M,7,0)","v":0},{"$f":"VLOOKUP(B159,'LOC FINAL with new Themes'!A:M,8,0)","v":0},{"$f":"VLOOKUP(B159,'LOC FINAL with new Themes'!A:M,9,0)","v":0},{"$f":"VLOOKUP(B159,'LOC FINAL with new Themes'!A:M,10,0)","v":0},{"$f":"VLOOKUP(B159,'LOC FINAL with new Themes'!A:M,11,0)","v":0},{"$f":"VLOOKUP(B159,'LOC FINAL with new Themes'!A:M,12,0)","v":0},{"$f":"VLOOKUP(B159,'LOC FINAL with new Themes'!A:M,13,0)","v":0}]
[null,"State Legislative District (Lower Chamber) (2010 Census)","State Legislative District (Lower Chamber) (2010 Census)","State Legislative District (Lower Chamber) (2010 Census)","Governmental Units ","DOC-Census","Jennifer Holland","Jennifer.L.Holland@census.gov",{"$f":"VLOOKUP(B160,'LOC FINAL with new Themes'!A:M,7,0)","v":0},{"$f":"VLOOKUP(B160,'LOC FINAL with new Themes'!A:M,8,0)","v":0},{"$f":"VLOOKUP(B160,'LOC FINAL with new Themes'!A:M,9,0)","v":0},{"$f":"VLOOKUP(B160,'LOC FINAL with new Themes'!A:M,10,0)","v":0},{"$f":"VLOOKUP(B160,'LOC FINAL with new Themes'!A:M,11,0)","v":0},{"$f":"VLOOKUP(B160,'LOC FINAL with new Themes'!A:M,12,0)","v":0},{"$f":"VLOOKUP(B160,'LOC FINAL with new Themes'!A:M,13,0)","v":0}]
[null,"State Legislative District (Lower Chamber) (Census 2000)","State Legislative District (Lower Chamber) (Census 2000)","State Legislative District (Lower Chamber) (Census 2000)","Governmental Units ","DOC-Census","Jennifer Holland","Jennifer.L.Holland@census.gov",{"$f":"VLOOKUP(B161,'LOC FINAL with new Themes'!A:M,7,0)","v":0},{"$f":"VLOOKUP(B161,'LOC FINAL with new Themes'!A:M,8,0)","v":0},{"$f":"VLOOKUP(B161,'LOC FINAL with new Themes'!A:M,9,0)","v":0},{"$f":"VLOOKUP(B161,'LOC FINAL with new Themes'!A:M,10,0)","v":0},{"$f":"VLOOKUP(B161,'LOC FINAL with new Themes'!A:M,11,0)","v":0},{"$f":"VLOOKUP(B161,'LOC FINAL with new Themes'!A:M,12,0)","v":0},{"$f":"VLOOKUP(B161,'LOC FINAL with new Themes'!A:M,13,0)","v":0}]
[null,"State Legislative District (Upper Chamber) (2010 Census)","State Legislative District (Upper Chamber) (2010 Census)","State Legislative District (Upper Chamber) (2010 Census)","Governmental Units ","DOC-Census","Jennifer Holland","Jennifer.L.Holland@census.gov",{"$f":"VLOOKUP(B162,'LOC FINAL with new Themes'!A:M,7,0)","v":0},{"$f":"VLOOKUP(B162,'LOC FINAL with new Themes'!A:M,8,0)","v":0},{"$f":"VLOOKUP(B162,'LOC FINAL with new Themes'!A:M,9,0)","v":0},{"$f":"VLOOKUP(B162,'LOC FINAL with new Themes'!A:M,10,0)","v":0},{"$f":"VLOOKUP(B162,'LOC FINAL with new Themes'!A:M,11,0)","v":0},{"$f":"VLOOKUP(B162,'LOC FINAL with new Themes'!A:M,12,0)","v":0},{"$f":"VLOOKUP(B162,'LOC FINAL with new Themes'!A:M,13,0)","v":0}]
[null,"State Legislative District (Upper Chamber) (Census 2000)","State Legislative District (Upper Chamber) (Census 2000)","State Legislative District (Upper Chamber) (Census 2000)","Governmental Units ","DOC-Census","Jennifer Holland","Jennifer.L.Holland@census.gov",{"$f":"VLOOKUP(B163,'LOC FINAL with new Themes'!A:M,7,0)","v":0},{"$f":"VLOOKUP(B163,'LOC FINAL with new Themes'!A:M,8,0)","v":0},{"$f":"VLOOKUP(B163,'LOC FINAL with new Themes'!A:M,9,0)","v":0},{"$f":"VLOOKUP(B163,'LOC FINAL with new Themes'!A:M,10,0)","v":0},{"$f":"VLOOKUP(B163,'LOC FINAL with new Themes'!A:M,11,0)","v":0},{"$f":"VLOOKUP(B163,'LOC FINAL with new Themes'!A:M,12,0)","v":0},{"$f":"VLOOKUP(B163,'LOC FINAL with new Themes'!A:M,13,0)","v":0}]
[null,"Subbarrio (2010 Census)","Subbarrio (2010 Census)","Subbarrio (2010 Census)","Governmental Units ","DOC-Census","Jennifer Holland","Jennifer.L.Holland@census.gov",{"$f":"VLOOKUP(B164,'LOC FINAL with new Themes'!A:M,7,0)","v":0},{"$f":"VLOOKUP(B164,'LOC FINAL with new Themes'!A:M,8,0)","v":0},{"$f":"VLOOKUP(B164,'LOC FINAL with new Themes'!A:M,9,0)","v":0},{"$f":"VLOOKUP(B164,'LOC FINAL with new Themes'!A:M,10,0)","v":0},{"$f":"VLOOKUP(B164,'LOC FINAL with new Themes'!A:M,11,0)","v":0},{"$f":"VLOOKUP(B164,'LOC FINAL with new Themes'!A:M,12,0)","v":0},{"$f":"VLOOKUP(B164,'LOC FINAL with new Themes'!A:M,13,0)","v":0}]
[null,"Subbarrio (Census 2000)","Subbarrio (Census 2000)","Subbarrio (Census 2000)","Governmental Units ","DOC-Census","Jennifer Holland","Jennifer.L.Holland@census.gov",{"$f":"VLOOKUP(B165,'LOC FINAL with new Themes'!A:M,7,0)","v":0},{"$f":"VLOOKUP(B165,'LOC FINAL with new Themes'!A:M,8,0)","v":0},{"$f":"VLOOKUP(B165,'LOC FINAL with new Themes'!A:M,9,0)","v":0},{"$f":"VLOOKUP(B165,'LOC FINAL with new Themes'!A:M,10,0)","v":0},{"$f":"VLOOKUP(B165,'LOC FINAL with new Themes'!A:M,11,0)","v":0},{"$f":"VLOOKUP(B165,'LOC FINAL with new Themes'!A:M,12,0)","v":0},{"$f":"VLOOKUP(B165,'LOC FINAL with new Themes'!A:M,13,0)","v":0}]
[null,"Urban Area (Corrected Census 2000)","Urban Area (Corrected Census 2000)","Urban Area (Corrected Census 2000)","Governmental Units ","DOC-Census","Jennifer Holland","Jennifer.L.Holland@census.gov",{"$f":"VLOOKUP(B166,'LOC FINAL with new Themes'!A:M,7,0)","v":0},{"$f":"VLOOKUP(B166,'LOC FINAL with new Themes'!A:M,8,0)","v":0},{"$f":"VLOOKUP(B166,'LOC FINAL with new Themes'!A:M,9,0)","v":0},{"$f":"VLOOKUP(B166,'LOC FINAL with new Themes'!A:M,10,0)","v":0},{"$f":"VLOOKUP(B166,'LOC FINAL with new Themes'!A:M,11,0)","v":0},{"$f":"VLOOKUP(B166,'LOC FINAL with new Themes'!A:M,12,0)","v":0},{"$f":"VLOOKUP(B166,'LOC FINAL with new Themes'!A:M,13,0)","v":0}]
[null,null,null,{"$f":"SUBTOTAL(3,D135:D166)","v":32},"Governmental Units Count"]
["133 Urban Areas imagery program data","133 Urban Areas imagery program data",null,{"$f":"IF(C168=0,B168,C168)","v":"133 Urban Areas imagery program data"},"Imagery ","DOD-NGA","William Nellist","William.E.Nellist@nga.mil",{"$f":"VLOOKUP(B168,'LOC FINAL with new Themes'!A:M,7,0)","v":0},{"$f":"VLOOKUP(B168,'LOC FINAL with new Themes'!A:M,8,0)","v":0},{"$f":"VLOOKUP(B168,'LOC FINAL with new Themes'!A:M,9,0)","v":0},{"$f":"VLOOKUP(B168,'LOC FINAL with new Themes'!A:M,10,0)","v":0},{"$f":"VLOOKUP(B168,'LOC FINAL with new Themes'!A:M,11,0)","v":0},{"$f":"VLOOKUP(B168,'LOC FINAL with new Themes'!A:M,12,0)","v":0},{"$f":"VLOOKUP(B168,'LOC FINAL with new Themes'!A:M,13,0)","v":0}]
[null,"134 Urban Areas imagery program data",null,"134 Urban Areas imagery program data","Imagery ","DOI-USGS","George Lee","gylee@usgs.gov",{"$f":"VLOOKUP(B169,'LOC FINAL with new Themes'!A:M,7,0)","v":0},{"$f":"VLOOKUP(B169,'LOC FINAL with new Themes'!A:M,8,0)","v":0},{"$f":"VLOOKUP(B169,'LOC FINAL with new Themes'!A:M,9,0)","v":0},{"$f":"VLOOKUP(B169,'LOC FINAL with new Themes'!A:M,10,0)","v":0},{"$f":"VLOOKUP(B169,'LOC FINAL with new Themes'!A:M,11,0)","v":0},{"$f":"VLOOKUP(B169,'LOC FINAL with new Themes'!A:M,12,0)","v":0},{"$f":"VLOOKUP(B169,'LOC FINAL with new Themes'!A:M,13,0)","v":0}]
["ADS40 Hurricane Response 7.5' Quadrangle Mosaics","ADS40 Hurricane Response 7.5' Quadrangle Mosaics",null,"ADS40 Hurricane Response 7.5' Quadrangle Mosaics","Imagery ","DOI-USGS","Jim Mauck","jmauck@usgs.gov",{"$f":"VLOOKUP(B170,'LOC FINAL with new Themes'!A:M,7,0)","v":0},{"$f":"VLOOKUP(B170,'LOC FINAL with new Themes'!A:M,8,0)","v":0},{"$f":"VLOOKUP(B170,'LOC FINAL with new Themes'!A:M,9,0)","v":0},{"$f":"VLOOKUP(B170,'LOC FINAL with new Themes'!A:M,10,0)","v":0},{"$f":"VLOOKUP(B170,'LOC FINAL with new Themes'!A:M,11,0)","v":0},{"$f":"VLOOKUP(B170,'LOC FINAL with new Themes'!A:M,12,0)","v":0},{"$f":"VLOOKUP(B170,'LOC FINAL with new Themes'!A:M,13,0)","v":0}]
["Digital Orthoimage Quarter Quadrangle (DOQQ) Archive","Digital Orthoimage Quarter Quadrangle (DOQQ) Archive",null,"Digital Orthoimage Quarter Quadrangle (DOQQ) Archive","Imagery ","DOI-USGS",null,null,{"$f":"VLOOKUP(B171,'LOC FINAL with new Themes'!A:M,7,0)","v":"DOQQ is static; one data set; this is the POC and data manager. this is the name and maintain three complete with two physically separate on-site and one off-site"},{"$f":"VLOOKUP(B171,'LOC FINAL with new Themes'!A:M,8,0)","v":0},{"$f":"VLOOKUP(B171,'LOC FINAL with new Themes'!A:M,9,0)","v":0},{"$f":"VLOOKUP(B171,'LOC FINAL with new Themes'!A:M,10,0)","v":0},{"$f":"VLOOKUP(B171,'LOC FINAL with new Themes'!A:M,11,0)","v":0},{"$f":"VLOOKUP(B171,'LOC FINAL with new Themes'!A:M,12,0)","v":0},{"$f":"VLOOKUP(B171,'LOC FINAL with new Themes'!A:M,13,0)","v":"S"}]
["Emergency Response Imagery","Emergency Response Imagery","Emergency Response Imagery","Emergency Response Imagery","Imagery ","DOC-NOAA","Mike Aslaksen","mike.Aslaksen@noaa.gov",{"$f":"VLOOKUP(B172,'LOC FINAL with new Themes'!A:M,7,0)","v":"20-Multiple      "},{"$f":"VLOOKUP(B172,'LOC FINAL with new Themes'!A:M,8,0)","v":"No"},{"$f":"VLOOKUP(B172,'LOC FINAL with new Themes'!A:M,9,0)","v":"Yes - email reply from Jon Sellars Jon.Sellars@noaa.gov"},{"$f":"VLOOKUP(B172,'LOC FINAL with new Themes'!A:M,10,0)","v":"- Same for the forest frag."},{"$f":"VLOOKUP(B172,'LOC FINAL with new Themes'!A:M,11,0)","v":"Our data can be accessed through the following links: http://storms.ngs.noaagov/eri_page/index.html Gulf Oil Spill:\nhttp://hdds.usgs.gov/hdds2/pub/data/disaster/201004_Oilspill_GulfOfMexico/data/AERIAL_NOAA\nhttp://hdds.usgs.gov/hdds2/pub/data/disaster/201004_Oilspill_GulfOfMexico/data/AERIAL_NOAA_MOSAIC  Haiti Earthquake:\nhttp://hdds.usgs.gov/hdds2/pub/data/disaster/201001_Earthquake_Haiti/data/AERIAL_NOAA\nhttp://hdds.usgs.gov/hdds2/pub/data/disaster/201001_Earthquake_Haiti/data/AERIAL_NOAA_ORTHO\nMexico Earthquake:\nhttp://hdds.usgs.gov/hdds2/pub/data/disaster/201004_Earthquake_Mexico/data/AERIAL_NOAA_MOSAIC \n\n"},{"$f":"VLOOKUP(B172,'LOC FINAL with new Themes'!A:M,12,0)","v":"Described by storm name, event or location."},{"$f":"VLOOKUP(B172,'LOC FINAL with new Themes'!A:M,13,0)","v":"M "}]
[null,null,"Fire, Detection: AVHRR FIMMA , GOES WF-ABBA","Fire, Detection: AVHRR FIMMA , GOES WF-ABBA","Imagery ","USDA"]
["Landsat geometric/terrain corrected level 1T","Landsat geometric/terrain corrected level 1T","Landsat Terrain Corrected Scenes","Landsat Terrain Corrected Scenes","Imagery ","DOI-USGS","Kristi Kline","kkline@usgs.gov",{"$f":"VLOOKUP(B174,'LOC FINAL with new Themes'!A:M,7,0)","v":"Landsat updates daily; a series of data sets; this is the POC and data manager; this is the name and maintain three complete with two physically separate on-site and one off-site"},{"$f":"VLOOKUP(B174,'LOC FINAL with new Themes'!A:M,8,0)","v":0},{"$f":"VLOOKUP(B174,'LOC FINAL with new Themes'!A:M,9,0)","v":0},{"$f":"VLOOKUP(B174,'LOC FINAL with new Themes'!A:M,10,0)","v":0},{"$f":"VLOOKUP(B174,'LOC FINAL with new Themes'!A:M,11,0)","v":0},{"$f":"VLOOKUP(B174,'LOC FINAL with new Themes'!A:M,12,0)","v":0},{"$f":"VLOOKUP(B174,'LOC FINAL with new Themes'!A:M,13,0)","v":"S"}]
[null,null,"National  Orthoimagery Dataset - National Map","National  Orthoimagery Dataset - National Map","Imagery ","DOI-USGS"]
["National Aerial Photography Program (NAPP) Data Archive","National Aerial Photography Program (NAPP) Data Archive",null,"National Aerial Photography Program (NAPP) Data Archive","Imagery ","DOI-USGS","Wayne Miller","wamiller@usgs.gov",{"$f":"VLOOKUP(B176,'LOC FINAL with new Themes'!A:M,7,0)","v":"NAPP is static; one data set; this is the POC and data manager; this is the name and maintain three complete with two physically separate on-site and one off-site "},{"$f":"VLOOKUP(B176,'LOC FINAL with new Themes'!A:M,8,0)","v":0},{"$f":"VLOOKUP(B176,'LOC FINAL with new Themes'!A:M,9,0)","v":0},{"$f":"VLOOKUP(B176,'LOC FINAL with new Themes'!A:M,10,0)","v":0},{"$f":"VLOOKUP(B176,'LOC FINAL with new Themes'!A:M,11,0)","v":0},{"$f":"VLOOKUP(B176,'LOC FINAL with new Themes'!A:M,12,0)","v":0},{"$f":"VLOOKUP(B176,'LOC FINAL with new Themes'!A:M,13,0)","v":"S"}]
["National Agriculture Imagery Program Data","National Agriculture Imagery Program Data","National Agriculture Imagery Program (NAIP) Archive","National Agriculture Imagery Program (NAIP) Archive","Imagery ","DOI-USGS","Shirley Hall","shirley.hall@wdc.usda.gov",{"$f":"VLOOKUP(B177,'LOC FINAL with new Themes'!A:M,7,0)","v":"Shirley identified Dan Good as new contact 'daniel.good@wdc.usda.gov' - need to follow up with either or both"},{"$f":"VLOOKUP(B177,'LOC FINAL with new Themes'!A:M,8,0)","v":0},{"$f":"VLOOKUP(B177,'LOC FINAL with new Themes'!A:M,9,0)","v":0},{"$f":"VLOOKUP(B177,'LOC FINAL with new Themes'!A:M,10,0)","v":0},{"$f":"VLOOKUP(B177,'LOC FINAL with new Themes'!A:M,11,0)","v":0},{"$f":"VLOOKUP(B177,'LOC FINAL with new Themes'!A:M,12,0)","v":0},{"$f":"VLOOKUP(B177,'LOC FINAL with new Themes'!A:M,13,0)","v":0}]
["National Map Orthoimagery Database (TNM Seamless Server) ","National Map Orthoimagery Database (TNM Seamless Server) ",null,"National Map Orthoimagery Database (TNM Seamless Server) ","Imagery ","DOI-USGS","George Lee","gylee@usgs.gov",{"$f":"VLOOKUP(B178,'LOC FINAL with new Themes'!A:M,7,0)","v":0},{"$f":"VLOOKUP(B178,'LOC FINAL with new Themes'!A:M,8,0)","v":0},{"$f":"VLOOKUP(B178,'LOC FINAL with new Themes'!A:M,9,0)","v":0},{"$f":"VLOOKUP(B178,'LOC FINAL with new Themes'!A:M,10,0)","v":0},{"$f":"VLOOKUP(B178,'LOC FINAL with new Themes'!A:M,11,0)","v":0},{"$f":"VLOOKUP(B178,'LOC FINAL with new Themes'!A:M,12,0)","v":0},{"$f":"VLOOKUP(B178,'LOC FINAL with new Themes'!A:M,13,0)","v":0}]
[null,null,"Satellite Imagery Archive","Satellite Imagery Archive","Imagery ","USDA-FSA"]
[null,null,null,{"$f":"SUBTOTAL(3,D168:D179)","v":12},"Imagery  Count"]
[null,null,"Crops: Cropland Data Layer",{"$f":"IF(C181=0,B181,C181)","v":"Crops: Cropland Data Layer"},"Land Use-Land Cover ","USDA-NASS"]
[null,null,"Earth Cover, Land: MODIS-based Land Products","Earth Cover, Land: MODIS-based Land Products","Land Use-Land Cover ","USDA -FS (Along with USGS)"]
[null,null,"Earth Cover, Vegetation, Forest: Forest Biomass, Types, Type Groups","Earth Cover, Vegetation, Forest: Forest Biomass, Types, Type Groups","Land Use-Land Cover ","USDA-FS"]
[null,null,"Earth Cover, Vegetation: Percent Forest Canopy","Earth Cover, Vegetation: Percent Forest Canopy","Land Use-Land Cover ","USDA-FS"]
[null,null,"Fire Severity: Monitoring Trends in Burn Severity (MTBS)","Fire Severity: Monitoring Trends in Burn Severity (MTBS)","Land Use-Land Cover ","USDA -FS (Along with USGS)"]
[null,null,"Fire, Detection: Daily Active Fire Mapping","Fire, Detection: Daily Active Fire Mapping","Land Use-Land Cover ","USDA"]
[null,null,"Land Cover Strata Dataset","Land Cover Strata Dataset","Land Use-Land Cover ","USDA-NASS"]
["LANDFIRE Dataset","LANDFIRE Dataset","Land Fire Dataset","Land Fire Dataset","Land Use-Land Cover ",null,null,0,{"$f":"VLOOKUP(B188,'LOC FINAL with new Themes'!A:M,7,0)","v":0},{"$f":"VLOOKUP(B188,'LOC FINAL with new Themes'!A:M,8,0)","v":0},{"$f":"VLOOKUP(B188,'LOC FINAL with new Themes'!A:M,9,0)","v":0},{"$f":"VLOOKUP(B188,'LOC FINAL with new Themes'!A:M,10,0)","v":0},{"$f":"VLOOKUP(B188,'LOC FINAL with new Themes'!A:M,11,0)","v":0},{"$f":"VLOOKUP(B188,'LOC FINAL with new Themes'!A:M,12,0)","v":0},{"$f":"VLOOKUP(B188,'LOC FINAL with new Themes'!A:M,13,0)","v":0}]
["National Land Cover Dataset (NLCD)","National Land Cover Dataset (NLCD)","National Land Cover Dataset - GIRAS - 1975","National Land Cover Dataset - GIRAS - 1975","Land Use-Land Cover ","DOI-USGS","Colin Homer","homer@usgs.gov",{"$f":"VLOOKUP(B189,'LOC FINAL with new Themes'!A:M,7,0)","v":"The table below summarizes NLCD products available for download from the MRLC website http://www.mrlc.gov/ "},{"$f":"VLOOKUP(B189,'LOC FINAL with new Themes'!A:M,8,0)","v":"No.  The \"manager\" of the data is Jon Dewitz. \nContact Information -   \nJon Dewitz\ndewitz@usgs.gov\n605-594-2715\nNLCD Quality Supervisor\nUSGS Earth Resources Observation and Science Center (EROS)\nMundt Federal Building\n47914 252nd St.\nSioux Falls, SD 57198\nfax 605-594-6529\n"},{"$f":"VLOOKUP(B189,'LOC FINAL with new Themes'!A:M,9,0)","v":"Joyce Fry is the POC. \nContact information - \nJoyce Fry, Geographer\nUnited States Geological Survey (USGS)\nEarth Resources Observation and  Science (EROS) Center\nMundt Federal Building\n47914 252nd Street\nSioux Falls, South Dakota 57198\n(P)  605.594.2739\n(F)  605.594.6529\n(e)  jfry@usgs.gov \n"},{"$f":"VLOOKUP(B189,'LOC FINAL with new Themes'!A:M,10,0)","v":"Every 5 years"},{"$f":"VLOOKUP(B189,'LOC FINAL with new Themes'!A:M,11,0)","v":"Yes, there is an archive/backup of the dataset through the EROS Long Term Archive (LTA) group.  I will need to get back to if you need additional information regarding the archive process. "},{"$f":"VLOOKUP(B189,'LOC FINAL with new Themes'!A:M,12,0)","v":"National Land Cover Database or NLCD along with the era number, either 1992 or 2001, or 2006. "},{"$f":"VLOOKUP(B189,'LOC FINAL with new Themes'!A:M,13,0)","v":"S"}]
[null,null,"National Land Cover Dataset - National Map","National Land Cover Dataset - National Map","Land Use-Land Cover ","DOI-USGS"]
[null,null,"National Land Cover Dataset - National Map - 1991","National Land Cover Dataset - National Map - 1991","Land Use-Land Cover ","DOI-USGS"]
[null,null,"National Land Cover Dataset - National Map - 2001","National Land Cover Dataset - National Map - 2001","Land Use-Land Cover ","DOI-USGS"]
[null,null,"National Land Cover Dataset - National Map 2006","National Land Cover Dataset - National Map 2006","Land Use-Land Cover ","DOI-USGS"]
["National Land Cover Dataset (NLCD)","National Land Cover Dataset (NLCD)","National Land Cover Dataset (NLCD)","National Land Cover Dataset (NLCD)","Land Use-Land Cover ","DOI-USGS","Colin Homer","homer@usgs.gov",{"$f":"VLOOKUP(B194,'LOC FINAL with new Themes'!A:M,7,0)","v":"The table below summarizes NLCD products available for download from the MRLC website http://www.mrlc.gov/ "},{"$f":"VLOOKUP(B194,'LOC FINAL with new Themes'!A:M,8,0)","v":"No.  The \"manager\" of the data is Jon Dewitz. \nContact Information -   \nJon Dewitz\ndewitz@usgs.gov\n605-594-2715\nNLCD Quality Supervisor\nUSGS Earth Resources Observation and Science Center (EROS)\nMundt Federal Building\n47914 252nd St.\nSioux Falls, SD 57198\nfax 605-594-6529\n"},{"$f":"VLOOKUP(B194,'LOC FINAL with new Themes'!A:M,9,0)","v":"Joyce Fry is the POC. \nContact information - \nJoyce Fry, Geographer\nUnited States Geological Survey (USGS)\nEarth Resources Observation and  Science (EROS) Center\nMundt Federal Building\n47914 252nd Street\nSioux Falls, South Dakota 57198\n(P)  605.594.2739\n(F)  605.594.6529\n(e)  jfry@usgs.gov \n"},{"$f":"VLOOKUP(B194,'LOC FINAL with new Themes'!A:M,10,0)","v":"Every 5 years"},{"$f":"VLOOKUP(B194,'LOC FINAL with new Themes'!A:M,11,0)","v":"Yes, there is an archive/backup of the dataset through the EROS Long Term Archive (LTA) group.  I will need to get back to if you need additional information regarding the archive process. "},{"$f":"VLOOKUP(B194,'LOC FINAL with new Themes'!A:M,12,0)","v":"National Land Cover Database or NLCD along with the era number, either 1992 or 2001, or 2006. "},{"$f":"VLOOKUP(B194,'LOC FINAL with new Themes'!A:M,13,0)","v":"S"}]
[null,null,"National Land Cover Percent Canopy - National Map - 1991","National Land Cover Percent Canopy - National Map - 1991","Land Use-Land Cover ","DOI-USGS"]
[null,null,"National Land Cover Percent Imperviousness - National Map - 2001","National Land Cover Percent Imperviousness - National Map - 2001","Land Use-Land Cover ","DOI-USGS"]
[null,null,"National Land Cover Percent Imperviousness - National Map - 2006","National Land Cover Percent Imperviousness - National Map - 2006","Land Use-Land Cover ","DOI-USGS"]
["National Parks Data","National Parks Data","National Parks Data","National Parks Data","Land Use-Land Cover ","DOI-NPS","Roger Johnson ","Roger_M_Johnson@nps.gov",{"$f":"VLOOKUP(B198,'LOC FINAL with new Themes'!A:M,7,0)","v":"undeliverable email- neeed to identify new contact"},{"$f":"VLOOKUP(B198,'LOC FINAL with new Themes'!A:M,8,0)","v":0},{"$f":"VLOOKUP(B198,'LOC FINAL with new Themes'!A:M,9,0)","v":0},{"$f":"VLOOKUP(B198,'LOC FINAL with new Themes'!A:M,10,0)","v":0},{"$f":"VLOOKUP(B198,'LOC FINAL with new Themes'!A:M,11,0)","v":0},{"$f":"VLOOKUP(B198,'LOC FINAL with new Themes'!A:M,12,0)","v":0},{"$f":"VLOOKUP(B198,'LOC FINAL with new Themes'!A:M,13,0)","v":0}]
[null,null,null,{"$f":"SUBTOTAL(3,D181:D198)","v":18},"Land Use-Land Cover  Count"]
["Assisted Housing (census geography or point-based) see http://www.huduser.org/picture2000/","Assisted Housing (census geography or point-based)",null,{"$f":"IF(C200=0,B200,C200)","v":"Assisted Housing (census geography or point-based)"},"Real Property","HUD","Jon Sperling","jon.sperling@hud.gov",{"$f":"VLOOKUP(B200,'LOC FINAL with new Themes'!A:M,7,0)","v":0},{"$f":"VLOOKUP(B200,'LOC FINAL with new Themes'!A:M,8,0)","v":0},{"$f":"VLOOKUP(B200,'LOC FINAL with new Themes'!A:M,9,0)","v":0},{"$f":"VLOOKUP(B200,'LOC FINAL with new Themes'!A:M,10,0)","v":0},{"$f":"VLOOKUP(B200,'LOC FINAL with new Themes'!A:M,11,0)","v":0},{"$f":"VLOOKUP(B200,'LOC FINAL with new Themes'!A:M,12,0)","v":0},{"$f":"VLOOKUP(B200,'LOC FINAL with new Themes'!A:M,13,0)","v":0}]
["Enterprise Zones, Empowerment Communities, Revitalization Areas, Qualified Census Tracts, etc.  (census geography based)","Enterprise Zones, Empowerment Communities, Revitalization Areas, Qualified Census Tracts, etc.  (census geography based)",null,"Enterprise Zones, Empowerment Communities, Revitalization Areas, Qualified Census Tracts, etc.  (census geography based)","Real Property","HUD","Jon Sperling","jon.sperling@hud.gov",{"$f":"VLOOKUP(B201,'LOC FINAL with new Themes'!A:M,7,0)","v":0},{"$f":"VLOOKUP(B201,'LOC FINAL with new Themes'!A:M,8,0)","v":0},{"$f":"VLOOKUP(B201,'LOC FINAL with new Themes'!A:M,9,0)","v":0},{"$f":"VLOOKUP(B201,'LOC FINAL with new Themes'!A:M,10,0)","v":0},{"$f":"VLOOKUP(B201,'LOC FINAL with new Themes'!A:M,11,0)","v":0},{"$f":"VLOOKUP(B201,'LOC FINAL with new Themes'!A:M,12,0)","v":0},{"$f":"VLOOKUP(B201,'LOC FINAL with new Themes'!A:M,13,0)","v":0}]
["Federal building location point ","Federal building location point ","Federal building location point ","Federal building location point ","Real Property ","GSA","Sandra Downie","sandra.downie@gsa.gov",{"$f":"VLOOKUP(B202,'LOC FINAL with new Themes'!A:M,7,0)","v":0},{"$f":"VLOOKUP(B202,'LOC FINAL with new Themes'!A:M,8,0)","v":0},{"$f":"VLOOKUP(B202,'LOC FINAL with new Themes'!A:M,9,0)","v":0},{"$f":"VLOOKUP(B202,'LOC FINAL with new Themes'!A:M,10,0)","v":0},{"$f":"VLOOKUP(B202,'LOC FINAL with new Themes'!A:M,11,0)","v":0},{"$f":"VLOOKUP(B202,'LOC FINAL with new Themes'!A:M,12,0)","v":0},{"$f":"VLOOKUP(B202,'LOC FINAL with new Themes'!A:M,13,0)","v":0}]
["Federal building location polygon","Federal building location polygon","Federal building location polygon","Federal building location polygon","Real Property ","GSA","Sandra Downie","sandra.downie@gsa.gov",{"$f":"VLOOKUP(B203,'LOC FINAL with new Themes'!A:M,7,0)","v":0},{"$f":"VLOOKUP(B203,'LOC FINAL with new Themes'!A:M,8,0)","v":0},{"$f":"VLOOKUP(B203,'LOC FINAL with new Themes'!A:M,9,0)","v":0},{"$f":"VLOOKUP(B203,'LOC FINAL with new Themes'!A:M,10,0)","v":0},{"$f":"VLOOKUP(B203,'LOC FINAL with new Themes'!A:M,11,0)","v":0},{"$f":"VLOOKUP(B203,'LOC FINAL with new Themes'!A:M,12,0)","v":0},{"$f":"VLOOKUP(B203,'LOC FINAL with new Themes'!A:M,13,0)","v":0}]
["Federal land area facility location point","Federal land area facility location point","Federal land area facility location point","Federal land area facility location point","Real Property ","GSA","Sandra Downie","sandra.downie@gsa.gov",{"$f":"VLOOKUP(B204,'LOC FINAL with new Themes'!A:M,7,0)","v":0},{"$f":"VLOOKUP(B204,'LOC FINAL with new Themes'!A:M,8,0)","v":0},{"$f":"VLOOKUP(B204,'LOC FINAL with new Themes'!A:M,9,0)","v":0},{"$f":"VLOOKUP(B204,'LOC FINAL with new Themes'!A:M,10,0)","v":0},{"$f":"VLOOKUP(B204,'LOC FINAL with new Themes'!A:M,11,0)","v":0},{"$f":"VLOOKUP(B204,'LOC FINAL with new Themes'!A:M,12,0)","v":0},{"$f":"VLOOKUP(B204,'LOC FINAL with new Themes'!A:M,13,0)","v":0}]
["Federal land area facility location polygon","Federal land area facility location polygon","Federal land area facility location polygon","Federal land area facility location polygon","Real Property ","GSA","Sandra Downie","sandra.downie@gsa.gov",{"$f":"VLOOKUP(B205,'LOC FINAL with new Themes'!A:M,7,0)","v":0},{"$f":"VLOOKUP(B205,'LOC FINAL with new Themes'!A:M,8,0)","v":0},{"$f":"VLOOKUP(B205,'LOC FINAL with new Themes'!A:M,9,0)","v":0},{"$f":"VLOOKUP(B205,'LOC FINAL with new Themes'!A:M,10,0)","v":0},{"$f":"VLOOKUP(B205,'LOC FINAL with new Themes'!A:M,11,0)","v":0},{"$f":"VLOOKUP(B205,'LOC FINAL with new Themes'!A:M,12,0)","v":0},{"$f":"VLOOKUP(B205,'LOC FINAL with new Themes'!A:M,13,0)","v":0}]
["National Map - Structures Dataset","National Map - Structures Dataset","National Structures Dataset - National Map","National Structures Dataset - National Map","Real Property ","DOI-USGS","Paul Wiese","pmwiese@usgs.gov",{"$f":"VLOOKUP(B206,'LOC FINAL with new Themes'!A:M,7,0)","v":"National Map updates monthly; a series of data sets; this is the POC and data manager; this is the name and maintain three complete with two physically separate on-site and one off-site"},{"$f":"VLOOKUP(B206,'LOC FINAL with new Themes'!A:M,8,0)","v":0},{"$f":"VLOOKUP(B206,'LOC FINAL with new Themes'!A:M,9,0)","v":0},{"$f":"VLOOKUP(B206,'LOC FINAL with new Themes'!A:M,10,0)","v":0},{"$f":"VLOOKUP(B206,'LOC FINAL with new Themes'!A:M,11,0)","v":0},{"$f":"VLOOKUP(B206,'LOC FINAL with new Themes'!A:M,12,0)","v":0},{"$f":"VLOOKUP(B206,'LOC FINAL with new Themes'!A:M,13,0)","v":"S"}]
[null,null,null,{"$f":"SUBTOTAL(3,D200:D206)","v":7},"Real Property Count"]
[null,"Military Installation","Military Installation",{"$f":"IF(C208=0,B208,C208)","v":"Military Installation"},"Real Property\nCultural & Demographic Statistics","DOC-Census","Jennifer Holland","Jennifer.L.Holland@census.gov",{"$f":"VLOOKUP(B208,'LOC FINAL with new Themes'!A:M,7,0)","v":0},{"$f":"VLOOKUP(B208,'LOC FINAL with new Themes'!A:M,8,0)","v":0},{"$f":"VLOOKUP(B208,'LOC FINAL with new Themes'!A:M,9,0)","v":0},{"$f":"VLOOKUP(B208,'LOC FINAL with new Themes'!A:M,10,0)","v":0},{"$f":"VLOOKUP(B208,'LOC FINAL with new Themes'!A:M,11,0)","v":0},{"$f":"VLOOKUP(B208,'LOC FINAL with new Themes'!A:M,12,0)","v":0},{"$f":"VLOOKUP(B208,'LOC FINAL with new Themes'!A:M,13,0)","v":0}]
[null,null,null,{"$f":"SUBTOTAL(3,D208:D208)","v":1},"Real Property\nCultural & Demographic Statistics Count"]
["Common Resource Area (CRA)","Common Resource Area (CRA)","Common Resource Area (CRA)",{"$f":"IF(C210=0,B210,C210)","v":"Common Resource Area (CRA)"},"Soils ","USDA-NRCS","David Hoover","David.Hoover@wdc.usda.gov",{"$f":"VLOOKUP(B210,'LOC FINAL with new Themes'!A:M,7,0)","v":0},{"$f":"VLOOKUP(B210,'LOC FINAL with new Themes'!A:M,8,0)","v":0},{"$f":"VLOOKUP(B210,'LOC FINAL with new Themes'!A:M,9,0)","v":0},{"$f":"VLOOKUP(B210,'LOC FINAL with new Themes'!A:M,10,0)","v":0},{"$f":"VLOOKUP(B210,'LOC FINAL with new Themes'!A:M,11,0)","v":0},{"$f":"VLOOKUP(B210,'LOC FINAL with new Themes'!A:M,12,0)","v":0},{"$f":"VLOOKUP(B210,'LOC FINAL with new Themes'!A:M,13,0)","v":0}]
["Major Land Resource Area (MLRA)","Major Land Resource Area (MLRA)","Major Land Resource Area (MLRA)","Major Land Resource Area (MLRA)","Soils ","USDA-NRCS","David Hoover","David.Hoover@wdc.usda.gov",{"$f":"VLOOKUP(B211,'LOC FINAL with new Themes'!A:M,7,0)","v":"undeliverable email- neeed to identify new contact"},{"$f":"VLOOKUP(B211,'LOC FINAL with new Themes'!A:M,8,0)","v":0},{"$f":"VLOOKUP(B211,'LOC FINAL with new Themes'!A:M,9,0)","v":0},{"$f":"VLOOKUP(B211,'LOC FINAL with new Themes'!A:M,10,0)","v":0},{"$f":"VLOOKUP(B211,'LOC FINAL with new Themes'!A:M,11,0)","v":0},{"$f":"VLOOKUP(B211,'LOC FINAL with new Themes'!A:M,12,0)","v":0},{"$f":"VLOOKUP(B211,'LOC FINAL with new Themes'!A:M,13,0)","v":0}]
["National Cooperative Soil Survey (NCSS)","National Cooperative Soil Survey (NCSS)","National Cooperative Soil Characterization Database","National Cooperative Soil Characterization Database","Soils ","USDA-NRCS","Larry West","Larry.West@lin.usda.gov",{"$f":"VLOOKUP(B212,'LOC FINAL with new Themes'!A:M,7,0)","v":"We have our Soil Survey Geographic database called SSURGO which is made available through the following sites:\nWeb Soil Survey:    http://websoilsurvey.nrcs.usda.gov/app/\nSoil Data Mart:     http://soildatamart.nrcs.usda.gov/\nSoil Data Access:   http://sdmdataaccess.nrcs.usda.gov\n\nWe also have: \nLab Soil Survey Lab Characterization Data (Point data): http://ssldata.nrcs.usda.gov/ aka NCSS Characterization Database\nSoil Series Classification Database http://soils.usda.gov/technical/classification/scfile/index.html\nU.S. General Soil Map (STATSGO2)\nMajor Land Resource Area (MLRA) http://soils.usda.gov/survey/geography/mlra/\n             Common Resource Areas (CRA) \n\n"},{"$f":"VLOOKUP(B212,'LOC FINAL with new Themes'!A:M,8,0)","v":"? No, I am a Program Manager. Various other people have roles of maintaining the data. "},{"$f":"VLOOKUP(B212,'LOC FINAL with new Themes'!A:M,9,0)","v":"I am a general information POC for all things soil survey related. For more technical aspects on our data sets a good POC would be David Hoover, National Leader for Soil Business Systems or someone on his staff. His contact number is 402-437-4013 or email at david.hoover@lin.usda.gov. "},{"$f":"VLOOKUP(B212,'LOC FINAL with new Themes'!A:M,10,0)","v":"Our data sets are constantly being updated by about 1000 soil and plant scientists in several agencies. "},{"$f":"VLOOKUP(B212,'LOC FINAL with new Themes'!A:M,11,0)","v":"Our data sets are archived, but I don’t know how far back. I will have to get back to you on that. It is my understanding that archived sets are not easily accessible.  We have archive data for SSURGO (Soil Data Warehouse from mid 2000’s or earlier – Jim Fortner or Jennifer Sweet may be able to confirm or provide more detail; We also have archive data for STATSGO (circa 1994;1996) and for MLRA (1978; 2001; 2006) in local holdings.  Not sure about lab data archives, Henry Ferguson or Larry West can confirm.  "},{"$f":"VLOOKUP(B212,'LOC FINAL with new Themes'!A:M,12,0)","v":"? the Lab Characterization Data is also known as the “NCSS Characterization Database”\nAdded Common Resource Area geographic database (CRA)."},{"$f":"VLOOKUP(B212,'LOC FINAL with new Themes'!A:M,13,0)","v":"P"}]
["Soil Survey Geographic Database (SSURGO)","Soil Survey Geographic Database (SSURGO)","Soil Survey Geographic Database (SSURGO)","Soil Survey Geographic Database (SSURGO)","Soils ","USDA-NRCS","David Hoover","David.Hoover@wdc.usda.gov",{"$f":"VLOOKUP(B213,'LOC FINAL with new Themes'!A:M,7,0)","v":"undeliverable email- neeed to identify new contact"},{"$f":"VLOOKUP(B213,'LOC FINAL with new Themes'!A:M,8,0)","v":0},{"$f":"VLOOKUP(B213,'LOC FINAL with new Themes'!A:M,9,0)","v":0},{"$f":"VLOOKUP(B213,'LOC FINAL with new Themes'!A:M,10,0)","v":0},{"$f":"VLOOKUP(B213,'LOC FINAL with new Themes'!A:M,11,0)","v":0},{"$f":"VLOOKUP(B213,'LOC FINAL with new Themes'!A:M,12,0)","v":0},{"$f":"VLOOKUP(B213,'LOC FINAL with new Themes'!A:M,13,0)","v":0}]
["U.S. General Soil Map (STATSGO2)","U.S. General Soil Map (STATSGO2)","U.S. General Soil Map (STATSGO2)","U.S. General Soil Map (STATSGO2)","Soils ","USDA-NRCS","David Hoover","David.Hoover@wdc.usda.gov",{"$f":"VLOOKUP(B214,'LOC FINAL with new Themes'!A:M,7,0)","v":"undeliverable email- neeed to identify new contact"},{"$f":"VLOOKUP(B214,'LOC FINAL with new Themes'!A:M,8,0)","v":0},{"$f":"VLOOKUP(B214,'LOC FINAL with new Themes'!A:M,9,0)","v":0},{"$f":"VLOOKUP(B214,'LOC FINAL with new Themes'!A:M,10,0)","v":0},{"$f":"VLOOKUP(B214,'LOC FINAL with new Themes'!A:M,11,0)","v":0},{"$f":"VLOOKUP(B214,'LOC FINAL with new Themes'!A:M,12,0)","v":0},{"$f":"VLOOKUP(B214,'LOC FINAL with new Themes'!A:M,13,0)","v":0}]
[null,null,null,{"$f":"SUBTOTAL(3,D210:D214)","v":5},"Soils  Count"]
[null,"Address Range-Feature Name Relationship File","Address Range-Feature Name Relationship File",{"$f":"IF(C216=0,B216,C216)","v":"Address Range-Feature Name Relationship File"},"Transportation ","DOC-Census","Jennifer Holland","Jennifer.L.Holland@census.gov",{"$f":"VLOOKUP(B216,'LOC FINAL with new Themes'!A:M,7,0)","v":0},{"$f":"VLOOKUP(B216,'LOC FINAL with new Themes'!A:M,8,0)","v":0},{"$f":"VLOOKUP(B216,'LOC FINAL with new Themes'!A:M,9,0)","v":0},{"$f":"VLOOKUP(B216,'LOC FINAL with new Themes'!A:M,10,0)","v":0},{"$f":"VLOOKUP(B216,'LOC FINAL with new Themes'!A:M,11,0)","v":0},{"$f":"VLOOKUP(B216,'LOC FINAL with new Themes'!A:M,12,0)","v":0},{"$f":"VLOOKUP(B216,'LOC FINAL with new Themes'!A:M,13,0)","v":0}]
[null,"Address Ranges Relationship File","Address Ranges Relationship File","Address Ranges Relationship File","Transportation ","DOC-Census","Jennifer Holland","Jennifer.L.Holland@census.gov",{"$f":"VLOOKUP(B217,'LOC FINAL with new Themes'!A:M,7,0)","v":0},{"$f":"VLOOKUP(B217,'LOC FINAL with new Themes'!A:M,8,0)","v":0},{"$f":"VLOOKUP(B217,'LOC FINAL with new Themes'!A:M,9,0)","v":0},{"$f":"VLOOKUP(B217,'LOC FINAL with new Themes'!A:M,10,0)","v":0},{"$f":"VLOOKUP(B217,'LOC FINAL with new Themes'!A:M,11,0)","v":0},{"$f":"VLOOKUP(B217,'LOC FINAL with new Themes'!A:M,12,0)","v":0},{"$f":"VLOOKUP(B217,'LOC FINAL with new Themes'!A:M,13,0)","v":0}]
[null,"All Roads","All Roads","All Roads","Transportation ","DOC-Census","Jennifer Holland","Jennifer.L.Holland@census.gov",{"$f":"VLOOKUP(B218,'LOC FINAL with new Themes'!A:M,7,0)","v":0},{"$f":"VLOOKUP(B218,'LOC FINAL with new Themes'!A:M,8,0)","v":0},{"$f":"VLOOKUP(B218,'LOC FINAL with new Themes'!A:M,9,0)","v":0},{"$f":"VLOOKUP(B218,'LOC FINAL with new Themes'!A:M,10,0)","v":0},{"$f":"VLOOKUP(B218,'LOC FINAL with new Themes'!A:M,11,0)","v":0},{"$f":"VLOOKUP(B218,'LOC FINAL with new Themes'!A:M,12,0)","v":0},{"$f":"VLOOKUP(B218,'LOC FINAL with new Themes'!A:M,13,0)","v":0}]
["Inland Electronic Navigation Charts (IENC)","Inland Electronic Navigation Charts (IENC)","Inland Electronic Navigation Charts (IENC)","Inland Electronic Navigation Charts (IENC)","Transportation ","DOD-USACE","Joel Schlagel","Joel.D.Schlagel@erdc.usace.army.mil ",{"$f":"VLOOKUP(B219,'LOC FINAL with new Themes'!A:M,7,0)","v":0},{"$f":"VLOOKUP(B219,'LOC FINAL with new Themes'!A:M,8,0)","v":0},{"$f":"VLOOKUP(B219,'LOC FINAL with new Themes'!A:M,9,0)","v":0},{"$f":"VLOOKUP(B219,'LOC FINAL with new Themes'!A:M,10,0)","v":0},{"$f":"VLOOKUP(B219,'LOC FINAL with new Themes'!A:M,11,0)","v":0},{"$f":"VLOOKUP(B219,'LOC FINAL with new Themes'!A:M,12,0)","v":0},{"$f":"VLOOKUP(B219,'LOC FINAL with new Themes'!A:M,13,0)","v":0}]
[null,null,"National Interagency Trails Dataset","National Interagency Trails Dataset","Transportation ","USDA"]
["National Map - Transportation Dataset","National Map - Transportation Dataset","National Transportation Dataset - National Map","National Transportation Dataset - National Map","Transportation ","DOI-USGS","Paul Wiese","pmwiese@usgs.gov",{"$f":"VLOOKUP(B221,'LOC FINAL with new Themes'!A:M,7,0)","v":0},{"$f":"VLOOKUP(B221,'LOC FINAL with new Themes'!A:M,8,0)","v":0},{"$f":"VLOOKUP(B221,'LOC FINAL with new Themes'!A:M,9,0)","v":0},{"$f":"VLOOKUP(B221,'LOC FINAL with new Themes'!A:M,10,0)","v":0},{"$f":"VLOOKUP(B221,'LOC FINAL with new Themes'!A:M,11,0)","v":0},{"$f":"VLOOKUP(B221,'LOC FINAL with new Themes'!A:M,12,0)","v":0},{"$f":"VLOOKUP(B221,'LOC FINAL with new Themes'!A:M,13,0)","v":0}]
["NTAD","NTAD","NTAD","NTAD","Transportation ","DOT-BTS","Robert Monniere","robert.monniere@dot.gov",{"$f":"VLOOKUP(B222,'LOC FINAL with new Themes'!A:M,7,0)","v":0},{"$f":"VLOOKUP(B222,'LOC FINAL with new Themes'!A:M,8,0)","v":0},{"$f":"VLOOKUP(B222,'LOC FINAL with new Themes'!A:M,9,0)","v":0},{"$f":"VLOOKUP(B222,'LOC FINAL with new Themes'!A:M,10,0)","v":0},{"$f":"VLOOKUP(B222,'LOC FINAL with new Themes'!A:M,11,0)","v":0},{"$f":"VLOOKUP(B222,'LOC FINAL with new Themes'!A:M,12,0)","v":0},{"$f":"VLOOKUP(B222,'LOC FINAL with new Themes'!A:M,13,0)","v":0}]
[null,null,"NTAD (airports)","NTAD (airports)","Transportation ","DOT-BTS"]
[null,null,"NTAD (Rail)","NTAD (Rail)","Transportation ","DOT-BTS"]
["NTAD (TransitLines) ","NTAD (TransitLines) ","NTAD (TransitLines) ","NTAD (TransitLines) ","Transportation ","DOT-BTS","Robert Monniere ","robert.monniere@dot.gov \n",{"$f":"VLOOKUP(B225,'LOC FINAL with new Themes'!A:M,7,0)","v":0},{"$f":"VLOOKUP(B225,'LOC FINAL with new Themes'!A:M,8,0)","v":0},{"$f":"VLOOKUP(B225,'LOC FINAL with new Themes'!A:M,9,0)","v":0},{"$f":"VLOOKUP(B225,'LOC FINAL with new Themes'!A:M,10,0)","v":0},{"$f":"VLOOKUP(B225,'LOC FINAL with new Themes'!A:M,11,0)","v":0},{"$f":"VLOOKUP(B225,'LOC FINAL with new Themes'!A:M,12,0)","v":0},{"$f":"VLOOKUP(B225,'LOC FINAL with new Themes'!A:M,13,0)","v":0}]
["NTAD (TransitStation) ","NTAD (TransitStation) ","NTAD (TransitStation) ","NTAD (TransitStation) ","Transportation ","DOT-BTS","Robert Monniere ","robert.monniere@dot.gov ",{"$f":"VLOOKUP(B226,'LOC FINAL with new Themes'!A:M,7,0)","v":0},{"$f":"VLOOKUP(B226,'LOC FINAL with new Themes'!A:M,8,0)","v":0},{"$f":"VLOOKUP(B226,'LOC FINAL with new Themes'!A:M,9,0)","v":0},{"$f":"VLOOKUP(B226,'LOC FINAL with new Themes'!A:M,10,0)","v":0},{"$f":"VLOOKUP(B226,'LOC FINAL with new Themes'!A:M,11,0)","v":0},{"$f":"VLOOKUP(B226,'LOC FINAL with new Themes'!A:M,12,0)","v":0},{"$f":"VLOOKUP(B226,'LOC FINAL with new Themes'!A:M,13,0)","v":0}]
[null,"Primary and Secondary Roads","Primary and Secondary Roads",{"$f":"IF(C227=0,#REF!,C227)","v":"Primary and Secondary Roads"},"Transportation ","DOC-Census","Jennifer Holland","Jennifer.L.Holland@census.gov",{"$f":"VLOOKUP(B227,'LOC FINAL with new Themes'!A:M,7,0)","v":0},{"$f":"VLOOKUP(B227,'LOC FINAL with new Themes'!A:M,8,0)","v":0},{"$f":"VLOOKUP(B227,'LOC FINAL with new Themes'!A:M,9,0)","v":0},{"$f":"VLOOKUP(B227,'LOC FINAL with new Themes'!A:M,10,0)","v":0},{"$f":"VLOOKUP(B227,'LOC FINAL with new Themes'!A:M,11,0)","v":0},{"$f":"VLOOKUP(B227,'LOC FINAL with new Themes'!A:M,12,0)","v":0},{"$f":"VLOOKUP(B227,'LOC FINAL with new Themes'!A:M,13,0)","v":0}]
[null,"Primary Roads","Primary Roads",{"$f":"IF(C228=0,B228,C228)","v":"Primary Roads"},"Transportation ","DOC-Census","Jennifer Holland","Jennifer.L.Holland@census.gov",{"$f":"VLOOKUP(B228,'LOC FINAL with new Themes'!A:M,7,0)","v":0},{"$f":"VLOOKUP(B228,'LOC FINAL with new Themes'!A:M,8,0)","v":0},{"$f":"VLOOKUP(B228,'LOC FINAL with new Themes'!A:M,9,0)","v":0},{"$f":"VLOOKUP(B228,'LOC FINAL with new Themes'!A:M,10,0)","v":0},{"$f":"VLOOKUP(B228,'LOC FINAL with new Themes'!A:M,11,0)","v":0},{"$f":"VLOOKUP(B228,'LOC FINAL with new Themes'!A:M,12,0)","v":0},{"$f":"VLOOKUP(B228,'LOC FINAL with new Themes'!A:M,13,0)","v":0}]
["TIGER (Roads/Rail)","TIGER (Roads/Rail)",null,{"$f":"IF(C229=0,B229,C229)","v":"TIGER (Roads/Rail)"},"Transportation ","DOC-Census","Randy Fusaro","randy.j.fusaro@census.gov",{"$f":"VLOOKUP(B229,'LOC FINAL with new Themes'!A:M,7,0)","v":0},{"$f":"VLOOKUP(B229,'LOC FINAL with new Themes'!A:M,8,0)","v":0},{"$f":"VLOOKUP(B229,'LOC FINAL with new Themes'!A:M,9,0)","v":0},{"$f":"VLOOKUP(B229,'LOC FINAL with new Themes'!A:M,10,0)","v":0},{"$f":"VLOOKUP(B229,'LOC FINAL with new Themes'!A:M,11,0)","v":0},{"$f":"VLOOKUP(B229,'LOC FINAL with new Themes'!A:M,12,0)","v":0},{"$f":"VLOOKUP(B229,'LOC FINAL with new Themes'!A:M,13,0)","v":0}]
[null,"Traffic Analysis Zone (Census 2000)","Traffic Analysis Zone (Census 2000)",{"$f":"IF(C230=0,B230,C230)","v":"Traffic Analysis Zone (Census 2000)"},"Transportation ","DOC-Census","Jennifer Holland","Jennifer.L.Holland@census.gov",{"$f":"VLOOKUP(B230,'LOC FINAL with new Themes'!A:M,7,0)","v":0},{"$f":"VLOOKUP(B230,'LOC FINAL with new Themes'!A:M,8,0)","v":0},{"$f":"VLOOKUP(B230,'LOC FINAL with new Themes'!A:M,9,0)","v":0},{"$f":"VLOOKUP(B230,'LOC FINAL with new Themes'!A:M,10,0)","v":0},{"$f":"VLOOKUP(B230,'LOC FINAL with new Themes'!A:M,11,0)","v":0},{"$f":"VLOOKUP(B230,'LOC FINAL with new Themes'!A:M,12,0)","v":0},{"$f":"VLOOKUP(B230,'LOC FINAL with new Themes'!A:M,13,0)","v":0}]
[null,null,null,{"$f":"SUBTOTAL(3,D216:D230)","v":15},"Transportation  Count"]
[null,null,"Pipelines",{"$f":"IF(C232=0,B232,C232)","v":"Pipelines"},"Utilities ","DOI-MMS"]
[null,null,"Platforms",{"$f":"IF(C233=0,B233,C233)","v":"Platforms"},"Utilities ","DOI-MMS"]
[null,null,null,{"$f":"SUBTOTAL(3,D232:D233)","v":2},"Utilities  Count"]
[null,"Area Hydrography (2010 Census)","Area Hydrography (2010 Census)",{"$f":"IF(C235=0,B235,C235)","v":"Area Hydrography (2010 Census)"},"Water -- Inland","DOC-Census","Jennifer Holland","Jennifer.L.Holland@census.gov",{"$f":"VLOOKUP(B235,'LOC FINAL with new Themes'!A:M,7,0)","v":0},{"$f":"VLOOKUP(B235,'LOC FINAL with new Themes'!A:M,8,0)","v":0},{"$f":"VLOOKUP(B235,'LOC FINAL with new Themes'!A:M,9,0)","v":0},{"$f":"VLOOKUP(B235,'LOC FINAL with new Themes'!A:M,10,0)","v":0},{"$f":"VLOOKUP(B235,'LOC FINAL with new Themes'!A:M,11,0)","v":0},{"$f":"VLOOKUP(B235,'LOC FINAL with new Themes'!A:M,12,0)","v":0},{"$f":"VLOOKUP(B235,'LOC FINAL with new Themes'!A:M,13,0)","v":0}]
[null,"Linear Water Features","Linear Water Features","Linear Water Features","Water -- Inland","DOC-Census","Jennifer Holland","Jennifer.L.Holland@census.gov",{"$f":"VLOOKUP(B236,'LOC FINAL with new Themes'!A:M,7,0)","v":0},{"$f":"VLOOKUP(B236,'LOC FINAL with new Themes'!A:M,8,0)","v":0},{"$f":"VLOOKUP(B236,'LOC FINAL with new Themes'!A:M,9,0)","v":0},{"$f":"VLOOKUP(B236,'LOC FINAL with new Themes'!A:M,10,0)","v":0},{"$f":"VLOOKUP(B236,'LOC FINAL with new Themes'!A:M,11,0)","v":0},{"$f":"VLOOKUP(B236,'LOC FINAL with new Themes'!A:M,12,0)","v":0},{"$f":"VLOOKUP(B236,'LOC FINAL with new Themes'!A:M,13,0)","v":0}]
["National Hydrography Data Set","National Hydrography Dataset","National Hydrography Dataset - National Map","National Hydrography Dataset - National Map","Water -- Inland","DOI-USGS","Jeff Simley","jdsimley@usgs.gov",{"$f":"VLOOKUP(B237,'LOC FINAL with new Themes'!A:M,7,0)","v":0},{"$f":"VLOOKUP(B237,'LOC FINAL with new Themes'!A:M,8,0)","v":0},{"$f":"VLOOKUP(B237,'LOC FINAL with new Themes'!A:M,9,0)","v":0},{"$f":"VLOOKUP(B237,'LOC FINAL with new Themes'!A:M,10,0)","v":0},{"$f":"VLOOKUP(B237,'LOC FINAL with new Themes'!A:M,11,0)","v":0},{"$f":"VLOOKUP(B237,'LOC FINAL with new Themes'!A:M,12,0)","v":0},{"$f":"VLOOKUP(B237,'LOC FINAL with new Themes'!A:M,13,0)","v":0}]
["National Inventory of Dams (NID)","National Inventory of Dams (NID)","National Inventory of Dams (NID)","National Inventory of Dams (NID)","Water -- Inland","DOD-USACE","Rebecca Ragon","Rebecca.Ragon@usace.army.mil ",{"$f":"VLOOKUP(B238,'LOC FINAL with new Themes'!A:M,7,0)","v":"One single data set"},{"$f":"VLOOKUP(B238,'LOC FINAL with new Themes'!A:M,8,0)","v":"Yes"},{"$f":"VLOOKUP(B238,'LOC FINAL with new Themes'!A:M,9,0)","v":"Yes"},{"$f":"VLOOKUP(B238,'LOC FINAL with new Themes'!A:M,10,0)","v":"Usually every 2 years"},{"$f":"VLOOKUP(B238,'LOC FINAL with new Themes'!A:M,11,0)","v":"Because the NID is updated every 2 years, we do have archived databased datig back to 1994."},{"$f":"VLOOKUP(B238,'LOC FINAL with new Themes'!A:M,12,0)","v":"The official name is National Inventory of Dams (NID) but I have seen the database referenced as the National Dam Inventory"},{"$f":"VLOOKUP(B238,'LOC FINAL with new Themes'!A:M,13,0)","v":"S"}]
["National Levee Database (NLD)","National Levee Database (NLD)","National Levee Database (NLD)","National Levee Database (NLD)","Water -- Inland","DOD-USACE","Bryan Baker","Bryan.E.Baker@usace.army.mil",{"$f":"VLOOKUP(B239,'LOC FINAL with new Themes'!A:M,7,0)","v":0},{"$f":"VLOOKUP(B239,'LOC FINAL with new Themes'!A:M,8,0)","v":0},{"$f":"VLOOKUP(B239,'LOC FINAL with new Themes'!A:M,9,0)","v":0},{"$f":"VLOOKUP(B239,'LOC FINAL with new Themes'!A:M,10,0)","v":0},{"$f":"VLOOKUP(B239,'LOC FINAL with new Themes'!A:M,11,0)","v":0},{"$f":"VLOOKUP(B239,'LOC FINAL with new Themes'!A:M,12,0)","v":0},{"$f":"VLOOKUP(B239,'LOC FINAL with new Themes'!A:M,13,0)","v":0}]
[null,null,"National Water Information System (NWIS)- Stream Gage Network","National Water Information System (NWIS)- Stream Gage Network","Water -- Inland","DOI-USGS"]
[null,null,"National Water Information System (NWIS)- Water Quality Monitoring Stations","National Water Information System (NWIS)- Water Quality Monitoring Stations","Water -- Inland","DOI-USGS"]
["National Wetlands Inventory (NWI) ","National Wetlands Inventory (NWI) ","National Wetlands Inventory (NWI) ","National Wetlands Inventory (NWI) ","Water -- Inland","DOI-FWS","Tom Dahl  ","tom_dahl@fws.gov\n",{"$f":"VLOOKUP(B242,'LOC FINAL with new Themes'!A:M,7,0)","v":0},{"$f":"VLOOKUP(B242,'LOC FINAL with new Themes'!A:M,8,0)","v":0},{"$f":"VLOOKUP(B242,'LOC FINAL with new Themes'!A:M,9,0)","v":0},{"$f":"VLOOKUP(B242,'LOC FINAL with new Themes'!A:M,10,0)","v":0},{"$f":"VLOOKUP(B242,'LOC FINAL with new Themes'!A:M,11,0)","v":0},{"$f":"VLOOKUP(B242,'LOC FINAL with new Themes'!A:M,12,0)","v":0},{"$f":"VLOOKUP(B242,'LOC FINAL with new Themes'!A:M,13,0)","v":0}]
["NWIS & STORET","NWIS & STORET",null,"NWIS & STORET","Water -- Inland",null,"EGIM",null,{"$f":"VLOOKUP(B243,'LOC FINAL with new Themes'!A:M,7,0)","v":0},{"$f":"VLOOKUP(B243,'LOC FINAL with new Themes'!A:M,8,0)","v":0},{"$f":"VLOOKUP(B243,'LOC FINAL with new Themes'!A:M,9,0)","v":0},{"$f":"VLOOKUP(B243,'LOC FINAL with new Themes'!A:M,10,0)","v":0},{"$f":"VLOOKUP(B243,'LOC FINAL with new Themes'!A:M,11,0)","v":0},{"$f":"VLOOKUP(B243,'LOC FINAL with new Themes'!A:M,12,0)","v":0},{"$f":"VLOOKUP(B243,'LOC FINAL with new Themes'!A:M,13,0)","v":0}]
[null,"Topological Faces-Area Hydrography Relationship File","Topological Faces-Area Hydrography Relationship File","Topological Faces-Area Hydrography Relationship File","Water -- Inland","DOC-Census","Jennifer Holland","Jennifer.L.Holland@census.gov",{"$f":"VLOOKUP(B244,'LOC FINAL with new Themes'!A:M,7,0)","v":0},{"$f":"VLOOKUP(B244,'LOC FINAL with new Themes'!A:M,8,0)","v":0},{"$f":"VLOOKUP(B244,'LOC FINAL with new Themes'!A:M,9,0)","v":0},{"$f":"VLOOKUP(B244,'LOC FINAL with new Themes'!A:M,10,0)","v":0},{"$f":"VLOOKUP(B244,'LOC FINAL with new Themes'!A:M,11,0)","v":0},{"$f":"VLOOKUP(B244,'LOC FINAL with new Themes'!A:M,12,0)","v":0},{"$f":"VLOOKUP(B244,'LOC FINAL with new Themes'!A:M,13,0)","v":0}]
["Watershed Boundary Data Set (WBD)  ","Watershed Boundary Dataset (WBD)  ","Watershed Boundary Dataset (WBD)  ","Watershed Boundary Dataset (WBD)  ","Water -- Inland","DOI-USGS","Karen Hanson","khanson@usgs.gov",{"$f":"VLOOKUP(B245,'LOC FINAL with new Themes'!A:M,7,0)","v":"one set with nested hierarchy of six different levels within it (regions, subdivided into four, six and twelve digits), POC and data manager; continually updated; co-managed with NRCS and they archive it; USGS in Denver will serve it; All transactions are archived in versions in the database as they happen. Data from any moment in time can be captured with a simple query. The database is replicated daily to Rolla, MO servers. The database is stored on a SAN with three tier redundancy.All changes to the database are stored on separate disks and once they reach a certain size, they are copied over to a server to be written to tape. Weekly, the entire database (NHD, with WBD) is written to tape.Monthly, the tapes are taken off site for storage."},{"$f":"VLOOKUP(B245,'LOC FINAL with new Themes'!A:M,8,0)","v":0},{"$f":"VLOOKUP(B245,'LOC FINAL with new Themes'!A:M,9,0)","v":0},{"$f":"VLOOKUP(B245,'LOC FINAL with new Themes'!A:M,10,0)","v":0},{"$f":"VLOOKUP(B245,'LOC FINAL with new Themes'!A:M,11,0)","v":0},{"$f":"VLOOKUP(B245,'LOC FINAL with new Themes'!A:M,12,0)","v":0},{"$f":"VLOOKUP(B245,'LOC FINAL with new Themes'!A:M,13,0)","v":"S"}]
["Watershed Boundary Data Set (WBD)  ","Watershed Boundary Dataset (WBD)  ","Watershed Boundary Dataset (WBD)  ","Watershed Boundary Dataset (WBD)  ","Water -- Inland","DOI-USGS","Karen Hanson","khanson@usgs.gov",{"$f":"VLOOKUP(B246,'LOC FINAL with new Themes'!A:M,7,0)","v":"one set with nested hierarchy of six different levels within it (regions, subdivided into four, six and twelve digits), POC and data manager; continually updated; co-managed with NRCS and they archive it; USGS in Denver will serve it; All transactions are archived in versions in the database as they happen. Data from any moment in time can be captured with a simple query. The database is replicated daily to Rolla, MO servers. The database is stored on a SAN with three tier redundancy.All changes to the database are stored on separate disks and once they reach a certain size, they are copied over to a server to be written to tape. Weekly, the entire database (NHD, with WBD) is written to tape.Monthly, the tapes are taken off site for storage."},{"$f":"VLOOKUP(B246,'LOC FINAL with new Themes'!A:M,8,0)","v":0},{"$f":"VLOOKUP(B246,'LOC FINAL with new Themes'!A:M,9,0)","v":0},{"$f":"VLOOKUP(B246,'LOC FINAL with new Themes'!A:M,10,0)","v":0},{"$f":"VLOOKUP(B246,'LOC FINAL with new Themes'!A:M,11,0)","v":0},{"$f":"VLOOKUP(B246,'LOC FINAL with new Themes'!A:M,12,0)","v":0},{"$f":"VLOOKUP(B246,'LOC FINAL with new Themes'!A:M,13,0)","v":"S"}]
[null,null,null,{"$f":"SUBTOTAL(3,D235:D246)","v":12},"Water -- Inland Count"]
[null,null,"Coastal Barrier Resource System",{"$f":"IF(C248=0,B248,C248)","v":"Coastal Barrier Resource System"},"Water -- Oceans and Coasts ","DOI-FWS"]
[null,null,"Coastal Change Analysis Program (C-CAP) Land Cover and Land Change Imagery","Coastal Change Analysis Program (C-CAP) Land Cover and Land Change Imagery","Water -- Oceans and Coasts ","DOC-NOAA","Nate Herold","nate.herold@noaa.gov"]
["Continental Shelf Boundary Data","Continental Shelf Boundary Data","Continental Shelf Boundary Data","Continental Shelf Boundary Data","Water -- Oceans and Coasts ","DOI-BOEM","Doug Vandegraft","douglas.vandegraft@boemre.gov",{"$f":"VLOOKUP(B250,'LOC FINAL with new Themes'!A:M,7,0)","v":"undeliverable email- neeed to identify new contact"},{"$f":"VLOOKUP(B250,'LOC FINAL with new Themes'!A:M,8,0)","v":0},{"$f":"VLOOKUP(B250,'LOC FINAL with new Themes'!A:M,9,0)","v":0},{"$f":"VLOOKUP(B250,'LOC FINAL with new Themes'!A:M,10,0)","v":0},{"$f":"VLOOKUP(B250,'LOC FINAL with new Themes'!A:M,11,0)","v":0},{"$f":"VLOOKUP(B250,'LOC FINAL with new Themes'!A:M,12,0)","v":0},{"$f":"VLOOKUP(B250,'LOC FINAL with new Themes'!A:M,13,0)","v":0}]
[null,null,"National Data Buoy Center (NDBC) Recent and Historical Data","National Data Buoy Center (NDBC) Recent and Historical Data","Water -- Oceans and Coasts ","DOC-NOAA"]
[null,null,"NOAA National Shoreline","NOAA National Shoreline","Water -- Oceans and Coasts ","DOC-NOAA","Doug Graham","Doug.Graham@noaa.gov"]
["NOAA Nautical Charts","NOAA Nautical Charts","NOAA's Nautical Chart Products","NOAA's Nautical Chart Products","Water -- Oceans and Coasts ","DOC-NOAA","Meredith Westington","meredith.westington@noaa.gov",{"$f":"VLOOKUP(B253,'LOC FINAL with new Themes'!A:M,7,0)","v":0},{"$f":"VLOOKUP(B253,'LOC FINAL with new Themes'!A:M,8,0)","v":0},{"$f":"VLOOKUP(B253,'LOC FINAL with new Themes'!A:M,9,0)","v":0},{"$f":"VLOOKUP(B253,'LOC FINAL with new Themes'!A:M,10,0)","v":0},{"$f":"VLOOKUP(B253,'LOC FINAL with new Themes'!A:M,11,0)","v":0},{"$f":"VLOOKUP(B253,'LOC FINAL with new Themes'!A:M,12,0)","v":0},{"$f":"VLOOKUP(B253,'LOC FINAL with new Themes'!A:M,13,0)","v":0}]
[null,null,"Non-Projected Boundaries","Non-Projected Boundaries","Water -- Oceans and Coasts ","DOI-MMS"]
[null,null,"Projected Boundaries","Projected Boundaries","Water -- Oceans and Coasts ","DOI-MMS"]
[null,null,"U.S. Marine Protected Areas Boundaries","U.S. Marine Protected Areas Boundaries","Water -- Oceans and Coasts ","DOC-NOAA"]
[null,null,"U.S. Maritime Zones/Boundaries","U.S. Maritime Zones/Boundaries","Water -- Oceans and Coasts ","DOC-NOAA","Meredith Westington","meredith.westington@noaa.gov"]
[null,null,null,{"$f":"SUBTOTAL(3,D248:D257)","v":10},"Water -- Oceans and Coasts  Count"]
[null,null,null,{"$f":"SUBTOTAL(3,D2:D257)","v":238},"Grand Count"]

{"sheet":"4-16-2012","index":23,"n_rows":263,"n_cols":15,"rows_kept":263,"cut":false,"hidden":true,"merged":[]}
["ORIGINAL (beginning of 2011)","LOC FINAL (October 2011)","NGDA List (October 2011)","FINAL List (November 2011)","Theme","Agency","Dataset Manager","Email","Q1 How many data set(s) do you have? It is a single set or multiple sets? ","Q2 Are you a data set manager?","Q3 Are you the POC for transferring the data set and/or for information about the data set?","Q4 How often is the data set updated?","Q5 Is there an archive/backup of the data set or do you maintain an archived copy of it? If yes, how far back do you maintain a copy? Is it easily accessible?","Q6 Does the data set go by a different name or is it referred to internally by another descriptive name?","M\nP\nS"]
[null,null,"Critical Habitat ",{"$f":"IF(C2=0,B2,C2)","v":"Critical Habitat "},"Biota","DOI-FWS"]
[null,null,"Current Range for listed species ","Current Range for listed species ","Biota","DOI-FWS"]
["ECOMAP Data Sets (Ecological Subregions: Sections and Subsections for the Conterminous United States ) ","ECOMAP Datasets (Ecological Subregions: Sections and Subsections for the Conterminous United States ) ","ECOMAP Datasets (Ecological Subregions: Sections and Subsections for the Conterminous United States ) ","ECOMAP Datasets (Ecological Subregions: Sections and Subsections for the Conterminous United States ) ","Biota","USDA-FS","David T. Cleland","dcleland@fs.fed.us",{"$f":"VLOOKUP(B4,'[1]LOC FINAL with new Themes'!A:M,7,0)","v":"One, single set"},{"$f":"VLOOKUP(B4,'[1]LOC FINAL with new Themes'!A:M,8,0)","v":"Yes"},{"$f":"VLOOKUP(B4,'[1]LOC FINAL with new Themes'!A:M,9,0)","v":"Yes"},{"$f":"VLOOKUP(B4,'[1]LOC FINAL with new Themes'!A:M,10,0)","v":"Maps are updated on a 10-year cycle"},{"$f":"VLOOKUP(B4,'[1]LOC FINAL with new Themes'!A:M,11,0)","v":"The data is housed at and served by the Forest Service geodata portal, and is easily accessible.  The web address is: http://fsgeodata.fs.fed.us/other_resources/ecosubregions.html "},{"$f":"VLOOKUP(B4,'[1]LOC FINAL with new Themes'!A:M,12,0)","v":"?   Internally, the data is named ECOMAP or the National Hierarchy of Ecological Units. "},{"$f":"VLOOKUP(B4,'[1]LOC FINAL with new Themes'!A:M,13,0)","v":"S"}]
[null,null,"Endangered Species (Threatened and Endangered Species System)","Endangered Species (Threatened and Endangered Species System)","Biota","DOI-FWS"]
["Env Sens Index Maps - classified shoreline","Env Sens Index Maps - classified shoreline","Environmental Sensitivity Index (ESI) Data and Maps","Environmental Sensitivity Index (ESI) Data and Maps","Biota","DOC-NOAA","Jill Petersen","jill.petersen@noaa.gov",{"$f":"VLOOKUP(B6,'[1]LOC FINAL with new Themes'!A:M,7,0)","v":"There are approximately 70 different atlases. There are a few that are still not available in a GIS format, (approx 7 of the approx 70!) - these are available as the hard copy product and as PDFs (scanned). The remaining atlases are available in multiple GIS formats - Arc Export files, Geodatabase with an ArcMap map document complete with all relates established and properly symbolized, Shape files with an ArcView 3.x project, a free ESI viewer that allows viewing, queries and printing (in house mapping program and filemaker pro) as well as PDF format and the hard copy product. These can be downloaded from http://response.restoration.noaa.gov/esi_download This page is in progress, but should be complete fairly quickly.\n\n"},{"$f":"VLOOKUP(B6,'[1]LOC FINAL with new Themes'!A:M,8,0)","v":"Yes"},{"$f":"VLOOKUP(B6,'[1]LOC FINAL with new Themes'!A:M,9,0)","v":"Yes "},{"$f":"VLOOKUP(B6,'[1]LOC FINAL with new Themes'!A:M,10,0)","v":"- High resolution products have no defined update schedule.  TBD by geog/project."},{"$f":"VLOOKUP(B6,'[1]LOC FINAL with new Themes'!A:M,11,0)","v":"Yes and no. We have archives of all the digital data as well as all the PDFs (scanned or produced with the digital data map comps). Many of the hard copy atlases from the first round of ESI maps were sent to the Library of Commerce. Others I have kept, but no very organized situation. However, we have all of the historic PDFs which are an exact duplicate of the hard copy atlas, so that is something. Historic data is going to be served from the above link as well. That will be added as the current data sets are completed."},{"$f":"VLOOKUP(B6,'[1]LOC FINAL with new Themes'!A:M,12,0)","v":"ESI is the common abbreviation for these maps. Other than that, Environmental Sensitivity Index Maps, Shoreline Sensitivity maps, Environmental Sensitivity maps..... These maps have the classified shoreline, as well as summaries of biological and human use resource particularly sensitive to oiling. "},{"$f":"VLOOKUP(B6,'[1]LOC FINAL with new Themes'!A:M,13,0)","v":"M "}]
["GAP Program Dataset","GAP Program Dataset","GAP Program Dataset","GAP Program Dataset","Biota","DOI-USGS","Kevin Gergely","gergely@usgs.gov",{"$f":"VLOOKUP(B7,'[1]LOC FINAL with new Themes'!A:M,7,0)","v":"POC; multiple data sets in single location, building three fundamental data layers, two are national (protected areas, land cover dataset); backup; six months, annually)"},{"$f":"VLOOKUP(B7,'[1]LOC FINAL with new Themes'!A:M,8,0)","v":0},{"$f":"VLOOKUP(B7,'[1]LOC FINAL with new Themes'!A:M,9,0)","v":0},{"$f":"VLOOKUP(B7,'[1]LOC FINAL with new Themes'!A:M,10,0)","v":0},{"$f":"VLOOKUP(B7,'[1]LOC FINAL with new Themes'!A:M,11,0)","v":0},{"$f":"VLOOKUP(B7,'[1]LOC FINAL with new Themes'!A:M,12,0)","v":0},{"$f":"VLOOKUP(B7,'[1]LOC FINAL with new Themes'!A:M,13,0)","v":"P"}]
["National Standardized Ecosystems Dataset","National Standardized Ecosystems Dataset","National Standardized Ecosystems Dataset","National Standardized Ecosystems Dataset","Biota","DOI-USGS","Roger Sayre","rsayre@usgs.gov",{"$f":"VLOOKUP(B8,'[1]LOC FINAL with new Themes'!A:M,7,0)","v":0},{"$f":"VLOOKUP(B8,'[1]LOC FINAL with new Themes'!A:M,8,0)","v":0},{"$f":"VLOOKUP(B8,'[1]LOC FINAL with new Themes'!A:M,9,0)","v":0},{"$f":"VLOOKUP(B8,'[1]LOC FINAL with new Themes'!A:M,10,0)","v":0},{"$f":"VLOOKUP(B8,'[1]LOC FINAL with new Themes'!A:M,11,0)","v":0},{"$f":"VLOOKUP(B8,'[1]LOC FINAL with new Themes'!A:M,12,0)","v":0},{"$f":"VLOOKUP(B8,'[1]LOC FINAL with new Themes'!A:M,13,0)","v":0}]
[null,null,"Recovery Range for listed species ","Recovery Range for listed species ","Biota","DOI-FWS"]
[null,null,"Section 7 Range for listed species ","Section 7 Range for listed species ","Biota","DOI-FWS"]
["Biomes, Ecoregions","Biomes, Ecoregions",null,"Biomes, Ecoregions","Biota ","DOI-USGS","Dan Phillips ","dphillips@usgs.gov",{"$f":"VLOOKUP(B11,'[1]LOC FINAL with new Themes'!A:M,7,0)","v":0},{"$f":"VLOOKUP(B11,'[1]LOC FINAL with new Themes'!A:M,8,0)","v":0},{"$f":"VLOOKUP(B11,'[1]LOC FINAL with new Themes'!A:M,9,0)","v":0},{"$f":"VLOOKUP(B11,'[1]LOC FINAL with new Themes'!A:M,10,0)","v":0},{"$f":"VLOOKUP(B11,'[1]LOC FINAL with new Themes'!A:M,11,0)","v":0},{"$f":"VLOOKUP(B11,'[1]LOC FINAL with new Themes'!A:M,12,0)","v":0},{"$f":"VLOOKUP(B11,'[1]LOC FINAL with new Themes'!A:M,13,0)","v":0}]
["Ecological Services","Ecological Services",null,"Ecological Services","Biota ","DOI-USGS","Dan Phillips ","dphillips@usgs.gov",{"$f":"VLOOKUP(B12,'[1]LOC FINAL with new Themes'!A:M,7,0)","v":0},{"$f":"VLOOKUP(B12,'[1]LOC FINAL with new Themes'!A:M,8,0)","v":0},{"$f":"VLOOKUP(B12,'[1]LOC FINAL with new Themes'!A:M,9,0)","v":0},{"$f":"VLOOKUP(B12,'[1]LOC FINAL with new Themes'!A:M,10,0)","v":0},{"$f":"VLOOKUP(B12,'[1]LOC FINAL with new Themes'!A:M,11,0)","v":0},{"$f":"VLOOKUP(B12,'[1]LOC FINAL with new Themes'!A:M,12,0)","v":0},{"$f":"VLOOKUP(B12,'[1]LOC FINAL with new Themes'!A:M,13,0)","v":0}]
["Habitats","Habitats",null,"Habitats","Biota ","DOI-USGS","Dan Phillips ","dphillips@usgs.gov",{"$f":"VLOOKUP(B13,'[1]LOC FINAL with new Themes'!A:M,7,0)","v":"see protected areas and land cover set; vertebrae species of US being developed (not complete for all species they want to include in it."},{"$f":"VLOOKUP(B13,'[1]LOC FINAL with new Themes'!A:M,8,0)","v":0},{"$f":"VLOOKUP(B13,'[1]LOC FINAL with new Themes'!A:M,9,0)","v":0},{"$f":"VLOOKUP(B13,'[1]LOC FINAL with new Themes'!A:M,10,0)","v":0},{"$f":"VLOOKUP(B13,'[1]LOC FINAL with new Themes'!A:M,11,0)","v":0},{"$f":"VLOOKUP(B13,'[1]LOC FINAL with new Themes'!A:M,12,0)","v":0},{"$f":"VLOOKUP(B13,'[1]LOC FINAL with new Themes'!A:M,13,0)","v":"M"}]
["Invasive Species","Invasive Species",null,"Invasive Species","Biota ","DOI-USGS","Dan Phillips ","dphillips@usgs.gov",{"$f":"VLOOKUP(B14,'[1]LOC FINAL with new Themes'!A:M,7,0)","v":"There are hundreds of datasets that are produced and maintained by the GAP program. Dan is not the data set manager, but I work with the people that maintain and update the datasets and maintains metadata.The data are updated at different intervals, especially now that they have moved more to a regional and national based approach. GAPS data sets presumably archived since 1990s."},{"$f":"VLOOKUP(B14,'[1]LOC FINAL with new Themes'!A:M,8,0)","v":0},{"$f":"VLOOKUP(B14,'[1]LOC FINAL with new Themes'!A:M,9,0)","v":0},{"$f":"VLOOKUP(B14,'[1]LOC FINAL with new Themes'!A:M,10,0)","v":0},{"$f":"VLOOKUP(B14,'[1]LOC FINAL with new Themes'!A:M,11,0)","v":0},{"$f":"VLOOKUP(B14,'[1]LOC FINAL with new Themes'!A:M,12,0)","v":0},{"$f":"VLOOKUP(B14,'[1]LOC FINAL with new Themes'!A:M,13,0)","v":"M"}]
["Species Distribution(amphibians, birds, reptiles, mammals, fishes, plants, etc)","Species Distribution (amphibians, birds, reptiles, mammals, fishes, plants, etc)",null,"Species Distribution (amphibians, birds, reptiles, mammals, fishes, plants, etc)","Biota ","DOI-USGS","Dan Phillips ","dphillips@usgs.gov",{"$f":"VLOOKUP(B15,'[1]LOC FINAL with new Themes'!A:M,7,0)","v":"There are hundreds of datasets that are produced and maintained by the GAP program. Dan is not the data set manager, but I work with the people that maintain and update the datasets and maintains metadata. The data are updated at different intervals, especially now that they have moved more to a regional and national based approach. GAPS data sets presumably archived since 1990s."},{"$f":"VLOOKUP(B15,'[1]LOC FINAL with new Themes'!A:M,8,0)","v":0},{"$f":"VLOOKUP(B15,'[1]LOC FINAL with new Themes'!A:M,9,0)","v":0},{"$f":"VLOOKUP(B15,'[1]LOC FINAL with new Themes'!A:M,10,0)","v":0},{"$f":"VLOOKUP(B15,'[1]LOC FINAL with new Themes'!A:M,11,0)","v":0},{"$f":"VLOOKUP(B15,'[1]LOC FINAL with new Themes'!A:M,12,0)","v":0},{"$f":"VLOOKUP(B15,'[1]LOC FINAL with new Themes'!A:M,13,0)","v":"M"}]
[null,null,null,{"$f":"SUBTOTAL(3,D2:D15)","v":14},"Biota Count"]
["General Land Office","General Land Office","General Land Office",{"$f":"IF(C17=0,B17,C17)","v":"General Land Office"},"Cadastre","DOI-BLM","Juan Palma","juan_palma@blm.gov",{"$f":"VLOOKUP(B17,'[1]LOC FINAL with new Themes'!A:M,7,0)","v":0},{"$f":"VLOOKUP(B17,'[1]LOC FINAL with new Themes'!A:M,8,0)","v":0},{"$f":"VLOOKUP(B17,'[1]LOC FINAL with new Themes'!A:M,9,0)","v":0},{"$f":"VLOOKUP(B17,'[1]LOC FINAL with new Themes'!A:M,10,0)","v":0},{"$f":"VLOOKUP(B17,'[1]LOC FINAL with new Themes'!A:M,11,0)","v":0},{"$f":"VLOOKUP(B17,'[1]LOC FINAL with new Themes'!A:M,12,0)","v":0},{"$f":"VLOOKUP(B17,'[1]LOC FINAL with new Themes'!A:M,13,0)","v":0}]
["Geographic Coordinate Data Base (GCDB)","Geographic Coordinate Data Base (GCDB)",null,"Geographic Coordinate Data Base (GCDB)","Cadastre","DOI-BLM","Don Buhler","don_buhler@blm.gov",{"$f":"VLOOKUP(B18,'[1]LOC FINAL with new Themes'!A:M,7,0)","v":"every agency has its own database; multiple data sets; standard being advanced and put into practice; federal interest is managed with BLM; state and local are authoritative sets for other lands; "},{"$f":"VLOOKUP(B18,'[1]LOC FINAL with new Themes'!A:M,8,0)","v":0},{"$f":"VLOOKUP(B18,'[1]LOC FINAL with new Themes'!A:M,9,0)","v":0},{"$f":"VLOOKUP(B18,'[1]LOC FINAL with new Themes'!A:M,10,0)","v":0},{"$f":"VLOOKUP(B18,'[1]LOC FINAL with new Themes'!A:M,11,0)","v":0},{"$f":"VLOOKUP(B18,'[1]LOC FINAL with new Themes'!A:M,12,0)","v":0},{"$f":"VLOOKUP(B18,'[1]LOC FINAL with new Themes'!A:M,13,0)","v":"M "}]
["LR 2000 - Master Title Plats ","LR 2000 - Master Title Plats ","LR 2000 - Attribute Information","LR 2000 - Attribute Information","Cadastre","DOI-BLM","Jeff Holdren","jeff_holdren@blm.gov",{"$f":"VLOOKUP(B19,'[1]LOC FINAL with new Themes'!A:M,7,0)","v":"listing of sales, rents, agricultural disposal and rights of way cases, group of data sets in one system; Kim Burns, division chief; not archived, there is a backup; Denver office handles"},{"$f":"VLOOKUP(B19,'[1]LOC FINAL with new Themes'!A:M,8,0)","v":0},{"$f":"VLOOKUP(B19,'[1]LOC FINAL with new Themes'!A:M,9,0)","v":0},{"$f":"VLOOKUP(B19,'[1]LOC FINAL with new Themes'!A:M,10,0)","v":0},{"$f":"VLOOKUP(B19,'[1]LOC FINAL with new Themes'!A:M,11,0)","v":0},{"$f":"VLOOKUP(B19,'[1]LOC FINAL with new Themes'!A:M,12,0)","v":0},{"$f":"VLOOKUP(B19,'[1]LOC FINAL with new Themes'!A:M,13,0)","v":"P"}]
["Manual of Surveying Instructions, Data Standards","Manual of Surveying Instructions, Data Standards",null,"Manual of Surveying Instructions, Data Standards","Cadastre","DOI-BLM","Don Buhler","don_buhler@blm.gov",{"$f":"VLOOKUP(B20,'[1]LOC FINAL with new Themes'!A:M,7,0)","v":0},{"$f":"VLOOKUP(B20,'[1]LOC FINAL with new Themes'!A:M,8,0)","v":0},{"$f":"VLOOKUP(B20,'[1]LOC FINAL with new Themes'!A:M,9,0)","v":0},{"$f":"VLOOKUP(B20,'[1]LOC FINAL with new Themes'!A:M,10,0)","v":0},{"$f":"VLOOKUP(B20,'[1]LOC FINAL with new Themes'!A:M,11,0)","v":0},{"$f":"VLOOKUP(B20,'[1]LOC FINAL with new Themes'!A:M,12,0)","v":0},{"$f":"VLOOKUP(B20,'[1]LOC FINAL with new Themes'!A:M,13,0)","v":0}]
["Mineral Estate - Fluids","Mineral Estate - Fluids",null,"Mineral Estate - Fluids","Cadastre","DOI-BLM","Tim Spisak ","tim_spisak@blm.gov",{"$f":"VLOOKUP(B21,'[1]LOC FINAL with new Themes'!A:M,7,0)","v":"mineral leasess, mining claims, rights of way, gases (single data set); BLM-managed lands but managed all federal mineral estate (comprehensive for mineraal estate) some electronic and some not"},{"$f":"VLOOKUP(B21,'[1]LOC FINAL with new Themes'!A:M,8,0)","v":0},{"$f":"VLOOKUP(B21,'[1]LOC FINAL with new Themes'!A:M,9,0)","v":0},{"$f":"VLOOKUP(B21,'[1]LOC FINAL with new Themes'!A:M,10,0)","v":0},{"$f":"VLOOKUP(B21,'[1]LOC FINAL with new Themes'!A:M,11,0)","v":0},{"$f":"VLOOKUP(B21,'[1]LOC FINAL with new Themes'!A:M,12,0)","v":0},{"$f":"VLOOKUP(B21,'[1]LOC FINAL with new Themes'!A:M,13,0)","v":"P"}]
["Mineral Estate - Solids","Mineral Estate - Solids",null,"Mineral Estate - Solids","Cadastre","DOI-BLM","Mitchell Leverette","mitchell_leverette@blm.gov",{"$f":"VLOOKUP(B22,'[1]LOC FINAL with new Themes'!A:M,7,0)","v":"mineral leasess, mining claims, rights of way, gases (single data set); BLM-managed lands but managed all federal mineral estate (comprehensive for mineral estate) some electronic and some not"},{"$f":"VLOOKUP(B22,'[1]LOC FINAL with new Themes'!A:M,8,0)","v":0},{"$f":"VLOOKUP(B22,'[1]LOC FINAL with new Themes'!A:M,9,0)","v":0},{"$f":"VLOOKUP(B22,'[1]LOC FINAL with new Themes'!A:M,10,0)","v":0},{"$f":"VLOOKUP(B22,'[1]LOC FINAL with new Themes'!A:M,11,0)","v":0},{"$f":"VLOOKUP(B22,'[1]LOC FINAL with new Themes'!A:M,12,0)","v":0},{"$f":"VLOOKUP(B22,'[1]LOC FINAL with new Themes'!A:M,13,0)","v":"P"}]
[null,null,"PADUS (Protected Areas Database of the US)","PADUS (Protected Areas Database of the US)","Cadastre","DOI-USGS"]
["Parcels","Parcels","Parcels","Parcels","Cadastre","DOI-BLM","Bob Ader","bob_ader@blm.gov",{"$f":"VLOOKUP(B24,'[1]LOC FINAL with new Themes'!A:M,7,0)","v":"every agency has its own database; multiple data sets; standard being advanced and put into practice; federal interest is managed with BLM; state and local are authoritative sets for other lands; current effort of federal inventory "},{"$f":"VLOOKUP(B24,'[1]LOC FINAL with new Themes'!A:M,8,0)","v":0},{"$f":"VLOOKUP(B24,'[1]LOC FINAL with new Themes'!A:M,9,0)","v":0},{"$f":"VLOOKUP(B24,'[1]LOC FINAL with new Themes'!A:M,10,0)","v":0},{"$f":"VLOOKUP(B24,'[1]LOC FINAL with new Themes'!A:M,11,0)","v":0},{"$f":"VLOOKUP(B24,'[1]LOC FINAL with new Themes'!A:M,12,0)","v":0},{"$f":"VLOOKUP(B24,'[1]LOC FINAL with new Themes'!A:M,13,0)","v":"M "}]
[null,null,"Protractions","Protractions","Cadastre","DOI-MMS"]
["Surface Estate","Surface Estate",null,"Surface Estate","Cadastre","DOI-BLM","Kim Burns","kim_m_burns@blm.gov",{"$f":"VLOOKUP(B26,'[1]LOC FINAL with new Themes'!A:M,7,0)","v":"lands administered by BLM; other agencies have own system; ownership of lands;  Tim Spisak, division chief; not archived, there is a backup; Denver office handles"},{"$f":"VLOOKUP(B26,'[1]LOC FINAL with new Themes'!A:M,8,0)","v":0},{"$f":"VLOOKUP(B26,'[1]LOC FINAL with new Themes'!A:M,9,0)","v":0},{"$f":"VLOOKUP(B26,'[1]LOC FINAL with new Themes'!A:M,10,0)","v":0},{"$f":"VLOOKUP(B26,'[1]LOC FINAL with new Themes'!A:M,11,0)","v":0},{"$f":"VLOOKUP(B26,'[1]LOC FINAL with new Themes'!A:M,12,0)","v":0},{"$f":"VLOOKUP(B26,'[1]LOC FINAL with new Themes'!A:M,13,0)","v":0}]
["U.S. Official Cadastral Survey Records","U.S. Official Cadastral Survey Records","U.S. Official Cadastral Survey Records","U.S. Official Cadastral Survey Records","Cadastre","DOI-BLM","Don Buhler","don_buhler@blm.gov",{"$f":"VLOOKUP(B27,'[1]LOC FINAL with new Themes'!A:M,7,0)","v":"every agency has its own database; multiple data sets; standard being advanced and put into practice; federal interest is managed with BLM; state and local are authoritative sets for other lands; state offices are scanning these records (survey plats and field notes); CDI (conveyence cards)"},{"$f":"VLOOKUP(B27,'[1]LOC FINAL with new Themes'!A:M,8,0)","v":0},{"$f":"VLOOKUP(B27,'[1]LOC FINAL with new Themes'!A:M,9,0)","v":0},{"$f":"VLOOKUP(B27,'[1]LOC FINAL with new Themes'!A:M,10,0)","v":0},{"$f":"VLOOKUP(B27,'[1]LOC FINAL with new Themes'!A:M,11,0)","v":0},{"$f":"VLOOKUP(B27,'[1]LOC FINAL with new Themes'!A:M,12,0)","v":0},{"$f":"VLOOKUP(B27,'[1]LOC FINAL with new Themes'!A:M,13,0)","v":"M "}]
["U.S. Public Land Survey System","U.S. Public Land Survey System","U.S. Public Land Survey System","U.S. Public Land Survey System","Cadastre","DOI-BLM","Don Buhler","don_buhler@blm.gov",{"$f":"VLOOKUP(B28,'[1]LOC FINAL with new Themes'!A:M,7,0)","v":"only federal agency that administers the PLSS; trying to get it to be logically one data set with different regions. (working copies for nine states in West); keep historical record in data base; schema 2 is the version to look at for archiving some time March 2012"},{"$f":"VLOOKUP(B28,'[1]LOC FINAL with new Themes'!A:M,8,0)","v":0},{"$f":"VLOOKUP(B28,'[1]LOC FINAL with new Themes'!A:M,9,0)","v":0},{"$f":"VLOOKUP(B28,'[1]LOC FINAL with new Themes'!A:M,10,0)","v":0},{"$f":"VLOOKUP(B28,'[1]LOC FINAL with new Themes'!A:M,11,0)","v":0},{"$f":"VLOOKUP(B28,'[1]LOC FINAL with new Themes'!A:M,12,0)","v":0},{"$f":"VLOOKUP(B28,'[1]LOC FINAL with new Themes'!A:M,13,0)","v":"P"}]
[null,null,null,"Coastal National Parks","Cadastre"]
[null,null,null,"Coastal National Wildlife Refuges","Cadastre"]
[null,null,null,"Coastal Indian Lands","Cadastre"]
[null,null,null,"Outer Continental Shelf Lease Blocks","Cadastre"]
[null,null,null,"BOEM Active Oil and Gas Leases","Cadastre"]
[null,null,null,{"$f":"SUBTOTAL(3,D17:D28)","v":12},"Cadastre Count"]
["Blended Sea Surface Temperature","Blended Sea Surface Temperature","Blended Sea Surface Temperature",{"$f":"IF(C35=0,B35,C35)","v":"Blended Sea Surface Temperature"},"Climate and Weather ","DOC-NOAA","Viva Banzon","Viva.Banzon@noaa.gov",{"$f":"VLOOKUP(B35,'[1]LOC FINAL with new Themes'!A:M,7,0)","v":0},{"$f":"VLOOKUP(B35,'[1]LOC FINAL with new Themes'!A:M,8,0)","v":0},{"$f":"VLOOKUP(B35,'[1]LOC FINAL with new Themes'!A:M,9,0)","v":0},{"$f":"VLOOKUP(B35,'[1]LOC FINAL with new Themes'!A:M,10,0)","v":0},{"$f":"VLOOKUP(B35,'[1]LOC FINAL with new Themes'!A:M,11,0)","v":0},{"$f":"VLOOKUP(B35,'[1]LOC FINAL with new Themes'!A:M,12,0)","v":0},{"$f":"VLOOKUP(B35,'[1]LOC FINAL with new Themes'!A:M,13,0)","v":0}]
["Geostationary Operational Environmental Satellite (GOES) data (NCDC)","Geostationary Operational Environmental Satellite (GOES) data (NCDC)","Geostationary Operational Environmental Satellite (GOES) data (NCDC)","Geostationary Operational Environmental Satellite (GOES) data (NCDC)","Climate and Weather ","DOC-NOAA","Nancy Ritchey","Nancy.Ritchey@noaa.gov",{"$f":"VLOOKUP(B36,'[1]LOC FINAL with new Themes'!A:M,7,0)","v":"Define 'data set'.  Each spacecraft continuously produces a data stream.  There are multiple sets and the total going back to the late 70s or early 80s numbers in the millions"},{"$f":"VLOOKUP(B36,'[1]LOC FINAL with new Themes'!A:M,8,0)","v":"Yes"},{"$f":"VLOOKUP(B36,'[1]LOC FINAL with new Themes'!A:M,9,0)","v":"Yes"},{"$f":"VLOOKUP(B36,'[1]LOC FINAL with new Themes'!A:M,10,0)","v":"Continuously"},{"$f":"VLOOKUP(B36,'[1]LOC FINAL with new Themes'!A:M,11,0)","v":"There are two active archive centers for these data; one here in Asheville, NC and one in Boulder, CO.  These data go back to the late 70s and all data are on line wither on disc or robotic tape storage"},{"$f":"VLOOKUP(B36,'[1]LOC FINAL with new Themes'!A:M,12,0)","v":"Again, define your terms.  For examples see www.class.noaa.gov - Raw data are listed by satellite (GOES or POES) and then be instrument.  Geophysical products are listed by product name."},{"$f":"VLOOKUP(B36,'[1]LOC FINAL with new Themes'!A:M,13,0)","v":0}]
[null,null,"MODIS-based Atmospheric Products","MODIS-based Atmospheric Products","Climate and Weather ","USDA -FS (Along with USGS)"]
[null,null,"National Doplar Radar Data (NEXRAD)","National Doplar Radar Data (NEXRAD)","Climate and Weather ","DOC-NOAA","Steve DelGreco","stephen.a.delgreco"]
[null,null,"NOAA National Weather Service GIS Data",{"$f":"IF(C39=0,B39,C39)","v":"NOAA National Weather Service GIS Data"},"Climate and Weather ","DOC-NOAA"]
["Parameter-elevation Regressions on Independent Slopes Model (PRISM) Data Sets","Parameter-elevation Regressions on Independent Slopes Model (PRISM) Datasets","Parameter-elevation Regressions on Independent Slopes Model (PRISM) Datasets",{"$f":"IF(C40=0,B40,C40)","v":"Parameter-elevation Regressions on Independent Slopes Model (PRISM) Datasets"},"Climate and Weather ","USDA-NRCS","Jan Curtis","jan.curtis@por.usda.gov",{"$f":"VLOOKUP(B40,'[1]LOC FINAL with new Themes'!A:M,7,0)","v":"info provided via http://www.prism.oregonstate.edu/ and \nhttp://www.nrcs.usda.gov/wps/portal/nrcs/main/?ss=16&navtype=SubNavigation&cid=null&navid=850130000000000&pnavid=850000000000000&position=SubNavigation&ttype=main&pname=USDA%2520NRCS%2520-%2520Natural%2520Resources%2520Conservation%2520Service\n"},{"$f":"VLOOKUP(B40,'[1]LOC FINAL with new Themes'!A:M,8,0)","v":0},{"$f":"VLOOKUP(B40,'[1]LOC FINAL with new Themes'!A:M,9,0)","v":0},{"$f":"VLOOKUP(B40,'[1]LOC FINAL with new Themes'!A:M,10,0)","v":0},{"$f":"VLOOKUP(B40,'[1]LOC FINAL with new Themes'!A:M,11,0)","v":0},{"$f":"VLOOKUP(B40,'[1]LOC FINAL with new Themes'!A:M,12,0)","v":0},{"$f":"VLOOKUP(B40,'[1]LOC FINAL with new Themes'!A:M,13,0)","v":"M"}]
["Polar Operational Environmental Satellite (POES) data (NCDC)","Polar Operational Environmental Satellite (POES) data","Polar Operational Environmental Satellite (POES) data",{"$f":"IF(C41=0,B41,C41)","v":"Polar Operational Environmental Satellite (POES) data"},"Climate and Weather ","DOC-NOAA","John Bates","john.j.bates@noaa.gov",{"$f":"VLOOKUP(B41,'[1]LOC FINAL with new Themes'!A:M,7,0)","v":0},{"$f":"VLOOKUP(B41,'[1]LOC FINAL with new Themes'!A:M,8,0)","v":0},{"$f":"VLOOKUP(B41,'[1]LOC FINAL with new Themes'!A:M,9,0)","v":0},{"$f":"VLOOKUP(B41,'[1]LOC FINAL with new Themes'!A:M,10,0)","v":0},{"$f":"VLOOKUP(B41,'[1]LOC FINAL with new Themes'!A:M,11,0)","v":0},{"$f":"VLOOKUP(B41,'[1]LOC FINAL with new Themes'!A:M,12,0)","v":0},{"$f":"VLOOKUP(B41,'[1]LOC FINAL with new Themes'!A:M,13,0)","v":0}]
[null,null,null,{"$f":"SUBTOTAL(3,D35:D41)","v":7},"Climate and Weather  Count"]
[null,"5-digit ZIP Code Tabulation Area (Census 2000)","5-digit ZIP Code Tabulation Area (Census 2000)",{"$f":"IF(C43=0,B43,C43)","v":"5-digit ZIP Code Tabulation Area (Census 2000)"},"Cultural & Demographic Statistics ","DOC-Census","Jennifer Holland","Jennifer.L.Holland@census.gov",{"$f":"VLOOKUP(B43,'[1]LOC FINAL with new Themes'!A:M,7,0)","v":0},{"$f":"VLOOKUP(B43,'[1]LOC FINAL with new Themes'!A:M,8,0)","v":0},{"$f":"VLOOKUP(B43,'[1]LOC FINAL with new Themes'!A:M,9,0)","v":0},{"$f":"VLOOKUP(B43,'[1]LOC FINAL with new Themes'!A:M,10,0)","v":0},{"$f":"VLOOKUP(B43,'[1]LOC FINAL with new Themes'!A:M,11,0)","v":0},{"$f":"VLOOKUP(B43,'[1]LOC FINAL with new Themes'!A:M,12,0)","v":0},{"$f":"VLOOKUP(B43,'[1]LOC FINAL with new Themes'!A:M,13,0)","v":0}]
["AIR, ANVSA, Hawaiian Homelands Boundaries","AIR, ANVSA, Hawaiian Homelands Boundaries",null,"AIR, ANVSA, Hawaiian Homelands Boundaries","Cultural & Demographic Statistics ","DOC-Census","Randy Fusaro","randy.j.fusaro@census.gov",{"$f":"VLOOKUP(B44,'[1]LOC FINAL with new Themes'!A:M,7,0)","v":0},{"$f":"VLOOKUP(B44,'[1]LOC FINAL with new Themes'!A:M,8,0)","v":0},{"$f":"VLOOKUP(B44,'[1]LOC FINAL with new Themes'!A:M,9,0)","v":0},{"$f":"VLOOKUP(B44,'[1]LOC FINAL with new Themes'!A:M,10,0)","v":0},{"$f":"VLOOKUP(B44,'[1]LOC FINAL with new Themes'!A:M,11,0)","v":0},{"$f":"VLOOKUP(B44,'[1]LOC FINAL with new Themes'!A:M,12,0)","v":0},{"$f":"VLOOKUP(B44,'[1]LOC FINAL with new Themes'!A:M,13,0)","v":0}]
[null,"All Lines (2010 Census)","All Lines (2010 Census)","All Lines (2010 Census)","Cultural & Demographic Statistics ","DOC-Census","Jennifer Holland","Jennifer.L.Holland@census.gov",{"$f":"VLOOKUP(B45,'[1]LOC FINAL with new Themes'!A:M,7,0)","v":0},{"$f":"VLOOKUP(B45,'[1]LOC FINAL with new Themes'!A:M,8,0)","v":0},{"$f":"VLOOKUP(B45,'[1]LOC FINAL with new Themes'!A:M,9,0)","v":0},{"$f":"VLOOKUP(B45,'[1]LOC FINAL with new Themes'!A:M,10,0)","v":0},{"$f":"VLOOKUP(B45,'[1]LOC FINAL with new Themes'!A:M,11,0)","v":0},{"$f":"VLOOKUP(B45,'[1]LOC FINAL with new Themes'!A:M,12,0)","v":0},{"$f":"VLOOKUP(B45,'[1]LOC FINAL with new Themes'!A:M,13,0)","v":0}]
[null,"ANSI codes for  metro/micropolitan areas","ANSI codes for  metro/micropolitan areas","ANSI codes for  metro/micropolitan areas","Cultural & Demographic Statistics ","DOC-Census","Jennifer Holland","Jennifer.L.Holland@census.gov",{"$f":"VLOOKUP(B46,'[1]LOC FINAL with new Themes'!A:M,7,0)","v":0},{"$f":"VLOOKUP(B46,'[1]LOC FINAL with new Themes'!A:M,8,0)","v":0},{"$f":"VLOOKUP(B46,'[1]LOC FINAL with new Themes'!A:M,9,0)","v":0},{"$f":"VLOOKUP(B46,'[1]LOC FINAL with new Themes'!A:M,10,0)","v":0},{"$f":"VLOOKUP(B46,'[1]LOC FINAL with new Themes'!A:M,11,0)","v":0},{"$f":"VLOOKUP(B46,'[1]LOC FINAL with new Themes'!A:M,12,0)","v":0},{"$f":"VLOOKUP(B46,'[1]LOC FINAL with new Themes'!A:M,13,0)","v":0}]
[null,"ANSI codes for congressional districts","ANSI codes for congressional districts","ANSI codes for congressional districts","Cultural & Demographic Statistics ","DOC-Census","Jennifer Holland","Jennifer.L.Holland@census.gov",{"$f":"VLOOKUP(B47,'[1]LOC FINAL with new Themes'!A:M,7,0)","v":0},{"$f":"VLOOKUP(B47,'[1]LOC FINAL with new Themes'!A:M,8,0)","v":0},{"$f":"VLOOKUP(B47,'[1]LOC FINAL with new Themes'!A:M,9,0)","v":0},{"$f":"VLOOKUP(B47,'[1]LOC FINAL with new Themes'!A:M,10,0)","v":0},{"$f":"VLOOKUP(B47,'[1]LOC FINAL with new Themes'!A:M,11,0)","v":0},{"$f":"VLOOKUP(B47,'[1]LOC FINAL with new Themes'!A:M,12,0)","v":0},{"$f":"VLOOKUP(B47,'[1]LOC FINAL with new Themes'!A:M,13,0)","v":0}]
[null,"ANSI codes for counties","ANSI codes for counties","ANSI codes for counties","Cultural & Demographic Statistics ","DOC-Census","Jennifer Holland","Jennifer.L.Holland@census.gov",{"$f":"VLOOKUP(B48,'[1]LOC FINAL with new Themes'!A:M,7,0)","v":0},{"$f":"VLOOKUP(B48,'[1]LOC FINAL with new Themes'!A:M,8,0)","v":0},{"$f":"VLOOKUP(B48,'[1]LOC FINAL with new Themes'!A:M,9,0)","v":0},{"$f":"VLOOKUP(B48,'[1]LOC FINAL with new Themes'!A:M,10,0)","v":0},{"$f":"VLOOKUP(B48,'[1]LOC FINAL with new Themes'!A:M,11,0)","v":0},{"$f":"VLOOKUP(B48,'[1]LOC FINAL with new Themes'!A:M,12,0)","v":0},{"$f":"VLOOKUP(B48,'[1]LOC FINAL with new Themes'!A:M,13,0)","v":0}]
[null,"ANSI codes for states","ANSI codes for states","ANSI codes for states","Cultural & Demographic Statistics ","DOC-Census","Jennifer Holland","Jennifer.L.Holland@census.gov",{"$f":"VLOOKUP(B49,'[1]LOC FINAL with new Themes'!A:M,7,0)","v":0},{"$f":"VLOOKUP(B49,'[1]LOC FINAL with new Themes'!A:M,8,0)","v":0},{"$f":"VLOOKUP(B49,'[1]LOC FINAL with new Themes'!A:M,9,0)","v":0},{"$f":"VLOOKUP(B49,'[1]LOC FINAL with new Themes'!A:M,10,0)","v":0},{"$f":"VLOOKUP(B49,'[1]LOC FINAL with new Themes'!A:M,11,0)","v":0},{"$f":"VLOOKUP(B49,'[1]LOC FINAL with new Themes'!A:M,12,0)","v":0},{"$f":"VLOOKUP(B49,'[1]LOC FINAL with new Themes'!A:M,13,0)","v":0}]
[null,"Block (2010 Census)","Block (2010 Census)","Block (2010 Census)","Cultural & Demographic Statistics ","DOC-Census","Jennifer Holland","Jennifer.L.Holland@census.gov",{"$f":"VLOOKUP(B50,'[1]LOC FINAL with new Themes'!A:M,7,0)","v":0},{"$f":"VLOOKUP(B50,'[1]LOC FINAL with new Themes'!A:M,8,0)","v":0},{"$f":"VLOOKUP(B50,'[1]LOC FINAL with new Themes'!A:M,9,0)","v":0},{"$f":"VLOOKUP(B50,'[1]LOC FINAL with new Themes'!A:M,10,0)","v":0},{"$f":"VLOOKUP(B50,'[1]LOC FINAL with new Themes'!A:M,11,0)","v":0},{"$f":"VLOOKUP(B50,'[1]LOC FINAL with new Themes'!A:M,12,0)","v":0},{"$f":"VLOOKUP(B50,'[1]LOC FINAL with new Themes'!A:M,13,0)","v":0}]
[null,"Block (Census 2000)","Block (Census 2000)","Block (Census 2000)","Cultural & Demographic Statistics ","DOC-Census","Jennifer Holland","Jennifer.L.Holland@census.gov",{"$f":"VLOOKUP(B51,'[1]LOC FINAL with new Themes'!A:M,7,0)","v":0},{"$f":"VLOOKUP(B51,'[1]LOC FINAL with new Themes'!A:M,8,0)","v":0},{"$f":"VLOOKUP(B51,'[1]LOC FINAL with new Themes'!A:M,9,0)","v":0},{"$f":"VLOOKUP(B51,'[1]LOC FINAL with new Themes'!A:M,10,0)","v":0},{"$f":"VLOOKUP(B51,'[1]LOC FINAL with new Themes'!A:M,11,0)","v":0},{"$f":"VLOOKUP(B51,'[1]LOC FINAL with new Themes'!A:M,12,0)","v":0},{"$f":"VLOOKUP(B51,'[1]LOC FINAL with new Themes'!A:M,13,0)","v":0}]
[null,"Block Group (Census 2000)","Block Group (Census 2000)","Block Group (Census 2000)","Cultural & Demographic Statistics ","DOC-Census","Jennifer Holland","Jennifer.L.Holland@census.gov",{"$f":"VLOOKUP(B52,'[1]LOC FINAL with new Themes'!A:M,7,0)","v":0},{"$f":"VLOOKUP(B52,'[1]LOC FINAL with new Themes'!A:M,8,0)","v":0},{"$f":"VLOOKUP(B52,'[1]LOC FINAL with new Themes'!A:M,9,0)","v":0},{"$f":"VLOOKUP(B52,'[1]LOC FINAL with new Themes'!A:M,10,0)","v":0},{"$f":"VLOOKUP(B52,'[1]LOC FINAL with new Themes'!A:M,11,0)","v":0},{"$f":"VLOOKUP(B52,'[1]LOC FINAL with new Themes'!A:M,12,0)","v":0},{"$f":"VLOOKUP(B52,'[1]LOC FINAL with new Themes'!A:M,13,0)","v":0}]
[null,"Block Group (Census 2010)","Block Group (Census 2010)","Block Group (Census 2010)","Cultural & Demographic Statistics ","DOC-Census","Jennifer Holland","Jennifer.L.Holland@census.gov",{"$f":"VLOOKUP(B53,'[1]LOC FINAL with new Themes'!A:M,7,0)","v":0},{"$f":"VLOOKUP(B53,'[1]LOC FINAL with new Themes'!A:M,8,0)","v":0},{"$f":"VLOOKUP(B53,'[1]LOC FINAL with new Themes'!A:M,9,0)","v":0},{"$f":"VLOOKUP(B53,'[1]LOC FINAL with new Themes'!A:M,10,0)","v":0},{"$f":"VLOOKUP(B53,'[1]LOC FINAL with new Themes'!A:M,11,0)","v":0},{"$f":"VLOOKUP(B53,'[1]LOC FINAL with new Themes'!A:M,12,0)","v":0},{"$f":"VLOOKUP(B53,'[1]LOC FINAL with new Themes'!A:M,13,0)","v":0}]
[null,"Census 2000 FIPS 55 Codes","Census 2000 FIPS 55 Codes","Census 2000 FIPS 55 Codes","Cultural & Demographic Statistics ","DOC-Census","Jennifer Holland","Jennifer.L.Holland@census.gov",{"$f":"VLOOKUP(B54,'[1]LOC FINAL with new Themes'!A:M,7,0)","v":0},{"$f":"VLOOKUP(B54,'[1]LOC FINAL with new Themes'!A:M,8,0)","v":0},{"$f":"VLOOKUP(B54,'[1]LOC FINAL with new Themes'!A:M,9,0)","v":0},{"$f":"VLOOKUP(B54,'[1]LOC FINAL with new Themes'!A:M,10,0)","v":0},{"$f":"VLOOKUP(B54,'[1]LOC FINAL with new Themes'!A:M,11,0)","v":0},{"$f":"VLOOKUP(B54,'[1]LOC FINAL with new Themes'!A:M,12,0)","v":0},{"$f":"VLOOKUP(B54,'[1]LOC FINAL with new Themes'!A:M,13,0)","v":0}]
[null,"Census Tract (2010 Census)","Census Tract (2010 Census)","Census Tract (2010 Census)","Cultural & Demographic Statistics ","DOC-Census","Jennifer Holland","Jennifer.L.Holland@census.gov",{"$f":"VLOOKUP(B55,'[1]LOC FINAL with new Themes'!A:M,7,0)","v":0},{"$f":"VLOOKUP(B55,'[1]LOC FINAL with new Themes'!A:M,8,0)","v":0},{"$f":"VLOOKUP(B55,'[1]LOC FINAL with new Themes'!A:M,9,0)","v":0},{"$f":"VLOOKUP(B55,'[1]LOC FINAL with new Themes'!A:M,10,0)","v":0},{"$f":"VLOOKUP(B55,'[1]LOC FINAL with new Themes'!A:M,11,0)","v":0},{"$f":"VLOOKUP(B55,'[1]LOC FINAL with new Themes'!A:M,12,0)","v":0},{"$f":"VLOOKUP(B55,'[1]LOC FINAL with new Themes'!A:M,13,0)","v":0}]
[null,"Census Tract (Census 2000)","Census Tract (Census 2000)","Census Tract (Census 2000)","Cultural & Demographic Statistics ","DOC-Census","Jennifer Holland","Jennifer.L.Holland@census.gov",{"$f":"VLOOKUP(B56,'[1]LOC FINAL with new Themes'!A:M,7,0)","v":0},{"$f":"VLOOKUP(B56,'[1]LOC FINAL with new Themes'!A:M,8,0)","v":0},{"$f":"VLOOKUP(B56,'[1]LOC FINAL with new Themes'!A:M,9,0)","v":0},{"$f":"VLOOKUP(B56,'[1]LOC FINAL with new Themes'!A:M,10,0)","v":0},{"$f":"VLOOKUP(B56,'[1]LOC FINAL with new Themes'!A:M,11,0)","v":0},{"$f":"VLOOKUP(B56,'[1]LOC FINAL with new Themes'!A:M,12,0)","v":0},{"$f":"VLOOKUP(B56,'[1]LOC FINAL with new Themes'!A:M,13,0)","v":0}]
[null,"Combined Statistical Area (2010 Census)","Combined Statistical Area (2010 Census)","Combined Statistical Area (2010 Census)","Cultural & Demographic Statistics ","DOC-Census","Jennifer Holland","Jennifer.L.Holland@census.gov",{"$f":"VLOOKUP(B57,'[1]LOC FINAL with new Themes'!A:M,7,0)","v":0},{"$f":"VLOOKUP(B57,'[1]LOC FINAL with new Themes'!A:M,8,0)","v":0},{"$f":"VLOOKUP(B57,'[1]LOC FINAL with new Themes'!A:M,9,0)","v":0},{"$f":"VLOOKUP(B57,'[1]LOC FINAL with new Themes'!A:M,10,0)","v":0},{"$f":"VLOOKUP(B57,'[1]LOC FINAL with new Themes'!A:M,11,0)","v":0},{"$f":"VLOOKUP(B57,'[1]LOC FINAL with new Themes'!A:M,12,0)","v":0},{"$f":"VLOOKUP(B57,'[1]LOC FINAL with new Themes'!A:M,13,0)","v":0}]
[null,"Congressional District Boundaries",null,"Congressional District Boundaries","Cultural & Demographic Statistics ","DOC-Census","Randy Fusaro","randy.j.fusaro@census.gov",{"$f":"VLOOKUP(B58,'[1]LOC FINAL with new Themes'!A:M,7,0)","v":0},{"$f":"VLOOKUP(B58,'[1]LOC FINAL with new Themes'!A:M,8,0)","v":0},{"$f":"VLOOKUP(B58,'[1]LOC FINAL with new Themes'!A:M,9,0)","v":0},{"$f":"VLOOKUP(B58,'[1]LOC FINAL with new Themes'!A:M,10,0)","v":0},{"$f":"VLOOKUP(B58,'[1]LOC FINAL with new Themes'!A:M,11,0)","v":0},{"$f":"VLOOKUP(B58,'[1]LOC FINAL with new Themes'!A:M,12,0)","v":0},{"$f":"VLOOKUP(B58,'[1]LOC FINAL with new Themes'!A:M,13,0)","v":0}]
["County, place, MCD Boundaries","County, place, MCD Boundaries",null,"County, place, MCD Boundaries","Cultural & Demographic Statistics ","DOC-Census","Randy Fusaro","randy.j.fusaro@census.gov",{"$f":"VLOOKUP(B59,'[1]LOC FINAL with new Themes'!A:M,7,0)","v":0},{"$f":"VLOOKUP(B59,'[1]LOC FINAL with new Themes'!A:M,8,0)","v":0},{"$f":"VLOOKUP(B59,'[1]LOC FINAL with new Themes'!A:M,9,0)","v":0},{"$f":"VLOOKUP(B59,'[1]LOC FINAL with new Themes'!A:M,10,0)","v":0},{"$f":"VLOOKUP(B59,'[1]LOC FINAL with new Themes'!A:M,11,0)","v":0},{"$f":"VLOOKUP(B59,'[1]LOC FINAL with new Themes'!A:M,12,0)","v":0},{"$f":"VLOOKUP(B59,'[1]LOC FINAL with new Themes'!A:M,13,0)","v":0}]
[null,"Elementary School District (2010 Census)","Elementary School District (2010 Census)","Elementary School District (2010 Census)","Cultural & Demographic Statistics ","DOC-Census","Jennifer Holland","Jennifer.L.Holland@census.gov",{"$f":"VLOOKUP(B60,'[1]LOC FINAL with new Themes'!A:M,7,0)","v":0},{"$f":"VLOOKUP(B60,'[1]LOC FINAL with new Themes'!A:M,8,0)","v":0},{"$f":"VLOOKUP(B60,'[1]LOC FINAL with new Themes'!A:M,9,0)","v":0},{"$f":"VLOOKUP(B60,'[1]LOC FINAL with new Themes'!A:M,10,0)","v":0},{"$f":"VLOOKUP(B60,'[1]LOC FINAL with new Themes'!A:M,11,0)","v":0},{"$f":"VLOOKUP(B60,'[1]LOC FINAL with new Themes'!A:M,12,0)","v":0},{"$f":"VLOOKUP(B60,'[1]LOC FINAL with new Themes'!A:M,13,0)","v":0}]
[null,"Elementary School District (Census 2000)","Elementary School District (Census 2000)","Elementary School District (Census 2000)","Cultural & Demographic Statistics ","DOC-Census","Jennifer Holland","Jennifer.L.Holland@census.gov",{"$f":"VLOOKUP(B61,'[1]LOC FINAL with new Themes'!A:M,7,0)","v":0},{"$f":"VLOOKUP(B61,'[1]LOC FINAL with new Themes'!A:M,8,0)","v":0},{"$f":"VLOOKUP(B61,'[1]LOC FINAL with new Themes'!A:M,9,0)","v":0},{"$f":"VLOOKUP(B61,'[1]LOC FINAL with new Themes'!A:M,10,0)","v":0},{"$f":"VLOOKUP(B61,'[1]LOC FINAL with new Themes'!A:M,11,0)","v":0},{"$f":"VLOOKUP(B61,'[1]LOC FINAL with new Themes'!A:M,12,0)","v":0},{"$f":"VLOOKUP(B61,'[1]LOC FINAL with new Themes'!A:M,13,0)","v":0}]
["FIPS/ANSI codes for states, counties, congressional districts & metro/micropolitan areas","FIPS/ANSI codes for states, counties, congressional districts & metro/micropolitan areas",null,"FIPS/ANSI codes for states, counties, congressional districts & metro/micropolitan areas","Cultural & Demographic Statistics ","DOC-Census","Randy Fusaro","randy.j.fusaro@census.gov",{"$f":"VLOOKUP(B62,'[1]LOC FINAL with new Themes'!A:M,7,0)","v":0},{"$f":"VLOOKUP(B62,'[1]LOC FINAL with new Themes'!A:M,8,0)","v":0},{"$f":"VLOOKUP(B62,'[1]LOC FINAL with new Themes'!A:M,9,0)","v":0},{"$f":"VLOOKUP(B62,'[1]LOC FINAL with new Themes'!A:M,10,0)","v":0},{"$f":"VLOOKUP(B62,'[1]LOC FINAL with new Themes'!A:M,11,0)","v":0},{"$f":"VLOOKUP(B62,'[1]LOC FINAL with new Themes'!A:M,12,0)","v":0},{"$f":"VLOOKUP(B62,'[1]LOC FINAL with new Themes'!A:M,13,0)","v":0}]
["Metropolitan/micropolitan area boundaries","Metropolitan/micropolitan area boundaries",null,"Metropolitan/micropolitan area boundaries","Cultural & Demographic Statistics ","DOC-Census","Randy Fusaro","randy.j.fusaro@census.gov",{"$f":"VLOOKUP(B63,'[1]LOC FINAL with new Themes'!A:M,7,0)","v":0},{"$f":"VLOOKUP(B63,'[1]LOC FINAL with new Themes'!A:M,8,0)","v":0},{"$f":"VLOOKUP(B63,'[1]LOC FINAL with new Themes'!A:M,9,0)","v":0},{"$f":"VLOOKUP(B63,'[1]LOC FINAL with new Themes'!A:M,10,0)","v":0},{"$f":"VLOOKUP(B63,'[1]LOC FINAL with new Themes'!A:M,11,0)","v":0},{"$f":"VLOOKUP(B63,'[1]LOC FINAL with new Themes'!A:M,12,0)","v":0},{"$f":"VLOOKUP(B63,'[1]LOC FINAL with new Themes'!A:M,13,0)","v":0}]
[null,"Metropolitan/micropolitan Statistical Area (2010 Census)","Metropolitan/micropolitan Statistical Area (2010 Census)","Metropolitan/micropolitan Statistical Area (2010 Census)","Cultural & Demographic Statistics ","DOC-Census","Jennifer Holland","Jennifer.L.Holland@census.gov",{"$f":"VLOOKUP(B64,'[1]LOC FINAL with new Themes'!A:M,7,0)","v":0},{"$f":"VLOOKUP(B64,'[1]LOC FINAL with new Themes'!A:M,8,0)","v":0},{"$f":"VLOOKUP(B64,'[1]LOC FINAL with new Themes'!A:M,9,0)","v":0},{"$f":"VLOOKUP(B64,'[1]LOC FINAL with new Themes'!A:M,10,0)","v":0},{"$f":"VLOOKUP(B64,'[1]LOC FINAL with new Themes'!A:M,11,0)","v":0},{"$f":"VLOOKUP(B64,'[1]LOC FINAL with new Themes'!A:M,12,0)","v":0},{"$f":"VLOOKUP(B64,'[1]LOC FINAL with new Themes'!A:M,13,0)","v":0}]
["National Center for Health Statistics (Atlas of US Mortality)","National Center for Health Statistics (Atlas of US Mortality)",null,"National Center for Health Statistics (Atlas of US Mortality)","Cultural & Demographic Statistics ","HHS","Gary Anderson","gary.anderson@hhs.gov",{"$f":"VLOOKUP(B65,'[1]LOC FINAL with new Themes'!A:M,7,0)","v":0},{"$f":"VLOOKUP(B65,'[1]LOC FINAL with new Themes'!A:M,8,0)","v":0},{"$f":"VLOOKUP(B65,'[1]LOC FINAL with new Themes'!A:M,9,0)","v":0},{"$f":"VLOOKUP(B65,'[1]LOC FINAL with new Themes'!A:M,10,0)","v":0},{"$f":"VLOOKUP(B65,'[1]LOC FINAL with new Themes'!A:M,11,0)","v":0},{"$f":"VLOOKUP(B65,'[1]LOC FINAL with new Themes'!A:M,12,0)","v":0},{"$f":"VLOOKUP(B65,'[1]LOC FINAL with new Themes'!A:M,13,0)","v":0}]
[null,null,"Oklahoma Tribal Joint Use Areas","Oklahoma Tribal Joint Use Areas","Cultural & Demographic Statistics ","DOC-Census"]
[null,null,"Oklahoma Tribal Statistical Areas","Oklahoma Tribal Statistical Areas","Cultural & Demographic Statistics ","DOC-Census"]
[null,"Public Use Microdata Area (Census 2000)","Public Use Microdata Area (Census 2000)","Public Use Microdata Area (Census 2000)","Cultural & Demographic Statistics ","DOC-Census","Jennifer Holland","Jennifer.L.Holland@census.gov",{"$f":"VLOOKUP(B68,'[1]LOC FINAL with new Themes'!A:M,7,0)","v":0},{"$f":"VLOOKUP(B68,'[1]LOC FINAL with new Themes'!A:M,8,0)","v":0},{"$f":"VLOOKUP(B68,'[1]LOC FINAL with new Themes'!A:M,9,0)","v":0},{"$f":"VLOOKUP(B68,'[1]LOC FINAL with new Themes'!A:M,10,0)","v":0},{"$f":"VLOOKUP(B68,'[1]LOC FINAL with new Themes'!A:M,11,0)","v":0},{"$f":"VLOOKUP(B68,'[1]LOC FINAL with new Themes'!A:M,12,0)","v":0},{"$f":"VLOOKUP(B68,'[1]LOC FINAL with new Themes'!A:M,13,0)","v":0}]
["School District Boundaries","School District Boundaries",null,"School District Boundaries","Cultural & Demographic Statistics ","DOC-Census","Randy Fusaro","randy.j.fusaro@census.gov",{"$f":"VLOOKUP(B69,'[1]LOC FINAL with new Themes'!A:M,7,0)","v":0},{"$f":"VLOOKUP(B69,'[1]LOC FINAL with new Themes'!A:M,8,0)","v":0},{"$f":"VLOOKUP(B69,'[1]LOC FINAL with new Themes'!A:M,9,0)","v":0},{"$f":"VLOOKUP(B69,'[1]LOC FINAL with new Themes'!A:M,10,0)","v":0},{"$f":"VLOOKUP(B69,'[1]LOC FINAL with new Themes'!A:M,11,0)","v":0},{"$f":"VLOOKUP(B69,'[1]LOC FINAL with new Themes'!A:M,12,0)","v":0},{"$f":"VLOOKUP(B69,'[1]LOC FINAL with new Themes'!A:M,13,0)","v":0}]
[null,"Secondary School District (2010 Census)","Secondary School District (2010 Census)","Secondary School District (2010 Census)","Cultural & Demographic Statistics ","DOC-Census","Jennifer Holland","Jennifer.L.Holland@census.gov",{"$f":"VLOOKUP(B70,'[1]LOC FINAL with new Themes'!A:M,7,0)","v":0},{"$f":"VLOOKUP(B70,'[1]LOC FINAL with new Themes'!A:M,8,0)","v":0},{"$f":"VLOOKUP(B70,'[1]LOC FINAL with new Themes'!A:M,9,0)","v":0},{"$f":"VLOOKUP(B70,'[1]LOC FINAL with new Themes'!A:M,10,0)","v":0},{"$f":"VLOOKUP(B70,'[1]LOC FINAL with new Themes'!A:M,11,0)","v":0},{"$f":"VLOOKUP(B70,'[1]LOC FINAL with new Themes'!A:M,12,0)","v":0},{"$f":"VLOOKUP(B70,'[1]LOC FINAL with new Themes'!A:M,13,0)","v":0}]
[null,"Secondary School District (Census 2000)","Secondary School District (Census 2000)","Secondary School District (Census 2000)","Cultural & Demographic Statistics ","DOC-Census","Jennifer Holland","Jennifer.L.Holland@census.gov",{"$f":"VLOOKUP(B71,'[1]LOC FINAL with new Themes'!A:M,7,0)","v":0},{"$f":"VLOOKUP(B71,'[1]LOC FINAL with new Themes'!A:M,8,0)","v":0},{"$f":"VLOOKUP(B71,'[1]LOC FINAL with new Themes'!A:M,9,0)","v":0},{"$f":"VLOOKUP(B71,'[1]LOC FINAL with new Themes'!A:M,10,0)","v":0},{"$f":"VLOOKUP(B71,'[1]LOC FINAL with new Themes'!A:M,11,0)","v":0},{"$f":"VLOOKUP(B71,'[1]LOC FINAL with new Themes'!A:M,12,0)","v":0},{"$f":"VLOOKUP(B71,'[1]LOC FINAL with new Themes'!A:M,13,0)","v":0}]
["State (+ Territories) Boundaries","State (+ Territories) Boundaries",null,"State (+ Territories) Boundaries","Cultural & Demographic Statistics ","DOC-Census","Randy Fusaro","randy.j.fusaro@census.gov",{"$f":"VLOOKUP(B72,'[1]LOC FINAL with new Themes'!A:M,7,0)","v":0},{"$f":"VLOOKUP(B72,'[1]LOC FINAL with new Themes'!A:M,8,0)","v":0},{"$f":"VLOOKUP(B72,'[1]LOC FINAL with new Themes'!A:M,9,0)","v":0},{"$f":"VLOOKUP(B72,'[1]LOC FINAL with new Themes'!A:M,10,0)","v":0},{"$f":"VLOOKUP(B72,'[1]LOC FINAL with new Themes'!A:M,11,0)","v":0},{"$f":"VLOOKUP(B72,'[1]LOC FINAL with new Themes'!A:M,12,0)","v":0},{"$f":"VLOOKUP(B72,'[1]LOC FINAL with new Themes'!A:M,13,0)","v":0}]
["Statistical Area Boundaries (tracts, blocks, UAs, CDPs, etc)","Statistical Area Boundaries (tracts, blocks, UAs, CDPs, etc)",null,"Statistical Area Boundaries (tracts, blocks, UAs, CDPs, etc)","Cultural & Demographic Statistics ","DOC-Census","Randy Fusaro","randy.j.fusaro@census.gov",{"$f":"VLOOKUP(B73,'[1]LOC FINAL with new Themes'!A:M,7,0)","v":0},{"$f":"VLOOKUP(B73,'[1]LOC FINAL with new Themes'!A:M,8,0)","v":0},{"$f":"VLOOKUP(B73,'[1]LOC FINAL with new Themes'!A:M,9,0)","v":0},{"$f":"VLOOKUP(B73,'[1]LOC FINAL with new Themes'!A:M,10,0)","v":0},{"$f":"VLOOKUP(B73,'[1]LOC FINAL with new Themes'!A:M,11,0)","v":0},{"$f":"VLOOKUP(B73,'[1]LOC FINAL with new Themes'!A:M,12,0)","v":0},{"$f":"VLOOKUP(B73,'[1]LOC FINAL with new Themes'!A:M,13,0)","v":0}]
[null,"Super Public Use Microdata Area (Census 2000)","Super Public Use Microdata Area (Census 2000)","Super Public Use Microdata Area (Census 2000)","Cultural & Demographic Statistics ","DOC-Census","Jennifer Holland","Jennifer.L.Holland@census.gov",{"$f":"VLOOKUP(B74,'[1]LOC FINAL with new Themes'!A:M,7,0)","v":0},{"$f":"VLOOKUP(B74,'[1]LOC FINAL with new Themes'!A:M,8,0)","v":0},{"$f":"VLOOKUP(B74,'[1]LOC FINAL with new Themes'!A:M,9,0)","v":0},{"$f":"VLOOKUP(B74,'[1]LOC FINAL with new Themes'!A:M,10,0)","v":0},{"$f":"VLOOKUP(B74,'[1]LOC FINAL with new Themes'!A:M,11,0)","v":0},{"$f":"VLOOKUP(B74,'[1]LOC FINAL with new Themes'!A:M,12,0)","v":0},{"$f":"VLOOKUP(B74,'[1]LOC FINAL with new Themes'!A:M,13,0)","v":0}]
["TIGER* (many statistical boundaries)","TIGER (many statistical boundaries)",null,"TIGER (many statistical boundaries)","Cultural & Demographic Statistics ","DOC-Census","Randy Fusaro","randy.j.fusaro@census.gov",{"$f":"VLOOKUP(B75,'[1]LOC FINAL with new Themes'!A:M,7,0)","v":0},{"$f":"VLOOKUP(B75,'[1]LOC FINAL with new Themes'!A:M,8,0)","v":0},{"$f":"VLOOKUP(B75,'[1]LOC FINAL with new Themes'!A:M,9,0)","v":0},{"$f":"VLOOKUP(B75,'[1]LOC FINAL with new Themes'!A:M,10,0)","v":0},{"$f":"VLOOKUP(B75,'[1]LOC FINAL with new Themes'!A:M,11,0)","v":0},{"$f":"VLOOKUP(B75,'[1]LOC FINAL with new Themes'!A:M,12,0)","v":0},{"$f":"VLOOKUP(B75,'[1]LOC FINAL with new Themes'!A:M,13,0)","v":0}]
[null,"Topological Faces (2010 Census)","Topological Faces (2010 Census)","Topological Faces (2010 Census)","Cultural & Demographic Statistics ","DOC-Census","Jennifer Holland","Jennifer.L.Holland@census.gov",{"$f":"VLOOKUP(B76,'[1]LOC FINAL with new Themes'!A:M,7,0)","v":0},{"$f":"VLOOKUP(B76,'[1]LOC FINAL with new Themes'!A:M,8,0)","v":0},{"$f":"VLOOKUP(B76,'[1]LOC FINAL with new Themes'!A:M,9,0)","v":0},{"$f":"VLOOKUP(B76,'[1]LOC FINAL with new Themes'!A:M,10,0)","v":0},{"$f":"VLOOKUP(B76,'[1]LOC FINAL with new Themes'!A:M,11,0)","v":0},{"$f":"VLOOKUP(B76,'[1]LOC FINAL with new Themes'!A:M,12,0)","v":0},{"$f":"VLOOKUP(B76,'[1]LOC FINAL with new Themes'!A:M,13,0)","v":0}]
[null,"Unified School District (2010 Census)","Unified School District (2010 Census)","Unified School District (2010 Census)","Cultural & Demographic Statistics ","DOC-Census","Jennifer Holland","Jennifer.L.Holland@census.gov",{"$f":"VLOOKUP(B77,'[1]LOC FINAL with new Themes'!A:M,7,0)","v":0},{"$f":"VLOOKUP(B77,'[1]LOC FINAL with new Themes'!A:M,8,0)","v":0},{"$f":"VLOOKUP(B77,'[1]LOC FINAL with new Themes'!A:M,9,0)","v":0},{"$f":"VLOOKUP(B77,'[1]LOC FINAL with new Themes'!A:M,10,0)","v":0},{"$f":"VLOOKUP(B77,'[1]LOC FINAL with new Themes'!A:M,11,0)","v":0},{"$f":"VLOOKUP(B77,'[1]LOC FINAL with new Themes'!A:M,12,0)","v":0},{"$f":"VLOOKUP(B77,'[1]LOC FINAL with new Themes'!A:M,13,0)","v":0}]
[null,"Unified School District (Census 2000)","Unified School District (Census 2000)","Unified School District (Census 2000)","Cultural & Demographic Statistics ","DOC-Census","Jennifer Holland","Jennifer.L.Holland@census.gov",{"$f":"VLOOKUP(B78,'[1]LOC FINAL with new Themes'!A:M,7,0)","v":0},{"$f":"VLOOKUP(B78,'[1]LOC FINAL with new Themes'!A:M,8,0)","v":0},{"$f":"VLOOKUP(B78,'[1]LOC FINAL with new Themes'!A:M,9,0)","v":0},{"$f":"VLOOKUP(B78,'[1]LOC FINAL with new Themes'!A:M,10,0)","v":0},{"$f":"VLOOKUP(B78,'[1]LOC FINAL with new Themes'!A:M,11,0)","v":0},{"$f":"VLOOKUP(B78,'[1]LOC FINAL with new Themes'!A:M,12,0)","v":0},{"$f":"VLOOKUP(B78,'[1]LOC FINAL with new Themes'!A:M,13,0)","v":0}]
[null,"Urban Growth Area (2010 Census)","Urban Growth Area (2010 Census)","Urban Growth Area (2010 Census)","Cultural & Demographic Statistics ","DOC-Census","Jennifer Holland","Jennifer.L.Holland@census.gov",{"$f":"VLOOKUP(B79,'[1]LOC FINAL with new Themes'!A:M,7,0)","v":0},{"$f":"VLOOKUP(B79,'[1]LOC FINAL with new Themes'!A:M,8,0)","v":0},{"$f":"VLOOKUP(B79,'[1]LOC FINAL with new Themes'!A:M,9,0)","v":0},{"$f":"VLOOKUP(B79,'[1]LOC FINAL with new Themes'!A:M,10,0)","v":0},{"$f":"VLOOKUP(B79,'[1]LOC FINAL with new Themes'!A:M,11,0)","v":0},{"$f":"VLOOKUP(B79,'[1]LOC FINAL with new Themes'!A:M,12,0)","v":0},{"$f":"VLOOKUP(B79,'[1]LOC FINAL with new Themes'!A:M,13,0)","v":0}]
[null,"Urban Growth Area (Census 2000)","Urban Growth Area (Census 2000)","Urban Growth Area (Census 2000)","Cultural & Demographic Statistics ","DOC-Census","Jennifer Holland","Jennifer.L.Holland@census.gov",{"$f":"VLOOKUP(B80,'[1]LOC FINAL with new Themes'!A:M,7,0)","v":0},{"$f":"VLOOKUP(B80,'[1]LOC FINAL with new Themes'!A:M,8,0)","v":0},{"$f":"VLOOKUP(B80,'[1]LOC FINAL with new Themes'!A:M,9,0)","v":0},{"$f":"VLOOKUP(B80,'[1]LOC FINAL with new Themes'!A:M,10,0)","v":0},{"$f":"VLOOKUP(B80,'[1]LOC FINAL with new Themes'!A:M,11,0)","v":0},{"$f":"VLOOKUP(B80,'[1]LOC FINAL with new Themes'!A:M,12,0)","v":0},{"$f":"VLOOKUP(B80,'[1]LOC FINAL with new Themes'!A:M,13,0)","v":0}]
[null,"Voting District (2010 Census)","Voting District (2010 Census)","Voting District (2010 Census)","Cultural & Demographic Statistics ","DOC-Census","Jennifer Holland","Jennifer.L.Holland@census.gov",{"$f":"VLOOKUP(B81,'[1]LOC FINAL with new Themes'!A:M,7,0)","v":0},{"$f":"VLOOKUP(B81,'[1]LOC FINAL with new Themes'!A:M,8,0)","v":0},{"$f":"VLOOKUP(B81,'[1]LOC FINAL with new Themes'!A:M,9,0)","v":0},{"$f":"VLOOKUP(B81,'[1]LOC FINAL with new Themes'!A:M,10,0)","v":0},{"$f":"VLOOKUP(B81,'[1]LOC FINAL with new Themes'!A:M,11,0)","v":0},{"$f":"VLOOKUP(B81,'[1]LOC FINAL with new Themes'!A:M,12,0)","v":0},{"$f":"VLOOKUP(B81,'[1]LOC FINAL with new Themes'!A:M,13,0)","v":0}]
[null,"Voting District (Census 2000)","Voting District (Census 2000)","Voting District (Census 2000)","Cultural & Demographic Statistics ","DOC-Census","Jennifer Holland","Jennifer.L.Holland@census.gov",{"$f":"VLOOKUP(B82,'[1]LOC FINAL with new Themes'!A:M,7,0)","v":0},{"$f":"VLOOKUP(B82,'[1]LOC FINAL with new Themes'!A:M,8,0)","v":0},{"$f":"VLOOKUP(B82,'[1]LOC FINAL with new Themes'!A:M,9,0)","v":0},{"$f":"VLOOKUP(B82,'[1]LOC FINAL with new Themes'!A:M,10,0)","v":0},{"$f":"VLOOKUP(B82,'[1]LOC FINAL with new Themes'!A:M,11,0)","v":0},{"$f":"VLOOKUP(B82,'[1]LOC FINAL with new Themes'!A:M,12,0)","v":0},{"$f":"VLOOKUP(B82,'[1]LOC FINAL with new Themes'!A:M,13,0)","v":0}]
["Voting District Boundaries","Voting District Boundaries",null,"Voting District Boundaries","Cultural & Demographic Statistics ","DOC-Census","Randy Fusaro","randy.j.fusaro@census.gov",{"$f":"VLOOKUP(B83,'[1]LOC FINAL with new Themes'!A:M,7,0)","v":0},{"$f":"VLOOKUP(B83,'[1]LOC FINAL with new Themes'!A:M,8,0)","v":0},{"$f":"VLOOKUP(B83,'[1]LOC FINAL with new Themes'!A:M,9,0)","v":0},{"$f":"VLOOKUP(B83,'[1]LOC FINAL with new Themes'!A:M,10,0)","v":0},{"$f":"VLOOKUP(B83,'[1]LOC FINAL with new Themes'!A:M,11,0)","v":0},{"$f":"VLOOKUP(B83,'[1]LOC FINAL with new Themes'!A:M,12,0)","v":0},{"$f":"VLOOKUP(B83,'[1]LOC FINAL with new Themes'!A:M,13,0)","v":0}]
[null,null,null,{"$f":"SUBTOTAL(3,D43:D83)","v":41},"Cultural & Demographic Statistics  Count"]
["Cultural Landscape Boundaries","Cultural Landscape Boundaries","Cultural Landscape Boundaries",{"$f":"IF(C85=0,B85,C85)","v":"Cultural Landscape Boundaries"},"Cultural & Demographic Statistics \nCultural Resources","DOI-NPS","John Knoerl","john_knoerl@nps.gov",{"$f":"VLOOKUP(B85,'[1]LOC FINAL with new Themes'!A:M,7,0)","v":"Feature classes of the cultural resource data model (NPS only, other federal agencies handle it as they decide)"},{"$f":"VLOOKUP(B85,'[1]LOC FINAL with new Themes'!A:M,8,0)","v":"don't want a single centralized data set but focusing on standard approach"},{"$f":"VLOOKUP(B85,'[1]LOC FINAL with new Themes'!A:M,9,0)","v":0},{"$f":"VLOOKUP(B85,'[1]LOC FINAL with new Themes'!A:M,10,0)","v":0},{"$f":"VLOOKUP(B85,'[1]LOC FINAL with new Themes'!A:M,11,0)","v":0},{"$f":"VLOOKUP(B85,'[1]LOC FINAL with new Themes'!A:M,12,0)","v":0},{"$f":"VLOOKUP(B85,'[1]LOC FINAL with new Themes'!A:M,13,0)","v":0}]
["Cultural Resource Survey Boundaries","Cultural Resource Survey Boundaries","Cultural Resource Survey Boundaries","Cultural Resource Survey Boundaries","Cultural & Demographic Statistics \nCultural Resources","DOI-NPS","John Knoerl","john_knoerl@nps.gov",{"$f":"VLOOKUP(B86,'[1]LOC FINAL with new Themes'!A:M,7,0)","v":"Feature classes of the cultural resource data model (NPS only, other federal agencies handle it as they decide)"},{"$f":"VLOOKUP(B86,'[1]LOC FINAL with new Themes'!A:M,8,0)","v":"don't want a single centralized data set but focusing on standard approach"},{"$f":"VLOOKUP(B86,'[1]LOC FINAL with new Themes'!A:M,9,0)","v":0},{"$f":"VLOOKUP(B86,'[1]LOC FINAL with new Themes'!A:M,10,0)","v":0},{"$f":"VLOOKUP(B86,'[1]LOC FINAL with new Themes'!A:M,11,0)","v":0},{"$f":"VLOOKUP(B86,'[1]LOC FINAL with new Themes'!A:M,12,0)","v":0},{"$f":"VLOOKUP(B86,'[1]LOC FINAL with new Themes'!A:M,13,0)","v":0}]
["Ethnographic Resource Boundaries","Ethnographic Resource Boundaries","Ethnographic Resource Boundaries","Ethnographic Resource Boundaries","Cultural & Demographic Statistics \nCultural Resources","DOI-NPS","John Knoerl","john_knoerl@nps.gov",{"$f":"VLOOKUP(B87,'[1]LOC FINAL with new Themes'!A:M,7,0)","v":"Feature classes of the cultural resource data model (NPS only, other federal agencies handle it as they decide)"},{"$f":"VLOOKUP(B87,'[1]LOC FINAL with new Themes'!A:M,8,0)","v":"don't want a single centralized data set but focusing on standard approach"},{"$f":"VLOOKUP(B87,'[1]LOC FINAL with new Themes'!A:M,9,0)","v":0},{"$f":"VLOOKUP(B87,'[1]LOC FINAL with new Themes'!A:M,10,0)","v":0},{"$f":"VLOOKUP(B87,'[1]LOC FINAL with new Themes'!A:M,11,0)","v":0},{"$f":"VLOOKUP(B87,'[1]LOC FINAL with new Themes'!A:M,12,0)","v":0},{"$f":"VLOOKUP(B87,'[1]LOC FINAL with new Themes'!A:M,13,0)","v":0}]
["Historic Buildings Boundaries","Historic Buildings Boundaries","Historic Buildings Boundaries","Historic Buildings Boundaries","Cultural & Demographic Statistics \nCultural Resources","DOI-NPS","John Knoerl","john_knoerl@nps.gov",{"$f":"VLOOKUP(B88,'[1]LOC FINAL with new Themes'!A:M,7,0)","v":"Feature classes of the cultural resource data model (NPS only, other federal agencies handle it as they decide)"},{"$f":"VLOOKUP(B88,'[1]LOC FINAL with new Themes'!A:M,8,0)","v":"don't want a single centralized data set but focusing on standard approach"},{"$f":"VLOOKUP(B88,'[1]LOC FINAL with new Themes'!A:M,9,0)","v":0},{"$f":"VLOOKUP(B88,'[1]LOC FINAL with new Themes'!A:M,10,0)","v":0},{"$f":"VLOOKUP(B88,'[1]LOC FINAL with new Themes'!A:M,11,0)","v":0},{"$f":"VLOOKUP(B88,'[1]LOC FINAL with new Themes'!A:M,12,0)","v":0},{"$f":"VLOOKUP(B88,'[1]LOC FINAL with new Themes'!A:M,13,0)","v":0}]
["Historic Districts Boundaries","Historic Districts Boundaries","Historic Districts Boundaries","Historic Districts Boundaries","Cultural & Demographic Statistics \nCultural Resources","DOI-NPS","John Knoerl","john_knoerl@nps.gov",{"$f":"VLOOKUP(B89,'[1]LOC FINAL with new Themes'!A:M,7,0)","v":"Feature classes of the cultural resource data model (NPS only, other federal agencies handle it as they decide)"},{"$f":"VLOOKUP(B89,'[1]LOC FINAL with new Themes'!A:M,8,0)","v":"don't want a single centralized data set but focusing on standard approach"},{"$f":"VLOOKUP(B89,'[1]LOC FINAL with new Themes'!A:M,9,0)","v":0},{"$f":"VLOOKUP(B89,'[1]LOC FINAL with new Themes'!A:M,10,0)","v":0},{"$f":"VLOOKUP(B89,'[1]LOC FINAL with new Themes'!A:M,11,0)","v":0},{"$f":"VLOOKUP(B89,'[1]LOC FINAL with new Themes'!A:M,12,0)","v":0},{"$f":"VLOOKUP(B89,'[1]LOC FINAL with new Themes'!A:M,13,0)","v":0}]
["Historic Objects Boundaries","Historic Objects Boundaries","Historic Objects Boundaries","Historic Objects Boundaries","Cultural & Demographic Statistics \nCultural Resources","DOI-NPS","John Knoerl","john_knoerl@nps.gov",{"$f":"VLOOKUP(B90,'[1]LOC FINAL with new Themes'!A:M,7,0)","v":"Feature classes of the cultural resource data model (NPS only, other federal agencies handle it as they decide)"},{"$f":"VLOOKUP(B90,'[1]LOC FINAL with new Themes'!A:M,8,0)","v":"don't want a single centralized data set but focusing on standard approach"},{"$f":"VLOOKUP(B90,'[1]LOC FINAL with new Themes'!A:M,9,0)","v":0},{"$f":"VLOOKUP(B90,'[1]LOC FINAL with new Themes'!A:M,10,0)","v":0},{"$f":"VLOOKUP(B90,'[1]LOC FINAL with new Themes'!A:M,11,0)","v":0},{"$f":"VLOOKUP(B90,'[1]LOC FINAL with new Themes'!A:M,12,0)","v":0},{"$f":"VLOOKUP(B90,'[1]LOC FINAL with new Themes'!A:M,13,0)","v":0}]
["Historic Structures Boundaries","Historic Structures Boundaries","Historic Structures Boundaries","Historic Structures Boundaries","Cultural & Demographic Statistics \nCultural Resources","DOI-NPS","John Knoerl","john_knoerl@nps.gov",{"$f":"VLOOKUP(B91,'[1]LOC FINAL with new Themes'!A:M,7,0)","v":"Feature classes of the cultural resource data model (NPS only, other federal agencies handle it as they decide)"},{"$f":"VLOOKUP(B91,'[1]LOC FINAL with new Themes'!A:M,8,0)","v":"don't want a single centralized data set but focusing on standard approach"},{"$f":"VLOOKUP(B91,'[1]LOC FINAL with new Themes'!A:M,9,0)","v":0},{"$f":"VLOOKUP(B91,'[1]LOC FINAL with new Themes'!A:M,10,0)","v":0},{"$f":"VLOOKUP(B91,'[1]LOC FINAL with new Themes'!A:M,11,0)","v":0},{"$f":"VLOOKUP(B91,'[1]LOC FINAL with new Themes'!A:M,12,0)","v":0},{"$f":"VLOOKUP(B91,'[1]LOC FINAL with new Themes'!A:M,13,0)","v":"M "}]
[null,null,"Other Cultural Resource Boundaries","Other Cultural Resource Boundaries","Cultural & Demographic Statistics \nCultural Resources","DOI-NPS"]
[null,null,null,{"$f":"SUBTOTAL(3,D85:D92)","v":8},"Cultural & Demographic Statistics \nCultural Resources Count"]
[null,"Point Landmark (2010 Census)","Point of Landmark (2010 Census)",{"$f":"IF(C94=0,B94,C94)","v":"Point of Landmark (2010 Census)"},"Cultural Resources","DOC-Census","Jennifer Holland","Jennifer.L.Holland@census.gov",{"$f":"VLOOKUP(B94,'[1]LOC FINAL with new Themes'!A:M,7,0)","v":0},{"$f":"VLOOKUP(B94,'[1]LOC FINAL with new Themes'!A:M,8,0)","v":0},{"$f":"VLOOKUP(B94,'[1]LOC FINAL with new Themes'!A:M,9,0)","v":0},{"$f":"VLOOKUP(B94,'[1]LOC FINAL with new Themes'!A:M,10,0)","v":0},{"$f":"VLOOKUP(B94,'[1]LOC FINAL with new Themes'!A:M,11,0)","v":0},{"$f":"VLOOKUP(B94,'[1]LOC FINAL with new Themes'!A:M,12,0)","v":0},{"$f":"VLOOKUP(B94,'[1]LOC FINAL with new Themes'!A:M,13,0)","v":0}]
["Archeological Sites","Archeological Sites","Archeological Sites","Archeological Sites","Cultural Resources ","DOI-NPS","John Knoerl","john_knoerl@nps.gov",{"$f":"VLOOKUP(B95,'[1]LOC FINAL with new Themes'!A:M,7,0)","v":"Feature classes of the cultural resource data model (NPS only, other federal agencies handle it as they decide)"},{"$f":"VLOOKUP(B95,'[1]LOC FINAL with new Themes'!A:M,8,0)","v":"don't want a single centralized data set but focusing on standard approach"},{"$f":"VLOOKUP(B95,'[1]LOC FINAL with new Themes'!A:M,9,0)","v":"National Historic Presrevation Act says state historic preservation office has primary oversight (section 110)"},{"$f":"VLOOKUP(B95,'[1]LOC FINAL with new Themes'!A:M,10,0)","v":0},{"$f":"VLOOKUP(B95,'[1]LOC FINAL with new Themes'!A:M,11,0)","v":0},{"$f":"VLOOKUP(B95,'[1]LOC FINAL with new Themes'!A:M,12,0)","v":0},{"$f":"VLOOKUP(B95,'[1]LOC FINAL with new Themes'!A:M,13,0)","v":0}]
[null,"Area Landmark (2010 Census)","Area Landmark (2010 Census)","Area Landmark (2010 Census)","Cultural Resources ","DOC-Census","Jennifer Holland","Jennifer.L.Holland@census.gov",{"$f":"VLOOKUP(B96,'[1]LOC FINAL with new Themes'!A:M,7,0)","v":0},{"$f":"VLOOKUP(B96,'[1]LOC FINAL with new Themes'!A:M,8,0)","v":0},{"$f":"VLOOKUP(B96,'[1]LOC FINAL with new Themes'!A:M,9,0)","v":0},{"$f":"VLOOKUP(B96,'[1]LOC FINAL with new Themes'!A:M,10,0)","v":0},{"$f":"VLOOKUP(B96,'[1]LOC FINAL with new Themes'!A:M,11,0)","v":0},{"$f":"VLOOKUP(B96,'[1]LOC FINAL with new Themes'!A:M,12,0)","v":0},{"$f":"VLOOKUP(B96,'[1]LOC FINAL with new Themes'!A:M,13,0)","v":0}]
[null,null,"Geographic Names Dataset - National Map","Geographic Names Dataset - National Map","Cultural Resources ","DOI-USGS"]
["National Map - Geographic Names Information System (GNIS)","National Map - Geographic Names Information System (GNIS)",null,"National Map - Geographic Names Information System (GNIS)","Cultural Resources ","DOI-USGS","Lou Yost","lyost@usgs.gov",{"$f":"VLOOKUP(B98,'[1]LOC FINAL with new Themes'!A:M,7,0)","v":"single data set; poc, data managers; daily updated; Denver systems people backup and archive; transfer to NARA also; Gaz vector (internal)"},{"$f":"VLOOKUP(B98,'[1]LOC FINAL with new Themes'!A:M,8,0)","v":0},{"$f":"VLOOKUP(B98,'[1]LOC FINAL with new Themes'!A:M,9,0)","v":0},{"$f":"VLOOKUP(B98,'[1]LOC FINAL with new Themes'!A:M,10,0)","v":0},{"$f":"VLOOKUP(B98,'[1]LOC FINAL with new Themes'!A:M,11,0)","v":0},{"$f":"VLOOKUP(B98,'[1]LOC FINAL with new Themes'!A:M,12,0)","v":0},{"$f":"VLOOKUP(B98,'[1]LOC FINAL with new Themes'!A:M,13,0)","v":"S"}]
[null,"Topological Faces-Area Landmark Relationship File","Topological Faces-Area Landmark Relationship File","Topological Faces-Area Landmark Relationship File","Cultural Resources ","DOC-Census","Jennifer Holland","Jennifer.L.Holland@census.gov",{"$f":"VLOOKUP(B99,'[1]LOC FINAL with new Themes'!A:M,7,0)","v":0},{"$f":"VLOOKUP(B99,'[1]LOC FINAL with new Themes'!A:M,8,0)","v":0},{"$f":"VLOOKUP(B99,'[1]LOC FINAL with new Themes'!A:M,9,0)","v":0},{"$f":"VLOOKUP(B99,'[1]LOC FINAL with new Themes'!A:M,10,0)","v":0},{"$f":"VLOOKUP(B99,'[1]LOC FINAL with new Themes'!A:M,11,0)","v":0},{"$f":"VLOOKUP(B99,'[1]LOC FINAL with new Themes'!A:M,12,0)","v":0},{"$f":"VLOOKUP(B99,'[1]LOC FINAL with new Themes'!A:M,13,0)","v":0}]
[null,null,null,{"$f":"SUBTOTAL(3,D94:D99)","v":6},"Cultural Resources Count"]
["133 UA Elevation Data (lidar)","133 UA Elevation Data (lidar)",null,{"$f":"IF(C101=0,B101,C101)","v":"133 UA Elevation Data (lidar)"},"Elevation","DOD-NGA","Ron Power, NGA","ronald.k.power@nga.mil",{"$f":"VLOOKUP(B101,'[1]LOC FINAL with new Themes'!A:M,7,0)","v":0},{"$f":"VLOOKUP(B101,'[1]LOC FINAL with new Themes'!A:M,8,0)","v":0},{"$f":"VLOOKUP(B101,'[1]LOC FINAL with new Themes'!A:M,9,0)","v":0},{"$f":"VLOOKUP(B101,'[1]LOC FINAL with new Themes'!A:M,10,0)","v":0},{"$f":"VLOOKUP(B101,'[1]LOC FINAL with new Themes'!A:M,11,0)","v":0},{"$f":"VLOOKUP(B101,'[1]LOC FINAL with new Themes'!A:M,12,0)","v":0},{"$f":"VLOOKUP(B101,'[1]LOC FINAL with new Themes'!A:M,13,0)","v":0}]
["DEMs - Archive","DEMs - Archive",null,"DEMs - Archive","Elevation","DOI-USGS","Gayla Evans","gevans@usgs.gov",{"$f":"VLOOKUP(B102,'[1]LOC FINAL with new Themes'!A:M,7,0)","v":"DEMS update at variable nature; are four data sets based on resolution; this is the POC and data manager; this is the name and maintain three complete with two physically separate on-site and one off-site"},{"$f":"VLOOKUP(B102,'[1]LOC FINAL with new Themes'!A:M,8,0)","v":0},{"$f":"VLOOKUP(B102,'[1]LOC FINAL with new Themes'!A:M,9,0)","v":0},{"$f":"VLOOKUP(B102,'[1]LOC FINAL with new Themes'!A:M,10,0)","v":0},{"$f":"VLOOKUP(B102,'[1]LOC FINAL with new Themes'!A:M,11,0)","v":0},{"$f":"VLOOKUP(B102,'[1]LOC FINAL with new Themes'!A:M,12,0)","v":0},{"$f":"VLOOKUP(B102,'[1]LOC FINAL with new Themes'!A:M,13,0)","v":"S"}]
["GTOPO30","GTOPO30",null,"GTOPO30","Elevation","DOI-USGS","Jeff Danielson"," daniels@usgs.gov",{"$f":"VLOOKUP(B103,'[1]LOC FINAL with new Themes'!A:M,7,0)","v":"GTOPO30 is static; one data set; this is the POC and data manager; this is the name and maintain three complete with two physically separate on-site and one off-site"},{"$f":"VLOOKUP(B103,'[1]LOC FINAL with new Themes'!A:M,8,0)","v":0},{"$f":"VLOOKUP(B103,'[1]LOC FINAL with new Themes'!A:M,9,0)","v":0},{"$f":"VLOOKUP(B103,'[1]LOC FINAL with new Themes'!A:M,10,0)","v":0},{"$f":"VLOOKUP(B103,'[1]LOC FINAL with new Themes'!A:M,11,0)","v":0},{"$f":"VLOOKUP(B103,'[1]LOC FINAL with new Themes'!A:M,12,0)","v":0},{"$f":"VLOOKUP(B103,'[1]LOC FINAL with new Themes'!A:M,13,0)","v":0}]
["National Map National Elevation Data Set (NED)","National Map  - National Elevation Dataset (NED)",null,"National Map  - National Elevation Dataset (NED)","Elevation","DOI-USGS","Jim Mauck","lyost@usgs.gov",{"$f":"VLOOKUP(B104,'[1]LOC FINAL with new Themes'!A:M,7,0)","v":0},{"$f":"VLOOKUP(B104,'[1]LOC FINAL with new Themes'!A:M,8,0)","v":0},{"$f":"VLOOKUP(B104,'[1]LOC FINAL with new Themes'!A:M,9,0)","v":0},{"$f":"VLOOKUP(B104,'[1]LOC FINAL with new Themes'!A:M,10,0)","v":0},{"$f":"VLOOKUP(B104,'[1]LOC FINAL with new Themes'!A:M,11,0)","v":0},{"$f":"VLOOKUP(B104,'[1]LOC FINAL with new Themes'!A:M,12,0)","v":0},{"$f":"VLOOKUP(B104,'[1]LOC FINAL with new Themes'!A:M,13,0)","v":0}]
["SRTM (3-arc second DTEDS)","SRTM (3-arc second DTEDS)",null,"SRTM (3-arc second DTEDS)","Elevation","DOI-USGS","Dean Gesch, USGS","gesch@usgs.gov",{"$f":"VLOOKUP(B105,'[1]LOC FINAL with new Themes'!A:M,7,0)","v":"SRTM is static; one data set; this is the POC and data manager; this is the name and maintain three complete with two physically separate on-site and one off-site"},{"$f":"VLOOKUP(B105,'[1]LOC FINAL with new Themes'!A:M,8,0)","v":0},{"$f":"VLOOKUP(B105,'[1]LOC FINAL with new Themes'!A:M,9,0)","v":0},{"$f":"VLOOKUP(B105,'[1]LOC FINAL with new Themes'!A:M,10,0)","v":0},{"$f":"VLOOKUP(B105,'[1]LOC FINAL with new Themes'!A:M,11,0)","v":0},{"$f":"VLOOKUP(B105,'[1]LOC FINAL with new Themes'!A:M,12,0)","v":0},{"$f":"VLOOKUP(B105,'[1]LOC FINAL with new Themes'!A:M,13,0)","v":"S"}]
["Digital Flood Insurance Rate Maps (D-FIRM)","Digital Flood Insurance Rate Maps (D-FIRM)","Digital Flood Insurance Rate Maps (DFIRM)","Digital Flood Insurance Rate Maps (DFIRM)","Elevation ","DHS-FEMA","Scott McAfee","scott.mcaffee@dhs.gov",{"$f":"VLOOKUP(B106,'[1]LOC FINAL with new Themes'!A:M,7,0)","v":0},{"$f":"VLOOKUP(B106,'[1]LOC FINAL with new Themes'!A:M,8,0)","v":0},{"$f":"VLOOKUP(B106,'[1]LOC FINAL with new Themes'!A:M,9,0)","v":0},{"$f":"VLOOKUP(B106,'[1]LOC FINAL with new Themes'!A:M,10,0)","v":0},{"$f":"VLOOKUP(B106,'[1]LOC FINAL with new Themes'!A:M,11,0)","v":0},{"$f":"VLOOKUP(B106,'[1]LOC FINAL with new Themes'!A:M,12,0)","v":0},{"$f":"VLOOKUP(B106,'[1]LOC FINAL with new Themes'!A:M,13,0)","v":0}]
[null,null,"Elevation Bathymetric - Ocean, Coastal, and Great Lakes Bathymetry ","Elevation Bathymetric - Ocean, Coastal, and Great Lakes Bathymetry ","Elevation ","DOC-NOAA"]
[null,null,"National Elevation Dataset  - National Map","National Elevation Dataset  - National Map","Elevation ","DOI-USGS"]
["National Flood Hazard Layer (NFHL)","National Flood Hazard Layer (NFHL)","National Flood Hazard Layer (NFHL)","National Flood Hazard Layer (NFHL)","Elevation ","DHS-FEMA","Scott McAfee","scott.mcaffee@dhs.gov",{"$f":"VLOOKUP(B109,'[1]LOC FINAL with new Themes'!A:M,7,0)","v":0},{"$f":"VLOOKUP(B109,'[1]LOC FINAL with new Themes'!A:M,8,0)","v":0},{"$f":"VLOOKUP(B109,'[1]LOC FINAL with new Themes'!A:M,9,0)","v":0},{"$f":"VLOOKUP(B109,'[1]LOC FINAL with new Themes'!A:M,10,0)","v":0},{"$f":"VLOOKUP(B109,'[1]LOC FINAL with new Themes'!A:M,11,0)","v":0},{"$f":"VLOOKUP(B109,'[1]LOC FINAL with new Themes'!A:M,12,0)","v":0},{"$f":"VLOOKUP(B109,'[1]LOC FINAL with new Themes'!A:M,13,0)","v":0}]
[null,null,null,{"$f":"SUBTOTAL(3,D101:D109)","v":9},"Elevation Count"]
[null,null,"Airborne Gravity",{"$f":"IF(C111=0,B111,C111)","v":"Airborne Gravity"},"Geodetic Control ","DOC-NOAA","Dr. Theresa Diehl","theresa.diehl@noaa.gov"]
[null,null,"Terrestrial Gravity",{"$f":"IF(C112=0,B112,C112)","v":"Terrestrial Gravity"},"Geodetic Control ","DOC-NOAA","Bill Waickman ","bill.waickman@noaa.gov"]
[null,null,"Continuously Operating Reference Stations (CORS)","Continuously Operating Reference Stations (CORS)","Geodetic Control ","DOC-NOAA","Dr. Giovanni Sella","giovanni.sella@noaa.gov"]
[null,null,"Geoid Models","Geoid Models","Geodetic Control ","DOC-NOAA","Dr. Dan Roman","dan.roman@noaa.gov"]
["National Geologic Data Base","National Geologic Data Base","National Geodetic Survey (NGS) Datasheets","National Geodetic Survey (NGS) Datasheets","Geodetic Control ","DOC-NOAA","Jim Tomlin","jim.tomlin@noaa.gov",{"$f":"VLOOKUP(B115,'[1]LOC FINAL with new Themes'!A:M,7,0)","v":0},{"$f":"VLOOKUP(B115,'[1]LOC FINAL with new Themes'!A:M,8,0)","v":0},{"$f":"VLOOKUP(B115,'[1]LOC FINAL with new Themes'!A:M,9,0)","v":0},{"$f":"VLOOKUP(B115,'[1]LOC FINAL with new Themes'!A:M,10,0)","v":0},{"$f":"VLOOKUP(B115,'[1]LOC FINAL with new Themes'!A:M,11,0)","v":0},{"$f":"VLOOKUP(B115,'[1]LOC FINAL with new Themes'!A:M,12,0)","v":0},{"$f":"VLOOKUP(B115,'[1]LOC FINAL with new Themes'!A:M,13,0)","v":0}]
[null,null,"Precise Global Navigation Satellite System (GNSS) Orbits",{"$f":"IF(C116=0,#REF!,C116)","v":"Precise Global Navigation Satellite System (GNSS) Orbits"},"Geodetic Control ","DOC-NOAA","Dr. Jake Griffiths","jake.griffiths@noaa.gov"]
[null,null,null,{"$f":"SUBTOTAL(3,D111:D116)","v":6},"Geodetic Control  Count"]
[null,null,"Coal assessment and mapping",{"$f":"IF(C118=0,B118,C118)","v":"Coal assessment and mapping"},"Geology","DOI-USGS"]
["Coastline Data","Coastline Data","Coastline Data","Coastline Data","Geology","DOI-BOEM","Doug Vandegraft","douglas.vandegraft@boemre.gov",{"$f":"VLOOKUP(B119,'[1]LOC FINAL with new Themes'!A:M,7,0)","v":"undeliverable email- neeed to identify new contact"},{"$f":"VLOOKUP(B119,'[1]LOC FINAL with new Themes'!A:M,8,0)","v":0},{"$f":"VLOOKUP(B119,'[1]LOC FINAL with new Themes'!A:M,9,0)","v":0},{"$f":"VLOOKUP(B119,'[1]LOC FINAL with new Themes'!A:M,10,0)","v":0},{"$f":"VLOOKUP(B119,'[1]LOC FINAL with new Themes'!A:M,11,0)","v":0},{"$f":"VLOOKUP(B119,'[1]LOC FINAL with new Themes'!A:M,12,0)","v":0},{"$f":"VLOOKUP(B119,'[1]LOC FINAL with new Themes'!A:M,13,0)","v":0}]
[null,null,"Earthquake monitoring, research, and mapping","Earthquake monitoring, research, and mapping","Geology","DOI-USGS"]
[null,null,"Geochemistry","Geochemistry","Geology","DOI-USGS"]
[null,null,"Geochronology","Geochronology","Geology","DOI-USGS"]
[null,null,"Geologic mapping","Geologic mapping","Geology","DOI-USGS"]
[null,null,"Geomagnetism","Geomagnetism","Geology","DOI-USGS"]
[null,null,"Geophysics","Geophysics","Geology","DOI-USGS"]
[null,null,"Landslide monitoring, research, and mapping","Landslide monitoring, research, and mapping","Geology","DOI-USGS"]
[null,null,"Marine geology","Marine geology","Geology","DOI-USGS"]
[null,null,"Metallic mineral assessment and mapping","Metallic mineral assessment and mapping","Geology","DOI-USGS"]
[null,null,"MMS Baseline","MMS Baseline","Geology","DOI-MMS"]
[null,null,"Non-metallic mineral assessment and mapping, onshore",{"$f":"IF(C130=0,B129,C130)","v":"Non-metallic mineral assessment and mapping, onshore"},"Geology","DOI-USGS"]
["OCS BLOCK LEASE DATA (OCS)","OCS BLOCK LEASE DATA ","OCS Lease Blocks",{"$f":"IF(C131=0,#REF!,C131)","v":"OCS Lease Blocks"},"Geology","DOI-BOEM","Doug Vandegraft","douglas.vandegraft@boemre.gov",{"$f":"VLOOKUP(B131,'[1]LOC FINAL with new Themes'!A:M,7,0)","v":"undeliverable email- neeed to identify new contact"},{"$f":"VLOOKUP(B131,'[1]LOC FINAL with new Themes'!A:M,8,0)","v":0},{"$f":"VLOOKUP(B131,'[1]LOC FINAL with new Themes'!A:M,9,0)","v":0},{"$f":"VLOOKUP(B131,'[1]LOC FINAL with new Themes'!A:M,10,0)","v":0},{"$f":"VLOOKUP(B131,'[1]LOC FINAL with new Themes'!A:M,11,0)","v":0},{"$f":"VLOOKUP(B131,'[1]LOC FINAL with new Themes'!A:M,12,0)","v":0},{"$f":"VLOOKUP(B131,'[1]LOC FINAL with new Themes'!A:M,13,0)","v":0}]
[null,null,"OCS Active Leases",{"$f":"IF(C132=0,B131,C132)","v":"OCS Active Leases"},"Geology","DOI-BOEM","Doug Vandegraft","douglas.vandegraft@boemre.gov"]
[null,null,"Oil and gas assessment and mapping, onshore",{"$f":"IF(C133=0,B133,C133)","v":"Oil and gas assessment and mapping, onshore"},"Geology","DOI-USGS"]
[null,null,"Paleontology","Paleontology","Geology","DOI-USGS"]
[null,null,"Sand and Gravel","Sand and Gravel","Geology","DOI-MMS"]
[null,null,"Volcano monitoring, research, and mapping","Volcano monitoring, research, and mapping","Geology","DOI-USGS"]
[null,null,"Wells","Wells","Geology","DOI-MMS"]
[null,null,null,{"$f":"SUBTOTAL(3,D118:D137)","v":20},"Geology Count"]
["County Boundaries","County Boundaries",null,{"$f":"IF(C139=0,B139,C139)","v":"County Boundaries"},"Governmental Units",null,null,null,{"$f":"VLOOKUP(B139,'[1]LOC FINAL with new Themes'!A:M,7,0)","v":0},{"$f":"VLOOKUP(B139,'[1]LOC FINAL with new Themes'!A:M,8,0)","v":0},{"$f":"VLOOKUP(B139,'[1]LOC FINAL with new Themes'!A:M,9,0)","v":0},{"$f":"VLOOKUP(B139,'[1]LOC FINAL with new Themes'!A:M,10,0)","v":0},{"$f":"VLOOKUP(B139,'[1]LOC FINAL with new Themes'!A:M,11,0)","v":0},{"$f":"VLOOKUP(B139,'[1]LOC FINAL with new Themes'!A:M,12,0)","v":0},{"$f":"VLOOKUP(B139,'[1]LOC FINAL with new Themes'!A:M,13,0)","v":0}]
[null,"Place and MCD Boundaries",null,"Place and MCD Boundaries","Governmental Units",null,null,null,{"$f":"VLOOKUP(B140,'[1]LOC FINAL with new Themes'!A:M,7,0)","v":0},{"$f":"VLOOKUP(B140,'[1]LOC FINAL with new Themes'!A:M,8,0)","v":0},{"$f":"VLOOKUP(B140,'[1]LOC FINAL with new Themes'!A:M,9,0)","v":0},{"$f":"VLOOKUP(B140,'[1]LOC FINAL with new Themes'!A:M,10,0)","v":0},{"$f":"VLOOKUP(B140,'[1]LOC FINAL with new Themes'!A:M,11,0)","v":0},{"$f":"VLOOKUP(B140,'[1]LOC FINAL with new Themes'!A:M,12,0)","v":0},{"$f":"VLOOKUP(B140,'[1]LOC FINAL with new Themes'!A:M,13,0)","v":0}]
[null,"Alaska Native Regional Corporation (2010 Census)","Alaska Native Regional Corporation (2010 Census)","Alaska Native Regional Corporation (2010 Census)","Governmental Units ","DOC-Census","Jennifer Holland","Jennifer.L.Holland@census.gov",{"$f":"VLOOKUP(B141,'[1]LOC FINAL with new Themes'!A:M,7,0)","v":0},{"$f":"VLOOKUP(B141,'[1]LOC FINAL with new Themes'!A:M,8,0)","v":0},{"$f":"VLOOKUP(B141,'[1]LOC FINAL with new Themes'!A:M,9,0)","v":0},{"$f":"VLOOKUP(B141,'[1]LOC FINAL with new Themes'!A:M,10,0)","v":0},{"$f":"VLOOKUP(B141,'[1]LOC FINAL with new Themes'!A:M,11,0)","v":0},{"$f":"VLOOKUP(B141,'[1]LOC FINAL with new Themes'!A:M,12,0)","v":0},{"$f":"VLOOKUP(B141,'[1]LOC FINAL with new Themes'!A:M,13,0)","v":0}]
[null,"Alaska Native Regional Corporation (Census 2000)","Alaska Native Regional Corporation (Census 2000)","Alaska Native Regional Corporation (Census 2000)","Governmental Units ","DOC-Census","Jennifer Holland","Jennifer.L.Holland@census.gov",{"$f":"VLOOKUP(B142,'[1]LOC FINAL with new Themes'!A:M,7,0)","v":0},{"$f":"VLOOKUP(B142,'[1]LOC FINAL with new Themes'!A:M,8,0)","v":0},{"$f":"VLOOKUP(B142,'[1]LOC FINAL with new Themes'!A:M,9,0)","v":0},{"$f":"VLOOKUP(B142,'[1]LOC FINAL with new Themes'!A:M,10,0)","v":0},{"$f":"VLOOKUP(B142,'[1]LOC FINAL with new Themes'!A:M,11,0)","v":0},{"$f":"VLOOKUP(B142,'[1]LOC FINAL with new Themes'!A:M,12,0)","v":0},{"$f":"VLOOKUP(B142,'[1]LOC FINAL with new Themes'!A:M,13,0)","v":0}]
[null,"American Indian Tribal Subdivision (2010 Census)","American Indian Tribal Subdivision (2010 Census)","American Indian Tribal Subdivision (2010 Census)","Governmental Units ","DOC-Census","Jennifer Holland","Jennifer.L.Holland@census.gov",{"$f":"VLOOKUP(B143,'[1]LOC FINAL with new Themes'!A:M,7,0)","v":0},{"$f":"VLOOKUP(B143,'[1]LOC FINAL with new Themes'!A:M,8,0)","v":0},{"$f":"VLOOKUP(B143,'[1]LOC FINAL with new Themes'!A:M,9,0)","v":0},{"$f":"VLOOKUP(B143,'[1]LOC FINAL with new Themes'!A:M,10,0)","v":0},{"$f":"VLOOKUP(B143,'[1]LOC FINAL with new Themes'!A:M,11,0)","v":0},{"$f":"VLOOKUP(B143,'[1]LOC FINAL with new Themes'!A:M,12,0)","v":0},{"$f":"VLOOKUP(B143,'[1]LOC FINAL with new Themes'!A:M,13,0)","v":0}]
[null,"American Indian Tribal Subdivision (Census 2000)","American Indian Tribal Subdivision (Census 2000)","American Indian Tribal Subdivision (Census 2000)","Governmental Units ","DOC-Census","Jennifer Holland","Jennifer.L.Holland@census.gov",{"$f":"VLOOKUP(B144,'[1]LOC FINAL with new Themes'!A:M,7,0)","v":0},{"$f":"VLOOKUP(B144,'[1]LOC FINAL with new Themes'!A:M,8,0)","v":0},{"$f":"VLOOKUP(B144,'[1]LOC FINAL with new Themes'!A:M,9,0)","v":0},{"$f":"VLOOKUP(B144,'[1]LOC FINAL with new Themes'!A:M,10,0)","v":0},{"$f":"VLOOKUP(B144,'[1]LOC FINAL with new Themes'!A:M,11,0)","v":0},{"$f":"VLOOKUP(B144,'[1]LOC FINAL with new Themes'!A:M,12,0)","v":0},{"$f":"VLOOKUP(B144,'[1]LOC FINAL with new Themes'!A:M,13,0)","v":0}]
[null,"American Indian/Alaska Native/Native Hawaiian Area (2000 Census)","American Indian/Alaska Native/Native Hawaiian Area (2000 Census)","American Indian/Alaska Native/Native Hawaiian Area (2000 Census)","Governmental Units ","DOC-Census","Jennifer Holland","Jennifer.L.Holland@census.gov",{"$f":"VLOOKUP(B145,'[1]LOC FINAL with new Themes'!A:M,7,0)","v":0},{"$f":"VLOOKUP(B145,'[1]LOC FINAL with new Themes'!A:M,8,0)","v":0},{"$f":"VLOOKUP(B145,'[1]LOC FINAL with new Themes'!A:M,9,0)","v":0},{"$f":"VLOOKUP(B145,'[1]LOC FINAL with new Themes'!A:M,10,0)","v":0},{"$f":"VLOOKUP(B145,'[1]LOC FINAL with new Themes'!A:M,11,0)","v":0},{"$f":"VLOOKUP(B145,'[1]LOC FINAL with new Themes'!A:M,12,0)","v":0},{"$f":"VLOOKUP(B145,'[1]LOC FINAL with new Themes'!A:M,13,0)","v":0}]
[null,"American Indian/Alaska Native/Native Hawaiian Area (2010 Census)","American Indian/Alaska Native/Native Hawaiian Area (2010 Census)","American Indian/Alaska Native/Native Hawaiian Area (2010 Census)","Governmental Units ","DOC-Census","Jennifer Holland","Jennifer.L.Holland@census.gov",{"$f":"VLOOKUP(B146,'[1]LOC FINAL with new Themes'!A:M,7,0)","v":0},{"$f":"VLOOKUP(B146,'[1]LOC FINAL with new Themes'!A:M,8,0)","v":0},{"$f":"VLOOKUP(B146,'[1]LOC FINAL with new Themes'!A:M,9,0)","v":0},{"$f":"VLOOKUP(B146,'[1]LOC FINAL with new Themes'!A:M,10,0)","v":0},{"$f":"VLOOKUP(B146,'[1]LOC FINAL with new Themes'!A:M,11,0)","v":0},{"$f":"VLOOKUP(B146,'[1]LOC FINAL with new Themes'!A:M,12,0)","v":0},{"$f":"VLOOKUP(B146,'[1]LOC FINAL with new Themes'!A:M,13,0)","v":0}]
[null,"Combined New England City and Town Area (2010 Census)","Combined New England City and Town Area (2010 Census)","Combined New England City and Town Area (2010 Census)","Governmental Units ","DOC-Census","Jennifer Holland","Jennifer.L.Holland@census.gov",{"$f":"VLOOKUP(B147,'[1]LOC FINAL with new Themes'!A:M,7,0)","v":0},{"$f":"VLOOKUP(B147,'[1]LOC FINAL with new Themes'!A:M,8,0)","v":0},{"$f":"VLOOKUP(B147,'[1]LOC FINAL with new Themes'!A:M,9,0)","v":0},{"$f":"VLOOKUP(B147,'[1]LOC FINAL with new Themes'!A:M,10,0)","v":0},{"$f":"VLOOKUP(B147,'[1]LOC FINAL with new Themes'!A:M,11,0)","v":0},{"$f":"VLOOKUP(B147,'[1]LOC FINAL with new Themes'!A:M,12,0)","v":0},{"$f":"VLOOKUP(B147,'[1]LOC FINAL with new Themes'!A:M,13,0)","v":0}]
["Congressional District Boundaries","Congressional District (108th)","Congressional District (108th)","Congressional District (108th)","Governmental Units ","DOC-Census","Jennifer Holland","Jennifer.L.Holland@census.gov",{"$f":"VLOOKUP(B148,'[1]LOC FINAL with new Themes'!A:M,7,0)","v":0},{"$f":"VLOOKUP(B148,'[1]LOC FINAL with new Themes'!A:M,8,0)","v":0},{"$f":"VLOOKUP(B148,'[1]LOC FINAL with new Themes'!A:M,9,0)","v":0},{"$f":"VLOOKUP(B148,'[1]LOC FINAL with new Themes'!A:M,10,0)","v":0},{"$f":"VLOOKUP(B148,'[1]LOC FINAL with new Themes'!A:M,11,0)","v":0},{"$f":"VLOOKUP(B148,'[1]LOC FINAL with new Themes'!A:M,12,0)","v":0},{"$f":"VLOOKUP(B148,'[1]LOC FINAL with new Themes'!A:M,13,0)","v":0}]
[null,"Congressional District (111th)","Congressional District (111th)","Congressional District (111th)","Governmental Units ","DOC-Census","Jennifer Holland","Jennifer.L.Holland@census.gov",{"$f":"VLOOKUP(B149,'[1]LOC FINAL with new Themes'!A:M,7,0)","v":0},{"$f":"VLOOKUP(B149,'[1]LOC FINAL with new Themes'!A:M,8,0)","v":0},{"$f":"VLOOKUP(B149,'[1]LOC FINAL with new Themes'!A:M,9,0)","v":0},{"$f":"VLOOKUP(B149,'[1]LOC FINAL with new Themes'!A:M,10,0)","v":0},{"$f":"VLOOKUP(B149,'[1]LOC FINAL with new Themes'!A:M,11,0)","v":0},{"$f":"VLOOKUP(B149,'[1]LOC FINAL with new Themes'!A:M,12,0)","v":0},{"$f":"VLOOKUP(B149,'[1]LOC FINAL with new Themes'!A:M,13,0)","v":0}]
[null,"Consolidated City (2010 Census)","Consolidated City (2010 Census)","Consolidated City (2010 Census)","Governmental Units ","DOC-Census","Jennifer Holland","Jennifer.L.Holland@census.gov",{"$f":"VLOOKUP(B150,'[1]LOC FINAL with new Themes'!A:M,7,0)","v":0},{"$f":"VLOOKUP(B150,'[1]LOC FINAL with new Themes'!A:M,8,0)","v":0},{"$f":"VLOOKUP(B150,'[1]LOC FINAL with new Themes'!A:M,9,0)","v":0},{"$f":"VLOOKUP(B150,'[1]LOC FINAL with new Themes'!A:M,10,0)","v":0},{"$f":"VLOOKUP(B150,'[1]LOC FINAL with new Themes'!A:M,11,0)","v":0},{"$f":"VLOOKUP(B150,'[1]LOC FINAL with new Themes'!A:M,12,0)","v":0},{"$f":"VLOOKUP(B150,'[1]LOC FINAL with new Themes'!A:M,13,0)","v":0}]
[null,"Consolidated City (Census 2000)","Consolidated City (Census 2000)","Consolidated City (Census 2000)","Governmental Units ","DOC-Census","Jennifer Holland","Jennifer.L.Holland@census.gov",{"$f":"VLOOKUP(B151,'[1]LOC FINAL with new Themes'!A:M,7,0)","v":0},{"$f":"VLOOKUP(B151,'[1]LOC FINAL with new Themes'!A:M,8,0)","v":0},{"$f":"VLOOKUP(B151,'[1]LOC FINAL with new Themes'!A:M,9,0)","v":0},{"$f":"VLOOKUP(B151,'[1]LOC FINAL with new Themes'!A:M,10,0)","v":0},{"$f":"VLOOKUP(B151,'[1]LOC FINAL with new Themes'!A:M,11,0)","v":0},{"$f":"VLOOKUP(B151,'[1]LOC FINAL with new Themes'!A:M,12,0)","v":0},{"$f":"VLOOKUP(B151,'[1]LOC FINAL with new Themes'!A:M,13,0)","v":0}]
[null,"County and Equivalent (2010 Census)","County and Equivalent (2010 Census)","County and Equivalent (2010 Census)","Governmental Units ","DOC-Census","Jennifer Holland","Jennifer.L.Holland@census.gov",{"$f":"VLOOKUP(B152,'[1]LOC FINAL with new Themes'!A:M,7,0)","v":0},{"$f":"VLOOKUP(B152,'[1]LOC FINAL with new Themes'!A:M,8,0)","v":0},{"$f":"VLOOKUP(B152,'[1]LOC FINAL with new Themes'!A:M,9,0)","v":0},{"$f":"VLOOKUP(B152,'[1]LOC FINAL with new Themes'!A:M,10,0)","v":0},{"$f":"VLOOKUP(B152,'[1]LOC FINAL with new Themes'!A:M,11,0)","v":0},{"$f":"VLOOKUP(B152,'[1]LOC FINAL with new Themes'!A:M,12,0)","v":0},{"$f":"VLOOKUP(B152,'[1]LOC FINAL with new Themes'!A:M,13,0)","v":0}]
[null,"County and Equivalent (Census 2000)","County and Equivalent (Census 2000)","County and Equivalent (Census 2000)","Governmental Units ","DOC-Census","Jennifer Holland","Jennifer.L.Holland@census.gov",{"$f":"VLOOKUP(B153,'[1]LOC FINAL with new Themes'!A:M,7,0)","v":0},{"$f":"VLOOKUP(B153,'[1]LOC FINAL with new Themes'!A:M,8,0)","v":0},{"$f":"VLOOKUP(B153,'[1]LOC FINAL with new Themes'!A:M,9,0)","v":0},{"$f":"VLOOKUP(B153,'[1]LOC FINAL with new Themes'!A:M,10,0)","v":0},{"$f":"VLOOKUP(B153,'[1]LOC FINAL with new Themes'!A:M,11,0)","v":0},{"$f":"VLOOKUP(B153,'[1]LOC FINAL with new Themes'!A:M,12,0)","v":0},{"$f":"VLOOKUP(B153,'[1]LOC FINAL with new Themes'!A:M,13,0)","v":0}]
[null,"County Subdivision (2010 Census)","County Subdivision (2010 Census)","County Subdivision (2010 Census)","Governmental Units ","DOC-Census","Jennifer Holland","Jennifer.L.Holland@census.gov",{"$f":"VLOOKUP(B154,'[1]LOC FINAL with new Themes'!A:M,7,0)","v":0},{"$f":"VLOOKUP(B154,'[1]LOC FINAL with new Themes'!A:M,8,0)","v":0},{"$f":"VLOOKUP(B154,'[1]LOC FINAL with new Themes'!A:M,9,0)","v":0},{"$f":"VLOOKUP(B154,'[1]LOC FINAL with new Themes'!A:M,10,0)","v":0},{"$f":"VLOOKUP(B154,'[1]LOC FINAL with new Themes'!A:M,11,0)","v":0},{"$f":"VLOOKUP(B154,'[1]LOC FINAL with new Themes'!A:M,12,0)","v":0},{"$f":"VLOOKUP(B154,'[1]LOC FINAL with new Themes'!A:M,13,0)","v":0}]
[null,"County Subdivision (Census 2000)","County Subdivision (Census 2000)","County Subdivision (Census 2000)","Governmental Units ","DOC-Census","Jennifer Holland","Jennifer.L.Holland@census.gov",{"$f":"VLOOKUP(B155,'[1]LOC FINAL with new Themes'!A:M,7,0)","v":0},{"$f":"VLOOKUP(B155,'[1]LOC FINAL with new Themes'!A:M,8,0)","v":0},{"$f":"VLOOKUP(B155,'[1]LOC FINAL with new Themes'!A:M,9,0)","v":0},{"$f":"VLOOKUP(B155,'[1]LOC FINAL with new Themes'!A:M,10,0)","v":0},{"$f":"VLOOKUP(B155,'[1]LOC FINAL with new Themes'!A:M,11,0)","v":0},{"$f":"VLOOKUP(B155,'[1]LOC FINAL with new Themes'!A:M,12,0)","v":0},{"$f":"VLOOKUP(B155,'[1]LOC FINAL with new Themes'!A:M,13,0)","v":0}]
[null,"Metropolitan Division (2010 Census)","Metropolitan Division (2010 Census)","Metropolitan Division (2010 Census)","Governmental Units ","DOC-Census","Jennifer Holland","Jennifer.L.Holland@census.gov",{"$f":"VLOOKUP(B156,'[1]LOC FINAL with new Themes'!A:M,7,0)","v":0},{"$f":"VLOOKUP(B156,'[1]LOC FINAL with new Themes'!A:M,8,0)","v":0},{"$f":"VLOOKUP(B156,'[1]LOC FINAL with new Themes'!A:M,9,0)","v":0},{"$f":"VLOOKUP(B156,'[1]LOC FINAL with new Themes'!A:M,10,0)","v":0},{"$f":"VLOOKUP(B156,'[1]LOC FINAL with new Themes'!A:M,11,0)","v":0},{"$f":"VLOOKUP(B156,'[1]LOC FINAL with new Themes'!A:M,12,0)","v":0},{"$f":"VLOOKUP(B156,'[1]LOC FINAL with new Themes'!A:M,13,0)","v":0}]
[null,"Metropolitan Division (2010 Census)","Metropolitan Division (2010 Census)","Metropolitan Division (2010 Census)","Governmental Units ","DOC-Census","Jennifer Holland","Jennifer.L.Holland@census.gov",{"$f":"VLOOKUP(B157,'[1]LOC FINAL with new Themes'!A:M,7,0)","v":0},{"$f":"VLOOKUP(B157,'[1]LOC FINAL with new Themes'!A:M,8,0)","v":0},{"$f":"VLOOKUP(B157,'[1]LOC FINAL with new Themes'!A:M,9,0)","v":0},{"$f":"VLOOKUP(B157,'[1]LOC FINAL with new Themes'!A:M,10,0)","v":0},{"$f":"VLOOKUP(B157,'[1]LOC FINAL with new Themes'!A:M,11,0)","v":0},{"$f":"VLOOKUP(B157,'[1]LOC FINAL with new Themes'!A:M,12,0)","v":0},{"$f":"VLOOKUP(B157,'[1]LOC FINAL with new Themes'!A:M,13,0)","v":0}]
[null,"New England City and Town Area (2010 Census)","New England City and Town Area (2010 Census)","New England City and Town Area (2010 Census)","Governmental Units ","DOC-Census","Jennifer Holland","Jennifer.L.Holland@census.gov",{"$f":"VLOOKUP(B158,'[1]LOC FINAL with new Themes'!A:M,7,0)","v":0},{"$f":"VLOOKUP(B158,'[1]LOC FINAL with new Themes'!A:M,8,0)","v":0},{"$f":"VLOOKUP(B158,'[1]LOC FINAL with new Themes'!A:M,9,0)","v":0},{"$f":"VLOOKUP(B158,'[1]LOC FINAL with new Themes'!A:M,10,0)","v":0},{"$f":"VLOOKUP(B158,'[1]LOC FINAL with new Themes'!A:M,11,0)","v":0},{"$f":"VLOOKUP(B158,'[1]LOC FINAL with new Themes'!A:M,12,0)","v":0},{"$f":"VLOOKUP(B158,'[1]LOC FINAL with new Themes'!A:M,13,0)","v":0}]
[null,"New England City and Town Area Division (2010 Census)","New England City and Town Area Division (2010 Census)","New England City and Town Area Division (2010 Census)","Governmental Units ","DOC-Census","Jennifer Holland","Jennifer.L.Holland@census.gov",{"$f":"VLOOKUP(B159,'[1]LOC FINAL with new Themes'!A:M,7,0)","v":0},{"$f":"VLOOKUP(B159,'[1]LOC FINAL with new Themes'!A:M,8,0)","v":0},{"$f":"VLOOKUP(B159,'[1]LOC FINAL with new Themes'!A:M,9,0)","v":0},{"$f":"VLOOKUP(B159,'[1]LOC FINAL with new Themes'!A:M,10,0)","v":0},{"$f":"VLOOKUP(B159,'[1]LOC FINAL with new Themes'!A:M,11,0)","v":0},{"$f":"VLOOKUP(B159,'[1]LOC FINAL with new Themes'!A:M,12,0)","v":0},{"$f":"VLOOKUP(B159,'[1]LOC FINAL with new Themes'!A:M,13,0)","v":0}]
["Place and MCD Boundaries","Place (2010 Census)","Place (2010 Census)","Place (2010 Census)","Governmental Units ","DOC-Census","Jennifer Holland","Jennifer.L.Holland@census.gov",{"$f":"VLOOKUP(B160,'[1]LOC FINAL with new Themes'!A:M,7,0)","v":0},{"$f":"VLOOKUP(B160,'[1]LOC FINAL with new Themes'!A:M,8,0)","v":0},{"$f":"VLOOKUP(B160,'[1]LOC FINAL with new Themes'!A:M,9,0)","v":0},{"$f":"VLOOKUP(B160,'[1]LOC FINAL with new Themes'!A:M,10,0)","v":0},{"$f":"VLOOKUP(B160,'[1]LOC FINAL with new Themes'!A:M,11,0)","v":0},{"$f":"VLOOKUP(B160,'[1]LOC FINAL with new Themes'!A:M,12,0)","v":0},{"$f":"VLOOKUP(B160,'[1]LOC FINAL with new Themes'!A:M,13,0)","v":0}]
[null,"Place (Census 2000)","Place (Census 2000)","Place (Census 2000)","Governmental Units ","DOC-Census","Jennifer Holland","Jennifer.L.Holland@census.gov",{"$f":"VLOOKUP(B161,'[1]LOC FINAL with new Themes'!A:M,7,0)","v":0},{"$f":"VLOOKUP(B161,'[1]LOC FINAL with new Themes'!A:M,8,0)","v":0},{"$f":"VLOOKUP(B161,'[1]LOC FINAL with new Themes'!A:M,9,0)","v":0},{"$f":"VLOOKUP(B161,'[1]LOC FINAL with new Themes'!A:M,10,0)","v":0},{"$f":"VLOOKUP(B161,'[1]LOC FINAL with new Themes'!A:M,11,0)","v":0},{"$f":"VLOOKUP(B161,'[1]LOC FINAL with new Themes'!A:M,12,0)","v":0},{"$f":"VLOOKUP(B161,'[1]LOC FINAL with new Themes'!A:M,13,0)","v":0}]
["State(+ Territories) Boundaries","State and Equivalent  (2010 Census)","State and Equivalent  (2010 Census)","State and Equivalent  (2010 Census)","Governmental Units ","DOC-Census","Jennifer Holland","Jennifer.L.Holland@census.gov",{"$f":"VLOOKUP(B162,'[1]LOC FINAL with new Themes'!A:M,7,0)","v":0},{"$f":"VLOOKUP(B162,'[1]LOC FINAL with new Themes'!A:M,8,0)","v":0},{"$f":"VLOOKUP(B162,'[1]LOC FINAL with new Themes'!A:M,9,0)","v":0},{"$f":"VLOOKUP(B162,'[1]LOC FINAL with new Themes'!A:M,10,0)","v":0},{"$f":"VLOOKUP(B162,'[1]LOC FINAL with new Themes'!A:M,11,0)","v":0},{"$f":"VLOOKUP(B162,'[1]LOC FINAL with new Themes'!A:M,12,0)","v":0},{"$f":"VLOOKUP(B162,'[1]LOC FINAL with new Themes'!A:M,13,0)","v":0}]
[null,"State and Equivalent  (Census 2000)","State and Equivalent  (Census 2000)","State and Equivalent  (Census 2000)","Governmental Units ","DOC-Census","Jennifer Holland","Jennifer.L.Holland@census.gov",{"$f":"VLOOKUP(B163,'[1]LOC FINAL with new Themes'!A:M,7,0)","v":0},{"$f":"VLOOKUP(B163,'[1]LOC FINAL with new Themes'!A:M,8,0)","v":0},{"$f":"VLOOKUP(B163,'[1]LOC FINAL with new Themes'!A:M,9,0)","v":0},{"$f":"VLOOKUP(B163,'[1]LOC FINAL with new Themes'!A:M,10,0)","v":0},{"$f":"VLOOKUP(B163,'[1]LOC FINAL with new Themes'!A:M,11,0)","v":0},{"$f":"VLOOKUP(B163,'[1]LOC FINAL with new Themes'!A:M,12,0)","v":0},{"$f":"VLOOKUP(B163,'[1]LOC FINAL with new Themes'!A:M,13,0)","v":0}]
[null,"State Legislative District (Lower Chamber) (2010 Census)","State Legislative District (Lower Chamber) (2010 Census)","State Legislative District (Lower Chamber) (2010 Census)","Governmental Units ","DOC-Census","Jennifer Holland","Jennifer.L.Holland@census.gov",{"$f":"VLOOKUP(B164,'[1]LOC FINAL with new Themes'!A:M,7,0)","v":0},{"$f":"VLOOKUP(B164,'[1]LOC FINAL with new Themes'!A:M,8,0)","v":0},{"$f":"VLOOKUP(B164,'[1]LOC FINAL with new Themes'!A:M,9,0)","v":0},{"$f":"VLOOKUP(B164,'[1]LOC FINAL with new Themes'!A:M,10,0)","v":0},{"$f":"VLOOKUP(B164,'[1]LOC FINAL with new Themes'!A:M,11,0)","v":0},{"$f":"VLOOKUP(B164,'[1]LOC FINAL with new Themes'!A:M,12,0)","v":0},{"$f":"VLOOKUP(B164,'[1]LOC FINAL with new Themes'!A:M,13,0)","v":0}]
[null,"State Legislative District (Lower Chamber) (Census 2000)","State Legislative District (Lower Chamber) (Census 2000)","State Legislative District (Lower Chamber) (Census 2000)","Governmental Units ","DOC-Census","Jennifer Holland","Jennifer.L.Holland@census.gov",{"$f":"VLOOKUP(B165,'[1]LOC FINAL with new Themes'!A:M,7,0)","v":0},{"$f":"VLOOKUP(B165,'[1]LOC FINAL with new Themes'!A:M,8,0)","v":0},{"$f":"VLOOKUP(B165,'[1]LOC FINAL with new Themes'!A:M,9,0)","v":0},{"$f":"VLOOKUP(B165,'[1]LOC FINAL with new Themes'!A:M,10,0)","v":0},{"$f":"VLOOKUP(B165,'[1]LOC FINAL with new Themes'!A:M,11,0)","v":0},{"$f":"VLOOKUP(B165,'[1]LOC FINAL with new Themes'!A:M,12,0)","v":0},{"$f":"VLOOKUP(B165,'[1]LOC FINAL with new Themes'!A:M,13,0)","v":0}]
[null,"State Legislative District (Upper Chamber) (2010 Census)","State Legislative District (Upper Chamber) (2010 Census)","State Legislative District (Upper Chamber) (2010 Census)","Governmental Units ","DOC-Census","Jennifer Holland","Jennifer.L.Holland@census.gov",{"$f":"VLOOKUP(B166,'[1]LOC FINAL with new Themes'!A:M,7,0)","v":0},{"$f":"VLOOKUP(B166,'[1]LOC FINAL with new Themes'!A:M,8,0)","v":0},{"$f":"VLOOKUP(B166,'[1]LOC FINAL with new Themes'!A:M,9,0)","v":0},{"$f":"VLOOKUP(B166,'[1]LOC FINAL with new Themes'!A:M,10,0)","v":0},{"$f":"VLOOKUP(B166,'[1]LOC FINAL with new Themes'!A:M,11,0)","v":0},{"$f":"VLOOKUP(B166,'[1]LOC FINAL with new Themes'!A:M,12,0)","v":0},{"$f":"VLOOKUP(B166,'[1]LOC FINAL with new Themes'!A:M,13,0)","v":0}]
[null,"State Legislative District (Upper Chamber) (Census 2000)","State Legislative District (Upper Chamber) (Census 2000)","State Legislative District (Upper Chamber) (Census 2000)","Governmental Units ","DOC-Census","Jennifer Holland","Jennifer.L.Holland@census.gov",{"$f":"VLOOKUP(B167,'[1]LOC FINAL with new Themes'!A:M,7,0)","v":0},{"$f":"VLOOKUP(B167,'[1]LOC FINAL with new Themes'!A:M,8,0)","v":0},{"$f":"VLOOKUP(B167,'[1]LOC FINAL with new Themes'!A:M,9,0)","v":0},{"$f":"VLOOKUP(B167,'[1]LOC FINAL with new Themes'!A:M,10,0)","v":0},{"$f":"VLOOKUP(B167,'[1]LOC FINAL with new Themes'!A:M,11,0)","v":0},{"$f":"VLOOKUP(B167,'[1]LOC FINAL with new Themes'!A:M,12,0)","v":0},{"$f":"VLOOKUP(B167,'[1]LOC FINAL with new Themes'!A:M,13,0)","v":0}]
[null,"Subbarrio (2010 Census)","Subbarrio (2010 Census)","Subbarrio (2010 Census)","Governmental Units ","DOC-Census","Jennifer Holland","Jennifer.L.Holland@census.gov",{"$f":"VLOOKUP(B168,'[1]LOC FINAL with new Themes'!A:M,7,0)","v":0},{"$f":"VLOOKUP(B168,'[1]LOC FINAL with new Themes'!A:M,8,0)","v":0},{"$f":"VLOOKUP(B168,'[1]LOC FINAL with new Themes'!A:M,9,0)","v":0},{"$f":"VLOOKUP(B168,'[1]LOC FINAL with new Themes'!A:M,10,0)","v":0},{"$f":"VLOOKUP(B168,'[1]LOC FINAL with new Themes'!A:M,11,0)","v":0},{"$f":"VLOOKUP(B168,'[1]LOC FINAL with new Themes'!A:M,12,0)","v":0},{"$f":"VLOOKUP(B168,'[1]LOC FINAL with new Themes'!A:M,13,0)","v":0}]
[null,"Subbarrio (Census 2000)","Subbarrio (Census 2000)","Subbarrio (Census 2000)","Governmental Units ","DOC-Census","Jennifer Holland","Jennifer.L.Holland@census.gov",{"$f":"VLOOKUP(B169,'[1]LOC FINAL with new Themes'!A:M,7,0)","v":0},{"$f":"VLOOKUP(B169,'[1]LOC FINAL with new Themes'!A:M,8,0)","v":0},{"$f":"VLOOKUP(B169,'[1]LOC FINAL with new Themes'!A:M,9,0)","v":0},{"$f":"VLOOKUP(B169,'[1]LOC FINAL with new Themes'!A:M,10,0)","v":0},{"$f":"VLOOKUP(B169,'[1]LOC FINAL with new Themes'!A:M,11,0)","v":0},{"$f":"VLOOKUP(B169,'[1]LOC FINAL with new Themes'!A:M,12,0)","v":0},{"$f":"VLOOKUP(B169,'[1]LOC FINAL with new Themes'!A:M,13,0)","v":0}]
[null,"Urban Area (Corrected Census 2000)","Urban Area (Corrected Census 2000)","Urban Area (Corrected Census 2000)","Governmental Units ","DOC-Census","Jennifer Holland","Jennifer.L.Holland@census.gov",{"$f":"VLOOKUP(B170,'[1]LOC FINAL with new Themes'!A:M,7,0)","v":0},{"$f":"VLOOKUP(B170,'[1]LOC FINAL with new Themes'!A:M,8,0)","v":0},{"$f":"VLOOKUP(B170,'[1]LOC FINAL with new Themes'!A:M,9,0)","v":0},{"$f":"VLOOKUP(B170,'[1]LOC FINAL with new Themes'!A:M,10,0)","v":0},{"$f":"VLOOKUP(B170,'[1]LOC FINAL with new Themes'!A:M,11,0)","v":0},{"$f":"VLOOKUP(B170,'[1]LOC FINAL with new Themes'!A:M,12,0)","v":0},{"$f":"VLOOKUP(B170,'[1]LOC FINAL with new Themes'!A:M,13,0)","v":0}]
[null,null,null,{"$f":"SUBTOTAL(3,D139:D170)","v":32},"Governmental Units Count"]
["133 Urban Areas imagery program data","133 Urban Areas imagery program data",null,{"$f":"IF(C172=0,B172,C172)","v":"133 Urban Areas imagery program data"},"Imagery ","DOD-NGA","William Nellist","William.E.Nellist@nga.mil",{"$f":"VLOOKUP(B172,'[1]LOC FINAL with new Themes'!A:M,7,0)","v":0},{"$f":"VLOOKUP(B172,'[1]LOC FINAL with new Themes'!A:M,8,0)","v":0},{"$f":"VLOOKUP(B172,'[1]LOC FINAL with new Themes'!A:M,9,0)","v":0},{"$f":"VLOOKUP(B172,'[1]LOC FINAL with new Themes'!A:M,10,0)","v":0},{"$f":"VLOOKUP(B172,'[1]LOC FINAL with new Themes'!A:M,11,0)","v":0},{"$f":"VLOOKUP(B172,'[1]LOC FINAL with new Themes'!A:M,12,0)","v":0},{"$f":"VLOOKUP(B172,'[1]LOC FINAL with new Themes'!A:M,13,0)","v":0}]
[null,"134 Urban Areas imagery program data",null,"134 Urban Areas imagery program data","Imagery ","DOI-USGS","George Lee","gylee@usgs.gov",{"$f":"VLOOKUP(B173,'[1]LOC FINAL with new Themes'!A:M,7,0)","v":0},{"$f":"VLOOKUP(B173,'[1]LOC FINAL with new Themes'!A:M,8,0)","v":0},{"$f":"VLOOKUP(B173,'[1]LOC FINAL with new Themes'!A:M,9,0)","v":0},{"$f":"VLOOKUP(B173,'[1]LOC FINAL with new Themes'!A:M,10,0)","v":0},{"$f":"VLOOKUP(B173,'[1]LOC FINAL with new Themes'!A:M,11,0)","v":0},{"$f":"VLOOKUP(B173,'[1]LOC FINAL with new Themes'!A:M,12,0)","v":0},{"$f":"VLOOKUP(B173,'[1]LOC FINAL with new Themes'!A:M,13,0)","v":0}]
["ADS40 Hurricane Response 7.5' Quadrangle Mosaics","ADS40 Hurricane Response 7.5' Quadrangle Mosaics",null,"ADS40 Hurricane Response 7.5' Quadrangle Mosaics","Imagery ","DOI-USGS","Jim Mauck","jmauck@usgs.gov",{"$f":"VLOOKUP(B174,'[1]LOC FINAL with new Themes'!A:M,7,0)","v":0},{"$f":"VLOOKUP(B174,'[1]LOC FINAL with new Themes'!A:M,8,0)","v":0},{"$f":"VLOOKUP(B174,'[1]LOC FINAL with new Themes'!A:M,9,0)","v":0},{"$f":"VLOOKUP(B174,'[1]LOC FINAL with new Themes'!A:M,10,0)","v":0},{"$f":"VLOOKUP(B174,'[1]LOC FINAL with new Themes'!A:M,11,0)","v":0},{"$f":"VLOOKUP(B174,'[1]LOC FINAL with new Themes'!A:M,12,0)","v":0},{"$f":"VLOOKUP(B174,'[1]LOC FINAL with new Themes'!A:M,13,0)","v":0}]
["Digital Orthoimage Quarter Quadrangle (DOQQ) Archive","Digital Orthoimage Quarter Quadrangle (DOQQ) Archive",null,"Digital Orthoimage Quarter Quadrangle (DOQQ) Archive","Imagery ","DOI-USGS",null,null,{"$f":"VLOOKUP(B175,'[1]LOC FINAL with new Themes'!A:M,7,0)","v":"DOQQ is static; one data set; this is the POC and data manager. this is the name and maintain three complete with two physically separate on-site and one off-site"},{"$f":"VLOOKUP(B175,'[1]LOC FINAL with new Themes'!A:M,8,0)","v":0},{"$f":"VLOOKUP(B175,'[1]LOC FINAL with new Themes'!A:M,9,0)","v":0},{"$f":"VLOOKUP(B175,'[1]LOC FINAL with new Themes'!A:M,10,0)","v":0},{"$f":"VLOOKUP(B175,'[1]LOC FINAL with new Themes'!A:M,11,0)","v":0},{"$f":"VLOOKUP(B175,'[1]LOC FINAL with new Themes'!A:M,12,0)","v":0},{"$f":"VLOOKUP(B175,'[1]LOC FINAL with new Themes'!A:M,13,0)","v":"S"}]
["Emergency Response Imagery","Emergency Response Imagery","Emergency Response Imagery","Emergency Response Imagery","Imagery ","DOC-NOAA","Mike Aslaksen","mike.Aslaksen@noaa.gov",{"$f":"VLOOKUP(B176,'[1]LOC FINAL with new Themes'!A:M,7,0)","v":"20-Multiple      "},{"$f":"VLOOKUP(B176,'[1]LOC FINAL with new Themes'!A:M,8,0)","v":"No"},{"$f":"VLOOKUP(B176,'[1]LOC FINAL with new Themes'!A:M,9,0)","v":"Yes - email reply from Jon Sellars Jon.Sellars@noaa.gov"},{"$f":"VLOOKUP(B176,'[1]LOC FINAL with new Themes'!A:M,10,0)","v":"- Same for the forest frag."},{"$f":"VLOOKUP(B176,'[1]LOC FINAL with new Themes'!A:M,11,0)","v":"Our data can be accessed through the following links: http://storms.ngs.noaagov/eri_page/index.html Gulf Oil Spill:\nhttp://hdds.usgs.gov/hdds2/pub/data/disaster/201004_Oilspill_GulfOfMexico/data/AERIAL_NOAA\nhttp://hdds.usgs.gov/hdds2/pub/data/disaster/201004_Oilspill_GulfOfMexico/data/AERIAL_NOAA_MOSAIC  Haiti Earthquake:\nhttp://hdds.usgs.gov/hdds2/pub/data/disaster/201001_Earthquake_Haiti/data/AERIAL_NOAA\nhttp://hdds.usgs.gov/hdds2/pub/data/disaster/201001_Earthquake_Haiti/data/AERIAL_NOAA_ORTHO\nMexico Earthquake:\nhttp://hdds.usgs.gov/hdds2/pub/data/disaster/201004_Earthquake_Mexico/data/AERIAL_NOAA_MOSAIC \n\n"},{"$f":"VLOOKUP(B176,'[1]LOC FINAL with new Themes'!A:M,12,0)","v":"Described by storm name, event or location."},{"$f":"VLOOKUP(B176,'[1]LOC FINAL with new Themes'!A:M,13,0)","v":"M "}]
[null,null,"Fire, Detection: AVHRR FIMMA , GOES WF-ABBA","Fire, Detection: AVHRR FIMMA , GOES WF-ABBA","Imagery ","USDA"]
["Landsat geometric/terrain corrected level 1T","Landsat geometric/terrain corrected level 1T","Landsat Terrain Corrected Scenes","Landsat Terrain Corrected Scenes","Imagery ","DOI-USGS","Kristi Kline","kkline@usgs.gov",{"$f":"VLOOKUP(B178,'[1]LOC FINAL with new Themes'!A:M,7,0)","v":"Landsat updates daily; a series of data sets; this is the POC and data manager; this is the name and maintain three complete with two physically separate on-site and one off-site"},{"$f":"VLOOKUP(B178,'[1]LOC FINAL with new Themes'!A:M,8,0)","v":0},{"$f":"VLOOKUP(B178,'[1]LOC FINAL with new Themes'!A:M,9,0)","v":0},{"$f":"VLOOKUP(B178,'[1]LOC FINAL with new Themes'!A:M,10,0)","v":0},{"$f":"VLOOKUP(B178,'[1]LOC FINAL with new Themes'!A:M,11,0)","v":0},{"$f":"VLOOKUP(B178,'[1]LOC FINAL with new Themes'!A:M,12,0)","v":0},{"$f":"VLOOKUP(B178,'[1]LOC FINAL with new Themes'!A:M,13,0)","v":"S"}]
[null,null,"National  Orthoimagery Dataset - National Map","National  Orthoimagery Dataset - National Map","Imagery ","DOI-USGS"]
["National Aerial Photography Program (NAPP) Data Archive","National Aerial Photography Program (NAPP) Data Archive",null,"National Aerial Photography Program (NAPP) Data Archive","Imagery ","DOI-USGS","Wayne Miller","wamiller@usgs.gov",{"$f":"VLOOKUP(B180,'[1]LOC FINAL with new Themes'!A:M,7,0)","v":"NAPP is static; one data set; this is the POC and data manager; this is the name and maintain three complete with two physically separate on-site and one off-site "},{"$f":"VLOOKUP(B180,'[1]LOC FINAL with new Themes'!A:M,8,0)","v":0},{"$f":"VLOOKUP(B180,'[1]LOC FINAL with new Themes'!A:M,9,0)","v":0},{"$f":"VLOOKUP(B180,'[1]LOC FINAL with new Themes'!A:M,10,0)","v":0},{"$f":"VLOOKUP(B180,'[1]LOC FINAL with new Themes'!A:M,11,0)","v":0},{"$f":"VLOOKUP(B180,'[1]LOC FINAL with new Themes'!A:M,12,0)","v":0},{"$f":"VLOOKUP(B180,'[1]LOC FINAL with new Themes'!A:M,13,0)","v":"S"}]
["National Agriculture Imagery Program Data","National Agriculture Imagery Program Data","National Agriculture Imagery Program (NAIP) Archive","National Agriculture Imagery Program (NAIP) Archive","Imagery ","DOI-USGS","Shirley Hall","shirley.hall@wdc.usda.gov",{"$f":"VLOOKUP(B181,'[1]LOC FINAL with new Themes'!A:M,7,0)","v":"Shirley identified Dan Good as new contact 'daniel.good@wdc.usda.gov' - need to follow up with either or both"},{"$f":"VLOOKUP(B181,'[1]LOC FINAL with new Themes'!A:M,8,0)","v":0},{"$f":"VLOOKUP(B181,'[1]LOC FINAL with new Themes'!A:M,9,0)","v":0},{"$f":"VLOOKUP(B181,'[1]LOC FINAL with new Themes'!A:M,10,0)","v":0},{"$f":"VLOOKUP(B181,'[1]LOC FINAL with new Themes'!A:M,11,0)","v":0},{"$f":"VLOOKUP(B181,'[1]LOC FINAL with new Themes'!A:M,12,0)","v":0},{"$f":"VLOOKUP(B181,'[1]LOC FINAL with new Themes'!A:M,13,0)","v":0}]
["National Map Orthoimagery Database (TNM Seamless Server) ","National Map Orthoimagery Database (TNM Seamless Server) ",null,"National Map Orthoimagery Database (TNM Seamless Server) ","Imagery ","DOI-USGS","George Lee","gylee@usgs.gov",{"$f":"VLOOKUP(B182,'[1]LOC FINAL with new Themes'!A:M,7,0)","v":0},{"$f":"VLOOKUP(B182,'[1]LOC FINAL with new Themes'!A:M,8,0)","v":0},{"$f":"VLOOKUP(B182,'[1]LOC FINAL with new Themes'!A:M,9,0)","v":0},{"$f":"VLOOKUP(B182,'[1]LOC FINAL with new Themes'!A:M,10,0)","v":0},{"$f":"VLOOKUP(B182,'[1]LOC FINAL with new Themes'!A:M,11,0)","v":0},{"$f":"VLOOKUP(B182,'[1]LOC FINAL with new Themes'!A:M,12,0)","v":0},{"$f":"VLOOKUP(B182,'[1]LOC FINAL with new Themes'!A:M,13,0)","v":0}]
[null,null,"Satellite Imagery Archive","Satellite Imagery Archive","Imagery ","USDA-FSA"]
[null,null,null,{"$f":"SUBTOTAL(3,D172:D183)","v":12},"Imagery  Count"]
[null,null,"Crops: Cropland Data Layer",{"$f":"IF(C185=0,B185,C185)","v":"Crops: Cropland Data Layer"},"Land Use-Land Cover ","USDA-NASS"]
[null,null,"Earth Cover, Land: MODIS-based Land Products","Earth Cover, Land: MODIS-based Land Products","Land Use-Land Cover ","USDA -FS (Along with USGS)"]
[null,null,"Earth Cover, Vegetation, Forest: Forest Biomass, Types, Type Groups","Earth Cover, Vegetation, Forest: Forest Biomass, Types, Type Groups","Land Use-Land Cover ","USDA-FS"]
[null,null,"Earth Cover, Vegetation: Percent Forest Canopy","Earth Cover, Vegetation: Percent Forest Canopy","Land Use-Land Cover ","USDA-FS"]
[null,null,"Fire Severity: Monitoring Trends in Burn Severity (MTBS)","Fire Severity: Monitoring Trends in Burn Severity (MTBS)","Land Use-Land Cover ","USDA -FS (Along with USGS)"]
[null,null,"Fire, Detection: Daily Active Fire Mapping","Fire, Detection: Daily Active Fire Mapping","Land Use-Land Cover ","USDA"]
[null,null,"Land Cover Strata Dataset","Land Cover Strata Dataset","Land Use-Land Cover ","USDA-NASS"]
["LANDFIRE Dataset","LANDFIRE Dataset","Land Fire Dataset","Land Fire Dataset","Land Use-Land Cover ",null,null,0,{"$f":"VLOOKUP(B192,'[1]LOC FINAL with new Themes'!A:M,7,0)","v":0},{"$f":"VLOOKUP(B192,'[1]LOC FINAL with new Themes'!A:M,8,0)","v":0},{"$f":"VLOOKUP(B192,'[1]LOC FINAL with new Themes'!A:M,9,0)","v":0},{"$f":"VLOOKUP(B192,'[1]LOC FINAL with new Themes'!A:M,10,0)","v":0},{"$f":"VLOOKUP(B192,'[1]LOC FINAL with new Themes'!A:M,11,0)","v":0},{"$f":"VLOOKUP(B192,'[1]LOC FINAL with new Themes'!A:M,12,0)","v":0},{"$f":"VLOOKUP(B192,'[1]LOC FINAL with new Themes'!A:M,13,0)","v":0}]
["National Land Cover Dataset (NLCD)","National Land Cover Dataset (NLCD)","National Land Cover Dataset - GIRAS - 1975","National Land Cover Dataset - GIRAS - 1975","Land Use-Land Cover ","DOI-USGS","Colin Homer","homer@usgs.gov",{"$f":"VLOOKUP(B193,'[1]LOC FINAL with new Themes'!A:M,7,0)","v":"The table below summarizes NLCD products available for download from the MRLC website http://www.mrlc.gov/ "},{"$f":"VLOOKUP(B193,'[1]LOC FINAL with new Themes'!A:M,8,0)","v":"No.  The \"manager\" of the data is Jon Dewitz. \nContact Information -   \nJon Dewitz\ndewitz@usgs.gov\n605-594-2715\nNLCD Quality Supervisor\nUSGS Earth Resources Observation and Science Center (EROS)\nMundt Federal Building\n47914 252nd St.\nSioux Falls, SD 57198\nfax 605-594-6529\n"},{"$f":"VLOOKUP(B193,'[1]LOC FINAL with new Themes'!A:M,9,0)","v":"Joyce Fry is the POC. \nContact information - \nJoyce Fry, Geographer\nUnited States Geological Survey (USGS)\nEarth Resources Observation and  Science (EROS) Center\nMundt Federal Building\n47914 252nd Street\nSioux Falls, South Dakota 57198\n(P)  605.594.2739\n(F)  605.594.6529\n(e)  jfry@usgs.gov \n"},{"$f":"VLOOKUP(B193,'[1]LOC FINAL with new Themes'!A:M,10,0)","v":"Every 5 years"},{"$f":"VLOOKUP(B193,'[1]LOC FINAL with new Themes'!A:M,11,0)","v":"Yes, there is an archive/backup of the dataset through the EROS Long Term Archive (LTA) group.  I will need to get back to if you need additional information regarding the archive process. "},{"$f":"VLOOKUP(B193,'[1]LOC FINAL with new Themes'!A:M,12,0)","v":"National Land Cover Database or NLCD along with the era number, either 1992 or 2001, or 2006. "},{"$f":"VLOOKUP(B193,'[1]LOC FINAL with new Themes'!A:M,13,0)","v":"S"}]
[null,null,"National Land Cover Dataset - National Map","National Land Cover Dataset - National Map","Land Use-Land Cover ","DOI-USGS"]
[null,null,"National Land Cover Dataset - National Map - 1991","National Land Cover Dataset - National Map - 1991","Land Use-Land Cover ","DOI-USGS"]
[null,null,"National Land Cover Dataset - National Map - 2001","National Land Cover Dataset - National Map - 2001","Land Use-Land Cover ","DOI-USGS"]
[null,null,"National Land Cover Dataset - National Map 2006","National Land Cover Dataset - National Map 2006","Land Use-Land Cover ","DOI-USGS"]
["National Land Cover Dataset (NLCD)","National Land Cover Dataset (NLCD)","National Land Cover Dataset (NLCD)","National Land Cover Dataset (NLCD)","Land Use-Land Cover ","DOI-USGS","Colin Homer","homer@usgs.gov",{"$f":"VLOOKUP(B198,'[1]LOC FINAL with new Themes'!A:M,7,0)","v":"The table below summarizes NLCD products available for download from the MRLC website http://www.mrlc.gov/ "},{"$f":"VLOOKUP(B198,'[1]LOC FINAL with new Themes'!A:M,8,0)","v":"No.  The \"manager\" of the data is Jon Dewitz. \nContact Information -   \nJon Dewitz\ndewitz@usgs.gov\n605-594-2715\nNLCD Quality Supervisor\nUSGS Earth Resources Observation and Science Center (EROS)\nMundt Federal Building\n47914 252nd St.\nSioux Falls, SD 57198\nfax 605-594-6529\n"},{"$f":"VLOOKUP(B198,'[1]LOC FINAL with new Themes'!A:M,9,0)","v":"Joyce Fry is the POC. \nContact information - \nJoyce Fry, Geographer\nUnited States Geological Survey (USGS)\nEarth Resources Observation and  Science (EROS) Center\nMundt Federal Building\n47914 252nd Street\nSioux Falls, South Dakota 57198\n(P)  605.594.2739\n(F)  605.594.6529\n(e)  jfry@usgs.gov \n"},{"$f":"VLOOKUP(B198,'[1]LOC FINAL with new Themes'!A:M,10,0)","v":"Every 5 years"},{"$f":"VLOOKUP(B198,'[1]LOC FINAL with new Themes'!A:M,11,0)","v":"Yes, there is an archive/backup of the dataset through the EROS Long Term Archive (LTA) group.  I will need to get back to if you need additional information regarding the archive process. "},{"$f":"VLOOKUP(B198,'[1]LOC FINAL with new Themes'!A:M,12,0)","v":"National Land Cover Database or NLCD along with the era number, either 1992 or 2001, or 2006. "},{"$f":"VLOOKUP(B198,'[1]LOC FINAL with new Themes'!A:M,13,0)","v":"S"}]
[null,null,"National Land Cover Percent Canopy - National Map - 1991","National Land Cover Percent Canopy - National Map - 1991","Land Use-Land Cover ","DOI-USGS"]
[null,null,"National Land Cover Percent Imperviousness - National Map - 2001","National Land Cover Percent Imperviousness - National Map - 2001","Land Use-Land Cover ","DOI-USGS"]
[null,null,"National Land Cover Percent Imperviousness - National Map - 2006","National Land Cover Percent Imperviousness - National Map - 2006","Land Use-Land Cover ","DOI-USGS"]
["National Parks Data","National Parks Data","National Parks Data","National Parks Data","Land Use-Land Cover ","DOI-NPS","Roger Johnson ","Roger_M_Johnson@nps.gov",{"$f":"VLOOKUP(B202,'[1]LOC FINAL with new Themes'!A:M,7,0)","v":"undeliverable email- neeed to identify new contact"},{"$f":"VLOOKUP(B202,'[1]LOC FINAL with new Themes'!A:M,8,0)","v":0},{"$f":"VLOOKUP(B202,'[1]LOC FINAL with new Themes'!A:M,9,0)","v":0},{"$f":"VLOOKUP(B202,'[1]LOC FINAL with new Themes'!A:M,10,0)","v":0},{"$f":"VLOOKUP(B202,'[1]LOC FINAL with new Themes'!A:M,11,0)","v":0},{"$f":"VLOOKUP(B202,'[1]LOC FINAL with new Themes'!A:M,12,0)","v":0},{"$f":"VLOOKUP(B202,'[1]LOC FINAL with new Themes'!A:M,13,0)","v":0}]
[null,null,null,{"$f":"SUBTOTAL(3,D185:D202)","v":18},"Land Use-Land Cover  Count"]
["Assisted Housing (census geography or point-based) see http://www.huduser.org/picture2000/","Assisted Housing (census geography or point-based)",null,{"$f":"IF(C204=0,B204,C204)","v":"Assisted Housing (census geography or point-based)"},"Real Property","HUD","Jon Sperling","jon.sperling@hud.gov",{"$f":"VLOOKUP(B204,'[1]LOC FINAL with new Themes'!A:M,7,0)","v":0},{"$f":"VLOOKUP(B204,'[1]LOC FINAL with new Themes'!A:M,8,0)","v":0},{"$f":"VLOOKUP(B204,'[1]LOC FINAL with new Themes'!A:M,9,0)","v":0},{"$f":"VLOOKUP(B204,'[1]LOC FINAL with new Themes'!A:M,10,0)","v":0},{"$f":"VLOOKUP(B204,'[1]LOC FINAL with new Themes'!A:M,11,0)","v":0},{"$f":"VLOOKUP(B204,'[1]LOC FINAL with new Themes'!A:M,12,0)","v":0},{"$f":"VLOOKUP(B204,'[1]LOC FINAL with new Themes'!A:M,13,0)","v":0}]
["Enterprise Zones, Empowerment Communities, Revitalization Areas, Qualified Census Tracts, etc.  (census geography based)","Enterprise Zones, Empowerment Communities, Revitalization Areas, Qualified Census Tracts, etc.  (census geography based)",null,"Enterprise Zones, Empowerment Communities, Revitalization Areas, Qualified Census Tracts, etc.  (census geography based)","Real Property","HUD","Jon Sperling","jon.sperling@hud.gov",{"$f":"VLOOKUP(B205,'[1]LOC FINAL with new Themes'!A:M,7,0)","v":0},{"$f":"VLOOKUP(B205,'[1]LOC FINAL with new Themes'!A:M,8,0)","v":0},{"$f":"VLOOKUP(B205,'[1]LOC FINAL with new Themes'!A:M,9,0)","v":0},{"$f":"VLOOKUP(B205,'[1]LOC FINAL with new Themes'!A:M,10,0)","v":0},{"$f":"VLOOKUP(B205,'[1]LOC FINAL with new Themes'!A:M,11,0)","v":0},{"$f":"VLOOKUP(B205,'[1]LOC FINAL with new Themes'!A:M,12,0)","v":0},{"$f":"VLOOKUP(B205,'[1]LOC FINAL with new Themes'!A:M,13,0)","v":0}]
["Federal building location point ","Federal building location point ","Federal building location point ","Federal building location point ","Real Property ","GSA","Sandra Downie","sandra.downie@gsa.gov",{"$f":"VLOOKUP(B206,'[1]LOC FINAL with new Themes'!A:M,7,0)","v":0},{"$f":"VLOOKUP(B206,'[1]LOC FINAL with new Themes'!A:M,8,0)","v":0},{"$f":"VLOOKUP(B206,'[1]LOC FINAL with new Themes'!A:M,9,0)","v":0},{"$f":"VLOOKUP(B206,'[1]LOC FINAL with new Themes'!A:M,10,0)","v":0},{"$f":"VLOOKUP(B206,'[1]LOC FINAL with new Themes'!A:M,11,0)","v":0},{"$f":"VLOOKUP(B206,'[1]LOC FINAL with new Themes'!A:M,12,0)","v":0},{"$f":"VLOOKUP(B206,'[1]LOC FINAL with new Themes'!A:M,13,0)","v":0}]
["Federal building location polygon","Federal building location polygon","Federal building location polygon","Federal building location polygon","Real Property ","GSA","Sandra Downie","sandra.downie@gsa.gov",{"$f":"VLOOKUP(B207,'[1]LOC FINAL with new Themes'!A:M,7,0)","v":0},{"$f":"VLOOKUP(B207,'[1]LOC FINAL with new Themes'!A:M,8,0)","v":0},{"$f":"VLOOKUP(B207,'[1]LOC FINAL with new Themes'!A:M,9,0)","v":0},{"$f":"VLOOKUP(B207,'[1]LOC FINAL with new Themes'!A:M,10,0)","v":0},{"$f":"VLOOKUP(B207,'[1]LOC FINAL with new Themes'!A:M,11,0)","v":0},{"$f":"VLOOKUP(B207,'[1]LOC FINAL with new Themes'!A:M,12,0)","v":0},{"$f":"VLOOKUP(B207,'[1]LOC FINAL with new Themes'!A:M,13,0)","v":0}]
["Federal land area facility location point","Federal land area facility location point","Federal land area facility location point","Federal land area facility location point","Real Property ","GSA","Sandra Downie","sandra.downie@gsa.gov",{"$f":"VLOOKUP(B208,'[1]LOC FINAL with new Themes'!A:M,7,0)","v":0},{"$f":"VLOOKUP(B208,'[1]LOC FINAL with new Themes'!A:M,8,0)","v":0},{"$f":"VLOOKUP(B208,'[1]LOC FINAL with new Themes'!A:M,9,0)","v":0},{"$f":"VLOOKUP(B208,'[1]LOC FINAL with new Themes'!A:M,10,0)","v":0},{"$f":"VLOOKUP(B208,'[1]LOC FINAL with new Themes'!A:M,11,0)","v":0},{"$f":"VLOOKUP(B208,'[1]LOC FINAL with new Themes'!A:M,12,0)","v":0},{"$f":"VLOOKUP(B208,'[1]LOC FINAL with new Themes'!A:M,13,0)","v":0}]
["Federal land area facility location polygon","Federal land area facility location polygon","Federal land area facility location polygon","Federal land area facility location polygon","Real Property ","GSA","Sandra Downie","sandra.downie@gsa.gov",{"$f":"VLOOKUP(B209,'[1]LOC FINAL with new Themes'!A:M,7,0)","v":0},{"$f":"VLOOKUP(B209,'[1]LOC FINAL with new Themes'!A:M,8,0)","v":0},{"$f":"VLOOKUP(B209,'[1]LOC FINAL with new Themes'!A:M,9,0)","v":0},{"$f":"VLOOKUP(B209,'[1]LOC FINAL with new Themes'!A:M,10,0)","v":0},{"$f":"VLOOKUP(B209,'[1]LOC FINAL with new Themes'!A:M,11,0)","v":0},{"$f":"VLOOKUP(B209,'[1]LOC FINAL with new Themes'!A:M,12,0)","v":0},{"$f":"VLOOKUP(B209,'[1]LOC FINAL with new Themes'!A:M,13,0)","v":0}]
["National Map - Structures Dataset","National Map - Structures Dataset","National Structures Dataset - National Map","National Structures Dataset - National Map","Real Property ","DOI-USGS","Paul Wiese","pmwiese@usgs.gov",{"$f":"VLOOKUP(B210,'[1]LOC FINAL with new Themes'!A:M,7,0)","v":"National Map updates monthly; a series of data sets; this is the POC and data manager; this is the name and maintain three complete with two physically separate on-site and one off-site"},{"$f":"VLOOKUP(B210,'[1]LOC FINAL with new Themes'!A:M,8,0)","v":0},{"$f":"VLOOKUP(B210,'[1]LOC FINAL with new Themes'!A:M,9,0)","v":0},{"$f":"VLOOKUP(B210,'[1]LOC FINAL with new Themes'!A:M,10,0)","v":0},{"$f":"VLOOKUP(B210,'[1]LOC FINAL with new Themes'!A:M,11,0)","v":0},{"$f":"VLOOKUP(B210,'[1]LOC FINAL with new Themes'!A:M,12,0)","v":0},{"$f":"VLOOKUP(B210,'[1]LOC FINAL with new Themes'!A:M,13,0)","v":"S"}]
[null,null,null,{"$f":"SUBTOTAL(3,D204:D210)","v":7},"Real Property Count"]
[null,"Military Installation","Military Installation",{"$f":"IF(C212=0,B212,C212)","v":"Military Installation"},"Real Property\nCultural & Demographic Statistics","DOC-Census","Jennifer Holland","Jennifer.L.Holland@census.gov",{"$f":"VLOOKUP(B212,'[1]LOC FINAL with new Themes'!A:M,7,0)","v":0},{"$f":"VLOOKUP(B212,'[1]LOC FINAL with new Themes'!A:M,8,0)","v":0},{"$f":"VLOOKUP(B212,'[1]LOC FINAL with new Themes'!A:M,9,0)","v":0},{"$f":"VLOOKUP(B212,'[1]LOC FINAL with new Themes'!A:M,10,0)","v":0},{"$f":"VLOOKUP(B212,'[1]LOC FINAL with new Themes'!A:M,11,0)","v":0},{"$f":"VLOOKUP(B212,'[1]LOC FINAL with new Themes'!A:M,12,0)","v":0},{"$f":"VLOOKUP(B212,'[1]LOC FINAL with new Themes'!A:M,13,0)","v":0}]
[null,null,null,{"$f":"SUBTOTAL(3,D212:D212)","v":1},"Real Property\nCultural & Demographic Statistics Count"]
["Common Resource Area (CRA)","Common Resource Area (CRA)","Common Resource Area (CRA)",{"$f":"IF(C214=0,B214,C214)","v":"Common Resource Area (CRA)"},"Soils ","USDA-NRCS","David Hoover","David.Hoover@wdc.usda.gov",{"$f":"VLOOKUP(B214,'[1]LOC FINAL with new Themes'!A:M,7,0)","v":0},{"$f":"VLOOKUP(B214,'[1]LOC FINAL with new Themes'!A:M,8,0)","v":0},{"$f":"VLOOKUP(B214,'[1]LOC FINAL with new Themes'!A:M,9,0)","v":0},{"$f":"VLOOKUP(B214,'[1]LOC FINAL with new Themes'!A:M,10,0)","v":0},{"$f":"VLOOKUP(B214,'[1]LOC FINAL with new Themes'!A:M,11,0)","v":0},{"$f":"VLOOKUP(B214,'[1]LOC FINAL with new Themes'!A:M,12,0)","v":0},{"$f":"VLOOKUP(B214,'[1]LOC FINAL with new Themes'!A:M,13,0)","v":0}]
["Major Land Resource Area (MLRA)","Major Land Resource Area (MLRA)","Major Land Resource Area (MLRA)","Major Land Resource Area (MLRA)","Soils ","USDA-NRCS","David Hoover","David.Hoover@wdc.usda.gov",{"$f":"VLOOKUP(B215,'[1]LOC FINAL with new Themes'!A:M,7,0)","v":"undeliverable email- neeed to identify new contact"},{"$f":"VLOOKUP(B215,'[1]LOC FINAL with new Themes'!A:M,8,0)","v":0},{"$f":"VLOOKUP(B215,'[1]LOC FINAL with new Themes'!A:M,9,0)","v":0},{"$f":"VLOOKUP(B215,'[1]LOC FINAL with new Themes'!A:M,10,0)","v":0},{"$f":"VLOOKUP(B215,'[1]LOC FINAL with new Themes'!A:M,11,0)","v":0},{"$f":"VLOOKUP(B215,'[1]LOC FINAL with new Themes'!A:M,12,0)","v":0},{"$f":"VLOOKUP(B215,'[1]LOC FINAL with new Themes'!A:M,13,0)","v":0}]
["National Cooperative Soil Survey (NCSS)","National Cooperative Soil Survey (NCSS)","National Cooperative Soil Characterization Database","National Cooperative Soil Characterization Database","Soils ","USDA-NRCS","Larry West","Larry.West@lin.usda.gov",{"$f":"VLOOKUP(B216,'[1]LOC FINAL with new Themes'!A:M,7,0)","v":"We have our Soil Survey Geographic database called SSURGO which is made available through the following sites:\nWeb Soil Survey:    http://websoilsurvey.nrcs.usda.gov/app/\nSoil Data Mart:     http://soildatamart.nrcs.usda.gov/\nSoil Data Access:   http://sdmdataaccess.nrcs.usda.gov\n\nWe also have: \nLab Soil Survey Lab Characterization Data (Point data): http://ssldata.nrcs.usda.gov/ aka NCSS Characterization Database\nSoil Series Classification Database http://soils.usda.gov/technical/classification/scfile/index.html\nU.S. General Soil Map (STATSGO2)\nMajor Land Resource Area (MLRA) http://soils.usda.gov/survey/geography/mlra/\n             Common Resource Areas (CRA) \n\n"},{"$f":"VLOOKUP(B216,'[1]LOC FINAL with new Themes'!A:M,8,0)","v":"? No, I am a Program Manager. Various other people have roles of maintaining the data. "},{"$f":"VLOOKUP(B216,'[1]LOC FINAL with new Themes'!A:M,9,0)","v":"I am a general information POC for all things soil survey related. For more technical aspects on our data sets a good POC would be David Hoover, National Leader for Soil Business Systems or someone on his staff. His contact number is 402-437-4013 or email at david.hoover@lin.usda.gov. "},{"$f":"VLOOKUP(B216,'[1]LOC FINAL with new Themes'!A:M,10,0)","v":"Our data sets are constantly being updated by about 1000 soil and plant scientists in several agencies. "},{"$f":"VLOOKUP(B216,'[1]LOC FINAL with new Themes'!A:M,11,0)","v":"Our data sets are archived, but I don’t know how far back. I will have to get back to you on that. It is my understanding that archived sets are not easily accessible.  We have archive data for SSURGO (Soil Data Warehouse from mid 2000’s or earlier – Jim Fortner or Jennifer Sweet may be able to confirm or provide more detail; We also have archive data for STATSGO (circa 1994;1996) and for MLRA (1978; 2001; 2006) in local holdings.  Not sure about lab data archives, Henry Ferguson or Larry West can confirm.  "},{"$f":"VLOOKUP(B216,'[1]LOC FINAL with new Themes'!A:M,12,0)","v":"? the Lab Characterization Data is also known as the “NCSS Characterization Database”\nAdded Common Resource Area geographic database (CRA)."},{"$f":"VLOOKUP(B216,'[1]LOC FINAL with new Themes'!A:M,13,0)","v":"P"}]
["Soil Survey Geographic Database (SSURGO)","Soil Survey Geographic Database (SSURGO)","Soil Survey Geographic Database (SSURGO)","Soil Survey Geographic Database (SSURGO)","Soils ","USDA-NRCS","David Hoover","David.Hoover@wdc.usda.gov",{"$f":"VLOOKUP(B217,'[1]LOC FINAL with new Themes'!A:M,7,0)","v":"undeliverable email- neeed to identify new contact"},{"$f":"VLOOKUP(B217,'[1]LOC FINAL with new Themes'!A:M,8,0)","v":0},{"$f":"VLOOKUP(B217,'[1]LOC FINAL with new Themes'!A:M,9,0)","v":0},{"$f":"VLOOKUP(B217,'[1]LOC FINAL with new Themes'!A:M,10,0)","v":0},{"$f":"VLOOKUP(B217,'[1]LOC FINAL with new Themes'!A:M,11,0)","v":0},{"$f":"VLOOKUP(B217,'[1]LOC FINAL with new Themes'!A:M,12,0)","v":0},{"$f":"VLOOKUP(B217,'[1]LOC FINAL with new Themes'!A:M,13,0)","v":0}]
["U.S. General Soil Map (STATSGO2)","U.S. General Soil Map (STATSGO2)","U.S. General Soil Map (STATSGO2)","U.S. General Soil Map (STATSGO2)","Soils ","USDA-NRCS","David Hoover","David.Hoover@wdc.usda.gov",{"$f":"VLOOKUP(B218,'[1]LOC FINAL with new Themes'!A:M,7,0)","v":"undeliverable email- neeed to identify new contact"},{"$f":"VLOOKUP(B218,'[1]LOC FINAL with new Themes'!A:M,8,0)","v":0},{"$f":"VLOOKUP(B218,'[1]LOC FINAL with new Themes'!A:M,9,0)","v":0},{"$f":"VLOOKUP(B218,'[1]LOC FINAL with new Themes'!A:M,10,0)","v":0},{"$f":"VLOOKUP(B218,'[1]LOC FINAL with new Themes'!A:M,11,0)","v":0},{"$f":"VLOOKUP(B218,'[1]LOC FINAL with new Themes'!A:M,12,0)","v":0},{"$f":"VLOOKUP(B218,'[1]LOC FINAL with new Themes'!A:M,13,0)","v":0}]
[null,null,null,{"$f":"SUBTOTAL(3,D214:D218)","v":5},"Soils  Count"]
[null,"Address Range-Feature Name Relationship File","Address Range-Feature Name Relationship File",{"$f":"IF(C220=0,B220,C220)","v":"Address Range-Feature Name Relationship File"},"Transportation ","DOC-Census","Jennifer Holland","Jennifer.L.Holland@census.gov",{"$f":"VLOOKUP(B220,'[1]LOC FINAL with new Themes'!A:M,7,0)","v":0},{"$f":"VLOOKUP(B220,'[1]LOC FINAL with new Themes'!A:M,8,0)","v":0},{"$f":"VLOOKUP(B220,'[1]LOC FINAL with new Themes'!A:M,9,0)","v":0},{"$f":"VLOOKUP(B220,'[1]LOC FINAL with new Themes'!A:M,10,0)","v":0},{"$f":"VLOOKUP(B220,'[1]LOC FINAL with new Themes'!A:M,11,0)","v":0},{"$f":"VLOOKUP(B220,'[1]LOC FINAL with new Themes'!A:M,12,0)","v":0},{"$f":"VLOOKUP(B220,'[1]LOC FINAL with new Themes'!A:M,13,0)","v":0}]
[null,"Address Ranges Relationship File","Address Ranges Relationship File","Address Ranges Relationship File","Transportation ","DOC-Census","Jennifer Holland","Jennifer.L.Holland@census.gov",{"$f":"VLOOKUP(B221,'[1]LOC FINAL with new Themes'!A:M,7,0)","v":0},{"$f":"VLOOKUP(B221,'[1]LOC FINAL with new Themes'!A:M,8,0)","v":0},{"$f":"VLOOKUP(B221,'[1]LOC FINAL with new Themes'!A:M,9,0)","v":0},{"$f":"VLOOKUP(B221,'[1]LOC FINAL with new Themes'!A:M,10,0)","v":0},{"$f":"VLOOKUP(B221,'[1]LOC FINAL with new Themes'!A:M,11,0)","v":0},{"$f":"VLOOKUP(B221,'[1]LOC FINAL with new Themes'!A:M,12,0)","v":0},{"$f":"VLOOKUP(B221,'[1]LOC FINAL with new Themes'!A:M,13,0)","v":0}]
[null,"All Roads","All Roads","All Roads","Transportation ","DOC-Census","Jennifer Holland","Jennifer.L.Holland@census.gov",{"$f":"VLOOKUP(B222,'[1]LOC FINAL with new Themes'!A:M,7,0)","v":0},{"$f":"VLOOKUP(B222,'[1]LOC FINAL with new Themes'!A:M,8,0)","v":0},{"$f":"VLOOKUP(B222,'[1]LOC FINAL with new Themes'!A:M,9,0)","v":0},{"$f":"VLOOKUP(B222,'[1]LOC FINAL with new Themes'!A:M,10,0)","v":0},{"$f":"VLOOKUP(B222,'[1]LOC FINAL with new Themes'!A:M,11,0)","v":0},{"$f":"VLOOKUP(B222,'[1]LOC FINAL with new Themes'!A:M,12,0)","v":0},{"$f":"VLOOKUP(B222,'[1]LOC FINAL with new Themes'!A:M,13,0)","v":0}]
["Inland Electronic Navigation Charts (IENC)","Inland Electronic Navigation Charts (IENC)","Inland Electronic Navigation Charts (IENC)","Inland Electronic Navigation Charts (IENC)","Transportation ","DOD-USACE","Joel Schlagel","Joel.D.Schlagel@erdc.usace.army.mil ",{"$f":"VLOOKUP(B223,'[1]LOC FINAL with new Themes'!A:M,7,0)","v":0},{"$f":"VLOOKUP(B223,'[1]LOC FINAL with new Themes'!A:M,8,0)","v":0},{"$f":"VLOOKUP(B223,'[1]LOC FINAL with new Themes'!A:M,9,0)","v":0},{"$f":"VLOOKUP(B223,'[1]LOC FINAL with new Themes'!A:M,10,0)","v":0},{"$f":"VLOOKUP(B223,'[1]LOC FINAL with new Themes'!A:M,11,0)","v":0},{"$f":"VLOOKUP(B223,'[1]LOC FINAL with new Themes'!A:M,12,0)","v":0},{"$f":"VLOOKUP(B223,'[1]LOC FINAL with new Themes'!A:M,13,0)","v":0}]
[null,null,"National Interagency Trails Dataset","National Interagency Trails Dataset","Transportation ","USDA"]
["National Map - Transportation Dataset","National Map - Transportation Dataset","National Transportation Dataset - National Map","National Transportation Dataset - National Map","Transportation ","DOI-USGS","Paul Wiese","pmwiese@usgs.gov",{"$f":"VLOOKUP(B225,'[1]LOC FINAL with new Themes'!A:M,7,0)","v":0},{"$f":"VLOOKUP(B225,'[1]LOC FINAL with new Themes'!A:M,8,0)","v":0},{"$f":"VLOOKUP(B225,'[1]LOC FINAL with new Themes'!A:M,9,0)","v":0},{"$f":"VLOOKUP(B225,'[1]LOC FINAL with new Themes'!A:M,10,0)","v":0},{"$f":"VLOOKUP(B225,'[1]LOC FINAL with new Themes'!A:M,11,0)","v":0},{"$f":"VLOOKUP(B225,'[1]LOC FINAL with new Themes'!A:M,12,0)","v":0},{"$f":"VLOOKUP(B225,'[1]LOC FINAL with new Themes'!A:M,13,0)","v":0}]
["NTAD","NTAD","NTAD","NTAD","Transportation ","DOT-BTS","Robert Monniere","robert.monniere@dot.gov",{"$f":"VLOOKUP(B226,'[1]LOC FINAL with new Themes'!A:M,7,0)","v":0},{"$f":"VLOOKUP(B226,'[1]LOC FINAL with new Themes'!A:M,8,0)","v":0},{"$f":"VLOOKUP(B226,'[1]LOC FINAL with new Themes'!A:M,9,0)","v":0},{"$f":"VLOOKUP(B226,'[1]LOC FINAL with new Themes'!A:M,10,0)","v":0},{"$f":"VLOOKUP(B226,'[1]LOC FINAL with new Themes'!A:M,11,0)","v":0},{"$f":"VLOOKUP(B226,'[1]LOC FINAL with new Themes'!A:M,12,0)","v":0},{"$f":"VLOOKUP(B226,'[1]LOC FINAL with new Themes'!A:M,13,0)","v":0}]
[null,null,"NTAD (airports)","NTAD (airports)","Transportation ","DOT-BTS"]
[null,null,"NTAD (Rail)","NTAD (Rail)","Transportation ","DOT-BTS"]
["NTAD (TransitLines) ","NTAD (TransitLines) ","NTAD (TransitLines) ","NTAD (TransitLines) ","Transportation ","DOT-BTS","Robert Monniere ","robert.monniere@dot.gov \n",{"$f":"VLOOKUP(B229,'[1]LOC FINAL with new Themes'!A:M,7,0)","v":0},{"$f":"VLOOKUP(B229,'[1]LOC FINAL with new Themes'!A:M,8,0)","v":0},{"$f":"VLOOKUP(B229,'[1]LOC FINAL with new Themes'!A:M,9,0)","v":0},{"$f":"VLOOKUP(B229,'[1]LOC FINAL with new Themes'!A:M,10,0)","v":0},{"$f":"VLOOKUP(B229,'[1]LOC FINAL with new Themes'!A:M,11,0)","v":0},{"$f":"VLOOKUP(B229,'[1]LOC FINAL with new Themes'!A:M,12,0)","v":0},{"$f":"VLOOKUP(B229,'[1]LOC FINAL with new Themes'!A:M,13,0)","v":0}]
["NTAD (TransitStation) ","NTAD (TransitStation) ","NTAD (TransitStation) ","NTAD (TransitStation) ","Transportation ","DOT-BTS","Robert Monniere ","robert.monniere@dot.gov ",{"$f":"VLOOKUP(B230,'[1]LOC FINAL with new Themes'!A:M,7,0)","v":0},{"$f":"VLOOKUP(B230,'[1]LOC FINAL with new Themes'!A:M,8,0)","v":0},{"$f":"VLOOKUP(B230,'[1]LOC FINAL with new Themes'!A:M,9,0)","v":0},{"$f":"VLOOKUP(B230,'[1]LOC FINAL with new Themes'!A:M,10,0)","v":0},{"$f":"VLOOKUP(B230,'[1]LOC FINAL with new Themes'!A:M,11,0)","v":0},{"$f":"VLOOKUP(B230,'[1]LOC FINAL with new Themes'!A:M,12,0)","v":0},{"$f":"VLOOKUP(B230,'[1]LOC FINAL with new Themes'!A:M,13,0)","v":0}]
[null,"Primary and Secondary Roads","Primary and Secondary Roads",{"$f":"IF(C231=0,#REF!,C231)","v":"Primary and Secondary Roads"},"Transportation ","DOC-Census","Jennifer Holland","Jennifer.L.Holland@census.gov",{"$f":"VLOOKUP(B231,'[1]LOC FINAL with new Themes'!A:M,7,0)","v":0},{"$f":"VLOOKUP(B231,'[1]LOC FINAL with new Themes'!A:M,8,0)","v":0},{"$f":"VLOOKUP(B231,'[1]LOC FINAL with new Themes'!A:M,9,0)","v":0},{"$f":"VLOOKUP(B231,'[1]LOC FINAL with new Themes'!A:M,10,0)","v":0},{"$f":"VLOOKUP(B231,'[1]LOC FINAL with new Themes'!A:M,11,0)","v":0},{"$f":"VLOOKUP(B231,'[1]LOC FINAL with new Themes'!A:M,12,0)","v":0},{"$f":"VLOOKUP(B231,'[1]LOC FINAL with new Themes'!A:M,13,0)","v":0}]
[null,"Primary Roads","Primary Roads",{"$f":"IF(C232=0,B232,C232)","v":"Primary Roads"},"Transportation ","DOC-Census","Jennifer Holland","Jennifer.L.Holland@census.gov",{"$f":"VLOOKUP(B232,'[1]LOC FINAL with new Themes'!A:M,7,0)","v":0},{"$f":"VLOOKUP(B232,'[1]LOC FINAL with new Themes'!A:M,8,0)","v":0},{"$f":"VLOOKUP(B232,'[1]LOC FINAL with new Themes'!A:M,9,0)","v":0},{"$f":"VLOOKUP(B232,'[1]LOC FINAL with new Themes'!A:M,10,0)","v":0},{"$f":"VLOOKUP(B232,'[1]LOC FINAL with new Themes'!A:M,11,0)","v":0},{"$f":"VLOOKUP(B232,'[1]LOC FINAL with new Themes'!A:M,12,0)","v":0},{"$f":"VLOOKUP(B232,'[1]LOC FINAL with new Themes'!A:M,13,0)","v":0}]
["TIGER (Roads/Rail)","TIGER (Roads/Rail)",null,{"$f":"IF(C233=0,B233,C233)","v":"TIGER (Roads/Rail)"},"Transportation ","DOC-Census","Randy Fusaro","randy.j.fusaro@census.gov",{"$f":"VLOOKUP(B233,'[1]LOC FINAL with new Themes'!A:M,7,0)","v":0},{"$f":"VLOOKUP(B233,'[1]LOC FINAL with new Themes'!A:M,8,0)","v":0},{"$f":"VLOOKUP(B233,'[1]LOC FINAL with new Themes'!A:M,9,0)","v":0},{"$f":"VLOOKUP(B233,'[1]LOC FINAL with new Themes'!A:M,10,0)","v":0},{"$f":"VLOOKUP(B233,'[1]LOC FINAL with new Themes'!A:M,11,0)","v":0},{"$f":"VLOOKUP(B233,'[1]LOC FINAL with new Themes'!A:M,12,0)","v":0},{"$f":"VLOOKUP(B233,'[1]LOC FINAL with new Themes'!A:M,13,0)","v":0}]
[null,"Traffic Analysis Zone (Census 2000)","Traffic Analysis Zone (Census 2000)",{"$f":"IF(C234=0,B234,C234)","v":"Traffic Analysis Zone (Census 2000)"},"Transportation ","DOC-Census","Jennifer Holland","Jennifer.L.Holland@census.gov",{"$f":"VLOOKUP(B234,'[1]LOC FINAL with new Themes'!A:M,7,0)","v":0},{"$f":"VLOOKUP(B234,'[1]LOC FINAL with new Themes'!A:M,8,0)","v":0},{"$f":"VLOOKUP(B234,'[1]LOC FINAL with new Themes'!A:M,9,0)","v":0},{"$f":"VLOOKUP(B234,'[1]LOC FINAL with new Themes'!A:M,10,0)","v":0},{"$f":"VLOOKUP(B234,'[1]LOC FINAL with new Themes'!A:M,11,0)","v":0},{"$f":"VLOOKUP(B234,'[1]LOC FINAL with new Themes'!A:M,12,0)","v":0},{"$f":"VLOOKUP(B234,'[1]LOC FINAL with new Themes'!A:M,13,0)","v":0}]
[null,null,null,{"$f":"SUBTOTAL(3,D220:D234)","v":15},"Transportation  Count"]
[null,null,"Pipelines",{"$f":"IF(C236=0,B236,C236)","v":"Pipelines"},"Utilities ","DOI-MMS"]
[null,null,"Platforms",{"$f":"IF(C237=0,B237,C237)","v":"Platforms"},"Utilities ","DOI-MMS"]
[null,null,null,{"$f":"SUBTOTAL(3,D236:D237)","v":2},"Utilities  Count"]
[null,"Area Hydrography (2010 Census)","Area Hydrography (2010 Census)",{"$f":"IF(C239=0,B239,C239)","v":"Area Hydrography (2010 Census)"},"Water -- Inland","DOC-Census","Jennifer Holland","Jennifer.L.Holland@census.gov",{"$f":"VLOOKUP(B239,'[1]LOC FINAL with new Themes'!A:M,7,0)","v":0},{"$f":"VLOOKUP(B239,'[1]LOC FINAL with new Themes'!A:M,8,0)","v":0},{"$f":"VLOOKUP(B239,'[1]LOC FINAL with new Themes'!A:M,9,0)","v":0},{"$f":"VLOOKUP(B239,'[1]LOC FINAL with new Themes'!A:M,10,0)","v":0},{"$f":"VLOOKUP(B239,'[1]LOC FINAL with new Themes'!A:M,11,0)","v":0},{"$f":"VLOOKUP(B239,'[1]LOC FINAL with new Themes'!A:M,12,0)","v":0},{"$f":"VLOOKUP(B239,'[1]LOC FINAL with new Themes'!A:M,13,0)","v":0}]
[null,"Linear Water Features","Linear Water Features","Linear Water Features","Water -- Inland","DOC-Census","Jennifer Holland","Jennifer.L.Holland@census.gov",{"$f":"VLOOKUP(B240,'[1]LOC FINAL with new Themes'!A:M,7,0)","v":0},{"$f":"VLOOKUP(B240,'[1]LOC FINAL with new Themes'!A:M,8,0)","v":0},{"$f":"VLOOKUP(B240,'[1]LOC FINAL with new Themes'!A:M,9,0)","v":0},{"$f":"VLOOKUP(B240,'[1]LOC FINAL with new Themes'!A:M,10,0)","v":0},{"$f":"VLOOKUP(B240,'[1]LOC FINAL with new Themes'!A:M,11,0)","v":0},{"$f":"VLOOKUP(B240,'[1]LOC FINAL with new Themes'!A:M,12,0)","v":0},{"$f":"VLOOKUP(B240,'[1]LOC FINAL with new Themes'!A:M,13,0)","v":0}]
["National Hydrography Data Set","National Hydrography Dataset","National Hydrography Dataset - National Map","National Hydrography Dataset - National Map","Water -- Inland","DOI-USGS","Jeff Simley","jdsimley@usgs.gov",{"$f":"VLOOKUP(B241,'[1]LOC FINAL with new Themes'!A:M,7,0)","v":0},{"$f":"VLOOKUP(B241,'[1]LOC FINAL with new Themes'!A:M,8,0)","v":0},{"$f":"VLOOKUP(B241,'[1]LOC FINAL with new Themes'!A:M,9,0)","v":0},{"$f":"VLOOKUP(B241,'[1]LOC FINAL with new Themes'!A:M,10,0)","v":0},{"$f":"VLOOKUP(B241,'[1]LOC FINAL with new Themes'!A:M,11,0)","v":0},{"$f":"VLOOKUP(B241,'[1]LOC FINAL with new Themes'!A:M,12,0)","v":0},{"$f":"VLOOKUP(B241,'[1]LOC FINAL with new Themes'!A:M,13,0)","v":0}]
["National Inventory of Dams (NID)","National Inventory of Dams (NID)","National Inventory of Dams (NID)","National Inventory of Dams (NID)","Water -- Inland","DOD-USACE","Rebecca Ragon","Rebecca.Ragon@usace.army.mil ",{"$f":"VLOOKUP(B242,'[1]LOC FINAL with new Themes'!A:M,7,0)","v":"One single data set"},{"$f":"VLOOKUP(B242,'[1]LOC FINAL with new Themes'!A:M,8,0)","v":"Yes"},{"$f":"VLOOKUP(B242,'[1]LOC FINAL with new Themes'!A:M,9,0)","v":"Yes"},{"$f":"VLOOKUP(B242,'[1]LOC FINAL with new Themes'!A:M,10,0)","v":"Usually every 2 years"},{"$f":"VLOOKUP(B242,'[1]LOC FINAL with new Themes'!A:M,11,0)","v":"Because the NID is updated every 2 years, we do have archived databased datig back to 1994."},{"$f":"VLOOKUP(B242,'[1]LOC FINAL with new Themes'!A:M,12,0)","v":"The official name is National Inventory of Dams (NID) but I have seen the database referenced as the National Dam Inventory"},{"$f":"VLOOKUP(B242,'[1]LOC FINAL with new Themes'!A:M,13,0)","v":"S"}]
["National Levee Database (NLD)","National Levee Database (NLD)","National Levee Database (NLD)","National Levee Database (NLD)","Water -- Inland","DOD-USACE","Bryan Baker","Bryan.E.Baker@usace.army.mil",{"$f":"VLOOKUP(B243,'[1]LOC FINAL with new Themes'!A:M,7,0)","v":0},{"$f":"VLOOKUP(B243,'[1]LOC FINAL with new Themes'!A:M,8,0)","v":0},{"$f":"VLOOKUP(B243,'[1]LOC FINAL with new Themes'!A:M,9,0)","v":0},{"$f":"VLOOKUP(B243,'[1]LOC FINAL with new Themes'!A:M,10,0)","v":0},{"$f":"VLOOKUP(B243,'[1]LOC FINAL with new Themes'!A:M,11,0)","v":0},{"$f":"VLOOKUP(B243,'[1]LOC FINAL with new Themes'!A:M,12,0)","v":0},{"$f":"VLOOKUP(B243,'[1]LOC FINAL with new Themes'!A:M,13,0)","v":0}]
[null,null,"National Water Information System (NWIS)- Stream Gage Network","National Water Information System (NWIS)- Stream Gage Network","Water -- Inland","DOI-USGS"]
[null,null,"National Water Information System (NWIS)- Water Quality Monitoring Stations","National Water Information System (NWIS)- Water Quality Monitoring Stations","Water -- Inland","DOI-USGS"]
["National Wetlands Inventory (NWI) ","National Wetlands Inventory (NWI) ","National Wetlands Inventory (NWI) ","National Wetlands Inventory (NWI) ","Water -- Inland","DOI-FWS","Tom Dahl  ","tom_dahl@fws.gov\n",{"$f":"VLOOKUP(B246,'[1]LOC FINAL with new Themes'!A:M,7,0)","v":0},{"$f":"VLOOKUP(B246,'[1]LOC FINAL with new Themes'!A:M,8,0)","v":0},{"$f":"VLOOKUP(B246,'[1]LOC FINAL with new Themes'!A:M,9,0)","v":0},{"$f":"VLOOKUP(B246,'[1]LOC FINAL with new Themes'!A:M,10,0)","v":0},{"$f":"VLOOKUP(B246,'[1]LOC FINAL with new Themes'!A:M,11,0)","v":0},{"$f":"VLOOKUP(B246,'[1]LOC FINAL with new Themes'!A:M,12,0)","v":0},{"$f":"VLOOKUP(B246,'[1]LOC FINAL with new Themes'!A:M,13,0)","v":0}]
["NWIS & STORET","NWIS & STORET",null,"NWIS & STORET","Water -- Inland",null,"EGIM",null,{"$f":"VLOOKUP(B247,'[1]LOC FINAL with new Themes'!A:M,7,0)","v":0},{"$f":"VLOOKUP(B247,'[1]LOC FINAL with new Themes'!A:M,8,0)","v":0},{"$f":"VLOOKUP(B247,'[1]LOC FINAL with new Themes'!A:M,9,0)","v":0},{"$f":"VLOOKUP(B247,'[1]LOC FINAL with new Themes'!A:M,10,0)","v":0},{"$f":"VLOOKUP(B247,'[1]LOC FINAL with new Themes'!A:M,11,0)","v":0},{"$f":"VLOOKUP(B247,'[1]LOC FINAL with new Themes'!A:M,12,0)","v":0},{"$f":"VLOOKUP(B247,'[1]LOC FINAL with new Themes'!A:M,13,0)","v":0}]
[null,"Topological Faces-Area Hydrography Relationship File","Topological Faces-Area Hydrography Relationship File","Topological Faces-Area Hydrography Relationship File","Water -- Inland","DOC-Census","Jennifer Holland","Jennifer.L.Holland@census.gov",{"$f":"VLOOKUP(B248,'[1]LOC FINAL with new Themes'!A:M,7,0)","v":0},{"$f":"VLOOKUP(B248,'[1]LOC FINAL with new Themes'!A:M,8,0)","v":0},{"$f":"VLOOKUP(B248,'[1]LOC FINAL with new Themes'!A:M,9,0)","v":0},{"$f":"VLOOKUP(B248,'[1]LOC FINAL with new Themes'!A:M,10,0)","v":0},{"$f":"VLOOKUP(B248,'[1]LOC FINAL with new Themes'!A:M,11,0)","v":0},{"$f":"VLOOKUP(B248,'[1]LOC FINAL with new Themes'!A:M,12,0)","v":0},{"$f":"VLOOKUP(B248,'[1]LOC FINAL with new Themes'!A:M,13,0)","v":0}]
["Watershed Boundary Data Set (WBD)  ","Watershed Boundary Dataset (WBD)  ","Watershed Boundary Dataset (WBD)  ","Watershed Boundary Dataset (WBD)  ","Water -- Inland","DOI-USGS","Karen Hanson","khanson@usgs.gov",{"$f":"VLOOKUP(B249,'[1]LOC FINAL with new Themes'!A:M,7,0)","v":"one set with nested hierarchy of six different levels within it (regions, subdivided into four, six and twelve digits), POC and data manager; continually updated; co-managed with NRCS and they archive it; USGS in Denver will serve it; All transactions are archived in versions in the database as they happen. Data from any moment in time can be captured with a simple query. The database is replicated daily to Rolla, MO servers. The database is stored on a SAN with three tier redundancy.All changes to the database are stored on separate disks and once they reach a certain size, they are copied over to a server to be written to tape. Weekly, the entire database (NHD, with WBD) is written to tape.Monthly, the tapes are taken off site for storage."},{"$f":"VLOOKUP(B249,'[1]LOC FINAL with new Themes'!A:M,8,0)","v":0},{"$f":"VLOOKUP(B249,'[1]LOC FINAL with new Themes'!A:M,9,0)","v":0},{"$f":"VLOOKUP(B249,'[1]LOC FINAL with new Themes'!A:M,10,0)","v":0},{"$f":"VLOOKUP(B249,'[1]LOC FINAL with new Themes'!A:M,11,0)","v":0},{"$f":"VLOOKUP(B249,'[1]LOC FINAL with new Themes'!A:M,12,0)","v":0},{"$f":"VLOOKUP(B249,'[1]LOC FINAL with new Themes'!A:M,13,0)","v":"S"}]
["Watershed Boundary Data Set (WBD)  ","Watershed Boundary Dataset (WBD)  ","Watershed Boundary Dataset (WBD)  ","Watershed Boundary Dataset (WBD)  ","Water -- Inland","DOI-USGS","Karen Hanson","khanson@usgs.gov",{"$f":"VLOOKUP(B250,'[1]LOC FINAL with new Themes'!A:M,7,0)","v":"one set with nested hierarchy of six different levels within it (regions, subdivided into four, six and twelve digits), POC and data manager; continually updated; co-managed with NRCS and they archive it; USGS in Denver will serve it; All transactions are archived in versions in the database as they happen. Data from any moment in time can be captured with a simple query. The database is replicated daily to Rolla, MO servers. The database is stored on a SAN with three tier redundancy.All changes to the database are stored on separate disks and once they reach a certain size, they are copied over to a server to be written to tape. Weekly, the entire database (NHD, with WBD) is written to tape.Monthly, the tapes are taken off site for storage."},{"$f":"VLOOKUP(B250,'[1]LOC FINAL with new Themes'!A:M,8,0)","v":0},{"$f":"VLOOKUP(B250,'[1]LOC FINAL with new Themes'!A:M,9,0)","v":0},{"$f":"VLOOKUP(B250,'[1]LOC FINAL with new Themes'!A:M,10,0)","v":0},{"$f":"VLOOKUP(B250,'[1]LOC FINAL with new Themes'!A:M,11,0)","v":0},{"$f":"VLOOKUP(B250,'[1]LOC FINAL with new Themes'!A:M,12,0)","v":0},{"$f":"VLOOKUP(B250,'[1]LOC FINAL with new Themes'!A:M,13,0)","v":"S"}]
[null,null,null,{"$f":"SUBTOTAL(3,D239:D250)","v":12},"Water -- Inland Count"]
[null,null,"Coastal Barrier Resource System",{"$f":"IF(C252=0,B252,C252)","v":"Coastal Barrier Resource System"},"Water -- Oceans and Coasts ","DOI-FWS"]
[null,null,"Coastal Change Analysis Program (C-CAP) Land Cover and Land Change Imagery","Coastal Change Analysis Program (C-CAP) Land Cover and Land Change Imagery","Water -- Oceans and Coasts ","DOC-NOAA","Nate Herold","nate.herold@noaa.gov"]
["Continental Shelf Boundary Data","Continental Shelf Boundary Data","Continental Shelf Boundary Data","Continental Shelf Boundary Data","Water -- Oceans and Coasts ","DOI-BOEM","Doug Vandegraft","douglas.vandegraft@boemre.gov",{"$f":"VLOOKUP(B254,'[1]LOC FINAL with new Themes'!A:M,7,0)","v":"undeliverable email- neeed to identify new contact"},{"$f":"VLOOKUP(B254,'[1]LOC FINAL with new Themes'!A:M,8,0)","v":0},{"$f":"VLOOKUP(B254,'[1]LOC FINAL with new Themes'!A:M,9,0)","v":0},{"$f":"VLOOKUP(B254,'[1]LOC FINAL with new Themes'!A:M,10,0)","v":0},{"$f":"VLOOKUP(B254,'[1]LOC FINAL with new Themes'!A:M,11,0)","v":0},{"$f":"VLOOKUP(B254,'[1]LOC FINAL with new Themes'!A:M,12,0)","v":0},{"$f":"VLOOKUP(B254,'[1]LOC FINAL with new Themes'!A:M,13,0)","v":0}]
[null,null,"National Data Buoy Center (NDBC) Recent and Historical Data","National Data Buoy Center (NDBC) Recent and Historical Data","Water -- Oceans and Coasts ","DOC-NOAA"]
[null,null,"NOAA National Shoreline","NOAA National Shoreline","Water -- Oceans and Coasts ","DOC-NOAA","Doug Graham","Doug.Graham@noaa.gov"]
["NOAA Nautical Charts","NOAA Nautical Charts","NOAA's Nautical Chart Products","NOAA's Nautical Chart Products","Water -- Oceans and Coasts ","DOC-NOAA","Meredith Westington","meredith.westington@noaa.gov",{"$f":"VLOOKUP(B257,'[1]LOC FINAL with new Themes'!A:M,7,0)","v":0},{"$f":"VLOOKUP(B257,'[1]LOC FINAL with new Themes'!A:M,8,0)","v":0},{"$f":"VLOOKUP(B257,'[1]LOC FINAL with new Themes'!A:M,9,0)","v":0},{"$f":"VLOOKUP(B257,'[1]LOC FINAL with new Themes'!A:M,10,0)","v":0},{"$f":"VLOOKUP(B257,'[1]LOC FINAL with new Themes'!A:M,11,0)","v":0},{"$f":"VLOOKUP(B257,'[1]LOC FINAL with new Themes'!A:M,12,0)","v":0},{"$f":"VLOOKUP(B257,'[1]LOC FINAL with new Themes'!A:M,13,0)","v":0}]
[null,null,"Non-Projected Boundaries","Non-Projected Boundaries","Water -- Oceans and Coasts ","DOI-MMS"]
[null,null,"Projected Boundaries","Projected Boundaries","Water -- Oceans and Coasts ","DOI-MMS"]
[null,null,"U.S. Marine Protected Areas Boundaries","U.S. Marine Protected Areas Boundaries","Water -- Oceans and Coasts ","DOC-NOAA"]
[null,null,"U.S. Maritime Zones/Boundaries","U.S. Maritime Zones/Boundaries","Water -- Oceans and Coasts ","DOC-NOAA","Meredith Westington","meredith.westington@noaa.gov"]
[null,null,null,{"$f":"SUBTOTAL(3,D252:D261)","v":10},"Water -- Oceans and Coasts  Count"]
[null,null,null,{"$f":"SUBTOTAL(3,D2:D261)","v":242},"Grand Count"]

{"sheet":"4-20-2012","index":24,"n_rows":260,"n_cols":15,"rows_kept":260,"cut":false,"hidden":true,"merged":[]}
["ORIGINAL (beginning of 2011)","LOC FINAL (October 2011)","NGDA List (October 2011)","FINAL List (November 2011)","Theme","Agency","Dataset Manager","Email","Q1 How many data set(s) do you have? It is a single set or multiple sets? ","Q2 Are you a data set manager?","Q3 Are you the POC for transferring the data set and/or for information about the data set?","Q4 How often is the data set updated?","Q5 Is there an archive/backup of the data set or do you maintain an archived copy of it? If yes, how far back do you maintain a copy? Is it easily accessible?","Q6 Does the data set go by a different name or is it referred to internally by another descriptive name?","M\nP\nS"]
[null,null,"Critical Habitat ",{"$f":"IF(C2=0,B2,C2)","v":"Critical Habitat "},"Biota","DOI-FWS"]
[null,null,"Current Range for listed species ","Current Range for listed species ","Biota","DOI-FWS"]
["ECOMAP Data Sets (Ecological Subregions: Sections and Subsections for the Conterminous United States ) ","ECOMAP Datasets (Ecological Subregions: Sections and Subsections for the Conterminous United States ) ","ECOMAP Datasets (Ecological Subregions: Sections and Subsections for the Conterminous United States ) ","ECOMAP Datasets (Ecological Subregions: Sections and Subsections for the Conterminous United States ) ","Biota","USDA-FS","David T. Cleland","dcleland@fs.fed.us",{"$f":"VLOOKUP(B4,'[2]LOC FINAL with new Themes'!A:M,7,0)","v":"One, single set"},{"$f":"VLOOKUP(B4,'[2]LOC FINAL with new Themes'!A:M,8,0)","v":"Yes"},{"$f":"VLOOKUP(B4,'[2]LOC FINAL with new Themes'!A:M,9,0)","v":"Yes"},{"$f":"VLOOKUP(B4,'[2]LOC FINAL with new Themes'!A:M,10,0)","v":"Maps are updated on a 10-year cycle"},{"$f":"VLOOKUP(B4,'[2]LOC FINAL with new Themes'!A:M,11,0)","v":"The data is housed at and served by the Forest Service geodata portal, and is easily accessible.  The web address is: http://fsgeodata.fs.fed.us/other_resources/ecosubregions.html "},{"$f":"VLOOKUP(B4,'[2]LOC FINAL with new Themes'!A:M,12,0)","v":"?   Internally, the data is named ECOMAP or the National Hierarchy of Ecological Units. "},{"$f":"VLOOKUP(B4,'[2]LOC FINAL with new Themes'!A:M,13,0)","v":"S"}]
[null,null,"Endangered Species (Threatened and Endangered Species System)","Endangered Species (Threatened and Endangered Species System)","Biota","DOI-FWS"]
["Env Sens Index Maps - classified shoreline","Env Sens Index Maps - classified shoreline","Environmental Sensitivity Index (ESI) Data and Maps","Environmental Sensitivity Index (ESI) Data and Maps","Biota","DOC-NOAA","Jill Petersen","jill.petersen@noaa.gov",{"$f":"VLOOKUP(B6,'[2]LOC FINAL with new Themes'!A:M,7,0)","v":"There are approximately 70 different atlases. There are a few that are still not available in a GIS format, (approx 7 of the approx 70!) - these are available as the hard copy product and as PDFs (scanned). The remaining atlases are available in multiple GIS formats - Arc Export files, Geodatabase with an ArcMap map document complete with all relates established and properly symbolized, Shape files with an ArcView 3.x project, a free ESI viewer that allows viewing, queries and printing (in house mapping program and filemaker pro) as well as PDF format and the hard copy product. These can be downloaded from http://response.restoration.noaa.gov/esi_download This page is in progress, but should be complete fairly quickly.\n\n"},{"$f":"VLOOKUP(B6,'[2]LOC FINAL with new Themes'!A:M,8,0)","v":"Yes"},{"$f":"VLOOKUP(B6,'[2]LOC FINAL with new Themes'!A:M,9,0)","v":"Yes "},{"$f":"VLOOKUP(B6,'[2]LOC FINAL with new Themes'!A:M,10,0)","v":"- High resolution products have no defined update schedule.  TBD by geog/project."},{"$f":"VLOOKUP(B6,'[2]LOC FINAL with new Themes'!A:M,11,0)","v":"Yes and no. We have archives of all the digital data as well as all the PDFs (scanned or produced with the digital data map comps). Many of the hard copy atlases from the first round of ESI maps were sent to the Library of Commerce. Others I have kept, but no very organized situation. However, we have all of the historic PDFs which are an exact duplicate of the hard copy atlas, so that is something. Historic data is going to be served from the above link as well. That will be added as the current data sets are completed."},{"$f":"VLOOKUP(B6,'[2]LOC FINAL with new Themes'!A:M,12,0)","v":"ESI is the common abbreviation for these maps. Other than that, Environmental Sensitivity Index Maps, Shoreline Sensitivity maps, Environmental Sensitivity maps..... These maps have the classified shoreline, as well as summaries of biological and human use resource particularly sensitive to oiling. "},{"$f":"VLOOKUP(B6,'[2]LOC FINAL with new Themes'!A:M,13,0)","v":"M "}]
["GAP Program Dataset","GAP Program Dataset","GAP Program Dataset","GAP Program Dataset","Biota","DOI-USGS","Kevin Gergely","gergely@usgs.gov",{"$f":"VLOOKUP(B7,'[2]LOC FINAL with new Themes'!A:M,7,0)","v":"POC; multiple data sets in single location, building three fundamental data layers, two are national (protected areas, land cover dataset); backup; six months, annually)"},{"$f":"VLOOKUP(B7,'[2]LOC FINAL with new Themes'!A:M,8,0)","v":0},{"$f":"VLOOKUP(B7,'[2]LOC FINAL with new Themes'!A:M,9,0)","v":0},{"$f":"VLOOKUP(B7,'[2]LOC FINAL with new Themes'!A:M,10,0)","v":0},{"$f":"VLOOKUP(B7,'[2]LOC FINAL with new Themes'!A:M,11,0)","v":0},{"$f":"VLOOKUP(B7,'[2]LOC FINAL with new Themes'!A:M,12,0)","v":0},{"$f":"VLOOKUP(B7,'[2]LOC FINAL with new Themes'!A:M,13,0)","v":"P"}]
["National Standardized Ecosystems Dataset","National Standardized Ecosystems Dataset","National Standardized Ecosystems Dataset","National Standardized Ecosystems Dataset","Biota","DOI-USGS","Roger Sayre","rsayre@usgs.gov",{"$f":"VLOOKUP(B8,'[2]LOC FINAL with new Themes'!A:M,7,0)","v":0},{"$f":"VLOOKUP(B8,'[2]LOC FINAL with new Themes'!A:M,8,0)","v":0},{"$f":"VLOOKUP(B8,'[2]LOC FINAL with new Themes'!A:M,9,0)","v":0},{"$f":"VLOOKUP(B8,'[2]LOC FINAL with new Themes'!A:M,10,0)","v":0},{"$f":"VLOOKUP(B8,'[2]LOC FINAL with new Themes'!A:M,11,0)","v":0},{"$f":"VLOOKUP(B8,'[2]LOC FINAL with new Themes'!A:M,12,0)","v":0},{"$f":"VLOOKUP(B8,'[2]LOC FINAL with new Themes'!A:M,13,0)","v":0}]
[null,null,"Recovery Range for listed species ","Recovery Range for listed species ","Biota","DOI-FWS"]
[null,null,"Section 7 Range for listed species ","Section 7 Range for listed species ","Biota","DOI-FWS"]
["Biomes, Ecoregions","Biomes, Ecoregions",null,"Biomes, Ecoregions","Biota ","DOI-USGS","Dan Phillips ","dphillips@usgs.gov",{"$f":"VLOOKUP(B11,'[2]LOC FINAL with new Themes'!A:M,7,0)","v":0},{"$f":"VLOOKUP(B11,'[2]LOC FINAL with new Themes'!A:M,8,0)","v":0},{"$f":"VLOOKUP(B11,'[2]LOC FINAL with new Themes'!A:M,9,0)","v":0},{"$f":"VLOOKUP(B11,'[2]LOC FINAL with new Themes'!A:M,10,0)","v":0},{"$f":"VLOOKUP(B11,'[2]LOC FINAL with new Themes'!A:M,11,0)","v":0},{"$f":"VLOOKUP(B11,'[2]LOC FINAL with new Themes'!A:M,12,0)","v":0},{"$f":"VLOOKUP(B11,'[2]LOC FINAL with new Themes'!A:M,13,0)","v":0}]
["Ecological Services","Ecological Services",null,"Ecological Services","Biota ","DOI-USGS","Dan Phillips ","dphillips@usgs.gov",{"$f":"VLOOKUP(B12,'[2]LOC FINAL with new Themes'!A:M,7,0)","v":0},{"$f":"VLOOKUP(B12,'[2]LOC FINAL with new Themes'!A:M,8,0)","v":0},{"$f":"VLOOKUP(B12,'[2]LOC FINAL with new Themes'!A:M,9,0)","v":0},{"$f":"VLOOKUP(B12,'[2]LOC FINAL with new Themes'!A:M,10,0)","v":0},{"$f":"VLOOKUP(B12,'[2]LOC FINAL with new Themes'!A:M,11,0)","v":0},{"$f":"VLOOKUP(B12,'[2]LOC FINAL with new Themes'!A:M,12,0)","v":0},{"$f":"VLOOKUP(B12,'[2]LOC FINAL with new Themes'!A:M,13,0)","v":0}]
["Habitats","Habitats",null,"Habitats","Biota ","DOI-USGS","Dan Phillips ","dphillips@usgs.gov",{"$f":"VLOOKUP(B13,'[2]LOC FINAL with new Themes'!A:M,7,0)","v":"see protected areas and land cover set; vertebrae species of US being developed (not complete for all species they want to include in it."},{"$f":"VLOOKUP(B13,'[2]LOC FINAL with new Themes'!A:M,8,0)","v":0},{"$f":"VLOOKUP(B13,'[2]LOC FINAL with new Themes'!A:M,9,0)","v":0},{"$f":"VLOOKUP(B13,'[2]LOC FINAL with new Themes'!A:M,10,0)","v":0},{"$f":"VLOOKUP(B13,'[2]LOC FINAL with new Themes'!A:M,11,0)","v":0},{"$f":"VLOOKUP(B13,'[2]LOC FINAL with new Themes'!A:M,12,0)","v":0},{"$f":"VLOOKUP(B13,'[2]LOC FINAL with new Themes'!A:M,13,0)","v":"M"}]
["Invasive Species","Invasive Species",null,"Invasive Species","Biota ","DOI-USGS","Dan Phillips ","dphillips@usgs.gov",{"$f":"VLOOKUP(B14,'[2]LOC FINAL with new Themes'!A:M,7,0)","v":"There are hundreds of datasets that are produced and maintained by the GAP program. Dan is not the data set manager, but I work with the people that maintain and update the datasets and maintains metadata.The data are updated at different intervals, especially now that they have moved more to a regional and national based approach. GAPS data sets presumably archived since 1990s."},{"$f":"VLOOKUP(B14,'[2]LOC FINAL with new Themes'!A:M,8,0)","v":0},{"$f":"VLOOKUP(B14,'[2]LOC FINAL with new Themes'!A:M,9,0)","v":0},{"$f":"VLOOKUP(B14,'[2]LOC FINAL with new Themes'!A:M,10,0)","v":0},{"$f":"VLOOKUP(B14,'[2]LOC FINAL with new Themes'!A:M,11,0)","v":0},{"$f":"VLOOKUP(B14,'[2]LOC FINAL with new Themes'!A:M,12,0)","v":0},{"$f":"VLOOKUP(B14,'[2]LOC FINAL with new Themes'!A:M,13,0)","v":"M"}]
["Species Distribution(amphibians, birds, reptiles, mammals, fishes, plants, etc)","Species Distribution (amphibians, birds, reptiles, mammals, fishes, plants, etc)",null,"Species Distribution (amphibians, birds, reptiles, mammals, fishes, plants, etc)","Biota ","DOI-USGS","Dan Phillips ","dphillips@usgs.gov",{"$f":"VLOOKUP(B15,'[2]LOC FINAL with new Themes'!A:M,7,0)","v":"There are hundreds of datasets that are produced and maintained by the GAP program. Dan is not the data set manager, but I work with the people that maintain and update the datasets and maintains metadata. The data are updated at different intervals, especially now that they have moved more to a regional and national based approach. GAPS data sets presumably archived since 1990s."},{"$f":"VLOOKUP(B15,'[2]LOC FINAL with new Themes'!A:M,8,0)","v":0},{"$f":"VLOOKUP(B15,'[2]LOC FINAL with new Themes'!A:M,9,0)","v":0},{"$f":"VLOOKUP(B15,'[2]LOC FINAL with new Themes'!A:M,10,0)","v":0},{"$f":"VLOOKUP(B15,'[2]LOC FINAL with new Themes'!A:M,11,0)","v":0},{"$f":"VLOOKUP(B15,'[2]LOC FINAL with new Themes'!A:M,12,0)","v":0},{"$f":"VLOOKUP(B15,'[2]LOC FINAL with new Themes'!A:M,13,0)","v":"M"}]
[null,null,null,{"$f":"SUBTOTAL(3,D2:D15)","v":14},"Biota Count"]
["General Land Office","General Land Office","General Land Office",{"$f":"IF(C17=0,B17,C17)","v":"General Land Office"},"Cadastre","DOI-BLM","Juan Palma","juan_palma@blm.gov",{"$f":"VLOOKUP(B17,'[2]LOC FINAL with new Themes'!A:M,7,0)","v":0},{"$f":"VLOOKUP(B17,'[2]LOC FINAL with new Themes'!A:M,8,0)","v":0},{"$f":"VLOOKUP(B17,'[2]LOC FINAL with new Themes'!A:M,9,0)","v":0},{"$f":"VLOOKUP(B17,'[2]LOC FINAL with new Themes'!A:M,10,0)","v":0},{"$f":"VLOOKUP(B17,'[2]LOC FINAL with new Themes'!A:M,11,0)","v":0},{"$f":"VLOOKUP(B17,'[2]LOC FINAL with new Themes'!A:M,12,0)","v":0},{"$f":"VLOOKUP(B17,'[2]LOC FINAL with new Themes'!A:M,13,0)","v":0}]
["Geographic Coordinate Data Base (GCDB)","Geographic Coordinate Data Base (GCDB)",null,"Geographic Coordinate Data Base (GCDB)","Cadastre","DOI-BLM","Don Buhler","don_buhler@blm.gov",{"$f":"VLOOKUP(B18,'[2]LOC FINAL with new Themes'!A:M,7,0)","v":"every agency has its own database; multiple data sets; standard being advanced and put into practice; federal interest is managed with BLM; state and local are authoritative sets for other lands; "},{"$f":"VLOOKUP(B18,'[2]LOC FINAL with new Themes'!A:M,8,0)","v":0},{"$f":"VLOOKUP(B18,'[2]LOC FINAL with new Themes'!A:M,9,0)","v":0},{"$f":"VLOOKUP(B18,'[2]LOC FINAL with new Themes'!A:M,10,0)","v":0},{"$f":"VLOOKUP(B18,'[2]LOC FINAL with new Themes'!A:M,11,0)","v":0},{"$f":"VLOOKUP(B18,'[2]LOC FINAL with new Themes'!A:M,12,0)","v":0},{"$f":"VLOOKUP(B18,'[2]LOC FINAL with new Themes'!A:M,13,0)","v":"M "}]
["LR 2000 - Master Title Plats ","LR 2000 - Master Title Plats ","LR 2000 - Attribute Information","LR 2000 - Attribute Information","Cadastre","DOI-BLM","Jeff Holdren","jeff_holdren@blm.gov",{"$f":"VLOOKUP(B19,'[2]LOC FINAL with new Themes'!A:M,7,0)","v":"listing of sales, rents, agricultural disposal and rights of way cases, group of data sets in one system; Kim Burns, division chief; not archived, there is a backup; Denver office handles"},{"$f":"VLOOKUP(B19,'[2]LOC FINAL with new Themes'!A:M,8,0)","v":0},{"$f":"VLOOKUP(B19,'[2]LOC FINAL with new Themes'!A:M,9,0)","v":0},{"$f":"VLOOKUP(B19,'[2]LOC FINAL with new Themes'!A:M,10,0)","v":0},{"$f":"VLOOKUP(B19,'[2]LOC FINAL with new Themes'!A:M,11,0)","v":0},{"$f":"VLOOKUP(B19,'[2]LOC FINAL with new Themes'!A:M,12,0)","v":0},{"$f":"VLOOKUP(B19,'[2]LOC FINAL with new Themes'!A:M,13,0)","v":"P"}]
["Manual of Surveying Instructions, Data Standards","Manual of Surveying Instructions, Data Standards",null,"Manual of Surveying Instructions, Data Standards","Cadastre","DOI-BLM","Don Buhler","don_buhler@blm.gov",{"$f":"VLOOKUP(B20,'[2]LOC FINAL with new Themes'!A:M,7,0)","v":0},{"$f":"VLOOKUP(B20,'[2]LOC FINAL with new Themes'!A:M,8,0)","v":0},{"$f":"VLOOKUP(B20,'[2]LOC FINAL with new Themes'!A:M,9,0)","v":0},{"$f":"VLOOKUP(B20,'[2]LOC FINAL with new Themes'!A:M,10,0)","v":0},{"$f":"VLOOKUP(B20,'[2]LOC FINAL with new Themes'!A:M,11,0)","v":0},{"$f":"VLOOKUP(B20,'[2]LOC FINAL with new Themes'!A:M,12,0)","v":0},{"$f":"VLOOKUP(B20,'[2]LOC FINAL with new Themes'!A:M,13,0)","v":0}]
["Mineral Estate - Fluids","Mineral Estate - Fluids",null,"Mineral Estate - Fluids","Cadastre","DOI-BLM","Tim Spisak ","tim_spisak@blm.gov",{"$f":"VLOOKUP(B21,'[2]LOC FINAL with new Themes'!A:M,7,0)","v":"mineral leasess, mining claims, rights of way, gases (single data set); BLM-managed lands but managed all federal mineral estate (comprehensive for mineraal estate) some electronic and some not"},{"$f":"VLOOKUP(B21,'[2]LOC FINAL with new Themes'!A:M,8,0)","v":0},{"$f":"VLOOKUP(B21,'[2]LOC FINAL with new Themes'!A:M,9,0)","v":0},{"$f":"VLOOKUP(B21,'[2]LOC FINAL with new Themes'!A:M,10,0)","v":0},{"$f":"VLOOKUP(B21,'[2]LOC FINAL with new Themes'!A:M,11,0)","v":0},{"$f":"VLOOKUP(B21,'[2]LOC FINAL with new Themes'!A:M,12,0)","v":0},{"$f":"VLOOKUP(B21,'[2]LOC FINAL with new Themes'!A:M,13,0)","v":"P"}]
["Mineral Estate - Solids","Mineral Estate - Solids",null,"Mineral Estate - Solids","Cadastre","DOI-BLM","Mitchell Leverette","mitchell_leverette@blm.gov",{"$f":"VLOOKUP(B22,'[2]LOC FINAL with new Themes'!A:M,7,0)","v":"mineral leasess, mining claims, rights of way, gases (single data set); BLM-managed lands but managed all federal mineral estate (comprehensive for mineral estate) some electronic and some not"},{"$f":"VLOOKUP(B22,'[2]LOC FINAL with new Themes'!A:M,8,0)","v":0},{"$f":"VLOOKUP(B22,'[2]LOC FINAL with new Themes'!A:M,9,0)","v":0},{"$f":"VLOOKUP(B22,'[2]LOC FINAL with new Themes'!A:M,10,0)","v":0},{"$f":"VLOOKUP(B22,'[2]LOC FINAL with new Themes'!A:M,11,0)","v":0},{"$f":"VLOOKUP(B22,'[2]LOC FINAL with new Themes'!A:M,12,0)","v":0},{"$f":"VLOOKUP(B22,'[2]LOC FINAL with new Themes'!A:M,13,0)","v":"P"}]
[null,null,"PADUS (Protected Areas Database of the US)","PADUS (Protected Areas Database of the US)","Cadastre","DOI-USGS"]
["Parcels","Parcels","Parcels","Parcels","Cadastre","DOI-BLM","Bob Ader","bob_ader@blm.gov",{"$f":"VLOOKUP(B24,'[2]LOC FINAL with new Themes'!A:M,7,0)","v":"every agency has its own database; multiple data sets; standard being advanced and put into practice; federal interest is managed with BLM; state and local are authoritative sets for other lands; current effort of federal inventory "},{"$f":"VLOOKUP(B24,'[2]LOC FINAL with new Themes'!A:M,8,0)","v":0},{"$f":"VLOOKUP(B24,'[2]LOC FINAL with new Themes'!A:M,9,0)","v":0},{"$f":"VLOOKUP(B24,'[2]LOC FINAL with new Themes'!A:M,10,0)","v":0},{"$f":"VLOOKUP(B24,'[2]LOC FINAL with new Themes'!A:M,11,0)","v":0},{"$f":"VLOOKUP(B24,'[2]LOC FINAL with new Themes'!A:M,12,0)","v":0},{"$f":"VLOOKUP(B24,'[2]LOC FINAL with new Themes'!A:M,13,0)","v":"M "}]
[null,null,"Protractions","Protractions","Cadastre","DOI-BOEM","Doug Vandegraft","Doug.Vandegraft@boem.gov"]
["Surface Estate","Surface Estate",null,"Surface Estate","Cadastre","DOI-BLM","Kim Burns","kim_m_burns@blm.gov",{"$f":"VLOOKUP(B26,'[2]LOC FINAL with new Themes'!A:M,7,0)","v":"lands administered by BLM; other agencies have own system; ownership of lands;  Tim Spisak, division chief; not archived, there is a backup; Denver office handles"},{"$f":"VLOOKUP(B26,'[2]LOC FINAL with new Themes'!A:M,8,0)","v":0},{"$f":"VLOOKUP(B26,'[2]LOC FINAL with new Themes'!A:M,9,0)","v":0},{"$f":"VLOOKUP(B26,'[2]LOC FINAL with new Themes'!A:M,10,0)","v":0},{"$f":"VLOOKUP(B26,'[2]LOC FINAL with new Themes'!A:M,11,0)","v":0},{"$f":"VLOOKUP(B26,'[2]LOC FINAL with new Themes'!A:M,12,0)","v":0},{"$f":"VLOOKUP(B26,'[2]LOC FINAL with new Themes'!A:M,13,0)","v":0}]
["U.S. Official Cadastral Survey Records","U.S. Official Cadastral Survey Records","U.S. Official Cadastral Survey Records","U.S. Official Cadastral Survey Records","Cadastre","DOI-BLM","Don Buhler","don_buhler@blm.gov",{"$f":"VLOOKUP(B27,'[2]LOC FINAL with new Themes'!A:M,7,0)","v":"every agency has its own database; multiple data sets; standard being advanced and put into practice; federal interest is managed with BLM; state and local are authoritative sets for other lands; state offices are scanning these records (survey plats and field notes); CDI (conveyence cards)"},{"$f":"VLOOKUP(B27,'[2]LOC FINAL with new Themes'!A:M,8,0)","v":0},{"$f":"VLOOKUP(B27,'[2]LOC FINAL with new Themes'!A:M,9,0)","v":0},{"$f":"VLOOKUP(B27,'[2]LOC FINAL with new Themes'!A:M,10,0)","v":0},{"$f":"VLOOKUP(B27,'[2]LOC FINAL with new Themes'!A:M,11,0)","v":0},{"$f":"VLOOKUP(B27,'[2]LOC FINAL with new Themes'!A:M,12,0)","v":0},{"$f":"VLOOKUP(B27,'[2]LOC FINAL with new Themes'!A:M,13,0)","v":"M "}]
["U.S. Public Land Survey System","U.S. Public Land Survey System","U.S. Public Land Survey System","U.S. Public Land Survey System","Cadastre","DOI-BLM","Don Buhler","don_buhler@blm.gov",{"$f":"VLOOKUP(B28,'[2]LOC FINAL with new Themes'!A:M,7,0)","v":"only federal agency that administers the PLSS; trying to get it to be logically one data set with different regions. (working copies for nine states in West); keep historical record in data base; schema 2 is the version to look at for archiving some time March 2012"},{"$f":"VLOOKUP(B28,'[2]LOC FINAL with new Themes'!A:M,8,0)","v":0},{"$f":"VLOOKUP(B28,'[2]LOC FINAL with new Themes'!A:M,9,0)","v":0},{"$f":"VLOOKUP(B28,'[2]LOC FINAL with new Themes'!A:M,10,0)","v":0},{"$f":"VLOOKUP(B28,'[2]LOC FINAL with new Themes'!A:M,11,0)","v":0},{"$f":"VLOOKUP(B28,'[2]LOC FINAL with new Themes'!A:M,12,0)","v":0},{"$f":"VLOOKUP(B28,'[2]LOC FINAL with new Themes'!A:M,13,0)","v":"P"}]
[null,null,null,"Coastal National Parks","Cadastre","DOI - NPS","Roger Johnson ","Roger_M_Johnson@nps.gov"]
[null,null,null,"Coastal National Wildlife Refuges","Cadastre","DOI - NPS","Sean Killen","Sean_Killen@fws.gov"]
[null,null,null,"Coastal Indian Lands","Cadastre","DOI - BIA","Richard Moore","Richard.Moore@bia.gov"]
[null,null,null,"Outer Continental Shelf Lease Blocks","Cadastre","DOI - BOEM","Doug Vandegraft","Doug.Vandegraft@boem.gov"]
[null,null,null,"BOEM Active Oil and Gas Leases","Cadastre","DOI - BOEM","Doug Vandegraft","Doug.Vandegraft@boem.gov"]
[null,null,null,{"$f":"SUBTOTAL(3,D17:D28)","v":12},"Cadastre Count"]
["Blended Sea Surface Temperature","Blended Sea Surface Temperature","Blended Sea Surface Temperature",{"$f":"IF(C35=0,B35,C35)","v":"Blended Sea Surface Temperature"},"Climate and Weather ","DOC-NOAA","Viva Banzon","Viva.Banzon@noaa.gov",{"$f":"VLOOKUP(B35,'[2]LOC FINAL with new Themes'!A:M,7,0)","v":0},{"$f":"VLOOKUP(B35,'[2]LOC FINAL with new Themes'!A:M,8,0)","v":0},{"$f":"VLOOKUP(B35,'[2]LOC FINAL with new Themes'!A:M,9,0)","v":0},{"$f":"VLOOKUP(B35,'[2]LOC FINAL with new Themes'!A:M,10,0)","v":0},{"$f":"VLOOKUP(B35,'[2]LOC FINAL with new Themes'!A:M,11,0)","v":0},{"$f":"VLOOKUP(B35,'[2]LOC FINAL with new Themes'!A:M,12,0)","v":0},{"$f":"VLOOKUP(B35,'[2]LOC FINAL with new Themes'!A:M,13,0)","v":0}]
["Geostationary Operational Environmental Satellite (GOES) data (NCDC)","Geostationary Operational Environmental Satellite (GOES) data (NCDC)","Geostationary Operational Environmental Satellite (GOES) data (NCDC)","Geostationary Operational Environmental Satellite (GOES) data (NCDC)","Climate and Weather ","DOC-NOAA","Nancy Ritchey","Nancy.Ritchey@noaa.gov",{"$f":"VLOOKUP(B36,'[2]LOC FINAL with new Themes'!A:M,7,0)","v":"Define 'data set'.  Each spacecraft continuously produces a data stream.  There are multiple sets and the total going back to the late 70s or early 80s numbers in the millions"},{"$f":"VLOOKUP(B36,'[2]LOC FINAL with new Themes'!A:M,8,0)","v":"Yes"},{"$f":"VLOOKUP(B36,'[2]LOC FINAL with new Themes'!A:M,9,0)","v":"Yes"},{"$f":"VLOOKUP(B36,'[2]LOC FINAL with new Themes'!A:M,10,0)","v":"Continuously"},{"$f":"VLOOKUP(B36,'[2]LOC FINAL with new Themes'!A:M,11,0)","v":"There are two active archive centers for these data; one here in Asheville, NC and one in Boulder, CO.  These data go back to the late 70s and all data are on line wither on disc or robotic tape storage"},{"$f":"VLOOKUP(B36,'[2]LOC FINAL with new Themes'!A:M,12,0)","v":"Again, define your terms.  For examples see www.class.noaa.gov - Raw data are listed by satellite (GOES or POES) and then be instrument.  Geophysical products are listed by product name."},{"$f":"VLOOKUP(B36,'[2]LOC FINAL with new Themes'!A:M,13,0)","v":0}]
[null,null,"MODIS-based Atmospheric Products","MODIS-based Atmospheric Products","Climate and Weather ","USDA -FS (Along with USGS)"]
[null,null,"National Doplar Radar Data (NEXRAD)","National Doplar Radar Data (NEXRAD)","Climate and Weather ","DOC-NOAA","Steve DelGreco","stephen.a.delgreco"]
[null,null,"NOAA National Weather Service GIS Data",{"$f":"IF(C39=0,B39,C39)","v":"NOAA National Weather Service GIS Data"},"Climate and Weather ","DOC-NOAA"]
["Parameter-elevation Regressions on Independent Slopes Model (PRISM) Data Sets","Parameter-elevation Regressions on Independent Slopes Model (PRISM) Datasets","Parameter-elevation Regressions on Independent Slopes Model (PRISM) Datasets",{"$f":"IF(C40=0,B40,C40)","v":"Parameter-elevation Regressions on Independent Slopes Model (PRISM) Datasets"},"Climate and Weather ","USDA-NRCS","Jan Curtis","jan.curtis@por.usda.gov",{"$f":"VLOOKUP(B40,'[2]LOC FINAL with new Themes'!A:M,7,0)","v":"info provided via http://www.prism.oregonstate.edu/ and \nhttp://www.nrcs.usda.gov/wps/portal/nrcs/main/?ss=16&navtype=SubNavigation&cid=null&navid=850130000000000&pnavid=850000000000000&position=SubNavigation&ttype=main&pname=USDA%2520NRCS%2520-%2520Natural%2520Resources%2520Conservation%2520Service\n"},{"$f":"VLOOKUP(B40,'[2]LOC FINAL with new Themes'!A:M,8,0)","v":0},{"$f":"VLOOKUP(B40,'[2]LOC FINAL with new Themes'!A:M,9,0)","v":0},{"$f":"VLOOKUP(B40,'[2]LOC FINAL with new Themes'!A:M,10,0)","v":0},{"$f":"VLOOKUP(B40,'[2]LOC FINAL with new Themes'!A:M,11,0)","v":0},{"$f":"VLOOKUP(B40,'[2]LOC FINAL with new Themes'!A:M,12,0)","v":0},{"$f":"VLOOKUP(B40,'[2]LOC FINAL with new Themes'!A:M,13,0)","v":"M"}]
["Polar Operational Environmental Satellite (POES) data (NCDC)","Polar Operational Environmental Satellite (POES) data","Polar Operational Environmental Satellite (POES) data",{"$f":"IF(C41=0,B41,C41)","v":"Polar Operational Environmental Satellite (POES) data"},"Climate and Weather ","DOC-NOAA","John Bates","john.j.bates@noaa.gov",{"$f":"VLOOKUP(B41,'[2]LOC FINAL with new Themes'!A:M,7,0)","v":0},{"$f":"VLOOKUP(B41,'[2]LOC FINAL with new Themes'!A:M,8,0)","v":0},{"$f":"VLOOKUP(B41,'[2]LOC FINAL with new Themes'!A:M,9,0)","v":0},{"$f":"VLOOKUP(B41,'[2]LOC FINAL with new Themes'!A:M,10,0)","v":0},{"$f":"VLOOKUP(B41,'[2]LOC FINAL with new Themes'!A:M,11,0)","v":0},{"$f":"VLOOKUP(B41,'[2]LOC FINAL with new Themes'!A:M,12,0)","v":0},{"$f":"VLOOKUP(B41,'[2]LOC FINAL with new Themes'!A:M,13,0)","v":0}]
[null,null,null,{"$f":"SUBTOTAL(3,D35:D41)","v":7},"Climate and Weather  Count"]
[null,"5-digit ZIP Code Tabulation Area (Census 2000)","5-digit ZIP Code Tabulation Area (Census 2000)",{"$f":"IF(C43=0,B43,C43)","v":"5-digit ZIP Code Tabulation Area (Census 2000)"},"Cultural & Demographic Statistics ","DOC-Census","Jennifer Holland","Jennifer.L.Holland@census.gov",{"$f":"VLOOKUP(B43,'[2]LOC FINAL with new Themes'!A:M,7,0)","v":0},{"$f":"VLOOKUP(B43,'[2]LOC FINAL with new Themes'!A:M,8,0)","v":0},{"$f":"VLOOKUP(B43,'[2]LOC FINAL with new Themes'!A:M,9,0)","v":0},{"$f":"VLOOKUP(B43,'[2]LOC FINAL with new Themes'!A:M,10,0)","v":0},{"$f":"VLOOKUP(B43,'[2]LOC FINAL with new Themes'!A:M,11,0)","v":0},{"$f":"VLOOKUP(B43,'[2]LOC FINAL with new Themes'!A:M,12,0)","v":0},{"$f":"VLOOKUP(B43,'[2]LOC FINAL with new Themes'!A:M,13,0)","v":0}]
["AIR, ANVSA, Hawaiian Homelands Boundaries","AIR, ANVSA, Hawaiian Homelands Boundaries",null,"AIR, ANVSA, Hawaiian Homelands Boundaries","Cultural & Demographic Statistics ","DOC-Census","Randy Fusaro","randy.j.fusaro@census.gov",{"$f":"VLOOKUP(B44,'[2]LOC FINAL with new Themes'!A:M,7,0)","v":0},{"$f":"VLOOKUP(B44,'[2]LOC FINAL with new Themes'!A:M,8,0)","v":0},{"$f":"VLOOKUP(B44,'[2]LOC FINAL with new Themes'!A:M,9,0)","v":0},{"$f":"VLOOKUP(B44,'[2]LOC FINAL with new Themes'!A:M,10,0)","v":0},{"$f":"VLOOKUP(B44,'[2]LOC FINAL with new Themes'!A:M,11,0)","v":0},{"$f":"VLOOKUP(B44,'[2]LOC FINAL with new Themes'!A:M,12,0)","v":0},{"$f":"VLOOKUP(B44,'[2]LOC FINAL with new Themes'!A:M,13,0)","v":0}]
[null,"All Lines (2010 Census)","All Lines (2010 Census)","All Lines (2010 Census)","Cultural & Demographic Statistics ","DOC-Census","Jennifer Holland","Jennifer.L.Holland@census.gov",{"$f":"VLOOKUP(B45,'[2]LOC FINAL with new Themes'!A:M,7,0)","v":0},{"$f":"VLOOKUP(B45,'[2]LOC FINAL with new Themes'!A:M,8,0)","v":0},{"$f":"VLOOKUP(B45,'[2]LOC FINAL with new Themes'!A:M,9,0)","v":0},{"$f":"VLOOKUP(B45,'[2]LOC FINAL with new Themes'!A:M,10,0)","v":0},{"$f":"VLOOKUP(B45,'[2]LOC FINAL with new Themes'!A:M,11,0)","v":0},{"$f":"VLOOKUP(B45,'[2]LOC FINAL with new Themes'!A:M,12,0)","v":0},{"$f":"VLOOKUP(B45,'[2]LOC FINAL with new Themes'!A:M,13,0)","v":0}]
[null,"ANSI codes for  metro/micropolitan areas","ANSI codes for  metro/micropolitan areas","ANSI codes for  metro/micropolitan areas","Cultural & Demographic Statistics ","DOC-Census","Jennifer Holland","Jennifer.L.Holland@census.gov",{"$f":"VLOOKUP(B46,'[2]LOC FINAL with new Themes'!A:M,7,0)","v":0},{"$f":"VLOOKUP(B46,'[2]LOC FINAL with new Themes'!A:M,8,0)","v":0},{"$f":"VLOOKUP(B46,'[2]LOC FINAL with new Themes'!A:M,9,0)","v":0},{"$f":"VLOOKUP(B46,'[2]LOC FINAL with new Themes'!A:M,10,0)","v":0},{"$f":"VLOOKUP(B46,'[2]LOC FINAL with new Themes'!A:M,11,0)","v":0},{"$f":"VLOOKUP(B46,'[2]LOC FINAL with new Themes'!A:M,12,0)","v":0},{"$f":"VLOOKUP(B46,'[2]LOC FINAL with new Themes'!A:M,13,0)","v":0}]
[null,"ANSI codes for congressional districts","ANSI codes for congressional districts","ANSI codes for congressional districts","Cultural & Demographic Statistics ","DOC-Census","Jennifer Holland","Jennifer.L.Holland@census.gov",{"$f":"VLOOKUP(B47,'[2]LOC FINAL with new Themes'!A:M,7,0)","v":0},{"$f":"VLOOKUP(B47,'[2]LOC FINAL with new Themes'!A:M,8,0)","v":0},{"$f":"VLOOKUP(B47,'[2]LOC FINAL with new Themes'!A:M,9,0)","v":0},{"$f":"VLOOKUP(B47,'[2]LOC FINAL with new Themes'!A:M,10,0)","v":0},{"$f":"VLOOKUP(B47,'[2]LOC FINAL with new Themes'!A:M,11,0)","v":0},{"$f":"VLOOKUP(B47,'[2]LOC FINAL with new Themes'!A:M,12,0)","v":0},{"$f":"VLOOKUP(B47,'[2]LOC FINAL with new Themes'!A:M,13,0)","v":0}]
[null,"ANSI codes for counties","ANSI codes for counties","ANSI codes for counties","Cultural & Demographic Statistics ","DOC-Census","Jennifer Holland","Jennifer.L.Holland@census.gov",{"$f":"VLOOKUP(B48,'[2]LOC FINAL with new Themes'!A:M,7,0)","v":0},{"$f":"VLOOKUP(B48,'[2]LOC FINAL with new Themes'!A:M,8,0)","v":0},{"$f":"VLOOKUP(B48,'[2]LOC FINAL with new Themes'!A:M,9,0)","v":0},{"$f":"VLOOKUP(B48,'[2]LOC FINAL with new Themes'!A:M,10,0)","v":0},{"$f":"VLOOKUP(B48,'[2]LOC FINAL with new Themes'!A:M,11,0)","v":0},{"$f":"VLOOKUP(B48,'[2]LOC FINAL with new Themes'!A:M,12,0)","v":0},{"$f":"VLOOKUP(B48,'[2]LOC FINAL with new Themes'!A:M,13,0)","v":0}]
[null,"ANSI codes for states","ANSI codes for states","ANSI codes for states","Cultural & Demographic Statistics ","DOC-Census","Jennifer Holland","Jennifer.L.Holland@census.gov",{"$f":"VLOOKUP(B49,'[2]LOC FINAL with new Themes'!A:M,7,0)","v":0},{"$f":"VLOOKUP(B49,'[2]LOC FINAL with new Themes'!A:M,8,0)","v":0},{"$f":"VLOOKUP(B49,'[2]LOC FINAL with new Themes'!A:M,9,0)","v":0},{"$f":"VLOOKUP(B49,'[2]LOC FINAL with new Themes'!A:M,10,0)","v":0},{"$f":"VLOOKUP(B49,'[2]LOC FINAL with new Themes'!A:M,11,0)","v":0},{"$f":"VLOOKUP(B49,'[2]LOC FINAL with new Themes'!A:M,12,0)","v":0},{"$f":"VLOOKUP(B49,'[2]LOC FINAL with new Themes'!A:M,13,0)","v":0}]
[null,"Block (2010 Census)","Block (2010 Census)","Block (2010 Census)","Cultural & Demographic Statistics ","DOC-Census","Jennifer Holland","Jennifer.L.Holland@census.gov",{"$f":"VLOOKUP(B50,'[2]LOC FINAL with new Themes'!A:M,7,0)","v":0},{"$f":"VLOOKUP(B50,'[2]LOC FINAL with new Themes'!A:M,8,0)","v":0},{"$f":"VLOOKUP(B50,'[2]LOC FINAL with new Themes'!A:M,9,0)","v":0},{"$f":"VLOOKUP(B50,'[2]LOC FINAL with new Themes'!A:M,10,0)","v":0},{"$f":"VLOOKUP(B50,'[2]LOC FINAL with new Themes'!A:M,11,0)","v":0},{"$f":"VLOOKUP(B50,'[2]LOC FINAL with new Themes'!A:M,12,0)","v":0},{"$f":"VLOOKUP(B50,'[2]LOC FINAL with new Themes'!A:M,13,0)","v":0}]
[null,"Block (Census 2000)","Block (Census 2000)","Block (Census 2000)","Cultural & Demographic Statistics ","DOC-Census","Jennifer Holland","Jennifer.L.Holland@census.gov",{"$f":"VLOOKUP(B51,'[2]LOC FINAL with new Themes'!A:M,7,0)","v":0},{"$f":"VLOOKUP(B51,'[2]LOC FINAL with new Themes'!A:M,8,0)","v":0},{"$f":"VLOOKUP(B51,'[2]LOC FINAL with new Themes'!A:M,9,0)","v":0},{"$f":"VLOOKUP(B51,'[2]LOC FINAL with new Themes'!A:M,10,0)","v":0},{"$f":"VLOOKUP(B51,'[2]LOC FINAL with new Themes'!A:M,11,0)","v":0},{"$f":"VLOOKUP(B51,'[2]LOC FINAL with new Themes'!A:M,12,0)","v":0},{"$f":"VLOOKUP(B51,'[2]LOC FINAL with new Themes'!A:M,13,0)","v":0}]
[null,"Block Group (Census 2000)","Block Group (Census 2000)","Block Group (Census 2000)","Cultural & Demographic Statistics ","DOC-Census","Jennifer Holland","Jennifer.L.Holland@census.gov",{"$f":"VLOOKUP(B52,'[2]LOC FINAL with new Themes'!A:M,7,0)","v":0},{"$f":"VLOOKUP(B52,'[2]LOC FINAL with new Themes'!A:M,8,0)","v":0},{"$f":"VLOOKUP(B52,'[2]LOC FINAL with new Themes'!A:M,9,0)","v":0},{"$f":"VLOOKUP(B52,'[2]LOC FINAL with new Themes'!A:M,10,0)","v":0},{"$f":"VLOOKUP(B52,'[2]LOC FINAL with new Themes'!A:M,11,0)","v":0},{"$f":"VLOOKUP(B52,'[2]LOC FINAL with new Themes'!A:M,12,0)","v":0},{"$f":"VLOOKUP(B52,'[2]LOC FINAL with new Themes'!A:M,13,0)","v":0}]
[null,"Block Group (Census 2010)","Block Group (Census 2010)","Block Group (Census 2010)","Cultural & Demographic Statistics ","DOC-Census","Jennifer Holland","Jennifer.L.Holland@census.gov",{"$f":"VLOOKUP(B53,'[2]LOC FINAL with new Themes'!A:M,7,0)","v":0},{"$f":"VLOOKUP(B53,'[2]LOC FINAL with new Themes'!A:M,8,0)","v":0},{"$f":"VLOOKUP(B53,'[2]LOC FINAL with new Themes'!A:M,9,0)","v":0},{"$f":"VLOOKUP(B53,'[2]LOC FINAL with new Themes'!A:M,10,0)","v":0},{"$f":"VLOOKUP(B53,'[2]LOC FINAL with new Themes'!A:M,11,0)","v":0},{"$f":"VLOOKUP(B53,'[2]LOC FINAL with new Themes'!A:M,12,0)","v":0},{"$f":"VLOOKUP(B53,'[2]LOC FINAL with new Themes'!A:M,13,0)","v":0}]
[null,"Census 2000 FIPS 55 Codes","Census 2000 FIPS 55 Codes","Census 2000 FIPS 55 Codes","Cultural & Demographic Statistics ","DOC-Census","Jennifer Holland","Jennifer.L.Holland@census.gov",{"$f":"VLOOKUP(B54,'[2]LOC FINAL with new Themes'!A:M,7,0)","v":0},{"$f":"VLOOKUP(B54,'[2]LOC FINAL with new Themes'!A:M,8,0)","v":0},{"$f":"VLOOKUP(B54,'[2]LOC FINAL with new Themes'!A:M,9,0)","v":0},{"$f":"VLOOKUP(B54,'[2]LOC FINAL with new Themes'!A:M,10,0)","v":0},{"$f":"VLOOKUP(B54,'[2]LOC FINAL with new Themes'!A:M,11,0)","v":0},{"$f":"VLOOKUP(B54,'[2]LOC FINAL with new Themes'!A:M,12,0)","v":0},{"$f":"VLOOKUP(B54,'[2]LOC FINAL with new Themes'!A:M,13,0)","v":0}]
[null,"Census Tract (2010 Census)","Census Tract (2010 Census)","Census Tract (2010 Census)","Cultural & Demographic Statistics ","DOC-Census","Jennifer Holland","Jennifer.L.Holland@census.gov",{"$f":"VLOOKUP(B55,'[2]LOC FINAL with new Themes'!A:M,7,0)","v":0},{"$f":"VLOOKUP(B55,'[2]LOC FINAL with new Themes'!A:M,8,0)","v":0},{"$f":"VLOOKUP(B55,'[2]LOC FINAL with new Themes'!A:M,9,0)","v":0},{"$f":"VLOOKUP(B55,'[2]LOC FINAL with new Themes'!A:M,10,0)","v":0},{"$f":"VLOOKUP(B55,'[2]LOC FINAL with new Themes'!A:M,11,0)","v":0},{"$f":"VLOOKUP(B55,'[2]LOC FINAL with new Themes'!A:M,12,0)","v":0},{"$f":"VLOOKUP(B55,'[2]LOC FINAL with new Themes'!A:M,13,0)","v":0}]
[null,"Census Tract (Census 2000)","Census Tract (Census 2000)","Census Tract (Census 2000)","Cultural & Demographic Statistics ","DOC-Census","Jennifer Holland","Jennifer.L.Holland@census.gov",{"$f":"VLOOKUP(B56,'[2]LOC FINAL with new Themes'!A:M,7,0)","v":0},{"$f":"VLOOKUP(B56,'[2]LOC FINAL with new Themes'!A:M,8,0)","v":0},{"$f":"VLOOKUP(B56,'[2]LOC FINAL with new Themes'!A:M,9,0)","v":0},{"$f":"VLOOKUP(B56,'[2]LOC FINAL with new Themes'!A:M,10,0)","v":0},{"$f":"VLOOKUP(B56,'[2]LOC FINAL with new Themes'!A:M,11,0)","v":0},{"$f":"VLOOKUP(B56,'[2]LOC FINAL with new Themes'!A:M,12,0)","v":0},{"$f":"VLOOKUP(B56,'[2]LOC FINAL with new Themes'!A:M,13,0)","v":0}]
[null,"Combined Statistical Area (2010 Census)","Combined Statistical Area (2010 Census)","Combined Statistical Area (2010 Census)","Cultural & Demographic Statistics ","DOC-Census","Jennifer Holland","Jennifer.L.Holland@census.gov",{"$f":"VLOOKUP(B57,'[2]LOC FINAL with new Themes'!A:M,7,0)","v":0},{"$f":"VLOOKUP(B57,'[2]LOC FINAL with new Themes'!A:M,8,0)","v":0},{"$f":"VLOOKUP(B57,'[2]LOC FINAL with new Themes'!A:M,9,0)","v":0},{"$f":"VLOOKUP(B57,'[2]LOC FINAL with new Themes'!A:M,10,0)","v":0},{"$f":"VLOOKUP(B57,'[2]LOC FINAL with new Themes'!A:M,11,0)","v":0},{"$f":"VLOOKUP(B57,'[2]LOC FINAL with new Themes'!A:M,12,0)","v":0},{"$f":"VLOOKUP(B57,'[2]LOC FINAL with new Themes'!A:M,13,0)","v":0}]
[null,"Congressional District Boundaries",null,"Congressional District Boundaries","Cultural & Demographic Statistics ","DOC-Census","Randy Fusaro","randy.j.fusaro@census.gov",{"$f":"VLOOKUP(B58,'[2]LOC FINAL with new Themes'!A:M,7,0)","v":0},{"$f":"VLOOKUP(B58,'[2]LOC FINAL with new Themes'!A:M,8,0)","v":0},{"$f":"VLOOKUP(B58,'[2]LOC FINAL with new Themes'!A:M,9,0)","v":0},{"$f":"VLOOKUP(B58,'[2]LOC FINAL with new Themes'!A:M,10,0)","v":0},{"$f":"VLOOKUP(B58,'[2]LOC FINAL with new Themes'!A:M,11,0)","v":0},{"$f":"VLOOKUP(B58,'[2]LOC FINAL with new Themes'!A:M,12,0)","v":0},{"$f":"VLOOKUP(B58,'[2]LOC FINAL with new Themes'!A:M,13,0)","v":0}]
["County, place, MCD Boundaries","County, place, MCD Boundaries",null,"County, place, MCD Boundaries","Cultural & Demographic Statistics ","DOC-Census","Randy Fusaro","randy.j.fusaro@census.gov",{"$f":"VLOOKUP(B59,'[2]LOC FINAL with new Themes'!A:M,7,0)","v":0},{"$f":"VLOOKUP(B59,'[2]LOC FINAL with new Themes'!A:M,8,0)","v":0},{"$f":"VLOOKUP(B59,'[2]LOC FINAL with new Themes'!A:M,9,0)","v":0},{"$f":"VLOOKUP(B59,'[2]LOC FINAL with new Themes'!A:M,10,0)","v":0},{"$f":"VLOOKUP(B59,'[2]LOC FINAL with new Themes'!A:M,11,0)","v":0},{"$f":"VLOOKUP(B59,'[2]LOC FINAL with new Themes'!A:M,12,0)","v":0},{"$f":"VLOOKUP(B59,'[2]LOC FINAL with new Themes'!A:M,13,0)","v":0}]
[null,"Elementary School District (2010 Census)","Elementary School District (2010 Census)","Elementary School District (2010 Census)","Cultural & Demographic Statistics ","DOC-Census","Jennifer Holland","Jennifer.L.Holland@census.gov",{"$f":"VLOOKUP(B60,'[2]LOC FINAL with new Themes'!A:M,7,0)","v":0},{"$f":"VLOOKUP(B60,'[2]LOC FINAL with new Themes'!A:M,8,0)","v":0},{"$f":"VLOOKUP(B60,'[2]LOC FINAL with new Themes'!A:M,9,0)","v":0},{"$f":"VLOOKUP(B60,'[2]LOC FINAL with new Themes'!A:M,10,0)","v":0},{"$f":"VLOOKUP(B60,'[2]LOC FINAL with new Themes'!A:M,11,0)","v":0},{"$f":"VLOOKUP(B60,'[2]LOC FINAL with new Themes'!A:M,12,0)","v":0},{"$f":"VLOOKUP(B60,'[2]LOC FINAL with new Themes'!A:M,13,0)","v":0}]
[null,"Elementary School District (Census 2000)","Elementary School District (Census 2000)","Elementary School District (Census 2000)","Cultural & Demographic Statistics ","DOC-Census","Jennifer Holland","Jennifer.L.Holland@census.gov",{"$f":"VLOOKUP(B61,'[2]LOC FINAL with new Themes'!A:M,7,0)","v":0},{"$f":"VLOOKUP(B61,'[2]LOC FINAL with new Themes'!A:M,8,0)","v":0},{"$f":"VLOOKUP(B61,'[2]LOC FINAL with new Themes'!A:M,9,0)","v":0},{"$f":"VLOOKUP(B61,'[2]LOC FINAL with new Themes'!A:M,10,0)","v":0},{"$f":"VLOOKUP(B61,'[2]LOC FINAL with new Themes'!A:M,11,0)","v":0},{"$f":"VLOOKUP(B61,'[2]LOC FINAL with new Themes'!A:M,12,0)","v":0},{"$f":"VLOOKUP(B61,'[2]LOC FINAL with new Themes'!A:M,13,0)","v":0}]
["FIPS/ANSI codes for states, counties, congressional districts & metro/micropolitan areas","FIPS/ANSI codes for states, counties, congressional districts & metro/micropolitan areas",null,"FIPS/ANSI codes for states, counties, congressional districts & metro/micropolitan areas","Cultural & Demographic Statistics ","DOC-Census","Randy Fusaro","randy.j.fusaro@census.gov",{"$f":"VLOOKUP(B62,'[2]LOC FINAL with new Themes'!A:M,7,0)","v":0},{"$f":"VLOOKUP(B62,'[2]LOC FINAL with new Themes'!A:M,8,0)","v":0},{"$f":"VLOOKUP(B62,'[2]LOC FINAL with new Themes'!A:M,9,0)","v":0},{"$f":"VLOOKUP(B62,'[2]LOC FINAL with new Themes'!A:M,10,0)","v":0},{"$f":"VLOOKUP(B62,'[2]LOC FINAL with new Themes'!A:M,11,0)","v":0},{"$f":"VLOOKUP(B62,'[2]LOC FINAL with new Themes'!A:M,12,0)","v":0},{"$f":"VLOOKUP(B62,'[2]LOC FINAL with new Themes'!A:M,13,0)","v":0}]
["Metropolitan/micropolitan area boundaries","Metropolitan/micropolitan area boundaries",null,"Metropolitan/micropolitan area boundaries","Cultural & Demographic Statistics ","DOC-Census","Randy Fusaro","randy.j.fusaro@census.gov",{"$f":"VLOOKUP(B63,'[2]LOC FINAL with new Themes'!A:M,7,0)","v":0},{"$f":"VLOOKUP(B63,'[2]LOC FINAL with new Themes'!A:M,8,0)","v":0},{"$f":"VLOOKUP(B63,'[2]LOC FINAL with new Themes'!A:M,9,0)","v":0},{"$f":"VLOOKUP(B63,'[2]LOC FINAL with new Themes'!A:M,10,0)","v":0},{"$f":"VLOOKUP(B63,'[2]LOC FINAL with new Themes'!A:M,11,0)","v":0},{"$f":"VLOOKUP(B63,'[2]LOC FINAL with new Themes'!A:M,12,0)","v":0},{"$f":"VLOOKUP(B63,'[2]LOC FINAL with new Themes'!A:M,13,0)","v":0}]
[null,"Metropolitan/micropolitan Statistical Area (2010 Census)","Metropolitan/micropolitan Statistical Area (2010 Census)","Metropolitan/micropolitan Statistical Area (2010 Census)","Cultural & Demographic Statistics ","DOC-Census","Jennifer Holland","Jennifer.L.Holland@census.gov",{"$f":"VLOOKUP(B64,'[2]LOC FINAL with new Themes'!A:M,7,0)","v":0},{"$f":"VLOOKUP(B64,'[2]LOC FINAL with new Themes'!A:M,8,0)","v":0},{"$f":"VLOOKUP(B64,'[2]LOC FINAL with new Themes'!A:M,9,0)","v":0},{"$f":"VLOOKUP(B64,'[2]LOC FINAL with new Themes'!A:M,10,0)","v":0},{"$f":"VLOOKUP(B64,'[2]LOC FINAL with new Themes'!A:M,11,0)","v":0},{"$f":"VLOOKUP(B64,'[2]LOC FINAL with new Themes'!A:M,12,0)","v":0},{"$f":"VLOOKUP(B64,'[2]LOC FINAL with new Themes'!A:M,13,0)","v":0}]
["National Center for Health Statistics (Atlas of US Mortality)","National Center for Health Statistics (Atlas of US Mortality)",null,"National Center for Health Statistics (Atlas of US Mortality)","Cultural & Demographic Statistics ","HHS","Gary Anderson","gary.anderson@hhs.gov",{"$f":"VLOOKUP(B65,'[2]LOC FINAL with new Themes'!A:M,7,0)","v":0},{"$f":"VLOOKUP(B65,'[2]LOC FINAL with new Themes'!A:M,8,0)","v":0},{"$f":"VLOOKUP(B65,'[2]LOC FINAL with new Themes'!A:M,9,0)","v":0},{"$f":"VLOOKUP(B65,'[2]LOC FINAL with new Themes'!A:M,10,0)","v":0},{"$f":"VLOOKUP(B65,'[2]LOC FINAL with new Themes'!A:M,11,0)","v":0},{"$f":"VLOOKUP(B65,'[2]LOC FINAL with new Themes'!A:M,12,0)","v":0},{"$f":"VLOOKUP(B65,'[2]LOC FINAL with new Themes'!A:M,13,0)","v":0}]
[null,null,"Oklahoma Tribal Joint Use Areas","Oklahoma Tribal Joint Use Areas","Cultural & Demographic Statistics ","DOC-Census"]
[null,null,"Oklahoma Tribal Statistical Areas","Oklahoma Tribal Statistical Areas","Cultural & Demographic Statistics ","DOC-Census"]
[null,"Public Use Microdata Area (Census 2000)","Public Use Microdata Area (Census 2000)","Public Use Microdata Area (Census 2000)","Cultural & Demographic Statistics ","DOC-Census","Jennifer Holland","Jennifer.L.Holland@census.gov",{"$f":"VLOOKUP(B68,'[2]LOC FINAL with new Themes'!A:M,7,0)","v":0},{"$f":"VLOOKUP(B68,'[2]LOC FINAL with new Themes'!A:M,8,0)","v":0},{"$f":"VLOOKUP(B68,'[2]LOC FINAL with new Themes'!A:M,9,0)","v":0},{"$f":"VLOOKUP(B68,'[2]LOC FINAL with new Themes'!A:M,10,0)","v":0},{"$f":"VLOOKUP(B68,'[2]LOC FINAL with new Themes'!A:M,11,0)","v":0},{"$f":"VLOOKUP(B68,'[2]LOC FINAL with new Themes'!A:M,12,0)","v":0},{"$f":"VLOOKUP(B68,'[2]LOC FINAL with new Themes'!A:M,13,0)","v":0}]
["School District Boundaries","School District Boundaries",null,"School District Boundaries","Cultural & Demographic Statistics ","DOC-Census","Randy Fusaro","randy.j.fusaro@census.gov",{"$f":"VLOOKUP(B69,'[2]LOC FINAL with new Themes'!A:M,7,0)","v":0},{"$f":"VLOOKUP(B69,'[2]LOC FINAL with new Themes'!A:M,8,0)","v":0},{"$f":"VLOOKUP(B69,'[2]LOC FINAL with new Themes'!A:M,9,0)","v":0},{"$f":"VLOOKUP(B69,'[2]LOC FINAL with new Themes'!A:M,10,0)","v":0},{"$f":"VLOOKUP(B69,'[2]LOC FINAL with new Themes'!A:M,11,0)","v":0},{"$f":"VLOOKUP(B69,'[2]LOC FINAL with new Themes'!A:M,12,0)","v":0},{"$f":"VLOOKUP(B69,'[2]LOC FINAL with new Themes'!A:M,13,0)","v":0}]
[null,"Secondary School District (2010 Census)","Secondary School District (2010 Census)","Secondary School District (2010 Census)","Cultural & Demographic Statistics ","DOC-Census","Jennifer Holland","Jennifer.L.Holland@census.gov",{"$f":"VLOOKUP(B70,'[2]LOC FINAL with new Themes'!A:M,7,0)","v":0},{"$f":"VLOOKUP(B70,'[2]LOC FINAL with new Themes'!A:M,8,0)","v":0},{"$f":"VLOOKUP(B70,'[2]LOC FINAL with new Themes'!A:M,9,0)","v":0},{"$f":"VLOOKUP(B70,'[2]LOC FINAL with new Themes'!A:M,10,0)","v":0},{"$f":"VLOOKUP(B70,'[2]LOC FINAL with new Themes'!A:M,11,0)","v":0},{"$f":"VLOOKUP(B70,'[2]LOC FINAL with new Themes'!A:M,12,0)","v":0},{"$f":"VLOOKUP(B70,'[2]LOC FINAL with new Themes'!A:M,13,0)","v":0}]
[null,"Secondary School District (Census 2000)","Secondary School District (Census 2000)","Secondary School District (Census 2000)","Cultural & Demographic Statistics ","DOC-Census","Jennifer Holland","Jennifer.L.Holland@census.gov",{"$f":"VLOOKUP(B71,'[2]LOC FINAL with new Themes'!A:M,7,0)","v":0},{"$f":"VLOOKUP(B71,'[2]LOC FINAL with new Themes'!A:M,8,0)","v":0},{"$f":"VLOOKUP(B71,'[2]LOC FINAL with new Themes'!A:M,9,0)","v":0},{"$f":"VLOOKUP(B71,'[2]LOC FINAL with new Themes'!A:M,10,0)","v":0},{"$f":"VLOOKUP(B71,'[2]LOC FINAL with new Themes'!A:M,11,0)","v":0},{"$f":"VLOOKUP(B71,'[2]LOC FINAL with new Themes'!A:M,12,0)","v":0},{"$f":"VLOOKUP(B71,'[2]LOC FINAL with new Themes'!A:M,13,0)","v":0}]
["State (+ Territories) Boundaries","State (+ Territories) Boundaries",null,"State (+ Territories) Boundaries","Cultural & Demographic Statistics ","DOC-Census","Randy Fusaro","randy.j.fusaro@census.gov",{"$f":"VLOOKUP(B72,'[2]LOC FINAL with new Themes'!A:M,7,0)","v":0},{"$f":"VLOOKUP(B72,'[2]LOC FINAL with new Themes'!A:M,8,0)","v":0},{"$f":"VLOOKUP(B72,'[2]LOC FINAL with new Themes'!A:M,9,0)","v":0},{"$f":"VLOOKUP(B72,'[2]LOC FINAL with new Themes'!A:M,10,0)","v":0},{"$f":"VLOOKUP(B72,'[2]LOC FINAL with new Themes'!A:M,11,0)","v":0},{"$f":"VLOOKUP(B72,'[2]LOC FINAL with new Themes'!A:M,12,0)","v":0},{"$f":"VLOOKUP(B72,'[2]LOC FINAL with new Themes'!A:M,13,0)","v":0}]
["Statistical Area Boundaries (tracts, blocks, UAs, CDPs, etc)","Statistical Area Boundaries (tracts, blocks, UAs, CDPs, etc)",null,"Statistical Area Boundaries (tracts, blocks, UAs, CDPs, etc)","Cultural & Demographic Statistics ","DOC-Census","Randy Fusaro","randy.j.fusaro@census.gov",{"$f":"VLOOKUP(B73,'[2]LOC FINAL with new Themes'!A:M,7,0)","v":0},{"$f":"VLOOKUP(B73,'[2]LOC FINAL with new Themes'!A:M,8,0)","v":0},{"$f":"VLOOKUP(B73,'[2]LOC FINAL with new Themes'!A:M,9,0)","v":0},{"$f":"VLOOKUP(B73,'[2]LOC FINAL with new Themes'!A:M,10,0)","v":0},{"$f":"VLOOKUP(B73,'[2]LOC FINAL with new Themes'!A:M,11,0)","v":0},{"$f":"VLOOKUP(B73,'[2]LOC FINAL with new Themes'!A:M,12,0)","v":0},{"$f":"VLOOKUP(B73,'[2]LOC FINAL with new Themes'!A:M,13,0)","v":0}]
[null,"Super Public Use Microdata Area (Census 2000)","Super Public Use Microdata Area (Census 2000)","Super Public Use Microdata Area (Census 2000)","Cultural & Demographic Statistics ","DOC-Census","Jennifer Holland","Jennifer.L.Holland@census.gov",{"$f":"VLOOKUP(B74,'[2]LOC FINAL with new Themes'!A:M,7,0)","v":0},{"$f":"VLOOKUP(B74,'[2]LOC FINAL with new Themes'!A:M,8,0)","v":0},{"$f":"VLOOKUP(B74,'[2]LOC FINAL with new Themes'!A:M,9,0)","v":0},{"$f":"VLOOKUP(B74,'[2]LOC FINAL with new Themes'!A:M,10,0)","v":0},{"$f":"VLOOKUP(B74,'[2]LOC FINAL with new Themes'!A:M,11,0)","v":0},{"$f":"VLOOKUP(B74,'[2]LOC FINAL with new Themes'!A:M,12,0)","v":0},{"$f":"VLOOKUP(B74,'[2]LOC FINAL with new Themes'!A:M,13,0)","v":0}]
["TIGER* (many statistical boundaries)","TIGER (many statistical boundaries)",null,"TIGER (many statistical boundaries)","Cultural & Demographic Statistics ","DOC-Census","Randy Fusaro","randy.j.fusaro@census.gov",{"$f":"VLOOKUP(B75,'[2]LOC FINAL with new Themes'!A:M,7,0)","v":0},{"$f":"VLOOKUP(B75,'[2]LOC FINAL with new Themes'!A:M,8,0)","v":0},{"$f":"VLOOKUP(B75,'[2]LOC FINAL with new Themes'!A:M,9,0)","v":0},{"$f":"VLOOKUP(B75,'[2]LOC FINAL with new Themes'!A:M,10,0)","v":0},{"$f":"VLOOKUP(B75,'[2]LOC FINAL with new Themes'!A:M,11,0)","v":0},{"$f":"VLOOKUP(B75,'[2]LOC FINAL with new Themes'!A:M,12,0)","v":0},{"$f":"VLOOKUP(B75,'[2]LOC FINAL with new Themes'!A:M,13,0)","v":0}]
[null,"Topological Faces (2010 Census)","Topological Faces (2010 Census)","Topological Faces (2010 Census)","Cultural & Demographic Statistics ","DOC-Census","Jennifer Holland","Jennifer.L.Holland@census.gov",{"$f":"VLOOKUP(B76,'[2]LOC FINAL with new Themes'!A:M,7,0)","v":0},{"$f":"VLOOKUP(B76,'[2]LOC FINAL with new Themes'!A:M,8,0)","v":0},{"$f":"VLOOKUP(B76,'[2]LOC FINAL with new Themes'!A:M,9,0)","v":0},{"$f":"VLOOKUP(B76,'[2]LOC FINAL with new Themes'!A:M,10,0)","v":0},{"$f":"VLOOKUP(B76,'[2]LOC FINAL with new Themes'!A:M,11,0)","v":0},{"$f":"VLOOKUP(B76,'[2]LOC FINAL with new Themes'!A:M,12,0)","v":0},{"$f":"VLOOKUP(B76,'[2]LOC FINAL with new Themes'!A:M,13,0)","v":0}]
[null,"Unified School District (2010 Census)","Unified School District (2010 Census)","Unified School District (2010 Census)","Cultural & Demographic Statistics ","DOC-Census","Jennifer Holland","Jennifer.L.Holland@census.gov",{"$f":"VLOOKUP(B77,'[2]LOC FINAL with new Themes'!A:M,7,0)","v":0},{"$f":"VLOOKUP(B77,'[2]LOC FINAL with new Themes'!A:M,8,0)","v":0},{"$f":"VLOOKUP(B77,'[2]LOC FINAL with new Themes'!A:M,9,0)","v":0},{"$f":"VLOOKUP(B77,'[2]LOC FINAL with new Themes'!A:M,10,0)","v":0},{"$f":"VLOOKUP(B77,'[2]LOC FINAL with new Themes'!A:M,11,0)","v":0},{"$f":"VLOOKUP(B77,'[2]LOC FINAL with new Themes'!A:M,12,0)","v":0},{"$f":"VLOOKUP(B77,'[2]LOC FINAL with new Themes'!A:M,13,0)","v":0}]
[null,"Unified School District (Census 2000)","Unified School District (Census 2000)","Unified School District (Census 2000)","Cultural & Demographic Statistics ","DOC-Census","Jennifer Holland","Jennifer.L.Holland@census.gov",{"$f":"VLOOKUP(B78,'[2]LOC FINAL with new Themes'!A:M,7,0)","v":0},{"$f":"VLOOKUP(B78,'[2]LOC FINAL with new Themes'!A:M,8,0)","v":0},{"$f":"VLOOKUP(B78,'[2]LOC FINAL with new Themes'!A:M,9,0)","v":0},{"$f":"VLOOKUP(B78,'[2]LOC FINAL with new Themes'!A:M,10,0)","v":0},{"$f":"VLOOKUP(B78,'[2]LOC FINAL with new Themes'!A:M,11,0)","v":0},{"$f":"VLOOKUP(B78,'[2]LOC FINAL with new Themes'!A:M,12,0)","v":0},{"$f":"VLOOKUP(B78,'[2]LOC FINAL with new Themes'!A:M,13,0)","v":0}]
[null,"Urban Growth Area (2010 Census)","Urban Growth Area (2010 Census)","Urban Growth Area (2010 Census)","Cultural & Demographic Statistics ","DOC-Census","Jennifer Holland","Jennifer.L.Holland@census.gov",{"$f":"VLOOKUP(B79,'[2]LOC FINAL with new Themes'!A:M,7,0)","v":0},{"$f":"VLOOKUP(B79,'[2]LOC FINAL with new Themes'!A:M,8,0)","v":0},{"$f":"VLOOKUP(B79,'[2]LOC FINAL with new Themes'!A:M,9,0)","v":0},{"$f":"VLOOKUP(B79,'[2]LOC FINAL with new Themes'!A:M,10,0)","v":0},{"$f":"VLOOKUP(B79,'[2]LOC FINAL with new Themes'!A:M,11,0)","v":0},{"$f":"VLOOKUP(B79,'[2]LOC FINAL with new Themes'!A:M,12,0)","v":0},{"$f":"VLOOKUP(B79,'[2]LOC FINAL with new Themes'!A:M,13,0)","v":0}]
[null,"Urban Growth Area (Census 2000)","Urban Growth Area (Census 2000)","Urban Growth Area (Census 2000)","Cultural & Demographic Statistics ","DOC-Census","Jennifer Holland","Jennifer.L.Holland@census.gov",{"$f":"VLOOKUP(B80,'[2]LOC FINAL with new Themes'!A:M,7,0)","v":0},{"$f":"VLOOKUP(B80,'[2]LOC FINAL with new Themes'!A:M,8,0)","v":0},{"$f":"VLOOKUP(B80,'[2]LOC FINAL with new Themes'!A:M,9,0)","v":0},{"$f":"VLOOKUP(B80,'[2]LOC FINAL with new Themes'!A:M,10,0)","v":0},{"$f":"VLOOKUP(B80,'[2]LOC FINAL with new Themes'!A:M,11,0)","v":0},{"$f":"VLOOKUP(B80,'[2]LOC FINAL with new Themes'!A:M,12,0)","v":0},{"$f":"VLOOKUP(B80,'[2]LOC FINAL with new Themes'!A:M,13,0)","v":0}]
[null,"Voting District (2010 Census)","Voting District (2010 Census)","Voting District (2010 Census)","Cultural & Demographic Statistics ","DOC-Census","Jennifer Holland","Jennifer.L.Holland@census.gov",{"$f":"VLOOKUP(B81,'[2]LOC FINAL with new Themes'!A:M,7,0)","v":0},{"$f":"VLOOKUP(B81,'[2]LOC FINAL with new Themes'!A:M,8,0)","v":0},{"$f":"VLOOKUP(B81,'[2]LOC FINAL with new Themes'!A:M,9,0)","v":0},{"$f":"VLOOKUP(B81,'[2]LOC FINAL with new Themes'!A:M,10,0)","v":0},{"$f":"VLOOKUP(B81,'[2]LOC FINAL with new Themes'!A:M,11,0)","v":0},{"$f":"VLOOKUP(B81,'[2]LOC FINAL with new Themes'!A:M,12,0)","v":0},{"$f":"VLOOKUP(B81,'[2]LOC FINAL with new Themes'!A:M,13,0)","v":0}]
[null,"Voting District (Census 2000)","Voting District (Census 2000)","Voting District (Census 2000)","Cultural & Demographic Statistics ","DOC-Census","Jennifer Holland","Jennifer.L.Holland@census.gov",{"$f":"VLOOKUP(B82,'[2]LOC FINAL with new Themes'!A:M,7,0)","v":0},{"$f":"VLOOKUP(B82,'[2]LOC FINAL with new Themes'!A:M,8,0)","v":0},{"$f":"VLOOKUP(B82,'[2]LOC FINAL with new Themes'!A:M,9,0)","v":0},{"$f":"VLOOKUP(B82,'[2]LOC FINAL with new Themes'!A:M,10,0)","v":0},{"$f":"VLOOKUP(B82,'[2]LOC FINAL with new Themes'!A:M,11,0)","v":0},{"$f":"VLOOKUP(B82,'[2]LOC FINAL with new Themes'!A:M,12,0)","v":0},{"$f":"VLOOKUP(B82,'[2]LOC FINAL with new Themes'!A:M,13,0)","v":0}]
["Voting District Boundaries","Voting District Boundaries",null,"Voting District Boundaries","Cultural & Demographic Statistics ","DOC-Census","Randy Fusaro","randy.j.fusaro@census.gov",{"$f":"VLOOKUP(B83,'[2]LOC FINAL with new Themes'!A:M,7,0)","v":0},{"$f":"VLOOKUP(B83,'[2]LOC FINAL with new Themes'!A:M,8,0)","v":0},{"$f":"VLOOKUP(B83,'[2]LOC FINAL with new Themes'!A:M,9,0)","v":0},{"$f":"VLOOKUP(B83,'[2]LOC FINAL with new Themes'!A:M,10,0)","v":0},{"$f":"VLOOKUP(B83,'[2]LOC FINAL with new Themes'!A:M,11,0)","v":0},{"$f":"VLOOKUP(B83,'[2]LOC FINAL with new Themes'!A:M,12,0)","v":0},{"$f":"VLOOKUP(B83,'[2]LOC FINAL with new Themes'!A:M,13,0)","v":0}]
[null,null,null,{"$f":"SUBTOTAL(3,D43:D83)","v":41},"Cultural & Demographic Statistics  Count"]
["Cultural Landscape Boundaries","Cultural Landscape Boundaries","Cultural Landscape Boundaries",{"$f":"IF(C85=0,B85,C85)","v":"Cultural Landscape Boundaries"},"Cultural & Demographic Statistics \nCultural Resources","DOI-NPS","John Knoerl","john_knoerl@nps.gov",{"$f":"VLOOKUP(B85,'[2]LOC FINAL with new Themes'!A:M,7,0)","v":"Feature classes of the cultural resource data model (NPS only, other federal agencies handle it as they decide)"},{"$f":"VLOOKUP(B85,'[2]LOC FINAL with new Themes'!A:M,8,0)","v":"don't want a single centralized data set but focusing on standard approach"},{"$f":"VLOOKUP(B85,'[2]LOC FINAL with new Themes'!A:M,9,0)","v":0},{"$f":"VLOOKUP(B85,'[2]LOC FINAL with new Themes'!A:M,10,0)","v":0},{"$f":"VLOOKUP(B85,'[2]LOC FINAL with new Themes'!A:M,11,0)","v":0},{"$f":"VLOOKUP(B85,'[2]LOC FINAL with new Themes'!A:M,12,0)","v":0},{"$f":"VLOOKUP(B85,'[2]LOC FINAL with new Themes'!A:M,13,0)","v":0}]
["Cultural Resource Survey Boundaries","Cultural Resource Survey Boundaries","Cultural Resource Survey Boundaries","Cultural Resource Survey Boundaries","Cultural & Demographic Statistics \nCultural Resources","DOI-NPS","John Knoerl","john_knoerl@nps.gov",{"$f":"VLOOKUP(B86,'[2]LOC FINAL with new Themes'!A:M,7,0)","v":"Feature classes of the cultural resource data model (NPS only, other federal agencies handle it as they decide)"},{"$f":"VLOOKUP(B86,'[2]LOC FINAL with new Themes'!A:M,8,0)","v":"don't want a single centralized data set but focusing on standard approach"},{"$f":"VLOOKUP(B86,'[2]LOC FINAL with new Themes'!A:M,9,0)","v":0},{"$f":"VLOOKUP(B86,'[2]LOC FINAL with new Themes'!A:M,10,0)","v":0},{"$f":"VLOOKUP(B86,'[2]LOC FINAL with new Themes'!A:M,11,0)","v":0},{"$f":"VLOOKUP(B86,'[2]LOC FINAL with new Themes'!A:M,12,0)","v":0},{"$f":"VLOOKUP(B86,'[2]LOC FINAL with new Themes'!A:M,13,0)","v":0}]
["Ethnographic Resource Boundaries","Ethnographic Resource Boundaries","Ethnographic Resource Boundaries","Ethnographic Resource Boundaries","Cultural & Demographic Statistics \nCultural Resources","DOI-NPS","John Knoerl","john_knoerl@nps.gov",{"$f":"VLOOKUP(B87,'[2]LOC FINAL with new Themes'!A:M,7,0)","v":"Feature classes of the cultural resource data model (NPS only, other federal agencies handle it as they decide)"},{"$f":"VLOOKUP(B87,'[2]LOC FINAL with new Themes'!A:M,8,0)","v":"don't want a single centralized data set but focusing on standard approach"},{"$f":"VLOOKUP(B87,'[2]LOC FINAL with new Themes'!A:M,9,0)","v":0},{"$f":"VLOOKUP(B87,'[2]LOC FINAL with new Themes'!A:M,10,0)","v":0},{"$f":"VLOOKUP(B87,'[2]LOC FINAL with new Themes'!A:M,11,0)","v":0},{"$f":"VLOOKUP(B87,'[2]LOC FINAL with new Themes'!A:M,12,0)","v":0},{"$f":"VLOOKUP(B87,'[2]LOC FINAL with new Themes'!A:M,13,0)","v":0}]
["Historic Buildings Boundaries","Historic Buildings Boundaries","Historic Buildings Boundaries","Historic Buildings Boundaries","Cultural & Demographic Statistics \nCultural Resources","DOI-NPS","John Knoerl","john_knoerl@nps.gov",{"$f":"VLOOKUP(B88,'[2]LOC FINAL with new Themes'!A:M,7,0)","v":"Feature classes of the cultural resource data model (NPS only, other federal agencies handle it as they decide)"},{"$f":"VLOOKUP(B88,'[2]LOC FINAL with new Themes'!A:M,8,0)","v":"don't want a single centralized data set but focusing on standard approach"},{"$f":"VLOOKUP(B88,'[2]LOC FINAL with new Themes'!A:M,9,0)","v":0},{"$f":"VLOOKUP(B88,'[2]LOC FINAL with new Themes'!A:M,10,0)","v":0},{"$f":"VLOOKUP(B88,'[2]LOC FINAL with new Themes'!A:M,11,0)","v":0},{"$f":"VLOOKUP(B88,'[2]LOC FINAL with new Themes'!A:M,12,0)","v":0},{"$f":"VLOOKUP(B88,'[2]LOC FINAL with new Themes'!A:M,13,0)","v":0}]
["Historic Districts Boundaries","Historic Districts Boundaries","Historic Districts Boundaries","Historic Districts Boundaries","Cultural & Demographic Statistics \nCultural Resources","DOI-NPS","John Knoerl","john_knoerl@nps.gov",{"$f":"VLOOKUP(B89,'[2]LOC FINAL with new Themes'!A:M,7,0)","v":"Feature classes of the cultural resource data model (NPS only, other federal agencies handle it as they decide)"},{"$f":"VLOOKUP(B89,'[2]LOC FINAL with new Themes'!A:M,8,0)","v":"don't want a single centralized data set but focusing on standard approach"},{"$f":"VLOOKUP(B89,'[2]LOC FINAL with new Themes'!A:M,9,0)","v":0},{"$f":"VLOOKUP(B89,'[2]LOC FINAL with new Themes'!A:M,10,0)","v":0},{"$f":"VLOOKUP(B89,'[2]LOC FINAL with new Themes'!A:M,11,0)","v":0},{"$f":"VLOOKUP(B89,'[2]LOC FINAL with new Themes'!A:M,12,0)","v":0},{"$f":"VLOOKUP(B89,'[2]LOC FINAL with new Themes'!A:M,13,0)","v":0}]
["Historic Objects Boundaries","Historic Objects Boundaries","Historic Objects Boundaries","Historic Objects Boundaries","Cultural & Demographic Statistics \nCultural Resources","DOI-NPS","John Knoerl","john_knoerl@nps.gov",{"$f":"VLOOKUP(B90,'[2]LOC FINAL with new Themes'!A:M,7,0)","v":"Feature classes of the cultural resource data model (NPS only, other federal agencies handle it as they decide)"},{"$f":"VLOOKUP(B90,'[2]LOC FINAL with new Themes'!A:M,8,0)","v":"don't want a single centralized data set but focusing on standard approach"},{"$f":"VLOOKUP(B90,'[2]LOC FINAL with new Themes'!A:M,9,0)","v":0},{"$f":"VLOOKUP(B90,'[2]LOC FINAL with new Themes'!A:M,10,0)","v":0},{"$f":"VLOOKUP(B90,'[2]LOC FINAL with new Themes'!A:M,11,0)","v":0},{"$f":"VLOOKUP(B90,'[2]LOC FINAL with new Themes'!A:M,12,0)","v":0},{"$f":"VLOOKUP(B90,'[2]LOC FINAL with new Themes'!A:M,13,0)","v":0}]
["Historic Structures Boundaries","Historic Structures Boundaries","Historic Structures Boundaries","Historic Structures Boundaries","Cultural & Demographic Statistics \nCultural Resources","DOI-NPS","John Knoerl","john_knoerl@nps.gov",{"$f":"VLOOKUP(B91,'[2]LOC FINAL with new Themes'!A:M,7,0)","v":"Feature classes of the cultural resource data model (NPS only, other federal agencies handle it as they decide)"},{"$f":"VLOOKUP(B91,'[2]LOC FINAL with new Themes'!A:M,8,0)","v":"don't want a single centralized data set but focusing on standard approach"},{"$f":"VLOOKUP(B91,'[2]LOC FINAL with new Themes'!A:M,9,0)","v":0},{"$f":"VLOOKUP(B91,'[2]LOC FINAL with new Themes'!A:M,10,0)","v":0},{"$f":"VLOOKUP(B91,'[2]LOC FINAL with new Themes'!A:M,11,0)","v":0},{"$f":"VLOOKUP(B91,'[2]LOC FINAL with new Themes'!A:M,12,0)","v":0},{"$f":"VLOOKUP(B91,'[2]LOC FINAL with new Themes'!A:M,13,0)","v":"M "}]
[null,null,"Other Cultural Resource Boundaries","Other Cultural Resource Boundaries","Cultural & Demographic Statistics \nCultural Resources","DOI-NPS"]
[null,null,null,{"$f":"SUBTOTAL(3,D85:D92)","v":8},"Cultural & Demographic Statistics \nCultural Resources Count"]
[null,"Point Landmark (2010 Census)","Point of Landmark (2010 Census)",{"$f":"IF(C94=0,B94,C94)","v":"Point of Landmark (2010 Census)"},"Cultural Resources","DOC-Census","Jennifer Holland","Jennifer.L.Holland@census.gov",{"$f":"VLOOKUP(B94,'[2]LOC FINAL with new Themes'!A:M,7,0)","v":0},{"$f":"VLOOKUP(B94,'[2]LOC FINAL with new Themes'!A:M,8,0)","v":0},{"$f":"VLOOKUP(B94,'[2]LOC FINAL with new Themes'!A:M,9,0)","v":0},{"$f":"VLOOKUP(B94,'[2]LOC FINAL with new Themes'!A:M,10,0)","v":0},{"$f":"VLOOKUP(B94,'[2]LOC FINAL with new Themes'!A:M,11,0)","v":0},{"$f":"VLOOKUP(B94,'[2]LOC FINAL with new Themes'!A:M,12,0)","v":0},{"$f":"VLOOKUP(B94,'[2]LOC FINAL with new Themes'!A:M,13,0)","v":0}]
["Archeological Sites","Archeological Sites","Archeological Sites","Archeological Sites","Cultural Resources ","DOI-NPS","John Knoerl","john_knoerl@nps.gov",{"$f":"VLOOKUP(B95,'[2]LOC FINAL with new Themes'!A:M,7,0)","v":"Feature classes of the cultural resource data model (NPS only, other federal agencies handle it as they decide)"},{"$f":"VLOOKUP(B95,'[2]LOC FINAL with new Themes'!A:M,8,0)","v":"don't want a single centralized data set but focusing on standard approach"},{"$f":"VLOOKUP(B95,'[2]LOC FINAL with new Themes'!A:M,9,0)","v":"National Historic Presrevation Act says state historic preservation office has primary oversight (section 110)"},{"$f":"VLOOKUP(B95,'[2]LOC FINAL with new Themes'!A:M,10,0)","v":0},{"$f":"VLOOKUP(B95,'[2]LOC FINAL with new Themes'!A:M,11,0)","v":0},{"$f":"VLOOKUP(B95,'[2]LOC FINAL with new Themes'!A:M,12,0)","v":0},{"$f":"VLOOKUP(B95,'[2]LOC FINAL with new Themes'!A:M,13,0)","v":0}]
[null,"Area Landmark (2010 Census)","Area Landmark (2010 Census)","Area Landmark (2010 Census)","Cultural Resources ","DOC-Census","Jennifer Holland","Jennifer.L.Holland@census.gov",{"$f":"VLOOKUP(B96,'[2]LOC FINAL with new Themes'!A:M,7,0)","v":0},{"$f":"VLOOKUP(B96,'[2]LOC FINAL with new Themes'!A:M,8,0)","v":0},{"$f":"VLOOKUP(B96,'[2]LOC FINAL with new Themes'!A:M,9,0)","v":0},{"$f":"VLOOKUP(B96,'[2]LOC FINAL with new Themes'!A:M,10,0)","v":0},{"$f":"VLOOKUP(B96,'[2]LOC FINAL with new Themes'!A:M,11,0)","v":0},{"$f":"VLOOKUP(B96,'[2]LOC FINAL with new Themes'!A:M,12,0)","v":0},{"$f":"VLOOKUP(B96,'[2]LOC FINAL with new Themes'!A:M,13,0)","v":0}]
[null,null,"Geographic Names Dataset - National Map","Geographic Names Dataset - National Map","Cultural Resources ","DOI-USGS"]
["National Map - Geographic Names Information System (GNIS)","National Map - Geographic Names Information System (GNIS)",null,"National Map - Geographic Names Information System (GNIS)","Cultural Resources ","DOI-USGS","Lou Yost","lyost@usgs.gov",{"$f":"VLOOKUP(B98,'[2]LOC FINAL with new Themes'!A:M,7,0)","v":"single data set; poc, data managers; daily updated; Denver systems people backup and archive; transfer to NARA also; Gaz vector (internal)"},{"$f":"VLOOKUP(B98,'[2]LOC FINAL with new Themes'!A:M,8,0)","v":0},{"$f":"VLOOKUP(B98,'[2]LOC FINAL with new Themes'!A:M,9,0)","v":0},{"$f":"VLOOKUP(B98,'[2]LOC FINAL with new Themes'!A:M,10,0)","v":0},{"$f":"VLOOKUP(B98,'[2]LOC FINAL with new Themes'!A:M,11,0)","v":0},{"$f":"VLOOKUP(B98,'[2]LOC FINAL with new Themes'!A:M,12,0)","v":0},{"$f":"VLOOKUP(B98,'[2]LOC FINAL with new Themes'!A:M,13,0)","v":"S"}]
[null,"Topological Faces-Area Landmark Relationship File","Topological Faces-Area Landmark Relationship File","Topological Faces-Area Landmark Relationship File","Cultural Resources ","DOC-Census","Jennifer Holland","Jennifer.L.Holland@census.gov",{"$f":"VLOOKUP(B99,'[2]LOC FINAL with new Themes'!A:M,7,0)","v":0},{"$f":"VLOOKUP(B99,'[2]LOC FINAL with new Themes'!A:M,8,0)","v":0},{"$f":"VLOOKUP(B99,'[2]LOC FINAL with new Themes'!A:M,9,0)","v":0},{"$f":"VLOOKUP(B99,'[2]LOC FINAL with new Themes'!A:M,10,0)","v":0},{"$f":"VLOOKUP(B99,'[2]LOC FINAL with new Themes'!A:M,11,0)","v":0},{"$f":"VLOOKUP(B99,'[2]LOC FINAL with new Themes'!A:M,12,0)","v":0},{"$f":"VLOOKUP(B99,'[2]LOC FINAL with new Themes'!A:M,13,0)","v":0}]
[null,null,null,{"$f":"SUBTOTAL(3,D94:D99)","v":6},"Cultural Resources Count"]
["133 UA Elevation Data (lidar)","133 UA Elevation Data (lidar)",null,{"$f":"IF(C101=0,B101,C101)","v":"133 UA Elevation Data (lidar)"},"Elevation","DOD-NGA","Ron Power, NGA","ronald.k.power@nga.mil",{"$f":"VLOOKUP(B101,'[2]LOC FINAL with new Themes'!A:M,7,0)","v":0},{"$f":"VLOOKUP(B101,'[2]LOC FINAL with new Themes'!A:M,8,0)","v":0},{"$f":"VLOOKUP(B101,'[2]LOC FINAL with new Themes'!A:M,9,0)","v":0},{"$f":"VLOOKUP(B101,'[2]LOC FINAL with new Themes'!A:M,10,0)","v":0},{"$f":"VLOOKUP(B101,'[2]LOC FINAL with new Themes'!A:M,11,0)","v":0},{"$f":"VLOOKUP(B101,'[2]LOC FINAL with new Themes'!A:M,12,0)","v":0},{"$f":"VLOOKUP(B101,'[2]LOC FINAL with new Themes'!A:M,13,0)","v":0}]
["DEMs - Archive","DEMs - Archive",null,"DEMs - Archive","Elevation","DOI-USGS","Gayla Evans","gevans@usgs.gov",{"$f":"VLOOKUP(B102,'[2]LOC FINAL with new Themes'!A:M,7,0)","v":"DEMS update at variable nature; are four data sets based on resolution; this is the POC and data manager; this is the name and maintain three complete with two physically separate on-site and one off-site"},{"$f":"VLOOKUP(B102,'[2]LOC FINAL with new Themes'!A:M,8,0)","v":0},{"$f":"VLOOKUP(B102,'[2]LOC FINAL with new Themes'!A:M,9,0)","v":0},{"$f":"VLOOKUP(B102,'[2]LOC FINAL with new Themes'!A:M,10,0)","v":0},{"$f":"VLOOKUP(B102,'[2]LOC FINAL with new Themes'!A:M,11,0)","v":0},{"$f":"VLOOKUP(B102,'[2]LOC FINAL with new Themes'!A:M,12,0)","v":0},{"$f":"VLOOKUP(B102,'[2]LOC FINAL with new Themes'!A:M,13,0)","v":"S"}]
["GTOPO30","GTOPO30",null,"GTOPO30","Elevation","DOI-USGS","Jeff Danielson"," daniels@usgs.gov",{"$f":"VLOOKUP(B103,'[2]LOC FINAL with new Themes'!A:M,7,0)","v":"GTOPO30 is static; one data set; this is the POC and data manager; this is the name and maintain three complete with two physically separate on-site and one off-site"},{"$f":"VLOOKUP(B103,'[2]LOC FINAL with new Themes'!A:M,8,0)","v":0},{"$f":"VLOOKUP(B103,'[2]LOC FINAL with new Themes'!A:M,9,0)","v":0},{"$f":"VLOOKUP(B103,'[2]LOC FINAL with new Themes'!A:M,10,0)","v":0},{"$f":"VLOOKUP(B103,'[2]LOC FINAL with new Themes'!A:M,11,0)","v":0},{"$f":"VLOOKUP(B103,'[2]LOC FINAL with new Themes'!A:M,12,0)","v":0},{"$f":"VLOOKUP(B103,'[2]LOC FINAL with new Themes'!A:M,13,0)","v":0}]
["National Map National Elevation Data Set (NED)","National Map  - National Elevation Dataset (NED)",null,"National Map  - National Elevation Dataset (NED)","Elevation","DOI-USGS","Jim Mauck","lyost@usgs.gov",{"$f":"VLOOKUP(B104,'[2]LOC FINAL with new Themes'!A:M,7,0)","v":0},{"$f":"VLOOKUP(B104,'[2]LOC FINAL with new Themes'!A:M,8,0)","v":0},{"$f":"VLOOKUP(B104,'[2]LOC FINAL with new Themes'!A:M,9,0)","v":0},{"$f":"VLOOKUP(B104,'[2]LOC FINAL with new Themes'!A:M,10,0)","v":0},{"$f":"VLOOKUP(B104,'[2]LOC FINAL with new Themes'!A:M,11,0)","v":0},{"$f":"VLOOKUP(B104,'[2]LOC FINAL with new Themes'!A:M,12,0)","v":0},{"$f":"VLOOKUP(B104,'[2]LOC FINAL with new Themes'!A:M,13,0)","v":0}]
["SRTM (3-arc second DTEDS)","SRTM (3-arc second DTEDS)",null,"SRTM (3-arc second DTEDS)","Elevation","DOI-USGS","Dean Gesch, USGS","gesch@usgs.gov",{"$f":"VLOOKUP(B105,'[2]LOC FINAL with new Themes'!A:M,7,0)","v":"SRTM is static; one data set; this is the POC and data manager; this is the name and maintain three complete with two physically separate on-site and one off-site"},{"$f":"VLOOKUP(B105,'[2]LOC FINAL with new Themes'!A:M,8,0)","v":0},{"$f":"VLOOKUP(B105,'[2]LOC FINAL with new Themes'!A:M,9,0)","v":0},{"$f":"VLOOKUP(B105,'[2]LOC FINAL with new Themes'!A:M,10,0)","v":0},{"$f":"VLOOKUP(B105,'[2]LOC FINAL with new Themes'!A:M,11,0)","v":0},{"$f":"VLOOKUP(B105,'[2]LOC FINAL with new Themes'!A:M,12,0)","v":0},{"$f":"VLOOKUP(B105,'[2]LOC FINAL with new Themes'!A:M,13,0)","v":"S"}]
["Digital Flood Insurance Rate Maps (D-FIRM)","Digital Flood Insurance Rate Maps (D-FIRM)","Digital Flood Insurance Rate Maps (DFIRM)","Digital Flood Insurance Rate Maps (DFIRM)","Elevation ","DHS-FEMA","Scott McAfee","scott.mcaffee@dhs.gov",{"$f":"VLOOKUP(B106,'[2]LOC FINAL with new Themes'!A:M,7,0)","v":0},{"$f":"VLOOKUP(B106,'[2]LOC FINAL with new Themes'!A:M,8,0)","v":0},{"$f":"VLOOKUP(B106,'[2]LOC FINAL with new Themes'!A:M,9,0)","v":0},{"$f":"VLOOKUP(B106,'[2]LOC FINAL with new Themes'!A:M,10,0)","v":0},{"$f":"VLOOKUP(B106,'[2]LOC FINAL with new Themes'!A:M,11,0)","v":0},{"$f":"VLOOKUP(B106,'[2]LOC FINAL with new Themes'!A:M,12,0)","v":0},{"$f":"VLOOKUP(B106,'[2]LOC FINAL with new Themes'!A:M,13,0)","v":0}]
[null,null,"Elevation Bathymetric - Ocean, Coastal, and Great Lakes Bathymetry ","Elevation Bathymetric - Ocean, Coastal, and Great Lakes Bathymetry ","Elevation ","DOC-NOAA"]
[null,null,"National Elevation Dataset  - National Map","National Elevation Dataset  - National Map","Elevation ","DOI-USGS"]
["National Flood Hazard Layer (NFHL)","National Flood Hazard Layer (NFHL)","National Flood Hazard Layer (NFHL)","National Flood Hazard Layer (NFHL)","Elevation ","DHS-FEMA","Scott McAfee","scott.mcaffee@dhs.gov",{"$f":"VLOOKUP(B109,'[2]LOC FINAL with new Themes'!A:M,7,0)","v":0},{"$f":"VLOOKUP(B109,'[2]LOC FINAL with new Themes'!A:M,8,0)","v":0},{"$f":"VLOOKUP(B109,'[2]LOC FINAL with new Themes'!A:M,9,0)","v":0},{"$f":"VLOOKUP(B109,'[2]LOC FINAL with new Themes'!A:M,10,0)","v":0},{"$f":"VLOOKUP(B109,'[2]LOC FINAL with new Themes'!A:M,11,0)","v":0},{"$f":"VLOOKUP(B109,'[2]LOC FINAL with new Themes'!A:M,12,0)","v":0},{"$f":"VLOOKUP(B109,'[2]LOC FINAL with new Themes'!A:M,13,0)","v":0}]
[null,null,null,{"$f":"SUBTOTAL(3,D101:D109)","v":9},"Elevation Count"]
[null,null,"Airborne Gravity",{"$f":"IF(C111=0,B111,C111)","v":"Airborne Gravity"},"Geodetic Control ","DOC-NOAA","Dr. Theresa Diehl","theresa.diehl@noaa.gov"]
[null,null,"Terrestrial Gravity",{"$f":"IF(C112=0,B112,C112)","v":"Terrestrial Gravity"},"Geodetic Control ","DOC-NOAA","Bill Waickman ","bill.waickman@noaa.gov"]
[null,null,"Continuously Operating Reference Stations (CORS)","Continuously Operating Reference Stations (CORS)","Geodetic Control ","DOC-NOAA","Dr. Giovanni Sella","giovanni.sella@noaa.gov"]
[null,null,"Geoid Models","Geoid Models","Geodetic Control ","DOC-NOAA","Dr. Dan Roman","dan.roman@noaa.gov"]
["National Geologic Data Base","National Geologic Data Base","National Geodetic Survey (NGS) Datasheets","National Geodetic Survey (NGS) Datasheets","Geodetic Control ","DOC-NOAA","Jim Tomlin","jim.tomlin@noaa.gov",{"$f":"VLOOKUP(B115,'[2]LOC FINAL with new Themes'!A:M,7,0)","v":0},{"$f":"VLOOKUP(B115,'[2]LOC FINAL with new Themes'!A:M,8,0)","v":0},{"$f":"VLOOKUP(B115,'[2]LOC FINAL with new Themes'!A:M,9,0)","v":0},{"$f":"VLOOKUP(B115,'[2]LOC FINAL with new Themes'!A:M,10,0)","v":0},{"$f":"VLOOKUP(B115,'[2]LOC FINAL with new Themes'!A:M,11,0)","v":0},{"$f":"VLOOKUP(B115,'[2]LOC FINAL with new Themes'!A:M,12,0)","v":0},{"$f":"VLOOKUP(B115,'[2]LOC FINAL with new Themes'!A:M,13,0)","v":0}]
[null,null,"Precise Global Navigation Satellite System (GNSS) Orbits",{"$f":"IF(C116=0,#REF!,C116)","v":"Precise Global Navigation Satellite System (GNSS) Orbits"},"Geodetic Control ","DOC-NOAA","Dr. Jake Griffiths","jake.griffiths@noaa.gov"]
[null,null,null,{"$f":"SUBTOTAL(3,D111:D116)","v":6},"Geodetic Control  Count"]
[null,null,"Coal assessment and mapping",{"$f":"IF(C118=0,B118,C118)","v":"Coal assessment and mapping"},"Geology","DOI-USGS"]
["Coastline Data","Coastline Data","Coastline Data","Coastline Data","Geology","DOI-BOEM","Doug Vandegraft","Doug.Vandegraft@boem.gov",{"$f":"VLOOKUP(B119,'[2]LOC FINAL with new Themes'!A:M,7,0)","v":"undeliverable email- neeed to identify new contact"},{"$f":"VLOOKUP(B119,'[2]LOC FINAL with new Themes'!A:M,8,0)","v":0},{"$f":"VLOOKUP(B119,'[2]LOC FINAL with new Themes'!A:M,9,0)","v":0},{"$f":"VLOOKUP(B119,'[2]LOC FINAL with new Themes'!A:M,10,0)","v":0},{"$f":"VLOOKUP(B119,'[2]LOC FINAL with new Themes'!A:M,11,0)","v":0},{"$f":"VLOOKUP(B119,'[2]LOC FINAL with new Themes'!A:M,12,0)","v":0},{"$f":"VLOOKUP(B119,'[2]LOC FINAL with new Themes'!A:M,13,0)","v":0}]
[null,null,"Earthquake monitoring, research, and mapping","Earthquake monitoring, research, and mapping","Geology","DOI-USGS"]
[null,null,"Geochemistry","Geochemistry","Geology","DOI-USGS"]
[null,null,"Geochronology","Geochronology","Geology","DOI-USGS"]
[null,null,"Geologic mapping","Geologic mapping","Geology","DOI-USGS"]
[null,null,"Geomagnetism","Geomagnetism","Geology","DOI-USGS"]
[null,null,"Geophysics","Geophysics","Geology","DOI-USGS"]
[null,null,"Landslide monitoring, research, and mapping","Landslide monitoring, research, and mapping","Geology","DOI-USGS"]
[null,null,"Marine geology","Marine geology","Geology","DOI-USGS"]
[null,null,"Metallic mineral assessment and mapping","Metallic mineral assessment and mapping","Geology","DOI-USGS"]
[null,null,"BOEM Baseline","BOEM Baseline","Geology","DOI-BOEM","Doug Vandegraft","Doug.Vandegraft@boem.gov"]
[null,null,"Non-metallic mineral assessment and mapping, onshore",{"$f":"IF(C130=0,B129,C130)","v":"Non-metallic mineral assessment and mapping, onshore"},"Geology","DOI-USGS"]
[null,null,"Oil and gas assessment and mapping, onshore",{"$f":"IF(C131=0,B131,C131)","v":"Oil and gas assessment and mapping, onshore"},"Geology","DOI-USGS"]
[null,null,"Paleontology","Paleontology","Geology","DOI-USGS"]
[null,null,"Sand and Gravel","Sand and Gravel","Geology","DOI-BOEM","Doug Vandegraft","Doug.Vandegraft@boem.gov"]
[null,null,"Volcano monitoring, research, and mapping","Volcano monitoring, research, and mapping","Geology","DOI-USGS"]
[null,null,"Wells","Wells","Geology","DOI-BOEM","Doug Vandegraft","Doug.Vandegraft@boem.gov"]
[null,null,null,{"$f":"SUBTOTAL(3,D118:D135)","v":18},"Geology Count"]
["County Boundaries","County Boundaries",null,{"$f":"IF(C137=0,B137,C137)","v":"County Boundaries"},"Governmental Units",null,null,null,{"$f":"VLOOKUP(B137,'[2]LOC FINAL with new Themes'!A:M,7,0)","v":0},{"$f":"VLOOKUP(B137,'[2]LOC FINAL with new Themes'!A:M,8,0)","v":0},{"$f":"VLOOKUP(B137,'[2]LOC FINAL with new Themes'!A:M,9,0)","v":0},{"$f":"VLOOKUP(B137,'[2]LOC FINAL with new Themes'!A:M,10,0)","v":0},{"$f":"VLOOKUP(B137,'[2]LOC FINAL with new Themes'!A:M,11,0)","v":0},{"$f":"VLOOKUP(B137,'[2]LOC FINAL with new Themes'!A:M,12,0)","v":0},{"$f":"VLOOKUP(B137,'[2]LOC FINAL with new Themes'!A:M,13,0)","v":0}]
[null,"Place and MCD Boundaries",null,"Place and MCD Boundaries","Governmental Units",null,null,null,{"$f":"VLOOKUP(B138,'[2]LOC FINAL with new Themes'!A:M,7,0)","v":0},{"$f":"VLOOKUP(B138,'[2]LOC FINAL with new Themes'!A:M,8,0)","v":0},{"$f":"VLOOKUP(B138,'[2]LOC FINAL with new Themes'!A:M,9,0)","v":0},{"$f":"VLOOKUP(B138,'[2]LOC FINAL with new Themes'!A:M,10,0)","v":0},{"$f":"VLOOKUP(B138,'[2]LOC FINAL with new Themes'!A:M,11,0)","v":0},{"$f":"VLOOKUP(B138,'[2]LOC FINAL with new Themes'!A:M,12,0)","v":0},{"$f":"VLOOKUP(B138,'[2]LOC FINAL with new Themes'!A:M,13,0)","v":0}]
[null,"Alaska Native Regional Corporation (2010 Census)","Alaska Native Regional Corporation (2010 Census)","Alaska Native Regional Corporation (2010 Census)","Governmental Units ","DOC-Census","Jennifer Holland","Jennifer.L.Holland@census.gov",{"$f":"VLOOKUP(B139,'[2]LOC FINAL with new Themes'!A:M,7,0)","v":0},{"$f":"VLOOKUP(B139,'[2]LOC FINAL with new Themes'!A:M,8,0)","v":0},{"$f":"VLOOKUP(B139,'[2]LOC FINAL with new Themes'!A:M,9,0)","v":0},{"$f":"VLOOKUP(B139,'[2]LOC FINAL with new Themes'!A:M,10,0)","v":0},{"$f":"VLOOKUP(B139,'[2]LOC FINAL with new Themes'!A:M,11,0)","v":0},{"$f":"VLOOKUP(B139,'[2]LOC FINAL with new Themes'!A:M,12,0)","v":0},{"$f":"VLOOKUP(B139,'[2]LOC FINAL with new Themes'!A:M,13,0)","v":0}]
[null,"Alaska Native Regional Corporation (Census 2000)","Alaska Native Regional Corporation (Census 2000)","Alaska Native Regional Corporation (Census 2000)","Governmental Units ","DOC-Census","Jennifer Holland","Jennifer.L.Holland@census.gov",{"$f":"VLOOKUP(B140,'[2]LOC FINAL with new Themes'!A:M,7,0)","v":0},{"$f":"VLOOKUP(B140,'[2]LOC FINAL with new Themes'!A:M,8,0)","v":0},{"$f":"VLOOKUP(B140,'[2]LOC FINAL with new Themes'!A:M,9,0)","v":0},{"$f":"VLOOKUP(B140,'[2]LOC FINAL with new Themes'!A:M,10,0)","v":0},{"$f":"VLOOKUP(B140,'[2]LOC FINAL with new Themes'!A:M,11,0)","v":0},{"$f":"VLOOKUP(B140,'[2]LOC FINAL with new Themes'!A:M,12,0)","v":0},{"$f":"VLOOKUP(B140,'[2]LOC FINAL with new Themes'!A:M,13,0)","v":0}]
[null,"American Indian Tribal Subdivision (2010 Census)","American Indian Tribal Subdivision (2010 Census)","American Indian Tribal Subdivision (2010 Census)","Governmental Units ","DOC-Census","Jennifer Holland","Jennifer.L.Holland@census.gov",{"$f":"VLOOKUP(B141,'[2]LOC FINAL with new Themes'!A:M,7,0)","v":0},{"$f":"VLOOKUP(B141,'[2]LOC FINAL with new Themes'!A:M,8,0)","v":0},{"$f":"VLOOKUP(B141,'[2]LOC FINAL with new Themes'!A:M,9,0)","v":0},{"$f":"VLOOKUP(B141,'[2]LOC FINAL with new Themes'!A:M,10,0)","v":0},{"$f":"VLOOKUP(B141,'[2]LOC FINAL with new Themes'!A:M,11,0)","v":0},{"$f":"VLOOKUP(B141,'[2]LOC FINAL with new Themes'!A:M,12,0)","v":0},{"$f":"VLOOKUP(B141,'[2]LOC FINAL with new Themes'!A:M,13,0)","v":0}]
[null,"American Indian Tribal Subdivision (Census 2000)","American Indian Tribal Subdivision (Census 2000)","American Indian Tribal Subdivision (Census 2000)","Governmental Units ","DOC-Census","Jennifer Holland","Jennifer.L.Holland@census.gov",{"$f":"VLOOKUP(B142,'[2]LOC FINAL with new Themes'!A:M,7,0)","v":0},{"$f":"VLOOKUP(B142,'[2]LOC FINAL with new Themes'!A:M,8,0)","v":0},{"$f":"VLOOKUP(B142,'[2]LOC FINAL with new Themes'!A:M,9,0)","v":0},{"$f":"VLOOKUP(B142,'[2]LOC FINAL with new Themes'!A:M,10,0)","v":0},{"$f":"VLOOKUP(B142,'[2]LOC FINAL with new Themes'!A:M,11,0)","v":0},{"$f":"VLOOKUP(B142,'[2]LOC FINAL with new Themes'!A:M,12,0)","v":0},{"$f":"VLOOKUP(B142,'[2]LOC FINAL with new Themes'!A:M,13,0)","v":0}]
[null,"American Indian/Alaska Native/Native Hawaiian Area (2000 Census)","American Indian/Alaska Native/Native Hawaiian Area (2000 Census)","American Indian/Alaska Native/Native Hawaiian Area (2000 Census)","Governmental Units ","DOC-Census","Jennifer Holland","Jennifer.L.Holland@census.gov",{"$f":"VLOOKUP(B143,'[2]LOC FINAL with new Themes'!A:M,7,0)","v":0},{"$f":"VLOOKUP(B143,'[2]LOC FINAL with new Themes'!A:M,8,0)","v":0},{"$f":"VLOOKUP(B143,'[2]LOC FINAL with new Themes'!A:M,9,0)","v":0},{"$f":"VLOOKUP(B143,'[2]LOC FINAL with new Themes'!A:M,10,0)","v":0},{"$f":"VLOOKUP(B143,'[2]LOC FINAL with new Themes'!A:M,11,0)","v":0},{"$f":"VLOOKUP(B143,'[2]LOC FINAL with new Themes'!A:M,12,0)","v":0},{"$f":"VLOOKUP(B143,'[2]LOC FINAL with new Themes'!A:M,13,0)","v":0}]
[null,"American Indian/Alaska Native/Native Hawaiian Area (2010 Census)","American Indian/Alaska Native/Native Hawaiian Area (2010 Census)","American Indian/Alaska Native/Native Hawaiian Area (2010 Census)","Governmental Units ","DOC-Census","Jennifer Holland","Jennifer.L.Holland@census.gov",{"$f":"VLOOKUP(B144,'[2]LOC FINAL with new Themes'!A:M,7,0)","v":0},{"$f":"VLOOKUP(B144,'[2]LOC FINAL with new Themes'!A:M,8,0)","v":0},{"$f":"VLOOKUP(B144,'[2]LOC FINAL with new Themes'!A:M,9,0)","v":0},{"$f":"VLOOKUP(B144,'[2]LOC FINAL with new Themes'!A:M,10,0)","v":0},{"$f":"VLOOKUP(B144,'[2]LOC FINAL with new Themes'!A:M,11,0)","v":0},{"$f":"VLOOKUP(B144,'[2]LOC FINAL with new Themes'!A:M,12,0)","v":0},{"$f":"VLOOKUP(B144,'[2]LOC FINAL with new Themes'!A:M,13,0)","v":0}]
[null,"Combined New England City and Town Area (2010 Census)","Combined New England City and Town Area (2010 Census)","Combined New England City and Town Area (2010 Census)","Governmental Units ","DOC-Census","Jennifer Holland","Jennifer.L.Holland@census.gov",{"$f":"VLOOKUP(B145,'[2]LOC FINAL with new Themes'!A:M,7,0)","v":0},{"$f":"VLOOKUP(B145,'[2]LOC FINAL with new Themes'!A:M,8,0)","v":0},{"$f":"VLOOKUP(B145,'[2]LOC FINAL with new Themes'!A:M,9,0)","v":0},{"$f":"VLOOKUP(B145,'[2]LOC FINAL with new Themes'!A:M,10,0)","v":0},{"$f":"VLOOKUP(B145,'[2]LOC FINAL with new Themes'!A:M,11,0)","v":0},{"$f":"VLOOKUP(B145,'[2]LOC FINAL with new Themes'!A:M,12,0)","v":0},{"$f":"VLOOKUP(B145,'[2]LOC FINAL with new Themes'!A:M,13,0)","v":0}]
["Congressional District Boundaries","Congressional District (108th)","Congressional District (108th)","Congressional District (108th)","Governmental Units ","DOC-Census","Jennifer Holland","Jennifer.L.Holland@census.gov",{"$f":"VLOOKUP(B146,'[2]LOC FINAL with new Themes'!A:M,7,0)","v":0},{"$f":"VLOOKUP(B146,'[2]LOC FINAL with new Themes'!A:M,8,0)","v":0},{"$f":"VLOOKUP(B146,'[2]LOC FINAL with new Themes'!A:M,9,0)","v":0},{"$f":"VLOOKUP(B146,'[2]LOC FINAL with new Themes'!A:M,10,0)","v":0},{"$f":"VLOOKUP(B146,'[2]LOC FINAL with new Themes'!A:M,11,0)","v":0},{"$f":"VLOOKUP(B146,'[2]LOC FINAL with new Themes'!A:M,12,0)","v":0},{"$f":"VLOOKUP(B146,'[2]LOC FINAL with new Themes'!A:M,13,0)","v":0}]
[null,"Congressional District (111th)","Congressional District (111th)","Congressional District (111th)","Governmental Units ","DOC-Census","Jennifer Holland","Jennifer.L.Holland@census.gov",{"$f":"VLOOKUP(B147,'[2]LOC FINAL with new Themes'!A:M,7,0)","v":0},{"$f":"VLOOKUP(B147,'[2]LOC FINAL with new Themes'!A:M,8,0)","v":0},{"$f":"VLOOKUP(B147,'[2]LOC FINAL with new Themes'!A:M,9,0)","v":0},{"$f":"VLOOKUP(B147,'[2]LOC FINAL with new Themes'!A:M,10,0)","v":0},{"$f":"VLOOKUP(B147,'[2]LOC FINAL with new Themes'!A:M,11,0)","v":0},{"$f":"VLOOKUP(B147,'[2]LOC FINAL with new Themes'!A:M,12,0)","v":0},{"$f":"VLOOKUP(B147,'[2]LOC FINAL with new Themes'!A:M,13,0)","v":0}]
[null,"Consolidated City (2010 Census)","Consolidated City (2010 Census)","Consolidated City (2010 Census)","Governmental Units ","DOC-Census","Jennifer Holland","Jennifer.L.Holland@census.gov",{"$f":"VLOOKUP(B148,'[2]LOC FINAL with new Themes'!A:M,7,0)","v":0},{"$f":"VLOOKUP(B148,'[2]LOC FINAL with new Themes'!A:M,8,0)","v":0},{"$f":"VLOOKUP(B148,'[2]LOC FINAL with new Themes'!A:M,9,0)","v":0},{"$f":"VLOOKUP(B148,'[2]LOC FINAL with new Themes'!A:M,10,0)","v":0},{"$f":"VLOOKUP(B148,'[2]LOC FINAL with new Themes'!A:M,11,0)","v":0},{"$f":"VLOOKUP(B148,'[2]LOC FINAL with new Themes'!A:M,12,0)","v":0},{"$f":"VLOOKUP(B148,'[2]LOC FINAL with new Themes'!A:M,13,0)","v":0}]
[null,"Consolidated City (Census 2000)","Consolidated City (Census 2000)","Consolidated City (Census 2000)","Governmental Units ","DOC-Census","Jennifer Holland","Jennifer.L.Holland@census.gov",{"$f":"VLOOKUP(B149,'[2]LOC FINAL with new Themes'!A:M,7,0)","v":0},{"$f":"VLOOKUP(B149,'[2]LOC FINAL with new Themes'!A:M,8,0)","v":0},{"$f":"VLOOKUP(B149,'[2]LOC FINAL with new Themes'!A:M,9,0)","v":0},{"$f":"VLOOKUP(B149,'[2]LOC FINAL with new Themes'!A:M,10,0)","v":0},{"$f":"VLOOKUP(B149,'[2]LOC FINAL with new Themes'!A:M,11,0)","v":0},{"$f":"VLOOKUP(B149,'[2]LOC FINAL with new Themes'!A:M,12,0)","v":0},{"$f":"VLOOKUP(B149,'[2]LOC FINAL with new Themes'!A:M,13,0)","v":0}]
[null,"County and Equivalent (2010 Census)","County and Equivalent (2010 Census)","County and Equivalent (2010 Census)","Governmental Units ","DOC-Census","Jennifer Holland","Jennifer.L.Holland@census.gov",{"$f":"VLOOKUP(B150,'[2]LOC FINAL with new Themes'!A:M,7,0)","v":0},{"$f":"VLOOKUP(B150,'[2]LOC FINAL with new Themes'!A:M,8,0)","v":0},{"$f":"VLOOKUP(B150,'[2]LOC FINAL with new Themes'!A:M,9,0)","v":0},{"$f":"VLOOKUP(B150,'[2]LOC FINAL with new Themes'!A:M,10,0)","v":0},{"$f":"VLOOKUP(B150,'[2]LOC FINAL with new Themes'!A:M,11,0)","v":0},{"$f":"VLOOKUP(B150,'[2]LOC FINAL with new Themes'!A:M,12,0)","v":0},{"$f":"VLOOKUP(B150,'[2]LOC FINAL with new Themes'!A:M,13,0)","v":0}]
[null,"County and Equivalent (Census 2000)","County and Equivalent (Census 2000)","County and Equivalent (Census 2000)","Governmental Units ","DOC-Census","Jennifer Holland","Jennifer.L.Holland@census.gov",{"$f":"VLOOKUP(B151,'[2]LOC FINAL with new Themes'!A:M,7,0)","v":0},{"$f":"VLOOKUP(B151,'[2]LOC FINAL with new Themes'!A:M,8,0)","v":0},{"$f":"VLOOKUP(B151,'[2]LOC FINAL with new Themes'!A:M,9,0)","v":0},{"$f":"VLOOKUP(B151,'[2]LOC FINAL with new Themes'!A:M,10,0)","v":0},{"$f":"VLOOKUP(B151,'[2]LOC FINAL with new Themes'!A:M,11,0)","v":0},{"$f":"VLOOKUP(B151,'[2]LOC FINAL with new Themes'!A:M,12,0)","v":0},{"$f":"VLOOKUP(B151,'[2]LOC FINAL with new Themes'!A:M,13,0)","v":0}]
[null,"County Subdivision (2010 Census)","County Subdivision (2010 Census)","County Subdivision (2010 Census)","Governmental Units ","DOC-Census","Jennifer Holland","Jennifer.L.Holland@census.gov",{"$f":"VLOOKUP(B152,'[2]LOC FINAL with new Themes'!A:M,7,0)","v":0},{"$f":"VLOOKUP(B152,'[2]LOC FINAL with new Themes'!A:M,8,0)","v":0},{"$f":"VLOOKUP(B152,'[2]LOC FINAL with new Themes'!A:M,9,0)","v":0},{"$f":"VLOOKUP(B152,'[2]LOC FINAL with new Themes'!A:M,10,0)","v":0},{"$f":"VLOOKUP(B152,'[2]LOC FINAL with new Themes'!A:M,11,0)","v":0},{"$f":"VLOOKUP(B152,'[2]LOC FINAL with new Themes'!A:M,12,0)","v":0},{"$f":"VLOOKUP(B152,'[2]LOC FINAL with new Themes'!A:M,13,0)","v":0}]
[null,"County Subdivision (Census 2000)","County Subdivision (Census 2000)","County Subdivision (Census 2000)","Governmental Units ","DOC-Census","Jennifer Holland","Jennifer.L.Holland@census.gov",{"$f":"VLOOKUP(B153,'[2]LOC FINAL with new Themes'!A:M,7,0)","v":0},{"$f":"VLOOKUP(B153,'[2]LOC FINAL with new Themes'!A:M,8,0)","v":0},{"$f":"VLOOKUP(B153,'[2]LOC FINAL with new Themes'!A:M,9,0)","v":0},{"$f":"VLOOKUP(B153,'[2]LOC FINAL with new Themes'!A:M,10,0)","v":0},{"$f":"VLOOKUP(B153,'[2]LOC FINAL with new Themes'!A:M,11,0)","v":0},{"$f":"VLOOKUP(B153,'[2]LOC FINAL with new Themes'!A:M,12,0)","v":0},{"$f":"VLOOKUP(B153,'[2]LOC FINAL with new Themes'!A:M,13,0)","v":0}]
[null,"Metropolitan Division (2010 Census)","Metropolitan Division (2010 Census)","Metropolitan Division (2010 Census)","Governmental Units ","DOC-Census","Jennifer Holland","Jennifer.L.Holland@census.gov",{"$f":"VLOOKUP(B154,'[2]LOC FINAL with new Themes'!A:M,7,0)","v":0},{"$f":"VLOOKUP(B154,'[2]LOC FINAL with new Themes'!A:M,8,0)","v":0},{"$f":"VLOOKUP(B154,'[2]LOC FINAL with new Themes'!A:M,9,0)","v":0},{"$f":"VLOOKUP(B154,'[2]LOC FINAL with new Themes'!A:M,10,0)","v":0},{"$f":"VLOOKUP(B154,'[2]LOC FINAL with new Themes'!A:M,11,0)","v":0},{"$f":"VLOOKUP(B154,'[2]LOC FINAL with new Themes'!A:M,12,0)","v":0},{"$f":"VLOOKUP(B154,'[2]LOC FINAL with new Themes'!A:M,13,0)","v":0}]
[null,"Metropolitan Division (2010 Census)","Metropolitan Division (2010 Census)","Metropolitan Division (2010 Census)","Governmental Units ","DOC-Census","Jennifer Holland","Jennifer.L.Holland@census.gov",{"$f":"VLOOKUP(B155,'[2]LOC FINAL with new Themes'!A:M,7,0)","v":0},{"$f":"VLOOKUP(B155,'[2]LOC FINAL with new Themes'!A:M,8,0)","v":0},{"$f":"VLOOKUP(B155,'[2]LOC FINAL with new Themes'!A:M,9,0)","v":0},{"$f":"VLOOKUP(B155,'[2]LOC FINAL with new Themes'!A:M,10,0)","v":0},{"$f":"VLOOKUP(B155,'[2]LOC FINAL with new Themes'!A:M,11,0)","v":0},{"$f":"VLOOKUP(B155,'[2]LOC FINAL with new Themes'!A:M,12,0)","v":0},{"$f":"VLOOKUP(B155,'[2]LOC FINAL with new Themes'!A:M,13,0)","v":0}]
[null,"New England City and Town Area (2010 Census)","New England City and Town Area (2010 Census)","New England City and Town Area (2010 Census)","Governmental Units ","DOC-Census","Jennifer Holland","Jennifer.L.Holland@census.gov",{"$f":"VLOOKUP(B156,'[2]LOC FINAL with new Themes'!A:M,7,0)","v":0},{"$f":"VLOOKUP(B156,'[2]LOC FINAL with new Themes'!A:M,8,0)","v":0},{"$f":"VLOOKUP(B156,'[2]LOC FINAL with new Themes'!A:M,9,0)","v":0},{"$f":"VLOOKUP(B156,'[2]LOC FINAL with new Themes'!A:M,10,0)","v":0},{"$f":"VLOOKUP(B156,'[2]LOC FINAL with new Themes'!A:M,11,0)","v":0},{"$f":"VLOOKUP(B156,'[2]LOC FINAL with new Themes'!A:M,12,0)","v":0},{"$f":"VLOOKUP(B156,'[2]LOC FINAL with new Themes'!A:M,13,0)","v":0}]
[null,"New England City and Town Area Division (2010 Census)","New England City and Town Area Division (2010 Census)","New England City and Town Area Division (2010 Census)","Governmental Units ","DOC-Census","Jennifer Holland","Jennifer.L.Holland@census.gov",{"$f":"VLOOKUP(B157,'[2]LOC FINAL with new Themes'!A:M,7,0)","v":0},{"$f":"VLOOKUP(B157,'[2]LOC FINAL with new Themes'!A:M,8,0)","v":0},{"$f":"VLOOKUP(B157,'[2]LOC FINAL with new Themes'!A:M,9,0)","v":0},{"$f":"VLOOKUP(B157,'[2]LOC FINAL with new Themes'!A:M,10,0)","v":0},{"$f":"VLOOKUP(B157,'[2]LOC FINAL with new Themes'!A:M,11,0)","v":0},{"$f":"VLOOKUP(B157,'[2]LOC FINAL with new Themes'!A:M,12,0)","v":0},{"$f":"VLOOKUP(B157,'[2]LOC FINAL with new Themes'!A:M,13,0)","v":0}]
["Place and MCD Boundaries","Place (2010 Census)","Place (2010 Census)","Place (2010 Census)","Governmental Units ","DOC-Census","Jennifer Holland","Jennifer.L.Holland@census.gov",{"$f":"VLOOKUP(B158,'[2]LOC FINAL with new Themes'!A:M,7,0)","v":0},{"$f":"VLOOKUP(B158,'[2]LOC FINAL with new Themes'!A:M,8,0)","v":0},{"$f":"VLOOKUP(B158,'[2]LOC FINAL with new Themes'!A:M,9,0)","v":0},{"$f":"VLOOKUP(B158,'[2]LOC FINAL with new Themes'!A:M,10,0)","v":0},{"$f":"VLOOKUP(B158,'[2]LOC FINAL with new Themes'!A:M,11,0)","v":0},{"$f":"VLOOKUP(B158,'[2]LOC FINAL with new Themes'!A:M,12,0)","v":0},{"$f":"VLOOKUP(B158,'[2]LOC FINAL with new Themes'!A:M,13,0)","v":0}]
[null,"Place (Census 2000)","Place (Census 2000)","Place (Census 2000)","Governmental Units ","DOC-Census","Jennifer Holland","Jennifer.L.Holland@census.gov",{"$f":"VLOOKUP(B159,'[2]LOC FINAL with new Themes'!A:M,7,0)","v":0},{"$f":"VLOOKUP(B159,'[2]LOC FINAL with new Themes'!A:M,8,0)","v":0},{"$f":"VLOOKUP(B159,'[2]LOC FINAL with new Themes'!A:M,9,0)","v":0},{"$f":"VLOOKUP(B159,'[2]LOC FINAL with new Themes'!A:M,10,0)","v":0},{"$f":"VLOOKUP(B159,'[2]LOC FINAL with new Themes'!A:M,11,0)","v":0},{"$f":"VLOOKUP(B159,'[2]LOC FINAL with new Themes'!A:M,12,0)","v":0},{"$f":"VLOOKUP(B159,'[2]LOC FINAL with new Themes'!A:M,13,0)","v":0}]
["State(+ Territories) Boundaries","State and Equivalent  (2010 Census)","State and Equivalent  (2010 Census)","State and Equivalent  (2010 Census)","Governmental Units ","DOC-Census","Jennifer Holland","Jennifer.L.Holland@census.gov",{"$f":"VLOOKUP(B160,'[2]LOC FINAL with new Themes'!A:M,7,0)","v":0},{"$f":"VLOOKUP(B160,'[2]LOC FINAL with new Themes'!A:M,8,0)","v":0},{"$f":"VLOOKUP(B160,'[2]LOC FINAL with new Themes'!A:M,9,0)","v":0},{"$f":"VLOOKUP(B160,'[2]LOC FINAL with new Themes'!A:M,10,0)","v":0},{"$f":"VLOOKUP(B160,'[2]LOC FINAL with new Themes'!A:M,11,0)","v":0},{"$f":"VLOOKUP(B160,'[2]LOC FINAL with new Themes'!A:M,12,0)","v":0},{"$f":"VLOOKUP(B160,'[2]LOC FINAL with new Themes'!A:M,13,0)","v":0}]
[null,"State and Equivalent  (Census 2000)","State and Equivalent  (Census 2000)","State and Equivalent  (Census 2000)","Governmental Units ","DOC-Census","Jennifer Holland","Jennifer.L.Holland@census.gov",{"$f":"VLOOKUP(B161,'[2]LOC FINAL with new Themes'!A:M,7,0)","v":0},{"$f":"VLOOKUP(B161,'[2]LOC FINAL with new Themes'!A:M,8,0)","v":0},{"$f":"VLOOKUP(B161,'[2]LOC FINAL with new Themes'!A:M,9,0)","v":0},{"$f":"VLOOKUP(B161,'[2]LOC FINAL with new Themes'!A:M,10,0)","v":0},{"$f":"VLOOKUP(B161,'[2]LOC FINAL with new Themes'!A:M,11,0)","v":0},{"$f":"VLOOKUP(B161,'[2]LOC FINAL with new Themes'!A:M,12,0)","v":0},{"$f":"VLOOKUP(B161,'[2]LOC FINAL with new Themes'!A:M,13,0)","v":0}]
[null,"State Legislative District (Lower Chamber) (2010 Census)","State Legislative District (Lower Chamber) (2010 Census)","State Legislative District (Lower Chamber) (2010 Census)","Governmental Units ","DOC-Census","Jennifer Holland","Jennifer.L.Holland@census.gov",{"$f":"VLOOKUP(B162,'[2]LOC FINAL with new Themes'!A:M,7,0)","v":0},{"$f":"VLOOKUP(B162,'[2]LOC FINAL with new Themes'!A:M,8,0)","v":0},{"$f":"VLOOKUP(B162,'[2]LOC FINAL with new Themes'!A:M,9,0)","v":0},{"$f":"VLOOKUP(B162,'[2]LOC FINAL with new Themes'!A:M,10,0)","v":0},{"$f":"VLOOKUP(B162,'[2]LOC FINAL with new Themes'!A:M,11,0)","v":0},{"$f":"VLOOKUP(B162,'[2]LOC FINAL with new Themes'!A:M,12,0)","v":0},{"$f":"VLOOKUP(B162,'[2]LOC FINAL with new Themes'!A:M,13,0)","v":0}]
[null,"State Legislative District (Lower Chamber) (Census 2000)","State Legislative District (Lower Chamber) (Census 2000)","State Legislative District (Lower Chamber) (Census 2000)","Governmental Units ","DOC-Census","Jennifer Holland","Jennifer.L.Holland@census.gov",{"$f":"VLOOKUP(B163,'[2]LOC FINAL with new Themes'!A:M,7,0)","v":0},{"$f":"VLOOKUP(B163,'[2]LOC FINAL with new Themes'!A:M,8,0)","v":0},{"$f":"VLOOKUP(B163,'[2]LOC FINAL with new Themes'!A:M,9,0)","v":0},{"$f":"VLOOKUP(B163,'[2]LOC FINAL with new Themes'!A:M,10,0)","v":0},{"$f":"VLOOKUP(B163,'[2]LOC FINAL with new Themes'!A:M,11,0)","v":0},{"$f":"VLOOKUP(B163,'[2]LOC FINAL with new Themes'!A:M,12,0)","v":0},{"$f":"VLOOKUP(B163,'[2]LOC FINAL with new Themes'!A:M,13,0)","v":0}]
[null,"State Legislative District (Upper Chamber) (2010 Census)","State Legislative District (Upper Chamber) (2010 Census)","State Legislative District (Upper Chamber) (2010 Census)","Governmental Units ","DOC-Census","Jennifer Holland","Jennifer.L.Holland@census.gov",{"$f":"VLOOKUP(B164,'[2]LOC FINAL with new Themes'!A:M,7,0)","v":0},{"$f":"VLOOKUP(B164,'[2]LOC FINAL with new Themes'!A:M,8,0)","v":0},{"$f":"VLOOKUP(B164,'[2]LOC FINAL with new Themes'!A:M,9,0)","v":0},{"$f":"VLOOKUP(B164,'[2]LOC FINAL with new Themes'!A:M,10,0)","v":0},{"$f":"VLOOKUP(B164,'[2]LOC FINAL with new Themes'!A:M,11,0)","v":0},{"$f":"VLOOKUP(B164,'[2]LOC FINAL with new Themes'!A:M,12,0)","v":0},{"$f":"VLOOKUP(B164,'[2]LOC FINAL with new Themes'!A:M,13,0)","v":0}]
[null,"State Legislative District (Upper Chamber) (Census 2000)","State Legislative District (Upper Chamber) (Census 2000)","State Legislative District (Upper Chamber) (Census 2000)","Governmental Units ","DOC-Census","Jennifer Holland","Jennifer.L.Holland@census.gov",{"$f":"VLOOKUP(B165,'[2]LOC FINAL with new Themes'!A:M,7,0)","v":0},{"$f":"VLOOKUP(B165,'[2]LOC FINAL with new Themes'!A:M,8,0)","v":0},{"$f":"VLOOKUP(B165,'[2]LOC FINAL with new Themes'!A:M,9,0)","v":0},{"$f":"VLOOKUP(B165,'[2]LOC FINAL with new Themes'!A:M,10,0)","v":0},{"$f":"VLOOKUP(B165,'[2]LOC FINAL with new Themes'!A:M,11,0)","v":0},{"$f":"VLOOKUP(B165,'[2]LOC FINAL with new Themes'!A:M,12,0)","v":0},{"$f":"VLOOKUP(B165,'[2]LOC FINAL with new Themes'!A:M,13,0)","v":0}]
[null,"Subbarrio (2010 Census)","Subbarrio (2010 Census)","Subbarrio (2010 Census)","Governmental Units ","DOC-Census","Jennifer Holland","Jennifer.L.Holland@census.gov",{"$f":"VLOOKUP(B166,'[2]LOC FINAL with new Themes'!A:M,7,0)","v":0},{"$f":"VLOOKUP(B166,'[2]LOC FINAL with new Themes'!A:M,8,0)","v":0},{"$f":"VLOOKUP(B166,'[2]LOC FINAL with new Themes'!A:M,9,0)","v":0},{"$f":"VLOOKUP(B166,'[2]LOC FINAL with new Themes'!A:M,10,0)","v":0},{"$f":"VLOOKUP(B166,'[2]LOC FINAL with new Themes'!A:M,11,0)","v":0},{"$f":"VLOOKUP(B166,'[2]LOC FINAL with new Themes'!A:M,12,0)","v":0},{"$f":"VLOOKUP(B166,'[2]LOC FINAL with new Themes'!A:M,13,0)","v":0}]
[null,"Subbarrio (Census 2000)","Subbarrio (Census 2000)","Subbarrio (Census 2000)","Governmental Units ","DOC-Census","Jennifer Holland","Jennifer.L.Holland@census.gov",{"$f":"VLOOKUP(B167,'[2]LOC FINAL with new Themes'!A:M,7,0)","v":0},{"$f":"VLOOKUP(B167,'[2]LOC FINAL with new Themes'!A:M,8,0)","v":0},{"$f":"VLOOKUP(B167,'[2]LOC FINAL with new Themes'!A:M,9,0)","v":0},{"$f":"VLOOKUP(B167,'[2]LOC FINAL with new Themes'!A:M,10,0)","v":0},{"$f":"VLOOKUP(B167,'[2]LOC FINAL with new Themes'!A:M,11,0)","v":0},{"$f":"VLOOKUP(B167,'[2]LOC FINAL with new Themes'!A:M,12,0)","v":0},{"$f":"VLOOKUP(B167,'[2]LOC FINAL with new Themes'!A:M,13,0)","v":0}]
[null,"Urban Area (Corrected Census 2000)","Urban Area (Corrected Census 2000)","Urban Area (Corrected Census 2000)","Governmental Units ","DOC-Census","Jennifer Holland","Jennifer.L.Holland@census.gov",{"$f":"VLOOKUP(B168,'[2]LOC FINAL with new Themes'!A:M,7,0)","v":0},{"$f":"VLOOKUP(B168,'[2]LOC FINAL with new Themes'!A:M,8,0)","v":0},{"$f":"VLOOKUP(B168,'[2]LOC FINAL with new Themes'!A:M,9,0)","v":0},{"$f":"VLOOKUP(B168,'[2]LOC FINAL with new Themes'!A:M,10,0)","v":0},{"$f":"VLOOKUP(B168,'[2]LOC FINAL with new Themes'!A:M,11,0)","v":0},{"$f":"VLOOKUP(B168,'[2]LOC FINAL with new Themes'!A:M,12,0)","v":0},{"$f":"VLOOKUP(B168,'[2]LOC FINAL with new Themes'!A:M,13,0)","v":0}]
[null,null,null,{"$f":"SUBTOTAL(3,D137:D168)","v":32},"Governmental Units Count"]
["133 Urban Areas imagery program data","133 Urban Areas imagery program data",null,{"$f":"IF(C170=0,B170,C170)","v":"133 Urban Areas imagery program data"},"Imagery ","DOD-NGA","William Nellist","William.E.Nellist@nga.mil",{"$f":"VLOOKUP(B170,'[2]LOC FINAL with new Themes'!A:M,7,0)","v":0},{"$f":"VLOOKUP(B170,'[2]LOC FINAL with new Themes'!A:M,8,0)","v":0},{"$f":"VLOOKUP(B170,'[2]LOC FINAL with new Themes'!A:M,9,0)","v":0},{"$f":"VLOOKUP(B170,'[2]LOC FINAL with new Themes'!A:M,10,0)","v":0},{"$f":"VLOOKUP(B170,'[2]LOC FINAL with new Themes'!A:M,11,0)","v":0},{"$f":"VLOOKUP(B170,'[2]LOC FINAL with new Themes'!A:M,12,0)","v":0},{"$f":"VLOOKUP(B170,'[2]LOC FINAL with new Themes'!A:M,13,0)","v":0}]
[null,"134 Urban Areas imagery program data",null,"134 Urban Areas imagery program data","Imagery ","DOI-USGS","George Lee","gylee@usgs.gov",{"$f":"VLOOKUP(B171,'[2]LOC FINAL with new Themes'!A:M,7,0)","v":0},{"$f":"VLOOKUP(B171,'[2]LOC FINAL with new Themes'!A:M,8,0)","v":0},{"$f":"VLOOKUP(B171,'[2]LOC FINAL with new Themes'!A:M,9,0)","v":0},{"$f":"VLOOKUP(B171,'[2]LOC FINAL with new Themes'!A:M,10,0)","v":0},{"$f":"VLOOKUP(B171,'[2]LOC FINAL with new Themes'!A:M,11,0)","v":0},{"$f":"VLOOKUP(B171,'[2]LOC FINAL with new Themes'!A:M,12,0)","v":0},{"$f":"VLOOKUP(B171,'[2]LOC FINAL with new Themes'!A:M,13,0)","v":0}]
["ADS40 Hurricane Response 7.5' Quadrangle Mosaics","ADS40 Hurricane Response 7.5' Quadrangle Mosaics",null,"ADS40 Hurricane Response 7.5' Quadrangle Mosaics","Imagery ","DOI-USGS","Jim Mauck","jmauck@usgs.gov",{"$f":"VLOOKUP(B172,'[2]LOC FINAL with new Themes'!A:M,7,0)","v":0},{"$f":"VLOOKUP(B172,'[2]LOC FINAL with new Themes'!A:M,8,0)","v":0},{"$f":"VLOOKUP(B172,'[2]LOC FINAL with new Themes'!A:M,9,0)","v":0},{"$f":"VLOOKUP(B172,'[2]LOC FINAL with new Themes'!A:M,10,0)","v":0},{"$f":"VLOOKUP(B172,'[2]LOC FINAL with new Themes'!A:M,11,0)","v":0},{"$f":"VLOOKUP(B172,'[2]LOC FINAL with new Themes'!A:M,12,0)","v":0},{"$f":"VLOOKUP(B172,'[2]LOC FINAL with new Themes'!A:M,13,0)","v":0}]
["Digital Orthoimage Quarter Quadrangle (DOQQ) Archive","Digital Orthoimage Quarter Quadrangle (DOQQ) Archive",null,"Digital Orthoimage Quarter Quadrangle (DOQQ) Archive","Imagery ","DOI-USGS",null,null,{"$f":"VLOOKUP(B173,'[2]LOC FINAL with new Themes'!A:M,7,0)","v":"DOQQ is static; one data set; this is the POC and data manager. this is the name and maintain three complete with two physically separate on-site and one off-site"},{"$f":"VLOOKUP(B173,'[2]LOC FINAL with new Themes'!A:M,8,0)","v":0},{"$f":"VLOOKUP(B173,'[2]LOC FINAL with new Themes'!A:M,9,0)","v":0},{"$f":"VLOOKUP(B173,'[2]LOC FINAL with new Themes'!A:M,10,0)","v":0},{"$f":"VLOOKUP(B173,'[2]LOC FINAL with new Themes'!A:M,11,0)","v":0},{"$f":"VLOOKUP(B173,'[2]LOC FINAL with new Themes'!A:M,12,0)","v":0},{"$f":"VLOOKUP(B173,'[2]LOC FINAL with new Themes'!A:M,13,0)","v":"S"}]
["Emergency Response Imagery","Emergency Response Imagery","Emergency Response Imagery","Emergency Response Imagery","Imagery ","DOC-NOAA","Mike Aslaksen","mike.Aslaksen@noaa.gov",{"$f":"VLOOKUP(B174,'[2]LOC FINAL with new Themes'!A:M,7,0)","v":"20-Multiple      "},{"$f":"VLOOKUP(B174,'[2]LOC FINAL with new Themes'!A:M,8,0)","v":"No"},{"$f":"VLOOKUP(B174,'[2]LOC FINAL with new Themes'!A:M,9,0)","v":"Yes - email reply from Jon Sellars Jon.Sellars@noaa.gov"},{"$f":"VLOOKUP(B174,'[2]LOC FINAL with new Themes'!A:M,10,0)","v":"- Same for the forest frag."},{"$f":"VLOOKUP(B174,'[2]LOC FINAL with new Themes'!A:M,11,0)","v":"Our data can be accessed through the following links: http://storms.ngs.noaagov/eri_page/index.html Gulf Oil Spill:\nhttp://hdds.usgs.gov/hdds2/pub/data/disaster/201004_Oilspill_GulfOfMexico/data/AERIAL_NOAA\nhttp://hdds.usgs.gov/hdds2/pub/data/disaster/201004_Oilspill_GulfOfMexico/data/AERIAL_NOAA_MOSAIC  Haiti Earthquake:\nhttp://hdds.usgs.gov/hdds2/pub/data/disaster/201001_Earthquake_Haiti/data/AERIAL_NOAA\nhttp://hdds.usgs.gov/hdds2/pub/data/disaster/201001_Earthquake_Haiti/data/AERIAL_NOAA_ORTHO\nMexico Earthquake:\nhttp://hdds.usgs.gov/hdds2/pub/data/disaster/201004_Earthquake_Mexico/data/AERIAL_NOAA_MOSAIC \n\n"},{"$f":"VLOOKUP(B174,'[2]LOC FINAL with new Themes'!A:M,12,0)","v":"Described by storm name, event or location."},{"$f":"VLOOKUP(B174,'[2]LOC FINAL with new Themes'!A:M,13,0)","v":"M "}]
[null,null,"Fire, Detection: AVHRR FIMMA , GOES WF-ABBA","Fire, Detection: AVHRR FIMMA , GOES WF-ABBA","Imagery ","USDA"]
["Landsat geometric/terrain corrected level 1T","Landsat geometric/terrain corrected level 1T","Landsat Terrain Corrected Scenes","Landsat Terrain Corrected Scenes","Imagery ","DOI-USGS","Kristi Kline","kkline@usgs.gov",{"$f":"VLOOKUP(B176,'[2]LOC FINAL with new Themes'!A:M,7,0)","v":"Landsat updates daily; a series of data sets; this is the POC and data manager; this is the name and maintain three complete with two physically separate on-site and one off-site"},{"$f":"VLOOKUP(B176,'[2]LOC FINAL with new Themes'!A:M,8,0)","v":0},{"$f":"VLOOKUP(B176,'[2]LOC FINAL with new Themes'!A:M,9,0)","v":0},{"$f":"VLOOKUP(B176,'[2]LOC FINAL with new Themes'!A:M,10,0)","v":0},{"$f":"VLOOKUP(B176,'[2]LOC FINAL with new Themes'!A:M,11,0)","v":0},{"$f":"VLOOKUP(B176,'[2]LOC FINAL with new Themes'!A:M,12,0)","v":0},{"$f":"VLOOKUP(B176,'[2]LOC FINAL with new Themes'!A:M,13,0)","v":"S"}]
[null,null,"National  Orthoimagery Dataset - National Map","National  Orthoimagery Dataset - National Map","Imagery ","DOI-USGS"]
["National Aerial Photography Program (NAPP) Data Archive","National Aerial Photography Program (NAPP) Data Archive",null,"National Aerial Photography Program (NAPP) Data Archive","Imagery ","DOI-USGS","Wayne Miller","wamiller@usgs.gov",{"$f":"VLOOKUP(B178,'[2]LOC FINAL with new Themes'!A:M,7,0)","v":"NAPP is static; one data set; this is the POC and data manager; this is the name and maintain three complete with two physically separate on-site and one off-site "},{"$f":"VLOOKUP(B178,'[2]LOC FINAL with new Themes'!A:M,8,0)","v":0},{"$f":"VLOOKUP(B178,'[2]LOC FINAL with new Themes'!A:M,9,0)","v":0},{"$f":"VLOOKUP(B178,'[2]LOC FINAL with new Themes'!A:M,10,0)","v":0},{"$f":"VLOOKUP(B178,'[2]LOC FINAL with new Themes'!A:M,11,0)","v":0},{"$f":"VLOOKUP(B178,'[2]LOC FINAL with new Themes'!A:M,12,0)","v":0},{"$f":"VLOOKUP(B178,'[2]LOC FINAL with new Themes'!A:M,13,0)","v":"S"}]
["National Agriculture Imagery Program Data","National Agriculture Imagery Program Data","National Agriculture Imagery Program (NAIP) Archive","National Agriculture Imagery Program (NAIP) Archive","Imagery ","DOI-USGS","Shirley Hall","shirley.hall@wdc.usda.gov",{"$f":"VLOOKUP(B179,'[2]LOC FINAL with new Themes'!A:M,7,0)","v":"Shirley identified Dan Good as new contact 'daniel.good@wdc.usda.gov' - need to follow up with either or both"},{"$f":"VLOOKUP(B179,'[2]LOC FINAL with new Themes'!A:M,8,0)","v":0},{"$f":"VLOOKUP(B179,'[2]LOC FINAL with new Themes'!A:M,9,0)","v":0},{"$f":"VLOOKUP(B179,'[2]LOC FINAL with new Themes'!A:M,10,0)","v":0},{"$f":"VLOOKUP(B179,'[2]LOC FINAL with new Themes'!A:M,11,0)","v":0},{"$f":"VLOOKUP(B179,'[2]LOC FINAL with new Themes'!A:M,12,0)","v":0},{"$f":"VLOOKUP(B179,'[2]LOC FINAL with new Themes'!A:M,13,0)","v":0}]
["National Map Orthoimagery Database (TNM Seamless Server) ","National Map Orthoimagery Database (TNM Seamless Server) ",null,"National Map Orthoimagery Database (TNM Seamless Server) ","Imagery ","DOI-USGS","George Lee","gylee@usgs.gov",{"$f":"VLOOKUP(B180,'[2]LOC FINAL with new Themes'!A:M,7,0)","v":0},{"$f":"VLOOKUP(B180,'[2]LOC FINAL with new Themes'!A:M,8,0)","v":0},{"$f":"VLOOKUP(B180,'[2]LOC FINAL with new Themes'!A:M,9,0)","v":0},{"$f":"VLOOKUP(B180,'[2]LOC FINAL with new Themes'!A:M,10,0)","v":0},{"$f":"VLOOKUP(B180,'[2]LOC FINAL with new Themes'!A:M,11,0)","v":0},{"$f":"VLOOKUP(B180,'[2]LOC FINAL with new Themes'!A:M,12,0)","v":0},{"$f":"VLOOKUP(B180,'[2]LOC FINAL with new Themes'!A:M,13,0)","v":0}]
[null,null,"Satellite Imagery Archive","Satellite Imagery Archive","Imagery ","USDA-FSA"]
[null,null,null,{"$f":"SUBTOTAL(3,D170:D181)","v":12},"Imagery  Count"]
[null,null,"Crops: Cropland Data Layer",{"$f":"IF(C183=0,B183,C183)","v":"Crops: Cropland Data Layer"},"Land Use-Land Cover ","USDA-NASS"]
[null,null,"Earth Cover, Land: MODIS-based Land Products","Earth Cover, Land: MODIS-based Land Products","Land Use-Land Cover ","USDA -FS (Along with USGS)"]
[null,null,"Earth Cover, Vegetation, Forest: Forest Biomass, Types, Type Groups","Earth Cover, Vegetation, Forest: Forest Biomass, Types, Type Groups","Land Use-Land Cover ","USDA-FS"]
[null,null,"Earth Cover, Vegetation: Percent Forest Canopy","Earth Cover, Vegetation: Percent Forest Canopy","Land Use-Land Cover ","USDA-FS"]
[null,null,"Fire Severity: Monitoring Trends in Burn Severity (MTBS)","Fire Severity: Monitoring Trends in Burn Severity (MTBS)","Land Use-Land Cover ","USDA -FS (Along with USGS)"]
[null,null,"Fire, Detection: Daily Active Fire Mapping","Fire, Detection: Daily Active Fire Mapping","Land Use-Land Cover ","USDA"]
[null,null,"Land Cover Strata Dataset","Land Cover Strata Dataset","Land Use-Land Cover ","USDA-NASS"]
["LANDFIRE Dataset","LANDFIRE Dataset","Land Fire Dataset","Land Fire Dataset","Land Use-Land Cover ",null,null,0,{"$f":"VLOOKUP(B190,'[2]LOC FINAL with new Themes'!A:M,7,0)","v":0},{"$f":"VLOOKUP(B190,'[2]LOC FINAL with new Themes'!A:M,8,0)","v":0},{"$f":"VLOOKUP(B190,'[2]LOC FINAL with new Themes'!A:M,9,0)","v":0},{"$f":"VLOOKUP(B190,'[2]LOC FINAL with new Themes'!A:M,10,0)","v":0},{"$f":"VLOOKUP(B190,'[2]LOC FINAL with new Themes'!A:M,11,0)","v":0},{"$f":"VLOOKUP(B190,'[2]LOC FINAL with new Themes'!A:M,12,0)","v":0},{"$f":"VLOOKUP(B190,'[2]LOC FINAL with new Themes'!A:M,13,0)","v":0}]
["National Land Cover Dataset (NLCD)","National Land Cover Dataset (NLCD)","National Land Cover Dataset - GIRAS - 1975","National Land Cover Dataset - GIRAS - 1975","Land Use-Land Cover ","DOI-USGS","Colin Homer","homer@usgs.gov",{"$f":"VLOOKUP(B191,'[2]LOC FINAL with new Themes'!A:M,7,0)","v":"The table below summarizes NLCD products available for download from the MRLC website http://www.mrlc.gov/ "},{"$f":"VLOOKUP(B191,'[2]LOC FINAL with new Themes'!A:M,8,0)","v":"No.  The \"manager\" of the data is Jon Dewitz. \nContact Information -   \nJon Dewitz\ndewitz@usgs.gov\n605-594-2715\nNLCD Quality Supervisor\nUSGS Earth Resources Observation and Science Center (EROS)\nMundt Federal Building\n47914 252nd St.\nSioux Falls, SD 57198\nfax 605-594-6529\n"},{"$f":"VLOOKUP(B191,'[2]LOC FINAL with new Themes'!A:M,9,0)","v":"Joyce Fry is the POC. \nContact information - \nJoyce Fry, Geographer\nUnited States Geological Survey (USGS)\nEarth Resources Observation and  Science (EROS) Center\nMundt Federal Building\n47914 252nd Street\nSioux Falls, South Dakota 57198\n(P)  605.594.2739\n(F)  605.594.6529\n(e)  jfry@usgs.gov \n"},{"$f":"VLOOKUP(B191,'[2]LOC FINAL with new Themes'!A:M,10,0)","v":"Every 5 years"},{"$f":"VLOOKUP(B191,'[2]LOC FINAL with new Themes'!A:M,11,0)","v":"Yes, there is an archive/backup of the dataset through the EROS Long Term Archive (LTA) group.  I will need to get back to if you need additional information regarding the archive process. "},{"$f":"VLOOKUP(B191,'[2]LOC FINAL with new Themes'!A:M,12,0)","v":"National Land Cover Database or NLCD along with the era number, either 1992 or 2001, or 2006. "},{"$f":"VLOOKUP(B191,'[2]LOC FINAL with new Themes'!A:M,13,0)","v":"S"}]
[null,null,"National Land Cover Dataset - National Map","National Land Cover Dataset - National Map","Land Use-Land Cover ","DOI-USGS"]
[null,null,"National Land Cover Dataset - National Map - 1991","National Land Cover Dataset - National Map - 1991","Land Use-Land Cover ","DOI-USGS"]
[null,null,"National Land Cover Dataset - National Map - 2001","National Land Cover Dataset - National Map - 2001","Land Use-Land Cover ","DOI-USGS"]
[null,null,"National Land Cover Dataset - National Map 2006","National Land Cover Dataset - National Map 2006","Land Use-Land Cover ","DOI-USGS"]
["National Land Cover Dataset (NLCD)","National Land Cover Dataset (NLCD)","National Land Cover Dataset (NLCD)","National Land Cover Dataset (NLCD)","Land Use-Land Cover ","DOI-USGS","Colin Homer","homer@usgs.gov",{"$f":"VLOOKUP(B196,'[2]LOC FINAL with new Themes'!A:M,7,0)","v":"The table below summarizes NLCD products available for download from the MRLC website http://www.mrlc.gov/ "},{"$f":"VLOOKUP(B196,'[2]LOC FINAL with new Themes'!A:M,8,0)","v":"No.  The \"manager\" of the data is Jon Dewitz. \nContact Information -   \nJon Dewitz\ndewitz@usgs.gov\n605-594-2715\nNLCD Quality Supervisor\nUSGS Earth Resources Observation and Science Center (EROS)\nMundt Federal Building\n47914 252nd St.\nSioux Falls, SD 57198\nfax 605-594-6529\n"},{"$f":"VLOOKUP(B196,'[2]LOC FINAL with new Themes'!A:M,9,0)","v":"Joyce Fry is the POC. \nContact information - \nJoyce Fry, Geographer\nUnited States Geological Survey (USGS)\nEarth Resources Observation and  Science (EROS) Center\nMundt Federal Building\n47914 252nd Street\nSioux Falls, South Dakota 57198\n(P)  605.594.2739\n(F)  605.594.6529\n(e)  jfry@usgs.gov \n"},{"$f":"VLOOKUP(B196,'[2]LOC FINAL with new Themes'!A:M,10,0)","v":"Every 5 years"},{"$f":"VLOOKUP(B196,'[2]LOC FINAL with new Themes'!A:M,11,0)","v":"Yes, there is an archive/backup of the dataset through the EROS Long Term Archive (LTA) group.  I will need to get back to if you need additional information regarding the archive process. "},{"$f":"VLOOKUP(B196,'[2]LOC FINAL with new Themes'!A:M,12,0)","v":"National Land Cover Database or NLCD along with the era number, either 1992 or 2001, or 2006. "},{"$f":"VLOOKUP(B196,'[2]LOC FINAL with new Themes'!A:M,13,0)","v":"S"}]
[null,null,"National Land Cover Percent Canopy - National Map - 1991","National Land Cover Percent Canopy - National Map - 1991","Land Use-Land Cover ","DOI-USGS"]
[null,null,"National Land Cover Percent Imperviousness - National Map - 2001","National Land Cover Percent Imperviousness - National Map - 2001","Land Use-Land Cover ","DOI-USGS"]
[null,null,"National Land Cover Percent Imperviousness - National Map - 2006","National Land Cover Percent Imperviousness - National Map - 2006","Land Use-Land Cover ","DOI-USGS"]
["National Parks Data","National Parks Data","National Parks Data","National Parks Data","Land Use-Land Cover ","DOI-NPS","Roger Johnson ","Roger_M_Johnson@nps.gov",{"$f":"VLOOKUP(B200,'[2]LOC FINAL with new Themes'!A:M,7,0)","v":"undeliverable email- neeed to identify new contact"},{"$f":"VLOOKUP(B200,'[2]LOC FINAL with new Themes'!A:M,8,0)","v":0},{"$f":"VLOOKUP(B200,'[2]LOC FINAL with new Themes'!A:M,9,0)","v":0},{"$f":"VLOOKUP(B200,'[2]LOC FINAL with new Themes'!A:M,10,0)","v":0},{"$f":"VLOOKUP(B200,'[2]LOC FINAL with new Themes'!A:M,11,0)","v":0},{"$f":"VLOOKUP(B200,'[2]LOC FINAL with new Themes'!A:M,12,0)","v":0},{"$f":"VLOOKUP(B200,'[2]LOC FINAL with new Themes'!A:M,13,0)","v":0}]
[null,null,null,{"$f":"SUBTOTAL(3,D183:D200)","v":18},"Land Use-Land Cover  Count"]
["Assisted Housing (census geography or point-based) see http://www.huduser.org/picture2000/","Assisted Housing (census geography or point-based)",null,{"$f":"IF(C202=0,B202,C202)","v":"Assisted Housing (census geography or point-based)"},"Real Property","HUD","Jon Sperling","jon.sperling@hud.gov",{"$f":"VLOOKUP(B202,'[2]LOC FINAL with new Themes'!A:M,7,0)","v":0},{"$f":"VLOOKUP(B202,'[2]LOC FINAL with new Themes'!A:M,8,0)","v":0},{"$f":"VLOOKUP(B202,'[2]LOC FINAL with new Themes'!A:M,9,0)","v":0},{"$f":"VLOOKUP(B202,'[2]LOC FINAL with new Themes'!A:M,10,0)","v":0},{"$f":"VLOOKUP(B202,'[2]LOC FINAL with new Themes'!A:M,11,0)","v":0},{"$f":"VLOOKUP(B202,'[2]LOC FINAL with new Themes'!A:M,12,0)","v":0},{"$f":"VLOOKUP(B202,'[2]LOC FINAL with new Themes'!A:M,13,0)","v":0}]
["Enterprise Zones, Empowerment Communities, Revitalization Areas, Qualified Census Tracts, etc.  (census geography based)","Enterprise Zones, Empowerment Communities, Revitalization Areas, Qualified Census Tracts, etc.  (census geography based)",null,"Enterprise Zones, Empowerment Communities, Revitalization Areas, Qualified Census Tracts, etc.  (census geography based)","Real Property","HUD","Jon Sperling","jon.sperling@hud.gov",{"$f":"VLOOKUP(B203,'[2]LOC FINAL with new Themes'!A:M,7,0)","v":0},{"$f":"VLOOKUP(B203,'[2]LOC FINAL with new Themes'!A:M,8,0)","v":0},{"$f":"VLOOKUP(B203,'[2]LOC FINAL with new Themes'!A:M,9,0)","v":0},{"$f":"VLOOKUP(B203,'[2]LOC FINAL with new Themes'!A:M,10,0)","v":0},{"$f":"VLOOKUP(B203,'[2]LOC FINAL with new Themes'!A:M,11,0)","v":0},{"$f":"VLOOKUP(B203,'[2]LOC FINAL with new Themes'!A:M,12,0)","v":0},{"$f":"VLOOKUP(B203,'[2]LOC FINAL with new Themes'!A:M,13,0)","v":0}]
["Federal building location point ","Federal building location point ","Federal building location point ","Federal building location point ","Real Property ","GSA","Sandra Downie","sandra.downie@gsa.gov",{"$f":"VLOOKUP(B204,'[2]LOC FINAL with new Themes'!A:M,7,0)","v":0},{"$f":"VLOOKUP(B204,'[2]LOC FINAL with new Themes'!A:M,8,0)","v":0},{"$f":"VLOOKUP(B204,'[2]LOC FINAL with new Themes'!A:M,9,0)","v":0},{"$f":"VLOOKUP(B204,'[2]LOC FINAL with new Themes'!A:M,10,0)","v":0},{"$f":"VLOOKUP(B204,'[2]LOC FINAL with new Themes'!A:M,11,0)","v":0},{"$f":"VLOOKUP(B204,'[2]LOC FINAL with new Themes'!A:M,12,0)","v":0},{"$f":"VLOOKUP(B204,'[2]LOC FINAL with new Themes'!A:M,13,0)","v":0}]
["Federal building location polygon","Federal building location polygon","Federal building location polygon","Federal building location polygon","Real Property ","GSA","Sandra Downie","sandra.downie@gsa.gov",{"$f":"VLOOKUP(B205,'[2]LOC FINAL with new Themes'!A:M,7,0)","v":0},{"$f":"VLOOKUP(B205,'[2]LOC FINAL with new Themes'!A:M,8,0)","v":0},{"$f":"VLOOKUP(B205,'[2]LOC FINAL with new Themes'!A:M,9,0)","v":0},{"$f":"VLOOKUP(B205,'[2]LOC FINAL with new Themes'!A:M,10,0)","v":0},{"$f":"VLOOKUP(B205,'[2]LOC FINAL with new Themes'!A:M,11,0)","v":0},{"$f":"VLOOKUP(B205,'[2]LOC FINAL with new Themes'!A:M,12,0)","v":0},{"$f":"VLOOKUP(B205,'[2]LOC FINAL with new Themes'!A:M,13,0)","v":0}]
["Federal land area facility location point","Federal land area facility location point","Federal land area facility location point","Federal land area facility location point","Real Property ","GSA","Sandra Downie","sandra.downie@gsa.gov",{"$f":"VLOOKUP(B206,'[2]LOC FINAL with new Themes'!A:M,7,0)","v":0},{"$f":"VLOOKUP(B206,'[2]LOC FINAL with new Themes'!A:M,8,0)","v":0},{"$f":"VLOOKUP(B206,'[2]LOC FINAL with new Themes'!A:M,9,0)","v":0},{"$f":"VLOOKUP(B206,'[2]LOC FINAL with new Themes'!A:M,10,0)","v":0},{"$f":"VLOOKUP(B206,'[2]LOC FINAL with new Themes'!A:M,11,0)","v":0},{"$f":"VLOOKUP(B206,'[2]LOC FINAL with new Themes'!A:M,12,0)","v":0},{"$f":"VLOOKUP(B206,'[2]LOC FINAL with new Themes'!A:M,13,0)","v":0}]
["Federal land area facility location polygon","Federal land area facility location polygon","Federal land area facility location polygon","Federal land area facility location polygon","Real Property ","GSA","Sandra Downie","sandra.downie@gsa.gov",{"$f":"VLOOKUP(B207,'[2]LOC FINAL with new Themes'!A:M,7,0)","v":0},{"$f":"VLOOKUP(B207,'[2]LOC FINAL with new Themes'!A:M,8,0)","v":0},{"$f":"VLOOKUP(B207,'[2]LOC FINAL with new Themes'!A:M,9,0)","v":0},{"$f":"VLOOKUP(B207,'[2]LOC FINAL with new Themes'!A:M,10,0)","v":0},{"$f":"VLOOKUP(B207,'[2]LOC FINAL with new Themes'!A:M,11,0)","v":0},{"$f":"VLOOKUP(B207,'[2]LOC FINAL with new Themes'!A:M,12,0)","v":0},{"$f":"VLOOKUP(B207,'[2]LOC FINAL with new Themes'!A:M,13,0)","v":0}]
["National Map - Structures Dataset","National Map - Structures Dataset","National Structures Dataset - National Map","National Structures Dataset - National Map","Real Property ","DOI-USGS","Paul Wiese","pmwiese@usgs.gov",{"$f":"VLOOKUP(B208,'[2]LOC FINAL with new Themes'!A:M,7,0)","v":"National Map updates monthly; a series of data sets; this is the POC and data manager; this is the name and maintain three complete with two physically separate on-site and one off-site"},{"$f":"VLOOKUP(B208,'[2]LOC FINAL with new Themes'!A:M,8,0)","v":0},{"$f":"VLOOKUP(B208,'[2]LOC FINAL with new Themes'!A:M,9,0)","v":0},{"$f":"VLOOKUP(B208,'[2]LOC FINAL with new Themes'!A:M,10,0)","v":0},{"$f":"VLOOKUP(B208,'[2]LOC FINAL with new Themes'!A:M,11,0)","v":0},{"$f":"VLOOKUP(B208,'[2]LOC FINAL with new Themes'!A:M,12,0)","v":0},{"$f":"VLOOKUP(B208,'[2]LOC FINAL with new Themes'!A:M,13,0)","v":"S"}]
[null,null,null,{"$f":"SUBTOTAL(3,D202:D208)","v":7},"Real Property Count"]
[null,"Military Installation","Military Installation",{"$f":"IF(C210=0,B210,C210)","v":"Military Installation"},"Real Property\nCultural & Demographic Statistics","DOC-Census","Jennifer Holland","Jennifer.L.Holland@census.gov",{"$f":"VLOOKUP(B210,'[2]LOC FINAL with new Themes'!A:M,7,0)","v":0},{"$f":"VLOOKUP(B210,'[2]LOC FINAL with new Themes'!A:M,8,0)","v":0},{"$f":"VLOOKUP(B210,'[2]LOC FINAL with new Themes'!A:M,9,0)","v":0},{"$f":"VLOOKUP(B210,'[2]LOC FINAL with new Themes'!A:M,10,0)","v":0},{"$f":"VLOOKUP(B210,'[2]LOC FINAL with new Themes'!A:M,11,0)","v":0},{"$f":"VLOOKUP(B210,'[2]LOC FINAL with new Themes'!A:M,12,0)","v":0},{"$f":"VLOOKUP(B210,'[2]LOC FINAL with new Themes'!A:M,13,0)","v":0}]
[null,null,null,{"$f":"SUBTOTAL(3,D210:D210)","v":1},"Real Property\nCultural & Demographic Statistics Count"]
["Common Resource Area (CRA)","Common Resource Area (CRA)","Common Resource Area (CRA)",{"$f":"IF(C212=0,B212,C212)","v":"Common Resource Area (CRA)"},"Soils ","USDA-NRCS","David Hoover","David.Hoover@wdc.usda.gov",{"$f":"VLOOKUP(B212,'[2]LOC FINAL with new Themes'!A:M,7,0)","v":0},{"$f":"VLOOKUP(B212,'[2]LOC FINAL with new Themes'!A:M,8,0)","v":0},{"$f":"VLOOKUP(B212,'[2]LOC FINAL with new Themes'!A:M,9,0)","v":0},{"$f":"VLOOKUP(B212,'[2]LOC FINAL with new Themes'!A:M,10,0)","v":0},{"$f":"VLOOKUP(B212,'[2]LOC FINAL with new Themes'!A:M,11,0)","v":0},{"$f":"VLOOKUP(B212,'[2]LOC FINAL with new Themes'!A:M,12,0)","v":0},{"$f":"VLOOKUP(B212,'[2]LOC FINAL with new Themes'!A:M,13,0)","v":0}]
["Major Land Resource Area (MLRA)","Major Land Resource Area (MLRA)","Major Land Resource Area (MLRA)","Major Land Resource Area (MLRA)","Soils ","USDA-NRCS","David Hoover","David.Hoover@wdc.usda.gov",{"$f":"VLOOKUP(B213,'[2]LOC FINAL with new Themes'!A:M,7,0)","v":"undeliverable email- neeed to identify new contact"},{"$f":"VLOOKUP(B213,'[2]LOC FINAL with new Themes'!A:M,8,0)","v":0},{"$f":"VLOOKUP(B213,'[2]LOC FINAL with new Themes'!A:M,9,0)","v":0},{"$f":"VLOOKUP(B213,'[2]LOC FINAL with new Themes'!A:M,10,0)","v":0},{"$f":"VLOOKUP(B213,'[2]LOC FINAL with new Themes'!A:M,11,0)","v":0},{"$f":"VLOOKUP(B213,'[2]LOC FINAL with new Themes'!A:M,12,0)","v":0},{"$f":"VLOOKUP(B213,'[2]LOC FINAL with new Themes'!A:M,13,0)","v":0}]
["National Cooperative Soil Survey (NCSS)","National Cooperative Soil Survey (NCSS)","National Cooperative Soil Characterization Database","National Cooperative Soil Characterization Database","Soils ","USDA-NRCS","Larry West","Larry.West@lin.usda.gov",{"$f":"VLOOKUP(B214,'[2]LOC FINAL with new Themes'!A:M,7,0)","v":"We have our Soil Survey Geographic database called SSURGO which is made available through the following sites:\nWeb Soil Survey:    http://websoilsurvey.nrcs.usda.gov/app/\nSoil Data Mart:     http://soildatamart.nrcs.usda.gov/\nSoil Data Access:   http://sdmdataaccess.nrcs.usda.gov\n\nWe also have: \nLab Soil Survey Lab Characterization Data (Point data): http://ssldata.nrcs.usda.gov/ aka NCSS Characterization Database\nSoil Series Classification Database http://soils.usda.gov/technical/classification/scfile/index.html\nU.S. General Soil Map (STATSGO2)\nMajor Land Resource Area (MLRA) http://soils.usda.gov/survey/geography/mlra/\n             Common Resource Areas (CRA) \n\n"},{"$f":"VLOOKUP(B214,'[2]LOC FINAL with new Themes'!A:M,8,0)","v":"? No, I am a Program Manager. Various other people have roles of maintaining the data. "},{"$f":"VLOOKUP(B214,'[2]LOC FINAL with new Themes'!A:M,9,0)","v":"I am a general information POC for all things soil survey related. For more technical aspects on our data sets a good POC would be David Hoover, National Leader for Soil Business Systems or someone on his staff. His contact number is 402-437-4013 or email at david.hoover@lin.usda.gov. "},{"$f":"VLOOKUP(B214,'[2]LOC FINAL with new Themes'!A:M,10,0)","v":"Our data sets are constantly being updated by about 1000 soil and plant scientists in several agencies. "},{"$f":"VLOOKUP(B214,'[2]LOC FINAL with new Themes'!A:M,11,0)","v":"Our data sets are archived, but I don’t know how far back. I will have to get back to you on that. It is my understanding that archived sets are not easily accessible.  We have archive data for SSURGO (Soil Data Warehouse from mid 2000’s or earlier – Jim Fortner or Jennifer Sweet may be able to confirm or provide more detail; We also have archive data for STATSGO (circa 1994;1996) and for MLRA (1978; 2001; 2006) in local holdings.  Not sure about lab data archives, Henry Ferguson or Larry West can confirm.  "},{"$f":"VLOOKUP(B214,'[2]LOC FINAL with new Themes'!A:M,12,0)","v":"? the Lab Characterization Data is also known as the “NCSS Characterization Database”\nAdded Common Resource Area geographic database (CRA)."},{"$f":"VLOOKUP(B214,'[2]LOC FINAL with new Themes'!A:M,13,0)","v":"P"}]
["Soil Survey Geographic Database (SSURGO)","Soil Survey Geographic Database (SSURGO)","Soil Survey Geographic Database (SSURGO)","Soil Survey Geographic Database (SSURGO)","Soils ","USDA-NRCS","David Hoover","David.Hoover@wdc.usda.gov",{"$f":"VLOOKUP(B215,'[2]LOC FINAL with new Themes'!A:M,7,0)","v":"undeliverable email- neeed to identify new contact"},{"$f":"VLOOKUP(B215,'[2]LOC FINAL with new Themes'!A:M,8,0)","v":0},{"$f":"VLOOKUP(B215,'[2]LOC FINAL with new Themes'!A:M,9,0)","v":0},{"$f":"VLOOKUP(B215,'[2]LOC FINAL with new Themes'!A:M,10,0)","v":0},{"$f":"VLOOKUP(B215,'[2]LOC FINAL with new Themes'!A:M,11,0)","v":0},{"$f":"VLOOKUP(B215,'[2]LOC FINAL with new Themes'!A:M,12,0)","v":0},{"$f":"VLOOKUP(B215,'[2]LOC FINAL with new Themes'!A:M,13,0)","v":0}]
["U.S. General Soil Map (STATSGO2)","U.S. General Soil Map (STATSGO2)","U.S. General Soil Map (STATSGO2)","U.S. General Soil Map (STATSGO2)","Soils ","USDA-NRCS","David Hoover","David.Hoover@wdc.usda.gov",{"$f":"VLOOKUP(B216,'[2]LOC FINAL with new Themes'!A:M,7,0)","v":"undeliverable email- neeed to identify new contact"},{"$f":"VLOOKUP(B216,'[2]LOC FINAL with new Themes'!A:M,8,0)","v":0},{"$f":"VLOOKUP(B216,'[2]LOC FINAL with new Themes'!A:M,9,0)","v":0},{"$f":"VLOOKUP(B216,'[2]LOC FINAL with new Themes'!A:M,10,0)","v":0},{"$f":"VLOOKUP(B216,'[2]LOC FINAL with new Themes'!A:M,11,0)","v":0},{"$f":"VLOOKUP(B216,'[2]LOC FINAL with new Themes'!A:M,12,0)","v":0},{"$f":"VLOOKUP(B216,'[2]LOC FINAL with new Themes'!A:M,13,0)","v":0}]
[null,null,null,{"$f":"SUBTOTAL(3,D212:D216)","v":5},"Soils  Count"]
[null,"Address Range-Feature Name Relationship File","Address Range-Feature Name Relationship File",{"$f":"IF(C218=0,B218,C218)","v":"Address Range-Feature Name Relationship File"},"Transportation ","DOC-Census","Jennifer Holland","Jennifer.L.Holland@census.gov",{"$f":"VLOOKUP(B218,'[2]LOC FINAL with new Themes'!A:M,7,0)","v":0},{"$f":"VLOOKUP(B218,'[2]LOC FINAL with new Themes'!A:M,8,0)","v":0},{"$f":"VLOOKUP(B218,'[2]LOC FINAL with new Themes'!A:M,9,0)","v":0},{"$f":"VLOOKUP(B218,'[2]LOC FINAL with new Themes'!A:M,10,0)","v":0},{"$f":"VLOOKUP(B218,'[2]LOC FINAL with new Themes'!A:M,11,0)","v":0},{"$f":"VLOOKUP(B218,'[2]LOC FINAL with new Themes'!A:M,12,0)","v":0},{"$f":"VLOOKUP(B218,'[2]LOC FINAL with new Themes'!A:M,13,0)","v":0}]
[null,"Address Ranges Relationship File","Address Ranges Relationship File","Address Ranges Relationship File","Transportation ","DOC-Census","Jennifer Holland","Jennifer.L.Holland@census.gov",{"$f":"VLOOKUP(B219,'[2]LOC FINAL with new Themes'!A:M,7,0)","v":0},{"$f":"VLOOKUP(B219,'[2]LOC FINAL with new Themes'!A:M,8,0)","v":0},{"$f":"VLOOKUP(B219,'[2]LOC FINAL with new Themes'!A:M,9,0)","v":0},{"$f":"VLOOKUP(B219,'[2]LOC FINAL with new Themes'!A:M,10,0)","v":0},{"$f":"VLOOKUP(B219,'[2]LOC FINAL with new Themes'!A:M,11,0)","v":0},{"$f":"VLOOKUP(B219,'[2]LOC FINAL with new Themes'!A:M,12,0)","v":0},{"$f":"VLOOKUP(B219,'[2]LOC FINAL with new Themes'!A:M,13,0)","v":0}]
[null,"All Roads","All Roads","All Roads","Transportation ","DOC-Census","Jennifer Holland","Jennifer.L.Holland@census.gov",{"$f":"VLOOKUP(B220,'[2]LOC FINAL with new Themes'!A:M,7,0)","v":0},{"$f":"VLOOKUP(B220,'[2]LOC FINAL with new Themes'!A:M,8,0)","v":0},{"$f":"VLOOKUP(B220,'[2]LOC FINAL with new Themes'!A:M,9,0)","v":0},{"$f":"VLOOKUP(B220,'[2]LOC FINAL with new Themes'!A:M,10,0)","v":0},{"$f":"VLOOKUP(B220,'[2]LOC FINAL with new Themes'!A:M,11,0)","v":0},{"$f":"VLOOKUP(B220,'[2]LOC FINAL with new Themes'!A:M,12,0)","v":0},{"$f":"VLOOKUP(B220,'[2]LOC FINAL with new Themes'!A:M,13,0)","v":0}]
["Inland Electronic Navigation Charts (IENC)","Inland Electronic Navigation Charts (IENC)","Inland Electronic Navigation Charts (IENC)","Inland Electronic Navigation Charts (IENC)","Transportation ","DOD-USACE","Joel Schlagel","Joel.D.Schlagel@erdc.usace.army.mil ",{"$f":"VLOOKUP(B221,'[2]LOC FINAL with new Themes'!A:M,7,0)","v":0},{"$f":"VLOOKUP(B221,'[2]LOC FINAL with new Themes'!A:M,8,0)","v":0},{"$f":"VLOOKUP(B221,'[2]LOC FINAL with new Themes'!A:M,9,0)","v":0},{"$f":"VLOOKUP(B221,'[2]LOC FINAL with new Themes'!A:M,10,0)","v":0},{"$f":"VLOOKUP(B221,'[2]LOC FINAL with new Themes'!A:M,11,0)","v":0},{"$f":"VLOOKUP(B221,'[2]LOC FINAL with new Themes'!A:M,12,0)","v":0},{"$f":"VLOOKUP(B221,'[2]LOC FINAL with new Themes'!A:M,13,0)","v":0}]
[null,null,"National Interagency Trails Dataset","National Interagency Trails Dataset","Transportation ","USDA"]
["National Map - Transportation Dataset","National Map - Transportation Dataset","National Transportation Dataset - National Map","National Transportation Dataset - National Map","Transportation ","DOI-USGS","Paul Wiese","pmwiese@usgs.gov",{"$f":"VLOOKUP(B223,'[2]LOC FINAL with new Themes'!A:M,7,0)","v":0},{"$f":"VLOOKUP(B223,'[2]LOC FINAL with new Themes'!A:M,8,0)","v":0},{"$f":"VLOOKUP(B223,'[2]LOC FINAL with new Themes'!A:M,9,0)","v":0},{"$f":"VLOOKUP(B223,'[2]LOC FINAL with new Themes'!A:M,10,0)","v":0},{"$f":"VLOOKUP(B223,'[2]LOC FINAL with new Themes'!A:M,11,0)","v":0},{"$f":"VLOOKUP(B223,'[2]LOC FINAL with new Themes'!A:M,12,0)","v":0},{"$f":"VLOOKUP(B223,'[2]LOC FINAL with new Themes'!A:M,13,0)","v":0}]
["NTAD","NTAD","NTAD","NTAD","Transportation ","DOT-BTS","Robert Monniere","robert.monniere@dot.gov",{"$f":"VLOOKUP(B224,'[2]LOC FINAL with new Themes'!A:M,7,0)","v":0},{"$f":"VLOOKUP(B224,'[2]LOC FINAL with new Themes'!A:M,8,0)","v":0},{"$f":"VLOOKUP(B224,'[2]LOC FINAL with new Themes'!A:M,9,0)","v":0},{"$f":"VLOOKUP(B224,'[2]LOC FINAL with new Themes'!A:M,10,0)","v":0},{"$f":"VLOOKUP(B224,'[2]LOC FINAL with new Themes'!A:M,11,0)","v":0},{"$f":"VLOOKUP(B224,'[2]LOC FINAL with new Themes'!A:M,12,0)","v":0},{"$f":"VLOOKUP(B224,'[2]LOC FINAL with new Themes'!A:M,13,0)","v":0}]
[null,null,"NTAD (airports)","NTAD (airports)","Transportation ","DOT-BTS"]
[null,null,"NTAD (Rail)","NTAD (Rail)","Transportation ","DOT-BTS"]
["NTAD (TransitLines) ","NTAD (TransitLines) ","NTAD (TransitLines) ","NTAD (TransitLines) ","Transportation ","DOT-BTS","Robert Monniere ","robert.monniere@dot.gov \n",{"$f":"VLOOKUP(B227,'[2]LOC FINAL with new Themes'!A:M,7,0)","v":0},{"$f":"VLOOKUP(B227,'[2]LOC FINAL with new Themes'!A:M,8,0)","v":0},{"$f":"VLOOKUP(B227,'[2]LOC FINAL with new Themes'!A:M,9,0)","v":0},{"$f":"VLOOKUP(B227,'[2]LOC FINAL with new Themes'!A:M,10,0)","v":0},{"$f":"VLOOKUP(B227,'[2]LOC FINAL with new Themes'!A:M,11,0)","v":0},{"$f":"VLOOKUP(B227,'[2]LOC FINAL with new Themes'!A:M,12,0)","v":0},{"$f":"VLOOKUP(B227,'[2]LOC FINAL with new Themes'!A:M,13,0)","v":0}]
["NTAD (TransitStation) ","NTAD (TransitStation) ","NTAD (TransitStation) ","NTAD (TransitStation) ","Transportation ","DOT-BTS","Robert Monniere ","robert.monniere@dot.gov ",{"$f":"VLOOKUP(B228,'[2]LOC FINAL with new Themes'!A:M,7,0)","v":0},{"$f":"VLOOKUP(B228,'[2]LOC FINAL with new Themes'!A:M,8,0)","v":0},{"$f":"VLOOKUP(B228,'[2]LOC FINAL with new Themes'!A:M,9,0)","v":0},{"$f":"VLOOKUP(B228,'[2]LOC FINAL with new Themes'!A:M,10,0)","v":0},{"$f":"VLOOKUP(B228,'[2]LOC FINAL with new Themes'!A:M,11,0)","v":0},{"$f":"VLOOKUP(B228,'[2]LOC FINAL with new Themes'!A:M,12,0)","v":0},{"$f":"VLOOKUP(B228,'[2]LOC FINAL with new Themes'!A:M,13,0)","v":0}]
[null,"Primary and Secondary Roads","Primary and Secondary Roads",{"$f":"IF(C229=0,#REF!,C229)","v":"Primary and Secondary Roads"},"Transportation ","DOC-Census","Jennifer Holland","Jennifer.L.Holland@census.gov",{"$f":"VLOOKUP(B229,'[2]LOC FINAL with new Themes'!A:M,7,0)","v":0},{"$f":"VLOOKUP(B229,'[2]LOC FINAL with new Themes'!A:M,8,0)","v":0},{"$f":"VLOOKUP(B229,'[2]LOC FINAL with new Themes'!A:M,9,0)","v":0},{"$f":"VLOOKUP(B229,'[2]LOC FINAL with new Themes'!A:M,10,0)","v":0},{"$f":"VLOOKUP(B229,'[2]LOC FINAL with new Themes'!A:M,11,0)","v":0},{"$f":"VLOOKUP(B229,'[2]LOC FINAL with new Themes'!A:M,12,0)","v":0},{"$f":"VLOOKUP(B229,'[2]LOC FINAL with new Themes'!A:M,13,0)","v":0}]
[null,"Primary Roads","Primary Roads",{"$f":"IF(C230=0,B230,C230)","v":"Primary Roads"},"Transportation ","DOC-Census","Jennifer Holland","Jennifer.L.Holland@census.gov",{"$f":"VLOOKUP(B230,'[2]LOC FINAL with new Themes'!A:M,7,0)","v":0},{"$f":"VLOOKUP(B230,'[2]LOC FINAL with new Themes'!A:M,8,0)","v":0},{"$f":"VLOOKUP(B230,'[2]LOC FINAL with new Themes'!A:M,9,0)","v":0},{"$f":"VLOOKUP(B230,'[2]LOC FINAL with new Themes'!A:M,10,0)","v":0},{"$f":"VLOOKUP(B230,'[2]LOC FINAL with new Themes'!A:M,11,0)","v":0},{"$f":"VLOOKUP(B230,'[2]LOC FINAL with new Themes'!A:M,12,0)","v":0},{"$f":"VLOOKUP(B230,'[2]LOC FINAL with new Themes'!A:M,13,0)","v":0}]
["TIGER (Roads/Rail)","TIGER (Roads/Rail)",null,{"$f":"IF(C231=0,B231,C231)","v":"TIGER (Roads/Rail)"},"Transportation ","DOC-Census","Randy Fusaro","randy.j.fusaro@census.gov",{"$f":"VLOOKUP(B231,'[2]LOC FINAL with new Themes'!A:M,7,0)","v":0},{"$f":"VLOOKUP(B231,'[2]LOC FINAL with new Themes'!A:M,8,0)","v":0},{"$f":"VLOOKUP(B231,'[2]LOC FINAL with new Themes'!A:M,9,0)","v":0},{"$f":"VLOOKUP(B231,'[2]LOC FINAL with new Themes'!A:M,10,0)","v":0},{"$f":"VLOOKUP(B231,'[2]LOC FINAL with new Themes'!A:M,11,0)","v":0},{"$f":"VLOOKUP(B231,'[2]LOC FINAL with new Themes'!A:M,12,0)","v":0},{"$f":"VLOOKUP(B231,'[2]LOC FINAL with new Themes'!A:M,13,0)","v":0}]
[null,"Traffic Analysis Zone (Census 2000)","Traffic Analysis Zone (Census 2000)",{"$f":"IF(C232=0,B232,C232)","v":"Traffic Analysis Zone (Census 2000)"},"Transportation ","DOC-Census","Jennifer Holland","Jennifer.L.Holland@census.gov",{"$f":"VLOOKUP(B232,'[2]LOC FINAL with new Themes'!A:M,7,0)","v":0},{"$f":"VLOOKUP(B232,'[2]LOC FINAL with new Themes'!A:M,8,0)","v":0},{"$f":"VLOOKUP(B232,'[2]LOC FINAL with new Themes'!A:M,9,0)","v":0},{"$f":"VLOOKUP(B232,'[2]LOC FINAL with new Themes'!A:M,10,0)","v":0},{"$f":"VLOOKUP(B232,'[2]LOC FINAL with new Themes'!A:M,11,0)","v":0},{"$f":"VLOOKUP(B232,'[2]LOC FINAL with new Themes'!A:M,12,0)","v":0},{"$f":"VLOOKUP(B232,'[2]LOC FINAL with new Themes'!A:M,13,0)","v":0}]
[null,null,null,{"$f":"SUBTOTAL(3,D218:D232)","v":15},"Transportation  Count"]
[null,null,"Pipelines",{"$f":"IF(C234=0,B234,C234)","v":"Pipelines"},"Utilities ","DOI-BOEM","Doug Vandegraft","Doug.Vandegraft@boem.gov"]
[null,null,"Platforms",{"$f":"IF(C235=0,B235,C235)","v":"Platforms"},"Utilities ","DOI-MMS","Doug Vandegraft","Doug.Vandegraft@boem.gov"]
[null,null,null,{"$f":"SUBTOTAL(3,D234:D235)","v":2},"Utilities  Count"]
[null,"Area Hydrography (2010 Census)","Area Hydrography (2010 Census)",{"$f":"IF(C237=0,B237,C237)","v":"Area Hydrography (2010 Census)"},"Water -- Inland","DOC-Census","Jennifer Holland","Jennifer.L.Holland@census.gov",{"$f":"VLOOKUP(B237,'[2]LOC FINAL with new Themes'!A:M,7,0)","v":0},{"$f":"VLOOKUP(B237,'[2]LOC FINAL with new Themes'!A:M,8,0)","v":0},{"$f":"VLOOKUP(B237,'[2]LOC FINAL with new Themes'!A:M,9,0)","v":0},{"$f":"VLOOKUP(B237,'[2]LOC FINAL with new Themes'!A:M,10,0)","v":0},{"$f":"VLOOKUP(B237,'[2]LOC FINAL with new Themes'!A:M,11,0)","v":0},{"$f":"VLOOKUP(B237,'[2]LOC FINAL with new Themes'!A:M,12,0)","v":0},{"$f":"VLOOKUP(B237,'[2]LOC FINAL with new Themes'!A:M,13,0)","v":0}]
[null,"Linear Water Features","Linear Water Features","Linear Water Features","Water -- Inland","DOC-Census","Jennifer Holland","Jennifer.L.Holland@census.gov",{"$f":"VLOOKUP(B238,'[2]LOC FINAL with new Themes'!A:M,7,0)","v":0},{"$f":"VLOOKUP(B238,'[2]LOC FINAL with new Themes'!A:M,8,0)","v":0},{"$f":"VLOOKUP(B238,'[2]LOC FINAL with new Themes'!A:M,9,0)","v":0},{"$f":"VLOOKUP(B238,'[2]LOC FINAL with new Themes'!A:M,10,0)","v":0},{"$f":"VLOOKUP(B238,'[2]LOC FINAL with new Themes'!A:M,11,0)","v":0},{"$f":"VLOOKUP(B238,'[2]LOC FINAL with new Themes'!A:M,12,0)","v":0},{"$f":"VLOOKUP(B238,'[2]LOC FINAL with new Themes'!A:M,13,0)","v":0}]
["National Hydrography Data Set","National Hydrography Dataset","National Hydrography Dataset - National Map","National Hydrography Dataset - National Map","Water -- Inland","DOI-USGS","Jeff Simley","jdsimley@usgs.gov",{"$f":"VLOOKUP(B239,'[2]LOC FINAL with new Themes'!A:M,7,0)","v":0},{"$f":"VLOOKUP(B239,'[2]LOC FINAL with new Themes'!A:M,8,0)","v":0},{"$f":"VLOOKUP(B239,'[2]LOC FINAL with new Themes'!A:M,9,0)","v":0},{"$f":"VLOOKUP(B239,'[2]LOC FINAL with new Themes'!A:M,10,0)","v":0},{"$f":"VLOOKUP(B239,'[2]LOC FINAL with new Themes'!A:M,11,0)","v":0},{"$f":"VLOOKUP(B239,'[2]LOC FINAL with new Themes'!A:M,12,0)","v":0},{"$f":"VLOOKUP(B239,'[2]LOC FINAL with new Themes'!A:M,13,0)","v":0}]
["National Inventory of Dams (NID)","National Inventory of Dams (NID)","National Inventory of Dams (NID)","National Inventory of Dams (NID)","Water -- Inland","DOD-USACE","Rebecca Ragon","Rebecca.Ragon@usace.army.mil ",{"$f":"VLOOKUP(B240,'[2]LOC FINAL with new Themes'!A:M,7,0)","v":"One single data set"},{"$f":"VLOOKUP(B240,'[2]LOC FINAL with new Themes'!A:M,8,0)","v":"Yes"},{"$f":"VLOOKUP(B240,'[2]LOC FINAL with new Themes'!A:M,9,0)","v":"Yes"},{"$f":"VLOOKUP(B240,'[2]LOC FINAL with new Themes'!A:M,10,0)","v":"Usually every 2 years"},{"$f":"VLOOKUP(B240,'[2]LOC FINAL with new Themes'!A:M,11,0)","v":"Because the NID is updated every 2 years, we do have archived databased datig back to 1994."},{"$f":"VLOOKUP(B240,'[2]LOC FINAL with new Themes'!A:M,12,0)","v":"The official name is National Inventory of Dams (NID) but I have seen the database referenced as the National Dam Inventory"},{"$f":"VLOOKUP(B240,'[2]LOC FINAL with new Themes'!A:M,13,0)","v":"S"}]
["National Levee Database (NLD)","National Levee Database (NLD)","National Levee Database (NLD)","National Levee Database (NLD)","Water -- Inland","DOD-USACE","Bryan Baker","Bryan.E.Baker@usace.army.mil",{"$f":"VLOOKUP(B241,'[2]LOC FINAL with new Themes'!A:M,7,0)","v":0},{"$f":"VLOOKUP(B241,'[2]LOC FINAL with new Themes'!A:M,8,0)","v":0},{"$f":"VLOOKUP(B241,'[2]LOC FINAL with new Themes'!A:M,9,0)","v":0},{"$f":"VLOOKUP(B241,'[2]LOC FINAL with new Themes'!A:M,10,0)","v":0},{"$f":"VLOOKUP(B241,'[2]LOC FINAL with new Themes'!A:M,11,0)","v":0},{"$f":"VLOOKUP(B241,'[2]LOC FINAL with new Themes'!A:M,12,0)","v":0},{"$f":"VLOOKUP(B241,'[2]LOC FINAL with new Themes'!A:M,13,0)","v":0}]
[null,null,"National Water Information System (NWIS)- Stream Gage Network","National Water Information System (NWIS)- Stream Gage Network","Water -- Inland","DOI-USGS"]
[null,null,"National Water Information System (NWIS)- Water Quality Monitoring Stations","National Water Information System (NWIS)- Water Quality Monitoring Stations","Water -- Inland","DOI-USGS"]
["National Wetlands Inventory (NWI) ","National Wetlands Inventory (NWI) ","National Wetlands Inventory (NWI) ","National Wetlands Inventory (NWI) ","Water -- Inland","DOI-FWS","Tom Dahl  ","tom_dahl@fws.gov\n",{"$f":"VLOOKUP(B244,'[2]LOC FINAL with new Themes'!A:M,7,0)","v":0},{"$f":"VLOOKUP(B244,'[2]LOC FINAL with new Themes'!A:M,8,0)","v":0},{"$f":"VLOOKUP(B244,'[2]LOC FINAL with new Themes'!A:M,9,0)","v":0},{"$f":"VLOOKUP(B244,'[2]LOC FINAL with new Themes'!A:M,10,0)","v":0},{"$f":"VLOOKUP(B244,'[2]LOC FINAL with new Themes'!A:M,11,0)","v":0},{"$f":"VLOOKUP(B244,'[2]LOC FINAL with new Themes'!A:M,12,0)","v":0},{"$f":"VLOOKUP(B244,'[2]LOC FINAL with new Themes'!A:M,13,0)","v":0}]
["NWIS & STORET","NWIS & STORET",null,"NWIS & STORET","Water -- Inland",null,"EGIM",null,{"$f":"VLOOKUP(B245,'[2]LOC FINAL with new Themes'!A:M,7,0)","v":0},{"$f":"VLOOKUP(B245,'[2]LOC FINAL with new Themes'!A:M,8,0)","v":0},{"$f":"VLOOKUP(B245,'[2]LOC FINAL with new Themes'!A:M,9,0)","v":0},{"$f":"VLOOKUP(B245,'[2]LOC FINAL with new Themes'!A:M,10,0)","v":0},{"$f":"VLOOKUP(B245,'[2]LOC FINAL with new Themes'!A:M,11,0)","v":0},{"$f":"VLOOKUP(B245,'[2]LOC FINAL with new Themes'!A:M,12,0)","v":0},{"$f":"VLOOKUP(B245,'[2]LOC FINAL with new Themes'!A:M,13,0)","v":0}]
[null,"Topological Faces-Area Hydrography Relationship File","Topological Faces-Area Hydrography Relationship File","Topological Faces-Area Hydrography Relationship File","Water -- Inland","DOC-Census","Jennifer Holland","Jennifer.L.Holland@census.gov",{"$f":"VLOOKUP(B246,'[2]LOC FINAL with new Themes'!A:M,7,0)","v":0},{"$f":"VLOOKUP(B246,'[2]LOC FINAL with new Themes'!A:M,8,0)","v":0},{"$f":"VLOOKUP(B246,'[2]LOC FINAL with new Themes'!A:M,9,0)","v":0},{"$f":"VLOOKUP(B246,'[2]LOC FINAL with new Themes'!A:M,10,0)","v":0},{"$f":"VLOOKUP(B246,'[2]LOC FINAL with new Themes'!A:M,11,0)","v":0},{"$f":"VLOOKUP(B246,'[2]LOC FINAL with new Themes'!A:M,12,0)","v":0},{"$f":"VLOOKUP(B246,'[2]LOC FINAL with new Themes'!A:M,13,0)","v":0}]
["Watershed Boundary Data Set (WBD)  ","Watershed Boundary Dataset (WBD)  ","Watershed Boundary Dataset (WBD)  ","Watershed Boundary Dataset (WBD)  ","Water -- Inland","DOI-USGS","Karen Hanson","khanson@usgs.gov",{"$f":"VLOOKUP(B247,'[2]LOC FINAL with new Themes'!A:M,7,0)","v":"one set with nested hierarchy of six different levels within it (regions, subdivided into four, six and twelve digits), POC and data manager; continually updated; co-managed with NRCS and they archive it; USGS in Denver will serve it; All transactions are archived in versions in the database as they happen. Data from any moment in time can be captured with a simple query. The database is replicated daily to Rolla, MO servers. The database is stored on a SAN with three tier redundancy.All changes to the database are stored on separate disks and once they reach a certain size, they are copied over to a server to be written to tape. Weekly, the entire database (NHD, with WBD) is written to tape.Monthly, the tapes are taken off site for storage."},{"$f":"VLOOKUP(B247,'[2]LOC FINAL with new Themes'!A:M,8,0)","v":0},{"$f":"VLOOKUP(B247,'[2]LOC FINAL with new Themes'!A:M,9,0)","v":0},{"$f":"VLOOKUP(B247,'[2]LOC FINAL with new Themes'!A:M,10,0)","v":0},{"$f":"VLOOKUP(B247,'[2]LOC FINAL with new Themes'!A:M,11,0)","v":0},{"$f":"VLOOKUP(B247,'[2]LOC FINAL with new Themes'!A:M,12,0)","v":0},{"$f":"VLOOKUP(B247,'[2]LOC FINAL with new Themes'!A:M,13,0)","v":"S"}]
[null,null,null,{"$f":"SUBTOTAL(3,D237:D247)","v":11},"Water -- Inland Count"]
[null,null,"Coastal Barrier Resource System",{"$f":"IF(C249=0,B249,C249)","v":"Coastal Barrier Resource System"},"Water -- Oceans and Coasts ","DOI-FWS"]
[null,null,"Coastal Change Analysis Program (C-CAP) Land Cover and Land Change Imagery","Coastal Change Analysis Program (C-CAP) Land Cover and Land Change Imagery","Water -- Oceans and Coasts ","DOC-NOAA","Nate Herold","nate.herold@noaa.gov"]
["Continental Shelf Boundary Data","Continental Shelf Boundary Data","Continental Shelf Boundary Data","Continental Shelf Boundary Data","Water -- Oceans and Coasts ","DOI-BOEM","Doug Vandegraft","Doug.Vandegraft@boem.gov",{"$f":"VLOOKUP(B251,'[2]LOC FINAL with new Themes'!A:M,7,0)","v":"undeliverable email- neeed to identify new contact"},{"$f":"VLOOKUP(B251,'[2]LOC FINAL with new Themes'!A:M,8,0)","v":0},{"$f":"VLOOKUP(B251,'[2]LOC FINAL with new Themes'!A:M,9,0)","v":0},{"$f":"VLOOKUP(B251,'[2]LOC FINAL with new Themes'!A:M,10,0)","v":0},{"$f":"VLOOKUP(B251,'[2]LOC FINAL with new Themes'!A:M,11,0)","v":0},{"$f":"VLOOKUP(B251,'[2]LOC FINAL with new Themes'!A:M,12,0)","v":0},{"$f":"VLOOKUP(B251,'[2]LOC FINAL with new Themes'!A:M,13,0)","v":0}]
[null,null,"National Data Buoy Center (NDBC) Recent and Historical Data","National Data Buoy Center (NDBC) Recent and Historical Data","Water -- Oceans and Coasts ","DOC-NOAA"]
[null,null,"NOAA National Shoreline","NOAA National Shoreline","Water -- Oceans and Coasts ","DOC-NOAA","Doug Graham","Doug.Graham@noaa.gov"]
["NOAA Nautical Charts","NOAA Nautical Charts","NOAA's Nautical Chart Products","NOAA's Nautical Chart Products","Water -- Oceans and Coasts ","DOC-NOAA","Meredith Westington","meredith.westington@noaa.gov",{"$f":"VLOOKUP(B254,'[2]LOC FINAL with new Themes'!A:M,7,0)","v":0},{"$f":"VLOOKUP(B254,'[2]LOC FINAL with new Themes'!A:M,8,0)","v":0},{"$f":"VLOOKUP(B254,'[2]LOC FINAL with new Themes'!A:M,9,0)","v":0},{"$f":"VLOOKUP(B254,'[2]LOC FINAL with new Themes'!A:M,10,0)","v":0},{"$f":"VLOOKUP(B254,'[2]LOC FINAL with new Themes'!A:M,11,0)","v":0},{"$f":"VLOOKUP(B254,'[2]LOC FINAL with new Themes'!A:M,12,0)","v":0},{"$f":"VLOOKUP(B254,'[2]LOC FINAL with new Themes'!A:M,13,0)","v":0}]
[null,null,"Non-Projected Boundaries","Non-Projected Boundaries","Water -- Oceans and Coasts ","DOI-BOEM","Doug Vandegraft","Doug.Vandegraft@boem.gov"]
[null,null,"Projected Boundaries","Projected Boundaries","Water -- Oceans and Coasts ","DOI-BOEM","Doug Vandegraft","Doug.Vandegraft@boem.gov"]
[null,null,"U.S. Marine Protected Areas Boundaries","U.S. Marine Protected Areas Boundaries","Water -- Oceans and Coasts ","DOC-NOAA"]
[null,null,"U.S. Maritime Zones/Boundaries","U.S. Maritime Zones/Boundaries","Water -- Oceans and Coasts ","DOC-NOAA","Meredith Westington","meredith.westington@noaa.gov"]
[null,null,null,{"$f":"SUBTOTAL(3,D249:D258)","v":10},"Water -- Oceans and Coasts  Count"]
[null,null,null,{"$f":"SUBTOTAL(3,D2:D258)","v":239},"Grand Count"]

{"sheet":"4-23-2012","index":25,"n_rows":260,"n_cols":16,"rows_kept":260,"cut":false,"hidden":true,"merged":[]}
["ORIGINAL (beginning of 2011)","LOC FINAL (October 2011)","NGDA List (October 2011)","Dataset Name","Theme","Agency","Dataset Manager","Email","Phone Number","Q1 How many data set(s) do you have? It is a single set or multiple sets? ","Q2 Are you a data set manager?","Q3 Are you the POC for transferring the data set and/or for information about the data set?","Q4 How often is the data set updated?","Q5 Is there an archive/backup of the data set or do you maintain an archived copy of it? If yes, how far back do you maintain a copy? Is it easily accessible?","Q6 Does the data set go by a different name or is it referred to internally by another descriptive name?","M\nP\nS"]
[null,null,"Critical Habitat ",{"$f":"IF(C2=0,B2,C2)","v":"Critical Habitat "},"Biota","DOI-FWS"]
[null,null,"Current Range for listed species ","Current Range for listed species ","Biota","DOI-FWS"]
["ECOMAP Data Sets (Ecological Subregions: Sections and Subsections for the Conterminous United States ) ","ECOMAP Datasets (Ecological Subregions: Sections and Subsections for the Conterminous United States ) ","ECOMAP Datasets (Ecological Subregions: Sections and Subsections for the Conterminous United States ) ","ECOMAP Datasets (Ecological Subregions: Sections and Subsections for the Conterminous United States ) ","Biota","USDA-FS","David T. Cleland","dcleland@fs.fed.us",null,{"$f":"VLOOKUP(B4,'[3]LOC FINAL with new Themes'!A:M,7,0)","v":"One, single set"},{"$f":"VLOOKUP(B4,'[3]LOC FINAL with new Themes'!A:M,8,0)","v":"Yes"},{"$f":"VLOOKUP(B4,'[3]LOC FINAL with new Themes'!A:M,9,0)","v":"Yes"},{"$f":"VLOOKUP(B4,'[3]LOC FINAL with new Themes'!A:M,10,0)","v":"Maps are updated on a 10-year cycle"},{"$f":"VLOOKUP(B4,'[3]LOC FINAL with new Themes'!A:M,11,0)","v":"The data is housed at and served by the Forest Service geodata portal, and is easily accessible.  The web address is: http://fsgeodata.fs.fed.us/other_resources/ecosubregions.html "},{"$f":"VLOOKUP(B4,'[3]LOC FINAL with new Themes'!A:M,12,0)","v":"?   Internally, the data is named ECOMAP or the National Hierarchy of Ecological Units. "},{"$f":"VLOOKUP(B4,'[3]LOC FINAL with new Themes'!A:M,13,0)","v":"S"}]
[null,null,"Endangered Species (Threatened and Endangered Species System)","Endangered Species (Threatened and Endangered Species System)","Biota","DOI-FWS"]
["Env Sens Index Maps - classified shoreline","Env Sens Index Maps - classified shoreline","Environmental Sensitivity Index (ESI) Data and Maps","Environmental Sensitivity Index (ESI) Data and Maps","Biota","DOC-NOAA","Jill Petersen","jill.petersen@noaa.gov",null,{"$f":"VLOOKUP(B6,'[3]LOC FINAL with new Themes'!A:M,7,0)","v":"There are approximately 70 different atlases. There are a few that are still not available in a GIS format, (approx 7 of the approx 70!) - these are available as the hard copy product and as PDFs (scanned). The remaining atlases are available in multiple GIS formats - Arc Export files, Geodatabase with an ArcMap map document complete with all relates established and properly symbolized, Shape files with an ArcView 3.x project, a free ESI viewer that allows viewing, queries and printing (in house mapping program and filemaker pro) as well as PDF format and the hard copy product. These can be downloaded from http://response.restoration.noaa.gov/esi_download This page is in progress, but should be complete fairly quickly.\n\n"},{"$f":"VLOOKUP(B6,'[3]LOC FINAL with new Themes'!A:M,8,0)","v":"Yes"},{"$f":"VLOOKUP(B6,'[3]LOC FINAL with new Themes'!A:M,9,0)","v":"Yes "},{"$f":"VLOOKUP(B6,'[3]LOC FINAL with new Themes'!A:M,10,0)","v":"- High resolution products have no defined update schedule.  TBD by geog/project."},{"$f":"VLOOKUP(B6,'[3]LOC FINAL with new Themes'!A:M,11,0)","v":"Yes and no. We have archives of all the digital data as well as all the PDFs (scanned or produced with the digital data map comps). Many of the hard copy atlases from the first round of ESI maps were sent to the Library of Commerce. Others I have kept, but no very organized situation. However, we have all of the historic PDFs which are an exact duplicate of the hard copy atlas, so that is something. Historic data is going to be served from the above link as well. That will be added as the current data sets are completed."},{"$f":"VLOOKUP(B6,'[3]LOC FINAL with new Themes'!A:M,12,0)","v":"ESI is the common abbreviation for these maps. Other than that, Environmental Sensitivity Index Maps, Shoreline Sensitivity maps, Environmental Sensitivity maps..... These maps have the classified shoreline, as well as summaries of biological and human use resource particularly sensitive to oiling. "},{"$f":"VLOOKUP(B6,'[3]LOC FINAL with new Themes'!A:M,13,0)","v":"M "}]
["GAP Program Dataset","GAP Program Dataset","GAP Program Dataset","GAP Program Dataset","Biota","DOI-USGS","Kevin Gergely","gergely@usgs.gov",null,{"$f":"VLOOKUP(B7,'[3]LOC FINAL with new Themes'!A:M,7,0)","v":"POC; multiple data sets in single location, building three fundamental data layers, two are national (protected areas, land cover dataset); backup; six months, annually)"},{"$f":"VLOOKUP(B7,'[3]LOC FINAL with new Themes'!A:M,8,0)","v":0},{"$f":"VLOOKUP(B7,'[3]LOC FINAL with new Themes'!A:M,9,0)","v":0},{"$f":"VLOOKUP(B7,'[3]LOC FINAL with new Themes'!A:M,10,0)","v":0},{"$f":"VLOOKUP(B7,'[3]LOC FINAL with new Themes'!A:M,11,0)","v":0},{"$f":"VLOOKUP(B7,'[3]LOC FINAL with new Themes'!A:M,12,0)","v":0},{"$f":"VLOOKUP(B7,'[3]LOC FINAL with new Themes'!A:M,13,0)","v":"P"}]
["National Standardized Ecosystems Dataset","National Standardized Ecosystems Dataset","National Standardized Ecosystems Dataset","National Standardized Ecosystems Dataset","Biota","DOI-USGS","Roger Sayre","rsayre@usgs.gov",null,{"$f":"VLOOKUP(B8,'[3]LOC FINAL with new Themes'!A:M,7,0)","v":0},{"$f":"VLOOKUP(B8,'[3]LOC FINAL with new Themes'!A:M,8,0)","v":0},{"$f":"VLOOKUP(B8,'[3]LOC FINAL with new Themes'!A:M,9,0)","v":0},{"$f":"VLOOKUP(B8,'[3]LOC FINAL with new Themes'!A:M,10,0)","v":0},{"$f":"VLOOKUP(B8,'[3]LOC FINAL with new Themes'!A:M,11,0)","v":0},{"$f":"VLOOKUP(B8,'[3]LOC FINAL with new Themes'!A:M,12,0)","v":0},{"$f":"VLOOKUP(B8,'[3]LOC FINAL with new Themes'!A:M,13,0)","v":0}]
[null,null,"Recovery Range for listed species ","Recovery Range for listed species ","Biota","DOI-FWS"]
[null,null,"Section 7 Range for listed species ","Section 7 Range for listed species ","Biota","DOI-FWS"]
["Biomes, Ecoregions","Biomes, Ecoregions",null,"Biomes, Ecoregions","Biota ","DOI-USGS","Dan Phillips ","dphillips@usgs.gov",null,{"$f":"VLOOKUP(B11,'[3]LOC FINAL with new Themes'!A:M,7,0)","v":0},{"$f":"VLOOKUP(B11,'[3]LOC FINAL with new Themes'!A:M,8,0)","v":0},{"$f":"VLOOKUP(B11,'[3]LOC FINAL with new Themes'!A:M,9,0)","v":0},{"$f":"VLOOKUP(B11,'[3]LOC FINAL with new Themes'!A:M,10,0)","v":0},{"$f":"VLOOKUP(B11,'[3]LOC FINAL with new Themes'!A:M,11,0)","v":0},{"$f":"VLOOKUP(B11,'[3]LOC FINAL with new Themes'!A:M,12,0)","v":0},{"$f":"VLOOKUP(B11,'[3]LOC FINAL with new Themes'!A:M,13,0)","v":0}]
["Ecological Services","Ecological Services",null,"Ecological Services","Biota ","DOI-USGS","Dan Phillips ","dphillips@usgs.gov",null,{"$f":"VLOOKUP(B12,'[3]LOC FINAL with new Themes'!A:M,7,0)","v":0},{"$f":"VLOOKUP(B12,'[3]LOC FINAL with new Themes'!A:M,8,0)","v":0},{"$f":"VLOOKUP(B12,'[3]LOC FINAL with new Themes'!A:M,9,0)","v":0},{"$f":"VLOOKUP(B12,'[3]LOC FINAL with new Themes'!A:M,10,0)","v":0},{"$f":"VLOOKUP(B12,'[3]LOC FINAL with new Themes'!A:M,11,0)","v":0},{"$f":"VLOOKUP(B12,'[3]LOC FINAL with new Themes'!A:M,12,0)","v":0},{"$f":"VLOOKUP(B12,'[3]LOC FINAL with new Themes'!A:M,13,0)","v":0}]
["Habitats","Habitats",null,"Habitats","Biota ","DOI-USGS","Dan Phillips ","dphillips@usgs.gov",null,{"$f":"VLOOKUP(B13,'[3]LOC FINAL with new Themes'!A:M,7,0)","v":"see protected areas and land cover set; vertebrae species of US being developed (not complete for all species they want to include in it."},{"$f":"VLOOKUP(B13,'[3]LOC FINAL with new Themes'!A:M,8,0)","v":0},{"$f":"VLOOKUP(B13,'[3]LOC FINAL with new Themes'!A:M,9,0)","v":0},{"$f":"VLOOKUP(B13,'[3]LOC FINAL with new Themes'!A:M,10,0)","v":0},{"$f":"VLOOKUP(B13,'[3]LOC FINAL with new Themes'!A:M,11,0)","v":0},{"$f":"VLOOKUP(B13,'[3]LOC FINAL with new Themes'!A:M,12,0)","v":0},{"$f":"VLOOKUP(B13,'[3]LOC FINAL with new Themes'!A:M,13,0)","v":"M"}]
["Invasive Species","Invasive Species",null,"Invasive Species","Biota ","DOI-USGS","Dan Phillips ","dphillips@usgs.gov",null,{"$f":"VLOOKUP(B14,'[3]LOC FINAL with new Themes'!A:M,7,0)","v":"There are hundreds of datasets that are produced and maintained by the GAP program. Dan is not the data set manager, but I work with the people that maintain and update the datasets and maintains metadata.The data are updated at different intervals, especially now that they have moved more to a regional and national based approach. GAPS data sets presumably archived since 1990s."},{"$f":"VLOOKUP(B14,'[3]LOC FINAL with new Themes'!A:M,8,0)","v":0},{"$f":"VLOOKUP(B14,'[3]LOC FINAL with new Themes'!A:M,9,0)","v":0},{"$f":"VLOOKUP(B14,'[3]LOC FINAL with new Themes'!A:M,10,0)","v":0},{"$f":"VLOOKUP(B14,'[3]LOC FINAL with new Themes'!A:M,11,0)","v":0},{"$f":"VLOOKUP(B14,'[3]LOC FINAL with new Themes'!A:M,12,0)","v":0},{"$f":"VLOOKUP(B14,'[3]LOC FINAL with new Themes'!A:M,13,0)","v":"M"}]
["Species Distribution(amphibians, birds, reptiles, mammals, fishes, plants, etc)","Species Distribution (amphibians, birds, reptiles, mammals, fishes, plants, etc)",null,"Species Distribution (amphibians, birds, reptiles, mammals, fishes, plants, etc)","Biota ","DOI-USGS","Dan Phillips ","dphillips@usgs.gov",null,{"$f":"VLOOKUP(B15,'[3]LOC FINAL with new Themes'!A:M,7,0)","v":"There are hundreds of datasets that are produced and maintained by the GAP program. Dan is not the data set manager, but I work with the people that maintain and update the datasets and maintains metadata. The data are updated at different intervals, especially now that they have moved more to a regional and national based approach. GAPS data sets presumably archived since 1990s."},{"$f":"VLOOKUP(B15,'[3]LOC FINAL with new Themes'!A:M,8,0)","v":0},{"$f":"VLOOKUP(B15,'[3]LOC FINAL with new Themes'!A:M,9,0)","v":0},{"$f":"VLOOKUP(B15,'[3]LOC FINAL with new Themes'!A:M,10,0)","v":0},{"$f":"VLOOKUP(B15,'[3]LOC FINAL with new Themes'!A:M,11,0)","v":0},{"$f":"VLOOKUP(B15,'[3]LOC FINAL with new Themes'!A:M,12,0)","v":0},{"$f":"VLOOKUP(B15,'[3]LOC FINAL with new Themes'!A:M,13,0)","v":"M"}]
[null,null,null,{"$f":"SUBTOTAL(3,D2:D15)","v":14},"Biota Count"]
["General Land Office","General Land Office","General Land Office",{"$f":"IF(C17=0,B17,C17)","v":"General Land Office"},"Cadastre","DOI-BLM","Juan Palma","juan_palma@blm.gov",null,{"$f":"VLOOKUP(B17,'[3]LOC FINAL with new Themes'!A:M,7,0)","v":0},{"$f":"VLOOKUP(B17,'[3]LOC FINAL with new Themes'!A:M,8,0)","v":0},{"$f":"VLOOKUP(B17,'[3]LOC FINAL with new Themes'!A:M,9,0)","v":0},{"$f":"VLOOKUP(B17,'[3]LOC FINAL with new Themes'!A:M,10,0)","v":0},{"$f":"VLOOKUP(B17,'[3]LOC FINAL with new Themes'!A:M,11,0)","v":0},{"$f":"VLOOKUP(B17,'[3]LOC FINAL with new Themes'!A:M,12,0)","v":0},{"$f":"VLOOKUP(B17,'[3]LOC FINAL with new Themes'!A:M,13,0)","v":0}]
["Geographic Coordinate Data Base (GCDB)","Geographic Coordinate Data Base (GCDB)",null,"Geographic Coordinate Data Base (GCDB)","Cadastre","DOI-BLM","Don Buhler","don_buhler@blm.gov",null,{"$f":"VLOOKUP(B18,'[3]LOC FINAL with new Themes'!A:M,7,0)","v":"every agency has its own database; multiple data sets; standard being advanced and put into practice; federal interest is managed with BLM; state and local are authoritative sets for other lands; "},{"$f":"VLOOKUP(B18,'[3]LOC FINAL with new Themes'!A:M,8,0)","v":0},{"$f":"VLOOKUP(B18,'[3]LOC FINAL with new Themes'!A:M,9,0)","v":0},{"$f":"VLOOKUP(B18,'[3]LOC FINAL with new Themes'!A:M,10,0)","v":0},{"$f":"VLOOKUP(B18,'[3]LOC FINAL with new Themes'!A:M,11,0)","v":0},{"$f":"VLOOKUP(B18,'[3]LOC FINAL with new Themes'!A:M,12,0)","v":0},{"$f":"VLOOKUP(B18,'[3]LOC FINAL with new Themes'!A:M,13,0)","v":"M "}]
["LR 2000 - Master Title Plats ","LR 2000 - Master Title Plats ","LR 2000 - Attribute Information","LR 2000 - Attribute Information","Cadastre","DOI-BLM","Jeff Holdren","jeff_holdren@blm.gov",null,{"$f":"VLOOKUP(B19,'[3]LOC FINAL with new Themes'!A:M,7,0)","v":"listing of sales, rents, agricultural disposal and rights of way cases, group of data sets in one system; Kim Burns, division chief; not archived, there is a backup; Denver office handles"},{"$f":"VLOOKUP(B19,'[3]LOC FINAL with new Themes'!A:M,8,0)","v":0},{"$f":"VLOOKUP(B19,'[3]LOC FINAL with new Themes'!A:M,9,0)","v":0},{"$f":"VLOOKUP(B19,'[3]LOC FINAL with new Themes'!A:M,10,0)","v":0},{"$f":"VLOOKUP(B19,'[3]LOC FINAL with new Themes'!A:M,11,0)","v":0},{"$f":"VLOOKUP(B19,'[3]LOC FINAL with new Themes'!A:M,12,0)","v":0},{"$f":"VLOOKUP(B19,'[3]LOC FINAL with new Themes'!A:M,13,0)","v":"P"}]
["Manual of Surveying Instructions, Data Standards","Manual of Surveying Instructions, Data Standards",null,"Manual of Surveying Instructions, Data Standards","Cadastre","DOI-BLM","Don Buhler","don_buhler@blm.gov",null,{"$f":"VLOOKUP(B20,'[3]LOC FINAL with new Themes'!A:M,7,0)","v":0},{"$f":"VLOOKUP(B20,'[3]LOC FINAL with new Themes'!A:M,8,0)","v":0},{"$f":"VLOOKUP(B20,'[3]LOC FINAL with new Themes'!A:M,9,0)","v":0},{"$f":"VLOOKUP(B20,'[3]LOC FINAL with new Themes'!A:M,10,0)","v":0},{"$f":"VLOOKUP(B20,'[3]LOC FINAL with new Themes'!A:M,11,0)","v":0},{"$f":"VLOOKUP(B20,'[3]LOC FINAL with new Themes'!A:M,12,0)","v":0},{"$f":"VLOOKUP(B20,'[3]LOC FINAL with new Themes'!A:M,13,0)","v":0}]
["Mineral Estate - Fluids","Mineral Estate - Fluids",null,"Mineral Estate - Fluids","Cadastre","DOI-BLM","Tim Spisak ","tim_spisak@blm.gov",null,{"$f":"VLOOKUP(B21,'[3]LOC FINAL with new Themes'!A:M,7,0)","v":"mineral leasess, mining claims, rights of way, gases (single data set); BLM-managed lands but managed all federal mineral estate (comprehensive for mineraal estate) some electronic and some not"},{"$f":"VLOOKUP(B21,'[3]LOC FINAL with new Themes'!A:M,8,0)","v":0},{"$f":"VLOOKUP(B21,'[3]LOC FINAL with new Themes'!A:M,9,0)","v":0},{"$f":"VLOOKUP(B21,'[3]LOC FINAL with new Themes'!A:M,10,0)","v":0},{"$f":"VLOOKUP(B21,'[3]LOC FINAL with new Themes'!A:M,11,0)","v":0},{"$f":"VLOOKUP(B21,'[3]LOC FINAL with new Themes'!A:M,12,0)","v":0},{"$f":"VLOOKUP(B21,'[3]LOC FINAL with new Themes'!A:M,13,0)","v":"P"}]
["Mineral Estate - Solids","Mineral Estate - Solids",null,"Mineral Estate - Solids","Cadastre","DOI-BLM","Mitchell Leverette","mitchell_leverette@blm.gov",null,{"$f":"VLOOKUP(B22,'[3]LOC FINAL with new Themes'!A:M,7,0)","v":"mineral leasess, mining claims, rights of way, gases (single data set); BLM-managed lands but managed all federal mineral estate (comprehensive for mineral estate) some electronic and some not"},{"$f":"VLOOKUP(B22,'[3]LOC FINAL with new Themes'!A:M,8,0)","v":0},{"$f":"VLOOKUP(B22,'[3]LOC FINAL with new Themes'!A:M,9,0)","v":0},{"$f":"VLOOKUP(B22,'[3]LOC FINAL with new Themes'!A:M,10,0)","v":0},{"$f":"VLOOKUP(B22,'[3]LOC FINAL with new Themes'!A:M,11,0)","v":0},{"$f":"VLOOKUP(B22,'[3]LOC FINAL with new Themes'!A:M,12,0)","v":0},{"$f":"VLOOKUP(B22,'[3]LOC FINAL with new Themes'!A:M,13,0)","v":"P"}]
[null,null,"PADUS (Protected Areas Database of the US)","PADUS (Protected Areas Database of the US)","Cadastre","DOI-USGS"]
["Parcels","Parcels","Parcels","Parcels","Cadastre","DOI-BLM","Bob Ader","bob_ader@blm.gov",null,{"$f":"VLOOKUP(B24,'[3]LOC FINAL with new Themes'!A:M,7,0)","v":"every agency has its own database; multiple data sets; standard being advanced and put into practice; federal interest is managed with BLM; state and local are authoritative sets for other lands; current effort of federal inventory "},{"$f":"VLOOKUP(B24,'[3]LOC FINAL with new Themes'!A:M,8,0)","v":0},{"$f":"VLOOKUP(B24,'[3]LOC FINAL with new Themes'!A:M,9,0)","v":0},{"$f":"VLOOKUP(B24,'[3]LOC FINAL with new Themes'!A:M,10,0)","v":0},{"$f":"VLOOKUP(B24,'[3]LOC FINAL with new Themes'!A:M,11,0)","v":0},{"$f":"VLOOKUP(B24,'[3]LOC FINAL with new Themes'!A:M,12,0)","v":0},{"$f":"VLOOKUP(B24,'[3]LOC FINAL with new Themes'!A:M,13,0)","v":"M "}]
[null,null,"Protractions","Protractions","Cadastre","DOI-BOEM","Doug Vandegraft","Doug.Vandegraft@boem.gov"]
["Surface Estate","Surface Estate",null,"Surface Estate","Cadastre","DOI-BLM","Kim Burns","kim_m_burns@blm.gov",null,{"$f":"VLOOKUP(B26,'[3]LOC FINAL with new Themes'!A:M,7,0)","v":"lands administered by BLM; other agencies have own system; ownership of lands;  Tim Spisak, division chief; not archived, there is a backup; Denver office handles"},{"$f":"VLOOKUP(B26,'[3]LOC FINAL with new Themes'!A:M,8,0)","v":0},{"$f":"VLOOKUP(B26,'[3]LOC FINAL with new Themes'!A:M,9,0)","v":0},{"$f":"VLOOKUP(B26,'[3]LOC FINAL with new Themes'!A:M,10,0)","v":0},{"$f":"VLOOKUP(B26,'[3]LOC FINAL with new Themes'!A:M,11,0)","v":0},{"$f":"VLOOKUP(B26,'[3]LOC FINAL with new Themes'!A:M,12,0)","v":0},{"$f":"VLOOKUP(B26,'[3]LOC FINAL with new Themes'!A:M,13,0)","v":0}]
["U.S. Official Cadastral Survey Records","U.S. Official Cadastral Survey Records","U.S. Official Cadastral Survey Records","U.S. Official Cadastral Survey Records","Cadastre","DOI-BLM","Don Buhler","don_buhler@blm.gov",null,{"$f":"VLOOKUP(B27,'[3]LOC FINAL with new Themes'!A:M,7,0)","v":"every agency has its own database; multiple data sets; standard being advanced and put into practice; federal interest is managed with BLM; state and local are authoritative sets for other lands; state offices are scanning these records (survey plats and field notes); CDI (conveyence cards)"},{"$f":"VLOOKUP(B27,'[3]LOC FINAL with new Themes'!A:M,8,0)","v":0},{"$f":"VLOOKUP(B27,'[3]LOC FINAL with new Themes'!A:M,9,0)","v":0},{"$f":"VLOOKUP(B27,'[3]LOC FINAL with new Themes'!A:M,10,0)","v":0},{"$f":"VLOOKUP(B27,'[3]LOC FINAL with new Themes'!A:M,11,0)","v":0},{"$f":"VLOOKUP(B27,'[3]LOC FINAL with new Themes'!A:M,12,0)","v":0},{"$f":"VLOOKUP(B27,'[3]LOC FINAL with new Themes'!A:M,13,0)","v":"M "}]
["U.S. Public Land Survey System","U.S. Public Land Survey System","U.S. Public Land Survey System","U.S. Public Land Survey System","Cadastre","DOI-BLM","Don Buhler","don_buhler@blm.gov",null,{"$f":"VLOOKUP(B28,'[3]LOC FINAL with new Themes'!A:M,7,0)","v":"only federal agency that administers the PLSS; trying to get it to be logically one data set with different regions. (working copies for nine states in West); keep historical record in data base; schema 2 is the version to look at for archiving some time March 2012"},{"$f":"VLOOKUP(B28,'[3]LOC FINAL with new Themes'!A:M,8,0)","v":0},{"$f":"VLOOKUP(B28,'[3]LOC FINAL with new Themes'!A:M,9,0)","v":0},{"$f":"VLOOKUP(B28,'[3]LOC FINAL with new Themes'!A:M,10,0)","v":0},{"$f":"VLOOKUP(B28,'[3]LOC FINAL with new Themes'!A:M,11,0)","v":0},{"$f":"VLOOKUP(B28,'[3]LOC FINAL with new Themes'!A:M,12,0)","v":0},{"$f":"VLOOKUP(B28,'[3]LOC FINAL with new Themes'!A:M,13,0)","v":"P"}]
[null,null,null,"Coastal National Parks","Cadastre","DOI - NPS","Roger Johnson ","Roger_M_Johnson@nps.gov"]
[null,null,null,"Coastal National Wildlife Refuges","Cadastre","DOI - NPS","Sean Killen","Sean_Killen@fws.gov"]
[null,null,null,"Coastal Indian Lands","Cadastre","DOI - BIA","Richard Moore","Richard.Moore@bia.gov"]
[null,null,null,"Outer Continental Shelf Lease Blocks","Cadastre","DOI - BOEM","Doug Vandegraft","Doug.Vandegraft@boem.gov"]
[null,null,null,"BOEM Active Oil and Gas Leases","Cadastre","DOI - BOEM","Doug Vandegraft","Doug.Vandegraft@boem.gov"]
[null,null,null,{"$f":"SUBTOTAL(3,D17:D28)","v":12},"Cadastre Count"]
["Blended Sea Surface Temperature","Blended Sea Surface Temperature","Blended Sea Surface Temperature",{"$f":"IF(C35=0,B35,C35)","v":"Blended Sea Surface Temperature"},"Climate and Weather ","DOC-NOAA","Viva Banzon","Viva.Banzon@noaa.gov",null,{"$f":"VLOOKUP(B35,'[3]LOC FINAL with new Themes'!A:M,7,0)","v":0},{"$f":"VLOOKUP(B35,'[3]LOC FINAL with new Themes'!A:M,8,0)","v":0},{"$f":"VLOOKUP(B35,'[3]LOC FINAL with new Themes'!A:M,9,0)","v":0},{"$f":"VLOOKUP(B35,'[3]LOC FINAL with new Themes'!A:M,10,0)","v":0},{"$f":"VLOOKUP(B35,'[3]LOC FINAL with new Themes'!A:M,11,0)","v":0},{"$f":"VLOOKUP(B35,'[3]LOC FINAL with new Themes'!A:M,12,0)","v":0},{"$f":"VLOOKUP(B35,'[3]LOC FINAL with new Themes'!A:M,13,0)","v":0}]
["Geostationary Operational Environmental Satellite (GOES) data (NCDC)","Geostationary Operational Environmental Satellite (GOES) data (NCDC)","Geostationary Operational Environmental Satellite (GOES) data (NCDC)","Geostationary Operational Environmental Satellite (GOES) data (NCDC)","Climate and Weather ","DOC-NOAA","Nancy Ritchey","Nancy.Ritchey@noaa.gov",null,{"$f":"VLOOKUP(B36,'[3]LOC FINAL with new Themes'!A:M,7,0)","v":"Define 'data set'.  Each spacecraft continuously produces a data stream.  There are multiple sets and the total going back to the late 70s or early 80s numbers in the millions"},{"$f":"VLOOKUP(B36,'[3]LOC FINAL with new Themes'!A:M,8,0)","v":"Yes"},{"$f":"VLOOKUP(B36,'[3]LOC FINAL with new Themes'!A:M,9,0)","v":"Yes"},{"$f":"VLOOKUP(B36,'[3]LOC FINAL with new Themes'!A:M,10,0)","v":"Continuously"},{"$f":"VLOOKUP(B36,'[3]LOC FINAL with new Themes'!A:M,11,0)","v":"There are two active archive centers for these data; one here in Asheville, NC and one in Boulder, CO.  These data go back to the late 70s and all data are on line wither on disc or robotic tape storage"},{"$f":"VLOOKUP(B36,'[3]LOC FINAL with new Themes'!A:M,12,0)","v":"Again, define your terms.  For examples see www.class.noaa.gov - Raw data are listed by satellite (GOES or POES) and then be instrument.  Geophysical products are listed by product name."},{"$f":"VLOOKUP(B36,'[3]LOC FINAL with new Themes'!A:M,13,0)","v":0}]
[null,null,"MODIS-based Atmospheric Products","MODIS-based Atmospheric Products","Climate and Weather ","USDA -FS (Along with USGS)"]
[null,null,"National Doplar Radar Data (NEXRAD)","National Doplar Radar Data (NEXRAD)","Climate and Weather ","DOC-NOAA","Steve DelGreco","stephen.a.delgreco"]
[null,null,"NOAA National Weather Service GIS Data",{"$f":"IF(C39=0,B39,C39)","v":"NOAA National Weather Service GIS Data"},"Climate and Weather ","DOC-NOAA"]
["Parameter-elevation Regressions on Independent Slopes Model (PRISM) Data Sets","Parameter-elevation Regressions on Independent Slopes Model (PRISM) Datasets","Parameter-elevation Regressions on Independent Slopes Model (PRISM) Datasets",{"$f":"IF(C40=0,B40,C40)","v":"Parameter-elevation Regressions on Independent Slopes Model (PRISM) Datasets"},"Climate and Weather ","USDA-NRCS","Jan Curtis","jan.curtis@por.usda.gov",null,{"$f":"VLOOKUP(B40,'[3]LOC FINAL with new Themes'!A:M,7,0)","v":"info provided via http://www.prism.oregonstate.edu/ and \nhttp://www.nrcs.usda.gov/wps/portal/nrcs/main/?ss=16&navtype=SubNavigation&cid=null&navid=850130000000000&pnavid=850000000000000&position=SubNavigation&ttype=main&pname=USDA%2520NRCS%2520-%2520Natural%2520Resources%2520Conservation%2520Service\n"},{"$f":"VLOOKUP(B40,'[3]LOC FINAL with new Themes'!A:M,8,0)","v":0},{"$f":"VLOOKUP(B40,'[3]LOC FINAL with new Themes'!A:M,9,0)","v":0},{"$f":"VLOOKUP(B40,'[3]LOC FINAL with new Themes'!A:M,10,0)","v":0},{"$f":"VLOOKUP(B40,'[3]LOC FINAL with new Themes'!A:M,11,0)","v":0},{"$f":"VLOOKUP(B40,'[3]LOC FINAL with new Themes'!A:M,12,0)","v":0},{"$f":"VLOOKUP(B40,'[3]LOC FINAL with new Themes'!A:M,13,0)","v":"M"}]
["Polar Operational Environmental Satellite (POES) data (NCDC)","Polar Operational Environmental Satellite (POES) data","Polar Operational Environmental Satellite (POES) data",{"$f":"IF(C41=0,B41,C41)","v":"Polar Operational Environmental Satellite (POES) data"},"Climate and Weather ","DOC-NOAA","John Bates","john.j.bates@noaa.gov",null,{"$f":"VLOOKUP(B41,'[3]LOC FINAL with new Themes'!A:M,7,0)","v":0},{"$f":"VLOOKUP(B41,'[3]LOC FINAL with new Themes'!A:M,8,0)","v":0},{"$f":"VLOOKUP(B41,'[3]LOC FINAL with new Themes'!A:M,9,0)","v":0},{"$f":"VLOOKUP(B41,'[3]LOC FINAL with new Themes'!A:M,10,0)","v":0},{"$f":"VLOOKUP(B41,'[3]LOC FINAL with new Themes'!A:M,11,0)","v":0},{"$f":"VLOOKUP(B41,'[3]LOC FINAL with new Themes'!A:M,12,0)","v":0},{"$f":"VLOOKUP(B41,'[3]LOC FINAL with new Themes'!A:M,13,0)","v":0}]
[null,null,null,{"$f":"SUBTOTAL(3,D35:D41)","v":7},"Climate and Weather  Count"]
[null,"5-digit ZIP Code Tabulation Area (Census 2000)","5-digit ZIP Code Tabulation Area (Census 2000)",{"$f":"IF(C43=0,B43,C43)","v":"5-digit ZIP Code Tabulation Area (Census 2000)"},"Cultural & Demographic Statistics ","DOC-Census","Jennifer Holland","Jennifer.L.Holland@census.gov",null,{"$f":"VLOOKUP(B43,'[3]LOC FINAL with new Themes'!A:M,7,0)","v":0},{"$f":"VLOOKUP(B43,'[3]LOC FINAL with new Themes'!A:M,8,0)","v":0},{"$f":"VLOOKUP(B43,'[3]LOC FINAL with new Themes'!A:M,9,0)","v":0},{"$f":"VLOOKUP(B43,'[3]LOC FINAL with new Themes'!A:M,10,0)","v":0},{"$f":"VLOOKUP(B43,'[3]LOC FINAL with new Themes'!A:M,11,0)","v":0},{"$f":"VLOOKUP(B43,'[3]LOC FINAL with new Themes'!A:M,12,0)","v":0},{"$f":"VLOOKUP(B43,'[3]LOC FINAL with new Themes'!A:M,13,0)","v":0}]
["AIR, ANVSA, Hawaiian Homelands Boundaries","AIR, ANVSA, Hawaiian Homelands Boundaries",null,"AIR, ANVSA, Hawaiian Homelands Boundaries","Cultural & Demographic Statistics ","DOC-Census","Randy Fusaro","randy.j.fusaro@census.gov",null,{"$f":"VLOOKUP(B44,'[3]LOC FINAL with new Themes'!A:M,7,0)","v":0},{"$f":"VLOOKUP(B44,'[3]LOC FINAL with new Themes'!A:M,8,0)","v":0},{"$f":"VLOOKUP(B44,'[3]LOC FINAL with new Themes'!A:M,9,0)","v":0},{"$f":"VLOOKUP(B44,'[3]LOC FINAL with new Themes'!A:M,10,0)","v":0},{"$f":"VLOOKUP(B44,'[3]LOC FINAL with new Themes'!A:M,11,0)","v":0},{"$f":"VLOOKUP(B44,'[3]LOC FINAL with new Themes'!A:M,12,0)","v":0},{"$f":"VLOOKUP(B44,'[3]LOC FINAL with new Themes'!A:M,13,0)","v":0}]
[null,"All Lines (2010 Census)","All Lines (2010 Census)","All Lines (2010 Census)","Cultural & Demographic Statistics ","DOC-Census","Jennifer Holland","Jennifer.L.Holland@census.gov",null,{"$f":"VLOOKUP(B45,'[3]LOC FINAL with new Themes'!A:M,7,0)","v":0},{"$f":"VLOOKUP(B45,'[3]LOC FINAL with new Themes'!A:M,8,0)","v":0},{"$f":"VLOOKUP(B45,'[3]LOC FINAL with new Themes'!A:M,9,0)","v":0},{"$f":"VLOOKUP(B45,'[3]LOC FINAL with new Themes'!A:M,10,0)","v":0},{"$f":"VLOOKUP(B45,'[3]LOC FINAL with new Themes'!A:M,11,0)","v":0},{"$f":"VLOOKUP(B45,'[3]LOC FINAL with new Themes'!A:M,12,0)","v":0},{"$f":"VLOOKUP(B45,'[3]LOC FINAL with new Themes'!A:M,13,0)","v":0}]
[null,"ANSI codes for  metro/micropolitan areas","ANSI codes for  metro/micropolitan areas","ANSI codes for  metro/micropolitan areas","Cultural & Demographic Statistics ","DOC-Census","Jennifer Holland","Jennifer.L.Holland@census.gov",null,{"$f":"VLOOKUP(B46,'[3]LOC FINAL with new Themes'!A:M,7,0)","v":0},{"$f":"VLOOKUP(B46,'[3]LOC FINAL with new Themes'!A:M,8,0)","v":0},{"$f":"VLOOKUP(B46,'[3]LOC FINAL with new Themes'!A:M,9,0)","v":0},{"$f":"VLOOKUP(B46,'[3]LOC FINAL with new Themes'!A:M,10,0)","v":0},{"$f":"VLOOKUP(B46,'[3]LOC FINAL with new Themes'!A:M,11,0)","v":0},{"$f":"VLOOKUP(B46,'[3]LOC FINAL with new Themes'!A:M,12,0)","v":0},{"$f":"VLOOKUP(B46,'[3]LOC FINAL with new Themes'!A:M,13,0)","v":0}]
[null,"ANSI codes for congressional districts","ANSI codes for congressional districts","ANSI codes for congressional districts","Cultural & Demographic Statistics ","DOC-Census","Jennifer Holland","Jennifer.L.Holland@census.gov",null,{"$f":"VLOOKUP(B47,'[3]LOC FINAL with new Themes'!A:M,7,0)","v":0},{"$f":"VLOOKUP(B47,'[3]LOC FINAL with new Themes'!A:M,8,0)","v":0},{"$f":"VLOOKUP(B47,'[3]LOC FINAL with new Themes'!A:M,9,0)","v":0},{"$f":"VLOOKUP(B47,'[3]LOC FINAL with new Themes'!A:M,10,0)","v":0},{"$f":"VLOOKUP(B47,'[3]LOC FINAL with new Themes'!A:M,11,0)","v":0},{"$f":"VLOOKUP(B47,'[3]LOC FINAL with new Themes'!A:M,12,0)","v":0},{"$f":"VLOOKUP(B47,'[3]LOC FINAL with new Themes'!A:M,13,0)","v":0}]
[null,"ANSI codes for counties","ANSI codes for counties","ANSI codes for counties","Cultural & Demographic Statistics ","DOC-Census","Jennifer Holland","Jennifer.L.Holland@census.gov",null,{"$f":"VLOOKUP(B48,'[3]LOC FINAL with new Themes'!A:M,7,0)","v":0},{"$f":"VLOOKUP(B48,'[3]LOC FINAL with new Themes'!A:M,8,0)","v":0},{"$f":"VLOOKUP(B48,'[3]LOC FINAL with new Themes'!A:M,9,0)","v":0},{"$f":"VLOOKUP(B48,'[3]LOC FINAL with new Themes'!A:M,10,0)","v":0},{"$f":"VLOOKUP(B48,'[3]LOC FINAL with new Themes'!A:M,11,0)","v":0},{"$f":"VLOOKUP(B48,'[3]LOC FINAL with new Themes'!A:M,12,0)","v":0},{"$f":"VLOOKUP(B48,'[3]LOC FINAL with new Themes'!A:M,13,0)","v":0}]
[null,"ANSI codes for states","ANSI codes for states","ANSI codes for states","Cultural & Demographic Statistics ","DOC-Census","Jennifer Holland","Jennifer.L.Holland@census.gov",null,{"$f":"VLOOKUP(B49,'[3]LOC FINAL with new Themes'!A:M,7,0)","v":0},{"$f":"VLOOKUP(B49,'[3]LOC FINAL with new Themes'!A:M,8,0)","v":0},{"$f":"VLOOKUP(B49,'[3]LOC FINAL with new Themes'!A:M,9,0)","v":0},{"$f":"VLOOKUP(B49,'[3]LOC FINAL with new Themes'!A:M,10,0)","v":0},{"$f":"VLOOKUP(B49,'[3]LOC FINAL with new Themes'!A:M,11,0)","v":0},{"$f":"VLOOKUP(B49,'[3]LOC FINAL with new Themes'!A:M,12,0)","v":0},{"$f":"VLOOKUP(B49,'[3]LOC FINAL with new Themes'!A:M,13,0)","v":0}]
[null,"Block (2010 Census)","Block (2010 Census)","Block (2010 Census)","Cultural & Demographic Statistics ","DOC-Census","Jennifer Holland","Jennifer.L.Holland@census.gov",null,{"$f":"VLOOKUP(B50,'[3]LOC FINAL with new Themes'!A:M,7,0)","v":0},{"$f":"VLOOKUP(B50,'[3]LOC FINAL with new Themes'!A:M,8,0)","v":0},{"$f":"VLOOKUP(B50,'[3]LOC FINAL with new Themes'!A:M,9,0)","v":0},{"$f":"VLOOKUP(B50,'[3]LOC FINAL with new Themes'!A:M,10,0)","v":0},{"$f":"VLOOKUP(B50,'[3]LOC FINAL with new Themes'!A:M,11,0)","v":0},{"$f":"VLOOKUP(B50,'[3]LOC FINAL with new Themes'!A:M,12,0)","v":0},{"$f":"VLOOKUP(B50,'[3]LOC FINAL with new Themes'!A:M,13,0)","v":0}]
[null,"Block (Census 2000)","Block (Census 2000)","Block (Census 2000)","Cultural & Demographic Statistics ","DOC-Census","Jennifer Holland","Jennifer.L.Holland@census.gov",null,{"$f":"VLOOKUP(B51,'[3]LOC FINAL with new Themes'!A:M,7,0)","v":0},{"$f":"VLOOKUP(B51,'[3]LOC FINAL with new Themes'!A:M,8,0)","v":0},{"$f":"VLOOKUP(B51,'[3]LOC FINAL with new Themes'!A:M,9,0)","v":0},{"$f":"VLOOKUP(B51,'[3]LOC FINAL with new Themes'!A:M,10,0)","v":0},{"$f":"VLOOKUP(B51,'[3]LOC FINAL with new Themes'!A:M,11,0)","v":0},{"$f":"VLOOKUP(B51,'[3]LOC FINAL with new Themes'!A:M,12,0)","v":0},{"$f":"VLOOKUP(B51,'[3]LOC FINAL with new Themes'!A:M,13,0)","v":0}]
[null,"Block Group (Census 2000)","Block Group (Census 2000)","Block Group (Census 2000)","Cultural & Demographic Statistics ","DOC-Census","Jennifer Holland","Jennifer.L.Holland@census.gov",null,{"$f":"VLOOKUP(B52,'[3]LOC FINAL with new Themes'!A:M,7,0)","v":0},{"$f":"VLOOKUP(B52,'[3]LOC FINAL with new Themes'!A:M,8,0)","v":0},{"$f":"VLOOKUP(B52,'[3]LOC FINAL with new Themes'!A:M,9,0)","v":0},{"$f":"VLOOKUP(B52,'[3]LOC FINAL with new Themes'!A:M,10,0)","v":0},{"$f":"VLOOKUP(B52,'[3]LOC FINAL with new Themes'!A:M,11,0)","v":0},{"$f":"VLOOKUP(B52,'[3]LOC FINAL with new Themes'!A:M,12,0)","v":0},{"$f":"VLOOKUP(B52,'[3]LOC FINAL with new Themes'!A:M,13,0)","v":0}]
[null,"Block Group (Census 2010)","Block Group (Census 2010)","Block Group (Census 2010)","Cultural & Demographic Statistics ","DOC-Census","Jennifer Holland","Jennifer.L.Holland@census.gov",null,{"$f":"VLOOKUP(B53,'[3]LOC FINAL with new Themes'!A:M,7,0)","v":0},{"$f":"VLOOKUP(B53,'[3]LOC FINAL with new Themes'!A:M,8,0)","v":0},{"$f":"VLOOKUP(B53,'[3]LOC FINAL with new Themes'!A:M,9,0)","v":0},{"$f":"VLOOKUP(B53,'[3]LOC FINAL with new Themes'!A:M,10,0)","v":0},{"$f":"VLOOKUP(B53,'[3]LOC FINAL with new Themes'!A:M,11,0)","v":0},{"$f":"VLOOKUP(B53,'[3]LOC FINAL with new Themes'!A:M,12,0)","v":0},{"$f":"VLOOKUP(B53,'[3]LOC FINAL with new Themes'!A:M,13,0)","v":0}]
[null,"Census 2000 FIPS 55 Codes","Census 2000 FIPS 55 Codes","Census 2000 FIPS 55 Codes","Cultural & Demographic Statistics ","DOC-Census","Jennifer Holland","Jennifer.L.Holland@census.gov",null,{"$f":"VLOOKUP(B54,'[3]LOC FINAL with new Themes'!A:M,7,0)","v":0},{"$f":"VLOOKUP(B54,'[3]LOC FINAL with new Themes'!A:M,8,0)","v":0},{"$f":"VLOOKUP(B54,'[3]LOC FINAL with new Themes'!A:M,9,0)","v":0},{"$f":"VLOOKUP(B54,'[3]LOC FINAL with new Themes'!A:M,10,0)","v":0},{"$f":"VLOOKUP(B54,'[3]LOC FINAL with new Themes'!A:M,11,0)","v":0},{"$f":"VLOOKUP(B54,'[3]LOC FINAL with new Themes'!A:M,12,0)","v":0},{"$f":"VLOOKUP(B54,'[3]LOC FINAL with new Themes'!A:M,13,0)","v":0}]
[null,"Census Tract (2010 Census)","Census Tract (2010 Census)","Census Tract (2010 Census)","Cultural & Demographic Statistics ","DOC-Census","Jennifer Holland","Jennifer.L.Holland@census.gov",null,{"$f":"VLOOKUP(B55,'[3]LOC FINAL with new Themes'!A:M,7,0)","v":0},{"$f":"VLOOKUP(B55,'[3]LOC FINAL with new Themes'!A:M,8,0)","v":0},{"$f":"VLOOKUP(B55,'[3]LOC FINAL with new Themes'!A:M,9,0)","v":0},{"$f":"VLOOKUP(B55,'[3]LOC FINAL with new Themes'!A:M,10,0)","v":0},{"$f":"VLOOKUP(B55,'[3]LOC FINAL with new Themes'!A:M,11,0)","v":0},{"$f":"VLOOKUP(B55,'[3]LOC FINAL with new Themes'!A:M,12,0)","v":0},{"$f":"VLOOKUP(B55,'[3]LOC FINAL with new Themes'!A:M,13,0)","v":0}]
[null,"Census Tract (Census 2000)","Census Tract (Census 2000)","Census Tract (Census 2000)","Cultural & Demographic Statistics ","DOC-Census","Jennifer Holland","Jennifer.L.Holland@census.gov",null,{"$f":"VLOOKUP(B56,'[3]LOC FINAL with new Themes'!A:M,7,0)","v":0},{"$f":"VLOOKUP(B56,'[3]LOC FINAL with new Themes'!A:M,8,0)","v":0},{"$f":"VLOOKUP(B56,'[3]LOC FINAL with new Themes'!A:M,9,0)","v":0},{"$f":"VLOOKUP(B56,'[3]LOC FINAL with new Themes'!A:M,10,0)","v":0},{"$f":"VLOOKUP(B56,'[3]LOC FINAL with new Themes'!A:M,11,0)","v":0},{"$f":"VLOOKUP(B56,'[3]LOC FINAL with new Themes'!A:M,12,0)","v":0},{"$f":"VLOOKUP(B56,'[3]LOC FINAL with new Themes'!A:M,13,0)","v":0}]
[null,"Combined Statistical Area (2010 Census)","Combined Statistical Area (2010 Census)","Combined Statistical Area (2010 Census)","Cultural & Demographic Statistics ","DOC-Census","Jennifer Holland","Jennifer.L.Holland@census.gov",null,{"$f":"VLOOKUP(B57,'[3]LOC FINAL with new Themes'!A:M,7,0)","v":0},{"$f":"VLOOKUP(B57,'[3]LOC FINAL with new Themes'!A:M,8,0)","v":0},{"$f":"VLOOKUP(B57,'[3]LOC FINAL with new Themes'!A:M,9,0)","v":0},{"$f":"VLOOKUP(B57,'[3]LOC FINAL with new Themes'!A:M,10,0)","v":0},{"$f":"VLOOKUP(B57,'[3]LOC FINAL with new Themes'!A:M,11,0)","v":0},{"$f":"VLOOKUP(B57,'[3]LOC FINAL with new Themes'!A:M,12,0)","v":0},{"$f":"VLOOKUP(B57,'[3]LOC FINAL with new Themes'!A:M,13,0)","v":0}]
[null,"Congressional District Boundaries",null,"Congressional District Boundaries","Cultural & Demographic Statistics ","DOC-Census","Randy Fusaro","randy.j.fusaro@census.gov",null,{"$f":"VLOOKUP(B58,'[3]LOC FINAL with new Themes'!A:M,7,0)","v":0},{"$f":"VLOOKUP(B58,'[3]LOC FINAL with new Themes'!A:M,8,0)","v":0},{"$f":"VLOOKUP(B58,'[3]LOC FINAL with new Themes'!A:M,9,0)","v":0},{"$f":"VLOOKUP(B58,'[3]LOC FINAL with new Themes'!A:M,10,0)","v":0},{"$f":"VLOOKUP(B58,'[3]LOC FINAL with new Themes'!A:M,11,0)","v":0},{"$f":"VLOOKUP(B58,'[3]LOC FINAL with new Themes'!A:M,12,0)","v":0},{"$f":"VLOOKUP(B58,'[3]LOC FINAL with new Themes'!A:M,13,0)","v":0}]
["County, place, MCD Boundaries","County, place, MCD Boundaries",null,"County, place, MCD Boundaries","Cultural & Demographic Statistics ","DOC-Census","Randy Fusaro","randy.j.fusaro@census.gov",null,{"$f":"VLOOKUP(B59,'[3]LOC FINAL with new Themes'!A:M,7,0)","v":0},{"$f":"VLOOKUP(B59,'[3]LOC FINAL with new Themes'!A:M,8,0)","v":0},{"$f":"VLOOKUP(B59,'[3]LOC FINAL with new Themes'!A:M,9,0)","v":0},{"$f":"VLOOKUP(B59,'[3]LOC FINAL with new Themes'!A:M,10,0)","v":0},{"$f":"VLOOKUP(B59,'[3]LOC FINAL with new Themes'!A:M,11,0)","v":0},{"$f":"VLOOKUP(B59,'[3]LOC FINAL with new Themes'!A:M,12,0)","v":0},{"$f":"VLOOKUP(B59,'[3]LOC FINAL with new Themes'!A:M,13,0)","v":0}]
[null,"Elementary School District (2010 Census)","Elementary School District (2010 Census)","Elementary School District (2010 Census)","Cultural & Demographic Statistics ","DOC-Census","Jennifer Holland","Jennifer.L.Holland@census.gov",null,{"$f":"VLOOKUP(B60,'[3]LOC FINAL with new Themes'!A:M,7,0)","v":0},{"$f":"VLOOKUP(B60,'[3]LOC FINAL with new Themes'!A:M,8,0)","v":0},{"$f":"VLOOKUP(B60,'[3]LOC FINAL with new Themes'!A:M,9,0)","v":0},{"$f":"VLOOKUP(B60,'[3]LOC FINAL with new Themes'!A:M,10,0)","v":0},{"$f":"VLOOKUP(B60,'[3]LOC FINAL with new Themes'!A:M,11,0)","v":0},{"$f":"VLOOKUP(B60,'[3]LOC FINAL with new Themes'!A:M,12,0)","v":0},{"$f":"VLOOKUP(B60,'[3]LOC FINAL with new Themes'!A:M,13,0)","v":0}]
[null,"Elementary School District (Census 2000)","Elementary School District (Census 2000)","Elementary School District (Census 2000)","Cultural & Demographic Statistics ","DOC-Census","Jennifer Holland","Jennifer.L.Holland@census.gov",null,{"$f":"VLOOKUP(B61,'[3]LOC FINAL with new Themes'!A:M,7,0)","v":0},{"$f":"VLOOKUP(B61,'[3]LOC FINAL with new Themes'!A:M,8,0)","v":0},{"$f":"VLOOKUP(B61,'[3]LOC FINAL with new Themes'!A:M,9,0)","v":0},{"$f":"VLOOKUP(B61,'[3]LOC FINAL with new Themes'!A:M,10,0)","v":0},{"$f":"VLOOKUP(B61,'[3]LOC FINAL with new Themes'!A:M,11,0)","v":0},{"$f":"VLOOKUP(B61,'[3]LOC FINAL with new Themes'!A:M,12,0)","v":0},{"$f":"VLOOKUP(B61,'[3]LOC FINAL with new Themes'!A:M,13,0)","v":0}]
["FIPS/ANSI codes for states, counties, congressional districts & metro/micropolitan areas","FIPS/ANSI codes for states, counties, congressional districts & metro/micropolitan areas",null,"FIPS/ANSI codes for states, counties, congressional districts & metro/micropolitan areas","Cultural & Demographic Statistics ","DOC-Census","Randy Fusaro","randy.j.fusaro@census.gov",null,{"$f":"VLOOKUP(B62,'[3]LOC FINAL with new Themes'!A:M,7,0)","v":0},{"$f":"VLOOKUP(B62,'[3]LOC FINAL with new Themes'!A:M,8,0)","v":0},{"$f":"VLOOKUP(B62,'[3]LOC FINAL with new Themes'!A:M,9,0)","v":0},{"$f":"VLOOKUP(B62,'[3]LOC FINAL with new Themes'!A:M,10,0)","v":0},{"$f":"VLOOKUP(B62,'[3]LOC FINAL with new Themes'!A:M,11,0)","v":0},{"$f":"VLOOKUP(B62,'[3]LOC FINAL with new Themes'!A:M,12,0)","v":0},{"$f":"VLOOKUP(B62,'[3]LOC FINAL with new Themes'!A:M,13,0)","v":0}]
["Metropolitan/micropolitan area boundaries","Metropolitan/micropolitan area boundaries",null,"Metropolitan/micropolitan area boundaries","Cultural & Demographic Statistics ","DOC-Census","Randy Fusaro","randy.j.fusaro@census.gov",null,{"$f":"VLOOKUP(B63,'[3]LOC FINAL with new Themes'!A:M,7,0)","v":0},{"$f":"VLOOKUP(B63,'[3]LOC FINAL with new Themes'!A:M,8,0)","v":0},{"$f":"VLOOKUP(B63,'[3]LOC FINAL with new Themes'!A:M,9,0)","v":0},{"$f":"VLOOKUP(B63,'[3]LOC FINAL with new Themes'!A:M,10,0)","v":0},{"$f":"VLOOKUP(B63,'[3]LOC FINAL with new Themes'!A:M,11,0)","v":0},{"$f":"VLOOKUP(B63,'[3]LOC FINAL with new Themes'!A:M,12,0)","v":0},{"$f":"VLOOKUP(B63,'[3]LOC FINAL with new Themes'!A:M,13,0)","v":0}]
[null,"Metropolitan/micropolitan Statistical Area (2010 Census)","Metropolitan/micropolitan Statistical Area (2010 Census)","Metropolitan/micropolitan Statistical Area (2010 Census)","Cultural & Demographic Statistics ","DOC-Census","Jennifer Holland","Jennifer.L.Holland@census.gov",null,{"$f":"VLOOKUP(B64,'[3]LOC FINAL with new Themes'!A:M,7,0)","v":0},{"$f":"VLOOKUP(B64,'[3]LOC FINAL with new Themes'!A:M,8,0)","v":0},{"$f":"VLOOKUP(B64,'[3]LOC FINAL with new Themes'!A:M,9,0)","v":0},{"$f":"VLOOKUP(B64,'[3]LOC FINAL with new Themes'!A:M,10,0)","v":0},{"$f":"VLOOKUP(B64,'[3]LOC FINAL with new Themes'!A:M,11,0)","v":0},{"$f":"VLOOKUP(B64,'[3]LOC FINAL with new Themes'!A:M,12,0)","v":0},{"$f":"VLOOKUP(B64,'[3]LOC FINAL with new Themes'!A:M,13,0)","v":0}]
["National Center for Health Statistics (Atlas of US Mortality)","National Center for Health Statistics (Atlas of US Mortality)",null,"National Center for Health Statistics (Atlas of US Mortality)","Cultural & Demographic Statistics ","HHS","Gary Anderson","gary.anderson@hhs.gov",null,{"$f":"VLOOKUP(B65,'[3]LOC FINAL with new Themes'!A:M,7,0)","v":0},{"$f":"VLOOKUP(B65,'[3]LOC FINAL with new Themes'!A:M,8,0)","v":0},{"$f":"VLOOKUP(B65,'[3]LOC FINAL with new Themes'!A:M,9,0)","v":0},{"$f":"VLOOKUP(B65,'[3]LOC FINAL with new Themes'!A:M,10,0)","v":0},{"$f":"VLOOKUP(B65,'[3]LOC FINAL with new Themes'!A:M,11,0)","v":0},{"$f":"VLOOKUP(B65,'[3]LOC FINAL with new Themes'!A:M,12,0)","v":0},{"$f":"VLOOKUP(B65,'[3]LOC FINAL with new Themes'!A:M,13,0)","v":0}]
[null,null,"Oklahoma Tribal Joint Use Areas","Oklahoma Tribal Joint Use Areas","Cultural & Demographic Statistics ","DOC-Census"]
[null,null,"Oklahoma Tribal Statistical Areas","Oklahoma Tribal Statistical Areas","Cultural & Demographic Statistics ","DOC-Census"]
[null,"Public Use Microdata Area (Census 2000)","Public Use Microdata Area (Census 2000)","Public Use Microdata Area (Census 2000)","Cultural & Demographic Statistics ","DOC-Census","Jennifer Holland","Jennifer.L.Holland@census.gov",null,{"$f":"VLOOKUP(B68,'[3]LOC FINAL with new Themes'!A:M,7,0)","v":0},{"$f":"VLOOKUP(B68,'[3]LOC FINAL with new Themes'!A:M,8,0)","v":0},{"$f":"VLOOKUP(B68,'[3]LOC FINAL with new Themes'!A:M,9,0)","v":0},{"$f":"VLOOKUP(B68,'[3]LOC FINAL with new Themes'!A:M,10,0)","v":0},{"$f":"VLOOKUP(B68,'[3]LOC FINAL with new Themes'!A:M,11,0)","v":0},{"$f":"VLOOKUP(B68,'[3]LOC FINAL with new Themes'!A:M,12,0)","v":0},{"$f":"VLOOKUP(B68,'[3]LOC FINAL with new Themes'!A:M,13,0)","v":0}]
["School District Boundaries","School District Boundaries",null,"School District Boundaries","Cultural & Demographic Statistics ","DOC-Census","Randy Fusaro","randy.j.fusaro@census.gov",null,{"$f":"VLOOKUP(B69,'[3]LOC FINAL with new Themes'!A:M,7,0)","v":0},{"$f":"VLOOKUP(B69,'[3]LOC FINAL with new Themes'!A:M,8,0)","v":0},{"$f":"VLOOKUP(B69,'[3]LOC FINAL with new Themes'!A:M,9,0)","v":0},{"$f":"VLOOKUP(B69,'[3]LOC FINAL with new Themes'!A:M,10,0)","v":0},{"$f":"VLOOKUP(B69,'[3]LOC FINAL with new Themes'!A:M,11,0)","v":0},{"$f":"VLOOKUP(B69,'[3]LOC FINAL with new Themes'!A:M,12,0)","v":0},{"$f":"VLOOKUP(B69,'[3]LOC FINAL with new Themes'!A:M,13,0)","v":0}]
[null,"Secondary School District (2010 Census)","Secondary School District (2010 Census)","Secondary School District (2010 Census)","Cultural & Demographic Statistics ","DOC-Census","Jennifer Holland","Jennifer.L.Holland@census.gov",null,{"$f":"VLOOKUP(B70,'[3]LOC FINAL with new Themes'!A:M,7,0)","v":0},{"$f":"VLOOKUP(B70,'[3]LOC FINAL with new Themes'!A:M,8,0)","v":0},{"$f":"VLOOKUP(B70,'[3]LOC FINAL with new Themes'!A:M,9,0)","v":0},{"$f":"VLOOKUP(B70,'[3]LOC FINAL with new Themes'!A:M,10,0)","v":0},{"$f":"VLOOKUP(B70,'[3]LOC FINAL with new Themes'!A:M,11,0)","v":0},{"$f":"VLOOKUP(B70,'[3]LOC FINAL with new Themes'!A:M,12,0)","v":0},{"$f":"VLOOKUP(B70,'[3]LOC FINAL with new Themes'!A:M,13,0)","v":0}]
[null,"Secondary School District (Census 2000)","Secondary School District (Census 2000)","Secondary School District (Census 2000)","Cultural & Demographic Statistics ","DOC-Census","Jennifer Holland","Jennifer.L.Holland@census.gov",null,{"$f":"VLOOKUP(B71,'[3]LOC FINAL with new Themes'!A:M,7,0)","v":0},{"$f":"VLOOKUP(B71,'[3]LOC FINAL with new Themes'!A:M,8,0)","v":0},{"$f":"VLOOKUP(B71,'[3]LOC FINAL with new Themes'!A:M,9,0)","v":0},{"$f":"VLOOKUP(B71,'[3]LOC FINAL with new Themes'!A:M,10,0)","v":0},{"$f":"VLOOKUP(B71,'[3]LOC FINAL with new Themes'!A:M,11,0)","v":0},{"$f":"VLOOKUP(B71,'[3]LOC FINAL with new Themes'!A:M,12,0)","v":0},{"$f":"VLOOKUP(B71,'[3]LOC FINAL with new Themes'!A:M,13,0)","v":0}]
["State (+ Territories) Boundaries","State (+ Territories) Boundaries",null,"State (+ Territories) Boundaries","Cultural & Demographic Statistics ","DOC-Census","Randy Fusaro","randy.j.fusaro@census.gov",null,{"$f":"VLOOKUP(B72,'[3]LOC FINAL with new Themes'!A:M,7,0)","v":0},{"$f":"VLOOKUP(B72,'[3]LOC FINAL with new Themes'!A:M,8,0)","v":0},{"$f":"VLOOKUP(B72,'[3]LOC FINAL with new Themes'!A:M,9,0)","v":0},{"$f":"VLOOKUP(B72,'[3]LOC FINAL with new Themes'!A:M,10,0)","v":0},{"$f":"VLOOKUP(B72,'[3]LOC FINAL with new Themes'!A:M,11,0)","v":0},{"$f":"VLOOKUP(B72,'[3]LOC FINAL with new Themes'!A:M,12,0)","v":0},{"$f":"VLOOKUP(B72,'[3]LOC FINAL with new Themes'!A:M,13,0)","v":0}]
["Statistical Area Boundaries (tracts, blocks, UAs, CDPs, etc)","Statistical Area Boundaries (tracts, blocks, UAs, CDPs, etc)",null,"Statistical Area Boundaries (tracts, blocks, UAs, CDPs, etc)","Cultural & Demographic Statistics ","DOC-Census","Randy Fusaro","randy.j.fusaro@census.gov",null,{"$f":"VLOOKUP(B73,'[3]LOC FINAL with new Themes'!A:M,7,0)","v":0},{"$f":"VLOOKUP(B73,'[3]LOC FINAL with new Themes'!A:M,8,0)","v":0},{"$f":"VLOOKUP(B73,'[3]LOC FINAL with new Themes'!A:M,9,0)","v":0},{"$f":"VLOOKUP(B73,'[3]LOC FINAL with new Themes'!A:M,10,0)","v":0},{"$f":"VLOOKUP(B73,'[3]LOC FINAL with new Themes'!A:M,11,0)","v":0},{"$f":"VLOOKUP(B73,'[3]LOC FINAL with new Themes'!A:M,12,0)","v":0},{"$f":"VLOOKUP(B73,'[3]LOC FINAL with new Themes'!A:M,13,0)","v":0}]
[null,"Super Public Use Microdata Area (Census 2000)","Super Public Use Microdata Area (Census 2000)","Super Public Use Microdata Area (Census 2000)","Cultural & Demographic Statistics ","DOC-Census","Jennifer Holland","Jennifer.L.Holland@census.gov",null,{"$f":"VLOOKUP(B74,'[3]LOC FINAL with new Themes'!A:M,7,0)","v":0},{"$f":"VLOOKUP(B74,'[3]LOC FINAL with new Themes'!A:M,8,0)","v":0},{"$f":"VLOOKUP(B74,'[3]LOC FINAL with new Themes'!A:M,9,0)","v":0},{"$f":"VLOOKUP(B74,'[3]LOC FINAL with new Themes'!A:M,10,0)","v":0},{"$f":"VLOOKUP(B74,'[3]LOC FINAL with new Themes'!A:M,11,0)","v":0},{"$f":"VLOOKUP(B74,'[3]LOC FINAL with new Themes'!A:M,12,0)","v":0},{"$f":"VLOOKUP(B74,'[3]LOC FINAL with new Themes'!A:M,13,0)","v":0}]
["TIGER* (many statistical boundaries)","TIGER (many statistical boundaries)",null,"TIGER (many statistical boundaries)","Cultural & Demographic Statistics ","DOC-Census","Randy Fusaro","randy.j.fusaro@census.gov",null,{"$f":"VLOOKUP(B75,'[3]LOC FINAL with new Themes'!A:M,7,0)","v":0},{"$f":"VLOOKUP(B75,'[3]LOC FINAL with new Themes'!A:M,8,0)","v":0},{"$f":"VLOOKUP(B75,'[3]LOC FINAL with new Themes'!A:M,9,0)","v":0},{"$f":"VLOOKUP(B75,'[3]LOC FINAL with new Themes'!A:M,10,0)","v":0},{"$f":"VLOOKUP(B75,'[3]LOC FINAL with new Themes'!A:M,11,0)","v":0},{"$f":"VLOOKUP(B75,'[3]LOC FINAL with new Themes'!A:M,12,0)","v":0},{"$f":"VLOOKUP(B75,'[3]LOC FINAL with new Themes'!A:M,13,0)","v":0}]
[null,"Topological Faces (2010 Census)","Topological Faces (2010 Census)","Topological Faces (2010 Census)","Cultural & Demographic Statistics ","DOC-Census","Jennifer Holland","Jennifer.L.Holland@census.gov",null,{"$f":"VLOOKUP(B76,'[3]LOC FINAL with new Themes'!A:M,7,0)","v":0},{"$f":"VLOOKUP(B76,'[3]LOC FINAL with new Themes'!A:M,8,0)","v":0},{"$f":"VLOOKUP(B76,'[3]LOC FINAL with new Themes'!A:M,9,0)","v":0},{"$f":"VLOOKUP(B76,'[3]LOC FINAL with new Themes'!A:M,10,0)","v":0},{"$f":"VLOOKUP(B76,'[3]LOC FINAL with new Themes'!A:M,11,0)","v":0},{"$f":"VLOOKUP(B76,'[3]LOC FINAL with new Themes'!A:M,12,0)","v":0},{"$f":"VLOOKUP(B76,'[3]LOC FINAL with new Themes'!A:M,13,0)","v":0}]
[null,"Unified School District (2010 Census)","Unified School District (2010 Census)","Unified School District (2010 Census)","Cultural & Demographic Statistics ","DOC-Census","Jennifer Holland","Jennifer.L.Holland@census.gov",null,{"$f":"VLOOKUP(B77,'[3]LOC FINAL with new Themes'!A:M,7,0)","v":0},{"$f":"VLOOKUP(B77,'[3]LOC FINAL with new Themes'!A:M,8,0)","v":0},{"$f":"VLOOKUP(B77,'[3]LOC FINAL with new Themes'!A:M,9,0)","v":0},{"$f":"VLOOKUP(B77,'[3]LOC FINAL with new Themes'!A:M,10,0)","v":0},{"$f":"VLOOKUP(B77,'[3]LOC FINAL with new Themes'!A:M,11,0)","v":0},{"$f":"VLOOKUP(B77,'[3]LOC FINAL with new Themes'!A:M,12,0)","v":0},{"$f":"VLOOKUP(B77,'[3]LOC FINAL with new Themes'!A:M,13,0)","v":0}]
[null,"Unified School District (Census 2000)","Unified School District (Census 2000)","Unified School District (Census 2000)","Cultural & Demographic Statistics ","DOC-Census","Jennifer Holland","Jennifer.L.Holland@census.gov",null,{"$f":"VLOOKUP(B78,'[3]LOC FINAL with new Themes'!A:M,7,0)","v":0},{"$f":"VLOOKUP(B78,'[3]LOC FINAL with new Themes'!A:M,8,0)","v":0},{"$f":"VLOOKUP(B78,'[3]LOC FINAL with new Themes'!A:M,9,0)","v":0},{"$f":"VLOOKUP(B78,'[3]LOC FINAL with new Themes'!A:M,10,0)","v":0},{"$f":"VLOOKUP(B78,'[3]LOC FINAL with new Themes'!A:M,11,0)","v":0},{"$f":"VLOOKUP(B78,'[3]LOC FINAL with new Themes'!A:M,12,0)","v":0},{"$f":"VLOOKUP(B78,'[3]LOC FINAL with new Themes'!A:M,13,0)","v":0}]
[null,"Urban Growth Area (2010 Census)","Urban Growth Area (2010 Census)","Urban Growth Area (2010 Census)","Cultural & Demographic Statistics ","DOC-Census","Jennifer Holland","Jennifer.L.Holland@census.gov",null,{"$f":"VLOOKUP(B79,'[3]LOC FINAL with new Themes'!A:M,7,0)","v":0},{"$f":"VLOOKUP(B79,'[3]LOC FINAL with new Themes'!A:M,8,0)","v":0},{"$f":"VLOOKUP(B79,'[3]LOC FINAL with new Themes'!A:M,9,0)","v":0},{"$f":"VLOOKUP(B79,'[3]LOC FINAL with new Themes'!A:M,10,0)","v":0},{"$f":"VLOOKUP(B79,'[3]LOC FINAL with new Themes'!A:M,11,0)","v":0},{"$f":"VLOOKUP(B79,'[3]LOC FINAL with new Themes'!A:M,12,0)","v":0},{"$f":"VLOOKUP(B79,'[3]LOC FINAL with new Themes'!A:M,13,0)","v":0}]
[null,"Urban Growth Area (Census 2000)","Urban Growth Area (Census 2000)","Urban Growth Area (Census 2000)","Cultural & Demographic Statistics ","DOC-Census","Jennifer Holland","Jennifer.L.Holland@census.gov",null,{"$f":"VLOOKUP(B80,'[3]LOC FINAL with new Themes'!A:M,7,0)","v":0},{"$f":"VLOOKUP(B80,'[3]LOC FINAL with new Themes'!A:M,8,0)","v":0},{"$f":"VLOOKUP(B80,'[3]LOC FINAL with new Themes'!A:M,9,0)","v":0},{"$f":"VLOOKUP(B80,'[3]LOC FINAL with new Themes'!A:M,10,0)","v":0},{"$f":"VLOOKUP(B80,'[3]LOC FINAL with new Themes'!A:M,11,0)","v":0},{"$f":"VLOOKUP(B80,'[3]LOC FINAL with new Themes'!A:M,12,0)","v":0},{"$f":"VLOOKUP(B80,'[3]LOC FINAL with new Themes'!A:M,13,0)","v":0}]
[null,"Voting District (2010 Census)","Voting District (2010 Census)","Voting District (2010 Census)","Cultural & Demographic Statistics ","DOC-Census","Jennifer Holland","Jennifer.L.Holland@census.gov",null,{"$f":"VLOOKUP(B81,'[3]LOC FINAL with new Themes'!A:M,7,0)","v":0},{"$f":"VLOOKUP(B81,'[3]LOC FINAL with new Themes'!A:M,8,0)","v":0},{"$f":"VLOOKUP(B81,'[3]LOC FINAL with new Themes'!A:M,9,0)","v":0},{"$f":"VLOOKUP(B81,'[3]LOC FINAL with new Themes'!A:M,10,0)","v":0},{"$f":"VLOOKUP(B81,'[3]LOC FINAL with new Themes'!A:M,11,0)","v":0},{"$f":"VLOOKUP(B81,'[3]LOC FINAL with new Themes'!A:M,12,0)","v":0},{"$f":"VLOOKUP(B81,'[3]LOC FINAL with new Themes'!A:M,13,0)","v":0}]
[null,"Voting District (Census 2000)","Voting District (Census 2000)","Voting District (Census 2000)","Cultural & Demographic Statistics ","DOC-Census","Jennifer Holland","Jennifer.L.Holland@census.gov",null,{"$f":"VLOOKUP(B82,'[3]LOC FINAL with new Themes'!A:M,7,0)","v":0},{"$f":"VLOOKUP(B82,'[3]LOC FINAL with new Themes'!A:M,8,0)","v":0},{"$f":"VLOOKUP(B82,'[3]LOC FINAL with new Themes'!A:M,9,0)","v":0},{"$f":"VLOOKUP(B82,'[3]LOC FINAL with new Themes'!A:M,10,0)","v":0},{"$f":"VLOOKUP(B82,'[3]LOC FINAL with new Themes'!A:M,11,0)","v":0},{"$f":"VLOOKUP(B82,'[3]LOC FINAL with new Themes'!A:M,12,0)","v":0},{"$f":"VLOOKUP(B82,'[3]LOC FINAL with new Themes'!A:M,13,0)","v":0}]
["Voting District Boundaries","Voting District Boundaries",null,"Voting District Boundaries","Cultural & Demographic Statistics ","DOC-Census","Randy Fusaro","randy.j.fusaro@census.gov",null,{"$f":"VLOOKUP(B83,'[3]LOC FINAL with new Themes'!A:M,7,0)","v":0},{"$f":"VLOOKUP(B83,'[3]LOC FINAL with new Themes'!A:M,8,0)","v":0},{"$f":"VLOOKUP(B83,'[3]LOC FINAL with new Themes'!A:M,9,0)","v":0},{"$f":"VLOOKUP(B83,'[3]LOC FINAL with new Themes'!A:M,10,0)","v":0},{"$f":"VLOOKUP(B83,'[3]LOC FINAL with new Themes'!A:M,11,0)","v":0},{"$f":"VLOOKUP(B83,'[3]LOC FINAL with new Themes'!A:M,12,0)","v":0},{"$f":"VLOOKUP(B83,'[3]LOC FINAL with new Themes'!A:M,13,0)","v":0}]
[null,null,null,{"$f":"SUBTOTAL(3,D43:D83)","v":41},"Cultural & Demographic Statistics  Count"]
["Cultural Landscape Boundaries","Cultural Landscape Boundaries","Cultural Landscape Boundaries",{"$f":"IF(C85=0,B85,C85)","v":"Cultural Landscape Boundaries"},"Cultural & Demographic Statistics \nCultural Resources","DOI-NPS","John Knoerl","john_knoerl@nps.gov",null,{"$f":"VLOOKUP(B85,'[3]LOC FINAL with new Themes'!A:M,7,0)","v":"Feature classes of the cultural resource data model (NPS only, other federal agencies handle it as they decide)"},{"$f":"VLOOKUP(B85,'[3]LOC FINAL with new Themes'!A:M,8,0)","v":"don't want a single centralized data set but focusing on standard approach"},{"$f":"VLOOKUP(B85,'[3]LOC FINAL with new Themes'!A:M,9,0)","v":0},{"$f":"VLOOKUP(B85,'[3]LOC FINAL with new Themes'!A:M,10,0)","v":0},{"$f":"VLOOKUP(B85,'[3]LOC FINAL with new Themes'!A:M,11,0)","v":0},{"$f":"VLOOKUP(B85,'[3]LOC FINAL with new Themes'!A:M,12,0)","v":0},{"$f":"VLOOKUP(B85,'[3]LOC FINAL with new Themes'!A:M,13,0)","v":0}]
["Cultural Resource Survey Boundaries","Cultural Resource Survey Boundaries","Cultural Resource Survey Boundaries","Cultural Resource Survey Boundaries","Cultural & Demographic Statistics \nCultural Resources","DOI-NPS","John Knoerl","john_knoerl@nps.gov",null,{"$f":"VLOOKUP(B86,'[3]LOC FINAL with new Themes'!A:M,7,0)","v":"Feature classes of the cultural resource data model (NPS only, other federal agencies handle it as they decide)"},{"$f":"VLOOKUP(B86,'[3]LOC FINAL with new Themes'!A:M,8,0)","v":"don't want a single centralized data set but focusing on standard approach"},{"$f":"VLOOKUP(B86,'[3]LOC FINAL with new Themes'!A:M,9,0)","v":0},{"$f":"VLOOKUP(B86,'[3]LOC FINAL with new Themes'!A:M,10,0)","v":0},{"$f":"VLOOKUP(B86,'[3]LOC FINAL with new Themes'!A:M,11,0)","v":0},{"$f":"VLOOKUP(B86,'[3]LOC FINAL with new Themes'!A:M,12,0)","v":0},{"$f":"VLOOKUP(B86,'[3]LOC FINAL with new Themes'!A:M,13,0)","v":0}]
["Ethnographic Resource Boundaries","Ethnographic Resource Boundaries","Ethnographic Resource Boundaries","Ethnographic Resource Boundaries","Cultural & Demographic Statistics \nCultural Resources","DOI-NPS","John Knoerl","john_knoerl@nps.gov",null,{"$f":"VLOOKUP(B87,'[3]LOC FINAL with new Themes'!A:M,7,0)","v":"Feature classes of the cultural resource data model (NPS only, other federal agencies handle it as they decide)"},{"$f":"VLOOKUP(B87,'[3]LOC FINAL with new Themes'!A:M,8,0)","v":"don't want a single centralized data set but focusing on standard approach"},{"$f":"VLOOKUP(B87,'[3]LOC FINAL with new Themes'!A:M,9,0)","v":0},{"$f":"VLOOKUP(B87,'[3]LOC FINAL with new Themes'!A:M,10,0)","v":0},{"$f":"VLOOKUP(B87,'[3]LOC FINAL with new Themes'!A:M,11,0)","v":0},{"$f":"VLOOKUP(B87,'[3]LOC FINAL with new Themes'!A:M,12,0)","v":0},{"$f":"VLOOKUP(B87,'[3]LOC FINAL with new Themes'!A:M,13,0)","v":0}]
["Historic Buildings Boundaries","Historic Buildings Boundaries","Historic Buildings Boundaries","Historic Buildings Boundaries","Cultural & Demographic Statistics \nCultural Resources","DOI-NPS","John Knoerl","john_knoerl@nps.gov",null,{"$f":"VLOOKUP(B88,'[3]LOC FINAL with new Themes'!A:M,7,0)","v":"Feature classes of the cultural resource data model (NPS only, other federal agencies handle it as they decide)"},{"$f":"VLOOKUP(B88,'[3]LOC FINAL with new Themes'!A:M,8,0)","v":"don't want a single centralized data set but focusing on standard approach"},{"$f":"VLOOKUP(B88,'[3]LOC FINAL with new Themes'!A:M,9,0)","v":0},{"$f":"VLOOKUP(B88,'[3]LOC FINAL with new Themes'!A:M,10,0)","v":0},{"$f":"VLOOKUP(B88,'[3]LOC FINAL with new Themes'!A:M,11,0)","v":0},{"$f":"VLOOKUP(B88,'[3]LOC FINAL with new Themes'!A:M,12,0)","v":0},{"$f":"VLOOKUP(B88,'[3]LOC FINAL with new Themes'!A:M,13,0)","v":0}]
["Historic Districts Boundaries","Historic Districts Boundaries","Historic Districts Boundaries","Historic Districts Boundaries","Cultural & Demographic Statistics \nCultural Resources","DOI-NPS","John Knoerl","john_knoerl@nps.gov",null,{"$f":"VLOOKUP(B89,'[3]LOC FINAL with new Themes'!A:M,7,0)","v":"Feature classes of the cultural resource data model (NPS only, other federal agencies handle it as they decide)"},{"$f":"VLOOKUP(B89,'[3]LOC FINAL with new Themes'!A:M,8,0)","v":"don't want a single centralized data set but focusing on standard approach"},{"$f":"VLOOKUP(B89,'[3]LOC FINAL with new Themes'!A:M,9,0)","v":0},{"$f":"VLOOKUP(B89,'[3]LOC FINAL with new Themes'!A:M,10,0)","v":0},{"$f":"VLOOKUP(B89,'[3]LOC FINAL with new Themes'!A:M,11,0)","v":0},{"$f":"VLOOKUP(B89,'[3]LOC FINAL with new Themes'!A:M,12,0)","v":0},{"$f":"VLOOKUP(B89,'[3]LOC FINAL with new Themes'!A:M,13,0)","v":0}]
["Historic Objects Boundaries","Historic Objects Boundaries","Historic Objects Boundaries","Historic Objects Boundaries","Cultural & Demographic Statistics \nCultural Resources","DOI-NPS","John Knoerl","john_knoerl@nps.gov",null,{"$f":"VLOOKUP(B90,'[3]LOC FINAL with new Themes'!A:M,7,0)","v":"Feature classes of the cultural resource data model (NPS only, other federal agencies handle it as they decide)"},{"$f":"VLOOKUP(B90,'[3]LOC FINAL with new Themes'!A:M,8,0)","v":"don't want a single centralized data set but focusing on standard approach"},{"$f":"VLOOKUP(B90,'[3]LOC FINAL with new Themes'!A:M,9,0)","v":0},{"$f":"VLOOKUP(B90,'[3]LOC FINAL with new Themes'!A:M,10,0)","v":0},{"$f":"VLOOKUP(B90,'[3]LOC FINAL with new Themes'!A:M,11,0)","v":0},{"$f":"VLOOKUP(B90,'[3]LOC FINAL with new Themes'!A:M,12,0)","v":0},{"$f":"VLOOKUP(B90,'[3]LOC FINAL with new Themes'!A:M,13,0)","v":0}]
["Historic Structures Boundaries","Historic Structures Boundaries","Historic Structures Boundaries","Historic Structures Boundaries","Cultural & Demographic Statistics \nCultural Resources","DOI-NPS","John Knoerl","john_knoerl@nps.gov",null,{"$f":"VLOOKUP(B91,'[3]LOC FINAL with new Themes'!A:M,7,0)","v":"Feature classes of the cultural resource data model (NPS only, other federal agencies handle it as they decide)"},{"$f":"VLOOKUP(B91,'[3]LOC FINAL with new Themes'!A:M,8,0)","v":"don't want a single centralized data set but focusing on standard approach"},{"$f":"VLOOKUP(B91,'[3]LOC FINAL with new Themes'!A:M,9,0)","v":0},{"$f":"VLOOKUP(B91,'[3]LOC FINAL with new Themes'!A:M,10,0)","v":0},{"$f":"VLOOKUP(B91,'[3]LOC FINAL with new Themes'!A:M,11,0)","v":0},{"$f":"VLOOKUP(B91,'[3]LOC FINAL with new Themes'!A:M,12,0)","v":0},{"$f":"VLOOKUP(B91,'[3]LOC FINAL with new Themes'!A:M,13,0)","v":"M "}]
[null,null,"Other Cultural Resource Boundaries","Other Cultural Resource Boundaries","Cultural & Demographic Statistics \nCultural Resources","DOI-NPS"]
[null,null,null,{"$f":"SUBTOTAL(3,D85:D92)","v":8},"Cultural & Demographic Statistics \nCultural Resources Count"]
[null,"Point Landmark (2010 Census)","Point of Landmark (2010 Census)",{"$f":"IF(C94=0,B94,C94)","v":"Point of Landmark (2010 Census)"},"Cultural Resources","DOC-Census","Jennifer Holland","Jennifer.L.Holland@census.gov",null,{"$f":"VLOOKUP(B94,'[3]LOC FINAL with new Themes'!A:M,7,0)","v":0},{"$f":"VLOOKUP(B94,'[3]LOC FINAL with new Themes'!A:M,8,0)","v":0},{"$f":"VLOOKUP(B94,'[3]LOC FINAL with new Themes'!A:M,9,0)","v":0},{"$f":"VLOOKUP(B94,'[3]LOC FINAL with new Themes'!A:M,10,0)","v":0},{"$f":"VLOOKUP(B94,'[3]LOC FINAL with new Themes'!A:M,11,0)","v":0},{"$f":"VLOOKUP(B94,'[3]LOC FINAL with new Themes'!A:M,12,0)","v":0},{"$f":"VLOOKUP(B94,'[3]LOC FINAL with new Themes'!A:M,13,0)","v":0}]
["Archeological Sites","Archeological Sites","Archeological Sites","Archeological Sites","Cultural Resources ","DOI-NPS","John Knoerl","john_knoerl@nps.gov",null,{"$f":"VLOOKUP(B95,'[3]LOC FINAL with new Themes'!A:M,7,0)","v":"Feature classes of the cultural resource data model (NPS only, other federal agencies handle it as they decide)"},{"$f":"VLOOKUP(B95,'[3]LOC FINAL with new Themes'!A:M,8,0)","v":"don't want a single centralized data set but focusing on standard approach"},{"$f":"VLOOKUP(B95,'[3]LOC FINAL with new Themes'!A:M,9,0)","v":"National Historic Presrevation Act says state historic preservation office has primary oversight (section 110)"},{"$f":"VLOOKUP(B95,'[3]LOC FINAL with new Themes'!A:M,10,0)","v":0},{"$f":"VLOOKUP(B95,'[3]LOC FINAL with new Themes'!A:M,11,0)","v":0},{"$f":"VLOOKUP(B95,'[3]LOC FINAL with new Themes'!A:M,12,0)","v":0},{"$f":"VLOOKUP(B95,'[3]LOC FINAL with new Themes'!A:M,13,0)","v":0}]
[null,"Area Landmark (2010 Census)","Area Landmark (2010 Census)","Area Landmark (2010 Census)","Cultural Resources ","DOC-Census","Jennifer Holland","Jennifer.L.Holland@census.gov",null,{"$f":"VLOOKUP(B96,'[3]LOC FINAL with new Themes'!A:M,7,0)","v":0},{"$f":"VLOOKUP(B96,'[3]LOC FINAL with new Themes'!A:M,8,0)","v":0},{"$f":"VLOOKUP(B96,'[3]LOC FINAL with new Themes'!A:M,9,0)","v":0},{"$f":"VLOOKUP(B96,'[3]LOC FINAL with new Themes'!A:M,10,0)","v":0},{"$f":"VLOOKUP(B96,'[3]LOC FINAL with new Themes'!A:M,11,0)","v":0},{"$f":"VLOOKUP(B96,'[3]LOC FINAL with new Themes'!A:M,12,0)","v":0},{"$f":"VLOOKUP(B96,'[3]LOC FINAL with new Themes'!A:M,13,0)","v":0}]
[null,null,"Geographic Names Dataset - National Map","Geographic Names Dataset - National Map","Cultural Resources ","DOI-USGS"]
["National Map - Geographic Names Information System (GNIS)","National Map - Geographic Names Information System (GNIS)",null,"National Map - Geographic Names Information System (GNIS)","Cultural Resources ","DOI-USGS","Lou Yost","lyost@usgs.gov",null,{"$f":"VLOOKUP(B98,'[3]LOC FINAL with new Themes'!A:M,7,0)","v":"single data set; poc, data managers; daily updated; Denver systems people backup and archive; transfer to NARA also; Gaz vector (internal)"},{"$f":"VLOOKUP(B98,'[3]LOC FINAL with new Themes'!A:M,8,0)","v":0},{"$f":"VLOOKUP(B98,'[3]LOC FINAL with new Themes'!A:M,9,0)","v":0},{"$f":"VLOOKUP(B98,'[3]LOC FINAL with new Themes'!A:M,10,0)","v":0},{"$f":"VLOOKUP(B98,'[3]LOC FINAL with new Themes'!A:M,11,0)","v":0},{"$f":"VLOOKUP(B98,'[3]LOC FINAL with new Themes'!A:M,12,0)","v":0},{"$f":"VLOOKUP(B98,'[3]LOC FINAL with new Themes'!A:M,13,0)","v":"S"}]
[null,"Topological Faces-Area Landmark Relationship File","Topological Faces-Area Landmark Relationship File","Topological Faces-Area Landmark Relationship File","Cultural Resources ","DOC-Census","Jennifer Holland","Jennifer.L.Holland@census.gov",null,{"$f":"VLOOKUP(B99,'[3]LOC FINAL with new Themes'!A:M,7,0)","v":0},{"$f":"VLOOKUP(B99,'[3]LOC FINAL with new Themes'!A:M,8,0)","v":0},{"$f":"VLOOKUP(B99,'[3]LOC FINAL with new Themes'!A:M,9,0)","v":0},{"$f":"VLOOKUP(B99,'[3]LOC FINAL with new Themes'!A:M,10,0)","v":0},{"$f":"VLOOKUP(B99,'[3]LOC FINAL with new Themes'!A:M,11,0)","v":0},{"$f":"VLOOKUP(B99,'[3]LOC FINAL with new Themes'!A:M,12,0)","v":0},{"$f":"VLOOKUP(B99,'[3]LOC FINAL with new Themes'!A:M,13,0)","v":0}]
[null,null,null,{"$f":"SUBTOTAL(3,D94:D99)","v":6},"Cultural Resources Count"]
["133 UA Elevation Data (lidar)","133 UA Elevation Data (lidar)",null,{"$f":"IF(C101=0,B101,C101)","v":"133 UA Elevation Data (lidar)"},"Elevation","DOD-NGA","Ron Power, NGA","ronald.k.power@nga.mil",null,{"$f":"VLOOKUP(B101,'[3]LOC FINAL with new Themes'!A:M,7,0)","v":0},{"$f":"VLOOKUP(B101,'[3]LOC FINAL with new Themes'!A:M,8,0)","v":0},{"$f":"VLOOKUP(B101,'[3]LOC FINAL with new Themes'!A:M,9,0)","v":0},{"$f":"VLOOKUP(B101,'[3]LOC FINAL with new Themes'!A:M,10,0)","v":0},{"$f":"VLOOKUP(B101,'[3]LOC FINAL with new Themes'!A:M,11,0)","v":0},{"$f":"VLOOKUP(B101,'[3]LOC FINAL with new Themes'!A:M,12,0)","v":0},{"$f":"VLOOKUP(B101,'[3]LOC FINAL with new Themes'!A:M,13,0)","v":0}]
["DEMs - Archive","DEMs - Archive",null,"DEMs - Archive","Elevation","DOI-USGS","Gayla Evans","gevans@usgs.gov",null,{"$f":"VLOOKUP(B102,'[3]LOC FINAL with new Themes'!A:M,7,0)","v":"DEMS update at variable nature; are four data sets based on resolution; this is the POC and data manager; this is the name and maintain three complete with two physically separate on-site and one off-site"},{"$f":"VLOOKUP(B102,'[3]LOC FINAL with new Themes'!A:M,8,0)","v":0},{"$f":"VLOOKUP(B102,'[3]LOC FINAL with new Themes'!A:M,9,0)","v":0},{"$f":"VLOOKUP(B102,'[3]LOC FINAL with new Themes'!A:M,10,0)","v":0},{"$f":"VLOOKUP(B102,'[3]LOC FINAL with new Themes'!A:M,11,0)","v":0},{"$f":"VLOOKUP(B102,'[3]LOC FINAL with new Themes'!A:M,12,0)","v":0},{"$f":"VLOOKUP(B102,'[3]LOC FINAL with new Themes'!A:M,13,0)","v":"S"}]
["GTOPO30","GTOPO30",null,"GTOPO30","Elevation","DOI-USGS","Jeff Danielson"," daniels@usgs.gov",null,{"$f":"VLOOKUP(B103,'[3]LOC FINAL with new Themes'!A:M,7,0)","v":"GTOPO30 is static; one data set; this is the POC and data manager; this is the name and maintain three complete with two physically separate on-site and one off-site"},{"$f":"VLOOKUP(B103,'[3]LOC FINAL with new Themes'!A:M,8,0)","v":0},{"$f":"VLOOKUP(B103,'[3]LOC FINAL with new Themes'!A:M,9,0)","v":0},{"$f":"VLOOKUP(B103,'[3]LOC FINAL with new Themes'!A:M,10,0)","v":0},{"$f":"VLOOKUP(B103,'[3]LOC FINAL with new Themes'!A:M,11,0)","v":0},{"$f":"VLOOKUP(B103,'[3]LOC FINAL with new Themes'!A:M,12,0)","v":0},{"$f":"VLOOKUP(B103,'[3]LOC FINAL with new Themes'!A:M,13,0)","v":0}]
["National Map National Elevation Data Set (NED)","National Map  - National Elevation Dataset (NED)",null,"National Map  - National Elevation Dataset (NED)","Elevation","DOI-USGS","Jim Mauck","lyost@usgs.gov",null,{"$f":"VLOOKUP(B104,'[3]LOC FINAL with new Themes'!A:M,7,0)","v":0},{"$f":"VLOOKUP(B104,'[3]LOC FINAL with new Themes'!A:M,8,0)","v":0},{"$f":"VLOOKUP(B104,'[3]LOC FINAL with new Themes'!A:M,9,0)","v":0},{"$f":"VLOOKUP(B104,'[3]LOC FINAL with new Themes'!A:M,10,0)","v":0},{"$f":"VLOOKUP(B104,'[3]LOC FINAL with new Themes'!A:M,11,0)","v":0},{"$f":"VLOOKUP(B104,'[3]LOC FINAL with new Themes'!A:M,12,0)","v":0},{"$f":"VLOOKUP(B104,'[3]LOC FINAL with new Themes'!A:M,13,0)","v":0}]
["SRTM (3-arc second DTEDS)","SRTM (3-arc second DTEDS)",null,"SRTM (3-arc second DTEDS)","Elevation","DOI-USGS","Dean Gesch, USGS","gesch@usgs.gov",null,{"$f":"VLOOKUP(B105,'[3]LOC FINAL with new Themes'!A:M,7,0)","v":"SRTM is static; one data set; this is the POC and data manager; this is the name and maintain three complete with two physically separate on-site and one off-site"},{"$f":"VLOOKUP(B105,'[3]LOC FINAL with new Themes'!A:M,8,0)","v":0},{"$f":"VLOOKUP(B105,'[3]LOC FINAL with new Themes'!A:M,9,0)","v":0},{"$f":"VLOOKUP(B105,'[3]LOC FINAL with new Themes'!A:M,10,0)","v":0},{"$f":"VLOOKUP(B105,'[3]LOC FINAL with new Themes'!A:M,11,0)","v":0},{"$f":"VLOOKUP(B105,'[3]LOC FINAL with new Themes'!A:M,12,0)","v":0},{"$f":"VLOOKUP(B105,'[3]LOC FINAL with new Themes'!A:M,13,0)","v":"S"}]
["Digital Flood Insurance Rate Maps (D-FIRM)","Digital Flood Insurance Rate Maps (D-FIRM)","Digital Flood Insurance Rate Maps (DFIRM)","Digital Flood Insurance Rate Maps (DFIRM)","Elevation ","DHS-FEMA","Scott McAfee","scott.mcaffee@dhs.gov",null,{"$f":"VLOOKUP(B106,'[3]LOC FINAL with new Themes'!A:M,7,0)","v":0},{"$f":"VLOOKUP(B106,'[3]LOC FINAL with new Themes'!A:M,8,0)","v":0},{"$f":"VLOOKUP(B106,'[3]LOC FINAL with new Themes'!A:M,9,0)","v":0},{"$f":"VLOOKUP(B106,'[3]LOC FINAL with new Themes'!A:M,10,0)","v":0},{"$f":"VLOOKUP(B106,'[3]LOC FINAL with new Themes'!A:M,11,0)","v":0},{"$f":"VLOOKUP(B106,'[3]LOC FINAL with new Themes'!A:M,12,0)","v":0},{"$f":"VLOOKUP(B106,'[3]LOC FINAL with new Themes'!A:M,13,0)","v":0}]
[null,null,"Elevation Bathymetric - Ocean, Coastal, and Great Lakes Bathymetry ","Elevation Bathymetric - Ocean, Coastal, and Great Lakes Bathymetry ","Elevation ","DOC-NOAA"]
[null,null,"National Elevation Dataset  - National Map","National Elevation Dataset  - National Map","Elevation ","DOI-USGS"]
["National Flood Hazard Layer (NFHL)","National Flood Hazard Layer (NFHL)","National Flood Hazard Layer (NFHL)","National Flood Hazard Layer (NFHL)","Elevation ","DHS-FEMA","Scott McAfee","scott.mcaffee@dhs.gov",null,{"$f":"VLOOKUP(B109,'[3]LOC FINAL with new Themes'!A:M,7,0)","v":0},{"$f":"VLOOKUP(B109,'[3]LOC FINAL with new Themes'!A:M,8,0)","v":0},{"$f":"VLOOKUP(B109,'[3]LOC FINAL with new Themes'!A:M,9,0)","v":0},{"$f":"VLOOKUP(B109,'[3]LOC FINAL with new Themes'!A:M,10,0)","v":0},{"$f":"VLOOKUP(B109,'[3]LOC FINAL with new Themes'!A:M,11,0)","v":0},{"$f":"VLOOKUP(B109,'[3]LOC FINAL with new Themes'!A:M,12,0)","v":0},{"$f":"VLOOKUP(B109,'[3]LOC FINAL with new Themes'!A:M,13,0)","v":0}]
[null,null,null,{"$f":"SUBTOTAL(3,D101:D109)","v":9},"Elevation Count"]
[null,null,"Airborne Gravity",{"$f":"IF(C111=0,B111,C111)","v":"Airborne Gravity"},"Geodetic Control ","DOC-NOAA","Dr. Theresa Diehl","theresa.diehl@noaa.gov"]
[null,null,"Terrestrial Gravity",{"$f":"IF(C112=0,B112,C112)","v":"Terrestrial Gravity"},"Geodetic Control ","DOC-NOAA","Bill Waickman ","bill.waickman@noaa.gov"]
[null,null,"Continuously Operating Reference Stations (CORS)","Continuously Operating Reference Stations (CORS)","Geodetic Control ","DOC-NOAA","Dr. Giovanni Sella","giovanni.sella@noaa.gov"]
[null,null,"Geoid Models","Geoid Models","Geodetic Control ","DOC-NOAA","Dr. Dan Roman","dan.roman@noaa.gov"]
["National Geologic Data Base","National Geologic Data Base","National Geodetic Survey (NGS) Datasheets","National Geodetic Survey (NGS) Datasheets","Geodetic Control ","DOC-NOAA","Jim Tomlin","jim.tomlin@noaa.gov",null,{"$f":"VLOOKUP(B115,'[3]LOC FINAL with new Themes'!A:M,7,0)","v":0},{"$f":"VLOOKUP(B115,'[3]LOC FINAL with new Themes'!A:M,8,0)","v":0},{"$f":"VLOOKUP(B115,'[3]LOC FINAL with new Themes'!A:M,9,0)","v":0},{"$f":"VLOOKUP(B115,'[3]LOC FINAL with new Themes'!A:M,10,0)","v":0},{"$f":"VLOOKUP(B115,'[3]LOC FINAL with new Themes'!A:M,11,0)","v":0},{"$f":"VLOOKUP(B115,'[3]LOC FINAL with new Themes'!A:M,12,0)","v":0},{"$f":"VLOOKUP(B115,'[3]LOC FINAL with new Themes'!A:M,13,0)","v":0}]
[null,null,"Precise Global Navigation Satellite System (GNSS) Orbits",{"$f":"IF(C116=0,#REF!,C116)","v":"Precise Global Navigation Satellite System (GNSS) Orbits"},"Geodetic Control ","DOC-NOAA","Dr. Jake Griffiths","jake.griffiths@noaa.gov"]
[null,null,null,{"$f":"SUBTOTAL(3,D111:D116)","v":6},"Geodetic Control  Count"]
[null,null,"Coal assessment and mapping",{"$f":"IF(C118=0,B118,C118)","v":"Coal assessment and mapping"},"Geology","DOI-USGS"]
["Coastline Data","Coastline Data","Coastline Data","Coastline Data","Geology","DOI-BOEM","Doug Vandegraft","Doug.Vandegraft@boem.gov",null,{"$f":"VLOOKUP(B119,'[3]LOC FINAL with new Themes'!A:M,7,0)","v":"undeliverable email- neeed to identify new contact"},{"$f":"VLOOKUP(B119,'[3]LOC FINAL with new Themes'!A:M,8,0)","v":0},{"$f":"VLOOKUP(B119,'[3]LOC FINAL with new Themes'!A:M,9,0)","v":0},{"$f":"VLOOKUP(B119,'[3]LOC FINAL with new Themes'!A:M,10,0)","v":0},{"$f":"VLOOKUP(B119,'[3]LOC FINAL with new Themes'!A:M,11,0)","v":0},{"$f":"VLOOKUP(B119,'[3]LOC FINAL with new Themes'!A:M,12,0)","v":0},{"$f":"VLOOKUP(B119,'[3]LOC FINAL with new Themes'!A:M,13,0)","v":0}]
[null,null,"Earthquake monitoring, research, and mapping","Earthquake monitoring, research, and mapping","Geology","DOI-USGS"]
[null,null,"Geochemistry","Geochemistry","Geology","DOI-USGS"]
[null,null,"Geochronology","Geochronology","Geology","DOI-USGS"]
[null,null,"Geologic mapping","Geologic mapping","Geology","DOI-USGS"]
[null,null,"Geomagnetism","Geomagnetism","Geology","DOI-USGS"]
[null,null,"Geophysics","Geophysics","Geology","DOI-USGS"]
[null,null,"Landslide monitoring, research, and mapping","Landslide monitoring, research, and mapping","Geology","DOI-USGS"]
[null,null,"Marine geology","Marine geology","Geology","DOI-USGS"]
[null,null,"Metallic mineral assessment and mapping","Metallic mineral assessment and mapping","Geology","DOI-USGS"]
[null,null,"BOEM Baseline","BOEM Baseline","Geology","DOI-BOEM","Doug Vandegraft","Doug.Vandegraft@boem.gov"]
[null,null,"Non-metallic mineral assessment and mapping, onshore",{"$f":"IF(C130=0,B129,C130)","v":"Non-metallic mineral assessment and mapping, onshore"},"Geology","DOI-USGS"]
[null,null,"Oil and gas assessment and mapping, onshore",{"$f":"IF(C131=0,B131,C131)","v":"Oil and gas assessment and mapping, onshore"},"Geology","DOI-USGS"]
[null,null,"Paleontology","Paleontology","Geology","DOI-USGS"]
[null,null,"Sand and Gravel","Sand and Gravel","Geology","DOI-BOEM","Doug Vandegraft","Doug.Vandegraft@boem.gov"]
[null,null,"Volcano monitoring, research, and mapping","Volcano monitoring, research, and mapping","Geology","DOI-USGS"]
[null,null,"Wells","Wells","Geology","DOI-BOEM","Doug Vandegraft","Doug.Vandegraft@boem.gov"]
[null,null,null,{"$f":"SUBTOTAL(3,D118:D135)","v":18},"Geology Count"]
["County Boundaries","County Boundaries",null,{"$f":"IF(C137=0,B137,C137)","v":"County Boundaries"},"Governmental Units",{"$nulls":4},{"$f":"VLOOKUP(B137,'[3]LOC FINAL with new Themes'!A:M,7,0)","v":0},{"$f":"VLOOKUP(B137,'[3]LOC FINAL with new Themes'!A:M,8,0)","v":0},{"$f":"VLOOKUP(B137,'[3]LOC FINAL with new Themes'!A:M,9,0)","v":0},{"$f":"VLOOKUP(B137,'[3]LOC FINAL with new Themes'!A:M,10,0)","v":0},{"$f":"VLOOKUP(B137,'[3]LOC FINAL with new Themes'!A:M,11,0)","v":0},{"$f":"VLOOKUP(B137,'[3]LOC FINAL with new Themes'!A:M,12,0)","v":0},{"$f":"VLOOKUP(B137,'[3]LOC FINAL with new Themes'!A:M,13,0)","v":0}]
[null,"Place and MCD Boundaries",null,"Place and MCD Boundaries","Governmental Units",{"$nulls":4},{"$f":"VLOOKUP(B138,'[3]LOC FINAL with new Themes'!A:M,7,0)","v":0},{"$f":"VLOOKUP(B138,'[3]LOC FINAL with new Themes'!A:M,8,0)","v":0},{"$f":"VLOOKUP(B138,'[3]LOC FINAL with new Themes'!A:M,9,0)","v":0},{"$f":"VLOOKUP(B138,'[3]LOC FINAL with new Themes'!A:M,10,0)","v":0},{"$f":"VLOOKUP(B138,'[3]LOC FINAL with new Themes'!A:M,11,0)","v":0},{"$f":"VLOOKUP(B138,'[3]LOC FINAL with new Themes'!A:M,12,0)","v":0},{"$f":"VLOOKUP(B138,'[3]LOC FINAL with new Themes'!A:M,13,0)","v":0}]
[null,"Alaska Native Regional Corporation (2010 Census)","Alaska Native Regional Corporation (2010 Census)","Alaska Native Regional Corporation (2010 Census)","Governmental Units ","DOC-Census","Jennifer Holland","Jennifer.L.Holland@census.gov",null,{"$f":"VLOOKUP(B139,'[3]LOC FINAL with new Themes'!A:M,7,0)","v":0},{"$f":"VLOOKUP(B139,'[3]LOC FINAL with new Themes'!A:M,8,0)","v":0},{"$f":"VLOOKUP(B139,'[3]LOC FINAL with new Themes'!A:M,9,0)","v":0},{"$f":"VLOOKUP(B139,'[3]LOC FINAL with new Themes'!A:M,10,0)","v":0},{"$f":"VLOOKUP(B139,'[3]LOC FINAL with new Themes'!A:M,11,0)","v":0},{"$f":"VLOOKUP(B139,'[3]LOC FINAL with new Themes'!A:M,12,0)","v":0},{"$f":"VLOOKUP(B139,'[3]LOC FINAL with new Themes'!A:M,13,0)","v":0}]
[null,"Alaska Native Regional Corporation (Census 2000)","Alaska Native Regional Corporation (Census 2000)","Alaska Native Regional Corporation (Census 2000)","Governmental Units ","DOC-Census","Jennifer Holland","Jennifer.L.Holland@census.gov",null,{"$f":"VLOOKUP(B140,'[3]LOC FINAL with new Themes'!A:M,7,0)","v":0},{"$f":"VLOOKUP(B140,'[3]LOC FINAL with new Themes'!A:M,8,0)","v":0},{"$f":"VLOOKUP(B140,'[3]LOC FINAL with new Themes'!A:M,9,0)","v":0},{"$f":"VLOOKUP(B140,'[3]LOC FINAL with new Themes'!A:M,10,0)","v":0},{"$f":"VLOOKUP(B140,'[3]LOC FINAL with new Themes'!A:M,11,0)","v":0},{"$f":"VLOOKUP(B140,'[3]LOC FINAL with new Themes'!A:M,12,0)","v":0},{"$f":"VLOOKUP(B140,'[3]LOC FINAL with new Themes'!A:M,13,0)","v":0}]
[null,"American Indian Tribal Subdivision (2010 Census)","American Indian Tribal Subdivision (2010 Census)","American Indian Tribal Subdivision (2010 Census)","Governmental Units ","DOC-Census","Jennifer Holland","Jennifer.L.Holland@census.gov",null,{"$f":"VLOOKUP(B141,'[3]LOC FINAL with new Themes'!A:M,7,0)","v":0},{"$f":"VLOOKUP(B141,'[3]LOC FINAL with new Themes'!A:M,8,0)","v":0},{"$f":"VLOOKUP(B141,'[3]LOC FINAL with new Themes'!A:M,9,0)","v":0},{"$f":"VLOOKUP(B141,'[3]LOC FINAL with new Themes'!A:M,10,0)","v":0},{"$f":"VLOOKUP(B141,'[3]LOC FINAL with new Themes'!A:M,11,0)","v":0},{"$f":"VLOOKUP(B141,'[3]LOC FINAL with new Themes'!A:M,12,0)","v":0},{"$f":"VLOOKUP(B141,'[3]LOC FINAL with new Themes'!A:M,13,0)","v":0}]
[null,"American Indian Tribal Subdivision (Census 2000)","American Indian Tribal Subdivision (Census 2000)","American Indian Tribal Subdivision (Census 2000)","Governmental Units ","DOC-Census","Jennifer Holland","Jennifer.L.Holland@census.gov",null,{"$f":"VLOOKUP(B142,'[3]LOC FINAL with new Themes'!A:M,7,0)","v":0},{"$f":"VLOOKUP(B142,'[3]LOC FINAL with new Themes'!A:M,8,0)","v":0},{"$f":"VLOOKUP(B142,'[3]LOC FINAL with new Themes'!A:M,9,0)","v":0},{"$f":"VLOOKUP(B142,'[3]LOC FINAL with new Themes'!A:M,10,0)","v":0},{"$f":"VLOOKUP(B142,'[3]LOC FINAL with new Themes'!A:M,11,0)","v":0},{"$f":"VLOOKUP(B142,'[3]LOC FINAL with new Themes'!A:M,12,0)","v":0},{"$f":"VLOOKUP(B142,'[3]LOC FINAL with new Themes'!A:M,13,0)","v":0}]
[null,"American Indian/Alaska Native/Native Hawaiian Area (2000 Census)","American Indian/Alaska Native/Native Hawaiian Area (2000 Census)","American Indian/Alaska Native/Native Hawaiian Area (2000 Census)","Governmental Units ","DOC-Census","Jennifer Holland","Jennifer.L.Holland@census.gov",null,{"$f":"VLOOKUP(B143,'[3]LOC FINAL with new Themes'!A:M,7,0)","v":0},{"$f":"VLOOKUP(B143,'[3]LOC FINAL with new Themes'!A:M,8,0)","v":0},{"$f":"VLOOKUP(B143,'[3]LOC FINAL with new Themes'!A:M,9,0)","v":0},{"$f":"VLOOKUP(B143,'[3]LOC FINAL with new Themes'!A:M,10,0)","v":0},{"$f":"VLOOKUP(B143,'[3]LOC FINAL with new Themes'!A:M,11,0)","v":0},{"$f":"VLOOKUP(B143,'[3]LOC FINAL with new Themes'!A:M,12,0)","v":0},{"$f":"VLOOKUP(B143,'[3]LOC FINAL with new Themes'!A:M,13,0)","v":0}]
[null,"American Indian/Alaska Native/Native Hawaiian Area (2010 Census)","American Indian/Alaska Native/Native Hawaiian Area (2010 Census)","American Indian/Alaska Native/Native Hawaiian Area (2010 Census)","Governmental Units ","DOC-Census","Jennifer Holland","Jennifer.L.Holland@census.gov",null,{"$f":"VLOOKUP(B144,'[3]LOC FINAL with new Themes'!A:M,7,0)","v":0},{"$f":"VLOOKUP(B144,'[3]LOC FINAL with new Themes'!A:M,8,0)","v":0},{"$f":"VLOOKUP(B144,'[3]LOC FINAL with new Themes'!A:M,9,0)","v":0},{"$f":"VLOOKUP(B144,'[3]LOC FINAL with new Themes'!A:M,10,0)","v":0},{"$f":"VLOOKUP(B144,'[3]LOC FINAL with new Themes'!A:M,11,0)","v":0},{"$f":"VLOOKUP(B144,'[3]LOC FINAL with new Themes'!A:M,12,0)","v":0},{"$f":"VLOOKUP(B144,'[3]LOC FINAL with new Themes'!A:M,13,0)","v":0}]
[null,"Combined New England City and Town Area (2010 Census)","Combined New England City and Town Area (2010 Census)","Combined New England City and Town Area (2010 Census)","Governmental Units ","DOC-Census","Jennifer Holland","Jennifer.L.Holland@census.gov",null,{"$f":"VLOOKUP(B145,'[3]LOC FINAL with new Themes'!A:M,7,0)","v":0},{"$f":"VLOOKUP(B145,'[3]LOC FINAL with new Themes'!A:M,8,0)","v":0},{"$f":"VLOOKUP(B145,'[3]LOC FINAL with new Themes'!A:M,9,0)","v":0},{"$f":"VLOOKUP(B145,'[3]LOC FINAL with new Themes'!A:M,10,0)","v":0},{"$f":"VLOOKUP(B145,'[3]LOC FINAL with new Themes'!A:M,11,0)","v":0},{"$f":"VLOOKUP(B145,'[3]LOC FINAL with new Themes'!A:M,12,0)","v":0},{"$f":"VLOOKUP(B145,'[3]LOC FINAL with new Themes'!A:M,13,0)","v":0}]
["Congressional District Boundaries","Congressional District (108th)","Congressional District (108th)","Congressional District (108th)","Governmental Units ","DOC-Census","Jennifer Holland","Jennifer.L.Holland@census.gov",null,{"$f":"VLOOKUP(B146,'[3]LOC FINAL with new Themes'!A:M,7,0)","v":0},{"$f":"VLOOKUP(B146,'[3]LOC FINAL with new Themes'!A:M,8,0)","v":0},{"$f":"VLOOKUP(B146,'[3]LOC FINAL with new Themes'!A:M,9,0)","v":0},{"$f":"VLOOKUP(B146,'[3]LOC FINAL with new Themes'!A:M,10,0)","v":0},{"$f":"VLOOKUP(B146,'[3]LOC FINAL with new Themes'!A:M,11,0)","v":0},{"$f":"VLOOKUP(B146,'[3]LOC FINAL with new Themes'!A:M,12,0)","v":0},{"$f":"VLOOKUP(B146,'[3]LOC FINAL with new Themes'!A:M,13,0)","v":0}]
[null,"Congressional District (111th)","Congressional District (111th)","Congressional District (111th)","Governmental Units ","DOC-Census","Jennifer Holland","Jennifer.L.Holland@census.gov",null,{"$f":"VLOOKUP(B147,'[3]LOC FINAL with new Themes'!A:M,7,0)","v":0},{"$f":"VLOOKUP(B147,'[3]LOC FINAL with new Themes'!A:M,8,0)","v":0},{"$f":"VLOOKUP(B147,'[3]LOC FINAL with new Themes'!A:M,9,0)","v":0},{"$f":"VLOOKUP(B147,'[3]LOC FINAL with new Themes'!A:M,10,0)","v":0},{"$f":"VLOOKUP(B147,'[3]LOC FINAL with new Themes'!A:M,11,0)","v":0},{"$f":"VLOOKUP(B147,'[3]LOC FINAL with new Themes'!A:M,12,0)","v":0},{"$f":"VLOOKUP(B147,'[3]LOC FINAL with new Themes'!A:M,13,0)","v":0}]
[null,"Consolidated City (2010 Census)","Consolidated City (2010 Census)","Consolidated City (2010 Census)","Governmental Units ","DOC-Census","Jennifer Holland","Jennifer.L.Holland@census.gov",null,{"$f":"VLOOKUP(B148,'[3]LOC FINAL with new Themes'!A:M,7,0)","v":0},{"$f":"VLOOKUP(B148,'[3]LOC FINAL with new Themes'!A:M,8,0)","v":0},{"$f":"VLOOKUP(B148,'[3]LOC FINAL with new Themes'!A:M,9,0)","v":0},{"$f":"VLOOKUP(B148,'[3]LOC FINAL with new Themes'!A:M,10,0)","v":0},{"$f":"VLOOKUP(B148,'[3]LOC FINAL with new Themes'!A:M,11,0)","v":0},{"$f":"VLOOKUP(B148,'[3]LOC FINAL with new Themes'!A:M,12,0)","v":0},{"$f":"VLOOKUP(B148,'[3]LOC FINAL with new Themes'!A:M,13,0)","v":0}]
[null,"Consolidated City (Census 2000)","Consolidated City (Census 2000)","Consolidated City (Census 2000)","Governmental Units ","DOC-Census","Jennifer Holland","Jennifer.L.Holland@census.gov",null,{"$f":"VLOOKUP(B149,'[3]LOC FINAL with new Themes'!A:M,7,0)","v":0},{"$f":"VLOOKUP(B149,'[3]LOC FINAL with new Themes'!A:M,8,0)","v":0},{"$f":"VLOOKUP(B149,'[3]LOC FINAL with new Themes'!A:M,9,0)","v":0},{"$f":"VLOOKUP(B149,'[3]LOC FINAL with new Themes'!A:M,10,0)","v":0},{"$f":"VLOOKUP(B149,'[3]LOC FINAL with new Themes'!A:M,11,0)","v":0},{"$f":"VLOOKUP(B149,'[3]LOC FINAL with new Themes'!A:M,12,0)","v":0},{"$f":"VLOOKUP(B149,'[3]LOC FINAL with new Themes'!A:M,13,0)","v":0}]
[null,"County and Equivalent (2010 Census)","County and Equivalent (2010 Census)","County and Equivalent (2010 Census)","Governmental Units ","DOC-Census","Jennifer Holland","Jennifer.L.Holland@census.gov",null,{"$f":"VLOOKUP(B150,'[3]LOC FINAL with new Themes'!A:M,7,0)","v":0},{"$f":"VLOOKUP(B150,'[3]LOC FINAL with new Themes'!A:M,8,0)","v":0},{"$f":"VLOOKUP(B150,'[3]LOC FINAL with new Themes'!A:M,9,0)","v":0},{"$f":"VLOOKUP(B150,'[3]LOC FINAL with new Themes'!A:M,10,0)","v":0},{"$f":"VLOOKUP(B150,'[3]LOC FINAL with new Themes'!A:M,11,0)","v":0},{"$f":"VLOOKUP(B150,'[3]LOC FINAL with new Themes'!A:M,12,0)","v":0},{"$f":"VLOOKUP(B150,'[3]LOC FINAL with new Themes'!A:M,13,0)","v":0}]
[null,"County and Equivalent (Census 2000)","County and Equivalent (Census 2000)","County and Equivalent (Census 2000)","Governmental Units ","DOC-Census","Jennifer Holland","Jennifer.L.Holland@census.gov",null,{"$f":"VLOOKUP(B151,'[3]LOC FINAL with new Themes'!A:M,7,0)","v":0},{"$f":"VLOOKUP(B151,'[3]LOC FINAL with new Themes'!A:M,8,0)","v":0},{"$f":"VLOOKUP(B151,'[3]LOC FINAL with new Themes'!A:M,9,0)","v":0},{"$f":"VLOOKUP(B151,'[3]LOC FINAL with new Themes'!A:M,10,0)","v":0},{"$f":"VLOOKUP(B151,'[3]LOC FINAL with new Themes'!A:M,11,0)","v":0},{"$f":"VLOOKUP(B151,'[3]LOC FINAL with new Themes'!A:M,12,0)","v":0},{"$f":"VLOOKUP(B151,'[3]LOC FINAL with new Themes'!A:M,13,0)","v":0}]
[null,"County Subdivision (2010 Census)","County Subdivision (2010 Census)","County Subdivision (2010 Census)","Governmental Units ","DOC-Census","Jennifer Holland","Jennifer.L.Holland@census.gov",null,{"$f":"VLOOKUP(B152,'[3]LOC FINAL with new Themes'!A:M,7,0)","v":0},{"$f":"VLOOKUP(B152,'[3]LOC FINAL with new Themes'!A:M,8,0)","v":0},{"$f":"VLOOKUP(B152,'[3]LOC FINAL with new Themes'!A:M,9,0)","v":0},{"$f":"VLOOKUP(B152,'[3]LOC FINAL with new Themes'!A:M,10,0)","v":0},{"$f":"VLOOKUP(B152,'[3]LOC FINAL with new Themes'!A:M,11,0)","v":0},{"$f":"VLOOKUP(B152,'[3]LOC FINAL with new Themes'!A:M,12,0)","v":0},{"$f":"VLOOKUP(B152,'[3]LOC FINAL with new Themes'!A:M,13,0)","v":0}]
[null,"County Subdivision (Census 2000)","County Subdivision (Census 2000)","County Subdivision (Census 2000)","Governmental Units ","DOC-Census","Jennifer Holland","Jennifer.L.Holland@census.gov",null,{"$f":"VLOOKUP(B153,'[3]LOC FINAL with new Themes'!A:M,7,0)","v":0},{"$f":"VLOOKUP(B153,'[3]LOC FINAL with new Themes'!A:M,8,0)","v":0},{"$f":"VLOOKUP(B153,'[3]LOC FINAL with new Themes'!A:M,9,0)","v":0},{"$f":"VLOOKUP(B153,'[3]LOC FINAL with new Themes'!A:M,10,0)","v":0},{"$f":"VLOOKUP(B153,'[3]LOC FINAL with new Themes'!A:M,11,0)","v":0},{"$f":"VLOOKUP(B153,'[3]LOC FINAL with new Themes'!A:M,12,0)","v":0},{"$f":"VLOOKUP(B153,'[3]LOC FINAL with new Themes'!A:M,13,0)","v":0}]
[null,"Metropolitan Division (2010 Census)","Metropolitan Division (2010 Census)","Metropolitan Division (2010 Census)","Governmental Units ","DOC-Census","Jennifer Holland","Jennifer.L.Holland@census.gov",null,{"$f":"VLOOKUP(B154,'[3]LOC FINAL with new Themes'!A:M,7,0)","v":0},{"$f":"VLOOKUP(B154,'[3]LOC FINAL with new Themes'!A:M,8,0)","v":0},{"$f":"VLOOKUP(B154,'[3]LOC FINAL with new Themes'!A:M,9,0)","v":0},{"$f":"VLOOKUP(B154,'[3]LOC FINAL with new Themes'!A:M,10,0)","v":0},{"$f":"VLOOKUP(B154,'[3]LOC FINAL with new Themes'!A:M,11,0)","v":0},{"$f":"VLOOKUP(B154,'[3]LOC FINAL with new Themes'!A:M,12,0)","v":0},{"$f":"VLOOKUP(B154,'[3]LOC FINAL with new Themes'!A:M,13,0)","v":0}]
[null,"Metropolitan Division (2010 Census)","Metropolitan Division (2010 Census)","Metropolitan Division (2010 Census)","Governmental Units ","DOC-Census","Jennifer Holland","Jennifer.L.Holland@census.gov",null,{"$f":"VLOOKUP(B155,'[3]LOC FINAL with new Themes'!A:M,7,0)","v":0},{"$f":"VLOOKUP(B155,'[3]LOC FINAL with new Themes'!A:M,8,0)","v":0},{"$f":"VLOOKUP(B155,'[3]LOC FINAL with new Themes'!A:M,9,0)","v":0},{"$f":"VLOOKUP(B155,'[3]LOC FINAL with new Themes'!A:M,10,0)","v":0},{"$f":"VLOOKUP(B155,'[3]LOC FINAL with new Themes'!A:M,11,0)","v":0},{"$f":"VLOOKUP(B155,'[3]LOC FINAL with new Themes'!A:M,12,0)","v":0},{"$f":"VLOOKUP(B155,'[3]LOC FINAL with new Themes'!A:M,13,0)","v":0}]
[null,"New England City and Town Area (2010 Census)","New England City and Town Area (2010 Census)","New England City and Town Area (2010 Census)","Governmental Units ","DOC-Census","Jennifer Holland","Jennifer.L.Holland@census.gov",null,{"$f":"VLOOKUP(B156,'[3]LOC FINAL with new Themes'!A:M,7,0)","v":0},{"$f":"VLOOKUP(B156,'[3]LOC FINAL with new Themes'!A:M,8,0)","v":0},{"$f":"VLOOKUP(B156,'[3]LOC FINAL with new Themes'!A:M,9,0)","v":0},{"$f":"VLOOKUP(B156,'[3]LOC FINAL with new Themes'!A:M,10,0)","v":0},{"$f":"VLOOKUP(B156,'[3]LOC FINAL with new Themes'!A:M,11,0)","v":0},{"$f":"VLOOKUP(B156,'[3]LOC FINAL with new Themes'!A:M,12,0)","v":0},{"$f":"VLOOKUP(B156,'[3]LOC FINAL with new Themes'!A:M,13,0)","v":0}]
[null,"New England City and Town Area Division (2010 Census)","New England City and Town Area Division (2010 Census)","New England City and Town Area Division (2010 Census)","Governmental Units ","DOC-Census","Jennifer Holland","Jennifer.L.Holland@census.gov",null,{"$f":"VLOOKUP(B157,'[3]LOC FINAL with new Themes'!A:M,7,0)","v":0},{"$f":"VLOOKUP(B157,'[3]LOC FINAL with new Themes'!A:M,8,0)","v":0},{"$f":"VLOOKUP(B157,'[3]LOC FINAL with new Themes'!A:M,9,0)","v":0},{"$f":"VLOOKUP(B157,'[3]LOC FINAL with new Themes'!A:M,10,0)","v":0},{"$f":"VLOOKUP(B157,'[3]LOC FINAL with new Themes'!A:M,11,0)","v":0},{"$f":"VLOOKUP(B157,'[3]LOC FINAL with new Themes'!A:M,12,0)","v":0},{"$f":"VLOOKUP(B157,'[3]LOC FINAL with new Themes'!A:M,13,0)","v":0}]
["Place and MCD Boundaries","Place (2010 Census)","Place (2010 Census)","Place (2010 Census)","Governmental Units ","DOC-Census","Jennifer Holland","Jennifer.L.Holland@census.gov",null,{"$f":"VLOOKUP(B158,'[3]LOC FINAL with new Themes'!A:M,7,0)","v":0},{"$f":"VLOOKUP(B158,'[3]LOC FINAL with new Themes'!A:M,8,0)","v":0},{"$f":"VLOOKUP(B158,'[3]LOC FINAL with new Themes'!A:M,9,0)","v":0},{"$f":"VLOOKUP(B158,'[3]LOC FINAL with new Themes'!A:M,10,0)","v":0},{"$f":"VLOOKUP(B158,'[3]LOC FINAL with new Themes'!A:M,11,0)","v":0},{"$f":"VLOOKUP(B158,'[3]LOC FINAL with new Themes'!A:M,12,0)","v":0},{"$f":"VLOOKUP(B158,'[3]LOC FINAL with new Themes'!A:M,13,0)","v":0}]
[null,"Place (Census 2000)","Place (Census 2000)","Place (Census 2000)","Governmental Units ","DOC-Census","Jennifer Holland","Jennifer.L.Holland@census.gov",null,{"$f":"VLOOKUP(B159,'[3]LOC FINAL with new Themes'!A:M,7,0)","v":0},{"$f":"VLOOKUP(B159,'[3]LOC FINAL with new Themes'!A:M,8,0)","v":0},{"$f":"VLOOKUP(B159,'[3]LOC FINAL with new Themes'!A:M,9,0)","v":0},{"$f":"VLOOKUP(B159,'[3]LOC FINAL with new Themes'!A:M,10,0)","v":0},{"$f":"VLOOKUP(B159,'[3]LOC FINAL with new Themes'!A:M,11,0)","v":0},{"$f":"VLOOKUP(B159,'[3]LOC FINAL with new Themes'!A:M,12,0)","v":0},{"$f":"VLOOKUP(B159,'[3]LOC FINAL with new Themes'!A:M,13,0)","v":0}]
["State(+ Territories) Boundaries","State and Equivalent  (2010 Census)","State and Equivalent  (2010 Census)","State and Equivalent  (2010 Census)","Governmental Units ","DOC-Census","Jennifer Holland","Jennifer.L.Holland@census.gov",null,{"$f":"VLOOKUP(B160,'[3]LOC FINAL with new Themes'!A:M,7,0)","v":0},{"$f":"VLOOKUP(B160,'[3]LOC FINAL with new Themes'!A:M,8,0)","v":0},{"$f":"VLOOKUP(B160,'[3]LOC FINAL with new Themes'!A:M,9,0)","v":0},{"$f":"VLOOKUP(B160,'[3]LOC FINAL with new Themes'!A:M,10,0)","v":0},{"$f":"VLOOKUP(B160,'[3]LOC FINAL with new Themes'!A:M,11,0)","v":0},{"$f":"VLOOKUP(B160,'[3]LOC FINAL with new Themes'!A:M,12,0)","v":0},{"$f":"VLOOKUP(B160,'[3]LOC FINAL with new Themes'!A:M,13,0)","v":0}]
[null,"State and Equivalent  (Census 2000)","State and Equivalent  (Census 2000)","State and Equivalent  (Census 2000)","Governmental Units ","DOC-Census","Jennifer Holland","Jennifer.L.Holland@census.gov",null,{"$f":"VLOOKUP(B161,'[3]LOC FINAL with new Themes'!A:M,7,0)","v":0},{"$f":"VLOOKUP(B161,'[3]LOC FINAL with new Themes'!A:M,8,0)","v":0},{"$f":"VLOOKUP(B161,'[3]LOC FINAL with new Themes'!A:M,9,0)","v":0},{"$f":"VLOOKUP(B161,'[3]LOC FINAL with new Themes'!A:M,10,0)","v":0},{"$f":"VLOOKUP(B161,'[3]LOC FINAL with new Themes'!A:M,11,0)","v":0},{"$f":"VLOOKUP(B161,'[3]LOC FINAL with new Themes'!A:M,12,0)","v":0},{"$f":"VLOOKUP(B161,'[3]LOC FINAL with new Themes'!A:M,13,0)","v":0}]
[null,"State Legislative District (Lower Chamber) (2010 Census)","State Legislative District (Lower Chamber) (2010 Census)","State Legislative District (Lower Chamber) (2010 Census)","Governmental Units ","DOC-Census","Jennifer Holland","Jennifer.L.Holland@census.gov",null,{"$f":"VLOOKUP(B162,'[3]LOC FINAL with new Themes'!A:M,7,0)","v":0},{"$f":"VLOOKUP(B162,'[3]LOC FINAL with new Themes'!A:M,8,0)","v":0},{"$f":"VLOOKUP(B162,'[3]LOC FINAL with new Themes'!A:M,9,0)","v":0},{"$f":"VLOOKUP(B162,'[3]LOC FINAL with new Themes'!A:M,10,0)","v":0},{"$f":"VLOOKUP(B162,'[3]LOC FINAL with new Themes'!A:M,11,0)","v":0},{"$f":"VLOOKUP(B162,'[3]LOC FINAL with new Themes'!A:M,12,0)","v":0},{"$f":"VLOOKUP(B162,'[3]LOC FINAL with new Themes'!A:M,13,0)","v":0}]
[null,"State Legislative District (Lower Chamber) (Census 2000)","State Legislative District (Lower Chamber) (Census 2000)","State Legislative District (Lower Chamber) (Census 2000)","Governmental Units ","DOC-Census","Jennifer Holland","Jennifer.L.Holland@census.gov",null,{"$f":"VLOOKUP(B163,'[3]LOC FINAL with new Themes'!A:M,7,0)","v":0},{"$f":"VLOOKUP(B163,'[3]LOC FINAL with new Themes'!A:M,8,0)","v":0},{"$f":"VLOOKUP(B163,'[3]LOC FINAL with new Themes'!A:M,9,0)","v":0},{"$f":"VLOOKUP(B163,'[3]LOC FINAL with new Themes'!A:M,10,0)","v":0},{"$f":"VLOOKUP(B163,'[3]LOC FINAL with new Themes'!A:M,11,0)","v":0},{"$f":"VLOOKUP(B163,'[3]LOC FINAL with new Themes'!A:M,12,0)","v":0},{"$f":"VLOOKUP(B163,'[3]LOC FINAL with new Themes'!A:M,13,0)","v":0}]
[null,"State Legislative District (Upper Chamber) (2010 Census)","State Legislative District (Upper Chamber) (2010 Census)","State Legislative District (Upper Chamber) (2010 Census)","Governmental Units ","DOC-Census","Jennifer Holland","Jennifer.L.Holland@census.gov",null,{"$f":"VLOOKUP(B164,'[3]LOC FINAL with new Themes'!A:M,7,0)","v":0},{"$f":"VLOOKUP(B164,'[3]LOC FINAL with new Themes'!A:M,8,0)","v":0},{"$f":"VLOOKUP(B164,'[3]LOC FINAL with new Themes'!A:M,9,0)","v":0},{"$f":"VLOOKUP(B164,'[3]LOC FINAL with new Themes'!A:M,10,0)","v":0},{"$f":"VLOOKUP(B164,'[3]LOC FINAL with new Themes'!A:M,11,0)","v":0},{"$f":"VLOOKUP(B164,'[3]LOC FINAL with new Themes'!A:M,12,0)","v":0},{"$f":"VLOOKUP(B164,'[3]LOC FINAL with new Themes'!A:M,13,0)","v":0}]
[null,"State Legislative District (Upper Chamber) (Census 2000)","State Legislative District (Upper Chamber) (Census 2000)","State Legislative District (Upper Chamber) (Census 2000)","Governmental Units ","DOC-Census","Jennifer Holland","Jennifer.L.Holland@census.gov",null,{"$f":"VLOOKUP(B165,'[3]LOC FINAL with new Themes'!A:M,7,0)","v":0},{"$f":"VLOOKUP(B165,'[3]LOC FINAL with new Themes'!A:M,8,0)","v":0},{"$f":"VLOOKUP(B165,'[3]LOC FINAL with new Themes'!A:M,9,0)","v":0},{"$f":"VLOOKUP(B165,'[3]LOC FINAL with new Themes'!A:M,10,0)","v":0},{"$f":"VLOOKUP(B165,'[3]LOC FINAL with new Themes'!A:M,11,0)","v":0},{"$f":"VLOOKUP(B165,'[3]LOC FINAL with new Themes'!A:M,12,0)","v":0},{"$f":"VLOOKUP(B165,'[3]LOC FINAL with new Themes'!A:M,13,0)","v":0}]
[null,"Subbarrio (2010 Census)","Subbarrio (2010 Census)","Subbarrio (2010 Census)","Governmental Units ","DOC-Census","Jennifer Holland","Jennifer.L.Holland@census.gov",null,{"$f":"VLOOKUP(B166,'[3]LOC FINAL with new Themes'!A:M,7,0)","v":0},{"$f":"VLOOKUP(B166,'[3]LOC FINAL with new Themes'!A:M,8,0)","v":0},{"$f":"VLOOKUP(B166,'[3]LOC FINAL with new Themes'!A:M,9,0)","v":0},{"$f":"VLOOKUP(B166,'[3]LOC FINAL with new Themes'!A:M,10,0)","v":0},{"$f":"VLOOKUP(B166,'[3]LOC FINAL with new Themes'!A:M,11,0)","v":0},{"$f":"VLOOKUP(B166,'[3]LOC FINAL with new Themes'!A:M,12,0)","v":0},{"$f":"VLOOKUP(B166,'[3]LOC FINAL with new Themes'!A:M,13,0)","v":0}]
[null,"Subbarrio (Census 2000)","Subbarrio (Census 2000)","Subbarrio (Census 2000)","Governmental Units ","DOC-Census","Jennifer Holland","Jennifer.L.Holland@census.gov",null,{"$f":"VLOOKUP(B167,'[3]LOC FINAL with new Themes'!A:M,7,0)","v":0},{"$f":"VLOOKUP(B167,'[3]LOC FINAL with new Themes'!A:M,8,0)","v":0},{"$f":"VLOOKUP(B167,'[3]LOC FINAL with new Themes'!A:M,9,0)","v":0},{"$f":"VLOOKUP(B167,'[3]LOC FINAL with new Themes'!A:M,10,0)","v":0},{"$f":"VLOOKUP(B167,'[3]LOC FINAL with new Themes'!A:M,11,0)","v":0},{"$f":"VLOOKUP(B167,'[3]LOC FINAL with new Themes'!A:M,12,0)","v":0},{"$f":"VLOOKUP(B167,'[3]LOC FINAL with new Themes'!A:M,13,0)","v":0}]
[null,"Urban Area (Corrected Census 2000)","Urban Area (Corrected Census 2000)","Urban Area (Corrected Census 2000)","Governmental Units ","DOC-Census","Jennifer Holland","Jennifer.L.Holland@census.gov",null,{"$f":"VLOOKUP(B168,'[3]LOC FINAL with new Themes'!A:M,7,0)","v":0},{"$f":"VLOOKUP(B168,'[3]LOC FINAL with new Themes'!A:M,8,0)","v":0},{"$f":"VLOOKUP(B168,'[3]LOC FINAL with new Themes'!A:M,9,0)","v":0},{"$f":"VLOOKUP(B168,'[3]LOC FINAL with new Themes'!A:M,10,0)","v":0},{"$f":"VLOOKUP(B168,'[3]LOC FINAL with new Themes'!A:M,11,0)","v":0},{"$f":"VLOOKUP(B168,'[3]LOC FINAL with new Themes'!A:M,12,0)","v":0},{"$f":"VLOOKUP(B168,'[3]LOC FINAL with new Themes'!A:M,13,0)","v":0}]
[null,null,null,{"$f":"SUBTOTAL(3,D137:D168)","v":32},"Governmental Units Count"]
["133 Urban Areas imagery program data","133 Urban Areas imagery program data",null,{"$f":"IF(C170=0,B170,C170)","v":"133 Urban Areas imagery program data"},"Imagery ","DOD-NGA","William Nellist","William.E.Nellist@nga.mil",null,{"$f":"VLOOKUP(B170,'[3]LOC FINAL with new Themes'!A:M,7,0)","v":0},{"$f":"VLOOKUP(B170,'[3]LOC FINAL with new Themes'!A:M,8,0)","v":0},{"$f":"VLOOKUP(B170,'[3]LOC FINAL with new Themes'!A:M,9,0)","v":0},{"$f":"VLOOKUP(B170,'[3]LOC FINAL with new Themes'!A:M,10,0)","v":0},{"$f":"VLOOKUP(B170,'[3]LOC FINAL with new Themes'!A:M,11,0)","v":0},{"$f":"VLOOKUP(B170,'[3]LOC FINAL with new Themes'!A:M,12,0)","v":0},{"$f":"VLOOKUP(B170,'[3]LOC FINAL with new Themes'!A:M,13,0)","v":0}]
[null,"134 Urban Areas imagery program data",null,"134 Urban Areas imagery program data","Imagery ","DOI-USGS","George Lee","gylee@usgs.gov",null,{"$f":"VLOOKUP(B171,'[3]LOC FINAL with new Themes'!A:M,7,0)","v":0},{"$f":"VLOOKUP(B171,'[3]LOC FINAL with new Themes'!A:M,8,0)","v":0},{"$f":"VLOOKUP(B171,'[3]LOC FINAL with new Themes'!A:M,9,0)","v":0},{"$f":"VLOOKUP(B171,'[3]LOC FINAL with new Themes'!A:M,10,0)","v":0},{"$f":"VLOOKUP(B171,'[3]LOC FINAL with new Themes'!A:M,11,0)","v":0},{"$f":"VLOOKUP(B171,'[3]LOC FINAL with new Themes'!A:M,12,0)","v":0},{"$f":"VLOOKUP(B171,'[3]LOC FINAL with new Themes'!A:M,13,0)","v":0}]
["ADS40 Hurricane Response 7.5' Quadrangle Mosaics","ADS40 Hurricane Response 7.5' Quadrangle Mosaics",null,"ADS40 Hurricane Response 7.5' Quadrangle Mosaics","Imagery ","DOI-USGS","Jim Mauck","jmauck@usgs.gov",null,{"$f":"VLOOKUP(B172,'[3]LOC FINAL with new Themes'!A:M,7,0)","v":0},{"$f":"VLOOKUP(B172,'[3]LOC FINAL with new Themes'!A:M,8,0)","v":0},{"$f":"VLOOKUP(B172,'[3]LOC FINAL with new Themes'!A:M,9,0)","v":0},{"$f":"VLOOKUP(B172,'[3]LOC FINAL with new Themes'!A:M,10,0)","v":0},{"$f":"VLOOKUP(B172,'[3]LOC FINAL with new Themes'!A:M,11,0)","v":0},{"$f":"VLOOKUP(B172,'[3]LOC FINAL with new Themes'!A:M,12,0)","v":0},{"$f":"VLOOKUP(B172,'[3]LOC FINAL with new Themes'!A:M,13,0)","v":0}]
["Digital Orthoimage Quarter Quadrangle (DOQQ) Archive","Digital Orthoimage Quarter Quadrangle (DOQQ) Archive",null,"Digital Orthoimage Quarter Quadrangle (DOQQ) Archive","Imagery ","DOI-USGS",null,null,null,{"$f":"VLOOKUP(B173,'[3]LOC FINAL with new Themes'!A:M,7,0)","v":"DOQQ is static; one data set; this is the POC and data manager. this is the name and maintain three complete with two physically separate on-site and one off-site"},{"$f":"VLOOKUP(B173,'[3]LOC FINAL with new Themes'!A:M,8,0)","v":0},{"$f":"VLOOKUP(B173,'[3]LOC FINAL with new Themes'!A:M,9,0)","v":0},{"$f":"VLOOKUP(B173,'[3]LOC FINAL with new Themes'!A:M,10,0)","v":0},{"$f":"VLOOKUP(B173,'[3]LOC FINAL with new Themes'!A:M,11,0)","v":0},{"$f":"VLOOKUP(B173,'[3]LOC FINAL with new Themes'!A:M,12,0)","v":0},{"$f":"VLOOKUP(B173,'[3]LOC FINAL with new Themes'!A:M,13,0)","v":"S"}]
["Emergency Response Imagery","Emergency Response Imagery","Emergency Response Imagery","Emergency Response Imagery","Imagery ","DOC-NOAA","Mike Aslaksen","mike.Aslaksen@noaa.gov",null,{"$f":"VLOOKUP(B174,'[3]LOC FINAL with new Themes'!A:M,7,0)","v":"20-Multiple      "},{"$f":"VLOOKUP(B174,'[3]LOC FINAL with new Themes'!A:M,8,0)","v":"No"},{"$f":"VLOOKUP(B174,'[3]LOC FINAL with new Themes'!A:M,9,0)","v":"Yes - email reply from Jon Sellars Jon.Sellars@noaa.gov"},{"$f":"VLOOKUP(B174,'[3]LOC FINAL with new Themes'!A:M,10,0)","v":"- Same for the forest frag."},{"$f":"VLOOKUP(B174,'[3]LOC FINAL with new Themes'!A:M,11,0)","v":"Our data can be accessed through the following links: http://storms.ngs.noaagov/eri_page/index.html Gulf Oil Spill:\nhttp://hdds.usgs.gov/hdds2/pub/data/disaster/201004_Oilspill_GulfOfMexico/data/AERIAL_NOAA\nhttp://hdds.usgs.gov/hdds2/pub/data/disaster/201004_Oilspill_GulfOfMexico/data/AERIAL_NOAA_MOSAIC  Haiti Earthquake:\nhttp://hdds.usgs.gov/hdds2/pub/data/disaster/201001_Earthquake_Haiti/data/AERIAL_NOAA\nhttp://hdds.usgs.gov/hdds2/pub/data/disaster/201001_Earthquake_Haiti/data/AERIAL_NOAA_ORTHO\nMexico Earthquake:\nhttp://hdds.usgs.gov/hdds2/pub/data/disaster/201004_Earthquake_Mexico/data/AERIAL_NOAA_MOSAIC \n\n"},{"$f":"VLOOKUP(B174,'[3]LOC FINAL with new Themes'!A:M,12,0)","v":"Described by storm name, event or location."},{"$f":"VLOOKUP(B174,'[3]LOC FINAL with new Themes'!A:M,13,0)","v":"M "}]
[null,null,"Fire, Detection: AVHRR FIMMA , GOES WF-ABBA","Fire, Detection: AVHRR FIMMA , GOES WF-ABBA","Imagery ","USDA"]
["Landsat geometric/terrain corrected level 1T","Landsat geometric/terrain corrected level 1T","Landsat Terrain Corrected Scenes","Landsat Terrain Corrected Scenes","Imagery ","DOI-USGS","Kristi Kline","kkline@usgs.gov",null,{"$f":"VLOOKUP(B176,'[3]LOC FINAL with new Themes'!A:M,7,0)","v":"Landsat updates daily; a series of data sets; this is the POC and data manager; this is the name and maintain three complete with two physically separate on-site and one off-site"},{"$f":"VLOOKUP(B176,'[3]LOC FINAL with new Themes'!A:M,8,0)","v":0},{"$f":"VLOOKUP(B176,'[3]LOC FINAL with new Themes'!A:M,9,0)","v":0},{"$f":"VLOOKUP(B176,'[3]LOC FINAL with new Themes'!A:M,10,0)","v":0},{"$f":"VLOOKUP(B176,'[3]LOC FINAL with new Themes'!A:M,11,0)","v":0},{"$f":"VLOOKUP(B176,'[3]LOC FINAL with new Themes'!A:M,12,0)","v":0},{"$f":"VLOOKUP(B176,'[3]LOC FINAL with new Themes'!A:M,13,0)","v":"S"}]
[null,null,"National  Orthoimagery Dataset - National Map","National  Orthoimagery Dataset - National Map","Imagery ","DOI-USGS"]
["National Aerial Photography Program (NAPP) Data Archive","National Aerial Photography Program (NAPP) Data Archive",null,"National Aerial Photography Program (NAPP) Data Archive","Imagery ","DOI-USGS","Wayne Miller","wamiller@usgs.gov",null,{"$f":"VLOOKUP(B178,'[3]LOC FINAL with new Themes'!A:M,7,0)","v":"NAPP is static; one data set; this is the POC and data manager; this is the name and maintain three complete with two physically separate on-site and one off-site "},{"$f":"VLOOKUP(B178,'[3]LOC FINAL with new Themes'!A:M,8,0)","v":0},{"$f":"VLOOKUP(B178,'[3]LOC FINAL with new Themes'!A:M,9,0)","v":0},{"$f":"VLOOKUP(B178,'[3]LOC FINAL with new Themes'!A:M,10,0)","v":0},{"$f":"VLOOKUP(B178,'[3]LOC FINAL with new Themes'!A:M,11,0)","v":0},{"$f":"VLOOKUP(B178,'[3]LOC FINAL with new Themes'!A:M,12,0)","v":0},{"$f":"VLOOKUP(B178,'[3]LOC FINAL with new Themes'!A:M,13,0)","v":"S"}]
["National Agriculture Imagery Program Data","National Agriculture Imagery Program Data","National Agriculture Imagery Program (NAIP) Archive","National Agriculture Imagery Program (NAIP) Archive","Imagery ","DOI-USGS","Shirley Hall","shirley.hall@wdc.usda.gov",null,{"$f":"VLOOKUP(B179,'[3]LOC FINAL with new Themes'!A:M,7,0)","v":"Shirley identified Dan Good as new contact 'daniel.good@wdc.usda.gov' - need to follow up with either or both"},{"$f":"VLOOKUP(B179,'[3]LOC FINAL with new Themes'!A:M,8,0)","v":0},{"$f":"VLOOKUP(B179,'[3]LOC FINAL with new Themes'!A:M,9,0)","v":0},{"$f":"VLOOKUP(B179,'[3]LOC FINAL with new Themes'!A:M,10,0)","v":0},{"$f":"VLOOKUP(B179,'[3]LOC FINAL with new Themes'!A:M,11,0)","v":0},{"$f":"VLOOKUP(B179,'[3]LOC FINAL with new Themes'!A:M,12,0)","v":0},{"$f":"VLOOKUP(B179,'[3]LOC FINAL with new Themes'!A:M,13,0)","v":0}]
["National Map Orthoimagery Database (TNM Seamless Server) ","National Map Orthoimagery Database (TNM Seamless Server) ",null,"National Map Orthoimagery Database (TNM Seamless Server) ","Imagery ","DOI-USGS","George Lee","gylee@usgs.gov",null,{"$f":"VLOOKUP(B180,'[3]LOC FINAL with new Themes'!A:M,7,0)","v":0},{"$f":"VLOOKUP(B180,'[3]LOC FINAL with new Themes'!A:M,8,0)","v":0},{"$f":"VLOOKUP(B180,'[3]LOC FINAL with new Themes'!A:M,9,0)","v":0},{"$f":"VLOOKUP(B180,'[3]LOC FINAL with new Themes'!A:M,10,0)","v":0},{"$f":"VLOOKUP(B180,'[3]LOC FINAL with new Themes'!A:M,11,0)","v":0},{"$f":"VLOOKUP(B180,'[3]LOC FINAL with new Themes'!A:M,12,0)","v":0},{"$f":"VLOOKUP(B180,'[3]LOC FINAL with new Themes'!A:M,13,0)","v":0}]
[null,null,"Satellite Imagery Archive","Satellite Imagery Archive","Imagery ","USDA-FSA"]
[null,null,null,{"$f":"SUBTOTAL(3,D170:D181)","v":12},"Imagery  Count"]
[null,null,"Crops: Cropland Data Layer",{"$f":"IF(C183=0,B183,C183)","v":"Crops: Cropland Data Layer"},"Land Use-Land Cover ","USDA-NASS"]
[null,null,"Earth Cover, Land: MODIS-based Land Products","Earth Cover, Land: MODIS-based Land Products","Land Use-Land Cover ","USDA -FS (Along with USGS)"]
[null,null,"Earth Cover, Vegetation, Forest: Forest Biomass, Types, Type Groups","Earth Cover, Vegetation, Forest: Forest Biomass, Types, Type Groups","Land Use-Land Cover ","USDA-FS"]
[null,null,"Earth Cover, Vegetation: Percent Forest Canopy","Earth Cover, Vegetation: Percent Forest Canopy","Land Use-Land Cover ","USDA-FS"]
[null,null,"Fire Severity: Monitoring Trends in Burn Severity (MTBS)","Fire Severity: Monitoring Trends in Burn Severity (MTBS)","Land Use-Land Cover ","USDA -FS (Along with USGS)"]
[null,null,"Fire, Detection: Daily Active Fire Mapping","Fire, Detection: Daily Active Fire Mapping","Land Use-Land Cover ","USDA"]
[null,null,"Land Cover Strata Dataset","Land Cover Strata Dataset","Land Use-Land Cover ","USDA-NASS"]
["LANDFIRE Dataset","LANDFIRE Dataset","Land Fire Dataset","Land Fire Dataset","Land Use-Land Cover ",null,null,0,null,{"$f":"VLOOKUP(B190,'[3]LOC FINAL with new Themes'!A:M,7,0)","v":0},{"$f":"VLOOKUP(B190,'[3]LOC FINAL with new Themes'!A:M,8,0)","v":0},{"$f":"VLOOKUP(B190,'[3]LOC FINAL with new Themes'!A:M,9,0)","v":0},{"$f":"VLOOKUP(B190,'[3]LOC FINAL with new Themes'!A:M,10,0)","v":0},{"$f":"VLOOKUP(B190,'[3]LOC FINAL with new Themes'!A:M,11,0)","v":0},{"$f":"VLOOKUP(B190,'[3]LOC FINAL with new Themes'!A:M,12,0)","v":0},{"$f":"VLOOKUP(B190,'[3]LOC FINAL with new Themes'!A:M,13,0)","v":0}]
["National Land Cover Dataset (NLCD)","National Land Cover Dataset (NLCD)","National Land Cover Dataset - GIRAS - 1975","National Land Cover Dataset - GIRAS - 1975","Land Use-Land Cover ","DOI-USGS","Colin Homer","homer@usgs.gov",null,{"$f":"VLOOKUP(B191,'[3]LOC FINAL with new Themes'!A:M,7,0)","v":"The table below summarizes NLCD products available for download from the MRLC website http://www.mrlc.gov/ "},{"$f":"VLOOKUP(B191,'[3]LOC FINAL with new Themes'!A:M,8,0)","v":"No.  The \"manager\" of the data is Jon Dewitz. \nContact Information -   \nJon Dewitz\ndewitz@usgs.gov\n605-594-2715\nNLCD Quality Supervisor\nUSGS Earth Resources Observation and Science Center (EROS)\nMundt Federal Building\n47914 252nd St.\nSioux Falls, SD 57198\nfax 605-594-6529\n"},{"$f":"VLOOKUP(B191,'[3]LOC FINAL with new Themes'!A:M,9,0)","v":"Joyce Fry is the POC. \nContact information - \nJoyce Fry, Geographer\nUnited States Geological Survey (USGS)\nEarth Resources Observation and  Science (EROS) Center\nMundt Federal Building\n47914 252nd Street\nSioux Falls, South Dakota 57198\n(P)  605.594.2739\n(F)  605.594.6529\n(e)  jfry@usgs.gov \n"},{"$f":"VLOOKUP(B191,'[3]LOC FINAL with new Themes'!A:M,10,0)","v":"Every 5 years"},{"$f":"VLOOKUP(B191,'[3]LOC FINAL with new Themes'!A:M,11,0)","v":"Yes, there is an archive/backup of the dataset through the EROS Long Term Archive (LTA) group.  I will need to get back to if you need additional information regarding the archive process. "},{"$f":"VLOOKUP(B191,'[3]LOC FINAL with new Themes'!A:M,12,0)","v":"National Land Cover Database or NLCD along with the era number, either 1992 or 2001, or 2006. "},{"$f":"VLOOKUP(B191,'[3]LOC FINAL with new Themes'!A:M,13,0)","v":"S"}]
[null,null,"National Land Cover Dataset - National Map","National Land Cover Dataset - National Map","Land Use-Land Cover ","DOI-USGS"]
[null,null,"National Land Cover Dataset - National Map - 1991","National Land Cover Dataset - National Map - 1991","Land Use-Land Cover ","DOI-USGS"]
[null,null,"National Land Cover Dataset - National Map - 2001","National Land Cover Dataset - National Map - 2001","Land Use-Land Cover ","DOI-USGS"]
[null,null,"National Land Cover Dataset - National Map 2006","National Land Cover Dataset - National Map 2006","Land Use-Land Cover ","DOI-USGS"]
["National Land Cover Dataset (NLCD)","National Land Cover Dataset (NLCD)","National Land Cover Dataset (NLCD)","National Land Cover Dataset (NLCD)","Land Use-Land Cover ","DOI-USGS","Colin Homer","homer@usgs.gov",null,{"$f":"VLOOKUP(B196,'[3]LOC FINAL with new Themes'!A:M,7,0)","v":"The table below summarizes NLCD products available for download from the MRLC website http://www.mrlc.gov/ "},{"$f":"VLOOKUP(B196,'[3]LOC FINAL with new Themes'!A:M,8,0)","v":"No.  The \"manager\" of the data is Jon Dewitz. \nContact Information -   \nJon Dewitz\ndewitz@usgs.gov\n605-594-2715\nNLCD Quality Supervisor\nUSGS Earth Resources Observation and Science Center (EROS)\nMundt Federal Building\n47914 252nd St.\nSioux Falls, SD 57198\nfax 605-594-6529\n"},{"$f":"VLOOKUP(B196,'[3]LOC FINAL with new Themes'!A:M,9,0)","v":"Joyce Fry is the POC. \nContact information - \nJoyce Fry, Geographer\nUnited States Geological Survey (USGS)\nEarth Resources Observation and  Science (EROS) Center\nMundt Federal Building\n47914 252nd Street\nSioux Falls, South Dakota 57198\n(P)  605.594.2739\n(F)  605.594.6529\n(e)  jfry@usgs.gov \n"},{"$f":"VLOOKUP(B196,'[3]LOC FINAL with new Themes'!A:M,10,0)","v":"Every 5 years"},{"$f":"VLOOKUP(B196,'[3]LOC FINAL with new Themes'!A:M,11,0)","v":"Yes, there is an archive/backup of the dataset through the EROS Long Term Archive (LTA) group.  I will need to get back to if you need additional information regarding the archive process. "},{"$f":"VLOOKUP(B196,'[3]LOC FINAL with new Themes'!A:M,12,0)","v":"National Land Cover Database or NLCD along with the era number, either 1992 or 2001, or 2006. "},{"$f":"VLOOKUP(B196,'[3]LOC FINAL with new Themes'!A:M,13,0)","v":"S"}]
[null,null,"National Land Cover Percent Canopy - National Map - 1991","National Land Cover Percent Canopy - National Map - 1991","Land Use-Land Cover ","DOI-USGS"]
[null,null,"National Land Cover Percent Imperviousness - National Map - 2001","National Land Cover Percent Imperviousness - National Map - 2001","Land Use-Land Cover ","DOI-USGS"]
[null,null,"National Land Cover Percent Imperviousness - National Map - 2006","National Land Cover Percent Imperviousness - National Map - 2006","Land Use-Land Cover ","DOI-USGS"]
["National Parks Data","National Parks Data","National Parks Data","National Parks Data","Land Use-Land Cover ","DOI-NPS","Roger Johnson ","Roger_M_Johnson@nps.gov",null,{"$f":"VLOOKUP(B200,'[3]LOC FINAL with new Themes'!A:M,7,0)","v":"undeliverable email- neeed to identify new contact"},{"$f":"VLOOKUP(B200,'[3]LOC FINAL with new Themes'!A:M,8,0)","v":0},{"$f":"VLOOKUP(B200,'[3]LOC FINAL with new Themes'!A:M,9,0)","v":0},{"$f":"VLOOKUP(B200,'[3]LOC FINAL with new Themes'!A:M,10,0)","v":0},{"$f":"VLOOKUP(B200,'[3]LOC FINAL with new Themes'!A:M,11,0)","v":0},{"$f":"VLOOKUP(B200,'[3]LOC FINAL with new Themes'!A:M,12,0)","v":0},{"$f":"VLOOKUP(B200,'[3]LOC FINAL with new Themes'!A:M,13,0)","v":0}]
[null,null,null,{"$f":"SUBTOTAL(3,D183:D200)","v":18},"Land Use-Land Cover  Count"]
["Assisted Housing (census geography or point-based) see http://www.huduser.org/picture2000/","Assisted Housing (census geography or point-based)",null,{"$f":"IF(C202=0,B202,C202)","v":"Assisted Housing (census geography or point-based)"},"Real Property","HUD","Jon Sperling","jon.sperling@hud.gov",null,{"$f":"VLOOKUP(B202,'[3]LOC FINAL with new Themes'!A:M,7,0)","v":0},{"$f":"VLOOKUP(B202,'[3]LOC FINAL with new Themes'!A:M,8,0)","v":0},{"$f":"VLOOKUP(B202,'[3]LOC FINAL with new Themes'!A:M,9,0)","v":0},{"$f":"VLOOKUP(B202,'[3]LOC FINAL with new Themes'!A:M,10,0)","v":0},{"$f":"VLOOKUP(B202,'[3]LOC FINAL with new Themes'!A:M,11,0)","v":0},{"$f":"VLOOKUP(B202,'[3]LOC FINAL with new Themes'!A:M,12,0)","v":0},{"$f":"VLOOKUP(B202,'[3]LOC FINAL with new Themes'!A:M,13,0)","v":0}]
["Enterprise Zones, Empowerment Communities, Revitalization Areas, Qualified Census Tracts, etc.  (census geography based)","Enterprise Zones, Empowerment Communities, Revitalization Areas, Qualified Census Tracts, etc.  (census geography based)",null,"Enterprise Zones, Empowerment Communities, Revitalization Areas, Qualified Census Tracts, etc.  (census geography based)","Real Property","HUD","Jon Sperling","jon.sperling@hud.gov",null,{"$f":"VLOOKUP(B203,'[3]LOC FINAL with new Themes'!A:M,7,0)","v":0},{"$f":"VLOOKUP(B203,'[3]LOC FINAL with new Themes'!A:M,8,0)","v":0},{"$f":"VLOOKUP(B203,'[3]LOC FINAL with new Themes'!A:M,9,0)","v":0},{"$f":"VLOOKUP(B203,'[3]LOC FINAL with new Themes'!A:M,10,0)","v":0},{"$f":"VLOOKUP(B203,'[3]LOC FINAL with new Themes'!A:M,11,0)","v":0},{"$f":"VLOOKUP(B203,'[3]LOC FINAL with new Themes'!A:M,12,0)","v":0},{"$f":"VLOOKUP(B203,'[3]LOC FINAL with new Themes'!A:M,13,0)","v":0}]
["Federal building location point ","Federal building location point ","Federal building location point ","Federal building location point ","Real Property ","GSA","Sandra Downie","sandra.downie@gsa.gov",null,{"$f":"VLOOKUP(B204,'[3]LOC FINAL with new Themes'!A:M,7,0)","v":0},{"$f":"VLOOKUP(B204,'[3]LOC FINAL with new Themes'!A:M,8,0)","v":0},{"$f":"VLOOKUP(B204,'[3]LOC FINAL with new Themes'!A:M,9,0)","v":0},{"$f":"VLOOKUP(B204,'[3]LOC FINAL with new Themes'!A:M,10,0)","v":0},{"$f":"VLOOKUP(B204,'[3]LOC FINAL with new Themes'!A:M,11,0)","v":0},{"$f":"VLOOKUP(B204,'[3]LOC FINAL with new Themes'!A:M,12,0)","v":0},{"$f":"VLOOKUP(B204,'[3]LOC FINAL with new Themes'!A:M,13,0)","v":0}]
["Federal building location polygon","Federal building location polygon","Federal building location polygon","Federal building location polygon","Real Property ","GSA","Sandra Downie","sandra.downie@gsa.gov",null,{"$f":"VLOOKUP(B205,'[3]LOC FINAL with new Themes'!A:M,7,0)","v":0},{"$f":"VLOOKUP(B205,'[3]LOC FINAL with new Themes'!A:M,8,0)","v":0},{"$f":"VLOOKUP(B205,'[3]LOC FINAL with new Themes'!A:M,9,0)","v":0},{"$f":"VLOOKUP(B205,'[3]LOC FINAL with new Themes'!A:M,10,0)","v":0},{"$f":"VLOOKUP(B205,'[3]LOC FINAL with new Themes'!A:M,11,0)","v":0},{"$f":"VLOOKUP(B205,'[3]LOC FINAL with new Themes'!A:M,12,0)","v":0},{"$f":"VLOOKUP(B205,'[3]LOC FINAL with new Themes'!A:M,13,0)","v":0}]
["Federal land area facility location point","Federal land area facility location point","Federal land area facility location point","Federal land area facility location point","Real Property ","GSA","Sandra Downie","sandra.downie@gsa.gov",null,{"$f":"VLOOKUP(B206,'[3]LOC FINAL with new Themes'!A:M,7,0)","v":0},{"$f":"VLOOKUP(B206,'[3]LOC FINAL with new Themes'!A:M,8,0)","v":0},{"$f":"VLOOKUP(B206,'[3]LOC FINAL with new Themes'!A:M,9,0)","v":0},{"$f":"VLOOKUP(B206,'[3]LOC FINAL with new Themes'!A:M,10,0)","v":0},{"$f":"VLOOKUP(B206,'[3]LOC FINAL with new Themes'!A:M,11,0)","v":0},{"$f":"VLOOKUP(B206,'[3]LOC FINAL with new Themes'!A:M,12,0)","v":0},{"$f":"VLOOKUP(B206,'[3]LOC FINAL with new Themes'!A:M,13,0)","v":0}]
["Federal land area facility location polygon","Federal land area facility location polygon","Federal land area facility location polygon","Federal land area facility location polygon","Real Property ","GSA","Sandra Downie","sandra.downie@gsa.gov",null,{"$f":"VLOOKUP(B207,'[3]LOC FINAL with new Themes'!A:M,7,0)","v":0},{"$f":"VLOOKUP(B207,'[3]LOC FINAL with new Themes'!A:M,8,0)","v":0},{"$f":"VLOOKUP(B207,'[3]LOC FINAL with new Themes'!A:M,9,0)","v":0},{"$f":"VLOOKUP(B207,'[3]LOC FINAL with new Themes'!A:M,10,0)","v":0},{"$f":"VLOOKUP(B207,'[3]LOC FINAL with new Themes'!A:M,11,0)","v":0},{"$f":"VLOOKUP(B207,'[3]LOC FINAL with new Themes'!A:M,12,0)","v":0},{"$f":"VLOOKUP(B207,'[3]LOC FINAL with new Themes'!A:M,13,0)","v":0}]
["National Map - Structures Dataset","National Map - Structures Dataset","National Structures Dataset - National Map","National Structures Dataset - National Map","Real Property ","DOI-USGS","Paul Wiese","pmwiese@usgs.gov",null,{"$f":"VLOOKUP(B208,'[3]LOC FINAL with new Themes'!A:M,7,0)","v":"National Map updates monthly; a series of data sets; this is the POC and data manager; this is the name and maintain three complete with two physically separate on-site and one off-site"},{"$f":"VLOOKUP(B208,'[3]LOC FINAL with new Themes'!A:M,8,0)","v":0},{"$f":"VLOOKUP(B208,'[3]LOC FINAL with new Themes'!A:M,9,0)","v":0},{"$f":"VLOOKUP(B208,'[3]LOC FINAL with new Themes'!A:M,10,0)","v":0},{"$f":"VLOOKUP(B208,'[3]LOC FINAL with new Themes'!A:M,11,0)","v":0},{"$f":"VLOOKUP(B208,'[3]LOC FINAL with new Themes'!A:M,12,0)","v":0},{"$f":"VLOOKUP(B208,'[3]LOC FINAL with new Themes'!A:M,13,0)","v":"S"}]
[null,null,null,{"$f":"SUBTOTAL(3,D202:D208)","v":7},"Real Property Count"]
[null,"Military Installation","Military Installation",{"$f":"IF(C210=0,B210,C210)","v":"Military Installation"},"Real Property\nCultural & Demographic Statistics","DOC-Census","Jennifer Holland","Jennifer.L.Holland@census.gov",null,{"$f":"VLOOKUP(B210,'[3]LOC FINAL with new Themes'!A:M,7,0)","v":0},{"$f":"VLOOKUP(B210,'[3]LOC FINAL with new Themes'!A:M,8,0)","v":0},{"$f":"VLOOKUP(B210,'[3]LOC FINAL with new Themes'!A:M,9,0)","v":0},{"$f":"VLOOKUP(B210,'[3]LOC FINAL with new Themes'!A:M,10,0)","v":0},{"$f":"VLOOKUP(B210,'[3]LOC FINAL with new Themes'!A:M,11,0)","v":0},{"$f":"VLOOKUP(B210,'[3]LOC FINAL with new Themes'!A:M,12,0)","v":0},{"$f":"VLOOKUP(B210,'[3]LOC FINAL with new Themes'!A:M,13,0)","v":0}]
[null,null,null,{"$f":"SUBTOTAL(3,D210:D210)","v":1},"Real Property\nCultural & Demographic Statistics Count"]
["Common Resource Area (CRA)","Common Resource Area (CRA)","Common Resource Area (CRA)",{"$f":"IF(C212=0,B212,C212)","v":"Common Resource Area (CRA)"},"Soils ","USDA-NRCS","David Hoover","David.Hoover@wdc.usda.gov",null,{"$f":"VLOOKUP(B212,'[3]LOC FINAL with new Themes'!A:M,7,0)","v":0},{"$f":"VLOOKUP(B212,'[3]LOC FINAL with new Themes'!A:M,8,0)","v":0},{"$f":"VLOOKUP(B212,'[3]LOC FINAL with new Themes'!A:M,9,0)","v":0},{"$f":"VLOOKUP(B212,'[3]LOC FINAL with new Themes'!A:M,10,0)","v":0},{"$f":"VLOOKUP(B212,'[3]LOC FINAL with new Themes'!A:M,11,0)","v":0},{"$f":"VLOOKUP(B212,'[3]LOC FINAL with new Themes'!A:M,12,0)","v":0},{"$f":"VLOOKUP(B212,'[3]LOC FINAL with new Themes'!A:M,13,0)","v":0}]
["Major Land Resource Area (MLRA)","Major Land Resource Area (MLRA)","Major Land Resource Area (MLRA)","Major Land Resource Area (MLRA)","Soils ","USDA-NRCS","David Hoover","David.Hoover@wdc.usda.gov",null,{"$f":"VLOOKUP(B213,'[3]LOC FINAL with new Themes'!A:M,7,0)","v":"undeliverable email- neeed to identify new contact"},{"$f":"VLOOKUP(B213,'[3]LOC FINAL with new Themes'!A:M,8,0)","v":0},{"$f":"VLOOKUP(B213,'[3]LOC FINAL with new Themes'!A:M,9,0)","v":0},{"$f":"VLOOKUP(B213,'[3]LOC FINAL with new Themes'!A:M,10,0)","v":0},{"$f":"VLOOKUP(B213,'[3]LOC FINAL with new Themes'!A:M,11,0)","v":0},{"$f":"VLOOKUP(B213,'[3]LOC FINAL with new Themes'!A:M,12,0)","v":0},{"$f":"VLOOKUP(B213,'[3]LOC FINAL with new Themes'!A:M,13,0)","v":0}]
["National Cooperative Soil Survey (NCSS)","National Cooperative Soil Survey (NCSS)","National Cooperative Soil Characterization Database","National Cooperative Soil Characterization Database","Soils ","USDA-NRCS","Larry West","Larry.West@lin.usda.gov",null,{"$f":"VLOOKUP(B214,'[3]LOC FINAL with new Themes'!A:M,7,0)","v":"We have our Soil Survey Geographic database called SSURGO which is made available through the following sites:\nWeb Soil Survey:    http://websoilsurvey.nrcs.usda.gov/app/\nSoil Data Mart:     http://soildatamart.nrcs.usda.gov/\nSoil Data Access:   http://sdmdataaccess.nrcs.usda.gov\n\nWe also have: \nLab Soil Survey Lab Characterization Data (Point data): http://ssldata.nrcs.usda.gov/ aka NCSS Characterization Database\nSoil Series Classification Database http://soils.usda.gov/technical/classification/scfile/index.html\nU.S. General Soil Map (STATSGO2)\nMajor Land Resource Area (MLRA) http://soils.usda.gov/survey/geography/mlra/\n             Common Resource Areas (CRA) \n\n"},{"$f":"VLOOKUP(B214,'[3]LOC FINAL with new Themes'!A:M,8,0)","v":"? No, I am a Program Manager. Various other people have roles of maintaining the data. "},{"$f":"VLOOKUP(B214,'[3]LOC FINAL with new Themes'!A:M,9,0)","v":"I am a general information POC for all things soil survey related. For more technical aspects on our data sets a good POC would be David Hoover, National Leader for Soil Business Systems or someone on his staff. His contact number is 402-437-4013 or email at david.hoover@lin.usda.gov. "},{"$f":"VLOOKUP(B214,'[3]LOC FINAL with new Themes'!A:M,10,0)","v":"Our data sets are constantly being updated by about 1000 soil and plant scientists in several agencies. "},{"$f":"VLOOKUP(B214,'[3]LOC FINAL with new Themes'!A:M,11,0)","v":"Our data sets are archived, but I don’t know how far back. I will have to get back to you on that. It is my understanding that archived sets are not easily accessible.  We have archive data for SSURGO (Soil Data Warehouse from mid 2000’s or earlier – Jim Fortner or Jennifer Sweet may be able to confirm or provide more detail; We also have archive data for STATSGO (circa 1994;1996) and for MLRA (1978; 2001; 2006) in local holdings.  Not sure about lab data archives, Henry Ferguson or Larry West can confirm.  "},{"$f":"VLOOKUP(B214,'[3]LOC FINAL with new Themes'!A:M,12,0)","v":"? the Lab Characterization Data is also known as the “NCSS Characterization Database”\nAdded Common Resource Area geographic database (CRA)."},{"$f":"VLOOKUP(B214,'[3]LOC FINAL with new Themes'!A:M,13,0)","v":"P"}]
["Soil Survey Geographic Database (SSURGO)","Soil Survey Geographic Database (SSURGO)","Soil Survey Geographic Database (SSURGO)","Soil Survey Geographic Database (SSURGO)","Soils ","USDA-NRCS","David Hoover","David.Hoover@wdc.usda.gov",null,{"$f":"VLOOKUP(B215,'[3]LOC FINAL with new Themes'!A:M,7,0)","v":"undeliverable email- neeed to identify new contact"},{"$f":"VLOOKUP(B215,'[3]LOC FINAL with new Themes'!A:M,8,0)","v":0},{"$f":"VLOOKUP(B215,'[3]LOC FINAL with new Themes'!A:M,9,0)","v":0},{"$f":"VLOOKUP(B215,'[3]LOC FINAL with new Themes'!A:M,10,0)","v":0},{"$f":"VLOOKUP(B215,'[3]LOC FINAL with new Themes'!A:M,11,0)","v":0},{"$f":"VLOOKUP(B215,'[3]LOC FINAL with new Themes'!A:M,12,0)","v":0},{"$f":"VLOOKUP(B215,'[3]LOC FINAL with new Themes'!A:M,13,0)","v":0}]
["U.S. General Soil Map (STATSGO2)","U.S. General Soil Map (STATSGO2)","U.S. General Soil Map (STATSGO2)","U.S. General Soil Map (STATSGO2)","Soils ","USDA-NRCS","David Hoover","David.Hoover@wdc.usda.gov",null,{"$f":"VLOOKUP(B216,'[3]LOC FINAL with new Themes'!A:M,7,0)","v":"undeliverable email- neeed to identify new contact"},{"$f":"VLOOKUP(B216,'[3]LOC FINAL with new Themes'!A:M,8,0)","v":0},{"$f":"VLOOKUP(B216,'[3]LOC FINAL with new Themes'!A:M,9,0)","v":0},{"$f":"VLOOKUP(B216,'[3]LOC FINAL with new Themes'!A:M,10,0)","v":0},{"$f":"VLOOKUP(B216,'[3]LOC FINAL with new Themes'!A:M,11,0)","v":0},{"$f":"VLOOKUP(B216,'[3]LOC FINAL with new Themes'!A:M,12,0)","v":0},{"$f":"VLOOKUP(B216,'[3]LOC FINAL with new Themes'!A:M,13,0)","v":0}]
[null,null,null,{"$f":"SUBTOTAL(3,D212:D216)","v":5},"Soils  Count"]
[null,"Address Range-Feature Name Relationship File","Address Range-Feature Name Relationship File",{"$f":"IF(C218=0,B218,C218)","v":"Address Range-Feature Name Relationship File"},"Transportation ","DOC-Census","Jennifer Holland","Jennifer.L.Holland@census.gov",null,{"$f":"VLOOKUP(B218,'[3]LOC FINAL with new Themes'!A:M,7,0)","v":0},{"$f":"VLOOKUP(B218,'[3]LOC FINAL with new Themes'!A:M,8,0)","v":0},{"$f":"VLOOKUP(B218,'[3]LOC FINAL with new Themes'!A:M,9,0)","v":0},{"$f":"VLOOKUP(B218,'[3]LOC FINAL with new Themes'!A:M,10,0)","v":0},{"$f":"VLOOKUP(B218,'[3]LOC FINAL with new Themes'!A:M,11,0)","v":0},{"$f":"VLOOKUP(B218,'[3]LOC FINAL with new Themes'!A:M,12,0)","v":0},{"$f":"VLOOKUP(B218,'[3]LOC FINAL with new Themes'!A:M,13,0)","v":0}]
[null,"Address Ranges Relationship File","Address Ranges Relationship File","Address Ranges Relationship File","Transportation ","DOC-Census","Jennifer Holland","Jennifer.L.Holland@census.gov",null,{"$f":"VLOOKUP(B219,'[3]LOC FINAL with new Themes'!A:M,7,0)","v":0},{"$f":"VLOOKUP(B219,'[3]LOC FINAL with new Themes'!A:M,8,0)","v":0},{"$f":"VLOOKUP(B219,'[3]LOC FINAL with new Themes'!A:M,9,0)","v":0},{"$f":"VLOOKUP(B219,'[3]LOC FINAL with new Themes'!A:M,10,0)","v":0},{"$f":"VLOOKUP(B219,'[3]LOC FINAL with new Themes'!A:M,11,0)","v":0},{"$f":"VLOOKUP(B219,'[3]LOC FINAL with new Themes'!A:M,12,0)","v":0},{"$f":"VLOOKUP(B219,'[3]LOC FINAL with new Themes'!A:M,13,0)","v":0}]
[null,"All Roads","All Roads","All Roads","Transportation ","DOC-Census","Jennifer Holland","Jennifer.L.Holland@census.gov",null,{"$f":"VLOOKUP(B220,'[3]LOC FINAL with new Themes'!A:M,7,0)","v":0},{"$f":"VLOOKUP(B220,'[3]LOC FINAL with new Themes'!A:M,8,0)","v":0},{"$f":"VLOOKUP(B220,'[3]LOC FINAL with new Themes'!A:M,9,0)","v":0},{"$f":"VLOOKUP(B220,'[3]LOC FINAL with new Themes'!A:M,10,0)","v":0},{"$f":"VLOOKUP(B220,'[3]LOC FINAL with new Themes'!A:M,11,0)","v":0},{"$f":"VLOOKUP(B220,'[3]LOC FINAL with new Themes'!A:M,12,0)","v":0},{"$f":"VLOOKUP(B220,'[3]LOC FINAL with new Themes'!A:M,13,0)","v":0}]
["Inland Electronic Navigation Charts (IENC)","Inland Electronic Navigation Charts (IENC)","Inland Electronic Navigation Charts (IENC)","Inland Electronic Navigation Charts (IENC)","Transportation ","DOD-USACE","Joel Schlagel","Joel.D.Schlagel@erdc.usace.army.mil ",null,{"$f":"VLOOKUP(B221,'[3]LOC FINAL with new Themes'!A:M,7,0)","v":0},{"$f":"VLOOKUP(B221,'[3]LOC FINAL with new Themes'!A:M,8,0)","v":0},{"$f":"VLOOKUP(B221,'[3]LOC FINAL with new Themes'!A:M,9,0)","v":0},{"$f":"VLOOKUP(B221,'[3]LOC FINAL with new Themes'!A:M,10,0)","v":0},{"$f":"VLOOKUP(B221,'[3]LOC FINAL with new Themes'!A:M,11,0)","v":0},{"$f":"VLOOKUP(B221,'[3]LOC FINAL with new Themes'!A:M,12,0)","v":0},{"$f":"VLOOKUP(B221,'[3]LOC FINAL with new Themes'!A:M,13,0)","v":0}]
[null,null,"National Interagency Trails Dataset","National Interagency Trails Dataset","Transportation ","USDA"]
["National Map - Transportation Dataset","National Map - Transportation Dataset","National Transportation Dataset - National Map","National Transportation Dataset - National Map","Transportation ","DOI-USGS","Paul Wiese","pmwiese@usgs.gov",null,{"$f":"VLOOKUP(B223,'[3]LOC FINAL with new Themes'!A:M,7,0)","v":0},{"$f":"VLOOKUP(B223,'[3]LOC FINAL with new Themes'!A:M,8,0)","v":0},{"$f":"VLOOKUP(B223,'[3]LOC FINAL with new Themes'!A:M,9,0)","v":0},{"$f":"VLOOKUP(B223,'[3]LOC FINAL with new Themes'!A:M,10,0)","v":0},{"$f":"VLOOKUP(B223,'[3]LOC FINAL with new Themes'!A:M,11,0)","v":0},{"$f":"VLOOKUP(B223,'[3]LOC FINAL with new Themes'!A:M,12,0)","v":0},{"$f":"VLOOKUP(B223,'[3]LOC FINAL with new Themes'!A:M,13,0)","v":0}]
["NTAD","NTAD","NTAD","NTAD","Transportation ","DOT-BTS","Robert Monniere","robert.monniere@dot.gov",null,{"$f":"VLOOKUP(B224,'[3]LOC FINAL with new Themes'!A:M,7,0)","v":0},{"$f":"VLOOKUP(B224,'[3]LOC FINAL with new Themes'!A:M,8,0)","v":0},{"$f":"VLOOKUP(B224,'[3]LOC FINAL with new Themes'!A:M,9,0)","v":0},{"$f":"VLOOKUP(B224,'[3]LOC FINAL with new Themes'!A:M,10,0)","v":0},{"$f":"VLOOKUP(B224,'[3]LOC FINAL with new Themes'!A:M,11,0)","v":0},{"$f":"VLOOKUP(B224,'[3]LOC FINAL with new Themes'!A:M,12,0)","v":0},{"$f":"VLOOKUP(B224,'[3]LOC FINAL with new Themes'!A:M,13,0)","v":0}]
[null,null,"NTAD (airports)","NTAD (airports)","Transportation ","DOT-BTS"]
[null,null,"NTAD (Rail)","NTAD (Rail)","Transportation ","DOT-BTS"]
["NTAD (TransitLines) ","NTAD (TransitLines) ","NTAD (TransitLines) ","NTAD (TransitLines) ","Transportation ","DOT-BTS","Robert Monniere ","robert.monniere@dot.gov \n",null,{"$f":"VLOOKUP(B227,'[3]LOC FINAL with new Themes'!A:M,7,0)","v":0},{"$f":"VLOOKUP(B227,'[3]LOC FINAL with new Themes'!A:M,8,0)","v":0},{"$f":"VLOOKUP(B227,'[3]LOC FINAL with new Themes'!A:M,9,0)","v":0},{"$f":"VLOOKUP(B227,'[3]LOC FINAL with new Themes'!A:M,10,0)","v":0},{"$f":"VLOOKUP(B227,'[3]LOC FINAL with new Themes'!A:M,11,0)","v":0},{"$f":"VLOOKUP(B227,'[3]LOC FINAL with new Themes'!A:M,12,0)","v":0},{"$f":"VLOOKUP(B227,'[3]LOC FINAL with new Themes'!A:M,13,0)","v":0}]
["NTAD (TransitStation) ","NTAD (TransitStation) ","NTAD (TransitStation) ","NTAD (TransitStation) ","Transportation ","DOT-BTS","Robert Monniere ","robert.monniere@dot.gov ",null,{"$f":"VLOOKUP(B228,'[3]LOC FINAL with new Themes'!A:M,7,0)","v":0},{"$f":"VLOOKUP(B228,'[3]LOC FINAL with new Themes'!A:M,8,0)","v":0},{"$f":"VLOOKUP(B228,'[3]LOC FINAL with new Themes'!A:M,9,0)","v":0},{"$f":"VLOOKUP(B228,'[3]LOC FINAL with new Themes'!A:M,10,0)","v":0},{"$f":"VLOOKUP(B228,'[3]LOC FINAL with new Themes'!A:M,11,0)","v":0},{"$f":"VLOOKUP(B228,'[3]LOC FINAL with new Themes'!A:M,12,0)","v":0},{"$f":"VLOOKUP(B228,'[3]LOC FINAL with new Themes'!A:M,13,0)","v":0}]
[null,"Primary and Secondary Roads","Primary and Secondary Roads",{"$f":"IF(C229=0,#REF!,C229)","v":"Primary and Secondary Roads"},"Transportation ","DOC-Census","Jennifer Holland","Jennifer.L.Holland@census.gov",null,{"$f":"VLOOKUP(B229,'[3]LOC FINAL with new Themes'!A:M,7,0)","v":0},{"$f":"VLOOKUP(B229,'[3]LOC FINAL with new Themes'!A:M,8,0)","v":0},{"$f":"VLOOKUP(B229,'[3]LOC FINAL with new Themes'!A:M,9,0)","v":0},{"$f":"VLOOKUP(B229,'[3]LOC FINAL with new Themes'!A:M,10,0)","v":0},{"$f":"VLOOKUP(B229,'[3]LOC FINAL with new Themes'!A:M,11,0)","v":0},{"$f":"VLOOKUP(B229,'[3]LOC FINAL with new Themes'!A:M,12,0)","v":0},{"$f":"VLOOKUP(B229,'[3]LOC FINAL with new Themes'!A:M,13,0)","v":0}]
[null,"Primary Roads","Primary Roads",{"$f":"IF(C230=0,B230,C230)","v":"Primary Roads"},"Transportation ","DOC-Census","Jennifer Holland","Jennifer.L.Holland@census.gov",null,{"$f":"VLOOKUP(B230,'[3]LOC FINAL with new Themes'!A:M,7,0)","v":0},{"$f":"VLOOKUP(B230,'[3]LOC FINAL with new Themes'!A:M,8,0)","v":0},{"$f":"VLOOKUP(B230,'[3]LOC FINAL with new Themes'!A:M,9,0)","v":0},{"$f":"VLOOKUP(B230,'[3]LOC FINAL with new Themes'!A:M,10,0)","v":0},{"$f":"VLOOKUP(B230,'[3]LOC FINAL with new Themes'!A:M,11,0)","v":0},{"$f":"VLOOKUP(B230,'[3]LOC FINAL with new Themes'!A:M,12,0)","v":0},{"$f":"VLOOKUP(B230,'[3]LOC FINAL with new Themes'!A:M,13,0)","v":0}]
["TIGER (Roads/Rail)","TIGER (Roads/Rail)",null,{"$f":"IF(C231=0,B231,C231)","v":"TIGER (Roads/Rail)"},"Transportation ","DOC-Census","Randy Fusaro","randy.j.fusaro@census.gov",null,{"$f":"VLOOKUP(B231,'[3]LOC FINAL with new Themes'!A:M,7,0)","v":0},{"$f":"VLOOKUP(B231,'[3]LOC FINAL with new Themes'!A:M,8,0)","v":0},{"$f":"VLOOKUP(B231,'[3]LOC FINAL with new Themes'!A:M,9,0)","v":0},{"$f":"VLOOKUP(B231,'[3]LOC FINAL with new Themes'!A:M,10,0)","v":0},{"$f":"VLOOKUP(B231,'[3]LOC FINAL with new Themes'!A:M,11,0)","v":0},{"$f":"VLOOKUP(B231,'[3]LOC FINAL with new Themes'!A:M,12,0)","v":0},{"$f":"VLOOKUP(B231,'[3]LOC FINAL with new Themes'!A:M,13,0)","v":0}]
[null,"Traffic Analysis Zone (Census 2000)","Traffic Analysis Zone (Census 2000)",{"$f":"IF(C232=0,B232,C232)","v":"Traffic Analysis Zone (Census 2000)"},"Transportation ","DOC-Census","Jennifer Holland","Jennifer.L.Holland@census.gov",null,{"$f":"VLOOKUP(B232,'[3]LOC FINAL with new Themes'!A:M,7,0)","v":0},{"$f":"VLOOKUP(B232,'[3]LOC FINAL with new Themes'!A:M,8,0)","v":0},{"$f":"VLOOKUP(B232,'[3]LOC FINAL with new Themes'!A:M,9,0)","v":0},{"$f":"VLOOKUP(B232,'[3]LOC FINAL with new Themes'!A:M,10,0)","v":0},{"$f":"VLOOKUP(B232,'[3]LOC FINAL with new Themes'!A:M,11,0)","v":0},{"$f":"VLOOKUP(B232,'[3]LOC FINAL with new Themes'!A:M,12,0)","v":0},{"$f":"VLOOKUP(B232,'[3]LOC FINAL with new Themes'!A:M,13,0)","v":0}]
[null,null,null,{"$f":"SUBTOTAL(3,D218:D232)","v":15},"Transportation  Count"]
[null,null,"Pipelines",{"$f":"IF(C234=0,B234,C234)","v":"Pipelines"},"Utilities ","DOI-BOEM","Doug Vandegraft","Doug.Vandegraft@boem.gov"]
[null,null,"Platforms",{"$f":"IF(C235=0,B235,C235)","v":"Platforms"},"Utilities ","DOI-MMS","Doug Vandegraft","Doug.Vandegraft@boem.gov"]
[null,null,null,{"$f":"SUBTOTAL(3,D234:D235)","v":2},"Utilities  Count"]
[null,"Area Hydrography (2010 Census)","Area Hydrography (2010 Census)",{"$f":"IF(C237=0,B237,C237)","v":"Area Hydrography (2010 Census)"},"Water -- Inland","DOC-Census","Jennifer Holland","Jennifer.L.Holland@census.gov",null,{"$f":"VLOOKUP(B237,'[3]LOC FINAL with new Themes'!A:M,7,0)","v":0},{"$f":"VLOOKUP(B237,'[3]LOC FINAL with new Themes'!A:M,8,0)","v":0},{"$f":"VLOOKUP(B237,'[3]LOC FINAL with new Themes'!A:M,9,0)","v":0},{"$f":"VLOOKUP(B237,'[3]LOC FINAL with new Themes'!A:M,10,0)","v":0},{"$f":"VLOOKUP(B237,'[3]LOC FINAL with new Themes'!A:M,11,0)","v":0},{"$f":"VLOOKUP(B237,'[3]LOC FINAL with new Themes'!A:M,12,0)","v":0},{"$f":"VLOOKUP(B237,'[3]LOC FINAL with new Themes'!A:M,13,0)","v":0}]
[null,"Linear Water Features","Linear Water Features","Linear Water Features","Water -- Inland","DOC-Census","Jennifer Holland","Jennifer.L.Holland@census.gov",null,{"$f":"VLOOKUP(B238,'[3]LOC FINAL with new Themes'!A:M,7,0)","v":0},{"$f":"VLOOKUP(B238,'[3]LOC FINAL with new Themes'!A:M,8,0)","v":0},{"$f":"VLOOKUP(B238,'[3]LOC FINAL with new Themes'!A:M,9,0)","v":0},{"$f":"VLOOKUP(B238,'[3]LOC FINAL with new Themes'!A:M,10,0)","v":0},{"$f":"VLOOKUP(B238,'[3]LOC FINAL with new Themes'!A:M,11,0)","v":0},{"$f":"VLOOKUP(B238,'[3]LOC FINAL with new Themes'!A:M,12,0)","v":0},{"$f":"VLOOKUP(B238,'[3]LOC FINAL with new Themes'!A:M,13,0)","v":0}]
["National Hydrography Data Set","National Hydrography Dataset","National Hydrography Dataset - National Map","National Hydrography Dataset - National Map","Water -- Inland","DOI-USGS","Jeff Simley","jdsimley@usgs.gov",null,{"$f":"VLOOKUP(B239,'[3]LOC FINAL with new Themes'!A:M,7,0)","v":0},{"$f":"VLOOKUP(B239,'[3]LOC FINAL with new Themes'!A:M,8,0)","v":0},{"$f":"VLOOKUP(B239,'[3]LOC FINAL with new Themes'!A:M,9,0)","v":0},{"$f":"VLOOKUP(B239,'[3]LOC FINAL with new Themes'!A:M,10,0)","v":0},{"$f":"VLOOKUP(B239,'[3]LOC FINAL with new Themes'!A:M,11,0)","v":0},{"$f":"VLOOKUP(B239,'[3]LOC FINAL with new Themes'!A:M,12,0)","v":0},{"$f":"VLOOKUP(B239,'[3]LOC FINAL with new Themes'!A:M,13,0)","v":0}]
["National Inventory of Dams (NID)","National Inventory of Dams (NID)","National Inventory of Dams (NID)","National Inventory of Dams (NID)","Water -- Inland","DOD-USACE","Rebecca Ragon","Rebecca.Ragon@usace.army.mil ",null,{"$f":"VLOOKUP(B240,'[3]LOC FINAL with new Themes'!A:M,7,0)","v":"One single data set"},{"$f":"VLOOKUP(B240,'[3]LOC FINAL with new Themes'!A:M,8,0)","v":"Yes"},{"$f":"VLOOKUP(B240,'[3]LOC FINAL with new Themes'!A:M,9,0)","v":"Yes"},{"$f":"VLOOKUP(B240,'[3]LOC FINAL with new Themes'!A:M,10,0)","v":"Usually every 2 years"},{"$f":"VLOOKUP(B240,'[3]LOC FINAL with new Themes'!A:M,11,0)","v":"Because the NID is updated every 2 years, we do have archived databased datig back to 1994."},{"$f":"VLOOKUP(B240,'[3]LOC FINAL with new Themes'!A:M,12,0)","v":"The official name is National Inventory of Dams (NID) but I have seen the database referenced as the National Dam Inventory"},{"$f":"VLOOKUP(B240,'[3]LOC FINAL with new Themes'!A:M,13,0)","v":"S"}]
["National Levee Database (NLD)","National Levee Database (NLD)","National Levee Database (NLD)","National Levee Database (NLD)","Water -- Inland","DOD-USACE","Bryan Baker","Bryan.E.Baker@usace.army.mil",null,{"$f":"VLOOKUP(B241,'[3]LOC FINAL with new Themes'!A:M,7,0)","v":0},{"$f":"VLOOKUP(B241,'[3]LOC FINAL with new Themes'!A:M,8,0)","v":0},{"$f":"VLOOKUP(B241,'[3]LOC FINAL with new Themes'!A:M,9,0)","v":0},{"$f":"VLOOKUP(B241,'[3]LOC FINAL with new Themes'!A:M,10,0)","v":0},{"$f":"VLOOKUP(B241,'[3]LOC FINAL with new Themes'!A:M,11,0)","v":0},{"$f":"VLOOKUP(B241,'[3]LOC FINAL with new Themes'!A:M,12,0)","v":0},{"$f":"VLOOKUP(B241,'[3]LOC FINAL with new Themes'!A:M,13,0)","v":0}]
[null,null,"National Water Information System (NWIS)- Stream Gage Network","National Water Information System (NWIS)- Stream Gage Network","Water -- Inland","DOI-USGS"]
[null,null,"National Water Information System (NWIS)- Water Quality Monitoring Stations","National Water Information System (NWIS)- Water Quality Monitoring Stations","Water -- Inland","DOI-USGS"]
["National Wetlands Inventory (NWI) ","National Wetlands Inventory (NWI) ","National Wetlands Inventory (NWI) ","National Wetlands Inventory (NWI) ","Water -- Inland","DOI-FWS","Tom Dahl  ","tom_dahl@fws.gov\n",null,{"$f":"VLOOKUP(B244,'[3]LOC FINAL with new Themes'!A:M,7,0)","v":0},{"$f":"VLOOKUP(B244,'[3]LOC FINAL with new Themes'!A:M,8,0)","v":0},{"$f":"VLOOKUP(B244,'[3]LOC FINAL with new Themes'!A:M,9,0)","v":0},{"$f":"VLOOKUP(B244,'[3]LOC FINAL with new Themes'!A:M,10,0)","v":0},{"$f":"VLOOKUP(B244,'[3]LOC FINAL with new Themes'!A:M,11,0)","v":0},{"$f":"VLOOKUP(B244,'[3]LOC FINAL with new Themes'!A:M,12,0)","v":0},{"$f":"VLOOKUP(B244,'[3]LOC FINAL with new Themes'!A:M,13,0)","v":0}]
["NWIS & STORET","NWIS & STORET",null,"NWIS & STORET","Water -- Inland",null,"EGIM",null,null,{"$f":"VLOOKUP(B245,'[3]LOC FINAL with new Themes'!A:M,7,0)","v":0},{"$f":"VLOOKUP(B245,'[3]LOC FINAL with new Themes'!A:M,8,0)","v":0},{"$f":"VLOOKUP(B245,'[3]LOC FINAL with new Themes'!A:M,9,0)","v":0},{"$f":"VLOOKUP(B245,'[3]LOC FINAL with new Themes'!A:M,10,0)","v":0},{"$f":"VLOOKUP(B245,'[3]LOC FINAL with new Themes'!A:M,11,0)","v":0},{"$f":"VLOOKUP(B245,'[3]LOC FINAL with new Themes'!A:M,12,0)","v":0},{"$f":"VLOOKUP(B245,'[3]LOC FINAL with new Themes'!A:M,13,0)","v":0}]
[null,"Topological Faces-Area Hydrography Relationship File","Topological Faces-Area Hydrography Relationship File","Topological Faces-Area Hydrography Relationship File","Water -- Inland","DOC-Census","Jennifer Holland","Jennifer.L.Holland@census.gov",null,{"$f":"VLOOKUP(B246,'[3]LOC FINAL with new Themes'!A:M,7,0)","v":0},{"$f":"VLOOKUP(B246,'[3]LOC FINAL with new Themes'!A:M,8,0)","v":0},{"$f":"VLOOKUP(B246,'[3]LOC FINAL with new Themes'!A:M,9,0)","v":0},{"$f":"VLOOKUP(B246,'[3]LOC FINAL with new Themes'!A:M,10,0)","v":0},{"$f":"VLOOKUP(B246,'[3]LOC FINAL with new Themes'!A:M,11,0)","v":0},{"$f":"VLOOKUP(B246,'[3]LOC FINAL with new Themes'!A:M,12,0)","v":0},{"$f":"VLOOKUP(B246,'[3]LOC FINAL with new Themes'!A:M,13,0)","v":0}]
["Watershed Boundary Data Set (WBD)  ","Watershed Boundary Dataset (WBD)  ","Watershed Boundary Dataset (WBD)  ","Watershed Boundary Dataset (WBD)  ","Water -- Inland","DOI-USGS","Karen Hanson","khanson@usgs.gov",null,{"$f":"VLOOKUP(B247,'[3]LOC FINAL with new Themes'!A:M,7,0)","v":"one set with nested hierarchy of six different levels within it (regions, subdivided into four, six and twelve digits), POC and data manager; continually updated; co-managed with NRCS and they archive it; USGS in Denver will serve it; All transactions are archived in versions in the database as they happen. Data from any moment in time can be captured with a simple query. The database is replicated daily to Rolla, MO servers. The database is stored on a SAN with three tier redundancy.All changes to the database are stored on separate disks and once they reach a certain size, they are copied over to a server to be written to tape. Weekly, the entire database (NHD, with WBD) is written to tape.Monthly, the tapes are taken off site for storage."},{"$f":"VLOOKUP(B247,'[3]LOC FINAL with new Themes'!A:M,8,0)","v":0},{"$f":"VLOOKUP(B247,'[3]LOC FINAL with new Themes'!A:M,9,0)","v":0},{"$f":"VLOOKUP(B247,'[3]LOC FINAL with new Themes'!A:M,10,0)","v":0},{"$f":"VLOOKUP(B247,'[3]LOC FINAL with new Themes'!A:M,11,0)","v":0},{"$f":"VLOOKUP(B247,'[3]LOC FINAL with new Themes'!A:M,12,0)","v":0},{"$f":"VLOOKUP(B247,'[3]LOC FINAL with new Themes'!A:M,13,0)","v":"S"}]
[null,null,null,{"$f":"SUBTOTAL(3,D237:D247)","v":11},"Water -- Inland Count"]
[null,null,"Coastal Barrier Resource System",{"$f":"IF(C249=0,B249,C249)","v":"Coastal Barrier Resource System"},"Water -- Oceans and Coasts ","DOI-FWS"]
[null,null,"Coastal Change Analysis Program (C-CAP) Land Cover and Land Change Imagery","Coastal Change Analysis Program (C-CAP) Land Cover and Land Change Imagery","Water -- Oceans and Coasts ","DOC-NOAA","Nate Herold","nate.herold@noaa.gov"]
["Continental Shelf Boundary Data","Continental Shelf Boundary Data","Continental Shelf Boundary Data","Continental Shelf Boundary Data","Water -- Oceans and Coasts ","DOI-BOEM","Doug Vandegraft","Doug.Vandegraft@boem.gov",null,{"$f":"VLOOKUP(B251,'[3]LOC FINAL with new Themes'!A:M,7,0)","v":"undeliverable email- neeed to identify new contact"},{"$f":"VLOOKUP(B251,'[3]LOC FINAL with new Themes'!A:M,8,0)","v":0},{"$f":"VLOOKUP(B251,'[3]LOC FINAL with new Themes'!A:M,9,0)","v":0},{"$f":"VLOOKUP(B251,'[3]LOC FINAL with new Themes'!A:M,10,0)","v":0},{"$f":"VLOOKUP(B251,'[3]LOC FINAL with new Themes'!A:M,11,0)","v":0},{"$f":"VLOOKUP(B251,'[3]LOC FINAL with new Themes'!A:M,12,0)","v":0},{"$f":"VLOOKUP(B251,'[3]LOC FINAL with new Themes'!A:M,13,0)","v":0}]
[null,null,"National Data Buoy Center (NDBC) Recent and Historical Data","National Data Buoy Center (NDBC) Recent and Historical Data","Water -- Oceans and Coasts ","DOC-NOAA"]
[null,null,"NOAA National Shoreline","NOAA National Shoreline","Water -- Oceans and Coasts ","DOC-NOAA","Doug Graham","Doug.Graham@noaa.gov"]
["NOAA Nautical Charts","NOAA Nautical Charts","NOAA's Nautical Chart Products","NOAA's Nautical Chart Products","Water -- Oceans and Coasts ","DOC-NOAA","Meredith Westington","meredith.westington@noaa.gov",null,{"$f":"VLOOKUP(B254,'[3]LOC FINAL with new Themes'!A:M,7,0)","v":0},{"$f":"VLOOKUP(B254,'[3]LOC FINAL with new Themes'!A:M,8,0)","v":0},{"$f":"VLOOKUP(B254,'[3]LOC FINAL with new Themes'!A:M,9,0)","v":0},{"$f":"VLOOKUP(B254,'[3]LOC FINAL with new Themes'!A:M,10,0)","v":0},{"$f":"VLOOKUP(B254,'[3]LOC FINAL with new Themes'!A:M,11,0)","v":0},{"$f":"VLOOKUP(B254,'[3]LOC FINAL with new Themes'!A:M,12,0)","v":0},{"$f":"VLOOKUP(B254,'[3]LOC FINAL with new Themes'!A:M,13,0)","v":0}]
[null,null,"Non-Projected Boundaries","Non-Projected Boundaries","Water -- Oceans and Coasts ","DOI-BOEM","Doug Vandegraft","Doug.Vandegraft@boem.gov"]
[null,null,"Projected Boundaries","Projected Boundaries","Water -- Oceans and Coasts ","DOI-BOEM","Doug Vandegraft","Doug.Vandegraft@boem.gov"]
[null,null,"U.S. Marine Protected Areas Boundaries","U.S. Marine Protected Areas Boundaries","Water -- Oceans and Coasts ","DOC-NOAA"]
[null,null,"U.S. Maritime Zones/Boundaries","U.S. Maritime Zones/Boundaries","Water -- Oceans and Coasts ","DOC-NOAA","Meredith Westington","meredith.westington@noaa.gov"]
[null,null,null,{"$f":"SUBTOTAL(3,D249:D258)","v":10},"Water -- Oceans and Coasts  Count"]
[null,null,null,{"$f":"SUBTOTAL(3,D2:D258)","v":239},"Grand Count"]

{"sheet":"Changes","index":26,"n_rows":215,"n_cols":6,"rows_kept":215,"cut":false,"hidden":false,"merged":[]}
["Dataset Name","Action (Add/Remove/Edit Name)","POC","Explanation of changes","Date Requested","Version Incorporated"]
["GNSS Continuously Operating Reference Stations","Remove","Jeremy McHugh [jeremy.mchugh@noaa.gov]","There is redundancy with the data sets listed under the Geodetic Control theme due to some variations in naming of the data sets. There should be the only be the following 6 data sets under the Geodetic Control theme:  National Geodetic Survey (NGS) Datasheets, Continuously Operating Reference Stations (CORS),  Geoid Models, Precise Global Navigation Satellite System (GNSS) Orbits,  Airborne Gravity,  Terrestrial Gravity. The following datasets listed on rows 121-125 of that Master spreadsheet should be deleted: GNSS Continuously Operating Reference Stations, GNSS Orbits, Gravity and Geoid Datasets, NGS Geodetic Monumented Control, Tidal Benchmarks.\n  ","2011-11-09","2011-11-11"]
["GNSS Orbits","Remove","Jeremy McHugh [jeremy.mchugh@noaa.gov]","There is redundancy with the data sets listed under the Geodetic Control theme due to some variations in naming of the data sets. There should be the only be the following 6 data sets under the Geodetic Control theme:  National Geodetic Survey (NGS) Datasheets, Continuously Operating Reference Stations (CORS),  Geoid Models, Precise Global Navigation Satellite System (GNSS) Orbits,  Airborne Gravity,  Terrestrial Gravity. The following datasets listed on rows 121-125 of that Master spreadsheet should be deleted: GNSS Continuously Operating Reference Stations, GNSS Orbits, Gravity and Geoid Datasets, NGS Geodetic Monumented Control, Tidal Benchmarks.\n  ","2011-11-09","2011-11-11"]
["Gravity and Geoid Datasets","Remove","Jeremy McHugh [jeremy.mchugh@noaa.gov]","There is redundancy with the data sets listed under the Geodetic Control theme due to some variations in naming of the data sets. There should be the only be the following 6 data sets under the Geodetic Control theme:  National Geodetic Survey (NGS) Datasheets, Continuously Operating Reference Stations (CORS),  Geoid Models, Precise Global Navigation Satellite System (GNSS) Orbits,  Airborne Gravity,  Terrestrial Gravity. The following datasets listed on rows 121-125 of that Master spreadsheet should be deleted: GNSS Continuously Operating Reference Stations, GNSS Orbits, Gravity and Geoid Datasets, NGS Geodetic Monumented Control, Tidal Benchmarks.\n  ","2011-11-09","2011-11-11"]
["NGS Geodetic Monumented Control ","Remove","Jeremy McHugh [jeremy.mchugh@noaa.gov]","There is redundancy with the data sets listed under the Geodetic Control theme due to some variations in naming of the data sets. There should be the only be the following 6 data sets under the Geodetic Control theme:  National Geodetic Survey (NGS) Datasheets, Continuously Operating Reference Stations (CORS),  Geoid Models, Precise Global Navigation Satellite System (GNSS) Orbits,  Airborne Gravity,  Terrestrial Gravity. The following datasets listed on rows 121-125 of that Master spreadsheet should be deleted: GNSS Continuously Operating Reference Stations, GNSS Orbits, Gravity and Geoid Datasets, NGS Geodetic Monumented Control, Tidal Benchmarks.\n  ","2011-11-09","2011-11-11"]
["Tidal Benchmarks","Remove","Jeremy McHugh [jeremy.mchugh@noaa.gov]","There is redundancy with the data sets listed under the Geodetic Control theme due to some variations in naming of the data sets. There should be the only be the following 6 data sets under the Geodetic Control theme:  National Geodetic Survey (NGS) Datasheets, Continuously Operating Reference Stations (CORS),  Geoid Models, Precise Global Navigation Satellite System (GNSS) Orbits,  Airborne Gravity,  Terrestrial Gravity. The following datasets listed on rows 121-125 of that Master spreadsheet should be deleted: GNSS Continuously Operating Reference Stations, GNSS Orbits, Gravity and Geoid Datasets, NGS Geodetic Monumented Control, Tidal Benchmarks.\n  ","2011-11-09","2011-11-11"]
["Airborne Gravity","Edit Dataset Manager Info","Jeremy McHugh [jeremy.mchugh@noaa.gov]","Dr. Theresa Diehl, theresa.diehl@noaa.gov","2011-11-14","2011-11-18"]
["Continuously Operating Reference Stations (CORS) ","Edit Dataset Manager Info","Jeremy McHugh [jeremy.mchugh@noaa.gov]","Dr. Giovanni Sella, giovanni.sella@noaa.gov","2011-11-14","2011-11-18"]
["Geoid Models ","Edit Dataset Manager Info","Jeremy McHugh [jeremy.mchugh@noaa.gov]","Dr. Dan Roman, dan.roman@noaa.gov","2011-11-14","2011-11-18"]
["National Geodetic Survey (NGS) Datasheets ","Edit Dataset Manager Info","Jeremy McHugh [jeremy.mchugh@noaa.gov]","Jim Tomlin, jim.tomlin@noaa.gov","2011-11-14","2011-11-18"]
["Precise Global Navigation Satellite Systems (GNSS) Orbits","Edit Dataset Manager Info","Jeremy McHugh [jeremy.mchugh@noaa.gov]"," Dr. Jake Griffiths, jake.griffiths@noaa.gov","2011-11-14","2011-11-18"]
["Coastline Data","Edit Dataset Manager Info","Randy Fusaro [randy.j.fusaro@census.gov]","Request Dataset Manager Info change. DOI-BOEM, Doug Vandegraft, douglas.vandegraft@boemre.gov; email sent to Doug for confirmation","2011-11-21","2011-11-25"]
["Continental Shelf Boundary Data","Edit Dataset Manager Info","Randy Fusaro [randy.j.fusaro@census.gov]","Request Dataset Manager Info change. DOI-BOEM, Doug Vandegraft, douglas.vandegraft@boemre.gov; email sent to Doug for confirmation","2011-11-21","2011-11-25"]
["Multipurpose Marine Cadastre","Edit Dataset Manager Info","Randy Fusaro [randy.j.fusaro@census.gov]","Request Dataset Manager Info change. DOI-BOEM, Doug Vandegraft, douglas.vandegraft@boemre.gov; email sent to Doug for confirmation","2011-11-21","2011-11-25"]
["National Parks Data","Edit Dataset Manager Info","Randy Fusaro [randy.j.fusaro@census.gov]","Request Dataset Manager Info change. DOI-BOEM, Doug Vandegraft, douglas.vandegraft@boemre.gov; email sent to Doug for confirmation","2011-11-21","2011-11-25"]
["OCS BLOCK LEASE DATA ","Edit Dataset Manager Info","Randy Fusaro [randy.j.fusaro@census.gov]","Request Dataset Manager Info change. DOI-BOEM, Doug Vandegraft, douglas.vandegraft@boemre.gov; email sent to Doug for confirmation","2011-11-21","2011-11-25"]
["Common Resource Area (CRA)","No Change - Outreach Action","Randy Fusaro [randy.j.fusaro@census.gov]","Catherine Nolan reached out to Marisa Capriotti regarding confirmation of Dataset Manager information. Marisa is working on getting this information","2011-11-21","N/A"]
["Hydric Soils","No Change - Outreach Action","Randy Fusaro [randy.j.fusaro@census.gov]","Catherine Nolan reached out to Marisa Capriotti regarding confirmation of Dataset Manager information. Marisa is working on getting this information","2011-11-21","N/A"]
["Location of Arable Lands","No Change - Outreach Action","Randy Fusaro [randy.j.fusaro@census.gov]","Catherine Nolan reached out to Marisa Capriotti regarding confirmation of Dataset Manager information. Marisa is working on getting this information","2011-11-21","N/A"]
["Major Land Resource Area (MLRA)","No Change - Outreach Action","Randy Fusaro [randy.j.fusaro@census.gov]","Catherine Nolan reached out to Marisa Capriotti regarding confirmation of Dataset Manager information. Marisa is working on getting this information","2011-11-21","N/A"]
["National Resource Inventory Imagery","No Change - Outreach Action","Randy Fusaro [randy.j.fusaro@census.gov]","Catherine Nolan reached out to Marisa Capriotti regarding confirmation of Dataset Manager information. Marisa is working on getting this information","2011-11-21","N/A"]
["Prime and Statewide Important Farmlands","No Change - Outreach Action","Randy Fusaro [randy.j.fusaro@census.gov]","Catherine Nolan reached out to Marisa Capriotti regarding confirmation of Dataset Manager information. Marisa is working on getting this information","2011-11-21","N/A"]
["Soil Suitability for Disposal of Contaminated Crops ","No Change - Outreach Action","Randy Fusaro [randy.j.fusaro@census.gov]","Catherine Nolan reached out to Marisa Capriotti regarding confirmation of Dataset Manager information. Marisa is working on getting this information","2011-11-21","N/A"]
["Soil Suitability for Large Animal Disposal","No Change - Outreach Action","Randy Fusaro [randy.j.fusaro@census.gov]","Catherine Nolan reached out to Marisa Capriotti regarding confirmation of Dataset Manager information. Marisa is working on getting this information","2011-11-21","N/A"]
["Soil Survey Geographic Database (SSURGO)","No Change - Outreach Action","Randy Fusaro [randy.j.fusaro@census.gov]","Catherine Nolan reached out to Marisa Capriotti regarding confirmation of Dataset Manager information. Marisa is working on getting this information","2011-11-21","N/A"]
["U.S. General Soil Map (STATSGO2)","No Change - Outreach Action","Randy Fusaro [randy.j.fusaro@census.gov]","Catherine Nolan reached out to Marisa Capriotti regarding confirmation of Dataset Manager information. Marisa is working on getting this information","2011-11-21","N/A"]
["Coastline Data","No Change - Outreach Action","Doug Vandegraft [Doug.Vandegraft@boem.gov]","Confirmed Randy Fusaro recommended change - Doug Vandegraft [Doug.Vandegraft@boem.gov]","2011-11-28","2011-12-02"]
["Continental Shelf Boundary Data","No Change - Outreach Action","Doug Vandegraft [Doug.Vandegraft@boem.gov]","Confirmed Randy Fusaro recommended change - Doug Vandegraft [Doug.Vandegraft@boem.gov]","2011-11-28","2011-12-02"]
["Multipurpose Marine Cadastre","No Change - Outreach Action","Doug Vandegraft [Doug.Vandegraft@boem.gov]","Confirmed Randy Fusaro recommended change - Doug Vandegraft [Doug.Vandegraft@boem.gov]","2011-11-28","2011-12-02"]
["National Parks Data","Edit Dataset Manager Info","Doug Vandegraft [Doug.Vandegraft@boem.gov]","Roger Johnson Roger_M_Johnson@nps.gov","2011-11-28","2011-12-02"]
["OCS BLOCK LEASE DATA ","No Change - Outreach Action","Doug Vandegraft [Doug.Vandegraft@boem.gov]","Confirmed Randy Fusaro recommended change - Doug Vandegraft [Doug.Vandegraft@boem.gov]","2011-11-28","2011-12-02"]
["National Geodetic Survey (NGS) Datasheets","Edit Agency","Anne Ball [anne.ball@noaa.gov]","DOC-NOAA","2011-12-21","2011-12-21"]
["Polar Operational Environmental Satellite (POES) Data","No Change -Confirmed Dataset Manager Information","Anne Ball [anne.ball@noaa.gov]"," John Bates, john.j.bates@noaa.gov","2011-12-21","2011-12-21"]
["Geoid Models","No Change -Confirmed Dataset Manager Information","Anne Ball [anne.ball@noaa.gov]","Dan Roman, dan.roman@noaa.gov","2011-12-21","2011-12-21"]
["Continuously Operating Reference Stations (CORS) ","No Change -Confirmed Dataset Manager Information","Anne Ball [anne.ball@noaa.gov]","Giovanni Sella, giovanni.sella@noaa.gov","2011-12-21","2011-12-21"]
["Precise Global Navigation Satellite Sytem (GNSS) Orbits ","No Change -Confirmed Dataset Manager Information","Anne Ball [anne.ball@noaa.gov]","Jake Griffiths, jake.griffiths@noaa.gov","2011-12-21","2011-12-21"]
["Environmental Sensitivity Index (ESI) Data and Maps - ","No Change -Confirmed Dataset Manager Information","Anne Ball [anne.ball@noaa.gov]","Jill Peterson, jill.peterson@noaa.gov","2011-12-21","2011-12-21"]
["NOAA's Nautical Chart Products ","No Change -Confirmed Dataset Manager Information","Anne Ball [anne.ball@noaa.gov]","John Lowell, john.lowell@noaa.gov","2011-12-21","2011-12-21"]
["U.S. Maritime Zones/Boundaries","Edit Dataset Manager Info","Anne Ball [anne.ball@noaa.gov]","Meredith Westington, meredith.westington@noaa.gov","2011-12-21","2011-12-21"]
["Emergency Response Imagery ","No Change -Confirmed Dataset Manager Information","Anne Ball [anne.ball@noaa.gov]","Mike Aslaksen, mike.aslaksen@noaa.gov","2011-12-21","2011-12-21"]
["Geostationary Operational Environmental Satellite (GOES) Data ","No Change -Confirmed Dataset Manager Information","Anne Ball [anne.ball@noaa.gov]","Nancy Ritchey, nancy.ritchey@noaa.gov","2011-12-21","2011-12-21"]
["Coastal Change Analysis Program (C-CAP) Land Cover and Land Change Imagery ","Edit Dataset Manager Info","Anne Ball [anne.ball@noaa.gov]","Nate Herold, nate.herold@noaa.gov","2011-12-21","2011-12-21"]
["National Doplar Radar Data (NEXRAD) ","Confirmed Dataset on List","Anne Ball [anne.ball@noaa.gov]","Confirmed Dataset on List - Stil working on Dataset Manager Information - \"We are working on contacts for the following datasets: National Doplar Radar Data (NEXRAD), NOAA Natioanal Weather Service GIS Data, Elevation Bathymetric - Ocean, Coastal and Great Lakes, National Data Buoy Center (NDBC) Recent and Historical Data, U.S. Marine Protected Areas Boundaries\"","2011-12-21","2011-12-21"]
["Airborne Gravity ","No Change -Confirmed Dataset Manager Information","Anne Ball [anne.ball@noaa.gov]","Theresa Diehl, theresa.diehl@noaa.gov","2011-12-21","2011-12-21"]
["Blended Sea Surface Temperature ","No Change -Confirmed Dataset Manager Information","Anne Ball [anne.ball@noaa.gov]","Viva Banzon, viva.banzon@noaa.gov","2011-12-21","2011-12-21"]
["NOAA National Weather Service GIS Data","Confirmed Dataset on List","Anne Ball [anne.ball@noaa.gov]","Confirmed Dataset on List - Stil working on Dataset Manager Information - \"We are working on contacts for the following datasets: National Doplar Radar Data (NEXRAD), NOAA Natioanal Weather Service GIS Data, Elevation Bathymetric - Ocean, Coastal and Great Lakes, National Data Buoy Center (NDBC) Recent and Historical Data, U.S. Marine Protected Areas Boundaries\"","2011-12-21","2011-12-21"]
["Elevation Bathymetric - Ocean, Coastal and Great Lakes Bathymetry","Confirmed Dataset on List","Anne Ball [anne.ball@noaa.gov]","Confirmed Dataset on List - Stil working on Dataset Manager Information - \"We are working on contacts for the following datasets: National Doplar Radar Data (NEXRAD), NOAA Natioanal Weather Service GIS Data, Elevation Bathymetric - Ocean, Coastal and Great Lakes, National Data Buoy Center (NDBC) Recent and Historical Data, U.S. Marine Protected Areas Boundaries\"","2011-12-21","2011-12-21"]
["U.S. Marine Protected Areas Boundaries ","Confirmed Dataset on List","Anne Ball [anne.ball@noaa.gov]","Confirmed Dataset on List - Stil working on Dataset Manager Information - \"We are working on contacts for the following datasets: National Doplar Radar Data (NEXRAD), NOAA Natioanal Weather Service GIS Data, Elevation Bathymetric - Ocean, Coastal and Great Lakes, National Data Buoy Center (NDBC) Recent and Historical Data, U.S. Marine Protected Areas Boundaries\"","2011-12-21","2011-12-21"]
["NOAA National Shoreline","Confirmed Dataset on List","Anne Ball [anne.ball@noaa.gov]","Confirmed Dataset on List - Stil working on Dataset Manager Information - \"We are working on contacts for the following datasets: National Doplar Radar Data (NEXRAD), NOAA Natioanal Weather Service GIS Data, Elevation Bathymetric - Ocean, Coastal and Great Lakes, National Data Buoy Center (NDBC) Recent and Historical Data, U.S. Marine Protected Areas Boundaries\"","2011-12-21","2011-12-21"]
["National Data Buoy Center (NDBC) Recent and Historical Data","Confirmed Dataset on List","Anne Ball [anne.ball@noaa.gov]","Confirmed Dataset on List - Stil working on Dataset Manager Information - \"We are working on contacts for the following datasets: National Doplar Radar Data (NEXRAD), NOAA Natioanal Weather Service GIS Data, Elevation Bathymetric - Ocean, Coastal and Great Lakes, National Data Buoy Center (NDBC) Recent and Historical Data, U.S. Marine Protected Areas Boundaries\"","2011-12-21","2011-12-21"]
["Global Historical Climate Network (GHCN) daily data (NCDC)","Remove","Anne Ball [anne.ball@noaa.gov]","Remove","2011-12-21","2011-12-21"]
["Global Historical Climate Network (GHCN) monthly data (NCDC)","Remove","Anne Ball [anne.ball@noaa.gov]","Remove","2011-12-21","2011-12-21"]
["Hurricane Satellite","Remove","Anne Ball [anne.ball@noaa.gov]","Remove","2011-12-21","2011-12-21"]
["Integrated Global Radiosonde Archive (IGRA) upper air data (NCDC)","Remove","Anne Ball [anne.ball@noaa.gov]","Remove","2011-12-21","2011-12-21"]
["Integrated Surface Data (ISD) at National Climate Data Center (NCDC)","Remove","Anne Ball [anne.ball@noaa.gov]","Remove","2011-12-21","2011-12-21"]
["NEXRAD Level II and III radar data (NCDC)","Remove","Anne Ball [anne.ball@noaa.gov]","Remove","2011-12-21","2011-12-21"]
["North American Regional Reanalysis (NARR) model data (NCDC)","Remove","Anne Ball [anne.ball@noaa.gov]","Remove","2011-12-21","2011-12-21"]
["National Ocean Service (NOS) Bathymetry Warehouse (name subject to change)","Remove","Anne Ball [anne.ball@noaa.gov]","Remove","2011-12-21","2011-12-21"]
["National Ocean Service (NOS) Hydrographic Data Base (NOSHDB)","Remove","Anne Ball [anne.ball@noaa.gov]","Remove","2011-12-21","2011-12-21"]
["NOAA Estuarine Bathymetry","Remove","Anne Ball [anne.ball@noaa.gov]","Remove","2011-12-21","2011-12-21"]
["Estuarine and Marine Reserves","Remove","Anne Ball [anne.ball@noaa.gov]","Remove","2011-12-21","2011-12-21"]
["Fisheries Closure and Habitat Areas","Remove","Anne Ball [anne.ball@noaa.gov]","Remove","2011-12-21","2011-12-21"]
["Sanctuaries","Remove","Anne Ball [anne.ball@noaa.gov]","Remove","2011-12-21","2011-12-21"]
["Coastal Change Analysis Program (C-CAP)","Remove","Anne Ball [anne.ball@noaa.gov]","Remove","2011-12-21","2011-12-21"]
["NOAA Aeronautical Survey ","Remove","Anne Ball [anne.ball@noaa.gov]","Remove","2011-12-21","2011-12-21"]
["Contiguous Zone","Remove","Anne Ball [anne.ball@noaa.gov]","Remove","2011-12-21","2011-12-21"]
["Exclusive Economic Zone","Remove","Anne Ball [anne.ball@noaa.gov]","Remove","2011-12-21","2011-12-21"]
["NOAA Composite Shoreline","Remove","Anne Ball [anne.ball@noaa.gov]","Remove","2011-12-21","2011-12-21"]
["NOAA Extracted Vector Shoreline","Remove","Anne Ball [anne.ball@noaa.gov]","Remove","2011-12-21","2011-12-21"]
["NOAA Medium Resolution Shoreline","Remove","Anne Ball [anne.ball@noaa.gov]","Remove","2011-12-21","2011-12-21"]
["NOAA National Shoreline","Remove","Anne Ball [anne.ball@noaa.gov]","Remove","2011-12-21","2011-12-21"]
["Territorial Sea","Remove","Anne Ball [anne.ball@noaa.gov]","Remove","2011-12-21","2011-12-21"]
["Environmental Sensitivity Index (ESI) Data and Maps","Remove Duplicate","Anne Ball [anne.ball@noaa.gov]","There are two entries for the final dataset \"Environmental Sensitivity Index (ESI) Data and Maps\"  It appears that these started as two different names for the same dataset. The final name of the dataset is \"Environmental Sensitivity Index (ESI) Data and Maps.\"  Can one of these entries be deleted?","2011-12-21","2011-12-21"]
["Terrestrial Gravity","Remove","Anne Ball [anne.ball@noaa.gov]","Remove","2011-12-21","2011-12-21"]
["Nautical charts","Remove","Catherine Nolan [catherine.nolan@gt.com]","QA duplicate","2011-12-21","2011-12-21"]
["Shore and sea boundaries","Remove","Catherine Nolan [catherine.nolan@gt.com]","QA based on NOAA response","2011-12-21","2011-12-21"]
["Terrestrial Gravity","Add","Anne Ball [anne.ball@noaa.gov]","Follow-up from Jeremy McHugh email. Please add the Terrestrial Gravity dataset back into the NGDA list.  Thanks for contacting me on this.  ","2012-01-13","2012-01-20"]
["Terrestrial Gravity","Edit Dataset Manager Info","Jeremy McHugh [jeremy.mchugh@noaa.gov]","Please add Bill Waickman  - bill.waickman@noaa.gov - as the manager for the Terrestrial Gravity dataset.","2012-01-09","2012-01-20"]
["Climate Data Sets ","Remove","Capriotti, Marisa - NRCS, Beltsville, MD [Marisa.Capriotti@wdc.usda.gov] ","This is a general term for datasets falling under Climate Theme and should be removed from the list","2012-02-16","2012-02-16"]
["National Climate Data Center","Remove","Capriotti, Marisa - NRCS, Beltsville, MD [Marisa.Capriotti@wdc.usda.gov] ","This is not a Data Set - it is a Center!!!  Should be removed","2012-02-16","2012-02-16"]
["Parameter-elevation Regressions on Independent Slopes Model (PRISM) Data Sets","Confirmed Dataset on List","Capriotti, Marisa - NRCS, Beltsville, MD [Marisa.Capriotti@wdc.usda.gov] ","Ok","2012-02-16","2012-02-16"]
["National Resource Inventory Imagery","Remove","Capriotti, Marisa - NRCS, Beltsville, MD [Marisa.Capriotti@wdc.usda.gov] ","This should not be included - the request for deletion from spreadsheed was made by NRCS in 2009","2012-02-16","2012-02-16"]
["Common Resource Area (CRA)","Edit Agency ","Capriotti, Marisa - NRCS, Beltsville, MD [Marisa.Capriotti@wdc.usda.gov] ","Agency field should be changed to  USDA-NRCS, not USDA; new Dataset Mgr identified","2012-02-16","2012-02-16"]
["Common Resource Area (CRA)","Edit Dataset Manager Info","Capriotti, Marisa - NRCS, Beltsville, MD [Marisa.Capriotti@wdc.usda.gov] ","Agency field should be changed to  USDA-NRCS, not USDA; new Dataset Mgr identified -- David Hoover - David.Hoover@wdc.usda.gov","2012-02-16","2012-02-16"]
["Hydric Soils","Remove","Capriotti, Marisa - NRCS, Beltsville, MD [Marisa.Capriotti@wdc.usda.gov] ","This should not be included - the request for deletion from spreadsheed was made by NRCS in 2009","2012-02-16","2012-02-16"]
["Location of Arable Lands","Remove","Capriotti, Marisa - NRCS, Beltsville, MD [Marisa.Capriotti@wdc.usda.gov] ","This should not be included - the request for deletion from spreadsheed was made by NRCS in 2009","2012-02-16","2012-02-16"]
["Major Land Resource Area (MLRA)","Edit Agency ","Capriotti, Marisa - NRCS, Beltsville, MD [Marisa.Capriotti@wdc.usda.gov] ","Agency field should be changed to  USDA-NRCS, not USDA; new Dataset Mgr identified","2012-02-16","2012-02-16"]
["Major Land Resource Area (MLRA)","Edit Dataset Manager Info","Capriotti, Marisa - NRCS, Beltsville, MD [Marisa.Capriotti@wdc.usda.gov] ","Agency field should be changed to  USDA-NRCS, not USDA; new Dataset Mgr identified -- David Hoover - David.Hoover@wdc.usda.gov","2012-02-16","2012-02-16"]
["National Cooperative Soil Survey (NCSS)","Edit Agency ","Capriotti, Marisa - NRCS, Beltsville, MD [Marisa.Capriotti@wdc.usda.gov] ","Agency field should be changed to  USDA-NRCS, not USDA; new Dataset Mgr identified","2012-02-16","2012-02-16"]
["National Cooperative Soil Survey (NCSS)","Edit Dataset Manager Info","Capriotti, Marisa - NRCS, Beltsville, MD [Marisa.Capriotti@wdc.usda.gov] ","Agency field should be changed to  USDA-NRCS, not USDA; new Dataset Mgr identified -- Larry West - Larry.West@lin.usda.gov","2012-02-16","2012-02-16"]
["Prime and Statewide Important Farmlands","Remove","Capriotti, Marisa - NRCS, Beltsville, MD [Marisa.Capriotti@wdc.usda.gov] ","This should not be included - the request for deletion from spreadsheed was made by NRCS in 2009","2012-02-16","2012-02-16"]
["Soil Suitability for Disposal of Contaminated Crops ","Remove","Capriotti, Marisa - NRCS, Beltsville, MD [Marisa.Capriotti@wdc.usda.gov] ","This should not be included - the request for deletion from spreadsheed was made by NRCS in 2009","2012-02-16","2012-02-16"]
["Soil Suitability for Large Animal Disposal","Remove","Capriotti, Marisa - NRCS, Beltsville, MD [Marisa.Capriotti@wdc.usda.gov] ","This should not be included - the request for deletion from spreadsheed was made by NRCS in 2009","2012-02-16","2012-02-16"]
["Soil Survey Geographic Database (SSURGO)","Edit Agency ","Capriotti, Marisa - NRCS, Beltsville, MD [Marisa.Capriotti@wdc.usda.gov] ","Agency field should be changed to  USDA-NRCS, not USDA; new Dataset Mgr identified","2012-02-16","2012-02-16"]
["Soil Survey Geographic Database (SSURGO)","Edit Dataset Manager Info","Capriotti, Marisa - NRCS, Beltsville, MD [Marisa.Capriotti@wdc.usda.gov] ","Agency field should be changed to  USDA-NRCS, not USDA; new Dataset Mgr identified -- David Hoover - David.Hoover@wdc.usda.gov","2012-02-16","2012-02-16"]
["U.S. General Soil Map (STATSGO2)","Edit Agency ","Capriotti, Marisa - NRCS, Beltsville, MD [Marisa.Capriotti@wdc.usda.gov] ","Agency field should be changed to  USDA-NRCS, not USDA; new Dataset Mgr identified","2012-02-16","2012-02-16"]
["U.S. General Soil Map (STATSGO2)","Edit Dataset Manager Info","Capriotti, Marisa - NRCS, Beltsville, MD [Marisa.Capriotti@wdc.usda.gov] ","Agency field should be changed to  USDA-NRCS, not USDA; new Dataset Mgr identified -- David Hoover - David.Hoover@wdc.usda.gov","2012-02-16","2012-02-16"]
["National Doplar Radar Data (NEXRAD) ","Edit Dataset Manager Info","Anne Ball [anne.ball@noaa.gov]","Steve DelGreco, stephen.a.delgreco","2012-02-29","2012-02-29"]
["\nNOAA's Nautical Chart Products\n","Edit Dataset Manager Info","Anne Ball [anne.ball@noaa.gov]","Meredith Westington, meredith.westington@noaa.gov","2012-02-29","2012-02-29"]
["Multipurpose Marine Cadastre","Remove","\"Vandegraft, Doug L\" <Douglas.Vandegraft@boem.gov>","All parcels, government or otherwise, fall under the Cadastral theme.\nAs you know, the Multipurpose Marine Cadastre is not a dataset but a marine information system website where the user can view geospatial data in the coastal and offshore areas.  MarineCadastre.gov is funded and maintained by NOAA and BOEM.  Data can be downloaded from the Marine Cadastre, but there is not a specific dataset associated with the website.\nDatasets found on the Marine Cadastre that fall within the Cadastral theme:  Coastal National Parks; Coastal National Wildlife Refuges; Coastal Indian Lands; Outer Continental Shelf Lease Blocks; BOEM Active Oil and Gas Leases.","2012-04-16","2012-04-16"]
["Coastal National Parks","Add","\"Vandegraft, Doug L\" <Douglas.Vandegraft@boem.gov>","All parcels, government or otherwise, fall under the Cadastral theme.\nAs you know, the Multipurpose Marine Cadastre is not a dataset but a marine information system website where the user can view geospatial data in the coastal and offshore areas.  MarineCadastre.gov is funded and maintained by NOAA and BOEM.  Data can be downloaded from the Marine Cadastre, but there is not a specific dataset associated with the website.\nDatasets found on the Marine Cadastre that fall within the Cadastral theme:  Coastal National Parks; Coastal National Wildlife Refuges; Coastal Indian Lands; Outer Continental Shelf Lease Blocks; BOEM Active Oil and Gas Leases.","2012-04-16","2012-04-16"]
["Coastal National Wildlife Refuges","Add","\"Vandegraft, Doug L\" <Douglas.Vandegraft@boem.gov>","All parcels, government or otherwise, fall under the Cadastral theme.\nAs you know, the Multipurpose Marine Cadastre is not a dataset but a marine information system website where the user can view geospatial data in the coastal and offshore areas.  MarineCadastre.gov is funded and maintained by NOAA and BOEM.  Data can be downloaded from the Marine Cadastre, but there is not a specific dataset associated with the website.\nDatasets found on the Marine Cadastre that fall within the Cadastral theme:  Coastal National Parks; Coastal National Wildlife Refuges; Coastal Indian Lands; Outer Continental Shelf Lease Blocks; BOEM Active Oil and Gas Leases.","2012-04-16","2012-04-16"]
["Coastal Indian Lands","Add","\"Vandegraft, Doug L\" <Douglas.Vandegraft@boem.gov>","All parcels, government or otherwise, fall under the Cadastral theme.\nAs you know, the Multipurpose Marine Cadastre is not a dataset but a marine information system website where the user can view geospatial data in the coastal and offshore areas.  MarineCadastre.gov is funded and maintained by NOAA and BOEM.  Data can be downloaded from the Marine Cadastre, but there is not a specific dataset associated with the website.\nDatasets found on the Marine Cadastre that fall within the Cadastral theme:  Coastal National Parks; Coastal National Wildlife Refuges; Coastal Indian Lands; Outer Continental Shelf Lease Blocks; BOEM Active Oil and Gas Leases.","2012-04-16","2012-04-16"]
["Outer Continental Shelf Lease Blocks","Add","\"Vandegraft, Doug L\" <Douglas.Vandegraft@boem.gov>","All parcels, government or otherwise, fall under the Cadastral theme.\nAs you know, the Multipurpose Marine Cadastre is not a dataset but a marine information system website where the user can view geospatial data in the coastal and offshore areas.  MarineCadastre.gov is funded and maintained by NOAA and BOEM.  Data can be downloaded from the Marine Cadastre, but there is not a specific dataset associated with the website.\nDatasets found on the Marine Cadastre that fall within the Cadastral theme:  Coastal National Parks; Coastal National Wildlife Refuges; Coastal Indian Lands; Outer Continental Shelf Lease Blocks; BOEM Active Oil and Gas Leases.","2012-04-16","2012-04-16"]
["BOEM Active Oil and Gas Leases","Add","\"Vandegraft, Doug L\" <Douglas.Vandegraft@boem.gov>","All parcels, government or otherwise, fall under the Cadastral theme.\nAs you know, the Multipurpose Marine Cadastre is not a dataset but a marine information system website where the user can view geospatial data in the coastal and offshore areas.  MarineCadastre.gov is funded and maintained by NOAA and BOEM.  Data can be downloaded from the Marine Cadastre, but there is not a specific dataset associated with the website.\nDatasets found on the Marine Cadastre that fall within the Cadastral theme:  Coastal National Parks; Coastal National Wildlife Refuges; Coastal Indian Lands; Outer Continental Shelf Lease Blocks; BOEM Active Oil and Gas Leases.","2012-04-16","2012-04-16"]
["Coastal National Parks","Edit Dataset Manager Info","\"Vandegraft, Doug L\" <Douglas.Vandegraft@boem.gov>","DOI – NPS, Roger Johnson, Roger_M_Johnson@nps.gov","2012-04-18","2012-04-18"]
["Coastal National Wildlife Refuges","Edit Dataset Manager Info","\"Vandegraft, Doug L\" <Douglas.Vandegraft@boem.gov>","DOI – NPS, Sean Killen, Sean_Killen@fws.gov","2012-04-18","2012-04-18"]
["Coastal Indian Lands","Edit Dataset Manager Info","\"Vandegraft, Doug L\" <Douglas.Vandegraft@boem.gov>","DOI – BIA, Richard Moore, Richard.Moore@bia.gov","2012-04-18","2012-04-18"]
["Outer Continental Shelf Lease Blocks","Edit Dataset Manager Info","\"Vandegraft, Doug L\" <Douglas.Vandegraft@boem.gov>","DOI – BOEM, Doug Vandegraft, Doug.Vandegraft@boem.gov","2012-04-18","2012-04-18"]
["BOEM Active Oil and Gas Leases","Edit Dataset Manager Info","\"Vandegraft, Doug L\" <Douglas.Vandegraft@boem.gov>","DOI – BOEM, Doug Vandegraft, Doug.Vandegraft@boem.gov","2012-04-18","2012-04-18"]
["OCS Lease Blocks","Remove","\"Vandegraft, Doug L\" <Douglas.Vandegraft@boem.gov>","The list already has “Outer Continental Shelf Lease Blocks” and “Outer Continental Shelf Active Leases” (the latter is the same thing as “BOEM Active Oil and Gas Leases.”)  Both these datasets are under the Geology theme.  However, I would argue that the Lease Blocks belong under the Cadastral theme.  I also think that Active Leases should also be under Cadastral, as leases are a property right, which falls under the definition of cadastral.","2012-04-18","2012-04-18"]
["OCS Active Leases","Remove","\"Vandegraft, Doug L\" <Douglas.Vandegraft@boem.gov>","The list already has “Outer Continental Shelf Lease Blocks” and “Outer Continental Shelf Active Leases” (the latter is the same thing as “BOEM Active Oil and Gas Leases.”)  Both these datasets are under the Geology theme.  However, I would argue that the Lease Blocks belong under the Cadastral theme.  I also think that Active Leases should also be under Cadastral, as leases are a property right, which falls under the definition of cadastral.","2012-04-18","2012-04-18"]
["Protractions","Edit Dataset Manager Info","\"Vandegraft, Doug L\" <Douglas.Vandegraft@boem.gov>","DOI-BOEM, Doug Vandegraft, Doug.Vandegraft@boem.gov","2012-04-18","2012-04-18"]
["Coastline Data","Edit Dataset Manager Info","\"Vandegraft, Doug L\" <Douglas.Vandegraft@boem.gov>","DOI-BOEM, Doug Vandegraft, Doug.Vandegraft@boem.gov","2012-04-18","2012-04-18"]
["BOEM Baseline","Edit Dataset Manager Info","\"Vandegraft, Doug L\" <Douglas.Vandegraft@boem.gov>","DOI-BOEM, Doug Vandegraft, Doug.Vandegraft@boem.gov","2012-04-18","2012-04-18"]
["Sand and Gravel","Edit Dataset Manager Info","\"Vandegraft, Doug L\" <Douglas.Vandegraft@boem.gov>","DOI-BOEM, Doug Vandegraft, Doug.Vandegraft@boem.gov","2012-04-18","2012-04-18"]
["Wells","Edit Dataset Manager Info","\"Vandegraft, Doug L\" <Douglas.Vandegraft@boem.gov>","DOI-BOEM, Doug Vandegraft, Doug.Vandegraft@boem.gov","2012-04-18","2012-04-18"]
["Pipelines","Edit Dataset Manager Info","\"Vandegraft, Doug L\" <Douglas.Vandegraft@boem.gov>","DOI-BOEM, Doug Vandegraft, Doug.Vandegraft@boem.gov","2012-04-18","2012-04-18"]
["Platforms","Edit Dataset Manager Info","\"Vandegraft, Doug L\" <Douglas.Vandegraft@boem.gov>","DOI-BOEM, Doug Vandegraft, Doug.Vandegraft@boem.gov","2012-04-18","2012-04-18"]
["Continental Shelf Boundary Data","Edit Dataset Manager Info","\"Vandegraft, Doug L\" <Douglas.Vandegraft@boem.gov>","DOI-BOEM, Doug Vandegraft, Doug.Vandegraft@boem.gov","2012-04-18","2012-04-18"]
["Non-Projected Boundaries","Edit Dataset Manager Info","\"Vandegraft, Doug L\" <Douglas.Vandegraft@boem.gov>","DOI-BOEM, Doug Vandegraft, Doug.Vandegraft@boem.gov","2012-04-18","2012-04-18"]
["Projected Boundaries","Edit Dataset Manager Info","\"Vandegraft, Doug L\" <Douglas.Vandegraft@boem.gov>","DOI-BOEM, Doug Vandegraft, Doug.Vandegraft@boem.gov","2012-04-18","2012-04-18"]
["Manual of Surveying Instructions, Data Standards","Edit Dataset Manager Info","\"Vandegraft, Doug L\" <Douglas.Vandegraft@boem.gov>","I agree with Wendy that the “Manual of Surveying Instructions” in the Cadastre theme is not a dataset.","2012-04-18","2012-04-18"]
["Watershed Boundary Data Set (WBD) ","Remove Duplicate","Wendy Blake-Coleman <Blake-Coleman.Wendy@epamail.epa.gov>","WBD was duplicated.","2012-04-20","2012-04-20"]
["NONE","Format Work Sheet","Catherine Nolan [catherine.nolan@gt.com] and Colleen Cahill [cstu@loc.gov]","Catherine and Colleen met to kick of effort to identify all Dataset Managers and confirm all Dataset Manager contact information. They agreed on a structure of the Master Dataset List for this effort. \nHid Columns A-C comparing historical datasets lists; renamed column D \"Dataset Name\"; added column I \"Phone Number\" for Dataset Manager Contact information; hid columns J-P.","2012-04-23","2012-04-23"]
["NWIS & STORET","Remove","Wendy Blake-Coleman <Blake-Coleman.Wendy@epamail.epa.gov>","This is not a dataset. ","2012-04-30","2012-04-30"]
["National Water Information System (NWIS)- Stream Gage Locations","Edit Dataset Info","Wendy Blake-Coleman <Blake-Coleman.Wendy@epamail.epa.gov>","Add \"Location\" to the end of dataset name.","2012-04-30","2012-04-30"]
["National Water Information System (NWIS)- Water Quality Monitoring Stations Locations","Edit Dataset Info","Wendy Blake-Coleman <Blake-Coleman.Wendy@epamail.epa.gov>","Add \"Location\" to the end of dataset name.","2012-04-30","2012-04-30"]
["Critical Habitat ","Edit Dataset Manager Info","Wendy Blake-Coleman <Blake-Coleman.Wendy@epamail.epa.gov>","Mike Horton; Michael_Horton@fws.gov; 703-358-2371","2012-04-30","2012-04-30"]
["Current Range for listed species ","Edit Dataset Manager Info","Wendy Blake-Coleman <Blake-Coleman.Wendy@epamail.epa.gov>","Mike Horton; Michael_Horton@fws.gov; 703-358-2372","2012-04-30","2012-04-30"]
["Endangered Species (Threatened and Endangered Species System)","Edit Dataset Manager Info","Wendy Blake-Coleman <Blake-Coleman.Wendy@epamail.epa.gov>","Mike Horton; Michael_Horton@fws.gov; 703-358-2373","2012-04-30","2012-04-30"]
["Recovery Range for listed species ","Edit Dataset Manager Info","Wendy Blake-Coleman <Blake-Coleman.Wendy@epamail.epa.gov>","Mike Horton; Michael_Horton@fws.gov; 703-358-2374","2012-04-30","2012-04-30"]
["Section 7 Range for listed species ","Edit Dataset Manager Info","Wendy Blake-Coleman <Blake-Coleman.Wendy@epamail.epa.gov>","Mike Horton; Michael_Horton@fws.gov; 703-358-2375","2012-04-30","2012-04-30"]
["Coastal Barrier Resources System ","Remove","Wendy Blake-Coleman <Blake-Coleman.Wendy@epamail.epa.gov>","Remove the Coastal Barrier Resources System from Water -Oceans and Coast","2012-05-03","2012-05-04"]
["Non-Projected Boundaries","No Change - Outreach Action","\"Vandegraft, Doug L\" <Douglas.Vandegraft@boem.gov>","Projected boundaries are generated when a non-projected boundary (that follows a coastline, stream, ridge, township line, etc.) is used as a baseline from which to project another boundary from.  The projected and non-projected boundaries are parallel to each other.  Example:  the Submerged Lands Act boundary is projected 3 nautical miles seaward of the coastal baseline of the U.S.","2012-05-03","2012-05-04"]
["Projected Boundaries","No Change - Outreach Action","\"Vandegraft, Doug L\" <Douglas.Vandegraft@boem.gov>","Projected boundaries are generated when a non-projected boundary (that follows a coastline, stream, ridge, township line, etc.) is used as a baseline from which to project another boundary from.  The projected and non-projected boundaries are parallel to each other.  Example:  the Submerged Lands Act boundary is projected 3 nautical miles seaward of the coastal baseline of the U.S.","2012-05-03","2012-05-04"]
["NOAA National Weather Service GIS Data","Edit Dataset Manager Info","Anne Ball <anne.ball@noaa.gov>","if you need to include contacts for the four NOAA datasets that are still missing contacts, please use my name (Anne Ball, anne.ball@noaa.gov).  I will give you replacement contacts in the future. ","2012-05-04","2012-05-07"]
["National Data Buoy Center (NDBC) Recent and Historical Data","Edit Dataset Manager Info","Anne Ball <anne.ball@noaa.gov>","if you need to include contacts for the four NOAA datasets that are still missing contacts, please use my name (Anne Ball, anne.ball@noaa.gov).  I will give you replacement contacts in the future. ","2012-05-04","2012-05-07"]
["U.S. Marine Protected Areas Boundaries","Edit Dataset Manager Info","Anne Ball <anne.ball@noaa.gov>","if you need to include contacts for the four NOAA datasets that are still missing contacts, please use my name (Anne Ball, anne.ball@noaa.gov).  I will give you replacement contacts in the future. ","2012-05-04","2012-05-07"]
["Elevation Bathymetric - Ocean, Coastal, and Great Lakes Bathymetry ","Edit Dataset Manager Info","Anne Ball <anne.ball@noaa.gov>","if you need to include contacts for the four NOAA datasets that are still missing contacts, please use my name (Anne Ball, anne.ball@noaa.gov).  I will give you replacement contacts in the future. ","2012-05-04","2012-05-07"]
["Critical Habitat for Threatened and Endangered Species","Edit Dataset Name ","Wendy Blake-Coleman <Blake-Coleman.Wendy@epamail.epa.gov> and Chris Lett <Chris.Lett@fws.gov>","Catherine: of the  5 FWS data sets on the  list only two remain after my conversation with Chris.   \n \n1. FWS Critical Habitat for Threatened and Endangered Species Dataset- this is a combination of row one and four of the  Biota Theme )\n2. FWS Section 7 Range for Listed Species Dataset (row 8 the Biota Theme) \n \nChris claims there is no such thing as a data manager at  FWS- and that the person who was going to be the theme manager just retired- so for now just put in TBD. Please send back a new version with these changes and I will then ask that  Chris talk to her manager (Martha Baily) and give us the best name.  Bill Wilen had given me the name Mike Horton, - but Chris thinks he is only an application manager not a data manager. \n","2012-05-09","2012-05-09"]
["Endangered Species (Threatened and Endangered Species System)","Remove","Wendy Blake-Coleman <Blake-Coleman.Wendy@epamail.epa.gov> and Chris Lett <Chris.Lett@fws.gov>","Catherine: of the  5 FWS data sets on the  list only two remain after my conversation with Chris.   \n \n1. FWS Critical Habitat for Threatened and Endangered Species Dataset- this is a combination of row one and four of the  Biota Theme )\n2. FWS Section 7 Range for Listed Species Dataset (row 8 the Biota Theme) \n \nChris claims there is no such thing as a data manager at  FWS- and that the person who was going to be the theme manager just retired- so for now just put in TBD. Please send back a new version with these changes and I will then ask that  Chris talk to her manager (Martha Baily) and give us the best name.  Bill Wilen had given me the name Mike Horton, - but Chris thinks he is only an application manager not a data manager. \n","2012-05-09","2012-05-09"]
[" Section 7 Range for Listed Species","No Action - Confirmed Dataset on List","Wendy Blake-Coleman <Blake-Coleman.Wendy@epamail.epa.gov> and Chris Lett <Chris.Lett@fws.gov>","Catherine: of the  5 FWS data sets on the  list only two remain after my conversation with Chris.   \n \n1. FWS Critical Habitat for Threatened and Endangered Species Dataset- this is a combination of row one and four of the  Biota Theme )\n2. FWS Section 7 Range for Listed Species Dataset (row 8 the Biota Theme) \n \nChris claims there is no such thing as a data manager at  FWS- and that the person who was going to be the theme manager just retired- so for now just put in TBD. Please send back a new version with these changes and I will then ask that  Chris talk to her manager (Martha Baily) and give us the best name.  Bill Wilen had given me the name Mike Horton, - but Chris thinks he is only an application manager not a data manager. \n","2012-05-09","2012-05-09"]
["Current Range for listed species ","Remove","Wendy Blake-Coleman <Blake-Coleman.Wendy@epamail.epa.gov> and Chris Lett <Chris.Lett@fws.gov>","Catherine: of the  5 FWS data sets on the  list only two remain after my conversation with Chris.   \n \n1. FWS Critical Habitat for Threatened and Endangered Species Dataset- this is a combination of row one and four of the  Biota Theme )\n2. FWS Section 7 Range for Listed Species Dataset (row 8 the Biota Theme) \n \nChris claims there is no such thing as a data manager at  FWS- and that the person who was going to be the theme manager just retired- so for now just put in TBD. Please send back a new version with these changes and I will then ask that  Chris talk to her manager (Martha Baily) and give us the best name.  Bill Wilen had given me the name Mike Horton, - but Chris thinks he is only an application manager not a data manager. \n","2012-05-09","2012-05-09"]
["Recovery Range for listed species ","Remove","Wendy Blake-Coleman <Blake-Coleman.Wendy@epamail.epa.gov> and Chris Lett <Chris.Lett@fws.gov>","Catherine: of the  5 FWS data sets on the  list only two remain after my conversation with Chris.   \n \n1. FWS Critical Habitat for Threatened and Endangered Species Dataset- this is a combination of row one and four of the  Biota Theme )\n2. FWS Section 7 Range for Listed Species Dataset (row 8 the Biota Theme) \n \nChris claims there is no such thing as a data manager at  FWS- and that the person who was going to be the theme manager just retired- so for now just put in TBD. Please send back a new version with these changes and I will then ask that  Chris talk to her manager (Martha Baily) and give us the best name.  Bill Wilen had given me the name Mike Horton, - but Chris thinks he is only an application manager not a data manager. \n","2012-05-09","2012-05-09"]
["Critical Habitat for Threatened and Endangered Species Dataset","Edit Dataset Manager Info","Wendy Blake-Coleman <Blake-Coleman.Wendy@epamail.epa.gov> and Chris Lett <Chris.Lett@fws.gov>","Chris Lett\nchris_lett@fws.gov\nOffice: 303-275-2348\nOn the 2 FWS datasets under Biota for now put Chris Letts name as the data set manager and use her email , and telephone number. There have been some retirements - and they are still sorting out things WBC","2012-05-14","2012-05-15"]
["Section 7 Range for Listed Species Dataset","Edit Dataset Manager Info","Wendy Blake-Coleman <Blake-Coleman.Wendy@epamail.epa.gov> and Chris Lett <Chris.Lett@fws.gov>","Chris Lett\nchris_lett@fws.gov\nOffice: 303-275-2348\nOn the 2 FWS datasets under Biota for now put Chris Letts name as the data set manager and use her email , and telephone number. There have been some retirements - and they are still sorting out things WBC","2012-05-14","2012-05-15"]
["AIR, ANVSA, Hawaiian Homelands Boundaries","Remove","Anne O'Connor <anne.v.o.connor@census.gov> and Lynda Liptrap <lynda.a.liptrap@census.gov>",null,"2012-06-05","2012-06-05"]
["All Lines (2010 Census)","Remove","Anne O'Connor <anne.v.o.connor@census.gov> and Lynda Liptrap <lynda.a.liptrap@census.gov>",null,"2012-06-05","2012-06-05"]
["Congressional District Boundaries","Remove","Anne O'Connor <anne.v.o.connor@census.gov> and Lynda Liptrap <lynda.a.liptrap@census.gov>",null,"2012-06-05","2012-06-05"]
["County, place, MCD Boundaries","Remove","Anne O'Connor <anne.v.o.connor@census.gov> and Lynda Liptrap <lynda.a.liptrap@census.gov>",null,"2012-06-05","2012-06-05"]
["FIPS/ANSI codes for states, counties, congressional districts & metro/micropolitan areas","Remove","Anne O'Connor <anne.v.o.connor@census.gov> and Lynda Liptrap <lynda.a.liptrap@census.gov>",null,"2012-06-05","2012-06-05"]
["Metropolitan/micropolitan area boundaries","Remove","Anne O'Connor <anne.v.o.connor@census.gov> and Lynda Liptrap <lynda.a.liptrap@census.gov>",null,"2012-06-05","2012-06-05"]
["Oklahoma Tribal Joint Use Areas","Remove","Anne O'Connor <anne.v.o.connor@census.gov> and Lynda Liptrap <lynda.a.liptrap@census.gov>",null,"2012-06-05","2012-06-05"]
["School District Boundaries","Remove","Anne O'Connor <anne.v.o.connor@census.gov> and Lynda Liptrap <lynda.a.liptrap@census.gov>",null,"2012-06-05","2012-06-05"]
["State (+ Territories) Boundaries","Remove","Anne O'Connor <anne.v.o.connor@census.gov> and Lynda Liptrap <lynda.a.liptrap@census.gov>",null,"2012-06-05","2012-06-05"]
["Statistical Area Boundaries (tracts, blocks, UAs, CDPs, etc)","Remove","Anne O'Connor <anne.v.o.connor@census.gov> and Lynda Liptrap <lynda.a.liptrap@census.gov>",null,"2012-06-05","2012-06-05"]
["TIGER (many statistical boundaries)","Remove","Anne O'Connor <anne.v.o.connor@census.gov> and Lynda Liptrap <lynda.a.liptrap@census.gov>",null,"2012-06-05","2012-06-05"]
["Voting District Boundaries","Remove","Anne O'Connor <anne.v.o.connor@census.gov> and Lynda Liptrap <lynda.a.liptrap@census.gov>",null,"2012-06-05","2012-06-05"]
["County Boundaries","Remove","Anne O'Connor <anne.v.o.connor@census.gov> and Lynda Liptrap <lynda.a.liptrap@census.gov>",null,"2012-06-05","2012-06-05"]
["Place and MCD Boundaries","Remove","Anne O'Connor <anne.v.o.connor@census.gov> and Lynda Liptrap <lynda.a.liptrap@census.gov>",null,"2012-06-05","2012-06-05"]
["Metropolitan Division (2010 Census)","Remove Duplicate","Anne O'Connor <anne.v.o.connor@census.gov> and Lynda Liptrap <lynda.a.liptrap@census.gov>",null,"2012-06-05","2012-06-05"]
["TIGER (Roads/Rail)","Remove","Anne O'Connor <anne.v.o.connor@census.gov> and Lynda Liptrap <lynda.a.liptrap@census.gov>",null,"2012-06-05","2012-06-05"]
["Area Hydrography (2010 Census)","Remove","Anne O'Connor <anne.v.o.connor@census.gov> and Lynda Liptrap <lynda.a.liptrap@census.gov>",null,"2012-06-05","2012-06-05"]
["Topological Faces-Area Hydrography Relationship File","Remove","Anne O'Connor <anne.v.o.connor@census.gov> and Lynda Liptrap <lynda.a.liptrap@census.gov>",null,"2012-06-05","2012-06-05"]
["Tribal Block Group (2010 Census)","Add","Anne O'Connor <anne.v.o.connor@census.gov> and Lynda Liptrap <lynda.a.liptrap@census.gov>",null,"2012-06-05","2012-06-05"]
["Tribal Census Tract (2010 Census)","Add","Anne O'Connor <anne.v.o.connor@census.gov> and Lynda Liptrap <lynda.a.liptrap@census.gov>",null,"2012-06-05","2012-06-05"]
["Urban Areas (2010 Census)","Add","Anne O'Connor <anne.v.o.connor@census.gov> and Lynda Liptrap <lynda.a.liptrap@census.gov>",null,"2012-06-05","2012-06-05"]
["Redistricting Data (2010 Census)","Add","Anne O'Connor <anne.v.o.connor@census.gov> and Lynda Liptrap <lynda.a.liptrap@census.gov>",null,"2012-06-05","2012-06-05"]
["Subminor Civil Division (2010 Census)","Add","Anne O'Connor <anne.v.o.connor@census.gov> and Lynda Liptrap <lynda.a.liptrap@census.gov>",null,"2012-06-05","2012-06-05"]
["ZIP Code Tabulation Area (2010 Census)","Add","Anne O'Connor <anne.v.o.connor@census.gov> and Lynda Liptrap <lynda.a.liptrap@census.gov>",null,"2012-06-05","2012-06-05"]
["Topological Faces - Military Installation Relationship File","Add","Anne O'Connor <anne.v.o.connor@census.gov> and Lynda Liptrap <lynda.a.liptrap@census.gov>",null,"2012-06-05","2012-06-05"]
["Rails","Add","Anne O'Connor <anne.v.o.connor@census.gov> and Lynda Liptrap <lynda.a.liptrap@census.gov>",null,"2012-06-05","2012-06-05"]
["Block Shapefiles with Population and Housing Unit Data","Add","Anne O'Connor <anne.v.o.connor@census.gov> and Lynda Liptrap <lynda.a.liptrap@census.gov>",null,"2012-06-05","2012-06-05"]
["5-digit ZIP Code Tabulation Area (Census 2000)","Change Theme ","Anne O'Connor <anne.v.o.connor@census.gov> and Lynda Liptrap <lynda.a.liptrap@census.gov>","From Cultural and Demographic Statistics to Governmental Units to support elimination of Cultural and Demographic Statistics Theme","2012-06-05","2012-06-05"]
["ANSI codes for  metro/micropolitan areas","Change Theme ","Anne O'Connor <anne.v.o.connor@census.gov> and Lynda Liptrap <lynda.a.liptrap@census.gov>","From Cultural and Demographic Statistics to Governmental Units to support elimination of Cultural and Demographic Statistics Theme","2012-06-05","2012-06-05"]
["ANSI codes for congressional districts","Change Theme ","Anne O'Connor <anne.v.o.connor@census.gov> and Lynda Liptrap <lynda.a.liptrap@census.gov>","From Cultural and Demographic Statistics to Governmental Units to support elimination of Cultural and Demographic Statistics Theme","2012-06-05","2012-06-05"]
["ANSI codes for counties","Change Theme ","Anne O'Connor <anne.v.o.connor@census.gov> and Lynda Liptrap <lynda.a.liptrap@census.gov>","From Cultural and Demographic Statistics to Governmental Units to support elimination of Cultural and Demographic Statistics Theme","2012-06-05","2012-06-05"]
["ANSI codes for states","Change Theme ","Anne O'Connor <anne.v.o.connor@census.gov> and Lynda Liptrap <lynda.a.liptrap@census.gov>","From Cultural and Demographic Statistics to Governmental Units to support elimination of Cultural and Demographic Statistics Theme","2012-06-05","2012-06-05"]
["Block (2010 Census)","Change Theme ","Anne O'Connor <anne.v.o.connor@census.gov> and Lynda Liptrap <lynda.a.liptrap@census.gov>","From Cultural and Demographic Statistics to Governmental Units to support elimination of Cultural and Demographic Statistics Theme","2012-06-05","2012-06-05"]
["Block (Census 2000)","Change Theme ","Anne O'Connor <anne.v.o.connor@census.gov> and Lynda Liptrap <lynda.a.liptrap@census.gov>","From Cultural and Demographic Statistics to Governmental Units to support elimination of Cultural and Demographic Statistics Theme","2012-06-05","2012-06-05"]
["Block Group (Census 2000)","Change Theme ","Anne O'Connor <anne.v.o.connor@census.gov> and Lynda Liptrap <lynda.a.liptrap@census.gov>","From Cultural and Demographic Statistics to Governmental Units to support elimination of Cultural and Demographic Statistics Theme","2012-06-05","2012-06-05"]
["Block Group (Census 2010)","Change Theme ","Anne O'Connor <anne.v.o.connor@census.gov> and Lynda Liptrap <lynda.a.liptrap@census.gov>","From Cultural and Demographic Statistics to Governmental Units to support elimination of Cultural and Demographic Statistics Theme","2012-06-05","2012-06-05"]
["Census 2000 FIPS 55 Codes","Change Theme ","Anne O'Connor <anne.v.o.connor@census.gov> and Lynda Liptrap <lynda.a.liptrap@census.gov>","From Cultural and Demographic Statistics to Governmental Units to support elimination of Cultural and Demographic Statistics Theme","2012-06-05","2012-06-05"]
["Census Tract (2010 Census)","Change Theme ","Anne O'Connor <anne.v.o.connor@census.gov> and Lynda Liptrap <lynda.a.liptrap@census.gov>","From Cultural and Demographic Statistics to Governmental Units to support elimination of Cultural and Demographic Statistics Theme","2012-06-05","2012-06-05"]
["Census Tract (Census 2000)","Change Theme ","Anne O'Connor <anne.v.o.connor@census.gov> and Lynda Liptrap <lynda.a.liptrap@census.gov>","From Cultural and Demographic Statistics to Governmental Units to support elimination of Cultural and Demographic Statistics Theme","2012-06-05","2012-06-05"]
["Combined Statistical Area (2010 Census)","Change Theme ","Anne O'Connor <anne.v.o.connor@census.gov> and Lynda Liptrap <lynda.a.liptrap@census.gov>","From Cultural and Demographic Statistics to Governmental Units to support elimination of Cultural and Demographic Statistics Theme","2012-06-05","2012-06-05"]
["Elementary School District (2010 Census)","Change Theme ","Anne O'Connor <anne.v.o.connor@census.gov> and Lynda Liptrap <lynda.a.liptrap@census.gov>","From Cultural and Demographic Statistics to Governmental Units to support elimination of Cultural and Demographic Statistics Theme","2012-06-05","2012-06-05"]
["Elementary School District (Census 2000)","Change Theme ","Anne O'Connor <anne.v.o.connor@census.gov> and Lynda Liptrap <lynda.a.liptrap@census.gov>","From Cultural and Demographic Statistics to Governmental Units to support elimination of Cultural and Demographic Statistics Theme","2012-06-05","2012-06-05"]
["Metropolitan/micropolitan Statistical Area (2010 Census)","Change Theme ","Anne O'Connor <anne.v.o.connor@census.gov> and Lynda Liptrap <lynda.a.liptrap@census.gov>","From Cultural and Demographic Statistics to Governmental Units to support elimination of Cultural and Demographic Statistics Theme","2012-06-05","2012-06-05"]
["Oklahoma Tribal Statistical Areas","Change Theme ","Anne O'Connor <anne.v.o.connor@census.gov> and Lynda Liptrap <lynda.a.liptrap@census.gov>","From Cultural and Demographic Statistics to Governmental Units to support elimination of Cultural and Demographic Statistics Theme","2012-06-05","2012-06-05"]
["Public Use Microdata Area (Census 2000)","Change Theme ","Anne O'Connor <anne.v.o.connor@census.gov> and Lynda Liptrap <lynda.a.liptrap@census.gov>","From Cultural and Demographic Statistics to Governmental Units to support elimination of Cultural and Demographic Statistics Theme","2012-06-05","2012-06-05"]
["Secondary School District (2010 Census)","Change Theme ","Anne O'Connor <anne.v.o.connor@census.gov> and Lynda Liptrap <lynda.a.liptrap@census.gov>","From Cultural and Demographic Statistics to Governmental Units to support elimination of Cultural and Demographic Statistics Theme","2012-06-05","2012-06-05"]
["Secondary School District (Census 2000)","Change Theme ","Anne O'Connor <anne.v.o.connor@census.gov> and Lynda Liptrap <lynda.a.liptrap@census.gov>","From Cultural and Demographic Statistics to Governmental Units to support elimination of Cultural and Demographic Statistics Theme","2012-06-05","2012-06-05"]
["Super Public Use Microdata Area (Census 2000)","Change Theme ","Anne O'Connor <anne.v.o.connor@census.gov> and Lynda Liptrap <lynda.a.liptrap@census.gov>","From Cultural and Demographic Statistics to Governmental Units to support elimination of Cultural and Demographic Statistics Theme","2012-06-05","2012-06-05"]
["Topological Faces (2010 Census)","Change Theme ","Anne O'Connor <anne.v.o.connor@census.gov> and Lynda Liptrap <lynda.a.liptrap@census.gov>","From Cultural and Demographic Statistics to Governmental Units to support elimination of Cultural and Demographic Statistics Theme","2012-06-05","2012-06-05"]
["Unified School District (2010 Census)","Change Theme ","Anne O'Connor <anne.v.o.connor@census.gov> and Lynda Liptrap <lynda.a.liptrap@census.gov>","From Cultural and Demographic Statistics to Governmental Units to support elimination of Cultural and Demographic Statistics Theme","2012-06-05","2012-06-05"]
["Unified School District (Census 2000)","Change Theme ","Anne O'Connor <anne.v.o.connor@census.gov> and Lynda Liptrap <lynda.a.liptrap@census.gov>","From Cultural and Demographic Statistics to Governmental Units to support elimination of Cultural and Demographic Statistics Theme","2012-06-05","2012-06-05"]
["Urban Growth Area (2010 Census)","Change Theme ","Anne O'Connor <anne.v.o.connor@census.gov> and Lynda Liptrap <lynda.a.liptrap@census.gov>","From Cultural and Demographic Statistics to Governmental Units to support elimination of Cultural and Demographic Statistics Theme","2012-06-05","2012-06-05"]
["Urban Growth Area (Census 2000)","Change Theme ","Anne O'Connor <anne.v.o.connor@census.gov> and Lynda Liptrap <lynda.a.liptrap@census.gov>","From Cultural and Demographic Statistics to Governmental Units to support elimination of Cultural and Demographic Statistics Theme","2012-06-05","2012-06-05"]
["Voting District (2010 Census)","Change Theme ","Anne O'Connor <anne.v.o.connor@census.gov> and Lynda Liptrap <lynda.a.liptrap@census.gov>","From Cultural and Demographic Statistics to Governmental Units to support elimination of Cultural and Demographic Statistics Theme","2012-06-05","2012-06-05"]
["Voting District (Census 2000)","Change Theme ","Anne O'Connor <anne.v.o.connor@census.gov> and Lynda Liptrap <lynda.a.liptrap@census.gov>","From Cultural and Demographic Statistics to Governmental Units to support elimination of Cultural and Demographic Statistics Theme","2012-06-05","2012-06-05"]
["Point of Landmark (2010 Census)","Edit Dataset Name ","Anne O'Connor <anne.v.o.connor@census.gov> and Lynda Liptrap <lynda.a.liptrap@census.gov>","From Point of Landmark to Point Landmark","2012-06-05","2012-06-05"]
["Place (2010 Census)","Edit Dataset Name ","Anne O'Connor <anne.v.o.connor@census.gov> and Lynda Liptrap <lynda.a.liptrap@census.gov>","From Place (2010 Census) to Census Designated Plate (2010 Census)","2012-06-05","2012-06-05"]
["Place (Census 2000)","Edit Dataset Name ","Anne O'Connor <anne.v.o.connor@census.gov> and Lynda Liptrap <lynda.a.liptrap@census.gov>","From Place (Census 2000) to Census Designated Place (Census 2000)","2012-06-05","2012-06-05"]
["Linear Water Features","Remove","Anne O'Connor <anne.v.o.connor@census.gov> and Lynda Liptrap <lynda.a.liptrap@census.gov>","Delete Linear Hydrography","2012-06-05","2012-06-05"]
["Oklahoma Tribal Statistical Areas","Edit Dataset Manager Info","Anne O'Connor <anne.v.o.connor@census.gov> and Lynda Liptrap <lynda.a.liptrap@census.gov>","Jennifer Holland","2012-06-05","2012-06-05"]
["Block Group (Census 2010)","Edit Dataset Name ","Anne O'Connor <anne.v.o.connor@census.gov> and Lynda Liptrap <lynda.a.liptrap@census.gov>","From Blcok Group (Census 2010) to Block Group (2010 Census)","2012-06-05","2012-06-05"]
["Secondary School District (2010 Census)","Edit Dataset Name ","Anne O'Connor <anne.v.o.connor@census.gov> and Lynda Liptrap <lynda.a.liptrap@census.gov>","From Secondary School District (2010 Census) to School District - Secondary (2010 Census)","2012-06-05","2012-06-05"]
["Secondary School District (Census 2000)","Edit Dataset Name ","Anne O'Connor <anne.v.o.connor@census.gov> and Lynda Liptrap <lynda.a.liptrap@census.gov>","From Secondary School District (Census 2000) to School District - Secondary (Census 2000)","2012-06-05","2012-06-05"]
["Elementary School District (2010 Census)","Edit Dataset Name ","Anne O'Connor <anne.v.o.connor@census.gov> and Lynda Liptrap <lynda.a.liptrap@census.gov>","From Elementary School District (2010 Census) to School District - Elementary (2010 Census)","2012-06-05","2012-06-05"]
["Elementary School District (Census 2000)","Edit Dataset Name ","Anne O'Connor <anne.v.o.connor@census.gov> and Lynda Liptrap <lynda.a.liptrap@census.gov>","From Elementary School District (Census 2000) toSchool District - Elementary (Census 2000)","2012-06-05","2012-06-05"]
["Land Fire Dataset","Edit Agency Info","Catherine Nolan","USDA-FS","2012-06-05","2012-06-05"]
["NONE","Edit Dataset Manager Info","Anne O'Connor <anne.v.o.connor@census.gov> and Lynda Liptrap <lynda.a.liptrap@census.gov>","Jennifer Holland's phone number is (301) 763-2751","2012-06-05","2012-06-05"]
["National Center for Health Statistics (Atlas of US Mortality)","Remove","Wendy Blake-Coleman","This is not a dataset. ","2012-06-05","2012-06-05"]

{"sheet":"11-18-2011","index":27,"n_rows":292,"n_cols":15,"rows_kept":292,"cut":false,"hidden":true,"merged":[]}
["ORIGINAL (beginning of 2011)","LOC FINAL (October 2011)","NGDA List (October 2011)","FINAL List (November 2011)","Theme","Agency","Dataset Manager","Email","Q1 How many data set(s) do you have? It is a single set or multiple sets? ","Q2 Are you a data set manager?","Q3 Are you the POC for transferring the data set and/or for information about the data set?","Q4 How often is the data set updated?","Q5 Is there an archive/backup of the data set or do you maintain an archived copy of it? If yes, how far back do you maintain a copy? Is it easily accessible?","Q6 Does the data set go by a different name or is it referred to internally by another descriptive name?","M\nP\nS"]
[null,null,"Critical Habitat ",{"$f":"IF(C2=0,B2,C2)","v":"Critical Habitat "},"Biota","DOI-FWS"]
[null,null,"Current Range for listed species ","Current Range for listed species ","Biota","DOI-FWS"]
["ECOMAP Data Sets (Ecological Subregions: Sections and Subsections for the Conterminous United States ) ","ECOMAP Datasets (Ecological Subregions: Sections and Subsections for the Conterminous United States ) ","ECOMAP Datasets (Ecological Subregions: Sections and Subsections for the Conterminous United States ) ","ECOMAP Datasets (Ecological Subregions: Sections and Subsections for the Conterminous United States ) ","Biota","USDA-FS","David T. Cleland","dcleland@fs.fed.us",{"$f":"VLOOKUP(B4,'[4]LOC FINAL with new Themes'!A:M,7,0)","v":"One, single set"},{"$f":"VLOOKUP(B4,'[4]LOC FINAL with new Themes'!A:M,8,0)","v":"Yes"},{"$f":"VLOOKUP(B4,'[4]LOC FINAL with new Themes'!A:M,9,0)","v":"Yes"},{"$f":"VLOOKUP(B4,'[4]LOC FINAL with new Themes'!A:M,10,0)","v":"Maps are updated on a 10-year cycle"},{"$f":"VLOOKUP(B4,'[4]LOC FINAL with new Themes'!A:M,11,0)","v":"The data is housed at and served by the Forest Service geodata portal, and is easily accessible.  The web address is: http://fsgeodata.fs.fed.us/other_resources/ecosubregions.html "},{"$f":"VLOOKUP(B4,'[4]LOC FINAL with new Themes'!A:M,12,0)","v":"?   Internally, the data is named ECOMAP or the National Hierarchy of Ecological Units. "},{"$f":"VLOOKUP(B4,'[4]LOC FINAL with new Themes'!A:M,13,0)","v":"S"}]
[null,null,"Endangered Species (Threatened and Endangered Species System)","Endangered Species (Threatened and Endangered Species System)","Biota","DOI-FWS"]
["Env Sens Index Maps - classified shoreline","Env Sens Index Maps - classified shoreline","Environmental Sensitivity Index (ESI) Data and Maps","Environmental Sensitivity Index (ESI) Data and Maps","Biota","DOC-NOAA","Jill Petersen","jill.petersen@noaa.gov",{"$f":"VLOOKUP(B6,'[4]LOC FINAL with new Themes'!A:M,7,0)","v":"There are approximately 70 different atlases. There are a few that are still not available in a GIS format, (approx 7 of the approx 70!) - these are available as the hard copy product and as PDFs (scanned). The remaining atlases are available in multiple GIS formats - Arc Export files, Geodatabase with an ArcMap map document complete with all relates established and properly symbolized, Shape files with an ArcView 3.x project, a free ESI viewer that allows viewing, queries and printing (in house mapping program and filemaker pro) as well as PDF format and the hard copy product. These can be downloaded from http://response.restoration.noaa.gov/esi_download This page is in progress, but should be complete fairly quickly.\n\n"},{"$f":"VLOOKUP(B6,'[4]LOC FINAL with new Themes'!A:M,8,0)","v":"Yes"},{"$f":"VLOOKUP(B6,'[4]LOC FINAL with new Themes'!A:M,9,0)","v":"Yes "},{"$f":"VLOOKUP(B6,'[4]LOC FINAL with new Themes'!A:M,10,0)","v":"- High resolution products have no defined update schedule.  TBD by geog/project."},{"$f":"VLOOKUP(B6,'[4]LOC FINAL with new Themes'!A:M,11,0)","v":"Yes and no. We have archives of all the digital data as well as all the PDFs (scanned or produced with the digital data map comps). Many of the hard copy atlases from the first round of ESI maps were sent to the Library of Commerce. Others I have kept, but no very organized situation. However, we have all of the historic PDFs which are an exact duplicate of the hard copy atlas, so that is something. Historic data is going to be served from the above link as well. That will be added as the current data sets are completed."},{"$f":"VLOOKUP(B6,'[4]LOC FINAL with new Themes'!A:M,12,0)","v":"ESI is the common abbreviation for these maps. Other than that, Environmental Sensitivity Index Maps, Shoreline Sensitivity maps, Environmental Sensitivity maps..... These maps have the classified shoreline, as well as summaries of biological and human use resource particularly sensitive to oiling. "},{"$f":"VLOOKUP(B6,'[4]LOC FINAL with new Themes'!A:M,13,0)","v":"M "}]
["Environmental Sensitivity Index Maps","Environmental Sensitivity Index Maps","Environmental Sensitivity Index (ESI) Data and Maps","Environmental Sensitivity Index (ESI) Data and Maps","Biota","DOC-NOAA","Jill Petersen","jill.petersen@noaa.gov",{"$f":"VLOOKUP(B7,'[4]LOC FINAL with new Themes'!A:M,7,0)","v":"Same as Env Sens Index Maps - classified shoreline"},{"$f":"VLOOKUP(B7,'[4]LOC FINAL with new Themes'!A:M,8,0)","v":0},{"$f":"VLOOKUP(B7,'[4]LOC FINAL with new Themes'!A:M,9,0)","v":0},{"$f":"VLOOKUP(B7,'[4]LOC FINAL with new Themes'!A:M,10,0)","v":"- Hawaii is TBD, but most likely will end up being a 10 year update cycle."},{"$f":"VLOOKUP(B7,'[4]LOC FINAL with new Themes'!A:M,11,0)","v":0},{"$f":"VLOOKUP(B7,'[4]LOC FINAL with new Themes'!A:M,12,0)","v":0},{"$f":"VLOOKUP(B7,'[4]LOC FINAL with new Themes'!A:M,13,0)","v":0}]
["GAP Program Dataset","GAP Program Dataset","GAP Program Dataset","GAP Program Dataset","Biota","DOI-USGS","Kevin Gergely","gergely@usgs.gov",{"$f":"VLOOKUP(B8,'[4]LOC FINAL with new Themes'!A:M,7,0)","v":"POC; multiple data sets in single location, building three fundamental data layers, two are national (protected areas, land cover dataset); backup; six months, annually)"},{"$f":"VLOOKUP(B8,'[4]LOC FINAL with new Themes'!A:M,8,0)","v":0},{"$f":"VLOOKUP(B8,'[4]LOC FINAL with new Themes'!A:M,9,0)","v":0},{"$f":"VLOOKUP(B8,'[4]LOC FINAL with new Themes'!A:M,10,0)","v":0},{"$f":"VLOOKUP(B8,'[4]LOC FINAL with new Themes'!A:M,11,0)","v":0},{"$f":"VLOOKUP(B8,'[4]LOC FINAL with new Themes'!A:M,12,0)","v":0},{"$f":"VLOOKUP(B8,'[4]LOC FINAL with new Themes'!A:M,13,0)","v":"P"}]
["National Standardized Ecosystems Dataset","National Standardized Ecosystems Dataset","National Standardized Ecosystems Dataset","National Standardized Ecosystems Dataset","Biota","DOI-USGS","Roger Sayre","rsayre@usgs.gov",{"$f":"VLOOKUP(B9,'[4]LOC FINAL with new Themes'!A:M,7,0)","v":0},{"$f":"VLOOKUP(B9,'[4]LOC FINAL with new Themes'!A:M,8,0)","v":0},{"$f":"VLOOKUP(B9,'[4]LOC FINAL with new Themes'!A:M,9,0)","v":0},{"$f":"VLOOKUP(B9,'[4]LOC FINAL with new Themes'!A:M,10,0)","v":0},{"$f":"VLOOKUP(B9,'[4]LOC FINAL with new Themes'!A:M,11,0)","v":0},{"$f":"VLOOKUP(B9,'[4]LOC FINAL with new Themes'!A:M,12,0)","v":0},{"$f":"VLOOKUP(B9,'[4]LOC FINAL with new Themes'!A:M,13,0)","v":0}]
[null,null,"Recovery Range for listed species ","Recovery Range for listed species ","Biota","DOI-FWS"]
[null,null,"Section 7 Range for listed species ","Section 7 Range for listed species ","Biota","DOI-FWS"]
["Biomes, Ecoregions","Biomes, Ecoregions",null,"Biomes, Ecoregions","Biota ","DOI-USGS","Dan Phillips ","dphillips@usgs.gov",{"$f":"VLOOKUP(B12,'[4]LOC FINAL with new Themes'!A:M,7,0)","v":0},{"$f":"VLOOKUP(B12,'[4]LOC FINAL with new Themes'!A:M,8,0)","v":0},{"$f":"VLOOKUP(B12,'[4]LOC FINAL with new Themes'!A:M,9,0)","v":0},{"$f":"VLOOKUP(B12,'[4]LOC FINAL with new Themes'!A:M,10,0)","v":0},{"$f":"VLOOKUP(B12,'[4]LOC FINAL with new Themes'!A:M,11,0)","v":0},{"$f":"VLOOKUP(B12,'[4]LOC FINAL with new Themes'!A:M,12,0)","v":0},{"$f":"VLOOKUP(B12,'[4]LOC FINAL with new Themes'!A:M,13,0)","v":0}]
["Ecological Services","Ecological Services",null,"Ecological Services","Biota ","DOI-USGS","Dan Phillips ","dphillips@usgs.gov",{"$f":"VLOOKUP(B13,'[4]LOC FINAL with new Themes'!A:M,7,0)","v":0},{"$f":"VLOOKUP(B13,'[4]LOC FINAL with new Themes'!A:M,8,0)","v":0},{"$f":"VLOOKUP(B13,'[4]LOC FINAL with new Themes'!A:M,9,0)","v":0},{"$f":"VLOOKUP(B13,'[4]LOC FINAL with new Themes'!A:M,10,0)","v":0},{"$f":"VLOOKUP(B13,'[4]LOC FINAL with new Themes'!A:M,11,0)","v":0},{"$f":"VLOOKUP(B13,'[4]LOC FINAL with new Themes'!A:M,12,0)","v":0},{"$f":"VLOOKUP(B13,'[4]LOC FINAL with new Themes'!A:M,13,0)","v":0}]
["Habitats","Habitats",null,"Habitats","Biota ","DOI-USGS","Dan Phillips ","dphillips@usgs.gov",{"$f":"VLOOKUP(B14,'[4]LOC FINAL with new Themes'!A:M,7,0)","v":"see protected areas and land cover set; vertebrae species of US being developed (not complete for all species they want to include in it."},{"$f":"VLOOKUP(B14,'[4]LOC FINAL with new Themes'!A:M,8,0)","v":0},{"$f":"VLOOKUP(B14,'[4]LOC FINAL with new Themes'!A:M,9,0)","v":0},{"$f":"VLOOKUP(B14,'[4]LOC FINAL with new Themes'!A:M,10,0)","v":0},{"$f":"VLOOKUP(B14,'[4]LOC FINAL with new Themes'!A:M,11,0)","v":0},{"$f":"VLOOKUP(B14,'[4]LOC FINAL with new Themes'!A:M,12,0)","v":0},{"$f":"VLOOKUP(B14,'[4]LOC FINAL with new Themes'!A:M,13,0)","v":"M"}]
["Invasive Species","Invasive Species",null,"Invasive Species","Biota ","DOI-USGS","Dan Phillips ","dphillips@usgs.gov",{"$f":"VLOOKUP(B15,'[4]LOC FINAL with new Themes'!A:M,7,0)","v":"There are hundreds of datasets that are produced and maintained by the GAP program. Dan is not the data set manager, but I work with the people that maintain and update the datasets and maintains metadata.The data are updated at different intervals, especially now that they have moved more to a regional and national based approach. GAPS data sets presumably archived since 1990s."},{"$f":"VLOOKUP(B15,'[4]LOC FINAL with new Themes'!A:M,8,0)","v":0},{"$f":"VLOOKUP(B15,'[4]LOC FINAL with new Themes'!A:M,9,0)","v":0},{"$f":"VLOOKUP(B15,'[4]LOC FINAL with new Themes'!A:M,10,0)","v":0},{"$f":"VLOOKUP(B15,'[4]LOC FINAL with new Themes'!A:M,11,0)","v":0},{"$f":"VLOOKUP(B15,'[4]LOC FINAL with new Themes'!A:M,12,0)","v":0},{"$f":"VLOOKUP(B15,'[4]LOC FINAL with new Themes'!A:M,13,0)","v":"M"}]
["Species Distribution(amphibians, birds, reptiles, mammals, fishes, plants, etc)","Species Distribution (amphibians, birds, reptiles, mammals, fishes, plants, etc)",null,"Species Distribution (amphibians, birds, reptiles, mammals, fishes, plants, etc)","Biota ","DOI-USGS","Dan Phillips ","dphillips@usgs.gov",{"$f":"VLOOKUP(B16,'[4]LOC FINAL with new Themes'!A:M,7,0)","v":"There are hundreds of datasets that are produced and maintained by the GAP program. Dan is not the data set manager, but I work with the people that maintain and update the datasets and maintains metadata. The data are updated at different intervals, especially now that they have moved more to a regional and national based approach. GAPS data sets presumably archived since 1990s."},{"$f":"VLOOKUP(B16,'[4]LOC FINAL with new Themes'!A:M,8,0)","v":0},{"$f":"VLOOKUP(B16,'[4]LOC FINAL with new Themes'!A:M,9,0)","v":0},{"$f":"VLOOKUP(B16,'[4]LOC FINAL with new Themes'!A:M,10,0)","v":0},{"$f":"VLOOKUP(B16,'[4]LOC FINAL with new Themes'!A:M,11,0)","v":0},{"$f":"VLOOKUP(B16,'[4]LOC FINAL with new Themes'!A:M,12,0)","v":0},{"$f":"VLOOKUP(B16,'[4]LOC FINAL with new Themes'!A:M,13,0)","v":"M"}]
[{"$f":"SUBTOTAL(3,A2:A16)","v":10},{"$f":"SUBTOTAL(3,B2:B16)","v":10},{"$f":"SUBTOTAL(3,C2:C16)","v":10},{"$f":"SUBTOTAL(3,D2:D16)","v":15},"Biota Count"]
["General Land Office","General Land Office","General Land Office",{"$f":"IF(C18=0,B18,C18)","v":"General Land Office"},"Cadastre","DOI-BLM","Juan Palma","juan_palma@blm.gov",{"$f":"VLOOKUP(B18,'[4]LOC FINAL with new Themes'!A:M,7,0)","v":0},{"$f":"VLOOKUP(B18,'[4]LOC FINAL with new Themes'!A:M,8,0)","v":0},{"$f":"VLOOKUP(B18,'[4]LOC FINAL with new Themes'!A:M,9,0)","v":0},{"$f":"VLOOKUP(B18,'[4]LOC FINAL with new Themes'!A:M,10,0)","v":0},{"$f":"VLOOKUP(B18,'[4]LOC FINAL with new Themes'!A:M,11,0)","v":0},{"$f":"VLOOKUP(B18,'[4]LOC FINAL with new Themes'!A:M,12,0)","v":0},{"$f":"VLOOKUP(B18,'[4]LOC FINAL with new Themes'!A:M,13,0)","v":0}]
["Geographic Coordinate Data Base (GCDB)","Geographic Coordinate Data Base (GCDB)",null,"Geographic Coordinate Data Base (GCDB)","Cadastre","DOI-BLM","Don Buhler","don_buhler@blm.gov",{"$f":"VLOOKUP(B19,'[4]LOC FINAL with new Themes'!A:M,7,0)","v":"every agency has its own database; multiple data sets; standard being advanced and put into practice; federal interest is managed with BLM; state and local are authoritative sets for other lands; "},{"$f":"VLOOKUP(B19,'[4]LOC FINAL with new Themes'!A:M,8,0)","v":0},{"$f":"VLOOKUP(B19,'[4]LOC FINAL with new Themes'!A:M,9,0)","v":0},{"$f":"VLOOKUP(B19,'[4]LOC FINAL with new Themes'!A:M,10,0)","v":0},{"$f":"VLOOKUP(B19,'[4]LOC FINAL with new Themes'!A:M,11,0)","v":0},{"$f":"VLOOKUP(B19,'[4]LOC FINAL with new Themes'!A:M,12,0)","v":0},{"$f":"VLOOKUP(B19,'[4]LOC FINAL with new Themes'!A:M,13,0)","v":"M "}]
["LR 2000 - Master Title Plats ","LR 2000 - Master Title Plats ","LR 2000 - Attribute Information","LR 2000 - Attribute Information","Cadastre","DOI-BLM","Jeff Holdren","jeff_holdren@blm.gov",{"$f":"VLOOKUP(B20,'[4]LOC FINAL with new Themes'!A:M,7,0)","v":"listing of sales, rents, agricultural disposal and rights of way cases, group of data sets in one system; Kim Burns, division chief; not archived, there is a backup; Denver office handles"},{"$f":"VLOOKUP(B20,'[4]LOC FINAL with new Themes'!A:M,8,0)","v":0},{"$f":"VLOOKUP(B20,'[4]LOC FINAL with new Themes'!A:M,9,0)","v":0},{"$f":"VLOOKUP(B20,'[4]LOC FINAL with new Themes'!A:M,10,0)","v":0},{"$f":"VLOOKUP(B20,'[4]LOC FINAL with new Themes'!A:M,11,0)","v":0},{"$f":"VLOOKUP(B20,'[4]LOC FINAL with new Themes'!A:M,12,0)","v":0},{"$f":"VLOOKUP(B20,'[4]LOC FINAL with new Themes'!A:M,13,0)","v":"P"}]
["Manual of Surveying Instructions, Data Standards","Manual of Surveying Instructions, Data Standards",null,"Manual of Surveying Instructions, Data Standards","Cadastre","DOI-BLM","Don Buhler","don_buhler@blm.gov",{"$f":"VLOOKUP(B21,'[4]LOC FINAL with new Themes'!A:M,7,0)","v":0},{"$f":"VLOOKUP(B21,'[4]LOC FINAL with new Themes'!A:M,8,0)","v":0},{"$f":"VLOOKUP(B21,'[4]LOC FINAL with new Themes'!A:M,9,0)","v":0},{"$f":"VLOOKUP(B21,'[4]LOC FINAL with new Themes'!A:M,10,0)","v":0},{"$f":"VLOOKUP(B21,'[4]LOC FINAL with new Themes'!A:M,11,0)","v":0},{"$f":"VLOOKUP(B21,'[4]LOC FINAL with new Themes'!A:M,12,0)","v":0},{"$f":"VLOOKUP(B21,'[4]LOC FINAL with new Themes'!A:M,13,0)","v":0}]
["Mineral Estate - Fluids","Mineral Estate - Fluids",null,"Mineral Estate - Fluids","Cadastre","DOI-BLM","Tim Spisak ","tim_spisak@blm.gov",{"$f":"VLOOKUP(B22,'[4]LOC FINAL with new Themes'!A:M,7,0)","v":"mineral leasess, mining claims, rights of way, gases (single data set); BLM-managed lands but managed all federal mineral estate (comprehensive for mineraal estate) some electronic and some not"},{"$f":"VLOOKUP(B22,'[4]LOC FINAL with new Themes'!A:M,8,0)","v":0},{"$f":"VLOOKUP(B22,'[4]LOC FINAL with new Themes'!A:M,9,0)","v":0},{"$f":"VLOOKUP(B22,'[4]LOC FINAL with new Themes'!A:M,10,0)","v":0},{"$f":"VLOOKUP(B22,'[4]LOC FINAL with new Themes'!A:M,11,0)","v":0},{"$f":"VLOOKUP(B22,'[4]LOC FINAL with new Themes'!A:M,12,0)","v":0},{"$f":"VLOOKUP(B22,'[4]LOC FINAL with new Themes'!A:M,13,0)","v":"P"}]
["Mineral Estate - Solids","Mineral Estate - Solids",null,"Mineral Estate - Solids","Cadastre","DOI-BLM","Mitchell Leverette","mitchell_leverette@blm.gov",{"$f":"VLOOKUP(B23,'[4]LOC FINAL with new Themes'!A:M,7,0)","v":"mineral leasess, mining claims, rights of way, gases (single data set); BLM-managed lands but managed all federal mineral estate (comprehensive for mineral estate) some electronic and some not"},{"$f":"VLOOKUP(B23,'[4]LOC FINAL with new Themes'!A:M,8,0)","v":0},{"$f":"VLOOKUP(B23,'[4]LOC FINAL with new Themes'!A:M,9,0)","v":0},{"$f":"VLOOKUP(B23,'[4]LOC FINAL with new Themes'!A:M,10,0)","v":0},{"$f":"VLOOKUP(B23,'[4]LOC FINAL with new Themes'!A:M,11,0)","v":0},{"$f":"VLOOKUP(B23,'[4]LOC FINAL with new Themes'!A:M,12,0)","v":0},{"$f":"VLOOKUP(B23,'[4]LOC FINAL with new Themes'!A:M,13,0)","v":"P"}]
["Multipurpose Marine Cadastre","Multipurpose Marine Cadastre","Multipurpose Marine Cadastre","Multipurpose Marine Cadastre","Cadastre","DOI-MMS","James Fulmer","james.s.fulmer@mms.gov",{"$f":"VLOOKUP(B24,'[4]LOC FINAL with new Themes'!A:M,7,0)","v":"undeliverable email- neeed to identify new contact"},{"$f":"VLOOKUP(B24,'[4]LOC FINAL with new Themes'!A:M,8,0)","v":0},{"$f":"VLOOKUP(B24,'[4]LOC FINAL with new Themes'!A:M,9,0)","v":0},{"$f":"VLOOKUP(B24,'[4]LOC FINAL with new Themes'!A:M,10,0)","v":0},{"$f":"VLOOKUP(B24,'[4]LOC FINAL with new Themes'!A:M,11,0)","v":0},{"$f":"VLOOKUP(B24,'[4]LOC FINAL with new Themes'!A:M,12,0)","v":0},{"$f":"VLOOKUP(B24,'[4]LOC FINAL with new Themes'!A:M,13,0)","v":0}]
[null,null,"OCS Lease Blocks","OCS Lease Blocks","Cadastre","DOI-MMS"]
[null,null,"PADUS (Protected Areas Database of the US)","PADUS (Protected Areas Database of the US)","Cadastre","DOI-USGS"]
["Parcels","Parcels","Parcels","Parcels","Cadastre","DOI-BLM","Bob Ader","bob_ader@blm.gov",{"$f":"VLOOKUP(B27,'[4]LOC FINAL with new Themes'!A:M,7,0)","v":"every agency has its own database; multiple data sets; standard being advanced and put into practice; federal interest is managed with BLM; state and local are authoritative sets for other lands; current effort of federal inventory "},{"$f":"VLOOKUP(B27,'[4]LOC FINAL with new Themes'!A:M,8,0)","v":0},{"$f":"VLOOKUP(B27,'[4]LOC FINAL with new Themes'!A:M,9,0)","v":0},{"$f":"VLOOKUP(B27,'[4]LOC FINAL with new Themes'!A:M,10,0)","v":0},{"$f":"VLOOKUP(B27,'[4]LOC FINAL with new Themes'!A:M,11,0)","v":0},{"$f":"VLOOKUP(B27,'[4]LOC FINAL with new Themes'!A:M,12,0)","v":0},{"$f":"VLOOKUP(B27,'[4]LOC FINAL with new Themes'!A:M,13,0)","v":"M "}]
[null,null,"Protractions","Protractions","Cadastre","DOI-MMS"]
["Surface Estate","Surface Estate",null,"Surface Estate","Cadastre","DOI-BLM","Kim Burns","kim_m_burns@blm.gov",{"$f":"VLOOKUP(B29,'[4]LOC FINAL with new Themes'!A:M,7,0)","v":"lands administered by BLM; other agencies have own system; ownership of lands;  Tim Spisak, division chief; not archived, there is a backup; Denver office handles"},{"$f":"VLOOKUP(B29,'[4]LOC FINAL with new Themes'!A:M,8,0)","v":0},{"$f":"VLOOKUP(B29,'[4]LOC FINAL with new Themes'!A:M,9,0)","v":0},{"$f":"VLOOKUP(B29,'[4]LOC FINAL with new Themes'!A:M,10,0)","v":0},{"$f":"VLOOKUP(B29,'[4]LOC FINAL with new Themes'!A:M,11,0)","v":0},{"$f":"VLOOKUP(B29,'[4]LOC FINAL with new Themes'!A:M,12,0)","v":0},{"$f":"VLOOKUP(B29,'[4]LOC FINAL with new Themes'!A:M,13,0)","v":0}]
["U.S. Official Cadastral Survey Records","U.S. Official Cadastral Survey Records","U.S. Official Cadastral Survey Records","U.S. Official Cadastral Survey Records","Cadastre","DOI-BLM","Don Buhler","don_buhler@blm.gov",{"$f":"VLOOKUP(B30,'[4]LOC FINAL with new Themes'!A:M,7,0)","v":"every agency has its own database; multiple data sets; standard being advanced and put into practice; federal interest is managed with BLM; state and local are authoritative sets for other lands; state offices are scanning these records (survey plats and field notes); CDI (conveyence cards)"},{"$f":"VLOOKUP(B30,'[4]LOC FINAL with new Themes'!A:M,8,0)","v":0},{"$f":"VLOOKUP(B30,'[4]LOC FINAL with new Themes'!A:M,9,0)","v":0},{"$f":"VLOOKUP(B30,'[4]LOC FINAL with new Themes'!A:M,10,0)","v":0},{"$f":"VLOOKUP(B30,'[4]LOC FINAL with new Themes'!A:M,11,0)","v":0},{"$f":"VLOOKUP(B30,'[4]LOC FINAL with new Themes'!A:M,12,0)","v":0},{"$f":"VLOOKUP(B30,'[4]LOC FINAL with new Themes'!A:M,13,0)","v":"M "}]
["U.S. Public Land Survey System","U.S. Public Land Survey System","U.S. Public Land Survey System","U.S. Public Land Survey System","Cadastre","DOI-BLM","Don Buhler","don_buhler@blm.gov",{"$f":"VLOOKUP(B31,'[4]LOC FINAL with new Themes'!A:M,7,0)","v":"only federal agency that administers the PLSS; trying to get it to be logically one data set with different regions. (working copies for nine states in West); keep historical record in data base; schema 2 is the version to look at for archiving some time March 2012"},{"$f":"VLOOKUP(B31,'[4]LOC FINAL with new Themes'!A:M,8,0)","v":0},{"$f":"VLOOKUP(B31,'[4]LOC FINAL with new Themes'!A:M,9,0)","v":0},{"$f":"VLOOKUP(B31,'[4]LOC FINAL with new Themes'!A:M,10,0)","v":0},{"$f":"VLOOKUP(B31,'[4]LOC FINAL with new Themes'!A:M,11,0)","v":0},{"$f":"VLOOKUP(B31,'[4]LOC FINAL with new Themes'!A:M,12,0)","v":0},{"$f":"VLOOKUP(B31,'[4]LOC FINAL with new Themes'!A:M,13,0)","v":"P"}]
[{"$f":"SUBTOTAL(3,A18:A31)","v":11},{"$f":"SUBTOTAL(3,B18:B31)","v":11},{"$f":"SUBTOTAL(3,C18:C31)","v":9},{"$f":"SUBTOTAL(3,D18:D31)","v":14},"Cadastre Count"]
["Blended Sea Surface Temperature","Blended Sea Surface Temperature","Blended Sea Surface Temperature",{"$f":"IF(C33=0,B33,C33)","v":"Blended Sea Surface Temperature"},"Climate and Weather ","DOC-NOAA","Viva Banzon","Viva.Banzon@noaa.gov",{"$f":"VLOOKUP(B33,'[4]LOC FINAL with new Themes'!A:M,7,0)","v":0},{"$f":"VLOOKUP(B33,'[4]LOC FINAL with new Themes'!A:M,8,0)","v":0},{"$f":"VLOOKUP(B33,'[4]LOC FINAL with new Themes'!A:M,9,0)","v":0},{"$f":"VLOOKUP(B33,'[4]LOC FINAL with new Themes'!A:M,10,0)","v":0},{"$f":"VLOOKUP(B33,'[4]LOC FINAL with new Themes'!A:M,11,0)","v":0},{"$f":"VLOOKUP(B33,'[4]LOC FINAL with new Themes'!A:M,12,0)","v":0},{"$f":"VLOOKUP(B33,'[4]LOC FINAL with new Themes'!A:M,13,0)","v":0}]
["Climate Data Sets ","Climate Datasets ",null,"Climate Datasets ","Climate and Weather ","USDA-NRCS","Jan Curtis","jan.curtis@por.usda.gov",{"$f":"VLOOKUP(B34,'[4]LOC FINAL with new Themes'!A:M,7,0)","v":"Other climate data acquired from our SNOTEL and SCAN observation networks can be accessed from these links."},{"$f":"VLOOKUP(B34,'[4]LOC FINAL with new Themes'!A:M,8,0)","v":0},{"$f":"VLOOKUP(B34,'[4]LOC FINAL with new Themes'!A:M,9,0)","v":0},{"$f":"VLOOKUP(B34,'[4]LOC FINAL with new Themes'!A:M,10,0)","v":0},{"$f":"VLOOKUP(B34,'[4]LOC FINAL with new Themes'!A:M,11,0)","v":0},{"$f":"VLOOKUP(B34,'[4]LOC FINAL with new Themes'!A:M,12,0)","v":0},{"$f":"VLOOKUP(B34,'[4]LOC FINAL with new Themes'!A:M,13,0)","v":"M"}]
["Geostationary Operational Environmental Satellite (GOES) data (NCDC)","Geostationary Operational Environmental Satellite (GOES) data (NCDC)","Geostationary Operational Environmental Satellite (GOES) data (NCDC)","Geostationary Operational Environmental Satellite (GOES) data (NCDC)","Climate and Weather ","DOC-NOAA","Nancy Ritchey","Nancy.Ritchey@noaa.gov",{"$f":"VLOOKUP(B35,'[4]LOC FINAL with new Themes'!A:M,7,0)","v":"Define 'data set'.  Each spacecraft continuously produces a data stream.  There are multiple sets and the total going back to the late 70s or early 80s numbers in the millions"},{"$f":"VLOOKUP(B35,'[4]LOC FINAL with new Themes'!A:M,8,0)","v":"Yes"},{"$f":"VLOOKUP(B35,'[4]LOC FINAL with new Themes'!A:M,9,0)","v":"Yes"},{"$f":"VLOOKUP(B35,'[4]LOC FINAL with new Themes'!A:M,10,0)","v":"Continuously"},{"$f":"VLOOKUP(B35,'[4]LOC FINAL with new Themes'!A:M,11,0)","v":"There are two active archive centers for these data; one here in Asheville, NC and one in Boulder, CO.  These data go back to the late 70s and all data are on line wither on disc or robotic tape storage"},{"$f":"VLOOKUP(B35,'[4]LOC FINAL with new Themes'!A:M,12,0)","v":"Again, define your terms.  For examples see www.class.noaa.gov - Raw data are listed by satellite (GOES or POES) and then be instrument.  Geophysical products are listed by product name."},{"$f":"VLOOKUP(B35,'[4]LOC FINAL with new Themes'!A:M,13,0)","v":0}]
["Global Historical Climate Network (GHCN) daily data (NCDC)","Global Historical Climate Network (GHCN) daily data (NCDC)",null,"Global Historical Climate Network (GHCN) daily data (NCDC)","Climate and Weather ","DOC-NOAA","Matt Menne","matthew.menne@noaa.gov",{"$f":"VLOOKUP(B36,'[4]LOC FINAL with new Themes'!A:M,7,0)","v":0},{"$f":"VLOOKUP(B36,'[4]LOC FINAL with new Themes'!A:M,8,0)","v":0},{"$f":"VLOOKUP(B36,'[4]LOC FINAL with new Themes'!A:M,9,0)","v":0},{"$f":"VLOOKUP(B36,'[4]LOC FINAL with new Themes'!A:M,10,0)","v":0},{"$f":"VLOOKUP(B36,'[4]LOC FINAL with new Themes'!A:M,11,0)","v":0},{"$f":"VLOOKUP(B36,'[4]LOC FINAL with new Themes'!A:M,12,0)","v":0},{"$f":"VLOOKUP(B36,'[4]LOC FINAL with new Themes'!A:M,13,0)","v":0}]
["Global Historical Climate Network (GHCN) monthly data (NCDC)","Global Historical Climate Network (GHCN) monthly data (NCDC)",null,"Global Historical Climate Network (GHCN) monthly data (NCDC)","Climate and Weather ","DOC-NOAA","Jay Lawrimore","Jay.Lawrimore@noaa.gov",{"$f":"VLOOKUP(B37,'[4]LOC FINAL with new Themes'!A:M,7,0)","v":"It is a single dataset consisting of multiple files. 6 total. 2 for monthly mean temperature (uncorrected and corrected), 2 for monthly maximum temperature, and 2 for monthly minimum temperature. available at http://www.ncdc.noaa.gov/ghcnm/v3.php ."},{"$f":"VLOOKUP(B37,'[4]LOC FINAL with new Themes'!A:M,8,0)","v":"I am head of the branch that developed and updates the dataset."},{"$f":"VLOOKUP(B37,'[4]LOC FINAL with new Themes'!A:M,9,0)","v":"Byron Gleason (Byron.Gleason@noaa.gov) is the appropriate contact.  "},{"$f":"VLOOKUP(B37,'[4]LOC FINAL with new Themes'!A:M,10,0)","v":"Daily"},{"$f":"VLOOKUP(B37,'[4]LOC FINAL with new Themes'!A:M,11,0)","v":"The files are time stamped each day they are produced and then stored when the next days run is made. The archived copies are not publicly available but can be retrieved by NCDC staff as needed."},{"$f":"VLOOKUP(B37,'[4]LOC FINAL with new Themes'!A:M,12,0)","v":"It goes by GHCN-M."},{"$f":"VLOOKUP(B37,'[4]LOC FINAL with new Themes'!A:M,13,0)","v":0}]
["Hurricane Satellite","Hurricane Satellite",null,"Hurricane Satellite","Climate and Weather ","DOC-NOAA","Ken Knapp","ken.knapp@noaa.gov",{"$f":"VLOOKUP(B38,'[4]LOC FINAL with new Themes'!A:M,7,0)","v":0},{"$f":"VLOOKUP(B38,'[4]LOC FINAL with new Themes'!A:M,8,0)","v":0},{"$f":"VLOOKUP(B38,'[4]LOC FINAL with new Themes'!A:M,9,0)","v":0},{"$f":"VLOOKUP(B38,'[4]LOC FINAL with new Themes'!A:M,10,0)","v":0},{"$f":"VLOOKUP(B38,'[4]LOC FINAL with new Themes'!A:M,11,0)","v":0},{"$f":"VLOOKUP(B38,'[4]LOC FINAL with new Themes'!A:M,12,0)","v":0},{"$f":"VLOOKUP(B38,'[4]LOC FINAL with new Themes'!A:M,13,0)","v":0}]
["Integrated Global Radiosonde Archive (IGRA) upper air data (NCDC)","Integrated Global Radiosonde Archive (IGRA) upper air data (NCDC)",null,"Integrated Global Radiosonde Archive (IGRA) upper air data (NCDC)","Climate and Weather ","DOC-NOAA","Imke Durre","imke.durre@noaa.gov",{"$f":"VLOOKUP(B39,'[4]LOC FINAL with new Themes'!A:M,7,0)","v":0},{"$f":"VLOOKUP(B39,'[4]LOC FINAL with new Themes'!A:M,8,0)","v":0},{"$f":"VLOOKUP(B39,'[4]LOC FINAL with new Themes'!A:M,9,0)","v":0},{"$f":"VLOOKUP(B39,'[4]LOC FINAL with new Themes'!A:M,10,0)","v":0},{"$f":"VLOOKUP(B39,'[4]LOC FINAL with new Themes'!A:M,11,0)","v":0},{"$f":"VLOOKUP(B39,'[4]LOC FINAL with new Themes'!A:M,12,0)","v":0},{"$f":"VLOOKUP(B39,'[4]LOC FINAL with new Themes'!A:M,13,0)","v":0}]
["Integrated Surface Data (ISD) at National Climate Data Center (NCDC) ","Integrated Surface Data (ISD) at National Climate Data Center (NCDC) ",null,"Integrated Surface Data (ISD) at National Climate Data Center (NCDC) ","Climate and Weather ","DOC-NOAA","Neal Lott","neal.lott@noaa.gov",{"$f":"VLOOKUP(B40,'[4]LOC FINAL with new Themes'!A:M,7,0)","v":"This is a single data set, developed as an integration of multiple data sets and sources."},{"$f":"VLOOKUP(B40,'[4]LOC FINAL with new Themes'!A:M,8,0)","v":"I am currently the data set manager jointly with Russel Vose, cc'ed here Russell.Vose@noaa.gov"},{"$f":"VLOOKUP(B40,'[4]LOC FINAL with new Themes'!A:M,9,0)","v":"I am one of the POC's here at NCDC.  We have a User Engagement and Services Branch which handles user inquiries, etc."},{"$f":"VLOOKUP(B40,'[4]LOC FINAL with new Themes'!A:M,10,0)","v":"It's updated once per day with the most recent data (ie, yesterday's observations)."},{"$f":"VLOOKUP(B40,'[4]LOC FINAL with new Themes'!A:M,11,0)","v":"We have an archive copy and a backup copy.  The period of record of the data is 1900 to present.  It's very easily accessible via multiple services (FTP, GIS, Web Services, etc)."},{"$f":"VLOOKUP(B40,'[4]LOC FINAL with new Themes'!A:M,12,0)","v":"Integrated Surface Data is its name, but is sometimes referred to generically as global hourly surface data."},{"$f":"VLOOKUP(B40,'[4]LOC FINAL with new Themes'!A:M,13,0)","v":0}]
[null,null,"MODIS-based Atmospheric Products","MODIS-based Atmospheric Products","Climate and Weather ","USDA -FS (Along with USGS)"]
["National Climate Data Center","National Climate Data Center",null,"National Climate Data Center","Climate and Weather ","USDA-NRCS","Jan Curtis","jan.curtis@por.usda.gov",{"$f":"VLOOKUP(B42,'[4]LOC FINAL with new Themes'!A:M,7,0)","v":"administered by NOAA - is there a contact there?"},{"$f":"VLOOKUP(B42,'[4]LOC FINAL with new Themes'!A:M,8,0)","v":0},{"$f":"VLOOKUP(B42,'[4]LOC FINAL with new Themes'!A:M,9,0)","v":0},{"$f":"VLOOKUP(B42,'[4]LOC FINAL with new Themes'!A:M,10,0)","v":0},{"$f":"VLOOKUP(B42,'[4]LOC FINAL with new Themes'!A:M,11,0)","v":0},{"$f":"VLOOKUP(B42,'[4]LOC FINAL with new Themes'!A:M,12,0)","v":0},{"$f":"VLOOKUP(B42,'[4]LOC FINAL with new Themes'!A:M,13,0)","v":0}]
[null,null,"National Doplar Radar Data (NEXRAD)","National Doplar Radar Data (NEXRAD)","Climate and Weather ","DOC-NOAA"]
["NEXRAD Level II and III radar data (NCDC)","NEXRAD Level II and III radar data (NCDC)",null,"NEXRAD Level II and III radar data (NCDC)","Climate and Weather ","DOC-NOAA","Steve Del Greco","stephen.a.delgreco@noaa.gov",{"$f":"VLOOKUP(B44,'[4]LOC FINAL with new Themes'!A:M,7,0)","v":"The NEXRAD datasets for level II and Level III are archived by site.  There are 158 NEXRAD sites with data that goes back to ~ 1994.  See URL http://www.ncdc.noaa.gov/nexradinv/ for NEXRAD web services for ordering data."},{"$f":"VLOOKUP(B44,'[4]LOC FINAL with new Themes'!A:M,8,0)","v":"I'm the NEXRAD program manager for NCDC.  This also includes other radar networks for example the FAA Terminal Doppler Weather Radar (45 sites)."},{"$f":"VLOOKUP(B44,'[4]LOC FINAL with new Themes'!A:M,9,0)","v":"Yes"},{"$f":"VLOOKUP(B44,'[4]LOC FINAL with new Themes'!A:M,10,0)","v":"NEXRAD Level II and Level III data are ingested at NCDC in near real time (~ 10 second latency).  We make the data available via the web ~ 24 hours after receipt.  The NEXRAD/TDWR data is also available in near real time through data feeds supported by partnerships we have with the University of Oklahoma, Purdue and Education and Research Consortium of the Western Carolinas. "},{"$f":"VLOOKUP(B44,'[4]LOC FINAL with new Themes'!A:M,11,0)","v":"NEXRAD data is archived and backed up and goes back to ~ 1994 (depends on station).  Data is free of charge and accessible via the URL above"},{"$f":"VLOOKUP(B44,'[4]LOC FINAL with new Themes'!A:M,12,0)","v":"The data set is from the Weather Surveillance Radar 1988 Doppler, but most commonly  know as \"NEXRAD\"  Level II for the base or raw data and Level III for derived products"},{"$f":"VLOOKUP(B44,'[4]LOC FINAL with new Themes'!A:M,13,0)","v":0}]
[null,null,"NOAA National Weather Service GIS Data",{"$f":"IF(C45=0,B45,C45)","v":"NOAA National Weather Service GIS Data"},"Climate and Weather ","DOC-NOAA"]
["North American Regional Reanalysis (NARR) model data (NCDC)","North American Regional Reanalysis (NARR) model data (NCDC)",null,{"$f":"IF(C46=0,B46,C46)","v":"North American Regional Reanalysis (NARR) model data (NCDC)"},"Climate and Weather ","DOC-NOAA","Dan Swank","Dan.Swank@noaa.gov",{"$f":"VLOOKUP(B46,'[4]LOC FINAL with new Themes'!A:M,7,0)","v":"The NARR natively contains 2x sub sets) 3 hr time series / monthly averages."},{"$f":"VLOOKUP(B46,'[4]LOC FINAL with new Themes'!A:M,8,0)","v":"Depends on the exact definition: there is no one with that exact job title at NCDC-NOMADS"},{"$f":"VLOOKUP(B46,'[4]LOC FINAL with new Themes'!A:M,9,0)","v":"Yes"},{"$f":"VLOOKUP(B46,'[4]LOC FINAL with new Themes'!A:M,10,0)","v":"NARR is updated on a daily basis, typically arriving 1-3 days from real-time.  Serial integrity is not guaranteed until 1 month has passed."},{"$f":"VLOOKUP(B46,'[4]LOC FINAL with new Themes'!A:M,11,0)","v":"Multiple copies exist, including HPSS, off-site HPSS, TSM, and mirrored spinning disk copies.  Backups are for the entire set.  While the backups are not public accessible, the disk mirror can be put in place in minutes and the tape copies may take a day or two"},{"$f":"VLOOKUP(B46,'[4]LOC FINAL with new Themes'!A:M,12,0)","v":"Besides the acronym NARR -- no"},{"$f":"VLOOKUP(B46,'[4]LOC FINAL with new Themes'!A:M,13,0)","v":0}]
["Parameter-elevation Regressions on Independent Slopes Model (PRISM) Data Sets","Parameter-elevation Regressions on Independent Slopes Model (PRISM) Datasets","Parameter-elevation Regressions on Independent Slopes Model (PRISM) Datasets",{"$f":"IF(C47=0,B47,C47)","v":"Parameter-elevation Regressions on Independent Slopes Model (PRISM) Datasets"},"Climate and Weather ","USDA-NRCS","Jan Curtis","jan.curtis@por.usda.gov",{"$f":"VLOOKUP(B47,'[4]LOC FINAL with new Themes'!A:M,7,0)","v":"info provided via http://www.prism.oregonstate.edu/ and \nhttp://www.nrcs.usda.gov/wps/portal/nrcs/main/?ss=16&navtype=SubNavigation&cid=null&navid=850130000000000&pnavid=850000000000000&position=SubNavigation&ttype=main&pname=USDA%2520NRCS%2520-%2520Natural%2520Resources%2520Conservation%2520Service\n"},{"$f":"VLOOKUP(B47,'[4]LOC FINAL with new Themes'!A:M,8,0)","v":0},{"$f":"VLOOKUP(B47,'[4]LOC FINAL with new Themes'!A:M,9,0)","v":0},{"$f":"VLOOKUP(B47,'[4]LOC FINAL with new Themes'!A:M,10,0)","v":0},{"$f":"VLOOKUP(B47,'[4]LOC FINAL with new Themes'!A:M,11,0)","v":0},{"$f":"VLOOKUP(B47,'[4]LOC FINAL with new Themes'!A:M,12,0)","v":0},{"$f":"VLOOKUP(B47,'[4]LOC FINAL with new Themes'!A:M,13,0)","v":"M"}]
["Polar Operational Environmental Satellite (POES) data (NCDC)","Polar Operational Environmental Satellite (POES) data","Polar Operational Environmental Satellite (POES) data",{"$f":"IF(C48=0,B48,C48)","v":"Polar Operational Environmental Satellite (POES) data"},"Climate and Weather ","DOC-NOAA","John Bates","john.j.bates@noaa.gov",{"$f":"VLOOKUP(B48,'[4]LOC FINAL with new Themes'!A:M,7,0)","v":0},{"$f":"VLOOKUP(B48,'[4]LOC FINAL with new Themes'!A:M,8,0)","v":0},{"$f":"VLOOKUP(B48,'[4]LOC FINAL with new Themes'!A:M,9,0)","v":0},{"$f":"VLOOKUP(B48,'[4]LOC FINAL with new Themes'!A:M,10,0)","v":0},{"$f":"VLOOKUP(B48,'[4]LOC FINAL with new Themes'!A:M,11,0)","v":0},{"$f":"VLOOKUP(B48,'[4]LOC FINAL with new Themes'!A:M,12,0)","v":0},{"$f":"VLOOKUP(B48,'[4]LOC FINAL with new Themes'!A:M,13,0)","v":0}]
[{"$f":"SUBTOTAL(3,A33:A48)","v":13},{"$f":"SUBTOTAL(3,B33:B48)","v":13},{"$f":"SUBTOTAL(3,C33:C48)","v":7},{"$f":"SUBTOTAL(3,D33:D48)","v":16},"Climate and Weather  Count"]
[null,"5-digit ZIP Code Tabulation Area (Census 2000)","5-digit ZIP Code Tabulation Area (Census 2000)",{"$f":"IF(C50=0,B50,C50)","v":"5-digit ZIP Code Tabulation Area (Census 2000)"},"Cultural & Demographic Statistics ","DOC-Census","Jennifer Holland","Jennifer.L.Holland@census.gov",{"$f":"VLOOKUP(B50,'[4]LOC FINAL with new Themes'!A:M,7,0)","v":0},{"$f":"VLOOKUP(B50,'[4]LOC FINAL with new Themes'!A:M,8,0)","v":0},{"$f":"VLOOKUP(B50,'[4]LOC FINAL with new Themes'!A:M,9,0)","v":0},{"$f":"VLOOKUP(B50,'[4]LOC FINAL with new Themes'!A:M,10,0)","v":0},{"$f":"VLOOKUP(B50,'[4]LOC FINAL with new Themes'!A:M,11,0)","v":0},{"$f":"VLOOKUP(B50,'[4]LOC FINAL with new Themes'!A:M,12,0)","v":0},{"$f":"VLOOKUP(B50,'[4]LOC FINAL with new Themes'!A:M,13,0)","v":0}]
["AIR, ANVSA, Hawaiian Homelands Boundaries","AIR, ANVSA, Hawaiian Homelands Boundaries",null,"AIR, ANVSA, Hawaiian Homelands Boundaries","Cultural & Demographic Statistics ","DOC-Census","Randy Fusaro","randy.j.fusaro@census.gov",{"$f":"VLOOKUP(B51,'[4]LOC FINAL with new Themes'!A:M,7,0)","v":0},{"$f":"VLOOKUP(B51,'[4]LOC FINAL with new Themes'!A:M,8,0)","v":0},{"$f":"VLOOKUP(B51,'[4]LOC FINAL with new Themes'!A:M,9,0)","v":0},{"$f":"VLOOKUP(B51,'[4]LOC FINAL with new Themes'!A:M,10,0)","v":0},{"$f":"VLOOKUP(B51,'[4]LOC FINAL with new Themes'!A:M,11,0)","v":0},{"$f":"VLOOKUP(B51,'[4]LOC FINAL with new Themes'!A:M,12,0)","v":0},{"$f":"VLOOKUP(B51,'[4]LOC FINAL with new Themes'!A:M,13,0)","v":0}]
[null,"All Lines (2010 Census)","All Lines (2010 Census)","All Lines (2010 Census)","Cultural & Demographic Statistics ","DOC-Census","Jennifer Holland","Jennifer.L.Holland@census.gov",{"$f":"VLOOKUP(B52,'[4]LOC FINAL with new Themes'!A:M,7,0)","v":0},{"$f":"VLOOKUP(B52,'[4]LOC FINAL with new Themes'!A:M,8,0)","v":0},{"$f":"VLOOKUP(B52,'[4]LOC FINAL with new Themes'!A:M,9,0)","v":0},{"$f":"VLOOKUP(B52,'[4]LOC FINAL with new Themes'!A:M,10,0)","v":0},{"$f":"VLOOKUP(B52,'[4]LOC FINAL with new Themes'!A:M,11,0)","v":0},{"$f":"VLOOKUP(B52,'[4]LOC FINAL with new Themes'!A:M,12,0)","v":0},{"$f":"VLOOKUP(B52,'[4]LOC FINAL with new Themes'!A:M,13,0)","v":0}]
[null,"ANSI codes for  metro/micropolitan areas","ANSI codes for  metro/micropolitan areas","ANSI codes for  metro/micropolitan areas","Cultural & Demographic Statistics ","DOC-Census","Jennifer Holland","Jennifer.L.Holland@census.gov",{"$f":"VLOOKUP(B53,'[4]LOC FINAL with new Themes'!A:M,7,0)","v":0},{"$f":"VLOOKUP(B53,'[4]LOC FINAL with new Themes'!A:M,8,0)","v":0},{"$f":"VLOOKUP(B53,'[4]LOC FINAL with new Themes'!A:M,9,0)","v":0},{"$f":"VLOOKUP(B53,'[4]LOC FINAL with new Themes'!A:M,10,0)","v":0},{"$f":"VLOOKUP(B53,'[4]LOC FINAL with new Themes'!A:M,11,0)","v":0},{"$f":"VLOOKUP(B53,'[4]LOC FINAL with new Themes'!A:M,12,0)","v":0},{"$f":"VLOOKUP(B53,'[4]LOC FINAL with new Themes'!A:M,13,0)","v":0}]
[null,"ANSI codes for congressional districts","ANSI codes for congressional districts","ANSI codes for congressional districts","Cultural & Demographic Statistics ","DOC-Census","Jennifer Holland","Jennifer.L.Holland@census.gov",{"$f":"VLOOKUP(B54,'[4]LOC FINAL with new Themes'!A:M,7,0)","v":0},{"$f":"VLOOKUP(B54,'[4]LOC FINAL with new Themes'!A:M,8,0)","v":0},{"$f":"VLOOKUP(B54,'[4]LOC FINAL with new Themes'!A:M,9,0)","v":0},{"$f":"VLOOKUP(B54,'[4]LOC FINAL with new Themes'!A:M,10,0)","v":0},{"$f":"VLOOKUP(B54,'[4]LOC FINAL with new Themes'!A:M,11,0)","v":0},{"$f":"VLOOKUP(B54,'[4]LOC FINAL with new Themes'!A:M,12,0)","v":0},{"$f":"VLOOKUP(B54,'[4]LOC FINAL with new Themes'!A:M,13,0)","v":0}]
[null,"ANSI codes for counties","ANSI codes for counties","ANSI codes for counties","Cultural & Demographic Statistics ","DOC-Census","Jennifer Holland","Jennifer.L.Holland@census.gov",{"$f":"VLOOKUP(B55,'[4]LOC FINAL with new Themes'!A:M,7,0)","v":0},{"$f":"VLOOKUP(B55,'[4]LOC FINAL with new Themes'!A:M,8,0)","v":0},{"$f":"VLOOKUP(B55,'[4]LOC FINAL with new Themes'!A:M,9,0)","v":0},{"$f":"VLOOKUP(B55,'[4]LOC FINAL with new Themes'!A:M,10,0)","v":0},{"$f":"VLOOKUP(B55,'[4]LOC FINAL with new Themes'!A:M,11,0)","v":0},{"$f":"VLOOKUP(B55,'[4]LOC FINAL with new Themes'!A:M,12,0)","v":0},{"$f":"VLOOKUP(B55,'[4]LOC FINAL with new Themes'!A:M,13,0)","v":0}]
[null,"ANSI codes for states","ANSI codes for states","ANSI codes for states","Cultural & Demographic Statistics ","DOC-Census","Jennifer Holland","Jennifer.L.Holland@census.gov",{"$f":"VLOOKUP(B56,'[4]LOC FINAL with new Themes'!A:M,7,0)","v":0},{"$f":"VLOOKUP(B56,'[4]LOC FINAL with new Themes'!A:M,8,0)","v":0},{"$f":"VLOOKUP(B56,'[4]LOC FINAL with new Themes'!A:M,9,0)","v":0},{"$f":"VLOOKUP(B56,'[4]LOC FINAL with new Themes'!A:M,10,0)","v":0},{"$f":"VLOOKUP(B56,'[4]LOC FINAL with new Themes'!A:M,11,0)","v":0},{"$f":"VLOOKUP(B56,'[4]LOC FINAL with new Themes'!A:M,12,0)","v":0},{"$f":"VLOOKUP(B56,'[4]LOC FINAL with new Themes'!A:M,13,0)","v":0}]
[null,"Block (2010 Census)","Block (2010 Census)","Block (2010 Census)","Cultural & Demographic Statistics ","DOC-Census","Jennifer Holland","Jennifer.L.Holland@census.gov",{"$f":"VLOOKUP(B57,'[4]LOC FINAL with new Themes'!A:M,7,0)","v":0},{"$f":"VLOOKUP(B57,'[4]LOC FINAL with new Themes'!A:M,8,0)","v":0},{"$f":"VLOOKUP(B57,'[4]LOC FINAL with new Themes'!A:M,9,0)","v":0},{"$f":"VLOOKUP(B57,'[4]LOC FINAL with new Themes'!A:M,10,0)","v":0},{"$f":"VLOOKUP(B57,'[4]LOC FINAL with new Themes'!A:M,11,0)","v":0},{"$f":"VLOOKUP(B57,'[4]LOC FINAL with new Themes'!A:M,12,0)","v":0},{"$f":"VLOOKUP(B57,'[4]LOC FINAL with new Themes'!A:M,13,0)","v":0}]
[null,"Block (Census 2000)","Block (Census 2000)","Block (Census 2000)","Cultural & Demographic Statistics ","DOC-Census","Jennifer Holland","Jennifer.L.Holland@census.gov",{"$f":"VLOOKUP(B58,'[4]LOC FINAL with new Themes'!A:M,7,0)","v":0},{"$f":"VLOOKUP(B58,'[4]LOC FINAL with new Themes'!A:M,8,0)","v":0},{"$f":"VLOOKUP(B58,'[4]LOC FINAL with new Themes'!A:M,9,0)","v":0},{"$f":"VLOOKUP(B58,'[4]LOC FINAL with new Themes'!A:M,10,0)","v":0},{"$f":"VLOOKUP(B58,'[4]LOC FINAL with new Themes'!A:M,11,0)","v":0},{"$f":"VLOOKUP(B58,'[4]LOC FINAL with new Themes'!A:M,12,0)","v":0},{"$f":"VLOOKUP(B58,'[4]LOC FINAL with new Themes'!A:M,13,0)","v":0}]
[null,"Block Group (Census 2000)","Block Group (Census 2000)","Block Group (Census 2000)","Cultural & Demographic Statistics ","DOC-Census","Jennifer Holland","Jennifer.L.Holland@census.gov",{"$f":"VLOOKUP(B59,'[4]LOC FINAL with new Themes'!A:M,7,0)","v":0},{"$f":"VLOOKUP(B59,'[4]LOC FINAL with new Themes'!A:M,8,0)","v":0},{"$f":"VLOOKUP(B59,'[4]LOC FINAL with new Themes'!A:M,9,0)","v":0},{"$f":"VLOOKUP(B59,'[4]LOC FINAL with new Themes'!A:M,10,0)","v":0},{"$f":"VLOOKUP(B59,'[4]LOC FINAL with new Themes'!A:M,11,0)","v":0},{"$f":"VLOOKUP(B59,'[4]LOC FINAL with new Themes'!A:M,12,0)","v":0},{"$f":"VLOOKUP(B59,'[4]LOC FINAL with new Themes'!A:M,13,0)","v":0}]
[null,"Block Group (Census 2010)","Block Group (Census 2010)","Block Group (Census 2010)","Cultural & Demographic Statistics ","DOC-Census","Jennifer Holland","Jennifer.L.Holland@census.gov",{"$f":"VLOOKUP(B60,'[4]LOC FINAL with new Themes'!A:M,7,0)","v":0},{"$f":"VLOOKUP(B60,'[4]LOC FINAL with new Themes'!A:M,8,0)","v":0},{"$f":"VLOOKUP(B60,'[4]LOC FINAL with new Themes'!A:M,9,0)","v":0},{"$f":"VLOOKUP(B60,'[4]LOC FINAL with new Themes'!A:M,10,0)","v":0},{"$f":"VLOOKUP(B60,'[4]LOC FINAL with new Themes'!A:M,11,0)","v":0},{"$f":"VLOOKUP(B60,'[4]LOC FINAL with new Themes'!A:M,12,0)","v":0},{"$f":"VLOOKUP(B60,'[4]LOC FINAL with new Themes'!A:M,13,0)","v":0}]
[null,"Census 2000 FIPS 55 Codes","Census 2000 FIPS 55 Codes","Census 2000 FIPS 55 Codes","Cultural & Demographic Statistics ","DOC-Census","Jennifer Holland","Jennifer.L.Holland@census.gov",{"$f":"VLOOKUP(B61,'[4]LOC FINAL with new Themes'!A:M,7,0)","v":0},{"$f":"VLOOKUP(B61,'[4]LOC FINAL with new Themes'!A:M,8,0)","v":0},{"$f":"VLOOKUP(B61,'[4]LOC FINAL with new Themes'!A:M,9,0)","v":0},{"$f":"VLOOKUP(B61,'[4]LOC FINAL with new Themes'!A:M,10,0)","v":0},{"$f":"VLOOKUP(B61,'[4]LOC FINAL with new Themes'!A:M,11,0)","v":0},{"$f":"VLOOKUP(B61,'[4]LOC FINAL with new Themes'!A:M,12,0)","v":0},{"$f":"VLOOKUP(B61,'[4]LOC FINAL with new Themes'!A:M,13,0)","v":0}]
[null,"Census Tract (2010 Census)","Census Tract (2010 Census)","Census Tract (2010 Census)","Cultural & Demographic Statistics ","DOC-Census","Jennifer Holland","Jennifer.L.Holland@census.gov",{"$f":"VLOOKUP(B62,'[4]LOC FINAL with new Themes'!A:M,7,0)","v":0},{"$f":"VLOOKUP(B62,'[4]LOC FINAL with new Themes'!A:M,8,0)","v":0},{"$f":"VLOOKUP(B62,'[4]LOC FINAL with new Themes'!A:M,9,0)","v":0},{"$f":"VLOOKUP(B62,'[4]LOC FINAL with new Themes'!A:M,10,0)","v":0},{"$f":"VLOOKUP(B62,'[4]LOC FINAL with new Themes'!A:M,11,0)","v":0},{"$f":"VLOOKUP(B62,'[4]LOC FINAL with new Themes'!A:M,12,0)","v":0},{"$f":"VLOOKUP(B62,'[4]LOC FINAL with new Themes'!A:M,13,0)","v":0}]
[null,"Census Tract (Census 2000)","Census Tract (Census 2000)","Census Tract (Census 2000)","Cultural & Demographic Statistics ","DOC-Census","Jennifer Holland","Jennifer.L.Holland@census.gov",{"$f":"VLOOKUP(B63,'[4]LOC FINAL with new Themes'!A:M,7,0)","v":0},{"$f":"VLOOKUP(B63,'[4]LOC FINAL with new Themes'!A:M,8,0)","v":0},{"$f":"VLOOKUP(B63,'[4]LOC FINAL with new Themes'!A:M,9,0)","v":0},{"$f":"VLOOKUP(B63,'[4]LOC FINAL with new Themes'!A:M,10,0)","v":0},{"$f":"VLOOKUP(B63,'[4]LOC FINAL with new Themes'!A:M,11,0)","v":0},{"$f":"VLOOKUP(B63,'[4]LOC FINAL with new Themes'!A:M,12,0)","v":0},{"$f":"VLOOKUP(B63,'[4]LOC FINAL with new Themes'!A:M,13,0)","v":0}]
[null,"Combined Statistical Area (2010 Census)","Combined Statistical Area (2010 Census)","Combined Statistical Area (2010 Census)","Cultural & Demographic Statistics ","DOC-Census","Jennifer Holland","Jennifer.L.Holland@census.gov",{"$f":"VLOOKUP(B64,'[4]LOC FINAL with new Themes'!A:M,7,0)","v":0},{"$f":"VLOOKUP(B64,'[4]LOC FINAL with new Themes'!A:M,8,0)","v":0},{"$f":"VLOOKUP(B64,'[4]LOC FINAL with new Themes'!A:M,9,0)","v":0},{"$f":"VLOOKUP(B64,'[4]LOC FINAL with new Themes'!A:M,10,0)","v":0},{"$f":"VLOOKUP(B64,'[4]LOC FINAL with new Themes'!A:M,11,0)","v":0},{"$f":"VLOOKUP(B64,'[4]LOC FINAL with new Themes'!A:M,12,0)","v":0},{"$f":"VLOOKUP(B64,'[4]LOC FINAL with new Themes'!A:M,13,0)","v":0}]
[null,"Congressional District Boundaries",null,"Congressional District Boundaries","Cultural & Demographic Statistics ","DOC-Census","Randy Fusaro","randy.j.fusaro@census.gov",{"$f":"VLOOKUP(B65,'[4]LOC FINAL with new Themes'!A:M,7,0)","v":0},{"$f":"VLOOKUP(B65,'[4]LOC FINAL with new Themes'!A:M,8,0)","v":0},{"$f":"VLOOKUP(B65,'[4]LOC FINAL with new Themes'!A:M,9,0)","v":0},{"$f":"VLOOKUP(B65,'[4]LOC FINAL with new Themes'!A:M,10,0)","v":0},{"$f":"VLOOKUP(B65,'[4]LOC FINAL with new Themes'!A:M,11,0)","v":0},{"$f":"VLOOKUP(B65,'[4]LOC FINAL with new Themes'!A:M,12,0)","v":0},{"$f":"VLOOKUP(B65,'[4]LOC FINAL with new Themes'!A:M,13,0)","v":0}]
["County, place, MCD Boundaries","County, place, MCD Boundaries",null,"County, place, MCD Boundaries","Cultural & Demographic Statistics ","DOC-Census","Randy Fusaro","randy.j.fusaro@census.gov",{"$f":"VLOOKUP(B66,'[4]LOC FINAL with new Themes'!A:M,7,0)","v":0},{"$f":"VLOOKUP(B66,'[4]LOC FINAL with new Themes'!A:M,8,0)","v":0},{"$f":"VLOOKUP(B66,'[4]LOC FINAL with new Themes'!A:M,9,0)","v":0},{"$f":"VLOOKUP(B66,'[4]LOC FINAL with new Themes'!A:M,10,0)","v":0},{"$f":"VLOOKUP(B66,'[4]LOC FINAL with new Themes'!A:M,11,0)","v":0},{"$f":"VLOOKUP(B66,'[4]LOC FINAL with new Themes'!A:M,12,0)","v":0},{"$f":"VLOOKUP(B66,'[4]LOC FINAL with new Themes'!A:M,13,0)","v":0}]
[null,"Elementary School District (2010 Census)","Elementary School District (2010 Census)","Elementary School District (2010 Census)","Cultural & Demographic Statistics ","DOC-Census","Jennifer Holland","Jennifer.L.Holland@census.gov",{"$f":"VLOOKUP(B67,'[4]LOC FINAL with new Themes'!A:M,7,0)","v":0},{"$f":"VLOOKUP(B67,'[4]LOC FINAL with new Themes'!A:M,8,0)","v":0},{"$f":"VLOOKUP(B67,'[4]LOC FINAL with new Themes'!A:M,9,0)","v":0},{"$f":"VLOOKUP(B67,'[4]LOC FINAL with new Themes'!A:M,10,0)","v":0},{"$f":"VLOOKUP(B67,'[4]LOC FINAL with new Themes'!A:M,11,0)","v":0},{"$f":"VLOOKUP(B67,'[4]LOC FINAL with new Themes'!A:M,12,0)","v":0},{"$f":"VLOOKUP(B67,'[4]LOC FINAL with new Themes'!A:M,13,0)","v":0}]
[null,"Elementary School District (Census 2000)","Elementary School District (Census 2000)","Elementary School District (Census 2000)","Cultural & Demographic Statistics ","DOC-Census","Jennifer Holland","Jennifer.L.Holland@census.gov",{"$f":"VLOOKUP(B68,'[4]LOC FINAL with new Themes'!A:M,7,0)","v":0},{"$f":"VLOOKUP(B68,'[4]LOC FINAL with new Themes'!A:M,8,0)","v":0},{"$f":"VLOOKUP(B68,'[4]LOC FINAL with new Themes'!A:M,9,0)","v":0},{"$f":"VLOOKUP(B68,'[4]LOC FINAL with new Themes'!A:M,10,0)","v":0},{"$f":"VLOOKUP(B68,'[4]LOC FINAL with new Themes'!A:M,11,0)","v":0},{"$f":"VLOOKUP(B68,'[4]LOC FINAL with new Themes'!A:M,12,0)","v":0},{"$f":"VLOOKUP(B68,'[4]LOC FINAL with new Themes'!A:M,13,0)","v":0}]
["FIPS/ANSI codes for states, counties, congressional districts & metro/micropolitan areas","FIPS/ANSI codes for states, counties, congressional districts & metro/micropolitan areas",null,"FIPS/ANSI codes for states, counties, congressional districts & metro/micropolitan areas","Cultural & Demographic Statistics ","DOC-Census","Randy Fusaro","randy.j.fusaro@census.gov",{"$f":"VLOOKUP(B69,'[4]LOC FINAL with new Themes'!A:M,7,0)","v":0},{"$f":"VLOOKUP(B69,'[4]LOC FINAL with new Themes'!A:M,8,0)","v":0},{"$f":"VLOOKUP(B69,'[4]LOC FINAL with new Themes'!A:M,9,0)","v":0},{"$f":"VLOOKUP(B69,'[4]LOC FINAL with new Themes'!A:M,10,0)","v":0},{"$f":"VLOOKUP(B69,'[4]LOC FINAL with new Themes'!A:M,11,0)","v":0},{"$f":"VLOOKUP(B69,'[4]LOC FINAL with new Themes'!A:M,12,0)","v":0},{"$f":"VLOOKUP(B69,'[4]LOC FINAL with new Themes'!A:M,13,0)","v":0}]
["Metropolitan/micropolitan area boundaries","Metropolitan/micropolitan area boundaries",null,"Metropolitan/micropolitan area boundaries","Cultural & Demographic Statistics ","DOC-Census","Randy Fusaro","randy.j.fusaro@census.gov",{"$f":"VLOOKUP(B70,'[4]LOC FINAL with new Themes'!A:M,7,0)","v":0},{"$f":"VLOOKUP(B70,'[4]LOC FINAL with new Themes'!A:M,8,0)","v":0},{"$f":"VLOOKUP(B70,'[4]LOC FINAL with new Themes'!A:M,9,0)","v":0},{"$f":"VLOOKUP(B70,'[4]LOC FINAL with new Themes'!A:M,10,0)","v":0},{"$f":"VLOOKUP(B70,'[4]LOC FINAL with new Themes'!A:M,11,0)","v":0},{"$f":"VLOOKUP(B70,'[4]LOC FINAL with new Themes'!A:M,12,0)","v":0},{"$f":"VLOOKUP(B70,'[4]LOC FINAL with new Themes'!A:M,13,0)","v":0}]
[null,"Metropolitan/micropolitan Statistical Area (2010 Census)","Metropolitan/micropolitan Statistical Area (2010 Census)","Metropolitan/micropolitan Statistical Area (2010 Census)","Cultural & Demographic Statistics ","DOC-Census","Jennifer Holland","Jennifer.L.Holland@census.gov",{"$f":"VLOOKUP(B71,'[4]LOC FINAL with new Themes'!A:M,7,0)","v":0},{"$f":"VLOOKUP(B71,'[4]LOC FINAL with new Themes'!A:M,8,0)","v":0},{"$f":"VLOOKUP(B71,'[4]LOC FINAL with new Themes'!A:M,9,0)","v":0},{"$f":"VLOOKUP(B71,'[4]LOC FINAL with new Themes'!A:M,10,0)","v":0},{"$f":"VLOOKUP(B71,'[4]LOC FINAL with new Themes'!A:M,11,0)","v":0},{"$f":"VLOOKUP(B71,'[4]LOC FINAL with new Themes'!A:M,12,0)","v":0},{"$f":"VLOOKUP(B71,'[4]LOC FINAL with new Themes'!A:M,13,0)","v":0}]
["National Center for Health Statistics (Atlas of US Mortality)","National Center for Health Statistics (Atlas of US Mortality)",null,"National Center for Health Statistics (Atlas of US Mortality)","Cultural & Demographic Statistics ","HHS","Gary Anderson","gary.anderson@hhs.gov",{"$f":"VLOOKUP(B72,'[4]LOC FINAL with new Themes'!A:M,7,0)","v":0},{"$f":"VLOOKUP(B72,'[4]LOC FINAL with new Themes'!A:M,8,0)","v":0},{"$f":"VLOOKUP(B72,'[4]LOC FINAL with new Themes'!A:M,9,0)","v":0},{"$f":"VLOOKUP(B72,'[4]LOC FINAL with new Themes'!A:M,10,0)","v":0},{"$f":"VLOOKUP(B72,'[4]LOC FINAL with new Themes'!A:M,11,0)","v":0},{"$f":"VLOOKUP(B72,'[4]LOC FINAL with new Themes'!A:M,12,0)","v":0},{"$f":"VLOOKUP(B72,'[4]LOC FINAL with new Themes'!A:M,13,0)","v":0}]
[null,null,"Oklahoma Tribal Joint Use Areas","Oklahoma Tribal Joint Use Areas","Cultural & Demographic Statistics ","DOC-Census"]
[null,null,"Oklahoma Tribal Statistical Areas","Oklahoma Tribal Statistical Areas","Cultural & Demographic Statistics ","DOC-Census"]
[null,"Public Use Microdata Area (Census 2000)","Public Use Microdata Area (Census 2000)","Public Use Microdata Area (Census 2000)","Cultural & Demographic Statistics ","DOC-Census","Jennifer Holland","Jennifer.L.Holland@census.gov",{"$f":"VLOOKUP(B75,'[4]LOC FINAL with new Themes'!A:M,7,0)","v":0},{"$f":"VLOOKUP(B75,'[4]LOC FINAL with new Themes'!A:M,8,0)","v":0},{"$f":"VLOOKUP(B75,'[4]LOC FINAL with new Themes'!A:M,9,0)","v":0},{"$f":"VLOOKUP(B75,'[4]LOC FINAL with new Themes'!A:M,10,0)","v":0},{"$f":"VLOOKUP(B75,'[4]LOC FINAL with new Themes'!A:M,11,0)","v":0},{"$f":"VLOOKUP(B75,'[4]LOC FINAL with new Themes'!A:M,12,0)","v":0},{"$f":"VLOOKUP(B75,'[4]LOC FINAL with new Themes'!A:M,13,0)","v":0}]
["School District Boundaries","School District Boundaries",null,"School District Boundaries","Cultural & Demographic Statistics ","DOC-Census","Randy Fusaro","randy.j.fusaro@census.gov",{"$f":"VLOOKUP(B76,'[4]LOC FINAL with new Themes'!A:M,7,0)","v":0},{"$f":"VLOOKUP(B76,'[4]LOC FINAL with new Themes'!A:M,8,0)","v":0},{"$f":"VLOOKUP(B76,'[4]LOC FINAL with new Themes'!A:M,9,0)","v":0},{"$f":"VLOOKUP(B76,'[4]LOC FINAL with new Themes'!A:M,10,0)","v":0},{"$f":"VLOOKUP(B76,'[4]LOC FINAL with new Themes'!A:M,11,0)","v":0},{"$f":"VLOOKUP(B76,'[4]LOC FINAL with new Themes'!A:M,12,0)","v":0},{"$f":"VLOOKUP(B76,'[4]LOC FINAL with new Themes'!A:M,13,0)","v":0}]
[null,"Secondary School District (2010 Census)","Secondary School District (2010 Census)","Secondary School District (2010 Census)","Cultural & Demographic Statistics ","DOC-Census","Jennifer Holland","Jennifer.L.Holland@census.gov",{"$f":"VLOOKUP(B77,'[4]LOC FINAL with new Themes'!A:M,7,0)","v":0},{"$f":"VLOOKUP(B77,'[4]LOC FINAL with new Themes'!A:M,8,0)","v":0},{"$f":"VLOOKUP(B77,'[4]LOC FINAL with new Themes'!A:M,9,0)","v":0},{"$f":"VLOOKUP(B77,'[4]LOC FINAL with new Themes'!A:M,10,0)","v":0},{"$f":"VLOOKUP(B77,'[4]LOC FINAL with new Themes'!A:M,11,0)","v":0},{"$f":"VLOOKUP(B77,'[4]LOC FINAL with new Themes'!A:M,12,0)","v":0},{"$f":"VLOOKUP(B77,'[4]LOC FINAL with new Themes'!A:M,13,0)","v":0}]
[null,"Secondary School District (Census 2000)","Secondary School District (Census 2000)","Secondary School District (Census 2000)","Cultural & Demographic Statistics ","DOC-Census","Jennifer Holland","Jennifer.L.Holland@census.gov",{"$f":"VLOOKUP(B78,'[4]LOC FINAL with new Themes'!A:M,7,0)","v":0},{"$f":"VLOOKUP(B78,'[4]LOC FINAL with new Themes'!A:M,8,0)","v":0},{"$f":"VLOOKUP(B78,'[4]LOC FINAL with new Themes'!A:M,9,0)","v":0},{"$f":"VLOOKUP(B78,'[4]LOC FINAL with new Themes'!A:M,10,0)","v":0},{"$f":"VLOOKUP(B78,'[4]LOC FINAL with new Themes'!A:M,11,0)","v":0},{"$f":"VLOOKUP(B78,'[4]LOC FINAL with new Themes'!A:M,12,0)","v":0},{"$f":"VLOOKUP(B78,'[4]LOC FINAL with new Themes'!A:M,13,0)","v":0}]
["State (+ Territories) Boundaries","State (+ Territories) Boundaries",null,"State (+ Territories) Boundaries","Cultural & Demographic Statistics ","DOC-Census","Randy Fusaro","randy.j.fusaro@census.gov",{"$f":"VLOOKUP(B79,'[4]LOC FINAL with new Themes'!A:M,7,0)","v":0},{"$f":"VLOOKUP(B79,'[4]LOC FINAL with new Themes'!A:M,8,0)","v":0},{"$f":"VLOOKUP(B79,'[4]LOC FINAL with new Themes'!A:M,9,0)","v":0},{"$f":"VLOOKUP(B79,'[4]LOC FINAL with new Themes'!A:M,10,0)","v":0},{"$f":"VLOOKUP(B79,'[4]LOC FINAL with new Themes'!A:M,11,0)","v":0},{"$f":"VLOOKUP(B79,'[4]LOC FINAL with new Themes'!A:M,12,0)","v":0},{"$f":"VLOOKUP(B79,'[4]LOC FINAL with new Themes'!A:M,13,0)","v":0}]
["Statistical Area Boundaries (tracts, blocks, UAs, CDPs, etc)","Statistical Area Boundaries (tracts, blocks, UAs, CDPs, etc)",null,"Statistical Area Boundaries (tracts, blocks, UAs, CDPs, etc)","Cultural & Demographic Statistics ","DOC-Census","Randy Fusaro","randy.j.fusaro@census.gov",{"$f":"VLOOKUP(B80,'[4]LOC FINAL with new Themes'!A:M,7,0)","v":0},{"$f":"VLOOKUP(B80,'[4]LOC FINAL with new Themes'!A:M,8,0)","v":0},{"$f":"VLOOKUP(B80,'[4]LOC FINAL with new Themes'!A:M,9,0)","v":0},{"$f":"VLOOKUP(B80,'[4]LOC FINAL with new Themes'!A:M,10,0)","v":0},{"$f":"VLOOKUP(B80,'[4]LOC FINAL with new Themes'!A:M,11,0)","v":0},{"$f":"VLOOKUP(B80,'[4]LOC FINAL with new Themes'!A:M,12,0)","v":0},{"$f":"VLOOKUP(B80,'[4]LOC FINAL with new Themes'!A:M,13,0)","v":0}]
[null,"Super Public Use Microdata Area (Census 2000)","Super Public Use Microdata Area (Census 2000)","Super Public Use Microdata Area (Census 2000)","Cultural & Demographic Statistics ","DOC-Census","Jennifer Holland","Jennifer.L.Holland@census.gov",{"$f":"VLOOKUP(B81,'[4]LOC FINAL with new Themes'!A:M,7,0)","v":0},{"$f":"VLOOKUP(B81,'[4]LOC FINAL with new Themes'!A:M,8,0)","v":0},{"$f":"VLOOKUP(B81,'[4]LOC FINAL with new Themes'!A:M,9,0)","v":0},{"$f":"VLOOKUP(B81,'[4]LOC FINAL with new Themes'!A:M,10,0)","v":0},{"$f":"VLOOKUP(B81,'[4]LOC FINAL with new Themes'!A:M,11,0)","v":0},{"$f":"VLOOKUP(B81,'[4]LOC FINAL with new Themes'!A:M,12,0)","v":0},{"$f":"VLOOKUP(B81,'[4]LOC FINAL with new Themes'!A:M,13,0)","v":0}]
["TIGER* (many statistical boundaries)","TIGER (many statistical boundaries)",null,"TIGER (many statistical boundaries)","Cultural & Demographic Statistics ","DOC-Census","Randy Fusaro","randy.j.fusaro@census.gov",{"$f":"VLOOKUP(B82,'[4]LOC FINAL with new Themes'!A:M,7,0)","v":0},{"$f":"VLOOKUP(B82,'[4]LOC FINAL with new Themes'!A:M,8,0)","v":0},{"$f":"VLOOKUP(B82,'[4]LOC FINAL with new Themes'!A:M,9,0)","v":0},{"$f":"VLOOKUP(B82,'[4]LOC FINAL with new Themes'!A:M,10,0)","v":0},{"$f":"VLOOKUP(B82,'[4]LOC FINAL with new Themes'!A:M,11,0)","v":0},{"$f":"VLOOKUP(B82,'[4]LOC FINAL with new Themes'!A:M,12,0)","v":0},{"$f":"VLOOKUP(B82,'[4]LOC FINAL with new Themes'!A:M,13,0)","v":0}]
[null,"Topological Faces (2010 Census)","Topological Faces (2010 Census)","Topological Faces (2010 Census)","Cultural & Demographic Statistics ","DOC-Census","Jennifer Holland","Jennifer.L.Holland@census.gov",{"$f":"VLOOKUP(B83,'[4]LOC FINAL with new Themes'!A:M,7,0)","v":0},{"$f":"VLOOKUP(B83,'[4]LOC FINAL with new Themes'!A:M,8,0)","v":0},{"$f":"VLOOKUP(B83,'[4]LOC FINAL with new Themes'!A:M,9,0)","v":0},{"$f":"VLOOKUP(B83,'[4]LOC FINAL with new Themes'!A:M,10,0)","v":0},{"$f":"VLOOKUP(B83,'[4]LOC FINAL with new Themes'!A:M,11,0)","v":0},{"$f":"VLOOKUP(B83,'[4]LOC FINAL with new Themes'!A:M,12,0)","v":0},{"$f":"VLOOKUP(B83,'[4]LOC FINAL with new Themes'!A:M,13,0)","v":0}]
[null,"Unified School District (2010 Census)","Unified School District (2010 Census)","Unified School District (2010 Census)","Cultural & Demographic Statistics ","DOC-Census","Jennifer Holland","Jennifer.L.Holland@census.gov",{"$f":"VLOOKUP(B84,'[4]LOC FINAL with new Themes'!A:M,7,0)","v":0},{"$f":"VLOOKUP(B84,'[4]LOC FINAL with new Themes'!A:M,8,0)","v":0},{"$f":"VLOOKUP(B84,'[4]LOC FINAL with new Themes'!A:M,9,0)","v":0},{"$f":"VLOOKUP(B84,'[4]LOC FINAL with new Themes'!A:M,10,0)","v":0},{"$f":"VLOOKUP(B84,'[4]LOC FINAL with new Themes'!A:M,11,0)","v":0},{"$f":"VLOOKUP(B84,'[4]LOC FINAL with new Themes'!A:M,12,0)","v":0},{"$f":"VLOOKUP(B84,'[4]LOC FINAL with new Themes'!A:M,13,0)","v":0}]
[null,"Unified School District (Census 2000)","Unified School District (Census 2000)","Unified School District (Census 2000)","Cultural & Demographic Statistics ","DOC-Census","Jennifer Holland","Jennifer.L.Holland@census.gov",{"$f":"VLOOKUP(B85,'[4]LOC FINAL with new Themes'!A:M,7,0)","v":0},{"$f":"VLOOKUP(B85,'[4]LOC FINAL with new Themes'!A:M,8,0)","v":0},{"$f":"VLOOKUP(B85,'[4]LOC FINAL with new Themes'!A:M,9,0)","v":0},{"$f":"VLOOKUP(B85,'[4]LOC FINAL with new Themes'!A:M,10,0)","v":0},{"$f":"VLOOKUP(B85,'[4]LOC FINAL with new Themes'!A:M,11,0)","v":0},{"$f":"VLOOKUP(B85,'[4]LOC FINAL with new Themes'!A:M,12,0)","v":0},{"$f":"VLOOKUP(B85,'[4]LOC FINAL with new Themes'!A:M,13,0)","v":0}]
[null,"Urban Growth Area (2010 Census)","Urban Growth Area (2010 Census)","Urban Growth Area (2010 Census)","Cultural & Demographic Statistics ","DOC-Census","Jennifer Holland","Jennifer.L.Holland@census.gov",{"$f":"VLOOKUP(B86,'[4]LOC FINAL with new Themes'!A:M,7,0)","v":0},{"$f":"VLOOKUP(B86,'[4]LOC FINAL with new Themes'!A:M,8,0)","v":0},{"$f":"VLOOKUP(B86,'[4]LOC FINAL with new Themes'!A:M,9,0)","v":0},{"$f":"VLOOKUP(B86,'[4]LOC FINAL with new Themes'!A:M,10,0)","v":0},{"$f":"VLOOKUP(B86,'[4]LOC FINAL with new Themes'!A:M,11,0)","v":0},{"$f":"VLOOKUP(B86,'[4]LOC FINAL with new Themes'!A:M,12,0)","v":0},{"$f":"VLOOKUP(B86,'[4]LOC FINAL with new Themes'!A:M,13,0)","v":0}]
[null,"Urban Growth Area (Census 2000)","Urban Growth Area (Census 2000)","Urban Growth Area (Census 2000)","Cultural & Demographic Statistics ","DOC-Census","Jennifer Holland","Jennifer.L.Holland@census.gov",{"$f":"VLOOKUP(B87,'[4]LOC FINAL with new Themes'!A:M,7,0)","v":0},{"$f":"VLOOKUP(B87,'[4]LOC FINAL with new Themes'!A:M,8,0)","v":0},{"$f":"VLOOKUP(B87,'[4]LOC FINAL with new Themes'!A:M,9,0)","v":0},{"$f":"VLOOKUP(B87,'[4]LOC FINAL with new Themes'!A:M,10,0)","v":0},{"$f":"VLOOKUP(B87,'[4]LOC FINAL with new Themes'!A:M,11,0)","v":0},{"$f":"VLOOKUP(B87,'[4]LOC FINAL with new Themes'!A:M,12,0)","v":0},{"$f":"VLOOKUP(B87,'[4]LOC FINAL with new Themes'!A:M,13,0)","v":0}]
[null,"Voting District (2010 Census)","Voting District (2010 Census)","Voting District (2010 Census)","Cultural & Demographic Statistics ","DOC-Census","Jennifer Holland","Jennifer.L.Holland@census.gov",{"$f":"VLOOKUP(B88,'[4]LOC FINAL with new Themes'!A:M,7,0)","v":0},{"$f":"VLOOKUP(B88,'[4]LOC FINAL with new Themes'!A:M,8,0)","v":0},{"$f":"VLOOKUP(B88,'[4]LOC FINAL with new Themes'!A:M,9,0)","v":0},{"$f":"VLOOKUP(B88,'[4]LOC FINAL with new Themes'!A:M,10,0)","v":0},{"$f":"VLOOKUP(B88,'[4]LOC FINAL with new Themes'!A:M,11,0)","v":0},{"$f":"VLOOKUP(B88,'[4]LOC FINAL with new Themes'!A:M,12,0)","v":0},{"$f":"VLOOKUP(B88,'[4]LOC FINAL with new Themes'!A:M,13,0)","v":0}]
[null,"Voting District (Census 2000)","Voting District (Census 2000)","Voting District (Census 2000)","Cultural & Demographic Statistics ","DOC-Census","Jennifer Holland","Jennifer.L.Holland@census.gov",{"$f":"VLOOKUP(B89,'[4]LOC FINAL with new Themes'!A:M,7,0)","v":0},{"$f":"VLOOKUP(B89,'[4]LOC FINAL with new Themes'!A:M,8,0)","v":0},{"$f":"VLOOKUP(B89,'[4]LOC FINAL with new Themes'!A:M,9,0)","v":0},{"$f":"VLOOKUP(B89,'[4]LOC FINAL with new Themes'!A:M,10,0)","v":0},{"$f":"VLOOKUP(B89,'[4]LOC FINAL with new Themes'!A:M,11,0)","v":0},{"$f":"VLOOKUP(B89,'[4]LOC FINAL with new Themes'!A:M,12,0)","v":0},{"$f":"VLOOKUP(B89,'[4]LOC FINAL with new Themes'!A:M,13,0)","v":0}]
["Voting District Boundaries","Voting District Boundaries",null,"Voting District Boundaries","Cultural & Demographic Statistics ","DOC-Census","Randy Fusaro","randy.j.fusaro@census.gov",{"$f":"VLOOKUP(B90,'[4]LOC FINAL with new Themes'!A:M,7,0)","v":0},{"$f":"VLOOKUP(B90,'[4]LOC FINAL with new Themes'!A:M,8,0)","v":0},{"$f":"VLOOKUP(B90,'[4]LOC FINAL with new Themes'!A:M,9,0)","v":0},{"$f":"VLOOKUP(B90,'[4]LOC FINAL with new Themes'!A:M,10,0)","v":0},{"$f":"VLOOKUP(B90,'[4]LOC FINAL with new Themes'!A:M,11,0)","v":0},{"$f":"VLOOKUP(B90,'[4]LOC FINAL with new Themes'!A:M,12,0)","v":0},{"$f":"VLOOKUP(B90,'[4]LOC FINAL with new Themes'!A:M,13,0)","v":0}]
[{"$f":"SUBTOTAL(3,A50:A90)","v":10},{"$f":"SUBTOTAL(3,B50:B90)","v":39},{"$f":"SUBTOTAL(3,C50:C90)","v":30},{"$f":"SUBTOTAL(3,D50:D90)","v":41},"Cultural & Demographic Statistics  Count"]
["Cultural Landscape Boundaries","Cultural Landscape Boundaries","Cultural Landscape Boundaries",{"$f":"IF(C92=0,B92,C92)","v":"Cultural Landscape Boundaries"},"Cultural & Demographic Statistics \nCultural Resources","DOI-NPS","John Knoerl","john_knoerl@nps.gov",{"$f":"VLOOKUP(B92,'[4]LOC FINAL with new Themes'!A:M,7,0)","v":"Feature classes of the cultural resource data model (NPS only, other federal agencies handle it as they decide)"},{"$f":"VLOOKUP(B92,'[4]LOC FINAL with new Themes'!A:M,8,0)","v":"don't want a single centralized data set but focusing on standard approach"},{"$f":"VLOOKUP(B92,'[4]LOC FINAL with new Themes'!A:M,9,0)","v":0},{"$f":"VLOOKUP(B92,'[4]LOC FINAL with new Themes'!A:M,10,0)","v":0},{"$f":"VLOOKUP(B92,'[4]LOC FINAL with new Themes'!A:M,11,0)","v":0},{"$f":"VLOOKUP(B92,'[4]LOC FINAL with new Themes'!A:M,12,0)","v":0},{"$f":"VLOOKUP(B92,'[4]LOC FINAL with new Themes'!A:M,13,0)","v":0}]
["Cultural Resource Survey Boundaries","Cultural Resource Survey Boundaries","Cultural Resource Survey Boundaries","Cultural Resource Survey Boundaries","Cultural & Demographic Statistics \nCultural Resources","DOI-NPS","John Knoerl","john_knoerl@nps.gov",{"$f":"VLOOKUP(B93,'[4]LOC FINAL with new Themes'!A:M,7,0)","v":"Feature classes of the cultural resource data model (NPS only, other federal agencies handle it as they decide)"},{"$f":"VLOOKUP(B93,'[4]LOC FINAL with new Themes'!A:M,8,0)","v":"don't want a single centralized data set but focusing on standard approach"},{"$f":"VLOOKUP(B93,'[4]LOC FINAL with new Themes'!A:M,9,0)","v":0},{"$f":"VLOOKUP(B93,'[4]LOC FINAL with new Themes'!A:M,10,0)","v":0},{"$f":"VLOOKUP(B93,'[4]LOC FINAL with new Themes'!A:M,11,0)","v":0},{"$f":"VLOOKUP(B93,'[4]LOC FINAL with new Themes'!A:M,12,0)","v":0},{"$f":"VLOOKUP(B93,'[4]LOC FINAL with new Themes'!A:M,13,0)","v":0}]
["Ethnographic Resource Boundaries","Ethnographic Resource Boundaries","Ethnographic Resource Boundaries","Ethnographic Resource Boundaries","Cultural & Demographic Statistics \nCultural Resources","DOI-NPS","John Knoerl","john_knoerl@nps.gov",{"$f":"VLOOKUP(B94,'[4]LOC FINAL with new Themes'!A:M,7,0)","v":"Feature classes of the cultural resource data model (NPS only, other federal agencies handle it as they decide)"},{"$f":"VLOOKUP(B94,'[4]LOC FINAL with new Themes'!A:M,8,0)","v":"don't want a single centralized data set but focusing on standard approach"},{"$f":"VLOOKUP(B94,'[4]LOC FINAL with new Themes'!A:M,9,0)","v":0},{"$f":"VLOOKUP(B94,'[4]LOC FINAL with new Themes'!A:M,10,0)","v":0},{"$f":"VLOOKUP(B94,'[4]LOC FINAL with new Themes'!A:M,11,0)","v":0},{"$f":"VLOOKUP(B94,'[4]LOC FINAL with new Themes'!A:M,12,0)","v":0},{"$f":"VLOOKUP(B94,'[4]LOC FINAL with new Themes'!A:M,13,0)","v":0}]
["Historic Buildings Boundaries","Historic Buildings Boundaries","Historic Buildings Boundaries","Historic Buildings Boundaries","Cultural & Demographic Statistics \nCultural Resources","DOI-NPS","John Knoerl","john_knoerl@nps.gov",{"$f":"VLOOKUP(B95,'[4]LOC FINAL with new Themes'!A:M,7,0)","v":"Feature classes of the cultural resource data model (NPS only, other federal agencies handle it as they decide)"},{"$f":"VLOOKUP(B95,'[4]LOC FINAL with new Themes'!A:M,8,0)","v":"don't want a single centralized data set but focusing on standard approach"},{"$f":"VLOOKUP(B95,'[4]LOC FINAL with new Themes'!A:M,9,0)","v":0},{"$f":"VLOOKUP(B95,'[4]LOC FINAL with new Themes'!A:M,10,0)","v":0},{"$f":"VLOOKUP(B95,'[4]LOC FINAL with new Themes'!A:M,11,0)","v":0},{"$f":"VLOOKUP(B95,'[4]LOC FINAL with new Themes'!A:M,12,0)","v":0},{"$f":"VLOOKUP(B95,'[4]LOC FINAL with new Themes'!A:M,13,0)","v":0}]
["Historic Districts Boundaries","Historic Districts Boundaries","Historic Districts Boundaries","Historic Districts Boundaries","Cultural & Demographic Statistics \nCultural Resources","DOI-NPS","John Knoerl","john_knoerl@nps.gov",{"$f":"VLOOKUP(B96,'[4]LOC FINAL with new Themes'!A:M,7,0)","v":"Feature classes of the cultural resource data model (NPS only, other federal agencies handle it as they decide)"},{"$f":"VLOOKUP(B96,'[4]LOC FINAL with new Themes'!A:M,8,0)","v":"don't want a single centralized data set but focusing on standard approach"},{"$f":"VLOOKUP(B96,'[4]LOC FINAL with new Themes'!A:M,9,0)","v":0},{"$f":"VLOOKUP(B96,'[4]LOC FINAL with new Themes'!A:M,10,0)","v":0},{"$f":"VLOOKUP(B96,'[4]LOC FINAL with new Themes'!A:M,11,0)","v":0},{"$f":"VLOOKUP(B96,'[4]LOC FINAL with new Themes'!A:M,12,0)","v":0},{"$f":"VLOOKUP(B96,'[4]LOC FINAL with new Themes'!A:M,13,0)","v":0}]
["Historic Objects Boundaries","Historic Objects Boundaries","Historic Objects Boundaries","Historic Objects Boundaries","Cultural & Demographic Statistics \nCultural Resources","DOI-NPS","John Knoerl","john_knoerl@nps.gov",{"$f":"VLOOKUP(B97,'[4]LOC FINAL with new Themes'!A:M,7,0)","v":"Feature classes of the cultural resource data model (NPS only, other federal agencies handle it as they decide)"},{"$f":"VLOOKUP(B97,'[4]LOC FINAL with new Themes'!A:M,8,0)","v":"don't want a single centralized data set but focusing on standard approach"},{"$f":"VLOOKUP(B97,'[4]LOC FINAL with new Themes'!A:M,9,0)","v":0},{"$f":"VLOOKUP(B97,'[4]LOC FINAL with new Themes'!A:M,10,0)","v":0},{"$f":"VLOOKUP(B97,'[4]LOC FINAL with new Themes'!A:M,11,0)","v":0},{"$f":"VLOOKUP(B97,'[4]LOC FINAL with new Themes'!A:M,12,0)","v":0},{"$f":"VLOOKUP(B97,'[4]LOC FINAL with new Themes'!A:M,13,0)","v":0}]
["Historic Structures Boundaries","Historic Structures Boundaries","Historic Structures Boundaries","Historic Structures Boundaries","Cultural & Demographic Statistics \nCultural Resources","DOI-NPS","John Knoerl","john_knoerl@nps.gov",{"$f":"VLOOKUP(B98,'[4]LOC FINAL with new Themes'!A:M,7,0)","v":"Feature classes of the cultural resource data model (NPS only, other federal agencies handle it as they decide)"},{"$f":"VLOOKUP(B98,'[4]LOC FINAL with new Themes'!A:M,8,0)","v":"don't want a single centralized data set but focusing on standard approach"},{"$f":"VLOOKUP(B98,'[4]LOC FINAL with new Themes'!A:M,9,0)","v":0},{"$f":"VLOOKUP(B98,'[4]LOC FINAL with new Themes'!A:M,10,0)","v":0},{"$f":"VLOOKUP(B98,'[4]LOC FINAL with new Themes'!A:M,11,0)","v":0},{"$f":"VLOOKUP(B98,'[4]LOC FINAL with new Themes'!A:M,12,0)","v":0},{"$f":"VLOOKUP(B98,'[4]LOC FINAL with new Themes'!A:M,13,0)","v":"M "}]
[null,null,"Other Cultural Resource Boundaries","Other Cultural Resource Boundaries","Cultural & Demographic Statistics \nCultural Resources","DOI-NPS"]
[{"$f":"SUBTOTAL(3,A92:A99)","v":7},{"$f":"SUBTOTAL(3,B92:B99)","v":7},{"$f":"SUBTOTAL(3,C92:C99)","v":8},{"$f":"SUBTOTAL(3,D92:D99)","v":8},"Cultural & Demographic Statistics \nCultural Resources Count"]
[null,"Point Landmark (2010 Census)","Point of Landmark (2010 Census)",{"$f":"IF(C101=0,B101,C101)","v":"Point of Landmark (2010 Census)"},"Cultural Resources","DOC-Census","Jennifer Holland","Jennifer.L.Holland@census.gov",{"$f":"VLOOKUP(B101,'[4]LOC FINAL with new Themes'!A:M,7,0)","v":0},{"$f":"VLOOKUP(B101,'[4]LOC FINAL with new Themes'!A:M,8,0)","v":0},{"$f":"VLOOKUP(B101,'[4]LOC FINAL with new Themes'!A:M,9,0)","v":0},{"$f":"VLOOKUP(B101,'[4]LOC FINAL with new Themes'!A:M,10,0)","v":0},{"$f":"VLOOKUP(B101,'[4]LOC FINAL with new Themes'!A:M,11,0)","v":0},{"$f":"VLOOKUP(B101,'[4]LOC FINAL with new Themes'!A:M,12,0)","v":0},{"$f":"VLOOKUP(B101,'[4]LOC FINAL with new Themes'!A:M,13,0)","v":0}]
["Archeological Sites","Archeological Sites","Archeological Sites","Archeological Sites","Cultural Resources ","DOI-NPS","John Knoerl","john_knoerl@nps.gov",{"$f":"VLOOKUP(B102,'[4]LOC FINAL with new Themes'!A:M,7,0)","v":"Feature classes of the cultural resource data model (NPS only, other federal agencies handle it as they decide)"},{"$f":"VLOOKUP(B102,'[4]LOC FINAL with new Themes'!A:M,8,0)","v":"don't want a single centralized data set but focusing on standard approach"},{"$f":"VLOOKUP(B102,'[4]LOC FINAL with new Themes'!A:M,9,0)","v":"National Historic Presrevation Act says state historic preservation office has primary oversight (section 110)"},{"$f":"VLOOKUP(B102,'[4]LOC FINAL with new Themes'!A:M,10,0)","v":0},{"$f":"VLOOKUP(B102,'[4]LOC FINAL with new Themes'!A:M,11,0)","v":0},{"$f":"VLOOKUP(B102,'[4]LOC FINAL with new Themes'!A:M,12,0)","v":0},{"$f":"VLOOKUP(B102,'[4]LOC FINAL with new Themes'!A:M,13,0)","v":0}]
[null,"Area Landmark (2010 Census)","Area Landmark (2010 Census)","Area Landmark (2010 Census)","Cultural Resources ","DOC-Census","Jennifer Holland","Jennifer.L.Holland@census.gov",{"$f":"VLOOKUP(B103,'[4]LOC FINAL with new Themes'!A:M,7,0)","v":0},{"$f":"VLOOKUP(B103,'[4]LOC FINAL with new Themes'!A:M,8,0)","v":0},{"$f":"VLOOKUP(B103,'[4]LOC FINAL with new Themes'!A:M,9,0)","v":0},{"$f":"VLOOKUP(B103,'[4]LOC FINAL with new Themes'!A:M,10,0)","v":0},{"$f":"VLOOKUP(B103,'[4]LOC FINAL with new Themes'!A:M,11,0)","v":0},{"$f":"VLOOKUP(B103,'[4]LOC FINAL with new Themes'!A:M,12,0)","v":0},{"$f":"VLOOKUP(B103,'[4]LOC FINAL with new Themes'!A:M,13,0)","v":0}]
[null,null,"Geographic Names Dataset - National Map","Geographic Names Dataset - National Map","Cultural Resources ","DOI-USGS"]
["National Map - Geographic Names Information System (GNIS)","National Map - Geographic Names Information System (GNIS)",null,"National Map - Geographic Names Information System (GNIS)","Cultural Resources ","DOI-USGS","Lou Yost","lyost@usgs.gov",{"$f":"VLOOKUP(B105,'[4]LOC FINAL with new Themes'!A:M,7,0)","v":"single data set; poc, data managers; daily updated; Denver systems people backup and archive; transfer to NARA also; Gaz vector (internal)"},{"$f":"VLOOKUP(B105,'[4]LOC FINAL with new Themes'!A:M,8,0)","v":0},{"$f":"VLOOKUP(B105,'[4]LOC FINAL with new Themes'!A:M,9,0)","v":0},{"$f":"VLOOKUP(B105,'[4]LOC FINAL with new Themes'!A:M,10,0)","v":0},{"$f":"VLOOKUP(B105,'[4]LOC FINAL with new Themes'!A:M,11,0)","v":0},{"$f":"VLOOKUP(B105,'[4]LOC FINAL with new Themes'!A:M,12,0)","v":0},{"$f":"VLOOKUP(B105,'[4]LOC FINAL with new Themes'!A:M,13,0)","v":"S"}]
[null,"Topological Faces-Area Landmark Relationship File","Topological Faces-Area Landmark Relationship File","Topological Faces-Area Landmark Relationship File","Cultural Resources ","DOC-Census","Jennifer Holland","Jennifer.L.Holland@census.gov",{"$f":"VLOOKUP(B106,'[4]LOC FINAL with new Themes'!A:M,7,0)","v":0},{"$f":"VLOOKUP(B106,'[4]LOC FINAL with new Themes'!A:M,8,0)","v":0},{"$f":"VLOOKUP(B106,'[4]LOC FINAL with new Themes'!A:M,9,0)","v":0},{"$f":"VLOOKUP(B106,'[4]LOC FINAL with new Themes'!A:M,10,0)","v":0},{"$f":"VLOOKUP(B106,'[4]LOC FINAL with new Themes'!A:M,11,0)","v":0},{"$f":"VLOOKUP(B106,'[4]LOC FINAL with new Themes'!A:M,12,0)","v":0},{"$f":"VLOOKUP(B106,'[4]LOC FINAL with new Themes'!A:M,13,0)","v":0}]
[{"$f":"SUBTOTAL(3,A101:A106)","v":2},{"$f":"SUBTOTAL(3,B101:B106)","v":5},{"$f":"SUBTOTAL(3,C101:C106)","v":5},{"$f":"SUBTOTAL(3,D101:D106)","v":6},"Cultural Resources Count"]
["133 UA Elevation Data (lidar)","133 UA Elevation Data (lidar)",null,{"$f":"IF(C108=0,B108,C108)","v":"133 UA Elevation Data (lidar)"},"Elevation","DOD-NGA","Ron Power, NGA","ronald.k.power@nga.mil",{"$f":"VLOOKUP(B108,'[4]LOC FINAL with new Themes'!A:M,7,0)","v":0},{"$f":"VLOOKUP(B108,'[4]LOC FINAL with new Themes'!A:M,8,0)","v":0},{"$f":"VLOOKUP(B108,'[4]LOC FINAL with new Themes'!A:M,9,0)","v":0},{"$f":"VLOOKUP(B108,'[4]LOC FINAL with new Themes'!A:M,10,0)","v":0},{"$f":"VLOOKUP(B108,'[4]LOC FINAL with new Themes'!A:M,11,0)","v":0},{"$f":"VLOOKUP(B108,'[4]LOC FINAL with new Themes'!A:M,12,0)","v":0},{"$f":"VLOOKUP(B108,'[4]LOC FINAL with new Themes'!A:M,13,0)","v":0}]
["DEMs - Archive","DEMs - Archive",null,"DEMs - Archive","Elevation","DOI-USGS","Gayla Evans","gevans@usgs.gov",{"$f":"VLOOKUP(B109,'[4]LOC FINAL with new Themes'!A:M,7,0)","v":"DEMS update at variable nature; are four data sets based on resolution; this is the POC and data manager; this is the name and maintain three complete with two physically separate on-site and one off-site"},{"$f":"VLOOKUP(B109,'[4]LOC FINAL with new Themes'!A:M,8,0)","v":0},{"$f":"VLOOKUP(B109,'[4]LOC FINAL with new Themes'!A:M,9,0)","v":0},{"$f":"VLOOKUP(B109,'[4]LOC FINAL with new Themes'!A:M,10,0)","v":0},{"$f":"VLOOKUP(B109,'[4]LOC FINAL with new Themes'!A:M,11,0)","v":0},{"$f":"VLOOKUP(B109,'[4]LOC FINAL with new Themes'!A:M,12,0)","v":0},{"$f":"VLOOKUP(B109,'[4]LOC FINAL with new Themes'!A:M,13,0)","v":"S"}]
["GTOPO30","GTOPO30",null,"GTOPO30","Elevation","DOI-USGS","Jeff Danielson"," daniels@usgs.gov",{"$f":"VLOOKUP(B110,'[4]LOC FINAL with new Themes'!A:M,7,0)","v":"GTOPO30 is static; one data set; this is the POC and data manager; this is the name and maintain three complete with two physically separate on-site and one off-site"},{"$f":"VLOOKUP(B110,'[4]LOC FINAL with new Themes'!A:M,8,0)","v":0},{"$f":"VLOOKUP(B110,'[4]LOC FINAL with new Themes'!A:M,9,0)","v":0},{"$f":"VLOOKUP(B110,'[4]LOC FINAL with new Themes'!A:M,10,0)","v":0},{"$f":"VLOOKUP(B110,'[4]LOC FINAL with new Themes'!A:M,11,0)","v":0},{"$f":"VLOOKUP(B110,'[4]LOC FINAL with new Themes'!A:M,12,0)","v":0},{"$f":"VLOOKUP(B110,'[4]LOC FINAL with new Themes'!A:M,13,0)","v":0}]
["National Map National Elevation Data Set (NED)","National Map  - National Elevation Dataset (NED)",null,"National Map  - National Elevation Dataset (NED)","Elevation","DOI-USGS","Jim Mauck","lyost@usgs.gov",{"$f":"VLOOKUP(B111,'[4]LOC FINAL with new Themes'!A:M,7,0)","v":0},{"$f":"VLOOKUP(B111,'[4]LOC FINAL with new Themes'!A:M,8,0)","v":0},{"$f":"VLOOKUP(B111,'[4]LOC FINAL with new Themes'!A:M,9,0)","v":0},{"$f":"VLOOKUP(B111,'[4]LOC FINAL with new Themes'!A:M,10,0)","v":0},{"$f":"VLOOKUP(B111,'[4]LOC FINAL with new Themes'!A:M,11,0)","v":0},{"$f":"VLOOKUP(B111,'[4]LOC FINAL with new Themes'!A:M,12,0)","v":0},{"$f":"VLOOKUP(B111,'[4]LOC FINAL with new Themes'!A:M,13,0)","v":0}]
["National Ocean Service (NOS) Bathymetry Warehouse (name subject to change)","National Ocean Service (NOS) Bathymetry Warehouse (name subject to change)",null,"National Ocean Service (NOS) Bathymetry Warehouse (name subject to change)","Elevation","DOC-NOAA",null,null,{"$f":"VLOOKUP(B112,'[4]LOC FINAL with new Themes'!A:M,7,0)","v":0},{"$f":"VLOOKUP(B112,'[4]LOC FINAL with new Themes'!A:M,8,0)","v":0},{"$f":"VLOOKUP(B112,'[4]LOC FINAL with new Themes'!A:M,9,0)","v":0},{"$f":"VLOOKUP(B112,'[4]LOC FINAL with new Themes'!A:M,10,0)","v":0},{"$f":"VLOOKUP(B112,'[4]LOC FINAL with new Themes'!A:M,11,0)","v":0},{"$f":"VLOOKUP(B112,'[4]LOC FINAL with new Themes'!A:M,12,0)","v":0},{"$f":"VLOOKUP(B112,'[4]LOC FINAL with new Themes'!A:M,13,0)","v":"P"}]
["National Ocean Service (NOS) Hydrographic Data Base (NOSHDB)","National Ocean Service (NOS) Hydrographic Data Base (NOSHDB)",null,"National Ocean Service (NOS) Hydrographic Data Base (NOSHDB)","Elevation","DOC-NOAA","Brian Mohr","Brian.Mohr@noaa.gov",{"$f":"VLOOKUP(B113,'[4]LOC FINAL with new Themes'!A:M,7,0)","v":"I manage several datadatabases/datasets.  They include SURDEX, our database of hydrographic survey outlines(polygons) in a MapInfo platform and  the Bathydatabase which is a collection of our BAGs or Bathymetric Attribution Grid files. "},{"$f":"VLOOKUP(B113,'[4]LOC FINAL with new Themes'!A:M,8,0)","v":"Yes"},{"$f":"VLOOKUP(B113,'[4]LOC FINAL with new Themes'!A:M,9,0)","v":"Yes"},{"$f":"VLOOKUP(B113,'[4]LOC FINAL with new Themes'!A:M,10,0)","v":"archived at NGDC"},{"$f":"VLOOKUP(B113,'[4]LOC FINAL with new Themes'!A:M,11,0)","v":"Currently these files are being prepped to be pushed into either  a Caris or ESRI database platform.  I also have a shared role in managing our Survey Tracking database called Survey Tracker.  Each is updated weekly, they are backed up by our internal IT staff"},{"$f":"VLOOKUP(B113,'[4]LOC FINAL with new Themes'!A:M,12,0)","v":0},{"$f":"VLOOKUP(B113,'[4]LOC FINAL with new Themes'!A:M,13,0)","v":"M "}]
["NOAA Estuarine Bathymetry","NOAA Estuarine Bathymetry",null,"NOAA Estuarine Bathymetry","Elevation","DOC-NOAA",null,null,{"$f":"VLOOKUP(B114,'[4]LOC FINAL with new Themes'!A:M,7,0)","v":0},{"$f":"VLOOKUP(B114,'[4]LOC FINAL with new Themes'!A:M,8,0)","v":0},{"$f":"VLOOKUP(B114,'[4]LOC FINAL with new Themes'!A:M,9,0)","v":0},{"$f":"VLOOKUP(B114,'[4]LOC FINAL with new Themes'!A:M,10,0)","v":0},{"$f":"VLOOKUP(B114,'[4]LOC FINAL with new Themes'!A:M,11,0)","v":0},{"$f":"VLOOKUP(B114,'[4]LOC FINAL with new Themes'!A:M,12,0)","v":0},{"$f":"VLOOKUP(B114,'[4]LOC FINAL with new Themes'!A:M,13,0)","v":0}]
["SRTM (3-arc second DTEDS)","SRTM (3-arc second DTEDS)",null,"SRTM (3-arc second DTEDS)","Elevation","DOI-USGS","Dean Gesch, USGS","gesch@usgs.gov",{"$f":"VLOOKUP(B115,'[4]LOC FINAL with new Themes'!A:M,7,0)","v":"SRTM is static; one data set; this is the POC and data manager; this is the name and maintain three complete with two physically separate on-site and one off-site"},{"$f":"VLOOKUP(B115,'[4]LOC FINAL with new Themes'!A:M,8,0)","v":0},{"$f":"VLOOKUP(B115,'[4]LOC FINAL with new Themes'!A:M,9,0)","v":0},{"$f":"VLOOKUP(B115,'[4]LOC FINAL with new Themes'!A:M,10,0)","v":0},{"$f":"VLOOKUP(B115,'[4]LOC FINAL with new Themes'!A:M,11,0)","v":0},{"$f":"VLOOKUP(B115,'[4]LOC FINAL with new Themes'!A:M,12,0)","v":0},{"$f":"VLOOKUP(B115,'[4]LOC FINAL with new Themes'!A:M,13,0)","v":"S"}]
["Digital Flood Insurance Rate Maps (D-FIRM)","Digital Flood Insurance Rate Maps (D-FIRM)","Digital Flood Insurance Rate Maps (DFIRM)","Digital Flood Insurance Rate Maps (DFIRM)","Elevation ","DHS-FEMA","Scott McAfee","scott.mcaffee@dhs.gov",{"$f":"VLOOKUP(B116,'[4]LOC FINAL with new Themes'!A:M,7,0)","v":0},{"$f":"VLOOKUP(B116,'[4]LOC FINAL with new Themes'!A:M,8,0)","v":0},{"$f":"VLOOKUP(B116,'[4]LOC FINAL with new Themes'!A:M,9,0)","v":0},{"$f":"VLOOKUP(B116,'[4]LOC FINAL with new Themes'!A:M,10,0)","v":0},{"$f":"VLOOKUP(B116,'[4]LOC FINAL with new Themes'!A:M,11,0)","v":0},{"$f":"VLOOKUP(B116,'[4]LOC FINAL with new Themes'!A:M,12,0)","v":0},{"$f":"VLOOKUP(B116,'[4]LOC FINAL with new Themes'!A:M,13,0)","v":0}]
[null,null,"Elevation Bathymetric - Ocean, Coastal, and Great Lakes Bathymetry ","Elevation Bathymetric - Ocean, Coastal, and Great Lakes Bathymetry ","Elevation ","DOC-NOAA"]
[null,null,"National Elevation Dataset  - National Map","National Elevation Dataset  - National Map","Elevation ","DOI-USGS"]
["National Flood Hazard Layer (NFHL)","National Flood Hazard Layer (NFHL)","National Flood Hazard Layer (NFHL)","National Flood Hazard Layer (NFHL)","Elevation ","DHS-FEMA","Scott McAfee","scott.mcaffee@dhs.gov",{"$f":"VLOOKUP(B119,'[4]LOC FINAL with new Themes'!A:M,7,0)","v":0},{"$f":"VLOOKUP(B119,'[4]LOC FINAL with new Themes'!A:M,8,0)","v":0},{"$f":"VLOOKUP(B119,'[4]LOC FINAL with new Themes'!A:M,9,0)","v":0},{"$f":"VLOOKUP(B119,'[4]LOC FINAL with new Themes'!A:M,10,0)","v":0},{"$f":"VLOOKUP(B119,'[4]LOC FINAL with new Themes'!A:M,11,0)","v":0},{"$f":"VLOOKUP(B119,'[4]LOC FINAL with new Themes'!A:M,12,0)","v":0},{"$f":"VLOOKUP(B119,'[4]LOC FINAL with new Themes'!A:M,13,0)","v":0}]
[{"$f":"SUBTOTAL(3,A108:A119)","v":10},{"$f":"SUBTOTAL(3,B108:B119)","v":10},{"$f":"SUBTOTAL(3,C108:C119)","v":4},{"$f":"SUBTOTAL(3,D108:D119)","v":12},"Elevation Count"]
[null,null,"Airborne Gravity",{"$f":"IF(C121=0,B121,C121)","v":"Airborne Gravity"},"Geodetic Control ","DOC-NOAA","Dr. Theresa Diehl","theresa.diehl@noaa.gov"]
[null,null,"Continuously Operating Reference Stations (CORS)","Continuously Operating Reference Stations (CORS)","Geodetic Control ","DOC-NOAA","Dr. Giovanni Sella","giovanni.sella@noaa.gov"]
[null,null,"Geoid Models","Geoid Models","Geodetic Control ","DOC-NOAA","Dr. Dan Roman","dan.roman@noaa.gov"]
["National Geologic Data Base","National Geologic Data Base","National Geodetic Survey (NGS) Datasheets","National Geodetic Survey (NGS) Datasheets","Geodetic Control ","DOI-USGS","Jim Tomlin","jim.tomlin@noaa.gov",{"$f":"VLOOKUP(B124,'[4]LOC FINAL with new Themes'!A:M,7,0)","v":0},{"$f":"VLOOKUP(B124,'[4]LOC FINAL with new Themes'!A:M,8,0)","v":0},{"$f":"VLOOKUP(B124,'[4]LOC FINAL with new Themes'!A:M,9,0)","v":0},{"$f":"VLOOKUP(B124,'[4]LOC FINAL with new Themes'!A:M,10,0)","v":0},{"$f":"VLOOKUP(B124,'[4]LOC FINAL with new Themes'!A:M,11,0)","v":0},{"$f":"VLOOKUP(B124,'[4]LOC FINAL with new Themes'!A:M,12,0)","v":0},{"$f":"VLOOKUP(B124,'[4]LOC FINAL with new Themes'!A:M,13,0)","v":0}]
[null,null,"Precise Global Navigation Satellite System (GNSS) Orbits",{"$f":"IF(C125=0,B234,C125)","v":"Precise Global Navigation Satellite System (GNSS) Orbits"},"Geodetic Control ","DOC-NOAA","Dr. Jake Griffiths","jake.griffiths@noaa.gov"]
[null,null,"Terrestrial Gravity",{"$f":"IF(C126=0,B126,C126)","v":"Terrestrial Gravity"},"Geodetic Control ","DOC-NOAA"]
[{"$f":"SUBTOTAL(3,A121:A126)","v":1},{"$f":"SUBTOTAL(3,B121:B126)","v":1},{"$f":"SUBTOTAL(3,C121:C126)","v":6},{"$f":"SUBTOTAL(3,D121:D126)","v":6},"Geodetic Control  Count"]
[null,null,"Coal assessment and mapping",{"$f":"IF(C128=0,B128,C128)","v":"Coal assessment and mapping"},"Geology","DOI-USGS"]
["Coastline Data","Coastline Data","Coastline Data","Coastline Data","Geology","DOI-MMS","James Fulmer","james.s.fulmer@mms.gov",{"$f":"VLOOKUP(B129,'[4]LOC FINAL with new Themes'!A:M,7,0)","v":"undeliverable email- neeed to identify new contact"},{"$f":"VLOOKUP(B129,'[4]LOC FINAL with new Themes'!A:M,8,0)","v":0},{"$f":"VLOOKUP(B129,'[4]LOC FINAL with new Themes'!A:M,9,0)","v":0},{"$f":"VLOOKUP(B129,'[4]LOC FINAL with new Themes'!A:M,10,0)","v":0},{"$f":"VLOOKUP(B129,'[4]LOC FINAL with new Themes'!A:M,11,0)","v":0},{"$f":"VLOOKUP(B129,'[4]LOC FINAL with new Themes'!A:M,12,0)","v":0},{"$f":"VLOOKUP(B129,'[4]LOC FINAL with new Themes'!A:M,13,0)","v":0}]
[null,null,"Earthquake monitoring, research, and mapping","Earthquake monitoring, research, and mapping","Geology","DOI-USGS"]
[null,null,"Geochemistry","Geochemistry","Geology","DOI-USGS"]
[null,null,"Geochronology","Geochronology","Geology","DOI-USGS"]
[null,null,"Geologic mapping","Geologic mapping","Geology","DOI-USGS"]
[null,null,"Geomagnetism","Geomagnetism","Geology","DOI-USGS"]
[null,null,"Geophysics","Geophysics","Geology","DOI-USGS"]
[null,null,"Landslide monitoring, research, and mapping","Landslide monitoring, research, and mapping","Geology","DOI-USGS"]
[null,null,"Marine geology","Marine geology","Geology","DOI-USGS"]
[null,null,"Metallic mineral assessment and mapping","Metallic mineral assessment and mapping","Geology","DOI-USGS"]
[null,null,"MMS Baseline","MMS Baseline","Geology","DOI-MMS"]
[null,null,"Non-metallic mineral assessment and mapping, onshore",{"$f":"IF(C140=0,B139,C140)","v":"Non-metallic mineral assessment and mapping, onshore"},"Geology","DOI-USGS"]
["OCS BLOCK LEASE DATA (OCS)","OCS BLOCK LEASE DATA ","OCS Active Leases",{"$f":"IF(C141=0,B141,C141)","v":"OCS Active Leases"},"Geology","DOI-MMS","James Fulmer","james.s.fulmer@mms.gov",{"$f":"VLOOKUP(B141,'[4]LOC FINAL with new Themes'!A:M,7,0)","v":"undeliverable email- neeed to identify new contact"},{"$f":"VLOOKUP(B141,'[4]LOC FINAL with new Themes'!A:M,8,0)","v":0},{"$f":"VLOOKUP(B141,'[4]LOC FINAL with new Themes'!A:M,9,0)","v":0},{"$f":"VLOOKUP(B141,'[4]LOC FINAL with new Themes'!A:M,10,0)","v":0},{"$f":"VLOOKUP(B141,'[4]LOC FINAL with new Themes'!A:M,11,0)","v":0},{"$f":"VLOOKUP(B141,'[4]LOC FINAL with new Themes'!A:M,12,0)","v":0},{"$f":"VLOOKUP(B141,'[4]LOC FINAL with new Themes'!A:M,13,0)","v":0}]
[null,null,"Oil and gas assessment and mapping, onshore","Oil and gas assessment and mapping, onshore","Geology","DOI-USGS"]
[null,null,"Paleontology","Paleontology","Geology","DOI-USGS"]
[null,null,"Sand and Gravel","Sand and Gravel","Geology","DOI-MMS"]
[null,null,"Volcano monitoring, research, and mapping","Volcano monitoring, research, and mapping","Geology","DOI-USGS"]
[null,null,"Wells","Wells","Geology","DOI-MMS"]
[{"$f":"SUBTOTAL(3,A128:A146)","v":2},{"$f":"SUBTOTAL(3,B128:B146)","v":2},{"$f":"SUBTOTAL(3,C128:C146)","v":19},{"$f":"SUBTOTAL(3,D128:D146)","v":19},"Geology Count"]
["County Boundaries","County Boundaries",null,{"$f":"IF(C148=0,B148,C148)","v":"County Boundaries"},"Governmental Units",null,null,null,{"$f":"VLOOKUP(B148,'[4]LOC FINAL with new Themes'!A:M,7,0)","v":0},{"$f":"VLOOKUP(B148,'[4]LOC FINAL with new Themes'!A:M,8,0)","v":0},{"$f":"VLOOKUP(B148,'[4]LOC FINAL with new Themes'!A:M,9,0)","v":0},{"$f":"VLOOKUP(B148,'[4]LOC FINAL with new Themes'!A:M,10,0)","v":0},{"$f":"VLOOKUP(B148,'[4]LOC FINAL with new Themes'!A:M,11,0)","v":0},{"$f":"VLOOKUP(B148,'[4]LOC FINAL with new Themes'!A:M,12,0)","v":0},{"$f":"VLOOKUP(B148,'[4]LOC FINAL with new Themes'!A:M,13,0)","v":0}]
[null,"Place and MCD Boundaries",null,"Place and MCD Boundaries","Governmental Units",null,null,null,{"$f":"VLOOKUP(B149,'[4]LOC FINAL with new Themes'!A:M,7,0)","v":0},{"$f":"VLOOKUP(B149,'[4]LOC FINAL with new Themes'!A:M,8,0)","v":0},{"$f":"VLOOKUP(B149,'[4]LOC FINAL with new Themes'!A:M,9,0)","v":0},{"$f":"VLOOKUP(B149,'[4]LOC FINAL with new Themes'!A:M,10,0)","v":0},{"$f":"VLOOKUP(B149,'[4]LOC FINAL with new Themes'!A:M,11,0)","v":0},{"$f":"VLOOKUP(B149,'[4]LOC FINAL with new Themes'!A:M,12,0)","v":0},{"$f":"VLOOKUP(B149,'[4]LOC FINAL with new Themes'!A:M,13,0)","v":0}]
[null,"Alaska Native Regional Corporation (2010 Census)","Alaska Native Regional Corporation (2010 Census)","Alaska Native Regional Corporation (2010 Census)","Governmental Units ","DOC-Census","Jennifer Holland","Jennifer.L.Holland@census.gov",{"$f":"VLOOKUP(B150,'[4]LOC FINAL with new Themes'!A:M,7,0)","v":0},{"$f":"VLOOKUP(B150,'[4]LOC FINAL with new Themes'!A:M,8,0)","v":0},{"$f":"VLOOKUP(B150,'[4]LOC FINAL with new Themes'!A:M,9,0)","v":0},{"$f":"VLOOKUP(B150,'[4]LOC FINAL with new Themes'!A:M,10,0)","v":0},{"$f":"VLOOKUP(B150,'[4]LOC FINAL with new Themes'!A:M,11,0)","v":0},{"$f":"VLOOKUP(B150,'[4]LOC FINAL with new Themes'!A:M,12,0)","v":0},{"$f":"VLOOKUP(B150,'[4]LOC FINAL with new Themes'!A:M,13,0)","v":0}]
[null,"Alaska Native Regional Corporation (Census 2000)","Alaska Native Regional Corporation (Census 2000)","Alaska Native Regional Corporation (Census 2000)","Governmental Units ","DOC-Census","Jennifer Holland","Jennifer.L.Holland@census.gov",{"$f":"VLOOKUP(B151,'[4]LOC FINAL with new Themes'!A:M,7,0)","v":0},{"$f":"VLOOKUP(B151,'[4]LOC FINAL with new Themes'!A:M,8,0)","v":0},{"$f":"VLOOKUP(B151,'[4]LOC FINAL with new Themes'!A:M,9,0)","v":0},{"$f":"VLOOKUP(B151,'[4]LOC FINAL with new Themes'!A:M,10,0)","v":0},{"$f":"VLOOKUP(B151,'[4]LOC FINAL with new Themes'!A:M,11,0)","v":0},{"$f":"VLOOKUP(B151,'[4]LOC FINAL with new Themes'!A:M,12,0)","v":0},{"$f":"VLOOKUP(B151,'[4]LOC FINAL with new Themes'!A:M,13,0)","v":0}]
[null,"American Indian Tribal Subdivision (2010 Census)","American Indian Tribal Subdivision (2010 Census)","American Indian Tribal Subdivision (2010 Census)","Governmental Units ","DOC-Census","Jennifer Holland","Jennifer.L.Holland@census.gov",{"$f":"VLOOKUP(B152,'[4]LOC FINAL with new Themes'!A:M,7,0)","v":0},{"$f":"VLOOKUP(B152,'[4]LOC FINAL with new Themes'!A:M,8,0)","v":0},{"$f":"VLOOKUP(B152,'[4]LOC FINAL with new Themes'!A:M,9,0)","v":0},{"$f":"VLOOKUP(B152,'[4]LOC FINAL with new Themes'!A:M,10,0)","v":0},{"$f":"VLOOKUP(B152,'[4]LOC FINAL with new Themes'!A:M,11,0)","v":0},{"$f":"VLOOKUP(B152,'[4]LOC FINAL with new Themes'!A:M,12,0)","v":0},{"$f":"VLOOKUP(B152,'[4]LOC FINAL with new Themes'!A:M,13,0)","v":0}]
[null,"American Indian Tribal Subdivision (Census 2000)","American Indian Tribal Subdivision (Census 2000)","American Indian Tribal Subdivision (Census 2000)","Governmental Units ","DOC-Census","Jennifer Holland","Jennifer.L.Holland@census.gov",{"$f":"VLOOKUP(B153,'[4]LOC FINAL with new Themes'!A:M,7,0)","v":0},{"$f":"VLOOKUP(B153,'[4]LOC FINAL with new Themes'!A:M,8,0)","v":0},{"$f":"VLOOKUP(B153,'[4]LOC FINAL with new Themes'!A:M,9,0)","v":0},{"$f":"VLOOKUP(B153,'[4]LOC FINAL with new Themes'!A:M,10,0)","v":0},{"$f":"VLOOKUP(B153,'[4]LOC FINAL with new Themes'!A:M,11,0)","v":0},{"$f":"VLOOKUP(B153,'[4]LOC FINAL with new Themes'!A:M,12,0)","v":0},{"$f":"VLOOKUP(B153,'[4]LOC FINAL with new Themes'!A:M,13,0)","v":0}]
[null,"American Indian/Alaska Native/Native Hawaiian Area (2000 Census)","American Indian/Alaska Native/Native Hawaiian Area (2000 Census)","American Indian/Alaska Native/Native Hawaiian Area (2000 Census)","Governmental Units ","DOC-Census","Jennifer Holland","Jennifer.L.Holland@census.gov",{"$f":"VLOOKUP(B154,'[4]LOC FINAL with new Themes'!A:M,7,0)","v":0},{"$f":"VLOOKUP(B154,'[4]LOC FINAL with new Themes'!A:M,8,0)","v":0},{"$f":"VLOOKUP(B154,'[4]LOC FINAL with new Themes'!A:M,9,0)","v":0},{"$f":"VLOOKUP(B154,'[4]LOC FINAL with new Themes'!A:M,10,0)","v":0},{"$f":"VLOOKUP(B154,'[4]LOC FINAL with new Themes'!A:M,11,0)","v":0},{"$f":"VLOOKUP(B154,'[4]LOC FINAL with new Themes'!A:M,12,0)","v":0},{"$f":"VLOOKUP(B154,'[4]LOC FINAL with new Themes'!A:M,13,0)","v":0}]
[null,"American Indian/Alaska Native/Native Hawaiian Area (2010 Census)","American Indian/Alaska Native/Native Hawaiian Area (2010 Census)","American Indian/Alaska Native/Native Hawaiian Area (2010 Census)","Governmental Units ","DOC-Census","Jennifer Holland","Jennifer.L.Holland@census.gov",{"$f":"VLOOKUP(B155,'[4]LOC FINAL with new Themes'!A:M,7,0)","v":0},{"$f":"VLOOKUP(B155,'[4]LOC FINAL with new Themes'!A:M,8,0)","v":0},{"$f":"VLOOKUP(B155,'[4]LOC FINAL with new Themes'!A:M,9,0)","v":0},{"$f":"VLOOKUP(B155,'[4]LOC FINAL with new Themes'!A:M,10,0)","v":0},{"$f":"VLOOKUP(B155,'[4]LOC FINAL with new Themes'!A:M,11,0)","v":0},{"$f":"VLOOKUP(B155,'[4]LOC FINAL with new Themes'!A:M,12,0)","v":0},{"$f":"VLOOKUP(B155,'[4]LOC FINAL with new Themes'!A:M,13,0)","v":0}]
[null,"Combined New England City and Town Area (2010 Census)","Combined New England City and Town Area (2010 Census)","Combined New England City and Town Area (2010 Census)","Governmental Units ","DOC-Census","Jennifer Holland","Jennifer.L.Holland@census.gov",{"$f":"VLOOKUP(B156,'[4]LOC FINAL with new Themes'!A:M,7,0)","v":0},{"$f":"VLOOKUP(B156,'[4]LOC FINAL with new Themes'!A:M,8,0)","v":0},{"$f":"VLOOKUP(B156,'[4]LOC FINAL with new Themes'!A:M,9,0)","v":0},{"$f":"VLOOKUP(B156,'[4]LOC FINAL with new Themes'!A:M,10,0)","v":0},{"$f":"VLOOKUP(B156,'[4]LOC FINAL with new Themes'!A:M,11,0)","v":0},{"$f":"VLOOKUP(B156,'[4]LOC FINAL with new Themes'!A:M,12,0)","v":0},{"$f":"VLOOKUP(B156,'[4]LOC FINAL with new Themes'!A:M,13,0)","v":0}]
["Congressional District Boundaries","Congressional District (108th)","Congressional District (108th)","Congressional District (108th)","Governmental Units ","DOC-Census","Jennifer Holland","Jennifer.L.Holland@census.gov",{"$f":"VLOOKUP(B157,'[4]LOC FINAL with new Themes'!A:M,7,0)","v":0},{"$f":"VLOOKUP(B157,'[4]LOC FINAL with new Themes'!A:M,8,0)","v":0},{"$f":"VLOOKUP(B157,'[4]LOC FINAL with new Themes'!A:M,9,0)","v":0},{"$f":"VLOOKUP(B157,'[4]LOC FINAL with new Themes'!A:M,10,0)","v":0},{"$f":"VLOOKUP(B157,'[4]LOC FINAL with new Themes'!A:M,11,0)","v":0},{"$f":"VLOOKUP(B157,'[4]LOC FINAL with new Themes'!A:M,12,0)","v":0},{"$f":"VLOOKUP(B157,'[4]LOC FINAL with new Themes'!A:M,13,0)","v":0}]
[null,"Congressional District (111th)","Congressional District (111th)","Congressional District (111th)","Governmental Units ","DOC-Census","Jennifer Holland","Jennifer.L.Holland@census.gov",{"$f":"VLOOKUP(B158,'[4]LOC FINAL with new Themes'!A:M,7,0)","v":0},{"$f":"VLOOKUP(B158,'[4]LOC FINAL with new Themes'!A:M,8,0)","v":0},{"$f":"VLOOKUP(B158,'[4]LOC FINAL with new Themes'!A:M,9,0)","v":0},{"$f":"VLOOKUP(B158,'[4]LOC FINAL with new Themes'!A:M,10,0)","v":0},{"$f":"VLOOKUP(B158,'[4]LOC FINAL with new Themes'!A:M,11,0)","v":0},{"$f":"VLOOKUP(B158,'[4]LOC FINAL with new Themes'!A:M,12,0)","v":0},{"$f":"VLOOKUP(B158,'[4]LOC FINAL with new Themes'!A:M,13,0)","v":0}]
[null,"Consolidated City (2010 Census)","Consolidated City (2010 Census)","Consolidated City (2010 Census)","Governmental Units ","DOC-Census","Jennifer Holland","Jennifer.L.Holland@census.gov",{"$f":"VLOOKUP(B159,'[4]LOC FINAL with new Themes'!A:M,7,0)","v":0},{"$f":"VLOOKUP(B159,'[4]LOC FINAL with new Themes'!A:M,8,0)","v":0},{"$f":"VLOOKUP(B159,'[4]LOC FINAL with new Themes'!A:M,9,0)","v":0},{"$f":"VLOOKUP(B159,'[4]LOC FINAL with new Themes'!A:M,10,0)","v":0},{"$f":"VLOOKUP(B159,'[4]LOC FINAL with new Themes'!A:M,11,0)","v":0},{"$f":"VLOOKUP(B159,'[4]LOC FINAL with new Themes'!A:M,12,0)","v":0},{"$f":"VLOOKUP(B159,'[4]LOC FINAL with new Themes'!A:M,13,0)","v":0}]
[null,"Consolidated City (Census 2000)","Consolidated City (Census 2000)","Consolidated City (Census 2000)","Governmental Units ","DOC-Census","Jennifer Holland","Jennifer.L.Holland@census.gov",{"$f":"VLOOKUP(B160,'[4]LOC FINAL with new Themes'!A:M,7,0)","v":0},{"$f":"VLOOKUP(B160,'[4]LOC FINAL with new Themes'!A:M,8,0)","v":0},{"$f":"VLOOKUP(B160,'[4]LOC FINAL with new Themes'!A:M,9,0)","v":0},{"$f":"VLOOKUP(B160,'[4]LOC FINAL with new Themes'!A:M,10,0)","v":0},{"$f":"VLOOKUP(B160,'[4]LOC FINAL with new Themes'!A:M,11,0)","v":0},{"$f":"VLOOKUP(B160,'[4]LOC FINAL with new Themes'!A:M,12,0)","v":0},{"$f":"VLOOKUP(B160,'[4]LOC FINAL with new Themes'!A:M,13,0)","v":0}]
[null,"County and Equivalent (2010 Census)","County and Equivalent (2010 Census)","County and Equivalent (2010 Census)","Governmental Units ","DOC-Census","Jennifer Holland","Jennifer.L.Holland@census.gov",{"$f":"VLOOKUP(B161,'[4]LOC FINAL with new Themes'!A:M,7,0)","v":0},{"$f":"VLOOKUP(B161,'[4]LOC FINAL with new Themes'!A:M,8,0)","v":0},{"$f":"VLOOKUP(B161,'[4]LOC FINAL with new Themes'!A:M,9,0)","v":0},{"$f":"VLOOKUP(B161,'[4]LOC FINAL with new Themes'!A:M,10,0)","v":0},{"$f":"VLOOKUP(B161,'[4]LOC FINAL with new Themes'!A:M,11,0)","v":0},{"$f":"VLOOKUP(B161,'[4]LOC FINAL with new Themes'!A:M,12,0)","v":0},{"$f":"VLOOKUP(B161,'[4]LOC FINAL with new Themes'!A:M,13,0)","v":0}]
[null,"County and Equivalent (Census 2000)","County and Equivalent (Census 2000)","County and Equivalent (Census 2000)","Governmental Units ","DOC-Census","Jennifer Holland","Jennifer.L.Holland@census.gov",{"$f":"VLOOKUP(B162,'[4]LOC FINAL with new Themes'!A:M,7,0)","v":0},{"$f":"VLOOKUP(B162,'[4]LOC FINAL with new Themes'!A:M,8,0)","v":0},{"$f":"VLOOKUP(B162,'[4]LOC FINAL with new Themes'!A:M,9,0)","v":0},{"$f":"VLOOKUP(B162,'[4]LOC FINAL with new Themes'!A:M,10,0)","v":0},{"$f":"VLOOKUP(B162,'[4]LOC FINAL with new Themes'!A:M,11,0)","v":0},{"$f":"VLOOKUP(B162,'[4]LOC FINAL with new Themes'!A:M,12,0)","v":0},{"$f":"VLOOKUP(B162,'[4]LOC FINAL with new Themes'!A:M,13,0)","v":0}]
[null,"County Subdivision (2010 Census)","County Subdivision (2010 Census)","County Subdivision (2010 Census)","Governmental Units ","DOC-Census","Jennifer Holland","Jennifer.L.Holland@census.gov",{"$f":"VLOOKUP(B163,'[4]LOC FINAL with new Themes'!A:M,7,0)","v":0},{"$f":"VLOOKUP(B163,'[4]LOC FINAL with new Themes'!A:M,8,0)","v":0},{"$f":"VLOOKUP(B163,'[4]LOC FINAL with new Themes'!A:M,9,0)","v":0},{"$f":"VLOOKUP(B163,'[4]LOC FINAL with new Themes'!A:M,10,0)","v":0},{"$f":"VLOOKUP(B163,'[4]LOC FINAL with new Themes'!A:M,11,0)","v":0},{"$f":"VLOOKUP(B163,'[4]LOC FINAL with new Themes'!A:M,12,0)","v":0},{"$f":"VLOOKUP(B163,'[4]LOC FINAL with new Themes'!A:M,13,0)","v":0}]
[null,"County Subdivision (Census 2000)","County Subdivision (Census 2000)","County Subdivision (Census 2000)","Governmental Units ","DOC-Census","Jennifer Holland","Jennifer.L.Holland@census.gov",{"$f":"VLOOKUP(B164,'[4]LOC FINAL with new Themes'!A:M,7,0)","v":0},{"$f":"VLOOKUP(B164,'[4]LOC FINAL with new Themes'!A:M,8,0)","v":0},{"$f":"VLOOKUP(B164,'[4]LOC FINAL with new Themes'!A:M,9,0)","v":0},{"$f":"VLOOKUP(B164,'[4]LOC FINAL with new Themes'!A:M,10,0)","v":0},{"$f":"VLOOKUP(B164,'[4]LOC FINAL with new Themes'!A:M,11,0)","v":0},{"$f":"VLOOKUP(B164,'[4]LOC FINAL with new Themes'!A:M,12,0)","v":0},{"$f":"VLOOKUP(B164,'[4]LOC FINAL with new Themes'!A:M,13,0)","v":0}]
["Estuarine and Marine Reserves","Estuarine and Marine Reserves",null,"Estuarine and Marine Reserves","Governmental Units ","DOC-NOAA","Heather Sagar","Heather.Sagar@noaa.gov",{"$f":"VLOOKUP(B165,'[4]LOC FINAL with new Themes'!A:M,7,0)","v":0},{"$f":"VLOOKUP(B165,'[4]LOC FINAL with new Themes'!A:M,8,0)","v":0},{"$f":"VLOOKUP(B165,'[4]LOC FINAL with new Themes'!A:M,9,0)","v":0},{"$f":"VLOOKUP(B165,'[4]LOC FINAL with new Themes'!A:M,10,0)","v":0},{"$f":"VLOOKUP(B165,'[4]LOC FINAL with new Themes'!A:M,11,0)","v":0},{"$f":"VLOOKUP(B165,'[4]LOC FINAL with new Themes'!A:M,12,0)","v":0},{"$f":"VLOOKUP(B165,'[4]LOC FINAL with new Themes'!A:M,13,0)","v":0}]
["Fisheries Closure and Habitat Areas","Fisheries Closure and Habitat Areas",null,"Fisheries Closure and Habitat Areas","Governmental Units ","DOC-NOAA","Heather Sagar","Heather.Sagar@noaa.gov",{"$f":"VLOOKUP(B166,'[4]LOC FINAL with new Themes'!A:M,7,0)","v":0},{"$f":"VLOOKUP(B166,'[4]LOC FINAL with new Themes'!A:M,8,0)","v":0},{"$f":"VLOOKUP(B166,'[4]LOC FINAL with new Themes'!A:M,9,0)","v":0},{"$f":"VLOOKUP(B166,'[4]LOC FINAL with new Themes'!A:M,10,0)","v":0},{"$f":"VLOOKUP(B166,'[4]LOC FINAL with new Themes'!A:M,11,0)","v":0},{"$f":"VLOOKUP(B166,'[4]LOC FINAL with new Themes'!A:M,12,0)","v":0},{"$f":"VLOOKUP(B166,'[4]LOC FINAL with new Themes'!A:M,13,0)","v":0}]
[null,"Metropolitan Division (2010 Census)","Metropolitan Division (2010 Census)","Metropolitan Division (2010 Census)","Governmental Units ","DOC-Census","Jennifer Holland","Jennifer.L.Holland@census.gov",{"$f":"VLOOKUP(B167,'[4]LOC FINAL with new Themes'!A:M,7,0)","v":0},{"$f":"VLOOKUP(B167,'[4]LOC FINAL with new Themes'!A:M,8,0)","v":0},{"$f":"VLOOKUP(B167,'[4]LOC FINAL with new Themes'!A:M,9,0)","v":0},{"$f":"VLOOKUP(B167,'[4]LOC FINAL with new Themes'!A:M,10,0)","v":0},{"$f":"VLOOKUP(B167,'[4]LOC FINAL with new Themes'!A:M,11,0)","v":0},{"$f":"VLOOKUP(B167,'[4]LOC FINAL with new Themes'!A:M,12,0)","v":0},{"$f":"VLOOKUP(B167,'[4]LOC FINAL with new Themes'!A:M,13,0)","v":0}]
[null,"Metropolitan Division (2010 Census)","Metropolitan Division (2010 Census)","Metropolitan Division (2010 Census)","Governmental Units ","DOC-Census","Jennifer Holland","Jennifer.L.Holland@census.gov",{"$f":"VLOOKUP(B168,'[4]LOC FINAL with new Themes'!A:M,7,0)","v":0},{"$f":"VLOOKUP(B168,'[4]LOC FINAL with new Themes'!A:M,8,0)","v":0},{"$f":"VLOOKUP(B168,'[4]LOC FINAL with new Themes'!A:M,9,0)","v":0},{"$f":"VLOOKUP(B168,'[4]LOC FINAL with new Themes'!A:M,10,0)","v":0},{"$f":"VLOOKUP(B168,'[4]LOC FINAL with new Themes'!A:M,11,0)","v":0},{"$f":"VLOOKUP(B168,'[4]LOC FINAL with new Themes'!A:M,12,0)","v":0},{"$f":"VLOOKUP(B168,'[4]LOC FINAL with new Themes'!A:M,13,0)","v":0}]
[null,"New England City and Town Area (2010 Census)","New England City and Town Area (2010 Census)","New England City and Town Area (2010 Census)","Governmental Units ","DOC-Census","Jennifer Holland","Jennifer.L.Holland@census.gov",{"$f":"VLOOKUP(B169,'[4]LOC FINAL with new Themes'!A:M,7,0)","v":0},{"$f":"VLOOKUP(B169,'[4]LOC FINAL with new Themes'!A:M,8,0)","v":0},{"$f":"VLOOKUP(B169,'[4]LOC FINAL with new Themes'!A:M,9,0)","v":0},{"$f":"VLOOKUP(B169,'[4]LOC FINAL with new Themes'!A:M,10,0)","v":0},{"$f":"VLOOKUP(B169,'[4]LOC FINAL with new Themes'!A:M,11,0)","v":0},{"$f":"VLOOKUP(B169,'[4]LOC FINAL with new Themes'!A:M,12,0)","v":0},{"$f":"VLOOKUP(B169,'[4]LOC FINAL with new Themes'!A:M,13,0)","v":0}]
[null,"New England City and Town Area Division (2010 Census)","New England City and Town Area Division (2010 Census)","New England City and Town Area Division (2010 Census)","Governmental Units ","DOC-Census","Jennifer Holland","Jennifer.L.Holland@census.gov",{"$f":"VLOOKUP(B170,'[4]LOC FINAL with new Themes'!A:M,7,0)","v":0},{"$f":"VLOOKUP(B170,'[4]LOC FINAL with new Themes'!A:M,8,0)","v":0},{"$f":"VLOOKUP(B170,'[4]LOC FINAL with new Themes'!A:M,9,0)","v":0},{"$f":"VLOOKUP(B170,'[4]LOC FINAL with new Themes'!A:M,10,0)","v":0},{"$f":"VLOOKUP(B170,'[4]LOC FINAL with new Themes'!A:M,11,0)","v":0},{"$f":"VLOOKUP(B170,'[4]LOC FINAL with new Themes'!A:M,12,0)","v":0},{"$f":"VLOOKUP(B170,'[4]LOC FINAL with new Themes'!A:M,13,0)","v":0}]
["Place and MCD Boundaries","Place (2010 Census)","Place (2010 Census)","Place (2010 Census)","Governmental Units ","DOC-Census","Jennifer Holland","Jennifer.L.Holland@census.gov",{"$f":"VLOOKUP(B171,'[4]LOC FINAL with new Themes'!A:M,7,0)","v":0},{"$f":"VLOOKUP(B171,'[4]LOC FINAL with new Themes'!A:M,8,0)","v":0},{"$f":"VLOOKUP(B171,'[4]LOC FINAL with new Themes'!A:M,9,0)","v":0},{"$f":"VLOOKUP(B171,'[4]LOC FINAL with new Themes'!A:M,10,0)","v":0},{"$f":"VLOOKUP(B171,'[4]LOC FINAL with new Themes'!A:M,11,0)","v":0},{"$f":"VLOOKUP(B171,'[4]LOC FINAL with new Themes'!A:M,12,0)","v":0},{"$f":"VLOOKUP(B171,'[4]LOC FINAL with new Themes'!A:M,13,0)","v":0}]
[null,"Place (Census 2000)","Place (Census 2000)","Place (Census 2000)","Governmental Units ","DOC-Census","Jennifer Holland","Jennifer.L.Holland@census.gov",{"$f":"VLOOKUP(B172,'[4]LOC FINAL with new Themes'!A:M,7,0)","v":0},{"$f":"VLOOKUP(B172,'[4]LOC FINAL with new Themes'!A:M,8,0)","v":0},{"$f":"VLOOKUP(B172,'[4]LOC FINAL with new Themes'!A:M,9,0)","v":0},{"$f":"VLOOKUP(B172,'[4]LOC FINAL with new Themes'!A:M,10,0)","v":0},{"$f":"VLOOKUP(B172,'[4]LOC FINAL with new Themes'!A:M,11,0)","v":0},{"$f":"VLOOKUP(B172,'[4]LOC FINAL with new Themes'!A:M,12,0)","v":0},{"$f":"VLOOKUP(B172,'[4]LOC FINAL with new Themes'!A:M,13,0)","v":0}]
["Sanctuaries","Sanctuaries",null,"Sanctuaries","Governmental Units ","DOC-NOAA","Christine Taylor","Christine.Taylor@noaa.gov",{"$f":"VLOOKUP(B173,'[4]LOC FINAL with new Themes'!A:M,7,0)","v":0},{"$f":"VLOOKUP(B173,'[4]LOC FINAL with new Themes'!A:M,8,0)","v":0},{"$f":"VLOOKUP(B173,'[4]LOC FINAL with new Themes'!A:M,9,0)","v":0},{"$f":"VLOOKUP(B173,'[4]LOC FINAL with new Themes'!A:M,10,0)","v":0},{"$f":"VLOOKUP(B173,'[4]LOC FINAL with new Themes'!A:M,11,0)","v":0},{"$f":"VLOOKUP(B173,'[4]LOC FINAL with new Themes'!A:M,12,0)","v":0},{"$f":"VLOOKUP(B173,'[4]LOC FINAL with new Themes'!A:M,13,0)","v":0}]
["State(+ Territories) Boundaries","State and Equivalent  (2010 Census)","State and Equivalent  (2010 Census)","State and Equivalent  (2010 Census)","Governmental Units ","DOC-Census","Jennifer Holland","Jennifer.L.Holland@census.gov",{"$f":"VLOOKUP(B174,'[4]LOC FINAL with new Themes'!A:M,7,0)","v":0},{"$f":"VLOOKUP(B174,'[4]LOC FINAL with new Themes'!A:M,8,0)","v":0},{"$f":"VLOOKUP(B174,'[4]LOC FINAL with new Themes'!A:M,9,0)","v":0},{"$f":"VLOOKUP(B174,'[4]LOC FINAL with new Themes'!A:M,10,0)","v":0},{"$f":"VLOOKUP(B174,'[4]LOC FINAL with new Themes'!A:M,11,0)","v":0},{"$f":"VLOOKUP(B174,'[4]LOC FINAL with new Themes'!A:M,12,0)","v":0},{"$f":"VLOOKUP(B174,'[4]LOC FINAL with new Themes'!A:M,13,0)","v":0}]
[null,"State and Equivalent  (Census 2000)","State and Equivalent  (Census 2000)","State and Equivalent  (Census 2000)","Governmental Units ","DOC-Census","Jennifer Holland","Jennifer.L.Holland@census.gov",{"$f":"VLOOKUP(B175,'[4]LOC FINAL with new Themes'!A:M,7,0)","v":0},{"$f":"VLOOKUP(B175,'[4]LOC FINAL with new Themes'!A:M,8,0)","v":0},{"$f":"VLOOKUP(B175,'[4]LOC FINAL with new Themes'!A:M,9,0)","v":0},{"$f":"VLOOKUP(B175,'[4]LOC FINAL with new Themes'!A:M,10,0)","v":0},{"$f":"VLOOKUP(B175,'[4]LOC FINAL with new Themes'!A:M,11,0)","v":0},{"$f":"VLOOKUP(B175,'[4]LOC FINAL with new Themes'!A:M,12,0)","v":0},{"$f":"VLOOKUP(B175,'[4]LOC FINAL with new Themes'!A:M,13,0)","v":0}]
[null,"State Legislative District (Lower Chamber) (2010 Census)","State Legislative District (Lower Chamber) (2010 Census)","State Legislative District (Lower Chamber) (2010 Census)","Governmental Units ","DOC-Census","Jennifer Holland","Jennifer.L.Holland@census.gov",{"$f":"VLOOKUP(B176,'[4]LOC FINAL with new Themes'!A:M,7,0)","v":0},{"$f":"VLOOKUP(B176,'[4]LOC FINAL with new Themes'!A:M,8,0)","v":0},{"$f":"VLOOKUP(B176,'[4]LOC FINAL with new Themes'!A:M,9,0)","v":0},{"$f":"VLOOKUP(B176,'[4]LOC FINAL with new Themes'!A:M,10,0)","v":0},{"$f":"VLOOKUP(B176,'[4]LOC FINAL with new Themes'!A:M,11,0)","v":0},{"$f":"VLOOKUP(B176,'[4]LOC FINAL with new Themes'!A:M,12,0)","v":0},{"$f":"VLOOKUP(B176,'[4]LOC FINAL with new Themes'!A:M,13,0)","v":0}]
[null,"State Legislative District (Lower Chamber) (Census 2000)","State Legislative District (Lower Chamber) (Census 2000)","State Legislative District (Lower Chamber) (Census 2000)","Governmental Units ","DOC-Census","Jennifer Holland","Jennifer.L.Holland@census.gov",{"$f":"VLOOKUP(B177,'[4]LOC FINAL with new Themes'!A:M,7,0)","v":0},{"$f":"VLOOKUP(B177,'[4]LOC FINAL with new Themes'!A:M,8,0)","v":0},{"$f":"VLOOKUP(B177,'[4]LOC FINAL with new Themes'!A:M,9,0)","v":0},{"$f":"VLOOKUP(B177,'[4]LOC FINAL with new Themes'!A:M,10,0)","v":0},{"$f":"VLOOKUP(B177,'[4]LOC FINAL with new Themes'!A:M,11,0)","v":0},{"$f":"VLOOKUP(B177,'[4]LOC FINAL with new Themes'!A:M,12,0)","v":0},{"$f":"VLOOKUP(B177,'[4]LOC FINAL with new Themes'!A:M,13,0)","v":0}]
[null,"State Legislative District (Upper Chamber) (2010 Census)","State Legislative District (Upper Chamber) (2010 Census)","State Legislative District (Upper Chamber) (2010 Census)","Governmental Units ","DOC-Census","Jennifer Holland","Jennifer.L.Holland@census.gov",{"$f":"VLOOKUP(B178,'[4]LOC FINAL with new Themes'!A:M,7,0)","v":0},{"$f":"VLOOKUP(B178,'[4]LOC FINAL with new Themes'!A:M,8,0)","v":0},{"$f":"VLOOKUP(B178,'[4]LOC FINAL with new Themes'!A:M,9,0)","v":0},{"$f":"VLOOKUP(B178,'[4]LOC FINAL with new Themes'!A:M,10,0)","v":0},{"$f":"VLOOKUP(B178,'[4]LOC FINAL with new Themes'!A:M,11,0)","v":0},{"$f":"VLOOKUP(B178,'[4]LOC FINAL with new Themes'!A:M,12,0)","v":0},{"$f":"VLOOKUP(B178,'[4]LOC FINAL with new Themes'!A:M,13,0)","v":0}]
[null,"State Legislative District (Upper Chamber) (Census 2000)","State Legislative District (Upper Chamber) (Census 2000)","State Legislative District (Upper Chamber) (Census 2000)","Governmental Units ","DOC-Census","Jennifer Holland","Jennifer.L.Holland@census.gov",{"$f":"VLOOKUP(B179,'[4]LOC FINAL with new Themes'!A:M,7,0)","v":0},{"$f":"VLOOKUP(B179,'[4]LOC FINAL with new Themes'!A:M,8,0)","v":0},{"$f":"VLOOKUP(B179,'[4]LOC FINAL with new Themes'!A:M,9,0)","v":0},{"$f":"VLOOKUP(B179,'[4]LOC FINAL with new Themes'!A:M,10,0)","v":0},{"$f":"VLOOKUP(B179,'[4]LOC FINAL with new Themes'!A:M,11,0)","v":0},{"$f":"VLOOKUP(B179,'[4]LOC FINAL with new Themes'!A:M,12,0)","v":0},{"$f":"VLOOKUP(B179,'[4]LOC FINAL with new Themes'!A:M,13,0)","v":0}]
[null,"Subbarrio (2010 Census)","Subbarrio (2010 Census)","Subbarrio (2010 Census)","Governmental Units ","DOC-Census","Jennifer Holland","Jennifer.L.Holland@census.gov",{"$f":"VLOOKUP(B180,'[4]LOC FINAL with new Themes'!A:M,7,0)","v":0},{"$f":"VLOOKUP(B180,'[4]LOC FINAL with new Themes'!A:M,8,0)","v":0},{"$f":"VLOOKUP(B180,'[4]LOC FINAL with new Themes'!A:M,9,0)","v":0},{"$f":"VLOOKUP(B180,'[4]LOC FINAL with new Themes'!A:M,10,0)","v":0},{"$f":"VLOOKUP(B180,'[4]LOC FINAL with new Themes'!A:M,11,0)","v":0},{"$f":"VLOOKUP(B180,'[4]LOC FINAL with new Themes'!A:M,12,0)","v":0},{"$f":"VLOOKUP(B180,'[4]LOC FINAL with new Themes'!A:M,13,0)","v":0}]
[null,"Subbarrio (Census 2000)","Subbarrio (Census 2000)","Subbarrio (Census 2000)","Governmental Units ","DOC-Census","Jennifer Holland","Jennifer.L.Holland@census.gov",{"$f":"VLOOKUP(B181,'[4]LOC FINAL with new Themes'!A:M,7,0)","v":0},{"$f":"VLOOKUP(B181,'[4]LOC FINAL with new Themes'!A:M,8,0)","v":0},{"$f":"VLOOKUP(B181,'[4]LOC FINAL with new Themes'!A:M,9,0)","v":0},{"$f":"VLOOKUP(B181,'[4]LOC FINAL with new Themes'!A:M,10,0)","v":0},{"$f":"VLOOKUP(B181,'[4]LOC FINAL with new Themes'!A:M,11,0)","v":0},{"$f":"VLOOKUP(B181,'[4]LOC FINAL with new Themes'!A:M,12,0)","v":0},{"$f":"VLOOKUP(B181,'[4]LOC FINAL with new Themes'!A:M,13,0)","v":0}]
[null,"Urban Area (Corrected Census 2000)","Urban Area (Corrected Census 2000)","Urban Area (Corrected Census 2000)","Governmental Units ","DOC-Census","Jennifer Holland","Jennifer.L.Holland@census.gov",{"$f":"VLOOKUP(B182,'[4]LOC FINAL with new Themes'!A:M,7,0)","v":0},{"$f":"VLOOKUP(B182,'[4]LOC FINAL with new Themes'!A:M,8,0)","v":0},{"$f":"VLOOKUP(B182,'[4]LOC FINAL with new Themes'!A:M,9,0)","v":0},{"$f":"VLOOKUP(B182,'[4]LOC FINAL with new Themes'!A:M,10,0)","v":0},{"$f":"VLOOKUP(B182,'[4]LOC FINAL with new Themes'!A:M,11,0)","v":0},{"$f":"VLOOKUP(B182,'[4]LOC FINAL with new Themes'!A:M,12,0)","v":0},{"$f":"VLOOKUP(B182,'[4]LOC FINAL with new Themes'!A:M,13,0)","v":0}]
[{"$f":"SUBTOTAL(3,A148:A182)","v":7},{"$f":"SUBTOTAL(3,B148:B182)","v":35},{"$f":"SUBTOTAL(3,C148:C182)","v":30},{"$f":"SUBTOTAL(3,D148:D182)","v":35},"Governmental Units Count"]
["133 Urban Areas imagery program data","133 Urban Areas imagery program data",null,{"$f":"IF(C184=0,B184,C184)","v":"133 Urban Areas imagery program data"},"Imagery ","DOD-NGA","William Nellist","William.E.Nellist@nga.mil",{"$f":"VLOOKUP(B184,'[4]LOC FINAL with new Themes'!A:M,7,0)","v":0},{"$f":"VLOOKUP(B184,'[4]LOC FINAL with new Themes'!A:M,8,0)","v":0},{"$f":"VLOOKUP(B184,'[4]LOC FINAL with new Themes'!A:M,9,0)","v":0},{"$f":"VLOOKUP(B184,'[4]LOC FINAL with new Themes'!A:M,10,0)","v":0},{"$f":"VLOOKUP(B184,'[4]LOC FINAL with new Themes'!A:M,11,0)","v":0},{"$f":"VLOOKUP(B184,'[4]LOC FINAL with new Themes'!A:M,12,0)","v":0},{"$f":"VLOOKUP(B184,'[4]LOC FINAL with new Themes'!A:M,13,0)","v":0}]
[null,"134 Urban Areas imagery program data",null,"134 Urban Areas imagery program data","Imagery ","DOI-USGS","George Lee","gylee@usgs.gov",{"$f":"VLOOKUP(B185,'[4]LOC FINAL with new Themes'!A:M,7,0)","v":0},{"$f":"VLOOKUP(B185,'[4]LOC FINAL with new Themes'!A:M,8,0)","v":0},{"$f":"VLOOKUP(B185,'[4]LOC FINAL with new Themes'!A:M,9,0)","v":0},{"$f":"VLOOKUP(B185,'[4]LOC FINAL with new Themes'!A:M,10,0)","v":0},{"$f":"VLOOKUP(B185,'[4]LOC FINAL with new Themes'!A:M,11,0)","v":0},{"$f":"VLOOKUP(B185,'[4]LOC FINAL with new Themes'!A:M,12,0)","v":0},{"$f":"VLOOKUP(B185,'[4]LOC FINAL with new Themes'!A:M,13,0)","v":0}]
["ADS40 Hurricane Response 7.5' Quadrangle Mosaics","ADS40 Hurricane Response 7.5' Quadrangle Mosaics",null,"ADS40 Hurricane Response 7.5' Quadrangle Mosaics","Imagery ","DOI-USGS","Jim Mauck","jmauck@usgs.gov",{"$f":"VLOOKUP(B186,'[4]LOC FINAL with new Themes'!A:M,7,0)","v":0},{"$f":"VLOOKUP(B186,'[4]LOC FINAL with new Themes'!A:M,8,0)","v":0},{"$f":"VLOOKUP(B186,'[4]LOC FINAL with new Themes'!A:M,9,0)","v":0},{"$f":"VLOOKUP(B186,'[4]LOC FINAL with new Themes'!A:M,10,0)","v":0},{"$f":"VLOOKUP(B186,'[4]LOC FINAL with new Themes'!A:M,11,0)","v":0},{"$f":"VLOOKUP(B186,'[4]LOC FINAL with new Themes'!A:M,12,0)","v":0},{"$f":"VLOOKUP(B186,'[4]LOC FINAL with new Themes'!A:M,13,0)","v":0}]
["Digital Orthoimage Quarter Quadrangle (DOQQ) Archive","Digital Orthoimage Quarter Quadrangle (DOQQ) Archive",null,"Digital Orthoimage Quarter Quadrangle (DOQQ) Archive","Imagery ","DOI-USGS",null,null,{"$f":"VLOOKUP(B187,'[4]LOC FINAL with new Themes'!A:M,7,0)","v":"DOQQ is static; one data set; this is the POC and data manager. this is the name and maintain three complete with two physically separate on-site and one off-site"},{"$f":"VLOOKUP(B187,'[4]LOC FINAL with new Themes'!A:M,8,0)","v":0},{"$f":"VLOOKUP(B187,'[4]LOC FINAL with new Themes'!A:M,9,0)","v":0},{"$f":"VLOOKUP(B187,'[4]LOC FINAL with new Themes'!A:M,10,0)","v":0},{"$f":"VLOOKUP(B187,'[4]LOC FINAL with new Themes'!A:M,11,0)","v":0},{"$f":"VLOOKUP(B187,'[4]LOC FINAL with new Themes'!A:M,12,0)","v":0},{"$f":"VLOOKUP(B187,'[4]LOC FINAL with new Themes'!A:M,13,0)","v":"S"}]
["Emergency Response Imagery","Emergency Response Imagery","Emergency Response Imagery","Emergency Response Imagery","Imagery ","DOC-NOAA","Mike Aslaksen","mike.Aslaksen@noaa.gov",{"$f":"VLOOKUP(B188,'[4]LOC FINAL with new Themes'!A:M,7,0)","v":"20-Multiple      "},{"$f":"VLOOKUP(B188,'[4]LOC FINAL with new Themes'!A:M,8,0)","v":"No"},{"$f":"VLOOKUP(B188,'[4]LOC FINAL with new Themes'!A:M,9,0)","v":"Yes - email reply from Jon Sellars Jon.Sellars@noaa.gov"},{"$f":"VLOOKUP(B188,'[4]LOC FINAL with new Themes'!A:M,10,0)","v":"- Same for the forest frag."},{"$f":"VLOOKUP(B188,'[4]LOC FINAL with new Themes'!A:M,11,0)","v":"Our data can be accessed through the following links: http://storms.ngs.noaagov/eri_page/index.html Gulf Oil Spill:\nhttp://hdds.usgs.gov/hdds2/pub/data/disaster/201004_Oilspill_GulfOfMexico/data/AERIAL_NOAA\nhttp://hdds.usgs.gov/hdds2/pub/data/disaster/201004_Oilspill_GulfOfMexico/data/AERIAL_NOAA_MOSAIC  Haiti Earthquake:\nhttp://hdds.usgs.gov/hdds2/pub/data/disaster/201001_Earthquake_Haiti/data/AERIAL_NOAA\nhttp://hdds.usgs.gov/hdds2/pub/data/disaster/201001_Earthquake_Haiti/data/AERIAL_NOAA_ORTHO\nMexico Earthquake:\nhttp://hdds.usgs.gov/hdds2/pub/data/disaster/201004_Earthquake_Mexico/data/AERIAL_NOAA_MOSAIC \n\n"},{"$f":"VLOOKUP(B188,'[4]LOC FINAL with new Themes'!A:M,12,0)","v":"Described by storm name, event or location."},{"$f":"VLOOKUP(B188,'[4]LOC FINAL with new Themes'!A:M,13,0)","v":"M "}]
[null,null,"Fire, Detection: AVHRR FIMMA , GOES WF-ABBA","Fire, Detection: AVHRR FIMMA , GOES WF-ABBA","Imagery ","USDA"]
["Landsat geometric/terrain corrected level 1T","Landsat geometric/terrain corrected level 1T","Landsat Terrain Corrected Scenes","Landsat Terrain Corrected Scenes","Imagery ","DOI-USGS","Kristi Kline","kkline@usgs.gov",{"$f":"VLOOKUP(B190,'[4]LOC FINAL with new Themes'!A:M,7,0)","v":"Landsat updates daily; a series of data sets; this is the POC and data manager; this is the name and maintain three complete with two physically separate on-site and one off-site"},{"$f":"VLOOKUP(B190,'[4]LOC FINAL with new Themes'!A:M,8,0)","v":0},{"$f":"VLOOKUP(B190,'[4]LOC FINAL with new Themes'!A:M,9,0)","v":0},{"$f":"VLOOKUP(B190,'[4]LOC FINAL with new Themes'!A:M,10,0)","v":0},{"$f":"VLOOKUP(B190,'[4]LOC FINAL with new Themes'!A:M,11,0)","v":0},{"$f":"VLOOKUP(B190,'[4]LOC FINAL with new Themes'!A:M,12,0)","v":0},{"$f":"VLOOKUP(B190,'[4]LOC FINAL with new Themes'!A:M,13,0)","v":"S"}]
[null,null,"National  Orthoimagery Dataset - National Map","National  Orthoimagery Dataset - National Map","Imagery ","DOI-USGS"]
["National Aerial Photography Program (NAPP) Data Archive","National Aerial Photography Program (NAPP) Data Archive",null,"National Aerial Photography Program (NAPP) Data Archive","Imagery ","DOI-USGS","Wayne Miller","wamiller@usgs.gov",{"$f":"VLOOKUP(B192,'[4]LOC FINAL with new Themes'!A:M,7,0)","v":"NAPP is static; one data set; this is the POC and data manager; this is the name and maintain three complete with two physically separate on-site and one off-site "},{"$f":"VLOOKUP(B192,'[4]LOC FINAL with new Themes'!A:M,8,0)","v":0},{"$f":"VLOOKUP(B192,'[4]LOC FINAL with new Themes'!A:M,9,0)","v":0},{"$f":"VLOOKUP(B192,'[4]LOC FINAL with new Themes'!A:M,10,0)","v":0},{"$f":"VLOOKUP(B192,'[4]LOC FINAL with new Themes'!A:M,11,0)","v":0},{"$f":"VLOOKUP(B192,'[4]LOC FINAL with new Themes'!A:M,12,0)","v":0},{"$f":"VLOOKUP(B192,'[4]LOC FINAL with new Themes'!A:M,13,0)","v":"S"}]
["National Agriculture Imagery Program Data","National Agriculture Imagery Program Data","National Agriculture Imagery Program (NAIP) Archive","National Agriculture Imagery Program (NAIP) Archive","Imagery ","DOI-USGS","Shirley Hall","shirley.hall@wdc.usda.gov",{"$f":"VLOOKUP(B193,'[4]LOC FINAL with new Themes'!A:M,7,0)","v":"Shirley identified Dan Good as new contact 'daniel.good@wdc.usda.gov' - need to follow up with either or both"},{"$f":"VLOOKUP(B193,'[4]LOC FINAL with new Themes'!A:M,8,0)","v":0},{"$f":"VLOOKUP(B193,'[4]LOC FINAL with new Themes'!A:M,9,0)","v":0},{"$f":"VLOOKUP(B193,'[4]LOC FINAL with new Themes'!A:M,10,0)","v":0},{"$f":"VLOOKUP(B193,'[4]LOC FINAL with new Themes'!A:M,11,0)","v":0},{"$f":"VLOOKUP(B193,'[4]LOC FINAL with new Themes'!A:M,12,0)","v":0},{"$f":"VLOOKUP(B193,'[4]LOC FINAL with new Themes'!A:M,13,0)","v":0}]
["National Map Orthoimagery Database (TNM Seamless Server) ","National Map Orthoimagery Database (TNM Seamless Server) ",null,"National Map Orthoimagery Database (TNM Seamless Server) ","Imagery ","DOI-USGS","George Lee","gylee@usgs.gov",{"$f":"VLOOKUP(B194,'[4]LOC FINAL with new Themes'!A:M,7,0)","v":0},{"$f":"VLOOKUP(B194,'[4]LOC FINAL with new Themes'!A:M,8,0)","v":0},{"$f":"VLOOKUP(B194,'[4]LOC FINAL with new Themes'!A:M,9,0)","v":0},{"$f":"VLOOKUP(B194,'[4]LOC FINAL with new Themes'!A:M,10,0)","v":0},{"$f":"VLOOKUP(B194,'[4]LOC FINAL with new Themes'!A:M,11,0)","v":0},{"$f":"VLOOKUP(B194,'[4]LOC FINAL with new Themes'!A:M,12,0)","v":0},{"$f":"VLOOKUP(B194,'[4]LOC FINAL with new Themes'!A:M,13,0)","v":0}]
["National Resource Inventory Imagery","National Resource Inventory Imagery",null,"National Resource Inventory Imagery","Imagery ","USDA-WDC","Jerry Harlow","jerry.harlow@wdc.usda.gov",{"$f":"VLOOKUP(B195,'[4]LOC FINAL with new Themes'!A:M,7,0)","v":"Shirley identified Dan Good as new contact 'daniel.good@wdc.usda.gov' - need to follow up with either or both"},{"$f":"VLOOKUP(B195,'[4]LOC FINAL with new Themes'!A:M,8,0)","v":0},{"$f":"VLOOKUP(B195,'[4]LOC FINAL with new Themes'!A:M,9,0)","v":0},{"$f":"VLOOKUP(B195,'[4]LOC FINAL with new Themes'!A:M,10,0)","v":0},{"$f":"VLOOKUP(B195,'[4]LOC FINAL with new Themes'!A:M,11,0)","v":0},{"$f":"VLOOKUP(B195,'[4]LOC FINAL with new Themes'!A:M,12,0)","v":0},{"$f":"VLOOKUP(B195,'[4]LOC FINAL with new Themes'!A:M,13,0)","v":0}]
[null,null,"Satellite Imagery Archive","Satellite Imagery Archive","Imagery ","USDA-FSA"]
[{"$f":"SUBTOTAL(3,A184:A196)","v":9},{"$f":"SUBTOTAL(3,B184:B196)","v":10},{"$f":"SUBTOTAL(3,C184:C196)","v":6},{"$f":"SUBTOTAL(3,D184:D196)","v":13},"Imagery  Count"]
["Coastal Change Analysis Program (C-CAP)","Coastal Change Analysis Program (C-CAP)",null,{"$f":"IF(C198=0,B198,C198)","v":"Coastal Change Analysis Program (C-CAP)"},"Land Use-Land Cover ","DOC-NOAA","Nate Herold","Nate.Herold@noaa.gov",{"$f":"VLOOKUP(B198,'[4]LOC FINAL with new Themes'!A:M,7,0)","v":"Answer might depend on how we slice and dice it...  C-CAP has up to three separate product lines (regional, high resolution, and a derived forest fragmentation classified data set).  We also have multiple dates of land cover for each of these (which I guess you would probably count).  See the following links (and bullets summarizing) on each.http://www.csc.noaa.gov/landcover\n- Covers CONUS coastal areas.  All areas for 1996, 2001, and 2006.\n- Some select CONUS geographies (WA, DE, MD, and VA) also have a 1992 date.\n- Covers state of Hawaii for 1992, 2001, and 2006.\n- includes individual dates and files highlighting changes between dates.\n\nhttp://www.csc.noaa.gov/digitalcoast/data/forestfrag/index.html\n- Covers CONUS coastal areas.  All areas for 1996, 2001, and 2006.\n- Other dates and geographies not currently included.\n\nhttp://www.csc.noaa.gov/digitalcoast/data/ccaphighres/index.html\n- Covers project level areas (year depends on geography, etc.)\n- Primarily data in the pacific (Hawaii and territories of American Samoa, Guam, and CNMI), as well as the USVIs, Jobos Bay Puerto Rico, and Santa Cruz area in CA.\n \n"},{"$f":"VLOOKUP(B198,'[4]LOC FINAL with new Themes'!A:M,8,0)","v":"Yes"},{"$f":"VLOOKUP(B198,'[4]LOC FINAL with new Themes'!A:M,9,0)","v":"Yes"},{"$f":"VLOOKUP(B198,'[4]LOC FINAL with new Themes'!A:M,10,0)","v":"- The CONUS products are updated approximately every five years (we are currently working on a 2010/2011 data set, to add to the above time series)."},{"$f":"VLOOKUP(B198,'[4]LOC FINAL with new Themes'!A:M,11,0)","v":"Yes.  We maintain and serve all of our data (at above addresses), and archive with NOAA's National Oceanic Data Center (NODC).  We consider the dates listed above as current data sets, as part of the data we produce is tracking and providing change data as well."},{"$f":"VLOOKUP(B198,'[4]LOC FINAL with new Themes'!A:M,12,0)","v":"Not really...  Maybe the generic coastal land cover.  It is also very closely related and feeds into the National Land Cover Database (NLCD), which is a national land cover product developed by the Multi-Resolution Land Characteristics (MRLC) consortium.  this is an effort lead by the USGS."},{"$f":"VLOOKUP(B198,'[4]LOC FINAL with new Themes'!A:M,13,0)","v":"M "}]
[null,null,"Crops: Cropland Data Layer","Crops: Cropland Data Layer","Land Use-Land Cover ","USDA-NASS"]
[null,null,"Earth Cover, Land: MODIS-based Land Products","Earth Cover, Land: MODIS-based Land Products","Land Use-Land Cover ","USDA -FS (Along with USGS)"]
[null,null,"Earth Cover, Vegetation, Forest: Forest Biomass, Types, Type Groups","Earth Cover, Vegetation, Forest: Forest Biomass, Types, Type Groups","Land Use-Land Cover ","USDA-FS"]
[null,null,"Earth Cover, Vegetation: Percent Forest Canopy","Earth Cover, Vegetation: Percent Forest Canopy","Land Use-Land Cover ","USDA-FS"]
[null,null,"Fire Severity: Monitoring Trends in Burn Severity (MTBS)","Fire Severity: Monitoring Trends in Burn Severity (MTBS)","Land Use-Land Cover ","USDA -FS (Along with USGS)"]
[null,null,"Fire, Detection: Daily Active Fire Mapping","Fire, Detection: Daily Active Fire Mapping","Land Use-Land Cover ","USDA"]
[null,null,"Land Cover Strata Dataset","Land Cover Strata Dataset","Land Use-Land Cover ","USDA-NASS"]
["LANDFIRE Dataset","LANDFIRE Dataset","Land Fire Dataset","Land Fire Dataset","Land Use-Land Cover ",null,null,0,{"$f":"VLOOKUP(B206,'[4]LOC FINAL with new Themes'!A:M,7,0)","v":0},{"$f":"VLOOKUP(B206,'[4]LOC FINAL with new Themes'!A:M,8,0)","v":0},{"$f":"VLOOKUP(B206,'[4]LOC FINAL with new Themes'!A:M,9,0)","v":0},{"$f":"VLOOKUP(B206,'[4]LOC FINAL with new Themes'!A:M,10,0)","v":0},{"$f":"VLOOKUP(B206,'[4]LOC FINAL with new Themes'!A:M,11,0)","v":0},{"$f":"VLOOKUP(B206,'[4]LOC FINAL with new Themes'!A:M,12,0)","v":0},{"$f":"VLOOKUP(B206,'[4]LOC FINAL with new Themes'!A:M,13,0)","v":0}]
["National Land Cover Dataset (NLCD)","National Land Cover Dataset (NLCD)","National Land Cover Dataset - GIRAS - 1975","National Land Cover Dataset - GIRAS - 1975","Land Use-Land Cover ","DOI-USGS","Colin Homer","homer@usgs.gov",{"$f":"VLOOKUP(B207,'[4]LOC FINAL with new Themes'!A:M,7,0)","v":"The table below summarizes NLCD products available for download from the MRLC website http://www.mrlc.gov/ "},{"$f":"VLOOKUP(B207,'[4]LOC FINAL with new Themes'!A:M,8,0)","v":"No.  The \"manager\" of the data is Jon Dewitz. \nContact Information -   \nJon Dewitz\ndewitz@usgs.gov\n605-594-2715\nNLCD Quality Supervisor\nUSGS Earth Resources Observation and Science Center (EROS)\nMundt Federal Building\n47914 252nd St.\nSioux Falls, SD 57198\nfax 605-594-6529\n"},{"$f":"VLOOKUP(B207,'[4]LOC FINAL with new Themes'!A:M,9,0)","v":"Joyce Fry is the POC. \nContact information - \nJoyce Fry, Geographer\nUnited States Geological Survey (USGS)\nEarth Resources Observation and  Science (EROS) Center\nMundt Federal Building\n47914 252nd Street\nSioux Falls, South Dakota 57198\n(P)  605.594.2739\n(F)  605.594.6529\n(e)  jfry@usgs.gov \n"},{"$f":"VLOOKUP(B207,'[4]LOC FINAL with new Themes'!A:M,10,0)","v":"Every 5 years"},{"$f":"VLOOKUP(B207,'[4]LOC FINAL with new Themes'!A:M,11,0)","v":"Yes, there is an archive/backup of the dataset through the EROS Long Term Archive (LTA) group.  I will need to get back to if you need additional information regarding the archive process. "},{"$f":"VLOOKUP(B207,'[4]LOC FINAL with new Themes'!A:M,12,0)","v":"National Land Cover Database or NLCD along with the era number, either 1992 or 2001, or 2006. "},{"$f":"VLOOKUP(B207,'[4]LOC FINAL with new Themes'!A:M,13,0)","v":"S"}]
[null,null,"National Land Cover Dataset - National Map","National Land Cover Dataset - National Map","Land Use-Land Cover ","DOI-USGS"]
[null,null,"National Land Cover Dataset - National Map - 1991","National Land Cover Dataset - National Map - 1991","Land Use-Land Cover ","DOI-USGS"]
[null,null,"National Land Cover Dataset - National Map - 2001","National Land Cover Dataset - National Map - 2001","Land Use-Land Cover ","DOI-USGS"]
[null,null,"National Land Cover Dataset - National Map 2006","National Land Cover Dataset - National Map 2006","Land Use-Land Cover ","DOI-USGS"]
["National Land Cover Dataset (NLCD)","National Land Cover Dataset (NLCD)","National Land Cover Dataset (NLCD)","National Land Cover Dataset (NLCD)","Land Use-Land Cover ","DOI-USGS","Colin Homer","homer@usgs.gov",{"$f":"VLOOKUP(B212,'[4]LOC FINAL with new Themes'!A:M,7,0)","v":"The table below summarizes NLCD products available for download from the MRLC website http://www.mrlc.gov/ "},{"$f":"VLOOKUP(B212,'[4]LOC FINAL with new Themes'!A:M,8,0)","v":"No.  The \"manager\" of the data is Jon Dewitz. \nContact Information -   \nJon Dewitz\ndewitz@usgs.gov\n605-594-2715\nNLCD Quality Supervisor\nUSGS Earth Resources Observation and Science Center (EROS)\nMundt Federal Building\n47914 252nd St.\nSioux Falls, SD 57198\nfax 605-594-6529\n"},{"$f":"VLOOKUP(B212,'[4]LOC FINAL with new Themes'!A:M,9,0)","v":"Joyce Fry is the POC. \nContact information - \nJoyce Fry, Geographer\nUnited States Geological Survey (USGS)\nEarth Resources Observation and  Science (EROS) Center\nMundt Federal Building\n47914 252nd Street\nSioux Falls, South Dakota 57198\n(P)  605.594.2739\n(F)  605.594.6529\n(e)  jfry@usgs.gov \n"},{"$f":"VLOOKUP(B212,'[4]LOC FINAL with new Themes'!A:M,10,0)","v":"Every 5 years"},{"$f":"VLOOKUP(B212,'[4]LOC FINAL with new Themes'!A:M,11,0)","v":"Yes, there is an archive/backup of the dataset through the EROS Long Term Archive (LTA) group.  I will need to get back to if you need additional information regarding the archive process. "},{"$f":"VLOOKUP(B212,'[4]LOC FINAL with new Themes'!A:M,12,0)","v":"National Land Cover Database or NLCD along with the era number, either 1992 or 2001, or 2006. "},{"$f":"VLOOKUP(B212,'[4]LOC FINAL with new Themes'!A:M,13,0)","v":"S"}]
[null,null,"National Land Cover Percent Canopy - National Map - 1991","National Land Cover Percent Canopy - National Map - 1991","Land Use-Land Cover ","DOI-USGS"]
[null,null,"National Land Cover Percent Imperviousness - National Map - 2001","National Land Cover Percent Imperviousness - National Map - 2001","Land Use-Land Cover ","DOI-USGS"]
[null,null,"National Land Cover Percent Imperviousness - National Map - 2006","National Land Cover Percent Imperviousness - National Map - 2006","Land Use-Land Cover ","DOI-USGS"]
["National Parks Data","National Parks Data","National Parks Data","National Parks Data","Land Use-Land Cover ","DOI-MMS","James Fulmer","james.s.fulmer@mms.gov",{"$f":"VLOOKUP(B216,'[4]LOC FINAL with new Themes'!A:M,7,0)","v":"undeliverable email- neeed to identify new contact"},{"$f":"VLOOKUP(B216,'[4]LOC FINAL with new Themes'!A:M,8,0)","v":0},{"$f":"VLOOKUP(B216,'[4]LOC FINAL with new Themes'!A:M,9,0)","v":0},{"$f":"VLOOKUP(B216,'[4]LOC FINAL with new Themes'!A:M,10,0)","v":0},{"$f":"VLOOKUP(B216,'[4]LOC FINAL with new Themes'!A:M,11,0)","v":0},{"$f":"VLOOKUP(B216,'[4]LOC FINAL with new Themes'!A:M,12,0)","v":0},{"$f":"VLOOKUP(B216,'[4]LOC FINAL with new Themes'!A:M,13,0)","v":0}]
[{"$f":"SUBTOTAL(3,A198:A216)","v":5},{"$f":"SUBTOTAL(3,B198:B216)","v":5},{"$f":"SUBTOTAL(3,C198:C216)","v":18},{"$f":"SUBTOTAL(3,D198:D216)","v":19},"Land Use-Land Cover  Count"]
["Assisted Housing (census geography or point-based) see http://www.huduser.org/picture2000/","Assisted Housing (census geography or point-based)",null,{"$f":"IF(C218=0,B218,C218)","v":"Assisted Housing (census geography or point-based)"},"Real Property","HUD","Jon Sperling","jon.sperling@hud.gov",{"$f":"VLOOKUP(B218,'[4]LOC FINAL with new Themes'!A:M,7,0)","v":0},{"$f":"VLOOKUP(B218,'[4]LOC FINAL with new Themes'!A:M,8,0)","v":0},{"$f":"VLOOKUP(B218,'[4]LOC FINAL with new Themes'!A:M,9,0)","v":0},{"$f":"VLOOKUP(B218,'[4]LOC FINAL with new Themes'!A:M,10,0)","v":0},{"$f":"VLOOKUP(B218,'[4]LOC FINAL with new Themes'!A:M,11,0)","v":0},{"$f":"VLOOKUP(B218,'[4]LOC FINAL with new Themes'!A:M,12,0)","v":0},{"$f":"VLOOKUP(B218,'[4]LOC FINAL with new Themes'!A:M,13,0)","v":0}]
["Enterprise Zones, Empowerment Communities, Revitalization Areas, Qualified Census Tracts, etc.  (census geography based)","Enterprise Zones, Empowerment Communities, Revitalization Areas, Qualified Census Tracts, etc.  (census geography based)",null,"Enterprise Zones, Empowerment Communities, Revitalization Areas, Qualified Census Tracts, etc.  (census geography based)","Real Property","HUD","Jon Sperling","jon.sperling@hud.gov",{"$f":"VLOOKUP(B219,'[4]LOC FINAL with new Themes'!A:M,7,0)","v":0},{"$f":"VLOOKUP(B219,'[4]LOC FINAL with new Themes'!A:M,8,0)","v":0},{"$f":"VLOOKUP(B219,'[4]LOC FINAL with new Themes'!A:M,9,0)","v":0},{"$f":"VLOOKUP(B219,'[4]LOC FINAL with new Themes'!A:M,10,0)","v":0},{"$f":"VLOOKUP(B219,'[4]LOC FINAL with new Themes'!A:M,11,0)","v":0},{"$f":"VLOOKUP(B219,'[4]LOC FINAL with new Themes'!A:M,12,0)","v":0},{"$f":"VLOOKUP(B219,'[4]LOC FINAL with new Themes'!A:M,13,0)","v":0}]
["Federal building location point ","Federal building location point ","Federal building location point ","Federal building location point ","Real Property ","GSA","Sandra Downie","sandra.downie@gsa.gov",{"$f":"VLOOKUP(B220,'[4]LOC FINAL with new Themes'!A:M,7,0)","v":0},{"$f":"VLOOKUP(B220,'[4]LOC FINAL with new Themes'!A:M,8,0)","v":0},{"$f":"VLOOKUP(B220,'[4]LOC FINAL with new Themes'!A:M,9,0)","v":0},{"$f":"VLOOKUP(B220,'[4]LOC FINAL with new Themes'!A:M,10,0)","v":0},{"$f":"VLOOKUP(B220,'[4]LOC FINAL with new Themes'!A:M,11,0)","v":0},{"$f":"VLOOKUP(B220,'[4]LOC FINAL with new Themes'!A:M,12,0)","v":0},{"$f":"VLOOKUP(B220,'[4]LOC FINAL with new Themes'!A:M,13,0)","v":0}]
["Federal building location polygon","Federal building location polygon","Federal building location polygon","Federal building location polygon","Real Property ","GSA","Sandra Downie","sandra.downie@gsa.gov",{"$f":"VLOOKUP(B221,'[4]LOC FINAL with new Themes'!A:M,7,0)","v":0},{"$f":"VLOOKUP(B221,'[4]LOC FINAL with new Themes'!A:M,8,0)","v":0},{"$f":"VLOOKUP(B221,'[4]LOC FINAL with new Themes'!A:M,9,0)","v":0},{"$f":"VLOOKUP(B221,'[4]LOC FINAL with new Themes'!A:M,10,0)","v":0},{"$f":"VLOOKUP(B221,'[4]LOC FINAL with new Themes'!A:M,11,0)","v":0},{"$f":"VLOOKUP(B221,'[4]LOC FINAL with new Themes'!A:M,12,0)","v":0},{"$f":"VLOOKUP(B221,'[4]LOC FINAL with new Themes'!A:M,13,0)","v":0}]
["Federal land area facility location point","Federal land area facility location point","Federal land area facility location point","Federal land area facility location point","Real Property ","GSA","Sandra Downie","sandra.downie@gsa.gov",{"$f":"VLOOKUP(B222,'[4]LOC FINAL with new Themes'!A:M,7,0)","v":0},{"$f":"VLOOKUP(B222,'[4]LOC FINAL with new Themes'!A:M,8,0)","v":0},{"$f":"VLOOKUP(B222,'[4]LOC FINAL with new Themes'!A:M,9,0)","v":0},{"$f":"VLOOKUP(B222,'[4]LOC FINAL with new Themes'!A:M,10,0)","v":0},{"$f":"VLOOKUP(B222,'[4]LOC FINAL with new Themes'!A:M,11,0)","v":0},{"$f":"VLOOKUP(B222,'[4]LOC FINAL with new Themes'!A:M,12,0)","v":0},{"$f":"VLOOKUP(B222,'[4]LOC FINAL with new Themes'!A:M,13,0)","v":0}]
["Federal land area facility location polygon","Federal land area facility location polygon","Federal land area facility location polygon","Federal land area facility location polygon","Real Property ","GSA","Sandra Downie","sandra.downie@gsa.gov",{"$f":"VLOOKUP(B223,'[4]LOC FINAL with new Themes'!A:M,7,0)","v":0},{"$f":"VLOOKUP(B223,'[4]LOC FINAL with new Themes'!A:M,8,0)","v":0},{"$f":"VLOOKUP(B223,'[4]LOC FINAL with new Themes'!A:M,9,0)","v":0},{"$f":"VLOOKUP(B223,'[4]LOC FINAL with new Themes'!A:M,10,0)","v":0},{"$f":"VLOOKUP(B223,'[4]LOC FINAL with new Themes'!A:M,11,0)","v":0},{"$f":"VLOOKUP(B223,'[4]LOC FINAL with new Themes'!A:M,12,0)","v":0},{"$f":"VLOOKUP(B223,'[4]LOC FINAL with new Themes'!A:M,13,0)","v":0}]
["National Map - Structures Dataset","National Map - Structures Dataset","National Structures Dataset - National Map","National Structures Dataset - National Map","Real Property ","DOI-USGS","Paul Wiese","pmwiese@usgs.gov",{"$f":"VLOOKUP(B224,'[4]LOC FINAL with new Themes'!A:M,7,0)","v":"National Map updates monthly; a series of data sets; this is the POC and data manager; this is the name and maintain three complete with two physically separate on-site and one off-site"},{"$f":"VLOOKUP(B224,'[4]LOC FINAL with new Themes'!A:M,8,0)","v":0},{"$f":"VLOOKUP(B224,'[4]LOC FINAL with new Themes'!A:M,9,0)","v":0},{"$f":"VLOOKUP(B224,'[4]LOC FINAL with new Themes'!A:M,10,0)","v":0},{"$f":"VLOOKUP(B224,'[4]LOC FINAL with new Themes'!A:M,11,0)","v":0},{"$f":"VLOOKUP(B224,'[4]LOC FINAL with new Themes'!A:M,12,0)","v":0},{"$f":"VLOOKUP(B224,'[4]LOC FINAL with new Themes'!A:M,13,0)","v":"S"}]
[{"$f":"SUBTOTAL(3,A218:A224)","v":7},{"$f":"SUBTOTAL(3,B218:B224)","v":7},{"$f":"SUBTOTAL(3,C218:C224)","v":5},{"$f":"SUBTOTAL(3,D218:D224)","v":7},"Real Property Count"]
[null,"Military Installation","Military Installation",{"$f":"IF(C226=0,B226,C226)","v":"Military Installation"},"Real Property\nCultural & Demographic Statistics","DOC-Census","Jennifer Holland","Jennifer.L.Holland@census.gov",{"$f":"VLOOKUP(B226,'[4]LOC FINAL with new Themes'!A:M,7,0)","v":0},{"$f":"VLOOKUP(B226,'[4]LOC FINAL with new Themes'!A:M,8,0)","v":0},{"$f":"VLOOKUP(B226,'[4]LOC FINAL with new Themes'!A:M,9,0)","v":0},{"$f":"VLOOKUP(B226,'[4]LOC FINAL with new Themes'!A:M,10,0)","v":0},{"$f":"VLOOKUP(B226,'[4]LOC FINAL with new Themes'!A:M,11,0)","v":0},{"$f":"VLOOKUP(B226,'[4]LOC FINAL with new Themes'!A:M,12,0)","v":0},{"$f":"VLOOKUP(B226,'[4]LOC FINAL with new Themes'!A:M,13,0)","v":0}]
[{"$f":"SUBTOTAL(3,A226:A226)","v":0},{"$f":"SUBTOTAL(3,B226:B226)","v":1},{"$f":"SUBTOTAL(3,C226:C226)","v":1},{"$f":"SUBTOTAL(3,D226:D226)","v":1},"Real Property\nCultural & Demographic Statistics Count"]
["Common Resource Area (CRA)","Common Resource Area (CRA)","Common Resource Area (CRA)",{"$f":"IF(C228=0,B228,C228)","v":"Common Resource Area (CRA)"},"Soils ","USDA","Chris W. Smith","Christopherw.Smith@wdc.usda.gov",{"$f":"VLOOKUP(B228,'[4]LOC FINAL with new Themes'!A:M,7,0)","v":0},{"$f":"VLOOKUP(B228,'[4]LOC FINAL with new Themes'!A:M,8,0)","v":0},{"$f":"VLOOKUP(B228,'[4]LOC FINAL with new Themes'!A:M,9,0)","v":0},{"$f":"VLOOKUP(B228,'[4]LOC FINAL with new Themes'!A:M,10,0)","v":0},{"$f":"VLOOKUP(B228,'[4]LOC FINAL with new Themes'!A:M,11,0)","v":0},{"$f":"VLOOKUP(B228,'[4]LOC FINAL with new Themes'!A:M,12,0)","v":0},{"$f":"VLOOKUP(B228,'[4]LOC FINAL with new Themes'!A:M,13,0)","v":0}]
["Hydric Soils","Hydric Soils",null,"Hydric Soils","Soils ","USDA","Chris W. Smith","Christopherw.Smith@wdc.usda.gov",{"$f":"VLOOKUP(B229,'[4]LOC FINAL with new Themes'!A:M,7,0)","v":0},{"$f":"VLOOKUP(B229,'[4]LOC FINAL with new Themes'!A:M,8,0)","v":0},{"$f":"VLOOKUP(B229,'[4]LOC FINAL with new Themes'!A:M,9,0)","v":0},{"$f":"VLOOKUP(B229,'[4]LOC FINAL with new Themes'!A:M,10,0)","v":0},{"$f":"VLOOKUP(B229,'[4]LOC FINAL with new Themes'!A:M,11,0)","v":0},{"$f":"VLOOKUP(B229,'[4]LOC FINAL with new Themes'!A:M,12,0)","v":0},{"$f":"VLOOKUP(B229,'[4]LOC FINAL with new Themes'!A:M,13,0)","v":0}]
["Location of Arable Lands","Location of Arable Lands",null,"Location of Arable Lands","Soils ","USDA","Karl Hipple","karl.hipple@lin.usda.gov",{"$f":"VLOOKUP(B230,'[4]LOC FINAL with new Themes'!A:M,7,0)","v":"undeliverable email- neeed to identify new contact"},{"$f":"VLOOKUP(B230,'[4]LOC FINAL with new Themes'!A:M,8,0)","v":0},{"$f":"VLOOKUP(B230,'[4]LOC FINAL with new Themes'!A:M,9,0)","v":0},{"$f":"VLOOKUP(B230,'[4]LOC FINAL with new Themes'!A:M,10,0)","v":0},{"$f":"VLOOKUP(B230,'[4]LOC FINAL with new Themes'!A:M,11,0)","v":0},{"$f":"VLOOKUP(B230,'[4]LOC FINAL with new Themes'!A:M,12,0)","v":0},{"$f":"VLOOKUP(B230,'[4]LOC FINAL with new Themes'!A:M,13,0)","v":0}]
["Major Land Resource Area (MLRA)","Major Land Resource Area (MLRA)","Major Land Resource Area (MLRA)","Major Land Resource Area (MLRA)","Soils ","USDA","Karl Hipple","karl.hipple@lin.usda.gov",{"$f":"VLOOKUP(B231,'[4]LOC FINAL with new Themes'!A:M,7,0)","v":"undeliverable email- neeed to identify new contact"},{"$f":"VLOOKUP(B231,'[4]LOC FINAL with new Themes'!A:M,8,0)","v":0},{"$f":"VLOOKUP(B231,'[4]LOC FINAL with new Themes'!A:M,9,0)","v":0},{"$f":"VLOOKUP(B231,'[4]LOC FINAL with new Themes'!A:M,10,0)","v":0},{"$f":"VLOOKUP(B231,'[4]LOC FINAL with new Themes'!A:M,11,0)","v":0},{"$f":"VLOOKUP(B231,'[4]LOC FINAL with new Themes'!A:M,12,0)","v":0},{"$f":"VLOOKUP(B231,'[4]LOC FINAL with new Themes'!A:M,13,0)","v":0}]
["National Cooperative Soil Survey (NCSS)","National Cooperative Soil Survey (NCSS)","National Cooperative Soil Characterization Database","National Cooperative Soil Characterization Database","Soils ","USDA","Paul Benedict","paul.benedict@wdc.usda.gov",{"$f":"VLOOKUP(B232,'[4]LOC FINAL with new Themes'!A:M,7,0)","v":"We have our Soil Survey Geographic database called SSURGO which is made available through the following sites:\nWeb Soil Survey:    http://websoilsurvey.nrcs.usda.gov/app/\nSoil Data Mart:     http://soildatamart.nrcs.usda.gov/\nSoil Data Access:   http://sdmdataaccess.nrcs.usda.gov\n\nWe also have: \nLab Soil Survey Lab Characterization Data (Point data): http://ssldata.nrcs.usda.gov/ aka NCSS Characterization Database\nSoil Series Classification Database http://soils.usda.gov/technical/classification/scfile/index.html\nU.S. General Soil Map (STATSGO2)\nMajor Land Resource Area (MLRA) http://soils.usda.gov/survey/geography/mlra/\n             Common Resource Areas (CRA) \n\n"},{"$f":"VLOOKUP(B232,'[4]LOC FINAL with new Themes'!A:M,8,0)","v":"? No, I am a Program Manager. Various other people have roles of maintaining the data. "},{"$f":"VLOOKUP(B232,'[4]LOC FINAL with new Themes'!A:M,9,0)","v":"I am a general information POC for all things soil survey related. For more technical aspects on our data sets a good POC would be David Hoover, National Leader for Soil Business Systems or someone on his staff. His contact number is 402-437-4013 or email at david.hoover@lin.usda.gov. "},{"$f":"VLOOKUP(B232,'[4]LOC FINAL with new Themes'!A:M,10,0)","v":"Our data sets are constantly being updated by about 1000 soil and plant scientists in several agencies. "},{"$f":"VLOOKUP(B232,'[4]LOC FINAL with new Themes'!A:M,11,0)","v":"Our data sets are archived, but I don’t know how far back. I will have to get back to you on that. It is my understanding that archived sets are not easily accessible.  We have archive data for SSURGO (Soil Data Warehouse from mid 2000’s or earlier – Jim Fortner or Jennifer Sweet may be able to confirm or provide more detail; We also have archive data for STATSGO (circa 1994;1996) and for MLRA (1978; 2001; 2006) in local holdings.  Not sure about lab data archives, Henry Ferguson or Larry West can confirm.  "},{"$f":"VLOOKUP(B232,'[4]LOC FINAL with new Themes'!A:M,12,0)","v":"? the Lab Characterization Data is also known as the “NCSS Characterization Database”\nAdded Common Resource Area geographic database (CRA)."},{"$f":"VLOOKUP(B232,'[4]LOC FINAL with new Themes'!A:M,13,0)","v":"P"}]
["Prime and Statewide Important Farmlands","Prime and Statewide Important Farmlands",null,"Prime and Statewide Important Farmlands","Soils ","USDA","Chris W. Smith","Christopherw.Smith@wdc.usda.gov",{"$f":"VLOOKUP(B233,'[4]LOC FINAL with new Themes'!A:M,7,0)","v":0},{"$f":"VLOOKUP(B233,'[4]LOC FINAL with new Themes'!A:M,8,0)","v":0},{"$f":"VLOOKUP(B233,'[4]LOC FINAL with new Themes'!A:M,9,0)","v":0},{"$f":"VLOOKUP(B233,'[4]LOC FINAL with new Themes'!A:M,10,0)","v":0},{"$f":"VLOOKUP(B233,'[4]LOC FINAL with new Themes'!A:M,11,0)","v":0},{"$f":"VLOOKUP(B233,'[4]LOC FINAL with new Themes'!A:M,12,0)","v":0},{"$f":"VLOOKUP(B233,'[4]LOC FINAL with new Themes'!A:M,13,0)","v":0}]
["Soil Suitability for Disposal of Contaminated Crops ","Soil Suitability for Disposal of Contaminated Crops ",null,"Soil Suitability for Disposal of Contaminated Crops ","Soils ","USDA","Karl Hipple; Sharon Waltman","karl.hipple@lin.usda.gov; sharon.waltman@wv.usda.gov ",{"$f":"VLOOKUP(B234,'[4]LOC FINAL with new Themes'!A:M,7,0)","v":"undeliverable email- neeed to identify new contact"},{"$f":"VLOOKUP(B234,'[4]LOC FINAL with new Themes'!A:M,8,0)","v":0},{"$f":"VLOOKUP(B234,'[4]LOC FINAL with new Themes'!A:M,9,0)","v":0},{"$f":"VLOOKUP(B234,'[4]LOC FINAL with new Themes'!A:M,10,0)","v":0},{"$f":"VLOOKUP(B234,'[4]LOC FINAL with new Themes'!A:M,11,0)","v":0},{"$f":"VLOOKUP(B234,'[4]LOC FINAL with new Themes'!A:M,12,0)","v":0},{"$f":"VLOOKUP(B234,'[4]LOC FINAL with new Themes'!A:M,13,0)","v":0}]
["Soil Suitability for Large Animal Disposal","Soil Suitability for Large Animal Disposal",null,"Soil Suitability for Large Animal Disposal","Soils ","USDA","Chris W. Smith","Christopherw.Smith@wdc.usda.gov",{"$f":"VLOOKUP(B235,'[4]LOC FINAL with new Themes'!A:M,7,0)","v":0},{"$f":"VLOOKUP(B235,'[4]LOC FINAL with new Themes'!A:M,8,0)","v":0},{"$f":"VLOOKUP(B235,'[4]LOC FINAL with new Themes'!A:M,9,0)","v":0},{"$f":"VLOOKUP(B235,'[4]LOC FINAL with new Themes'!A:M,10,0)","v":0},{"$f":"VLOOKUP(B235,'[4]LOC FINAL with new Themes'!A:M,11,0)","v":0},{"$f":"VLOOKUP(B235,'[4]LOC FINAL with new Themes'!A:M,12,0)","v":0},{"$f":"VLOOKUP(B235,'[4]LOC FINAL with new Themes'!A:M,13,0)","v":0}]
["Soil Survey Geographic Database (SSURGO)","Soil Survey Geographic Database (SSURGO)","Soil Survey Geographic Database (SSURGO)","Soil Survey Geographic Database (SSURGO)","Soils ","USDA","Karl Hipple","karl.hipple@lin.usda.gov",{"$f":"VLOOKUP(B236,'[4]LOC FINAL with new Themes'!A:M,7,0)","v":"undeliverable email- neeed to identify new contact"},{"$f":"VLOOKUP(B236,'[4]LOC FINAL with new Themes'!A:M,8,0)","v":0},{"$f":"VLOOKUP(B236,'[4]LOC FINAL with new Themes'!A:M,9,0)","v":0},{"$f":"VLOOKUP(B236,'[4]LOC FINAL with new Themes'!A:M,10,0)","v":0},{"$f":"VLOOKUP(B236,'[4]LOC FINAL with new Themes'!A:M,11,0)","v":0},{"$f":"VLOOKUP(B236,'[4]LOC FINAL with new Themes'!A:M,12,0)","v":0},{"$f":"VLOOKUP(B236,'[4]LOC FINAL with new Themes'!A:M,13,0)","v":0}]
["U.S. General Soil Map (STATSGO2)","U.S. General Soil Map (STATSGO2)","U.S. General Soil Map (STATSGO2)","U.S. General Soil Map (STATSGO2)","Soils ","USDA","Karl Hipple","karl.hipple@lin.usda.gov",{"$f":"VLOOKUP(B237,'[4]LOC FINAL with new Themes'!A:M,7,0)","v":"undeliverable email- neeed to identify new contact"},{"$f":"VLOOKUP(B237,'[4]LOC FINAL with new Themes'!A:M,8,0)","v":0},{"$f":"VLOOKUP(B237,'[4]LOC FINAL with new Themes'!A:M,9,0)","v":0},{"$f":"VLOOKUP(B237,'[4]LOC FINAL with new Themes'!A:M,10,0)","v":0},{"$f":"VLOOKUP(B237,'[4]LOC FINAL with new Themes'!A:M,11,0)","v":0},{"$f":"VLOOKUP(B237,'[4]LOC FINAL with new Themes'!A:M,12,0)","v":0},{"$f":"VLOOKUP(B237,'[4]LOC FINAL with new Themes'!A:M,13,0)","v":0}]
[{"$f":"SUBTOTAL(3,A228:A237)","v":10},{"$f":"SUBTOTAL(3,B228:B237)","v":10},{"$f":"SUBTOTAL(3,C228:C237)","v":5},{"$f":"SUBTOTAL(3,D228:D237)","v":10},"Soils  Count"]
[null,"Address Range-Feature Name Relationship File","Address Range-Feature Name Relationship File",{"$f":"IF(C239=0,B239,C239)","v":"Address Range-Feature Name Relationship File"},"Transportation ","DOC-Census","Jennifer Holland","Jennifer.L.Holland@census.gov",{"$f":"VLOOKUP(B239,'[4]LOC FINAL with new Themes'!A:M,7,0)","v":0},{"$f":"VLOOKUP(B239,'[4]LOC FINAL with new Themes'!A:M,8,0)","v":0},{"$f":"VLOOKUP(B239,'[4]LOC FINAL with new Themes'!A:M,9,0)","v":0},{"$f":"VLOOKUP(B239,'[4]LOC FINAL with new Themes'!A:M,10,0)","v":0},{"$f":"VLOOKUP(B239,'[4]LOC FINAL with new Themes'!A:M,11,0)","v":0},{"$f":"VLOOKUP(B239,'[4]LOC FINAL with new Themes'!A:M,12,0)","v":0},{"$f":"VLOOKUP(B239,'[4]LOC FINAL with new Themes'!A:M,13,0)","v":0}]
[null,"Address Ranges Relationship File","Address Ranges Relationship File","Address Ranges Relationship File","Transportation ","DOC-Census","Jennifer Holland","Jennifer.L.Holland@census.gov",{"$f":"VLOOKUP(B240,'[4]LOC FINAL with new Themes'!A:M,7,0)","v":0},{"$f":"VLOOKUP(B240,'[4]LOC FINAL with new Themes'!A:M,8,0)","v":0},{"$f":"VLOOKUP(B240,'[4]LOC FINAL with new Themes'!A:M,9,0)","v":0},{"$f":"VLOOKUP(B240,'[4]LOC FINAL with new Themes'!A:M,10,0)","v":0},{"$f":"VLOOKUP(B240,'[4]LOC FINAL with new Themes'!A:M,11,0)","v":0},{"$f":"VLOOKUP(B240,'[4]LOC FINAL with new Themes'!A:M,12,0)","v":0},{"$f":"VLOOKUP(B240,'[4]LOC FINAL with new Themes'!A:M,13,0)","v":0}]
[null,"All Roads","All Roads","All Roads","Transportation ","DOC-Census","Jennifer Holland","Jennifer.L.Holland@census.gov",{"$f":"VLOOKUP(B241,'[4]LOC FINAL with new Themes'!A:M,7,0)","v":0},{"$f":"VLOOKUP(B241,'[4]LOC FINAL with new Themes'!A:M,8,0)","v":0},{"$f":"VLOOKUP(B241,'[4]LOC FINAL with new Themes'!A:M,9,0)","v":0},{"$f":"VLOOKUP(B241,'[4]LOC FINAL with new Themes'!A:M,10,0)","v":0},{"$f":"VLOOKUP(B241,'[4]LOC FINAL with new Themes'!A:M,11,0)","v":0},{"$f":"VLOOKUP(B241,'[4]LOC FINAL with new Themes'!A:M,12,0)","v":0},{"$f":"VLOOKUP(B241,'[4]LOC FINAL with new Themes'!A:M,13,0)","v":0}]
["Inland Electronic Navigation Charts (IENC)","Inland Electronic Navigation Charts (IENC)","Inland Electronic Navigation Charts (IENC)","Inland Electronic Navigation Charts (IENC)","Transportation ","DOD-USACE","Joel Schlagel","Joel.D.Schlagel@erdc.usace.army.mil ",{"$f":"VLOOKUP(B242,'[4]LOC FINAL with new Themes'!A:M,7,0)","v":0},{"$f":"VLOOKUP(B242,'[4]LOC FINAL with new Themes'!A:M,8,0)","v":0},{"$f":"VLOOKUP(B242,'[4]LOC FINAL with new Themes'!A:M,9,0)","v":0},{"$f":"VLOOKUP(B242,'[4]LOC FINAL with new Themes'!A:M,10,0)","v":0},{"$f":"VLOOKUP(B242,'[4]LOC FINAL with new Themes'!A:M,11,0)","v":0},{"$f":"VLOOKUP(B242,'[4]LOC FINAL with new Themes'!A:M,12,0)","v":0},{"$f":"VLOOKUP(B242,'[4]LOC FINAL with new Themes'!A:M,13,0)","v":0}]
[null,null,"National Interagency Trails Dataset","National Interagency Trails Dataset","Transportation ","USDA"]
["National Map - Transportation Dataset","National Map - Transportation Dataset","National Transportation Dataset - National Map","National Transportation Dataset - National Map","Transportation ","DOI-USGS","Paul Wiese","pmwiese@usgs.gov",{"$f":"VLOOKUP(B244,'[4]LOC FINAL with new Themes'!A:M,7,0)","v":0},{"$f":"VLOOKUP(B244,'[4]LOC FINAL with new Themes'!A:M,8,0)","v":0},{"$f":"VLOOKUP(B244,'[4]LOC FINAL with new Themes'!A:M,9,0)","v":0},{"$f":"VLOOKUP(B244,'[4]LOC FINAL with new Themes'!A:M,10,0)","v":0},{"$f":"VLOOKUP(B244,'[4]LOC FINAL with new Themes'!A:M,11,0)","v":0},{"$f":"VLOOKUP(B244,'[4]LOC FINAL with new Themes'!A:M,12,0)","v":0},{"$f":"VLOOKUP(B244,'[4]LOC FINAL with new Themes'!A:M,13,0)","v":0}]
["NOAA Aeronautical Survey","NOAA Aeronautical Survey",null,"NOAA Aeronautical Survey","Transportation ","DOC-NOAA","Mark Howard","Mark.Howard@noaa.gov",{"$f":"VLOOKUP(B245,'[4]LOC FINAL with new Themes'!A:M,7,0)","v":"The NOAA/NGS Aeronautical Survey Program (ASP) provides products and services to the FAA in accordance with an interagency agreement.  The ASP is a reimbursable program that performs work as requested by the Aeronautical Information Services Office (AIS).  The aeronautical surveys we conduct and review provide airport geodetic control, runway, navigational aid, obstruction, an other aeronautical data that is critical to the operation of the National Airspace System. Recently our role, in support of the FAA, has migrated from primarily being a data provider to reviewing survey data collected by third party commerical surveyors. The survey data (collected by NGS or submitted by 3rd party) is considered good as of the date collected.  The surveys are forwarded to the FAA.  The data supports FAA Instrument Approach Procedure development and is also ingested into databases used to update FAA publications. The NGS has been conducting aeronautical surveys for over 7 decades. We have conducted surveys at over 1200 airports.  Each survey is a single data set.  We began storing the survey data (electronically) in a database around 1990 (prior to that it was all paper).  Note that many of these surveys we conducted are not current. The FAA does obtain aeronautical survey data from many different sources. The 3rd party surveys we review is submitted to the FAA. We retreive a copy of the survey data from an FAA portal to perform our reveiw.       "},{"$f":"VLOOKUP(B245,'[4]LOC FINAL with new Themes'!A:M,8,0)","v":"No, I'm the Program Manager serving as the NGS liason with FAA offices that leverage NGS expertise and capabilities.    "},{"$f":"VLOOKUP(B245,'[4]LOC FINAL with new Themes'!A:M,9,0)","v":"I could be. We don't have a designated person that performs that function. Being a reimbursable program our tasks are limited to those specified in our interagency agreement, which is limited to providing (transfering) the data sets to the FAA.  We are not involved in the dissemenation or distribution of the product.  In the past, when we were conducting more surveys, we would post the survey data (in UDDF format) to our web site (http://www.ngs.noaa.gov/AERO/UDDFdat.htm).  These survey data sets are still available on our site but we no longer post new surveys to the site.  The data is now either submitted to the FAA Third Party Survey Site (TPSS) or the FAA Airports Surveying GIS (AGIS) Program web site (https://airports-gis.faa.gov/public/index.html).  Both sites require registration.  The data uploaded to the TPSS site is assessable via a public site (https://tpss.faa.gov/tpss/uddfList.jsp).    "},{"$f":"VLOOKUP(B245,'[4]LOC FINAL with new Themes'!A:M,10,0)","v":"Updates are contigent on NGS receiving a request from the FAA to conduct another survey.  We do not survey airports on a regular cylce.   We use to survey the larger airports (FAA Part 139) every 3-5 years.  With advances in use of GPS naviagtion the FAA's need for aeronautical survey data increased significantly.  They are now developing Approach procedures for many smaller airports (no need to purchase or maintain ground based ILS equipment).    "},{"$f":"VLOOKUP(B245,'[4]LOC FINAL with new Themes'!A:M,11,0)","v":"Yes, we do have an archive and backup of the surveys we conducted.  Internally we transfer our survey data from our database to differnet environments (photogrammetric workstation, field data logger) via a custom designed ascii text based \"exchange file format\" (EXG). I don't know how easily it would be to make this accessible. I would need to discuss with our database manager.  When ever I ask him a single question he usualy turns around and asks me 10 questions.  The scope of the request would need to be defined. A word of caution.... there is more recent survey data available (from other sources) at many of the airports we have surveyed.  "},{"$f":"VLOOKUP(B245,'[4]LOC FINAL with new Themes'!A:M,12,0)","v":"The aeronautical data set we forward to the FAA is referred to as a UDDF.... which is really the format of the file the data is transferred in.  The documentation for this file format is available on our web site (http://www.ngs.noaa.gov/AERO/annof_7.htm).  Internally it is the \"exchange file format\" (EXG), but of course our workfoce access the information our database via interactive software.  NGS has also established Primary and Secondary Airport Control Stations at many airports across the country.  This control is tied directly to the National Spatial Reference System (NSRS) and available via the NGS IDB (web site).  They are permanent marks with precisly determined positions and elevations that must meet specific siting, construction, and accuracy requirements. The control stations can be retrieved in a variety of formats.  "},{"$f":"VLOOKUP(B245,'[4]LOC FINAL with new Themes'!A:M,13,0)","v":"M "}]
["NTAD","NTAD","NTAD","NTAD","Transportation ","DOT-BTS","Robert Monniere","robert.monniere@dot.gov",{"$f":"VLOOKUP(B246,'[4]LOC FINAL with new Themes'!A:M,7,0)","v":0},{"$f":"VLOOKUP(B246,'[4]LOC FINAL with new Themes'!A:M,8,0)","v":0},{"$f":"VLOOKUP(B246,'[4]LOC FINAL with new Themes'!A:M,9,0)","v":0},{"$f":"VLOOKUP(B246,'[4]LOC FINAL with new Themes'!A:M,10,0)","v":0},{"$f":"VLOOKUP(B246,'[4]LOC FINAL with new Themes'!A:M,11,0)","v":0},{"$f":"VLOOKUP(B246,'[4]LOC FINAL with new Themes'!A:M,12,0)","v":0},{"$f":"VLOOKUP(B246,'[4]LOC FINAL with new Themes'!A:M,13,0)","v":0}]
[null,null,"NTAD (airports)","NTAD (airports)","Transportation ","DOT-BTS"]
[null,null,"NTAD (Rail)","NTAD (Rail)","Transportation ","DOT-BTS"]
["NTAD (TransitLines) ","NTAD (TransitLines) ","NTAD (TransitLines) ","NTAD (TransitLines) ","Transportation ","DOT-BTS","Robert Monniere ","robert.monniere@dot.gov \n",{"$f":"VLOOKUP(B249,'[4]LOC FINAL with new Themes'!A:M,7,0)","v":0},{"$f":"VLOOKUP(B249,'[4]LOC FINAL with new Themes'!A:M,8,0)","v":0},{"$f":"VLOOKUP(B249,'[4]LOC FINAL with new Themes'!A:M,9,0)","v":0},{"$f":"VLOOKUP(B249,'[4]LOC FINAL with new Themes'!A:M,10,0)","v":0},{"$f":"VLOOKUP(B249,'[4]LOC FINAL with new Themes'!A:M,11,0)","v":0},{"$f":"VLOOKUP(B249,'[4]LOC FINAL with new Themes'!A:M,12,0)","v":0},{"$f":"VLOOKUP(B249,'[4]LOC FINAL with new Themes'!A:M,13,0)","v":0}]
["NTAD (TransitStation) ","NTAD (TransitStation) ","NTAD (TransitStation) ","NTAD (TransitStation) ","Transportation ","DOT-BTS","Robert Monniere ","robert.monniere@dot.gov ",{"$f":"VLOOKUP(B250,'[4]LOC FINAL with new Themes'!A:M,7,0)","v":0},{"$f":"VLOOKUP(B250,'[4]LOC FINAL with new Themes'!A:M,8,0)","v":0},{"$f":"VLOOKUP(B250,'[4]LOC FINAL with new Themes'!A:M,9,0)","v":0},{"$f":"VLOOKUP(B250,'[4]LOC FINAL with new Themes'!A:M,10,0)","v":0},{"$f":"VLOOKUP(B250,'[4]LOC FINAL with new Themes'!A:M,11,0)","v":0},{"$f":"VLOOKUP(B250,'[4]LOC FINAL with new Themes'!A:M,12,0)","v":0},{"$f":"VLOOKUP(B250,'[4]LOC FINAL with new Themes'!A:M,13,0)","v":0}]
[null,"Primary and Secondary Roads","Primary and Secondary Roads",{"$f":"IF(C251=0,#REF!,C251)","v":"Primary and Secondary Roads"},"Transportation ","DOC-Census","Jennifer Holland","Jennifer.L.Holland@census.gov",{"$f":"VLOOKUP(B251,'[4]LOC FINAL with new Themes'!A:M,7,0)","v":0},{"$f":"VLOOKUP(B251,'[4]LOC FINAL with new Themes'!A:M,8,0)","v":0},{"$f":"VLOOKUP(B251,'[4]LOC FINAL with new Themes'!A:M,9,0)","v":0},{"$f":"VLOOKUP(B251,'[4]LOC FINAL with new Themes'!A:M,10,0)","v":0},{"$f":"VLOOKUP(B251,'[4]LOC FINAL with new Themes'!A:M,11,0)","v":0},{"$f":"VLOOKUP(B251,'[4]LOC FINAL with new Themes'!A:M,12,0)","v":0},{"$f":"VLOOKUP(B251,'[4]LOC FINAL with new Themes'!A:M,13,0)","v":0}]
[null,"Primary Roads","Primary Roads",{"$f":"IF(C252=0,B252,C252)","v":"Primary Roads"},"Transportation ","DOC-Census","Jennifer Holland","Jennifer.L.Holland@census.gov",{"$f":"VLOOKUP(B252,'[4]LOC FINAL with new Themes'!A:M,7,0)","v":0},{"$f":"VLOOKUP(B252,'[4]LOC FINAL with new Themes'!A:M,8,0)","v":0},{"$f":"VLOOKUP(B252,'[4]LOC FINAL with new Themes'!A:M,9,0)","v":0},{"$f":"VLOOKUP(B252,'[4]LOC FINAL with new Themes'!A:M,10,0)","v":0},{"$f":"VLOOKUP(B252,'[4]LOC FINAL with new Themes'!A:M,11,0)","v":0},{"$f":"VLOOKUP(B252,'[4]LOC FINAL with new Themes'!A:M,12,0)","v":0},{"$f":"VLOOKUP(B252,'[4]LOC FINAL with new Themes'!A:M,13,0)","v":0}]
["TIGER (Roads/Rail)","TIGER (Roads/Rail)",null,{"$f":"IF(C253=0,B253,C253)","v":"TIGER (Roads/Rail)"},"Transportation ","DOC-Census","Randy Fusaro","randy.j.fusaro@census.gov",{"$f":"VLOOKUP(B253,'[4]LOC FINAL with new Themes'!A:M,7,0)","v":0},{"$f":"VLOOKUP(B253,'[4]LOC FINAL with new Themes'!A:M,8,0)","v":0},{"$f":"VLOOKUP(B253,'[4]LOC FINAL with new Themes'!A:M,9,0)","v":0},{"$f":"VLOOKUP(B253,'[4]LOC FINAL with new Themes'!A:M,10,0)","v":0},{"$f":"VLOOKUP(B253,'[4]LOC FINAL with new Themes'!A:M,11,0)","v":0},{"$f":"VLOOKUP(B253,'[4]LOC FINAL with new Themes'!A:M,12,0)","v":0},{"$f":"VLOOKUP(B253,'[4]LOC FINAL with new Themes'!A:M,13,0)","v":0}]
[null,"Traffic Analysis Zone (Census 2000)","Traffic Analysis Zone (Census 2000)",{"$f":"IF(C254=0,B254,C254)","v":"Traffic Analysis Zone (Census 2000)"},"Transportation ","DOC-Census","Jennifer Holland","Jennifer.L.Holland@census.gov",{"$f":"VLOOKUP(B254,'[4]LOC FINAL with new Themes'!A:M,7,0)","v":0},{"$f":"VLOOKUP(B254,'[4]LOC FINAL with new Themes'!A:M,8,0)","v":0},{"$f":"VLOOKUP(B254,'[4]LOC FINAL with new Themes'!A:M,9,0)","v":0},{"$f":"VLOOKUP(B254,'[4]LOC FINAL with new Themes'!A:M,10,0)","v":0},{"$f":"VLOOKUP(B254,'[4]LOC FINAL with new Themes'!A:M,11,0)","v":0},{"$f":"VLOOKUP(B254,'[4]LOC FINAL with new Themes'!A:M,12,0)","v":0},{"$f":"VLOOKUP(B254,'[4]LOC FINAL with new Themes'!A:M,13,0)","v":0}]
[{"$f":"SUBTOTAL(3,A239:A254)","v":7},{"$f":"SUBTOTAL(3,B239:B254)","v":13},{"$f":"SUBTOTAL(3,C239:C254)","v":14},{"$f":"SUBTOTAL(3,D239:D254)","v":16},"Transportation  Count"]
[null,null,"Pipelines",{"$f":"IF(C256=0,B256,C256)","v":"Pipelines"},"Utilities ","DOI-MMS"]
[null,null,"Platforms",{"$f":"IF(C257=0,B257,C257)","v":"Platforms"},"Utilities ","DOI-MMS"]
[{"$f":"SUBTOTAL(3,A256:A257)","v":0},{"$f":"SUBTOTAL(3,B256:B257)","v":0},{"$f":"SUBTOTAL(3,C256:C257)","v":2},{"$f":"SUBTOTAL(3,D256:D257)","v":2},"Utilities  Count"]
[null,"Area Hydrography (2010 Census)","Area Hydrography (2010 Census)",{"$f":"IF(C259=0,B259,C259)","v":"Area Hydrography (2010 Census)"},"Water -- Inland","DOC-Census","Jennifer Holland","Jennifer.L.Holland@census.gov",{"$f":"VLOOKUP(B259,'[4]LOC FINAL with new Themes'!A:M,7,0)","v":0},{"$f":"VLOOKUP(B259,'[4]LOC FINAL with new Themes'!A:M,8,0)","v":0},{"$f":"VLOOKUP(B259,'[4]LOC FINAL with new Themes'!A:M,9,0)","v":0},{"$f":"VLOOKUP(B259,'[4]LOC FINAL with new Themes'!A:M,10,0)","v":0},{"$f":"VLOOKUP(B259,'[4]LOC FINAL with new Themes'!A:M,11,0)","v":0},{"$f":"VLOOKUP(B259,'[4]LOC FINAL with new Themes'!A:M,12,0)","v":0},{"$f":"VLOOKUP(B259,'[4]LOC FINAL with new Themes'!A:M,13,0)","v":0}]
[null,"Linear Water Features","Linear Water Features","Linear Water Features","Water -- Inland","DOC-Census","Jennifer Holland","Jennifer.L.Holland@census.gov",{"$f":"VLOOKUP(B260,'[4]LOC FINAL with new Themes'!A:M,7,0)","v":0},{"$f":"VLOOKUP(B260,'[4]LOC FINAL with new Themes'!A:M,8,0)","v":0},{"$f":"VLOOKUP(B260,'[4]LOC FINAL with new Themes'!A:M,9,0)","v":0},{"$f":"VLOOKUP(B260,'[4]LOC FINAL with new Themes'!A:M,10,0)","v":0},{"$f":"VLOOKUP(B260,'[4]LOC FINAL with new Themes'!A:M,11,0)","v":0},{"$f":"VLOOKUP(B260,'[4]LOC FINAL with new Themes'!A:M,12,0)","v":0},{"$f":"VLOOKUP(B260,'[4]LOC FINAL with new Themes'!A:M,13,0)","v":0}]
["National Hydrography Data Set","National Hydrography Dataset","National Hydrography Dataset - National Map","National Hydrography Dataset - National Map","Water -- Inland","DOI-USGS","Jeff Simley","jdsimley@usgs.gov",{"$f":"VLOOKUP(B261,'[4]LOC FINAL with new Themes'!A:M,7,0)","v":0},{"$f":"VLOOKUP(B261,'[4]LOC FINAL with new Themes'!A:M,8,0)","v":0},{"$f":"VLOOKUP(B261,'[4]LOC FINAL with new Themes'!A:M,9,0)","v":0},{"$f":"VLOOKUP(B261,'[4]LOC FINAL with new Themes'!A:M,10,0)","v":0},{"$f":"VLOOKUP(B261,'[4]LOC FINAL with new Themes'!A:M,11,0)","v":0},{"$f":"VLOOKUP(B261,'[4]LOC FINAL with new Themes'!A:M,12,0)","v":0},{"$f":"VLOOKUP(B261,'[4]LOC FINAL with new Themes'!A:M,13,0)","v":0}]
["National Inventory of Dams (NID)","National Inventory of Dams (NID)","National Inventory of Dams (NID)","National Inventory of Dams (NID)","Water -- Inland","DOD-USACE","Rebecca Ragon","Rebecca.Ragon@usace.army.mil ",{"$f":"VLOOKUP(B262,'[4]LOC FINAL with new Themes'!A:M,7,0)","v":"One single data set"},{"$f":"VLOOKUP(B262,'[4]LOC FINAL with new Themes'!A:M,8,0)","v":"Yes"},{"$f":"VLOOKUP(B262,'[4]LOC FINAL with new Themes'!A:M,9,0)","v":"Yes"},{"$f":"VLOOKUP(B262,'[4]LOC FINAL with new Themes'!A:M,10,0)","v":"Usually every 2 years"},{"$f":"VLOOKUP(B262,'[4]LOC FINAL with new Themes'!A:M,11,0)","v":"Because the NID is updated every 2 years, we do have archived databased datig back to 1994."},{"$f":"VLOOKUP(B262,'[4]LOC FINAL with new Themes'!A:M,12,0)","v":"The official name is National Inventory of Dams (NID) but I have seen the database referenced as the National Dam Inventory"},{"$f":"VLOOKUP(B262,'[4]LOC FINAL with new Themes'!A:M,13,0)","v":"S"}]
["National Levee Database (NLD)","National Levee Database (NLD)","National Levee Database (NLD)","National Levee Database (NLD)","Water -- Inland","DOD-USACE","Bryan Baker","Bryan.E.Baker@usace.army.mil",{"$f":"VLOOKUP(B263,'[4]LOC FINAL with new Themes'!A:M,7,0)","v":0},{"$f":"VLOOKUP(B263,'[4]LOC FINAL with new Themes'!A:M,8,0)","v":0},{"$f":"VLOOKUP(B263,'[4]LOC FINAL with new Themes'!A:M,9,0)","v":0},{"$f":"VLOOKUP(B263,'[4]LOC FINAL with new Themes'!A:M,10,0)","v":0},{"$f":"VLOOKUP(B263,'[4]LOC FINAL with new Themes'!A:M,11,0)","v":0},{"$f":"VLOOKUP(B263,'[4]LOC FINAL with new Themes'!A:M,12,0)","v":0},{"$f":"VLOOKUP(B263,'[4]LOC FINAL with new Themes'!A:M,13,0)","v":0}]
[null,null,"National Water Information System (NWIS)- Stream Gage Network","National Water Information System (NWIS)- Stream Gage Network","Water -- Inland","DOI-USGS"]
[null,null,"National Water Information System (NWIS)- Water Quality Monitoring Stations","National Water Information System (NWIS)- Water Quality Monitoring Stations","Water -- Inland","DOI-USGS"]
["National Wetlands Inventory (NWI) ","National Wetlands Inventory (NWI) ","National Wetlands Inventory (NWI) ","National Wetlands Inventory (NWI) ","Water -- Inland","DOI-FWS","Tom Dahl  ","tom_dahl@fws.gov\n",{"$f":"VLOOKUP(B266,'[4]LOC FINAL with new Themes'!A:M,7,0)","v":0},{"$f":"VLOOKUP(B266,'[4]LOC FINAL with new Themes'!A:M,8,0)","v":0},{"$f":"VLOOKUP(B266,'[4]LOC FINAL with new Themes'!A:M,9,0)","v":0},{"$f":"VLOOKUP(B266,'[4]LOC FINAL with new Themes'!A:M,10,0)","v":0},{"$f":"VLOOKUP(B266,'[4]LOC FINAL with new Themes'!A:M,11,0)","v":0},{"$f":"VLOOKUP(B266,'[4]LOC FINAL with new Themes'!A:M,12,0)","v":0},{"$f":"VLOOKUP(B266,'[4]LOC FINAL with new Themes'!A:M,13,0)","v":0}]
["Nautical charts","Nautical Charts",null,"Nautical Charts","Water -- Inland",null,null,null,{"$f":"VLOOKUP(B267,'[4]LOC FINAL with new Themes'!A:M,7,0)","v":0},{"$f":"VLOOKUP(B267,'[4]LOC FINAL with new Themes'!A:M,8,0)","v":0},{"$f":"VLOOKUP(B267,'[4]LOC FINAL with new Themes'!A:M,9,0)","v":0},{"$f":"VLOOKUP(B267,'[4]LOC FINAL with new Themes'!A:M,10,0)","v":0},{"$f":"VLOOKUP(B267,'[4]LOC FINAL with new Themes'!A:M,11,0)","v":0},{"$f":"VLOOKUP(B267,'[4]LOC FINAL with new Themes'!A:M,12,0)","v":0},{"$f":"VLOOKUP(B267,'[4]LOC FINAL with new Themes'!A:M,13,0)","v":0}]
["NWIS & STORET","NWIS & STORET",null,"NWIS & STORET","Water -- Inland",null,"EGIM",null,{"$f":"VLOOKUP(B268,'[4]LOC FINAL with new Themes'!A:M,7,0)","v":0},{"$f":"VLOOKUP(B268,'[4]LOC FINAL with new Themes'!A:M,8,0)","v":0},{"$f":"VLOOKUP(B268,'[4]LOC FINAL with new Themes'!A:M,9,0)","v":0},{"$f":"VLOOKUP(B268,'[4]LOC FINAL with new Themes'!A:M,10,0)","v":0},{"$f":"VLOOKUP(B268,'[4]LOC FINAL with new Themes'!A:M,11,0)","v":0},{"$f":"VLOOKUP(B268,'[4]LOC FINAL with new Themes'!A:M,12,0)","v":0},{"$f":"VLOOKUP(B268,'[4]LOC FINAL with new Themes'!A:M,13,0)","v":0}]
["Shore and sea boundaries","Shore and sea boundaries",null,"Shore and sea boundaries","Water -- Inland",null,"EGIM",null,{"$f":"VLOOKUP(B269,'[4]LOC FINAL with new Themes'!A:M,7,0)","v":0},{"$f":"VLOOKUP(B269,'[4]LOC FINAL with new Themes'!A:M,8,0)","v":0},{"$f":"VLOOKUP(B269,'[4]LOC FINAL with new Themes'!A:M,9,0)","v":0},{"$f":"VLOOKUP(B269,'[4]LOC FINAL with new Themes'!A:M,10,0)","v":0},{"$f":"VLOOKUP(B269,'[4]LOC FINAL with new Themes'!A:M,11,0)","v":0},{"$f":"VLOOKUP(B269,'[4]LOC FINAL with new Themes'!A:M,12,0)","v":0},{"$f":"VLOOKUP(B269,'[4]LOC FINAL with new Themes'!A:M,13,0)","v":0}]
[null,"Topological Faces-Area Hydrography Relationship File","Topological Faces-Area Hydrography Relationship File","Topological Faces-Area Hydrography Relationship File","Water -- Inland","DOC-Census","Jennifer Holland","Jennifer.L.Holland@census.gov",{"$f":"VLOOKUP(B270,'[4]LOC FINAL with new Themes'!A:M,7,0)","v":0},{"$f":"VLOOKUP(B270,'[4]LOC FINAL with new Themes'!A:M,8,0)","v":0},{"$f":"VLOOKUP(B270,'[4]LOC FINAL with new Themes'!A:M,9,0)","v":0},{"$f":"VLOOKUP(B270,'[4]LOC FINAL with new Themes'!A:M,10,0)","v":0},{"$f":"VLOOKUP(B270,'[4]LOC FINAL with new Themes'!A:M,11,0)","v":0},{"$f":"VLOOKUP(B270,'[4]LOC FINAL with new Themes'!A:M,12,0)","v":0},{"$f":"VLOOKUP(B270,'[4]LOC FINAL with new Themes'!A:M,13,0)","v":0}]
["Watershed Boundary Data Set (WBD)  ","Watershed Boundary Dataset (WBD)  ","Watershed Boundary Dataset (WBD)  ","Watershed Boundary Dataset (WBD)  ","Water -- Inland","DOI-USGS","Karen Hanson","khanson@usgs.gov",{"$f":"VLOOKUP(B271,'[4]LOC FINAL with new Themes'!A:M,7,0)","v":"one set with nested hierarchy of six different levels within it (regions, subdivided into four, six and twelve digits), POC and data manager; continually updated; co-managed with NRCS and they archive it; USGS in Denver will serve it; All transactions are archived in versions in the database as they happen. Data from any moment in time can be captured with a simple query. The database is replicated daily to Rolla, MO servers. The database is stored on a SAN with three tier redundancy.All changes to the database are stored on separate disks and once they reach a certain size, they are copied over to a server to be written to tape. Weekly, the entire database (NHD, with WBD) is written to tape.Monthly, the tapes are taken off site for storage."},{"$f":"VLOOKUP(B271,'[4]LOC FINAL with new Themes'!A:M,8,0)","v":0},{"$f":"VLOOKUP(B271,'[4]LOC FINAL with new Themes'!A:M,9,0)","v":0},{"$f":"VLOOKUP(B271,'[4]LOC FINAL with new Themes'!A:M,10,0)","v":0},{"$f":"VLOOKUP(B271,'[4]LOC FINAL with new Themes'!A:M,11,0)","v":0},{"$f":"VLOOKUP(B271,'[4]LOC FINAL with new Themes'!A:M,12,0)","v":0},{"$f":"VLOOKUP(B271,'[4]LOC FINAL with new Themes'!A:M,13,0)","v":"S"}]
["Watershed Boundary Data Set (WBD)  ","Watershed Boundary Dataset (WBD)  ","Watershed Boundary Dataset (WBD)  ","Watershed Boundary Dataset (WBD)  ","Water -- Inland","DOI-USGS","Karen Hanson","khanson@usgs.gov",{"$f":"VLOOKUP(B272,'[4]LOC FINAL with new Themes'!A:M,7,0)","v":"one set with nested hierarchy of six different levels within it (regions, subdivided into four, six and twelve digits), POC and data manager; continually updated; co-managed with NRCS and they archive it; USGS in Denver will serve it; All transactions are archived in versions in the database as they happen. Data from any moment in time can be captured with a simple query. The database is replicated daily to Rolla, MO servers. The database is stored on a SAN with three tier redundancy.All changes to the database are stored on separate disks and once they reach a certain size, they are copied over to a server to be written to tape. Weekly, the entire database (NHD, with WBD) is written to tape.Monthly, the tapes are taken off site for storage."},{"$f":"VLOOKUP(B272,'[4]LOC FINAL with new Themes'!A:M,8,0)","v":0},{"$f":"VLOOKUP(B272,'[4]LOC FINAL with new Themes'!A:M,9,0)","v":0},{"$f":"VLOOKUP(B272,'[4]LOC FINAL with new Themes'!A:M,10,0)","v":0},{"$f":"VLOOKUP(B272,'[4]LOC FINAL with new Themes'!A:M,11,0)","v":0},{"$f":"VLOOKUP(B272,'[4]LOC FINAL with new Themes'!A:M,12,0)","v":0},{"$f":"VLOOKUP(B272,'[4]LOC FINAL with new Themes'!A:M,13,0)","v":"S"}]
[{"$f":"SUBTOTAL(3,A259:A272)","v":9},{"$f":"SUBTOTAL(3,B259:B272)","v":12},{"$f":"SUBTOTAL(3,C259:C272)","v":11},{"$f":"SUBTOTAL(3,D259:D272)","v":14},"Water -- Inland Count"]
[null,null,"Coastal Barrier Resource System",{"$f":"IF(C274=0,B274,C274)","v":"Coastal Barrier Resource System"},"Water -- Oceans and Coasts ","DOI-FWS"]
[null,null,"Coastal Change Analysis Program (C-CAP) Land Cover and Land Change Imagery","Coastal Change Analysis Program (C-CAP) Land Cover and Land Change Imagery","Water -- Oceans and Coasts ","DOC-NOAA"]
["Contiguous Zone","Contiguous Zone",null,"Contiguous Zone","Water -- Oceans and Coasts ","DOC-NOAA","Meredith Westington","meredith.westington@noaa.gov",{"$f":"VLOOKUP(B276,'[4]LOC FINAL with new Themes'!A:M,7,0)","v":0},{"$f":"VLOOKUP(B276,'[4]LOC FINAL with new Themes'!A:M,8,0)","v":0},{"$f":"VLOOKUP(B276,'[4]LOC FINAL with new Themes'!A:M,9,0)","v":0},{"$f":"VLOOKUP(B276,'[4]LOC FINAL with new Themes'!A:M,10,0)","v":"- We do also add historical dates, if that is of interest."},{"$f":"VLOOKUP(B276,'[4]LOC FINAL with new Themes'!A:M,11,0)","v":0},{"$f":"VLOOKUP(B276,'[4]LOC FINAL with new Themes'!A:M,12,0)","v":0},{"$f":"VLOOKUP(B276,'[4]LOC FINAL with new Themes'!A:M,13,0)","v":0}]
["Continental Shelf Boundary Data","Continental Shelf Boundary Data","Continental Shelf Boundary Data","Continental Shelf Boundary Data","Water -- Oceans and Coasts ","DOI-MMS","James Fulmer","james.s.fulmer@mms.gov",{"$f":"VLOOKUP(B277,'[4]LOC FINAL with new Themes'!A:M,7,0)","v":"undeliverable email- neeed to identify new contact"},{"$f":"VLOOKUP(B277,'[4]LOC FINAL with new Themes'!A:M,8,0)","v":0},{"$f":"VLOOKUP(B277,'[4]LOC FINAL with new Themes'!A:M,9,0)","v":0},{"$f":"VLOOKUP(B277,'[4]LOC FINAL with new Themes'!A:M,10,0)","v":0},{"$f":"VLOOKUP(B277,'[4]LOC FINAL with new Themes'!A:M,11,0)","v":0},{"$f":"VLOOKUP(B277,'[4]LOC FINAL with new Themes'!A:M,12,0)","v":0},{"$f":"VLOOKUP(B277,'[4]LOC FINAL with new Themes'!A:M,13,0)","v":0}]
["Exclusive Economic Zone","Exclusive Economic Zone",null,"Exclusive Economic Zone","Water -- Oceans and Coasts ","DOC-NOAA","Meredith Westington","meredith.westington@noaa.gov",{"$f":"VLOOKUP(B278,'[4]LOC FINAL with new Themes'!A:M,7,0)","v":0},{"$f":"VLOOKUP(B278,'[4]LOC FINAL with new Themes'!A:M,8,0)","v":0},{"$f":"VLOOKUP(B278,'[4]LOC FINAL with new Themes'!A:M,9,0)","v":0},{"$f":"VLOOKUP(B278,'[4]LOC FINAL with new Themes'!A:M,10,0)","v":0},{"$f":"VLOOKUP(B278,'[4]LOC FINAL with new Themes'!A:M,11,0)","v":0},{"$f":"VLOOKUP(B278,'[4]LOC FINAL with new Themes'!A:M,12,0)","v":0},{"$f":"VLOOKUP(B278,'[4]LOC FINAL with new Themes'!A:M,13,0)","v":0}]
[null,null,"National Data Buoy Center (NDBC) Recent and Historical Data","National Data Buoy Center (NDBC) Recent and Historical Data","Water -- Oceans and Coasts ","DOC-NOAA"]
["NOAA Composite Shoreline","NOAA Composite Shoreline",null,"NOAA Composite Shoreline","Water -- Oceans and Coasts ","DOC-NOAA","Tara Miller","Tara.Miller@noaa.gov",{"$f":"VLOOKUP(B280,'[4]LOC FINAL with new Themes'!A:M,7,0)","v":0},{"$f":"VLOOKUP(B280,'[4]LOC FINAL with new Themes'!A:M,8,0)","v":0},{"$f":"VLOOKUP(B280,'[4]LOC FINAL with new Themes'!A:M,9,0)","v":0},{"$f":"VLOOKUP(B280,'[4]LOC FINAL with new Themes'!A:M,10,0)","v":0},{"$f":"VLOOKUP(B280,'[4]LOC FINAL with new Themes'!A:M,11,0)","v":0},{"$f":"VLOOKUP(B280,'[4]LOC FINAL with new Themes'!A:M,12,0)","v":0},{"$f":"VLOOKUP(B280,'[4]LOC FINAL with new Themes'!A:M,13,0)","v":0}]
["NOAA Extracted Vector Shoreline","NOAA Extracted Vector Shoreline",null,"NOAA Extracted Vector Shoreline","Water -- Oceans and Coasts ","DOC-NOAA","Matt Austin","Matthew.Austin@noaa.gov",{"$f":"VLOOKUP(B281,'[4]LOC FINAL with new Themes'!A:M,7,0)","v":0},{"$f":"VLOOKUP(B281,'[4]LOC FINAL with new Themes'!A:M,8,0)","v":0},{"$f":"VLOOKUP(B281,'[4]LOC FINAL with new Themes'!A:M,9,0)","v":0},{"$f":"VLOOKUP(B281,'[4]LOC FINAL with new Themes'!A:M,10,0)","v":0},{"$f":"VLOOKUP(B281,'[4]LOC FINAL with new Themes'!A:M,11,0)","v":0},{"$f":"VLOOKUP(B281,'[4]LOC FINAL with new Themes'!A:M,12,0)","v":0},{"$f":"VLOOKUP(B281,'[4]LOC FINAL with new Themes'!A:M,13,0)","v":0}]
["NOAA Medium Resolution Shoreline","NOAA Medium Resolution Shoreline",null,"NOAA Medium Resolution Shoreline","Water -- Oceans and Coasts ","DOC-NOAA","Robert Wilson","Robert.Wilson@noaa.gov",{"$f":"VLOOKUP(B282,'[4]LOC FINAL with new Themes'!A:M,7,0)","v":0},{"$f":"VLOOKUP(B282,'[4]LOC FINAL with new Themes'!A:M,8,0)","v":0},{"$f":"VLOOKUP(B282,'[4]LOC FINAL with new Themes'!A:M,9,0)","v":0},{"$f":"VLOOKUP(B282,'[4]LOC FINAL with new Themes'!A:M,10,0)","v":0},{"$f":"VLOOKUP(B282,'[4]LOC FINAL with new Themes'!A:M,11,0)","v":0},{"$f":"VLOOKUP(B282,'[4]LOC FINAL with new Themes'!A:M,12,0)","v":0},{"$f":"VLOOKUP(B282,'[4]LOC FINAL with new Themes'!A:M,13,0)","v":0}]
[null,null,"NOAA National Shoreline","NOAA National Shoreline","Water -- Oceans and Coasts ","DOC-NOAA","Doug Graham","Doug.Graham@noaa.gov"]
["NOAA National Shoreline","NOAA National Shoreline",null,"NOAA National Shoreline","Water -- Oceans and Coasts ","DOC-NOAA","Doug Graham","Doug.Graham@noaa.gov",{"$f":"VLOOKUP(B284,'[4]LOC FINAL with new Themes'!A:M,7,0)","v":"1,665 shoreline projects (data sets)"},{"$f":"VLOOKUP(B284,'[4]LOC FINAL with new Themes'!A:M,8,0)","v":"Yes"},{"$f":"VLOOKUP(B284,'[4]LOC FINAL with new Themes'!A:M,9,0)","v":"Yes"},{"$f":"VLOOKUP(B284,'[4]LOC FINAL with new Themes'!A:M,10,0)","v":"    There are historical and contemporary data set updates to the NOAA Shoreline Data Explorer application.  The historical data sets are from a data rescue project called Climate Data Modernization Program.  These projects would be loaded in bulk batches every few months.  The funding for this program was recently terminated.  The contemporary data sets are our current shoreline updates to the NOAA National Shoreline.  These projects are uploaded when completed which vary in numbers but within the last twelve months there were over 30 contemporary shoreline survey projects loaded."},{"$f":"VLOOKUP(B284,'[4]LOC FINAL with new Themes'!A:M,11,0)","v":"The National Geodetic Survey performs data base backs ups including the NGS Shoreline Data Base.  Currently there is no archived copy of the NGS Shoreline Data Base.   I believe the backups occur every couple weeks and these backups are not easily accessible."},{"$f":"VLOOKUP(B284,'[4]LOC FINAL with new Themes'!A:M,12,0)","v":"The data set as a whole is referenced as the \"National Shoreline\".  This is composed of individual contemporary or historical data sets including GCs, DMs, TP-Sheets, and T-Sheets."},{"$f":"VLOOKUP(B284,'[4]LOC FINAL with new Themes'!A:M,13,0)","v":"M "}]
["NOAA Nautical Charts","NOAA Nautical Charts","NOAA's Nautical Chart Products","NOAA's Nautical Chart Products","Water -- Oceans and Coasts ","DOC-NOAA","John Lowell","John.Lowell@noaa.gov",{"$f":"VLOOKUP(B285,'[4]LOC FINAL with new Themes'!A:M,7,0)","v":0},{"$f":"VLOOKUP(B285,'[4]LOC FINAL with new Themes'!A:M,8,0)","v":0},{"$f":"VLOOKUP(B285,'[4]LOC FINAL with new Themes'!A:M,9,0)","v":0},{"$f":"VLOOKUP(B285,'[4]LOC FINAL with new Themes'!A:M,10,0)","v":0},{"$f":"VLOOKUP(B285,'[4]LOC FINAL with new Themes'!A:M,11,0)","v":0},{"$f":"VLOOKUP(B285,'[4]LOC FINAL with new Themes'!A:M,12,0)","v":0},{"$f":"VLOOKUP(B285,'[4]LOC FINAL with new Themes'!A:M,13,0)","v":0}]
[null,null,"Non-Projected Boundaries","Non-Projected Boundaries","Water -- Oceans and Coasts ","DOI-MMS"]
[null,null,"Projected Boundaries","Projected Boundaries","Water -- Oceans and Coasts ","DOI-MMS"]
["Territorial Sea","Territorial Sea",null,"Territorial Sea","Water -- Oceans and Coasts ","DOC-NOAA","Meredith Westington","meredith.westington@noaa.gov",{"$f":"VLOOKUP(B288,'[4]LOC FINAL with new Themes'!A:M,7,0)","v":"    National-scale maritime limits/boundaries are available as separate data layers or as a packaged bundle."},{"$f":"VLOOKUP(B288,'[4]LOC FINAL with new Themes'!A:M,8,0)","v":0},{"$f":"VLOOKUP(B288,'[4]LOC FINAL with new Themes'!A:M,9,0)","v":0},{"$f":"VLOOKUP(B288,'[4]LOC FINAL with new Themes'!A:M,10,0)","v":0},{"$f":"VLOOKUP(B288,'[4]LOC FINAL with new Themes'!A:M,11,0)","v":0},{"$f":"VLOOKUP(B288,'[4]LOC FINAL with new Themes'!A:M,12,0)","v":0},{"$f":"VLOOKUP(B288,'[4]LOC FINAL with new Themes'!A:M,13,0)","v":0}]
[null,null,"U.S. Marine Protected Areas Boundaries","U.S. Marine Protected Areas Boundaries","Water -- Oceans and Coasts ","DOC-NOAA"]
[null,null,"U.S. Maritime Zones/Boundaries","U.S. Maritime Zones/Boundaries","Water -- Oceans and Coasts ","DOC-NOAA"]
[{"$f":"SUBTOTAL(3,A274:A290)","v":9},{"$f":"SUBTOTAL(3,B274:B290)","v":9},{"$f":"SUBTOTAL(3,C274:C290)","v":10},{"$f":"SUBTOTAL(3,D274:D290)","v":17},"Water -- Oceans and Coasts  Count"]
[{"$f":"SUBTOTAL(3,A2:A290)","v":129},{"$f":"SUBTOTAL(3,B2:B290)","v":200},{"$f":"SUBTOTAL(3,C2:C290)","v":200},{"$f":"SUBTOTAL(3,D2:D290)","v":271},"Grand Count"]